{"text_format":"1","workbook":"xlsx","n_sheets":5,"sheets":["Introduction","Indicator Selection Tool","TA Indicator Bank","Notes & Methodology","Selection tool assistant"],"not_rendered":{"charts":0,"images":5,"macros":1,"external_links":1,"defined_names":31,"comments":0,"pivot_tables":0},"unopened":[],"bounds":{"document_bytes":16777216,"sheet_cells":100000,"rows_first":2000,"rows_last":500,"rows_between":2000,"halvings":0,"cell_chars":16384,"cell_head_chars":4096},"cells_cut":0,"cells_raw":0,"read":"whole","date_system":"1900"}

{"sheet":"Introduction","index":0,"n_rows":33,"n_cols":3,"rows_kept":33,"cut":false,"hidden":false,"merged":[[11,1,11,2],[14,1,14,2],[13,1,13,2],[9,1,9,2],[5,1,5,2],[1,1,1,2],[2,1,2,2],[6,1,6,2],[7,1,7,2],[10,1,10,2]]}
[]
[null,"Understanding Technical Assistance Options in International Climate Finance"]
[null,"Technical Assistance Indicator Bank"]
[null,"Version 1.1, 4 September 2019"]
[]
[null,"Introduction"]
[null,"This Indicator Bank contains indicators for use in monitoring technical assistance (TA) programmes. The indicators contained within this database cover a range of different types of TA activities (e.g. the TA products), different TA outputs (how the TA aims to help, for example through capacity building, policy support or supporting climate investments), and different TA outcomes."]
[null,"The indicators in this Bank have been synthesised from indicators used to monitor progress within existing HMG (UK BEIS and UK DFID) programmes, within select international programmes, and based on current best practice guidance for monitoring TA programmes. "]
[]
[null,"How to use this Indicator Bank"]
[null,"All TA indicators identified through this analysis are incldued in the 'TA Indicator Bank' worksheet. Users can review all indicators in this sheet, and use the headings to filter and identify indicators of interest."]
[null,"Users can also use the 'Indicator Selection Tool' worksheet to identify indicators of particular relevance to them. This sheet allows users to filter to select indicators based on their relevance at different levels of the results chain, their applicability to different components of TA programmes, their specific use for different TA activities, their support for specific output, or their support for different common outcome goals for TA programmes."]
[]
[null,"What types of indicators are included in this Indicator Bank?"]
[null,"This Indicator Bank includes a wide range of indicators, covering different types of TA products and services, different types of TA programmes, and different goals of TA programmes. The types of indicators included are summarised below, according to different 'programme components' or stages of the results chain. Note that this Indicator Bank may use different definitions of results chain levels than in specific programmes, as different programmes may have diferent horizons - so Outcome indicators for one programme may be Output indicators for another. Please refer to the descriptions in the graphic below of what is included in each level below to guide your selection of relevant indicators."]
[]
[]
[]
[]
[null,"Sorting criteria","Description"]
[null,"Results Chain Level(s)","The Indicator Bank classifies indicators based on whether they are applicable against 'activities', 'uptake', 'outputs' or 'outcomes'. Note that this indicator bank does not include indicators of 'inputs' (for example financial resources allocated to TA programmes) and also excludes 'impacts' as this analysis identified that indicators at this stage of the results chain are not TA-specific (that is, indicators of impact in terms of emissions reductions, increased resilience, etc are not substantively different for TA programmes than for other types of international climate action programmes."]
[null,"Activity or Uptake(s)","The Indicator Bank breaks down all activity indicators according to the various different mechanisms they can support. A full list and description of the indicators is available in the 'Notes' worksheet."]
[null,"Output(s)","The Indicator Bank breaks down all Output indicators according to the various different TA programme types they can support. A full list and description of the indicators is available in the 'Notes' worksheet."]
[null,"Outcome(s)","The Indicator Bank breaks down all Outcome indicators according to the various different TA-linked outcome goals they can support."]
[]
[null,"Table of contents"]
[null,"Worksheet","Description"]
[]
[null,"Introduction","Introduction to the TA Indicator Bank workbook"]
[null,"TA Indicator Bank","Longlist of all TA indicators"]
[null,"Indicator Selection Tool","Interactive tool to select relevant TA indicators"]
[null,"Notes & Methodology","Description of TA indicator categories and methodology used to create this Indicator Bank"]
[null,"Selection tool assistant","Working sheet supporting the Indicator Selection Tool worksheet (Please do not edit - hidden to avoid accidental edits)"]

{"sheet":"Indicator Selection Tool","index":1,"n_rows":415,"n_cols":11,"rows_kept":415,"cut":false,"hidden":false,"merged":[]}
[null,"Indicator Selection Tool"]
[]
[null,null,"Instructions"]
[null,null,"Please select the types of indicator you are interested in using the drop-down lists below, the click on the 'Select indicators' button. "]
[null,null,"Users can select from the Results Chain Level list and from one of the theme lists. All non-active theme list selections should be left as 'All'."]
[]
[null,null,"Results Chain Level","All"]
[null,null,"Activity or Uptake themes","All"]
[null,null,"Output themes","All"]
[null,null,"Outcome themes","All"]
[]
[]
[]
[null,"Indicator ID\nA unique ID number for each indicator","Indicator\nDescription of each indicator","Notes\nGuidance on usage","Results Chain Level\nApplicabilty at Activity, Uptake, Output or Outcome levels","Activity or Uptake(s)\nActivities or Uptakes this indicator can be against","Output(s)\nOutputs this indicator can be against","Outcome(s)\nOutcome(s) this indicator can be against","Unit of Measurement\nHow the results from this indicator should be captured"]
[null,"TA001","Number of events held","-","Activity","Workshops; Training events / courses; Conferences, seminars or networking events; Public awareness campaigns","-","-","Number",null,"TA001"]
[null,"TA002","Number of people attending events","-","Uptake","Workshops","-","-","Number",null,"TA002"]
[null,"TA003","Good attendance at events","To be assessed against a pre-identified standard for good attendance (based on absolute numbers, percentage of invitees attending, percentage of important stakeholders representated)","Uptake","Workshops","-","-","Yes/No",null,"TA003"]
[null,"TA004","Participants assess training as useful or satisfactory","Can be assessed in multiple ways: against pre-identified goals or expectations for training outcomes; based on immediate post-training survey of expectations that it will support trainees in their work; or, based on survey following a delay (e.g. 6 months) on how training has supported activities/work in practice.","Output","-","Capacity building: Institutional capacity; Capacity building: Technical capacity","-","Yes/No",null,"TA004"]
[null,"TA005","Number of participants/units that received support","-","Uptake","Workshops; Training events / courses","Process/asset operation support","-","Number",null,"TA005"]
[null,"TA006","Number of training modules and guidebooks developed","-","Activity","Training events / courses","-","-","Number",null,"TA006"]
[null,"TA007","Increased knowledge and skills among programme participants","-","Output","-","Capacity building: Technical capacity","-","Yes/No",null,"TA007"]
[null,"TA008","Extent that trained individuals have an effect on their end objective","Can be assessed through a survey of supported individuals, through external evaluation of effectiveness, or evaluation of outputs from the work undertaked by supported individuals.","Output","Training events / courses","Domestic policy support; Project development support; Process/asset operation support","-","Narrative",null,"TA008"]
[null,"TA009","Cost of training compared to quality and quantity of training","Cost-effectiveness metric most useful in comparison to other training, but would require consistent evaluation of training quality.","Activity","Training events / courses","-","-","Number",null,"TA009"]
[null,"TA010","Number of policymakers whose awareness has been raised through an event","Can be assessed via surveys, with lagged surveys assessing the degree of spread of awareness within policy-making community, and the degree of knowledge retention over time.","Uptake","Conferences, seminars or networking events","-","-","Number",null,"TA010"]
[null,"TA011","Number of organisations and stakeholders promoting the programme outcomes beyond the programme","-","Uptake","Conferences, seminars or networking events","-","-","Number",null,"TA011"]
[null,"TA012","Number of countries where government uses project outcomes in stakeholder meetings","-","Uptake","Conferences, seminars or networking events","-","-","Number",null,"TA012"]
[null,"TA013","Number of organisations engaging with the programme network","-","Uptake","Conferences, seminars or networking events","-","-","Number",null,"TA013"]
[null,"TA014","Quality and relevance of conferences, seminars or networking events conducted","Quality and relevance can be assessed in multiple ways: against pre-identified expectations or criteria; based on immediate post-event surveys; or, based on surveys following a delay (e.g. 6 months) on how events have supported activities/work in practice.","Activity","Conferences, seminars or networking events","-","-","Narrative",null,"TA014"]
[null,"TA015","Number of publications","-","Activity","Specialist research, inc. market / policy / legal / regulatory / technology research briefs; Public awareness campaigns","-","-","Number",null,"TA015"]
[null,"TA016","Number of publications that pass a certain quality review process (e.g. assessed by programme, peer review)","-","Activity","Specialist research, inc. market / policy / legal / regulatory / technology research briefs; Research & development","-","-","Number",null,"TA016"]
[null,"TA017","Number of people accessing publications","-","Uptake","Specialist research, inc. market / policy / legal / regulatory / technology research briefs","-","-","Number",null,"TA017"]
[null,"TA018","Publication contributes to improvement of processes","-","Output","-","Process/asset operation support","-","Narrative",null,"TA018"]
[null,"TA019","Number of publications that are rated useful by readers","-","Output","-","Capacity building: Technical capacity","-","Number",null,"TA019"]
[null,"TA020","Number of citations in academic or policy literature","-","Uptake","Specialist research, inc. market / policy / legal / regulatory / technology research briefs","-","-","Number",null,"TA020"]
[null,"TA021","Users/readers play role in creation of publication","-","Uptake","Specialist research, inc. market / policy / legal / regulatory / technology research briefs","-","-","Narrative",null,"TA021"]
[null,"TA022","Quality and relevance of publications","Quality and relevance can be assessed in multiple ways: against pre-identified expectations or criteria; based on immediate surveys of users; or, based on surveys following a delay (e.g. 6 months) on how publciations have supported activities/work in practice.","Activity","Specialist research, inc. market / policy / legal / regulatory / technology research briefs","-","-","Narrative",null,"TA022"]
[null,"TA023","Number of cases where programme has supported organisational change","-","Output","-","Process/asset operation support","-","Number",null,"TA023"]
[null,"TA024","Number/percentage of organisation that have certain processes or plan implemented within given time period","-","Output","-","Process/asset operation support","-","Number, Percentage",null,"TA024"]
[null,"TA025","Number of recommendations that lead to improved programme/activities","-","Output","-","Process/asset operation support","-","Number",null,"TA025"]
[null,"TA026","Number of organisations that show enhanced capacity on their action plans","-","Output","-","Capacity building: Institutional capacity","-","Number",null,"TA026"]
[null,"TA027","Number of outputs produced by given supported organisation/unit/body","Can be used to assess the performance of supported beneficiaries, perhaps requiring outputs to meet a quality threshold to be accepted","Activity","Strategic organisational guidance","-","-","Narrative",null,"TA027"]
[null,"TA028","Number of times/cases support is provided","-","Activity","Expert guidance and review","-","-","Number",null,"TA028"]
[null,"TA029","Number of publications that have been written with substantive support from programme","-","Output","-","Capacity building: Technical capacity","-","Number",null,"TA029"]
[null,"TA030","Number of people supported by expert guidance","Can be assesed at direct level (specific number of people supported) or at indirect level (for example, including peopple who are served by the person/body receiving support, for example business customers or people supported by a public sector organisation)","Activity","Expert guidance and review","-","-","Number",null,"TA030"]
[null,"TA031","Number of social media followers","Should be based on appropriate social media networks in use in the country where support is provided","Uptake","Public awareness campaigns","-","-","Number",null,"TA031"]
[null,"TA032","Number of cases where programme partners made adaptations based on the learning through the programme ","-","Output","-","Process/asset operation support","-","Number",null,"TA032"]
[null,"TA033","Number of cases where the programme supported stakeholders on media and communication","-","Activity","Public awareness campaigns","-","-","Number",null,"TA033"]
[null,"TA034","Number of programme participants with increased awareness","-","Output","-","Awareness raising","-","Number",null,"TA034"]
[null,"TA035","Number of project plans and studies produced","-","Activity","Project studies and plans","-","-","Number",null,"TA035"]
[null,"TA036","Supported organisations create appropriate assessment framework for understanding internal operations","-","Activity","Project studies and plans","-","-","Yes/No",null,"TA036"]
[null,"TA037","Number of relevant and high-quality evidence products produced (e.g. evaluations, impact assessments, research studies)","-","Activity","Project studies and plans","-","-","Number",null,"TA037"]
[null,"TA038","Number of supported organisations with modernisation plans","-","Output","-","Process/asset operation support","-","Number",null,"TA038"]
[null,"TA039","Number of evidence products (e.g. evaluations, impact assessments, research studies)","-","Activity","Project studies and plans","-","-","Number",null,"TA039"]
[null,"TA040","Deliverables are completed on time","-","Activity","Project studies and plans; Data, software, tools and models","-","-","Yes/No",null,"TA040"]
[null,"TA041","Number of iterations of given process developing supporting materials","-","Activity","Project studies and plans; Data, software, tools and models","-","-","Number",null,"TA041"]
[null,"TA042","Survey conducted that measures quality or client satisfaction","-","Activity","Project studies and plans","-","-","Yes/No",null,"TA042"]
[null,"TA043","Number of respondents surveyed","-","Activity","Project studies and plans","-","-","Number",null,"TA043"]
[null,"TA044","Number of participants that state in survey to apply new skills effectively","-","Output","-","Capacity building: Technical capacity","-","Number",null,"TA044"]
[null,"TA045","Number of participants that state in survey to be satisfied","-","Uptake","Project studies and plans","-","-","Number",null,"TA045"]
[null,"TA046","Number of users or page visits","-","Uptake","Data, software, tools and models","-","-","Number",null,"TA046"]
[null,"TA047","Average monthly number of downloads","-","Uptake","Data, software, tools and models","-","-","Number",null,"TA047"]
[null,"TA048","Number of sites on which a tool is embedded ","-","Uptake","Data, software, tools and models","-","-","Number",null,"TA048"]
[null,"TA049","Number of models described and communicated to potential users","-","Activity","Data, software, tools and models","-","-","Number",null,"TA049"]
[null,"TA050","Number of tools created","-","Activity","Data, software, tools and models","-","-","Number",null,"TA050"]
[null,"TA051","Number of stakeholders that present tool or its results","-","Output","-","Capacity building: Technical capacity","-","Number",null,"TA051"]
[null,"TA052","Number of users that report the tool contribute to programme objectives","-","Output","-","Capacity building: Technical capacity","-","Number",null,"TA052"]
[null,"TA053","Number of policymakers external to the programme that plan to adopt tool methodology","-","Output","-","Capacity building: Technical capacity","-","Number",null,"TA053"]
[null,"TA054","Number of countries where high-level government representatives or stakeholders refer to the tool","-","Uptake","Data, software, tools and models","-","-","Number",null,"TA054"]
[null,"TA055","Number of countries that have launched the tool","-","Uptake","Data, software, tools and models","-","-","Number",null,"TA055"]
[null,"TA056","Number of countries that have launched the tool and it is used","-","Uptake","Data, software, tools and models","-","-","Number",null,"TA056"]
[null,"TA057","Number of countries that publish additional documentation for the tool","-","Uptake","Data, software, tools and models","-","-","Number",null,"TA057"]
[null,"TA058","Number of countries where the tool is mentioned positively in at least three press mentions","-","Uptake","Data, software, tools and models","-","-","Number",null,"TA058"]
[null,"TA059","Number of programme local representatives that are satisfied with the impact of the tool","-","Output","-","Capacity building: Technical capacity","-","Number",null,"TA059"]
[null,"TA060","Number of countries that have launched an own version of the tool","-","Output","-","Capacity building: Technical capacity","-","Number",null,"TA060"]
[null,"TA061","Number of workshops and/or training sessions to support the tools","-","Activity","Data, software, tools and models","-","-","Yes/No",null,"TA061"]
[null,"TA062","Improved data availability among beneficiaries","Can be assessed through surveys","Output","-","Capacity building: Technical capacity","-","Yes/No",null,"TA062"]
[null,"TA063","Number of organisations with improved data availability, IT hardware or software","-","Uptake","Data, software, tools and models","-","-","Number",null,"TA063"]
[null,"TA064","Share of users satisfied with data, software, tools or models","-","Uptake","Data, software, tools and models","-","-","Percentage",null,"TA064"]
[null,"TA065","Percentage of agreed improvements for tool implemented","-","Activity","Data, software, tools and models","-","-","Percentage",null,"TA065"]
[null,"TA066","Model sensitivity communication completed","-","Activity","Data, software, tools and models","-","-","Yes/No",null,"TA066"]
[null,"TA067","Number of knowledge products produced","-","Activity","Research & development","-","-","Number",null,"TA067"]
[null,"TA068","Number of citations in academic or policy literature","-","Uptake","Research & development","-","-","Number",null,"TA068"]
[null,"TA069","Knowledge products use multidisciplinary approaches","-","Activity","Research & development","-","-","Narrative",null,"TA069"]
[null,"TA070","Participation of targeted group in research","-","Uptake","Research & development","-","-","Yes/No",null,"TA070"]
[null,"TA071","Proportion of research/knowledge produced rated good by independent researcher or useful by audience","-","Uptake","Research & development","-","-","Percentage",null,"TA071"]
[null,"TA072","Number (and diversity) of stakeholder accessing the knowledge products","-","Uptake","Research & development","-","-","Number",null,"TA072"]
[null,"TA073","Targeted institution or mechanism established or strengthened ","-","Output","-","Capacity building: Institutional capacity","-","Yes/No",null,"TA073"]
[null,"TA074","Number of countries with improved regulations and laws","-","Output","-","Capacity building: Institutional capacity","-","Number",null,"TA074"]
[null,"TA075","Number/percentage of units that provide data","-","Output","-","Capacity building: Institutional capacity","-","Number, Percentage",null,"TA075"]
[null,"TA076","Number of (countries with) approved process plans","Can be assessed based on the number of plans themselves, or at the country level (if multiple organisations within a country may develop plans)","Output","-","Capacity building: Institutional capacity","-","Number",null,"TA076"]
[null,"TA077","Percentage of approved funding disbursed from programme to supported beneficiaries","-","Output","-","Capacity building: Institutional capacity","-","Percentage",null,"TA077"]
[null,"TA078","Number of events or reports that share lessons learned on institution building","-","Output","-","Capacity building: Institutional capacity","-","Number",null,"TA078"]
[null,"TA079","Number of policies, regulations and standards adopted or amended due to programme support","-","Outcome","-","-","Increased or improved policy development or execution","Number",null,"TA079"]
[null,"TA080","Number of recipients or stakeholders that report improved institutional functioning","-","Output","-","Capacity building: Institutional capacity","-","Number",null,"TA080"]
[null,"TA081","Average reported satisfaction of countries with capacity support","-","Output","-","Capacity building: Institutional capacity","-","Score",null,"TA081"]
[null,"TA082","Average number of days until payout is conducted by the government authority ","Intended to measure the internal efficiency of a supported organisation (i.e. improved institutional capacity to process payments)","Output","-","Capacity building: Institutional capacity","-","Number",null,"TA082"]
[null,"TA083","Number of units or officials supported by institutional capacity building","-","Output","-","Capacity building: Institutional capacity","-","Number",null,"TA083"]
[null,"TA084","Number of project plans improved or progressed with programme support","-","Output","-","Capacity building: Institutional capacity","-","Number",null,"TA084"]
[null,"TA085","Number of plans developed that include programme objective","-","Output","-","Capacity building: Institutional capacity","-","Number",null,"TA085"]
[null,"TA086","Percentage of (satisfactory) outputs that are ready or implemented within the timeline","-","Output","-","Capacity building: Institutional capacity","-","Percentage",null,"TA086"]
[null,"TA087","Knowledge products launched on time","-","Activity","Specialist research, inc. market / policy / legal / regulatory / technology research briefs","-","-","Yes/No",null,"TA087"]
[null,"TA088","Internal knowledge management strategy developed, implemented and reviewed","-","Output","-","Capacity building: Technical capacity","-","Yes/No",null,"TA088"]
[null,"TA089","Number of enquiries from non-participants ","-","Uptake","Data, software, tools and models","-","-","Number",null,"TA089"]
[null,"TA090","Knowledge products created with programme support","-","Activity","Data, software, tools and models","-","-","Yes/No",null,"TA090"]
[null,"TA091","Percentage of data that complies with international standards","-","Output","-","Capacity building: Technical capacity","-","Percentage",null,"TA091"]
[null,"TA092","Number of knowledge products created with programme support","-","Output","-","Capacity building: Technical capacity","-","Number",null,"TA092"]
[null,"TA093","Number of participants rate capacity building activities as good or very good","-","Output","-","Capacity building: Technical capacity","-","Number",null,"TA093"]
[null,"TA094","Number of countries that use knowledge product","-","Output","-","Capacity building: Technical capacity","-","Number",null,"TA094"]
[null,"TA095","Number of stakeholders that state the capacity building has contributed to programme objectives","-","Output","-","Capacity building: Technical capacity","-","Number",null,"TA095"]
[null,"TA096","Number of client days of training, disaggregated by groups and topic","-","Output","-","Capacity building: Technical capacity","-","Number",null,"TA096"]
[null,"TA097","Number of times/cases/countries/participants support is provided (to)","-","Activity","Workshops; Training events / courses; Specialist research, inc. market / policy / legal / regulatory / technology research briefs; Project studies and plans","-","-","Number",null,"TA097"]
[null,"TA098","Number of publications written with support","-","Output","-","Capacity building: Technical capacity","-","Number",null,"TA098"]
[null,"TA099","Number of countries where stakeholders are satisfied with the knowledge product's functionality or performance","-","Output","-","Capacity building: Technical capacity","-","Number",null,"TA099"]
[null,"TA100","Number of cases where government or stakeholder changed behaviour in response to capacity building","-","Output","-","Capacity building: Technical capacity","-","Number",null,"TA100"]
[null,"TA101","Number of cases/participants of capacity building support","-","Uptake","Workshops; Training events / courses; Specialist research, inc. market / policy / legal / regulatory / technology research briefs; Project studies and plans","-","-","Number",null,"TA101"]
[null,"TA102","Number of cases where stakeholder report that  government or stakeholder changed behaviour in response to capacity building","-","Output","-","Capacity building: Technical capacity","-","Number",null,"TA102"]
[null,"TA103","Share of global emissions that is covered by capacity building programme","-","Uptake","Project studies and plans","-","-","Percentage",null,"TA103"]
[null,"TA104","Programme recipients complete technical analysis","-","Output","-","Capacity building: Technical capacity","-","Yes/No",null,"TA104"]
[null,"TA105","Number of cases of capacity building support","-","Activity","-","-","-","Number",null,"TA105"]
[null,"TA106","Number of (active) participants in knowledge exchange","-","Uptake","Workshops; Training events / courses","-","-","Number",null,"TA106"]
[null,"TA107","Number of institutional mechanisms developed/strengthened","-","Output","-","Capacity building: Technical capacity","-","Number",null,"TA107"]
[null,"TA108","Expenditure on knowledge products","-","Activity","Specialist research, inc. market / policy / legal / regulatory / technology research briefs","-","-","Number",null,"TA108"]
[null,"TA109","Knowledge product created","-","Output","-","Capacity building: Technical capacity","-","Yes/No",null,"TA109"]
[null,"TA110","Percentage of participants achieve certain performance measure on accountability","-","Output","-","Capacity building: Technical capacity","-","Percentage",null,"TA110"]
[null,"TA111","Number of graduations after programme training","-","Output","-","Capacity building: Technical capacity","-","Number",null,"TA111"]
[null,"TA112","Number of participants improved processes","-","Output","-","Capacity building: Technical capacity","-","Number",null,"TA112"]
[null,"TA113","Percentage of units that have better local representation","-","Output","-","Capacity building: Technical capacity","-","Percentage",null,"TA113"]
[null,"TA114","Percentage of units with better funding as result of increased capacity","-","Output","-","Capacity building: Technical capacity","-","Percentage",null,"TA114"]
[null,"TA115","Minimum amount of events organised","-","Activity","Conferences, seminars or networking events; Public awareness campaigns","-","-","Yes/No",null,"TA115"]
[null,"TA116","Number of policymakers that have increased awareness","-","Output","-","Awareness raising","-","Number",null,"TA116"]
[null,"TA117","Number of media events","-","Activity","Conferences, seminars or networking events; Public awareness campaigns","-","-","Number",null,"TA117"]
[null,"TA118","Number of scientific publication that refer to the programme","-","Output","-","Awareness raising","-","Number",null,"TA118"]
[null,"TA119","Number of communication products","-","Activity","Conferences, seminars or networking events; Public awareness campaigns","-","-","Number",null,"TA119"]
[null,"TA120","Programme managers report satisfactory outreach","-","Uptake","Public awareness campaigns","-","-","Yes/No",null,"TA120"]
[null,"TA121","Number of projects that resulted in the development of policy","-","Outcome","-","-","Increased or improved policy development or execution","Number",null,"TA121"]
[null,"TA122","(Number of) Policies developed, amended or adopted","-","Outcome","-","-","Increased or improved policy development or execution","Number",null,"TA122"]
[null,"TA123","Certain number of intersectoral agreements in place","-","Outcome","-","-","Increased or improved policy development or execution","Yes/No",null,"TA123"]
[null,"TA124","Certain number of officers to enforce policy in place","-","Output","-","Domestic policy support","-","Yes/No",null,"TA124"]
[null,"TA125","Number of jurisdictions with improved policies","-","Outcome","-","-","Increased or improved policy development or execution","Number",null,"TA125"]
[null,"TA126","Number of projects with operational m&e plans","-","Outcome","-","-","Improved operation of processes or assets (inc. e.g. electricity grid stability, agricultural livelihoods, forest management)","Number",null,"TA126"]
[null,"TA127","Governance structures improved","-","Output","-","Domestic policy support","-","Narrative",null,"TA127"]
[null,"TA128","Public debate stimulated","-","Output","-","Domestic policy support","-","Narrative",null,"TA128"]
[null,"TA129","Policy support informs stakeholders","-","Output","-","Domestic policy support","-","Narrative",null,"TA129"]
[null,"TA130","Number of times international policy support is provided","-","Activity","Training events / courses","-","-","Number",null,"TA130"]
[null,"TA131","Number of formal submissions that have received programme support","-","Output","-","International policy support","-","Number",null,"TA131"]
[null,"TA132","Number of knowledge products created","-","Output","-","International policy support; Financing support","-","Number",null,"TA132"]
[null,"TA133","Number of cases where participants changed behaviour in response to international policy support","-","Output","-","International policy support","-","Number, Narrative",null,"TA133"]
[null,"TA134","International policy coordination takes place","-","Output","-","International policy support","-","Narrative",null,"TA134"]
[null,"TA135","Number of project studies (e.g. pre-feasibility, feasibility, design, structure)","-","Output","-","Project development support","-","Number",null,"TA135"]
[null,"TA136","(Number of) Projects that pass through certain stage that requires approval","-","Output","-","Project development support; Process/asset operation support","-","Number",null,"TA136"]
[null,"TA137","Percentage of programmes that pass through certain stage that requires approval","-","Output","-","Project development support","-","Percentage",null,"TA137"]
[null,"TA138","Certain project strategy document is developed and delivered","-","Output","-","Project development support","-","Yes/No",null,"TA138"]
[null,"TA139","Number of breaches to project obligations","-","Output","-","Project development support","-","Number",null,"TA139"]
[null,"TA140","Number of bidders for projects","-","Output","-","Project development support","-","Number",null,"TA140"]
[null,"TA141","Percentage of participants that use or comply with certain elements required in project plans","-","Output","-","Project development support","-","Percentage",null,"TA141"]
[null,"TA142","Number of units that operate at certain standard","-","Output","-","Project development support; Process/asset operation support","-","Number",null,"TA142"]
[null,"TA143","Number of units developed or improved","-","Output","-","Project development support","-","Number",null,"TA143"]
[null,"TA144","Number of registered governments and stakeholders","-","Uptake","Workshops; Training events / courses; Conferences, seminars or networking events","-","-","Number",null,"TA144"]
[null,"TA145","Proportion of credit lines/capital deployed","-","Output","-","Project development support","-","Percentage",null,"TA145"]
[null,"TA146","Duration of certain project step","-","Output","-","Project development support","-","Number",null,"TA146"]
[null,"TA147","Number of projects managed by certain unit","-","Output","-","Project development support","-","Number",null,"TA147"]
[null,"TA148","Specified process management structures in place","-","Output","-","Process/asset operation support","-","Yes/No",null,"TA148"]
[null,"TA149","Process documents are produced (and publicly available)","-","Output","-","Process/asset operation support","-","Yes/No",null,"TA149"]
[null,"TA150","Percentage of participants that use or comply with certain elements required in project/process plans","-","Output","-","Process/asset operation support","-","",null,"TA150"]
[null,"TA151","Process management documents shared between participants","-","Output","-","Process/asset operation support","-","Yes/No",null,"TA151"]
[null,"TA152","Understanding the level and reason for pass/fail/return of certain process management step","-","Output","-","Process/asset operation support","-","Narrative",null,"TA152"]
[null,"TA153","(Number/percentage of) Projects that pass through certain stage that requires approval","Measures ability of projects to achieve milestones due to improved functioning","Output","-","Process/asset operation support","-","Number, Percentage",null,"TA153"]
[null,"TA154","Sufficient resources for certain process management step available","-","Output","-","Process/asset operation support","-","Narrative",null,"TA154"]
[null,"TA155","Proportion of stakeholders reporting improved process management or satisfaction","-","Output","-","Process/asset operation support","-","Percentage",null,"TA155"]
[null,"TA156","(Number of) System enhancements developed","-","Output","-","Process/asset operation support","-","Number, Percentage",null,"TA156"]
[null,"TA157","Extent of policy compliance","-","Output","-","Process/asset operation support","-","Narrative",null,"TA157"]
[null,"TA158","(Percentage of participants with the) Specified process management structures in place","-","Output","-","Process/asset operation support","-","Percentage",null,"TA158"]
[null,"TA159","Percentage reduction in audit arrears","-","Output","-","Process/asset operation support","-","Percentage",null,"TA159"]
[null,"TA160","How well a programme converts inputs into intended output (e.g. output unit costs)","-","Output","-","Process/asset operation support","-","Number",null,"TA160"]
[null,"TA161","Number of participants form better relationships with government","-","Output","-","Process/asset operation support","-","Number",null,"TA161"]
[null,"TA162","Average/increased capacity score","-","Output","-","Process/asset operation support","-","Score",null,"TA162"]
[null,"TA163","Number of companies bidding for project","-","Output","-","Financing support","-","Number",null,"TA163"]
[null,"TA164","Number of projects supported","-","Activity","Specialist research, inc. market / policy / legal / regulatory / technology research briefs; Strategic organisational guidance","-","-","Number",null,"TA164"]
[null,"TA165","(Number of) Finance mechanisms pass through certain stage that requires approval","-","Output","-","Financing support","-","Number",null,"TA165"]
[null,"TA166","Number of sanctions against insufficient finance procedures","-","Output","-","Financing support","-","Number",null,"TA166"]
[null,"TA167","Reporting/documentation delivered (on time and following the agreed standards)","-","Output","-","Financing support","-","Yes/No",null,"TA167"]
[null,"TA168","Finance support reaches certain maturity","-","Output","-","Financing support","-","Yes/No",null,"TA168"]
[null,"TA169","Increased efficiency of internal fund measured as programme funds disbursed as percentage of total portfolio","-","Output","-","Financing support","-","Percentage",null,"TA169"]
[null,"TA170","Knowledge products created","-","Output","-","Financing support","-","Yes/No",null,"TA170"]
[null,"TA171","Ratio of mobilised versus provided funding (leverage ratio)","-","Outcome","-","-","Increased or improved allocation of domestic climate finance; Increased or improved access to international climate finance","Number",null,"TA171"]
[null,"TA172","Volume of operational expenditures for finance support","-","Outcome","-","-","Increased or improved allocation of domestic climate finance; Increased or improved access to international climate finance","Number",null,"TA172"]
[null,"TA173","Number of trust funds providing financial support","-","Output","-","Financing support","-","Number",null,"TA173"]
[null,"TA174","Stakeholders informed about programme","-","Uptake","Strategic organisational guidance","-","-","Yes/No",null,"TA174"]
[null,"TA175","Number of cases where programme has contributed to value chain or business environment","-","Output","-","Public-private co-ordination support","-","Narrative",null,"TA175"]
[null,"TA176","(Number of) Public-private cooperation reaches certain maturity","-","Output","-","Public-private co-ordination support","-","Number",null,"TA176"]
[null,"TA177","(Number of) Public-private cooperation reaches certain maturity due to programme support","-","Output","-","Public-private co-ordination support","-","Number",null,"TA177"]
[null,"TA178","(Number of) Public-private cooperation passes through certain maturity due to programme support","-","Output","-","Public-private co-ordination support","-","Number",null,"TA178"]
[null,"TA179","Number of market participants that received support","-","Uptake","Strategic organisational guidance","-","-","Number",null,"TA179"]
[null,"TA180","Number of co-production processes supported","-","Output","-","Public-private co-ordination support","-","Number",null,"TA180"]
[null,"TA181","Level of integration of climate change in policymaking as result of programme","-","Outcome","-","-","Increased or improved policy development or execution; Improved domestic co-ordination","Narrative",null,"TA181"]
[null,"TA182","Percentage/number of countries where programme has encouraged movement or policies towards end goal","-","Outcome","-","-","Increased or improved policy development or execution","Number, Percentage",null,"TA182"]
[null,"TA183","Number of programme countries that raise their ambition partly due to the programme","-","Outcome","-","-","Increased or improved policy development or execution","Number",null,"TA183"]
[null,"TA184","Number of non-programme countries use programme outputs for policy design","-","Uptake","Specialist research, inc. market / policy / legal / regulatory / technology research briefs; Data, software, tools and models","-","-","Number",null,"TA184"]
[null,"TA185","Number/percentage of people in the target group benefiting from the programme","-","Output","-","Public-private co-ordination support","Increased or improved policy development or execution","Number, Percentage",null,"TA185"]
[null,"TA186","Land area covered by the policy","-","Outcome","-","-","Increased or improved policy development or execution","Number",null,"TA186"]
[null,"TA187","Policy implemented/ progress towards policy implementation","-","Outcome","-","-","Increased or improved policy development or execution","Yes/No",null,"TA187"]
[null,"TA188","Revenue raised from policy","-","Outcome","-","-","Increased or improved policy development or execution","Number",null,"TA188"]
[null,"TA189","Number of international submissions (to policy fora, funding opportunities, etc) attributable to programme support","-","Output","-","International policy support","-","Number",null,"TA189"]
[null,"TA190","Change in number of cases of policy enforcement","-","Outcome","-","-","Increased or improved policy development or execution; Improved operation of processes or assets (inc. e.g. electricity grid stability, agricultural livelihoods, forest management)","Number",null,"TA190"]
[null,"TA191","Number of policy procedures/framework strengthened ","-","Outcome","-","-","Increased or improved policy development or execution","Number",null,"TA191"]
[null,"TA192","Percentage/number of policies towards end goal programme has supported","-","Outcome","-","-","Increased or improved policy development or execution","Number, Percentage",null,"TA192"]
[null,"TA193","Number of countries reporting policy procedures/framework strengthened ","-","Outcome","-","-","Increased or improved policy development or execution","Number",null,"TA193"]
[null,"TA194","(Number of) Knowledge products are produced/launched (on time)","-","Activity","Specialist research, inc. market / policy / legal / regulatory / technology research briefs","-","-","Number",null,"TA194"]
[null,"TA195","Number of countries that have accessed knowledge product","-","Uptake","Specialist research, inc. market / policy / legal / regulatory / technology research briefs","-","-","Number",null,"TA195"]
[null,"TA196","Institutional knowledge increases as result of programme","-","Outcome","-","-","Increased access to information/knowledge","Narrative",null,"TA196"]
[null,"TA197","Knowledge product is used and applied by (number of) stakeholders","-","Uptake","Specialist research, inc. market / policy / legal / regulatory / technology research briefs","-","-","Yes/No",null,"TA197"]
[null,"TA198","Knowledge product is assessed as useful by stakeholders","-","Uptake","Specialist research, inc. market / policy / legal / regulatory / technology research briefs","-","-","Yes/No",null,"TA198"]
[null,"TA199","Percentage of targeted population that is aware of certain issue","-","Outcome","-","-","Increased access to information/knowledge; Improved domestic co-ordination","Percentage",null,"TA199"]
[null,"TA200","Number of countries that refer to the knowledge product","-","Uptake","Specialist research, inc. market / policy / legal / regulatory / technology research briefs","-","-","Number",null,"TA200"]
[null,"TA201","Number of policies where better information is used","-","Outcome","-","-","Increased access to information/knowledge","Number",null,"TA201"]
[null,"TA202","Number of policymakers/stakeholder that use new information for decision making","-","Outcome","-","-","Increased access to information/knowledge","Number",null,"TA202"]
[null,"TA203","Number of countries that are able to create and develop knowledge products themselves","-","Outcome","-","-","Increased access to information/knowledge","Number",null,"TA203"]
[null,"TA204","Players not part of the programme use lessons learned and replicate programme outputs","-","Output","-","Capacity building: Technical capacity; Process/asset operation support","-","Narrative",null,"TA204"]
[null,"TA205","Percentage of finance disbursement that takes place at the local level rather than the operational framework of implementation","-","Outcome","-","-","Improved domestic co-ordination","Percentage",null,"TA205"]
[null,"TA206","Area of land covered by agreements between governments/authorities, associations and private sectors","-","Outcome","-","-","Improved domestic co-ordination","Number",null,"TA206"]
[null,"TA207","Evidence that data is collected, analysed and used by government and private sector","-","Output","-","Process/asset operation support","-","Narrative",null,"TA207"]
[null,"TA208","Extent to which targeted stakeholders use tools and information (including those supported by the programme) ","-","Output","-","Process/asset operation support","-","Narrative",null,"TA208"]
[null,"TA209","Percentage of countries that have adopted policies and recommendations plans, programmes and institutions","-","Output","-","Domestic policy support","-","Percentage",null,"TA209"]
[null,"TA210","Number of cases where final documents in international climate negotiations include positions, submissions and/or preferred  outcomes from developing countries","-","Outcome","-","-","Improved international co-ordination","Number",null,"TA210"]
[null,"TA211","Number of cases where there has been enhanced coordination and collaboration amongst negotiators in progressive alliances","-","Outcome","-","-","Improved international co-ordination","Number",null,"TA211"]
[null,"TA212","Number of cases where women have taken key role in international negotiations with support of the programme","-","Outcome","-","-","Improved international co-ordination","Number",null,"TA212"]
[null,"TA213","Number of countries/projects supported by the programme","-","Activity","Secondments; Expert guidance and review","-","-","Number",null,"TA213"]
[null,"TA214","New innovations are deployed at scale","-","Outcome","-","-","Increased or improved investment in climate-related projects/assets","Yes/No",null,"TA214"]
[null,"TA215","Percentage of private investors placing funds in specific area","-","Outcome","-","-","Increased or improved investment in climate-related projects/assets","Percentage",null,"TA215"]
[null,"TA216","ESG standards mainstreamed/adopted in climate finance","-","Outcome","-","-","Increased or improved investment in climate-related projects/assets","Yes/No",null,"TA216"]
[null,"TA217","Fund performs well compared to market indices","-","Outcome","-","-","Increased or improved investment in climate-related projects/assets","Number",null,"TA217"]
[null,"TA218","Amount of additional investment/finance available (due to the programme support)","-","Outcome","-","-","Increased or improved investment in climate-related projects/assets","Number",null,"TA218"]
[null,"TA219","Number of projects in operation","-","Outcome","-","-","Increased or improved investment in climate-related projects/assets","Number",null,"TA219"]
[null,"TA220","Number of projects developed/in operation","-","Outcome","-","-","Increased or improved investment in climate-related projects/assets","Number",null,"TA220"]
[null,"TA221","Number of projects that receive additional investment","-","Outcome","-","-","Increased or improved investment in climate-related projects/assets","Number",null,"TA221"]
[null,"TA222","Number of direct jobs created as result of support to investment","-","Outcome","-","-","Increased or improved investment in climate-related projects/assets","Number",null,"TA222"]
[null,"TA223","Amount of available finance assessed by the government","-","Outcome","-","-","Increased or improved investment in climate-related projects/assets","Number",null,"TA223"]
[null,"TA224","Annual investment in certain area","-","Outcome","-","-","Increased or improved investment in climate-related projects/assets","Number",null,"TA224"]
[null,"TA225","The investment selected by the authorities contributes to the identified climate goal","-","Outcome","-","-","Increased or improved investment in climate-related projects/assets","Yes/No",null,"TA225"]
[null,"TA226","Unit/project takes lessons learned into account","-","Output","-","Process/asset operation support","-","Narrative",null,"TA226"]
[null,"TA227","MRV system is operational","-","Outcome","-","-","Increased or improved policy development or execution; Improved operation of processes or assets (inc. e.g. electricity grid stability, agricultural livelihoods, forest management)","Yes/No",null,"TA227"]
[null,"TA228","Number of people/area of land that benefits from improved operation","-","Outcome","-","-","Improved operation of processes or assets (inc. e.g. electricity grid stability, agricultural livelihoods, forest management)","Number",null,"TA228"]
[null,"TA229","Area covered by improved operation","-","Outcome","-","-","Improved operation of processes or assets (inc. e.g. electricity grid stability, agricultural livelihoods, forest management)","Number",null,"TA229"]
[null,"TA230","Number of instruments designed to improve operations","-","Output","-","Process/asset operation support","-","Number",null,"TA230"]
[null,"TA231","Number of alliances established with key stakeholders","-","Output","-","Process/asset operation support","-","Number",null,"TA231"]
[null,"TA232","Number of people not participating in programme using programme outputs (spillovers)","-","Uptake","Specialist research, inc. market / policy / legal / regulatory / technology research briefs","-","-","Number",null,"TA232"]
[null,"TA233","Country features in international rankings","-","Outcome","-","-","Improved operation of processes or assets (inc. e.g. electricity grid stability, agricultural livelihoods, forest management)","Yes/No",null,"TA233"]
[null,"TA234","Reduction in average time needed to process certain operations","-","Outcome","-","-","Improved operation of processes or assets (inc. e.g. electricity grid stability, agricultural livelihoods, forest management)","Number",null,"TA234"]
[null,"TA235","Units that reduce average time needed to process certain operation beyond a certain threshold","-","Outcome","-","-","Improved operation of processes or assets (inc. e.g. electricity grid stability, agricultural livelihoods, forest management)","Yes/No",null,"TA235"]
[null,"TA236","Reduction in accidents, damage or hazardous events","-","Outcome","-","-","Improved operation of processes or assets (inc. e.g. electricity grid stability, agricultural livelihoods, forest management)","Number",null,"TA236"]
[null,"TA237","Evidence of data-driven decision-making","-","Output","-","Process/asset operation support","-","Narrative",null,"TA237"]
[null,"TA238","Perception of stakeholders that operation are run well","-","Outcome","-","-","Improved operation of processes or assets (inc. e.g. electricity grid stability, agricultural livelihoods, forest management)","Yes/No",null,"TA238"]
[null,"TA239","Percentage increase of resilient infrastructure","-","Outcome","-","-","Improved operation of processes or assets (inc. e.g. electricity grid stability, agricultural livelihoods, forest management)","Percentage",null,"TA239"]
[null,"TA240","Percentage of installed units that are still operating at an acceptable level of eficiency after 1 year","Most applicable to specific technologies where efficiency can be measured on a technical basis","Outcome","-","-","Improved operation of processes or assets (inc. e.g. electricity grid stability, agricultural livelihoods, forest management)","Percentage",null,"TA240"]
[null,"TA241","Number of people that receive assistance compared to initially targeted group","-","Outcome","-","-","Improved operation of processes or assets (inc. e.g. electricity grid stability, agricultural livelihoods, forest management)","Number",null,"TA241"]
[null,"TA242","Number of policies/organisations where data is better used","-","Output","-","Process/asset operation support","-","Number",null,"TA242"]
[null,"TA243","Government delivers with automatic and clearly defined triggers","-","Outcome","-","-","Improved operation of processes or assets (inc. e.g. electricity grid stability, agricultural livelihoods, forest management)","Yes/No",null,"TA243"]
[null,"TA244","Savings achieved (compared to pre-intervention)","-","Outcome","-","-","Improved operation of processes or assets (inc. e.g. electricity grid stability, agricultural livelihoods, forest management)","Number",null,"TA244"]
[null,"TA245","Proposed system enhancement are implemented","-","Outcome","-","-","Improved operation of processes or assets (inc. e.g. electricity grid stability, agricultural livelihoods, forest management)","Yes/No",null,"TA245"]
[null,"TA246","Percentage of countries whose agencies improved quality and timeliness of (emergency) response","-","Outcome","-","-","Improved operation of processes or assets (inc. e.g. electricity grid stability, agricultural livelihoods, forest management)","Percentage",null,"TA246"]
[null,"TA247","Level of installed capacity of low-carbon energy installed as result of programme support","-","Outcome","-","-","Increased access to climate goods and services","Number",null,"TA247"]
[null,"TA248","Number of (additional) passengers of low-carbon transport as result of programme support","-","Outcome","-","-","Increased access to climate goods and services","Number",null,"TA248"]
[null,"TA249","Number of green mini-grids installed as result of programme support","-","Outcome","-","-","Increased access to climate goods and services","Number",null,"TA249"]
[null,"TA250","Number of direct jobs in climate goods sector created","-","Outcome","-","-","Increased access to climate goods and services","Number",null,"TA250"]
[null,"TA251","Volume of increased (climate) finance (as result of programme support)","-","Outcome","-","-","Improved domestic co-ordination; Increased or improved allocation of domestic climate finance; Increased or improved access to international climate finance","Number",null,"TA251"]
[null,"TA252","Number of direct jobs created (as result of programme support)","-","Outcome","-","-","Increased or improved policy development or execution; Improved operation of processes or assets (inc. e.g. electricity grid stability, agricultural livelihoods, forest management); Increased or improved allocation of domestic climate finance; Increased or improved access to international climate finance","Number",null,"TA252"]
[null,"TA253","Ratio of climate finance raised to programme funding","-","Outcome","-","-","Increased or improved allocation of domestic climate finance","Number",null,"TA253"]
[null,"TA254","Number of countries with increased financial resilience to disasters","-","Outcome","-","-","Increased or improved allocation of domestic climate finance","Number",null,"TA254"]
[null,"TA255","Volume of increased climate finance that use programme's methodology","-","Outcome","-","-","Increased or improved access to international climate finance","Number",null,"TA255"]
[null,"TA256","Number and duration of secondments","Can be measured in terms of the number of individual secondments, or total length of secondments (for example in person-days).","Activity","Secondments","-","-","Number",null,"TA256"]
[null,"TA257","Number of organisations or government departments/units supported by secondments","-","Uptake","Secondments","-","-","Number",null,"TA257"]
[null,"","","","","","","","",null,""]
[null,"","","","","","","","",null,""]
[null,"","","","","","","","",null,""]
[null,"","","","","","","","",null,""]
[null,"","","","","","","","",null,""]
[null,"","","","","","","","",null,""]
[null,"","","","","","","","",null,""]
[null,"","","","","","","","",null,""]
[null,"","","","","","","","",null,""]
[null,"","","","","","","","",null,""]
[null,"","","","","","","","",null,""]
[null,"","","","","","","","",null,""]
[null,"","","","","","","","",null,""]
[null,"","","","","","","","",null,""]
[null,"","","","","","","","",null,""]
[null,"","","","","","","","",null,""]
[null,"","","","","","","","",null,""]
[null,"","","","","","","","",null,""]
[null,"","","","","","","","",null,""]
[null,"","","","","","","","",null,""]
[null,"","","","","","","","",null,""]
[null,"","","","","","","","",null,""]
[null,"","","","","","","","",null,""]
[null,"","","","","","","","",null,""]
[null,"","","","","","","","",null,""]
[null,"","","","","","","","",null,""]
[null,"","","","","","","","",null,""]
[null,"","","","","","","","",null,""]
[null,"","","","","","","","",null,""]
[null,"","","","","","","","",null,""]
[null,"","","","","","","","",null,""]
[null,"","","","","","","","",null,""]
[null,"","","","","","","","",null,""]
[null,"","","","","","","","",null,""]
[null,"","","","","","","","",null,""]
[null,"","","","","","","","",null,""]
[null,"","","","","","","","",null,""]
[null,"","","","","","","","",null,""]
[null,"","","","","","","","",null,""]
[null,"","","","","","","","",null,""]
[null,"","","","","","","","",null,""]
[null,"","","","","","","","",null,""]
[null,"","","","","","","","",null,""]
[null,"","","","","","","","",null,""]
[null,"","","","","","","","",null,""]
[null,"","","","","","","","",null,""]
[null,"","","","","","","","",null,""]
[null,"","","","","","","","",null,""]
[null,"","","","","","","","",null,""]
[null,"","","","","","","","",null,""]
[null,"","","","","","","","",null,""]
[null,"","","","","","","","",null,""]
[null,"","","","","","","","",null,""]
[null,"","","","","","","","",null,""]
[null,"","","","","","","","",null,""]
[null,"","","","","","","","",null,""]
[null,"","","","","","","","",null,""]
[null,"","","","","","","","",null,""]
[null,"","","","","","","","",null,""]
[null,"","","","","","","","",null,""]
[null,"","","","","","","","",null,""]
[null,"","","","","","","","",null,""]
[null,"","","","","","","","",null,""]
[null,"","","","","","","","",null,""]
[null,"","","","","","","","",null,""]
[null,"","","","","","","","",null,""]
[null,"","","","","","","","",null,""]
[null,"","","","","","","","",null,""]
[null,"","","","","","","","",null,""]
[null,"","","","","","","","",null,""]
[null,"","","","","","","","",null,""]
[null,"","","","","","","","",null,""]
[null,"","","","","","","","",null,""]
[null,"","","","","","","","",null,""]
[null,"","","","","","","","",null,""]
[null,"","","","","","","","",null,""]
[null,"","","","","","","","",null,""]
[null,"","","","","","","","",null,""]
[null,"","","","","","","","",null,""]
[null,"","","","","","","","",null,""]
[null,"","","","","","","","",null,""]
[null,"","","","","","","","",null,""]
[null,"","","","","","","","",null,""]
[null,"","","","","","","","",null,""]
[null,"","","","","","","","",null,""]
[null,"","","","","","","","",null,""]
[null,"","","","","","","","",null,""]
[null,"","","","","","","","",null,""]
[null,"","","","","","","","",null,""]
[null,"","","","","","","","",null,""]
[null,"","","","","","","","",null,""]
[null,"","","","","","","","",null,""]
[null,"","","","","","","","",null,""]
[null,"","","","","","","","",null,""]
[null,"","","","","","","","",null,""]
[null,"","","","","","","","",null,""]
[null,"","","","","","","","",null,""]
[null,"","","","","","","","",null,""]
[null,"","","","","","","","",null,""]
[null,"","","","","","","","",null,""]
[null,"","","","","","","","",null,""]
[null,"","","","","","","","",null,""]
[null,"","","","","","","","",null,""]
[null,"","","","","","","","",null,""]
[null,"","","","","","","","",null,""]
[null,"","","","","","","","",null,""]
[null,"","","","","","","","",null,""]
[null,"","","","","","","","",null,""]
[null,"","","","","","","","",null,""]
[null,"","","","","","","","",null,""]
[null,"","","","","","","","",null,""]
[null,"","","","","","","","",null,""]
[null,"","","","","","","","",null,""]
[null,"","","","","","","","",null,""]
[null,"","","","","","","","",null,""]
[null,"","","","","","","","",null,""]
[null,"","","","","","","","",null,""]
[null,"","","","","","","","",null,""]
[null,"","","","","","","","",null,""]
[null,"","","","","","","","",null,""]
[null,"","","","","","","","",null,""]
[null,"","","","","","","","",null,""]
[null,"","","","","","","","",null,""]
[null,"","","","","","","","",null,""]
[null,"","","","","","","","",null,""]
[null,"","","","","","","","",null,""]
[null,"","","","","","","","",null,""]
[null,"","","","","","","","",null,""]
[null,"","","","","","","","",null,""]
[null,"","","","","","","","",null,""]
[null,"","","","","","","","",null,""]
[null,"","","","","","","","",null,""]
[null,"","","","","","","","",null,""]
[null,"","","","","","","","",null,""]
[null,"","","","","","","","",null,""]
[null,"","","","","","","","",null,""]
[null,"","","","","","","","",null,""]
[null,"","","","","","","","",null,""]
[null,"","","","","","","","",null,""]
[null,"","","","","","","","",null,""]
[null,"","","","","","","","",null,""]
[null,"","","","","","","","",null,""]
[null,"","","","","","","","",null,""]
[null,"","","","","","","",""]

{"sheet":"TA Indicator Bank","index":2,"n_rows":261,"n_cols":46,"rows_kept":261,"cut":false,"hidden":false,"merged":[[2,9,2,22],[2,23,2,31],[2,32,2,40],[2,41,2,45]]}
[null,"TA Indicator Bank"]
[null,null,null,null,null,null,null,null,null,"Users can use these columns manually identify indicators of interest by filtering on columns of interest - select '1' for each column to see indicators relevant to that results level or to specific themes for different activity, uptake, output or outcome indicators."]
[null,null,null,null,null,null,null,null,null,"Activity/Uptake theme",null,null,null,null,null,null,null,null,null,null,null,null,null,"Output theme",null,null,null,null,null,null,null,null,"Outcome theme",null,null,null,null,null,null,null,null,"Results Chain Levels"]
[null,"Indicator ID\nA unique ID number for each indicator","Indicator\nDescription of each indicator","Notes\nGuidance on usage","Results Chain Level\nApplicabilty at Activity, Uptake, Output or Outcome levels","Activity or Uptake theme(s)\nActivities or Uptakes this indicator can be against","Output theme(s)\nOutputs this indicator can be against","Outcome theme(s)\nOutcome(s) this indicator can be against","Unit of Measurement\nHow the results from this indicator should be captured","Workshops","Training events / courses","Conferences, seminars or networking events","Secondments","Specialist research, inc. market / policy / legal / regulatory / technology research briefs","Strategic organisational guidance","Expert guidance and review","Product / technology demonstration","Study tours / roadshows","Public awareness campaigns","High level delegations","Project studies and plans","Data, software, tools and models","Research & development","Capacity building: Institutional capacity","Capacity building: Technical capacity","Awareness raising","Domestic policy support","International policy support","Project development support","Process/asset operation support","Financing support","Public-private co-ordination support","Increased or improved policy development or execution","Increased access to information/knowledge","Improved domestic co-ordination","Improved international co-ordination","Increased or improved investment in climate-related projects/assets","Improved operation of processes or assets (inc. e.g. electricity grid stability, agricultural livelihoods, forest management)","Increased access to climate goods and services","Increased or improved allocation of domestic climate finance","Increased or improved access to international climate finance","Activity","Uptake","Output","Outcome","Impact"]
[null,"TA001","Number of events held","-",{"$f":"IF(_xlfn.TEXTJOIN(\"; \",TRUE,IF(AP5:AT5=1,$AP$4:$AT$4,\"\"))=\"\",\"ERROR\",_xlfn.TEXTJOIN(\"; \",TRUE,IF(AP5:AT5=1,$AP$4:$AT$4,\"\")))","v":"Activity"},{"$f":"IF(_xlfn.TEXTJOIN(\"; \",TRUE,IF(J5:W5=1,$J$4:$W$4,\"\"))=\"\",\"-\",_xlfn.TEXTJOIN(\"; \",TRUE,IF(J5:W5=1,$J$4:$W$4,\"\")))","v":"Workshops; Training events / courses; Conferences, seminars or networking events; Public awareness campaigns"},{"$f":"IF(_xlfn.TEXTJOIN(\"; \",TRUE,IF(X5:AF5=1,$X$4:$AF$4,\"\"))=\"\",\"-\",_xlfn.TEXTJOIN(\"; \",TRUE,IF(X5:AF5=1,$X$4:$AF$4,\"\")))","v":"-"},{"$f":"IF(_xlfn.TEXTJOIN(\"; \",TRUE,IF(AG5:AO5=1,$AG$4:$AO$4,\"\"))=\"\",\"-\",_xlfn.TEXTJOIN(\"; \",TRUE,IF(AG5:AO5=1,$AG$4:$AO$4,\"\")))","v":"-"},"Number",1,1,1,0,0,0,0,0,0,1,0,0,0,0,0,0,0,0,0,0,0,0,0,0,0,0,0,0,0,0,0,0,1,0,0,0,0]
[null,"TA002","Number of people attending events","-",{"$f":"IF(_xlfn.TEXTJOIN(\"; \",TRUE,IF(AP6:AT6=1,$AP$4:$AT$4,\"\"))=\"\",\"ERROR\",_xlfn.TEXTJOIN(\"; \",TRUE,IF(AP6:AT6=1,$AP$4:$AT$4,\"\")))","v":"Uptake"},{"$f":"IF(_xlfn.TEXTJOIN(\"; \",TRUE,IF(J6:W6=1,$J$4:$W$4,\"\"))=\"\",\"-\",_xlfn.TEXTJOIN(\"; \",TRUE,IF(J6:W6=1,$J$4:$W$4,\"\")))","v":"Workshops"},{"$f":"IF(_xlfn.TEXTJOIN(\"; \",TRUE,IF(X6:AF6=1,$X$4:$AF$4,\"\"))=\"\",\"-\",_xlfn.TEXTJOIN(\"; \",TRUE,IF(X6:AF6=1,$X$4:$AF$4,\"\")))","v":"-"},{"$f":"IF(_xlfn.TEXTJOIN(\"; \",TRUE,IF(AG6:AO6=1,$AG$4:$AO$4,\"\"))=\"\",\"-\",_xlfn.TEXTJOIN(\"; \",TRUE,IF(AG6:AO6=1,$AG$4:$AO$4,\"\")))","v":"-"},"Number",1,0,0,0,0,0,0,0,0,0,0,0,0,0,0,0,0,0,0,0,0,0,0,0,0,0,0,0,0,0,0,0,0,1,0,0,0]
[null,"TA003","Good attendance at events","To be assessed against a pre-identified standard for good attendance (based on absolute numbers, percentage of invitees attending, percentage of important stakeholders representated)",{"$f":"IF(_xlfn.TEXTJOIN(\"; \",TRUE,IF(AP7:AT7=1,$AP$4:$AT$4,\"\"))=\"\",\"ERROR\",_xlfn.TEXTJOIN(\"; \",TRUE,IF(AP7:AT7=1,$AP$4:$AT$4,\"\")))","v":"Uptake"},{"$f":"IF(_xlfn.TEXTJOIN(\"; \",TRUE,IF(J7:W7=1,$J$4:$W$4,\"\"))=\"\",\"-\",_xlfn.TEXTJOIN(\"; \",TRUE,IF(J7:W7=1,$J$4:$W$4,\"\")))","v":"Workshops"},{"$f":"IF(_xlfn.TEXTJOIN(\"; \",TRUE,IF(X7:AF7=1,$X$4:$AF$4,\"\"))=\"\",\"-\",_xlfn.TEXTJOIN(\"; \",TRUE,IF(X7:AF7=1,$X$4:$AF$4,\"\")))","v":"-"},{"$f":"IF(_xlfn.TEXTJOIN(\"; \",TRUE,IF(AG7:AO7=1,$AG$4:$AO$4,\"\"))=\"\",\"-\",_xlfn.TEXTJOIN(\"; \",TRUE,IF(AG7:AO7=1,$AG$4:$AO$4,\"\")))","v":"-"},"Yes/No",1,0,0,0,0,0,0,0,0,0,0,0,0,0,0,0,0,0,0,0,0,0,0,0,0,0,0,0,0,0,0,0,0,1,0,0,0]
[null,"TA004","Participants assess training as useful or satisfactory","Can be assessed in multiple ways: against pre-identified goals or expectations for training outcomes; based on immediate post-training survey of expectations that it will support trainees in their work; or, based on survey following a delay (e.g. 6 months) on how training has supported activities/work in practice.",{"$f":"IF(_xlfn.TEXTJOIN(\"; \",TRUE,IF(AP8:AT8=1,$AP$4:$AT$4,\"\"))=\"\",\"ERROR\",_xlfn.TEXTJOIN(\"; \",TRUE,IF(AP8:AT8=1,$AP$4:$AT$4,\"\")))","v":"Output"},{"$f":"IF(_xlfn.TEXTJOIN(\"; \",TRUE,IF(J8:W8=1,$J$4:$W$4,\"\"))=\"\",\"-\",_xlfn.TEXTJOIN(\"; \",TRUE,IF(J8:W8=1,$J$4:$W$4,\"\")))","v":"-"},{"$f":"IF(_xlfn.TEXTJOIN(\"; \",TRUE,IF(X8:AF8=1,$X$4:$AF$4,\"\"))=\"\",\"-\",_xlfn.TEXTJOIN(\"; \",TRUE,IF(X8:AF8=1,$X$4:$AF$4,\"\")))","v":"Capacity building: Institutional capacity; Capacity building: Technical capacity"},{"$f":"IF(_xlfn.TEXTJOIN(\"; \",TRUE,IF(AG8:AO8=1,$AG$4:$AO$4,\"\"))=\"\",\"-\",_xlfn.TEXTJOIN(\"; \",TRUE,IF(AG8:AO8=1,$AG$4:$AO$4,\"\")))","v":"-"},"Yes/No",0,0,0,0,0,0,0,0,0,0,0,0,0,0,1,1,0,0,0,0,0,0,0,0,0,0,0,0,0,0,0,0,0,0,1,0,0]
[null,"TA005","Number of participants/units that received support","-",{"$f":"IF(_xlfn.TEXTJOIN(\"; \",TRUE,IF(AP9:AT9=1,$AP$4:$AT$4,\"\"))=\"\",\"ERROR\",_xlfn.TEXTJOIN(\"; \",TRUE,IF(AP9:AT9=1,$AP$4:$AT$4,\"\")))","v":"Uptake"},{"$f":"IF(_xlfn.TEXTJOIN(\"; \",TRUE,IF(J9:W9=1,$J$4:$W$4,\"\"))=\"\",\"-\",_xlfn.TEXTJOIN(\"; \",TRUE,IF(J9:W9=1,$J$4:$W$4,\"\")))","v":"Workshops; Training events / courses"},{"$f":"IF(_xlfn.TEXTJOIN(\"; \",TRUE,IF(X9:AF9=1,$X$4:$AF$4,\"\"))=\"\",\"-\",_xlfn.TEXTJOIN(\"; \",TRUE,IF(X9:AF9=1,$X$4:$AF$4,\"\")))","v":"Process/asset operation support"},{"$f":"IF(_xlfn.TEXTJOIN(\"; \",TRUE,IF(AG9:AO9=1,$AG$4:$AO$4,\"\"))=\"\",\"-\",_xlfn.TEXTJOIN(\"; \",TRUE,IF(AG9:AO9=1,$AG$4:$AO$4,\"\")))","v":"-"},"Number",1,1,0,0,0,0,0,0,0,0,0,0,0,0,0,0,0,0,0,0,1,0,0,0,0,0,0,0,0,0,0,0,0,1,0,0,0]
[null,"TA006","Number of training modules and guidebooks developed","-",{"$f":"IF(_xlfn.TEXTJOIN(\"; \",TRUE,IF(AP10:AT10=1,$AP$4:$AT$4,\"\"))=\"\",\"ERROR\",_xlfn.TEXTJOIN(\"; \",TRUE,IF(AP10:AT10=1,$AP$4:$AT$4,\"\")))","v":"Activity"},{"$f":"IF(_xlfn.TEXTJOIN(\"; \",TRUE,IF(J10:W10=1,$J$4:$W$4,\"\"))=\"\",\"-\",_xlfn.TEXTJOIN(\"; \",TRUE,IF(J10:W10=1,$J$4:$W$4,\"\")))","v":"Training events / courses"},{"$f":"IF(_xlfn.TEXTJOIN(\"; \",TRUE,IF(X10:AF10=1,$X$4:$AF$4,\"\"))=\"\",\"-\",_xlfn.TEXTJOIN(\"; \",TRUE,IF(X10:AF10=1,$X$4:$AF$4,\"\")))","v":"-"},{"$f":"IF(_xlfn.TEXTJOIN(\"; \",TRUE,IF(AG10:AO10=1,$AG$4:$AO$4,\"\"))=\"\",\"-\",_xlfn.TEXTJOIN(\"; \",TRUE,IF(AG10:AO10=1,$AG$4:$AO$4,\"\")))","v":"-"},"Number",0,1,0,0,0,0,0,0,0,0,0,0,0,0,0,0,0,0,0,0,0,0,0,0,0,0,0,0,0,0,0,0,1,0,0,0,0]
[null,"TA007","Increased knowledge and skills among programme participants","-",{"$f":"IF(_xlfn.TEXTJOIN(\"; \",TRUE,IF(AP11:AT11=1,$AP$4:$AT$4,\"\"))=\"\",\"ERROR\",_xlfn.TEXTJOIN(\"; \",TRUE,IF(AP11:AT11=1,$AP$4:$AT$4,\"\")))","v":"Output"},{"$f":"IF(_xlfn.TEXTJOIN(\"; \",TRUE,IF(J11:W11=1,$J$4:$W$4,\"\"))=\"\",\"-\",_xlfn.TEXTJOIN(\"; \",TRUE,IF(J11:W11=1,$J$4:$W$4,\"\")))","v":"-"},{"$f":"IF(_xlfn.TEXTJOIN(\"; \",TRUE,IF(X11:AF11=1,$X$4:$AF$4,\"\"))=\"\",\"-\",_xlfn.TEXTJOIN(\"; \",TRUE,IF(X11:AF11=1,$X$4:$AF$4,\"\")))","v":"Capacity building: Technical capacity"},{"$f":"IF(_xlfn.TEXTJOIN(\"; \",TRUE,IF(AG11:AO11=1,$AG$4:$AO$4,\"\"))=\"\",\"-\",_xlfn.TEXTJOIN(\"; \",TRUE,IF(AG11:AO11=1,$AG$4:$AO$4,\"\")))","v":"-"},"Yes/No",0,0,0,0,0,0,0,0,0,0,0,0,0,0,0,1,0,0,0,0,0,0,0,0,0,0,0,0,0,0,0,0,0,0,1,0,0]
[null,"TA008","Extent that trained individuals have an effect on their end objective","Can be assessed through a survey of supported individuals, through external evaluation of effectiveness, or evaluation of outputs from the work undertaked by supported individuals.",{"$f":"IF(_xlfn.TEXTJOIN(\"; \",TRUE,IF(AP12:AT12=1,$AP$4:$AT$4,\"\"))=\"\",\"ERROR\",_xlfn.TEXTJOIN(\"; \",TRUE,IF(AP12:AT12=1,$AP$4:$AT$4,\"\")))","v":"Output"},{"$f":"IF(_xlfn.TEXTJOIN(\"; \",TRUE,IF(J12:W12=1,$J$4:$W$4,\"\"))=\"\",\"-\",_xlfn.TEXTJOIN(\"; \",TRUE,IF(J12:W12=1,$J$4:$W$4,\"\")))","v":"Training events / courses"},{"$f":"IF(_xlfn.TEXTJOIN(\"; \",TRUE,IF(X12:AF12=1,$X$4:$AF$4,\"\"))=\"\",\"-\",_xlfn.TEXTJOIN(\"; \",TRUE,IF(X12:AF12=1,$X$4:$AF$4,\"\")))","v":"Domestic policy support; Project development support; Process/asset operation support"},{"$f":"IF(_xlfn.TEXTJOIN(\"; \",TRUE,IF(AG12:AO12=1,$AG$4:$AO$4,\"\"))=\"\",\"-\",_xlfn.TEXTJOIN(\"; \",TRUE,IF(AG12:AO12=1,$AG$4:$AO$4,\"\")))","v":"-"},"Narrative",0,1,0,0,0,0,0,0,0,0,0,0,0,0,0,0,0,1,0,1,1,0,0,0,0,0,0,0,0,0,0,0,0,0,1,0,0]
[null,"TA009","Cost of training compared to quality and quantity of training","Cost-effectiveness metric most useful in comparison to other training, but would require consistent evaluation of training quality.",{"$f":"IF(_xlfn.TEXTJOIN(\"; \",TRUE,IF(AP13:AT13=1,$AP$4:$AT$4,\"\"))=\"\",\"ERROR\",_xlfn.TEXTJOIN(\"; \",TRUE,IF(AP13:AT13=1,$AP$4:$AT$4,\"\")))","v":"Activity"},{"$f":"IF(_xlfn.TEXTJOIN(\"; \",TRUE,IF(J13:W13=1,$J$4:$W$4,\"\"))=\"\",\"-\",_xlfn.TEXTJOIN(\"; \",TRUE,IF(J13:W13=1,$J$4:$W$4,\"\")))","v":"Training events / courses"},{"$f":"IF(_xlfn.TEXTJOIN(\"; \",TRUE,IF(X13:AF13=1,$X$4:$AF$4,\"\"))=\"\",\"-\",_xlfn.TEXTJOIN(\"; \",TRUE,IF(X13:AF13=1,$X$4:$AF$4,\"\")))","v":"-"},{"$f":"IF(_xlfn.TEXTJOIN(\"; \",TRUE,IF(AG13:AO13=1,$AG$4:$AO$4,\"\"))=\"\",\"-\",_xlfn.TEXTJOIN(\"; \",TRUE,IF(AG13:AO13=1,$AG$4:$AO$4,\"\")))","v":"-"},"Number",0,1,0,0,0,0,0,0,0,0,0,0,0,0,0,0,0,0,0,0,0,0,0,0,0,0,0,0,0,0,0,0,1,0,0,0,0]
[null,"TA010","Number of policymakers whose awareness has been raised through an event","Can be assessed via surveys, with lagged surveys assessing the degree of spread of awareness within policy-making community, and the degree of knowledge retention over time.",{"$f":"IF(_xlfn.TEXTJOIN(\"; \",TRUE,IF(AP14:AT14=1,$AP$4:$AT$4,\"\"))=\"\",\"ERROR\",_xlfn.TEXTJOIN(\"; \",TRUE,IF(AP14:AT14=1,$AP$4:$AT$4,\"\")))","v":"Uptake"},{"$f":"IF(_xlfn.TEXTJOIN(\"; \",TRUE,IF(J14:W14=1,$J$4:$W$4,\"\"))=\"\",\"-\",_xlfn.TEXTJOIN(\"; \",TRUE,IF(J14:W14=1,$J$4:$W$4,\"\")))","v":"Conferences, seminars or networking events"},{"$f":"IF(_xlfn.TEXTJOIN(\"; \",TRUE,IF(X14:AF14=1,$X$4:$AF$4,\"\"))=\"\",\"-\",_xlfn.TEXTJOIN(\"; \",TRUE,IF(X14:AF14=1,$X$4:$AF$4,\"\")))","v":"-"},{"$f":"IF(_xlfn.TEXTJOIN(\"; \",TRUE,IF(AG14:AO14=1,$AG$4:$AO$4,\"\"))=\"\",\"-\",_xlfn.TEXTJOIN(\"; \",TRUE,IF(AG14:AO14=1,$AG$4:$AO$4,\"\")))","v":"-"},"Number",0,0,1,0,0,0,0,0,0,0,0,0,0,0,0,0,0,0,0,0,0,0,0,0,0,0,0,0,0,0,0,0,0,1,0,0,0]
[null,"TA011","Number of organisations and stakeholders promoting the programme outcomes beyond the programme","-",{"$f":"IF(_xlfn.TEXTJOIN(\"; \",TRUE,IF(AP15:AT15=1,$AP$4:$AT$4,\"\"))=\"\",\"ERROR\",_xlfn.TEXTJOIN(\"; \",TRUE,IF(AP15:AT15=1,$AP$4:$AT$4,\"\")))","v":"Uptake"},{"$f":"IF(_xlfn.TEXTJOIN(\"; \",TRUE,IF(J15:W15=1,$J$4:$W$4,\"\"))=\"\",\"-\",_xlfn.TEXTJOIN(\"; \",TRUE,IF(J15:W15=1,$J$4:$W$4,\"\")))","v":"Conferences, seminars or networking events"},{"$f":"IF(_xlfn.TEXTJOIN(\"; \",TRUE,IF(X15:AF15=1,$X$4:$AF$4,\"\"))=\"\",\"-\",_xlfn.TEXTJOIN(\"; \",TRUE,IF(X15:AF15=1,$X$4:$AF$4,\"\")))","v":"-"},{"$f":"IF(_xlfn.TEXTJOIN(\"; \",TRUE,IF(AG15:AO15=1,$AG$4:$AO$4,\"\"))=\"\",\"-\",_xlfn.TEXTJOIN(\"; \",TRUE,IF(AG15:AO15=1,$AG$4:$AO$4,\"\")))","v":"-"},"Number",0,0,1,0,0,0,0,0,0,0,0,0,0,0,0,0,0,0,0,0,0,0,0,0,0,0,0,0,0,0,0,0,0,1,0,0,0]
[null,"TA012","Number of countries where government uses project outcomes in stakeholder meetings","-",{"$f":"IF(_xlfn.TEXTJOIN(\"; \",TRUE,IF(AP16:AT16=1,$AP$4:$AT$4,\"\"))=\"\",\"ERROR\",_xlfn.TEXTJOIN(\"; \",TRUE,IF(AP16:AT16=1,$AP$4:$AT$4,\"\")))","v":"Uptake"},{"$f":"IF(_xlfn.TEXTJOIN(\"; \",TRUE,IF(J16:W16=1,$J$4:$W$4,\"\"))=\"\",\"-\",_xlfn.TEXTJOIN(\"; \",TRUE,IF(J16:W16=1,$J$4:$W$4,\"\")))","v":"Conferences, seminars or networking events"},{"$f":"IF(_xlfn.TEXTJOIN(\"; \",TRUE,IF(X16:AF16=1,$X$4:$AF$4,\"\"))=\"\",\"-\",_xlfn.TEXTJOIN(\"; \",TRUE,IF(X16:AF16=1,$X$4:$AF$4,\"\")))","v":"-"},{"$f":"IF(_xlfn.TEXTJOIN(\"; \",TRUE,IF(AG16:AO16=1,$AG$4:$AO$4,\"\"))=\"\",\"-\",_xlfn.TEXTJOIN(\"; \",TRUE,IF(AG16:AO16=1,$AG$4:$AO$4,\"\")))","v":"-"},"Number",0,0,1,0,0,0,0,0,0,0,0,0,0,0,0,0,0,0,0,0,0,0,0,0,0,0,0,0,0,0,0,0,0,1,0,0,0]
[null,"TA013","Number of organisations engaging with the programme network","-",{"$f":"IF(_xlfn.TEXTJOIN(\"; \",TRUE,IF(AP17:AT17=1,$AP$4:$AT$4,\"\"))=\"\",\"ERROR\",_xlfn.TEXTJOIN(\"; \",TRUE,IF(AP17:AT17=1,$AP$4:$AT$4,\"\")))","v":"Uptake"},{"$f":"IF(_xlfn.TEXTJOIN(\"; \",TRUE,IF(J17:W17=1,$J$4:$W$4,\"\"))=\"\",\"-\",_xlfn.TEXTJOIN(\"; \",TRUE,IF(J17:W17=1,$J$4:$W$4,\"\")))","v":"Conferences, seminars or networking events"},{"$f":"IF(_xlfn.TEXTJOIN(\"; \",TRUE,IF(X17:AF17=1,$X$4:$AF$4,\"\"))=\"\",\"-\",_xlfn.TEXTJOIN(\"; \",TRUE,IF(X17:AF17=1,$X$4:$AF$4,\"\")))","v":"-"},{"$f":"IF(_xlfn.TEXTJOIN(\"; \",TRUE,IF(AG17:AO17=1,$AG$4:$AO$4,\"\"))=\"\",\"-\",_xlfn.TEXTJOIN(\"; \",TRUE,IF(AG17:AO17=1,$AG$4:$AO$4,\"\")))","v":"-"},"Number",0,0,1,0,0,0,0,0,0,0,0,0,0,0,0,0,0,0,0,0,0,0,0,0,0,0,0,0,0,0,0,0,0,1,0,0,0]
[null,"TA014","Quality and relevance of conferences, seminars or networking events conducted","Quality and relevance can be assessed in multiple ways: against pre-identified expectations or criteria; based on immediate post-event surveys; or, based on surveys following a delay (e.g. 6 months) on how events have supported activities/work in practice.",{"$f":"IF(_xlfn.TEXTJOIN(\"; \",TRUE,IF(AP18:AT18=1,$AP$4:$AT$4,\"\"))=\"\",\"ERROR\",_xlfn.TEXTJOIN(\"; \",TRUE,IF(AP18:AT18=1,$AP$4:$AT$4,\"\")))","v":"Activity"},{"$f":"IF(_xlfn.TEXTJOIN(\"; \",TRUE,IF(J18:W18=1,$J$4:$W$4,\"\"))=\"\",\"-\",_xlfn.TEXTJOIN(\"; \",TRUE,IF(J18:W18=1,$J$4:$W$4,\"\")))","v":"Conferences, seminars or networking events"},{"$f":"IF(_xlfn.TEXTJOIN(\"; \",TRUE,IF(X18:AF18=1,$X$4:$AF$4,\"\"))=\"\",\"-\",_xlfn.TEXTJOIN(\"; \",TRUE,IF(X18:AF18=1,$X$4:$AF$4,\"\")))","v":"-"},{"$f":"IF(_xlfn.TEXTJOIN(\"; \",TRUE,IF(AG18:AO18=1,$AG$4:$AO$4,\"\"))=\"\",\"-\",_xlfn.TEXTJOIN(\"; \",TRUE,IF(AG18:AO18=1,$AG$4:$AO$4,\"\")))","v":"-"},"Narrative",0,0,1,0,0,0,0,0,0,0,0,0,0,0,0,0,0,0,0,0,0,0,0,0,0,0,0,0,0,0,0,0,1,0,0,0,0]
[null,"TA015","Number of publications","-",{"$f":"IF(_xlfn.TEXTJOIN(\"; \",TRUE,IF(AP19:AT19=1,$AP$4:$AT$4,\"\"))=\"\",\"ERROR\",_xlfn.TEXTJOIN(\"; \",TRUE,IF(AP19:AT19=1,$AP$4:$AT$4,\"\")))","v":"Activity"},{"$f":"IF(_xlfn.TEXTJOIN(\"; \",TRUE,IF(J19:W19=1,$J$4:$W$4,\"\"))=\"\",\"-\",_xlfn.TEXTJOIN(\"; \",TRUE,IF(J19:W19=1,$J$4:$W$4,\"\")))","v":"Specialist research, inc. market / policy / legal / regulatory / technology research briefs; Public awareness campaigns"},{"$f":"IF(_xlfn.TEXTJOIN(\"; \",TRUE,IF(X19:AF19=1,$X$4:$AF$4,\"\"))=\"\",\"-\",_xlfn.TEXTJOIN(\"; \",TRUE,IF(X19:AF19=1,$X$4:$AF$4,\"\")))","v":"-"},{"$f":"IF(_xlfn.TEXTJOIN(\"; \",TRUE,IF(AG19:AO19=1,$AG$4:$AO$4,\"\"))=\"\",\"-\",_xlfn.TEXTJOIN(\"; \",TRUE,IF(AG19:AO19=1,$AG$4:$AO$4,\"\")))","v":"-"},"Number",0,0,0,0,1,0,0,0,0,1,0,0,0,0,0,0,0,0,0,0,0,0,0,0,0,0,0,0,0,0,0,0,1,0,0,0,0]
[null,"TA016","Number of publications that pass a certain quality review process (e.g. assessed by programme, peer review)","-",{"$f":"IF(_xlfn.TEXTJOIN(\"; \",TRUE,IF(AP20:AT20=1,$AP$4:$AT$4,\"\"))=\"\",\"ERROR\",_xlfn.TEXTJOIN(\"; \",TRUE,IF(AP20:AT20=1,$AP$4:$AT$4,\"\")))","v":"Activity"},{"$f":"IF(_xlfn.TEXTJOIN(\"; \",TRUE,IF(J20:W20=1,$J$4:$W$4,\"\"))=\"\",\"-\",_xlfn.TEXTJOIN(\"; \",TRUE,IF(J20:W20=1,$J$4:$W$4,\"\")))","v":"Specialist research, inc. market / policy / legal / regulatory / technology research briefs; Research & development"},{"$f":"IF(_xlfn.TEXTJOIN(\"; \",TRUE,IF(X20:AF20=1,$X$4:$AF$4,\"\"))=\"\",\"-\",_xlfn.TEXTJOIN(\"; \",TRUE,IF(X20:AF20=1,$X$4:$AF$4,\"\")))","v":"-"},{"$f":"IF(_xlfn.TEXTJOIN(\"; \",TRUE,IF(AG20:AO20=1,$AG$4:$AO$4,\"\"))=\"\",\"-\",_xlfn.TEXTJOIN(\"; \",TRUE,IF(AG20:AO20=1,$AG$4:$AO$4,\"\")))","v":"-"},"Number",0,0,0,0,1,0,0,0,0,0,0,0,0,1,0,0,0,0,0,0,0,0,0,0,0,0,0,0,0,0,0,0,1,0,0,0,0]
[null,"TA017","Number of people accessing publications","-",{"$f":"IF(_xlfn.TEXTJOIN(\"; \",TRUE,IF(AP21:AT21=1,$AP$4:$AT$4,\"\"))=\"\",\"ERROR\",_xlfn.TEXTJOIN(\"; \",TRUE,IF(AP21:AT21=1,$AP$4:$AT$4,\"\")))","v":"Uptake"},{"$f":"IF(_xlfn.TEXTJOIN(\"; \",TRUE,IF(J21:W21=1,$J$4:$W$4,\"\"))=\"\",\"-\",_xlfn.TEXTJOIN(\"; \",TRUE,IF(J21:W21=1,$J$4:$W$4,\"\")))","v":"Specialist research, inc. market / policy / legal / regulatory / technology research briefs"},{"$f":"IF(_xlfn.TEXTJOIN(\"; \",TRUE,IF(X21:AF21=1,$X$4:$AF$4,\"\"))=\"\",\"-\",_xlfn.TEXTJOIN(\"; \",TRUE,IF(X21:AF21=1,$X$4:$AF$4,\"\")))","v":"-"},{"$f":"IF(_xlfn.TEXTJOIN(\"; \",TRUE,IF(AG21:AO21=1,$AG$4:$AO$4,\"\"))=\"\",\"-\",_xlfn.TEXTJOIN(\"; \",TRUE,IF(AG21:AO21=1,$AG$4:$AO$4,\"\")))","v":"-"},"Number",0,0,0,0,1,0,0,0,0,0,0,0,0,0,0,0,0,0,0,0,0,0,0,0,0,0,0,0,0,0,0,0,0,1,0,0,0]
[null,"TA018","Publication contributes to improvement of processes","-",{"$f":"IF(_xlfn.TEXTJOIN(\"; \",TRUE,IF(AP22:AT22=1,$AP$4:$AT$4,\"\"))=\"\",\"ERROR\",_xlfn.TEXTJOIN(\"; \",TRUE,IF(AP22:AT22=1,$AP$4:$AT$4,\"\")))","v":"Output"},{"$f":"IF(_xlfn.TEXTJOIN(\"; \",TRUE,IF(J22:W22=1,$J$4:$W$4,\"\"))=\"\",\"-\",_xlfn.TEXTJOIN(\"; \",TRUE,IF(J22:W22=1,$J$4:$W$4,\"\")))","v":"-"},{"$f":"IF(_xlfn.TEXTJOIN(\"; \",TRUE,IF(X22:AF22=1,$X$4:$AF$4,\"\"))=\"\",\"-\",_xlfn.TEXTJOIN(\"; \",TRUE,IF(X22:AF22=1,$X$4:$AF$4,\"\")))","v":"Process/asset operation support"},{"$f":"IF(_xlfn.TEXTJOIN(\"; \",TRUE,IF(AG22:AO22=1,$AG$4:$AO$4,\"\"))=\"\",\"-\",_xlfn.TEXTJOIN(\"; \",TRUE,IF(AG22:AO22=1,$AG$4:$AO$4,\"\")))","v":"-"},"Narrative",0,0,0,0,0,0,0,0,0,0,0,0,0,0,0,0,0,0,0,0,1,0,0,0,0,0,0,0,0,0,0,0,0,0,1,0,0]
[null,"TA019","Number of publications that are rated useful by readers","-",{"$f":"IF(_xlfn.TEXTJOIN(\"; \",TRUE,IF(AP23:AT23=1,$AP$4:$AT$4,\"\"))=\"\",\"ERROR\",_xlfn.TEXTJOIN(\"; \",TRUE,IF(AP23:AT23=1,$AP$4:$AT$4,\"\")))","v":"Output"},{"$f":"IF(_xlfn.TEXTJOIN(\"; \",TRUE,IF(J23:W23=1,$J$4:$W$4,\"\"))=\"\",\"-\",_xlfn.TEXTJOIN(\"; \",TRUE,IF(J23:W23=1,$J$4:$W$4,\"\")))","v":"-"},{"$f":"IF(_xlfn.TEXTJOIN(\"; \",TRUE,IF(X23:AF23=1,$X$4:$AF$4,\"\"))=\"\",\"-\",_xlfn.TEXTJOIN(\"; \",TRUE,IF(X23:AF23=1,$X$4:$AF$4,\"\")))","v":"Capacity building: Technical capacity"},{"$f":"IF(_xlfn.TEXTJOIN(\"; \",TRUE,IF(AG23:AO23=1,$AG$4:$AO$4,\"\"))=\"\",\"-\",_xlfn.TEXTJOIN(\"; \",TRUE,IF(AG23:AO23=1,$AG$4:$AO$4,\"\")))","v":"-"},"Number",0,0,0,0,0,0,0,0,0,0,0,0,0,0,0,1,0,0,0,0,0,0,0,0,0,0,0,0,0,0,0,0,0,0,1,0,0]
[null,"TA020","Number of citations in academic or policy literature","-",{"$f":"IF(_xlfn.TEXTJOIN(\"; \",TRUE,IF(AP24:AT24=1,$AP$4:$AT$4,\"\"))=\"\",\"ERROR\",_xlfn.TEXTJOIN(\"; \",TRUE,IF(AP24:AT24=1,$AP$4:$AT$4,\"\")))","v":"Uptake"},{"$f":"IF(_xlfn.TEXTJOIN(\"; \",TRUE,IF(J24:W24=1,$J$4:$W$4,\"\"))=\"\",\"-\",_xlfn.TEXTJOIN(\"; \",TRUE,IF(J24:W24=1,$J$4:$W$4,\"\")))","v":"Specialist research, inc. market / policy / legal / regulatory / technology research briefs"},{"$f":"IF(_xlfn.TEXTJOIN(\"; \",TRUE,IF(X24:AF24=1,$X$4:$AF$4,\"\"))=\"\",\"-\",_xlfn.TEXTJOIN(\"; \",TRUE,IF(X24:AF24=1,$X$4:$AF$4,\"\")))","v":"-"},{"$f":"IF(_xlfn.TEXTJOIN(\"; \",TRUE,IF(AG24:AO24=1,$AG$4:$AO$4,\"\"))=\"\",\"-\",_xlfn.TEXTJOIN(\"; \",TRUE,IF(AG24:AO24=1,$AG$4:$AO$4,\"\")))","v":"-"},"Number",0,0,0,0,1,0,0,0,0,0,0,0,0,0,0,0,0,0,0,0,0,0,0,0,0,0,0,0,0,0,0,0,0,1,0,0,0]
[null,"TA021","Users/readers play role in creation of publication","-",{"$f":"IF(_xlfn.TEXTJOIN(\"; \",TRUE,IF(AP25:AT25=1,$AP$4:$AT$4,\"\"))=\"\",\"ERROR\",_xlfn.TEXTJOIN(\"; \",TRUE,IF(AP25:AT25=1,$AP$4:$AT$4,\"\")))","v":"Uptake"},{"$f":"IF(_xlfn.TEXTJOIN(\"; \",TRUE,IF(J25:W25=1,$J$4:$W$4,\"\"))=\"\",\"-\",_xlfn.TEXTJOIN(\"; \",TRUE,IF(J25:W25=1,$J$4:$W$4,\"\")))","v":"Specialist research, inc. market / policy / legal / regulatory / technology research briefs"},{"$f":"IF(_xlfn.TEXTJOIN(\"; \",TRUE,IF(X25:AF25=1,$X$4:$AF$4,\"\"))=\"\",\"-\",_xlfn.TEXTJOIN(\"; \",TRUE,IF(X25:AF25=1,$X$4:$AF$4,\"\")))","v":"-"},{"$f":"IF(_xlfn.TEXTJOIN(\"; \",TRUE,IF(AG25:AO25=1,$AG$4:$AO$4,\"\"))=\"\",\"-\",_xlfn.TEXTJOIN(\"; \",TRUE,IF(AG25:AO25=1,$AG$4:$AO$4,\"\")))","v":"-"},"Narrative",0,0,0,0,1,0,0,0,0,0,0,0,0,0,0,0,0,0,0,0,0,0,0,0,0,0,0,0,0,0,0,0,0,1,0,0,0]
[null,"TA022","Quality and relevance of publications","Quality and relevance can be assessed in multiple ways: against pre-identified expectations or criteria; based on immediate surveys of users; or, based on surveys following a delay (e.g. 6 months) on how publciations have supported activities/work in practice.",{"$f":"IF(_xlfn.TEXTJOIN(\"; \",TRUE,IF(AP26:AT26=1,$AP$4:$AT$4,\"\"))=\"\",\"ERROR\",_xlfn.TEXTJOIN(\"; \",TRUE,IF(AP26:AT26=1,$AP$4:$AT$4,\"\")))","v":"Activity"},{"$f":"IF(_xlfn.TEXTJOIN(\"; \",TRUE,IF(J26:W26=1,$J$4:$W$4,\"\"))=\"\",\"-\",_xlfn.TEXTJOIN(\"; \",TRUE,IF(J26:W26=1,$J$4:$W$4,\"\")))","v":"Specialist research, inc. market / policy / legal / regulatory / technology research briefs"},{"$f":"IF(_xlfn.TEXTJOIN(\"; \",TRUE,IF(X26:AF26=1,$X$4:$AF$4,\"\"))=\"\",\"-\",_xlfn.TEXTJOIN(\"; \",TRUE,IF(X26:AF26=1,$X$4:$AF$4,\"\")))","v":"-"},{"$f":"IF(_xlfn.TEXTJOIN(\"; \",TRUE,IF(AG26:AO26=1,$AG$4:$AO$4,\"\"))=\"\",\"-\",_xlfn.TEXTJOIN(\"; \",TRUE,IF(AG26:AO26=1,$AG$4:$AO$4,\"\")))","v":"-"},"Narrative",0,0,0,0,1,0,0,0,0,0,0,0,0,0,0,0,0,0,0,0,0,0,0,0,0,0,0,0,0,0,0,0,1,0,0,0,0]
[null,"TA023","Number of cases where programme has supported organisational change","-",{"$f":"IF(_xlfn.TEXTJOIN(\"; \",TRUE,IF(AP27:AT27=1,$AP$4:$AT$4,\"\"))=\"\",\"ERROR\",_xlfn.TEXTJOIN(\"; \",TRUE,IF(AP27:AT27=1,$AP$4:$AT$4,\"\")))","v":"Output"},{"$f":"IF(_xlfn.TEXTJOIN(\"; \",TRUE,IF(J27:W27=1,$J$4:$W$4,\"\"))=\"\",\"-\",_xlfn.TEXTJOIN(\"; \",TRUE,IF(J27:W27=1,$J$4:$W$4,\"\")))","v":"-"},{"$f":"IF(_xlfn.TEXTJOIN(\"; \",TRUE,IF(X27:AF27=1,$X$4:$AF$4,\"\"))=\"\",\"-\",_xlfn.TEXTJOIN(\"; \",TRUE,IF(X27:AF27=1,$X$4:$AF$4,\"\")))","v":"Process/asset operation support"},{"$f":"IF(_xlfn.TEXTJOIN(\"; \",TRUE,IF(AG27:AO27=1,$AG$4:$AO$4,\"\"))=\"\",\"-\",_xlfn.TEXTJOIN(\"; \",TRUE,IF(AG27:AO27=1,$AG$4:$AO$4,\"\")))","v":"-"},"Number",0,0,0,0,0,0,0,0,0,0,0,0,0,0,0,0,0,0,0,0,1,0,0,0,0,0,0,0,0,0,0,0,0,0,1,0,0]
[null,"TA024","Number/percentage of organisation that have certain processes or plan implemented within given time period","-",{"$f":"IF(_xlfn.TEXTJOIN(\"; \",TRUE,IF(AP28:AT28=1,$AP$4:$AT$4,\"\"))=\"\",\"ERROR\",_xlfn.TEXTJOIN(\"; \",TRUE,IF(AP28:AT28=1,$AP$4:$AT$4,\"\")))","v":"Output"},{"$f":"IF(_xlfn.TEXTJOIN(\"; \",TRUE,IF(J28:W28=1,$J$4:$W$4,\"\"))=\"\",\"-\",_xlfn.TEXTJOIN(\"; \",TRUE,IF(J28:W28=1,$J$4:$W$4,\"\")))","v":"-"},{"$f":"IF(_xlfn.TEXTJOIN(\"; \",TRUE,IF(X28:AF28=1,$X$4:$AF$4,\"\"))=\"\",\"-\",_xlfn.TEXTJOIN(\"; \",TRUE,IF(X28:AF28=1,$X$4:$AF$4,\"\")))","v":"Process/asset operation support"},{"$f":"IF(_xlfn.TEXTJOIN(\"; \",TRUE,IF(AG28:AO28=1,$AG$4:$AO$4,\"\"))=\"\",\"-\",_xlfn.TEXTJOIN(\"; \",TRUE,IF(AG28:AO28=1,$AG$4:$AO$4,\"\")))","v":"-"},"Number, Percentage",0,0,0,0,0,0,0,0,0,0,0,0,0,0,0,0,0,0,0,0,1,0,0,0,0,0,0,0,0,0,0,0,0,0,1,0,0]
[null,"TA025","Number of recommendations that lead to improved programme/activities","-",{"$f":"IF(_xlfn.TEXTJOIN(\"; \",TRUE,IF(AP29:AT29=1,$AP$4:$AT$4,\"\"))=\"\",\"ERROR\",_xlfn.TEXTJOIN(\"; \",TRUE,IF(AP29:AT29=1,$AP$4:$AT$4,\"\")))","v":"Output"},{"$f":"IF(_xlfn.TEXTJOIN(\"; \",TRUE,IF(J29:W29=1,$J$4:$W$4,\"\"))=\"\",\"-\",_xlfn.TEXTJOIN(\"; \",TRUE,IF(J29:W29=1,$J$4:$W$4,\"\")))","v":"-"},{"$f":"IF(_xlfn.TEXTJOIN(\"; \",TRUE,IF(X29:AF29=1,$X$4:$AF$4,\"\"))=\"\",\"-\",_xlfn.TEXTJOIN(\"; \",TRUE,IF(X29:AF29=1,$X$4:$AF$4,\"\")))","v":"Process/asset operation support"},{"$f":"IF(_xlfn.TEXTJOIN(\"; \",TRUE,IF(AG29:AO29=1,$AG$4:$AO$4,\"\"))=\"\",\"-\",_xlfn.TEXTJOIN(\"; \",TRUE,IF(AG29:AO29=1,$AG$4:$AO$4,\"\")))","v":"-"},"Number",0,0,0,0,0,0,0,0,0,0,0,0,0,0,0,0,0,0,0,0,1,0,0,0,0,0,0,0,0,0,0,0,0,0,1,0,0]
[null,"TA026","Number of organisations that show enhanced capacity on their action plans","-",{"$f":"IF(_xlfn.TEXTJOIN(\"; \",TRUE,IF(AP30:AT30=1,$AP$4:$AT$4,\"\"))=\"\",\"ERROR\",_xlfn.TEXTJOIN(\"; \",TRUE,IF(AP30:AT30=1,$AP$4:$AT$4,\"\")))","v":"Output"},{"$f":"IF(_xlfn.TEXTJOIN(\"; \",TRUE,IF(J30:W30=1,$J$4:$W$4,\"\"))=\"\",\"-\",_xlfn.TEXTJOIN(\"; \",TRUE,IF(J30:W30=1,$J$4:$W$4,\"\")))","v":"-"},{"$f":"IF(_xlfn.TEXTJOIN(\"; \",TRUE,IF(X30:AF30=1,$X$4:$AF$4,\"\"))=\"\",\"-\",_xlfn.TEXTJOIN(\"; \",TRUE,IF(X30:AF30=1,$X$4:$AF$4,\"\")))","v":"Capacity building: Institutional capacity"},{"$f":"IF(_xlfn.TEXTJOIN(\"; \",TRUE,IF(AG30:AO30=1,$AG$4:$AO$4,\"\"))=\"\",\"-\",_xlfn.TEXTJOIN(\"; \",TRUE,IF(AG30:AO30=1,$AG$4:$AO$4,\"\")))","v":"-"},"Number",0,0,0,0,0,0,0,0,0,0,0,0,0,0,1,0,0,0,0,0,0,0,0,0,0,0,0,0,0,0,0,0,0,0,1,0,0]
[null,"TA027","Number of outputs produced by given supported organisation/unit/body","Can be used to assess the performance of supported beneficiaries, perhaps requiring outputs to meet a quality threshold to be accepted",{"$f":"IF(_xlfn.TEXTJOIN(\"; \",TRUE,IF(AP31:AT31=1,$AP$4:$AT$4,\"\"))=\"\",\"ERROR\",_xlfn.TEXTJOIN(\"; \",TRUE,IF(AP31:AT31=1,$AP$4:$AT$4,\"\")))","v":"Activity"},{"$f":"IF(_xlfn.TEXTJOIN(\"; \",TRUE,IF(J31:W31=1,$J$4:$W$4,\"\"))=\"\",\"-\",_xlfn.TEXTJOIN(\"; \",TRUE,IF(J31:W31=1,$J$4:$W$4,\"\")))","v":"Strategic organisational guidance"},{"$f":"IF(_xlfn.TEXTJOIN(\"; \",TRUE,IF(X31:AF31=1,$X$4:$AF$4,\"\"))=\"\",\"-\",_xlfn.TEXTJOIN(\"; \",TRUE,IF(X31:AF31=1,$X$4:$AF$4,\"\")))","v":"-"},{"$f":"IF(_xlfn.TEXTJOIN(\"; \",TRUE,IF(AG31:AO31=1,$AG$4:$AO$4,\"\"))=\"\",\"-\",_xlfn.TEXTJOIN(\"; \",TRUE,IF(AG31:AO31=1,$AG$4:$AO$4,\"\")))","v":"-"},"Narrative",0,0,0,0,0,1,0,0,0,0,0,0,0,0,0,0,0,0,0,0,0,0,0,0,0,0,0,0,0,0,0,0,1,0,0,0,0]
[null,"TA028","Number of times/cases support is provided","-",{"$f":"IF(_xlfn.TEXTJOIN(\"; \",TRUE,IF(AP32:AT32=1,$AP$4:$AT$4,\"\"))=\"\",\"ERROR\",_xlfn.TEXTJOIN(\"; \",TRUE,IF(AP32:AT32=1,$AP$4:$AT$4,\"\")))","v":"Activity"},{"$f":"IF(_xlfn.TEXTJOIN(\"; \",TRUE,IF(J32:W32=1,$J$4:$W$4,\"\"))=\"\",\"-\",_xlfn.TEXTJOIN(\"; \",TRUE,IF(J32:W32=1,$J$4:$W$4,\"\")))","v":"Expert guidance and review"},{"$f":"IF(_xlfn.TEXTJOIN(\"; \",TRUE,IF(X32:AF32=1,$X$4:$AF$4,\"\"))=\"\",\"-\",_xlfn.TEXTJOIN(\"; \",TRUE,IF(X32:AF32=1,$X$4:$AF$4,\"\")))","v":"-"},{"$f":"IF(_xlfn.TEXTJOIN(\"; \",TRUE,IF(AG32:AO32=1,$AG$4:$AO$4,\"\"))=\"\",\"-\",_xlfn.TEXTJOIN(\"; \",TRUE,IF(AG32:AO32=1,$AG$4:$AO$4,\"\")))","v":"-"},"Number",0,0,0,0,0,0,1,0,0,0,0,0,0,0,0,0,0,0,0,0,0,0,0,0,0,0,0,0,0,0,0,0,1,0,0,0,0]
[null,"TA029","Number of publications that have been written with substantive support from programme","-",{"$f":"IF(_xlfn.TEXTJOIN(\"; \",TRUE,IF(AP33:AT33=1,$AP$4:$AT$4,\"\"))=\"\",\"ERROR\",_xlfn.TEXTJOIN(\"; \",TRUE,IF(AP33:AT33=1,$AP$4:$AT$4,\"\")))","v":"Output"},{"$f":"IF(_xlfn.TEXTJOIN(\"; \",TRUE,IF(J33:W33=1,$J$4:$W$4,\"\"))=\"\",\"-\",_xlfn.TEXTJOIN(\"; \",TRUE,IF(J33:W33=1,$J$4:$W$4,\"\")))","v":"-"},{"$f":"IF(_xlfn.TEXTJOIN(\"; \",TRUE,IF(X33:AF33=1,$X$4:$AF$4,\"\"))=\"\",\"-\",_xlfn.TEXTJOIN(\"; \",TRUE,IF(X33:AF33=1,$X$4:$AF$4,\"\")))","v":"Capacity building: Technical capacity"},{"$f":"IF(_xlfn.TEXTJOIN(\"; \",TRUE,IF(AG33:AO33=1,$AG$4:$AO$4,\"\"))=\"\",\"-\",_xlfn.TEXTJOIN(\"; \",TRUE,IF(AG33:AO33=1,$AG$4:$AO$4,\"\")))","v":"-"},"Number",0,0,0,0,0,0,0,0,0,0,0,0,0,0,0,1,0,0,0,0,0,0,0,0,0,0,0,0,0,0,0,0,0,0,1,0,0]
[null,"TA030","Number of people supported by expert guidance","Can be assesed at direct level (specific number of people supported) or at indirect level (for example, including peopple who are served by the person/body receiving support, for example business customers or people supported by a public sector organisation)",{"$f":"IF(_xlfn.TEXTJOIN(\"; \",TRUE,IF(AP34:AT34=1,$AP$4:$AT$4,\"\"))=\"\",\"ERROR\",_xlfn.TEXTJOIN(\"; \",TRUE,IF(AP34:AT34=1,$AP$4:$AT$4,\"\")))","v":"Activity"},{"$f":"IF(_xlfn.TEXTJOIN(\"; \",TRUE,IF(J34:W34=1,$J$4:$W$4,\"\"))=\"\",\"-\",_xlfn.TEXTJOIN(\"; \",TRUE,IF(J34:W34=1,$J$4:$W$4,\"\")))","v":"Expert guidance and review"},{"$f":"IF(_xlfn.TEXTJOIN(\"; \",TRUE,IF(X34:AF34=1,$X$4:$AF$4,\"\"))=\"\",\"-\",_xlfn.TEXTJOIN(\"; \",TRUE,IF(X34:AF34=1,$X$4:$AF$4,\"\")))","v":"-"},{"$f":"IF(_xlfn.TEXTJOIN(\"; \",TRUE,IF(AG34:AO34=1,$AG$4:$AO$4,\"\"))=\"\",\"-\",_xlfn.TEXTJOIN(\"; \",TRUE,IF(AG34:AO34=1,$AG$4:$AO$4,\"\")))","v":"-"},"Number",0,0,0,0,0,0,1,0,0,0,0,0,0,0,0,0,0,0,0,0,0,0,0,0,0,0,0,0,0,0,0,0,1,0,0,0,0]
[null,"TA031","Number of social media followers","Should be based on appropriate social media networks in use in the country where support is provided",{"$f":"IF(_xlfn.TEXTJOIN(\"; \",TRUE,IF(AP35:AT35=1,$AP$4:$AT$4,\"\"))=\"\",\"ERROR\",_xlfn.TEXTJOIN(\"; \",TRUE,IF(AP35:AT35=1,$AP$4:$AT$4,\"\")))","v":"Uptake"},{"$f":"IF(_xlfn.TEXTJOIN(\"; \",TRUE,IF(J35:W35=1,$J$4:$W$4,\"\"))=\"\",\"-\",_xlfn.TEXTJOIN(\"; \",TRUE,IF(J35:W35=1,$J$4:$W$4,\"\")))","v":"Public awareness campaigns"},{"$f":"IF(_xlfn.TEXTJOIN(\"; \",TRUE,IF(X35:AF35=1,$X$4:$AF$4,\"\"))=\"\",\"-\",_xlfn.TEXTJOIN(\"; \",TRUE,IF(X35:AF35=1,$X$4:$AF$4,\"\")))","v":"-"},{"$f":"IF(_xlfn.TEXTJOIN(\"; \",TRUE,IF(AG35:AO35=1,$AG$4:$AO$4,\"\"))=\"\",\"-\",_xlfn.TEXTJOIN(\"; \",TRUE,IF(AG35:AO35=1,$AG$4:$AO$4,\"\")))","v":"-"},"Number",0,0,0,0,0,0,0,0,0,1,0,0,0,0,0,0,0,0,0,0,0,0,0,0,0,0,0,0,0,0,0,0,0,1,0,0,0]
[null,"TA032","Number of cases where programme partners made adaptations based on the learning through the programme ","-",{"$f":"IF(_xlfn.TEXTJOIN(\"; \",TRUE,IF(AP36:AT36=1,$AP$4:$AT$4,\"\"))=\"\",\"ERROR\",_xlfn.TEXTJOIN(\"; \",TRUE,IF(AP36:AT36=1,$AP$4:$AT$4,\"\")))","v":"Output"},{"$f":"IF(_xlfn.TEXTJOIN(\"; \",TRUE,IF(J36:W36=1,$J$4:$W$4,\"\"))=\"\",\"-\",_xlfn.TEXTJOIN(\"; \",TRUE,IF(J36:W36=1,$J$4:$W$4,\"\")))","v":"-"},{"$f":"IF(_xlfn.TEXTJOIN(\"; \",TRUE,IF(X36:AF36=1,$X$4:$AF$4,\"\"))=\"\",\"-\",_xlfn.TEXTJOIN(\"; \",TRUE,IF(X36:AF36=1,$X$4:$AF$4,\"\")))","v":"Process/asset operation support"},{"$f":"IF(_xlfn.TEXTJOIN(\"; \",TRUE,IF(AG36:AO36=1,$AG$4:$AO$4,\"\"))=\"\",\"-\",_xlfn.TEXTJOIN(\"; \",TRUE,IF(AG36:AO36=1,$AG$4:$AO$4,\"\")))","v":"-"},"Number",0,0,0,0,0,0,0,0,0,0,0,0,0,0,0,0,0,0,0,0,1,0,0,0,0,0,0,0,0,0,0,0,0,0,1,0,0]
[null,"TA033","Number of cases where the programme supported stakeholders on media and communication","-",{"$f":"IF(_xlfn.TEXTJOIN(\"; \",TRUE,IF(AP37:AT37=1,$AP$4:$AT$4,\"\"))=\"\",\"ERROR\",_xlfn.TEXTJOIN(\"; \",TRUE,IF(AP37:AT37=1,$AP$4:$AT$4,\"\")))","v":"Activity"},{"$f":"IF(_xlfn.TEXTJOIN(\"; \",TRUE,IF(J37:W37=1,$J$4:$W$4,\"\"))=\"\",\"-\",_xlfn.TEXTJOIN(\"; \",TRUE,IF(J37:W37=1,$J$4:$W$4,\"\")))","v":"Public awareness campaigns"},{"$f":"IF(_xlfn.TEXTJOIN(\"; \",TRUE,IF(X37:AF37=1,$X$4:$AF$4,\"\"))=\"\",\"-\",_xlfn.TEXTJOIN(\"; \",TRUE,IF(X37:AF37=1,$X$4:$AF$4,\"\")))","v":"-"},{"$f":"IF(_xlfn.TEXTJOIN(\"; \",TRUE,IF(AG37:AO37=1,$AG$4:$AO$4,\"\"))=\"\",\"-\",_xlfn.TEXTJOIN(\"; \",TRUE,IF(AG37:AO37=1,$AG$4:$AO$4,\"\")))","v":"-"},"Number",0,0,0,0,0,0,0,0,0,1,0,0,0,0,0,0,0,0,0,0,0,0,0,0,0,0,0,0,0,0,0,0,1,0,0,0,0]
[null,"TA034","Number of programme participants with increased awareness","-",{"$f":"IF(_xlfn.TEXTJOIN(\"; \",TRUE,IF(AP38:AT38=1,$AP$4:$AT$4,\"\"))=\"\",\"ERROR\",_xlfn.TEXTJOIN(\"; \",TRUE,IF(AP38:AT38=1,$AP$4:$AT$4,\"\")))","v":"Output"},{"$f":"IF(_xlfn.TEXTJOIN(\"; \",TRUE,IF(J38:W38=1,$J$4:$W$4,\"\"))=\"\",\"-\",_xlfn.TEXTJOIN(\"; \",TRUE,IF(J38:W38=1,$J$4:$W$4,\"\")))","v":"-"},{"$f":"IF(_xlfn.TEXTJOIN(\"; \",TRUE,IF(X38:AF38=1,$X$4:$AF$4,\"\"))=\"\",\"-\",_xlfn.TEXTJOIN(\"; \",TRUE,IF(X38:AF38=1,$X$4:$AF$4,\"\")))","v":"Awareness raising"},{"$f":"IF(_xlfn.TEXTJOIN(\"; \",TRUE,IF(AG38:AO38=1,$AG$4:$AO$4,\"\"))=\"\",\"-\",_xlfn.TEXTJOIN(\"; \",TRUE,IF(AG38:AO38=1,$AG$4:$AO$4,\"\")))","v":"-"},"Number",0,0,0,0,0,0,0,0,0,0,0,0,0,0,0,0,1,0,0,0,0,0,0,0,0,0,0,0,0,0,0,0,0,0,1,0,0]
[null,"TA035","Number of project plans and studies produced","-",{"$f":"IF(_xlfn.TEXTJOIN(\"; \",TRUE,IF(AP39:AT39=1,$AP$4:$AT$4,\"\"))=\"\",\"ERROR\",_xlfn.TEXTJOIN(\"; \",TRUE,IF(AP39:AT39=1,$AP$4:$AT$4,\"\")))","v":"Activity"},{"$f":"IF(_xlfn.TEXTJOIN(\"; \",TRUE,IF(J39:W39=1,$J$4:$W$4,\"\"))=\"\",\"-\",_xlfn.TEXTJOIN(\"; \",TRUE,IF(J39:W39=1,$J$4:$W$4,\"\")))","v":"Project studies and plans"},{"$f":"IF(_xlfn.TEXTJOIN(\"; \",TRUE,IF(X39:AF39=1,$X$4:$AF$4,\"\"))=\"\",\"-\",_xlfn.TEXTJOIN(\"; \",TRUE,IF(X39:AF39=1,$X$4:$AF$4,\"\")))","v":"-"},{"$f":"IF(_xlfn.TEXTJOIN(\"; \",TRUE,IF(AG39:AO39=1,$AG$4:$AO$4,\"\"))=\"\",\"-\",_xlfn.TEXTJOIN(\"; \",TRUE,IF(AG39:AO39=1,$AG$4:$AO$4,\"\")))","v":"-"},"Number",0,0,0,0,0,0,0,0,0,0,0,1,0,0,0,0,0,0,0,0,0,0,0,0,0,0,0,0,0,0,0,0,1,0,0,0,0]
[null,"TA036","Supported organisations create appropriate assessment framework for understanding internal operations","-",{"$f":"IF(_xlfn.TEXTJOIN(\"; \",TRUE,IF(AP40:AT40=1,$AP$4:$AT$4,\"\"))=\"\",\"ERROR\",_xlfn.TEXTJOIN(\"; \",TRUE,IF(AP40:AT40=1,$AP$4:$AT$4,\"\")))","v":"Activity"},{"$f":"IF(_xlfn.TEXTJOIN(\"; \",TRUE,IF(J40:W40=1,$J$4:$W$4,\"\"))=\"\",\"-\",_xlfn.TEXTJOIN(\"; \",TRUE,IF(J40:W40=1,$J$4:$W$4,\"\")))","v":"Project studies and plans"},{"$f":"IF(_xlfn.TEXTJOIN(\"; \",TRUE,IF(X40:AF40=1,$X$4:$AF$4,\"\"))=\"\",\"-\",_xlfn.TEXTJOIN(\"; \",TRUE,IF(X40:AF40=1,$X$4:$AF$4,\"\")))","v":"-"},{"$f":"IF(_xlfn.TEXTJOIN(\"; \",TRUE,IF(AG40:AO40=1,$AG$4:$AO$4,\"\"))=\"\",\"-\",_xlfn.TEXTJOIN(\"; \",TRUE,IF(AG40:AO40=1,$AG$4:$AO$4,\"\")))","v":"-"},"Yes/No",0,0,0,0,0,0,0,0,0,0,0,1,0,0,0,0,0,0,0,0,0,0,0,0,0,0,0,0,0,0,0,0,1,0,0,0,0]
[null,"TA037","Number of relevant and high-quality evidence products produced (e.g. evaluations, impact assessments, research studies)","-",{"$f":"IF(_xlfn.TEXTJOIN(\"; \",TRUE,IF(AP41:AT41=1,$AP$4:$AT$4,\"\"))=\"\",\"ERROR\",_xlfn.TEXTJOIN(\"; \",TRUE,IF(AP41:AT41=1,$AP$4:$AT$4,\"\")))","v":"Activity"},{"$f":"IF(_xlfn.TEXTJOIN(\"; \",TRUE,IF(J41:W41=1,$J$4:$W$4,\"\"))=\"\",\"-\",_xlfn.TEXTJOIN(\"; \",TRUE,IF(J41:W41=1,$J$4:$W$4,\"\")))","v":"Project studies and plans"},{"$f":"IF(_xlfn.TEXTJOIN(\"; \",TRUE,IF(X41:AF41=1,$X$4:$AF$4,\"\"))=\"\",\"-\",_xlfn.TEXTJOIN(\"; \",TRUE,IF(X41:AF41=1,$X$4:$AF$4,\"\")))","v":"-"},{"$f":"IF(_xlfn.TEXTJOIN(\"; \",TRUE,IF(AG41:AO41=1,$AG$4:$AO$4,\"\"))=\"\",\"-\",_xlfn.TEXTJOIN(\"; \",TRUE,IF(AG41:AO41=1,$AG$4:$AO$4,\"\")))","v":"-"},"Number",0,0,0,0,0,0,0,0,0,0,0,1,0,0,0,0,0,0,0,0,0,0,0,0,0,0,0,0,0,0,0,0,1,0,0,0,0]
[null,"TA038","Number of supported organisations with modernisation plans","-",{"$f":"IF(_xlfn.TEXTJOIN(\"; \",TRUE,IF(AP42:AT42=1,$AP$4:$AT$4,\"\"))=\"\",\"ERROR\",_xlfn.TEXTJOIN(\"; \",TRUE,IF(AP42:AT42=1,$AP$4:$AT$4,\"\")))","v":"Output"},{"$f":"IF(_xlfn.TEXTJOIN(\"; \",TRUE,IF(J42:W42=1,$J$4:$W$4,\"\"))=\"\",\"-\",_xlfn.TEXTJOIN(\"; \",TRUE,IF(J42:W42=1,$J$4:$W$4,\"\")))","v":"-"},{"$f":"IF(_xlfn.TEXTJOIN(\"; \",TRUE,IF(X42:AF42=1,$X$4:$AF$4,\"\"))=\"\",\"-\",_xlfn.TEXTJOIN(\"; \",TRUE,IF(X42:AF42=1,$X$4:$AF$4,\"\")))","v":"Process/asset operation support"},{"$f":"IF(_xlfn.TEXTJOIN(\"; \",TRUE,IF(AG42:AO42=1,$AG$4:$AO$4,\"\"))=\"\",\"-\",_xlfn.TEXTJOIN(\"; \",TRUE,IF(AG42:AO42=1,$AG$4:$AO$4,\"\")))","v":"-"},"Number",0,0,0,0,0,0,0,0,0,0,0,0,0,0,0,0,0,0,0,0,1,0,0,0,0,0,0,0,0,0,0,0,0,0,1,0,0]
[null,"TA039","Number of evidence products (e.g. evaluations, impact assessments, research studies)","-",{"$f":"IF(_xlfn.TEXTJOIN(\"; \",TRUE,IF(AP43:AT43=1,$AP$4:$AT$4,\"\"))=\"\",\"ERROR\",_xlfn.TEXTJOIN(\"; \",TRUE,IF(AP43:AT43=1,$AP$4:$AT$4,\"\")))","v":"Activity"},{"$f":"IF(_xlfn.TEXTJOIN(\"; \",TRUE,IF(J43:W43=1,$J$4:$W$4,\"\"))=\"\",\"-\",_xlfn.TEXTJOIN(\"; \",TRUE,IF(J43:W43=1,$J$4:$W$4,\"\")))","v":"Project studies and plans"},{"$f":"IF(_xlfn.TEXTJOIN(\"; \",TRUE,IF(X43:AF43=1,$X$4:$AF$4,\"\"))=\"\",\"-\",_xlfn.TEXTJOIN(\"; \",TRUE,IF(X43:AF43=1,$X$4:$AF$4,\"\")))","v":"-"},{"$f":"IF(_xlfn.TEXTJOIN(\"; \",TRUE,IF(AG43:AO43=1,$AG$4:$AO$4,\"\"))=\"\",\"-\",_xlfn.TEXTJOIN(\"; \",TRUE,IF(AG43:AO43=1,$AG$4:$AO$4,\"\")))","v":"-"},"Number",0,0,0,0,0,0,0,0,0,0,0,1,0,0,0,0,0,0,0,0,0,0,0,0,0,0,0,0,0,0,0,0,1,0,0,0,0]
[null,"TA040","Deliverables are completed on time","-",{"$f":"IF(_xlfn.TEXTJOIN(\"; \",TRUE,IF(AP44:AT44=1,$AP$4:$AT$4,\"\"))=\"\",\"ERROR\",_xlfn.TEXTJOIN(\"; \",TRUE,IF(AP44:AT44=1,$AP$4:$AT$4,\"\")))","v":"Activity"},{"$f":"IF(_xlfn.TEXTJOIN(\"; \",TRUE,IF(J44:W44=1,$J$4:$W$4,\"\"))=\"\",\"-\",_xlfn.TEXTJOIN(\"; \",TRUE,IF(J44:W44=1,$J$4:$W$4,\"\")))","v":"Project studies and plans; Data, software, tools and models"},{"$f":"IF(_xlfn.TEXTJOIN(\"; \",TRUE,IF(X44:AF44=1,$X$4:$AF$4,\"\"))=\"\",\"-\",_xlfn.TEXTJOIN(\"; \",TRUE,IF(X44:AF44=1,$X$4:$AF$4,\"\")))","v":"-"},{"$f":"IF(_xlfn.TEXTJOIN(\"; \",TRUE,IF(AG44:AO44=1,$AG$4:$AO$4,\"\"))=\"\",\"-\",_xlfn.TEXTJOIN(\"; \",TRUE,IF(AG44:AO44=1,$AG$4:$AO$4,\"\")))","v":"-"},"Yes/No",0,0,0,0,0,0,0,0,0,0,0,1,1,0,0,0,0,0,0,0,0,0,0,0,0,0,0,0,0,0,0,0,1,0,0,0,0]
[null,"TA041","Number of iterations of given process developing supporting materials","-",{"$f":"IF(_xlfn.TEXTJOIN(\"; \",TRUE,IF(AP45:AT45=1,$AP$4:$AT$4,\"\"))=\"\",\"ERROR\",_xlfn.TEXTJOIN(\"; \",TRUE,IF(AP45:AT45=1,$AP$4:$AT$4,\"\")))","v":"Activity"},{"$f":"IF(_xlfn.TEXTJOIN(\"; \",TRUE,IF(J45:W45=1,$J$4:$W$4,\"\"))=\"\",\"-\",_xlfn.TEXTJOIN(\"; \",TRUE,IF(J45:W45=1,$J$4:$W$4,\"\")))","v":"Project studies and plans; Data, software, tools and models"},{"$f":"IF(_xlfn.TEXTJOIN(\"; \",TRUE,IF(X45:AF45=1,$X$4:$AF$4,\"\"))=\"\",\"-\",_xlfn.TEXTJOIN(\"; \",TRUE,IF(X45:AF45=1,$X$4:$AF$4,\"\")))","v":"-"},{"$f":"IF(_xlfn.TEXTJOIN(\"; \",TRUE,IF(AG45:AO45=1,$AG$4:$AO$4,\"\"))=\"\",\"-\",_xlfn.TEXTJOIN(\"; \",TRUE,IF(AG45:AO45=1,$AG$4:$AO$4,\"\")))","v":"-"},"Number",0,0,0,0,0,0,0,0,0,0,0,1,1,0,0,0,0,0,0,0,0,0,0,0,0,0,0,0,0,0,0,0,1,0,0,0,0]
[null,"TA042","Survey conducted that measures quality or client satisfaction","-",{"$f":"IF(_xlfn.TEXTJOIN(\"; \",TRUE,IF(AP46:AT46=1,$AP$4:$AT$4,\"\"))=\"\",\"ERROR\",_xlfn.TEXTJOIN(\"; \",TRUE,IF(AP46:AT46=1,$AP$4:$AT$4,\"\")))","v":"Activity"},{"$f":"IF(_xlfn.TEXTJOIN(\"; \",TRUE,IF(J46:W46=1,$J$4:$W$4,\"\"))=\"\",\"-\",_xlfn.TEXTJOIN(\"; \",TRUE,IF(J46:W46=1,$J$4:$W$4,\"\")))","v":"Project studies and plans"},{"$f":"IF(_xlfn.TEXTJOIN(\"; \",TRUE,IF(X46:AF46=1,$X$4:$AF$4,\"\"))=\"\",\"-\",_xlfn.TEXTJOIN(\"; \",TRUE,IF(X46:AF46=1,$X$4:$AF$4,\"\")))","v":"-"},{"$f":"IF(_xlfn.TEXTJOIN(\"; \",TRUE,IF(AG46:AO46=1,$AG$4:$AO$4,\"\"))=\"\",\"-\",_xlfn.TEXTJOIN(\"; \",TRUE,IF(AG46:AO46=1,$AG$4:$AO$4,\"\")))","v":"-"},"Yes/No",0,0,0,0,0,0,0,0,0,0,0,1,0,0,0,0,0,0,0,0,0,0,0,0,0,0,0,0,0,0,0,0,1,0,0,0,0]
[null,"TA043","Number of respondents surveyed","-",{"$f":"IF(_xlfn.TEXTJOIN(\"; \",TRUE,IF(AP47:AT47=1,$AP$4:$AT$4,\"\"))=\"\",\"ERROR\",_xlfn.TEXTJOIN(\"; \",TRUE,IF(AP47:AT47=1,$AP$4:$AT$4,\"\")))","v":"Activity"},{"$f":"IF(_xlfn.TEXTJOIN(\"; \",TRUE,IF(J47:W47=1,$J$4:$W$4,\"\"))=\"\",\"-\",_xlfn.TEXTJOIN(\"; \",TRUE,IF(J47:W47=1,$J$4:$W$4,\"\")))","v":"Project studies and plans"},{"$f":"IF(_xlfn.TEXTJOIN(\"; \",TRUE,IF(X47:AF47=1,$X$4:$AF$4,\"\"))=\"\",\"-\",_xlfn.TEXTJOIN(\"; \",TRUE,IF(X47:AF47=1,$X$4:$AF$4,\"\")))","v":"-"},{"$f":"IF(_xlfn.TEXTJOIN(\"; \",TRUE,IF(AG47:AO47=1,$AG$4:$AO$4,\"\"))=\"\",\"-\",_xlfn.TEXTJOIN(\"; \",TRUE,IF(AG47:AO47=1,$AG$4:$AO$4,\"\")))","v":"-"},"Number",0,0,0,0,0,0,0,0,0,0,0,1,0,0,0,0,0,0,0,0,0,0,0,0,0,0,0,0,0,0,0,0,1,0,0,0,0]
[null,"TA044","Number of participants that state in survey to apply new skills effectively","-",{"$f":"IF(_xlfn.TEXTJOIN(\"; \",TRUE,IF(AP48:AT48=1,$AP$4:$AT$4,\"\"))=\"\",\"ERROR\",_xlfn.TEXTJOIN(\"; \",TRUE,IF(AP48:AT48=1,$AP$4:$AT$4,\"\")))","v":"Output"},{"$f":"IF(_xlfn.TEXTJOIN(\"; \",TRUE,IF(J48:W48=1,$J$4:$W$4,\"\"))=\"\",\"-\",_xlfn.TEXTJOIN(\"; \",TRUE,IF(J48:W48=1,$J$4:$W$4,\"\")))","v":"-"},{"$f":"IF(_xlfn.TEXTJOIN(\"; \",TRUE,IF(X48:AF48=1,$X$4:$AF$4,\"\"))=\"\",\"-\",_xlfn.TEXTJOIN(\"; \",TRUE,IF(X48:AF48=1,$X$4:$AF$4,\"\")))","v":"Capacity building: Technical capacity"},{"$f":"IF(_xlfn.TEXTJOIN(\"; \",TRUE,IF(AG48:AO48=1,$AG$4:$AO$4,\"\"))=\"\",\"-\",_xlfn.TEXTJOIN(\"; \",TRUE,IF(AG48:AO48=1,$AG$4:$AO$4,\"\")))","v":"-"},"Number",0,0,0,0,0,0,0,0,0,0,0,0,0,0,0,1,0,0,0,0,0,0,0,0,0,0,0,0,0,0,0,0,0,0,1,0,0]
[null,"TA045","Number of participants that state in survey to be satisfied","-",{"$f":"IF(_xlfn.TEXTJOIN(\"; \",TRUE,IF(AP49:AT49=1,$AP$4:$AT$4,\"\"))=\"\",\"ERROR\",_xlfn.TEXTJOIN(\"; \",TRUE,IF(AP49:AT49=1,$AP$4:$AT$4,\"\")))","v":"Uptake"},{"$f":"IF(_xlfn.TEXTJOIN(\"; \",TRUE,IF(J49:W49=1,$J$4:$W$4,\"\"))=\"\",\"-\",_xlfn.TEXTJOIN(\"; \",TRUE,IF(J49:W49=1,$J$4:$W$4,\"\")))","v":"Project studies and plans"},{"$f":"IF(_xlfn.TEXTJOIN(\"; \",TRUE,IF(X49:AF49=1,$X$4:$AF$4,\"\"))=\"\",\"-\",_xlfn.TEXTJOIN(\"; \",TRUE,IF(X49:AF49=1,$X$4:$AF$4,\"\")))","v":"-"},{"$f":"IF(_xlfn.TEXTJOIN(\"; \",TRUE,IF(AG49:AO49=1,$AG$4:$AO$4,\"\"))=\"\",\"-\",_xlfn.TEXTJOIN(\"; \",TRUE,IF(AG49:AO49=1,$AG$4:$AO$4,\"\")))","v":"-"},"Number",0,0,0,0,0,0,0,0,0,0,0,1,0,0,0,0,0,0,0,0,0,0,0,0,0,0,0,0,0,0,0,0,0,1,0,0,0]
[null,"TA046","Number of users or page visits","-",{"$f":"IF(_xlfn.TEXTJOIN(\"; \",TRUE,IF(AP50:AT50=1,$AP$4:$AT$4,\"\"))=\"\",\"ERROR\",_xlfn.TEXTJOIN(\"; \",TRUE,IF(AP50:AT50=1,$AP$4:$AT$4,\"\")))","v":"Uptake"},{"$f":"IF(_xlfn.TEXTJOIN(\"; \",TRUE,IF(J50:W50=1,$J$4:$W$4,\"\"))=\"\",\"-\",_xlfn.TEXTJOIN(\"; \",TRUE,IF(J50:W50=1,$J$4:$W$4,\"\")))","v":"Data, software, tools and models"},{"$f":"IF(_xlfn.TEXTJOIN(\"; \",TRUE,IF(X50:AF50=1,$X$4:$AF$4,\"\"))=\"\",\"-\",_xlfn.TEXTJOIN(\"; \",TRUE,IF(X50:AF50=1,$X$4:$AF$4,\"\")))","v":"-"},{"$f":"IF(_xlfn.TEXTJOIN(\"; \",TRUE,IF(AG50:AO50=1,$AG$4:$AO$4,\"\"))=\"\",\"-\",_xlfn.TEXTJOIN(\"; \",TRUE,IF(AG50:AO50=1,$AG$4:$AO$4,\"\")))","v":"-"},"Number",0,0,0,0,0,0,0,0,0,0,0,0,1,0,0,0,0,0,0,0,0,0,0,0,0,0,0,0,0,0,0,0,0,1,0,0,0]
[null,"TA047","Average monthly number of downloads","-",{"$f":"IF(_xlfn.TEXTJOIN(\"; \",TRUE,IF(AP51:AT51=1,$AP$4:$AT$4,\"\"))=\"\",\"ERROR\",_xlfn.TEXTJOIN(\"; \",TRUE,IF(AP51:AT51=1,$AP$4:$AT$4,\"\")))","v":"Uptake"},{"$f":"IF(_xlfn.TEXTJOIN(\"; \",TRUE,IF(J51:W51=1,$J$4:$W$4,\"\"))=\"\",\"-\",_xlfn.TEXTJOIN(\"; \",TRUE,IF(J51:W51=1,$J$4:$W$4,\"\")))","v":"Data, software, tools and models"},{"$f":"IF(_xlfn.TEXTJOIN(\"; \",TRUE,IF(X51:AF51=1,$X$4:$AF$4,\"\"))=\"\",\"-\",_xlfn.TEXTJOIN(\"; \",TRUE,IF(X51:AF51=1,$X$4:$AF$4,\"\")))","v":"-"},{"$f":"IF(_xlfn.TEXTJOIN(\"; \",TRUE,IF(AG51:AO51=1,$AG$4:$AO$4,\"\"))=\"\",\"-\",_xlfn.TEXTJOIN(\"; \",TRUE,IF(AG51:AO51=1,$AG$4:$AO$4,\"\")))","v":"-"},"Number",0,0,0,0,0,0,0,0,0,0,0,0,1,0,0,0,0,0,0,0,0,0,0,0,0,0,0,0,0,0,0,0,0,1,0,0,0]
[null,"TA048","Number of sites on which a tool is embedded ","-",{"$f":"IF(_xlfn.TEXTJOIN(\"; \",TRUE,IF(AP52:AT52=1,$AP$4:$AT$4,\"\"))=\"\",\"ERROR\",_xlfn.TEXTJOIN(\"; \",TRUE,IF(AP52:AT52=1,$AP$4:$AT$4,\"\")))","v":"Uptake"},{"$f":"IF(_xlfn.TEXTJOIN(\"; \",TRUE,IF(J52:W52=1,$J$4:$W$4,\"\"))=\"\",\"-\",_xlfn.TEXTJOIN(\"; \",TRUE,IF(J52:W52=1,$J$4:$W$4,\"\")))","v":"Data, software, tools and models"},{"$f":"IF(_xlfn.TEXTJOIN(\"; \",TRUE,IF(X52:AF52=1,$X$4:$AF$4,\"\"))=\"\",\"-\",_xlfn.TEXTJOIN(\"; \",TRUE,IF(X52:AF52=1,$X$4:$AF$4,\"\")))","v":"-"},{"$f":"IF(_xlfn.TEXTJOIN(\"; \",TRUE,IF(AG52:AO52=1,$AG$4:$AO$4,\"\"))=\"\",\"-\",_xlfn.TEXTJOIN(\"; \",TRUE,IF(AG52:AO52=1,$AG$4:$AO$4,\"\")))","v":"-"},"Number",0,0,0,0,0,0,0,0,0,0,0,0,1,0,0,0,0,0,0,0,0,0,0,0,0,0,0,0,0,0,0,0,0,1,0,0,0]
[null,"TA049","Number of models described and communicated to potential users","-",{"$f":"IF(_xlfn.TEXTJOIN(\"; \",TRUE,IF(AP53:AT53=1,$AP$4:$AT$4,\"\"))=\"\",\"ERROR\",_xlfn.TEXTJOIN(\"; \",TRUE,IF(AP53:AT53=1,$AP$4:$AT$4,\"\")))","v":"Activity"},{"$f":"IF(_xlfn.TEXTJOIN(\"; \",TRUE,IF(J53:W53=1,$J$4:$W$4,\"\"))=\"\",\"-\",_xlfn.TEXTJOIN(\"; \",TRUE,IF(J53:W53=1,$J$4:$W$4,\"\")))","v":"Data, software, tools and models"},{"$f":"IF(_xlfn.TEXTJOIN(\"; \",TRUE,IF(X53:AF53=1,$X$4:$AF$4,\"\"))=\"\",\"-\",_xlfn.TEXTJOIN(\"; \",TRUE,IF(X53:AF53=1,$X$4:$AF$4,\"\")))","v":"-"},{"$f":"IF(_xlfn.TEXTJOIN(\"; \",TRUE,IF(AG53:AO53=1,$AG$4:$AO$4,\"\"))=\"\",\"-\",_xlfn.TEXTJOIN(\"; \",TRUE,IF(AG53:AO53=1,$AG$4:$AO$4,\"\")))","v":"-"},"Number",0,0,0,0,0,0,0,0,0,0,0,0,1,0,0,0,0,0,0,0,0,0,0,0,0,0,0,0,0,0,0,0,1,0,0,0,0]
[null,"TA050","Number of tools created","-",{"$f":"IF(_xlfn.TEXTJOIN(\"; \",TRUE,IF(AP54:AT54=1,$AP$4:$AT$4,\"\"))=\"\",\"ERROR\",_xlfn.TEXTJOIN(\"; \",TRUE,IF(AP54:AT54=1,$AP$4:$AT$4,\"\")))","v":"Activity"},{"$f":"IF(_xlfn.TEXTJOIN(\"; \",TRUE,IF(J54:W54=1,$J$4:$W$4,\"\"))=\"\",\"-\",_xlfn.TEXTJOIN(\"; \",TRUE,IF(J54:W54=1,$J$4:$W$4,\"\")))","v":"Data, software, tools and models"},{"$f":"IF(_xlfn.TEXTJOIN(\"; \",TRUE,IF(X54:AF54=1,$X$4:$AF$4,\"\"))=\"\",\"-\",_xlfn.TEXTJOIN(\"; \",TRUE,IF(X54:AF54=1,$X$4:$AF$4,\"\")))","v":"-"},{"$f":"IF(_xlfn.TEXTJOIN(\"; \",TRUE,IF(AG54:AO54=1,$AG$4:$AO$4,\"\"))=\"\",\"-\",_xlfn.TEXTJOIN(\"; \",TRUE,IF(AG54:AO54=1,$AG$4:$AO$4,\"\")))","v":"-"},"Number",0,0,0,0,0,0,0,0,0,0,0,0,1,0,0,0,0,0,0,0,0,0,0,0,0,0,0,0,0,0,0,0,1,0,0,0,0]
[null,"TA051","Number of stakeholders that present tool or its results","-",{"$f":"IF(_xlfn.TEXTJOIN(\"; \",TRUE,IF(AP55:AT55=1,$AP$4:$AT$4,\"\"))=\"\",\"ERROR\",_xlfn.TEXTJOIN(\"; \",TRUE,IF(AP55:AT55=1,$AP$4:$AT$4,\"\")))","v":"Output"},{"$f":"IF(_xlfn.TEXTJOIN(\"; \",TRUE,IF(J55:W55=1,$J$4:$W$4,\"\"))=\"\",\"-\",_xlfn.TEXTJOIN(\"; \",TRUE,IF(J55:W55=1,$J$4:$W$4,\"\")))","v":"-"},{"$f":"IF(_xlfn.TEXTJOIN(\"; \",TRUE,IF(X55:AF55=1,$X$4:$AF$4,\"\"))=\"\",\"-\",_xlfn.TEXTJOIN(\"; \",TRUE,IF(X55:AF55=1,$X$4:$AF$4,\"\")))","v":"Capacity building: Technical capacity"},{"$f":"IF(_xlfn.TEXTJOIN(\"; \",TRUE,IF(AG55:AO55=1,$AG$4:$AO$4,\"\"))=\"\",\"-\",_xlfn.TEXTJOIN(\"; \",TRUE,IF(AG55:AO55=1,$AG$4:$AO$4,\"\")))","v":"-"},"Number",0,0,0,0,0,0,0,0,0,0,0,0,0,0,0,1,0,0,0,0,0,0,0,0,0,0,0,0,0,0,0,0,0,0,1,0,0]
[null,"TA052","Number of users that report the tool contribute to programme objectives","-",{"$f":"IF(_xlfn.TEXTJOIN(\"; \",TRUE,IF(AP56:AT56=1,$AP$4:$AT$4,\"\"))=\"\",\"ERROR\",_xlfn.TEXTJOIN(\"; \",TRUE,IF(AP56:AT56=1,$AP$4:$AT$4,\"\")))","v":"Output"},{"$f":"IF(_xlfn.TEXTJOIN(\"; \",TRUE,IF(J56:W56=1,$J$4:$W$4,\"\"))=\"\",\"-\",_xlfn.TEXTJOIN(\"; \",TRUE,IF(J56:W56=1,$J$4:$W$4,\"\")))","v":"-"},{"$f":"IF(_xlfn.TEXTJOIN(\"; \",TRUE,IF(X56:AF56=1,$X$4:$AF$4,\"\"))=\"\",\"-\",_xlfn.TEXTJOIN(\"; \",TRUE,IF(X56:AF56=1,$X$4:$AF$4,\"\")))","v":"Capacity building: Technical capacity"},{"$f":"IF(_xlfn.TEXTJOIN(\"; \",TRUE,IF(AG56:AO56=1,$AG$4:$AO$4,\"\"))=\"\",\"-\",_xlfn.TEXTJOIN(\"; \",TRUE,IF(AG56:AO56=1,$AG$4:$AO$4,\"\")))","v":"-"},"Number",0,0,0,0,0,0,0,0,0,0,0,0,0,0,0,1,0,0,0,0,0,0,0,0,0,0,0,0,0,0,0,0,0,0,1,0,0]
[null,"TA053","Number of policymakers external to the programme that plan to adopt tool methodology","-",{"$f":"IF(_xlfn.TEXTJOIN(\"; \",TRUE,IF(AP57:AT57=1,$AP$4:$AT$4,\"\"))=\"\",\"ERROR\",_xlfn.TEXTJOIN(\"; \",TRUE,IF(AP57:AT57=1,$AP$4:$AT$4,\"\")))","v":"Output"},{"$f":"IF(_xlfn.TEXTJOIN(\"; \",TRUE,IF(J57:W57=1,$J$4:$W$4,\"\"))=\"\",\"-\",_xlfn.TEXTJOIN(\"; \",TRUE,IF(J57:W57=1,$J$4:$W$4,\"\")))","v":"-"},{"$f":"IF(_xlfn.TEXTJOIN(\"; \",TRUE,IF(X57:AF57=1,$X$4:$AF$4,\"\"))=\"\",\"-\",_xlfn.TEXTJOIN(\"; \",TRUE,IF(X57:AF57=1,$X$4:$AF$4,\"\")))","v":"Capacity building: Technical capacity"},{"$f":"IF(_xlfn.TEXTJOIN(\"; \",TRUE,IF(AG57:AO57=1,$AG$4:$AO$4,\"\"))=\"\",\"-\",_xlfn.TEXTJOIN(\"; \",TRUE,IF(AG57:AO57=1,$AG$4:$AO$4,\"\")))","v":"-"},"Number",0,0,0,0,0,0,0,0,0,0,0,0,0,0,0,1,0,0,0,0,0,0,0,0,0,0,0,0,0,0,0,0,0,0,1,0,0]
[null,"TA054","Number of countries where high-level government representatives or stakeholders refer to the tool","-",{"$f":"IF(_xlfn.TEXTJOIN(\"; \",TRUE,IF(AP58:AT58=1,$AP$4:$AT$4,\"\"))=\"\",\"ERROR\",_xlfn.TEXTJOIN(\"; \",TRUE,IF(AP58:AT58=1,$AP$4:$AT$4,\"\")))","v":"Uptake"},{"$f":"IF(_xlfn.TEXTJOIN(\"; \",TRUE,IF(J58:W58=1,$J$4:$W$4,\"\"))=\"\",\"-\",_xlfn.TEXTJOIN(\"; \",TRUE,IF(J58:W58=1,$J$4:$W$4,\"\")))","v":"Data, software, tools and models"},{"$f":"IF(_xlfn.TEXTJOIN(\"; \",TRUE,IF(X58:AF58=1,$X$4:$AF$4,\"\"))=\"\",\"-\",_xlfn.TEXTJOIN(\"; \",TRUE,IF(X58:AF58=1,$X$4:$AF$4,\"\")))","v":"-"},{"$f":"IF(_xlfn.TEXTJOIN(\"; \",TRUE,IF(AG58:AO58=1,$AG$4:$AO$4,\"\"))=\"\",\"-\",_xlfn.TEXTJOIN(\"; \",TRUE,IF(AG58:AO58=1,$AG$4:$AO$4,\"\")))","v":"-"},"Number",0,0,0,0,0,0,0,0,0,0,0,0,1,0,0,0,0,0,0,0,0,0,0,0,0,0,0,0,0,0,0,0,0,1,0,0,0]
[null,"TA055","Number of countries that have launched the tool","-",{"$f":"IF(_xlfn.TEXTJOIN(\"; \",TRUE,IF(AP59:AT59=1,$AP$4:$AT$4,\"\"))=\"\",\"ERROR\",_xlfn.TEXTJOIN(\"; \",TRUE,IF(AP59:AT59=1,$AP$4:$AT$4,\"\")))","v":"Uptake"},{"$f":"IF(_xlfn.TEXTJOIN(\"; \",TRUE,IF(J59:W59=1,$J$4:$W$4,\"\"))=\"\",\"-\",_xlfn.TEXTJOIN(\"; \",TRUE,IF(J59:W59=1,$J$4:$W$4,\"\")))","v":"Data, software, tools and models"},{"$f":"IF(_xlfn.TEXTJOIN(\"; \",TRUE,IF(X59:AF59=1,$X$4:$AF$4,\"\"))=\"\",\"-\",_xlfn.TEXTJOIN(\"; \",TRUE,IF(X59:AF59=1,$X$4:$AF$4,\"\")))","v":"-"},{"$f":"IF(_xlfn.TEXTJOIN(\"; \",TRUE,IF(AG59:AO59=1,$AG$4:$AO$4,\"\"))=\"\",\"-\",_xlfn.TEXTJOIN(\"; \",TRUE,IF(AG59:AO59=1,$AG$4:$AO$4,\"\")))","v":"-"},"Number",0,0,0,0,0,0,0,0,0,0,0,0,1,0,0,0,0,0,0,0,0,0,0,0,0,0,0,0,0,0,0,0,0,1,0,0,0]
[null,"TA056","Number of countries that have launched the tool and it is used","-",{"$f":"IF(_xlfn.TEXTJOIN(\"; \",TRUE,IF(AP60:AT60=1,$AP$4:$AT$4,\"\"))=\"\",\"ERROR\",_xlfn.TEXTJOIN(\"; \",TRUE,IF(AP60:AT60=1,$AP$4:$AT$4,\"\")))","v":"Uptake"},{"$f":"IF(_xlfn.TEXTJOIN(\"; \",TRUE,IF(J60:W60=1,$J$4:$W$4,\"\"))=\"\",\"-\",_xlfn.TEXTJOIN(\"; \",TRUE,IF(J60:W60=1,$J$4:$W$4,\"\")))","v":"Data, software, tools and models"},{"$f":"IF(_xlfn.TEXTJOIN(\"; \",TRUE,IF(X60:AF60=1,$X$4:$AF$4,\"\"))=\"\",\"-\",_xlfn.TEXTJOIN(\"; \",TRUE,IF(X60:AF60=1,$X$4:$AF$4,\"\")))","v":"-"},{"$f":"IF(_xlfn.TEXTJOIN(\"; \",TRUE,IF(AG60:AO60=1,$AG$4:$AO$4,\"\"))=\"\",\"-\",_xlfn.TEXTJOIN(\"; \",TRUE,IF(AG60:AO60=1,$AG$4:$AO$4,\"\")))","v":"-"},"Number",0,0,0,0,0,0,0,0,0,0,0,0,1,0,0,0,0,0,0,0,0,0,0,0,0,0,0,0,0,0,0,0,0,1,0,0,0]
[null,"TA057","Number of countries that publish additional documentation for the tool","-",{"$f":"IF(_xlfn.TEXTJOIN(\"; \",TRUE,IF(AP61:AT61=1,$AP$4:$AT$4,\"\"))=\"\",\"ERROR\",_xlfn.TEXTJOIN(\"; \",TRUE,IF(AP61:AT61=1,$AP$4:$AT$4,\"\")))","v":"Uptake"},{"$f":"IF(_xlfn.TEXTJOIN(\"; \",TRUE,IF(J61:W61=1,$J$4:$W$4,\"\"))=\"\",\"-\",_xlfn.TEXTJOIN(\"; \",TRUE,IF(J61:W61=1,$J$4:$W$4,\"\")))","v":"Data, software, tools and models"},{"$f":"IF(_xlfn.TEXTJOIN(\"; \",TRUE,IF(X61:AF61=1,$X$4:$AF$4,\"\"))=\"\",\"-\",_xlfn.TEXTJOIN(\"; \",TRUE,IF(X61:AF61=1,$X$4:$AF$4,\"\")))","v":"-"},{"$f":"IF(_xlfn.TEXTJOIN(\"; \",TRUE,IF(AG61:AO61=1,$AG$4:$AO$4,\"\"))=\"\",\"-\",_xlfn.TEXTJOIN(\"; \",TRUE,IF(AG61:AO61=1,$AG$4:$AO$4,\"\")))","v":"-"},"Number",0,0,0,0,0,0,0,0,0,0,0,0,1,0,0,0,0,0,0,0,0,0,0,0,0,0,0,0,0,0,0,0,0,1,0,0,0]
[null,"TA058","Number of countries where the tool is mentioned positively in at least three press mentions","-",{"$f":"IF(_xlfn.TEXTJOIN(\"; \",TRUE,IF(AP62:AT62=1,$AP$4:$AT$4,\"\"))=\"\",\"ERROR\",_xlfn.TEXTJOIN(\"; \",TRUE,IF(AP62:AT62=1,$AP$4:$AT$4,\"\")))","v":"Uptake"},{"$f":"IF(_xlfn.TEXTJOIN(\"; \",TRUE,IF(J62:W62=1,$J$4:$W$4,\"\"))=\"\",\"-\",_xlfn.TEXTJOIN(\"; \",TRUE,IF(J62:W62=1,$J$4:$W$4,\"\")))","v":"Data, software, tools and models"},{"$f":"IF(_xlfn.TEXTJOIN(\"; \",TRUE,IF(X62:AF62=1,$X$4:$AF$4,\"\"))=\"\",\"-\",_xlfn.TEXTJOIN(\"; \",TRUE,IF(X62:AF62=1,$X$4:$AF$4,\"\")))","v":"-"},{"$f":"IF(_xlfn.TEXTJOIN(\"; \",TRUE,IF(AG62:AO62=1,$AG$4:$AO$4,\"\"))=\"\",\"-\",_xlfn.TEXTJOIN(\"; \",TRUE,IF(AG62:AO62=1,$AG$4:$AO$4,\"\")))","v":"-"},"Number",0,0,0,0,0,0,0,0,0,0,0,0,1,0,0,0,0,0,0,0,0,0,0,0,0,0,0,0,0,0,0,0,0,1,0,0,0]
[null,"TA059","Number of programme local representatives that are satisfied with the impact of the tool","-",{"$f":"IF(_xlfn.TEXTJOIN(\"; \",TRUE,IF(AP63:AT63=1,$AP$4:$AT$4,\"\"))=\"\",\"ERROR\",_xlfn.TEXTJOIN(\"; \",TRUE,IF(AP63:AT63=1,$AP$4:$AT$4,\"\")))","v":"Output"},{"$f":"IF(_xlfn.TEXTJOIN(\"; \",TRUE,IF(J63:W63=1,$J$4:$W$4,\"\"))=\"\",\"-\",_xlfn.TEXTJOIN(\"; \",TRUE,IF(J63:W63=1,$J$4:$W$4,\"\")))","v":"-"},{"$f":"IF(_xlfn.TEXTJOIN(\"; \",TRUE,IF(X63:AF63=1,$X$4:$AF$4,\"\"))=\"\",\"-\",_xlfn.TEXTJOIN(\"; \",TRUE,IF(X63:AF63=1,$X$4:$AF$4,\"\")))","v":"Capacity building: Technical capacity"},{"$f":"IF(_xlfn.TEXTJOIN(\"; \",TRUE,IF(AG63:AO63=1,$AG$4:$AO$4,\"\"))=\"\",\"-\",_xlfn.TEXTJOIN(\"; \",TRUE,IF(AG63:AO63=1,$AG$4:$AO$4,\"\")))","v":"-"},"Number",0,0,0,0,0,0,0,0,0,0,0,0,0,0,0,1,0,0,0,0,0,0,0,0,0,0,0,0,0,0,0,0,0,0,1,0,0]
[null,"TA060","Number of countries that have launched an own version of the tool","-",{"$f":"IF(_xlfn.TEXTJOIN(\"; \",TRUE,IF(AP64:AT64=1,$AP$4:$AT$4,\"\"))=\"\",\"ERROR\",_xlfn.TEXTJOIN(\"; \",TRUE,IF(AP64:AT64=1,$AP$4:$AT$4,\"\")))","v":"Output"},{"$f":"IF(_xlfn.TEXTJOIN(\"; \",TRUE,IF(J64:W64=1,$J$4:$W$4,\"\"))=\"\",\"-\",_xlfn.TEXTJOIN(\"; \",TRUE,IF(J64:W64=1,$J$4:$W$4,\"\")))","v":"-"},{"$f":"IF(_xlfn.TEXTJOIN(\"; \",TRUE,IF(X64:AF64=1,$X$4:$AF$4,\"\"))=\"\",\"-\",_xlfn.TEXTJOIN(\"; \",TRUE,IF(X64:AF64=1,$X$4:$AF$4,\"\")))","v":"Capacity building: Technical capacity"},{"$f":"IF(_xlfn.TEXTJOIN(\"; \",TRUE,IF(AG64:AO64=1,$AG$4:$AO$4,\"\"))=\"\",\"-\",_xlfn.TEXTJOIN(\"; \",TRUE,IF(AG64:AO64=1,$AG$4:$AO$4,\"\")))","v":"-"},"Number",0,0,0,0,0,0,0,0,0,0,0,0,0,0,0,1,0,0,0,0,0,0,0,0,0,0,0,0,0,0,0,0,0,0,1,0,0]
[null,"TA061","Number of workshops and/or training sessions to support the tools","-",{"$f":"IF(_xlfn.TEXTJOIN(\"; \",TRUE,IF(AP65:AT65=1,$AP$4:$AT$4,\"\"))=\"\",\"ERROR\",_xlfn.TEXTJOIN(\"; \",TRUE,IF(AP65:AT65=1,$AP$4:$AT$4,\"\")))","v":"Activity"},{"$f":"IF(_xlfn.TEXTJOIN(\"; \",TRUE,IF(J65:W65=1,$J$4:$W$4,\"\"))=\"\",\"-\",_xlfn.TEXTJOIN(\"; \",TRUE,IF(J65:W65=1,$J$4:$W$4,\"\")))","v":"Data, software, tools and models"},{"$f":"IF(_xlfn.TEXTJOIN(\"; \",TRUE,IF(X65:AF65=1,$X$4:$AF$4,\"\"))=\"\",\"-\",_xlfn.TEXTJOIN(\"; \",TRUE,IF(X65:AF65=1,$X$4:$AF$4,\"\")))","v":"-"},{"$f":"IF(_xlfn.TEXTJOIN(\"; \",TRUE,IF(AG65:AO65=1,$AG$4:$AO$4,\"\"))=\"\",\"-\",_xlfn.TEXTJOIN(\"; \",TRUE,IF(AG65:AO65=1,$AG$4:$AO$4,\"\")))","v":"-"},"Yes/No",0,0,0,0,0,0,0,0,0,0,0,0,1,0,0,0,0,0,0,0,0,0,0,0,0,0,0,0,0,0,0,0,1,0,0,0,0]
[null,"TA062","Improved data availability among beneficiaries","Can be assessed through surveys",{"$f":"IF(_xlfn.TEXTJOIN(\"; \",TRUE,IF(AP66:AT66=1,$AP$4:$AT$4,\"\"))=\"\",\"ERROR\",_xlfn.TEXTJOIN(\"; \",TRUE,IF(AP66:AT66=1,$AP$4:$AT$4,\"\")))","v":"Output"},{"$f":"IF(_xlfn.TEXTJOIN(\"; \",TRUE,IF(J66:W66=1,$J$4:$W$4,\"\"))=\"\",\"-\",_xlfn.TEXTJOIN(\"; \",TRUE,IF(J66:W66=1,$J$4:$W$4,\"\")))","v":"-"},{"$f":"IF(_xlfn.TEXTJOIN(\"; \",TRUE,IF(X66:AF66=1,$X$4:$AF$4,\"\"))=\"\",\"-\",_xlfn.TEXTJOIN(\"; \",TRUE,IF(X66:AF66=1,$X$4:$AF$4,\"\")))","v":"Capacity building: Technical capacity"},{"$f":"IF(_xlfn.TEXTJOIN(\"; \",TRUE,IF(AG66:AO66=1,$AG$4:$AO$4,\"\"))=\"\",\"-\",_xlfn.TEXTJOIN(\"; \",TRUE,IF(AG66:AO66=1,$AG$4:$AO$4,\"\")))","v":"-"},"Yes/No",0,0,0,0,0,0,0,0,0,0,0,0,0,0,0,1,0,0,0,0,0,0,0,0,0,0,0,0,0,0,0,0,0,0,1,0,0]
[null,"TA063","Number of organisations with improved data availability, IT hardware or software","-",{"$f":"IF(_xlfn.TEXTJOIN(\"; \",TRUE,IF(AP67:AT67=1,$AP$4:$AT$4,\"\"))=\"\",\"ERROR\",_xlfn.TEXTJOIN(\"; \",TRUE,IF(AP67:AT67=1,$AP$4:$AT$4,\"\")))","v":"Uptake"},{"$f":"IF(_xlfn.TEXTJOIN(\"; \",TRUE,IF(J67:W67=1,$J$4:$W$4,\"\"))=\"\",\"-\",_xlfn.TEXTJOIN(\"; \",TRUE,IF(J67:W67=1,$J$4:$W$4,\"\")))","v":"Data, software, tools and models"},{"$f":"IF(_xlfn.TEXTJOIN(\"; \",TRUE,IF(X67:AF67=1,$X$4:$AF$4,\"\"))=\"\",\"-\",_xlfn.TEXTJOIN(\"; \",TRUE,IF(X67:AF67=1,$X$4:$AF$4,\"\")))","v":"-"},{"$f":"IF(_xlfn.TEXTJOIN(\"; \",TRUE,IF(AG67:AO67=1,$AG$4:$AO$4,\"\"))=\"\",\"-\",_xlfn.TEXTJOIN(\"; \",TRUE,IF(AG67:AO67=1,$AG$4:$AO$4,\"\")))","v":"-"},"Number",0,0,0,0,0,0,0,0,0,0,0,0,1,0,0,0,0,0,0,0,0,0,0,0,0,0,0,0,0,0,0,0,0,1,0,0,0]
[null,"TA064","Share of users satisfied with data, software, tools or models","-",{"$f":"IF(_xlfn.TEXTJOIN(\"; \",TRUE,IF(AP68:AT68=1,$AP$4:$AT$4,\"\"))=\"\",\"ERROR\",_xlfn.TEXTJOIN(\"; \",TRUE,IF(AP68:AT68=1,$AP$4:$AT$4,\"\")))","v":"Uptake"},{"$f":"IF(_xlfn.TEXTJOIN(\"; \",TRUE,IF(J68:W68=1,$J$4:$W$4,\"\"))=\"\",\"-\",_xlfn.TEXTJOIN(\"; \",TRUE,IF(J68:W68=1,$J$4:$W$4,\"\")))","v":"Data, software, tools and models"},{"$f":"IF(_xlfn.TEXTJOIN(\"; \",TRUE,IF(X68:AF68=1,$X$4:$AF$4,\"\"))=\"\",\"-\",_xlfn.TEXTJOIN(\"; \",TRUE,IF(X68:AF68=1,$X$4:$AF$4,\"\")))","v":"-"},{"$f":"IF(_xlfn.TEXTJOIN(\"; \",TRUE,IF(AG68:AO68=1,$AG$4:$AO$4,\"\"))=\"\",\"-\",_xlfn.TEXTJOIN(\"; \",TRUE,IF(AG68:AO68=1,$AG$4:$AO$4,\"\")))","v":"-"},"Percentage",0,0,0,0,0,0,0,0,0,0,0,0,1,0,0,0,0,0,0,0,0,0,0,0,0,0,0,0,0,0,0,0,0,1,0,0,0]
[null,"TA065","Percentage of agreed improvements for tool implemented","-",{"$f":"IF(_xlfn.TEXTJOIN(\"; \",TRUE,IF(AP69:AT69=1,$AP$4:$AT$4,\"\"))=\"\",\"ERROR\",_xlfn.TEXTJOIN(\"; \",TRUE,IF(AP69:AT69=1,$AP$4:$AT$4,\"\")))","v":"Activity"},{"$f":"IF(_xlfn.TEXTJOIN(\"; \",TRUE,IF(J69:W69=1,$J$4:$W$4,\"\"))=\"\",\"-\",_xlfn.TEXTJOIN(\"; \",TRUE,IF(J69:W69=1,$J$4:$W$4,\"\")))","v":"Data, software, tools and models"},{"$f":"IF(_xlfn.TEXTJOIN(\"; \",TRUE,IF(X69:AF69=1,$X$4:$AF$4,\"\"))=\"\",\"-\",_xlfn.TEXTJOIN(\"; \",TRUE,IF(X69:AF69=1,$X$4:$AF$4,\"\")))","v":"-"},{"$f":"IF(_xlfn.TEXTJOIN(\"; \",TRUE,IF(AG69:AO69=1,$AG$4:$AO$4,\"\"))=\"\",\"-\",_xlfn.TEXTJOIN(\"; \",TRUE,IF(AG69:AO69=1,$AG$4:$AO$4,\"\")))","v":"-"},"Percentage",0,0,0,0,0,0,0,0,0,0,0,0,1,0,0,0,0,0,0,0,0,0,0,0,0,0,0,0,0,0,0,0,1,0,0,0,0]
[null,"TA066","Model sensitivity communication completed","-",{"$f":"IF(_xlfn.TEXTJOIN(\"; \",TRUE,IF(AP70:AT70=1,$AP$4:$AT$4,\"\"))=\"\",\"ERROR\",_xlfn.TEXTJOIN(\"; \",TRUE,IF(AP70:AT70=1,$AP$4:$AT$4,\"\")))","v":"Activity"},{"$f":"IF(_xlfn.TEXTJOIN(\"; \",TRUE,IF(J70:W70=1,$J$4:$W$4,\"\"))=\"\",\"-\",_xlfn.TEXTJOIN(\"; \",TRUE,IF(J70:W70=1,$J$4:$W$4,\"\")))","v":"Data, software, tools and models"},{"$f":"IF(_xlfn.TEXTJOIN(\"; \",TRUE,IF(X70:AF70=1,$X$4:$AF$4,\"\"))=\"\",\"-\",_xlfn.TEXTJOIN(\"; \",TRUE,IF(X70:AF70=1,$X$4:$AF$4,\"\")))","v":"-"},{"$f":"IF(_xlfn.TEXTJOIN(\"; \",TRUE,IF(AG70:AO70=1,$AG$4:$AO$4,\"\"))=\"\",\"-\",_xlfn.TEXTJOIN(\"; \",TRUE,IF(AG70:AO70=1,$AG$4:$AO$4,\"\")))","v":"-"},"Yes/No",0,0,0,0,0,0,0,0,0,0,0,0,1,0,0,0,0,0,0,0,0,0,0,0,0,0,0,0,0,0,0,0,1,0,0,0,0]
[null,"TA067","Number of knowledge products produced","-",{"$f":"IF(_xlfn.TEXTJOIN(\"; \",TRUE,IF(AP71:AT71=1,$AP$4:$AT$4,\"\"))=\"\",\"ERROR\",_xlfn.TEXTJOIN(\"; \",TRUE,IF(AP71:AT71=1,$AP$4:$AT$4,\"\")))","v":"Activity"},{"$f":"IF(_xlfn.TEXTJOIN(\"; \",TRUE,IF(J71:W71=1,$J$4:$W$4,\"\"))=\"\",\"-\",_xlfn.TEXTJOIN(\"; \",TRUE,IF(J71:W71=1,$J$4:$W$4,\"\")))","v":"Research & development"},{"$f":"IF(_xlfn.TEXTJOIN(\"; \",TRUE,IF(X71:AF71=1,$X$4:$AF$4,\"\"))=\"\",\"-\",_xlfn.TEXTJOIN(\"; \",TRUE,IF(X71:AF71=1,$X$4:$AF$4,\"\")))","v":"-"},{"$f":"IF(_xlfn.TEXTJOIN(\"; \",TRUE,IF(AG71:AO71=1,$AG$4:$AO$4,\"\"))=\"\",\"-\",_xlfn.TEXTJOIN(\"; \",TRUE,IF(AG71:AO71=1,$AG$4:$AO$4,\"\")))","v":"-"},"Number",0,0,0,0,0,0,0,0,0,0,0,0,0,1,0,0,0,0,0,0,0,0,0,0,0,0,0,0,0,0,0,0,1,0,0,0,0]
[null,"TA068","Number of citations in academic or policy literature","-",{"$f":"IF(_xlfn.TEXTJOIN(\"; \",TRUE,IF(AP72:AT72=1,$AP$4:$AT$4,\"\"))=\"\",\"ERROR\",_xlfn.TEXTJOIN(\"; \",TRUE,IF(AP72:AT72=1,$AP$4:$AT$4,\"\")))","v":"Uptake"},{"$f":"IF(_xlfn.TEXTJOIN(\"; \",TRUE,IF(J72:W72=1,$J$4:$W$4,\"\"))=\"\",\"-\",_xlfn.TEXTJOIN(\"; \",TRUE,IF(J72:W72=1,$J$4:$W$4,\"\")))","v":"Research & development"},{"$f":"IF(_xlfn.TEXTJOIN(\"; \",TRUE,IF(X72:AF72=1,$X$4:$AF$4,\"\"))=\"\",\"-\",_xlfn.TEXTJOIN(\"; \",TRUE,IF(X72:AF72=1,$X$4:$AF$4,\"\")))","v":"-"},{"$f":"IF(_xlfn.TEXTJOIN(\"; \",TRUE,IF(AG72:AO72=1,$AG$4:$AO$4,\"\"))=\"\",\"-\",_xlfn.TEXTJOIN(\"; \",TRUE,IF(AG72:AO72=1,$AG$4:$AO$4,\"\")))","v":"-"},"Number",0,0,0,0,0,0,0,0,0,0,0,0,0,1,0,0,0,0,0,0,0,0,0,0,0,0,0,0,0,0,0,0,0,1,0,0,0]
[null,"TA069","Knowledge products use multidisciplinary approaches","-",{"$f":"IF(_xlfn.TEXTJOIN(\"; \",TRUE,IF(AP73:AT73=1,$AP$4:$AT$4,\"\"))=\"\",\"ERROR\",_xlfn.TEXTJOIN(\"; \",TRUE,IF(AP73:AT73=1,$AP$4:$AT$4,\"\")))","v":"Activity"},{"$f":"IF(_xlfn.TEXTJOIN(\"; \",TRUE,IF(J73:W73=1,$J$4:$W$4,\"\"))=\"\",\"-\",_xlfn.TEXTJOIN(\"; \",TRUE,IF(J73:W73=1,$J$4:$W$4,\"\")))","v":"Research & development"},{"$f":"IF(_xlfn.TEXTJOIN(\"; \",TRUE,IF(X73:AF73=1,$X$4:$AF$4,\"\"))=\"\",\"-\",_xlfn.TEXTJOIN(\"; \",TRUE,IF(X73:AF73=1,$X$4:$AF$4,\"\")))","v":"-"},{"$f":"IF(_xlfn.TEXTJOIN(\"; \",TRUE,IF(AG73:AO73=1,$AG$4:$AO$4,\"\"))=\"\",\"-\",_xlfn.TEXTJOIN(\"; \",TRUE,IF(AG73:AO73=1,$AG$4:$AO$4,\"\")))","v":"-"},"Narrative",0,0,0,0,0,0,0,0,0,0,0,0,0,1,0,0,0,0,0,0,0,0,0,0,0,0,0,0,0,0,0,0,1,0,0,0,0]
[null,"TA070","Participation of targeted group in research","-",{"$f":"IF(_xlfn.TEXTJOIN(\"; \",TRUE,IF(AP74:AT74=1,$AP$4:$AT$4,\"\"))=\"\",\"ERROR\",_xlfn.TEXTJOIN(\"; \",TRUE,IF(AP74:AT74=1,$AP$4:$AT$4,\"\")))","v":"Uptake"},{"$f":"IF(_xlfn.TEXTJOIN(\"; \",TRUE,IF(J74:W74=1,$J$4:$W$4,\"\"))=\"\",\"-\",_xlfn.TEXTJOIN(\"; \",TRUE,IF(J74:W74=1,$J$4:$W$4,\"\")))","v":"Research & development"},{"$f":"IF(_xlfn.TEXTJOIN(\"; \",TRUE,IF(X74:AF74=1,$X$4:$AF$4,\"\"))=\"\",\"-\",_xlfn.TEXTJOIN(\"; \",TRUE,IF(X74:AF74=1,$X$4:$AF$4,\"\")))","v":"-"},{"$f":"IF(_xlfn.TEXTJOIN(\"; \",TRUE,IF(AG74:AO74=1,$AG$4:$AO$4,\"\"))=\"\",\"-\",_xlfn.TEXTJOIN(\"; \",TRUE,IF(AG74:AO74=1,$AG$4:$AO$4,\"\")))","v":"-"},"Yes/No",0,0,0,0,0,0,0,0,0,0,0,0,0,1,0,0,0,0,0,0,0,0,0,0,0,0,0,0,0,0,0,0,0,1,0,0,0]
[null,"TA071","Proportion of research/knowledge produced rated good by independent researcher or useful by audience","-",{"$f":"IF(_xlfn.TEXTJOIN(\"; \",TRUE,IF(AP75:AT75=1,$AP$4:$AT$4,\"\"))=\"\",\"ERROR\",_xlfn.TEXTJOIN(\"; \",TRUE,IF(AP75:AT75=1,$AP$4:$AT$4,\"\")))","v":"Uptake"},{"$f":"IF(_xlfn.TEXTJOIN(\"; \",TRUE,IF(J75:W75=1,$J$4:$W$4,\"\"))=\"\",\"-\",_xlfn.TEXTJOIN(\"; \",TRUE,IF(J75:W75=1,$J$4:$W$4,\"\")))","v":"Research & development"},{"$f":"IF(_xlfn.TEXTJOIN(\"; \",TRUE,IF(X75:AF75=1,$X$4:$AF$4,\"\"))=\"\",\"-\",_xlfn.TEXTJOIN(\"; \",TRUE,IF(X75:AF75=1,$X$4:$AF$4,\"\")))","v":"-"},{"$f":"IF(_xlfn.TEXTJOIN(\"; \",TRUE,IF(AG75:AO75=1,$AG$4:$AO$4,\"\"))=\"\",\"-\",_xlfn.TEXTJOIN(\"; \",TRUE,IF(AG75:AO75=1,$AG$4:$AO$4,\"\")))","v":"-"},"Percentage",0,0,0,0,0,0,0,0,0,0,0,0,0,1,0,0,0,0,0,0,0,0,0,0,0,0,0,0,0,0,0,0,0,1,0,0,0]
[null,"TA072","Number (and diversity) of stakeholder accessing the knowledge products","-",{"$f":"IF(_xlfn.TEXTJOIN(\"; \",TRUE,IF(AP76:AT76=1,$AP$4:$AT$4,\"\"))=\"\",\"ERROR\",_xlfn.TEXTJOIN(\"; \",TRUE,IF(AP76:AT76=1,$AP$4:$AT$4,\"\")))","v":"Uptake"},{"$f":"IF(_xlfn.TEXTJOIN(\"; \",TRUE,IF(J76:W76=1,$J$4:$W$4,\"\"))=\"\",\"-\",_xlfn.TEXTJOIN(\"; \",TRUE,IF(J76:W76=1,$J$4:$W$4,\"\")))","v":"Research & development"},{"$f":"IF(_xlfn.TEXTJOIN(\"; \",TRUE,IF(X76:AF76=1,$X$4:$AF$4,\"\"))=\"\",\"-\",_xlfn.TEXTJOIN(\"; \",TRUE,IF(X76:AF76=1,$X$4:$AF$4,\"\")))","v":"-"},{"$f":"IF(_xlfn.TEXTJOIN(\"; \",TRUE,IF(AG76:AO76=1,$AG$4:$AO$4,\"\"))=\"\",\"-\",_xlfn.TEXTJOIN(\"; \",TRUE,IF(AG76:AO76=1,$AG$4:$AO$4,\"\")))","v":"-"},"Number",0,0,0,0,0,0,0,0,0,0,0,0,0,1,0,0,0,0,0,0,0,0,0,0,0,0,0,0,0,0,0,0,0,1,0,0,0]
[null,"TA073","Targeted institution or mechanism established or strengthened ","-",{"$f":"IF(_xlfn.TEXTJOIN(\"; \",TRUE,IF(AP77:AT77=1,$AP$4:$AT$4,\"\"))=\"\",\"ERROR\",_xlfn.TEXTJOIN(\"; \",TRUE,IF(AP77:AT77=1,$AP$4:$AT$4,\"\")))","v":"Output"},{"$f":"IF(_xlfn.TEXTJOIN(\"; \",TRUE,IF(J77:W77=1,$J$4:$W$4,\"\"))=\"\",\"-\",_xlfn.TEXTJOIN(\"; \",TRUE,IF(J77:W77=1,$J$4:$W$4,\"\")))","v":"-"},{"$f":"IF(_xlfn.TEXTJOIN(\"; \",TRUE,IF(X77:AF77=1,$X$4:$AF$4,\"\"))=\"\",\"-\",_xlfn.TEXTJOIN(\"; \",TRUE,IF(X77:AF77=1,$X$4:$AF$4,\"\")))","v":"Capacity building: Institutional capacity"},{"$f":"IF(_xlfn.TEXTJOIN(\"; \",TRUE,IF(AG77:AO77=1,$AG$4:$AO$4,\"\"))=\"\",\"-\",_xlfn.TEXTJOIN(\"; \",TRUE,IF(AG77:AO77=1,$AG$4:$AO$4,\"\")))","v":"-"},"Yes/No",0,0,0,0,0,0,0,0,0,0,0,0,0,0,1,0,0,0,0,0,0,0,0,0,0,0,0,0,0,0,0,0,0,0,1,0,0]
[null,"TA074","Number of countries with improved regulations and laws","-",{"$f":"IF(_xlfn.TEXTJOIN(\"; \",TRUE,IF(AP78:AT78=1,$AP$4:$AT$4,\"\"))=\"\",\"ERROR\",_xlfn.TEXTJOIN(\"; \",TRUE,IF(AP78:AT78=1,$AP$4:$AT$4,\"\")))","v":"Output"},{"$f":"IF(_xlfn.TEXTJOIN(\"; \",TRUE,IF(J78:W78=1,$J$4:$W$4,\"\"))=\"\",\"-\",_xlfn.TEXTJOIN(\"; \",TRUE,IF(J78:W78=1,$J$4:$W$4,\"\")))","v":"-"},{"$f":"IF(_xlfn.TEXTJOIN(\"; \",TRUE,IF(X78:AF78=1,$X$4:$AF$4,\"\"))=\"\",\"-\",_xlfn.TEXTJOIN(\"; \",TRUE,IF(X78:AF78=1,$X$4:$AF$4,\"\")))","v":"Capacity building: Institutional capacity"},{"$f":"IF(_xlfn.TEXTJOIN(\"; \",TRUE,IF(AG78:AO78=1,$AG$4:$AO$4,\"\"))=\"\",\"-\",_xlfn.TEXTJOIN(\"; \",TRUE,IF(AG78:AO78=1,$AG$4:$AO$4,\"\")))","v":"-"},"Number",0,0,0,0,0,0,0,0,0,0,0,0,0,0,1,0,0,0,0,0,0,0,0,0,0,0,0,0,0,0,0,0,0,0,1,0,0]
[null,"TA075","Number/percentage of units that provide data","-",{"$f":"IF(_xlfn.TEXTJOIN(\"; \",TRUE,IF(AP79:AT79=1,$AP$4:$AT$4,\"\"))=\"\",\"ERROR\",_xlfn.TEXTJOIN(\"; \",TRUE,IF(AP79:AT79=1,$AP$4:$AT$4,\"\")))","v":"Output"},{"$f":"IF(_xlfn.TEXTJOIN(\"; \",TRUE,IF(J79:W79=1,$J$4:$W$4,\"\"))=\"\",\"-\",_xlfn.TEXTJOIN(\"; \",TRUE,IF(J79:W79=1,$J$4:$W$4,\"\")))","v":"-"},{"$f":"IF(_xlfn.TEXTJOIN(\"; \",TRUE,IF(X79:AF79=1,$X$4:$AF$4,\"\"))=\"\",\"-\",_xlfn.TEXTJOIN(\"; \",TRUE,IF(X79:AF79=1,$X$4:$AF$4,\"\")))","v":"Capacity building: Institutional capacity"},{"$f":"IF(_xlfn.TEXTJOIN(\"; \",TRUE,IF(AG79:AO79=1,$AG$4:$AO$4,\"\"))=\"\",\"-\",_xlfn.TEXTJOIN(\"; \",TRUE,IF(AG79:AO79=1,$AG$4:$AO$4,\"\")))","v":"-"},"Number, Percentage",0,0,0,0,0,0,0,0,0,0,0,0,0,0,1,0,0,0,0,0,0,0,0,0,0,0,0,0,0,0,0,0,0,0,1,0,0]
[null,"TA076","Number of (countries with) approved process plans","Can be assessed based on the number of plans themselves, or at the country level (if multiple organisations within a country may develop plans)",{"$f":"IF(_xlfn.TEXTJOIN(\"; \",TRUE,IF(AP80:AT80=1,$AP$4:$AT$4,\"\"))=\"\",\"ERROR\",_xlfn.TEXTJOIN(\"; \",TRUE,IF(AP80:AT80=1,$AP$4:$AT$4,\"\")))","v":"Output"},{"$f":"IF(_xlfn.TEXTJOIN(\"; \",TRUE,IF(J80:W80=1,$J$4:$W$4,\"\"))=\"\",\"-\",_xlfn.TEXTJOIN(\"; \",TRUE,IF(J80:W80=1,$J$4:$W$4,\"\")))","v":"-"},{"$f":"IF(_xlfn.TEXTJOIN(\"; \",TRUE,IF(X80:AF80=1,$X$4:$AF$4,\"\"))=\"\",\"-\",_xlfn.TEXTJOIN(\"; \",TRUE,IF(X80:AF80=1,$X$4:$AF$4,\"\")))","v":"Capacity building: Institutional capacity"},{"$f":"IF(_xlfn.TEXTJOIN(\"; \",TRUE,IF(AG80:AO80=1,$AG$4:$AO$4,\"\"))=\"\",\"-\",_xlfn.TEXTJOIN(\"; \",TRUE,IF(AG80:AO80=1,$AG$4:$AO$4,\"\")))","v":"-"},"Number",0,0,0,0,0,0,0,0,0,0,0,0,0,0,1,0,0,0,0,0,0,0,0,0,0,0,0,0,0,0,0,0,0,0,1,0,0]
[null,"TA077","Percentage of approved funding disbursed from programme to supported beneficiaries","-",{"$f":"IF(_xlfn.TEXTJOIN(\"; \",TRUE,IF(AP81:AT81=1,$AP$4:$AT$4,\"\"))=\"\",\"ERROR\",_xlfn.TEXTJOIN(\"; \",TRUE,IF(AP81:AT81=1,$AP$4:$AT$4,\"\")))","v":"Output"},{"$f":"IF(_xlfn.TEXTJOIN(\"; \",TRUE,IF(J81:W81=1,$J$4:$W$4,\"\"))=\"\",\"-\",_xlfn.TEXTJOIN(\"; \",TRUE,IF(J81:W81=1,$J$4:$W$4,\"\")))","v":"-"},{"$f":"IF(_xlfn.TEXTJOIN(\"; \",TRUE,IF(X81:AF81=1,$X$4:$AF$4,\"\"))=\"\",\"-\",_xlfn.TEXTJOIN(\"; \",TRUE,IF(X81:AF81=1,$X$4:$AF$4,\"\")))","v":"Capacity building: Institutional capacity"},{"$f":"IF(_xlfn.TEXTJOIN(\"; \",TRUE,IF(AG81:AO81=1,$AG$4:$AO$4,\"\"))=\"\",\"-\",_xlfn.TEXTJOIN(\"; \",TRUE,IF(AG81:AO81=1,$AG$4:$AO$4,\"\")))","v":"-"},"Percentage",0,0,0,0,0,0,0,0,0,0,0,0,0,0,1,0,0,0,0,0,0,0,0,0,0,0,0,0,0,0,0,0,0,0,1,0,0]
[null,"TA078","Number of events or reports that share lessons learned on institution building","-",{"$f":"IF(_xlfn.TEXTJOIN(\"; \",TRUE,IF(AP82:AT82=1,$AP$4:$AT$4,\"\"))=\"\",\"ERROR\",_xlfn.TEXTJOIN(\"; \",TRUE,IF(AP82:AT82=1,$AP$4:$AT$4,\"\")))","v":"Output"},{"$f":"IF(_xlfn.TEXTJOIN(\"; \",TRUE,IF(J82:W82=1,$J$4:$W$4,\"\"))=\"\",\"-\",_xlfn.TEXTJOIN(\"; \",TRUE,IF(J82:W82=1,$J$4:$W$4,\"\")))","v":"-"},{"$f":"IF(_xlfn.TEXTJOIN(\"; \",TRUE,IF(X82:AF82=1,$X$4:$AF$4,\"\"))=\"\",\"-\",_xlfn.TEXTJOIN(\"; \",TRUE,IF(X82:AF82=1,$X$4:$AF$4,\"\")))","v":"Capacity building: Institutional capacity"},{"$f":"IF(_xlfn.TEXTJOIN(\"; \",TRUE,IF(AG82:AO82=1,$AG$4:$AO$4,\"\"))=\"\",\"-\",_xlfn.TEXTJOIN(\"; \",TRUE,IF(AG82:AO82=1,$AG$4:$AO$4,\"\")))","v":"-"},"Number",0,0,0,0,0,0,0,0,0,0,0,0,0,0,1,0,0,0,0,0,0,0,0,0,0,0,0,0,0,0,0,0,0,0,1,0,0]
[null,"TA079","Number of policies, regulations and standards adopted or amended due to programme support","-",{"$f":"IF(_xlfn.TEXTJOIN(\"; \",TRUE,IF(AP83:AT83=1,$AP$4:$AT$4,\"\"))=\"\",\"ERROR\",_xlfn.TEXTJOIN(\"; \",TRUE,IF(AP83:AT83=1,$AP$4:$AT$4,\"\")))","v":"Outcome"},{"$f":"IF(_xlfn.TEXTJOIN(\"; \",TRUE,IF(J83:W83=1,$J$4:$W$4,\"\"))=\"\",\"-\",_xlfn.TEXTJOIN(\"; \",TRUE,IF(J83:W83=1,$J$4:$W$4,\"\")))","v":"-"},{"$f":"IF(_xlfn.TEXTJOIN(\"; \",TRUE,IF(X83:AF83=1,$X$4:$AF$4,\"\"))=\"\",\"-\",_xlfn.TEXTJOIN(\"; \",TRUE,IF(X83:AF83=1,$X$4:$AF$4,\"\")))","v":"-"},{"$f":"IF(_xlfn.TEXTJOIN(\"; \",TRUE,IF(AG83:AO83=1,$AG$4:$AO$4,\"\"))=\"\",\"-\",_xlfn.TEXTJOIN(\"; \",TRUE,IF(AG83:AO83=1,$AG$4:$AO$4,\"\")))","v":"Increased or improved policy development or execution"},"Number",0,0,0,0,0,0,0,0,0,0,0,0,0,0,0,0,0,0,0,0,0,0,0,1,0,0,0,0,0,0,0,0,0,0,0,1,0]
[null,"TA080","Number of recipients or stakeholders that report improved institutional functioning","-",{"$f":"IF(_xlfn.TEXTJOIN(\"; \",TRUE,IF(AP84:AT84=1,$AP$4:$AT$4,\"\"))=\"\",\"ERROR\",_xlfn.TEXTJOIN(\"; \",TRUE,IF(AP84:AT84=1,$AP$4:$AT$4,\"\")))","v":"Output"},{"$f":"IF(_xlfn.TEXTJOIN(\"; \",TRUE,IF(J84:W84=1,$J$4:$W$4,\"\"))=\"\",\"-\",_xlfn.TEXTJOIN(\"; \",TRUE,IF(J84:W84=1,$J$4:$W$4,\"\")))","v":"-"},{"$f":"IF(_xlfn.TEXTJOIN(\"; \",TRUE,IF(X84:AF84=1,$X$4:$AF$4,\"\"))=\"\",\"-\",_xlfn.TEXTJOIN(\"; \",TRUE,IF(X84:AF84=1,$X$4:$AF$4,\"\")))","v":"Capacity building: Institutional capacity"},{"$f":"IF(_xlfn.TEXTJOIN(\"; \",TRUE,IF(AG84:AO84=1,$AG$4:$AO$4,\"\"))=\"\",\"-\",_xlfn.TEXTJOIN(\"; \",TRUE,IF(AG84:AO84=1,$AG$4:$AO$4,\"\")))","v":"-"},"Number",0,0,0,0,0,0,0,0,0,0,0,0,0,0,1,0,0,0,0,0,0,0,0,0,0,0,0,0,0,0,0,0,0,0,1,0,0]
[null,"TA081","Average reported satisfaction of countries with capacity support","-",{"$f":"IF(_xlfn.TEXTJOIN(\"; \",TRUE,IF(AP85:AT85=1,$AP$4:$AT$4,\"\"))=\"\",\"ERROR\",_xlfn.TEXTJOIN(\"; \",TRUE,IF(AP85:AT85=1,$AP$4:$AT$4,\"\")))","v":"Output"},{"$f":"IF(_xlfn.TEXTJOIN(\"; \",TRUE,IF(J85:W85=1,$J$4:$W$4,\"\"))=\"\",\"-\",_xlfn.TEXTJOIN(\"; \",TRUE,IF(J85:W85=1,$J$4:$W$4,\"\")))","v":"-"},{"$f":"IF(_xlfn.TEXTJOIN(\"; \",TRUE,IF(X85:AF85=1,$X$4:$AF$4,\"\"))=\"\",\"-\",_xlfn.TEXTJOIN(\"; \",TRUE,IF(X85:AF85=1,$X$4:$AF$4,\"\")))","v":"Capacity building: Institutional capacity"},{"$f":"IF(_xlfn.TEXTJOIN(\"; \",TRUE,IF(AG85:AO85=1,$AG$4:$AO$4,\"\"))=\"\",\"-\",_xlfn.TEXTJOIN(\"; \",TRUE,IF(AG85:AO85=1,$AG$4:$AO$4,\"\")))","v":"-"},"Score",0,0,0,0,0,0,0,0,0,0,0,0,0,0,1,0,0,0,0,0,0,0,0,0,0,0,0,0,0,0,0,0,0,0,1,0,0]
[null,"TA082","Average number of days until payout is conducted by the government authority ","Intended to measure the internal efficiency of a supported organisation (i.e. improved institutional capacity to process payments)",{"$f":"IF(_xlfn.TEXTJOIN(\"; \",TRUE,IF(AP86:AT86=1,$AP$4:$AT$4,\"\"))=\"\",\"ERROR\",_xlfn.TEXTJOIN(\"; \",TRUE,IF(AP86:AT86=1,$AP$4:$AT$4,\"\")))","v":"Output"},{"$f":"IF(_xlfn.TEXTJOIN(\"; \",TRUE,IF(J86:W86=1,$J$4:$W$4,\"\"))=\"\",\"-\",_xlfn.TEXTJOIN(\"; \",TRUE,IF(J86:W86=1,$J$4:$W$4,\"\")))","v":"-"},{"$f":"IF(_xlfn.TEXTJOIN(\"; \",TRUE,IF(X86:AF86=1,$X$4:$AF$4,\"\"))=\"\",\"-\",_xlfn.TEXTJOIN(\"; \",TRUE,IF(X86:AF86=1,$X$4:$AF$4,\"\")))","v":"Capacity building: Institutional capacity"},{"$f":"IF(_xlfn.TEXTJOIN(\"; \",TRUE,IF(AG86:AO86=1,$AG$4:$AO$4,\"\"))=\"\",\"-\",_xlfn.TEXTJOIN(\"; \",TRUE,IF(AG86:AO86=1,$AG$4:$AO$4,\"\")))","v":"-"},"Number",0,0,0,0,0,0,0,0,0,0,0,0,0,0,1,0,0,0,0,0,0,0,0,0,0,0,0,0,0,0,0,0,0,0,1,0,0]
[null,"TA083","Number of units or officials supported by institutional capacity building","-",{"$f":"IF(_xlfn.TEXTJOIN(\"; \",TRUE,IF(AP87:AT87=1,$AP$4:$AT$4,\"\"))=\"\",\"ERROR\",_xlfn.TEXTJOIN(\"; \",TRUE,IF(AP87:AT87=1,$AP$4:$AT$4,\"\")))","v":"Output"},{"$f":"IF(_xlfn.TEXTJOIN(\"; \",TRUE,IF(J87:W87=1,$J$4:$W$4,\"\"))=\"\",\"-\",_xlfn.TEXTJOIN(\"; \",TRUE,IF(J87:W87=1,$J$4:$W$4,\"\")))","v":"-"},{"$f":"IF(_xlfn.TEXTJOIN(\"; \",TRUE,IF(X87:AF87=1,$X$4:$AF$4,\"\"))=\"\",\"-\",_xlfn.TEXTJOIN(\"; \",TRUE,IF(X87:AF87=1,$X$4:$AF$4,\"\")))","v":"Capacity building: Institutional capacity"},{"$f":"IF(_xlfn.TEXTJOIN(\"; \",TRUE,IF(AG87:AO87=1,$AG$4:$AO$4,\"\"))=\"\",\"-\",_xlfn.TEXTJOIN(\"; \",TRUE,IF(AG87:AO87=1,$AG$4:$AO$4,\"\")))","v":"-"},"Number",0,0,0,0,0,0,0,0,0,0,0,0,0,0,1,0,0,0,0,0,0,0,0,0,0,0,0,0,0,0,0,0,0,0,1,0,0]
[null,"TA084","Number of project plans improved or progressed with programme support","-",{"$f":"IF(_xlfn.TEXTJOIN(\"; \",TRUE,IF(AP88:AT88=1,$AP$4:$AT$4,\"\"))=\"\",\"ERROR\",_xlfn.TEXTJOIN(\"; \",TRUE,IF(AP88:AT88=1,$AP$4:$AT$4,\"\")))","v":"Output"},{"$f":"IF(_xlfn.TEXTJOIN(\"; \",TRUE,IF(J88:W88=1,$J$4:$W$4,\"\"))=\"\",\"-\",_xlfn.TEXTJOIN(\"; \",TRUE,IF(J88:W88=1,$J$4:$W$4,\"\")))","v":"-"},{"$f":"IF(_xlfn.TEXTJOIN(\"; \",TRUE,IF(X88:AF88=1,$X$4:$AF$4,\"\"))=\"\",\"-\",_xlfn.TEXTJOIN(\"; \",TRUE,IF(X88:AF88=1,$X$4:$AF$4,\"\")))","v":"Capacity building: Institutional capacity"},{"$f":"IF(_xlfn.TEXTJOIN(\"; \",TRUE,IF(AG88:AO88=1,$AG$4:$AO$4,\"\"))=\"\",\"-\",_xlfn.TEXTJOIN(\"; \",TRUE,IF(AG88:AO88=1,$AG$4:$AO$4,\"\")))","v":"-"},"Number",0,0,0,0,0,0,0,0,0,0,0,0,0,0,1,0,0,0,0,0,0,0,0,0,0,0,0,0,0,0,0,0,0,0,1,0,0]
[null,"TA085","Number of plans developed that include programme objective","-",{"$f":"IF(_xlfn.TEXTJOIN(\"; \",TRUE,IF(AP89:AT89=1,$AP$4:$AT$4,\"\"))=\"\",\"ERROR\",_xlfn.TEXTJOIN(\"; \",TRUE,IF(AP89:AT89=1,$AP$4:$AT$4,\"\")))","v":"Output"},{"$f":"IF(_xlfn.TEXTJOIN(\"; \",TRUE,IF(J89:W89=1,$J$4:$W$4,\"\"))=\"\",\"-\",_xlfn.TEXTJOIN(\"; \",TRUE,IF(J89:W89=1,$J$4:$W$4,\"\")))","v":"-"},{"$f":"IF(_xlfn.TEXTJOIN(\"; \",TRUE,IF(X89:AF89=1,$X$4:$AF$4,\"\"))=\"\",\"-\",_xlfn.TEXTJOIN(\"; \",TRUE,IF(X89:AF89=1,$X$4:$AF$4,\"\")))","v":"Capacity building: Institutional capacity"},{"$f":"IF(_xlfn.TEXTJOIN(\"; \",TRUE,IF(AG89:AO89=1,$AG$4:$AO$4,\"\"))=\"\",\"-\",_xlfn.TEXTJOIN(\"; \",TRUE,IF(AG89:AO89=1,$AG$4:$AO$4,\"\")))","v":"-"},"Number",0,0,0,0,0,0,0,0,0,0,0,0,0,0,1,0,0,0,0,0,0,0,0,0,0,0,0,0,0,0,0,0,0,0,1,0,0]
[null,"TA086","Percentage of (satisfactory) outputs that are ready or implemented within the timeline","-",{"$f":"IF(_xlfn.TEXTJOIN(\"; \",TRUE,IF(AP90:AT90=1,$AP$4:$AT$4,\"\"))=\"\",\"ERROR\",_xlfn.TEXTJOIN(\"; \",TRUE,IF(AP90:AT90=1,$AP$4:$AT$4,\"\")))","v":"Output"},{"$f":"IF(_xlfn.TEXTJOIN(\"; \",TRUE,IF(J90:W90=1,$J$4:$W$4,\"\"))=\"\",\"-\",_xlfn.TEXTJOIN(\"; \",TRUE,IF(J90:W90=1,$J$4:$W$4,\"\")))","v":"-"},{"$f":"IF(_xlfn.TEXTJOIN(\"; \",TRUE,IF(X90:AF90=1,$X$4:$AF$4,\"\"))=\"\",\"-\",_xlfn.TEXTJOIN(\"; \",TRUE,IF(X90:AF90=1,$X$4:$AF$4,\"\")))","v":"Capacity building: Institutional capacity"},{"$f":"IF(_xlfn.TEXTJOIN(\"; \",TRUE,IF(AG90:AO90=1,$AG$4:$AO$4,\"\"))=\"\",\"-\",_xlfn.TEXTJOIN(\"; \",TRUE,IF(AG90:AO90=1,$AG$4:$AO$4,\"\")))","v":"-"},"Percentage",0,0,0,0,0,0,0,0,0,0,0,0,0,0,1,0,0,0,0,0,0,0,0,0,0,0,0,0,0,0,0,0,0,0,1,0,0]
[null,"TA087","Knowledge products launched on time","-",{"$f":"IF(_xlfn.TEXTJOIN(\"; \",TRUE,IF(AP91:AT91=1,$AP$4:$AT$4,\"\"))=\"\",\"ERROR\",_xlfn.TEXTJOIN(\"; \",TRUE,IF(AP91:AT91=1,$AP$4:$AT$4,\"\")))","v":"Activity"},{"$f":"IF(_xlfn.TEXTJOIN(\"; \",TRUE,IF(J91:W91=1,$J$4:$W$4,\"\"))=\"\",\"-\",_xlfn.TEXTJOIN(\"; \",TRUE,IF(J91:W91=1,$J$4:$W$4,\"\")))","v":"Specialist research, inc. market / policy / legal / regulatory / technology research briefs"},{"$f":"IF(_xlfn.TEXTJOIN(\"; \",TRUE,IF(X91:AF91=1,$X$4:$AF$4,\"\"))=\"\",\"-\",_xlfn.TEXTJOIN(\"; \",TRUE,IF(X91:AF91=1,$X$4:$AF$4,\"\")))","v":"-"},{"$f":"IF(_xlfn.TEXTJOIN(\"; \",TRUE,IF(AG91:AO91=1,$AG$4:$AO$4,\"\"))=\"\",\"-\",_xlfn.TEXTJOIN(\"; \",TRUE,IF(AG91:AO91=1,$AG$4:$AO$4,\"\")))","v":"-"},"Yes/No",0,0,0,0,1,0,0,0,0,0,0,0,0,0,0,0,0,0,0,0,0,0,0,0,0,0,0,0,0,0,0,0,1,0,0,0,0]
[null,"TA088","Internal knowledge management strategy developed, implemented and reviewed","-",{"$f":"IF(_xlfn.TEXTJOIN(\"; \",TRUE,IF(AP92:AT92=1,$AP$4:$AT$4,\"\"))=\"\",\"ERROR\",_xlfn.TEXTJOIN(\"; \",TRUE,IF(AP92:AT92=1,$AP$4:$AT$4,\"\")))","v":"Output"},{"$f":"IF(_xlfn.TEXTJOIN(\"; \",TRUE,IF(J92:W92=1,$J$4:$W$4,\"\"))=\"\",\"-\",_xlfn.TEXTJOIN(\"; \",TRUE,IF(J92:W92=1,$J$4:$W$4,\"\")))","v":"-"},{"$f":"IF(_xlfn.TEXTJOIN(\"; \",TRUE,IF(X92:AF92=1,$X$4:$AF$4,\"\"))=\"\",\"-\",_xlfn.TEXTJOIN(\"; \",TRUE,IF(X92:AF92=1,$X$4:$AF$4,\"\")))","v":"Capacity building: Technical capacity"},{"$f":"IF(_xlfn.TEXTJOIN(\"; \",TRUE,IF(AG92:AO92=1,$AG$4:$AO$4,\"\"))=\"\",\"-\",_xlfn.TEXTJOIN(\"; \",TRUE,IF(AG92:AO92=1,$AG$4:$AO$4,\"\")))","v":"-"},"Yes/No",0,0,0,0,0,0,0,0,0,0,0,0,0,0,0,1,0,0,0,0,0,0,0,0,0,0,0,0,0,0,0,0,0,0,1,0,0]
[null,"TA089","Number of enquiries from non-participants ","-",{"$f":"IF(_xlfn.TEXTJOIN(\"; \",TRUE,IF(AP93:AT93=1,$AP$4:$AT$4,\"\"))=\"\",\"ERROR\",_xlfn.TEXTJOIN(\"; \",TRUE,IF(AP93:AT93=1,$AP$4:$AT$4,\"\")))","v":"Uptake"},{"$f":"IF(_xlfn.TEXTJOIN(\"; \",TRUE,IF(J93:W93=1,$J$4:$W$4,\"\"))=\"\",\"-\",_xlfn.TEXTJOIN(\"; \",TRUE,IF(J93:W93=1,$J$4:$W$4,\"\")))","v":"Data, software, tools and models"},{"$f":"IF(_xlfn.TEXTJOIN(\"; \",TRUE,IF(X93:AF93=1,$X$4:$AF$4,\"\"))=\"\",\"-\",_xlfn.TEXTJOIN(\"; \",TRUE,IF(X93:AF93=1,$X$4:$AF$4,\"\")))","v":"-"},{"$f":"IF(_xlfn.TEXTJOIN(\"; \",TRUE,IF(AG93:AO93=1,$AG$4:$AO$4,\"\"))=\"\",\"-\",_xlfn.TEXTJOIN(\"; \",TRUE,IF(AG93:AO93=1,$AG$4:$AO$4,\"\")))","v":"-"},"Number",0,0,0,0,0,0,0,0,0,0,0,0,1,0,0,0,0,0,0,0,0,0,0,0,0,0,0,0,0,0,0,0,0,1,0,0,0]
[null,"TA090","Knowledge products created with programme support","-",{"$f":"IF(_xlfn.TEXTJOIN(\"; \",TRUE,IF(AP94:AT94=1,$AP$4:$AT$4,\"\"))=\"\",\"ERROR\",_xlfn.TEXTJOIN(\"; \",TRUE,IF(AP94:AT94=1,$AP$4:$AT$4,\"\")))","v":"Activity"},{"$f":"IF(_xlfn.TEXTJOIN(\"; \",TRUE,IF(J94:W94=1,$J$4:$W$4,\"\"))=\"\",\"-\",_xlfn.TEXTJOIN(\"; \",TRUE,IF(J94:W94=1,$J$4:$W$4,\"\")))","v":"Data, software, tools and models"},{"$f":"IF(_xlfn.TEXTJOIN(\"; \",TRUE,IF(X94:AF94=1,$X$4:$AF$4,\"\"))=\"\",\"-\",_xlfn.TEXTJOIN(\"; \",TRUE,IF(X94:AF94=1,$X$4:$AF$4,\"\")))","v":"-"},{"$f":"IF(_xlfn.TEXTJOIN(\"; \",TRUE,IF(AG94:AO94=1,$AG$4:$AO$4,\"\"))=\"\",\"-\",_xlfn.TEXTJOIN(\"; \",TRUE,IF(AG94:AO94=1,$AG$4:$AO$4,\"\")))","v":"-"},"Yes/No",0,0,0,0,0,0,0,0,0,0,0,0,1,0,0,0,0,0,0,0,0,0,0,0,0,0,0,0,0,0,0,0,1,0,0,0,0]
[null,"TA091","Percentage of data that complies with international standards","-",{"$f":"IF(_xlfn.TEXTJOIN(\"; \",TRUE,IF(AP95:AT95=1,$AP$4:$AT$4,\"\"))=\"\",\"ERROR\",_xlfn.TEXTJOIN(\"; \",TRUE,IF(AP95:AT95=1,$AP$4:$AT$4,\"\")))","v":"Output"},{"$f":"IF(_xlfn.TEXTJOIN(\"; \",TRUE,IF(J95:W95=1,$J$4:$W$4,\"\"))=\"\",\"-\",_xlfn.TEXTJOIN(\"; \",TRUE,IF(J95:W95=1,$J$4:$W$4,\"\")))","v":"-"},{"$f":"IF(_xlfn.TEXTJOIN(\"; \",TRUE,IF(X95:AF95=1,$X$4:$AF$4,\"\"))=\"\",\"-\",_xlfn.TEXTJOIN(\"; \",TRUE,IF(X95:AF95=1,$X$4:$AF$4,\"\")))","v":"Capacity building: Technical capacity"},{"$f":"IF(_xlfn.TEXTJOIN(\"; \",TRUE,IF(AG95:AO95=1,$AG$4:$AO$4,\"\"))=\"\",\"-\",_xlfn.TEXTJOIN(\"; \",TRUE,IF(AG95:AO95=1,$AG$4:$AO$4,\"\")))","v":"-"},"Percentage",0,0,0,0,0,0,0,0,0,0,0,0,0,0,0,1,0,0,0,0,0,0,0,0,0,0,0,0,0,0,0,0,0,0,1,0,0]
[null,"TA092","Number of knowledge products created with programme support","-",{"$f":"IF(_xlfn.TEXTJOIN(\"; \",TRUE,IF(AP96:AT96=1,$AP$4:$AT$4,\"\"))=\"\",\"ERROR\",_xlfn.TEXTJOIN(\"; \",TRUE,IF(AP96:AT96=1,$AP$4:$AT$4,\"\")))","v":"Output"},{"$f":"IF(_xlfn.TEXTJOIN(\"; \",TRUE,IF(J96:W96=1,$J$4:$W$4,\"\"))=\"\",\"-\",_xlfn.TEXTJOIN(\"; \",TRUE,IF(J96:W96=1,$J$4:$W$4,\"\")))","v":"-"},{"$f":"IF(_xlfn.TEXTJOIN(\"; \",TRUE,IF(X96:AF96=1,$X$4:$AF$4,\"\"))=\"\",\"-\",_xlfn.TEXTJOIN(\"; \",TRUE,IF(X96:AF96=1,$X$4:$AF$4,\"\")))","v":"Capacity building: Technical capacity"},{"$f":"IF(_xlfn.TEXTJOIN(\"; \",TRUE,IF(AG96:AO96=1,$AG$4:$AO$4,\"\"))=\"\",\"-\",_xlfn.TEXTJOIN(\"; \",TRUE,IF(AG96:AO96=1,$AG$4:$AO$4,\"\")))","v":"-"},"Number",0,0,0,0,0,0,0,0,0,0,0,0,0,0,0,1,0,0,0,0,0,0,0,0,0,0,0,0,0,0,0,0,0,0,1,0,0]
[null,"TA093","Number of participants rate capacity building activities as good or very good","-",{"$f":"IF(_xlfn.TEXTJOIN(\"; \",TRUE,IF(AP97:AT97=1,$AP$4:$AT$4,\"\"))=\"\",\"ERROR\",_xlfn.TEXTJOIN(\"; \",TRUE,IF(AP97:AT97=1,$AP$4:$AT$4,\"\")))","v":"Output"},{"$f":"IF(_xlfn.TEXTJOIN(\"; \",TRUE,IF(J97:W97=1,$J$4:$W$4,\"\"))=\"\",\"-\",_xlfn.TEXTJOIN(\"; \",TRUE,IF(J97:W97=1,$J$4:$W$4,\"\")))","v":"-"},{"$f":"IF(_xlfn.TEXTJOIN(\"; \",TRUE,IF(X97:AF97=1,$X$4:$AF$4,\"\"))=\"\",\"-\",_xlfn.TEXTJOIN(\"; \",TRUE,IF(X97:AF97=1,$X$4:$AF$4,\"\")))","v":"Capacity building: Technical capacity"},{"$f":"IF(_xlfn.TEXTJOIN(\"; \",TRUE,IF(AG97:AO97=1,$AG$4:$AO$4,\"\"))=\"\",\"-\",_xlfn.TEXTJOIN(\"; \",TRUE,IF(AG97:AO97=1,$AG$4:$AO$4,\"\")))","v":"-"},"Number",0,0,0,0,0,0,0,0,0,0,0,0,0,0,0,1,0,0,0,0,0,0,0,0,0,0,0,0,0,0,0,0,0,0,1,0,0]
[null,"TA094","Number of countries that use knowledge product","-",{"$f":"IF(_xlfn.TEXTJOIN(\"; \",TRUE,IF(AP98:AT98=1,$AP$4:$AT$4,\"\"))=\"\",\"ERROR\",_xlfn.TEXTJOIN(\"; \",TRUE,IF(AP98:AT98=1,$AP$4:$AT$4,\"\")))","v":"Output"},{"$f":"IF(_xlfn.TEXTJOIN(\"; \",TRUE,IF(J98:W98=1,$J$4:$W$4,\"\"))=\"\",\"-\",_xlfn.TEXTJOIN(\"; \",TRUE,IF(J98:W98=1,$J$4:$W$4,\"\")))","v":"-"},{"$f":"IF(_xlfn.TEXTJOIN(\"; \",TRUE,IF(X98:AF98=1,$X$4:$AF$4,\"\"))=\"\",\"-\",_xlfn.TEXTJOIN(\"; \",TRUE,IF(X98:AF98=1,$X$4:$AF$4,\"\")))","v":"Capacity building: Technical capacity"},{"$f":"IF(_xlfn.TEXTJOIN(\"; \",TRUE,IF(AG98:AO98=1,$AG$4:$AO$4,\"\"))=\"\",\"-\",_xlfn.TEXTJOIN(\"; \",TRUE,IF(AG98:AO98=1,$AG$4:$AO$4,\"\")))","v":"-"},"Number",0,0,0,0,0,0,0,0,0,0,0,0,0,0,0,1,0,0,0,0,0,0,0,0,0,0,0,0,0,0,0,0,0,0,1,0,0]
[null,"TA095","Number of stakeholders that state the capacity building has contributed to programme objectives","-",{"$f":"IF(_xlfn.TEXTJOIN(\"; \",TRUE,IF(AP99:AT99=1,$AP$4:$AT$4,\"\"))=\"\",\"ERROR\",_xlfn.TEXTJOIN(\"; \",TRUE,IF(AP99:AT99=1,$AP$4:$AT$4,\"\")))","v":"Output"},{"$f":"IF(_xlfn.TEXTJOIN(\"; \",TRUE,IF(J99:W99=1,$J$4:$W$4,\"\"))=\"\",\"-\",_xlfn.TEXTJOIN(\"; \",TRUE,IF(J99:W99=1,$J$4:$W$4,\"\")))","v":"-"},{"$f":"IF(_xlfn.TEXTJOIN(\"; \",TRUE,IF(X99:AF99=1,$X$4:$AF$4,\"\"))=\"\",\"-\",_xlfn.TEXTJOIN(\"; \",TRUE,IF(X99:AF99=1,$X$4:$AF$4,\"\")))","v":"Capacity building: Technical capacity"},{"$f":"IF(_xlfn.TEXTJOIN(\"; \",TRUE,IF(AG99:AO99=1,$AG$4:$AO$4,\"\"))=\"\",\"-\",_xlfn.TEXTJOIN(\"; \",TRUE,IF(AG99:AO99=1,$AG$4:$AO$4,\"\")))","v":"-"},"Number",0,0,0,0,0,0,0,0,0,0,0,0,0,0,0,1,0,0,0,0,0,0,0,0,0,0,0,0,0,0,0,0,0,0,1,0,0]
[null,"TA096","Number of client days of training, disaggregated by groups and topic","-",{"$f":"IF(_xlfn.TEXTJOIN(\"; \",TRUE,IF(AP100:AT100=1,$AP$4:$AT$4,\"\"))=\"\",\"ERROR\",_xlfn.TEXTJOIN(\"; \",TRUE,IF(AP100:AT100=1,$AP$4:$AT$4,\"\")))","v":"Output"},{"$f":"IF(_xlfn.TEXTJOIN(\"; \",TRUE,IF(J100:W100=1,$J$4:$W$4,\"\"))=\"\",\"-\",_xlfn.TEXTJOIN(\"; \",TRUE,IF(J100:W100=1,$J$4:$W$4,\"\")))","v":"-"},{"$f":"IF(_xlfn.TEXTJOIN(\"; \",TRUE,IF(X100:AF100=1,$X$4:$AF$4,\"\"))=\"\",\"-\",_xlfn.TEXTJOIN(\"; \",TRUE,IF(X100:AF100=1,$X$4:$AF$4,\"\")))","v":"Capacity building: Technical capacity"},{"$f":"IF(_xlfn.TEXTJOIN(\"; \",TRUE,IF(AG100:AO100=1,$AG$4:$AO$4,\"\"))=\"\",\"-\",_xlfn.TEXTJOIN(\"; \",TRUE,IF(AG100:AO100=1,$AG$4:$AO$4,\"\")))","v":"-"},"Number",0,0,0,0,0,0,0,0,0,0,0,0,0,0,0,1,0,0,0,0,0,0,0,0,0,0,0,0,0,0,0,0,0,0,1,0,0]
[null,"TA097","Number of times/cases/countries/participants support is provided (to)","-",{"$f":"IF(_xlfn.TEXTJOIN(\"; \",TRUE,IF(AP101:AT101=1,$AP$4:$AT$4,\"\"))=\"\",\"ERROR\",_xlfn.TEXTJOIN(\"; \",TRUE,IF(AP101:AT101=1,$AP$4:$AT$4,\"\")))","v":"Activity"},{"$f":"IF(_xlfn.TEXTJOIN(\"; \",TRUE,IF(J101:W101=1,$J$4:$W$4,\"\"))=\"\",\"-\",_xlfn.TEXTJOIN(\"; \",TRUE,IF(J101:W101=1,$J$4:$W$4,\"\")))","v":"Workshops; Training events / courses; Specialist research, inc. market / policy / legal / regulatory / technology research briefs; Project studies and plans"},{"$f":"IF(_xlfn.TEXTJOIN(\"; \",TRUE,IF(X101:AF101=1,$X$4:$AF$4,\"\"))=\"\",\"-\",_xlfn.TEXTJOIN(\"; \",TRUE,IF(X101:AF101=1,$X$4:$AF$4,\"\")))","v":"-"},{"$f":"IF(_xlfn.TEXTJOIN(\"; \",TRUE,IF(AG101:AO101=1,$AG$4:$AO$4,\"\"))=\"\",\"-\",_xlfn.TEXTJOIN(\"; \",TRUE,IF(AG101:AO101=1,$AG$4:$AO$4,\"\")))","v":"-"},"Number",1,1,0,0,1,0,0,0,0,0,0,1,0,0,0,0,0,0,0,0,0,0,0,0,0,0,0,0,0,0,0,0,1,0,0,0,0]
[null,"TA098","Number of publications written with support","-",{"$f":"IF(_xlfn.TEXTJOIN(\"; \",TRUE,IF(AP102:AT102=1,$AP$4:$AT$4,\"\"))=\"\",\"ERROR\",_xlfn.TEXTJOIN(\"; \",TRUE,IF(AP102:AT102=1,$AP$4:$AT$4,\"\")))","v":"Output"},{"$f":"IF(_xlfn.TEXTJOIN(\"; \",TRUE,IF(J102:W102=1,$J$4:$W$4,\"\"))=\"\",\"-\",_xlfn.TEXTJOIN(\"; \",TRUE,IF(J102:W102=1,$J$4:$W$4,\"\")))","v":"-"},{"$f":"IF(_xlfn.TEXTJOIN(\"; \",TRUE,IF(X102:AF102=1,$X$4:$AF$4,\"\"))=\"\",\"-\",_xlfn.TEXTJOIN(\"; \",TRUE,IF(X102:AF102=1,$X$4:$AF$4,\"\")))","v":"Capacity building: Technical capacity"},{"$f":"IF(_xlfn.TEXTJOIN(\"; \",TRUE,IF(AG102:AO102=1,$AG$4:$AO$4,\"\"))=\"\",\"-\",_xlfn.TEXTJOIN(\"; \",TRUE,IF(AG102:AO102=1,$AG$4:$AO$4,\"\")))","v":"-"},"Number",0,0,0,0,0,0,0,0,0,0,0,0,0,0,0,1,0,0,0,0,0,0,0,0,0,0,0,0,0,0,0,0,0,0,1,0,0]
[null,"TA099","Number of countries where stakeholders are satisfied with the knowledge product's functionality or performance","-",{"$f":"IF(_xlfn.TEXTJOIN(\"; \",TRUE,IF(AP103:AT103=1,$AP$4:$AT$4,\"\"))=\"\",\"ERROR\",_xlfn.TEXTJOIN(\"; \",TRUE,IF(AP103:AT103=1,$AP$4:$AT$4,\"\")))","v":"Output"},{"$f":"IF(_xlfn.TEXTJOIN(\"; \",TRUE,IF(J103:W103=1,$J$4:$W$4,\"\"))=\"\",\"-\",_xlfn.TEXTJOIN(\"; \",TRUE,IF(J103:W103=1,$J$4:$W$4,\"\")))","v":"-"},{"$f":"IF(_xlfn.TEXTJOIN(\"; \",TRUE,IF(X103:AF103=1,$X$4:$AF$4,\"\"))=\"\",\"-\",_xlfn.TEXTJOIN(\"; \",TRUE,IF(X103:AF103=1,$X$4:$AF$4,\"\")))","v":"Capacity building: Technical capacity"},{"$f":"IF(_xlfn.TEXTJOIN(\"; \",TRUE,IF(AG103:AO103=1,$AG$4:$AO$4,\"\"))=\"\",\"-\",_xlfn.TEXTJOIN(\"; \",TRUE,IF(AG103:AO103=1,$AG$4:$AO$4,\"\")))","v":"-"},"Number",0,0,0,0,0,0,0,0,0,0,0,0,0,0,0,1,0,0,0,0,0,0,0,0,0,0,0,0,0,0,0,0,0,0,1,0,0]
[null,"TA100","Number of cases where government or stakeholder changed behaviour in response to capacity building","-",{"$f":"IF(_xlfn.TEXTJOIN(\"; \",TRUE,IF(AP104:AT104=1,$AP$4:$AT$4,\"\"))=\"\",\"ERROR\",_xlfn.TEXTJOIN(\"; \",TRUE,IF(AP104:AT104=1,$AP$4:$AT$4,\"\")))","v":"Output"},{"$f":"IF(_xlfn.TEXTJOIN(\"; \",TRUE,IF(J104:W104=1,$J$4:$W$4,\"\"))=\"\",\"-\",_xlfn.TEXTJOIN(\"; \",TRUE,IF(J104:W104=1,$J$4:$W$4,\"\")))","v":"-"},{"$f":"IF(_xlfn.TEXTJOIN(\"; \",TRUE,IF(X104:AF104=1,$X$4:$AF$4,\"\"))=\"\",\"-\",_xlfn.TEXTJOIN(\"; \",TRUE,IF(X104:AF104=1,$X$4:$AF$4,\"\")))","v":"Capacity building: Technical capacity"},{"$f":"IF(_xlfn.TEXTJOIN(\"; \",TRUE,IF(AG104:AO104=1,$AG$4:$AO$4,\"\"))=\"\",\"-\",_xlfn.TEXTJOIN(\"; \",TRUE,IF(AG104:AO104=1,$AG$4:$AO$4,\"\")))","v":"-"},"Number",0,0,0,0,0,0,0,0,0,0,0,0,0,0,0,1,0,0,0,0,0,0,0,0,0,0,0,0,0,0,0,0,0,0,1,0,0]
[null,"TA101","Number of cases/participants of capacity building support","-",{"$f":"IF(_xlfn.TEXTJOIN(\"; \",TRUE,IF(AP105:AT105=1,$AP$4:$AT$4,\"\"))=\"\",\"ERROR\",_xlfn.TEXTJOIN(\"; \",TRUE,IF(AP105:AT105=1,$AP$4:$AT$4,\"\")))","v":"Uptake"},{"$f":"IF(_xlfn.TEXTJOIN(\"; \",TRUE,IF(J105:W105=1,$J$4:$W$4,\"\"))=\"\",\"-\",_xlfn.TEXTJOIN(\"; \",TRUE,IF(J105:W105=1,$J$4:$W$4,\"\")))","v":"Workshops; Training events / courses; Specialist research, inc. market / policy / legal / regulatory / technology research briefs; Project studies and plans"},{"$f":"IF(_xlfn.TEXTJOIN(\"; \",TRUE,IF(X105:AF105=1,$X$4:$AF$4,\"\"))=\"\",\"-\",_xlfn.TEXTJOIN(\"; \",TRUE,IF(X105:AF105=1,$X$4:$AF$4,\"\")))","v":"-"},{"$f":"IF(_xlfn.TEXTJOIN(\"; \",TRUE,IF(AG105:AO105=1,$AG$4:$AO$4,\"\"))=\"\",\"-\",_xlfn.TEXTJOIN(\"; \",TRUE,IF(AG105:AO105=1,$AG$4:$AO$4,\"\")))","v":"-"},"Number",1,1,0,0,1,0,0,0,0,0,0,1,0,0,0,0,0,0,0,0,0,0,0,0,0,0,0,0,0,0,0,0,0,1,0,0,0]
[null,"TA102","Number of cases where stakeholder report that  government or stakeholder changed behaviour in response to capacity building","-",{"$f":"IF(_xlfn.TEXTJOIN(\"; \",TRUE,IF(AP106:AT106=1,$AP$4:$AT$4,\"\"))=\"\",\"ERROR\",_xlfn.TEXTJOIN(\"; \",TRUE,IF(AP106:AT106=1,$AP$4:$AT$4,\"\")))","v":"Output"},{"$f":"IF(_xlfn.TEXTJOIN(\"; \",TRUE,IF(J106:W106=1,$J$4:$W$4,\"\"))=\"\",\"-\",_xlfn.TEXTJOIN(\"; \",TRUE,IF(J106:W106=1,$J$4:$W$4,\"\")))","v":"-"},{"$f":"IF(_xlfn.TEXTJOIN(\"; \",TRUE,IF(X106:AF106=1,$X$4:$AF$4,\"\"))=\"\",\"-\",_xlfn.TEXTJOIN(\"; \",TRUE,IF(X106:AF106=1,$X$4:$AF$4,\"\")))","v":"Capacity building: Technical capacity"},{"$f":"IF(_xlfn.TEXTJOIN(\"; \",TRUE,IF(AG106:AO106=1,$AG$4:$AO$4,\"\"))=\"\",\"-\",_xlfn.TEXTJOIN(\"; \",TRUE,IF(AG106:AO106=1,$AG$4:$AO$4,\"\")))","v":"-"},"Number",0,0,0,0,0,0,0,0,0,0,0,0,0,0,0,1,0,0,0,0,0,0,0,0,0,0,0,0,0,0,0,0,0,0,1,0,0]
[null,"TA103","Share of global emissions that is covered by capacity building programme","-",{"$f":"IF(_xlfn.TEXTJOIN(\"; \",TRUE,IF(AP107:AT107=1,$AP$4:$AT$4,\"\"))=\"\",\"ERROR\",_xlfn.TEXTJOIN(\"; \",TRUE,IF(AP107:AT107=1,$AP$4:$AT$4,\"\")))","v":"Uptake"},{"$f":"IF(_xlfn.TEXTJOIN(\"; \",TRUE,IF(J107:W107=1,$J$4:$W$4,\"\"))=\"\",\"-\",_xlfn.TEXTJOIN(\"; \",TRUE,IF(J107:W107=1,$J$4:$W$4,\"\")))","v":"Project studies and plans"},{"$f":"IF(_xlfn.TEXTJOIN(\"; \",TRUE,IF(X107:AF107=1,$X$4:$AF$4,\"\"))=\"\",\"-\",_xlfn.TEXTJOIN(\"; \",TRUE,IF(X107:AF107=1,$X$4:$AF$4,\"\")))","v":"-"},{"$f":"IF(_xlfn.TEXTJOIN(\"; \",TRUE,IF(AG107:AO107=1,$AG$4:$AO$4,\"\"))=\"\",\"-\",_xlfn.TEXTJOIN(\"; \",TRUE,IF(AG107:AO107=1,$AG$4:$AO$4,\"\")))","v":"-"},"Percentage",0,0,0,0,0,0,0,0,0,0,0,1,0,0,0,0,0,0,0,0,0,0,0,0,0,0,0,0,0,0,0,0,0,1,0,0,0]
[null,"TA104","Programme recipients complete technical analysis","-",{"$f":"IF(_xlfn.TEXTJOIN(\"; \",TRUE,IF(AP108:AT108=1,$AP$4:$AT$4,\"\"))=\"\",\"ERROR\",_xlfn.TEXTJOIN(\"; \",TRUE,IF(AP108:AT108=1,$AP$4:$AT$4,\"\")))","v":"Output"},{"$f":"IF(_xlfn.TEXTJOIN(\"; \",TRUE,IF(J108:W108=1,$J$4:$W$4,\"\"))=\"\",\"-\",_xlfn.TEXTJOIN(\"; \",TRUE,IF(J108:W108=1,$J$4:$W$4,\"\")))","v":"-"},{"$f":"IF(_xlfn.TEXTJOIN(\"; \",TRUE,IF(X108:AF108=1,$X$4:$AF$4,\"\"))=\"\",\"-\",_xlfn.TEXTJOIN(\"; \",TRUE,IF(X108:AF108=1,$X$4:$AF$4,\"\")))","v":"Capacity building: Technical capacity"},{"$f":"IF(_xlfn.TEXTJOIN(\"; \",TRUE,IF(AG108:AO108=1,$AG$4:$AO$4,\"\"))=\"\",\"-\",_xlfn.TEXTJOIN(\"; \",TRUE,IF(AG108:AO108=1,$AG$4:$AO$4,\"\")))","v":"-"},"Yes/No",0,0,0,0,0,0,0,0,0,0,0,0,0,0,0,1,0,0,0,0,0,0,0,0,0,0,0,0,0,0,0,0,0,0,1,0,0]
[null,"TA105","Number of cases of capacity building support","-",{"$f":"IF(_xlfn.TEXTJOIN(\"; \",TRUE,IF(AP109:AT109=1,$AP$4:$AT$4,\"\"))=\"\",\"ERROR\",_xlfn.TEXTJOIN(\"; \",TRUE,IF(AP109:AT109=1,$AP$4:$AT$4,\"\")))","v":"Activity"},{"$f":"IF(_xlfn.TEXTJOIN(\"; \",TRUE,IF(J109:W109=1,$J$4:$W$4,\"\"))=\"\",\"-\",_xlfn.TEXTJOIN(\"; \",TRUE,IF(J109:W109=1,$J$4:$W$4,\"\")))","v":"-"},{"$f":"IF(_xlfn.TEXTJOIN(\"; \",TRUE,IF(X109:AF109=1,$X$4:$AF$4,\"\"))=\"\",\"-\",_xlfn.TEXTJOIN(\"; \",TRUE,IF(X109:AF109=1,$X$4:$AF$4,\"\")))","v":"-"},{"$f":"IF(_xlfn.TEXTJOIN(\"; \",TRUE,IF(AG109:AO109=1,$AG$4:$AO$4,\"\"))=\"\",\"-\",_xlfn.TEXTJOIN(\"; \",TRUE,IF(AG109:AO109=1,$AG$4:$AO$4,\"\")))","v":"-"},"Number",0,0,0,0,0,0,0,0,0,0,0,0,0,0,0,0,0,0,0,0,0,0,0,0,0,0,0,0,0,0,0,0,1,0,0,0,0]
[null,"TA106","Number of (active) participants in knowledge exchange","-",{"$f":"IF(_xlfn.TEXTJOIN(\"; \",TRUE,IF(AP110:AT110=1,$AP$4:$AT$4,\"\"))=\"\",\"ERROR\",_xlfn.TEXTJOIN(\"; \",TRUE,IF(AP110:AT110=1,$AP$4:$AT$4,\"\")))","v":"Uptake"},{"$f":"IF(_xlfn.TEXTJOIN(\"; \",TRUE,IF(J110:W110=1,$J$4:$W$4,\"\"))=\"\",\"-\",_xlfn.TEXTJOIN(\"; \",TRUE,IF(J110:W110=1,$J$4:$W$4,\"\")))","v":"Workshops; Training events / courses"},{"$f":"IF(_xlfn.TEXTJOIN(\"; \",TRUE,IF(X110:AF110=1,$X$4:$AF$4,\"\"))=\"\",\"-\",_xlfn.TEXTJOIN(\"; \",TRUE,IF(X110:AF110=1,$X$4:$AF$4,\"\")))","v":"-"},{"$f":"IF(_xlfn.TEXTJOIN(\"; \",TRUE,IF(AG110:AO110=1,$AG$4:$AO$4,\"\"))=\"\",\"-\",_xlfn.TEXTJOIN(\"; \",TRUE,IF(AG110:AO110=1,$AG$4:$AO$4,\"\")))","v":"-"},"Number",1,1,0,0,0,0,0,0,0,0,0,0,0,0,0,0,0,0,0,0,0,0,0,0,0,0,0,0,0,0,0,0,0,1,0,0,0]
[null,"TA107","Number of institutional mechanisms developed/strengthened","-",{"$f":"IF(_xlfn.TEXTJOIN(\"; \",TRUE,IF(AP111:AT111=1,$AP$4:$AT$4,\"\"))=\"\",\"ERROR\",_xlfn.TEXTJOIN(\"; \",TRUE,IF(AP111:AT111=1,$AP$4:$AT$4,\"\")))","v":"Output"},{"$f":"IF(_xlfn.TEXTJOIN(\"; \",TRUE,IF(J111:W111=1,$J$4:$W$4,\"\"))=\"\",\"-\",_xlfn.TEXTJOIN(\"; \",TRUE,IF(J111:W111=1,$J$4:$W$4,\"\")))","v":"-"},{"$f":"IF(_xlfn.TEXTJOIN(\"; \",TRUE,IF(X111:AF111=1,$X$4:$AF$4,\"\"))=\"\",\"-\",_xlfn.TEXTJOIN(\"; \",TRUE,IF(X111:AF111=1,$X$4:$AF$4,\"\")))","v":"Capacity building: Technical capacity"},{"$f":"IF(_xlfn.TEXTJOIN(\"; \",TRUE,IF(AG111:AO111=1,$AG$4:$AO$4,\"\"))=\"\",\"-\",_xlfn.TEXTJOIN(\"; \",TRUE,IF(AG111:AO111=1,$AG$4:$AO$4,\"\")))","v":"-"},"Number",0,0,0,0,0,0,0,0,0,0,0,0,0,0,0,1,0,0,0,0,0,0,0,0,0,0,0,0,0,0,0,0,0,0,1,0,0]
[null,"TA108","Expenditure on knowledge products","-",{"$f":"IF(_xlfn.TEXTJOIN(\"; \",TRUE,IF(AP112:AT112=1,$AP$4:$AT$4,\"\"))=\"\",\"ERROR\",_xlfn.TEXTJOIN(\"; \",TRUE,IF(AP112:AT112=1,$AP$4:$AT$4,\"\")))","v":"Activity"},{"$f":"IF(_xlfn.TEXTJOIN(\"; \",TRUE,IF(J112:W112=1,$J$4:$W$4,\"\"))=\"\",\"-\",_xlfn.TEXTJOIN(\"; \",TRUE,IF(J112:W112=1,$J$4:$W$4,\"\")))","v":"Specialist research, inc. market / policy / legal / regulatory / technology research briefs"},{"$f":"IF(_xlfn.TEXTJOIN(\"; \",TRUE,IF(X112:AF112=1,$X$4:$AF$4,\"\"))=\"\",\"-\",_xlfn.TEXTJOIN(\"; \",TRUE,IF(X112:AF112=1,$X$4:$AF$4,\"\")))","v":"-"},{"$f":"IF(_xlfn.TEXTJOIN(\"; \",TRUE,IF(AG112:AO112=1,$AG$4:$AO$4,\"\"))=\"\",\"-\",_xlfn.TEXTJOIN(\"; \",TRUE,IF(AG112:AO112=1,$AG$4:$AO$4,\"\")))","v":"-"},"Number",0,0,0,0,1,0,0,0,0,0,0,0,0,0,0,0,0,0,0,0,0,0,0,0,0,0,0,0,0,0,0,0,1,0,0,0,0]
[null,"TA109","Knowledge product created","-",{"$f":"IF(_xlfn.TEXTJOIN(\"; \",TRUE,IF(AP113:AT113=1,$AP$4:$AT$4,\"\"))=\"\",\"ERROR\",_xlfn.TEXTJOIN(\"; \",TRUE,IF(AP113:AT113=1,$AP$4:$AT$4,\"\")))","v":"Output"},{"$f":"IF(_xlfn.TEXTJOIN(\"; \",TRUE,IF(J113:W113=1,$J$4:$W$4,\"\"))=\"\",\"-\",_xlfn.TEXTJOIN(\"; \",TRUE,IF(J113:W113=1,$J$4:$W$4,\"\")))","v":"-"},{"$f":"IF(_xlfn.TEXTJOIN(\"; \",TRUE,IF(X113:AF113=1,$X$4:$AF$4,\"\"))=\"\",\"-\",_xlfn.TEXTJOIN(\"; \",TRUE,IF(X113:AF113=1,$X$4:$AF$4,\"\")))","v":"Capacity building: Technical capacity"},{"$f":"IF(_xlfn.TEXTJOIN(\"; \",TRUE,IF(AG113:AO113=1,$AG$4:$AO$4,\"\"))=\"\",\"-\",_xlfn.TEXTJOIN(\"; \",TRUE,IF(AG113:AO113=1,$AG$4:$AO$4,\"\")))","v":"-"},"Yes/No",0,0,0,0,0,0,0,0,0,0,0,0,0,0,0,1,0,0,0,0,0,0,0,0,0,0,0,0,0,0,0,0,0,0,1,0,0]
[null,"TA110","Percentage of participants achieve certain performance measure on accountability","-",{"$f":"IF(_xlfn.TEXTJOIN(\"; \",TRUE,IF(AP114:AT114=1,$AP$4:$AT$4,\"\"))=\"\",\"ERROR\",_xlfn.TEXTJOIN(\"; \",TRUE,IF(AP114:AT114=1,$AP$4:$AT$4,\"\")))","v":"Output"},{"$f":"IF(_xlfn.TEXTJOIN(\"; \",TRUE,IF(J114:W114=1,$J$4:$W$4,\"\"))=\"\",\"-\",_xlfn.TEXTJOIN(\"; \",TRUE,IF(J114:W114=1,$J$4:$W$4,\"\")))","v":"-"},{"$f":"IF(_xlfn.TEXTJOIN(\"; \",TRUE,IF(X114:AF114=1,$X$4:$AF$4,\"\"))=\"\",\"-\",_xlfn.TEXTJOIN(\"; \",TRUE,IF(X114:AF114=1,$X$4:$AF$4,\"\")))","v":"Capacity building: Technical capacity"},{"$f":"IF(_xlfn.TEXTJOIN(\"; \",TRUE,IF(AG114:AO114=1,$AG$4:$AO$4,\"\"))=\"\",\"-\",_xlfn.TEXTJOIN(\"; \",TRUE,IF(AG114:AO114=1,$AG$4:$AO$4,\"\")))","v":"-"},"Percentage",0,0,0,0,0,0,0,0,0,0,0,0,0,0,0,1,0,0,0,0,0,0,0,0,0,0,0,0,0,0,0,0,0,0,1,0,0]
[null,"TA111","Number of graduations after programme training","-",{"$f":"IF(_xlfn.TEXTJOIN(\"; \",TRUE,IF(AP115:AT115=1,$AP$4:$AT$4,\"\"))=\"\",\"ERROR\",_xlfn.TEXTJOIN(\"; \",TRUE,IF(AP115:AT115=1,$AP$4:$AT$4,\"\")))","v":"Output"},{"$f":"IF(_xlfn.TEXTJOIN(\"; \",TRUE,IF(J115:W115=1,$J$4:$W$4,\"\"))=\"\",\"-\",_xlfn.TEXTJOIN(\"; \",TRUE,IF(J115:W115=1,$J$4:$W$4,\"\")))","v":"-"},{"$f":"IF(_xlfn.TEXTJOIN(\"; \",TRUE,IF(X115:AF115=1,$X$4:$AF$4,\"\"))=\"\",\"-\",_xlfn.TEXTJOIN(\"; \",TRUE,IF(X115:AF115=1,$X$4:$AF$4,\"\")))","v":"Capacity building: Technical capacity"},{"$f":"IF(_xlfn.TEXTJOIN(\"; \",TRUE,IF(AG115:AO115=1,$AG$4:$AO$4,\"\"))=\"\",\"-\",_xlfn.TEXTJOIN(\"; \",TRUE,IF(AG115:AO115=1,$AG$4:$AO$4,\"\")))","v":"-"},"Number",0,0,0,0,0,0,0,0,0,0,0,0,0,0,0,1,0,0,0,0,0,0,0,0,0,0,0,0,0,0,0,0,0,0,1,0,0]
[null,"TA112","Number of participants improved processes","-",{"$f":"IF(_xlfn.TEXTJOIN(\"; \",TRUE,IF(AP116:AT116=1,$AP$4:$AT$4,\"\"))=\"\",\"ERROR\",_xlfn.TEXTJOIN(\"; \",TRUE,IF(AP116:AT116=1,$AP$4:$AT$4,\"\")))","v":"Output"},{"$f":"IF(_xlfn.TEXTJOIN(\"; \",TRUE,IF(J116:W116=1,$J$4:$W$4,\"\"))=\"\",\"-\",_xlfn.TEXTJOIN(\"; \",TRUE,IF(J116:W116=1,$J$4:$W$4,\"\")))","v":"-"},{"$f":"IF(_xlfn.TEXTJOIN(\"; \",TRUE,IF(X116:AF116=1,$X$4:$AF$4,\"\"))=\"\",\"-\",_xlfn.TEXTJOIN(\"; \",TRUE,IF(X116:AF116=1,$X$4:$AF$4,\"\")))","v":"Capacity building: Technical capacity"},{"$f":"IF(_xlfn.TEXTJOIN(\"; \",TRUE,IF(AG116:AO116=1,$AG$4:$AO$4,\"\"))=\"\",\"-\",_xlfn.TEXTJOIN(\"; \",TRUE,IF(AG116:AO116=1,$AG$4:$AO$4,\"\")))","v":"-"},"Number",0,0,0,0,0,0,0,0,0,0,0,0,0,0,0,1,0,0,0,0,0,0,0,0,0,0,0,0,0,0,0,0,0,0,1,0,0]
[null,"TA113","Percentage of units that have better local representation","-",{"$f":"IF(_xlfn.TEXTJOIN(\"; \",TRUE,IF(AP117:AT117=1,$AP$4:$AT$4,\"\"))=\"\",\"ERROR\",_xlfn.TEXTJOIN(\"; \",TRUE,IF(AP117:AT117=1,$AP$4:$AT$4,\"\")))","v":"Output"},{"$f":"IF(_xlfn.TEXTJOIN(\"; \",TRUE,IF(J117:W117=1,$J$4:$W$4,\"\"))=\"\",\"-\",_xlfn.TEXTJOIN(\"; \",TRUE,IF(J117:W117=1,$J$4:$W$4,\"\")))","v":"-"},{"$f":"IF(_xlfn.TEXTJOIN(\"; \",TRUE,IF(X117:AF117=1,$X$4:$AF$4,\"\"))=\"\",\"-\",_xlfn.TEXTJOIN(\"; \",TRUE,IF(X117:AF117=1,$X$4:$AF$4,\"\")))","v":"Capacity building: Technical capacity"},{"$f":"IF(_xlfn.TEXTJOIN(\"; \",TRUE,IF(AG117:AO117=1,$AG$4:$AO$4,\"\"))=\"\",\"-\",_xlfn.TEXTJOIN(\"; \",TRUE,IF(AG117:AO117=1,$AG$4:$AO$4,\"\")))","v":"-"},"Percentage",0,0,0,0,0,0,0,0,0,0,0,0,0,0,0,1,0,0,0,0,0,0,0,0,0,0,0,0,0,0,0,0,0,0,1,0,0]
[null,"TA114","Percentage of units with better funding as result of increased capacity","-",{"$f":"IF(_xlfn.TEXTJOIN(\"; \",TRUE,IF(AP118:AT118=1,$AP$4:$AT$4,\"\"))=\"\",\"ERROR\",_xlfn.TEXTJOIN(\"; \",TRUE,IF(AP118:AT118=1,$AP$4:$AT$4,\"\")))","v":"Output"},{"$f":"IF(_xlfn.TEXTJOIN(\"; \",TRUE,IF(J118:W118=1,$J$4:$W$4,\"\"))=\"\",\"-\",_xlfn.TEXTJOIN(\"; \",TRUE,IF(J118:W118=1,$J$4:$W$4,\"\")))","v":"-"},{"$f":"IF(_xlfn.TEXTJOIN(\"; \",TRUE,IF(X118:AF118=1,$X$4:$AF$4,\"\"))=\"\",\"-\",_xlfn.TEXTJOIN(\"; \",TRUE,IF(X118:AF118=1,$X$4:$AF$4,\"\")))","v":"Capacity building: Technical capacity"},{"$f":"IF(_xlfn.TEXTJOIN(\"; \",TRUE,IF(AG118:AO118=1,$AG$4:$AO$4,\"\"))=\"\",\"-\",_xlfn.TEXTJOIN(\"; \",TRUE,IF(AG118:AO118=1,$AG$4:$AO$4,\"\")))","v":"-"},"Percentage",0,0,0,0,0,0,0,0,0,0,0,0,0,0,0,1,0,0,0,0,0,0,0,0,0,0,0,0,0,0,0,0,0,0,1,0,0]
[null,"TA115","Minimum amount of events organised","-",{"$f":"IF(_xlfn.TEXTJOIN(\"; \",TRUE,IF(AP119:AT119=1,$AP$4:$AT$4,\"\"))=\"\",\"ERROR\",_xlfn.TEXTJOIN(\"; \",TRUE,IF(AP119:AT119=1,$AP$4:$AT$4,\"\")))","v":"Activity"},{"$f":"IF(_xlfn.TEXTJOIN(\"; \",TRUE,IF(J119:W119=1,$J$4:$W$4,\"\"))=\"\",\"-\",_xlfn.TEXTJOIN(\"; \",TRUE,IF(J119:W119=1,$J$4:$W$4,\"\")))","v":"Conferences, seminars or networking events; Public awareness campaigns"},{"$f":"IF(_xlfn.TEXTJOIN(\"; \",TRUE,IF(X119:AF119=1,$X$4:$AF$4,\"\"))=\"\",\"-\",_xlfn.TEXTJOIN(\"; \",TRUE,IF(X119:AF119=1,$X$4:$AF$4,\"\")))","v":"-"},{"$f":"IF(_xlfn.TEXTJOIN(\"; \",TRUE,IF(AG119:AO119=1,$AG$4:$AO$4,\"\"))=\"\",\"-\",_xlfn.TEXTJOIN(\"; \",TRUE,IF(AG119:AO119=1,$AG$4:$AO$4,\"\")))","v":"-"},"Yes/No",0,0,1,0,0,0,0,0,0,1,0,0,0,0,0,0,0,0,0,0,0,0,0,0,0,0,0,0,0,0,0,0,1,0,0,0,0]
[null,"TA116","Number of policymakers that have increased awareness","-",{"$f":"IF(_xlfn.TEXTJOIN(\"; \",TRUE,IF(AP120:AT120=1,$AP$4:$AT$4,\"\"))=\"\",\"ERROR\",_xlfn.TEXTJOIN(\"; \",TRUE,IF(AP120:AT120=1,$AP$4:$AT$4,\"\")))","v":"Output"},{"$f":"IF(_xlfn.TEXTJOIN(\"; \",TRUE,IF(J120:W120=1,$J$4:$W$4,\"\"))=\"\",\"-\",_xlfn.TEXTJOIN(\"; \",TRUE,IF(J120:W120=1,$J$4:$W$4,\"\")))","v":"-"},{"$f":"IF(_xlfn.TEXTJOIN(\"; \",TRUE,IF(X120:AF120=1,$X$4:$AF$4,\"\"))=\"\",\"-\",_xlfn.TEXTJOIN(\"; \",TRUE,IF(X120:AF120=1,$X$4:$AF$4,\"\")))","v":"Awareness raising"},{"$f":"IF(_xlfn.TEXTJOIN(\"; \",TRUE,IF(AG120:AO120=1,$AG$4:$AO$4,\"\"))=\"\",\"-\",_xlfn.TEXTJOIN(\"; \",TRUE,IF(AG120:AO120=1,$AG$4:$AO$4,\"\")))","v":"-"},"Number",0,0,0,0,0,0,0,0,0,0,0,0,0,0,0,0,1,0,0,0,0,0,0,0,0,0,0,0,0,0,0,0,0,0,1,0,0]
[null,"TA117","Number of media events","-",{"$f":"IF(_xlfn.TEXTJOIN(\"; \",TRUE,IF(AP121:AT121=1,$AP$4:$AT$4,\"\"))=\"\",\"ERROR\",_xlfn.TEXTJOIN(\"; \",TRUE,IF(AP121:AT121=1,$AP$4:$AT$4,\"\")))","v":"Activity"},{"$f":"IF(_xlfn.TEXTJOIN(\"; \",TRUE,IF(J121:W121=1,$J$4:$W$4,\"\"))=\"\",\"-\",_xlfn.TEXTJOIN(\"; \",TRUE,IF(J121:W121=1,$J$4:$W$4,\"\")))","v":"Conferences, seminars or networking events; Public awareness campaigns"},{"$f":"IF(_xlfn.TEXTJOIN(\"; \",TRUE,IF(X121:AF121=1,$X$4:$AF$4,\"\"))=\"\",\"-\",_xlfn.TEXTJOIN(\"; \",TRUE,IF(X121:AF121=1,$X$4:$AF$4,\"\")))","v":"-"},{"$f":"IF(_xlfn.TEXTJOIN(\"; \",TRUE,IF(AG121:AO121=1,$AG$4:$AO$4,\"\"))=\"\",\"-\",_xlfn.TEXTJOIN(\"; \",TRUE,IF(AG121:AO121=1,$AG$4:$AO$4,\"\")))","v":"-"},"Number",0,0,1,0,0,0,0,0,0,1,0,0,0,0,0,0,0,0,0,0,0,0,0,0,0,0,0,0,0,0,0,0,1,0,0,0,0]
[null,"TA118","Number of scientific publication that refer to the programme","-",{"$f":"IF(_xlfn.TEXTJOIN(\"; \",TRUE,IF(AP122:AT122=1,$AP$4:$AT$4,\"\"))=\"\",\"ERROR\",_xlfn.TEXTJOIN(\"; \",TRUE,IF(AP122:AT122=1,$AP$4:$AT$4,\"\")))","v":"Output"},{"$f":"IF(_xlfn.TEXTJOIN(\"; \",TRUE,IF(J122:W122=1,$J$4:$W$4,\"\"))=\"\",\"-\",_xlfn.TEXTJOIN(\"; \",TRUE,IF(J122:W122=1,$J$4:$W$4,\"\")))","v":"-"},{"$f":"IF(_xlfn.TEXTJOIN(\"; \",TRUE,IF(X122:AF122=1,$X$4:$AF$4,\"\"))=\"\",\"-\",_xlfn.TEXTJOIN(\"; \",TRUE,IF(X122:AF122=1,$X$4:$AF$4,\"\")))","v":"Awareness raising"},{"$f":"IF(_xlfn.TEXTJOIN(\"; \",TRUE,IF(AG122:AO122=1,$AG$4:$AO$4,\"\"))=\"\",\"-\",_xlfn.TEXTJOIN(\"; \",TRUE,IF(AG122:AO122=1,$AG$4:$AO$4,\"\")))","v":"-"},"Number",0,0,0,0,0,0,0,0,0,0,0,0,0,0,0,0,1,0,0,0,0,0,0,0,0,0,0,0,0,0,0,0,0,0,1,0,0]
[null,"TA119","Number of communication products","-",{"$f":"IF(_xlfn.TEXTJOIN(\"; \",TRUE,IF(AP123:AT123=1,$AP$4:$AT$4,\"\"))=\"\",\"ERROR\",_xlfn.TEXTJOIN(\"; \",TRUE,IF(AP123:AT123=1,$AP$4:$AT$4,\"\")))","v":"Activity"},{"$f":"IF(_xlfn.TEXTJOIN(\"; \",TRUE,IF(J123:W123=1,$J$4:$W$4,\"\"))=\"\",\"-\",_xlfn.TEXTJOIN(\"; \",TRUE,IF(J123:W123=1,$J$4:$W$4,\"\")))","v":"Conferences, seminars or networking events; Public awareness campaigns"},{"$f":"IF(_xlfn.TEXTJOIN(\"; \",TRUE,IF(X123:AF123=1,$X$4:$AF$4,\"\"))=\"\",\"-\",_xlfn.TEXTJOIN(\"; \",TRUE,IF(X123:AF123=1,$X$4:$AF$4,\"\")))","v":"-"},{"$f":"IF(_xlfn.TEXTJOIN(\"; \",TRUE,IF(AG123:AO123=1,$AG$4:$AO$4,\"\"))=\"\",\"-\",_xlfn.TEXTJOIN(\"; \",TRUE,IF(AG123:AO123=1,$AG$4:$AO$4,\"\")))","v":"-"},"Number",0,0,1,0,0,0,0,0,0,1,0,0,0,0,0,0,0,0,0,0,0,0,0,0,0,0,0,0,0,0,0,0,1,0,0,0,0]
[null,"TA120","Programme managers report satisfactory outreach","-",{"$f":"IF(_xlfn.TEXTJOIN(\"; \",TRUE,IF(AP124:AT124=1,$AP$4:$AT$4,\"\"))=\"\",\"ERROR\",_xlfn.TEXTJOIN(\"; \",TRUE,IF(AP124:AT124=1,$AP$4:$AT$4,\"\")))","v":"Uptake"},{"$f":"IF(_xlfn.TEXTJOIN(\"; \",TRUE,IF(J124:W124=1,$J$4:$W$4,\"\"))=\"\",\"-\",_xlfn.TEXTJOIN(\"; \",TRUE,IF(J124:W124=1,$J$4:$W$4,\"\")))","v":"Public awareness campaigns"},{"$f":"IF(_xlfn.TEXTJOIN(\"; \",TRUE,IF(X124:AF124=1,$X$4:$AF$4,\"\"))=\"\",\"-\",_xlfn.TEXTJOIN(\"; \",TRUE,IF(X124:AF124=1,$X$4:$AF$4,\"\")))","v":"-"},{"$f":"IF(_xlfn.TEXTJOIN(\"; \",TRUE,IF(AG124:AO124=1,$AG$4:$AO$4,\"\"))=\"\",\"-\",_xlfn.TEXTJOIN(\"; \",TRUE,IF(AG124:AO124=1,$AG$4:$AO$4,\"\")))","v":"-"},"Yes/No",0,0,0,0,0,0,0,0,0,1,0,0,0,0,0,0,0,0,0,0,0,0,0,0,0,0,0,0,0,0,0,0,0,1,0,0,0]
[null,"TA121","Number of projects that resulted in the development of policy","-",{"$f":"IF(_xlfn.TEXTJOIN(\"; \",TRUE,IF(AP125:AT125=1,$AP$4:$AT$4,\"\"))=\"\",\"ERROR\",_xlfn.TEXTJOIN(\"; \",TRUE,IF(AP125:AT125=1,$AP$4:$AT$4,\"\")))","v":"Outcome"},{"$f":"IF(_xlfn.TEXTJOIN(\"; \",TRUE,IF(J125:W125=1,$J$4:$W$4,\"\"))=\"\",\"-\",_xlfn.TEXTJOIN(\"; \",TRUE,IF(J125:W125=1,$J$4:$W$4,\"\")))","v":"-"},{"$f":"IF(_xlfn.TEXTJOIN(\"; \",TRUE,IF(X125:AF125=1,$X$4:$AF$4,\"\"))=\"\",\"-\",_xlfn.TEXTJOIN(\"; \",TRUE,IF(X125:AF125=1,$X$4:$AF$4,\"\")))","v":"-"},{"$f":"IF(_xlfn.TEXTJOIN(\"; \",TRUE,IF(AG125:AO125=1,$AG$4:$AO$4,\"\"))=\"\",\"-\",_xlfn.TEXTJOIN(\"; \",TRUE,IF(AG125:AO125=1,$AG$4:$AO$4,\"\")))","v":"Increased or improved policy development or execution"},"Number",0,0,0,0,0,0,0,0,0,0,0,0,0,0,0,0,0,0,0,0,0,0,0,1,0,0,0,0,0,0,0,0,0,0,0,1,0]
[null,"TA122","(Number of) Policies developed, amended or adopted","-",{"$f":"IF(_xlfn.TEXTJOIN(\"; \",TRUE,IF(AP126:AT126=1,$AP$4:$AT$4,\"\"))=\"\",\"ERROR\",_xlfn.TEXTJOIN(\"; \",TRUE,IF(AP126:AT126=1,$AP$4:$AT$4,\"\")))","v":"Outcome"},{"$f":"IF(_xlfn.TEXTJOIN(\"; \",TRUE,IF(J126:W126=1,$J$4:$W$4,\"\"))=\"\",\"-\",_xlfn.TEXTJOIN(\"; \",TRUE,IF(J126:W126=1,$J$4:$W$4,\"\")))","v":"-"},{"$f":"IF(_xlfn.TEXTJOIN(\"; \",TRUE,IF(X126:AF126=1,$X$4:$AF$4,\"\"))=\"\",\"-\",_xlfn.TEXTJOIN(\"; \",TRUE,IF(X126:AF126=1,$X$4:$AF$4,\"\")))","v":"-"},{"$f":"IF(_xlfn.TEXTJOIN(\"; \",TRUE,IF(AG126:AO126=1,$AG$4:$AO$4,\"\"))=\"\",\"-\",_xlfn.TEXTJOIN(\"; \",TRUE,IF(AG126:AO126=1,$AG$4:$AO$4,\"\")))","v":"Increased or improved policy development or execution"},"Number",0,0,0,0,0,0,0,0,0,0,0,0,0,0,0,0,0,0,0,0,0,0,0,1,0,0,0,0,0,0,0,0,0,0,0,1,0]
[null,"TA123","Certain number of intersectoral agreements in place","-",{"$f":"IF(_xlfn.TEXTJOIN(\"; \",TRUE,IF(AP127:AT127=1,$AP$4:$AT$4,\"\"))=\"\",\"ERROR\",_xlfn.TEXTJOIN(\"; \",TRUE,IF(AP127:AT127=1,$AP$4:$AT$4,\"\")))","v":"Outcome"},{"$f":"IF(_xlfn.TEXTJOIN(\"; \",TRUE,IF(J127:W127=1,$J$4:$W$4,\"\"))=\"\",\"-\",_xlfn.TEXTJOIN(\"; \",TRUE,IF(J127:W127=1,$J$4:$W$4,\"\")))","v":"-"},{"$f":"IF(_xlfn.TEXTJOIN(\"; \",TRUE,IF(X127:AF127=1,$X$4:$AF$4,\"\"))=\"\",\"-\",_xlfn.TEXTJOIN(\"; \",TRUE,IF(X127:AF127=1,$X$4:$AF$4,\"\")))","v":"-"},{"$f":"IF(_xlfn.TEXTJOIN(\"; \",TRUE,IF(AG127:AO127=1,$AG$4:$AO$4,\"\"))=\"\",\"-\",_xlfn.TEXTJOIN(\"; \",TRUE,IF(AG127:AO127=1,$AG$4:$AO$4,\"\")))","v":"Increased or improved policy development or execution"},"Yes/No",0,0,0,0,0,0,0,0,0,0,0,0,0,0,0,0,0,0,0,0,0,0,0,1,0,0,0,0,0,0,0,0,0,0,0,1,0]
[null,"TA124","Certain number of officers to enforce policy in place","-",{"$f":"IF(_xlfn.TEXTJOIN(\"; \",TRUE,IF(AP128:AT128=1,$AP$4:$AT$4,\"\"))=\"\",\"ERROR\",_xlfn.TEXTJOIN(\"; \",TRUE,IF(AP128:AT128=1,$AP$4:$AT$4,\"\")))","v":"Output"},{"$f":"IF(_xlfn.TEXTJOIN(\"; \",TRUE,IF(J128:W128=1,$J$4:$W$4,\"\"))=\"\",\"-\",_xlfn.TEXTJOIN(\"; \",TRUE,IF(J128:W128=1,$J$4:$W$4,\"\")))","v":"-"},{"$f":"IF(_xlfn.TEXTJOIN(\"; \",TRUE,IF(X128:AF128=1,$X$4:$AF$4,\"\"))=\"\",\"-\",_xlfn.TEXTJOIN(\"; \",TRUE,IF(X128:AF128=1,$X$4:$AF$4,\"\")))","v":"Domestic policy support"},{"$f":"IF(_xlfn.TEXTJOIN(\"; \",TRUE,IF(AG128:AO128=1,$AG$4:$AO$4,\"\"))=\"\",\"-\",_xlfn.TEXTJOIN(\"; \",TRUE,IF(AG128:AO128=1,$AG$4:$AO$4,\"\")))","v":"-"},"Yes/No",0,0,0,0,0,0,0,0,0,0,0,0,0,0,0,0,0,1,0,0,0,0,0,0,0,0,0,0,0,0,0,0,0,0,1,0,0]
[null,"TA125","Number of jurisdictions with improved policies","-",{"$f":"IF(_xlfn.TEXTJOIN(\"; \",TRUE,IF(AP129:AT129=1,$AP$4:$AT$4,\"\"))=\"\",\"ERROR\",_xlfn.TEXTJOIN(\"; \",TRUE,IF(AP129:AT129=1,$AP$4:$AT$4,\"\")))","v":"Outcome"},{"$f":"IF(_xlfn.TEXTJOIN(\"; \",TRUE,IF(J129:W129=1,$J$4:$W$4,\"\"))=\"\",\"-\",_xlfn.TEXTJOIN(\"; \",TRUE,IF(J129:W129=1,$J$4:$W$4,\"\")))","v":"-"},{"$f":"IF(_xlfn.TEXTJOIN(\"; \",TRUE,IF(X129:AF129=1,$X$4:$AF$4,\"\"))=\"\",\"-\",_xlfn.TEXTJOIN(\"; \",TRUE,IF(X129:AF129=1,$X$4:$AF$4,\"\")))","v":"-"},{"$f":"IF(_xlfn.TEXTJOIN(\"; \",TRUE,IF(AG129:AO129=1,$AG$4:$AO$4,\"\"))=\"\",\"-\",_xlfn.TEXTJOIN(\"; \",TRUE,IF(AG129:AO129=1,$AG$4:$AO$4,\"\")))","v":"Increased or improved policy development or execution"},"Number",0,0,0,0,0,0,0,0,0,0,0,0,0,0,0,0,0,0,0,0,0,0,0,1,0,0,0,0,0,0,0,0,0,0,0,1,0]
[null,"TA126","Number of projects with operational m&e plans","-",{"$f":"IF(_xlfn.TEXTJOIN(\"; \",TRUE,IF(AP130:AT130=1,$AP$4:$AT$4,\"\"))=\"\",\"ERROR\",_xlfn.TEXTJOIN(\"; \",TRUE,IF(AP130:AT130=1,$AP$4:$AT$4,\"\")))","v":"Outcome"},{"$f":"IF(_xlfn.TEXTJOIN(\"; \",TRUE,IF(J130:W130=1,$J$4:$W$4,\"\"))=\"\",\"-\",_xlfn.TEXTJOIN(\"; \",TRUE,IF(J130:W130=1,$J$4:$W$4,\"\")))","v":"-"},{"$f":"IF(_xlfn.TEXTJOIN(\"; \",TRUE,IF(X130:AF130=1,$X$4:$AF$4,\"\"))=\"\",\"-\",_xlfn.TEXTJOIN(\"; \",TRUE,IF(X130:AF130=1,$X$4:$AF$4,\"\")))","v":"-"},{"$f":"IF(_xlfn.TEXTJOIN(\"; \",TRUE,IF(AG130:AO130=1,$AG$4:$AO$4,\"\"))=\"\",\"-\",_xlfn.TEXTJOIN(\"; \",TRUE,IF(AG130:AO130=1,$AG$4:$AO$4,\"\")))","v":"Improved operation of processes or assets (inc. e.g. electricity grid stability, agricultural livelihoods, forest management)"},"Number",0,0,0,0,0,0,0,0,0,0,0,0,0,0,0,0,0,0,0,0,0,0,0,0,0,0,0,0,1,0,0,0,0,0,0,1,0]
[null,"TA127","Governance structures improved","-",{"$f":"IF(_xlfn.TEXTJOIN(\"; \",TRUE,IF(AP131:AT131=1,$AP$4:$AT$4,\"\"))=\"\",\"ERROR\",_xlfn.TEXTJOIN(\"; \",TRUE,IF(AP131:AT131=1,$AP$4:$AT$4,\"\")))","v":"Output"},{"$f":"IF(_xlfn.TEXTJOIN(\"; \",TRUE,IF(J131:W131=1,$J$4:$W$4,\"\"))=\"\",\"-\",_xlfn.TEXTJOIN(\"; \",TRUE,IF(J131:W131=1,$J$4:$W$4,\"\")))","v":"-"},{"$f":"IF(_xlfn.TEXTJOIN(\"; \",TRUE,IF(X131:AF131=1,$X$4:$AF$4,\"\"))=\"\",\"-\",_xlfn.TEXTJOIN(\"; \",TRUE,IF(X131:AF131=1,$X$4:$AF$4,\"\")))","v":"Domestic policy support"},{"$f":"IF(_xlfn.TEXTJOIN(\"; \",TRUE,IF(AG131:AO131=1,$AG$4:$AO$4,\"\"))=\"\",\"-\",_xlfn.TEXTJOIN(\"; \",TRUE,IF(AG131:AO131=1,$AG$4:$AO$4,\"\")))","v":"-"},"Narrative",0,0,0,0,0,0,0,0,0,0,0,0,0,0,0,0,0,1,0,0,0,0,0,0,0,0,0,0,0,0,0,0,0,0,1,0,0]
[null,"TA128","Public debate stimulated","-",{"$f":"IF(_xlfn.TEXTJOIN(\"; \",TRUE,IF(AP132:AT132=1,$AP$4:$AT$4,\"\"))=\"\",\"ERROR\",_xlfn.TEXTJOIN(\"; \",TRUE,IF(AP132:AT132=1,$AP$4:$AT$4,\"\")))","v":"Output"},{"$f":"IF(_xlfn.TEXTJOIN(\"; \",TRUE,IF(J132:W132=1,$J$4:$W$4,\"\"))=\"\",\"-\",_xlfn.TEXTJOIN(\"; \",TRUE,IF(J132:W132=1,$J$4:$W$4,\"\")))","v":"-"},{"$f":"IF(_xlfn.TEXTJOIN(\"; \",TRUE,IF(X132:AF132=1,$X$4:$AF$4,\"\"))=\"\",\"-\",_xlfn.TEXTJOIN(\"; \",TRUE,IF(X132:AF132=1,$X$4:$AF$4,\"\")))","v":"Domestic policy support"},{"$f":"IF(_xlfn.TEXTJOIN(\"; \",TRUE,IF(AG132:AO132=1,$AG$4:$AO$4,\"\"))=\"\",\"-\",_xlfn.TEXTJOIN(\"; \",TRUE,IF(AG132:AO132=1,$AG$4:$AO$4,\"\")))","v":"-"},"Narrative",0,0,0,0,0,0,0,0,0,0,0,0,0,0,0,0,0,1,0,0,0,0,0,0,0,0,0,0,0,0,0,0,0,0,1,0,0]
[null,"TA129","Policy support informs stakeholders","-",{"$f":"IF(_xlfn.TEXTJOIN(\"; \",TRUE,IF(AP133:AT133=1,$AP$4:$AT$4,\"\"))=\"\",\"ERROR\",_xlfn.TEXTJOIN(\"; \",TRUE,IF(AP133:AT133=1,$AP$4:$AT$4,\"\")))","v":"Output"},{"$f":"IF(_xlfn.TEXTJOIN(\"; \",TRUE,IF(J133:W133=1,$J$4:$W$4,\"\"))=\"\",\"-\",_xlfn.TEXTJOIN(\"; \",TRUE,IF(J133:W133=1,$J$4:$W$4,\"\")))","v":"-"},{"$f":"IF(_xlfn.TEXTJOIN(\"; \",TRUE,IF(X133:AF133=1,$X$4:$AF$4,\"\"))=\"\",\"-\",_xlfn.TEXTJOIN(\"; \",TRUE,IF(X133:AF133=1,$X$4:$AF$4,\"\")))","v":"Domestic policy support"},{"$f":"IF(_xlfn.TEXTJOIN(\"; \",TRUE,IF(AG133:AO133=1,$AG$4:$AO$4,\"\"))=\"\",\"-\",_xlfn.TEXTJOIN(\"; \",TRUE,IF(AG133:AO133=1,$AG$4:$AO$4,\"\")))","v":"-"},"Narrative",0,0,0,0,0,0,0,0,0,0,0,0,0,0,0,0,0,1,0,0,0,0,0,0,0,0,0,0,0,0,0,0,0,0,1,0,0]
[null,"TA130","Number of times international policy support is provided","-",{"$f":"IF(_xlfn.TEXTJOIN(\"; \",TRUE,IF(AP134:AT134=1,$AP$4:$AT$4,\"\"))=\"\",\"ERROR\",_xlfn.TEXTJOIN(\"; \",TRUE,IF(AP134:AT134=1,$AP$4:$AT$4,\"\")))","v":"Activity"},{"$f":"IF(_xlfn.TEXTJOIN(\"; \",TRUE,IF(J134:W134=1,$J$4:$W$4,\"\"))=\"\",\"-\",_xlfn.TEXTJOIN(\"; \",TRUE,IF(J134:W134=1,$J$4:$W$4,\"\")))","v":"Training events / courses"},{"$f":"IF(_xlfn.TEXTJOIN(\"; \",TRUE,IF(X134:AF134=1,$X$4:$AF$4,\"\"))=\"\",\"-\",_xlfn.TEXTJOIN(\"; \",TRUE,IF(X134:AF134=1,$X$4:$AF$4,\"\")))","v":"-"},{"$f":"IF(_xlfn.TEXTJOIN(\"; \",TRUE,IF(AG134:AO134=1,$AG$4:$AO$4,\"\"))=\"\",\"-\",_xlfn.TEXTJOIN(\"; \",TRUE,IF(AG134:AO134=1,$AG$4:$AO$4,\"\")))","v":"-"},"Number",0,1,0,0,0,0,0,0,0,0,0,0,0,0,0,0,0,0,0,0,0,0,0,0,0,0,0,0,0,0,0,0,1,0,0,0,0]
[null,"TA131","Number of formal submissions that have received programme support","-",{"$f":"IF(_xlfn.TEXTJOIN(\"; \",TRUE,IF(AP135:AT135=1,$AP$4:$AT$4,\"\"))=\"\",\"ERROR\",_xlfn.TEXTJOIN(\"; \",TRUE,IF(AP135:AT135=1,$AP$4:$AT$4,\"\")))","v":"Output"},{"$f":"IF(_xlfn.TEXTJOIN(\"; \",TRUE,IF(J135:W135=1,$J$4:$W$4,\"\"))=\"\",\"-\",_xlfn.TEXTJOIN(\"; \",TRUE,IF(J135:W135=1,$J$4:$W$4,\"\")))","v":"-"},{"$f":"IF(_xlfn.TEXTJOIN(\"; \",TRUE,IF(X135:AF135=1,$X$4:$AF$4,\"\"))=\"\",\"-\",_xlfn.TEXTJOIN(\"; \",TRUE,IF(X135:AF135=1,$X$4:$AF$4,\"\")))","v":"International policy support"},{"$f":"IF(_xlfn.TEXTJOIN(\"; \",TRUE,IF(AG135:AO135=1,$AG$4:$AO$4,\"\"))=\"\",\"-\",_xlfn.TEXTJOIN(\"; \",TRUE,IF(AG135:AO135=1,$AG$4:$AO$4,\"\")))","v":"-"},"Number",0,0,0,0,0,0,0,0,0,0,0,0,0,0,0,0,0,0,1,0,0,0,0,0,0,0,0,0,0,0,0,0,0,0,1,0,0]
[null,"TA132","Number of knowledge products created","-",{"$f":"IF(_xlfn.TEXTJOIN(\"; \",TRUE,IF(AP136:AT136=1,$AP$4:$AT$4,\"\"))=\"\",\"ERROR\",_xlfn.TEXTJOIN(\"; \",TRUE,IF(AP136:AT136=1,$AP$4:$AT$4,\"\")))","v":"Output"},{"$f":"IF(_xlfn.TEXTJOIN(\"; \",TRUE,IF(J136:W136=1,$J$4:$W$4,\"\"))=\"\",\"-\",_xlfn.TEXTJOIN(\"; \",TRUE,IF(J136:W136=1,$J$4:$W$4,\"\")))","v":"-"},{"$f":"IF(_xlfn.TEXTJOIN(\"; \",TRUE,IF(X136:AF136=1,$X$4:$AF$4,\"\"))=\"\",\"-\",_xlfn.TEXTJOIN(\"; \",TRUE,IF(X136:AF136=1,$X$4:$AF$4,\"\")))","v":"International policy support; Financing support"},{"$f":"IF(_xlfn.TEXTJOIN(\"; \",TRUE,IF(AG136:AO136=1,$AG$4:$AO$4,\"\"))=\"\",\"-\",_xlfn.TEXTJOIN(\"; \",TRUE,IF(AG136:AO136=1,$AG$4:$AO$4,\"\")))","v":"-"},"Number",0,0,0,0,0,0,0,0,0,0,0,0,0,0,0,0,0,0,1,0,0,1,0,0,0,0,0,0,0,0,0,0,0,0,1,0,0]
[null,"TA133","Number of cases where participants changed behaviour in response to international policy support","-",{"$f":"IF(_xlfn.TEXTJOIN(\"; \",TRUE,IF(AP137:AT137=1,$AP$4:$AT$4,\"\"))=\"\",\"ERROR\",_xlfn.TEXTJOIN(\"; \",TRUE,IF(AP137:AT137=1,$AP$4:$AT$4,\"\")))","v":"Output"},{"$f":"IF(_xlfn.TEXTJOIN(\"; \",TRUE,IF(J137:W137=1,$J$4:$W$4,\"\"))=\"\",\"-\",_xlfn.TEXTJOIN(\"; \",TRUE,IF(J137:W137=1,$J$4:$W$4,\"\")))","v":"-"},{"$f":"IF(_xlfn.TEXTJOIN(\"; \",TRUE,IF(X137:AF137=1,$X$4:$AF$4,\"\"))=\"\",\"-\",_xlfn.TEXTJOIN(\"; \",TRUE,IF(X137:AF137=1,$X$4:$AF$4,\"\")))","v":"International policy support"},{"$f":"IF(_xlfn.TEXTJOIN(\"; \",TRUE,IF(AG137:AO137=1,$AG$4:$AO$4,\"\"))=\"\",\"-\",_xlfn.TEXTJOIN(\"; \",TRUE,IF(AG137:AO137=1,$AG$4:$AO$4,\"\")))","v":"-"},"Number, Narrative",0,0,0,0,0,0,0,0,0,0,0,0,0,0,0,0,0,0,1,0,0,0,0,0,0,0,0,0,0,0,0,0,0,0,1,0,0]
[null,"TA134","International policy coordination takes place","-",{"$f":"IF(_xlfn.TEXTJOIN(\"; \",TRUE,IF(AP138:AT138=1,$AP$4:$AT$4,\"\"))=\"\",\"ERROR\",_xlfn.TEXTJOIN(\"; \",TRUE,IF(AP138:AT138=1,$AP$4:$AT$4,\"\")))","v":"Output"},{"$f":"IF(_xlfn.TEXTJOIN(\"; \",TRUE,IF(J138:W138=1,$J$4:$W$4,\"\"))=\"\",\"-\",_xlfn.TEXTJOIN(\"; \",TRUE,IF(J138:W138=1,$J$4:$W$4,\"\")))","v":"-"},{"$f":"IF(_xlfn.TEXTJOIN(\"; \",TRUE,IF(X138:AF138=1,$X$4:$AF$4,\"\"))=\"\",\"-\",_xlfn.TEXTJOIN(\"; \",TRUE,IF(X138:AF138=1,$X$4:$AF$4,\"\")))","v":"International policy support"},{"$f":"IF(_xlfn.TEXTJOIN(\"; \",TRUE,IF(AG138:AO138=1,$AG$4:$AO$4,\"\"))=\"\",\"-\",_xlfn.TEXTJOIN(\"; \",TRUE,IF(AG138:AO138=1,$AG$4:$AO$4,\"\")))","v":"-"},"Narrative",0,0,0,0,0,0,0,0,0,0,0,0,0,0,0,0,0,0,1,0,0,0,0,0,0,0,0,0,0,0,0,0,0,0,1,0,0]
[null,"TA135","Number of project studies (e.g. pre-feasibility, feasibility, design, structure)","-",{"$f":"IF(_xlfn.TEXTJOIN(\"; \",TRUE,IF(AP139:AT139=1,$AP$4:$AT$4,\"\"))=\"\",\"ERROR\",_xlfn.TEXTJOIN(\"; \",TRUE,IF(AP139:AT139=1,$AP$4:$AT$4,\"\")))","v":"Output"},{"$f":"IF(_xlfn.TEXTJOIN(\"; \",TRUE,IF(J139:W139=1,$J$4:$W$4,\"\"))=\"\",\"-\",_xlfn.TEXTJOIN(\"; \",TRUE,IF(J139:W139=1,$J$4:$W$4,\"\")))","v":"-"},{"$f":"IF(_xlfn.TEXTJOIN(\"; \",TRUE,IF(X139:AF139=1,$X$4:$AF$4,\"\"))=\"\",\"-\",_xlfn.TEXTJOIN(\"; \",TRUE,IF(X139:AF139=1,$X$4:$AF$4,\"\")))","v":"Project development support"},{"$f":"IF(_xlfn.TEXTJOIN(\"; \",TRUE,IF(AG139:AO139=1,$AG$4:$AO$4,\"\"))=\"\",\"-\",_xlfn.TEXTJOIN(\"; \",TRUE,IF(AG139:AO139=1,$AG$4:$AO$4,\"\")))","v":"-"},"Number",0,0,0,0,0,0,0,0,0,0,0,0,0,0,0,0,0,0,0,1,0,0,0,0,0,0,0,0,0,0,0,0,0,0,1,0,0]
[null,"TA136","(Number of) Projects that pass through certain stage that requires approval","-",{"$f":"IF(_xlfn.TEXTJOIN(\"; \",TRUE,IF(AP140:AT140=1,$AP$4:$AT$4,\"\"))=\"\",\"ERROR\",_xlfn.TEXTJOIN(\"; \",TRUE,IF(AP140:AT140=1,$AP$4:$AT$4,\"\")))","v":"Output"},{"$f":"IF(_xlfn.TEXTJOIN(\"; \",TRUE,IF(J140:W140=1,$J$4:$W$4,\"\"))=\"\",\"-\",_xlfn.TEXTJOIN(\"; \",TRUE,IF(J140:W140=1,$J$4:$W$4,\"\")))","v":"-"},{"$f":"IF(_xlfn.TEXTJOIN(\"; \",TRUE,IF(X140:AF140=1,$X$4:$AF$4,\"\"))=\"\",\"-\",_xlfn.TEXTJOIN(\"; \",TRUE,IF(X140:AF140=1,$X$4:$AF$4,\"\")))","v":"Project development support; Process/asset operation support"},{"$f":"IF(_xlfn.TEXTJOIN(\"; \",TRUE,IF(AG140:AO140=1,$AG$4:$AO$4,\"\"))=\"\",\"-\",_xlfn.TEXTJOIN(\"; \",TRUE,IF(AG140:AO140=1,$AG$4:$AO$4,\"\")))","v":"-"},"Number",0,0,0,0,0,0,0,0,0,0,0,0,0,0,0,0,0,0,0,1,1,0,0,0,0,0,0,0,0,0,0,0,0,0,1,0,0]
[null,"TA137","Percentage of programmes that pass through certain stage that requires approval","-",{"$f":"IF(_xlfn.TEXTJOIN(\"; \",TRUE,IF(AP141:AT141=1,$AP$4:$AT$4,\"\"))=\"\",\"ERROR\",_xlfn.TEXTJOIN(\"; \",TRUE,IF(AP141:AT141=1,$AP$4:$AT$4,\"\")))","v":"Output"},{"$f":"IF(_xlfn.TEXTJOIN(\"; \",TRUE,IF(J141:W141=1,$J$4:$W$4,\"\"))=\"\",\"-\",_xlfn.TEXTJOIN(\"; \",TRUE,IF(J141:W141=1,$J$4:$W$4,\"\")))","v":"-"},{"$f":"IF(_xlfn.TEXTJOIN(\"; \",TRUE,IF(X141:AF141=1,$X$4:$AF$4,\"\"))=\"\",\"-\",_xlfn.TEXTJOIN(\"; \",TRUE,IF(X141:AF141=1,$X$4:$AF$4,\"\")))","v":"Project development support"},{"$f":"IF(_xlfn.TEXTJOIN(\"; \",TRUE,IF(AG141:AO141=1,$AG$4:$AO$4,\"\"))=\"\",\"-\",_xlfn.TEXTJOIN(\"; \",TRUE,IF(AG141:AO141=1,$AG$4:$AO$4,\"\")))","v":"-"},"Percentage",0,0,0,0,0,0,0,0,0,0,0,0,0,0,0,0,0,0,0,1,0,0,0,0,0,0,0,0,0,0,0,0,0,0,1,0,0]
[null,"TA138","Certain project strategy document is developed and delivered","-",{"$f":"IF(_xlfn.TEXTJOIN(\"; \",TRUE,IF(AP142:AT142=1,$AP$4:$AT$4,\"\"))=\"\",\"ERROR\",_xlfn.TEXTJOIN(\"; \",TRUE,IF(AP142:AT142=1,$AP$4:$AT$4,\"\")))","v":"Output"},{"$f":"IF(_xlfn.TEXTJOIN(\"; \",TRUE,IF(J142:W142=1,$J$4:$W$4,\"\"))=\"\",\"-\",_xlfn.TEXTJOIN(\"; \",TRUE,IF(J142:W142=1,$J$4:$W$4,\"\")))","v":"-"},{"$f":"IF(_xlfn.TEXTJOIN(\"; \",TRUE,IF(X142:AF142=1,$X$4:$AF$4,\"\"))=\"\",\"-\",_xlfn.TEXTJOIN(\"; \",TRUE,IF(X142:AF142=1,$X$4:$AF$4,\"\")))","v":"Project development support"},{"$f":"IF(_xlfn.TEXTJOIN(\"; \",TRUE,IF(AG142:AO142=1,$AG$4:$AO$4,\"\"))=\"\",\"-\",_xlfn.TEXTJOIN(\"; \",TRUE,IF(AG142:AO142=1,$AG$4:$AO$4,\"\")))","v":"-"},"Yes/No",0,0,0,0,0,0,0,0,0,0,0,0,0,0,0,0,0,0,0,1,0,0,0,0,0,0,0,0,0,0,0,0,0,0,1,0,0]
[null,"TA139","Number of breaches to project obligations","-",{"$f":"IF(_xlfn.TEXTJOIN(\"; \",TRUE,IF(AP143:AT143=1,$AP$4:$AT$4,\"\"))=\"\",\"ERROR\",_xlfn.TEXTJOIN(\"; \",TRUE,IF(AP143:AT143=1,$AP$4:$AT$4,\"\")))","v":"Output"},{"$f":"IF(_xlfn.TEXTJOIN(\"; \",TRUE,IF(J143:W143=1,$J$4:$W$4,\"\"))=\"\",\"-\",_xlfn.TEXTJOIN(\"; \",TRUE,IF(J143:W143=1,$J$4:$W$4,\"\")))","v":"-"},{"$f":"IF(_xlfn.TEXTJOIN(\"; \",TRUE,IF(X143:AF143=1,$X$4:$AF$4,\"\"))=\"\",\"-\",_xlfn.TEXTJOIN(\"; \",TRUE,IF(X143:AF143=1,$X$4:$AF$4,\"\")))","v":"Project development support"},{"$f":"IF(_xlfn.TEXTJOIN(\"; \",TRUE,IF(AG143:AO143=1,$AG$4:$AO$4,\"\"))=\"\",\"-\",_xlfn.TEXTJOIN(\"; \",TRUE,IF(AG143:AO143=1,$AG$4:$AO$4,\"\")))","v":"-"},"Number",0,0,0,0,0,0,0,0,0,0,0,0,0,0,0,0,0,0,0,1,0,0,0,0,0,0,0,0,0,0,0,0,0,0,1,0,0]
[null,"TA140","Number of bidders for projects","-",{"$f":"IF(_xlfn.TEXTJOIN(\"; \",TRUE,IF(AP144:AT144=1,$AP$4:$AT$4,\"\"))=\"\",\"ERROR\",_xlfn.TEXTJOIN(\"; \",TRUE,IF(AP144:AT144=1,$AP$4:$AT$4,\"\")))","v":"Output"},{"$f":"IF(_xlfn.TEXTJOIN(\"; \",TRUE,IF(J144:W144=1,$J$4:$W$4,\"\"))=\"\",\"-\",_xlfn.TEXTJOIN(\"; \",TRUE,IF(J144:W144=1,$J$4:$W$4,\"\")))","v":"-"},{"$f":"IF(_xlfn.TEXTJOIN(\"; \",TRUE,IF(X144:AF144=1,$X$4:$AF$4,\"\"))=\"\",\"-\",_xlfn.TEXTJOIN(\"; \",TRUE,IF(X144:AF144=1,$X$4:$AF$4,\"\")))","v":"Project development support"},{"$f":"IF(_xlfn.TEXTJOIN(\"; \",TRUE,IF(AG144:AO144=1,$AG$4:$AO$4,\"\"))=\"\",\"-\",_xlfn.TEXTJOIN(\"; \",TRUE,IF(AG144:AO144=1,$AG$4:$AO$4,\"\")))","v":"-"},"Number",0,0,0,0,0,0,0,0,0,0,0,0,0,0,0,0,0,0,0,1,0,0,0,0,0,0,0,0,0,0,0,0,0,0,1,0,0]
[null,"TA141","Percentage of participants that use or comply with certain elements required in project plans","-",{"$f":"IF(_xlfn.TEXTJOIN(\"; \",TRUE,IF(AP145:AT145=1,$AP$4:$AT$4,\"\"))=\"\",\"ERROR\",_xlfn.TEXTJOIN(\"; \",TRUE,IF(AP145:AT145=1,$AP$4:$AT$4,\"\")))","v":"Output"},{"$f":"IF(_xlfn.TEXTJOIN(\"; \",TRUE,IF(J145:W145=1,$J$4:$W$4,\"\"))=\"\",\"-\",_xlfn.TEXTJOIN(\"; \",TRUE,IF(J145:W145=1,$J$4:$W$4,\"\")))","v":"-"},{"$f":"IF(_xlfn.TEXTJOIN(\"; \",TRUE,IF(X145:AF145=1,$X$4:$AF$4,\"\"))=\"\",\"-\",_xlfn.TEXTJOIN(\"; \",TRUE,IF(X145:AF145=1,$X$4:$AF$4,\"\")))","v":"Project development support"},{"$f":"IF(_xlfn.TEXTJOIN(\"; \",TRUE,IF(AG145:AO145=1,$AG$4:$AO$4,\"\"))=\"\",\"-\",_xlfn.TEXTJOIN(\"; \",TRUE,IF(AG145:AO145=1,$AG$4:$AO$4,\"\")))","v":"-"},"Percentage",0,0,0,0,0,0,0,0,0,0,0,0,0,0,0,0,0,0,0,1,0,0,0,0,0,0,0,0,0,0,0,0,0,0,1,0,0]
[null,"TA142","Number of units that operate at certain standard","-",{"$f":"IF(_xlfn.TEXTJOIN(\"; \",TRUE,IF(AP146:AT146=1,$AP$4:$AT$4,\"\"))=\"\",\"ERROR\",_xlfn.TEXTJOIN(\"; \",TRUE,IF(AP146:AT146=1,$AP$4:$AT$4,\"\")))","v":"Output"},{"$f":"IF(_xlfn.TEXTJOIN(\"; \",TRUE,IF(J146:W146=1,$J$4:$W$4,\"\"))=\"\",\"-\",_xlfn.TEXTJOIN(\"; \",TRUE,IF(J146:W146=1,$J$4:$W$4,\"\")))","v":"-"},{"$f":"IF(_xlfn.TEXTJOIN(\"; \",TRUE,IF(X146:AF146=1,$X$4:$AF$4,\"\"))=\"\",\"-\",_xlfn.TEXTJOIN(\"; \",TRUE,IF(X146:AF146=1,$X$4:$AF$4,\"\")))","v":"Project development support; Process/asset operation support"},{"$f":"IF(_xlfn.TEXTJOIN(\"; \",TRUE,IF(AG146:AO146=1,$AG$4:$AO$4,\"\"))=\"\",\"-\",_xlfn.TEXTJOIN(\"; \",TRUE,IF(AG146:AO146=1,$AG$4:$AO$4,\"\")))","v":"-"},"Number",0,0,0,0,0,0,0,0,0,0,0,0,0,0,0,0,0,0,0,1,1,0,0,0,0,0,0,0,0,0,0,0,0,0,1,0,0]
[null,"TA143","Number of units developed or improved","-",{"$f":"IF(_xlfn.TEXTJOIN(\"; \",TRUE,IF(AP147:AT147=1,$AP$4:$AT$4,\"\"))=\"\",\"ERROR\",_xlfn.TEXTJOIN(\"; \",TRUE,IF(AP147:AT147=1,$AP$4:$AT$4,\"\")))","v":"Output"},{"$f":"IF(_xlfn.TEXTJOIN(\"; \",TRUE,IF(J147:W147=1,$J$4:$W$4,\"\"))=\"\",\"-\",_xlfn.TEXTJOIN(\"; \",TRUE,IF(J147:W147=1,$J$4:$W$4,\"\")))","v":"-"},{"$f":"IF(_xlfn.TEXTJOIN(\"; \",TRUE,IF(X147:AF147=1,$X$4:$AF$4,\"\"))=\"\",\"-\",_xlfn.TEXTJOIN(\"; \",TRUE,IF(X147:AF147=1,$X$4:$AF$4,\"\")))","v":"Project development support"},{"$f":"IF(_xlfn.TEXTJOIN(\"; \",TRUE,IF(AG147:AO147=1,$AG$4:$AO$4,\"\"))=\"\",\"-\",_xlfn.TEXTJOIN(\"; \",TRUE,IF(AG147:AO147=1,$AG$4:$AO$4,\"\")))","v":"-"},"Number",0,0,0,0,0,0,0,0,0,0,0,0,0,0,0,0,0,0,0,1,0,0,0,0,0,0,0,0,0,0,0,0,0,0,1,0,0]
[null,"TA144","Number of registered governments and stakeholders","-",{"$f":"IF(_xlfn.TEXTJOIN(\"; \",TRUE,IF(AP148:AT148=1,$AP$4:$AT$4,\"\"))=\"\",\"ERROR\",_xlfn.TEXTJOIN(\"; \",TRUE,IF(AP148:AT148=1,$AP$4:$AT$4,\"\")))","v":"Uptake"},{"$f":"IF(_xlfn.TEXTJOIN(\"; \",TRUE,IF(J148:W148=1,$J$4:$W$4,\"\"))=\"\",\"-\",_xlfn.TEXTJOIN(\"; \",TRUE,IF(J148:W148=1,$J$4:$W$4,\"\")))","v":"Workshops; Training events / courses; Conferences, seminars or networking events"},{"$f":"IF(_xlfn.TEXTJOIN(\"; \",TRUE,IF(X148:AF148=1,$X$4:$AF$4,\"\"))=\"\",\"-\",_xlfn.TEXTJOIN(\"; \",TRUE,IF(X148:AF148=1,$X$4:$AF$4,\"\")))","v":"-"},{"$f":"IF(_xlfn.TEXTJOIN(\"; \",TRUE,IF(AG148:AO148=1,$AG$4:$AO$4,\"\"))=\"\",\"-\",_xlfn.TEXTJOIN(\"; \",TRUE,IF(AG148:AO148=1,$AG$4:$AO$4,\"\")))","v":"-"},"Number",1,1,1,0,0,0,0,0,0,0,0,0,0,0,0,0,0,0,0,0,0,0,0,0,0,0,0,0,0,0,0,0,0,1,0,0,0]
[null,"TA145","Proportion of credit lines/capital deployed","-",{"$f":"IF(_xlfn.TEXTJOIN(\"; \",TRUE,IF(AP149:AT149=1,$AP$4:$AT$4,\"\"))=\"\",\"ERROR\",_xlfn.TEXTJOIN(\"; \",TRUE,IF(AP149:AT149=1,$AP$4:$AT$4,\"\")))","v":"Output"},{"$f":"IF(_xlfn.TEXTJOIN(\"; \",TRUE,IF(J149:W149=1,$J$4:$W$4,\"\"))=\"\",\"-\",_xlfn.TEXTJOIN(\"; \",TRUE,IF(J149:W149=1,$J$4:$W$4,\"\")))","v":"-"},{"$f":"IF(_xlfn.TEXTJOIN(\"; \",TRUE,IF(X149:AF149=1,$X$4:$AF$4,\"\"))=\"\",\"-\",_xlfn.TEXTJOIN(\"; \",TRUE,IF(X149:AF149=1,$X$4:$AF$4,\"\")))","v":"Project development support"},{"$f":"IF(_xlfn.TEXTJOIN(\"; \",TRUE,IF(AG149:AO149=1,$AG$4:$AO$4,\"\"))=\"\",\"-\",_xlfn.TEXTJOIN(\"; \",TRUE,IF(AG149:AO149=1,$AG$4:$AO$4,\"\")))","v":"-"},"Percentage",0,0,0,0,0,0,0,0,0,0,0,0,0,0,0,0,0,0,0,1,0,0,0,0,0,0,0,0,0,0,0,0,0,0,1,0,0]
[null,"TA146","Duration of certain project step","-",{"$f":"IF(_xlfn.TEXTJOIN(\"; \",TRUE,IF(AP150:AT150=1,$AP$4:$AT$4,\"\"))=\"\",\"ERROR\",_xlfn.TEXTJOIN(\"; \",TRUE,IF(AP150:AT150=1,$AP$4:$AT$4,\"\")))","v":"Output"},{"$f":"IF(_xlfn.TEXTJOIN(\"; \",TRUE,IF(J150:W150=1,$J$4:$W$4,\"\"))=\"\",\"-\",_xlfn.TEXTJOIN(\"; \",TRUE,IF(J150:W150=1,$J$4:$W$4,\"\")))","v":"-"},{"$f":"IF(_xlfn.TEXTJOIN(\"; \",TRUE,IF(X150:AF150=1,$X$4:$AF$4,\"\"))=\"\",\"-\",_xlfn.TEXTJOIN(\"; \",TRUE,IF(X150:AF150=1,$X$4:$AF$4,\"\")))","v":"Project development support"},{"$f":"IF(_xlfn.TEXTJOIN(\"; \",TRUE,IF(AG150:AO150=1,$AG$4:$AO$4,\"\"))=\"\",\"-\",_xlfn.TEXTJOIN(\"; \",TRUE,IF(AG150:AO150=1,$AG$4:$AO$4,\"\")))","v":"-"},"Number",0,0,0,0,0,0,0,0,0,0,0,0,0,0,0,0,0,0,0,1,0,0,0,0,0,0,0,0,0,0,0,0,0,0,1,0,0]
[null,"TA147","Number of projects managed by certain unit","-",{"$f":"IF(_xlfn.TEXTJOIN(\"; \",TRUE,IF(AP151:AT151=1,$AP$4:$AT$4,\"\"))=\"\",\"ERROR\",_xlfn.TEXTJOIN(\"; \",TRUE,IF(AP151:AT151=1,$AP$4:$AT$4,\"\")))","v":"Output"},{"$f":"IF(_xlfn.TEXTJOIN(\"; \",TRUE,IF(J151:W151=1,$J$4:$W$4,\"\"))=\"\",\"-\",_xlfn.TEXTJOIN(\"; \",TRUE,IF(J151:W151=1,$J$4:$W$4,\"\")))","v":"-"},{"$f":"IF(_xlfn.TEXTJOIN(\"; \",TRUE,IF(X151:AF151=1,$X$4:$AF$4,\"\"))=\"\",\"-\",_xlfn.TEXTJOIN(\"; \",TRUE,IF(X151:AF151=1,$X$4:$AF$4,\"\")))","v":"Project development support"},{"$f":"IF(_xlfn.TEXTJOIN(\"; \",TRUE,IF(AG151:AO151=1,$AG$4:$AO$4,\"\"))=\"\",\"-\",_xlfn.TEXTJOIN(\"; \",TRUE,IF(AG151:AO151=1,$AG$4:$AO$4,\"\")))","v":"-"},"Number",0,0,0,0,0,0,0,0,0,0,0,0,0,0,0,0,0,0,0,1,0,0,0,0,0,0,0,0,0,0,0,0,0,0,1,0,0]
[null,"TA148","Specified process management structures in place","-",{"$f":"IF(_xlfn.TEXTJOIN(\"; \",TRUE,IF(AP152:AT152=1,$AP$4:$AT$4,\"\"))=\"\",\"ERROR\",_xlfn.TEXTJOIN(\"; \",TRUE,IF(AP152:AT152=1,$AP$4:$AT$4,\"\")))","v":"Output"},{"$f":"IF(_xlfn.TEXTJOIN(\"; \",TRUE,IF(J152:W152=1,$J$4:$W$4,\"\"))=\"\",\"-\",_xlfn.TEXTJOIN(\"; \",TRUE,IF(J152:W152=1,$J$4:$W$4,\"\")))","v":"-"},{"$f":"IF(_xlfn.TEXTJOIN(\"; \",TRUE,IF(X152:AF152=1,$X$4:$AF$4,\"\"))=\"\",\"-\",_xlfn.TEXTJOIN(\"; \",TRUE,IF(X152:AF152=1,$X$4:$AF$4,\"\")))","v":"Process/asset operation support"},{"$f":"IF(_xlfn.TEXTJOIN(\"; \",TRUE,IF(AG152:AO152=1,$AG$4:$AO$4,\"\"))=\"\",\"-\",_xlfn.TEXTJOIN(\"; \",TRUE,IF(AG152:AO152=1,$AG$4:$AO$4,\"\")))","v":"-"},"Yes/No",0,0,0,0,0,0,0,0,0,0,0,0,0,0,0,0,0,0,0,0,1,0,0,0,0,0,0,0,0,0,0,0,0,0,1,0,0]
[null,"TA149","Process documents are produced (and publicly available)","-",{"$f":"IF(_xlfn.TEXTJOIN(\"; \",TRUE,IF(AP153:AT153=1,$AP$4:$AT$4,\"\"))=\"\",\"ERROR\",_xlfn.TEXTJOIN(\"; \",TRUE,IF(AP153:AT153=1,$AP$4:$AT$4,\"\")))","v":"Output"},{"$f":"IF(_xlfn.TEXTJOIN(\"; \",TRUE,IF(J153:W153=1,$J$4:$W$4,\"\"))=\"\",\"-\",_xlfn.TEXTJOIN(\"; \",TRUE,IF(J153:W153=1,$J$4:$W$4,\"\")))","v":"-"},{"$f":"IF(_xlfn.TEXTJOIN(\"; \",TRUE,IF(X153:AF153=1,$X$4:$AF$4,\"\"))=\"\",\"-\",_xlfn.TEXTJOIN(\"; \",TRUE,IF(X153:AF153=1,$X$4:$AF$4,\"\")))","v":"Process/asset operation support"},{"$f":"IF(_xlfn.TEXTJOIN(\"; \",TRUE,IF(AG153:AO153=1,$AG$4:$AO$4,\"\"))=\"\",\"-\",_xlfn.TEXTJOIN(\"; \",TRUE,IF(AG153:AO153=1,$AG$4:$AO$4,\"\")))","v":"-"},"Yes/No",0,0,0,0,0,0,0,0,0,0,0,0,0,0,0,0,0,0,0,0,1,0,0,0,0,0,0,0,0,0,0,0,0,0,1,0,0]
[null,"TA150","Percentage of participants that use or comply with certain elements required in project/process plans","-",{"$f":"IF(_xlfn.TEXTJOIN(\"; \",TRUE,IF(AP154:AT154=1,$AP$4:$AT$4,\"\"))=\"\",\"ERROR\",_xlfn.TEXTJOIN(\"; \",TRUE,IF(AP154:AT154=1,$AP$4:$AT$4,\"\")))","v":"Output"},{"$f":"IF(_xlfn.TEXTJOIN(\"; \",TRUE,IF(J154:W154=1,$J$4:$W$4,\"\"))=\"\",\"-\",_xlfn.TEXTJOIN(\"; \",TRUE,IF(J154:W154=1,$J$4:$W$4,\"\")))","v":"-"},{"$f":"IF(_xlfn.TEXTJOIN(\"; \",TRUE,IF(X154:AF154=1,$X$4:$AF$4,\"\"))=\"\",\"-\",_xlfn.TEXTJOIN(\"; \",TRUE,IF(X154:AF154=1,$X$4:$AF$4,\"\")))","v":"Process/asset operation support"},{"$f":"IF(_xlfn.TEXTJOIN(\"; \",TRUE,IF(AG154:AO154=1,$AG$4:$AO$4,\"\"))=\"\",\"-\",_xlfn.TEXTJOIN(\"; \",TRUE,IF(AG154:AO154=1,$AG$4:$AO$4,\"\")))","v":"-"},null,0,0,0,0,0,0,0,0,0,0,0,0,0,0,0,0,0,0,0,0,1,0,0,0,0,0,0,0,0,0,0,0,0,0,1,0,0]
[null,"TA151","Process management documents shared between participants","-",{"$f":"IF(_xlfn.TEXTJOIN(\"; \",TRUE,IF(AP155:AT155=1,$AP$4:$AT$4,\"\"))=\"\",\"ERROR\",_xlfn.TEXTJOIN(\"; \",TRUE,IF(AP155:AT155=1,$AP$4:$AT$4,\"\")))","v":"Output"},{"$f":"IF(_xlfn.TEXTJOIN(\"; \",TRUE,IF(J155:W155=1,$J$4:$W$4,\"\"))=\"\",\"-\",_xlfn.TEXTJOIN(\"; \",TRUE,IF(J155:W155=1,$J$4:$W$4,\"\")))","v":"-"},{"$f":"IF(_xlfn.TEXTJOIN(\"; \",TRUE,IF(X155:AF155=1,$X$4:$AF$4,\"\"))=\"\",\"-\",_xlfn.TEXTJOIN(\"; \",TRUE,IF(X155:AF155=1,$X$4:$AF$4,\"\")))","v":"Process/asset operation support"},{"$f":"IF(_xlfn.TEXTJOIN(\"; \",TRUE,IF(AG155:AO155=1,$AG$4:$AO$4,\"\"))=\"\",\"-\",_xlfn.TEXTJOIN(\"; \",TRUE,IF(AG155:AO155=1,$AG$4:$AO$4,\"\")))","v":"-"},"Yes/No",0,0,0,0,0,0,0,0,0,0,0,0,0,0,0,0,0,0,0,0,1,0,0,0,0,0,0,0,0,0,0,0,0,0,1,0,0]
[null,"TA152","Understanding the level and reason for pass/fail/return of certain process management step","-",{"$f":"IF(_xlfn.TEXTJOIN(\"; \",TRUE,IF(AP156:AT156=1,$AP$4:$AT$4,\"\"))=\"\",\"ERROR\",_xlfn.TEXTJOIN(\"; \",TRUE,IF(AP156:AT156=1,$AP$4:$AT$4,\"\")))","v":"Output"},{"$f":"IF(_xlfn.TEXTJOIN(\"; \",TRUE,IF(J156:W156=1,$J$4:$W$4,\"\"))=\"\",\"-\",_xlfn.TEXTJOIN(\"; \",TRUE,IF(J156:W156=1,$J$4:$W$4,\"\")))","v":"-"},{"$f":"IF(_xlfn.TEXTJOIN(\"; \",TRUE,IF(X156:AF156=1,$X$4:$AF$4,\"\"))=\"\",\"-\",_xlfn.TEXTJOIN(\"; \",TRUE,IF(X156:AF156=1,$X$4:$AF$4,\"\")))","v":"Process/asset operation support"},{"$f":"IF(_xlfn.TEXTJOIN(\"; \",TRUE,IF(AG156:AO156=1,$AG$4:$AO$4,\"\"))=\"\",\"-\",_xlfn.TEXTJOIN(\"; \",TRUE,IF(AG156:AO156=1,$AG$4:$AO$4,\"\")))","v":"-"},"Narrative",0,0,0,0,0,0,0,0,0,0,0,0,0,0,0,0,0,0,0,0,1,0,0,0,0,0,0,0,0,0,0,0,0,0,1,0,0]
[null,"TA153","(Number/percentage of) Projects that pass through certain stage that requires approval","Measures ability of projects to achieve milestones due to improved functioning",{"$f":"IF(_xlfn.TEXTJOIN(\"; \",TRUE,IF(AP157:AT157=1,$AP$4:$AT$4,\"\"))=\"\",\"ERROR\",_xlfn.TEXTJOIN(\"; \",TRUE,IF(AP157:AT157=1,$AP$4:$AT$4,\"\")))","v":"Output"},{"$f":"IF(_xlfn.TEXTJOIN(\"; \",TRUE,IF(J157:W157=1,$J$4:$W$4,\"\"))=\"\",\"-\",_xlfn.TEXTJOIN(\"; \",TRUE,IF(J157:W157=1,$J$4:$W$4,\"\")))","v":"-"},{"$f":"IF(_xlfn.TEXTJOIN(\"; \",TRUE,IF(X157:AF157=1,$X$4:$AF$4,\"\"))=\"\",\"-\",_xlfn.TEXTJOIN(\"; \",TRUE,IF(X157:AF157=1,$X$4:$AF$4,\"\")))","v":"Process/asset operation support"},{"$f":"IF(_xlfn.TEXTJOIN(\"; \",TRUE,IF(AG157:AO157=1,$AG$4:$AO$4,\"\"))=\"\",\"-\",_xlfn.TEXTJOIN(\"; \",TRUE,IF(AG157:AO157=1,$AG$4:$AO$4,\"\")))","v":"-"},"Number, Percentage",0,0,0,0,0,0,0,0,0,0,0,0,0,0,0,0,0,0,0,0,1,0,0,0,0,0,0,0,0,0,0,0,0,0,1,0,0]
[null,"TA154","Sufficient resources for certain process management step available","-",{"$f":"IF(_xlfn.TEXTJOIN(\"; \",TRUE,IF(AP158:AT158=1,$AP$4:$AT$4,\"\"))=\"\",\"ERROR\",_xlfn.TEXTJOIN(\"; \",TRUE,IF(AP158:AT158=1,$AP$4:$AT$4,\"\")))","v":"Output"},{"$f":"IF(_xlfn.TEXTJOIN(\"; \",TRUE,IF(J158:W158=1,$J$4:$W$4,\"\"))=\"\",\"-\",_xlfn.TEXTJOIN(\"; \",TRUE,IF(J158:W158=1,$J$4:$W$4,\"\")))","v":"-"},{"$f":"IF(_xlfn.TEXTJOIN(\"; \",TRUE,IF(X158:AF158=1,$X$4:$AF$4,\"\"))=\"\",\"-\",_xlfn.TEXTJOIN(\"; \",TRUE,IF(X158:AF158=1,$X$4:$AF$4,\"\")))","v":"Process/asset operation support"},{"$f":"IF(_xlfn.TEXTJOIN(\"; \",TRUE,IF(AG158:AO158=1,$AG$4:$AO$4,\"\"))=\"\",\"-\",_xlfn.TEXTJOIN(\"; \",TRUE,IF(AG158:AO158=1,$AG$4:$AO$4,\"\")))","v":"-"},"Narrative",0,0,0,0,0,0,0,0,0,0,0,0,0,0,0,0,0,0,0,0,1,0,0,0,0,0,0,0,0,0,0,0,0,0,1,0,0]
[null,"TA155","Proportion of stakeholders reporting improved process management or satisfaction","-",{"$f":"IF(_xlfn.TEXTJOIN(\"; \",TRUE,IF(AP159:AT159=1,$AP$4:$AT$4,\"\"))=\"\",\"ERROR\",_xlfn.TEXTJOIN(\"; \",TRUE,IF(AP159:AT159=1,$AP$4:$AT$4,\"\")))","v":"Output"},{"$f":"IF(_xlfn.TEXTJOIN(\"; \",TRUE,IF(J159:W159=1,$J$4:$W$4,\"\"))=\"\",\"-\",_xlfn.TEXTJOIN(\"; \",TRUE,IF(J159:W159=1,$J$4:$W$4,\"\")))","v":"-"},{"$f":"IF(_xlfn.TEXTJOIN(\"; \",TRUE,IF(X159:AF159=1,$X$4:$AF$4,\"\"))=\"\",\"-\",_xlfn.TEXTJOIN(\"; \",TRUE,IF(X159:AF159=1,$X$4:$AF$4,\"\")))","v":"Process/asset operation support"},{"$f":"IF(_xlfn.TEXTJOIN(\"; \",TRUE,IF(AG159:AO159=1,$AG$4:$AO$4,\"\"))=\"\",\"-\",_xlfn.TEXTJOIN(\"; \",TRUE,IF(AG159:AO159=1,$AG$4:$AO$4,\"\")))","v":"-"},"Percentage",0,0,0,0,0,0,0,0,0,0,0,0,0,0,0,0,0,0,0,0,1,0,0,0,0,0,0,0,0,0,0,0,0,0,1,0,0]
[null,"TA156","(Number of) System enhancements developed","-",{"$f":"IF(_xlfn.TEXTJOIN(\"; \",TRUE,IF(AP160:AT160=1,$AP$4:$AT$4,\"\"))=\"\",\"ERROR\",_xlfn.TEXTJOIN(\"; \",TRUE,IF(AP160:AT160=1,$AP$4:$AT$4,\"\")))","v":"Output"},{"$f":"IF(_xlfn.TEXTJOIN(\"; \",TRUE,IF(J160:W160=1,$J$4:$W$4,\"\"))=\"\",\"-\",_xlfn.TEXTJOIN(\"; \",TRUE,IF(J160:W160=1,$J$4:$W$4,\"\")))","v":"-"},{"$f":"IF(_xlfn.TEXTJOIN(\"; \",TRUE,IF(X160:AF160=1,$X$4:$AF$4,\"\"))=\"\",\"-\",_xlfn.TEXTJOIN(\"; \",TRUE,IF(X160:AF160=1,$X$4:$AF$4,\"\")))","v":"Process/asset operation support"},{"$f":"IF(_xlfn.TEXTJOIN(\"; \",TRUE,IF(AG160:AO160=1,$AG$4:$AO$4,\"\"))=\"\",\"-\",_xlfn.TEXTJOIN(\"; \",TRUE,IF(AG160:AO160=1,$AG$4:$AO$4,\"\")))","v":"-"},"Number, Percentage",0,0,0,0,0,0,0,0,0,0,0,0,0,0,0,0,0,0,0,0,1,0,0,0,0,0,0,0,0,0,0,0,0,0,1,0,0]
[null,"TA157","Extent of policy compliance","-",{"$f":"IF(_xlfn.TEXTJOIN(\"; \",TRUE,IF(AP161:AT161=1,$AP$4:$AT$4,\"\"))=\"\",\"ERROR\",_xlfn.TEXTJOIN(\"; \",TRUE,IF(AP161:AT161=1,$AP$4:$AT$4,\"\")))","v":"Output"},{"$f":"IF(_xlfn.TEXTJOIN(\"; \",TRUE,IF(J161:W161=1,$J$4:$W$4,\"\"))=\"\",\"-\",_xlfn.TEXTJOIN(\"; \",TRUE,IF(J161:W161=1,$J$4:$W$4,\"\")))","v":"-"},{"$f":"IF(_xlfn.TEXTJOIN(\"; \",TRUE,IF(X161:AF161=1,$X$4:$AF$4,\"\"))=\"\",\"-\",_xlfn.TEXTJOIN(\"; \",TRUE,IF(X161:AF161=1,$X$4:$AF$4,\"\")))","v":"Process/asset operation support"},{"$f":"IF(_xlfn.TEXTJOIN(\"; \",TRUE,IF(AG161:AO161=1,$AG$4:$AO$4,\"\"))=\"\",\"-\",_xlfn.TEXTJOIN(\"; \",TRUE,IF(AG161:AO161=1,$AG$4:$AO$4,\"\")))","v":"-"},"Narrative",0,0,0,0,0,0,0,0,0,0,0,0,0,0,0,0,0,0,0,0,1,0,0,0,0,0,0,0,0,0,0,0,0,0,1,0,0]
[null,"TA158","(Percentage of participants with the) Specified process management structures in place","-",{"$f":"IF(_xlfn.TEXTJOIN(\"; \",TRUE,IF(AP162:AT162=1,$AP$4:$AT$4,\"\"))=\"\",\"ERROR\",_xlfn.TEXTJOIN(\"; \",TRUE,IF(AP162:AT162=1,$AP$4:$AT$4,\"\")))","v":"Output"},{"$f":"IF(_xlfn.TEXTJOIN(\"; \",TRUE,IF(J162:W162=1,$J$4:$W$4,\"\"))=\"\",\"-\",_xlfn.TEXTJOIN(\"; \",TRUE,IF(J162:W162=1,$J$4:$W$4,\"\")))","v":"-"},{"$f":"IF(_xlfn.TEXTJOIN(\"; \",TRUE,IF(X162:AF162=1,$X$4:$AF$4,\"\"))=\"\",\"-\",_xlfn.TEXTJOIN(\"; \",TRUE,IF(X162:AF162=1,$X$4:$AF$4,\"\")))","v":"Process/asset operation support"},{"$f":"IF(_xlfn.TEXTJOIN(\"; \",TRUE,IF(AG162:AO162=1,$AG$4:$AO$4,\"\"))=\"\",\"-\",_xlfn.TEXTJOIN(\"; \",TRUE,IF(AG162:AO162=1,$AG$4:$AO$4,\"\")))","v":"-"},"Percentage",0,0,0,0,0,0,0,0,0,0,0,0,0,0,0,0,0,0,0,0,1,0,0,0,0,0,0,0,0,0,0,0,0,0,1,0,0]
[null,"TA159","Percentage reduction in audit arrears","-",{"$f":"IF(_xlfn.TEXTJOIN(\"; \",TRUE,IF(AP163:AT163=1,$AP$4:$AT$4,\"\"))=\"\",\"ERROR\",_xlfn.TEXTJOIN(\"; \",TRUE,IF(AP163:AT163=1,$AP$4:$AT$4,\"\")))","v":"Output"},{"$f":"IF(_xlfn.TEXTJOIN(\"; \",TRUE,IF(J163:W163=1,$J$4:$W$4,\"\"))=\"\",\"-\",_xlfn.TEXTJOIN(\"; \",TRUE,IF(J163:W163=1,$J$4:$W$4,\"\")))","v":"-"},{"$f":"IF(_xlfn.TEXTJOIN(\"; \",TRUE,IF(X163:AF163=1,$X$4:$AF$4,\"\"))=\"\",\"-\",_xlfn.TEXTJOIN(\"; \",TRUE,IF(X163:AF163=1,$X$4:$AF$4,\"\")))","v":"Process/asset operation support"},{"$f":"IF(_xlfn.TEXTJOIN(\"; \",TRUE,IF(AG163:AO163=1,$AG$4:$AO$4,\"\"))=\"\",\"-\",_xlfn.TEXTJOIN(\"; \",TRUE,IF(AG163:AO163=1,$AG$4:$AO$4,\"\")))","v":"-"},"Percentage",0,0,0,0,0,0,0,0,0,0,0,0,0,0,0,0,0,0,0,0,1,0,0,0,0,0,0,0,0,0,0,0,0,0,1,0,0]
[null,"TA160","How well a programme converts inputs into intended output (e.g. output unit costs)","-",{"$f":"IF(_xlfn.TEXTJOIN(\"; \",TRUE,IF(AP164:AT164=1,$AP$4:$AT$4,\"\"))=\"\",\"ERROR\",_xlfn.TEXTJOIN(\"; \",TRUE,IF(AP164:AT164=1,$AP$4:$AT$4,\"\")))","v":"Output"},{"$f":"IF(_xlfn.TEXTJOIN(\"; \",TRUE,IF(J164:W164=1,$J$4:$W$4,\"\"))=\"\",\"-\",_xlfn.TEXTJOIN(\"; \",TRUE,IF(J164:W164=1,$J$4:$W$4,\"\")))","v":"-"},{"$f":"IF(_xlfn.TEXTJOIN(\"; \",TRUE,IF(X164:AF164=1,$X$4:$AF$4,\"\"))=\"\",\"-\",_xlfn.TEXTJOIN(\"; \",TRUE,IF(X164:AF164=1,$X$4:$AF$4,\"\")))","v":"Process/asset operation support"},{"$f":"IF(_xlfn.TEXTJOIN(\"; \",TRUE,IF(AG164:AO164=1,$AG$4:$AO$4,\"\"))=\"\",\"-\",_xlfn.TEXTJOIN(\"; \",TRUE,IF(AG164:AO164=1,$AG$4:$AO$4,\"\")))","v":"-"},"Number",0,0,0,0,0,0,0,0,0,0,0,0,0,0,0,0,0,0,0,0,1,0,0,0,0,0,0,0,0,0,0,0,0,0,1,0,0]
[null,"TA161","Number of participants form better relationships with government","-",{"$f":"IF(_xlfn.TEXTJOIN(\"; \",TRUE,IF(AP165:AT165=1,$AP$4:$AT$4,\"\"))=\"\",\"ERROR\",_xlfn.TEXTJOIN(\"; \",TRUE,IF(AP165:AT165=1,$AP$4:$AT$4,\"\")))","v":"Output"},{"$f":"IF(_xlfn.TEXTJOIN(\"; \",TRUE,IF(J165:W165=1,$J$4:$W$4,\"\"))=\"\",\"-\",_xlfn.TEXTJOIN(\"; \",TRUE,IF(J165:W165=1,$J$4:$W$4,\"\")))","v":"-"},{"$f":"IF(_xlfn.TEXTJOIN(\"; \",TRUE,IF(X165:AF165=1,$X$4:$AF$4,\"\"))=\"\",\"-\",_xlfn.TEXTJOIN(\"; \",TRUE,IF(X165:AF165=1,$X$4:$AF$4,\"\")))","v":"Process/asset operation support"},{"$f":"IF(_xlfn.TEXTJOIN(\"; \",TRUE,IF(AG165:AO165=1,$AG$4:$AO$4,\"\"))=\"\",\"-\",_xlfn.TEXTJOIN(\"; \",TRUE,IF(AG165:AO165=1,$AG$4:$AO$4,\"\")))","v":"-"},"Number",0,0,0,0,0,0,0,0,0,0,0,0,0,0,0,0,0,0,0,0,1,0,0,0,0,0,0,0,0,0,0,0,0,0,1,0,0]
[null,"TA162","Average/increased capacity score","-",{"$f":"IF(_xlfn.TEXTJOIN(\"; \",TRUE,IF(AP166:AT166=1,$AP$4:$AT$4,\"\"))=\"\",\"ERROR\",_xlfn.TEXTJOIN(\"; \",TRUE,IF(AP166:AT166=1,$AP$4:$AT$4,\"\")))","v":"Output"},{"$f":"IF(_xlfn.TEXTJOIN(\"; \",TRUE,IF(J166:W166=1,$J$4:$W$4,\"\"))=\"\",\"-\",_xlfn.TEXTJOIN(\"; \",TRUE,IF(J166:W166=1,$J$4:$W$4,\"\")))","v":"-"},{"$f":"IF(_xlfn.TEXTJOIN(\"; \",TRUE,IF(X166:AF166=1,$X$4:$AF$4,\"\"))=\"\",\"-\",_xlfn.TEXTJOIN(\"; \",TRUE,IF(X166:AF166=1,$X$4:$AF$4,\"\")))","v":"Process/asset operation support"},{"$f":"IF(_xlfn.TEXTJOIN(\"; \",TRUE,IF(AG166:AO166=1,$AG$4:$AO$4,\"\"))=\"\",\"-\",_xlfn.TEXTJOIN(\"; \",TRUE,IF(AG166:AO166=1,$AG$4:$AO$4,\"\")))","v":"-"},"Score",0,0,0,0,0,0,0,0,0,0,0,0,0,0,0,0,0,0,0,0,1,0,0,0,0,0,0,0,0,0,0,0,0,0,1,0,0]
[null,"TA163","Number of companies bidding for project","-",{"$f":"IF(_xlfn.TEXTJOIN(\"; \",TRUE,IF(AP167:AT167=1,$AP$4:$AT$4,\"\"))=\"\",\"ERROR\",_xlfn.TEXTJOIN(\"; \",TRUE,IF(AP167:AT167=1,$AP$4:$AT$4,\"\")))","v":"Output"},{"$f":"IF(_xlfn.TEXTJOIN(\"; \",TRUE,IF(J167:W167=1,$J$4:$W$4,\"\"))=\"\",\"-\",_xlfn.TEXTJOIN(\"; \",TRUE,IF(J167:W167=1,$J$4:$W$4,\"\")))","v":"-"},{"$f":"IF(_xlfn.TEXTJOIN(\"; \",TRUE,IF(X167:AF167=1,$X$4:$AF$4,\"\"))=\"\",\"-\",_xlfn.TEXTJOIN(\"; \",TRUE,IF(X167:AF167=1,$X$4:$AF$4,\"\")))","v":"Financing support"},{"$f":"IF(_xlfn.TEXTJOIN(\"; \",TRUE,IF(AG167:AO167=1,$AG$4:$AO$4,\"\"))=\"\",\"-\",_xlfn.TEXTJOIN(\"; \",TRUE,IF(AG167:AO167=1,$AG$4:$AO$4,\"\")))","v":"-"},"Number",0,0,0,0,0,0,0,0,0,0,0,0,0,0,0,0,0,0,0,0,0,1,0,0,0,0,0,0,0,0,0,0,0,0,1,0,0]
[null,"TA164","Number of projects supported","-",{"$f":"IF(_xlfn.TEXTJOIN(\"; \",TRUE,IF(AP168:AT168=1,$AP$4:$AT$4,\"\"))=\"\",\"ERROR\",_xlfn.TEXTJOIN(\"; \",TRUE,IF(AP168:AT168=1,$AP$4:$AT$4,\"\")))","v":"Activity"},{"$f":"IF(_xlfn.TEXTJOIN(\"; \",TRUE,IF(J168:W168=1,$J$4:$W$4,\"\"))=\"\",\"-\",_xlfn.TEXTJOIN(\"; \",TRUE,IF(J168:W168=1,$J$4:$W$4,\"\")))","v":"Specialist research, inc. market / policy / legal / regulatory / technology research briefs; Strategic organisational guidance"},{"$f":"IF(_xlfn.TEXTJOIN(\"; \",TRUE,IF(X168:AF168=1,$X$4:$AF$4,\"\"))=\"\",\"-\",_xlfn.TEXTJOIN(\"; \",TRUE,IF(X168:AF168=1,$X$4:$AF$4,\"\")))","v":"-"},{"$f":"IF(_xlfn.TEXTJOIN(\"; \",TRUE,IF(AG168:AO168=1,$AG$4:$AO$4,\"\"))=\"\",\"-\",_xlfn.TEXTJOIN(\"; \",TRUE,IF(AG168:AO168=1,$AG$4:$AO$4,\"\")))","v":"-"},"Number",0,0,0,0,1,1,0,0,0,0,0,0,0,0,0,0,0,0,0,0,0,0,0,0,0,0,0,0,0,0,0,0,1,0,0,0,0]
[null,"TA165","(Number of) Finance mechanisms pass through certain stage that requires approval","-",{"$f":"IF(_xlfn.TEXTJOIN(\"; \",TRUE,IF(AP169:AT169=1,$AP$4:$AT$4,\"\"))=\"\",\"ERROR\",_xlfn.TEXTJOIN(\"; \",TRUE,IF(AP169:AT169=1,$AP$4:$AT$4,\"\")))","v":"Output"},{"$f":"IF(_xlfn.TEXTJOIN(\"; \",TRUE,IF(J169:W169=1,$J$4:$W$4,\"\"))=\"\",\"-\",_xlfn.TEXTJOIN(\"; \",TRUE,IF(J169:W169=1,$J$4:$W$4,\"\")))","v":"-"},{"$f":"IF(_xlfn.TEXTJOIN(\"; \",TRUE,IF(X169:AF169=1,$X$4:$AF$4,\"\"))=\"\",\"-\",_xlfn.TEXTJOIN(\"; \",TRUE,IF(X169:AF169=1,$X$4:$AF$4,\"\")))","v":"Financing support"},{"$f":"IF(_xlfn.TEXTJOIN(\"; \",TRUE,IF(AG169:AO169=1,$AG$4:$AO$4,\"\"))=\"\",\"-\",_xlfn.TEXTJOIN(\"; \",TRUE,IF(AG169:AO169=1,$AG$4:$AO$4,\"\")))","v":"-"},"Number",0,0,0,0,0,0,0,0,0,0,0,0,0,0,0,0,0,0,0,0,0,1,0,0,0,0,0,0,0,0,0,0,0,0,1,0,0]
[null,"TA166","Number of sanctions against insufficient finance procedures","-",{"$f":"IF(_xlfn.TEXTJOIN(\"; \",TRUE,IF(AP170:AT170=1,$AP$4:$AT$4,\"\"))=\"\",\"ERROR\",_xlfn.TEXTJOIN(\"; \",TRUE,IF(AP170:AT170=1,$AP$4:$AT$4,\"\")))","v":"Output"},{"$f":"IF(_xlfn.TEXTJOIN(\"; \",TRUE,IF(J170:W170=1,$J$4:$W$4,\"\"))=\"\",\"-\",_xlfn.TEXTJOIN(\"; \",TRUE,IF(J170:W170=1,$J$4:$W$4,\"\")))","v":"-"},{"$f":"IF(_xlfn.TEXTJOIN(\"; \",TRUE,IF(X170:AF170=1,$X$4:$AF$4,\"\"))=\"\",\"-\",_xlfn.TEXTJOIN(\"; \",TRUE,IF(X170:AF170=1,$X$4:$AF$4,\"\")))","v":"Financing support"},{"$f":"IF(_xlfn.TEXTJOIN(\"; \",TRUE,IF(AG170:AO170=1,$AG$4:$AO$4,\"\"))=\"\",\"-\",_xlfn.TEXTJOIN(\"; \",TRUE,IF(AG170:AO170=1,$AG$4:$AO$4,\"\")))","v":"-"},"Number",0,0,0,0,0,0,0,0,0,0,0,0,0,0,0,0,0,0,0,0,0,1,0,0,0,0,0,0,0,0,0,0,0,0,1,0,0]
[null,"TA167","Reporting/documentation delivered (on time and following the agreed standards)","-",{"$f":"IF(_xlfn.TEXTJOIN(\"; \",TRUE,IF(AP171:AT171=1,$AP$4:$AT$4,\"\"))=\"\",\"ERROR\",_xlfn.TEXTJOIN(\"; \",TRUE,IF(AP171:AT171=1,$AP$4:$AT$4,\"\")))","v":"Output"},{"$f":"IF(_xlfn.TEXTJOIN(\"; \",TRUE,IF(J171:W171=1,$J$4:$W$4,\"\"))=\"\",\"-\",_xlfn.TEXTJOIN(\"; \",TRUE,IF(J171:W171=1,$J$4:$W$4,\"\")))","v":"-"},{"$f":"IF(_xlfn.TEXTJOIN(\"; \",TRUE,IF(X171:AF171=1,$X$4:$AF$4,\"\"))=\"\",\"-\",_xlfn.TEXTJOIN(\"; \",TRUE,IF(X171:AF171=1,$X$4:$AF$4,\"\")))","v":"Financing support"},{"$f":"IF(_xlfn.TEXTJOIN(\"; \",TRUE,IF(AG171:AO171=1,$AG$4:$AO$4,\"\"))=\"\",\"-\",_xlfn.TEXTJOIN(\"; \",TRUE,IF(AG171:AO171=1,$AG$4:$AO$4,\"\")))","v":"-"},"Yes/No",0,0,0,0,0,0,0,0,0,0,0,0,0,0,0,0,0,0,0,0,0,1,0,0,0,0,0,0,0,0,0,0,0,0,1,0,0]
[null,"TA168","Finance support reaches certain maturity","-",{"$f":"IF(_xlfn.TEXTJOIN(\"; \",TRUE,IF(AP172:AT172=1,$AP$4:$AT$4,\"\"))=\"\",\"ERROR\",_xlfn.TEXTJOIN(\"; \",TRUE,IF(AP172:AT172=1,$AP$4:$AT$4,\"\")))","v":"Output"},{"$f":"IF(_xlfn.TEXTJOIN(\"; \",TRUE,IF(J172:W172=1,$J$4:$W$4,\"\"))=\"\",\"-\",_xlfn.TEXTJOIN(\"; \",TRUE,IF(J172:W172=1,$J$4:$W$4,\"\")))","v":"-"},{"$f":"IF(_xlfn.TEXTJOIN(\"; \",TRUE,IF(X172:AF172=1,$X$4:$AF$4,\"\"))=\"\",\"-\",_xlfn.TEXTJOIN(\"; \",TRUE,IF(X172:AF172=1,$X$4:$AF$4,\"\")))","v":"Financing support"},{"$f":"IF(_xlfn.TEXTJOIN(\"; \",TRUE,IF(AG172:AO172=1,$AG$4:$AO$4,\"\"))=\"\",\"-\",_xlfn.TEXTJOIN(\"; \",TRUE,IF(AG172:AO172=1,$AG$4:$AO$4,\"\")))","v":"-"},"Yes/No",0,0,0,0,0,0,0,0,0,0,0,0,0,0,0,0,0,0,0,0,0,1,0,0,0,0,0,0,0,0,0,0,0,0,1,0,0]
[null,"TA169","Increased efficiency of internal fund measured as programme funds disbursed as percentage of total portfolio","-",{"$f":"IF(_xlfn.TEXTJOIN(\"; \",TRUE,IF(AP173:AT173=1,$AP$4:$AT$4,\"\"))=\"\",\"ERROR\",_xlfn.TEXTJOIN(\"; \",TRUE,IF(AP173:AT173=1,$AP$4:$AT$4,\"\")))","v":"Output"},{"$f":"IF(_xlfn.TEXTJOIN(\"; \",TRUE,IF(J173:W173=1,$J$4:$W$4,\"\"))=\"\",\"-\",_xlfn.TEXTJOIN(\"; \",TRUE,IF(J173:W173=1,$J$4:$W$4,\"\")))","v":"-"},{"$f":"IF(_xlfn.TEXTJOIN(\"; \",TRUE,IF(X173:AF173=1,$X$4:$AF$4,\"\"))=\"\",\"-\",_xlfn.TEXTJOIN(\"; \",TRUE,IF(X173:AF173=1,$X$4:$AF$4,\"\")))","v":"Financing support"},{"$f":"IF(_xlfn.TEXTJOIN(\"; \",TRUE,IF(AG173:AO173=1,$AG$4:$AO$4,\"\"))=\"\",\"-\",_xlfn.TEXTJOIN(\"; \",TRUE,IF(AG173:AO173=1,$AG$4:$AO$4,\"\")))","v":"-"},"Percentage",0,0,0,0,0,0,0,0,0,0,0,0,0,0,0,0,0,0,0,0,0,1,0,0,0,0,0,0,0,0,0,0,0,0,1,0,0]
[null,"TA170","Knowledge products created","-",{"$f":"IF(_xlfn.TEXTJOIN(\"; \",TRUE,IF(AP174:AT174=1,$AP$4:$AT$4,\"\"))=\"\",\"ERROR\",_xlfn.TEXTJOIN(\"; \",TRUE,IF(AP174:AT174=1,$AP$4:$AT$4,\"\")))","v":"Output"},{"$f":"IF(_xlfn.TEXTJOIN(\"; \",TRUE,IF(J174:W174=1,$J$4:$W$4,\"\"))=\"\",\"-\",_xlfn.TEXTJOIN(\"; \",TRUE,IF(J174:W174=1,$J$4:$W$4,\"\")))","v":"-"},{"$f":"IF(_xlfn.TEXTJOIN(\"; \",TRUE,IF(X174:AF174=1,$X$4:$AF$4,\"\"))=\"\",\"-\",_xlfn.TEXTJOIN(\"; \",TRUE,IF(X174:AF174=1,$X$4:$AF$4,\"\")))","v":"Financing support"},{"$f":"IF(_xlfn.TEXTJOIN(\"; \",TRUE,IF(AG174:AO174=1,$AG$4:$AO$4,\"\"))=\"\",\"-\",_xlfn.TEXTJOIN(\"; \",TRUE,IF(AG174:AO174=1,$AG$4:$AO$4,\"\")))","v":"-"},"Yes/No",0,0,0,0,0,0,0,0,0,0,0,0,0,0,0,0,0,0,0,0,0,1,0,0,0,0,0,0,0,0,0,0,0,0,1,0,0]
[null,"TA171","Ratio of mobilised versus provided funding (leverage ratio)","-",{"$f":"IF(_xlfn.TEXTJOIN(\"; \",TRUE,IF(AP175:AT175=1,$AP$4:$AT$4,\"\"))=\"\",\"ERROR\",_xlfn.TEXTJOIN(\"; \",TRUE,IF(AP175:AT175=1,$AP$4:$AT$4,\"\")))","v":"Outcome"},{"$f":"IF(_xlfn.TEXTJOIN(\"; \",TRUE,IF(J175:W175=1,$J$4:$W$4,\"\"))=\"\",\"-\",_xlfn.TEXTJOIN(\"; \",TRUE,IF(J175:W175=1,$J$4:$W$4,\"\")))","v":"-"},{"$f":"IF(_xlfn.TEXTJOIN(\"; \",TRUE,IF(X175:AF175=1,$X$4:$AF$4,\"\"))=\"\",\"-\",_xlfn.TEXTJOIN(\"; \",TRUE,IF(X175:AF175=1,$X$4:$AF$4,\"\")))","v":"-"},{"$f":"IF(_xlfn.TEXTJOIN(\"; \",TRUE,IF(AG175:AO175=1,$AG$4:$AO$4,\"\"))=\"\",\"-\",_xlfn.TEXTJOIN(\"; \",TRUE,IF(AG175:AO175=1,$AG$4:$AO$4,\"\")))","v":"Increased or improved allocation of domestic climate finance; Increased or improved access to international climate finance"},"Number",0,0,0,0,0,0,0,0,0,0,0,0,0,0,0,0,0,0,0,0,0,0,0,0,0,0,0,0,0,0,1,1,0,0,0,1,0]
[null,"TA172","Volume of operational expenditures for finance support","-",{"$f":"IF(_xlfn.TEXTJOIN(\"; \",TRUE,IF(AP176:AT176=1,$AP$4:$AT$4,\"\"))=\"\",\"ERROR\",_xlfn.TEXTJOIN(\"; \",TRUE,IF(AP176:AT176=1,$AP$4:$AT$4,\"\")))","v":"Outcome"},{"$f":"IF(_xlfn.TEXTJOIN(\"; \",TRUE,IF(J176:W176=1,$J$4:$W$4,\"\"))=\"\",\"-\",_xlfn.TEXTJOIN(\"; \",TRUE,IF(J176:W176=1,$J$4:$W$4,\"\")))","v":"-"},{"$f":"IF(_xlfn.TEXTJOIN(\"; \",TRUE,IF(X176:AF176=1,$X$4:$AF$4,\"\"))=\"\",\"-\",_xlfn.TEXTJOIN(\"; \",TRUE,IF(X176:AF176=1,$X$4:$AF$4,\"\")))","v":"-"},{"$f":"IF(_xlfn.TEXTJOIN(\"; \",TRUE,IF(AG176:AO176=1,$AG$4:$AO$4,\"\"))=\"\",\"-\",_xlfn.TEXTJOIN(\"; \",TRUE,IF(AG176:AO176=1,$AG$4:$AO$4,\"\")))","v":"Increased or improved allocation of domestic climate finance; Increased or improved access to international climate finance"},"Number",0,0,0,0,0,0,0,0,0,0,0,0,0,0,0,0,0,0,0,0,0,0,0,0,0,0,0,0,0,0,1,1,0,0,0,1,0]
[null,"TA173","Number of trust funds providing financial support","-",{"$f":"IF(_xlfn.TEXTJOIN(\"; \",TRUE,IF(AP177:AT177=1,$AP$4:$AT$4,\"\"))=\"\",\"ERROR\",_xlfn.TEXTJOIN(\"; \",TRUE,IF(AP177:AT177=1,$AP$4:$AT$4,\"\")))","v":"Output"},{"$f":"IF(_xlfn.TEXTJOIN(\"; \",TRUE,IF(J177:W177=1,$J$4:$W$4,\"\"))=\"\",\"-\",_xlfn.TEXTJOIN(\"; \",TRUE,IF(J177:W177=1,$J$4:$W$4,\"\")))","v":"-"},{"$f":"IF(_xlfn.TEXTJOIN(\"; \",TRUE,IF(X177:AF177=1,$X$4:$AF$4,\"\"))=\"\",\"-\",_xlfn.TEXTJOIN(\"; \",TRUE,IF(X177:AF177=1,$X$4:$AF$4,\"\")))","v":"Financing support"},{"$f":"IF(_xlfn.TEXTJOIN(\"; \",TRUE,IF(AG177:AO177=1,$AG$4:$AO$4,\"\"))=\"\",\"-\",_xlfn.TEXTJOIN(\"; \",TRUE,IF(AG177:AO177=1,$AG$4:$AO$4,\"\")))","v":"-"},"Number",0,0,0,0,0,0,0,0,0,0,0,0,0,0,0,0,0,0,0,0,0,1,0,0,0,0,0,0,0,0,0,0,0,0,1,0,0]
[null,"TA174","Stakeholders informed about programme","-",{"$f":"IF(_xlfn.TEXTJOIN(\"; \",TRUE,IF(AP178:AT178=1,$AP$4:$AT$4,\"\"))=\"\",\"ERROR\",_xlfn.TEXTJOIN(\"; \",TRUE,IF(AP178:AT178=1,$AP$4:$AT$4,\"\")))","v":"Uptake"},{"$f":"IF(_xlfn.TEXTJOIN(\"; \",TRUE,IF(J178:W178=1,$J$4:$W$4,\"\"))=\"\",\"-\",_xlfn.TEXTJOIN(\"; \",TRUE,IF(J178:W178=1,$J$4:$W$4,\"\")))","v":"Strategic organisational guidance"},{"$f":"IF(_xlfn.TEXTJOIN(\"; \",TRUE,IF(X178:AF178=1,$X$4:$AF$4,\"\"))=\"\",\"-\",_xlfn.TEXTJOIN(\"; \",TRUE,IF(X178:AF178=1,$X$4:$AF$4,\"\")))","v":"-"},{"$f":"IF(_xlfn.TEXTJOIN(\"; \",TRUE,IF(AG178:AO178=1,$AG$4:$AO$4,\"\"))=\"\",\"-\",_xlfn.TEXTJOIN(\"; \",TRUE,IF(AG178:AO178=1,$AG$4:$AO$4,\"\")))","v":"-"},"Yes/No",0,0,0,0,0,1,0,0,0,0,0,0,0,0,0,0,0,0,0,0,0,0,0,0,0,0,0,0,0,0,0,0,0,1,0,0,0]
[null,"TA175","Number of cases where programme has contributed to value chain or business environment","-",{"$f":"IF(_xlfn.TEXTJOIN(\"; \",TRUE,IF(AP179:AT179=1,$AP$4:$AT$4,\"\"))=\"\",\"ERROR\",_xlfn.TEXTJOIN(\"; \",TRUE,IF(AP179:AT179=1,$AP$4:$AT$4,\"\")))","v":"Output"},{"$f":"IF(_xlfn.TEXTJOIN(\"; \",TRUE,IF(J179:W179=1,$J$4:$W$4,\"\"))=\"\",\"-\",_xlfn.TEXTJOIN(\"; \",TRUE,IF(J179:W179=1,$J$4:$W$4,\"\")))","v":"-"},{"$f":"IF(_xlfn.TEXTJOIN(\"; \",TRUE,IF(X179:AF179=1,$X$4:$AF$4,\"\"))=\"\",\"-\",_xlfn.TEXTJOIN(\"; \",TRUE,IF(X179:AF179=1,$X$4:$AF$4,\"\")))","v":"Public-private co-ordination support"},{"$f":"IF(_xlfn.TEXTJOIN(\"; \",TRUE,IF(AG179:AO179=1,$AG$4:$AO$4,\"\"))=\"\",\"-\",_xlfn.TEXTJOIN(\"; \",TRUE,IF(AG179:AO179=1,$AG$4:$AO$4,\"\")))","v":"-"},"Narrative",0,0,0,0,0,0,0,0,0,0,0,0,0,0,0,0,0,0,0,0,0,0,1,0,0,0,0,0,0,0,0,0,0,0,1,0,0]
[null,"TA176","(Number of) Public-private cooperation reaches certain maturity","-",{"$f":"IF(_xlfn.TEXTJOIN(\"; \",TRUE,IF(AP180:AT180=1,$AP$4:$AT$4,\"\"))=\"\",\"ERROR\",_xlfn.TEXTJOIN(\"; \",TRUE,IF(AP180:AT180=1,$AP$4:$AT$4,\"\")))","v":"Output"},{"$f":"IF(_xlfn.TEXTJOIN(\"; \",TRUE,IF(J180:W180=1,$J$4:$W$4,\"\"))=\"\",\"-\",_xlfn.TEXTJOIN(\"; \",TRUE,IF(J180:W180=1,$J$4:$W$4,\"\")))","v":"-"},{"$f":"IF(_xlfn.TEXTJOIN(\"; \",TRUE,IF(X180:AF180=1,$X$4:$AF$4,\"\"))=\"\",\"-\",_xlfn.TEXTJOIN(\"; \",TRUE,IF(X180:AF180=1,$X$4:$AF$4,\"\")))","v":"Public-private co-ordination support"},{"$f":"IF(_xlfn.TEXTJOIN(\"; \",TRUE,IF(AG180:AO180=1,$AG$4:$AO$4,\"\"))=\"\",\"-\",_xlfn.TEXTJOIN(\"; \",TRUE,IF(AG180:AO180=1,$AG$4:$AO$4,\"\")))","v":"-"},"Number",0,0,0,0,0,0,0,0,0,0,0,0,0,0,0,0,0,0,0,0,0,0,1,0,0,0,0,0,0,0,0,0,0,0,1,0,0]
[null,"TA177","(Number of) Public-private cooperation reaches certain maturity due to programme support","-",{"$f":"IF(_xlfn.TEXTJOIN(\"; \",TRUE,IF(AP181:AT181=1,$AP$4:$AT$4,\"\"))=\"\",\"ERROR\",_xlfn.TEXTJOIN(\"; \",TRUE,IF(AP181:AT181=1,$AP$4:$AT$4,\"\")))","v":"Output"},{"$f":"IF(_xlfn.TEXTJOIN(\"; \",TRUE,IF(J181:W181=1,$J$4:$W$4,\"\"))=\"\",\"-\",_xlfn.TEXTJOIN(\"; \",TRUE,IF(J181:W181=1,$J$4:$W$4,\"\")))","v":"-"},{"$f":"IF(_xlfn.TEXTJOIN(\"; \",TRUE,IF(X181:AF181=1,$X$4:$AF$4,\"\"))=\"\",\"-\",_xlfn.TEXTJOIN(\"; \",TRUE,IF(X181:AF181=1,$X$4:$AF$4,\"\")))","v":"Public-private co-ordination support"},{"$f":"IF(_xlfn.TEXTJOIN(\"; \",TRUE,IF(AG181:AO181=1,$AG$4:$AO$4,\"\"))=\"\",\"-\",_xlfn.TEXTJOIN(\"; \",TRUE,IF(AG181:AO181=1,$AG$4:$AO$4,\"\")))","v":"-"},"Number",0,0,0,0,0,0,0,0,0,0,0,0,0,0,0,0,0,0,0,0,0,0,1,0,0,0,0,0,0,0,0,0,0,0,1,0,0]
[null,"TA178","(Number of) Public-private cooperation passes through certain maturity due to programme support","-",{"$f":"IF(_xlfn.TEXTJOIN(\"; \",TRUE,IF(AP182:AT182=1,$AP$4:$AT$4,\"\"))=\"\",\"ERROR\",_xlfn.TEXTJOIN(\"; \",TRUE,IF(AP182:AT182=1,$AP$4:$AT$4,\"\")))","v":"Output"},{"$f":"IF(_xlfn.TEXTJOIN(\"; \",TRUE,IF(J182:W182=1,$J$4:$W$4,\"\"))=\"\",\"-\",_xlfn.TEXTJOIN(\"; \",TRUE,IF(J182:W182=1,$J$4:$W$4,\"\")))","v":"-"},{"$f":"IF(_xlfn.TEXTJOIN(\"; \",TRUE,IF(X182:AF182=1,$X$4:$AF$4,\"\"))=\"\",\"-\",_xlfn.TEXTJOIN(\"; \",TRUE,IF(X182:AF182=1,$X$4:$AF$4,\"\")))","v":"Public-private co-ordination support"},{"$f":"IF(_xlfn.TEXTJOIN(\"; \",TRUE,IF(AG182:AO182=1,$AG$4:$AO$4,\"\"))=\"\",\"-\",_xlfn.TEXTJOIN(\"; \",TRUE,IF(AG182:AO182=1,$AG$4:$AO$4,\"\")))","v":"-"},"Number",0,0,0,0,0,0,0,0,0,0,0,0,0,0,0,0,0,0,0,0,0,0,1,0,0,0,0,0,0,0,0,0,0,0,1,0,0]
[null,"TA179","Number of market participants that received support","-",{"$f":"IF(_xlfn.TEXTJOIN(\"; \",TRUE,IF(AP183:AT183=1,$AP$4:$AT$4,\"\"))=\"\",\"ERROR\",_xlfn.TEXTJOIN(\"; \",TRUE,IF(AP183:AT183=1,$AP$4:$AT$4,\"\")))","v":"Uptake"},{"$f":"IF(_xlfn.TEXTJOIN(\"; \",TRUE,IF(J183:W183=1,$J$4:$W$4,\"\"))=\"\",\"-\",_xlfn.TEXTJOIN(\"; \",TRUE,IF(J183:W183=1,$J$4:$W$4,\"\")))","v":"Strategic organisational guidance"},{"$f":"IF(_xlfn.TEXTJOIN(\"; \",TRUE,IF(X183:AF183=1,$X$4:$AF$4,\"\"))=\"\",\"-\",_xlfn.TEXTJOIN(\"; \",TRUE,IF(X183:AF183=1,$X$4:$AF$4,\"\")))","v":"-"},{"$f":"IF(_xlfn.TEXTJOIN(\"; \",TRUE,IF(AG183:AO183=1,$AG$4:$AO$4,\"\"))=\"\",\"-\",_xlfn.TEXTJOIN(\"; \",TRUE,IF(AG183:AO183=1,$AG$4:$AO$4,\"\")))","v":"-"},"Number",0,0,0,0,0,1,0,0,0,0,0,0,0,0,0,0,0,0,0,0,0,0,0,0,0,0,0,0,0,0,0,0,0,1,0,0,0]
[null,"TA180","Number of co-production processes supported","-",{"$f":"IF(_xlfn.TEXTJOIN(\"; \",TRUE,IF(AP184:AT184=1,$AP$4:$AT$4,\"\"))=\"\",\"ERROR\",_xlfn.TEXTJOIN(\"; \",TRUE,IF(AP184:AT184=1,$AP$4:$AT$4,\"\")))","v":"Output"},{"$f":"IF(_xlfn.TEXTJOIN(\"; \",TRUE,IF(J184:W184=1,$J$4:$W$4,\"\"))=\"\",\"-\",_xlfn.TEXTJOIN(\"; \",TRUE,IF(J184:W184=1,$J$4:$W$4,\"\")))","v":"-"},{"$f":"IF(_xlfn.TEXTJOIN(\"; \",TRUE,IF(X184:AF184=1,$X$4:$AF$4,\"\"))=\"\",\"-\",_xlfn.TEXTJOIN(\"; \",TRUE,IF(X184:AF184=1,$X$4:$AF$4,\"\")))","v":"Public-private co-ordination support"},{"$f":"IF(_xlfn.TEXTJOIN(\"; \",TRUE,IF(AG184:AO184=1,$AG$4:$AO$4,\"\"))=\"\",\"-\",_xlfn.TEXTJOIN(\"; \",TRUE,IF(AG184:AO184=1,$AG$4:$AO$4,\"\")))","v":"-"},"Number",0,0,0,0,0,0,0,0,0,0,0,0,0,0,0,0,0,0,0,0,0,0,1,0,0,0,0,0,0,0,0,0,0,0,1,0,0]
[null,"TA181","Level of integration of climate change in policymaking as result of programme","-",{"$f":"IF(_xlfn.TEXTJOIN(\"; \",TRUE,IF(AP185:AT185=1,$AP$4:$AT$4,\"\"))=\"\",\"ERROR\",_xlfn.TEXTJOIN(\"; \",TRUE,IF(AP185:AT185=1,$AP$4:$AT$4,\"\")))","v":"Outcome"},{"$f":"IF(_xlfn.TEXTJOIN(\"; \",TRUE,IF(J185:W185=1,$J$4:$W$4,\"\"))=\"\",\"-\",_xlfn.TEXTJOIN(\"; \",TRUE,IF(J185:W185=1,$J$4:$W$4,\"\")))","v":"-"},{"$f":"IF(_xlfn.TEXTJOIN(\"; \",TRUE,IF(X185:AF185=1,$X$4:$AF$4,\"\"))=\"\",\"-\",_xlfn.TEXTJOIN(\"; \",TRUE,IF(X185:AF185=1,$X$4:$AF$4,\"\")))","v":"-"},{"$f":"IF(_xlfn.TEXTJOIN(\"; \",TRUE,IF(AG185:AO185=1,$AG$4:$AO$4,\"\"))=\"\",\"-\",_xlfn.TEXTJOIN(\"; \",TRUE,IF(AG185:AO185=1,$AG$4:$AO$4,\"\")))","v":"Increased or improved policy development or execution; Improved domestic co-ordination"},"Narrative",0,0,0,0,0,0,0,0,0,0,0,0,0,0,0,0,0,0,0,0,0,0,0,1,0,1,0,0,0,0,0,0,0,0,0,1,0]
[null,"TA182","Percentage/number of countries where programme has encouraged movement or policies towards end goal","-",{"$f":"IF(_xlfn.TEXTJOIN(\"; \",TRUE,IF(AP186:AT186=1,$AP$4:$AT$4,\"\"))=\"\",\"ERROR\",_xlfn.TEXTJOIN(\"; \",TRUE,IF(AP186:AT186=1,$AP$4:$AT$4,\"\")))","v":"Outcome"},{"$f":"IF(_xlfn.TEXTJOIN(\"; \",TRUE,IF(J186:W186=1,$J$4:$W$4,\"\"))=\"\",\"-\",_xlfn.TEXTJOIN(\"; \",TRUE,IF(J186:W186=1,$J$4:$W$4,\"\")))","v":"-"},{"$f":"IF(_xlfn.TEXTJOIN(\"; \",TRUE,IF(X186:AF186=1,$X$4:$AF$4,\"\"))=\"\",\"-\",_xlfn.TEXTJOIN(\"; \",TRUE,IF(X186:AF186=1,$X$4:$AF$4,\"\")))","v":"-"},{"$f":"IF(_xlfn.TEXTJOIN(\"; \",TRUE,IF(AG186:AO186=1,$AG$4:$AO$4,\"\"))=\"\",\"-\",_xlfn.TEXTJOIN(\"; \",TRUE,IF(AG186:AO186=1,$AG$4:$AO$4,\"\")))","v":"Increased or improved policy development or execution"},"Number, Percentage",0,0,0,0,0,0,0,0,0,0,0,0,0,0,0,0,0,0,0,0,0,0,0,1,0,0,0,0,0,0,0,0,0,0,0,1,0]
[null,"TA183","Number of programme countries that raise their ambition partly due to the programme","-",{"$f":"IF(_xlfn.TEXTJOIN(\"; \",TRUE,IF(AP187:AT187=1,$AP$4:$AT$4,\"\"))=\"\",\"ERROR\",_xlfn.TEXTJOIN(\"; \",TRUE,IF(AP187:AT187=1,$AP$4:$AT$4,\"\")))","v":"Outcome"},{"$f":"IF(_xlfn.TEXTJOIN(\"; \",TRUE,IF(J187:W187=1,$J$4:$W$4,\"\"))=\"\",\"-\",_xlfn.TEXTJOIN(\"; \",TRUE,IF(J187:W187=1,$J$4:$W$4,\"\")))","v":"-"},{"$f":"IF(_xlfn.TEXTJOIN(\"; \",TRUE,IF(X187:AF187=1,$X$4:$AF$4,\"\"))=\"\",\"-\",_xlfn.TEXTJOIN(\"; \",TRUE,IF(X187:AF187=1,$X$4:$AF$4,\"\")))","v":"-"},{"$f":"IF(_xlfn.TEXTJOIN(\"; \",TRUE,IF(AG187:AO187=1,$AG$4:$AO$4,\"\"))=\"\",\"-\",_xlfn.TEXTJOIN(\"; \",TRUE,IF(AG187:AO187=1,$AG$4:$AO$4,\"\")))","v":"Increased or improved policy development or execution"},"Number",0,0,0,0,0,0,0,0,0,0,0,0,0,0,0,0,0,0,0,0,0,0,0,1,0,0,0,0,0,0,0,0,0,0,0,1,0]
[null,"TA184","Number of non-programme countries use programme outputs for policy design","-",{"$f":"IF(_xlfn.TEXTJOIN(\"; \",TRUE,IF(AP188:AT188=1,$AP$4:$AT$4,\"\"))=\"\",\"ERROR\",_xlfn.TEXTJOIN(\"; \",TRUE,IF(AP188:AT188=1,$AP$4:$AT$4,\"\")))","v":"Uptake"},{"$f":"IF(_xlfn.TEXTJOIN(\"; \",TRUE,IF(J188:W188=1,$J$4:$W$4,\"\"))=\"\",\"-\",_xlfn.TEXTJOIN(\"; \",TRUE,IF(J188:W188=1,$J$4:$W$4,\"\")))","v":"Specialist research, inc. market / policy / legal / regulatory / technology research briefs; Data, software, tools and models"},{"$f":"IF(_xlfn.TEXTJOIN(\"; \",TRUE,IF(X188:AF188=1,$X$4:$AF$4,\"\"))=\"\",\"-\",_xlfn.TEXTJOIN(\"; \",TRUE,IF(X188:AF188=1,$X$4:$AF$4,\"\")))","v":"-"},{"$f":"IF(_xlfn.TEXTJOIN(\"; \",TRUE,IF(AG188:AO188=1,$AG$4:$AO$4,\"\"))=\"\",\"-\",_xlfn.TEXTJOIN(\"; \",TRUE,IF(AG188:AO188=1,$AG$4:$AO$4,\"\")))","v":"-"},"Number",0,0,0,0,1,0,0,0,0,0,0,0,1,0,0,0,0,0,0,0,0,0,0,0,0,0,0,0,0,0,0,0,0,1,0,0,0]
[null,"TA185","Number/percentage of people in the target group benefiting from the programme","-",{"$f":"IF(_xlfn.TEXTJOIN(\"; \",TRUE,IF(AP189:AT189=1,$AP$4:$AT$4,\"\"))=\"\",\"ERROR\",_xlfn.TEXTJOIN(\"; \",TRUE,IF(AP189:AT189=1,$AP$4:$AT$4,\"\")))","v":"Output"},{"$f":"IF(_xlfn.TEXTJOIN(\"; \",TRUE,IF(J189:W189=1,$J$4:$W$4,\"\"))=\"\",\"-\",_xlfn.TEXTJOIN(\"; \",TRUE,IF(J189:W189=1,$J$4:$W$4,\"\")))","v":"-"},{"$f":"IF(_xlfn.TEXTJOIN(\"; \",TRUE,IF(X189:AF189=1,$X$4:$AF$4,\"\"))=\"\",\"-\",_xlfn.TEXTJOIN(\"; \",TRUE,IF(X189:AF189=1,$X$4:$AF$4,\"\")))","v":"Public-private co-ordination support"},{"$f":"IF(_xlfn.TEXTJOIN(\"; \",TRUE,IF(AG189:AO189=1,$AG$4:$AO$4,\"\"))=\"\",\"-\",_xlfn.TEXTJOIN(\"; \",TRUE,IF(AG189:AO189=1,$AG$4:$AO$4,\"\")))","v":"Increased or improved policy development or execution"},"Number, Percentage",0,0,0,0,0,0,0,0,0,0,0,0,0,0,0,0,0,0,0,0,0,0,1,1,0,0,0,0,0,0,0,0,0,0,1,0,0]
[null,"TA186","Land area covered by the policy","-",{"$f":"IF(_xlfn.TEXTJOIN(\"; \",TRUE,IF(AP190:AT190=1,$AP$4:$AT$4,\"\"))=\"\",\"ERROR\",_xlfn.TEXTJOIN(\"; \",TRUE,IF(AP190:AT190=1,$AP$4:$AT$4,\"\")))","v":"Outcome"},{"$f":"IF(_xlfn.TEXTJOIN(\"; \",TRUE,IF(J190:W190=1,$J$4:$W$4,\"\"))=\"\",\"-\",_xlfn.TEXTJOIN(\"; \",TRUE,IF(J190:W190=1,$J$4:$W$4,\"\")))","v":"-"},{"$f":"IF(_xlfn.TEXTJOIN(\"; \",TRUE,IF(X190:AF190=1,$X$4:$AF$4,\"\"))=\"\",\"-\",_xlfn.TEXTJOIN(\"; \",TRUE,IF(X190:AF190=1,$X$4:$AF$4,\"\")))","v":"-"},{"$f":"IF(_xlfn.TEXTJOIN(\"; \",TRUE,IF(AG190:AO190=1,$AG$4:$AO$4,\"\"))=\"\",\"-\",_xlfn.TEXTJOIN(\"; \",TRUE,IF(AG190:AO190=1,$AG$4:$AO$4,\"\")))","v":"Increased or improved policy development or execution"},"Number",0,0,0,0,0,0,0,0,0,0,0,0,0,0,0,0,0,0,0,0,0,0,0,1,0,0,0,0,0,0,0,0,0,0,0,1,0]
[null,"TA187","Policy implemented/ progress towards policy implementation","-",{"$f":"IF(_xlfn.TEXTJOIN(\"; \",TRUE,IF(AP191:AT191=1,$AP$4:$AT$4,\"\"))=\"\",\"ERROR\",_xlfn.TEXTJOIN(\"; \",TRUE,IF(AP191:AT191=1,$AP$4:$AT$4,\"\")))","v":"Outcome"},{"$f":"IF(_xlfn.TEXTJOIN(\"; \",TRUE,IF(J191:W191=1,$J$4:$W$4,\"\"))=\"\",\"-\",_xlfn.TEXTJOIN(\"; \",TRUE,IF(J191:W191=1,$J$4:$W$4,\"\")))","v":"-"},{"$f":"IF(_xlfn.TEXTJOIN(\"; \",TRUE,IF(X191:AF191=1,$X$4:$AF$4,\"\"))=\"\",\"-\",_xlfn.TEXTJOIN(\"; \",TRUE,IF(X191:AF191=1,$X$4:$AF$4,\"\")))","v":"-"},{"$f":"IF(_xlfn.TEXTJOIN(\"; \",TRUE,IF(AG191:AO191=1,$AG$4:$AO$4,\"\"))=\"\",\"-\",_xlfn.TEXTJOIN(\"; \",TRUE,IF(AG191:AO191=1,$AG$4:$AO$4,\"\")))","v":"Increased or improved policy development or execution"},"Yes/No",0,0,0,0,0,0,0,0,0,0,0,0,0,0,0,0,0,0,0,0,0,0,0,1,0,0,0,0,0,0,0,0,0,0,0,1,0]
[null,"TA188","Revenue raised from policy","-",{"$f":"IF(_xlfn.TEXTJOIN(\"; \",TRUE,IF(AP192:AT192=1,$AP$4:$AT$4,\"\"))=\"\",\"ERROR\",_xlfn.TEXTJOIN(\"; \",TRUE,IF(AP192:AT192=1,$AP$4:$AT$4,\"\")))","v":"Outcome"},{"$f":"IF(_xlfn.TEXTJOIN(\"; \",TRUE,IF(J192:W192=1,$J$4:$W$4,\"\"))=\"\",\"-\",_xlfn.TEXTJOIN(\"; \",TRUE,IF(J192:W192=1,$J$4:$W$4,\"\")))","v":"-"},{"$f":"IF(_xlfn.TEXTJOIN(\"; \",TRUE,IF(X192:AF192=1,$X$4:$AF$4,\"\"))=\"\",\"-\",_xlfn.TEXTJOIN(\"; \",TRUE,IF(X192:AF192=1,$X$4:$AF$4,\"\")))","v":"-"},{"$f":"IF(_xlfn.TEXTJOIN(\"; \",TRUE,IF(AG192:AO192=1,$AG$4:$AO$4,\"\"))=\"\",\"-\",_xlfn.TEXTJOIN(\"; \",TRUE,IF(AG192:AO192=1,$AG$4:$AO$4,\"\")))","v":"Increased or improved policy development or execution"},"Number",0,0,0,0,0,0,0,0,0,0,0,0,0,0,0,0,0,0,0,0,0,0,0,1,0,0,0,0,0,0,0,0,0,0,0,1,0]
[null,"TA189","Number of international submissions (to policy fora, funding opportunities, etc) attributable to programme support","-",{"$f":"IF(_xlfn.TEXTJOIN(\"; \",TRUE,IF(AP193:AT193=1,$AP$4:$AT$4,\"\"))=\"\",\"ERROR\",_xlfn.TEXTJOIN(\"; \",TRUE,IF(AP193:AT193=1,$AP$4:$AT$4,\"\")))","v":"Output"},{"$f":"IF(_xlfn.TEXTJOIN(\"; \",TRUE,IF(J193:W193=1,$J$4:$W$4,\"\"))=\"\",\"-\",_xlfn.TEXTJOIN(\"; \",TRUE,IF(J193:W193=1,$J$4:$W$4,\"\")))","v":"-"},{"$f":"IF(_xlfn.TEXTJOIN(\"; \",TRUE,IF(X193:AF193=1,$X$4:$AF$4,\"\"))=\"\",\"-\",_xlfn.TEXTJOIN(\"; \",TRUE,IF(X193:AF193=1,$X$4:$AF$4,\"\")))","v":"International policy support"},{"$f":"IF(_xlfn.TEXTJOIN(\"; \",TRUE,IF(AG193:AO193=1,$AG$4:$AO$4,\"\"))=\"\",\"-\",_xlfn.TEXTJOIN(\"; \",TRUE,IF(AG193:AO193=1,$AG$4:$AO$4,\"\")))","v":"-"},"Number",0,0,0,0,0,0,0,0,0,0,0,0,0,0,0,0,0,0,1,0,0,0,0,0,0,0,0,0,0,0,0,0,0,0,1,0,0]
[null,"TA190","Change in number of cases of policy enforcement","-",{"$f":"IF(_xlfn.TEXTJOIN(\"; \",TRUE,IF(AP194:AT194=1,$AP$4:$AT$4,\"\"))=\"\",\"ERROR\",_xlfn.TEXTJOIN(\"; \",TRUE,IF(AP194:AT194=1,$AP$4:$AT$4,\"\")))","v":"Outcome"},{"$f":"IF(_xlfn.TEXTJOIN(\"; \",TRUE,IF(J194:W194=1,$J$4:$W$4,\"\"))=\"\",\"-\",_xlfn.TEXTJOIN(\"; \",TRUE,IF(J194:W194=1,$J$4:$W$4,\"\")))","v":"-"},{"$f":"IF(_xlfn.TEXTJOIN(\"; \",TRUE,IF(X194:AF194=1,$X$4:$AF$4,\"\"))=\"\",\"-\",_xlfn.TEXTJOIN(\"; \",TRUE,IF(X194:AF194=1,$X$4:$AF$4,\"\")))","v":"-"},{"$f":"IF(_xlfn.TEXTJOIN(\"; \",TRUE,IF(AG194:AO194=1,$AG$4:$AO$4,\"\"))=\"\",\"-\",_xlfn.TEXTJOIN(\"; \",TRUE,IF(AG194:AO194=1,$AG$4:$AO$4,\"\")))","v":"Increased or improved policy development or execution; Improved operation of processes or assets (inc. e.g. electricity grid stability, agricultural livelihoods, forest management)"},"Number",0,0,0,0,0,0,0,0,0,0,0,0,0,0,0,0,0,0,0,0,0,0,0,1,0,0,0,0,1,0,0,0,0,0,0,1,0]
[null,"TA191","Number of policy procedures/framework strengthened ","-",{"$f":"IF(_xlfn.TEXTJOIN(\"; \",TRUE,IF(AP195:AT195=1,$AP$4:$AT$4,\"\"))=\"\",\"ERROR\",_xlfn.TEXTJOIN(\"; \",TRUE,IF(AP195:AT195=1,$AP$4:$AT$4,\"\")))","v":"Outcome"},{"$f":"IF(_xlfn.TEXTJOIN(\"; \",TRUE,IF(J195:W195=1,$J$4:$W$4,\"\"))=\"\",\"-\",_xlfn.TEXTJOIN(\"; \",TRUE,IF(J195:W195=1,$J$4:$W$4,\"\")))","v":"-"},{"$f":"IF(_xlfn.TEXTJOIN(\"; \",TRUE,IF(X195:AF195=1,$X$4:$AF$4,\"\"))=\"\",\"-\",_xlfn.TEXTJOIN(\"; \",TRUE,IF(X195:AF195=1,$X$4:$AF$4,\"\")))","v":"-"},{"$f":"IF(_xlfn.TEXTJOIN(\"; \",TRUE,IF(AG195:AO195=1,$AG$4:$AO$4,\"\"))=\"\",\"-\",_xlfn.TEXTJOIN(\"; \",TRUE,IF(AG195:AO195=1,$AG$4:$AO$4,\"\")))","v":"Increased or improved policy development or execution"},"Number",0,0,0,0,0,0,0,0,0,0,0,0,0,0,0,0,0,0,0,0,0,0,0,1,0,0,0,0,0,0,0,0,0,0,0,1,0]
[null,"TA192","Percentage/number of policies towards end goal programme has supported","-",{"$f":"IF(_xlfn.TEXTJOIN(\"; \",TRUE,IF(AP196:AT196=1,$AP$4:$AT$4,\"\"))=\"\",\"ERROR\",_xlfn.TEXTJOIN(\"; \",TRUE,IF(AP196:AT196=1,$AP$4:$AT$4,\"\")))","v":"Outcome"},{"$f":"IF(_xlfn.TEXTJOIN(\"; \",TRUE,IF(J196:W196=1,$J$4:$W$4,\"\"))=\"\",\"-\",_xlfn.TEXTJOIN(\"; \",TRUE,IF(J196:W196=1,$J$4:$W$4,\"\")))","v":"-"},{"$f":"IF(_xlfn.TEXTJOIN(\"; \",TRUE,IF(X196:AF196=1,$X$4:$AF$4,\"\"))=\"\",\"-\",_xlfn.TEXTJOIN(\"; \",TRUE,IF(X196:AF196=1,$X$4:$AF$4,\"\")))","v":"-"},{"$f":"IF(_xlfn.TEXTJOIN(\"; \",TRUE,IF(AG196:AO196=1,$AG$4:$AO$4,\"\"))=\"\",\"-\",_xlfn.TEXTJOIN(\"; \",TRUE,IF(AG196:AO196=1,$AG$4:$AO$4,\"\")))","v":"Increased or improved policy development or execution"},"Number, Percentage",0,0,0,0,0,0,0,0,0,0,0,0,0,0,0,0,0,0,0,0,0,0,0,1,0,0,0,0,0,0,0,0,0,0,0,1,0]
[null,"TA193","Number of countries reporting policy procedures/framework strengthened ","-",{"$f":"IF(_xlfn.TEXTJOIN(\"; \",TRUE,IF(AP197:AT197=1,$AP$4:$AT$4,\"\"))=\"\",\"ERROR\",_xlfn.TEXTJOIN(\"; \",TRUE,IF(AP197:AT197=1,$AP$4:$AT$4,\"\")))","v":"Outcome"},{"$f":"IF(_xlfn.TEXTJOIN(\"; \",TRUE,IF(J197:W197=1,$J$4:$W$4,\"\"))=\"\",\"-\",_xlfn.TEXTJOIN(\"; \",TRUE,IF(J197:W197=1,$J$4:$W$4,\"\")))","v":"-"},{"$f":"IF(_xlfn.TEXTJOIN(\"; \",TRUE,IF(X197:AF197=1,$X$4:$AF$4,\"\"))=\"\",\"-\",_xlfn.TEXTJOIN(\"; \",TRUE,IF(X197:AF197=1,$X$4:$AF$4,\"\")))","v":"-"},{"$f":"IF(_xlfn.TEXTJOIN(\"; \",TRUE,IF(AG197:AO197=1,$AG$4:$AO$4,\"\"))=\"\",\"-\",_xlfn.TEXTJOIN(\"; \",TRUE,IF(AG197:AO197=1,$AG$4:$AO$4,\"\")))","v":"Increased or improved policy development or execution"},"Number",0,0,0,0,0,0,0,0,0,0,0,0,0,0,0,0,0,0,0,0,0,0,0,1,0,0,0,0,0,0,0,0,0,0,0,1,0]
[null,"TA194","(Number of) Knowledge products are produced/launched (on time)","-",{"$f":"IF(_xlfn.TEXTJOIN(\"; \",TRUE,IF(AP198:AT198=1,$AP$4:$AT$4,\"\"))=\"\",\"ERROR\",_xlfn.TEXTJOIN(\"; \",TRUE,IF(AP198:AT198=1,$AP$4:$AT$4,\"\")))","v":"Activity"},{"$f":"IF(_xlfn.TEXTJOIN(\"; \",TRUE,IF(J198:W198=1,$J$4:$W$4,\"\"))=\"\",\"-\",_xlfn.TEXTJOIN(\"; \",TRUE,IF(J198:W198=1,$J$4:$W$4,\"\")))","v":"Specialist research, inc. market / policy / legal / regulatory / technology research briefs"},{"$f":"IF(_xlfn.TEXTJOIN(\"; \",TRUE,IF(X198:AF198=1,$X$4:$AF$4,\"\"))=\"\",\"-\",_xlfn.TEXTJOIN(\"; \",TRUE,IF(X198:AF198=1,$X$4:$AF$4,\"\")))","v":"-"},{"$f":"IF(_xlfn.TEXTJOIN(\"; \",TRUE,IF(AG198:AO198=1,$AG$4:$AO$4,\"\"))=\"\",\"-\",_xlfn.TEXTJOIN(\"; \",TRUE,IF(AG198:AO198=1,$AG$4:$AO$4,\"\")))","v":"-"},"Number",0,0,0,0,1,0,0,0,0,0,0,0,0,0,0,0,0,0,0,0,0,0,0,0,0,0,0,0,0,0,0,0,1,0,0,0,0]
[null,"TA195","Number of countries that have accessed knowledge product","-",{"$f":"IF(_xlfn.TEXTJOIN(\"; \",TRUE,IF(AP199:AT199=1,$AP$4:$AT$4,\"\"))=\"\",\"ERROR\",_xlfn.TEXTJOIN(\"; \",TRUE,IF(AP199:AT199=1,$AP$4:$AT$4,\"\")))","v":"Uptake"},{"$f":"IF(_xlfn.TEXTJOIN(\"; \",TRUE,IF(J199:W199=1,$J$4:$W$4,\"\"))=\"\",\"-\",_xlfn.TEXTJOIN(\"; \",TRUE,IF(J199:W199=1,$J$4:$W$4,\"\")))","v":"Specialist research, inc. market / policy / legal / regulatory / technology research briefs"},{"$f":"IF(_xlfn.TEXTJOIN(\"; \",TRUE,IF(X199:AF199=1,$X$4:$AF$4,\"\"))=\"\",\"-\",_xlfn.TEXTJOIN(\"; \",TRUE,IF(X199:AF199=1,$X$4:$AF$4,\"\")))","v":"-"},{"$f":"IF(_xlfn.TEXTJOIN(\"; \",TRUE,IF(AG199:AO199=1,$AG$4:$AO$4,\"\"))=\"\",\"-\",_xlfn.TEXTJOIN(\"; \",TRUE,IF(AG199:AO199=1,$AG$4:$AO$4,\"\")))","v":"-"},"Number",0,0,0,0,1,0,0,0,0,0,0,0,0,0,0,0,0,0,0,0,0,0,0,0,0,0,0,0,0,0,0,0,0,1,0,0,0]
[null,"TA196","Institutional knowledge increases as result of programme","-",{"$f":"IF(_xlfn.TEXTJOIN(\"; \",TRUE,IF(AP200:AT200=1,$AP$4:$AT$4,\"\"))=\"\",\"ERROR\",_xlfn.TEXTJOIN(\"; \",TRUE,IF(AP200:AT200=1,$AP$4:$AT$4,\"\")))","v":"Outcome"},{"$f":"IF(_xlfn.TEXTJOIN(\"; \",TRUE,IF(J200:W200=1,$J$4:$W$4,\"\"))=\"\",\"-\",_xlfn.TEXTJOIN(\"; \",TRUE,IF(J200:W200=1,$J$4:$W$4,\"\")))","v":"-"},{"$f":"IF(_xlfn.TEXTJOIN(\"; \",TRUE,IF(X200:AF200=1,$X$4:$AF$4,\"\"))=\"\",\"-\",_xlfn.TEXTJOIN(\"; \",TRUE,IF(X200:AF200=1,$X$4:$AF$4,\"\")))","v":"-"},{"$f":"IF(_xlfn.TEXTJOIN(\"; \",TRUE,IF(AG200:AO200=1,$AG$4:$AO$4,\"\"))=\"\",\"-\",_xlfn.TEXTJOIN(\"; \",TRUE,IF(AG200:AO200=1,$AG$4:$AO$4,\"\")))","v":"Increased access to information/knowledge"},"Narrative",0,0,0,0,0,0,0,0,0,0,0,0,0,0,0,0,0,0,0,0,0,0,0,0,1,0,0,0,0,0,0,0,0,0,0,1,0]
[null,"TA197","Knowledge product is used and applied by (number of) stakeholders","-",{"$f":"IF(_xlfn.TEXTJOIN(\"; \",TRUE,IF(AP201:AT201=1,$AP$4:$AT$4,\"\"))=\"\",\"ERROR\",_xlfn.TEXTJOIN(\"; \",TRUE,IF(AP201:AT201=1,$AP$4:$AT$4,\"\")))","v":"Uptake"},{"$f":"IF(_xlfn.TEXTJOIN(\"; \",TRUE,IF(J201:W201=1,$J$4:$W$4,\"\"))=\"\",\"-\",_xlfn.TEXTJOIN(\"; \",TRUE,IF(J201:W201=1,$J$4:$W$4,\"\")))","v":"Specialist research, inc. market / policy / legal / regulatory / technology research briefs"},{"$f":"IF(_xlfn.TEXTJOIN(\"; \",TRUE,IF(X201:AF201=1,$X$4:$AF$4,\"\"))=\"\",\"-\",_xlfn.TEXTJOIN(\"; \",TRUE,IF(X201:AF201=1,$X$4:$AF$4,\"\")))","v":"-"},{"$f":"IF(_xlfn.TEXTJOIN(\"; \",TRUE,IF(AG201:AO201=1,$AG$4:$AO$4,\"\"))=\"\",\"-\",_xlfn.TEXTJOIN(\"; \",TRUE,IF(AG201:AO201=1,$AG$4:$AO$4,\"\")))","v":"-"},"Yes/No",0,0,0,0,1,0,0,0,0,0,0,0,0,0,0,0,0,0,0,0,0,0,0,0,0,0,0,0,0,0,0,0,0,1,0,0,0]
[null,"TA198","Knowledge product is assessed as useful by stakeholders","-",{"$f":"IF(_xlfn.TEXTJOIN(\"; \",TRUE,IF(AP202:AT202=1,$AP$4:$AT$4,\"\"))=\"\",\"ERROR\",_xlfn.TEXTJOIN(\"; \",TRUE,IF(AP202:AT202=1,$AP$4:$AT$4,\"\")))","v":"Uptake"},{"$f":"IF(_xlfn.TEXTJOIN(\"; \",TRUE,IF(J202:W202=1,$J$4:$W$4,\"\"))=\"\",\"-\",_xlfn.TEXTJOIN(\"; \",TRUE,IF(J202:W202=1,$J$4:$W$4,\"\")))","v":"Specialist research, inc. market / policy / legal / regulatory / technology research briefs"},{"$f":"IF(_xlfn.TEXTJOIN(\"; \",TRUE,IF(X202:AF202=1,$X$4:$AF$4,\"\"))=\"\",\"-\",_xlfn.TEXTJOIN(\"; \",TRUE,IF(X202:AF202=1,$X$4:$AF$4,\"\")))","v":"-"},{"$f":"IF(_xlfn.TEXTJOIN(\"; \",TRUE,IF(AG202:AO202=1,$AG$4:$AO$4,\"\"))=\"\",\"-\",_xlfn.TEXTJOIN(\"; \",TRUE,IF(AG202:AO202=1,$AG$4:$AO$4,\"\")))","v":"-"},"Yes/No",0,0,0,0,1,0,0,0,0,0,0,0,0,0,0,0,0,0,0,0,0,0,0,0,0,0,0,0,0,0,0,0,0,1,0,0,0]
[null,"TA199","Percentage of targeted population that is aware of certain issue","-",{"$f":"IF(_xlfn.TEXTJOIN(\"; \",TRUE,IF(AP203:AT203=1,$AP$4:$AT$4,\"\"))=\"\",\"ERROR\",_xlfn.TEXTJOIN(\"; \",TRUE,IF(AP203:AT203=1,$AP$4:$AT$4,\"\")))","v":"Outcome"},{"$f":"IF(_xlfn.TEXTJOIN(\"; \",TRUE,IF(J203:W203=1,$J$4:$W$4,\"\"))=\"\",\"-\",_xlfn.TEXTJOIN(\"; \",TRUE,IF(J203:W203=1,$J$4:$W$4,\"\")))","v":"-"},{"$f":"IF(_xlfn.TEXTJOIN(\"; \",TRUE,IF(X203:AF203=1,$X$4:$AF$4,\"\"))=\"\",\"-\",_xlfn.TEXTJOIN(\"; \",TRUE,IF(X203:AF203=1,$X$4:$AF$4,\"\")))","v":"-"},{"$f":"IF(_xlfn.TEXTJOIN(\"; \",TRUE,IF(AG203:AO203=1,$AG$4:$AO$4,\"\"))=\"\",\"-\",_xlfn.TEXTJOIN(\"; \",TRUE,IF(AG203:AO203=1,$AG$4:$AO$4,\"\")))","v":"Increased access to information/knowledge; Improved domestic co-ordination"},"Percentage",0,0,0,0,0,0,0,0,0,0,0,0,0,0,0,0,0,0,0,0,0,0,0,0,1,1,0,0,0,0,0,0,0,0,0,1,0]
[null,"TA200","Number of countries that refer to the knowledge product","-",{"$f":"IF(_xlfn.TEXTJOIN(\"; \",TRUE,IF(AP204:AT204=1,$AP$4:$AT$4,\"\"))=\"\",\"ERROR\",_xlfn.TEXTJOIN(\"; \",TRUE,IF(AP204:AT204=1,$AP$4:$AT$4,\"\")))","v":"Uptake"},{"$f":"IF(_xlfn.TEXTJOIN(\"; \",TRUE,IF(J204:W204=1,$J$4:$W$4,\"\"))=\"\",\"-\",_xlfn.TEXTJOIN(\"; \",TRUE,IF(J204:W204=1,$J$4:$W$4,\"\")))","v":"Specialist research, inc. market / policy / legal / regulatory / technology research briefs"},{"$f":"IF(_xlfn.TEXTJOIN(\"; \",TRUE,IF(X204:AF204=1,$X$4:$AF$4,\"\"))=\"\",\"-\",_xlfn.TEXTJOIN(\"; \",TRUE,IF(X204:AF204=1,$X$4:$AF$4,\"\")))","v":"-"},{"$f":"IF(_xlfn.TEXTJOIN(\"; \",TRUE,IF(AG204:AO204=1,$AG$4:$AO$4,\"\"))=\"\",\"-\",_xlfn.TEXTJOIN(\"; \",TRUE,IF(AG204:AO204=1,$AG$4:$AO$4,\"\")))","v":"-"},"Number",0,0,0,0,1,0,0,0,0,0,0,0,0,0,0,0,0,0,0,0,0,0,0,0,0,0,0,0,0,0,0,0,0,1,0,0,0]
[null,"TA201","Number of policies where better information is used","-",{"$f":"IF(_xlfn.TEXTJOIN(\"; \",TRUE,IF(AP205:AT205=1,$AP$4:$AT$4,\"\"))=\"\",\"ERROR\",_xlfn.TEXTJOIN(\"; \",TRUE,IF(AP205:AT205=1,$AP$4:$AT$4,\"\")))","v":"Outcome"},{"$f":"IF(_xlfn.TEXTJOIN(\"; \",TRUE,IF(J205:W205=1,$J$4:$W$4,\"\"))=\"\",\"-\",_xlfn.TEXTJOIN(\"; \",TRUE,IF(J205:W205=1,$J$4:$W$4,\"\")))","v":"-"},{"$f":"IF(_xlfn.TEXTJOIN(\"; \",TRUE,IF(X205:AF205=1,$X$4:$AF$4,\"\"))=\"\",\"-\",_xlfn.TEXTJOIN(\"; \",TRUE,IF(X205:AF205=1,$X$4:$AF$4,\"\")))","v":"-"},{"$f":"IF(_xlfn.TEXTJOIN(\"; \",TRUE,IF(AG205:AO205=1,$AG$4:$AO$4,\"\"))=\"\",\"-\",_xlfn.TEXTJOIN(\"; \",TRUE,IF(AG205:AO205=1,$AG$4:$AO$4,\"\")))","v":"Increased access to information/knowledge"},"Number",0,0,0,0,0,0,0,0,0,0,0,0,0,0,0,0,0,0,0,0,0,0,0,0,1,0,0,0,0,0,0,0,0,0,0,1,0]
[null,"TA202","Number of policymakers/stakeholder that use new information for decision making","-",{"$f":"IF(_xlfn.TEXTJOIN(\"; \",TRUE,IF(AP206:AT206=1,$AP$4:$AT$4,\"\"))=\"\",\"ERROR\",_xlfn.TEXTJOIN(\"; \",TRUE,IF(AP206:AT206=1,$AP$4:$AT$4,\"\")))","v":"Outcome"},{"$f":"IF(_xlfn.TEXTJOIN(\"; \",TRUE,IF(J206:W206=1,$J$4:$W$4,\"\"))=\"\",\"-\",_xlfn.TEXTJOIN(\"; \",TRUE,IF(J206:W206=1,$J$4:$W$4,\"\")))","v":"-"},{"$f":"IF(_xlfn.TEXTJOIN(\"; \",TRUE,IF(X206:AF206=1,$X$4:$AF$4,\"\"))=\"\",\"-\",_xlfn.TEXTJOIN(\"; \",TRUE,IF(X206:AF206=1,$X$4:$AF$4,\"\")))","v":"-"},{"$f":"IF(_xlfn.TEXTJOIN(\"; \",TRUE,IF(AG206:AO206=1,$AG$4:$AO$4,\"\"))=\"\",\"-\",_xlfn.TEXTJOIN(\"; \",TRUE,IF(AG206:AO206=1,$AG$4:$AO$4,\"\")))","v":"Increased access to information/knowledge"},"Number",0,0,0,0,0,0,0,0,0,0,0,0,0,0,0,0,0,0,0,0,0,0,0,0,1,0,0,0,0,0,0,0,0,0,0,1,0]
[null,"TA203","Number of countries that are able to create and develop knowledge products themselves","-",{"$f":"IF(_xlfn.TEXTJOIN(\"; \",TRUE,IF(AP207:AT207=1,$AP$4:$AT$4,\"\"))=\"\",\"ERROR\",_xlfn.TEXTJOIN(\"; \",TRUE,IF(AP207:AT207=1,$AP$4:$AT$4,\"\")))","v":"Outcome"},{"$f":"IF(_xlfn.TEXTJOIN(\"; \",TRUE,IF(J207:W207=1,$J$4:$W$4,\"\"))=\"\",\"-\",_xlfn.TEXTJOIN(\"; \",TRUE,IF(J207:W207=1,$J$4:$W$4,\"\")))","v":"-"},{"$f":"IF(_xlfn.TEXTJOIN(\"; \",TRUE,IF(X207:AF207=1,$X$4:$AF$4,\"\"))=\"\",\"-\",_xlfn.TEXTJOIN(\"; \",TRUE,IF(X207:AF207=1,$X$4:$AF$4,\"\")))","v":"-"},{"$f":"IF(_xlfn.TEXTJOIN(\"; \",TRUE,IF(AG207:AO207=1,$AG$4:$AO$4,\"\"))=\"\",\"-\",_xlfn.TEXTJOIN(\"; \",TRUE,IF(AG207:AO207=1,$AG$4:$AO$4,\"\")))","v":"Increased access to information/knowledge"},"Number",0,0,0,0,0,0,0,0,0,0,0,0,0,0,0,0,0,0,0,0,0,0,0,0,1,0,0,0,0,0,0,0,0,0,0,1,0]
[null,"TA204","Players not part of the programme use lessons learned and replicate programme outputs","-",{"$f":"IF(_xlfn.TEXTJOIN(\"; \",TRUE,IF(AP208:AT208=1,$AP$4:$AT$4,\"\"))=\"\",\"ERROR\",_xlfn.TEXTJOIN(\"; \",TRUE,IF(AP208:AT208=1,$AP$4:$AT$4,\"\")))","v":"Output"},{"$f":"IF(_xlfn.TEXTJOIN(\"; \",TRUE,IF(J208:W208=1,$J$4:$W$4,\"\"))=\"\",\"-\",_xlfn.TEXTJOIN(\"; \",TRUE,IF(J208:W208=1,$J$4:$W$4,\"\")))","v":"-"},{"$f":"IF(_xlfn.TEXTJOIN(\"; \",TRUE,IF(X208:AF208=1,$X$4:$AF$4,\"\"))=\"\",\"-\",_xlfn.TEXTJOIN(\"; \",TRUE,IF(X208:AF208=1,$X$4:$AF$4,\"\")))","v":"Capacity building: Technical capacity; Process/asset operation support"},{"$f":"IF(_xlfn.TEXTJOIN(\"; \",TRUE,IF(AG208:AO208=1,$AG$4:$AO$4,\"\"))=\"\",\"-\",_xlfn.TEXTJOIN(\"; \",TRUE,IF(AG208:AO208=1,$AG$4:$AO$4,\"\")))","v":"-"},"Narrative",0,0,0,0,0,0,0,0,0,0,0,0,0,0,0,1,0,0,0,0,1,0,0,0,0,0,0,0,0,0,0,0,0,0,1,0,0]
[null,"TA205","Percentage of finance disbursement that takes place at the local level rather than the operational framework of implementation","-",{"$f":"IF(_xlfn.TEXTJOIN(\"; \",TRUE,IF(AP209:AT209=1,$AP$4:$AT$4,\"\"))=\"\",\"ERROR\",_xlfn.TEXTJOIN(\"; \",TRUE,IF(AP209:AT209=1,$AP$4:$AT$4,\"\")))","v":"Outcome"},{"$f":"IF(_xlfn.TEXTJOIN(\"; \",TRUE,IF(J209:W209=1,$J$4:$W$4,\"\"))=\"\",\"-\",_xlfn.TEXTJOIN(\"; \",TRUE,IF(J209:W209=1,$J$4:$W$4,\"\")))","v":"-"},{"$f":"IF(_xlfn.TEXTJOIN(\"; \",TRUE,IF(X209:AF209=1,$X$4:$AF$4,\"\"))=\"\",\"-\",_xlfn.TEXTJOIN(\"; \",TRUE,IF(X209:AF209=1,$X$4:$AF$4,\"\")))","v":"-"},{"$f":"IF(_xlfn.TEXTJOIN(\"; \",TRUE,IF(AG209:AO209=1,$AG$4:$AO$4,\"\"))=\"\",\"-\",_xlfn.TEXTJOIN(\"; \",TRUE,IF(AG209:AO209=1,$AG$4:$AO$4,\"\")))","v":"Improved domestic co-ordination"},"Percentage",0,0,0,0,0,0,0,0,0,0,0,0,0,0,0,0,0,0,0,0,0,0,0,0,0,1,0,0,0,0,0,0,0,0,0,1,0]
[null,"TA206","Area of land covered by agreements between governments/authorities, associations and private sectors","-",{"$f":"IF(_xlfn.TEXTJOIN(\"; \",TRUE,IF(AP210:AT210=1,$AP$4:$AT$4,\"\"))=\"\",\"ERROR\",_xlfn.TEXTJOIN(\"; \",TRUE,IF(AP210:AT210=1,$AP$4:$AT$4,\"\")))","v":"Outcome"},{"$f":"IF(_xlfn.TEXTJOIN(\"; \",TRUE,IF(J210:W210=1,$J$4:$W$4,\"\"))=\"\",\"-\",_xlfn.TEXTJOIN(\"; \",TRUE,IF(J210:W210=1,$J$4:$W$4,\"\")))","v":"-"},{"$f":"IF(_xlfn.TEXTJOIN(\"; \",TRUE,IF(X210:AF210=1,$X$4:$AF$4,\"\"))=\"\",\"-\",_xlfn.TEXTJOIN(\"; \",TRUE,IF(X210:AF210=1,$X$4:$AF$4,\"\")))","v":"-"},{"$f":"IF(_xlfn.TEXTJOIN(\"; \",TRUE,IF(AG210:AO210=1,$AG$4:$AO$4,\"\"))=\"\",\"-\",_xlfn.TEXTJOIN(\"; \",TRUE,IF(AG210:AO210=1,$AG$4:$AO$4,\"\")))","v":"Improved domestic co-ordination"},"Number",0,0,0,0,0,0,0,0,0,0,0,0,0,0,0,0,0,0,0,0,0,0,0,0,0,1,0,0,0,0,0,0,0,0,0,1,0]
[null,"TA207","Evidence that data is collected, analysed and used by government and private sector","-",{"$f":"IF(_xlfn.TEXTJOIN(\"; \",TRUE,IF(AP211:AT211=1,$AP$4:$AT$4,\"\"))=\"\",\"ERROR\",_xlfn.TEXTJOIN(\"; \",TRUE,IF(AP211:AT211=1,$AP$4:$AT$4,\"\")))","v":"Output"},{"$f":"IF(_xlfn.TEXTJOIN(\"; \",TRUE,IF(J211:W211=1,$J$4:$W$4,\"\"))=\"\",\"-\",_xlfn.TEXTJOIN(\"; \",TRUE,IF(J211:W211=1,$J$4:$W$4,\"\")))","v":"-"},{"$f":"IF(_xlfn.TEXTJOIN(\"; \",TRUE,IF(X211:AF211=1,$X$4:$AF$4,\"\"))=\"\",\"-\",_xlfn.TEXTJOIN(\"; \",TRUE,IF(X211:AF211=1,$X$4:$AF$4,\"\")))","v":"Process/asset operation support"},{"$f":"IF(_xlfn.TEXTJOIN(\"; \",TRUE,IF(AG211:AO211=1,$AG$4:$AO$4,\"\"))=\"\",\"-\",_xlfn.TEXTJOIN(\"; \",TRUE,IF(AG211:AO211=1,$AG$4:$AO$4,\"\")))","v":"-"},"Narrative",0,0,0,0,0,0,0,0,0,0,0,0,0,0,0,0,0,0,0,0,1,0,0,0,0,0,0,0,0,0,0,0,0,0,1,0,0]
[null,"TA208","Extent to which targeted stakeholders use tools and information (including those supported by the programme) ","-",{"$f":"IF(_xlfn.TEXTJOIN(\"; \",TRUE,IF(AP212:AT212=1,$AP$4:$AT$4,\"\"))=\"\",\"ERROR\",_xlfn.TEXTJOIN(\"; \",TRUE,IF(AP212:AT212=1,$AP$4:$AT$4,\"\")))","v":"Output"},{"$f":"IF(_xlfn.TEXTJOIN(\"; \",TRUE,IF(J212:W212=1,$J$4:$W$4,\"\"))=\"\",\"-\",_xlfn.TEXTJOIN(\"; \",TRUE,IF(J212:W212=1,$J$4:$W$4,\"\")))","v":"-"},{"$f":"IF(_xlfn.TEXTJOIN(\"; \",TRUE,IF(X212:AF212=1,$X$4:$AF$4,\"\"))=\"\",\"-\",_xlfn.TEXTJOIN(\"; \",TRUE,IF(X212:AF212=1,$X$4:$AF$4,\"\")))","v":"Process/asset operation support"},{"$f":"IF(_xlfn.TEXTJOIN(\"; \",TRUE,IF(AG212:AO212=1,$AG$4:$AO$4,\"\"))=\"\",\"-\",_xlfn.TEXTJOIN(\"; \",TRUE,IF(AG212:AO212=1,$AG$4:$AO$4,\"\")))","v":"-"},"Narrative",0,0,0,0,0,0,0,0,0,0,0,0,0,0,0,0,0,0,0,0,1,0,0,0,0,0,0,0,0,0,0,0,0,0,1,0,0]
[null,"TA209","Percentage of countries that have adopted policies and recommendations plans, programmes and institutions","-",{"$f":"IF(_xlfn.TEXTJOIN(\"; \",TRUE,IF(AP213:AT213=1,$AP$4:$AT$4,\"\"))=\"\",\"ERROR\",_xlfn.TEXTJOIN(\"; \",TRUE,IF(AP213:AT213=1,$AP$4:$AT$4,\"\")))","v":"Output"},{"$f":"IF(_xlfn.TEXTJOIN(\"; \",TRUE,IF(J213:W213=1,$J$4:$W$4,\"\"))=\"\",\"-\",_xlfn.TEXTJOIN(\"; \",TRUE,IF(J213:W213=1,$J$4:$W$4,\"\")))","v":"-"},{"$f":"IF(_xlfn.TEXTJOIN(\"; \",TRUE,IF(X213:AF213=1,$X$4:$AF$4,\"\"))=\"\",\"-\",_xlfn.TEXTJOIN(\"; \",TRUE,IF(X213:AF213=1,$X$4:$AF$4,\"\")))","v":"Domestic policy support"},{"$f":"IF(_xlfn.TEXTJOIN(\"; \",TRUE,IF(AG213:AO213=1,$AG$4:$AO$4,\"\"))=\"\",\"-\",_xlfn.TEXTJOIN(\"; \",TRUE,IF(AG213:AO213=1,$AG$4:$AO$4,\"\")))","v":"-"},"Percentage",0,0,0,0,0,0,0,0,0,0,0,0,0,0,0,0,0,1,0,0,0,0,0,0,0,0,0,0,0,0,0,0,0,0,1,0,0]
[null,"TA210","Number of cases where final documents in international climate negotiations include positions, submissions and/or preferred  outcomes from developing countries","-",{"$f":"IF(_xlfn.TEXTJOIN(\"; \",TRUE,IF(AP214:AT214=1,$AP$4:$AT$4,\"\"))=\"\",\"ERROR\",_xlfn.TEXTJOIN(\"; \",TRUE,IF(AP214:AT214=1,$AP$4:$AT$4,\"\")))","v":"Outcome"},{"$f":"IF(_xlfn.TEXTJOIN(\"; \",TRUE,IF(J214:W214=1,$J$4:$W$4,\"\"))=\"\",\"-\",_xlfn.TEXTJOIN(\"; \",TRUE,IF(J214:W214=1,$J$4:$W$4,\"\")))","v":"-"},{"$f":"IF(_xlfn.TEXTJOIN(\"; \",TRUE,IF(X214:AF214=1,$X$4:$AF$4,\"\"))=\"\",\"-\",_xlfn.TEXTJOIN(\"; \",TRUE,IF(X214:AF214=1,$X$4:$AF$4,\"\")))","v":"-"},{"$f":"IF(_xlfn.TEXTJOIN(\"; \",TRUE,IF(AG214:AO214=1,$AG$4:$AO$4,\"\"))=\"\",\"-\",_xlfn.TEXTJOIN(\"; \",TRUE,IF(AG214:AO214=1,$AG$4:$AO$4,\"\")))","v":"Improved international co-ordination"},"Number",0,0,0,0,0,0,0,0,0,0,0,0,0,0,0,0,0,0,0,0,0,0,0,0,0,0,1,0,0,0,0,0,0,0,0,1,0]
[null,"TA211","Number of cases where there has been enhanced coordination and collaboration amongst negotiators in progressive alliances","-",{"$f":"IF(_xlfn.TEXTJOIN(\"; \",TRUE,IF(AP215:AT215=1,$AP$4:$AT$4,\"\"))=\"\",\"ERROR\",_xlfn.TEXTJOIN(\"; \",TRUE,IF(AP215:AT215=1,$AP$4:$AT$4,\"\")))","v":"Outcome"},{"$f":"IF(_xlfn.TEXTJOIN(\"; \",TRUE,IF(J215:W215=1,$J$4:$W$4,\"\"))=\"\",\"-\",_xlfn.TEXTJOIN(\"; \",TRUE,IF(J215:W215=1,$J$4:$W$4,\"\")))","v":"-"},{"$f":"IF(_xlfn.TEXTJOIN(\"; \",TRUE,IF(X215:AF215=1,$X$4:$AF$4,\"\"))=\"\",\"-\",_xlfn.TEXTJOIN(\"; \",TRUE,IF(X215:AF215=1,$X$4:$AF$4,\"\")))","v":"-"},{"$f":"IF(_xlfn.TEXTJOIN(\"; \",TRUE,IF(AG215:AO215=1,$AG$4:$AO$4,\"\"))=\"\",\"-\",_xlfn.TEXTJOIN(\"; \",TRUE,IF(AG215:AO215=1,$AG$4:$AO$4,\"\")))","v":"Improved international co-ordination"},"Number",0,0,0,0,0,0,0,0,0,0,0,0,0,0,0,0,0,0,0,0,0,0,0,0,0,0,1,0,0,0,0,0,0,0,0,1,0]
[null,"TA212","Number of cases where women have taken key role in international negotiations with support of the programme","-",{"$f":"IF(_xlfn.TEXTJOIN(\"; \",TRUE,IF(AP216:AT216=1,$AP$4:$AT$4,\"\"))=\"\",\"ERROR\",_xlfn.TEXTJOIN(\"; \",TRUE,IF(AP216:AT216=1,$AP$4:$AT$4,\"\")))","v":"Outcome"},{"$f":"IF(_xlfn.TEXTJOIN(\"; \",TRUE,IF(J216:W216=1,$J$4:$W$4,\"\"))=\"\",\"-\",_xlfn.TEXTJOIN(\"; \",TRUE,IF(J216:W216=1,$J$4:$W$4,\"\")))","v":"-"},{"$f":"IF(_xlfn.TEXTJOIN(\"; \",TRUE,IF(X216:AF216=1,$X$4:$AF$4,\"\"))=\"\",\"-\",_xlfn.TEXTJOIN(\"; \",TRUE,IF(X216:AF216=1,$X$4:$AF$4,\"\")))","v":"-"},{"$f":"IF(_xlfn.TEXTJOIN(\"; \",TRUE,IF(AG216:AO216=1,$AG$4:$AO$4,\"\"))=\"\",\"-\",_xlfn.TEXTJOIN(\"; \",TRUE,IF(AG216:AO216=1,$AG$4:$AO$4,\"\")))","v":"Improved international co-ordination"},"Number",0,0,0,0,0,0,0,0,0,0,0,0,0,0,0,0,0,0,0,0,0,0,0,0,0,0,1,0,0,0,0,0,0,0,0,1,0]
[null,"TA213","Number of countries/projects supported by the programme","-",{"$f":"IF(_xlfn.TEXTJOIN(\"; \",TRUE,IF(AP217:AT217=1,$AP$4:$AT$4,\"\"))=\"\",\"ERROR\",_xlfn.TEXTJOIN(\"; \",TRUE,IF(AP217:AT217=1,$AP$4:$AT$4,\"\")))","v":"Activity"},{"$f":"IF(_xlfn.TEXTJOIN(\"; \",TRUE,IF(J217:W217=1,$J$4:$W$4,\"\"))=\"\",\"-\",_xlfn.TEXTJOIN(\"; \",TRUE,IF(J217:W217=1,$J$4:$W$4,\"\")))","v":"Secondments; Expert guidance and review"},{"$f":"IF(_xlfn.TEXTJOIN(\"; \",TRUE,IF(X217:AF217=1,$X$4:$AF$4,\"\"))=\"\",\"-\",_xlfn.TEXTJOIN(\"; \",TRUE,IF(X217:AF217=1,$X$4:$AF$4,\"\")))","v":"-"},{"$f":"IF(_xlfn.TEXTJOIN(\"; \",TRUE,IF(AG217:AO217=1,$AG$4:$AO$4,\"\"))=\"\",\"-\",_xlfn.TEXTJOIN(\"; \",TRUE,IF(AG217:AO217=1,$AG$4:$AO$4,\"\")))","v":"-"},"Number",0,0,0,1,0,0,1,0,0,0,0,0,0,0,0,0,0,0,0,0,0,0,0,0,0,0,0,0,0,0,0,0,1,0,0,0,0]
[null,"TA214","New innovations are deployed at scale","-",{"$f":"IF(_xlfn.TEXTJOIN(\"; \",TRUE,IF(AP218:AT218=1,$AP$4:$AT$4,\"\"))=\"\",\"ERROR\",_xlfn.TEXTJOIN(\"; \",TRUE,IF(AP218:AT218=1,$AP$4:$AT$4,\"\")))","v":"Outcome"},{"$f":"IF(_xlfn.TEXTJOIN(\"; \",TRUE,IF(J218:W218=1,$J$4:$W$4,\"\"))=\"\",\"-\",_xlfn.TEXTJOIN(\"; \",TRUE,IF(J218:W218=1,$J$4:$W$4,\"\")))","v":"-"},{"$f":"IF(_xlfn.TEXTJOIN(\"; \",TRUE,IF(X218:AF218=1,$X$4:$AF$4,\"\"))=\"\",\"-\",_xlfn.TEXTJOIN(\"; \",TRUE,IF(X218:AF218=1,$X$4:$AF$4,\"\")))","v":"-"},{"$f":"IF(_xlfn.TEXTJOIN(\"; \",TRUE,IF(AG218:AO218=1,$AG$4:$AO$4,\"\"))=\"\",\"-\",_xlfn.TEXTJOIN(\"; \",TRUE,IF(AG218:AO218=1,$AG$4:$AO$4,\"\")))","v":"Increased or improved investment in climate-related projects/assets"},"Yes/No",0,0,0,0,0,0,0,0,0,0,0,0,0,0,0,0,0,0,0,0,0,0,0,0,0,0,0,1,0,0,0,0,0,0,0,1,0]
[null,"TA215","Percentage of private investors placing funds in specific area","-",{"$f":"IF(_xlfn.TEXTJOIN(\"; \",TRUE,IF(AP219:AT219=1,$AP$4:$AT$4,\"\"))=\"\",\"ERROR\",_xlfn.TEXTJOIN(\"; \",TRUE,IF(AP219:AT219=1,$AP$4:$AT$4,\"\")))","v":"Outcome"},{"$f":"IF(_xlfn.TEXTJOIN(\"; \",TRUE,IF(J219:W219=1,$J$4:$W$4,\"\"))=\"\",\"-\",_xlfn.TEXTJOIN(\"; \",TRUE,IF(J219:W219=1,$J$4:$W$4,\"\")))","v":"-"},{"$f":"IF(_xlfn.TEXTJOIN(\"; \",TRUE,IF(X219:AF219=1,$X$4:$AF$4,\"\"))=\"\",\"-\",_xlfn.TEXTJOIN(\"; \",TRUE,IF(X219:AF219=1,$X$4:$AF$4,\"\")))","v":"-"},{"$f":"IF(_xlfn.TEXTJOIN(\"; \",TRUE,IF(AG219:AO219=1,$AG$4:$AO$4,\"\"))=\"\",\"-\",_xlfn.TEXTJOIN(\"; \",TRUE,IF(AG219:AO219=1,$AG$4:$AO$4,\"\")))","v":"Increased or improved investment in climate-related projects/assets"},"Percentage",0,0,0,0,0,0,0,0,0,0,0,0,0,0,0,0,0,0,0,0,0,0,0,0,0,0,0,1,0,0,0,0,0,0,0,1,0]
[null,"TA216","ESG standards mainstreamed/adopted in climate finance","-",{"$f":"IF(_xlfn.TEXTJOIN(\"; \",TRUE,IF(AP220:AT220=1,$AP$4:$AT$4,\"\"))=\"\",\"ERROR\",_xlfn.TEXTJOIN(\"; \",TRUE,IF(AP220:AT220=1,$AP$4:$AT$4,\"\")))","v":"Outcome"},{"$f":"IF(_xlfn.TEXTJOIN(\"; \",TRUE,IF(J220:W220=1,$J$4:$W$4,\"\"))=\"\",\"-\",_xlfn.TEXTJOIN(\"; \",TRUE,IF(J220:W220=1,$J$4:$W$4,\"\")))","v":"-"},{"$f":"IF(_xlfn.TEXTJOIN(\"; \",TRUE,IF(X220:AF220=1,$X$4:$AF$4,\"\"))=\"\",\"-\",_xlfn.TEXTJOIN(\"; \",TRUE,IF(X220:AF220=1,$X$4:$AF$4,\"\")))","v":"-"},{"$f":"IF(_xlfn.TEXTJOIN(\"; \",TRUE,IF(AG220:AO220=1,$AG$4:$AO$4,\"\"))=\"\",\"-\",_xlfn.TEXTJOIN(\"; \",TRUE,IF(AG220:AO220=1,$AG$4:$AO$4,\"\")))","v":"Increased or improved investment in climate-related projects/assets"},"Yes/No",0,0,0,0,0,0,0,0,0,0,0,0,0,0,0,0,0,0,0,0,0,0,0,0,0,0,0,1,0,0,0,0,0,0,0,1,0]
[null,"TA217","Fund performs well compared to market indices","-",{"$f":"IF(_xlfn.TEXTJOIN(\"; \",TRUE,IF(AP221:AT221=1,$AP$4:$AT$4,\"\"))=\"\",\"ERROR\",_xlfn.TEXTJOIN(\"; \",TRUE,IF(AP221:AT221=1,$AP$4:$AT$4,\"\")))","v":"Outcome"},{"$f":"IF(_xlfn.TEXTJOIN(\"; \",TRUE,IF(J221:W221=1,$J$4:$W$4,\"\"))=\"\",\"-\",_xlfn.TEXTJOIN(\"; \",TRUE,IF(J221:W221=1,$J$4:$W$4,\"\")))","v":"-"},{"$f":"IF(_xlfn.TEXTJOIN(\"; \",TRUE,IF(X221:AF221=1,$X$4:$AF$4,\"\"))=\"\",\"-\",_xlfn.TEXTJOIN(\"; \",TRUE,IF(X221:AF221=1,$X$4:$AF$4,\"\")))","v":"-"},{"$f":"IF(_xlfn.TEXTJOIN(\"; \",TRUE,IF(AG221:AO221=1,$AG$4:$AO$4,\"\"))=\"\",\"-\",_xlfn.TEXTJOIN(\"; \",TRUE,IF(AG221:AO221=1,$AG$4:$AO$4,\"\")))","v":"Increased or improved investment in climate-related projects/assets"},"Number",0,0,0,0,0,0,0,0,0,0,0,0,0,0,0,0,0,0,0,0,0,0,0,0,0,0,0,1,0,0,0,0,0,0,0,1,0]
[null,"TA218","Amount of additional investment/finance available (due to the programme support)","-",{"$f":"IF(_xlfn.TEXTJOIN(\"; \",TRUE,IF(AP222:AT222=1,$AP$4:$AT$4,\"\"))=\"\",\"ERROR\",_xlfn.TEXTJOIN(\"; \",TRUE,IF(AP222:AT222=1,$AP$4:$AT$4,\"\")))","v":"Outcome"},{"$f":"IF(_xlfn.TEXTJOIN(\"; \",TRUE,IF(J222:W222=1,$J$4:$W$4,\"\"))=\"\",\"-\",_xlfn.TEXTJOIN(\"; \",TRUE,IF(J222:W222=1,$J$4:$W$4,\"\")))","v":"-"},{"$f":"IF(_xlfn.TEXTJOIN(\"; \",TRUE,IF(X222:AF222=1,$X$4:$AF$4,\"\"))=\"\",\"-\",_xlfn.TEXTJOIN(\"; \",TRUE,IF(X222:AF222=1,$X$4:$AF$4,\"\")))","v":"-"},{"$f":"IF(_xlfn.TEXTJOIN(\"; \",TRUE,IF(AG222:AO222=1,$AG$4:$AO$4,\"\"))=\"\",\"-\",_xlfn.TEXTJOIN(\"; \",TRUE,IF(AG222:AO222=1,$AG$4:$AO$4,\"\")))","v":"Increased or improved investment in climate-related projects/assets"},"Number",0,0,0,0,0,0,0,0,0,0,0,0,0,0,0,0,0,0,0,0,0,0,0,0,0,0,0,1,0,0,0,0,0,0,0,1,0]
[null,"TA219","Number of projects in operation","-",{"$f":"IF(_xlfn.TEXTJOIN(\"; \",TRUE,IF(AP223:AT223=1,$AP$4:$AT$4,\"\"))=\"\",\"ERROR\",_xlfn.TEXTJOIN(\"; \",TRUE,IF(AP223:AT223=1,$AP$4:$AT$4,\"\")))","v":"Outcome"},{"$f":"IF(_xlfn.TEXTJOIN(\"; \",TRUE,IF(J223:W223=1,$J$4:$W$4,\"\"))=\"\",\"-\",_xlfn.TEXTJOIN(\"; \",TRUE,IF(J223:W223=1,$J$4:$W$4,\"\")))","v":"-"},{"$f":"IF(_xlfn.TEXTJOIN(\"; \",TRUE,IF(X223:AF223=1,$X$4:$AF$4,\"\"))=\"\",\"-\",_xlfn.TEXTJOIN(\"; \",TRUE,IF(X223:AF223=1,$X$4:$AF$4,\"\")))","v":"-"},{"$f":"IF(_xlfn.TEXTJOIN(\"; \",TRUE,IF(AG223:AO223=1,$AG$4:$AO$4,\"\"))=\"\",\"-\",_xlfn.TEXTJOIN(\"; \",TRUE,IF(AG223:AO223=1,$AG$4:$AO$4,\"\")))","v":"Increased or improved investment in climate-related projects/assets"},"Number",0,0,0,0,0,0,0,0,0,0,0,0,0,0,0,0,0,0,0,0,0,0,0,0,0,0,0,1,0,0,0,0,0,0,0,1,0]
[null,"TA220","Number of projects developed/in operation","-",{"$f":"IF(_xlfn.TEXTJOIN(\"; \",TRUE,IF(AP224:AT224=1,$AP$4:$AT$4,\"\"))=\"\",\"ERROR\",_xlfn.TEXTJOIN(\"; \",TRUE,IF(AP224:AT224=1,$AP$4:$AT$4,\"\")))","v":"Outcome"},{"$f":"IF(_xlfn.TEXTJOIN(\"; \",TRUE,IF(J224:W224=1,$J$4:$W$4,\"\"))=\"\",\"-\",_xlfn.TEXTJOIN(\"; \",TRUE,IF(J224:W224=1,$J$4:$W$4,\"\")))","v":"-"},{"$f":"IF(_xlfn.TEXTJOIN(\"; \",TRUE,IF(X224:AF224=1,$X$4:$AF$4,\"\"))=\"\",\"-\",_xlfn.TEXTJOIN(\"; \",TRUE,IF(X224:AF224=1,$X$4:$AF$4,\"\")))","v":"-"},{"$f":"IF(_xlfn.TEXTJOIN(\"; \",TRUE,IF(AG224:AO224=1,$AG$4:$AO$4,\"\"))=\"\",\"-\",_xlfn.TEXTJOIN(\"; \",TRUE,IF(AG224:AO224=1,$AG$4:$AO$4,\"\")))","v":"Increased or improved investment in climate-related projects/assets"},"Number",0,0,0,0,0,0,0,0,0,0,0,0,0,0,0,0,0,0,0,0,0,0,0,0,0,0,0,1,0,0,0,0,0,0,0,1,0]
[null,"TA221","Number of projects that receive additional investment","-",{"$f":"IF(_xlfn.TEXTJOIN(\"; \",TRUE,IF(AP225:AT225=1,$AP$4:$AT$4,\"\"))=\"\",\"ERROR\",_xlfn.TEXTJOIN(\"; \",TRUE,IF(AP225:AT225=1,$AP$4:$AT$4,\"\")))","v":"Outcome"},{"$f":"IF(_xlfn.TEXTJOIN(\"; \",TRUE,IF(J225:W225=1,$J$4:$W$4,\"\"))=\"\",\"-\",_xlfn.TEXTJOIN(\"; \",TRUE,IF(J225:W225=1,$J$4:$W$4,\"\")))","v":"-"},{"$f":"IF(_xlfn.TEXTJOIN(\"; \",TRUE,IF(X225:AF225=1,$X$4:$AF$4,\"\"))=\"\",\"-\",_xlfn.TEXTJOIN(\"; \",TRUE,IF(X225:AF225=1,$X$4:$AF$4,\"\")))","v":"-"},{"$f":"IF(_xlfn.TEXTJOIN(\"; \",TRUE,IF(AG225:AO225=1,$AG$4:$AO$4,\"\"))=\"\",\"-\",_xlfn.TEXTJOIN(\"; \",TRUE,IF(AG225:AO225=1,$AG$4:$AO$4,\"\")))","v":"Increased or improved investment in climate-related projects/assets"},"Number",0,0,0,0,0,0,0,0,0,0,0,0,0,0,0,0,0,0,0,0,0,0,0,0,0,0,0,1,0,0,0,0,0,0,0,1,0]
[null,"TA222","Number of direct jobs created as result of support to investment","-",{"$f":"IF(_xlfn.TEXTJOIN(\"; \",TRUE,IF(AP226:AT226=1,$AP$4:$AT$4,\"\"))=\"\",\"ERROR\",_xlfn.TEXTJOIN(\"; \",TRUE,IF(AP226:AT226=1,$AP$4:$AT$4,\"\")))","v":"Outcome"},{"$f":"IF(_xlfn.TEXTJOIN(\"; \",TRUE,IF(J226:W226=1,$J$4:$W$4,\"\"))=\"\",\"-\",_xlfn.TEXTJOIN(\"; \",TRUE,IF(J226:W226=1,$J$4:$W$4,\"\")))","v":"-"},{"$f":"IF(_xlfn.TEXTJOIN(\"; \",TRUE,IF(X226:AF226=1,$X$4:$AF$4,\"\"))=\"\",\"-\",_xlfn.TEXTJOIN(\"; \",TRUE,IF(X226:AF226=1,$X$4:$AF$4,\"\")))","v":"-"},{"$f":"IF(_xlfn.TEXTJOIN(\"; \",TRUE,IF(AG226:AO226=1,$AG$4:$AO$4,\"\"))=\"\",\"-\",_xlfn.TEXTJOIN(\"; \",TRUE,IF(AG226:AO226=1,$AG$4:$AO$4,\"\")))","v":"Increased or improved investment in climate-related projects/assets"},"Number",0,0,0,0,0,0,0,0,0,0,0,0,0,0,0,0,0,0,0,0,0,0,0,0,0,0,0,1,0,0,0,0,0,0,0,1,0]
[null,"TA223","Amount of available finance assessed by the government","-",{"$f":"IF(_xlfn.TEXTJOIN(\"; \",TRUE,IF(AP227:AT227=1,$AP$4:$AT$4,\"\"))=\"\",\"ERROR\",_xlfn.TEXTJOIN(\"; \",TRUE,IF(AP227:AT227=1,$AP$4:$AT$4,\"\")))","v":"Outcome"},{"$f":"IF(_xlfn.TEXTJOIN(\"; \",TRUE,IF(J227:W227=1,$J$4:$W$4,\"\"))=\"\",\"-\",_xlfn.TEXTJOIN(\"; \",TRUE,IF(J227:W227=1,$J$4:$W$4,\"\")))","v":"-"},{"$f":"IF(_xlfn.TEXTJOIN(\"; \",TRUE,IF(X227:AF227=1,$X$4:$AF$4,\"\"))=\"\",\"-\",_xlfn.TEXTJOIN(\"; \",TRUE,IF(X227:AF227=1,$X$4:$AF$4,\"\")))","v":"-"},{"$f":"IF(_xlfn.TEXTJOIN(\"; \",TRUE,IF(AG227:AO227=1,$AG$4:$AO$4,\"\"))=\"\",\"-\",_xlfn.TEXTJOIN(\"; \",TRUE,IF(AG227:AO227=1,$AG$4:$AO$4,\"\")))","v":"Increased or improved investment in climate-related projects/assets"},"Number",0,0,0,0,0,0,0,0,0,0,0,0,0,0,0,0,0,0,0,0,0,0,0,0,0,0,0,1,0,0,0,0,0,0,0,1,0]
[null,"TA224","Annual investment in certain area","-",{"$f":"IF(_xlfn.TEXTJOIN(\"; \",TRUE,IF(AP228:AT228=1,$AP$4:$AT$4,\"\"))=\"\",\"ERROR\",_xlfn.TEXTJOIN(\"; \",TRUE,IF(AP228:AT228=1,$AP$4:$AT$4,\"\")))","v":"Outcome"},{"$f":"IF(_xlfn.TEXTJOIN(\"; \",TRUE,IF(J228:W228=1,$J$4:$W$4,\"\"))=\"\",\"-\",_xlfn.TEXTJOIN(\"; \",TRUE,IF(J228:W228=1,$J$4:$W$4,\"\")))","v":"-"},{"$f":"IF(_xlfn.TEXTJOIN(\"; \",TRUE,IF(X228:AF228=1,$X$4:$AF$4,\"\"))=\"\",\"-\",_xlfn.TEXTJOIN(\"; \",TRUE,IF(X228:AF228=1,$X$4:$AF$4,\"\")))","v":"-"},{"$f":"IF(_xlfn.TEXTJOIN(\"; \",TRUE,IF(AG228:AO228=1,$AG$4:$AO$4,\"\"))=\"\",\"-\",_xlfn.TEXTJOIN(\"; \",TRUE,IF(AG228:AO228=1,$AG$4:$AO$4,\"\")))","v":"Increased or improved investment in climate-related projects/assets"},"Number",0,0,0,0,0,0,0,0,0,0,0,0,0,0,0,0,0,0,0,0,0,0,0,0,0,0,0,1,0,0,0,0,0,0,0,1,0]
[null,"TA225","The investment selected by the authorities contributes to the identified climate goal","-",{"$f":"IF(_xlfn.TEXTJOIN(\"; \",TRUE,IF(AP229:AT229=1,$AP$4:$AT$4,\"\"))=\"\",\"ERROR\",_xlfn.TEXTJOIN(\"; \",TRUE,IF(AP229:AT229=1,$AP$4:$AT$4,\"\")))","v":"Outcome"},{"$f":"IF(_xlfn.TEXTJOIN(\"; \",TRUE,IF(J229:W229=1,$J$4:$W$4,\"\"))=\"\",\"-\",_xlfn.TEXTJOIN(\"; \",TRUE,IF(J229:W229=1,$J$4:$W$4,\"\")))","v":"-"},{"$f":"IF(_xlfn.TEXTJOIN(\"; \",TRUE,IF(X229:AF229=1,$X$4:$AF$4,\"\"))=\"\",\"-\",_xlfn.TEXTJOIN(\"; \",TRUE,IF(X229:AF229=1,$X$4:$AF$4,\"\")))","v":"-"},{"$f":"IF(_xlfn.TEXTJOIN(\"; \",TRUE,IF(AG229:AO229=1,$AG$4:$AO$4,\"\"))=\"\",\"-\",_xlfn.TEXTJOIN(\"; \",TRUE,IF(AG229:AO229=1,$AG$4:$AO$4,\"\")))","v":"Increased or improved investment in climate-related projects/assets"},"Yes/No",0,0,0,0,0,0,0,0,0,0,0,0,0,0,0,0,0,0,0,0,0,0,0,0,0,0,0,1,0,0,0,0,0,0,0,1,0]
[null,"TA226","Unit/project takes lessons learned into account","-",{"$f":"IF(_xlfn.TEXTJOIN(\"; \",TRUE,IF(AP230:AT230=1,$AP$4:$AT$4,\"\"))=\"\",\"ERROR\",_xlfn.TEXTJOIN(\"; \",TRUE,IF(AP230:AT230=1,$AP$4:$AT$4,\"\")))","v":"Output"},{"$f":"IF(_xlfn.TEXTJOIN(\"; \",TRUE,IF(J230:W230=1,$J$4:$W$4,\"\"))=\"\",\"-\",_xlfn.TEXTJOIN(\"; \",TRUE,IF(J230:W230=1,$J$4:$W$4,\"\")))","v":"-"},{"$f":"IF(_xlfn.TEXTJOIN(\"; \",TRUE,IF(X230:AF230=1,$X$4:$AF$4,\"\"))=\"\",\"-\",_xlfn.TEXTJOIN(\"; \",TRUE,IF(X230:AF230=1,$X$4:$AF$4,\"\")))","v":"Process/asset operation support"},{"$f":"IF(_xlfn.TEXTJOIN(\"; \",TRUE,IF(AG230:AO230=1,$AG$4:$AO$4,\"\"))=\"\",\"-\",_xlfn.TEXTJOIN(\"; \",TRUE,IF(AG230:AO230=1,$AG$4:$AO$4,\"\")))","v":"-"},"Narrative",0,0,0,0,0,0,0,0,0,0,0,0,0,0,0,0,0,0,0,0,1,0,0,0,0,0,0,0,0,0,0,0,0,0,1,0,0]
[null,"TA227","MRV system is operational","-",{"$f":"IF(_xlfn.TEXTJOIN(\"; \",TRUE,IF(AP231:AT231=1,$AP$4:$AT$4,\"\"))=\"\",\"ERROR\",_xlfn.TEXTJOIN(\"; \",TRUE,IF(AP231:AT231=1,$AP$4:$AT$4,\"\")))","v":"Outcome"},{"$f":"IF(_xlfn.TEXTJOIN(\"; \",TRUE,IF(J231:W231=1,$J$4:$W$4,\"\"))=\"\",\"-\",_xlfn.TEXTJOIN(\"; \",TRUE,IF(J231:W231=1,$J$4:$W$4,\"\")))","v":"-"},{"$f":"IF(_xlfn.TEXTJOIN(\"; \",TRUE,IF(X231:AF231=1,$X$4:$AF$4,\"\"))=\"\",\"-\",_xlfn.TEXTJOIN(\"; \",TRUE,IF(X231:AF231=1,$X$4:$AF$4,\"\")))","v":"-"},{"$f":"IF(_xlfn.TEXTJOIN(\"; \",TRUE,IF(AG231:AO231=1,$AG$4:$AO$4,\"\"))=\"\",\"-\",_xlfn.TEXTJOIN(\"; \",TRUE,IF(AG231:AO231=1,$AG$4:$AO$4,\"\")))","v":"Increased or improved policy development or execution; Improved operation of processes or assets (inc. e.g. electricity grid stability, agricultural livelihoods, forest management)"},"Yes/No",0,0,0,0,0,0,0,0,0,0,0,0,0,0,0,0,0,0,0,0,0,0,0,1,0,0,0,0,1,0,0,0,0,0,0,1,0]
[null,"TA228","Number of people/area of land that benefits from improved operation","-",{"$f":"IF(_xlfn.TEXTJOIN(\"; \",TRUE,IF(AP232:AT232=1,$AP$4:$AT$4,\"\"))=\"\",\"ERROR\",_xlfn.TEXTJOIN(\"; \",TRUE,IF(AP232:AT232=1,$AP$4:$AT$4,\"\")))","v":"Outcome"},{"$f":"IF(_xlfn.TEXTJOIN(\"; \",TRUE,IF(J232:W232=1,$J$4:$W$4,\"\"))=\"\",\"-\",_xlfn.TEXTJOIN(\"; \",TRUE,IF(J232:W232=1,$J$4:$W$4,\"\")))","v":"-"},{"$f":"IF(_xlfn.TEXTJOIN(\"; \",TRUE,IF(X232:AF232=1,$X$4:$AF$4,\"\"))=\"\",\"-\",_xlfn.TEXTJOIN(\"; \",TRUE,IF(X232:AF232=1,$X$4:$AF$4,\"\")))","v":"-"},{"$f":"IF(_xlfn.TEXTJOIN(\"; \",TRUE,IF(AG232:AO232=1,$AG$4:$AO$4,\"\"))=\"\",\"-\",_xlfn.TEXTJOIN(\"; \",TRUE,IF(AG232:AO232=1,$AG$4:$AO$4,\"\")))","v":"Improved operation of processes or assets (inc. e.g. electricity grid stability, agricultural livelihoods, forest management)"},"Number",0,0,0,0,0,0,0,0,0,0,0,0,0,0,0,0,0,0,0,0,0,0,0,0,0,0,0,0,1,0,0,0,0,0,0,1,0]
[null,"TA229","Area covered by improved operation","-",{"$f":"IF(_xlfn.TEXTJOIN(\"; \",TRUE,IF(AP233:AT233=1,$AP$4:$AT$4,\"\"))=\"\",\"ERROR\",_xlfn.TEXTJOIN(\"; \",TRUE,IF(AP233:AT233=1,$AP$4:$AT$4,\"\")))","v":"Outcome"},{"$f":"IF(_xlfn.TEXTJOIN(\"; \",TRUE,IF(J233:W233=1,$J$4:$W$4,\"\"))=\"\",\"-\",_xlfn.TEXTJOIN(\"; \",TRUE,IF(J233:W233=1,$J$4:$W$4,\"\")))","v":"-"},{"$f":"IF(_xlfn.TEXTJOIN(\"; \",TRUE,IF(X233:AF233=1,$X$4:$AF$4,\"\"))=\"\",\"-\",_xlfn.TEXTJOIN(\"; \",TRUE,IF(X233:AF233=1,$X$4:$AF$4,\"\")))","v":"-"},{"$f":"IF(_xlfn.TEXTJOIN(\"; \",TRUE,IF(AG233:AO233=1,$AG$4:$AO$4,\"\"))=\"\",\"-\",_xlfn.TEXTJOIN(\"; \",TRUE,IF(AG233:AO233=1,$AG$4:$AO$4,\"\")))","v":"Improved operation of processes or assets (inc. e.g. electricity grid stability, agricultural livelihoods, forest management)"},"Number",0,0,0,0,0,0,0,0,0,0,0,0,0,0,0,0,0,0,0,0,0,0,0,0,0,0,0,0,1,0,0,0,0,0,0,1,0]
[null,"TA230","Number of instruments designed to improve operations","-",{"$f":"IF(_xlfn.TEXTJOIN(\"; \",TRUE,IF(AP234:AT234=1,$AP$4:$AT$4,\"\"))=\"\",\"ERROR\",_xlfn.TEXTJOIN(\"; \",TRUE,IF(AP234:AT234=1,$AP$4:$AT$4,\"\")))","v":"Output"},{"$f":"IF(_xlfn.TEXTJOIN(\"; \",TRUE,IF(J234:W234=1,$J$4:$W$4,\"\"))=\"\",\"-\",_xlfn.TEXTJOIN(\"; \",TRUE,IF(J234:W234=1,$J$4:$W$4,\"\")))","v":"-"},{"$f":"IF(_xlfn.TEXTJOIN(\"; \",TRUE,IF(X234:AF234=1,$X$4:$AF$4,\"\"))=\"\",\"-\",_xlfn.TEXTJOIN(\"; \",TRUE,IF(X234:AF234=1,$X$4:$AF$4,\"\")))","v":"Process/asset operation support"},{"$f":"IF(_xlfn.TEXTJOIN(\"; \",TRUE,IF(AG234:AO234=1,$AG$4:$AO$4,\"\"))=\"\",\"-\",_xlfn.TEXTJOIN(\"; \",TRUE,IF(AG234:AO234=1,$AG$4:$AO$4,\"\")))","v":"-"},"Number",0,0,0,0,0,0,0,0,0,0,0,0,0,0,0,0,0,0,0,0,1,0,0,0,0,0,0,0,0,0,0,0,0,0,1,0,0]
[null,"TA231","Number of alliances established with key stakeholders","-",{"$f":"IF(_xlfn.TEXTJOIN(\"; \",TRUE,IF(AP235:AT235=1,$AP$4:$AT$4,\"\"))=\"\",\"ERROR\",_xlfn.TEXTJOIN(\"; \",TRUE,IF(AP235:AT235=1,$AP$4:$AT$4,\"\")))","v":"Output"},{"$f":"IF(_xlfn.TEXTJOIN(\"; \",TRUE,IF(J235:W235=1,$J$4:$W$4,\"\"))=\"\",\"-\",_xlfn.TEXTJOIN(\"; \",TRUE,IF(J235:W235=1,$J$4:$W$4,\"\")))","v":"-"},{"$f":"IF(_xlfn.TEXTJOIN(\"; \",TRUE,IF(X235:AF235=1,$X$4:$AF$4,\"\"))=\"\",\"-\",_xlfn.TEXTJOIN(\"; \",TRUE,IF(X235:AF235=1,$X$4:$AF$4,\"\")))","v":"Process/asset operation support"},{"$f":"IF(_xlfn.TEXTJOIN(\"; \",TRUE,IF(AG235:AO235=1,$AG$4:$AO$4,\"\"))=\"\",\"-\",_xlfn.TEXTJOIN(\"; \",TRUE,IF(AG235:AO235=1,$AG$4:$AO$4,\"\")))","v":"-"},"Number",0,0,0,0,0,0,0,0,0,0,0,0,0,0,0,0,0,0,0,0,1,0,0,0,0,0,0,0,0,0,0,0,0,0,1,0,0]
[null,"TA232","Number of people not participating in programme using programme outputs (spillovers)","-",{"$f":"IF(_xlfn.TEXTJOIN(\"; \",TRUE,IF(AP236:AT236=1,$AP$4:$AT$4,\"\"))=\"\",\"ERROR\",_xlfn.TEXTJOIN(\"; \",TRUE,IF(AP236:AT236=1,$AP$4:$AT$4,\"\")))","v":"Uptake"},{"$f":"IF(_xlfn.TEXTJOIN(\"; \",TRUE,IF(J236:W236=1,$J$4:$W$4,\"\"))=\"\",\"-\",_xlfn.TEXTJOIN(\"; \",TRUE,IF(J236:W236=1,$J$4:$W$4,\"\")))","v":"Specialist research, inc. market / policy / legal / regulatory / technology research briefs"},{"$f":"IF(_xlfn.TEXTJOIN(\"; \",TRUE,IF(X236:AF236=1,$X$4:$AF$4,\"\"))=\"\",\"-\",_xlfn.TEXTJOIN(\"; \",TRUE,IF(X236:AF236=1,$X$4:$AF$4,\"\")))","v":"-"},{"$f":"IF(_xlfn.TEXTJOIN(\"; \",TRUE,IF(AG236:AO236=1,$AG$4:$AO$4,\"\"))=\"\",\"-\",_xlfn.TEXTJOIN(\"; \",TRUE,IF(AG236:AO236=1,$AG$4:$AO$4,\"\")))","v":"-"},"Number",0,0,0,0,1,0,0,0,0,0,0,0,0,0,0,0,0,0,0,0,0,0,0,0,0,0,0,0,0,0,0,0,0,1,0,0,0]
[null,"TA233","Country features in international rankings","-",{"$f":"IF(_xlfn.TEXTJOIN(\"; \",TRUE,IF(AP237:AT237=1,$AP$4:$AT$4,\"\"))=\"\",\"ERROR\",_xlfn.TEXTJOIN(\"; \",TRUE,IF(AP237:AT237=1,$AP$4:$AT$4,\"\")))","v":"Outcome"},{"$f":"IF(_xlfn.TEXTJOIN(\"; \",TRUE,IF(J237:W237=1,$J$4:$W$4,\"\"))=\"\",\"-\",_xlfn.TEXTJOIN(\"; \",TRUE,IF(J237:W237=1,$J$4:$W$4,\"\")))","v":"-"},{"$f":"IF(_xlfn.TEXTJOIN(\"; \",TRUE,IF(X237:AF237=1,$X$4:$AF$4,\"\"))=\"\",\"-\",_xlfn.TEXTJOIN(\"; \",TRUE,IF(X237:AF237=1,$X$4:$AF$4,\"\")))","v":"-"},{"$f":"IF(_xlfn.TEXTJOIN(\"; \",TRUE,IF(AG237:AO237=1,$AG$4:$AO$4,\"\"))=\"\",\"-\",_xlfn.TEXTJOIN(\"; \",TRUE,IF(AG237:AO237=1,$AG$4:$AO$4,\"\")))","v":"Improved operation of processes or assets (inc. e.g. electricity grid stability, agricultural livelihoods, forest management)"},"Yes/No",0,0,0,0,0,0,0,0,0,0,0,0,0,0,0,0,0,0,0,0,0,0,0,0,0,0,0,0,1,0,0,0,0,0,0,1,0]
[null,"TA234","Reduction in average time needed to process certain operations","-",{"$f":"IF(_xlfn.TEXTJOIN(\"; \",TRUE,IF(AP238:AT238=1,$AP$4:$AT$4,\"\"))=\"\",\"ERROR\",_xlfn.TEXTJOIN(\"; \",TRUE,IF(AP238:AT238=1,$AP$4:$AT$4,\"\")))","v":"Outcome"},{"$f":"IF(_xlfn.TEXTJOIN(\"; \",TRUE,IF(J238:W238=1,$J$4:$W$4,\"\"))=\"\",\"-\",_xlfn.TEXTJOIN(\"; \",TRUE,IF(J238:W238=1,$J$4:$W$4,\"\")))","v":"-"},{"$f":"IF(_xlfn.TEXTJOIN(\"; \",TRUE,IF(X238:AF238=1,$X$4:$AF$4,\"\"))=\"\",\"-\",_xlfn.TEXTJOIN(\"; \",TRUE,IF(X238:AF238=1,$X$4:$AF$4,\"\")))","v":"-"},{"$f":"IF(_xlfn.TEXTJOIN(\"; \",TRUE,IF(AG238:AO238=1,$AG$4:$AO$4,\"\"))=\"\",\"-\",_xlfn.TEXTJOIN(\"; \",TRUE,IF(AG238:AO238=1,$AG$4:$AO$4,\"\")))","v":"Improved operation of processes or assets (inc. e.g. electricity grid stability, agricultural livelihoods, forest management)"},"Number",0,0,0,0,0,0,0,0,0,0,0,0,0,0,0,0,0,0,0,0,0,0,0,0,0,0,0,0,1,0,0,0,0,0,0,1,0]
[null,"TA235","Units that reduce average time needed to process certain operation beyond a certain threshold","-",{"$f":"IF(_xlfn.TEXTJOIN(\"; \",TRUE,IF(AP239:AT239=1,$AP$4:$AT$4,\"\"))=\"\",\"ERROR\",_xlfn.TEXTJOIN(\"; \",TRUE,IF(AP239:AT239=1,$AP$4:$AT$4,\"\")))","v":"Outcome"},{"$f":"IF(_xlfn.TEXTJOIN(\"; \",TRUE,IF(J239:W239=1,$J$4:$W$4,\"\"))=\"\",\"-\",_xlfn.TEXTJOIN(\"; \",TRUE,IF(J239:W239=1,$J$4:$W$4,\"\")))","v":"-"},{"$f":"IF(_xlfn.TEXTJOIN(\"; \",TRUE,IF(X239:AF239=1,$X$4:$AF$4,\"\"))=\"\",\"-\",_xlfn.TEXTJOIN(\"; \",TRUE,IF(X239:AF239=1,$X$4:$AF$4,\"\")))","v":"-"},{"$f":"IF(_xlfn.TEXTJOIN(\"; \",TRUE,IF(AG239:AO239=1,$AG$4:$AO$4,\"\"))=\"\",\"-\",_xlfn.TEXTJOIN(\"; \",TRUE,IF(AG239:AO239=1,$AG$4:$AO$4,\"\")))","v":"Improved operation of processes or assets (inc. e.g. electricity grid stability, agricultural livelihoods, forest management)"},"Yes/No",0,0,0,0,0,0,0,0,0,0,0,0,0,0,0,0,0,0,0,0,0,0,0,0,0,0,0,0,1,0,0,0,0,0,0,1,0]
[null,"TA236","Reduction in accidents, damage or hazardous events","-",{"$f":"IF(_xlfn.TEXTJOIN(\"; \",TRUE,IF(AP240:AT240=1,$AP$4:$AT$4,\"\"))=\"\",\"ERROR\",_xlfn.TEXTJOIN(\"; \",TRUE,IF(AP240:AT240=1,$AP$4:$AT$4,\"\")))","v":"Outcome"},{"$f":"IF(_xlfn.TEXTJOIN(\"; \",TRUE,IF(J240:W240=1,$J$4:$W$4,\"\"))=\"\",\"-\",_xlfn.TEXTJOIN(\"; \",TRUE,IF(J240:W240=1,$J$4:$W$4,\"\")))","v":"-"},{"$f":"IF(_xlfn.TEXTJOIN(\"; \",TRUE,IF(X240:AF240=1,$X$4:$AF$4,\"\"))=\"\",\"-\",_xlfn.TEXTJOIN(\"; \",TRUE,IF(X240:AF240=1,$X$4:$AF$4,\"\")))","v":"-"},{"$f":"IF(_xlfn.TEXTJOIN(\"; \",TRUE,IF(AG240:AO240=1,$AG$4:$AO$4,\"\"))=\"\",\"-\",_xlfn.TEXTJOIN(\"; \",TRUE,IF(AG240:AO240=1,$AG$4:$AO$4,\"\")))","v":"Improved operation of processes or assets (inc. e.g. electricity grid stability, agricultural livelihoods, forest management)"},"Number",0,0,0,0,0,0,0,0,0,0,0,0,0,0,0,0,0,0,0,0,0,0,0,0,0,0,0,0,1,0,0,0,0,0,0,1,0]
[null,"TA237","Evidence of data-driven decision-making","-",{"$f":"IF(_xlfn.TEXTJOIN(\"; \",TRUE,IF(AP241:AT241=1,$AP$4:$AT$4,\"\"))=\"\",\"ERROR\",_xlfn.TEXTJOIN(\"; \",TRUE,IF(AP241:AT241=1,$AP$4:$AT$4,\"\")))","v":"Output"},{"$f":"IF(_xlfn.TEXTJOIN(\"; \",TRUE,IF(J241:W241=1,$J$4:$W$4,\"\"))=\"\",\"-\",_xlfn.TEXTJOIN(\"; \",TRUE,IF(J241:W241=1,$J$4:$W$4,\"\")))","v":"-"},{"$f":"IF(_xlfn.TEXTJOIN(\"; \",TRUE,IF(X241:AF241=1,$X$4:$AF$4,\"\"))=\"\",\"-\",_xlfn.TEXTJOIN(\"; \",TRUE,IF(X241:AF241=1,$X$4:$AF$4,\"\")))","v":"Process/asset operation support"},{"$f":"IF(_xlfn.TEXTJOIN(\"; \",TRUE,IF(AG241:AO241=1,$AG$4:$AO$4,\"\"))=\"\",\"-\",_xlfn.TEXTJOIN(\"; \",TRUE,IF(AG241:AO241=1,$AG$4:$AO$4,\"\")))","v":"-"},"Narrative",0,0,0,0,0,0,0,0,0,0,0,0,0,0,0,0,0,0,0,0,1,0,0,0,0,0,0,0,0,0,0,0,0,0,1,0,0]
[null,"TA238","Perception of stakeholders that operation are run well","-",{"$f":"IF(_xlfn.TEXTJOIN(\"; \",TRUE,IF(AP242:AT242=1,$AP$4:$AT$4,\"\"))=\"\",\"ERROR\",_xlfn.TEXTJOIN(\"; \",TRUE,IF(AP242:AT242=1,$AP$4:$AT$4,\"\")))","v":"Outcome"},{"$f":"IF(_xlfn.TEXTJOIN(\"; \",TRUE,IF(J242:W242=1,$J$4:$W$4,\"\"))=\"\",\"-\",_xlfn.TEXTJOIN(\"; \",TRUE,IF(J242:W242=1,$J$4:$W$4,\"\")))","v":"-"},{"$f":"IF(_xlfn.TEXTJOIN(\"; \",TRUE,IF(X242:AF242=1,$X$4:$AF$4,\"\"))=\"\",\"-\",_xlfn.TEXTJOIN(\"; \",TRUE,IF(X242:AF242=1,$X$4:$AF$4,\"\")))","v":"-"},{"$f":"IF(_xlfn.TEXTJOIN(\"; \",TRUE,IF(AG242:AO242=1,$AG$4:$AO$4,\"\"))=\"\",\"-\",_xlfn.TEXTJOIN(\"; \",TRUE,IF(AG242:AO242=1,$AG$4:$AO$4,\"\")))","v":"Improved operation of processes or assets (inc. e.g. electricity grid stability, agricultural livelihoods, forest management)"},"Yes/No",0,0,0,0,0,0,0,0,0,0,0,0,0,0,0,0,0,0,0,0,0,0,0,0,0,0,0,0,1,0,0,0,0,0,0,1,0]
[null,"TA239","Percentage increase of resilient infrastructure","-",{"$f":"IF(_xlfn.TEXTJOIN(\"; \",TRUE,IF(AP243:AT243=1,$AP$4:$AT$4,\"\"))=\"\",\"ERROR\",_xlfn.TEXTJOIN(\"; \",TRUE,IF(AP243:AT243=1,$AP$4:$AT$4,\"\")))","v":"Outcome"},{"$f":"IF(_xlfn.TEXTJOIN(\"; \",TRUE,IF(J243:W243=1,$J$4:$W$4,\"\"))=\"\",\"-\",_xlfn.TEXTJOIN(\"; \",TRUE,IF(J243:W243=1,$J$4:$W$4,\"\")))","v":"-"},{"$f":"IF(_xlfn.TEXTJOIN(\"; \",TRUE,IF(X243:AF243=1,$X$4:$AF$4,\"\"))=\"\",\"-\",_xlfn.TEXTJOIN(\"; \",TRUE,IF(X243:AF243=1,$X$4:$AF$4,\"\")))","v":"-"},{"$f":"IF(_xlfn.TEXTJOIN(\"; \",TRUE,IF(AG243:AO243=1,$AG$4:$AO$4,\"\"))=\"\",\"-\",_xlfn.TEXTJOIN(\"; \",TRUE,IF(AG243:AO243=1,$AG$4:$AO$4,\"\")))","v":"Improved operation of processes or assets (inc. e.g. electricity grid stability, agricultural livelihoods, forest management)"},"Percentage",0,0,0,0,0,0,0,0,0,0,0,0,0,0,0,0,0,0,0,0,0,0,0,0,0,0,0,0,1,0,0,0,0,0,0,1,0]
[null,"TA240","Percentage of installed units that are still operating at an acceptable level of eficiency after 1 year","Most applicable to specific technologies where efficiency can be measured on a technical basis",{"$f":"IF(_xlfn.TEXTJOIN(\"; \",TRUE,IF(AP244:AT244=1,$AP$4:$AT$4,\"\"))=\"\",\"ERROR\",_xlfn.TEXTJOIN(\"; \",TRUE,IF(AP244:AT244=1,$AP$4:$AT$4,\"\")))","v":"Outcome"},{"$f":"IF(_xlfn.TEXTJOIN(\"; \",TRUE,IF(J244:W244=1,$J$4:$W$4,\"\"))=\"\",\"-\",_xlfn.TEXTJOIN(\"; \",TRUE,IF(J244:W244=1,$J$4:$W$4,\"\")))","v":"-"},{"$f":"IF(_xlfn.TEXTJOIN(\"; \",TRUE,IF(X244:AF244=1,$X$4:$AF$4,\"\"))=\"\",\"-\",_xlfn.TEXTJOIN(\"; \",TRUE,IF(X244:AF244=1,$X$4:$AF$4,\"\")))","v":"-"},{"$f":"IF(_xlfn.TEXTJOIN(\"; \",TRUE,IF(AG244:AO244=1,$AG$4:$AO$4,\"\"))=\"\",\"-\",_xlfn.TEXTJOIN(\"; \",TRUE,IF(AG244:AO244=1,$AG$4:$AO$4,\"\")))","v":"Improved operation of processes or assets (inc. e.g. electricity grid stability, agricultural livelihoods, forest management)"},"Percentage",0,0,0,0,0,0,0,0,0,0,0,0,0,0,0,0,0,0,0,0,0,0,0,0,0,0,0,0,1,0,0,0,0,0,0,1,0]
[null,"TA241","Number of people that receive assistance compared to initially targeted group","-",{"$f":"IF(_xlfn.TEXTJOIN(\"; \",TRUE,IF(AP245:AT245=1,$AP$4:$AT$4,\"\"))=\"\",\"ERROR\",_xlfn.TEXTJOIN(\"; \",TRUE,IF(AP245:AT245=1,$AP$4:$AT$4,\"\")))","v":"Outcome"},{"$f":"IF(_xlfn.TEXTJOIN(\"; \",TRUE,IF(J245:W245=1,$J$4:$W$4,\"\"))=\"\",\"-\",_xlfn.TEXTJOIN(\"; \",TRUE,IF(J245:W245=1,$J$4:$W$4,\"\")))","v":"-"},{"$f":"IF(_xlfn.TEXTJOIN(\"; \",TRUE,IF(X245:AF245=1,$X$4:$AF$4,\"\"))=\"\",\"-\",_xlfn.TEXTJOIN(\"; \",TRUE,IF(X245:AF245=1,$X$4:$AF$4,\"\")))","v":"-"},{"$f":"IF(_xlfn.TEXTJOIN(\"; \",TRUE,IF(AG245:AO245=1,$AG$4:$AO$4,\"\"))=\"\",\"-\",_xlfn.TEXTJOIN(\"; \",TRUE,IF(AG245:AO245=1,$AG$4:$AO$4,\"\")))","v":"Improved operation of processes or assets (inc. e.g. electricity grid stability, agricultural livelihoods, forest management)"},"Number",0,0,0,0,0,0,0,0,0,0,0,0,0,0,0,0,0,0,0,0,0,0,0,0,0,0,0,0,1,0,0,0,0,0,0,1,0]
[null,"TA242","Number of policies/organisations where data is better used","-",{"$f":"IF(_xlfn.TEXTJOIN(\"; \",TRUE,IF(AP246:AT246=1,$AP$4:$AT$4,\"\"))=\"\",\"ERROR\",_xlfn.TEXTJOIN(\"; \",TRUE,IF(AP246:AT246=1,$AP$4:$AT$4,\"\")))","v":"Output"},{"$f":"IF(_xlfn.TEXTJOIN(\"; \",TRUE,IF(J246:W246=1,$J$4:$W$4,\"\"))=\"\",\"-\",_xlfn.TEXTJOIN(\"; \",TRUE,IF(J246:W246=1,$J$4:$W$4,\"\")))","v":"-"},{"$f":"IF(_xlfn.TEXTJOIN(\"; \",TRUE,IF(X246:AF246=1,$X$4:$AF$4,\"\"))=\"\",\"-\",_xlfn.TEXTJOIN(\"; \",TRUE,IF(X246:AF246=1,$X$4:$AF$4,\"\")))","v":"Process/asset operation support"},{"$f":"IF(_xlfn.TEXTJOIN(\"; \",TRUE,IF(AG246:AO246=1,$AG$4:$AO$4,\"\"))=\"\",\"-\",_xlfn.TEXTJOIN(\"; \",TRUE,IF(AG246:AO246=1,$AG$4:$AO$4,\"\")))","v":"-"},"Number",0,0,0,0,0,0,0,0,0,0,0,0,0,0,0,0,0,0,0,0,1,0,0,0,0,0,0,0,0,0,0,0,0,0,1,0,0]
[null,"TA243","Government delivers with automatic and clearly defined triggers","-",{"$f":"IF(_xlfn.TEXTJOIN(\"; \",TRUE,IF(AP247:AT247=1,$AP$4:$AT$4,\"\"))=\"\",\"ERROR\",_xlfn.TEXTJOIN(\"; \",TRUE,IF(AP247:AT247=1,$AP$4:$AT$4,\"\")))","v":"Outcome"},{"$f":"IF(_xlfn.TEXTJOIN(\"; \",TRUE,IF(J247:W247=1,$J$4:$W$4,\"\"))=\"\",\"-\",_xlfn.TEXTJOIN(\"; \",TRUE,IF(J247:W247=1,$J$4:$W$4,\"\")))","v":"-"},{"$f":"IF(_xlfn.TEXTJOIN(\"; \",TRUE,IF(X247:AF247=1,$X$4:$AF$4,\"\"))=\"\",\"-\",_xlfn.TEXTJOIN(\"; \",TRUE,IF(X247:AF247=1,$X$4:$AF$4,\"\")))","v":"-"},{"$f":"IF(_xlfn.TEXTJOIN(\"; \",TRUE,IF(AG247:AO247=1,$AG$4:$AO$4,\"\"))=\"\",\"-\",_xlfn.TEXTJOIN(\"; \",TRUE,IF(AG247:AO247=1,$AG$4:$AO$4,\"\")))","v":"Improved operation of processes or assets (inc. e.g. electricity grid stability, agricultural livelihoods, forest management)"},"Yes/No",0,0,0,0,0,0,0,0,0,0,0,0,0,0,0,0,0,0,0,0,0,0,0,0,0,0,0,0,1,0,0,0,0,0,0,1,0]
[null,"TA244","Savings achieved (compared to pre-intervention)","-",{"$f":"IF(_xlfn.TEXTJOIN(\"; \",TRUE,IF(AP248:AT248=1,$AP$4:$AT$4,\"\"))=\"\",\"ERROR\",_xlfn.TEXTJOIN(\"; \",TRUE,IF(AP248:AT248=1,$AP$4:$AT$4,\"\")))","v":"Outcome"},{"$f":"IF(_xlfn.TEXTJOIN(\"; \",TRUE,IF(J248:W248=1,$J$4:$W$4,\"\"))=\"\",\"-\",_xlfn.TEXTJOIN(\"; \",TRUE,IF(J248:W248=1,$J$4:$W$4,\"\")))","v":"-"},{"$f":"IF(_xlfn.TEXTJOIN(\"; \",TRUE,IF(X248:AF248=1,$X$4:$AF$4,\"\"))=\"\",\"-\",_xlfn.TEXTJOIN(\"; \",TRUE,IF(X248:AF248=1,$X$4:$AF$4,\"\")))","v":"-"},{"$f":"IF(_xlfn.TEXTJOIN(\"; \",TRUE,IF(AG248:AO248=1,$AG$4:$AO$4,\"\"))=\"\",\"-\",_xlfn.TEXTJOIN(\"; \",TRUE,IF(AG248:AO248=1,$AG$4:$AO$4,\"\")))","v":"Improved operation of processes or assets (inc. e.g. electricity grid stability, agricultural livelihoods, forest management)"},"Number",0,0,0,0,0,0,0,0,0,0,0,0,0,0,0,0,0,0,0,0,0,0,0,0,0,0,0,0,1,0,0,0,0,0,0,1,0]
[null,"TA245","Proposed system enhancement are implemented","-",{"$f":"IF(_xlfn.TEXTJOIN(\"; \",TRUE,IF(AP249:AT249=1,$AP$4:$AT$4,\"\"))=\"\",\"ERROR\",_xlfn.TEXTJOIN(\"; \",TRUE,IF(AP249:AT249=1,$AP$4:$AT$4,\"\")))","v":"Outcome"},{"$f":"IF(_xlfn.TEXTJOIN(\"; \",TRUE,IF(J249:W249=1,$J$4:$W$4,\"\"))=\"\",\"-\",_xlfn.TEXTJOIN(\"; \",TRUE,IF(J249:W249=1,$J$4:$W$4,\"\")))","v":"-"},{"$f":"IF(_xlfn.TEXTJOIN(\"; \",TRUE,IF(X249:AF249=1,$X$4:$AF$4,\"\"))=\"\",\"-\",_xlfn.TEXTJOIN(\"; \",TRUE,IF(X249:AF249=1,$X$4:$AF$4,\"\")))","v":"-"},{"$f":"IF(_xlfn.TEXTJOIN(\"; \",TRUE,IF(AG249:AO249=1,$AG$4:$AO$4,\"\"))=\"\",\"-\",_xlfn.TEXTJOIN(\"; \",TRUE,IF(AG249:AO249=1,$AG$4:$AO$4,\"\")))","v":"Improved operation of processes or assets (inc. e.g. electricity grid stability, agricultural livelihoods, forest management)"},"Yes/No",0,0,0,0,0,0,0,0,0,0,0,0,0,0,0,0,0,0,0,0,0,0,0,0,0,0,0,0,1,0,0,0,0,0,0,1,0]
[null,"TA246","Percentage of countries whose agencies improved quality and timeliness of (emergency) response","-",{"$f":"IF(_xlfn.TEXTJOIN(\"; \",TRUE,IF(AP250:AT250=1,$AP$4:$AT$4,\"\"))=\"\",\"ERROR\",_xlfn.TEXTJOIN(\"; \",TRUE,IF(AP250:AT250=1,$AP$4:$AT$4,\"\")))","v":"Outcome"},{"$f":"IF(_xlfn.TEXTJOIN(\"; \",TRUE,IF(J250:W250=1,$J$4:$W$4,\"\"))=\"\",\"-\",_xlfn.TEXTJOIN(\"; \",TRUE,IF(J250:W250=1,$J$4:$W$4,\"\")))","v":"-"},{"$f":"IF(_xlfn.TEXTJOIN(\"; \",TRUE,IF(X250:AF250=1,$X$4:$AF$4,\"\"))=\"\",\"-\",_xlfn.TEXTJOIN(\"; \",TRUE,IF(X250:AF250=1,$X$4:$AF$4,\"\")))","v":"-"},{"$f":"IF(_xlfn.TEXTJOIN(\"; \",TRUE,IF(AG250:AO250=1,$AG$4:$AO$4,\"\"))=\"\",\"-\",_xlfn.TEXTJOIN(\"; \",TRUE,IF(AG250:AO250=1,$AG$4:$AO$4,\"\")))","v":"Improved operation of processes or assets (inc. e.g. electricity grid stability, agricultural livelihoods, forest management)"},"Percentage",0,0,0,0,0,0,0,0,0,0,0,0,0,0,0,0,0,0,0,0,0,0,0,0,0,0,0,0,1,0,0,0,0,0,0,1,0]
[null,"TA247","Level of installed capacity of low-carbon energy installed as result of programme support","-",{"$f":"IF(_xlfn.TEXTJOIN(\"; \",TRUE,IF(AP251:AT251=1,$AP$4:$AT$4,\"\"))=\"\",\"ERROR\",_xlfn.TEXTJOIN(\"; \",TRUE,IF(AP251:AT251=1,$AP$4:$AT$4,\"\")))","v":"Outcome"},{"$f":"IF(_xlfn.TEXTJOIN(\"; \",TRUE,IF(J251:W251=1,$J$4:$W$4,\"\"))=\"\",\"-\",_xlfn.TEXTJOIN(\"; \",TRUE,IF(J251:W251=1,$J$4:$W$4,\"\")))","v":"-"},{"$f":"IF(_xlfn.TEXTJOIN(\"; \",TRUE,IF(X251:AF251=1,$X$4:$AF$4,\"\"))=\"\",\"-\",_xlfn.TEXTJOIN(\"; \",TRUE,IF(X251:AF251=1,$X$4:$AF$4,\"\")))","v":"-"},{"$f":"IF(_xlfn.TEXTJOIN(\"; \",TRUE,IF(AG251:AO251=1,$AG$4:$AO$4,\"\"))=\"\",\"-\",_xlfn.TEXTJOIN(\"; \",TRUE,IF(AG251:AO251=1,$AG$4:$AO$4,\"\")))","v":"Increased access to climate goods and services"},"Number",0,0,0,0,0,0,0,0,0,0,0,0,0,0,0,0,0,0,0,0,0,0,0,0,0,0,0,0,0,1,0,0,0,0,0,1,0]
[null,"TA248","Number of (additional) passengers of low-carbon transport as result of programme support","-",{"$f":"IF(_xlfn.TEXTJOIN(\"; \",TRUE,IF(AP252:AT252=1,$AP$4:$AT$4,\"\"))=\"\",\"ERROR\",_xlfn.TEXTJOIN(\"; \",TRUE,IF(AP252:AT252=1,$AP$4:$AT$4,\"\")))","v":"Outcome"},{"$f":"IF(_xlfn.TEXTJOIN(\"; \",TRUE,IF(J252:W252=1,$J$4:$W$4,\"\"))=\"\",\"-\",_xlfn.TEXTJOIN(\"; \",TRUE,IF(J252:W252=1,$J$4:$W$4,\"\")))","v":"-"},{"$f":"IF(_xlfn.TEXTJOIN(\"; \",TRUE,IF(X252:AF252=1,$X$4:$AF$4,\"\"))=\"\",\"-\",_xlfn.TEXTJOIN(\"; \",TRUE,IF(X252:AF252=1,$X$4:$AF$4,\"\")))","v":"-"},{"$f":"IF(_xlfn.TEXTJOIN(\"; \",TRUE,IF(AG252:AO252=1,$AG$4:$AO$4,\"\"))=\"\",\"-\",_xlfn.TEXTJOIN(\"; \",TRUE,IF(AG252:AO252=1,$AG$4:$AO$4,\"\")))","v":"Increased access to climate goods and services"},"Number",0,0,0,0,0,0,0,0,0,0,0,0,0,0,0,0,0,0,0,0,0,0,0,0,0,0,0,0,0,1,0,0,0,0,0,1,0]
[null,"TA249","Number of green mini-grids installed as result of programme support","-",{"$f":"IF(_xlfn.TEXTJOIN(\"; \",TRUE,IF(AP253:AT253=1,$AP$4:$AT$4,\"\"))=\"\",\"ERROR\",_xlfn.TEXTJOIN(\"; \",TRUE,IF(AP253:AT253=1,$AP$4:$AT$4,\"\")))","v":"Outcome"},{"$f":"IF(_xlfn.TEXTJOIN(\"; \",TRUE,IF(J253:W253=1,$J$4:$W$4,\"\"))=\"\",\"-\",_xlfn.TEXTJOIN(\"; \",TRUE,IF(J253:W253=1,$J$4:$W$4,\"\")))","v":"-"},{"$f":"IF(_xlfn.TEXTJOIN(\"; \",TRUE,IF(X253:AF253=1,$X$4:$AF$4,\"\"))=\"\",\"-\",_xlfn.TEXTJOIN(\"; \",TRUE,IF(X253:AF253=1,$X$4:$AF$4,\"\")))","v":"-"},{"$f":"IF(_xlfn.TEXTJOIN(\"; \",TRUE,IF(AG253:AO253=1,$AG$4:$AO$4,\"\"))=\"\",\"-\",_xlfn.TEXTJOIN(\"; \",TRUE,IF(AG253:AO253=1,$AG$4:$AO$4,\"\")))","v":"Increased access to climate goods and services"},"Number",0,0,0,0,0,0,0,0,0,0,0,0,0,0,0,0,0,0,0,0,0,0,0,0,0,0,0,0,0,1,0,0,0,0,0,1,0]
[null,"TA250","Number of direct jobs in climate goods sector created","-",{"$f":"IF(_xlfn.TEXTJOIN(\"; \",TRUE,IF(AP254:AT254=1,$AP$4:$AT$4,\"\"))=\"\",\"ERROR\",_xlfn.TEXTJOIN(\"; \",TRUE,IF(AP254:AT254=1,$AP$4:$AT$4,\"\")))","v":"Outcome"},{"$f":"IF(_xlfn.TEXTJOIN(\"; \",TRUE,IF(J254:W254=1,$J$4:$W$4,\"\"))=\"\",\"-\",_xlfn.TEXTJOIN(\"; \",TRUE,IF(J254:W254=1,$J$4:$W$4,\"\")))","v":"-"},{"$f":"IF(_xlfn.TEXTJOIN(\"; \",TRUE,IF(X254:AF254=1,$X$4:$AF$4,\"\"))=\"\",\"-\",_xlfn.TEXTJOIN(\"; \",TRUE,IF(X254:AF254=1,$X$4:$AF$4,\"\")))","v":"-"},{"$f":"IF(_xlfn.TEXTJOIN(\"; \",TRUE,IF(AG254:AO254=1,$AG$4:$AO$4,\"\"))=\"\",\"-\",_xlfn.TEXTJOIN(\"; \",TRUE,IF(AG254:AO254=1,$AG$4:$AO$4,\"\")))","v":"Increased access to climate goods and services"},"Number",0,0,0,0,0,0,0,0,0,0,0,0,0,0,0,0,0,0,0,0,0,0,0,0,0,0,0,0,0,1,0,0,0,0,0,1,0]
[null,"TA251","Volume of increased (climate) finance (as result of programme support)","-",{"$f":"IF(_xlfn.TEXTJOIN(\"; \",TRUE,IF(AP255:AT255=1,$AP$4:$AT$4,\"\"))=\"\",\"ERROR\",_xlfn.TEXTJOIN(\"; \",TRUE,IF(AP255:AT255=1,$AP$4:$AT$4,\"\")))","v":"Outcome"},{"$f":"IF(_xlfn.TEXTJOIN(\"; \",TRUE,IF(J255:W255=1,$J$4:$W$4,\"\"))=\"\",\"-\",_xlfn.TEXTJOIN(\"; \",TRUE,IF(J255:W255=1,$J$4:$W$4,\"\")))","v":"-"},{"$f":"IF(_xlfn.TEXTJOIN(\"; \",TRUE,IF(X255:AF255=1,$X$4:$AF$4,\"\"))=\"\",\"-\",_xlfn.TEXTJOIN(\"; \",TRUE,IF(X255:AF255=1,$X$4:$AF$4,\"\")))","v":"-"},{"$f":"IF(_xlfn.TEXTJOIN(\"; \",TRUE,IF(AG255:AO255=1,$AG$4:$AO$4,\"\"))=\"\",\"-\",_xlfn.TEXTJOIN(\"; \",TRUE,IF(AG255:AO255=1,$AG$4:$AO$4,\"\")))","v":"Improved domestic co-ordination; Increased or improved allocation of domestic climate finance; Increased or improved access to international climate finance"},"Number",0,0,0,0,0,0,0,0,0,0,0,0,0,0,0,0,0,0,0,0,0,0,0,0,0,1,0,0,0,0,1,1,0,0,0,1,0]
[null,"TA252","Number of direct jobs created (as result of programme support)","-",{"$f":"IF(_xlfn.TEXTJOIN(\"; \",TRUE,IF(AP256:AT256=1,$AP$4:$AT$4,\"\"))=\"\",\"ERROR\",_xlfn.TEXTJOIN(\"; \",TRUE,IF(AP256:AT256=1,$AP$4:$AT$4,\"\")))","v":"Outcome"},{"$f":"IF(_xlfn.TEXTJOIN(\"; \",TRUE,IF(J256:W256=1,$J$4:$W$4,\"\"))=\"\",\"-\",_xlfn.TEXTJOIN(\"; \",TRUE,IF(J256:W256=1,$J$4:$W$4,\"\")))","v":"-"},{"$f":"IF(_xlfn.TEXTJOIN(\"; \",TRUE,IF(X256:AF256=1,$X$4:$AF$4,\"\"))=\"\",\"-\",_xlfn.TEXTJOIN(\"; \",TRUE,IF(X256:AF256=1,$X$4:$AF$4,\"\")))","v":"-"},{"$f":"IF(_xlfn.TEXTJOIN(\"; \",TRUE,IF(AG256:AO256=1,$AG$4:$AO$4,\"\"))=\"\",\"-\",_xlfn.TEXTJOIN(\"; \",TRUE,IF(AG256:AO256=1,$AG$4:$AO$4,\"\")))","v":"Increased or improved policy development or execution; Improved operation of processes or assets (inc. e.g. electricity grid stability, agricultural livelihoods, forest management); Increased or improved allocation of domestic climate finance; Increased or improved access to international climate finance"},"Number",0,0,0,0,0,0,0,0,0,0,0,0,0,0,0,0,0,0,0,0,0,0,0,1,0,0,0,0,1,0,1,1,0,0,0,1,0]
[null,"TA253","Ratio of climate finance raised to programme funding","-",{"$f":"IF(_xlfn.TEXTJOIN(\"; \",TRUE,IF(AP257:AT257=1,$AP$4:$AT$4,\"\"))=\"\",\"ERROR\",_xlfn.TEXTJOIN(\"; \",TRUE,IF(AP257:AT257=1,$AP$4:$AT$4,\"\")))","v":"Outcome"},{"$f":"IF(_xlfn.TEXTJOIN(\"; \",TRUE,IF(J257:W257=1,$J$4:$W$4,\"\"))=\"\",\"-\",_xlfn.TEXTJOIN(\"; \",TRUE,IF(J257:W257=1,$J$4:$W$4,\"\")))","v":"-"},{"$f":"IF(_xlfn.TEXTJOIN(\"; \",TRUE,IF(X257:AF257=1,$X$4:$AF$4,\"\"))=\"\",\"-\",_xlfn.TEXTJOIN(\"; \",TRUE,IF(X257:AF257=1,$X$4:$AF$4,\"\")))","v":"-"},{"$f":"IF(_xlfn.TEXTJOIN(\"; \",TRUE,IF(AG257:AO257=1,$AG$4:$AO$4,\"\"))=\"\",\"-\",_xlfn.TEXTJOIN(\"; \",TRUE,IF(AG257:AO257=1,$AG$4:$AO$4,\"\")))","v":"Increased or improved allocation of domestic climate finance"},"Number",0,0,0,0,0,0,0,0,0,0,0,0,0,0,0,0,0,0,0,0,0,0,0,0,0,0,0,0,0,0,1,0,0,0,0,1,0]
[null,"TA254","Number of countries with increased financial resilience to disasters","-",{"$f":"IF(_xlfn.TEXTJOIN(\"; \",TRUE,IF(AP258:AT258=1,$AP$4:$AT$4,\"\"))=\"\",\"ERROR\",_xlfn.TEXTJOIN(\"; \",TRUE,IF(AP258:AT258=1,$AP$4:$AT$4,\"\")))","v":"Outcome"},{"$f":"IF(_xlfn.TEXTJOIN(\"; \",TRUE,IF(J258:W258=1,$J$4:$W$4,\"\"))=\"\",\"-\",_xlfn.TEXTJOIN(\"; \",TRUE,IF(J258:W258=1,$J$4:$W$4,\"\")))","v":"-"},{"$f":"IF(_xlfn.TEXTJOIN(\"; \",TRUE,IF(X258:AF258=1,$X$4:$AF$4,\"\"))=\"\",\"-\",_xlfn.TEXTJOIN(\"; \",TRUE,IF(X258:AF258=1,$X$4:$AF$4,\"\")))","v":"-"},{"$f":"IF(_xlfn.TEXTJOIN(\"; \",TRUE,IF(AG258:AO258=1,$AG$4:$AO$4,\"\"))=\"\",\"-\",_xlfn.TEXTJOIN(\"; \",TRUE,IF(AG258:AO258=1,$AG$4:$AO$4,\"\")))","v":"Increased or improved allocation of domestic climate finance"},"Number",0,0,0,0,0,0,0,0,0,0,0,0,0,0,0,0,0,0,0,0,0,0,0,0,0,0,0,0,0,0,1,0,0,0,0,1,0]
[null,"TA255","Volume of increased climate finance that use programme's methodology","-",{"$f":"IF(_xlfn.TEXTJOIN(\"; \",TRUE,IF(AP259:AT259=1,$AP$4:$AT$4,\"\"))=\"\",\"ERROR\",_xlfn.TEXTJOIN(\"; \",TRUE,IF(AP259:AT259=1,$AP$4:$AT$4,\"\")))","v":"Outcome"},{"$f":"IF(_xlfn.TEXTJOIN(\"; \",TRUE,IF(J259:W259=1,$J$4:$W$4,\"\"))=\"\",\"-\",_xlfn.TEXTJOIN(\"; \",TRUE,IF(J259:W259=1,$J$4:$W$4,\"\")))","v":"-"},{"$f":"IF(_xlfn.TEXTJOIN(\"; \",TRUE,IF(X259:AF259=1,$X$4:$AF$4,\"\"))=\"\",\"-\",_xlfn.TEXTJOIN(\"; \",TRUE,IF(X259:AF259=1,$X$4:$AF$4,\"\")))","v":"-"},{"$f":"IF(_xlfn.TEXTJOIN(\"; \",TRUE,IF(AG259:AO259=1,$AG$4:$AO$4,\"\"))=\"\",\"-\",_xlfn.TEXTJOIN(\"; \",TRUE,IF(AG259:AO259=1,$AG$4:$AO$4,\"\")))","v":"Increased or improved access to international climate finance"},"Number",0,0,0,0,0,0,0,0,0,0,0,0,0,0,0,0,0,0,0,0,0,0,0,0,0,0,0,0,0,0,0,1,0,0,0,1,0]
[null,"TA256","Number and duration of secondments","Can be measured in terms of the number of individual secondments, or total length of secondments (for example in person-days).",{"$f":"IF(_xlfn.TEXTJOIN(\"; \",TRUE,IF(AP260:AT260=1,$AP$4:$AT$4,\"\"))=\"\",\"ERROR\",_xlfn.TEXTJOIN(\"; \",TRUE,IF(AP260:AT260=1,$AP$4:$AT$4,\"\")))","v":"Activity"},{"$f":"IF(_xlfn.TEXTJOIN(\"; \",TRUE,IF(J260:W260=1,$J$4:$W$4,\"\"))=\"\",\"-\",_xlfn.TEXTJOIN(\"; \",TRUE,IF(J260:W260=1,$J$4:$W$4,\"\")))","v":"Secondments"},{"$f":"IF(_xlfn.TEXTJOIN(\"; \",TRUE,IF(X260:AF260=1,$X$4:$AF$4,\"\"))=\"\",\"-\",_xlfn.TEXTJOIN(\"; \",TRUE,IF(X260:AF260=1,$X$4:$AF$4,\"\")))","v":"-"},{"$f":"IF(_xlfn.TEXTJOIN(\"; \",TRUE,IF(AG260:AO260=1,$AG$4:$AO$4,\"\"))=\"\",\"-\",_xlfn.TEXTJOIN(\"; \",TRUE,IF(AG260:AO260=1,$AG$4:$AO$4,\"\")))","v":"-"},"Number",0,0,0,1,0,0,0,0,0,0,0,0,0,0,0,0,0,0,0,0,0,0,0,0,0,0,0,0,0,0,0,0,1,0,0,0,0]
[null,"TA257","Number of organisations or government departments/units supported by secondments","-",{"$f":"IF(_xlfn.TEXTJOIN(\"; \",TRUE,IF(AP261:AT261=1,$AP$4:$AT$4,\"\"))=\"\",\"ERROR\",_xlfn.TEXTJOIN(\"; \",TRUE,IF(AP261:AT261=1,$AP$4:$AT$4,\"\")))","v":"Uptake"},{"$f":"IF(_xlfn.TEXTJOIN(\"; \",TRUE,IF(J261:W261=1,$J$4:$W$4,\"\"))=\"\",\"-\",_xlfn.TEXTJOIN(\"; \",TRUE,IF(J261:W261=1,$J$4:$W$4,\"\")))","v":"Secondments"},{"$f":"IF(_xlfn.TEXTJOIN(\"; \",TRUE,IF(X261:AF261=1,$X$4:$AF$4,\"\"))=\"\",\"-\",_xlfn.TEXTJOIN(\"; \",TRUE,IF(X261:AF261=1,$X$4:$AF$4,\"\")))","v":"-"},{"$f":"IF(_xlfn.TEXTJOIN(\"; \",TRUE,IF(AG261:AO261=1,$AG$4:$AO$4,\"\"))=\"\",\"-\",_xlfn.TEXTJOIN(\"; \",TRUE,IF(AG261:AO261=1,$AG$4:$AO$4,\"\")))","v":"-"},"Number",0,0,0,1,0,0,0,0,0,0,0,0,0,0,0,0,0,0,0,0,0,0,0,0,0,0,0,0,0,0,0,0,0,1,0,0,0]

{"sheet":"Notes & Methodology","index":3,"n_rows":62,"n_cols":3,"rows_kept":62,"cut":false,"hidden":false,"merged":[[24,1,24,2],[27,1,27,2],[31,1,31,2],[61,1,61,2]]}
[null,"Notes & Methodology"]
[]
["Definitions of Activities"]
[]
[null,"Activity","Description"]
[null,"Workshops","Presentations or discussions among small- or medium-sized groups"]
[null,"Training events / courses","Events or courses aimed to build understanding or capacity, can be one-off or a course of training, conducted externally or in-house"]
[null,"Conferences, seminars or networking events","Larger forums to share information and/or foster relationships between different actors"]
[null,"Secondments","Providing personnel to augment capacity, maybe short- or longer-term placements"]
[null,"Specialist research, inc. market / policy / legal / regulatory / technology research briefs","Traditional consultancy-type services that address specific, practical questions and provide recommendations"]
[null,"Strategic organisational guidance","Operational plans and systems e.g. HR planning"]
[null,"Expert guidance and review","Ad-hoc expert input on different issues, may include direct provision of guidance or recruitment/provision of longer term of expert staff"]
[null,"Product / technology demonstration","Product and technology demonstration to build understanding"]
[null,"Study tours / roadshows","Educational or informational trips for beneficiaries to learn from others, including on technology use, technical and business practices, policy approaches"]
[null,"Public awareness campaigns","Engagement with civil society and/or the public to build awareness"]
[null,"High level delegations","Ministerial (or broadly equivalent) engagement to build high-level political interest"]
[null,"Project studies and plans","Specific project design studies such as feasibility studies, cash flow models, due-diligence, audits"]
[null,"Data, software, tools and models","An output that can be used to support decision-making, typically across multiple decisions"]
[null,"Research & development","Research and development services, may include commercial or academic research"]
[]
[]
["Definitions of Outputs"]
[]
[null,"Output","Description"]
[null,"Capacity Building"]
[null,"Capacity building – Institutional capacity","Building capacity by improving institutional processes within organisations"]
[null,"Capacity building – Technical capacity","Building capacity by improving technical expertise within organisations"]
[null,"Policy Support & Evidence"]
[null,"Awareness raising","Bringing attention to a certain programme / project / cause / issue"]
[null,"Domestic policy support","Assisting in the design / update / operation of a domestic policy"]
[null,"International policy support","Assisting in the design / update / operation of an international policy"]
[null,"Project / Investment Support"]
[null,"Project development support","Providing assistance to develop projects more quickly or more effectively"]
[null,"Process/asset operation support","Providing guidance to improve operational aspects of stakeholder"]
[null,"Financing support","Providing assistance to developing financial offerings, financial instrument or arrange access to finance"]
[null,"Public-private co-ordination support","Supporting close and more effective collaboration between public and private actors for the development of climate-relevant investments"]
[]
[]
["Process for developing the TA Indicator Bank"]
[]
[]
[]
[]
[]
[]
[]
[]
[]
[]
[]
[]
[]
[]
[]
[]
[]
[]
[]
[]
["Note on how this work relates to other elements in the 'Understanding Technical Assistance Options in International Climate Finance' project"]
[]
[null,"This Indicator Bank constitutes the output for Phase 2 of this project. The indicators are categorised within the framework built in Phase 1 of this project. "]

{"sheet":"Selection tool assistant","index":4,"n_rows":456,"n_cols":99,"rows_kept":456,"cut":false,"hidden":true,"merged":[]}
[null,"Selection tool assistant"]
[]
[null,"Results Chain Level",{"$f":"'Indicator Selection Tool'!D7","v":"All"}]
[null,"Activity or Uptake(s)",{"$f":"'Indicator Selection Tool'!D8","v":"All"}]
[null,"Output(s)",{"$f":"'Indicator Selection Tool'!D9","v":"All"}]
[null,"Outcome(s)",{"$f":"'Indicator Selection Tool'!D10","v":"All"}]
[null,null,null,null,null,null,null,null,null,null,null,null,null,null,null,null,null,null,null,null,null,null,null,null,null,null,null,null,null,null,null,null,null,null,null,null,null,null,null,null,null,null,null,null,null,null,"Shadow values for sorting"]
[null,"Indicator ID\nA unique ID number for each indicator","Indicator\nDescription of each indicator","Notes\nGuidance on usage","Results Chain Level\nApplicabilty at Activity, Uptake, Output or Outcome levels","Activity or Uptake(s)\nActivities or Uptakes this indicator can be against","Output(s)\nOutputs this indicator can be against","Outcome(s)\nOutcome(s) this indicator can be against","Unit of Measurement\nHow the results from this indicator should be captured","Workshops","Training events / courses","Conferences, seminars or networking events","Secondments","Specialist research, inc. market / policy / legal / regulatory / technology research briefs","Strategic organisational guidance","Expert guidance and review","Product / technology demonstration","Study tours / roadshows","Public awareness campaigns","High level delegations","Project studies and plans","Data, software, tools and models","Research & development","Capacity building: Institutional capacity","Capacity building: Technical capacity","Awareness raising","Domestic policy support","International policy support","Project development support","Process/asset operation support","Financing support","Public-private co-ordination support","Increased or improved policy development or execution","Increased access to information/knowledge","Improved domestic co-ordination","Improved international co-ordination","Increased or improved investment in climate-related projects/assets","Improved operation of processes or assets (inc. e.g. electricity grid stability, agricultural livelihoods, forest management)","Increased access to climate goods and services","Increased or improved allocation of domestic climate finance","Increased or improved access to international climate finance","Activity","Uptake","Output","Outcome","Impact","Workshops","Training events / courses","Conferences, seminars or networking events","Secondments","Specialist research, inc. market / policy / legal / regulatory / technology research briefs","Strategic organisational guidance","Expert guidance and review","Product / technology demonstration","Study tours / roadshows","Public awareness campaigns","High level delegations","Project studies and plans","Data, software, tools and models","Research & development","Activity/Uptake Include?","Capacity building: Institutional capacity","Capacity building: Technical capacity","Awareness raising","Domestic policy support","International policy support","Project development support","Process/asset operation support","Financing support","Public-private co-ordination support","Output include?","Increased or improved policy development or execution","Increased access to information/knowledge","Improved domestic co-ordination","Improved international co-ordination","Increased or improved investment in climate-related projects/assets","Improved operation of processes or assets (inc. e.g. electricity grid stability, agricultural livelihoods, forest management)","Increased access to climate goods and services","Increased or improved allocation of domestic climate finance","Increased or improved access to international climate finance","Outcome include?","Activity","Uptake","Output","Outcome","Impact","RCL Include?","Include in returns","Helper","Included projects",null,"Indicator ID\nA unique ID number for each indicator","Indicator\nDescription of each indicator","Notes\nGuidance on usage","Results Chain Level\nApplicabilty at Activity, Uptake, Output or Outcome levels","Activity or Uptake(s)\nActivities or Uptakes this indicator can be against","Output(s)\nOutputs this indicator can be against","Outcome(s)\nOutcome(s) this indicator can be against","Unit of Measurement\nHow the results from this indicator should be captured"]
[null,{"$f":"IF(ISBLANK('TA Indicator Bank'!B5),\"\",'TA Indicator Bank'!B5)","v":"TA001"},{"$f":"IF(ISBLANK('TA Indicator Bank'!C5),\"\",'TA Indicator Bank'!C5)","v":"Number of events held"},{"$f":"IF(ISBLANK('TA Indicator Bank'!D5),\"\",'TA Indicator Bank'!D5)","v":"-"},{"$f":"IF(ISBLANK('TA Indicator Bank'!E5),\"\",'TA Indicator Bank'!E5)","v":"Activity"},{"$f":"IF(ISBLANK('TA Indicator Bank'!F5),\"\",'TA Indicator Bank'!F5)","v":"Workshops; Training events / courses; Conferences, seminars or networking events; Public awareness campaigns"},{"$f":"IF(ISBLANK('TA Indicator Bank'!G5),\"\",'TA Indicator Bank'!G5)","v":"-"},{"$f":"IF(ISBLANK('TA Indicator Bank'!H5),\"\",'TA Indicator Bank'!H5)","v":"-"},{"$f":"IF(ISBLANK('TA Indicator Bank'!I5),\"\",'TA Indicator Bank'!I5)","v":"Number"},{"$f":"IF(ISBLANK('TA Indicator Bank'!J5),\"\",'TA Indicator Bank'!J5)","v":1},{"$f":"IF(ISBLANK('TA Indicator Bank'!K5),\"\",'TA Indicator Bank'!K5)","v":1},{"$f":"IF(ISBLANK('TA Indicator Bank'!L5),\"\",'TA Indicator Bank'!L5)","v":1},{"$f":"IF(ISBLANK('TA Indicator Bank'!M5),\"\",'TA Indicator Bank'!M5)","v":0},{"$f":"IF(ISBLANK('TA Indicator Bank'!N5),\"\",'TA Indicator Bank'!N5)","v":0},{"$f":"IF(ISBLANK('TA Indicator Bank'!O5),\"\",'TA Indicator Bank'!O5)","v":0},{"$f":"IF(ISBLANK('TA Indicator Bank'!P5),\"\",'TA Indicator Bank'!P5)","v":0},{"$f":"IF(ISBLANK('TA Indicator Bank'!Q5),\"\",'TA Indicator Bank'!Q5)","v":0},{"$f":"IF(ISBLANK('TA Indicator Bank'!R5),\"\",'TA Indicator Bank'!R5)","v":0},{"$f":"IF(ISBLANK('TA Indicator Bank'!S5),\"\",'TA Indicator Bank'!S5)","v":1},{"$f":"IF(ISBLANK('TA Indicator Bank'!T5),\"\",'TA Indicator Bank'!T5)","v":0},{"$f":"IF(ISBLANK('TA Indicator Bank'!U5),\"\",'TA Indicator Bank'!U5)","v":0},{"$f":"IF(ISBLANK('TA Indicator Bank'!V5),\"\",'TA Indicator Bank'!V5)","v":0},{"$f":"IF(ISBLANK('TA Indicator Bank'!W5),\"\",'TA Indicator Bank'!W5)","v":0},{"$f":"IF(ISBLANK('TA Indicator Bank'!X5),\"\",'TA Indicator Bank'!X5)","v":0},{"$f":"IF(ISBLANK('TA Indicator Bank'!Y5),\"\",'TA Indicator Bank'!Y5)","v":0},{"$f":"IF(ISBLANK('TA Indicator Bank'!Z5),\"\",'TA Indicator Bank'!Z5)","v":0},{"$f":"IF(ISBLANK('TA Indicator Bank'!AA5),\"\",'TA Indicator Bank'!AA5)","v":0},{"$f":"IF(ISBLANK('TA Indicator Bank'!AB5),\"\",'TA Indicator Bank'!AB5)","v":0},{"$f":"IF(ISBLANK('TA Indicator Bank'!AC5),\"\",'TA Indicator Bank'!AC5)","v":0},{"$f":"IF(ISBLANK('TA Indicator Bank'!AD5),\"\",'TA Indicator Bank'!AD5)","v":0},{"$f":"IF(ISBLANK('TA Indicator Bank'!AE5),\"\",'TA Indicator Bank'!AE5)","v":0},{"$f":"IF(ISBLANK('TA Indicator Bank'!AF5),\"\",'TA Indicator Bank'!AF5)","v":0},{"$f":"IF(ISBLANK('TA Indicator Bank'!AG5),\"\",'TA Indicator Bank'!AG5)","v":0},{"$f":"IF(ISBLANK('TA Indicator Bank'!AH5),\"\",'TA Indicator Bank'!AH5)","v":0},{"$f":"IF(ISBLANK('TA Indicator Bank'!AI5),\"\",'TA Indicator Bank'!AI5)","v":0},{"$f":"IF(ISBLANK('TA Indicator Bank'!AJ5),\"\",'TA Indicator Bank'!AJ5)","v":0},{"$f":"IF(ISBLANK('TA Indicator Bank'!AK5),\"\",'TA Indicator Bank'!AK5)","v":0},{"$f":"IF(ISBLANK('TA Indicator Bank'!AL5),\"\",'TA Indicator Bank'!AL5)","v":0},{"$f":"IF(ISBLANK('TA Indicator Bank'!AM5),\"\",'TA Indicator Bank'!AM5)","v":0},{"$f":"IF(ISBLANK('TA Indicator Bank'!AN5),\"\",'TA Indicator Bank'!AN5)","v":0},{"$f":"IF(ISBLANK('TA Indicator Bank'!AO5),\"\",'TA Indicator Bank'!AO5)","v":0},{"$f":"IF(ISBLANK('TA Indicator Bank'!AP5),\"\",'TA Indicator Bank'!AP5)","v":1},{"$f":"IF(ISBLANK('TA Indicator Bank'!AQ5),\"\",'TA Indicator Bank'!AQ5)","v":0},{"$f":"IF(ISBLANK('TA Indicator Bank'!AR5),\"\",'TA Indicator Bank'!AR5)","v":0},{"$f":"IF(ISBLANK('TA Indicator Bank'!AS5),\"\",'TA Indicator Bank'!AS5)","v":0},{"$f":"IF(ISBLANK('TA Indicator Bank'!AT5),\"\",'TA Indicator Bank'!AT5)","v":0},{"$f":"IF(AND(J9=1,J$410=1),1,0)","v":1},{"$f":"IF(AND(K9=1,K$410=1),1,0)","v":1},{"$f":"IF(AND(L9=1,L$410=1),1,0)","v":1},{"$f":"IF(AND(M9=1,M$410=1),1,0)","v":0},{"$f":"IF(AND(N9=1,N$410=1),1,0)","v":0},{"$f":"IF(AND(O9=1,O$410=1),1,0)","v":0},{"$f":"IF(AND(P9=1,P$410=1),1,0)","v":0},{"$f":"IF(AND(Q9=1,Q$410=1),1,0)","v":0},{"$f":"IF(AND(R9=1,R$410=1),1,0)","v":0},{"$f":"IF(AND(S9=1,S$410=1),1,0)","v":1},{"$f":"IF(AND(T9=1,T$410=1),1,0)","v":0},{"$f":"IF(AND(U9=1,U$410=1),1,0)","v":0},{"$f":"IF(AND(V9=1,V$410=1),1,0)","v":0},{"$f":"IF(AND(W9=1,W$410=1),1,0)","v":0},{"$f":"IF($C$4=\"All\",1,IF(SUM(AU9:BH9)>0,1,0))","v":1},{"$f":"IF(AND(X9=1,X$410=1),1,0)","v":0},{"$f":"IF(AND(Y9=1,Y$410=1),1,0)","v":0},{"$f":"IF(AND(Z9=1,Z$410=1),1,0)","v":0},{"$f":"IF(AND(AA9=1,AA$410=1),1,0)","v":0},{"$f":"IF(AND(AB9=1,AB$410=1),1,0)","v":0},{"$f":"IF(AND(AC9=1,AC$410=1),1,0)","v":0},{"$f":"IF(AND(AD9=1,AD$410=1),1,0)","v":0},{"$f":"IF(AND(AE9=1,AE$410=1),1,0)","v":0},{"$f":"IF(AND(AF9=1,AF$410=1),1,0)","v":0},{"$f":"IF($C$5=\"All\",1,IF(SUM(BJ9:BR9)>0,1,0))","v":1},{"$f":"IF(AND(AG9=1,AG$410=1),1,0)","v":0},{"$f":"IF(AND(AH9=1,AH$410=1),1,0)","v":0},{"$f":"IF(AND(AI9=1,AI$410=1),1,0)","v":0},{"$f":"IF(AND(AJ9=1,AJ$410=1),1,0)","v":0},{"$f":"IF(AND(AK9=1,AK$410=1),1,0)","v":0},{"$f":"IF(AND(AL9=1,AL$410=1),1,0)","v":0},{"$f":"IF(AND(AM9=1,AM$410=1),1,0)","v":0},{"$f":"IF(AND(AN9=1,AN$410=1),1,0)","v":0},{"$f":"IF(AND(AO9=1,AO$410=1),1,0)","v":0},{"$f":"IF($C$6=\"All\",1,IF(SUM(BT9:CB9)>0,1,0))","v":1},{"$f":"IF(AND(AP9=1,AP$410=1),1,0)","v":1},{"$f":"IF(AND(AQ9=1,AQ$410=1),1,0)","v":0},{"$f":"IF(AND(AR9=1,AR$410=1),1,0)","v":0},{"$f":"IF(AND(AS9=1,AS$410=1),1,0)","v":0},{"$f":"IF(AND(AT9=1,AT$410=1),1,0)","v":0},{"$f":"IF($C$3=\"All\",1,IF(SUM(CD9:CH9)>0,1,0))","v":1},{"$f":"IF(AND(BI9=1,BS9=1,CC9=1,CI9=1),1,0)","v":1},1,{"$f":"IF(CJ9=1,CK9,\"\")","v":1},{"$f":"IFERROR(SMALL($CL$9:$CL$408,CK9),\"\")","v":1},{"$f":"IFERROR(INDEX($B$9:$I$408,$CM9,COLUMNS($CN$9:CN9)),\"\")","v":"TA001"},{"$f":"IFERROR(INDEX($B$9:$I$408,$CM9,COLUMNS($CN$9:CO9)),\"\")","v":"Number of events held"},{"$f":"IFERROR(INDEX($B$9:$I$408,$CM9,COLUMNS($CN$9:CP9)),\"\")","v":"-"},{"$f":"IFERROR(INDEX($B$9:$I$408,$CM9,COLUMNS($CN$9:CQ9)),\"\")","v":"Activity"},{"$f":"IFERROR(INDEX($B$9:$I$408,$CM9,COLUMNS($CN$9:CR9)),\"\")","v":"Workshops; Training events / courses; Conferences, seminars or networking events; Public awareness campaigns"},{"$f":"IFERROR(INDEX($B$9:$I$408,$CM9,COLUMNS($CN$9:CS9)),\"\")","v":"-"},{"$f":"IFERROR(INDEX($B$9:$I$408,$CM9,COLUMNS($CN$9:CT9)),\"\")","v":"-"},{"$f":"IFERROR(INDEX($B$9:$I$408,$CM9,COLUMNS($CN$9:CU9)),\"\")","v":"Number"}]
[null,{"$f":"IF(ISBLANK('TA Indicator Bank'!B6),\"\",'TA Indicator Bank'!B6)","v":"TA002"},{"$f":"IF(ISBLANK('TA Indicator Bank'!C6),\"\",'TA Indicator Bank'!C6)","v":"Number of people attending events"},{"$f":"IF(ISBLANK('TA Indicator Bank'!D6),\"\",'TA Indicator Bank'!D6)","v":"-"},{"$f":"IF(ISBLANK('TA Indicator Bank'!E6),\"\",'TA Indicator Bank'!E6)","v":"Uptake"},{"$f":"IF(ISBLANK('TA Indicator Bank'!F6),\"\",'TA Indicator Bank'!F6)","v":"Workshops"},{"$f":"IF(ISBLANK('TA Indicator Bank'!G6),\"\",'TA Indicator Bank'!G6)","v":"-"},{"$f":"IF(ISBLANK('TA Indicator Bank'!H6),\"\",'TA Indicator Bank'!H6)","v":"-"},{"$f":"IF(ISBLANK('TA Indicator Bank'!I6),\"\",'TA Indicator Bank'!I6)","v":"Number"},{"$f":"IF(ISBLANK('TA Indicator Bank'!J6),\"\",'TA Indicator Bank'!J6)","v":1},{"$f":"IF(ISBLANK('TA Indicator Bank'!K6),\"\",'TA Indicator Bank'!K6)","v":0},{"$f":"IF(ISBLANK('TA Indicator Bank'!L6),\"\",'TA Indicator Bank'!L6)","v":0},{"$f":"IF(ISBLANK('TA Indicator Bank'!M6),\"\",'TA Indicator Bank'!M6)","v":0},{"$f":"IF(ISBLANK('TA Indicator Bank'!N6),\"\",'TA Indicator Bank'!N6)","v":0},{"$f":"IF(ISBLANK('TA Indicator Bank'!O6),\"\",'TA Indicator Bank'!O6)","v":0},{"$f":"IF(ISBLANK('TA Indicator Bank'!P6),\"\",'TA Indicator Bank'!P6)","v":0},{"$f":"IF(ISBLANK('TA Indicator Bank'!Q6),\"\",'TA Indicator Bank'!Q6)","v":0},{"$f":"IF(ISBLANK('TA Indicator Bank'!R6),\"\",'TA Indicator Bank'!R6)","v":0},{"$f":"IF(ISBLANK('TA Indicator Bank'!S6),\"\",'TA Indicator Bank'!S6)","v":0},{"$f":"IF(ISBLANK('TA Indicator Bank'!T6),\"\",'TA Indicator Bank'!T6)","v":0},{"$f":"IF(ISBLANK('TA Indicator Bank'!U6),\"\",'TA Indicator Bank'!U6)","v":0},{"$f":"IF(ISBLANK('TA Indicator Bank'!V6),\"\",'TA Indicator Bank'!V6)","v":0},{"$f":"IF(ISBLANK('TA Indicator Bank'!W6),\"\",'TA Indicator Bank'!W6)","v":0},{"$f":"IF(ISBLANK('TA Indicator Bank'!X6),\"\",'TA Indicator Bank'!X6)","v":0},{"$f":"IF(ISBLANK('TA Indicator Bank'!Y6),\"\",'TA Indicator Bank'!Y6)","v":0},{"$f":"IF(ISBLANK('TA Indicator Bank'!Z6),\"\",'TA Indicator Bank'!Z6)","v":0},{"$f":"IF(ISBLANK('TA Indicator Bank'!AA6),\"\",'TA Indicator Bank'!AA6)","v":0},{"$f":"IF(ISBLANK('TA Indicator Bank'!AB6),\"\",'TA Indicator Bank'!AB6)","v":0},{"$f":"IF(ISBLANK('TA Indicator Bank'!AC6),\"\",'TA Indicator Bank'!AC6)","v":0},{"$f":"IF(ISBLANK('TA Indicator Bank'!AD6),\"\",'TA Indicator Bank'!AD6)","v":0},{"$f":"IF(ISBLANK('TA Indicator Bank'!AE6),\"\",'TA Indicator Bank'!AE6)","v":0},{"$f":"IF(ISBLANK('TA Indicator Bank'!AF6),\"\",'TA Indicator Bank'!AF6)","v":0},{"$f":"IF(ISBLANK('TA Indicator Bank'!AG6),\"\",'TA Indicator Bank'!AG6)","v":0},{"$f":"IF(ISBLANK('TA Indicator Bank'!AH6),\"\",'TA Indicator Bank'!AH6)","v":0},{"$f":"IF(ISBLANK('TA Indicator Bank'!AI6),\"\",'TA Indicator Bank'!AI6)","v":0},{"$f":"IF(ISBLANK('TA Indicator Bank'!AJ6),\"\",'TA Indicator Bank'!AJ6)","v":0},{"$f":"IF(ISBLANK('TA Indicator Bank'!AK6),\"\",'TA Indicator Bank'!AK6)","v":0},{"$f":"IF(ISBLANK('TA Indicator Bank'!AL6),\"\",'TA Indicator Bank'!AL6)","v":0},{"$f":"IF(ISBLANK('TA Indicator Bank'!AM6),\"\",'TA Indicator Bank'!AM6)","v":0},{"$f":"IF(ISBLANK('TA Indicator Bank'!AN6),\"\",'TA Indicator Bank'!AN6)","v":0},{"$f":"IF(ISBLANK('TA Indicator Bank'!AO6),\"\",'TA Indicator Bank'!AO6)","v":0},{"$f":"IF(ISBLANK('TA Indicator Bank'!AP6),\"\",'TA Indicator Bank'!AP6)","v":0},{"$f":"IF(ISBLANK('TA Indicator Bank'!AQ6),\"\",'TA Indicator Bank'!AQ6)","v":1},{"$f":"IF(ISBLANK('TA Indicator Bank'!AR6),\"\",'TA Indicator Bank'!AR6)","v":0},{"$f":"IF(ISBLANK('TA Indicator Bank'!AS6),\"\",'TA Indicator Bank'!AS6)","v":0},{"$f":"IF(ISBLANK('TA Indicator Bank'!AT6),\"\",'TA Indicator Bank'!AT6)","v":0},{"$f":"IF(AND(J10=1,J$410=1),1,0)","v":1},{"$f":"IF(AND(K10=1,K$410=1),1,0)","v":0},{"$f":"IF(AND(L10=1,L$410=1),1,0)","v":0},{"$f":"IF(AND(M10=1,M$410=1),1,0)","v":0},{"$f":"IF(AND(N10=1,N$410=1),1,0)","v":0},{"$f":"IF(AND(O10=1,O$410=1),1,0)","v":0},{"$f":"IF(AND(P10=1,P$410=1),1,0)","v":0},{"$f":"IF(AND(Q10=1,Q$410=1),1,0)","v":0},{"$f":"IF(AND(R10=1,R$410=1),1,0)","v":0},{"$f":"IF(AND(S10=1,S$410=1),1,0)","v":0},{"$f":"IF(AND(T10=1,T$410=1),1,0)","v":0},{"$f":"IF(AND(U10=1,U$410=1),1,0)","v":0},{"$f":"IF(AND(V10=1,V$410=1),1,0)","v":0},{"$f":"IF(AND(W10=1,W$410=1),1,0)","v":0},{"$f":"IF($C$4=\"All\",1,IF(SUM(AU10:BH10)>0,1,0))","v":1},{"$f":"IF(AND(X10=1,X$410=1),1,0)","v":0},{"$f":"IF(AND(Y10=1,Y$410=1),1,0)","v":0},{"$f":"IF(AND(Z10=1,Z$410=1),1,0)","v":0},{"$f":"IF(AND(AA10=1,AA$410=1),1,0)","v":0},{"$f":"IF(AND(AB10=1,AB$410=1),1,0)","v":0},{"$f":"IF(AND(AC10=1,AC$410=1),1,0)","v":0},{"$f":"IF(AND(AD10=1,AD$410=1),1,0)","v":0},{"$f":"IF(AND(AE10=1,AE$410=1),1,0)","v":0},{"$f":"IF(AND(AF10=1,AF$410=1),1,0)","v":0},{"$f":"IF($C$5=\"All\",1,IF(SUM(BJ10:BR10)>0,1,0))","v":1},{"$f":"IF(AND(AG10=1,AG$410=1),1,0)","v":0},{"$f":"IF(AND(AH10=1,AH$410=1),1,0)","v":0},{"$f":"IF(AND(AI10=1,AI$410=1),1,0)","v":0},{"$f":"IF(AND(AJ10=1,AJ$410=1),1,0)","v":0},{"$f":"IF(AND(AK10=1,AK$410=1),1,0)","v":0},{"$f":"IF(AND(AL10=1,AL$410=1),1,0)","v":0},{"$f":"IF(AND(AM10=1,AM$410=1),1,0)","v":0},{"$f":"IF(AND(AN10=1,AN$410=1),1,0)","v":0},{"$f":"IF(AND(AO10=1,AO$410=1),1,0)","v":0},{"$f":"IF($C$6=\"All\",1,IF(SUM(BT10:CB10)>0,1,0))","v":1},{"$f":"IF(AND(AP10=1,AP$410=1),1,0)","v":0},{"$f":"IF(AND(AQ10=1,AQ$410=1),1,0)","v":1},{"$f":"IF(AND(AR10=1,AR$410=1),1,0)","v":0},{"$f":"IF(AND(AS10=1,AS$410=1),1,0)","v":0},{"$f":"IF(AND(AT10=1,AT$410=1),1,0)","v":0},{"$f":"IF($C$3=\"All\",1,IF(SUM(CD10:CH10)>0,1,0))","v":1},{"$f":"IF(AND(BI10=1,BS10=1,CC10=1,CI10=1),1,0)","v":1},2,{"$f":"IF(CJ10=1,CK10,\"\")","v":2},{"$f":"IFERROR(SMALL($CL$9:$CL$408,CK10),\"\")","v":2},{"$f":"IFERROR(INDEX($B$9:$I$408,$CM10,COLUMNS($CN$9:CN10)),\"\")","v":"TA002"},{"$f":"IFERROR(INDEX($B$9:$I$408,$CM10,COLUMNS($CN$9:CO10)),\"\")","v":"Number of people attending events"},{"$f":"IFERROR(INDEX($B$9:$I$408,$CM10,COLUMNS($CN$9:CP10)),\"\")","v":"-"},{"$f":"IFERROR(INDEX($B$9:$I$408,$CM10,COLUMNS($CN$9:CQ10)),\"\")","v":"Uptake"},{"$f":"IFERROR(INDEX($B$9:$I$408,$CM10,COLUMNS($CN$9:CR10)),\"\")","v":"Workshops"},{"$f":"IFERROR(INDEX($B$9:$I$408,$CM10,COLUMNS($CN$9:CS10)),\"\")","v":"-"},{"$f":"IFERROR(INDEX($B$9:$I$408,$CM10,COLUMNS($CN$9:CT10)),\"\")","v":"-"},{"$f":"IFERROR(INDEX($B$9:$I$408,$CM10,COLUMNS($CN$9:CU10)),\"\")","v":"Number"}]
[null,{"$f":"IF(ISBLANK('TA Indicator Bank'!B7),\"\",'TA Indicator Bank'!B7)","v":"TA003"},{"$f":"IF(ISBLANK('TA Indicator Bank'!C7),\"\",'TA Indicator Bank'!C7)","v":"Good attendance at events"},{"$f":"IF(ISBLANK('TA Indicator Bank'!D7),\"\",'TA Indicator Bank'!D7)","v":"To be assessed against a pre-identified standard for good attendance (based on absolute numbers, percentage of invitees attending, percentage of important stakeholders representated)"},{"$f":"IF(ISBLANK('TA Indicator Bank'!E7),\"\",'TA Indicator Bank'!E7)","v":"Uptake"},{"$f":"IF(ISBLANK('TA Indicator Bank'!F7),\"\",'TA Indicator Bank'!F7)","v":"Workshops"},{"$f":"IF(ISBLANK('TA Indicator Bank'!G7),\"\",'TA Indicator Bank'!G7)","v":"-"},{"$f":"IF(ISBLANK('TA Indicator Bank'!H7),\"\",'TA Indicator Bank'!H7)","v":"-"},{"$f":"IF(ISBLANK('TA Indicator Bank'!I7),\"\",'TA Indicator Bank'!I7)","v":"Yes/No"},{"$f":"IF(ISBLANK('TA Indicator Bank'!J7),\"\",'TA Indicator Bank'!J7)","v":1},{"$f":"IF(ISBLANK('TA Indicator Bank'!K7),\"\",'TA Indicator Bank'!K7)","v":0},{"$f":"IF(ISBLANK('TA Indicator Bank'!L7),\"\",'TA Indicator Bank'!L7)","v":0},{"$f":"IF(ISBLANK('TA Indicator Bank'!M7),\"\",'TA Indicator Bank'!M7)","v":0},{"$f":"IF(ISBLANK('TA Indicator Bank'!N7),\"\",'TA Indicator Bank'!N7)","v":0},{"$f":"IF(ISBLANK('TA Indicator Bank'!O7),\"\",'TA Indicator Bank'!O7)","v":0},{"$f":"IF(ISBLANK('TA Indicator Bank'!P7),\"\",'TA Indicator Bank'!P7)","v":0},{"$f":"IF(ISBLANK('TA Indicator Bank'!Q7),\"\",'TA Indicator Bank'!Q7)","v":0},{"$f":"IF(ISBLANK('TA Indicator Bank'!R7),\"\",'TA Indicator Bank'!R7)","v":0},{"$f":"IF(ISBLANK('TA Indicator Bank'!S7),\"\",'TA Indicator Bank'!S7)","v":0},{"$f":"IF(ISBLANK('TA Indicator Bank'!T7),\"\",'TA Indicator Bank'!T7)","v":0},{"$f":"IF(ISBLANK('TA Indicator Bank'!U7),\"\",'TA Indicator Bank'!U7)","v":0},{"$f":"IF(ISBLANK('TA Indicator Bank'!V7),\"\",'TA Indicator Bank'!V7)","v":0},{"$f":"IF(ISBLANK('TA Indicator Bank'!W7),\"\",'TA Indicator Bank'!W7)","v":0},{"$f":"IF(ISBLANK('TA Indicator Bank'!X7),\"\",'TA Indicator Bank'!X7)","v":0},{"$f":"IF(ISBLANK('TA Indicator Bank'!Y7),\"\",'TA Indicator Bank'!Y7)","v":0},{"$f":"IF(ISBLANK('TA Indicator Bank'!Z7),\"\",'TA Indicator Bank'!Z7)","v":0},{"$f":"IF(ISBLANK('TA Indicator Bank'!AA7),\"\",'TA Indicator Bank'!AA7)","v":0},{"$f":"IF(ISBLANK('TA Indicator Bank'!AB7),\"\",'TA Indicator Bank'!AB7)","v":0},{"$f":"IF(ISBLANK('TA Indicator Bank'!AC7),\"\",'TA Indicator Bank'!AC7)","v":0},{"$f":"IF(ISBLANK('TA Indicator Bank'!AD7),\"\",'TA Indicator Bank'!AD7)","v":0},{"$f":"IF(ISBLANK('TA Indicator Bank'!AE7),\"\",'TA Indicator Bank'!AE7)","v":0},{"$f":"IF(ISBLANK('TA Indicator Bank'!AF7),\"\",'TA Indicator Bank'!AF7)","v":0},{"$f":"IF(ISBLANK('TA Indicator Bank'!AG7),\"\",'TA Indicator Bank'!AG7)","v":0},{"$f":"IF(ISBLANK('TA Indicator Bank'!AH7),\"\",'TA Indicator Bank'!AH7)","v":0},{"$f":"IF(ISBLANK('TA Indicator Bank'!AI7),\"\",'TA Indicator Bank'!AI7)","v":0},{"$f":"IF(ISBLANK('TA Indicator Bank'!AJ7),\"\",'TA Indicator Bank'!AJ7)","v":0},{"$f":"IF(ISBLANK('TA Indicator Bank'!AK7),\"\",'TA Indicator Bank'!AK7)","v":0},{"$f":"IF(ISBLANK('TA Indicator Bank'!AL7),\"\",'TA Indicator Bank'!AL7)","v":0},{"$f":"IF(ISBLANK('TA Indicator Bank'!AM7),\"\",'TA Indicator Bank'!AM7)","v":0},{"$f":"IF(ISBLANK('TA Indicator Bank'!AN7),\"\",'TA Indicator Bank'!AN7)","v":0},{"$f":"IF(ISBLANK('TA Indicator Bank'!AO7),\"\",'TA Indicator Bank'!AO7)","v":0},{"$f":"IF(ISBLANK('TA Indicator Bank'!AP7),\"\",'TA Indicator Bank'!AP7)","v":0},{"$f":"IF(ISBLANK('TA Indicator Bank'!AQ7),\"\",'TA Indicator Bank'!AQ7)","v":1},{"$f":"IF(ISBLANK('TA Indicator Bank'!AR7),\"\",'TA Indicator Bank'!AR7)","v":0},{"$f":"IF(ISBLANK('TA Indicator Bank'!AS7),\"\",'TA Indicator Bank'!AS7)","v":0},{"$f":"IF(ISBLANK('TA Indicator Bank'!AT7),\"\",'TA Indicator Bank'!AT7)","v":0},{"$f":"IF(AND(J11=1,J$410=1),1,0)","v":1},{"$f":"IF(AND(K11=1,K$410=1),1,0)","v":0},{"$f":"IF(AND(L11=1,L$410=1),1,0)","v":0},{"$f":"IF(AND(M11=1,M$410=1),1,0)","v":0},{"$f":"IF(AND(N11=1,N$410=1),1,0)","v":0},{"$f":"IF(AND(O11=1,O$410=1),1,0)","v":0},{"$f":"IF(AND(P11=1,P$410=1),1,0)","v":0},{"$f":"IF(AND(Q11=1,Q$410=1),1,0)","v":0},{"$f":"IF(AND(R11=1,R$410=1),1,0)","v":0},{"$f":"IF(AND(S11=1,S$410=1),1,0)","v":0},{"$f":"IF(AND(T11=1,T$410=1),1,0)","v":0},{"$f":"IF(AND(U11=1,U$410=1),1,0)","v":0},{"$f":"IF(AND(V11=1,V$410=1),1,0)","v":0},{"$f":"IF(AND(W11=1,W$410=1),1,0)","v":0},1,{"$f":"IF(AND(X11=1,X$410=1),1,0)","v":0},{"$f":"IF(AND(Y11=1,Y$410=1),1,0)","v":0},{"$f":"IF(AND(Z11=1,Z$410=1),1,0)","v":0},{"$f":"IF(AND(AA11=1,AA$410=1),1,0)","v":0},{"$f":"IF(AND(AB11=1,AB$410=1),1,0)","v":0},{"$f":"IF(AND(AC11=1,AC$410=1),1,0)","v":0},{"$f":"IF(AND(AD11=1,AD$410=1),1,0)","v":0},{"$f":"IF(AND(AE11=1,AE$410=1),1,0)","v":0},{"$f":"IF(AND(AF11=1,AF$410=1),1,0)","v":0},1,{"$f":"IF(AND(AG11=1,AG$410=1),1,0)","v":0},{"$f":"IF(AND(AH11=1,AH$410=1),1,0)","v":0},{"$f":"IF(AND(AI11=1,AI$410=1),1,0)","v":0},{"$f":"IF(AND(AJ11=1,AJ$410=1),1,0)","v":0},{"$f":"IF(AND(AK11=1,AK$410=1),1,0)","v":0},{"$f":"IF(AND(AL11=1,AL$410=1),1,0)","v":0},{"$f":"IF(AND(AM11=1,AM$410=1),1,0)","v":0},{"$f":"IF(AND(AN11=1,AN$410=1),1,0)","v":0},{"$f":"IF(AND(AO11=1,AO$410=1),1,0)","v":0},1,{"$f":"IF(AND(AP11=1,AP$410=1),1,0)","v":0},{"$f":"IF(AND(AQ11=1,AQ$410=1),1,0)","v":1},{"$f":"IF(AND(AR11=1,AR$410=1),1,0)","v":0},{"$f":"IF(AND(AS11=1,AS$410=1),1,0)","v":0},{"$f":"IF(AND(AT11=1,AT$410=1),1,0)","v":0},1,1,3,3,{"$f":"IFERROR(SMALL($CL$9:$CL$408,CK11),\"\")","v":3},{"$f":"IFERROR(INDEX($B$9:$I$408,$CM11,COLUMNS($CN$9:CN11)),\"\")","v":"TA003"},{"$f":"IFERROR(INDEX($B$9:$I$408,$CM11,COLUMNS($CN$9:CO11)),\"\")","v":"Good attendance at events"},{"$f":"IFERROR(INDEX($B$9:$I$408,$CM11,COLUMNS($CN$9:CP11)),\"\")","v":"To be assessed against a pre-identified standard for good attendance (based on absolute numbers, percentage of invitees attending, percentage of important stakeholders representated)"},{"$f":"IFERROR(INDEX($B$9:$I$408,$CM11,COLUMNS($CN$9:CQ11)),\"\")","v":"Uptake"},{"$f":"IFERROR(INDEX($B$9:$I$408,$CM11,COLUMNS($CN$9:CR11)),\"\")","v":"Workshops"},{"$f":"IFERROR(INDEX($B$9:$I$408,$CM11,COLUMNS($CN$9:CS11)),\"\")","v":"-"},{"$f":"IFERROR(INDEX($B$9:$I$408,$CM11,COLUMNS($CN$9:CT11)),\"\")","v":"-"},{"$f":"IFERROR(INDEX($B$9:$I$408,$CM11,COLUMNS($CN$9:CU11)),\"\")","v":"Yes/No"}]
[null,{"$f":"IF(ISBLANK('TA Indicator Bank'!B8),\"\",'TA Indicator Bank'!B8)","v":"TA004"},{"$f":"IF(ISBLANK('TA Indicator Bank'!C8),\"\",'TA Indicator Bank'!C8)","v":"Participants assess training as useful or satisfactory"},{"$f":"IF(ISBLANK('TA Indicator Bank'!D8),\"\",'TA Indicator Bank'!D8)","v":"Can be assessed in multiple ways: against pre-identified goals or expectations for training outcomes; based on immediate post-training survey of expectations that it will support trainees in their work; or, based on survey following a delay (e.g. 6 months) on how training has supported activities/work in practice."},{"$f":"IF(ISBLANK('TA Indicator Bank'!E8),\"\",'TA Indicator Bank'!E8)","v":"Output"},{"$f":"IF(ISBLANK('TA Indicator Bank'!F8),\"\",'TA Indicator Bank'!F8)","v":"-"},{"$f":"IF(ISBLANK('TA Indicator Bank'!G8),\"\",'TA Indicator Bank'!G8)","v":"Capacity building: Institutional capacity; Capacity building: Technical capacity"},{"$f":"IF(ISBLANK('TA Indicator Bank'!H8),\"\",'TA Indicator Bank'!H8)","v":"-"},{"$f":"IF(ISBLANK('TA Indicator Bank'!I8),\"\",'TA Indicator Bank'!I8)","v":"Yes/No"},{"$f":"IF(ISBLANK('TA Indicator Bank'!J8),\"\",'TA Indicator Bank'!J8)","v":0},{"$f":"IF(ISBLANK('TA Indicator Bank'!K8),\"\",'TA Indicator Bank'!K8)","v":0},{"$f":"IF(ISBLANK('TA Indicator Bank'!L8),\"\",'TA Indicator Bank'!L8)","v":0},{"$f":"IF(ISBLANK('TA Indicator Bank'!M8),\"\",'TA Indicator Bank'!M8)","v":0},{"$f":"IF(ISBLANK('TA Indicator Bank'!N8),\"\",'TA Indicator Bank'!N8)","v":0},{"$f":"IF(ISBLANK('TA Indicator Bank'!O8),\"\",'TA Indicator Bank'!O8)","v":0},{"$f":"IF(ISBLANK('TA Indicator Bank'!P8),\"\",'TA Indicator Bank'!P8)","v":0},{"$f":"IF(ISBLANK('TA Indicator Bank'!Q8),\"\",'TA Indicator Bank'!Q8)","v":0},{"$f":"IF(ISBLANK('TA Indicator Bank'!R8),\"\",'TA Indicator Bank'!R8)","v":0},{"$f":"IF(ISBLANK('TA Indicator Bank'!S8),\"\",'TA Indicator Bank'!S8)","v":0},{"$f":"IF(ISBLANK('TA Indicator Bank'!T8),\"\",'TA Indicator Bank'!T8)","v":0},{"$f":"IF(ISBLANK('TA Indicator Bank'!U8),\"\",'TA Indicator Bank'!U8)","v":0},{"$f":"IF(ISBLANK('TA Indicator Bank'!V8),\"\",'TA Indicator Bank'!V8)","v":0},{"$f":"IF(ISBLANK('TA Indicator Bank'!W8),\"\",'TA Indicator Bank'!W8)","v":0},{"$f":"IF(ISBLANK('TA Indicator Bank'!X8),\"\",'TA Indicator Bank'!X8)","v":1},{"$f":"IF(ISBLANK('TA Indicator Bank'!Y8),\"\",'TA Indicator Bank'!Y8)","v":1},{"$f":"IF(ISBLANK('TA Indicator Bank'!Z8),\"\",'TA Indicator Bank'!Z8)","v":0},{"$f":"IF(ISBLANK('TA Indicator Bank'!AA8),\"\",'TA Indicator Bank'!AA8)","v":0},{"$f":"IF(ISBLANK('TA Indicator Bank'!AB8),\"\",'TA Indicator Bank'!AB8)","v":0},{"$f":"IF(ISBLANK('TA Indicator Bank'!AC8),\"\",'TA Indicator Bank'!AC8)","v":0},{"$f":"IF(ISBLANK('TA Indicator Bank'!AD8),\"\",'TA Indicator Bank'!AD8)","v":0},{"$f":"IF(ISBLANK('TA Indicator Bank'!AE8),\"\",'TA Indicator Bank'!AE8)","v":0},{"$f":"IF(ISBLANK('TA Indicator Bank'!AF8),\"\",'TA Indicator Bank'!AF8)","v":0},{"$f":"IF(ISBLANK('TA Indicator Bank'!AG8),\"\",'TA Indicator Bank'!AG8)","v":0},{"$f":"IF(ISBLANK('TA Indicator Bank'!AH8),\"\",'TA Indicator Bank'!AH8)","v":0},{"$f":"IF(ISBLANK('TA Indicator Bank'!AI8),\"\",'TA Indicator Bank'!AI8)","v":0},{"$f":"IF(ISBLANK('TA Indicator Bank'!AJ8),\"\",'TA Indicator Bank'!AJ8)","v":0},{"$f":"IF(ISBLANK('TA Indicator Bank'!AK8),\"\",'TA Indicator Bank'!AK8)","v":0},{"$f":"IF(ISBLANK('TA Indicator Bank'!AL8),\"\",'TA Indicator Bank'!AL8)","v":0},{"$f":"IF(ISBLANK('TA Indicator Bank'!AM8),\"\",'TA Indicator Bank'!AM8)","v":0},{"$f":"IF(ISBLANK('TA Indicator Bank'!AN8),\"\",'TA Indicator Bank'!AN8)","v":0},{"$f":"IF(ISBLANK('TA Indicator Bank'!AO8),\"\",'TA Indicator Bank'!AO8)","v":0},{"$f":"IF(ISBLANK('TA Indicator Bank'!AP8),\"\",'TA Indicator Bank'!AP8)","v":0},{"$f":"IF(ISBLANK('TA Indicator Bank'!AQ8),\"\",'TA Indicator Bank'!AQ8)","v":0},{"$f":"IF(ISBLANK('TA Indicator Bank'!AR8),\"\",'TA Indicator Bank'!AR8)","v":1},{"$f":"IF(ISBLANK('TA Indicator Bank'!AS8),\"\",'TA Indicator Bank'!AS8)","v":0},{"$f":"IF(ISBLANK('TA Indicator Bank'!AT8),\"\",'TA Indicator Bank'!AT8)","v":0},{"$f":"IF(AND(J12=1,J$410=1),1,0)","v":0},{"$f":"IF(AND(K12=1,K$410=1),1,0)","v":0},{"$f":"IF(AND(L12=1,L$410=1),1,0)","v":0},{"$f":"IF(AND(M12=1,M$410=1),1,0)","v":0},{"$f":"IF(AND(N12=1,N$410=1),1,0)","v":0},{"$f":"IF(AND(O12=1,O$410=1),1,0)","v":0},{"$f":"IF(AND(P12=1,P$410=1),1,0)","v":0},{"$f":"IF(AND(Q12=1,Q$410=1),1,0)","v":0},{"$f":"IF(AND(R12=1,R$410=1),1,0)","v":0},{"$f":"IF(AND(S12=1,S$410=1),1,0)","v":0},{"$f":"IF(AND(T12=1,T$410=1),1,0)","v":0},{"$f":"IF(AND(U12=1,U$410=1),1,0)","v":0},{"$f":"IF(AND(V12=1,V$410=1),1,0)","v":0},{"$f":"IF(AND(W12=1,W$410=1),1,0)","v":0},1,{"$f":"IF(AND(X12=1,X$410=1),1,0)","v":1},{"$f":"IF(AND(Y12=1,Y$410=1),1,0)","v":1},{"$f":"IF(AND(Z12=1,Z$410=1),1,0)","v":0},{"$f":"IF(AND(AA12=1,AA$410=1),1,0)","v":0},{"$f":"IF(AND(AB12=1,AB$410=1),1,0)","v":0},{"$f":"IF(AND(AC12=1,AC$410=1),1,0)","v":0},{"$f":"IF(AND(AD12=1,AD$410=1),1,0)","v":0},{"$f":"IF(AND(AE12=1,AE$410=1),1,0)","v":0},{"$f":"IF(AND(AF12=1,AF$410=1),1,0)","v":0},1,{"$f":"IF(AND(AG12=1,AG$410=1),1,0)","v":0},{"$f":"IF(AND(AH12=1,AH$410=1),1,0)","v":0},{"$f":"IF(AND(AI12=1,AI$410=1),1,0)","v":0},{"$f":"IF(AND(AJ12=1,AJ$410=1),1,0)","v":0},{"$f":"IF(AND(AK12=1,AK$410=1),1,0)","v":0},{"$f":"IF(AND(AL12=1,AL$410=1),1,0)","v":0},{"$f":"IF(AND(AM12=1,AM$410=1),1,0)","v":0},{"$f":"IF(AND(AN12=1,AN$410=1),1,0)","v":0},{"$f":"IF(AND(AO12=1,AO$410=1),1,0)","v":0},1,{"$f":"IF(AND(AP12=1,AP$410=1),1,0)","v":0},{"$f":"IF(AND(AQ12=1,AQ$410=1),1,0)","v":0},{"$f":"IF(AND(AR12=1,AR$410=1),1,0)","v":1},{"$f":"IF(AND(AS12=1,AS$410=1),1,0)","v":0},{"$f":"IF(AND(AT12=1,AT$410=1),1,0)","v":0},1,1,4,4,{"$f":"IFERROR(SMALL($CL$9:$CL$408,CK12),\"\")","v":4},{"$f":"IFERROR(INDEX($B$9:$I$408,$CM12,COLUMNS($CN$9:CN12)),\"\")","v":"TA004"},{"$f":"IFERROR(INDEX($B$9:$I$408,$CM12,COLUMNS($CN$9:CO12)),\"\")","v":"Participants assess training as useful or satisfactory"},{"$f":"IFERROR(INDEX($B$9:$I$408,$CM12,COLUMNS($CN$9:CP12)),\"\")","v":"Can be assessed in multiple ways: against pre-identified goals or expectations for training outcomes; based on immediate post-training survey of expectations that it will support trainees in their work; or, based on survey following a delay (e.g. 6 months) on how training has supported activities/work in practice."},{"$f":"IFERROR(INDEX($B$9:$I$408,$CM12,COLUMNS($CN$9:CQ12)),\"\")","v":"Output"},{"$f":"IFERROR(INDEX($B$9:$I$408,$CM12,COLUMNS($CN$9:CR12)),\"\")","v":"-"},{"$f":"IFERROR(INDEX($B$9:$I$408,$CM12,COLUMNS($CN$9:CS12)),\"\")","v":"Capacity building: Institutional capacity; Capacity building: Technical capacity"},{"$f":"IFERROR(INDEX($B$9:$I$408,$CM12,COLUMNS($CN$9:CT12)),\"\")","v":"-"},{"$f":"IFERROR(INDEX($B$9:$I$408,$CM12,COLUMNS($CN$9:CU12)),\"\")","v":"Yes/No"}]
[null,{"$f":"IF(ISBLANK('TA Indicator Bank'!B9),\"\",'TA Indicator Bank'!B9)","v":"TA005"},{"$f":"IF(ISBLANK('TA Indicator Bank'!C9),\"\",'TA Indicator Bank'!C9)","v":"Number of participants/units that received support"},{"$f":"IF(ISBLANK('TA Indicator Bank'!D9),\"\",'TA Indicator Bank'!D9)","v":"-"},{"$f":"IF(ISBLANK('TA Indicator Bank'!E9),\"\",'TA Indicator Bank'!E9)","v":"Uptake"},{"$f":"IF(ISBLANK('TA Indicator Bank'!F9),\"\",'TA Indicator Bank'!F9)","v":"Workshops; Training events / courses"},{"$f":"IF(ISBLANK('TA Indicator Bank'!G9),\"\",'TA Indicator Bank'!G9)","v":"Process/asset operation support"},{"$f":"IF(ISBLANK('TA Indicator Bank'!H9),\"\",'TA Indicator Bank'!H9)","v":"-"},{"$f":"IF(ISBLANK('TA Indicator Bank'!I9),\"\",'TA Indicator Bank'!I9)","v":"Number"},{"$f":"IF(ISBLANK('TA Indicator Bank'!J9),\"\",'TA Indicator Bank'!J9)","v":1},{"$f":"IF(ISBLANK('TA Indicator Bank'!K9),\"\",'TA Indicator Bank'!K9)","v":1},{"$f":"IF(ISBLANK('TA Indicator Bank'!L9),\"\",'TA Indicator Bank'!L9)","v":0},{"$f":"IF(ISBLANK('TA Indicator Bank'!M9),\"\",'TA Indicator Bank'!M9)","v":0},{"$f":"IF(ISBLANK('TA Indicator Bank'!N9),\"\",'TA Indicator Bank'!N9)","v":0},{"$f":"IF(ISBLANK('TA Indicator Bank'!O9),\"\",'TA Indicator Bank'!O9)","v":0},{"$f":"IF(ISBLANK('TA Indicator Bank'!P9),\"\",'TA Indicator Bank'!P9)","v":0},{"$f":"IF(ISBLANK('TA Indicator Bank'!Q9),\"\",'TA Indicator Bank'!Q9)","v":0},{"$f":"IF(ISBLANK('TA Indicator Bank'!R9),\"\",'TA Indicator Bank'!R9)","v":0},{"$f":"IF(ISBLANK('TA Indicator Bank'!S9),\"\",'TA Indicator Bank'!S9)","v":0},{"$f":"IF(ISBLANK('TA Indicator Bank'!T9),\"\",'TA Indicator Bank'!T9)","v":0},{"$f":"IF(ISBLANK('TA Indicator Bank'!U9),\"\",'TA Indicator Bank'!U9)","v":0},{"$f":"IF(ISBLANK('TA Indicator Bank'!V9),\"\",'TA Indicator Bank'!V9)","v":0},{"$f":"IF(ISBLANK('TA Indicator Bank'!W9),\"\",'TA Indicator Bank'!W9)","v":0},{"$f":"IF(ISBLANK('TA Indicator Bank'!X9),\"\",'TA Indicator Bank'!X9)","v":0},{"$f":"IF(ISBLANK('TA Indicator Bank'!Y9),\"\",'TA Indicator Bank'!Y9)","v":0},{"$f":"IF(ISBLANK('TA Indicator Bank'!Z9),\"\",'TA Indicator Bank'!Z9)","v":0},{"$f":"IF(ISBLANK('TA Indicator Bank'!AA9),\"\",'TA Indicator Bank'!AA9)","v":0},{"$f":"IF(ISBLANK('TA Indicator Bank'!AB9),\"\",'TA Indicator Bank'!AB9)","v":0},{"$f":"IF(ISBLANK('TA Indicator Bank'!AC9),\"\",'TA Indicator Bank'!AC9)","v":0},{"$f":"IF(ISBLANK('TA Indicator Bank'!AD9),\"\",'TA Indicator Bank'!AD9)","v":1},{"$f":"IF(ISBLANK('TA Indicator Bank'!AE9),\"\",'TA Indicator Bank'!AE9)","v":0},{"$f":"IF(ISBLANK('TA Indicator Bank'!AF9),\"\",'TA Indicator Bank'!AF9)","v":0},{"$f":"IF(ISBLANK('TA Indicator Bank'!AG9),\"\",'TA Indicator Bank'!AG9)","v":0},{"$f":"IF(ISBLANK('TA Indicator Bank'!AH9),\"\",'TA Indicator Bank'!AH9)","v":0},{"$f":"IF(ISBLANK('TA Indicator Bank'!AI9),\"\",'TA Indicator Bank'!AI9)","v":0},{"$f":"IF(ISBLANK('TA Indicator Bank'!AJ9),\"\",'TA Indicator Bank'!AJ9)","v":0},{"$f":"IF(ISBLANK('TA Indicator Bank'!AK9),\"\",'TA Indicator Bank'!AK9)","v":0},{"$f":"IF(ISBLANK('TA Indicator Bank'!AL9),\"\",'TA Indicator Bank'!AL9)","v":0},{"$f":"IF(ISBLANK('TA Indicator Bank'!AM9),\"\",'TA Indicator Bank'!AM9)","v":0},{"$f":"IF(ISBLANK('TA Indicator Bank'!AN9),\"\",'TA Indicator Bank'!AN9)","v":0},{"$f":"IF(ISBLANK('TA Indicator Bank'!AO9),\"\",'TA Indicator Bank'!AO9)","v":0},{"$f":"IF(ISBLANK('TA Indicator Bank'!AP9),\"\",'TA Indicator Bank'!AP9)","v":0},{"$f":"IF(ISBLANK('TA Indicator Bank'!AQ9),\"\",'TA Indicator Bank'!AQ9)","v":1},{"$f":"IF(ISBLANK('TA Indicator Bank'!AR9),\"\",'TA Indicator Bank'!AR9)","v":0},{"$f":"IF(ISBLANK('TA Indicator Bank'!AS9),\"\",'TA Indicator Bank'!AS9)","v":0},{"$f":"IF(ISBLANK('TA Indicator Bank'!AT9),\"\",'TA Indicator Bank'!AT9)","v":0},{"$f":"IF(AND(J13=1,J$410=1),1,0)","v":1},{"$f":"IF(AND(K13=1,K$410=1),1,0)","v":1},{"$f":"IF(AND(L13=1,L$410=1),1,0)","v":0},{"$f":"IF(AND(M13=1,M$410=1),1,0)","v":0},{"$f":"IF(AND(N13=1,N$410=1),1,0)","v":0},{"$f":"IF(AND(O13=1,O$410=1),1,0)","v":0},{"$f":"IF(AND(P13=1,P$410=1),1,0)","v":0},{"$f":"IF(AND(Q13=1,Q$410=1),1,0)","v":0},{"$f":"IF(AND(R13=1,R$410=1),1,0)","v":0},{"$f":"IF(AND(S13=1,S$410=1),1,0)","v":0},{"$f":"IF(AND(T13=1,T$410=1),1,0)","v":0},{"$f":"IF(AND(U13=1,U$410=1),1,0)","v":0},{"$f":"IF(AND(V13=1,V$410=1),1,0)","v":0},{"$f":"IF(AND(W13=1,W$410=1),1,0)","v":0},1,{"$f":"IF(AND(X13=1,X$410=1),1,0)","v":0},{"$f":"IF(AND(Y13=1,Y$410=1),1,0)","v":0},{"$f":"IF(AND(Z13=1,Z$410=1),1,0)","v":0},{"$f":"IF(AND(AA13=1,AA$410=1),1,0)","v":0},{"$f":"IF(AND(AB13=1,AB$410=1),1,0)","v":0},{"$f":"IF(AND(AC13=1,AC$410=1),1,0)","v":0},{"$f":"IF(AND(AD13=1,AD$410=1),1,0)","v":1},{"$f":"IF(AND(AE13=1,AE$410=1),1,0)","v":0},{"$f":"IF(AND(AF13=1,AF$410=1),1,0)","v":0},1,{"$f":"IF(AND(AG13=1,AG$410=1),1,0)","v":0},{"$f":"IF(AND(AH13=1,AH$410=1),1,0)","v":0},{"$f":"IF(AND(AI13=1,AI$410=1),1,0)","v":0},{"$f":"IF(AND(AJ13=1,AJ$410=1),1,0)","v":0},{"$f":"IF(AND(AK13=1,AK$410=1),1,0)","v":0},{"$f":"IF(AND(AL13=1,AL$410=1),1,0)","v":0},{"$f":"IF(AND(AM13=1,AM$410=1),1,0)","v":0},{"$f":"IF(AND(AN13=1,AN$410=1),1,0)","v":0},{"$f":"IF(AND(AO13=1,AO$410=1),1,0)","v":0},1,{"$f":"IF(AND(AP13=1,AP$410=1),1,0)","v":0},{"$f":"IF(AND(AQ13=1,AQ$410=1),1,0)","v":1},{"$f":"IF(AND(AR13=1,AR$410=1),1,0)","v":0},{"$f":"IF(AND(AS13=1,AS$410=1),1,0)","v":0},{"$f":"IF(AND(AT13=1,AT$410=1),1,0)","v":0},1,1,5,5,{"$f":"IFERROR(SMALL($CL$9:$CL$408,CK13),\"\")","v":5},{"$f":"IFERROR(INDEX($B$9:$I$408,$CM13,COLUMNS($CN$9:CN13)),\"\")","v":"TA005"},{"$f":"IFERROR(INDEX($B$9:$I$408,$CM13,COLUMNS($CN$9:CO13)),\"\")","v":"Number of participants/units that received support"},{"$f":"IFERROR(INDEX($B$9:$I$408,$CM13,COLUMNS($CN$9:CP13)),\"\")","v":"-"},{"$f":"IFERROR(INDEX($B$9:$I$408,$CM13,COLUMNS($CN$9:CQ13)),\"\")","v":"Uptake"},{"$f":"IFERROR(INDEX($B$9:$I$408,$CM13,COLUMNS($CN$9:CR13)),\"\")","v":"Workshops; Training events / courses"},{"$f":"IFERROR(INDEX($B$9:$I$408,$CM13,COLUMNS($CN$9:CS13)),\"\")","v":"Process/asset operation support"},{"$f":"IFERROR(INDEX($B$9:$I$408,$CM13,COLUMNS($CN$9:CT13)),\"\")","v":"-"},{"$f":"IFERROR(INDEX($B$9:$I$408,$CM13,COLUMNS($CN$9:CU13)),\"\")","v":"Number"}]
[null,{"$f":"IF(ISBLANK('TA Indicator Bank'!B10),\"\",'TA Indicator Bank'!B10)","v":"TA006"},{"$f":"IF(ISBLANK('TA Indicator Bank'!C10),\"\",'TA Indicator Bank'!C10)","v":"Number of training modules and guidebooks developed"},{"$f":"IF(ISBLANK('TA Indicator Bank'!D10),\"\",'TA Indicator Bank'!D10)","v":"-"},{"$f":"IF(ISBLANK('TA Indicator Bank'!E10),\"\",'TA Indicator Bank'!E10)","v":"Activity"},{"$f":"IF(ISBLANK('TA Indicator Bank'!F10),\"\",'TA Indicator Bank'!F10)","v":"Training events / courses"},{"$f":"IF(ISBLANK('TA Indicator Bank'!G10),\"\",'TA Indicator Bank'!G10)","v":"-"},{"$f":"IF(ISBLANK('TA Indicator Bank'!H10),\"\",'TA Indicator Bank'!H10)","v":"-"},{"$f":"IF(ISBLANK('TA Indicator Bank'!I10),\"\",'TA Indicator Bank'!I10)","v":"Number"},{"$f":"IF(ISBLANK('TA Indicator Bank'!J10),\"\",'TA Indicator Bank'!J10)","v":0},{"$f":"IF(ISBLANK('TA Indicator Bank'!K10),\"\",'TA Indicator Bank'!K10)","v":1},{"$f":"IF(ISBLANK('TA Indicator Bank'!L10),\"\",'TA Indicator Bank'!L10)","v":0},{"$f":"IF(ISBLANK('TA Indicator Bank'!M10),\"\",'TA Indicator Bank'!M10)","v":0},{"$f":"IF(ISBLANK('TA Indicator Bank'!N10),\"\",'TA Indicator Bank'!N10)","v":0},{"$f":"IF(ISBLANK('TA Indicator Bank'!O10),\"\",'TA Indicator Bank'!O10)","v":0},{"$f":"IF(ISBLANK('TA Indicator Bank'!P10),\"\",'TA Indicator Bank'!P10)","v":0},{"$f":"IF(ISBLANK('TA Indicator Bank'!Q10),\"\",'TA Indicator Bank'!Q10)","v":0},{"$f":"IF(ISBLANK('TA Indicator Bank'!R10),\"\",'TA Indicator Bank'!R10)","v":0},{"$f":"IF(ISBLANK('TA Indicator Bank'!S10),\"\",'TA Indicator Bank'!S10)","v":0},{"$f":"IF(ISBLANK('TA Indicator Bank'!T10),\"\",'TA Indicator Bank'!T10)","v":0},{"$f":"IF(ISBLANK('TA Indicator Bank'!U10),\"\",'TA Indicator Bank'!U10)","v":0},{"$f":"IF(ISBLANK('TA Indicator Bank'!V10),\"\",'TA Indicator Bank'!V10)","v":0},{"$f":"IF(ISBLANK('TA Indicator Bank'!W10),\"\",'TA Indicator Bank'!W10)","v":0},{"$f":"IF(ISBLANK('TA Indicator Bank'!X10),\"\",'TA Indicator Bank'!X10)","v":0},{"$f":"IF(ISBLANK('TA Indicator Bank'!Y10),\"\",'TA Indicator Bank'!Y10)","v":0},{"$f":"IF(ISBLANK('TA Indicator Bank'!Z10),\"\",'TA Indicator Bank'!Z10)","v":0},{"$f":"IF(ISBLANK('TA Indicator Bank'!AA10),\"\",'TA Indicator Bank'!AA10)","v":0},{"$f":"IF(ISBLANK('TA Indicator Bank'!AB10),\"\",'TA Indicator Bank'!AB10)","v":0},{"$f":"IF(ISBLANK('TA Indicator Bank'!AC10),\"\",'TA Indicator Bank'!AC10)","v":0},{"$f":"IF(ISBLANK('TA Indicator Bank'!AD10),\"\",'TA Indicator Bank'!AD10)","v":0},{"$f":"IF(ISBLANK('TA Indicator Bank'!AE10),\"\",'TA Indicator Bank'!AE10)","v":0},{"$f":"IF(ISBLANK('TA Indicator Bank'!AF10),\"\",'TA Indicator Bank'!AF10)","v":0},{"$f":"IF(ISBLANK('TA Indicator Bank'!AG10),\"\",'TA Indicator Bank'!AG10)","v":0},{"$f":"IF(ISBLANK('TA Indicator Bank'!AH10),\"\",'TA Indicator Bank'!AH10)","v":0},{"$f":"IF(ISBLANK('TA Indicator Bank'!AI10),\"\",'TA Indicator Bank'!AI10)","v":0},{"$f":"IF(ISBLANK('TA Indicator Bank'!AJ10),\"\",'TA Indicator Bank'!AJ10)","v":0},{"$f":"IF(ISBLANK('TA Indicator Bank'!AK10),\"\",'TA Indicator Bank'!AK10)","v":0},{"$f":"IF(ISBLANK('TA Indicator Bank'!AL10),\"\",'TA Indicator Bank'!AL10)","v":0},{"$f":"IF(ISBLANK('TA Indicator Bank'!AM10),\"\",'TA Indicator Bank'!AM10)","v":0},{"$f":"IF(ISBLANK('TA Indicator Bank'!AN10),\"\",'TA Indicator Bank'!AN10)","v":0},{"$f":"IF(ISBLANK('TA Indicator Bank'!AO10),\"\",'TA Indicator Bank'!AO10)","v":0},{"$f":"IF(ISBLANK('TA Indicator Bank'!AP10),\"\",'TA Indicator Bank'!AP10)","v":1},{"$f":"IF(ISBLANK('TA Indicator Bank'!AQ10),\"\",'TA Indicator Bank'!AQ10)","v":0},{"$f":"IF(ISBLANK('TA Indicator Bank'!AR10),\"\",'TA Indicator Bank'!AR10)","v":0},{"$f":"IF(ISBLANK('TA Indicator Bank'!AS10),\"\",'TA Indicator Bank'!AS10)","v":0},{"$f":"IF(ISBLANK('TA Indicator Bank'!AT10),\"\",'TA Indicator Bank'!AT10)","v":0},{"$f":"IF(AND(J14=1,J$410=1),1,0)","v":0},{"$f":"IF(AND(K14=1,K$410=1),1,0)","v":1},{"$f":"IF(AND(L14=1,L$410=1),1,0)","v":0},{"$f":"IF(AND(M14=1,M$410=1),1,0)","v":0},{"$f":"IF(AND(N14=1,N$410=1),1,0)","v":0},{"$f":"IF(AND(O14=1,O$410=1),1,0)","v":0},{"$f":"IF(AND(P14=1,P$410=1),1,0)","v":0},{"$f":"IF(AND(Q14=1,Q$410=1),1,0)","v":0},{"$f":"IF(AND(R14=1,R$410=1),1,0)","v":0},{"$f":"IF(AND(S14=1,S$410=1),1,0)","v":0},{"$f":"IF(AND(T14=1,T$410=1),1,0)","v":0},{"$f":"IF(AND(U14=1,U$410=1),1,0)","v":0},{"$f":"IF(AND(V14=1,V$410=1),1,0)","v":0},{"$f":"IF(AND(W14=1,W$410=1),1,0)","v":0},1,{"$f":"IF(AND(X14=1,X$410=1),1,0)","v":0},{"$f":"IF(AND(Y14=1,Y$410=1),1,0)","v":0},{"$f":"IF(AND(Z14=1,Z$410=1),1,0)","v":0},{"$f":"IF(AND(AA14=1,AA$410=1),1,0)","v":0},{"$f":"IF(AND(AB14=1,AB$410=1),1,0)","v":0},{"$f":"IF(AND(AC14=1,AC$410=1),1,0)","v":0},{"$f":"IF(AND(AD14=1,AD$410=1),1,0)","v":0},{"$f":"IF(AND(AE14=1,AE$410=1),1,0)","v":0},{"$f":"IF(AND(AF14=1,AF$410=1),1,0)","v":0},1,{"$f":"IF(AND(AG14=1,AG$410=1),1,0)","v":0},{"$f":"IF(AND(AH14=1,AH$410=1),1,0)","v":0},{"$f":"IF(AND(AI14=1,AI$410=1),1,0)","v":0},{"$f":"IF(AND(AJ14=1,AJ$410=1),1,0)","v":0},{"$f":"IF(AND(AK14=1,AK$410=1),1,0)","v":0},{"$f":"IF(AND(AL14=1,AL$410=1),1,0)","v":0},{"$f":"IF(AND(AM14=1,AM$410=1),1,0)","v":0},{"$f":"IF(AND(AN14=1,AN$410=1),1,0)","v":0},{"$f":"IF(AND(AO14=1,AO$410=1),1,0)","v":0},1,{"$f":"IF(AND(AP14=1,AP$410=1),1,0)","v":1},{"$f":"IF(AND(AQ14=1,AQ$410=1),1,0)","v":0},{"$f":"IF(AND(AR14=1,AR$410=1),1,0)","v":0},{"$f":"IF(AND(AS14=1,AS$410=1),1,0)","v":0},{"$f":"IF(AND(AT14=1,AT$410=1),1,0)","v":0},1,1,6,6,{"$f":"IFERROR(SMALL($CL$9:$CL$408,CK14),\"\")","v":6},{"$f":"IFERROR(INDEX($B$9:$I$408,$CM14,COLUMNS($CN$9:CN14)),\"\")","v":"TA006"},{"$f":"IFERROR(INDEX($B$9:$I$408,$CM14,COLUMNS($CN$9:CO14)),\"\")","v":"Number of training modules and guidebooks developed"},{"$f":"IFERROR(INDEX($B$9:$I$408,$CM14,COLUMNS($CN$9:CP14)),\"\")","v":"-"},{"$f":"IFERROR(INDEX($B$9:$I$408,$CM14,COLUMNS($CN$9:CQ14)),\"\")","v":"Activity"},{"$f":"IFERROR(INDEX($B$9:$I$408,$CM14,COLUMNS($CN$9:CR14)),\"\")","v":"Training events / courses"},{"$f":"IFERROR(INDEX($B$9:$I$408,$CM14,COLUMNS($CN$9:CS14)),\"\")","v":"-"},{"$f":"IFERROR(INDEX($B$9:$I$408,$CM14,COLUMNS($CN$9:CT14)),\"\")","v":"-"},{"$f":"IFERROR(INDEX($B$9:$I$408,$CM14,COLUMNS($CN$9:CU14)),\"\")","v":"Number"}]
[null,{"$f":"IF(ISBLANK('TA Indicator Bank'!B11),\"\",'TA Indicator Bank'!B11)","v":"TA007"},{"$f":"IF(ISBLANK('TA Indicator Bank'!C11),\"\",'TA Indicator Bank'!C11)","v":"Increased knowledge and skills among programme participants"},{"$f":"IF(ISBLANK('TA Indicator Bank'!D11),\"\",'TA Indicator Bank'!D11)","v":"-"},{"$f":"IF(ISBLANK('TA Indicator Bank'!E11),\"\",'TA Indicator Bank'!E11)","v":"Output"},{"$f":"IF(ISBLANK('TA Indicator Bank'!F11),\"\",'TA Indicator Bank'!F11)","v":"-"},{"$f":"IF(ISBLANK('TA Indicator Bank'!G11),\"\",'TA Indicator Bank'!G11)","v":"Capacity building: Technical capacity"},{"$f":"IF(ISBLANK('TA Indicator Bank'!H11),\"\",'TA Indicator Bank'!H11)","v":"-"},{"$f":"IF(ISBLANK('TA Indicator Bank'!I11),\"\",'TA Indicator Bank'!I11)","v":"Yes/No"},{"$f":"IF(ISBLANK('TA Indicator Bank'!J11),\"\",'TA Indicator Bank'!J11)","v":0},{"$f":"IF(ISBLANK('TA Indicator Bank'!K11),\"\",'TA Indicator Bank'!K11)","v":0},{"$f":"IF(ISBLANK('TA Indicator Bank'!L11),\"\",'TA Indicator Bank'!L11)","v":0},{"$f":"IF(ISBLANK('TA Indicator Bank'!M11),\"\",'TA Indicator Bank'!M11)","v":0},{"$f":"IF(ISBLANK('TA Indicator Bank'!N11),\"\",'TA Indicator Bank'!N11)","v":0},{"$f":"IF(ISBLANK('TA Indicator Bank'!O11),\"\",'TA Indicator Bank'!O11)","v":0},{"$f":"IF(ISBLANK('TA Indicator Bank'!P11),\"\",'TA Indicator Bank'!P11)","v":0},{"$f":"IF(ISBLANK('TA Indicator Bank'!Q11),\"\",'TA Indicator Bank'!Q11)","v":0},{"$f":"IF(ISBLANK('TA Indicator Bank'!R11),\"\",'TA Indicator Bank'!R11)","v":0},{"$f":"IF(ISBLANK('TA Indicator Bank'!S11),\"\",'TA Indicator Bank'!S11)","v":0},{"$f":"IF(ISBLANK('TA Indicator Bank'!T11),\"\",'TA Indicator Bank'!T11)","v":0},{"$f":"IF(ISBLANK('TA Indicator Bank'!U11),\"\",'TA Indicator Bank'!U11)","v":0},{"$f":"IF(ISBLANK('TA Indicator Bank'!V11),\"\",'TA Indicator Bank'!V11)","v":0},{"$f":"IF(ISBLANK('TA Indicator Bank'!W11),\"\",'TA Indicator Bank'!W11)","v":0},{"$f":"IF(ISBLANK('TA Indicator Bank'!X11),\"\",'TA Indicator Bank'!X11)","v":0},{"$f":"IF(ISBLANK('TA Indicator Bank'!Y11),\"\",'TA Indicator Bank'!Y11)","v":1},{"$f":"IF(ISBLANK('TA Indicator Bank'!Z11),\"\",'TA Indicator Bank'!Z11)","v":0},{"$f":"IF(ISBLANK('TA Indicator Bank'!AA11),\"\",'TA Indicator Bank'!AA11)","v":0},{"$f":"IF(ISBLANK('TA Indicator Bank'!AB11),\"\",'TA Indicator Bank'!AB11)","v":0},{"$f":"IF(ISBLANK('TA Indicator Bank'!AC11),\"\",'TA Indicator Bank'!AC11)","v":0},{"$f":"IF(ISBLANK('TA Indicator Bank'!AD11),\"\",'TA Indicator Bank'!AD11)","v":0},{"$f":"IF(ISBLANK('TA Indicator Bank'!AE11),\"\",'TA Indicator Bank'!AE11)","v":0},{"$f":"IF(ISBLANK('TA Indicator Bank'!AF11),\"\",'TA Indicator Bank'!AF11)","v":0},{"$f":"IF(ISBLANK('TA Indicator Bank'!AG11),\"\",'TA Indicator Bank'!AG11)","v":0},{"$f":"IF(ISBLANK('TA Indicator Bank'!AH11),\"\",'TA Indicator Bank'!AH11)","v":0},{"$f":"IF(ISBLANK('TA Indicator Bank'!AI11),\"\",'TA Indicator Bank'!AI11)","v":0},{"$f":"IF(ISBLANK('TA Indicator Bank'!AJ11),\"\",'TA Indicator Bank'!AJ11)","v":0},{"$f":"IF(ISBLANK('TA Indicator Bank'!AK11),\"\",'TA Indicator Bank'!AK11)","v":0},{"$f":"IF(ISBLANK('TA Indicator Bank'!AL11),\"\",'TA Indicator Bank'!AL11)","v":0},{"$f":"IF(ISBLANK('TA Indicator Bank'!AM11),\"\",'TA Indicator Bank'!AM11)","v":0},{"$f":"IF(ISBLANK('TA Indicator Bank'!AN11),\"\",'TA Indicator Bank'!AN11)","v":0},{"$f":"IF(ISBLANK('TA Indicator Bank'!AO11),\"\",'TA Indicator Bank'!AO11)","v":0},{"$f":"IF(ISBLANK('TA Indicator Bank'!AP11),\"\",'TA Indicator Bank'!AP11)","v":0},{"$f":"IF(ISBLANK('TA Indicator Bank'!AQ11),\"\",'TA Indicator Bank'!AQ11)","v":0},{"$f":"IF(ISBLANK('TA Indicator Bank'!AR11),\"\",'TA Indicator Bank'!AR11)","v":1},{"$f":"IF(ISBLANK('TA Indicator Bank'!AS11),\"\",'TA Indicator Bank'!AS11)","v":0},{"$f":"IF(ISBLANK('TA Indicator Bank'!AT11),\"\",'TA Indicator Bank'!AT11)","v":0},{"$f":"IF(AND(J15=1,J$410=1),1,0)","v":0},{"$f":"IF(AND(K15=1,K$410=1),1,0)","v":0},{"$f":"IF(AND(L15=1,L$410=1),1,0)","v":0},{"$f":"IF(AND(M15=1,M$410=1),1,0)","v":0},{"$f":"IF(AND(N15=1,N$410=1),1,0)","v":0},{"$f":"IF(AND(O15=1,O$410=1),1,0)","v":0},{"$f":"IF(AND(P15=1,P$410=1),1,0)","v":0},{"$f":"IF(AND(Q15=1,Q$410=1),1,0)","v":0},{"$f":"IF(AND(R15=1,R$410=1),1,0)","v":0},{"$f":"IF(AND(S15=1,S$410=1),1,0)","v":0},{"$f":"IF(AND(T15=1,T$410=1),1,0)","v":0},{"$f":"IF(AND(U15=1,U$410=1),1,0)","v":0},{"$f":"IF(AND(V15=1,V$410=1),1,0)","v":0},{"$f":"IF(AND(W15=1,W$410=1),1,0)","v":0},1,{"$f":"IF(AND(X15=1,X$410=1),1,0)","v":0},{"$f":"IF(AND(Y15=1,Y$410=1),1,0)","v":1},{"$f":"IF(AND(Z15=1,Z$410=1),1,0)","v":0},{"$f":"IF(AND(AA15=1,AA$410=1),1,0)","v":0},{"$f":"IF(AND(AB15=1,AB$410=1),1,0)","v":0},{"$f":"IF(AND(AC15=1,AC$410=1),1,0)","v":0},{"$f":"IF(AND(AD15=1,AD$410=1),1,0)","v":0},{"$f":"IF(AND(AE15=1,AE$410=1),1,0)","v":0},{"$f":"IF(AND(AF15=1,AF$410=1),1,0)","v":0},1,{"$f":"IF(AND(AG15=1,AG$410=1),1,0)","v":0},{"$f":"IF(AND(AH15=1,AH$410=1),1,0)","v":0},{"$f":"IF(AND(AI15=1,AI$410=1),1,0)","v":0},{"$f":"IF(AND(AJ15=1,AJ$410=1),1,0)","v":0},{"$f":"IF(AND(AK15=1,AK$410=1),1,0)","v":0},{"$f":"IF(AND(AL15=1,AL$410=1),1,0)","v":0},{"$f":"IF(AND(AM15=1,AM$410=1),1,0)","v":0},{"$f":"IF(AND(AN15=1,AN$410=1),1,0)","v":0},{"$f":"IF(AND(AO15=1,AO$410=1),1,0)","v":0},1,{"$f":"IF(AND(AP15=1,AP$410=1),1,0)","v":0},{"$f":"IF(AND(AQ15=1,AQ$410=1),1,0)","v":0},{"$f":"IF(AND(AR15=1,AR$410=1),1,0)","v":1},{"$f":"IF(AND(AS15=1,AS$410=1),1,0)","v":0},{"$f":"IF(AND(AT15=1,AT$410=1),1,0)","v":0},1,1,7,7,{"$f":"IFERROR(SMALL($CL$9:$CL$408,CK15),\"\")","v":7},{"$f":"IFERROR(INDEX($B$9:$I$408,$CM15,COLUMNS($CN$9:CN15)),\"\")","v":"TA007"},{"$f":"IFERROR(INDEX($B$9:$I$408,$CM15,COLUMNS($CN$9:CO15)),\"\")","v":"Increased knowledge and skills among programme participants"},{"$f":"IFERROR(INDEX($B$9:$I$408,$CM15,COLUMNS($CN$9:CP15)),\"\")","v":"-"},{"$f":"IFERROR(INDEX($B$9:$I$408,$CM15,COLUMNS($CN$9:CQ15)),\"\")","v":"Output"},{"$f":"IFERROR(INDEX($B$9:$I$408,$CM15,COLUMNS($CN$9:CR15)),\"\")","v":"-"},{"$f":"IFERROR(INDEX($B$9:$I$408,$CM15,COLUMNS($CN$9:CS15)),\"\")","v":"Capacity building: Technical capacity"},{"$f":"IFERROR(INDEX($B$9:$I$408,$CM15,COLUMNS($CN$9:CT15)),\"\")","v":"-"},{"$f":"IFERROR(INDEX($B$9:$I$408,$CM15,COLUMNS($CN$9:CU15)),\"\")","v":"Yes/No"}]
[null,{"$f":"IF(ISBLANK('TA Indicator Bank'!B12),\"\",'TA Indicator Bank'!B12)","v":"TA008"},{"$f":"IF(ISBLANK('TA Indicator Bank'!C12),\"\",'TA Indicator Bank'!C12)","v":"Extent that trained individuals have an effect on their end objective"},{"$f":"IF(ISBLANK('TA Indicator Bank'!D12),\"\",'TA Indicator Bank'!D12)","v":"Can be assessed through a survey of supported individuals, through external evaluation of effectiveness, or evaluation of outputs from the work undertaked by supported individuals."},{"$f":"IF(ISBLANK('TA Indicator Bank'!E12),\"\",'TA Indicator Bank'!E12)","v":"Output"},{"$f":"IF(ISBLANK('TA Indicator Bank'!F12),\"\",'TA Indicator Bank'!F12)","v":"Training events / courses"},{"$f":"IF(ISBLANK('TA Indicator Bank'!G12),\"\",'TA Indicator Bank'!G12)","v":"Domestic policy support; Project development support; Process/asset operation support"},{"$f":"IF(ISBLANK('TA Indicator Bank'!H12),\"\",'TA Indicator Bank'!H12)","v":"-"},{"$f":"IF(ISBLANK('TA Indicator Bank'!I12),\"\",'TA Indicator Bank'!I12)","v":"Narrative"},{"$f":"IF(ISBLANK('TA Indicator Bank'!J12),\"\",'TA Indicator Bank'!J12)","v":0},{"$f":"IF(ISBLANK('TA Indicator Bank'!K12),\"\",'TA Indicator Bank'!K12)","v":1},{"$f":"IF(ISBLANK('TA Indicator Bank'!L12),\"\",'TA Indicator Bank'!L12)","v":0},{"$f":"IF(ISBLANK('TA Indicator Bank'!M12),\"\",'TA Indicator Bank'!M12)","v":0},{"$f":"IF(ISBLANK('TA Indicator Bank'!N12),\"\",'TA Indicator Bank'!N12)","v":0},{"$f":"IF(ISBLANK('TA Indicator Bank'!O12),\"\",'TA Indicator Bank'!O12)","v":0},{"$f":"IF(ISBLANK('TA Indicator Bank'!P12),\"\",'TA Indicator Bank'!P12)","v":0},{"$f":"IF(ISBLANK('TA Indicator Bank'!Q12),\"\",'TA Indicator Bank'!Q12)","v":0},{"$f":"IF(ISBLANK('TA Indicator Bank'!R12),\"\",'TA Indicator Bank'!R12)","v":0},{"$f":"IF(ISBLANK('TA Indicator Bank'!S12),\"\",'TA Indicator Bank'!S12)","v":0},{"$f":"IF(ISBLANK('TA Indicator Bank'!T12),\"\",'TA Indicator Bank'!T12)","v":0},{"$f":"IF(ISBLANK('TA Indicator Bank'!U12),\"\",'TA Indicator Bank'!U12)","v":0},{"$f":"IF(ISBLANK('TA Indicator Bank'!V12),\"\",'TA Indicator Bank'!V12)","v":0},{"$f":"IF(ISBLANK('TA Indicator Bank'!W12),\"\",'TA Indicator Bank'!W12)","v":0},{"$f":"IF(ISBLANK('TA Indicator Bank'!X12),\"\",'TA Indicator Bank'!X12)","v":0},{"$f":"IF(ISBLANK('TA Indicator Bank'!Y12),\"\",'TA Indicator Bank'!Y12)","v":0},{"$f":"IF(ISBLANK('TA Indicator Bank'!Z12),\"\",'TA Indicator Bank'!Z12)","v":0},{"$f":"IF(ISBLANK('TA Indicator Bank'!AA12),\"\",'TA Indicator Bank'!AA12)","v":1},{"$f":"IF(ISBLANK('TA Indicator Bank'!AB12),\"\",'TA Indicator Bank'!AB12)","v":0},{"$f":"IF(ISBLANK('TA Indicator Bank'!AC12),\"\",'TA Indicator Bank'!AC12)","v":1},{"$f":"IF(ISBLANK('TA Indicator Bank'!AD12),\"\",'TA Indicator Bank'!AD12)","v":1},{"$f":"IF(ISBLANK('TA Indicator Bank'!AE12),\"\",'TA Indicator Bank'!AE12)","v":0},{"$f":"IF(ISBLANK('TA Indicator Bank'!AF12),\"\",'TA Indicator Bank'!AF12)","v":0},{"$f":"IF(ISBLANK('TA Indicator Bank'!AG12),\"\",'TA Indicator Bank'!AG12)","v":0},{"$f":"IF(ISBLANK('TA Indicator Bank'!AH12),\"\",'TA Indicator Bank'!AH12)","v":0},{"$f":"IF(ISBLANK('TA Indicator Bank'!AI12),\"\",'TA Indicator Bank'!AI12)","v":0},{"$f":"IF(ISBLANK('TA Indicator Bank'!AJ12),\"\",'TA Indicator Bank'!AJ12)","v":0},{"$f":"IF(ISBLANK('TA Indicator Bank'!AK12),\"\",'TA Indicator Bank'!AK12)","v":0},{"$f":"IF(ISBLANK('TA Indicator Bank'!AL12),\"\",'TA Indicator Bank'!AL12)","v":0},{"$f":"IF(ISBLANK('TA Indicator Bank'!AM12),\"\",'TA Indicator Bank'!AM12)","v":0},{"$f":"IF(ISBLANK('TA Indicator Bank'!AN12),\"\",'TA Indicator Bank'!AN12)","v":0},{"$f":"IF(ISBLANK('TA Indicator Bank'!AO12),\"\",'TA Indicator Bank'!AO12)","v":0},{"$f":"IF(ISBLANK('TA Indicator Bank'!AP12),\"\",'TA Indicator Bank'!AP12)","v":0},{"$f":"IF(ISBLANK('TA Indicator Bank'!AQ12),\"\",'TA Indicator Bank'!AQ12)","v":0},{"$f":"IF(ISBLANK('TA Indicator Bank'!AR12),\"\",'TA Indicator Bank'!AR12)","v":1},{"$f":"IF(ISBLANK('TA Indicator Bank'!AS12),\"\",'TA Indicator Bank'!AS12)","v":0},{"$f":"IF(ISBLANK('TA Indicator Bank'!AT12),\"\",'TA Indicator Bank'!AT12)","v":0},{"$f":"IF(AND(J16=1,J$410=1),1,0)","v":0},{"$f":"IF(AND(K16=1,K$410=1),1,0)","v":1},{"$f":"IF(AND(L16=1,L$410=1),1,0)","v":0},{"$f":"IF(AND(M16=1,M$410=1),1,0)","v":0},{"$f":"IF(AND(N16=1,N$410=1),1,0)","v":0},{"$f":"IF(AND(O16=1,O$410=1),1,0)","v":0},{"$f":"IF(AND(P16=1,P$410=1),1,0)","v":0},{"$f":"IF(AND(Q16=1,Q$410=1),1,0)","v":0},{"$f":"IF(AND(R16=1,R$410=1),1,0)","v":0},{"$f":"IF(AND(S16=1,S$410=1),1,0)","v":0},{"$f":"IF(AND(T16=1,T$410=1),1,0)","v":0},{"$f":"IF(AND(U16=1,U$410=1),1,0)","v":0},{"$f":"IF(AND(V16=1,V$410=1),1,0)","v":0},{"$f":"IF(AND(W16=1,W$410=1),1,0)","v":0},1,{"$f":"IF(AND(X16=1,X$410=1),1,0)","v":0},{"$f":"IF(AND(Y16=1,Y$410=1),1,0)","v":0},{"$f":"IF(AND(Z16=1,Z$410=1),1,0)","v":0},{"$f":"IF(AND(AA16=1,AA$410=1),1,0)","v":1},{"$f":"IF(AND(AB16=1,AB$410=1),1,0)","v":0},{"$f":"IF(AND(AC16=1,AC$410=1),1,0)","v":1},{"$f":"IF(AND(AD16=1,AD$410=1),1,0)","v":1},{"$f":"IF(AND(AE16=1,AE$410=1),1,0)","v":0},{"$f":"IF(AND(AF16=1,AF$410=1),1,0)","v":0},1,{"$f":"IF(AND(AG16=1,AG$410=1),1,0)","v":0},{"$f":"IF(AND(AH16=1,AH$410=1),1,0)","v":0},{"$f":"IF(AND(AI16=1,AI$410=1),1,0)","v":0},{"$f":"IF(AND(AJ16=1,AJ$410=1),1,0)","v":0},{"$f":"IF(AND(AK16=1,AK$410=1),1,0)","v":0},{"$f":"IF(AND(AL16=1,AL$410=1),1,0)","v":0},{"$f":"IF(AND(AM16=1,AM$410=1),1,0)","v":0},{"$f":"IF(AND(AN16=1,AN$410=1),1,0)","v":0},{"$f":"IF(AND(AO16=1,AO$410=1),1,0)","v":0},1,{"$f":"IF(AND(AP16=1,AP$410=1),1,0)","v":0},{"$f":"IF(AND(AQ16=1,AQ$410=1),1,0)","v":0},{"$f":"IF(AND(AR16=1,AR$410=1),1,0)","v":1},{"$f":"IF(AND(AS16=1,AS$410=1),1,0)","v":0},{"$f":"IF(AND(AT16=1,AT$410=1),1,0)","v":0},1,1,8,8,{"$f":"IFERROR(SMALL($CL$9:$CL$408,CK16),\"\")","v":8},{"$f":"IFERROR(INDEX($B$9:$I$408,$CM16,COLUMNS($CN$9:CN16)),\"\")","v":"TA008"},{"$f":"IFERROR(INDEX($B$9:$I$408,$CM16,COLUMNS($CN$9:CO16)),\"\")","v":"Extent that trained individuals have an effect on their end objective"},{"$f":"IFERROR(INDEX($B$9:$I$408,$CM16,COLUMNS($CN$9:CP16)),\"\")","v":"Can be assessed through a survey of supported individuals, through external evaluation of effectiveness, or evaluation of outputs from the work undertaked by supported individuals."},{"$f":"IFERROR(INDEX($B$9:$I$408,$CM16,COLUMNS($CN$9:CQ16)),\"\")","v":"Output"},{"$f":"IFERROR(INDEX($B$9:$I$408,$CM16,COLUMNS($CN$9:CR16)),\"\")","v":"Training events / courses"},{"$f":"IFERROR(INDEX($B$9:$I$408,$CM16,COLUMNS($CN$9:CS16)),\"\")","v":"Domestic policy support; Project development support; Process/asset operation support"},{"$f":"IFERROR(INDEX($B$9:$I$408,$CM16,COLUMNS($CN$9:CT16)),\"\")","v":"-"},{"$f":"IFERROR(INDEX($B$9:$I$408,$CM16,COLUMNS($CN$9:CU16)),\"\")","v":"Narrative"}]
[null,{"$f":"IF(ISBLANK('TA Indicator Bank'!B13),\"\",'TA Indicator Bank'!B13)","v":"TA009"},{"$f":"IF(ISBLANK('TA Indicator Bank'!C13),\"\",'TA Indicator Bank'!C13)","v":"Cost of training compared to quality and quantity of training"},{"$f":"IF(ISBLANK('TA Indicator Bank'!D13),\"\",'TA Indicator Bank'!D13)","v":"Cost-effectiveness metric most useful in comparison to other training, but would require consistent evaluation of training quality."},{"$f":"IF(ISBLANK('TA Indicator Bank'!E13),\"\",'TA Indicator Bank'!E13)","v":"Activity"},{"$f":"IF(ISBLANK('TA Indicator Bank'!F13),\"\",'TA Indicator Bank'!F13)","v":"Training events / courses"},{"$f":"IF(ISBLANK('TA Indicator Bank'!G13),\"\",'TA Indicator Bank'!G13)","v":"-"},{"$f":"IF(ISBLANK('TA Indicator Bank'!H13),\"\",'TA Indicator Bank'!H13)","v":"-"},{"$f":"IF(ISBLANK('TA Indicator Bank'!I13),\"\",'TA Indicator Bank'!I13)","v":"Number"},{"$f":"IF(ISBLANK('TA Indicator Bank'!J13),\"\",'TA Indicator Bank'!J13)","v":0},{"$f":"IF(ISBLANK('TA Indicator Bank'!K13),\"\",'TA Indicator Bank'!K13)","v":1},{"$f":"IF(ISBLANK('TA Indicator Bank'!L13),\"\",'TA Indicator Bank'!L13)","v":0},{"$f":"IF(ISBLANK('TA Indicator Bank'!M13),\"\",'TA Indicator Bank'!M13)","v":0},{"$f":"IF(ISBLANK('TA Indicator Bank'!N13),\"\",'TA Indicator Bank'!N13)","v":0},{"$f":"IF(ISBLANK('TA Indicator Bank'!O13),\"\",'TA Indicator Bank'!O13)","v":0},{"$f":"IF(ISBLANK('TA Indicator Bank'!P13),\"\",'TA Indicator Bank'!P13)","v":0},{"$f":"IF(ISBLANK('TA Indicator Bank'!Q13),\"\",'TA Indicator Bank'!Q13)","v":0},{"$f":"IF(ISBLANK('TA Indicator Bank'!R13),\"\",'TA Indicator Bank'!R13)","v":0},{"$f":"IF(ISBLANK('TA Indicator Bank'!S13),\"\",'TA Indicator Bank'!S13)","v":0},{"$f":"IF(ISBLANK('TA Indicator Bank'!T13),\"\",'TA Indicator Bank'!T13)","v":0},{"$f":"IF(ISBLANK('TA Indicator Bank'!U13),\"\",'TA Indicator Bank'!U13)","v":0},{"$f":"IF(ISBLANK('TA Indicator Bank'!V13),\"\",'TA Indicator Bank'!V13)","v":0},{"$f":"IF(ISBLANK('TA Indicator Bank'!W13),\"\",'TA Indicator Bank'!W13)","v":0},{"$f":"IF(ISBLANK('TA Indicator Bank'!X13),\"\",'TA Indicator Bank'!X13)","v":0},{"$f":"IF(ISBLANK('TA Indicator Bank'!Y13),\"\",'TA Indicator Bank'!Y13)","v":0},{"$f":"IF(ISBLANK('TA Indicator Bank'!Z13),\"\",'TA Indicator Bank'!Z13)","v":0},{"$f":"IF(ISBLANK('TA Indicator Bank'!AA13),\"\",'TA Indicator Bank'!AA13)","v":0},{"$f":"IF(ISBLANK('TA Indicator Bank'!AB13),\"\",'TA Indicator Bank'!AB13)","v":0},{"$f":"IF(ISBLANK('TA Indicator Bank'!AC13),\"\",'TA Indicator Bank'!AC13)","v":0},{"$f":"IF(ISBLANK('TA Indicator Bank'!AD13),\"\",'TA Indicator Bank'!AD13)","v":0},{"$f":"IF(ISBLANK('TA Indicator Bank'!AE13),\"\",'TA Indicator Bank'!AE13)","v":0},{"$f":"IF(ISBLANK('TA Indicator Bank'!AF13),\"\",'TA Indicator Bank'!AF13)","v":0},{"$f":"IF(ISBLANK('TA Indicator Bank'!AG13),\"\",'TA Indicator Bank'!AG13)","v":0},{"$f":"IF(ISBLANK('TA Indicator Bank'!AH13),\"\",'TA Indicator Bank'!AH13)","v":0},{"$f":"IF(ISBLANK('TA Indicator Bank'!AI13),\"\",'TA Indicator Bank'!AI13)","v":0},{"$f":"IF(ISBLANK('TA Indicator Bank'!AJ13),\"\",'TA Indicator Bank'!AJ13)","v":0},{"$f":"IF(ISBLANK('TA Indicator Bank'!AK13),\"\",'TA Indicator Bank'!AK13)","v":0},{"$f":"IF(ISBLANK('TA Indicator Bank'!AL13),\"\",'TA Indicator Bank'!AL13)","v":0},{"$f":"IF(ISBLANK('TA Indicator Bank'!AM13),\"\",'TA Indicator Bank'!AM13)","v":0},{"$f":"IF(ISBLANK('TA Indicator Bank'!AN13),\"\",'TA Indicator Bank'!AN13)","v":0},{"$f":"IF(ISBLANK('TA Indicator Bank'!AO13),\"\",'TA Indicator Bank'!AO13)","v":0},{"$f":"IF(ISBLANK('TA Indicator Bank'!AP13),\"\",'TA Indicator Bank'!AP13)","v":1},{"$f":"IF(ISBLANK('TA Indicator Bank'!AQ13),\"\",'TA Indicator Bank'!AQ13)","v":0},{"$f":"IF(ISBLANK('TA Indicator Bank'!AR13),\"\",'TA Indicator Bank'!AR13)","v":0},{"$f":"IF(ISBLANK('TA Indicator Bank'!AS13),\"\",'TA Indicator Bank'!AS13)","v":0},{"$f":"IF(ISBLANK('TA Indicator Bank'!AT13),\"\",'TA Indicator Bank'!AT13)","v":0},{"$f":"IF(AND(J17=1,J$410=1),1,0)","v":0},{"$f":"IF(AND(K17=1,K$410=1),1,0)","v":1},{"$f":"IF(AND(L17=1,L$410=1),1,0)","v":0},{"$f":"IF(AND(M17=1,M$410=1),1,0)","v":0},{"$f":"IF(AND(N17=1,N$410=1),1,0)","v":0},{"$f":"IF(AND(O17=1,O$410=1),1,0)","v":0},{"$f":"IF(AND(P17=1,P$410=1),1,0)","v":0},{"$f":"IF(AND(Q17=1,Q$410=1),1,0)","v":0},{"$f":"IF(AND(R17=1,R$410=1),1,0)","v":0},{"$f":"IF(AND(S17=1,S$410=1),1,0)","v":0},{"$f":"IF(AND(T17=1,T$410=1),1,0)","v":0},{"$f":"IF(AND(U17=1,U$410=1),1,0)","v":0},{"$f":"IF(AND(V17=1,V$410=1),1,0)","v":0},{"$f":"IF(AND(W17=1,W$410=1),1,0)","v":0},1,{"$f":"IF(AND(X17=1,X$410=1),1,0)","v":0},{"$f":"IF(AND(Y17=1,Y$410=1),1,0)","v":0},{"$f":"IF(AND(Z17=1,Z$410=1),1,0)","v":0},{"$f":"IF(AND(AA17=1,AA$410=1),1,0)","v":0},{"$f":"IF(AND(AB17=1,AB$410=1),1,0)","v":0},{"$f":"IF(AND(AC17=1,AC$410=1),1,0)","v":0},{"$f":"IF(AND(AD17=1,AD$410=1),1,0)","v":0},{"$f":"IF(AND(AE17=1,AE$410=1),1,0)","v":0},{"$f":"IF(AND(AF17=1,AF$410=1),1,0)","v":0},1,{"$f":"IF(AND(AG17=1,AG$410=1),1,0)","v":0},{"$f":"IF(AND(AH17=1,AH$410=1),1,0)","v":0},{"$f":"IF(AND(AI17=1,AI$410=1),1,0)","v":0},{"$f":"IF(AND(AJ17=1,AJ$410=1),1,0)","v":0},{"$f":"IF(AND(AK17=1,AK$410=1),1,0)","v":0},{"$f":"IF(AND(AL17=1,AL$410=1),1,0)","v":0},{"$f":"IF(AND(AM17=1,AM$410=1),1,0)","v":0},{"$f":"IF(AND(AN17=1,AN$410=1),1,0)","v":0},{"$f":"IF(AND(AO17=1,AO$410=1),1,0)","v":0},1,{"$f":"IF(AND(AP17=1,AP$410=1),1,0)","v":1},{"$f":"IF(AND(AQ17=1,AQ$410=1),1,0)","v":0},{"$f":"IF(AND(AR17=1,AR$410=1),1,0)","v":0},{"$f":"IF(AND(AS17=1,AS$410=1),1,0)","v":0},{"$f":"IF(AND(AT17=1,AT$410=1),1,0)","v":0},1,1,9,9,{"$f":"IFERROR(SMALL($CL$9:$CL$408,CK17),\"\")","v":9},{"$f":"IFERROR(INDEX($B$9:$I$408,$CM17,COLUMNS($CN$9:CN17)),\"\")","v":"TA009"},{"$f":"IFERROR(INDEX($B$9:$I$408,$CM17,COLUMNS($CN$9:CO17)),\"\")","v":"Cost of training compared to quality and quantity of training"},{"$f":"IFERROR(INDEX($B$9:$I$408,$CM17,COLUMNS($CN$9:CP17)),\"\")","v":"Cost-effectiveness metric most useful in comparison to other training, but would require consistent evaluation of training quality."},{"$f":"IFERROR(INDEX($B$9:$I$408,$CM17,COLUMNS($CN$9:CQ17)),\"\")","v":"Activity"},{"$f":"IFERROR(INDEX($B$9:$I$408,$CM17,COLUMNS($CN$9:CR17)),\"\")","v":"Training events / courses"},{"$f":"IFERROR(INDEX($B$9:$I$408,$CM17,COLUMNS($CN$9:CS17)),\"\")","v":"-"},{"$f":"IFERROR(INDEX($B$9:$I$408,$CM17,COLUMNS($CN$9:CT17)),\"\")","v":"-"},{"$f":"IFERROR(INDEX($B$9:$I$408,$CM17,COLUMNS($CN$9:CU17)),\"\")","v":"Number"}]
[null,{"$f":"IF(ISBLANK('TA Indicator Bank'!B14),\"\",'TA Indicator Bank'!B14)","v":"TA010"},{"$f":"IF(ISBLANK('TA Indicator Bank'!C14),\"\",'TA Indicator Bank'!C14)","v":"Number of policymakers whose awareness has been raised through an event"},{"$f":"IF(ISBLANK('TA Indicator Bank'!D14),\"\",'TA Indicator Bank'!D14)","v":"Can be assessed via surveys, with lagged surveys assessing the degree of spread of awareness within policy-making community, and the degree of knowledge retention over time."},{"$f":"IF(ISBLANK('TA Indicator Bank'!E14),\"\",'TA Indicator Bank'!E14)","v":"Uptake"},{"$f":"IF(ISBLANK('TA Indicator Bank'!F14),\"\",'TA Indicator Bank'!F14)","v":"Conferences, seminars or networking events"},{"$f":"IF(ISBLANK('TA Indicator Bank'!G14),\"\",'TA Indicator Bank'!G14)","v":"-"},{"$f":"IF(ISBLANK('TA Indicator Bank'!H14),\"\",'TA Indicator Bank'!H14)","v":"-"},{"$f":"IF(ISBLANK('TA Indicator Bank'!I14),\"\",'TA Indicator Bank'!I14)","v":"Number"},{"$f":"IF(ISBLANK('TA Indicator Bank'!J14),\"\",'TA Indicator Bank'!J14)","v":0},{"$f":"IF(ISBLANK('TA Indicator Bank'!K14),\"\",'TA Indicator Bank'!K14)","v":0},{"$f":"IF(ISBLANK('TA Indicator Bank'!L14),\"\",'TA Indicator Bank'!L14)","v":1},{"$f":"IF(ISBLANK('TA Indicator Bank'!M14),\"\",'TA Indicator Bank'!M14)","v":0},{"$f":"IF(ISBLANK('TA Indicator Bank'!N14),\"\",'TA Indicator Bank'!N14)","v":0},{"$f":"IF(ISBLANK('TA Indicator Bank'!O14),\"\",'TA Indicator Bank'!O14)","v":0},{"$f":"IF(ISBLANK('TA Indicator Bank'!P14),\"\",'TA Indicator Bank'!P14)","v":0},{"$f":"IF(ISBLANK('TA Indicator Bank'!Q14),\"\",'TA Indicator Bank'!Q14)","v":0},{"$f":"IF(ISBLANK('TA Indicator Bank'!R14),\"\",'TA Indicator Bank'!R14)","v":0},{"$f":"IF(ISBLANK('TA Indicator Bank'!S14),\"\",'TA Indicator Bank'!S14)","v":0},{"$f":"IF(ISBLANK('TA Indicator Bank'!T14),\"\",'TA Indicator Bank'!T14)","v":0},{"$f":"IF(ISBLANK('TA Indicator Bank'!U14),\"\",'TA Indicator Bank'!U14)","v":0},{"$f":"IF(ISBLANK('TA Indicator Bank'!V14),\"\",'TA Indicator Bank'!V14)","v":0},{"$f":"IF(ISBLANK('TA Indicator Bank'!W14),\"\",'TA Indicator Bank'!W14)","v":0},{"$f":"IF(ISBLANK('TA Indicator Bank'!X14),\"\",'TA Indicator Bank'!X14)","v":0},{"$f":"IF(ISBLANK('TA Indicator Bank'!Y14),\"\",'TA Indicator Bank'!Y14)","v":0},{"$f":"IF(ISBLANK('TA Indicator Bank'!Z14),\"\",'TA Indicator Bank'!Z14)","v":0},{"$f":"IF(ISBLANK('TA Indicator Bank'!AA14),\"\",'TA Indicator Bank'!AA14)","v":0},{"$f":"IF(ISBLANK('TA Indicator Bank'!AB14),\"\",'TA Indicator Bank'!AB14)","v":0},{"$f":"IF(ISBLANK('TA Indicator Bank'!AC14),\"\",'TA Indicator Bank'!AC14)","v":0},{"$f":"IF(ISBLANK('TA Indicator Bank'!AD14),\"\",'TA Indicator Bank'!AD14)","v":0},{"$f":"IF(ISBLANK('TA Indicator Bank'!AE14),\"\",'TA Indicator Bank'!AE14)","v":0},{"$f":"IF(ISBLANK('TA Indicator Bank'!AF14),\"\",'TA Indicator Bank'!AF14)","v":0},{"$f":"IF(ISBLANK('TA Indicator Bank'!AG14),\"\",'TA Indicator Bank'!AG14)","v":0},{"$f":"IF(ISBLANK('TA Indicator Bank'!AH14),\"\",'TA Indicator Bank'!AH14)","v":0},{"$f":"IF(ISBLANK('TA Indicator Bank'!AI14),\"\",'TA Indicator Bank'!AI14)","v":0},{"$f":"IF(ISBLANK('TA Indicator Bank'!AJ14),\"\",'TA Indicator Bank'!AJ14)","v":0},{"$f":"IF(ISBLANK('TA Indicator Bank'!AK14),\"\",'TA Indicator Bank'!AK14)","v":0},{"$f":"IF(ISBLANK('TA Indicator Bank'!AL14),\"\",'TA Indicator Bank'!AL14)","v":0},{"$f":"IF(ISBLANK('TA Indicator Bank'!AM14),\"\",'TA Indicator Bank'!AM14)","v":0},{"$f":"IF(ISBLANK('TA Indicator Bank'!AN14),\"\",'TA Indicator Bank'!AN14)","v":0},{"$f":"IF(ISBLANK('TA Indicator Bank'!AO14),\"\",'TA Indicator Bank'!AO14)","v":0},{"$f":"IF(ISBLANK('TA Indicator Bank'!AP14),\"\",'TA Indicator Bank'!AP14)","v":0},{"$f":"IF(ISBLANK('TA Indicator Bank'!AQ14),\"\",'TA Indicator Bank'!AQ14)","v":1},{"$f":"IF(ISBLANK('TA Indicator Bank'!AR14),\"\",'TA Indicator Bank'!AR14)","v":0},{"$f":"IF(ISBLANK('TA Indicator Bank'!AS14),\"\",'TA Indicator Bank'!AS14)","v":0},{"$f":"IF(ISBLANK('TA Indicator Bank'!AT14),\"\",'TA Indicator Bank'!AT14)","v":0},{"$f":"IF(AND(J18=1,J$410=1),1,0)","v":0},{"$f":"IF(AND(K18=1,K$410=1),1,0)","v":0},{"$f":"IF(AND(L18=1,L$410=1),1,0)","v":1},{"$f":"IF(AND(M18=1,M$410=1),1,0)","v":0},{"$f":"IF(AND(N18=1,N$410=1),1,0)","v":0},{"$f":"IF(AND(O18=1,O$410=1),1,0)","v":0},{"$f":"IF(AND(P18=1,P$410=1),1,0)","v":0},{"$f":"IF(AND(Q18=1,Q$410=1),1,0)","v":0},{"$f":"IF(AND(R18=1,R$410=1),1,0)","v":0},{"$f":"IF(AND(S18=1,S$410=1),1,0)","v":0},{"$f":"IF(AND(T18=1,T$410=1),1,0)","v":0},{"$f":"IF(AND(U18=1,U$410=1),1,0)","v":0},{"$f":"IF(AND(V18=1,V$410=1),1,0)","v":0},{"$f":"IF(AND(W18=1,W$410=1),1,0)","v":0},1,{"$f":"IF(AND(X18=1,X$410=1),1,0)","v":0},{"$f":"IF(AND(Y18=1,Y$410=1),1,0)","v":0},{"$f":"IF(AND(Z18=1,Z$410=1),1,0)","v":0},{"$f":"IF(AND(AA18=1,AA$410=1),1,0)","v":0},{"$f":"IF(AND(AB18=1,AB$410=1),1,0)","v":0},{"$f":"IF(AND(AC18=1,AC$410=1),1,0)","v":0},{"$f":"IF(AND(AD18=1,AD$410=1),1,0)","v":0},{"$f":"IF(AND(AE18=1,AE$410=1),1,0)","v":0},{"$f":"IF(AND(AF18=1,AF$410=1),1,0)","v":0},1,{"$f":"IF(AND(AG18=1,AG$410=1),1,0)","v":0},{"$f":"IF(AND(AH18=1,AH$410=1),1,0)","v":0},{"$f":"IF(AND(AI18=1,AI$410=1),1,0)","v":0},{"$f":"IF(AND(AJ18=1,AJ$410=1),1,0)","v":0},{"$f":"IF(AND(AK18=1,AK$410=1),1,0)","v":0},{"$f":"IF(AND(AL18=1,AL$410=1),1,0)","v":0},{"$f":"IF(AND(AM18=1,AM$410=1),1,0)","v":0},{"$f":"IF(AND(AN18=1,AN$410=1),1,0)","v":0},{"$f":"IF(AND(AO18=1,AO$410=1),1,0)","v":0},1,{"$f":"IF(AND(AP18=1,AP$410=1),1,0)","v":0},{"$f":"IF(AND(AQ18=1,AQ$410=1),1,0)","v":1},{"$f":"IF(AND(AR18=1,AR$410=1),1,0)","v":0},{"$f":"IF(AND(AS18=1,AS$410=1),1,0)","v":0},{"$f":"IF(AND(AT18=1,AT$410=1),1,0)","v":0},1,1,10,10,{"$f":"IFERROR(SMALL($CL$9:$CL$408,CK18),\"\")","v":10},{"$f":"IFERROR(INDEX($B$9:$I$408,$CM18,COLUMNS($CN$9:CN18)),\"\")","v":"TA010"},{"$f":"IFERROR(INDEX($B$9:$I$408,$CM18,COLUMNS($CN$9:CO18)),\"\")","v":"Number of policymakers whose awareness has been raised through an event"},{"$f":"IFERROR(INDEX($B$9:$I$408,$CM18,COLUMNS($CN$9:CP18)),\"\")","v":"Can be assessed via surveys, with lagged surveys assessing the degree of spread of awareness within policy-making community, and the degree of knowledge retention over time."},{"$f":"IFERROR(INDEX($B$9:$I$408,$CM18,COLUMNS($CN$9:CQ18)),\"\")","v":"Uptake"},{"$f":"IFERROR(INDEX($B$9:$I$408,$CM18,COLUMNS($CN$9:CR18)),\"\")","v":"Conferences, seminars or networking events"},{"$f":"IFERROR(INDEX($B$9:$I$408,$CM18,COLUMNS($CN$9:CS18)),\"\")","v":"-"},{"$f":"IFERROR(INDEX($B$9:$I$408,$CM18,COLUMNS($CN$9:CT18)),\"\")","v":"-"},{"$f":"IFERROR(INDEX($B$9:$I$408,$CM18,COLUMNS($CN$9:CU18)),\"\")","v":"Number"}]
[null,{"$f":"IF(ISBLANK('TA Indicator Bank'!B15),\"\",'TA Indicator Bank'!B15)","v":"TA011"},{"$f":"IF(ISBLANK('TA Indicator Bank'!C15),\"\",'TA Indicator Bank'!C15)","v":"Number of organisations and stakeholders promoting the programme outcomes beyond the programme"},{"$f":"IF(ISBLANK('TA Indicator Bank'!D15),\"\",'TA Indicator Bank'!D15)","v":"-"},{"$f":"IF(ISBLANK('TA Indicator Bank'!E15),\"\",'TA Indicator Bank'!E15)","v":"Uptake"},{"$f":"IF(ISBLANK('TA Indicator Bank'!F15),\"\",'TA Indicator Bank'!F15)","v":"Conferences, seminars or networking events"},{"$f":"IF(ISBLANK('TA Indicator Bank'!G15),\"\",'TA Indicator Bank'!G15)","v":"-"},{"$f":"IF(ISBLANK('TA Indicator Bank'!H15),\"\",'TA Indicator Bank'!H15)","v":"-"},{"$f":"IF(ISBLANK('TA Indicator Bank'!I15),\"\",'TA Indicator Bank'!I15)","v":"Number"},{"$f":"IF(ISBLANK('TA Indicator Bank'!J15),\"\",'TA Indicator Bank'!J15)","v":0},{"$f":"IF(ISBLANK('TA Indicator Bank'!K15),\"\",'TA Indicator Bank'!K15)","v":0},{"$f":"IF(ISBLANK('TA Indicator Bank'!L15),\"\",'TA Indicator Bank'!L15)","v":1},{"$f":"IF(ISBLANK('TA Indicator Bank'!M15),\"\",'TA Indicator Bank'!M15)","v":0},{"$f":"IF(ISBLANK('TA Indicator Bank'!N15),\"\",'TA Indicator Bank'!N15)","v":0},{"$f":"IF(ISBLANK('TA Indicator Bank'!O15),\"\",'TA Indicator Bank'!O15)","v":0},{"$f":"IF(ISBLANK('TA Indicator Bank'!P15),\"\",'TA Indicator Bank'!P15)","v":0},{"$f":"IF(ISBLANK('TA Indicator Bank'!Q15),\"\",'TA Indicator Bank'!Q15)","v":0},{"$f":"IF(ISBLANK('TA Indicator Bank'!R15),\"\",'TA Indicator Bank'!R15)","v":0},{"$f":"IF(ISBLANK('TA Indicator Bank'!S15),\"\",'TA Indicator Bank'!S15)","v":0},{"$f":"IF(ISBLANK('TA Indicator Bank'!T15),\"\",'TA Indicator Bank'!T15)","v":0},{"$f":"IF(ISBLANK('TA Indicator Bank'!U15),\"\",'TA Indicator Bank'!U15)","v":0},{"$f":"IF(ISBLANK('TA Indicator Bank'!V15),\"\",'TA Indicator Bank'!V15)","v":0},{"$f":"IF(ISBLANK('TA Indicator Bank'!W15),\"\",'TA Indicator Bank'!W15)","v":0},{"$f":"IF(ISBLANK('TA Indicator Bank'!X15),\"\",'TA Indicator Bank'!X15)","v":0},{"$f":"IF(ISBLANK('TA Indicator Bank'!Y15),\"\",'TA Indicator Bank'!Y15)","v":0},{"$f":"IF(ISBLANK('TA Indicator Bank'!Z15),\"\",'TA Indicator Bank'!Z15)","v":0},{"$f":"IF(ISBLANK('TA Indicator Bank'!AA15),\"\",'TA Indicator Bank'!AA15)","v":0},{"$f":"IF(ISBLANK('TA Indicator Bank'!AB15),\"\",'TA Indicator Bank'!AB15)","v":0},{"$f":"IF(ISBLANK('TA Indicator Bank'!AC15),\"\",'TA Indicator Bank'!AC15)","v":0},{"$f":"IF(ISBLANK('TA Indicator Bank'!AD15),\"\",'TA Indicator Bank'!AD15)","v":0},{"$f":"IF(ISBLANK('TA Indicator Bank'!AE15),\"\",'TA Indicator Bank'!AE15)","v":0},{"$f":"IF(ISBLANK('TA Indicator Bank'!AF15),\"\",'TA Indicator Bank'!AF15)","v":0},{"$f":"IF(ISBLANK('TA Indicator Bank'!AG15),\"\",'TA Indicator Bank'!AG15)","v":0},{"$f":"IF(ISBLANK('TA Indicator Bank'!AH15),\"\",'TA Indicator Bank'!AH15)","v":0},{"$f":"IF(ISBLANK('TA Indicator Bank'!AI15),\"\",'TA Indicator Bank'!AI15)","v":0},{"$f":"IF(ISBLANK('TA Indicator Bank'!AJ15),\"\",'TA Indicator Bank'!AJ15)","v":0},{"$f":"IF(ISBLANK('TA Indicator Bank'!AK15),\"\",'TA Indicator Bank'!AK15)","v":0},{"$f":"IF(ISBLANK('TA Indicator Bank'!AL15),\"\",'TA Indicator Bank'!AL15)","v":0},{"$f":"IF(ISBLANK('TA Indicator Bank'!AM15),\"\",'TA Indicator Bank'!AM15)","v":0},{"$f":"IF(ISBLANK('TA Indicator Bank'!AN15),\"\",'TA Indicator Bank'!AN15)","v":0},{"$f":"IF(ISBLANK('TA Indicator Bank'!AO15),\"\",'TA Indicator Bank'!AO15)","v":0},{"$f":"IF(ISBLANK('TA Indicator Bank'!AP15),\"\",'TA Indicator Bank'!AP15)","v":0},{"$f":"IF(ISBLANK('TA Indicator Bank'!AQ15),\"\",'TA Indicator Bank'!AQ15)","v":1},{"$f":"IF(ISBLANK('TA Indicator Bank'!AR15),\"\",'TA Indicator Bank'!AR15)","v":0},{"$f":"IF(ISBLANK('TA Indicator Bank'!AS15),\"\",'TA Indicator Bank'!AS15)","v":0},{"$f":"IF(ISBLANK('TA Indicator Bank'!AT15),\"\",'TA Indicator Bank'!AT15)","v":0},{"$f":"IF(AND(J19=1,J$410=1),1,0)","v":0},{"$f":"IF(AND(K19=1,K$410=1),1,0)","v":0},{"$f":"IF(AND(L19=1,L$410=1),1,0)","v":1},{"$f":"IF(AND(M19=1,M$410=1),1,0)","v":0},{"$f":"IF(AND(N19=1,N$410=1),1,0)","v":0},{"$f":"IF(AND(O19=1,O$410=1),1,0)","v":0},{"$f":"IF(AND(P19=1,P$410=1),1,0)","v":0},{"$f":"IF(AND(Q19=1,Q$410=1),1,0)","v":0},{"$f":"IF(AND(R19=1,R$410=1),1,0)","v":0},{"$f":"IF(AND(S19=1,S$410=1),1,0)","v":0},{"$f":"IF(AND(T19=1,T$410=1),1,0)","v":0},{"$f":"IF(AND(U19=1,U$410=1),1,0)","v":0},{"$f":"IF(AND(V19=1,V$410=1),1,0)","v":0},{"$f":"IF(AND(W19=1,W$410=1),1,0)","v":0},1,{"$f":"IF(AND(X19=1,X$410=1),1,0)","v":0},{"$f":"IF(AND(Y19=1,Y$410=1),1,0)","v":0},{"$f":"IF(AND(Z19=1,Z$410=1),1,0)","v":0},{"$f":"IF(AND(AA19=1,AA$410=1),1,0)","v":0},{"$f":"IF(AND(AB19=1,AB$410=1),1,0)","v":0},{"$f":"IF(AND(AC19=1,AC$410=1),1,0)","v":0},{"$f":"IF(AND(AD19=1,AD$410=1),1,0)","v":0},{"$f":"IF(AND(AE19=1,AE$410=1),1,0)","v":0},{"$f":"IF(AND(AF19=1,AF$410=1),1,0)","v":0},1,{"$f":"IF(AND(AG19=1,AG$410=1),1,0)","v":0},{"$f":"IF(AND(AH19=1,AH$410=1),1,0)","v":0},{"$f":"IF(AND(AI19=1,AI$410=1),1,0)","v":0},{"$f":"IF(AND(AJ19=1,AJ$410=1),1,0)","v":0},{"$f":"IF(AND(AK19=1,AK$410=1),1,0)","v":0},{"$f":"IF(AND(AL19=1,AL$410=1),1,0)","v":0},{"$f":"IF(AND(AM19=1,AM$410=1),1,0)","v":0},{"$f":"IF(AND(AN19=1,AN$410=1),1,0)","v":0},{"$f":"IF(AND(AO19=1,AO$410=1),1,0)","v":0},1,{"$f":"IF(AND(AP19=1,AP$410=1),1,0)","v":0},{"$f":"IF(AND(AQ19=1,AQ$410=1),1,0)","v":1},{"$f":"IF(AND(AR19=1,AR$410=1),1,0)","v":0},{"$f":"IF(AND(AS19=1,AS$410=1),1,0)","v":0},{"$f":"IF(AND(AT19=1,AT$410=1),1,0)","v":0},1,1,11,11,{"$f":"IFERROR(SMALL($CL$9:$CL$408,CK19),\"\")","v":11},{"$f":"IFERROR(INDEX($B$9:$I$408,$CM19,COLUMNS($CN$9:CN19)),\"\")","v":"TA011"},{"$f":"IFERROR(INDEX($B$9:$I$408,$CM19,COLUMNS($CN$9:CO19)),\"\")","v":"Number of organisations and stakeholders promoting the programme outcomes beyond the programme"},{"$f":"IFERROR(INDEX($B$9:$I$408,$CM19,COLUMNS($CN$9:CP19)),\"\")","v":"-"},{"$f":"IFERROR(INDEX($B$9:$I$408,$CM19,COLUMNS($CN$9:CQ19)),\"\")","v":"Uptake"},{"$f":"IFERROR(INDEX($B$9:$I$408,$CM19,COLUMNS($CN$9:CR19)),\"\")","v":"Conferences, seminars or networking events"},{"$f":"IFERROR(INDEX($B$9:$I$408,$CM19,COLUMNS($CN$9:CS19)),\"\")","v":"-"},{"$f":"IFERROR(INDEX($B$9:$I$408,$CM19,COLUMNS($CN$9:CT19)),\"\")","v":"-"},{"$f":"IFERROR(INDEX($B$9:$I$408,$CM19,COLUMNS($CN$9:CU19)),\"\")","v":"Number"}]
[null,{"$f":"IF(ISBLANK('TA Indicator Bank'!B16),\"\",'TA Indicator Bank'!B16)","v":"TA012"},{"$f":"IF(ISBLANK('TA Indicator Bank'!C16),\"\",'TA Indicator Bank'!C16)","v":"Number of countries where government uses project outcomes in stakeholder meetings"},{"$f":"IF(ISBLANK('TA Indicator Bank'!D16),\"\",'TA Indicator Bank'!D16)","v":"-"},{"$f":"IF(ISBLANK('TA Indicator Bank'!E16),\"\",'TA Indicator Bank'!E16)","v":"Uptake"},{"$f":"IF(ISBLANK('TA Indicator Bank'!F16),\"\",'TA Indicator Bank'!F16)","v":"Conferences, seminars or networking events"},{"$f":"IF(ISBLANK('TA Indicator Bank'!G16),\"\",'TA Indicator Bank'!G16)","v":"-"},{"$f":"IF(ISBLANK('TA Indicator Bank'!H16),\"\",'TA Indicator Bank'!H16)","v":"-"},{"$f":"IF(ISBLANK('TA Indicator Bank'!I16),\"\",'TA Indicator Bank'!I16)","v":"Number"},{"$f":"IF(ISBLANK('TA Indicator Bank'!J16),\"\",'TA Indicator Bank'!J16)","v":0},{"$f":"IF(ISBLANK('TA Indicator Bank'!K16),\"\",'TA Indicator Bank'!K16)","v":0},{"$f":"IF(ISBLANK('TA Indicator Bank'!L16),\"\",'TA Indicator Bank'!L16)","v":1},{"$f":"IF(ISBLANK('TA Indicator Bank'!M16),\"\",'TA Indicator Bank'!M16)","v":0},{"$f":"IF(ISBLANK('TA Indicator Bank'!N16),\"\",'TA Indicator Bank'!N16)","v":0},{"$f":"IF(ISBLANK('TA Indicator Bank'!O16),\"\",'TA Indicator Bank'!O16)","v":0},{"$f":"IF(ISBLANK('TA Indicator Bank'!P16),\"\",'TA Indicator Bank'!P16)","v":0},{"$f":"IF(ISBLANK('TA Indicator Bank'!Q16),\"\",'TA Indicator Bank'!Q16)","v":0},{"$f":"IF(ISBLANK('TA Indicator Bank'!R16),\"\",'TA Indicator Bank'!R16)","v":0},{"$f":"IF(ISBLANK('TA Indicator Bank'!S16),\"\",'TA Indicator Bank'!S16)","v":0},{"$f":"IF(ISBLANK('TA Indicator Bank'!T16),\"\",'TA Indicator Bank'!T16)","v":0},{"$f":"IF(ISBLANK('TA Indicator Bank'!U16),\"\",'TA Indicator Bank'!U16)","v":0},{"$f":"IF(ISBLANK('TA Indicator Bank'!V16),\"\",'TA Indicator Bank'!V16)","v":0},{"$f":"IF(ISBLANK('TA Indicator Bank'!W16),\"\",'TA Indicator Bank'!W16)","v":0},{"$f":"IF(ISBLANK('TA Indicator Bank'!X16),\"\",'TA Indicator Bank'!X16)","v":0},{"$f":"IF(ISBLANK('TA Indicator Bank'!Y16),\"\",'TA Indicator Bank'!Y16)","v":0},{"$f":"IF(ISBLANK('TA Indicator Bank'!Z16),\"\",'TA Indicator Bank'!Z16)","v":0},{"$f":"IF(ISBLANK('TA Indicator Bank'!AA16),\"\",'TA Indicator Bank'!AA16)","v":0},{"$f":"IF(ISBLANK('TA Indicator Bank'!AB16),\"\",'TA Indicator Bank'!AB16)","v":0},{"$f":"IF(ISBLANK('TA Indicator Bank'!AC16),\"\",'TA Indicator Bank'!AC16)","v":0},{"$f":"IF(ISBLANK('TA Indicator Bank'!AD16),\"\",'TA Indicator Bank'!AD16)","v":0},{"$f":"IF(ISBLANK('TA Indicator Bank'!AE16),\"\",'TA Indicator Bank'!AE16)","v":0},{"$f":"IF(ISBLANK('TA Indicator Bank'!AF16),\"\",'TA Indicator Bank'!AF16)","v":0},{"$f":"IF(ISBLANK('TA Indicator Bank'!AG16),\"\",'TA Indicator Bank'!AG16)","v":0},{"$f":"IF(ISBLANK('TA Indicator Bank'!AH16),\"\",'TA Indicator Bank'!AH16)","v":0},{"$f":"IF(ISBLANK('TA Indicator Bank'!AI16),\"\",'TA Indicator Bank'!AI16)","v":0},{"$f":"IF(ISBLANK('TA Indicator Bank'!AJ16),\"\",'TA Indicator Bank'!AJ16)","v":0},{"$f":"IF(ISBLANK('TA Indicator Bank'!AK16),\"\",'TA Indicator Bank'!AK16)","v":0},{"$f":"IF(ISBLANK('TA Indicator Bank'!AL16),\"\",'TA Indicator Bank'!AL16)","v":0},{"$f":"IF(ISBLANK('TA Indicator Bank'!AM16),\"\",'TA Indicator Bank'!AM16)","v":0},{"$f":"IF(ISBLANK('TA Indicator Bank'!AN16),\"\",'TA Indicator Bank'!AN16)","v":0},{"$f":"IF(ISBLANK('TA Indicator Bank'!AO16),\"\",'TA Indicator Bank'!AO16)","v":0},{"$f":"IF(ISBLANK('TA Indicator Bank'!AP16),\"\",'TA Indicator Bank'!AP16)","v":0},{"$f":"IF(ISBLANK('TA Indicator Bank'!AQ16),\"\",'TA Indicator Bank'!AQ16)","v":1},{"$f":"IF(ISBLANK('TA Indicator Bank'!AR16),\"\",'TA Indicator Bank'!AR16)","v":0},{"$f":"IF(ISBLANK('TA Indicator Bank'!AS16),\"\",'TA Indicator Bank'!AS16)","v":0},{"$f":"IF(ISBLANK('TA Indicator Bank'!AT16),\"\",'TA Indicator Bank'!AT16)","v":0},{"$f":"IF(AND(J20=1,J$410=1),1,0)","v":0},{"$f":"IF(AND(K20=1,K$410=1),1,0)","v":0},{"$f":"IF(AND(L20=1,L$410=1),1,0)","v":1},{"$f":"IF(AND(M20=1,M$410=1),1,0)","v":0},{"$f":"IF(AND(N20=1,N$410=1),1,0)","v":0},{"$f":"IF(AND(O20=1,O$410=1),1,0)","v":0},{"$f":"IF(AND(P20=1,P$410=1),1,0)","v":0},{"$f":"IF(AND(Q20=1,Q$410=1),1,0)","v":0},{"$f":"IF(AND(R20=1,R$410=1),1,0)","v":0},{"$f":"IF(AND(S20=1,S$410=1),1,0)","v":0},{"$f":"IF(AND(T20=1,T$410=1),1,0)","v":0},{"$f":"IF(AND(U20=1,U$410=1),1,0)","v":0},{"$f":"IF(AND(V20=1,V$410=1),1,0)","v":0},{"$f":"IF(AND(W20=1,W$410=1),1,0)","v":0},1,{"$f":"IF(AND(X20=1,X$410=1),1,0)","v":0},{"$f":"IF(AND(Y20=1,Y$410=1),1,0)","v":0},{"$f":"IF(AND(Z20=1,Z$410=1),1,0)","v":0},{"$f":"IF(AND(AA20=1,AA$410=1),1,0)","v":0},{"$f":"IF(AND(AB20=1,AB$410=1),1,0)","v":0},{"$f":"IF(AND(AC20=1,AC$410=1),1,0)","v":0},{"$f":"IF(AND(AD20=1,AD$410=1),1,0)","v":0},{"$f":"IF(AND(AE20=1,AE$410=1),1,0)","v":0},{"$f":"IF(AND(AF20=1,AF$410=1),1,0)","v":0},1,{"$f":"IF(AND(AG20=1,AG$410=1),1,0)","v":0},{"$f":"IF(AND(AH20=1,AH$410=1),1,0)","v":0},{"$f":"IF(AND(AI20=1,AI$410=1),1,0)","v":0},{"$f":"IF(AND(AJ20=1,AJ$410=1),1,0)","v":0},{"$f":"IF(AND(AK20=1,AK$410=1),1,0)","v":0},{"$f":"IF(AND(AL20=1,AL$410=1),1,0)","v":0},{"$f":"IF(AND(AM20=1,AM$410=1),1,0)","v":0},{"$f":"IF(AND(AN20=1,AN$410=1),1,0)","v":0},{"$f":"IF(AND(AO20=1,AO$410=1),1,0)","v":0},1,{"$f":"IF(AND(AP20=1,AP$410=1),1,0)","v":0},{"$f":"IF(AND(AQ20=1,AQ$410=1),1,0)","v":1},{"$f":"IF(AND(AR20=1,AR$410=1),1,0)","v":0},{"$f":"IF(AND(AS20=1,AS$410=1),1,0)","v":0},{"$f":"IF(AND(AT20=1,AT$410=1),1,0)","v":0},1,1,12,12,{"$f":"IFERROR(SMALL($CL$9:$CL$408,CK20),\"\")","v":12},{"$f":"IFERROR(INDEX($B$9:$I$408,$CM20,COLUMNS($CN$9:CN20)),\"\")","v":"TA012"},{"$f":"IFERROR(INDEX($B$9:$I$408,$CM20,COLUMNS($CN$9:CO20)),\"\")","v":"Number of countries where government uses project outcomes in stakeholder meetings"},{"$f":"IFERROR(INDEX($B$9:$I$408,$CM20,COLUMNS($CN$9:CP20)),\"\")","v":"-"},{"$f":"IFERROR(INDEX($B$9:$I$408,$CM20,COLUMNS($CN$9:CQ20)),\"\")","v":"Uptake"},{"$f":"IFERROR(INDEX($B$9:$I$408,$CM20,COLUMNS($CN$9:CR20)),\"\")","v":"Conferences, seminars or networking events"},{"$f":"IFERROR(INDEX($B$9:$I$408,$CM20,COLUMNS($CN$9:CS20)),\"\")","v":"-"},{"$f":"IFERROR(INDEX($B$9:$I$408,$CM20,COLUMNS($CN$9:CT20)),\"\")","v":"-"},{"$f":"IFERROR(INDEX($B$9:$I$408,$CM20,COLUMNS($CN$9:CU20)),\"\")","v":"Number"}]
[null,{"$f":"IF(ISBLANK('TA Indicator Bank'!B17),\"\",'TA Indicator Bank'!B17)","v":"TA013"},{"$f":"IF(ISBLANK('TA Indicator Bank'!C17),\"\",'TA Indicator Bank'!C17)","v":"Number of organisations engaging with the programme network"},{"$f":"IF(ISBLANK('TA Indicator Bank'!D17),\"\",'TA Indicator Bank'!D17)","v":"-"},{"$f":"IF(ISBLANK('TA Indicator Bank'!E17),\"\",'TA Indicator Bank'!E17)","v":"Uptake"},{"$f":"IF(ISBLANK('TA Indicator Bank'!F17),\"\",'TA Indicator Bank'!F17)","v":"Conferences, seminars or networking events"},{"$f":"IF(ISBLANK('TA Indicator Bank'!G17),\"\",'TA Indicator Bank'!G17)","v":"-"},{"$f":"IF(ISBLANK('TA Indicator Bank'!H17),\"\",'TA Indicator Bank'!H17)","v":"-"},{"$f":"IF(ISBLANK('TA Indicator Bank'!I17),\"\",'TA Indicator Bank'!I17)","v":"Number"},{"$f":"IF(ISBLANK('TA Indicator Bank'!J17),\"\",'TA Indicator Bank'!J17)","v":0},{"$f":"IF(ISBLANK('TA Indicator Bank'!K17),\"\",'TA Indicator Bank'!K17)","v":0},{"$f":"IF(ISBLANK('TA Indicator Bank'!L17),\"\",'TA Indicator Bank'!L17)","v":1},{"$f":"IF(ISBLANK('TA Indicator Bank'!M17),\"\",'TA Indicator Bank'!M17)","v":0},{"$f":"IF(ISBLANK('TA Indicator Bank'!N17),\"\",'TA Indicator Bank'!N17)","v":0},{"$f":"IF(ISBLANK('TA Indicator Bank'!O17),\"\",'TA Indicator Bank'!O17)","v":0},{"$f":"IF(ISBLANK('TA Indicator Bank'!P17),\"\",'TA Indicator Bank'!P17)","v":0},{"$f":"IF(ISBLANK('TA Indicator Bank'!Q17),\"\",'TA Indicator Bank'!Q17)","v":0},{"$f":"IF(ISBLANK('TA Indicator Bank'!R17),\"\",'TA Indicator Bank'!R17)","v":0},{"$f":"IF(ISBLANK('TA Indicator Bank'!S17),\"\",'TA Indicator Bank'!S17)","v":0},{"$f":"IF(ISBLANK('TA Indicator Bank'!T17),\"\",'TA Indicator Bank'!T17)","v":0},{"$f":"IF(ISBLANK('TA Indicator Bank'!U17),\"\",'TA Indicator Bank'!U17)","v":0},{"$f":"IF(ISBLANK('TA Indicator Bank'!V17),\"\",'TA Indicator Bank'!V17)","v":0},{"$f":"IF(ISBLANK('TA Indicator Bank'!W17),\"\",'TA Indicator Bank'!W17)","v":0},{"$f":"IF(ISBLANK('TA Indicator Bank'!X17),\"\",'TA Indicator Bank'!X17)","v":0},{"$f":"IF(ISBLANK('TA Indicator Bank'!Y17),\"\",'TA Indicator Bank'!Y17)","v":0},{"$f":"IF(ISBLANK('TA Indicator Bank'!Z17),\"\",'TA Indicator Bank'!Z17)","v":0},{"$f":"IF(ISBLANK('TA Indicator Bank'!AA17),\"\",'TA Indicator Bank'!AA17)","v":0},{"$f":"IF(ISBLANK('TA Indicator Bank'!AB17),\"\",'TA Indicator Bank'!AB17)","v":0},{"$f":"IF(ISBLANK('TA Indicator Bank'!AC17),\"\",'TA Indicator Bank'!AC17)","v":0},{"$f":"IF(ISBLANK('TA Indicator Bank'!AD17),\"\",'TA Indicator Bank'!AD17)","v":0},{"$f":"IF(ISBLANK('TA Indicator Bank'!AE17),\"\",'TA Indicator Bank'!AE17)","v":0},{"$f":"IF(ISBLANK('TA Indicator Bank'!AF17),\"\",'TA Indicator Bank'!AF17)","v":0},{"$f":"IF(ISBLANK('TA Indicator Bank'!AG17),\"\",'TA Indicator Bank'!AG17)","v":0},{"$f":"IF(ISBLANK('TA Indicator Bank'!AH17),\"\",'TA Indicator Bank'!AH17)","v":0},{"$f":"IF(ISBLANK('TA Indicator Bank'!AI17),\"\",'TA Indicator Bank'!AI17)","v":0},{"$f":"IF(ISBLANK('TA Indicator Bank'!AJ17),\"\",'TA Indicator Bank'!AJ17)","v":0},{"$f":"IF(ISBLANK('TA Indicator Bank'!AK17),\"\",'TA Indicator Bank'!AK17)","v":0},{"$f":"IF(ISBLANK('TA Indicator Bank'!AL17),\"\",'TA Indicator Bank'!AL17)","v":0},{"$f":"IF(ISBLANK('TA Indicator Bank'!AM17),\"\",'TA Indicator Bank'!AM17)","v":0},{"$f":"IF(ISBLANK('TA Indicator Bank'!AN17),\"\",'TA Indicator Bank'!AN17)","v":0},{"$f":"IF(ISBLANK('TA Indicator Bank'!AO17),\"\",'TA Indicator Bank'!AO17)","v":0},{"$f":"IF(ISBLANK('TA Indicator Bank'!AP17),\"\",'TA Indicator Bank'!AP17)","v":0},{"$f":"IF(ISBLANK('TA Indicator Bank'!AQ17),\"\",'TA Indicator Bank'!AQ17)","v":1},{"$f":"IF(ISBLANK('TA Indicator Bank'!AR17),\"\",'TA Indicator Bank'!AR17)","v":0},{"$f":"IF(ISBLANK('TA Indicator Bank'!AS17),\"\",'TA Indicator Bank'!AS17)","v":0},{"$f":"IF(ISBLANK('TA Indicator Bank'!AT17),\"\",'TA Indicator Bank'!AT17)","v":0},{"$f":"IF(AND(J21=1,J$410=1),1,0)","v":0},{"$f":"IF(AND(K21=1,K$410=1),1,0)","v":0},{"$f":"IF(AND(L21=1,L$410=1),1,0)","v":1},{"$f":"IF(AND(M21=1,M$410=1),1,0)","v":0},{"$f":"IF(AND(N21=1,N$410=1),1,0)","v":0},{"$f":"IF(AND(O21=1,O$410=1),1,0)","v":0},{"$f":"IF(AND(P21=1,P$410=1),1,0)","v":0},{"$f":"IF(AND(Q21=1,Q$410=1),1,0)","v":0},{"$f":"IF(AND(R21=1,R$410=1),1,0)","v":0},{"$f":"IF(AND(S21=1,S$410=1),1,0)","v":0},{"$f":"IF(AND(T21=1,T$410=1),1,0)","v":0},{"$f":"IF(AND(U21=1,U$410=1),1,0)","v":0},{"$f":"IF(AND(V21=1,V$410=1),1,0)","v":0},{"$f":"IF(AND(W21=1,W$410=1),1,0)","v":0},1,{"$f":"IF(AND(X21=1,X$410=1),1,0)","v":0},{"$f":"IF(AND(Y21=1,Y$410=1),1,0)","v":0},{"$f":"IF(AND(Z21=1,Z$410=1),1,0)","v":0},{"$f":"IF(AND(AA21=1,AA$410=1),1,0)","v":0},{"$f":"IF(AND(AB21=1,AB$410=1),1,0)","v":0},{"$f":"IF(AND(AC21=1,AC$410=1),1,0)","v":0},{"$f":"IF(AND(AD21=1,AD$410=1),1,0)","v":0},{"$f":"IF(AND(AE21=1,AE$410=1),1,0)","v":0},{"$f":"IF(AND(AF21=1,AF$410=1),1,0)","v":0},1,{"$f":"IF(AND(AG21=1,AG$410=1),1,0)","v":0},{"$f":"IF(AND(AH21=1,AH$410=1),1,0)","v":0},{"$f":"IF(AND(AI21=1,AI$410=1),1,0)","v":0},{"$f":"IF(AND(AJ21=1,AJ$410=1),1,0)","v":0},{"$f":"IF(AND(AK21=1,AK$410=1),1,0)","v":0},{"$f":"IF(AND(AL21=1,AL$410=1),1,0)","v":0},{"$f":"IF(AND(AM21=1,AM$410=1),1,0)","v":0},{"$f":"IF(AND(AN21=1,AN$410=1),1,0)","v":0},{"$f":"IF(AND(AO21=1,AO$410=1),1,0)","v":0},1,{"$f":"IF(AND(AP21=1,AP$410=1),1,0)","v":0},{"$f":"IF(AND(AQ21=1,AQ$410=1),1,0)","v":1},{"$f":"IF(AND(AR21=1,AR$410=1),1,0)","v":0},{"$f":"IF(AND(AS21=1,AS$410=1),1,0)","v":0},{"$f":"IF(AND(AT21=1,AT$410=1),1,0)","v":0},1,1,13,13,{"$f":"IFERROR(SMALL($CL$9:$CL$408,CK21),\"\")","v":13},{"$f":"IFERROR(INDEX($B$9:$I$408,$CM21,COLUMNS($CN$9:CN21)),\"\")","v":"TA013"},{"$f":"IFERROR(INDEX($B$9:$I$408,$CM21,COLUMNS($CN$9:CO21)),\"\")","v":"Number of organisations engaging with the programme network"},{"$f":"IFERROR(INDEX($B$9:$I$408,$CM21,COLUMNS($CN$9:CP21)),\"\")","v":"-"},{"$f":"IFERROR(INDEX($B$9:$I$408,$CM21,COLUMNS($CN$9:CQ21)),\"\")","v":"Uptake"},{"$f":"IFERROR(INDEX($B$9:$I$408,$CM21,COLUMNS($CN$9:CR21)),\"\")","v":"Conferences, seminars or networking events"},{"$f":"IFERROR(INDEX($B$9:$I$408,$CM21,COLUMNS($CN$9:CS21)),\"\")","v":"-"},{"$f":"IFERROR(INDEX($B$9:$I$408,$CM21,COLUMNS($CN$9:CT21)),\"\")","v":"-"},{"$f":"IFERROR(INDEX($B$9:$I$408,$CM21,COLUMNS($CN$9:CU21)),\"\")","v":"Number"}]
[null,{"$f":"IF(ISBLANK('TA Indicator Bank'!B18),\"\",'TA Indicator Bank'!B18)","v":"TA014"},{"$f":"IF(ISBLANK('TA Indicator Bank'!C18),\"\",'TA Indicator Bank'!C18)","v":"Quality and relevance of conferences, seminars or networking events conducted"},{"$f":"IF(ISBLANK('TA Indicator Bank'!D18),\"\",'TA Indicator Bank'!D18)","v":"Quality and relevance can be assessed in multiple ways: against pre-identified expectations or criteria; based on immediate post-event surveys; or, based on surveys following a delay (e.g. 6 months) on how events have supported activities/work in practice."},{"$f":"IF(ISBLANK('TA Indicator Bank'!E18),\"\",'TA Indicator Bank'!E18)","v":"Activity"},{"$f":"IF(ISBLANK('TA Indicator Bank'!F18),\"\",'TA Indicator Bank'!F18)","v":"Conferences, seminars or networking events"},{"$f":"IF(ISBLANK('TA Indicator Bank'!G18),\"\",'TA Indicator Bank'!G18)","v":"-"},{"$f":"IF(ISBLANK('TA Indicator Bank'!H18),\"\",'TA Indicator Bank'!H18)","v":"-"},{"$f":"IF(ISBLANK('TA Indicator Bank'!I18),\"\",'TA Indicator Bank'!I18)","v":"Narrative"},{"$f":"IF(ISBLANK('TA Indicator Bank'!J18),\"\",'TA Indicator Bank'!J18)","v":0},{"$f":"IF(ISBLANK('TA Indicator Bank'!K18),\"\",'TA Indicator Bank'!K18)","v":0},{"$f":"IF(ISBLANK('TA Indicator Bank'!L18),\"\",'TA Indicator Bank'!L18)","v":1},{"$f":"IF(ISBLANK('TA Indicator Bank'!M18),\"\",'TA Indicator Bank'!M18)","v":0},{"$f":"IF(ISBLANK('TA Indicator Bank'!N18),\"\",'TA Indicator Bank'!N18)","v":0},{"$f":"IF(ISBLANK('TA Indicator Bank'!O18),\"\",'TA Indicator Bank'!O18)","v":0},{"$f":"IF(ISBLANK('TA Indicator Bank'!P18),\"\",'TA Indicator Bank'!P18)","v":0},{"$f":"IF(ISBLANK('TA Indicator Bank'!Q18),\"\",'TA Indicator Bank'!Q18)","v":0},{"$f":"IF(ISBLANK('TA Indicator Bank'!R18),\"\",'TA Indicator Bank'!R18)","v":0},{"$f":"IF(ISBLANK('TA Indicator Bank'!S18),\"\",'TA Indicator Bank'!S18)","v":0},{"$f":"IF(ISBLANK('TA Indicator Bank'!T18),\"\",'TA Indicator Bank'!T18)","v":0},{"$f":"IF(ISBLANK('TA Indicator Bank'!U18),\"\",'TA Indicator Bank'!U18)","v":0},{"$f":"IF(ISBLANK('TA Indicator Bank'!V18),\"\",'TA Indicator Bank'!V18)","v":0},{"$f":"IF(ISBLANK('TA Indicator Bank'!W18),\"\",'TA Indicator Bank'!W18)","v":0},{"$f":"IF(ISBLANK('TA Indicator Bank'!X18),\"\",'TA Indicator Bank'!X18)","v":0},{"$f":"IF(ISBLANK('TA Indicator Bank'!Y18),\"\",'TA Indicator Bank'!Y18)","v":0},{"$f":"IF(ISBLANK('TA Indicator Bank'!Z18),\"\",'TA Indicator Bank'!Z18)","v":0},{"$f":"IF(ISBLANK('TA Indicator Bank'!AA18),\"\",'TA Indicator Bank'!AA18)","v":0},{"$f":"IF(ISBLANK('TA Indicator Bank'!AB18),\"\",'TA Indicator Bank'!AB18)","v":0},{"$f":"IF(ISBLANK('TA Indicator Bank'!AC18),\"\",'TA Indicator Bank'!AC18)","v":0},{"$f":"IF(ISBLANK('TA Indicator Bank'!AD18),\"\",'TA Indicator Bank'!AD18)","v":0},{"$f":"IF(ISBLANK('TA Indicator Bank'!AE18),\"\",'TA Indicator Bank'!AE18)","v":0},{"$f":"IF(ISBLANK('TA Indicator Bank'!AF18),\"\",'TA Indicator Bank'!AF18)","v":0},{"$f":"IF(ISBLANK('TA Indicator Bank'!AG18),\"\",'TA Indicator Bank'!AG18)","v":0},{"$f":"IF(ISBLANK('TA Indicator Bank'!AH18),\"\",'TA Indicator Bank'!AH18)","v":0},{"$f":"IF(ISBLANK('TA Indicator Bank'!AI18),\"\",'TA Indicator Bank'!AI18)","v":0},{"$f":"IF(ISBLANK('TA Indicator Bank'!AJ18),\"\",'TA Indicator Bank'!AJ18)","v":0},{"$f":"IF(ISBLANK('TA Indicator Bank'!AK18),\"\",'TA Indicator Bank'!AK18)","v":0},{"$f":"IF(ISBLANK('TA Indicator Bank'!AL18),\"\",'TA Indicator Bank'!AL18)","v":0},{"$f":"IF(ISBLANK('TA Indicator Bank'!AM18),\"\",'TA Indicator Bank'!AM18)","v":0},{"$f":"IF(ISBLANK('TA Indicator Bank'!AN18),\"\",'TA Indicator Bank'!AN18)","v":0},{"$f":"IF(ISBLANK('TA Indicator Bank'!AO18),\"\",'TA Indicator Bank'!AO18)","v":0},{"$f":"IF(ISBLANK('TA Indicator Bank'!AP18),\"\",'TA Indicator Bank'!AP18)","v":1},{"$f":"IF(ISBLANK('TA Indicator Bank'!AQ18),\"\",'TA Indicator Bank'!AQ18)","v":0},{"$f":"IF(ISBLANK('TA Indicator Bank'!AR18),\"\",'TA Indicator Bank'!AR18)","v":0},{"$f":"IF(ISBLANK('TA Indicator Bank'!AS18),\"\",'TA Indicator Bank'!AS18)","v":0},{"$f":"IF(ISBLANK('TA Indicator Bank'!AT18),\"\",'TA Indicator Bank'!AT18)","v":0},{"$f":"IF(AND(J22=1,J$410=1),1,0)","v":0},{"$f":"IF(AND(K22=1,K$410=1),1,0)","v":0},{"$f":"IF(AND(L22=1,L$410=1),1,0)","v":1},{"$f":"IF(AND(M22=1,M$410=1),1,0)","v":0},{"$f":"IF(AND(N22=1,N$410=1),1,0)","v":0},{"$f":"IF(AND(O22=1,O$410=1),1,0)","v":0},{"$f":"IF(AND(P22=1,P$410=1),1,0)","v":0},{"$f":"IF(AND(Q22=1,Q$410=1),1,0)","v":0},{"$f":"IF(AND(R22=1,R$410=1),1,0)","v":0},{"$f":"IF(AND(S22=1,S$410=1),1,0)","v":0},{"$f":"IF(AND(T22=1,T$410=1),1,0)","v":0},{"$f":"IF(AND(U22=1,U$410=1),1,0)","v":0},{"$f":"IF(AND(V22=1,V$410=1),1,0)","v":0},{"$f":"IF(AND(W22=1,W$410=1),1,0)","v":0},1,{"$f":"IF(AND(X22=1,X$410=1),1,0)","v":0},{"$f":"IF(AND(Y22=1,Y$410=1),1,0)","v":0},{"$f":"IF(AND(Z22=1,Z$410=1),1,0)","v":0},{"$f":"IF(AND(AA22=1,AA$410=1),1,0)","v":0},{"$f":"IF(AND(AB22=1,AB$410=1),1,0)","v":0},{"$f":"IF(AND(AC22=1,AC$410=1),1,0)","v":0},{"$f":"IF(AND(AD22=1,AD$410=1),1,0)","v":0},{"$f":"IF(AND(AE22=1,AE$410=1),1,0)","v":0},{"$f":"IF(AND(AF22=1,AF$410=1),1,0)","v":0},1,{"$f":"IF(AND(AG22=1,AG$410=1),1,0)","v":0},{"$f":"IF(AND(AH22=1,AH$410=1),1,0)","v":0},{"$f":"IF(AND(AI22=1,AI$410=1),1,0)","v":0},{"$f":"IF(AND(AJ22=1,AJ$410=1),1,0)","v":0},{"$f":"IF(AND(AK22=1,AK$410=1),1,0)","v":0},{"$f":"IF(AND(AL22=1,AL$410=1),1,0)","v":0},{"$f":"IF(AND(AM22=1,AM$410=1),1,0)","v":0},{"$f":"IF(AND(AN22=1,AN$410=1),1,0)","v":0},{"$f":"IF(AND(AO22=1,AO$410=1),1,0)","v":0},1,{"$f":"IF(AND(AP22=1,AP$410=1),1,0)","v":1},{"$f":"IF(AND(AQ22=1,AQ$410=1),1,0)","v":0},{"$f":"IF(AND(AR22=1,AR$410=1),1,0)","v":0},{"$f":"IF(AND(AS22=1,AS$410=1),1,0)","v":0},{"$f":"IF(AND(AT22=1,AT$410=1),1,0)","v":0},1,1,14,14,{"$f":"IFERROR(SMALL($CL$9:$CL$408,CK22),\"\")","v":14},{"$f":"IFERROR(INDEX($B$9:$I$408,$CM22,COLUMNS($CN$9:CN22)),\"\")","v":"TA014"},{"$f":"IFERROR(INDEX($B$9:$I$408,$CM22,COLUMNS($CN$9:CO22)),\"\")","v":"Quality and relevance of conferences, seminars or networking events conducted"},{"$f":"IFERROR(INDEX($B$9:$I$408,$CM22,COLUMNS($CN$9:CP22)),\"\")","v":"Quality and relevance can be assessed in multiple ways: against pre-identified expectations or criteria; based on immediate post-event surveys; or, based on surveys following a delay (e.g. 6 months) on how events have supported activities/work in practice."},{"$f":"IFERROR(INDEX($B$9:$I$408,$CM22,COLUMNS($CN$9:CQ22)),\"\")","v":"Activity"},{"$f":"IFERROR(INDEX($B$9:$I$408,$CM22,COLUMNS($CN$9:CR22)),\"\")","v":"Conferences, seminars or networking events"},{"$f":"IFERROR(INDEX($B$9:$I$408,$CM22,COLUMNS($CN$9:CS22)),\"\")","v":"-"},{"$f":"IFERROR(INDEX($B$9:$I$408,$CM22,COLUMNS($CN$9:CT22)),\"\")","v":"-"},{"$f":"IFERROR(INDEX($B$9:$I$408,$CM22,COLUMNS($CN$9:CU22)),\"\")","v":"Narrative"}]
[null,{"$f":"IF(ISBLANK('TA Indicator Bank'!B19),\"\",'TA Indicator Bank'!B19)","v":"TA015"},{"$f":"IF(ISBLANK('TA Indicator Bank'!C19),\"\",'TA Indicator Bank'!C19)","v":"Number of publications"},{"$f":"IF(ISBLANK('TA Indicator Bank'!D19),\"\",'TA Indicator Bank'!D19)","v":"-"},{"$f":"IF(ISBLANK('TA Indicator Bank'!E19),\"\",'TA Indicator Bank'!E19)","v":"Activity"},{"$f":"IF(ISBLANK('TA Indicator Bank'!F19),\"\",'TA Indicator Bank'!F19)","v":"Specialist research, inc. market / policy / legal / regulatory / technology research briefs; Public awareness campaigns"},{"$f":"IF(ISBLANK('TA Indicator Bank'!G19),\"\",'TA Indicator Bank'!G19)","v":"-"},{"$f":"IF(ISBLANK('TA Indicator Bank'!H19),\"\",'TA Indicator Bank'!H19)","v":"-"},{"$f":"IF(ISBLANK('TA Indicator Bank'!I19),\"\",'TA Indicator Bank'!I19)","v":"Number"},{"$f":"IF(ISBLANK('TA Indicator Bank'!J19),\"\",'TA Indicator Bank'!J19)","v":0},{"$f":"IF(ISBLANK('TA Indicator Bank'!K19),\"\",'TA Indicator Bank'!K19)","v":0},{"$f":"IF(ISBLANK('TA Indicator Bank'!L19),\"\",'TA Indicator Bank'!L19)","v":0},{"$f":"IF(ISBLANK('TA Indicator Bank'!M19),\"\",'TA Indicator Bank'!M19)","v":0},{"$f":"IF(ISBLANK('TA Indicator Bank'!N19),\"\",'TA Indicator Bank'!N19)","v":1},{"$f":"IF(ISBLANK('TA Indicator Bank'!O19),\"\",'TA Indicator Bank'!O19)","v":0},{"$f":"IF(ISBLANK('TA Indicator Bank'!P19),\"\",'TA Indicator Bank'!P19)","v":0},{"$f":"IF(ISBLANK('TA Indicator Bank'!Q19),\"\",'TA Indicator Bank'!Q19)","v":0},{"$f":"IF(ISBLANK('TA Indicator Bank'!R19),\"\",'TA Indicator Bank'!R19)","v":0},{"$f":"IF(ISBLANK('TA Indicator Bank'!S19),\"\",'TA Indicator Bank'!S19)","v":1},{"$f":"IF(ISBLANK('TA Indicator Bank'!T19),\"\",'TA Indicator Bank'!T19)","v":0},{"$f":"IF(ISBLANK('TA Indicator Bank'!U19),\"\",'TA Indicator Bank'!U19)","v":0},{"$f":"IF(ISBLANK('TA Indicator Bank'!V19),\"\",'TA Indicator Bank'!V19)","v":0},{"$f":"IF(ISBLANK('TA Indicator Bank'!W19),\"\",'TA Indicator Bank'!W19)","v":0},{"$f":"IF(ISBLANK('TA Indicator Bank'!X19),\"\",'TA Indicator Bank'!X19)","v":0},{"$f":"IF(ISBLANK('TA Indicator Bank'!Y19),\"\",'TA Indicator Bank'!Y19)","v":0},{"$f":"IF(ISBLANK('TA Indicator Bank'!Z19),\"\",'TA Indicator Bank'!Z19)","v":0},{"$f":"IF(ISBLANK('TA Indicator Bank'!AA19),\"\",'TA Indicator Bank'!AA19)","v":0},{"$f":"IF(ISBLANK('TA Indicator Bank'!AB19),\"\",'TA Indicator Bank'!AB19)","v":0},{"$f":"IF(ISBLANK('TA Indicator Bank'!AC19),\"\",'TA Indicator Bank'!AC19)","v":0},{"$f":"IF(ISBLANK('TA Indicator Bank'!AD19),\"\",'TA Indicator Bank'!AD19)","v":0},{"$f":"IF(ISBLANK('TA Indicator Bank'!AE19),\"\",'TA Indicator Bank'!AE19)","v":0},{"$f":"IF(ISBLANK('TA Indicator Bank'!AF19),\"\",'TA Indicator Bank'!AF19)","v":0},{"$f":"IF(ISBLANK('TA Indicator Bank'!AG19),\"\",'TA Indicator Bank'!AG19)","v":0},{"$f":"IF(ISBLANK('TA Indicator Bank'!AH19),\"\",'TA Indicator Bank'!AH19)","v":0},{"$f":"IF(ISBLANK('TA Indicator Bank'!AI19),\"\",'TA Indicator Bank'!AI19)","v":0},{"$f":"IF(ISBLANK('TA Indicator Bank'!AJ19),\"\",'TA Indicator Bank'!AJ19)","v":0},{"$f":"IF(ISBLANK('TA Indicator Bank'!AK19),\"\",'TA Indicator Bank'!AK19)","v":0},{"$f":"IF(ISBLANK('TA Indicator Bank'!AL19),\"\",'TA Indicator Bank'!AL19)","v":0},{"$f":"IF(ISBLANK('TA Indicator Bank'!AM19),\"\",'TA Indicator Bank'!AM19)","v":0},{"$f":"IF(ISBLANK('TA Indicator Bank'!AN19),\"\",'TA Indicator Bank'!AN19)","v":0},{"$f":"IF(ISBLANK('TA Indicator Bank'!AO19),\"\",'TA Indicator Bank'!AO19)","v":0},{"$f":"IF(ISBLANK('TA Indicator Bank'!AP19),\"\",'TA Indicator Bank'!AP19)","v":1},{"$f":"IF(ISBLANK('TA Indicator Bank'!AQ19),\"\",'TA Indicator Bank'!AQ19)","v":0},{"$f":"IF(ISBLANK('TA Indicator Bank'!AR19),\"\",'TA Indicator Bank'!AR19)","v":0},{"$f":"IF(ISBLANK('TA Indicator Bank'!AS19),\"\",'TA Indicator Bank'!AS19)","v":0},{"$f":"IF(ISBLANK('TA Indicator Bank'!AT19),\"\",'TA Indicator Bank'!AT19)","v":0},{"$f":"IF(AND(J23=1,J$410=1),1,0)","v":0},{"$f":"IF(AND(K23=1,K$410=1),1,0)","v":0},{"$f":"IF(AND(L23=1,L$410=1),1,0)","v":0},{"$f":"IF(AND(M23=1,M$410=1),1,0)","v":0},{"$f":"IF(AND(N23=1,N$410=1),1,0)","v":1},{"$f":"IF(AND(O23=1,O$410=1),1,0)","v":0},{"$f":"IF(AND(P23=1,P$410=1),1,0)","v":0},{"$f":"IF(AND(Q23=1,Q$410=1),1,0)","v":0},{"$f":"IF(AND(R23=1,R$410=1),1,0)","v":0},{"$f":"IF(AND(S23=1,S$410=1),1,0)","v":1},{"$f":"IF(AND(T23=1,T$410=1),1,0)","v":0},{"$f":"IF(AND(U23=1,U$410=1),1,0)","v":0},{"$f":"IF(AND(V23=1,V$410=1),1,0)","v":0},{"$f":"IF(AND(W23=1,W$410=1),1,0)","v":0},1,{"$f":"IF(AND(X23=1,X$410=1),1,0)","v":0},{"$f":"IF(AND(Y23=1,Y$410=1),1,0)","v":0},{"$f":"IF(AND(Z23=1,Z$410=1),1,0)","v":0},{"$f":"IF(AND(AA23=1,AA$410=1),1,0)","v":0},{"$f":"IF(AND(AB23=1,AB$410=1),1,0)","v":0},{"$f":"IF(AND(AC23=1,AC$410=1),1,0)","v":0},{"$f":"IF(AND(AD23=1,AD$410=1),1,0)","v":0},{"$f":"IF(AND(AE23=1,AE$410=1),1,0)","v":0},{"$f":"IF(AND(AF23=1,AF$410=1),1,0)","v":0},1,{"$f":"IF(AND(AG23=1,AG$410=1),1,0)","v":0},{"$f":"IF(AND(AH23=1,AH$410=1),1,0)","v":0},{"$f":"IF(AND(AI23=1,AI$410=1),1,0)","v":0},{"$f":"IF(AND(AJ23=1,AJ$410=1),1,0)","v":0},{"$f":"IF(AND(AK23=1,AK$410=1),1,0)","v":0},{"$f":"IF(AND(AL23=1,AL$410=1),1,0)","v":0},{"$f":"IF(AND(AM23=1,AM$410=1),1,0)","v":0},{"$f":"IF(AND(AN23=1,AN$410=1),1,0)","v":0},{"$f":"IF(AND(AO23=1,AO$410=1),1,0)","v":0},1,{"$f":"IF(AND(AP23=1,AP$410=1),1,0)","v":1},{"$f":"IF(AND(AQ23=1,AQ$410=1),1,0)","v":0},{"$f":"IF(AND(AR23=1,AR$410=1),1,0)","v":0},{"$f":"IF(AND(AS23=1,AS$410=1),1,0)","v":0},{"$f":"IF(AND(AT23=1,AT$410=1),1,0)","v":0},1,1,15,15,{"$f":"IFERROR(SMALL($CL$9:$CL$408,CK23),\"\")","v":15},{"$f":"IFERROR(INDEX($B$9:$I$408,$CM23,COLUMNS($CN$9:CN23)),\"\")","v":"TA015"},{"$f":"IFERROR(INDEX($B$9:$I$408,$CM23,COLUMNS($CN$9:CO23)),\"\")","v":"Number of publications"},{"$f":"IFERROR(INDEX($B$9:$I$408,$CM23,COLUMNS($CN$9:CP23)),\"\")","v":"-"},{"$f":"IFERROR(INDEX($B$9:$I$408,$CM23,COLUMNS($CN$9:CQ23)),\"\")","v":"Activity"},{"$f":"IFERROR(INDEX($B$9:$I$408,$CM23,COLUMNS($CN$9:CR23)),\"\")","v":"Specialist research, inc. market / policy / legal / regulatory / technology research briefs; Public awareness campaigns"},{"$f":"IFERROR(INDEX($B$9:$I$408,$CM23,COLUMNS($CN$9:CS23)),\"\")","v":"-"},{"$f":"IFERROR(INDEX($B$9:$I$408,$CM23,COLUMNS($CN$9:CT23)),\"\")","v":"-"},{"$f":"IFERROR(INDEX($B$9:$I$408,$CM23,COLUMNS($CN$9:CU23)),\"\")","v":"Number"}]
[null,{"$f":"IF(ISBLANK('TA Indicator Bank'!B20),\"\",'TA Indicator Bank'!B20)","v":"TA016"},{"$f":"IF(ISBLANK('TA Indicator Bank'!C20),\"\",'TA Indicator Bank'!C20)","v":"Number of publications that pass a certain quality review process (e.g. assessed by programme, peer review)"},{"$f":"IF(ISBLANK('TA Indicator Bank'!D20),\"\",'TA Indicator Bank'!D20)","v":"-"},{"$f":"IF(ISBLANK('TA Indicator Bank'!E20),\"\",'TA Indicator Bank'!E20)","v":"Activity"},{"$f":"IF(ISBLANK('TA Indicator Bank'!F20),\"\",'TA Indicator Bank'!F20)","v":"Specialist research, inc. market / policy / legal / regulatory / technology research briefs; Research & development"},{"$f":"IF(ISBLANK('TA Indicator Bank'!G20),\"\",'TA Indicator Bank'!G20)","v":"-"},{"$f":"IF(ISBLANK('TA Indicator Bank'!H20),\"\",'TA Indicator Bank'!H20)","v":"-"},{"$f":"IF(ISBLANK('TA Indicator Bank'!I20),\"\",'TA Indicator Bank'!I20)","v":"Number"},{"$f":"IF(ISBLANK('TA Indicator Bank'!J20),\"\",'TA Indicator Bank'!J20)","v":0},{"$f":"IF(ISBLANK('TA Indicator Bank'!K20),\"\",'TA Indicator Bank'!K20)","v":0},{"$f":"IF(ISBLANK('TA Indicator Bank'!L20),\"\",'TA Indicator Bank'!L20)","v":0},{"$f":"IF(ISBLANK('TA Indicator Bank'!M20),\"\",'TA Indicator Bank'!M20)","v":0},{"$f":"IF(ISBLANK('TA Indicator Bank'!N20),\"\",'TA Indicator Bank'!N20)","v":1},{"$f":"IF(ISBLANK('TA Indicator Bank'!O20),\"\",'TA Indicator Bank'!O20)","v":0},{"$f":"IF(ISBLANK('TA Indicator Bank'!P20),\"\",'TA Indicator Bank'!P20)","v":0},{"$f":"IF(ISBLANK('TA Indicator Bank'!Q20),\"\",'TA Indicator Bank'!Q20)","v":0},{"$f":"IF(ISBLANK('TA Indicator Bank'!R20),\"\",'TA Indicator Bank'!R20)","v":0},{"$f":"IF(ISBLANK('TA Indicator Bank'!S20),\"\",'TA Indicator Bank'!S20)","v":0},{"$f":"IF(ISBLANK('TA Indicator Bank'!T20),\"\",'TA Indicator Bank'!T20)","v":0},{"$f":"IF(ISBLANK('TA Indicator Bank'!U20),\"\",'TA Indicator Bank'!U20)","v":0},{"$f":"IF(ISBLANK('TA Indicator Bank'!V20),\"\",'TA Indicator Bank'!V20)","v":0},{"$f":"IF(ISBLANK('TA Indicator Bank'!W20),\"\",'TA Indicator Bank'!W20)","v":1},{"$f":"IF(ISBLANK('TA Indicator Bank'!X20),\"\",'TA Indicator Bank'!X20)","v":0},{"$f":"IF(ISBLANK('TA Indicator Bank'!Y20),\"\",'TA Indicator Bank'!Y20)","v":0},{"$f":"IF(ISBLANK('TA Indicator Bank'!Z20),\"\",'TA Indicator Bank'!Z20)","v":0},{"$f":"IF(ISBLANK('TA Indicator Bank'!AA20),\"\",'TA Indicator Bank'!AA20)","v":0},{"$f":"IF(ISBLANK('TA Indicator Bank'!AB20),\"\",'TA Indicator Bank'!AB20)","v":0},{"$f":"IF(ISBLANK('TA Indicator Bank'!AC20),\"\",'TA Indicator Bank'!AC20)","v":0},{"$f":"IF(ISBLANK('TA Indicator Bank'!AD20),\"\",'TA Indicator Bank'!AD20)","v":0},{"$f":"IF(ISBLANK('TA Indicator Bank'!AE20),\"\",'TA Indicator Bank'!AE20)","v":0},{"$f":"IF(ISBLANK('TA Indicator Bank'!AF20),\"\",'TA Indicator Bank'!AF20)","v":0},{"$f":"IF(ISBLANK('TA Indicator Bank'!AG20),\"\",'TA Indicator Bank'!AG20)","v":0},{"$f":"IF(ISBLANK('TA Indicator Bank'!AH20),\"\",'TA Indicator Bank'!AH20)","v":0},{"$f":"IF(ISBLANK('TA Indicator Bank'!AI20),\"\",'TA Indicator Bank'!AI20)","v":0},{"$f":"IF(ISBLANK('TA Indicator Bank'!AJ20),\"\",'TA Indicator Bank'!AJ20)","v":0},{"$f":"IF(ISBLANK('TA Indicator Bank'!AK20),\"\",'TA Indicator Bank'!AK20)","v":0},{"$f":"IF(ISBLANK('TA Indicator Bank'!AL20),\"\",'TA Indicator Bank'!AL20)","v":0},{"$f":"IF(ISBLANK('TA Indicator Bank'!AM20),\"\",'TA Indicator Bank'!AM20)","v":0},{"$f":"IF(ISBLANK('TA Indicator Bank'!AN20),\"\",'TA Indicator Bank'!AN20)","v":0},{"$f":"IF(ISBLANK('TA Indicator Bank'!AO20),\"\",'TA Indicator Bank'!AO20)","v":0},{"$f":"IF(ISBLANK('TA Indicator Bank'!AP20),\"\",'TA Indicator Bank'!AP20)","v":1},{"$f":"IF(ISBLANK('TA Indicator Bank'!AQ20),\"\",'TA Indicator Bank'!AQ20)","v":0},{"$f":"IF(ISBLANK('TA Indicator Bank'!AR20),\"\",'TA Indicator Bank'!AR20)","v":0},{"$f":"IF(ISBLANK('TA Indicator Bank'!AS20),\"\",'TA Indicator Bank'!AS20)","v":0},{"$f":"IF(ISBLANK('TA Indicator Bank'!AT20),\"\",'TA Indicator Bank'!AT20)","v":0},{"$f":"IF(AND(J24=1,J$410=1),1,0)","v":0},{"$f":"IF(AND(K24=1,K$410=1),1,0)","v":0},{"$f":"IF(AND(L24=1,L$410=1),1,0)","v":0},{"$f":"IF(AND(M24=1,M$410=1),1,0)","v":0},{"$f":"IF(AND(N24=1,N$410=1),1,0)","v":1},{"$f":"IF(AND(O24=1,O$410=1),1,0)","v":0},{"$f":"IF(AND(P24=1,P$410=1),1,0)","v":0},{"$f":"IF(AND(Q24=1,Q$410=1),1,0)","v":0},{"$f":"IF(AND(R24=1,R$410=1),1,0)","v":0},{"$f":"IF(AND(S24=1,S$410=1),1,0)","v":0},{"$f":"IF(AND(T24=1,T$410=1),1,0)","v":0},{"$f":"IF(AND(U24=1,U$410=1),1,0)","v":0},{"$f":"IF(AND(V24=1,V$410=1),1,0)","v":0},{"$f":"IF(AND(W24=1,W$410=1),1,0)","v":1},1,{"$f":"IF(AND(X24=1,X$410=1),1,0)","v":0},{"$f":"IF(AND(Y24=1,Y$410=1),1,0)","v":0},{"$f":"IF(AND(Z24=1,Z$410=1),1,0)","v":0},{"$f":"IF(AND(AA24=1,AA$410=1),1,0)","v":0},{"$f":"IF(AND(AB24=1,AB$410=1),1,0)","v":0},{"$f":"IF(AND(AC24=1,AC$410=1),1,0)","v":0},{"$f":"IF(AND(AD24=1,AD$410=1),1,0)","v":0},{"$f":"IF(AND(AE24=1,AE$410=1),1,0)","v":0},{"$f":"IF(AND(AF24=1,AF$410=1),1,0)","v":0},1,{"$f":"IF(AND(AG24=1,AG$410=1),1,0)","v":0},{"$f":"IF(AND(AH24=1,AH$410=1),1,0)","v":0},{"$f":"IF(AND(AI24=1,AI$410=1),1,0)","v":0},{"$f":"IF(AND(AJ24=1,AJ$410=1),1,0)","v":0},{"$f":"IF(AND(AK24=1,AK$410=1),1,0)","v":0},{"$f":"IF(AND(AL24=1,AL$410=1),1,0)","v":0},{"$f":"IF(AND(AM24=1,AM$410=1),1,0)","v":0},{"$f":"IF(AND(AN24=1,AN$410=1),1,0)","v":0},{"$f":"IF(AND(AO24=1,AO$410=1),1,0)","v":0},1,{"$f":"IF(AND(AP24=1,AP$410=1),1,0)","v":1},{"$f":"IF(AND(AQ24=1,AQ$410=1),1,0)","v":0},{"$f":"IF(AND(AR24=1,AR$410=1),1,0)","v":0},{"$f":"IF(AND(AS24=1,AS$410=1),1,0)","v":0},{"$f":"IF(AND(AT24=1,AT$410=1),1,0)","v":0},1,1,16,16,{"$f":"IFERROR(SMALL($CL$9:$CL$408,CK24),\"\")","v":16},{"$f":"IFERROR(INDEX($B$9:$I$408,$CM24,COLUMNS($CN$9:CN24)),\"\")","v":"TA016"},{"$f":"IFERROR(INDEX($B$9:$I$408,$CM24,COLUMNS($CN$9:CO24)),\"\")","v":"Number of publications that pass a certain quality review process (e.g. assessed by programme, peer review)"},{"$f":"IFERROR(INDEX($B$9:$I$408,$CM24,COLUMNS($CN$9:CP24)),\"\")","v":"-"},{"$f":"IFERROR(INDEX($B$9:$I$408,$CM24,COLUMNS($CN$9:CQ24)),\"\")","v":"Activity"},{"$f":"IFERROR(INDEX($B$9:$I$408,$CM24,COLUMNS($CN$9:CR24)),\"\")","v":"Specialist research, inc. market / policy / legal / regulatory / technology research briefs; Research & development"},{"$f":"IFERROR(INDEX($B$9:$I$408,$CM24,COLUMNS($CN$9:CS24)),\"\")","v":"-"},{"$f":"IFERROR(INDEX($B$9:$I$408,$CM24,COLUMNS($CN$9:CT24)),\"\")","v":"-"},{"$f":"IFERROR(INDEX($B$9:$I$408,$CM24,COLUMNS($CN$9:CU24)),\"\")","v":"Number"}]
[null,{"$f":"IF(ISBLANK('TA Indicator Bank'!B21),\"\",'TA Indicator Bank'!B21)","v":"TA017"},{"$f":"IF(ISBLANK('TA Indicator Bank'!C21),\"\",'TA Indicator Bank'!C21)","v":"Number of people accessing publications"},{"$f":"IF(ISBLANK('TA Indicator Bank'!D21),\"\",'TA Indicator Bank'!D21)","v":"-"},{"$f":"IF(ISBLANK('TA Indicator Bank'!E21),\"\",'TA Indicator Bank'!E21)","v":"Uptake"},{"$f":"IF(ISBLANK('TA Indicator Bank'!F21),\"\",'TA Indicator Bank'!F21)","v":"Specialist research, inc. market / policy / legal / regulatory / technology research briefs"},{"$f":"IF(ISBLANK('TA Indicator Bank'!G21),\"\",'TA Indicator Bank'!G21)","v":"-"},{"$f":"IF(ISBLANK('TA Indicator Bank'!H21),\"\",'TA Indicator Bank'!H21)","v":"-"},{"$f":"IF(ISBLANK('TA Indicator Bank'!I21),\"\",'TA Indicator Bank'!I21)","v":"Number"},{"$f":"IF(ISBLANK('TA Indicator Bank'!J21),\"\",'TA Indicator Bank'!J21)","v":0},{"$f":"IF(ISBLANK('TA Indicator Bank'!K21),\"\",'TA Indicator Bank'!K21)","v":0},{"$f":"IF(ISBLANK('TA Indicator Bank'!L21),\"\",'TA Indicator Bank'!L21)","v":0},{"$f":"IF(ISBLANK('TA Indicator Bank'!M21),\"\",'TA Indicator Bank'!M21)","v":0},{"$f":"IF(ISBLANK('TA Indicator Bank'!N21),\"\",'TA Indicator Bank'!N21)","v":1},{"$f":"IF(ISBLANK('TA Indicator Bank'!O21),\"\",'TA Indicator Bank'!O21)","v":0},{"$f":"IF(ISBLANK('TA Indicator Bank'!P21),\"\",'TA Indicator Bank'!P21)","v":0},{"$f":"IF(ISBLANK('TA Indicator Bank'!Q21),\"\",'TA Indicator Bank'!Q21)","v":0},{"$f":"IF(ISBLANK('TA Indicator Bank'!R21),\"\",'TA Indicator Bank'!R21)","v":0},{"$f":"IF(ISBLANK('TA Indicator Bank'!S21),\"\",'TA Indicator Bank'!S21)","v":0},{"$f":"IF(ISBLANK('TA Indicator Bank'!T21),\"\",'TA Indicator Bank'!T21)","v":0},{"$f":"IF(ISBLANK('TA Indicator Bank'!U21),\"\",'TA Indicator Bank'!U21)","v":0},{"$f":"IF(ISBLANK('TA Indicator Bank'!V21),\"\",'TA Indicator Bank'!V21)","v":0},{"$f":"IF(ISBLANK('TA Indicator Bank'!W21),\"\",'TA Indicator Bank'!W21)","v":0},{"$f":"IF(ISBLANK('TA Indicator Bank'!X21),\"\",'TA Indicator Bank'!X21)","v":0},{"$f":"IF(ISBLANK('TA Indicator Bank'!Y21),\"\",'TA Indicator Bank'!Y21)","v":0},{"$f":"IF(ISBLANK('TA Indicator Bank'!Z21),\"\",'TA Indicator Bank'!Z21)","v":0},{"$f":"IF(ISBLANK('TA Indicator Bank'!AA21),\"\",'TA Indicator Bank'!AA21)","v":0},{"$f":"IF(ISBLANK('TA Indicator Bank'!AB21),\"\",'TA Indicator Bank'!AB21)","v":0},{"$f":"IF(ISBLANK('TA Indicator Bank'!AC21),\"\",'TA Indicator Bank'!AC21)","v":0},{"$f":"IF(ISBLANK('TA Indicator Bank'!AD21),\"\",'TA Indicator Bank'!AD21)","v":0},{"$f":"IF(ISBLANK('TA Indicator Bank'!AE21),\"\",'TA Indicator Bank'!AE21)","v":0},{"$f":"IF(ISBLANK('TA Indicator Bank'!AF21),\"\",'TA Indicator Bank'!AF21)","v":0},{"$f":"IF(ISBLANK('TA Indicator Bank'!AG21),\"\",'TA Indicator Bank'!AG21)","v":0},{"$f":"IF(ISBLANK('TA Indicator Bank'!AH21),\"\",'TA Indicator Bank'!AH21)","v":0},{"$f":"IF(ISBLANK('TA Indicator Bank'!AI21),\"\",'TA Indicator Bank'!AI21)","v":0},{"$f":"IF(ISBLANK('TA Indicator Bank'!AJ21),\"\",'TA Indicator Bank'!AJ21)","v":0},{"$f":"IF(ISBLANK('TA Indicator Bank'!AK21),\"\",'TA Indicator Bank'!AK21)","v":0},{"$f":"IF(ISBLANK('TA Indicator Bank'!AL21),\"\",'TA Indicator Bank'!AL21)","v":0},{"$f":"IF(ISBLANK('TA Indicator Bank'!AM21),\"\",'TA Indicator Bank'!AM21)","v":0},{"$f":"IF(ISBLANK('TA Indicator Bank'!AN21),\"\",'TA Indicator Bank'!AN21)","v":0},{"$f":"IF(ISBLANK('TA Indicator Bank'!AO21),\"\",'TA Indicator Bank'!AO21)","v":0},{"$f":"IF(ISBLANK('TA Indicator Bank'!AP21),\"\",'TA Indicator Bank'!AP21)","v":0},{"$f":"IF(ISBLANK('TA Indicator Bank'!AQ21),\"\",'TA Indicator Bank'!AQ21)","v":1},{"$f":"IF(ISBLANK('TA Indicator Bank'!AR21),\"\",'TA Indicator Bank'!AR21)","v":0},{"$f":"IF(ISBLANK('TA Indicator Bank'!AS21),\"\",'TA Indicator Bank'!AS21)","v":0},{"$f":"IF(ISBLANK('TA Indicator Bank'!AT21),\"\",'TA Indicator Bank'!AT21)","v":0},{"$f":"IF(AND(J25=1,J$410=1),1,0)","v":0},{"$f":"IF(AND(K25=1,K$410=1),1,0)","v":0},{"$f":"IF(AND(L25=1,L$410=1),1,0)","v":0},{"$f":"IF(AND(M25=1,M$410=1),1,0)","v":0},{"$f":"IF(AND(N25=1,N$410=1),1,0)","v":1},{"$f":"IF(AND(O25=1,O$410=1),1,0)","v":0},{"$f":"IF(AND(P25=1,P$410=1),1,0)","v":0},{"$f":"IF(AND(Q25=1,Q$410=1),1,0)","v":0},{"$f":"IF(AND(R25=1,R$410=1),1,0)","v":0},{"$f":"IF(AND(S25=1,S$410=1),1,0)","v":0},{"$f":"IF(AND(T25=1,T$410=1),1,0)","v":0},{"$f":"IF(AND(U25=1,U$410=1),1,0)","v":0},{"$f":"IF(AND(V25=1,V$410=1),1,0)","v":0},{"$f":"IF(AND(W25=1,W$410=1),1,0)","v":0},1,{"$f":"IF(AND(X25=1,X$410=1),1,0)","v":0},{"$f":"IF(AND(Y25=1,Y$410=1),1,0)","v":0},{"$f":"IF(AND(Z25=1,Z$410=1),1,0)","v":0},{"$f":"IF(AND(AA25=1,AA$410=1),1,0)","v":0},{"$f":"IF(AND(AB25=1,AB$410=1),1,0)","v":0},{"$f":"IF(AND(AC25=1,AC$410=1),1,0)","v":0},{"$f":"IF(AND(AD25=1,AD$410=1),1,0)","v":0},{"$f":"IF(AND(AE25=1,AE$410=1),1,0)","v":0},{"$f":"IF(AND(AF25=1,AF$410=1),1,0)","v":0},1,{"$f":"IF(AND(AG25=1,AG$410=1),1,0)","v":0},{"$f":"IF(AND(AH25=1,AH$410=1),1,0)","v":0},{"$f":"IF(AND(AI25=1,AI$410=1),1,0)","v":0},{"$f":"IF(AND(AJ25=1,AJ$410=1),1,0)","v":0},{"$f":"IF(AND(AK25=1,AK$410=1),1,0)","v":0},{"$f":"IF(AND(AL25=1,AL$410=1),1,0)","v":0},{"$f":"IF(AND(AM25=1,AM$410=1),1,0)","v":0},{"$f":"IF(AND(AN25=1,AN$410=1),1,0)","v":0},{"$f":"IF(AND(AO25=1,AO$410=1),1,0)","v":0},1,{"$f":"IF(AND(AP25=1,AP$410=1),1,0)","v":0},{"$f":"IF(AND(AQ25=1,AQ$410=1),1,0)","v":1},{"$f":"IF(AND(AR25=1,AR$410=1),1,0)","v":0},{"$f":"IF(AND(AS25=1,AS$410=1),1,0)","v":0},{"$f":"IF(AND(AT25=1,AT$410=1),1,0)","v":0},1,1,17,17,{"$f":"IFERROR(SMALL($CL$9:$CL$408,CK25),\"\")","v":17},{"$f":"IFERROR(INDEX($B$9:$I$408,$CM25,COLUMNS($CN$9:CN25)),\"\")","v":"TA017"},{"$f":"IFERROR(INDEX($B$9:$I$408,$CM25,COLUMNS($CN$9:CO25)),\"\")","v":"Number of people accessing publications"},{"$f":"IFERROR(INDEX($B$9:$I$408,$CM25,COLUMNS($CN$9:CP25)),\"\")","v":"-"},{"$f":"IFERROR(INDEX($B$9:$I$408,$CM25,COLUMNS($CN$9:CQ25)),\"\")","v":"Uptake"},{"$f":"IFERROR(INDEX($B$9:$I$408,$CM25,COLUMNS($CN$9:CR25)),\"\")","v":"Specialist research, inc. market / policy / legal / regulatory / technology research briefs"},{"$f":"IFERROR(INDEX($B$9:$I$408,$CM25,COLUMNS($CN$9:CS25)),\"\")","v":"-"},{"$f":"IFERROR(INDEX($B$9:$I$408,$CM25,COLUMNS($CN$9:CT25)),\"\")","v":"-"},{"$f":"IFERROR(INDEX($B$9:$I$408,$CM25,COLUMNS($CN$9:CU25)),\"\")","v":"Number"}]
[null,{"$f":"IF(ISBLANK('TA Indicator Bank'!B22),\"\",'TA Indicator Bank'!B22)","v":"TA018"},{"$f":"IF(ISBLANK('TA Indicator Bank'!C22),\"\",'TA Indicator Bank'!C22)","v":"Publication contributes to improvement of processes"},{"$f":"IF(ISBLANK('TA Indicator Bank'!D22),\"\",'TA Indicator Bank'!D22)","v":"-"},{"$f":"IF(ISBLANK('TA Indicator Bank'!E22),\"\",'TA Indicator Bank'!E22)","v":"Output"},{"$f":"IF(ISBLANK('TA Indicator Bank'!F22),\"\",'TA Indicator Bank'!F22)","v":"-"},{"$f":"IF(ISBLANK('TA Indicator Bank'!G22),\"\",'TA Indicator Bank'!G22)","v":"Process/asset operation support"},{"$f":"IF(ISBLANK('TA Indicator Bank'!H22),\"\",'TA Indicator Bank'!H22)","v":"-"},{"$f":"IF(ISBLANK('TA Indicator Bank'!I22),\"\",'TA Indicator Bank'!I22)","v":"Narrative"},{"$f":"IF(ISBLANK('TA Indicator Bank'!J22),\"\",'TA Indicator Bank'!J22)","v":0},{"$f":"IF(ISBLANK('TA Indicator Bank'!K22),\"\",'TA Indicator Bank'!K22)","v":0},{"$f":"IF(ISBLANK('TA Indicator Bank'!L22),\"\",'TA Indicator Bank'!L22)","v":0},{"$f":"IF(ISBLANK('TA Indicator Bank'!M22),\"\",'TA Indicator Bank'!M22)","v":0},{"$f":"IF(ISBLANK('TA Indicator Bank'!N22),\"\",'TA Indicator Bank'!N22)","v":0},{"$f":"IF(ISBLANK('TA Indicator Bank'!O22),\"\",'TA Indicator Bank'!O22)","v":0},{"$f":"IF(ISBLANK('TA Indicator Bank'!P22),\"\",'TA Indicator Bank'!P22)","v":0},{"$f":"IF(ISBLANK('TA Indicator Bank'!Q22),\"\",'TA Indicator Bank'!Q22)","v":0},{"$f":"IF(ISBLANK('TA Indicator Bank'!R22),\"\",'TA Indicator Bank'!R22)","v":0},{"$f":"IF(ISBLANK('TA Indicator Bank'!S22),\"\",'TA Indicator Bank'!S22)","v":0},{"$f":"IF(ISBLANK('TA Indicator Bank'!T22),\"\",'TA Indicator Bank'!T22)","v":0},{"$f":"IF(ISBLANK('TA Indicator Bank'!U22),\"\",'TA Indicator Bank'!U22)","v":0},{"$f":"IF(ISBLANK('TA Indicator Bank'!V22),\"\",'TA Indicator Bank'!V22)","v":0},{"$f":"IF(ISBLANK('TA Indicator Bank'!W22),\"\",'TA Indicator Bank'!W22)","v":0},{"$f":"IF(ISBLANK('TA Indicator Bank'!X22),\"\",'TA Indicator Bank'!X22)","v":0},{"$f":"IF(ISBLANK('TA Indicator Bank'!Y22),\"\",'TA Indicator Bank'!Y22)","v":0},{"$f":"IF(ISBLANK('TA Indicator Bank'!Z22),\"\",'TA Indicator Bank'!Z22)","v":0},{"$f":"IF(ISBLANK('TA Indicator Bank'!AA22),\"\",'TA Indicator Bank'!AA22)","v":0},{"$f":"IF(ISBLANK('TA Indicator Bank'!AB22),\"\",'TA Indicator Bank'!AB22)","v":0},{"$f":"IF(ISBLANK('TA Indicator Bank'!AC22),\"\",'TA Indicator Bank'!AC22)","v":0},{"$f":"IF(ISBLANK('TA Indicator Bank'!AD22),\"\",'TA Indicator Bank'!AD22)","v":1},{"$f":"IF(ISBLANK('TA Indicator Bank'!AE22),\"\",'TA Indicator Bank'!AE22)","v":0},{"$f":"IF(ISBLANK('TA Indicator Bank'!AF22),\"\",'TA Indicator Bank'!AF22)","v":0},{"$f":"IF(ISBLANK('TA Indicator Bank'!AG22),\"\",'TA Indicator Bank'!AG22)","v":0},{"$f":"IF(ISBLANK('TA Indicator Bank'!AH22),\"\",'TA Indicator Bank'!AH22)","v":0},{"$f":"IF(ISBLANK('TA Indicator Bank'!AI22),\"\",'TA Indicator Bank'!AI22)","v":0},{"$f":"IF(ISBLANK('TA Indicator Bank'!AJ22),\"\",'TA Indicator Bank'!AJ22)","v":0},{"$f":"IF(ISBLANK('TA Indicator Bank'!AK22),\"\",'TA Indicator Bank'!AK22)","v":0},{"$f":"IF(ISBLANK('TA Indicator Bank'!AL22),\"\",'TA Indicator Bank'!AL22)","v":0},{"$f":"IF(ISBLANK('TA Indicator Bank'!AM22),\"\",'TA Indicator Bank'!AM22)","v":0},{"$f":"IF(ISBLANK('TA Indicator Bank'!AN22),\"\",'TA Indicator Bank'!AN22)","v":0},{"$f":"IF(ISBLANK('TA Indicator Bank'!AO22),\"\",'TA Indicator Bank'!AO22)","v":0},{"$f":"IF(ISBLANK('TA Indicator Bank'!AP22),\"\",'TA Indicator Bank'!AP22)","v":0},{"$f":"IF(ISBLANK('TA Indicator Bank'!AQ22),\"\",'TA Indicator Bank'!AQ22)","v":0},{"$f":"IF(ISBLANK('TA Indicator Bank'!AR22),\"\",'TA Indicator Bank'!AR22)","v":1},{"$f":"IF(ISBLANK('TA Indicator Bank'!AS22),\"\",'TA Indicator Bank'!AS22)","v":0},{"$f":"IF(ISBLANK('TA Indicator Bank'!AT22),\"\",'TA Indicator Bank'!AT22)","v":0},{"$f":"IF(AND(J26=1,J$410=1),1,0)","v":0},{"$f":"IF(AND(K26=1,K$410=1),1,0)","v":0},{"$f":"IF(AND(L26=1,L$410=1),1,0)","v":0},{"$f":"IF(AND(M26=1,M$410=1),1,0)","v":0},{"$f":"IF(AND(N26=1,N$410=1),1,0)","v":0},{"$f":"IF(AND(O26=1,O$410=1),1,0)","v":0},{"$f":"IF(AND(P26=1,P$410=1),1,0)","v":0},{"$f":"IF(AND(Q26=1,Q$410=1),1,0)","v":0},{"$f":"IF(AND(R26=1,R$410=1),1,0)","v":0},{"$f":"IF(AND(S26=1,S$410=1),1,0)","v":0},{"$f":"IF(AND(T26=1,T$410=1),1,0)","v":0},{"$f":"IF(AND(U26=1,U$410=1),1,0)","v":0},{"$f":"IF(AND(V26=1,V$410=1),1,0)","v":0},{"$f":"IF(AND(W26=1,W$410=1),1,0)","v":0},1,{"$f":"IF(AND(X26=1,X$410=1),1,0)","v":0},{"$f":"IF(AND(Y26=1,Y$410=1),1,0)","v":0},{"$f":"IF(AND(Z26=1,Z$410=1),1,0)","v":0},{"$f":"IF(AND(AA26=1,AA$410=1),1,0)","v":0},{"$f":"IF(AND(AB26=1,AB$410=1),1,0)","v":0},{"$f":"IF(AND(AC26=1,AC$410=1),1,0)","v":0},{"$f":"IF(AND(AD26=1,AD$410=1),1,0)","v":1},{"$f":"IF(AND(AE26=1,AE$410=1),1,0)","v":0},{"$f":"IF(AND(AF26=1,AF$410=1),1,0)","v":0},1,{"$f":"IF(AND(AG26=1,AG$410=1),1,0)","v":0},{"$f":"IF(AND(AH26=1,AH$410=1),1,0)","v":0},{"$f":"IF(AND(AI26=1,AI$410=1),1,0)","v":0},{"$f":"IF(AND(AJ26=1,AJ$410=1),1,0)","v":0},{"$f":"IF(AND(AK26=1,AK$410=1),1,0)","v":0},{"$f":"IF(AND(AL26=1,AL$410=1),1,0)","v":0},{"$f":"IF(AND(AM26=1,AM$410=1),1,0)","v":0},{"$f":"IF(AND(AN26=1,AN$410=1),1,0)","v":0},{"$f":"IF(AND(AO26=1,AO$410=1),1,0)","v":0},1,{"$f":"IF(AND(AP26=1,AP$410=1),1,0)","v":0},{"$f":"IF(AND(AQ26=1,AQ$410=1),1,0)","v":0},{"$f":"IF(AND(AR26=1,AR$410=1),1,0)","v":1},{"$f":"IF(AND(AS26=1,AS$410=1),1,0)","v":0},{"$f":"IF(AND(AT26=1,AT$410=1),1,0)","v":0},1,1,18,18,{"$f":"IFERROR(SMALL($CL$9:$CL$408,CK26),\"\")","v":18},{"$f":"IFERROR(INDEX($B$9:$I$408,$CM26,COLUMNS($CN$9:CN26)),\"\")","v":"TA018"},{"$f":"IFERROR(INDEX($B$9:$I$408,$CM26,COLUMNS($CN$9:CO26)),\"\")","v":"Publication contributes to improvement of processes"},{"$f":"IFERROR(INDEX($B$9:$I$408,$CM26,COLUMNS($CN$9:CP26)),\"\")","v":"-"},{"$f":"IFERROR(INDEX($B$9:$I$408,$CM26,COLUMNS($CN$9:CQ26)),\"\")","v":"Output"},{"$f":"IFERROR(INDEX($B$9:$I$408,$CM26,COLUMNS($CN$9:CR26)),\"\")","v":"-"},{"$f":"IFERROR(INDEX($B$9:$I$408,$CM26,COLUMNS($CN$9:CS26)),\"\")","v":"Process/asset operation support"},{"$f":"IFERROR(INDEX($B$9:$I$408,$CM26,COLUMNS($CN$9:CT26)),\"\")","v":"-"},{"$f":"IFERROR(INDEX($B$9:$I$408,$CM26,COLUMNS($CN$9:CU26)),\"\")","v":"Narrative"}]
[null,{"$f":"IF(ISBLANK('TA Indicator Bank'!B23),\"\",'TA Indicator Bank'!B23)","v":"TA019"},{"$f":"IF(ISBLANK('TA Indicator Bank'!C23),\"\",'TA Indicator Bank'!C23)","v":"Number of publications that are rated useful by readers"},{"$f":"IF(ISBLANK('TA Indicator Bank'!D23),\"\",'TA Indicator Bank'!D23)","v":"-"},{"$f":"IF(ISBLANK('TA Indicator Bank'!E23),\"\",'TA Indicator Bank'!E23)","v":"Output"},{"$f":"IF(ISBLANK('TA Indicator Bank'!F23),\"\",'TA Indicator Bank'!F23)","v":"-"},{"$f":"IF(ISBLANK('TA Indicator Bank'!G23),\"\",'TA Indicator Bank'!G23)","v":"Capacity building: Technical capacity"},{"$f":"IF(ISBLANK('TA Indicator Bank'!H23),\"\",'TA Indicator Bank'!H23)","v":"-"},{"$f":"IF(ISBLANK('TA Indicator Bank'!I23),\"\",'TA Indicator Bank'!I23)","v":"Number"},{"$f":"IF(ISBLANK('TA Indicator Bank'!J23),\"\",'TA Indicator Bank'!J23)","v":0},{"$f":"IF(ISBLANK('TA Indicator Bank'!K23),\"\",'TA Indicator Bank'!K23)","v":0},{"$f":"IF(ISBLANK('TA Indicator Bank'!L23),\"\",'TA Indicator Bank'!L23)","v":0},{"$f":"IF(ISBLANK('TA Indicator Bank'!M23),\"\",'TA Indicator Bank'!M23)","v":0},{"$f":"IF(ISBLANK('TA Indicator Bank'!N23),\"\",'TA Indicator Bank'!N23)","v":0},{"$f":"IF(ISBLANK('TA Indicator Bank'!O23),\"\",'TA Indicator Bank'!O23)","v":0},{"$f":"IF(ISBLANK('TA Indicator Bank'!P23),\"\",'TA Indicator Bank'!P23)","v":0},{"$f":"IF(ISBLANK('TA Indicator Bank'!Q23),\"\",'TA Indicator Bank'!Q23)","v":0},{"$f":"IF(ISBLANK('TA Indicator Bank'!R23),\"\",'TA Indicator Bank'!R23)","v":0},{"$f":"IF(ISBLANK('TA Indicator Bank'!S23),\"\",'TA Indicator Bank'!S23)","v":0},{"$f":"IF(ISBLANK('TA Indicator Bank'!T23),\"\",'TA Indicator Bank'!T23)","v":0},{"$f":"IF(ISBLANK('TA Indicator Bank'!U23),\"\",'TA Indicator Bank'!U23)","v":0},{"$f":"IF(ISBLANK('TA Indicator Bank'!V23),\"\",'TA Indicator Bank'!V23)","v":0},{"$f":"IF(ISBLANK('TA Indicator Bank'!W23),\"\",'TA Indicator Bank'!W23)","v":0},{"$f":"IF(ISBLANK('TA Indicator Bank'!X23),\"\",'TA Indicator Bank'!X23)","v":0},{"$f":"IF(ISBLANK('TA Indicator Bank'!Y23),\"\",'TA Indicator Bank'!Y23)","v":1},{"$f":"IF(ISBLANK('TA Indicator Bank'!Z23),\"\",'TA Indicator Bank'!Z23)","v":0},{"$f":"IF(ISBLANK('TA Indicator Bank'!AA23),\"\",'TA Indicator Bank'!AA23)","v":0},{"$f":"IF(ISBLANK('TA Indicator Bank'!AB23),\"\",'TA Indicator Bank'!AB23)","v":0},{"$f":"IF(ISBLANK('TA Indicator Bank'!AC23),\"\",'TA Indicator Bank'!AC23)","v":0},{"$f":"IF(ISBLANK('TA Indicator Bank'!AD23),\"\",'TA Indicator Bank'!AD23)","v":0},{"$f":"IF(ISBLANK('TA Indicator Bank'!AE23),\"\",'TA Indicator Bank'!AE23)","v":0},{"$f":"IF(ISBLANK('TA Indicator Bank'!AF23),\"\",'TA Indicator Bank'!AF23)","v":0},{"$f":"IF(ISBLANK('TA Indicator Bank'!AG23),\"\",'TA Indicator Bank'!AG23)","v":0},{"$f":"IF(ISBLANK('TA Indicator Bank'!AH23),\"\",'TA Indicator Bank'!AH23)","v":0},{"$f":"IF(ISBLANK('TA Indicator Bank'!AI23),\"\",'TA Indicator Bank'!AI23)","v":0},{"$f":"IF(ISBLANK('TA Indicator Bank'!AJ23),\"\",'TA Indicator Bank'!AJ23)","v":0},{"$f":"IF(ISBLANK('TA Indicator Bank'!AK23),\"\",'TA Indicator Bank'!AK23)","v":0},{"$f":"IF(ISBLANK('TA Indicator Bank'!AL23),\"\",'TA Indicator Bank'!AL23)","v":0},{"$f":"IF(ISBLANK('TA Indicator Bank'!AM23),\"\",'TA Indicator Bank'!AM23)","v":0},{"$f":"IF(ISBLANK('TA Indicator Bank'!AN23),\"\",'TA Indicator Bank'!AN23)","v":0},{"$f":"IF(ISBLANK('TA Indicator Bank'!AO23),\"\",'TA Indicator Bank'!AO23)","v":0},{"$f":"IF(ISBLANK('TA Indicator Bank'!AP23),\"\",'TA Indicator Bank'!AP23)","v":0},{"$f":"IF(ISBLANK('TA Indicator Bank'!AQ23),\"\",'TA Indicator Bank'!AQ23)","v":0},{"$f":"IF(ISBLANK('TA Indicator Bank'!AR23),\"\",'TA Indicator Bank'!AR23)","v":1},{"$f":"IF(ISBLANK('TA Indicator Bank'!AS23),\"\",'TA Indicator Bank'!AS23)","v":0},{"$f":"IF(ISBLANK('TA Indicator Bank'!AT23),\"\",'TA Indicator Bank'!AT23)","v":0},{"$f":"IF(AND(J27=1,J$410=1),1,0)","v":0},{"$f":"IF(AND(K27=1,K$410=1),1,0)","v":0},{"$f":"IF(AND(L27=1,L$410=1),1,0)","v":0},{"$f":"IF(AND(M27=1,M$410=1),1,0)","v":0},{"$f":"IF(AND(N27=1,N$410=1),1,0)","v":0},{"$f":"IF(AND(O27=1,O$410=1),1,0)","v":0},{"$f":"IF(AND(P27=1,P$410=1),1,0)","v":0},{"$f":"IF(AND(Q27=1,Q$410=1),1,0)","v":0},{"$f":"IF(AND(R27=1,R$410=1),1,0)","v":0},{"$f":"IF(AND(S27=1,S$410=1),1,0)","v":0},{"$f":"IF(AND(T27=1,T$410=1),1,0)","v":0},{"$f":"IF(AND(U27=1,U$410=1),1,0)","v":0},{"$f":"IF(AND(V27=1,V$410=1),1,0)","v":0},{"$f":"IF(AND(W27=1,W$410=1),1,0)","v":0},1,{"$f":"IF(AND(X27=1,X$410=1),1,0)","v":0},{"$f":"IF(AND(Y27=1,Y$410=1),1,0)","v":1},{"$f":"IF(AND(Z27=1,Z$410=1),1,0)","v":0},{"$f":"IF(AND(AA27=1,AA$410=1),1,0)","v":0},{"$f":"IF(AND(AB27=1,AB$410=1),1,0)","v":0},{"$f":"IF(AND(AC27=1,AC$410=1),1,0)","v":0},{"$f":"IF(AND(AD27=1,AD$410=1),1,0)","v":0},{"$f":"IF(AND(AE27=1,AE$410=1),1,0)","v":0},{"$f":"IF(AND(AF27=1,AF$410=1),1,0)","v":0},1,{"$f":"IF(AND(AG27=1,AG$410=1),1,0)","v":0},{"$f":"IF(AND(AH27=1,AH$410=1),1,0)","v":0},{"$f":"IF(AND(AI27=1,AI$410=1),1,0)","v":0},{"$f":"IF(AND(AJ27=1,AJ$410=1),1,0)","v":0},{"$f":"IF(AND(AK27=1,AK$410=1),1,0)","v":0},{"$f":"IF(AND(AL27=1,AL$410=1),1,0)","v":0},{"$f":"IF(AND(AM27=1,AM$410=1),1,0)","v":0},{"$f":"IF(AND(AN27=1,AN$410=1),1,0)","v":0},{"$f":"IF(AND(AO27=1,AO$410=1),1,0)","v":0},1,{"$f":"IF(AND(AP27=1,AP$410=1),1,0)","v":0},{"$f":"IF(AND(AQ27=1,AQ$410=1),1,0)","v":0},{"$f":"IF(AND(AR27=1,AR$410=1),1,0)","v":1},{"$f":"IF(AND(AS27=1,AS$410=1),1,0)","v":0},{"$f":"IF(AND(AT27=1,AT$410=1),1,0)","v":0},1,1,19,19,{"$f":"IFERROR(SMALL($CL$9:$CL$408,CK27),\"\")","v":19},{"$f":"IFERROR(INDEX($B$9:$I$408,$CM27,COLUMNS($CN$9:CN27)),\"\")","v":"TA019"},{"$f":"IFERROR(INDEX($B$9:$I$408,$CM27,COLUMNS($CN$9:CO27)),\"\")","v":"Number of publications that are rated useful by readers"},{"$f":"IFERROR(INDEX($B$9:$I$408,$CM27,COLUMNS($CN$9:CP27)),\"\")","v":"-"},{"$f":"IFERROR(INDEX($B$9:$I$408,$CM27,COLUMNS($CN$9:CQ27)),\"\")","v":"Output"},{"$f":"IFERROR(INDEX($B$9:$I$408,$CM27,COLUMNS($CN$9:CR27)),\"\")","v":"-"},{"$f":"IFERROR(INDEX($B$9:$I$408,$CM27,COLUMNS($CN$9:CS27)),\"\")","v":"Capacity building: Technical capacity"},{"$f":"IFERROR(INDEX($B$9:$I$408,$CM27,COLUMNS($CN$9:CT27)),\"\")","v":"-"},{"$f":"IFERROR(INDEX($B$9:$I$408,$CM27,COLUMNS($CN$9:CU27)),\"\")","v":"Number"}]
[null,{"$f":"IF(ISBLANK('TA Indicator Bank'!B24),\"\",'TA Indicator Bank'!B24)","v":"TA020"},{"$f":"IF(ISBLANK('TA Indicator Bank'!C24),\"\",'TA Indicator Bank'!C24)","v":"Number of citations in academic or policy literature"},{"$f":"IF(ISBLANK('TA Indicator Bank'!D24),\"\",'TA Indicator Bank'!D24)","v":"-"},{"$f":"IF(ISBLANK('TA Indicator Bank'!E24),\"\",'TA Indicator Bank'!E24)","v":"Uptake"},{"$f":"IF(ISBLANK('TA Indicator Bank'!F24),\"\",'TA Indicator Bank'!F24)","v":"Specialist research, inc. market / policy / legal / regulatory / technology research briefs"},{"$f":"IF(ISBLANK('TA Indicator Bank'!G24),\"\",'TA Indicator Bank'!G24)","v":"-"},{"$f":"IF(ISBLANK('TA Indicator Bank'!H24),\"\",'TA Indicator Bank'!H24)","v":"-"},{"$f":"IF(ISBLANK('TA Indicator Bank'!I24),\"\",'TA Indicator Bank'!I24)","v":"Number"},{"$f":"IF(ISBLANK('TA Indicator Bank'!J24),\"\",'TA Indicator Bank'!J24)","v":0},{"$f":"IF(ISBLANK('TA Indicator Bank'!K24),\"\",'TA Indicator Bank'!K24)","v":0},{"$f":"IF(ISBLANK('TA Indicator Bank'!L24),\"\",'TA Indicator Bank'!L24)","v":0},{"$f":"IF(ISBLANK('TA Indicator Bank'!M24),\"\",'TA Indicator Bank'!M24)","v":0},{"$f":"IF(ISBLANK('TA Indicator Bank'!N24),\"\",'TA Indicator Bank'!N24)","v":1},{"$f":"IF(ISBLANK('TA Indicator Bank'!O24),\"\",'TA Indicator Bank'!O24)","v":0},{"$f":"IF(ISBLANK('TA Indicator Bank'!P24),\"\",'TA Indicator Bank'!P24)","v":0},{"$f":"IF(ISBLANK('TA Indicator Bank'!Q24),\"\",'TA Indicator Bank'!Q24)","v":0},{"$f":"IF(ISBLANK('TA Indicator Bank'!R24),\"\",'TA Indicator Bank'!R24)","v":0},{"$f":"IF(ISBLANK('TA Indicator Bank'!S24),\"\",'TA Indicator Bank'!S24)","v":0},{"$f":"IF(ISBLANK('TA Indicator Bank'!T24),\"\",'TA Indicator Bank'!T24)","v":0},{"$f":"IF(ISBLANK('TA Indicator Bank'!U24),\"\",'TA Indicator Bank'!U24)","v":0},{"$f":"IF(ISBLANK('TA Indicator Bank'!V24),\"\",'TA Indicator Bank'!V24)","v":0},{"$f":"IF(ISBLANK('TA Indicator Bank'!W24),\"\",'TA Indicator Bank'!W24)","v":0},{"$f":"IF(ISBLANK('TA Indicator Bank'!X24),\"\",'TA Indicator Bank'!X24)","v":0},{"$f":"IF(ISBLANK('TA Indicator Bank'!Y24),\"\",'TA Indicator Bank'!Y24)","v":0},{"$f":"IF(ISBLANK('TA Indicator Bank'!Z24),\"\",'TA Indicator Bank'!Z24)","v":0},{"$f":"IF(ISBLANK('TA Indicator Bank'!AA24),\"\",'TA Indicator Bank'!AA24)","v":0},{"$f":"IF(ISBLANK('TA Indicator Bank'!AB24),\"\",'TA Indicator Bank'!AB24)","v":0},{"$f":"IF(ISBLANK('TA Indicator Bank'!AC24),\"\",'TA Indicator Bank'!AC24)","v":0},{"$f":"IF(ISBLANK('TA Indicator Bank'!AD24),\"\",'TA Indicator Bank'!AD24)","v":0},{"$f":"IF(ISBLANK('TA Indicator Bank'!AE24),\"\",'TA Indicator Bank'!AE24)","v":0},{"$f":"IF(ISBLANK('TA Indicator Bank'!AF24),\"\",'TA Indicator Bank'!AF24)","v":0},{"$f":"IF(ISBLANK('TA Indicator Bank'!AG24),\"\",'TA Indicator Bank'!AG24)","v":0},{"$f":"IF(ISBLANK('TA Indicator Bank'!AH24),\"\",'TA Indicator Bank'!AH24)","v":0},{"$f":"IF(ISBLANK('TA Indicator Bank'!AI24),\"\",'TA Indicator Bank'!AI24)","v":0},{"$f":"IF(ISBLANK('TA Indicator Bank'!AJ24),\"\",'TA Indicator Bank'!AJ24)","v":0},{"$f":"IF(ISBLANK('TA Indicator Bank'!AK24),\"\",'TA Indicator Bank'!AK24)","v":0},{"$f":"IF(ISBLANK('TA Indicator Bank'!AL24),\"\",'TA Indicator Bank'!AL24)","v":0},{"$f":"IF(ISBLANK('TA Indicator Bank'!AM24),\"\",'TA Indicator Bank'!AM24)","v":0},{"$f":"IF(ISBLANK('TA Indicator Bank'!AN24),\"\",'TA Indicator Bank'!AN24)","v":0},{"$f":"IF(ISBLANK('TA Indicator Bank'!AO24),\"\",'TA Indicator Bank'!AO24)","v":0},{"$f":"IF(ISBLANK('TA Indicator Bank'!AP24),\"\",'TA Indicator Bank'!AP24)","v":0},{"$f":"IF(ISBLANK('TA Indicator Bank'!AQ24),\"\",'TA Indicator Bank'!AQ24)","v":1},{"$f":"IF(ISBLANK('TA Indicator Bank'!AR24),\"\",'TA Indicator Bank'!AR24)","v":0},{"$f":"IF(ISBLANK('TA Indicator Bank'!AS24),\"\",'TA Indicator Bank'!AS24)","v":0},{"$f":"IF(ISBLANK('TA Indicator Bank'!AT24),\"\",'TA Indicator Bank'!AT24)","v":0},{"$f":"IF(AND(J28=1,J$410=1),1,0)","v":0},{"$f":"IF(AND(K28=1,K$410=1),1,0)","v":0},{"$f":"IF(AND(L28=1,L$410=1),1,0)","v":0},{"$f":"IF(AND(M28=1,M$410=1),1,0)","v":0},{"$f":"IF(AND(N28=1,N$410=1),1,0)","v":1},{"$f":"IF(AND(O28=1,O$410=1),1,0)","v":0},{"$f":"IF(AND(P28=1,P$410=1),1,0)","v":0},{"$f":"IF(AND(Q28=1,Q$410=1),1,0)","v":0},{"$f":"IF(AND(R28=1,R$410=1),1,0)","v":0},{"$f":"IF(AND(S28=1,S$410=1),1,0)","v":0},{"$f":"IF(AND(T28=1,T$410=1),1,0)","v":0},{"$f":"IF(AND(U28=1,U$410=1),1,0)","v":0},{"$f":"IF(AND(V28=1,V$410=1),1,0)","v":0},{"$f":"IF(AND(W28=1,W$410=1),1,0)","v":0},1,{"$f":"IF(AND(X28=1,X$410=1),1,0)","v":0},{"$f":"IF(AND(Y28=1,Y$410=1),1,0)","v":0},{"$f":"IF(AND(Z28=1,Z$410=1),1,0)","v":0},{"$f":"IF(AND(AA28=1,AA$410=1),1,0)","v":0},{"$f":"IF(AND(AB28=1,AB$410=1),1,0)","v":0},{"$f":"IF(AND(AC28=1,AC$410=1),1,0)","v":0},{"$f":"IF(AND(AD28=1,AD$410=1),1,0)","v":0},{"$f":"IF(AND(AE28=1,AE$410=1),1,0)","v":0},{"$f":"IF(AND(AF28=1,AF$410=1),1,0)","v":0},1,{"$f":"IF(AND(AG28=1,AG$410=1),1,0)","v":0},{"$f":"IF(AND(AH28=1,AH$410=1),1,0)","v":0},{"$f":"IF(AND(AI28=1,AI$410=1),1,0)","v":0},{"$f":"IF(AND(AJ28=1,AJ$410=1),1,0)","v":0},{"$f":"IF(AND(AK28=1,AK$410=1),1,0)","v":0},{"$f":"IF(AND(AL28=1,AL$410=1),1,0)","v":0},{"$f":"IF(AND(AM28=1,AM$410=1),1,0)","v":0},{"$f":"IF(AND(AN28=1,AN$410=1),1,0)","v":0},{"$f":"IF(AND(AO28=1,AO$410=1),1,0)","v":0},1,{"$f":"IF(AND(AP28=1,AP$410=1),1,0)","v":0},{"$f":"IF(AND(AQ28=1,AQ$410=1),1,0)","v":1},{"$f":"IF(AND(AR28=1,AR$410=1),1,0)","v":0},{"$f":"IF(AND(AS28=1,AS$410=1),1,0)","v":0},{"$f":"IF(AND(AT28=1,AT$410=1),1,0)","v":0},1,1,20,20,{"$f":"IFERROR(SMALL($CL$9:$CL$408,CK28),\"\")","v":20},{"$f":"IFERROR(INDEX($B$9:$I$408,$CM28,COLUMNS($CN$9:CN28)),\"\")","v":"TA020"},{"$f":"IFERROR(INDEX($B$9:$I$408,$CM28,COLUMNS($CN$9:CO28)),\"\")","v":"Number of citations in academic or policy literature"},{"$f":"IFERROR(INDEX($B$9:$I$408,$CM28,COLUMNS($CN$9:CP28)),\"\")","v":"-"},{"$f":"IFERROR(INDEX($B$9:$I$408,$CM28,COLUMNS($CN$9:CQ28)),\"\")","v":"Uptake"},{"$f":"IFERROR(INDEX($B$9:$I$408,$CM28,COLUMNS($CN$9:CR28)),\"\")","v":"Specialist research, inc. market / policy / legal / regulatory / technology research briefs"},{"$f":"IFERROR(INDEX($B$9:$I$408,$CM28,COLUMNS($CN$9:CS28)),\"\")","v":"-"},{"$f":"IFERROR(INDEX($B$9:$I$408,$CM28,COLUMNS($CN$9:CT28)),\"\")","v":"-"},{"$f":"IFERROR(INDEX($B$9:$I$408,$CM28,COLUMNS($CN$9:CU28)),\"\")","v":"Number"}]
[null,{"$f":"IF(ISBLANK('TA Indicator Bank'!B25),\"\",'TA Indicator Bank'!B25)","v":"TA021"},{"$f":"IF(ISBLANK('TA Indicator Bank'!C25),\"\",'TA Indicator Bank'!C25)","v":"Users/readers play role in creation of publication"},{"$f":"IF(ISBLANK('TA Indicator Bank'!D25),\"\",'TA Indicator Bank'!D25)","v":"-"},{"$f":"IF(ISBLANK('TA Indicator Bank'!E25),\"\",'TA Indicator Bank'!E25)","v":"Uptake"},{"$f":"IF(ISBLANK('TA Indicator Bank'!F25),\"\",'TA Indicator Bank'!F25)","v":"Specialist research, inc. market / policy / legal / regulatory / technology research briefs"},{"$f":"IF(ISBLANK('TA Indicator Bank'!G25),\"\",'TA Indicator Bank'!G25)","v":"-"},{"$f":"IF(ISBLANK('TA Indicator Bank'!H25),\"\",'TA Indicator Bank'!H25)","v":"-"},{"$f":"IF(ISBLANK('TA Indicator Bank'!I25),\"\",'TA Indicator Bank'!I25)","v":"Narrative"},{"$f":"IF(ISBLANK('TA Indicator Bank'!J25),\"\",'TA Indicator Bank'!J25)","v":0},{"$f":"IF(ISBLANK('TA Indicator Bank'!K25),\"\",'TA Indicator Bank'!K25)","v":0},{"$f":"IF(ISBLANK('TA Indicator Bank'!L25),\"\",'TA Indicator Bank'!L25)","v":0},{"$f":"IF(ISBLANK('TA Indicator Bank'!M25),\"\",'TA Indicator Bank'!M25)","v":0},{"$f":"IF(ISBLANK('TA Indicator Bank'!N25),\"\",'TA Indicator Bank'!N25)","v":1},{"$f":"IF(ISBLANK('TA Indicator Bank'!O25),\"\",'TA Indicator Bank'!O25)","v":0},{"$f":"IF(ISBLANK('TA Indicator Bank'!P25),\"\",'TA Indicator Bank'!P25)","v":0},{"$f":"IF(ISBLANK('TA Indicator Bank'!Q25),\"\",'TA Indicator Bank'!Q25)","v":0},{"$f":"IF(ISBLANK('TA Indicator Bank'!R25),\"\",'TA Indicator Bank'!R25)","v":0},{"$f":"IF(ISBLANK('TA Indicator Bank'!S25),\"\",'TA Indicator Bank'!S25)","v":0},{"$f":"IF(ISBLANK('TA Indicator Bank'!T25),\"\",'TA Indicator Bank'!T25)","v":0},{"$f":"IF(ISBLANK('TA Indicator Bank'!U25),\"\",'TA Indicator Bank'!U25)","v":0},{"$f":"IF(ISBLANK('TA Indicator Bank'!V25),\"\",'TA Indicator Bank'!V25)","v":0},{"$f":"IF(ISBLANK('TA Indicator Bank'!W25),\"\",'TA Indicator Bank'!W25)","v":0},{"$f":"IF(ISBLANK('TA Indicator Bank'!X25),\"\",'TA Indicator Bank'!X25)","v":0},{"$f":"IF(ISBLANK('TA Indicator Bank'!Y25),\"\",'TA Indicator Bank'!Y25)","v":0},{"$f":"IF(ISBLANK('TA Indicator Bank'!Z25),\"\",'TA Indicator Bank'!Z25)","v":0},{"$f":"IF(ISBLANK('TA Indicator Bank'!AA25),\"\",'TA Indicator Bank'!AA25)","v":0},{"$f":"IF(ISBLANK('TA Indicator Bank'!AB25),\"\",'TA Indicator Bank'!AB25)","v":0},{"$f":"IF(ISBLANK('TA Indicator Bank'!AC25),\"\",'TA Indicator Bank'!AC25)","v":0},{"$f":"IF(ISBLANK('TA Indicator Bank'!AD25),\"\",'TA Indicator Bank'!AD25)","v":0},{"$f":"IF(ISBLANK('TA Indicator Bank'!AE25),\"\",'TA Indicator Bank'!AE25)","v":0},{"$f":"IF(ISBLANK('TA Indicator Bank'!AF25),\"\",'TA Indicator Bank'!AF25)","v":0},{"$f":"IF(ISBLANK('TA Indicator Bank'!AG25),\"\",'TA Indicator Bank'!AG25)","v":0},{"$f":"IF(ISBLANK('TA Indicator Bank'!AH25),\"\",'TA Indicator Bank'!AH25)","v":0},{"$f":"IF(ISBLANK('TA Indicator Bank'!AI25),\"\",'TA Indicator Bank'!AI25)","v":0},{"$f":"IF(ISBLANK('TA Indicator Bank'!AJ25),\"\",'TA Indicator Bank'!AJ25)","v":0},{"$f":"IF(ISBLANK('TA Indicator Bank'!AK25),\"\",'TA Indicator Bank'!AK25)","v":0},{"$f":"IF(ISBLANK('TA Indicator Bank'!AL25),\"\",'TA Indicator Bank'!AL25)","v":0},{"$f":"IF(ISBLANK('TA Indicator Bank'!AM25),\"\",'TA Indicator Bank'!AM25)","v":0},{"$f":"IF(ISBLANK('TA Indicator Bank'!AN25),\"\",'TA Indicator Bank'!AN25)","v":0},{"$f":"IF(ISBLANK('TA Indicator Bank'!AO25),\"\",'TA Indicator Bank'!AO25)","v":0},{"$f":"IF(ISBLANK('TA Indicator Bank'!AP25),\"\",'TA Indicator Bank'!AP25)","v":0},{"$f":"IF(ISBLANK('TA Indicator Bank'!AQ25),\"\",'TA Indicator Bank'!AQ25)","v":1},{"$f":"IF(ISBLANK('TA Indicator Bank'!AR25),\"\",'TA Indicator Bank'!AR25)","v":0},{"$f":"IF(ISBLANK('TA Indicator Bank'!AS25),\"\",'TA Indicator Bank'!AS25)","v":0},{"$f":"IF(ISBLANK('TA Indicator Bank'!AT25),\"\",'TA Indicator Bank'!AT25)","v":0},{"$f":"IF(AND(J29=1,J$410=1),1,0)","v":0},{"$f":"IF(AND(K29=1,K$410=1),1,0)","v":0},{"$f":"IF(AND(L29=1,L$410=1),1,0)","v":0},{"$f":"IF(AND(M29=1,M$410=1),1,0)","v":0},{"$f":"IF(AND(N29=1,N$410=1),1,0)","v":1},{"$f":"IF(AND(O29=1,O$410=1),1,0)","v":0},{"$f":"IF(AND(P29=1,P$410=1),1,0)","v":0},{"$f":"IF(AND(Q29=1,Q$410=1),1,0)","v":0},{"$f":"IF(AND(R29=1,R$410=1),1,0)","v":0},{"$f":"IF(AND(S29=1,S$410=1),1,0)","v":0},{"$f":"IF(AND(T29=1,T$410=1),1,0)","v":0},{"$f":"IF(AND(U29=1,U$410=1),1,0)","v":0},{"$f":"IF(AND(V29=1,V$410=1),1,0)","v":0},{"$f":"IF(AND(W29=1,W$410=1),1,0)","v":0},1,{"$f":"IF(AND(X29=1,X$410=1),1,0)","v":0},{"$f":"IF(AND(Y29=1,Y$410=1),1,0)","v":0},{"$f":"IF(AND(Z29=1,Z$410=1),1,0)","v":0},{"$f":"IF(AND(AA29=1,AA$410=1),1,0)","v":0},{"$f":"IF(AND(AB29=1,AB$410=1),1,0)","v":0},{"$f":"IF(AND(AC29=1,AC$410=1),1,0)","v":0},{"$f":"IF(AND(AD29=1,AD$410=1),1,0)","v":0},{"$f":"IF(AND(AE29=1,AE$410=1),1,0)","v":0},{"$f":"IF(AND(AF29=1,AF$410=1),1,0)","v":0},1,{"$f":"IF(AND(AG29=1,AG$410=1),1,0)","v":0},{"$f":"IF(AND(AH29=1,AH$410=1),1,0)","v":0},{"$f":"IF(AND(AI29=1,AI$410=1),1,0)","v":0},{"$f":"IF(AND(AJ29=1,AJ$410=1),1,0)","v":0},{"$f":"IF(AND(AK29=1,AK$410=1),1,0)","v":0},{"$f":"IF(AND(AL29=1,AL$410=1),1,0)","v":0},{"$f":"IF(AND(AM29=1,AM$410=1),1,0)","v":0},{"$f":"IF(AND(AN29=1,AN$410=1),1,0)","v":0},{"$f":"IF(AND(AO29=1,AO$410=1),1,0)","v":0},1,{"$f":"IF(AND(AP29=1,AP$410=1),1,0)","v":0},{"$f":"IF(AND(AQ29=1,AQ$410=1),1,0)","v":1},{"$f":"IF(AND(AR29=1,AR$410=1),1,0)","v":0},{"$f":"IF(AND(AS29=1,AS$410=1),1,0)","v":0},{"$f":"IF(AND(AT29=1,AT$410=1),1,0)","v":0},1,1,21,21,{"$f":"IFERROR(SMALL($CL$9:$CL$408,CK29),\"\")","v":21},{"$f":"IFERROR(INDEX($B$9:$I$408,$CM29,COLUMNS($CN$9:CN29)),\"\")","v":"TA021"},{"$f":"IFERROR(INDEX($B$9:$I$408,$CM29,COLUMNS($CN$9:CO29)),\"\")","v":"Users/readers play role in creation of publication"},{"$f":"IFERROR(INDEX($B$9:$I$408,$CM29,COLUMNS($CN$9:CP29)),\"\")","v":"-"},{"$f":"IFERROR(INDEX($B$9:$I$408,$CM29,COLUMNS($CN$9:CQ29)),\"\")","v":"Uptake"},{"$f":"IFERROR(INDEX($B$9:$I$408,$CM29,COLUMNS($CN$9:CR29)),\"\")","v":"Specialist research, inc. market / policy / legal / regulatory / technology research briefs"},{"$f":"IFERROR(INDEX($B$9:$I$408,$CM29,COLUMNS($CN$9:CS29)),\"\")","v":"-"},{"$f":"IFERROR(INDEX($B$9:$I$408,$CM29,COLUMNS($CN$9:CT29)),\"\")","v":"-"},{"$f":"IFERROR(INDEX($B$9:$I$408,$CM29,COLUMNS($CN$9:CU29)),\"\")","v":"Narrative"}]
[null,{"$f":"IF(ISBLANK('TA Indicator Bank'!B26),\"\",'TA Indicator Bank'!B26)","v":"TA022"},{"$f":"IF(ISBLANK('TA Indicator Bank'!C26),\"\",'TA Indicator Bank'!C26)","v":"Quality and relevance of publications"},{"$f":"IF(ISBLANK('TA Indicator Bank'!D26),\"\",'TA Indicator Bank'!D26)","v":"Quality and relevance can be assessed in multiple ways: against pre-identified expectations or criteria; based on immediate surveys of users; or, based on surveys following a delay (e.g. 6 months) on how publciations have supported activities/work in practice."},{"$f":"IF(ISBLANK('TA Indicator Bank'!E26),\"\",'TA Indicator Bank'!E26)","v":"Activity"},{"$f":"IF(ISBLANK('TA Indicator Bank'!F26),\"\",'TA Indicator Bank'!F26)","v":"Specialist research, inc. market / policy / legal / regulatory / technology research briefs"},{"$f":"IF(ISBLANK('TA Indicator Bank'!G26),\"\",'TA Indicator Bank'!G26)","v":"-"},{"$f":"IF(ISBLANK('TA Indicator Bank'!H26),\"\",'TA Indicator Bank'!H26)","v":"-"},{"$f":"IF(ISBLANK('TA Indicator Bank'!I26),\"\",'TA Indicator Bank'!I26)","v":"Narrative"},{"$f":"IF(ISBLANK('TA Indicator Bank'!J26),\"\",'TA Indicator Bank'!J26)","v":0},{"$f":"IF(ISBLANK('TA Indicator Bank'!K26),\"\",'TA Indicator Bank'!K26)","v":0},{"$f":"IF(ISBLANK('TA Indicator Bank'!L26),\"\",'TA Indicator Bank'!L26)","v":0},{"$f":"IF(ISBLANK('TA Indicator Bank'!M26),\"\",'TA Indicator Bank'!M26)","v":0},{"$f":"IF(ISBLANK('TA Indicator Bank'!N26),\"\",'TA Indicator Bank'!N26)","v":1},{"$f":"IF(ISBLANK('TA Indicator Bank'!O26),\"\",'TA Indicator Bank'!O26)","v":0},{"$f":"IF(ISBLANK('TA Indicator Bank'!P26),\"\",'TA Indicator Bank'!P26)","v":0},{"$f":"IF(ISBLANK('TA Indicator Bank'!Q26),\"\",'TA Indicator Bank'!Q26)","v":0},{"$f":"IF(ISBLANK('TA Indicator Bank'!R26),\"\",'TA Indicator Bank'!R26)","v":0},{"$f":"IF(ISBLANK('TA Indicator Bank'!S26),\"\",'TA Indicator Bank'!S26)","v":0},{"$f":"IF(ISBLANK('TA Indicator Bank'!T26),\"\",'TA Indicator Bank'!T26)","v":0},{"$f":"IF(ISBLANK('TA Indicator Bank'!U26),\"\",'TA Indicator Bank'!U26)","v":0},{"$f":"IF(ISBLANK('TA Indicator Bank'!V26),\"\",'TA Indicator Bank'!V26)","v":0},{"$f":"IF(ISBLANK('TA Indicator Bank'!W26),\"\",'TA Indicator Bank'!W26)","v":0},{"$f":"IF(ISBLANK('TA Indicator Bank'!X26),\"\",'TA Indicator Bank'!X26)","v":0},{"$f":"IF(ISBLANK('TA Indicator Bank'!Y26),\"\",'TA Indicator Bank'!Y26)","v":0},{"$f":"IF(ISBLANK('TA Indicator Bank'!Z26),\"\",'TA Indicator Bank'!Z26)","v":0},{"$f":"IF(ISBLANK('TA Indicator Bank'!AA26),\"\",'TA Indicator Bank'!AA26)","v":0},{"$f":"IF(ISBLANK('TA Indicator Bank'!AB26),\"\",'TA Indicator Bank'!AB26)","v":0},{"$f":"IF(ISBLANK('TA Indicator Bank'!AC26),\"\",'TA Indicator Bank'!AC26)","v":0},{"$f":"IF(ISBLANK('TA Indicator Bank'!AD26),\"\",'TA Indicator Bank'!AD26)","v":0},{"$f":"IF(ISBLANK('TA Indicator Bank'!AE26),\"\",'TA Indicator Bank'!AE26)","v":0},{"$f":"IF(ISBLANK('TA Indicator Bank'!AF26),\"\",'TA Indicator Bank'!AF26)","v":0},{"$f":"IF(ISBLANK('TA Indicator Bank'!AG26),\"\",'TA Indicator Bank'!AG26)","v":0},{"$f":"IF(ISBLANK('TA Indicator Bank'!AH26),\"\",'TA Indicator Bank'!AH26)","v":0},{"$f":"IF(ISBLANK('TA Indicator Bank'!AI26),\"\",'TA Indicator Bank'!AI26)","v":0},{"$f":"IF(ISBLANK('TA Indicator Bank'!AJ26),\"\",'TA Indicator Bank'!AJ26)","v":0},{"$f":"IF(ISBLANK('TA Indicator Bank'!AK26),\"\",'TA Indicator Bank'!AK26)","v":0},{"$f":"IF(ISBLANK('TA Indicator Bank'!AL26),\"\",'TA Indicator Bank'!AL26)","v":0},{"$f":"IF(ISBLANK('TA Indicator Bank'!AM26),\"\",'TA Indicator Bank'!AM26)","v":0},{"$f":"IF(ISBLANK('TA Indicator Bank'!AN26),\"\",'TA Indicator Bank'!AN26)","v":0},{"$f":"IF(ISBLANK('TA Indicator Bank'!AO26),\"\",'TA Indicator Bank'!AO26)","v":0},{"$f":"IF(ISBLANK('TA Indicator Bank'!AP26),\"\",'TA Indicator Bank'!AP26)","v":1},{"$f":"IF(ISBLANK('TA Indicator Bank'!AQ26),\"\",'TA Indicator Bank'!AQ26)","v":0},{"$f":"IF(ISBLANK('TA Indicator Bank'!AR26),\"\",'TA Indicator Bank'!AR26)","v":0},{"$f":"IF(ISBLANK('TA Indicator Bank'!AS26),\"\",'TA Indicator Bank'!AS26)","v":0},{"$f":"IF(ISBLANK('TA Indicator Bank'!AT26),\"\",'TA Indicator Bank'!AT26)","v":0},{"$f":"IF(AND(J30=1,J$410=1),1,0)","v":0},{"$f":"IF(AND(K30=1,K$410=1),1,0)","v":0},{"$f":"IF(AND(L30=1,L$410=1),1,0)","v":0},{"$f":"IF(AND(M30=1,M$410=1),1,0)","v":0},{"$f":"IF(AND(N30=1,N$410=1),1,0)","v":1},{"$f":"IF(AND(O30=1,O$410=1),1,0)","v":0},{"$f":"IF(AND(P30=1,P$410=1),1,0)","v":0},{"$f":"IF(AND(Q30=1,Q$410=1),1,0)","v":0},{"$f":"IF(AND(R30=1,R$410=1),1,0)","v":0},{"$f":"IF(AND(S30=1,S$410=1),1,0)","v":0},{"$f":"IF(AND(T30=1,T$410=1),1,0)","v":0},{"$f":"IF(AND(U30=1,U$410=1),1,0)","v":0},{"$f":"IF(AND(V30=1,V$410=1),1,0)","v":0},{"$f":"IF(AND(W30=1,W$410=1),1,0)","v":0},1,{"$f":"IF(AND(X30=1,X$410=1),1,0)","v":0},{"$f":"IF(AND(Y30=1,Y$410=1),1,0)","v":0},{"$f":"IF(AND(Z30=1,Z$410=1),1,0)","v":0},{"$f":"IF(AND(AA30=1,AA$410=1),1,0)","v":0},{"$f":"IF(AND(AB30=1,AB$410=1),1,0)","v":0},{"$f":"IF(AND(AC30=1,AC$410=1),1,0)","v":0},{"$f":"IF(AND(AD30=1,AD$410=1),1,0)","v":0},{"$f":"IF(AND(AE30=1,AE$410=1),1,0)","v":0},{"$f":"IF(AND(AF30=1,AF$410=1),1,0)","v":0},1,{"$f":"IF(AND(AG30=1,AG$410=1),1,0)","v":0},{"$f":"IF(AND(AH30=1,AH$410=1),1,0)","v":0},{"$f":"IF(AND(AI30=1,AI$410=1),1,0)","v":0},{"$f":"IF(AND(AJ30=1,AJ$410=1),1,0)","v":0},{"$f":"IF(AND(AK30=1,AK$410=1),1,0)","v":0},{"$f":"IF(AND(AL30=1,AL$410=1),1,0)","v":0},{"$f":"IF(AND(AM30=1,AM$410=1),1,0)","v":0},{"$f":"IF(AND(AN30=1,AN$410=1),1,0)","v":0},{"$f":"IF(AND(AO30=1,AO$410=1),1,0)","v":0},1,{"$f":"IF(AND(AP30=1,AP$410=1),1,0)","v":1},{"$f":"IF(AND(AQ30=1,AQ$410=1),1,0)","v":0},{"$f":"IF(AND(AR30=1,AR$410=1),1,0)","v":0},{"$f":"IF(AND(AS30=1,AS$410=1),1,0)","v":0},{"$f":"IF(AND(AT30=1,AT$410=1),1,0)","v":0},1,1,22,22,{"$f":"IFERROR(SMALL($CL$9:$CL$408,CK30),\"\")","v":22},{"$f":"IFERROR(INDEX($B$9:$I$408,$CM30,COLUMNS($CN$9:CN30)),\"\")","v":"TA022"},{"$f":"IFERROR(INDEX($B$9:$I$408,$CM30,COLUMNS($CN$9:CO30)),\"\")","v":"Quality and relevance of publications"},{"$f":"IFERROR(INDEX($B$9:$I$408,$CM30,COLUMNS($CN$9:CP30)),\"\")","v":"Quality and relevance can be assessed in multiple ways: against pre-identified expectations or criteria; based on immediate surveys of users; or, based on surveys following a delay (e.g. 6 months) on how publciations have supported activities/work in practice."},{"$f":"IFERROR(INDEX($B$9:$I$408,$CM30,COLUMNS($CN$9:CQ30)),\"\")","v":"Activity"},{"$f":"IFERROR(INDEX($B$9:$I$408,$CM30,COLUMNS($CN$9:CR30)),\"\")","v":"Specialist research, inc. market / policy / legal / regulatory / technology research briefs"},{"$f":"IFERROR(INDEX($B$9:$I$408,$CM30,COLUMNS($CN$9:CS30)),\"\")","v":"-"},{"$f":"IFERROR(INDEX($B$9:$I$408,$CM30,COLUMNS($CN$9:CT30)),\"\")","v":"-"},{"$f":"IFERROR(INDEX($B$9:$I$408,$CM30,COLUMNS($CN$9:CU30)),\"\")","v":"Narrative"}]
[null,{"$f":"IF(ISBLANK('TA Indicator Bank'!B27),\"\",'TA Indicator Bank'!B27)","v":"TA023"},{"$f":"IF(ISBLANK('TA Indicator Bank'!C27),\"\",'TA Indicator Bank'!C27)","v":"Number of cases where programme has supported organisational change"},{"$f":"IF(ISBLANK('TA Indicator Bank'!D27),\"\",'TA Indicator Bank'!D27)","v":"-"},{"$f":"IF(ISBLANK('TA Indicator Bank'!E27),\"\",'TA Indicator Bank'!E27)","v":"Output"},{"$f":"IF(ISBLANK('TA Indicator Bank'!F27),\"\",'TA Indicator Bank'!F27)","v":"-"},{"$f":"IF(ISBLANK('TA Indicator Bank'!G27),\"\",'TA Indicator Bank'!G27)","v":"Process/asset operation support"},{"$f":"IF(ISBLANK('TA Indicator Bank'!H27),\"\",'TA Indicator Bank'!H27)","v":"-"},{"$f":"IF(ISBLANK('TA Indicator Bank'!I27),\"\",'TA Indicator Bank'!I27)","v":"Number"},{"$f":"IF(ISBLANK('TA Indicator Bank'!J27),\"\",'TA Indicator Bank'!J27)","v":0},{"$f":"IF(ISBLANK('TA Indicator Bank'!K27),\"\",'TA Indicator Bank'!K27)","v":0},{"$f":"IF(ISBLANK('TA Indicator Bank'!L27),\"\",'TA Indicator Bank'!L27)","v":0},{"$f":"IF(ISBLANK('TA Indicator Bank'!M27),\"\",'TA Indicator Bank'!M27)","v":0},{"$f":"IF(ISBLANK('TA Indicator Bank'!N27),\"\",'TA Indicator Bank'!N27)","v":0},{"$f":"IF(ISBLANK('TA Indicator Bank'!O27),\"\",'TA Indicator Bank'!O27)","v":0},{"$f":"IF(ISBLANK('TA Indicator Bank'!P27),\"\",'TA Indicator Bank'!P27)","v":0},{"$f":"IF(ISBLANK('TA Indicator Bank'!Q27),\"\",'TA Indicator Bank'!Q27)","v":0},{"$f":"IF(ISBLANK('TA Indicator Bank'!R27),\"\",'TA Indicator Bank'!R27)","v":0},{"$f":"IF(ISBLANK('TA Indicator Bank'!S27),\"\",'TA Indicator Bank'!S27)","v":0},{"$f":"IF(ISBLANK('TA Indicator Bank'!T27),\"\",'TA Indicator Bank'!T27)","v":0},{"$f":"IF(ISBLANK('TA Indicator Bank'!U27),\"\",'TA Indicator Bank'!U27)","v":0},{"$f":"IF(ISBLANK('TA Indicator Bank'!V27),\"\",'TA Indicator Bank'!V27)","v":0},{"$f":"IF(ISBLANK('TA Indicator Bank'!W27),\"\",'TA Indicator Bank'!W27)","v":0},{"$f":"IF(ISBLANK('TA Indicator Bank'!X27),\"\",'TA Indicator Bank'!X27)","v":0},{"$f":"IF(ISBLANK('TA Indicator Bank'!Y27),\"\",'TA Indicator Bank'!Y27)","v":0},{"$f":"IF(ISBLANK('TA Indicator Bank'!Z27),\"\",'TA Indicator Bank'!Z27)","v":0},{"$f":"IF(ISBLANK('TA Indicator Bank'!AA27),\"\",'TA Indicator Bank'!AA27)","v":0},{"$f":"IF(ISBLANK('TA Indicator Bank'!AB27),\"\",'TA Indicator Bank'!AB27)","v":0},{"$f":"IF(ISBLANK('TA Indicator Bank'!AC27),\"\",'TA Indicator Bank'!AC27)","v":0},{"$f":"IF(ISBLANK('TA Indicator Bank'!AD27),\"\",'TA Indicator Bank'!AD27)","v":1},{"$f":"IF(ISBLANK('TA Indicator Bank'!AE27),\"\",'TA Indicator Bank'!AE27)","v":0},{"$f":"IF(ISBLANK('TA Indicator Bank'!AF27),\"\",'TA Indicator Bank'!AF27)","v":0},{"$f":"IF(ISBLANK('TA Indicator Bank'!AG27),\"\",'TA Indicator Bank'!AG27)","v":0},{"$f":"IF(ISBLANK('TA Indicator Bank'!AH27),\"\",'TA Indicator Bank'!AH27)","v":0},{"$f":"IF(ISBLANK('TA Indicator Bank'!AI27),\"\",'TA Indicator Bank'!AI27)","v":0},{"$f":"IF(ISBLANK('TA Indicator Bank'!AJ27),\"\",'TA Indicator Bank'!AJ27)","v":0},{"$f":"IF(ISBLANK('TA Indicator Bank'!AK27),\"\",'TA Indicator Bank'!AK27)","v":0},{"$f":"IF(ISBLANK('TA Indicator Bank'!AL27),\"\",'TA Indicator Bank'!AL27)","v":0},{"$f":"IF(ISBLANK('TA Indicator Bank'!AM27),\"\",'TA Indicator Bank'!AM27)","v":0},{"$f":"IF(ISBLANK('TA Indicator Bank'!AN27),\"\",'TA Indicator Bank'!AN27)","v":0},{"$f":"IF(ISBLANK('TA Indicator Bank'!AO27),\"\",'TA Indicator Bank'!AO27)","v":0},{"$f":"IF(ISBLANK('TA Indicator Bank'!AP27),\"\",'TA Indicator Bank'!AP27)","v":0},{"$f":"IF(ISBLANK('TA Indicator Bank'!AQ27),\"\",'TA Indicator Bank'!AQ27)","v":0},{"$f":"IF(ISBLANK('TA Indicator Bank'!AR27),\"\",'TA Indicator Bank'!AR27)","v":1},{"$f":"IF(ISBLANK('TA Indicator Bank'!AS27),\"\",'TA Indicator Bank'!AS27)","v":0},{"$f":"IF(ISBLANK('TA Indicator Bank'!AT27),\"\",'TA Indicator Bank'!AT27)","v":0},{"$f":"IF(AND(J31=1,J$410=1),1,0)","v":0},{"$f":"IF(AND(K31=1,K$410=1),1,0)","v":0},{"$f":"IF(AND(L31=1,L$410=1),1,0)","v":0},{"$f":"IF(AND(M31=1,M$410=1),1,0)","v":0},{"$f":"IF(AND(N31=1,N$410=1),1,0)","v":0},{"$f":"IF(AND(O31=1,O$410=1),1,0)","v":0},{"$f":"IF(AND(P31=1,P$410=1),1,0)","v":0},{"$f":"IF(AND(Q31=1,Q$410=1),1,0)","v":0},{"$f":"IF(AND(R31=1,R$410=1),1,0)","v":0},{"$f":"IF(AND(S31=1,S$410=1),1,0)","v":0},{"$f":"IF(AND(T31=1,T$410=1),1,0)","v":0},{"$f":"IF(AND(U31=1,U$410=1),1,0)","v":0},{"$f":"IF(AND(V31=1,V$410=1),1,0)","v":0},{"$f":"IF(AND(W31=1,W$410=1),1,0)","v":0},1,{"$f":"IF(AND(X31=1,X$410=1),1,0)","v":0},{"$f":"IF(AND(Y31=1,Y$410=1),1,0)","v":0},{"$f":"IF(AND(Z31=1,Z$410=1),1,0)","v":0},{"$f":"IF(AND(AA31=1,AA$410=1),1,0)","v":0},{"$f":"IF(AND(AB31=1,AB$410=1),1,0)","v":0},{"$f":"IF(AND(AC31=1,AC$410=1),1,0)","v":0},{"$f":"IF(AND(AD31=1,AD$410=1),1,0)","v":1},{"$f":"IF(AND(AE31=1,AE$410=1),1,0)","v":0},{"$f":"IF(AND(AF31=1,AF$410=1),1,0)","v":0},1,{"$f":"IF(AND(AG31=1,AG$410=1),1,0)","v":0},{"$f":"IF(AND(AH31=1,AH$410=1),1,0)","v":0},{"$f":"IF(AND(AI31=1,AI$410=1),1,0)","v":0},{"$f":"IF(AND(AJ31=1,AJ$410=1),1,0)","v":0},{"$f":"IF(AND(AK31=1,AK$410=1),1,0)","v":0},{"$f":"IF(AND(AL31=1,AL$410=1),1,0)","v":0},{"$f":"IF(AND(AM31=1,AM$410=1),1,0)","v":0},{"$f":"IF(AND(AN31=1,AN$410=1),1,0)","v":0},{"$f":"IF(AND(AO31=1,AO$410=1),1,0)","v":0},1,{"$f":"IF(AND(AP31=1,AP$410=1),1,0)","v":0},{"$f":"IF(AND(AQ31=1,AQ$410=1),1,0)","v":0},{"$f":"IF(AND(AR31=1,AR$410=1),1,0)","v":1},{"$f":"IF(AND(AS31=1,AS$410=1),1,0)","v":0},{"$f":"IF(AND(AT31=1,AT$410=1),1,0)","v":0},1,1,23,23,{"$f":"IFERROR(SMALL($CL$9:$CL$408,CK31),\"\")","v":23},{"$f":"IFERROR(INDEX($B$9:$I$408,$CM31,COLUMNS($CN$9:CN31)),\"\")","v":"TA023"},{"$f":"IFERROR(INDEX($B$9:$I$408,$CM31,COLUMNS($CN$9:CO31)),\"\")","v":"Number of cases where programme has supported organisational change"},{"$f":"IFERROR(INDEX($B$9:$I$408,$CM31,COLUMNS($CN$9:CP31)),\"\")","v":"-"},{"$f":"IFERROR(INDEX($B$9:$I$408,$CM31,COLUMNS($CN$9:CQ31)),\"\")","v":"Output"},{"$f":"IFERROR(INDEX($B$9:$I$408,$CM31,COLUMNS($CN$9:CR31)),\"\")","v":"-"},{"$f":"IFERROR(INDEX($B$9:$I$408,$CM31,COLUMNS($CN$9:CS31)),\"\")","v":"Process/asset operation support"},{"$f":"IFERROR(INDEX($B$9:$I$408,$CM31,COLUMNS($CN$9:CT31)),\"\")","v":"-"},{"$f":"IFERROR(INDEX($B$9:$I$408,$CM31,COLUMNS($CN$9:CU31)),\"\")","v":"Number"}]
[null,{"$f":"IF(ISBLANK('TA Indicator Bank'!B28),\"\",'TA Indicator Bank'!B28)","v":"TA024"},{"$f":"IF(ISBLANK('TA Indicator Bank'!C28),\"\",'TA Indicator Bank'!C28)","v":"Number/percentage of organisation that have certain processes or plan implemented within given time period"},{"$f":"IF(ISBLANK('TA Indicator Bank'!D28),\"\",'TA Indicator Bank'!D28)","v":"-"},{"$f":"IF(ISBLANK('TA Indicator Bank'!E28),\"\",'TA Indicator Bank'!E28)","v":"Output"},{"$f":"IF(ISBLANK('TA Indicator Bank'!F28),\"\",'TA Indicator Bank'!F28)","v":"-"},{"$f":"IF(ISBLANK('TA Indicator Bank'!G28),\"\",'TA Indicator Bank'!G28)","v":"Process/asset operation support"},{"$f":"IF(ISBLANK('TA Indicator Bank'!H28),\"\",'TA Indicator Bank'!H28)","v":"-"},{"$f":"IF(ISBLANK('TA Indicator Bank'!I28),\"\",'TA Indicator Bank'!I28)","v":"Number, Percentage"},{"$f":"IF(ISBLANK('TA Indicator Bank'!J28),\"\",'TA Indicator Bank'!J28)","v":0},{"$f":"IF(ISBLANK('TA Indicator Bank'!K28),\"\",'TA Indicator Bank'!K28)","v":0},{"$f":"IF(ISBLANK('TA Indicator Bank'!L28),\"\",'TA Indicator Bank'!L28)","v":0},{"$f":"IF(ISBLANK('TA Indicator Bank'!M28),\"\",'TA Indicator Bank'!M28)","v":0},{"$f":"IF(ISBLANK('TA Indicator Bank'!N28),\"\",'TA Indicator Bank'!N28)","v":0},{"$f":"IF(ISBLANK('TA Indicator Bank'!O28),\"\",'TA Indicator Bank'!O28)","v":0},{"$f":"IF(ISBLANK('TA Indicator Bank'!P28),\"\",'TA Indicator Bank'!P28)","v":0},{"$f":"IF(ISBLANK('TA Indicator Bank'!Q28),\"\",'TA Indicator Bank'!Q28)","v":0},{"$f":"IF(ISBLANK('TA Indicator Bank'!R28),\"\",'TA Indicator Bank'!R28)","v":0},{"$f":"IF(ISBLANK('TA Indicator Bank'!S28),\"\",'TA Indicator Bank'!S28)","v":0},{"$f":"IF(ISBLANK('TA Indicator Bank'!T28),\"\",'TA Indicator Bank'!T28)","v":0},{"$f":"IF(ISBLANK('TA Indicator Bank'!U28),\"\",'TA Indicator Bank'!U28)","v":0},{"$f":"IF(ISBLANK('TA Indicator Bank'!V28),\"\",'TA Indicator Bank'!V28)","v":0},{"$f":"IF(ISBLANK('TA Indicator Bank'!W28),\"\",'TA Indicator Bank'!W28)","v":0},{"$f":"IF(ISBLANK('TA Indicator Bank'!X28),\"\",'TA Indicator Bank'!X28)","v":0},{"$f":"IF(ISBLANK('TA Indicator Bank'!Y28),\"\",'TA Indicator Bank'!Y28)","v":0},{"$f":"IF(ISBLANK('TA Indicator Bank'!Z28),\"\",'TA Indicator Bank'!Z28)","v":0},{"$f":"IF(ISBLANK('TA Indicator Bank'!AA28),\"\",'TA Indicator Bank'!AA28)","v":0},{"$f":"IF(ISBLANK('TA Indicator Bank'!AB28),\"\",'TA Indicator Bank'!AB28)","v":0},{"$f":"IF(ISBLANK('TA Indicator Bank'!AC28),\"\",'TA Indicator Bank'!AC28)","v":0},{"$f":"IF(ISBLANK('TA Indicator Bank'!AD28),\"\",'TA Indicator Bank'!AD28)","v":1},{"$f":"IF(ISBLANK('TA Indicator Bank'!AE28),\"\",'TA Indicator Bank'!AE28)","v":0},{"$f":"IF(ISBLANK('TA Indicator Bank'!AF28),\"\",'TA Indicator Bank'!AF28)","v":0},{"$f":"IF(ISBLANK('TA Indicator Bank'!AG28),\"\",'TA Indicator Bank'!AG28)","v":0},{"$f":"IF(ISBLANK('TA Indicator Bank'!AH28),\"\",'TA Indicator Bank'!AH28)","v":0},{"$f":"IF(ISBLANK('TA Indicator Bank'!AI28),\"\",'TA Indicator Bank'!AI28)","v":0},{"$f":"IF(ISBLANK('TA Indicator Bank'!AJ28),\"\",'TA Indicator Bank'!AJ28)","v":0},{"$f":"IF(ISBLANK('TA Indicator Bank'!AK28),\"\",'TA Indicator Bank'!AK28)","v":0},{"$f":"IF(ISBLANK('TA Indicator Bank'!AL28),\"\",'TA Indicator Bank'!AL28)","v":0},{"$f":"IF(ISBLANK('TA Indicator Bank'!AM28),\"\",'TA Indicator Bank'!AM28)","v":0},{"$f":"IF(ISBLANK('TA Indicator Bank'!AN28),\"\",'TA Indicator Bank'!AN28)","v":0},{"$f":"IF(ISBLANK('TA Indicator Bank'!AO28),\"\",'TA Indicator Bank'!AO28)","v":0},{"$f":"IF(ISBLANK('TA Indicator Bank'!AP28),\"\",'TA Indicator Bank'!AP28)","v":0},{"$f":"IF(ISBLANK('TA Indicator Bank'!AQ28),\"\",'TA Indicator Bank'!AQ28)","v":0},{"$f":"IF(ISBLANK('TA Indicator Bank'!AR28),\"\",'TA Indicator Bank'!AR28)","v":1},{"$f":"IF(ISBLANK('TA Indicator Bank'!AS28),\"\",'TA Indicator Bank'!AS28)","v":0},{"$f":"IF(ISBLANK('TA Indicator Bank'!AT28),\"\",'TA Indicator Bank'!AT28)","v":0},{"$f":"IF(AND(J32=1,J$410=1),1,0)","v":0},{"$f":"IF(AND(K32=1,K$410=1),1,0)","v":0},{"$f":"IF(AND(L32=1,L$410=1),1,0)","v":0},{"$f":"IF(AND(M32=1,M$410=1),1,0)","v":0},{"$f":"IF(AND(N32=1,N$410=1),1,0)","v":0},{"$f":"IF(AND(O32=1,O$410=1),1,0)","v":0},{"$f":"IF(AND(P32=1,P$410=1),1,0)","v":0},{"$f":"IF(AND(Q32=1,Q$410=1),1,0)","v":0},{"$f":"IF(AND(R32=1,R$410=1),1,0)","v":0},{"$f":"IF(AND(S32=1,S$410=1),1,0)","v":0},{"$f":"IF(AND(T32=1,T$410=1),1,0)","v":0},{"$f":"IF(AND(U32=1,U$410=1),1,0)","v":0},{"$f":"IF(AND(V32=1,V$410=1),1,0)","v":0},{"$f":"IF(AND(W32=1,W$410=1),1,0)","v":0},1,{"$f":"IF(AND(X32=1,X$410=1),1,0)","v":0},{"$f":"IF(AND(Y32=1,Y$410=1),1,0)","v":0},{"$f":"IF(AND(Z32=1,Z$410=1),1,0)","v":0},{"$f":"IF(AND(AA32=1,AA$410=1),1,0)","v":0},{"$f":"IF(AND(AB32=1,AB$410=1),1,0)","v":0},{"$f":"IF(AND(AC32=1,AC$410=1),1,0)","v":0},{"$f":"IF(AND(AD32=1,AD$410=1),1,0)","v":1},{"$f":"IF(AND(AE32=1,AE$410=1),1,0)","v":0},{"$f":"IF(AND(AF32=1,AF$410=1),1,0)","v":0},1,{"$f":"IF(AND(AG32=1,AG$410=1),1,0)","v":0},{"$f":"IF(AND(AH32=1,AH$410=1),1,0)","v":0},{"$f":"IF(AND(AI32=1,AI$410=1),1,0)","v":0},{"$f":"IF(AND(AJ32=1,AJ$410=1),1,0)","v":0},{"$f":"IF(AND(AK32=1,AK$410=1),1,0)","v":0},{"$f":"IF(AND(AL32=1,AL$410=1),1,0)","v":0},{"$f":"IF(AND(AM32=1,AM$410=1),1,0)","v":0},{"$f":"IF(AND(AN32=1,AN$410=1),1,0)","v":0},{"$f":"IF(AND(AO32=1,AO$410=1),1,0)","v":0},1,{"$f":"IF(AND(AP32=1,AP$410=1),1,0)","v":0},{"$f":"IF(AND(AQ32=1,AQ$410=1),1,0)","v":0},{"$f":"IF(AND(AR32=1,AR$410=1),1,0)","v":1},{"$f":"IF(AND(AS32=1,AS$410=1),1,0)","v":0},{"$f":"IF(AND(AT32=1,AT$410=1),1,0)","v":0},1,1,24,24,{"$f":"IFERROR(SMALL($CL$9:$CL$408,CK32),\"\")","v":24},{"$f":"IFERROR(INDEX($B$9:$I$408,$CM32,COLUMNS($CN$9:CN32)),\"\")","v":"TA024"},{"$f":"IFERROR(INDEX($B$9:$I$408,$CM32,COLUMNS($CN$9:CO32)),\"\")","v":"Number/percentage of organisation that have certain processes or plan implemented within given time period"},{"$f":"IFERROR(INDEX($B$9:$I$408,$CM32,COLUMNS($CN$9:CP32)),\"\")","v":"-"},{"$f":"IFERROR(INDEX($B$9:$I$408,$CM32,COLUMNS($CN$9:CQ32)),\"\")","v":"Output"},{"$f":"IFERROR(INDEX($B$9:$I$408,$CM32,COLUMNS($CN$9:CR32)),\"\")","v":"-"},{"$f":"IFERROR(INDEX($B$9:$I$408,$CM32,COLUMNS($CN$9:CS32)),\"\")","v":"Process/asset operation support"},{"$f":"IFERROR(INDEX($B$9:$I$408,$CM32,COLUMNS($CN$9:CT32)),\"\")","v":"-"},{"$f":"IFERROR(INDEX($B$9:$I$408,$CM32,COLUMNS($CN$9:CU32)),\"\")","v":"Number, Percentage"}]
[null,{"$f":"IF(ISBLANK('TA Indicator Bank'!B29),\"\",'TA Indicator Bank'!B29)","v":"TA025"},{"$f":"IF(ISBLANK('TA Indicator Bank'!C29),\"\",'TA Indicator Bank'!C29)","v":"Number of recommendations that lead to improved programme/activities"},{"$f":"IF(ISBLANK('TA Indicator Bank'!D29),\"\",'TA Indicator Bank'!D29)","v":"-"},{"$f":"IF(ISBLANK('TA Indicator Bank'!E29),\"\",'TA Indicator Bank'!E29)","v":"Output"},{"$f":"IF(ISBLANK('TA Indicator Bank'!F29),\"\",'TA Indicator Bank'!F29)","v":"-"},{"$f":"IF(ISBLANK('TA Indicator Bank'!G29),\"\",'TA Indicator Bank'!G29)","v":"Process/asset operation support"},{"$f":"IF(ISBLANK('TA Indicator Bank'!H29),\"\",'TA Indicator Bank'!H29)","v":"-"},{"$f":"IF(ISBLANK('TA Indicator Bank'!I29),\"\",'TA Indicator Bank'!I29)","v":"Number"},{"$f":"IF(ISBLANK('TA Indicator Bank'!J29),\"\",'TA Indicator Bank'!J29)","v":0},{"$f":"IF(ISBLANK('TA Indicator Bank'!K29),\"\",'TA Indicator Bank'!K29)","v":0},{"$f":"IF(ISBLANK('TA Indicator Bank'!L29),\"\",'TA Indicator Bank'!L29)","v":0},{"$f":"IF(ISBLANK('TA Indicator Bank'!M29),\"\",'TA Indicator Bank'!M29)","v":0},{"$f":"IF(ISBLANK('TA Indicator Bank'!N29),\"\",'TA Indicator Bank'!N29)","v":0},{"$f":"IF(ISBLANK('TA Indicator Bank'!O29),\"\",'TA Indicator Bank'!O29)","v":0},{"$f":"IF(ISBLANK('TA Indicator Bank'!P29),\"\",'TA Indicator Bank'!P29)","v":0},{"$f":"IF(ISBLANK('TA Indicator Bank'!Q29),\"\",'TA Indicator Bank'!Q29)","v":0},{"$f":"IF(ISBLANK('TA Indicator Bank'!R29),\"\",'TA Indicator Bank'!R29)","v":0},{"$f":"IF(ISBLANK('TA Indicator Bank'!S29),\"\",'TA Indicator Bank'!S29)","v":0},{"$f":"IF(ISBLANK('TA Indicator Bank'!T29),\"\",'TA Indicator Bank'!T29)","v":0},{"$f":"IF(ISBLANK('TA Indicator Bank'!U29),\"\",'TA Indicator Bank'!U29)","v":0},{"$f":"IF(ISBLANK('TA Indicator Bank'!V29),\"\",'TA Indicator Bank'!V29)","v":0},{"$f":"IF(ISBLANK('TA Indicator Bank'!W29),\"\",'TA Indicator Bank'!W29)","v":0},{"$f":"IF(ISBLANK('TA Indicator Bank'!X29),\"\",'TA Indicator Bank'!X29)","v":0},{"$f":"IF(ISBLANK('TA Indicator Bank'!Y29),\"\",'TA Indicator Bank'!Y29)","v":0},{"$f":"IF(ISBLANK('TA Indicator Bank'!Z29),\"\",'TA Indicator Bank'!Z29)","v":0},{"$f":"IF(ISBLANK('TA Indicator Bank'!AA29),\"\",'TA Indicator Bank'!AA29)","v":0},{"$f":"IF(ISBLANK('TA Indicator Bank'!AB29),\"\",'TA Indicator Bank'!AB29)","v":0},{"$f":"IF(ISBLANK('TA Indicator Bank'!AC29),\"\",'TA Indicator Bank'!AC29)","v":0},{"$f":"IF(ISBLANK('TA Indicator Bank'!AD29),\"\",'TA Indicator Bank'!AD29)","v":1},{"$f":"IF(ISBLANK('TA Indicator Bank'!AE29),\"\",'TA Indicator Bank'!AE29)","v":0},{"$f":"IF(ISBLANK('TA Indicator Bank'!AF29),\"\",'TA Indicator Bank'!AF29)","v":0},{"$f":"IF(ISBLANK('TA Indicator Bank'!AG29),\"\",'TA Indicator Bank'!AG29)","v":0},{"$f":"IF(ISBLANK('TA Indicator Bank'!AH29),\"\",'TA Indicator Bank'!AH29)","v":0},{"$f":"IF(ISBLANK('TA Indicator Bank'!AI29),\"\",'TA Indicator Bank'!AI29)","v":0},{"$f":"IF(ISBLANK('TA Indicator Bank'!AJ29),\"\",'TA Indicator Bank'!AJ29)","v":0},{"$f":"IF(ISBLANK('TA Indicator Bank'!AK29),\"\",'TA Indicator Bank'!AK29)","v":0},{"$f":"IF(ISBLANK('TA Indicator Bank'!AL29),\"\",'TA Indicator Bank'!AL29)","v":0},{"$f":"IF(ISBLANK('TA Indicator Bank'!AM29),\"\",'TA Indicator Bank'!AM29)","v":0},{"$f":"IF(ISBLANK('TA Indicator Bank'!AN29),\"\",'TA Indicator Bank'!AN29)","v":0},{"$f":"IF(ISBLANK('TA Indicator Bank'!AO29),\"\",'TA Indicator Bank'!AO29)","v":0},{"$f":"IF(ISBLANK('TA Indicator Bank'!AP29),\"\",'TA Indicator Bank'!AP29)","v":0},{"$f":"IF(ISBLANK('TA Indicator Bank'!AQ29),\"\",'TA Indicator Bank'!AQ29)","v":0},{"$f":"IF(ISBLANK('TA Indicator Bank'!AR29),\"\",'TA Indicator Bank'!AR29)","v":1},{"$f":"IF(ISBLANK('TA Indicator Bank'!AS29),\"\",'TA Indicator Bank'!AS29)","v":0},{"$f":"IF(ISBLANK('TA Indicator Bank'!AT29),\"\",'TA Indicator Bank'!AT29)","v":0},{"$f":"IF(AND(J33=1,J$410=1),1,0)","v":0},{"$f":"IF(AND(K33=1,K$410=1),1,0)","v":0},{"$f":"IF(AND(L33=1,L$410=1),1,0)","v":0},{"$f":"IF(AND(M33=1,M$410=1),1,0)","v":0},{"$f":"IF(AND(N33=1,N$410=1),1,0)","v":0},{"$f":"IF(AND(O33=1,O$410=1),1,0)","v":0},{"$f":"IF(AND(P33=1,P$410=1),1,0)","v":0},{"$f":"IF(AND(Q33=1,Q$410=1),1,0)","v":0},{"$f":"IF(AND(R33=1,R$410=1),1,0)","v":0},{"$f":"IF(AND(S33=1,S$410=1),1,0)","v":0},{"$f":"IF(AND(T33=1,T$410=1),1,0)","v":0},{"$f":"IF(AND(U33=1,U$410=1),1,0)","v":0},{"$f":"IF(AND(V33=1,V$410=1),1,0)","v":0},{"$f":"IF(AND(W33=1,W$410=1),1,0)","v":0},1,{"$f":"IF(AND(X33=1,X$410=1),1,0)","v":0},{"$f":"IF(AND(Y33=1,Y$410=1),1,0)","v":0},{"$f":"IF(AND(Z33=1,Z$410=1),1,0)","v":0},{"$f":"IF(AND(AA33=1,AA$410=1),1,0)","v":0},{"$f":"IF(AND(AB33=1,AB$410=1),1,0)","v":0},{"$f":"IF(AND(AC33=1,AC$410=1),1,0)","v":0},{"$f":"IF(AND(AD33=1,AD$410=1),1,0)","v":1},{"$f":"IF(AND(AE33=1,AE$410=1),1,0)","v":0},{"$f":"IF(AND(AF33=1,AF$410=1),1,0)","v":0},1,{"$f":"IF(AND(AG33=1,AG$410=1),1,0)","v":0},{"$f":"IF(AND(AH33=1,AH$410=1),1,0)","v":0},{"$f":"IF(AND(AI33=1,AI$410=1),1,0)","v":0},{"$f":"IF(AND(AJ33=1,AJ$410=1),1,0)","v":0},{"$f":"IF(AND(AK33=1,AK$410=1),1,0)","v":0},{"$f":"IF(AND(AL33=1,AL$410=1),1,0)","v":0},{"$f":"IF(AND(AM33=1,AM$410=1),1,0)","v":0},{"$f":"IF(AND(AN33=1,AN$410=1),1,0)","v":0},{"$f":"IF(AND(AO33=1,AO$410=1),1,0)","v":0},1,{"$f":"IF(AND(AP33=1,AP$410=1),1,0)","v":0},{"$f":"IF(AND(AQ33=1,AQ$410=1),1,0)","v":0},{"$f":"IF(AND(AR33=1,AR$410=1),1,0)","v":1},{"$f":"IF(AND(AS33=1,AS$410=1),1,0)","v":0},{"$f":"IF(AND(AT33=1,AT$410=1),1,0)","v":0},1,1,25,25,{"$f":"IFERROR(SMALL($CL$9:$CL$408,CK33),\"\")","v":25},{"$f":"IFERROR(INDEX($B$9:$I$408,$CM33,COLUMNS($CN$9:CN33)),\"\")","v":"TA025"},{"$f":"IFERROR(INDEX($B$9:$I$408,$CM33,COLUMNS($CN$9:CO33)),\"\")","v":"Number of recommendations that lead to improved programme/activities"},{"$f":"IFERROR(INDEX($B$9:$I$408,$CM33,COLUMNS($CN$9:CP33)),\"\")","v":"-"},{"$f":"IFERROR(INDEX($B$9:$I$408,$CM33,COLUMNS($CN$9:CQ33)),\"\")","v":"Output"},{"$f":"IFERROR(INDEX($B$9:$I$408,$CM33,COLUMNS($CN$9:CR33)),\"\")","v":"-"},{"$f":"IFERROR(INDEX($B$9:$I$408,$CM33,COLUMNS($CN$9:CS33)),\"\")","v":"Process/asset operation support"},{"$f":"IFERROR(INDEX($B$9:$I$408,$CM33,COLUMNS($CN$9:CT33)),\"\")","v":"-"},{"$f":"IFERROR(INDEX($B$9:$I$408,$CM33,COLUMNS($CN$9:CU33)),\"\")","v":"Number"}]
[null,{"$f":"IF(ISBLANK('TA Indicator Bank'!B30),\"\",'TA Indicator Bank'!B30)","v":"TA026"},{"$f":"IF(ISBLANK('TA Indicator Bank'!C30),\"\",'TA Indicator Bank'!C30)","v":"Number of organisations that show enhanced capacity on their action plans"},{"$f":"IF(ISBLANK('TA Indicator Bank'!D30),\"\",'TA Indicator Bank'!D30)","v":"-"},{"$f":"IF(ISBLANK('TA Indicator Bank'!E30),\"\",'TA Indicator Bank'!E30)","v":"Output"},{"$f":"IF(ISBLANK('TA Indicator Bank'!F30),\"\",'TA Indicator Bank'!F30)","v":"-"},{"$f":"IF(ISBLANK('TA Indicator Bank'!G30),\"\",'TA Indicator Bank'!G30)","v":"Capacity building: Institutional capacity"},{"$f":"IF(ISBLANK('TA Indicator Bank'!H30),\"\",'TA Indicator Bank'!H30)","v":"-"},{"$f":"IF(ISBLANK('TA Indicator Bank'!I30),\"\",'TA Indicator Bank'!I30)","v":"Number"},{"$f":"IF(ISBLANK('TA Indicator Bank'!J30),\"\",'TA Indicator Bank'!J30)","v":0},{"$f":"IF(ISBLANK('TA Indicator Bank'!K30),\"\",'TA Indicator Bank'!K30)","v":0},{"$f":"IF(ISBLANK('TA Indicator Bank'!L30),\"\",'TA Indicator Bank'!L30)","v":0},{"$f":"IF(ISBLANK('TA Indicator Bank'!M30),\"\",'TA Indicator Bank'!M30)","v":0},{"$f":"IF(ISBLANK('TA Indicator Bank'!N30),\"\",'TA Indicator Bank'!N30)","v":0},{"$f":"IF(ISBLANK('TA Indicator Bank'!O30),\"\",'TA Indicator Bank'!O30)","v":0},{"$f":"IF(ISBLANK('TA Indicator Bank'!P30),\"\",'TA Indicator Bank'!P30)","v":0},{"$f":"IF(ISBLANK('TA Indicator Bank'!Q30),\"\",'TA Indicator Bank'!Q30)","v":0},{"$f":"IF(ISBLANK('TA Indicator Bank'!R30),\"\",'TA Indicator Bank'!R30)","v":0},{"$f":"IF(ISBLANK('TA Indicator Bank'!S30),\"\",'TA Indicator Bank'!S30)","v":0},{"$f":"IF(ISBLANK('TA Indicator Bank'!T30),\"\",'TA Indicator Bank'!T30)","v":0},{"$f":"IF(ISBLANK('TA Indicator Bank'!U30),\"\",'TA Indicator Bank'!U30)","v":0},{"$f":"IF(ISBLANK('TA Indicator Bank'!V30),\"\",'TA Indicator Bank'!V30)","v":0},{"$f":"IF(ISBLANK('TA Indicator Bank'!W30),\"\",'TA Indicator Bank'!W30)","v":0},{"$f":"IF(ISBLANK('TA Indicator Bank'!X30),\"\",'TA Indicator Bank'!X30)","v":1},{"$f":"IF(ISBLANK('TA Indicator Bank'!Y30),\"\",'TA Indicator Bank'!Y30)","v":0},{"$f":"IF(ISBLANK('TA Indicator Bank'!Z30),\"\",'TA Indicator Bank'!Z30)","v":0},{"$f":"IF(ISBLANK('TA Indicator Bank'!AA30),\"\",'TA Indicator Bank'!AA30)","v":0},{"$f":"IF(ISBLANK('TA Indicator Bank'!AB30),\"\",'TA Indicator Bank'!AB30)","v":0},{"$f":"IF(ISBLANK('TA Indicator Bank'!AC30),\"\",'TA Indicator Bank'!AC30)","v":0},{"$f":"IF(ISBLANK('TA Indicator Bank'!AD30),\"\",'TA Indicator Bank'!AD30)","v":0},{"$f":"IF(ISBLANK('TA Indicator Bank'!AE30),\"\",'TA Indicator Bank'!AE30)","v":0},{"$f":"IF(ISBLANK('TA Indicator Bank'!AF30),\"\",'TA Indicator Bank'!AF30)","v":0},{"$f":"IF(ISBLANK('TA Indicator Bank'!AG30),\"\",'TA Indicator Bank'!AG30)","v":0},{"$f":"IF(ISBLANK('TA Indicator Bank'!AH30),\"\",'TA Indicator Bank'!AH30)","v":0},{"$f":"IF(ISBLANK('TA Indicator Bank'!AI30),\"\",'TA Indicator Bank'!AI30)","v":0},{"$f":"IF(ISBLANK('TA Indicator Bank'!AJ30),\"\",'TA Indicator Bank'!AJ30)","v":0},{"$f":"IF(ISBLANK('TA Indicator Bank'!AK30),\"\",'TA Indicator Bank'!AK30)","v":0},{"$f":"IF(ISBLANK('TA Indicator Bank'!AL30),\"\",'TA Indicator Bank'!AL30)","v":0},{"$f":"IF(ISBLANK('TA Indicator Bank'!AM30),\"\",'TA Indicator Bank'!AM30)","v":0},{"$f":"IF(ISBLANK('TA Indicator Bank'!AN30),\"\",'TA Indicator Bank'!AN30)","v":0},{"$f":"IF(ISBLANK('TA Indicator Bank'!AO30),\"\",'TA Indicator Bank'!AO30)","v":0},{"$f":"IF(ISBLANK('TA Indicator Bank'!AP30),\"\",'TA Indicator Bank'!AP30)","v":0},{"$f":"IF(ISBLANK('TA Indicator Bank'!AQ30),\"\",'TA Indicator Bank'!AQ30)","v":0},{"$f":"IF(ISBLANK('TA Indicator Bank'!AR30),\"\",'TA Indicator Bank'!AR30)","v":1},{"$f":"IF(ISBLANK('TA Indicator Bank'!AS30),\"\",'TA Indicator Bank'!AS30)","v":0},{"$f":"IF(ISBLANK('TA Indicator Bank'!AT30),\"\",'TA Indicator Bank'!AT30)","v":0},{"$f":"IF(AND(J34=1,J$410=1),1,0)","v":0},{"$f":"IF(AND(K34=1,K$410=1),1,0)","v":0},{"$f":"IF(AND(L34=1,L$410=1),1,0)","v":0},{"$f":"IF(AND(M34=1,M$410=1),1,0)","v":0},{"$f":"IF(AND(N34=1,N$410=1),1,0)","v":0},{"$f":"IF(AND(O34=1,O$410=1),1,0)","v":0},{"$f":"IF(AND(P34=1,P$410=1),1,0)","v":0},{"$f":"IF(AND(Q34=1,Q$410=1),1,0)","v":0},{"$f":"IF(AND(R34=1,R$410=1),1,0)","v":0},{"$f":"IF(AND(S34=1,S$410=1),1,0)","v":0},{"$f":"IF(AND(T34=1,T$410=1),1,0)","v":0},{"$f":"IF(AND(U34=1,U$410=1),1,0)","v":0},{"$f":"IF(AND(V34=1,V$410=1),1,0)","v":0},{"$f":"IF(AND(W34=1,W$410=1),1,0)","v":0},1,{"$f":"IF(AND(X34=1,X$410=1),1,0)","v":1},{"$f":"IF(AND(Y34=1,Y$410=1),1,0)","v":0},{"$f":"IF(AND(Z34=1,Z$410=1),1,0)","v":0},{"$f":"IF(AND(AA34=1,AA$410=1),1,0)","v":0},{"$f":"IF(AND(AB34=1,AB$410=1),1,0)","v":0},{"$f":"IF(AND(AC34=1,AC$410=1),1,0)","v":0},{"$f":"IF(AND(AD34=1,AD$410=1),1,0)","v":0},{"$f":"IF(AND(AE34=1,AE$410=1),1,0)","v":0},{"$f":"IF(AND(AF34=1,AF$410=1),1,0)","v":0},1,{"$f":"IF(AND(AG34=1,AG$410=1),1,0)","v":0},{"$f":"IF(AND(AH34=1,AH$410=1),1,0)","v":0},{"$f":"IF(AND(AI34=1,AI$410=1),1,0)","v":0},{"$f":"IF(AND(AJ34=1,AJ$410=1),1,0)","v":0},{"$f":"IF(AND(AK34=1,AK$410=1),1,0)","v":0},{"$f":"IF(AND(AL34=1,AL$410=1),1,0)","v":0},{"$f":"IF(AND(AM34=1,AM$410=1),1,0)","v":0},{"$f":"IF(AND(AN34=1,AN$410=1),1,0)","v":0},{"$f":"IF(AND(AO34=1,AO$410=1),1,0)","v":0},1,{"$f":"IF(AND(AP34=1,AP$410=1),1,0)","v":0},{"$f":"IF(AND(AQ34=1,AQ$410=1),1,0)","v":0},{"$f":"IF(AND(AR34=1,AR$410=1),1,0)","v":1},{"$f":"IF(AND(AS34=1,AS$410=1),1,0)","v":0},{"$f":"IF(AND(AT34=1,AT$410=1),1,0)","v":0},1,1,26,26,{"$f":"IFERROR(SMALL($CL$9:$CL$408,CK34),\"\")","v":26},{"$f":"IFERROR(INDEX($B$9:$I$408,$CM34,COLUMNS($CN$9:CN34)),\"\")","v":"TA026"},{"$f":"IFERROR(INDEX($B$9:$I$408,$CM34,COLUMNS($CN$9:CO34)),\"\")","v":"Number of organisations that show enhanced capacity on their action plans"},{"$f":"IFERROR(INDEX($B$9:$I$408,$CM34,COLUMNS($CN$9:CP34)),\"\")","v":"-"},{"$f":"IFERROR(INDEX($B$9:$I$408,$CM34,COLUMNS($CN$9:CQ34)),\"\")","v":"Output"},{"$f":"IFERROR(INDEX($B$9:$I$408,$CM34,COLUMNS($CN$9:CR34)),\"\")","v":"-"},{"$f":"IFERROR(INDEX($B$9:$I$408,$CM34,COLUMNS($CN$9:CS34)),\"\")","v":"Capacity building: Institutional capacity"},{"$f":"IFERROR(INDEX($B$9:$I$408,$CM34,COLUMNS($CN$9:CT34)),\"\")","v":"-"},{"$f":"IFERROR(INDEX($B$9:$I$408,$CM34,COLUMNS($CN$9:CU34)),\"\")","v":"Number"}]
[null,{"$f":"IF(ISBLANK('TA Indicator Bank'!B31),\"\",'TA Indicator Bank'!B31)","v":"TA027"},{"$f":"IF(ISBLANK('TA Indicator Bank'!C31),\"\",'TA Indicator Bank'!C31)","v":"Number of outputs produced by given supported organisation/unit/body"},{"$f":"IF(ISBLANK('TA Indicator Bank'!D31),\"\",'TA Indicator Bank'!D31)","v":"Can be used to assess the performance of supported beneficiaries, perhaps requiring outputs to meet a quality threshold to be accepted"},{"$f":"IF(ISBLANK('TA Indicator Bank'!E31),\"\",'TA Indicator Bank'!E31)","v":"Activity"},{"$f":"IF(ISBLANK('TA Indicator Bank'!F31),\"\",'TA Indicator Bank'!F31)","v":"Strategic organisational guidance"},{"$f":"IF(ISBLANK('TA Indicator Bank'!G31),\"\",'TA Indicator Bank'!G31)","v":"-"},{"$f":"IF(ISBLANK('TA Indicator Bank'!H31),\"\",'TA Indicator Bank'!H31)","v":"-"},{"$f":"IF(ISBLANK('TA Indicator Bank'!I31),\"\",'TA Indicator Bank'!I31)","v":"Narrative"},{"$f":"IF(ISBLANK('TA Indicator Bank'!J31),\"\",'TA Indicator Bank'!J31)","v":0},{"$f":"IF(ISBLANK('TA Indicator Bank'!K31),\"\",'TA Indicator Bank'!K31)","v":0},{"$f":"IF(ISBLANK('TA Indicator Bank'!L31),\"\",'TA Indicator Bank'!L31)","v":0},{"$f":"IF(ISBLANK('TA Indicator Bank'!M31),\"\",'TA Indicator Bank'!M31)","v":0},{"$f":"IF(ISBLANK('TA Indicator Bank'!N31),\"\",'TA Indicator Bank'!N31)","v":0},{"$f":"IF(ISBLANK('TA Indicator Bank'!O31),\"\",'TA Indicator Bank'!O31)","v":1},{"$f":"IF(ISBLANK('TA Indicator Bank'!P31),\"\",'TA Indicator Bank'!P31)","v":0},{"$f":"IF(ISBLANK('TA Indicator Bank'!Q31),\"\",'TA Indicator Bank'!Q31)","v":0},{"$f":"IF(ISBLANK('TA Indicator Bank'!R31),\"\",'TA Indicator Bank'!R31)","v":0},{"$f":"IF(ISBLANK('TA Indicator Bank'!S31),\"\",'TA Indicator Bank'!S31)","v":0},{"$f":"IF(ISBLANK('TA Indicator Bank'!T31),\"\",'TA Indicator Bank'!T31)","v":0},{"$f":"IF(ISBLANK('TA Indicator Bank'!U31),\"\",'TA Indicator Bank'!U31)","v":0},{"$f":"IF(ISBLANK('TA Indicator Bank'!V31),\"\",'TA Indicator Bank'!V31)","v":0},{"$f":"IF(ISBLANK('TA Indicator Bank'!W31),\"\",'TA Indicator Bank'!W31)","v":0},{"$f":"IF(ISBLANK('TA Indicator Bank'!X31),\"\",'TA Indicator Bank'!X31)","v":0},{"$f":"IF(ISBLANK('TA Indicator Bank'!Y31),\"\",'TA Indicator Bank'!Y31)","v":0},{"$f":"IF(ISBLANK('TA Indicator Bank'!Z31),\"\",'TA Indicator Bank'!Z31)","v":0},{"$f":"IF(ISBLANK('TA Indicator Bank'!AA31),\"\",'TA Indicator Bank'!AA31)","v":0},{"$f":"IF(ISBLANK('TA Indicator Bank'!AB31),\"\",'TA Indicator Bank'!AB31)","v":0},{"$f":"IF(ISBLANK('TA Indicator Bank'!AC31),\"\",'TA Indicator Bank'!AC31)","v":0},{"$f":"IF(ISBLANK('TA Indicator Bank'!AD31),\"\",'TA Indicator Bank'!AD31)","v":0},{"$f":"IF(ISBLANK('TA Indicator Bank'!AE31),\"\",'TA Indicator Bank'!AE31)","v":0},{"$f":"IF(ISBLANK('TA Indicator Bank'!AF31),\"\",'TA Indicator Bank'!AF31)","v":0},{"$f":"IF(ISBLANK('TA Indicator Bank'!AG31),\"\",'TA Indicator Bank'!AG31)","v":0},{"$f":"IF(ISBLANK('TA Indicator Bank'!AH31),\"\",'TA Indicator Bank'!AH31)","v":0},{"$f":"IF(ISBLANK('TA Indicator Bank'!AI31),\"\",'TA Indicator Bank'!AI31)","v":0},{"$f":"IF(ISBLANK('TA Indicator Bank'!AJ31),\"\",'TA Indicator Bank'!AJ31)","v":0},{"$f":"IF(ISBLANK('TA Indicator Bank'!AK31),\"\",'TA Indicator Bank'!AK31)","v":0},{"$f":"IF(ISBLANK('TA Indicator Bank'!AL31),\"\",'TA Indicator Bank'!AL31)","v":0},{"$f":"IF(ISBLANK('TA Indicator Bank'!AM31),\"\",'TA Indicator Bank'!AM31)","v":0},{"$f":"IF(ISBLANK('TA Indicator Bank'!AN31),\"\",'TA Indicator Bank'!AN31)","v":0},{"$f":"IF(ISBLANK('TA Indicator Bank'!AO31),\"\",'TA Indicator Bank'!AO31)","v":0},{"$f":"IF(ISBLANK('TA Indicator Bank'!AP31),\"\",'TA Indicator Bank'!AP31)","v":1},{"$f":"IF(ISBLANK('TA Indicator Bank'!AQ31),\"\",'TA Indicator Bank'!AQ31)","v":0},{"$f":"IF(ISBLANK('TA Indicator Bank'!AR31),\"\",'TA Indicator Bank'!AR31)","v":0},{"$f":"IF(ISBLANK('TA Indicator Bank'!AS31),\"\",'TA Indicator Bank'!AS31)","v":0},{"$f":"IF(ISBLANK('TA Indicator Bank'!AT31),\"\",'TA Indicator Bank'!AT31)","v":0},{"$f":"IF(AND(J35=1,J$410=1),1,0)","v":0},{"$f":"IF(AND(K35=1,K$410=1),1,0)","v":0},{"$f":"IF(AND(L35=1,L$410=1),1,0)","v":0},{"$f":"IF(AND(M35=1,M$410=1),1,0)","v":0},{"$f":"IF(AND(N35=1,N$410=1),1,0)","v":0},{"$f":"IF(AND(O35=1,O$410=1),1,0)","v":1},{"$f":"IF(AND(P35=1,P$410=1),1,0)","v":0},{"$f":"IF(AND(Q35=1,Q$410=1),1,0)","v":0},{"$f":"IF(AND(R35=1,R$410=1),1,0)","v":0},{"$f":"IF(AND(S35=1,S$410=1),1,0)","v":0},{"$f":"IF(AND(T35=1,T$410=1),1,0)","v":0},{"$f":"IF(AND(U35=1,U$410=1),1,0)","v":0},{"$f":"IF(AND(V35=1,V$410=1),1,0)","v":0},{"$f":"IF(AND(W35=1,W$410=1),1,0)","v":0},1,{"$f":"IF(AND(X35=1,X$410=1),1,0)","v":0},{"$f":"IF(AND(Y35=1,Y$410=1),1,0)","v":0},{"$f":"IF(AND(Z35=1,Z$410=1),1,0)","v":0},{"$f":"IF(AND(AA35=1,AA$410=1),1,0)","v":0},{"$f":"IF(AND(AB35=1,AB$410=1),1,0)","v":0},{"$f":"IF(AND(AC35=1,AC$410=1),1,0)","v":0},{"$f":"IF(AND(AD35=1,AD$410=1),1,0)","v":0},{"$f":"IF(AND(AE35=1,AE$410=1),1,0)","v":0},{"$f":"IF(AND(AF35=1,AF$410=1),1,0)","v":0},1,{"$f":"IF(AND(AG35=1,AG$410=1),1,0)","v":0},{"$f":"IF(AND(AH35=1,AH$410=1),1,0)","v":0},{"$f":"IF(AND(AI35=1,AI$410=1),1,0)","v":0},{"$f":"IF(AND(AJ35=1,AJ$410=1),1,0)","v":0},{"$f":"IF(AND(AK35=1,AK$410=1),1,0)","v":0},{"$f":"IF(AND(AL35=1,AL$410=1),1,0)","v":0},{"$f":"IF(AND(AM35=1,AM$410=1),1,0)","v":0},{"$f":"IF(AND(AN35=1,AN$410=1),1,0)","v":0},{"$f":"IF(AND(AO35=1,AO$410=1),1,0)","v":0},1,{"$f":"IF(AND(AP35=1,AP$410=1),1,0)","v":1},{"$f":"IF(AND(AQ35=1,AQ$410=1),1,0)","v":0},{"$f":"IF(AND(AR35=1,AR$410=1),1,0)","v":0},{"$f":"IF(AND(AS35=1,AS$410=1),1,0)","v":0},{"$f":"IF(AND(AT35=1,AT$410=1),1,0)","v":0},1,1,27,27,{"$f":"IFERROR(SMALL($CL$9:$CL$408,CK35),\"\")","v":27},{"$f":"IFERROR(INDEX($B$9:$I$408,$CM35,COLUMNS($CN$9:CN35)),\"\")","v":"TA027"},{"$f":"IFERROR(INDEX($B$9:$I$408,$CM35,COLUMNS($CN$9:CO35)),\"\")","v":"Number of outputs produced by given supported organisation/unit/body"},{"$f":"IFERROR(INDEX($B$9:$I$408,$CM35,COLUMNS($CN$9:CP35)),\"\")","v":"Can be used to assess the performance of supported beneficiaries, perhaps requiring outputs to meet a quality threshold to be accepted"},{"$f":"IFERROR(INDEX($B$9:$I$408,$CM35,COLUMNS($CN$9:CQ35)),\"\")","v":"Activity"},{"$f":"IFERROR(INDEX($B$9:$I$408,$CM35,COLUMNS($CN$9:CR35)),\"\")","v":"Strategic organisational guidance"},{"$f":"IFERROR(INDEX($B$9:$I$408,$CM35,COLUMNS($CN$9:CS35)),\"\")","v":"-"},{"$f":"IFERROR(INDEX($B$9:$I$408,$CM35,COLUMNS($CN$9:CT35)),\"\")","v":"-"},{"$f":"IFERROR(INDEX($B$9:$I$408,$CM35,COLUMNS($CN$9:CU35)),\"\")","v":"Narrative"}]
[null,{"$f":"IF(ISBLANK('TA Indicator Bank'!B32),\"\",'TA Indicator Bank'!B32)","v":"TA028"},{"$f":"IF(ISBLANK('TA Indicator Bank'!C32),\"\",'TA Indicator Bank'!C32)","v":"Number of times/cases support is provided"},{"$f":"IF(ISBLANK('TA Indicator Bank'!D32),\"\",'TA Indicator Bank'!D32)","v":"-"},{"$f":"IF(ISBLANK('TA Indicator Bank'!E32),\"\",'TA Indicator Bank'!E32)","v":"Activity"},{"$f":"IF(ISBLANK('TA Indicator Bank'!F32),\"\",'TA Indicator Bank'!F32)","v":"Expert guidance and review"},{"$f":"IF(ISBLANK('TA Indicator Bank'!G32),\"\",'TA Indicator Bank'!G32)","v":"-"},{"$f":"IF(ISBLANK('TA Indicator Bank'!H32),\"\",'TA Indicator Bank'!H32)","v":"-"},{"$f":"IF(ISBLANK('TA Indicator Bank'!I32),\"\",'TA Indicator Bank'!I32)","v":"Number"},{"$f":"IF(ISBLANK('TA Indicator Bank'!J32),\"\",'TA Indicator Bank'!J32)","v":0},{"$f":"IF(ISBLANK('TA Indicator Bank'!K32),\"\",'TA Indicator Bank'!K32)","v":0},{"$f":"IF(ISBLANK('TA Indicator Bank'!L32),\"\",'TA Indicator Bank'!L32)","v":0},{"$f":"IF(ISBLANK('TA Indicator Bank'!M32),\"\",'TA Indicator Bank'!M32)","v":0},{"$f":"IF(ISBLANK('TA Indicator Bank'!N32),\"\",'TA Indicator Bank'!N32)","v":0},{"$f":"IF(ISBLANK('TA Indicator Bank'!O32),\"\",'TA Indicator Bank'!O32)","v":0},{"$f":"IF(ISBLANK('TA Indicator Bank'!P32),\"\",'TA Indicator Bank'!P32)","v":1},{"$f":"IF(ISBLANK('TA Indicator Bank'!Q32),\"\",'TA Indicator Bank'!Q32)","v":0},{"$f":"IF(ISBLANK('TA Indicator Bank'!R32),\"\",'TA Indicator Bank'!R32)","v":0},{"$f":"IF(ISBLANK('TA Indicator Bank'!S32),\"\",'TA Indicator Bank'!S32)","v":0},{"$f":"IF(ISBLANK('TA Indicator Bank'!T32),\"\",'TA Indicator Bank'!T32)","v":0},{"$f":"IF(ISBLANK('TA Indicator Bank'!U32),\"\",'TA Indicator Bank'!U32)","v":0},{"$f":"IF(ISBLANK('TA Indicator Bank'!V32),\"\",'TA Indicator Bank'!V32)","v":0},{"$f":"IF(ISBLANK('TA Indicator Bank'!W32),\"\",'TA Indicator Bank'!W32)","v":0},{"$f":"IF(ISBLANK('TA Indicator Bank'!X32),\"\",'TA Indicator Bank'!X32)","v":0},{"$f":"IF(ISBLANK('TA Indicator Bank'!Y32),\"\",'TA Indicator Bank'!Y32)","v":0},{"$f":"IF(ISBLANK('TA Indicator Bank'!Z32),\"\",'TA Indicator Bank'!Z32)","v":0},{"$f":"IF(ISBLANK('TA Indicator Bank'!AA32),\"\",'TA Indicator Bank'!AA32)","v":0},{"$f":"IF(ISBLANK('TA Indicator Bank'!AB32),\"\",'TA Indicator Bank'!AB32)","v":0},{"$f":"IF(ISBLANK('TA Indicator Bank'!AC32),\"\",'TA Indicator Bank'!AC32)","v":0},{"$f":"IF(ISBLANK('TA Indicator Bank'!AD32),\"\",'TA Indicator Bank'!AD32)","v":0},{"$f":"IF(ISBLANK('TA Indicator Bank'!AE32),\"\",'TA Indicator Bank'!AE32)","v":0},{"$f":"IF(ISBLANK('TA Indicator Bank'!AF32),\"\",'TA Indicator Bank'!AF32)","v":0},{"$f":"IF(ISBLANK('TA Indicator Bank'!AG32),\"\",'TA Indicator Bank'!AG32)","v":0},{"$f":"IF(ISBLANK('TA Indicator Bank'!AH32),\"\",'TA Indicator Bank'!AH32)","v":0},{"$f":"IF(ISBLANK('TA Indicator Bank'!AI32),\"\",'TA Indicator Bank'!AI32)","v":0},{"$f":"IF(ISBLANK('TA Indicator Bank'!AJ32),\"\",'TA Indicator Bank'!AJ32)","v":0},{"$f":"IF(ISBLANK('TA Indicator Bank'!AK32),\"\",'TA Indicator Bank'!AK32)","v":0},{"$f":"IF(ISBLANK('TA Indicator Bank'!AL32),\"\",'TA Indicator Bank'!AL32)","v":0},{"$f":"IF(ISBLANK('TA Indicator Bank'!AM32),\"\",'TA Indicator Bank'!AM32)","v":0},{"$f":"IF(ISBLANK('TA Indicator Bank'!AN32),\"\",'TA Indicator Bank'!AN32)","v":0},{"$f":"IF(ISBLANK('TA Indicator Bank'!AO32),\"\",'TA Indicator Bank'!AO32)","v":0},{"$f":"IF(ISBLANK('TA Indicator Bank'!AP32),\"\",'TA Indicator Bank'!AP32)","v":1},{"$f":"IF(ISBLANK('TA Indicator Bank'!AQ32),\"\",'TA Indicator Bank'!AQ32)","v":0},{"$f":"IF(ISBLANK('TA Indicator Bank'!AR32),\"\",'TA Indicator Bank'!AR32)","v":0},{"$f":"IF(ISBLANK('TA Indicator Bank'!AS32),\"\",'TA Indicator Bank'!AS32)","v":0},{"$f":"IF(ISBLANK('TA Indicator Bank'!AT32),\"\",'TA Indicator Bank'!AT32)","v":0},{"$f":"IF(AND(J36=1,J$410=1),1,0)","v":0},{"$f":"IF(AND(K36=1,K$410=1),1,0)","v":0},{"$f":"IF(AND(L36=1,L$410=1),1,0)","v":0},{"$f":"IF(AND(M36=1,M$410=1),1,0)","v":0},{"$f":"IF(AND(N36=1,N$410=1),1,0)","v":0},{"$f":"IF(AND(O36=1,O$410=1),1,0)","v":0},{"$f":"IF(AND(P36=1,P$410=1),1,0)","v":1},{"$f":"IF(AND(Q36=1,Q$410=1),1,0)","v":0},{"$f":"IF(AND(R36=1,R$410=1),1,0)","v":0},{"$f":"IF(AND(S36=1,S$410=1),1,0)","v":0},{"$f":"IF(AND(T36=1,T$410=1),1,0)","v":0},{"$f":"IF(AND(U36=1,U$410=1),1,0)","v":0},{"$f":"IF(AND(V36=1,V$410=1),1,0)","v":0},{"$f":"IF(AND(W36=1,W$410=1),1,0)","v":0},1,{"$f":"IF(AND(X36=1,X$410=1),1,0)","v":0},{"$f":"IF(AND(Y36=1,Y$410=1),1,0)","v":0},{"$f":"IF(AND(Z36=1,Z$410=1),1,0)","v":0},{"$f":"IF(AND(AA36=1,AA$410=1),1,0)","v":0},{"$f":"IF(AND(AB36=1,AB$410=1),1,0)","v":0},{"$f":"IF(AND(AC36=1,AC$410=1),1,0)","v":0},{"$f":"IF(AND(AD36=1,AD$410=1),1,0)","v":0},{"$f":"IF(AND(AE36=1,AE$410=1),1,0)","v":0},{"$f":"IF(AND(AF36=1,AF$410=1),1,0)","v":0},1,{"$f":"IF(AND(AG36=1,AG$410=1),1,0)","v":0},{"$f":"IF(AND(AH36=1,AH$410=1),1,0)","v":0},{"$f":"IF(AND(AI36=1,AI$410=1),1,0)","v":0},{"$f":"IF(AND(AJ36=1,AJ$410=1),1,0)","v":0},{"$f":"IF(AND(AK36=1,AK$410=1),1,0)","v":0},{"$f":"IF(AND(AL36=1,AL$410=1),1,0)","v":0},{"$f":"IF(AND(AM36=1,AM$410=1),1,0)","v":0},{"$f":"IF(AND(AN36=1,AN$410=1),1,0)","v":0},{"$f":"IF(AND(AO36=1,AO$410=1),1,0)","v":0},1,{"$f":"IF(AND(AP36=1,AP$410=1),1,0)","v":1},{"$f":"IF(AND(AQ36=1,AQ$410=1),1,0)","v":0},{"$f":"IF(AND(AR36=1,AR$410=1),1,0)","v":0},{"$f":"IF(AND(AS36=1,AS$410=1),1,0)","v":0},{"$f":"IF(AND(AT36=1,AT$410=1),1,0)","v":0},1,1,28,28,{"$f":"IFERROR(SMALL($CL$9:$CL$408,CK36),\"\")","v":28},{"$f":"IFERROR(INDEX($B$9:$I$408,$CM36,COLUMNS($CN$9:CN36)),\"\")","v":"TA028"},{"$f":"IFERROR(INDEX($B$9:$I$408,$CM36,COLUMNS($CN$9:CO36)),\"\")","v":"Number of times/cases support is provided"},{"$f":"IFERROR(INDEX($B$9:$I$408,$CM36,COLUMNS($CN$9:CP36)),\"\")","v":"-"},{"$f":"IFERROR(INDEX($B$9:$I$408,$CM36,COLUMNS($CN$9:CQ36)),\"\")","v":"Activity"},{"$f":"IFERROR(INDEX($B$9:$I$408,$CM36,COLUMNS($CN$9:CR36)),\"\")","v":"Expert guidance and review"},{"$f":"IFERROR(INDEX($B$9:$I$408,$CM36,COLUMNS($CN$9:CS36)),\"\")","v":"-"},{"$f":"IFERROR(INDEX($B$9:$I$408,$CM36,COLUMNS($CN$9:CT36)),\"\")","v":"-"},{"$f":"IFERROR(INDEX($B$9:$I$408,$CM36,COLUMNS($CN$9:CU36)),\"\")","v":"Number"}]
[null,{"$f":"IF(ISBLANK('TA Indicator Bank'!B33),\"\",'TA Indicator Bank'!B33)","v":"TA029"},{"$f":"IF(ISBLANK('TA Indicator Bank'!C33),\"\",'TA Indicator Bank'!C33)","v":"Number of publications that have been written with substantive support from programme"},{"$f":"IF(ISBLANK('TA Indicator Bank'!D33),\"\",'TA Indicator Bank'!D33)","v":"-"},{"$f":"IF(ISBLANK('TA Indicator Bank'!E33),\"\",'TA Indicator Bank'!E33)","v":"Output"},{"$f":"IF(ISBLANK('TA Indicator Bank'!F33),\"\",'TA Indicator Bank'!F33)","v":"-"},{"$f":"IF(ISBLANK('TA Indicator Bank'!G33),\"\",'TA Indicator Bank'!G33)","v":"Capacity building: Technical capacity"},{"$f":"IF(ISBLANK('TA Indicator Bank'!H33),\"\",'TA Indicator Bank'!H33)","v":"-"},{"$f":"IF(ISBLANK('TA Indicator Bank'!I33),\"\",'TA Indicator Bank'!I33)","v":"Number"},{"$f":"IF(ISBLANK('TA Indicator Bank'!J33),\"\",'TA Indicator Bank'!J33)","v":0},{"$f":"IF(ISBLANK('TA Indicator Bank'!K33),\"\",'TA Indicator Bank'!K33)","v":0},{"$f":"IF(ISBLANK('TA Indicator Bank'!L33),\"\",'TA Indicator Bank'!L33)","v":0},{"$f":"IF(ISBLANK('TA Indicator Bank'!M33),\"\",'TA Indicator Bank'!M33)","v":0},{"$f":"IF(ISBLANK('TA Indicator Bank'!N33),\"\",'TA Indicator Bank'!N33)","v":0},{"$f":"IF(ISBLANK('TA Indicator Bank'!O33),\"\",'TA Indicator Bank'!O33)","v":0},{"$f":"IF(ISBLANK('TA Indicator Bank'!P33),\"\",'TA Indicator Bank'!P33)","v":0},{"$f":"IF(ISBLANK('TA Indicator Bank'!Q33),\"\",'TA Indicator Bank'!Q33)","v":0},{"$f":"IF(ISBLANK('TA Indicator Bank'!R33),\"\",'TA Indicator Bank'!R33)","v":0},{"$f":"IF(ISBLANK('TA Indicator Bank'!S33),\"\",'TA Indicator Bank'!S33)","v":0},{"$f":"IF(ISBLANK('TA Indicator Bank'!T33),\"\",'TA Indicator Bank'!T33)","v":0},{"$f":"IF(ISBLANK('TA Indicator Bank'!U33),\"\",'TA Indicator Bank'!U33)","v":0},{"$f":"IF(ISBLANK('TA Indicator Bank'!V33),\"\",'TA Indicator Bank'!V33)","v":0},{"$f":"IF(ISBLANK('TA Indicator Bank'!W33),\"\",'TA Indicator Bank'!W33)","v":0},{"$f":"IF(ISBLANK('TA Indicator Bank'!X33),\"\",'TA Indicator Bank'!X33)","v":0},{"$f":"IF(ISBLANK('TA Indicator Bank'!Y33),\"\",'TA Indicator Bank'!Y33)","v":1},{"$f":"IF(ISBLANK('TA Indicator Bank'!Z33),\"\",'TA Indicator Bank'!Z33)","v":0},{"$f":"IF(ISBLANK('TA Indicator Bank'!AA33),\"\",'TA Indicator Bank'!AA33)","v":0},{"$f":"IF(ISBLANK('TA Indicator Bank'!AB33),\"\",'TA Indicator Bank'!AB33)","v":0},{"$f":"IF(ISBLANK('TA Indicator Bank'!AC33),\"\",'TA Indicator Bank'!AC33)","v":0},{"$f":"IF(ISBLANK('TA Indicator Bank'!AD33),\"\",'TA Indicator Bank'!AD33)","v":0},{"$f":"IF(ISBLANK('TA Indicator Bank'!AE33),\"\",'TA Indicator Bank'!AE33)","v":0},{"$f":"IF(ISBLANK('TA Indicator Bank'!AF33),\"\",'TA Indicator Bank'!AF33)","v":0},{"$f":"IF(ISBLANK('TA Indicator Bank'!AG33),\"\",'TA Indicator Bank'!AG33)","v":0},{"$f":"IF(ISBLANK('TA Indicator Bank'!AH33),\"\",'TA Indicator Bank'!AH33)","v":0},{"$f":"IF(ISBLANK('TA Indicator Bank'!AI33),\"\",'TA Indicator Bank'!AI33)","v":0},{"$f":"IF(ISBLANK('TA Indicator Bank'!AJ33),\"\",'TA Indicator Bank'!AJ33)","v":0},{"$f":"IF(ISBLANK('TA Indicator Bank'!AK33),\"\",'TA Indicator Bank'!AK33)","v":0},{"$f":"IF(ISBLANK('TA Indicator Bank'!AL33),\"\",'TA Indicator Bank'!AL33)","v":0},{"$f":"IF(ISBLANK('TA Indicator Bank'!AM33),\"\",'TA Indicator Bank'!AM33)","v":0},{"$f":"IF(ISBLANK('TA Indicator Bank'!AN33),\"\",'TA Indicator Bank'!AN33)","v":0},{"$f":"IF(ISBLANK('TA Indicator Bank'!AO33),\"\",'TA Indicator Bank'!AO33)","v":0},{"$f":"IF(ISBLANK('TA Indicator Bank'!AP33),\"\",'TA Indicator Bank'!AP33)","v":0},{"$f":"IF(ISBLANK('TA Indicator Bank'!AQ33),\"\",'TA Indicator Bank'!AQ33)","v":0},{"$f":"IF(ISBLANK('TA Indicator Bank'!AR33),\"\",'TA Indicator Bank'!AR33)","v":1},{"$f":"IF(ISBLANK('TA Indicator Bank'!AS33),\"\",'TA Indicator Bank'!AS33)","v":0},{"$f":"IF(ISBLANK('TA Indicator Bank'!AT33),\"\",'TA Indicator Bank'!AT33)","v":0},{"$f":"IF(AND(J37=1,J$410=1),1,0)","v":0},{"$f":"IF(AND(K37=1,K$410=1),1,0)","v":0},{"$f":"IF(AND(L37=1,L$410=1),1,0)","v":0},{"$f":"IF(AND(M37=1,M$410=1),1,0)","v":0},{"$f":"IF(AND(N37=1,N$410=1),1,0)","v":0},{"$f":"IF(AND(O37=1,O$410=1),1,0)","v":0},{"$f":"IF(AND(P37=1,P$410=1),1,0)","v":0},{"$f":"IF(AND(Q37=1,Q$410=1),1,0)","v":0},{"$f":"IF(AND(R37=1,R$410=1),1,0)","v":0},{"$f":"IF(AND(S37=1,S$410=1),1,0)","v":0},{"$f":"IF(AND(T37=1,T$410=1),1,0)","v":0},{"$f":"IF(AND(U37=1,U$410=1),1,0)","v":0},{"$f":"IF(AND(V37=1,V$410=1),1,0)","v":0},{"$f":"IF(AND(W37=1,W$410=1),1,0)","v":0},1,{"$f":"IF(AND(X37=1,X$410=1),1,0)","v":0},{"$f":"IF(AND(Y37=1,Y$410=1),1,0)","v":1},{"$f":"IF(AND(Z37=1,Z$410=1),1,0)","v":0},{"$f":"IF(AND(AA37=1,AA$410=1),1,0)","v":0},{"$f":"IF(AND(AB37=1,AB$410=1),1,0)","v":0},{"$f":"IF(AND(AC37=1,AC$410=1),1,0)","v":0},{"$f":"IF(AND(AD37=1,AD$410=1),1,0)","v":0},{"$f":"IF(AND(AE37=1,AE$410=1),1,0)","v":0},{"$f":"IF(AND(AF37=1,AF$410=1),1,0)","v":0},1,{"$f":"IF(AND(AG37=1,AG$410=1),1,0)","v":0},{"$f":"IF(AND(AH37=1,AH$410=1),1,0)","v":0},{"$f":"IF(AND(AI37=1,AI$410=1),1,0)","v":0},{"$f":"IF(AND(AJ37=1,AJ$410=1),1,0)","v":0},{"$f":"IF(AND(AK37=1,AK$410=1),1,0)","v":0},{"$f":"IF(AND(AL37=1,AL$410=1),1,0)","v":0},{"$f":"IF(AND(AM37=1,AM$410=1),1,0)","v":0},{"$f":"IF(AND(AN37=1,AN$410=1),1,0)","v":0},{"$f":"IF(AND(AO37=1,AO$410=1),1,0)","v":0},1,{"$f":"IF(AND(AP37=1,AP$410=1),1,0)","v":0},{"$f":"IF(AND(AQ37=1,AQ$410=1),1,0)","v":0},{"$f":"IF(AND(AR37=1,AR$410=1),1,0)","v":1},{"$f":"IF(AND(AS37=1,AS$410=1),1,0)","v":0},{"$f":"IF(AND(AT37=1,AT$410=1),1,0)","v":0},1,1,29,29,{"$f":"IFERROR(SMALL($CL$9:$CL$408,CK37),\"\")","v":29},{"$f":"IFERROR(INDEX($B$9:$I$408,$CM37,COLUMNS($CN$9:CN37)),\"\")","v":"TA029"},{"$f":"IFERROR(INDEX($B$9:$I$408,$CM37,COLUMNS($CN$9:CO37)),\"\")","v":"Number of publications that have been written with substantive support from programme"},{"$f":"IFERROR(INDEX($B$9:$I$408,$CM37,COLUMNS($CN$9:CP37)),\"\")","v":"-"},{"$f":"IFERROR(INDEX($B$9:$I$408,$CM37,COLUMNS($CN$9:CQ37)),\"\")","v":"Output"},{"$f":"IFERROR(INDEX($B$9:$I$408,$CM37,COLUMNS($CN$9:CR37)),\"\")","v":"-"},{"$f":"IFERROR(INDEX($B$9:$I$408,$CM37,COLUMNS($CN$9:CS37)),\"\")","v":"Capacity building: Technical capacity"},{"$f":"IFERROR(INDEX($B$9:$I$408,$CM37,COLUMNS($CN$9:CT37)),\"\")","v":"-"},{"$f":"IFERROR(INDEX($B$9:$I$408,$CM37,COLUMNS($CN$9:CU37)),\"\")","v":"Number"}]
[null,{"$f":"IF(ISBLANK('TA Indicator Bank'!B34),\"\",'TA Indicator Bank'!B34)","v":"TA030"},{"$f":"IF(ISBLANK('TA Indicator Bank'!C34),\"\",'TA Indicator Bank'!C34)","v":"Number of people supported by expert guidance"},{"$f":"IF(ISBLANK('TA Indicator Bank'!D34),\"\",'TA Indicator Bank'!D34)","v":"Can be assesed at direct level (specific number of people supported) or at indirect level (for example, including peopple who are served by the person/body receiving support, for example business customers or people supported by a public sector organisation)"},{"$f":"IF(ISBLANK('TA Indicator Bank'!E34),\"\",'TA Indicator Bank'!E34)","v":"Activity"},{"$f":"IF(ISBLANK('TA Indicator Bank'!F34),\"\",'TA Indicator Bank'!F34)","v":"Expert guidance and review"},{"$f":"IF(ISBLANK('TA Indicator Bank'!G34),\"\",'TA Indicator Bank'!G34)","v":"-"},{"$f":"IF(ISBLANK('TA Indicator Bank'!H34),\"\",'TA Indicator Bank'!H34)","v":"-"},{"$f":"IF(ISBLANK('TA Indicator Bank'!I34),\"\",'TA Indicator Bank'!I34)","v":"Number"},{"$f":"IF(ISBLANK('TA Indicator Bank'!J34),\"\",'TA Indicator Bank'!J34)","v":0},{"$f":"IF(ISBLANK('TA Indicator Bank'!K34),\"\",'TA Indicator Bank'!K34)","v":0},{"$f":"IF(ISBLANK('TA Indicator Bank'!L34),\"\",'TA Indicator Bank'!L34)","v":0},{"$f":"IF(ISBLANK('TA Indicator Bank'!M34),\"\",'TA Indicator Bank'!M34)","v":0},{"$f":"IF(ISBLANK('TA Indicator Bank'!N34),\"\",'TA Indicator Bank'!N34)","v":0},{"$f":"IF(ISBLANK('TA Indicator Bank'!O34),\"\",'TA Indicator Bank'!O34)","v":0},{"$f":"IF(ISBLANK('TA Indicator Bank'!P34),\"\",'TA Indicator Bank'!P34)","v":1},{"$f":"IF(ISBLANK('TA Indicator Bank'!Q34),\"\",'TA Indicator Bank'!Q34)","v":0},{"$f":"IF(ISBLANK('TA Indicator Bank'!R34),\"\",'TA Indicator Bank'!R34)","v":0},{"$f":"IF(ISBLANK('TA Indicator Bank'!S34),\"\",'TA Indicator Bank'!S34)","v":0},{"$f":"IF(ISBLANK('TA Indicator Bank'!T34),\"\",'TA Indicator Bank'!T34)","v":0},{"$f":"IF(ISBLANK('TA Indicator Bank'!U34),\"\",'TA Indicator Bank'!U34)","v":0},{"$f":"IF(ISBLANK('TA Indicator Bank'!V34),\"\",'TA Indicator Bank'!V34)","v":0},{"$f":"IF(ISBLANK('TA Indicator Bank'!W34),\"\",'TA Indicator Bank'!W34)","v":0},{"$f":"IF(ISBLANK('TA Indicator Bank'!X34),\"\",'TA Indicator Bank'!X34)","v":0},{"$f":"IF(ISBLANK('TA Indicator Bank'!Y34),\"\",'TA Indicator Bank'!Y34)","v":0},{"$f":"IF(ISBLANK('TA Indicator Bank'!Z34),\"\",'TA Indicator Bank'!Z34)","v":0},{"$f":"IF(ISBLANK('TA Indicator Bank'!AA34),\"\",'TA Indicator Bank'!AA34)","v":0},{"$f":"IF(ISBLANK('TA Indicator Bank'!AB34),\"\",'TA Indicator Bank'!AB34)","v":0},{"$f":"IF(ISBLANK('TA Indicator Bank'!AC34),\"\",'TA Indicator Bank'!AC34)","v":0},{"$f":"IF(ISBLANK('TA Indicator Bank'!AD34),\"\",'TA Indicator Bank'!AD34)","v":0},{"$f":"IF(ISBLANK('TA Indicator Bank'!AE34),\"\",'TA Indicator Bank'!AE34)","v":0},{"$f":"IF(ISBLANK('TA Indicator Bank'!AF34),\"\",'TA Indicator Bank'!AF34)","v":0},{"$f":"IF(ISBLANK('TA Indicator Bank'!AG34),\"\",'TA Indicator Bank'!AG34)","v":0},{"$f":"IF(ISBLANK('TA Indicator Bank'!AH34),\"\",'TA Indicator Bank'!AH34)","v":0},{"$f":"IF(ISBLANK('TA Indicator Bank'!AI34),\"\",'TA Indicator Bank'!AI34)","v":0},{"$f":"IF(ISBLANK('TA Indicator Bank'!AJ34),\"\",'TA Indicator Bank'!AJ34)","v":0},{"$f":"IF(ISBLANK('TA Indicator Bank'!AK34),\"\",'TA Indicator Bank'!AK34)","v":0},{"$f":"IF(ISBLANK('TA Indicator Bank'!AL34),\"\",'TA Indicator Bank'!AL34)","v":0},{"$f":"IF(ISBLANK('TA Indicator Bank'!AM34),\"\",'TA Indicator Bank'!AM34)","v":0},{"$f":"IF(ISBLANK('TA Indicator Bank'!AN34),\"\",'TA Indicator Bank'!AN34)","v":0},{"$f":"IF(ISBLANK('TA Indicator Bank'!AO34),\"\",'TA Indicator Bank'!AO34)","v":0},{"$f":"IF(ISBLANK('TA Indicator Bank'!AP34),\"\",'TA Indicator Bank'!AP34)","v":1},{"$f":"IF(ISBLANK('TA Indicator Bank'!AQ34),\"\",'TA Indicator Bank'!AQ34)","v":0},{"$f":"IF(ISBLANK('TA Indicator Bank'!AR34),\"\",'TA Indicator Bank'!AR34)","v":0},{"$f":"IF(ISBLANK('TA Indicator Bank'!AS34),\"\",'TA Indicator Bank'!AS34)","v":0},{"$f":"IF(ISBLANK('TA Indicator Bank'!AT34),\"\",'TA Indicator Bank'!AT34)","v":0},{"$f":"IF(AND(J38=1,J$410=1),1,0)","v":0},{"$f":"IF(AND(K38=1,K$410=1),1,0)","v":0},{"$f":"IF(AND(L38=1,L$410=1),1,0)","v":0},{"$f":"IF(AND(M38=1,M$410=1),1,0)","v":0},{"$f":"IF(AND(N38=1,N$410=1),1,0)","v":0},{"$f":"IF(AND(O38=1,O$410=1),1,0)","v":0},{"$f":"IF(AND(P38=1,P$410=1),1,0)","v":1},{"$f":"IF(AND(Q38=1,Q$410=1),1,0)","v":0},{"$f":"IF(AND(R38=1,R$410=1),1,0)","v":0},{"$f":"IF(AND(S38=1,S$410=1),1,0)","v":0},{"$f":"IF(AND(T38=1,T$410=1),1,0)","v":0},{"$f":"IF(AND(U38=1,U$410=1),1,0)","v":0},{"$f":"IF(AND(V38=1,V$410=1),1,0)","v":0},{"$f":"IF(AND(W38=1,W$410=1),1,0)","v":0},1,{"$f":"IF(AND(X38=1,X$410=1),1,0)","v":0},{"$f":"IF(AND(Y38=1,Y$410=1),1,0)","v":0},{"$f":"IF(AND(Z38=1,Z$410=1),1,0)","v":0},{"$f":"IF(AND(AA38=1,AA$410=1),1,0)","v":0},{"$f":"IF(AND(AB38=1,AB$410=1),1,0)","v":0},{"$f":"IF(AND(AC38=1,AC$410=1),1,0)","v":0},{"$f":"IF(AND(AD38=1,AD$410=1),1,0)","v":0},{"$f":"IF(AND(AE38=1,AE$410=1),1,0)","v":0},{"$f":"IF(AND(AF38=1,AF$410=1),1,0)","v":0},1,{"$f":"IF(AND(AG38=1,AG$410=1),1,0)","v":0},{"$f":"IF(AND(AH38=1,AH$410=1),1,0)","v":0},{"$f":"IF(AND(AI38=1,AI$410=1),1,0)","v":0},{"$f":"IF(AND(AJ38=1,AJ$410=1),1,0)","v":0},{"$f":"IF(AND(AK38=1,AK$410=1),1,0)","v":0},{"$f":"IF(AND(AL38=1,AL$410=1),1,0)","v":0},{"$f":"IF(AND(AM38=1,AM$410=1),1,0)","v":0},{"$f":"IF(AND(AN38=1,AN$410=1),1,0)","v":0},{"$f":"IF(AND(AO38=1,AO$410=1),1,0)","v":0},1,{"$f":"IF(AND(AP38=1,AP$410=1),1,0)","v":1},{"$f":"IF(AND(AQ38=1,AQ$410=1),1,0)","v":0},{"$f":"IF(AND(AR38=1,AR$410=1),1,0)","v":0},{"$f":"IF(AND(AS38=1,AS$410=1),1,0)","v":0},{"$f":"IF(AND(AT38=1,AT$410=1),1,0)","v":0},1,1,30,30,{"$f":"IFERROR(SMALL($CL$9:$CL$408,CK38),\"\")","v":30},{"$f":"IFERROR(INDEX($B$9:$I$408,$CM38,COLUMNS($CN$9:CN38)),\"\")","v":"TA030"},{"$f":"IFERROR(INDEX($B$9:$I$408,$CM38,COLUMNS($CN$9:CO38)),\"\")","v":"Number of people supported by expert guidance"},{"$f":"IFERROR(INDEX($B$9:$I$408,$CM38,COLUMNS($CN$9:CP38)),\"\")","v":"Can be assesed at direct level (specific number of people supported) or at indirect level (for example, including peopple who are served by the person/body receiving support, for example business customers or people supported by a public sector organisation)"},{"$f":"IFERROR(INDEX($B$9:$I$408,$CM38,COLUMNS($CN$9:CQ38)),\"\")","v":"Activity"},{"$f":"IFERROR(INDEX($B$9:$I$408,$CM38,COLUMNS($CN$9:CR38)),\"\")","v":"Expert guidance and review"},{"$f":"IFERROR(INDEX($B$9:$I$408,$CM38,COLUMNS($CN$9:CS38)),\"\")","v":"-"},{"$f":"IFERROR(INDEX($B$9:$I$408,$CM38,COLUMNS($CN$9:CT38)),\"\")","v":"-"},{"$f":"IFERROR(INDEX($B$9:$I$408,$CM38,COLUMNS($CN$9:CU38)),\"\")","v":"Number"}]
[null,{"$f":"IF(ISBLANK('TA Indicator Bank'!B35),\"\",'TA Indicator Bank'!B35)","v":"TA031"},{"$f":"IF(ISBLANK('TA Indicator Bank'!C35),\"\",'TA Indicator Bank'!C35)","v":"Number of social media followers"},{"$f":"IF(ISBLANK('TA Indicator Bank'!D35),\"\",'TA Indicator Bank'!D35)","v":"Should be based on appropriate social media networks in use in the country where support is provided"},{"$f":"IF(ISBLANK('TA Indicator Bank'!E35),\"\",'TA Indicator Bank'!E35)","v":"Uptake"},{"$f":"IF(ISBLANK('TA Indicator Bank'!F35),\"\",'TA Indicator Bank'!F35)","v":"Public awareness campaigns"},{"$f":"IF(ISBLANK('TA Indicator Bank'!G35),\"\",'TA Indicator Bank'!G35)","v":"-"},{"$f":"IF(ISBLANK('TA Indicator Bank'!H35),\"\",'TA Indicator Bank'!H35)","v":"-"},{"$f":"IF(ISBLANK('TA Indicator Bank'!I35),\"\",'TA Indicator Bank'!I35)","v":"Number"},{"$f":"IF(ISBLANK('TA Indicator Bank'!J35),\"\",'TA Indicator Bank'!J35)","v":0},{"$f":"IF(ISBLANK('TA Indicator Bank'!K35),\"\",'TA Indicator Bank'!K35)","v":0},{"$f":"IF(ISBLANK('TA Indicator Bank'!L35),\"\",'TA Indicator Bank'!L35)","v":0},{"$f":"IF(ISBLANK('TA Indicator Bank'!M35),\"\",'TA Indicator Bank'!M35)","v":0},{"$f":"IF(ISBLANK('TA Indicator Bank'!N35),\"\",'TA Indicator Bank'!N35)","v":0},{"$f":"IF(ISBLANK('TA Indicator Bank'!O35),\"\",'TA Indicator Bank'!O35)","v":0},{"$f":"IF(ISBLANK('TA Indicator Bank'!P35),\"\",'TA Indicator Bank'!P35)","v":0},{"$f":"IF(ISBLANK('TA Indicator Bank'!Q35),\"\",'TA Indicator Bank'!Q35)","v":0},{"$f":"IF(ISBLANK('TA Indicator Bank'!R35),\"\",'TA Indicator Bank'!R35)","v":0},{"$f":"IF(ISBLANK('TA Indicator Bank'!S35),\"\",'TA Indicator Bank'!S35)","v":1},{"$f":"IF(ISBLANK('TA Indicator Bank'!T35),\"\",'TA Indicator Bank'!T35)","v":0},{"$f":"IF(ISBLANK('TA Indicator Bank'!U35),\"\",'TA Indicator Bank'!U35)","v":0},{"$f":"IF(ISBLANK('TA Indicator Bank'!V35),\"\",'TA Indicator Bank'!V35)","v":0},{"$f":"IF(ISBLANK('TA Indicator Bank'!W35),\"\",'TA Indicator Bank'!W35)","v":0},{"$f":"IF(ISBLANK('TA Indicator Bank'!X35),\"\",'TA Indicator Bank'!X35)","v":0},{"$f":"IF(ISBLANK('TA Indicator Bank'!Y35),\"\",'TA Indicator Bank'!Y35)","v":0},{"$f":"IF(ISBLANK('TA Indicator Bank'!Z35),\"\",'TA Indicator Bank'!Z35)","v":0},{"$f":"IF(ISBLANK('TA Indicator Bank'!AA35),\"\",'TA Indicator Bank'!AA35)","v":0},{"$f":"IF(ISBLANK('TA Indicator Bank'!AB35),\"\",'TA Indicator Bank'!AB35)","v":0},{"$f":"IF(ISBLANK('TA Indicator Bank'!AC35),\"\",'TA Indicator Bank'!AC35)","v":0},{"$f":"IF(ISBLANK('TA Indicator Bank'!AD35),\"\",'TA Indicator Bank'!AD35)","v":0},{"$f":"IF(ISBLANK('TA Indicator Bank'!AE35),\"\",'TA Indicator Bank'!AE35)","v":0},{"$f":"IF(ISBLANK('TA Indicator Bank'!AF35),\"\",'TA Indicator Bank'!AF35)","v":0},{"$f":"IF(ISBLANK('TA Indicator Bank'!AG35),\"\",'TA Indicator Bank'!AG35)","v":0},{"$f":"IF(ISBLANK('TA Indicator Bank'!AH35),\"\",'TA Indicator Bank'!AH35)","v":0},{"$f":"IF(ISBLANK('TA Indicator Bank'!AI35),\"\",'TA Indicator Bank'!AI35)","v":0},{"$f":"IF(ISBLANK('TA Indicator Bank'!AJ35),\"\",'TA Indicator Bank'!AJ35)","v":0},{"$f":"IF(ISBLANK('TA Indicator Bank'!AK35),\"\",'TA Indicator Bank'!AK35)","v":0},{"$f":"IF(ISBLANK('TA Indicator Bank'!AL35),\"\",'TA Indicator Bank'!AL35)","v":0},{"$f":"IF(ISBLANK('TA Indicator Bank'!AM35),\"\",'TA Indicator Bank'!AM35)","v":0},{"$f":"IF(ISBLANK('TA Indicator Bank'!AN35),\"\",'TA Indicator Bank'!AN35)","v":0},{"$f":"IF(ISBLANK('TA Indicator Bank'!AO35),\"\",'TA Indicator Bank'!AO35)","v":0},{"$f":"IF(ISBLANK('TA Indicator Bank'!AP35),\"\",'TA Indicator Bank'!AP35)","v":0},{"$f":"IF(ISBLANK('TA Indicator Bank'!AQ35),\"\",'TA Indicator Bank'!AQ35)","v":1},{"$f":"IF(ISBLANK('TA Indicator Bank'!AR35),\"\",'TA Indicator Bank'!AR35)","v":0},{"$f":"IF(ISBLANK('TA Indicator Bank'!AS35),\"\",'TA Indicator Bank'!AS35)","v":0},{"$f":"IF(ISBLANK('TA Indicator Bank'!AT35),\"\",'TA Indicator Bank'!AT35)","v":0},{"$f":"IF(AND(J39=1,J$410=1),1,0)","v":0},{"$f":"IF(AND(K39=1,K$410=1),1,0)","v":0},{"$f":"IF(AND(L39=1,L$410=1),1,0)","v":0},{"$f":"IF(AND(M39=1,M$410=1),1,0)","v":0},{"$f":"IF(AND(N39=1,N$410=1),1,0)","v":0},{"$f":"IF(AND(O39=1,O$410=1),1,0)","v":0},{"$f":"IF(AND(P39=1,P$410=1),1,0)","v":0},{"$f":"IF(AND(Q39=1,Q$410=1),1,0)","v":0},{"$f":"IF(AND(R39=1,R$410=1),1,0)","v":0},{"$f":"IF(AND(S39=1,S$410=1),1,0)","v":1},{"$f":"IF(AND(T39=1,T$410=1),1,0)","v":0},{"$f":"IF(AND(U39=1,U$410=1),1,0)","v":0},{"$f":"IF(AND(V39=1,V$410=1),1,0)","v":0},{"$f":"IF(AND(W39=1,W$410=1),1,0)","v":0},1,{"$f":"IF(AND(X39=1,X$410=1),1,0)","v":0},{"$f":"IF(AND(Y39=1,Y$410=1),1,0)","v":0},{"$f":"IF(AND(Z39=1,Z$410=1),1,0)","v":0},{"$f":"IF(AND(AA39=1,AA$410=1),1,0)","v":0},{"$f":"IF(AND(AB39=1,AB$410=1),1,0)","v":0},{"$f":"IF(AND(AC39=1,AC$410=1),1,0)","v":0},{"$f":"IF(AND(AD39=1,AD$410=1),1,0)","v":0},{"$f":"IF(AND(AE39=1,AE$410=1),1,0)","v":0},{"$f":"IF(AND(AF39=1,AF$410=1),1,0)","v":0},1,{"$f":"IF(AND(AG39=1,AG$410=1),1,0)","v":0},{"$f":"IF(AND(AH39=1,AH$410=1),1,0)","v":0},{"$f":"IF(AND(AI39=1,AI$410=1),1,0)","v":0},{"$f":"IF(AND(AJ39=1,AJ$410=1),1,0)","v":0},{"$f":"IF(AND(AK39=1,AK$410=1),1,0)","v":0},{"$f":"IF(AND(AL39=1,AL$410=1),1,0)","v":0},{"$f":"IF(AND(AM39=1,AM$410=1),1,0)","v":0},{"$f":"IF(AND(AN39=1,AN$410=1),1,0)","v":0},{"$f":"IF(AND(AO39=1,AO$410=1),1,0)","v":0},1,{"$f":"IF(AND(AP39=1,AP$410=1),1,0)","v":0},{"$f":"IF(AND(AQ39=1,AQ$410=1),1,0)","v":1},{"$f":"IF(AND(AR39=1,AR$410=1),1,0)","v":0},{"$f":"IF(AND(AS39=1,AS$410=1),1,0)","v":0},{"$f":"IF(AND(AT39=1,AT$410=1),1,0)","v":0},1,1,31,31,{"$f":"IFERROR(SMALL($CL$9:$CL$408,CK39),\"\")","v":31},{"$f":"IFERROR(INDEX($B$9:$I$408,$CM39,COLUMNS($CN$9:CN39)),\"\")","v":"TA031"},{"$f":"IFERROR(INDEX($B$9:$I$408,$CM39,COLUMNS($CN$9:CO39)),\"\")","v":"Number of social media followers"},{"$f":"IFERROR(INDEX($B$9:$I$408,$CM39,COLUMNS($CN$9:CP39)),\"\")","v":"Should be based on appropriate social media networks in use in the country where support is provided"},{"$f":"IFERROR(INDEX($B$9:$I$408,$CM39,COLUMNS($CN$9:CQ39)),\"\")","v":"Uptake"},{"$f":"IFERROR(INDEX($B$9:$I$408,$CM39,COLUMNS($CN$9:CR39)),\"\")","v":"Public awareness campaigns"},{"$f":"IFERROR(INDEX($B$9:$I$408,$CM39,COLUMNS($CN$9:CS39)),\"\")","v":"-"},{"$f":"IFERROR(INDEX($B$9:$I$408,$CM39,COLUMNS($CN$9:CT39)),\"\")","v":"-"},{"$f":"IFERROR(INDEX($B$9:$I$408,$CM39,COLUMNS($CN$9:CU39)),\"\")","v":"Number"}]
[null,{"$f":"IF(ISBLANK('TA Indicator Bank'!B36),\"\",'TA Indicator Bank'!B36)","v":"TA032"},{"$f":"IF(ISBLANK('TA Indicator Bank'!C36),\"\",'TA Indicator Bank'!C36)","v":"Number of cases where programme partners made adaptations based on the learning through the programme "},{"$f":"IF(ISBLANK('TA Indicator Bank'!D36),\"\",'TA Indicator Bank'!D36)","v":"-"},{"$f":"IF(ISBLANK('TA Indicator Bank'!E36),\"\",'TA Indicator Bank'!E36)","v":"Output"},{"$f":"IF(ISBLANK('TA Indicator Bank'!F36),\"\",'TA Indicator Bank'!F36)","v":"-"},{"$f":"IF(ISBLANK('TA Indicator Bank'!G36),\"\",'TA Indicator Bank'!G36)","v":"Process/asset operation support"},{"$f":"IF(ISBLANK('TA Indicator Bank'!H36),\"\",'TA Indicator Bank'!H36)","v":"-"},{"$f":"IF(ISBLANK('TA Indicator Bank'!I36),\"\",'TA Indicator Bank'!I36)","v":"Number"},{"$f":"IF(ISBLANK('TA Indicator Bank'!J36),\"\",'TA Indicator Bank'!J36)","v":0},{"$f":"IF(ISBLANK('TA Indicator Bank'!K36),\"\",'TA Indicator Bank'!K36)","v":0},{"$f":"IF(ISBLANK('TA Indicator Bank'!L36),\"\",'TA Indicator Bank'!L36)","v":0},{"$f":"IF(ISBLANK('TA Indicator Bank'!M36),\"\",'TA Indicator Bank'!M36)","v":0},{"$f":"IF(ISBLANK('TA Indicator Bank'!N36),\"\",'TA Indicator Bank'!N36)","v":0},{"$f":"IF(ISBLANK('TA Indicator Bank'!O36),\"\",'TA Indicator Bank'!O36)","v":0},{"$f":"IF(ISBLANK('TA Indicator Bank'!P36),\"\",'TA Indicator Bank'!P36)","v":0},{"$f":"IF(ISBLANK('TA Indicator Bank'!Q36),\"\",'TA Indicator Bank'!Q36)","v":0},{"$f":"IF(ISBLANK('TA Indicator Bank'!R36),\"\",'TA Indicator Bank'!R36)","v":0},{"$f":"IF(ISBLANK('TA Indicator Bank'!S36),\"\",'TA Indicator Bank'!S36)","v":0},{"$f":"IF(ISBLANK('TA Indicator Bank'!T36),\"\",'TA Indicator Bank'!T36)","v":0},{"$f":"IF(ISBLANK('TA Indicator Bank'!U36),\"\",'TA Indicator Bank'!U36)","v":0},{"$f":"IF(ISBLANK('TA Indicator Bank'!V36),\"\",'TA Indicator Bank'!V36)","v":0},{"$f":"IF(ISBLANK('TA Indicator Bank'!W36),\"\",'TA Indicator Bank'!W36)","v":0},{"$f":"IF(ISBLANK('TA Indicator Bank'!X36),\"\",'TA Indicator Bank'!X36)","v":0},{"$f":"IF(ISBLANK('TA Indicator Bank'!Y36),\"\",'TA Indicator Bank'!Y36)","v":0},{"$f":"IF(ISBLANK('TA Indicator Bank'!Z36),\"\",'TA Indicator Bank'!Z36)","v":0},{"$f":"IF(ISBLANK('TA Indicator Bank'!AA36),\"\",'TA Indicator Bank'!AA36)","v":0},{"$f":"IF(ISBLANK('TA Indicator Bank'!AB36),\"\",'TA Indicator Bank'!AB36)","v":0},{"$f":"IF(ISBLANK('TA Indicator Bank'!AC36),\"\",'TA Indicator Bank'!AC36)","v":0},{"$f":"IF(ISBLANK('TA Indicator Bank'!AD36),\"\",'TA Indicator Bank'!AD36)","v":1},{"$f":"IF(ISBLANK('TA Indicator Bank'!AE36),\"\",'TA Indicator Bank'!AE36)","v":0},{"$f":"IF(ISBLANK('TA Indicator Bank'!AF36),\"\",'TA Indicator Bank'!AF36)","v":0},{"$f":"IF(ISBLANK('TA Indicator Bank'!AG36),\"\",'TA Indicator Bank'!AG36)","v":0},{"$f":"IF(ISBLANK('TA Indicator Bank'!AH36),\"\",'TA Indicator Bank'!AH36)","v":0},{"$f":"IF(ISBLANK('TA Indicator Bank'!AI36),\"\",'TA Indicator Bank'!AI36)","v":0},{"$f":"IF(ISBLANK('TA Indicator Bank'!AJ36),\"\",'TA Indicator Bank'!AJ36)","v":0},{"$f":"IF(ISBLANK('TA Indicator Bank'!AK36),\"\",'TA Indicator Bank'!AK36)","v":0},{"$f":"IF(ISBLANK('TA Indicator Bank'!AL36),\"\",'TA Indicator Bank'!AL36)","v":0},{"$f":"IF(ISBLANK('TA Indicator Bank'!AM36),\"\",'TA Indicator Bank'!AM36)","v":0},{"$f":"IF(ISBLANK('TA Indicator Bank'!AN36),\"\",'TA Indicator Bank'!AN36)","v":0},{"$f":"IF(ISBLANK('TA Indicator Bank'!AO36),\"\",'TA Indicator Bank'!AO36)","v":0},{"$f":"IF(ISBLANK('TA Indicator Bank'!AP36),\"\",'TA Indicator Bank'!AP36)","v":0},{"$f":"IF(ISBLANK('TA Indicator Bank'!AQ36),\"\",'TA Indicator Bank'!AQ36)","v":0},{"$f":"IF(ISBLANK('TA Indicator Bank'!AR36),\"\",'TA Indicator Bank'!AR36)","v":1},{"$f":"IF(ISBLANK('TA Indicator Bank'!AS36),\"\",'TA Indicator Bank'!AS36)","v":0},{"$f":"IF(ISBLANK('TA Indicator Bank'!AT36),\"\",'TA Indicator Bank'!AT36)","v":0},{"$f":"IF(AND(J40=1,J$410=1),1,0)","v":0},{"$f":"IF(AND(K40=1,K$410=1),1,0)","v":0},{"$f":"IF(AND(L40=1,L$410=1),1,0)","v":0},{"$f":"IF(AND(M40=1,M$410=1),1,0)","v":0},{"$f":"IF(AND(N40=1,N$410=1),1,0)","v":0},{"$f":"IF(AND(O40=1,O$410=1),1,0)","v":0},{"$f":"IF(AND(P40=1,P$410=1),1,0)","v":0},{"$f":"IF(AND(Q40=1,Q$410=1),1,0)","v":0},{"$f":"IF(AND(R40=1,R$410=1),1,0)","v":0},{"$f":"IF(AND(S40=1,S$410=1),1,0)","v":0},{"$f":"IF(AND(T40=1,T$410=1),1,0)","v":0},{"$f":"IF(AND(U40=1,U$410=1),1,0)","v":0},{"$f":"IF(AND(V40=1,V$410=1),1,0)","v":0},{"$f":"IF(AND(W40=1,W$410=1),1,0)","v":0},1,{"$f":"IF(AND(X40=1,X$410=1),1,0)","v":0},{"$f":"IF(AND(Y40=1,Y$410=1),1,0)","v":0},{"$f":"IF(AND(Z40=1,Z$410=1),1,0)","v":0},{"$f":"IF(AND(AA40=1,AA$410=1),1,0)","v":0},{"$f":"IF(AND(AB40=1,AB$410=1),1,0)","v":0},{"$f":"IF(AND(AC40=1,AC$410=1),1,0)","v":0},{"$f":"IF(AND(AD40=1,AD$410=1),1,0)","v":1},{"$f":"IF(AND(AE40=1,AE$410=1),1,0)","v":0},{"$f":"IF(AND(AF40=1,AF$410=1),1,0)","v":0},1,{"$f":"IF(AND(AG40=1,AG$410=1),1,0)","v":0},{"$f":"IF(AND(AH40=1,AH$410=1),1,0)","v":0},{"$f":"IF(AND(AI40=1,AI$410=1),1,0)","v":0},{"$f":"IF(AND(AJ40=1,AJ$410=1),1,0)","v":0},{"$f":"IF(AND(AK40=1,AK$410=1),1,0)","v":0},{"$f":"IF(AND(AL40=1,AL$410=1),1,0)","v":0},{"$f":"IF(AND(AM40=1,AM$410=1),1,0)","v":0},{"$f":"IF(AND(AN40=1,AN$410=1),1,0)","v":0},{"$f":"IF(AND(AO40=1,AO$410=1),1,0)","v":0},1,{"$f":"IF(AND(AP40=1,AP$410=1),1,0)","v":0},{"$f":"IF(AND(AQ40=1,AQ$410=1),1,0)","v":0},{"$f":"IF(AND(AR40=1,AR$410=1),1,0)","v":1},{"$f":"IF(AND(AS40=1,AS$410=1),1,0)","v":0},{"$f":"IF(AND(AT40=1,AT$410=1),1,0)","v":0},1,1,32,32,{"$f":"IFERROR(SMALL($CL$9:$CL$408,CK40),\"\")","v":32},{"$f":"IFERROR(INDEX($B$9:$I$408,$CM40,COLUMNS($CN$9:CN40)),\"\")","v":"TA032"},{"$f":"IFERROR(INDEX($B$9:$I$408,$CM40,COLUMNS($CN$9:CO40)),\"\")","v":"Number of cases where programme partners made adaptations based on the learning through the programme "},{"$f":"IFERROR(INDEX($B$9:$I$408,$CM40,COLUMNS($CN$9:CP40)),\"\")","v":"-"},{"$f":"IFERROR(INDEX($B$9:$I$408,$CM40,COLUMNS($CN$9:CQ40)),\"\")","v":"Output"},{"$f":"IFERROR(INDEX($B$9:$I$408,$CM40,COLUMNS($CN$9:CR40)),\"\")","v":"-"},{"$f":"IFERROR(INDEX($B$9:$I$408,$CM40,COLUMNS($CN$9:CS40)),\"\")","v":"Process/asset operation support"},{"$f":"IFERROR(INDEX($B$9:$I$408,$CM40,COLUMNS($CN$9:CT40)),\"\")","v":"-"},{"$f":"IFERROR(INDEX($B$9:$I$408,$CM40,COLUMNS($CN$9:CU40)),\"\")","v":"Number"}]
[null,{"$f":"IF(ISBLANK('TA Indicator Bank'!B37),\"\",'TA Indicator Bank'!B37)","v":"TA033"},{"$f":"IF(ISBLANK('TA Indicator Bank'!C37),\"\",'TA Indicator Bank'!C37)","v":"Number of cases where the programme supported stakeholders on media and communication"},{"$f":"IF(ISBLANK('TA Indicator Bank'!D37),\"\",'TA Indicator Bank'!D37)","v":"-"},{"$f":"IF(ISBLANK('TA Indicator Bank'!E37),\"\",'TA Indicator Bank'!E37)","v":"Activity"},{"$f":"IF(ISBLANK('TA Indicator Bank'!F37),\"\",'TA Indicator Bank'!F37)","v":"Public awareness campaigns"},{"$f":"IF(ISBLANK('TA Indicator Bank'!G37),\"\",'TA Indicator Bank'!G37)","v":"-"},{"$f":"IF(ISBLANK('TA Indicator Bank'!H37),\"\",'TA Indicator Bank'!H37)","v":"-"},{"$f":"IF(ISBLANK('TA Indicator Bank'!I37),\"\",'TA Indicator Bank'!I37)","v":"Number"},{"$f":"IF(ISBLANK('TA Indicator Bank'!J37),\"\",'TA Indicator Bank'!J37)","v":0},{"$f":"IF(ISBLANK('TA Indicator Bank'!K37),\"\",'TA Indicator Bank'!K37)","v":0},{"$f":"IF(ISBLANK('TA Indicator Bank'!L37),\"\",'TA Indicator Bank'!L37)","v":0},{"$f":"IF(ISBLANK('TA Indicator Bank'!M37),\"\",'TA Indicator Bank'!M37)","v":0},{"$f":"IF(ISBLANK('TA Indicator Bank'!N37),\"\",'TA Indicator Bank'!N37)","v":0},{"$f":"IF(ISBLANK('TA Indicator Bank'!O37),\"\",'TA Indicator Bank'!O37)","v":0},{"$f":"IF(ISBLANK('TA Indicator Bank'!P37),\"\",'TA Indicator Bank'!P37)","v":0},{"$f":"IF(ISBLANK('TA Indicator Bank'!Q37),\"\",'TA Indicator Bank'!Q37)","v":0},{"$f":"IF(ISBLANK('TA Indicator Bank'!R37),\"\",'TA Indicator Bank'!R37)","v":0},{"$f":"IF(ISBLANK('TA Indicator Bank'!S37),\"\",'TA Indicator Bank'!S37)","v":1},{"$f":"IF(ISBLANK('TA Indicator Bank'!T37),\"\",'TA Indicator Bank'!T37)","v":0},{"$f":"IF(ISBLANK('TA Indicator Bank'!U37),\"\",'TA Indicator Bank'!U37)","v":0},{"$f":"IF(ISBLANK('TA Indicator Bank'!V37),\"\",'TA Indicator Bank'!V37)","v":0},{"$f":"IF(ISBLANK('TA Indicator Bank'!W37),\"\",'TA Indicator Bank'!W37)","v":0},{"$f":"IF(ISBLANK('TA Indicator Bank'!X37),\"\",'TA Indicator Bank'!X37)","v":0},{"$f":"IF(ISBLANK('TA Indicator Bank'!Y37),\"\",'TA Indicator Bank'!Y37)","v":0},{"$f":"IF(ISBLANK('TA Indicator Bank'!Z37),\"\",'TA Indicator Bank'!Z37)","v":0},{"$f":"IF(ISBLANK('TA Indicator Bank'!AA37),\"\",'TA Indicator Bank'!AA37)","v":0},{"$f":"IF(ISBLANK('TA Indicator Bank'!AB37),\"\",'TA Indicator Bank'!AB37)","v":0},{"$f":"IF(ISBLANK('TA Indicator Bank'!AC37),\"\",'TA Indicator Bank'!AC37)","v":0},{"$f":"IF(ISBLANK('TA Indicator Bank'!AD37),\"\",'TA Indicator Bank'!AD37)","v":0},{"$f":"IF(ISBLANK('TA Indicator Bank'!AE37),\"\",'TA Indicator Bank'!AE37)","v":0},{"$f":"IF(ISBLANK('TA Indicator Bank'!AF37),\"\",'TA Indicator Bank'!AF37)","v":0},{"$f":"IF(ISBLANK('TA Indicator Bank'!AG37),\"\",'TA Indicator Bank'!AG37)","v":0},{"$f":"IF(ISBLANK('TA Indicator Bank'!AH37),\"\",'TA Indicator Bank'!AH37)","v":0},{"$f":"IF(ISBLANK('TA Indicator Bank'!AI37),\"\",'TA Indicator Bank'!AI37)","v":0},{"$f":"IF(ISBLANK('TA Indicator Bank'!AJ37),\"\",'TA Indicator Bank'!AJ37)","v":0},{"$f":"IF(ISBLANK('TA Indicator Bank'!AK37),\"\",'TA Indicator Bank'!AK37)","v":0},{"$f":"IF(ISBLANK('TA Indicator Bank'!AL37),\"\",'TA Indicator Bank'!AL37)","v":0},{"$f":"IF(ISBLANK('TA Indicator Bank'!AM37),\"\",'TA Indicator Bank'!AM37)","v":0},{"$f":"IF(ISBLANK('TA Indicator Bank'!AN37),\"\",'TA Indicator Bank'!AN37)","v":0},{"$f":"IF(ISBLANK('TA Indicator Bank'!AO37),\"\",'TA Indicator Bank'!AO37)","v":0},{"$f":"IF(ISBLANK('TA Indicator Bank'!AP37),\"\",'TA Indicator Bank'!AP37)","v":1},{"$f":"IF(ISBLANK('TA Indicator Bank'!AQ37),\"\",'TA Indicator Bank'!AQ37)","v":0},{"$f":"IF(ISBLANK('TA Indicator Bank'!AR37),\"\",'TA Indicator Bank'!AR37)","v":0},{"$f":"IF(ISBLANK('TA Indicator Bank'!AS37),\"\",'TA Indicator Bank'!AS37)","v":0},{"$f":"IF(ISBLANK('TA Indicator Bank'!AT37),\"\",'TA Indicator Bank'!AT37)","v":0},{"$f":"IF(AND(J41=1,J$410=1),1,0)","v":0},{"$f":"IF(AND(K41=1,K$410=1),1,0)","v":0},{"$f":"IF(AND(L41=1,L$410=1),1,0)","v":0},{"$f":"IF(AND(M41=1,M$410=1),1,0)","v":0},{"$f":"IF(AND(N41=1,N$410=1),1,0)","v":0},{"$f":"IF(AND(O41=1,O$410=1),1,0)","v":0},{"$f":"IF(AND(P41=1,P$410=1),1,0)","v":0},{"$f":"IF(AND(Q41=1,Q$410=1),1,0)","v":0},{"$f":"IF(AND(R41=1,R$410=1),1,0)","v":0},{"$f":"IF(AND(S41=1,S$410=1),1,0)","v":1},{"$f":"IF(AND(T41=1,T$410=1),1,0)","v":0},{"$f":"IF(AND(U41=1,U$410=1),1,0)","v":0},{"$f":"IF(AND(V41=1,V$410=1),1,0)","v":0},{"$f":"IF(AND(W41=1,W$410=1),1,0)","v":0},1,{"$f":"IF(AND(X41=1,X$410=1),1,0)","v":0},{"$f":"IF(AND(Y41=1,Y$410=1),1,0)","v":0},{"$f":"IF(AND(Z41=1,Z$410=1),1,0)","v":0},{"$f":"IF(AND(AA41=1,AA$410=1),1,0)","v":0},{"$f":"IF(AND(AB41=1,AB$410=1),1,0)","v":0},{"$f":"IF(AND(AC41=1,AC$410=1),1,0)","v":0},{"$f":"IF(AND(AD41=1,AD$410=1),1,0)","v":0},{"$f":"IF(AND(AE41=1,AE$410=1),1,0)","v":0},{"$f":"IF(AND(AF41=1,AF$410=1),1,0)","v":0},1,{"$f":"IF(AND(AG41=1,AG$410=1),1,0)","v":0},{"$f":"IF(AND(AH41=1,AH$410=1),1,0)","v":0},{"$f":"IF(AND(AI41=1,AI$410=1),1,0)","v":0},{"$f":"IF(AND(AJ41=1,AJ$410=1),1,0)","v":0},{"$f":"IF(AND(AK41=1,AK$410=1),1,0)","v":0},{"$f":"IF(AND(AL41=1,AL$410=1),1,0)","v":0},{"$f":"IF(AND(AM41=1,AM$410=1),1,0)","v":0},{"$f":"IF(AND(AN41=1,AN$410=1),1,0)","v":0},{"$f":"IF(AND(AO41=1,AO$410=1),1,0)","v":0},1,{"$f":"IF(AND(AP41=1,AP$410=1),1,0)","v":1},{"$f":"IF(AND(AQ41=1,AQ$410=1),1,0)","v":0},{"$f":"IF(AND(AR41=1,AR$410=1),1,0)","v":0},{"$f":"IF(AND(AS41=1,AS$410=1),1,0)","v":0},{"$f":"IF(AND(AT41=1,AT$410=1),1,0)","v":0},1,1,33,33,{"$f":"IFERROR(SMALL($CL$9:$CL$408,CK41),\"\")","v":33},{"$f":"IFERROR(INDEX($B$9:$I$408,$CM41,COLUMNS($CN$9:CN41)),\"\")","v":"TA033"},{"$f":"IFERROR(INDEX($B$9:$I$408,$CM41,COLUMNS($CN$9:CO41)),\"\")","v":"Number of cases where the programme supported stakeholders on media and communication"},{"$f":"IFERROR(INDEX($B$9:$I$408,$CM41,COLUMNS($CN$9:CP41)),\"\")","v":"-"},{"$f":"IFERROR(INDEX($B$9:$I$408,$CM41,COLUMNS($CN$9:CQ41)),\"\")","v":"Activity"},{"$f":"IFERROR(INDEX($B$9:$I$408,$CM41,COLUMNS($CN$9:CR41)),\"\")","v":"Public awareness campaigns"},{"$f":"IFERROR(INDEX($B$9:$I$408,$CM41,COLUMNS($CN$9:CS41)),\"\")","v":"-"},{"$f":"IFERROR(INDEX($B$9:$I$408,$CM41,COLUMNS($CN$9:CT41)),\"\")","v":"-"},{"$f":"IFERROR(INDEX($B$9:$I$408,$CM41,COLUMNS($CN$9:CU41)),\"\")","v":"Number"}]
[null,{"$f":"IF(ISBLANK('TA Indicator Bank'!B38),\"\",'TA Indicator Bank'!B38)","v":"TA034"},{"$f":"IF(ISBLANK('TA Indicator Bank'!C38),\"\",'TA Indicator Bank'!C38)","v":"Number of programme participants with increased awareness"},{"$f":"IF(ISBLANK('TA Indicator Bank'!D38),\"\",'TA Indicator Bank'!D38)","v":"-"},{"$f":"IF(ISBLANK('TA Indicator Bank'!E38),\"\",'TA Indicator Bank'!E38)","v":"Output"},{"$f":"IF(ISBLANK('TA Indicator Bank'!F38),\"\",'TA Indicator Bank'!F38)","v":"-"},{"$f":"IF(ISBLANK('TA Indicator Bank'!G38),\"\",'TA Indicator Bank'!G38)","v":"Awareness raising"},{"$f":"IF(ISBLANK('TA Indicator Bank'!H38),\"\",'TA Indicator Bank'!H38)","v":"-"},{"$f":"IF(ISBLANK('TA Indicator Bank'!I38),\"\",'TA Indicator Bank'!I38)","v":"Number"},{"$f":"IF(ISBLANK('TA Indicator Bank'!J38),\"\",'TA Indicator Bank'!J38)","v":0},{"$f":"IF(ISBLANK('TA Indicator Bank'!K38),\"\",'TA Indicator Bank'!K38)","v":0},{"$f":"IF(ISBLANK('TA Indicator Bank'!L38),\"\",'TA Indicator Bank'!L38)","v":0},{"$f":"IF(ISBLANK('TA Indicator Bank'!M38),\"\",'TA Indicator Bank'!M38)","v":0},{"$f":"IF(ISBLANK('TA Indicator Bank'!N38),\"\",'TA Indicator Bank'!N38)","v":0},{"$f":"IF(ISBLANK('TA Indicator Bank'!O38),\"\",'TA Indicator Bank'!O38)","v":0},{"$f":"IF(ISBLANK('TA Indicator Bank'!P38),\"\",'TA Indicator Bank'!P38)","v":0},{"$f":"IF(ISBLANK('TA Indicator Bank'!Q38),\"\",'TA Indicator Bank'!Q38)","v":0},{"$f":"IF(ISBLANK('TA Indicator Bank'!R38),\"\",'TA Indicator Bank'!R38)","v":0},{"$f":"IF(ISBLANK('TA Indicator Bank'!S38),\"\",'TA Indicator Bank'!S38)","v":0},{"$f":"IF(ISBLANK('TA Indicator Bank'!T38),\"\",'TA Indicator Bank'!T38)","v":0},{"$f":"IF(ISBLANK('TA Indicator Bank'!U38),\"\",'TA Indicator Bank'!U38)","v":0},{"$f":"IF(ISBLANK('TA Indicator Bank'!V38),\"\",'TA Indicator Bank'!V38)","v":0},{"$f":"IF(ISBLANK('TA Indicator Bank'!W38),\"\",'TA Indicator Bank'!W38)","v":0},{"$f":"IF(ISBLANK('TA Indicator Bank'!X38),\"\",'TA Indicator Bank'!X38)","v":0},{"$f":"IF(ISBLANK('TA Indicator Bank'!Y38),\"\",'TA Indicator Bank'!Y38)","v":0},{"$f":"IF(ISBLANK('TA Indicator Bank'!Z38),\"\",'TA Indicator Bank'!Z38)","v":1},{"$f":"IF(ISBLANK('TA Indicator Bank'!AA38),\"\",'TA Indicator Bank'!AA38)","v":0},{"$f":"IF(ISBLANK('TA Indicator Bank'!AB38),\"\",'TA Indicator Bank'!AB38)","v":0},{"$f":"IF(ISBLANK('TA Indicator Bank'!AC38),\"\",'TA Indicator Bank'!AC38)","v":0},{"$f":"IF(ISBLANK('TA Indicator Bank'!AD38),\"\",'TA Indicator Bank'!AD38)","v":0},{"$f":"IF(ISBLANK('TA Indicator Bank'!AE38),\"\",'TA Indicator Bank'!AE38)","v":0},{"$f":"IF(ISBLANK('TA Indicator Bank'!AF38),\"\",'TA Indicator Bank'!AF38)","v":0},{"$f":"IF(ISBLANK('TA Indicator Bank'!AG38),\"\",'TA Indicator Bank'!AG38)","v":0},{"$f":"IF(ISBLANK('TA Indicator Bank'!AH38),\"\",'TA Indicator Bank'!AH38)","v":0},{"$f":"IF(ISBLANK('TA Indicator Bank'!AI38),\"\",'TA Indicator Bank'!AI38)","v":0},{"$f":"IF(ISBLANK('TA Indicator Bank'!AJ38),\"\",'TA Indicator Bank'!AJ38)","v":0},{"$f":"IF(ISBLANK('TA Indicator Bank'!AK38),\"\",'TA Indicator Bank'!AK38)","v":0},{"$f":"IF(ISBLANK('TA Indicator Bank'!AL38),\"\",'TA Indicator Bank'!AL38)","v":0},{"$f":"IF(ISBLANK('TA Indicator Bank'!AM38),\"\",'TA Indicator Bank'!AM38)","v":0},{"$f":"IF(ISBLANK('TA Indicator Bank'!AN38),\"\",'TA Indicator Bank'!AN38)","v":0},{"$f":"IF(ISBLANK('TA Indicator Bank'!AO38),\"\",'TA Indicator Bank'!AO38)","v":0},{"$f":"IF(ISBLANK('TA Indicator Bank'!AP38),\"\",'TA Indicator Bank'!AP38)","v":0},{"$f":"IF(ISBLANK('TA Indicator Bank'!AQ38),\"\",'TA Indicator Bank'!AQ38)","v":0},{"$f":"IF(ISBLANK('TA Indicator Bank'!AR38),\"\",'TA Indicator Bank'!AR38)","v":1},{"$f":"IF(ISBLANK('TA Indicator Bank'!AS38),\"\",'TA Indicator Bank'!AS38)","v":0},{"$f":"IF(ISBLANK('TA Indicator Bank'!AT38),\"\",'TA Indicator Bank'!AT38)","v":0},{"$f":"IF(AND(J42=1,J$410=1),1,0)","v":0},{"$f":"IF(AND(K42=1,K$410=1),1,0)","v":0},{"$f":"IF(AND(L42=1,L$410=1),1,0)","v":0},{"$f":"IF(AND(M42=1,M$410=1),1,0)","v":0},{"$f":"IF(AND(N42=1,N$410=1),1,0)","v":0},{"$f":"IF(AND(O42=1,O$410=1),1,0)","v":0},{"$f":"IF(AND(P42=1,P$410=1),1,0)","v":0},{"$f":"IF(AND(Q42=1,Q$410=1),1,0)","v":0},{"$f":"IF(AND(R42=1,R$410=1),1,0)","v":0},{"$f":"IF(AND(S42=1,S$410=1),1,0)","v":0},{"$f":"IF(AND(T42=1,T$410=1),1,0)","v":0},{"$f":"IF(AND(U42=1,U$410=1),1,0)","v":0},{"$f":"IF(AND(V42=1,V$410=1),1,0)","v":0},{"$f":"IF(AND(W42=1,W$410=1),1,0)","v":0},1,{"$f":"IF(AND(X42=1,X$410=1),1,0)","v":0},{"$f":"IF(AND(Y42=1,Y$410=1),1,0)","v":0},{"$f":"IF(AND(Z42=1,Z$410=1),1,0)","v":1},{"$f":"IF(AND(AA42=1,AA$410=1),1,0)","v":0},{"$f":"IF(AND(AB42=1,AB$410=1),1,0)","v":0},{"$f":"IF(AND(AC42=1,AC$410=1),1,0)","v":0},{"$f":"IF(AND(AD42=1,AD$410=1),1,0)","v":0},{"$f":"IF(AND(AE42=1,AE$410=1),1,0)","v":0},{"$f":"IF(AND(AF42=1,AF$410=1),1,0)","v":0},1,{"$f":"IF(AND(AG42=1,AG$410=1),1,0)","v":0},{"$f":"IF(AND(AH42=1,AH$410=1),1,0)","v":0},{"$f":"IF(AND(AI42=1,AI$410=1),1,0)","v":0},{"$f":"IF(AND(AJ42=1,AJ$410=1),1,0)","v":0},{"$f":"IF(AND(AK42=1,AK$410=1),1,0)","v":0},{"$f":"IF(AND(AL42=1,AL$410=1),1,0)","v":0},{"$f":"IF(AND(AM42=1,AM$410=1),1,0)","v":0},{"$f":"IF(AND(AN42=1,AN$410=1),1,0)","v":0},{"$f":"IF(AND(AO42=1,AO$410=1),1,0)","v":0},1,{"$f":"IF(AND(AP42=1,AP$410=1),1,0)","v":0},{"$f":"IF(AND(AQ42=1,AQ$410=1),1,0)","v":0},{"$f":"IF(AND(AR42=1,AR$410=1),1,0)","v":1},{"$f":"IF(AND(AS42=1,AS$410=1),1,0)","v":0},{"$f":"IF(AND(AT42=1,AT$410=1),1,0)","v":0},1,1,34,34,{"$f":"IFERROR(SMALL($CL$9:$CL$408,CK42),\"\")","v":34},{"$f":"IFERROR(INDEX($B$9:$I$408,$CM42,COLUMNS($CN$9:CN42)),\"\")","v":"TA034"},{"$f":"IFERROR(INDEX($B$9:$I$408,$CM42,COLUMNS($CN$9:CO42)),\"\")","v":"Number of programme participants with increased awareness"},{"$f":"IFERROR(INDEX($B$9:$I$408,$CM42,COLUMNS($CN$9:CP42)),\"\")","v":"-"},{"$f":"IFERROR(INDEX($B$9:$I$408,$CM42,COLUMNS($CN$9:CQ42)),\"\")","v":"Output"},{"$f":"IFERROR(INDEX($B$9:$I$408,$CM42,COLUMNS($CN$9:CR42)),\"\")","v":"-"},{"$f":"IFERROR(INDEX($B$9:$I$408,$CM42,COLUMNS($CN$9:CS42)),\"\")","v":"Awareness raising"},{"$f":"IFERROR(INDEX($B$9:$I$408,$CM42,COLUMNS($CN$9:CT42)),\"\")","v":"-"},{"$f":"IFERROR(INDEX($B$9:$I$408,$CM42,COLUMNS($CN$9:CU42)),\"\")","v":"Number"}]
[null,{"$f":"IF(ISBLANK('TA Indicator Bank'!B39),\"\",'TA Indicator Bank'!B39)","v":"TA035"},{"$f":"IF(ISBLANK('TA Indicator Bank'!C39),\"\",'TA Indicator Bank'!C39)","v":"Number of project plans and studies produced"},{"$f":"IF(ISBLANK('TA Indicator Bank'!D39),\"\",'TA Indicator Bank'!D39)","v":"-"},{"$f":"IF(ISBLANK('TA Indicator Bank'!E39),\"\",'TA Indicator Bank'!E39)","v":"Activity"},{"$f":"IF(ISBLANK('TA Indicator Bank'!F39),\"\",'TA Indicator Bank'!F39)","v":"Project studies and plans"},{"$f":"IF(ISBLANK('TA Indicator Bank'!G39),\"\",'TA Indicator Bank'!G39)","v":"-"},{"$f":"IF(ISBLANK('TA Indicator Bank'!H39),\"\",'TA Indicator Bank'!H39)","v":"-"},{"$f":"IF(ISBLANK('TA Indicator Bank'!I39),\"\",'TA Indicator Bank'!I39)","v":"Number"},{"$f":"IF(ISBLANK('TA Indicator Bank'!J39),\"\",'TA Indicator Bank'!J39)","v":0},{"$f":"IF(ISBLANK('TA Indicator Bank'!K39),\"\",'TA Indicator Bank'!K39)","v":0},{"$f":"IF(ISBLANK('TA Indicator Bank'!L39),\"\",'TA Indicator Bank'!L39)","v":0},{"$f":"IF(ISBLANK('TA Indicator Bank'!M39),\"\",'TA Indicator Bank'!M39)","v":0},{"$f":"IF(ISBLANK('TA Indicator Bank'!N39),\"\",'TA Indicator Bank'!N39)","v":0},{"$f":"IF(ISBLANK('TA Indicator Bank'!O39),\"\",'TA Indicator Bank'!O39)","v":0},{"$f":"IF(ISBLANK('TA Indicator Bank'!P39),\"\",'TA Indicator Bank'!P39)","v":0},{"$f":"IF(ISBLANK('TA Indicator Bank'!Q39),\"\",'TA Indicator Bank'!Q39)","v":0},{"$f":"IF(ISBLANK('TA Indicator Bank'!R39),\"\",'TA Indicator Bank'!R39)","v":0},{"$f":"IF(ISBLANK('TA Indicator Bank'!S39),\"\",'TA Indicator Bank'!S39)","v":0},{"$f":"IF(ISBLANK('TA Indicator Bank'!T39),\"\",'TA Indicator Bank'!T39)","v":0},{"$f":"IF(ISBLANK('TA Indicator Bank'!U39),\"\",'TA Indicator Bank'!U39)","v":1},{"$f":"IF(ISBLANK('TA Indicator Bank'!V39),\"\",'TA Indicator Bank'!V39)","v":0},{"$f":"IF(ISBLANK('TA Indicator Bank'!W39),\"\",'TA Indicator Bank'!W39)","v":0},{"$f":"IF(ISBLANK('TA Indicator Bank'!X39),\"\",'TA Indicator Bank'!X39)","v":0},{"$f":"IF(ISBLANK('TA Indicator Bank'!Y39),\"\",'TA Indicator Bank'!Y39)","v":0},{"$f":"IF(ISBLANK('TA Indicator Bank'!Z39),\"\",'TA Indicator Bank'!Z39)","v":0},{"$f":"IF(ISBLANK('TA Indicator Bank'!AA39),\"\",'TA Indicator Bank'!AA39)","v":0},{"$f":"IF(ISBLANK('TA Indicator Bank'!AB39),\"\",'TA Indicator Bank'!AB39)","v":0},{"$f":"IF(ISBLANK('TA Indicator Bank'!AC39),\"\",'TA Indicator Bank'!AC39)","v":0},{"$f":"IF(ISBLANK('TA Indicator Bank'!AD39),\"\",'TA Indicator Bank'!AD39)","v":0},{"$f":"IF(ISBLANK('TA Indicator Bank'!AE39),\"\",'TA Indicator Bank'!AE39)","v":0},{"$f":"IF(ISBLANK('TA Indicator Bank'!AF39),\"\",'TA Indicator Bank'!AF39)","v":0},{"$f":"IF(ISBLANK('TA Indicator Bank'!AG39),\"\",'TA Indicator Bank'!AG39)","v":0},{"$f":"IF(ISBLANK('TA Indicator Bank'!AH39),\"\",'TA Indicator Bank'!AH39)","v":0},{"$f":"IF(ISBLANK('TA Indicator Bank'!AI39),\"\",'TA Indicator Bank'!AI39)","v":0},{"$f":"IF(ISBLANK('TA Indicator Bank'!AJ39),\"\",'TA Indicator Bank'!AJ39)","v":0},{"$f":"IF(ISBLANK('TA Indicator Bank'!AK39),\"\",'TA Indicator Bank'!AK39)","v":0},{"$f":"IF(ISBLANK('TA Indicator Bank'!AL39),\"\",'TA Indicator Bank'!AL39)","v":0},{"$f":"IF(ISBLANK('TA Indicator Bank'!AM39),\"\",'TA Indicator Bank'!AM39)","v":0},{"$f":"IF(ISBLANK('TA Indicator Bank'!AN39),\"\",'TA Indicator Bank'!AN39)","v":0},{"$f":"IF(ISBLANK('TA Indicator Bank'!AO39),\"\",'TA Indicator Bank'!AO39)","v":0},{"$f":"IF(ISBLANK('TA Indicator Bank'!AP39),\"\",'TA Indicator Bank'!AP39)","v":1},{"$f":"IF(ISBLANK('TA Indicator Bank'!AQ39),\"\",'TA Indicator Bank'!AQ39)","v":0},{"$f":"IF(ISBLANK('TA Indicator Bank'!AR39),\"\",'TA Indicator Bank'!AR39)","v":0},{"$f":"IF(ISBLANK('TA Indicator Bank'!AS39),\"\",'TA Indicator Bank'!AS39)","v":0},{"$f":"IF(ISBLANK('TA Indicator Bank'!AT39),\"\",'TA Indicator Bank'!AT39)","v":0},{"$f":"IF(AND(J43=1,J$410=1),1,0)","v":0},{"$f":"IF(AND(K43=1,K$410=1),1,0)","v":0},{"$f":"IF(AND(L43=1,L$410=1),1,0)","v":0},{"$f":"IF(AND(M43=1,M$410=1),1,0)","v":0},{"$f":"IF(AND(N43=1,N$410=1),1,0)","v":0},{"$f":"IF(AND(O43=1,O$410=1),1,0)","v":0},{"$f":"IF(AND(P43=1,P$410=1),1,0)","v":0},{"$f":"IF(AND(Q43=1,Q$410=1),1,0)","v":0},{"$f":"IF(AND(R43=1,R$410=1),1,0)","v":0},{"$f":"IF(AND(S43=1,S$410=1),1,0)","v":0},{"$f":"IF(AND(T43=1,T$410=1),1,0)","v":0},{"$f":"IF(AND(U43=1,U$410=1),1,0)","v":1},{"$f":"IF(AND(V43=1,V$410=1),1,0)","v":0},{"$f":"IF(AND(W43=1,W$410=1),1,0)","v":0},1,{"$f":"IF(AND(X43=1,X$410=1),1,0)","v":0},{"$f":"IF(AND(Y43=1,Y$410=1),1,0)","v":0},{"$f":"IF(AND(Z43=1,Z$410=1),1,0)","v":0},{"$f":"IF(AND(AA43=1,AA$410=1),1,0)","v":0},{"$f":"IF(AND(AB43=1,AB$410=1),1,0)","v":0},{"$f":"IF(AND(AC43=1,AC$410=1),1,0)","v":0},{"$f":"IF(AND(AD43=1,AD$410=1),1,0)","v":0},{"$f":"IF(AND(AE43=1,AE$410=1),1,0)","v":0},{"$f":"IF(AND(AF43=1,AF$410=1),1,0)","v":0},1,{"$f":"IF(AND(AG43=1,AG$410=1),1,0)","v":0},{"$f":"IF(AND(AH43=1,AH$410=1),1,0)","v":0},{"$f":"IF(AND(AI43=1,AI$410=1),1,0)","v":0},{"$f":"IF(AND(AJ43=1,AJ$410=1),1,0)","v":0},{"$f":"IF(AND(AK43=1,AK$410=1),1,0)","v":0},{"$f":"IF(AND(AL43=1,AL$410=1),1,0)","v":0},{"$f":"IF(AND(AM43=1,AM$410=1),1,0)","v":0},{"$f":"IF(AND(AN43=1,AN$410=1),1,0)","v":0},{"$f":"IF(AND(AO43=1,AO$410=1),1,0)","v":0},1,{"$f":"IF(AND(AP43=1,AP$410=1),1,0)","v":1},{"$f":"IF(AND(AQ43=1,AQ$410=1),1,0)","v":0},{"$f":"IF(AND(AR43=1,AR$410=1),1,0)","v":0},{"$f":"IF(AND(AS43=1,AS$410=1),1,0)","v":0},{"$f":"IF(AND(AT43=1,AT$410=1),1,0)","v":0},1,1,35,35,{"$f":"IFERROR(SMALL($CL$9:$CL$408,CK43),\"\")","v":35},{"$f":"IFERROR(INDEX($B$9:$I$408,$CM43,COLUMNS($CN$9:CN43)),\"\")","v":"TA035"},{"$f":"IFERROR(INDEX($B$9:$I$408,$CM43,COLUMNS($CN$9:CO43)),\"\")","v":"Number of project plans and studies produced"},{"$f":"IFERROR(INDEX($B$9:$I$408,$CM43,COLUMNS($CN$9:CP43)),\"\")","v":"-"},{"$f":"IFERROR(INDEX($B$9:$I$408,$CM43,COLUMNS($CN$9:CQ43)),\"\")","v":"Activity"},{"$f":"IFERROR(INDEX($B$9:$I$408,$CM43,COLUMNS($CN$9:CR43)),\"\")","v":"Project studies and plans"},{"$f":"IFERROR(INDEX($B$9:$I$408,$CM43,COLUMNS($CN$9:CS43)),\"\")","v":"-"},{"$f":"IFERROR(INDEX($B$9:$I$408,$CM43,COLUMNS($CN$9:CT43)),\"\")","v":"-"},{"$f":"IFERROR(INDEX($B$9:$I$408,$CM43,COLUMNS($CN$9:CU43)),\"\")","v":"Number"}]
[null,{"$f":"IF(ISBLANK('TA Indicator Bank'!B40),\"\",'TA Indicator Bank'!B40)","v":"TA036"},{"$f":"IF(ISBLANK('TA Indicator Bank'!C40),\"\",'TA Indicator Bank'!C40)","v":"Supported organisations create appropriate assessment framework for understanding internal operations"},{"$f":"IF(ISBLANK('TA Indicator Bank'!D40),\"\",'TA Indicator Bank'!D40)","v":"-"},{"$f":"IF(ISBLANK('TA Indicator Bank'!E40),\"\",'TA Indicator Bank'!E40)","v":"Activity"},{"$f":"IF(ISBLANK('TA Indicator Bank'!F40),\"\",'TA Indicator Bank'!F40)","v":"Project studies and plans"},{"$f":"IF(ISBLANK('TA Indicator Bank'!G40),\"\",'TA Indicator Bank'!G40)","v":"-"},{"$f":"IF(ISBLANK('TA Indicator Bank'!H40),\"\",'TA Indicator Bank'!H40)","v":"-"},{"$f":"IF(ISBLANK('TA Indicator Bank'!I40),\"\",'TA Indicator Bank'!I40)","v":"Yes/No"},{"$f":"IF(ISBLANK('TA Indicator Bank'!J40),\"\",'TA Indicator Bank'!J40)","v":0},{"$f":"IF(ISBLANK('TA Indicator Bank'!K40),\"\",'TA Indicator Bank'!K40)","v":0},{"$f":"IF(ISBLANK('TA Indicator Bank'!L40),\"\",'TA Indicator Bank'!L40)","v":0},{"$f":"IF(ISBLANK('TA Indicator Bank'!M40),\"\",'TA Indicator Bank'!M40)","v":0},{"$f":"IF(ISBLANK('TA Indicator Bank'!N40),\"\",'TA Indicator Bank'!N40)","v":0},{"$f":"IF(ISBLANK('TA Indicator Bank'!O40),\"\",'TA Indicator Bank'!O40)","v":0},{"$f":"IF(ISBLANK('TA Indicator Bank'!P40),\"\",'TA Indicator Bank'!P40)","v":0},{"$f":"IF(ISBLANK('TA Indicator Bank'!Q40),\"\",'TA Indicator Bank'!Q40)","v":0},{"$f":"IF(ISBLANK('TA Indicator Bank'!R40),\"\",'TA Indicator Bank'!R40)","v":0},{"$f":"IF(ISBLANK('TA Indicator Bank'!S40),\"\",'TA Indicator Bank'!S40)","v":0},{"$f":"IF(ISBLANK('TA Indicator Bank'!T40),\"\",'TA Indicator Bank'!T40)","v":0},{"$f":"IF(ISBLANK('TA Indicator Bank'!U40),\"\",'TA Indicator Bank'!U40)","v":1},{"$f":"IF(ISBLANK('TA Indicator Bank'!V40),\"\",'TA Indicator Bank'!V40)","v":0},{"$f":"IF(ISBLANK('TA Indicator Bank'!W40),\"\",'TA Indicator Bank'!W40)","v":0},{"$f":"IF(ISBLANK('TA Indicator Bank'!X40),\"\",'TA Indicator Bank'!X40)","v":0},{"$f":"IF(ISBLANK('TA Indicator Bank'!Y40),\"\",'TA Indicator Bank'!Y40)","v":0},{"$f":"IF(ISBLANK('TA Indicator Bank'!Z40),\"\",'TA Indicator Bank'!Z40)","v":0},{"$f":"IF(ISBLANK('TA Indicator Bank'!AA40),\"\",'TA Indicator Bank'!AA40)","v":0},{"$f":"IF(ISBLANK('TA Indicator Bank'!AB40),\"\",'TA Indicator Bank'!AB40)","v":0},{"$f":"IF(ISBLANK('TA Indicator Bank'!AC40),\"\",'TA Indicator Bank'!AC40)","v":0},{"$f":"IF(ISBLANK('TA Indicator Bank'!AD40),\"\",'TA Indicator Bank'!AD40)","v":0},{"$f":"IF(ISBLANK('TA Indicator Bank'!AE40),\"\",'TA Indicator Bank'!AE40)","v":0},{"$f":"IF(ISBLANK('TA Indicator Bank'!AF40),\"\",'TA Indicator Bank'!AF40)","v":0},{"$f":"IF(ISBLANK('TA Indicator Bank'!AG40),\"\",'TA Indicator Bank'!AG40)","v":0},{"$f":"IF(ISBLANK('TA Indicator Bank'!AH40),\"\",'TA Indicator Bank'!AH40)","v":0},{"$f":"IF(ISBLANK('TA Indicator Bank'!AI40),\"\",'TA Indicator Bank'!AI40)","v":0},{"$f":"IF(ISBLANK('TA Indicator Bank'!AJ40),\"\",'TA Indicator Bank'!AJ40)","v":0},{"$f":"IF(ISBLANK('TA Indicator Bank'!AK40),\"\",'TA Indicator Bank'!AK40)","v":0},{"$f":"IF(ISBLANK('TA Indicator Bank'!AL40),\"\",'TA Indicator Bank'!AL40)","v":0},{"$f":"IF(ISBLANK('TA Indicator Bank'!AM40),\"\",'TA Indicator Bank'!AM40)","v":0},{"$f":"IF(ISBLANK('TA Indicator Bank'!AN40),\"\",'TA Indicator Bank'!AN40)","v":0},{"$f":"IF(ISBLANK('TA Indicator Bank'!AO40),\"\",'TA Indicator Bank'!AO40)","v":0},{"$f":"IF(ISBLANK('TA Indicator Bank'!AP40),\"\",'TA Indicator Bank'!AP40)","v":1},{"$f":"IF(ISBLANK('TA Indicator Bank'!AQ40),\"\",'TA Indicator Bank'!AQ40)","v":0},{"$f":"IF(ISBLANK('TA Indicator Bank'!AR40),\"\",'TA Indicator Bank'!AR40)","v":0},{"$f":"IF(ISBLANK('TA Indicator Bank'!AS40),\"\",'TA Indicator Bank'!AS40)","v":0},{"$f":"IF(ISBLANK('TA Indicator Bank'!AT40),\"\",'TA Indicator Bank'!AT40)","v":0},{"$f":"IF(AND(J44=1,J$410=1),1,0)","v":0},{"$f":"IF(AND(K44=1,K$410=1),1,0)","v":0},{"$f":"IF(AND(L44=1,L$410=1),1,0)","v":0},{"$f":"IF(AND(M44=1,M$410=1),1,0)","v":0},{"$f":"IF(AND(N44=1,N$410=1),1,0)","v":0},{"$f":"IF(AND(O44=1,O$410=1),1,0)","v":0},{"$f":"IF(AND(P44=1,P$410=1),1,0)","v":0},{"$f":"IF(AND(Q44=1,Q$410=1),1,0)","v":0},{"$f":"IF(AND(R44=1,R$410=1),1,0)","v":0},{"$f":"IF(AND(S44=1,S$410=1),1,0)","v":0},{"$f":"IF(AND(T44=1,T$410=1),1,0)","v":0},{"$f":"IF(AND(U44=1,U$410=1),1,0)","v":1},{"$f":"IF(AND(V44=1,V$410=1),1,0)","v":0},{"$f":"IF(AND(W44=1,W$410=1),1,0)","v":0},1,{"$f":"IF(AND(X44=1,X$410=1),1,0)","v":0},{"$f":"IF(AND(Y44=1,Y$410=1),1,0)","v":0},{"$f":"IF(AND(Z44=1,Z$410=1),1,0)","v":0},{"$f":"IF(AND(AA44=1,AA$410=1),1,0)","v":0},{"$f":"IF(AND(AB44=1,AB$410=1),1,0)","v":0},{"$f":"IF(AND(AC44=1,AC$410=1),1,0)","v":0},{"$f":"IF(AND(AD44=1,AD$410=1),1,0)","v":0},{"$f":"IF(AND(AE44=1,AE$410=1),1,0)","v":0},{"$f":"IF(AND(AF44=1,AF$410=1),1,0)","v":0},1,{"$f":"IF(AND(AG44=1,AG$410=1),1,0)","v":0},{"$f":"IF(AND(AH44=1,AH$410=1),1,0)","v":0},{"$f":"IF(AND(AI44=1,AI$410=1),1,0)","v":0},{"$f":"IF(AND(AJ44=1,AJ$410=1),1,0)","v":0},{"$f":"IF(AND(AK44=1,AK$410=1),1,0)","v":0},{"$f":"IF(AND(AL44=1,AL$410=1),1,0)","v":0},{"$f":"IF(AND(AM44=1,AM$410=1),1,0)","v":0},{"$f":"IF(AND(AN44=1,AN$410=1),1,0)","v":0},{"$f":"IF(AND(AO44=1,AO$410=1),1,0)","v":0},1,{"$f":"IF(AND(AP44=1,AP$410=1),1,0)","v":1},{"$f":"IF(AND(AQ44=1,AQ$410=1),1,0)","v":0},{"$f":"IF(AND(AR44=1,AR$410=1),1,0)","v":0},{"$f":"IF(AND(AS44=1,AS$410=1),1,0)","v":0},{"$f":"IF(AND(AT44=1,AT$410=1),1,0)","v":0},1,1,36,36,{"$f":"IFERROR(SMALL($CL$9:$CL$408,CK44),\"\")","v":36},{"$f":"IFERROR(INDEX($B$9:$I$408,$CM44,COLUMNS($CN$9:CN44)),\"\")","v":"TA036"},{"$f":"IFERROR(INDEX($B$9:$I$408,$CM44,COLUMNS($CN$9:CO44)),\"\")","v":"Supported organisations create appropriate assessment framework for understanding internal operations"},{"$f":"IFERROR(INDEX($B$9:$I$408,$CM44,COLUMNS($CN$9:CP44)),\"\")","v":"-"},{"$f":"IFERROR(INDEX($B$9:$I$408,$CM44,COLUMNS($CN$9:CQ44)),\"\")","v":"Activity"},{"$f":"IFERROR(INDEX($B$9:$I$408,$CM44,COLUMNS($CN$9:CR44)),\"\")","v":"Project studies and plans"},{"$f":"IFERROR(INDEX($B$9:$I$408,$CM44,COLUMNS($CN$9:CS44)),\"\")","v":"-"},{"$f":"IFERROR(INDEX($B$9:$I$408,$CM44,COLUMNS($CN$9:CT44)),\"\")","v":"-"},{"$f":"IFERROR(INDEX($B$9:$I$408,$CM44,COLUMNS($CN$9:CU44)),\"\")","v":"Yes/No"}]
[null,{"$f":"IF(ISBLANK('TA Indicator Bank'!B41),\"\",'TA Indicator Bank'!B41)","v":"TA037"},{"$f":"IF(ISBLANK('TA Indicator Bank'!C41),\"\",'TA Indicator Bank'!C41)","v":"Number of relevant and high-quality evidence products produced (e.g. evaluations, impact assessments, research studies)"},{"$f":"IF(ISBLANK('TA Indicator Bank'!D41),\"\",'TA Indicator Bank'!D41)","v":"-"},{"$f":"IF(ISBLANK('TA Indicator Bank'!E41),\"\",'TA Indicator Bank'!E41)","v":"Activity"},{"$f":"IF(ISBLANK('TA Indicator Bank'!F41),\"\",'TA Indicator Bank'!F41)","v":"Project studies and plans"},{"$f":"IF(ISBLANK('TA Indicator Bank'!G41),\"\",'TA Indicator Bank'!G41)","v":"-"},{"$f":"IF(ISBLANK('TA Indicator Bank'!H41),\"\",'TA Indicator Bank'!H41)","v":"-"},{"$f":"IF(ISBLANK('TA Indicator Bank'!I41),\"\",'TA Indicator Bank'!I41)","v":"Number"},{"$f":"IF(ISBLANK('TA Indicator Bank'!J41),\"\",'TA Indicator Bank'!J41)","v":0},{"$f":"IF(ISBLANK('TA Indicator Bank'!K41),\"\",'TA Indicator Bank'!K41)","v":0},{"$f":"IF(ISBLANK('TA Indicator Bank'!L41),\"\",'TA Indicator Bank'!L41)","v":0},{"$f":"IF(ISBLANK('TA Indicator Bank'!M41),\"\",'TA Indicator Bank'!M41)","v":0},{"$f":"IF(ISBLANK('TA Indicator Bank'!N41),\"\",'TA Indicator Bank'!N41)","v":0},{"$f":"IF(ISBLANK('TA Indicator Bank'!O41),\"\",'TA Indicator Bank'!O41)","v":0},{"$f":"IF(ISBLANK('TA Indicator Bank'!P41),\"\",'TA Indicator Bank'!P41)","v":0},{"$f":"IF(ISBLANK('TA Indicator Bank'!Q41),\"\",'TA Indicator Bank'!Q41)","v":0},{"$f":"IF(ISBLANK('TA Indicator Bank'!R41),\"\",'TA Indicator Bank'!R41)","v":0},{"$f":"IF(ISBLANK('TA Indicator Bank'!S41),\"\",'TA Indicator Bank'!S41)","v":0},{"$f":"IF(ISBLANK('TA Indicator Bank'!T41),\"\",'TA Indicator Bank'!T41)","v":0},{"$f":"IF(ISBLANK('TA Indicator Bank'!U41),\"\",'TA Indicator Bank'!U41)","v":1},{"$f":"IF(ISBLANK('TA Indicator Bank'!V41),\"\",'TA Indicator Bank'!V41)","v":0},{"$f":"IF(ISBLANK('TA Indicator Bank'!W41),\"\",'TA Indicator Bank'!W41)","v":0},{"$f":"IF(ISBLANK('TA Indicator Bank'!X41),\"\",'TA Indicator Bank'!X41)","v":0},{"$f":"IF(ISBLANK('TA Indicator Bank'!Y41),\"\",'TA Indicator Bank'!Y41)","v":0},{"$f":"IF(ISBLANK('TA Indicator Bank'!Z41),\"\",'TA Indicator Bank'!Z41)","v":0},{"$f":"IF(ISBLANK('TA Indicator Bank'!AA41),\"\",'TA Indicator Bank'!AA41)","v":0},{"$f":"IF(ISBLANK('TA Indicator Bank'!AB41),\"\",'TA Indicator Bank'!AB41)","v":0},{"$f":"IF(ISBLANK('TA Indicator Bank'!AC41),\"\",'TA Indicator Bank'!AC41)","v":0},{"$f":"IF(ISBLANK('TA Indicator Bank'!AD41),\"\",'TA Indicator Bank'!AD41)","v":0},{"$f":"IF(ISBLANK('TA Indicator Bank'!AE41),\"\",'TA Indicator Bank'!AE41)","v":0},{"$f":"IF(ISBLANK('TA Indicator Bank'!AF41),\"\",'TA Indicator Bank'!AF41)","v":0},{"$f":"IF(ISBLANK('TA Indicator Bank'!AG41),\"\",'TA Indicator Bank'!AG41)","v":0},{"$f":"IF(ISBLANK('TA Indicator Bank'!AH41),\"\",'TA Indicator Bank'!AH41)","v":0},{"$f":"IF(ISBLANK('TA Indicator Bank'!AI41),\"\",'TA Indicator Bank'!AI41)","v":0},{"$f":"IF(ISBLANK('TA Indicator Bank'!AJ41),\"\",'TA Indicator Bank'!AJ41)","v":0},{"$f":"IF(ISBLANK('TA Indicator Bank'!AK41),\"\",'TA Indicator Bank'!AK41)","v":0},{"$f":"IF(ISBLANK('TA Indicator Bank'!AL41),\"\",'TA Indicator Bank'!AL41)","v":0},{"$f":"IF(ISBLANK('TA Indicator Bank'!AM41),\"\",'TA Indicator Bank'!AM41)","v":0},{"$f":"IF(ISBLANK('TA Indicator Bank'!AN41),\"\",'TA Indicator Bank'!AN41)","v":0},{"$f":"IF(ISBLANK('TA Indicator Bank'!AO41),\"\",'TA Indicator Bank'!AO41)","v":0},{"$f":"IF(ISBLANK('TA Indicator Bank'!AP41),\"\",'TA Indicator Bank'!AP41)","v":1},{"$f":"IF(ISBLANK('TA Indicator Bank'!AQ41),\"\",'TA Indicator Bank'!AQ41)","v":0},{"$f":"IF(ISBLANK('TA Indicator Bank'!AR41),\"\",'TA Indicator Bank'!AR41)","v":0},{"$f":"IF(ISBLANK('TA Indicator Bank'!AS41),\"\",'TA Indicator Bank'!AS41)","v":0},{"$f":"IF(ISBLANK('TA Indicator Bank'!AT41),\"\",'TA Indicator Bank'!AT41)","v":0},{"$f":"IF(AND(J45=1,J$410=1),1,0)","v":0},{"$f":"IF(AND(K45=1,K$410=1),1,0)","v":0},{"$f":"IF(AND(L45=1,L$410=1),1,0)","v":0},{"$f":"IF(AND(M45=1,M$410=1),1,0)","v":0},{"$f":"IF(AND(N45=1,N$410=1),1,0)","v":0},{"$f":"IF(AND(O45=1,O$410=1),1,0)","v":0},{"$f":"IF(AND(P45=1,P$410=1),1,0)","v":0},{"$f":"IF(AND(Q45=1,Q$410=1),1,0)","v":0},{"$f":"IF(AND(R45=1,R$410=1),1,0)","v":0},{"$f":"IF(AND(S45=1,S$410=1),1,0)","v":0},{"$f":"IF(AND(T45=1,T$410=1),1,0)","v":0},{"$f":"IF(AND(U45=1,U$410=1),1,0)","v":1},{"$f":"IF(AND(V45=1,V$410=1),1,0)","v":0},{"$f":"IF(AND(W45=1,W$410=1),1,0)","v":0},1,{"$f":"IF(AND(X45=1,X$410=1),1,0)","v":0},{"$f":"IF(AND(Y45=1,Y$410=1),1,0)","v":0},{"$f":"IF(AND(Z45=1,Z$410=1),1,0)","v":0},{"$f":"IF(AND(AA45=1,AA$410=1),1,0)","v":0},{"$f":"IF(AND(AB45=1,AB$410=1),1,0)","v":0},{"$f":"IF(AND(AC45=1,AC$410=1),1,0)","v":0},{"$f":"IF(AND(AD45=1,AD$410=1),1,0)","v":0},{"$f":"IF(AND(AE45=1,AE$410=1),1,0)","v":0},{"$f":"IF(AND(AF45=1,AF$410=1),1,0)","v":0},1,{"$f":"IF(AND(AG45=1,AG$410=1),1,0)","v":0},{"$f":"IF(AND(AH45=1,AH$410=1),1,0)","v":0},{"$f":"IF(AND(AI45=1,AI$410=1),1,0)","v":0},{"$f":"IF(AND(AJ45=1,AJ$410=1),1,0)","v":0},{"$f":"IF(AND(AK45=1,AK$410=1),1,0)","v":0},{"$f":"IF(AND(AL45=1,AL$410=1),1,0)","v":0},{"$f":"IF(AND(AM45=1,AM$410=1),1,0)","v":0},{"$f":"IF(AND(AN45=1,AN$410=1),1,0)","v":0},{"$f":"IF(AND(AO45=1,AO$410=1),1,0)","v":0},1,{"$f":"IF(AND(AP45=1,AP$410=1),1,0)","v":1},{"$f":"IF(AND(AQ45=1,AQ$410=1),1,0)","v":0},{"$f":"IF(AND(AR45=1,AR$410=1),1,0)","v":0},{"$f":"IF(AND(AS45=1,AS$410=1),1,0)","v":0},{"$f":"IF(AND(AT45=1,AT$410=1),1,0)","v":0},1,1,37,37,{"$f":"IFERROR(SMALL($CL$9:$CL$408,CK45),\"\")","v":37},{"$f":"IFERROR(INDEX($B$9:$I$408,$CM45,COLUMNS($CN$9:CN45)),\"\")","v":"TA037"},{"$f":"IFERROR(INDEX($B$9:$I$408,$CM45,COLUMNS($CN$9:CO45)),\"\")","v":"Number of relevant and high-quality evidence products produced (e.g. evaluations, impact assessments, research studies)"},{"$f":"IFERROR(INDEX($B$9:$I$408,$CM45,COLUMNS($CN$9:CP45)),\"\")","v":"-"},{"$f":"IFERROR(INDEX($B$9:$I$408,$CM45,COLUMNS($CN$9:CQ45)),\"\")","v":"Activity"},{"$f":"IFERROR(INDEX($B$9:$I$408,$CM45,COLUMNS($CN$9:CR45)),\"\")","v":"Project studies and plans"},{"$f":"IFERROR(INDEX($B$9:$I$408,$CM45,COLUMNS($CN$9:CS45)),\"\")","v":"-"},{"$f":"IFERROR(INDEX($B$9:$I$408,$CM45,COLUMNS($CN$9:CT45)),\"\")","v":"-"},{"$f":"IFERROR(INDEX($B$9:$I$408,$CM45,COLUMNS($CN$9:CU45)),\"\")","v":"Number"}]
[null,{"$f":"IF(ISBLANK('TA Indicator Bank'!B42),\"\",'TA Indicator Bank'!B42)","v":"TA038"},{"$f":"IF(ISBLANK('TA Indicator Bank'!C42),\"\",'TA Indicator Bank'!C42)","v":"Number of supported organisations with modernisation plans"},{"$f":"IF(ISBLANK('TA Indicator Bank'!D42),\"\",'TA Indicator Bank'!D42)","v":"-"},{"$f":"IF(ISBLANK('TA Indicator Bank'!E42),\"\",'TA Indicator Bank'!E42)","v":"Output"},{"$f":"IF(ISBLANK('TA Indicator Bank'!F42),\"\",'TA Indicator Bank'!F42)","v":"-"},{"$f":"IF(ISBLANK('TA Indicator Bank'!G42),\"\",'TA Indicator Bank'!G42)","v":"Process/asset operation support"},{"$f":"IF(ISBLANK('TA Indicator Bank'!H42),\"\",'TA Indicator Bank'!H42)","v":"-"},{"$f":"IF(ISBLANK('TA Indicator Bank'!I42),\"\",'TA Indicator Bank'!I42)","v":"Number"},{"$f":"IF(ISBLANK('TA Indicator Bank'!J42),\"\",'TA Indicator Bank'!J42)","v":0},{"$f":"IF(ISBLANK('TA Indicator Bank'!K42),\"\",'TA Indicator Bank'!K42)","v":0},{"$f":"IF(ISBLANK('TA Indicator Bank'!L42),\"\",'TA Indicator Bank'!L42)","v":0},{"$f":"IF(ISBLANK('TA Indicator Bank'!M42),\"\",'TA Indicator Bank'!M42)","v":0},{"$f":"IF(ISBLANK('TA Indicator Bank'!N42),\"\",'TA Indicator Bank'!N42)","v":0},{"$f":"IF(ISBLANK('TA Indicator Bank'!O42),\"\",'TA Indicator Bank'!O42)","v":0},{"$f":"IF(ISBLANK('TA Indicator Bank'!P42),\"\",'TA Indicator Bank'!P42)","v":0},{"$f":"IF(ISBLANK('TA Indicator Bank'!Q42),\"\",'TA Indicator Bank'!Q42)","v":0},{"$f":"IF(ISBLANK('TA Indicator Bank'!R42),\"\",'TA Indicator Bank'!R42)","v":0},{"$f":"IF(ISBLANK('TA Indicator Bank'!S42),\"\",'TA Indicator Bank'!S42)","v":0},{"$f":"IF(ISBLANK('TA Indicator Bank'!T42),\"\",'TA Indicator Bank'!T42)","v":0},{"$f":"IF(ISBLANK('TA Indicator Bank'!U42),\"\",'TA Indicator Bank'!U42)","v":0},{"$f":"IF(ISBLANK('TA Indicator Bank'!V42),\"\",'TA Indicator Bank'!V42)","v":0},{"$f":"IF(ISBLANK('TA Indicator Bank'!W42),\"\",'TA Indicator Bank'!W42)","v":0},{"$f":"IF(ISBLANK('TA Indicator Bank'!X42),\"\",'TA Indicator Bank'!X42)","v":0},{"$f":"IF(ISBLANK('TA Indicator Bank'!Y42),\"\",'TA Indicator Bank'!Y42)","v":0},{"$f":"IF(ISBLANK('TA Indicator Bank'!Z42),\"\",'TA Indicator Bank'!Z42)","v":0},{"$f":"IF(ISBLANK('TA Indicator Bank'!AA42),\"\",'TA Indicator Bank'!AA42)","v":0},{"$f":"IF(ISBLANK('TA Indicator Bank'!AB42),\"\",'TA Indicator Bank'!AB42)","v":0},{"$f":"IF(ISBLANK('TA Indicator Bank'!AC42),\"\",'TA Indicator Bank'!AC42)","v":0},{"$f":"IF(ISBLANK('TA Indicator Bank'!AD42),\"\",'TA Indicator Bank'!AD42)","v":1},{"$f":"IF(ISBLANK('TA Indicator Bank'!AE42),\"\",'TA Indicator Bank'!AE42)","v":0},{"$f":"IF(ISBLANK('TA Indicator Bank'!AF42),\"\",'TA Indicator Bank'!AF42)","v":0},{"$f":"IF(ISBLANK('TA Indicator Bank'!AG42),\"\",'TA Indicator Bank'!AG42)","v":0},{"$f":"IF(ISBLANK('TA Indicator Bank'!AH42),\"\",'TA Indicator Bank'!AH42)","v":0},{"$f":"IF(ISBLANK('TA Indicator Bank'!AI42),\"\",'TA Indicator Bank'!AI42)","v":0},{"$f":"IF(ISBLANK('TA Indicator Bank'!AJ42),\"\",'TA Indicator Bank'!AJ42)","v":0},{"$f":"IF(ISBLANK('TA Indicator Bank'!AK42),\"\",'TA Indicator Bank'!AK42)","v":0},{"$f":"IF(ISBLANK('TA Indicator Bank'!AL42),\"\",'TA Indicator Bank'!AL42)","v":0},{"$f":"IF(ISBLANK('TA Indicator Bank'!AM42),\"\",'TA Indicator Bank'!AM42)","v":0},{"$f":"IF(ISBLANK('TA Indicator Bank'!AN42),\"\",'TA Indicator Bank'!AN42)","v":0},{"$f":"IF(ISBLANK('TA Indicator Bank'!AO42),\"\",'TA Indicator Bank'!AO42)","v":0},{"$f":"IF(ISBLANK('TA Indicator Bank'!AP42),\"\",'TA Indicator Bank'!AP42)","v":0},{"$f":"IF(ISBLANK('TA Indicator Bank'!AQ42),\"\",'TA Indicator Bank'!AQ42)","v":0},{"$f":"IF(ISBLANK('TA Indicator Bank'!AR42),\"\",'TA Indicator Bank'!AR42)","v":1},{"$f":"IF(ISBLANK('TA Indicator Bank'!AS42),\"\",'TA Indicator Bank'!AS42)","v":0},{"$f":"IF(ISBLANK('TA Indicator Bank'!AT42),\"\",'TA Indicator Bank'!AT42)","v":0},{"$f":"IF(AND(J46=1,J$410=1),1,0)","v":0},{"$f":"IF(AND(K46=1,K$410=1),1,0)","v":0},{"$f":"IF(AND(L46=1,L$410=1),1,0)","v":0},{"$f":"IF(AND(M46=1,M$410=1),1,0)","v":0},{"$f":"IF(AND(N46=1,N$410=1),1,0)","v":0},{"$f":"IF(AND(O46=1,O$410=1),1,0)","v":0},{"$f":"IF(AND(P46=1,P$410=1),1,0)","v":0},{"$f":"IF(AND(Q46=1,Q$410=1),1,0)","v":0},{"$f":"IF(AND(R46=1,R$410=1),1,0)","v":0},{"$f":"IF(AND(S46=1,S$410=1),1,0)","v":0},{"$f":"IF(AND(T46=1,T$410=1),1,0)","v":0},{"$f":"IF(AND(U46=1,U$410=1),1,0)","v":0},{"$f":"IF(AND(V46=1,V$410=1),1,0)","v":0},{"$f":"IF(AND(W46=1,W$410=1),1,0)","v":0},1,{"$f":"IF(AND(X46=1,X$410=1),1,0)","v":0},{"$f":"IF(AND(Y46=1,Y$410=1),1,0)","v":0},{"$f":"IF(AND(Z46=1,Z$410=1),1,0)","v":0},{"$f":"IF(AND(AA46=1,AA$410=1),1,0)","v":0},{"$f":"IF(AND(AB46=1,AB$410=1),1,0)","v":0},{"$f":"IF(AND(AC46=1,AC$410=1),1,0)","v":0},{"$f":"IF(AND(AD46=1,AD$410=1),1,0)","v":1},{"$f":"IF(AND(AE46=1,AE$410=1),1,0)","v":0},{"$f":"IF(AND(AF46=1,AF$410=1),1,0)","v":0},1,{"$f":"IF(AND(AG46=1,AG$410=1),1,0)","v":0},{"$f":"IF(AND(AH46=1,AH$410=1),1,0)","v":0},{"$f":"IF(AND(AI46=1,AI$410=1),1,0)","v":0},{"$f":"IF(AND(AJ46=1,AJ$410=1),1,0)","v":0},{"$f":"IF(AND(AK46=1,AK$410=1),1,0)","v":0},{"$f":"IF(AND(AL46=1,AL$410=1),1,0)","v":0},{"$f":"IF(AND(AM46=1,AM$410=1),1,0)","v":0},{"$f":"IF(AND(AN46=1,AN$410=1),1,0)","v":0},{"$f":"IF(AND(AO46=1,AO$410=1),1,0)","v":0},1,{"$f":"IF(AND(AP46=1,AP$410=1),1,0)","v":0},{"$f":"IF(AND(AQ46=1,AQ$410=1),1,0)","v":0},{"$f":"IF(AND(AR46=1,AR$410=1),1,0)","v":1},{"$f":"IF(AND(AS46=1,AS$410=1),1,0)","v":0},{"$f":"IF(AND(AT46=1,AT$410=1),1,0)","v":0},1,1,38,38,{"$f":"IFERROR(SMALL($CL$9:$CL$408,CK46),\"\")","v":38},{"$f":"IFERROR(INDEX($B$9:$I$408,$CM46,COLUMNS($CN$9:CN46)),\"\")","v":"TA038"},{"$f":"IFERROR(INDEX($B$9:$I$408,$CM46,COLUMNS($CN$9:CO46)),\"\")","v":"Number of supported organisations with modernisation plans"},{"$f":"IFERROR(INDEX($B$9:$I$408,$CM46,COLUMNS($CN$9:CP46)),\"\")","v":"-"},{"$f":"IFERROR(INDEX($B$9:$I$408,$CM46,COLUMNS($CN$9:CQ46)),\"\")","v":"Output"},{"$f":"IFERROR(INDEX($B$9:$I$408,$CM46,COLUMNS($CN$9:CR46)),\"\")","v":"-"},{"$f":"IFERROR(INDEX($B$9:$I$408,$CM46,COLUMNS($CN$9:CS46)),\"\")","v":"Process/asset operation support"},{"$f":"IFERROR(INDEX($B$9:$I$408,$CM46,COLUMNS($CN$9:CT46)),\"\")","v":"-"},{"$f":"IFERROR(INDEX($B$9:$I$408,$CM46,COLUMNS($CN$9:CU46)),\"\")","v":"Number"}]
[null,{"$f":"IF(ISBLANK('TA Indicator Bank'!B43),\"\",'TA Indicator Bank'!B43)","v":"TA039"},{"$f":"IF(ISBLANK('TA Indicator Bank'!C43),\"\",'TA Indicator Bank'!C43)","v":"Number of evidence products (e.g. evaluations, impact assessments, research studies)"},{"$f":"IF(ISBLANK('TA Indicator Bank'!D43),\"\",'TA Indicator Bank'!D43)","v":"-"},{"$f":"IF(ISBLANK('TA Indicator Bank'!E43),\"\",'TA Indicator Bank'!E43)","v":"Activity"},{"$f":"IF(ISBLANK('TA Indicator Bank'!F43),\"\",'TA Indicator Bank'!F43)","v":"Project studies and plans"},{"$f":"IF(ISBLANK('TA Indicator Bank'!G43),\"\",'TA Indicator Bank'!G43)","v":"-"},{"$f":"IF(ISBLANK('TA Indicator Bank'!H43),\"\",'TA Indicator Bank'!H43)","v":"-"},{"$f":"IF(ISBLANK('TA Indicator Bank'!I43),\"\",'TA Indicator Bank'!I43)","v":"Number"},{"$f":"IF(ISBLANK('TA Indicator Bank'!J43),\"\",'TA Indicator Bank'!J43)","v":0},{"$f":"IF(ISBLANK('TA Indicator Bank'!K43),\"\",'TA Indicator Bank'!K43)","v":0},{"$f":"IF(ISBLANK('TA Indicator Bank'!L43),\"\",'TA Indicator Bank'!L43)","v":0},{"$f":"IF(ISBLANK('TA Indicator Bank'!M43),\"\",'TA Indicator Bank'!M43)","v":0},{"$f":"IF(ISBLANK('TA Indicator Bank'!N43),\"\",'TA Indicator Bank'!N43)","v":0},{"$f":"IF(ISBLANK('TA Indicator Bank'!O43),\"\",'TA Indicator Bank'!O43)","v":0},{"$f":"IF(ISBLANK('TA Indicator Bank'!P43),\"\",'TA Indicator Bank'!P43)","v":0},{"$f":"IF(ISBLANK('TA Indicator Bank'!Q43),\"\",'TA Indicator Bank'!Q43)","v":0},{"$f":"IF(ISBLANK('TA Indicator Bank'!R43),\"\",'TA Indicator Bank'!R43)","v":0},{"$f":"IF(ISBLANK('TA Indicator Bank'!S43),\"\",'TA Indicator Bank'!S43)","v":0},{"$f":"IF(ISBLANK('TA Indicator Bank'!T43),\"\",'TA Indicator Bank'!T43)","v":0},{"$f":"IF(ISBLANK('TA Indicator Bank'!U43),\"\",'TA Indicator Bank'!U43)","v":1},{"$f":"IF(ISBLANK('TA Indicator Bank'!V43),\"\",'TA Indicator Bank'!V43)","v":0},{"$f":"IF(ISBLANK('TA Indicator Bank'!W43),\"\",'TA Indicator Bank'!W43)","v":0},{"$f":"IF(ISBLANK('TA Indicator Bank'!X43),\"\",'TA Indicator Bank'!X43)","v":0},{"$f":"IF(ISBLANK('TA Indicator Bank'!Y43),\"\",'TA Indicator Bank'!Y43)","v":0},{"$f":"IF(ISBLANK('TA Indicator Bank'!Z43),\"\",'TA Indicator Bank'!Z43)","v":0},{"$f":"IF(ISBLANK('TA Indicator Bank'!AA43),\"\",'TA Indicator Bank'!AA43)","v":0},{"$f":"IF(ISBLANK('TA Indicator Bank'!AB43),\"\",'TA Indicator Bank'!AB43)","v":0},{"$f":"IF(ISBLANK('TA Indicator Bank'!AC43),\"\",'TA Indicator Bank'!AC43)","v":0},{"$f":"IF(ISBLANK('TA Indicator Bank'!AD43),\"\",'TA Indicator Bank'!AD43)","v":0},{"$f":"IF(ISBLANK('TA Indicator Bank'!AE43),\"\",'TA Indicator Bank'!AE43)","v":0},{"$f":"IF(ISBLANK('TA Indicator Bank'!AF43),\"\",'TA Indicator Bank'!AF43)","v":0},{"$f":"IF(ISBLANK('TA Indicator Bank'!AG43),\"\",'TA Indicator Bank'!AG43)","v":0},{"$f":"IF(ISBLANK('TA Indicator Bank'!AH43),\"\",'TA Indicator Bank'!AH43)","v":0},{"$f":"IF(ISBLANK('TA Indicator Bank'!AI43),\"\",'TA Indicator Bank'!AI43)","v":0},{"$f":"IF(ISBLANK('TA Indicator Bank'!AJ43),\"\",'TA Indicator Bank'!AJ43)","v":0},{"$f":"IF(ISBLANK('TA Indicator Bank'!AK43),\"\",'TA Indicator Bank'!AK43)","v":0},{"$f":"IF(ISBLANK('TA Indicator Bank'!AL43),\"\",'TA Indicator Bank'!AL43)","v":0},{"$f":"IF(ISBLANK('TA Indicator Bank'!AM43),\"\",'TA Indicator Bank'!AM43)","v":0},{"$f":"IF(ISBLANK('TA Indicator Bank'!AN43),\"\",'TA Indicator Bank'!AN43)","v":0},{"$f":"IF(ISBLANK('TA Indicator Bank'!AO43),\"\",'TA Indicator Bank'!AO43)","v":0},{"$f":"IF(ISBLANK('TA Indicator Bank'!AP43),\"\",'TA Indicator Bank'!AP43)","v":1},{"$f":"IF(ISBLANK('TA Indicator Bank'!AQ43),\"\",'TA Indicator Bank'!AQ43)","v":0},{"$f":"IF(ISBLANK('TA Indicator Bank'!AR43),\"\",'TA Indicator Bank'!AR43)","v":0},{"$f":"IF(ISBLANK('TA Indicator Bank'!AS43),\"\",'TA Indicator Bank'!AS43)","v":0},{"$f":"IF(ISBLANK('TA Indicator Bank'!AT43),\"\",'TA Indicator Bank'!AT43)","v":0},{"$f":"IF(AND(J47=1,J$410=1),1,0)","v":0},{"$f":"IF(AND(K47=1,K$410=1),1,0)","v":0},{"$f":"IF(AND(L47=1,L$410=1),1,0)","v":0},{"$f":"IF(AND(M47=1,M$410=1),1,0)","v":0},{"$f":"IF(AND(N47=1,N$410=1),1,0)","v":0},{"$f":"IF(AND(O47=1,O$410=1),1,0)","v":0},{"$f":"IF(AND(P47=1,P$410=1),1,0)","v":0},{"$f":"IF(AND(Q47=1,Q$410=1),1,0)","v":0},{"$f":"IF(AND(R47=1,R$410=1),1,0)","v":0},{"$f":"IF(AND(S47=1,S$410=1),1,0)","v":0},{"$f":"IF(AND(T47=1,T$410=1),1,0)","v":0},{"$f":"IF(AND(U47=1,U$410=1),1,0)","v":1},{"$f":"IF(AND(V47=1,V$410=1),1,0)","v":0},{"$f":"IF(AND(W47=1,W$410=1),1,0)","v":0},1,{"$f":"IF(AND(X47=1,X$410=1),1,0)","v":0},{"$f":"IF(AND(Y47=1,Y$410=1),1,0)","v":0},{"$f":"IF(AND(Z47=1,Z$410=1),1,0)","v":0},{"$f":"IF(AND(AA47=1,AA$410=1),1,0)","v":0},{"$f":"IF(AND(AB47=1,AB$410=1),1,0)","v":0},{"$f":"IF(AND(AC47=1,AC$410=1),1,0)","v":0},{"$f":"IF(AND(AD47=1,AD$410=1),1,0)","v":0},{"$f":"IF(AND(AE47=1,AE$410=1),1,0)","v":0},{"$f":"IF(AND(AF47=1,AF$410=1),1,0)","v":0},1,{"$f":"IF(AND(AG47=1,AG$410=1),1,0)","v":0},{"$f":"IF(AND(AH47=1,AH$410=1),1,0)","v":0},{"$f":"IF(AND(AI47=1,AI$410=1),1,0)","v":0},{"$f":"IF(AND(AJ47=1,AJ$410=1),1,0)","v":0},{"$f":"IF(AND(AK47=1,AK$410=1),1,0)","v":0},{"$f":"IF(AND(AL47=1,AL$410=1),1,0)","v":0},{"$f":"IF(AND(AM47=1,AM$410=1),1,0)","v":0},{"$f":"IF(AND(AN47=1,AN$410=1),1,0)","v":0},{"$f":"IF(AND(AO47=1,AO$410=1),1,0)","v":0},1,{"$f":"IF(AND(AP47=1,AP$410=1),1,0)","v":1},{"$f":"IF(AND(AQ47=1,AQ$410=1),1,0)","v":0},{"$f":"IF(AND(AR47=1,AR$410=1),1,0)","v":0},{"$f":"IF(AND(AS47=1,AS$410=1),1,0)","v":0},{"$f":"IF(AND(AT47=1,AT$410=1),1,0)","v":0},1,1,39,39,{"$f":"IFERROR(SMALL($CL$9:$CL$408,CK47),\"\")","v":39},{"$f":"IFERROR(INDEX($B$9:$I$408,$CM47,COLUMNS($CN$9:CN47)),\"\")","v":"TA039"},{"$f":"IFERROR(INDEX($B$9:$I$408,$CM47,COLUMNS($CN$9:CO47)),\"\")","v":"Number of evidence products (e.g. evaluations, impact assessments, research studies)"},{"$f":"IFERROR(INDEX($B$9:$I$408,$CM47,COLUMNS($CN$9:CP47)),\"\")","v":"-"},{"$f":"IFERROR(INDEX($B$9:$I$408,$CM47,COLUMNS($CN$9:CQ47)),\"\")","v":"Activity"},{"$f":"IFERROR(INDEX($B$9:$I$408,$CM47,COLUMNS($CN$9:CR47)),\"\")","v":"Project studies and plans"},{"$f":"IFERROR(INDEX($B$9:$I$408,$CM47,COLUMNS($CN$9:CS47)),\"\")","v":"-"},{"$f":"IFERROR(INDEX($B$9:$I$408,$CM47,COLUMNS($CN$9:CT47)),\"\")","v":"-"},{"$f":"IFERROR(INDEX($B$9:$I$408,$CM47,COLUMNS($CN$9:CU47)),\"\")","v":"Number"}]
[null,{"$f":"IF(ISBLANK('TA Indicator Bank'!B44),\"\",'TA Indicator Bank'!B44)","v":"TA040"},{"$f":"IF(ISBLANK('TA Indicator Bank'!C44),\"\",'TA Indicator Bank'!C44)","v":"Deliverables are completed on time"},{"$f":"IF(ISBLANK('TA Indicator Bank'!D44),\"\",'TA Indicator Bank'!D44)","v":"-"},{"$f":"IF(ISBLANK('TA Indicator Bank'!E44),\"\",'TA Indicator Bank'!E44)","v":"Activity"},{"$f":"IF(ISBLANK('TA Indicator Bank'!F44),\"\",'TA Indicator Bank'!F44)","v":"Project studies and plans; Data, software, tools and models"},{"$f":"IF(ISBLANK('TA Indicator Bank'!G44),\"\",'TA Indicator Bank'!G44)","v":"-"},{"$f":"IF(ISBLANK('TA Indicator Bank'!H44),\"\",'TA Indicator Bank'!H44)","v":"-"},{"$f":"IF(ISBLANK('TA Indicator Bank'!I44),\"\",'TA Indicator Bank'!I44)","v":"Yes/No"},{"$f":"IF(ISBLANK('TA Indicator Bank'!J44),\"\",'TA Indicator Bank'!J44)","v":0},{"$f":"IF(ISBLANK('TA Indicator Bank'!K44),\"\",'TA Indicator Bank'!K44)","v":0},{"$f":"IF(ISBLANK('TA Indicator Bank'!L44),\"\",'TA Indicator Bank'!L44)","v":0},{"$f":"IF(ISBLANK('TA Indicator Bank'!M44),\"\",'TA Indicator Bank'!M44)","v":0},{"$f":"IF(ISBLANK('TA Indicator Bank'!N44),\"\",'TA Indicator Bank'!N44)","v":0},{"$f":"IF(ISBLANK('TA Indicator Bank'!O44),\"\",'TA Indicator Bank'!O44)","v":0},{"$f":"IF(ISBLANK('TA Indicator Bank'!P44),\"\",'TA Indicator Bank'!P44)","v":0},{"$f":"IF(ISBLANK('TA Indicator Bank'!Q44),\"\",'TA Indicator Bank'!Q44)","v":0},{"$f":"IF(ISBLANK('TA Indicator Bank'!R44),\"\",'TA Indicator Bank'!R44)","v":0},{"$f":"IF(ISBLANK('TA Indicator Bank'!S44),\"\",'TA Indicator Bank'!S44)","v":0},{"$f":"IF(ISBLANK('TA Indicator Bank'!T44),\"\",'TA Indicator Bank'!T44)","v":0},{"$f":"IF(ISBLANK('TA Indicator Bank'!U44),\"\",'TA Indicator Bank'!U44)","v":1},{"$f":"IF(ISBLANK('TA Indicator Bank'!V44),\"\",'TA Indicator Bank'!V44)","v":1},{"$f":"IF(ISBLANK('TA Indicator Bank'!W44),\"\",'TA Indicator Bank'!W44)","v":0},{"$f":"IF(ISBLANK('TA Indicator Bank'!X44),\"\",'TA Indicator Bank'!X44)","v":0},{"$f":"IF(ISBLANK('TA Indicator Bank'!Y44),\"\",'TA Indicator Bank'!Y44)","v":0},{"$f":"IF(ISBLANK('TA Indicator Bank'!Z44),\"\",'TA Indicator Bank'!Z44)","v":0},{"$f":"IF(ISBLANK('TA Indicator Bank'!AA44),\"\",'TA Indicator Bank'!AA44)","v":0},{"$f":"IF(ISBLANK('TA Indicator Bank'!AB44),\"\",'TA Indicator Bank'!AB44)","v":0},{"$f":"IF(ISBLANK('TA Indicator Bank'!AC44),\"\",'TA Indicator Bank'!AC44)","v":0},{"$f":"IF(ISBLANK('TA Indicator Bank'!AD44),\"\",'TA Indicator Bank'!AD44)","v":0},{"$f":"IF(ISBLANK('TA Indicator Bank'!AE44),\"\",'TA Indicator Bank'!AE44)","v":0},{"$f":"IF(ISBLANK('TA Indicator Bank'!AF44),\"\",'TA Indicator Bank'!AF44)","v":0},{"$f":"IF(ISBLANK('TA Indicator Bank'!AG44),\"\",'TA Indicator Bank'!AG44)","v":0},{"$f":"IF(ISBLANK('TA Indicator Bank'!AH44),\"\",'TA Indicator Bank'!AH44)","v":0},{"$f":"IF(ISBLANK('TA Indicator Bank'!AI44),\"\",'TA Indicator Bank'!AI44)","v":0},{"$f":"IF(ISBLANK('TA Indicator Bank'!AJ44),\"\",'TA Indicator Bank'!AJ44)","v":0},{"$f":"IF(ISBLANK('TA Indicator Bank'!AK44),\"\",'TA Indicator Bank'!AK44)","v":0},{"$f":"IF(ISBLANK('TA Indicator Bank'!AL44),\"\",'TA Indicator Bank'!AL44)","v":0},{"$f":"IF(ISBLANK('TA Indicator Bank'!AM44),\"\",'TA Indicator Bank'!AM44)","v":0},{"$f":"IF(ISBLANK('TA Indicator Bank'!AN44),\"\",'TA Indicator Bank'!AN44)","v":0},{"$f":"IF(ISBLANK('TA Indicator Bank'!AO44),\"\",'TA Indicator Bank'!AO44)","v":0},{"$f":"IF(ISBLANK('TA Indicator Bank'!AP44),\"\",'TA Indicator Bank'!AP44)","v":1},{"$f":"IF(ISBLANK('TA Indicator Bank'!AQ44),\"\",'TA Indicator Bank'!AQ44)","v":0},{"$f":"IF(ISBLANK('TA Indicator Bank'!AR44),\"\",'TA Indicator Bank'!AR44)","v":0},{"$f":"IF(ISBLANK('TA Indicator Bank'!AS44),\"\",'TA Indicator Bank'!AS44)","v":0},{"$f":"IF(ISBLANK('TA Indicator Bank'!AT44),\"\",'TA Indicator Bank'!AT44)","v":0},{"$f":"IF(AND(J48=1,J$410=1),1,0)","v":0},{"$f":"IF(AND(K48=1,K$410=1),1,0)","v":0},{"$f":"IF(AND(L48=1,L$410=1),1,0)","v":0},{"$f":"IF(AND(M48=1,M$410=1),1,0)","v":0},{"$f":"IF(AND(N48=1,N$410=1),1,0)","v":0},{"$f":"IF(AND(O48=1,O$410=1),1,0)","v":0},{"$f":"IF(AND(P48=1,P$410=1),1,0)","v":0},{"$f":"IF(AND(Q48=1,Q$410=1),1,0)","v":0},{"$f":"IF(AND(R48=1,R$410=1),1,0)","v":0},{"$f":"IF(AND(S48=1,S$410=1),1,0)","v":0},{"$f":"IF(AND(T48=1,T$410=1),1,0)","v":0},{"$f":"IF(AND(U48=1,U$410=1),1,0)","v":1},{"$f":"IF(AND(V48=1,V$410=1),1,0)","v":1},{"$f":"IF(AND(W48=1,W$410=1),1,0)","v":0},1,{"$f":"IF(AND(X48=1,X$410=1),1,0)","v":0},{"$f":"IF(AND(Y48=1,Y$410=1),1,0)","v":0},{"$f":"IF(AND(Z48=1,Z$410=1),1,0)","v":0},{"$f":"IF(AND(AA48=1,AA$410=1),1,0)","v":0},{"$f":"IF(AND(AB48=1,AB$410=1),1,0)","v":0},{"$f":"IF(AND(AC48=1,AC$410=1),1,0)","v":0},{"$f":"IF(AND(AD48=1,AD$410=1),1,0)","v":0},{"$f":"IF(AND(AE48=1,AE$410=1),1,0)","v":0},{"$f":"IF(AND(AF48=1,AF$410=1),1,0)","v":0},1,{"$f":"IF(AND(AG48=1,AG$410=1),1,0)","v":0},{"$f":"IF(AND(AH48=1,AH$410=1),1,0)","v":0},{"$f":"IF(AND(AI48=1,AI$410=1),1,0)","v":0},{"$f":"IF(AND(AJ48=1,AJ$410=1),1,0)","v":0},{"$f":"IF(AND(AK48=1,AK$410=1),1,0)","v":0},{"$f":"IF(AND(AL48=1,AL$410=1),1,0)","v":0},{"$f":"IF(AND(AM48=1,AM$410=1),1,0)","v":0},{"$f":"IF(AND(AN48=1,AN$410=1),1,0)","v":0},{"$f":"IF(AND(AO48=1,AO$410=1),1,0)","v":0},1,{"$f":"IF(AND(AP48=1,AP$410=1),1,0)","v":1},{"$f":"IF(AND(AQ48=1,AQ$410=1),1,0)","v":0},{"$f":"IF(AND(AR48=1,AR$410=1),1,0)","v":0},{"$f":"IF(AND(AS48=1,AS$410=1),1,0)","v":0},{"$f":"IF(AND(AT48=1,AT$410=1),1,0)","v":0},1,1,40,40,{"$f":"IFERROR(SMALL($CL$9:$CL$408,CK48),\"\")","v":40},{"$f":"IFERROR(INDEX($B$9:$I$408,$CM48,COLUMNS($CN$9:CN48)),\"\")","v":"TA040"},{"$f":"IFERROR(INDEX($B$9:$I$408,$CM48,COLUMNS($CN$9:CO48)),\"\")","v":"Deliverables are completed on time"},{"$f":"IFERROR(INDEX($B$9:$I$408,$CM48,COLUMNS($CN$9:CP48)),\"\")","v":"-"},{"$f":"IFERROR(INDEX($B$9:$I$408,$CM48,COLUMNS($CN$9:CQ48)),\"\")","v":"Activity"},{"$f":"IFERROR(INDEX($B$9:$I$408,$CM48,COLUMNS($CN$9:CR48)),\"\")","v":"Project studies and plans; Data, software, tools and models"},{"$f":"IFERROR(INDEX($B$9:$I$408,$CM48,COLUMNS($CN$9:CS48)),\"\")","v":"-"},{"$f":"IFERROR(INDEX($B$9:$I$408,$CM48,COLUMNS($CN$9:CT48)),\"\")","v":"-"},{"$f":"IFERROR(INDEX($B$9:$I$408,$CM48,COLUMNS($CN$9:CU48)),\"\")","v":"Yes/No"}]
[null,{"$f":"IF(ISBLANK('TA Indicator Bank'!B45),\"\",'TA Indicator Bank'!B45)","v":"TA041"},{"$f":"IF(ISBLANK('TA Indicator Bank'!C45),\"\",'TA Indicator Bank'!C45)","v":"Number of iterations of given process developing supporting materials"},{"$f":"IF(ISBLANK('TA Indicator Bank'!D45),\"\",'TA Indicator Bank'!D45)","v":"-"},{"$f":"IF(ISBLANK('TA Indicator Bank'!E45),\"\",'TA Indicator Bank'!E45)","v":"Activity"},{"$f":"IF(ISBLANK('TA Indicator Bank'!F45),\"\",'TA Indicator Bank'!F45)","v":"Project studies and plans; Data, software, tools and models"},{"$f":"IF(ISBLANK('TA Indicator Bank'!G45),\"\",'TA Indicator Bank'!G45)","v":"-"},{"$f":"IF(ISBLANK('TA Indicator Bank'!H45),\"\",'TA Indicator Bank'!H45)","v":"-"},{"$f":"IF(ISBLANK('TA Indicator Bank'!I45),\"\",'TA Indicator Bank'!I45)","v":"Number"},{"$f":"IF(ISBLANK('TA Indicator Bank'!J45),\"\",'TA Indicator Bank'!J45)","v":0},{"$f":"IF(ISBLANK('TA Indicator Bank'!K45),\"\",'TA Indicator Bank'!K45)","v":0},{"$f":"IF(ISBLANK('TA Indicator Bank'!L45),\"\",'TA Indicator Bank'!L45)","v":0},{"$f":"IF(ISBLANK('TA Indicator Bank'!M45),\"\",'TA Indicator Bank'!M45)","v":0},{"$f":"IF(ISBLANK('TA Indicator Bank'!N45),\"\",'TA Indicator Bank'!N45)","v":0},{"$f":"IF(ISBLANK('TA Indicator Bank'!O45),\"\",'TA Indicator Bank'!O45)","v":0},{"$f":"IF(ISBLANK('TA Indicator Bank'!P45),\"\",'TA Indicator Bank'!P45)","v":0},{"$f":"IF(ISBLANK('TA Indicator Bank'!Q45),\"\",'TA Indicator Bank'!Q45)","v":0},{"$f":"IF(ISBLANK('TA Indicator Bank'!R45),\"\",'TA Indicator Bank'!R45)","v":0},{"$f":"IF(ISBLANK('TA Indicator Bank'!S45),\"\",'TA Indicator Bank'!S45)","v":0},{"$f":"IF(ISBLANK('TA Indicator Bank'!T45),\"\",'TA Indicator Bank'!T45)","v":0},{"$f":"IF(ISBLANK('TA Indicator Bank'!U45),\"\",'TA Indicator Bank'!U45)","v":1},{"$f":"IF(ISBLANK('TA Indicator Bank'!V45),\"\",'TA Indicator Bank'!V45)","v":1},{"$f":"IF(ISBLANK('TA Indicator Bank'!W45),\"\",'TA Indicator Bank'!W45)","v":0},{"$f":"IF(ISBLANK('TA Indicator Bank'!X45),\"\",'TA Indicator Bank'!X45)","v":0},{"$f":"IF(ISBLANK('TA Indicator Bank'!Y45),\"\",'TA Indicator Bank'!Y45)","v":0},{"$f":"IF(ISBLANK('TA Indicator Bank'!Z45),\"\",'TA Indicator Bank'!Z45)","v":0},{"$f":"IF(ISBLANK('TA Indicator Bank'!AA45),\"\",'TA Indicator Bank'!AA45)","v":0},{"$f":"IF(ISBLANK('TA Indicator Bank'!AB45),\"\",'TA Indicator Bank'!AB45)","v":0},{"$f":"IF(ISBLANK('TA Indicator Bank'!AC45),\"\",'TA Indicator Bank'!AC45)","v":0},{"$f":"IF(ISBLANK('TA Indicator Bank'!AD45),\"\",'TA Indicator Bank'!AD45)","v":0},{"$f":"IF(ISBLANK('TA Indicator Bank'!AE45),\"\",'TA Indicator Bank'!AE45)","v":0},{"$f":"IF(ISBLANK('TA Indicator Bank'!AF45),\"\",'TA Indicator Bank'!AF45)","v":0},{"$f":"IF(ISBLANK('TA Indicator Bank'!AG45),\"\",'TA Indicator Bank'!AG45)","v":0},{"$f":"IF(ISBLANK('TA Indicator Bank'!AH45),\"\",'TA Indicator Bank'!AH45)","v":0},{"$f":"IF(ISBLANK('TA Indicator Bank'!AI45),\"\",'TA Indicator Bank'!AI45)","v":0},{"$f":"IF(ISBLANK('TA Indicator Bank'!AJ45),\"\",'TA Indicator Bank'!AJ45)","v":0},{"$f":"IF(ISBLANK('TA Indicator Bank'!AK45),\"\",'TA Indicator Bank'!AK45)","v":0},{"$f":"IF(ISBLANK('TA Indicator Bank'!AL45),\"\",'TA Indicator Bank'!AL45)","v":0},{"$f":"IF(ISBLANK('TA Indicator Bank'!AM45),\"\",'TA Indicator Bank'!AM45)","v":0},{"$f":"IF(ISBLANK('TA Indicator Bank'!AN45),\"\",'TA Indicator Bank'!AN45)","v":0},{"$f":"IF(ISBLANK('TA Indicator Bank'!AO45),\"\",'TA Indicator Bank'!AO45)","v":0},{"$f":"IF(ISBLANK('TA Indicator Bank'!AP45),\"\",'TA Indicator Bank'!AP45)","v":1},{"$f":"IF(ISBLANK('TA Indicator Bank'!AQ45),\"\",'TA Indicator Bank'!AQ45)","v":0},{"$f":"IF(ISBLANK('TA Indicator Bank'!AR45),\"\",'TA Indicator Bank'!AR45)","v":0},{"$f":"IF(ISBLANK('TA Indicator Bank'!AS45),\"\",'TA Indicator Bank'!AS45)","v":0},{"$f":"IF(ISBLANK('TA Indicator Bank'!AT45),\"\",'TA Indicator Bank'!AT45)","v":0},{"$f":"IF(AND(J49=1,J$410=1),1,0)","v":0},{"$f":"IF(AND(K49=1,K$410=1),1,0)","v":0},{"$f":"IF(AND(L49=1,L$410=1),1,0)","v":0},{"$f":"IF(AND(M49=1,M$410=1),1,0)","v":0},{"$f":"IF(AND(N49=1,N$410=1),1,0)","v":0},{"$f":"IF(AND(O49=1,O$410=1),1,0)","v":0},{"$f":"IF(AND(P49=1,P$410=1),1,0)","v":0},{"$f":"IF(AND(Q49=1,Q$410=1),1,0)","v":0},{"$f":"IF(AND(R49=1,R$410=1),1,0)","v":0},{"$f":"IF(AND(S49=1,S$410=1),1,0)","v":0},{"$f":"IF(AND(T49=1,T$410=1),1,0)","v":0},{"$f":"IF(AND(U49=1,U$410=1),1,0)","v":1},{"$f":"IF(AND(V49=1,V$410=1),1,0)","v":1},{"$f":"IF(AND(W49=1,W$410=1),1,0)","v":0},1,{"$f":"IF(AND(X49=1,X$410=1),1,0)","v":0},{"$f":"IF(AND(Y49=1,Y$410=1),1,0)","v":0},{"$f":"IF(AND(Z49=1,Z$410=1),1,0)","v":0},{"$f":"IF(AND(AA49=1,AA$410=1),1,0)","v":0},{"$f":"IF(AND(AB49=1,AB$410=1),1,0)","v":0},{"$f":"IF(AND(AC49=1,AC$410=1),1,0)","v":0},{"$f":"IF(AND(AD49=1,AD$410=1),1,0)","v":0},{"$f":"IF(AND(AE49=1,AE$410=1),1,0)","v":0},{"$f":"IF(AND(AF49=1,AF$410=1),1,0)","v":0},1,{"$f":"IF(AND(AG49=1,AG$410=1),1,0)","v":0},{"$f":"IF(AND(AH49=1,AH$410=1),1,0)","v":0},{"$f":"IF(AND(AI49=1,AI$410=1),1,0)","v":0},{"$f":"IF(AND(AJ49=1,AJ$410=1),1,0)","v":0},{"$f":"IF(AND(AK49=1,AK$410=1),1,0)","v":0},{"$f":"IF(AND(AL49=1,AL$410=1),1,0)","v":0},{"$f":"IF(AND(AM49=1,AM$410=1),1,0)","v":0},{"$f":"IF(AND(AN49=1,AN$410=1),1,0)","v":0},{"$f":"IF(AND(AO49=1,AO$410=1),1,0)","v":0},1,{"$f":"IF(AND(AP49=1,AP$410=1),1,0)","v":1},{"$f":"IF(AND(AQ49=1,AQ$410=1),1,0)","v":0},{"$f":"IF(AND(AR49=1,AR$410=1),1,0)","v":0},{"$f":"IF(AND(AS49=1,AS$410=1),1,0)","v":0},{"$f":"IF(AND(AT49=1,AT$410=1),1,0)","v":0},1,1,41,41,{"$f":"IFERROR(SMALL($CL$9:$CL$408,CK49),\"\")","v":41},{"$f":"IFERROR(INDEX($B$9:$I$408,$CM49,COLUMNS($CN$9:CN49)),\"\")","v":"TA041"},{"$f":"IFERROR(INDEX($B$9:$I$408,$CM49,COLUMNS($CN$9:CO49)),\"\")","v":"Number of iterations of given process developing supporting materials"},{"$f":"IFERROR(INDEX($B$9:$I$408,$CM49,COLUMNS($CN$9:CP49)),\"\")","v":"-"},{"$f":"IFERROR(INDEX($B$9:$I$408,$CM49,COLUMNS($CN$9:CQ49)),\"\")","v":"Activity"},{"$f":"IFERROR(INDEX($B$9:$I$408,$CM49,COLUMNS($CN$9:CR49)),\"\")","v":"Project studies and plans; Data, software, tools and models"},{"$f":"IFERROR(INDEX($B$9:$I$408,$CM49,COLUMNS($CN$9:CS49)),\"\")","v":"-"},{"$f":"IFERROR(INDEX($B$9:$I$408,$CM49,COLUMNS($CN$9:CT49)),\"\")","v":"-"},{"$f":"IFERROR(INDEX($B$9:$I$408,$CM49,COLUMNS($CN$9:CU49)),\"\")","v":"Number"}]
[null,{"$f":"IF(ISBLANK('TA Indicator Bank'!B46),\"\",'TA Indicator Bank'!B46)","v":"TA042"},{"$f":"IF(ISBLANK('TA Indicator Bank'!C46),\"\",'TA Indicator Bank'!C46)","v":"Survey conducted that measures quality or client satisfaction"},{"$f":"IF(ISBLANK('TA Indicator Bank'!D46),\"\",'TA Indicator Bank'!D46)","v":"-"},{"$f":"IF(ISBLANK('TA Indicator Bank'!E46),\"\",'TA Indicator Bank'!E46)","v":"Activity"},{"$f":"IF(ISBLANK('TA Indicator Bank'!F46),\"\",'TA Indicator Bank'!F46)","v":"Project studies and plans"},{"$f":"IF(ISBLANK('TA Indicator Bank'!G46),\"\",'TA Indicator Bank'!G46)","v":"-"},{"$f":"IF(ISBLANK('TA Indicator Bank'!H46),\"\",'TA Indicator Bank'!H46)","v":"-"},{"$f":"IF(ISBLANK('TA Indicator Bank'!I46),\"\",'TA Indicator Bank'!I46)","v":"Yes/No"},{"$f":"IF(ISBLANK('TA Indicator Bank'!J46),\"\",'TA Indicator Bank'!J46)","v":0},{"$f":"IF(ISBLANK('TA Indicator Bank'!K46),\"\",'TA Indicator Bank'!K46)","v":0},{"$f":"IF(ISBLANK('TA Indicator Bank'!L46),\"\",'TA Indicator Bank'!L46)","v":0},{"$f":"IF(ISBLANK('TA Indicator Bank'!M46),\"\",'TA Indicator Bank'!M46)","v":0},{"$f":"IF(ISBLANK('TA Indicator Bank'!N46),\"\",'TA Indicator Bank'!N46)","v":0},{"$f":"IF(ISBLANK('TA Indicator Bank'!O46),\"\",'TA Indicator Bank'!O46)","v":0},{"$f":"IF(ISBLANK('TA Indicator Bank'!P46),\"\",'TA Indicator Bank'!P46)","v":0},{"$f":"IF(ISBLANK('TA Indicator Bank'!Q46),\"\",'TA Indicator Bank'!Q46)","v":0},{"$f":"IF(ISBLANK('TA Indicator Bank'!R46),\"\",'TA Indicator Bank'!R46)","v":0},{"$f":"IF(ISBLANK('TA Indicator Bank'!S46),\"\",'TA Indicator Bank'!S46)","v":0},{"$f":"IF(ISBLANK('TA Indicator Bank'!T46),\"\",'TA Indicator Bank'!T46)","v":0},{"$f":"IF(ISBLANK('TA Indicator Bank'!U46),\"\",'TA Indicator Bank'!U46)","v":1},{"$f":"IF(ISBLANK('TA Indicator Bank'!V46),\"\",'TA Indicator Bank'!V46)","v":0},{"$f":"IF(ISBLANK('TA Indicator Bank'!W46),\"\",'TA Indicator Bank'!W46)","v":0},{"$f":"IF(ISBLANK('TA Indicator Bank'!X46),\"\",'TA Indicator Bank'!X46)","v":0},{"$f":"IF(ISBLANK('TA Indicator Bank'!Y46),\"\",'TA Indicator Bank'!Y46)","v":0},{"$f":"IF(ISBLANK('TA Indicator Bank'!Z46),\"\",'TA Indicator Bank'!Z46)","v":0},{"$f":"IF(ISBLANK('TA Indicator Bank'!AA46),\"\",'TA Indicator Bank'!AA46)","v":0},{"$f":"IF(ISBLANK('TA Indicator Bank'!AB46),\"\",'TA Indicator Bank'!AB46)","v":0},{"$f":"IF(ISBLANK('TA Indicator Bank'!AC46),\"\",'TA Indicator Bank'!AC46)","v":0},{"$f":"IF(ISBLANK('TA Indicator Bank'!AD46),\"\",'TA Indicator Bank'!AD46)","v":0},{"$f":"IF(ISBLANK('TA Indicator Bank'!AE46),\"\",'TA Indicator Bank'!AE46)","v":0},{"$f":"IF(ISBLANK('TA Indicator Bank'!AF46),\"\",'TA Indicator Bank'!AF46)","v":0},{"$f":"IF(ISBLANK('TA Indicator Bank'!AG46),\"\",'TA Indicator Bank'!AG46)","v":0},{"$f":"IF(ISBLANK('TA Indicator Bank'!AH46),\"\",'TA Indicator Bank'!AH46)","v":0},{"$f":"IF(ISBLANK('TA Indicator Bank'!AI46),\"\",'TA Indicator Bank'!AI46)","v":0},{"$f":"IF(ISBLANK('TA Indicator Bank'!AJ46),\"\",'TA Indicator Bank'!AJ46)","v":0},{"$f":"IF(ISBLANK('TA Indicator Bank'!AK46),\"\",'TA Indicator Bank'!AK46)","v":0},{"$f":"IF(ISBLANK('TA Indicator Bank'!AL46),\"\",'TA Indicator Bank'!AL46)","v":0},{"$f":"IF(ISBLANK('TA Indicator Bank'!AM46),\"\",'TA Indicator Bank'!AM46)","v":0},{"$f":"IF(ISBLANK('TA Indicator Bank'!AN46),\"\",'TA Indicator Bank'!AN46)","v":0},{"$f":"IF(ISBLANK('TA Indicator Bank'!AO46),\"\",'TA Indicator Bank'!AO46)","v":0},{"$f":"IF(ISBLANK('TA Indicator Bank'!AP46),\"\",'TA Indicator Bank'!AP46)","v":1},{"$f":"IF(ISBLANK('TA Indicator Bank'!AQ46),\"\",'TA Indicator Bank'!AQ46)","v":0},{"$f":"IF(ISBLANK('TA Indicator Bank'!AR46),\"\",'TA Indicator Bank'!AR46)","v":0},{"$f":"IF(ISBLANK('TA Indicator Bank'!AS46),\"\",'TA Indicator Bank'!AS46)","v":0},{"$f":"IF(ISBLANK('TA Indicator Bank'!AT46),\"\",'TA Indicator Bank'!AT46)","v":0},{"$f":"IF(AND(J50=1,J$410=1),1,0)","v":0},{"$f":"IF(AND(K50=1,K$410=1),1,0)","v":0},{"$f":"IF(AND(L50=1,L$410=1),1,0)","v":0},{"$f":"IF(AND(M50=1,M$410=1),1,0)","v":0},{"$f":"IF(AND(N50=1,N$410=1),1,0)","v":0},{"$f":"IF(AND(O50=1,O$410=1),1,0)","v":0},{"$f":"IF(AND(P50=1,P$410=1),1,0)","v":0},{"$f":"IF(AND(Q50=1,Q$410=1),1,0)","v":0},{"$f":"IF(AND(R50=1,R$410=1),1,0)","v":0},{"$f":"IF(AND(S50=1,S$410=1),1,0)","v":0},{"$f":"IF(AND(T50=1,T$410=1),1,0)","v":0},{"$f":"IF(AND(U50=1,U$410=1),1,0)","v":1},{"$f":"IF(AND(V50=1,V$410=1),1,0)","v":0},{"$f":"IF(AND(W50=1,W$410=1),1,0)","v":0},1,{"$f":"IF(AND(X50=1,X$410=1),1,0)","v":0},{"$f":"IF(AND(Y50=1,Y$410=1),1,0)","v":0},{"$f":"IF(AND(Z50=1,Z$410=1),1,0)","v":0},{"$f":"IF(AND(AA50=1,AA$410=1),1,0)","v":0},{"$f":"IF(AND(AB50=1,AB$410=1),1,0)","v":0},{"$f":"IF(AND(AC50=1,AC$410=1),1,0)","v":0},{"$f":"IF(AND(AD50=1,AD$410=1),1,0)","v":0},{"$f":"IF(AND(AE50=1,AE$410=1),1,0)","v":0},{"$f":"IF(AND(AF50=1,AF$410=1),1,0)","v":0},1,{"$f":"IF(AND(AG50=1,AG$410=1),1,0)","v":0},{"$f":"IF(AND(AH50=1,AH$410=1),1,0)","v":0},{"$f":"IF(AND(AI50=1,AI$410=1),1,0)","v":0},{"$f":"IF(AND(AJ50=1,AJ$410=1),1,0)","v":0},{"$f":"IF(AND(AK50=1,AK$410=1),1,0)","v":0},{"$f":"IF(AND(AL50=1,AL$410=1),1,0)","v":0},{"$f":"IF(AND(AM50=1,AM$410=1),1,0)","v":0},{"$f":"IF(AND(AN50=1,AN$410=1),1,0)","v":0},{"$f":"IF(AND(AO50=1,AO$410=1),1,0)","v":0},1,{"$f":"IF(AND(AP50=1,AP$410=1),1,0)","v":1},{"$f":"IF(AND(AQ50=1,AQ$410=1),1,0)","v":0},{"$f":"IF(AND(AR50=1,AR$410=1),1,0)","v":0},{"$f":"IF(AND(AS50=1,AS$410=1),1,0)","v":0},{"$f":"IF(AND(AT50=1,AT$410=1),1,0)","v":0},1,1,42,42,{"$f":"IFERROR(SMALL($CL$9:$CL$408,CK50),\"\")","v":42},{"$f":"IFERROR(INDEX($B$9:$I$408,$CM50,COLUMNS($CN$9:CN50)),\"\")","v":"TA042"},{"$f":"IFERROR(INDEX($B$9:$I$408,$CM50,COLUMNS($CN$9:CO50)),\"\")","v":"Survey conducted that measures quality or client satisfaction"},{"$f":"IFERROR(INDEX($B$9:$I$408,$CM50,COLUMNS($CN$9:CP50)),\"\")","v":"-"},{"$f":"IFERROR(INDEX($B$9:$I$408,$CM50,COLUMNS($CN$9:CQ50)),\"\")","v":"Activity"},{"$f":"IFERROR(INDEX($B$9:$I$408,$CM50,COLUMNS($CN$9:CR50)),\"\")","v":"Project studies and plans"},{"$f":"IFERROR(INDEX($B$9:$I$408,$CM50,COLUMNS($CN$9:CS50)),\"\")","v":"-"},{"$f":"IFERROR(INDEX($B$9:$I$408,$CM50,COLUMNS($CN$9:CT50)),\"\")","v":"-"},{"$f":"IFERROR(INDEX($B$9:$I$408,$CM50,COLUMNS($CN$9:CU50)),\"\")","v":"Yes/No"}]
[null,{"$f":"IF(ISBLANK('TA Indicator Bank'!B47),\"\",'TA Indicator Bank'!B47)","v":"TA043"},{"$f":"IF(ISBLANK('TA Indicator Bank'!C47),\"\",'TA Indicator Bank'!C47)","v":"Number of respondents surveyed"},{"$f":"IF(ISBLANK('TA Indicator Bank'!D47),\"\",'TA Indicator Bank'!D47)","v":"-"},{"$f":"IF(ISBLANK('TA Indicator Bank'!E47),\"\",'TA Indicator Bank'!E47)","v":"Activity"},{"$f":"IF(ISBLANK('TA Indicator Bank'!F47),\"\",'TA Indicator Bank'!F47)","v":"Project studies and plans"},{"$f":"IF(ISBLANK('TA Indicator Bank'!G47),\"\",'TA Indicator Bank'!G47)","v":"-"},{"$f":"IF(ISBLANK('TA Indicator Bank'!H47),\"\",'TA Indicator Bank'!H47)","v":"-"},{"$f":"IF(ISBLANK('TA Indicator Bank'!I47),\"\",'TA Indicator Bank'!I47)","v":"Number"},{"$f":"IF(ISBLANK('TA Indicator Bank'!J47),\"\",'TA Indicator Bank'!J47)","v":0},{"$f":"IF(ISBLANK('TA Indicator Bank'!K47),\"\",'TA Indicator Bank'!K47)","v":0},{"$f":"IF(ISBLANK('TA Indicator Bank'!L47),\"\",'TA Indicator Bank'!L47)","v":0},{"$f":"IF(ISBLANK('TA Indicator Bank'!M47),\"\",'TA Indicator Bank'!M47)","v":0},{"$f":"IF(ISBLANK('TA Indicator Bank'!N47),\"\",'TA Indicator Bank'!N47)","v":0},{"$f":"IF(ISBLANK('TA Indicator Bank'!O47),\"\",'TA Indicator Bank'!O47)","v":0},{"$f":"IF(ISBLANK('TA Indicator Bank'!P47),\"\",'TA Indicator Bank'!P47)","v":0},{"$f":"IF(ISBLANK('TA Indicator Bank'!Q47),\"\",'TA Indicator Bank'!Q47)","v":0},{"$f":"IF(ISBLANK('TA Indicator Bank'!R47),\"\",'TA Indicator Bank'!R47)","v":0},{"$f":"IF(ISBLANK('TA Indicator Bank'!S47),\"\",'TA Indicator Bank'!S47)","v":0},{"$f":"IF(ISBLANK('TA Indicator Bank'!T47),\"\",'TA Indicator Bank'!T47)","v":0},{"$f":"IF(ISBLANK('TA Indicator Bank'!U47),\"\",'TA Indicator Bank'!U47)","v":1},{"$f":"IF(ISBLANK('TA Indicator Bank'!V47),\"\",'TA Indicator Bank'!V47)","v":0},{"$f":"IF(ISBLANK('TA Indicator Bank'!W47),\"\",'TA Indicator Bank'!W47)","v":0},{"$f":"IF(ISBLANK('TA Indicator Bank'!X47),\"\",'TA Indicator Bank'!X47)","v":0},{"$f":"IF(ISBLANK('TA Indicator Bank'!Y47),\"\",'TA Indicator Bank'!Y47)","v":0},{"$f":"IF(ISBLANK('TA Indicator Bank'!Z47),\"\",'TA Indicator Bank'!Z47)","v":0},{"$f":"IF(ISBLANK('TA Indicator Bank'!AA47),\"\",'TA Indicator Bank'!AA47)","v":0},{"$f":"IF(ISBLANK('TA Indicator Bank'!AB47),\"\",'TA Indicator Bank'!AB47)","v":0},{"$f":"IF(ISBLANK('TA Indicator Bank'!AC47),\"\",'TA Indicator Bank'!AC47)","v":0},{"$f":"IF(ISBLANK('TA Indicator Bank'!AD47),\"\",'TA Indicator Bank'!AD47)","v":0},{"$f":"IF(ISBLANK('TA Indicator Bank'!AE47),\"\",'TA Indicator Bank'!AE47)","v":0},{"$f":"IF(ISBLANK('TA Indicator Bank'!AF47),\"\",'TA Indicator Bank'!AF47)","v":0},{"$f":"IF(ISBLANK('TA Indicator Bank'!AG47),\"\",'TA Indicator Bank'!AG47)","v":0},{"$f":"IF(ISBLANK('TA Indicator Bank'!AH47),\"\",'TA Indicator Bank'!AH47)","v":0},{"$f":"IF(ISBLANK('TA Indicator Bank'!AI47),\"\",'TA Indicator Bank'!AI47)","v":0},{"$f":"IF(ISBLANK('TA Indicator Bank'!AJ47),\"\",'TA Indicator Bank'!AJ47)","v":0},{"$f":"IF(ISBLANK('TA Indicator Bank'!AK47),\"\",'TA Indicator Bank'!AK47)","v":0},{"$f":"IF(ISBLANK('TA Indicator Bank'!AL47),\"\",'TA Indicator Bank'!AL47)","v":0},{"$f":"IF(ISBLANK('TA Indicator Bank'!AM47),\"\",'TA Indicator Bank'!AM47)","v":0},{"$f":"IF(ISBLANK('TA Indicator Bank'!AN47),\"\",'TA Indicator Bank'!AN47)","v":0},{"$f":"IF(ISBLANK('TA Indicator Bank'!AO47),\"\",'TA Indicator Bank'!AO47)","v":0},{"$f":"IF(ISBLANK('TA Indicator Bank'!AP47),\"\",'TA Indicator Bank'!AP47)","v":1},{"$f":"IF(ISBLANK('TA Indicator Bank'!AQ47),\"\",'TA Indicator Bank'!AQ47)","v":0},{"$f":"IF(ISBLANK('TA Indicator Bank'!AR47),\"\",'TA Indicator Bank'!AR47)","v":0},{"$f":"IF(ISBLANK('TA Indicator Bank'!AS47),\"\",'TA Indicator Bank'!AS47)","v":0},{"$f":"IF(ISBLANK('TA Indicator Bank'!AT47),\"\",'TA Indicator Bank'!AT47)","v":0},{"$f":"IF(AND(J51=1,J$410=1),1,0)","v":0},{"$f":"IF(AND(K51=1,K$410=1),1,0)","v":0},{"$f":"IF(AND(L51=1,L$410=1),1,0)","v":0},{"$f":"IF(AND(M51=1,M$410=1),1,0)","v":0},{"$f":"IF(AND(N51=1,N$410=1),1,0)","v":0},{"$f":"IF(AND(O51=1,O$410=1),1,0)","v":0},{"$f":"IF(AND(P51=1,P$410=1),1,0)","v":0},{"$f":"IF(AND(Q51=1,Q$410=1),1,0)","v":0},{"$f":"IF(AND(R51=1,R$410=1),1,0)","v":0},{"$f":"IF(AND(S51=1,S$410=1),1,0)","v":0},{"$f":"IF(AND(T51=1,T$410=1),1,0)","v":0},{"$f":"IF(AND(U51=1,U$410=1),1,0)","v":1},{"$f":"IF(AND(V51=1,V$410=1),1,0)","v":0},{"$f":"IF(AND(W51=1,W$410=1),1,0)","v":0},1,{"$f":"IF(AND(X51=1,X$410=1),1,0)","v":0},{"$f":"IF(AND(Y51=1,Y$410=1),1,0)","v":0},{"$f":"IF(AND(Z51=1,Z$410=1),1,0)","v":0},{"$f":"IF(AND(AA51=1,AA$410=1),1,0)","v":0},{"$f":"IF(AND(AB51=1,AB$410=1),1,0)","v":0},{"$f":"IF(AND(AC51=1,AC$410=1),1,0)","v":0},{"$f":"IF(AND(AD51=1,AD$410=1),1,0)","v":0},{"$f":"IF(AND(AE51=1,AE$410=1),1,0)","v":0},{"$f":"IF(AND(AF51=1,AF$410=1),1,0)","v":0},1,{"$f":"IF(AND(AG51=1,AG$410=1),1,0)","v":0},{"$f":"IF(AND(AH51=1,AH$410=1),1,0)","v":0},{"$f":"IF(AND(AI51=1,AI$410=1),1,0)","v":0},{"$f":"IF(AND(AJ51=1,AJ$410=1),1,0)","v":0},{"$f":"IF(AND(AK51=1,AK$410=1),1,0)","v":0},{"$f":"IF(AND(AL51=1,AL$410=1),1,0)","v":0},{"$f":"IF(AND(AM51=1,AM$410=1),1,0)","v":0},{"$f":"IF(AND(AN51=1,AN$410=1),1,0)","v":0},{"$f":"IF(AND(AO51=1,AO$410=1),1,0)","v":0},1,{"$f":"IF(AND(AP51=1,AP$410=1),1,0)","v":1},{"$f":"IF(AND(AQ51=1,AQ$410=1),1,0)","v":0},{"$f":"IF(AND(AR51=1,AR$410=1),1,0)","v":0},{"$f":"IF(AND(AS51=1,AS$410=1),1,0)","v":0},{"$f":"IF(AND(AT51=1,AT$410=1),1,0)","v":0},1,1,43,43,{"$f":"IFERROR(SMALL($CL$9:$CL$408,CK51),\"\")","v":43},{"$f":"IFERROR(INDEX($B$9:$I$408,$CM51,COLUMNS($CN$9:CN51)),\"\")","v":"TA043"},{"$f":"IFERROR(INDEX($B$9:$I$408,$CM51,COLUMNS($CN$9:CO51)),\"\")","v":"Number of respondents surveyed"},{"$f":"IFERROR(INDEX($B$9:$I$408,$CM51,COLUMNS($CN$9:CP51)),\"\")","v":"-"},{"$f":"IFERROR(INDEX($B$9:$I$408,$CM51,COLUMNS($CN$9:CQ51)),\"\")","v":"Activity"},{"$f":"IFERROR(INDEX($B$9:$I$408,$CM51,COLUMNS($CN$9:CR51)),\"\")","v":"Project studies and plans"},{"$f":"IFERROR(INDEX($B$9:$I$408,$CM51,COLUMNS($CN$9:CS51)),\"\")","v":"-"},{"$f":"IFERROR(INDEX($B$9:$I$408,$CM51,COLUMNS($CN$9:CT51)),\"\")","v":"-"},{"$f":"IFERROR(INDEX($B$9:$I$408,$CM51,COLUMNS($CN$9:CU51)),\"\")","v":"Number"}]
[null,{"$f":"IF(ISBLANK('TA Indicator Bank'!B48),\"\",'TA Indicator Bank'!B48)","v":"TA044"},{"$f":"IF(ISBLANK('TA Indicator Bank'!C48),\"\",'TA Indicator Bank'!C48)","v":"Number of participants that state in survey to apply new skills effectively"},{"$f":"IF(ISBLANK('TA Indicator Bank'!D48),\"\",'TA Indicator Bank'!D48)","v":"-"},{"$f":"IF(ISBLANK('TA Indicator Bank'!E48),\"\",'TA Indicator Bank'!E48)","v":"Output"},{"$f":"IF(ISBLANK('TA Indicator Bank'!F48),\"\",'TA Indicator Bank'!F48)","v":"-"},{"$f":"IF(ISBLANK('TA Indicator Bank'!G48),\"\",'TA Indicator Bank'!G48)","v":"Capacity building: Technical capacity"},{"$f":"IF(ISBLANK('TA Indicator Bank'!H48),\"\",'TA Indicator Bank'!H48)","v":"-"},{"$f":"IF(ISBLANK('TA Indicator Bank'!I48),\"\",'TA Indicator Bank'!I48)","v":"Number"},{"$f":"IF(ISBLANK('TA Indicator Bank'!J48),\"\",'TA Indicator Bank'!J48)","v":0},{"$f":"IF(ISBLANK('TA Indicator Bank'!K48),\"\",'TA Indicator Bank'!K48)","v":0},{"$f":"IF(ISBLANK('TA Indicator Bank'!L48),\"\",'TA Indicator Bank'!L48)","v":0},{"$f":"IF(ISBLANK('TA Indicator Bank'!M48),\"\",'TA Indicator Bank'!M48)","v":0},{"$f":"IF(ISBLANK('TA Indicator Bank'!N48),\"\",'TA Indicator Bank'!N48)","v":0},{"$f":"IF(ISBLANK('TA Indicator Bank'!O48),\"\",'TA Indicator Bank'!O48)","v":0},{"$f":"IF(ISBLANK('TA Indicator Bank'!P48),\"\",'TA Indicator Bank'!P48)","v":0},{"$f":"IF(ISBLANK('TA Indicator Bank'!Q48),\"\",'TA Indicator Bank'!Q48)","v":0},{"$f":"IF(ISBLANK('TA Indicator Bank'!R48),\"\",'TA Indicator Bank'!R48)","v":0},{"$f":"IF(ISBLANK('TA Indicator Bank'!S48),\"\",'TA Indicator Bank'!S48)","v":0},{"$f":"IF(ISBLANK('TA Indicator Bank'!T48),\"\",'TA Indicator Bank'!T48)","v":0},{"$f":"IF(ISBLANK('TA Indicator Bank'!U48),\"\",'TA Indicator Bank'!U48)","v":0},{"$f":"IF(ISBLANK('TA Indicator Bank'!V48),\"\",'TA Indicator Bank'!V48)","v":0},{"$f":"IF(ISBLANK('TA Indicator Bank'!W48),\"\",'TA Indicator Bank'!W48)","v":0},{"$f":"IF(ISBLANK('TA Indicator Bank'!X48),\"\",'TA Indicator Bank'!X48)","v":0},{"$f":"IF(ISBLANK('TA Indicator Bank'!Y48),\"\",'TA Indicator Bank'!Y48)","v":1},{"$f":"IF(ISBLANK('TA Indicator Bank'!Z48),\"\",'TA Indicator Bank'!Z48)","v":0},{"$f":"IF(ISBLANK('TA Indicator Bank'!AA48),\"\",'TA Indicator Bank'!AA48)","v":0},{"$f":"IF(ISBLANK('TA Indicator Bank'!AB48),\"\",'TA Indicator Bank'!AB48)","v":0},{"$f":"IF(ISBLANK('TA Indicator Bank'!AC48),\"\",'TA Indicator Bank'!AC48)","v":0},{"$f":"IF(ISBLANK('TA Indicator Bank'!AD48),\"\",'TA Indicator Bank'!AD48)","v":0},{"$f":"IF(ISBLANK('TA Indicator Bank'!AE48),\"\",'TA Indicator Bank'!AE48)","v":0},{"$f":"IF(ISBLANK('TA Indicator Bank'!AF48),\"\",'TA Indicator Bank'!AF48)","v":0},{"$f":"IF(ISBLANK('TA Indicator Bank'!AG48),\"\",'TA Indicator Bank'!AG48)","v":0},{"$f":"IF(ISBLANK('TA Indicator Bank'!AH48),\"\",'TA Indicator Bank'!AH48)","v":0},{"$f":"IF(ISBLANK('TA Indicator Bank'!AI48),\"\",'TA Indicator Bank'!AI48)","v":0},{"$f":"IF(ISBLANK('TA Indicator Bank'!AJ48),\"\",'TA Indicator Bank'!AJ48)","v":0},{"$f":"IF(ISBLANK('TA Indicator Bank'!AK48),\"\",'TA Indicator Bank'!AK48)","v":0},{"$f":"IF(ISBLANK('TA Indicator Bank'!AL48),\"\",'TA Indicator Bank'!AL48)","v":0},{"$f":"IF(ISBLANK('TA Indicator Bank'!AM48),\"\",'TA Indicator Bank'!AM48)","v":0},{"$f":"IF(ISBLANK('TA Indicator Bank'!AN48),\"\",'TA Indicator Bank'!AN48)","v":0},{"$f":"IF(ISBLANK('TA Indicator Bank'!AO48),\"\",'TA Indicator Bank'!AO48)","v":0},{"$f":"IF(ISBLANK('TA Indicator Bank'!AP48),\"\",'TA Indicator Bank'!AP48)","v":0},{"$f":"IF(ISBLANK('TA Indicator Bank'!AQ48),\"\",'TA Indicator Bank'!AQ48)","v":0},{"$f":"IF(ISBLANK('TA Indicator Bank'!AR48),\"\",'TA Indicator Bank'!AR48)","v":1},{"$f":"IF(ISBLANK('TA Indicator Bank'!AS48),\"\",'TA Indicator Bank'!AS48)","v":0},{"$f":"IF(ISBLANK('TA Indicator Bank'!AT48),\"\",'TA Indicator Bank'!AT48)","v":0},{"$f":"IF(AND(J52=1,J$410=1),1,0)","v":0},{"$f":"IF(AND(K52=1,K$410=1),1,0)","v":0},{"$f":"IF(AND(L52=1,L$410=1),1,0)","v":0},{"$f":"IF(AND(M52=1,M$410=1),1,0)","v":0},{"$f":"IF(AND(N52=1,N$410=1),1,0)","v":0},{"$f":"IF(AND(O52=1,O$410=1),1,0)","v":0},{"$f":"IF(AND(P52=1,P$410=1),1,0)","v":0},{"$f":"IF(AND(Q52=1,Q$410=1),1,0)","v":0},{"$f":"IF(AND(R52=1,R$410=1),1,0)","v":0},{"$f":"IF(AND(S52=1,S$410=1),1,0)","v":0},{"$f":"IF(AND(T52=1,T$410=1),1,0)","v":0},{"$f":"IF(AND(U52=1,U$410=1),1,0)","v":0},{"$f":"IF(AND(V52=1,V$410=1),1,0)","v":0},{"$f":"IF(AND(W52=1,W$410=1),1,0)","v":0},1,{"$f":"IF(AND(X52=1,X$410=1),1,0)","v":0},{"$f":"IF(AND(Y52=1,Y$410=1),1,0)","v":1},{"$f":"IF(AND(Z52=1,Z$410=1),1,0)","v":0},{"$f":"IF(AND(AA52=1,AA$410=1),1,0)","v":0},{"$f":"IF(AND(AB52=1,AB$410=1),1,0)","v":0},{"$f":"IF(AND(AC52=1,AC$410=1),1,0)","v":0},{"$f":"IF(AND(AD52=1,AD$410=1),1,0)","v":0},{"$f":"IF(AND(AE52=1,AE$410=1),1,0)","v":0},{"$f":"IF(AND(AF52=1,AF$410=1),1,0)","v":0},1,{"$f":"IF(AND(AG52=1,AG$410=1),1,0)","v":0},{"$f":"IF(AND(AH52=1,AH$410=1),1,0)","v":0},{"$f":"IF(AND(AI52=1,AI$410=1),1,0)","v":0},{"$f":"IF(AND(AJ52=1,AJ$410=1),1,0)","v":0},{"$f":"IF(AND(AK52=1,AK$410=1),1,0)","v":0},{"$f":"IF(AND(AL52=1,AL$410=1),1,0)","v":0},{"$f":"IF(AND(AM52=1,AM$410=1),1,0)","v":0},{"$f":"IF(AND(AN52=1,AN$410=1),1,0)","v":0},{"$f":"IF(AND(AO52=1,AO$410=1),1,0)","v":0},1,{"$f":"IF(AND(AP52=1,AP$410=1),1,0)","v":0},{"$f":"IF(AND(AQ52=1,AQ$410=1),1,0)","v":0},{"$f":"IF(AND(AR52=1,AR$410=1),1,0)","v":1},{"$f":"IF(AND(AS52=1,AS$410=1),1,0)","v":0},{"$f":"IF(AND(AT52=1,AT$410=1),1,0)","v":0},1,1,44,44,{"$f":"IFERROR(SMALL($CL$9:$CL$408,CK52),\"\")","v":44},{"$f":"IFERROR(INDEX($B$9:$I$408,$CM52,COLUMNS($CN$9:CN52)),\"\")","v":"TA044"},{"$f":"IFERROR(INDEX($B$9:$I$408,$CM52,COLUMNS($CN$9:CO52)),\"\")","v":"Number of participants that state in survey to apply new skills effectively"},{"$f":"IFERROR(INDEX($B$9:$I$408,$CM52,COLUMNS($CN$9:CP52)),\"\")","v":"-"},{"$f":"IFERROR(INDEX($B$9:$I$408,$CM52,COLUMNS($CN$9:CQ52)),\"\")","v":"Output"},{"$f":"IFERROR(INDEX($B$9:$I$408,$CM52,COLUMNS($CN$9:CR52)),\"\")","v":"-"},{"$f":"IFERROR(INDEX($B$9:$I$408,$CM52,COLUMNS($CN$9:CS52)),\"\")","v":"Capacity building: Technical capacity"},{"$f":"IFERROR(INDEX($B$9:$I$408,$CM52,COLUMNS($CN$9:CT52)),\"\")","v":"-"},{"$f":"IFERROR(INDEX($B$9:$I$408,$CM52,COLUMNS($CN$9:CU52)),\"\")","v":"Number"}]
[null,{"$f":"IF(ISBLANK('TA Indicator Bank'!B49),\"\",'TA Indicator Bank'!B49)","v":"TA045"},{"$f":"IF(ISBLANK('TA Indicator Bank'!C49),\"\",'TA Indicator Bank'!C49)","v":"Number of participants that state in survey to be satisfied"},{"$f":"IF(ISBLANK('TA Indicator Bank'!D49),\"\",'TA Indicator Bank'!D49)","v":"-"},{"$f":"IF(ISBLANK('TA Indicator Bank'!E49),\"\",'TA Indicator Bank'!E49)","v":"Uptake"},{"$f":"IF(ISBLANK('TA Indicator Bank'!F49),\"\",'TA Indicator Bank'!F49)","v":"Project studies and plans"},{"$f":"IF(ISBLANK('TA Indicator Bank'!G49),\"\",'TA Indicator Bank'!G49)","v":"-"},{"$f":"IF(ISBLANK('TA Indicator Bank'!H49),\"\",'TA Indicator Bank'!H49)","v":"-"},{"$f":"IF(ISBLANK('TA Indicator Bank'!I49),\"\",'TA Indicator Bank'!I49)","v":"Number"},{"$f":"IF(ISBLANK('TA Indicator Bank'!J49),\"\",'TA Indicator Bank'!J49)","v":0},{"$f":"IF(ISBLANK('TA Indicator Bank'!K49),\"\",'TA Indicator Bank'!K49)","v":0},{"$f":"IF(ISBLANK('TA Indicator Bank'!L49),\"\",'TA Indicator Bank'!L49)","v":0},{"$f":"IF(ISBLANK('TA Indicator Bank'!M49),\"\",'TA Indicator Bank'!M49)","v":0},{"$f":"IF(ISBLANK('TA Indicator Bank'!N49),\"\",'TA Indicator Bank'!N49)","v":0},{"$f":"IF(ISBLANK('TA Indicator Bank'!O49),\"\",'TA Indicator Bank'!O49)","v":0},{"$f":"IF(ISBLANK('TA Indicator Bank'!P49),\"\",'TA Indicator Bank'!P49)","v":0},{"$f":"IF(ISBLANK('TA Indicator Bank'!Q49),\"\",'TA Indicator Bank'!Q49)","v":0},{"$f":"IF(ISBLANK('TA Indicator Bank'!R49),\"\",'TA Indicator Bank'!R49)","v":0},{"$f":"IF(ISBLANK('TA Indicator Bank'!S49),\"\",'TA Indicator Bank'!S49)","v":0},{"$f":"IF(ISBLANK('TA Indicator Bank'!T49),\"\",'TA Indicator Bank'!T49)","v":0},{"$f":"IF(ISBLANK('TA Indicator Bank'!U49),\"\",'TA Indicator Bank'!U49)","v":1},{"$f":"IF(ISBLANK('TA Indicator Bank'!V49),\"\",'TA Indicator Bank'!V49)","v":0},{"$f":"IF(ISBLANK('TA Indicator Bank'!W49),\"\",'TA Indicator Bank'!W49)","v":0},{"$f":"IF(ISBLANK('TA Indicator Bank'!X49),\"\",'TA Indicator Bank'!X49)","v":0},{"$f":"IF(ISBLANK('TA Indicator Bank'!Y49),\"\",'TA Indicator Bank'!Y49)","v":0},{"$f":"IF(ISBLANK('TA Indicator Bank'!Z49),\"\",'TA Indicator Bank'!Z49)","v":0},{"$f":"IF(ISBLANK('TA Indicator Bank'!AA49),\"\",'TA Indicator Bank'!AA49)","v":0},{"$f":"IF(ISBLANK('TA Indicator Bank'!AB49),\"\",'TA Indicator Bank'!AB49)","v":0},{"$f":"IF(ISBLANK('TA Indicator Bank'!AC49),\"\",'TA Indicator Bank'!AC49)","v":0},{"$f":"IF(ISBLANK('TA Indicator Bank'!AD49),\"\",'TA Indicator Bank'!AD49)","v":0},{"$f":"IF(ISBLANK('TA Indicator Bank'!AE49),\"\",'TA Indicator Bank'!AE49)","v":0},{"$f":"IF(ISBLANK('TA Indicator Bank'!AF49),\"\",'TA Indicator Bank'!AF49)","v":0},{"$f":"IF(ISBLANK('TA Indicator Bank'!AG49),\"\",'TA Indicator Bank'!AG49)","v":0},{"$f":"IF(ISBLANK('TA Indicator Bank'!AH49),\"\",'TA Indicator Bank'!AH49)","v":0},{"$f":"IF(ISBLANK('TA Indicator Bank'!AI49),\"\",'TA Indicator Bank'!AI49)","v":0},{"$f":"IF(ISBLANK('TA Indicator Bank'!AJ49),\"\",'TA Indicator Bank'!AJ49)","v":0},{"$f":"IF(ISBLANK('TA Indicator Bank'!AK49),\"\",'TA Indicator Bank'!AK49)","v":0},{"$f":"IF(ISBLANK('TA Indicator Bank'!AL49),\"\",'TA Indicator Bank'!AL49)","v":0},{"$f":"IF(ISBLANK('TA Indicator Bank'!AM49),\"\",'TA Indicator Bank'!AM49)","v":0},{"$f":"IF(ISBLANK('TA Indicator Bank'!AN49),\"\",'TA Indicator Bank'!AN49)","v":0},{"$f":"IF(ISBLANK('TA Indicator Bank'!AO49),\"\",'TA Indicator Bank'!AO49)","v":0},{"$f":"IF(ISBLANK('TA Indicator Bank'!AP49),\"\",'TA Indicator Bank'!AP49)","v":0},{"$f":"IF(ISBLANK('TA Indicator Bank'!AQ49),\"\",'TA Indicator Bank'!AQ49)","v":1},{"$f":"IF(ISBLANK('TA Indicator Bank'!AR49),\"\",'TA Indicator Bank'!AR49)","v":0},{"$f":"IF(ISBLANK('TA Indicator Bank'!AS49),\"\",'TA Indicator Bank'!AS49)","v":0},{"$f":"IF(ISBLANK('TA Indicator Bank'!AT49),\"\",'TA Indicator Bank'!AT49)","v":0},{"$f":"IF(AND(J53=1,J$410=1),1,0)","v":0},{"$f":"IF(AND(K53=1,K$410=1),1,0)","v":0},{"$f":"IF(AND(L53=1,L$410=1),1,0)","v":0},{"$f":"IF(AND(M53=1,M$410=1),1,0)","v":0},{"$f":"IF(AND(N53=1,N$410=1),1,0)","v":0},{"$f":"IF(AND(O53=1,O$410=1),1,0)","v":0},{"$f":"IF(AND(P53=1,P$410=1),1,0)","v":0},{"$f":"IF(AND(Q53=1,Q$410=1),1,0)","v":0},{"$f":"IF(AND(R53=1,R$410=1),1,0)","v":0},{"$f":"IF(AND(S53=1,S$410=1),1,0)","v":0},{"$f":"IF(AND(T53=1,T$410=1),1,0)","v":0},{"$f":"IF(AND(U53=1,U$410=1),1,0)","v":1},{"$f":"IF(AND(V53=1,V$410=1),1,0)","v":0},{"$f":"IF(AND(W53=1,W$410=1),1,0)","v":0},1,{"$f":"IF(AND(X53=1,X$410=1),1,0)","v":0},{"$f":"IF(AND(Y53=1,Y$410=1),1,0)","v":0},{"$f":"IF(AND(Z53=1,Z$410=1),1,0)","v":0},{"$f":"IF(AND(AA53=1,AA$410=1),1,0)","v":0},{"$f":"IF(AND(AB53=1,AB$410=1),1,0)","v":0},{"$f":"IF(AND(AC53=1,AC$410=1),1,0)","v":0},{"$f":"IF(AND(AD53=1,AD$410=1),1,0)","v":0},{"$f":"IF(AND(AE53=1,AE$410=1),1,0)","v":0},{"$f":"IF(AND(AF53=1,AF$410=1),1,0)","v":0},1,{"$f":"IF(AND(AG53=1,AG$410=1),1,0)","v":0},{"$f":"IF(AND(AH53=1,AH$410=1),1,0)","v":0},{"$f":"IF(AND(AI53=1,AI$410=1),1,0)","v":0},{"$f":"IF(AND(AJ53=1,AJ$410=1),1,0)","v":0},{"$f":"IF(AND(AK53=1,AK$410=1),1,0)","v":0},{"$f":"IF(AND(AL53=1,AL$410=1),1,0)","v":0},{"$f":"IF(AND(AM53=1,AM$410=1),1,0)","v":0},{"$f":"IF(AND(AN53=1,AN$410=1),1,0)","v":0},{"$f":"IF(AND(AO53=1,AO$410=1),1,0)","v":0},1,{"$f":"IF(AND(AP53=1,AP$410=1),1,0)","v":0},{"$f":"IF(AND(AQ53=1,AQ$410=1),1,0)","v":1},{"$f":"IF(AND(AR53=1,AR$410=1),1,0)","v":0},{"$f":"IF(AND(AS53=1,AS$410=1),1,0)","v":0},{"$f":"IF(AND(AT53=1,AT$410=1),1,0)","v":0},1,1,45,45,{"$f":"IFERROR(SMALL($CL$9:$CL$408,CK53),\"\")","v":45},{"$f":"IFERROR(INDEX($B$9:$I$408,$CM53,COLUMNS($CN$9:CN53)),\"\")","v":"TA045"},{"$f":"IFERROR(INDEX($B$9:$I$408,$CM53,COLUMNS($CN$9:CO53)),\"\")","v":"Number of participants that state in survey to be satisfied"},{"$f":"IFERROR(INDEX($B$9:$I$408,$CM53,COLUMNS($CN$9:CP53)),\"\")","v":"-"},{"$f":"IFERROR(INDEX($B$9:$I$408,$CM53,COLUMNS($CN$9:CQ53)),\"\")","v":"Uptake"},{"$f":"IFERROR(INDEX($B$9:$I$408,$CM53,COLUMNS($CN$9:CR53)),\"\")","v":"Project studies and plans"},{"$f":"IFERROR(INDEX($B$9:$I$408,$CM53,COLUMNS($CN$9:CS53)),\"\")","v":"-"},{"$f":"IFERROR(INDEX($B$9:$I$408,$CM53,COLUMNS($CN$9:CT53)),\"\")","v":"-"},{"$f":"IFERROR(INDEX($B$9:$I$408,$CM53,COLUMNS($CN$9:CU53)),\"\")","v":"Number"}]
[null,{"$f":"IF(ISBLANK('TA Indicator Bank'!B50),\"\",'TA Indicator Bank'!B50)","v":"TA046"},{"$f":"IF(ISBLANK('TA Indicator Bank'!C50),\"\",'TA Indicator Bank'!C50)","v":"Number of users or page visits"},{"$f":"IF(ISBLANK('TA Indicator Bank'!D50),\"\",'TA Indicator Bank'!D50)","v":"-"},{"$f":"IF(ISBLANK('TA Indicator Bank'!E50),\"\",'TA Indicator Bank'!E50)","v":"Uptake"},{"$f":"IF(ISBLANK('TA Indicator Bank'!F50),\"\",'TA Indicator Bank'!F50)","v":"Data, software, tools and models"},{"$f":"IF(ISBLANK('TA Indicator Bank'!G50),\"\",'TA Indicator Bank'!G50)","v":"-"},{"$f":"IF(ISBLANK('TA Indicator Bank'!H50),\"\",'TA Indicator Bank'!H50)","v":"-"},{"$f":"IF(ISBLANK('TA Indicator Bank'!I50),\"\",'TA Indicator Bank'!I50)","v":"Number"},{"$f":"IF(ISBLANK('TA Indicator Bank'!J50),\"\",'TA Indicator Bank'!J50)","v":0},{"$f":"IF(ISBLANK('TA Indicator Bank'!K50),\"\",'TA Indicator Bank'!K50)","v":0},{"$f":"IF(ISBLANK('TA Indicator Bank'!L50),\"\",'TA Indicator Bank'!L50)","v":0},{"$f":"IF(ISBLANK('TA Indicator Bank'!M50),\"\",'TA Indicator Bank'!M50)","v":0},{"$f":"IF(ISBLANK('TA Indicator Bank'!N50),\"\",'TA Indicator Bank'!N50)","v":0},{"$f":"IF(ISBLANK('TA Indicator Bank'!O50),\"\",'TA Indicator Bank'!O50)","v":0},{"$f":"IF(ISBLANK('TA Indicator Bank'!P50),\"\",'TA Indicator Bank'!P50)","v":0},{"$f":"IF(ISBLANK('TA Indicator Bank'!Q50),\"\",'TA Indicator Bank'!Q50)","v":0},{"$f":"IF(ISBLANK('TA Indicator Bank'!R50),\"\",'TA Indicator Bank'!R50)","v":0},{"$f":"IF(ISBLANK('TA Indicator Bank'!S50),\"\",'TA Indicator Bank'!S50)","v":0},{"$f":"IF(ISBLANK('TA Indicator Bank'!T50),\"\",'TA Indicator Bank'!T50)","v":0},{"$f":"IF(ISBLANK('TA Indicator Bank'!U50),\"\",'TA Indicator Bank'!U50)","v":0},{"$f":"IF(ISBLANK('TA Indicator Bank'!V50),\"\",'TA Indicator Bank'!V50)","v":1},{"$f":"IF(ISBLANK('TA Indicator Bank'!W50),\"\",'TA Indicator Bank'!W50)","v":0},{"$f":"IF(ISBLANK('TA Indicator Bank'!X50),\"\",'TA Indicator Bank'!X50)","v":0},{"$f":"IF(ISBLANK('TA Indicator Bank'!Y50),\"\",'TA Indicator Bank'!Y50)","v":0},{"$f":"IF(ISBLANK('TA Indicator Bank'!Z50),\"\",'TA Indicator Bank'!Z50)","v":0},{"$f":"IF(ISBLANK('TA Indicator Bank'!AA50),\"\",'TA Indicator Bank'!AA50)","v":0},{"$f":"IF(ISBLANK('TA Indicator Bank'!AB50),\"\",'TA Indicator Bank'!AB50)","v":0},{"$f":"IF(ISBLANK('TA Indicator Bank'!AC50),\"\",'TA Indicator Bank'!AC50)","v":0},{"$f":"IF(ISBLANK('TA Indicator Bank'!AD50),\"\",'TA Indicator Bank'!AD50)","v":0},{"$f":"IF(ISBLANK('TA Indicator Bank'!AE50),\"\",'TA Indicator Bank'!AE50)","v":0},{"$f":"IF(ISBLANK('TA Indicator Bank'!AF50),\"\",'TA Indicator Bank'!AF50)","v":0},{"$f":"IF(ISBLANK('TA Indicator Bank'!AG50),\"\",'TA Indicator Bank'!AG50)","v":0},{"$f":"IF(ISBLANK('TA Indicator Bank'!AH50),\"\",'TA Indicator Bank'!AH50)","v":0},{"$f":"IF(ISBLANK('TA Indicator Bank'!AI50),\"\",'TA Indicator Bank'!AI50)","v":0},{"$f":"IF(ISBLANK('TA Indicator Bank'!AJ50),\"\",'TA Indicator Bank'!AJ50)","v":0},{"$f":"IF(ISBLANK('TA Indicator Bank'!AK50),\"\",'TA Indicator Bank'!AK50)","v":0},{"$f":"IF(ISBLANK('TA Indicator Bank'!AL50),\"\",'TA Indicator Bank'!AL50)","v":0},{"$f":"IF(ISBLANK('TA Indicator Bank'!AM50),\"\",'TA Indicator Bank'!AM50)","v":0},{"$f":"IF(ISBLANK('TA Indicator Bank'!AN50),\"\",'TA Indicator Bank'!AN50)","v":0},{"$f":"IF(ISBLANK('TA Indicator Bank'!AO50),\"\",'TA Indicator Bank'!AO50)","v":0},{"$f":"IF(ISBLANK('TA Indicator Bank'!AP50),\"\",'TA Indicator Bank'!AP50)","v":0},{"$f":"IF(ISBLANK('TA Indicator Bank'!AQ50),\"\",'TA Indicator Bank'!AQ50)","v":1},{"$f":"IF(ISBLANK('TA Indicator Bank'!AR50),\"\",'TA Indicator Bank'!AR50)","v":0},{"$f":"IF(ISBLANK('TA Indicator Bank'!AS50),\"\",'TA Indicator Bank'!AS50)","v":0},{"$f":"IF(ISBLANK('TA Indicator Bank'!AT50),\"\",'TA Indicator Bank'!AT50)","v":0},{"$f":"IF(AND(J54=1,J$410=1),1,0)","v":0},{"$f":"IF(AND(K54=1,K$410=1),1,0)","v":0},{"$f":"IF(AND(L54=1,L$410=1),1,0)","v":0},{"$f":"IF(AND(M54=1,M$410=1),1,0)","v":0},{"$f":"IF(AND(N54=1,N$410=1),1,0)","v":0},{"$f":"IF(AND(O54=1,O$410=1),1,0)","v":0},{"$f":"IF(AND(P54=1,P$410=1),1,0)","v":0},{"$f":"IF(AND(Q54=1,Q$410=1),1,0)","v":0},{"$f":"IF(AND(R54=1,R$410=1),1,0)","v":0},{"$f":"IF(AND(S54=1,S$410=1),1,0)","v":0},{"$f":"IF(AND(T54=1,T$410=1),1,0)","v":0},{"$f":"IF(AND(U54=1,U$410=1),1,0)","v":0},{"$f":"IF(AND(V54=1,V$410=1),1,0)","v":1},{"$f":"IF(AND(W54=1,W$410=1),1,0)","v":0},1,{"$f":"IF(AND(X54=1,X$410=1),1,0)","v":0},{"$f":"IF(AND(Y54=1,Y$410=1),1,0)","v":0},{"$f":"IF(AND(Z54=1,Z$410=1),1,0)","v":0},{"$f":"IF(AND(AA54=1,AA$410=1),1,0)","v":0},{"$f":"IF(AND(AB54=1,AB$410=1),1,0)","v":0},{"$f":"IF(AND(AC54=1,AC$410=1),1,0)","v":0},{"$f":"IF(AND(AD54=1,AD$410=1),1,0)","v":0},{"$f":"IF(AND(AE54=1,AE$410=1),1,0)","v":0},{"$f":"IF(AND(AF54=1,AF$410=1),1,0)","v":0},1,{"$f":"IF(AND(AG54=1,AG$410=1),1,0)","v":0},{"$f":"IF(AND(AH54=1,AH$410=1),1,0)","v":0},{"$f":"IF(AND(AI54=1,AI$410=1),1,0)","v":0},{"$f":"IF(AND(AJ54=1,AJ$410=1),1,0)","v":0},{"$f":"IF(AND(AK54=1,AK$410=1),1,0)","v":0},{"$f":"IF(AND(AL54=1,AL$410=1),1,0)","v":0},{"$f":"IF(AND(AM54=1,AM$410=1),1,0)","v":0},{"$f":"IF(AND(AN54=1,AN$410=1),1,0)","v":0},{"$f":"IF(AND(AO54=1,AO$410=1),1,0)","v":0},1,{"$f":"IF(AND(AP54=1,AP$410=1),1,0)","v":0},{"$f":"IF(AND(AQ54=1,AQ$410=1),1,0)","v":1},{"$f":"IF(AND(AR54=1,AR$410=1),1,0)","v":0},{"$f":"IF(AND(AS54=1,AS$410=1),1,0)","v":0},{"$f":"IF(AND(AT54=1,AT$410=1),1,0)","v":0},1,1,46,46,{"$f":"IFERROR(SMALL($CL$9:$CL$408,CK54),\"\")","v":46},{"$f":"IFERROR(INDEX($B$9:$I$408,$CM54,COLUMNS($CN$9:CN54)),\"\")","v":"TA046"},{"$f":"IFERROR(INDEX($B$9:$I$408,$CM54,COLUMNS($CN$9:CO54)),\"\")","v":"Number of users or page visits"},{"$f":"IFERROR(INDEX($B$9:$I$408,$CM54,COLUMNS($CN$9:CP54)),\"\")","v":"-"},{"$f":"IFERROR(INDEX($B$9:$I$408,$CM54,COLUMNS($CN$9:CQ54)),\"\")","v":"Uptake"},{"$f":"IFERROR(INDEX($B$9:$I$408,$CM54,COLUMNS($CN$9:CR54)),\"\")","v":"Data, software, tools and models"},{"$f":"IFERROR(INDEX($B$9:$I$408,$CM54,COLUMNS($CN$9:CS54)),\"\")","v":"-"},{"$f":"IFERROR(INDEX($B$9:$I$408,$CM54,COLUMNS($CN$9:CT54)),\"\")","v":"-"},{"$f":"IFERROR(INDEX($B$9:$I$408,$CM54,COLUMNS($CN$9:CU54)),\"\")","v":"Number"}]
[null,{"$f":"IF(ISBLANK('TA Indicator Bank'!B51),\"\",'TA Indicator Bank'!B51)","v":"TA047"},{"$f":"IF(ISBLANK('TA Indicator Bank'!C51),\"\",'TA Indicator Bank'!C51)","v":"Average monthly number of downloads"},{"$f":"IF(ISBLANK('TA Indicator Bank'!D51),\"\",'TA Indicator Bank'!D51)","v":"-"},{"$f":"IF(ISBLANK('TA Indicator Bank'!E51),\"\",'TA Indicator Bank'!E51)","v":"Uptake"},{"$f":"IF(ISBLANK('TA Indicator Bank'!F51),\"\",'TA Indicator Bank'!F51)","v":"Data, software, tools and models"},{"$f":"IF(ISBLANK('TA Indicator Bank'!G51),\"\",'TA Indicator Bank'!G51)","v":"-"},{"$f":"IF(ISBLANK('TA Indicator Bank'!H51),\"\",'TA Indicator Bank'!H51)","v":"-"},{"$f":"IF(ISBLANK('TA Indicator Bank'!I51),\"\",'TA Indicator Bank'!I51)","v":"Number"},{"$f":"IF(ISBLANK('TA Indicator Bank'!J51),\"\",'TA Indicator Bank'!J51)","v":0},{"$f":"IF(ISBLANK('TA Indicator Bank'!K51),\"\",'TA Indicator Bank'!K51)","v":0},{"$f":"IF(ISBLANK('TA Indicator Bank'!L51),\"\",'TA Indicator Bank'!L51)","v":0},{"$f":"IF(ISBLANK('TA Indicator Bank'!M51),\"\",'TA Indicator Bank'!M51)","v":0},{"$f":"IF(ISBLANK('TA Indicator Bank'!N51),\"\",'TA Indicator Bank'!N51)","v":0},{"$f":"IF(ISBLANK('TA Indicator Bank'!O51),\"\",'TA Indicator Bank'!O51)","v":0},{"$f":"IF(ISBLANK('TA Indicator Bank'!P51),\"\",'TA Indicator Bank'!P51)","v":0},{"$f":"IF(ISBLANK('TA Indicator Bank'!Q51),\"\",'TA Indicator Bank'!Q51)","v":0},{"$f":"IF(ISBLANK('TA Indicator Bank'!R51),\"\",'TA Indicator Bank'!R51)","v":0},{"$f":"IF(ISBLANK('TA Indicator Bank'!S51),\"\",'TA Indicator Bank'!S51)","v":0},{"$f":"IF(ISBLANK('TA Indicator Bank'!T51),\"\",'TA Indicator Bank'!T51)","v":0},{"$f":"IF(ISBLANK('TA Indicator Bank'!U51),\"\",'TA Indicator Bank'!U51)","v":0},{"$f":"IF(ISBLANK('TA Indicator Bank'!V51),\"\",'TA Indicator Bank'!V51)","v":1},{"$f":"IF(ISBLANK('TA Indicator Bank'!W51),\"\",'TA Indicator Bank'!W51)","v":0},{"$f":"IF(ISBLANK('TA Indicator Bank'!X51),\"\",'TA Indicator Bank'!X51)","v":0},{"$f":"IF(ISBLANK('TA Indicator Bank'!Y51),\"\",'TA Indicator Bank'!Y51)","v":0},{"$f":"IF(ISBLANK('TA Indicator Bank'!Z51),\"\",'TA Indicator Bank'!Z51)","v":0},{"$f":"IF(ISBLANK('TA Indicator Bank'!AA51),\"\",'TA Indicator Bank'!AA51)","v":0},{"$f":"IF(ISBLANK('TA Indicator Bank'!AB51),\"\",'TA Indicator Bank'!AB51)","v":0},{"$f":"IF(ISBLANK('TA Indicator Bank'!AC51),\"\",'TA Indicator Bank'!AC51)","v":0},{"$f":"IF(ISBLANK('TA Indicator Bank'!AD51),\"\",'TA Indicator Bank'!AD51)","v":0},{"$f":"IF(ISBLANK('TA Indicator Bank'!AE51),\"\",'TA Indicator Bank'!AE51)","v":0},{"$f":"IF(ISBLANK('TA Indicator Bank'!AF51),\"\",'TA Indicator Bank'!AF51)","v":0},{"$f":"IF(ISBLANK('TA Indicator Bank'!AG51),\"\",'TA Indicator Bank'!AG51)","v":0},{"$f":"IF(ISBLANK('TA Indicator Bank'!AH51),\"\",'TA Indicator Bank'!AH51)","v":0},{"$f":"IF(ISBLANK('TA Indicator Bank'!AI51),\"\",'TA Indicator Bank'!AI51)","v":0},{"$f":"IF(ISBLANK('TA Indicator Bank'!AJ51),\"\",'TA Indicator Bank'!AJ51)","v":0},{"$f":"IF(ISBLANK('TA Indicator Bank'!AK51),\"\",'TA Indicator Bank'!AK51)","v":0},{"$f":"IF(ISBLANK('TA Indicator Bank'!AL51),\"\",'TA Indicator Bank'!AL51)","v":0},{"$f":"IF(ISBLANK('TA Indicator Bank'!AM51),\"\",'TA Indicator Bank'!AM51)","v":0},{"$f":"IF(ISBLANK('TA Indicator Bank'!AN51),\"\",'TA Indicator Bank'!AN51)","v":0},{"$f":"IF(ISBLANK('TA Indicator Bank'!AO51),\"\",'TA Indicator Bank'!AO51)","v":0},{"$f":"IF(ISBLANK('TA Indicator Bank'!AP51),\"\",'TA Indicator Bank'!AP51)","v":0},{"$f":"IF(ISBLANK('TA Indicator Bank'!AQ51),\"\",'TA Indicator Bank'!AQ51)","v":1},{"$f":"IF(ISBLANK('TA Indicator Bank'!AR51),\"\",'TA Indicator Bank'!AR51)","v":0},{"$f":"IF(ISBLANK('TA Indicator Bank'!AS51),\"\",'TA Indicator Bank'!AS51)","v":0},{"$f":"IF(ISBLANK('TA Indicator Bank'!AT51),\"\",'TA Indicator Bank'!AT51)","v":0},{"$f":"IF(AND(J55=1,J$410=1),1,0)","v":0},{"$f":"IF(AND(K55=1,K$410=1),1,0)","v":0},{"$f":"IF(AND(L55=1,L$410=1),1,0)","v":0},{"$f":"IF(AND(M55=1,M$410=1),1,0)","v":0},{"$f":"IF(AND(N55=1,N$410=1),1,0)","v":0},{"$f":"IF(AND(O55=1,O$410=1),1,0)","v":0},{"$f":"IF(AND(P55=1,P$410=1),1,0)","v":0},{"$f":"IF(AND(Q55=1,Q$410=1),1,0)","v":0},{"$f":"IF(AND(R55=1,R$410=1),1,0)","v":0},{"$f":"IF(AND(S55=1,S$410=1),1,0)","v":0},{"$f":"IF(AND(T55=1,T$410=1),1,0)","v":0},{"$f":"IF(AND(U55=1,U$410=1),1,0)","v":0},{"$f":"IF(AND(V55=1,V$410=1),1,0)","v":1},{"$f":"IF(AND(W55=1,W$410=1),1,0)","v":0},1,{"$f":"IF(AND(X55=1,X$410=1),1,0)","v":0},{"$f":"IF(AND(Y55=1,Y$410=1),1,0)","v":0},{"$f":"IF(AND(Z55=1,Z$410=1),1,0)","v":0},{"$f":"IF(AND(AA55=1,AA$410=1),1,0)","v":0},{"$f":"IF(AND(AB55=1,AB$410=1),1,0)","v":0},{"$f":"IF(AND(AC55=1,AC$410=1),1,0)","v":0},{"$f":"IF(AND(AD55=1,AD$410=1),1,0)","v":0},{"$f":"IF(AND(AE55=1,AE$410=1),1,0)","v":0},{"$f":"IF(AND(AF55=1,AF$410=1),1,0)","v":0},1,{"$f":"IF(AND(AG55=1,AG$410=1),1,0)","v":0},{"$f":"IF(AND(AH55=1,AH$410=1),1,0)","v":0},{"$f":"IF(AND(AI55=1,AI$410=1),1,0)","v":0},{"$f":"IF(AND(AJ55=1,AJ$410=1),1,0)","v":0},{"$f":"IF(AND(AK55=1,AK$410=1),1,0)","v":0},{"$f":"IF(AND(AL55=1,AL$410=1),1,0)","v":0},{"$f":"IF(AND(AM55=1,AM$410=1),1,0)","v":0},{"$f":"IF(AND(AN55=1,AN$410=1),1,0)","v":0},{"$f":"IF(AND(AO55=1,AO$410=1),1,0)","v":0},1,{"$f":"IF(AND(AP55=1,AP$410=1),1,0)","v":0},{"$f":"IF(AND(AQ55=1,AQ$410=1),1,0)","v":1},{"$f":"IF(AND(AR55=1,AR$410=1),1,0)","v":0},{"$f":"IF(AND(AS55=1,AS$410=1),1,0)","v":0},{"$f":"IF(AND(AT55=1,AT$410=1),1,0)","v":0},1,1,47,47,{"$f":"IFERROR(SMALL($CL$9:$CL$408,CK55),\"\")","v":47},{"$f":"IFERROR(INDEX($B$9:$I$408,$CM55,COLUMNS($CN$9:CN55)),\"\")","v":"TA047"},{"$f":"IFERROR(INDEX($B$9:$I$408,$CM55,COLUMNS($CN$9:CO55)),\"\")","v":"Average monthly number of downloads"},{"$f":"IFERROR(INDEX($B$9:$I$408,$CM55,COLUMNS($CN$9:CP55)),\"\")","v":"-"},{"$f":"IFERROR(INDEX($B$9:$I$408,$CM55,COLUMNS($CN$9:CQ55)),\"\")","v":"Uptake"},{"$f":"IFERROR(INDEX($B$9:$I$408,$CM55,COLUMNS($CN$9:CR55)),\"\")","v":"Data, software, tools and models"},{"$f":"IFERROR(INDEX($B$9:$I$408,$CM55,COLUMNS($CN$9:CS55)),\"\")","v":"-"},{"$f":"IFERROR(INDEX($B$9:$I$408,$CM55,COLUMNS($CN$9:CT55)),\"\")","v":"-"},{"$f":"IFERROR(INDEX($B$9:$I$408,$CM55,COLUMNS($CN$9:CU55)),\"\")","v":"Number"}]
[null,{"$f":"IF(ISBLANK('TA Indicator Bank'!B52),\"\",'TA Indicator Bank'!B52)","v":"TA048"},{"$f":"IF(ISBLANK('TA Indicator Bank'!C52),\"\",'TA Indicator Bank'!C52)","v":"Number of sites on which a tool is embedded "},{"$f":"IF(ISBLANK('TA Indicator Bank'!D52),\"\",'TA Indicator Bank'!D52)","v":"-"},{"$f":"IF(ISBLANK('TA Indicator Bank'!E52),\"\",'TA Indicator Bank'!E52)","v":"Uptake"},{"$f":"IF(ISBLANK('TA Indicator Bank'!F52),\"\",'TA Indicator Bank'!F52)","v":"Data, software, tools and models"},{"$f":"IF(ISBLANK('TA Indicator Bank'!G52),\"\",'TA Indicator Bank'!G52)","v":"-"},{"$f":"IF(ISBLANK('TA Indicator Bank'!H52),\"\",'TA Indicator Bank'!H52)","v":"-"},{"$f":"IF(ISBLANK('TA Indicator Bank'!I52),\"\",'TA Indicator Bank'!I52)","v":"Number"},{"$f":"IF(ISBLANK('TA Indicator Bank'!J52),\"\",'TA Indicator Bank'!J52)","v":0},{"$f":"IF(ISBLANK('TA Indicator Bank'!K52),\"\",'TA Indicator Bank'!K52)","v":0},{"$f":"IF(ISBLANK('TA Indicator Bank'!L52),\"\",'TA Indicator Bank'!L52)","v":0},{"$f":"IF(ISBLANK('TA Indicator Bank'!M52),\"\",'TA Indicator Bank'!M52)","v":0},{"$f":"IF(ISBLANK('TA Indicator Bank'!N52),\"\",'TA Indicator Bank'!N52)","v":0},{"$f":"IF(ISBLANK('TA Indicator Bank'!O52),\"\",'TA Indicator Bank'!O52)","v":0},{"$f":"IF(ISBLANK('TA Indicator Bank'!P52),\"\",'TA Indicator Bank'!P52)","v":0},{"$f":"IF(ISBLANK('TA Indicator Bank'!Q52),\"\",'TA Indicator Bank'!Q52)","v":0},{"$f":"IF(ISBLANK('TA Indicator Bank'!R52),\"\",'TA Indicator Bank'!R52)","v":0},{"$f":"IF(ISBLANK('TA Indicator Bank'!S52),\"\",'TA Indicator Bank'!S52)","v":0},{"$f":"IF(ISBLANK('TA Indicator Bank'!T52),\"\",'TA Indicator Bank'!T52)","v":0},{"$f":"IF(ISBLANK('TA Indicator Bank'!U52),\"\",'TA Indicator Bank'!U52)","v":0},{"$f":"IF(ISBLANK('TA Indicator Bank'!V52),\"\",'TA Indicator Bank'!V52)","v":1},{"$f":"IF(ISBLANK('TA Indicator Bank'!W52),\"\",'TA Indicator Bank'!W52)","v":0},{"$f":"IF(ISBLANK('TA Indicator Bank'!X52),\"\",'TA Indicator Bank'!X52)","v":0},{"$f":"IF(ISBLANK('TA Indicator Bank'!Y52),\"\",'TA Indicator Bank'!Y52)","v":0},{"$f":"IF(ISBLANK('TA Indicator Bank'!Z52),\"\",'TA Indicator Bank'!Z52)","v":0},{"$f":"IF(ISBLANK('TA Indicator Bank'!AA52),\"\",'TA Indicator Bank'!AA52)","v":0},{"$f":"IF(ISBLANK('TA Indicator Bank'!AB52),\"\",'TA Indicator Bank'!AB52)","v":0},{"$f":"IF(ISBLANK('TA Indicator Bank'!AC52),\"\",'TA Indicator Bank'!AC52)","v":0},{"$f":"IF(ISBLANK('TA Indicator Bank'!AD52),\"\",'TA Indicator Bank'!AD52)","v":0},{"$f":"IF(ISBLANK('TA Indicator Bank'!AE52),\"\",'TA Indicator Bank'!AE52)","v":0},{"$f":"IF(ISBLANK('TA Indicator Bank'!AF52),\"\",'TA Indicator Bank'!AF52)","v":0},{"$f":"IF(ISBLANK('TA Indicator Bank'!AG52),\"\",'TA Indicator Bank'!AG52)","v":0},{"$f":"IF(ISBLANK('TA Indicator Bank'!AH52),\"\",'TA Indicator Bank'!AH52)","v":0},{"$f":"IF(ISBLANK('TA Indicator Bank'!AI52),\"\",'TA Indicator Bank'!AI52)","v":0},{"$f":"IF(ISBLANK('TA Indicator Bank'!AJ52),\"\",'TA Indicator Bank'!AJ52)","v":0},{"$f":"IF(ISBLANK('TA Indicator Bank'!AK52),\"\",'TA Indicator Bank'!AK52)","v":0},{"$f":"IF(ISBLANK('TA Indicator Bank'!AL52),\"\",'TA Indicator Bank'!AL52)","v":0},{"$f":"IF(ISBLANK('TA Indicator Bank'!AM52),\"\",'TA Indicator Bank'!AM52)","v":0},{"$f":"IF(ISBLANK('TA Indicator Bank'!AN52),\"\",'TA Indicator Bank'!AN52)","v":0},{"$f":"IF(ISBLANK('TA Indicator Bank'!AO52),\"\",'TA Indicator Bank'!AO52)","v":0},{"$f":"IF(ISBLANK('TA Indicator Bank'!AP52),\"\",'TA Indicator Bank'!AP52)","v":0},{"$f":"IF(ISBLANK('TA Indicator Bank'!AQ52),\"\",'TA Indicator Bank'!AQ52)","v":1},{"$f":"IF(ISBLANK('TA Indicator Bank'!AR52),\"\",'TA Indicator Bank'!AR52)","v":0},{"$f":"IF(ISBLANK('TA Indicator Bank'!AS52),\"\",'TA Indicator Bank'!AS52)","v":0},{"$f":"IF(ISBLANK('TA Indicator Bank'!AT52),\"\",'TA Indicator Bank'!AT52)","v":0},{"$f":"IF(AND(J56=1,J$410=1),1,0)","v":0},{"$f":"IF(AND(K56=1,K$410=1),1,0)","v":0},{"$f":"IF(AND(L56=1,L$410=1),1,0)","v":0},{"$f":"IF(AND(M56=1,M$410=1),1,0)","v":0},{"$f":"IF(AND(N56=1,N$410=1),1,0)","v":0},{"$f":"IF(AND(O56=1,O$410=1),1,0)","v":0},{"$f":"IF(AND(P56=1,P$410=1),1,0)","v":0},{"$f":"IF(AND(Q56=1,Q$410=1),1,0)","v":0},{"$f":"IF(AND(R56=1,R$410=1),1,0)","v":0},{"$f":"IF(AND(S56=1,S$410=1),1,0)","v":0},{"$f":"IF(AND(T56=1,T$410=1),1,0)","v":0},{"$f":"IF(AND(U56=1,U$410=1),1,0)","v":0},{"$f":"IF(AND(V56=1,V$410=1),1,0)","v":1},{"$f":"IF(AND(W56=1,W$410=1),1,0)","v":0},1,{"$f":"IF(AND(X56=1,X$410=1),1,0)","v":0},{"$f":"IF(AND(Y56=1,Y$410=1),1,0)","v":0},{"$f":"IF(AND(Z56=1,Z$410=1),1,0)","v":0},{"$f":"IF(AND(AA56=1,AA$410=1),1,0)","v":0},{"$f":"IF(AND(AB56=1,AB$410=1),1,0)","v":0},{"$f":"IF(AND(AC56=1,AC$410=1),1,0)","v":0},{"$f":"IF(AND(AD56=1,AD$410=1),1,0)","v":0},{"$f":"IF(AND(AE56=1,AE$410=1),1,0)","v":0},{"$f":"IF(AND(AF56=1,AF$410=1),1,0)","v":0},1,{"$f":"IF(AND(AG56=1,AG$410=1),1,0)","v":0},{"$f":"IF(AND(AH56=1,AH$410=1),1,0)","v":0},{"$f":"IF(AND(AI56=1,AI$410=1),1,0)","v":0},{"$f":"IF(AND(AJ56=1,AJ$410=1),1,0)","v":0},{"$f":"IF(AND(AK56=1,AK$410=1),1,0)","v":0},{"$f":"IF(AND(AL56=1,AL$410=1),1,0)","v":0},{"$f":"IF(AND(AM56=1,AM$410=1),1,0)","v":0},{"$f":"IF(AND(AN56=1,AN$410=1),1,0)","v":0},{"$f":"IF(AND(AO56=1,AO$410=1),1,0)","v":0},1,{"$f":"IF(AND(AP56=1,AP$410=1),1,0)","v":0},{"$f":"IF(AND(AQ56=1,AQ$410=1),1,0)","v":1},{"$f":"IF(AND(AR56=1,AR$410=1),1,0)","v":0},{"$f":"IF(AND(AS56=1,AS$410=1),1,0)","v":0},{"$f":"IF(AND(AT56=1,AT$410=1),1,0)","v":0},1,1,48,48,{"$f":"IFERROR(SMALL($CL$9:$CL$408,CK56),\"\")","v":48},{"$f":"IFERROR(INDEX($B$9:$I$408,$CM56,COLUMNS($CN$9:CN56)),\"\")","v":"TA048"},{"$f":"IFERROR(INDEX($B$9:$I$408,$CM56,COLUMNS($CN$9:CO56)),\"\")","v":"Number of sites on which a tool is embedded "},{"$f":"IFERROR(INDEX($B$9:$I$408,$CM56,COLUMNS($CN$9:CP56)),\"\")","v":"-"},{"$f":"IFERROR(INDEX($B$9:$I$408,$CM56,COLUMNS($CN$9:CQ56)),\"\")","v":"Uptake"},{"$f":"IFERROR(INDEX($B$9:$I$408,$CM56,COLUMNS($CN$9:CR56)),\"\")","v":"Data, software, tools and models"},{"$f":"IFERROR(INDEX($B$9:$I$408,$CM56,COLUMNS($CN$9:CS56)),\"\")","v":"-"},{"$f":"IFERROR(INDEX($B$9:$I$408,$CM56,COLUMNS($CN$9:CT56)),\"\")","v":"-"},{"$f":"IFERROR(INDEX($B$9:$I$408,$CM56,COLUMNS($CN$9:CU56)),\"\")","v":"Number"}]
[null,{"$f":"IF(ISBLANK('TA Indicator Bank'!B53),\"\",'TA Indicator Bank'!B53)","v":"TA049"},{"$f":"IF(ISBLANK('TA Indicator Bank'!C53),\"\",'TA Indicator Bank'!C53)","v":"Number of models described and communicated to potential users"},{"$f":"IF(ISBLANK('TA Indicator Bank'!D53),\"\",'TA Indicator Bank'!D53)","v":"-"},{"$f":"IF(ISBLANK('TA Indicator Bank'!E53),\"\",'TA Indicator Bank'!E53)","v":"Activity"},{"$f":"IF(ISBLANK('TA Indicator Bank'!F53),\"\",'TA Indicator Bank'!F53)","v":"Data, software, tools and models"},{"$f":"IF(ISBLANK('TA Indicator Bank'!G53),\"\",'TA Indicator Bank'!G53)","v":"-"},{"$f":"IF(ISBLANK('TA Indicator Bank'!H53),\"\",'TA Indicator Bank'!H53)","v":"-"},{"$f":"IF(ISBLANK('TA Indicator Bank'!I53),\"\",'TA Indicator Bank'!I53)","v":"Number"},{"$f":"IF(ISBLANK('TA Indicator Bank'!J53),\"\",'TA Indicator Bank'!J53)","v":0},{"$f":"IF(ISBLANK('TA Indicator Bank'!K53),\"\",'TA Indicator Bank'!K53)","v":0},{"$f":"IF(ISBLANK('TA Indicator Bank'!L53),\"\",'TA Indicator Bank'!L53)","v":0},{"$f":"IF(ISBLANK('TA Indicator Bank'!M53),\"\",'TA Indicator Bank'!M53)","v":0},{"$f":"IF(ISBLANK('TA Indicator Bank'!N53),\"\",'TA Indicator Bank'!N53)","v":0},{"$f":"IF(ISBLANK('TA Indicator Bank'!O53),\"\",'TA Indicator Bank'!O53)","v":0},{"$f":"IF(ISBLANK('TA Indicator Bank'!P53),\"\",'TA Indicator Bank'!P53)","v":0},{"$f":"IF(ISBLANK('TA Indicator Bank'!Q53),\"\",'TA Indicator Bank'!Q53)","v":0},{"$f":"IF(ISBLANK('TA Indicator Bank'!R53),\"\",'TA Indicator Bank'!R53)","v":0},{"$f":"IF(ISBLANK('TA Indicator Bank'!S53),\"\",'TA Indicator Bank'!S53)","v":0},{"$f":"IF(ISBLANK('TA Indicator Bank'!T53),\"\",'TA Indicator Bank'!T53)","v":0},{"$f":"IF(ISBLANK('TA Indicator Bank'!U53),\"\",'TA Indicator Bank'!U53)","v":0},{"$f":"IF(ISBLANK('TA Indicator Bank'!V53),\"\",'TA Indicator Bank'!V53)","v":1},{"$f":"IF(ISBLANK('TA Indicator Bank'!W53),\"\",'TA Indicator Bank'!W53)","v":0},{"$f":"IF(ISBLANK('TA Indicator Bank'!X53),\"\",'TA Indicator Bank'!X53)","v":0},{"$f":"IF(ISBLANK('TA Indicator Bank'!Y53),\"\",'TA Indicator Bank'!Y53)","v":0},{"$f":"IF(ISBLANK('TA Indicator Bank'!Z53),\"\",'TA Indicator Bank'!Z53)","v":0},{"$f":"IF(ISBLANK('TA Indicator Bank'!AA53),\"\",'TA Indicator Bank'!AA53)","v":0},{"$f":"IF(ISBLANK('TA Indicator Bank'!AB53),\"\",'TA Indicator Bank'!AB53)","v":0},{"$f":"IF(ISBLANK('TA Indicator Bank'!AC53),\"\",'TA Indicator Bank'!AC53)","v":0},{"$f":"IF(ISBLANK('TA Indicator Bank'!AD53),\"\",'TA Indicator Bank'!AD53)","v":0},{"$f":"IF(ISBLANK('TA Indicator Bank'!AE53),\"\",'TA Indicator Bank'!AE53)","v":0},{"$f":"IF(ISBLANK('TA Indicator Bank'!AF53),\"\",'TA Indicator Bank'!AF53)","v":0},{"$f":"IF(ISBLANK('TA Indicator Bank'!AG53),\"\",'TA Indicator Bank'!AG53)","v":0},{"$f":"IF(ISBLANK('TA Indicator Bank'!AH53),\"\",'TA Indicator Bank'!AH53)","v":0},{"$f":"IF(ISBLANK('TA Indicator Bank'!AI53),\"\",'TA Indicator Bank'!AI53)","v":0},{"$f":"IF(ISBLANK('TA Indicator Bank'!AJ53),\"\",'TA Indicator Bank'!AJ53)","v":0},{"$f":"IF(ISBLANK('TA Indicator Bank'!AK53),\"\",'TA Indicator Bank'!AK53)","v":0},{"$f":"IF(ISBLANK('TA Indicator Bank'!AL53),\"\",'TA Indicator Bank'!AL53)","v":0},{"$f":"IF(ISBLANK('TA Indicator Bank'!AM53),\"\",'TA Indicator Bank'!AM53)","v":0},{"$f":"IF(ISBLANK('TA Indicator Bank'!AN53),\"\",'TA Indicator Bank'!AN53)","v":0},{"$f":"IF(ISBLANK('TA Indicator Bank'!AO53),\"\",'TA Indicator Bank'!AO53)","v":0},{"$f":"IF(ISBLANK('TA Indicator Bank'!AP53),\"\",'TA Indicator Bank'!AP53)","v":1},{"$f":"IF(ISBLANK('TA Indicator Bank'!AQ53),\"\",'TA Indicator Bank'!AQ53)","v":0},{"$f":"IF(ISBLANK('TA Indicator Bank'!AR53),\"\",'TA Indicator Bank'!AR53)","v":0},{"$f":"IF(ISBLANK('TA Indicator Bank'!AS53),\"\",'TA Indicator Bank'!AS53)","v":0},{"$f":"IF(ISBLANK('TA Indicator Bank'!AT53),\"\",'TA Indicator Bank'!AT53)","v":0},{"$f":"IF(AND(J57=1,J$410=1),1,0)","v":0},{"$f":"IF(AND(K57=1,K$410=1),1,0)","v":0},{"$f":"IF(AND(L57=1,L$410=1),1,0)","v":0},{"$f":"IF(AND(M57=1,M$410=1),1,0)","v":0},{"$f":"IF(AND(N57=1,N$410=1),1,0)","v":0},{"$f":"IF(AND(O57=1,O$410=1),1,0)","v":0},{"$f":"IF(AND(P57=1,P$410=1),1,0)","v":0},{"$f":"IF(AND(Q57=1,Q$410=1),1,0)","v":0},{"$f":"IF(AND(R57=1,R$410=1),1,0)","v":0},{"$f":"IF(AND(S57=1,S$410=1),1,0)","v":0},{"$f":"IF(AND(T57=1,T$410=1),1,0)","v":0},{"$f":"IF(AND(U57=1,U$410=1),1,0)","v":0},{"$f":"IF(AND(V57=1,V$410=1),1,0)","v":1},{"$f":"IF(AND(W57=1,W$410=1),1,0)","v":0},1,{"$f":"IF(AND(X57=1,X$410=1),1,0)","v":0},{"$f":"IF(AND(Y57=1,Y$410=1),1,0)","v":0},{"$f":"IF(AND(Z57=1,Z$410=1),1,0)","v":0},{"$f":"IF(AND(AA57=1,AA$410=1),1,0)","v":0},{"$f":"IF(AND(AB57=1,AB$410=1),1,0)","v":0},{"$f":"IF(AND(AC57=1,AC$410=1),1,0)","v":0},{"$f":"IF(AND(AD57=1,AD$410=1),1,0)","v":0},{"$f":"IF(AND(AE57=1,AE$410=1),1,0)","v":0},{"$f":"IF(AND(AF57=1,AF$410=1),1,0)","v":0},1,{"$f":"IF(AND(AG57=1,AG$410=1),1,0)","v":0},{"$f":"IF(AND(AH57=1,AH$410=1),1,0)","v":0},{"$f":"IF(AND(AI57=1,AI$410=1),1,0)","v":0},{"$f":"IF(AND(AJ57=1,AJ$410=1),1,0)","v":0},{"$f":"IF(AND(AK57=1,AK$410=1),1,0)","v":0},{"$f":"IF(AND(AL57=1,AL$410=1),1,0)","v":0},{"$f":"IF(AND(AM57=1,AM$410=1),1,0)","v":0},{"$f":"IF(AND(AN57=1,AN$410=1),1,0)","v":0},{"$f":"IF(AND(AO57=1,AO$410=1),1,0)","v":0},1,{"$f":"IF(AND(AP57=1,AP$410=1),1,0)","v":1},{"$f":"IF(AND(AQ57=1,AQ$410=1),1,0)","v":0},{"$f":"IF(AND(AR57=1,AR$410=1),1,0)","v":0},{"$f":"IF(AND(AS57=1,AS$410=1),1,0)","v":0},{"$f":"IF(AND(AT57=1,AT$410=1),1,0)","v":0},1,1,49,49,{"$f":"IFERROR(SMALL($CL$9:$CL$408,CK57),\"\")","v":49},{"$f":"IFERROR(INDEX($B$9:$I$408,$CM57,COLUMNS($CN$9:CN57)),\"\")","v":"TA049"},{"$f":"IFERROR(INDEX($B$9:$I$408,$CM57,COLUMNS($CN$9:CO57)),\"\")","v":"Number of models described and communicated to potential users"},{"$f":"IFERROR(INDEX($B$9:$I$408,$CM57,COLUMNS($CN$9:CP57)),\"\")","v":"-"},{"$f":"IFERROR(INDEX($B$9:$I$408,$CM57,COLUMNS($CN$9:CQ57)),\"\")","v":"Activity"},{"$f":"IFERROR(INDEX($B$9:$I$408,$CM57,COLUMNS($CN$9:CR57)),\"\")","v":"Data, software, tools and models"},{"$f":"IFERROR(INDEX($B$9:$I$408,$CM57,COLUMNS($CN$9:CS57)),\"\")","v":"-"},{"$f":"IFERROR(INDEX($B$9:$I$408,$CM57,COLUMNS($CN$9:CT57)),\"\")","v":"-"},{"$f":"IFERROR(INDEX($B$9:$I$408,$CM57,COLUMNS($CN$9:CU57)),\"\")","v":"Number"}]
[null,{"$f":"IF(ISBLANK('TA Indicator Bank'!B54),\"\",'TA Indicator Bank'!B54)","v":"TA050"},{"$f":"IF(ISBLANK('TA Indicator Bank'!C54),\"\",'TA Indicator Bank'!C54)","v":"Number of tools created"},{"$f":"IF(ISBLANK('TA Indicator Bank'!D54),\"\",'TA Indicator Bank'!D54)","v":"-"},{"$f":"IF(ISBLANK('TA Indicator Bank'!E54),\"\",'TA Indicator Bank'!E54)","v":"Activity"},{"$f":"IF(ISBLANK('TA Indicator Bank'!F54),\"\",'TA Indicator Bank'!F54)","v":"Data, software, tools and models"},{"$f":"IF(ISBLANK('TA Indicator Bank'!G54),\"\",'TA Indicator Bank'!G54)","v":"-"},{"$f":"IF(ISBLANK('TA Indicator Bank'!H54),\"\",'TA Indicator Bank'!H54)","v":"-"},{"$f":"IF(ISBLANK('TA Indicator Bank'!I54),\"\",'TA Indicator Bank'!I54)","v":"Number"},{"$f":"IF(ISBLANK('TA Indicator Bank'!J54),\"\",'TA Indicator Bank'!J54)","v":0},{"$f":"IF(ISBLANK('TA Indicator Bank'!K54),\"\",'TA Indicator Bank'!K54)","v":0},{"$f":"IF(ISBLANK('TA Indicator Bank'!L54),\"\",'TA Indicator Bank'!L54)","v":0},{"$f":"IF(ISBLANK('TA Indicator Bank'!M54),\"\",'TA Indicator Bank'!M54)","v":0},{"$f":"IF(ISBLANK('TA Indicator Bank'!N54),\"\",'TA Indicator Bank'!N54)","v":0},{"$f":"IF(ISBLANK('TA Indicator Bank'!O54),\"\",'TA Indicator Bank'!O54)","v":0},{"$f":"IF(ISBLANK('TA Indicator Bank'!P54),\"\",'TA Indicator Bank'!P54)","v":0},{"$f":"IF(ISBLANK('TA Indicator Bank'!Q54),\"\",'TA Indicator Bank'!Q54)","v":0},{"$f":"IF(ISBLANK('TA Indicator Bank'!R54),\"\",'TA Indicator Bank'!R54)","v":0},{"$f":"IF(ISBLANK('TA Indicator Bank'!S54),\"\",'TA Indicator Bank'!S54)","v":0},{"$f":"IF(ISBLANK('TA Indicator Bank'!T54),\"\",'TA Indicator Bank'!T54)","v":0},{"$f":"IF(ISBLANK('TA Indicator Bank'!U54),\"\",'TA Indicator Bank'!U54)","v":0},{"$f":"IF(ISBLANK('TA Indicator Bank'!V54),\"\",'TA Indicator Bank'!V54)","v":1},{"$f":"IF(ISBLANK('TA Indicator Bank'!W54),\"\",'TA Indicator Bank'!W54)","v":0},{"$f":"IF(ISBLANK('TA Indicator Bank'!X54),\"\",'TA Indicator Bank'!X54)","v":0},{"$f":"IF(ISBLANK('TA Indicator Bank'!Y54),\"\",'TA Indicator Bank'!Y54)","v":0},{"$f":"IF(ISBLANK('TA Indicator Bank'!Z54),\"\",'TA Indicator Bank'!Z54)","v":0},{"$f":"IF(ISBLANK('TA Indicator Bank'!AA54),\"\",'TA Indicator Bank'!AA54)","v":0},{"$f":"IF(ISBLANK('TA Indicator Bank'!AB54),\"\",'TA Indicator Bank'!AB54)","v":0},{"$f":"IF(ISBLANK('TA Indicator Bank'!AC54),\"\",'TA Indicator Bank'!AC54)","v":0},{"$f":"IF(ISBLANK('TA Indicator Bank'!AD54),\"\",'TA Indicator Bank'!AD54)","v":0},{"$f":"IF(ISBLANK('TA Indicator Bank'!AE54),\"\",'TA Indicator Bank'!AE54)","v":0},{"$f":"IF(ISBLANK('TA Indicator Bank'!AF54),\"\",'TA Indicator Bank'!AF54)","v":0},{"$f":"IF(ISBLANK('TA Indicator Bank'!AG54),\"\",'TA Indicator Bank'!AG54)","v":0},{"$f":"IF(ISBLANK('TA Indicator Bank'!AH54),\"\",'TA Indicator Bank'!AH54)","v":0},{"$f":"IF(ISBLANK('TA Indicator Bank'!AI54),\"\",'TA Indicator Bank'!AI54)","v":0},{"$f":"IF(ISBLANK('TA Indicator Bank'!AJ54),\"\",'TA Indicator Bank'!AJ54)","v":0},{"$f":"IF(ISBLANK('TA Indicator Bank'!AK54),\"\",'TA Indicator Bank'!AK54)","v":0},{"$f":"IF(ISBLANK('TA Indicator Bank'!AL54),\"\",'TA Indicator Bank'!AL54)","v":0},{"$f":"IF(ISBLANK('TA Indicator Bank'!AM54),\"\",'TA Indicator Bank'!AM54)","v":0},{"$f":"IF(ISBLANK('TA Indicator Bank'!AN54),\"\",'TA Indicator Bank'!AN54)","v":0},{"$f":"IF(ISBLANK('TA Indicator Bank'!AO54),\"\",'TA Indicator Bank'!AO54)","v":0},{"$f":"IF(ISBLANK('TA Indicator Bank'!AP54),\"\",'TA Indicator Bank'!AP54)","v":1},{"$f":"IF(ISBLANK('TA Indicator Bank'!AQ54),\"\",'TA Indicator Bank'!AQ54)","v":0},{"$f":"IF(ISBLANK('TA Indicator Bank'!AR54),\"\",'TA Indicator Bank'!AR54)","v":0},{"$f":"IF(ISBLANK('TA Indicator Bank'!AS54),\"\",'TA Indicator Bank'!AS54)","v":0},{"$f":"IF(ISBLANK('TA Indicator Bank'!AT54),\"\",'TA Indicator Bank'!AT54)","v":0},{"$f":"IF(AND(J58=1,J$410=1),1,0)","v":0},{"$f":"IF(AND(K58=1,K$410=1),1,0)","v":0},{"$f":"IF(AND(L58=1,L$410=1),1,0)","v":0},{"$f":"IF(AND(M58=1,M$410=1),1,0)","v":0},{"$f":"IF(AND(N58=1,N$410=1),1,0)","v":0},{"$f":"IF(AND(O58=1,O$410=1),1,0)","v":0},{"$f":"IF(AND(P58=1,P$410=1),1,0)","v":0},{"$f":"IF(AND(Q58=1,Q$410=1),1,0)","v":0},{"$f":"IF(AND(R58=1,R$410=1),1,0)","v":0},{"$f":"IF(AND(S58=1,S$410=1),1,0)","v":0},{"$f":"IF(AND(T58=1,T$410=1),1,0)","v":0},{"$f":"IF(AND(U58=1,U$410=1),1,0)","v":0},{"$f":"IF(AND(V58=1,V$410=1),1,0)","v":1},{"$f":"IF(AND(W58=1,W$410=1),1,0)","v":0},1,{"$f":"IF(AND(X58=1,X$410=1),1,0)","v":0},{"$f":"IF(AND(Y58=1,Y$410=1),1,0)","v":0},{"$f":"IF(AND(Z58=1,Z$410=1),1,0)","v":0},{"$f":"IF(AND(AA58=1,AA$410=1),1,0)","v":0},{"$f":"IF(AND(AB58=1,AB$410=1),1,0)","v":0},{"$f":"IF(AND(AC58=1,AC$410=1),1,0)","v":0},{"$f":"IF(AND(AD58=1,AD$410=1),1,0)","v":0},{"$f":"IF(AND(AE58=1,AE$410=1),1,0)","v":0},{"$f":"IF(AND(AF58=1,AF$410=1),1,0)","v":0},1,{"$f":"IF(AND(AG58=1,AG$410=1),1,0)","v":0},{"$f":"IF(AND(AH58=1,AH$410=1),1,0)","v":0},{"$f":"IF(AND(AI58=1,AI$410=1),1,0)","v":0},{"$f":"IF(AND(AJ58=1,AJ$410=1),1,0)","v":0},{"$f":"IF(AND(AK58=1,AK$410=1),1,0)","v":0},{"$f":"IF(AND(AL58=1,AL$410=1),1,0)","v":0},{"$f":"IF(AND(AM58=1,AM$410=1),1,0)","v":0},{"$f":"IF(AND(AN58=1,AN$410=1),1,0)","v":0},{"$f":"IF(AND(AO58=1,AO$410=1),1,0)","v":0},1,{"$f":"IF(AND(AP58=1,AP$410=1),1,0)","v":1},{"$f":"IF(AND(AQ58=1,AQ$410=1),1,0)","v":0},{"$f":"IF(AND(AR58=1,AR$410=1),1,0)","v":0},{"$f":"IF(AND(AS58=1,AS$410=1),1,0)","v":0},{"$f":"IF(AND(AT58=1,AT$410=1),1,0)","v":0},1,1,50,50,{"$f":"IFERROR(SMALL($CL$9:$CL$408,CK58),\"\")","v":50},{"$f":"IFERROR(INDEX($B$9:$I$408,$CM58,COLUMNS($CN$9:CN58)),\"\")","v":"TA050"},{"$f":"IFERROR(INDEX($B$9:$I$408,$CM58,COLUMNS($CN$9:CO58)),\"\")","v":"Number of tools created"},{"$f":"IFERROR(INDEX($B$9:$I$408,$CM58,COLUMNS($CN$9:CP58)),\"\")","v":"-"},{"$f":"IFERROR(INDEX($B$9:$I$408,$CM58,COLUMNS($CN$9:CQ58)),\"\")","v":"Activity"},{"$f":"IFERROR(INDEX($B$9:$I$408,$CM58,COLUMNS($CN$9:CR58)),\"\")","v":"Data, software, tools and models"},{"$f":"IFERROR(INDEX($B$9:$I$408,$CM58,COLUMNS($CN$9:CS58)),\"\")","v":"-"},{"$f":"IFERROR(INDEX($B$9:$I$408,$CM58,COLUMNS($CN$9:CT58)),\"\")","v":"-"},{"$f":"IFERROR(INDEX($B$9:$I$408,$CM58,COLUMNS($CN$9:CU58)),\"\")","v":"Number"}]
[null,{"$f":"IF(ISBLANK('TA Indicator Bank'!B55),\"\",'TA Indicator Bank'!B55)","v":"TA051"},{"$f":"IF(ISBLANK('TA Indicator Bank'!C55),\"\",'TA Indicator Bank'!C55)","v":"Number of stakeholders that present tool or its results"},{"$f":"IF(ISBLANK('TA Indicator Bank'!D55),\"\",'TA Indicator Bank'!D55)","v":"-"},{"$f":"IF(ISBLANK('TA Indicator Bank'!E55),\"\",'TA Indicator Bank'!E55)","v":"Output"},{"$f":"IF(ISBLANK('TA Indicator Bank'!F55),\"\",'TA Indicator Bank'!F55)","v":"-"},{"$f":"IF(ISBLANK('TA Indicator Bank'!G55),\"\",'TA Indicator Bank'!G55)","v":"Capacity building: Technical capacity"},{"$f":"IF(ISBLANK('TA Indicator Bank'!H55),\"\",'TA Indicator Bank'!H55)","v":"-"},{"$f":"IF(ISBLANK('TA Indicator Bank'!I55),\"\",'TA Indicator Bank'!I55)","v":"Number"},{"$f":"IF(ISBLANK('TA Indicator Bank'!J55),\"\",'TA Indicator Bank'!J55)","v":0},{"$f":"IF(ISBLANK('TA Indicator Bank'!K55),\"\",'TA Indicator Bank'!K55)","v":0},{"$f":"IF(ISBLANK('TA Indicator Bank'!L55),\"\",'TA Indicator Bank'!L55)","v":0},{"$f":"IF(ISBLANK('TA Indicator Bank'!M55),\"\",'TA Indicator Bank'!M55)","v":0},{"$f":"IF(ISBLANK('TA Indicator Bank'!N55),\"\",'TA Indicator Bank'!N55)","v":0},{"$f":"IF(ISBLANK('TA Indicator Bank'!O55),\"\",'TA Indicator Bank'!O55)","v":0},{"$f":"IF(ISBLANK('TA Indicator Bank'!P55),\"\",'TA Indicator Bank'!P55)","v":0},{"$f":"IF(ISBLANK('TA Indicator Bank'!Q55),\"\",'TA Indicator Bank'!Q55)","v":0},{"$f":"IF(ISBLANK('TA Indicator Bank'!R55),\"\",'TA Indicator Bank'!R55)","v":0},{"$f":"IF(ISBLANK('TA Indicator Bank'!S55),\"\",'TA Indicator Bank'!S55)","v":0},{"$f":"IF(ISBLANK('TA Indicator Bank'!T55),\"\",'TA Indicator Bank'!T55)","v":0},{"$f":"IF(ISBLANK('TA Indicator Bank'!U55),\"\",'TA Indicator Bank'!U55)","v":0},{"$f":"IF(ISBLANK('TA Indicator Bank'!V55),\"\",'TA Indicator Bank'!V55)","v":0},{"$f":"IF(ISBLANK('TA Indicator Bank'!W55),\"\",'TA Indicator Bank'!W55)","v":0},{"$f":"IF(ISBLANK('TA Indicator Bank'!X55),\"\",'TA Indicator Bank'!X55)","v":0},{"$f":"IF(ISBLANK('TA Indicator Bank'!Y55),\"\",'TA Indicator Bank'!Y55)","v":1},{"$f":"IF(ISBLANK('TA Indicator Bank'!Z55),\"\",'TA Indicator Bank'!Z55)","v":0},{"$f":"IF(ISBLANK('TA Indicator Bank'!AA55),\"\",'TA Indicator Bank'!AA55)","v":0},{"$f":"IF(ISBLANK('TA Indicator Bank'!AB55),\"\",'TA Indicator Bank'!AB55)","v":0},{"$f":"IF(ISBLANK('TA Indicator Bank'!AC55),\"\",'TA Indicator Bank'!AC55)","v":0},{"$f":"IF(ISBLANK('TA Indicator Bank'!AD55),\"\",'TA Indicator Bank'!AD55)","v":0},{"$f":"IF(ISBLANK('TA Indicator Bank'!AE55),\"\",'TA Indicator Bank'!AE55)","v":0},{"$f":"IF(ISBLANK('TA Indicator Bank'!AF55),\"\",'TA Indicator Bank'!AF55)","v":0},{"$f":"IF(ISBLANK('TA Indicator Bank'!AG55),\"\",'TA Indicator Bank'!AG55)","v":0},{"$f":"IF(ISBLANK('TA Indicator Bank'!AH55),\"\",'TA Indicator Bank'!AH55)","v":0},{"$f":"IF(ISBLANK('TA Indicator Bank'!AI55),\"\",'TA Indicator Bank'!AI55)","v":0},{"$f":"IF(ISBLANK('TA Indicator Bank'!AJ55),\"\",'TA Indicator Bank'!AJ55)","v":0},{"$f":"IF(ISBLANK('TA Indicator Bank'!AK55),\"\",'TA Indicator Bank'!AK55)","v":0},{"$f":"IF(ISBLANK('TA Indicator Bank'!AL55),\"\",'TA Indicator Bank'!AL55)","v":0},{"$f":"IF(ISBLANK('TA Indicator Bank'!AM55),\"\",'TA Indicator Bank'!AM55)","v":0},{"$f":"IF(ISBLANK('TA Indicator Bank'!AN55),\"\",'TA Indicator Bank'!AN55)","v":0},{"$f":"IF(ISBLANK('TA Indicator Bank'!AO55),\"\",'TA Indicator Bank'!AO55)","v":0},{"$f":"IF(ISBLANK('TA Indicator Bank'!AP55),\"\",'TA Indicator Bank'!AP55)","v":0},{"$f":"IF(ISBLANK('TA Indicator Bank'!AQ55),\"\",'TA Indicator Bank'!AQ55)","v":0},{"$f":"IF(ISBLANK('TA Indicator Bank'!AR55),\"\",'TA Indicator Bank'!AR55)","v":1},{"$f":"IF(ISBLANK('TA Indicator Bank'!AS55),\"\",'TA Indicator Bank'!AS55)","v":0},{"$f":"IF(ISBLANK('TA Indicator Bank'!AT55),\"\",'TA Indicator Bank'!AT55)","v":0},{"$f":"IF(AND(J59=1,J$410=1),1,0)","v":0},{"$f":"IF(AND(K59=1,K$410=1),1,0)","v":0},{"$f":"IF(AND(L59=1,L$410=1),1,0)","v":0},{"$f":"IF(AND(M59=1,M$410=1),1,0)","v":0},{"$f":"IF(AND(N59=1,N$410=1),1,0)","v":0},{"$f":"IF(AND(O59=1,O$410=1),1,0)","v":0},{"$f":"IF(AND(P59=1,P$410=1),1,0)","v":0},{"$f":"IF(AND(Q59=1,Q$410=1),1,0)","v":0},{"$f":"IF(AND(R59=1,R$410=1),1,0)","v":0},{"$f":"IF(AND(S59=1,S$410=1),1,0)","v":0},{"$f":"IF(AND(T59=1,T$410=1),1,0)","v":0},{"$f":"IF(AND(U59=1,U$410=1),1,0)","v":0},{"$f":"IF(AND(V59=1,V$410=1),1,0)","v":0},{"$f":"IF(AND(W59=1,W$410=1),1,0)","v":0},1,{"$f":"IF(AND(X59=1,X$410=1),1,0)","v":0},{"$f":"IF(AND(Y59=1,Y$410=1),1,0)","v":1},{"$f":"IF(AND(Z59=1,Z$410=1),1,0)","v":0},{"$f":"IF(AND(AA59=1,AA$410=1),1,0)","v":0},{"$f":"IF(AND(AB59=1,AB$410=1),1,0)","v":0},{"$f":"IF(AND(AC59=1,AC$410=1),1,0)","v":0},{"$f":"IF(AND(AD59=1,AD$410=1),1,0)","v":0},{"$f":"IF(AND(AE59=1,AE$410=1),1,0)","v":0},{"$f":"IF(AND(AF59=1,AF$410=1),1,0)","v":0},1,{"$f":"IF(AND(AG59=1,AG$410=1),1,0)","v":0},{"$f":"IF(AND(AH59=1,AH$410=1),1,0)","v":0},{"$f":"IF(AND(AI59=1,AI$410=1),1,0)","v":0},{"$f":"IF(AND(AJ59=1,AJ$410=1),1,0)","v":0},{"$f":"IF(AND(AK59=1,AK$410=1),1,0)","v":0},{"$f":"IF(AND(AL59=1,AL$410=1),1,0)","v":0},{"$f":"IF(AND(AM59=1,AM$410=1),1,0)","v":0},{"$f":"IF(AND(AN59=1,AN$410=1),1,0)","v":0},{"$f":"IF(AND(AO59=1,AO$410=1),1,0)","v":0},1,{"$f":"IF(AND(AP59=1,AP$410=1),1,0)","v":0},{"$f":"IF(AND(AQ59=1,AQ$410=1),1,0)","v":0},{"$f":"IF(AND(AR59=1,AR$410=1),1,0)","v":1},{"$f":"IF(AND(AS59=1,AS$410=1),1,0)","v":0},{"$f":"IF(AND(AT59=1,AT$410=1),1,0)","v":0},1,1,51,51,{"$f":"IFERROR(SMALL($CL$9:$CL$408,CK59),\"\")","v":51},{"$f":"IFERROR(INDEX($B$9:$I$408,$CM59,COLUMNS($CN$9:CN59)),\"\")","v":"TA051"},{"$f":"IFERROR(INDEX($B$9:$I$408,$CM59,COLUMNS($CN$9:CO59)),\"\")","v":"Number of stakeholders that present tool or its results"},{"$f":"IFERROR(INDEX($B$9:$I$408,$CM59,COLUMNS($CN$9:CP59)),\"\")","v":"-"},{"$f":"IFERROR(INDEX($B$9:$I$408,$CM59,COLUMNS($CN$9:CQ59)),\"\")","v":"Output"},{"$f":"IFERROR(INDEX($B$9:$I$408,$CM59,COLUMNS($CN$9:CR59)),\"\")","v":"-"},{"$f":"IFERROR(INDEX($B$9:$I$408,$CM59,COLUMNS($CN$9:CS59)),\"\")","v":"Capacity building: Technical capacity"},{"$f":"IFERROR(INDEX($B$9:$I$408,$CM59,COLUMNS($CN$9:CT59)),\"\")","v":"-"},{"$f":"IFERROR(INDEX($B$9:$I$408,$CM59,COLUMNS($CN$9:CU59)),\"\")","v":"Number"}]
[null,{"$f":"IF(ISBLANK('TA Indicator Bank'!B56),\"\",'TA Indicator Bank'!B56)","v":"TA052"},{"$f":"IF(ISBLANK('TA Indicator Bank'!C56),\"\",'TA Indicator Bank'!C56)","v":"Number of users that report the tool contribute to programme objectives"},{"$f":"IF(ISBLANK('TA Indicator Bank'!D56),\"\",'TA Indicator Bank'!D56)","v":"-"},{"$f":"IF(ISBLANK('TA Indicator Bank'!E56),\"\",'TA Indicator Bank'!E56)","v":"Output"},{"$f":"IF(ISBLANK('TA Indicator Bank'!F56),\"\",'TA Indicator Bank'!F56)","v":"-"},{"$f":"IF(ISBLANK('TA Indicator Bank'!G56),\"\",'TA Indicator Bank'!G56)","v":"Capacity building: Technical capacity"},{"$f":"IF(ISBLANK('TA Indicator Bank'!H56),\"\",'TA Indicator Bank'!H56)","v":"-"},{"$f":"IF(ISBLANK('TA Indicator Bank'!I56),\"\",'TA Indicator Bank'!I56)","v":"Number"},{"$f":"IF(ISBLANK('TA Indicator Bank'!J56),\"\",'TA Indicator Bank'!J56)","v":0},{"$f":"IF(ISBLANK('TA Indicator Bank'!K56),\"\",'TA Indicator Bank'!K56)","v":0},{"$f":"IF(ISBLANK('TA Indicator Bank'!L56),\"\",'TA Indicator Bank'!L56)","v":0},{"$f":"IF(ISBLANK('TA Indicator Bank'!M56),\"\",'TA Indicator Bank'!M56)","v":0},{"$f":"IF(ISBLANK('TA Indicator Bank'!N56),\"\",'TA Indicator Bank'!N56)","v":0},{"$f":"IF(ISBLANK('TA Indicator Bank'!O56),\"\",'TA Indicator Bank'!O56)","v":0},{"$f":"IF(ISBLANK('TA Indicator Bank'!P56),\"\",'TA Indicator Bank'!P56)","v":0},{"$f":"IF(ISBLANK('TA Indicator Bank'!Q56),\"\",'TA Indicator Bank'!Q56)","v":0},{"$f":"IF(ISBLANK('TA Indicator Bank'!R56),\"\",'TA Indicator Bank'!R56)","v":0},{"$f":"IF(ISBLANK('TA Indicator Bank'!S56),\"\",'TA Indicator Bank'!S56)","v":0},{"$f":"IF(ISBLANK('TA Indicator Bank'!T56),\"\",'TA Indicator Bank'!T56)","v":0},{"$f":"IF(ISBLANK('TA Indicator Bank'!U56),\"\",'TA Indicator Bank'!U56)","v":0},{"$f":"IF(ISBLANK('TA Indicator Bank'!V56),\"\",'TA Indicator Bank'!V56)","v":0},{"$f":"IF(ISBLANK('TA Indicator Bank'!W56),\"\",'TA Indicator Bank'!W56)","v":0},{"$f":"IF(ISBLANK('TA Indicator Bank'!X56),\"\",'TA Indicator Bank'!X56)","v":0},{"$f":"IF(ISBLANK('TA Indicator Bank'!Y56),\"\",'TA Indicator Bank'!Y56)","v":1},{"$f":"IF(ISBLANK('TA Indicator Bank'!Z56),\"\",'TA Indicator Bank'!Z56)","v":0},{"$f":"IF(ISBLANK('TA Indicator Bank'!AA56),\"\",'TA Indicator Bank'!AA56)","v":0},{"$f":"IF(ISBLANK('TA Indicator Bank'!AB56),\"\",'TA Indicator Bank'!AB56)","v":0},{"$f":"IF(ISBLANK('TA Indicator Bank'!AC56),\"\",'TA Indicator Bank'!AC56)","v":0},{"$f":"IF(ISBLANK('TA Indicator Bank'!AD56),\"\",'TA Indicator Bank'!AD56)","v":0},{"$f":"IF(ISBLANK('TA Indicator Bank'!AE56),\"\",'TA Indicator Bank'!AE56)","v":0},{"$f":"IF(ISBLANK('TA Indicator Bank'!AF56),\"\",'TA Indicator Bank'!AF56)","v":0},{"$f":"IF(ISBLANK('TA Indicator Bank'!AG56),\"\",'TA Indicator Bank'!AG56)","v":0},{"$f":"IF(ISBLANK('TA Indicator Bank'!AH56),\"\",'TA Indicator Bank'!AH56)","v":0},{"$f":"IF(ISBLANK('TA Indicator Bank'!AI56),\"\",'TA Indicator Bank'!AI56)","v":0},{"$f":"IF(ISBLANK('TA Indicator Bank'!AJ56),\"\",'TA Indicator Bank'!AJ56)","v":0},{"$f":"IF(ISBLANK('TA Indicator Bank'!AK56),\"\",'TA Indicator Bank'!AK56)","v":0},{"$f":"IF(ISBLANK('TA Indicator Bank'!AL56),\"\",'TA Indicator Bank'!AL56)","v":0},{"$f":"IF(ISBLANK('TA Indicator Bank'!AM56),\"\",'TA Indicator Bank'!AM56)","v":0},{"$f":"IF(ISBLANK('TA Indicator Bank'!AN56),\"\",'TA Indicator Bank'!AN56)","v":0},{"$f":"IF(ISBLANK('TA Indicator Bank'!AO56),\"\",'TA Indicator Bank'!AO56)","v":0},{"$f":"IF(ISBLANK('TA Indicator Bank'!AP56),\"\",'TA Indicator Bank'!AP56)","v":0},{"$f":"IF(ISBLANK('TA Indicator Bank'!AQ56),\"\",'TA Indicator Bank'!AQ56)","v":0},{"$f":"IF(ISBLANK('TA Indicator Bank'!AR56),\"\",'TA Indicator Bank'!AR56)","v":1},{"$f":"IF(ISBLANK('TA Indicator Bank'!AS56),\"\",'TA Indicator Bank'!AS56)","v":0},{"$f":"IF(ISBLANK('TA Indicator Bank'!AT56),\"\",'TA Indicator Bank'!AT56)","v":0},{"$f":"IF(AND(J60=1,J$410=1),1,0)","v":0},{"$f":"IF(AND(K60=1,K$410=1),1,0)","v":0},{"$f":"IF(AND(L60=1,L$410=1),1,0)","v":0},{"$f":"IF(AND(M60=1,M$410=1),1,0)","v":0},{"$f":"IF(AND(N60=1,N$410=1),1,0)","v":0},{"$f":"IF(AND(O60=1,O$410=1),1,0)","v":0},{"$f":"IF(AND(P60=1,P$410=1),1,0)","v":0},{"$f":"IF(AND(Q60=1,Q$410=1),1,0)","v":0},{"$f":"IF(AND(R60=1,R$410=1),1,0)","v":0},{"$f":"IF(AND(S60=1,S$410=1),1,0)","v":0},{"$f":"IF(AND(T60=1,T$410=1),1,0)","v":0},{"$f":"IF(AND(U60=1,U$410=1),1,0)","v":0},{"$f":"IF(AND(V60=1,V$410=1),1,0)","v":0},{"$f":"IF(AND(W60=1,W$410=1),1,0)","v":0},1,{"$f":"IF(AND(X60=1,X$410=1),1,0)","v":0},{"$f":"IF(AND(Y60=1,Y$410=1),1,0)","v":1},{"$f":"IF(AND(Z60=1,Z$410=1),1,0)","v":0},{"$f":"IF(AND(AA60=1,AA$410=1),1,0)","v":0},{"$f":"IF(AND(AB60=1,AB$410=1),1,0)","v":0},{"$f":"IF(AND(AC60=1,AC$410=1),1,0)","v":0},{"$f":"IF(AND(AD60=1,AD$410=1),1,0)","v":0},{"$f":"IF(AND(AE60=1,AE$410=1),1,0)","v":0},{"$f":"IF(AND(AF60=1,AF$410=1),1,0)","v":0},1,{"$f":"IF(AND(AG60=1,AG$410=1),1,0)","v":0},{"$f":"IF(AND(AH60=1,AH$410=1),1,0)","v":0},{"$f":"IF(AND(AI60=1,AI$410=1),1,0)","v":0},{"$f":"IF(AND(AJ60=1,AJ$410=1),1,0)","v":0},{"$f":"IF(AND(AK60=1,AK$410=1),1,0)","v":0},{"$f":"IF(AND(AL60=1,AL$410=1),1,0)","v":0},{"$f":"IF(AND(AM60=1,AM$410=1),1,0)","v":0},{"$f":"IF(AND(AN60=1,AN$410=1),1,0)","v":0},{"$f":"IF(AND(AO60=1,AO$410=1),1,0)","v":0},1,{"$f":"IF(AND(AP60=1,AP$410=1),1,0)","v":0},{"$f":"IF(AND(AQ60=1,AQ$410=1),1,0)","v":0},{"$f":"IF(AND(AR60=1,AR$410=1),1,0)","v":1},{"$f":"IF(AND(AS60=1,AS$410=1),1,0)","v":0},{"$f":"IF(AND(AT60=1,AT$410=1),1,0)","v":0},1,1,52,52,{"$f":"IFERROR(SMALL($CL$9:$CL$408,CK60),\"\")","v":52},{"$f":"IFERROR(INDEX($B$9:$I$408,$CM60,COLUMNS($CN$9:CN60)),\"\")","v":"TA052"},{"$f":"IFERROR(INDEX($B$9:$I$408,$CM60,COLUMNS($CN$9:CO60)),\"\")","v":"Number of users that report the tool contribute to programme objectives"},{"$f":"IFERROR(INDEX($B$9:$I$408,$CM60,COLUMNS($CN$9:CP60)),\"\")","v":"-"},{"$f":"IFERROR(INDEX($B$9:$I$408,$CM60,COLUMNS($CN$9:CQ60)),\"\")","v":"Output"},{"$f":"IFERROR(INDEX($B$9:$I$408,$CM60,COLUMNS($CN$9:CR60)),\"\")","v":"-"},{"$f":"IFERROR(INDEX($B$9:$I$408,$CM60,COLUMNS($CN$9:CS60)),\"\")","v":"Capacity building: Technical capacity"},{"$f":"IFERROR(INDEX($B$9:$I$408,$CM60,COLUMNS($CN$9:CT60)),\"\")","v":"-"},{"$f":"IFERROR(INDEX($B$9:$I$408,$CM60,COLUMNS($CN$9:CU60)),\"\")","v":"Number"}]
[null,{"$f":"IF(ISBLANK('TA Indicator Bank'!B57),\"\",'TA Indicator Bank'!B57)","v":"TA053"},{"$f":"IF(ISBLANK('TA Indicator Bank'!C57),\"\",'TA Indicator Bank'!C57)","v":"Number of policymakers external to the programme that plan to adopt tool methodology"},{"$f":"IF(ISBLANK('TA Indicator Bank'!D57),\"\",'TA Indicator Bank'!D57)","v":"-"},{"$f":"IF(ISBLANK('TA Indicator Bank'!E57),\"\",'TA Indicator Bank'!E57)","v":"Output"},{"$f":"IF(ISBLANK('TA Indicator Bank'!F57),\"\",'TA Indicator Bank'!F57)","v":"-"},{"$f":"IF(ISBLANK('TA Indicator Bank'!G57),\"\",'TA Indicator Bank'!G57)","v":"Capacity building: Technical capacity"},{"$f":"IF(ISBLANK('TA Indicator Bank'!H57),\"\",'TA Indicator Bank'!H57)","v":"-"},{"$f":"IF(ISBLANK('TA Indicator Bank'!I57),\"\",'TA Indicator Bank'!I57)","v":"Number"},{"$f":"IF(ISBLANK('TA Indicator Bank'!J57),\"\",'TA Indicator Bank'!J57)","v":0},{"$f":"IF(ISBLANK('TA Indicator Bank'!K57),\"\",'TA Indicator Bank'!K57)","v":0},{"$f":"IF(ISBLANK('TA Indicator Bank'!L57),\"\",'TA Indicator Bank'!L57)","v":0},{"$f":"IF(ISBLANK('TA Indicator Bank'!M57),\"\",'TA Indicator Bank'!M57)","v":0},{"$f":"IF(ISBLANK('TA Indicator Bank'!N57),\"\",'TA Indicator Bank'!N57)","v":0},{"$f":"IF(ISBLANK('TA Indicator Bank'!O57),\"\",'TA Indicator Bank'!O57)","v":0},{"$f":"IF(ISBLANK('TA Indicator Bank'!P57),\"\",'TA Indicator Bank'!P57)","v":0},{"$f":"IF(ISBLANK('TA Indicator Bank'!Q57),\"\",'TA Indicator Bank'!Q57)","v":0},{"$f":"IF(ISBLANK('TA Indicator Bank'!R57),\"\",'TA Indicator Bank'!R57)","v":0},{"$f":"IF(ISBLANK('TA Indicator Bank'!S57),\"\",'TA Indicator Bank'!S57)","v":0},{"$f":"IF(ISBLANK('TA Indicator Bank'!T57),\"\",'TA Indicator Bank'!T57)","v":0},{"$f":"IF(ISBLANK('TA Indicator Bank'!U57),\"\",'TA Indicator Bank'!U57)","v":0},{"$f":"IF(ISBLANK('TA Indicator Bank'!V57),\"\",'TA Indicator Bank'!V57)","v":0},{"$f":"IF(ISBLANK('TA Indicator Bank'!W57),\"\",'TA Indicator Bank'!W57)","v":0},{"$f":"IF(ISBLANK('TA Indicator Bank'!X57),\"\",'TA Indicator Bank'!X57)","v":0},{"$f":"IF(ISBLANK('TA Indicator Bank'!Y57),\"\",'TA Indicator Bank'!Y57)","v":1},{"$f":"IF(ISBLANK('TA Indicator Bank'!Z57),\"\",'TA Indicator Bank'!Z57)","v":0},{"$f":"IF(ISBLANK('TA Indicator Bank'!AA57),\"\",'TA Indicator Bank'!AA57)","v":0},{"$f":"IF(ISBLANK('TA Indicator Bank'!AB57),\"\",'TA Indicator Bank'!AB57)","v":0},{"$f":"IF(ISBLANK('TA Indicator Bank'!AC57),\"\",'TA Indicator Bank'!AC57)","v":0},{"$f":"IF(ISBLANK('TA Indicator Bank'!AD57),\"\",'TA Indicator Bank'!AD57)","v":0},{"$f":"IF(ISBLANK('TA Indicator Bank'!AE57),\"\",'TA Indicator Bank'!AE57)","v":0},{"$f":"IF(ISBLANK('TA Indicator Bank'!AF57),\"\",'TA Indicator Bank'!AF57)","v":0},{"$f":"IF(ISBLANK('TA Indicator Bank'!AG57),\"\",'TA Indicator Bank'!AG57)","v":0},{"$f":"IF(ISBLANK('TA Indicator Bank'!AH57),\"\",'TA Indicator Bank'!AH57)","v":0},{"$f":"IF(ISBLANK('TA Indicator Bank'!AI57),\"\",'TA Indicator Bank'!AI57)","v":0},{"$f":"IF(ISBLANK('TA Indicator Bank'!AJ57),\"\",'TA Indicator Bank'!AJ57)","v":0},{"$f":"IF(ISBLANK('TA Indicator Bank'!AK57),\"\",'TA Indicator Bank'!AK57)","v":0},{"$f":"IF(ISBLANK('TA Indicator Bank'!AL57),\"\",'TA Indicator Bank'!AL57)","v":0},{"$f":"IF(ISBLANK('TA Indicator Bank'!AM57),\"\",'TA Indicator Bank'!AM57)","v":0},{"$f":"IF(ISBLANK('TA Indicator Bank'!AN57),\"\",'TA Indicator Bank'!AN57)","v":0},{"$f":"IF(ISBLANK('TA Indicator Bank'!AO57),\"\",'TA Indicator Bank'!AO57)","v":0},{"$f":"IF(ISBLANK('TA Indicator Bank'!AP57),\"\",'TA Indicator Bank'!AP57)","v":0},{"$f":"IF(ISBLANK('TA Indicator Bank'!AQ57),\"\",'TA Indicator Bank'!AQ57)","v":0},{"$f":"IF(ISBLANK('TA Indicator Bank'!AR57),\"\",'TA Indicator Bank'!AR57)","v":1},{"$f":"IF(ISBLANK('TA Indicator Bank'!AS57),\"\",'TA Indicator Bank'!AS57)","v":0},{"$f":"IF(ISBLANK('TA Indicator Bank'!AT57),\"\",'TA Indicator Bank'!AT57)","v":0},{"$f":"IF(AND(J61=1,J$410=1),1,0)","v":0},{"$f":"IF(AND(K61=1,K$410=1),1,0)","v":0},{"$f":"IF(AND(L61=1,L$410=1),1,0)","v":0},{"$f":"IF(AND(M61=1,M$410=1),1,0)","v":0},{"$f":"IF(AND(N61=1,N$410=1),1,0)","v":0},{"$f":"IF(AND(O61=1,O$410=1),1,0)","v":0},{"$f":"IF(AND(P61=1,P$410=1),1,0)","v":0},{"$f":"IF(AND(Q61=1,Q$410=1),1,0)","v":0},{"$f":"IF(AND(R61=1,R$410=1),1,0)","v":0},{"$f":"IF(AND(S61=1,S$410=1),1,0)","v":0},{"$f":"IF(AND(T61=1,T$410=1),1,0)","v":0},{"$f":"IF(AND(U61=1,U$410=1),1,0)","v":0},{"$f":"IF(AND(V61=1,V$410=1),1,0)","v":0},{"$f":"IF(AND(W61=1,W$410=1),1,0)","v":0},1,{"$f":"IF(AND(X61=1,X$410=1),1,0)","v":0},{"$f":"IF(AND(Y61=1,Y$410=1),1,0)","v":1},{"$f":"IF(AND(Z61=1,Z$410=1),1,0)","v":0},{"$f":"IF(AND(AA61=1,AA$410=1),1,0)","v":0},{"$f":"IF(AND(AB61=1,AB$410=1),1,0)","v":0},{"$f":"IF(AND(AC61=1,AC$410=1),1,0)","v":0},{"$f":"IF(AND(AD61=1,AD$410=1),1,0)","v":0},{"$f":"IF(AND(AE61=1,AE$410=1),1,0)","v":0},{"$f":"IF(AND(AF61=1,AF$410=1),1,0)","v":0},1,{"$f":"IF(AND(AG61=1,AG$410=1),1,0)","v":0},{"$f":"IF(AND(AH61=1,AH$410=1),1,0)","v":0},{"$f":"IF(AND(AI61=1,AI$410=1),1,0)","v":0},{"$f":"IF(AND(AJ61=1,AJ$410=1),1,0)","v":0},{"$f":"IF(AND(AK61=1,AK$410=1),1,0)","v":0},{"$f":"IF(AND(AL61=1,AL$410=1),1,0)","v":0},{"$f":"IF(AND(AM61=1,AM$410=1),1,0)","v":0},{"$f":"IF(AND(AN61=1,AN$410=1),1,0)","v":0},{"$f":"IF(AND(AO61=1,AO$410=1),1,0)","v":0},1,{"$f":"IF(AND(AP61=1,AP$410=1),1,0)","v":0},{"$f":"IF(AND(AQ61=1,AQ$410=1),1,0)","v":0},{"$f":"IF(AND(AR61=1,AR$410=1),1,0)","v":1},{"$f":"IF(AND(AS61=1,AS$410=1),1,0)","v":0},{"$f":"IF(AND(AT61=1,AT$410=1),1,0)","v":0},1,1,53,53,{"$f":"IFERROR(SMALL($CL$9:$CL$408,CK61),\"\")","v":53},{"$f":"IFERROR(INDEX($B$9:$I$408,$CM61,COLUMNS($CN$9:CN61)),\"\")","v":"TA053"},{"$f":"IFERROR(INDEX($B$9:$I$408,$CM61,COLUMNS($CN$9:CO61)),\"\")","v":"Number of policymakers external to the programme that plan to adopt tool methodology"},{"$f":"IFERROR(INDEX($B$9:$I$408,$CM61,COLUMNS($CN$9:CP61)),\"\")","v":"-"},{"$f":"IFERROR(INDEX($B$9:$I$408,$CM61,COLUMNS($CN$9:CQ61)),\"\")","v":"Output"},{"$f":"IFERROR(INDEX($B$9:$I$408,$CM61,COLUMNS($CN$9:CR61)),\"\")","v":"-"},{"$f":"IFERROR(INDEX($B$9:$I$408,$CM61,COLUMNS($CN$9:CS61)),\"\")","v":"Capacity building: Technical capacity"},{"$f":"IFERROR(INDEX($B$9:$I$408,$CM61,COLUMNS($CN$9:CT61)),\"\")","v":"-"},{"$f":"IFERROR(INDEX($B$9:$I$408,$CM61,COLUMNS($CN$9:CU61)),\"\")","v":"Number"}]
[null,{"$f":"IF(ISBLANK('TA Indicator Bank'!B58),\"\",'TA Indicator Bank'!B58)","v":"TA054"},{"$f":"IF(ISBLANK('TA Indicator Bank'!C58),\"\",'TA Indicator Bank'!C58)","v":"Number of countries where high-level government representatives or stakeholders refer to the tool"},{"$f":"IF(ISBLANK('TA Indicator Bank'!D58),\"\",'TA Indicator Bank'!D58)","v":"-"},{"$f":"IF(ISBLANK('TA Indicator Bank'!E58),\"\",'TA Indicator Bank'!E58)","v":"Uptake"},{"$f":"IF(ISBLANK('TA Indicator Bank'!F58),\"\",'TA Indicator Bank'!F58)","v":"Data, software, tools and models"},{"$f":"IF(ISBLANK('TA Indicator Bank'!G58),\"\",'TA Indicator Bank'!G58)","v":"-"},{"$f":"IF(ISBLANK('TA Indicator Bank'!H58),\"\",'TA Indicator Bank'!H58)","v":"-"},{"$f":"IF(ISBLANK('TA Indicator Bank'!I58),\"\",'TA Indicator Bank'!I58)","v":"Number"},{"$f":"IF(ISBLANK('TA Indicator Bank'!J58),\"\",'TA Indicator Bank'!J58)","v":0},{"$f":"IF(ISBLANK('TA Indicator Bank'!K58),\"\",'TA Indicator Bank'!K58)","v":0},{"$f":"IF(ISBLANK('TA Indicator Bank'!L58),\"\",'TA Indicator Bank'!L58)","v":0},{"$f":"IF(ISBLANK('TA Indicator Bank'!M58),\"\",'TA Indicator Bank'!M58)","v":0},{"$f":"IF(ISBLANK('TA Indicator Bank'!N58),\"\",'TA Indicator Bank'!N58)","v":0},{"$f":"IF(ISBLANK('TA Indicator Bank'!O58),\"\",'TA Indicator Bank'!O58)","v":0},{"$f":"IF(ISBLANK('TA Indicator Bank'!P58),\"\",'TA Indicator Bank'!P58)","v":0},{"$f":"IF(ISBLANK('TA Indicator Bank'!Q58),\"\",'TA Indicator Bank'!Q58)","v":0},{"$f":"IF(ISBLANK('TA Indicator Bank'!R58),\"\",'TA Indicator Bank'!R58)","v":0},{"$f":"IF(ISBLANK('TA Indicator Bank'!S58),\"\",'TA Indicator Bank'!S58)","v":0},{"$f":"IF(ISBLANK('TA Indicator Bank'!T58),\"\",'TA Indicator Bank'!T58)","v":0},{"$f":"IF(ISBLANK('TA Indicator Bank'!U58),\"\",'TA Indicator Bank'!U58)","v":0},{"$f":"IF(ISBLANK('TA Indicator Bank'!V58),\"\",'TA Indicator Bank'!V58)","v":1},{"$f":"IF(ISBLANK('TA Indicator Bank'!W58),\"\",'TA Indicator Bank'!W58)","v":0},{"$f":"IF(ISBLANK('TA Indicator Bank'!X58),\"\",'TA Indicator Bank'!X58)","v":0},{"$f":"IF(ISBLANK('TA Indicator Bank'!Y58),\"\",'TA Indicator Bank'!Y58)","v":0},{"$f":"IF(ISBLANK('TA Indicator Bank'!Z58),\"\",'TA Indicator Bank'!Z58)","v":0},{"$f":"IF(ISBLANK('TA Indicator Bank'!AA58),\"\",'TA Indicator Bank'!AA58)","v":0},{"$f":"IF(ISBLANK('TA Indicator Bank'!AB58),\"\",'TA Indicator Bank'!AB58)","v":0},{"$f":"IF(ISBLANK('TA Indicator Bank'!AC58),\"\",'TA Indicator Bank'!AC58)","v":0},{"$f":"IF(ISBLANK('TA Indicator Bank'!AD58),\"\",'TA Indicator Bank'!AD58)","v":0},{"$f":"IF(ISBLANK('TA Indicator Bank'!AE58),\"\",'TA Indicator Bank'!AE58)","v":0},{"$f":"IF(ISBLANK('TA Indicator Bank'!AF58),\"\",'TA Indicator Bank'!AF58)","v":0},{"$f":"IF(ISBLANK('TA Indicator Bank'!AG58),\"\",'TA Indicator Bank'!AG58)","v":0},{"$f":"IF(ISBLANK('TA Indicator Bank'!AH58),\"\",'TA Indicator Bank'!AH58)","v":0},{"$f":"IF(ISBLANK('TA Indicator Bank'!AI58),\"\",'TA Indicator Bank'!AI58)","v":0},{"$f":"IF(ISBLANK('TA Indicator Bank'!AJ58),\"\",'TA Indicator Bank'!AJ58)","v":0},{"$f":"IF(ISBLANK('TA Indicator Bank'!AK58),\"\",'TA Indicator Bank'!AK58)","v":0},{"$f":"IF(ISBLANK('TA Indicator Bank'!AL58),\"\",'TA Indicator Bank'!AL58)","v":0},{"$f":"IF(ISBLANK('TA Indicator Bank'!AM58),\"\",'TA Indicator Bank'!AM58)","v":0},{"$f":"IF(ISBLANK('TA Indicator Bank'!AN58),\"\",'TA Indicator Bank'!AN58)","v":0},{"$f":"IF(ISBLANK('TA Indicator Bank'!AO58),\"\",'TA Indicator Bank'!AO58)","v":0},{"$f":"IF(ISBLANK('TA Indicator Bank'!AP58),\"\",'TA Indicator Bank'!AP58)","v":0},{"$f":"IF(ISBLANK('TA Indicator Bank'!AQ58),\"\",'TA Indicator Bank'!AQ58)","v":1},{"$f":"IF(ISBLANK('TA Indicator Bank'!AR58),\"\",'TA Indicator Bank'!AR58)","v":0},{"$f":"IF(ISBLANK('TA Indicator Bank'!AS58),\"\",'TA Indicator Bank'!AS58)","v":0},{"$f":"IF(ISBLANK('TA Indicator Bank'!AT58),\"\",'TA Indicator Bank'!AT58)","v":0},{"$f":"IF(AND(J62=1,J$410=1),1,0)","v":0},{"$f":"IF(AND(K62=1,K$410=1),1,0)","v":0},{"$f":"IF(AND(L62=1,L$410=1),1,0)","v":0},{"$f":"IF(AND(M62=1,M$410=1),1,0)","v":0},{"$f":"IF(AND(N62=1,N$410=1),1,0)","v":0},{"$f":"IF(AND(O62=1,O$410=1),1,0)","v":0},{"$f":"IF(AND(P62=1,P$410=1),1,0)","v":0},{"$f":"IF(AND(Q62=1,Q$410=1),1,0)","v":0},{"$f":"IF(AND(R62=1,R$410=1),1,0)","v":0},{"$f":"IF(AND(S62=1,S$410=1),1,0)","v":0},{"$f":"IF(AND(T62=1,T$410=1),1,0)","v":0},{"$f":"IF(AND(U62=1,U$410=1),1,0)","v":0},{"$f":"IF(AND(V62=1,V$410=1),1,0)","v":1},{"$f":"IF(AND(W62=1,W$410=1),1,0)","v":0},1,{"$f":"IF(AND(X62=1,X$410=1),1,0)","v":0},{"$f":"IF(AND(Y62=1,Y$410=1),1,0)","v":0},{"$f":"IF(AND(Z62=1,Z$410=1),1,0)","v":0},{"$f":"IF(AND(AA62=1,AA$410=1),1,0)","v":0},{"$f":"IF(AND(AB62=1,AB$410=1),1,0)","v":0},{"$f":"IF(AND(AC62=1,AC$410=1),1,0)","v":0},{"$f":"IF(AND(AD62=1,AD$410=1),1,0)","v":0},{"$f":"IF(AND(AE62=1,AE$410=1),1,0)","v":0},{"$f":"IF(AND(AF62=1,AF$410=1),1,0)","v":0},1,{"$f":"IF(AND(AG62=1,AG$410=1),1,0)","v":0},{"$f":"IF(AND(AH62=1,AH$410=1),1,0)","v":0},{"$f":"IF(AND(AI62=1,AI$410=1),1,0)","v":0},{"$f":"IF(AND(AJ62=1,AJ$410=1),1,0)","v":0},{"$f":"IF(AND(AK62=1,AK$410=1),1,0)","v":0},{"$f":"IF(AND(AL62=1,AL$410=1),1,0)","v":0},{"$f":"IF(AND(AM62=1,AM$410=1),1,0)","v":0},{"$f":"IF(AND(AN62=1,AN$410=1),1,0)","v":0},{"$f":"IF(AND(AO62=1,AO$410=1),1,0)","v":0},1,{"$f":"IF(AND(AP62=1,AP$410=1),1,0)","v":0},{"$f":"IF(AND(AQ62=1,AQ$410=1),1,0)","v":1},{"$f":"IF(AND(AR62=1,AR$410=1),1,0)","v":0},{"$f":"IF(AND(AS62=1,AS$410=1),1,0)","v":0},{"$f":"IF(AND(AT62=1,AT$410=1),1,0)","v":0},1,1,54,54,{"$f":"IFERROR(SMALL($CL$9:$CL$408,CK62),\"\")","v":54},{"$f":"IFERROR(INDEX($B$9:$I$408,$CM62,COLUMNS($CN$9:CN62)),\"\")","v":"TA054"},{"$f":"IFERROR(INDEX($B$9:$I$408,$CM62,COLUMNS($CN$9:CO62)),\"\")","v":"Number of countries where high-level government representatives or stakeholders refer to the tool"},{"$f":"IFERROR(INDEX($B$9:$I$408,$CM62,COLUMNS($CN$9:CP62)),\"\")","v":"-"},{"$f":"IFERROR(INDEX($B$9:$I$408,$CM62,COLUMNS($CN$9:CQ62)),\"\")","v":"Uptake"},{"$f":"IFERROR(INDEX($B$9:$I$408,$CM62,COLUMNS($CN$9:CR62)),\"\")","v":"Data, software, tools and models"},{"$f":"IFERROR(INDEX($B$9:$I$408,$CM62,COLUMNS($CN$9:CS62)),\"\")","v":"-"},{"$f":"IFERROR(INDEX($B$9:$I$408,$CM62,COLUMNS($CN$9:CT62)),\"\")","v":"-"},{"$f":"IFERROR(INDEX($B$9:$I$408,$CM62,COLUMNS($CN$9:CU62)),\"\")","v":"Number"}]
[null,{"$f":"IF(ISBLANK('TA Indicator Bank'!B59),\"\",'TA Indicator Bank'!B59)","v":"TA055"},{"$f":"IF(ISBLANK('TA Indicator Bank'!C59),\"\",'TA Indicator Bank'!C59)","v":"Number of countries that have launched the tool"},{"$f":"IF(ISBLANK('TA Indicator Bank'!D59),\"\",'TA Indicator Bank'!D59)","v":"-"},{"$f":"IF(ISBLANK('TA Indicator Bank'!E59),\"\",'TA Indicator Bank'!E59)","v":"Uptake"},{"$f":"IF(ISBLANK('TA Indicator Bank'!F59),\"\",'TA Indicator Bank'!F59)","v":"Data, software, tools and models"},{"$f":"IF(ISBLANK('TA Indicator Bank'!G59),\"\",'TA Indicator Bank'!G59)","v":"-"},{"$f":"IF(ISBLANK('TA Indicator Bank'!H59),\"\",'TA Indicator Bank'!H59)","v":"-"},{"$f":"IF(ISBLANK('TA Indicator Bank'!I59),\"\",'TA Indicator Bank'!I59)","v":"Number"},{"$f":"IF(ISBLANK('TA Indicator Bank'!J59),\"\",'TA Indicator Bank'!J59)","v":0},{"$f":"IF(ISBLANK('TA Indicator Bank'!K59),\"\",'TA Indicator Bank'!K59)","v":0},{"$f":"IF(ISBLANK('TA Indicator Bank'!L59),\"\",'TA Indicator Bank'!L59)","v":0},{"$f":"IF(ISBLANK('TA Indicator Bank'!M59),\"\",'TA Indicator Bank'!M59)","v":0},{"$f":"IF(ISBLANK('TA Indicator Bank'!N59),\"\",'TA Indicator Bank'!N59)","v":0},{"$f":"IF(ISBLANK('TA Indicator Bank'!O59),\"\",'TA Indicator Bank'!O59)","v":0},{"$f":"IF(ISBLANK('TA Indicator Bank'!P59),\"\",'TA Indicator Bank'!P59)","v":0},{"$f":"IF(ISBLANK('TA Indicator Bank'!Q59),\"\",'TA Indicator Bank'!Q59)","v":0},{"$f":"IF(ISBLANK('TA Indicator Bank'!R59),\"\",'TA Indicator Bank'!R59)","v":0},{"$f":"IF(ISBLANK('TA Indicator Bank'!S59),\"\",'TA Indicator Bank'!S59)","v":0},{"$f":"IF(ISBLANK('TA Indicator Bank'!T59),\"\",'TA Indicator Bank'!T59)","v":0},{"$f":"IF(ISBLANK('TA Indicator Bank'!U59),\"\",'TA Indicator Bank'!U59)","v":0},{"$f":"IF(ISBLANK('TA Indicator Bank'!V59),\"\",'TA Indicator Bank'!V59)","v":1},{"$f":"IF(ISBLANK('TA Indicator Bank'!W59),\"\",'TA Indicator Bank'!W59)","v":0},{"$f":"IF(ISBLANK('TA Indicator Bank'!X59),\"\",'TA Indicator Bank'!X59)","v":0},{"$f":"IF(ISBLANK('TA Indicator Bank'!Y59),\"\",'TA Indicator Bank'!Y59)","v":0},{"$f":"IF(ISBLANK('TA Indicator Bank'!Z59),\"\",'TA Indicator Bank'!Z59)","v":0},{"$f":"IF(ISBLANK('TA Indicator Bank'!AA59),\"\",'TA Indicator Bank'!AA59)","v":0},{"$f":"IF(ISBLANK('TA Indicator Bank'!AB59),\"\",'TA Indicator Bank'!AB59)","v":0},{"$f":"IF(ISBLANK('TA Indicator Bank'!AC59),\"\",'TA Indicator Bank'!AC59)","v":0},{"$f":"IF(ISBLANK('TA Indicator Bank'!AD59),\"\",'TA Indicator Bank'!AD59)","v":0},{"$f":"IF(ISBLANK('TA Indicator Bank'!AE59),\"\",'TA Indicator Bank'!AE59)","v":0},{"$f":"IF(ISBLANK('TA Indicator Bank'!AF59),\"\",'TA Indicator Bank'!AF59)","v":0},{"$f":"IF(ISBLANK('TA Indicator Bank'!AG59),\"\",'TA Indicator Bank'!AG59)","v":0},{"$f":"IF(ISBLANK('TA Indicator Bank'!AH59),\"\",'TA Indicator Bank'!AH59)","v":0},{"$f":"IF(ISBLANK('TA Indicator Bank'!AI59),\"\",'TA Indicator Bank'!AI59)","v":0},{"$f":"IF(ISBLANK('TA Indicator Bank'!AJ59),\"\",'TA Indicator Bank'!AJ59)","v":0},{"$f":"IF(ISBLANK('TA Indicator Bank'!AK59),\"\",'TA Indicator Bank'!AK59)","v":0},{"$f":"IF(ISBLANK('TA Indicator Bank'!AL59),\"\",'TA Indicator Bank'!AL59)","v":0},{"$f":"IF(ISBLANK('TA Indicator Bank'!AM59),\"\",'TA Indicator Bank'!AM59)","v":0},{"$f":"IF(ISBLANK('TA Indicator Bank'!AN59),\"\",'TA Indicator Bank'!AN59)","v":0},{"$f":"IF(ISBLANK('TA Indicator Bank'!AO59),\"\",'TA Indicator Bank'!AO59)","v":0},{"$f":"IF(ISBLANK('TA Indicator Bank'!AP59),\"\",'TA Indicator Bank'!AP59)","v":0},{"$f":"IF(ISBLANK('TA Indicator Bank'!AQ59),\"\",'TA Indicator Bank'!AQ59)","v":1},{"$f":"IF(ISBLANK('TA Indicator Bank'!AR59),\"\",'TA Indicator Bank'!AR59)","v":0},{"$f":"IF(ISBLANK('TA Indicator Bank'!AS59),\"\",'TA Indicator Bank'!AS59)","v":0},{"$f":"IF(ISBLANK('TA Indicator Bank'!AT59),\"\",'TA Indicator Bank'!AT59)","v":0},{"$f":"IF(AND(J63=1,J$410=1),1,0)","v":0},{"$f":"IF(AND(K63=1,K$410=1),1,0)","v":0},{"$f":"IF(AND(L63=1,L$410=1),1,0)","v":0},{"$f":"IF(AND(M63=1,M$410=1),1,0)","v":0},{"$f":"IF(AND(N63=1,N$410=1),1,0)","v":0},{"$f":"IF(AND(O63=1,O$410=1),1,0)","v":0},{"$f":"IF(AND(P63=1,P$410=1),1,0)","v":0},{"$f":"IF(AND(Q63=1,Q$410=1),1,0)","v":0},{"$f":"IF(AND(R63=1,R$410=1),1,0)","v":0},{"$f":"IF(AND(S63=1,S$410=1),1,0)","v":0},{"$f":"IF(AND(T63=1,T$410=1),1,0)","v":0},{"$f":"IF(AND(U63=1,U$410=1),1,0)","v":0},{"$f":"IF(AND(V63=1,V$410=1),1,0)","v":1},{"$f":"IF(AND(W63=1,W$410=1),1,0)","v":0},1,{"$f":"IF(AND(X63=1,X$410=1),1,0)","v":0},{"$f":"IF(AND(Y63=1,Y$410=1),1,0)","v":0},{"$f":"IF(AND(Z63=1,Z$410=1),1,0)","v":0},{"$f":"IF(AND(AA63=1,AA$410=1),1,0)","v":0},{"$f":"IF(AND(AB63=1,AB$410=1),1,0)","v":0},{"$f":"IF(AND(AC63=1,AC$410=1),1,0)","v":0},{"$f":"IF(AND(AD63=1,AD$410=1),1,0)","v":0},{"$f":"IF(AND(AE63=1,AE$410=1),1,0)","v":0},{"$f":"IF(AND(AF63=1,AF$410=1),1,0)","v":0},1,{"$f":"IF(AND(AG63=1,AG$410=1),1,0)","v":0},{"$f":"IF(AND(AH63=1,AH$410=1),1,0)","v":0},{"$f":"IF(AND(AI63=1,AI$410=1),1,0)","v":0},{"$f":"IF(AND(AJ63=1,AJ$410=1),1,0)","v":0},{"$f":"IF(AND(AK63=1,AK$410=1),1,0)","v":0},{"$f":"IF(AND(AL63=1,AL$410=1),1,0)","v":0},{"$f":"IF(AND(AM63=1,AM$410=1),1,0)","v":0},{"$f":"IF(AND(AN63=1,AN$410=1),1,0)","v":0},{"$f":"IF(AND(AO63=1,AO$410=1),1,0)","v":0},1,{"$f":"IF(AND(AP63=1,AP$410=1),1,0)","v":0},{"$f":"IF(AND(AQ63=1,AQ$410=1),1,0)","v":1},{"$f":"IF(AND(AR63=1,AR$410=1),1,0)","v":0},{"$f":"IF(AND(AS63=1,AS$410=1),1,0)","v":0},{"$f":"IF(AND(AT63=1,AT$410=1),1,0)","v":0},1,1,55,55,{"$f":"IFERROR(SMALL($CL$9:$CL$408,CK63),\"\")","v":55},{"$f":"IFERROR(INDEX($B$9:$I$408,$CM63,COLUMNS($CN$9:CN63)),\"\")","v":"TA055"},{"$f":"IFERROR(INDEX($B$9:$I$408,$CM63,COLUMNS($CN$9:CO63)),\"\")","v":"Number of countries that have launched the tool"},{"$f":"IFERROR(INDEX($B$9:$I$408,$CM63,COLUMNS($CN$9:CP63)),\"\")","v":"-"},{"$f":"IFERROR(INDEX($B$9:$I$408,$CM63,COLUMNS($CN$9:CQ63)),\"\")","v":"Uptake"},{"$f":"IFERROR(INDEX($B$9:$I$408,$CM63,COLUMNS($CN$9:CR63)),\"\")","v":"Data, software, tools and models"},{"$f":"IFERROR(INDEX($B$9:$I$408,$CM63,COLUMNS($CN$9:CS63)),\"\")","v":"-"},{"$f":"IFERROR(INDEX($B$9:$I$408,$CM63,COLUMNS($CN$9:CT63)),\"\")","v":"-"},{"$f":"IFERROR(INDEX($B$9:$I$408,$CM63,COLUMNS($CN$9:CU63)),\"\")","v":"Number"}]
[null,{"$f":"IF(ISBLANK('TA Indicator Bank'!B60),\"\",'TA Indicator Bank'!B60)","v":"TA056"},{"$f":"IF(ISBLANK('TA Indicator Bank'!C60),\"\",'TA Indicator Bank'!C60)","v":"Number of countries that have launched the tool and it is used"},{"$f":"IF(ISBLANK('TA Indicator Bank'!D60),\"\",'TA Indicator Bank'!D60)","v":"-"},{"$f":"IF(ISBLANK('TA Indicator Bank'!E60),\"\",'TA Indicator Bank'!E60)","v":"Uptake"},{"$f":"IF(ISBLANK('TA Indicator Bank'!F60),\"\",'TA Indicator Bank'!F60)","v":"Data, software, tools and models"},{"$f":"IF(ISBLANK('TA Indicator Bank'!G60),\"\",'TA Indicator Bank'!G60)","v":"-"},{"$f":"IF(ISBLANK('TA Indicator Bank'!H60),\"\",'TA Indicator Bank'!H60)","v":"-"},{"$f":"IF(ISBLANK('TA Indicator Bank'!I60),\"\",'TA Indicator Bank'!I60)","v":"Number"},{"$f":"IF(ISBLANK('TA Indicator Bank'!J60),\"\",'TA Indicator Bank'!J60)","v":0},{"$f":"IF(ISBLANK('TA Indicator Bank'!K60),\"\",'TA Indicator Bank'!K60)","v":0},{"$f":"IF(ISBLANK('TA Indicator Bank'!L60),\"\",'TA Indicator Bank'!L60)","v":0},{"$f":"IF(ISBLANK('TA Indicator Bank'!M60),\"\",'TA Indicator Bank'!M60)","v":0},{"$f":"IF(ISBLANK('TA Indicator Bank'!N60),\"\",'TA Indicator Bank'!N60)","v":0},{"$f":"IF(ISBLANK('TA Indicator Bank'!O60),\"\",'TA Indicator Bank'!O60)","v":0},{"$f":"IF(ISBLANK('TA Indicator Bank'!P60),\"\",'TA Indicator Bank'!P60)","v":0},{"$f":"IF(ISBLANK('TA Indicator Bank'!Q60),\"\",'TA Indicator Bank'!Q60)","v":0},{"$f":"IF(ISBLANK('TA Indicator Bank'!R60),\"\",'TA Indicator Bank'!R60)","v":0},{"$f":"IF(ISBLANK('TA Indicator Bank'!S60),\"\",'TA Indicator Bank'!S60)","v":0},{"$f":"IF(ISBLANK('TA Indicator Bank'!T60),\"\",'TA Indicator Bank'!T60)","v":0},{"$f":"IF(ISBLANK('TA Indicator Bank'!U60),\"\",'TA Indicator Bank'!U60)","v":0},{"$f":"IF(ISBLANK('TA Indicator Bank'!V60),\"\",'TA Indicator Bank'!V60)","v":1},{"$f":"IF(ISBLANK('TA Indicator Bank'!W60),\"\",'TA Indicator Bank'!W60)","v":0},{"$f":"IF(ISBLANK('TA Indicator Bank'!X60),\"\",'TA Indicator Bank'!X60)","v":0},{"$f":"IF(ISBLANK('TA Indicator Bank'!Y60),\"\",'TA Indicator Bank'!Y60)","v":0},{"$f":"IF(ISBLANK('TA Indicator Bank'!Z60),\"\",'TA Indicator Bank'!Z60)","v":0},{"$f":"IF(ISBLANK('TA Indicator Bank'!AA60),\"\",'TA Indicator Bank'!AA60)","v":0},{"$f":"IF(ISBLANK('TA Indicator Bank'!AB60),\"\",'TA Indicator Bank'!AB60)","v":0},{"$f":"IF(ISBLANK('TA Indicator Bank'!AC60),\"\",'TA Indicator Bank'!AC60)","v":0},{"$f":"IF(ISBLANK('TA Indicator Bank'!AD60),\"\",'TA Indicator Bank'!AD60)","v":0},{"$f":"IF(ISBLANK('TA Indicator Bank'!AE60),\"\",'TA Indicator Bank'!AE60)","v":0},{"$f":"IF(ISBLANK('TA Indicator Bank'!AF60),\"\",'TA Indicator Bank'!AF60)","v":0},{"$f":"IF(ISBLANK('TA Indicator Bank'!AG60),\"\",'TA Indicator Bank'!AG60)","v":0},{"$f":"IF(ISBLANK('TA Indicator Bank'!AH60),\"\",'TA Indicator Bank'!AH60)","v":0},{"$f":"IF(ISBLANK('TA Indicator Bank'!AI60),\"\",'TA Indicator Bank'!AI60)","v":0},{"$f":"IF(ISBLANK('TA Indicator Bank'!AJ60),\"\",'TA Indicator Bank'!AJ60)","v":0},{"$f":"IF(ISBLANK('TA Indicator Bank'!AK60),\"\",'TA Indicator Bank'!AK60)","v":0},{"$f":"IF(ISBLANK('TA Indicator Bank'!AL60),\"\",'TA Indicator Bank'!AL60)","v":0},{"$f":"IF(ISBLANK('TA Indicator Bank'!AM60),\"\",'TA Indicator Bank'!AM60)","v":0},{"$f":"IF(ISBLANK('TA Indicator Bank'!AN60),\"\",'TA Indicator Bank'!AN60)","v":0},{"$f":"IF(ISBLANK('TA Indicator Bank'!AO60),\"\",'TA Indicator Bank'!AO60)","v":0},{"$f":"IF(ISBLANK('TA Indicator Bank'!AP60),\"\",'TA Indicator Bank'!AP60)","v":0},{"$f":"IF(ISBLANK('TA Indicator Bank'!AQ60),\"\",'TA Indicator Bank'!AQ60)","v":1},{"$f":"IF(ISBLANK('TA Indicator Bank'!AR60),\"\",'TA Indicator Bank'!AR60)","v":0},{"$f":"IF(ISBLANK('TA Indicator Bank'!AS60),\"\",'TA Indicator Bank'!AS60)","v":0},{"$f":"IF(ISBLANK('TA Indicator Bank'!AT60),\"\",'TA Indicator Bank'!AT60)","v":0},{"$f":"IF(AND(J64=1,J$410=1),1,0)","v":0},{"$f":"IF(AND(K64=1,K$410=1),1,0)","v":0},{"$f":"IF(AND(L64=1,L$410=1),1,0)","v":0},{"$f":"IF(AND(M64=1,M$410=1),1,0)","v":0},{"$f":"IF(AND(N64=1,N$410=1),1,0)","v":0},{"$f":"IF(AND(O64=1,O$410=1),1,0)","v":0},{"$f":"IF(AND(P64=1,P$410=1),1,0)","v":0},{"$f":"IF(AND(Q64=1,Q$410=1),1,0)","v":0},{"$f":"IF(AND(R64=1,R$410=1),1,0)","v":0},{"$f":"IF(AND(S64=1,S$410=1),1,0)","v":0},{"$f":"IF(AND(T64=1,T$410=1),1,0)","v":0},{"$f":"IF(AND(U64=1,U$410=1),1,0)","v":0},{"$f":"IF(AND(V64=1,V$410=1),1,0)","v":1},{"$f":"IF(AND(W64=1,W$410=1),1,0)","v":0},1,{"$f":"IF(AND(X64=1,X$410=1),1,0)","v":0},{"$f":"IF(AND(Y64=1,Y$410=1),1,0)","v":0},{"$f":"IF(AND(Z64=1,Z$410=1),1,0)","v":0},{"$f":"IF(AND(AA64=1,AA$410=1),1,0)","v":0},{"$f":"IF(AND(AB64=1,AB$410=1),1,0)","v":0},{"$f":"IF(AND(AC64=1,AC$410=1),1,0)","v":0},{"$f":"IF(AND(AD64=1,AD$410=1),1,0)","v":0},{"$f":"IF(AND(AE64=1,AE$410=1),1,0)","v":0},{"$f":"IF(AND(AF64=1,AF$410=1),1,0)","v":0},1,{"$f":"IF(AND(AG64=1,AG$410=1),1,0)","v":0},{"$f":"IF(AND(AH64=1,AH$410=1),1,0)","v":0},{"$f":"IF(AND(AI64=1,AI$410=1),1,0)","v":0},{"$f":"IF(AND(AJ64=1,AJ$410=1),1,0)","v":0},{"$f":"IF(AND(AK64=1,AK$410=1),1,0)","v":0},{"$f":"IF(AND(AL64=1,AL$410=1),1,0)","v":0},{"$f":"IF(AND(AM64=1,AM$410=1),1,0)","v":0},{"$f":"IF(AND(AN64=1,AN$410=1),1,0)","v":0},{"$f":"IF(AND(AO64=1,AO$410=1),1,0)","v":0},1,{"$f":"IF(AND(AP64=1,AP$410=1),1,0)","v":0},{"$f":"IF(AND(AQ64=1,AQ$410=1),1,0)","v":1},{"$f":"IF(AND(AR64=1,AR$410=1),1,0)","v":0},{"$f":"IF(AND(AS64=1,AS$410=1),1,0)","v":0},{"$f":"IF(AND(AT64=1,AT$410=1),1,0)","v":0},1,1,56,56,{"$f":"IFERROR(SMALL($CL$9:$CL$408,CK64),\"\")","v":56},{"$f":"IFERROR(INDEX($B$9:$I$408,$CM64,COLUMNS($CN$9:CN64)),\"\")","v":"TA056"},{"$f":"IFERROR(INDEX($B$9:$I$408,$CM64,COLUMNS($CN$9:CO64)),\"\")","v":"Number of countries that have launched the tool and it is used"},{"$f":"IFERROR(INDEX($B$9:$I$408,$CM64,COLUMNS($CN$9:CP64)),\"\")","v":"-"},{"$f":"IFERROR(INDEX($B$9:$I$408,$CM64,COLUMNS($CN$9:CQ64)),\"\")","v":"Uptake"},{"$f":"IFERROR(INDEX($B$9:$I$408,$CM64,COLUMNS($CN$9:CR64)),\"\")","v":"Data, software, tools and models"},{"$f":"IFERROR(INDEX($B$9:$I$408,$CM64,COLUMNS($CN$9:CS64)),\"\")","v":"-"},{"$f":"IFERROR(INDEX($B$9:$I$408,$CM64,COLUMNS($CN$9:CT64)),\"\")","v":"-"},{"$f":"IFERROR(INDEX($B$9:$I$408,$CM64,COLUMNS($CN$9:CU64)),\"\")","v":"Number"}]
[null,{"$f":"IF(ISBLANK('TA Indicator Bank'!B61),\"\",'TA Indicator Bank'!B61)","v":"TA057"},{"$f":"IF(ISBLANK('TA Indicator Bank'!C61),\"\",'TA Indicator Bank'!C61)","v":"Number of countries that publish additional documentation for the tool"},{"$f":"IF(ISBLANK('TA Indicator Bank'!D61),\"\",'TA Indicator Bank'!D61)","v":"-"},{"$f":"IF(ISBLANK('TA Indicator Bank'!E61),\"\",'TA Indicator Bank'!E61)","v":"Uptake"},{"$f":"IF(ISBLANK('TA Indicator Bank'!F61),\"\",'TA Indicator Bank'!F61)","v":"Data, software, tools and models"},{"$f":"IF(ISBLANK('TA Indicator Bank'!G61),\"\",'TA Indicator Bank'!G61)","v":"-"},{"$f":"IF(ISBLANK('TA Indicator Bank'!H61),\"\",'TA Indicator Bank'!H61)","v":"-"},{"$f":"IF(ISBLANK('TA Indicator Bank'!I61),\"\",'TA Indicator Bank'!I61)","v":"Number"},{"$f":"IF(ISBLANK('TA Indicator Bank'!J61),\"\",'TA Indicator Bank'!J61)","v":0},{"$f":"IF(ISBLANK('TA Indicator Bank'!K61),\"\",'TA Indicator Bank'!K61)","v":0},{"$f":"IF(ISBLANK('TA Indicator Bank'!L61),\"\",'TA Indicator Bank'!L61)","v":0},{"$f":"IF(ISBLANK('TA Indicator Bank'!M61),\"\",'TA Indicator Bank'!M61)","v":0},{"$f":"IF(ISBLANK('TA Indicator Bank'!N61),\"\",'TA Indicator Bank'!N61)","v":0},{"$f":"IF(ISBLANK('TA Indicator Bank'!O61),\"\",'TA Indicator Bank'!O61)","v":0},{"$f":"IF(ISBLANK('TA Indicator Bank'!P61),\"\",'TA Indicator Bank'!P61)","v":0},{"$f":"IF(ISBLANK('TA Indicator Bank'!Q61),\"\",'TA Indicator Bank'!Q61)","v":0},{"$f":"IF(ISBLANK('TA Indicator Bank'!R61),\"\",'TA Indicator Bank'!R61)","v":0},{"$f":"IF(ISBLANK('TA Indicator Bank'!S61),\"\",'TA Indicator Bank'!S61)","v":0},{"$f":"IF(ISBLANK('TA Indicator Bank'!T61),\"\",'TA Indicator Bank'!T61)","v":0},{"$f":"IF(ISBLANK('TA Indicator Bank'!U61),\"\",'TA Indicator Bank'!U61)","v":0},{"$f":"IF(ISBLANK('TA Indicator Bank'!V61),\"\",'TA Indicator Bank'!V61)","v":1},{"$f":"IF(ISBLANK('TA Indicator Bank'!W61),\"\",'TA Indicator Bank'!W61)","v":0},{"$f":"IF(ISBLANK('TA Indicator Bank'!X61),\"\",'TA Indicator Bank'!X61)","v":0},{"$f":"IF(ISBLANK('TA Indicator Bank'!Y61),\"\",'TA Indicator Bank'!Y61)","v":0},{"$f":"IF(ISBLANK('TA Indicator Bank'!Z61),\"\",'TA Indicator Bank'!Z61)","v":0},{"$f":"IF(ISBLANK('TA Indicator Bank'!AA61),\"\",'TA Indicator Bank'!AA61)","v":0},{"$f":"IF(ISBLANK('TA Indicator Bank'!AB61),\"\",'TA Indicator Bank'!AB61)","v":0},{"$f":"IF(ISBLANK('TA Indicator Bank'!AC61),\"\",'TA Indicator Bank'!AC61)","v":0},{"$f":"IF(ISBLANK('TA Indicator Bank'!AD61),\"\",'TA Indicator Bank'!AD61)","v":0},{"$f":"IF(ISBLANK('TA Indicator Bank'!AE61),\"\",'TA Indicator Bank'!AE61)","v":0},{"$f":"IF(ISBLANK('TA Indicator Bank'!AF61),\"\",'TA Indicator Bank'!AF61)","v":0},{"$f":"IF(ISBLANK('TA Indicator Bank'!AG61),\"\",'TA Indicator Bank'!AG61)","v":0},{"$f":"IF(ISBLANK('TA Indicator Bank'!AH61),\"\",'TA Indicator Bank'!AH61)","v":0},{"$f":"IF(ISBLANK('TA Indicator Bank'!AI61),\"\",'TA Indicator Bank'!AI61)","v":0},{"$f":"IF(ISBLANK('TA Indicator Bank'!AJ61),\"\",'TA Indicator Bank'!AJ61)","v":0},{"$f":"IF(ISBLANK('TA Indicator Bank'!AK61),\"\",'TA Indicator Bank'!AK61)","v":0},{"$f":"IF(ISBLANK('TA Indicator Bank'!AL61),\"\",'TA Indicator Bank'!AL61)","v":0},{"$f":"IF(ISBLANK('TA Indicator Bank'!AM61),\"\",'TA Indicator Bank'!AM61)","v":0},{"$f":"IF(ISBLANK('TA Indicator Bank'!AN61),\"\",'TA Indicator Bank'!AN61)","v":0},{"$f":"IF(ISBLANK('TA Indicator Bank'!AO61),\"\",'TA Indicator Bank'!AO61)","v":0},{"$f":"IF(ISBLANK('TA Indicator Bank'!AP61),\"\",'TA Indicator Bank'!AP61)","v":0},{"$f":"IF(ISBLANK('TA Indicator Bank'!AQ61),\"\",'TA Indicator Bank'!AQ61)","v":1},{"$f":"IF(ISBLANK('TA Indicator Bank'!AR61),\"\",'TA Indicator Bank'!AR61)","v":0},{"$f":"IF(ISBLANK('TA Indicator Bank'!AS61),\"\",'TA Indicator Bank'!AS61)","v":0},{"$f":"IF(ISBLANK('TA Indicator Bank'!AT61),\"\",'TA Indicator Bank'!AT61)","v":0},{"$f":"IF(AND(J65=1,J$410=1),1,0)","v":0},{"$f":"IF(AND(K65=1,K$410=1),1,0)","v":0},{"$f":"IF(AND(L65=1,L$410=1),1,0)","v":0},{"$f":"IF(AND(M65=1,M$410=1),1,0)","v":0},{"$f":"IF(AND(N65=1,N$410=1),1,0)","v":0},{"$f":"IF(AND(O65=1,O$410=1),1,0)","v":0},{"$f":"IF(AND(P65=1,P$410=1),1,0)","v":0},{"$f":"IF(AND(Q65=1,Q$410=1),1,0)","v":0},{"$f":"IF(AND(R65=1,R$410=1),1,0)","v":0},{"$f":"IF(AND(S65=1,S$410=1),1,0)","v":0},{"$f":"IF(AND(T65=1,T$410=1),1,0)","v":0},{"$f":"IF(AND(U65=1,U$410=1),1,0)","v":0},{"$f":"IF(AND(V65=1,V$410=1),1,0)","v":1},{"$f":"IF(AND(W65=1,W$410=1),1,0)","v":0},1,{"$f":"IF(AND(X65=1,X$410=1),1,0)","v":0},{"$f":"IF(AND(Y65=1,Y$410=1),1,0)","v":0},{"$f":"IF(AND(Z65=1,Z$410=1),1,0)","v":0},{"$f":"IF(AND(AA65=1,AA$410=1),1,0)","v":0},{"$f":"IF(AND(AB65=1,AB$410=1),1,0)","v":0},{"$f":"IF(AND(AC65=1,AC$410=1),1,0)","v":0},{"$f":"IF(AND(AD65=1,AD$410=1),1,0)","v":0},{"$f":"IF(AND(AE65=1,AE$410=1),1,0)","v":0},{"$f":"IF(AND(AF65=1,AF$410=1),1,0)","v":0},1,{"$f":"IF(AND(AG65=1,AG$410=1),1,0)","v":0},{"$f":"IF(AND(AH65=1,AH$410=1),1,0)","v":0},{"$f":"IF(AND(AI65=1,AI$410=1),1,0)","v":0},{"$f":"IF(AND(AJ65=1,AJ$410=1),1,0)","v":0},{"$f":"IF(AND(AK65=1,AK$410=1),1,0)","v":0},{"$f":"IF(AND(AL65=1,AL$410=1),1,0)","v":0},{"$f":"IF(AND(AM65=1,AM$410=1),1,0)","v":0},{"$f":"IF(AND(AN65=1,AN$410=1),1,0)","v":0},{"$f":"IF(AND(AO65=1,AO$410=1),1,0)","v":0},1,{"$f":"IF(AND(AP65=1,AP$410=1),1,0)","v":0},{"$f":"IF(AND(AQ65=1,AQ$410=1),1,0)","v":1},{"$f":"IF(AND(AR65=1,AR$410=1),1,0)","v":0},{"$f":"IF(AND(AS65=1,AS$410=1),1,0)","v":0},{"$f":"IF(AND(AT65=1,AT$410=1),1,0)","v":0},1,1,57,57,{"$f":"IFERROR(SMALL($CL$9:$CL$408,CK65),\"\")","v":57},{"$f":"IFERROR(INDEX($B$9:$I$408,$CM65,COLUMNS($CN$9:CN65)),\"\")","v":"TA057"},{"$f":"IFERROR(INDEX($B$9:$I$408,$CM65,COLUMNS($CN$9:CO65)),\"\")","v":"Number of countries that publish additional documentation for the tool"},{"$f":"IFERROR(INDEX($B$9:$I$408,$CM65,COLUMNS($CN$9:CP65)),\"\")","v":"-"},{"$f":"IFERROR(INDEX($B$9:$I$408,$CM65,COLUMNS($CN$9:CQ65)),\"\")","v":"Uptake"},{"$f":"IFERROR(INDEX($B$9:$I$408,$CM65,COLUMNS($CN$9:CR65)),\"\")","v":"Data, software, tools and models"},{"$f":"IFERROR(INDEX($B$9:$I$408,$CM65,COLUMNS($CN$9:CS65)),\"\")","v":"-"},{"$f":"IFERROR(INDEX($B$9:$I$408,$CM65,COLUMNS($CN$9:CT65)),\"\")","v":"-"},{"$f":"IFERROR(INDEX($B$9:$I$408,$CM65,COLUMNS($CN$9:CU65)),\"\")","v":"Number"}]
[null,{"$f":"IF(ISBLANK('TA Indicator Bank'!B62),\"\",'TA Indicator Bank'!B62)","v":"TA058"},{"$f":"IF(ISBLANK('TA Indicator Bank'!C62),\"\",'TA Indicator Bank'!C62)","v":"Number of countries where the tool is mentioned positively in at least three press mentions"},{"$f":"IF(ISBLANK('TA Indicator Bank'!D62),\"\",'TA Indicator Bank'!D62)","v":"-"},{"$f":"IF(ISBLANK('TA Indicator Bank'!E62),\"\",'TA Indicator Bank'!E62)","v":"Uptake"},{"$f":"IF(ISBLANK('TA Indicator Bank'!F62),\"\",'TA Indicator Bank'!F62)","v":"Data, software, tools and models"},{"$f":"IF(ISBLANK('TA Indicator Bank'!G62),\"\",'TA Indicator Bank'!G62)","v":"-"},{"$f":"IF(ISBLANK('TA Indicator Bank'!H62),\"\",'TA Indicator Bank'!H62)","v":"-"},{"$f":"IF(ISBLANK('TA Indicator Bank'!I62),\"\",'TA Indicator Bank'!I62)","v":"Number"},{"$f":"IF(ISBLANK('TA Indicator Bank'!J62),\"\",'TA Indicator Bank'!J62)","v":0},{"$f":"IF(ISBLANK('TA Indicator Bank'!K62),\"\",'TA Indicator Bank'!K62)","v":0},{"$f":"IF(ISBLANK('TA Indicator Bank'!L62),\"\",'TA Indicator Bank'!L62)","v":0},{"$f":"IF(ISBLANK('TA Indicator Bank'!M62),\"\",'TA Indicator Bank'!M62)","v":0},{"$f":"IF(ISBLANK('TA Indicator Bank'!N62),\"\",'TA Indicator Bank'!N62)","v":0},{"$f":"IF(ISBLANK('TA Indicator Bank'!O62),\"\",'TA Indicator Bank'!O62)","v":0},{"$f":"IF(ISBLANK('TA Indicator Bank'!P62),\"\",'TA Indicator Bank'!P62)","v":0},{"$f":"IF(ISBLANK('TA Indicator Bank'!Q62),\"\",'TA Indicator Bank'!Q62)","v":0},{"$f":"IF(ISBLANK('TA Indicator Bank'!R62),\"\",'TA Indicator Bank'!R62)","v":0},{"$f":"IF(ISBLANK('TA Indicator Bank'!S62),\"\",'TA Indicator Bank'!S62)","v":0},{"$f":"IF(ISBLANK('TA Indicator Bank'!T62),\"\",'TA Indicator Bank'!T62)","v":0},{"$f":"IF(ISBLANK('TA Indicator Bank'!U62),\"\",'TA Indicator Bank'!U62)","v":0},{"$f":"IF(ISBLANK('TA Indicator Bank'!V62),\"\",'TA Indicator Bank'!V62)","v":1},{"$f":"IF(ISBLANK('TA Indicator Bank'!W62),\"\",'TA Indicator Bank'!W62)","v":0},{"$f":"IF(ISBLANK('TA Indicator Bank'!X62),\"\",'TA Indicator Bank'!X62)","v":0},{"$f":"IF(ISBLANK('TA Indicator Bank'!Y62),\"\",'TA Indicator Bank'!Y62)","v":0},{"$f":"IF(ISBLANK('TA Indicator Bank'!Z62),\"\",'TA Indicator Bank'!Z62)","v":0},{"$f":"IF(ISBLANK('TA Indicator Bank'!AA62),\"\",'TA Indicator Bank'!AA62)","v":0},{"$f":"IF(ISBLANK('TA Indicator Bank'!AB62),\"\",'TA Indicator Bank'!AB62)","v":0},{"$f":"IF(ISBLANK('TA Indicator Bank'!AC62),\"\",'TA Indicator Bank'!AC62)","v":0},{"$f":"IF(ISBLANK('TA Indicator Bank'!AD62),\"\",'TA Indicator Bank'!AD62)","v":0},{"$f":"IF(ISBLANK('TA Indicator Bank'!AE62),\"\",'TA Indicator Bank'!AE62)","v":0},{"$f":"IF(ISBLANK('TA Indicator Bank'!AF62),\"\",'TA Indicator Bank'!AF62)","v":0},{"$f":"IF(ISBLANK('TA Indicator Bank'!AG62),\"\",'TA Indicator Bank'!AG62)","v":0},{"$f":"IF(ISBLANK('TA Indicator Bank'!AH62),\"\",'TA Indicator Bank'!AH62)","v":0},{"$f":"IF(ISBLANK('TA Indicator Bank'!AI62),\"\",'TA Indicator Bank'!AI62)","v":0},{"$f":"IF(ISBLANK('TA Indicator Bank'!AJ62),\"\",'TA Indicator Bank'!AJ62)","v":0},{"$f":"IF(ISBLANK('TA Indicator Bank'!AK62),\"\",'TA Indicator Bank'!AK62)","v":0},{"$f":"IF(ISBLANK('TA Indicator Bank'!AL62),\"\",'TA Indicator Bank'!AL62)","v":0},{"$f":"IF(ISBLANK('TA Indicator Bank'!AM62),\"\",'TA Indicator Bank'!AM62)","v":0},{"$f":"IF(ISBLANK('TA Indicator Bank'!AN62),\"\",'TA Indicator Bank'!AN62)","v":0},{"$f":"IF(ISBLANK('TA Indicator Bank'!AO62),\"\",'TA Indicator Bank'!AO62)","v":0},{"$f":"IF(ISBLANK('TA Indicator Bank'!AP62),\"\",'TA Indicator Bank'!AP62)","v":0},{"$f":"IF(ISBLANK('TA Indicator Bank'!AQ62),\"\",'TA Indicator Bank'!AQ62)","v":1},{"$f":"IF(ISBLANK('TA Indicator Bank'!AR62),\"\",'TA Indicator Bank'!AR62)","v":0},{"$f":"IF(ISBLANK('TA Indicator Bank'!AS62),\"\",'TA Indicator Bank'!AS62)","v":0},{"$f":"IF(ISBLANK('TA Indicator Bank'!AT62),\"\",'TA Indicator Bank'!AT62)","v":0},{"$f":"IF(AND(J66=1,J$410=1),1,0)","v":0},{"$f":"IF(AND(K66=1,K$410=1),1,0)","v":0},{"$f":"IF(AND(L66=1,L$410=1),1,0)","v":0},{"$f":"IF(AND(M66=1,M$410=1),1,0)","v":0},{"$f":"IF(AND(N66=1,N$410=1),1,0)","v":0},{"$f":"IF(AND(O66=1,O$410=1),1,0)","v":0},{"$f":"IF(AND(P66=1,P$410=1),1,0)","v":0},{"$f":"IF(AND(Q66=1,Q$410=1),1,0)","v":0},{"$f":"IF(AND(R66=1,R$410=1),1,0)","v":0},{"$f":"IF(AND(S66=1,S$410=1),1,0)","v":0},{"$f":"IF(AND(T66=1,T$410=1),1,0)","v":0},{"$f":"IF(AND(U66=1,U$410=1),1,0)","v":0},{"$f":"IF(AND(V66=1,V$410=1),1,0)","v":1},{"$f":"IF(AND(W66=1,W$410=1),1,0)","v":0},1,{"$f":"IF(AND(X66=1,X$410=1),1,0)","v":0},{"$f":"IF(AND(Y66=1,Y$410=1),1,0)","v":0},{"$f":"IF(AND(Z66=1,Z$410=1),1,0)","v":0},{"$f":"IF(AND(AA66=1,AA$410=1),1,0)","v":0},{"$f":"IF(AND(AB66=1,AB$410=1),1,0)","v":0},{"$f":"IF(AND(AC66=1,AC$410=1),1,0)","v":0},{"$f":"IF(AND(AD66=1,AD$410=1),1,0)","v":0},{"$f":"IF(AND(AE66=1,AE$410=1),1,0)","v":0},{"$f":"IF(AND(AF66=1,AF$410=1),1,0)","v":0},1,{"$f":"IF(AND(AG66=1,AG$410=1),1,0)","v":0},{"$f":"IF(AND(AH66=1,AH$410=1),1,0)","v":0},{"$f":"IF(AND(AI66=1,AI$410=1),1,0)","v":0},{"$f":"IF(AND(AJ66=1,AJ$410=1),1,0)","v":0},{"$f":"IF(AND(AK66=1,AK$410=1),1,0)","v":0},{"$f":"IF(AND(AL66=1,AL$410=1),1,0)","v":0},{"$f":"IF(AND(AM66=1,AM$410=1),1,0)","v":0},{"$f":"IF(AND(AN66=1,AN$410=1),1,0)","v":0},{"$f":"IF(AND(AO66=1,AO$410=1),1,0)","v":0},1,{"$f":"IF(AND(AP66=1,AP$410=1),1,0)","v":0},{"$f":"IF(AND(AQ66=1,AQ$410=1),1,0)","v":1},{"$f":"IF(AND(AR66=1,AR$410=1),1,0)","v":0},{"$f":"IF(AND(AS66=1,AS$410=1),1,0)","v":0},{"$f":"IF(AND(AT66=1,AT$410=1),1,0)","v":0},1,1,58,58,{"$f":"IFERROR(SMALL($CL$9:$CL$408,CK66),\"\")","v":58},{"$f":"IFERROR(INDEX($B$9:$I$408,$CM66,COLUMNS($CN$9:CN66)),\"\")","v":"TA058"},{"$f":"IFERROR(INDEX($B$9:$I$408,$CM66,COLUMNS($CN$9:CO66)),\"\")","v":"Number of countries where the tool is mentioned positively in at least three press mentions"},{"$f":"IFERROR(INDEX($B$9:$I$408,$CM66,COLUMNS($CN$9:CP66)),\"\")","v":"-"},{"$f":"IFERROR(INDEX($B$9:$I$408,$CM66,COLUMNS($CN$9:CQ66)),\"\")","v":"Uptake"},{"$f":"IFERROR(INDEX($B$9:$I$408,$CM66,COLUMNS($CN$9:CR66)),\"\")","v":"Data, software, tools and models"},{"$f":"IFERROR(INDEX($B$9:$I$408,$CM66,COLUMNS($CN$9:CS66)),\"\")","v":"-"},{"$f":"IFERROR(INDEX($B$9:$I$408,$CM66,COLUMNS($CN$9:CT66)),\"\")","v":"-"},{"$f":"IFERROR(INDEX($B$9:$I$408,$CM66,COLUMNS($CN$9:CU66)),\"\")","v":"Number"}]
[null,{"$f":"IF(ISBLANK('TA Indicator Bank'!B63),\"\",'TA Indicator Bank'!B63)","v":"TA059"},{"$f":"IF(ISBLANK('TA Indicator Bank'!C63),\"\",'TA Indicator Bank'!C63)","v":"Number of programme local representatives that are satisfied with the impact of the tool"},{"$f":"IF(ISBLANK('TA Indicator Bank'!D63),\"\",'TA Indicator Bank'!D63)","v":"-"},{"$f":"IF(ISBLANK('TA Indicator Bank'!E63),\"\",'TA Indicator Bank'!E63)","v":"Output"},{"$f":"IF(ISBLANK('TA Indicator Bank'!F63),\"\",'TA Indicator Bank'!F63)","v":"-"},{"$f":"IF(ISBLANK('TA Indicator Bank'!G63),\"\",'TA Indicator Bank'!G63)","v":"Capacity building: Technical capacity"},{"$f":"IF(ISBLANK('TA Indicator Bank'!H63),\"\",'TA Indicator Bank'!H63)","v":"-"},{"$f":"IF(ISBLANK('TA Indicator Bank'!I63),\"\",'TA Indicator Bank'!I63)","v":"Number"},{"$f":"IF(ISBLANK('TA Indicator Bank'!J63),\"\",'TA Indicator Bank'!J63)","v":0},{"$f":"IF(ISBLANK('TA Indicator Bank'!K63),\"\",'TA Indicator Bank'!K63)","v":0},{"$f":"IF(ISBLANK('TA Indicator Bank'!L63),\"\",'TA Indicator Bank'!L63)","v":0},{"$f":"IF(ISBLANK('TA Indicator Bank'!M63),\"\",'TA Indicator Bank'!M63)","v":0},{"$f":"IF(ISBLANK('TA Indicator Bank'!N63),\"\",'TA Indicator Bank'!N63)","v":0},{"$f":"IF(ISBLANK('TA Indicator Bank'!O63),\"\",'TA Indicator Bank'!O63)","v":0},{"$f":"IF(ISBLANK('TA Indicator Bank'!P63),\"\",'TA Indicator Bank'!P63)","v":0},{"$f":"IF(ISBLANK('TA Indicator Bank'!Q63),\"\",'TA Indicator Bank'!Q63)","v":0},{"$f":"IF(ISBLANK('TA Indicator Bank'!R63),\"\",'TA Indicator Bank'!R63)","v":0},{"$f":"IF(ISBLANK('TA Indicator Bank'!S63),\"\",'TA Indicator Bank'!S63)","v":0},{"$f":"IF(ISBLANK('TA Indicator Bank'!T63),\"\",'TA Indicator Bank'!T63)","v":0},{"$f":"IF(ISBLANK('TA Indicator Bank'!U63),\"\",'TA Indicator Bank'!U63)","v":0},{"$f":"IF(ISBLANK('TA Indicator Bank'!V63),\"\",'TA Indicator Bank'!V63)","v":0},{"$f":"IF(ISBLANK('TA Indicator Bank'!W63),\"\",'TA Indicator Bank'!W63)","v":0},{"$f":"IF(ISBLANK('TA Indicator Bank'!X63),\"\",'TA Indicator Bank'!X63)","v":0},{"$f":"IF(ISBLANK('TA Indicator Bank'!Y63),\"\",'TA Indicator Bank'!Y63)","v":1},{"$f":"IF(ISBLANK('TA Indicator Bank'!Z63),\"\",'TA Indicator Bank'!Z63)","v":0},{"$f":"IF(ISBLANK('TA Indicator Bank'!AA63),\"\",'TA Indicator Bank'!AA63)","v":0},{"$f":"IF(ISBLANK('TA Indicator Bank'!AB63),\"\",'TA Indicator Bank'!AB63)","v":0},{"$f":"IF(ISBLANK('TA Indicator Bank'!AC63),\"\",'TA Indicator Bank'!AC63)","v":0},{"$f":"IF(ISBLANK('TA Indicator Bank'!AD63),\"\",'TA Indicator Bank'!AD63)","v":0},{"$f":"IF(ISBLANK('TA Indicator Bank'!AE63),\"\",'TA Indicator Bank'!AE63)","v":0},{"$f":"IF(ISBLANK('TA Indicator Bank'!AF63),\"\",'TA Indicator Bank'!AF63)","v":0},{"$f":"IF(ISBLANK('TA Indicator Bank'!AG63),\"\",'TA Indicator Bank'!AG63)","v":0},{"$f":"IF(ISBLANK('TA Indicator Bank'!AH63),\"\",'TA Indicator Bank'!AH63)","v":0},{"$f":"IF(ISBLANK('TA Indicator Bank'!AI63),\"\",'TA Indicator Bank'!AI63)","v":0},{"$f":"IF(ISBLANK('TA Indicator Bank'!AJ63),\"\",'TA Indicator Bank'!AJ63)","v":0},{"$f":"IF(ISBLANK('TA Indicator Bank'!AK63),\"\",'TA Indicator Bank'!AK63)","v":0},{"$f":"IF(ISBLANK('TA Indicator Bank'!AL63),\"\",'TA Indicator Bank'!AL63)","v":0},{"$f":"IF(ISBLANK('TA Indicator Bank'!AM63),\"\",'TA Indicator Bank'!AM63)","v":0},{"$f":"IF(ISBLANK('TA Indicator Bank'!AN63),\"\",'TA Indicator Bank'!AN63)","v":0},{"$f":"IF(ISBLANK('TA Indicator Bank'!AO63),\"\",'TA Indicator Bank'!AO63)","v":0},{"$f":"IF(ISBLANK('TA Indicator Bank'!AP63),\"\",'TA Indicator Bank'!AP63)","v":0},{"$f":"IF(ISBLANK('TA Indicator Bank'!AQ63),\"\",'TA Indicator Bank'!AQ63)","v":0},{"$f":"IF(ISBLANK('TA Indicator Bank'!AR63),\"\",'TA Indicator Bank'!AR63)","v":1},{"$f":"IF(ISBLANK('TA Indicator Bank'!AS63),\"\",'TA Indicator Bank'!AS63)","v":0},{"$f":"IF(ISBLANK('TA Indicator Bank'!AT63),\"\",'TA Indicator Bank'!AT63)","v":0},{"$f":"IF(AND(J67=1,J$410=1),1,0)","v":0},{"$f":"IF(AND(K67=1,K$410=1),1,0)","v":0},{"$f":"IF(AND(L67=1,L$410=1),1,0)","v":0},{"$f":"IF(AND(M67=1,M$410=1),1,0)","v":0},{"$f":"IF(AND(N67=1,N$410=1),1,0)","v":0},{"$f":"IF(AND(O67=1,O$410=1),1,0)","v":0},{"$f":"IF(AND(P67=1,P$410=1),1,0)","v":0},{"$f":"IF(AND(Q67=1,Q$410=1),1,0)","v":0},{"$f":"IF(AND(R67=1,R$410=1),1,0)","v":0},{"$f":"IF(AND(S67=1,S$410=1),1,0)","v":0},{"$f":"IF(AND(T67=1,T$410=1),1,0)","v":0},{"$f":"IF(AND(U67=1,U$410=1),1,0)","v":0},{"$f":"IF(AND(V67=1,V$410=1),1,0)","v":0},{"$f":"IF(AND(W67=1,W$410=1),1,0)","v":0},1,{"$f":"IF(AND(X67=1,X$410=1),1,0)","v":0},{"$f":"IF(AND(Y67=1,Y$410=1),1,0)","v":1},{"$f":"IF(AND(Z67=1,Z$410=1),1,0)","v":0},{"$f":"IF(AND(AA67=1,AA$410=1),1,0)","v":0},{"$f":"IF(AND(AB67=1,AB$410=1),1,0)","v":0},{"$f":"IF(AND(AC67=1,AC$410=1),1,0)","v":0},{"$f":"IF(AND(AD67=1,AD$410=1),1,0)","v":0},{"$f":"IF(AND(AE67=1,AE$410=1),1,0)","v":0},{"$f":"IF(AND(AF67=1,AF$410=1),1,0)","v":0},1,{"$f":"IF(AND(AG67=1,AG$410=1),1,0)","v":0},{"$f":"IF(AND(AH67=1,AH$410=1),1,0)","v":0},{"$f":"IF(AND(AI67=1,AI$410=1),1,0)","v":0},{"$f":"IF(AND(AJ67=1,AJ$410=1),1,0)","v":0},{"$f":"IF(AND(AK67=1,AK$410=1),1,0)","v":0},{"$f":"IF(AND(AL67=1,AL$410=1),1,0)","v":0},{"$f":"IF(AND(AM67=1,AM$410=1),1,0)","v":0},{"$f":"IF(AND(AN67=1,AN$410=1),1,0)","v":0},{"$f":"IF(AND(AO67=1,AO$410=1),1,0)","v":0},1,{"$f":"IF(AND(AP67=1,AP$410=1),1,0)","v":0},{"$f":"IF(AND(AQ67=1,AQ$410=1),1,0)","v":0},{"$f":"IF(AND(AR67=1,AR$410=1),1,0)","v":1},{"$f":"IF(AND(AS67=1,AS$410=1),1,0)","v":0},{"$f":"IF(AND(AT67=1,AT$410=1),1,0)","v":0},1,1,59,59,{"$f":"IFERROR(SMALL($CL$9:$CL$408,CK67),\"\")","v":59},{"$f":"IFERROR(INDEX($B$9:$I$408,$CM67,COLUMNS($CN$9:CN67)),\"\")","v":"TA059"},{"$f":"IFERROR(INDEX($B$9:$I$408,$CM67,COLUMNS($CN$9:CO67)),\"\")","v":"Number of programme local representatives that are satisfied with the impact of the tool"},{"$f":"IFERROR(INDEX($B$9:$I$408,$CM67,COLUMNS($CN$9:CP67)),\"\")","v":"-"},{"$f":"IFERROR(INDEX($B$9:$I$408,$CM67,COLUMNS($CN$9:CQ67)),\"\")","v":"Output"},{"$f":"IFERROR(INDEX($B$9:$I$408,$CM67,COLUMNS($CN$9:CR67)),\"\")","v":"-"},{"$f":"IFERROR(INDEX($B$9:$I$408,$CM67,COLUMNS($CN$9:CS67)),\"\")","v":"Capacity building: Technical capacity"},{"$f":"IFERROR(INDEX($B$9:$I$408,$CM67,COLUMNS($CN$9:CT67)),\"\")","v":"-"},{"$f":"IFERROR(INDEX($B$9:$I$408,$CM67,COLUMNS($CN$9:CU67)),\"\")","v":"Number"}]
[null,{"$f":"IF(ISBLANK('TA Indicator Bank'!B64),\"\",'TA Indicator Bank'!B64)","v":"TA060"},{"$f":"IF(ISBLANK('TA Indicator Bank'!C64),\"\",'TA Indicator Bank'!C64)","v":"Number of countries that have launched an own version of the tool"},{"$f":"IF(ISBLANK('TA Indicator Bank'!D64),\"\",'TA Indicator Bank'!D64)","v":"-"},{"$f":"IF(ISBLANK('TA Indicator Bank'!E64),\"\",'TA Indicator Bank'!E64)","v":"Output"},{"$f":"IF(ISBLANK('TA Indicator Bank'!F64),\"\",'TA Indicator Bank'!F64)","v":"-"},{"$f":"IF(ISBLANK('TA Indicator Bank'!G64),\"\",'TA Indicator Bank'!G64)","v":"Capacity building: Technical capacity"},{"$f":"IF(ISBLANK('TA Indicator Bank'!H64),\"\",'TA Indicator Bank'!H64)","v":"-"},{"$f":"IF(ISBLANK('TA Indicator Bank'!I64),\"\",'TA Indicator Bank'!I64)","v":"Number"},{"$f":"IF(ISBLANK('TA Indicator Bank'!J64),\"\",'TA Indicator Bank'!J64)","v":0},{"$f":"IF(ISBLANK('TA Indicator Bank'!K64),\"\",'TA Indicator Bank'!K64)","v":0},{"$f":"IF(ISBLANK('TA Indicator Bank'!L64),\"\",'TA Indicator Bank'!L64)","v":0},{"$f":"IF(ISBLANK('TA Indicator Bank'!M64),\"\",'TA Indicator Bank'!M64)","v":0},{"$f":"IF(ISBLANK('TA Indicator Bank'!N64),\"\",'TA Indicator Bank'!N64)","v":0},{"$f":"IF(ISBLANK('TA Indicator Bank'!O64),\"\",'TA Indicator Bank'!O64)","v":0},{"$f":"IF(ISBLANK('TA Indicator Bank'!P64),\"\",'TA Indicator Bank'!P64)","v":0},{"$f":"IF(ISBLANK('TA Indicator Bank'!Q64),\"\",'TA Indicator Bank'!Q64)","v":0},{"$f":"IF(ISBLANK('TA Indicator Bank'!R64),\"\",'TA Indicator Bank'!R64)","v":0},{"$f":"IF(ISBLANK('TA Indicator Bank'!S64),\"\",'TA Indicator Bank'!S64)","v":0},{"$f":"IF(ISBLANK('TA Indicator Bank'!T64),\"\",'TA Indicator Bank'!T64)","v":0},{"$f":"IF(ISBLANK('TA Indicator Bank'!U64),\"\",'TA Indicator Bank'!U64)","v":0},{"$f":"IF(ISBLANK('TA Indicator Bank'!V64),\"\",'TA Indicator Bank'!V64)","v":0},{"$f":"IF(ISBLANK('TA Indicator Bank'!W64),\"\",'TA Indicator Bank'!W64)","v":0},{"$f":"IF(ISBLANK('TA Indicator Bank'!X64),\"\",'TA Indicator Bank'!X64)","v":0},{"$f":"IF(ISBLANK('TA Indicator Bank'!Y64),\"\",'TA Indicator Bank'!Y64)","v":1},{"$f":"IF(ISBLANK('TA Indicator Bank'!Z64),\"\",'TA Indicator Bank'!Z64)","v":0},{"$f":"IF(ISBLANK('TA Indicator Bank'!AA64),\"\",'TA Indicator Bank'!AA64)","v":0},{"$f":"IF(ISBLANK('TA Indicator Bank'!AB64),\"\",'TA Indicator Bank'!AB64)","v":0},{"$f":"IF(ISBLANK('TA Indicator Bank'!AC64),\"\",'TA Indicator Bank'!AC64)","v":0},{"$f":"IF(ISBLANK('TA Indicator Bank'!AD64),\"\",'TA Indicator Bank'!AD64)","v":0},{"$f":"IF(ISBLANK('TA Indicator Bank'!AE64),\"\",'TA Indicator Bank'!AE64)","v":0},{"$f":"IF(ISBLANK('TA Indicator Bank'!AF64),\"\",'TA Indicator Bank'!AF64)","v":0},{"$f":"IF(ISBLANK('TA Indicator Bank'!AG64),\"\",'TA Indicator Bank'!AG64)","v":0},{"$f":"IF(ISBLANK('TA Indicator Bank'!AH64),\"\",'TA Indicator Bank'!AH64)","v":0},{"$f":"IF(ISBLANK('TA Indicator Bank'!AI64),\"\",'TA Indicator Bank'!AI64)","v":0},{"$f":"IF(ISBLANK('TA Indicator Bank'!AJ64),\"\",'TA Indicator Bank'!AJ64)","v":0},{"$f":"IF(ISBLANK('TA Indicator Bank'!AK64),\"\",'TA Indicator Bank'!AK64)","v":0},{"$f":"IF(ISBLANK('TA Indicator Bank'!AL64),\"\",'TA Indicator Bank'!AL64)","v":0},{"$f":"IF(ISBLANK('TA Indicator Bank'!AM64),\"\",'TA Indicator Bank'!AM64)","v":0},{"$f":"IF(ISBLANK('TA Indicator Bank'!AN64),\"\",'TA Indicator Bank'!AN64)","v":0},{"$f":"IF(ISBLANK('TA Indicator Bank'!AO64),\"\",'TA Indicator Bank'!AO64)","v":0},{"$f":"IF(ISBLANK('TA Indicator Bank'!AP64),\"\",'TA Indicator Bank'!AP64)","v":0},{"$f":"IF(ISBLANK('TA Indicator Bank'!AQ64),\"\",'TA Indicator Bank'!AQ64)","v":0},{"$f":"IF(ISBLANK('TA Indicator Bank'!AR64),\"\",'TA Indicator Bank'!AR64)","v":1},{"$f":"IF(ISBLANK('TA Indicator Bank'!AS64),\"\",'TA Indicator Bank'!AS64)","v":0},{"$f":"IF(ISBLANK('TA Indicator Bank'!AT64),\"\",'TA Indicator Bank'!AT64)","v":0},{"$f":"IF(AND(J68=1,J$410=1),1,0)","v":0},{"$f":"IF(AND(K68=1,K$410=1),1,0)","v":0},{"$f":"IF(AND(L68=1,L$410=1),1,0)","v":0},{"$f":"IF(AND(M68=1,M$410=1),1,0)","v":0},{"$f":"IF(AND(N68=1,N$410=1),1,0)","v":0},{"$f":"IF(AND(O68=1,O$410=1),1,0)","v":0},{"$f":"IF(AND(P68=1,P$410=1),1,0)","v":0},{"$f":"IF(AND(Q68=1,Q$410=1),1,0)","v":0},{"$f":"IF(AND(R68=1,R$410=1),1,0)","v":0},{"$f":"IF(AND(S68=1,S$410=1),1,0)","v":0},{"$f":"IF(AND(T68=1,T$410=1),1,0)","v":0},{"$f":"IF(AND(U68=1,U$410=1),1,0)","v":0},{"$f":"IF(AND(V68=1,V$410=1),1,0)","v":0},{"$f":"IF(AND(W68=1,W$410=1),1,0)","v":0},1,{"$f":"IF(AND(X68=1,X$410=1),1,0)","v":0},{"$f":"IF(AND(Y68=1,Y$410=1),1,0)","v":1},{"$f":"IF(AND(Z68=1,Z$410=1),1,0)","v":0},{"$f":"IF(AND(AA68=1,AA$410=1),1,0)","v":0},{"$f":"IF(AND(AB68=1,AB$410=1),1,0)","v":0},{"$f":"IF(AND(AC68=1,AC$410=1),1,0)","v":0},{"$f":"IF(AND(AD68=1,AD$410=1),1,0)","v":0},{"$f":"IF(AND(AE68=1,AE$410=1),1,0)","v":0},{"$f":"IF(AND(AF68=1,AF$410=1),1,0)","v":0},1,{"$f":"IF(AND(AG68=1,AG$410=1),1,0)","v":0},{"$f":"IF(AND(AH68=1,AH$410=1),1,0)","v":0},{"$f":"IF(AND(AI68=1,AI$410=1),1,0)","v":0},{"$f":"IF(AND(AJ68=1,AJ$410=1),1,0)","v":0},{"$f":"IF(AND(AK68=1,AK$410=1),1,0)","v":0},{"$f":"IF(AND(AL68=1,AL$410=1),1,0)","v":0},{"$f":"IF(AND(AM68=1,AM$410=1),1,0)","v":0},{"$f":"IF(AND(AN68=1,AN$410=1),1,0)","v":0},{"$f":"IF(AND(AO68=1,AO$410=1),1,0)","v":0},1,{"$f":"IF(AND(AP68=1,AP$410=1),1,0)","v":0},{"$f":"IF(AND(AQ68=1,AQ$410=1),1,0)","v":0},{"$f":"IF(AND(AR68=1,AR$410=1),1,0)","v":1},{"$f":"IF(AND(AS68=1,AS$410=1),1,0)","v":0},{"$f":"IF(AND(AT68=1,AT$410=1),1,0)","v":0},1,1,60,60,{"$f":"IFERROR(SMALL($CL$9:$CL$408,CK68),\"\")","v":60},{"$f":"IFERROR(INDEX($B$9:$I$408,$CM68,COLUMNS($CN$9:CN68)),\"\")","v":"TA060"},{"$f":"IFERROR(INDEX($B$9:$I$408,$CM68,COLUMNS($CN$9:CO68)),\"\")","v":"Number of countries that have launched an own version of the tool"},{"$f":"IFERROR(INDEX($B$9:$I$408,$CM68,COLUMNS($CN$9:CP68)),\"\")","v":"-"},{"$f":"IFERROR(INDEX($B$9:$I$408,$CM68,COLUMNS($CN$9:CQ68)),\"\")","v":"Output"},{"$f":"IFERROR(INDEX($B$9:$I$408,$CM68,COLUMNS($CN$9:CR68)),\"\")","v":"-"},{"$f":"IFERROR(INDEX($B$9:$I$408,$CM68,COLUMNS($CN$9:CS68)),\"\")","v":"Capacity building: Technical capacity"},{"$f":"IFERROR(INDEX($B$9:$I$408,$CM68,COLUMNS($CN$9:CT68)),\"\")","v":"-"},{"$f":"IFERROR(INDEX($B$9:$I$408,$CM68,COLUMNS($CN$9:CU68)),\"\")","v":"Number"}]
[null,{"$f":"IF(ISBLANK('TA Indicator Bank'!B65),\"\",'TA Indicator Bank'!B65)","v":"TA061"},{"$f":"IF(ISBLANK('TA Indicator Bank'!C65),\"\",'TA Indicator Bank'!C65)","v":"Number of workshops and/or training sessions to support the tools"},{"$f":"IF(ISBLANK('TA Indicator Bank'!D65),\"\",'TA Indicator Bank'!D65)","v":"-"},{"$f":"IF(ISBLANK('TA Indicator Bank'!E65),\"\",'TA Indicator Bank'!E65)","v":"Activity"},{"$f":"IF(ISBLANK('TA Indicator Bank'!F65),\"\",'TA Indicator Bank'!F65)","v":"Data, software, tools and models"},{"$f":"IF(ISBLANK('TA Indicator Bank'!G65),\"\",'TA Indicator Bank'!G65)","v":"-"},{"$f":"IF(ISBLANK('TA Indicator Bank'!H65),\"\",'TA Indicator Bank'!H65)","v":"-"},{"$f":"IF(ISBLANK('TA Indicator Bank'!I65),\"\",'TA Indicator Bank'!I65)","v":"Yes/No"},{"$f":"IF(ISBLANK('TA Indicator Bank'!J65),\"\",'TA Indicator Bank'!J65)","v":0},{"$f":"IF(ISBLANK('TA Indicator Bank'!K65),\"\",'TA Indicator Bank'!K65)","v":0},{"$f":"IF(ISBLANK('TA Indicator Bank'!L65),\"\",'TA Indicator Bank'!L65)","v":0},{"$f":"IF(ISBLANK('TA Indicator Bank'!M65),\"\",'TA Indicator Bank'!M65)","v":0},{"$f":"IF(ISBLANK('TA Indicator Bank'!N65),\"\",'TA Indicator Bank'!N65)","v":0},{"$f":"IF(ISBLANK('TA Indicator Bank'!O65),\"\",'TA Indicator Bank'!O65)","v":0},{"$f":"IF(ISBLANK('TA Indicator Bank'!P65),\"\",'TA Indicator Bank'!P65)","v":0},{"$f":"IF(ISBLANK('TA Indicator Bank'!Q65),\"\",'TA Indicator Bank'!Q65)","v":0},{"$f":"IF(ISBLANK('TA Indicator Bank'!R65),\"\",'TA Indicator Bank'!R65)","v":0},{"$f":"IF(ISBLANK('TA Indicator Bank'!S65),\"\",'TA Indicator Bank'!S65)","v":0},{"$f":"IF(ISBLANK('TA Indicator Bank'!T65),\"\",'TA Indicator Bank'!T65)","v":0},{"$f":"IF(ISBLANK('TA Indicator Bank'!U65),\"\",'TA Indicator Bank'!U65)","v":0},{"$f":"IF(ISBLANK('TA Indicator Bank'!V65),\"\",'TA Indicator Bank'!V65)","v":1},{"$f":"IF(ISBLANK('TA Indicator Bank'!W65),\"\",'TA Indicator Bank'!W65)","v":0},{"$f":"IF(ISBLANK('TA Indicator Bank'!X65),\"\",'TA Indicator Bank'!X65)","v":0},{"$f":"IF(ISBLANK('TA Indicator Bank'!Y65),\"\",'TA Indicator Bank'!Y65)","v":0},{"$f":"IF(ISBLANK('TA Indicator Bank'!Z65),\"\",'TA Indicator Bank'!Z65)","v":0},{"$f":"IF(ISBLANK('TA Indicator Bank'!AA65),\"\",'TA Indicator Bank'!AA65)","v":0},{"$f":"IF(ISBLANK('TA Indicator Bank'!AB65),\"\",'TA Indicator Bank'!AB65)","v":0},{"$f":"IF(ISBLANK('TA Indicator Bank'!AC65),\"\",'TA Indicator Bank'!AC65)","v":0},{"$f":"IF(ISBLANK('TA Indicator Bank'!AD65),\"\",'TA Indicator Bank'!AD65)","v":0},{"$f":"IF(ISBLANK('TA Indicator Bank'!AE65),\"\",'TA Indicator Bank'!AE65)","v":0},{"$f":"IF(ISBLANK('TA Indicator Bank'!AF65),\"\",'TA Indicator Bank'!AF65)","v":0},{"$f":"IF(ISBLANK('TA Indicator Bank'!AG65),\"\",'TA Indicator Bank'!AG65)","v":0},{"$f":"IF(ISBLANK('TA Indicator Bank'!AH65),\"\",'TA Indicator Bank'!AH65)","v":0},{"$f":"IF(ISBLANK('TA Indicator Bank'!AI65),\"\",'TA Indicator Bank'!AI65)","v":0},{"$f":"IF(ISBLANK('TA Indicator Bank'!AJ65),\"\",'TA Indicator Bank'!AJ65)","v":0},{"$f":"IF(ISBLANK('TA Indicator Bank'!AK65),\"\",'TA Indicator Bank'!AK65)","v":0},{"$f":"IF(ISBLANK('TA Indicator Bank'!AL65),\"\",'TA Indicator Bank'!AL65)","v":0},{"$f":"IF(ISBLANK('TA Indicator Bank'!AM65),\"\",'TA Indicator Bank'!AM65)","v":0},{"$f":"IF(ISBLANK('TA Indicator Bank'!AN65),\"\",'TA Indicator Bank'!AN65)","v":0},{"$f":"IF(ISBLANK('TA Indicator Bank'!AO65),\"\",'TA Indicator Bank'!AO65)","v":0},{"$f":"IF(ISBLANK('TA Indicator Bank'!AP65),\"\",'TA Indicator Bank'!AP65)","v":1},{"$f":"IF(ISBLANK('TA Indicator Bank'!AQ65),\"\",'TA Indicator Bank'!AQ65)","v":0},{"$f":"IF(ISBLANK('TA Indicator Bank'!AR65),\"\",'TA Indicator Bank'!AR65)","v":0},{"$f":"IF(ISBLANK('TA Indicator Bank'!AS65),\"\",'TA Indicator Bank'!AS65)","v":0},{"$f":"IF(ISBLANK('TA Indicator Bank'!AT65),\"\",'TA Indicator Bank'!AT65)","v":0},{"$f":"IF(AND(J69=1,J$410=1),1,0)","v":0},{"$f":"IF(AND(K69=1,K$410=1),1,0)","v":0},{"$f":"IF(AND(L69=1,L$410=1),1,0)","v":0},{"$f":"IF(AND(M69=1,M$410=1),1,0)","v":0},{"$f":"IF(AND(N69=1,N$410=1),1,0)","v":0},{"$f":"IF(AND(O69=1,O$410=1),1,0)","v":0},{"$f":"IF(AND(P69=1,P$410=1),1,0)","v":0},{"$f":"IF(AND(Q69=1,Q$410=1),1,0)","v":0},{"$f":"IF(AND(R69=1,R$410=1),1,0)","v":0},{"$f":"IF(AND(S69=1,S$410=1),1,0)","v":0},{"$f":"IF(AND(T69=1,T$410=1),1,0)","v":0},{"$f":"IF(AND(U69=1,U$410=1),1,0)","v":0},{"$f":"IF(AND(V69=1,V$410=1),1,0)","v":1},{"$f":"IF(AND(W69=1,W$410=1),1,0)","v":0},1,{"$f":"IF(AND(X69=1,X$410=1),1,0)","v":0},{"$f":"IF(AND(Y69=1,Y$410=1),1,0)","v":0},{"$f":"IF(AND(Z69=1,Z$410=1),1,0)","v":0},{"$f":"IF(AND(AA69=1,AA$410=1),1,0)","v":0},{"$f":"IF(AND(AB69=1,AB$410=1),1,0)","v":0},{"$f":"IF(AND(AC69=1,AC$410=1),1,0)","v":0},{"$f":"IF(AND(AD69=1,AD$410=1),1,0)","v":0},{"$f":"IF(AND(AE69=1,AE$410=1),1,0)","v":0},{"$f":"IF(AND(AF69=1,AF$410=1),1,0)","v":0},1,{"$f":"IF(AND(AG69=1,AG$410=1),1,0)","v":0},{"$f":"IF(AND(AH69=1,AH$410=1),1,0)","v":0},{"$f":"IF(AND(AI69=1,AI$410=1),1,0)","v":0},{"$f":"IF(AND(AJ69=1,AJ$410=1),1,0)","v":0},{"$f":"IF(AND(AK69=1,AK$410=1),1,0)","v":0},{"$f":"IF(AND(AL69=1,AL$410=1),1,0)","v":0},{"$f":"IF(AND(AM69=1,AM$410=1),1,0)","v":0},{"$f":"IF(AND(AN69=1,AN$410=1),1,0)","v":0},{"$f":"IF(AND(AO69=1,AO$410=1),1,0)","v":0},1,{"$f":"IF(AND(AP69=1,AP$410=1),1,0)","v":1},{"$f":"IF(AND(AQ69=1,AQ$410=1),1,0)","v":0},{"$f":"IF(AND(AR69=1,AR$410=1),1,0)","v":0},{"$f":"IF(AND(AS69=1,AS$410=1),1,0)","v":0},{"$f":"IF(AND(AT69=1,AT$410=1),1,0)","v":0},1,1,61,61,{"$f":"IFERROR(SMALL($CL$9:$CL$408,CK69),\"\")","v":61},{"$f":"IFERROR(INDEX($B$9:$I$408,$CM69,COLUMNS($CN$9:CN69)),\"\")","v":"TA061"},{"$f":"IFERROR(INDEX($B$9:$I$408,$CM69,COLUMNS($CN$9:CO69)),\"\")","v":"Number of workshops and/or training sessions to support the tools"},{"$f":"IFERROR(INDEX($B$9:$I$408,$CM69,COLUMNS($CN$9:CP69)),\"\")","v":"-"},{"$f":"IFERROR(INDEX($B$9:$I$408,$CM69,COLUMNS($CN$9:CQ69)),\"\")","v":"Activity"},{"$f":"IFERROR(INDEX($B$9:$I$408,$CM69,COLUMNS($CN$9:CR69)),\"\")","v":"Data, software, tools and models"},{"$f":"IFERROR(INDEX($B$9:$I$408,$CM69,COLUMNS($CN$9:CS69)),\"\")","v":"-"},{"$f":"IFERROR(INDEX($B$9:$I$408,$CM69,COLUMNS($CN$9:CT69)),\"\")","v":"-"},{"$f":"IFERROR(INDEX($B$9:$I$408,$CM69,COLUMNS($CN$9:CU69)),\"\")","v":"Yes/No"}]
[null,{"$f":"IF(ISBLANK('TA Indicator Bank'!B66),\"\",'TA Indicator Bank'!B66)","v":"TA062"},{"$f":"IF(ISBLANK('TA Indicator Bank'!C66),\"\",'TA Indicator Bank'!C66)","v":"Improved data availability among beneficiaries"},{"$f":"IF(ISBLANK('TA Indicator Bank'!D66),\"\",'TA Indicator Bank'!D66)","v":"Can be assessed through surveys"},{"$f":"IF(ISBLANK('TA Indicator Bank'!E66),\"\",'TA Indicator Bank'!E66)","v":"Output"},{"$f":"IF(ISBLANK('TA Indicator Bank'!F66),\"\",'TA Indicator Bank'!F66)","v":"-"},{"$f":"IF(ISBLANK('TA Indicator Bank'!G66),\"\",'TA Indicator Bank'!G66)","v":"Capacity building: Technical capacity"},{"$f":"IF(ISBLANK('TA Indicator Bank'!H66),\"\",'TA Indicator Bank'!H66)","v":"-"},{"$f":"IF(ISBLANK('TA Indicator Bank'!I66),\"\",'TA Indicator Bank'!I66)","v":"Yes/No"},{"$f":"IF(ISBLANK('TA Indicator Bank'!J66),\"\",'TA Indicator Bank'!J66)","v":0},{"$f":"IF(ISBLANK('TA Indicator Bank'!K66),\"\",'TA Indicator Bank'!K66)","v":0},{"$f":"IF(ISBLANK('TA Indicator Bank'!L66),\"\",'TA Indicator Bank'!L66)","v":0},{"$f":"IF(ISBLANK('TA Indicator Bank'!M66),\"\",'TA Indicator Bank'!M66)","v":0},{"$f":"IF(ISBLANK('TA Indicator Bank'!N66),\"\",'TA Indicator Bank'!N66)","v":0},{"$f":"IF(ISBLANK('TA Indicator Bank'!O66),\"\",'TA Indicator Bank'!O66)","v":0},{"$f":"IF(ISBLANK('TA Indicator Bank'!P66),\"\",'TA Indicator Bank'!P66)","v":0},{"$f":"IF(ISBLANK('TA Indicator Bank'!Q66),\"\",'TA Indicator Bank'!Q66)","v":0},{"$f":"IF(ISBLANK('TA Indicator Bank'!R66),\"\",'TA Indicator Bank'!R66)","v":0},{"$f":"IF(ISBLANK('TA Indicator Bank'!S66),\"\",'TA Indicator Bank'!S66)","v":0},{"$f":"IF(ISBLANK('TA Indicator Bank'!T66),\"\",'TA Indicator Bank'!T66)","v":0},{"$f":"IF(ISBLANK('TA Indicator Bank'!U66),\"\",'TA Indicator Bank'!U66)","v":0},{"$f":"IF(ISBLANK('TA Indicator Bank'!V66),\"\",'TA Indicator Bank'!V66)","v":0},{"$f":"IF(ISBLANK('TA Indicator Bank'!W66),\"\",'TA Indicator Bank'!W66)","v":0},{"$f":"IF(ISBLANK('TA Indicator Bank'!X66),\"\",'TA Indicator Bank'!X66)","v":0},{"$f":"IF(ISBLANK('TA Indicator Bank'!Y66),\"\",'TA Indicator Bank'!Y66)","v":1},{"$f":"IF(ISBLANK('TA Indicator Bank'!Z66),\"\",'TA Indicator Bank'!Z66)","v":0},{"$f":"IF(ISBLANK('TA Indicator Bank'!AA66),\"\",'TA Indicator Bank'!AA66)","v":0},{"$f":"IF(ISBLANK('TA Indicator Bank'!AB66),\"\",'TA Indicator Bank'!AB66)","v":0},{"$f":"IF(ISBLANK('TA Indicator Bank'!AC66),\"\",'TA Indicator Bank'!AC66)","v":0},{"$f":"IF(ISBLANK('TA Indicator Bank'!AD66),\"\",'TA Indicator Bank'!AD66)","v":0},{"$f":"IF(ISBLANK('TA Indicator Bank'!AE66),\"\",'TA Indicator Bank'!AE66)","v":0},{"$f":"IF(ISBLANK('TA Indicator Bank'!AF66),\"\",'TA Indicator Bank'!AF66)","v":0},{"$f":"IF(ISBLANK('TA Indicator Bank'!AG66),\"\",'TA Indicator Bank'!AG66)","v":0},{"$f":"IF(ISBLANK('TA Indicator Bank'!AH66),\"\",'TA Indicator Bank'!AH66)","v":0},{"$f":"IF(ISBLANK('TA Indicator Bank'!AI66),\"\",'TA Indicator Bank'!AI66)","v":0},{"$f":"IF(ISBLANK('TA Indicator Bank'!AJ66),\"\",'TA Indicator Bank'!AJ66)","v":0},{"$f":"IF(ISBLANK('TA Indicator Bank'!AK66),\"\",'TA Indicator Bank'!AK66)","v":0},{"$f":"IF(ISBLANK('TA Indicator Bank'!AL66),\"\",'TA Indicator Bank'!AL66)","v":0},{"$f":"IF(ISBLANK('TA Indicator Bank'!AM66),\"\",'TA Indicator Bank'!AM66)","v":0},{"$f":"IF(ISBLANK('TA Indicator Bank'!AN66),\"\",'TA Indicator Bank'!AN66)","v":0},{"$f":"IF(ISBLANK('TA Indicator Bank'!AO66),\"\",'TA Indicator Bank'!AO66)","v":0},{"$f":"IF(ISBLANK('TA Indicator Bank'!AP66),\"\",'TA Indicator Bank'!AP66)","v":0},{"$f":"IF(ISBLANK('TA Indicator Bank'!AQ66),\"\",'TA Indicator Bank'!AQ66)","v":0},{"$f":"IF(ISBLANK('TA Indicator Bank'!AR66),\"\",'TA Indicator Bank'!AR66)","v":1},{"$f":"IF(ISBLANK('TA Indicator Bank'!AS66),\"\",'TA Indicator Bank'!AS66)","v":0},{"$f":"IF(ISBLANK('TA Indicator Bank'!AT66),\"\",'TA Indicator Bank'!AT66)","v":0},{"$f":"IF(AND(J70=1,J$410=1),1,0)","v":0},{"$f":"IF(AND(K70=1,K$410=1),1,0)","v":0},{"$f":"IF(AND(L70=1,L$410=1),1,0)","v":0},{"$f":"IF(AND(M70=1,M$410=1),1,0)","v":0},{"$f":"IF(AND(N70=1,N$410=1),1,0)","v":0},{"$f":"IF(AND(O70=1,O$410=1),1,0)","v":0},{"$f":"IF(AND(P70=1,P$410=1),1,0)","v":0},{"$f":"IF(AND(Q70=1,Q$410=1),1,0)","v":0},{"$f":"IF(AND(R70=1,R$410=1),1,0)","v":0},{"$f":"IF(AND(S70=1,S$410=1),1,0)","v":0},{"$f":"IF(AND(T70=1,T$410=1),1,0)","v":0},{"$f":"IF(AND(U70=1,U$410=1),1,0)","v":0},{"$f":"IF(AND(V70=1,V$410=1),1,0)","v":0},{"$f":"IF(AND(W70=1,W$410=1),1,0)","v":0},1,{"$f":"IF(AND(X70=1,X$410=1),1,0)","v":0},{"$f":"IF(AND(Y70=1,Y$410=1),1,0)","v":1},{"$f":"IF(AND(Z70=1,Z$410=1),1,0)","v":0},{"$f":"IF(AND(AA70=1,AA$410=1),1,0)","v":0},{"$f":"IF(AND(AB70=1,AB$410=1),1,0)","v":0},{"$f":"IF(AND(AC70=1,AC$410=1),1,0)","v":0},{"$f":"IF(AND(AD70=1,AD$410=1),1,0)","v":0},{"$f":"IF(AND(AE70=1,AE$410=1),1,0)","v":0},{"$f":"IF(AND(AF70=1,AF$410=1),1,0)","v":0},1,{"$f":"IF(AND(AG70=1,AG$410=1),1,0)","v":0},{"$f":"IF(AND(AH70=1,AH$410=1),1,0)","v":0},{"$f":"IF(AND(AI70=1,AI$410=1),1,0)","v":0},{"$f":"IF(AND(AJ70=1,AJ$410=1),1,0)","v":0},{"$f":"IF(AND(AK70=1,AK$410=1),1,0)","v":0},{"$f":"IF(AND(AL70=1,AL$410=1),1,0)","v":0},{"$f":"IF(AND(AM70=1,AM$410=1),1,0)","v":0},{"$f":"IF(AND(AN70=1,AN$410=1),1,0)","v":0},{"$f":"IF(AND(AO70=1,AO$410=1),1,0)","v":0},1,{"$f":"IF(AND(AP70=1,AP$410=1),1,0)","v":0},{"$f":"IF(AND(AQ70=1,AQ$410=1),1,0)","v":0},{"$f":"IF(AND(AR70=1,AR$410=1),1,0)","v":1},{"$f":"IF(AND(AS70=1,AS$410=1),1,0)","v":0},{"$f":"IF(AND(AT70=1,AT$410=1),1,0)","v":0},1,1,62,62,{"$f":"IFERROR(SMALL($CL$9:$CL$408,CK70),\"\")","v":62},{"$f":"IFERROR(INDEX($B$9:$I$408,$CM70,COLUMNS($CN$9:CN70)),\"\")","v":"TA062"},{"$f":"IFERROR(INDEX($B$9:$I$408,$CM70,COLUMNS($CN$9:CO70)),\"\")","v":"Improved data availability among beneficiaries"},{"$f":"IFERROR(INDEX($B$9:$I$408,$CM70,COLUMNS($CN$9:CP70)),\"\")","v":"Can be assessed through surveys"},{"$f":"IFERROR(INDEX($B$9:$I$408,$CM70,COLUMNS($CN$9:CQ70)),\"\")","v":"Output"},{"$f":"IFERROR(INDEX($B$9:$I$408,$CM70,COLUMNS($CN$9:CR70)),\"\")","v":"-"},{"$f":"IFERROR(INDEX($B$9:$I$408,$CM70,COLUMNS($CN$9:CS70)),\"\")","v":"Capacity building: Technical capacity"},{"$f":"IFERROR(INDEX($B$9:$I$408,$CM70,COLUMNS($CN$9:CT70)),\"\")","v":"-"},{"$f":"IFERROR(INDEX($B$9:$I$408,$CM70,COLUMNS($CN$9:CU70)),\"\")","v":"Yes/No"}]
[null,{"$f":"IF(ISBLANK('TA Indicator Bank'!B67),\"\",'TA Indicator Bank'!B67)","v":"TA063"},{"$f":"IF(ISBLANK('TA Indicator Bank'!C67),\"\",'TA Indicator Bank'!C67)","v":"Number of organisations with improved data availability, IT hardware or software"},{"$f":"IF(ISBLANK('TA Indicator Bank'!D67),\"\",'TA Indicator Bank'!D67)","v":"-"},{"$f":"IF(ISBLANK('TA Indicator Bank'!E67),\"\",'TA Indicator Bank'!E67)","v":"Uptake"},{"$f":"IF(ISBLANK('TA Indicator Bank'!F67),\"\",'TA Indicator Bank'!F67)","v":"Data, software, tools and models"},{"$f":"IF(ISBLANK('TA Indicator Bank'!G67),\"\",'TA Indicator Bank'!G67)","v":"-"},{"$f":"IF(ISBLANK('TA Indicator Bank'!H67),\"\",'TA Indicator Bank'!H67)","v":"-"},{"$f":"IF(ISBLANK('TA Indicator Bank'!I67),\"\",'TA Indicator Bank'!I67)","v":"Number"},{"$f":"IF(ISBLANK('TA Indicator Bank'!J67),\"\",'TA Indicator Bank'!J67)","v":0},{"$f":"IF(ISBLANK('TA Indicator Bank'!K67),\"\",'TA Indicator Bank'!K67)","v":0},{"$f":"IF(ISBLANK('TA Indicator Bank'!L67),\"\",'TA Indicator Bank'!L67)","v":0},{"$f":"IF(ISBLANK('TA Indicator Bank'!M67),\"\",'TA Indicator Bank'!M67)","v":0},{"$f":"IF(ISBLANK('TA Indicator Bank'!N67),\"\",'TA Indicator Bank'!N67)","v":0},{"$f":"IF(ISBLANK('TA Indicator Bank'!O67),\"\",'TA Indicator Bank'!O67)","v":0},{"$f":"IF(ISBLANK('TA Indicator Bank'!P67),\"\",'TA Indicator Bank'!P67)","v":0},{"$f":"IF(ISBLANK('TA Indicator Bank'!Q67),\"\",'TA Indicator Bank'!Q67)","v":0},{"$f":"IF(ISBLANK('TA Indicator Bank'!R67),\"\",'TA Indicator Bank'!R67)","v":0},{"$f":"IF(ISBLANK('TA Indicator Bank'!S67),\"\",'TA Indicator Bank'!S67)","v":0},{"$f":"IF(ISBLANK('TA Indicator Bank'!T67),\"\",'TA Indicator Bank'!T67)","v":0},{"$f":"IF(ISBLANK('TA Indicator Bank'!U67),\"\",'TA Indicator Bank'!U67)","v":0},{"$f":"IF(ISBLANK('TA Indicator Bank'!V67),\"\",'TA Indicator Bank'!V67)","v":1},{"$f":"IF(ISBLANK('TA Indicator Bank'!W67),\"\",'TA Indicator Bank'!W67)","v":0},{"$f":"IF(ISBLANK('TA Indicator Bank'!X67),\"\",'TA Indicator Bank'!X67)","v":0},{"$f":"IF(ISBLANK('TA Indicator Bank'!Y67),\"\",'TA Indicator Bank'!Y67)","v":0},{"$f":"IF(ISBLANK('TA Indicator Bank'!Z67),\"\",'TA Indicator Bank'!Z67)","v":0},{"$f":"IF(ISBLANK('TA Indicator Bank'!AA67),\"\",'TA Indicator Bank'!AA67)","v":0},{"$f":"IF(ISBLANK('TA Indicator Bank'!AB67),\"\",'TA Indicator Bank'!AB67)","v":0},{"$f":"IF(ISBLANK('TA Indicator Bank'!AC67),\"\",'TA Indicator Bank'!AC67)","v":0},{"$f":"IF(ISBLANK('TA Indicator Bank'!AD67),\"\",'TA Indicator Bank'!AD67)","v":0},{"$f":"IF(ISBLANK('TA Indicator Bank'!AE67),\"\",'TA Indicator Bank'!AE67)","v":0},{"$f":"IF(ISBLANK('TA Indicator Bank'!AF67),\"\",'TA Indicator Bank'!AF67)","v":0},{"$f":"IF(ISBLANK('TA Indicator Bank'!AG67),\"\",'TA Indicator Bank'!AG67)","v":0},{"$f":"IF(ISBLANK('TA Indicator Bank'!AH67),\"\",'TA Indicator Bank'!AH67)","v":0},{"$f":"IF(ISBLANK('TA Indicator Bank'!AI67),\"\",'TA Indicator Bank'!AI67)","v":0},{"$f":"IF(ISBLANK('TA Indicator Bank'!AJ67),\"\",'TA Indicator Bank'!AJ67)","v":0},{"$f":"IF(ISBLANK('TA Indicator Bank'!AK67),\"\",'TA Indicator Bank'!AK67)","v":0},{"$f":"IF(ISBLANK('TA Indicator Bank'!AL67),\"\",'TA Indicator Bank'!AL67)","v":0},{"$f":"IF(ISBLANK('TA Indicator Bank'!AM67),\"\",'TA Indicator Bank'!AM67)","v":0},{"$f":"IF(ISBLANK('TA Indicator Bank'!AN67),\"\",'TA Indicator Bank'!AN67)","v":0},{"$f":"IF(ISBLANK('TA Indicator Bank'!AO67),\"\",'TA Indicator Bank'!AO67)","v":0},{"$f":"IF(ISBLANK('TA Indicator Bank'!AP67),\"\",'TA Indicator Bank'!AP67)","v":0},{"$f":"IF(ISBLANK('TA Indicator Bank'!AQ67),\"\",'TA Indicator Bank'!AQ67)","v":1},{"$f":"IF(ISBLANK('TA Indicator Bank'!AR67),\"\",'TA Indicator Bank'!AR67)","v":0},{"$f":"IF(ISBLANK('TA Indicator Bank'!AS67),\"\",'TA Indicator Bank'!AS67)","v":0},{"$f":"IF(ISBLANK('TA Indicator Bank'!AT67),\"\",'TA Indicator Bank'!AT67)","v":0},{"$f":"IF(AND(J71=1,J$410=1),1,0)","v":0},{"$f":"IF(AND(K71=1,K$410=1),1,0)","v":0},{"$f":"IF(AND(L71=1,L$410=1),1,0)","v":0},{"$f":"IF(AND(M71=1,M$410=1),1,0)","v":0},{"$f":"IF(AND(N71=1,N$410=1),1,0)","v":0},{"$f":"IF(AND(O71=1,O$410=1),1,0)","v":0},{"$f":"IF(AND(P71=1,P$410=1),1,0)","v":0},{"$f":"IF(AND(Q71=1,Q$410=1),1,0)","v":0},{"$f":"IF(AND(R71=1,R$410=1),1,0)","v":0},{"$f":"IF(AND(S71=1,S$410=1),1,0)","v":0},{"$f":"IF(AND(T71=1,T$410=1),1,0)","v":0},{"$f":"IF(AND(U71=1,U$410=1),1,0)","v":0},{"$f":"IF(AND(V71=1,V$410=1),1,0)","v":1},{"$f":"IF(AND(W71=1,W$410=1),1,0)","v":0},1,{"$f":"IF(AND(X71=1,X$410=1),1,0)","v":0},{"$f":"IF(AND(Y71=1,Y$410=1),1,0)","v":0},{"$f":"IF(AND(Z71=1,Z$410=1),1,0)","v":0},{"$f":"IF(AND(AA71=1,AA$410=1),1,0)","v":0},{"$f":"IF(AND(AB71=1,AB$410=1),1,0)","v":0},{"$f":"IF(AND(AC71=1,AC$410=1),1,0)","v":0},{"$f":"IF(AND(AD71=1,AD$410=1),1,0)","v":0},{"$f":"IF(AND(AE71=1,AE$410=1),1,0)","v":0},{"$f":"IF(AND(AF71=1,AF$410=1),1,0)","v":0},1,{"$f":"IF(AND(AG71=1,AG$410=1),1,0)","v":0},{"$f":"IF(AND(AH71=1,AH$410=1),1,0)","v":0},{"$f":"IF(AND(AI71=1,AI$410=1),1,0)","v":0},{"$f":"IF(AND(AJ71=1,AJ$410=1),1,0)","v":0},{"$f":"IF(AND(AK71=1,AK$410=1),1,0)","v":0},{"$f":"IF(AND(AL71=1,AL$410=1),1,0)","v":0},{"$f":"IF(AND(AM71=1,AM$410=1),1,0)","v":0},{"$f":"IF(AND(AN71=1,AN$410=1),1,0)","v":0},{"$f":"IF(AND(AO71=1,AO$410=1),1,0)","v":0},1,{"$f":"IF(AND(AP71=1,AP$410=1),1,0)","v":0},{"$f":"IF(AND(AQ71=1,AQ$410=1),1,0)","v":1},{"$f":"IF(AND(AR71=1,AR$410=1),1,0)","v":0},{"$f":"IF(AND(AS71=1,AS$410=1),1,0)","v":0},{"$f":"IF(AND(AT71=1,AT$410=1),1,0)","v":0},1,1,63,63,{"$f":"IFERROR(SMALL($CL$9:$CL$408,CK71),\"\")","v":63},{"$f":"IFERROR(INDEX($B$9:$I$408,$CM71,COLUMNS($CN$9:CN71)),\"\")","v":"TA063"},{"$f":"IFERROR(INDEX($B$9:$I$408,$CM71,COLUMNS($CN$9:CO71)),\"\")","v":"Number of organisations with improved data availability, IT hardware or software"},{"$f":"IFERROR(INDEX($B$9:$I$408,$CM71,COLUMNS($CN$9:CP71)),\"\")","v":"-"},{"$f":"IFERROR(INDEX($B$9:$I$408,$CM71,COLUMNS($CN$9:CQ71)),\"\")","v":"Uptake"},{"$f":"IFERROR(INDEX($B$9:$I$408,$CM71,COLUMNS($CN$9:CR71)),\"\")","v":"Data, software, tools and models"},{"$f":"IFERROR(INDEX($B$9:$I$408,$CM71,COLUMNS($CN$9:CS71)),\"\")","v":"-"},{"$f":"IFERROR(INDEX($B$9:$I$408,$CM71,COLUMNS($CN$9:CT71)),\"\")","v":"-"},{"$f":"IFERROR(INDEX($B$9:$I$408,$CM71,COLUMNS($CN$9:CU71)),\"\")","v":"Number"}]
[null,{"$f":"IF(ISBLANK('TA Indicator Bank'!B68),\"\",'TA Indicator Bank'!B68)","v":"TA064"},{"$f":"IF(ISBLANK('TA Indicator Bank'!C68),\"\",'TA Indicator Bank'!C68)","v":"Share of users satisfied with data, software, tools or models"},{"$f":"IF(ISBLANK('TA Indicator Bank'!D68),\"\",'TA Indicator Bank'!D68)","v":"-"},{"$f":"IF(ISBLANK('TA Indicator Bank'!E68),\"\",'TA Indicator Bank'!E68)","v":"Uptake"},{"$f":"IF(ISBLANK('TA Indicator Bank'!F68),\"\",'TA Indicator Bank'!F68)","v":"Data, software, tools and models"},{"$f":"IF(ISBLANK('TA Indicator Bank'!G68),\"\",'TA Indicator Bank'!G68)","v":"-"},{"$f":"IF(ISBLANK('TA Indicator Bank'!H68),\"\",'TA Indicator Bank'!H68)","v":"-"},{"$f":"IF(ISBLANK('TA Indicator Bank'!I68),\"\",'TA Indicator Bank'!I68)","v":"Percentage"},{"$f":"IF(ISBLANK('TA Indicator Bank'!J68),\"\",'TA Indicator Bank'!J68)","v":0},{"$f":"IF(ISBLANK('TA Indicator Bank'!K68),\"\",'TA Indicator Bank'!K68)","v":0},{"$f":"IF(ISBLANK('TA Indicator Bank'!L68),\"\",'TA Indicator Bank'!L68)","v":0},{"$f":"IF(ISBLANK('TA Indicator Bank'!M68),\"\",'TA Indicator Bank'!M68)","v":0},{"$f":"IF(ISBLANK('TA Indicator Bank'!N68),\"\",'TA Indicator Bank'!N68)","v":0},{"$f":"IF(ISBLANK('TA Indicator Bank'!O68),\"\",'TA Indicator Bank'!O68)","v":0},{"$f":"IF(ISBLANK('TA Indicator Bank'!P68),\"\",'TA Indicator Bank'!P68)","v":0},{"$f":"IF(ISBLANK('TA Indicator Bank'!Q68),\"\",'TA Indicator Bank'!Q68)","v":0},{"$f":"IF(ISBLANK('TA Indicator Bank'!R68),\"\",'TA Indicator Bank'!R68)","v":0},{"$f":"IF(ISBLANK('TA Indicator Bank'!S68),\"\",'TA Indicator Bank'!S68)","v":0},{"$f":"IF(ISBLANK('TA Indicator Bank'!T68),\"\",'TA Indicator Bank'!T68)","v":0},{"$f":"IF(ISBLANK('TA Indicator Bank'!U68),\"\",'TA Indicator Bank'!U68)","v":0},{"$f":"IF(ISBLANK('TA Indicator Bank'!V68),\"\",'TA Indicator Bank'!V68)","v":1},{"$f":"IF(ISBLANK('TA Indicator Bank'!W68),\"\",'TA Indicator Bank'!W68)","v":0},{"$f":"IF(ISBLANK('TA Indicator Bank'!X68),\"\",'TA Indicator Bank'!X68)","v":0},{"$f":"IF(ISBLANK('TA Indicator Bank'!Y68),\"\",'TA Indicator Bank'!Y68)","v":0},{"$f":"IF(ISBLANK('TA Indicator Bank'!Z68),\"\",'TA Indicator Bank'!Z68)","v":0},{"$f":"IF(ISBLANK('TA Indicator Bank'!AA68),\"\",'TA Indicator Bank'!AA68)","v":0},{"$f":"IF(ISBLANK('TA Indicator Bank'!AB68),\"\",'TA Indicator Bank'!AB68)","v":0},{"$f":"IF(ISBLANK('TA Indicator Bank'!AC68),\"\",'TA Indicator Bank'!AC68)","v":0},{"$f":"IF(ISBLANK('TA Indicator Bank'!AD68),\"\",'TA Indicator Bank'!AD68)","v":0},{"$f":"IF(ISBLANK('TA Indicator Bank'!AE68),\"\",'TA Indicator Bank'!AE68)","v":0},{"$f":"IF(ISBLANK('TA Indicator Bank'!AF68),\"\",'TA Indicator Bank'!AF68)","v":0},{"$f":"IF(ISBLANK('TA Indicator Bank'!AG68),\"\",'TA Indicator Bank'!AG68)","v":0},{"$f":"IF(ISBLANK('TA Indicator Bank'!AH68),\"\",'TA Indicator Bank'!AH68)","v":0},{"$f":"IF(ISBLANK('TA Indicator Bank'!AI68),\"\",'TA Indicator Bank'!AI68)","v":0},{"$f":"IF(ISBLANK('TA Indicator Bank'!AJ68),\"\",'TA Indicator Bank'!AJ68)","v":0},{"$f":"IF(ISBLANK('TA Indicator Bank'!AK68),\"\",'TA Indicator Bank'!AK68)","v":0},{"$f":"IF(ISBLANK('TA Indicator Bank'!AL68),\"\",'TA Indicator Bank'!AL68)","v":0},{"$f":"IF(ISBLANK('TA Indicator Bank'!AM68),\"\",'TA Indicator Bank'!AM68)","v":0},{"$f":"IF(ISBLANK('TA Indicator Bank'!AN68),\"\",'TA Indicator Bank'!AN68)","v":0},{"$f":"IF(ISBLANK('TA Indicator Bank'!AO68),\"\",'TA Indicator Bank'!AO68)","v":0},{"$f":"IF(ISBLANK('TA Indicator Bank'!AP68),\"\",'TA Indicator Bank'!AP68)","v":0},{"$f":"IF(ISBLANK('TA Indicator Bank'!AQ68),\"\",'TA Indicator Bank'!AQ68)","v":1},{"$f":"IF(ISBLANK('TA Indicator Bank'!AR68),\"\",'TA Indicator Bank'!AR68)","v":0},{"$f":"IF(ISBLANK('TA Indicator Bank'!AS68),\"\",'TA Indicator Bank'!AS68)","v":0},{"$f":"IF(ISBLANK('TA Indicator Bank'!AT68),\"\",'TA Indicator Bank'!AT68)","v":0},{"$f":"IF(AND(J72=1,J$410=1),1,0)","v":0},{"$f":"IF(AND(K72=1,K$410=1),1,0)","v":0},{"$f":"IF(AND(L72=1,L$410=1),1,0)","v":0},{"$f":"IF(AND(M72=1,M$410=1),1,0)","v":0},{"$f":"IF(AND(N72=1,N$410=1),1,0)","v":0},{"$f":"IF(AND(O72=1,O$410=1),1,0)","v":0},{"$f":"IF(AND(P72=1,P$410=1),1,0)","v":0},{"$f":"IF(AND(Q72=1,Q$410=1),1,0)","v":0},{"$f":"IF(AND(R72=1,R$410=1),1,0)","v":0},{"$f":"IF(AND(S72=1,S$410=1),1,0)","v":0},{"$f":"IF(AND(T72=1,T$410=1),1,0)","v":0},{"$f":"IF(AND(U72=1,U$410=1),1,0)","v":0},{"$f":"IF(AND(V72=1,V$410=1),1,0)","v":1},{"$f":"IF(AND(W72=1,W$410=1),1,0)","v":0},1,{"$f":"IF(AND(X72=1,X$410=1),1,0)","v":0},{"$f":"IF(AND(Y72=1,Y$410=1),1,0)","v":0},{"$f":"IF(AND(Z72=1,Z$410=1),1,0)","v":0},{"$f":"IF(AND(AA72=1,AA$410=1),1,0)","v":0},{"$f":"IF(AND(AB72=1,AB$410=1),1,0)","v":0},{"$f":"IF(AND(AC72=1,AC$410=1),1,0)","v":0},{"$f":"IF(AND(AD72=1,AD$410=1),1,0)","v":0},{"$f":"IF(AND(AE72=1,AE$410=1),1,0)","v":0},{"$f":"IF(AND(AF72=1,AF$410=1),1,0)","v":0},1,{"$f":"IF(AND(AG72=1,AG$410=1),1,0)","v":0},{"$f":"IF(AND(AH72=1,AH$410=1),1,0)","v":0},{"$f":"IF(AND(AI72=1,AI$410=1),1,0)","v":0},{"$f":"IF(AND(AJ72=1,AJ$410=1),1,0)","v":0},{"$f":"IF(AND(AK72=1,AK$410=1),1,0)","v":0},{"$f":"IF(AND(AL72=1,AL$410=1),1,0)","v":0},{"$f":"IF(AND(AM72=1,AM$410=1),1,0)","v":0},{"$f":"IF(AND(AN72=1,AN$410=1),1,0)","v":0},{"$f":"IF(AND(AO72=1,AO$410=1),1,0)","v":0},1,{"$f":"IF(AND(AP72=1,AP$410=1),1,0)","v":0},{"$f":"IF(AND(AQ72=1,AQ$410=1),1,0)","v":1},{"$f":"IF(AND(AR72=1,AR$410=1),1,0)","v":0},{"$f":"IF(AND(AS72=1,AS$410=1),1,0)","v":0},{"$f":"IF(AND(AT72=1,AT$410=1),1,0)","v":0},1,1,64,64,{"$f":"IFERROR(SMALL($CL$9:$CL$408,CK72),\"\")","v":64},{"$f":"IFERROR(INDEX($B$9:$I$408,$CM72,COLUMNS($CN$9:CN72)),\"\")","v":"TA064"},{"$f":"IFERROR(INDEX($B$9:$I$408,$CM72,COLUMNS($CN$9:CO72)),\"\")","v":"Share of users satisfied with data, software, tools or models"},{"$f":"IFERROR(INDEX($B$9:$I$408,$CM72,COLUMNS($CN$9:CP72)),\"\")","v":"-"},{"$f":"IFERROR(INDEX($B$9:$I$408,$CM72,COLUMNS($CN$9:CQ72)),\"\")","v":"Uptake"},{"$f":"IFERROR(INDEX($B$9:$I$408,$CM72,COLUMNS($CN$9:CR72)),\"\")","v":"Data, software, tools and models"},{"$f":"IFERROR(INDEX($B$9:$I$408,$CM72,COLUMNS($CN$9:CS72)),\"\")","v":"-"},{"$f":"IFERROR(INDEX($B$9:$I$408,$CM72,COLUMNS($CN$9:CT72)),\"\")","v":"-"},{"$f":"IFERROR(INDEX($B$9:$I$408,$CM72,COLUMNS($CN$9:CU72)),\"\")","v":"Percentage"}]
[null,{"$f":"IF(ISBLANK('TA Indicator Bank'!B69),\"\",'TA Indicator Bank'!B69)","v":"TA065"},{"$f":"IF(ISBLANK('TA Indicator Bank'!C69),\"\",'TA Indicator Bank'!C69)","v":"Percentage of agreed improvements for tool implemented"},{"$f":"IF(ISBLANK('TA Indicator Bank'!D69),\"\",'TA Indicator Bank'!D69)","v":"-"},{"$f":"IF(ISBLANK('TA Indicator Bank'!E69),\"\",'TA Indicator Bank'!E69)","v":"Activity"},{"$f":"IF(ISBLANK('TA Indicator Bank'!F69),\"\",'TA Indicator Bank'!F69)","v":"Data, software, tools and models"},{"$f":"IF(ISBLANK('TA Indicator Bank'!G69),\"\",'TA Indicator Bank'!G69)","v":"-"},{"$f":"IF(ISBLANK('TA Indicator Bank'!H69),\"\",'TA Indicator Bank'!H69)","v":"-"},{"$f":"IF(ISBLANK('TA Indicator Bank'!I69),\"\",'TA Indicator Bank'!I69)","v":"Percentage"},{"$f":"IF(ISBLANK('TA Indicator Bank'!J69),\"\",'TA Indicator Bank'!J69)","v":0},{"$f":"IF(ISBLANK('TA Indicator Bank'!K69),\"\",'TA Indicator Bank'!K69)","v":0},{"$f":"IF(ISBLANK('TA Indicator Bank'!L69),\"\",'TA Indicator Bank'!L69)","v":0},{"$f":"IF(ISBLANK('TA Indicator Bank'!M69),\"\",'TA Indicator Bank'!M69)","v":0},{"$f":"IF(ISBLANK('TA Indicator Bank'!N69),\"\",'TA Indicator Bank'!N69)","v":0},{"$f":"IF(ISBLANK('TA Indicator Bank'!O69),\"\",'TA Indicator Bank'!O69)","v":0},{"$f":"IF(ISBLANK('TA Indicator Bank'!P69),\"\",'TA Indicator Bank'!P69)","v":0},{"$f":"IF(ISBLANK('TA Indicator Bank'!Q69),\"\",'TA Indicator Bank'!Q69)","v":0},{"$f":"IF(ISBLANK('TA Indicator Bank'!R69),\"\",'TA Indicator Bank'!R69)","v":0},{"$f":"IF(ISBLANK('TA Indicator Bank'!S69),\"\",'TA Indicator Bank'!S69)","v":0},{"$f":"IF(ISBLANK('TA Indicator Bank'!T69),\"\",'TA Indicator Bank'!T69)","v":0},{"$f":"IF(ISBLANK('TA Indicator Bank'!U69),\"\",'TA Indicator Bank'!U69)","v":0},{"$f":"IF(ISBLANK('TA Indicator Bank'!V69),\"\",'TA Indicator Bank'!V69)","v":1},{"$f":"IF(ISBLANK('TA Indicator Bank'!W69),\"\",'TA Indicator Bank'!W69)","v":0},{"$f":"IF(ISBLANK('TA Indicator Bank'!X69),\"\",'TA Indicator Bank'!X69)","v":0},{"$f":"IF(ISBLANK('TA Indicator Bank'!Y69),\"\",'TA Indicator Bank'!Y69)","v":0},{"$f":"IF(ISBLANK('TA Indicator Bank'!Z69),\"\",'TA Indicator Bank'!Z69)","v":0},{"$f":"IF(ISBLANK('TA Indicator Bank'!AA69),\"\",'TA Indicator Bank'!AA69)","v":0},{"$f":"IF(ISBLANK('TA Indicator Bank'!AB69),\"\",'TA Indicator Bank'!AB69)","v":0},{"$f":"IF(ISBLANK('TA Indicator Bank'!AC69),\"\",'TA Indicator Bank'!AC69)","v":0},{"$f":"IF(ISBLANK('TA Indicator Bank'!AD69),\"\",'TA Indicator Bank'!AD69)","v":0},{"$f":"IF(ISBLANK('TA Indicator Bank'!AE69),\"\",'TA Indicator Bank'!AE69)","v":0},{"$f":"IF(ISBLANK('TA Indicator Bank'!AF69),\"\",'TA Indicator Bank'!AF69)","v":0},{"$f":"IF(ISBLANK('TA Indicator Bank'!AG69),\"\",'TA Indicator Bank'!AG69)","v":0},{"$f":"IF(ISBLANK('TA Indicator Bank'!AH69),\"\",'TA Indicator Bank'!AH69)","v":0},{"$f":"IF(ISBLANK('TA Indicator Bank'!AI69),\"\",'TA Indicator Bank'!AI69)","v":0},{"$f":"IF(ISBLANK('TA Indicator Bank'!AJ69),\"\",'TA Indicator Bank'!AJ69)","v":0},{"$f":"IF(ISBLANK('TA Indicator Bank'!AK69),\"\",'TA Indicator Bank'!AK69)","v":0},{"$f":"IF(ISBLANK('TA Indicator Bank'!AL69),\"\",'TA Indicator Bank'!AL69)","v":0},{"$f":"IF(ISBLANK('TA Indicator Bank'!AM69),\"\",'TA Indicator Bank'!AM69)","v":0},{"$f":"IF(ISBLANK('TA Indicator Bank'!AN69),\"\",'TA Indicator Bank'!AN69)","v":0},{"$f":"IF(ISBLANK('TA Indicator Bank'!AO69),\"\",'TA Indicator Bank'!AO69)","v":0},{"$f":"IF(ISBLANK('TA Indicator Bank'!AP69),\"\",'TA Indicator Bank'!AP69)","v":1},{"$f":"IF(ISBLANK('TA Indicator Bank'!AQ69),\"\",'TA Indicator Bank'!AQ69)","v":0},{"$f":"IF(ISBLANK('TA Indicator Bank'!AR69),\"\",'TA Indicator Bank'!AR69)","v":0},{"$f":"IF(ISBLANK('TA Indicator Bank'!AS69),\"\",'TA Indicator Bank'!AS69)","v":0},{"$f":"IF(ISBLANK('TA Indicator Bank'!AT69),\"\",'TA Indicator Bank'!AT69)","v":0},{"$f":"IF(AND(J73=1,J$410=1),1,0)","v":0},{"$f":"IF(AND(K73=1,K$410=1),1,0)","v":0},{"$f":"IF(AND(L73=1,L$410=1),1,0)","v":0},{"$f":"IF(AND(M73=1,M$410=1),1,0)","v":0},{"$f":"IF(AND(N73=1,N$410=1),1,0)","v":0},{"$f":"IF(AND(O73=1,O$410=1),1,0)","v":0},{"$f":"IF(AND(P73=1,P$410=1),1,0)","v":0},{"$f":"IF(AND(Q73=1,Q$410=1),1,0)","v":0},{"$f":"IF(AND(R73=1,R$410=1),1,0)","v":0},{"$f":"IF(AND(S73=1,S$410=1),1,0)","v":0},{"$f":"IF(AND(T73=1,T$410=1),1,0)","v":0},{"$f":"IF(AND(U73=1,U$410=1),1,0)","v":0},{"$f":"IF(AND(V73=1,V$410=1),1,0)","v":1},{"$f":"IF(AND(W73=1,W$410=1),1,0)","v":0},1,{"$f":"IF(AND(X73=1,X$410=1),1,0)","v":0},{"$f":"IF(AND(Y73=1,Y$410=1),1,0)","v":0},{"$f":"IF(AND(Z73=1,Z$410=1),1,0)","v":0},{"$f":"IF(AND(AA73=1,AA$410=1),1,0)","v":0},{"$f":"IF(AND(AB73=1,AB$410=1),1,0)","v":0},{"$f":"IF(AND(AC73=1,AC$410=1),1,0)","v":0},{"$f":"IF(AND(AD73=1,AD$410=1),1,0)","v":0},{"$f":"IF(AND(AE73=1,AE$410=1),1,0)","v":0},{"$f":"IF(AND(AF73=1,AF$410=1),1,0)","v":0},1,{"$f":"IF(AND(AG73=1,AG$410=1),1,0)","v":0},{"$f":"IF(AND(AH73=1,AH$410=1),1,0)","v":0},{"$f":"IF(AND(AI73=1,AI$410=1),1,0)","v":0},{"$f":"IF(AND(AJ73=1,AJ$410=1),1,0)","v":0},{"$f":"IF(AND(AK73=1,AK$410=1),1,0)","v":0},{"$f":"IF(AND(AL73=1,AL$410=1),1,0)","v":0},{"$f":"IF(AND(AM73=1,AM$410=1),1,0)","v":0},{"$f":"IF(AND(AN73=1,AN$410=1),1,0)","v":0},{"$f":"IF(AND(AO73=1,AO$410=1),1,0)","v":0},1,{"$f":"IF(AND(AP73=1,AP$410=1),1,0)","v":1},{"$f":"IF(AND(AQ73=1,AQ$410=1),1,0)","v":0},{"$f":"IF(AND(AR73=1,AR$410=1),1,0)","v":0},{"$f":"IF(AND(AS73=1,AS$410=1),1,0)","v":0},{"$f":"IF(AND(AT73=1,AT$410=1),1,0)","v":0},1,1,65,65,{"$f":"IFERROR(SMALL($CL$9:$CL$408,CK73),\"\")","v":65},{"$f":"IFERROR(INDEX($B$9:$I$408,$CM73,COLUMNS($CN$9:CN73)),\"\")","v":"TA065"},{"$f":"IFERROR(INDEX($B$9:$I$408,$CM73,COLUMNS($CN$9:CO73)),\"\")","v":"Percentage of agreed improvements for tool implemented"},{"$f":"IFERROR(INDEX($B$9:$I$408,$CM73,COLUMNS($CN$9:CP73)),\"\")","v":"-"},{"$f":"IFERROR(INDEX($B$9:$I$408,$CM73,COLUMNS($CN$9:CQ73)),\"\")","v":"Activity"},{"$f":"IFERROR(INDEX($B$9:$I$408,$CM73,COLUMNS($CN$9:CR73)),\"\")","v":"Data, software, tools and models"},{"$f":"IFERROR(INDEX($B$9:$I$408,$CM73,COLUMNS($CN$9:CS73)),\"\")","v":"-"},{"$f":"IFERROR(INDEX($B$9:$I$408,$CM73,COLUMNS($CN$9:CT73)),\"\")","v":"-"},{"$f":"IFERROR(INDEX($B$9:$I$408,$CM73,COLUMNS($CN$9:CU73)),\"\")","v":"Percentage"}]
[null,{"$f":"IF(ISBLANK('TA Indicator Bank'!B70),\"\",'TA Indicator Bank'!B70)","v":"TA066"},{"$f":"IF(ISBLANK('TA Indicator Bank'!C70),\"\",'TA Indicator Bank'!C70)","v":"Model sensitivity communication completed"},{"$f":"IF(ISBLANK('TA Indicator Bank'!D70),\"\",'TA Indicator Bank'!D70)","v":"-"},{"$f":"IF(ISBLANK('TA Indicator Bank'!E70),\"\",'TA Indicator Bank'!E70)","v":"Activity"},{"$f":"IF(ISBLANK('TA Indicator Bank'!F70),\"\",'TA Indicator Bank'!F70)","v":"Data, software, tools and models"},{"$f":"IF(ISBLANK('TA Indicator Bank'!G70),\"\",'TA Indicator Bank'!G70)","v":"-"},{"$f":"IF(ISBLANK('TA Indicator Bank'!H70),\"\",'TA Indicator Bank'!H70)","v":"-"},{"$f":"IF(ISBLANK('TA Indicator Bank'!I70),\"\",'TA Indicator Bank'!I70)","v":"Yes/No"},{"$f":"IF(ISBLANK('TA Indicator Bank'!J70),\"\",'TA Indicator Bank'!J70)","v":0},{"$f":"IF(ISBLANK('TA Indicator Bank'!K70),\"\",'TA Indicator Bank'!K70)","v":0},{"$f":"IF(ISBLANK('TA Indicator Bank'!L70),\"\",'TA Indicator Bank'!L70)","v":0},{"$f":"IF(ISBLANK('TA Indicator Bank'!M70),\"\",'TA Indicator Bank'!M70)","v":0},{"$f":"IF(ISBLANK('TA Indicator Bank'!N70),\"\",'TA Indicator Bank'!N70)","v":0},{"$f":"IF(ISBLANK('TA Indicator Bank'!O70),\"\",'TA Indicator Bank'!O70)","v":0},{"$f":"IF(ISBLANK('TA Indicator Bank'!P70),\"\",'TA Indicator Bank'!P70)","v":0},{"$f":"IF(ISBLANK('TA Indicator Bank'!Q70),\"\",'TA Indicator Bank'!Q70)","v":0},{"$f":"IF(ISBLANK('TA Indicator Bank'!R70),\"\",'TA Indicator Bank'!R70)","v":0},{"$f":"IF(ISBLANK('TA Indicator Bank'!S70),\"\",'TA Indicator Bank'!S70)","v":0},{"$f":"IF(ISBLANK('TA Indicator Bank'!T70),\"\",'TA Indicator Bank'!T70)","v":0},{"$f":"IF(ISBLANK('TA Indicator Bank'!U70),\"\",'TA Indicator Bank'!U70)","v":0},{"$f":"IF(ISBLANK('TA Indicator Bank'!V70),\"\",'TA Indicator Bank'!V70)","v":1},{"$f":"IF(ISBLANK('TA Indicator Bank'!W70),\"\",'TA Indicator Bank'!W70)","v":0},{"$f":"IF(ISBLANK('TA Indicator Bank'!X70),\"\",'TA Indicator Bank'!X70)","v":0},{"$f":"IF(ISBLANK('TA Indicator Bank'!Y70),\"\",'TA Indicator Bank'!Y70)","v":0},{"$f":"IF(ISBLANK('TA Indicator Bank'!Z70),\"\",'TA Indicator Bank'!Z70)","v":0},{"$f":"IF(ISBLANK('TA Indicator Bank'!AA70),\"\",'TA Indicator Bank'!AA70)","v":0},{"$f":"IF(ISBLANK('TA Indicator Bank'!AB70),\"\",'TA Indicator Bank'!AB70)","v":0},{"$f":"IF(ISBLANK('TA Indicator Bank'!AC70),\"\",'TA Indicator Bank'!AC70)","v":0},{"$f":"IF(ISBLANK('TA Indicator Bank'!AD70),\"\",'TA Indicator Bank'!AD70)","v":0},{"$f":"IF(ISBLANK('TA Indicator Bank'!AE70),\"\",'TA Indicator Bank'!AE70)","v":0},{"$f":"IF(ISBLANK('TA Indicator Bank'!AF70),\"\",'TA Indicator Bank'!AF70)","v":0},{"$f":"IF(ISBLANK('TA Indicator Bank'!AG70),\"\",'TA Indicator Bank'!AG70)","v":0},{"$f":"IF(ISBLANK('TA Indicator Bank'!AH70),\"\",'TA Indicator Bank'!AH70)","v":0},{"$f":"IF(ISBLANK('TA Indicator Bank'!AI70),\"\",'TA Indicator Bank'!AI70)","v":0},{"$f":"IF(ISBLANK('TA Indicator Bank'!AJ70),\"\",'TA Indicator Bank'!AJ70)","v":0},{"$f":"IF(ISBLANK('TA Indicator Bank'!AK70),\"\",'TA Indicator Bank'!AK70)","v":0},{"$f":"IF(ISBLANK('TA Indicator Bank'!AL70),\"\",'TA Indicator Bank'!AL70)","v":0},{"$f":"IF(ISBLANK('TA Indicator Bank'!AM70),\"\",'TA Indicator Bank'!AM70)","v":0},{"$f":"IF(ISBLANK('TA Indicator Bank'!AN70),\"\",'TA Indicator Bank'!AN70)","v":0},{"$f":"IF(ISBLANK('TA Indicator Bank'!AO70),\"\",'TA Indicator Bank'!AO70)","v":0},{"$f":"IF(ISBLANK('TA Indicator Bank'!AP70),\"\",'TA Indicator Bank'!AP70)","v":1},{"$f":"IF(ISBLANK('TA Indicator Bank'!AQ70),\"\",'TA Indicator Bank'!AQ70)","v":0},{"$f":"IF(ISBLANK('TA Indicator Bank'!AR70),\"\",'TA Indicator Bank'!AR70)","v":0},{"$f":"IF(ISBLANK('TA Indicator Bank'!AS70),\"\",'TA Indicator Bank'!AS70)","v":0},{"$f":"IF(ISBLANK('TA Indicator Bank'!AT70),\"\",'TA Indicator Bank'!AT70)","v":0},{"$f":"IF(AND(J74=1,J$410=1),1,0)","v":0},{"$f":"IF(AND(K74=1,K$410=1),1,0)","v":0},{"$f":"IF(AND(L74=1,L$410=1),1,0)","v":0},{"$f":"IF(AND(M74=1,M$410=1),1,0)","v":0},{"$f":"IF(AND(N74=1,N$410=1),1,0)","v":0},{"$f":"IF(AND(O74=1,O$410=1),1,0)","v":0},{"$f":"IF(AND(P74=1,P$410=1),1,0)","v":0},{"$f":"IF(AND(Q74=1,Q$410=1),1,0)","v":0},{"$f":"IF(AND(R74=1,R$410=1),1,0)","v":0},{"$f":"IF(AND(S74=1,S$410=1),1,0)","v":0},{"$f":"IF(AND(T74=1,T$410=1),1,0)","v":0},{"$f":"IF(AND(U74=1,U$410=1),1,0)","v":0},{"$f":"IF(AND(V74=1,V$410=1),1,0)","v":1},{"$f":"IF(AND(W74=1,W$410=1),1,0)","v":0},{"$f":"IF($C$4=\"All\",1,IF(SUM(AU74:BH74)>0,1,0))","v":1},{"$f":"IF(AND(X74=1,X$410=1),1,0)","v":0},{"$f":"IF(AND(Y74=1,Y$410=1),1,0)","v":0},{"$f":"IF(AND(Z74=1,Z$410=1),1,0)","v":0},{"$f":"IF(AND(AA74=1,AA$410=1),1,0)","v":0},{"$f":"IF(AND(AB74=1,AB$410=1),1,0)","v":0},{"$f":"IF(AND(AC74=1,AC$410=1),1,0)","v":0},{"$f":"IF(AND(AD74=1,AD$410=1),1,0)","v":0},{"$f":"IF(AND(AE74=1,AE$410=1),1,0)","v":0},{"$f":"IF(AND(AF74=1,AF$410=1),1,0)","v":0},{"$f":"IF($C$5=\"All\",1,IF(SUM(BJ74:BR74)>0,1,0))","v":1},{"$f":"IF(AND(AG74=1,AG$410=1),1,0)","v":0},{"$f":"IF(AND(AH74=1,AH$410=1),1,0)","v":0},{"$f":"IF(AND(AI74=1,AI$410=1),1,0)","v":0},{"$f":"IF(AND(AJ74=1,AJ$410=1),1,0)","v":0},{"$f":"IF(AND(AK74=1,AK$410=1),1,0)","v":0},{"$f":"IF(AND(AL74=1,AL$410=1),1,0)","v":0},{"$f":"IF(AND(AM74=1,AM$410=1),1,0)","v":0},{"$f":"IF(AND(AN74=1,AN$410=1),1,0)","v":0},{"$f":"IF(AND(AO74=1,AO$410=1),1,0)","v":0},{"$f":"IF($C$6=\"All\",1,IF(SUM(BT74:CB74)>0,1,0))","v":1},{"$f":"IF(AND(AP74=1,AP$410=1),1,0)","v":1},{"$f":"IF(AND(AQ74=1,AQ$410=1),1,0)","v":0},{"$f":"IF(AND(AR74=1,AR$410=1),1,0)","v":0},{"$f":"IF(AND(AS74=1,AS$410=1),1,0)","v":0},{"$f":"IF(AND(AT74=1,AT$410=1),1,0)","v":0},{"$f":"IF($C$3=\"All\",1,IF(SUM(CD74:CH74)>0,1,0))","v":1},{"$f":"IF(AND(BI74=1,BS74=1,CC74=1,CI74=1),1,0)","v":1},66,{"$f":"IF(CJ74=1,CK74,\"\")","v":66},{"$f":"IFERROR(SMALL($CL$9:$CL$408,CK74),\"\")","v":66},{"$f":"IFERROR(INDEX($B$9:$I$408,$CM74,COLUMNS($CN$9:CN74)),\"\")","v":"TA066"},{"$f":"IFERROR(INDEX($B$9:$I$408,$CM74,COLUMNS($CN$9:CO74)),\"\")","v":"Model sensitivity communication completed"},{"$f":"IFERROR(INDEX($B$9:$I$408,$CM74,COLUMNS($CN$9:CP74)),\"\")","v":"-"},{"$f":"IFERROR(INDEX($B$9:$I$408,$CM74,COLUMNS($CN$9:CQ74)),\"\")","v":"Activity"},{"$f":"IFERROR(INDEX($B$9:$I$408,$CM74,COLUMNS($CN$9:CR74)),\"\")","v":"Data, software, tools and models"},{"$f":"IFERROR(INDEX($B$9:$I$408,$CM74,COLUMNS($CN$9:CS74)),\"\")","v":"-"},{"$f":"IFERROR(INDEX($B$9:$I$408,$CM74,COLUMNS($CN$9:CT74)),\"\")","v":"-"},{"$f":"IFERROR(INDEX($B$9:$I$408,$CM74,COLUMNS($CN$9:CU74)),\"\")","v":"Yes/No"}]
[null,{"$f":"IF(ISBLANK('TA Indicator Bank'!B71),\"\",'TA Indicator Bank'!B71)","v":"TA067"},{"$f":"IF(ISBLANK('TA Indicator Bank'!C71),\"\",'TA Indicator Bank'!C71)","v":"Number of knowledge products produced"},{"$f":"IF(ISBLANK('TA Indicator Bank'!D71),\"\",'TA Indicator Bank'!D71)","v":"-"},{"$f":"IF(ISBLANK('TA Indicator Bank'!E71),\"\",'TA Indicator Bank'!E71)","v":"Activity"},{"$f":"IF(ISBLANK('TA Indicator Bank'!F71),\"\",'TA Indicator Bank'!F71)","v":"Research & development"},{"$f":"IF(ISBLANK('TA Indicator Bank'!G71),\"\",'TA Indicator Bank'!G71)","v":"-"},{"$f":"IF(ISBLANK('TA Indicator Bank'!H71),\"\",'TA Indicator Bank'!H71)","v":"-"},{"$f":"IF(ISBLANK('TA Indicator Bank'!I71),\"\",'TA Indicator Bank'!I71)","v":"Number"},{"$f":"IF(ISBLANK('TA Indicator Bank'!J71),\"\",'TA Indicator Bank'!J71)","v":0},{"$f":"IF(ISBLANK('TA Indicator Bank'!K71),\"\",'TA Indicator Bank'!K71)","v":0},{"$f":"IF(ISBLANK('TA Indicator Bank'!L71),\"\",'TA Indicator Bank'!L71)","v":0},{"$f":"IF(ISBLANK('TA Indicator Bank'!M71),\"\",'TA Indicator Bank'!M71)","v":0},{"$f":"IF(ISBLANK('TA Indicator Bank'!N71),\"\",'TA Indicator Bank'!N71)","v":0},{"$f":"IF(ISBLANK('TA Indicator Bank'!O71),\"\",'TA Indicator Bank'!O71)","v":0},{"$f":"IF(ISBLANK('TA Indicator Bank'!P71),\"\",'TA Indicator Bank'!P71)","v":0},{"$f":"IF(ISBLANK('TA Indicator Bank'!Q71),\"\",'TA Indicator Bank'!Q71)","v":0},{"$f":"IF(ISBLANK('TA Indicator Bank'!R71),\"\",'TA Indicator Bank'!R71)","v":0},{"$f":"IF(ISBLANK('TA Indicator Bank'!S71),\"\",'TA Indicator Bank'!S71)","v":0},{"$f":"IF(ISBLANK('TA Indicator Bank'!T71),\"\",'TA Indicator Bank'!T71)","v":0},{"$f":"IF(ISBLANK('TA Indicator Bank'!U71),\"\",'TA Indicator Bank'!U71)","v":0},{"$f":"IF(ISBLANK('TA Indicator Bank'!V71),\"\",'TA Indicator Bank'!V71)","v":0},{"$f":"IF(ISBLANK('TA Indicator Bank'!W71),\"\",'TA Indicator Bank'!W71)","v":1},{"$f":"IF(ISBLANK('TA Indicator Bank'!X71),\"\",'TA Indicator Bank'!X71)","v":0},{"$f":"IF(ISBLANK('TA Indicator Bank'!Y71),\"\",'TA Indicator Bank'!Y71)","v":0},{"$f":"IF(ISBLANK('TA Indicator Bank'!Z71),\"\",'TA Indicator Bank'!Z71)","v":0},{"$f":"IF(ISBLANK('TA Indicator Bank'!AA71),\"\",'TA Indicator Bank'!AA71)","v":0},{"$f":"IF(ISBLANK('TA Indicator Bank'!AB71),\"\",'TA Indicator Bank'!AB71)","v":0},{"$f":"IF(ISBLANK('TA Indicator Bank'!AC71),\"\",'TA Indicator Bank'!AC71)","v":0},{"$f":"IF(ISBLANK('TA Indicator Bank'!AD71),\"\",'TA Indicator Bank'!AD71)","v":0},{"$f":"IF(ISBLANK('TA Indicator Bank'!AE71),\"\",'TA Indicator Bank'!AE71)","v":0},{"$f":"IF(ISBLANK('TA Indicator Bank'!AF71),\"\",'TA Indicator Bank'!AF71)","v":0},{"$f":"IF(ISBLANK('TA Indicator Bank'!AG71),\"\",'TA Indicator Bank'!AG71)","v":0},{"$f":"IF(ISBLANK('TA Indicator Bank'!AH71),\"\",'TA Indicator Bank'!AH71)","v":0},{"$f":"IF(ISBLANK('TA Indicator Bank'!AI71),\"\",'TA Indicator Bank'!AI71)","v":0},{"$f":"IF(ISBLANK('TA Indicator Bank'!AJ71),\"\",'TA Indicator Bank'!AJ71)","v":0},{"$f":"IF(ISBLANK('TA Indicator Bank'!AK71),\"\",'TA Indicator Bank'!AK71)","v":0},{"$f":"IF(ISBLANK('TA Indicator Bank'!AL71),\"\",'TA Indicator Bank'!AL71)","v":0},{"$f":"IF(ISBLANK('TA Indicator Bank'!AM71),\"\",'TA Indicator Bank'!AM71)","v":0},{"$f":"IF(ISBLANK('TA Indicator Bank'!AN71),\"\",'TA Indicator Bank'!AN71)","v":0},{"$f":"IF(ISBLANK('TA Indicator Bank'!AO71),\"\",'TA Indicator Bank'!AO71)","v":0},{"$f":"IF(ISBLANK('TA Indicator Bank'!AP71),\"\",'TA Indicator Bank'!AP71)","v":1},{"$f":"IF(ISBLANK('TA Indicator Bank'!AQ71),\"\",'TA Indicator Bank'!AQ71)","v":0},{"$f":"IF(ISBLANK('TA Indicator Bank'!AR71),\"\",'TA Indicator Bank'!AR71)","v":0},{"$f":"IF(ISBLANK('TA Indicator Bank'!AS71),\"\",'TA Indicator Bank'!AS71)","v":0},{"$f":"IF(ISBLANK('TA Indicator Bank'!AT71),\"\",'TA Indicator Bank'!AT71)","v":0},{"$f":"IF(AND(J75=1,J$410=1),1,0)","v":0},{"$f":"IF(AND(K75=1,K$410=1),1,0)","v":0},{"$f":"IF(AND(L75=1,L$410=1),1,0)","v":0},{"$f":"IF(AND(M75=1,M$410=1),1,0)","v":0},{"$f":"IF(AND(N75=1,N$410=1),1,0)","v":0},{"$f":"IF(AND(O75=1,O$410=1),1,0)","v":0},{"$f":"IF(AND(P75=1,P$410=1),1,0)","v":0},{"$f":"IF(AND(Q75=1,Q$410=1),1,0)","v":0},{"$f":"IF(AND(R75=1,R$410=1),1,0)","v":0},{"$f":"IF(AND(S75=1,S$410=1),1,0)","v":0},{"$f":"IF(AND(T75=1,T$410=1),1,0)","v":0},{"$f":"IF(AND(U75=1,U$410=1),1,0)","v":0},{"$f":"IF(AND(V75=1,V$410=1),1,0)","v":0},{"$f":"IF(AND(W75=1,W$410=1),1,0)","v":1},1,{"$f":"IF(AND(X75=1,X$410=1),1,0)","v":0},{"$f":"IF(AND(Y75=1,Y$410=1),1,0)","v":0},{"$f":"IF(AND(Z75=1,Z$410=1),1,0)","v":0},{"$f":"IF(AND(AA75=1,AA$410=1),1,0)","v":0},{"$f":"IF(AND(AB75=1,AB$410=1),1,0)","v":0},{"$f":"IF(AND(AC75=1,AC$410=1),1,0)","v":0},{"$f":"IF(AND(AD75=1,AD$410=1),1,0)","v":0},{"$f":"IF(AND(AE75=1,AE$410=1),1,0)","v":0},{"$f":"IF(AND(AF75=1,AF$410=1),1,0)","v":0},1,{"$f":"IF(AND(AG75=1,AG$410=1),1,0)","v":0},{"$f":"IF(AND(AH75=1,AH$410=1),1,0)","v":0},{"$f":"IF(AND(AI75=1,AI$410=1),1,0)","v":0},{"$f":"IF(AND(AJ75=1,AJ$410=1),1,0)","v":0},{"$f":"IF(AND(AK75=1,AK$410=1),1,0)","v":0},{"$f":"IF(AND(AL75=1,AL$410=1),1,0)","v":0},{"$f":"IF(AND(AM75=1,AM$410=1),1,0)","v":0},{"$f":"IF(AND(AN75=1,AN$410=1),1,0)","v":0},{"$f":"IF(AND(AO75=1,AO$410=1),1,0)","v":0},1,{"$f":"IF(AND(AP75=1,AP$410=1),1,0)","v":1},{"$f":"IF(AND(AQ75=1,AQ$410=1),1,0)","v":0},{"$f":"IF(AND(AR75=1,AR$410=1),1,0)","v":0},{"$f":"IF(AND(AS75=1,AS$410=1),1,0)","v":0},{"$f":"IF(AND(AT75=1,AT$410=1),1,0)","v":0},1,1,67,67,{"$f":"IFERROR(SMALL($CL$9:$CL$408,CK75),\"\")","v":67},{"$f":"IFERROR(INDEX($B$9:$I$408,$CM75,COLUMNS($CN$9:CN75)),\"\")","v":"TA067"},{"$f":"IFERROR(INDEX($B$9:$I$408,$CM75,COLUMNS($CN$9:CO75)),\"\")","v":"Number of knowledge products produced"},{"$f":"IFERROR(INDEX($B$9:$I$408,$CM75,COLUMNS($CN$9:CP75)),\"\")","v":"-"},{"$f":"IFERROR(INDEX($B$9:$I$408,$CM75,COLUMNS($CN$9:CQ75)),\"\")","v":"Activity"},{"$f":"IFERROR(INDEX($B$9:$I$408,$CM75,COLUMNS($CN$9:CR75)),\"\")","v":"Research & development"},{"$f":"IFERROR(INDEX($B$9:$I$408,$CM75,COLUMNS($CN$9:CS75)),\"\")","v":"-"},{"$f":"IFERROR(INDEX($B$9:$I$408,$CM75,COLUMNS($CN$9:CT75)),\"\")","v":"-"},{"$f":"IFERROR(INDEX($B$9:$I$408,$CM75,COLUMNS($CN$9:CU75)),\"\")","v":"Number"}]
[null,{"$f":"IF(ISBLANK('TA Indicator Bank'!B72),\"\",'TA Indicator Bank'!B72)","v":"TA068"},{"$f":"IF(ISBLANK('TA Indicator Bank'!C72),\"\",'TA Indicator Bank'!C72)","v":"Number of citations in academic or policy literature"},{"$f":"IF(ISBLANK('TA Indicator Bank'!D72),\"\",'TA Indicator Bank'!D72)","v":"-"},{"$f":"IF(ISBLANK('TA Indicator Bank'!E72),\"\",'TA Indicator Bank'!E72)","v":"Uptake"},{"$f":"IF(ISBLANK('TA Indicator Bank'!F72),\"\",'TA Indicator Bank'!F72)","v":"Research & development"},{"$f":"IF(ISBLANK('TA Indicator Bank'!G72),\"\",'TA Indicator Bank'!G72)","v":"-"},{"$f":"IF(ISBLANK('TA Indicator Bank'!H72),\"\",'TA Indicator Bank'!H72)","v":"-"},{"$f":"IF(ISBLANK('TA Indicator Bank'!I72),\"\",'TA Indicator Bank'!I72)","v":"Number"},{"$f":"IF(ISBLANK('TA Indicator Bank'!J72),\"\",'TA Indicator Bank'!J72)","v":0},{"$f":"IF(ISBLANK('TA Indicator Bank'!K72),\"\",'TA Indicator Bank'!K72)","v":0},{"$f":"IF(ISBLANK('TA Indicator Bank'!L72),\"\",'TA Indicator Bank'!L72)","v":0},{"$f":"IF(ISBLANK('TA Indicator Bank'!M72),\"\",'TA Indicator Bank'!M72)","v":0},{"$f":"IF(ISBLANK('TA Indicator Bank'!N72),\"\",'TA Indicator Bank'!N72)","v":0},{"$f":"IF(ISBLANK('TA Indicator Bank'!O72),\"\",'TA Indicator Bank'!O72)","v":0},{"$f":"IF(ISBLANK('TA Indicator Bank'!P72),\"\",'TA Indicator Bank'!P72)","v":0},{"$f":"IF(ISBLANK('TA Indicator Bank'!Q72),\"\",'TA Indicator Bank'!Q72)","v":0},{"$f":"IF(ISBLANK('TA Indicator Bank'!R72),\"\",'TA Indicator Bank'!R72)","v":0},{"$f":"IF(ISBLANK('TA Indicator Bank'!S72),\"\",'TA Indicator Bank'!S72)","v":0},{"$f":"IF(ISBLANK('TA Indicator Bank'!T72),\"\",'TA Indicator Bank'!T72)","v":0},{"$f":"IF(ISBLANK('TA Indicator Bank'!U72),\"\",'TA Indicator Bank'!U72)","v":0},{"$f":"IF(ISBLANK('TA Indicator Bank'!V72),\"\",'TA Indicator Bank'!V72)","v":0},{"$f":"IF(ISBLANK('TA Indicator Bank'!W72),\"\",'TA Indicator Bank'!W72)","v":1},{"$f":"IF(ISBLANK('TA Indicator Bank'!X72),\"\",'TA Indicator Bank'!X72)","v":0},{"$f":"IF(ISBLANK('TA Indicator Bank'!Y72),\"\",'TA Indicator Bank'!Y72)","v":0},{"$f":"IF(ISBLANK('TA Indicator Bank'!Z72),\"\",'TA Indicator Bank'!Z72)","v":0},{"$f":"IF(ISBLANK('TA Indicator Bank'!AA72),\"\",'TA Indicator Bank'!AA72)","v":0},{"$f":"IF(ISBLANK('TA Indicator Bank'!AB72),\"\",'TA Indicator Bank'!AB72)","v":0},{"$f":"IF(ISBLANK('TA Indicator Bank'!AC72),\"\",'TA Indicator Bank'!AC72)","v":0},{"$f":"IF(ISBLANK('TA Indicator Bank'!AD72),\"\",'TA Indicator Bank'!AD72)","v":0},{"$f":"IF(ISBLANK('TA Indicator Bank'!AE72),\"\",'TA Indicator Bank'!AE72)","v":0},{"$f":"IF(ISBLANK('TA Indicator Bank'!AF72),\"\",'TA Indicator Bank'!AF72)","v":0},{"$f":"IF(ISBLANK('TA Indicator Bank'!AG72),\"\",'TA Indicator Bank'!AG72)","v":0},{"$f":"IF(ISBLANK('TA Indicator Bank'!AH72),\"\",'TA Indicator Bank'!AH72)","v":0},{"$f":"IF(ISBLANK('TA Indicator Bank'!AI72),\"\",'TA Indicator Bank'!AI72)","v":0},{"$f":"IF(ISBLANK('TA Indicator Bank'!AJ72),\"\",'TA Indicator Bank'!AJ72)","v":0},{"$f":"IF(ISBLANK('TA Indicator Bank'!AK72),\"\",'TA Indicator Bank'!AK72)","v":0},{"$f":"IF(ISBLANK('TA Indicator Bank'!AL72),\"\",'TA Indicator Bank'!AL72)","v":0},{"$f":"IF(ISBLANK('TA Indicator Bank'!AM72),\"\",'TA Indicator Bank'!AM72)","v":0},{"$f":"IF(ISBLANK('TA Indicator Bank'!AN72),\"\",'TA Indicator Bank'!AN72)","v":0},{"$f":"IF(ISBLANK('TA Indicator Bank'!AO72),\"\",'TA Indicator Bank'!AO72)","v":0},{"$f":"IF(ISBLANK('TA Indicator Bank'!AP72),\"\",'TA Indicator Bank'!AP72)","v":0},{"$f":"IF(ISBLANK('TA Indicator Bank'!AQ72),\"\",'TA Indicator Bank'!AQ72)","v":1},{"$f":"IF(ISBLANK('TA Indicator Bank'!AR72),\"\",'TA Indicator Bank'!AR72)","v":0},{"$f":"IF(ISBLANK('TA Indicator Bank'!AS72),\"\",'TA Indicator Bank'!AS72)","v":0},{"$f":"IF(ISBLANK('TA Indicator Bank'!AT72),\"\",'TA Indicator Bank'!AT72)","v":0},{"$f":"IF(AND(J76=1,J$410=1),1,0)","v":0},{"$f":"IF(AND(K76=1,K$410=1),1,0)","v":0},{"$f":"IF(AND(L76=1,L$410=1),1,0)","v":0},{"$f":"IF(AND(M76=1,M$410=1),1,0)","v":0},{"$f":"IF(AND(N76=1,N$410=1),1,0)","v":0},{"$f":"IF(AND(O76=1,O$410=1),1,0)","v":0},{"$f":"IF(AND(P76=1,P$410=1),1,0)","v":0},{"$f":"IF(AND(Q76=1,Q$410=1),1,0)","v":0},{"$f":"IF(AND(R76=1,R$410=1),1,0)","v":0},{"$f":"IF(AND(S76=1,S$410=1),1,0)","v":0},{"$f":"IF(AND(T76=1,T$410=1),1,0)","v":0},{"$f":"IF(AND(U76=1,U$410=1),1,0)","v":0},{"$f":"IF(AND(V76=1,V$410=1),1,0)","v":0},{"$f":"IF(AND(W76=1,W$410=1),1,0)","v":1},1,{"$f":"IF(AND(X76=1,X$410=1),1,0)","v":0},{"$f":"IF(AND(Y76=1,Y$410=1),1,0)","v":0},{"$f":"IF(AND(Z76=1,Z$410=1),1,0)","v":0},{"$f":"IF(AND(AA76=1,AA$410=1),1,0)","v":0},{"$f":"IF(AND(AB76=1,AB$410=1),1,0)","v":0},{"$f":"IF(AND(AC76=1,AC$410=1),1,0)","v":0},{"$f":"IF(AND(AD76=1,AD$410=1),1,0)","v":0},{"$f":"IF(AND(AE76=1,AE$410=1),1,0)","v":0},{"$f":"IF(AND(AF76=1,AF$410=1),1,0)","v":0},1,{"$f":"IF(AND(AG76=1,AG$410=1),1,0)","v":0},{"$f":"IF(AND(AH76=1,AH$410=1),1,0)","v":0},{"$f":"IF(AND(AI76=1,AI$410=1),1,0)","v":0},{"$f":"IF(AND(AJ76=1,AJ$410=1),1,0)","v":0},{"$f":"IF(AND(AK76=1,AK$410=1),1,0)","v":0},{"$f":"IF(AND(AL76=1,AL$410=1),1,0)","v":0},{"$f":"IF(AND(AM76=1,AM$410=1),1,0)","v":0},{"$f":"IF(AND(AN76=1,AN$410=1),1,0)","v":0},{"$f":"IF(AND(AO76=1,AO$410=1),1,0)","v":0},1,{"$f":"IF(AND(AP76=1,AP$410=1),1,0)","v":0},{"$f":"IF(AND(AQ76=1,AQ$410=1),1,0)","v":1},{"$f":"IF(AND(AR76=1,AR$410=1),1,0)","v":0},{"$f":"IF(AND(AS76=1,AS$410=1),1,0)","v":0},{"$f":"IF(AND(AT76=1,AT$410=1),1,0)","v":0},1,1,68,68,{"$f":"IFERROR(SMALL($CL$9:$CL$408,CK76),\"\")","v":68},{"$f":"IFERROR(INDEX($B$9:$I$408,$CM76,COLUMNS($CN$9:CN76)),\"\")","v":"TA068"},{"$f":"IFERROR(INDEX($B$9:$I$408,$CM76,COLUMNS($CN$9:CO76)),\"\")","v":"Number of citations in academic or policy literature"},{"$f":"IFERROR(INDEX($B$9:$I$408,$CM76,COLUMNS($CN$9:CP76)),\"\")","v":"-"},{"$f":"IFERROR(INDEX($B$9:$I$408,$CM76,COLUMNS($CN$9:CQ76)),\"\")","v":"Uptake"},{"$f":"IFERROR(INDEX($B$9:$I$408,$CM76,COLUMNS($CN$9:CR76)),\"\")","v":"Research & development"},{"$f":"IFERROR(INDEX($B$9:$I$408,$CM76,COLUMNS($CN$9:CS76)),\"\")","v":"-"},{"$f":"IFERROR(INDEX($B$9:$I$408,$CM76,COLUMNS($CN$9:CT76)),\"\")","v":"-"},{"$f":"IFERROR(INDEX($B$9:$I$408,$CM76,COLUMNS($CN$9:CU76)),\"\")","v":"Number"}]
[null,{"$f":"IF(ISBLANK('TA Indicator Bank'!B73),\"\",'TA Indicator Bank'!B73)","v":"TA069"},{"$f":"IF(ISBLANK('TA Indicator Bank'!C73),\"\",'TA Indicator Bank'!C73)","v":"Knowledge products use multidisciplinary approaches"},{"$f":"IF(ISBLANK('TA Indicator Bank'!D73),\"\",'TA Indicator Bank'!D73)","v":"-"},{"$f":"IF(ISBLANK('TA Indicator Bank'!E73),\"\",'TA Indicator Bank'!E73)","v":"Activity"},{"$f":"IF(ISBLANK('TA Indicator Bank'!F73),\"\",'TA Indicator Bank'!F73)","v":"Research & development"},{"$f":"IF(ISBLANK('TA Indicator Bank'!G73),\"\",'TA Indicator Bank'!G73)","v":"-"},{"$f":"IF(ISBLANK('TA Indicator Bank'!H73),\"\",'TA Indicator Bank'!H73)","v":"-"},{"$f":"IF(ISBLANK('TA Indicator Bank'!I73),\"\",'TA Indicator Bank'!I73)","v":"Narrative"},{"$f":"IF(ISBLANK('TA Indicator Bank'!J73),\"\",'TA Indicator Bank'!J73)","v":0},{"$f":"IF(ISBLANK('TA Indicator Bank'!K73),\"\",'TA Indicator Bank'!K73)","v":0},{"$f":"IF(ISBLANK('TA Indicator Bank'!L73),\"\",'TA Indicator Bank'!L73)","v":0},{"$f":"IF(ISBLANK('TA Indicator Bank'!M73),\"\",'TA Indicator Bank'!M73)","v":0},{"$f":"IF(ISBLANK('TA Indicator Bank'!N73),\"\",'TA Indicator Bank'!N73)","v":0},{"$f":"IF(ISBLANK('TA Indicator Bank'!O73),\"\",'TA Indicator Bank'!O73)","v":0},{"$f":"IF(ISBLANK('TA Indicator Bank'!P73),\"\",'TA Indicator Bank'!P73)","v":0},{"$f":"IF(ISBLANK('TA Indicator Bank'!Q73),\"\",'TA Indicator Bank'!Q73)","v":0},{"$f":"IF(ISBLANK('TA Indicator Bank'!R73),\"\",'TA Indicator Bank'!R73)","v":0},{"$f":"IF(ISBLANK('TA Indicator Bank'!S73),\"\",'TA Indicator Bank'!S73)","v":0},{"$f":"IF(ISBLANK('TA Indicator Bank'!T73),\"\",'TA Indicator Bank'!T73)","v":0},{"$f":"IF(ISBLANK('TA Indicator Bank'!U73),\"\",'TA Indicator Bank'!U73)","v":0},{"$f":"IF(ISBLANK('TA Indicator Bank'!V73),\"\",'TA Indicator Bank'!V73)","v":0},{"$f":"IF(ISBLANK('TA Indicator Bank'!W73),\"\",'TA Indicator Bank'!W73)","v":1},{"$f":"IF(ISBLANK('TA Indicator Bank'!X73),\"\",'TA Indicator Bank'!X73)","v":0},{"$f":"IF(ISBLANK('TA Indicator Bank'!Y73),\"\",'TA Indicator Bank'!Y73)","v":0},{"$f":"IF(ISBLANK('TA Indicator Bank'!Z73),\"\",'TA Indicator Bank'!Z73)","v":0},{"$f":"IF(ISBLANK('TA Indicator Bank'!AA73),\"\",'TA Indicator Bank'!AA73)","v":0},{"$f":"IF(ISBLANK('TA Indicator Bank'!AB73),\"\",'TA Indicator Bank'!AB73)","v":0},{"$f":"IF(ISBLANK('TA Indicator Bank'!AC73),\"\",'TA Indicator Bank'!AC73)","v":0},{"$f":"IF(ISBLANK('TA Indicator Bank'!AD73),\"\",'TA Indicator Bank'!AD73)","v":0},{"$f":"IF(ISBLANK('TA Indicator Bank'!AE73),\"\",'TA Indicator Bank'!AE73)","v":0},{"$f":"IF(ISBLANK('TA Indicator Bank'!AF73),\"\",'TA Indicator Bank'!AF73)","v":0},{"$f":"IF(ISBLANK('TA Indicator Bank'!AG73),\"\",'TA Indicator Bank'!AG73)","v":0},{"$f":"IF(ISBLANK('TA Indicator Bank'!AH73),\"\",'TA Indicator Bank'!AH73)","v":0},{"$f":"IF(ISBLANK('TA Indicator Bank'!AI73),\"\",'TA Indicator Bank'!AI73)","v":0},{"$f":"IF(ISBLANK('TA Indicator Bank'!AJ73),\"\",'TA Indicator Bank'!AJ73)","v":0},{"$f":"IF(ISBLANK('TA Indicator Bank'!AK73),\"\",'TA Indicator Bank'!AK73)","v":0},{"$f":"IF(ISBLANK('TA Indicator Bank'!AL73),\"\",'TA Indicator Bank'!AL73)","v":0},{"$f":"IF(ISBLANK('TA Indicator Bank'!AM73),\"\",'TA Indicator Bank'!AM73)","v":0},{"$f":"IF(ISBLANK('TA Indicator Bank'!AN73),\"\",'TA Indicator Bank'!AN73)","v":0},{"$f":"IF(ISBLANK('TA Indicator Bank'!AO73),\"\",'TA Indicator Bank'!AO73)","v":0},{"$f":"IF(ISBLANK('TA Indicator Bank'!AP73),\"\",'TA Indicator Bank'!AP73)","v":1},{"$f":"IF(ISBLANK('TA Indicator Bank'!AQ73),\"\",'TA Indicator Bank'!AQ73)","v":0},{"$f":"IF(ISBLANK('TA Indicator Bank'!AR73),\"\",'TA Indicator Bank'!AR73)","v":0},{"$f":"IF(ISBLANK('TA Indicator Bank'!AS73),\"\",'TA Indicator Bank'!AS73)","v":0},{"$f":"IF(ISBLANK('TA Indicator Bank'!AT73),\"\",'TA Indicator Bank'!AT73)","v":0},{"$f":"IF(AND(J77=1,J$410=1),1,0)","v":0},{"$f":"IF(AND(K77=1,K$410=1),1,0)","v":0},{"$f":"IF(AND(L77=1,L$410=1),1,0)","v":0},{"$f":"IF(AND(M77=1,M$410=1),1,0)","v":0},{"$f":"IF(AND(N77=1,N$410=1),1,0)","v":0},{"$f":"IF(AND(O77=1,O$410=1),1,0)","v":0},{"$f":"IF(AND(P77=1,P$410=1),1,0)","v":0},{"$f":"IF(AND(Q77=1,Q$410=1),1,0)","v":0},{"$f":"IF(AND(R77=1,R$410=1),1,0)","v":0},{"$f":"IF(AND(S77=1,S$410=1),1,0)","v":0},{"$f":"IF(AND(T77=1,T$410=1),1,0)","v":0},{"$f":"IF(AND(U77=1,U$410=1),1,0)","v":0},{"$f":"IF(AND(V77=1,V$410=1),1,0)","v":0},{"$f":"IF(AND(W77=1,W$410=1),1,0)","v":1},1,{"$f":"IF(AND(X77=1,X$410=1),1,0)","v":0},{"$f":"IF(AND(Y77=1,Y$410=1),1,0)","v":0},{"$f":"IF(AND(Z77=1,Z$410=1),1,0)","v":0},{"$f":"IF(AND(AA77=1,AA$410=1),1,0)","v":0},{"$f":"IF(AND(AB77=1,AB$410=1),1,0)","v":0},{"$f":"IF(AND(AC77=1,AC$410=1),1,0)","v":0},{"$f":"IF(AND(AD77=1,AD$410=1),1,0)","v":0},{"$f":"IF(AND(AE77=1,AE$410=1),1,0)","v":0},{"$f":"IF(AND(AF77=1,AF$410=1),1,0)","v":0},1,{"$f":"IF(AND(AG77=1,AG$410=1),1,0)","v":0},{"$f":"IF(AND(AH77=1,AH$410=1),1,0)","v":0},{"$f":"IF(AND(AI77=1,AI$410=1),1,0)","v":0},{"$f":"IF(AND(AJ77=1,AJ$410=1),1,0)","v":0},{"$f":"IF(AND(AK77=1,AK$410=1),1,0)","v":0},{"$f":"IF(AND(AL77=1,AL$410=1),1,0)","v":0},{"$f":"IF(AND(AM77=1,AM$410=1),1,0)","v":0},{"$f":"IF(AND(AN77=1,AN$410=1),1,0)","v":0},{"$f":"IF(AND(AO77=1,AO$410=1),1,0)","v":0},1,{"$f":"IF(AND(AP77=1,AP$410=1),1,0)","v":1},{"$f":"IF(AND(AQ77=1,AQ$410=1),1,0)","v":0},{"$f":"IF(AND(AR77=1,AR$410=1),1,0)","v":0},{"$f":"IF(AND(AS77=1,AS$410=1),1,0)","v":0},{"$f":"IF(AND(AT77=1,AT$410=1),1,0)","v":0},1,1,69,69,{"$f":"IFERROR(SMALL($CL$9:$CL$408,CK77),\"\")","v":69},{"$f":"IFERROR(INDEX($B$9:$I$408,$CM77,COLUMNS($CN$9:CN77)),\"\")","v":"TA069"},{"$f":"IFERROR(INDEX($B$9:$I$408,$CM77,COLUMNS($CN$9:CO77)),\"\")","v":"Knowledge products use multidisciplinary approaches"},{"$f":"IFERROR(INDEX($B$9:$I$408,$CM77,COLUMNS($CN$9:CP77)),\"\")","v":"-"},{"$f":"IFERROR(INDEX($B$9:$I$408,$CM77,COLUMNS($CN$9:CQ77)),\"\")","v":"Activity"},{"$f":"IFERROR(INDEX($B$9:$I$408,$CM77,COLUMNS($CN$9:CR77)),\"\")","v":"Research & development"},{"$f":"IFERROR(INDEX($B$9:$I$408,$CM77,COLUMNS($CN$9:CS77)),\"\")","v":"-"},{"$f":"IFERROR(INDEX($B$9:$I$408,$CM77,COLUMNS($CN$9:CT77)),\"\")","v":"-"},{"$f":"IFERROR(INDEX($B$9:$I$408,$CM77,COLUMNS($CN$9:CU77)),\"\")","v":"Narrative"}]
[null,{"$f":"IF(ISBLANK('TA Indicator Bank'!B74),\"\",'TA Indicator Bank'!B74)","v":"TA070"},{"$f":"IF(ISBLANK('TA Indicator Bank'!C74),\"\",'TA Indicator Bank'!C74)","v":"Participation of targeted group in research"},{"$f":"IF(ISBLANK('TA Indicator Bank'!D74),\"\",'TA Indicator Bank'!D74)","v":"-"},{"$f":"IF(ISBLANK('TA Indicator Bank'!E74),\"\",'TA Indicator Bank'!E74)","v":"Uptake"},{"$f":"IF(ISBLANK('TA Indicator Bank'!F74),\"\",'TA Indicator Bank'!F74)","v":"Research & development"},{"$f":"IF(ISBLANK('TA Indicator Bank'!G74),\"\",'TA Indicator Bank'!G74)","v":"-"},{"$f":"IF(ISBLANK('TA Indicator Bank'!H74),\"\",'TA Indicator Bank'!H74)","v":"-"},{"$f":"IF(ISBLANK('TA Indicator Bank'!I74),\"\",'TA Indicator Bank'!I74)","v":"Yes/No"},{"$f":"IF(ISBLANK('TA Indicator Bank'!J74),\"\",'TA Indicator Bank'!J74)","v":0},{"$f":"IF(ISBLANK('TA Indicator Bank'!K74),\"\",'TA Indicator Bank'!K74)","v":0},{"$f":"IF(ISBLANK('TA Indicator Bank'!L74),\"\",'TA Indicator Bank'!L74)","v":0},{"$f":"IF(ISBLANK('TA Indicator Bank'!M74),\"\",'TA Indicator Bank'!M74)","v":0},{"$f":"IF(ISBLANK('TA Indicator Bank'!N74),\"\",'TA Indicator Bank'!N74)","v":0},{"$f":"IF(ISBLANK('TA Indicator Bank'!O74),\"\",'TA Indicator Bank'!O74)","v":0},{"$f":"IF(ISBLANK('TA Indicator Bank'!P74),\"\",'TA Indicator Bank'!P74)","v":0},{"$f":"IF(ISBLANK('TA Indicator Bank'!Q74),\"\",'TA Indicator Bank'!Q74)","v":0},{"$f":"IF(ISBLANK('TA Indicator Bank'!R74),\"\",'TA Indicator Bank'!R74)","v":0},{"$f":"IF(ISBLANK('TA Indicator Bank'!S74),\"\",'TA Indicator Bank'!S74)","v":0},{"$f":"IF(ISBLANK('TA Indicator Bank'!T74),\"\",'TA Indicator Bank'!T74)","v":0},{"$f":"IF(ISBLANK('TA Indicator Bank'!U74),\"\",'TA Indicator Bank'!U74)","v":0},{"$f":"IF(ISBLANK('TA Indicator Bank'!V74),\"\",'TA Indicator Bank'!V74)","v":0},{"$f":"IF(ISBLANK('TA Indicator Bank'!W74),\"\",'TA Indicator Bank'!W74)","v":1},{"$f":"IF(ISBLANK('TA Indicator Bank'!X74),\"\",'TA Indicator Bank'!X74)","v":0},{"$f":"IF(ISBLANK('TA Indicator Bank'!Y74),\"\",'TA Indicator Bank'!Y74)","v":0},{"$f":"IF(ISBLANK('TA Indicator Bank'!Z74),\"\",'TA Indicator Bank'!Z74)","v":0},{"$f":"IF(ISBLANK('TA Indicator Bank'!AA74),\"\",'TA Indicator Bank'!AA74)","v":0},{"$f":"IF(ISBLANK('TA Indicator Bank'!AB74),\"\",'TA Indicator Bank'!AB74)","v":0},{"$f":"IF(ISBLANK('TA Indicator Bank'!AC74),\"\",'TA Indicator Bank'!AC74)","v":0},{"$f":"IF(ISBLANK('TA Indicator Bank'!AD74),\"\",'TA Indicator Bank'!AD74)","v":0},{"$f":"IF(ISBLANK('TA Indicator Bank'!AE74),\"\",'TA Indicator Bank'!AE74)","v":0},{"$f":"IF(ISBLANK('TA Indicator Bank'!AF74),\"\",'TA Indicator Bank'!AF74)","v":0},{"$f":"IF(ISBLANK('TA Indicator Bank'!AG74),\"\",'TA Indicator Bank'!AG74)","v":0},{"$f":"IF(ISBLANK('TA Indicator Bank'!AH74),\"\",'TA Indicator Bank'!AH74)","v":0},{"$f":"IF(ISBLANK('TA Indicator Bank'!AI74),\"\",'TA Indicator Bank'!AI74)","v":0},{"$f":"IF(ISBLANK('TA Indicator Bank'!AJ74),\"\",'TA Indicator Bank'!AJ74)","v":0},{"$f":"IF(ISBLANK('TA Indicator Bank'!AK74),\"\",'TA Indicator Bank'!AK74)","v":0},{"$f":"IF(ISBLANK('TA Indicator Bank'!AL74),\"\",'TA Indicator Bank'!AL74)","v":0},{"$f":"IF(ISBLANK('TA Indicator Bank'!AM74),\"\",'TA Indicator Bank'!AM74)","v":0},{"$f":"IF(ISBLANK('TA Indicator Bank'!AN74),\"\",'TA Indicator Bank'!AN74)","v":0},{"$f":"IF(ISBLANK('TA Indicator Bank'!AO74),\"\",'TA Indicator Bank'!AO74)","v":0},{"$f":"IF(ISBLANK('TA Indicator Bank'!AP74),\"\",'TA Indicator Bank'!AP74)","v":0},{"$f":"IF(ISBLANK('TA Indicator Bank'!AQ74),\"\",'TA Indicator Bank'!AQ74)","v":1},{"$f":"IF(ISBLANK('TA Indicator Bank'!AR74),\"\",'TA Indicator Bank'!AR74)","v":0},{"$f":"IF(ISBLANK('TA Indicator Bank'!AS74),\"\",'TA Indicator Bank'!AS74)","v":0},{"$f":"IF(ISBLANK('TA Indicator Bank'!AT74),\"\",'TA Indicator Bank'!AT74)","v":0},{"$f":"IF(AND(J78=1,J$410=1),1,0)","v":0},{"$f":"IF(AND(K78=1,K$410=1),1,0)","v":0},{"$f":"IF(AND(L78=1,L$410=1),1,0)","v":0},{"$f":"IF(AND(M78=1,M$410=1),1,0)","v":0},{"$f":"IF(AND(N78=1,N$410=1),1,0)","v":0},{"$f":"IF(AND(O78=1,O$410=1),1,0)","v":0},{"$f":"IF(AND(P78=1,P$410=1),1,0)","v":0},{"$f":"IF(AND(Q78=1,Q$410=1),1,0)","v":0},{"$f":"IF(AND(R78=1,R$410=1),1,0)","v":0},{"$f":"IF(AND(S78=1,S$410=1),1,0)","v":0},{"$f":"IF(AND(T78=1,T$410=1),1,0)","v":0},{"$f":"IF(AND(U78=1,U$410=1),1,0)","v":0},{"$f":"IF(AND(V78=1,V$410=1),1,0)","v":0},{"$f":"IF(AND(W78=1,W$410=1),1,0)","v":1},1,{"$f":"IF(AND(X78=1,X$410=1),1,0)","v":0},{"$f":"IF(AND(Y78=1,Y$410=1),1,0)","v":0},{"$f":"IF(AND(Z78=1,Z$410=1),1,0)","v":0},{"$f":"IF(AND(AA78=1,AA$410=1),1,0)","v":0},{"$f":"IF(AND(AB78=1,AB$410=1),1,0)","v":0},{"$f":"IF(AND(AC78=1,AC$410=1),1,0)","v":0},{"$f":"IF(AND(AD78=1,AD$410=1),1,0)","v":0},{"$f":"IF(AND(AE78=1,AE$410=1),1,0)","v":0},{"$f":"IF(AND(AF78=1,AF$410=1),1,0)","v":0},1,{"$f":"IF(AND(AG78=1,AG$410=1),1,0)","v":0},{"$f":"IF(AND(AH78=1,AH$410=1),1,0)","v":0},{"$f":"IF(AND(AI78=1,AI$410=1),1,0)","v":0},{"$f":"IF(AND(AJ78=1,AJ$410=1),1,0)","v":0},{"$f":"IF(AND(AK78=1,AK$410=1),1,0)","v":0},{"$f":"IF(AND(AL78=1,AL$410=1),1,0)","v":0},{"$f":"IF(AND(AM78=1,AM$410=1),1,0)","v":0},{"$f":"IF(AND(AN78=1,AN$410=1),1,0)","v":0},{"$f":"IF(AND(AO78=1,AO$410=1),1,0)","v":0},1,{"$f":"IF(AND(AP78=1,AP$410=1),1,0)","v":0},{"$f":"IF(AND(AQ78=1,AQ$410=1),1,0)","v":1},{"$f":"IF(AND(AR78=1,AR$410=1),1,0)","v":0},{"$f":"IF(AND(AS78=1,AS$410=1),1,0)","v":0},{"$f":"IF(AND(AT78=1,AT$410=1),1,0)","v":0},1,1,70,70,{"$f":"IFERROR(SMALL($CL$9:$CL$408,CK78),\"\")","v":70},{"$f":"IFERROR(INDEX($B$9:$I$408,$CM78,COLUMNS($CN$9:CN78)),\"\")","v":"TA070"},{"$f":"IFERROR(INDEX($B$9:$I$408,$CM78,COLUMNS($CN$9:CO78)),\"\")","v":"Participation of targeted group in research"},{"$f":"IFERROR(INDEX($B$9:$I$408,$CM78,COLUMNS($CN$9:CP78)),\"\")","v":"-"},{"$f":"IFERROR(INDEX($B$9:$I$408,$CM78,COLUMNS($CN$9:CQ78)),\"\")","v":"Uptake"},{"$f":"IFERROR(INDEX($B$9:$I$408,$CM78,COLUMNS($CN$9:CR78)),\"\")","v":"Research & development"},{"$f":"IFERROR(INDEX($B$9:$I$408,$CM78,COLUMNS($CN$9:CS78)),\"\")","v":"-"},{"$f":"IFERROR(INDEX($B$9:$I$408,$CM78,COLUMNS($CN$9:CT78)),\"\")","v":"-"},{"$f":"IFERROR(INDEX($B$9:$I$408,$CM78,COLUMNS($CN$9:CU78)),\"\")","v":"Yes/No"}]
[null,{"$f":"IF(ISBLANK('TA Indicator Bank'!B75),\"\",'TA Indicator Bank'!B75)","v":"TA071"},{"$f":"IF(ISBLANK('TA Indicator Bank'!C75),\"\",'TA Indicator Bank'!C75)","v":"Proportion of research/knowledge produced rated good by independent researcher or useful by audience"},{"$f":"IF(ISBLANK('TA Indicator Bank'!D75),\"\",'TA Indicator Bank'!D75)","v":"-"},{"$f":"IF(ISBLANK('TA Indicator Bank'!E75),\"\",'TA Indicator Bank'!E75)","v":"Uptake"},{"$f":"IF(ISBLANK('TA Indicator Bank'!F75),\"\",'TA Indicator Bank'!F75)","v":"Research & development"},{"$f":"IF(ISBLANK('TA Indicator Bank'!G75),\"\",'TA Indicator Bank'!G75)","v":"-"},{"$f":"IF(ISBLANK('TA Indicator Bank'!H75),\"\",'TA Indicator Bank'!H75)","v":"-"},{"$f":"IF(ISBLANK('TA Indicator Bank'!I75),\"\",'TA Indicator Bank'!I75)","v":"Percentage"},{"$f":"IF(ISBLANK('TA Indicator Bank'!J75),\"\",'TA Indicator Bank'!J75)","v":0},{"$f":"IF(ISBLANK('TA Indicator Bank'!K75),\"\",'TA Indicator Bank'!K75)","v":0},{"$f":"IF(ISBLANK('TA Indicator Bank'!L75),\"\",'TA Indicator Bank'!L75)","v":0},{"$f":"IF(ISBLANK('TA Indicator Bank'!M75),\"\",'TA Indicator Bank'!M75)","v":0},{"$f":"IF(ISBLANK('TA Indicator Bank'!N75),\"\",'TA Indicator Bank'!N75)","v":0},{"$f":"IF(ISBLANK('TA Indicator Bank'!O75),\"\",'TA Indicator Bank'!O75)","v":0},{"$f":"IF(ISBLANK('TA Indicator Bank'!P75),\"\",'TA Indicator Bank'!P75)","v":0},{"$f":"IF(ISBLANK('TA Indicator Bank'!Q75),\"\",'TA Indicator Bank'!Q75)","v":0},{"$f":"IF(ISBLANK('TA Indicator Bank'!R75),\"\",'TA Indicator Bank'!R75)","v":0},{"$f":"IF(ISBLANK('TA Indicator Bank'!S75),\"\",'TA Indicator Bank'!S75)","v":0},{"$f":"IF(ISBLANK('TA Indicator Bank'!T75),\"\",'TA Indicator Bank'!T75)","v":0},{"$f":"IF(ISBLANK('TA Indicator Bank'!U75),\"\",'TA Indicator Bank'!U75)","v":0},{"$f":"IF(ISBLANK('TA Indicator Bank'!V75),\"\",'TA Indicator Bank'!V75)","v":0},{"$f":"IF(ISBLANK('TA Indicator Bank'!W75),\"\",'TA Indicator Bank'!W75)","v":1},{"$f":"IF(ISBLANK('TA Indicator Bank'!X75),\"\",'TA Indicator Bank'!X75)","v":0},{"$f":"IF(ISBLANK('TA Indicator Bank'!Y75),\"\",'TA Indicator Bank'!Y75)","v":0},{"$f":"IF(ISBLANK('TA Indicator Bank'!Z75),\"\",'TA Indicator Bank'!Z75)","v":0},{"$f":"IF(ISBLANK('TA Indicator Bank'!AA75),\"\",'TA Indicator Bank'!AA75)","v":0},{"$f":"IF(ISBLANK('TA Indicator Bank'!AB75),\"\",'TA Indicator Bank'!AB75)","v":0},{"$f":"IF(ISBLANK('TA Indicator Bank'!AC75),\"\",'TA Indicator Bank'!AC75)","v":0},{"$f":"IF(ISBLANK('TA Indicator Bank'!AD75),\"\",'TA Indicator Bank'!AD75)","v":0},{"$f":"IF(ISBLANK('TA Indicator Bank'!AE75),\"\",'TA Indicator Bank'!AE75)","v":0},{"$f":"IF(ISBLANK('TA Indicator Bank'!AF75),\"\",'TA Indicator Bank'!AF75)","v":0},{"$f":"IF(ISBLANK('TA Indicator Bank'!AG75),\"\",'TA Indicator Bank'!AG75)","v":0},{"$f":"IF(ISBLANK('TA Indicator Bank'!AH75),\"\",'TA Indicator Bank'!AH75)","v":0},{"$f":"IF(ISBLANK('TA Indicator Bank'!AI75),\"\",'TA Indicator Bank'!AI75)","v":0},{"$f":"IF(ISBLANK('TA Indicator Bank'!AJ75),\"\",'TA Indicator Bank'!AJ75)","v":0},{"$f":"IF(ISBLANK('TA Indicator Bank'!AK75),\"\",'TA Indicator Bank'!AK75)","v":0},{"$f":"IF(ISBLANK('TA Indicator Bank'!AL75),\"\",'TA Indicator Bank'!AL75)","v":0},{"$f":"IF(ISBLANK('TA Indicator Bank'!AM75),\"\",'TA Indicator Bank'!AM75)","v":0},{"$f":"IF(ISBLANK('TA Indicator Bank'!AN75),\"\",'TA Indicator Bank'!AN75)","v":0},{"$f":"IF(ISBLANK('TA Indicator Bank'!AO75),\"\",'TA Indicator Bank'!AO75)","v":0},{"$f":"IF(ISBLANK('TA Indicator Bank'!AP75),\"\",'TA Indicator Bank'!AP75)","v":0},{"$f":"IF(ISBLANK('TA Indicator Bank'!AQ75),\"\",'TA Indicator Bank'!AQ75)","v":1},{"$f":"IF(ISBLANK('TA Indicator Bank'!AR75),\"\",'TA Indicator Bank'!AR75)","v":0},{"$f":"IF(ISBLANK('TA Indicator Bank'!AS75),\"\",'TA Indicator Bank'!AS75)","v":0},{"$f":"IF(ISBLANK('TA Indicator Bank'!AT75),\"\",'TA Indicator Bank'!AT75)","v":0},{"$f":"IF(AND(J79=1,J$410=1),1,0)","v":0},{"$f":"IF(AND(K79=1,K$410=1),1,0)","v":0},{"$f":"IF(AND(L79=1,L$410=1),1,0)","v":0},{"$f":"IF(AND(M79=1,M$410=1),1,0)","v":0},{"$f":"IF(AND(N79=1,N$410=1),1,0)","v":0},{"$f":"IF(AND(O79=1,O$410=1),1,0)","v":0},{"$f":"IF(AND(P79=1,P$410=1),1,0)","v":0},{"$f":"IF(AND(Q79=1,Q$410=1),1,0)","v":0},{"$f":"IF(AND(R79=1,R$410=1),1,0)","v":0},{"$f":"IF(AND(S79=1,S$410=1),1,0)","v":0},{"$f":"IF(AND(T79=1,T$410=1),1,0)","v":0},{"$f":"IF(AND(U79=1,U$410=1),1,0)","v":0},{"$f":"IF(AND(V79=1,V$410=1),1,0)","v":0},{"$f":"IF(AND(W79=1,W$410=1),1,0)","v":1},1,{"$f":"IF(AND(X79=1,X$410=1),1,0)","v":0},{"$f":"IF(AND(Y79=1,Y$410=1),1,0)","v":0},{"$f":"IF(AND(Z79=1,Z$410=1),1,0)","v":0},{"$f":"IF(AND(AA79=1,AA$410=1),1,0)","v":0},{"$f":"IF(AND(AB79=1,AB$410=1),1,0)","v":0},{"$f":"IF(AND(AC79=1,AC$410=1),1,0)","v":0},{"$f":"IF(AND(AD79=1,AD$410=1),1,0)","v":0},{"$f":"IF(AND(AE79=1,AE$410=1),1,0)","v":0},{"$f":"IF(AND(AF79=1,AF$410=1),1,0)","v":0},1,{"$f":"IF(AND(AG79=1,AG$410=1),1,0)","v":0},{"$f":"IF(AND(AH79=1,AH$410=1),1,0)","v":0},{"$f":"IF(AND(AI79=1,AI$410=1),1,0)","v":0},{"$f":"IF(AND(AJ79=1,AJ$410=1),1,0)","v":0},{"$f":"IF(AND(AK79=1,AK$410=1),1,0)","v":0},{"$f":"IF(AND(AL79=1,AL$410=1),1,0)","v":0},{"$f":"IF(AND(AM79=1,AM$410=1),1,0)","v":0},{"$f":"IF(AND(AN79=1,AN$410=1),1,0)","v":0},{"$f":"IF(AND(AO79=1,AO$410=1),1,0)","v":0},1,{"$f":"IF(AND(AP79=1,AP$410=1),1,0)","v":0},{"$f":"IF(AND(AQ79=1,AQ$410=1),1,0)","v":1},{"$f":"IF(AND(AR79=1,AR$410=1),1,0)","v":0},{"$f":"IF(AND(AS79=1,AS$410=1),1,0)","v":0},{"$f":"IF(AND(AT79=1,AT$410=1),1,0)","v":0},1,1,71,71,{"$f":"IFERROR(SMALL($CL$9:$CL$408,CK79),\"\")","v":71},{"$f":"IFERROR(INDEX($B$9:$I$408,$CM79,COLUMNS($CN$9:CN79)),\"\")","v":"TA071"},{"$f":"IFERROR(INDEX($B$9:$I$408,$CM79,COLUMNS($CN$9:CO79)),\"\")","v":"Proportion of research/knowledge produced rated good by independent researcher or useful by audience"},{"$f":"IFERROR(INDEX($B$9:$I$408,$CM79,COLUMNS($CN$9:CP79)),\"\")","v":"-"},{"$f":"IFERROR(INDEX($B$9:$I$408,$CM79,COLUMNS($CN$9:CQ79)),\"\")","v":"Uptake"},{"$f":"IFERROR(INDEX($B$9:$I$408,$CM79,COLUMNS($CN$9:CR79)),\"\")","v":"Research & development"},{"$f":"IFERROR(INDEX($B$9:$I$408,$CM79,COLUMNS($CN$9:CS79)),\"\")","v":"-"},{"$f":"IFERROR(INDEX($B$9:$I$408,$CM79,COLUMNS($CN$9:CT79)),\"\")","v":"-"},{"$f":"IFERROR(INDEX($B$9:$I$408,$CM79,COLUMNS($CN$9:CU79)),\"\")","v":"Percentage"}]
[null,{"$f":"IF(ISBLANK('TA Indicator Bank'!B76),\"\",'TA Indicator Bank'!B76)","v":"TA072"},{"$f":"IF(ISBLANK('TA Indicator Bank'!C76),\"\",'TA Indicator Bank'!C76)","v":"Number (and diversity) of stakeholder accessing the knowledge products"},{"$f":"IF(ISBLANK('TA Indicator Bank'!D76),\"\",'TA Indicator Bank'!D76)","v":"-"},{"$f":"IF(ISBLANK('TA Indicator Bank'!E76),\"\",'TA Indicator Bank'!E76)","v":"Uptake"},{"$f":"IF(ISBLANK('TA Indicator Bank'!F76),\"\",'TA Indicator Bank'!F76)","v":"Research & development"},{"$f":"IF(ISBLANK('TA Indicator Bank'!G76),\"\",'TA Indicator Bank'!G76)","v":"-"},{"$f":"IF(ISBLANK('TA Indicator Bank'!H76),\"\",'TA Indicator Bank'!H76)","v":"-"},{"$f":"IF(ISBLANK('TA Indicator Bank'!I76),\"\",'TA Indicator Bank'!I76)","v":"Number"},{"$f":"IF(ISBLANK('TA Indicator Bank'!J76),\"\",'TA Indicator Bank'!J76)","v":0},{"$f":"IF(ISBLANK('TA Indicator Bank'!K76),\"\",'TA Indicator Bank'!K76)","v":0},{"$f":"IF(ISBLANK('TA Indicator Bank'!L76),\"\",'TA Indicator Bank'!L76)","v":0},{"$f":"IF(ISBLANK('TA Indicator Bank'!M76),\"\",'TA Indicator Bank'!M76)","v":0},{"$f":"IF(ISBLANK('TA Indicator Bank'!N76),\"\",'TA Indicator Bank'!N76)","v":0},{"$f":"IF(ISBLANK('TA Indicator Bank'!O76),\"\",'TA Indicator Bank'!O76)","v":0},{"$f":"IF(ISBLANK('TA Indicator Bank'!P76),\"\",'TA Indicator Bank'!P76)","v":0},{"$f":"IF(ISBLANK('TA Indicator Bank'!Q76),\"\",'TA Indicator Bank'!Q76)","v":0},{"$f":"IF(ISBLANK('TA Indicator Bank'!R76),\"\",'TA Indicator Bank'!R76)","v":0},{"$f":"IF(ISBLANK('TA Indicator Bank'!S76),\"\",'TA Indicator Bank'!S76)","v":0},{"$f":"IF(ISBLANK('TA Indicator Bank'!T76),\"\",'TA Indicator Bank'!T76)","v":0},{"$f":"IF(ISBLANK('TA Indicator Bank'!U76),\"\",'TA Indicator Bank'!U76)","v":0},{"$f":"IF(ISBLANK('TA Indicator Bank'!V76),\"\",'TA Indicator Bank'!V76)","v":0},{"$f":"IF(ISBLANK('TA Indicator Bank'!W76),\"\",'TA Indicator Bank'!W76)","v":1},{"$f":"IF(ISBLANK('TA Indicator Bank'!X76),\"\",'TA Indicator Bank'!X76)","v":0},{"$f":"IF(ISBLANK('TA Indicator Bank'!Y76),\"\",'TA Indicator Bank'!Y76)","v":0},{"$f":"IF(ISBLANK('TA Indicator Bank'!Z76),\"\",'TA Indicator Bank'!Z76)","v":0},{"$f":"IF(ISBLANK('TA Indicator Bank'!AA76),\"\",'TA Indicator Bank'!AA76)","v":0},{"$f":"IF(ISBLANK('TA Indicator Bank'!AB76),\"\",'TA Indicator Bank'!AB76)","v":0},{"$f":"IF(ISBLANK('TA Indicator Bank'!AC76),\"\",'TA Indicator Bank'!AC76)","v":0},{"$f":"IF(ISBLANK('TA Indicator Bank'!AD76),\"\",'TA Indicator Bank'!AD76)","v":0},{"$f":"IF(ISBLANK('TA Indicator Bank'!AE76),\"\",'TA Indicator Bank'!AE76)","v":0},{"$f":"IF(ISBLANK('TA Indicator Bank'!AF76),\"\",'TA Indicator Bank'!AF76)","v":0},{"$f":"IF(ISBLANK('TA Indicator Bank'!AG76),\"\",'TA Indicator Bank'!AG76)","v":0},{"$f":"IF(ISBLANK('TA Indicator Bank'!AH76),\"\",'TA Indicator Bank'!AH76)","v":0},{"$f":"IF(ISBLANK('TA Indicator Bank'!AI76),\"\",'TA Indicator Bank'!AI76)","v":0},{"$f":"IF(ISBLANK('TA Indicator Bank'!AJ76),\"\",'TA Indicator Bank'!AJ76)","v":0},{"$f":"IF(ISBLANK('TA Indicator Bank'!AK76),\"\",'TA Indicator Bank'!AK76)","v":0},{"$f":"IF(ISBLANK('TA Indicator Bank'!AL76),\"\",'TA Indicator Bank'!AL76)","v":0},{"$f":"IF(ISBLANK('TA Indicator Bank'!AM76),\"\",'TA Indicator Bank'!AM76)","v":0},{"$f":"IF(ISBLANK('TA Indicator Bank'!AN76),\"\",'TA Indicator Bank'!AN76)","v":0},{"$f":"IF(ISBLANK('TA Indicator Bank'!AO76),\"\",'TA Indicator Bank'!AO76)","v":0},{"$f":"IF(ISBLANK('TA Indicator Bank'!AP76),\"\",'TA Indicator Bank'!AP76)","v":0},{"$f":"IF(ISBLANK('TA Indicator Bank'!AQ76),\"\",'TA Indicator Bank'!AQ76)","v":1},{"$f":"IF(ISBLANK('TA Indicator Bank'!AR76),\"\",'TA Indicator Bank'!AR76)","v":0},{"$f":"IF(ISBLANK('TA Indicator Bank'!AS76),\"\",'TA Indicator Bank'!AS76)","v":0},{"$f":"IF(ISBLANK('TA Indicator Bank'!AT76),\"\",'TA Indicator Bank'!AT76)","v":0},{"$f":"IF(AND(J80=1,J$410=1),1,0)","v":0},{"$f":"IF(AND(K80=1,K$410=1),1,0)","v":0},{"$f":"IF(AND(L80=1,L$410=1),1,0)","v":0},{"$f":"IF(AND(M80=1,M$410=1),1,0)","v":0},{"$f":"IF(AND(N80=1,N$410=1),1,0)","v":0},{"$f":"IF(AND(O80=1,O$410=1),1,0)","v":0},{"$f":"IF(AND(P80=1,P$410=1),1,0)","v":0},{"$f":"IF(AND(Q80=1,Q$410=1),1,0)","v":0},{"$f":"IF(AND(R80=1,R$410=1),1,0)","v":0},{"$f":"IF(AND(S80=1,S$410=1),1,0)","v":0},{"$f":"IF(AND(T80=1,T$410=1),1,0)","v":0},{"$f":"IF(AND(U80=1,U$410=1),1,0)","v":0},{"$f":"IF(AND(V80=1,V$410=1),1,0)","v":0},{"$f":"IF(AND(W80=1,W$410=1),1,0)","v":1},1,{"$f":"IF(AND(X80=1,X$410=1),1,0)","v":0},{"$f":"IF(AND(Y80=1,Y$410=1),1,0)","v":0},{"$f":"IF(AND(Z80=1,Z$410=1),1,0)","v":0},{"$f":"IF(AND(AA80=1,AA$410=1),1,0)","v":0},{"$f":"IF(AND(AB80=1,AB$410=1),1,0)","v":0},{"$f":"IF(AND(AC80=1,AC$410=1),1,0)","v":0},{"$f":"IF(AND(AD80=1,AD$410=1),1,0)","v":0},{"$f":"IF(AND(AE80=1,AE$410=1),1,0)","v":0},{"$f":"IF(AND(AF80=1,AF$410=1),1,0)","v":0},1,{"$f":"IF(AND(AG80=1,AG$410=1),1,0)","v":0},{"$f":"IF(AND(AH80=1,AH$410=1),1,0)","v":0},{"$f":"IF(AND(AI80=1,AI$410=1),1,0)","v":0},{"$f":"IF(AND(AJ80=1,AJ$410=1),1,0)","v":0},{"$f":"IF(AND(AK80=1,AK$410=1),1,0)","v":0},{"$f":"IF(AND(AL80=1,AL$410=1),1,0)","v":0},{"$f":"IF(AND(AM80=1,AM$410=1),1,0)","v":0},{"$f":"IF(AND(AN80=1,AN$410=1),1,0)","v":0},{"$f":"IF(AND(AO80=1,AO$410=1),1,0)","v":0},1,{"$f":"IF(AND(AP80=1,AP$410=1),1,0)","v":0},{"$f":"IF(AND(AQ80=1,AQ$410=1),1,0)","v":1},{"$f":"IF(AND(AR80=1,AR$410=1),1,0)","v":0},{"$f":"IF(AND(AS80=1,AS$410=1),1,0)","v":0},{"$f":"IF(AND(AT80=1,AT$410=1),1,0)","v":0},1,1,72,72,{"$f":"IFERROR(SMALL($CL$9:$CL$408,CK80),\"\")","v":72},{"$f":"IFERROR(INDEX($B$9:$I$408,$CM80,COLUMNS($CN$9:CN80)),\"\")","v":"TA072"},{"$f":"IFERROR(INDEX($B$9:$I$408,$CM80,COLUMNS($CN$9:CO80)),\"\")","v":"Number (and diversity) of stakeholder accessing the knowledge products"},{"$f":"IFERROR(INDEX($B$9:$I$408,$CM80,COLUMNS($CN$9:CP80)),\"\")","v":"-"},{"$f":"IFERROR(INDEX($B$9:$I$408,$CM80,COLUMNS($CN$9:CQ80)),\"\")","v":"Uptake"},{"$f":"IFERROR(INDEX($B$9:$I$408,$CM80,COLUMNS($CN$9:CR80)),\"\")","v":"Research & development"},{"$f":"IFERROR(INDEX($B$9:$I$408,$CM80,COLUMNS($CN$9:CS80)),\"\")","v":"-"},{"$f":"IFERROR(INDEX($B$9:$I$408,$CM80,COLUMNS($CN$9:CT80)),\"\")","v":"-"},{"$f":"IFERROR(INDEX($B$9:$I$408,$CM80,COLUMNS($CN$9:CU80)),\"\")","v":"Number"}]
[null,{"$f":"IF(ISBLANK('TA Indicator Bank'!B77),\"\",'TA Indicator Bank'!B77)","v":"TA073"},{"$f":"IF(ISBLANK('TA Indicator Bank'!C77),\"\",'TA Indicator Bank'!C77)","v":"Targeted institution or mechanism established or strengthened "},{"$f":"IF(ISBLANK('TA Indicator Bank'!D77),\"\",'TA Indicator Bank'!D77)","v":"-"},{"$f":"IF(ISBLANK('TA Indicator Bank'!E77),\"\",'TA Indicator Bank'!E77)","v":"Output"},{"$f":"IF(ISBLANK('TA Indicator Bank'!F77),\"\",'TA Indicator Bank'!F77)","v":"-"},{"$f":"IF(ISBLANK('TA Indicator Bank'!G77),\"\",'TA Indicator Bank'!G77)","v":"Capacity building: Institutional capacity"},{"$f":"IF(ISBLANK('TA Indicator Bank'!H77),\"\",'TA Indicator Bank'!H77)","v":"-"},{"$f":"IF(ISBLANK('TA Indicator Bank'!I77),\"\",'TA Indicator Bank'!I77)","v":"Yes/No"},{"$f":"IF(ISBLANK('TA Indicator Bank'!J77),\"\",'TA Indicator Bank'!J77)","v":0},{"$f":"IF(ISBLANK('TA Indicator Bank'!K77),\"\",'TA Indicator Bank'!K77)","v":0},{"$f":"IF(ISBLANK('TA Indicator Bank'!L77),\"\",'TA Indicator Bank'!L77)","v":0},{"$f":"IF(ISBLANK('TA Indicator Bank'!M77),\"\",'TA Indicator Bank'!M77)","v":0},{"$f":"IF(ISBLANK('TA Indicator Bank'!N77),\"\",'TA Indicator Bank'!N77)","v":0},{"$f":"IF(ISBLANK('TA Indicator Bank'!O77),\"\",'TA Indicator Bank'!O77)","v":0},{"$f":"IF(ISBLANK('TA Indicator Bank'!P77),\"\",'TA Indicator Bank'!P77)","v":0},{"$f":"IF(ISBLANK('TA Indicator Bank'!Q77),\"\",'TA Indicator Bank'!Q77)","v":0},{"$f":"IF(ISBLANK('TA Indicator Bank'!R77),\"\",'TA Indicator Bank'!R77)","v":0},{"$f":"IF(ISBLANK('TA Indicator Bank'!S77),\"\",'TA Indicator Bank'!S77)","v":0},{"$f":"IF(ISBLANK('TA Indicator Bank'!T77),\"\",'TA Indicator Bank'!T77)","v":0},{"$f":"IF(ISBLANK('TA Indicator Bank'!U77),\"\",'TA Indicator Bank'!U77)","v":0},{"$f":"IF(ISBLANK('TA Indicator Bank'!V77),\"\",'TA Indicator Bank'!V77)","v":0},{"$f":"IF(ISBLANK('TA Indicator Bank'!W77),\"\",'TA Indicator Bank'!W77)","v":0},{"$f":"IF(ISBLANK('TA Indicator Bank'!X77),\"\",'TA Indicator Bank'!X77)","v":1},{"$f":"IF(ISBLANK('TA Indicator Bank'!Y77),\"\",'TA Indicator Bank'!Y77)","v":0},{"$f":"IF(ISBLANK('TA Indicator Bank'!Z77),\"\",'TA Indicator Bank'!Z77)","v":0},{"$f":"IF(ISBLANK('TA Indicator Bank'!AA77),\"\",'TA Indicator Bank'!AA77)","v":0},{"$f":"IF(ISBLANK('TA Indicator Bank'!AB77),\"\",'TA Indicator Bank'!AB77)","v":0},{"$f":"IF(ISBLANK('TA Indicator Bank'!AC77),\"\",'TA Indicator Bank'!AC77)","v":0},{"$f":"IF(ISBLANK('TA Indicator Bank'!AD77),\"\",'TA Indicator Bank'!AD77)","v":0},{"$f":"IF(ISBLANK('TA Indicator Bank'!AE77),\"\",'TA Indicator Bank'!AE77)","v":0},{"$f":"IF(ISBLANK('TA Indicator Bank'!AF77),\"\",'TA Indicator Bank'!AF77)","v":0},{"$f":"IF(ISBLANK('TA Indicator Bank'!AG77),\"\",'TA Indicator Bank'!AG77)","v":0},{"$f":"IF(ISBLANK('TA Indicator Bank'!AH77),\"\",'TA Indicator Bank'!AH77)","v":0},{"$f":"IF(ISBLANK('TA Indicator Bank'!AI77),\"\",'TA Indicator Bank'!AI77)","v":0},{"$f":"IF(ISBLANK('TA Indicator Bank'!AJ77),\"\",'TA Indicator Bank'!AJ77)","v":0},{"$f":"IF(ISBLANK('TA Indicator Bank'!AK77),\"\",'TA Indicator Bank'!AK77)","v":0},{"$f":"IF(ISBLANK('TA Indicator Bank'!AL77),\"\",'TA Indicator Bank'!AL77)","v":0},{"$f":"IF(ISBLANK('TA Indicator Bank'!AM77),\"\",'TA Indicator Bank'!AM77)","v":0},{"$f":"IF(ISBLANK('TA Indicator Bank'!AN77),\"\",'TA Indicator Bank'!AN77)","v":0},{"$f":"IF(ISBLANK('TA Indicator Bank'!AO77),\"\",'TA Indicator Bank'!AO77)","v":0},{"$f":"IF(ISBLANK('TA Indicator Bank'!AP77),\"\",'TA Indicator Bank'!AP77)","v":0},{"$f":"IF(ISBLANK('TA Indicator Bank'!AQ77),\"\",'TA Indicator Bank'!AQ77)","v":0},{"$f":"IF(ISBLANK('TA Indicator Bank'!AR77),\"\",'TA Indicator Bank'!AR77)","v":1},{"$f":"IF(ISBLANK('TA Indicator Bank'!AS77),\"\",'TA Indicator Bank'!AS77)","v":0},{"$f":"IF(ISBLANK('TA Indicator Bank'!AT77),\"\",'TA Indicator Bank'!AT77)","v":0},{"$f":"IF(AND(J81=1,J$410=1),1,0)","v":0},{"$f":"IF(AND(K81=1,K$410=1),1,0)","v":0},{"$f":"IF(AND(L81=1,L$410=1),1,0)","v":0},{"$f":"IF(AND(M81=1,M$410=1),1,0)","v":0},{"$f":"IF(AND(N81=1,N$410=1),1,0)","v":0},{"$f":"IF(AND(O81=1,O$410=1),1,0)","v":0},{"$f":"IF(AND(P81=1,P$410=1),1,0)","v":0},{"$f":"IF(AND(Q81=1,Q$410=1),1,0)","v":0},{"$f":"IF(AND(R81=1,R$410=1),1,0)","v":0},{"$f":"IF(AND(S81=1,S$410=1),1,0)","v":0},{"$f":"IF(AND(T81=1,T$410=1),1,0)","v":0},{"$f":"IF(AND(U81=1,U$410=1),1,0)","v":0},{"$f":"IF(AND(V81=1,V$410=1),1,0)","v":0},{"$f":"IF(AND(W81=1,W$410=1),1,0)","v":0},1,{"$f":"IF(AND(X81=1,X$410=1),1,0)","v":1},{"$f":"IF(AND(Y81=1,Y$410=1),1,0)","v":0},{"$f":"IF(AND(Z81=1,Z$410=1),1,0)","v":0},{"$f":"IF(AND(AA81=1,AA$410=1),1,0)","v":0},{"$f":"IF(AND(AB81=1,AB$410=1),1,0)","v":0},{"$f":"IF(AND(AC81=1,AC$410=1),1,0)","v":0},{"$f":"IF(AND(AD81=1,AD$410=1),1,0)","v":0},{"$f":"IF(AND(AE81=1,AE$410=1),1,0)","v":0},{"$f":"IF(AND(AF81=1,AF$410=1),1,0)","v":0},1,{"$f":"IF(AND(AG81=1,AG$410=1),1,0)","v":0},{"$f":"IF(AND(AH81=1,AH$410=1),1,0)","v":0},{"$f":"IF(AND(AI81=1,AI$410=1),1,0)","v":0},{"$f":"IF(AND(AJ81=1,AJ$410=1),1,0)","v":0},{"$f":"IF(AND(AK81=1,AK$410=1),1,0)","v":0},{"$f":"IF(AND(AL81=1,AL$410=1),1,0)","v":0},{"$f":"IF(AND(AM81=1,AM$410=1),1,0)","v":0},{"$f":"IF(AND(AN81=1,AN$410=1),1,0)","v":0},{"$f":"IF(AND(AO81=1,AO$410=1),1,0)","v":0},1,{"$f":"IF(AND(AP81=1,AP$410=1),1,0)","v":0},{"$f":"IF(AND(AQ81=1,AQ$410=1),1,0)","v":0},{"$f":"IF(AND(AR81=1,AR$410=1),1,0)","v":1},{"$f":"IF(AND(AS81=1,AS$410=1),1,0)","v":0},{"$f":"IF(AND(AT81=1,AT$410=1),1,0)","v":0},1,1,73,73,{"$f":"IFERROR(SMALL($CL$9:$CL$408,CK81),\"\")","v":73},{"$f":"IFERROR(INDEX($B$9:$I$408,$CM81,COLUMNS($CN$9:CN81)),\"\")","v":"TA073"},{"$f":"IFERROR(INDEX($B$9:$I$408,$CM81,COLUMNS($CN$9:CO81)),\"\")","v":"Targeted institution or mechanism established or strengthened "},{"$f":"IFERROR(INDEX($B$9:$I$408,$CM81,COLUMNS($CN$9:CP81)),\"\")","v":"-"},{"$f":"IFERROR(INDEX($B$9:$I$408,$CM81,COLUMNS($CN$9:CQ81)),\"\")","v":"Output"},{"$f":"IFERROR(INDEX($B$9:$I$408,$CM81,COLUMNS($CN$9:CR81)),\"\")","v":"-"},{"$f":"IFERROR(INDEX($B$9:$I$408,$CM81,COLUMNS($CN$9:CS81)),\"\")","v":"Capacity building: Institutional capacity"},{"$f":"IFERROR(INDEX($B$9:$I$408,$CM81,COLUMNS($CN$9:CT81)),\"\")","v":"-"},{"$f":"IFERROR(INDEX($B$9:$I$408,$CM81,COLUMNS($CN$9:CU81)),\"\")","v":"Yes/No"}]
[null,{"$f":"IF(ISBLANK('TA Indicator Bank'!B78),\"\",'TA Indicator Bank'!B78)","v":"TA074"},{"$f":"IF(ISBLANK('TA Indicator Bank'!C78),\"\",'TA Indicator Bank'!C78)","v":"Number of countries with improved regulations and laws"},{"$f":"IF(ISBLANK('TA Indicator Bank'!D78),\"\",'TA Indicator Bank'!D78)","v":"-"},{"$f":"IF(ISBLANK('TA Indicator Bank'!E78),\"\",'TA Indicator Bank'!E78)","v":"Output"},{"$f":"IF(ISBLANK('TA Indicator Bank'!F78),\"\",'TA Indicator Bank'!F78)","v":"-"},{"$f":"IF(ISBLANK('TA Indicator Bank'!G78),\"\",'TA Indicator Bank'!G78)","v":"Capacity building: Institutional capacity"},{"$f":"IF(ISBLANK('TA Indicator Bank'!H78),\"\",'TA Indicator Bank'!H78)","v":"-"},{"$f":"IF(ISBLANK('TA Indicator Bank'!I78),\"\",'TA Indicator Bank'!I78)","v":"Number"},{"$f":"IF(ISBLANK('TA Indicator Bank'!J78),\"\",'TA Indicator Bank'!J78)","v":0},{"$f":"IF(ISBLANK('TA Indicator Bank'!K78),\"\",'TA Indicator Bank'!K78)","v":0},{"$f":"IF(ISBLANK('TA Indicator Bank'!L78),\"\",'TA Indicator Bank'!L78)","v":0},{"$f":"IF(ISBLANK('TA Indicator Bank'!M78),\"\",'TA Indicator Bank'!M78)","v":0},{"$f":"IF(ISBLANK('TA Indicator Bank'!N78),\"\",'TA Indicator Bank'!N78)","v":0},{"$f":"IF(ISBLANK('TA Indicator Bank'!O78),\"\",'TA Indicator Bank'!O78)","v":0},{"$f":"IF(ISBLANK('TA Indicator Bank'!P78),\"\",'TA Indicator Bank'!P78)","v":0},{"$f":"IF(ISBLANK('TA Indicator Bank'!Q78),\"\",'TA Indicator Bank'!Q78)","v":0},{"$f":"IF(ISBLANK('TA Indicator Bank'!R78),\"\",'TA Indicator Bank'!R78)","v":0},{"$f":"IF(ISBLANK('TA Indicator Bank'!S78),\"\",'TA Indicator Bank'!S78)","v":0},{"$f":"IF(ISBLANK('TA Indicator Bank'!T78),\"\",'TA Indicator Bank'!T78)","v":0},{"$f":"IF(ISBLANK('TA Indicator Bank'!U78),\"\",'TA Indicator Bank'!U78)","v":0},{"$f":"IF(ISBLANK('TA Indicator Bank'!V78),\"\",'TA Indicator Bank'!V78)","v":0},{"$f":"IF(ISBLANK('TA Indicator Bank'!W78),\"\",'TA Indicator Bank'!W78)","v":0},{"$f":"IF(ISBLANK('TA Indicator Bank'!X78),\"\",'TA Indicator Bank'!X78)","v":1},{"$f":"IF(ISBLANK('TA Indicator Bank'!Y78),\"\",'TA Indicator Bank'!Y78)","v":0},{"$f":"IF(ISBLANK('TA Indicator Bank'!Z78),\"\",'TA Indicator Bank'!Z78)","v":0},{"$f":"IF(ISBLANK('TA Indicator Bank'!AA78),\"\",'TA Indicator Bank'!AA78)","v":0},{"$f":"IF(ISBLANK('TA Indicator Bank'!AB78),\"\",'TA Indicator Bank'!AB78)","v":0},{"$f":"IF(ISBLANK('TA Indicator Bank'!AC78),\"\",'TA Indicator Bank'!AC78)","v":0},{"$f":"IF(ISBLANK('TA Indicator Bank'!AD78),\"\",'TA Indicator Bank'!AD78)","v":0},{"$f":"IF(ISBLANK('TA Indicator Bank'!AE78),\"\",'TA Indicator Bank'!AE78)","v":0},{"$f":"IF(ISBLANK('TA Indicator Bank'!AF78),\"\",'TA Indicator Bank'!AF78)","v":0},{"$f":"IF(ISBLANK('TA Indicator Bank'!AG78),\"\",'TA Indicator Bank'!AG78)","v":0},{"$f":"IF(ISBLANK('TA Indicator Bank'!AH78),\"\",'TA Indicator Bank'!AH78)","v":0},{"$f":"IF(ISBLANK('TA Indicator Bank'!AI78),\"\",'TA Indicator Bank'!AI78)","v":0},{"$f":"IF(ISBLANK('TA Indicator Bank'!AJ78),\"\",'TA Indicator Bank'!AJ78)","v":0},{"$f":"IF(ISBLANK('TA Indicator Bank'!AK78),\"\",'TA Indicator Bank'!AK78)","v":0},{"$f":"IF(ISBLANK('TA Indicator Bank'!AL78),\"\",'TA Indicator Bank'!AL78)","v":0},{"$f":"IF(ISBLANK('TA Indicator Bank'!AM78),\"\",'TA Indicator Bank'!AM78)","v":0},{"$f":"IF(ISBLANK('TA Indicator Bank'!AN78),\"\",'TA Indicator Bank'!AN78)","v":0},{"$f":"IF(ISBLANK('TA Indicator Bank'!AO78),\"\",'TA Indicator Bank'!AO78)","v":0},{"$f":"IF(ISBLANK('TA Indicator Bank'!AP78),\"\",'TA Indicator Bank'!AP78)","v":0},{"$f":"IF(ISBLANK('TA Indicator Bank'!AQ78),\"\",'TA Indicator Bank'!AQ78)","v":0},{"$f":"IF(ISBLANK('TA Indicator Bank'!AR78),\"\",'TA Indicator Bank'!AR78)","v":1},{"$f":"IF(ISBLANK('TA Indicator Bank'!AS78),\"\",'TA Indicator Bank'!AS78)","v":0},{"$f":"IF(ISBLANK('TA Indicator Bank'!AT78),\"\",'TA Indicator Bank'!AT78)","v":0},{"$f":"IF(AND(J82=1,J$410=1),1,0)","v":0},{"$f":"IF(AND(K82=1,K$410=1),1,0)","v":0},{"$f":"IF(AND(L82=1,L$410=1),1,0)","v":0},{"$f":"IF(AND(M82=1,M$410=1),1,0)","v":0},{"$f":"IF(AND(N82=1,N$410=1),1,0)","v":0},{"$f":"IF(AND(O82=1,O$410=1),1,0)","v":0},{"$f":"IF(AND(P82=1,P$410=1),1,0)","v":0},{"$f":"IF(AND(Q82=1,Q$410=1),1,0)","v":0},{"$f":"IF(AND(R82=1,R$410=1),1,0)","v":0},{"$f":"IF(AND(S82=1,S$410=1),1,0)","v":0},{"$f":"IF(AND(T82=1,T$410=1),1,0)","v":0},{"$f":"IF(AND(U82=1,U$410=1),1,0)","v":0},{"$f":"IF(AND(V82=1,V$410=1),1,0)","v":0},{"$f":"IF(AND(W82=1,W$410=1),1,0)","v":0},1,{"$f":"IF(AND(X82=1,X$410=1),1,0)","v":1},{"$f":"IF(AND(Y82=1,Y$410=1),1,0)","v":0},{"$f":"IF(AND(Z82=1,Z$410=1),1,0)","v":0},{"$f":"IF(AND(AA82=1,AA$410=1),1,0)","v":0},{"$f":"IF(AND(AB82=1,AB$410=1),1,0)","v":0},{"$f":"IF(AND(AC82=1,AC$410=1),1,0)","v":0},{"$f":"IF(AND(AD82=1,AD$410=1),1,0)","v":0},{"$f":"IF(AND(AE82=1,AE$410=1),1,0)","v":0},{"$f":"IF(AND(AF82=1,AF$410=1),1,0)","v":0},1,{"$f":"IF(AND(AG82=1,AG$410=1),1,0)","v":0},{"$f":"IF(AND(AH82=1,AH$410=1),1,0)","v":0},{"$f":"IF(AND(AI82=1,AI$410=1),1,0)","v":0},{"$f":"IF(AND(AJ82=1,AJ$410=1),1,0)","v":0},{"$f":"IF(AND(AK82=1,AK$410=1),1,0)","v":0},{"$f":"IF(AND(AL82=1,AL$410=1),1,0)","v":0},{"$f":"IF(AND(AM82=1,AM$410=1),1,0)","v":0},{"$f":"IF(AND(AN82=1,AN$410=1),1,0)","v":0},{"$f":"IF(AND(AO82=1,AO$410=1),1,0)","v":0},1,{"$f":"IF(AND(AP82=1,AP$410=1),1,0)","v":0},{"$f":"IF(AND(AQ82=1,AQ$410=1),1,0)","v":0},{"$f":"IF(AND(AR82=1,AR$410=1),1,0)","v":1},{"$f":"IF(AND(AS82=1,AS$410=1),1,0)","v":0},{"$f":"IF(AND(AT82=1,AT$410=1),1,0)","v":0},1,1,74,74,{"$f":"IFERROR(SMALL($CL$9:$CL$408,CK82),\"\")","v":74},{"$f":"IFERROR(INDEX($B$9:$I$408,$CM82,COLUMNS($CN$9:CN82)),\"\")","v":"TA074"},{"$f":"IFERROR(INDEX($B$9:$I$408,$CM82,COLUMNS($CN$9:CO82)),\"\")","v":"Number of countries with improved regulations and laws"},{"$f":"IFERROR(INDEX($B$9:$I$408,$CM82,COLUMNS($CN$9:CP82)),\"\")","v":"-"},{"$f":"IFERROR(INDEX($B$9:$I$408,$CM82,COLUMNS($CN$9:CQ82)),\"\")","v":"Output"},{"$f":"IFERROR(INDEX($B$9:$I$408,$CM82,COLUMNS($CN$9:CR82)),\"\")","v":"-"},{"$f":"IFERROR(INDEX($B$9:$I$408,$CM82,COLUMNS($CN$9:CS82)),\"\")","v":"Capacity building: Institutional capacity"},{"$f":"IFERROR(INDEX($B$9:$I$408,$CM82,COLUMNS($CN$9:CT82)),\"\")","v":"-"},{"$f":"IFERROR(INDEX($B$9:$I$408,$CM82,COLUMNS($CN$9:CU82)),\"\")","v":"Number"}]
[null,{"$f":"IF(ISBLANK('TA Indicator Bank'!B79),\"\",'TA Indicator Bank'!B79)","v":"TA075"},{"$f":"IF(ISBLANK('TA Indicator Bank'!C79),\"\",'TA Indicator Bank'!C79)","v":"Number/percentage of units that provide data"},{"$f":"IF(ISBLANK('TA Indicator Bank'!D79),\"\",'TA Indicator Bank'!D79)","v":"-"},{"$f":"IF(ISBLANK('TA Indicator Bank'!E79),\"\",'TA Indicator Bank'!E79)","v":"Output"},{"$f":"IF(ISBLANK('TA Indicator Bank'!F79),\"\",'TA Indicator Bank'!F79)","v":"-"},{"$f":"IF(ISBLANK('TA Indicator Bank'!G79),\"\",'TA Indicator Bank'!G79)","v":"Capacity building: Institutional capacity"},{"$f":"IF(ISBLANK('TA Indicator Bank'!H79),\"\",'TA Indicator Bank'!H79)","v":"-"},{"$f":"IF(ISBLANK('TA Indicator Bank'!I79),\"\",'TA Indicator Bank'!I79)","v":"Number, Percentage"},{"$f":"IF(ISBLANK('TA Indicator Bank'!J79),\"\",'TA Indicator Bank'!J79)","v":0},{"$f":"IF(ISBLANK('TA Indicator Bank'!K79),\"\",'TA Indicator Bank'!K79)","v":0},{"$f":"IF(ISBLANK('TA Indicator Bank'!L79),\"\",'TA Indicator Bank'!L79)","v":0},{"$f":"IF(ISBLANK('TA Indicator Bank'!M79),\"\",'TA Indicator Bank'!M79)","v":0},{"$f":"IF(ISBLANK('TA Indicator Bank'!N79),\"\",'TA Indicator Bank'!N79)","v":0},{"$f":"IF(ISBLANK('TA Indicator Bank'!O79),\"\",'TA Indicator Bank'!O79)","v":0},{"$f":"IF(ISBLANK('TA Indicator Bank'!P79),\"\",'TA Indicator Bank'!P79)","v":0},{"$f":"IF(ISBLANK('TA Indicator Bank'!Q79),\"\",'TA Indicator Bank'!Q79)","v":0},{"$f":"IF(ISBLANK('TA Indicator Bank'!R79),\"\",'TA Indicator Bank'!R79)","v":0},{"$f":"IF(ISBLANK('TA Indicator Bank'!S79),\"\",'TA Indicator Bank'!S79)","v":0},{"$f":"IF(ISBLANK('TA Indicator Bank'!T79),\"\",'TA Indicator Bank'!T79)","v":0},{"$f":"IF(ISBLANK('TA Indicator Bank'!U79),\"\",'TA Indicator Bank'!U79)","v":0},{"$f":"IF(ISBLANK('TA Indicator Bank'!V79),\"\",'TA Indicator Bank'!V79)","v":0},{"$f":"IF(ISBLANK('TA Indicator Bank'!W79),\"\",'TA Indicator Bank'!W79)","v":0},{"$f":"IF(ISBLANK('TA Indicator Bank'!X79),\"\",'TA Indicator Bank'!X79)","v":1},{"$f":"IF(ISBLANK('TA Indicator Bank'!Y79),\"\",'TA Indicator Bank'!Y79)","v":0},{"$f":"IF(ISBLANK('TA Indicator Bank'!Z79),\"\",'TA Indicator Bank'!Z79)","v":0},{"$f":"IF(ISBLANK('TA Indicator Bank'!AA79),\"\",'TA Indicator Bank'!AA79)","v":0},{"$f":"IF(ISBLANK('TA Indicator Bank'!AB79),\"\",'TA Indicator Bank'!AB79)","v":0},{"$f":"IF(ISBLANK('TA Indicator Bank'!AC79),\"\",'TA Indicator Bank'!AC79)","v":0},{"$f":"IF(ISBLANK('TA Indicator Bank'!AD79),\"\",'TA Indicator Bank'!AD79)","v":0},{"$f":"IF(ISBLANK('TA Indicator Bank'!AE79),\"\",'TA Indicator Bank'!AE79)","v":0},{"$f":"IF(ISBLANK('TA Indicator Bank'!AF79),\"\",'TA Indicator Bank'!AF79)","v":0},{"$f":"IF(ISBLANK('TA Indicator Bank'!AG79),\"\",'TA Indicator Bank'!AG79)","v":0},{"$f":"IF(ISBLANK('TA Indicator Bank'!AH79),\"\",'TA Indicator Bank'!AH79)","v":0},{"$f":"IF(ISBLANK('TA Indicator Bank'!AI79),\"\",'TA Indicator Bank'!AI79)","v":0},{"$f":"IF(ISBLANK('TA Indicator Bank'!AJ79),\"\",'TA Indicator Bank'!AJ79)","v":0},{"$f":"IF(ISBLANK('TA Indicator Bank'!AK79),\"\",'TA Indicator Bank'!AK79)","v":0},{"$f":"IF(ISBLANK('TA Indicator Bank'!AL79),\"\",'TA Indicator Bank'!AL79)","v":0},{"$f":"IF(ISBLANK('TA Indicator Bank'!AM79),\"\",'TA Indicator Bank'!AM79)","v":0},{"$f":"IF(ISBLANK('TA Indicator Bank'!AN79),\"\",'TA Indicator Bank'!AN79)","v":0},{"$f":"IF(ISBLANK('TA Indicator Bank'!AO79),\"\",'TA Indicator Bank'!AO79)","v":0},{"$f":"IF(ISBLANK('TA Indicator Bank'!AP79),\"\",'TA Indicator Bank'!AP79)","v":0},{"$f":"IF(ISBLANK('TA Indicator Bank'!AQ79),\"\",'TA Indicator Bank'!AQ79)","v":0},{"$f":"IF(ISBLANK('TA Indicator Bank'!AR79),\"\",'TA Indicator Bank'!AR79)","v":1},{"$f":"IF(ISBLANK('TA Indicator Bank'!AS79),\"\",'TA Indicator Bank'!AS79)","v":0},{"$f":"IF(ISBLANK('TA Indicator Bank'!AT79),\"\",'TA Indicator Bank'!AT79)","v":0},{"$f":"IF(AND(J83=1,J$410=1),1,0)","v":0},{"$f":"IF(AND(K83=1,K$410=1),1,0)","v":0},{"$f":"IF(AND(L83=1,L$410=1),1,0)","v":0},{"$f":"IF(AND(M83=1,M$410=1),1,0)","v":0},{"$f":"IF(AND(N83=1,N$410=1),1,0)","v":0},{"$f":"IF(AND(O83=1,O$410=1),1,0)","v":0},{"$f":"IF(AND(P83=1,P$410=1),1,0)","v":0},{"$f":"IF(AND(Q83=1,Q$410=1),1,0)","v":0},{"$f":"IF(AND(R83=1,R$410=1),1,0)","v":0},{"$f":"IF(AND(S83=1,S$410=1),1,0)","v":0},{"$f":"IF(AND(T83=1,T$410=1),1,0)","v":0},{"$f":"IF(AND(U83=1,U$410=1),1,0)","v":0},{"$f":"IF(AND(V83=1,V$410=1),1,0)","v":0},{"$f":"IF(AND(W83=1,W$410=1),1,0)","v":0},1,{"$f":"IF(AND(X83=1,X$410=1),1,0)","v":1},{"$f":"IF(AND(Y83=1,Y$410=1),1,0)","v":0},{"$f":"IF(AND(Z83=1,Z$410=1),1,0)","v":0},{"$f":"IF(AND(AA83=1,AA$410=1),1,0)","v":0},{"$f":"IF(AND(AB83=1,AB$410=1),1,0)","v":0},{"$f":"IF(AND(AC83=1,AC$410=1),1,0)","v":0},{"$f":"IF(AND(AD83=1,AD$410=1),1,0)","v":0},{"$f":"IF(AND(AE83=1,AE$410=1),1,0)","v":0},{"$f":"IF(AND(AF83=1,AF$410=1),1,0)","v":0},1,{"$f":"IF(AND(AG83=1,AG$410=1),1,0)","v":0},{"$f":"IF(AND(AH83=1,AH$410=1),1,0)","v":0},{"$f":"IF(AND(AI83=1,AI$410=1),1,0)","v":0},{"$f":"IF(AND(AJ83=1,AJ$410=1),1,0)","v":0},{"$f":"IF(AND(AK83=1,AK$410=1),1,0)","v":0},{"$f":"IF(AND(AL83=1,AL$410=1),1,0)","v":0},{"$f":"IF(AND(AM83=1,AM$410=1),1,0)","v":0},{"$f":"IF(AND(AN83=1,AN$410=1),1,0)","v":0},{"$f":"IF(AND(AO83=1,AO$410=1),1,0)","v":0},1,{"$f":"IF(AND(AP83=1,AP$410=1),1,0)","v":0},{"$f":"IF(AND(AQ83=1,AQ$410=1),1,0)","v":0},{"$f":"IF(AND(AR83=1,AR$410=1),1,0)","v":1},{"$f":"IF(AND(AS83=1,AS$410=1),1,0)","v":0},{"$f":"IF(AND(AT83=1,AT$410=1),1,0)","v":0},1,1,75,75,{"$f":"IFERROR(SMALL($CL$9:$CL$408,CK83),\"\")","v":75},{"$f":"IFERROR(INDEX($B$9:$I$408,$CM83,COLUMNS($CN$9:CN83)),\"\")","v":"TA075"},{"$f":"IFERROR(INDEX($B$9:$I$408,$CM83,COLUMNS($CN$9:CO83)),\"\")","v":"Number/percentage of units that provide data"},{"$f":"IFERROR(INDEX($B$9:$I$408,$CM83,COLUMNS($CN$9:CP83)),\"\")","v":"-"},{"$f":"IFERROR(INDEX($B$9:$I$408,$CM83,COLUMNS($CN$9:CQ83)),\"\")","v":"Output"},{"$f":"IFERROR(INDEX($B$9:$I$408,$CM83,COLUMNS($CN$9:CR83)),\"\")","v":"-"},{"$f":"IFERROR(INDEX($B$9:$I$408,$CM83,COLUMNS($CN$9:CS83)),\"\")","v":"Capacity building: Institutional capacity"},{"$f":"IFERROR(INDEX($B$9:$I$408,$CM83,COLUMNS($CN$9:CT83)),\"\")","v":"-"},{"$f":"IFERROR(INDEX($B$9:$I$408,$CM83,COLUMNS($CN$9:CU83)),\"\")","v":"Number, Percentage"}]
[null,{"$f":"IF(ISBLANK('TA Indicator Bank'!B80),\"\",'TA Indicator Bank'!B80)","v":"TA076"},{"$f":"IF(ISBLANK('TA Indicator Bank'!C80),\"\",'TA Indicator Bank'!C80)","v":"Number of (countries with) approved process plans"},{"$f":"IF(ISBLANK('TA Indicator Bank'!D80),\"\",'TA Indicator Bank'!D80)","v":"Can be assessed based on the number of plans themselves, or at the country level (if multiple organisations within a country may develop plans)"},{"$f":"IF(ISBLANK('TA Indicator Bank'!E80),\"\",'TA Indicator Bank'!E80)","v":"Output"},{"$f":"IF(ISBLANK('TA Indicator Bank'!F80),\"\",'TA Indicator Bank'!F80)","v":"-"},{"$f":"IF(ISBLANK('TA Indicator Bank'!G80),\"\",'TA Indicator Bank'!G80)","v":"Capacity building: Institutional capacity"},{"$f":"IF(ISBLANK('TA Indicator Bank'!H80),\"\",'TA Indicator Bank'!H80)","v":"-"},{"$f":"IF(ISBLANK('TA Indicator Bank'!I80),\"\",'TA Indicator Bank'!I80)","v":"Number"},{"$f":"IF(ISBLANK('TA Indicator Bank'!J80),\"\",'TA Indicator Bank'!J80)","v":0},{"$f":"IF(ISBLANK('TA Indicator Bank'!K80),\"\",'TA Indicator Bank'!K80)","v":0},{"$f":"IF(ISBLANK('TA Indicator Bank'!L80),\"\",'TA Indicator Bank'!L80)","v":0},{"$f":"IF(ISBLANK('TA Indicator Bank'!M80),\"\",'TA Indicator Bank'!M80)","v":0},{"$f":"IF(ISBLANK('TA Indicator Bank'!N80),\"\",'TA Indicator Bank'!N80)","v":0},{"$f":"IF(ISBLANK('TA Indicator Bank'!O80),\"\",'TA Indicator Bank'!O80)","v":0},{"$f":"IF(ISBLANK('TA Indicator Bank'!P80),\"\",'TA Indicator Bank'!P80)","v":0},{"$f":"IF(ISBLANK('TA Indicator Bank'!Q80),\"\",'TA Indicator Bank'!Q80)","v":0},{"$f":"IF(ISBLANK('TA Indicator Bank'!R80),\"\",'TA Indicator Bank'!R80)","v":0},{"$f":"IF(ISBLANK('TA Indicator Bank'!S80),\"\",'TA Indicator Bank'!S80)","v":0},{"$f":"IF(ISBLANK('TA Indicator Bank'!T80),\"\",'TA Indicator Bank'!T80)","v":0},{"$f":"IF(ISBLANK('TA Indicator Bank'!U80),\"\",'TA Indicator Bank'!U80)","v":0},{"$f":"IF(ISBLANK('TA Indicator Bank'!V80),\"\",'TA Indicator Bank'!V80)","v":0},{"$f":"IF(ISBLANK('TA Indicator Bank'!W80),\"\",'TA Indicator Bank'!W80)","v":0},{"$f":"IF(ISBLANK('TA Indicator Bank'!X80),\"\",'TA Indicator Bank'!X80)","v":1},{"$f":"IF(ISBLANK('TA Indicator Bank'!Y80),\"\",'TA Indicator Bank'!Y80)","v":0},{"$f":"IF(ISBLANK('TA Indicator Bank'!Z80),\"\",'TA Indicator Bank'!Z80)","v":0},{"$f":"IF(ISBLANK('TA Indicator Bank'!AA80),\"\",'TA Indicator Bank'!AA80)","v":0},{"$f":"IF(ISBLANK('TA Indicator Bank'!AB80),\"\",'TA Indicator Bank'!AB80)","v":0},{"$f":"IF(ISBLANK('TA Indicator Bank'!AC80),\"\",'TA Indicator Bank'!AC80)","v":0},{"$f":"IF(ISBLANK('TA Indicator Bank'!AD80),\"\",'TA Indicator Bank'!AD80)","v":0},{"$f":"IF(ISBLANK('TA Indicator Bank'!AE80),\"\",'TA Indicator Bank'!AE80)","v":0},{"$f":"IF(ISBLANK('TA Indicator Bank'!AF80),\"\",'TA Indicator Bank'!AF80)","v":0},{"$f":"IF(ISBLANK('TA Indicator Bank'!AG80),\"\",'TA Indicator Bank'!AG80)","v":0},{"$f":"IF(ISBLANK('TA Indicator Bank'!AH80),\"\",'TA Indicator Bank'!AH80)","v":0},{"$f":"IF(ISBLANK('TA Indicator Bank'!AI80),\"\",'TA Indicator Bank'!AI80)","v":0},{"$f":"IF(ISBLANK('TA Indicator Bank'!AJ80),\"\",'TA Indicator Bank'!AJ80)","v":0},{"$f":"IF(ISBLANK('TA Indicator Bank'!AK80),\"\",'TA Indicator Bank'!AK80)","v":0},{"$f":"IF(ISBLANK('TA Indicator Bank'!AL80),\"\",'TA Indicator Bank'!AL80)","v":0},{"$f":"IF(ISBLANK('TA Indicator Bank'!AM80),\"\",'TA Indicator Bank'!AM80)","v":0},{"$f":"IF(ISBLANK('TA Indicator Bank'!AN80),\"\",'TA Indicator Bank'!AN80)","v":0},{"$f":"IF(ISBLANK('TA Indicator Bank'!AO80),\"\",'TA Indicator Bank'!AO80)","v":0},{"$f":"IF(ISBLANK('TA Indicator Bank'!AP80),\"\",'TA Indicator Bank'!AP80)","v":0},{"$f":"IF(ISBLANK('TA Indicator Bank'!AQ80),\"\",'TA Indicator Bank'!AQ80)","v":0},{"$f":"IF(ISBLANK('TA Indicator Bank'!AR80),\"\",'TA Indicator Bank'!AR80)","v":1},{"$f":"IF(ISBLANK('TA Indicator Bank'!AS80),\"\",'TA Indicator Bank'!AS80)","v":0},{"$f":"IF(ISBLANK('TA Indicator Bank'!AT80),\"\",'TA Indicator Bank'!AT80)","v":0},{"$f":"IF(AND(J84=1,J$410=1),1,0)","v":0},{"$f":"IF(AND(K84=1,K$410=1),1,0)","v":0},{"$f":"IF(AND(L84=1,L$410=1),1,0)","v":0},{"$f":"IF(AND(M84=1,M$410=1),1,0)","v":0},{"$f":"IF(AND(N84=1,N$410=1),1,0)","v":0},{"$f":"IF(AND(O84=1,O$410=1),1,0)","v":0},{"$f":"IF(AND(P84=1,P$410=1),1,0)","v":0},{"$f":"IF(AND(Q84=1,Q$410=1),1,0)","v":0},{"$f":"IF(AND(R84=1,R$410=1),1,0)","v":0},{"$f":"IF(AND(S84=1,S$410=1),1,0)","v":0},{"$f":"IF(AND(T84=1,T$410=1),1,0)","v":0},{"$f":"IF(AND(U84=1,U$410=1),1,0)","v":0},{"$f":"IF(AND(V84=1,V$410=1),1,0)","v":0},{"$f":"IF(AND(W84=1,W$410=1),1,0)","v":0},1,{"$f":"IF(AND(X84=1,X$410=1),1,0)","v":1},{"$f":"IF(AND(Y84=1,Y$410=1),1,0)","v":0},{"$f":"IF(AND(Z84=1,Z$410=1),1,0)","v":0},{"$f":"IF(AND(AA84=1,AA$410=1),1,0)","v":0},{"$f":"IF(AND(AB84=1,AB$410=1),1,0)","v":0},{"$f":"IF(AND(AC84=1,AC$410=1),1,0)","v":0},{"$f":"IF(AND(AD84=1,AD$410=1),1,0)","v":0},{"$f":"IF(AND(AE84=1,AE$410=1),1,0)","v":0},{"$f":"IF(AND(AF84=1,AF$410=1),1,0)","v":0},1,{"$f":"IF(AND(AG84=1,AG$410=1),1,0)","v":0},{"$f":"IF(AND(AH84=1,AH$410=1),1,0)","v":0},{"$f":"IF(AND(AI84=1,AI$410=1),1,0)","v":0},{"$f":"IF(AND(AJ84=1,AJ$410=1),1,0)","v":0},{"$f":"IF(AND(AK84=1,AK$410=1),1,0)","v":0},{"$f":"IF(AND(AL84=1,AL$410=1),1,0)","v":0},{"$f":"IF(AND(AM84=1,AM$410=1),1,0)","v":0},{"$f":"IF(AND(AN84=1,AN$410=1),1,0)","v":0},{"$f":"IF(AND(AO84=1,AO$410=1),1,0)","v":0},1,{"$f":"IF(AND(AP84=1,AP$410=1),1,0)","v":0},{"$f":"IF(AND(AQ84=1,AQ$410=1),1,0)","v":0},{"$f":"IF(AND(AR84=1,AR$410=1),1,0)","v":1},{"$f":"IF(AND(AS84=1,AS$410=1),1,0)","v":0},{"$f":"IF(AND(AT84=1,AT$410=1),1,0)","v":0},1,1,76,76,{"$f":"IFERROR(SMALL($CL$9:$CL$408,CK84),\"\")","v":76},{"$f":"IFERROR(INDEX($B$9:$I$408,$CM84,COLUMNS($CN$9:CN84)),\"\")","v":"TA076"},{"$f":"IFERROR(INDEX($B$9:$I$408,$CM84,COLUMNS($CN$9:CO84)),\"\")","v":"Number of (countries with) approved process plans"},{"$f":"IFERROR(INDEX($B$9:$I$408,$CM84,COLUMNS($CN$9:CP84)),\"\")","v":"Can be assessed based on the number of plans themselves, or at the country level (if multiple organisations within a country may develop plans)"},{"$f":"IFERROR(INDEX($B$9:$I$408,$CM84,COLUMNS($CN$9:CQ84)),\"\")","v":"Output"},{"$f":"IFERROR(INDEX($B$9:$I$408,$CM84,COLUMNS($CN$9:CR84)),\"\")","v":"-"},{"$f":"IFERROR(INDEX($B$9:$I$408,$CM84,COLUMNS($CN$9:CS84)),\"\")","v":"Capacity building: Institutional capacity"},{"$f":"IFERROR(INDEX($B$9:$I$408,$CM84,COLUMNS($CN$9:CT84)),\"\")","v":"-"},{"$f":"IFERROR(INDEX($B$9:$I$408,$CM84,COLUMNS($CN$9:CU84)),\"\")","v":"Number"}]
[null,{"$f":"IF(ISBLANK('TA Indicator Bank'!B81),\"\",'TA Indicator Bank'!B81)","v":"TA077"},{"$f":"IF(ISBLANK('TA Indicator Bank'!C81),\"\",'TA Indicator Bank'!C81)","v":"Percentage of approved funding disbursed from programme to supported beneficiaries"},{"$f":"IF(ISBLANK('TA Indicator Bank'!D81),\"\",'TA Indicator Bank'!D81)","v":"-"},{"$f":"IF(ISBLANK('TA Indicator Bank'!E81),\"\",'TA Indicator Bank'!E81)","v":"Output"},{"$f":"IF(ISBLANK('TA Indicator Bank'!F81),\"\",'TA Indicator Bank'!F81)","v":"-"},{"$f":"IF(ISBLANK('TA Indicator Bank'!G81),\"\",'TA Indicator Bank'!G81)","v":"Capacity building: Institutional capacity"},{"$f":"IF(ISBLANK('TA Indicator Bank'!H81),\"\",'TA Indicator Bank'!H81)","v":"-"},{"$f":"IF(ISBLANK('TA Indicator Bank'!I81),\"\",'TA Indicator Bank'!I81)","v":"Percentage"},{"$f":"IF(ISBLANK('TA Indicator Bank'!J81),\"\",'TA Indicator Bank'!J81)","v":0},{"$f":"IF(ISBLANK('TA Indicator Bank'!K81),\"\",'TA Indicator Bank'!K81)","v":0},{"$f":"IF(ISBLANK('TA Indicator Bank'!L81),\"\",'TA Indicator Bank'!L81)","v":0},{"$f":"IF(ISBLANK('TA Indicator Bank'!M81),\"\",'TA Indicator Bank'!M81)","v":0},{"$f":"IF(ISBLANK('TA Indicator Bank'!N81),\"\",'TA Indicator Bank'!N81)","v":0},{"$f":"IF(ISBLANK('TA Indicator Bank'!O81),\"\",'TA Indicator Bank'!O81)","v":0},{"$f":"IF(ISBLANK('TA Indicator Bank'!P81),\"\",'TA Indicator Bank'!P81)","v":0},{"$f":"IF(ISBLANK('TA Indicator Bank'!Q81),\"\",'TA Indicator Bank'!Q81)","v":0},{"$f":"IF(ISBLANK('TA Indicator Bank'!R81),\"\",'TA Indicator Bank'!R81)","v":0},{"$f":"IF(ISBLANK('TA Indicator Bank'!S81),\"\",'TA Indicator Bank'!S81)","v":0},{"$f":"IF(ISBLANK('TA Indicator Bank'!T81),\"\",'TA Indicator Bank'!T81)","v":0},{"$f":"IF(ISBLANK('TA Indicator Bank'!U81),\"\",'TA Indicator Bank'!U81)","v":0},{"$f":"IF(ISBLANK('TA Indicator Bank'!V81),\"\",'TA Indicator Bank'!V81)","v":0},{"$f":"IF(ISBLANK('TA Indicator Bank'!W81),\"\",'TA Indicator Bank'!W81)","v":0},{"$f":"IF(ISBLANK('TA Indicator Bank'!X81),\"\",'TA Indicator Bank'!X81)","v":1},{"$f":"IF(ISBLANK('TA Indicator Bank'!Y81),\"\",'TA Indicator Bank'!Y81)","v":0},{"$f":"IF(ISBLANK('TA Indicator Bank'!Z81),\"\",'TA Indicator Bank'!Z81)","v":0},{"$f":"IF(ISBLANK('TA Indicator Bank'!AA81),\"\",'TA Indicator Bank'!AA81)","v":0},{"$f":"IF(ISBLANK('TA Indicator Bank'!AB81),\"\",'TA Indicator Bank'!AB81)","v":0},{"$f":"IF(ISBLANK('TA Indicator Bank'!AC81),\"\",'TA Indicator Bank'!AC81)","v":0},{"$f":"IF(ISBLANK('TA Indicator Bank'!AD81),\"\",'TA Indicator Bank'!AD81)","v":0},{"$f":"IF(ISBLANK('TA Indicator Bank'!AE81),\"\",'TA Indicator Bank'!AE81)","v":0},{"$f":"IF(ISBLANK('TA Indicator Bank'!AF81),\"\",'TA Indicator Bank'!AF81)","v":0},{"$f":"IF(ISBLANK('TA Indicator Bank'!AG81),\"\",'TA Indicator Bank'!AG81)","v":0},{"$f":"IF(ISBLANK('TA Indicator Bank'!AH81),\"\",'TA Indicator Bank'!AH81)","v":0},{"$f":"IF(ISBLANK('TA Indicator Bank'!AI81),\"\",'TA Indicator Bank'!AI81)","v":0},{"$f":"IF(ISBLANK('TA Indicator Bank'!AJ81),\"\",'TA Indicator Bank'!AJ81)","v":0},{"$f":"IF(ISBLANK('TA Indicator Bank'!AK81),\"\",'TA Indicator Bank'!AK81)","v":0},{"$f":"IF(ISBLANK('TA Indicator Bank'!AL81),\"\",'TA Indicator Bank'!AL81)","v":0},{"$f":"IF(ISBLANK('TA Indicator Bank'!AM81),\"\",'TA Indicator Bank'!AM81)","v":0},{"$f":"IF(ISBLANK('TA Indicator Bank'!AN81),\"\",'TA Indicator Bank'!AN81)","v":0},{"$f":"IF(ISBLANK('TA Indicator Bank'!AO81),\"\",'TA Indicator Bank'!AO81)","v":0},{"$f":"IF(ISBLANK('TA Indicator Bank'!AP81),\"\",'TA Indicator Bank'!AP81)","v":0},{"$f":"IF(ISBLANK('TA Indicator Bank'!AQ81),\"\",'TA Indicator Bank'!AQ81)","v":0},{"$f":"IF(ISBLANK('TA Indicator Bank'!AR81),\"\",'TA Indicator Bank'!AR81)","v":1},{"$f":"IF(ISBLANK('TA Indicator Bank'!AS81),\"\",'TA Indicator Bank'!AS81)","v":0},{"$f":"IF(ISBLANK('TA Indicator Bank'!AT81),\"\",'TA Indicator Bank'!AT81)","v":0},{"$f":"IF(AND(J85=1,J$410=1),1,0)","v":0},{"$f":"IF(AND(K85=1,K$410=1),1,0)","v":0},{"$f":"IF(AND(L85=1,L$410=1),1,0)","v":0},{"$f":"IF(AND(M85=1,M$410=1),1,0)","v":0},{"$f":"IF(AND(N85=1,N$410=1),1,0)","v":0},{"$f":"IF(AND(O85=1,O$410=1),1,0)","v":0},{"$f":"IF(AND(P85=1,P$410=1),1,0)","v":0},{"$f":"IF(AND(Q85=1,Q$410=1),1,0)","v":0},{"$f":"IF(AND(R85=1,R$410=1),1,0)","v":0},{"$f":"IF(AND(S85=1,S$410=1),1,0)","v":0},{"$f":"IF(AND(T85=1,T$410=1),1,0)","v":0},{"$f":"IF(AND(U85=1,U$410=1),1,0)","v":0},{"$f":"IF(AND(V85=1,V$410=1),1,0)","v":0},{"$f":"IF(AND(W85=1,W$410=1),1,0)","v":0},1,{"$f":"IF(AND(X85=1,X$410=1),1,0)","v":1},{"$f":"IF(AND(Y85=1,Y$410=1),1,0)","v":0},{"$f":"IF(AND(Z85=1,Z$410=1),1,0)","v":0},{"$f":"IF(AND(AA85=1,AA$410=1),1,0)","v":0},{"$f":"IF(AND(AB85=1,AB$410=1),1,0)","v":0},{"$f":"IF(AND(AC85=1,AC$410=1),1,0)","v":0},{"$f":"IF(AND(AD85=1,AD$410=1),1,0)","v":0},{"$f":"IF(AND(AE85=1,AE$410=1),1,0)","v":0},{"$f":"IF(AND(AF85=1,AF$410=1),1,0)","v":0},1,{"$f":"IF(AND(AG85=1,AG$410=1),1,0)","v":0},{"$f":"IF(AND(AH85=1,AH$410=1),1,0)","v":0},{"$f":"IF(AND(AI85=1,AI$410=1),1,0)","v":0},{"$f":"IF(AND(AJ85=1,AJ$410=1),1,0)","v":0},{"$f":"IF(AND(AK85=1,AK$410=1),1,0)","v":0},{"$f":"IF(AND(AL85=1,AL$410=1),1,0)","v":0},{"$f":"IF(AND(AM85=1,AM$410=1),1,0)","v":0},{"$f":"IF(AND(AN85=1,AN$410=1),1,0)","v":0},{"$f":"IF(AND(AO85=1,AO$410=1),1,0)","v":0},1,{"$f":"IF(AND(AP85=1,AP$410=1),1,0)","v":0},{"$f":"IF(AND(AQ85=1,AQ$410=1),1,0)","v":0},{"$f":"IF(AND(AR85=1,AR$410=1),1,0)","v":1},{"$f":"IF(AND(AS85=1,AS$410=1),1,0)","v":0},{"$f":"IF(AND(AT85=1,AT$410=1),1,0)","v":0},1,1,77,77,{"$f":"IFERROR(SMALL($CL$9:$CL$408,CK85),\"\")","v":77},{"$f":"IFERROR(INDEX($B$9:$I$408,$CM85,COLUMNS($CN$9:CN85)),\"\")","v":"TA077"},{"$f":"IFERROR(INDEX($B$9:$I$408,$CM85,COLUMNS($CN$9:CO85)),\"\")","v":"Percentage of approved funding disbursed from programme to supported beneficiaries"},{"$f":"IFERROR(INDEX($B$9:$I$408,$CM85,COLUMNS($CN$9:CP85)),\"\")","v":"-"},{"$f":"IFERROR(INDEX($B$9:$I$408,$CM85,COLUMNS($CN$9:CQ85)),\"\")","v":"Output"},{"$f":"IFERROR(INDEX($B$9:$I$408,$CM85,COLUMNS($CN$9:CR85)),\"\")","v":"-"},{"$f":"IFERROR(INDEX($B$9:$I$408,$CM85,COLUMNS($CN$9:CS85)),\"\")","v":"Capacity building: Institutional capacity"},{"$f":"IFERROR(INDEX($B$9:$I$408,$CM85,COLUMNS($CN$9:CT85)),\"\")","v":"-"},{"$f":"IFERROR(INDEX($B$9:$I$408,$CM85,COLUMNS($CN$9:CU85)),\"\")","v":"Percentage"}]
[null,{"$f":"IF(ISBLANK('TA Indicator Bank'!B82),\"\",'TA Indicator Bank'!B82)","v":"TA078"},{"$f":"IF(ISBLANK('TA Indicator Bank'!C82),\"\",'TA Indicator Bank'!C82)","v":"Number of events or reports that share lessons learned on institution building"},{"$f":"IF(ISBLANK('TA Indicator Bank'!D82),\"\",'TA Indicator Bank'!D82)","v":"-"},{"$f":"IF(ISBLANK('TA Indicator Bank'!E82),\"\",'TA Indicator Bank'!E82)","v":"Output"},{"$f":"IF(ISBLANK('TA Indicator Bank'!F82),\"\",'TA Indicator Bank'!F82)","v":"-"},{"$f":"IF(ISBLANK('TA Indicator Bank'!G82),\"\",'TA Indicator Bank'!G82)","v":"Capacity building: Institutional capacity"},{"$f":"IF(ISBLANK('TA Indicator Bank'!H82),\"\",'TA Indicator Bank'!H82)","v":"-"},{"$f":"IF(ISBLANK('TA Indicator Bank'!I82),\"\",'TA Indicator Bank'!I82)","v":"Number"},{"$f":"IF(ISBLANK('TA Indicator Bank'!J82),\"\",'TA Indicator Bank'!J82)","v":0},{"$f":"IF(ISBLANK('TA Indicator Bank'!K82),\"\",'TA Indicator Bank'!K82)","v":0},{"$f":"IF(ISBLANK('TA Indicator Bank'!L82),\"\",'TA Indicator Bank'!L82)","v":0},{"$f":"IF(ISBLANK('TA Indicator Bank'!M82),\"\",'TA Indicator Bank'!M82)","v":0},{"$f":"IF(ISBLANK('TA Indicator Bank'!N82),\"\",'TA Indicator Bank'!N82)","v":0},{"$f":"IF(ISBLANK('TA Indicator Bank'!O82),\"\",'TA Indicator Bank'!O82)","v":0},{"$f":"IF(ISBLANK('TA Indicator Bank'!P82),\"\",'TA Indicator Bank'!P82)","v":0},{"$f":"IF(ISBLANK('TA Indicator Bank'!Q82),\"\",'TA Indicator Bank'!Q82)","v":0},{"$f":"IF(ISBLANK('TA Indicator Bank'!R82),\"\",'TA Indicator Bank'!R82)","v":0},{"$f":"IF(ISBLANK('TA Indicator Bank'!S82),\"\",'TA Indicator Bank'!S82)","v":0},{"$f":"IF(ISBLANK('TA Indicator Bank'!T82),\"\",'TA Indicator Bank'!T82)","v":0},{"$f":"IF(ISBLANK('TA Indicator Bank'!U82),\"\",'TA Indicator Bank'!U82)","v":0},{"$f":"IF(ISBLANK('TA Indicator Bank'!V82),\"\",'TA Indicator Bank'!V82)","v":0},{"$f":"IF(ISBLANK('TA Indicator Bank'!W82),\"\",'TA Indicator Bank'!W82)","v":0},{"$f":"IF(ISBLANK('TA Indicator Bank'!X82),\"\",'TA Indicator Bank'!X82)","v":1},{"$f":"IF(ISBLANK('TA Indicator Bank'!Y82),\"\",'TA Indicator Bank'!Y82)","v":0},{"$f":"IF(ISBLANK('TA Indicator Bank'!Z82),\"\",'TA Indicator Bank'!Z82)","v":0},{"$f":"IF(ISBLANK('TA Indicator Bank'!AA82),\"\",'TA Indicator Bank'!AA82)","v":0},{"$f":"IF(ISBLANK('TA Indicator Bank'!AB82),\"\",'TA Indicator Bank'!AB82)","v":0},{"$f":"IF(ISBLANK('TA Indicator Bank'!AC82),\"\",'TA Indicator Bank'!AC82)","v":0},{"$f":"IF(ISBLANK('TA Indicator Bank'!AD82),\"\",'TA Indicator Bank'!AD82)","v":0},{"$f":"IF(ISBLANK('TA Indicator Bank'!AE82),\"\",'TA Indicator Bank'!AE82)","v":0},{"$f":"IF(ISBLANK('TA Indicator Bank'!AF82),\"\",'TA Indicator Bank'!AF82)","v":0},{"$f":"IF(ISBLANK('TA Indicator Bank'!AG82),\"\",'TA Indicator Bank'!AG82)","v":0},{"$f":"IF(ISBLANK('TA Indicator Bank'!AH82),\"\",'TA Indicator Bank'!AH82)","v":0},{"$f":"IF(ISBLANK('TA Indicator Bank'!AI82),\"\",'TA Indicator Bank'!AI82)","v":0},{"$f":"IF(ISBLANK('TA Indicator Bank'!AJ82),\"\",'TA Indicator Bank'!AJ82)","v":0},{"$f":"IF(ISBLANK('TA Indicator Bank'!AK82),\"\",'TA Indicator Bank'!AK82)","v":0},{"$f":"IF(ISBLANK('TA Indicator Bank'!AL82),\"\",'TA Indicator Bank'!AL82)","v":0},{"$f":"IF(ISBLANK('TA Indicator Bank'!AM82),\"\",'TA Indicator Bank'!AM82)","v":0},{"$f":"IF(ISBLANK('TA Indicator Bank'!AN82),\"\",'TA Indicator Bank'!AN82)","v":0},{"$f":"IF(ISBLANK('TA Indicator Bank'!AO82),\"\",'TA Indicator Bank'!AO82)","v":0},{"$f":"IF(ISBLANK('TA Indicator Bank'!AP82),\"\",'TA Indicator Bank'!AP82)","v":0},{"$f":"IF(ISBLANK('TA Indicator Bank'!AQ82),\"\",'TA Indicator Bank'!AQ82)","v":0},{"$f":"IF(ISBLANK('TA Indicator Bank'!AR82),\"\",'TA Indicator Bank'!AR82)","v":1},{"$f":"IF(ISBLANK('TA Indicator Bank'!AS82),\"\",'TA Indicator Bank'!AS82)","v":0},{"$f":"IF(ISBLANK('TA Indicator Bank'!AT82),\"\",'TA Indicator Bank'!AT82)","v":0},{"$f":"IF(AND(J86=1,J$410=1),1,0)","v":0},{"$f":"IF(AND(K86=1,K$410=1),1,0)","v":0},{"$f":"IF(AND(L86=1,L$410=1),1,0)","v":0},{"$f":"IF(AND(M86=1,M$410=1),1,0)","v":0},{"$f":"IF(AND(N86=1,N$410=1),1,0)","v":0},{"$f":"IF(AND(O86=1,O$410=1),1,0)","v":0},{"$f":"IF(AND(P86=1,P$410=1),1,0)","v":0},{"$f":"IF(AND(Q86=1,Q$410=1),1,0)","v":0},{"$f":"IF(AND(R86=1,R$410=1),1,0)","v":0},{"$f":"IF(AND(S86=1,S$410=1),1,0)","v":0},{"$f":"IF(AND(T86=1,T$410=1),1,0)","v":0},{"$f":"IF(AND(U86=1,U$410=1),1,0)","v":0},{"$f":"IF(AND(V86=1,V$410=1),1,0)","v":0},{"$f":"IF(AND(W86=1,W$410=1),1,0)","v":0},1,{"$f":"IF(AND(X86=1,X$410=1),1,0)","v":1},{"$f":"IF(AND(Y86=1,Y$410=1),1,0)","v":0},{"$f":"IF(AND(Z86=1,Z$410=1),1,0)","v":0},{"$f":"IF(AND(AA86=1,AA$410=1),1,0)","v":0},{"$f":"IF(AND(AB86=1,AB$410=1),1,0)","v":0},{"$f":"IF(AND(AC86=1,AC$410=1),1,0)","v":0},{"$f":"IF(AND(AD86=1,AD$410=1),1,0)","v":0},{"$f":"IF(AND(AE86=1,AE$410=1),1,0)","v":0},{"$f":"IF(AND(AF86=1,AF$410=1),1,0)","v":0},1,{"$f":"IF(AND(AG86=1,AG$410=1),1,0)","v":0},{"$f":"IF(AND(AH86=1,AH$410=1),1,0)","v":0},{"$f":"IF(AND(AI86=1,AI$410=1),1,0)","v":0},{"$f":"IF(AND(AJ86=1,AJ$410=1),1,0)","v":0},{"$f":"IF(AND(AK86=1,AK$410=1),1,0)","v":0},{"$f":"IF(AND(AL86=1,AL$410=1),1,0)","v":0},{"$f":"IF(AND(AM86=1,AM$410=1),1,0)","v":0},{"$f":"IF(AND(AN86=1,AN$410=1),1,0)","v":0},{"$f":"IF(AND(AO86=1,AO$410=1),1,0)","v":0},1,{"$f":"IF(AND(AP86=1,AP$410=1),1,0)","v":0},{"$f":"IF(AND(AQ86=1,AQ$410=1),1,0)","v":0},{"$f":"IF(AND(AR86=1,AR$410=1),1,0)","v":1},{"$f":"IF(AND(AS86=1,AS$410=1),1,0)","v":0},{"$f":"IF(AND(AT86=1,AT$410=1),1,0)","v":0},1,1,78,78,{"$f":"IFERROR(SMALL($CL$9:$CL$408,CK86),\"\")","v":78},{"$f":"IFERROR(INDEX($B$9:$I$408,$CM86,COLUMNS($CN$9:CN86)),\"\")","v":"TA078"},{"$f":"IFERROR(INDEX($B$9:$I$408,$CM86,COLUMNS($CN$9:CO86)),\"\")","v":"Number of events or reports that share lessons learned on institution building"},{"$f":"IFERROR(INDEX($B$9:$I$408,$CM86,COLUMNS($CN$9:CP86)),\"\")","v":"-"},{"$f":"IFERROR(INDEX($B$9:$I$408,$CM86,COLUMNS($CN$9:CQ86)),\"\")","v":"Output"},{"$f":"IFERROR(INDEX($B$9:$I$408,$CM86,COLUMNS($CN$9:CR86)),\"\")","v":"-"},{"$f":"IFERROR(INDEX($B$9:$I$408,$CM86,COLUMNS($CN$9:CS86)),\"\")","v":"Capacity building: Institutional capacity"},{"$f":"IFERROR(INDEX($B$9:$I$408,$CM86,COLUMNS($CN$9:CT86)),\"\")","v":"-"},{"$f":"IFERROR(INDEX($B$9:$I$408,$CM86,COLUMNS($CN$9:CU86)),\"\")","v":"Number"}]
[null,{"$f":"IF(ISBLANK('TA Indicator Bank'!B83),\"\",'TA Indicator Bank'!B83)","v":"TA079"},{"$f":"IF(ISBLANK('TA Indicator Bank'!C83),\"\",'TA Indicator Bank'!C83)","v":"Number of policies, regulations and standards adopted or amended due to programme support"},{"$f":"IF(ISBLANK('TA Indicator Bank'!D83),\"\",'TA Indicator Bank'!D83)","v":"-"},{"$f":"IF(ISBLANK('TA Indicator Bank'!E83),\"\",'TA Indicator Bank'!E83)","v":"Outcome"},{"$f":"IF(ISBLANK('TA Indicator Bank'!F83),\"\",'TA Indicator Bank'!F83)","v":"-"},{"$f":"IF(ISBLANK('TA Indicator Bank'!G83),\"\",'TA Indicator Bank'!G83)","v":"-"},{"$f":"IF(ISBLANK('TA Indicator Bank'!H83),\"\",'TA Indicator Bank'!H83)","v":"Increased or improved policy development or execution"},{"$f":"IF(ISBLANK('TA Indicator Bank'!I83),\"\",'TA Indicator Bank'!I83)","v":"Number"},{"$f":"IF(ISBLANK('TA Indicator Bank'!J83),\"\",'TA Indicator Bank'!J83)","v":0},{"$f":"IF(ISBLANK('TA Indicator Bank'!K83),\"\",'TA Indicator Bank'!K83)","v":0},{"$f":"IF(ISBLANK('TA Indicator Bank'!L83),\"\",'TA Indicator Bank'!L83)","v":0},{"$f":"IF(ISBLANK('TA Indicator Bank'!M83),\"\",'TA Indicator Bank'!M83)","v":0},{"$f":"IF(ISBLANK('TA Indicator Bank'!N83),\"\",'TA Indicator Bank'!N83)","v":0},{"$f":"IF(ISBLANK('TA Indicator Bank'!O83),\"\",'TA Indicator Bank'!O83)","v":0},{"$f":"IF(ISBLANK('TA Indicator Bank'!P83),\"\",'TA Indicator Bank'!P83)","v":0},{"$f":"IF(ISBLANK('TA Indicator Bank'!Q83),\"\",'TA Indicator Bank'!Q83)","v":0},{"$f":"IF(ISBLANK('TA Indicator Bank'!R83),\"\",'TA Indicator Bank'!R83)","v":0},{"$f":"IF(ISBLANK('TA Indicator Bank'!S83),\"\",'TA Indicator Bank'!S83)","v":0},{"$f":"IF(ISBLANK('TA Indicator Bank'!T83),\"\",'TA Indicator Bank'!T83)","v":0},{"$f":"IF(ISBLANK('TA Indicator Bank'!U83),\"\",'TA Indicator Bank'!U83)","v":0},{"$f":"IF(ISBLANK('TA Indicator Bank'!V83),\"\",'TA Indicator Bank'!V83)","v":0},{"$f":"IF(ISBLANK('TA Indicator Bank'!W83),\"\",'TA Indicator Bank'!W83)","v":0},{"$f":"IF(ISBLANK('TA Indicator Bank'!X83),\"\",'TA Indicator Bank'!X83)","v":0},{"$f":"IF(ISBLANK('TA Indicator Bank'!Y83),\"\",'TA Indicator Bank'!Y83)","v":0},{"$f":"IF(ISBLANK('TA Indicator Bank'!Z83),\"\",'TA Indicator Bank'!Z83)","v":0},{"$f":"IF(ISBLANK('TA Indicator Bank'!AA83),\"\",'TA Indicator Bank'!AA83)","v":0},{"$f":"IF(ISBLANK('TA Indicator Bank'!AB83),\"\",'TA Indicator Bank'!AB83)","v":0},{"$f":"IF(ISBLANK('TA Indicator Bank'!AC83),\"\",'TA Indicator Bank'!AC83)","v":0},{"$f":"IF(ISBLANK('TA Indicator Bank'!AD83),\"\",'TA Indicator Bank'!AD83)","v":0},{"$f":"IF(ISBLANK('TA Indicator Bank'!AE83),\"\",'TA Indicator Bank'!AE83)","v":0},{"$f":"IF(ISBLANK('TA Indicator Bank'!AF83),\"\",'TA Indicator Bank'!AF83)","v":0},{"$f":"IF(ISBLANK('TA Indicator Bank'!AG83),\"\",'TA Indicator Bank'!AG83)","v":1},{"$f":"IF(ISBLANK('TA Indicator Bank'!AH83),\"\",'TA Indicator Bank'!AH83)","v":0},{"$f":"IF(ISBLANK('TA Indicator Bank'!AI83),\"\",'TA Indicator Bank'!AI83)","v":0},{"$f":"IF(ISBLANK('TA Indicator Bank'!AJ83),\"\",'TA Indicator Bank'!AJ83)","v":0},{"$f":"IF(ISBLANK('TA Indicator Bank'!AK83),\"\",'TA Indicator Bank'!AK83)","v":0},{"$f":"IF(ISBLANK('TA Indicator Bank'!AL83),\"\",'TA Indicator Bank'!AL83)","v":0},{"$f":"IF(ISBLANK('TA Indicator Bank'!AM83),\"\",'TA Indicator Bank'!AM83)","v":0},{"$f":"IF(ISBLANK('TA Indicator Bank'!AN83),\"\",'TA Indicator Bank'!AN83)","v":0},{"$f":"IF(ISBLANK('TA Indicator Bank'!AO83),\"\",'TA Indicator Bank'!AO83)","v":0},{"$f":"IF(ISBLANK('TA Indicator Bank'!AP83),\"\",'TA Indicator Bank'!AP83)","v":0},{"$f":"IF(ISBLANK('TA Indicator Bank'!AQ83),\"\",'TA Indicator Bank'!AQ83)","v":0},{"$f":"IF(ISBLANK('TA Indicator Bank'!AR83),\"\",'TA Indicator Bank'!AR83)","v":0},{"$f":"IF(ISBLANK('TA Indicator Bank'!AS83),\"\",'TA Indicator Bank'!AS83)","v":1},{"$f":"IF(ISBLANK('TA Indicator Bank'!AT83),\"\",'TA Indicator Bank'!AT83)","v":0},{"$f":"IF(AND(J87=1,J$410=1),1,0)","v":0},{"$f":"IF(AND(K87=1,K$410=1),1,0)","v":0},{"$f":"IF(AND(L87=1,L$410=1),1,0)","v":0},{"$f":"IF(AND(M87=1,M$410=1),1,0)","v":0},{"$f":"IF(AND(N87=1,N$410=1),1,0)","v":0},{"$f":"IF(AND(O87=1,O$410=1),1,0)","v":0},{"$f":"IF(AND(P87=1,P$410=1),1,0)","v":0},{"$f":"IF(AND(Q87=1,Q$410=1),1,0)","v":0},{"$f":"IF(AND(R87=1,R$410=1),1,0)","v":0},{"$f":"IF(AND(S87=1,S$410=1),1,0)","v":0},{"$f":"IF(AND(T87=1,T$410=1),1,0)","v":0},{"$f":"IF(AND(U87=1,U$410=1),1,0)","v":0},{"$f":"IF(AND(V87=1,V$410=1),1,0)","v":0},{"$f":"IF(AND(W87=1,W$410=1),1,0)","v":0},1,{"$f":"IF(AND(X87=1,X$410=1),1,0)","v":0},{"$f":"IF(AND(Y87=1,Y$410=1),1,0)","v":0},{"$f":"IF(AND(Z87=1,Z$410=1),1,0)","v":0},{"$f":"IF(AND(AA87=1,AA$410=1),1,0)","v":0},{"$f":"IF(AND(AB87=1,AB$410=1),1,0)","v":0},{"$f":"IF(AND(AC87=1,AC$410=1),1,0)","v":0},{"$f":"IF(AND(AD87=1,AD$410=1),1,0)","v":0},{"$f":"IF(AND(AE87=1,AE$410=1),1,0)","v":0},{"$f":"IF(AND(AF87=1,AF$410=1),1,0)","v":0},1,{"$f":"IF(AND(AG87=1,AG$410=1),1,0)","v":1},{"$f":"IF(AND(AH87=1,AH$410=1),1,0)","v":0},{"$f":"IF(AND(AI87=1,AI$410=1),1,0)","v":0},{"$f":"IF(AND(AJ87=1,AJ$410=1),1,0)","v":0},{"$f":"IF(AND(AK87=1,AK$410=1),1,0)","v":0},{"$f":"IF(AND(AL87=1,AL$410=1),1,0)","v":0},{"$f":"IF(AND(AM87=1,AM$410=1),1,0)","v":0},{"$f":"IF(AND(AN87=1,AN$410=1),1,0)","v":0},{"$f":"IF(AND(AO87=1,AO$410=1),1,0)","v":0},1,{"$f":"IF(AND(AP87=1,AP$410=1),1,0)","v":0},{"$f":"IF(AND(AQ87=1,AQ$410=1),1,0)","v":0},{"$f":"IF(AND(AR87=1,AR$410=1),1,0)","v":0},{"$f":"IF(AND(AS87=1,AS$410=1),1,0)","v":1},{"$f":"IF(AND(AT87=1,AT$410=1),1,0)","v":0},1,1,79,79,{"$f":"IFERROR(SMALL($CL$9:$CL$408,CK87),\"\")","v":79},{"$f":"IFERROR(INDEX($B$9:$I$408,$CM87,COLUMNS($CN$9:CN87)),\"\")","v":"TA079"},{"$f":"IFERROR(INDEX($B$9:$I$408,$CM87,COLUMNS($CN$9:CO87)),\"\")","v":"Number of policies, regulations and standards adopted or amended due to programme support"},{"$f":"IFERROR(INDEX($B$9:$I$408,$CM87,COLUMNS($CN$9:CP87)),\"\")","v":"-"},{"$f":"IFERROR(INDEX($B$9:$I$408,$CM87,COLUMNS($CN$9:CQ87)),\"\")","v":"Outcome"},{"$f":"IFERROR(INDEX($B$9:$I$408,$CM87,COLUMNS($CN$9:CR87)),\"\")","v":"-"},{"$f":"IFERROR(INDEX($B$9:$I$408,$CM87,COLUMNS($CN$9:CS87)),\"\")","v":"-"},{"$f":"IFERROR(INDEX($B$9:$I$408,$CM87,COLUMNS($CN$9:CT87)),\"\")","v":"Increased or improved policy development or execution"},{"$f":"IFERROR(INDEX($B$9:$I$408,$CM87,COLUMNS($CN$9:CU87)),\"\")","v":"Number"}]
[null,{"$f":"IF(ISBLANK('TA Indicator Bank'!B84),\"\",'TA Indicator Bank'!B84)","v":"TA080"},{"$f":"IF(ISBLANK('TA Indicator Bank'!C84),\"\",'TA Indicator Bank'!C84)","v":"Number of recipients or stakeholders that report improved institutional functioning"},{"$f":"IF(ISBLANK('TA Indicator Bank'!D84),\"\",'TA Indicator Bank'!D84)","v":"-"},{"$f":"IF(ISBLANK('TA Indicator Bank'!E84),\"\",'TA Indicator Bank'!E84)","v":"Output"},{"$f":"IF(ISBLANK('TA Indicator Bank'!F84),\"\",'TA Indicator Bank'!F84)","v":"-"},{"$f":"IF(ISBLANK('TA Indicator Bank'!G84),\"\",'TA Indicator Bank'!G84)","v":"Capacity building: Institutional capacity"},{"$f":"IF(ISBLANK('TA Indicator Bank'!H84),\"\",'TA Indicator Bank'!H84)","v":"-"},{"$f":"IF(ISBLANK('TA Indicator Bank'!I84),\"\",'TA Indicator Bank'!I84)","v":"Number"},{"$f":"IF(ISBLANK('TA Indicator Bank'!J84),\"\",'TA Indicator Bank'!J84)","v":0},{"$f":"IF(ISBLANK('TA Indicator Bank'!K84),\"\",'TA Indicator Bank'!K84)","v":0},{"$f":"IF(ISBLANK('TA Indicator Bank'!L84),\"\",'TA Indicator Bank'!L84)","v":0},{"$f":"IF(ISBLANK('TA Indicator Bank'!M84),\"\",'TA Indicator Bank'!M84)","v":0},{"$f":"IF(ISBLANK('TA Indicator Bank'!N84),\"\",'TA Indicator Bank'!N84)","v":0},{"$f":"IF(ISBLANK('TA Indicator Bank'!O84),\"\",'TA Indicator Bank'!O84)","v":0},{"$f":"IF(ISBLANK('TA Indicator Bank'!P84),\"\",'TA Indicator Bank'!P84)","v":0},{"$f":"IF(ISBLANK('TA Indicator Bank'!Q84),\"\",'TA Indicator Bank'!Q84)","v":0},{"$f":"IF(ISBLANK('TA Indicator Bank'!R84),\"\",'TA Indicator Bank'!R84)","v":0},{"$f":"IF(ISBLANK('TA Indicator Bank'!S84),\"\",'TA Indicator Bank'!S84)","v":0},{"$f":"IF(ISBLANK('TA Indicator Bank'!T84),\"\",'TA Indicator Bank'!T84)","v":0},{"$f":"IF(ISBLANK('TA Indicator Bank'!U84),\"\",'TA Indicator Bank'!U84)","v":0},{"$f":"IF(ISBLANK('TA Indicator Bank'!V84),\"\",'TA Indicator Bank'!V84)","v":0},{"$f":"IF(ISBLANK('TA Indicator Bank'!W84),\"\",'TA Indicator Bank'!W84)","v":0},{"$f":"IF(ISBLANK('TA Indicator Bank'!X84),\"\",'TA Indicator Bank'!X84)","v":1},{"$f":"IF(ISBLANK('TA Indicator Bank'!Y84),\"\",'TA Indicator Bank'!Y84)","v":0},{"$f":"IF(ISBLANK('TA Indicator Bank'!Z84),\"\",'TA Indicator Bank'!Z84)","v":0},{"$f":"IF(ISBLANK('TA Indicator Bank'!AA84),\"\",'TA Indicator Bank'!AA84)","v":0},{"$f":"IF(ISBLANK('TA Indicator Bank'!AB84),\"\",'TA Indicator Bank'!AB84)","v":0},{"$f":"IF(ISBLANK('TA Indicator Bank'!AC84),\"\",'TA Indicator Bank'!AC84)","v":0},{"$f":"IF(ISBLANK('TA Indicator Bank'!AD84),\"\",'TA Indicator Bank'!AD84)","v":0},{"$f":"IF(ISBLANK('TA Indicator Bank'!AE84),\"\",'TA Indicator Bank'!AE84)","v":0},{"$f":"IF(ISBLANK('TA Indicator Bank'!AF84),\"\",'TA Indicator Bank'!AF84)","v":0},{"$f":"IF(ISBLANK('TA Indicator Bank'!AG84),\"\",'TA Indicator Bank'!AG84)","v":0},{"$f":"IF(ISBLANK('TA Indicator Bank'!AH84),\"\",'TA Indicator Bank'!AH84)","v":0},{"$f":"IF(ISBLANK('TA Indicator Bank'!AI84),\"\",'TA Indicator Bank'!AI84)","v":0},{"$f":"IF(ISBLANK('TA Indicator Bank'!AJ84),\"\",'TA Indicator Bank'!AJ84)","v":0},{"$f":"IF(ISBLANK('TA Indicator Bank'!AK84),\"\",'TA Indicator Bank'!AK84)","v":0},{"$f":"IF(ISBLANK('TA Indicator Bank'!AL84),\"\",'TA Indicator Bank'!AL84)","v":0},{"$f":"IF(ISBLANK('TA Indicator Bank'!AM84),\"\",'TA Indicator Bank'!AM84)","v":0},{"$f":"IF(ISBLANK('TA Indicator Bank'!AN84),\"\",'TA Indicator Bank'!AN84)","v":0},{"$f":"IF(ISBLANK('TA Indicator Bank'!AO84),\"\",'TA Indicator Bank'!AO84)","v":0},{"$f":"IF(ISBLANK('TA Indicator Bank'!AP84),\"\",'TA Indicator Bank'!AP84)","v":0},{"$f":"IF(ISBLANK('TA Indicator Bank'!AQ84),\"\",'TA Indicator Bank'!AQ84)","v":0},{"$f":"IF(ISBLANK('TA Indicator Bank'!AR84),\"\",'TA Indicator Bank'!AR84)","v":1},{"$f":"IF(ISBLANK('TA Indicator Bank'!AS84),\"\",'TA Indicator Bank'!AS84)","v":0},{"$f":"IF(ISBLANK('TA Indicator Bank'!AT84),\"\",'TA Indicator Bank'!AT84)","v":0},{"$f":"IF(AND(J88=1,J$410=1),1,0)","v":0},{"$f":"IF(AND(K88=1,K$410=1),1,0)","v":0},{"$f":"IF(AND(L88=1,L$410=1),1,0)","v":0},{"$f":"IF(AND(M88=1,M$410=1),1,0)","v":0},{"$f":"IF(AND(N88=1,N$410=1),1,0)","v":0},{"$f":"IF(AND(O88=1,O$410=1),1,0)","v":0},{"$f":"IF(AND(P88=1,P$410=1),1,0)","v":0},{"$f":"IF(AND(Q88=1,Q$410=1),1,0)","v":0},{"$f":"IF(AND(R88=1,R$410=1),1,0)","v":0},{"$f":"IF(AND(S88=1,S$410=1),1,0)","v":0},{"$f":"IF(AND(T88=1,T$410=1),1,0)","v":0},{"$f":"IF(AND(U88=1,U$410=1),1,0)","v":0},{"$f":"IF(AND(V88=1,V$410=1),1,0)","v":0},{"$f":"IF(AND(W88=1,W$410=1),1,0)","v":0},1,{"$f":"IF(AND(X88=1,X$410=1),1,0)","v":1},{"$f":"IF(AND(Y88=1,Y$410=1),1,0)","v":0},{"$f":"IF(AND(Z88=1,Z$410=1),1,0)","v":0},{"$f":"IF(AND(AA88=1,AA$410=1),1,0)","v":0},{"$f":"IF(AND(AB88=1,AB$410=1),1,0)","v":0},{"$f":"IF(AND(AC88=1,AC$410=1),1,0)","v":0},{"$f":"IF(AND(AD88=1,AD$410=1),1,0)","v":0},{"$f":"IF(AND(AE88=1,AE$410=1),1,0)","v":0},{"$f":"IF(AND(AF88=1,AF$410=1),1,0)","v":0},1,{"$f":"IF(AND(AG88=1,AG$410=1),1,0)","v":0},{"$f":"IF(AND(AH88=1,AH$410=1),1,0)","v":0},{"$f":"IF(AND(AI88=1,AI$410=1),1,0)","v":0},{"$f":"IF(AND(AJ88=1,AJ$410=1),1,0)","v":0},{"$f":"IF(AND(AK88=1,AK$410=1),1,0)","v":0},{"$f":"IF(AND(AL88=1,AL$410=1),1,0)","v":0},{"$f":"IF(AND(AM88=1,AM$410=1),1,0)","v":0},{"$f":"IF(AND(AN88=1,AN$410=1),1,0)","v":0},{"$f":"IF(AND(AO88=1,AO$410=1),1,0)","v":0},1,{"$f":"IF(AND(AP88=1,AP$410=1),1,0)","v":0},{"$f":"IF(AND(AQ88=1,AQ$410=1),1,0)","v":0},{"$f":"IF(AND(AR88=1,AR$410=1),1,0)","v":1},{"$f":"IF(AND(AS88=1,AS$410=1),1,0)","v":0},{"$f":"IF(AND(AT88=1,AT$410=1),1,0)","v":0},1,1,80,80,{"$f":"IFERROR(SMALL($CL$9:$CL$408,CK88),\"\")","v":80},{"$f":"IFERROR(INDEX($B$9:$I$408,$CM88,COLUMNS($CN$9:CN88)),\"\")","v":"TA080"},{"$f":"IFERROR(INDEX($B$9:$I$408,$CM88,COLUMNS($CN$9:CO88)),\"\")","v":"Number of recipients or stakeholders that report improved institutional functioning"},{"$f":"IFERROR(INDEX($B$9:$I$408,$CM88,COLUMNS($CN$9:CP88)),\"\")","v":"-"},{"$f":"IFERROR(INDEX($B$9:$I$408,$CM88,COLUMNS($CN$9:CQ88)),\"\")","v":"Output"},{"$f":"IFERROR(INDEX($B$9:$I$408,$CM88,COLUMNS($CN$9:CR88)),\"\")","v":"-"},{"$f":"IFERROR(INDEX($B$9:$I$408,$CM88,COLUMNS($CN$9:CS88)),\"\")","v":"Capacity building: Institutional capacity"},{"$f":"IFERROR(INDEX($B$9:$I$408,$CM88,COLUMNS($CN$9:CT88)),\"\")","v":"-"},{"$f":"IFERROR(INDEX($B$9:$I$408,$CM88,COLUMNS($CN$9:CU88)),\"\")","v":"Number"}]
[null,{"$f":"IF(ISBLANK('TA Indicator Bank'!B85),\"\",'TA Indicator Bank'!B85)","v":"TA081"},{"$f":"IF(ISBLANK('TA Indicator Bank'!C85),\"\",'TA Indicator Bank'!C85)","v":"Average reported satisfaction of countries with capacity support"},{"$f":"IF(ISBLANK('TA Indicator Bank'!D85),\"\",'TA Indicator Bank'!D85)","v":"-"},{"$f":"IF(ISBLANK('TA Indicator Bank'!E85),\"\",'TA Indicator Bank'!E85)","v":"Output"},{"$f":"IF(ISBLANK('TA Indicator Bank'!F85),\"\",'TA Indicator Bank'!F85)","v":"-"},{"$f":"IF(ISBLANK('TA Indicator Bank'!G85),\"\",'TA Indicator Bank'!G85)","v":"Capacity building: Institutional capacity"},{"$f":"IF(ISBLANK('TA Indicator Bank'!H85),\"\",'TA Indicator Bank'!H85)","v":"-"},{"$f":"IF(ISBLANK('TA Indicator Bank'!I85),\"\",'TA Indicator Bank'!I85)","v":"Score"},{"$f":"IF(ISBLANK('TA Indicator Bank'!J85),\"\",'TA Indicator Bank'!J85)","v":0},{"$f":"IF(ISBLANK('TA Indicator Bank'!K85),\"\",'TA Indicator Bank'!K85)","v":0},{"$f":"IF(ISBLANK('TA Indicator Bank'!L85),\"\",'TA Indicator Bank'!L85)","v":0},{"$f":"IF(ISBLANK('TA Indicator Bank'!M85),\"\",'TA Indicator Bank'!M85)","v":0},{"$f":"IF(ISBLANK('TA Indicator Bank'!N85),\"\",'TA Indicator Bank'!N85)","v":0},{"$f":"IF(ISBLANK('TA Indicator Bank'!O85),\"\",'TA Indicator Bank'!O85)","v":0},{"$f":"IF(ISBLANK('TA Indicator Bank'!P85),\"\",'TA Indicator Bank'!P85)","v":0},{"$f":"IF(ISBLANK('TA Indicator Bank'!Q85),\"\",'TA Indicator Bank'!Q85)","v":0},{"$f":"IF(ISBLANK('TA Indicator Bank'!R85),\"\",'TA Indicator Bank'!R85)","v":0},{"$f":"IF(ISBLANK('TA Indicator Bank'!S85),\"\",'TA Indicator Bank'!S85)","v":0},{"$f":"IF(ISBLANK('TA Indicator Bank'!T85),\"\",'TA Indicator Bank'!T85)","v":0},{"$f":"IF(ISBLANK('TA Indicator Bank'!U85),\"\",'TA Indicator Bank'!U85)","v":0},{"$f":"IF(ISBLANK('TA Indicator Bank'!V85),\"\",'TA Indicator Bank'!V85)","v":0},{"$f":"IF(ISBLANK('TA Indicator Bank'!W85),\"\",'TA Indicator Bank'!W85)","v":0},{"$f":"IF(ISBLANK('TA Indicator Bank'!X85),\"\",'TA Indicator Bank'!X85)","v":1},{"$f":"IF(ISBLANK('TA Indicator Bank'!Y85),\"\",'TA Indicator Bank'!Y85)","v":0},{"$f":"IF(ISBLANK('TA Indicator Bank'!Z85),\"\",'TA Indicator Bank'!Z85)","v":0},{"$f":"IF(ISBLANK('TA Indicator Bank'!AA85),\"\",'TA Indicator Bank'!AA85)","v":0},{"$f":"IF(ISBLANK('TA Indicator Bank'!AB85),\"\",'TA Indicator Bank'!AB85)","v":0},{"$f":"IF(ISBLANK('TA Indicator Bank'!AC85),\"\",'TA Indicator Bank'!AC85)","v":0},{"$f":"IF(ISBLANK('TA Indicator Bank'!AD85),\"\",'TA Indicator Bank'!AD85)","v":0},{"$f":"IF(ISBLANK('TA Indicator Bank'!AE85),\"\",'TA Indicator Bank'!AE85)","v":0},{"$f":"IF(ISBLANK('TA Indicator Bank'!AF85),\"\",'TA Indicator Bank'!AF85)","v":0},{"$f":"IF(ISBLANK('TA Indicator Bank'!AG85),\"\",'TA Indicator Bank'!AG85)","v":0},{"$f":"IF(ISBLANK('TA Indicator Bank'!AH85),\"\",'TA Indicator Bank'!AH85)","v":0},{"$f":"IF(ISBLANK('TA Indicator Bank'!AI85),\"\",'TA Indicator Bank'!AI85)","v":0},{"$f":"IF(ISBLANK('TA Indicator Bank'!AJ85),\"\",'TA Indicator Bank'!AJ85)","v":0},{"$f":"IF(ISBLANK('TA Indicator Bank'!AK85),\"\",'TA Indicator Bank'!AK85)","v":0},{"$f":"IF(ISBLANK('TA Indicator Bank'!AL85),\"\",'TA Indicator Bank'!AL85)","v":0},{"$f":"IF(ISBLANK('TA Indicator Bank'!AM85),\"\",'TA Indicator Bank'!AM85)","v":0},{"$f":"IF(ISBLANK('TA Indicator Bank'!AN85),\"\",'TA Indicator Bank'!AN85)","v":0},{"$f":"IF(ISBLANK('TA Indicator Bank'!AO85),\"\",'TA Indicator Bank'!AO85)","v":0},{"$f":"IF(ISBLANK('TA Indicator Bank'!AP85),\"\",'TA Indicator Bank'!AP85)","v":0},{"$f":"IF(ISBLANK('TA Indicator Bank'!AQ85),\"\",'TA Indicator Bank'!AQ85)","v":0},{"$f":"IF(ISBLANK('TA Indicator Bank'!AR85),\"\",'TA Indicator Bank'!AR85)","v":1},{"$f":"IF(ISBLANK('TA Indicator Bank'!AS85),\"\",'TA Indicator Bank'!AS85)","v":0},{"$f":"IF(ISBLANK('TA Indicator Bank'!AT85),\"\",'TA Indicator Bank'!AT85)","v":0},{"$f":"IF(AND(J89=1,J$410=1),1,0)","v":0},{"$f":"IF(AND(K89=1,K$410=1),1,0)","v":0},{"$f":"IF(AND(L89=1,L$410=1),1,0)","v":0},{"$f":"IF(AND(M89=1,M$410=1),1,0)","v":0},{"$f":"IF(AND(N89=1,N$410=1),1,0)","v":0},{"$f":"IF(AND(O89=1,O$410=1),1,0)","v":0},{"$f":"IF(AND(P89=1,P$410=1),1,0)","v":0},{"$f":"IF(AND(Q89=1,Q$410=1),1,0)","v":0},{"$f":"IF(AND(R89=1,R$410=1),1,0)","v":0},{"$f":"IF(AND(S89=1,S$410=1),1,0)","v":0},{"$f":"IF(AND(T89=1,T$410=1),1,0)","v":0},{"$f":"IF(AND(U89=1,U$410=1),1,0)","v":0},{"$f":"IF(AND(V89=1,V$410=1),1,0)","v":0},{"$f":"IF(AND(W89=1,W$410=1),1,0)","v":0},1,{"$f":"IF(AND(X89=1,X$410=1),1,0)","v":1},{"$f":"IF(AND(Y89=1,Y$410=1),1,0)","v":0},{"$f":"IF(AND(Z89=1,Z$410=1),1,0)","v":0},{"$f":"IF(AND(AA89=1,AA$410=1),1,0)","v":0},{"$f":"IF(AND(AB89=1,AB$410=1),1,0)","v":0},{"$f":"IF(AND(AC89=1,AC$410=1),1,0)","v":0},{"$f":"IF(AND(AD89=1,AD$410=1),1,0)","v":0},{"$f":"IF(AND(AE89=1,AE$410=1),1,0)","v":0},{"$f":"IF(AND(AF89=1,AF$410=1),1,0)","v":0},1,{"$f":"IF(AND(AG89=1,AG$410=1),1,0)","v":0},{"$f":"IF(AND(AH89=1,AH$410=1),1,0)","v":0},{"$f":"IF(AND(AI89=1,AI$410=1),1,0)","v":0},{"$f":"IF(AND(AJ89=1,AJ$410=1),1,0)","v":0},{"$f":"IF(AND(AK89=1,AK$410=1),1,0)","v":0},{"$f":"IF(AND(AL89=1,AL$410=1),1,0)","v":0},{"$f":"IF(AND(AM89=1,AM$410=1),1,0)","v":0},{"$f":"IF(AND(AN89=1,AN$410=1),1,0)","v":0},{"$f":"IF(AND(AO89=1,AO$410=1),1,0)","v":0},1,{"$f":"IF(AND(AP89=1,AP$410=1),1,0)","v":0},{"$f":"IF(AND(AQ89=1,AQ$410=1),1,0)","v":0},{"$f":"IF(AND(AR89=1,AR$410=1),1,0)","v":1},{"$f":"IF(AND(AS89=1,AS$410=1),1,0)","v":0},{"$f":"IF(AND(AT89=1,AT$410=1),1,0)","v":0},1,1,81,81,{"$f":"IFERROR(SMALL($CL$9:$CL$408,CK89),\"\")","v":81},{"$f":"IFERROR(INDEX($B$9:$I$408,$CM89,COLUMNS($CN$9:CN89)),\"\")","v":"TA081"},{"$f":"IFERROR(INDEX($B$9:$I$408,$CM89,COLUMNS($CN$9:CO89)),\"\")","v":"Average reported satisfaction of countries with capacity support"},{"$f":"IFERROR(INDEX($B$9:$I$408,$CM89,COLUMNS($CN$9:CP89)),\"\")","v":"-"},{"$f":"IFERROR(INDEX($B$9:$I$408,$CM89,COLUMNS($CN$9:CQ89)),\"\")","v":"Output"},{"$f":"IFERROR(INDEX($B$9:$I$408,$CM89,COLUMNS($CN$9:CR89)),\"\")","v":"-"},{"$f":"IFERROR(INDEX($B$9:$I$408,$CM89,COLUMNS($CN$9:CS89)),\"\")","v":"Capacity building: Institutional capacity"},{"$f":"IFERROR(INDEX($B$9:$I$408,$CM89,COLUMNS($CN$9:CT89)),\"\")","v":"-"},{"$f":"IFERROR(INDEX($B$9:$I$408,$CM89,COLUMNS($CN$9:CU89)),\"\")","v":"Score"}]
[null,{"$f":"IF(ISBLANK('TA Indicator Bank'!B86),\"\",'TA Indicator Bank'!B86)","v":"TA082"},{"$f":"IF(ISBLANK('TA Indicator Bank'!C86),\"\",'TA Indicator Bank'!C86)","v":"Average number of days until payout is conducted by the government authority "},{"$f":"IF(ISBLANK('TA Indicator Bank'!D86),\"\",'TA Indicator Bank'!D86)","v":"Intended to measure the internal efficiency of a supported organisation (i.e. improved institutional capacity to process payments)"},{"$f":"IF(ISBLANK('TA Indicator Bank'!E86),\"\",'TA Indicator Bank'!E86)","v":"Output"},{"$f":"IF(ISBLANK('TA Indicator Bank'!F86),\"\",'TA Indicator Bank'!F86)","v":"-"},{"$f":"IF(ISBLANK('TA Indicator Bank'!G86),\"\",'TA Indicator Bank'!G86)","v":"Capacity building: Institutional capacity"},{"$f":"IF(ISBLANK('TA Indicator Bank'!H86),\"\",'TA Indicator Bank'!H86)","v":"-"},{"$f":"IF(ISBLANK('TA Indicator Bank'!I86),\"\",'TA Indicator Bank'!I86)","v":"Number"},{"$f":"IF(ISBLANK('TA Indicator Bank'!J86),\"\",'TA Indicator Bank'!J86)","v":0},{"$f":"IF(ISBLANK('TA Indicator Bank'!K86),\"\",'TA Indicator Bank'!K86)","v":0},{"$f":"IF(ISBLANK('TA Indicator Bank'!L86),\"\",'TA Indicator Bank'!L86)","v":0},{"$f":"IF(ISBLANK('TA Indicator Bank'!M86),\"\",'TA Indicator Bank'!M86)","v":0},{"$f":"IF(ISBLANK('TA Indicator Bank'!N86),\"\",'TA Indicator Bank'!N86)","v":0},{"$f":"IF(ISBLANK('TA Indicator Bank'!O86),\"\",'TA Indicator Bank'!O86)","v":0},{"$f":"IF(ISBLANK('TA Indicator Bank'!P86),\"\",'TA Indicator Bank'!P86)","v":0},{"$f":"IF(ISBLANK('TA Indicator Bank'!Q86),\"\",'TA Indicator Bank'!Q86)","v":0},{"$f":"IF(ISBLANK('TA Indicator Bank'!R86),\"\",'TA Indicator Bank'!R86)","v":0},{"$f":"IF(ISBLANK('TA Indicator Bank'!S86),\"\",'TA Indicator Bank'!S86)","v":0},{"$f":"IF(ISBLANK('TA Indicator Bank'!T86),\"\",'TA Indicator Bank'!T86)","v":0},{"$f":"IF(ISBLANK('TA Indicator Bank'!U86),\"\",'TA Indicator Bank'!U86)","v":0},{"$f":"IF(ISBLANK('TA Indicator Bank'!V86),\"\",'TA Indicator Bank'!V86)","v":0},{"$f":"IF(ISBLANK('TA Indicator Bank'!W86),\"\",'TA Indicator Bank'!W86)","v":0},{"$f":"IF(ISBLANK('TA Indicator Bank'!X86),\"\",'TA Indicator Bank'!X86)","v":1},{"$f":"IF(ISBLANK('TA Indicator Bank'!Y86),\"\",'TA Indicator Bank'!Y86)","v":0},{"$f":"IF(ISBLANK('TA Indicator Bank'!Z86),\"\",'TA Indicator Bank'!Z86)","v":0},{"$f":"IF(ISBLANK('TA Indicator Bank'!AA86),\"\",'TA Indicator Bank'!AA86)","v":0},{"$f":"IF(ISBLANK('TA Indicator Bank'!AB86),\"\",'TA Indicator Bank'!AB86)","v":0},{"$f":"IF(ISBLANK('TA Indicator Bank'!AC86),\"\",'TA Indicator Bank'!AC86)","v":0},{"$f":"IF(ISBLANK('TA Indicator Bank'!AD86),\"\",'TA Indicator Bank'!AD86)","v":0},{"$f":"IF(ISBLANK('TA Indicator Bank'!AE86),\"\",'TA Indicator Bank'!AE86)","v":0},{"$f":"IF(ISBLANK('TA Indicator Bank'!AF86),\"\",'TA Indicator Bank'!AF86)","v":0},{"$f":"IF(ISBLANK('TA Indicator Bank'!AG86),\"\",'TA Indicator Bank'!AG86)","v":0},{"$f":"IF(ISBLANK('TA Indicator Bank'!AH86),\"\",'TA Indicator Bank'!AH86)","v":0},{"$f":"IF(ISBLANK('TA Indicator Bank'!AI86),\"\",'TA Indicator Bank'!AI86)","v":0},{"$f":"IF(ISBLANK('TA Indicator Bank'!AJ86),\"\",'TA Indicator Bank'!AJ86)","v":0},{"$f":"IF(ISBLANK('TA Indicator Bank'!AK86),\"\",'TA Indicator Bank'!AK86)","v":0},{"$f":"IF(ISBLANK('TA Indicator Bank'!AL86),\"\",'TA Indicator Bank'!AL86)","v":0},{"$f":"IF(ISBLANK('TA Indicator Bank'!AM86),\"\",'TA Indicator Bank'!AM86)","v":0},{"$f":"IF(ISBLANK('TA Indicator Bank'!AN86),\"\",'TA Indicator Bank'!AN86)","v":0},{"$f":"IF(ISBLANK('TA Indicator Bank'!AO86),\"\",'TA Indicator Bank'!AO86)","v":0},{"$f":"IF(ISBLANK('TA Indicator Bank'!AP86),\"\",'TA Indicator Bank'!AP86)","v":0},{"$f":"IF(ISBLANK('TA Indicator Bank'!AQ86),\"\",'TA Indicator Bank'!AQ86)","v":0},{"$f":"IF(ISBLANK('TA Indicator Bank'!AR86),\"\",'TA Indicator Bank'!AR86)","v":1},{"$f":"IF(ISBLANK('TA Indicator Bank'!AS86),\"\",'TA Indicator Bank'!AS86)","v":0},{"$f":"IF(ISBLANK('TA Indicator Bank'!AT86),\"\",'TA Indicator Bank'!AT86)","v":0},{"$f":"IF(AND(J90=1,J$410=1),1,0)","v":0},{"$f":"IF(AND(K90=1,K$410=1),1,0)","v":0},{"$f":"IF(AND(L90=1,L$410=1),1,0)","v":0},{"$f":"IF(AND(M90=1,M$410=1),1,0)","v":0},{"$f":"IF(AND(N90=1,N$410=1),1,0)","v":0},{"$f":"IF(AND(O90=1,O$410=1),1,0)","v":0},{"$f":"IF(AND(P90=1,P$410=1),1,0)","v":0},{"$f":"IF(AND(Q90=1,Q$410=1),1,0)","v":0},{"$f":"IF(AND(R90=1,R$410=1),1,0)","v":0},{"$f":"IF(AND(S90=1,S$410=1),1,0)","v":0},{"$f":"IF(AND(T90=1,T$410=1),1,0)","v":0},{"$f":"IF(AND(U90=1,U$410=1),1,0)","v":0},{"$f":"IF(AND(V90=1,V$410=1),1,0)","v":0},{"$f":"IF(AND(W90=1,W$410=1),1,0)","v":0},1,{"$f":"IF(AND(X90=1,X$410=1),1,0)","v":1},{"$f":"IF(AND(Y90=1,Y$410=1),1,0)","v":0},{"$f":"IF(AND(Z90=1,Z$410=1),1,0)","v":0},{"$f":"IF(AND(AA90=1,AA$410=1),1,0)","v":0},{"$f":"IF(AND(AB90=1,AB$410=1),1,0)","v":0},{"$f":"IF(AND(AC90=1,AC$410=1),1,0)","v":0},{"$f":"IF(AND(AD90=1,AD$410=1),1,0)","v":0},{"$f":"IF(AND(AE90=1,AE$410=1),1,0)","v":0},{"$f":"IF(AND(AF90=1,AF$410=1),1,0)","v":0},1,{"$f":"IF(AND(AG90=1,AG$410=1),1,0)","v":0},{"$f":"IF(AND(AH90=1,AH$410=1),1,0)","v":0},{"$f":"IF(AND(AI90=1,AI$410=1),1,0)","v":0},{"$f":"IF(AND(AJ90=1,AJ$410=1),1,0)","v":0},{"$f":"IF(AND(AK90=1,AK$410=1),1,0)","v":0},{"$f":"IF(AND(AL90=1,AL$410=1),1,0)","v":0},{"$f":"IF(AND(AM90=1,AM$410=1),1,0)","v":0},{"$f":"IF(AND(AN90=1,AN$410=1),1,0)","v":0},{"$f":"IF(AND(AO90=1,AO$410=1),1,0)","v":0},1,{"$f":"IF(AND(AP90=1,AP$410=1),1,0)","v":0},{"$f":"IF(AND(AQ90=1,AQ$410=1),1,0)","v":0},{"$f":"IF(AND(AR90=1,AR$410=1),1,0)","v":1},{"$f":"IF(AND(AS90=1,AS$410=1),1,0)","v":0},{"$f":"IF(AND(AT90=1,AT$410=1),1,0)","v":0},1,1,82,82,{"$f":"IFERROR(SMALL($CL$9:$CL$408,CK90),\"\")","v":82},{"$f":"IFERROR(INDEX($B$9:$I$408,$CM90,COLUMNS($CN$9:CN90)),\"\")","v":"TA082"},{"$f":"IFERROR(INDEX($B$9:$I$408,$CM90,COLUMNS($CN$9:CO90)),\"\")","v":"Average number of days until payout is conducted by the government authority "},{"$f":"IFERROR(INDEX($B$9:$I$408,$CM90,COLUMNS($CN$9:CP90)),\"\")","v":"Intended to measure the internal efficiency of a supported organisation (i.e. improved institutional capacity to process payments)"},{"$f":"IFERROR(INDEX($B$9:$I$408,$CM90,COLUMNS($CN$9:CQ90)),\"\")","v":"Output"},{"$f":"IFERROR(INDEX($B$9:$I$408,$CM90,COLUMNS($CN$9:CR90)),\"\")","v":"-"},{"$f":"IFERROR(INDEX($B$9:$I$408,$CM90,COLUMNS($CN$9:CS90)),\"\")","v":"Capacity building: Institutional capacity"},{"$f":"IFERROR(INDEX($B$9:$I$408,$CM90,COLUMNS($CN$9:CT90)),\"\")","v":"-"},{"$f":"IFERROR(INDEX($B$9:$I$408,$CM90,COLUMNS($CN$9:CU90)),\"\")","v":"Number"}]
[null,{"$f":"IF(ISBLANK('TA Indicator Bank'!B87),\"\",'TA Indicator Bank'!B87)","v":"TA083"},{"$f":"IF(ISBLANK('TA Indicator Bank'!C87),\"\",'TA Indicator Bank'!C87)","v":"Number of units or officials supported by institutional capacity building"},{"$f":"IF(ISBLANK('TA Indicator Bank'!D87),\"\",'TA Indicator Bank'!D87)","v":"-"},{"$f":"IF(ISBLANK('TA Indicator Bank'!E87),\"\",'TA Indicator Bank'!E87)","v":"Output"},{"$f":"IF(ISBLANK('TA Indicator Bank'!F87),\"\",'TA Indicator Bank'!F87)","v":"-"},{"$f":"IF(ISBLANK('TA Indicator Bank'!G87),\"\",'TA Indicator Bank'!G87)","v":"Capacity building: Institutional capacity"},{"$f":"IF(ISBLANK('TA Indicator Bank'!H87),\"\",'TA Indicator Bank'!H87)","v":"-"},{"$f":"IF(ISBLANK('TA Indicator Bank'!I87),\"\",'TA Indicator Bank'!I87)","v":"Number"},{"$f":"IF(ISBLANK('TA Indicator Bank'!J87),\"\",'TA Indicator Bank'!J87)","v":0},{"$f":"IF(ISBLANK('TA Indicator Bank'!K87),\"\",'TA Indicator Bank'!K87)","v":0},{"$f":"IF(ISBLANK('TA Indicator Bank'!L87),\"\",'TA Indicator Bank'!L87)","v":0},{"$f":"IF(ISBLANK('TA Indicator Bank'!M87),\"\",'TA Indicator Bank'!M87)","v":0},{"$f":"IF(ISBLANK('TA Indicator Bank'!N87),\"\",'TA Indicator Bank'!N87)","v":0},{"$f":"IF(ISBLANK('TA Indicator Bank'!O87),\"\",'TA Indicator Bank'!O87)","v":0},{"$f":"IF(ISBLANK('TA Indicator Bank'!P87),\"\",'TA Indicator Bank'!P87)","v":0},{"$f":"IF(ISBLANK('TA Indicator Bank'!Q87),\"\",'TA Indicator Bank'!Q87)","v":0},{"$f":"IF(ISBLANK('TA Indicator Bank'!R87),\"\",'TA Indicator Bank'!R87)","v":0},{"$f":"IF(ISBLANK('TA Indicator Bank'!S87),\"\",'TA Indicator Bank'!S87)","v":0},{"$f":"IF(ISBLANK('TA Indicator Bank'!T87),\"\",'TA Indicator Bank'!T87)","v":0},{"$f":"IF(ISBLANK('TA Indicator Bank'!U87),\"\",'TA Indicator Bank'!U87)","v":0},{"$f":"IF(ISBLANK('TA Indicator Bank'!V87),\"\",'TA Indicator Bank'!V87)","v":0},{"$f":"IF(ISBLANK('TA Indicator Bank'!W87),\"\",'TA Indicator Bank'!W87)","v":0},{"$f":"IF(ISBLANK('TA Indicator Bank'!X87),\"\",'TA Indicator Bank'!X87)","v":1},{"$f":"IF(ISBLANK('TA Indicator Bank'!Y87),\"\",'TA Indicator Bank'!Y87)","v":0},{"$f":"IF(ISBLANK('TA Indicator Bank'!Z87),\"\",'TA Indicator Bank'!Z87)","v":0},{"$f":"IF(ISBLANK('TA Indicator Bank'!AA87),\"\",'TA Indicator Bank'!AA87)","v":0},{"$f":"IF(ISBLANK('TA Indicator Bank'!AB87),\"\",'TA Indicator Bank'!AB87)","v":0},{"$f":"IF(ISBLANK('TA Indicator Bank'!AC87),\"\",'TA Indicator Bank'!AC87)","v":0},{"$f":"IF(ISBLANK('TA Indicator Bank'!AD87),\"\",'TA Indicator Bank'!AD87)","v":0},{"$f":"IF(ISBLANK('TA Indicator Bank'!AE87),\"\",'TA Indicator Bank'!AE87)","v":0},{"$f":"IF(ISBLANK('TA Indicator Bank'!AF87),\"\",'TA Indicator Bank'!AF87)","v":0},{"$f":"IF(ISBLANK('TA Indicator Bank'!AG87),\"\",'TA Indicator Bank'!AG87)","v":0},{"$f":"IF(ISBLANK('TA Indicator Bank'!AH87),\"\",'TA Indicator Bank'!AH87)","v":0},{"$f":"IF(ISBLANK('TA Indicator Bank'!AI87),\"\",'TA Indicator Bank'!AI87)","v":0},{"$f":"IF(ISBLANK('TA Indicator Bank'!AJ87),\"\",'TA Indicator Bank'!AJ87)","v":0},{"$f":"IF(ISBLANK('TA Indicator Bank'!AK87),\"\",'TA Indicator Bank'!AK87)","v":0},{"$f":"IF(ISBLANK('TA Indicator Bank'!AL87),\"\",'TA Indicator Bank'!AL87)","v":0},{"$f":"IF(ISBLANK('TA Indicator Bank'!AM87),\"\",'TA Indicator Bank'!AM87)","v":0},{"$f":"IF(ISBLANK('TA Indicator Bank'!AN87),\"\",'TA Indicator Bank'!AN87)","v":0},{"$f":"IF(ISBLANK('TA Indicator Bank'!AO87),\"\",'TA Indicator Bank'!AO87)","v":0},{"$f":"IF(ISBLANK('TA Indicator Bank'!AP87),\"\",'TA Indicator Bank'!AP87)","v":0},{"$f":"IF(ISBLANK('TA Indicator Bank'!AQ87),\"\",'TA Indicator Bank'!AQ87)","v":0},{"$f":"IF(ISBLANK('TA Indicator Bank'!AR87),\"\",'TA Indicator Bank'!AR87)","v":1},{"$f":"IF(ISBLANK('TA Indicator Bank'!AS87),\"\",'TA Indicator Bank'!AS87)","v":0},{"$f":"IF(ISBLANK('TA Indicator Bank'!AT87),\"\",'TA Indicator Bank'!AT87)","v":0},{"$f":"IF(AND(J91=1,J$410=1),1,0)","v":0},{"$f":"IF(AND(K91=1,K$410=1),1,0)","v":0},{"$f":"IF(AND(L91=1,L$410=1),1,0)","v":0},{"$f":"IF(AND(M91=1,M$410=1),1,0)","v":0},{"$f":"IF(AND(N91=1,N$410=1),1,0)","v":0},{"$f":"IF(AND(O91=1,O$410=1),1,0)","v":0},{"$f":"IF(AND(P91=1,P$410=1),1,0)","v":0},{"$f":"IF(AND(Q91=1,Q$410=1),1,0)","v":0},{"$f":"IF(AND(R91=1,R$410=1),1,0)","v":0},{"$f":"IF(AND(S91=1,S$410=1),1,0)","v":0},{"$f":"IF(AND(T91=1,T$410=1),1,0)","v":0},{"$f":"IF(AND(U91=1,U$410=1),1,0)","v":0},{"$f":"IF(AND(V91=1,V$410=1),1,0)","v":0},{"$f":"IF(AND(W91=1,W$410=1),1,0)","v":0},1,{"$f":"IF(AND(X91=1,X$410=1),1,0)","v":1},{"$f":"IF(AND(Y91=1,Y$410=1),1,0)","v":0},{"$f":"IF(AND(Z91=1,Z$410=1),1,0)","v":0},{"$f":"IF(AND(AA91=1,AA$410=1),1,0)","v":0},{"$f":"IF(AND(AB91=1,AB$410=1),1,0)","v":0},{"$f":"IF(AND(AC91=1,AC$410=1),1,0)","v":0},{"$f":"IF(AND(AD91=1,AD$410=1),1,0)","v":0},{"$f":"IF(AND(AE91=1,AE$410=1),1,0)","v":0},{"$f":"IF(AND(AF91=1,AF$410=1),1,0)","v":0},1,{"$f":"IF(AND(AG91=1,AG$410=1),1,0)","v":0},{"$f":"IF(AND(AH91=1,AH$410=1),1,0)","v":0},{"$f":"IF(AND(AI91=1,AI$410=1),1,0)","v":0},{"$f":"IF(AND(AJ91=1,AJ$410=1),1,0)","v":0},{"$f":"IF(AND(AK91=1,AK$410=1),1,0)","v":0},{"$f":"IF(AND(AL91=1,AL$410=1),1,0)","v":0},{"$f":"IF(AND(AM91=1,AM$410=1),1,0)","v":0},{"$f":"IF(AND(AN91=1,AN$410=1),1,0)","v":0},{"$f":"IF(AND(AO91=1,AO$410=1),1,0)","v":0},1,{"$f":"IF(AND(AP91=1,AP$410=1),1,0)","v":0},{"$f":"IF(AND(AQ91=1,AQ$410=1),1,0)","v":0},{"$f":"IF(AND(AR91=1,AR$410=1),1,0)","v":1},{"$f":"IF(AND(AS91=1,AS$410=1),1,0)","v":0},{"$f":"IF(AND(AT91=1,AT$410=1),1,0)","v":0},1,1,83,83,{"$f":"IFERROR(SMALL($CL$9:$CL$408,CK91),\"\")","v":83},{"$f":"IFERROR(INDEX($B$9:$I$408,$CM91,COLUMNS($CN$9:CN91)),\"\")","v":"TA083"},{"$f":"IFERROR(INDEX($B$9:$I$408,$CM91,COLUMNS($CN$9:CO91)),\"\")","v":"Number of units or officials supported by institutional capacity building"},{"$f":"IFERROR(INDEX($B$9:$I$408,$CM91,COLUMNS($CN$9:CP91)),\"\")","v":"-"},{"$f":"IFERROR(INDEX($B$9:$I$408,$CM91,COLUMNS($CN$9:CQ91)),\"\")","v":"Output"},{"$f":"IFERROR(INDEX($B$9:$I$408,$CM91,COLUMNS($CN$9:CR91)),\"\")","v":"-"},{"$f":"IFERROR(INDEX($B$9:$I$408,$CM91,COLUMNS($CN$9:CS91)),\"\")","v":"Capacity building: Institutional capacity"},{"$f":"IFERROR(INDEX($B$9:$I$408,$CM91,COLUMNS($CN$9:CT91)),\"\")","v":"-"},{"$f":"IFERROR(INDEX($B$9:$I$408,$CM91,COLUMNS($CN$9:CU91)),\"\")","v":"Number"}]
[null,{"$f":"IF(ISBLANK('TA Indicator Bank'!B88),\"\",'TA Indicator Bank'!B88)","v":"TA084"},{"$f":"IF(ISBLANK('TA Indicator Bank'!C88),\"\",'TA Indicator Bank'!C88)","v":"Number of project plans improved or progressed with programme support"},{"$f":"IF(ISBLANK('TA Indicator Bank'!D88),\"\",'TA Indicator Bank'!D88)","v":"-"},{"$f":"IF(ISBLANK('TA Indicator Bank'!E88),\"\",'TA Indicator Bank'!E88)","v":"Output"},{"$f":"IF(ISBLANK('TA Indicator Bank'!F88),\"\",'TA Indicator Bank'!F88)","v":"-"},{"$f":"IF(ISBLANK('TA Indicator Bank'!G88),\"\",'TA Indicator Bank'!G88)","v":"Capacity building: Institutional capacity"},{"$f":"IF(ISBLANK('TA Indicator Bank'!H88),\"\",'TA Indicator Bank'!H88)","v":"-"},{"$f":"IF(ISBLANK('TA Indicator Bank'!I88),\"\",'TA Indicator Bank'!I88)","v":"Number"},{"$f":"IF(ISBLANK('TA Indicator Bank'!J88),\"\",'TA Indicator Bank'!J88)","v":0},{"$f":"IF(ISBLANK('TA Indicator Bank'!K88),\"\",'TA Indicator Bank'!K88)","v":0},{"$f":"IF(ISBLANK('TA Indicator Bank'!L88),\"\",'TA Indicator Bank'!L88)","v":0},{"$f":"IF(ISBLANK('TA Indicator Bank'!M88),\"\",'TA Indicator Bank'!M88)","v":0},{"$f":"IF(ISBLANK('TA Indicator Bank'!N88),\"\",'TA Indicator Bank'!N88)","v":0},{"$f":"IF(ISBLANK('TA Indicator Bank'!O88),\"\",'TA Indicator Bank'!O88)","v":0},{"$f":"IF(ISBLANK('TA Indicator Bank'!P88),\"\",'TA Indicator Bank'!P88)","v":0},{"$f":"IF(ISBLANK('TA Indicator Bank'!Q88),\"\",'TA Indicator Bank'!Q88)","v":0},{"$f":"IF(ISBLANK('TA Indicator Bank'!R88),\"\",'TA Indicator Bank'!R88)","v":0},{"$f":"IF(ISBLANK('TA Indicator Bank'!S88),\"\",'TA Indicator Bank'!S88)","v":0},{"$f":"IF(ISBLANK('TA Indicator Bank'!T88),\"\",'TA Indicator Bank'!T88)","v":0},{"$f":"IF(ISBLANK('TA Indicator Bank'!U88),\"\",'TA Indicator Bank'!U88)","v":0},{"$f":"IF(ISBLANK('TA Indicator Bank'!V88),\"\",'TA Indicator Bank'!V88)","v":0},{"$f":"IF(ISBLANK('TA Indicator Bank'!W88),\"\",'TA Indicator Bank'!W88)","v":0},{"$f":"IF(ISBLANK('TA Indicator Bank'!X88),\"\",'TA Indicator Bank'!X88)","v":1},{"$f":"IF(ISBLANK('TA Indicator Bank'!Y88),\"\",'TA Indicator Bank'!Y88)","v":0},{"$f":"IF(ISBLANK('TA Indicator Bank'!Z88),\"\",'TA Indicator Bank'!Z88)","v":0},{"$f":"IF(ISBLANK('TA Indicator Bank'!AA88),\"\",'TA Indicator Bank'!AA88)","v":0},{"$f":"IF(ISBLANK('TA Indicator Bank'!AB88),\"\",'TA Indicator Bank'!AB88)","v":0},{"$f":"IF(ISBLANK('TA Indicator Bank'!AC88),\"\",'TA Indicator Bank'!AC88)","v":0},{"$f":"IF(ISBLANK('TA Indicator Bank'!AD88),\"\",'TA Indicator Bank'!AD88)","v":0},{"$f":"IF(ISBLANK('TA Indicator Bank'!AE88),\"\",'TA Indicator Bank'!AE88)","v":0},{"$f":"IF(ISBLANK('TA Indicator Bank'!AF88),\"\",'TA Indicator Bank'!AF88)","v":0},{"$f":"IF(ISBLANK('TA Indicator Bank'!AG88),\"\",'TA Indicator Bank'!AG88)","v":0},{"$f":"IF(ISBLANK('TA Indicator Bank'!AH88),\"\",'TA Indicator Bank'!AH88)","v":0},{"$f":"IF(ISBLANK('TA Indicator Bank'!AI88),\"\",'TA Indicator Bank'!AI88)","v":0},{"$f":"IF(ISBLANK('TA Indicator Bank'!AJ88),\"\",'TA Indicator Bank'!AJ88)","v":0},{"$f":"IF(ISBLANK('TA Indicator Bank'!AK88),\"\",'TA Indicator Bank'!AK88)","v":0},{"$f":"IF(ISBLANK('TA Indicator Bank'!AL88),\"\",'TA Indicator Bank'!AL88)","v":0},{"$f":"IF(ISBLANK('TA Indicator Bank'!AM88),\"\",'TA Indicator Bank'!AM88)","v":0},{"$f":"IF(ISBLANK('TA Indicator Bank'!AN88),\"\",'TA Indicator Bank'!AN88)","v":0},{"$f":"IF(ISBLANK('TA Indicator Bank'!AO88),\"\",'TA Indicator Bank'!AO88)","v":0},{"$f":"IF(ISBLANK('TA Indicator Bank'!AP88),\"\",'TA Indicator Bank'!AP88)","v":0},{"$f":"IF(ISBLANK('TA Indicator Bank'!AQ88),\"\",'TA Indicator Bank'!AQ88)","v":0},{"$f":"IF(ISBLANK('TA Indicator Bank'!AR88),\"\",'TA Indicator Bank'!AR88)","v":1},{"$f":"IF(ISBLANK('TA Indicator Bank'!AS88),\"\",'TA Indicator Bank'!AS88)","v":0},{"$f":"IF(ISBLANK('TA Indicator Bank'!AT88),\"\",'TA Indicator Bank'!AT88)","v":0},{"$f":"IF(AND(J92=1,J$410=1),1,0)","v":0},{"$f":"IF(AND(K92=1,K$410=1),1,0)","v":0},{"$f":"IF(AND(L92=1,L$410=1),1,0)","v":0},{"$f":"IF(AND(M92=1,M$410=1),1,0)","v":0},{"$f":"IF(AND(N92=1,N$410=1),1,0)","v":0},{"$f":"IF(AND(O92=1,O$410=1),1,0)","v":0},{"$f":"IF(AND(P92=1,P$410=1),1,0)","v":0},{"$f":"IF(AND(Q92=1,Q$410=1),1,0)","v":0},{"$f":"IF(AND(R92=1,R$410=1),1,0)","v":0},{"$f":"IF(AND(S92=1,S$410=1),1,0)","v":0},{"$f":"IF(AND(T92=1,T$410=1),1,0)","v":0},{"$f":"IF(AND(U92=1,U$410=1),1,0)","v":0},{"$f":"IF(AND(V92=1,V$410=1),1,0)","v":0},{"$f":"IF(AND(W92=1,W$410=1),1,0)","v":0},1,{"$f":"IF(AND(X92=1,X$410=1),1,0)","v":1},{"$f":"IF(AND(Y92=1,Y$410=1),1,0)","v":0},{"$f":"IF(AND(Z92=1,Z$410=1),1,0)","v":0},{"$f":"IF(AND(AA92=1,AA$410=1),1,0)","v":0},{"$f":"IF(AND(AB92=1,AB$410=1),1,0)","v":0},{"$f":"IF(AND(AC92=1,AC$410=1),1,0)","v":0},{"$f":"IF(AND(AD92=1,AD$410=1),1,0)","v":0},{"$f":"IF(AND(AE92=1,AE$410=1),1,0)","v":0},{"$f":"IF(AND(AF92=1,AF$410=1),1,0)","v":0},1,{"$f":"IF(AND(AG92=1,AG$410=1),1,0)","v":0},{"$f":"IF(AND(AH92=1,AH$410=1),1,0)","v":0},{"$f":"IF(AND(AI92=1,AI$410=1),1,0)","v":0},{"$f":"IF(AND(AJ92=1,AJ$410=1),1,0)","v":0},{"$f":"IF(AND(AK92=1,AK$410=1),1,0)","v":0},{"$f":"IF(AND(AL92=1,AL$410=1),1,0)","v":0},{"$f":"IF(AND(AM92=1,AM$410=1),1,0)","v":0},{"$f":"IF(AND(AN92=1,AN$410=1),1,0)","v":0},{"$f":"IF(AND(AO92=1,AO$410=1),1,0)","v":0},1,{"$f":"IF(AND(AP92=1,AP$410=1),1,0)","v":0},{"$f":"IF(AND(AQ92=1,AQ$410=1),1,0)","v":0},{"$f":"IF(AND(AR92=1,AR$410=1),1,0)","v":1},{"$f":"IF(AND(AS92=1,AS$410=1),1,0)","v":0},{"$f":"IF(AND(AT92=1,AT$410=1),1,0)","v":0},1,1,84,84,{"$f":"IFERROR(SMALL($CL$9:$CL$408,CK92),\"\")","v":84},{"$f":"IFERROR(INDEX($B$9:$I$408,$CM92,COLUMNS($CN$9:CN92)),\"\")","v":"TA084"},{"$f":"IFERROR(INDEX($B$9:$I$408,$CM92,COLUMNS($CN$9:CO92)),\"\")","v":"Number of project plans improved or progressed with programme support"},{"$f":"IFERROR(INDEX($B$9:$I$408,$CM92,COLUMNS($CN$9:CP92)),\"\")","v":"-"},{"$f":"IFERROR(INDEX($B$9:$I$408,$CM92,COLUMNS($CN$9:CQ92)),\"\")","v":"Output"},{"$f":"IFERROR(INDEX($B$9:$I$408,$CM92,COLUMNS($CN$9:CR92)),\"\")","v":"-"},{"$f":"IFERROR(INDEX($B$9:$I$408,$CM92,COLUMNS($CN$9:CS92)),\"\")","v":"Capacity building: Institutional capacity"},{"$f":"IFERROR(INDEX($B$9:$I$408,$CM92,COLUMNS($CN$9:CT92)),\"\")","v":"-"},{"$f":"IFERROR(INDEX($B$9:$I$408,$CM92,COLUMNS($CN$9:CU92)),\"\")","v":"Number"}]
[null,{"$f":"IF(ISBLANK('TA Indicator Bank'!B89),\"\",'TA Indicator Bank'!B89)","v":"TA085"},{"$f":"IF(ISBLANK('TA Indicator Bank'!C89),\"\",'TA Indicator Bank'!C89)","v":"Number of plans developed that include programme objective"},{"$f":"IF(ISBLANK('TA Indicator Bank'!D89),\"\",'TA Indicator Bank'!D89)","v":"-"},{"$f":"IF(ISBLANK('TA Indicator Bank'!E89),\"\",'TA Indicator Bank'!E89)","v":"Output"},{"$f":"IF(ISBLANK('TA Indicator Bank'!F89),\"\",'TA Indicator Bank'!F89)","v":"-"},{"$f":"IF(ISBLANK('TA Indicator Bank'!G89),\"\",'TA Indicator Bank'!G89)","v":"Capacity building: Institutional capacity"},{"$f":"IF(ISBLANK('TA Indicator Bank'!H89),\"\",'TA Indicator Bank'!H89)","v":"-"},{"$f":"IF(ISBLANK('TA Indicator Bank'!I89),\"\",'TA Indicator Bank'!I89)","v":"Number"},{"$f":"IF(ISBLANK('TA Indicator Bank'!J89),\"\",'TA Indicator Bank'!J89)","v":0},{"$f":"IF(ISBLANK('TA Indicator Bank'!K89),\"\",'TA Indicator Bank'!K89)","v":0},{"$f":"IF(ISBLANK('TA Indicator Bank'!L89),\"\",'TA Indicator Bank'!L89)","v":0},{"$f":"IF(ISBLANK('TA Indicator Bank'!M89),\"\",'TA Indicator Bank'!M89)","v":0},{"$f":"IF(ISBLANK('TA Indicator Bank'!N89),\"\",'TA Indicator Bank'!N89)","v":0},{"$f":"IF(ISBLANK('TA Indicator Bank'!O89),\"\",'TA Indicator Bank'!O89)","v":0},{"$f":"IF(ISBLANK('TA Indicator Bank'!P89),\"\",'TA Indicator Bank'!P89)","v":0},{"$f":"IF(ISBLANK('TA Indicator Bank'!Q89),\"\",'TA Indicator Bank'!Q89)","v":0},{"$f":"IF(ISBLANK('TA Indicator Bank'!R89),\"\",'TA Indicator Bank'!R89)","v":0},{"$f":"IF(ISBLANK('TA Indicator Bank'!S89),\"\",'TA Indicator Bank'!S89)","v":0},{"$f":"IF(ISBLANK('TA Indicator Bank'!T89),\"\",'TA Indicator Bank'!T89)","v":0},{"$f":"IF(ISBLANK('TA Indicator Bank'!U89),\"\",'TA Indicator Bank'!U89)","v":0},{"$f":"IF(ISBLANK('TA Indicator Bank'!V89),\"\",'TA Indicator Bank'!V89)","v":0},{"$f":"IF(ISBLANK('TA Indicator Bank'!W89),\"\",'TA Indicator Bank'!W89)","v":0},{"$f":"IF(ISBLANK('TA Indicator Bank'!X89),\"\",'TA Indicator Bank'!X89)","v":1},{"$f":"IF(ISBLANK('TA Indicator Bank'!Y89),\"\",'TA Indicator Bank'!Y89)","v":0},{"$f":"IF(ISBLANK('TA Indicator Bank'!Z89),\"\",'TA Indicator Bank'!Z89)","v":0},{"$f":"IF(ISBLANK('TA Indicator Bank'!AA89),\"\",'TA Indicator Bank'!AA89)","v":0},{"$f":"IF(ISBLANK('TA Indicator Bank'!AB89),\"\",'TA Indicator Bank'!AB89)","v":0},{"$f":"IF(ISBLANK('TA Indicator Bank'!AC89),\"\",'TA Indicator Bank'!AC89)","v":0},{"$f":"IF(ISBLANK('TA Indicator Bank'!AD89),\"\",'TA Indicator Bank'!AD89)","v":0},{"$f":"IF(ISBLANK('TA Indicator Bank'!AE89),\"\",'TA Indicator Bank'!AE89)","v":0},{"$f":"IF(ISBLANK('TA Indicator Bank'!AF89),\"\",'TA Indicator Bank'!AF89)","v":0},{"$f":"IF(ISBLANK('TA Indicator Bank'!AG89),\"\",'TA Indicator Bank'!AG89)","v":0},{"$f":"IF(ISBLANK('TA Indicator Bank'!AH89),\"\",'TA Indicator Bank'!AH89)","v":0},{"$f":"IF(ISBLANK('TA Indicator Bank'!AI89),\"\",'TA Indicator Bank'!AI89)","v":0},{"$f":"IF(ISBLANK('TA Indicator Bank'!AJ89),\"\",'TA Indicator Bank'!AJ89)","v":0},{"$f":"IF(ISBLANK('TA Indicator Bank'!AK89),\"\",'TA Indicator Bank'!AK89)","v":0},{"$f":"IF(ISBLANK('TA Indicator Bank'!AL89),\"\",'TA Indicator Bank'!AL89)","v":0},{"$f":"IF(ISBLANK('TA Indicator Bank'!AM89),\"\",'TA Indicator Bank'!AM89)","v":0},{"$f":"IF(ISBLANK('TA Indicator Bank'!AN89),\"\",'TA Indicator Bank'!AN89)","v":0},{"$f":"IF(ISBLANK('TA Indicator Bank'!AO89),\"\",'TA Indicator Bank'!AO89)","v":0},{"$f":"IF(ISBLANK('TA Indicator Bank'!AP89),\"\",'TA Indicator Bank'!AP89)","v":0},{"$f":"IF(ISBLANK('TA Indicator Bank'!AQ89),\"\",'TA Indicator Bank'!AQ89)","v":0},{"$f":"IF(ISBLANK('TA Indicator Bank'!AR89),\"\",'TA Indicator Bank'!AR89)","v":1},{"$f":"IF(ISBLANK('TA Indicator Bank'!AS89),\"\",'TA Indicator Bank'!AS89)","v":0},{"$f":"IF(ISBLANK('TA Indicator Bank'!AT89),\"\",'TA Indicator Bank'!AT89)","v":0},{"$f":"IF(AND(J93=1,J$410=1),1,0)","v":0},{"$f":"IF(AND(K93=1,K$410=1),1,0)","v":0},{"$f":"IF(AND(L93=1,L$410=1),1,0)","v":0},{"$f":"IF(AND(M93=1,M$410=1),1,0)","v":0},{"$f":"IF(AND(N93=1,N$410=1),1,0)","v":0},{"$f":"IF(AND(O93=1,O$410=1),1,0)","v":0},{"$f":"IF(AND(P93=1,P$410=1),1,0)","v":0},{"$f":"IF(AND(Q93=1,Q$410=1),1,0)","v":0},{"$f":"IF(AND(R93=1,R$410=1),1,0)","v":0},{"$f":"IF(AND(S93=1,S$410=1),1,0)","v":0},{"$f":"IF(AND(T93=1,T$410=1),1,0)","v":0},{"$f":"IF(AND(U93=1,U$410=1),1,0)","v":0},{"$f":"IF(AND(V93=1,V$410=1),1,0)","v":0},{"$f":"IF(AND(W93=1,W$410=1),1,0)","v":0},1,{"$f":"IF(AND(X93=1,X$410=1),1,0)","v":1},{"$f":"IF(AND(Y93=1,Y$410=1),1,0)","v":0},{"$f":"IF(AND(Z93=1,Z$410=1),1,0)","v":0},{"$f":"IF(AND(AA93=1,AA$410=1),1,0)","v":0},{"$f":"IF(AND(AB93=1,AB$410=1),1,0)","v":0},{"$f":"IF(AND(AC93=1,AC$410=1),1,0)","v":0},{"$f":"IF(AND(AD93=1,AD$410=1),1,0)","v":0},{"$f":"IF(AND(AE93=1,AE$410=1),1,0)","v":0},{"$f":"IF(AND(AF93=1,AF$410=1),1,0)","v":0},1,{"$f":"IF(AND(AG93=1,AG$410=1),1,0)","v":0},{"$f":"IF(AND(AH93=1,AH$410=1),1,0)","v":0},{"$f":"IF(AND(AI93=1,AI$410=1),1,0)","v":0},{"$f":"IF(AND(AJ93=1,AJ$410=1),1,0)","v":0},{"$f":"IF(AND(AK93=1,AK$410=1),1,0)","v":0},{"$f":"IF(AND(AL93=1,AL$410=1),1,0)","v":0},{"$f":"IF(AND(AM93=1,AM$410=1),1,0)","v":0},{"$f":"IF(AND(AN93=1,AN$410=1),1,0)","v":0},{"$f":"IF(AND(AO93=1,AO$410=1),1,0)","v":0},1,{"$f":"IF(AND(AP93=1,AP$410=1),1,0)","v":0},{"$f":"IF(AND(AQ93=1,AQ$410=1),1,0)","v":0},{"$f":"IF(AND(AR93=1,AR$410=1),1,0)","v":1},{"$f":"IF(AND(AS93=1,AS$410=1),1,0)","v":0},{"$f":"IF(AND(AT93=1,AT$410=1),1,0)","v":0},1,1,85,85,{"$f":"IFERROR(SMALL($CL$9:$CL$408,CK93),\"\")","v":85},{"$f":"IFERROR(INDEX($B$9:$I$408,$CM93,COLUMNS($CN$9:CN93)),\"\")","v":"TA085"},{"$f":"IFERROR(INDEX($B$9:$I$408,$CM93,COLUMNS($CN$9:CO93)),\"\")","v":"Number of plans developed that include programme objective"},{"$f":"IFERROR(INDEX($B$9:$I$408,$CM93,COLUMNS($CN$9:CP93)),\"\")","v":"-"},{"$f":"IFERROR(INDEX($B$9:$I$408,$CM93,COLUMNS($CN$9:CQ93)),\"\")","v":"Output"},{"$f":"IFERROR(INDEX($B$9:$I$408,$CM93,COLUMNS($CN$9:CR93)),\"\")","v":"-"},{"$f":"IFERROR(INDEX($B$9:$I$408,$CM93,COLUMNS($CN$9:CS93)),\"\")","v":"Capacity building: Institutional capacity"},{"$f":"IFERROR(INDEX($B$9:$I$408,$CM93,COLUMNS($CN$9:CT93)),\"\")","v":"-"},{"$f":"IFERROR(INDEX($B$9:$I$408,$CM93,COLUMNS($CN$9:CU93)),\"\")","v":"Number"}]
[null,{"$f":"IF(ISBLANK('TA Indicator Bank'!B90),\"\",'TA Indicator Bank'!B90)","v":"TA086"},{"$f":"IF(ISBLANK('TA Indicator Bank'!C90),\"\",'TA Indicator Bank'!C90)","v":"Percentage of (satisfactory) outputs that are ready or implemented within the timeline"},{"$f":"IF(ISBLANK('TA Indicator Bank'!D90),\"\",'TA Indicator Bank'!D90)","v":"-"},{"$f":"IF(ISBLANK('TA Indicator Bank'!E90),\"\",'TA Indicator Bank'!E90)","v":"Output"},{"$f":"IF(ISBLANK('TA Indicator Bank'!F90),\"\",'TA Indicator Bank'!F90)","v":"-"},{"$f":"IF(ISBLANK('TA Indicator Bank'!G90),\"\",'TA Indicator Bank'!G90)","v":"Capacity building: Institutional capacity"},{"$f":"IF(ISBLANK('TA Indicator Bank'!H90),\"\",'TA Indicator Bank'!H90)","v":"-"},{"$f":"IF(ISBLANK('TA Indicator Bank'!I90),\"\",'TA Indicator Bank'!I90)","v":"Percentage"},{"$f":"IF(ISBLANK('TA Indicator Bank'!J90),\"\",'TA Indicator Bank'!J90)","v":0},{"$f":"IF(ISBLANK('TA Indicator Bank'!K90),\"\",'TA Indicator Bank'!K90)","v":0},{"$f":"IF(ISBLANK('TA Indicator Bank'!L90),\"\",'TA Indicator Bank'!L90)","v":0},{"$f":"IF(ISBLANK('TA Indicator Bank'!M90),\"\",'TA Indicator Bank'!M90)","v":0},{"$f":"IF(ISBLANK('TA Indicator Bank'!N90),\"\",'TA Indicator Bank'!N90)","v":0},{"$f":"IF(ISBLANK('TA Indicator Bank'!O90),\"\",'TA Indicator Bank'!O90)","v":0},{"$f":"IF(ISBLANK('TA Indicator Bank'!P90),\"\",'TA Indicator Bank'!P90)","v":0},{"$f":"IF(ISBLANK('TA Indicator Bank'!Q90),\"\",'TA Indicator Bank'!Q90)","v":0},{"$f":"IF(ISBLANK('TA Indicator Bank'!R90),\"\",'TA Indicator Bank'!R90)","v":0},{"$f":"IF(ISBLANK('TA Indicator Bank'!S90),\"\",'TA Indicator Bank'!S90)","v":0},{"$f":"IF(ISBLANK('TA Indicator Bank'!T90),\"\",'TA Indicator Bank'!T90)","v":0},{"$f":"IF(ISBLANK('TA Indicator Bank'!U90),\"\",'TA Indicator Bank'!U90)","v":0},{"$f":"IF(ISBLANK('TA Indicator Bank'!V90),\"\",'TA Indicator Bank'!V90)","v":0},{"$f":"IF(ISBLANK('TA Indicator Bank'!W90),\"\",'TA Indicator Bank'!W90)","v":0},{"$f":"IF(ISBLANK('TA Indicator Bank'!X90),\"\",'TA Indicator Bank'!X90)","v":1},{"$f":"IF(ISBLANK('TA Indicator Bank'!Y90),\"\",'TA Indicator Bank'!Y90)","v":0},{"$f":"IF(ISBLANK('TA Indicator Bank'!Z90),\"\",'TA Indicator Bank'!Z90)","v":0},{"$f":"IF(ISBLANK('TA Indicator Bank'!AA90),\"\",'TA Indicator Bank'!AA90)","v":0},{"$f":"IF(ISBLANK('TA Indicator Bank'!AB90),\"\",'TA Indicator Bank'!AB90)","v":0},{"$f":"IF(ISBLANK('TA Indicator Bank'!AC90),\"\",'TA Indicator Bank'!AC90)","v":0},{"$f":"IF(ISBLANK('TA Indicator Bank'!AD90),\"\",'TA Indicator Bank'!AD90)","v":0},{"$f":"IF(ISBLANK('TA Indicator Bank'!AE90),\"\",'TA Indicator Bank'!AE90)","v":0},{"$f":"IF(ISBLANK('TA Indicator Bank'!AF90),\"\",'TA Indicator Bank'!AF90)","v":0},{"$f":"IF(ISBLANK('TA Indicator Bank'!AG90),\"\",'TA Indicator Bank'!AG90)","v":0},{"$f":"IF(ISBLANK('TA Indicator Bank'!AH90),\"\",'TA Indicator Bank'!AH90)","v":0},{"$f":"IF(ISBLANK('TA Indicator Bank'!AI90),\"\",'TA Indicator Bank'!AI90)","v":0},{"$f":"IF(ISBLANK('TA Indicator Bank'!AJ90),\"\",'TA Indicator Bank'!AJ90)","v":0},{"$f":"IF(ISBLANK('TA Indicator Bank'!AK90),\"\",'TA Indicator Bank'!AK90)","v":0},{"$f":"IF(ISBLANK('TA Indicator Bank'!AL90),\"\",'TA Indicator Bank'!AL90)","v":0},{"$f":"IF(ISBLANK('TA Indicator Bank'!AM90),\"\",'TA Indicator Bank'!AM90)","v":0},{"$f":"IF(ISBLANK('TA Indicator Bank'!AN90),\"\",'TA Indicator Bank'!AN90)","v":0},{"$f":"IF(ISBLANK('TA Indicator Bank'!AO90),\"\",'TA Indicator Bank'!AO90)","v":0},{"$f":"IF(ISBLANK('TA Indicator Bank'!AP90),\"\",'TA Indicator Bank'!AP90)","v":0},{"$f":"IF(ISBLANK('TA Indicator Bank'!AQ90),\"\",'TA Indicator Bank'!AQ90)","v":0},{"$f":"IF(ISBLANK('TA Indicator Bank'!AR90),\"\",'TA Indicator Bank'!AR90)","v":1},{"$f":"IF(ISBLANK('TA Indicator Bank'!AS90),\"\",'TA Indicator Bank'!AS90)","v":0},{"$f":"IF(ISBLANK('TA Indicator Bank'!AT90),\"\",'TA Indicator Bank'!AT90)","v":0},{"$f":"IF(AND(J94=1,J$410=1),1,0)","v":0},{"$f":"IF(AND(K94=1,K$410=1),1,0)","v":0},{"$f":"IF(AND(L94=1,L$410=1),1,0)","v":0},{"$f":"IF(AND(M94=1,M$410=1),1,0)","v":0},{"$f":"IF(AND(N94=1,N$410=1),1,0)","v":0},{"$f":"IF(AND(O94=1,O$410=1),1,0)","v":0},{"$f":"IF(AND(P94=1,P$410=1),1,0)","v":0},{"$f":"IF(AND(Q94=1,Q$410=1),1,0)","v":0},{"$f":"IF(AND(R94=1,R$410=1),1,0)","v":0},{"$f":"IF(AND(S94=1,S$410=1),1,0)","v":0},{"$f":"IF(AND(T94=1,T$410=1),1,0)","v":0},{"$f":"IF(AND(U94=1,U$410=1),1,0)","v":0},{"$f":"IF(AND(V94=1,V$410=1),1,0)","v":0},{"$f":"IF(AND(W94=1,W$410=1),1,0)","v":0},1,{"$f":"IF(AND(X94=1,X$410=1),1,0)","v":1},{"$f":"IF(AND(Y94=1,Y$410=1),1,0)","v":0},{"$f":"IF(AND(Z94=1,Z$410=1),1,0)","v":0},{"$f":"IF(AND(AA94=1,AA$410=1),1,0)","v":0},{"$f":"IF(AND(AB94=1,AB$410=1),1,0)","v":0},{"$f":"IF(AND(AC94=1,AC$410=1),1,0)","v":0},{"$f":"IF(AND(AD94=1,AD$410=1),1,0)","v":0},{"$f":"IF(AND(AE94=1,AE$410=1),1,0)","v":0},{"$f":"IF(AND(AF94=1,AF$410=1),1,0)","v":0},1,{"$f":"IF(AND(AG94=1,AG$410=1),1,0)","v":0},{"$f":"IF(AND(AH94=1,AH$410=1),1,0)","v":0},{"$f":"IF(AND(AI94=1,AI$410=1),1,0)","v":0},{"$f":"IF(AND(AJ94=1,AJ$410=1),1,0)","v":0},{"$f":"IF(AND(AK94=1,AK$410=1),1,0)","v":0},{"$f":"IF(AND(AL94=1,AL$410=1),1,0)","v":0},{"$f":"IF(AND(AM94=1,AM$410=1),1,0)","v":0},{"$f":"IF(AND(AN94=1,AN$410=1),1,0)","v":0},{"$f":"IF(AND(AO94=1,AO$410=1),1,0)","v":0},1,{"$f":"IF(AND(AP94=1,AP$410=1),1,0)","v":0},{"$f":"IF(AND(AQ94=1,AQ$410=1),1,0)","v":0},{"$f":"IF(AND(AR94=1,AR$410=1),1,0)","v":1},{"$f":"IF(AND(AS94=1,AS$410=1),1,0)","v":0},{"$f":"IF(AND(AT94=1,AT$410=1),1,0)","v":0},1,1,86,86,{"$f":"IFERROR(SMALL($CL$9:$CL$408,CK94),\"\")","v":86},{"$f":"IFERROR(INDEX($B$9:$I$408,$CM94,COLUMNS($CN$9:CN94)),\"\")","v":"TA086"},{"$f":"IFERROR(INDEX($B$9:$I$408,$CM94,COLUMNS($CN$9:CO94)),\"\")","v":"Percentage of (satisfactory) outputs that are ready or implemented within the timeline"},{"$f":"IFERROR(INDEX($B$9:$I$408,$CM94,COLUMNS($CN$9:CP94)),\"\")","v":"-"},{"$f":"IFERROR(INDEX($B$9:$I$408,$CM94,COLUMNS($CN$9:CQ94)),\"\")","v":"Output"},{"$f":"IFERROR(INDEX($B$9:$I$408,$CM94,COLUMNS($CN$9:CR94)),\"\")","v":"-"},{"$f":"IFERROR(INDEX($B$9:$I$408,$CM94,COLUMNS($CN$9:CS94)),\"\")","v":"Capacity building: Institutional capacity"},{"$f":"IFERROR(INDEX($B$9:$I$408,$CM94,COLUMNS($CN$9:CT94)),\"\")","v":"-"},{"$f":"IFERROR(INDEX($B$9:$I$408,$CM94,COLUMNS($CN$9:CU94)),\"\")","v":"Percentage"}]
[null,{"$f":"IF(ISBLANK('TA Indicator Bank'!B91),\"\",'TA Indicator Bank'!B91)","v":"TA087"},{"$f":"IF(ISBLANK('TA Indicator Bank'!C91),\"\",'TA Indicator Bank'!C91)","v":"Knowledge products launched on time"},{"$f":"IF(ISBLANK('TA Indicator Bank'!D91),\"\",'TA Indicator Bank'!D91)","v":"-"},{"$f":"IF(ISBLANK('TA Indicator Bank'!E91),\"\",'TA Indicator Bank'!E91)","v":"Activity"},{"$f":"IF(ISBLANK('TA Indicator Bank'!F91),\"\",'TA Indicator Bank'!F91)","v":"Specialist research, inc. market / policy / legal / regulatory / technology research briefs"},{"$f":"IF(ISBLANK('TA Indicator Bank'!G91),\"\",'TA Indicator Bank'!G91)","v":"-"},{"$f":"IF(ISBLANK('TA Indicator Bank'!H91),\"\",'TA Indicator Bank'!H91)","v":"-"},{"$f":"IF(ISBLANK('TA Indicator Bank'!I91),\"\",'TA Indicator Bank'!I91)","v":"Yes/No"},{"$f":"IF(ISBLANK('TA Indicator Bank'!J91),\"\",'TA Indicator Bank'!J91)","v":0},{"$f":"IF(ISBLANK('TA Indicator Bank'!K91),\"\",'TA Indicator Bank'!K91)","v":0},{"$f":"IF(ISBLANK('TA Indicator Bank'!L91),\"\",'TA Indicator Bank'!L91)","v":0},{"$f":"IF(ISBLANK('TA Indicator Bank'!M91),\"\",'TA Indicator Bank'!M91)","v":0},{"$f":"IF(ISBLANK('TA Indicator Bank'!N91),\"\",'TA Indicator Bank'!N91)","v":1},{"$f":"IF(ISBLANK('TA Indicator Bank'!O91),\"\",'TA Indicator Bank'!O91)","v":0},{"$f":"IF(ISBLANK('TA Indicator Bank'!P91),\"\",'TA Indicator Bank'!P91)","v":0},{"$f":"IF(ISBLANK('TA Indicator Bank'!Q91),\"\",'TA Indicator Bank'!Q91)","v":0},{"$f":"IF(ISBLANK('TA Indicator Bank'!R91),\"\",'TA Indicator Bank'!R91)","v":0},{"$f":"IF(ISBLANK('TA Indicator Bank'!S91),\"\",'TA Indicator Bank'!S91)","v":0},{"$f":"IF(ISBLANK('TA Indicator Bank'!T91),\"\",'TA Indicator Bank'!T91)","v":0},{"$f":"IF(ISBLANK('TA Indicator Bank'!U91),\"\",'TA Indicator Bank'!U91)","v":0},{"$f":"IF(ISBLANK('TA Indicator Bank'!V91),\"\",'TA Indicator Bank'!V91)","v":0},{"$f":"IF(ISBLANK('TA Indicator Bank'!W91),\"\",'TA Indicator Bank'!W91)","v":0},{"$f":"IF(ISBLANK('TA Indicator Bank'!X91),\"\",'TA Indicator Bank'!X91)","v":0},{"$f":"IF(ISBLANK('TA Indicator Bank'!Y91),\"\",'TA Indicator Bank'!Y91)","v":0},{"$f":"IF(ISBLANK('TA Indicator Bank'!Z91),\"\",'TA Indicator Bank'!Z91)","v":0},{"$f":"IF(ISBLANK('TA Indicator Bank'!AA91),\"\",'TA Indicator Bank'!AA91)","v":0},{"$f":"IF(ISBLANK('TA Indicator Bank'!AB91),\"\",'TA Indicator Bank'!AB91)","v":0},{"$f":"IF(ISBLANK('TA Indicator Bank'!AC91),\"\",'TA Indicator Bank'!AC91)","v":0},{"$f":"IF(ISBLANK('TA Indicator Bank'!AD91),\"\",'TA Indicator Bank'!AD91)","v":0},{"$f":"IF(ISBLANK('TA Indicator Bank'!AE91),\"\",'TA Indicator Bank'!AE91)","v":0},{"$f":"IF(ISBLANK('TA Indicator Bank'!AF91),\"\",'TA Indicator Bank'!AF91)","v":0},{"$f":"IF(ISBLANK('TA Indicator Bank'!AG91),\"\",'TA Indicator Bank'!AG91)","v":0},{"$f":"IF(ISBLANK('TA Indicator Bank'!AH91),\"\",'TA Indicator Bank'!AH91)","v":0},{"$f":"IF(ISBLANK('TA Indicator Bank'!AI91),\"\",'TA Indicator Bank'!AI91)","v":0},{"$f":"IF(ISBLANK('TA Indicator Bank'!AJ91),\"\",'TA Indicator Bank'!AJ91)","v":0},{"$f":"IF(ISBLANK('TA Indicator Bank'!AK91),\"\",'TA Indicator Bank'!AK91)","v":0},{"$f":"IF(ISBLANK('TA Indicator Bank'!AL91),\"\",'TA Indicator Bank'!AL91)","v":0},{"$f":"IF(ISBLANK('TA Indicator Bank'!AM91),\"\",'TA Indicator Bank'!AM91)","v":0},{"$f":"IF(ISBLANK('TA Indicator Bank'!AN91),\"\",'TA Indicator Bank'!AN91)","v":0},{"$f":"IF(ISBLANK('TA Indicator Bank'!AO91),\"\",'TA Indicator Bank'!AO91)","v":0},{"$f":"IF(ISBLANK('TA Indicator Bank'!AP91),\"\",'TA Indicator Bank'!AP91)","v":1},{"$f":"IF(ISBLANK('TA Indicator Bank'!AQ91),\"\",'TA Indicator Bank'!AQ91)","v":0},{"$f":"IF(ISBLANK('TA Indicator Bank'!AR91),\"\",'TA Indicator Bank'!AR91)","v":0},{"$f":"IF(ISBLANK('TA Indicator Bank'!AS91),\"\",'TA Indicator Bank'!AS91)","v":0},{"$f":"IF(ISBLANK('TA Indicator Bank'!AT91),\"\",'TA Indicator Bank'!AT91)","v":0},{"$f":"IF(AND(J95=1,J$410=1),1,0)","v":0},{"$f":"IF(AND(K95=1,K$410=1),1,0)","v":0},{"$f":"IF(AND(L95=1,L$410=1),1,0)","v":0},{"$f":"IF(AND(M95=1,M$410=1),1,0)","v":0},{"$f":"IF(AND(N95=1,N$410=1),1,0)","v":1},{"$f":"IF(AND(O95=1,O$410=1),1,0)","v":0},{"$f":"IF(AND(P95=1,P$410=1),1,0)","v":0},{"$f":"IF(AND(Q95=1,Q$410=1),1,0)","v":0},{"$f":"IF(AND(R95=1,R$410=1),1,0)","v":0},{"$f":"IF(AND(S95=1,S$410=1),1,0)","v":0},{"$f":"IF(AND(T95=1,T$410=1),1,0)","v":0},{"$f":"IF(AND(U95=1,U$410=1),1,0)","v":0},{"$f":"IF(AND(V95=1,V$410=1),1,0)","v":0},{"$f":"IF(AND(W95=1,W$410=1),1,0)","v":0},1,{"$f":"IF(AND(X95=1,X$410=1),1,0)","v":0},{"$f":"IF(AND(Y95=1,Y$410=1),1,0)","v":0},{"$f":"IF(AND(Z95=1,Z$410=1),1,0)","v":0},{"$f":"IF(AND(AA95=1,AA$410=1),1,0)","v":0},{"$f":"IF(AND(AB95=1,AB$410=1),1,0)","v":0},{"$f":"IF(AND(AC95=1,AC$410=1),1,0)","v":0},{"$f":"IF(AND(AD95=1,AD$410=1),1,0)","v":0},{"$f":"IF(AND(AE95=1,AE$410=1),1,0)","v":0},{"$f":"IF(AND(AF95=1,AF$410=1),1,0)","v":0},1,{"$f":"IF(AND(AG95=1,AG$410=1),1,0)","v":0},{"$f":"IF(AND(AH95=1,AH$410=1),1,0)","v":0},{"$f":"IF(AND(AI95=1,AI$410=1),1,0)","v":0},{"$f":"IF(AND(AJ95=1,AJ$410=1),1,0)","v":0},{"$f":"IF(AND(AK95=1,AK$410=1),1,0)","v":0},{"$f":"IF(AND(AL95=1,AL$410=1),1,0)","v":0},{"$f":"IF(AND(AM95=1,AM$410=1),1,0)","v":0},{"$f":"IF(AND(AN95=1,AN$410=1),1,0)","v":0},{"$f":"IF(AND(AO95=1,AO$410=1),1,0)","v":0},1,{"$f":"IF(AND(AP95=1,AP$410=1),1,0)","v":1},{"$f":"IF(AND(AQ95=1,AQ$410=1),1,0)","v":0},{"$f":"IF(AND(AR95=1,AR$410=1),1,0)","v":0},{"$f":"IF(AND(AS95=1,AS$410=1),1,0)","v":0},{"$f":"IF(AND(AT95=1,AT$410=1),1,0)","v":0},1,1,87,87,{"$f":"IFERROR(SMALL($CL$9:$CL$408,CK95),\"\")","v":87},{"$f":"IFERROR(INDEX($B$9:$I$408,$CM95,COLUMNS($CN$9:CN95)),\"\")","v":"TA087"},{"$f":"IFERROR(INDEX($B$9:$I$408,$CM95,COLUMNS($CN$9:CO95)),\"\")","v":"Knowledge products launched on time"},{"$f":"IFERROR(INDEX($B$9:$I$408,$CM95,COLUMNS($CN$9:CP95)),\"\")","v":"-"},{"$f":"IFERROR(INDEX($B$9:$I$408,$CM95,COLUMNS($CN$9:CQ95)),\"\")","v":"Activity"},{"$f":"IFERROR(INDEX($B$9:$I$408,$CM95,COLUMNS($CN$9:CR95)),\"\")","v":"Specialist research, inc. market / policy / legal / regulatory / technology research briefs"},{"$f":"IFERROR(INDEX($B$9:$I$408,$CM95,COLUMNS($CN$9:CS95)),\"\")","v":"-"},{"$f":"IFERROR(INDEX($B$9:$I$408,$CM95,COLUMNS($CN$9:CT95)),\"\")","v":"-"},{"$f":"IFERROR(INDEX($B$9:$I$408,$CM95,COLUMNS($CN$9:CU95)),\"\")","v":"Yes/No"}]
[null,{"$f":"IF(ISBLANK('TA Indicator Bank'!B92),\"\",'TA Indicator Bank'!B92)","v":"TA088"},{"$f":"IF(ISBLANK('TA Indicator Bank'!C92),\"\",'TA Indicator Bank'!C92)","v":"Internal knowledge management strategy developed, implemented and reviewed"},{"$f":"IF(ISBLANK('TA Indicator Bank'!D92),\"\",'TA Indicator Bank'!D92)","v":"-"},{"$f":"IF(ISBLANK('TA Indicator Bank'!E92),\"\",'TA Indicator Bank'!E92)","v":"Output"},{"$f":"IF(ISBLANK('TA Indicator Bank'!F92),\"\",'TA Indicator Bank'!F92)","v":"-"},{"$f":"IF(ISBLANK('TA Indicator Bank'!G92),\"\",'TA Indicator Bank'!G92)","v":"Capacity building: Technical capacity"},{"$f":"IF(ISBLANK('TA Indicator Bank'!H92),\"\",'TA Indicator Bank'!H92)","v":"-"},{"$f":"IF(ISBLANK('TA Indicator Bank'!I92),\"\",'TA Indicator Bank'!I92)","v":"Yes/No"},{"$f":"IF(ISBLANK('TA Indicator Bank'!J92),\"\",'TA Indicator Bank'!J92)","v":0},{"$f":"IF(ISBLANK('TA Indicator Bank'!K92),\"\",'TA Indicator Bank'!K92)","v":0},{"$f":"IF(ISBLANK('TA Indicator Bank'!L92),\"\",'TA Indicator Bank'!L92)","v":0},{"$f":"IF(ISBLANK('TA Indicator Bank'!M92),\"\",'TA Indicator Bank'!M92)","v":0},{"$f":"IF(ISBLANK('TA Indicator Bank'!N92),\"\",'TA Indicator Bank'!N92)","v":0},{"$f":"IF(ISBLANK('TA Indicator Bank'!O92),\"\",'TA Indicator Bank'!O92)","v":0},{"$f":"IF(ISBLANK('TA Indicator Bank'!P92),\"\",'TA Indicator Bank'!P92)","v":0},{"$f":"IF(ISBLANK('TA Indicator Bank'!Q92),\"\",'TA Indicator Bank'!Q92)","v":0},{"$f":"IF(ISBLANK('TA Indicator Bank'!R92),\"\",'TA Indicator Bank'!R92)","v":0},{"$f":"IF(ISBLANK('TA Indicator Bank'!S92),\"\",'TA Indicator Bank'!S92)","v":0},{"$f":"IF(ISBLANK('TA Indicator Bank'!T92),\"\",'TA Indicator Bank'!T92)","v":0},{"$f":"IF(ISBLANK('TA Indicator Bank'!U92),\"\",'TA Indicator Bank'!U92)","v":0},{"$f":"IF(ISBLANK('TA Indicator Bank'!V92),\"\",'TA Indicator Bank'!V92)","v":0},{"$f":"IF(ISBLANK('TA Indicator Bank'!W92),\"\",'TA Indicator Bank'!W92)","v":0},{"$f":"IF(ISBLANK('TA Indicator Bank'!X92),\"\",'TA Indicator Bank'!X92)","v":0},{"$f":"IF(ISBLANK('TA Indicator Bank'!Y92),\"\",'TA Indicator Bank'!Y92)","v":1},{"$f":"IF(ISBLANK('TA Indicator Bank'!Z92),\"\",'TA Indicator Bank'!Z92)","v":0},{"$f":"IF(ISBLANK('TA Indicator Bank'!AA92),\"\",'TA Indicator Bank'!AA92)","v":0},{"$f":"IF(ISBLANK('TA Indicator Bank'!AB92),\"\",'TA Indicator Bank'!AB92)","v":0},{"$f":"IF(ISBLANK('TA Indicator Bank'!AC92),\"\",'TA Indicator Bank'!AC92)","v":0},{"$f":"IF(ISBLANK('TA Indicator Bank'!AD92),\"\",'TA Indicator Bank'!AD92)","v":0},{"$f":"IF(ISBLANK('TA Indicator Bank'!AE92),\"\",'TA Indicator Bank'!AE92)","v":0},{"$f":"IF(ISBLANK('TA Indicator Bank'!AF92),\"\",'TA Indicator Bank'!AF92)","v":0},{"$f":"IF(ISBLANK('TA Indicator Bank'!AG92),\"\",'TA Indicator Bank'!AG92)","v":0},{"$f":"IF(ISBLANK('TA Indicator Bank'!AH92),\"\",'TA Indicator Bank'!AH92)","v":0},{"$f":"IF(ISBLANK('TA Indicator Bank'!AI92),\"\",'TA Indicator Bank'!AI92)","v":0},{"$f":"IF(ISBLANK('TA Indicator Bank'!AJ92),\"\",'TA Indicator Bank'!AJ92)","v":0},{"$f":"IF(ISBLANK('TA Indicator Bank'!AK92),\"\",'TA Indicator Bank'!AK92)","v":0},{"$f":"IF(ISBLANK('TA Indicator Bank'!AL92),\"\",'TA Indicator Bank'!AL92)","v":0},{"$f":"IF(ISBLANK('TA Indicator Bank'!AM92),\"\",'TA Indicator Bank'!AM92)","v":0},{"$f":"IF(ISBLANK('TA Indicator Bank'!AN92),\"\",'TA Indicator Bank'!AN92)","v":0},{"$f":"IF(ISBLANK('TA Indicator Bank'!AO92),\"\",'TA Indicator Bank'!AO92)","v":0},{"$f":"IF(ISBLANK('TA Indicator Bank'!AP92),\"\",'TA Indicator Bank'!AP92)","v":0},{"$f":"IF(ISBLANK('TA Indicator Bank'!AQ92),\"\",'TA Indicator Bank'!AQ92)","v":0},{"$f":"IF(ISBLANK('TA Indicator Bank'!AR92),\"\",'TA Indicator Bank'!AR92)","v":1},{"$f":"IF(ISBLANK('TA Indicator Bank'!AS92),\"\",'TA Indicator Bank'!AS92)","v":0},{"$f":"IF(ISBLANK('TA Indicator Bank'!AT92),\"\",'TA Indicator Bank'!AT92)","v":0},{"$f":"IF(AND(J96=1,J$410=1),1,0)","v":0},{"$f":"IF(AND(K96=1,K$410=1),1,0)","v":0},{"$f":"IF(AND(L96=1,L$410=1),1,0)","v":0},{"$f":"IF(AND(M96=1,M$410=1),1,0)","v":0},{"$f":"IF(AND(N96=1,N$410=1),1,0)","v":0},{"$f":"IF(AND(O96=1,O$410=1),1,0)","v":0},{"$f":"IF(AND(P96=1,P$410=1),1,0)","v":0},{"$f":"IF(AND(Q96=1,Q$410=1),1,0)","v":0},{"$f":"IF(AND(R96=1,R$410=1),1,0)","v":0},{"$f":"IF(AND(S96=1,S$410=1),1,0)","v":0},{"$f":"IF(AND(T96=1,T$410=1),1,0)","v":0},{"$f":"IF(AND(U96=1,U$410=1),1,0)","v":0},{"$f":"IF(AND(V96=1,V$410=1),1,0)","v":0},{"$f":"IF(AND(W96=1,W$410=1),1,0)","v":0},1,{"$f":"IF(AND(X96=1,X$410=1),1,0)","v":0},{"$f":"IF(AND(Y96=1,Y$410=1),1,0)","v":1},{"$f":"IF(AND(Z96=1,Z$410=1),1,0)","v":0},{"$f":"IF(AND(AA96=1,AA$410=1),1,0)","v":0},{"$f":"IF(AND(AB96=1,AB$410=1),1,0)","v":0},{"$f":"IF(AND(AC96=1,AC$410=1),1,0)","v":0},{"$f":"IF(AND(AD96=1,AD$410=1),1,0)","v":0},{"$f":"IF(AND(AE96=1,AE$410=1),1,0)","v":0},{"$f":"IF(AND(AF96=1,AF$410=1),1,0)","v":0},1,{"$f":"IF(AND(AG96=1,AG$410=1),1,0)","v":0},{"$f":"IF(AND(AH96=1,AH$410=1),1,0)","v":0},{"$f":"IF(AND(AI96=1,AI$410=1),1,0)","v":0},{"$f":"IF(AND(AJ96=1,AJ$410=1),1,0)","v":0},{"$f":"IF(AND(AK96=1,AK$410=1),1,0)","v":0},{"$f":"IF(AND(AL96=1,AL$410=1),1,0)","v":0},{"$f":"IF(AND(AM96=1,AM$410=1),1,0)","v":0},{"$f":"IF(AND(AN96=1,AN$410=1),1,0)","v":0},{"$f":"IF(AND(AO96=1,AO$410=1),1,0)","v":0},1,{"$f":"IF(AND(AP96=1,AP$410=1),1,0)","v":0},{"$f":"IF(AND(AQ96=1,AQ$410=1),1,0)","v":0},{"$f":"IF(AND(AR96=1,AR$410=1),1,0)","v":1},{"$f":"IF(AND(AS96=1,AS$410=1),1,0)","v":0},{"$f":"IF(AND(AT96=1,AT$410=1),1,0)","v":0},1,1,88,88,{"$f":"IFERROR(SMALL($CL$9:$CL$408,CK96),\"\")","v":88},{"$f":"IFERROR(INDEX($B$9:$I$408,$CM96,COLUMNS($CN$9:CN96)),\"\")","v":"TA088"},{"$f":"IFERROR(INDEX($B$9:$I$408,$CM96,COLUMNS($CN$9:CO96)),\"\")","v":"Internal knowledge management strategy developed, implemented and reviewed"},{"$f":"IFERROR(INDEX($B$9:$I$408,$CM96,COLUMNS($CN$9:CP96)),\"\")","v":"-"},{"$f":"IFERROR(INDEX($B$9:$I$408,$CM96,COLUMNS($CN$9:CQ96)),\"\")","v":"Output"},{"$f":"IFERROR(INDEX($B$9:$I$408,$CM96,COLUMNS($CN$9:CR96)),\"\")","v":"-"},{"$f":"IFERROR(INDEX($B$9:$I$408,$CM96,COLUMNS($CN$9:CS96)),\"\")","v":"Capacity building: Technical capacity"},{"$f":"IFERROR(INDEX($B$9:$I$408,$CM96,COLUMNS($CN$9:CT96)),\"\")","v":"-"},{"$f":"IFERROR(INDEX($B$9:$I$408,$CM96,COLUMNS($CN$9:CU96)),\"\")","v":"Yes/No"}]
[null,{"$f":"IF(ISBLANK('TA Indicator Bank'!B93),\"\",'TA Indicator Bank'!B93)","v":"TA089"},{"$f":"IF(ISBLANK('TA Indicator Bank'!C93),\"\",'TA Indicator Bank'!C93)","v":"Number of enquiries from non-participants "},{"$f":"IF(ISBLANK('TA Indicator Bank'!D93),\"\",'TA Indicator Bank'!D93)","v":"-"},{"$f":"IF(ISBLANK('TA Indicator Bank'!E93),\"\",'TA Indicator Bank'!E93)","v":"Uptake"},{"$f":"IF(ISBLANK('TA Indicator Bank'!F93),\"\",'TA Indicator Bank'!F93)","v":"Data, software, tools and models"},{"$f":"IF(ISBLANK('TA Indicator Bank'!G93),\"\",'TA Indicator Bank'!G93)","v":"-"},{"$f":"IF(ISBLANK('TA Indicator Bank'!H93),\"\",'TA Indicator Bank'!H93)","v":"-"},{"$f":"IF(ISBLANK('TA Indicator Bank'!I93),\"\",'TA Indicator Bank'!I93)","v":"Number"},{"$f":"IF(ISBLANK('TA Indicator Bank'!J93),\"\",'TA Indicator Bank'!J93)","v":0},{"$f":"IF(ISBLANK('TA Indicator Bank'!K93),\"\",'TA Indicator Bank'!K93)","v":0},{"$f":"IF(ISBLANK('TA Indicator Bank'!L93),\"\",'TA Indicator Bank'!L93)","v":0},{"$f":"IF(ISBLANK('TA Indicator Bank'!M93),\"\",'TA Indicator Bank'!M93)","v":0},{"$f":"IF(ISBLANK('TA Indicator Bank'!N93),\"\",'TA Indicator Bank'!N93)","v":0},{"$f":"IF(ISBLANK('TA Indicator Bank'!O93),\"\",'TA Indicator Bank'!O93)","v":0},{"$f":"IF(ISBLANK('TA Indicator Bank'!P93),\"\",'TA Indicator Bank'!P93)","v":0},{"$f":"IF(ISBLANK('TA Indicator Bank'!Q93),\"\",'TA Indicator Bank'!Q93)","v":0},{"$f":"IF(ISBLANK('TA Indicator Bank'!R93),\"\",'TA Indicator Bank'!R93)","v":0},{"$f":"IF(ISBLANK('TA Indicator Bank'!S93),\"\",'TA Indicator Bank'!S93)","v":0},{"$f":"IF(ISBLANK('TA Indicator Bank'!T93),\"\",'TA Indicator Bank'!T93)","v":0},{"$f":"IF(ISBLANK('TA Indicator Bank'!U93),\"\",'TA Indicator Bank'!U93)","v":0},{"$f":"IF(ISBLANK('TA Indicator Bank'!V93),\"\",'TA Indicator Bank'!V93)","v":1},{"$f":"IF(ISBLANK('TA Indicator Bank'!W93),\"\",'TA Indicator Bank'!W93)","v":0},{"$f":"IF(ISBLANK('TA Indicator Bank'!X93),\"\",'TA Indicator Bank'!X93)","v":0},{"$f":"IF(ISBLANK('TA Indicator Bank'!Y93),\"\",'TA Indicator Bank'!Y93)","v":0},{"$f":"IF(ISBLANK('TA Indicator Bank'!Z93),\"\",'TA Indicator Bank'!Z93)","v":0},{"$f":"IF(ISBLANK('TA Indicator Bank'!AA93),\"\",'TA Indicator Bank'!AA93)","v":0},{"$f":"IF(ISBLANK('TA Indicator Bank'!AB93),\"\",'TA Indicator Bank'!AB93)","v":0},{"$f":"IF(ISBLANK('TA Indicator Bank'!AC93),\"\",'TA Indicator Bank'!AC93)","v":0},{"$f":"IF(ISBLANK('TA Indicator Bank'!AD93),\"\",'TA Indicator Bank'!AD93)","v":0},{"$f":"IF(ISBLANK('TA Indicator Bank'!AE93),\"\",'TA Indicator Bank'!AE93)","v":0},{"$f":"IF(ISBLANK('TA Indicator Bank'!AF93),\"\",'TA Indicator Bank'!AF93)","v":0},{"$f":"IF(ISBLANK('TA Indicator Bank'!AG93),\"\",'TA Indicator Bank'!AG93)","v":0},{"$f":"IF(ISBLANK('TA Indicator Bank'!AH93),\"\",'TA Indicator Bank'!AH93)","v":0},{"$f":"IF(ISBLANK('TA Indicator Bank'!AI93),\"\",'TA Indicator Bank'!AI93)","v":0},{"$f":"IF(ISBLANK('TA Indicator Bank'!AJ93),\"\",'TA Indicator Bank'!AJ93)","v":0},{"$f":"IF(ISBLANK('TA Indicator Bank'!AK93),\"\",'TA Indicator Bank'!AK93)","v":0},{"$f":"IF(ISBLANK('TA Indicator Bank'!AL93),\"\",'TA Indicator Bank'!AL93)","v":0},{"$f":"IF(ISBLANK('TA Indicator Bank'!AM93),\"\",'TA Indicator Bank'!AM93)","v":0},{"$f":"IF(ISBLANK('TA Indicator Bank'!AN93),\"\",'TA Indicator Bank'!AN93)","v":0},{"$f":"IF(ISBLANK('TA Indicator Bank'!AO93),\"\",'TA Indicator Bank'!AO93)","v":0},{"$f":"IF(ISBLANK('TA Indicator Bank'!AP93),\"\",'TA Indicator Bank'!AP93)","v":0},{"$f":"IF(ISBLANK('TA Indicator Bank'!AQ93),\"\",'TA Indicator Bank'!AQ93)","v":1},{"$f":"IF(ISBLANK('TA Indicator Bank'!AR93),\"\",'TA Indicator Bank'!AR93)","v":0},{"$f":"IF(ISBLANK('TA Indicator Bank'!AS93),\"\",'TA Indicator Bank'!AS93)","v":0},{"$f":"IF(ISBLANK('TA Indicator Bank'!AT93),\"\",'TA Indicator Bank'!AT93)","v":0},{"$f":"IF(AND(J97=1,J$410=1),1,0)","v":0},{"$f":"IF(AND(K97=1,K$410=1),1,0)","v":0},{"$f":"IF(AND(L97=1,L$410=1),1,0)","v":0},{"$f":"IF(AND(M97=1,M$410=1),1,0)","v":0},{"$f":"IF(AND(N97=1,N$410=1),1,0)","v":0},{"$f":"IF(AND(O97=1,O$410=1),1,0)","v":0},{"$f":"IF(AND(P97=1,P$410=1),1,0)","v":0},{"$f":"IF(AND(Q97=1,Q$410=1),1,0)","v":0},{"$f":"IF(AND(R97=1,R$410=1),1,0)","v":0},{"$f":"IF(AND(S97=1,S$410=1),1,0)","v":0},{"$f":"IF(AND(T97=1,T$410=1),1,0)","v":0},{"$f":"IF(AND(U97=1,U$410=1),1,0)","v":0},{"$f":"IF(AND(V97=1,V$410=1),1,0)","v":1},{"$f":"IF(AND(W97=1,W$410=1),1,0)","v":0},1,{"$f":"IF(AND(X97=1,X$410=1),1,0)","v":0},{"$f":"IF(AND(Y97=1,Y$410=1),1,0)","v":0},{"$f":"IF(AND(Z97=1,Z$410=1),1,0)","v":0},{"$f":"IF(AND(AA97=1,AA$410=1),1,0)","v":0},{"$f":"IF(AND(AB97=1,AB$410=1),1,0)","v":0},{"$f":"IF(AND(AC97=1,AC$410=1),1,0)","v":0},{"$f":"IF(AND(AD97=1,AD$410=1),1,0)","v":0},{"$f":"IF(AND(AE97=1,AE$410=1),1,0)","v":0},{"$f":"IF(AND(AF97=1,AF$410=1),1,0)","v":0},1,{"$f":"IF(AND(AG97=1,AG$410=1),1,0)","v":0},{"$f":"IF(AND(AH97=1,AH$410=1),1,0)","v":0},{"$f":"IF(AND(AI97=1,AI$410=1),1,0)","v":0},{"$f":"IF(AND(AJ97=1,AJ$410=1),1,0)","v":0},{"$f":"IF(AND(AK97=1,AK$410=1),1,0)","v":0},{"$f":"IF(AND(AL97=1,AL$410=1),1,0)","v":0},{"$f":"IF(AND(AM97=1,AM$410=1),1,0)","v":0},{"$f":"IF(AND(AN97=1,AN$410=1),1,0)","v":0},{"$f":"IF(AND(AO97=1,AO$410=1),1,0)","v":0},1,{"$f":"IF(AND(AP97=1,AP$410=1),1,0)","v":0},{"$f":"IF(AND(AQ97=1,AQ$410=1),1,0)","v":1},{"$f":"IF(AND(AR97=1,AR$410=1),1,0)","v":0},{"$f":"IF(AND(AS97=1,AS$410=1),1,0)","v":0},{"$f":"IF(AND(AT97=1,AT$410=1),1,0)","v":0},1,1,89,89,{"$f":"IFERROR(SMALL($CL$9:$CL$408,CK97),\"\")","v":89},{"$f":"IFERROR(INDEX($B$9:$I$408,$CM97,COLUMNS($CN$9:CN97)),\"\")","v":"TA089"},{"$f":"IFERROR(INDEX($B$9:$I$408,$CM97,COLUMNS($CN$9:CO97)),\"\")","v":"Number of enquiries from non-participants "},{"$f":"IFERROR(INDEX($B$9:$I$408,$CM97,COLUMNS($CN$9:CP97)),\"\")","v":"-"},{"$f":"IFERROR(INDEX($B$9:$I$408,$CM97,COLUMNS($CN$9:CQ97)),\"\")","v":"Uptake"},{"$f":"IFERROR(INDEX($B$9:$I$408,$CM97,COLUMNS($CN$9:CR97)),\"\")","v":"Data, software, tools and models"},{"$f":"IFERROR(INDEX($B$9:$I$408,$CM97,COLUMNS($CN$9:CS97)),\"\")","v":"-"},{"$f":"IFERROR(INDEX($B$9:$I$408,$CM97,COLUMNS($CN$9:CT97)),\"\")","v":"-"},{"$f":"IFERROR(INDEX($B$9:$I$408,$CM97,COLUMNS($CN$9:CU97)),\"\")","v":"Number"}]
[null,{"$f":"IF(ISBLANK('TA Indicator Bank'!B94),\"\",'TA Indicator Bank'!B94)","v":"TA090"},{"$f":"IF(ISBLANK('TA Indicator Bank'!C94),\"\",'TA Indicator Bank'!C94)","v":"Knowledge products created with programme support"},{"$f":"IF(ISBLANK('TA Indicator Bank'!D94),\"\",'TA Indicator Bank'!D94)","v":"-"},{"$f":"IF(ISBLANK('TA Indicator Bank'!E94),\"\",'TA Indicator Bank'!E94)","v":"Activity"},{"$f":"IF(ISBLANK('TA Indicator Bank'!F94),\"\",'TA Indicator Bank'!F94)","v":"Data, software, tools and models"},{"$f":"IF(ISBLANK('TA Indicator Bank'!G94),\"\",'TA Indicator Bank'!G94)","v":"-"},{"$f":"IF(ISBLANK('TA Indicator Bank'!H94),\"\",'TA Indicator Bank'!H94)","v":"-"},{"$f":"IF(ISBLANK('TA Indicator Bank'!I94),\"\",'TA Indicator Bank'!I94)","v":"Yes/No"},{"$f":"IF(ISBLANK('TA Indicator Bank'!J94),\"\",'TA Indicator Bank'!J94)","v":0},{"$f":"IF(ISBLANK('TA Indicator Bank'!K94),\"\",'TA Indicator Bank'!K94)","v":0},{"$f":"IF(ISBLANK('TA Indicator Bank'!L94),\"\",'TA Indicator Bank'!L94)","v":0},{"$f":"IF(ISBLANK('TA Indicator Bank'!M94),\"\",'TA Indicator Bank'!M94)","v":0},{"$f":"IF(ISBLANK('TA Indicator Bank'!N94),\"\",'TA Indicator Bank'!N94)","v":0},{"$f":"IF(ISBLANK('TA Indicator Bank'!O94),\"\",'TA Indicator Bank'!O94)","v":0},{"$f":"IF(ISBLANK('TA Indicator Bank'!P94),\"\",'TA Indicator Bank'!P94)","v":0},{"$f":"IF(ISBLANK('TA Indicator Bank'!Q94),\"\",'TA Indicator Bank'!Q94)","v":0},{"$f":"IF(ISBLANK('TA Indicator Bank'!R94),\"\",'TA Indicator Bank'!R94)","v":0},{"$f":"IF(ISBLANK('TA Indicator Bank'!S94),\"\",'TA Indicator Bank'!S94)","v":0},{"$f":"IF(ISBLANK('TA Indicator Bank'!T94),\"\",'TA Indicator Bank'!T94)","v":0},{"$f":"IF(ISBLANK('TA Indicator Bank'!U94),\"\",'TA Indicator Bank'!U94)","v":0},{"$f":"IF(ISBLANK('TA Indicator Bank'!V94),\"\",'TA Indicator Bank'!V94)","v":1},{"$f":"IF(ISBLANK('TA Indicator Bank'!W94),\"\",'TA Indicator Bank'!W94)","v":0},{"$f":"IF(ISBLANK('TA Indicator Bank'!X94),\"\",'TA Indicator Bank'!X94)","v":0},{"$f":"IF(ISBLANK('TA Indicator Bank'!Y94),\"\",'TA Indicator Bank'!Y94)","v":0},{"$f":"IF(ISBLANK('TA Indicator Bank'!Z94),\"\",'TA Indicator Bank'!Z94)","v":0},{"$f":"IF(ISBLANK('TA Indicator Bank'!AA94),\"\",'TA Indicator Bank'!AA94)","v":0},{"$f":"IF(ISBLANK('TA Indicator Bank'!AB94),\"\",'TA Indicator Bank'!AB94)","v":0},{"$f":"IF(ISBLANK('TA Indicator Bank'!AC94),\"\",'TA Indicator Bank'!AC94)","v":0},{"$f":"IF(ISBLANK('TA Indicator Bank'!AD94),\"\",'TA Indicator Bank'!AD94)","v":0},{"$f":"IF(ISBLANK('TA Indicator Bank'!AE94),\"\",'TA Indicator Bank'!AE94)","v":0},{"$f":"IF(ISBLANK('TA Indicator Bank'!AF94),\"\",'TA Indicator Bank'!AF94)","v":0},{"$f":"IF(ISBLANK('TA Indicator Bank'!AG94),\"\",'TA Indicator Bank'!AG94)","v":0},{"$f":"IF(ISBLANK('TA Indicator Bank'!AH94),\"\",'TA Indicator Bank'!AH94)","v":0},{"$f":"IF(ISBLANK('TA Indicator Bank'!AI94),\"\",'TA Indicator Bank'!AI94)","v":0},{"$f":"IF(ISBLANK('TA Indicator Bank'!AJ94),\"\",'TA Indicator Bank'!AJ94)","v":0},{"$f":"IF(ISBLANK('TA Indicator Bank'!AK94),\"\",'TA Indicator Bank'!AK94)","v":0},{"$f":"IF(ISBLANK('TA Indicator Bank'!AL94),\"\",'TA Indicator Bank'!AL94)","v":0},{"$f":"IF(ISBLANK('TA Indicator Bank'!AM94),\"\",'TA Indicator Bank'!AM94)","v":0},{"$f":"IF(ISBLANK('TA Indicator Bank'!AN94),\"\",'TA Indicator Bank'!AN94)","v":0},{"$f":"IF(ISBLANK('TA Indicator Bank'!AO94),\"\",'TA Indicator Bank'!AO94)","v":0},{"$f":"IF(ISBLANK('TA Indicator Bank'!AP94),\"\",'TA Indicator Bank'!AP94)","v":1},{"$f":"IF(ISBLANK('TA Indicator Bank'!AQ94),\"\",'TA Indicator Bank'!AQ94)","v":0},{"$f":"IF(ISBLANK('TA Indicator Bank'!AR94),\"\",'TA Indicator Bank'!AR94)","v":0},{"$f":"IF(ISBLANK('TA Indicator Bank'!AS94),\"\",'TA Indicator Bank'!AS94)","v":0},{"$f":"IF(ISBLANK('TA Indicator Bank'!AT94),\"\",'TA Indicator Bank'!AT94)","v":0},{"$f":"IF(AND(J98=1,J$410=1),1,0)","v":0},{"$f":"IF(AND(K98=1,K$410=1),1,0)","v":0},{"$f":"IF(AND(L98=1,L$410=1),1,0)","v":0},{"$f":"IF(AND(M98=1,M$410=1),1,0)","v":0},{"$f":"IF(AND(N98=1,N$410=1),1,0)","v":0},{"$f":"IF(AND(O98=1,O$410=1),1,0)","v":0},{"$f":"IF(AND(P98=1,P$410=1),1,0)","v":0},{"$f":"IF(AND(Q98=1,Q$410=1),1,0)","v":0},{"$f":"IF(AND(R98=1,R$410=1),1,0)","v":0},{"$f":"IF(AND(S98=1,S$410=1),1,0)","v":0},{"$f":"IF(AND(T98=1,T$410=1),1,0)","v":0},{"$f":"IF(AND(U98=1,U$410=1),1,0)","v":0},{"$f":"IF(AND(V98=1,V$410=1),1,0)","v":1},{"$f":"IF(AND(W98=1,W$410=1),1,0)","v":0},1,{"$f":"IF(AND(X98=1,X$410=1),1,0)","v":0},{"$f":"IF(AND(Y98=1,Y$410=1),1,0)","v":0},{"$f":"IF(AND(Z98=1,Z$410=1),1,0)","v":0},{"$f":"IF(AND(AA98=1,AA$410=1),1,0)","v":0},{"$f":"IF(AND(AB98=1,AB$410=1),1,0)","v":0},{"$f":"IF(AND(AC98=1,AC$410=1),1,0)","v":0},{"$f":"IF(AND(AD98=1,AD$410=1),1,0)","v":0},{"$f":"IF(AND(AE98=1,AE$410=1),1,0)","v":0},{"$f":"IF(AND(AF98=1,AF$410=1),1,0)","v":0},1,{"$f":"IF(AND(AG98=1,AG$410=1),1,0)","v":0},{"$f":"IF(AND(AH98=1,AH$410=1),1,0)","v":0},{"$f":"IF(AND(AI98=1,AI$410=1),1,0)","v":0},{"$f":"IF(AND(AJ98=1,AJ$410=1),1,0)","v":0},{"$f":"IF(AND(AK98=1,AK$410=1),1,0)","v":0},{"$f":"IF(AND(AL98=1,AL$410=1),1,0)","v":0},{"$f":"IF(AND(AM98=1,AM$410=1),1,0)","v":0},{"$f":"IF(AND(AN98=1,AN$410=1),1,0)","v":0},{"$f":"IF(AND(AO98=1,AO$410=1),1,0)","v":0},1,{"$f":"IF(AND(AP98=1,AP$410=1),1,0)","v":1},{"$f":"IF(AND(AQ98=1,AQ$410=1),1,0)","v":0},{"$f":"IF(AND(AR98=1,AR$410=1),1,0)","v":0},{"$f":"IF(AND(AS98=1,AS$410=1),1,0)","v":0},{"$f":"IF(AND(AT98=1,AT$410=1),1,0)","v":0},1,1,90,90,{"$f":"IFERROR(SMALL($CL$9:$CL$408,CK98),\"\")","v":90},{"$f":"IFERROR(INDEX($B$9:$I$408,$CM98,COLUMNS($CN$9:CN98)),\"\")","v":"TA090"},{"$f":"IFERROR(INDEX($B$9:$I$408,$CM98,COLUMNS($CN$9:CO98)),\"\")","v":"Knowledge products created with programme support"},{"$f":"IFERROR(INDEX($B$9:$I$408,$CM98,COLUMNS($CN$9:CP98)),\"\")","v":"-"},{"$f":"IFERROR(INDEX($B$9:$I$408,$CM98,COLUMNS($CN$9:CQ98)),\"\")","v":"Activity"},{"$f":"IFERROR(INDEX($B$9:$I$408,$CM98,COLUMNS($CN$9:CR98)),\"\")","v":"Data, software, tools and models"},{"$f":"IFERROR(INDEX($B$9:$I$408,$CM98,COLUMNS($CN$9:CS98)),\"\")","v":"-"},{"$f":"IFERROR(INDEX($B$9:$I$408,$CM98,COLUMNS($CN$9:CT98)),\"\")","v":"-"},{"$f":"IFERROR(INDEX($B$9:$I$408,$CM98,COLUMNS($CN$9:CU98)),\"\")","v":"Yes/No"}]
[null,{"$f":"IF(ISBLANK('TA Indicator Bank'!B95),\"\",'TA Indicator Bank'!B95)","v":"TA091"},{"$f":"IF(ISBLANK('TA Indicator Bank'!C95),\"\",'TA Indicator Bank'!C95)","v":"Percentage of data that complies with international standards"},{"$f":"IF(ISBLANK('TA Indicator Bank'!D95),\"\",'TA Indicator Bank'!D95)","v":"-"},{"$f":"IF(ISBLANK('TA Indicator Bank'!E95),\"\",'TA Indicator Bank'!E95)","v":"Output"},{"$f":"IF(ISBLANK('TA Indicator Bank'!F95),\"\",'TA Indicator Bank'!F95)","v":"-"},{"$f":"IF(ISBLANK('TA Indicator Bank'!G95),\"\",'TA Indicator Bank'!G95)","v":"Capacity building: Technical capacity"},{"$f":"IF(ISBLANK('TA Indicator Bank'!H95),\"\",'TA Indicator Bank'!H95)","v":"-"},{"$f":"IF(ISBLANK('TA Indicator Bank'!I95),\"\",'TA Indicator Bank'!I95)","v":"Percentage"},{"$f":"IF(ISBLANK('TA Indicator Bank'!J95),\"\",'TA Indicator Bank'!J95)","v":0},{"$f":"IF(ISBLANK('TA Indicator Bank'!K95),\"\",'TA Indicator Bank'!K95)","v":0},{"$f":"IF(ISBLANK('TA Indicator Bank'!L95),\"\",'TA Indicator Bank'!L95)","v":0},{"$f":"IF(ISBLANK('TA Indicator Bank'!M95),\"\",'TA Indicator Bank'!M95)","v":0},{"$f":"IF(ISBLANK('TA Indicator Bank'!N95),\"\",'TA Indicator Bank'!N95)","v":0},{"$f":"IF(ISBLANK('TA Indicator Bank'!O95),\"\",'TA Indicator Bank'!O95)","v":0},{"$f":"IF(ISBLANK('TA Indicator Bank'!P95),\"\",'TA Indicator Bank'!P95)","v":0},{"$f":"IF(ISBLANK('TA Indicator Bank'!Q95),\"\",'TA Indicator Bank'!Q95)","v":0},{"$f":"IF(ISBLANK('TA Indicator Bank'!R95),\"\",'TA Indicator Bank'!R95)","v":0},{"$f":"IF(ISBLANK('TA Indicator Bank'!S95),\"\",'TA Indicator Bank'!S95)","v":0},{"$f":"IF(ISBLANK('TA Indicator Bank'!T95),\"\",'TA Indicator Bank'!T95)","v":0},{"$f":"IF(ISBLANK('TA Indicator Bank'!U95),\"\",'TA Indicator Bank'!U95)","v":0},{"$f":"IF(ISBLANK('TA Indicator Bank'!V95),\"\",'TA Indicator Bank'!V95)","v":0},{"$f":"IF(ISBLANK('TA Indicator Bank'!W95),\"\",'TA Indicator Bank'!W95)","v":0},{"$f":"IF(ISBLANK('TA Indicator Bank'!X95),\"\",'TA Indicator Bank'!X95)","v":0},{"$f":"IF(ISBLANK('TA Indicator Bank'!Y95),\"\",'TA Indicator Bank'!Y95)","v":1},{"$f":"IF(ISBLANK('TA Indicator Bank'!Z95),\"\",'TA Indicator Bank'!Z95)","v":0},{"$f":"IF(ISBLANK('TA Indicator Bank'!AA95),\"\",'TA Indicator Bank'!AA95)","v":0},{"$f":"IF(ISBLANK('TA Indicator Bank'!AB95),\"\",'TA Indicator Bank'!AB95)","v":0},{"$f":"IF(ISBLANK('TA Indicator Bank'!AC95),\"\",'TA Indicator Bank'!AC95)","v":0},{"$f":"IF(ISBLANK('TA Indicator Bank'!AD95),\"\",'TA Indicator Bank'!AD95)","v":0},{"$f":"IF(ISBLANK('TA Indicator Bank'!AE95),\"\",'TA Indicator Bank'!AE95)","v":0},{"$f":"IF(ISBLANK('TA Indicator Bank'!AF95),\"\",'TA Indicator Bank'!AF95)","v":0},{"$f":"IF(ISBLANK('TA Indicator Bank'!AG95),\"\",'TA Indicator Bank'!AG95)","v":0},{"$f":"IF(ISBLANK('TA Indicator Bank'!AH95),\"\",'TA Indicator Bank'!AH95)","v":0},{"$f":"IF(ISBLANK('TA Indicator Bank'!AI95),\"\",'TA Indicator Bank'!AI95)","v":0},{"$f":"IF(ISBLANK('TA Indicator Bank'!AJ95),\"\",'TA Indicator Bank'!AJ95)","v":0},{"$f":"IF(ISBLANK('TA Indicator Bank'!AK95),\"\",'TA Indicator Bank'!AK95)","v":0},{"$f":"IF(ISBLANK('TA Indicator Bank'!AL95),\"\",'TA Indicator Bank'!AL95)","v":0},{"$f":"IF(ISBLANK('TA Indicator Bank'!AM95),\"\",'TA Indicator Bank'!AM95)","v":0},{"$f":"IF(ISBLANK('TA Indicator Bank'!AN95),\"\",'TA Indicator Bank'!AN95)","v":0},{"$f":"IF(ISBLANK('TA Indicator Bank'!AO95),\"\",'TA Indicator Bank'!AO95)","v":0},{"$f":"IF(ISBLANK('TA Indicator Bank'!AP95),\"\",'TA Indicator Bank'!AP95)","v":0},{"$f":"IF(ISBLANK('TA Indicator Bank'!AQ95),\"\",'TA Indicator Bank'!AQ95)","v":0},{"$f":"IF(ISBLANK('TA Indicator Bank'!AR95),\"\",'TA Indicator Bank'!AR95)","v":1},{"$f":"IF(ISBLANK('TA Indicator Bank'!AS95),\"\",'TA Indicator Bank'!AS95)","v":0},{"$f":"IF(ISBLANK('TA Indicator Bank'!AT95),\"\",'TA Indicator Bank'!AT95)","v":0},{"$f":"IF(AND(J99=1,J$410=1),1,0)","v":0},{"$f":"IF(AND(K99=1,K$410=1),1,0)","v":0},{"$f":"IF(AND(L99=1,L$410=1),1,0)","v":0},{"$f":"IF(AND(M99=1,M$410=1),1,0)","v":0},{"$f":"IF(AND(N99=1,N$410=1),1,0)","v":0},{"$f":"IF(AND(O99=1,O$410=1),1,0)","v":0},{"$f":"IF(AND(P99=1,P$410=1),1,0)","v":0},{"$f":"IF(AND(Q99=1,Q$410=1),1,0)","v":0},{"$f":"IF(AND(R99=1,R$410=1),1,0)","v":0},{"$f":"IF(AND(S99=1,S$410=1),1,0)","v":0},{"$f":"IF(AND(T99=1,T$410=1),1,0)","v":0},{"$f":"IF(AND(U99=1,U$410=1),1,0)","v":0},{"$f":"IF(AND(V99=1,V$410=1),1,0)","v":0},{"$f":"IF(AND(W99=1,W$410=1),1,0)","v":0},1,{"$f":"IF(AND(X99=1,X$410=1),1,0)","v":0},{"$f":"IF(AND(Y99=1,Y$410=1),1,0)","v":1},{"$f":"IF(AND(Z99=1,Z$410=1),1,0)","v":0},{"$f":"IF(AND(AA99=1,AA$410=1),1,0)","v":0},{"$f":"IF(AND(AB99=1,AB$410=1),1,0)","v":0},{"$f":"IF(AND(AC99=1,AC$410=1),1,0)","v":0},{"$f":"IF(AND(AD99=1,AD$410=1),1,0)","v":0},{"$f":"IF(AND(AE99=1,AE$410=1),1,0)","v":0},{"$f":"IF(AND(AF99=1,AF$410=1),1,0)","v":0},1,{"$f":"IF(AND(AG99=1,AG$410=1),1,0)","v":0},{"$f":"IF(AND(AH99=1,AH$410=1),1,0)","v":0},{"$f":"IF(AND(AI99=1,AI$410=1),1,0)","v":0},{"$f":"IF(AND(AJ99=1,AJ$410=1),1,0)","v":0},{"$f":"IF(AND(AK99=1,AK$410=1),1,0)","v":0},{"$f":"IF(AND(AL99=1,AL$410=1),1,0)","v":0},{"$f":"IF(AND(AM99=1,AM$410=1),1,0)","v":0},{"$f":"IF(AND(AN99=1,AN$410=1),1,0)","v":0},{"$f":"IF(AND(AO99=1,AO$410=1),1,0)","v":0},1,{"$f":"IF(AND(AP99=1,AP$410=1),1,0)","v":0},{"$f":"IF(AND(AQ99=1,AQ$410=1),1,0)","v":0},{"$f":"IF(AND(AR99=1,AR$410=1),1,0)","v":1},{"$f":"IF(AND(AS99=1,AS$410=1),1,0)","v":0},{"$f":"IF(AND(AT99=1,AT$410=1),1,0)","v":0},1,1,91,91,{"$f":"IFERROR(SMALL($CL$9:$CL$408,CK99),\"\")","v":91},{"$f":"IFERROR(INDEX($B$9:$I$408,$CM99,COLUMNS($CN$9:CN99)),\"\")","v":"TA091"},{"$f":"IFERROR(INDEX($B$9:$I$408,$CM99,COLUMNS($CN$9:CO99)),\"\")","v":"Percentage of data that complies with international standards"},{"$f":"IFERROR(INDEX($B$9:$I$408,$CM99,COLUMNS($CN$9:CP99)),\"\")","v":"-"},{"$f":"IFERROR(INDEX($B$9:$I$408,$CM99,COLUMNS($CN$9:CQ99)),\"\")","v":"Output"},{"$f":"IFERROR(INDEX($B$9:$I$408,$CM99,COLUMNS($CN$9:CR99)),\"\")","v":"-"},{"$f":"IFERROR(INDEX($B$9:$I$408,$CM99,COLUMNS($CN$9:CS99)),\"\")","v":"Capacity building: Technical capacity"},{"$f":"IFERROR(INDEX($B$9:$I$408,$CM99,COLUMNS($CN$9:CT99)),\"\")","v":"-"},{"$f":"IFERROR(INDEX($B$9:$I$408,$CM99,COLUMNS($CN$9:CU99)),\"\")","v":"Percentage"}]
[null,{"$f":"IF(ISBLANK('TA Indicator Bank'!B96),\"\",'TA Indicator Bank'!B96)","v":"TA092"},{"$f":"IF(ISBLANK('TA Indicator Bank'!C96),\"\",'TA Indicator Bank'!C96)","v":"Number of knowledge products created with programme support"},{"$f":"IF(ISBLANK('TA Indicator Bank'!D96),\"\",'TA Indicator Bank'!D96)","v":"-"},{"$f":"IF(ISBLANK('TA Indicator Bank'!E96),\"\",'TA Indicator Bank'!E96)","v":"Output"},{"$f":"IF(ISBLANK('TA Indicator Bank'!F96),\"\",'TA Indicator Bank'!F96)","v":"-"},{"$f":"IF(ISBLANK('TA Indicator Bank'!G96),\"\",'TA Indicator Bank'!G96)","v":"Capacity building: Technical capacity"},{"$f":"IF(ISBLANK('TA Indicator Bank'!H96),\"\",'TA Indicator Bank'!H96)","v":"-"},{"$f":"IF(ISBLANK('TA Indicator Bank'!I96),\"\",'TA Indicator Bank'!I96)","v":"Number"},{"$f":"IF(ISBLANK('TA Indicator Bank'!J96),\"\",'TA Indicator Bank'!J96)","v":0},{"$f":"IF(ISBLANK('TA Indicator Bank'!K96),\"\",'TA Indicator Bank'!K96)","v":0},{"$f":"IF(ISBLANK('TA Indicator Bank'!L96),\"\",'TA Indicator Bank'!L96)","v":0},{"$f":"IF(ISBLANK('TA Indicator Bank'!M96),\"\",'TA Indicator Bank'!M96)","v":0},{"$f":"IF(ISBLANK('TA Indicator Bank'!N96),\"\",'TA Indicator Bank'!N96)","v":0},{"$f":"IF(ISBLANK('TA Indicator Bank'!O96),\"\",'TA Indicator Bank'!O96)","v":0},{"$f":"IF(ISBLANK('TA Indicator Bank'!P96),\"\",'TA Indicator Bank'!P96)","v":0},{"$f":"IF(ISBLANK('TA Indicator Bank'!Q96),\"\",'TA Indicator Bank'!Q96)","v":0},{"$f":"IF(ISBLANK('TA Indicator Bank'!R96),\"\",'TA Indicator Bank'!R96)","v":0},{"$f":"IF(ISBLANK('TA Indicator Bank'!S96),\"\",'TA Indicator Bank'!S96)","v":0},{"$f":"IF(ISBLANK('TA Indicator Bank'!T96),\"\",'TA Indicator Bank'!T96)","v":0},{"$f":"IF(ISBLANK('TA Indicator Bank'!U96),\"\",'TA Indicator Bank'!U96)","v":0},{"$f":"IF(ISBLANK('TA Indicator Bank'!V96),\"\",'TA Indicator Bank'!V96)","v":0},{"$f":"IF(ISBLANK('TA Indicator Bank'!W96),\"\",'TA Indicator Bank'!W96)","v":0},{"$f":"IF(ISBLANK('TA Indicator Bank'!X96),\"\",'TA Indicator Bank'!X96)","v":0},{"$f":"IF(ISBLANK('TA Indicator Bank'!Y96),\"\",'TA Indicator Bank'!Y96)","v":1},{"$f":"IF(ISBLANK('TA Indicator Bank'!Z96),\"\",'TA Indicator Bank'!Z96)","v":0},{"$f":"IF(ISBLANK('TA Indicator Bank'!AA96),\"\",'TA Indicator Bank'!AA96)","v":0},{"$f":"IF(ISBLANK('TA Indicator Bank'!AB96),\"\",'TA Indicator Bank'!AB96)","v":0},{"$f":"IF(ISBLANK('TA Indicator Bank'!AC96),\"\",'TA Indicator Bank'!AC96)","v":0},{"$f":"IF(ISBLANK('TA Indicator Bank'!AD96),\"\",'TA Indicator Bank'!AD96)","v":0},{"$f":"IF(ISBLANK('TA Indicator Bank'!AE96),\"\",'TA Indicator Bank'!AE96)","v":0},{"$f":"IF(ISBLANK('TA Indicator Bank'!AF96),\"\",'TA Indicator Bank'!AF96)","v":0},{"$f":"IF(ISBLANK('TA Indicator Bank'!AG96),\"\",'TA Indicator Bank'!AG96)","v":0},{"$f":"IF(ISBLANK('TA Indicator Bank'!AH96),\"\",'TA Indicator Bank'!AH96)","v":0},{"$f":"IF(ISBLANK('TA Indicator Bank'!AI96),\"\",'TA Indicator Bank'!AI96)","v":0},{"$f":"IF(ISBLANK('TA Indicator Bank'!AJ96),\"\",'TA Indicator Bank'!AJ96)","v":0},{"$f":"IF(ISBLANK('TA Indicator Bank'!AK96),\"\",'TA Indicator Bank'!AK96)","v":0},{"$f":"IF(ISBLANK('TA Indicator Bank'!AL96),\"\",'TA Indicator Bank'!AL96)","v":0},{"$f":"IF(ISBLANK('TA Indicator Bank'!AM96),\"\",'TA Indicator Bank'!AM96)","v":0},{"$f":"IF(ISBLANK('TA Indicator Bank'!AN96),\"\",'TA Indicator Bank'!AN96)","v":0},{"$f":"IF(ISBLANK('TA Indicator Bank'!AO96),\"\",'TA Indicator Bank'!AO96)","v":0},{"$f":"IF(ISBLANK('TA Indicator Bank'!AP96),\"\",'TA Indicator Bank'!AP96)","v":0},{"$f":"IF(ISBLANK('TA Indicator Bank'!AQ96),\"\",'TA Indicator Bank'!AQ96)","v":0},{"$f":"IF(ISBLANK('TA Indicator Bank'!AR96),\"\",'TA Indicator Bank'!AR96)","v":1},{"$f":"IF(ISBLANK('TA Indicator Bank'!AS96),\"\",'TA Indicator Bank'!AS96)","v":0},{"$f":"IF(ISBLANK('TA Indicator Bank'!AT96),\"\",'TA Indicator Bank'!AT96)","v":0},{"$f":"IF(AND(J100=1,J$410=1),1,0)","v":0},{"$f":"IF(AND(K100=1,K$410=1),1,0)","v":0},{"$f":"IF(AND(L100=1,L$410=1),1,0)","v":0},{"$f":"IF(AND(M100=1,M$410=1),1,0)","v":0},{"$f":"IF(AND(N100=1,N$410=1),1,0)","v":0},{"$f":"IF(AND(O100=1,O$410=1),1,0)","v":0},{"$f":"IF(AND(P100=1,P$410=1),1,0)","v":0},{"$f":"IF(AND(Q100=1,Q$410=1),1,0)","v":0},{"$f":"IF(AND(R100=1,R$410=1),1,0)","v":0},{"$f":"IF(AND(S100=1,S$410=1),1,0)","v":0},{"$f":"IF(AND(T100=1,T$410=1),1,0)","v":0},{"$f":"IF(AND(U100=1,U$410=1),1,0)","v":0},{"$f":"IF(AND(V100=1,V$410=1),1,0)","v":0},{"$f":"IF(AND(W100=1,W$410=1),1,0)","v":0},1,{"$f":"IF(AND(X100=1,X$410=1),1,0)","v":0},{"$f":"IF(AND(Y100=1,Y$410=1),1,0)","v":1},{"$f":"IF(AND(Z100=1,Z$410=1),1,0)","v":0},{"$f":"IF(AND(AA100=1,AA$410=1),1,0)","v":0},{"$f":"IF(AND(AB100=1,AB$410=1),1,0)","v":0},{"$f":"IF(AND(AC100=1,AC$410=1),1,0)","v":0},{"$f":"IF(AND(AD100=1,AD$410=1),1,0)","v":0},{"$f":"IF(AND(AE100=1,AE$410=1),1,0)","v":0},{"$f":"IF(AND(AF100=1,AF$410=1),1,0)","v":0},1,{"$f":"IF(AND(AG100=1,AG$410=1),1,0)","v":0},{"$f":"IF(AND(AH100=1,AH$410=1),1,0)","v":0},{"$f":"IF(AND(AI100=1,AI$410=1),1,0)","v":0},{"$f":"IF(AND(AJ100=1,AJ$410=1),1,0)","v":0},{"$f":"IF(AND(AK100=1,AK$410=1),1,0)","v":0},{"$f":"IF(AND(AL100=1,AL$410=1),1,0)","v":0},{"$f":"IF(AND(AM100=1,AM$410=1),1,0)","v":0},{"$f":"IF(AND(AN100=1,AN$410=1),1,0)","v":0},{"$f":"IF(AND(AO100=1,AO$410=1),1,0)","v":0},1,{"$f":"IF(AND(AP100=1,AP$410=1),1,0)","v":0},{"$f":"IF(AND(AQ100=1,AQ$410=1),1,0)","v":0},{"$f":"IF(AND(AR100=1,AR$410=1),1,0)","v":1},{"$f":"IF(AND(AS100=1,AS$410=1),1,0)","v":0},{"$f":"IF(AND(AT100=1,AT$410=1),1,0)","v":0},1,1,92,92,{"$f":"IFERROR(SMALL($CL$9:$CL$408,CK100),\"\")","v":92},{"$f":"IFERROR(INDEX($B$9:$I$408,$CM100,COLUMNS($CN$9:CN100)),\"\")","v":"TA092"},{"$f":"IFERROR(INDEX($B$9:$I$408,$CM100,COLUMNS($CN$9:CO100)),\"\")","v":"Number of knowledge products created with programme support"},{"$f":"IFERROR(INDEX($B$9:$I$408,$CM100,COLUMNS($CN$9:CP100)),\"\")","v":"-"},{"$f":"IFERROR(INDEX($B$9:$I$408,$CM100,COLUMNS($CN$9:CQ100)),\"\")","v":"Output"},{"$f":"IFERROR(INDEX($B$9:$I$408,$CM100,COLUMNS($CN$9:CR100)),\"\")","v":"-"},{"$f":"IFERROR(INDEX($B$9:$I$408,$CM100,COLUMNS($CN$9:CS100)),\"\")","v":"Capacity building: Technical capacity"},{"$f":"IFERROR(INDEX($B$9:$I$408,$CM100,COLUMNS($CN$9:CT100)),\"\")","v":"-"},{"$f":"IFERROR(INDEX($B$9:$I$408,$CM100,COLUMNS($CN$9:CU100)),\"\")","v":"Number"}]
[null,{"$f":"IF(ISBLANK('TA Indicator Bank'!B97),\"\",'TA Indicator Bank'!B97)","v":"TA093"},{"$f":"IF(ISBLANK('TA Indicator Bank'!C97),\"\",'TA Indicator Bank'!C97)","v":"Number of participants rate capacity building activities as good or very good"},{"$f":"IF(ISBLANK('TA Indicator Bank'!D97),\"\",'TA Indicator Bank'!D97)","v":"-"},{"$f":"IF(ISBLANK('TA Indicator Bank'!E97),\"\",'TA Indicator Bank'!E97)","v":"Output"},{"$f":"IF(ISBLANK('TA Indicator Bank'!F97),\"\",'TA Indicator Bank'!F97)","v":"-"},{"$f":"IF(ISBLANK('TA Indicator Bank'!G97),\"\",'TA Indicator Bank'!G97)","v":"Capacity building: Technical capacity"},{"$f":"IF(ISBLANK('TA Indicator Bank'!H97),\"\",'TA Indicator Bank'!H97)","v":"-"},{"$f":"IF(ISBLANK('TA Indicator Bank'!I97),\"\",'TA Indicator Bank'!I97)","v":"Number"},{"$f":"IF(ISBLANK('TA Indicator Bank'!J97),\"\",'TA Indicator Bank'!J97)","v":0},{"$f":"IF(ISBLANK('TA Indicator Bank'!K97),\"\",'TA Indicator Bank'!K97)","v":0},{"$f":"IF(ISBLANK('TA Indicator Bank'!L97),\"\",'TA Indicator Bank'!L97)","v":0},{"$f":"IF(ISBLANK('TA Indicator Bank'!M97),\"\",'TA Indicator Bank'!M97)","v":0},{"$f":"IF(ISBLANK('TA Indicator Bank'!N97),\"\",'TA Indicator Bank'!N97)","v":0},{"$f":"IF(ISBLANK('TA Indicator Bank'!O97),\"\",'TA Indicator Bank'!O97)","v":0},{"$f":"IF(ISBLANK('TA Indicator Bank'!P97),\"\",'TA Indicator Bank'!P97)","v":0},{"$f":"IF(ISBLANK('TA Indicator Bank'!Q97),\"\",'TA Indicator Bank'!Q97)","v":0},{"$f":"IF(ISBLANK('TA Indicator Bank'!R97),\"\",'TA Indicator Bank'!R97)","v":0},{"$f":"IF(ISBLANK('TA Indicator Bank'!S97),\"\",'TA Indicator Bank'!S97)","v":0},{"$f":"IF(ISBLANK('TA Indicator Bank'!T97),\"\",'TA Indicator Bank'!T97)","v":0},{"$f":"IF(ISBLANK('TA Indicator Bank'!U97),\"\",'TA Indicator Bank'!U97)","v":0},{"$f":"IF(ISBLANK('TA Indicator Bank'!V97),\"\",'TA Indicator Bank'!V97)","v":0},{"$f":"IF(ISBLANK('TA Indicator Bank'!W97),\"\",'TA Indicator Bank'!W97)","v":0},{"$f":"IF(ISBLANK('TA Indicator Bank'!X97),\"\",'TA Indicator Bank'!X97)","v":0},{"$f":"IF(ISBLANK('TA Indicator Bank'!Y97),\"\",'TA Indicator Bank'!Y97)","v":1},{"$f":"IF(ISBLANK('TA Indicator Bank'!Z97),\"\",'TA Indicator Bank'!Z97)","v":0},{"$f":"IF(ISBLANK('TA Indicator Bank'!AA97),\"\",'TA Indicator Bank'!AA97)","v":0},{"$f":"IF(ISBLANK('TA Indicator Bank'!AB97),\"\",'TA Indicator Bank'!AB97)","v":0},{"$f":"IF(ISBLANK('TA Indicator Bank'!AC97),\"\",'TA Indicator Bank'!AC97)","v":0},{"$f":"IF(ISBLANK('TA Indicator Bank'!AD97),\"\",'TA Indicator Bank'!AD97)","v":0},{"$f":"IF(ISBLANK('TA Indicator Bank'!AE97),\"\",'TA Indicator Bank'!AE97)","v":0},{"$f":"IF(ISBLANK('TA Indicator Bank'!AF97),\"\",'TA Indicator Bank'!AF97)","v":0},{"$f":"IF(ISBLANK('TA Indicator Bank'!AG97),\"\",'TA Indicator Bank'!AG97)","v":0},{"$f":"IF(ISBLANK('TA Indicator Bank'!AH97),\"\",'TA Indicator Bank'!AH97)","v":0},{"$f":"IF(ISBLANK('TA Indicator Bank'!AI97),\"\",'TA Indicator Bank'!AI97)","v":0},{"$f":"IF(ISBLANK('TA Indicator Bank'!AJ97),\"\",'TA Indicator Bank'!AJ97)","v":0},{"$f":"IF(ISBLANK('TA Indicator Bank'!AK97),\"\",'TA Indicator Bank'!AK97)","v":0},{"$f":"IF(ISBLANK('TA Indicator Bank'!AL97),\"\",'TA Indicator Bank'!AL97)","v":0},{"$f":"IF(ISBLANK('TA Indicator Bank'!AM97),\"\",'TA Indicator Bank'!AM97)","v":0},{"$f":"IF(ISBLANK('TA Indicator Bank'!AN97),\"\",'TA Indicator Bank'!AN97)","v":0},{"$f":"IF(ISBLANK('TA Indicator Bank'!AO97),\"\",'TA Indicator Bank'!AO97)","v":0},{"$f":"IF(ISBLANK('TA Indicator Bank'!AP97),\"\",'TA Indicator Bank'!AP97)","v":0},{"$f":"IF(ISBLANK('TA Indicator Bank'!AQ97),\"\",'TA Indicator Bank'!AQ97)","v":0},{"$f":"IF(ISBLANK('TA Indicator Bank'!AR97),\"\",'TA Indicator Bank'!AR97)","v":1},{"$f":"IF(ISBLANK('TA Indicator Bank'!AS97),\"\",'TA Indicator Bank'!AS97)","v":0},{"$f":"IF(ISBLANK('TA Indicator Bank'!AT97),\"\",'TA Indicator Bank'!AT97)","v":0},{"$f":"IF(AND(J101=1,J$410=1),1,0)","v":0},{"$f":"IF(AND(K101=1,K$410=1),1,0)","v":0},{"$f":"IF(AND(L101=1,L$410=1),1,0)","v":0},{"$f":"IF(AND(M101=1,M$410=1),1,0)","v":0},{"$f":"IF(AND(N101=1,N$410=1),1,0)","v":0},{"$f":"IF(AND(O101=1,O$410=1),1,0)","v":0},{"$f":"IF(AND(P101=1,P$410=1),1,0)","v":0},{"$f":"IF(AND(Q101=1,Q$410=1),1,0)","v":0},{"$f":"IF(AND(R101=1,R$410=1),1,0)","v":0},{"$f":"IF(AND(S101=1,S$410=1),1,0)","v":0},{"$f":"IF(AND(T101=1,T$410=1),1,0)","v":0},{"$f":"IF(AND(U101=1,U$410=1),1,0)","v":0},{"$f":"IF(AND(V101=1,V$410=1),1,0)","v":0},{"$f":"IF(AND(W101=1,W$410=1),1,0)","v":0},1,{"$f":"IF(AND(X101=1,X$410=1),1,0)","v":0},{"$f":"IF(AND(Y101=1,Y$410=1),1,0)","v":1},{"$f":"IF(AND(Z101=1,Z$410=1),1,0)","v":0},{"$f":"IF(AND(AA101=1,AA$410=1),1,0)","v":0},{"$f":"IF(AND(AB101=1,AB$410=1),1,0)","v":0},{"$f":"IF(AND(AC101=1,AC$410=1),1,0)","v":0},{"$f":"IF(AND(AD101=1,AD$410=1),1,0)","v":0},{"$f":"IF(AND(AE101=1,AE$410=1),1,0)","v":0},{"$f":"IF(AND(AF101=1,AF$410=1),1,0)","v":0},1,{"$f":"IF(AND(AG101=1,AG$410=1),1,0)","v":0},{"$f":"IF(AND(AH101=1,AH$410=1),1,0)","v":0},{"$f":"IF(AND(AI101=1,AI$410=1),1,0)","v":0},{"$f":"IF(AND(AJ101=1,AJ$410=1),1,0)","v":0},{"$f":"IF(AND(AK101=1,AK$410=1),1,0)","v":0},{"$f":"IF(AND(AL101=1,AL$410=1),1,0)","v":0},{"$f":"IF(AND(AM101=1,AM$410=1),1,0)","v":0},{"$f":"IF(AND(AN101=1,AN$410=1),1,0)","v":0},{"$f":"IF(AND(AO101=1,AO$410=1),1,0)","v":0},1,{"$f":"IF(AND(AP101=1,AP$410=1),1,0)","v":0},{"$f":"IF(AND(AQ101=1,AQ$410=1),1,0)","v":0},{"$f":"IF(AND(AR101=1,AR$410=1),1,0)","v":1},{"$f":"IF(AND(AS101=1,AS$410=1),1,0)","v":0},{"$f":"IF(AND(AT101=1,AT$410=1),1,0)","v":0},1,1,93,93,{"$f":"IFERROR(SMALL($CL$9:$CL$408,CK101),\"\")","v":93},{"$f":"IFERROR(INDEX($B$9:$I$408,$CM101,COLUMNS($CN$9:CN101)),\"\")","v":"TA093"},{"$f":"IFERROR(INDEX($B$9:$I$408,$CM101,COLUMNS($CN$9:CO101)),\"\")","v":"Number of participants rate capacity building activities as good or very good"},{"$f":"IFERROR(INDEX($B$9:$I$408,$CM101,COLUMNS($CN$9:CP101)),\"\")","v":"-"},{"$f":"IFERROR(INDEX($B$9:$I$408,$CM101,COLUMNS($CN$9:CQ101)),\"\")","v":"Output"},{"$f":"IFERROR(INDEX($B$9:$I$408,$CM101,COLUMNS($CN$9:CR101)),\"\")","v":"-"},{"$f":"IFERROR(INDEX($B$9:$I$408,$CM101,COLUMNS($CN$9:CS101)),\"\")","v":"Capacity building: Technical capacity"},{"$f":"IFERROR(INDEX($B$9:$I$408,$CM101,COLUMNS($CN$9:CT101)),\"\")","v":"-"},{"$f":"IFERROR(INDEX($B$9:$I$408,$CM101,COLUMNS($CN$9:CU101)),\"\")","v":"Number"}]
[null,{"$f":"IF(ISBLANK('TA Indicator Bank'!B98),\"\",'TA Indicator Bank'!B98)","v":"TA094"},{"$f":"IF(ISBLANK('TA Indicator Bank'!C98),\"\",'TA Indicator Bank'!C98)","v":"Number of countries that use knowledge product"},{"$f":"IF(ISBLANK('TA Indicator Bank'!D98),\"\",'TA Indicator Bank'!D98)","v":"-"},{"$f":"IF(ISBLANK('TA Indicator Bank'!E98),\"\",'TA Indicator Bank'!E98)","v":"Output"},{"$f":"IF(ISBLANK('TA Indicator Bank'!F98),\"\",'TA Indicator Bank'!F98)","v":"-"},{"$f":"IF(ISBLANK('TA Indicator Bank'!G98),\"\",'TA Indicator Bank'!G98)","v":"Capacity building: Technical capacity"},{"$f":"IF(ISBLANK('TA Indicator Bank'!H98),\"\",'TA Indicator Bank'!H98)","v":"-"},{"$f":"IF(ISBLANK('TA Indicator Bank'!I98),\"\",'TA Indicator Bank'!I98)","v":"Number"},{"$f":"IF(ISBLANK('TA Indicator Bank'!J98),\"\",'TA Indicator Bank'!J98)","v":0},{"$f":"IF(ISBLANK('TA Indicator Bank'!K98),\"\",'TA Indicator Bank'!K98)","v":0},{"$f":"IF(ISBLANK('TA Indicator Bank'!L98),\"\",'TA Indicator Bank'!L98)","v":0},{"$f":"IF(ISBLANK('TA Indicator Bank'!M98),\"\",'TA Indicator Bank'!M98)","v":0},{"$f":"IF(ISBLANK('TA Indicator Bank'!N98),\"\",'TA Indicator Bank'!N98)","v":0},{"$f":"IF(ISBLANK('TA Indicator Bank'!O98),\"\",'TA Indicator Bank'!O98)","v":0},{"$f":"IF(ISBLANK('TA Indicator Bank'!P98),\"\",'TA Indicator Bank'!P98)","v":0},{"$f":"IF(ISBLANK('TA Indicator Bank'!Q98),\"\",'TA Indicator Bank'!Q98)","v":0},{"$f":"IF(ISBLANK('TA Indicator Bank'!R98),\"\",'TA Indicator Bank'!R98)","v":0},{"$f":"IF(ISBLANK('TA Indicator Bank'!S98),\"\",'TA Indicator Bank'!S98)","v":0},{"$f":"IF(ISBLANK('TA Indicator Bank'!T98),\"\",'TA Indicator Bank'!T98)","v":0},{"$f":"IF(ISBLANK('TA Indicator Bank'!U98),\"\",'TA Indicator Bank'!U98)","v":0},{"$f":"IF(ISBLANK('TA Indicator Bank'!V98),\"\",'TA Indicator Bank'!V98)","v":0},{"$f":"IF(ISBLANK('TA Indicator Bank'!W98),\"\",'TA Indicator Bank'!W98)","v":0},{"$f":"IF(ISBLANK('TA Indicator Bank'!X98),\"\",'TA Indicator Bank'!X98)","v":0},{"$f":"IF(ISBLANK('TA Indicator Bank'!Y98),\"\",'TA Indicator Bank'!Y98)","v":1},{"$f":"IF(ISBLANK('TA Indicator Bank'!Z98),\"\",'TA Indicator Bank'!Z98)","v":0},{"$f":"IF(ISBLANK('TA Indicator Bank'!AA98),\"\",'TA Indicator Bank'!AA98)","v":0},{"$f":"IF(ISBLANK('TA Indicator Bank'!AB98),\"\",'TA Indicator Bank'!AB98)","v":0},{"$f":"IF(ISBLANK('TA Indicator Bank'!AC98),\"\",'TA Indicator Bank'!AC98)","v":0},{"$f":"IF(ISBLANK('TA Indicator Bank'!AD98),\"\",'TA Indicator Bank'!AD98)","v":0},{"$f":"IF(ISBLANK('TA Indicator Bank'!AE98),\"\",'TA Indicator Bank'!AE98)","v":0},{"$f":"IF(ISBLANK('TA Indicator Bank'!AF98),\"\",'TA Indicator Bank'!AF98)","v":0},{"$f":"IF(ISBLANK('TA Indicator Bank'!AG98),\"\",'TA Indicator Bank'!AG98)","v":0},{"$f":"IF(ISBLANK('TA Indicator Bank'!AH98),\"\",'TA Indicator Bank'!AH98)","v":0},{"$f":"IF(ISBLANK('TA Indicator Bank'!AI98),\"\",'TA Indicator Bank'!AI98)","v":0},{"$f":"IF(ISBLANK('TA Indicator Bank'!AJ98),\"\",'TA Indicator Bank'!AJ98)","v":0},{"$f":"IF(ISBLANK('TA Indicator Bank'!AK98),\"\",'TA Indicator Bank'!AK98)","v":0},{"$f":"IF(ISBLANK('TA Indicator Bank'!AL98),\"\",'TA Indicator Bank'!AL98)","v":0},{"$f":"IF(ISBLANK('TA Indicator Bank'!AM98),\"\",'TA Indicator Bank'!AM98)","v":0},{"$f":"IF(ISBLANK('TA Indicator Bank'!AN98),\"\",'TA Indicator Bank'!AN98)","v":0},{"$f":"IF(ISBLANK('TA Indicator Bank'!AO98),\"\",'TA Indicator Bank'!AO98)","v":0},{"$f":"IF(ISBLANK('TA Indicator Bank'!AP98),\"\",'TA Indicator Bank'!AP98)","v":0},{"$f":"IF(ISBLANK('TA Indicator Bank'!AQ98),\"\",'TA Indicator Bank'!AQ98)","v":0},{"$f":"IF(ISBLANK('TA Indicator Bank'!AR98),\"\",'TA Indicator Bank'!AR98)","v":1},{"$f":"IF(ISBLANK('TA Indicator Bank'!AS98),\"\",'TA Indicator Bank'!AS98)","v":0},{"$f":"IF(ISBLANK('TA Indicator Bank'!AT98),\"\",'TA Indicator Bank'!AT98)","v":0},{"$f":"IF(AND(J102=1,J$410=1),1,0)","v":0},{"$f":"IF(AND(K102=1,K$410=1),1,0)","v":0},{"$f":"IF(AND(L102=1,L$410=1),1,0)","v":0},{"$f":"IF(AND(M102=1,M$410=1),1,0)","v":0},{"$f":"IF(AND(N102=1,N$410=1),1,0)","v":0},{"$f":"IF(AND(O102=1,O$410=1),1,0)","v":0},{"$f":"IF(AND(P102=1,P$410=1),1,0)","v":0},{"$f":"IF(AND(Q102=1,Q$410=1),1,0)","v":0},{"$f":"IF(AND(R102=1,R$410=1),1,0)","v":0},{"$f":"IF(AND(S102=1,S$410=1),1,0)","v":0},{"$f":"IF(AND(T102=1,T$410=1),1,0)","v":0},{"$f":"IF(AND(U102=1,U$410=1),1,0)","v":0},{"$f":"IF(AND(V102=1,V$410=1),1,0)","v":0},{"$f":"IF(AND(W102=1,W$410=1),1,0)","v":0},1,{"$f":"IF(AND(X102=1,X$410=1),1,0)","v":0},{"$f":"IF(AND(Y102=1,Y$410=1),1,0)","v":1},{"$f":"IF(AND(Z102=1,Z$410=1),1,0)","v":0},{"$f":"IF(AND(AA102=1,AA$410=1),1,0)","v":0},{"$f":"IF(AND(AB102=1,AB$410=1),1,0)","v":0},{"$f":"IF(AND(AC102=1,AC$410=1),1,0)","v":0},{"$f":"IF(AND(AD102=1,AD$410=1),1,0)","v":0},{"$f":"IF(AND(AE102=1,AE$410=1),1,0)","v":0},{"$f":"IF(AND(AF102=1,AF$410=1),1,0)","v":0},1,{"$f":"IF(AND(AG102=1,AG$410=1),1,0)","v":0},{"$f":"IF(AND(AH102=1,AH$410=1),1,0)","v":0},{"$f":"IF(AND(AI102=1,AI$410=1),1,0)","v":0},{"$f":"IF(AND(AJ102=1,AJ$410=1),1,0)","v":0},{"$f":"IF(AND(AK102=1,AK$410=1),1,0)","v":0},{"$f":"IF(AND(AL102=1,AL$410=1),1,0)","v":0},{"$f":"IF(AND(AM102=1,AM$410=1),1,0)","v":0},{"$f":"IF(AND(AN102=1,AN$410=1),1,0)","v":0},{"$f":"IF(AND(AO102=1,AO$410=1),1,0)","v":0},1,{"$f":"IF(AND(AP102=1,AP$410=1),1,0)","v":0},{"$f":"IF(AND(AQ102=1,AQ$410=1),1,0)","v":0},{"$f":"IF(AND(AR102=1,AR$410=1),1,0)","v":1},{"$f":"IF(AND(AS102=1,AS$410=1),1,0)","v":0},{"$f":"IF(AND(AT102=1,AT$410=1),1,0)","v":0},1,1,94,94,{"$f":"IFERROR(SMALL($CL$9:$CL$408,CK102),\"\")","v":94},{"$f":"IFERROR(INDEX($B$9:$I$408,$CM102,COLUMNS($CN$9:CN102)),\"\")","v":"TA094"},{"$f":"IFERROR(INDEX($B$9:$I$408,$CM102,COLUMNS($CN$9:CO102)),\"\")","v":"Number of countries that use knowledge product"},{"$f":"IFERROR(INDEX($B$9:$I$408,$CM102,COLUMNS($CN$9:CP102)),\"\")","v":"-"},{"$f":"IFERROR(INDEX($B$9:$I$408,$CM102,COLUMNS($CN$9:CQ102)),\"\")","v":"Output"},{"$f":"IFERROR(INDEX($B$9:$I$408,$CM102,COLUMNS($CN$9:CR102)),\"\")","v":"-"},{"$f":"IFERROR(INDEX($B$9:$I$408,$CM102,COLUMNS($CN$9:CS102)),\"\")","v":"Capacity building: Technical capacity"},{"$f":"IFERROR(INDEX($B$9:$I$408,$CM102,COLUMNS($CN$9:CT102)),\"\")","v":"-"},{"$f":"IFERROR(INDEX($B$9:$I$408,$CM102,COLUMNS($CN$9:CU102)),\"\")","v":"Number"}]
[null,{"$f":"IF(ISBLANK('TA Indicator Bank'!B99),\"\",'TA Indicator Bank'!B99)","v":"TA095"},{"$f":"IF(ISBLANK('TA Indicator Bank'!C99),\"\",'TA Indicator Bank'!C99)","v":"Number of stakeholders that state the capacity building has contributed to programme objectives"},{"$f":"IF(ISBLANK('TA Indicator Bank'!D99),\"\",'TA Indicator Bank'!D99)","v":"-"},{"$f":"IF(ISBLANK('TA Indicator Bank'!E99),\"\",'TA Indicator Bank'!E99)","v":"Output"},{"$f":"IF(ISBLANK('TA Indicator Bank'!F99),\"\",'TA Indicator Bank'!F99)","v":"-"},{"$f":"IF(ISBLANK('TA Indicator Bank'!G99),\"\",'TA Indicator Bank'!G99)","v":"Capacity building: Technical capacity"},{"$f":"IF(ISBLANK('TA Indicator Bank'!H99),\"\",'TA Indicator Bank'!H99)","v":"-"},{"$f":"IF(ISBLANK('TA Indicator Bank'!I99),\"\",'TA Indicator Bank'!I99)","v":"Number"},{"$f":"IF(ISBLANK('TA Indicator Bank'!J99),\"\",'TA Indicator Bank'!J99)","v":0},{"$f":"IF(ISBLANK('TA Indicator Bank'!K99),\"\",'TA Indicator Bank'!K99)","v":0},{"$f":"IF(ISBLANK('TA Indicator Bank'!L99),\"\",'TA Indicator Bank'!L99)","v":0},{"$f":"IF(ISBLANK('TA Indicator Bank'!M99),\"\",'TA Indicator Bank'!M99)","v":0},{"$f":"IF(ISBLANK('TA Indicator Bank'!N99),\"\",'TA Indicator Bank'!N99)","v":0},{"$f":"IF(ISBLANK('TA Indicator Bank'!O99),\"\",'TA Indicator Bank'!O99)","v":0},{"$f":"IF(ISBLANK('TA Indicator Bank'!P99),\"\",'TA Indicator Bank'!P99)","v":0},{"$f":"IF(ISBLANK('TA Indicator Bank'!Q99),\"\",'TA Indicator Bank'!Q99)","v":0},{"$f":"IF(ISBLANK('TA Indicator Bank'!R99),\"\",'TA Indicator Bank'!R99)","v":0},{"$f":"IF(ISBLANK('TA Indicator Bank'!S99),\"\",'TA Indicator Bank'!S99)","v":0},{"$f":"IF(ISBLANK('TA Indicator Bank'!T99),\"\",'TA Indicator Bank'!T99)","v":0},{"$f":"IF(ISBLANK('TA Indicator Bank'!U99),\"\",'TA Indicator Bank'!U99)","v":0},{"$f":"IF(ISBLANK('TA Indicator Bank'!V99),\"\",'TA Indicator Bank'!V99)","v":0},{"$f":"IF(ISBLANK('TA Indicator Bank'!W99),\"\",'TA Indicator Bank'!W99)","v":0},{"$f":"IF(ISBLANK('TA Indicator Bank'!X99),\"\",'TA Indicator Bank'!X99)","v":0},{"$f":"IF(ISBLANK('TA Indicator Bank'!Y99),\"\",'TA Indicator Bank'!Y99)","v":1},{"$f":"IF(ISBLANK('TA Indicator Bank'!Z99),\"\",'TA Indicator Bank'!Z99)","v":0},{"$f":"IF(ISBLANK('TA Indicator Bank'!AA99),\"\",'TA Indicator Bank'!AA99)","v":0},{"$f":"IF(ISBLANK('TA Indicator Bank'!AB99),\"\",'TA Indicator Bank'!AB99)","v":0},{"$f":"IF(ISBLANK('TA Indicator Bank'!AC99),\"\",'TA Indicator Bank'!AC99)","v":0},{"$f":"IF(ISBLANK('TA Indicator Bank'!AD99),\"\",'TA Indicator Bank'!AD99)","v":0},{"$f":"IF(ISBLANK('TA Indicator Bank'!AE99),\"\",'TA Indicator Bank'!AE99)","v":0},{"$f":"IF(ISBLANK('TA Indicator Bank'!AF99),\"\",'TA Indicator Bank'!AF99)","v":0},{"$f":"IF(ISBLANK('TA Indicator Bank'!AG99),\"\",'TA Indicator Bank'!AG99)","v":0},{"$f":"IF(ISBLANK('TA Indicator Bank'!AH99),\"\",'TA Indicator Bank'!AH99)","v":0},{"$f":"IF(ISBLANK('TA Indicator Bank'!AI99),\"\",'TA Indicator Bank'!AI99)","v":0},{"$f":"IF(ISBLANK('TA Indicator Bank'!AJ99),\"\",'TA Indicator Bank'!AJ99)","v":0},{"$f":"IF(ISBLANK('TA Indicator Bank'!AK99),\"\",'TA Indicator Bank'!AK99)","v":0},{"$f":"IF(ISBLANK('TA Indicator Bank'!AL99),\"\",'TA Indicator Bank'!AL99)","v":0},{"$f":"IF(ISBLANK('TA Indicator Bank'!AM99),\"\",'TA Indicator Bank'!AM99)","v":0},{"$f":"IF(ISBLANK('TA Indicator Bank'!AN99),\"\",'TA Indicator Bank'!AN99)","v":0},{"$f":"IF(ISBLANK('TA Indicator Bank'!AO99),\"\",'TA Indicator Bank'!AO99)","v":0},{"$f":"IF(ISBLANK('TA Indicator Bank'!AP99),\"\",'TA Indicator Bank'!AP99)","v":0},{"$f":"IF(ISBLANK('TA Indicator Bank'!AQ99),\"\",'TA Indicator Bank'!AQ99)","v":0},{"$f":"IF(ISBLANK('TA Indicator Bank'!AR99),\"\",'TA Indicator Bank'!AR99)","v":1},{"$f":"IF(ISBLANK('TA Indicator Bank'!AS99),\"\",'TA Indicator Bank'!AS99)","v":0},{"$f":"IF(ISBLANK('TA Indicator Bank'!AT99),\"\",'TA Indicator Bank'!AT99)","v":0},{"$f":"IF(AND(J103=1,J$410=1),1,0)","v":0},{"$f":"IF(AND(K103=1,K$410=1),1,0)","v":0},{"$f":"IF(AND(L103=1,L$410=1),1,0)","v":0},{"$f":"IF(AND(M103=1,M$410=1),1,0)","v":0},{"$f":"IF(AND(N103=1,N$410=1),1,0)","v":0},{"$f":"IF(AND(O103=1,O$410=1),1,0)","v":0},{"$f":"IF(AND(P103=1,P$410=1),1,0)","v":0},{"$f":"IF(AND(Q103=1,Q$410=1),1,0)","v":0},{"$f":"IF(AND(R103=1,R$410=1),1,0)","v":0},{"$f":"IF(AND(S103=1,S$410=1),1,0)","v":0},{"$f":"IF(AND(T103=1,T$410=1),1,0)","v":0},{"$f":"IF(AND(U103=1,U$410=1),1,0)","v":0},{"$f":"IF(AND(V103=1,V$410=1),1,0)","v":0},{"$f":"IF(AND(W103=1,W$410=1),1,0)","v":0},1,{"$f":"IF(AND(X103=1,X$410=1),1,0)","v":0},{"$f":"IF(AND(Y103=1,Y$410=1),1,0)","v":1},{"$f":"IF(AND(Z103=1,Z$410=1),1,0)","v":0},{"$f":"IF(AND(AA103=1,AA$410=1),1,0)","v":0},{"$f":"IF(AND(AB103=1,AB$410=1),1,0)","v":0},{"$f":"IF(AND(AC103=1,AC$410=1),1,0)","v":0},{"$f":"IF(AND(AD103=1,AD$410=1),1,0)","v":0},{"$f":"IF(AND(AE103=1,AE$410=1),1,0)","v":0},{"$f":"IF(AND(AF103=1,AF$410=1),1,0)","v":0},1,{"$f":"IF(AND(AG103=1,AG$410=1),1,0)","v":0},{"$f":"IF(AND(AH103=1,AH$410=1),1,0)","v":0},{"$f":"IF(AND(AI103=1,AI$410=1),1,0)","v":0},{"$f":"IF(AND(AJ103=1,AJ$410=1),1,0)","v":0},{"$f":"IF(AND(AK103=1,AK$410=1),1,0)","v":0},{"$f":"IF(AND(AL103=1,AL$410=1),1,0)","v":0},{"$f":"IF(AND(AM103=1,AM$410=1),1,0)","v":0},{"$f":"IF(AND(AN103=1,AN$410=1),1,0)","v":0},{"$f":"IF(AND(AO103=1,AO$410=1),1,0)","v":0},1,{"$f":"IF(AND(AP103=1,AP$410=1),1,0)","v":0},{"$f":"IF(AND(AQ103=1,AQ$410=1),1,0)","v":0},{"$f":"IF(AND(AR103=1,AR$410=1),1,0)","v":1},{"$f":"IF(AND(AS103=1,AS$410=1),1,0)","v":0},{"$f":"IF(AND(AT103=1,AT$410=1),1,0)","v":0},1,1,95,95,{"$f":"IFERROR(SMALL($CL$9:$CL$408,CK103),\"\")","v":95},{"$f":"IFERROR(INDEX($B$9:$I$408,$CM103,COLUMNS($CN$9:CN103)),\"\")","v":"TA095"},{"$f":"IFERROR(INDEX($B$9:$I$408,$CM103,COLUMNS($CN$9:CO103)),\"\")","v":"Number of stakeholders that state the capacity building has contributed to programme objectives"},{"$f":"IFERROR(INDEX($B$9:$I$408,$CM103,COLUMNS($CN$9:CP103)),\"\")","v":"-"},{"$f":"IFERROR(INDEX($B$9:$I$408,$CM103,COLUMNS($CN$9:CQ103)),\"\")","v":"Output"},{"$f":"IFERROR(INDEX($B$9:$I$408,$CM103,COLUMNS($CN$9:CR103)),\"\")","v":"-"},{"$f":"IFERROR(INDEX($B$9:$I$408,$CM103,COLUMNS($CN$9:CS103)),\"\")","v":"Capacity building: Technical capacity"},{"$f":"IFERROR(INDEX($B$9:$I$408,$CM103,COLUMNS($CN$9:CT103)),\"\")","v":"-"},{"$f":"IFERROR(INDEX($B$9:$I$408,$CM103,COLUMNS($CN$9:CU103)),\"\")","v":"Number"}]
[null,{"$f":"IF(ISBLANK('TA Indicator Bank'!B100),\"\",'TA Indicator Bank'!B100)","v":"TA096"},{"$f":"IF(ISBLANK('TA Indicator Bank'!C100),\"\",'TA Indicator Bank'!C100)","v":"Number of client days of training, disaggregated by groups and topic"},{"$f":"IF(ISBLANK('TA Indicator Bank'!D100),\"\",'TA Indicator Bank'!D100)","v":"-"},{"$f":"IF(ISBLANK('TA Indicator Bank'!E100),\"\",'TA Indicator Bank'!E100)","v":"Output"},{"$f":"IF(ISBLANK('TA Indicator Bank'!F100),\"\",'TA Indicator Bank'!F100)","v":"-"},{"$f":"IF(ISBLANK('TA Indicator Bank'!G100),\"\",'TA Indicator Bank'!G100)","v":"Capacity building: Technical capacity"},{"$f":"IF(ISBLANK('TA Indicator Bank'!H100),\"\",'TA Indicator Bank'!H100)","v":"-"},{"$f":"IF(ISBLANK('TA Indicator Bank'!I100),\"\",'TA Indicator Bank'!I100)","v":"Number"},{"$f":"IF(ISBLANK('TA Indicator Bank'!J100),\"\",'TA Indicator Bank'!J100)","v":0},{"$f":"IF(ISBLANK('TA Indicator Bank'!K100),\"\",'TA Indicator Bank'!K100)","v":0},{"$f":"IF(ISBLANK('TA Indicator Bank'!L100),\"\",'TA Indicator Bank'!L100)","v":0},{"$f":"IF(ISBLANK('TA Indicator Bank'!M100),\"\",'TA Indicator Bank'!M100)","v":0},{"$f":"IF(ISBLANK('TA Indicator Bank'!N100),\"\",'TA Indicator Bank'!N100)","v":0},{"$f":"IF(ISBLANK('TA Indicator Bank'!O100),\"\",'TA Indicator Bank'!O100)","v":0},{"$f":"IF(ISBLANK('TA Indicator Bank'!P100),\"\",'TA Indicator Bank'!P100)","v":0},{"$f":"IF(ISBLANK('TA Indicator Bank'!Q100),\"\",'TA Indicator Bank'!Q100)","v":0},{"$f":"IF(ISBLANK('TA Indicator Bank'!R100),\"\",'TA Indicator Bank'!R100)","v":0},{"$f":"IF(ISBLANK('TA Indicator Bank'!S100),\"\",'TA Indicator Bank'!S100)","v":0},{"$f":"IF(ISBLANK('TA Indicator Bank'!T100),\"\",'TA Indicator Bank'!T100)","v":0},{"$f":"IF(ISBLANK('TA Indicator Bank'!U100),\"\",'TA Indicator Bank'!U100)","v":0},{"$f":"IF(ISBLANK('TA Indicator Bank'!V100),\"\",'TA Indicator Bank'!V100)","v":0},{"$f":"IF(ISBLANK('TA Indicator Bank'!W100),\"\",'TA Indicator Bank'!W100)","v":0},{"$f":"IF(ISBLANK('TA Indicator Bank'!X100),\"\",'TA Indicator Bank'!X100)","v":0},{"$f":"IF(ISBLANK('TA Indicator Bank'!Y100),\"\",'TA Indicator Bank'!Y100)","v":1},{"$f":"IF(ISBLANK('TA Indicator Bank'!Z100),\"\",'TA Indicator Bank'!Z100)","v":0},{"$f":"IF(ISBLANK('TA Indicator Bank'!AA100),\"\",'TA Indicator Bank'!AA100)","v":0},{"$f":"IF(ISBLANK('TA Indicator Bank'!AB100),\"\",'TA Indicator Bank'!AB100)","v":0},{"$f":"IF(ISBLANK('TA Indicator Bank'!AC100),\"\",'TA Indicator Bank'!AC100)","v":0},{"$f":"IF(ISBLANK('TA Indicator Bank'!AD100),\"\",'TA Indicator Bank'!AD100)","v":0},{"$f":"IF(ISBLANK('TA Indicator Bank'!AE100),\"\",'TA Indicator Bank'!AE100)","v":0},{"$f":"IF(ISBLANK('TA Indicator Bank'!AF100),\"\",'TA Indicator Bank'!AF100)","v":0},{"$f":"IF(ISBLANK('TA Indicator Bank'!AG100),\"\",'TA Indicator Bank'!AG100)","v":0},{"$f":"IF(ISBLANK('TA Indicator Bank'!AH100),\"\",'TA Indicator Bank'!AH100)","v":0},{"$f":"IF(ISBLANK('TA Indicator Bank'!AI100),\"\",'TA Indicator Bank'!AI100)","v":0},{"$f":"IF(ISBLANK('TA Indicator Bank'!AJ100),\"\",'TA Indicator Bank'!AJ100)","v":0},{"$f":"IF(ISBLANK('TA Indicator Bank'!AK100),\"\",'TA Indicator Bank'!AK100)","v":0},{"$f":"IF(ISBLANK('TA Indicator Bank'!AL100),\"\",'TA Indicator Bank'!AL100)","v":0},{"$f":"IF(ISBLANK('TA Indicator Bank'!AM100),\"\",'TA Indicator Bank'!AM100)","v":0},{"$f":"IF(ISBLANK('TA Indicator Bank'!AN100),\"\",'TA Indicator Bank'!AN100)","v":0},{"$f":"IF(ISBLANK('TA Indicator Bank'!AO100),\"\",'TA Indicator Bank'!AO100)","v":0},{"$f":"IF(ISBLANK('TA Indicator Bank'!AP100),\"\",'TA Indicator Bank'!AP100)","v":0},{"$f":"IF(ISBLANK('TA Indicator Bank'!AQ100),\"\",'TA Indicator Bank'!AQ100)","v":0},{"$f":"IF(ISBLANK('TA Indicator Bank'!AR100),\"\",'TA Indicator Bank'!AR100)","v":1},{"$f":"IF(ISBLANK('TA Indicator Bank'!AS100),\"\",'TA Indicator Bank'!AS100)","v":0},{"$f":"IF(ISBLANK('TA Indicator Bank'!AT100),\"\",'TA Indicator Bank'!AT100)","v":0},{"$f":"IF(AND(J104=1,J$410=1),1,0)","v":0},{"$f":"IF(AND(K104=1,K$410=1),1,0)","v":0},{"$f":"IF(AND(L104=1,L$410=1),1,0)","v":0},{"$f":"IF(AND(M104=1,M$410=1),1,0)","v":0},{"$f":"IF(AND(N104=1,N$410=1),1,0)","v":0},{"$f":"IF(AND(O104=1,O$410=1),1,0)","v":0},{"$f":"IF(AND(P104=1,P$410=1),1,0)","v":0},{"$f":"IF(AND(Q104=1,Q$410=1),1,0)","v":0},{"$f":"IF(AND(R104=1,R$410=1),1,0)","v":0},{"$f":"IF(AND(S104=1,S$410=1),1,0)","v":0},{"$f":"IF(AND(T104=1,T$410=1),1,0)","v":0},{"$f":"IF(AND(U104=1,U$410=1),1,0)","v":0},{"$f":"IF(AND(V104=1,V$410=1),1,0)","v":0},{"$f":"IF(AND(W104=1,W$410=1),1,0)","v":0},1,{"$f":"IF(AND(X104=1,X$410=1),1,0)","v":0},{"$f":"IF(AND(Y104=1,Y$410=1),1,0)","v":1},{"$f":"IF(AND(Z104=1,Z$410=1),1,0)","v":0},{"$f":"IF(AND(AA104=1,AA$410=1),1,0)","v":0},{"$f":"IF(AND(AB104=1,AB$410=1),1,0)","v":0},{"$f":"IF(AND(AC104=1,AC$410=1),1,0)","v":0},{"$f":"IF(AND(AD104=1,AD$410=1),1,0)","v":0},{"$f":"IF(AND(AE104=1,AE$410=1),1,0)","v":0},{"$f":"IF(AND(AF104=1,AF$410=1),1,0)","v":0},1,{"$f":"IF(AND(AG104=1,AG$410=1),1,0)","v":0},{"$f":"IF(AND(AH104=1,AH$410=1),1,0)","v":0},{"$f":"IF(AND(AI104=1,AI$410=1),1,0)","v":0},{"$f":"IF(AND(AJ104=1,AJ$410=1),1,0)","v":0},{"$f":"IF(AND(AK104=1,AK$410=1),1,0)","v":0},{"$f":"IF(AND(AL104=1,AL$410=1),1,0)","v":0},{"$f":"IF(AND(AM104=1,AM$410=1),1,0)","v":0},{"$f":"IF(AND(AN104=1,AN$410=1),1,0)","v":0},{"$f":"IF(AND(AO104=1,AO$410=1),1,0)","v":0},1,{"$f":"IF(AND(AP104=1,AP$410=1),1,0)","v":0},{"$f":"IF(AND(AQ104=1,AQ$410=1),1,0)","v":0},{"$f":"IF(AND(AR104=1,AR$410=1),1,0)","v":1},{"$f":"IF(AND(AS104=1,AS$410=1),1,0)","v":0},{"$f":"IF(AND(AT104=1,AT$410=1),1,0)","v":0},1,1,96,96,{"$f":"IFERROR(SMALL($CL$9:$CL$408,CK104),\"\")","v":96},{"$f":"IFERROR(INDEX($B$9:$I$408,$CM104,COLUMNS($CN$9:CN104)),\"\")","v":"TA096"},{"$f":"IFERROR(INDEX($B$9:$I$408,$CM104,COLUMNS($CN$9:CO104)),\"\")","v":"Number of client days of training, disaggregated by groups and topic"},{"$f":"IFERROR(INDEX($B$9:$I$408,$CM104,COLUMNS($CN$9:CP104)),\"\")","v":"-"},{"$f":"IFERROR(INDEX($B$9:$I$408,$CM104,COLUMNS($CN$9:CQ104)),\"\")","v":"Output"},{"$f":"IFERROR(INDEX($B$9:$I$408,$CM104,COLUMNS($CN$9:CR104)),\"\")","v":"-"},{"$f":"IFERROR(INDEX($B$9:$I$408,$CM104,COLUMNS($CN$9:CS104)),\"\")","v":"Capacity building: Technical capacity"},{"$f":"IFERROR(INDEX($B$9:$I$408,$CM104,COLUMNS($CN$9:CT104)),\"\")","v":"-"},{"$f":"IFERROR(INDEX($B$9:$I$408,$CM104,COLUMNS($CN$9:CU104)),\"\")","v":"Number"}]
[null,{"$f":"IF(ISBLANK('TA Indicator Bank'!B101),\"\",'TA Indicator Bank'!B101)","v":"TA097"},{"$f":"IF(ISBLANK('TA Indicator Bank'!C101),\"\",'TA Indicator Bank'!C101)","v":"Number of times/cases/countries/participants support is provided (to)"},{"$f":"IF(ISBLANK('TA Indicator Bank'!D101),\"\",'TA Indicator Bank'!D101)","v":"-"},{"$f":"IF(ISBLANK('TA Indicator Bank'!E101),\"\",'TA Indicator Bank'!E101)","v":"Activity"},{"$f":"IF(ISBLANK('TA Indicator Bank'!F101),\"\",'TA Indicator Bank'!F101)","v":"Workshops; Training events / courses; Specialist research, inc. market / policy / legal / regulatory / technology research briefs; Project studies and plans"},{"$f":"IF(ISBLANK('TA Indicator Bank'!G101),\"\",'TA Indicator Bank'!G101)","v":"-"},{"$f":"IF(ISBLANK('TA Indicator Bank'!H101),\"\",'TA Indicator Bank'!H101)","v":"-"},{"$f":"IF(ISBLANK('TA Indicator Bank'!I101),\"\",'TA Indicator Bank'!I101)","v":"Number"},{"$f":"IF(ISBLANK('TA Indicator Bank'!J101),\"\",'TA Indicator Bank'!J101)","v":1},{"$f":"IF(ISBLANK('TA Indicator Bank'!K101),\"\",'TA Indicator Bank'!K101)","v":1},{"$f":"IF(ISBLANK('TA Indicator Bank'!L101),\"\",'TA Indicator Bank'!L101)","v":0},{"$f":"IF(ISBLANK('TA Indicator Bank'!M101),\"\",'TA Indicator Bank'!M101)","v":0},{"$f":"IF(ISBLANK('TA Indicator Bank'!N101),\"\",'TA Indicator Bank'!N101)","v":1},{"$f":"IF(ISBLANK('TA Indicator Bank'!O101),\"\",'TA Indicator Bank'!O101)","v":0},{"$f":"IF(ISBLANK('TA Indicator Bank'!P101),\"\",'TA Indicator Bank'!P101)","v":0},{"$f":"IF(ISBLANK('TA Indicator Bank'!Q101),\"\",'TA Indicator Bank'!Q101)","v":0},{"$f":"IF(ISBLANK('TA Indicator Bank'!R101),\"\",'TA Indicator Bank'!R101)","v":0},{"$f":"IF(ISBLANK('TA Indicator Bank'!S101),\"\",'TA Indicator Bank'!S101)","v":0},{"$f":"IF(ISBLANK('TA Indicator Bank'!T101),\"\",'TA Indicator Bank'!T101)","v":0},{"$f":"IF(ISBLANK('TA Indicator Bank'!U101),\"\",'TA Indicator Bank'!U101)","v":1},{"$f":"IF(ISBLANK('TA Indicator Bank'!V101),\"\",'TA Indicator Bank'!V101)","v":0},{"$f":"IF(ISBLANK('TA Indicator Bank'!W101),\"\",'TA Indicator Bank'!W101)","v":0},{"$f":"IF(ISBLANK('TA Indicator Bank'!X101),\"\",'TA Indicator Bank'!X101)","v":0},{"$f":"IF(ISBLANK('TA Indicator Bank'!Y101),\"\",'TA Indicator Bank'!Y101)","v":0},{"$f":"IF(ISBLANK('TA Indicator Bank'!Z101),\"\",'TA Indicator Bank'!Z101)","v":0},{"$f":"IF(ISBLANK('TA Indicator Bank'!AA101),\"\",'TA Indicator Bank'!AA101)","v":0},{"$f":"IF(ISBLANK('TA Indicator Bank'!AB101),\"\",'TA Indicator Bank'!AB101)","v":0},{"$f":"IF(ISBLANK('TA Indicator Bank'!AC101),\"\",'TA Indicator Bank'!AC101)","v":0},{"$f":"IF(ISBLANK('TA Indicator Bank'!AD101),\"\",'TA Indicator Bank'!AD101)","v":0},{"$f":"IF(ISBLANK('TA Indicator Bank'!AE101),\"\",'TA Indicator Bank'!AE101)","v":0},{"$f":"IF(ISBLANK('TA Indicator Bank'!AF101),\"\",'TA Indicator Bank'!AF101)","v":0},{"$f":"IF(ISBLANK('TA Indicator Bank'!AG101),\"\",'TA Indicator Bank'!AG101)","v":0},{"$f":"IF(ISBLANK('TA Indicator Bank'!AH101),\"\",'TA Indicator Bank'!AH101)","v":0},{"$f":"IF(ISBLANK('TA Indicator Bank'!AI101),\"\",'TA Indicator Bank'!AI101)","v":0},{"$f":"IF(ISBLANK('TA Indicator Bank'!AJ101),\"\",'TA Indicator Bank'!AJ101)","v":0},{"$f":"IF(ISBLANK('TA Indicator Bank'!AK101),\"\",'TA Indicator Bank'!AK101)","v":0},{"$f":"IF(ISBLANK('TA Indicator Bank'!AL101),\"\",'TA Indicator Bank'!AL101)","v":0},{"$f":"IF(ISBLANK('TA Indicator Bank'!AM101),\"\",'TA Indicator Bank'!AM101)","v":0},{"$f":"IF(ISBLANK('TA Indicator Bank'!AN101),\"\",'TA Indicator Bank'!AN101)","v":0},{"$f":"IF(ISBLANK('TA Indicator Bank'!AO101),\"\",'TA Indicator Bank'!AO101)","v":0},{"$f":"IF(ISBLANK('TA Indicator Bank'!AP101),\"\",'TA Indicator Bank'!AP101)","v":1},{"$f":"IF(ISBLANK('TA Indicator Bank'!AQ101),\"\",'TA Indicator Bank'!AQ101)","v":0},{"$f":"IF(ISBLANK('TA Indicator Bank'!AR101),\"\",'TA Indicator Bank'!AR101)","v":0},{"$f":"IF(ISBLANK('TA Indicator Bank'!AS101),\"\",'TA Indicator Bank'!AS101)","v":0},{"$f":"IF(ISBLANK('TA Indicator Bank'!AT101),\"\",'TA Indicator Bank'!AT101)","v":0},{"$f":"IF(AND(J105=1,J$410=1),1,0)","v":1},{"$f":"IF(AND(K105=1,K$410=1),1,0)","v":1},{"$f":"IF(AND(L105=1,L$410=1),1,0)","v":0},{"$f":"IF(AND(M105=1,M$410=1),1,0)","v":0},{"$f":"IF(AND(N105=1,N$410=1),1,0)","v":1},{"$f":"IF(AND(O105=1,O$410=1),1,0)","v":0},{"$f":"IF(AND(P105=1,P$410=1),1,0)","v":0},{"$f":"IF(AND(Q105=1,Q$410=1),1,0)","v":0},{"$f":"IF(AND(R105=1,R$410=1),1,0)","v":0},{"$f":"IF(AND(S105=1,S$410=1),1,0)","v":0},{"$f":"IF(AND(T105=1,T$410=1),1,0)","v":0},{"$f":"IF(AND(U105=1,U$410=1),1,0)","v":1},{"$f":"IF(AND(V105=1,V$410=1),1,0)","v":0},{"$f":"IF(AND(W105=1,W$410=1),1,0)","v":0},1,{"$f":"IF(AND(X105=1,X$410=1),1,0)","v":0},{"$f":"IF(AND(Y105=1,Y$410=1),1,0)","v":0},{"$f":"IF(AND(Z105=1,Z$410=1),1,0)","v":0},{"$f":"IF(AND(AA105=1,AA$410=1),1,0)","v":0},{"$f":"IF(AND(AB105=1,AB$410=1),1,0)","v":0},{"$f":"IF(AND(AC105=1,AC$410=1),1,0)","v":0},{"$f":"IF(AND(AD105=1,AD$410=1),1,0)","v":0},{"$f":"IF(AND(AE105=1,AE$410=1),1,0)","v":0},{"$f":"IF(AND(AF105=1,AF$410=1),1,0)","v":0},1,{"$f":"IF(AND(AG105=1,AG$410=1),1,0)","v":0},{"$f":"IF(AND(AH105=1,AH$410=1),1,0)","v":0},{"$f":"IF(AND(AI105=1,AI$410=1),1,0)","v":0},{"$f":"IF(AND(AJ105=1,AJ$410=1),1,0)","v":0},{"$f":"IF(AND(AK105=1,AK$410=1),1,0)","v":0},{"$f":"IF(AND(AL105=1,AL$410=1),1,0)","v":0},{"$f":"IF(AND(AM105=1,AM$410=1),1,0)","v":0},{"$f":"IF(AND(AN105=1,AN$410=1),1,0)","v":0},{"$f":"IF(AND(AO105=1,AO$410=1),1,0)","v":0},1,{"$f":"IF(AND(AP105=1,AP$410=1),1,0)","v":1},{"$f":"IF(AND(AQ105=1,AQ$410=1),1,0)","v":0},{"$f":"IF(AND(AR105=1,AR$410=1),1,0)","v":0},{"$f":"IF(AND(AS105=1,AS$410=1),1,0)","v":0},{"$f":"IF(AND(AT105=1,AT$410=1),1,0)","v":0},1,1,97,97,{"$f":"IFERROR(SMALL($CL$9:$CL$408,CK105),\"\")","v":97},{"$f":"IFERROR(INDEX($B$9:$I$408,$CM105,COLUMNS($CN$9:CN105)),\"\")","v":"TA097"},{"$f":"IFERROR(INDEX($B$9:$I$408,$CM105,COLUMNS($CN$9:CO105)),\"\")","v":"Number of times/cases/countries/participants support is provided (to)"},{"$f":"IFERROR(INDEX($B$9:$I$408,$CM105,COLUMNS($CN$9:CP105)),\"\")","v":"-"},{"$f":"IFERROR(INDEX($B$9:$I$408,$CM105,COLUMNS($CN$9:CQ105)),\"\")","v":"Activity"},{"$f":"IFERROR(INDEX($B$9:$I$408,$CM105,COLUMNS($CN$9:CR105)),\"\")","v":"Workshops; Training events / courses; Specialist research, inc. market / policy / legal / regulatory / technology research briefs; Project studies and plans"},{"$f":"IFERROR(INDEX($B$9:$I$408,$CM105,COLUMNS($CN$9:CS105)),\"\")","v":"-"},{"$f":"IFERROR(INDEX($B$9:$I$408,$CM105,COLUMNS($CN$9:CT105)),\"\")","v":"-"},{"$f":"IFERROR(INDEX($B$9:$I$408,$CM105,COLUMNS($CN$9:CU105)),\"\")","v":"Number"}]
[null,{"$f":"IF(ISBLANK('TA Indicator Bank'!B102),\"\",'TA Indicator Bank'!B102)","v":"TA098"},{"$f":"IF(ISBLANK('TA Indicator Bank'!C102),\"\",'TA Indicator Bank'!C102)","v":"Number of publications written with support"},{"$f":"IF(ISBLANK('TA Indicator Bank'!D102),\"\",'TA Indicator Bank'!D102)","v":"-"},{"$f":"IF(ISBLANK('TA Indicator Bank'!E102),\"\",'TA Indicator Bank'!E102)","v":"Output"},{"$f":"IF(ISBLANK('TA Indicator Bank'!F102),\"\",'TA Indicator Bank'!F102)","v":"-"},{"$f":"IF(ISBLANK('TA Indicator Bank'!G102),\"\",'TA Indicator Bank'!G102)","v":"Capacity building: Technical capacity"},{"$f":"IF(ISBLANK('TA Indicator Bank'!H102),\"\",'TA Indicator Bank'!H102)","v":"-"},{"$f":"IF(ISBLANK('TA Indicator Bank'!I102),\"\",'TA Indicator Bank'!I102)","v":"Number"},{"$f":"IF(ISBLANK('TA Indicator Bank'!J102),\"\",'TA Indicator Bank'!J102)","v":0},{"$f":"IF(ISBLANK('TA Indicator Bank'!K102),\"\",'TA Indicator Bank'!K102)","v":0},{"$f":"IF(ISBLANK('TA Indicator Bank'!L102),\"\",'TA Indicator Bank'!L102)","v":0},{"$f":"IF(ISBLANK('TA Indicator Bank'!M102),\"\",'TA Indicator Bank'!M102)","v":0},{"$f":"IF(ISBLANK('TA Indicator Bank'!N102),\"\",'TA Indicator Bank'!N102)","v":0},{"$f":"IF(ISBLANK('TA Indicator Bank'!O102),\"\",'TA Indicator Bank'!O102)","v":0},{"$f":"IF(ISBLANK('TA Indicator Bank'!P102),\"\",'TA Indicator Bank'!P102)","v":0},{"$f":"IF(ISBLANK('TA Indicator Bank'!Q102),\"\",'TA Indicator Bank'!Q102)","v":0},{"$f":"IF(ISBLANK('TA Indicator Bank'!R102),\"\",'TA Indicator Bank'!R102)","v":0},{"$f":"IF(ISBLANK('TA Indicator Bank'!S102),\"\",'TA Indicator Bank'!S102)","v":0},{"$f":"IF(ISBLANK('TA Indicator Bank'!T102),\"\",'TA Indicator Bank'!T102)","v":0},{"$f":"IF(ISBLANK('TA Indicator Bank'!U102),\"\",'TA Indicator Bank'!U102)","v":0},{"$f":"IF(ISBLANK('TA Indicator Bank'!V102),\"\",'TA Indicator Bank'!V102)","v":0},{"$f":"IF(ISBLANK('TA Indicator Bank'!W102),\"\",'TA Indicator Bank'!W102)","v":0},{"$f":"IF(ISBLANK('TA Indicator Bank'!X102),\"\",'TA Indicator Bank'!X102)","v":0},{"$f":"IF(ISBLANK('TA Indicator Bank'!Y102),\"\",'TA Indicator Bank'!Y102)","v":1},{"$f":"IF(ISBLANK('TA Indicator Bank'!Z102),\"\",'TA Indicator Bank'!Z102)","v":0},{"$f":"IF(ISBLANK('TA Indicator Bank'!AA102),\"\",'TA Indicator Bank'!AA102)","v":0},{"$f":"IF(ISBLANK('TA Indicator Bank'!AB102),\"\",'TA Indicator Bank'!AB102)","v":0},{"$f":"IF(ISBLANK('TA Indicator Bank'!AC102),\"\",'TA Indicator Bank'!AC102)","v":0},{"$f":"IF(ISBLANK('TA Indicator Bank'!AD102),\"\",'TA Indicator Bank'!AD102)","v":0},{"$f":"IF(ISBLANK('TA Indicator Bank'!AE102),\"\",'TA Indicator Bank'!AE102)","v":0},{"$f":"IF(ISBLANK('TA Indicator Bank'!AF102),\"\",'TA Indicator Bank'!AF102)","v":0},{"$f":"IF(ISBLANK('TA Indicator Bank'!AG102),\"\",'TA Indicator Bank'!AG102)","v":0},{"$f":"IF(ISBLANK('TA Indicator Bank'!AH102),\"\",'TA Indicator Bank'!AH102)","v":0},{"$f":"IF(ISBLANK('TA Indicator Bank'!AI102),\"\",'TA Indicator Bank'!AI102)","v":0},{"$f":"IF(ISBLANK('TA Indicator Bank'!AJ102),\"\",'TA Indicator Bank'!AJ102)","v":0},{"$f":"IF(ISBLANK('TA Indicator Bank'!AK102),\"\",'TA Indicator Bank'!AK102)","v":0},{"$f":"IF(ISBLANK('TA Indicator Bank'!AL102),\"\",'TA Indicator Bank'!AL102)","v":0},{"$f":"IF(ISBLANK('TA Indicator Bank'!AM102),\"\",'TA Indicator Bank'!AM102)","v":0},{"$f":"IF(ISBLANK('TA Indicator Bank'!AN102),\"\",'TA Indicator Bank'!AN102)","v":0},{"$f":"IF(ISBLANK('TA Indicator Bank'!AO102),\"\",'TA Indicator Bank'!AO102)","v":0},{"$f":"IF(ISBLANK('TA Indicator Bank'!AP102),\"\",'TA Indicator Bank'!AP102)","v":0},{"$f":"IF(ISBLANK('TA Indicator Bank'!AQ102),\"\",'TA Indicator Bank'!AQ102)","v":0},{"$f":"IF(ISBLANK('TA Indicator Bank'!AR102),\"\",'TA Indicator Bank'!AR102)","v":1},{"$f":"IF(ISBLANK('TA Indicator Bank'!AS102),\"\",'TA Indicator Bank'!AS102)","v":0},{"$f":"IF(ISBLANK('TA Indicator Bank'!AT102),\"\",'TA Indicator Bank'!AT102)","v":0},{"$f":"IF(AND(J106=1,J$410=1),1,0)","v":0},{"$f":"IF(AND(K106=1,K$410=1),1,0)","v":0},{"$f":"IF(AND(L106=1,L$410=1),1,0)","v":0},{"$f":"IF(AND(M106=1,M$410=1),1,0)","v":0},{"$f":"IF(AND(N106=1,N$410=1),1,0)","v":0},{"$f":"IF(AND(O106=1,O$410=1),1,0)","v":0},{"$f":"IF(AND(P106=1,P$410=1),1,0)","v":0},{"$f":"IF(AND(Q106=1,Q$410=1),1,0)","v":0},{"$f":"IF(AND(R106=1,R$410=1),1,0)","v":0},{"$f":"IF(AND(S106=1,S$410=1),1,0)","v":0},{"$f":"IF(AND(T106=1,T$410=1),1,0)","v":0},{"$f":"IF(AND(U106=1,U$410=1),1,0)","v":0},{"$f":"IF(AND(V106=1,V$410=1),1,0)","v":0},{"$f":"IF(AND(W106=1,W$410=1),1,0)","v":0},1,{"$f":"IF(AND(X106=1,X$410=1),1,0)","v":0},{"$f":"IF(AND(Y106=1,Y$410=1),1,0)","v":1},{"$f":"IF(AND(Z106=1,Z$410=1),1,0)","v":0},{"$f":"IF(AND(AA106=1,AA$410=1),1,0)","v":0},{"$f":"IF(AND(AB106=1,AB$410=1),1,0)","v":0},{"$f":"IF(AND(AC106=1,AC$410=1),1,0)","v":0},{"$f":"IF(AND(AD106=1,AD$410=1),1,0)","v":0},{"$f":"IF(AND(AE106=1,AE$410=1),1,0)","v":0},{"$f":"IF(AND(AF106=1,AF$410=1),1,0)","v":0},1,{"$f":"IF(AND(AG106=1,AG$410=1),1,0)","v":0},{"$f":"IF(AND(AH106=1,AH$410=1),1,0)","v":0},{"$f":"IF(AND(AI106=1,AI$410=1),1,0)","v":0},{"$f":"IF(AND(AJ106=1,AJ$410=1),1,0)","v":0},{"$f":"IF(AND(AK106=1,AK$410=1),1,0)","v":0},{"$f":"IF(AND(AL106=1,AL$410=1),1,0)","v":0},{"$f":"IF(AND(AM106=1,AM$410=1),1,0)","v":0},{"$f":"IF(AND(AN106=1,AN$410=1),1,0)","v":0},{"$f":"IF(AND(AO106=1,AO$410=1),1,0)","v":0},1,{"$f":"IF(AND(AP106=1,AP$410=1),1,0)","v":0},{"$f":"IF(AND(AQ106=1,AQ$410=1),1,0)","v":0},{"$f":"IF(AND(AR106=1,AR$410=1),1,0)","v":1},{"$f":"IF(AND(AS106=1,AS$410=1),1,0)","v":0},{"$f":"IF(AND(AT106=1,AT$410=1),1,0)","v":0},1,1,98,98,{"$f":"IFERROR(SMALL($CL$9:$CL$408,CK106),\"\")","v":98},{"$f":"IFERROR(INDEX($B$9:$I$408,$CM106,COLUMNS($CN$9:CN106)),\"\")","v":"TA098"},{"$f":"IFERROR(INDEX($B$9:$I$408,$CM106,COLUMNS($CN$9:CO106)),\"\")","v":"Number of publications written with support"},{"$f":"IFERROR(INDEX($B$9:$I$408,$CM106,COLUMNS($CN$9:CP106)),\"\")","v":"-"},{"$f":"IFERROR(INDEX($B$9:$I$408,$CM106,COLUMNS($CN$9:CQ106)),\"\")","v":"Output"},{"$f":"IFERROR(INDEX($B$9:$I$408,$CM106,COLUMNS($CN$9:CR106)),\"\")","v":"-"},{"$f":"IFERROR(INDEX($B$9:$I$408,$CM106,COLUMNS($CN$9:CS106)),\"\")","v":"Capacity building: Technical capacity"},{"$f":"IFERROR(INDEX($B$9:$I$408,$CM106,COLUMNS($CN$9:CT106)),\"\")","v":"-"},{"$f":"IFERROR(INDEX($B$9:$I$408,$CM106,COLUMNS($CN$9:CU106)),\"\")","v":"Number"}]
[null,{"$f":"IF(ISBLANK('TA Indicator Bank'!B103),\"\",'TA Indicator Bank'!B103)","v":"TA099"},{"$f":"IF(ISBLANK('TA Indicator Bank'!C103),\"\",'TA Indicator Bank'!C103)","v":"Number of countries where stakeholders are satisfied with the knowledge product's functionality or performance"},{"$f":"IF(ISBLANK('TA Indicator Bank'!D103),\"\",'TA Indicator Bank'!D103)","v":"-"},{"$f":"IF(ISBLANK('TA Indicator Bank'!E103),\"\",'TA Indicator Bank'!E103)","v":"Output"},{"$f":"IF(ISBLANK('TA Indicator Bank'!F103),\"\",'TA Indicator Bank'!F103)","v":"-"},{"$f":"IF(ISBLANK('TA Indicator Bank'!G103),\"\",'TA Indicator Bank'!G103)","v":"Capacity building: Technical capacity"},{"$f":"IF(ISBLANK('TA Indicator Bank'!H103),\"\",'TA Indicator Bank'!H103)","v":"-"},{"$f":"IF(ISBLANK('TA Indicator Bank'!I103),\"\",'TA Indicator Bank'!I103)","v":"Number"},{"$f":"IF(ISBLANK('TA Indicator Bank'!J103),\"\",'TA Indicator Bank'!J103)","v":0},{"$f":"IF(ISBLANK('TA Indicator Bank'!K103),\"\",'TA Indicator Bank'!K103)","v":0},{"$f":"IF(ISBLANK('TA Indicator Bank'!L103),\"\",'TA Indicator Bank'!L103)","v":0},{"$f":"IF(ISBLANK('TA Indicator Bank'!M103),\"\",'TA Indicator Bank'!M103)","v":0},{"$f":"IF(ISBLANK('TA Indicator Bank'!N103),\"\",'TA Indicator Bank'!N103)","v":0},{"$f":"IF(ISBLANK('TA Indicator Bank'!O103),\"\",'TA Indicator Bank'!O103)","v":0},{"$f":"IF(ISBLANK('TA Indicator Bank'!P103),\"\",'TA Indicator Bank'!P103)","v":0},{"$f":"IF(ISBLANK('TA Indicator Bank'!Q103),\"\",'TA Indicator Bank'!Q103)","v":0},{"$f":"IF(ISBLANK('TA Indicator Bank'!R103),\"\",'TA Indicator Bank'!R103)","v":0},{"$f":"IF(ISBLANK('TA Indicator Bank'!S103),\"\",'TA Indicator Bank'!S103)","v":0},{"$f":"IF(ISBLANK('TA Indicator Bank'!T103),\"\",'TA Indicator Bank'!T103)","v":0},{"$f":"IF(ISBLANK('TA Indicator Bank'!U103),\"\",'TA Indicator Bank'!U103)","v":0},{"$f":"IF(ISBLANK('TA Indicator Bank'!V103),\"\",'TA Indicator Bank'!V103)","v":0},{"$f":"IF(ISBLANK('TA Indicator Bank'!W103),\"\",'TA Indicator Bank'!W103)","v":0},{"$f":"IF(ISBLANK('TA Indicator Bank'!X103),\"\",'TA Indicator Bank'!X103)","v":0},{"$f":"IF(ISBLANK('TA Indicator Bank'!Y103),\"\",'TA Indicator Bank'!Y103)","v":1},{"$f":"IF(ISBLANK('TA Indicator Bank'!Z103),\"\",'TA Indicator Bank'!Z103)","v":0},{"$f":"IF(ISBLANK('TA Indicator Bank'!AA103),\"\",'TA Indicator Bank'!AA103)","v":0},{"$f":"IF(ISBLANK('TA Indicator Bank'!AB103),\"\",'TA Indicator Bank'!AB103)","v":0},{"$f":"IF(ISBLANK('TA Indicator Bank'!AC103),\"\",'TA Indicator Bank'!AC103)","v":0},{"$f":"IF(ISBLANK('TA Indicator Bank'!AD103),\"\",'TA Indicator Bank'!AD103)","v":0},{"$f":"IF(ISBLANK('TA Indicator Bank'!AE103),\"\",'TA Indicator Bank'!AE103)","v":0},{"$f":"IF(ISBLANK('TA Indicator Bank'!AF103),\"\",'TA Indicator Bank'!AF103)","v":0},{"$f":"IF(ISBLANK('TA Indicator Bank'!AG103),\"\",'TA Indicator Bank'!AG103)","v":0},{"$f":"IF(ISBLANK('TA Indicator Bank'!AH103),\"\",'TA Indicator Bank'!AH103)","v":0},{"$f":"IF(ISBLANK('TA Indicator Bank'!AI103),\"\",'TA Indicator Bank'!AI103)","v":0},{"$f":"IF(ISBLANK('TA Indicator Bank'!AJ103),\"\",'TA Indicator Bank'!AJ103)","v":0},{"$f":"IF(ISBLANK('TA Indicator Bank'!AK103),\"\",'TA Indicator Bank'!AK103)","v":0},{"$f":"IF(ISBLANK('TA Indicator Bank'!AL103),\"\",'TA Indicator Bank'!AL103)","v":0},{"$f":"IF(ISBLANK('TA Indicator Bank'!AM103),\"\",'TA Indicator Bank'!AM103)","v":0},{"$f":"IF(ISBLANK('TA Indicator Bank'!AN103),\"\",'TA Indicator Bank'!AN103)","v":0},{"$f":"IF(ISBLANK('TA Indicator Bank'!AO103),\"\",'TA Indicator Bank'!AO103)","v":0},{"$f":"IF(ISBLANK('TA Indicator Bank'!AP103),\"\",'TA Indicator Bank'!AP103)","v":0},{"$f":"IF(ISBLANK('TA Indicator Bank'!AQ103),\"\",'TA Indicator Bank'!AQ103)","v":0},{"$f":"IF(ISBLANK('TA Indicator Bank'!AR103),\"\",'TA Indicator Bank'!AR103)","v":1},{"$f":"IF(ISBLANK('TA Indicator Bank'!AS103),\"\",'TA Indicator Bank'!AS103)","v":0},{"$f":"IF(ISBLANK('TA Indicator Bank'!AT103),\"\",'TA Indicator Bank'!AT103)","v":0},{"$f":"IF(AND(J107=1,J$410=1),1,0)","v":0},{"$f":"IF(AND(K107=1,K$410=1),1,0)","v":0},{"$f":"IF(AND(L107=1,L$410=1),1,0)","v":0},{"$f":"IF(AND(M107=1,M$410=1),1,0)","v":0},{"$f":"IF(AND(N107=1,N$410=1),1,0)","v":0},{"$f":"IF(AND(O107=1,O$410=1),1,0)","v":0},{"$f":"IF(AND(P107=1,P$410=1),1,0)","v":0},{"$f":"IF(AND(Q107=1,Q$410=1),1,0)","v":0},{"$f":"IF(AND(R107=1,R$410=1),1,0)","v":0},{"$f":"IF(AND(S107=1,S$410=1),1,0)","v":0},{"$f":"IF(AND(T107=1,T$410=1),1,0)","v":0},{"$f":"IF(AND(U107=1,U$410=1),1,0)","v":0},{"$f":"IF(AND(V107=1,V$410=1),1,0)","v":0},{"$f":"IF(AND(W107=1,W$410=1),1,0)","v":0},1,{"$f":"IF(AND(X107=1,X$410=1),1,0)","v":0},{"$f":"IF(AND(Y107=1,Y$410=1),1,0)","v":1},{"$f":"IF(AND(Z107=1,Z$410=1),1,0)","v":0},{"$f":"IF(AND(AA107=1,AA$410=1),1,0)","v":0},{"$f":"IF(AND(AB107=1,AB$410=1),1,0)","v":0},{"$f":"IF(AND(AC107=1,AC$410=1),1,0)","v":0},{"$f":"IF(AND(AD107=1,AD$410=1),1,0)","v":0},{"$f":"IF(AND(AE107=1,AE$410=1),1,0)","v":0},{"$f":"IF(AND(AF107=1,AF$410=1),1,0)","v":0},1,{"$f":"IF(AND(AG107=1,AG$410=1),1,0)","v":0},{"$f":"IF(AND(AH107=1,AH$410=1),1,0)","v":0},{"$f":"IF(AND(AI107=1,AI$410=1),1,0)","v":0},{"$f":"IF(AND(AJ107=1,AJ$410=1),1,0)","v":0},{"$f":"IF(AND(AK107=1,AK$410=1),1,0)","v":0},{"$f":"IF(AND(AL107=1,AL$410=1),1,0)","v":0},{"$f":"IF(AND(AM107=1,AM$410=1),1,0)","v":0},{"$f":"IF(AND(AN107=1,AN$410=1),1,0)","v":0},{"$f":"IF(AND(AO107=1,AO$410=1),1,0)","v":0},1,{"$f":"IF(AND(AP107=1,AP$410=1),1,0)","v":0},{"$f":"IF(AND(AQ107=1,AQ$410=1),1,0)","v":0},{"$f":"IF(AND(AR107=1,AR$410=1),1,0)","v":1},{"$f":"IF(AND(AS107=1,AS$410=1),1,0)","v":0},{"$f":"IF(AND(AT107=1,AT$410=1),1,0)","v":0},1,1,99,99,{"$f":"IFERROR(SMALL($CL$9:$CL$408,CK107),\"\")","v":99},{"$f":"IFERROR(INDEX($B$9:$I$408,$CM107,COLUMNS($CN$9:CN107)),\"\")","v":"TA099"},{"$f":"IFERROR(INDEX($B$9:$I$408,$CM107,COLUMNS($CN$9:CO107)),\"\")","v":"Number of countries where stakeholders are satisfied with the knowledge product's functionality or performance"},{"$f":"IFERROR(INDEX($B$9:$I$408,$CM107,COLUMNS($CN$9:CP107)),\"\")","v":"-"},{"$f":"IFERROR(INDEX($B$9:$I$408,$CM107,COLUMNS($CN$9:CQ107)),\"\")","v":"Output"},{"$f":"IFERROR(INDEX($B$9:$I$408,$CM107,COLUMNS($CN$9:CR107)),\"\")","v":"-"},{"$f":"IFERROR(INDEX($B$9:$I$408,$CM107,COLUMNS($CN$9:CS107)),\"\")","v":"Capacity building: Technical capacity"},{"$f":"IFERROR(INDEX($B$9:$I$408,$CM107,COLUMNS($CN$9:CT107)),\"\")","v":"-"},{"$f":"IFERROR(INDEX($B$9:$I$408,$CM107,COLUMNS($CN$9:CU107)),\"\")","v":"Number"}]
[null,{"$f":"IF(ISBLANK('TA Indicator Bank'!B104),\"\",'TA Indicator Bank'!B104)","v":"TA100"},{"$f":"IF(ISBLANK('TA Indicator Bank'!C104),\"\",'TA Indicator Bank'!C104)","v":"Number of cases where government or stakeholder changed behaviour in response to capacity building"},{"$f":"IF(ISBLANK('TA Indicator Bank'!D104),\"\",'TA Indicator Bank'!D104)","v":"-"},{"$f":"IF(ISBLANK('TA Indicator Bank'!E104),\"\",'TA Indicator Bank'!E104)","v":"Output"},{"$f":"IF(ISBLANK('TA Indicator Bank'!F104),\"\",'TA Indicator Bank'!F104)","v":"-"},{"$f":"IF(ISBLANK('TA Indicator Bank'!G104),\"\",'TA Indicator Bank'!G104)","v":"Capacity building: Technical capacity"},{"$f":"IF(ISBLANK('TA Indicator Bank'!H104),\"\",'TA Indicator Bank'!H104)","v":"-"},{"$f":"IF(ISBLANK('TA Indicator Bank'!I104),\"\",'TA Indicator Bank'!I104)","v":"Number"},{"$f":"IF(ISBLANK('TA Indicator Bank'!J104),\"\",'TA Indicator Bank'!J104)","v":0},{"$f":"IF(ISBLANK('TA Indicator Bank'!K104),\"\",'TA Indicator Bank'!K104)","v":0},{"$f":"IF(ISBLANK('TA Indicator Bank'!L104),\"\",'TA Indicator Bank'!L104)","v":0},{"$f":"IF(ISBLANK('TA Indicator Bank'!M104),\"\",'TA Indicator Bank'!M104)","v":0},{"$f":"IF(ISBLANK('TA Indicator Bank'!N104),\"\",'TA Indicator Bank'!N104)","v":0},{"$f":"IF(ISBLANK('TA Indicator Bank'!O104),\"\",'TA Indicator Bank'!O104)","v":0},{"$f":"IF(ISBLANK('TA Indicator Bank'!P104),\"\",'TA Indicator Bank'!P104)","v":0},{"$f":"IF(ISBLANK('TA Indicator Bank'!Q104),\"\",'TA Indicator Bank'!Q104)","v":0},{"$f":"IF(ISBLANK('TA Indicator Bank'!R104),\"\",'TA Indicator Bank'!R104)","v":0},{"$f":"IF(ISBLANK('TA Indicator Bank'!S104),\"\",'TA Indicator Bank'!S104)","v":0},{"$f":"IF(ISBLANK('TA Indicator Bank'!T104),\"\",'TA Indicator Bank'!T104)","v":0},{"$f":"IF(ISBLANK('TA Indicator Bank'!U104),\"\",'TA Indicator Bank'!U104)","v":0},{"$f":"IF(ISBLANK('TA Indicator Bank'!V104),\"\",'TA Indicator Bank'!V104)","v":0},{"$f":"IF(ISBLANK('TA Indicator Bank'!W104),\"\",'TA Indicator Bank'!W104)","v":0},{"$f":"IF(ISBLANK('TA Indicator Bank'!X104),\"\",'TA Indicator Bank'!X104)","v":0},{"$f":"IF(ISBLANK('TA Indicator Bank'!Y104),\"\",'TA Indicator Bank'!Y104)","v":1},{"$f":"IF(ISBLANK('TA Indicator Bank'!Z104),\"\",'TA Indicator Bank'!Z104)","v":0},{"$f":"IF(ISBLANK('TA Indicator Bank'!AA104),\"\",'TA Indicator Bank'!AA104)","v":0},{"$f":"IF(ISBLANK('TA Indicator Bank'!AB104),\"\",'TA Indicator Bank'!AB104)","v":0},{"$f":"IF(ISBLANK('TA Indicator Bank'!AC104),\"\",'TA Indicator Bank'!AC104)","v":0},{"$f":"IF(ISBLANK('TA Indicator Bank'!AD104),\"\",'TA Indicator Bank'!AD104)","v":0},{"$f":"IF(ISBLANK('TA Indicator Bank'!AE104),\"\",'TA Indicator Bank'!AE104)","v":0},{"$f":"IF(ISBLANK('TA Indicator Bank'!AF104),\"\",'TA Indicator Bank'!AF104)","v":0},{"$f":"IF(ISBLANK('TA Indicator Bank'!AG104),\"\",'TA Indicator Bank'!AG104)","v":0},{"$f":"IF(ISBLANK('TA Indicator Bank'!AH104),\"\",'TA Indicator Bank'!AH104)","v":0},{"$f":"IF(ISBLANK('TA Indicator Bank'!AI104),\"\",'TA Indicator Bank'!AI104)","v":0},{"$f":"IF(ISBLANK('TA Indicator Bank'!AJ104),\"\",'TA Indicator Bank'!AJ104)","v":0},{"$f":"IF(ISBLANK('TA Indicator Bank'!AK104),\"\",'TA Indicator Bank'!AK104)","v":0},{"$f":"IF(ISBLANK('TA Indicator Bank'!AL104),\"\",'TA Indicator Bank'!AL104)","v":0},{"$f":"IF(ISBLANK('TA Indicator Bank'!AM104),\"\",'TA Indicator Bank'!AM104)","v":0},{"$f":"IF(ISBLANK('TA Indicator Bank'!AN104),\"\",'TA Indicator Bank'!AN104)","v":0},{"$f":"IF(ISBLANK('TA Indicator Bank'!AO104),\"\",'TA Indicator Bank'!AO104)","v":0},{"$f":"IF(ISBLANK('TA Indicator Bank'!AP104),\"\",'TA Indicator Bank'!AP104)","v":0},{"$f":"IF(ISBLANK('TA Indicator Bank'!AQ104),\"\",'TA Indicator Bank'!AQ104)","v":0},{"$f":"IF(ISBLANK('TA Indicator Bank'!AR104),\"\",'TA Indicator Bank'!AR104)","v":1},{"$f":"IF(ISBLANK('TA Indicator Bank'!AS104),\"\",'TA Indicator Bank'!AS104)","v":0},{"$f":"IF(ISBLANK('TA Indicator Bank'!AT104),\"\",'TA Indicator Bank'!AT104)","v":0},{"$f":"IF(AND(J108=1,J$410=1),1,0)","v":0},{"$f":"IF(AND(K108=1,K$410=1),1,0)","v":0},{"$f":"IF(AND(L108=1,L$410=1),1,0)","v":0},{"$f":"IF(AND(M108=1,M$410=1),1,0)","v":0},{"$f":"IF(AND(N108=1,N$410=1),1,0)","v":0},{"$f":"IF(AND(O108=1,O$410=1),1,0)","v":0},{"$f":"IF(AND(P108=1,P$410=1),1,0)","v":0},{"$f":"IF(AND(Q108=1,Q$410=1),1,0)","v":0},{"$f":"IF(AND(R108=1,R$410=1),1,0)","v":0},{"$f":"IF(AND(S108=1,S$410=1),1,0)","v":0},{"$f":"IF(AND(T108=1,T$410=1),1,0)","v":0},{"$f":"IF(AND(U108=1,U$410=1),1,0)","v":0},{"$f":"IF(AND(V108=1,V$410=1),1,0)","v":0},{"$f":"IF(AND(W108=1,W$410=1),1,0)","v":0},1,{"$f":"IF(AND(X108=1,X$410=1),1,0)","v":0},{"$f":"IF(AND(Y108=1,Y$410=1),1,0)","v":1},{"$f":"IF(AND(Z108=1,Z$410=1),1,0)","v":0},{"$f":"IF(AND(AA108=1,AA$410=1),1,0)","v":0},{"$f":"IF(AND(AB108=1,AB$410=1),1,0)","v":0},{"$f":"IF(AND(AC108=1,AC$410=1),1,0)","v":0},{"$f":"IF(AND(AD108=1,AD$410=1),1,0)","v":0},{"$f":"IF(AND(AE108=1,AE$410=1),1,0)","v":0},{"$f":"IF(AND(AF108=1,AF$410=1),1,0)","v":0},1,{"$f":"IF(AND(AG108=1,AG$410=1),1,0)","v":0},{"$f":"IF(AND(AH108=1,AH$410=1),1,0)","v":0},{"$f":"IF(AND(AI108=1,AI$410=1),1,0)","v":0},{"$f":"IF(AND(AJ108=1,AJ$410=1),1,0)","v":0},{"$f":"IF(AND(AK108=1,AK$410=1),1,0)","v":0},{"$f":"IF(AND(AL108=1,AL$410=1),1,0)","v":0},{"$f":"IF(AND(AM108=1,AM$410=1),1,0)","v":0},{"$f":"IF(AND(AN108=1,AN$410=1),1,0)","v":0},{"$f":"IF(AND(AO108=1,AO$410=1),1,0)","v":0},1,{"$f":"IF(AND(AP108=1,AP$410=1),1,0)","v":0},{"$f":"IF(AND(AQ108=1,AQ$410=1),1,0)","v":0},{"$f":"IF(AND(AR108=1,AR$410=1),1,0)","v":1},{"$f":"IF(AND(AS108=1,AS$410=1),1,0)","v":0},{"$f":"IF(AND(AT108=1,AT$410=1),1,0)","v":0},1,1,100,100,{"$f":"IFERROR(SMALL($CL$9:$CL$408,CK108),\"\")","v":100},{"$f":"IFERROR(INDEX($B$9:$I$408,$CM108,COLUMNS($CN$9:CN108)),\"\")","v":"TA100"},{"$f":"IFERROR(INDEX($B$9:$I$408,$CM108,COLUMNS($CN$9:CO108)),\"\")","v":"Number of cases where government or stakeholder changed behaviour in response to capacity building"},{"$f":"IFERROR(INDEX($B$9:$I$408,$CM108,COLUMNS($CN$9:CP108)),\"\")","v":"-"},{"$f":"IFERROR(INDEX($B$9:$I$408,$CM108,COLUMNS($CN$9:CQ108)),\"\")","v":"Output"},{"$f":"IFERROR(INDEX($B$9:$I$408,$CM108,COLUMNS($CN$9:CR108)),\"\")","v":"-"},{"$f":"IFERROR(INDEX($B$9:$I$408,$CM108,COLUMNS($CN$9:CS108)),\"\")","v":"Capacity building: Technical capacity"},{"$f":"IFERROR(INDEX($B$9:$I$408,$CM108,COLUMNS($CN$9:CT108)),\"\")","v":"-"},{"$f":"IFERROR(INDEX($B$9:$I$408,$CM108,COLUMNS($CN$9:CU108)),\"\")","v":"Number"}]
[null,{"$f":"IF(ISBLANK('TA Indicator Bank'!B105),\"\",'TA Indicator Bank'!B105)","v":"TA101"},{"$f":"IF(ISBLANK('TA Indicator Bank'!C105),\"\",'TA Indicator Bank'!C105)","v":"Number of cases/participants of capacity building support"},{"$f":"IF(ISBLANK('TA Indicator Bank'!D105),\"\",'TA Indicator Bank'!D105)","v":"-"},{"$f":"IF(ISBLANK('TA Indicator Bank'!E105),\"\",'TA Indicator Bank'!E105)","v":"Uptake"},{"$f":"IF(ISBLANK('TA Indicator Bank'!F105),\"\",'TA Indicator Bank'!F105)","v":"Workshops; Training events / courses; Specialist research, inc. market / policy / legal / regulatory / technology research briefs; Project studies and plans"},{"$f":"IF(ISBLANK('TA Indicator Bank'!G105),\"\",'TA Indicator Bank'!G105)","v":"-"},{"$f":"IF(ISBLANK('TA Indicator Bank'!H105),\"\",'TA Indicator Bank'!H105)","v":"-"},{"$f":"IF(ISBLANK('TA Indicator Bank'!I105),\"\",'TA Indicator Bank'!I105)","v":"Number"},{"$f":"IF(ISBLANK('TA Indicator Bank'!J105),\"\",'TA Indicator Bank'!J105)","v":1},{"$f":"IF(ISBLANK('TA Indicator Bank'!K105),\"\",'TA Indicator Bank'!K105)","v":1},{"$f":"IF(ISBLANK('TA Indicator Bank'!L105),\"\",'TA Indicator Bank'!L105)","v":0},{"$f":"IF(ISBLANK('TA Indicator Bank'!M105),\"\",'TA Indicator Bank'!M105)","v":0},{"$f":"IF(ISBLANK('TA Indicator Bank'!N105),\"\",'TA Indicator Bank'!N105)","v":1},{"$f":"IF(ISBLANK('TA Indicator Bank'!O105),\"\",'TA Indicator Bank'!O105)","v":0},{"$f":"IF(ISBLANK('TA Indicator Bank'!P105),\"\",'TA Indicator Bank'!P105)","v":0},{"$f":"IF(ISBLANK('TA Indicator Bank'!Q105),\"\",'TA Indicator Bank'!Q105)","v":0},{"$f":"IF(ISBLANK('TA Indicator Bank'!R105),\"\",'TA Indicator Bank'!R105)","v":0},{"$f":"IF(ISBLANK('TA Indicator Bank'!S105),\"\",'TA Indicator Bank'!S105)","v":0},{"$f":"IF(ISBLANK('TA Indicator Bank'!T105),\"\",'TA Indicator Bank'!T105)","v":0},{"$f":"IF(ISBLANK('TA Indicator Bank'!U105),\"\",'TA Indicator Bank'!U105)","v":1},{"$f":"IF(ISBLANK('TA Indicator Bank'!V105),\"\",'TA Indicator Bank'!V105)","v":0},{"$f":"IF(ISBLANK('TA Indicator Bank'!W105),\"\",'TA Indicator Bank'!W105)","v":0},{"$f":"IF(ISBLANK('TA Indicator Bank'!X105),\"\",'TA Indicator Bank'!X105)","v":0},{"$f":"IF(ISBLANK('TA Indicator Bank'!Y105),\"\",'TA Indicator Bank'!Y105)","v":0},{"$f":"IF(ISBLANK('TA Indicator Bank'!Z105),\"\",'TA Indicator Bank'!Z105)","v":0},{"$f":"IF(ISBLANK('TA Indicator Bank'!AA105),\"\",'TA Indicator Bank'!AA105)","v":0},{"$f":"IF(ISBLANK('TA Indicator Bank'!AB105),\"\",'TA Indicator Bank'!AB105)","v":0},{"$f":"IF(ISBLANK('TA Indicator Bank'!AC105),\"\",'TA Indicator Bank'!AC105)","v":0},{"$f":"IF(ISBLANK('TA Indicator Bank'!AD105),\"\",'TA Indicator Bank'!AD105)","v":0},{"$f":"IF(ISBLANK('TA Indicator Bank'!AE105),\"\",'TA Indicator Bank'!AE105)","v":0},{"$f":"IF(ISBLANK('TA Indicator Bank'!AF105),\"\",'TA Indicator Bank'!AF105)","v":0},{"$f":"IF(ISBLANK('TA Indicator Bank'!AG105),\"\",'TA Indicator Bank'!AG105)","v":0},{"$f":"IF(ISBLANK('TA Indicator Bank'!AH105),\"\",'TA Indicator Bank'!AH105)","v":0},{"$f":"IF(ISBLANK('TA Indicator Bank'!AI105),\"\",'TA Indicator Bank'!AI105)","v":0},{"$f":"IF(ISBLANK('TA Indicator Bank'!AJ105),\"\",'TA Indicator Bank'!AJ105)","v":0},{"$f":"IF(ISBLANK('TA Indicator Bank'!AK105),\"\",'TA Indicator Bank'!AK105)","v":0},{"$f":"IF(ISBLANK('TA Indicator Bank'!AL105),\"\",'TA Indicator Bank'!AL105)","v":0},{"$f":"IF(ISBLANK('TA Indicator Bank'!AM105),\"\",'TA Indicator Bank'!AM105)","v":0},{"$f":"IF(ISBLANK('TA Indicator Bank'!AN105),\"\",'TA Indicator Bank'!AN105)","v":0},{"$f":"IF(ISBLANK('TA Indicator Bank'!AO105),\"\",'TA Indicator Bank'!AO105)","v":0},{"$f":"IF(ISBLANK('TA Indicator Bank'!AP105),\"\",'TA Indicator Bank'!AP105)","v":0},{"$f":"IF(ISBLANK('TA Indicator Bank'!AQ105),\"\",'TA Indicator Bank'!AQ105)","v":1},{"$f":"IF(ISBLANK('TA Indicator Bank'!AR105),\"\",'TA Indicator Bank'!AR105)","v":0},{"$f":"IF(ISBLANK('TA Indicator Bank'!AS105),\"\",'TA Indicator Bank'!AS105)","v":0},{"$f":"IF(ISBLANK('TA Indicator Bank'!AT105),\"\",'TA Indicator Bank'!AT105)","v":0},{"$f":"IF(AND(J109=1,J$410=1),1,0)","v":1},{"$f":"IF(AND(K109=1,K$410=1),1,0)","v":1},{"$f":"IF(AND(L109=1,L$410=1),1,0)","v":0},{"$f":"IF(AND(M109=1,M$410=1),1,0)","v":0},{"$f":"IF(AND(N109=1,N$410=1),1,0)","v":1},{"$f":"IF(AND(O109=1,O$410=1),1,0)","v":0},{"$f":"IF(AND(P109=1,P$410=1),1,0)","v":0},{"$f":"IF(AND(Q109=1,Q$410=1),1,0)","v":0},{"$f":"IF(AND(R109=1,R$410=1),1,0)","v":0},{"$f":"IF(AND(S109=1,S$410=1),1,0)","v":0},{"$f":"IF(AND(T109=1,T$410=1),1,0)","v":0},{"$f":"IF(AND(U109=1,U$410=1),1,0)","v":1},{"$f":"IF(AND(V109=1,V$410=1),1,0)","v":0},{"$f":"IF(AND(W109=1,W$410=1),1,0)","v":0},1,{"$f":"IF(AND(X109=1,X$410=1),1,0)","v":0},{"$f":"IF(AND(Y109=1,Y$410=1),1,0)","v":0},{"$f":"IF(AND(Z109=1,Z$410=1),1,0)","v":0},{"$f":"IF(AND(AA109=1,AA$410=1),1,0)","v":0},{"$f":"IF(AND(AB109=1,AB$410=1),1,0)","v":0},{"$f":"IF(AND(AC109=1,AC$410=1),1,0)","v":0},{"$f":"IF(AND(AD109=1,AD$410=1),1,0)","v":0},{"$f":"IF(AND(AE109=1,AE$410=1),1,0)","v":0},{"$f":"IF(AND(AF109=1,AF$410=1),1,0)","v":0},1,{"$f":"IF(AND(AG109=1,AG$410=1),1,0)","v":0},{"$f":"IF(AND(AH109=1,AH$410=1),1,0)","v":0},{"$f":"IF(AND(AI109=1,AI$410=1),1,0)","v":0},{"$f":"IF(AND(AJ109=1,AJ$410=1),1,0)","v":0},{"$f":"IF(AND(AK109=1,AK$410=1),1,0)","v":0},{"$f":"IF(AND(AL109=1,AL$410=1),1,0)","v":0},{"$f":"IF(AND(AM109=1,AM$410=1),1,0)","v":0},{"$f":"IF(AND(AN109=1,AN$410=1),1,0)","v":0},{"$f":"IF(AND(AO109=1,AO$410=1),1,0)","v":0},1,{"$f":"IF(AND(AP109=1,AP$410=1),1,0)","v":0},{"$f":"IF(AND(AQ109=1,AQ$410=1),1,0)","v":1},{"$f":"IF(AND(AR109=1,AR$410=1),1,0)","v":0},{"$f":"IF(AND(AS109=1,AS$410=1),1,0)","v":0},{"$f":"IF(AND(AT109=1,AT$410=1),1,0)","v":0},1,1,101,101,{"$f":"IFERROR(SMALL($CL$9:$CL$408,CK109),\"\")","v":101},{"$f":"IFERROR(INDEX($B$9:$I$408,$CM109,COLUMNS($CN$9:CN109)),\"\")","v":"TA101"},{"$f":"IFERROR(INDEX($B$9:$I$408,$CM109,COLUMNS($CN$9:CO109)),\"\")","v":"Number of cases/participants of capacity building support"},{"$f":"IFERROR(INDEX($B$9:$I$408,$CM109,COLUMNS($CN$9:CP109)),\"\")","v":"-"},{"$f":"IFERROR(INDEX($B$9:$I$408,$CM109,COLUMNS($CN$9:CQ109)),\"\")","v":"Uptake"},{"$f":"IFERROR(INDEX($B$9:$I$408,$CM109,COLUMNS($CN$9:CR109)),\"\")","v":"Workshops; Training events / courses; Specialist research, inc. market / policy / legal / regulatory / technology research briefs; Project studies and plans"},{"$f":"IFERROR(INDEX($B$9:$I$408,$CM109,COLUMNS($CN$9:CS109)),\"\")","v":"-"},{"$f":"IFERROR(INDEX($B$9:$I$408,$CM109,COLUMNS($CN$9:CT109)),\"\")","v":"-"},{"$f":"IFERROR(INDEX($B$9:$I$408,$CM109,COLUMNS($CN$9:CU109)),\"\")","v":"Number"}]
[null,{"$f":"IF(ISBLANK('TA Indicator Bank'!B106),\"\",'TA Indicator Bank'!B106)","v":"TA102"},{"$f":"IF(ISBLANK('TA Indicator Bank'!C106),\"\",'TA Indicator Bank'!C106)","v":"Number of cases where stakeholder report that  government or stakeholder changed behaviour in response to capacity building"},{"$f":"IF(ISBLANK('TA Indicator Bank'!D106),\"\",'TA Indicator Bank'!D106)","v":"-"},{"$f":"IF(ISBLANK('TA Indicator Bank'!E106),\"\",'TA Indicator Bank'!E106)","v":"Output"},{"$f":"IF(ISBLANK('TA Indicator Bank'!F106),\"\",'TA Indicator Bank'!F106)","v":"-"},{"$f":"IF(ISBLANK('TA Indicator Bank'!G106),\"\",'TA Indicator Bank'!G106)","v":"Capacity building: Technical capacity"},{"$f":"IF(ISBLANK('TA Indicator Bank'!H106),\"\",'TA Indicator Bank'!H106)","v":"-"},{"$f":"IF(ISBLANK('TA Indicator Bank'!I106),\"\",'TA Indicator Bank'!I106)","v":"Number"},{"$f":"IF(ISBLANK('TA Indicator Bank'!J106),\"\",'TA Indicator Bank'!J106)","v":0},{"$f":"IF(ISBLANK('TA Indicator Bank'!K106),\"\",'TA Indicator Bank'!K106)","v":0},{"$f":"IF(ISBLANK('TA Indicator Bank'!L106),\"\",'TA Indicator Bank'!L106)","v":0},{"$f":"IF(ISBLANK('TA Indicator Bank'!M106),\"\",'TA Indicator Bank'!M106)","v":0},{"$f":"IF(ISBLANK('TA Indicator Bank'!N106),\"\",'TA Indicator Bank'!N106)","v":0},{"$f":"IF(ISBLANK('TA Indicator Bank'!O106),\"\",'TA Indicator Bank'!O106)","v":0},{"$f":"IF(ISBLANK('TA Indicator Bank'!P106),\"\",'TA Indicator Bank'!P106)","v":0},{"$f":"IF(ISBLANK('TA Indicator Bank'!Q106),\"\",'TA Indicator Bank'!Q106)","v":0},{"$f":"IF(ISBLANK('TA Indicator Bank'!R106),\"\",'TA Indicator Bank'!R106)","v":0},{"$f":"IF(ISBLANK('TA Indicator Bank'!S106),\"\",'TA Indicator Bank'!S106)","v":0},{"$f":"IF(ISBLANK('TA Indicator Bank'!T106),\"\",'TA Indicator Bank'!T106)","v":0},{"$f":"IF(ISBLANK('TA Indicator Bank'!U106),\"\",'TA Indicator Bank'!U106)","v":0},{"$f":"IF(ISBLANK('TA Indicator Bank'!V106),\"\",'TA Indicator Bank'!V106)","v":0},{"$f":"IF(ISBLANK('TA Indicator Bank'!W106),\"\",'TA Indicator Bank'!W106)","v":0},{"$f":"IF(ISBLANK('TA Indicator Bank'!X106),\"\",'TA Indicator Bank'!X106)","v":0},{"$f":"IF(ISBLANK('TA Indicator Bank'!Y106),\"\",'TA Indicator Bank'!Y106)","v":1},{"$f":"IF(ISBLANK('TA Indicator Bank'!Z106),\"\",'TA Indicator Bank'!Z106)","v":0},{"$f":"IF(ISBLANK('TA Indicator Bank'!AA106),\"\",'TA Indicator Bank'!AA106)","v":0},{"$f":"IF(ISBLANK('TA Indicator Bank'!AB106),\"\",'TA Indicator Bank'!AB106)","v":0},{"$f":"IF(ISBLANK('TA Indicator Bank'!AC106),\"\",'TA Indicator Bank'!AC106)","v":0},{"$f":"IF(ISBLANK('TA Indicator Bank'!AD106),\"\",'TA Indicator Bank'!AD106)","v":0},{"$f":"IF(ISBLANK('TA Indicator Bank'!AE106),\"\",'TA Indicator Bank'!AE106)","v":0},{"$f":"IF(ISBLANK('TA Indicator Bank'!AF106),\"\",'TA Indicator Bank'!AF106)","v":0},{"$f":"IF(ISBLANK('TA Indicator Bank'!AG106),\"\",'TA Indicator Bank'!AG106)","v":0},{"$f":"IF(ISBLANK('TA Indicator Bank'!AH106),\"\",'TA Indicator Bank'!AH106)","v":0},{"$f":"IF(ISBLANK('TA Indicator Bank'!AI106),\"\",'TA Indicator Bank'!AI106)","v":0},{"$f":"IF(ISBLANK('TA Indicator Bank'!AJ106),\"\",'TA Indicator Bank'!AJ106)","v":0},{"$f":"IF(ISBLANK('TA Indicator Bank'!AK106),\"\",'TA Indicator Bank'!AK106)","v":0},{"$f":"IF(ISBLANK('TA Indicator Bank'!AL106),\"\",'TA Indicator Bank'!AL106)","v":0},{"$f":"IF(ISBLANK('TA Indicator Bank'!AM106),\"\",'TA Indicator Bank'!AM106)","v":0},{"$f":"IF(ISBLANK('TA Indicator Bank'!AN106),\"\",'TA Indicator Bank'!AN106)","v":0},{"$f":"IF(ISBLANK('TA Indicator Bank'!AO106),\"\",'TA Indicator Bank'!AO106)","v":0},{"$f":"IF(ISBLANK('TA Indicator Bank'!AP106),\"\",'TA Indicator Bank'!AP106)","v":0},{"$f":"IF(ISBLANK('TA Indicator Bank'!AQ106),\"\",'TA Indicator Bank'!AQ106)","v":0},{"$f":"IF(ISBLANK('TA Indicator Bank'!AR106),\"\",'TA Indicator Bank'!AR106)","v":1},{"$f":"IF(ISBLANK('TA Indicator Bank'!AS106),\"\",'TA Indicator Bank'!AS106)","v":0},{"$f":"IF(ISBLANK('TA Indicator Bank'!AT106),\"\",'TA Indicator Bank'!AT106)","v":0},{"$f":"IF(AND(J110=1,J$410=1),1,0)","v":0},{"$f":"IF(AND(K110=1,K$410=1),1,0)","v":0},{"$f":"IF(AND(L110=1,L$410=1),1,0)","v":0},{"$f":"IF(AND(M110=1,M$410=1),1,0)","v":0},{"$f":"IF(AND(N110=1,N$410=1),1,0)","v":0},{"$f":"IF(AND(O110=1,O$410=1),1,0)","v":0},{"$f":"IF(AND(P110=1,P$410=1),1,0)","v":0},{"$f":"IF(AND(Q110=1,Q$410=1),1,0)","v":0},{"$f":"IF(AND(R110=1,R$410=1),1,0)","v":0},{"$f":"IF(AND(S110=1,S$410=1),1,0)","v":0},{"$f":"IF(AND(T110=1,T$410=1),1,0)","v":0},{"$f":"IF(AND(U110=1,U$410=1),1,0)","v":0},{"$f":"IF(AND(V110=1,V$410=1),1,0)","v":0},{"$f":"IF(AND(W110=1,W$410=1),1,0)","v":0},1,{"$f":"IF(AND(X110=1,X$410=1),1,0)","v":0},{"$f":"IF(AND(Y110=1,Y$410=1),1,0)","v":1},{"$f":"IF(AND(Z110=1,Z$410=1),1,0)","v":0},{"$f":"IF(AND(AA110=1,AA$410=1),1,0)","v":0},{"$f":"IF(AND(AB110=1,AB$410=1),1,0)","v":0},{"$f":"IF(AND(AC110=1,AC$410=1),1,0)","v":0},{"$f":"IF(AND(AD110=1,AD$410=1),1,0)","v":0},{"$f":"IF(AND(AE110=1,AE$410=1),1,0)","v":0},{"$f":"IF(AND(AF110=1,AF$410=1),1,0)","v":0},1,{"$f":"IF(AND(AG110=1,AG$410=1),1,0)","v":0},{"$f":"IF(AND(AH110=1,AH$410=1),1,0)","v":0},{"$f":"IF(AND(AI110=1,AI$410=1),1,0)","v":0},{"$f":"IF(AND(AJ110=1,AJ$410=1),1,0)","v":0},{"$f":"IF(AND(AK110=1,AK$410=1),1,0)","v":0},{"$f":"IF(AND(AL110=1,AL$410=1),1,0)","v":0},{"$f":"IF(AND(AM110=1,AM$410=1),1,0)","v":0},{"$f":"IF(AND(AN110=1,AN$410=1),1,0)","v":0},{"$f":"IF(AND(AO110=1,AO$410=1),1,0)","v":0},1,{"$f":"IF(AND(AP110=1,AP$410=1),1,0)","v":0},{"$f":"IF(AND(AQ110=1,AQ$410=1),1,0)","v":0},{"$f":"IF(AND(AR110=1,AR$410=1),1,0)","v":1},{"$f":"IF(AND(AS110=1,AS$410=1),1,0)","v":0},{"$f":"IF(AND(AT110=1,AT$410=1),1,0)","v":0},1,1,102,102,{"$f":"IFERROR(SMALL($CL$9:$CL$408,CK110),\"\")","v":102},{"$f":"IFERROR(INDEX($B$9:$I$408,$CM110,COLUMNS($CN$9:CN110)),\"\")","v":"TA102"},{"$f":"IFERROR(INDEX($B$9:$I$408,$CM110,COLUMNS($CN$9:CO110)),\"\")","v":"Number of cases where stakeholder report that  government or stakeholder changed behaviour in response to capacity building"},{"$f":"IFERROR(INDEX($B$9:$I$408,$CM110,COLUMNS($CN$9:CP110)),\"\")","v":"-"},{"$f":"IFERROR(INDEX($B$9:$I$408,$CM110,COLUMNS($CN$9:CQ110)),\"\")","v":"Output"},{"$f":"IFERROR(INDEX($B$9:$I$408,$CM110,COLUMNS($CN$9:CR110)),\"\")","v":"-"},{"$f":"IFERROR(INDEX($B$9:$I$408,$CM110,COLUMNS($CN$9:CS110)),\"\")","v":"Capacity building: Technical capacity"},{"$f":"IFERROR(INDEX($B$9:$I$408,$CM110,COLUMNS($CN$9:CT110)),\"\")","v":"-"},{"$f":"IFERROR(INDEX($B$9:$I$408,$CM110,COLUMNS($CN$9:CU110)),\"\")","v":"Number"}]
[null,{"$f":"IF(ISBLANK('TA Indicator Bank'!B107),\"\",'TA Indicator Bank'!B107)","v":"TA103"},{"$f":"IF(ISBLANK('TA Indicator Bank'!C107),\"\",'TA Indicator Bank'!C107)","v":"Share of global emissions that is covered by capacity building programme"},{"$f":"IF(ISBLANK('TA Indicator Bank'!D107),\"\",'TA Indicator Bank'!D107)","v":"-"},{"$f":"IF(ISBLANK('TA Indicator Bank'!E107),\"\",'TA Indicator Bank'!E107)","v":"Uptake"},{"$f":"IF(ISBLANK('TA Indicator Bank'!F107),\"\",'TA Indicator Bank'!F107)","v":"Project studies and plans"},{"$f":"IF(ISBLANK('TA Indicator Bank'!G107),\"\",'TA Indicator Bank'!G107)","v":"-"},{"$f":"IF(ISBLANK('TA Indicator Bank'!H107),\"\",'TA Indicator Bank'!H107)","v":"-"},{"$f":"IF(ISBLANK('TA Indicator Bank'!I107),\"\",'TA Indicator Bank'!I107)","v":"Percentage"},{"$f":"IF(ISBLANK('TA Indicator Bank'!J107),\"\",'TA Indicator Bank'!J107)","v":0},{"$f":"IF(ISBLANK('TA Indicator Bank'!K107),\"\",'TA Indicator Bank'!K107)","v":0},{"$f":"IF(ISBLANK('TA Indicator Bank'!L107),\"\",'TA Indicator Bank'!L107)","v":0},{"$f":"IF(ISBLANK('TA Indicator Bank'!M107),\"\",'TA Indicator Bank'!M107)","v":0},{"$f":"IF(ISBLANK('TA Indicator Bank'!N107),\"\",'TA Indicator Bank'!N107)","v":0},{"$f":"IF(ISBLANK('TA Indicator Bank'!O107),\"\",'TA Indicator Bank'!O107)","v":0},{"$f":"IF(ISBLANK('TA Indicator Bank'!P107),\"\",'TA Indicator Bank'!P107)","v":0},{"$f":"IF(ISBLANK('TA Indicator Bank'!Q107),\"\",'TA Indicator Bank'!Q107)","v":0},{"$f":"IF(ISBLANK('TA Indicator Bank'!R107),\"\",'TA Indicator Bank'!R107)","v":0},{"$f":"IF(ISBLANK('TA Indicator Bank'!S107),\"\",'TA Indicator Bank'!S107)","v":0},{"$f":"IF(ISBLANK('TA Indicator Bank'!T107),\"\",'TA Indicator Bank'!T107)","v":0},{"$f":"IF(ISBLANK('TA Indicator Bank'!U107),\"\",'TA Indicator Bank'!U107)","v":1},{"$f":"IF(ISBLANK('TA Indicator Bank'!V107),\"\",'TA Indicator Bank'!V107)","v":0},{"$f":"IF(ISBLANK('TA Indicator Bank'!W107),\"\",'TA Indicator Bank'!W107)","v":0},{"$f":"IF(ISBLANK('TA Indicator Bank'!X107),\"\",'TA Indicator Bank'!X107)","v":0},{"$f":"IF(ISBLANK('TA Indicator Bank'!Y107),\"\",'TA Indicator Bank'!Y107)","v":0},{"$f":"IF(ISBLANK('TA Indicator Bank'!Z107),\"\",'TA Indicator Bank'!Z107)","v":0},{"$f":"IF(ISBLANK('TA Indicator Bank'!AA107),\"\",'TA Indicator Bank'!AA107)","v":0},{"$f":"IF(ISBLANK('TA Indicator Bank'!AB107),\"\",'TA Indicator Bank'!AB107)","v":0},{"$f":"IF(ISBLANK('TA Indicator Bank'!AC107),\"\",'TA Indicator Bank'!AC107)","v":0},{"$f":"IF(ISBLANK('TA Indicator Bank'!AD107),\"\",'TA Indicator Bank'!AD107)","v":0},{"$f":"IF(ISBLANK('TA Indicator Bank'!AE107),\"\",'TA Indicator Bank'!AE107)","v":0},{"$f":"IF(ISBLANK('TA Indicator Bank'!AF107),\"\",'TA Indicator Bank'!AF107)","v":0},{"$f":"IF(ISBLANK('TA Indicator Bank'!AG107),\"\",'TA Indicator Bank'!AG107)","v":0},{"$f":"IF(ISBLANK('TA Indicator Bank'!AH107),\"\",'TA Indicator Bank'!AH107)","v":0},{"$f":"IF(ISBLANK('TA Indicator Bank'!AI107),\"\",'TA Indicator Bank'!AI107)","v":0},{"$f":"IF(ISBLANK('TA Indicator Bank'!AJ107),\"\",'TA Indicator Bank'!AJ107)","v":0},{"$f":"IF(ISBLANK('TA Indicator Bank'!AK107),\"\",'TA Indicator Bank'!AK107)","v":0},{"$f":"IF(ISBLANK('TA Indicator Bank'!AL107),\"\",'TA Indicator Bank'!AL107)","v":0},{"$f":"IF(ISBLANK('TA Indicator Bank'!AM107),\"\",'TA Indicator Bank'!AM107)","v":0},{"$f":"IF(ISBLANK('TA Indicator Bank'!AN107),\"\",'TA Indicator Bank'!AN107)","v":0},{"$f":"IF(ISBLANK('TA Indicator Bank'!AO107),\"\",'TA Indicator Bank'!AO107)","v":0},{"$f":"IF(ISBLANK('TA Indicator Bank'!AP107),\"\",'TA Indicator Bank'!AP107)","v":0},{"$f":"IF(ISBLANK('TA Indicator Bank'!AQ107),\"\",'TA Indicator Bank'!AQ107)","v":1},{"$f":"IF(ISBLANK('TA Indicator Bank'!AR107),\"\",'TA Indicator Bank'!AR107)","v":0},{"$f":"IF(ISBLANK('TA Indicator Bank'!AS107),\"\",'TA Indicator Bank'!AS107)","v":0},{"$f":"IF(ISBLANK('TA Indicator Bank'!AT107),\"\",'TA Indicator Bank'!AT107)","v":0},{"$f":"IF(AND(J111=1,J$410=1),1,0)","v":0},{"$f":"IF(AND(K111=1,K$410=1),1,0)","v":0},{"$f":"IF(AND(L111=1,L$410=1),1,0)","v":0},{"$f":"IF(AND(M111=1,M$410=1),1,0)","v":0},{"$f":"IF(AND(N111=1,N$410=1),1,0)","v":0},{"$f":"IF(AND(O111=1,O$410=1),1,0)","v":0},{"$f":"IF(AND(P111=1,P$410=1),1,0)","v":0},{"$f":"IF(AND(Q111=1,Q$410=1),1,0)","v":0},{"$f":"IF(AND(R111=1,R$410=1),1,0)","v":0},{"$f":"IF(AND(S111=1,S$410=1),1,0)","v":0},{"$f":"IF(AND(T111=1,T$410=1),1,0)","v":0},{"$f":"IF(AND(U111=1,U$410=1),1,0)","v":1},{"$f":"IF(AND(V111=1,V$410=1),1,0)","v":0},{"$f":"IF(AND(W111=1,W$410=1),1,0)","v":0},1,{"$f":"IF(AND(X111=1,X$410=1),1,0)","v":0},{"$f":"IF(AND(Y111=1,Y$410=1),1,0)","v":0},{"$f":"IF(AND(Z111=1,Z$410=1),1,0)","v":0},{"$f":"IF(AND(AA111=1,AA$410=1),1,0)","v":0},{"$f":"IF(AND(AB111=1,AB$410=1),1,0)","v":0},{"$f":"IF(AND(AC111=1,AC$410=1),1,0)","v":0},{"$f":"IF(AND(AD111=1,AD$410=1),1,0)","v":0},{"$f":"IF(AND(AE111=1,AE$410=1),1,0)","v":0},{"$f":"IF(AND(AF111=1,AF$410=1),1,0)","v":0},1,{"$f":"IF(AND(AG111=1,AG$410=1),1,0)","v":0},{"$f":"IF(AND(AH111=1,AH$410=1),1,0)","v":0},{"$f":"IF(AND(AI111=1,AI$410=1),1,0)","v":0},{"$f":"IF(AND(AJ111=1,AJ$410=1),1,0)","v":0},{"$f":"IF(AND(AK111=1,AK$410=1),1,0)","v":0},{"$f":"IF(AND(AL111=1,AL$410=1),1,0)","v":0},{"$f":"IF(AND(AM111=1,AM$410=1),1,0)","v":0},{"$f":"IF(AND(AN111=1,AN$410=1),1,0)","v":0},{"$f":"IF(AND(AO111=1,AO$410=1),1,0)","v":0},1,{"$f":"IF(AND(AP111=1,AP$410=1),1,0)","v":0},{"$f":"IF(AND(AQ111=1,AQ$410=1),1,0)","v":1},{"$f":"IF(AND(AR111=1,AR$410=1),1,0)","v":0},{"$f":"IF(AND(AS111=1,AS$410=1),1,0)","v":0},{"$f":"IF(AND(AT111=1,AT$410=1),1,0)","v":0},1,1,103,103,{"$f":"IFERROR(SMALL($CL$9:$CL$408,CK111),\"\")","v":103},{"$f":"IFERROR(INDEX($B$9:$I$408,$CM111,COLUMNS($CN$9:CN111)),\"\")","v":"TA103"},{"$f":"IFERROR(INDEX($B$9:$I$408,$CM111,COLUMNS($CN$9:CO111)),\"\")","v":"Share of global emissions that is covered by capacity building programme"},{"$f":"IFERROR(INDEX($B$9:$I$408,$CM111,COLUMNS($CN$9:CP111)),\"\")","v":"-"},{"$f":"IFERROR(INDEX($B$9:$I$408,$CM111,COLUMNS($CN$9:CQ111)),\"\")","v":"Uptake"},{"$f":"IFERROR(INDEX($B$9:$I$408,$CM111,COLUMNS($CN$9:CR111)),\"\")","v":"Project studies and plans"},{"$f":"IFERROR(INDEX($B$9:$I$408,$CM111,COLUMNS($CN$9:CS111)),\"\")","v":"-"},{"$f":"IFERROR(INDEX($B$9:$I$408,$CM111,COLUMNS($CN$9:CT111)),\"\")","v":"-"},{"$f":"IFERROR(INDEX($B$9:$I$408,$CM111,COLUMNS($CN$9:CU111)),\"\")","v":"Percentage"}]
[null,{"$f":"IF(ISBLANK('TA Indicator Bank'!B108),\"\",'TA Indicator Bank'!B108)","v":"TA104"},{"$f":"IF(ISBLANK('TA Indicator Bank'!C108),\"\",'TA Indicator Bank'!C108)","v":"Programme recipients complete technical analysis"},{"$f":"IF(ISBLANK('TA Indicator Bank'!D108),\"\",'TA Indicator Bank'!D108)","v":"-"},{"$f":"IF(ISBLANK('TA Indicator Bank'!E108),\"\",'TA Indicator Bank'!E108)","v":"Output"},{"$f":"IF(ISBLANK('TA Indicator Bank'!F108),\"\",'TA Indicator Bank'!F108)","v":"-"},{"$f":"IF(ISBLANK('TA Indicator Bank'!G108),\"\",'TA Indicator Bank'!G108)","v":"Capacity building: Technical capacity"},{"$f":"IF(ISBLANK('TA Indicator Bank'!H108),\"\",'TA Indicator Bank'!H108)","v":"-"},{"$f":"IF(ISBLANK('TA Indicator Bank'!I108),\"\",'TA Indicator Bank'!I108)","v":"Yes/No"},{"$f":"IF(ISBLANK('TA Indicator Bank'!J108),\"\",'TA Indicator Bank'!J108)","v":0},{"$f":"IF(ISBLANK('TA Indicator Bank'!K108),\"\",'TA Indicator Bank'!K108)","v":0},{"$f":"IF(ISBLANK('TA Indicator Bank'!L108),\"\",'TA Indicator Bank'!L108)","v":0},{"$f":"IF(ISBLANK('TA Indicator Bank'!M108),\"\",'TA Indicator Bank'!M108)","v":0},{"$f":"IF(ISBLANK('TA Indicator Bank'!N108),\"\",'TA Indicator Bank'!N108)","v":0},{"$f":"IF(ISBLANK('TA Indicator Bank'!O108),\"\",'TA Indicator Bank'!O108)","v":0},{"$f":"IF(ISBLANK('TA Indicator Bank'!P108),\"\",'TA Indicator Bank'!P108)","v":0},{"$f":"IF(ISBLANK('TA Indicator Bank'!Q108),\"\",'TA Indicator Bank'!Q108)","v":0},{"$f":"IF(ISBLANK('TA Indicator Bank'!R108),\"\",'TA Indicator Bank'!R108)","v":0},{"$f":"IF(ISBLANK('TA Indicator Bank'!S108),\"\",'TA Indicator Bank'!S108)","v":0},{"$f":"IF(ISBLANK('TA Indicator Bank'!T108),\"\",'TA Indicator Bank'!T108)","v":0},{"$f":"IF(ISBLANK('TA Indicator Bank'!U108),\"\",'TA Indicator Bank'!U108)","v":0},{"$f":"IF(ISBLANK('TA Indicator Bank'!V108),\"\",'TA Indicator Bank'!V108)","v":0},{"$f":"IF(ISBLANK('TA Indicator Bank'!W108),\"\",'TA Indicator Bank'!W108)","v":0},{"$f":"IF(ISBLANK('TA Indicator Bank'!X108),\"\",'TA Indicator Bank'!X108)","v":0},{"$f":"IF(ISBLANK('TA Indicator Bank'!Y108),\"\",'TA Indicator Bank'!Y108)","v":1},{"$f":"IF(ISBLANK('TA Indicator Bank'!Z108),\"\",'TA Indicator Bank'!Z108)","v":0},{"$f":"IF(ISBLANK('TA Indicator Bank'!AA108),\"\",'TA Indicator Bank'!AA108)","v":0},{"$f":"IF(ISBLANK('TA Indicator Bank'!AB108),\"\",'TA Indicator Bank'!AB108)","v":0},{"$f":"IF(ISBLANK('TA Indicator Bank'!AC108),\"\",'TA Indicator Bank'!AC108)","v":0},{"$f":"IF(ISBLANK('TA Indicator Bank'!AD108),\"\",'TA Indicator Bank'!AD108)","v":0},{"$f":"IF(ISBLANK('TA Indicator Bank'!AE108),\"\",'TA Indicator Bank'!AE108)","v":0},{"$f":"IF(ISBLANK('TA Indicator Bank'!AF108),\"\",'TA Indicator Bank'!AF108)","v":0},{"$f":"IF(ISBLANK('TA Indicator Bank'!AG108),\"\",'TA Indicator Bank'!AG108)","v":0},{"$f":"IF(ISBLANK('TA Indicator Bank'!AH108),\"\",'TA Indicator Bank'!AH108)","v":0},{"$f":"IF(ISBLANK('TA Indicator Bank'!AI108),\"\",'TA Indicator Bank'!AI108)","v":0},{"$f":"IF(ISBLANK('TA Indicator Bank'!AJ108),\"\",'TA Indicator Bank'!AJ108)","v":0},{"$f":"IF(ISBLANK('TA Indicator Bank'!AK108),\"\",'TA Indicator Bank'!AK108)","v":0},{"$f":"IF(ISBLANK('TA Indicator Bank'!AL108),\"\",'TA Indicator Bank'!AL108)","v":0},{"$f":"IF(ISBLANK('TA Indicator Bank'!AM108),\"\",'TA Indicator Bank'!AM108)","v":0},{"$f":"IF(ISBLANK('TA Indicator Bank'!AN108),\"\",'TA Indicator Bank'!AN108)","v":0},{"$f":"IF(ISBLANK('TA Indicator Bank'!AO108),\"\",'TA Indicator Bank'!AO108)","v":0},{"$f":"IF(ISBLANK('TA Indicator Bank'!AP108),\"\",'TA Indicator Bank'!AP108)","v":0},{"$f":"IF(ISBLANK('TA Indicator Bank'!AQ108),\"\",'TA Indicator Bank'!AQ108)","v":0},{"$f":"IF(ISBLANK('TA Indicator Bank'!AR108),\"\",'TA Indicator Bank'!AR108)","v":1},{"$f":"IF(ISBLANK('TA Indicator Bank'!AS108),\"\",'TA Indicator Bank'!AS108)","v":0},{"$f":"IF(ISBLANK('TA Indicator Bank'!AT108),\"\",'TA Indicator Bank'!AT108)","v":0},{"$f":"IF(AND(J112=1,J$410=1),1,0)","v":0},{"$f":"IF(AND(K112=1,K$410=1),1,0)","v":0},{"$f":"IF(AND(L112=1,L$410=1),1,0)","v":0},{"$f":"IF(AND(M112=1,M$410=1),1,0)","v":0},{"$f":"IF(AND(N112=1,N$410=1),1,0)","v":0},{"$f":"IF(AND(O112=1,O$410=1),1,0)","v":0},{"$f":"IF(AND(P112=1,P$410=1),1,0)","v":0},{"$f":"IF(AND(Q112=1,Q$410=1),1,0)","v":0},{"$f":"IF(AND(R112=1,R$410=1),1,0)","v":0},{"$f":"IF(AND(S112=1,S$410=1),1,0)","v":0},{"$f":"IF(AND(T112=1,T$410=1),1,0)","v":0},{"$f":"IF(AND(U112=1,U$410=1),1,0)","v":0},{"$f":"IF(AND(V112=1,V$410=1),1,0)","v":0},{"$f":"IF(AND(W112=1,W$410=1),1,0)","v":0},1,{"$f":"IF(AND(X112=1,X$410=1),1,0)","v":0},{"$f":"IF(AND(Y112=1,Y$410=1),1,0)","v":1},{"$f":"IF(AND(Z112=1,Z$410=1),1,0)","v":0},{"$f":"IF(AND(AA112=1,AA$410=1),1,0)","v":0},{"$f":"IF(AND(AB112=1,AB$410=1),1,0)","v":0},{"$f":"IF(AND(AC112=1,AC$410=1),1,0)","v":0},{"$f":"IF(AND(AD112=1,AD$410=1),1,0)","v":0},{"$f":"IF(AND(AE112=1,AE$410=1),1,0)","v":0},{"$f":"IF(AND(AF112=1,AF$410=1),1,0)","v":0},1,{"$f":"IF(AND(AG112=1,AG$410=1),1,0)","v":0},{"$f":"IF(AND(AH112=1,AH$410=1),1,0)","v":0},{"$f":"IF(AND(AI112=1,AI$410=1),1,0)","v":0},{"$f":"IF(AND(AJ112=1,AJ$410=1),1,0)","v":0},{"$f":"IF(AND(AK112=1,AK$410=1),1,0)","v":0},{"$f":"IF(AND(AL112=1,AL$410=1),1,0)","v":0},{"$f":"IF(AND(AM112=1,AM$410=1),1,0)","v":0},{"$f":"IF(AND(AN112=1,AN$410=1),1,0)","v":0},{"$f":"IF(AND(AO112=1,AO$410=1),1,0)","v":0},1,{"$f":"IF(AND(AP112=1,AP$410=1),1,0)","v":0},{"$f":"IF(AND(AQ112=1,AQ$410=1),1,0)","v":0},{"$f":"IF(AND(AR112=1,AR$410=1),1,0)","v":1},{"$f":"IF(AND(AS112=1,AS$410=1),1,0)","v":0},{"$f":"IF(AND(AT112=1,AT$410=1),1,0)","v":0},1,1,104,104,{"$f":"IFERROR(SMALL($CL$9:$CL$408,CK112),\"\")","v":104},{"$f":"IFERROR(INDEX($B$9:$I$408,$CM112,COLUMNS($CN$9:CN112)),\"\")","v":"TA104"},{"$f":"IFERROR(INDEX($B$9:$I$408,$CM112,COLUMNS($CN$9:CO112)),\"\")","v":"Programme recipients complete technical analysis"},{"$f":"IFERROR(INDEX($B$9:$I$408,$CM112,COLUMNS($CN$9:CP112)),\"\")","v":"-"},{"$f":"IFERROR(INDEX($B$9:$I$408,$CM112,COLUMNS($CN$9:CQ112)),\"\")","v":"Output"},{"$f":"IFERROR(INDEX($B$9:$I$408,$CM112,COLUMNS($CN$9:CR112)),\"\")","v":"-"},{"$f":"IFERROR(INDEX($B$9:$I$408,$CM112,COLUMNS($CN$9:CS112)),\"\")","v":"Capacity building: Technical capacity"},{"$f":"IFERROR(INDEX($B$9:$I$408,$CM112,COLUMNS($CN$9:CT112)),\"\")","v":"-"},{"$f":"IFERROR(INDEX($B$9:$I$408,$CM112,COLUMNS($CN$9:CU112)),\"\")","v":"Yes/No"}]
[null,{"$f":"IF(ISBLANK('TA Indicator Bank'!B109),\"\",'TA Indicator Bank'!B109)","v":"TA105"},{"$f":"IF(ISBLANK('TA Indicator Bank'!C109),\"\",'TA Indicator Bank'!C109)","v":"Number of cases of capacity building support"},{"$f":"IF(ISBLANK('TA Indicator Bank'!D109),\"\",'TA Indicator Bank'!D109)","v":"-"},{"$f":"IF(ISBLANK('TA Indicator Bank'!E109),\"\",'TA Indicator Bank'!E109)","v":"Activity"},{"$f":"IF(ISBLANK('TA Indicator Bank'!F109),\"\",'TA Indicator Bank'!F109)","v":"-"},{"$f":"IF(ISBLANK('TA Indicator Bank'!G109),\"\",'TA Indicator Bank'!G109)","v":"-"},{"$f":"IF(ISBLANK('TA Indicator Bank'!H109),\"\",'TA Indicator Bank'!H109)","v":"-"},{"$f":"IF(ISBLANK('TA Indicator Bank'!I109),\"\",'TA Indicator Bank'!I109)","v":"Number"},{"$f":"IF(ISBLANK('TA Indicator Bank'!J109),\"\",'TA Indicator Bank'!J109)","v":0},{"$f":"IF(ISBLANK('TA Indicator Bank'!K109),\"\",'TA Indicator Bank'!K109)","v":0},{"$f":"IF(ISBLANK('TA Indicator Bank'!L109),\"\",'TA Indicator Bank'!L109)","v":0},{"$f":"IF(ISBLANK('TA Indicator Bank'!M109),\"\",'TA Indicator Bank'!M109)","v":0},{"$f":"IF(ISBLANK('TA Indicator Bank'!N109),\"\",'TA Indicator Bank'!N109)","v":0},{"$f":"IF(ISBLANK('TA Indicator Bank'!O109),\"\",'TA Indicator Bank'!O109)","v":0},{"$f":"IF(ISBLANK('TA Indicator Bank'!P109),\"\",'TA Indicator Bank'!P109)","v":0},{"$f":"IF(ISBLANK('TA Indicator Bank'!Q109),\"\",'TA Indicator Bank'!Q109)","v":0},{"$f":"IF(ISBLANK('TA Indicator Bank'!R109),\"\",'TA Indicator Bank'!R109)","v":0},{"$f":"IF(ISBLANK('TA Indicator Bank'!S109),\"\",'TA Indicator Bank'!S109)","v":0},{"$f":"IF(ISBLANK('TA Indicator Bank'!T109),\"\",'TA Indicator Bank'!T109)","v":0},{"$f":"IF(ISBLANK('TA Indicator Bank'!U109),\"\",'TA Indicator Bank'!U109)","v":0},{"$f":"IF(ISBLANK('TA Indicator Bank'!V109),\"\",'TA Indicator Bank'!V109)","v":0},{"$f":"IF(ISBLANK('TA Indicator Bank'!W109),\"\",'TA Indicator Bank'!W109)","v":0},{"$f":"IF(ISBLANK('TA Indicator Bank'!X109),\"\",'TA Indicator Bank'!X109)","v":0},{"$f":"IF(ISBLANK('TA Indicator Bank'!Y109),\"\",'TA Indicator Bank'!Y109)","v":0},{"$f":"IF(ISBLANK('TA Indicator Bank'!Z109),\"\",'TA Indicator Bank'!Z109)","v":0},{"$f":"IF(ISBLANK('TA Indicator Bank'!AA109),\"\",'TA Indicator Bank'!AA109)","v":0},{"$f":"IF(ISBLANK('TA Indicator Bank'!AB109),\"\",'TA Indicator Bank'!AB109)","v":0},{"$f":"IF(ISBLANK('TA Indicator Bank'!AC109),\"\",'TA Indicator Bank'!AC109)","v":0},{"$f":"IF(ISBLANK('TA Indicator Bank'!AD109),\"\",'TA Indicator Bank'!AD109)","v":0},{"$f":"IF(ISBLANK('TA Indicator Bank'!AE109),\"\",'TA Indicator Bank'!AE109)","v":0},{"$f":"IF(ISBLANK('TA Indicator Bank'!AF109),\"\",'TA Indicator Bank'!AF109)","v":0},{"$f":"IF(ISBLANK('TA Indicator Bank'!AG109),\"\",'TA Indicator Bank'!AG109)","v":0},{"$f":"IF(ISBLANK('TA Indicator Bank'!AH109),\"\",'TA Indicator Bank'!AH109)","v":0},{"$f":"IF(ISBLANK('TA Indicator Bank'!AI109),\"\",'TA Indicator Bank'!AI109)","v":0},{"$f":"IF(ISBLANK('TA Indicator Bank'!AJ109),\"\",'TA Indicator Bank'!AJ109)","v":0},{"$f":"IF(ISBLANK('TA Indicator Bank'!AK109),\"\",'TA Indicator Bank'!AK109)","v":0},{"$f":"IF(ISBLANK('TA Indicator Bank'!AL109),\"\",'TA Indicator Bank'!AL109)","v":0},{"$f":"IF(ISBLANK('TA Indicator Bank'!AM109),\"\",'TA Indicator Bank'!AM109)","v":0},{"$f":"IF(ISBLANK('TA Indicator Bank'!AN109),\"\",'TA Indicator Bank'!AN109)","v":0},{"$f":"IF(ISBLANK('TA Indicator Bank'!AO109),\"\",'TA Indicator Bank'!AO109)","v":0},{"$f":"IF(ISBLANK('TA Indicator Bank'!AP109),\"\",'TA Indicator Bank'!AP109)","v":1},{"$f":"IF(ISBLANK('TA Indicator Bank'!AQ109),\"\",'TA Indicator Bank'!AQ109)","v":0},{"$f":"IF(ISBLANK('TA Indicator Bank'!AR109),\"\",'TA Indicator Bank'!AR109)","v":0},{"$f":"IF(ISBLANK('TA Indicator Bank'!AS109),\"\",'TA Indicator Bank'!AS109)","v":0},{"$f":"IF(ISBLANK('TA Indicator Bank'!AT109),\"\",'TA Indicator Bank'!AT109)","v":0},{"$f":"IF(AND(J113=1,J$410=1),1,0)","v":0},{"$f":"IF(AND(K113=1,K$410=1),1,0)","v":0},{"$f":"IF(AND(L113=1,L$410=1),1,0)","v":0},{"$f":"IF(AND(M113=1,M$410=1),1,0)","v":0},{"$f":"IF(AND(N113=1,N$410=1),1,0)","v":0},{"$f":"IF(AND(O113=1,O$410=1),1,0)","v":0},{"$f":"IF(AND(P113=1,P$410=1),1,0)","v":0},{"$f":"IF(AND(Q113=1,Q$410=1),1,0)","v":0},{"$f":"IF(AND(R113=1,R$410=1),1,0)","v":0},{"$f":"IF(AND(S113=1,S$410=1),1,0)","v":0},{"$f":"IF(AND(T113=1,T$410=1),1,0)","v":0},{"$f":"IF(AND(U113=1,U$410=1),1,0)","v":0},{"$f":"IF(AND(V113=1,V$410=1),1,0)","v":0},{"$f":"IF(AND(W113=1,W$410=1),1,0)","v":0},1,{"$f":"IF(AND(X113=1,X$410=1),1,0)","v":0},{"$f":"IF(AND(Y113=1,Y$410=1),1,0)","v":0},{"$f":"IF(AND(Z113=1,Z$410=1),1,0)","v":0},{"$f":"IF(AND(AA113=1,AA$410=1),1,0)","v":0},{"$f":"IF(AND(AB113=1,AB$410=1),1,0)","v":0},{"$f":"IF(AND(AC113=1,AC$410=1),1,0)","v":0},{"$f":"IF(AND(AD113=1,AD$410=1),1,0)","v":0},{"$f":"IF(AND(AE113=1,AE$410=1),1,0)","v":0},{"$f":"IF(AND(AF113=1,AF$410=1),1,0)","v":0},1,{"$f":"IF(AND(AG113=1,AG$410=1),1,0)","v":0},{"$f":"IF(AND(AH113=1,AH$410=1),1,0)","v":0},{"$f":"IF(AND(AI113=1,AI$410=1),1,0)","v":0},{"$f":"IF(AND(AJ113=1,AJ$410=1),1,0)","v":0},{"$f":"IF(AND(AK113=1,AK$410=1),1,0)","v":0},{"$f":"IF(AND(AL113=1,AL$410=1),1,0)","v":0},{"$f":"IF(AND(AM113=1,AM$410=1),1,0)","v":0},{"$f":"IF(AND(AN113=1,AN$410=1),1,0)","v":0},{"$f":"IF(AND(AO113=1,AO$410=1),1,0)","v":0},1,{"$f":"IF(AND(AP113=1,AP$410=1),1,0)","v":1},{"$f":"IF(AND(AQ113=1,AQ$410=1),1,0)","v":0},{"$f":"IF(AND(AR113=1,AR$410=1),1,0)","v":0},{"$f":"IF(AND(AS113=1,AS$410=1),1,0)","v":0},{"$f":"IF(AND(AT113=1,AT$410=1),1,0)","v":0},1,1,105,105,{"$f":"IFERROR(SMALL($CL$9:$CL$408,CK113),\"\")","v":105},{"$f":"IFERROR(INDEX($B$9:$I$408,$CM113,COLUMNS($CN$9:CN113)),\"\")","v":"TA105"},{"$f":"IFERROR(INDEX($B$9:$I$408,$CM113,COLUMNS($CN$9:CO113)),\"\")","v":"Number of cases of capacity building support"},{"$f":"IFERROR(INDEX($B$9:$I$408,$CM113,COLUMNS($CN$9:CP113)),\"\")","v":"-"},{"$f":"IFERROR(INDEX($B$9:$I$408,$CM113,COLUMNS($CN$9:CQ113)),\"\")","v":"Activity"},{"$f":"IFERROR(INDEX($B$9:$I$408,$CM113,COLUMNS($CN$9:CR113)),\"\")","v":"-"},{"$f":"IFERROR(INDEX($B$9:$I$408,$CM113,COLUMNS($CN$9:CS113)),\"\")","v":"-"},{"$f":"IFERROR(INDEX($B$9:$I$408,$CM113,COLUMNS($CN$9:CT113)),\"\")","v":"-"},{"$f":"IFERROR(INDEX($B$9:$I$408,$CM113,COLUMNS($CN$9:CU113)),\"\")","v":"Number"}]
[null,{"$f":"IF(ISBLANK('TA Indicator Bank'!B110),\"\",'TA Indicator Bank'!B110)","v":"TA106"},{"$f":"IF(ISBLANK('TA Indicator Bank'!C110),\"\",'TA Indicator Bank'!C110)","v":"Number of (active) participants in knowledge exchange"},{"$f":"IF(ISBLANK('TA Indicator Bank'!D110),\"\",'TA Indicator Bank'!D110)","v":"-"},{"$f":"IF(ISBLANK('TA Indicator Bank'!E110),\"\",'TA Indicator Bank'!E110)","v":"Uptake"},{"$f":"IF(ISBLANK('TA Indicator Bank'!F110),\"\",'TA Indicator Bank'!F110)","v":"Workshops; Training events / courses"},{"$f":"IF(ISBLANK('TA Indicator Bank'!G110),\"\",'TA Indicator Bank'!G110)","v":"-"},{"$f":"IF(ISBLANK('TA Indicator Bank'!H110),\"\",'TA Indicator Bank'!H110)","v":"-"},{"$f":"IF(ISBLANK('TA Indicator Bank'!I110),\"\",'TA Indicator Bank'!I110)","v":"Number"},{"$f":"IF(ISBLANK('TA Indicator Bank'!J110),\"\",'TA Indicator Bank'!J110)","v":1},{"$f":"IF(ISBLANK('TA Indicator Bank'!K110),\"\",'TA Indicator Bank'!K110)","v":1},{"$f":"IF(ISBLANK('TA Indicator Bank'!L110),\"\",'TA Indicator Bank'!L110)","v":0},{"$f":"IF(ISBLANK('TA Indicator Bank'!M110),\"\",'TA Indicator Bank'!M110)","v":0},{"$f":"IF(ISBLANK('TA Indicator Bank'!N110),\"\",'TA Indicator Bank'!N110)","v":0},{"$f":"IF(ISBLANK('TA Indicator Bank'!O110),\"\",'TA Indicator Bank'!O110)","v":0},{"$f":"IF(ISBLANK('TA Indicator Bank'!P110),\"\",'TA Indicator Bank'!P110)","v":0},{"$f":"IF(ISBLANK('TA Indicator Bank'!Q110),\"\",'TA Indicator Bank'!Q110)","v":0},{"$f":"IF(ISBLANK('TA Indicator Bank'!R110),\"\",'TA Indicator Bank'!R110)","v":0},{"$f":"IF(ISBLANK('TA Indicator Bank'!S110),\"\",'TA Indicator Bank'!S110)","v":0},{"$f":"IF(ISBLANK('TA Indicator Bank'!T110),\"\",'TA Indicator Bank'!T110)","v":0},{"$f":"IF(ISBLANK('TA Indicator Bank'!U110),\"\",'TA Indicator Bank'!U110)","v":0},{"$f":"IF(ISBLANK('TA Indicator Bank'!V110),\"\",'TA Indicator Bank'!V110)","v":0},{"$f":"IF(ISBLANK('TA Indicator Bank'!W110),\"\",'TA Indicator Bank'!W110)","v":0},{"$f":"IF(ISBLANK('TA Indicator Bank'!X110),\"\",'TA Indicator Bank'!X110)","v":0},{"$f":"IF(ISBLANK('TA Indicator Bank'!Y110),\"\",'TA Indicator Bank'!Y110)","v":0},{"$f":"IF(ISBLANK('TA Indicator Bank'!Z110),\"\",'TA Indicator Bank'!Z110)","v":0},{"$f":"IF(ISBLANK('TA Indicator Bank'!AA110),\"\",'TA Indicator Bank'!AA110)","v":0},{"$f":"IF(ISBLANK('TA Indicator Bank'!AB110),\"\",'TA Indicator Bank'!AB110)","v":0},{"$f":"IF(ISBLANK('TA Indicator Bank'!AC110),\"\",'TA Indicator Bank'!AC110)","v":0},{"$f":"IF(ISBLANK('TA Indicator Bank'!AD110),\"\",'TA Indicator Bank'!AD110)","v":0},{"$f":"IF(ISBLANK('TA Indicator Bank'!AE110),\"\",'TA Indicator Bank'!AE110)","v":0},{"$f":"IF(ISBLANK('TA Indicator Bank'!AF110),\"\",'TA Indicator Bank'!AF110)","v":0},{"$f":"IF(ISBLANK('TA Indicator Bank'!AG110),\"\",'TA Indicator Bank'!AG110)","v":0},{"$f":"IF(ISBLANK('TA Indicator Bank'!AH110),\"\",'TA Indicator Bank'!AH110)","v":0},{"$f":"IF(ISBLANK('TA Indicator Bank'!AI110),\"\",'TA Indicator Bank'!AI110)","v":0},{"$f":"IF(ISBLANK('TA Indicator Bank'!AJ110),\"\",'TA Indicator Bank'!AJ110)","v":0},{"$f":"IF(ISBLANK('TA Indicator Bank'!AK110),\"\",'TA Indicator Bank'!AK110)","v":0},{"$f":"IF(ISBLANK('TA Indicator Bank'!AL110),\"\",'TA Indicator Bank'!AL110)","v":0},{"$f":"IF(ISBLANK('TA Indicator Bank'!AM110),\"\",'TA Indicator Bank'!AM110)","v":0},{"$f":"IF(ISBLANK('TA Indicator Bank'!AN110),\"\",'TA Indicator Bank'!AN110)","v":0},{"$f":"IF(ISBLANK('TA Indicator Bank'!AO110),\"\",'TA Indicator Bank'!AO110)","v":0},{"$f":"IF(ISBLANK('TA Indicator Bank'!AP110),\"\",'TA Indicator Bank'!AP110)","v":0},{"$f":"IF(ISBLANK('TA Indicator Bank'!AQ110),\"\",'TA Indicator Bank'!AQ110)","v":1},{"$f":"IF(ISBLANK('TA Indicator Bank'!AR110),\"\",'TA Indicator Bank'!AR110)","v":0},{"$f":"IF(ISBLANK('TA Indicator Bank'!AS110),\"\",'TA Indicator Bank'!AS110)","v":0},{"$f":"IF(ISBLANK('TA Indicator Bank'!AT110),\"\",'TA Indicator Bank'!AT110)","v":0},{"$f":"IF(AND(J114=1,J$410=1),1,0)","v":1},{"$f":"IF(AND(K114=1,K$410=1),1,0)","v":1},{"$f":"IF(AND(L114=1,L$410=1),1,0)","v":0},{"$f":"IF(AND(M114=1,M$410=1),1,0)","v":0},{"$f":"IF(AND(N114=1,N$410=1),1,0)","v":0},{"$f":"IF(AND(O114=1,O$410=1),1,0)","v":0},{"$f":"IF(AND(P114=1,P$410=1),1,0)","v":0},{"$f":"IF(AND(Q114=1,Q$410=1),1,0)","v":0},{"$f":"IF(AND(R114=1,R$410=1),1,0)","v":0},{"$f":"IF(AND(S114=1,S$410=1),1,0)","v":0},{"$f":"IF(AND(T114=1,T$410=1),1,0)","v":0},{"$f":"IF(AND(U114=1,U$410=1),1,0)","v":0},{"$f":"IF(AND(V114=1,V$410=1),1,0)","v":0},{"$f":"IF(AND(W114=1,W$410=1),1,0)","v":0},1,{"$f":"IF(AND(X114=1,X$410=1),1,0)","v":0},{"$f":"IF(AND(Y114=1,Y$410=1),1,0)","v":0},{"$f":"IF(AND(Z114=1,Z$410=1),1,0)","v":0},{"$f":"IF(AND(AA114=1,AA$410=1),1,0)","v":0},{"$f":"IF(AND(AB114=1,AB$410=1),1,0)","v":0},{"$f":"IF(AND(AC114=1,AC$410=1),1,0)","v":0},{"$f":"IF(AND(AD114=1,AD$410=1),1,0)","v":0},{"$f":"IF(AND(AE114=1,AE$410=1),1,0)","v":0},{"$f":"IF(AND(AF114=1,AF$410=1),1,0)","v":0},1,{"$f":"IF(AND(AG114=1,AG$410=1),1,0)","v":0},{"$f":"IF(AND(AH114=1,AH$410=1),1,0)","v":0},{"$f":"IF(AND(AI114=1,AI$410=1),1,0)","v":0},{"$f":"IF(AND(AJ114=1,AJ$410=1),1,0)","v":0},{"$f":"IF(AND(AK114=1,AK$410=1),1,0)","v":0},{"$f":"IF(AND(AL114=1,AL$410=1),1,0)","v":0},{"$f":"IF(AND(AM114=1,AM$410=1),1,0)","v":0},{"$f":"IF(AND(AN114=1,AN$410=1),1,0)","v":0},{"$f":"IF(AND(AO114=1,AO$410=1),1,0)","v":0},1,{"$f":"IF(AND(AP114=1,AP$410=1),1,0)","v":0},{"$f":"IF(AND(AQ114=1,AQ$410=1),1,0)","v":1},{"$f":"IF(AND(AR114=1,AR$410=1),1,0)","v":0},{"$f":"IF(AND(AS114=1,AS$410=1),1,0)","v":0},{"$f":"IF(AND(AT114=1,AT$410=1),1,0)","v":0},1,1,106,106,{"$f":"IFERROR(SMALL($CL$9:$CL$408,CK114),\"\")","v":106},{"$f":"IFERROR(INDEX($B$9:$I$408,$CM114,COLUMNS($CN$9:CN114)),\"\")","v":"TA106"},{"$f":"IFERROR(INDEX($B$9:$I$408,$CM114,COLUMNS($CN$9:CO114)),\"\")","v":"Number of (active) participants in knowledge exchange"},{"$f":"IFERROR(INDEX($B$9:$I$408,$CM114,COLUMNS($CN$9:CP114)),\"\")","v":"-"},{"$f":"IFERROR(INDEX($B$9:$I$408,$CM114,COLUMNS($CN$9:CQ114)),\"\")","v":"Uptake"},{"$f":"IFERROR(INDEX($B$9:$I$408,$CM114,COLUMNS($CN$9:CR114)),\"\")","v":"Workshops; Training events / courses"},{"$f":"IFERROR(INDEX($B$9:$I$408,$CM114,COLUMNS($CN$9:CS114)),\"\")","v":"-"},{"$f":"IFERROR(INDEX($B$9:$I$408,$CM114,COLUMNS($CN$9:CT114)),\"\")","v":"-"},{"$f":"IFERROR(INDEX($B$9:$I$408,$CM114,COLUMNS($CN$9:CU114)),\"\")","v":"Number"}]
[null,{"$f":"IF(ISBLANK('TA Indicator Bank'!B111),\"\",'TA Indicator Bank'!B111)","v":"TA107"},{"$f":"IF(ISBLANK('TA Indicator Bank'!C111),\"\",'TA Indicator Bank'!C111)","v":"Number of institutional mechanisms developed/strengthened"},{"$f":"IF(ISBLANK('TA Indicator Bank'!D111),\"\",'TA Indicator Bank'!D111)","v":"-"},{"$f":"IF(ISBLANK('TA Indicator Bank'!E111),\"\",'TA Indicator Bank'!E111)","v":"Output"},{"$f":"IF(ISBLANK('TA Indicator Bank'!F111),\"\",'TA Indicator Bank'!F111)","v":"-"},{"$f":"IF(ISBLANK('TA Indicator Bank'!G111),\"\",'TA Indicator Bank'!G111)","v":"Capacity building: Technical capacity"},{"$f":"IF(ISBLANK('TA Indicator Bank'!H111),\"\",'TA Indicator Bank'!H111)","v":"-"},{"$f":"IF(ISBLANK('TA Indicator Bank'!I111),\"\",'TA Indicator Bank'!I111)","v":"Number"},{"$f":"IF(ISBLANK('TA Indicator Bank'!J111),\"\",'TA Indicator Bank'!J111)","v":0},{"$f":"IF(ISBLANK('TA Indicator Bank'!K111),\"\",'TA Indicator Bank'!K111)","v":0},{"$f":"IF(ISBLANK('TA Indicator Bank'!L111),\"\",'TA Indicator Bank'!L111)","v":0},{"$f":"IF(ISBLANK('TA Indicator Bank'!M111),\"\",'TA Indicator Bank'!M111)","v":0},{"$f":"IF(ISBLANK('TA Indicator Bank'!N111),\"\",'TA Indicator Bank'!N111)","v":0},{"$f":"IF(ISBLANK('TA Indicator Bank'!O111),\"\",'TA Indicator Bank'!O111)","v":0},{"$f":"IF(ISBLANK('TA Indicator Bank'!P111),\"\",'TA Indicator Bank'!P111)","v":0},{"$f":"IF(ISBLANK('TA Indicator Bank'!Q111),\"\",'TA Indicator Bank'!Q111)","v":0},{"$f":"IF(ISBLANK('TA Indicator Bank'!R111),\"\",'TA Indicator Bank'!R111)","v":0},{"$f":"IF(ISBLANK('TA Indicator Bank'!S111),\"\",'TA Indicator Bank'!S111)","v":0},{"$f":"IF(ISBLANK('TA Indicator Bank'!T111),\"\",'TA Indicator Bank'!T111)","v":0},{"$f":"IF(ISBLANK('TA Indicator Bank'!U111),\"\",'TA Indicator Bank'!U111)","v":0},{"$f":"IF(ISBLANK('TA Indicator Bank'!V111),\"\",'TA Indicator Bank'!V111)","v":0},{"$f":"IF(ISBLANK('TA Indicator Bank'!W111),\"\",'TA Indicator Bank'!W111)","v":0},{"$f":"IF(ISBLANK('TA Indicator Bank'!X111),\"\",'TA Indicator Bank'!X111)","v":0},{"$f":"IF(ISBLANK('TA Indicator Bank'!Y111),\"\",'TA Indicator Bank'!Y111)","v":1},{"$f":"IF(ISBLANK('TA Indicator Bank'!Z111),\"\",'TA Indicator Bank'!Z111)","v":0},{"$f":"IF(ISBLANK('TA Indicator Bank'!AA111),\"\",'TA Indicator Bank'!AA111)","v":0},{"$f":"IF(ISBLANK('TA Indicator Bank'!AB111),\"\",'TA Indicator Bank'!AB111)","v":0},{"$f":"IF(ISBLANK('TA Indicator Bank'!AC111),\"\",'TA Indicator Bank'!AC111)","v":0},{"$f":"IF(ISBLANK('TA Indicator Bank'!AD111),\"\",'TA Indicator Bank'!AD111)","v":0},{"$f":"IF(ISBLANK('TA Indicator Bank'!AE111),\"\",'TA Indicator Bank'!AE111)","v":0},{"$f":"IF(ISBLANK('TA Indicator Bank'!AF111),\"\",'TA Indicator Bank'!AF111)","v":0},{"$f":"IF(ISBLANK('TA Indicator Bank'!AG111),\"\",'TA Indicator Bank'!AG111)","v":0},{"$f":"IF(ISBLANK('TA Indicator Bank'!AH111),\"\",'TA Indicator Bank'!AH111)","v":0},{"$f":"IF(ISBLANK('TA Indicator Bank'!AI111),\"\",'TA Indicator Bank'!AI111)","v":0},{"$f":"IF(ISBLANK('TA Indicator Bank'!AJ111),\"\",'TA Indicator Bank'!AJ111)","v":0},{"$f":"IF(ISBLANK('TA Indicator Bank'!AK111),\"\",'TA Indicator Bank'!AK111)","v":0},{"$f":"IF(ISBLANK('TA Indicator Bank'!AL111),\"\",'TA Indicator Bank'!AL111)","v":0},{"$f":"IF(ISBLANK('TA Indicator Bank'!AM111),\"\",'TA Indicator Bank'!AM111)","v":0},{"$f":"IF(ISBLANK('TA Indicator Bank'!AN111),\"\",'TA Indicator Bank'!AN111)","v":0},{"$f":"IF(ISBLANK('TA Indicator Bank'!AO111),\"\",'TA Indicator Bank'!AO111)","v":0},{"$f":"IF(ISBLANK('TA Indicator Bank'!AP111),\"\",'TA Indicator Bank'!AP111)","v":0},{"$f":"IF(ISBLANK('TA Indicator Bank'!AQ111),\"\",'TA Indicator Bank'!AQ111)","v":0},{"$f":"IF(ISBLANK('TA Indicator Bank'!AR111),\"\",'TA Indicator Bank'!AR111)","v":1},{"$f":"IF(ISBLANK('TA Indicator Bank'!AS111),\"\",'TA Indicator Bank'!AS111)","v":0},{"$f":"IF(ISBLANK('TA Indicator Bank'!AT111),\"\",'TA Indicator Bank'!AT111)","v":0},{"$f":"IF(AND(J115=1,J$410=1),1,0)","v":0},{"$f":"IF(AND(K115=1,K$410=1),1,0)","v":0},{"$f":"IF(AND(L115=1,L$410=1),1,0)","v":0},{"$f":"IF(AND(M115=1,M$410=1),1,0)","v":0},{"$f":"IF(AND(N115=1,N$410=1),1,0)","v":0},{"$f":"IF(AND(O115=1,O$410=1),1,0)","v":0},{"$f":"IF(AND(P115=1,P$410=1),1,0)","v":0},{"$f":"IF(AND(Q115=1,Q$410=1),1,0)","v":0},{"$f":"IF(AND(R115=1,R$410=1),1,0)","v":0},{"$f":"IF(AND(S115=1,S$410=1),1,0)","v":0},{"$f":"IF(AND(T115=1,T$410=1),1,0)","v":0},{"$f":"IF(AND(U115=1,U$410=1),1,0)","v":0},{"$f":"IF(AND(V115=1,V$410=1),1,0)","v":0},{"$f":"IF(AND(W115=1,W$410=1),1,0)","v":0},1,{"$f":"IF(AND(X115=1,X$410=1),1,0)","v":0},{"$f":"IF(AND(Y115=1,Y$410=1),1,0)","v":1},{"$f":"IF(AND(Z115=1,Z$410=1),1,0)","v":0},{"$f":"IF(AND(AA115=1,AA$410=1),1,0)","v":0},{"$f":"IF(AND(AB115=1,AB$410=1),1,0)","v":0},{"$f":"IF(AND(AC115=1,AC$410=1),1,0)","v":0},{"$f":"IF(AND(AD115=1,AD$410=1),1,0)","v":0},{"$f":"IF(AND(AE115=1,AE$410=1),1,0)","v":0},{"$f":"IF(AND(AF115=1,AF$410=1),1,0)","v":0},1,{"$f":"IF(AND(AG115=1,AG$410=1),1,0)","v":0},{"$f":"IF(AND(AH115=1,AH$410=1),1,0)","v":0},{"$f":"IF(AND(AI115=1,AI$410=1),1,0)","v":0},{"$f":"IF(AND(AJ115=1,AJ$410=1),1,0)","v":0},{"$f":"IF(AND(AK115=1,AK$410=1),1,0)","v":0},{"$f":"IF(AND(AL115=1,AL$410=1),1,0)","v":0},{"$f":"IF(AND(AM115=1,AM$410=1),1,0)","v":0},{"$f":"IF(AND(AN115=1,AN$410=1),1,0)","v":0},{"$f":"IF(AND(AO115=1,AO$410=1),1,0)","v":0},1,{"$f":"IF(AND(AP115=1,AP$410=1),1,0)","v":0},{"$f":"IF(AND(AQ115=1,AQ$410=1),1,0)","v":0},{"$f":"IF(AND(AR115=1,AR$410=1),1,0)","v":1},{"$f":"IF(AND(AS115=1,AS$410=1),1,0)","v":0},{"$f":"IF(AND(AT115=1,AT$410=1),1,0)","v":0},1,1,107,107,{"$f":"IFERROR(SMALL($CL$9:$CL$408,CK115),\"\")","v":107},{"$f":"IFERROR(INDEX($B$9:$I$408,$CM115,COLUMNS($CN$9:CN115)),\"\")","v":"TA107"},{"$f":"IFERROR(INDEX($B$9:$I$408,$CM115,COLUMNS($CN$9:CO115)),\"\")","v":"Number of institutional mechanisms developed/strengthened"},{"$f":"IFERROR(INDEX($B$9:$I$408,$CM115,COLUMNS($CN$9:CP115)),\"\")","v":"-"},{"$f":"IFERROR(INDEX($B$9:$I$408,$CM115,COLUMNS($CN$9:CQ115)),\"\")","v":"Output"},{"$f":"IFERROR(INDEX($B$9:$I$408,$CM115,COLUMNS($CN$9:CR115)),\"\")","v":"-"},{"$f":"IFERROR(INDEX($B$9:$I$408,$CM115,COLUMNS($CN$9:CS115)),\"\")","v":"Capacity building: Technical capacity"},{"$f":"IFERROR(INDEX($B$9:$I$408,$CM115,COLUMNS($CN$9:CT115)),\"\")","v":"-"},{"$f":"IFERROR(INDEX($B$9:$I$408,$CM115,COLUMNS($CN$9:CU115)),\"\")","v":"Number"}]
[null,{"$f":"IF(ISBLANK('TA Indicator Bank'!B112),\"\",'TA Indicator Bank'!B112)","v":"TA108"},{"$f":"IF(ISBLANK('TA Indicator Bank'!C112),\"\",'TA Indicator Bank'!C112)","v":"Expenditure on knowledge products"},{"$f":"IF(ISBLANK('TA Indicator Bank'!D112),\"\",'TA Indicator Bank'!D112)","v":"-"},{"$f":"IF(ISBLANK('TA Indicator Bank'!E112),\"\",'TA Indicator Bank'!E112)","v":"Activity"},{"$f":"IF(ISBLANK('TA Indicator Bank'!F112),\"\",'TA Indicator Bank'!F112)","v":"Specialist research, inc. market / policy / legal / regulatory / technology research briefs"},{"$f":"IF(ISBLANK('TA Indicator Bank'!G112),\"\",'TA Indicator Bank'!G112)","v":"-"},{"$f":"IF(ISBLANK('TA Indicator Bank'!H112),\"\",'TA Indicator Bank'!H112)","v":"-"},{"$f":"IF(ISBLANK('TA Indicator Bank'!I112),\"\",'TA Indicator Bank'!I112)","v":"Number"},{"$f":"IF(ISBLANK('TA Indicator Bank'!J112),\"\",'TA Indicator Bank'!J112)","v":0},{"$f":"IF(ISBLANK('TA Indicator Bank'!K112),\"\",'TA Indicator Bank'!K112)","v":0},{"$f":"IF(ISBLANK('TA Indicator Bank'!L112),\"\",'TA Indicator Bank'!L112)","v":0},{"$f":"IF(ISBLANK('TA Indicator Bank'!M112),\"\",'TA Indicator Bank'!M112)","v":0},{"$f":"IF(ISBLANK('TA Indicator Bank'!N112),\"\",'TA Indicator Bank'!N112)","v":1},{"$f":"IF(ISBLANK('TA Indicator Bank'!O112),\"\",'TA Indicator Bank'!O112)","v":0},{"$f":"IF(ISBLANK('TA Indicator Bank'!P112),\"\",'TA Indicator Bank'!P112)","v":0},{"$f":"IF(ISBLANK('TA Indicator Bank'!Q112),\"\",'TA Indicator Bank'!Q112)","v":0},{"$f":"IF(ISBLANK('TA Indicator Bank'!R112),\"\",'TA Indicator Bank'!R112)","v":0},{"$f":"IF(ISBLANK('TA Indicator Bank'!S112),\"\",'TA Indicator Bank'!S112)","v":0},{"$f":"IF(ISBLANK('TA Indicator Bank'!T112),\"\",'TA Indicator Bank'!T112)","v":0},{"$f":"IF(ISBLANK('TA Indicator Bank'!U112),\"\",'TA Indicator Bank'!U112)","v":0},{"$f":"IF(ISBLANK('TA Indicator Bank'!V112),\"\",'TA Indicator Bank'!V112)","v":0},{"$f":"IF(ISBLANK('TA Indicator Bank'!W112),\"\",'TA Indicator Bank'!W112)","v":0},{"$f":"IF(ISBLANK('TA Indicator Bank'!X112),\"\",'TA Indicator Bank'!X112)","v":0},{"$f":"IF(ISBLANK('TA Indicator Bank'!Y112),\"\",'TA Indicator Bank'!Y112)","v":0},{"$f":"IF(ISBLANK('TA Indicator Bank'!Z112),\"\",'TA Indicator Bank'!Z112)","v":0},{"$f":"IF(ISBLANK('TA Indicator Bank'!AA112),\"\",'TA Indicator Bank'!AA112)","v":0},{"$f":"IF(ISBLANK('TA Indicator Bank'!AB112),\"\",'TA Indicator Bank'!AB112)","v":0},{"$f":"IF(ISBLANK('TA Indicator Bank'!AC112),\"\",'TA Indicator Bank'!AC112)","v":0},{"$f":"IF(ISBLANK('TA Indicator Bank'!AD112),\"\",'TA Indicator Bank'!AD112)","v":0},{"$f":"IF(ISBLANK('TA Indicator Bank'!AE112),\"\",'TA Indicator Bank'!AE112)","v":0},{"$f":"IF(ISBLANK('TA Indicator Bank'!AF112),\"\",'TA Indicator Bank'!AF112)","v":0},{"$f":"IF(ISBLANK('TA Indicator Bank'!AG112),\"\",'TA Indicator Bank'!AG112)","v":0},{"$f":"IF(ISBLANK('TA Indicator Bank'!AH112),\"\",'TA Indicator Bank'!AH112)","v":0},{"$f":"IF(ISBLANK('TA Indicator Bank'!AI112),\"\",'TA Indicator Bank'!AI112)","v":0},{"$f":"IF(ISBLANK('TA Indicator Bank'!AJ112),\"\",'TA Indicator Bank'!AJ112)","v":0},{"$f":"IF(ISBLANK('TA Indicator Bank'!AK112),\"\",'TA Indicator Bank'!AK112)","v":0},{"$f":"IF(ISBLANK('TA Indicator Bank'!AL112),\"\",'TA Indicator Bank'!AL112)","v":0},{"$f":"IF(ISBLANK('TA Indicator Bank'!AM112),\"\",'TA Indicator Bank'!AM112)","v":0},{"$f":"IF(ISBLANK('TA Indicator Bank'!AN112),\"\",'TA Indicator Bank'!AN112)","v":0},{"$f":"IF(ISBLANK('TA Indicator Bank'!AO112),\"\",'TA Indicator Bank'!AO112)","v":0},{"$f":"IF(ISBLANK('TA Indicator Bank'!AP112),\"\",'TA Indicator Bank'!AP112)","v":1},{"$f":"IF(ISBLANK('TA Indicator Bank'!AQ112),\"\",'TA Indicator Bank'!AQ112)","v":0},{"$f":"IF(ISBLANK('TA Indicator Bank'!AR112),\"\",'TA Indicator Bank'!AR112)","v":0},{"$f":"IF(ISBLANK('TA Indicator Bank'!AS112),\"\",'TA Indicator Bank'!AS112)","v":0},{"$f":"IF(ISBLANK('TA Indicator Bank'!AT112),\"\",'TA Indicator Bank'!AT112)","v":0},{"$f":"IF(AND(J116=1,J$410=1),1,0)","v":0},{"$f":"IF(AND(K116=1,K$410=1),1,0)","v":0},{"$f":"IF(AND(L116=1,L$410=1),1,0)","v":0},{"$f":"IF(AND(M116=1,M$410=1),1,0)","v":0},{"$f":"IF(AND(N116=1,N$410=1),1,0)","v":1},{"$f":"IF(AND(O116=1,O$410=1),1,0)","v":0},{"$f":"IF(AND(P116=1,P$410=1),1,0)","v":0},{"$f":"IF(AND(Q116=1,Q$410=1),1,0)","v":0},{"$f":"IF(AND(R116=1,R$410=1),1,0)","v":0},{"$f":"IF(AND(S116=1,S$410=1),1,0)","v":0},{"$f":"IF(AND(T116=1,T$410=1),1,0)","v":0},{"$f":"IF(AND(U116=1,U$410=1),1,0)","v":0},{"$f":"IF(AND(V116=1,V$410=1),1,0)","v":0},{"$f":"IF(AND(W116=1,W$410=1),1,0)","v":0},1,{"$f":"IF(AND(X116=1,X$410=1),1,0)","v":0},{"$f":"IF(AND(Y116=1,Y$410=1),1,0)","v":0},{"$f":"IF(AND(Z116=1,Z$410=1),1,0)","v":0},{"$f":"IF(AND(AA116=1,AA$410=1),1,0)","v":0},{"$f":"IF(AND(AB116=1,AB$410=1),1,0)","v":0},{"$f":"IF(AND(AC116=1,AC$410=1),1,0)","v":0},{"$f":"IF(AND(AD116=1,AD$410=1),1,0)","v":0},{"$f":"IF(AND(AE116=1,AE$410=1),1,0)","v":0},{"$f":"IF(AND(AF116=1,AF$410=1),1,0)","v":0},1,{"$f":"IF(AND(AG116=1,AG$410=1),1,0)","v":0},{"$f":"IF(AND(AH116=1,AH$410=1),1,0)","v":0},{"$f":"IF(AND(AI116=1,AI$410=1),1,0)","v":0},{"$f":"IF(AND(AJ116=1,AJ$410=1),1,0)","v":0},{"$f":"IF(AND(AK116=1,AK$410=1),1,0)","v":0},{"$f":"IF(AND(AL116=1,AL$410=1),1,0)","v":0},{"$f":"IF(AND(AM116=1,AM$410=1),1,0)","v":0},{"$f":"IF(AND(AN116=1,AN$410=1),1,0)","v":0},{"$f":"IF(AND(AO116=1,AO$410=1),1,0)","v":0},1,{"$f":"IF(AND(AP116=1,AP$410=1),1,0)","v":1},{"$f":"IF(AND(AQ116=1,AQ$410=1),1,0)","v":0},{"$f":"IF(AND(AR116=1,AR$410=1),1,0)","v":0},{"$f":"IF(AND(AS116=1,AS$410=1),1,0)","v":0},{"$f":"IF(AND(AT116=1,AT$410=1),1,0)","v":0},1,1,108,108,{"$f":"IFERROR(SMALL($CL$9:$CL$408,CK116),\"\")","v":108},{"$f":"IFERROR(INDEX($B$9:$I$408,$CM116,COLUMNS($CN$9:CN116)),\"\")","v":"TA108"},{"$f":"IFERROR(INDEX($B$9:$I$408,$CM116,COLUMNS($CN$9:CO116)),\"\")","v":"Expenditure on knowledge products"},{"$f":"IFERROR(INDEX($B$9:$I$408,$CM116,COLUMNS($CN$9:CP116)),\"\")","v":"-"},{"$f":"IFERROR(INDEX($B$9:$I$408,$CM116,COLUMNS($CN$9:CQ116)),\"\")","v":"Activity"},{"$f":"IFERROR(INDEX($B$9:$I$408,$CM116,COLUMNS($CN$9:CR116)),\"\")","v":"Specialist research, inc. market / policy / legal / regulatory / technology research briefs"},{"$f":"IFERROR(INDEX($B$9:$I$408,$CM116,COLUMNS($CN$9:CS116)),\"\")","v":"-"},{"$f":"IFERROR(INDEX($B$9:$I$408,$CM116,COLUMNS($CN$9:CT116)),\"\")","v":"-"},{"$f":"IFERROR(INDEX($B$9:$I$408,$CM116,COLUMNS($CN$9:CU116)),\"\")","v":"Number"}]
[null,{"$f":"IF(ISBLANK('TA Indicator Bank'!B113),\"\",'TA Indicator Bank'!B113)","v":"TA109"},{"$f":"IF(ISBLANK('TA Indicator Bank'!C113),\"\",'TA Indicator Bank'!C113)","v":"Knowledge product created"},{"$f":"IF(ISBLANK('TA Indicator Bank'!D113),\"\",'TA Indicator Bank'!D113)","v":"-"},{"$f":"IF(ISBLANK('TA Indicator Bank'!E113),\"\",'TA Indicator Bank'!E113)","v":"Output"},{"$f":"IF(ISBLANK('TA Indicator Bank'!F113),\"\",'TA Indicator Bank'!F113)","v":"-"},{"$f":"IF(ISBLANK('TA Indicator Bank'!G113),\"\",'TA Indicator Bank'!G113)","v":"Capacity building: Technical capacity"},{"$f":"IF(ISBLANK('TA Indicator Bank'!H113),\"\",'TA Indicator Bank'!H113)","v":"-"},{"$f":"IF(ISBLANK('TA Indicator Bank'!I113),\"\",'TA Indicator Bank'!I113)","v":"Yes/No"},{"$f":"IF(ISBLANK('TA Indicator Bank'!J113),\"\",'TA Indicator Bank'!J113)","v":0},{"$f":"IF(ISBLANK('TA Indicator Bank'!K113),\"\",'TA Indicator Bank'!K113)","v":0},{"$f":"IF(ISBLANK('TA Indicator Bank'!L113),\"\",'TA Indicator Bank'!L113)","v":0},{"$f":"IF(ISBLANK('TA Indicator Bank'!M113),\"\",'TA Indicator Bank'!M113)","v":0},{"$f":"IF(ISBLANK('TA Indicator Bank'!N113),\"\",'TA Indicator Bank'!N113)","v":0},{"$f":"IF(ISBLANK('TA Indicator Bank'!O113),\"\",'TA Indicator Bank'!O113)","v":0},{"$f":"IF(ISBLANK('TA Indicator Bank'!P113),\"\",'TA Indicator Bank'!P113)","v":0},{"$f":"IF(ISBLANK('TA Indicator Bank'!Q113),\"\",'TA Indicator Bank'!Q113)","v":0},{"$f":"IF(ISBLANK('TA Indicator Bank'!R113),\"\",'TA Indicator Bank'!R113)","v":0},{"$f":"IF(ISBLANK('TA Indicator Bank'!S113),\"\",'TA Indicator Bank'!S113)","v":0},{"$f":"IF(ISBLANK('TA Indicator Bank'!T113),\"\",'TA Indicator Bank'!T113)","v":0},{"$f":"IF(ISBLANK('TA Indicator Bank'!U113),\"\",'TA Indicator Bank'!U113)","v":0},{"$f":"IF(ISBLANK('TA Indicator Bank'!V113),\"\",'TA Indicator Bank'!V113)","v":0},{"$f":"IF(ISBLANK('TA Indicator Bank'!W113),\"\",'TA Indicator Bank'!W113)","v":0},{"$f":"IF(ISBLANK('TA Indicator Bank'!X113),\"\",'TA Indicator Bank'!X113)","v":0},{"$f":"IF(ISBLANK('TA Indicator Bank'!Y113),\"\",'TA Indicator Bank'!Y113)","v":1},{"$f":"IF(ISBLANK('TA Indicator Bank'!Z113),\"\",'TA Indicator Bank'!Z113)","v":0},{"$f":"IF(ISBLANK('TA Indicator Bank'!AA113),\"\",'TA Indicator Bank'!AA113)","v":0},{"$f":"IF(ISBLANK('TA Indicator Bank'!AB113),\"\",'TA Indicator Bank'!AB113)","v":0},{"$f":"IF(ISBLANK('TA Indicator Bank'!AC113),\"\",'TA Indicator Bank'!AC113)","v":0},{"$f":"IF(ISBLANK('TA Indicator Bank'!AD113),\"\",'TA Indicator Bank'!AD113)","v":0},{"$f":"IF(ISBLANK('TA Indicator Bank'!AE113),\"\",'TA Indicator Bank'!AE113)","v":0},{"$f":"IF(ISBLANK('TA Indicator Bank'!AF113),\"\",'TA Indicator Bank'!AF113)","v":0},{"$f":"IF(ISBLANK('TA Indicator Bank'!AG113),\"\",'TA Indicator Bank'!AG113)","v":0},{"$f":"IF(ISBLANK('TA Indicator Bank'!AH113),\"\",'TA Indicator Bank'!AH113)","v":0},{"$f":"IF(ISBLANK('TA Indicator Bank'!AI113),\"\",'TA Indicator Bank'!AI113)","v":0},{"$f":"IF(ISBLANK('TA Indicator Bank'!AJ113),\"\",'TA Indicator Bank'!AJ113)","v":0},{"$f":"IF(ISBLANK('TA Indicator Bank'!AK113),\"\",'TA Indicator Bank'!AK113)","v":0},{"$f":"IF(ISBLANK('TA Indicator Bank'!AL113),\"\",'TA Indicator Bank'!AL113)","v":0},{"$f":"IF(ISBLANK('TA Indicator Bank'!AM113),\"\",'TA Indicator Bank'!AM113)","v":0},{"$f":"IF(ISBLANK('TA Indicator Bank'!AN113),\"\",'TA Indicator Bank'!AN113)","v":0},{"$f":"IF(ISBLANK('TA Indicator Bank'!AO113),\"\",'TA Indicator Bank'!AO113)","v":0},{"$f":"IF(ISBLANK('TA Indicator Bank'!AP113),\"\",'TA Indicator Bank'!AP113)","v":0},{"$f":"IF(ISBLANK('TA Indicator Bank'!AQ113),\"\",'TA Indicator Bank'!AQ113)","v":0},{"$f":"IF(ISBLANK('TA Indicator Bank'!AR113),\"\",'TA Indicator Bank'!AR113)","v":1},{"$f":"IF(ISBLANK('TA Indicator Bank'!AS113),\"\",'TA Indicator Bank'!AS113)","v":0},{"$f":"IF(ISBLANK('TA Indicator Bank'!AT113),\"\",'TA Indicator Bank'!AT113)","v":0},{"$f":"IF(AND(J117=1,J$410=1),1,0)","v":0},{"$f":"IF(AND(K117=1,K$410=1),1,0)","v":0},{"$f":"IF(AND(L117=1,L$410=1),1,0)","v":0},{"$f":"IF(AND(M117=1,M$410=1),1,0)","v":0},{"$f":"IF(AND(N117=1,N$410=1),1,0)","v":0},{"$f":"IF(AND(O117=1,O$410=1),1,0)","v":0},{"$f":"IF(AND(P117=1,P$410=1),1,0)","v":0},{"$f":"IF(AND(Q117=1,Q$410=1),1,0)","v":0},{"$f":"IF(AND(R117=1,R$410=1),1,0)","v":0},{"$f":"IF(AND(S117=1,S$410=1),1,0)","v":0},{"$f":"IF(AND(T117=1,T$410=1),1,0)","v":0},{"$f":"IF(AND(U117=1,U$410=1),1,0)","v":0},{"$f":"IF(AND(V117=1,V$410=1),1,0)","v":0},{"$f":"IF(AND(W117=1,W$410=1),1,0)","v":0},1,{"$f":"IF(AND(X117=1,X$410=1),1,0)","v":0},{"$f":"IF(AND(Y117=1,Y$410=1),1,0)","v":1},{"$f":"IF(AND(Z117=1,Z$410=1),1,0)","v":0},{"$f":"IF(AND(AA117=1,AA$410=1),1,0)","v":0},{"$f":"IF(AND(AB117=1,AB$410=1),1,0)","v":0},{"$f":"IF(AND(AC117=1,AC$410=1),1,0)","v":0},{"$f":"IF(AND(AD117=1,AD$410=1),1,0)","v":0},{"$f":"IF(AND(AE117=1,AE$410=1),1,0)","v":0},{"$f":"IF(AND(AF117=1,AF$410=1),1,0)","v":0},1,{"$f":"IF(AND(AG117=1,AG$410=1),1,0)","v":0},{"$f":"IF(AND(AH117=1,AH$410=1),1,0)","v":0},{"$f":"IF(AND(AI117=1,AI$410=1),1,0)","v":0},{"$f":"IF(AND(AJ117=1,AJ$410=1),1,0)","v":0},{"$f":"IF(AND(AK117=1,AK$410=1),1,0)","v":0},{"$f":"IF(AND(AL117=1,AL$410=1),1,0)","v":0},{"$f":"IF(AND(AM117=1,AM$410=1),1,0)","v":0},{"$f":"IF(AND(AN117=1,AN$410=1),1,0)","v":0},{"$f":"IF(AND(AO117=1,AO$410=1),1,0)","v":0},1,{"$f":"IF(AND(AP117=1,AP$410=1),1,0)","v":0},{"$f":"IF(AND(AQ117=1,AQ$410=1),1,0)","v":0},{"$f":"IF(AND(AR117=1,AR$410=1),1,0)","v":1},{"$f":"IF(AND(AS117=1,AS$410=1),1,0)","v":0},{"$f":"IF(AND(AT117=1,AT$410=1),1,0)","v":0},1,1,109,109,{"$f":"IFERROR(SMALL($CL$9:$CL$408,CK117),\"\")","v":109},{"$f":"IFERROR(INDEX($B$9:$I$408,$CM117,COLUMNS($CN$9:CN117)),\"\")","v":"TA109"},{"$f":"IFERROR(INDEX($B$9:$I$408,$CM117,COLUMNS($CN$9:CO117)),\"\")","v":"Knowledge product created"},{"$f":"IFERROR(INDEX($B$9:$I$408,$CM117,COLUMNS($CN$9:CP117)),\"\")","v":"-"},{"$f":"IFERROR(INDEX($B$9:$I$408,$CM117,COLUMNS($CN$9:CQ117)),\"\")","v":"Output"},{"$f":"IFERROR(INDEX($B$9:$I$408,$CM117,COLUMNS($CN$9:CR117)),\"\")","v":"-"},{"$f":"IFERROR(INDEX($B$9:$I$408,$CM117,COLUMNS($CN$9:CS117)),\"\")","v":"Capacity building: Technical capacity"},{"$f":"IFERROR(INDEX($B$9:$I$408,$CM117,COLUMNS($CN$9:CT117)),\"\")","v":"-"},{"$f":"IFERROR(INDEX($B$9:$I$408,$CM117,COLUMNS($CN$9:CU117)),\"\")","v":"Yes/No"}]
[null,{"$f":"IF(ISBLANK('TA Indicator Bank'!B114),\"\",'TA Indicator Bank'!B114)","v":"TA110"},{"$f":"IF(ISBLANK('TA Indicator Bank'!C114),\"\",'TA Indicator Bank'!C114)","v":"Percentage of participants achieve certain performance measure on accountability"},{"$f":"IF(ISBLANK('TA Indicator Bank'!D114),\"\",'TA Indicator Bank'!D114)","v":"-"},{"$f":"IF(ISBLANK('TA Indicator Bank'!E114),\"\",'TA Indicator Bank'!E114)","v":"Output"},{"$f":"IF(ISBLANK('TA Indicator Bank'!F114),\"\",'TA Indicator Bank'!F114)","v":"-"},{"$f":"IF(ISBLANK('TA Indicator Bank'!G114),\"\",'TA Indicator Bank'!G114)","v":"Capacity building: Technical capacity"},{"$f":"IF(ISBLANK('TA Indicator Bank'!H114),\"\",'TA Indicator Bank'!H114)","v":"-"},{"$f":"IF(ISBLANK('TA Indicator Bank'!I114),\"\",'TA Indicator Bank'!I114)","v":"Percentage"},{"$f":"IF(ISBLANK('TA Indicator Bank'!J114),\"\",'TA Indicator Bank'!J114)","v":0},{"$f":"IF(ISBLANK('TA Indicator Bank'!K114),\"\",'TA Indicator Bank'!K114)","v":0},{"$f":"IF(ISBLANK('TA Indicator Bank'!L114),\"\",'TA Indicator Bank'!L114)","v":0},{"$f":"IF(ISBLANK('TA Indicator Bank'!M114),\"\",'TA Indicator Bank'!M114)","v":0},{"$f":"IF(ISBLANK('TA Indicator Bank'!N114),\"\",'TA Indicator Bank'!N114)","v":0},{"$f":"IF(ISBLANK('TA Indicator Bank'!O114),\"\",'TA Indicator Bank'!O114)","v":0},{"$f":"IF(ISBLANK('TA Indicator Bank'!P114),\"\",'TA Indicator Bank'!P114)","v":0},{"$f":"IF(ISBLANK('TA Indicator Bank'!Q114),\"\",'TA Indicator Bank'!Q114)","v":0},{"$f":"IF(ISBLANK('TA Indicator Bank'!R114),\"\",'TA Indicator Bank'!R114)","v":0},{"$f":"IF(ISBLANK('TA Indicator Bank'!S114),\"\",'TA Indicator Bank'!S114)","v":0},{"$f":"IF(ISBLANK('TA Indicator Bank'!T114),\"\",'TA Indicator Bank'!T114)","v":0},{"$f":"IF(ISBLANK('TA Indicator Bank'!U114),\"\",'TA Indicator Bank'!U114)","v":0},{"$f":"IF(ISBLANK('TA Indicator Bank'!V114),\"\",'TA Indicator Bank'!V114)","v":0},{"$f":"IF(ISBLANK('TA Indicator Bank'!W114),\"\",'TA Indicator Bank'!W114)","v":0},{"$f":"IF(ISBLANK('TA Indicator Bank'!X114),\"\",'TA Indicator Bank'!X114)","v":0},{"$f":"IF(ISBLANK('TA Indicator Bank'!Y114),\"\",'TA Indicator Bank'!Y114)","v":1},{"$f":"IF(ISBLANK('TA Indicator Bank'!Z114),\"\",'TA Indicator Bank'!Z114)","v":0},{"$f":"IF(ISBLANK('TA Indicator Bank'!AA114),\"\",'TA Indicator Bank'!AA114)","v":0},{"$f":"IF(ISBLANK('TA Indicator Bank'!AB114),\"\",'TA Indicator Bank'!AB114)","v":0},{"$f":"IF(ISBLANK('TA Indicator Bank'!AC114),\"\",'TA Indicator Bank'!AC114)","v":0},{"$f":"IF(ISBLANK('TA Indicator Bank'!AD114),\"\",'TA Indicator Bank'!AD114)","v":0},{"$f":"IF(ISBLANK('TA Indicator Bank'!AE114),\"\",'TA Indicator Bank'!AE114)","v":0},{"$f":"IF(ISBLANK('TA Indicator Bank'!AF114),\"\",'TA Indicator Bank'!AF114)","v":0},{"$f":"IF(ISBLANK('TA Indicator Bank'!AG114),\"\",'TA Indicator Bank'!AG114)","v":0},{"$f":"IF(ISBLANK('TA Indicator Bank'!AH114),\"\",'TA Indicator Bank'!AH114)","v":0},{"$f":"IF(ISBLANK('TA Indicator Bank'!AI114),\"\",'TA Indicator Bank'!AI114)","v":0},{"$f":"IF(ISBLANK('TA Indicator Bank'!AJ114),\"\",'TA Indicator Bank'!AJ114)","v":0},{"$f":"IF(ISBLANK('TA Indicator Bank'!AK114),\"\",'TA Indicator Bank'!AK114)","v":0},{"$f":"IF(ISBLANK('TA Indicator Bank'!AL114),\"\",'TA Indicator Bank'!AL114)","v":0},{"$f":"IF(ISBLANK('TA Indicator Bank'!AM114),\"\",'TA Indicator Bank'!AM114)","v":0},{"$f":"IF(ISBLANK('TA Indicator Bank'!AN114),\"\",'TA Indicator Bank'!AN114)","v":0},{"$f":"IF(ISBLANK('TA Indicator Bank'!AO114),\"\",'TA Indicator Bank'!AO114)","v":0},{"$f":"IF(ISBLANK('TA Indicator Bank'!AP114),\"\",'TA Indicator Bank'!AP114)","v":0},{"$f":"IF(ISBLANK('TA Indicator Bank'!AQ114),\"\",'TA Indicator Bank'!AQ114)","v":0},{"$f":"IF(ISBLANK('TA Indicator Bank'!AR114),\"\",'TA Indicator Bank'!AR114)","v":1},{"$f":"IF(ISBLANK('TA Indicator Bank'!AS114),\"\",'TA Indicator Bank'!AS114)","v":0},{"$f":"IF(ISBLANK('TA Indicator Bank'!AT114),\"\",'TA Indicator Bank'!AT114)","v":0},{"$f":"IF(AND(J118=1,J$410=1),1,0)","v":0},{"$f":"IF(AND(K118=1,K$410=1),1,0)","v":0},{"$f":"IF(AND(L118=1,L$410=1),1,0)","v":0},{"$f":"IF(AND(M118=1,M$410=1),1,0)","v":0},{"$f":"IF(AND(N118=1,N$410=1),1,0)","v":0},{"$f":"IF(AND(O118=1,O$410=1),1,0)","v":0},{"$f":"IF(AND(P118=1,P$410=1),1,0)","v":0},{"$f":"IF(AND(Q118=1,Q$410=1),1,0)","v":0},{"$f":"IF(AND(R118=1,R$410=1),1,0)","v":0},{"$f":"IF(AND(S118=1,S$410=1),1,0)","v":0},{"$f":"IF(AND(T118=1,T$410=1),1,0)","v":0},{"$f":"IF(AND(U118=1,U$410=1),1,0)","v":0},{"$f":"IF(AND(V118=1,V$410=1),1,0)","v":0},{"$f":"IF(AND(W118=1,W$410=1),1,0)","v":0},1,{"$f":"IF(AND(X118=1,X$410=1),1,0)","v":0},{"$f":"IF(AND(Y118=1,Y$410=1),1,0)","v":1},{"$f":"IF(AND(Z118=1,Z$410=1),1,0)","v":0},{"$f":"IF(AND(AA118=1,AA$410=1),1,0)","v":0},{"$f":"IF(AND(AB118=1,AB$410=1),1,0)","v":0},{"$f":"IF(AND(AC118=1,AC$410=1),1,0)","v":0},{"$f":"IF(AND(AD118=1,AD$410=1),1,0)","v":0},{"$f":"IF(AND(AE118=1,AE$410=1),1,0)","v":0},{"$f":"IF(AND(AF118=1,AF$410=1),1,0)","v":0},1,{"$f":"IF(AND(AG118=1,AG$410=1),1,0)","v":0},{"$f":"IF(AND(AH118=1,AH$410=1),1,0)","v":0},{"$f":"IF(AND(AI118=1,AI$410=1),1,0)","v":0},{"$f":"IF(AND(AJ118=1,AJ$410=1),1,0)","v":0},{"$f":"IF(AND(AK118=1,AK$410=1),1,0)","v":0},{"$f":"IF(AND(AL118=1,AL$410=1),1,0)","v":0},{"$f":"IF(AND(AM118=1,AM$410=1),1,0)","v":0},{"$f":"IF(AND(AN118=1,AN$410=1),1,0)","v":0},{"$f":"IF(AND(AO118=1,AO$410=1),1,0)","v":0},1,{"$f":"IF(AND(AP118=1,AP$410=1),1,0)","v":0},{"$f":"IF(AND(AQ118=1,AQ$410=1),1,0)","v":0},{"$f":"IF(AND(AR118=1,AR$410=1),1,0)","v":1},{"$f":"IF(AND(AS118=1,AS$410=1),1,0)","v":0},{"$f":"IF(AND(AT118=1,AT$410=1),1,0)","v":0},1,1,110,110,{"$f":"IFERROR(SMALL($CL$9:$CL$408,CK118),\"\")","v":110},{"$f":"IFERROR(INDEX($B$9:$I$408,$CM118,COLUMNS($CN$9:CN118)),\"\")","v":"TA110"},{"$f":"IFERROR(INDEX($B$9:$I$408,$CM118,COLUMNS($CN$9:CO118)),\"\")","v":"Percentage of participants achieve certain performance measure on accountability"},{"$f":"IFERROR(INDEX($B$9:$I$408,$CM118,COLUMNS($CN$9:CP118)),\"\")","v":"-"},{"$f":"IFERROR(INDEX($B$9:$I$408,$CM118,COLUMNS($CN$9:CQ118)),\"\")","v":"Output"},{"$f":"IFERROR(INDEX($B$9:$I$408,$CM118,COLUMNS($CN$9:CR118)),\"\")","v":"-"},{"$f":"IFERROR(INDEX($B$9:$I$408,$CM118,COLUMNS($CN$9:CS118)),\"\")","v":"Capacity building: Technical capacity"},{"$f":"IFERROR(INDEX($B$9:$I$408,$CM118,COLUMNS($CN$9:CT118)),\"\")","v":"-"},{"$f":"IFERROR(INDEX($B$9:$I$408,$CM118,COLUMNS($CN$9:CU118)),\"\")","v":"Percentage"}]
[null,{"$f":"IF(ISBLANK('TA Indicator Bank'!B115),\"\",'TA Indicator Bank'!B115)","v":"TA111"},{"$f":"IF(ISBLANK('TA Indicator Bank'!C115),\"\",'TA Indicator Bank'!C115)","v":"Number of graduations after programme training"},{"$f":"IF(ISBLANK('TA Indicator Bank'!D115),\"\",'TA Indicator Bank'!D115)","v":"-"},{"$f":"IF(ISBLANK('TA Indicator Bank'!E115),\"\",'TA Indicator Bank'!E115)","v":"Output"},{"$f":"IF(ISBLANK('TA Indicator Bank'!F115),\"\",'TA Indicator Bank'!F115)","v":"-"},{"$f":"IF(ISBLANK('TA Indicator Bank'!G115),\"\",'TA Indicator Bank'!G115)","v":"Capacity building: Technical capacity"},{"$f":"IF(ISBLANK('TA Indicator Bank'!H115),\"\",'TA Indicator Bank'!H115)","v":"-"},{"$f":"IF(ISBLANK('TA Indicator Bank'!I115),\"\",'TA Indicator Bank'!I115)","v":"Number"},{"$f":"IF(ISBLANK('TA Indicator Bank'!J115),\"\",'TA Indicator Bank'!J115)","v":0},{"$f":"IF(ISBLANK('TA Indicator Bank'!K115),\"\",'TA Indicator Bank'!K115)","v":0},{"$f":"IF(ISBLANK('TA Indicator Bank'!L115),\"\",'TA Indicator Bank'!L115)","v":0},{"$f":"IF(ISBLANK('TA Indicator Bank'!M115),\"\",'TA Indicator Bank'!M115)","v":0},{"$f":"IF(ISBLANK('TA Indicator Bank'!N115),\"\",'TA Indicator Bank'!N115)","v":0},{"$f":"IF(ISBLANK('TA Indicator Bank'!O115),\"\",'TA Indicator Bank'!O115)","v":0},{"$f":"IF(ISBLANK('TA Indicator Bank'!P115),\"\",'TA Indicator Bank'!P115)","v":0},{"$f":"IF(ISBLANK('TA Indicator Bank'!Q115),\"\",'TA Indicator Bank'!Q115)","v":0},{"$f":"IF(ISBLANK('TA Indicator Bank'!R115),\"\",'TA Indicator Bank'!R115)","v":0},{"$f":"IF(ISBLANK('TA Indicator Bank'!S115),\"\",'TA Indicator Bank'!S115)","v":0},{"$f":"IF(ISBLANK('TA Indicator Bank'!T115),\"\",'TA Indicator Bank'!T115)","v":0},{"$f":"IF(ISBLANK('TA Indicator Bank'!U115),\"\",'TA Indicator Bank'!U115)","v":0},{"$f":"IF(ISBLANK('TA Indicator Bank'!V115),\"\",'TA Indicator Bank'!V115)","v":0},{"$f":"IF(ISBLANK('TA Indicator Bank'!W115),\"\",'TA Indicator Bank'!W115)","v":0},{"$f":"IF(ISBLANK('TA Indicator Bank'!X115),\"\",'TA Indicator Bank'!X115)","v":0},{"$f":"IF(ISBLANK('TA Indicator Bank'!Y115),\"\",'TA Indicator Bank'!Y115)","v":1},{"$f":"IF(ISBLANK('TA Indicator Bank'!Z115),\"\",'TA Indicator Bank'!Z115)","v":0},{"$f":"IF(ISBLANK('TA Indicator Bank'!AA115),\"\",'TA Indicator Bank'!AA115)","v":0},{"$f":"IF(ISBLANK('TA Indicator Bank'!AB115),\"\",'TA Indicator Bank'!AB115)","v":0},{"$f":"IF(ISBLANK('TA Indicator Bank'!AC115),\"\",'TA Indicator Bank'!AC115)","v":0},{"$f":"IF(ISBLANK('TA Indicator Bank'!AD115),\"\",'TA Indicator Bank'!AD115)","v":0},{"$f":"IF(ISBLANK('TA Indicator Bank'!AE115),\"\",'TA Indicator Bank'!AE115)","v":0},{"$f":"IF(ISBLANK('TA Indicator Bank'!AF115),\"\",'TA Indicator Bank'!AF115)","v":0},{"$f":"IF(ISBLANK('TA Indicator Bank'!AG115),\"\",'TA Indicator Bank'!AG115)","v":0},{"$f":"IF(ISBLANK('TA Indicator Bank'!AH115),\"\",'TA Indicator Bank'!AH115)","v":0},{"$f":"IF(ISBLANK('TA Indicator Bank'!AI115),\"\",'TA Indicator Bank'!AI115)","v":0},{"$f":"IF(ISBLANK('TA Indicator Bank'!AJ115),\"\",'TA Indicator Bank'!AJ115)","v":0},{"$f":"IF(ISBLANK('TA Indicator Bank'!AK115),\"\",'TA Indicator Bank'!AK115)","v":0},{"$f":"IF(ISBLANK('TA Indicator Bank'!AL115),\"\",'TA Indicator Bank'!AL115)","v":0},{"$f":"IF(ISBLANK('TA Indicator Bank'!AM115),\"\",'TA Indicator Bank'!AM115)","v":0},{"$f":"IF(ISBLANK('TA Indicator Bank'!AN115),\"\",'TA Indicator Bank'!AN115)","v":0},{"$f":"IF(ISBLANK('TA Indicator Bank'!AO115),\"\",'TA Indicator Bank'!AO115)","v":0},{"$f":"IF(ISBLANK('TA Indicator Bank'!AP115),\"\",'TA Indicator Bank'!AP115)","v":0},{"$f":"IF(ISBLANK('TA Indicator Bank'!AQ115),\"\",'TA Indicator Bank'!AQ115)","v":0},{"$f":"IF(ISBLANK('TA Indicator Bank'!AR115),\"\",'TA Indicator Bank'!AR115)","v":1},{"$f":"IF(ISBLANK('TA Indicator Bank'!AS115),\"\",'TA Indicator Bank'!AS115)","v":0},{"$f":"IF(ISBLANK('TA Indicator Bank'!AT115),\"\",'TA Indicator Bank'!AT115)","v":0},{"$f":"IF(AND(J119=1,J$410=1),1,0)","v":0},{"$f":"IF(AND(K119=1,K$410=1),1,0)","v":0},{"$f":"IF(AND(L119=1,L$410=1),1,0)","v":0},{"$f":"IF(AND(M119=1,M$410=1),1,0)","v":0},{"$f":"IF(AND(N119=1,N$410=1),1,0)","v":0},{"$f":"IF(AND(O119=1,O$410=1),1,0)","v":0},{"$f":"IF(AND(P119=1,P$410=1),1,0)","v":0},{"$f":"IF(AND(Q119=1,Q$410=1),1,0)","v":0},{"$f":"IF(AND(R119=1,R$410=1),1,0)","v":0},{"$f":"IF(AND(S119=1,S$410=1),1,0)","v":0},{"$f":"IF(AND(T119=1,T$410=1),1,0)","v":0},{"$f":"IF(AND(U119=1,U$410=1),1,0)","v":0},{"$f":"IF(AND(V119=1,V$410=1),1,0)","v":0},{"$f":"IF(AND(W119=1,W$410=1),1,0)","v":0},1,{"$f":"IF(AND(X119=1,X$410=1),1,0)","v":0},{"$f":"IF(AND(Y119=1,Y$410=1),1,0)","v":1},{"$f":"IF(AND(Z119=1,Z$410=1),1,0)","v":0},{"$f":"IF(AND(AA119=1,AA$410=1),1,0)","v":0},{"$f":"IF(AND(AB119=1,AB$410=1),1,0)","v":0},{"$f":"IF(AND(AC119=1,AC$410=1),1,0)","v":0},{"$f":"IF(AND(AD119=1,AD$410=1),1,0)","v":0},{"$f":"IF(AND(AE119=1,AE$410=1),1,0)","v":0},{"$f":"IF(AND(AF119=1,AF$410=1),1,0)","v":0},1,{"$f":"IF(AND(AG119=1,AG$410=1),1,0)","v":0},{"$f":"IF(AND(AH119=1,AH$410=1),1,0)","v":0},{"$f":"IF(AND(AI119=1,AI$410=1),1,0)","v":0},{"$f":"IF(AND(AJ119=1,AJ$410=1),1,0)","v":0},{"$f":"IF(AND(AK119=1,AK$410=1),1,0)","v":0},{"$f":"IF(AND(AL119=1,AL$410=1),1,0)","v":0},{"$f":"IF(AND(AM119=1,AM$410=1),1,0)","v":0},{"$f":"IF(AND(AN119=1,AN$410=1),1,0)","v":0},{"$f":"IF(AND(AO119=1,AO$410=1),1,0)","v":0},1,{"$f":"IF(AND(AP119=1,AP$410=1),1,0)","v":0},{"$f":"IF(AND(AQ119=1,AQ$410=1),1,0)","v":0},{"$f":"IF(AND(AR119=1,AR$410=1),1,0)","v":1},{"$f":"IF(AND(AS119=1,AS$410=1),1,0)","v":0},{"$f":"IF(AND(AT119=1,AT$410=1),1,0)","v":0},1,1,111,111,{"$f":"IFERROR(SMALL($CL$9:$CL$408,CK119),\"\")","v":111},{"$f":"IFERROR(INDEX($B$9:$I$408,$CM119,COLUMNS($CN$9:CN119)),\"\")","v":"TA111"},{"$f":"IFERROR(INDEX($B$9:$I$408,$CM119,COLUMNS($CN$9:CO119)),\"\")","v":"Number of graduations after programme training"},{"$f":"IFERROR(INDEX($B$9:$I$408,$CM119,COLUMNS($CN$9:CP119)),\"\")","v":"-"},{"$f":"IFERROR(INDEX($B$9:$I$408,$CM119,COLUMNS($CN$9:CQ119)),\"\")","v":"Output"},{"$f":"IFERROR(INDEX($B$9:$I$408,$CM119,COLUMNS($CN$9:CR119)),\"\")","v":"-"},{"$f":"IFERROR(INDEX($B$9:$I$408,$CM119,COLUMNS($CN$9:CS119)),\"\")","v":"Capacity building: Technical capacity"},{"$f":"IFERROR(INDEX($B$9:$I$408,$CM119,COLUMNS($CN$9:CT119)),\"\")","v":"-"},{"$f":"IFERROR(INDEX($B$9:$I$408,$CM119,COLUMNS($CN$9:CU119)),\"\")","v":"Number"}]
[null,{"$f":"IF(ISBLANK('TA Indicator Bank'!B116),\"\",'TA Indicator Bank'!B116)","v":"TA112"},{"$f":"IF(ISBLANK('TA Indicator Bank'!C116),\"\",'TA Indicator Bank'!C116)","v":"Number of participants improved processes"},{"$f":"IF(ISBLANK('TA Indicator Bank'!D116),\"\",'TA Indicator Bank'!D116)","v":"-"},{"$f":"IF(ISBLANK('TA Indicator Bank'!E116),\"\",'TA Indicator Bank'!E116)","v":"Output"},{"$f":"IF(ISBLANK('TA Indicator Bank'!F116),\"\",'TA Indicator Bank'!F116)","v":"-"},{"$f":"IF(ISBLANK('TA Indicator Bank'!G116),\"\",'TA Indicator Bank'!G116)","v":"Capacity building: Technical capacity"},{"$f":"IF(ISBLANK('TA Indicator Bank'!H116),\"\",'TA Indicator Bank'!H116)","v":"-"},{"$f":"IF(ISBLANK('TA Indicator Bank'!I116),\"\",'TA Indicator Bank'!I116)","v":"Number"},{"$f":"IF(ISBLANK('TA Indicator Bank'!J116),\"\",'TA Indicator Bank'!J116)","v":0},{"$f":"IF(ISBLANK('TA Indicator Bank'!K116),\"\",'TA Indicator Bank'!K116)","v":0},{"$f":"IF(ISBLANK('TA Indicator Bank'!L116),\"\",'TA Indicator Bank'!L116)","v":0},{"$f":"IF(ISBLANK('TA Indicator Bank'!M116),\"\",'TA Indicator Bank'!M116)","v":0},{"$f":"IF(ISBLANK('TA Indicator Bank'!N116),\"\",'TA Indicator Bank'!N116)","v":0},{"$f":"IF(ISBLANK('TA Indicator Bank'!O116),\"\",'TA Indicator Bank'!O116)","v":0},{"$f":"IF(ISBLANK('TA Indicator Bank'!P116),\"\",'TA Indicator Bank'!P116)","v":0},{"$f":"IF(ISBLANK('TA Indicator Bank'!Q116),\"\",'TA Indicator Bank'!Q116)","v":0},{"$f":"IF(ISBLANK('TA Indicator Bank'!R116),\"\",'TA Indicator Bank'!R116)","v":0},{"$f":"IF(ISBLANK('TA Indicator Bank'!S116),\"\",'TA Indicator Bank'!S116)","v":0},{"$f":"IF(ISBLANK('TA Indicator Bank'!T116),\"\",'TA Indicator Bank'!T116)","v":0},{"$f":"IF(ISBLANK('TA Indicator Bank'!U116),\"\",'TA Indicator Bank'!U116)","v":0},{"$f":"IF(ISBLANK('TA Indicator Bank'!V116),\"\",'TA Indicator Bank'!V116)","v":0},{"$f":"IF(ISBLANK('TA Indicator Bank'!W116),\"\",'TA Indicator Bank'!W116)","v":0},{"$f":"IF(ISBLANK('TA Indicator Bank'!X116),\"\",'TA Indicator Bank'!X116)","v":0},{"$f":"IF(ISBLANK('TA Indicator Bank'!Y116),\"\",'TA Indicator Bank'!Y116)","v":1},{"$f":"IF(ISBLANK('TA Indicator Bank'!Z116),\"\",'TA Indicator Bank'!Z116)","v":0},{"$f":"IF(ISBLANK('TA Indicator Bank'!AA116),\"\",'TA Indicator Bank'!AA116)","v":0},{"$f":"IF(ISBLANK('TA Indicator Bank'!AB116),\"\",'TA Indicator Bank'!AB116)","v":0},{"$f":"IF(ISBLANK('TA Indicator Bank'!AC116),\"\",'TA Indicator Bank'!AC116)","v":0},{"$f":"IF(ISBLANK('TA Indicator Bank'!AD116),\"\",'TA Indicator Bank'!AD116)","v":0},{"$f":"IF(ISBLANK('TA Indicator Bank'!AE116),\"\",'TA Indicator Bank'!AE116)","v":0},{"$f":"IF(ISBLANK('TA Indicator Bank'!AF116),\"\",'TA Indicator Bank'!AF116)","v":0},{"$f":"IF(ISBLANK('TA Indicator Bank'!AG116),\"\",'TA Indicator Bank'!AG116)","v":0},{"$f":"IF(ISBLANK('TA Indicator Bank'!AH116),\"\",'TA Indicator Bank'!AH116)","v":0},{"$f":"IF(ISBLANK('TA Indicator Bank'!AI116),\"\",'TA Indicator Bank'!AI116)","v":0},{"$f":"IF(ISBLANK('TA Indicator Bank'!AJ116),\"\",'TA Indicator Bank'!AJ116)","v":0},{"$f":"IF(ISBLANK('TA Indicator Bank'!AK116),\"\",'TA Indicator Bank'!AK116)","v":0},{"$f":"IF(ISBLANK('TA Indicator Bank'!AL116),\"\",'TA Indicator Bank'!AL116)","v":0},{"$f":"IF(ISBLANK('TA Indicator Bank'!AM116),\"\",'TA Indicator Bank'!AM116)","v":0},{"$f":"IF(ISBLANK('TA Indicator Bank'!AN116),\"\",'TA Indicator Bank'!AN116)","v":0},{"$f":"IF(ISBLANK('TA Indicator Bank'!AO116),\"\",'TA Indicator Bank'!AO116)","v":0},{"$f":"IF(ISBLANK('TA Indicator Bank'!AP116),\"\",'TA Indicator Bank'!AP116)","v":0},{"$f":"IF(ISBLANK('TA Indicator Bank'!AQ116),\"\",'TA Indicator Bank'!AQ116)","v":0},{"$f":"IF(ISBLANK('TA Indicator Bank'!AR116),\"\",'TA Indicator Bank'!AR116)","v":1},{"$f":"IF(ISBLANK('TA Indicator Bank'!AS116),\"\",'TA Indicator Bank'!AS116)","v":0},{"$f":"IF(ISBLANK('TA Indicator Bank'!AT116),\"\",'TA Indicator Bank'!AT116)","v":0},{"$f":"IF(AND(J120=1,J$410=1),1,0)","v":0},{"$f":"IF(AND(K120=1,K$410=1),1,0)","v":0},{"$f":"IF(AND(L120=1,L$410=1),1,0)","v":0},{"$f":"IF(AND(M120=1,M$410=1),1,0)","v":0},{"$f":"IF(AND(N120=1,N$410=1),1,0)","v":0},{"$f":"IF(AND(O120=1,O$410=1),1,0)","v":0},{"$f":"IF(AND(P120=1,P$410=1),1,0)","v":0},{"$f":"IF(AND(Q120=1,Q$410=1),1,0)","v":0},{"$f":"IF(AND(R120=1,R$410=1),1,0)","v":0},{"$f":"IF(AND(S120=1,S$410=1),1,0)","v":0},{"$f":"IF(AND(T120=1,T$410=1),1,0)","v":0},{"$f":"IF(AND(U120=1,U$410=1),1,0)","v":0},{"$f":"IF(AND(V120=1,V$410=1),1,0)","v":0},{"$f":"IF(AND(W120=1,W$410=1),1,0)","v":0},1,{"$f":"IF(AND(X120=1,X$410=1),1,0)","v":0},{"$f":"IF(AND(Y120=1,Y$410=1),1,0)","v":1},{"$f":"IF(AND(Z120=1,Z$410=1),1,0)","v":0},{"$f":"IF(AND(AA120=1,AA$410=1),1,0)","v":0},{"$f":"IF(AND(AB120=1,AB$410=1),1,0)","v":0},{"$f":"IF(AND(AC120=1,AC$410=1),1,0)","v":0},{"$f":"IF(AND(AD120=1,AD$410=1),1,0)","v":0},{"$f":"IF(AND(AE120=1,AE$410=1),1,0)","v":0},{"$f":"IF(AND(AF120=1,AF$410=1),1,0)","v":0},1,{"$f":"IF(AND(AG120=1,AG$410=1),1,0)","v":0},{"$f":"IF(AND(AH120=1,AH$410=1),1,0)","v":0},{"$f":"IF(AND(AI120=1,AI$410=1),1,0)","v":0},{"$f":"IF(AND(AJ120=1,AJ$410=1),1,0)","v":0},{"$f":"IF(AND(AK120=1,AK$410=1),1,0)","v":0},{"$f":"IF(AND(AL120=1,AL$410=1),1,0)","v":0},{"$f":"IF(AND(AM120=1,AM$410=1),1,0)","v":0},{"$f":"IF(AND(AN120=1,AN$410=1),1,0)","v":0},{"$f":"IF(AND(AO120=1,AO$410=1),1,0)","v":0},1,{"$f":"IF(AND(AP120=1,AP$410=1),1,0)","v":0},{"$f":"IF(AND(AQ120=1,AQ$410=1),1,0)","v":0},{"$f":"IF(AND(AR120=1,AR$410=1),1,0)","v":1},{"$f":"IF(AND(AS120=1,AS$410=1),1,0)","v":0},{"$f":"IF(AND(AT120=1,AT$410=1),1,0)","v":0},1,1,112,112,{"$f":"IFERROR(SMALL($CL$9:$CL$408,CK120),\"\")","v":112},{"$f":"IFERROR(INDEX($B$9:$I$408,$CM120,COLUMNS($CN$9:CN120)),\"\")","v":"TA112"},{"$f":"IFERROR(INDEX($B$9:$I$408,$CM120,COLUMNS($CN$9:CO120)),\"\")","v":"Number of participants improved processes"},{"$f":"IFERROR(INDEX($B$9:$I$408,$CM120,COLUMNS($CN$9:CP120)),\"\")","v":"-"},{"$f":"IFERROR(INDEX($B$9:$I$408,$CM120,COLUMNS($CN$9:CQ120)),\"\")","v":"Output"},{"$f":"IFERROR(INDEX($B$9:$I$408,$CM120,COLUMNS($CN$9:CR120)),\"\")","v":"-"},{"$f":"IFERROR(INDEX($B$9:$I$408,$CM120,COLUMNS($CN$9:CS120)),\"\")","v":"Capacity building: Technical capacity"},{"$f":"IFERROR(INDEX($B$9:$I$408,$CM120,COLUMNS($CN$9:CT120)),\"\")","v":"-"},{"$f":"IFERROR(INDEX($B$9:$I$408,$CM120,COLUMNS($CN$9:CU120)),\"\")","v":"Number"}]
[null,{"$f":"IF(ISBLANK('TA Indicator Bank'!B117),\"\",'TA Indicator Bank'!B117)","v":"TA113"},{"$f":"IF(ISBLANK('TA Indicator Bank'!C117),\"\",'TA Indicator Bank'!C117)","v":"Percentage of units that have better local representation"},{"$f":"IF(ISBLANK('TA Indicator Bank'!D117),\"\",'TA Indicator Bank'!D117)","v":"-"},{"$f":"IF(ISBLANK('TA Indicator Bank'!E117),\"\",'TA Indicator Bank'!E117)","v":"Output"},{"$f":"IF(ISBLANK('TA Indicator Bank'!F117),\"\",'TA Indicator Bank'!F117)","v":"-"},{"$f":"IF(ISBLANK('TA Indicator Bank'!G117),\"\",'TA Indicator Bank'!G117)","v":"Capacity building: Technical capacity"},{"$f":"IF(ISBLANK('TA Indicator Bank'!H117),\"\",'TA Indicator Bank'!H117)","v":"-"},{"$f":"IF(ISBLANK('TA Indicator Bank'!I117),\"\",'TA Indicator Bank'!I117)","v":"Percentage"},{"$f":"IF(ISBLANK('TA Indicator Bank'!J117),\"\",'TA Indicator Bank'!J117)","v":0},{"$f":"IF(ISBLANK('TA Indicator Bank'!K117),\"\",'TA Indicator Bank'!K117)","v":0},{"$f":"IF(ISBLANK('TA Indicator Bank'!L117),\"\",'TA Indicator Bank'!L117)","v":0},{"$f":"IF(ISBLANK('TA Indicator Bank'!M117),\"\",'TA Indicator Bank'!M117)","v":0},{"$f":"IF(ISBLANK('TA Indicator Bank'!N117),\"\",'TA Indicator Bank'!N117)","v":0},{"$f":"IF(ISBLANK('TA Indicator Bank'!O117),\"\",'TA Indicator Bank'!O117)","v":0},{"$f":"IF(ISBLANK('TA Indicator Bank'!P117),\"\",'TA Indicator Bank'!P117)","v":0},{"$f":"IF(ISBLANK('TA Indicator Bank'!Q117),\"\",'TA Indicator Bank'!Q117)","v":0},{"$f":"IF(ISBLANK('TA Indicator Bank'!R117),\"\",'TA Indicator Bank'!R117)","v":0},{"$f":"IF(ISBLANK('TA Indicator Bank'!S117),\"\",'TA Indicator Bank'!S117)","v":0},{"$f":"IF(ISBLANK('TA Indicator Bank'!T117),\"\",'TA Indicator Bank'!T117)","v":0},{"$f":"IF(ISBLANK('TA Indicator Bank'!U117),\"\",'TA Indicator Bank'!U117)","v":0},{"$f":"IF(ISBLANK('TA Indicator Bank'!V117),\"\",'TA Indicator Bank'!V117)","v":0},{"$f":"IF(ISBLANK('TA Indicator Bank'!W117),\"\",'TA Indicator Bank'!W117)","v":0},{"$f":"IF(ISBLANK('TA Indicator Bank'!X117),\"\",'TA Indicator Bank'!X117)","v":0},{"$f":"IF(ISBLANK('TA Indicator Bank'!Y117),\"\",'TA Indicator Bank'!Y117)","v":1},{"$f":"IF(ISBLANK('TA Indicator Bank'!Z117),\"\",'TA Indicator Bank'!Z117)","v":0},{"$f":"IF(ISBLANK('TA Indicator Bank'!AA117),\"\",'TA Indicator Bank'!AA117)","v":0},{"$f":"IF(ISBLANK('TA Indicator Bank'!AB117),\"\",'TA Indicator Bank'!AB117)","v":0},{"$f":"IF(ISBLANK('TA Indicator Bank'!AC117),\"\",'TA Indicator Bank'!AC117)","v":0},{"$f":"IF(ISBLANK('TA Indicator Bank'!AD117),\"\",'TA Indicator Bank'!AD117)","v":0},{"$f":"IF(ISBLANK('TA Indicator Bank'!AE117),\"\",'TA Indicator Bank'!AE117)","v":0},{"$f":"IF(ISBLANK('TA Indicator Bank'!AF117),\"\",'TA Indicator Bank'!AF117)","v":0},{"$f":"IF(ISBLANK('TA Indicator Bank'!AG117),\"\",'TA Indicator Bank'!AG117)","v":0},{"$f":"IF(ISBLANK('TA Indicator Bank'!AH117),\"\",'TA Indicator Bank'!AH117)","v":0},{"$f":"IF(ISBLANK('TA Indicator Bank'!AI117),\"\",'TA Indicator Bank'!AI117)","v":0},{"$f":"IF(ISBLANK('TA Indicator Bank'!AJ117),\"\",'TA Indicator Bank'!AJ117)","v":0},{"$f":"IF(ISBLANK('TA Indicator Bank'!AK117),\"\",'TA Indicator Bank'!AK117)","v":0},{"$f":"IF(ISBLANK('TA Indicator Bank'!AL117),\"\",'TA Indicator Bank'!AL117)","v":0},{"$f":"IF(ISBLANK('TA Indicator Bank'!AM117),\"\",'TA Indicator Bank'!AM117)","v":0},{"$f":"IF(ISBLANK('TA Indicator Bank'!AN117),\"\",'TA Indicator Bank'!AN117)","v":0},{"$f":"IF(ISBLANK('TA Indicator Bank'!AO117),\"\",'TA Indicator Bank'!AO117)","v":0},{"$f":"IF(ISBLANK('TA Indicator Bank'!AP117),\"\",'TA Indicator Bank'!AP117)","v":0},{"$f":"IF(ISBLANK('TA Indicator Bank'!AQ117),\"\",'TA Indicator Bank'!AQ117)","v":0},{"$f":"IF(ISBLANK('TA Indicator Bank'!AR117),\"\",'TA Indicator Bank'!AR117)","v":1},{"$f":"IF(ISBLANK('TA Indicator Bank'!AS117),\"\",'TA Indicator Bank'!AS117)","v":0},{"$f":"IF(ISBLANK('TA Indicator Bank'!AT117),\"\",'TA Indicator Bank'!AT117)","v":0},{"$f":"IF(AND(J121=1,J$410=1),1,0)","v":0},{"$f":"IF(AND(K121=1,K$410=1),1,0)","v":0},{"$f":"IF(AND(L121=1,L$410=1),1,0)","v":0},{"$f":"IF(AND(M121=1,M$410=1),1,0)","v":0},{"$f":"IF(AND(N121=1,N$410=1),1,0)","v":0},{"$f":"IF(AND(O121=1,O$410=1),1,0)","v":0},{"$f":"IF(AND(P121=1,P$410=1),1,0)","v":0},{"$f":"IF(AND(Q121=1,Q$410=1),1,0)","v":0},{"$f":"IF(AND(R121=1,R$410=1),1,0)","v":0},{"$f":"IF(AND(S121=1,S$410=1),1,0)","v":0},{"$f":"IF(AND(T121=1,T$410=1),1,0)","v":0},{"$f":"IF(AND(U121=1,U$410=1),1,0)","v":0},{"$f":"IF(AND(V121=1,V$410=1),1,0)","v":0},{"$f":"IF(AND(W121=1,W$410=1),1,0)","v":0},1,{"$f":"IF(AND(X121=1,X$410=1),1,0)","v":0},{"$f":"IF(AND(Y121=1,Y$410=1),1,0)","v":1},{"$f":"IF(AND(Z121=1,Z$410=1),1,0)","v":0},{"$f":"IF(AND(AA121=1,AA$410=1),1,0)","v":0},{"$f":"IF(AND(AB121=1,AB$410=1),1,0)","v":0},{"$f":"IF(AND(AC121=1,AC$410=1),1,0)","v":0},{"$f":"IF(AND(AD121=1,AD$410=1),1,0)","v":0},{"$f":"IF(AND(AE121=1,AE$410=1),1,0)","v":0},{"$f":"IF(AND(AF121=1,AF$410=1),1,0)","v":0},1,{"$f":"IF(AND(AG121=1,AG$410=1),1,0)","v":0},{"$f":"IF(AND(AH121=1,AH$410=1),1,0)","v":0},{"$f":"IF(AND(AI121=1,AI$410=1),1,0)","v":0},{"$f":"IF(AND(AJ121=1,AJ$410=1),1,0)","v":0},{"$f":"IF(AND(AK121=1,AK$410=1),1,0)","v":0},{"$f":"IF(AND(AL121=1,AL$410=1),1,0)","v":0},{"$f":"IF(AND(AM121=1,AM$410=1),1,0)","v":0},{"$f":"IF(AND(AN121=1,AN$410=1),1,0)","v":0},{"$f":"IF(AND(AO121=1,AO$410=1),1,0)","v":0},1,{"$f":"IF(AND(AP121=1,AP$410=1),1,0)","v":0},{"$f":"IF(AND(AQ121=1,AQ$410=1),1,0)","v":0},{"$f":"IF(AND(AR121=1,AR$410=1),1,0)","v":1},{"$f":"IF(AND(AS121=1,AS$410=1),1,0)","v":0},{"$f":"IF(AND(AT121=1,AT$410=1),1,0)","v":0},1,1,113,113,{"$f":"IFERROR(SMALL($CL$9:$CL$408,CK121),\"\")","v":113},{"$f":"IFERROR(INDEX($B$9:$I$408,$CM121,COLUMNS($CN$9:CN121)),\"\")","v":"TA113"},{"$f":"IFERROR(INDEX($B$9:$I$408,$CM121,COLUMNS($CN$9:CO121)),\"\")","v":"Percentage of units that have better local representation"},{"$f":"IFERROR(INDEX($B$9:$I$408,$CM121,COLUMNS($CN$9:CP121)),\"\")","v":"-"},{"$f":"IFERROR(INDEX($B$9:$I$408,$CM121,COLUMNS($CN$9:CQ121)),\"\")","v":"Output"},{"$f":"IFERROR(INDEX($B$9:$I$408,$CM121,COLUMNS($CN$9:CR121)),\"\")","v":"-"},{"$f":"IFERROR(INDEX($B$9:$I$408,$CM121,COLUMNS($CN$9:CS121)),\"\")","v":"Capacity building: Technical capacity"},{"$f":"IFERROR(INDEX($B$9:$I$408,$CM121,COLUMNS($CN$9:CT121)),\"\")","v":"-"},{"$f":"IFERROR(INDEX($B$9:$I$408,$CM121,COLUMNS($CN$9:CU121)),\"\")","v":"Percentage"}]
[null,{"$f":"IF(ISBLANK('TA Indicator Bank'!B118),\"\",'TA Indicator Bank'!B118)","v":"TA114"},{"$f":"IF(ISBLANK('TA Indicator Bank'!C118),\"\",'TA Indicator Bank'!C118)","v":"Percentage of units with better funding as result of increased capacity"},{"$f":"IF(ISBLANK('TA Indicator Bank'!D118),\"\",'TA Indicator Bank'!D118)","v":"-"},{"$f":"IF(ISBLANK('TA Indicator Bank'!E118),\"\",'TA Indicator Bank'!E118)","v":"Output"},{"$f":"IF(ISBLANK('TA Indicator Bank'!F118),\"\",'TA Indicator Bank'!F118)","v":"-"},{"$f":"IF(ISBLANK('TA Indicator Bank'!G118),\"\",'TA Indicator Bank'!G118)","v":"Capacity building: Technical capacity"},{"$f":"IF(ISBLANK('TA Indicator Bank'!H118),\"\",'TA Indicator Bank'!H118)","v":"-"},{"$f":"IF(ISBLANK('TA Indicator Bank'!I118),\"\",'TA Indicator Bank'!I118)","v":"Percentage"},{"$f":"IF(ISBLANK('TA Indicator Bank'!J118),\"\",'TA Indicator Bank'!J118)","v":0},{"$f":"IF(ISBLANK('TA Indicator Bank'!K118),\"\",'TA Indicator Bank'!K118)","v":0},{"$f":"IF(ISBLANK('TA Indicator Bank'!L118),\"\",'TA Indicator Bank'!L118)","v":0},{"$f":"IF(ISBLANK('TA Indicator Bank'!M118),\"\",'TA Indicator Bank'!M118)","v":0},{"$f":"IF(ISBLANK('TA Indicator Bank'!N118),\"\",'TA Indicator Bank'!N118)","v":0},{"$f":"IF(ISBLANK('TA Indicator Bank'!O118),\"\",'TA Indicator Bank'!O118)","v":0},{"$f":"IF(ISBLANK('TA Indicator Bank'!P118),\"\",'TA Indicator Bank'!P118)","v":0},{"$f":"IF(ISBLANK('TA Indicator Bank'!Q118),\"\",'TA Indicator Bank'!Q118)","v":0},{"$f":"IF(ISBLANK('TA Indicator Bank'!R118),\"\",'TA Indicator Bank'!R118)","v":0},{"$f":"IF(ISBLANK('TA Indicator Bank'!S118),\"\",'TA Indicator Bank'!S118)","v":0},{"$f":"IF(ISBLANK('TA Indicator Bank'!T118),\"\",'TA Indicator Bank'!T118)","v":0},{"$f":"IF(ISBLANK('TA Indicator Bank'!U118),\"\",'TA Indicator Bank'!U118)","v":0},{"$f":"IF(ISBLANK('TA Indicator Bank'!V118),\"\",'TA Indicator Bank'!V118)","v":0},{"$f":"IF(ISBLANK('TA Indicator Bank'!W118),\"\",'TA Indicator Bank'!W118)","v":0},{"$f":"IF(ISBLANK('TA Indicator Bank'!X118),\"\",'TA Indicator Bank'!X118)","v":0},{"$f":"IF(ISBLANK('TA Indicator Bank'!Y118),\"\",'TA Indicator Bank'!Y118)","v":1},{"$f":"IF(ISBLANK('TA Indicator Bank'!Z118),\"\",'TA Indicator Bank'!Z118)","v":0},{"$f":"IF(ISBLANK('TA Indicator Bank'!AA118),\"\",'TA Indicator Bank'!AA118)","v":0},{"$f":"IF(ISBLANK('TA Indicator Bank'!AB118),\"\",'TA Indicator Bank'!AB118)","v":0},{"$f":"IF(ISBLANK('TA Indicator Bank'!AC118),\"\",'TA Indicator Bank'!AC118)","v":0},{"$f":"IF(ISBLANK('TA Indicator Bank'!AD118),\"\",'TA Indicator Bank'!AD118)","v":0},{"$f":"IF(ISBLANK('TA Indicator Bank'!AE118),\"\",'TA Indicator Bank'!AE118)","v":0},{"$f":"IF(ISBLANK('TA Indicator Bank'!AF118),\"\",'TA Indicator Bank'!AF118)","v":0},{"$f":"IF(ISBLANK('TA Indicator Bank'!AG118),\"\",'TA Indicator Bank'!AG118)","v":0},{"$f":"IF(ISBLANK('TA Indicator Bank'!AH118),\"\",'TA Indicator Bank'!AH118)","v":0},{"$f":"IF(ISBLANK('TA Indicator Bank'!AI118),\"\",'TA Indicator Bank'!AI118)","v":0},{"$f":"IF(ISBLANK('TA Indicator Bank'!AJ118),\"\",'TA Indicator Bank'!AJ118)","v":0},{"$f":"IF(ISBLANK('TA Indicator Bank'!AK118),\"\",'TA Indicator Bank'!AK118)","v":0},{"$f":"IF(ISBLANK('TA Indicator Bank'!AL118),\"\",'TA Indicator Bank'!AL118)","v":0},{"$f":"IF(ISBLANK('TA Indicator Bank'!AM118),\"\",'TA Indicator Bank'!AM118)","v":0},{"$f":"IF(ISBLANK('TA Indicator Bank'!AN118),\"\",'TA Indicator Bank'!AN118)","v":0},{"$f":"IF(ISBLANK('TA Indicator Bank'!AO118),\"\",'TA Indicator Bank'!AO118)","v":0},{"$f":"IF(ISBLANK('TA Indicator Bank'!AP118),\"\",'TA Indicator Bank'!AP118)","v":0},{"$f":"IF(ISBLANK('TA Indicator Bank'!AQ118),\"\",'TA Indicator Bank'!AQ118)","v":0},{"$f":"IF(ISBLANK('TA Indicator Bank'!AR118),\"\",'TA Indicator Bank'!AR118)","v":1},{"$f":"IF(ISBLANK('TA Indicator Bank'!AS118),\"\",'TA Indicator Bank'!AS118)","v":0},{"$f":"IF(ISBLANK('TA Indicator Bank'!AT118),\"\",'TA Indicator Bank'!AT118)","v":0},{"$f":"IF(AND(J122=1,J$410=1),1,0)","v":0},{"$f":"IF(AND(K122=1,K$410=1),1,0)","v":0},{"$f":"IF(AND(L122=1,L$410=1),1,0)","v":0},{"$f":"IF(AND(M122=1,M$410=1),1,0)","v":0},{"$f":"IF(AND(N122=1,N$410=1),1,0)","v":0},{"$f":"IF(AND(O122=1,O$410=1),1,0)","v":0},{"$f":"IF(AND(P122=1,P$410=1),1,0)","v":0},{"$f":"IF(AND(Q122=1,Q$410=1),1,0)","v":0},{"$f":"IF(AND(R122=1,R$410=1),1,0)","v":0},{"$f":"IF(AND(S122=1,S$410=1),1,0)","v":0},{"$f":"IF(AND(T122=1,T$410=1),1,0)","v":0},{"$f":"IF(AND(U122=1,U$410=1),1,0)","v":0},{"$f":"IF(AND(V122=1,V$410=1),1,0)","v":0},{"$f":"IF(AND(W122=1,W$410=1),1,0)","v":0},1,{"$f":"IF(AND(X122=1,X$410=1),1,0)","v":0},{"$f":"IF(AND(Y122=1,Y$410=1),1,0)","v":1},{"$f":"IF(AND(Z122=1,Z$410=1),1,0)","v":0},{"$f":"IF(AND(AA122=1,AA$410=1),1,0)","v":0},{"$f":"IF(AND(AB122=1,AB$410=1),1,0)","v":0},{"$f":"IF(AND(AC122=1,AC$410=1),1,0)","v":0},{"$f":"IF(AND(AD122=1,AD$410=1),1,0)","v":0},{"$f":"IF(AND(AE122=1,AE$410=1),1,0)","v":0},{"$f":"IF(AND(AF122=1,AF$410=1),1,0)","v":0},1,{"$f":"IF(AND(AG122=1,AG$410=1),1,0)","v":0},{"$f":"IF(AND(AH122=1,AH$410=1),1,0)","v":0},{"$f":"IF(AND(AI122=1,AI$410=1),1,0)","v":0},{"$f":"IF(AND(AJ122=1,AJ$410=1),1,0)","v":0},{"$f":"IF(AND(AK122=1,AK$410=1),1,0)","v":0},{"$f":"IF(AND(AL122=1,AL$410=1),1,0)","v":0},{"$f":"IF(AND(AM122=1,AM$410=1),1,0)","v":0},{"$f":"IF(AND(AN122=1,AN$410=1),1,0)","v":0},{"$f":"IF(AND(AO122=1,AO$410=1),1,0)","v":0},1,{"$f":"IF(AND(AP122=1,AP$410=1),1,0)","v":0},{"$f":"IF(AND(AQ122=1,AQ$410=1),1,0)","v":0},{"$f":"IF(AND(AR122=1,AR$410=1),1,0)","v":1},{"$f":"IF(AND(AS122=1,AS$410=1),1,0)","v":0},{"$f":"IF(AND(AT122=1,AT$410=1),1,0)","v":0},1,1,114,114,{"$f":"IFERROR(SMALL($CL$9:$CL$408,CK122),\"\")","v":114},{"$f":"IFERROR(INDEX($B$9:$I$408,$CM122,COLUMNS($CN$9:CN122)),\"\")","v":"TA114"},{"$f":"IFERROR(INDEX($B$9:$I$408,$CM122,COLUMNS($CN$9:CO122)),\"\")","v":"Percentage of units with better funding as result of increased capacity"},{"$f":"IFERROR(INDEX($B$9:$I$408,$CM122,COLUMNS($CN$9:CP122)),\"\")","v":"-"},{"$f":"IFERROR(INDEX($B$9:$I$408,$CM122,COLUMNS($CN$9:CQ122)),\"\")","v":"Output"},{"$f":"IFERROR(INDEX($B$9:$I$408,$CM122,COLUMNS($CN$9:CR122)),\"\")","v":"-"},{"$f":"IFERROR(INDEX($B$9:$I$408,$CM122,COLUMNS($CN$9:CS122)),\"\")","v":"Capacity building: Technical capacity"},{"$f":"IFERROR(INDEX($B$9:$I$408,$CM122,COLUMNS($CN$9:CT122)),\"\")","v":"-"},{"$f":"IFERROR(INDEX($B$9:$I$408,$CM122,COLUMNS($CN$9:CU122)),\"\")","v":"Percentage"}]
[null,{"$f":"IF(ISBLANK('TA Indicator Bank'!B119),\"\",'TA Indicator Bank'!B119)","v":"TA115"},{"$f":"IF(ISBLANK('TA Indicator Bank'!C119),\"\",'TA Indicator Bank'!C119)","v":"Minimum amount of events organised"},{"$f":"IF(ISBLANK('TA Indicator Bank'!D119),\"\",'TA Indicator Bank'!D119)","v":"-"},{"$f":"IF(ISBLANK('TA Indicator Bank'!E119),\"\",'TA Indicator Bank'!E119)","v":"Activity"},{"$f":"IF(ISBLANK('TA Indicator Bank'!F119),\"\",'TA Indicator Bank'!F119)","v":"Conferences, seminars or networking events; Public awareness campaigns"},{"$f":"IF(ISBLANK('TA Indicator Bank'!G119),\"\",'TA Indicator Bank'!G119)","v":"-"},{"$f":"IF(ISBLANK('TA Indicator Bank'!H119),\"\",'TA Indicator Bank'!H119)","v":"-"},{"$f":"IF(ISBLANK('TA Indicator Bank'!I119),\"\",'TA Indicator Bank'!I119)","v":"Yes/No"},{"$f":"IF(ISBLANK('TA Indicator Bank'!J119),\"\",'TA Indicator Bank'!J119)","v":0},{"$f":"IF(ISBLANK('TA Indicator Bank'!K119),\"\",'TA Indicator Bank'!K119)","v":0},{"$f":"IF(ISBLANK('TA Indicator Bank'!L119),\"\",'TA Indicator Bank'!L119)","v":1},{"$f":"IF(ISBLANK('TA Indicator Bank'!M119),\"\",'TA Indicator Bank'!M119)","v":0},{"$f":"IF(ISBLANK('TA Indicator Bank'!N119),\"\",'TA Indicator Bank'!N119)","v":0},{"$f":"IF(ISBLANK('TA Indicator Bank'!O119),\"\",'TA Indicator Bank'!O119)","v":0},{"$f":"IF(ISBLANK('TA Indicator Bank'!P119),\"\",'TA Indicator Bank'!P119)","v":0},{"$f":"IF(ISBLANK('TA Indicator Bank'!Q119),\"\",'TA Indicator Bank'!Q119)","v":0},{"$f":"IF(ISBLANK('TA Indicator Bank'!R119),\"\",'TA Indicator Bank'!R119)","v":0},{"$f":"IF(ISBLANK('TA Indicator Bank'!S119),\"\",'TA Indicator Bank'!S119)","v":1},{"$f":"IF(ISBLANK('TA Indicator Bank'!T119),\"\",'TA Indicator Bank'!T119)","v":0},{"$f":"IF(ISBLANK('TA Indicator Bank'!U119),\"\",'TA Indicator Bank'!U119)","v":0},{"$f":"IF(ISBLANK('TA Indicator Bank'!V119),\"\",'TA Indicator Bank'!V119)","v":0},{"$f":"IF(ISBLANK('TA Indicator Bank'!W119),\"\",'TA Indicator Bank'!W119)","v":0},{"$f":"IF(ISBLANK('TA Indicator Bank'!X119),\"\",'TA Indicator Bank'!X119)","v":0},{"$f":"IF(ISBLANK('TA Indicator Bank'!Y119),\"\",'TA Indicator Bank'!Y119)","v":0},{"$f":"IF(ISBLANK('TA Indicator Bank'!Z119),\"\",'TA Indicator Bank'!Z119)","v":0},{"$f":"IF(ISBLANK('TA Indicator Bank'!AA119),\"\",'TA Indicator Bank'!AA119)","v":0},{"$f":"IF(ISBLANK('TA Indicator Bank'!AB119),\"\",'TA Indicator Bank'!AB119)","v":0},{"$f":"IF(ISBLANK('TA Indicator Bank'!AC119),\"\",'TA Indicator Bank'!AC119)","v":0},{"$f":"IF(ISBLANK('TA Indicator Bank'!AD119),\"\",'TA Indicator Bank'!AD119)","v":0},{"$f":"IF(ISBLANK('TA Indicator Bank'!AE119),\"\",'TA Indicator Bank'!AE119)","v":0},{"$f":"IF(ISBLANK('TA Indicator Bank'!AF119),\"\",'TA Indicator Bank'!AF119)","v":0},{"$f":"IF(ISBLANK('TA Indicator Bank'!AG119),\"\",'TA Indicator Bank'!AG119)","v":0},{"$f":"IF(ISBLANK('TA Indicator Bank'!AH119),\"\",'TA Indicator Bank'!AH119)","v":0},{"$f":"IF(ISBLANK('TA Indicator Bank'!AI119),\"\",'TA Indicator Bank'!AI119)","v":0},{"$f":"IF(ISBLANK('TA Indicator Bank'!AJ119),\"\",'TA Indicator Bank'!AJ119)","v":0},{"$f":"IF(ISBLANK('TA Indicator Bank'!AK119),\"\",'TA Indicator Bank'!AK119)","v":0},{"$f":"IF(ISBLANK('TA Indicator Bank'!AL119),\"\",'TA Indicator Bank'!AL119)","v":0},{"$f":"IF(ISBLANK('TA Indicator Bank'!AM119),\"\",'TA Indicator Bank'!AM119)","v":0},{"$f":"IF(ISBLANK('TA Indicator Bank'!AN119),\"\",'TA Indicator Bank'!AN119)","v":0},{"$f":"IF(ISBLANK('TA Indicator Bank'!AO119),\"\",'TA Indicator Bank'!AO119)","v":0},{"$f":"IF(ISBLANK('TA Indicator Bank'!AP119),\"\",'TA Indicator Bank'!AP119)","v":1},{"$f":"IF(ISBLANK('TA Indicator Bank'!AQ119),\"\",'TA Indicator Bank'!AQ119)","v":0},{"$f":"IF(ISBLANK('TA Indicator Bank'!AR119),\"\",'TA Indicator Bank'!AR119)","v":0},{"$f":"IF(ISBLANK('TA Indicator Bank'!AS119),\"\",'TA Indicator Bank'!AS119)","v":0},{"$f":"IF(ISBLANK('TA Indicator Bank'!AT119),\"\",'TA Indicator Bank'!AT119)","v":0},{"$f":"IF(AND(J123=1,J$410=1),1,0)","v":0},{"$f":"IF(AND(K123=1,K$410=1),1,0)","v":0},{"$f":"IF(AND(L123=1,L$410=1),1,0)","v":1},{"$f":"IF(AND(M123=1,M$410=1),1,0)","v":0},{"$f":"IF(AND(N123=1,N$410=1),1,0)","v":0},{"$f":"IF(AND(O123=1,O$410=1),1,0)","v":0},{"$f":"IF(AND(P123=1,P$410=1),1,0)","v":0},{"$f":"IF(AND(Q123=1,Q$410=1),1,0)","v":0},{"$f":"IF(AND(R123=1,R$410=1),1,0)","v":0},{"$f":"IF(AND(S123=1,S$410=1),1,0)","v":1},{"$f":"IF(AND(T123=1,T$410=1),1,0)","v":0},{"$f":"IF(AND(U123=1,U$410=1),1,0)","v":0},{"$f":"IF(AND(V123=1,V$410=1),1,0)","v":0},{"$f":"IF(AND(W123=1,W$410=1),1,0)","v":0},1,{"$f":"IF(AND(X123=1,X$410=1),1,0)","v":0},{"$f":"IF(AND(Y123=1,Y$410=1),1,0)","v":0},{"$f":"IF(AND(Z123=1,Z$410=1),1,0)","v":0},{"$f":"IF(AND(AA123=1,AA$410=1),1,0)","v":0},{"$f":"IF(AND(AB123=1,AB$410=1),1,0)","v":0},{"$f":"IF(AND(AC123=1,AC$410=1),1,0)","v":0},{"$f":"IF(AND(AD123=1,AD$410=1),1,0)","v":0},{"$f":"IF(AND(AE123=1,AE$410=1),1,0)","v":0},{"$f":"IF(AND(AF123=1,AF$410=1),1,0)","v":0},1,{"$f":"IF(AND(AG123=1,AG$410=1),1,0)","v":0},{"$f":"IF(AND(AH123=1,AH$410=1),1,0)","v":0},{"$f":"IF(AND(AI123=1,AI$410=1),1,0)","v":0},{"$f":"IF(AND(AJ123=1,AJ$410=1),1,0)","v":0},{"$f":"IF(AND(AK123=1,AK$410=1),1,0)","v":0},{"$f":"IF(AND(AL123=1,AL$410=1),1,0)","v":0},{"$f":"IF(AND(AM123=1,AM$410=1),1,0)","v":0},{"$f":"IF(AND(AN123=1,AN$410=1),1,0)","v":0},{"$f":"IF(AND(AO123=1,AO$410=1),1,0)","v":0},1,{"$f":"IF(AND(AP123=1,AP$410=1),1,0)","v":1},{"$f":"IF(AND(AQ123=1,AQ$410=1),1,0)","v":0},{"$f":"IF(AND(AR123=1,AR$410=1),1,0)","v":0},{"$f":"IF(AND(AS123=1,AS$410=1),1,0)","v":0},{"$f":"IF(AND(AT123=1,AT$410=1),1,0)","v":0},1,1,115,115,{"$f":"IFERROR(SMALL($CL$9:$CL$408,CK123),\"\")","v":115},{"$f":"IFERROR(INDEX($B$9:$I$408,$CM123,COLUMNS($CN$9:CN123)),\"\")","v":"TA115"},{"$f":"IFERROR(INDEX($B$9:$I$408,$CM123,COLUMNS($CN$9:CO123)),\"\")","v":"Minimum amount of events organised"},{"$f":"IFERROR(INDEX($B$9:$I$408,$CM123,COLUMNS($CN$9:CP123)),\"\")","v":"-"},{"$f":"IFERROR(INDEX($B$9:$I$408,$CM123,COLUMNS($CN$9:CQ123)),\"\")","v":"Activity"},{"$f":"IFERROR(INDEX($B$9:$I$408,$CM123,COLUMNS($CN$9:CR123)),\"\")","v":"Conferences, seminars or networking events; Public awareness campaigns"},{"$f":"IFERROR(INDEX($B$9:$I$408,$CM123,COLUMNS($CN$9:CS123)),\"\")","v":"-"},{"$f":"IFERROR(INDEX($B$9:$I$408,$CM123,COLUMNS($CN$9:CT123)),\"\")","v":"-"},{"$f":"IFERROR(INDEX($B$9:$I$408,$CM123,COLUMNS($CN$9:CU123)),\"\")","v":"Yes/No"}]
[null,{"$f":"IF(ISBLANK('TA Indicator Bank'!B120),\"\",'TA Indicator Bank'!B120)","v":"TA116"},{"$f":"IF(ISBLANK('TA Indicator Bank'!C120),\"\",'TA Indicator Bank'!C120)","v":"Number of policymakers that have increased awareness"},{"$f":"IF(ISBLANK('TA Indicator Bank'!D120),\"\",'TA Indicator Bank'!D120)","v":"-"},{"$f":"IF(ISBLANK('TA Indicator Bank'!E120),\"\",'TA Indicator Bank'!E120)","v":"Output"},{"$f":"IF(ISBLANK('TA Indicator Bank'!F120),\"\",'TA Indicator Bank'!F120)","v":"-"},{"$f":"IF(ISBLANK('TA Indicator Bank'!G120),\"\",'TA Indicator Bank'!G120)","v":"Awareness raising"},{"$f":"IF(ISBLANK('TA Indicator Bank'!H120),\"\",'TA Indicator Bank'!H120)","v":"-"},{"$f":"IF(ISBLANK('TA Indicator Bank'!I120),\"\",'TA Indicator Bank'!I120)","v":"Number"},{"$f":"IF(ISBLANK('TA Indicator Bank'!J120),\"\",'TA Indicator Bank'!J120)","v":0},{"$f":"IF(ISBLANK('TA Indicator Bank'!K120),\"\",'TA Indicator Bank'!K120)","v":0},{"$f":"IF(ISBLANK('TA Indicator Bank'!L120),\"\",'TA Indicator Bank'!L120)","v":0},{"$f":"IF(ISBLANK('TA Indicator Bank'!M120),\"\",'TA Indicator Bank'!M120)","v":0},{"$f":"IF(ISBLANK('TA Indicator Bank'!N120),\"\",'TA Indicator Bank'!N120)","v":0},{"$f":"IF(ISBLANK('TA Indicator Bank'!O120),\"\",'TA Indicator Bank'!O120)","v":0},{"$f":"IF(ISBLANK('TA Indicator Bank'!P120),\"\",'TA Indicator Bank'!P120)","v":0},{"$f":"IF(ISBLANK('TA Indicator Bank'!Q120),\"\",'TA Indicator Bank'!Q120)","v":0},{"$f":"IF(ISBLANK('TA Indicator Bank'!R120),\"\",'TA Indicator Bank'!R120)","v":0},{"$f":"IF(ISBLANK('TA Indicator Bank'!S120),\"\",'TA Indicator Bank'!S120)","v":0},{"$f":"IF(ISBLANK('TA Indicator Bank'!T120),\"\",'TA Indicator Bank'!T120)","v":0},{"$f":"IF(ISBLANK('TA Indicator Bank'!U120),\"\",'TA Indicator Bank'!U120)","v":0},{"$f":"IF(ISBLANK('TA Indicator Bank'!V120),\"\",'TA Indicator Bank'!V120)","v":0},{"$f":"IF(ISBLANK('TA Indicator Bank'!W120),\"\",'TA Indicator Bank'!W120)","v":0},{"$f":"IF(ISBLANK('TA Indicator Bank'!X120),\"\",'TA Indicator Bank'!X120)","v":0},{"$f":"IF(ISBLANK('TA Indicator Bank'!Y120),\"\",'TA Indicator Bank'!Y120)","v":0},{"$f":"IF(ISBLANK('TA Indicator Bank'!Z120),\"\",'TA Indicator Bank'!Z120)","v":1},{"$f":"IF(ISBLANK('TA Indicator Bank'!AA120),\"\",'TA Indicator Bank'!AA120)","v":0},{"$f":"IF(ISBLANK('TA Indicator Bank'!AB120),\"\",'TA Indicator Bank'!AB120)","v":0},{"$f":"IF(ISBLANK('TA Indicator Bank'!AC120),\"\",'TA Indicator Bank'!AC120)","v":0},{"$f":"IF(ISBLANK('TA Indicator Bank'!AD120),\"\",'TA Indicator Bank'!AD120)","v":0},{"$f":"IF(ISBLANK('TA Indicator Bank'!AE120),\"\",'TA Indicator Bank'!AE120)","v":0},{"$f":"IF(ISBLANK('TA Indicator Bank'!AF120),\"\",'TA Indicator Bank'!AF120)","v":0},{"$f":"IF(ISBLANK('TA Indicator Bank'!AG120),\"\",'TA Indicator Bank'!AG120)","v":0},{"$f":"IF(ISBLANK('TA Indicator Bank'!AH120),\"\",'TA Indicator Bank'!AH120)","v":0},{"$f":"IF(ISBLANK('TA Indicator Bank'!AI120),\"\",'TA Indicator Bank'!AI120)","v":0},{"$f":"IF(ISBLANK('TA Indicator Bank'!AJ120),\"\",'TA Indicator Bank'!AJ120)","v":0},{"$f":"IF(ISBLANK('TA Indicator Bank'!AK120),\"\",'TA Indicator Bank'!AK120)","v":0},{"$f":"IF(ISBLANK('TA Indicator Bank'!AL120),\"\",'TA Indicator Bank'!AL120)","v":0},{"$f":"IF(ISBLANK('TA Indicator Bank'!AM120),\"\",'TA Indicator Bank'!AM120)","v":0},{"$f":"IF(ISBLANK('TA Indicator Bank'!AN120),\"\",'TA Indicator Bank'!AN120)","v":0},{"$f":"IF(ISBLANK('TA Indicator Bank'!AO120),\"\",'TA Indicator Bank'!AO120)","v":0},{"$f":"IF(ISBLANK('TA Indicator Bank'!AP120),\"\",'TA Indicator Bank'!AP120)","v":0},{"$f":"IF(ISBLANK('TA Indicator Bank'!AQ120),\"\",'TA Indicator Bank'!AQ120)","v":0},{"$f":"IF(ISBLANK('TA Indicator Bank'!AR120),\"\",'TA Indicator Bank'!AR120)","v":1},{"$f":"IF(ISBLANK('TA Indicator Bank'!AS120),\"\",'TA Indicator Bank'!AS120)","v":0},{"$f":"IF(ISBLANK('TA Indicator Bank'!AT120),\"\",'TA Indicator Bank'!AT120)","v":0},{"$f":"IF(AND(J124=1,J$410=1),1,0)","v":0},{"$f":"IF(AND(K124=1,K$410=1),1,0)","v":0},{"$f":"IF(AND(L124=1,L$410=1),1,0)","v":0},{"$f":"IF(AND(M124=1,M$410=1),1,0)","v":0},{"$f":"IF(AND(N124=1,N$410=1),1,0)","v":0},{"$f":"IF(AND(O124=1,O$410=1),1,0)","v":0},{"$f":"IF(AND(P124=1,P$410=1),1,0)","v":0},{"$f":"IF(AND(Q124=1,Q$410=1),1,0)","v":0},{"$f":"IF(AND(R124=1,R$410=1),1,0)","v":0},{"$f":"IF(AND(S124=1,S$410=1),1,0)","v":0},{"$f":"IF(AND(T124=1,T$410=1),1,0)","v":0},{"$f":"IF(AND(U124=1,U$410=1),1,0)","v":0},{"$f":"IF(AND(V124=1,V$410=1),1,0)","v":0},{"$f":"IF(AND(W124=1,W$410=1),1,0)","v":0},1,{"$f":"IF(AND(X124=1,X$410=1),1,0)","v":0},{"$f":"IF(AND(Y124=1,Y$410=1),1,0)","v":0},{"$f":"IF(AND(Z124=1,Z$410=1),1,0)","v":1},{"$f":"IF(AND(AA124=1,AA$410=1),1,0)","v":0},{"$f":"IF(AND(AB124=1,AB$410=1),1,0)","v":0},{"$f":"IF(AND(AC124=1,AC$410=1),1,0)","v":0},{"$f":"IF(AND(AD124=1,AD$410=1),1,0)","v":0},{"$f":"IF(AND(AE124=1,AE$410=1),1,0)","v":0},{"$f":"IF(AND(AF124=1,AF$410=1),1,0)","v":0},1,{"$f":"IF(AND(AG124=1,AG$410=1),1,0)","v":0},{"$f":"IF(AND(AH124=1,AH$410=1),1,0)","v":0},{"$f":"IF(AND(AI124=1,AI$410=1),1,0)","v":0},{"$f":"IF(AND(AJ124=1,AJ$410=1),1,0)","v":0},{"$f":"IF(AND(AK124=1,AK$410=1),1,0)","v":0},{"$f":"IF(AND(AL124=1,AL$410=1),1,0)","v":0},{"$f":"IF(AND(AM124=1,AM$410=1),1,0)","v":0},{"$f":"IF(AND(AN124=1,AN$410=1),1,0)","v":0},{"$f":"IF(AND(AO124=1,AO$410=1),1,0)","v":0},1,{"$f":"IF(AND(AP124=1,AP$410=1),1,0)","v":0},{"$f":"IF(AND(AQ124=1,AQ$410=1),1,0)","v":0},{"$f":"IF(AND(AR124=1,AR$410=1),1,0)","v":1},{"$f":"IF(AND(AS124=1,AS$410=1),1,0)","v":0},{"$f":"IF(AND(AT124=1,AT$410=1),1,0)","v":0},1,1,116,116,{"$f":"IFERROR(SMALL($CL$9:$CL$408,CK124),\"\")","v":116},{"$f":"IFERROR(INDEX($B$9:$I$408,$CM124,COLUMNS($CN$9:CN124)),\"\")","v":"TA116"},{"$f":"IFERROR(INDEX($B$9:$I$408,$CM124,COLUMNS($CN$9:CO124)),\"\")","v":"Number of policymakers that have increased awareness"},{"$f":"IFERROR(INDEX($B$9:$I$408,$CM124,COLUMNS($CN$9:CP124)),\"\")","v":"-"},{"$f":"IFERROR(INDEX($B$9:$I$408,$CM124,COLUMNS($CN$9:CQ124)),\"\")","v":"Output"},{"$f":"IFERROR(INDEX($B$9:$I$408,$CM124,COLUMNS($CN$9:CR124)),\"\")","v":"-"},{"$f":"IFERROR(INDEX($B$9:$I$408,$CM124,COLUMNS($CN$9:CS124)),\"\")","v":"Awareness raising"},{"$f":"IFERROR(INDEX($B$9:$I$408,$CM124,COLUMNS($CN$9:CT124)),\"\")","v":"-"},{"$f":"IFERROR(INDEX($B$9:$I$408,$CM124,COLUMNS($CN$9:CU124)),\"\")","v":"Number"}]
[null,{"$f":"IF(ISBLANK('TA Indicator Bank'!B121),\"\",'TA Indicator Bank'!B121)","v":"TA117"},{"$f":"IF(ISBLANK('TA Indicator Bank'!C121),\"\",'TA Indicator Bank'!C121)","v":"Number of media events"},{"$f":"IF(ISBLANK('TA Indicator Bank'!D121),\"\",'TA Indicator Bank'!D121)","v":"-"},{"$f":"IF(ISBLANK('TA Indicator Bank'!E121),\"\",'TA Indicator Bank'!E121)","v":"Activity"},{"$f":"IF(ISBLANK('TA Indicator Bank'!F121),\"\",'TA Indicator Bank'!F121)","v":"Conferences, seminars or networking events; Public awareness campaigns"},{"$f":"IF(ISBLANK('TA Indicator Bank'!G121),\"\",'TA Indicator Bank'!G121)","v":"-"},{"$f":"IF(ISBLANK('TA Indicator Bank'!H121),\"\",'TA Indicator Bank'!H121)","v":"-"},{"$f":"IF(ISBLANK('TA Indicator Bank'!I121),\"\",'TA Indicator Bank'!I121)","v":"Number"},{"$f":"IF(ISBLANK('TA Indicator Bank'!J121),\"\",'TA Indicator Bank'!J121)","v":0},{"$f":"IF(ISBLANK('TA Indicator Bank'!K121),\"\",'TA Indicator Bank'!K121)","v":0},{"$f":"IF(ISBLANK('TA Indicator Bank'!L121),\"\",'TA Indicator Bank'!L121)","v":1},{"$f":"IF(ISBLANK('TA Indicator Bank'!M121),\"\",'TA Indicator Bank'!M121)","v":0},{"$f":"IF(ISBLANK('TA Indicator Bank'!N121),\"\",'TA Indicator Bank'!N121)","v":0},{"$f":"IF(ISBLANK('TA Indicator Bank'!O121),\"\",'TA Indicator Bank'!O121)","v":0},{"$f":"IF(ISBLANK('TA Indicator Bank'!P121),\"\",'TA Indicator Bank'!P121)","v":0},{"$f":"IF(ISBLANK('TA Indicator Bank'!Q121),\"\",'TA Indicator Bank'!Q121)","v":0},{"$f":"IF(ISBLANK('TA Indicator Bank'!R121),\"\",'TA Indicator Bank'!R121)","v":0},{"$f":"IF(ISBLANK('TA Indicator Bank'!S121),\"\",'TA Indicator Bank'!S121)","v":1},{"$f":"IF(ISBLANK('TA Indicator Bank'!T121),\"\",'TA Indicator Bank'!T121)","v":0},{"$f":"IF(ISBLANK('TA Indicator Bank'!U121),\"\",'TA Indicator Bank'!U121)","v":0},{"$f":"IF(ISBLANK('TA Indicator Bank'!V121),\"\",'TA Indicator Bank'!V121)","v":0},{"$f":"IF(ISBLANK('TA Indicator Bank'!W121),\"\",'TA Indicator Bank'!W121)","v":0},{"$f":"IF(ISBLANK('TA Indicator Bank'!X121),\"\",'TA Indicator Bank'!X121)","v":0},{"$f":"IF(ISBLANK('TA Indicator Bank'!Y121),\"\",'TA Indicator Bank'!Y121)","v":0},{"$f":"IF(ISBLANK('TA Indicator Bank'!Z121),\"\",'TA Indicator Bank'!Z121)","v":0},{"$f":"IF(ISBLANK('TA Indicator Bank'!AA121),\"\",'TA Indicator Bank'!AA121)","v":0},{"$f":"IF(ISBLANK('TA Indicator Bank'!AB121),\"\",'TA Indicator Bank'!AB121)","v":0},{"$f":"IF(ISBLANK('TA Indicator Bank'!AC121),\"\",'TA Indicator Bank'!AC121)","v":0},{"$f":"IF(ISBLANK('TA Indicator Bank'!AD121),\"\",'TA Indicator Bank'!AD121)","v":0},{"$f":"IF(ISBLANK('TA Indicator Bank'!AE121),\"\",'TA Indicator Bank'!AE121)","v":0},{"$f":"IF(ISBLANK('TA Indicator Bank'!AF121),\"\",'TA Indicator Bank'!AF121)","v":0},{"$f":"IF(ISBLANK('TA Indicator Bank'!AG121),\"\",'TA Indicator Bank'!AG121)","v":0},{"$f":"IF(ISBLANK('TA Indicator Bank'!AH121),\"\",'TA Indicator Bank'!AH121)","v":0},{"$f":"IF(ISBLANK('TA Indicator Bank'!AI121),\"\",'TA Indicator Bank'!AI121)","v":0},{"$f":"IF(ISBLANK('TA Indicator Bank'!AJ121),\"\",'TA Indicator Bank'!AJ121)","v":0},{"$f":"IF(ISBLANK('TA Indicator Bank'!AK121),\"\",'TA Indicator Bank'!AK121)","v":0},{"$f":"IF(ISBLANK('TA Indicator Bank'!AL121),\"\",'TA Indicator Bank'!AL121)","v":0},{"$f":"IF(ISBLANK('TA Indicator Bank'!AM121),\"\",'TA Indicator Bank'!AM121)","v":0},{"$f":"IF(ISBLANK('TA Indicator Bank'!AN121),\"\",'TA Indicator Bank'!AN121)","v":0},{"$f":"IF(ISBLANK('TA Indicator Bank'!AO121),\"\",'TA Indicator Bank'!AO121)","v":0},{"$f":"IF(ISBLANK('TA Indicator Bank'!AP121),\"\",'TA Indicator Bank'!AP121)","v":1},{"$f":"IF(ISBLANK('TA Indicator Bank'!AQ121),\"\",'TA Indicator Bank'!AQ121)","v":0},{"$f":"IF(ISBLANK('TA Indicator Bank'!AR121),\"\",'TA Indicator Bank'!AR121)","v":0},{"$f":"IF(ISBLANK('TA Indicator Bank'!AS121),\"\",'TA Indicator Bank'!AS121)","v":0},{"$f":"IF(ISBLANK('TA Indicator Bank'!AT121),\"\",'TA Indicator Bank'!AT121)","v":0},{"$f":"IF(AND(J125=1,J$410=1),1,0)","v":0},{"$f":"IF(AND(K125=1,K$410=1),1,0)","v":0},{"$f":"IF(AND(L125=1,L$410=1),1,0)","v":1},{"$f":"IF(AND(M125=1,M$410=1),1,0)","v":0},{"$f":"IF(AND(N125=1,N$410=1),1,0)","v":0},{"$f":"IF(AND(O125=1,O$410=1),1,0)","v":0},{"$f":"IF(AND(P125=1,P$410=1),1,0)","v":0},{"$f":"IF(AND(Q125=1,Q$410=1),1,0)","v":0},{"$f":"IF(AND(R125=1,R$410=1),1,0)","v":0},{"$f":"IF(AND(S125=1,S$410=1),1,0)","v":1},{"$f":"IF(AND(T125=1,T$410=1),1,0)","v":0},{"$f":"IF(AND(U125=1,U$410=1),1,0)","v":0},{"$f":"IF(AND(V125=1,V$410=1),1,0)","v":0},{"$f":"IF(AND(W125=1,W$410=1),1,0)","v":0},1,{"$f":"IF(AND(X125=1,X$410=1),1,0)","v":0},{"$f":"IF(AND(Y125=1,Y$410=1),1,0)","v":0},{"$f":"IF(AND(Z125=1,Z$410=1),1,0)","v":0},{"$f":"IF(AND(AA125=1,AA$410=1),1,0)","v":0},{"$f":"IF(AND(AB125=1,AB$410=1),1,0)","v":0},{"$f":"IF(AND(AC125=1,AC$410=1),1,0)","v":0},{"$f":"IF(AND(AD125=1,AD$410=1),1,0)","v":0},{"$f":"IF(AND(AE125=1,AE$410=1),1,0)","v":0},{"$f":"IF(AND(AF125=1,AF$410=1),1,0)","v":0},1,{"$f":"IF(AND(AG125=1,AG$410=1),1,0)","v":0},{"$f":"IF(AND(AH125=1,AH$410=1),1,0)","v":0},{"$f":"IF(AND(AI125=1,AI$410=1),1,0)","v":0},{"$f":"IF(AND(AJ125=1,AJ$410=1),1,0)","v":0},{"$f":"IF(AND(AK125=1,AK$410=1),1,0)","v":0},{"$f":"IF(AND(AL125=1,AL$410=1),1,0)","v":0},{"$f":"IF(AND(AM125=1,AM$410=1),1,0)","v":0},{"$f":"IF(AND(AN125=1,AN$410=1),1,0)","v":0},{"$f":"IF(AND(AO125=1,AO$410=1),1,0)","v":0},1,{"$f":"IF(AND(AP125=1,AP$410=1),1,0)","v":1},{"$f":"IF(AND(AQ125=1,AQ$410=1),1,0)","v":0},{"$f":"IF(AND(AR125=1,AR$410=1),1,0)","v":0},{"$f":"IF(AND(AS125=1,AS$410=1),1,0)","v":0},{"$f":"IF(AND(AT125=1,AT$410=1),1,0)","v":0},1,1,117,117,{"$f":"IFERROR(SMALL($CL$9:$CL$408,CK125),\"\")","v":117},{"$f":"IFERROR(INDEX($B$9:$I$408,$CM125,COLUMNS($CN$9:CN125)),\"\")","v":"TA117"},{"$f":"IFERROR(INDEX($B$9:$I$408,$CM125,COLUMNS($CN$9:CO125)),\"\")","v":"Number of media events"},{"$f":"IFERROR(INDEX($B$9:$I$408,$CM125,COLUMNS($CN$9:CP125)),\"\")","v":"-"},{"$f":"IFERROR(INDEX($B$9:$I$408,$CM125,COLUMNS($CN$9:CQ125)),\"\")","v":"Activity"},{"$f":"IFERROR(INDEX($B$9:$I$408,$CM125,COLUMNS($CN$9:CR125)),\"\")","v":"Conferences, seminars or networking events; Public awareness campaigns"},{"$f":"IFERROR(INDEX($B$9:$I$408,$CM125,COLUMNS($CN$9:CS125)),\"\")","v":"-"},{"$f":"IFERROR(INDEX($B$9:$I$408,$CM125,COLUMNS($CN$9:CT125)),\"\")","v":"-"},{"$f":"IFERROR(INDEX($B$9:$I$408,$CM125,COLUMNS($CN$9:CU125)),\"\")","v":"Number"}]
[null,{"$f":"IF(ISBLANK('TA Indicator Bank'!B122),\"\",'TA Indicator Bank'!B122)","v":"TA118"},{"$f":"IF(ISBLANK('TA Indicator Bank'!C122),\"\",'TA Indicator Bank'!C122)","v":"Number of scientific publication that refer to the programme"},{"$f":"IF(ISBLANK('TA Indicator Bank'!D122),\"\",'TA Indicator Bank'!D122)","v":"-"},{"$f":"IF(ISBLANK('TA Indicator Bank'!E122),\"\",'TA Indicator Bank'!E122)","v":"Output"},{"$f":"IF(ISBLANK('TA Indicator Bank'!F122),\"\",'TA Indicator Bank'!F122)","v":"-"},{"$f":"IF(ISBLANK('TA Indicator Bank'!G122),\"\",'TA Indicator Bank'!G122)","v":"Awareness raising"},{"$f":"IF(ISBLANK('TA Indicator Bank'!H122),\"\",'TA Indicator Bank'!H122)","v":"-"},{"$f":"IF(ISBLANK('TA Indicator Bank'!I122),\"\",'TA Indicator Bank'!I122)","v":"Number"},{"$f":"IF(ISBLANK('TA Indicator Bank'!J122),\"\",'TA Indicator Bank'!J122)","v":0},{"$f":"IF(ISBLANK('TA Indicator Bank'!K122),\"\",'TA Indicator Bank'!K122)","v":0},{"$f":"IF(ISBLANK('TA Indicator Bank'!L122),\"\",'TA Indicator Bank'!L122)","v":0},{"$f":"IF(ISBLANK('TA Indicator Bank'!M122),\"\",'TA Indicator Bank'!M122)","v":0},{"$f":"IF(ISBLANK('TA Indicator Bank'!N122),\"\",'TA Indicator Bank'!N122)","v":0},{"$f":"IF(ISBLANK('TA Indicator Bank'!O122),\"\",'TA Indicator Bank'!O122)","v":0},{"$f":"IF(ISBLANK('TA Indicator Bank'!P122),\"\",'TA Indicator Bank'!P122)","v":0},{"$f":"IF(ISBLANK('TA Indicator Bank'!Q122),\"\",'TA Indicator Bank'!Q122)","v":0},{"$f":"IF(ISBLANK('TA Indicator Bank'!R122),\"\",'TA Indicator Bank'!R122)","v":0},{"$f":"IF(ISBLANK('TA Indicator Bank'!S122),\"\",'TA Indicator Bank'!S122)","v":0},{"$f":"IF(ISBLANK('TA Indicator Bank'!T122),\"\",'TA Indicator Bank'!T122)","v":0},{"$f":"IF(ISBLANK('TA Indicator Bank'!U122),\"\",'TA Indicator Bank'!U122)","v":0},{"$f":"IF(ISBLANK('TA Indicator Bank'!V122),\"\",'TA Indicator Bank'!V122)","v":0},{"$f":"IF(ISBLANK('TA Indicator Bank'!W122),\"\",'TA Indicator Bank'!W122)","v":0},{"$f":"IF(ISBLANK('TA Indicator Bank'!X122),\"\",'TA Indicator Bank'!X122)","v":0},{"$f":"IF(ISBLANK('TA Indicator Bank'!Y122),\"\",'TA Indicator Bank'!Y122)","v":0},{"$f":"IF(ISBLANK('TA Indicator Bank'!Z122),\"\",'TA Indicator Bank'!Z122)","v":1},{"$f":"IF(ISBLANK('TA Indicator Bank'!AA122),\"\",'TA Indicator Bank'!AA122)","v":0},{"$f":"IF(ISBLANK('TA Indicator Bank'!AB122),\"\",'TA Indicator Bank'!AB122)","v":0},{"$f":"IF(ISBLANK('TA Indicator Bank'!AC122),\"\",'TA Indicator Bank'!AC122)","v":0},{"$f":"IF(ISBLANK('TA Indicator Bank'!AD122),\"\",'TA Indicator Bank'!AD122)","v":0},{"$f":"IF(ISBLANK('TA Indicator Bank'!AE122),\"\",'TA Indicator Bank'!AE122)","v":0},{"$f":"IF(ISBLANK('TA Indicator Bank'!AF122),\"\",'TA Indicator Bank'!AF122)","v":0},{"$f":"IF(ISBLANK('TA Indicator Bank'!AG122),\"\",'TA Indicator Bank'!AG122)","v":0},{"$f":"IF(ISBLANK('TA Indicator Bank'!AH122),\"\",'TA Indicator Bank'!AH122)","v":0},{"$f":"IF(ISBLANK('TA Indicator Bank'!AI122),\"\",'TA Indicator Bank'!AI122)","v":0},{"$f":"IF(ISBLANK('TA Indicator Bank'!AJ122),\"\",'TA Indicator Bank'!AJ122)","v":0},{"$f":"IF(ISBLANK('TA Indicator Bank'!AK122),\"\",'TA Indicator Bank'!AK122)","v":0},{"$f":"IF(ISBLANK('TA Indicator Bank'!AL122),\"\",'TA Indicator Bank'!AL122)","v":0},{"$f":"IF(ISBLANK('TA Indicator Bank'!AM122),\"\",'TA Indicator Bank'!AM122)","v":0},{"$f":"IF(ISBLANK('TA Indicator Bank'!AN122),\"\",'TA Indicator Bank'!AN122)","v":0},{"$f":"IF(ISBLANK('TA Indicator Bank'!AO122),\"\",'TA Indicator Bank'!AO122)","v":0},{"$f":"IF(ISBLANK('TA Indicator Bank'!AP122),\"\",'TA Indicator Bank'!AP122)","v":0},{"$f":"IF(ISBLANK('TA Indicator Bank'!AQ122),\"\",'TA Indicator Bank'!AQ122)","v":0},{"$f":"IF(ISBLANK('TA Indicator Bank'!AR122),\"\",'TA Indicator Bank'!AR122)","v":1},{"$f":"IF(ISBLANK('TA Indicator Bank'!AS122),\"\",'TA Indicator Bank'!AS122)","v":0},{"$f":"IF(ISBLANK('TA Indicator Bank'!AT122),\"\",'TA Indicator Bank'!AT122)","v":0},{"$f":"IF(AND(J126=1,J$410=1),1,0)","v":0},{"$f":"IF(AND(K126=1,K$410=1),1,0)","v":0},{"$f":"IF(AND(L126=1,L$410=1),1,0)","v":0},{"$f":"IF(AND(M126=1,M$410=1),1,0)","v":0},{"$f":"IF(AND(N126=1,N$410=1),1,0)","v":0},{"$f":"IF(AND(O126=1,O$410=1),1,0)","v":0},{"$f":"IF(AND(P126=1,P$410=1),1,0)","v":0},{"$f":"IF(AND(Q126=1,Q$410=1),1,0)","v":0},{"$f":"IF(AND(R126=1,R$410=1),1,0)","v":0},{"$f":"IF(AND(S126=1,S$410=1),1,0)","v":0},{"$f":"IF(AND(T126=1,T$410=1),1,0)","v":0},{"$f":"IF(AND(U126=1,U$410=1),1,0)","v":0},{"$f":"IF(AND(V126=1,V$410=1),1,0)","v":0},{"$f":"IF(AND(W126=1,W$410=1),1,0)","v":0},1,{"$f":"IF(AND(X126=1,X$410=1),1,0)","v":0},{"$f":"IF(AND(Y126=1,Y$410=1),1,0)","v":0},{"$f":"IF(AND(Z126=1,Z$410=1),1,0)","v":1},{"$f":"IF(AND(AA126=1,AA$410=1),1,0)","v":0},{"$f":"IF(AND(AB126=1,AB$410=1),1,0)","v":0},{"$f":"IF(AND(AC126=1,AC$410=1),1,0)","v":0},{"$f":"IF(AND(AD126=1,AD$410=1),1,0)","v":0},{"$f":"IF(AND(AE126=1,AE$410=1),1,0)","v":0},{"$f":"IF(AND(AF126=1,AF$410=1),1,0)","v":0},1,{"$f":"IF(AND(AG126=1,AG$410=1),1,0)","v":0},{"$f":"IF(AND(AH126=1,AH$410=1),1,0)","v":0},{"$f":"IF(AND(AI126=1,AI$410=1),1,0)","v":0},{"$f":"IF(AND(AJ126=1,AJ$410=1),1,0)","v":0},{"$f":"IF(AND(AK126=1,AK$410=1),1,0)","v":0},{"$f":"IF(AND(AL126=1,AL$410=1),1,0)","v":0},{"$f":"IF(AND(AM126=1,AM$410=1),1,0)","v":0},{"$f":"IF(AND(AN126=1,AN$410=1),1,0)","v":0},{"$f":"IF(AND(AO126=1,AO$410=1),1,0)","v":0},1,{"$f":"IF(AND(AP126=1,AP$410=1),1,0)","v":0},{"$f":"IF(AND(AQ126=1,AQ$410=1),1,0)","v":0},{"$f":"IF(AND(AR126=1,AR$410=1),1,0)","v":1},{"$f":"IF(AND(AS126=1,AS$410=1),1,0)","v":0},{"$f":"IF(AND(AT126=1,AT$410=1),1,0)","v":0},1,1,118,118,{"$f":"IFERROR(SMALL($CL$9:$CL$408,CK126),\"\")","v":118},{"$f":"IFERROR(INDEX($B$9:$I$408,$CM126,COLUMNS($CN$9:CN126)),\"\")","v":"TA118"},{"$f":"IFERROR(INDEX($B$9:$I$408,$CM126,COLUMNS($CN$9:CO126)),\"\")","v":"Number of scientific publication that refer to the programme"},{"$f":"IFERROR(INDEX($B$9:$I$408,$CM126,COLUMNS($CN$9:CP126)),\"\")","v":"-"},{"$f":"IFERROR(INDEX($B$9:$I$408,$CM126,COLUMNS($CN$9:CQ126)),\"\")","v":"Output"},{"$f":"IFERROR(INDEX($B$9:$I$408,$CM126,COLUMNS($CN$9:CR126)),\"\")","v":"-"},{"$f":"IFERROR(INDEX($B$9:$I$408,$CM126,COLUMNS($CN$9:CS126)),\"\")","v":"Awareness raising"},{"$f":"IFERROR(INDEX($B$9:$I$408,$CM126,COLUMNS($CN$9:CT126)),\"\")","v":"-"},{"$f":"IFERROR(INDEX($B$9:$I$408,$CM126,COLUMNS($CN$9:CU126)),\"\")","v":"Number"}]
[null,{"$f":"IF(ISBLANK('TA Indicator Bank'!B123),\"\",'TA Indicator Bank'!B123)","v":"TA119"},{"$f":"IF(ISBLANK('TA Indicator Bank'!C123),\"\",'TA Indicator Bank'!C123)","v":"Number of communication products"},{"$f":"IF(ISBLANK('TA Indicator Bank'!D123),\"\",'TA Indicator Bank'!D123)","v":"-"},{"$f":"IF(ISBLANK('TA Indicator Bank'!E123),\"\",'TA Indicator Bank'!E123)","v":"Activity"},{"$f":"IF(ISBLANK('TA Indicator Bank'!F123),\"\",'TA Indicator Bank'!F123)","v":"Conferences, seminars or networking events; Public awareness campaigns"},{"$f":"IF(ISBLANK('TA Indicator Bank'!G123),\"\",'TA Indicator Bank'!G123)","v":"-"},{"$f":"IF(ISBLANK('TA Indicator Bank'!H123),\"\",'TA Indicator Bank'!H123)","v":"-"},{"$f":"IF(ISBLANK('TA Indicator Bank'!I123),\"\",'TA Indicator Bank'!I123)","v":"Number"},{"$f":"IF(ISBLANK('TA Indicator Bank'!J123),\"\",'TA Indicator Bank'!J123)","v":0},{"$f":"IF(ISBLANK('TA Indicator Bank'!K123),\"\",'TA Indicator Bank'!K123)","v":0},{"$f":"IF(ISBLANK('TA Indicator Bank'!L123),\"\",'TA Indicator Bank'!L123)","v":1},{"$f":"IF(ISBLANK('TA Indicator Bank'!M123),\"\",'TA Indicator Bank'!M123)","v":0},{"$f":"IF(ISBLANK('TA Indicator Bank'!N123),\"\",'TA Indicator Bank'!N123)","v":0},{"$f":"IF(ISBLANK('TA Indicator Bank'!O123),\"\",'TA Indicator Bank'!O123)","v":0},{"$f":"IF(ISBLANK('TA Indicator Bank'!P123),\"\",'TA Indicator Bank'!P123)","v":0},{"$f":"IF(ISBLANK('TA Indicator Bank'!Q123),\"\",'TA Indicator Bank'!Q123)","v":0},{"$f":"IF(ISBLANK('TA Indicator Bank'!R123),\"\",'TA Indicator Bank'!R123)","v":0},{"$f":"IF(ISBLANK('TA Indicator Bank'!S123),\"\",'TA Indicator Bank'!S123)","v":1},{"$f":"IF(ISBLANK('TA Indicator Bank'!T123),\"\",'TA Indicator Bank'!T123)","v":0},{"$f":"IF(ISBLANK('TA Indicator Bank'!U123),\"\",'TA Indicator Bank'!U123)","v":0},{"$f":"IF(ISBLANK('TA Indicator Bank'!V123),\"\",'TA Indicator Bank'!V123)","v":0},{"$f":"IF(ISBLANK('TA Indicator Bank'!W123),\"\",'TA Indicator Bank'!W123)","v":0},{"$f":"IF(ISBLANK('TA Indicator Bank'!X123),\"\",'TA Indicator Bank'!X123)","v":0},{"$f":"IF(ISBLANK('TA Indicator Bank'!Y123),\"\",'TA Indicator Bank'!Y123)","v":0},{"$f":"IF(ISBLANK('TA Indicator Bank'!Z123),\"\",'TA Indicator Bank'!Z123)","v":0},{"$f":"IF(ISBLANK('TA Indicator Bank'!AA123),\"\",'TA Indicator Bank'!AA123)","v":0},{"$f":"IF(ISBLANK('TA Indicator Bank'!AB123),\"\",'TA Indicator Bank'!AB123)","v":0},{"$f":"IF(ISBLANK('TA Indicator Bank'!AC123),\"\",'TA Indicator Bank'!AC123)","v":0},{"$f":"IF(ISBLANK('TA Indicator Bank'!AD123),\"\",'TA Indicator Bank'!AD123)","v":0},{"$f":"IF(ISBLANK('TA Indicator Bank'!AE123),\"\",'TA Indicator Bank'!AE123)","v":0},{"$f":"IF(ISBLANK('TA Indicator Bank'!AF123),\"\",'TA Indicator Bank'!AF123)","v":0},{"$f":"IF(ISBLANK('TA Indicator Bank'!AG123),\"\",'TA Indicator Bank'!AG123)","v":0},{"$f":"IF(ISBLANK('TA Indicator Bank'!AH123),\"\",'TA Indicator Bank'!AH123)","v":0},{"$f":"IF(ISBLANK('TA Indicator Bank'!AI123),\"\",'TA Indicator Bank'!AI123)","v":0},{"$f":"IF(ISBLANK('TA Indicator Bank'!AJ123),\"\",'TA Indicator Bank'!AJ123)","v":0},{"$f":"IF(ISBLANK('TA Indicator Bank'!AK123),\"\",'TA Indicator Bank'!AK123)","v":0},{"$f":"IF(ISBLANK('TA Indicator Bank'!AL123),\"\",'TA Indicator Bank'!AL123)","v":0},{"$f":"IF(ISBLANK('TA Indicator Bank'!AM123),\"\",'TA Indicator Bank'!AM123)","v":0},{"$f":"IF(ISBLANK('TA Indicator Bank'!AN123),\"\",'TA Indicator Bank'!AN123)","v":0},{"$f":"IF(ISBLANK('TA Indicator Bank'!AO123),\"\",'TA Indicator Bank'!AO123)","v":0},{"$f":"IF(ISBLANK('TA Indicator Bank'!AP123),\"\",'TA Indicator Bank'!AP123)","v":1},{"$f":"IF(ISBLANK('TA Indicator Bank'!AQ123),\"\",'TA Indicator Bank'!AQ123)","v":0},{"$f":"IF(ISBLANK('TA Indicator Bank'!AR123),\"\",'TA Indicator Bank'!AR123)","v":0},{"$f":"IF(ISBLANK('TA Indicator Bank'!AS123),\"\",'TA Indicator Bank'!AS123)","v":0},{"$f":"IF(ISBLANK('TA Indicator Bank'!AT123),\"\",'TA Indicator Bank'!AT123)","v":0},{"$f":"IF(AND(J127=1,J$410=1),1,0)","v":0},{"$f":"IF(AND(K127=1,K$410=1),1,0)","v":0},{"$f":"IF(AND(L127=1,L$410=1),1,0)","v":1},{"$f":"IF(AND(M127=1,M$410=1),1,0)","v":0},{"$f":"IF(AND(N127=1,N$410=1),1,0)","v":0},{"$f":"IF(AND(O127=1,O$410=1),1,0)","v":0},{"$f":"IF(AND(P127=1,P$410=1),1,0)","v":0},{"$f":"IF(AND(Q127=1,Q$410=1),1,0)","v":0},{"$f":"IF(AND(R127=1,R$410=1),1,0)","v":0},{"$f":"IF(AND(S127=1,S$410=1),1,0)","v":1},{"$f":"IF(AND(T127=1,T$410=1),1,0)","v":0},{"$f":"IF(AND(U127=1,U$410=1),1,0)","v":0},{"$f":"IF(AND(V127=1,V$410=1),1,0)","v":0},{"$f":"IF(AND(W127=1,W$410=1),1,0)","v":0},1,{"$f":"IF(AND(X127=1,X$410=1),1,0)","v":0},{"$f":"IF(AND(Y127=1,Y$410=1),1,0)","v":0},{"$f":"IF(AND(Z127=1,Z$410=1),1,0)","v":0},{"$f":"IF(AND(AA127=1,AA$410=1),1,0)","v":0},{"$f":"IF(AND(AB127=1,AB$410=1),1,0)","v":0},{"$f":"IF(AND(AC127=1,AC$410=1),1,0)","v":0},{"$f":"IF(AND(AD127=1,AD$410=1),1,0)","v":0},{"$f":"IF(AND(AE127=1,AE$410=1),1,0)","v":0},{"$f":"IF(AND(AF127=1,AF$410=1),1,0)","v":0},1,{"$f":"IF(AND(AG127=1,AG$410=1),1,0)","v":0},{"$f":"IF(AND(AH127=1,AH$410=1),1,0)","v":0},{"$f":"IF(AND(AI127=1,AI$410=1),1,0)","v":0},{"$f":"IF(AND(AJ127=1,AJ$410=1),1,0)","v":0},{"$f":"IF(AND(AK127=1,AK$410=1),1,0)","v":0},{"$f":"IF(AND(AL127=1,AL$410=1),1,0)","v":0},{"$f":"IF(AND(AM127=1,AM$410=1),1,0)","v":0},{"$f":"IF(AND(AN127=1,AN$410=1),1,0)","v":0},{"$f":"IF(AND(AO127=1,AO$410=1),1,0)","v":0},1,{"$f":"IF(AND(AP127=1,AP$410=1),1,0)","v":1},{"$f":"IF(AND(AQ127=1,AQ$410=1),1,0)","v":0},{"$f":"IF(AND(AR127=1,AR$410=1),1,0)","v":0},{"$f":"IF(AND(AS127=1,AS$410=1),1,0)","v":0},{"$f":"IF(AND(AT127=1,AT$410=1),1,0)","v":0},1,1,119,119,{"$f":"IFERROR(SMALL($CL$9:$CL$408,CK127),\"\")","v":119},{"$f":"IFERROR(INDEX($B$9:$I$408,$CM127,COLUMNS($CN$9:CN127)),\"\")","v":"TA119"},{"$f":"IFERROR(INDEX($B$9:$I$408,$CM127,COLUMNS($CN$9:CO127)),\"\")","v":"Number of communication products"},{"$f":"IFERROR(INDEX($B$9:$I$408,$CM127,COLUMNS($CN$9:CP127)),\"\")","v":"-"},{"$f":"IFERROR(INDEX($B$9:$I$408,$CM127,COLUMNS($CN$9:CQ127)),\"\")","v":"Activity"},{"$f":"IFERROR(INDEX($B$9:$I$408,$CM127,COLUMNS($CN$9:CR127)),\"\")","v":"Conferences, seminars or networking events; Public awareness campaigns"},{"$f":"IFERROR(INDEX($B$9:$I$408,$CM127,COLUMNS($CN$9:CS127)),\"\")","v":"-"},{"$f":"IFERROR(INDEX($B$9:$I$408,$CM127,COLUMNS($CN$9:CT127)),\"\")","v":"-"},{"$f":"IFERROR(INDEX($B$9:$I$408,$CM127,COLUMNS($CN$9:CU127)),\"\")","v":"Number"}]
[null,{"$f":"IF(ISBLANK('TA Indicator Bank'!B124),\"\",'TA Indicator Bank'!B124)","v":"TA120"},{"$f":"IF(ISBLANK('TA Indicator Bank'!C124),\"\",'TA Indicator Bank'!C124)","v":"Programme managers report satisfactory outreach"},{"$f":"IF(ISBLANK('TA Indicator Bank'!D124),\"\",'TA Indicator Bank'!D124)","v":"-"},{"$f":"IF(ISBLANK('TA Indicator Bank'!E124),\"\",'TA Indicator Bank'!E124)","v":"Uptake"},{"$f":"IF(ISBLANK('TA Indicator Bank'!F124),\"\",'TA Indicator Bank'!F124)","v":"Public awareness campaigns"},{"$f":"IF(ISBLANK('TA Indicator Bank'!G124),\"\",'TA Indicator Bank'!G124)","v":"-"},{"$f":"IF(ISBLANK('TA Indicator Bank'!H124),\"\",'TA Indicator Bank'!H124)","v":"-"},{"$f":"IF(ISBLANK('TA Indicator Bank'!I124),\"\",'TA Indicator Bank'!I124)","v":"Yes/No"},{"$f":"IF(ISBLANK('TA Indicator Bank'!J124),\"\",'TA Indicator Bank'!J124)","v":0},{"$f":"IF(ISBLANK('TA Indicator Bank'!K124),\"\",'TA Indicator Bank'!K124)","v":0},{"$f":"IF(ISBLANK('TA Indicator Bank'!L124),\"\",'TA Indicator Bank'!L124)","v":0},{"$f":"IF(ISBLANK('TA Indicator Bank'!M124),\"\",'TA Indicator Bank'!M124)","v":0},{"$f":"IF(ISBLANK('TA Indicator Bank'!N124),\"\",'TA Indicator Bank'!N124)","v":0},{"$f":"IF(ISBLANK('TA Indicator Bank'!O124),\"\",'TA Indicator Bank'!O124)","v":0},{"$f":"IF(ISBLANK('TA Indicator Bank'!P124),\"\",'TA Indicator Bank'!P124)","v":0},{"$f":"IF(ISBLANK('TA Indicator Bank'!Q124),\"\",'TA Indicator Bank'!Q124)","v":0},{"$f":"IF(ISBLANK('TA Indicator Bank'!R124),\"\",'TA Indicator Bank'!R124)","v":0},{"$f":"IF(ISBLANK('TA Indicator Bank'!S124),\"\",'TA Indicator Bank'!S124)","v":1},{"$f":"IF(ISBLANK('TA Indicator Bank'!T124),\"\",'TA Indicator Bank'!T124)","v":0},{"$f":"IF(ISBLANK('TA Indicator Bank'!U124),\"\",'TA Indicator Bank'!U124)","v":0},{"$f":"IF(ISBLANK('TA Indicator Bank'!V124),\"\",'TA Indicator Bank'!V124)","v":0},{"$f":"IF(ISBLANK('TA Indicator Bank'!W124),\"\",'TA Indicator Bank'!W124)","v":0},{"$f":"IF(ISBLANK('TA Indicator Bank'!X124),\"\",'TA Indicator Bank'!X124)","v":0},{"$f":"IF(ISBLANK('TA Indicator Bank'!Y124),\"\",'TA Indicator Bank'!Y124)","v":0},{"$f":"IF(ISBLANK('TA Indicator Bank'!Z124),\"\",'TA Indicator Bank'!Z124)","v":0},{"$f":"IF(ISBLANK('TA Indicator Bank'!AA124),\"\",'TA Indicator Bank'!AA124)","v":0},{"$f":"IF(ISBLANK('TA Indicator Bank'!AB124),\"\",'TA Indicator Bank'!AB124)","v":0},{"$f":"IF(ISBLANK('TA Indicator Bank'!AC124),\"\",'TA Indicator Bank'!AC124)","v":0},{"$f":"IF(ISBLANK('TA Indicator Bank'!AD124),\"\",'TA Indicator Bank'!AD124)","v":0},{"$f":"IF(ISBLANK('TA Indicator Bank'!AE124),\"\",'TA Indicator Bank'!AE124)","v":0},{"$f":"IF(ISBLANK('TA Indicator Bank'!AF124),\"\",'TA Indicator Bank'!AF124)","v":0},{"$f":"IF(ISBLANK('TA Indicator Bank'!AG124),\"\",'TA Indicator Bank'!AG124)","v":0},{"$f":"IF(ISBLANK('TA Indicator Bank'!AH124),\"\",'TA Indicator Bank'!AH124)","v":0},{"$f":"IF(ISBLANK('TA Indicator Bank'!AI124),\"\",'TA Indicator Bank'!AI124)","v":0},{"$f":"IF(ISBLANK('TA Indicator Bank'!AJ124),\"\",'TA Indicator Bank'!AJ124)","v":0},{"$f":"IF(ISBLANK('TA Indicator Bank'!AK124),\"\",'TA Indicator Bank'!AK124)","v":0},{"$f":"IF(ISBLANK('TA Indicator Bank'!AL124),\"\",'TA Indicator Bank'!AL124)","v":0},{"$f":"IF(ISBLANK('TA Indicator Bank'!AM124),\"\",'TA Indicator Bank'!AM124)","v":0},{"$f":"IF(ISBLANK('TA Indicator Bank'!AN124),\"\",'TA Indicator Bank'!AN124)","v":0},{"$f":"IF(ISBLANK('TA Indicator Bank'!AO124),\"\",'TA Indicator Bank'!AO124)","v":0},{"$f":"IF(ISBLANK('TA Indicator Bank'!AP124),\"\",'TA Indicator Bank'!AP124)","v":0},{"$f":"IF(ISBLANK('TA Indicator Bank'!AQ124),\"\",'TA Indicator Bank'!AQ124)","v":1},{"$f":"IF(ISBLANK('TA Indicator Bank'!AR124),\"\",'TA Indicator Bank'!AR124)","v":0},{"$f":"IF(ISBLANK('TA Indicator Bank'!AS124),\"\",'TA Indicator Bank'!AS124)","v":0},{"$f":"IF(ISBLANK('TA Indicator Bank'!AT124),\"\",'TA Indicator Bank'!AT124)","v":0},{"$f":"IF(AND(J128=1,J$410=1),1,0)","v":0},{"$f":"IF(AND(K128=1,K$410=1),1,0)","v":0},{"$f":"IF(AND(L128=1,L$410=1),1,0)","v":0},{"$f":"IF(AND(M128=1,M$410=1),1,0)","v":0},{"$f":"IF(AND(N128=1,N$410=1),1,0)","v":0},{"$f":"IF(AND(O128=1,O$410=1),1,0)","v":0},{"$f":"IF(AND(P128=1,P$410=1),1,0)","v":0},{"$f":"IF(AND(Q128=1,Q$410=1),1,0)","v":0},{"$f":"IF(AND(R128=1,R$410=1),1,0)","v":0},{"$f":"IF(AND(S128=1,S$410=1),1,0)","v":1},{"$f":"IF(AND(T128=1,T$410=1),1,0)","v":0},{"$f":"IF(AND(U128=1,U$410=1),1,0)","v":0},{"$f":"IF(AND(V128=1,V$410=1),1,0)","v":0},{"$f":"IF(AND(W128=1,W$410=1),1,0)","v":0},1,{"$f":"IF(AND(X128=1,X$410=1),1,0)","v":0},{"$f":"IF(AND(Y128=1,Y$410=1),1,0)","v":0},{"$f":"IF(AND(Z128=1,Z$410=1),1,0)","v":0},{"$f":"IF(AND(AA128=1,AA$410=1),1,0)","v":0},{"$f":"IF(AND(AB128=1,AB$410=1),1,0)","v":0},{"$f":"IF(AND(AC128=1,AC$410=1),1,0)","v":0},{"$f":"IF(AND(AD128=1,AD$410=1),1,0)","v":0},{"$f":"IF(AND(AE128=1,AE$410=1),1,0)","v":0},{"$f":"IF(AND(AF128=1,AF$410=1),1,0)","v":0},1,{"$f":"IF(AND(AG128=1,AG$410=1),1,0)","v":0},{"$f":"IF(AND(AH128=1,AH$410=1),1,0)","v":0},{"$f":"IF(AND(AI128=1,AI$410=1),1,0)","v":0},{"$f":"IF(AND(AJ128=1,AJ$410=1),1,0)","v":0},{"$f":"IF(AND(AK128=1,AK$410=1),1,0)","v":0},{"$f":"IF(AND(AL128=1,AL$410=1),1,0)","v":0},{"$f":"IF(AND(AM128=1,AM$410=1),1,0)","v":0},{"$f":"IF(AND(AN128=1,AN$410=1),1,0)","v":0},{"$f":"IF(AND(AO128=1,AO$410=1),1,0)","v":0},1,{"$f":"IF(AND(AP128=1,AP$410=1),1,0)","v":0},{"$f":"IF(AND(AQ128=1,AQ$410=1),1,0)","v":1},{"$f":"IF(AND(AR128=1,AR$410=1),1,0)","v":0},{"$f":"IF(AND(AS128=1,AS$410=1),1,0)","v":0},{"$f":"IF(AND(AT128=1,AT$410=1),1,0)","v":0},1,1,120,120,{"$f":"IFERROR(SMALL($CL$9:$CL$408,CK128),\"\")","v":120},{"$f":"IFERROR(INDEX($B$9:$I$408,$CM128,COLUMNS($CN$9:CN128)),\"\")","v":"TA120"},{"$f":"IFERROR(INDEX($B$9:$I$408,$CM128,COLUMNS($CN$9:CO128)),\"\")","v":"Programme managers report satisfactory outreach"},{"$f":"IFERROR(INDEX($B$9:$I$408,$CM128,COLUMNS($CN$9:CP128)),\"\")","v":"-"},{"$f":"IFERROR(INDEX($B$9:$I$408,$CM128,COLUMNS($CN$9:CQ128)),\"\")","v":"Uptake"},{"$f":"IFERROR(INDEX($B$9:$I$408,$CM128,COLUMNS($CN$9:CR128)),\"\")","v":"Public awareness campaigns"},{"$f":"IFERROR(INDEX($B$9:$I$408,$CM128,COLUMNS($CN$9:CS128)),\"\")","v":"-"},{"$f":"IFERROR(INDEX($B$9:$I$408,$CM128,COLUMNS($CN$9:CT128)),\"\")","v":"-"},{"$f":"IFERROR(INDEX($B$9:$I$408,$CM128,COLUMNS($CN$9:CU128)),\"\")","v":"Yes/No"}]
[null,{"$f":"IF(ISBLANK('TA Indicator Bank'!B125),\"\",'TA Indicator Bank'!B125)","v":"TA121"},{"$f":"IF(ISBLANK('TA Indicator Bank'!C125),\"\",'TA Indicator Bank'!C125)","v":"Number of projects that resulted in the development of policy"},{"$f":"IF(ISBLANK('TA Indicator Bank'!D125),\"\",'TA Indicator Bank'!D125)","v":"-"},{"$f":"IF(ISBLANK('TA Indicator Bank'!E125),\"\",'TA Indicator Bank'!E125)","v":"Outcome"},{"$f":"IF(ISBLANK('TA Indicator Bank'!F125),\"\",'TA Indicator Bank'!F125)","v":"-"},{"$f":"IF(ISBLANK('TA Indicator Bank'!G125),\"\",'TA Indicator Bank'!G125)","v":"-"},{"$f":"IF(ISBLANK('TA Indicator Bank'!H125),\"\",'TA Indicator Bank'!H125)","v":"Increased or improved policy development or execution"},{"$f":"IF(ISBLANK('TA Indicator Bank'!I125),\"\",'TA Indicator Bank'!I125)","v":"Number"},{"$f":"IF(ISBLANK('TA Indicator Bank'!J125),\"\",'TA Indicator Bank'!J125)","v":0},{"$f":"IF(ISBLANK('TA Indicator Bank'!K125),\"\",'TA Indicator Bank'!K125)","v":0},{"$f":"IF(ISBLANK('TA Indicator Bank'!L125),\"\",'TA Indicator Bank'!L125)","v":0},{"$f":"IF(ISBLANK('TA Indicator Bank'!M125),\"\",'TA Indicator Bank'!M125)","v":0},{"$f":"IF(ISBLANK('TA Indicator Bank'!N125),\"\",'TA Indicator Bank'!N125)","v":0},{"$f":"IF(ISBLANK('TA Indicator Bank'!O125),\"\",'TA Indicator Bank'!O125)","v":0},{"$f":"IF(ISBLANK('TA Indicator Bank'!P125),\"\",'TA Indicator Bank'!P125)","v":0},{"$f":"IF(ISBLANK('TA Indicator Bank'!Q125),\"\",'TA Indicator Bank'!Q125)","v":0},{"$f":"IF(ISBLANK('TA Indicator Bank'!R125),\"\",'TA Indicator Bank'!R125)","v":0},{"$f":"IF(ISBLANK('TA Indicator Bank'!S125),\"\",'TA Indicator Bank'!S125)","v":0},{"$f":"IF(ISBLANK('TA Indicator Bank'!T125),\"\",'TA Indicator Bank'!T125)","v":0},{"$f":"IF(ISBLANK('TA Indicator Bank'!U125),\"\",'TA Indicator Bank'!U125)","v":0},{"$f":"IF(ISBLANK('TA Indicator Bank'!V125),\"\",'TA Indicator Bank'!V125)","v":0},{"$f":"IF(ISBLANK('TA Indicator Bank'!W125),\"\",'TA Indicator Bank'!W125)","v":0},{"$f":"IF(ISBLANK('TA Indicator Bank'!X125),\"\",'TA Indicator Bank'!X125)","v":0},{"$f":"IF(ISBLANK('TA Indicator Bank'!Y125),\"\",'TA Indicator Bank'!Y125)","v":0},{"$f":"IF(ISBLANK('TA Indicator Bank'!Z125),\"\",'TA Indicator Bank'!Z125)","v":0},{"$f":"IF(ISBLANK('TA Indicator Bank'!AA125),\"\",'TA Indicator Bank'!AA125)","v":0},{"$f":"IF(ISBLANK('TA Indicator Bank'!AB125),\"\",'TA Indicator Bank'!AB125)","v":0},{"$f":"IF(ISBLANK('TA Indicator Bank'!AC125),\"\",'TA Indicator Bank'!AC125)","v":0},{"$f":"IF(ISBLANK('TA Indicator Bank'!AD125),\"\",'TA Indicator Bank'!AD125)","v":0},{"$f":"IF(ISBLANK('TA Indicator Bank'!AE125),\"\",'TA Indicator Bank'!AE125)","v":0},{"$f":"IF(ISBLANK('TA Indicator Bank'!AF125),\"\",'TA Indicator Bank'!AF125)","v":0},{"$f":"IF(ISBLANK('TA Indicator Bank'!AG125),\"\",'TA Indicator Bank'!AG125)","v":1},{"$f":"IF(ISBLANK('TA Indicator Bank'!AH125),\"\",'TA Indicator Bank'!AH125)","v":0},{"$f":"IF(ISBLANK('TA Indicator Bank'!AI125),\"\",'TA Indicator Bank'!AI125)","v":0},{"$f":"IF(ISBLANK('TA Indicator Bank'!AJ125),\"\",'TA Indicator Bank'!AJ125)","v":0},{"$f":"IF(ISBLANK('TA Indicator Bank'!AK125),\"\",'TA Indicator Bank'!AK125)","v":0},{"$f":"IF(ISBLANK('TA Indicator Bank'!AL125),\"\",'TA Indicator Bank'!AL125)","v":0},{"$f":"IF(ISBLANK('TA Indicator Bank'!AM125),\"\",'TA Indicator Bank'!AM125)","v":0},{"$f":"IF(ISBLANK('TA Indicator Bank'!AN125),\"\",'TA Indicator Bank'!AN125)","v":0},{"$f":"IF(ISBLANK('TA Indicator Bank'!AO125),\"\",'TA Indicator Bank'!AO125)","v":0},{"$f":"IF(ISBLANK('TA Indicator Bank'!AP125),\"\",'TA Indicator Bank'!AP125)","v":0},{"$f":"IF(ISBLANK('TA Indicator Bank'!AQ125),\"\",'TA Indicator Bank'!AQ125)","v":0},{"$f":"IF(ISBLANK('TA Indicator Bank'!AR125),\"\",'TA Indicator Bank'!AR125)","v":0},{"$f":"IF(ISBLANK('TA Indicator Bank'!AS125),\"\",'TA Indicator Bank'!AS125)","v":1},{"$f":"IF(ISBLANK('TA Indicator Bank'!AT125),\"\",'TA Indicator Bank'!AT125)","v":0},{"$f":"IF(AND(J129=1,J$410=1),1,0)","v":0},{"$f":"IF(AND(K129=1,K$410=1),1,0)","v":0},{"$f":"IF(AND(L129=1,L$410=1),1,0)","v":0},{"$f":"IF(AND(M129=1,M$410=1),1,0)","v":0},{"$f":"IF(AND(N129=1,N$410=1),1,0)","v":0},{"$f":"IF(AND(O129=1,O$410=1),1,0)","v":0},{"$f":"IF(AND(P129=1,P$410=1),1,0)","v":0},{"$f":"IF(AND(Q129=1,Q$410=1),1,0)","v":0},{"$f":"IF(AND(R129=1,R$410=1),1,0)","v":0},{"$f":"IF(AND(S129=1,S$410=1),1,0)","v":0},{"$f":"IF(AND(T129=1,T$410=1),1,0)","v":0},{"$f":"IF(AND(U129=1,U$410=1),1,0)","v":0},{"$f":"IF(AND(V129=1,V$410=1),1,0)","v":0},{"$f":"IF(AND(W129=1,W$410=1),1,0)","v":0},1,{"$f":"IF(AND(X129=1,X$410=1),1,0)","v":0},{"$f":"IF(AND(Y129=1,Y$410=1),1,0)","v":0},{"$f":"IF(AND(Z129=1,Z$410=1),1,0)","v":0},{"$f":"IF(AND(AA129=1,AA$410=1),1,0)","v":0},{"$f":"IF(AND(AB129=1,AB$410=1),1,0)","v":0},{"$f":"IF(AND(AC129=1,AC$410=1),1,0)","v":0},{"$f":"IF(AND(AD129=1,AD$410=1),1,0)","v":0},{"$f":"IF(AND(AE129=1,AE$410=1),1,0)","v":0},{"$f":"IF(AND(AF129=1,AF$410=1),1,0)","v":0},1,{"$f":"IF(AND(AG129=1,AG$410=1),1,0)","v":1},{"$f":"IF(AND(AH129=1,AH$410=1),1,0)","v":0},{"$f":"IF(AND(AI129=1,AI$410=1),1,0)","v":0},{"$f":"IF(AND(AJ129=1,AJ$410=1),1,0)","v":0},{"$f":"IF(AND(AK129=1,AK$410=1),1,0)","v":0},{"$f":"IF(AND(AL129=1,AL$410=1),1,0)","v":0},{"$f":"IF(AND(AM129=1,AM$410=1),1,0)","v":0},{"$f":"IF(AND(AN129=1,AN$410=1),1,0)","v":0},{"$f":"IF(AND(AO129=1,AO$410=1),1,0)","v":0},1,{"$f":"IF(AND(AP129=1,AP$410=1),1,0)","v":0},{"$f":"IF(AND(AQ129=1,AQ$410=1),1,0)","v":0},{"$f":"IF(AND(AR129=1,AR$410=1),1,0)","v":0},{"$f":"IF(AND(AS129=1,AS$410=1),1,0)","v":1},{"$f":"IF(AND(AT129=1,AT$410=1),1,0)","v":0},1,1,121,121,{"$f":"IFERROR(SMALL($CL$9:$CL$408,CK129),\"\")","v":121},{"$f":"IFERROR(INDEX($B$9:$I$408,$CM129,COLUMNS($CN$9:CN129)),\"\")","v":"TA121"},{"$f":"IFERROR(INDEX($B$9:$I$408,$CM129,COLUMNS($CN$9:CO129)),\"\")","v":"Number of projects that resulted in the development of policy"},{"$f":"IFERROR(INDEX($B$9:$I$408,$CM129,COLUMNS($CN$9:CP129)),\"\")","v":"-"},{"$f":"IFERROR(INDEX($B$9:$I$408,$CM129,COLUMNS($CN$9:CQ129)),\"\")","v":"Outcome"},{"$f":"IFERROR(INDEX($B$9:$I$408,$CM129,COLUMNS($CN$9:CR129)),\"\")","v":"-"},{"$f":"IFERROR(INDEX($B$9:$I$408,$CM129,COLUMNS($CN$9:CS129)),\"\")","v":"-"},{"$f":"IFERROR(INDEX($B$9:$I$408,$CM129,COLUMNS($CN$9:CT129)),\"\")","v":"Increased or improved policy development or execution"},{"$f":"IFERROR(INDEX($B$9:$I$408,$CM129,COLUMNS($CN$9:CU129)),\"\")","v":"Number"}]
[null,{"$f":"IF(ISBLANK('TA Indicator Bank'!B126),\"\",'TA Indicator Bank'!B126)","v":"TA122"},{"$f":"IF(ISBLANK('TA Indicator Bank'!C126),\"\",'TA Indicator Bank'!C126)","v":"(Number of) Policies developed, amended or adopted"},{"$f":"IF(ISBLANK('TA Indicator Bank'!D126),\"\",'TA Indicator Bank'!D126)","v":"-"},{"$f":"IF(ISBLANK('TA Indicator Bank'!E126),\"\",'TA Indicator Bank'!E126)","v":"Outcome"},{"$f":"IF(ISBLANK('TA Indicator Bank'!F126),\"\",'TA Indicator Bank'!F126)","v":"-"},{"$f":"IF(ISBLANK('TA Indicator Bank'!G126),\"\",'TA Indicator Bank'!G126)","v":"-"},{"$f":"IF(ISBLANK('TA Indicator Bank'!H126),\"\",'TA Indicator Bank'!H126)","v":"Increased or improved policy development or execution"},{"$f":"IF(ISBLANK('TA Indicator Bank'!I126),\"\",'TA Indicator Bank'!I126)","v":"Number"},{"$f":"IF(ISBLANK('TA Indicator Bank'!J126),\"\",'TA Indicator Bank'!J126)","v":0},{"$f":"IF(ISBLANK('TA Indicator Bank'!K126),\"\",'TA Indicator Bank'!K126)","v":0},{"$f":"IF(ISBLANK('TA Indicator Bank'!L126),\"\",'TA Indicator Bank'!L126)","v":0},{"$f":"IF(ISBLANK('TA Indicator Bank'!M126),\"\",'TA Indicator Bank'!M126)","v":0},{"$f":"IF(ISBLANK('TA Indicator Bank'!N126),\"\",'TA Indicator Bank'!N126)","v":0},{"$f":"IF(ISBLANK('TA Indicator Bank'!O126),\"\",'TA Indicator Bank'!O126)","v":0},{"$f":"IF(ISBLANK('TA Indicator Bank'!P126),\"\",'TA Indicator Bank'!P126)","v":0},{"$f":"IF(ISBLANK('TA Indicator Bank'!Q126),\"\",'TA Indicator Bank'!Q126)","v":0},{"$f":"IF(ISBLANK('TA Indicator Bank'!R126),\"\",'TA Indicator Bank'!R126)","v":0},{"$f":"IF(ISBLANK('TA Indicator Bank'!S126),\"\",'TA Indicator Bank'!S126)","v":0},{"$f":"IF(ISBLANK('TA Indicator Bank'!T126),\"\",'TA Indicator Bank'!T126)","v":0},{"$f":"IF(ISBLANK('TA Indicator Bank'!U126),\"\",'TA Indicator Bank'!U126)","v":0},{"$f":"IF(ISBLANK('TA Indicator Bank'!V126),\"\",'TA Indicator Bank'!V126)","v":0},{"$f":"IF(ISBLANK('TA Indicator Bank'!W126),\"\",'TA Indicator Bank'!W126)","v":0},{"$f":"IF(ISBLANK('TA Indicator Bank'!X126),\"\",'TA Indicator Bank'!X126)","v":0},{"$f":"IF(ISBLANK('TA Indicator Bank'!Y126),\"\",'TA Indicator Bank'!Y126)","v":0},{"$f":"IF(ISBLANK('TA Indicator Bank'!Z126),\"\",'TA Indicator Bank'!Z126)","v":0},{"$f":"IF(ISBLANK('TA Indicator Bank'!AA126),\"\",'TA Indicator Bank'!AA126)","v":0},{"$f":"IF(ISBLANK('TA Indicator Bank'!AB126),\"\",'TA Indicator Bank'!AB126)","v":0},{"$f":"IF(ISBLANK('TA Indicator Bank'!AC126),\"\",'TA Indicator Bank'!AC126)","v":0},{"$f":"IF(ISBLANK('TA Indicator Bank'!AD126),\"\",'TA Indicator Bank'!AD126)","v":0},{"$f":"IF(ISBLANK('TA Indicator Bank'!AE126),\"\",'TA Indicator Bank'!AE126)","v":0},{"$f":"IF(ISBLANK('TA Indicator Bank'!AF126),\"\",'TA Indicator Bank'!AF126)","v":0},{"$f":"IF(ISBLANK('TA Indicator Bank'!AG126),\"\",'TA Indicator Bank'!AG126)","v":1},{"$f":"IF(ISBLANK('TA Indicator Bank'!AH126),\"\",'TA Indicator Bank'!AH126)","v":0},{"$f":"IF(ISBLANK('TA Indicator Bank'!AI126),\"\",'TA Indicator Bank'!AI126)","v":0},{"$f":"IF(ISBLANK('TA Indicator Bank'!AJ126),\"\",'TA Indicator Bank'!AJ126)","v":0},{"$f":"IF(ISBLANK('TA Indicator Bank'!AK126),\"\",'TA Indicator Bank'!AK126)","v":0},{"$f":"IF(ISBLANK('TA Indicator Bank'!AL126),\"\",'TA Indicator Bank'!AL126)","v":0},{"$f":"IF(ISBLANK('TA Indicator Bank'!AM126),\"\",'TA Indicator Bank'!AM126)","v":0},{"$f":"IF(ISBLANK('TA Indicator Bank'!AN126),\"\",'TA Indicator Bank'!AN126)","v":0},{"$f":"IF(ISBLANK('TA Indicator Bank'!AO126),\"\",'TA Indicator Bank'!AO126)","v":0},{"$f":"IF(ISBLANK('TA Indicator Bank'!AP126),\"\",'TA Indicator Bank'!AP126)","v":0},{"$f":"IF(ISBLANK('TA Indicator Bank'!AQ126),\"\",'TA Indicator Bank'!AQ126)","v":0},{"$f":"IF(ISBLANK('TA Indicator Bank'!AR126),\"\",'TA Indicator Bank'!AR126)","v":0},{"$f":"IF(ISBLANK('TA Indicator Bank'!AS126),\"\",'TA Indicator Bank'!AS126)","v":1},{"$f":"IF(ISBLANK('TA Indicator Bank'!AT126),\"\",'TA Indicator Bank'!AT126)","v":0},{"$f":"IF(AND(J130=1,J$410=1),1,0)","v":0},{"$f":"IF(AND(K130=1,K$410=1),1,0)","v":0},{"$f":"IF(AND(L130=1,L$410=1),1,0)","v":0},{"$f":"IF(AND(M130=1,M$410=1),1,0)","v":0},{"$f":"IF(AND(N130=1,N$410=1),1,0)","v":0},{"$f":"IF(AND(O130=1,O$410=1),1,0)","v":0},{"$f":"IF(AND(P130=1,P$410=1),1,0)","v":0},{"$f":"IF(AND(Q130=1,Q$410=1),1,0)","v":0},{"$f":"IF(AND(R130=1,R$410=1),1,0)","v":0},{"$f":"IF(AND(S130=1,S$410=1),1,0)","v":0},{"$f":"IF(AND(T130=1,T$410=1),1,0)","v":0},{"$f":"IF(AND(U130=1,U$410=1),1,0)","v":0},{"$f":"IF(AND(V130=1,V$410=1),1,0)","v":0},{"$f":"IF(AND(W130=1,W$410=1),1,0)","v":0},1,{"$f":"IF(AND(X130=1,X$410=1),1,0)","v":0},{"$f":"IF(AND(Y130=1,Y$410=1),1,0)","v":0},{"$f":"IF(AND(Z130=1,Z$410=1),1,0)","v":0},{"$f":"IF(AND(AA130=1,AA$410=1),1,0)","v":0},{"$f":"IF(AND(AB130=1,AB$410=1),1,0)","v":0},{"$f":"IF(AND(AC130=1,AC$410=1),1,0)","v":0},{"$f":"IF(AND(AD130=1,AD$410=1),1,0)","v":0},{"$f":"IF(AND(AE130=1,AE$410=1),1,0)","v":0},{"$f":"IF(AND(AF130=1,AF$410=1),1,0)","v":0},1,{"$f":"IF(AND(AG130=1,AG$410=1),1,0)","v":1},{"$f":"IF(AND(AH130=1,AH$410=1),1,0)","v":0},{"$f":"IF(AND(AI130=1,AI$410=1),1,0)","v":0},{"$f":"IF(AND(AJ130=1,AJ$410=1),1,0)","v":0},{"$f":"IF(AND(AK130=1,AK$410=1),1,0)","v":0},{"$f":"IF(AND(AL130=1,AL$410=1),1,0)","v":0},{"$f":"IF(AND(AM130=1,AM$410=1),1,0)","v":0},{"$f":"IF(AND(AN130=1,AN$410=1),1,0)","v":0},{"$f":"IF(AND(AO130=1,AO$410=1),1,0)","v":0},1,{"$f":"IF(AND(AP130=1,AP$410=1),1,0)","v":0},{"$f":"IF(AND(AQ130=1,AQ$410=1),1,0)","v":0},{"$f":"IF(AND(AR130=1,AR$410=1),1,0)","v":0},{"$f":"IF(AND(AS130=1,AS$410=1),1,0)","v":1},{"$f":"IF(AND(AT130=1,AT$410=1),1,0)","v":0},1,1,122,122,{"$f":"IFERROR(SMALL($CL$9:$CL$408,CK130),\"\")","v":122},{"$f":"IFERROR(INDEX($B$9:$I$408,$CM130,COLUMNS($CN$9:CN130)),\"\")","v":"TA122"},{"$f":"IFERROR(INDEX($B$9:$I$408,$CM130,COLUMNS($CN$9:CO130)),\"\")","v":"(Number of) Policies developed, amended or adopted"},{"$f":"IFERROR(INDEX($B$9:$I$408,$CM130,COLUMNS($CN$9:CP130)),\"\")","v":"-"},{"$f":"IFERROR(INDEX($B$9:$I$408,$CM130,COLUMNS($CN$9:CQ130)),\"\")","v":"Outcome"},{"$f":"IFERROR(INDEX($B$9:$I$408,$CM130,COLUMNS($CN$9:CR130)),\"\")","v":"-"},{"$f":"IFERROR(INDEX($B$9:$I$408,$CM130,COLUMNS($CN$9:CS130)),\"\")","v":"-"},{"$f":"IFERROR(INDEX($B$9:$I$408,$CM130,COLUMNS($CN$9:CT130)),\"\")","v":"Increased or improved policy development or execution"},{"$f":"IFERROR(INDEX($B$9:$I$408,$CM130,COLUMNS($CN$9:CU130)),\"\")","v":"Number"}]
[null,{"$f":"IF(ISBLANK('TA Indicator Bank'!B127),\"\",'TA Indicator Bank'!B127)","v":"TA123"},{"$f":"IF(ISBLANK('TA Indicator Bank'!C127),\"\",'TA Indicator Bank'!C127)","v":"Certain number of intersectoral agreements in place"},{"$f":"IF(ISBLANK('TA Indicator Bank'!D127),\"\",'TA Indicator Bank'!D127)","v":"-"},{"$f":"IF(ISBLANK('TA Indicator Bank'!E127),\"\",'TA Indicator Bank'!E127)","v":"Outcome"},{"$f":"IF(ISBLANK('TA Indicator Bank'!F127),\"\",'TA Indicator Bank'!F127)","v":"-"},{"$f":"IF(ISBLANK('TA Indicator Bank'!G127),\"\",'TA Indicator Bank'!G127)","v":"-"},{"$f":"IF(ISBLANK('TA Indicator Bank'!H127),\"\",'TA Indicator Bank'!H127)","v":"Increased or improved policy development or execution"},{"$f":"IF(ISBLANK('TA Indicator Bank'!I127),\"\",'TA Indicator Bank'!I127)","v":"Yes/No"},{"$f":"IF(ISBLANK('TA Indicator Bank'!J127),\"\",'TA Indicator Bank'!J127)","v":0},{"$f":"IF(ISBLANK('TA Indicator Bank'!K127),\"\",'TA Indicator Bank'!K127)","v":0},{"$f":"IF(ISBLANK('TA Indicator Bank'!L127),\"\",'TA Indicator Bank'!L127)","v":0},{"$f":"IF(ISBLANK('TA Indicator Bank'!M127),\"\",'TA Indicator Bank'!M127)","v":0},{"$f":"IF(ISBLANK('TA Indicator Bank'!N127),\"\",'TA Indicator Bank'!N127)","v":0},{"$f":"IF(ISBLANK('TA Indicator Bank'!O127),\"\",'TA Indicator Bank'!O127)","v":0},{"$f":"IF(ISBLANK('TA Indicator Bank'!P127),\"\",'TA Indicator Bank'!P127)","v":0},{"$f":"IF(ISBLANK('TA Indicator Bank'!Q127),\"\",'TA Indicator Bank'!Q127)","v":0},{"$f":"IF(ISBLANK('TA Indicator Bank'!R127),\"\",'TA Indicator Bank'!R127)","v":0},{"$f":"IF(ISBLANK('TA Indicator Bank'!S127),\"\",'TA Indicator Bank'!S127)","v":0},{"$f":"IF(ISBLANK('TA Indicator Bank'!T127),\"\",'TA Indicator Bank'!T127)","v":0},{"$f":"IF(ISBLANK('TA Indicator Bank'!U127),\"\",'TA Indicator Bank'!U127)","v":0},{"$f":"IF(ISBLANK('TA Indicator Bank'!V127),\"\",'TA Indicator Bank'!V127)","v":0},{"$f":"IF(ISBLANK('TA Indicator Bank'!W127),\"\",'TA Indicator Bank'!W127)","v":0},{"$f":"IF(ISBLANK('TA Indicator Bank'!X127),\"\",'TA Indicator Bank'!X127)","v":0},{"$f":"IF(ISBLANK('TA Indicator Bank'!Y127),\"\",'TA Indicator Bank'!Y127)","v":0},{"$f":"IF(ISBLANK('TA Indicator Bank'!Z127),\"\",'TA Indicator Bank'!Z127)","v":0},{"$f":"IF(ISBLANK('TA Indicator Bank'!AA127),\"\",'TA Indicator Bank'!AA127)","v":0},{"$f":"IF(ISBLANK('TA Indicator Bank'!AB127),\"\",'TA Indicator Bank'!AB127)","v":0},{"$f":"IF(ISBLANK('TA Indicator Bank'!AC127),\"\",'TA Indicator Bank'!AC127)","v":0},{"$f":"IF(ISBLANK('TA Indicator Bank'!AD127),\"\",'TA Indicator Bank'!AD127)","v":0},{"$f":"IF(ISBLANK('TA Indicator Bank'!AE127),\"\",'TA Indicator Bank'!AE127)","v":0},{"$f":"IF(ISBLANK('TA Indicator Bank'!AF127),\"\",'TA Indicator Bank'!AF127)","v":0},{"$f":"IF(ISBLANK('TA Indicator Bank'!AG127),\"\",'TA Indicator Bank'!AG127)","v":1},{"$f":"IF(ISBLANK('TA Indicator Bank'!AH127),\"\",'TA Indicator Bank'!AH127)","v":0},{"$f":"IF(ISBLANK('TA Indicator Bank'!AI127),\"\",'TA Indicator Bank'!AI127)","v":0},{"$f":"IF(ISBLANK('TA Indicator Bank'!AJ127),\"\",'TA Indicator Bank'!AJ127)","v":0},{"$f":"IF(ISBLANK('TA Indicator Bank'!AK127),\"\",'TA Indicator Bank'!AK127)","v":0},{"$f":"IF(ISBLANK('TA Indicator Bank'!AL127),\"\",'TA Indicator Bank'!AL127)","v":0},{"$f":"IF(ISBLANK('TA Indicator Bank'!AM127),\"\",'TA Indicator Bank'!AM127)","v":0},{"$f":"IF(ISBLANK('TA Indicator Bank'!AN127),\"\",'TA Indicator Bank'!AN127)","v":0},{"$f":"IF(ISBLANK('TA Indicator Bank'!AO127),\"\",'TA Indicator Bank'!AO127)","v":0},{"$f":"IF(ISBLANK('TA Indicator Bank'!AP127),\"\",'TA Indicator Bank'!AP127)","v":0},{"$f":"IF(ISBLANK('TA Indicator Bank'!AQ127),\"\",'TA Indicator Bank'!AQ127)","v":0},{"$f":"IF(ISBLANK('TA Indicator Bank'!AR127),\"\",'TA Indicator Bank'!AR127)","v":0},{"$f":"IF(ISBLANK('TA Indicator Bank'!AS127),\"\",'TA Indicator Bank'!AS127)","v":1},{"$f":"IF(ISBLANK('TA Indicator Bank'!AT127),\"\",'TA Indicator Bank'!AT127)","v":0},{"$f":"IF(AND(J131=1,J$410=1),1,0)","v":0},{"$f":"IF(AND(K131=1,K$410=1),1,0)","v":0},{"$f":"IF(AND(L131=1,L$410=1),1,0)","v":0},{"$f":"IF(AND(M131=1,M$410=1),1,0)","v":0},{"$f":"IF(AND(N131=1,N$410=1),1,0)","v":0},{"$f":"IF(AND(O131=1,O$410=1),1,0)","v":0},{"$f":"IF(AND(P131=1,P$410=1),1,0)","v":0},{"$f":"IF(AND(Q131=1,Q$410=1),1,0)","v":0},{"$f":"IF(AND(R131=1,R$410=1),1,0)","v":0},{"$f":"IF(AND(S131=1,S$410=1),1,0)","v":0},{"$f":"IF(AND(T131=1,T$410=1),1,0)","v":0},{"$f":"IF(AND(U131=1,U$410=1),1,0)","v":0},{"$f":"IF(AND(V131=1,V$410=1),1,0)","v":0},{"$f":"IF(AND(W131=1,W$410=1),1,0)","v":0},1,{"$f":"IF(AND(X131=1,X$410=1),1,0)","v":0},{"$f":"IF(AND(Y131=1,Y$410=1),1,0)","v":0},{"$f":"IF(AND(Z131=1,Z$410=1),1,0)","v":0},{"$f":"IF(AND(AA131=1,AA$410=1),1,0)","v":0},{"$f":"IF(AND(AB131=1,AB$410=1),1,0)","v":0},{"$f":"IF(AND(AC131=1,AC$410=1),1,0)","v":0},{"$f":"IF(AND(AD131=1,AD$410=1),1,0)","v":0},{"$f":"IF(AND(AE131=1,AE$410=1),1,0)","v":0},{"$f":"IF(AND(AF131=1,AF$410=1),1,0)","v":0},1,{"$f":"IF(AND(AG131=1,AG$410=1),1,0)","v":1},{"$f":"IF(AND(AH131=1,AH$410=1),1,0)","v":0},{"$f":"IF(AND(AI131=1,AI$410=1),1,0)","v":0},{"$f":"IF(AND(AJ131=1,AJ$410=1),1,0)","v":0},{"$f":"IF(AND(AK131=1,AK$410=1),1,0)","v":0},{"$f":"IF(AND(AL131=1,AL$410=1),1,0)","v":0},{"$f":"IF(AND(AM131=1,AM$410=1),1,0)","v":0},{"$f":"IF(AND(AN131=1,AN$410=1),1,0)","v":0},{"$f":"IF(AND(AO131=1,AO$410=1),1,0)","v":0},1,{"$f":"IF(AND(AP131=1,AP$410=1),1,0)","v":0},{"$f":"IF(AND(AQ131=1,AQ$410=1),1,0)","v":0},{"$f":"IF(AND(AR131=1,AR$410=1),1,0)","v":0},{"$f":"IF(AND(AS131=1,AS$410=1),1,0)","v":1},{"$f":"IF(AND(AT131=1,AT$410=1),1,0)","v":0},1,1,123,123,{"$f":"IFERROR(SMALL($CL$9:$CL$408,CK131),\"\")","v":123},{"$f":"IFERROR(INDEX($B$9:$I$408,$CM131,COLUMNS($CN$9:CN131)),\"\")","v":"TA123"},{"$f":"IFERROR(INDEX($B$9:$I$408,$CM131,COLUMNS($CN$9:CO131)),\"\")","v":"Certain number of intersectoral agreements in place"},{"$f":"IFERROR(INDEX($B$9:$I$408,$CM131,COLUMNS($CN$9:CP131)),\"\")","v":"-"},{"$f":"IFERROR(INDEX($B$9:$I$408,$CM131,COLUMNS($CN$9:CQ131)),\"\")","v":"Outcome"},{"$f":"IFERROR(INDEX($B$9:$I$408,$CM131,COLUMNS($CN$9:CR131)),\"\")","v":"-"},{"$f":"IFERROR(INDEX($B$9:$I$408,$CM131,COLUMNS($CN$9:CS131)),\"\")","v":"-"},{"$f":"IFERROR(INDEX($B$9:$I$408,$CM131,COLUMNS($CN$9:CT131)),\"\")","v":"Increased or improved policy development or execution"},{"$f":"IFERROR(INDEX($B$9:$I$408,$CM131,COLUMNS($CN$9:CU131)),\"\")","v":"Yes/No"}]
[null,{"$f":"IF(ISBLANK('TA Indicator Bank'!B128),\"\",'TA Indicator Bank'!B128)","v":"TA124"},{"$f":"IF(ISBLANK('TA Indicator Bank'!C128),\"\",'TA Indicator Bank'!C128)","v":"Certain number of officers to enforce policy in place"},{"$f":"IF(ISBLANK('TA Indicator Bank'!D128),\"\",'TA Indicator Bank'!D128)","v":"-"},{"$f":"IF(ISBLANK('TA Indicator Bank'!E128),\"\",'TA Indicator Bank'!E128)","v":"Output"},{"$f":"IF(ISBLANK('TA Indicator Bank'!F128),\"\",'TA Indicator Bank'!F128)","v":"-"},{"$f":"IF(ISBLANK('TA Indicator Bank'!G128),\"\",'TA Indicator Bank'!G128)","v":"Domestic policy support"},{"$f":"IF(ISBLANK('TA Indicator Bank'!H128),\"\",'TA Indicator Bank'!H128)","v":"-"},{"$f":"IF(ISBLANK('TA Indicator Bank'!I128),\"\",'TA Indicator Bank'!I128)","v":"Yes/No"},{"$f":"IF(ISBLANK('TA Indicator Bank'!J128),\"\",'TA Indicator Bank'!J128)","v":0},{"$f":"IF(ISBLANK('TA Indicator Bank'!K128),\"\",'TA Indicator Bank'!K128)","v":0},{"$f":"IF(ISBLANK('TA Indicator Bank'!L128),\"\",'TA Indicator Bank'!L128)","v":0},{"$f":"IF(ISBLANK('TA Indicator Bank'!M128),\"\",'TA Indicator Bank'!M128)","v":0},{"$f":"IF(ISBLANK('TA Indicator Bank'!N128),\"\",'TA Indicator Bank'!N128)","v":0},{"$f":"IF(ISBLANK('TA Indicator Bank'!O128),\"\",'TA Indicator Bank'!O128)","v":0},{"$f":"IF(ISBLANK('TA Indicator Bank'!P128),\"\",'TA Indicator Bank'!P128)","v":0},{"$f":"IF(ISBLANK('TA Indicator Bank'!Q128),\"\",'TA Indicator Bank'!Q128)","v":0},{"$f":"IF(ISBLANK('TA Indicator Bank'!R128),\"\",'TA Indicator Bank'!R128)","v":0},{"$f":"IF(ISBLANK('TA Indicator Bank'!S128),\"\",'TA Indicator Bank'!S128)","v":0},{"$f":"IF(ISBLANK('TA Indicator Bank'!T128),\"\",'TA Indicator Bank'!T128)","v":0},{"$f":"IF(ISBLANK('TA Indicator Bank'!U128),\"\",'TA Indicator Bank'!U128)","v":0},{"$f":"IF(ISBLANK('TA Indicator Bank'!V128),\"\",'TA Indicator Bank'!V128)","v":0},{"$f":"IF(ISBLANK('TA Indicator Bank'!W128),\"\",'TA Indicator Bank'!W128)","v":0},{"$f":"IF(ISBLANK('TA Indicator Bank'!X128),\"\",'TA Indicator Bank'!X128)","v":0},{"$f":"IF(ISBLANK('TA Indicator Bank'!Y128),\"\",'TA Indicator Bank'!Y128)","v":0},{"$f":"IF(ISBLANK('TA Indicator Bank'!Z128),\"\",'TA Indicator Bank'!Z128)","v":0},{"$f":"IF(ISBLANK('TA Indicator Bank'!AA128),\"\",'TA Indicator Bank'!AA128)","v":1},{"$f":"IF(ISBLANK('TA Indicator Bank'!AB128),\"\",'TA Indicator Bank'!AB128)","v":0},{"$f":"IF(ISBLANK('TA Indicator Bank'!AC128),\"\",'TA Indicator Bank'!AC128)","v":0},{"$f":"IF(ISBLANK('TA Indicator Bank'!AD128),\"\",'TA Indicator Bank'!AD128)","v":0},{"$f":"IF(ISBLANK('TA Indicator Bank'!AE128),\"\",'TA Indicator Bank'!AE128)","v":0},{"$f":"IF(ISBLANK('TA Indicator Bank'!AF128),\"\",'TA Indicator Bank'!AF128)","v":0},{"$f":"IF(ISBLANK('TA Indicator Bank'!AG128),\"\",'TA Indicator Bank'!AG128)","v":0},{"$f":"IF(ISBLANK('TA Indicator Bank'!AH128),\"\",'TA Indicator Bank'!AH128)","v":0},{"$f":"IF(ISBLANK('TA Indicator Bank'!AI128),\"\",'TA Indicator Bank'!AI128)","v":0},{"$f":"IF(ISBLANK('TA Indicator Bank'!AJ128),\"\",'TA Indicator Bank'!AJ128)","v":0},{"$f":"IF(ISBLANK('TA Indicator Bank'!AK128),\"\",'TA Indicator Bank'!AK128)","v":0},{"$f":"IF(ISBLANK('TA Indicator Bank'!AL128),\"\",'TA Indicator Bank'!AL128)","v":0},{"$f":"IF(ISBLANK('TA Indicator Bank'!AM128),\"\",'TA Indicator Bank'!AM128)","v":0},{"$f":"IF(ISBLANK('TA Indicator Bank'!AN128),\"\",'TA Indicator Bank'!AN128)","v":0},{"$f":"IF(ISBLANK('TA Indicator Bank'!AO128),\"\",'TA Indicator Bank'!AO128)","v":0},{"$f":"IF(ISBLANK('TA Indicator Bank'!AP128),\"\",'TA Indicator Bank'!AP128)","v":0},{"$f":"IF(ISBLANK('TA Indicator Bank'!AQ128),\"\",'TA Indicator Bank'!AQ128)","v":0},{"$f":"IF(ISBLANK('TA Indicator Bank'!AR128),\"\",'TA Indicator Bank'!AR128)","v":1},{"$f":"IF(ISBLANK('TA Indicator Bank'!AS128),\"\",'TA Indicator Bank'!AS128)","v":0},{"$f":"IF(ISBLANK('TA Indicator Bank'!AT128),\"\",'TA Indicator Bank'!AT128)","v":0},{"$f":"IF(AND(J132=1,J$410=1),1,0)","v":0},{"$f":"IF(AND(K132=1,K$410=1),1,0)","v":0},{"$f":"IF(AND(L132=1,L$410=1),1,0)","v":0},{"$f":"IF(AND(M132=1,M$410=1),1,0)","v":0},{"$f":"IF(AND(N132=1,N$410=1),1,0)","v":0},{"$f":"IF(AND(O132=1,O$410=1),1,0)","v":0},{"$f":"IF(AND(P132=1,P$410=1),1,0)","v":0},{"$f":"IF(AND(Q132=1,Q$410=1),1,0)","v":0},{"$f":"IF(AND(R132=1,R$410=1),1,0)","v":0},{"$f":"IF(AND(S132=1,S$410=1),1,0)","v":0},{"$f":"IF(AND(T132=1,T$410=1),1,0)","v":0},{"$f":"IF(AND(U132=1,U$410=1),1,0)","v":0},{"$f":"IF(AND(V132=1,V$410=1),1,0)","v":0},{"$f":"IF(AND(W132=1,W$410=1),1,0)","v":0},1,{"$f":"IF(AND(X132=1,X$410=1),1,0)","v":0},{"$f":"IF(AND(Y132=1,Y$410=1),1,0)","v":0},{"$f":"IF(AND(Z132=1,Z$410=1),1,0)","v":0},{"$f":"IF(AND(AA132=1,AA$410=1),1,0)","v":1},{"$f":"IF(AND(AB132=1,AB$410=1),1,0)","v":0},{"$f":"IF(AND(AC132=1,AC$410=1),1,0)","v":0},{"$f":"IF(AND(AD132=1,AD$410=1),1,0)","v":0},{"$f":"IF(AND(AE132=1,AE$410=1),1,0)","v":0},{"$f":"IF(AND(AF132=1,AF$410=1),1,0)","v":0},1,{"$f":"IF(AND(AG132=1,AG$410=1),1,0)","v":0},{"$f":"IF(AND(AH132=1,AH$410=1),1,0)","v":0},{"$f":"IF(AND(AI132=1,AI$410=1),1,0)","v":0},{"$f":"IF(AND(AJ132=1,AJ$410=1),1,0)","v":0},{"$f":"IF(AND(AK132=1,AK$410=1),1,0)","v":0},{"$f":"IF(AND(AL132=1,AL$410=1),1,0)","v":0},{"$f":"IF(AND(AM132=1,AM$410=1),1,0)","v":0},{"$f":"IF(AND(AN132=1,AN$410=1),1,0)","v":0},{"$f":"IF(AND(AO132=1,AO$410=1),1,0)","v":0},1,{"$f":"IF(AND(AP132=1,AP$410=1),1,0)","v":0},{"$f":"IF(AND(AQ132=1,AQ$410=1),1,0)","v":0},{"$f":"IF(AND(AR132=1,AR$410=1),1,0)","v":1},{"$f":"IF(AND(AS132=1,AS$410=1),1,0)","v":0},{"$f":"IF(AND(AT132=1,AT$410=1),1,0)","v":0},1,1,124,124,{"$f":"IFERROR(SMALL($CL$9:$CL$408,CK132),\"\")","v":124},{"$f":"IFERROR(INDEX($B$9:$I$408,$CM132,COLUMNS($CN$9:CN132)),\"\")","v":"TA124"},{"$f":"IFERROR(INDEX($B$9:$I$408,$CM132,COLUMNS($CN$9:CO132)),\"\")","v":"Certain number of officers to enforce policy in place"},{"$f":"IFERROR(INDEX($B$9:$I$408,$CM132,COLUMNS($CN$9:CP132)),\"\")","v":"-"},{"$f":"IFERROR(INDEX($B$9:$I$408,$CM132,COLUMNS($CN$9:CQ132)),\"\")","v":"Output"},{"$f":"IFERROR(INDEX($B$9:$I$408,$CM132,COLUMNS($CN$9:CR132)),\"\")","v":"-"},{"$f":"IFERROR(INDEX($B$9:$I$408,$CM132,COLUMNS($CN$9:CS132)),\"\")","v":"Domestic policy support"},{"$f":"IFERROR(INDEX($B$9:$I$408,$CM132,COLUMNS($CN$9:CT132)),\"\")","v":"-"},{"$f":"IFERROR(INDEX($B$9:$I$408,$CM132,COLUMNS($CN$9:CU132)),\"\")","v":"Yes/No"}]
[null,{"$f":"IF(ISBLANK('TA Indicator Bank'!B129),\"\",'TA Indicator Bank'!B129)","v":"TA125"},{"$f":"IF(ISBLANK('TA Indicator Bank'!C129),\"\",'TA Indicator Bank'!C129)","v":"Number of jurisdictions with improved policies"},{"$f":"IF(ISBLANK('TA Indicator Bank'!D129),\"\",'TA Indicator Bank'!D129)","v":"-"},{"$f":"IF(ISBLANK('TA Indicator Bank'!E129),\"\",'TA Indicator Bank'!E129)","v":"Outcome"},{"$f":"IF(ISBLANK('TA Indicator Bank'!F129),\"\",'TA Indicator Bank'!F129)","v":"-"},{"$f":"IF(ISBLANK('TA Indicator Bank'!G129),\"\",'TA Indicator Bank'!G129)","v":"-"},{"$f":"IF(ISBLANK('TA Indicator Bank'!H129),\"\",'TA Indicator Bank'!H129)","v":"Increased or improved policy development or execution"},{"$f":"IF(ISBLANK('TA Indicator Bank'!I129),\"\",'TA Indicator Bank'!I129)","v":"Number"},{"$f":"IF(ISBLANK('TA Indicator Bank'!J129),\"\",'TA Indicator Bank'!J129)","v":0},{"$f":"IF(ISBLANK('TA Indicator Bank'!K129),\"\",'TA Indicator Bank'!K129)","v":0},{"$f":"IF(ISBLANK('TA Indicator Bank'!L129),\"\",'TA Indicator Bank'!L129)","v":0},{"$f":"IF(ISBLANK('TA Indicator Bank'!M129),\"\",'TA Indicator Bank'!M129)","v":0},{"$f":"IF(ISBLANK('TA Indicator Bank'!N129),\"\",'TA Indicator Bank'!N129)","v":0},{"$f":"IF(ISBLANK('TA Indicator Bank'!O129),\"\",'TA Indicator Bank'!O129)","v":0},{"$f":"IF(ISBLANK('TA Indicator Bank'!P129),\"\",'TA Indicator Bank'!P129)","v":0},{"$f":"IF(ISBLANK('TA Indicator Bank'!Q129),\"\",'TA Indicator Bank'!Q129)","v":0},{"$f":"IF(ISBLANK('TA Indicator Bank'!R129),\"\",'TA Indicator Bank'!R129)","v":0},{"$f":"IF(ISBLANK('TA Indicator Bank'!S129),\"\",'TA Indicator Bank'!S129)","v":0},{"$f":"IF(ISBLANK('TA Indicator Bank'!T129),\"\",'TA Indicator Bank'!T129)","v":0},{"$f":"IF(ISBLANK('TA Indicator Bank'!U129),\"\",'TA Indicator Bank'!U129)","v":0},{"$f":"IF(ISBLANK('TA Indicator Bank'!V129),\"\",'TA Indicator Bank'!V129)","v":0},{"$f":"IF(ISBLANK('TA Indicator Bank'!W129),\"\",'TA Indicator Bank'!W129)","v":0},{"$f":"IF(ISBLANK('TA Indicator Bank'!X129),\"\",'TA Indicator Bank'!X129)","v":0},{"$f":"IF(ISBLANK('TA Indicator Bank'!Y129),\"\",'TA Indicator Bank'!Y129)","v":0},{"$f":"IF(ISBLANK('TA Indicator Bank'!Z129),\"\",'TA Indicator Bank'!Z129)","v":0},{"$f":"IF(ISBLANK('TA Indicator Bank'!AA129),\"\",'TA Indicator Bank'!AA129)","v":0},{"$f":"IF(ISBLANK('TA Indicator Bank'!AB129),\"\",'TA Indicator Bank'!AB129)","v":0},{"$f":"IF(ISBLANK('TA Indicator Bank'!AC129),\"\",'TA Indicator Bank'!AC129)","v":0},{"$f":"IF(ISBLANK('TA Indicator Bank'!AD129),\"\",'TA Indicator Bank'!AD129)","v":0},{"$f":"IF(ISBLANK('TA Indicator Bank'!AE129),\"\",'TA Indicator Bank'!AE129)","v":0},{"$f":"IF(ISBLANK('TA Indicator Bank'!AF129),\"\",'TA Indicator Bank'!AF129)","v":0},{"$f":"IF(ISBLANK('TA Indicator Bank'!AG129),\"\",'TA Indicator Bank'!AG129)","v":1},{"$f":"IF(ISBLANK('TA Indicator Bank'!AH129),\"\",'TA Indicator Bank'!AH129)","v":0},{"$f":"IF(ISBLANK('TA Indicator Bank'!AI129),\"\",'TA Indicator Bank'!AI129)","v":0},{"$f":"IF(ISBLANK('TA Indicator Bank'!AJ129),\"\",'TA Indicator Bank'!AJ129)","v":0},{"$f":"IF(ISBLANK('TA Indicator Bank'!AK129),\"\",'TA Indicator Bank'!AK129)","v":0},{"$f":"IF(ISBLANK('TA Indicator Bank'!AL129),\"\",'TA Indicator Bank'!AL129)","v":0},{"$f":"IF(ISBLANK('TA Indicator Bank'!AM129),\"\",'TA Indicator Bank'!AM129)","v":0},{"$f":"IF(ISBLANK('TA Indicator Bank'!AN129),\"\",'TA Indicator Bank'!AN129)","v":0},{"$f":"IF(ISBLANK('TA Indicator Bank'!AO129),\"\",'TA Indicator Bank'!AO129)","v":0},{"$f":"IF(ISBLANK('TA Indicator Bank'!AP129),\"\",'TA Indicator Bank'!AP129)","v":0},{"$f":"IF(ISBLANK('TA Indicator Bank'!AQ129),\"\",'TA Indicator Bank'!AQ129)","v":0},{"$f":"IF(ISBLANK('TA Indicator Bank'!AR129),\"\",'TA Indicator Bank'!AR129)","v":0},{"$f":"IF(ISBLANK('TA Indicator Bank'!AS129),\"\",'TA Indicator Bank'!AS129)","v":1},{"$f":"IF(ISBLANK('TA Indicator Bank'!AT129),\"\",'TA Indicator Bank'!AT129)","v":0},{"$f":"IF(AND(J133=1,J$410=1),1,0)","v":0},{"$f":"IF(AND(K133=1,K$410=1),1,0)","v":0},{"$f":"IF(AND(L133=1,L$410=1),1,0)","v":0},{"$f":"IF(AND(M133=1,M$410=1),1,0)","v":0},{"$f":"IF(AND(N133=1,N$410=1),1,0)","v":0},{"$f":"IF(AND(O133=1,O$410=1),1,0)","v":0},{"$f":"IF(AND(P133=1,P$410=1),1,0)","v":0},{"$f":"IF(AND(Q133=1,Q$410=1),1,0)","v":0},{"$f":"IF(AND(R133=1,R$410=1),1,0)","v":0},{"$f":"IF(AND(S133=1,S$410=1),1,0)","v":0},{"$f":"IF(AND(T133=1,T$410=1),1,0)","v":0},{"$f":"IF(AND(U133=1,U$410=1),1,0)","v":0},{"$f":"IF(AND(V133=1,V$410=1),1,0)","v":0},{"$f":"IF(AND(W133=1,W$410=1),1,0)","v":0},1,{"$f":"IF(AND(X133=1,X$410=1),1,0)","v":0},{"$f":"IF(AND(Y133=1,Y$410=1),1,0)","v":0},{"$f":"IF(AND(Z133=1,Z$410=1),1,0)","v":0},{"$f":"IF(AND(AA133=1,AA$410=1),1,0)","v":0},{"$f":"IF(AND(AB133=1,AB$410=1),1,0)","v":0},{"$f":"IF(AND(AC133=1,AC$410=1),1,0)","v":0},{"$f":"IF(AND(AD133=1,AD$410=1),1,0)","v":0},{"$f":"IF(AND(AE133=1,AE$410=1),1,0)","v":0},{"$f":"IF(AND(AF133=1,AF$410=1),1,0)","v":0},1,{"$f":"IF(AND(AG133=1,AG$410=1),1,0)","v":1},{"$f":"IF(AND(AH133=1,AH$410=1),1,0)","v":0},{"$f":"IF(AND(AI133=1,AI$410=1),1,0)","v":0},{"$f":"IF(AND(AJ133=1,AJ$410=1),1,0)","v":0},{"$f":"IF(AND(AK133=1,AK$410=1),1,0)","v":0},{"$f":"IF(AND(AL133=1,AL$410=1),1,0)","v":0},{"$f":"IF(AND(AM133=1,AM$410=1),1,0)","v":0},{"$f":"IF(AND(AN133=1,AN$410=1),1,0)","v":0},{"$f":"IF(AND(AO133=1,AO$410=1),1,0)","v":0},1,{"$f":"IF(AND(AP133=1,AP$410=1),1,0)","v":0},{"$f":"IF(AND(AQ133=1,AQ$410=1),1,0)","v":0},{"$f":"IF(AND(AR133=1,AR$410=1),1,0)","v":0},{"$f":"IF(AND(AS133=1,AS$410=1),1,0)","v":1},{"$f":"IF(AND(AT133=1,AT$410=1),1,0)","v":0},1,1,125,125,{"$f":"IFERROR(SMALL($CL$9:$CL$408,CK133),\"\")","v":125},{"$f":"IFERROR(INDEX($B$9:$I$408,$CM133,COLUMNS($CN$9:CN133)),\"\")","v":"TA125"},{"$f":"IFERROR(INDEX($B$9:$I$408,$CM133,COLUMNS($CN$9:CO133)),\"\")","v":"Number of jurisdictions with improved policies"},{"$f":"IFERROR(INDEX($B$9:$I$408,$CM133,COLUMNS($CN$9:CP133)),\"\")","v":"-"},{"$f":"IFERROR(INDEX($B$9:$I$408,$CM133,COLUMNS($CN$9:CQ133)),\"\")","v":"Outcome"},{"$f":"IFERROR(INDEX($B$9:$I$408,$CM133,COLUMNS($CN$9:CR133)),\"\")","v":"-"},{"$f":"IFERROR(INDEX($B$9:$I$408,$CM133,COLUMNS($CN$9:CS133)),\"\")","v":"-"},{"$f":"IFERROR(INDEX($B$9:$I$408,$CM133,COLUMNS($CN$9:CT133)),\"\")","v":"Increased or improved policy development or execution"},{"$f":"IFERROR(INDEX($B$9:$I$408,$CM133,COLUMNS($CN$9:CU133)),\"\")","v":"Number"}]
[null,{"$f":"IF(ISBLANK('TA Indicator Bank'!B130),\"\",'TA Indicator Bank'!B130)","v":"TA126"},{"$f":"IF(ISBLANK('TA Indicator Bank'!C130),\"\",'TA Indicator Bank'!C130)","v":"Number of projects with operational m&e plans"},{"$f":"IF(ISBLANK('TA Indicator Bank'!D130),\"\",'TA Indicator Bank'!D130)","v":"-"},{"$f":"IF(ISBLANK('TA Indicator Bank'!E130),\"\",'TA Indicator Bank'!E130)","v":"Outcome"},{"$f":"IF(ISBLANK('TA Indicator Bank'!F130),\"\",'TA Indicator Bank'!F130)","v":"-"},{"$f":"IF(ISBLANK('TA Indicator Bank'!G130),\"\",'TA Indicator Bank'!G130)","v":"-"},{"$f":"IF(ISBLANK('TA Indicator Bank'!H130),\"\",'TA Indicator Bank'!H130)","v":"Improved operation of processes or assets (inc. e.g. electricity grid stability, agricultural livelihoods, forest management)"},{"$f":"IF(ISBLANK('TA Indicator Bank'!I130),\"\",'TA Indicator Bank'!I130)","v":"Number"},{"$f":"IF(ISBLANK('TA Indicator Bank'!J130),\"\",'TA Indicator Bank'!J130)","v":0},{"$f":"IF(ISBLANK('TA Indicator Bank'!K130),\"\",'TA Indicator Bank'!K130)","v":0},{"$f":"IF(ISBLANK('TA Indicator Bank'!L130),\"\",'TA Indicator Bank'!L130)","v":0},{"$f":"IF(ISBLANK('TA Indicator Bank'!M130),\"\",'TA Indicator Bank'!M130)","v":0},{"$f":"IF(ISBLANK('TA Indicator Bank'!N130),\"\",'TA Indicator Bank'!N130)","v":0},{"$f":"IF(ISBLANK('TA Indicator Bank'!O130),\"\",'TA Indicator Bank'!O130)","v":0},{"$f":"IF(ISBLANK('TA Indicator Bank'!P130),\"\",'TA Indicator Bank'!P130)","v":0},{"$f":"IF(ISBLANK('TA Indicator Bank'!Q130),\"\",'TA Indicator Bank'!Q130)","v":0},{"$f":"IF(ISBLANK('TA Indicator Bank'!R130),\"\",'TA Indicator Bank'!R130)","v":0},{"$f":"IF(ISBLANK('TA Indicator Bank'!S130),\"\",'TA Indicator Bank'!S130)","v":0},{"$f":"IF(ISBLANK('TA Indicator Bank'!T130),\"\",'TA Indicator Bank'!T130)","v":0},{"$f":"IF(ISBLANK('TA Indicator Bank'!U130),\"\",'TA Indicator Bank'!U130)","v":0},{"$f":"IF(ISBLANK('TA Indicator Bank'!V130),\"\",'TA Indicator Bank'!V130)","v":0},{"$f":"IF(ISBLANK('TA Indicator Bank'!W130),\"\",'TA Indicator Bank'!W130)","v":0},{"$f":"IF(ISBLANK('TA Indicator Bank'!X130),\"\",'TA Indicator Bank'!X130)","v":0},{"$f":"IF(ISBLANK('TA Indicator Bank'!Y130),\"\",'TA Indicator Bank'!Y130)","v":0},{"$f":"IF(ISBLANK('TA Indicator Bank'!Z130),\"\",'TA Indicator Bank'!Z130)","v":0},{"$f":"IF(ISBLANK('TA Indicator Bank'!AA130),\"\",'TA Indicator Bank'!AA130)","v":0},{"$f":"IF(ISBLANK('TA Indicator Bank'!AB130),\"\",'TA Indicator Bank'!AB130)","v":0},{"$f":"IF(ISBLANK('TA Indicator Bank'!AC130),\"\",'TA Indicator Bank'!AC130)","v":0},{"$f":"IF(ISBLANK('TA Indicator Bank'!AD130),\"\",'TA Indicator Bank'!AD130)","v":0},{"$f":"IF(ISBLANK('TA Indicator Bank'!AE130),\"\",'TA Indicator Bank'!AE130)","v":0},{"$f":"IF(ISBLANK('TA Indicator Bank'!AF130),\"\",'TA Indicator Bank'!AF130)","v":0},{"$f":"IF(ISBLANK('TA Indicator Bank'!AG130),\"\",'TA Indicator Bank'!AG130)","v":0},{"$f":"IF(ISBLANK('TA Indicator Bank'!AH130),\"\",'TA Indicator Bank'!AH130)","v":0},{"$f":"IF(ISBLANK('TA Indicator Bank'!AI130),\"\",'TA Indicator Bank'!AI130)","v":0},{"$f":"IF(ISBLANK('TA Indicator Bank'!AJ130),\"\",'TA Indicator Bank'!AJ130)","v":0},{"$f":"IF(ISBLANK('TA Indicator Bank'!AK130),\"\",'TA Indicator Bank'!AK130)","v":0},{"$f":"IF(ISBLANK('TA Indicator Bank'!AL130),\"\",'TA Indicator Bank'!AL130)","v":1},{"$f":"IF(ISBLANK('TA Indicator Bank'!AM130),\"\",'TA Indicator Bank'!AM130)","v":0},{"$f":"IF(ISBLANK('TA Indicator Bank'!AN130),\"\",'TA Indicator Bank'!AN130)","v":0},{"$f":"IF(ISBLANK('TA Indicator Bank'!AO130),\"\",'TA Indicator Bank'!AO130)","v":0},{"$f":"IF(ISBLANK('TA Indicator Bank'!AP130),\"\",'TA Indicator Bank'!AP130)","v":0},{"$f":"IF(ISBLANK('TA Indicator Bank'!AQ130),\"\",'TA Indicator Bank'!AQ130)","v":0},{"$f":"IF(ISBLANK('TA Indicator Bank'!AR130),\"\",'TA Indicator Bank'!AR130)","v":0},{"$f":"IF(ISBLANK('TA Indicator Bank'!AS130),\"\",'TA Indicator Bank'!AS130)","v":1},{"$f":"IF(ISBLANK('TA Indicator Bank'!AT130),\"\",'TA Indicator Bank'!AT130)","v":0},{"$f":"IF(AND(J134=1,J$410=1),1,0)","v":0},{"$f":"IF(AND(K134=1,K$410=1),1,0)","v":0},{"$f":"IF(AND(L134=1,L$410=1),1,0)","v":0},{"$f":"IF(AND(M134=1,M$410=1),1,0)","v":0},{"$f":"IF(AND(N134=1,N$410=1),1,0)","v":0},{"$f":"IF(AND(O134=1,O$410=1),1,0)","v":0},{"$f":"IF(AND(P134=1,P$410=1),1,0)","v":0},{"$f":"IF(AND(Q134=1,Q$410=1),1,0)","v":0},{"$f":"IF(AND(R134=1,R$410=1),1,0)","v":0},{"$f":"IF(AND(S134=1,S$410=1),1,0)","v":0},{"$f":"IF(AND(T134=1,T$410=1),1,0)","v":0},{"$f":"IF(AND(U134=1,U$410=1),1,0)","v":0},{"$f":"IF(AND(V134=1,V$410=1),1,0)","v":0},{"$f":"IF(AND(W134=1,W$410=1),1,0)","v":0},1,{"$f":"IF(AND(X134=1,X$410=1),1,0)","v":0},{"$f":"IF(AND(Y134=1,Y$410=1),1,0)","v":0},{"$f":"IF(AND(Z134=1,Z$410=1),1,0)","v":0},{"$f":"IF(AND(AA134=1,AA$410=1),1,0)","v":0},{"$f":"IF(AND(AB134=1,AB$410=1),1,0)","v":0},{"$f":"IF(AND(AC134=1,AC$410=1),1,0)","v":0},{"$f":"IF(AND(AD134=1,AD$410=1),1,0)","v":0},{"$f":"IF(AND(AE134=1,AE$410=1),1,0)","v":0},{"$f":"IF(AND(AF134=1,AF$410=1),1,0)","v":0},1,{"$f":"IF(AND(AG134=1,AG$410=1),1,0)","v":0},{"$f":"IF(AND(AH134=1,AH$410=1),1,0)","v":0},{"$f":"IF(AND(AI134=1,AI$410=1),1,0)","v":0},{"$f":"IF(AND(AJ134=1,AJ$410=1),1,0)","v":0},{"$f":"IF(AND(AK134=1,AK$410=1),1,0)","v":0},{"$f":"IF(AND(AL134=1,AL$410=1),1,0)","v":1},{"$f":"IF(AND(AM134=1,AM$410=1),1,0)","v":0},{"$f":"IF(AND(AN134=1,AN$410=1),1,0)","v":0},{"$f":"IF(AND(AO134=1,AO$410=1),1,0)","v":0},1,{"$f":"IF(AND(AP134=1,AP$410=1),1,0)","v":0},{"$f":"IF(AND(AQ134=1,AQ$410=1),1,0)","v":0},{"$f":"IF(AND(AR134=1,AR$410=1),1,0)","v":0},{"$f":"IF(AND(AS134=1,AS$410=1),1,0)","v":1},{"$f":"IF(AND(AT134=1,AT$410=1),1,0)","v":0},1,1,126,126,{"$f":"IFERROR(SMALL($CL$9:$CL$408,CK134),\"\")","v":126},{"$f":"IFERROR(INDEX($B$9:$I$408,$CM134,COLUMNS($CN$9:CN134)),\"\")","v":"TA126"},{"$f":"IFERROR(INDEX($B$9:$I$408,$CM134,COLUMNS($CN$9:CO134)),\"\")","v":"Number of projects with operational m&e plans"},{"$f":"IFERROR(INDEX($B$9:$I$408,$CM134,COLUMNS($CN$9:CP134)),\"\")","v":"-"},{"$f":"IFERROR(INDEX($B$9:$I$408,$CM134,COLUMNS($CN$9:CQ134)),\"\")","v":"Outcome"},{"$f":"IFERROR(INDEX($B$9:$I$408,$CM134,COLUMNS($CN$9:CR134)),\"\")","v":"-"},{"$f":"IFERROR(INDEX($B$9:$I$408,$CM134,COLUMNS($CN$9:CS134)),\"\")","v":"-"},{"$f":"IFERROR(INDEX($B$9:$I$408,$CM134,COLUMNS($CN$9:CT134)),\"\")","v":"Improved operation of processes or assets (inc. e.g. electricity grid stability, agricultural livelihoods, forest management)"},{"$f":"IFERROR(INDEX($B$9:$I$408,$CM134,COLUMNS($CN$9:CU134)),\"\")","v":"Number"}]
[null,{"$f":"IF(ISBLANK('TA Indicator Bank'!B131),\"\",'TA Indicator Bank'!B131)","v":"TA127"},{"$f":"IF(ISBLANK('TA Indicator Bank'!C131),\"\",'TA Indicator Bank'!C131)","v":"Governance structures improved"},{"$f":"IF(ISBLANK('TA Indicator Bank'!D131),\"\",'TA Indicator Bank'!D131)","v":"-"},{"$f":"IF(ISBLANK('TA Indicator Bank'!E131),\"\",'TA Indicator Bank'!E131)","v":"Output"},{"$f":"IF(ISBLANK('TA Indicator Bank'!F131),\"\",'TA Indicator Bank'!F131)","v":"-"},{"$f":"IF(ISBLANK('TA Indicator Bank'!G131),\"\",'TA Indicator Bank'!G131)","v":"Domestic policy support"},{"$f":"IF(ISBLANK('TA Indicator Bank'!H131),\"\",'TA Indicator Bank'!H131)","v":"-"},{"$f":"IF(ISBLANK('TA Indicator Bank'!I131),\"\",'TA Indicator Bank'!I131)","v":"Narrative"},{"$f":"IF(ISBLANK('TA Indicator Bank'!J131),\"\",'TA Indicator Bank'!J131)","v":0},{"$f":"IF(ISBLANK('TA Indicator Bank'!K131),\"\",'TA Indicator Bank'!K131)","v":0},{"$f":"IF(ISBLANK('TA Indicator Bank'!L131),\"\",'TA Indicator Bank'!L131)","v":0},{"$f":"IF(ISBLANK('TA Indicator Bank'!M131),\"\",'TA Indicator Bank'!M131)","v":0},{"$f":"IF(ISBLANK('TA Indicator Bank'!N131),\"\",'TA Indicator Bank'!N131)","v":0},{"$f":"IF(ISBLANK('TA Indicator Bank'!O131),\"\",'TA Indicator Bank'!O131)","v":0},{"$f":"IF(ISBLANK('TA Indicator Bank'!P131),\"\",'TA Indicator Bank'!P131)","v":0},{"$f":"IF(ISBLANK('TA Indicator Bank'!Q131),\"\",'TA Indicator Bank'!Q131)","v":0},{"$f":"IF(ISBLANK('TA Indicator Bank'!R131),\"\",'TA Indicator Bank'!R131)","v":0},{"$f":"IF(ISBLANK('TA Indicator Bank'!S131),\"\",'TA Indicator Bank'!S131)","v":0},{"$f":"IF(ISBLANK('TA Indicator Bank'!T131),\"\",'TA Indicator Bank'!T131)","v":0},{"$f":"IF(ISBLANK('TA Indicator Bank'!U131),\"\",'TA Indicator Bank'!U131)","v":0},{"$f":"IF(ISBLANK('TA Indicator Bank'!V131),\"\",'TA Indicator Bank'!V131)","v":0},{"$f":"IF(ISBLANK('TA Indicator Bank'!W131),\"\",'TA Indicator Bank'!W131)","v":0},{"$f":"IF(ISBLANK('TA Indicator Bank'!X131),\"\",'TA Indicator Bank'!X131)","v":0},{"$f":"IF(ISBLANK('TA Indicator Bank'!Y131),\"\",'TA Indicator Bank'!Y131)","v":0},{"$f":"IF(ISBLANK('TA Indicator Bank'!Z131),\"\",'TA Indicator Bank'!Z131)","v":0},{"$f":"IF(ISBLANK('TA Indicator Bank'!AA131),\"\",'TA Indicator Bank'!AA131)","v":1},{"$f":"IF(ISBLANK('TA Indicator Bank'!AB131),\"\",'TA Indicator Bank'!AB131)","v":0},{"$f":"IF(ISBLANK('TA Indicator Bank'!AC131),\"\",'TA Indicator Bank'!AC131)","v":0},{"$f":"IF(ISBLANK('TA Indicator Bank'!AD131),\"\",'TA Indicator Bank'!AD131)","v":0},{"$f":"IF(ISBLANK('TA Indicator Bank'!AE131),\"\",'TA Indicator Bank'!AE131)","v":0},{"$f":"IF(ISBLANK('TA Indicator Bank'!AF131),\"\",'TA Indicator Bank'!AF131)","v":0},{"$f":"IF(ISBLANK('TA Indicator Bank'!AG131),\"\",'TA Indicator Bank'!AG131)","v":0},{"$f":"IF(ISBLANK('TA Indicator Bank'!AH131),\"\",'TA Indicator Bank'!AH131)","v":0},{"$f":"IF(ISBLANK('TA Indicator Bank'!AI131),\"\",'TA Indicator Bank'!AI131)","v":0},{"$f":"IF(ISBLANK('TA Indicator Bank'!AJ131),\"\",'TA Indicator Bank'!AJ131)","v":0},{"$f":"IF(ISBLANK('TA Indicator Bank'!AK131),\"\",'TA Indicator Bank'!AK131)","v":0},{"$f":"IF(ISBLANK('TA Indicator Bank'!AL131),\"\",'TA Indicator Bank'!AL131)","v":0},{"$f":"IF(ISBLANK('TA Indicator Bank'!AM131),\"\",'TA Indicator Bank'!AM131)","v":0},{"$f":"IF(ISBLANK('TA Indicator Bank'!AN131),\"\",'TA Indicator Bank'!AN131)","v":0},{"$f":"IF(ISBLANK('TA Indicator Bank'!AO131),\"\",'TA Indicator Bank'!AO131)","v":0},{"$f":"IF(ISBLANK('TA Indicator Bank'!AP131),\"\",'TA Indicator Bank'!AP131)","v":0},{"$f":"IF(ISBLANK('TA Indicator Bank'!AQ131),\"\",'TA Indicator Bank'!AQ131)","v":0},{"$f":"IF(ISBLANK('TA Indicator Bank'!AR131),\"\",'TA Indicator Bank'!AR131)","v":1},{"$f":"IF(ISBLANK('TA Indicator Bank'!AS131),\"\",'TA Indicator Bank'!AS131)","v":0},{"$f":"IF(ISBLANK('TA Indicator Bank'!AT131),\"\",'TA Indicator Bank'!AT131)","v":0},{"$f":"IF(AND(J135=1,J$410=1),1,0)","v":0},{"$f":"IF(AND(K135=1,K$410=1),1,0)","v":0},{"$f":"IF(AND(L135=1,L$410=1),1,0)","v":0},{"$f":"IF(AND(M135=1,M$410=1),1,0)","v":0},{"$f":"IF(AND(N135=1,N$410=1),1,0)","v":0},{"$f":"IF(AND(O135=1,O$410=1),1,0)","v":0},{"$f":"IF(AND(P135=1,P$410=1),1,0)","v":0},{"$f":"IF(AND(Q135=1,Q$410=1),1,0)","v":0},{"$f":"IF(AND(R135=1,R$410=1),1,0)","v":0},{"$f":"IF(AND(S135=1,S$410=1),1,0)","v":0},{"$f":"IF(AND(T135=1,T$410=1),1,0)","v":0},{"$f":"IF(AND(U135=1,U$410=1),1,0)","v":0},{"$f":"IF(AND(V135=1,V$410=1),1,0)","v":0},{"$f":"IF(AND(W135=1,W$410=1),1,0)","v":0},1,{"$f":"IF(AND(X135=1,X$410=1),1,0)","v":0},{"$f":"IF(AND(Y135=1,Y$410=1),1,0)","v":0},{"$f":"IF(AND(Z135=1,Z$410=1),1,0)","v":0},{"$f":"IF(AND(AA135=1,AA$410=1),1,0)","v":1},{"$f":"IF(AND(AB135=1,AB$410=1),1,0)","v":0},{"$f":"IF(AND(AC135=1,AC$410=1),1,0)","v":0},{"$f":"IF(AND(AD135=1,AD$410=1),1,0)","v":0},{"$f":"IF(AND(AE135=1,AE$410=1),1,0)","v":0},{"$f":"IF(AND(AF135=1,AF$410=1),1,0)","v":0},1,{"$f":"IF(AND(AG135=1,AG$410=1),1,0)","v":0},{"$f":"IF(AND(AH135=1,AH$410=1),1,0)","v":0},{"$f":"IF(AND(AI135=1,AI$410=1),1,0)","v":0},{"$f":"IF(AND(AJ135=1,AJ$410=1),1,0)","v":0},{"$f":"IF(AND(AK135=1,AK$410=1),1,0)","v":0},{"$f":"IF(AND(AL135=1,AL$410=1),1,0)","v":0},{"$f":"IF(AND(AM135=1,AM$410=1),1,0)","v":0},{"$f":"IF(AND(AN135=1,AN$410=1),1,0)","v":0},{"$f":"IF(AND(AO135=1,AO$410=1),1,0)","v":0},1,{"$f":"IF(AND(AP135=1,AP$410=1),1,0)","v":0},{"$f":"IF(AND(AQ135=1,AQ$410=1),1,0)","v":0},{"$f":"IF(AND(AR135=1,AR$410=1),1,0)","v":1},{"$f":"IF(AND(AS135=1,AS$410=1),1,0)","v":0},{"$f":"IF(AND(AT135=1,AT$410=1),1,0)","v":0},1,1,127,127,{"$f":"IFERROR(SMALL($CL$9:$CL$408,CK135),\"\")","v":127},{"$f":"IFERROR(INDEX($B$9:$I$408,$CM135,COLUMNS($CN$9:CN135)),\"\")","v":"TA127"},{"$f":"IFERROR(INDEX($B$9:$I$408,$CM135,COLUMNS($CN$9:CO135)),\"\")","v":"Governance structures improved"},{"$f":"IFERROR(INDEX($B$9:$I$408,$CM135,COLUMNS($CN$9:CP135)),\"\")","v":"-"},{"$f":"IFERROR(INDEX($B$9:$I$408,$CM135,COLUMNS($CN$9:CQ135)),\"\")","v":"Output"},{"$f":"IFERROR(INDEX($B$9:$I$408,$CM135,COLUMNS($CN$9:CR135)),\"\")","v":"-"},{"$f":"IFERROR(INDEX($B$9:$I$408,$CM135,COLUMNS($CN$9:CS135)),\"\")","v":"Domestic policy support"},{"$f":"IFERROR(INDEX($B$9:$I$408,$CM135,COLUMNS($CN$9:CT135)),\"\")","v":"-"},{"$f":"IFERROR(INDEX($B$9:$I$408,$CM135,COLUMNS($CN$9:CU135)),\"\")","v":"Narrative"}]
[null,{"$f":"IF(ISBLANK('TA Indicator Bank'!B132),\"\",'TA Indicator Bank'!B132)","v":"TA128"},{"$f":"IF(ISBLANK('TA Indicator Bank'!C132),\"\",'TA Indicator Bank'!C132)","v":"Public debate stimulated"},{"$f":"IF(ISBLANK('TA Indicator Bank'!D132),\"\",'TA Indicator Bank'!D132)","v":"-"},{"$f":"IF(ISBLANK('TA Indicator Bank'!E132),\"\",'TA Indicator Bank'!E132)","v":"Output"},{"$f":"IF(ISBLANK('TA Indicator Bank'!F132),\"\",'TA Indicator Bank'!F132)","v":"-"},{"$f":"IF(ISBLANK('TA Indicator Bank'!G132),\"\",'TA Indicator Bank'!G132)","v":"Domestic policy support"},{"$f":"IF(ISBLANK('TA Indicator Bank'!H132),\"\",'TA Indicator Bank'!H132)","v":"-"},{"$f":"IF(ISBLANK('TA Indicator Bank'!I132),\"\",'TA Indicator Bank'!I132)","v":"Narrative"},{"$f":"IF(ISBLANK('TA Indicator Bank'!J132),\"\",'TA Indicator Bank'!J132)","v":0},{"$f":"IF(ISBLANK('TA Indicator Bank'!K132),\"\",'TA Indicator Bank'!K132)","v":0},{"$f":"IF(ISBLANK('TA Indicator Bank'!L132),\"\",'TA Indicator Bank'!L132)","v":0},{"$f":"IF(ISBLANK('TA Indicator Bank'!M132),\"\",'TA Indicator Bank'!M132)","v":0},{"$f":"IF(ISBLANK('TA Indicator Bank'!N132),\"\",'TA Indicator Bank'!N132)","v":0},{"$f":"IF(ISBLANK('TA Indicator Bank'!O132),\"\",'TA Indicator Bank'!O132)","v":0},{"$f":"IF(ISBLANK('TA Indicator Bank'!P132),\"\",'TA Indicator Bank'!P132)","v":0},{"$f":"IF(ISBLANK('TA Indicator Bank'!Q132),\"\",'TA Indicator Bank'!Q132)","v":0},{"$f":"IF(ISBLANK('TA Indicator Bank'!R132),\"\",'TA Indicator Bank'!R132)","v":0},{"$f":"IF(ISBLANK('TA Indicator Bank'!S132),\"\",'TA Indicator Bank'!S132)","v":0},{"$f":"IF(ISBLANK('TA Indicator Bank'!T132),\"\",'TA Indicator Bank'!T132)","v":0},{"$f":"IF(ISBLANK('TA Indicator Bank'!U132),\"\",'TA Indicator Bank'!U132)","v":0},{"$f":"IF(ISBLANK('TA Indicator Bank'!V132),\"\",'TA Indicator Bank'!V132)","v":0},{"$f":"IF(ISBLANK('TA Indicator Bank'!W132),\"\",'TA Indicator Bank'!W132)","v":0},{"$f":"IF(ISBLANK('TA Indicator Bank'!X132),\"\",'TA Indicator Bank'!X132)","v":0},{"$f":"IF(ISBLANK('TA Indicator Bank'!Y132),\"\",'TA Indicator Bank'!Y132)","v":0},{"$f":"IF(ISBLANK('TA Indicator Bank'!Z132),\"\",'TA Indicator Bank'!Z132)","v":0},{"$f":"IF(ISBLANK('TA Indicator Bank'!AA132),\"\",'TA Indicator Bank'!AA132)","v":1},{"$f":"IF(ISBLANK('TA Indicator Bank'!AB132),\"\",'TA Indicator Bank'!AB132)","v":0},{"$f":"IF(ISBLANK('TA Indicator Bank'!AC132),\"\",'TA Indicator Bank'!AC132)","v":0},{"$f":"IF(ISBLANK('TA Indicator Bank'!AD132),\"\",'TA Indicator Bank'!AD132)","v":0},{"$f":"IF(ISBLANK('TA Indicator Bank'!AE132),\"\",'TA Indicator Bank'!AE132)","v":0},{"$f":"IF(ISBLANK('TA Indicator Bank'!AF132),\"\",'TA Indicator Bank'!AF132)","v":0},{"$f":"IF(ISBLANK('TA Indicator Bank'!AG132),\"\",'TA Indicator Bank'!AG132)","v":0},{"$f":"IF(ISBLANK('TA Indicator Bank'!AH132),\"\",'TA Indicator Bank'!AH132)","v":0},{"$f":"IF(ISBLANK('TA Indicator Bank'!AI132),\"\",'TA Indicator Bank'!AI132)","v":0},{"$f":"IF(ISBLANK('TA Indicator Bank'!AJ132),\"\",'TA Indicator Bank'!AJ132)","v":0},{"$f":"IF(ISBLANK('TA Indicator Bank'!AK132),\"\",'TA Indicator Bank'!AK132)","v":0},{"$f":"IF(ISBLANK('TA Indicator Bank'!AL132),\"\",'TA Indicator Bank'!AL132)","v":0},{"$f":"IF(ISBLANK('TA Indicator Bank'!AM132),\"\",'TA Indicator Bank'!AM132)","v":0},{"$f":"IF(ISBLANK('TA Indicator Bank'!AN132),\"\",'TA Indicator Bank'!AN132)","v":0},{"$f":"IF(ISBLANK('TA Indicator Bank'!AO132),\"\",'TA Indicator Bank'!AO132)","v":0},{"$f":"IF(ISBLANK('TA Indicator Bank'!AP132),\"\",'TA Indicator Bank'!AP132)","v":0},{"$f":"IF(ISBLANK('TA Indicator Bank'!AQ132),\"\",'TA Indicator Bank'!AQ132)","v":0},{"$f":"IF(ISBLANK('TA Indicator Bank'!AR132),\"\",'TA Indicator Bank'!AR132)","v":1},{"$f":"IF(ISBLANK('TA Indicator Bank'!AS132),\"\",'TA Indicator Bank'!AS132)","v":0},{"$f":"IF(ISBLANK('TA Indicator Bank'!AT132),\"\",'TA Indicator Bank'!AT132)","v":0},{"$f":"IF(AND(J136=1,J$410=1),1,0)","v":0},{"$f":"IF(AND(K136=1,K$410=1),1,0)","v":0},{"$f":"IF(AND(L136=1,L$410=1),1,0)","v":0},{"$f":"IF(AND(M136=1,M$410=1),1,0)","v":0},{"$f":"IF(AND(N136=1,N$410=1),1,0)","v":0},{"$f":"IF(AND(O136=1,O$410=1),1,0)","v":0},{"$f":"IF(AND(P136=1,P$410=1),1,0)","v":0},{"$f":"IF(AND(Q136=1,Q$410=1),1,0)","v":0},{"$f":"IF(AND(R136=1,R$410=1),1,0)","v":0},{"$f":"IF(AND(S136=1,S$410=1),1,0)","v":0},{"$f":"IF(AND(T136=1,T$410=1),1,0)","v":0},{"$f":"IF(AND(U136=1,U$410=1),1,0)","v":0},{"$f":"IF(AND(V136=1,V$410=1),1,0)","v":0},{"$f":"IF(AND(W136=1,W$410=1),1,0)","v":0},1,{"$f":"IF(AND(X136=1,X$410=1),1,0)","v":0},{"$f":"IF(AND(Y136=1,Y$410=1),1,0)","v":0},{"$f":"IF(AND(Z136=1,Z$410=1),1,0)","v":0},{"$f":"IF(AND(AA136=1,AA$410=1),1,0)","v":1},{"$f":"IF(AND(AB136=1,AB$410=1),1,0)","v":0},{"$f":"IF(AND(AC136=1,AC$410=1),1,0)","v":0},{"$f":"IF(AND(AD136=1,AD$410=1),1,0)","v":0},{"$f":"IF(AND(AE136=1,AE$410=1),1,0)","v":0},{"$f":"IF(AND(AF136=1,AF$410=1),1,0)","v":0},1,{"$f":"IF(AND(AG136=1,AG$410=1),1,0)","v":0},{"$f":"IF(AND(AH136=1,AH$410=1),1,0)","v":0},{"$f":"IF(AND(AI136=1,AI$410=1),1,0)","v":0},{"$f":"IF(AND(AJ136=1,AJ$410=1),1,0)","v":0},{"$f":"IF(AND(AK136=1,AK$410=1),1,0)","v":0},{"$f":"IF(AND(AL136=1,AL$410=1),1,0)","v":0},{"$f":"IF(AND(AM136=1,AM$410=1),1,0)","v":0},{"$f":"IF(AND(AN136=1,AN$410=1),1,0)","v":0},{"$f":"IF(AND(AO136=1,AO$410=1),1,0)","v":0},1,{"$f":"IF(AND(AP136=1,AP$410=1),1,0)","v":0},{"$f":"IF(AND(AQ136=1,AQ$410=1),1,0)","v":0},{"$f":"IF(AND(AR136=1,AR$410=1),1,0)","v":1},{"$f":"IF(AND(AS136=1,AS$410=1),1,0)","v":0},{"$f":"IF(AND(AT136=1,AT$410=1),1,0)","v":0},1,1,128,128,{"$f":"IFERROR(SMALL($CL$9:$CL$408,CK136),\"\")","v":128},{"$f":"IFERROR(INDEX($B$9:$I$408,$CM136,COLUMNS($CN$9:CN136)),\"\")","v":"TA128"},{"$f":"IFERROR(INDEX($B$9:$I$408,$CM136,COLUMNS($CN$9:CO136)),\"\")","v":"Public debate stimulated"},{"$f":"IFERROR(INDEX($B$9:$I$408,$CM136,COLUMNS($CN$9:CP136)),\"\")","v":"-"},{"$f":"IFERROR(INDEX($B$9:$I$408,$CM136,COLUMNS($CN$9:CQ136)),\"\")","v":"Output"},{"$f":"IFERROR(INDEX($B$9:$I$408,$CM136,COLUMNS($CN$9:CR136)),\"\")","v":"-"},{"$f":"IFERROR(INDEX($B$9:$I$408,$CM136,COLUMNS($CN$9:CS136)),\"\")","v":"Domestic policy support"},{"$f":"IFERROR(INDEX($B$9:$I$408,$CM136,COLUMNS($CN$9:CT136)),\"\")","v":"-"},{"$f":"IFERROR(INDEX($B$9:$I$408,$CM136,COLUMNS($CN$9:CU136)),\"\")","v":"Narrative"}]
[null,{"$f":"IF(ISBLANK('TA Indicator Bank'!B133),\"\",'TA Indicator Bank'!B133)","v":"TA129"},{"$f":"IF(ISBLANK('TA Indicator Bank'!C133),\"\",'TA Indicator Bank'!C133)","v":"Policy support informs stakeholders"},{"$f":"IF(ISBLANK('TA Indicator Bank'!D133),\"\",'TA Indicator Bank'!D133)","v":"-"},{"$f":"IF(ISBLANK('TA Indicator Bank'!E133),\"\",'TA Indicator Bank'!E133)","v":"Output"},{"$f":"IF(ISBLANK('TA Indicator Bank'!F133),\"\",'TA Indicator Bank'!F133)","v":"-"},{"$f":"IF(ISBLANK('TA Indicator Bank'!G133),\"\",'TA Indicator Bank'!G133)","v":"Domestic policy support"},{"$f":"IF(ISBLANK('TA Indicator Bank'!H133),\"\",'TA Indicator Bank'!H133)","v":"-"},{"$f":"IF(ISBLANK('TA Indicator Bank'!I133),\"\",'TA Indicator Bank'!I133)","v":"Narrative"},{"$f":"IF(ISBLANK('TA Indicator Bank'!J133),\"\",'TA Indicator Bank'!J133)","v":0},{"$f":"IF(ISBLANK('TA Indicator Bank'!K133),\"\",'TA Indicator Bank'!K133)","v":0},{"$f":"IF(ISBLANK('TA Indicator Bank'!L133),\"\",'TA Indicator Bank'!L133)","v":0},{"$f":"IF(ISBLANK('TA Indicator Bank'!M133),\"\",'TA Indicator Bank'!M133)","v":0},{"$f":"IF(ISBLANK('TA Indicator Bank'!N133),\"\",'TA Indicator Bank'!N133)","v":0},{"$f":"IF(ISBLANK('TA Indicator Bank'!O133),\"\",'TA Indicator Bank'!O133)","v":0},{"$f":"IF(ISBLANK('TA Indicator Bank'!P133),\"\",'TA Indicator Bank'!P133)","v":0},{"$f":"IF(ISBLANK('TA Indicator Bank'!Q133),\"\",'TA Indicator Bank'!Q133)","v":0},{"$f":"IF(ISBLANK('TA Indicator Bank'!R133),\"\",'TA Indicator Bank'!R133)","v":0},{"$f":"IF(ISBLANK('TA Indicator Bank'!S133),\"\",'TA Indicator Bank'!S133)","v":0},{"$f":"IF(ISBLANK('TA Indicator Bank'!T133),\"\",'TA Indicator Bank'!T133)","v":0},{"$f":"IF(ISBLANK('TA Indicator Bank'!U133),\"\",'TA Indicator Bank'!U133)","v":0},{"$f":"IF(ISBLANK('TA Indicator Bank'!V133),\"\",'TA Indicator Bank'!V133)","v":0},{"$f":"IF(ISBLANK('TA Indicator Bank'!W133),\"\",'TA Indicator Bank'!W133)","v":0},{"$f":"IF(ISBLANK('TA Indicator Bank'!X133),\"\",'TA Indicator Bank'!X133)","v":0},{"$f":"IF(ISBLANK('TA Indicator Bank'!Y133),\"\",'TA Indicator Bank'!Y133)","v":0},{"$f":"IF(ISBLANK('TA Indicator Bank'!Z133),\"\",'TA Indicator Bank'!Z133)","v":0},{"$f":"IF(ISBLANK('TA Indicator Bank'!AA133),\"\",'TA Indicator Bank'!AA133)","v":1},{"$f":"IF(ISBLANK('TA Indicator Bank'!AB133),\"\",'TA Indicator Bank'!AB133)","v":0},{"$f":"IF(ISBLANK('TA Indicator Bank'!AC133),\"\",'TA Indicator Bank'!AC133)","v":0},{"$f":"IF(ISBLANK('TA Indicator Bank'!AD133),\"\",'TA Indicator Bank'!AD133)","v":0},{"$f":"IF(ISBLANK('TA Indicator Bank'!AE133),\"\",'TA Indicator Bank'!AE133)","v":0},{"$f":"IF(ISBLANK('TA Indicator Bank'!AF133),\"\",'TA Indicator Bank'!AF133)","v":0},{"$f":"IF(ISBLANK('TA Indicator Bank'!AG133),\"\",'TA Indicator Bank'!AG133)","v":0},{"$f":"IF(ISBLANK('TA Indicator Bank'!AH133),\"\",'TA Indicator Bank'!AH133)","v":0},{"$f":"IF(ISBLANK('TA Indicator Bank'!AI133),\"\",'TA Indicator Bank'!AI133)","v":0},{"$f":"IF(ISBLANK('TA Indicator Bank'!AJ133),\"\",'TA Indicator Bank'!AJ133)","v":0},{"$f":"IF(ISBLANK('TA Indicator Bank'!AK133),\"\",'TA Indicator Bank'!AK133)","v":0},{"$f":"IF(ISBLANK('TA Indicator Bank'!AL133),\"\",'TA Indicator Bank'!AL133)","v":0},{"$f":"IF(ISBLANK('TA Indicator Bank'!AM133),\"\",'TA Indicator Bank'!AM133)","v":0},{"$f":"IF(ISBLANK('TA Indicator Bank'!AN133),\"\",'TA Indicator Bank'!AN133)","v":0},{"$f":"IF(ISBLANK('TA Indicator Bank'!AO133),\"\",'TA Indicator Bank'!AO133)","v":0},{"$f":"IF(ISBLANK('TA Indicator Bank'!AP133),\"\",'TA Indicator Bank'!AP133)","v":0},{"$f":"IF(ISBLANK('TA Indicator Bank'!AQ133),\"\",'TA Indicator Bank'!AQ133)","v":0},{"$f":"IF(ISBLANK('TA Indicator Bank'!AR133),\"\",'TA Indicator Bank'!AR133)","v":1},{"$f":"IF(ISBLANK('TA Indicator Bank'!AS133),\"\",'TA Indicator Bank'!AS133)","v":0},{"$f":"IF(ISBLANK('TA Indicator Bank'!AT133),\"\",'TA Indicator Bank'!AT133)","v":0},{"$f":"IF(AND(J137=1,J$410=1),1,0)","v":0},{"$f":"IF(AND(K137=1,K$410=1),1,0)","v":0},{"$f":"IF(AND(L137=1,L$410=1),1,0)","v":0},{"$f":"IF(AND(M137=1,M$410=1),1,0)","v":0},{"$f":"IF(AND(N137=1,N$410=1),1,0)","v":0},{"$f":"IF(AND(O137=1,O$410=1),1,0)","v":0},{"$f":"IF(AND(P137=1,P$410=1),1,0)","v":0},{"$f":"IF(AND(Q137=1,Q$410=1),1,0)","v":0},{"$f":"IF(AND(R137=1,R$410=1),1,0)","v":0},{"$f":"IF(AND(S137=1,S$410=1),1,0)","v":0},{"$f":"IF(AND(T137=1,T$410=1),1,0)","v":0},{"$f":"IF(AND(U137=1,U$410=1),1,0)","v":0},{"$f":"IF(AND(V137=1,V$410=1),1,0)","v":0},{"$f":"IF(AND(W137=1,W$410=1),1,0)","v":0},1,{"$f":"IF(AND(X137=1,X$410=1),1,0)","v":0},{"$f":"IF(AND(Y137=1,Y$410=1),1,0)","v":0},{"$f":"IF(AND(Z137=1,Z$410=1),1,0)","v":0},{"$f":"IF(AND(AA137=1,AA$410=1),1,0)","v":1},{"$f":"IF(AND(AB137=1,AB$410=1),1,0)","v":0},{"$f":"IF(AND(AC137=1,AC$410=1),1,0)","v":0},{"$f":"IF(AND(AD137=1,AD$410=1),1,0)","v":0},{"$f":"IF(AND(AE137=1,AE$410=1),1,0)","v":0},{"$f":"IF(AND(AF137=1,AF$410=1),1,0)","v":0},1,{"$f":"IF(AND(AG137=1,AG$410=1),1,0)","v":0},{"$f":"IF(AND(AH137=1,AH$410=1),1,0)","v":0},{"$f":"IF(AND(AI137=1,AI$410=1),1,0)","v":0},{"$f":"IF(AND(AJ137=1,AJ$410=1),1,0)","v":0},{"$f":"IF(AND(AK137=1,AK$410=1),1,0)","v":0},{"$f":"IF(AND(AL137=1,AL$410=1),1,0)","v":0},{"$f":"IF(AND(AM137=1,AM$410=1),1,0)","v":0},{"$f":"IF(AND(AN137=1,AN$410=1),1,0)","v":0},{"$f":"IF(AND(AO137=1,AO$410=1),1,0)","v":0},1,{"$f":"IF(AND(AP137=1,AP$410=1),1,0)","v":0},{"$f":"IF(AND(AQ137=1,AQ$410=1),1,0)","v":0},{"$f":"IF(AND(AR137=1,AR$410=1),1,0)","v":1},{"$f":"IF(AND(AS137=1,AS$410=1),1,0)","v":0},{"$f":"IF(AND(AT137=1,AT$410=1),1,0)","v":0},1,1,129,129,{"$f":"IFERROR(SMALL($CL$9:$CL$408,CK137),\"\")","v":129},{"$f":"IFERROR(INDEX($B$9:$I$408,$CM137,COLUMNS($CN$9:CN137)),\"\")","v":"TA129"},{"$f":"IFERROR(INDEX($B$9:$I$408,$CM137,COLUMNS($CN$9:CO137)),\"\")","v":"Policy support informs stakeholders"},{"$f":"IFERROR(INDEX($B$9:$I$408,$CM137,COLUMNS($CN$9:CP137)),\"\")","v":"-"},{"$f":"IFERROR(INDEX($B$9:$I$408,$CM137,COLUMNS($CN$9:CQ137)),\"\")","v":"Output"},{"$f":"IFERROR(INDEX($B$9:$I$408,$CM137,COLUMNS($CN$9:CR137)),\"\")","v":"-"},{"$f":"IFERROR(INDEX($B$9:$I$408,$CM137,COLUMNS($CN$9:CS137)),\"\")","v":"Domestic policy support"},{"$f":"IFERROR(INDEX($B$9:$I$408,$CM137,COLUMNS($CN$9:CT137)),\"\")","v":"-"},{"$f":"IFERROR(INDEX($B$9:$I$408,$CM137,COLUMNS($CN$9:CU137)),\"\")","v":"Narrative"}]
[null,{"$f":"IF(ISBLANK('TA Indicator Bank'!B134),\"\",'TA Indicator Bank'!B134)","v":"TA130"},{"$f":"IF(ISBLANK('TA Indicator Bank'!C134),\"\",'TA Indicator Bank'!C134)","v":"Number of times international policy support is provided"},{"$f":"IF(ISBLANK('TA Indicator Bank'!D134),\"\",'TA Indicator Bank'!D134)","v":"-"},{"$f":"IF(ISBLANK('TA Indicator Bank'!E134),\"\",'TA Indicator Bank'!E134)","v":"Activity"},{"$f":"IF(ISBLANK('TA Indicator Bank'!F134),\"\",'TA Indicator Bank'!F134)","v":"Training events / courses"},{"$f":"IF(ISBLANK('TA Indicator Bank'!G134),\"\",'TA Indicator Bank'!G134)","v":"-"},{"$f":"IF(ISBLANK('TA Indicator Bank'!H134),\"\",'TA Indicator Bank'!H134)","v":"-"},{"$f":"IF(ISBLANK('TA Indicator Bank'!I134),\"\",'TA Indicator Bank'!I134)","v":"Number"},{"$f":"IF(ISBLANK('TA Indicator Bank'!J134),\"\",'TA Indicator Bank'!J134)","v":0},{"$f":"IF(ISBLANK('TA Indicator Bank'!K134),\"\",'TA Indicator Bank'!K134)","v":1},{"$f":"IF(ISBLANK('TA Indicator Bank'!L134),\"\",'TA Indicator Bank'!L134)","v":0},{"$f":"IF(ISBLANK('TA Indicator Bank'!M134),\"\",'TA Indicator Bank'!M134)","v":0},{"$f":"IF(ISBLANK('TA Indicator Bank'!N134),\"\",'TA Indicator Bank'!N134)","v":0},{"$f":"IF(ISBLANK('TA Indicator Bank'!O134),\"\",'TA Indicator Bank'!O134)","v":0},{"$f":"IF(ISBLANK('TA Indicator Bank'!P134),\"\",'TA Indicator Bank'!P134)","v":0},{"$f":"IF(ISBLANK('TA Indicator Bank'!Q134),\"\",'TA Indicator Bank'!Q134)","v":0},{"$f":"IF(ISBLANK('TA Indicator Bank'!R134),\"\",'TA Indicator Bank'!R134)","v":0},{"$f":"IF(ISBLANK('TA Indicator Bank'!S134),\"\",'TA Indicator Bank'!S134)","v":0},{"$f":"IF(ISBLANK('TA Indicator Bank'!T134),\"\",'TA Indicator Bank'!T134)","v":0},{"$f":"IF(ISBLANK('TA Indicator Bank'!U134),\"\",'TA Indicator Bank'!U134)","v":0},{"$f":"IF(ISBLANK('TA Indicator Bank'!V134),\"\",'TA Indicator Bank'!V134)","v":0},{"$f":"IF(ISBLANK('TA Indicator Bank'!W134),\"\",'TA Indicator Bank'!W134)","v":0},{"$f":"IF(ISBLANK('TA Indicator Bank'!X134),\"\",'TA Indicator Bank'!X134)","v":0},{"$f":"IF(ISBLANK('TA Indicator Bank'!Y134),\"\",'TA Indicator Bank'!Y134)","v":0},{"$f":"IF(ISBLANK('TA Indicator Bank'!Z134),\"\",'TA Indicator Bank'!Z134)","v":0},{"$f":"IF(ISBLANK('TA Indicator Bank'!AA134),\"\",'TA Indicator Bank'!AA134)","v":0},{"$f":"IF(ISBLANK('TA Indicator Bank'!AB134),\"\",'TA Indicator Bank'!AB134)","v":0},{"$f":"IF(ISBLANK('TA Indicator Bank'!AC134),\"\",'TA Indicator Bank'!AC134)","v":0},{"$f":"IF(ISBLANK('TA Indicator Bank'!AD134),\"\",'TA Indicator Bank'!AD134)","v":0},{"$f":"IF(ISBLANK('TA Indicator Bank'!AE134),\"\",'TA Indicator Bank'!AE134)","v":0},{"$f":"IF(ISBLANK('TA Indicator Bank'!AF134),\"\",'TA Indicator Bank'!AF134)","v":0},{"$f":"IF(ISBLANK('TA Indicator Bank'!AG134),\"\",'TA Indicator Bank'!AG134)","v":0},{"$f":"IF(ISBLANK('TA Indicator Bank'!AH134),\"\",'TA Indicator Bank'!AH134)","v":0},{"$f":"IF(ISBLANK('TA Indicator Bank'!AI134),\"\",'TA Indicator Bank'!AI134)","v":0},{"$f":"IF(ISBLANK('TA Indicator Bank'!AJ134),\"\",'TA Indicator Bank'!AJ134)","v":0},{"$f":"IF(ISBLANK('TA Indicator Bank'!AK134),\"\",'TA Indicator Bank'!AK134)","v":0},{"$f":"IF(ISBLANK('TA Indicator Bank'!AL134),\"\",'TA Indicator Bank'!AL134)","v":0},{"$f":"IF(ISBLANK('TA Indicator Bank'!AM134),\"\",'TA Indicator Bank'!AM134)","v":0},{"$f":"IF(ISBLANK('TA Indicator Bank'!AN134),\"\",'TA Indicator Bank'!AN134)","v":0},{"$f":"IF(ISBLANK('TA Indicator Bank'!AO134),\"\",'TA Indicator Bank'!AO134)","v":0},{"$f":"IF(ISBLANK('TA Indicator Bank'!AP134),\"\",'TA Indicator Bank'!AP134)","v":1},{"$f":"IF(ISBLANK('TA Indicator Bank'!AQ134),\"\",'TA Indicator Bank'!AQ134)","v":0},{"$f":"IF(ISBLANK('TA Indicator Bank'!AR134),\"\",'TA Indicator Bank'!AR134)","v":0},{"$f":"IF(ISBLANK('TA Indicator Bank'!AS134),\"\",'TA Indicator Bank'!AS134)","v":0},{"$f":"IF(ISBLANK('TA Indicator Bank'!AT134),\"\",'TA Indicator Bank'!AT134)","v":0},{"$f":"IF(AND(J138=1,J$410=1),1,0)","v":0},{"$f":"IF(AND(K138=1,K$410=1),1,0)","v":1},{"$f":"IF(AND(L138=1,L$410=1),1,0)","v":0},{"$f":"IF(AND(M138=1,M$410=1),1,0)","v":0},{"$f":"IF(AND(N138=1,N$410=1),1,0)","v":0},{"$f":"IF(AND(O138=1,O$410=1),1,0)","v":0},{"$f":"IF(AND(P138=1,P$410=1),1,0)","v":0},{"$f":"IF(AND(Q138=1,Q$410=1),1,0)","v":0},{"$f":"IF(AND(R138=1,R$410=1),1,0)","v":0},{"$f":"IF(AND(S138=1,S$410=1),1,0)","v":0},{"$f":"IF(AND(T138=1,T$410=1),1,0)","v":0},{"$f":"IF(AND(U138=1,U$410=1),1,0)","v":0},{"$f":"IF(AND(V138=1,V$410=1),1,0)","v":0},{"$f":"IF(AND(W138=1,W$410=1),1,0)","v":0},{"$f":"IF($C$4=\"All\",1,IF(SUM(AU138:BH138)>0,1,0))","v":1},{"$f":"IF(AND(X138=1,X$410=1),1,0)","v":0},{"$f":"IF(AND(Y138=1,Y$410=1),1,0)","v":0},{"$f":"IF(AND(Z138=1,Z$410=1),1,0)","v":0},{"$f":"IF(AND(AA138=1,AA$410=1),1,0)","v":0},{"$f":"IF(AND(AB138=1,AB$410=1),1,0)","v":0},{"$f":"IF(AND(AC138=1,AC$410=1),1,0)","v":0},{"$f":"IF(AND(AD138=1,AD$410=1),1,0)","v":0},{"$f":"IF(AND(AE138=1,AE$410=1),1,0)","v":0},{"$f":"IF(AND(AF138=1,AF$410=1),1,0)","v":0},{"$f":"IF($C$5=\"All\",1,IF(SUM(BJ138:BR138)>0,1,0))","v":1},{"$f":"IF(AND(AG138=1,AG$410=1),1,0)","v":0},{"$f":"IF(AND(AH138=1,AH$410=1),1,0)","v":0},{"$f":"IF(AND(AI138=1,AI$410=1),1,0)","v":0},{"$f":"IF(AND(AJ138=1,AJ$410=1),1,0)","v":0},{"$f":"IF(AND(AK138=1,AK$410=1),1,0)","v":0},{"$f":"IF(AND(AL138=1,AL$410=1),1,0)","v":0},{"$f":"IF(AND(AM138=1,AM$410=1),1,0)","v":0},{"$f":"IF(AND(AN138=1,AN$410=1),1,0)","v":0},{"$f":"IF(AND(AO138=1,AO$410=1),1,0)","v":0},{"$f":"IF($C$6=\"All\",1,IF(SUM(BT138:CB138)>0,1,0))","v":1},{"$f":"IF(AND(AP138=1,AP$410=1),1,0)","v":1},{"$f":"IF(AND(AQ138=1,AQ$410=1),1,0)","v":0},{"$f":"IF(AND(AR138=1,AR$410=1),1,0)","v":0},{"$f":"IF(AND(AS138=1,AS$410=1),1,0)","v":0},{"$f":"IF(AND(AT138=1,AT$410=1),1,0)","v":0},{"$f":"IF($C$3=\"All\",1,IF(SUM(CD138:CH138)>0,1,0))","v":1},{"$f":"IF(AND(BI138=1,BS138=1,CC138=1,CI138=1),1,0)","v":1},130,{"$f":"IF(CJ138=1,CK138,\"\")","v":130},{"$f":"IFERROR(SMALL($CL$9:$CL$408,CK138),\"\")","v":130},{"$f":"IFERROR(INDEX($B$9:$I$408,$CM138,COLUMNS($CN$9:CN138)),\"\")","v":"TA130"},{"$f":"IFERROR(INDEX($B$9:$I$408,$CM138,COLUMNS($CN$9:CO138)),\"\")","v":"Number of times international policy support is provided"},{"$f":"IFERROR(INDEX($B$9:$I$408,$CM138,COLUMNS($CN$9:CP138)),\"\")","v":"-"},{"$f":"IFERROR(INDEX($B$9:$I$408,$CM138,COLUMNS($CN$9:CQ138)),\"\")","v":"Activity"},{"$f":"IFERROR(INDEX($B$9:$I$408,$CM138,COLUMNS($CN$9:CR138)),\"\")","v":"Training events / courses"},{"$f":"IFERROR(INDEX($B$9:$I$408,$CM138,COLUMNS($CN$9:CS138)),\"\")","v":"-"},{"$f":"IFERROR(INDEX($B$9:$I$408,$CM138,COLUMNS($CN$9:CT138)),\"\")","v":"-"},{"$f":"IFERROR(INDEX($B$9:$I$408,$CM138,COLUMNS($CN$9:CU138)),\"\")","v":"Number"}]
[null,{"$f":"IF(ISBLANK('TA Indicator Bank'!B135),\"\",'TA Indicator Bank'!B135)","v":"TA131"},{"$f":"IF(ISBLANK('TA Indicator Bank'!C135),\"\",'TA Indicator Bank'!C135)","v":"Number of formal submissions that have received programme support"},{"$f":"IF(ISBLANK('TA Indicator Bank'!D135),\"\",'TA Indicator Bank'!D135)","v":"-"},{"$f":"IF(ISBLANK('TA Indicator Bank'!E135),\"\",'TA Indicator Bank'!E135)","v":"Output"},{"$f":"IF(ISBLANK('TA Indicator Bank'!F135),\"\",'TA Indicator Bank'!F135)","v":"-"},{"$f":"IF(ISBLANK('TA Indicator Bank'!G135),\"\",'TA Indicator Bank'!G135)","v":"International policy support"},{"$f":"IF(ISBLANK('TA Indicator Bank'!H135),\"\",'TA Indicator Bank'!H135)","v":"-"},{"$f":"IF(ISBLANK('TA Indicator Bank'!I135),\"\",'TA Indicator Bank'!I135)","v":"Number"},{"$f":"IF(ISBLANK('TA Indicator Bank'!J135),\"\",'TA Indicator Bank'!J135)","v":0},{"$f":"IF(ISBLANK('TA Indicator Bank'!K135),\"\",'TA Indicator Bank'!K135)","v":0},{"$f":"IF(ISBLANK('TA Indicator Bank'!L135),\"\",'TA Indicator Bank'!L135)","v":0},{"$f":"IF(ISBLANK('TA Indicator Bank'!M135),\"\",'TA Indicator Bank'!M135)","v":0},{"$f":"IF(ISBLANK('TA Indicator Bank'!N135),\"\",'TA Indicator Bank'!N135)","v":0},{"$f":"IF(ISBLANK('TA Indicator Bank'!O135),\"\",'TA Indicator Bank'!O135)","v":0},{"$f":"IF(ISBLANK('TA Indicator Bank'!P135),\"\",'TA Indicator Bank'!P135)","v":0},{"$f":"IF(ISBLANK('TA Indicator Bank'!Q135),\"\",'TA Indicator Bank'!Q135)","v":0},{"$f":"IF(ISBLANK('TA Indicator Bank'!R135),\"\",'TA Indicator Bank'!R135)","v":0},{"$f":"IF(ISBLANK('TA Indicator Bank'!S135),\"\",'TA Indicator Bank'!S135)","v":0},{"$f":"IF(ISBLANK('TA Indicator Bank'!T135),\"\",'TA Indicator Bank'!T135)","v":0},{"$f":"IF(ISBLANK('TA Indicator Bank'!U135),\"\",'TA Indicator Bank'!U135)","v":0},{"$f":"IF(ISBLANK('TA Indicator Bank'!V135),\"\",'TA Indicator Bank'!V135)","v":0},{"$f":"IF(ISBLANK('TA Indicator Bank'!W135),\"\",'TA Indicator Bank'!W135)","v":0},{"$f":"IF(ISBLANK('TA Indicator Bank'!X135),\"\",'TA Indicator Bank'!X135)","v":0},{"$f":"IF(ISBLANK('TA Indicator Bank'!Y135),\"\",'TA Indicator Bank'!Y135)","v":0},{"$f":"IF(ISBLANK('TA Indicator Bank'!Z135),\"\",'TA Indicator Bank'!Z135)","v":0},{"$f":"IF(ISBLANK('TA Indicator Bank'!AA135),\"\",'TA Indicator Bank'!AA135)","v":0},{"$f":"IF(ISBLANK('TA Indicator Bank'!AB135),\"\",'TA Indicator Bank'!AB135)","v":1},{"$f":"IF(ISBLANK('TA Indicator Bank'!AC135),\"\",'TA Indicator Bank'!AC135)","v":0},{"$f":"IF(ISBLANK('TA Indicator Bank'!AD135),\"\",'TA Indicator Bank'!AD135)","v":0},{"$f":"IF(ISBLANK('TA Indicator Bank'!AE135),\"\",'TA Indicator Bank'!AE135)","v":0},{"$f":"IF(ISBLANK('TA Indicator Bank'!AF135),\"\",'TA Indicator Bank'!AF135)","v":0},{"$f":"IF(ISBLANK('TA Indicator Bank'!AG135),\"\",'TA Indicator Bank'!AG135)","v":0},{"$f":"IF(ISBLANK('TA Indicator Bank'!AH135),\"\",'TA Indicator Bank'!AH135)","v":0},{"$f":"IF(ISBLANK('TA Indicator Bank'!AI135),\"\",'TA Indicator Bank'!AI135)","v":0},{"$f":"IF(ISBLANK('TA Indicator Bank'!AJ135),\"\",'TA Indicator Bank'!AJ135)","v":0},{"$f":"IF(ISBLANK('TA Indicator Bank'!AK135),\"\",'TA Indicator Bank'!AK135)","v":0},{"$f":"IF(ISBLANK('TA Indicator Bank'!AL135),\"\",'TA Indicator Bank'!AL135)","v":0},{"$f":"IF(ISBLANK('TA Indicator Bank'!AM135),\"\",'TA Indicator Bank'!AM135)","v":0},{"$f":"IF(ISBLANK('TA Indicator Bank'!AN135),\"\",'TA Indicator Bank'!AN135)","v":0},{"$f":"IF(ISBLANK('TA Indicator Bank'!AO135),\"\",'TA Indicator Bank'!AO135)","v":0},{"$f":"IF(ISBLANK('TA Indicator Bank'!AP135),\"\",'TA Indicator Bank'!AP135)","v":0},{"$f":"IF(ISBLANK('TA Indicator Bank'!AQ135),\"\",'TA Indicator Bank'!AQ135)","v":0},{"$f":"IF(ISBLANK('TA Indicator Bank'!AR135),\"\",'TA Indicator Bank'!AR135)","v":1},{"$f":"IF(ISBLANK('TA Indicator Bank'!AS135),\"\",'TA Indicator Bank'!AS135)","v":0},{"$f":"IF(ISBLANK('TA Indicator Bank'!AT135),\"\",'TA Indicator Bank'!AT135)","v":0},{"$f":"IF(AND(J139=1,J$410=1),1,0)","v":0},{"$f":"IF(AND(K139=1,K$410=1),1,0)","v":0},{"$f":"IF(AND(L139=1,L$410=1),1,0)","v":0},{"$f":"IF(AND(M139=1,M$410=1),1,0)","v":0},{"$f":"IF(AND(N139=1,N$410=1),1,0)","v":0},{"$f":"IF(AND(O139=1,O$410=1),1,0)","v":0},{"$f":"IF(AND(P139=1,P$410=1),1,0)","v":0},{"$f":"IF(AND(Q139=1,Q$410=1),1,0)","v":0},{"$f":"IF(AND(R139=1,R$410=1),1,0)","v":0},{"$f":"IF(AND(S139=1,S$410=1),1,0)","v":0},{"$f":"IF(AND(T139=1,T$410=1),1,0)","v":0},{"$f":"IF(AND(U139=1,U$410=1),1,0)","v":0},{"$f":"IF(AND(V139=1,V$410=1),1,0)","v":0},{"$f":"IF(AND(W139=1,W$410=1),1,0)","v":0},1,{"$f":"IF(AND(X139=1,X$410=1),1,0)","v":0},{"$f":"IF(AND(Y139=1,Y$410=1),1,0)","v":0},{"$f":"IF(AND(Z139=1,Z$410=1),1,0)","v":0},{"$f":"IF(AND(AA139=1,AA$410=1),1,0)","v":0},{"$f":"IF(AND(AB139=1,AB$410=1),1,0)","v":1},{"$f":"IF(AND(AC139=1,AC$410=1),1,0)","v":0},{"$f":"IF(AND(AD139=1,AD$410=1),1,0)","v":0},{"$f":"IF(AND(AE139=1,AE$410=1),1,0)","v":0},{"$f":"IF(AND(AF139=1,AF$410=1),1,0)","v":0},1,{"$f":"IF(AND(AG139=1,AG$410=1),1,0)","v":0},{"$f":"IF(AND(AH139=1,AH$410=1),1,0)","v":0},{"$f":"IF(AND(AI139=1,AI$410=1),1,0)","v":0},{"$f":"IF(AND(AJ139=1,AJ$410=1),1,0)","v":0},{"$f":"IF(AND(AK139=1,AK$410=1),1,0)","v":0},{"$f":"IF(AND(AL139=1,AL$410=1),1,0)","v":0},{"$f":"IF(AND(AM139=1,AM$410=1),1,0)","v":0},{"$f":"IF(AND(AN139=1,AN$410=1),1,0)","v":0},{"$f":"IF(AND(AO139=1,AO$410=1),1,0)","v":0},1,{"$f":"IF(AND(AP139=1,AP$410=1),1,0)","v":0},{"$f":"IF(AND(AQ139=1,AQ$410=1),1,0)","v":0},{"$f":"IF(AND(AR139=1,AR$410=1),1,0)","v":1},{"$f":"IF(AND(AS139=1,AS$410=1),1,0)","v":0},{"$f":"IF(AND(AT139=1,AT$410=1),1,0)","v":0},1,1,131,131,{"$f":"IFERROR(SMALL($CL$9:$CL$408,CK139),\"\")","v":131},{"$f":"IFERROR(INDEX($B$9:$I$408,$CM139,COLUMNS($CN$9:CN139)),\"\")","v":"TA131"},{"$f":"IFERROR(INDEX($B$9:$I$408,$CM139,COLUMNS($CN$9:CO139)),\"\")","v":"Number of formal submissions that have received programme support"},{"$f":"IFERROR(INDEX($B$9:$I$408,$CM139,COLUMNS($CN$9:CP139)),\"\")","v":"-"},{"$f":"IFERROR(INDEX($B$9:$I$408,$CM139,COLUMNS($CN$9:CQ139)),\"\")","v":"Output"},{"$f":"IFERROR(INDEX($B$9:$I$408,$CM139,COLUMNS($CN$9:CR139)),\"\")","v":"-"},{"$f":"IFERROR(INDEX($B$9:$I$408,$CM139,COLUMNS($CN$9:CS139)),\"\")","v":"International policy support"},{"$f":"IFERROR(INDEX($B$9:$I$408,$CM139,COLUMNS($CN$9:CT139)),\"\")","v":"-"},{"$f":"IFERROR(INDEX($B$9:$I$408,$CM139,COLUMNS($CN$9:CU139)),\"\")","v":"Number"}]
[null,{"$f":"IF(ISBLANK('TA Indicator Bank'!B136),\"\",'TA Indicator Bank'!B136)","v":"TA132"},{"$f":"IF(ISBLANK('TA Indicator Bank'!C136),\"\",'TA Indicator Bank'!C136)","v":"Number of knowledge products created"},{"$f":"IF(ISBLANK('TA Indicator Bank'!D136),\"\",'TA Indicator Bank'!D136)","v":"-"},{"$f":"IF(ISBLANK('TA Indicator Bank'!E136),\"\",'TA Indicator Bank'!E136)","v":"Output"},{"$f":"IF(ISBLANK('TA Indicator Bank'!F136),\"\",'TA Indicator Bank'!F136)","v":"-"},{"$f":"IF(ISBLANK('TA Indicator Bank'!G136),\"\",'TA Indicator Bank'!G136)","v":"International policy support; Financing support"},{"$f":"IF(ISBLANK('TA Indicator Bank'!H136),\"\",'TA Indicator Bank'!H136)","v":"-"},{"$f":"IF(ISBLANK('TA Indicator Bank'!I136),\"\",'TA Indicator Bank'!I136)","v":"Number"},{"$f":"IF(ISBLANK('TA Indicator Bank'!J136),\"\",'TA Indicator Bank'!J136)","v":0},{"$f":"IF(ISBLANK('TA Indicator Bank'!K136),\"\",'TA Indicator Bank'!K136)","v":0},{"$f":"IF(ISBLANK('TA Indicator Bank'!L136),\"\",'TA Indicator Bank'!L136)","v":0},{"$f":"IF(ISBLANK('TA Indicator Bank'!M136),\"\",'TA Indicator Bank'!M136)","v":0},{"$f":"IF(ISBLANK('TA Indicator Bank'!N136),\"\",'TA Indicator Bank'!N136)","v":0},{"$f":"IF(ISBLANK('TA Indicator Bank'!O136),\"\",'TA Indicator Bank'!O136)","v":0},{"$f":"IF(ISBLANK('TA Indicator Bank'!P136),\"\",'TA Indicator Bank'!P136)","v":0},{"$f":"IF(ISBLANK('TA Indicator Bank'!Q136),\"\",'TA Indicator Bank'!Q136)","v":0},{"$f":"IF(ISBLANK('TA Indicator Bank'!R136),\"\",'TA Indicator Bank'!R136)","v":0},{"$f":"IF(ISBLANK('TA Indicator Bank'!S136),\"\",'TA Indicator Bank'!S136)","v":0},{"$f":"IF(ISBLANK('TA Indicator Bank'!T136),\"\",'TA Indicator Bank'!T136)","v":0},{"$f":"IF(ISBLANK('TA Indicator Bank'!U136),\"\",'TA Indicator Bank'!U136)","v":0},{"$f":"IF(ISBLANK('TA Indicator Bank'!V136),\"\",'TA Indicator Bank'!V136)","v":0},{"$f":"IF(ISBLANK('TA Indicator Bank'!W136),\"\",'TA Indicator Bank'!W136)","v":0},{"$f":"IF(ISBLANK('TA Indicator Bank'!X136),\"\",'TA Indicator Bank'!X136)","v":0},{"$f":"IF(ISBLANK('TA Indicator Bank'!Y136),\"\",'TA Indicator Bank'!Y136)","v":0},{"$f":"IF(ISBLANK('TA Indicator Bank'!Z136),\"\",'TA Indicator Bank'!Z136)","v":0},{"$f":"IF(ISBLANK('TA Indicator Bank'!AA136),\"\",'TA Indicator Bank'!AA136)","v":0},{"$f":"IF(ISBLANK('TA Indicator Bank'!AB136),\"\",'TA Indicator Bank'!AB136)","v":1},{"$f":"IF(ISBLANK('TA Indicator Bank'!AC136),\"\",'TA Indicator Bank'!AC136)","v":0},{"$f":"IF(ISBLANK('TA Indicator Bank'!AD136),\"\",'TA Indicator Bank'!AD136)","v":0},{"$f":"IF(ISBLANK('TA Indicator Bank'!AE136),\"\",'TA Indicator Bank'!AE136)","v":1},{"$f":"IF(ISBLANK('TA Indicator Bank'!AF136),\"\",'TA Indicator Bank'!AF136)","v":0},{"$f":"IF(ISBLANK('TA Indicator Bank'!AG136),\"\",'TA Indicator Bank'!AG136)","v":0},{"$f":"IF(ISBLANK('TA Indicator Bank'!AH136),\"\",'TA Indicator Bank'!AH136)","v":0},{"$f":"IF(ISBLANK('TA Indicator Bank'!AI136),\"\",'TA Indicator Bank'!AI136)","v":0},{"$f":"IF(ISBLANK('TA Indicator Bank'!AJ136),\"\",'TA Indicator Bank'!AJ136)","v":0},{"$f":"IF(ISBLANK('TA Indicator Bank'!AK136),\"\",'TA Indicator Bank'!AK136)","v":0},{"$f":"IF(ISBLANK('TA Indicator Bank'!AL136),\"\",'TA Indicator Bank'!AL136)","v":0},{"$f":"IF(ISBLANK('TA Indicator Bank'!AM136),\"\",'TA Indicator Bank'!AM136)","v":0},{"$f":"IF(ISBLANK('TA Indicator Bank'!AN136),\"\",'TA Indicator Bank'!AN136)","v":0},{"$f":"IF(ISBLANK('TA Indicator Bank'!AO136),\"\",'TA Indicator Bank'!AO136)","v":0},{"$f":"IF(ISBLANK('TA Indicator Bank'!AP136),\"\",'TA Indicator Bank'!AP136)","v":0},{"$f":"IF(ISBLANK('TA Indicator Bank'!AQ136),\"\",'TA Indicator Bank'!AQ136)","v":0},{"$f":"IF(ISBLANK('TA Indicator Bank'!AR136),\"\",'TA Indicator Bank'!AR136)","v":1},{"$f":"IF(ISBLANK('TA Indicator Bank'!AS136),\"\",'TA Indicator Bank'!AS136)","v":0},{"$f":"IF(ISBLANK('TA Indicator Bank'!AT136),\"\",'TA Indicator Bank'!AT136)","v":0},{"$f":"IF(AND(J140=1,J$410=1),1,0)","v":0},{"$f":"IF(AND(K140=1,K$410=1),1,0)","v":0},{"$f":"IF(AND(L140=1,L$410=1),1,0)","v":0},{"$f":"IF(AND(M140=1,M$410=1),1,0)","v":0},{"$f":"IF(AND(N140=1,N$410=1),1,0)","v":0},{"$f":"IF(AND(O140=1,O$410=1),1,0)","v":0},{"$f":"IF(AND(P140=1,P$410=1),1,0)","v":0},{"$f":"IF(AND(Q140=1,Q$410=1),1,0)","v":0},{"$f":"IF(AND(R140=1,R$410=1),1,0)","v":0},{"$f":"IF(AND(S140=1,S$410=1),1,0)","v":0},{"$f":"IF(AND(T140=1,T$410=1),1,0)","v":0},{"$f":"IF(AND(U140=1,U$410=1),1,0)","v":0},{"$f":"IF(AND(V140=1,V$410=1),1,0)","v":0},{"$f":"IF(AND(W140=1,W$410=1),1,0)","v":0},1,{"$f":"IF(AND(X140=1,X$410=1),1,0)","v":0},{"$f":"IF(AND(Y140=1,Y$410=1),1,0)","v":0},{"$f":"IF(AND(Z140=1,Z$410=1),1,0)","v":0},{"$f":"IF(AND(AA140=1,AA$410=1),1,0)","v":0},{"$f":"IF(AND(AB140=1,AB$410=1),1,0)","v":1},{"$f":"IF(AND(AC140=1,AC$410=1),1,0)","v":0},{"$f":"IF(AND(AD140=1,AD$410=1),1,0)","v":0},{"$f":"IF(AND(AE140=1,AE$410=1),1,0)","v":1},{"$f":"IF(AND(AF140=1,AF$410=1),1,0)","v":0},1,{"$f":"IF(AND(AG140=1,AG$410=1),1,0)","v":0},{"$f":"IF(AND(AH140=1,AH$410=1),1,0)","v":0},{"$f":"IF(AND(AI140=1,AI$410=1),1,0)","v":0},{"$f":"IF(AND(AJ140=1,AJ$410=1),1,0)","v":0},{"$f":"IF(AND(AK140=1,AK$410=1),1,0)","v":0},{"$f":"IF(AND(AL140=1,AL$410=1),1,0)","v":0},{"$f":"IF(AND(AM140=1,AM$410=1),1,0)","v":0},{"$f":"IF(AND(AN140=1,AN$410=1),1,0)","v":0},{"$f":"IF(AND(AO140=1,AO$410=1),1,0)","v":0},1,{"$f":"IF(AND(AP140=1,AP$410=1),1,0)","v":0},{"$f":"IF(AND(AQ140=1,AQ$410=1),1,0)","v":0},{"$f":"IF(AND(AR140=1,AR$410=1),1,0)","v":1},{"$f":"IF(AND(AS140=1,AS$410=1),1,0)","v":0},{"$f":"IF(AND(AT140=1,AT$410=1),1,0)","v":0},1,1,132,132,{"$f":"IFERROR(SMALL($CL$9:$CL$408,CK140),\"\")","v":132},{"$f":"IFERROR(INDEX($B$9:$I$408,$CM140,COLUMNS($CN$9:CN140)),\"\")","v":"TA132"},{"$f":"IFERROR(INDEX($B$9:$I$408,$CM140,COLUMNS($CN$9:CO140)),\"\")","v":"Number of knowledge products created"},{"$f":"IFERROR(INDEX($B$9:$I$408,$CM140,COLUMNS($CN$9:CP140)),\"\")","v":"-"},{"$f":"IFERROR(INDEX($B$9:$I$408,$CM140,COLUMNS($CN$9:CQ140)),\"\")","v":"Output"},{"$f":"IFERROR(INDEX($B$9:$I$408,$CM140,COLUMNS($CN$9:CR140)),\"\")","v":"-"},{"$f":"IFERROR(INDEX($B$9:$I$408,$CM140,COLUMNS($CN$9:CS140)),\"\")","v":"International policy support; Financing support"},{"$f":"IFERROR(INDEX($B$9:$I$408,$CM140,COLUMNS($CN$9:CT140)),\"\")","v":"-"},{"$f":"IFERROR(INDEX($B$9:$I$408,$CM140,COLUMNS($CN$9:CU140)),\"\")","v":"Number"}]
[null,{"$f":"IF(ISBLANK('TA Indicator Bank'!B137),\"\",'TA Indicator Bank'!B137)","v":"TA133"},{"$f":"IF(ISBLANK('TA Indicator Bank'!C137),\"\",'TA Indicator Bank'!C137)","v":"Number of cases where participants changed behaviour in response to international policy support"},{"$f":"IF(ISBLANK('TA Indicator Bank'!D137),\"\",'TA Indicator Bank'!D137)","v":"-"},{"$f":"IF(ISBLANK('TA Indicator Bank'!E137),\"\",'TA Indicator Bank'!E137)","v":"Output"},{"$f":"IF(ISBLANK('TA Indicator Bank'!F137),\"\",'TA Indicator Bank'!F137)","v":"-"},{"$f":"IF(ISBLANK('TA Indicator Bank'!G137),\"\",'TA Indicator Bank'!G137)","v":"International policy support"},{"$f":"IF(ISBLANK('TA Indicator Bank'!H137),\"\",'TA Indicator Bank'!H137)","v":"-"},{"$f":"IF(ISBLANK('TA Indicator Bank'!I137),\"\",'TA Indicator Bank'!I137)","v":"Number, Narrative"},{"$f":"IF(ISBLANK('TA Indicator Bank'!J137),\"\",'TA Indicator Bank'!J137)","v":0},{"$f":"IF(ISBLANK('TA Indicator Bank'!K137),\"\",'TA Indicator Bank'!K137)","v":0},{"$f":"IF(ISBLANK('TA Indicator Bank'!L137),\"\",'TA Indicator Bank'!L137)","v":0},{"$f":"IF(ISBLANK('TA Indicator Bank'!M137),\"\",'TA Indicator Bank'!M137)","v":0},{"$f":"IF(ISBLANK('TA Indicator Bank'!N137),\"\",'TA Indicator Bank'!N137)","v":0},{"$f":"IF(ISBLANK('TA Indicator Bank'!O137),\"\",'TA Indicator Bank'!O137)","v":0},{"$f":"IF(ISBLANK('TA Indicator Bank'!P137),\"\",'TA Indicator Bank'!P137)","v":0},{"$f":"IF(ISBLANK('TA Indicator Bank'!Q137),\"\",'TA Indicator Bank'!Q137)","v":0},{"$f":"IF(ISBLANK('TA Indicator Bank'!R137),\"\",'TA Indicator Bank'!R137)","v":0},{"$f":"IF(ISBLANK('TA Indicator Bank'!S137),\"\",'TA Indicator Bank'!S137)","v":0},{"$f":"IF(ISBLANK('TA Indicator Bank'!T137),\"\",'TA Indicator Bank'!T137)","v":0},{"$f":"IF(ISBLANK('TA Indicator Bank'!U137),\"\",'TA Indicator Bank'!U137)","v":0},{"$f":"IF(ISBLANK('TA Indicator Bank'!V137),\"\",'TA Indicator Bank'!V137)","v":0},{"$f":"IF(ISBLANK('TA Indicator Bank'!W137),\"\",'TA Indicator Bank'!W137)","v":0},{"$f":"IF(ISBLANK('TA Indicator Bank'!X137),\"\",'TA Indicator Bank'!X137)","v":0},{"$f":"IF(ISBLANK('TA Indicator Bank'!Y137),\"\",'TA Indicator Bank'!Y137)","v":0},{"$f":"IF(ISBLANK('TA Indicator Bank'!Z137),\"\",'TA Indicator Bank'!Z137)","v":0},{"$f":"IF(ISBLANK('TA Indicator Bank'!AA137),\"\",'TA Indicator Bank'!AA137)","v":0},{"$f":"IF(ISBLANK('TA Indicator Bank'!AB137),\"\",'TA Indicator Bank'!AB137)","v":1},{"$f":"IF(ISBLANK('TA Indicator Bank'!AC137),\"\",'TA Indicator Bank'!AC137)","v":0},{"$f":"IF(ISBLANK('TA Indicator Bank'!AD137),\"\",'TA Indicator Bank'!AD137)","v":0},{"$f":"IF(ISBLANK('TA Indicator Bank'!AE137),\"\",'TA Indicator Bank'!AE137)","v":0},{"$f":"IF(ISBLANK('TA Indicator Bank'!AF137),\"\",'TA Indicator Bank'!AF137)","v":0},{"$f":"IF(ISBLANK('TA Indicator Bank'!AG137),\"\",'TA Indicator Bank'!AG137)","v":0},{"$f":"IF(ISBLANK('TA Indicator Bank'!AH137),\"\",'TA Indicator Bank'!AH137)","v":0},{"$f":"IF(ISBLANK('TA Indicator Bank'!AI137),\"\",'TA Indicator Bank'!AI137)","v":0},{"$f":"IF(ISBLANK('TA Indicator Bank'!AJ137),\"\",'TA Indicator Bank'!AJ137)","v":0},{"$f":"IF(ISBLANK('TA Indicator Bank'!AK137),\"\",'TA Indicator Bank'!AK137)","v":0},{"$f":"IF(ISBLANK('TA Indicator Bank'!AL137),\"\",'TA Indicator Bank'!AL137)","v":0},{"$f":"IF(ISBLANK('TA Indicator Bank'!AM137),\"\",'TA Indicator Bank'!AM137)","v":0},{"$f":"IF(ISBLANK('TA Indicator Bank'!AN137),\"\",'TA Indicator Bank'!AN137)","v":0},{"$f":"IF(ISBLANK('TA Indicator Bank'!AO137),\"\",'TA Indicator Bank'!AO137)","v":0},{"$f":"IF(ISBLANK('TA Indicator Bank'!AP137),\"\",'TA Indicator Bank'!AP137)","v":0},{"$f":"IF(ISBLANK('TA Indicator Bank'!AQ137),\"\",'TA Indicator Bank'!AQ137)","v":0},{"$f":"IF(ISBLANK('TA Indicator Bank'!AR137),\"\",'TA Indicator Bank'!AR137)","v":1},{"$f":"IF(ISBLANK('TA Indicator Bank'!AS137),\"\",'TA Indicator Bank'!AS137)","v":0},{"$f":"IF(ISBLANK('TA Indicator Bank'!AT137),\"\",'TA Indicator Bank'!AT137)","v":0},{"$f":"IF(AND(J141=1,J$410=1),1,0)","v":0},{"$f":"IF(AND(K141=1,K$410=1),1,0)","v":0},{"$f":"IF(AND(L141=1,L$410=1),1,0)","v":0},{"$f":"IF(AND(M141=1,M$410=1),1,0)","v":0},{"$f":"IF(AND(N141=1,N$410=1),1,0)","v":0},{"$f":"IF(AND(O141=1,O$410=1),1,0)","v":0},{"$f":"IF(AND(P141=1,P$410=1),1,0)","v":0},{"$f":"IF(AND(Q141=1,Q$410=1),1,0)","v":0},{"$f":"IF(AND(R141=1,R$410=1),1,0)","v":0},{"$f":"IF(AND(S141=1,S$410=1),1,0)","v":0},{"$f":"IF(AND(T141=1,T$410=1),1,0)","v":0},{"$f":"IF(AND(U141=1,U$410=1),1,0)","v":0},{"$f":"IF(AND(V141=1,V$410=1),1,0)","v":0},{"$f":"IF(AND(W141=1,W$410=1),1,0)","v":0},1,{"$f":"IF(AND(X141=1,X$410=1),1,0)","v":0},{"$f":"IF(AND(Y141=1,Y$410=1),1,0)","v":0},{"$f":"IF(AND(Z141=1,Z$410=1),1,0)","v":0},{"$f":"IF(AND(AA141=1,AA$410=1),1,0)","v":0},{"$f":"IF(AND(AB141=1,AB$410=1),1,0)","v":1},{"$f":"IF(AND(AC141=1,AC$410=1),1,0)","v":0},{"$f":"IF(AND(AD141=1,AD$410=1),1,0)","v":0},{"$f":"IF(AND(AE141=1,AE$410=1),1,0)","v":0},{"$f":"IF(AND(AF141=1,AF$410=1),1,0)","v":0},1,{"$f":"IF(AND(AG141=1,AG$410=1),1,0)","v":0},{"$f":"IF(AND(AH141=1,AH$410=1),1,0)","v":0},{"$f":"IF(AND(AI141=1,AI$410=1),1,0)","v":0},{"$f":"IF(AND(AJ141=1,AJ$410=1),1,0)","v":0},{"$f":"IF(AND(AK141=1,AK$410=1),1,0)","v":0},{"$f":"IF(AND(AL141=1,AL$410=1),1,0)","v":0},{"$f":"IF(AND(AM141=1,AM$410=1),1,0)","v":0},{"$f":"IF(AND(AN141=1,AN$410=1),1,0)","v":0},{"$f":"IF(AND(AO141=1,AO$410=1),1,0)","v":0},1,{"$f":"IF(AND(AP141=1,AP$410=1),1,0)","v":0},{"$f":"IF(AND(AQ141=1,AQ$410=1),1,0)","v":0},{"$f":"IF(AND(AR141=1,AR$410=1),1,0)","v":1},{"$f":"IF(AND(AS141=1,AS$410=1),1,0)","v":0},{"$f":"IF(AND(AT141=1,AT$410=1),1,0)","v":0},1,1,133,133,{"$f":"IFERROR(SMALL($CL$9:$CL$408,CK141),\"\")","v":133},{"$f":"IFERROR(INDEX($B$9:$I$408,$CM141,COLUMNS($CN$9:CN141)),\"\")","v":"TA133"},{"$f":"IFERROR(INDEX($B$9:$I$408,$CM141,COLUMNS($CN$9:CO141)),\"\")","v":"Number of cases where participants changed behaviour in response to international policy support"},{"$f":"IFERROR(INDEX($B$9:$I$408,$CM141,COLUMNS($CN$9:CP141)),\"\")","v":"-"},{"$f":"IFERROR(INDEX($B$9:$I$408,$CM141,COLUMNS($CN$9:CQ141)),\"\")","v":"Output"},{"$f":"IFERROR(INDEX($B$9:$I$408,$CM141,COLUMNS($CN$9:CR141)),\"\")","v":"-"},{"$f":"IFERROR(INDEX($B$9:$I$408,$CM141,COLUMNS($CN$9:CS141)),\"\")","v":"International policy support"},{"$f":"IFERROR(INDEX($B$9:$I$408,$CM141,COLUMNS($CN$9:CT141)),\"\")","v":"-"},{"$f":"IFERROR(INDEX($B$9:$I$408,$CM141,COLUMNS($CN$9:CU141)),\"\")","v":"Number, Narrative"}]
[null,{"$f":"IF(ISBLANK('TA Indicator Bank'!B138),\"\",'TA Indicator Bank'!B138)","v":"TA134"},{"$f":"IF(ISBLANK('TA Indicator Bank'!C138),\"\",'TA Indicator Bank'!C138)","v":"International policy coordination takes place"},{"$f":"IF(ISBLANK('TA Indicator Bank'!D138),\"\",'TA Indicator Bank'!D138)","v":"-"},{"$f":"IF(ISBLANK('TA Indicator Bank'!E138),\"\",'TA Indicator Bank'!E138)","v":"Output"},{"$f":"IF(ISBLANK('TA Indicator Bank'!F138),\"\",'TA Indicator Bank'!F138)","v":"-"},{"$f":"IF(ISBLANK('TA Indicator Bank'!G138),\"\",'TA Indicator Bank'!G138)","v":"International policy support"},{"$f":"IF(ISBLANK('TA Indicator Bank'!H138),\"\",'TA Indicator Bank'!H138)","v":"-"},{"$f":"IF(ISBLANK('TA Indicator Bank'!I138),\"\",'TA Indicator Bank'!I138)","v":"Narrative"},{"$f":"IF(ISBLANK('TA Indicator Bank'!J138),\"\",'TA Indicator Bank'!J138)","v":0},{"$f":"IF(ISBLANK('TA Indicator Bank'!K138),\"\",'TA Indicator Bank'!K138)","v":0},{"$f":"IF(ISBLANK('TA Indicator Bank'!L138),\"\",'TA Indicator Bank'!L138)","v":0},{"$f":"IF(ISBLANK('TA Indicator Bank'!M138),\"\",'TA Indicator Bank'!M138)","v":0},{"$f":"IF(ISBLANK('TA Indicator Bank'!N138),\"\",'TA Indicator Bank'!N138)","v":0},{"$f":"IF(ISBLANK('TA Indicator Bank'!O138),\"\",'TA Indicator Bank'!O138)","v":0},{"$f":"IF(ISBLANK('TA Indicator Bank'!P138),\"\",'TA Indicator Bank'!P138)","v":0},{"$f":"IF(ISBLANK('TA Indicator Bank'!Q138),\"\",'TA Indicator Bank'!Q138)","v":0},{"$f":"IF(ISBLANK('TA Indicator Bank'!R138),\"\",'TA Indicator Bank'!R138)","v":0},{"$f":"IF(ISBLANK('TA Indicator Bank'!S138),\"\",'TA Indicator Bank'!S138)","v":0},{"$f":"IF(ISBLANK('TA Indicator Bank'!T138),\"\",'TA Indicator Bank'!T138)","v":0},{"$f":"IF(ISBLANK('TA Indicator Bank'!U138),\"\",'TA Indicator Bank'!U138)","v":0},{"$f":"IF(ISBLANK('TA Indicator Bank'!V138),\"\",'TA Indicator Bank'!V138)","v":0},{"$f":"IF(ISBLANK('TA Indicator Bank'!W138),\"\",'TA Indicator Bank'!W138)","v":0},{"$f":"IF(ISBLANK('TA Indicator Bank'!X138),\"\",'TA Indicator Bank'!X138)","v":0},{"$f":"IF(ISBLANK('TA Indicator Bank'!Y138),\"\",'TA Indicator Bank'!Y138)","v":0},{"$f":"IF(ISBLANK('TA Indicator Bank'!Z138),\"\",'TA Indicator Bank'!Z138)","v":0},{"$f":"IF(ISBLANK('TA Indicator Bank'!AA138),\"\",'TA Indicator Bank'!AA138)","v":0},{"$f":"IF(ISBLANK('TA Indicator Bank'!AB138),\"\",'TA Indicator Bank'!AB138)","v":1},{"$f":"IF(ISBLANK('TA Indicator Bank'!AC138),\"\",'TA Indicator Bank'!AC138)","v":0},{"$f":"IF(ISBLANK('TA Indicator Bank'!AD138),\"\",'TA Indicator Bank'!AD138)","v":0},{"$f":"IF(ISBLANK('TA Indicator Bank'!AE138),\"\",'TA Indicator Bank'!AE138)","v":0},{"$f":"IF(ISBLANK('TA Indicator Bank'!AF138),\"\",'TA Indicator Bank'!AF138)","v":0},{"$f":"IF(ISBLANK('TA Indicator Bank'!AG138),\"\",'TA Indicator Bank'!AG138)","v":0},{"$f":"IF(ISBLANK('TA Indicator Bank'!AH138),\"\",'TA Indicator Bank'!AH138)","v":0},{"$f":"IF(ISBLANK('TA Indicator Bank'!AI138),\"\",'TA Indicator Bank'!AI138)","v":0},{"$f":"IF(ISBLANK('TA Indicator Bank'!AJ138),\"\",'TA Indicator Bank'!AJ138)","v":0},{"$f":"IF(ISBLANK('TA Indicator Bank'!AK138),\"\",'TA Indicator Bank'!AK138)","v":0},{"$f":"IF(ISBLANK('TA Indicator Bank'!AL138),\"\",'TA Indicator Bank'!AL138)","v":0},{"$f":"IF(ISBLANK('TA Indicator Bank'!AM138),\"\",'TA Indicator Bank'!AM138)","v":0},{"$f":"IF(ISBLANK('TA Indicator Bank'!AN138),\"\",'TA Indicator Bank'!AN138)","v":0},{"$f":"IF(ISBLANK('TA Indicator Bank'!AO138),\"\",'TA Indicator Bank'!AO138)","v":0},{"$f":"IF(ISBLANK('TA Indicator Bank'!AP138),\"\",'TA Indicator Bank'!AP138)","v":0},{"$f":"IF(ISBLANK('TA Indicator Bank'!AQ138),\"\",'TA Indicator Bank'!AQ138)","v":0},{"$f":"IF(ISBLANK('TA Indicator Bank'!AR138),\"\",'TA Indicator Bank'!AR138)","v":1},{"$f":"IF(ISBLANK('TA Indicator Bank'!AS138),\"\",'TA Indicator Bank'!AS138)","v":0},{"$f":"IF(ISBLANK('TA Indicator Bank'!AT138),\"\",'TA Indicator Bank'!AT138)","v":0},{"$f":"IF(AND(J142=1,J$410=1),1,0)","v":0},{"$f":"IF(AND(K142=1,K$410=1),1,0)","v":0},{"$f":"IF(AND(L142=1,L$410=1),1,0)","v":0},{"$f":"IF(AND(M142=1,M$410=1),1,0)","v":0},{"$f":"IF(AND(N142=1,N$410=1),1,0)","v":0},{"$f":"IF(AND(O142=1,O$410=1),1,0)","v":0},{"$f":"IF(AND(P142=1,P$410=1),1,0)","v":0},{"$f":"IF(AND(Q142=1,Q$410=1),1,0)","v":0},{"$f":"IF(AND(R142=1,R$410=1),1,0)","v":0},{"$f":"IF(AND(S142=1,S$410=1),1,0)","v":0},{"$f":"IF(AND(T142=1,T$410=1),1,0)","v":0},{"$f":"IF(AND(U142=1,U$410=1),1,0)","v":0},{"$f":"IF(AND(V142=1,V$410=1),1,0)","v":0},{"$f":"IF(AND(W142=1,W$410=1),1,0)","v":0},1,{"$f":"IF(AND(X142=1,X$410=1),1,0)","v":0},{"$f":"IF(AND(Y142=1,Y$410=1),1,0)","v":0},{"$f":"IF(AND(Z142=1,Z$410=1),1,0)","v":0},{"$f":"IF(AND(AA142=1,AA$410=1),1,0)","v":0},{"$f":"IF(AND(AB142=1,AB$410=1),1,0)","v":1},{"$f":"IF(AND(AC142=1,AC$410=1),1,0)","v":0},{"$f":"IF(AND(AD142=1,AD$410=1),1,0)","v":0},{"$f":"IF(AND(AE142=1,AE$410=1),1,0)","v":0},{"$f":"IF(AND(AF142=1,AF$410=1),1,0)","v":0},1,{"$f":"IF(AND(AG142=1,AG$410=1),1,0)","v":0},{"$f":"IF(AND(AH142=1,AH$410=1),1,0)","v":0},{"$f":"IF(AND(AI142=1,AI$410=1),1,0)","v":0},{"$f":"IF(AND(AJ142=1,AJ$410=1),1,0)","v":0},{"$f":"IF(AND(AK142=1,AK$410=1),1,0)","v":0},{"$f":"IF(AND(AL142=1,AL$410=1),1,0)","v":0},{"$f":"IF(AND(AM142=1,AM$410=1),1,0)","v":0},{"$f":"IF(AND(AN142=1,AN$410=1),1,0)","v":0},{"$f":"IF(AND(AO142=1,AO$410=1),1,0)","v":0},1,{"$f":"IF(AND(AP142=1,AP$410=1),1,0)","v":0},{"$f":"IF(AND(AQ142=1,AQ$410=1),1,0)","v":0},{"$f":"IF(AND(AR142=1,AR$410=1),1,0)","v":1},{"$f":"IF(AND(AS142=1,AS$410=1),1,0)","v":0},{"$f":"IF(AND(AT142=1,AT$410=1),1,0)","v":0},1,1,134,134,{"$f":"IFERROR(SMALL($CL$9:$CL$408,CK142),\"\")","v":134},{"$f":"IFERROR(INDEX($B$9:$I$408,$CM142,COLUMNS($CN$9:CN142)),\"\")","v":"TA134"},{"$f":"IFERROR(INDEX($B$9:$I$408,$CM142,COLUMNS($CN$9:CO142)),\"\")","v":"International policy coordination takes place"},{"$f":"IFERROR(INDEX($B$9:$I$408,$CM142,COLUMNS($CN$9:CP142)),\"\")","v":"-"},{"$f":"IFERROR(INDEX($B$9:$I$408,$CM142,COLUMNS($CN$9:CQ142)),\"\")","v":"Output"},{"$f":"IFERROR(INDEX($B$9:$I$408,$CM142,COLUMNS($CN$9:CR142)),\"\")","v":"-"},{"$f":"IFERROR(INDEX($B$9:$I$408,$CM142,COLUMNS($CN$9:CS142)),\"\")","v":"International policy support"},{"$f":"IFERROR(INDEX($B$9:$I$408,$CM142,COLUMNS($CN$9:CT142)),\"\")","v":"-"},{"$f":"IFERROR(INDEX($B$9:$I$408,$CM142,COLUMNS($CN$9:CU142)),\"\")","v":"Narrative"}]
[null,{"$f":"IF(ISBLANK('TA Indicator Bank'!B139),\"\",'TA Indicator Bank'!B139)","v":"TA135"},{"$f":"IF(ISBLANK('TA Indicator Bank'!C139),\"\",'TA Indicator Bank'!C139)","v":"Number of project studies (e.g. pre-feasibility, feasibility, design, structure)"},{"$f":"IF(ISBLANK('TA Indicator Bank'!D139),\"\",'TA Indicator Bank'!D139)","v":"-"},{"$f":"IF(ISBLANK('TA Indicator Bank'!E139),\"\",'TA Indicator Bank'!E139)","v":"Output"},{"$f":"IF(ISBLANK('TA Indicator Bank'!F139),\"\",'TA Indicator Bank'!F139)","v":"-"},{"$f":"IF(ISBLANK('TA Indicator Bank'!G139),\"\",'TA Indicator Bank'!G139)","v":"Project development support"},{"$f":"IF(ISBLANK('TA Indicator Bank'!H139),\"\",'TA Indicator Bank'!H139)","v":"-"},{"$f":"IF(ISBLANK('TA Indicator Bank'!I139),\"\",'TA Indicator Bank'!I139)","v":"Number"},{"$f":"IF(ISBLANK('TA Indicator Bank'!J139),\"\",'TA Indicator Bank'!J139)","v":0},{"$f":"IF(ISBLANK('TA Indicator Bank'!K139),\"\",'TA Indicator Bank'!K139)","v":0},{"$f":"IF(ISBLANK('TA Indicator Bank'!L139),\"\",'TA Indicator Bank'!L139)","v":0},{"$f":"IF(ISBLANK('TA Indicator Bank'!M139),\"\",'TA Indicator Bank'!M139)","v":0},{"$f":"IF(ISBLANK('TA Indicator Bank'!N139),\"\",'TA Indicator Bank'!N139)","v":0},{"$f":"IF(ISBLANK('TA Indicator Bank'!O139),\"\",'TA Indicator Bank'!O139)","v":0},{"$f":"IF(ISBLANK('TA Indicator Bank'!P139),\"\",'TA Indicator Bank'!P139)","v":0},{"$f":"IF(ISBLANK('TA Indicator Bank'!Q139),\"\",'TA Indicator Bank'!Q139)","v":0},{"$f":"IF(ISBLANK('TA Indicator Bank'!R139),\"\",'TA Indicator Bank'!R139)","v":0},{"$f":"IF(ISBLANK('TA Indicator Bank'!S139),\"\",'TA Indicator Bank'!S139)","v":0},{"$f":"IF(ISBLANK('TA Indicator Bank'!T139),\"\",'TA Indicator Bank'!T139)","v":0},{"$f":"IF(ISBLANK('TA Indicator Bank'!U139),\"\",'TA Indicator Bank'!U139)","v":0},{"$f":"IF(ISBLANK('TA Indicator Bank'!V139),\"\",'TA Indicator Bank'!V139)","v":0},{"$f":"IF(ISBLANK('TA Indicator Bank'!W139),\"\",'TA Indicator Bank'!W139)","v":0},{"$f":"IF(ISBLANK('TA Indicator Bank'!X139),\"\",'TA Indicator Bank'!X139)","v":0},{"$f":"IF(ISBLANK('TA Indicator Bank'!Y139),\"\",'TA Indicator Bank'!Y139)","v":0},{"$f":"IF(ISBLANK('TA Indicator Bank'!Z139),\"\",'TA Indicator Bank'!Z139)","v":0},{"$f":"IF(ISBLANK('TA Indicator Bank'!AA139),\"\",'TA Indicator Bank'!AA139)","v":0},{"$f":"IF(ISBLANK('TA Indicator Bank'!AB139),\"\",'TA Indicator Bank'!AB139)","v":0},{"$f":"IF(ISBLANK('TA Indicator Bank'!AC139),\"\",'TA Indicator Bank'!AC139)","v":1},{"$f":"IF(ISBLANK('TA Indicator Bank'!AD139),\"\",'TA Indicator Bank'!AD139)","v":0},{"$f":"IF(ISBLANK('TA Indicator Bank'!AE139),\"\",'TA Indicator Bank'!AE139)","v":0},{"$f":"IF(ISBLANK('TA Indicator Bank'!AF139),\"\",'TA Indicator Bank'!AF139)","v":0},{"$f":"IF(ISBLANK('TA Indicator Bank'!AG139),\"\",'TA Indicator Bank'!AG139)","v":0},{"$f":"IF(ISBLANK('TA Indicator Bank'!AH139),\"\",'TA Indicator Bank'!AH139)","v":0},{"$f":"IF(ISBLANK('TA Indicator Bank'!AI139),\"\",'TA Indicator Bank'!AI139)","v":0},{"$f":"IF(ISBLANK('TA Indicator Bank'!AJ139),\"\",'TA Indicator Bank'!AJ139)","v":0},{"$f":"IF(ISBLANK('TA Indicator Bank'!AK139),\"\",'TA Indicator Bank'!AK139)","v":0},{"$f":"IF(ISBLANK('TA Indicator Bank'!AL139),\"\",'TA Indicator Bank'!AL139)","v":0},{"$f":"IF(ISBLANK('TA Indicator Bank'!AM139),\"\",'TA Indicator Bank'!AM139)","v":0},{"$f":"IF(ISBLANK('TA Indicator Bank'!AN139),\"\",'TA Indicator Bank'!AN139)","v":0},{"$f":"IF(ISBLANK('TA Indicator Bank'!AO139),\"\",'TA Indicator Bank'!AO139)","v":0},{"$f":"IF(ISBLANK('TA Indicator Bank'!AP139),\"\",'TA Indicator Bank'!AP139)","v":0},{"$f":"IF(ISBLANK('TA Indicator Bank'!AQ139),\"\",'TA Indicator Bank'!AQ139)","v":0},{"$f":"IF(ISBLANK('TA Indicator Bank'!AR139),\"\",'TA Indicator Bank'!AR139)","v":1},{"$f":"IF(ISBLANK('TA Indicator Bank'!AS139),\"\",'TA Indicator Bank'!AS139)","v":0},{"$f":"IF(ISBLANK('TA Indicator Bank'!AT139),\"\",'TA Indicator Bank'!AT139)","v":0},{"$f":"IF(AND(J143=1,J$410=1),1,0)","v":0},{"$f":"IF(AND(K143=1,K$410=1),1,0)","v":0},{"$f":"IF(AND(L143=1,L$410=1),1,0)","v":0},{"$f":"IF(AND(M143=1,M$410=1),1,0)","v":0},{"$f":"IF(AND(N143=1,N$410=1),1,0)","v":0},{"$f":"IF(AND(O143=1,O$410=1),1,0)","v":0},{"$f":"IF(AND(P143=1,P$410=1),1,0)","v":0},{"$f":"IF(AND(Q143=1,Q$410=1),1,0)","v":0},{"$f":"IF(AND(R143=1,R$410=1),1,0)","v":0},{"$f":"IF(AND(S143=1,S$410=1),1,0)","v":0},{"$f":"IF(AND(T143=1,T$410=1),1,0)","v":0},{"$f":"IF(AND(U143=1,U$410=1),1,0)","v":0},{"$f":"IF(AND(V143=1,V$410=1),1,0)","v":0},{"$f":"IF(AND(W143=1,W$410=1),1,0)","v":0},1,{"$f":"IF(AND(X143=1,X$410=1),1,0)","v":0},{"$f":"IF(AND(Y143=1,Y$410=1),1,0)","v":0},{"$f":"IF(AND(Z143=1,Z$410=1),1,0)","v":0},{"$f":"IF(AND(AA143=1,AA$410=1),1,0)","v":0},{"$f":"IF(AND(AB143=1,AB$410=1),1,0)","v":0},{"$f":"IF(AND(AC143=1,AC$410=1),1,0)","v":1},{"$f":"IF(AND(AD143=1,AD$410=1),1,0)","v":0},{"$f":"IF(AND(AE143=1,AE$410=1),1,0)","v":0},{"$f":"IF(AND(AF143=1,AF$410=1),1,0)","v":0},1,{"$f":"IF(AND(AG143=1,AG$410=1),1,0)","v":0},{"$f":"IF(AND(AH143=1,AH$410=1),1,0)","v":0},{"$f":"IF(AND(AI143=1,AI$410=1),1,0)","v":0},{"$f":"IF(AND(AJ143=1,AJ$410=1),1,0)","v":0},{"$f":"IF(AND(AK143=1,AK$410=1),1,0)","v":0},{"$f":"IF(AND(AL143=1,AL$410=1),1,0)","v":0},{"$f":"IF(AND(AM143=1,AM$410=1),1,0)","v":0},{"$f":"IF(AND(AN143=1,AN$410=1),1,0)","v":0},{"$f":"IF(AND(AO143=1,AO$410=1),1,0)","v":0},1,{"$f":"IF(AND(AP143=1,AP$410=1),1,0)","v":0},{"$f":"IF(AND(AQ143=1,AQ$410=1),1,0)","v":0},{"$f":"IF(AND(AR143=1,AR$410=1),1,0)","v":1},{"$f":"IF(AND(AS143=1,AS$410=1),1,0)","v":0},{"$f":"IF(AND(AT143=1,AT$410=1),1,0)","v":0},1,1,135,135,{"$f":"IFERROR(SMALL($CL$9:$CL$408,CK143),\"\")","v":135},{"$f":"IFERROR(INDEX($B$9:$I$408,$CM143,COLUMNS($CN$9:CN143)),\"\")","v":"TA135"},{"$f":"IFERROR(INDEX($B$9:$I$408,$CM143,COLUMNS($CN$9:CO143)),\"\")","v":"Number of project studies (e.g. pre-feasibility, feasibility, design, structure)"},{"$f":"IFERROR(INDEX($B$9:$I$408,$CM143,COLUMNS($CN$9:CP143)),\"\")","v":"-"},{"$f":"IFERROR(INDEX($B$9:$I$408,$CM143,COLUMNS($CN$9:CQ143)),\"\")","v":"Output"},{"$f":"IFERROR(INDEX($B$9:$I$408,$CM143,COLUMNS($CN$9:CR143)),\"\")","v":"-"},{"$f":"IFERROR(INDEX($B$9:$I$408,$CM143,COLUMNS($CN$9:CS143)),\"\")","v":"Project development support"},{"$f":"IFERROR(INDEX($B$9:$I$408,$CM143,COLUMNS($CN$9:CT143)),\"\")","v":"-"},{"$f":"IFERROR(INDEX($B$9:$I$408,$CM143,COLUMNS($CN$9:CU143)),\"\")","v":"Number"}]
[null,{"$f":"IF(ISBLANK('TA Indicator Bank'!B140),\"\",'TA Indicator Bank'!B140)","v":"TA136"},{"$f":"IF(ISBLANK('TA Indicator Bank'!C140),\"\",'TA Indicator Bank'!C140)","v":"(Number of) Projects that pass through certain stage that requires approval"},{"$f":"IF(ISBLANK('TA Indicator Bank'!D140),\"\",'TA Indicator Bank'!D140)","v":"-"},{"$f":"IF(ISBLANK('TA Indicator Bank'!E140),\"\",'TA Indicator Bank'!E140)","v":"Output"},{"$f":"IF(ISBLANK('TA Indicator Bank'!F140),\"\",'TA Indicator Bank'!F140)","v":"-"},{"$f":"IF(ISBLANK('TA Indicator Bank'!G140),\"\",'TA Indicator Bank'!G140)","v":"Project development support; Process/asset operation support"},{"$f":"IF(ISBLANK('TA Indicator Bank'!H140),\"\",'TA Indicator Bank'!H140)","v":"-"},{"$f":"IF(ISBLANK('TA Indicator Bank'!I140),\"\",'TA Indicator Bank'!I140)","v":"Number"},{"$f":"IF(ISBLANK('TA Indicator Bank'!J140),\"\",'TA Indicator Bank'!J140)","v":0},{"$f":"IF(ISBLANK('TA Indicator Bank'!K140),\"\",'TA Indicator Bank'!K140)","v":0},{"$f":"IF(ISBLANK('TA Indicator Bank'!L140),\"\",'TA Indicator Bank'!L140)","v":0},{"$f":"IF(ISBLANK('TA Indicator Bank'!M140),\"\",'TA Indicator Bank'!M140)","v":0},{"$f":"IF(ISBLANK('TA Indicator Bank'!N140),\"\",'TA Indicator Bank'!N140)","v":0},{"$f":"IF(ISBLANK('TA Indicator Bank'!O140),\"\",'TA Indicator Bank'!O140)","v":0},{"$f":"IF(ISBLANK('TA Indicator Bank'!P140),\"\",'TA Indicator Bank'!P140)","v":0},{"$f":"IF(ISBLANK('TA Indicator Bank'!Q140),\"\",'TA Indicator Bank'!Q140)","v":0},{"$f":"IF(ISBLANK('TA Indicator Bank'!R140),\"\",'TA Indicator Bank'!R140)","v":0},{"$f":"IF(ISBLANK('TA Indicator Bank'!S140),\"\",'TA Indicator Bank'!S140)","v":0},{"$f":"IF(ISBLANK('TA Indicator Bank'!T140),\"\",'TA Indicator Bank'!T140)","v":0},{"$f":"IF(ISBLANK('TA Indicator Bank'!U140),\"\",'TA Indicator Bank'!U140)","v":0},{"$f":"IF(ISBLANK('TA Indicator Bank'!V140),\"\",'TA Indicator Bank'!V140)","v":0},{"$f":"IF(ISBLANK('TA Indicator Bank'!W140),\"\",'TA Indicator Bank'!W140)","v":0},{"$f":"IF(ISBLANK('TA Indicator Bank'!X140),\"\",'TA Indicator Bank'!X140)","v":0},{"$f":"IF(ISBLANK('TA Indicator Bank'!Y140),\"\",'TA Indicator Bank'!Y140)","v":0},{"$f":"IF(ISBLANK('TA Indicator Bank'!Z140),\"\",'TA Indicator Bank'!Z140)","v":0},{"$f":"IF(ISBLANK('TA Indicator Bank'!AA140),\"\",'TA Indicator Bank'!AA140)","v":0},{"$f":"IF(ISBLANK('TA Indicator Bank'!AB140),\"\",'TA Indicator Bank'!AB140)","v":0},{"$f":"IF(ISBLANK('TA Indicator Bank'!AC140),\"\",'TA Indicator Bank'!AC140)","v":1},{"$f":"IF(ISBLANK('TA Indicator Bank'!AD140),\"\",'TA Indicator Bank'!AD140)","v":1},{"$f":"IF(ISBLANK('TA Indicator Bank'!AE140),\"\",'TA Indicator Bank'!AE140)","v":0},{"$f":"IF(ISBLANK('TA Indicator Bank'!AF140),\"\",'TA Indicator Bank'!AF140)","v":0},{"$f":"IF(ISBLANK('TA Indicator Bank'!AG140),\"\",'TA Indicator Bank'!AG140)","v":0},{"$f":"IF(ISBLANK('TA Indicator Bank'!AH140),\"\",'TA Indicator Bank'!AH140)","v":0},{"$f":"IF(ISBLANK('TA Indicator Bank'!AI140),\"\",'TA Indicator Bank'!AI140)","v":0},{"$f":"IF(ISBLANK('TA Indicator Bank'!AJ140),\"\",'TA Indicator Bank'!AJ140)","v":0},{"$f":"IF(ISBLANK('TA Indicator Bank'!AK140),\"\",'TA Indicator Bank'!AK140)","v":0},{"$f":"IF(ISBLANK('TA Indicator Bank'!AL140),\"\",'TA Indicator Bank'!AL140)","v":0},{"$f":"IF(ISBLANK('TA Indicator Bank'!AM140),\"\",'TA Indicator Bank'!AM140)","v":0},{"$f":"IF(ISBLANK('TA Indicator Bank'!AN140),\"\",'TA Indicator Bank'!AN140)","v":0},{"$f":"IF(ISBLANK('TA Indicator Bank'!AO140),\"\",'TA Indicator Bank'!AO140)","v":0},{"$f":"IF(ISBLANK('TA Indicator Bank'!AP140),\"\",'TA Indicator Bank'!AP140)","v":0},{"$f":"IF(ISBLANK('TA Indicator Bank'!AQ140),\"\",'TA Indicator Bank'!AQ140)","v":0},{"$f":"IF(ISBLANK('TA Indicator Bank'!AR140),\"\",'TA Indicator Bank'!AR140)","v":1},{"$f":"IF(ISBLANK('TA Indicator Bank'!AS140),\"\",'TA Indicator Bank'!AS140)","v":0},{"$f":"IF(ISBLANK('TA Indicator Bank'!AT140),\"\",'TA Indicator Bank'!AT140)","v":0},{"$f":"IF(AND(J144=1,J$410=1),1,0)","v":0},{"$f":"IF(AND(K144=1,K$410=1),1,0)","v":0},{"$f":"IF(AND(L144=1,L$410=1),1,0)","v":0},{"$f":"IF(AND(M144=1,M$410=1),1,0)","v":0},{"$f":"IF(AND(N144=1,N$410=1),1,0)","v":0},{"$f":"IF(AND(O144=1,O$410=1),1,0)","v":0},{"$f":"IF(AND(P144=1,P$410=1),1,0)","v":0},{"$f":"IF(AND(Q144=1,Q$410=1),1,0)","v":0},{"$f":"IF(AND(R144=1,R$410=1),1,0)","v":0},{"$f":"IF(AND(S144=1,S$410=1),1,0)","v":0},{"$f":"IF(AND(T144=1,T$410=1),1,0)","v":0},{"$f":"IF(AND(U144=1,U$410=1),1,0)","v":0},{"$f":"IF(AND(V144=1,V$410=1),1,0)","v":0},{"$f":"IF(AND(W144=1,W$410=1),1,0)","v":0},1,{"$f":"IF(AND(X144=1,X$410=1),1,0)","v":0},{"$f":"IF(AND(Y144=1,Y$410=1),1,0)","v":0},{"$f":"IF(AND(Z144=1,Z$410=1),1,0)","v":0},{"$f":"IF(AND(AA144=1,AA$410=1),1,0)","v":0},{"$f":"IF(AND(AB144=1,AB$410=1),1,0)","v":0},{"$f":"IF(AND(AC144=1,AC$410=1),1,0)","v":1},{"$f":"IF(AND(AD144=1,AD$410=1),1,0)","v":1},{"$f":"IF(AND(AE144=1,AE$410=1),1,0)","v":0},{"$f":"IF(AND(AF144=1,AF$410=1),1,0)","v":0},1,{"$f":"IF(AND(AG144=1,AG$410=1),1,0)","v":0},{"$f":"IF(AND(AH144=1,AH$410=1),1,0)","v":0},{"$f":"IF(AND(AI144=1,AI$410=1),1,0)","v":0},{"$f":"IF(AND(AJ144=1,AJ$410=1),1,0)","v":0},{"$f":"IF(AND(AK144=1,AK$410=1),1,0)","v":0},{"$f":"IF(AND(AL144=1,AL$410=1),1,0)","v":0},{"$f":"IF(AND(AM144=1,AM$410=1),1,0)","v":0},{"$f":"IF(AND(AN144=1,AN$410=1),1,0)","v":0},{"$f":"IF(AND(AO144=1,AO$410=1),1,0)","v":0},1,{"$f":"IF(AND(AP144=1,AP$410=1),1,0)","v":0},{"$f":"IF(AND(AQ144=1,AQ$410=1),1,0)","v":0},{"$f":"IF(AND(AR144=1,AR$410=1),1,0)","v":1},{"$f":"IF(AND(AS144=1,AS$410=1),1,0)","v":0},{"$f":"IF(AND(AT144=1,AT$410=1),1,0)","v":0},1,1,136,136,{"$f":"IFERROR(SMALL($CL$9:$CL$408,CK144),\"\")","v":136},{"$f":"IFERROR(INDEX($B$9:$I$408,$CM144,COLUMNS($CN$9:CN144)),\"\")","v":"TA136"},{"$f":"IFERROR(INDEX($B$9:$I$408,$CM144,COLUMNS($CN$9:CO144)),\"\")","v":"(Number of) Projects that pass through certain stage that requires approval"},{"$f":"IFERROR(INDEX($B$9:$I$408,$CM144,COLUMNS($CN$9:CP144)),\"\")","v":"-"},{"$f":"IFERROR(INDEX($B$9:$I$408,$CM144,COLUMNS($CN$9:CQ144)),\"\")","v":"Output"},{"$f":"IFERROR(INDEX($B$9:$I$408,$CM144,COLUMNS($CN$9:CR144)),\"\")","v":"-"},{"$f":"IFERROR(INDEX($B$9:$I$408,$CM144,COLUMNS($CN$9:CS144)),\"\")","v":"Project development support; Process/asset operation support"},{"$f":"IFERROR(INDEX($B$9:$I$408,$CM144,COLUMNS($CN$9:CT144)),\"\")","v":"-"},{"$f":"IFERROR(INDEX($B$9:$I$408,$CM144,COLUMNS($CN$9:CU144)),\"\")","v":"Number"}]
[null,{"$f":"IF(ISBLANK('TA Indicator Bank'!B141),\"\",'TA Indicator Bank'!B141)","v":"TA137"},{"$f":"IF(ISBLANK('TA Indicator Bank'!C141),\"\",'TA Indicator Bank'!C141)","v":"Percentage of programmes that pass through certain stage that requires approval"},{"$f":"IF(ISBLANK('TA Indicator Bank'!D141),\"\",'TA Indicator Bank'!D141)","v":"-"},{"$f":"IF(ISBLANK('TA Indicator Bank'!E141),\"\",'TA Indicator Bank'!E141)","v":"Output"},{"$f":"IF(ISBLANK('TA Indicator Bank'!F141),\"\",'TA Indicator Bank'!F141)","v":"-"},{"$f":"IF(ISBLANK('TA Indicator Bank'!G141),\"\",'TA Indicator Bank'!G141)","v":"Project development support"},{"$f":"IF(ISBLANK('TA Indicator Bank'!H141),\"\",'TA Indicator Bank'!H141)","v":"-"},{"$f":"IF(ISBLANK('TA Indicator Bank'!I141),\"\",'TA Indicator Bank'!I141)","v":"Percentage"},{"$f":"IF(ISBLANK('TA Indicator Bank'!J141),\"\",'TA Indicator Bank'!J141)","v":0},{"$f":"IF(ISBLANK('TA Indicator Bank'!K141),\"\",'TA Indicator Bank'!K141)","v":0},{"$f":"IF(ISBLANK('TA Indicator Bank'!L141),\"\",'TA Indicator Bank'!L141)","v":0},{"$f":"IF(ISBLANK('TA Indicator Bank'!M141),\"\",'TA Indicator Bank'!M141)","v":0},{"$f":"IF(ISBLANK('TA Indicator Bank'!N141),\"\",'TA Indicator Bank'!N141)","v":0},{"$f":"IF(ISBLANK('TA Indicator Bank'!O141),\"\",'TA Indicator Bank'!O141)","v":0},{"$f":"IF(ISBLANK('TA Indicator Bank'!P141),\"\",'TA Indicator Bank'!P141)","v":0},{"$f":"IF(ISBLANK('TA Indicator Bank'!Q141),\"\",'TA Indicator Bank'!Q141)","v":0},{"$f":"IF(ISBLANK('TA Indicator Bank'!R141),\"\",'TA Indicator Bank'!R141)","v":0},{"$f":"IF(ISBLANK('TA Indicator Bank'!S141),\"\",'TA Indicator Bank'!S141)","v":0},{"$f":"IF(ISBLANK('TA Indicator Bank'!T141),\"\",'TA Indicator Bank'!T141)","v":0},{"$f":"IF(ISBLANK('TA Indicator Bank'!U141),\"\",'TA Indicator Bank'!U141)","v":0},{"$f":"IF(ISBLANK('TA Indicator Bank'!V141),\"\",'TA Indicator Bank'!V141)","v":0},{"$f":"IF(ISBLANK('TA Indicator Bank'!W141),\"\",'TA Indicator Bank'!W141)","v":0},{"$f":"IF(ISBLANK('TA Indicator Bank'!X141),\"\",'TA Indicator Bank'!X141)","v":0},{"$f":"IF(ISBLANK('TA Indicator Bank'!Y141),\"\",'TA Indicator Bank'!Y141)","v":0},{"$f":"IF(ISBLANK('TA Indicator Bank'!Z141),\"\",'TA Indicator Bank'!Z141)","v":0},{"$f":"IF(ISBLANK('TA Indicator Bank'!AA141),\"\",'TA Indicator Bank'!AA141)","v":0},{"$f":"IF(ISBLANK('TA Indicator Bank'!AB141),\"\",'TA Indicator Bank'!AB141)","v":0},{"$f":"IF(ISBLANK('TA Indicator Bank'!AC141),\"\",'TA Indicator Bank'!AC141)","v":1},{"$f":"IF(ISBLANK('TA Indicator Bank'!AD141),\"\",'TA Indicator Bank'!AD141)","v":0},{"$f":"IF(ISBLANK('TA Indicator Bank'!AE141),\"\",'TA Indicator Bank'!AE141)","v":0},{"$f":"IF(ISBLANK('TA Indicator Bank'!AF141),\"\",'TA Indicator Bank'!AF141)","v":0},{"$f":"IF(ISBLANK('TA Indicator Bank'!AG141),\"\",'TA Indicator Bank'!AG141)","v":0},{"$f":"IF(ISBLANK('TA Indicator Bank'!AH141),\"\",'TA Indicator Bank'!AH141)","v":0},{"$f":"IF(ISBLANK('TA Indicator Bank'!AI141),\"\",'TA Indicator Bank'!AI141)","v":0},{"$f":"IF(ISBLANK('TA Indicator Bank'!AJ141),\"\",'TA Indicator Bank'!AJ141)","v":0},{"$f":"IF(ISBLANK('TA Indicator Bank'!AK141),\"\",'TA Indicator Bank'!AK141)","v":0},{"$f":"IF(ISBLANK('TA Indicator Bank'!AL141),\"\",'TA Indicator Bank'!AL141)","v":0},{"$f":"IF(ISBLANK('TA Indicator Bank'!AM141),\"\",'TA Indicator Bank'!AM141)","v":0},{"$f":"IF(ISBLANK('TA Indicator Bank'!AN141),\"\",'TA Indicator Bank'!AN141)","v":0},{"$f":"IF(ISBLANK('TA Indicator Bank'!AO141),\"\",'TA Indicator Bank'!AO141)","v":0},{"$f":"IF(ISBLANK('TA Indicator Bank'!AP141),\"\",'TA Indicator Bank'!AP141)","v":0},{"$f":"IF(ISBLANK('TA Indicator Bank'!AQ141),\"\",'TA Indicator Bank'!AQ141)","v":0},{"$f":"IF(ISBLANK('TA Indicator Bank'!AR141),\"\",'TA Indicator Bank'!AR141)","v":1},{"$f":"IF(ISBLANK('TA Indicator Bank'!AS141),\"\",'TA Indicator Bank'!AS141)","v":0},{"$f":"IF(ISBLANK('TA Indicator Bank'!AT141),\"\",'TA Indicator Bank'!AT141)","v":0},{"$f":"IF(AND(J145=1,J$410=1),1,0)","v":0},{"$f":"IF(AND(K145=1,K$410=1),1,0)","v":0},{"$f":"IF(AND(L145=1,L$410=1),1,0)","v":0},{"$f":"IF(AND(M145=1,M$410=1),1,0)","v":0},{"$f":"IF(AND(N145=1,N$410=1),1,0)","v":0},{"$f":"IF(AND(O145=1,O$410=1),1,0)","v":0},{"$f":"IF(AND(P145=1,P$410=1),1,0)","v":0},{"$f":"IF(AND(Q145=1,Q$410=1),1,0)","v":0},{"$f":"IF(AND(R145=1,R$410=1),1,0)","v":0},{"$f":"IF(AND(S145=1,S$410=1),1,0)","v":0},{"$f":"IF(AND(T145=1,T$410=1),1,0)","v":0},{"$f":"IF(AND(U145=1,U$410=1),1,0)","v":0},{"$f":"IF(AND(V145=1,V$410=1),1,0)","v":0},{"$f":"IF(AND(W145=1,W$410=1),1,0)","v":0},1,{"$f":"IF(AND(X145=1,X$410=1),1,0)","v":0},{"$f":"IF(AND(Y145=1,Y$410=1),1,0)","v":0},{"$f":"IF(AND(Z145=1,Z$410=1),1,0)","v":0},{"$f":"IF(AND(AA145=1,AA$410=1),1,0)","v":0},{"$f":"IF(AND(AB145=1,AB$410=1),1,0)","v":0},{"$f":"IF(AND(AC145=1,AC$410=1),1,0)","v":1},{"$f":"IF(AND(AD145=1,AD$410=1),1,0)","v":0},{"$f":"IF(AND(AE145=1,AE$410=1),1,0)","v":0},{"$f":"IF(AND(AF145=1,AF$410=1),1,0)","v":0},1,{"$f":"IF(AND(AG145=1,AG$410=1),1,0)","v":0},{"$f":"IF(AND(AH145=1,AH$410=1),1,0)","v":0},{"$f":"IF(AND(AI145=1,AI$410=1),1,0)","v":0},{"$f":"IF(AND(AJ145=1,AJ$410=1),1,0)","v":0},{"$f":"IF(AND(AK145=1,AK$410=1),1,0)","v":0},{"$f":"IF(AND(AL145=1,AL$410=1),1,0)","v":0},{"$f":"IF(AND(AM145=1,AM$410=1),1,0)","v":0},{"$f":"IF(AND(AN145=1,AN$410=1),1,0)","v":0},{"$f":"IF(AND(AO145=1,AO$410=1),1,0)","v":0},1,{"$f":"IF(AND(AP145=1,AP$410=1),1,0)","v":0},{"$f":"IF(AND(AQ145=1,AQ$410=1),1,0)","v":0},{"$f":"IF(AND(AR145=1,AR$410=1),1,0)","v":1},{"$f":"IF(AND(AS145=1,AS$410=1),1,0)","v":0},{"$f":"IF(AND(AT145=1,AT$410=1),1,0)","v":0},1,1,137,137,{"$f":"IFERROR(SMALL($CL$9:$CL$408,CK145),\"\")","v":137},{"$f":"IFERROR(INDEX($B$9:$I$408,$CM145,COLUMNS($CN$9:CN145)),\"\")","v":"TA137"},{"$f":"IFERROR(INDEX($B$9:$I$408,$CM145,COLUMNS($CN$9:CO145)),\"\")","v":"Percentage of programmes that pass through certain stage that requires approval"},{"$f":"IFERROR(INDEX($B$9:$I$408,$CM145,COLUMNS($CN$9:CP145)),\"\")","v":"-"},{"$f":"IFERROR(INDEX($B$9:$I$408,$CM145,COLUMNS($CN$9:CQ145)),\"\")","v":"Output"},{"$f":"IFERROR(INDEX($B$9:$I$408,$CM145,COLUMNS($CN$9:CR145)),\"\")","v":"-"},{"$f":"IFERROR(INDEX($B$9:$I$408,$CM145,COLUMNS($CN$9:CS145)),\"\")","v":"Project development support"},{"$f":"IFERROR(INDEX($B$9:$I$408,$CM145,COLUMNS($CN$9:CT145)),\"\")","v":"-"},{"$f":"IFERROR(INDEX($B$9:$I$408,$CM145,COLUMNS($CN$9:CU145)),\"\")","v":"Percentage"}]
[null,{"$f":"IF(ISBLANK('TA Indicator Bank'!B142),\"\",'TA Indicator Bank'!B142)","v":"TA138"},{"$f":"IF(ISBLANK('TA Indicator Bank'!C142),\"\",'TA Indicator Bank'!C142)","v":"Certain project strategy document is developed and delivered"},{"$f":"IF(ISBLANK('TA Indicator Bank'!D142),\"\",'TA Indicator Bank'!D142)","v":"-"},{"$f":"IF(ISBLANK('TA Indicator Bank'!E142),\"\",'TA Indicator Bank'!E142)","v":"Output"},{"$f":"IF(ISBLANK('TA Indicator Bank'!F142),\"\",'TA Indicator Bank'!F142)","v":"-"},{"$f":"IF(ISBLANK('TA Indicator Bank'!G142),\"\",'TA Indicator Bank'!G142)","v":"Project development support"},{"$f":"IF(ISBLANK('TA Indicator Bank'!H142),\"\",'TA Indicator Bank'!H142)","v":"-"},{"$f":"IF(ISBLANK('TA Indicator Bank'!I142),\"\",'TA Indicator Bank'!I142)","v":"Yes/No"},{"$f":"IF(ISBLANK('TA Indicator Bank'!J142),\"\",'TA Indicator Bank'!J142)","v":0},{"$f":"IF(ISBLANK('TA Indicator Bank'!K142),\"\",'TA Indicator Bank'!K142)","v":0},{"$f":"IF(ISBLANK('TA Indicator Bank'!L142),\"\",'TA Indicator Bank'!L142)","v":0},{"$f":"IF(ISBLANK('TA Indicator Bank'!M142),\"\",'TA Indicator Bank'!M142)","v":0},{"$f":"IF(ISBLANK('TA Indicator Bank'!N142),\"\",'TA Indicator Bank'!N142)","v":0},{"$f":"IF(ISBLANK('TA Indicator Bank'!O142),\"\",'TA Indicator Bank'!O142)","v":0},{"$f":"IF(ISBLANK('TA Indicator Bank'!P142),\"\",'TA Indicator Bank'!P142)","v":0},{"$f":"IF(ISBLANK('TA Indicator Bank'!Q142),\"\",'TA Indicator Bank'!Q142)","v":0},{"$f":"IF(ISBLANK('TA Indicator Bank'!R142),\"\",'TA Indicator Bank'!R142)","v":0},{"$f":"IF(ISBLANK('TA Indicator Bank'!S142),\"\",'TA Indicator Bank'!S142)","v":0},{"$f":"IF(ISBLANK('TA Indicator Bank'!T142),\"\",'TA Indicator Bank'!T142)","v":0},{"$f":"IF(ISBLANK('TA Indicator Bank'!U142),\"\",'TA Indicator Bank'!U142)","v":0},{"$f":"IF(ISBLANK('TA Indicator Bank'!V142),\"\",'TA Indicator Bank'!V142)","v":0},{"$f":"IF(ISBLANK('TA Indicator Bank'!W142),\"\",'TA Indicator Bank'!W142)","v":0},{"$f":"IF(ISBLANK('TA Indicator Bank'!X142),\"\",'TA Indicator Bank'!X142)","v":0},{"$f":"IF(ISBLANK('TA Indicator Bank'!Y142),\"\",'TA Indicator Bank'!Y142)","v":0},{"$f":"IF(ISBLANK('TA Indicator Bank'!Z142),\"\",'TA Indicator Bank'!Z142)","v":0},{"$f":"IF(ISBLANK('TA Indicator Bank'!AA142),\"\",'TA Indicator Bank'!AA142)","v":0},{"$f":"IF(ISBLANK('TA Indicator Bank'!AB142),\"\",'TA Indicator Bank'!AB142)","v":0},{"$f":"IF(ISBLANK('TA Indicator Bank'!AC142),\"\",'TA Indicator Bank'!AC142)","v":1},{"$f":"IF(ISBLANK('TA Indicator Bank'!AD142),\"\",'TA Indicator Bank'!AD142)","v":0},{"$f":"IF(ISBLANK('TA Indicator Bank'!AE142),\"\",'TA Indicator Bank'!AE142)","v":0},{"$f":"IF(ISBLANK('TA Indicator Bank'!AF142),\"\",'TA Indicator Bank'!AF142)","v":0},{"$f":"IF(ISBLANK('TA Indicator Bank'!AG142),\"\",'TA Indicator Bank'!AG142)","v":0},{"$f":"IF(ISBLANK('TA Indicator Bank'!AH142),\"\",'TA Indicator Bank'!AH142)","v":0},{"$f":"IF(ISBLANK('TA Indicator Bank'!AI142),\"\",'TA Indicator Bank'!AI142)","v":0},{"$f":"IF(ISBLANK('TA Indicator Bank'!AJ142),\"\",'TA Indicator Bank'!AJ142)","v":0},{"$f":"IF(ISBLANK('TA Indicator Bank'!AK142),\"\",'TA Indicator Bank'!AK142)","v":0},{"$f":"IF(ISBLANK('TA Indicator Bank'!AL142),\"\",'TA Indicator Bank'!AL142)","v":0},{"$f":"IF(ISBLANK('TA Indicator Bank'!AM142),\"\",'TA Indicator Bank'!AM142)","v":0},{"$f":"IF(ISBLANK('TA Indicator Bank'!AN142),\"\",'TA Indicator Bank'!AN142)","v":0},{"$f":"IF(ISBLANK('TA Indicator Bank'!AO142),\"\",'TA Indicator Bank'!AO142)","v":0},{"$f":"IF(ISBLANK('TA Indicator Bank'!AP142),\"\",'TA Indicator Bank'!AP142)","v":0},{"$f":"IF(ISBLANK('TA Indicator Bank'!AQ142),\"\",'TA Indicator Bank'!AQ142)","v":0},{"$f":"IF(ISBLANK('TA Indicator Bank'!AR142),\"\",'TA Indicator Bank'!AR142)","v":1},{"$f":"IF(ISBLANK('TA Indicator Bank'!AS142),\"\",'TA Indicator Bank'!AS142)","v":0},{"$f":"IF(ISBLANK('TA Indicator Bank'!AT142),\"\",'TA Indicator Bank'!AT142)","v":0},{"$f":"IF(AND(J146=1,J$410=1),1,0)","v":0},{"$f":"IF(AND(K146=1,K$410=1),1,0)","v":0},{"$f":"IF(AND(L146=1,L$410=1),1,0)","v":0},{"$f":"IF(AND(M146=1,M$410=1),1,0)","v":0},{"$f":"IF(AND(N146=1,N$410=1),1,0)","v":0},{"$f":"IF(AND(O146=1,O$410=1),1,0)","v":0},{"$f":"IF(AND(P146=1,P$410=1),1,0)","v":0},{"$f":"IF(AND(Q146=1,Q$410=1),1,0)","v":0},{"$f":"IF(AND(R146=1,R$410=1),1,0)","v":0},{"$f":"IF(AND(S146=1,S$410=1),1,0)","v":0},{"$f":"IF(AND(T146=1,T$410=1),1,0)","v":0},{"$f":"IF(AND(U146=1,U$410=1),1,0)","v":0},{"$f":"IF(AND(V146=1,V$410=1),1,0)","v":0},{"$f":"IF(AND(W146=1,W$410=1),1,0)","v":0},1,{"$f":"IF(AND(X146=1,X$410=1),1,0)","v":0},{"$f":"IF(AND(Y146=1,Y$410=1),1,0)","v":0},{"$f":"IF(AND(Z146=1,Z$410=1),1,0)","v":0},{"$f":"IF(AND(AA146=1,AA$410=1),1,0)","v":0},{"$f":"IF(AND(AB146=1,AB$410=1),1,0)","v":0},{"$f":"IF(AND(AC146=1,AC$410=1),1,0)","v":1},{"$f":"IF(AND(AD146=1,AD$410=1),1,0)","v":0},{"$f":"IF(AND(AE146=1,AE$410=1),1,0)","v":0},{"$f":"IF(AND(AF146=1,AF$410=1),1,0)","v":0},1,{"$f":"IF(AND(AG146=1,AG$410=1),1,0)","v":0},{"$f":"IF(AND(AH146=1,AH$410=1),1,0)","v":0},{"$f":"IF(AND(AI146=1,AI$410=1),1,0)","v":0},{"$f":"IF(AND(AJ146=1,AJ$410=1),1,0)","v":0},{"$f":"IF(AND(AK146=1,AK$410=1),1,0)","v":0},{"$f":"IF(AND(AL146=1,AL$410=1),1,0)","v":0},{"$f":"IF(AND(AM146=1,AM$410=1),1,0)","v":0},{"$f":"IF(AND(AN146=1,AN$410=1),1,0)","v":0},{"$f":"IF(AND(AO146=1,AO$410=1),1,0)","v":0},1,{"$f":"IF(AND(AP146=1,AP$410=1),1,0)","v":0},{"$f":"IF(AND(AQ146=1,AQ$410=1),1,0)","v":0},{"$f":"IF(AND(AR146=1,AR$410=1),1,0)","v":1},{"$f":"IF(AND(AS146=1,AS$410=1),1,0)","v":0},{"$f":"IF(AND(AT146=1,AT$410=1),1,0)","v":0},1,1,138,138,{"$f":"IFERROR(SMALL($CL$9:$CL$408,CK146),\"\")","v":138},{"$f":"IFERROR(INDEX($B$9:$I$408,$CM146,COLUMNS($CN$9:CN146)),\"\")","v":"TA138"},{"$f":"IFERROR(INDEX($B$9:$I$408,$CM146,COLUMNS($CN$9:CO146)),\"\")","v":"Certain project strategy document is developed and delivered"},{"$f":"IFERROR(INDEX($B$9:$I$408,$CM146,COLUMNS($CN$9:CP146)),\"\")","v":"-"},{"$f":"IFERROR(INDEX($B$9:$I$408,$CM146,COLUMNS($CN$9:CQ146)),\"\")","v":"Output"},{"$f":"IFERROR(INDEX($B$9:$I$408,$CM146,COLUMNS($CN$9:CR146)),\"\")","v":"-"},{"$f":"IFERROR(INDEX($B$9:$I$408,$CM146,COLUMNS($CN$9:CS146)),\"\")","v":"Project development support"},{"$f":"IFERROR(INDEX($B$9:$I$408,$CM146,COLUMNS($CN$9:CT146)),\"\")","v":"-"},{"$f":"IFERROR(INDEX($B$9:$I$408,$CM146,COLUMNS($CN$9:CU146)),\"\")","v":"Yes/No"}]
[null,{"$f":"IF(ISBLANK('TA Indicator Bank'!B143),\"\",'TA Indicator Bank'!B143)","v":"TA139"},{"$f":"IF(ISBLANK('TA Indicator Bank'!C143),\"\",'TA Indicator Bank'!C143)","v":"Number of breaches to project obligations"},{"$f":"IF(ISBLANK('TA Indicator Bank'!D143),\"\",'TA Indicator Bank'!D143)","v":"-"},{"$f":"IF(ISBLANK('TA Indicator Bank'!E143),\"\",'TA Indicator Bank'!E143)","v":"Output"},{"$f":"IF(ISBLANK('TA Indicator Bank'!F143),\"\",'TA Indicator Bank'!F143)","v":"-"},{"$f":"IF(ISBLANK('TA Indicator Bank'!G143),\"\",'TA Indicator Bank'!G143)","v":"Project development support"},{"$f":"IF(ISBLANK('TA Indicator Bank'!H143),\"\",'TA Indicator Bank'!H143)","v":"-"},{"$f":"IF(ISBLANK('TA Indicator Bank'!I143),\"\",'TA Indicator Bank'!I143)","v":"Number"},{"$f":"IF(ISBLANK('TA Indicator Bank'!J143),\"\",'TA Indicator Bank'!J143)","v":0},{"$f":"IF(ISBLANK('TA Indicator Bank'!K143),\"\",'TA Indicator Bank'!K143)","v":0},{"$f":"IF(ISBLANK('TA Indicator Bank'!L143),\"\",'TA Indicator Bank'!L143)","v":0},{"$f":"IF(ISBLANK('TA Indicator Bank'!M143),\"\",'TA Indicator Bank'!M143)","v":0},{"$f":"IF(ISBLANK('TA Indicator Bank'!N143),\"\",'TA Indicator Bank'!N143)","v":0},{"$f":"IF(ISBLANK('TA Indicator Bank'!O143),\"\",'TA Indicator Bank'!O143)","v":0},{"$f":"IF(ISBLANK('TA Indicator Bank'!P143),\"\",'TA Indicator Bank'!P143)","v":0},{"$f":"IF(ISBLANK('TA Indicator Bank'!Q143),\"\",'TA Indicator Bank'!Q143)","v":0},{"$f":"IF(ISBLANK('TA Indicator Bank'!R143),\"\",'TA Indicator Bank'!R143)","v":0},{"$f":"IF(ISBLANK('TA Indicator Bank'!S143),\"\",'TA Indicator Bank'!S143)","v":0},{"$f":"IF(ISBLANK('TA Indicator Bank'!T143),\"\",'TA Indicator Bank'!T143)","v":0},{"$f":"IF(ISBLANK('TA Indicator Bank'!U143),\"\",'TA Indicator Bank'!U143)","v":0},{"$f":"IF(ISBLANK('TA Indicator Bank'!V143),\"\",'TA Indicator Bank'!V143)","v":0},{"$f":"IF(ISBLANK('TA Indicator Bank'!W143),\"\",'TA Indicator Bank'!W143)","v":0},{"$f":"IF(ISBLANK('TA Indicator Bank'!X143),\"\",'TA Indicator Bank'!X143)","v":0},{"$f":"IF(ISBLANK('TA Indicator Bank'!Y143),\"\",'TA Indicator Bank'!Y143)","v":0},{"$f":"IF(ISBLANK('TA Indicator Bank'!Z143),\"\",'TA Indicator Bank'!Z143)","v":0},{"$f":"IF(ISBLANK('TA Indicator Bank'!AA143),\"\",'TA Indicator Bank'!AA143)","v":0},{"$f":"IF(ISBLANK('TA Indicator Bank'!AB143),\"\",'TA Indicator Bank'!AB143)","v":0},{"$f":"IF(ISBLANK('TA Indicator Bank'!AC143),\"\",'TA Indicator Bank'!AC143)","v":1},{"$f":"IF(ISBLANK('TA Indicator Bank'!AD143),\"\",'TA Indicator Bank'!AD143)","v":0},{"$f":"IF(ISBLANK('TA Indicator Bank'!AE143),\"\",'TA Indicator Bank'!AE143)","v":0},{"$f":"IF(ISBLANK('TA Indicator Bank'!AF143),\"\",'TA Indicator Bank'!AF143)","v":0},{"$f":"IF(ISBLANK('TA Indicator Bank'!AG143),\"\",'TA Indicator Bank'!AG143)","v":0},{"$f":"IF(ISBLANK('TA Indicator Bank'!AH143),\"\",'TA Indicator Bank'!AH143)","v":0},{"$f":"IF(ISBLANK('TA Indicator Bank'!AI143),\"\",'TA Indicator Bank'!AI143)","v":0},{"$f":"IF(ISBLANK('TA Indicator Bank'!AJ143),\"\",'TA Indicator Bank'!AJ143)","v":0},{"$f":"IF(ISBLANK('TA Indicator Bank'!AK143),\"\",'TA Indicator Bank'!AK143)","v":0},{"$f":"IF(ISBLANK('TA Indicator Bank'!AL143),\"\",'TA Indicator Bank'!AL143)","v":0},{"$f":"IF(ISBLANK('TA Indicator Bank'!AM143),\"\",'TA Indicator Bank'!AM143)","v":0},{"$f":"IF(ISBLANK('TA Indicator Bank'!AN143),\"\",'TA Indicator Bank'!AN143)","v":0},{"$f":"IF(ISBLANK('TA Indicator Bank'!AO143),\"\",'TA Indicator Bank'!AO143)","v":0},{"$f":"IF(ISBLANK('TA Indicator Bank'!AP143),\"\",'TA Indicator Bank'!AP143)","v":0},{"$f":"IF(ISBLANK('TA Indicator Bank'!AQ143),\"\",'TA Indicator Bank'!AQ143)","v":0},{"$f":"IF(ISBLANK('TA Indicator Bank'!AR143),\"\",'TA Indicator Bank'!AR143)","v":1},{"$f":"IF(ISBLANK('TA Indicator Bank'!AS143),\"\",'TA Indicator Bank'!AS143)","v":0},{"$f":"IF(ISBLANK('TA Indicator Bank'!AT143),\"\",'TA Indicator Bank'!AT143)","v":0},{"$f":"IF(AND(J147=1,J$410=1),1,0)","v":0},{"$f":"IF(AND(K147=1,K$410=1),1,0)","v":0},{"$f":"IF(AND(L147=1,L$410=1),1,0)","v":0},{"$f":"IF(AND(M147=1,M$410=1),1,0)","v":0},{"$f":"IF(AND(N147=1,N$410=1),1,0)","v":0},{"$f":"IF(AND(O147=1,O$410=1),1,0)","v":0},{"$f":"IF(AND(P147=1,P$410=1),1,0)","v":0},{"$f":"IF(AND(Q147=1,Q$410=1),1,0)","v":0},{"$f":"IF(AND(R147=1,R$410=1),1,0)","v":0},{"$f":"IF(AND(S147=1,S$410=1),1,0)","v":0},{"$f":"IF(AND(T147=1,T$410=1),1,0)","v":0},{"$f":"IF(AND(U147=1,U$410=1),1,0)","v":0},{"$f":"IF(AND(V147=1,V$410=1),1,0)","v":0},{"$f":"IF(AND(W147=1,W$410=1),1,0)","v":0},1,{"$f":"IF(AND(X147=1,X$410=1),1,0)","v":0},{"$f":"IF(AND(Y147=1,Y$410=1),1,0)","v":0},{"$f":"IF(AND(Z147=1,Z$410=1),1,0)","v":0},{"$f":"IF(AND(AA147=1,AA$410=1),1,0)","v":0},{"$f":"IF(AND(AB147=1,AB$410=1),1,0)","v":0},{"$f":"IF(AND(AC147=1,AC$410=1),1,0)","v":1},{"$f":"IF(AND(AD147=1,AD$410=1),1,0)","v":0},{"$f":"IF(AND(AE147=1,AE$410=1),1,0)","v":0},{"$f":"IF(AND(AF147=1,AF$410=1),1,0)","v":0},1,{"$f":"IF(AND(AG147=1,AG$410=1),1,0)","v":0},{"$f":"IF(AND(AH147=1,AH$410=1),1,0)","v":0},{"$f":"IF(AND(AI147=1,AI$410=1),1,0)","v":0},{"$f":"IF(AND(AJ147=1,AJ$410=1),1,0)","v":0},{"$f":"IF(AND(AK147=1,AK$410=1),1,0)","v":0},{"$f":"IF(AND(AL147=1,AL$410=1),1,0)","v":0},{"$f":"IF(AND(AM147=1,AM$410=1),1,0)","v":0},{"$f":"IF(AND(AN147=1,AN$410=1),1,0)","v":0},{"$f":"IF(AND(AO147=1,AO$410=1),1,0)","v":0},1,{"$f":"IF(AND(AP147=1,AP$410=1),1,0)","v":0},{"$f":"IF(AND(AQ147=1,AQ$410=1),1,0)","v":0},{"$f":"IF(AND(AR147=1,AR$410=1),1,0)","v":1},{"$f":"IF(AND(AS147=1,AS$410=1),1,0)","v":0},{"$f":"IF(AND(AT147=1,AT$410=1),1,0)","v":0},1,1,139,139,{"$f":"IFERROR(SMALL($CL$9:$CL$408,CK147),\"\")","v":139},{"$f":"IFERROR(INDEX($B$9:$I$408,$CM147,COLUMNS($CN$9:CN147)),\"\")","v":"TA139"},{"$f":"IFERROR(INDEX($B$9:$I$408,$CM147,COLUMNS($CN$9:CO147)),\"\")","v":"Number of breaches to project obligations"},{"$f":"IFERROR(INDEX($B$9:$I$408,$CM147,COLUMNS($CN$9:CP147)),\"\")","v":"-"},{"$f":"IFERROR(INDEX($B$9:$I$408,$CM147,COLUMNS($CN$9:CQ147)),\"\")","v":"Output"},{"$f":"IFERROR(INDEX($B$9:$I$408,$CM147,COLUMNS($CN$9:CR147)),\"\")","v":"-"},{"$f":"IFERROR(INDEX($B$9:$I$408,$CM147,COLUMNS($CN$9:CS147)),\"\")","v":"Project development support"},{"$f":"IFERROR(INDEX($B$9:$I$408,$CM147,COLUMNS($CN$9:CT147)),\"\")","v":"-"},{"$f":"IFERROR(INDEX($B$9:$I$408,$CM147,COLUMNS($CN$9:CU147)),\"\")","v":"Number"}]
[null,{"$f":"IF(ISBLANK('TA Indicator Bank'!B144),\"\",'TA Indicator Bank'!B144)","v":"TA140"},{"$f":"IF(ISBLANK('TA Indicator Bank'!C144),\"\",'TA Indicator Bank'!C144)","v":"Number of bidders for projects"},{"$f":"IF(ISBLANK('TA Indicator Bank'!D144),\"\",'TA Indicator Bank'!D144)","v":"-"},{"$f":"IF(ISBLANK('TA Indicator Bank'!E144),\"\",'TA Indicator Bank'!E144)","v":"Output"},{"$f":"IF(ISBLANK('TA Indicator Bank'!F144),\"\",'TA Indicator Bank'!F144)","v":"-"},{"$f":"IF(ISBLANK('TA Indicator Bank'!G144),\"\",'TA Indicator Bank'!G144)","v":"Project development support"},{"$f":"IF(ISBLANK('TA Indicator Bank'!H144),\"\",'TA Indicator Bank'!H144)","v":"-"},{"$f":"IF(ISBLANK('TA Indicator Bank'!I144),\"\",'TA Indicator Bank'!I144)","v":"Number"},{"$f":"IF(ISBLANK('TA Indicator Bank'!J144),\"\",'TA Indicator Bank'!J144)","v":0},{"$f":"IF(ISBLANK('TA Indicator Bank'!K144),\"\",'TA Indicator Bank'!K144)","v":0},{"$f":"IF(ISBLANK('TA Indicator Bank'!L144),\"\",'TA Indicator Bank'!L144)","v":0},{"$f":"IF(ISBLANK('TA Indicator Bank'!M144),\"\",'TA Indicator Bank'!M144)","v":0},{"$f":"IF(ISBLANK('TA Indicator Bank'!N144),\"\",'TA Indicator Bank'!N144)","v":0},{"$f":"IF(ISBLANK('TA Indicator Bank'!O144),\"\",'TA Indicator Bank'!O144)","v":0},{"$f":"IF(ISBLANK('TA Indicator Bank'!P144),\"\",'TA Indicator Bank'!P144)","v":0},{"$f":"IF(ISBLANK('TA Indicator Bank'!Q144),\"\",'TA Indicator Bank'!Q144)","v":0},{"$f":"IF(ISBLANK('TA Indicator Bank'!R144),\"\",'TA Indicator Bank'!R144)","v":0},{"$f":"IF(ISBLANK('TA Indicator Bank'!S144),\"\",'TA Indicator Bank'!S144)","v":0},{"$f":"IF(ISBLANK('TA Indicator Bank'!T144),\"\",'TA Indicator Bank'!T144)","v":0},{"$f":"IF(ISBLANK('TA Indicator Bank'!U144),\"\",'TA Indicator Bank'!U144)","v":0},{"$f":"IF(ISBLANK('TA Indicator Bank'!V144),\"\",'TA Indicator Bank'!V144)","v":0},{"$f":"IF(ISBLANK('TA Indicator Bank'!W144),\"\",'TA Indicator Bank'!W144)","v":0},{"$f":"IF(ISBLANK('TA Indicator Bank'!X144),\"\",'TA Indicator Bank'!X144)","v":0},{"$f":"IF(ISBLANK('TA Indicator Bank'!Y144),\"\",'TA Indicator Bank'!Y144)","v":0},{"$f":"IF(ISBLANK('TA Indicator Bank'!Z144),\"\",'TA Indicator Bank'!Z144)","v":0},{"$f":"IF(ISBLANK('TA Indicator Bank'!AA144),\"\",'TA Indicator Bank'!AA144)","v":0},{"$f":"IF(ISBLANK('TA Indicator Bank'!AB144),\"\",'TA Indicator Bank'!AB144)","v":0},{"$f":"IF(ISBLANK('TA Indicator Bank'!AC144),\"\",'TA Indicator Bank'!AC144)","v":1},{"$f":"IF(ISBLANK('TA Indicator Bank'!AD144),\"\",'TA Indicator Bank'!AD144)","v":0},{"$f":"IF(ISBLANK('TA Indicator Bank'!AE144),\"\",'TA Indicator Bank'!AE144)","v":0},{"$f":"IF(ISBLANK('TA Indicator Bank'!AF144),\"\",'TA Indicator Bank'!AF144)","v":0},{"$f":"IF(ISBLANK('TA Indicator Bank'!AG144),\"\",'TA Indicator Bank'!AG144)","v":0},{"$f":"IF(ISBLANK('TA Indicator Bank'!AH144),\"\",'TA Indicator Bank'!AH144)","v":0},{"$f":"IF(ISBLANK('TA Indicator Bank'!AI144),\"\",'TA Indicator Bank'!AI144)","v":0},{"$f":"IF(ISBLANK('TA Indicator Bank'!AJ144),\"\",'TA Indicator Bank'!AJ144)","v":0},{"$f":"IF(ISBLANK('TA Indicator Bank'!AK144),\"\",'TA Indicator Bank'!AK144)","v":0},{"$f":"IF(ISBLANK('TA Indicator Bank'!AL144),\"\",'TA Indicator Bank'!AL144)","v":0},{"$f":"IF(ISBLANK('TA Indicator Bank'!AM144),\"\",'TA Indicator Bank'!AM144)","v":0},{"$f":"IF(ISBLANK('TA Indicator Bank'!AN144),\"\",'TA Indicator Bank'!AN144)","v":0},{"$f":"IF(ISBLANK('TA Indicator Bank'!AO144),\"\",'TA Indicator Bank'!AO144)","v":0},{"$f":"IF(ISBLANK('TA Indicator Bank'!AP144),\"\",'TA Indicator Bank'!AP144)","v":0},{"$f":"IF(ISBLANK('TA Indicator Bank'!AQ144),\"\",'TA Indicator Bank'!AQ144)","v":0},{"$f":"IF(ISBLANK('TA Indicator Bank'!AR144),\"\",'TA Indicator Bank'!AR144)","v":1},{"$f":"IF(ISBLANK('TA Indicator Bank'!AS144),\"\",'TA Indicator Bank'!AS144)","v":0},{"$f":"IF(ISBLANK('TA Indicator Bank'!AT144),\"\",'TA Indicator Bank'!AT144)","v":0},{"$f":"IF(AND(J148=1,J$410=1),1,0)","v":0},{"$f":"IF(AND(K148=1,K$410=1),1,0)","v":0},{"$f":"IF(AND(L148=1,L$410=1),1,0)","v":0},{"$f":"IF(AND(M148=1,M$410=1),1,0)","v":0},{"$f":"IF(AND(N148=1,N$410=1),1,0)","v":0},{"$f":"IF(AND(O148=1,O$410=1),1,0)","v":0},{"$f":"IF(AND(P148=1,P$410=1),1,0)","v":0},{"$f":"IF(AND(Q148=1,Q$410=1),1,0)","v":0},{"$f":"IF(AND(R148=1,R$410=1),1,0)","v":0},{"$f":"IF(AND(S148=1,S$410=1),1,0)","v":0},{"$f":"IF(AND(T148=1,T$410=1),1,0)","v":0},{"$f":"IF(AND(U148=1,U$410=1),1,0)","v":0},{"$f":"IF(AND(V148=1,V$410=1),1,0)","v":0},{"$f":"IF(AND(W148=1,W$410=1),1,0)","v":0},1,{"$f":"IF(AND(X148=1,X$410=1),1,0)","v":0},{"$f":"IF(AND(Y148=1,Y$410=1),1,0)","v":0},{"$f":"IF(AND(Z148=1,Z$410=1),1,0)","v":0},{"$f":"IF(AND(AA148=1,AA$410=1),1,0)","v":0},{"$f":"IF(AND(AB148=1,AB$410=1),1,0)","v":0},{"$f":"IF(AND(AC148=1,AC$410=1),1,0)","v":1},{"$f":"IF(AND(AD148=1,AD$410=1),1,0)","v":0},{"$f":"IF(AND(AE148=1,AE$410=1),1,0)","v":0},{"$f":"IF(AND(AF148=1,AF$410=1),1,0)","v":0},1,{"$f":"IF(AND(AG148=1,AG$410=1),1,0)","v":0},{"$f":"IF(AND(AH148=1,AH$410=1),1,0)","v":0},{"$f":"IF(AND(AI148=1,AI$410=1),1,0)","v":0},{"$f":"IF(AND(AJ148=1,AJ$410=1),1,0)","v":0},{"$f":"IF(AND(AK148=1,AK$410=1),1,0)","v":0},{"$f":"IF(AND(AL148=1,AL$410=1),1,0)","v":0},{"$f":"IF(AND(AM148=1,AM$410=1),1,0)","v":0},{"$f":"IF(AND(AN148=1,AN$410=1),1,0)","v":0},{"$f":"IF(AND(AO148=1,AO$410=1),1,0)","v":0},1,{"$f":"IF(AND(AP148=1,AP$410=1),1,0)","v":0},{"$f":"IF(AND(AQ148=1,AQ$410=1),1,0)","v":0},{"$f":"IF(AND(AR148=1,AR$410=1),1,0)","v":1},{"$f":"IF(AND(AS148=1,AS$410=1),1,0)","v":0},{"$f":"IF(AND(AT148=1,AT$410=1),1,0)","v":0},1,1,140,140,{"$f":"IFERROR(SMALL($CL$9:$CL$408,CK148),\"\")","v":140},{"$f":"IFERROR(INDEX($B$9:$I$408,$CM148,COLUMNS($CN$9:CN148)),\"\")","v":"TA140"},{"$f":"IFERROR(INDEX($B$9:$I$408,$CM148,COLUMNS($CN$9:CO148)),\"\")","v":"Number of bidders for projects"},{"$f":"IFERROR(INDEX($B$9:$I$408,$CM148,COLUMNS($CN$9:CP148)),\"\")","v":"-"},{"$f":"IFERROR(INDEX($B$9:$I$408,$CM148,COLUMNS($CN$9:CQ148)),\"\")","v":"Output"},{"$f":"IFERROR(INDEX($B$9:$I$408,$CM148,COLUMNS($CN$9:CR148)),\"\")","v":"-"},{"$f":"IFERROR(INDEX($B$9:$I$408,$CM148,COLUMNS($CN$9:CS148)),\"\")","v":"Project development support"},{"$f":"IFERROR(INDEX($B$9:$I$408,$CM148,COLUMNS($CN$9:CT148)),\"\")","v":"-"},{"$f":"IFERROR(INDEX($B$9:$I$408,$CM148,COLUMNS($CN$9:CU148)),\"\")","v":"Number"}]
[null,{"$f":"IF(ISBLANK('TA Indicator Bank'!B145),\"\",'TA Indicator Bank'!B145)","v":"TA141"},{"$f":"IF(ISBLANK('TA Indicator Bank'!C145),\"\",'TA Indicator Bank'!C145)","v":"Percentage of participants that use or comply with certain elements required in project plans"},{"$f":"IF(ISBLANK('TA Indicator Bank'!D145),\"\",'TA Indicator Bank'!D145)","v":"-"},{"$f":"IF(ISBLANK('TA Indicator Bank'!E145),\"\",'TA Indicator Bank'!E145)","v":"Output"},{"$f":"IF(ISBLANK('TA Indicator Bank'!F145),\"\",'TA Indicator Bank'!F145)","v":"-"},{"$f":"IF(ISBLANK('TA Indicator Bank'!G145),\"\",'TA Indicator Bank'!G145)","v":"Project development support"},{"$f":"IF(ISBLANK('TA Indicator Bank'!H145),\"\",'TA Indicator Bank'!H145)","v":"-"},{"$f":"IF(ISBLANK('TA Indicator Bank'!I145),\"\",'TA Indicator Bank'!I145)","v":"Percentage"},{"$f":"IF(ISBLANK('TA Indicator Bank'!J145),\"\",'TA Indicator Bank'!J145)","v":0},{"$f":"IF(ISBLANK('TA Indicator Bank'!K145),\"\",'TA Indicator Bank'!K145)","v":0},{"$f":"IF(ISBLANK('TA Indicator Bank'!L145),\"\",'TA Indicator Bank'!L145)","v":0},{"$f":"IF(ISBLANK('TA Indicator Bank'!M145),\"\",'TA Indicator Bank'!M145)","v":0},{"$f":"IF(ISBLANK('TA Indicator Bank'!N145),\"\",'TA Indicator Bank'!N145)","v":0},{"$f":"IF(ISBLANK('TA Indicator Bank'!O145),\"\",'TA Indicator Bank'!O145)","v":0},{"$f":"IF(ISBLANK('TA Indicator Bank'!P145),\"\",'TA Indicator Bank'!P145)","v":0},{"$f":"IF(ISBLANK('TA Indicator Bank'!Q145),\"\",'TA Indicator Bank'!Q145)","v":0},{"$f":"IF(ISBLANK('TA Indicator Bank'!R145),\"\",'TA Indicator Bank'!R145)","v":0},{"$f":"IF(ISBLANK('TA Indicator Bank'!S145),\"\",'TA Indicator Bank'!S145)","v":0},{"$f":"IF(ISBLANK('TA Indicator Bank'!T145),\"\",'TA Indicator Bank'!T145)","v":0},{"$f":"IF(ISBLANK('TA Indicator Bank'!U145),\"\",'TA Indicator Bank'!U145)","v":0},{"$f":"IF(ISBLANK('TA Indicator Bank'!V145),\"\",'TA Indicator Bank'!V145)","v":0},{"$f":"IF(ISBLANK('TA Indicator Bank'!W145),\"\",'TA Indicator Bank'!W145)","v":0},{"$f":"IF(ISBLANK('TA Indicator Bank'!X145),\"\",'TA Indicator Bank'!X145)","v":0},{"$f":"IF(ISBLANK('TA Indicator Bank'!Y145),\"\",'TA Indicator Bank'!Y145)","v":0},{"$f":"IF(ISBLANK('TA Indicator Bank'!Z145),\"\",'TA Indicator Bank'!Z145)","v":0},{"$f":"IF(ISBLANK('TA Indicator Bank'!AA145),\"\",'TA Indicator Bank'!AA145)","v":0},{"$f":"IF(ISBLANK('TA Indicator Bank'!AB145),\"\",'TA Indicator Bank'!AB145)","v":0},{"$f":"IF(ISBLANK('TA Indicator Bank'!AC145),\"\",'TA Indicator Bank'!AC145)","v":1},{"$f":"IF(ISBLANK('TA Indicator Bank'!AD145),\"\",'TA Indicator Bank'!AD145)","v":0},{"$f":"IF(ISBLANK('TA Indicator Bank'!AE145),\"\",'TA Indicator Bank'!AE145)","v":0},{"$f":"IF(ISBLANK('TA Indicator Bank'!AF145),\"\",'TA Indicator Bank'!AF145)","v":0},{"$f":"IF(ISBLANK('TA Indicator Bank'!AG145),\"\",'TA Indicator Bank'!AG145)","v":0},{"$f":"IF(ISBLANK('TA Indicator Bank'!AH145),\"\",'TA Indicator Bank'!AH145)","v":0},{"$f":"IF(ISBLANK('TA Indicator Bank'!AI145),\"\",'TA Indicator Bank'!AI145)","v":0},{"$f":"IF(ISBLANK('TA Indicator Bank'!AJ145),\"\",'TA Indicator Bank'!AJ145)","v":0},{"$f":"IF(ISBLANK('TA Indicator Bank'!AK145),\"\",'TA Indicator Bank'!AK145)","v":0},{"$f":"IF(ISBLANK('TA Indicator Bank'!AL145),\"\",'TA Indicator Bank'!AL145)","v":0},{"$f":"IF(ISBLANK('TA Indicator Bank'!AM145),\"\",'TA Indicator Bank'!AM145)","v":0},{"$f":"IF(ISBLANK('TA Indicator Bank'!AN145),\"\",'TA Indicator Bank'!AN145)","v":0},{"$f":"IF(ISBLANK('TA Indicator Bank'!AO145),\"\",'TA Indicator Bank'!AO145)","v":0},{"$f":"IF(ISBLANK('TA Indicator Bank'!AP145),\"\",'TA Indicator Bank'!AP145)","v":0},{"$f":"IF(ISBLANK('TA Indicator Bank'!AQ145),\"\",'TA Indicator Bank'!AQ145)","v":0},{"$f":"IF(ISBLANK('TA Indicator Bank'!AR145),\"\",'TA Indicator Bank'!AR145)","v":1},{"$f":"IF(ISBLANK('TA Indicator Bank'!AS145),\"\",'TA Indicator Bank'!AS145)","v":0},{"$f":"IF(ISBLANK('TA Indicator Bank'!AT145),\"\",'TA Indicator Bank'!AT145)","v":0},{"$f":"IF(AND(J149=1,J$410=1),1,0)","v":0},{"$f":"IF(AND(K149=1,K$410=1),1,0)","v":0},{"$f":"IF(AND(L149=1,L$410=1),1,0)","v":0},{"$f":"IF(AND(M149=1,M$410=1),1,0)","v":0},{"$f":"IF(AND(N149=1,N$410=1),1,0)","v":0},{"$f":"IF(AND(O149=1,O$410=1),1,0)","v":0},{"$f":"IF(AND(P149=1,P$410=1),1,0)","v":0},{"$f":"IF(AND(Q149=1,Q$410=1),1,0)","v":0},{"$f":"IF(AND(R149=1,R$410=1),1,0)","v":0},{"$f":"IF(AND(S149=1,S$410=1),1,0)","v":0},{"$f":"IF(AND(T149=1,T$410=1),1,0)","v":0},{"$f":"IF(AND(U149=1,U$410=1),1,0)","v":0},{"$f":"IF(AND(V149=1,V$410=1),1,0)","v":0},{"$f":"IF(AND(W149=1,W$410=1),1,0)","v":0},1,{"$f":"IF(AND(X149=1,X$410=1),1,0)","v":0},{"$f":"IF(AND(Y149=1,Y$410=1),1,0)","v":0},{"$f":"IF(AND(Z149=1,Z$410=1),1,0)","v":0},{"$f":"IF(AND(AA149=1,AA$410=1),1,0)","v":0},{"$f":"IF(AND(AB149=1,AB$410=1),1,0)","v":0},{"$f":"IF(AND(AC149=1,AC$410=1),1,0)","v":1},{"$f":"IF(AND(AD149=1,AD$410=1),1,0)","v":0},{"$f":"IF(AND(AE149=1,AE$410=1),1,0)","v":0},{"$f":"IF(AND(AF149=1,AF$410=1),1,0)","v":0},1,{"$f":"IF(AND(AG149=1,AG$410=1),1,0)","v":0},{"$f":"IF(AND(AH149=1,AH$410=1),1,0)","v":0},{"$f":"IF(AND(AI149=1,AI$410=1),1,0)","v":0},{"$f":"IF(AND(AJ149=1,AJ$410=1),1,0)","v":0},{"$f":"IF(AND(AK149=1,AK$410=1),1,0)","v":0},{"$f":"IF(AND(AL149=1,AL$410=1),1,0)","v":0},{"$f":"IF(AND(AM149=1,AM$410=1),1,0)","v":0},{"$f":"IF(AND(AN149=1,AN$410=1),1,0)","v":0},{"$f":"IF(AND(AO149=1,AO$410=1),1,0)","v":0},1,{"$f":"IF(AND(AP149=1,AP$410=1),1,0)","v":0},{"$f":"IF(AND(AQ149=1,AQ$410=1),1,0)","v":0},{"$f":"IF(AND(AR149=1,AR$410=1),1,0)","v":1},{"$f":"IF(AND(AS149=1,AS$410=1),1,0)","v":0},{"$f":"IF(AND(AT149=1,AT$410=1),1,0)","v":0},1,1,141,141,{"$f":"IFERROR(SMALL($CL$9:$CL$408,CK149),\"\")","v":141},{"$f":"IFERROR(INDEX($B$9:$I$408,$CM149,COLUMNS($CN$9:CN149)),\"\")","v":"TA141"},{"$f":"IFERROR(INDEX($B$9:$I$408,$CM149,COLUMNS($CN$9:CO149)),\"\")","v":"Percentage of participants that use or comply with certain elements required in project plans"},{"$f":"IFERROR(INDEX($B$9:$I$408,$CM149,COLUMNS($CN$9:CP149)),\"\")","v":"-"},{"$f":"IFERROR(INDEX($B$9:$I$408,$CM149,COLUMNS($CN$9:CQ149)),\"\")","v":"Output"},{"$f":"IFERROR(INDEX($B$9:$I$408,$CM149,COLUMNS($CN$9:CR149)),\"\")","v":"-"},{"$f":"IFERROR(INDEX($B$9:$I$408,$CM149,COLUMNS($CN$9:CS149)),\"\")","v":"Project development support"},{"$f":"IFERROR(INDEX($B$9:$I$408,$CM149,COLUMNS($CN$9:CT149)),\"\")","v":"-"},{"$f":"IFERROR(INDEX($B$9:$I$408,$CM149,COLUMNS($CN$9:CU149)),\"\")","v":"Percentage"}]
[null,{"$f":"IF(ISBLANK('TA Indicator Bank'!B146),\"\",'TA Indicator Bank'!B146)","v":"TA142"},{"$f":"IF(ISBLANK('TA Indicator Bank'!C146),\"\",'TA Indicator Bank'!C146)","v":"Number of units that operate at certain standard"},{"$f":"IF(ISBLANK('TA Indicator Bank'!D146),\"\",'TA Indicator Bank'!D146)","v":"-"},{"$f":"IF(ISBLANK('TA Indicator Bank'!E146),\"\",'TA Indicator Bank'!E146)","v":"Output"},{"$f":"IF(ISBLANK('TA Indicator Bank'!F146),\"\",'TA Indicator Bank'!F146)","v":"-"},{"$f":"IF(ISBLANK('TA Indicator Bank'!G146),\"\",'TA Indicator Bank'!G146)","v":"Project development support; Process/asset operation support"},{"$f":"IF(ISBLANK('TA Indicator Bank'!H146),\"\",'TA Indicator Bank'!H146)","v":"-"},{"$f":"IF(ISBLANK('TA Indicator Bank'!I146),\"\",'TA Indicator Bank'!I146)","v":"Number"},{"$f":"IF(ISBLANK('TA Indicator Bank'!J146),\"\",'TA Indicator Bank'!J146)","v":0},{"$f":"IF(ISBLANK('TA Indicator Bank'!K146),\"\",'TA Indicator Bank'!K146)","v":0},{"$f":"IF(ISBLANK('TA Indicator Bank'!L146),\"\",'TA Indicator Bank'!L146)","v":0},{"$f":"IF(ISBLANK('TA Indicator Bank'!M146),\"\",'TA Indicator Bank'!M146)","v":0},{"$f":"IF(ISBLANK('TA Indicator Bank'!N146),\"\",'TA Indicator Bank'!N146)","v":0},{"$f":"IF(ISBLANK('TA Indicator Bank'!O146),\"\",'TA Indicator Bank'!O146)","v":0},{"$f":"IF(ISBLANK('TA Indicator Bank'!P146),\"\",'TA Indicator Bank'!P146)","v":0},{"$f":"IF(ISBLANK('TA Indicator Bank'!Q146),\"\",'TA Indicator Bank'!Q146)","v":0},{"$f":"IF(ISBLANK('TA Indicator Bank'!R146),\"\",'TA Indicator Bank'!R146)","v":0},{"$f":"IF(ISBLANK('TA Indicator Bank'!S146),\"\",'TA Indicator Bank'!S146)","v":0},{"$f":"IF(ISBLANK('TA Indicator Bank'!T146),\"\",'TA Indicator Bank'!T146)","v":0},{"$f":"IF(ISBLANK('TA Indicator Bank'!U146),\"\",'TA Indicator Bank'!U146)","v":0},{"$f":"IF(ISBLANK('TA Indicator Bank'!V146),\"\",'TA Indicator Bank'!V146)","v":0},{"$f":"IF(ISBLANK('TA Indicator Bank'!W146),\"\",'TA Indicator Bank'!W146)","v":0},{"$f":"IF(ISBLANK('TA Indicator Bank'!X146),\"\",'TA Indicator Bank'!X146)","v":0},{"$f":"IF(ISBLANK('TA Indicator Bank'!Y146),\"\",'TA Indicator Bank'!Y146)","v":0},{"$f":"IF(ISBLANK('TA Indicator Bank'!Z146),\"\",'TA Indicator Bank'!Z146)","v":0},{"$f":"IF(ISBLANK('TA Indicator Bank'!AA146),\"\",'TA Indicator Bank'!AA146)","v":0},{"$f":"IF(ISBLANK('TA Indicator Bank'!AB146),\"\",'TA Indicator Bank'!AB146)","v":0},{"$f":"IF(ISBLANK('TA Indicator Bank'!AC146),\"\",'TA Indicator Bank'!AC146)","v":1},{"$f":"IF(ISBLANK('TA Indicator Bank'!AD146),\"\",'TA Indicator Bank'!AD146)","v":1},{"$f":"IF(ISBLANK('TA Indicator Bank'!AE146),\"\",'TA Indicator Bank'!AE146)","v":0},{"$f":"IF(ISBLANK('TA Indicator Bank'!AF146),\"\",'TA Indicator Bank'!AF146)","v":0},{"$f":"IF(ISBLANK('TA Indicator Bank'!AG146),\"\",'TA Indicator Bank'!AG146)","v":0},{"$f":"IF(ISBLANK('TA Indicator Bank'!AH146),\"\",'TA Indicator Bank'!AH146)","v":0},{"$f":"IF(ISBLANK('TA Indicator Bank'!AI146),\"\",'TA Indicator Bank'!AI146)","v":0},{"$f":"IF(ISBLANK('TA Indicator Bank'!AJ146),\"\",'TA Indicator Bank'!AJ146)","v":0},{"$f":"IF(ISBLANK('TA Indicator Bank'!AK146),\"\",'TA Indicator Bank'!AK146)","v":0},{"$f":"IF(ISBLANK('TA Indicator Bank'!AL146),\"\",'TA Indicator Bank'!AL146)","v":0},{"$f":"IF(ISBLANK('TA Indicator Bank'!AM146),\"\",'TA Indicator Bank'!AM146)","v":0},{"$f":"IF(ISBLANK('TA Indicator Bank'!AN146),\"\",'TA Indicator Bank'!AN146)","v":0},{"$f":"IF(ISBLANK('TA Indicator Bank'!AO146),\"\",'TA Indicator Bank'!AO146)","v":0},{"$f":"IF(ISBLANK('TA Indicator Bank'!AP146),\"\",'TA Indicator Bank'!AP146)","v":0},{"$f":"IF(ISBLANK('TA Indicator Bank'!AQ146),\"\",'TA Indicator Bank'!AQ146)","v":0},{"$f":"IF(ISBLANK('TA Indicator Bank'!AR146),\"\",'TA Indicator Bank'!AR146)","v":1},{"$f":"IF(ISBLANK('TA Indicator Bank'!AS146),\"\",'TA Indicator Bank'!AS146)","v":0},{"$f":"IF(ISBLANK('TA Indicator Bank'!AT146),\"\",'TA Indicator Bank'!AT146)","v":0},{"$f":"IF(AND(J150=1,J$410=1),1,0)","v":0},{"$f":"IF(AND(K150=1,K$410=1),1,0)","v":0},{"$f":"IF(AND(L150=1,L$410=1),1,0)","v":0},{"$f":"IF(AND(M150=1,M$410=1),1,0)","v":0},{"$f":"IF(AND(N150=1,N$410=1),1,0)","v":0},{"$f":"IF(AND(O150=1,O$410=1),1,0)","v":0},{"$f":"IF(AND(P150=1,P$410=1),1,0)","v":0},{"$f":"IF(AND(Q150=1,Q$410=1),1,0)","v":0},{"$f":"IF(AND(R150=1,R$410=1),1,0)","v":0},{"$f":"IF(AND(S150=1,S$410=1),1,0)","v":0},{"$f":"IF(AND(T150=1,T$410=1),1,0)","v":0},{"$f":"IF(AND(U150=1,U$410=1),1,0)","v":0},{"$f":"IF(AND(V150=1,V$410=1),1,0)","v":0},{"$f":"IF(AND(W150=1,W$410=1),1,0)","v":0},1,{"$f":"IF(AND(X150=1,X$410=1),1,0)","v":0},{"$f":"IF(AND(Y150=1,Y$410=1),1,0)","v":0},{"$f":"IF(AND(Z150=1,Z$410=1),1,0)","v":0},{"$f":"IF(AND(AA150=1,AA$410=1),1,0)","v":0},{"$f":"IF(AND(AB150=1,AB$410=1),1,0)","v":0},{"$f":"IF(AND(AC150=1,AC$410=1),1,0)","v":1},{"$f":"IF(AND(AD150=1,AD$410=1),1,0)","v":1},{"$f":"IF(AND(AE150=1,AE$410=1),1,0)","v":0},{"$f":"IF(AND(AF150=1,AF$410=1),1,0)","v":0},1,{"$f":"IF(AND(AG150=1,AG$410=1),1,0)","v":0},{"$f":"IF(AND(AH150=1,AH$410=1),1,0)","v":0},{"$f":"IF(AND(AI150=1,AI$410=1),1,0)","v":0},{"$f":"IF(AND(AJ150=1,AJ$410=1),1,0)","v":0},{"$f":"IF(AND(AK150=1,AK$410=1),1,0)","v":0},{"$f":"IF(AND(AL150=1,AL$410=1),1,0)","v":0},{"$f":"IF(AND(AM150=1,AM$410=1),1,0)","v":0},{"$f":"IF(AND(AN150=1,AN$410=1),1,0)","v":0},{"$f":"IF(AND(AO150=1,AO$410=1),1,0)","v":0},1,{"$f":"IF(AND(AP150=1,AP$410=1),1,0)","v":0},{"$f":"IF(AND(AQ150=1,AQ$410=1),1,0)","v":0},{"$f":"IF(AND(AR150=1,AR$410=1),1,0)","v":1},{"$f":"IF(AND(AS150=1,AS$410=1),1,0)","v":0},{"$f":"IF(AND(AT150=1,AT$410=1),1,0)","v":0},1,1,142,142,{"$f":"IFERROR(SMALL($CL$9:$CL$408,CK150),\"\")","v":142},{"$f":"IFERROR(INDEX($B$9:$I$408,$CM150,COLUMNS($CN$9:CN150)),\"\")","v":"TA142"},{"$f":"IFERROR(INDEX($B$9:$I$408,$CM150,COLUMNS($CN$9:CO150)),\"\")","v":"Number of units that operate at certain standard"},{"$f":"IFERROR(INDEX($B$9:$I$408,$CM150,COLUMNS($CN$9:CP150)),\"\")","v":"-"},{"$f":"IFERROR(INDEX($B$9:$I$408,$CM150,COLUMNS($CN$9:CQ150)),\"\")","v":"Output"},{"$f":"IFERROR(INDEX($B$9:$I$408,$CM150,COLUMNS($CN$9:CR150)),\"\")","v":"-"},{"$f":"IFERROR(INDEX($B$9:$I$408,$CM150,COLUMNS($CN$9:CS150)),\"\")","v":"Project development support; Process/asset operation support"},{"$f":"IFERROR(INDEX($B$9:$I$408,$CM150,COLUMNS($CN$9:CT150)),\"\")","v":"-"},{"$f":"IFERROR(INDEX($B$9:$I$408,$CM150,COLUMNS($CN$9:CU150)),\"\")","v":"Number"}]
[null,{"$f":"IF(ISBLANK('TA Indicator Bank'!B147),\"\",'TA Indicator Bank'!B147)","v":"TA143"},{"$f":"IF(ISBLANK('TA Indicator Bank'!C147),\"\",'TA Indicator Bank'!C147)","v":"Number of units developed or improved"},{"$f":"IF(ISBLANK('TA Indicator Bank'!D147),\"\",'TA Indicator Bank'!D147)","v":"-"},{"$f":"IF(ISBLANK('TA Indicator Bank'!E147),\"\",'TA Indicator Bank'!E147)","v":"Output"},{"$f":"IF(ISBLANK('TA Indicator Bank'!F147),\"\",'TA Indicator Bank'!F147)","v":"-"},{"$f":"IF(ISBLANK('TA Indicator Bank'!G147),\"\",'TA Indicator Bank'!G147)","v":"Project development support"},{"$f":"IF(ISBLANK('TA Indicator Bank'!H147),\"\",'TA Indicator Bank'!H147)","v":"-"},{"$f":"IF(ISBLANK('TA Indicator Bank'!I147),\"\",'TA Indicator Bank'!I147)","v":"Number"},{"$f":"IF(ISBLANK('TA Indicator Bank'!J147),\"\",'TA Indicator Bank'!J147)","v":0},{"$f":"IF(ISBLANK('TA Indicator Bank'!K147),\"\",'TA Indicator Bank'!K147)","v":0},{"$f":"IF(ISBLANK('TA Indicator Bank'!L147),\"\",'TA Indicator Bank'!L147)","v":0},{"$f":"IF(ISBLANK('TA Indicator Bank'!M147),\"\",'TA Indicator Bank'!M147)","v":0},{"$f":"IF(ISBLANK('TA Indicator Bank'!N147),\"\",'TA Indicator Bank'!N147)","v":0},{"$f":"IF(ISBLANK('TA Indicator Bank'!O147),\"\",'TA Indicator Bank'!O147)","v":0},{"$f":"IF(ISBLANK('TA Indicator Bank'!P147),\"\",'TA Indicator Bank'!P147)","v":0},{"$f":"IF(ISBLANK('TA Indicator Bank'!Q147),\"\",'TA Indicator Bank'!Q147)","v":0},{"$f":"IF(ISBLANK('TA Indicator Bank'!R147),\"\",'TA Indicator Bank'!R147)","v":0},{"$f":"IF(ISBLANK('TA Indicator Bank'!S147),\"\",'TA Indicator Bank'!S147)","v":0},{"$f":"IF(ISBLANK('TA Indicator Bank'!T147),\"\",'TA Indicator Bank'!T147)","v":0},{"$f":"IF(ISBLANK('TA Indicator Bank'!U147),\"\",'TA Indicator Bank'!U147)","v":0},{"$f":"IF(ISBLANK('TA Indicator Bank'!V147),\"\",'TA Indicator Bank'!V147)","v":0},{"$f":"IF(ISBLANK('TA Indicator Bank'!W147),\"\",'TA Indicator Bank'!W147)","v":0},{"$f":"IF(ISBLANK('TA Indicator Bank'!X147),\"\",'TA Indicator Bank'!X147)","v":0},{"$f":"IF(ISBLANK('TA Indicator Bank'!Y147),\"\",'TA Indicator Bank'!Y147)","v":0},{"$f":"IF(ISBLANK('TA Indicator Bank'!Z147),\"\",'TA Indicator Bank'!Z147)","v":0},{"$f":"IF(ISBLANK('TA Indicator Bank'!AA147),\"\",'TA Indicator Bank'!AA147)","v":0},{"$f":"IF(ISBLANK('TA Indicator Bank'!AB147),\"\",'TA Indicator Bank'!AB147)","v":0},{"$f":"IF(ISBLANK('TA Indicator Bank'!AC147),\"\",'TA Indicator Bank'!AC147)","v":1},{"$f":"IF(ISBLANK('TA Indicator Bank'!AD147),\"\",'TA Indicator Bank'!AD147)","v":0},{"$f":"IF(ISBLANK('TA Indicator Bank'!AE147),\"\",'TA Indicator Bank'!AE147)","v":0},{"$f":"IF(ISBLANK('TA Indicator Bank'!AF147),\"\",'TA Indicator Bank'!AF147)","v":0},{"$f":"IF(ISBLANK('TA Indicator Bank'!AG147),\"\",'TA Indicator Bank'!AG147)","v":0},{"$f":"IF(ISBLANK('TA Indicator Bank'!AH147),\"\",'TA Indicator Bank'!AH147)","v":0},{"$f":"IF(ISBLANK('TA Indicator Bank'!AI147),\"\",'TA Indicator Bank'!AI147)","v":0},{"$f":"IF(ISBLANK('TA Indicator Bank'!AJ147),\"\",'TA Indicator Bank'!AJ147)","v":0},{"$f":"IF(ISBLANK('TA Indicator Bank'!AK147),\"\",'TA Indicator Bank'!AK147)","v":0},{"$f":"IF(ISBLANK('TA Indicator Bank'!AL147),\"\",'TA Indicator Bank'!AL147)","v":0},{"$f":"IF(ISBLANK('TA Indicator Bank'!AM147),\"\",'TA Indicator Bank'!AM147)","v":0},{"$f":"IF(ISBLANK('TA Indicator Bank'!AN147),\"\",'TA Indicator Bank'!AN147)","v":0},{"$f":"IF(ISBLANK('TA Indicator Bank'!AO147),\"\",'TA Indicator Bank'!AO147)","v":0},{"$f":"IF(ISBLANK('TA Indicator Bank'!AP147),\"\",'TA Indicator Bank'!AP147)","v":0},{"$f":"IF(ISBLANK('TA Indicator Bank'!AQ147),\"\",'TA Indicator Bank'!AQ147)","v":0},{"$f":"IF(ISBLANK('TA Indicator Bank'!AR147),\"\",'TA Indicator Bank'!AR147)","v":1},{"$f":"IF(ISBLANK('TA Indicator Bank'!AS147),\"\",'TA Indicator Bank'!AS147)","v":0},{"$f":"IF(ISBLANK('TA Indicator Bank'!AT147),\"\",'TA Indicator Bank'!AT147)","v":0},{"$f":"IF(AND(J151=1,J$410=1),1,0)","v":0},{"$f":"IF(AND(K151=1,K$410=1),1,0)","v":0},{"$f":"IF(AND(L151=1,L$410=1),1,0)","v":0},{"$f":"IF(AND(M151=1,M$410=1),1,0)","v":0},{"$f":"IF(AND(N151=1,N$410=1),1,0)","v":0},{"$f":"IF(AND(O151=1,O$410=1),1,0)","v":0},{"$f":"IF(AND(P151=1,P$410=1),1,0)","v":0},{"$f":"IF(AND(Q151=1,Q$410=1),1,0)","v":0},{"$f":"IF(AND(R151=1,R$410=1),1,0)","v":0},{"$f":"IF(AND(S151=1,S$410=1),1,0)","v":0},{"$f":"IF(AND(T151=1,T$410=1),1,0)","v":0},{"$f":"IF(AND(U151=1,U$410=1),1,0)","v":0},{"$f":"IF(AND(V151=1,V$410=1),1,0)","v":0},{"$f":"IF(AND(W151=1,W$410=1),1,0)","v":0},1,{"$f":"IF(AND(X151=1,X$410=1),1,0)","v":0},{"$f":"IF(AND(Y151=1,Y$410=1),1,0)","v":0},{"$f":"IF(AND(Z151=1,Z$410=1),1,0)","v":0},{"$f":"IF(AND(AA151=1,AA$410=1),1,0)","v":0},{"$f":"IF(AND(AB151=1,AB$410=1),1,0)","v":0},{"$f":"IF(AND(AC151=1,AC$410=1),1,0)","v":1},{"$f":"IF(AND(AD151=1,AD$410=1),1,0)","v":0},{"$f":"IF(AND(AE151=1,AE$410=1),1,0)","v":0},{"$f":"IF(AND(AF151=1,AF$410=1),1,0)","v":0},1,{"$f":"IF(AND(AG151=1,AG$410=1),1,0)","v":0},{"$f":"IF(AND(AH151=1,AH$410=1),1,0)","v":0},{"$f":"IF(AND(AI151=1,AI$410=1),1,0)","v":0},{"$f":"IF(AND(AJ151=1,AJ$410=1),1,0)","v":0},{"$f":"IF(AND(AK151=1,AK$410=1),1,0)","v":0},{"$f":"IF(AND(AL151=1,AL$410=1),1,0)","v":0},{"$f":"IF(AND(AM151=1,AM$410=1),1,0)","v":0},{"$f":"IF(AND(AN151=1,AN$410=1),1,0)","v":0},{"$f":"IF(AND(AO151=1,AO$410=1),1,0)","v":0},1,{"$f":"IF(AND(AP151=1,AP$410=1),1,0)","v":0},{"$f":"IF(AND(AQ151=1,AQ$410=1),1,0)","v":0},{"$f":"IF(AND(AR151=1,AR$410=1),1,0)","v":1},{"$f":"IF(AND(AS151=1,AS$410=1),1,0)","v":0},{"$f":"IF(AND(AT151=1,AT$410=1),1,0)","v":0},1,1,143,143,{"$f":"IFERROR(SMALL($CL$9:$CL$408,CK151),\"\")","v":143},{"$f":"IFERROR(INDEX($B$9:$I$408,$CM151,COLUMNS($CN$9:CN151)),\"\")","v":"TA143"},{"$f":"IFERROR(INDEX($B$9:$I$408,$CM151,COLUMNS($CN$9:CO151)),\"\")","v":"Number of units developed or improved"},{"$f":"IFERROR(INDEX($B$9:$I$408,$CM151,COLUMNS($CN$9:CP151)),\"\")","v":"-"},{"$f":"IFERROR(INDEX($B$9:$I$408,$CM151,COLUMNS($CN$9:CQ151)),\"\")","v":"Output"},{"$f":"IFERROR(INDEX($B$9:$I$408,$CM151,COLUMNS($CN$9:CR151)),\"\")","v":"-"},{"$f":"IFERROR(INDEX($B$9:$I$408,$CM151,COLUMNS($CN$9:CS151)),\"\")","v":"Project development support"},{"$f":"IFERROR(INDEX($B$9:$I$408,$CM151,COLUMNS($CN$9:CT151)),\"\")","v":"-"},{"$f":"IFERROR(INDEX($B$9:$I$408,$CM151,COLUMNS($CN$9:CU151)),\"\")","v":"Number"}]
[null,{"$f":"IF(ISBLANK('TA Indicator Bank'!B148),\"\",'TA Indicator Bank'!B148)","v":"TA144"},{"$f":"IF(ISBLANK('TA Indicator Bank'!C148),\"\",'TA Indicator Bank'!C148)","v":"Number of registered governments and stakeholders"},{"$f":"IF(ISBLANK('TA Indicator Bank'!D148),\"\",'TA Indicator Bank'!D148)","v":"-"},{"$f":"IF(ISBLANK('TA Indicator Bank'!E148),\"\",'TA Indicator Bank'!E148)","v":"Uptake"},{"$f":"IF(ISBLANK('TA Indicator Bank'!F148),\"\",'TA Indicator Bank'!F148)","v":"Workshops; Training events / courses; Conferences, seminars or networking events"},{"$f":"IF(ISBLANK('TA Indicator Bank'!G148),\"\",'TA Indicator Bank'!G148)","v":"-"},{"$f":"IF(ISBLANK('TA Indicator Bank'!H148),\"\",'TA Indicator Bank'!H148)","v":"-"},{"$f":"IF(ISBLANK('TA Indicator Bank'!I148),\"\",'TA Indicator Bank'!I148)","v":"Number"},{"$f":"IF(ISBLANK('TA Indicator Bank'!J148),\"\",'TA Indicator Bank'!J148)","v":1},{"$f":"IF(ISBLANK('TA Indicator Bank'!K148),\"\",'TA Indicator Bank'!K148)","v":1},{"$f":"IF(ISBLANK('TA Indicator Bank'!L148),\"\",'TA Indicator Bank'!L148)","v":1},{"$f":"IF(ISBLANK('TA Indicator Bank'!M148),\"\",'TA Indicator Bank'!M148)","v":0},{"$f":"IF(ISBLANK('TA Indicator Bank'!N148),\"\",'TA Indicator Bank'!N148)","v":0},{"$f":"IF(ISBLANK('TA Indicator Bank'!O148),\"\",'TA Indicator Bank'!O148)","v":0},{"$f":"IF(ISBLANK('TA Indicator Bank'!P148),\"\",'TA Indicator Bank'!P148)","v":0},{"$f":"IF(ISBLANK('TA Indicator Bank'!Q148),\"\",'TA Indicator Bank'!Q148)","v":0},{"$f":"IF(ISBLANK('TA Indicator Bank'!R148),\"\",'TA Indicator Bank'!R148)","v":0},{"$f":"IF(ISBLANK('TA Indicator Bank'!S148),\"\",'TA Indicator Bank'!S148)","v":0},{"$f":"IF(ISBLANK('TA Indicator Bank'!T148),\"\",'TA Indicator Bank'!T148)","v":0},{"$f":"IF(ISBLANK('TA Indicator Bank'!U148),\"\",'TA Indicator Bank'!U148)","v":0},{"$f":"IF(ISBLANK('TA Indicator Bank'!V148),\"\",'TA Indicator Bank'!V148)","v":0},{"$f":"IF(ISBLANK('TA Indicator Bank'!W148),\"\",'TA Indicator Bank'!W148)","v":0},{"$f":"IF(ISBLANK('TA Indicator Bank'!X148),\"\",'TA Indicator Bank'!X148)","v":0},{"$f":"IF(ISBLANK('TA Indicator Bank'!Y148),\"\",'TA Indicator Bank'!Y148)","v":0},{"$f":"IF(ISBLANK('TA Indicator Bank'!Z148),\"\",'TA Indicator Bank'!Z148)","v":0},{"$f":"IF(ISBLANK('TA Indicator Bank'!AA148),\"\",'TA Indicator Bank'!AA148)","v":0},{"$f":"IF(ISBLANK('TA Indicator Bank'!AB148),\"\",'TA Indicator Bank'!AB148)","v":0},{"$f":"IF(ISBLANK('TA Indicator Bank'!AC148),\"\",'TA Indicator Bank'!AC148)","v":0},{"$f":"IF(ISBLANK('TA Indicator Bank'!AD148),\"\",'TA Indicator Bank'!AD148)","v":0},{"$f":"IF(ISBLANK('TA Indicator Bank'!AE148),\"\",'TA Indicator Bank'!AE148)","v":0},{"$f":"IF(ISBLANK('TA Indicator Bank'!AF148),\"\",'TA Indicator Bank'!AF148)","v":0},{"$f":"IF(ISBLANK('TA Indicator Bank'!AG148),\"\",'TA Indicator Bank'!AG148)","v":0},{"$f":"IF(ISBLANK('TA Indicator Bank'!AH148),\"\",'TA Indicator Bank'!AH148)","v":0},{"$f":"IF(ISBLANK('TA Indicator Bank'!AI148),\"\",'TA Indicator Bank'!AI148)","v":0},{"$f":"IF(ISBLANK('TA Indicator Bank'!AJ148),\"\",'TA Indicator Bank'!AJ148)","v":0},{"$f":"IF(ISBLANK('TA Indicator Bank'!AK148),\"\",'TA Indicator Bank'!AK148)","v":0},{"$f":"IF(ISBLANK('TA Indicator Bank'!AL148),\"\",'TA Indicator Bank'!AL148)","v":0},{"$f":"IF(ISBLANK('TA Indicator Bank'!AM148),\"\",'TA Indicator Bank'!AM148)","v":0},{"$f":"IF(ISBLANK('TA Indicator Bank'!AN148),\"\",'TA Indicator Bank'!AN148)","v":0},{"$f":"IF(ISBLANK('TA Indicator Bank'!AO148),\"\",'TA Indicator Bank'!AO148)","v":0},{"$f":"IF(ISBLANK('TA Indicator Bank'!AP148),\"\",'TA Indicator Bank'!AP148)","v":0},{"$f":"IF(ISBLANK('TA Indicator Bank'!AQ148),\"\",'TA Indicator Bank'!AQ148)","v":1},{"$f":"IF(ISBLANK('TA Indicator Bank'!AR148),\"\",'TA Indicator Bank'!AR148)","v":0},{"$f":"IF(ISBLANK('TA Indicator Bank'!AS148),\"\",'TA Indicator Bank'!AS148)","v":0},{"$f":"IF(ISBLANK('TA Indicator Bank'!AT148),\"\",'TA Indicator Bank'!AT148)","v":0},{"$f":"IF(AND(J152=1,J$410=1),1,0)","v":1},{"$f":"IF(AND(K152=1,K$410=1),1,0)","v":1},{"$f":"IF(AND(L152=1,L$410=1),1,0)","v":1},{"$f":"IF(AND(M152=1,M$410=1),1,0)","v":0},{"$f":"IF(AND(N152=1,N$410=1),1,0)","v":0},{"$f":"IF(AND(O152=1,O$410=1),1,0)","v":0},{"$f":"IF(AND(P152=1,P$410=1),1,0)","v":0},{"$f":"IF(AND(Q152=1,Q$410=1),1,0)","v":0},{"$f":"IF(AND(R152=1,R$410=1),1,0)","v":0},{"$f":"IF(AND(S152=1,S$410=1),1,0)","v":0},{"$f":"IF(AND(T152=1,T$410=1),1,0)","v":0},{"$f":"IF(AND(U152=1,U$410=1),1,0)","v":0},{"$f":"IF(AND(V152=1,V$410=1),1,0)","v":0},{"$f":"IF(AND(W152=1,W$410=1),1,0)","v":0},1,{"$f":"IF(AND(X152=1,X$410=1),1,0)","v":0},{"$f":"IF(AND(Y152=1,Y$410=1),1,0)","v":0},{"$f":"IF(AND(Z152=1,Z$410=1),1,0)","v":0},{"$f":"IF(AND(AA152=1,AA$410=1),1,0)","v":0},{"$f":"IF(AND(AB152=1,AB$410=1),1,0)","v":0},{"$f":"IF(AND(AC152=1,AC$410=1),1,0)","v":0},{"$f":"IF(AND(AD152=1,AD$410=1),1,0)","v":0},{"$f":"IF(AND(AE152=1,AE$410=1),1,0)","v":0},{"$f":"IF(AND(AF152=1,AF$410=1),1,0)","v":0},1,{"$f":"IF(AND(AG152=1,AG$410=1),1,0)","v":0},{"$f":"IF(AND(AH152=1,AH$410=1),1,0)","v":0},{"$f":"IF(AND(AI152=1,AI$410=1),1,0)","v":0},{"$f":"IF(AND(AJ152=1,AJ$410=1),1,0)","v":0},{"$f":"IF(AND(AK152=1,AK$410=1),1,0)","v":0},{"$f":"IF(AND(AL152=1,AL$410=1),1,0)","v":0},{"$f":"IF(AND(AM152=1,AM$410=1),1,0)","v":0},{"$f":"IF(AND(AN152=1,AN$410=1),1,0)","v":0},{"$f":"IF(AND(AO152=1,AO$410=1),1,0)","v":0},1,{"$f":"IF(AND(AP152=1,AP$410=1),1,0)","v":0},{"$f":"IF(AND(AQ152=1,AQ$410=1),1,0)","v":1},{"$f":"IF(AND(AR152=1,AR$410=1),1,0)","v":0},{"$f":"IF(AND(AS152=1,AS$410=1),1,0)","v":0},{"$f":"IF(AND(AT152=1,AT$410=1),1,0)","v":0},1,1,144,144,{"$f":"IFERROR(SMALL($CL$9:$CL$408,CK152),\"\")","v":144},{"$f":"IFERROR(INDEX($B$9:$I$408,$CM152,COLUMNS($CN$9:CN152)),\"\")","v":"TA144"},{"$f":"IFERROR(INDEX($B$9:$I$408,$CM152,COLUMNS($CN$9:CO152)),\"\")","v":"Number of registered governments and stakeholders"},{"$f":"IFERROR(INDEX($B$9:$I$408,$CM152,COLUMNS($CN$9:CP152)),\"\")","v":"-"},{"$f":"IFERROR(INDEX($B$9:$I$408,$CM152,COLUMNS($CN$9:CQ152)),\"\")","v":"Uptake"},{"$f":"IFERROR(INDEX($B$9:$I$408,$CM152,COLUMNS($CN$9:CR152)),\"\")","v":"Workshops; Training events / courses; Conferences, seminars or networking events"},{"$f":"IFERROR(INDEX($B$9:$I$408,$CM152,COLUMNS($CN$9:CS152)),\"\")","v":"-"},{"$f":"IFERROR(INDEX($B$9:$I$408,$CM152,COLUMNS($CN$9:CT152)),\"\")","v":"-"},{"$f":"IFERROR(INDEX($B$9:$I$408,$CM152,COLUMNS($CN$9:CU152)),\"\")","v":"Number"}]
[null,{"$f":"IF(ISBLANK('TA Indicator Bank'!B149),\"\",'TA Indicator Bank'!B149)","v":"TA145"},{"$f":"IF(ISBLANK('TA Indicator Bank'!C149),\"\",'TA Indicator Bank'!C149)","v":"Proportion of credit lines/capital deployed"},{"$f":"IF(ISBLANK('TA Indicator Bank'!D149),\"\",'TA Indicator Bank'!D149)","v":"-"},{"$f":"IF(ISBLANK('TA Indicator Bank'!E149),\"\",'TA Indicator Bank'!E149)","v":"Output"},{"$f":"IF(ISBLANK('TA Indicator Bank'!F149),\"\",'TA Indicator Bank'!F149)","v":"-"},{"$f":"IF(ISBLANK('TA Indicator Bank'!G149),\"\",'TA Indicator Bank'!G149)","v":"Project development support"},{"$f":"IF(ISBLANK('TA Indicator Bank'!H149),\"\",'TA Indicator Bank'!H149)","v":"-"},{"$f":"IF(ISBLANK('TA Indicator Bank'!I149),\"\",'TA Indicator Bank'!I149)","v":"Percentage"},{"$f":"IF(ISBLANK('TA Indicator Bank'!J149),\"\",'TA Indicator Bank'!J149)","v":0},{"$f":"IF(ISBLANK('TA Indicator Bank'!K149),\"\",'TA Indicator Bank'!K149)","v":0},{"$f":"IF(ISBLANK('TA Indicator Bank'!L149),\"\",'TA Indicator Bank'!L149)","v":0},{"$f":"IF(ISBLANK('TA Indicator Bank'!M149),\"\",'TA Indicator Bank'!M149)","v":0},{"$f":"IF(ISBLANK('TA Indicator Bank'!N149),\"\",'TA Indicator Bank'!N149)","v":0},{"$f":"IF(ISBLANK('TA Indicator Bank'!O149),\"\",'TA Indicator Bank'!O149)","v":0},{"$f":"IF(ISBLANK('TA Indicator Bank'!P149),\"\",'TA Indicator Bank'!P149)","v":0},{"$f":"IF(ISBLANK('TA Indicator Bank'!Q149),\"\",'TA Indicator Bank'!Q149)","v":0},{"$f":"IF(ISBLANK('TA Indicator Bank'!R149),\"\",'TA Indicator Bank'!R149)","v":0},{"$f":"IF(ISBLANK('TA Indicator Bank'!S149),\"\",'TA Indicator Bank'!S149)","v":0},{"$f":"IF(ISBLANK('TA Indicator Bank'!T149),\"\",'TA Indicator Bank'!T149)","v":0},{"$f":"IF(ISBLANK('TA Indicator Bank'!U149),\"\",'TA Indicator Bank'!U149)","v":0},{"$f":"IF(ISBLANK('TA Indicator Bank'!V149),\"\",'TA Indicator Bank'!V149)","v":0},{"$f":"IF(ISBLANK('TA Indicator Bank'!W149),\"\",'TA Indicator Bank'!W149)","v":0},{"$f":"IF(ISBLANK('TA Indicator Bank'!X149),\"\",'TA Indicator Bank'!X149)","v":0},{"$f":"IF(ISBLANK('TA Indicator Bank'!Y149),\"\",'TA Indicator Bank'!Y149)","v":0},{"$f":"IF(ISBLANK('TA Indicator Bank'!Z149),\"\",'TA Indicator Bank'!Z149)","v":0},{"$f":"IF(ISBLANK('TA Indicator Bank'!AA149),\"\",'TA Indicator Bank'!AA149)","v":0},{"$f":"IF(ISBLANK('TA Indicator Bank'!AB149),\"\",'TA Indicator Bank'!AB149)","v":0},{"$f":"IF(ISBLANK('TA Indicator Bank'!AC149),\"\",'TA Indicator Bank'!AC149)","v":1},{"$f":"IF(ISBLANK('TA Indicator Bank'!AD149),\"\",'TA Indicator Bank'!AD149)","v":0},{"$f":"IF(ISBLANK('TA Indicator Bank'!AE149),\"\",'TA Indicator Bank'!AE149)","v":0},{"$f":"IF(ISBLANK('TA Indicator Bank'!AF149),\"\",'TA Indicator Bank'!AF149)","v":0},{"$f":"IF(ISBLANK('TA Indicator Bank'!AG149),\"\",'TA Indicator Bank'!AG149)","v":0},{"$f":"IF(ISBLANK('TA Indicator Bank'!AH149),\"\",'TA Indicator Bank'!AH149)","v":0},{"$f":"IF(ISBLANK('TA Indicator Bank'!AI149),\"\",'TA Indicator Bank'!AI149)","v":0},{"$f":"IF(ISBLANK('TA Indicator Bank'!AJ149),\"\",'TA Indicator Bank'!AJ149)","v":0},{"$f":"IF(ISBLANK('TA Indicator Bank'!AK149),\"\",'TA Indicator Bank'!AK149)","v":0},{"$f":"IF(ISBLANK('TA Indicator Bank'!AL149),\"\",'TA Indicator Bank'!AL149)","v":0},{"$f":"IF(ISBLANK('TA Indicator Bank'!AM149),\"\",'TA Indicator Bank'!AM149)","v":0},{"$f":"IF(ISBLANK('TA Indicator Bank'!AN149),\"\",'TA Indicator Bank'!AN149)","v":0},{"$f":"IF(ISBLANK('TA Indicator Bank'!AO149),\"\",'TA Indicator Bank'!AO149)","v":0},{"$f":"IF(ISBLANK('TA Indicator Bank'!AP149),\"\",'TA Indicator Bank'!AP149)","v":0},{"$f":"IF(ISBLANK('TA Indicator Bank'!AQ149),\"\",'TA Indicator Bank'!AQ149)","v":0},{"$f":"IF(ISBLANK('TA Indicator Bank'!AR149),\"\",'TA Indicator Bank'!AR149)","v":1},{"$f":"IF(ISBLANK('TA Indicator Bank'!AS149),\"\",'TA Indicator Bank'!AS149)","v":0},{"$f":"IF(ISBLANK('TA Indicator Bank'!AT149),\"\",'TA Indicator Bank'!AT149)","v":0},{"$f":"IF(AND(J153=1,J$410=1),1,0)","v":0},{"$f":"IF(AND(K153=1,K$410=1),1,0)","v":0},{"$f":"IF(AND(L153=1,L$410=1),1,0)","v":0},{"$f":"IF(AND(M153=1,M$410=1),1,0)","v":0},{"$f":"IF(AND(N153=1,N$410=1),1,0)","v":0},{"$f":"IF(AND(O153=1,O$410=1),1,0)","v":0},{"$f":"IF(AND(P153=1,P$410=1),1,0)","v":0},{"$f":"IF(AND(Q153=1,Q$410=1),1,0)","v":0},{"$f":"IF(AND(R153=1,R$410=1),1,0)","v":0},{"$f":"IF(AND(S153=1,S$410=1),1,0)","v":0},{"$f":"IF(AND(T153=1,T$410=1),1,0)","v":0},{"$f":"IF(AND(U153=1,U$410=1),1,0)","v":0},{"$f":"IF(AND(V153=1,V$410=1),1,0)","v":0},{"$f":"IF(AND(W153=1,W$410=1),1,0)","v":0},1,{"$f":"IF(AND(X153=1,X$410=1),1,0)","v":0},{"$f":"IF(AND(Y153=1,Y$410=1),1,0)","v":0},{"$f":"IF(AND(Z153=1,Z$410=1),1,0)","v":0},{"$f":"IF(AND(AA153=1,AA$410=1),1,0)","v":0},{"$f":"IF(AND(AB153=1,AB$410=1),1,0)","v":0},{"$f":"IF(AND(AC153=1,AC$410=1),1,0)","v":1},{"$f":"IF(AND(AD153=1,AD$410=1),1,0)","v":0},{"$f":"IF(AND(AE153=1,AE$410=1),1,0)","v":0},{"$f":"IF(AND(AF153=1,AF$410=1),1,0)","v":0},1,{"$f":"IF(AND(AG153=1,AG$410=1),1,0)","v":0},{"$f":"IF(AND(AH153=1,AH$410=1),1,0)","v":0},{"$f":"IF(AND(AI153=1,AI$410=1),1,0)","v":0},{"$f":"IF(AND(AJ153=1,AJ$410=1),1,0)","v":0},{"$f":"IF(AND(AK153=1,AK$410=1),1,0)","v":0},{"$f":"IF(AND(AL153=1,AL$410=1),1,0)","v":0},{"$f":"IF(AND(AM153=1,AM$410=1),1,0)","v":0},{"$f":"IF(AND(AN153=1,AN$410=1),1,0)","v":0},{"$f":"IF(AND(AO153=1,AO$410=1),1,0)","v":0},1,{"$f":"IF(AND(AP153=1,AP$410=1),1,0)","v":0},{"$f":"IF(AND(AQ153=1,AQ$410=1),1,0)","v":0},{"$f":"IF(AND(AR153=1,AR$410=1),1,0)","v":1},{"$f":"IF(AND(AS153=1,AS$410=1),1,0)","v":0},{"$f":"IF(AND(AT153=1,AT$410=1),1,0)","v":0},1,1,145,145,{"$f":"IFERROR(SMALL($CL$9:$CL$408,CK153),\"\")","v":145},{"$f":"IFERROR(INDEX($B$9:$I$408,$CM153,COLUMNS($CN$9:CN153)),\"\")","v":"TA145"},{"$f":"IFERROR(INDEX($B$9:$I$408,$CM153,COLUMNS($CN$9:CO153)),\"\")","v":"Proportion of credit lines/capital deployed"},{"$f":"IFERROR(INDEX($B$9:$I$408,$CM153,COLUMNS($CN$9:CP153)),\"\")","v":"-"},{"$f":"IFERROR(INDEX($B$9:$I$408,$CM153,COLUMNS($CN$9:CQ153)),\"\")","v":"Output"},{"$f":"IFERROR(INDEX($B$9:$I$408,$CM153,COLUMNS($CN$9:CR153)),\"\")","v":"-"},{"$f":"IFERROR(INDEX($B$9:$I$408,$CM153,COLUMNS($CN$9:CS153)),\"\")","v":"Project development support"},{"$f":"IFERROR(INDEX($B$9:$I$408,$CM153,COLUMNS($CN$9:CT153)),\"\")","v":"-"},{"$f":"IFERROR(INDEX($B$9:$I$408,$CM153,COLUMNS($CN$9:CU153)),\"\")","v":"Percentage"}]
[null,{"$f":"IF(ISBLANK('TA Indicator Bank'!B150),\"\",'TA Indicator Bank'!B150)","v":"TA146"},{"$f":"IF(ISBLANK('TA Indicator Bank'!C150),\"\",'TA Indicator Bank'!C150)","v":"Duration of certain project step"},{"$f":"IF(ISBLANK('TA Indicator Bank'!D150),\"\",'TA Indicator Bank'!D150)","v":"-"},{"$f":"IF(ISBLANK('TA Indicator Bank'!E150),\"\",'TA Indicator Bank'!E150)","v":"Output"},{"$f":"IF(ISBLANK('TA Indicator Bank'!F150),\"\",'TA Indicator Bank'!F150)","v":"-"},{"$f":"IF(ISBLANK('TA Indicator Bank'!G150),\"\",'TA Indicator Bank'!G150)","v":"Project development support"},{"$f":"IF(ISBLANK('TA Indicator Bank'!H150),\"\",'TA Indicator Bank'!H150)","v":"-"},{"$f":"IF(ISBLANK('TA Indicator Bank'!I150),\"\",'TA Indicator Bank'!I150)","v":"Number"},{"$f":"IF(ISBLANK('TA Indicator Bank'!J150),\"\",'TA Indicator Bank'!J150)","v":0},{"$f":"IF(ISBLANK('TA Indicator Bank'!K150),\"\",'TA Indicator Bank'!K150)","v":0},{"$f":"IF(ISBLANK('TA Indicator Bank'!L150),\"\",'TA Indicator Bank'!L150)","v":0},{"$f":"IF(ISBLANK('TA Indicator Bank'!M150),\"\",'TA Indicator Bank'!M150)","v":0},{"$f":"IF(ISBLANK('TA Indicator Bank'!N150),\"\",'TA Indicator Bank'!N150)","v":0},{"$f":"IF(ISBLANK('TA Indicator Bank'!O150),\"\",'TA Indicator Bank'!O150)","v":0},{"$f":"IF(ISBLANK('TA Indicator Bank'!P150),\"\",'TA Indicator Bank'!P150)","v":0},{"$f":"IF(ISBLANK('TA Indicator Bank'!Q150),\"\",'TA Indicator Bank'!Q150)","v":0},{"$f":"IF(ISBLANK('TA Indicator Bank'!R150),\"\",'TA Indicator Bank'!R150)","v":0},{"$f":"IF(ISBLANK('TA Indicator Bank'!S150),\"\",'TA Indicator Bank'!S150)","v":0},{"$f":"IF(ISBLANK('TA Indicator Bank'!T150),\"\",'TA Indicator Bank'!T150)","v":0},{"$f":"IF(ISBLANK('TA Indicator Bank'!U150),\"\",'TA Indicator Bank'!U150)","v":0},{"$f":"IF(ISBLANK('TA Indicator Bank'!V150),\"\",'TA Indicator Bank'!V150)","v":0},{"$f":"IF(ISBLANK('TA Indicator Bank'!W150),\"\",'TA Indicator Bank'!W150)","v":0},{"$f":"IF(ISBLANK('TA Indicator Bank'!X150),\"\",'TA Indicator Bank'!X150)","v":0},{"$f":"IF(ISBLANK('TA Indicator Bank'!Y150),\"\",'TA Indicator Bank'!Y150)","v":0},{"$f":"IF(ISBLANK('TA Indicator Bank'!Z150),\"\",'TA Indicator Bank'!Z150)","v":0},{"$f":"IF(ISBLANK('TA Indicator Bank'!AA150),\"\",'TA Indicator Bank'!AA150)","v":0},{"$f":"IF(ISBLANK('TA Indicator Bank'!AB150),\"\",'TA Indicator Bank'!AB150)","v":0},{"$f":"IF(ISBLANK('TA Indicator Bank'!AC150),\"\",'TA Indicator Bank'!AC150)","v":1},{"$f":"IF(ISBLANK('TA Indicator Bank'!AD150),\"\",'TA Indicator Bank'!AD150)","v":0},{"$f":"IF(ISBLANK('TA Indicator Bank'!AE150),\"\",'TA Indicator Bank'!AE150)","v":0},{"$f":"IF(ISBLANK('TA Indicator Bank'!AF150),\"\",'TA Indicator Bank'!AF150)","v":0},{"$f":"IF(ISBLANK('TA Indicator Bank'!AG150),\"\",'TA Indicator Bank'!AG150)","v":0},{"$f":"IF(ISBLANK('TA Indicator Bank'!AH150),\"\",'TA Indicator Bank'!AH150)","v":0},{"$f":"IF(ISBLANK('TA Indicator Bank'!AI150),\"\",'TA Indicator Bank'!AI150)","v":0},{"$f":"IF(ISBLANK('TA Indicator Bank'!AJ150),\"\",'TA Indicator Bank'!AJ150)","v":0},{"$f":"IF(ISBLANK('TA Indicator Bank'!AK150),\"\",'TA Indicator Bank'!AK150)","v":0},{"$f":"IF(ISBLANK('TA Indicator Bank'!AL150),\"\",'TA Indicator Bank'!AL150)","v":0},{"$f":"IF(ISBLANK('TA Indicator Bank'!AM150),\"\",'TA Indicator Bank'!AM150)","v":0},{"$f":"IF(ISBLANK('TA Indicator Bank'!AN150),\"\",'TA Indicator Bank'!AN150)","v":0},{"$f":"IF(ISBLANK('TA Indicator Bank'!AO150),\"\",'TA Indicator Bank'!AO150)","v":0},{"$f":"IF(ISBLANK('TA Indicator Bank'!AP150),\"\",'TA Indicator Bank'!AP150)","v":0},{"$f":"IF(ISBLANK('TA Indicator Bank'!AQ150),\"\",'TA Indicator Bank'!AQ150)","v":0},{"$f":"IF(ISBLANK('TA Indicator Bank'!AR150),\"\",'TA Indicator Bank'!AR150)","v":1},{"$f":"IF(ISBLANK('TA Indicator Bank'!AS150),\"\",'TA Indicator Bank'!AS150)","v":0},{"$f":"IF(ISBLANK('TA Indicator Bank'!AT150),\"\",'TA Indicator Bank'!AT150)","v":0},{"$f":"IF(AND(J154=1,J$410=1),1,0)","v":0},{"$f":"IF(AND(K154=1,K$410=1),1,0)","v":0},{"$f":"IF(AND(L154=1,L$410=1),1,0)","v":0},{"$f":"IF(AND(M154=1,M$410=1),1,0)","v":0},{"$f":"IF(AND(N154=1,N$410=1),1,0)","v":0},{"$f":"IF(AND(O154=1,O$410=1),1,0)","v":0},{"$f":"IF(AND(P154=1,P$410=1),1,0)","v":0},{"$f":"IF(AND(Q154=1,Q$410=1),1,0)","v":0},{"$f":"IF(AND(R154=1,R$410=1),1,0)","v":0},{"$f":"IF(AND(S154=1,S$410=1),1,0)","v":0},{"$f":"IF(AND(T154=1,T$410=1),1,0)","v":0},{"$f":"IF(AND(U154=1,U$410=1),1,0)","v":0},{"$f":"IF(AND(V154=1,V$410=1),1,0)","v":0},{"$f":"IF(AND(W154=1,W$410=1),1,0)","v":0},1,{"$f":"IF(AND(X154=1,X$410=1),1,0)","v":0},{"$f":"IF(AND(Y154=1,Y$410=1),1,0)","v":0},{"$f":"IF(AND(Z154=1,Z$410=1),1,0)","v":0},{"$f":"IF(AND(AA154=1,AA$410=1),1,0)","v":0},{"$f":"IF(AND(AB154=1,AB$410=1),1,0)","v":0},{"$f":"IF(AND(AC154=1,AC$410=1),1,0)","v":1},{"$f":"IF(AND(AD154=1,AD$410=1),1,0)","v":0},{"$f":"IF(AND(AE154=1,AE$410=1),1,0)","v":0},{"$f":"IF(AND(AF154=1,AF$410=1),1,0)","v":0},1,{"$f":"IF(AND(AG154=1,AG$410=1),1,0)","v":0},{"$f":"IF(AND(AH154=1,AH$410=1),1,0)","v":0},{"$f":"IF(AND(AI154=1,AI$410=1),1,0)","v":0},{"$f":"IF(AND(AJ154=1,AJ$410=1),1,0)","v":0},{"$f":"IF(AND(AK154=1,AK$410=1),1,0)","v":0},{"$f":"IF(AND(AL154=1,AL$410=1),1,0)","v":0},{"$f":"IF(AND(AM154=1,AM$410=1),1,0)","v":0},{"$f":"IF(AND(AN154=1,AN$410=1),1,0)","v":0},{"$f":"IF(AND(AO154=1,AO$410=1),1,0)","v":0},1,{"$f":"IF(AND(AP154=1,AP$410=1),1,0)","v":0},{"$f":"IF(AND(AQ154=1,AQ$410=1),1,0)","v":0},{"$f":"IF(AND(AR154=1,AR$410=1),1,0)","v":1},{"$f":"IF(AND(AS154=1,AS$410=1),1,0)","v":0},{"$f":"IF(AND(AT154=1,AT$410=1),1,0)","v":0},1,1,146,146,{"$f":"IFERROR(SMALL($CL$9:$CL$408,CK154),\"\")","v":146},{"$f":"IFERROR(INDEX($B$9:$I$408,$CM154,COLUMNS($CN$9:CN154)),\"\")","v":"TA146"},{"$f":"IFERROR(INDEX($B$9:$I$408,$CM154,COLUMNS($CN$9:CO154)),\"\")","v":"Duration of certain project step"},{"$f":"IFERROR(INDEX($B$9:$I$408,$CM154,COLUMNS($CN$9:CP154)),\"\")","v":"-"},{"$f":"IFERROR(INDEX($B$9:$I$408,$CM154,COLUMNS($CN$9:CQ154)),\"\")","v":"Output"},{"$f":"IFERROR(INDEX($B$9:$I$408,$CM154,COLUMNS($CN$9:CR154)),\"\")","v":"-"},{"$f":"IFERROR(INDEX($B$9:$I$408,$CM154,COLUMNS($CN$9:CS154)),\"\")","v":"Project development support"},{"$f":"IFERROR(INDEX($B$9:$I$408,$CM154,COLUMNS($CN$9:CT154)),\"\")","v":"-"},{"$f":"IFERROR(INDEX($B$9:$I$408,$CM154,COLUMNS($CN$9:CU154)),\"\")","v":"Number"}]
[null,{"$f":"IF(ISBLANK('TA Indicator Bank'!B151),\"\",'TA Indicator Bank'!B151)","v":"TA147"},{"$f":"IF(ISBLANK('TA Indicator Bank'!C151),\"\",'TA Indicator Bank'!C151)","v":"Number of projects managed by certain unit"},{"$f":"IF(ISBLANK('TA Indicator Bank'!D151),\"\",'TA Indicator Bank'!D151)","v":"-"},{"$f":"IF(ISBLANK('TA Indicator Bank'!E151),\"\",'TA Indicator Bank'!E151)","v":"Output"},{"$f":"IF(ISBLANK('TA Indicator Bank'!F151),\"\",'TA Indicator Bank'!F151)","v":"-"},{"$f":"IF(ISBLANK('TA Indicator Bank'!G151),\"\",'TA Indicator Bank'!G151)","v":"Project development support"},{"$f":"IF(ISBLANK('TA Indicator Bank'!H151),\"\",'TA Indicator Bank'!H151)","v":"-"},{"$f":"IF(ISBLANK('TA Indicator Bank'!I151),\"\",'TA Indicator Bank'!I151)","v":"Number"},{"$f":"IF(ISBLANK('TA Indicator Bank'!J151),\"\",'TA Indicator Bank'!J151)","v":0},{"$f":"IF(ISBLANK('TA Indicator Bank'!K151),\"\",'TA Indicator Bank'!K151)","v":0},{"$f":"IF(ISBLANK('TA Indicator Bank'!L151),\"\",'TA Indicator Bank'!L151)","v":0},{"$f":"IF(ISBLANK('TA Indicator Bank'!M151),\"\",'TA Indicator Bank'!M151)","v":0},{"$f":"IF(ISBLANK('TA Indicator Bank'!N151),\"\",'TA Indicator Bank'!N151)","v":0},{"$f":"IF(ISBLANK('TA Indicator Bank'!O151),\"\",'TA Indicator Bank'!O151)","v":0},{"$f":"IF(ISBLANK('TA Indicator Bank'!P151),\"\",'TA Indicator Bank'!P151)","v":0},{"$f":"IF(ISBLANK('TA Indicator Bank'!Q151),\"\",'TA Indicator Bank'!Q151)","v":0},{"$f":"IF(ISBLANK('TA Indicator Bank'!R151),\"\",'TA Indicator Bank'!R151)","v":0},{"$f":"IF(ISBLANK('TA Indicator Bank'!S151),\"\",'TA Indicator Bank'!S151)","v":0},{"$f":"IF(ISBLANK('TA Indicator Bank'!T151),\"\",'TA Indicator Bank'!T151)","v":0},{"$f":"IF(ISBLANK('TA Indicator Bank'!U151),\"\",'TA Indicator Bank'!U151)","v":0},{"$f":"IF(ISBLANK('TA Indicator Bank'!V151),\"\",'TA Indicator Bank'!V151)","v":0},{"$f":"IF(ISBLANK('TA Indicator Bank'!W151),\"\",'TA Indicator Bank'!W151)","v":0},{"$f":"IF(ISBLANK('TA Indicator Bank'!X151),\"\",'TA Indicator Bank'!X151)","v":0},{"$f":"IF(ISBLANK('TA Indicator Bank'!Y151),\"\",'TA Indicator Bank'!Y151)","v":0},{"$f":"IF(ISBLANK('TA Indicator Bank'!Z151),\"\",'TA Indicator Bank'!Z151)","v":0},{"$f":"IF(ISBLANK('TA Indicator Bank'!AA151),\"\",'TA Indicator Bank'!AA151)","v":0},{"$f":"IF(ISBLANK('TA Indicator Bank'!AB151),\"\",'TA Indicator Bank'!AB151)","v":0},{"$f":"IF(ISBLANK('TA Indicator Bank'!AC151),\"\",'TA Indicator Bank'!AC151)","v":1},{"$f":"IF(ISBLANK('TA Indicator Bank'!AD151),\"\",'TA Indicator Bank'!AD151)","v":0},{"$f":"IF(ISBLANK('TA Indicator Bank'!AE151),\"\",'TA Indicator Bank'!AE151)","v":0},{"$f":"IF(ISBLANK('TA Indicator Bank'!AF151),\"\",'TA Indicator Bank'!AF151)","v":0},{"$f":"IF(ISBLANK('TA Indicator Bank'!AG151),\"\",'TA Indicator Bank'!AG151)","v":0},{"$f":"IF(ISBLANK('TA Indicator Bank'!AH151),\"\",'TA Indicator Bank'!AH151)","v":0},{"$f":"IF(ISBLANK('TA Indicator Bank'!AI151),\"\",'TA Indicator Bank'!AI151)","v":0},{"$f":"IF(ISBLANK('TA Indicator Bank'!AJ151),\"\",'TA Indicator Bank'!AJ151)","v":0},{"$f":"IF(ISBLANK('TA Indicator Bank'!AK151),\"\",'TA Indicator Bank'!AK151)","v":0},{"$f":"IF(ISBLANK('TA Indicator Bank'!AL151),\"\",'TA Indicator Bank'!AL151)","v":0},{"$f":"IF(ISBLANK('TA Indicator Bank'!AM151),\"\",'TA Indicator Bank'!AM151)","v":0},{"$f":"IF(ISBLANK('TA Indicator Bank'!AN151),\"\",'TA Indicator Bank'!AN151)","v":0},{"$f":"IF(ISBLANK('TA Indicator Bank'!AO151),\"\",'TA Indicator Bank'!AO151)","v":0},{"$f":"IF(ISBLANK('TA Indicator Bank'!AP151),\"\",'TA Indicator Bank'!AP151)","v":0},{"$f":"IF(ISBLANK('TA Indicator Bank'!AQ151),\"\",'TA Indicator Bank'!AQ151)","v":0},{"$f":"IF(ISBLANK('TA Indicator Bank'!AR151),\"\",'TA Indicator Bank'!AR151)","v":1},{"$f":"IF(ISBLANK('TA Indicator Bank'!AS151),\"\",'TA Indicator Bank'!AS151)","v":0},{"$f":"IF(ISBLANK('TA Indicator Bank'!AT151),\"\",'TA Indicator Bank'!AT151)","v":0},{"$f":"IF(AND(J155=1,J$410=1),1,0)","v":0},{"$f":"IF(AND(K155=1,K$410=1),1,0)","v":0},{"$f":"IF(AND(L155=1,L$410=1),1,0)","v":0},{"$f":"IF(AND(M155=1,M$410=1),1,0)","v":0},{"$f":"IF(AND(N155=1,N$410=1),1,0)","v":0},{"$f":"IF(AND(O155=1,O$410=1),1,0)","v":0},{"$f":"IF(AND(P155=1,P$410=1),1,0)","v":0},{"$f":"IF(AND(Q155=1,Q$410=1),1,0)","v":0},{"$f":"IF(AND(R155=1,R$410=1),1,0)","v":0},{"$f":"IF(AND(S155=1,S$410=1),1,0)","v":0},{"$f":"IF(AND(T155=1,T$410=1),1,0)","v":0},{"$f":"IF(AND(U155=1,U$410=1),1,0)","v":0},{"$f":"IF(AND(V155=1,V$410=1),1,0)","v":0},{"$f":"IF(AND(W155=1,W$410=1),1,0)","v":0},1,{"$f":"IF(AND(X155=1,X$410=1),1,0)","v":0},{"$f":"IF(AND(Y155=1,Y$410=1),1,0)","v":0},{"$f":"IF(AND(Z155=1,Z$410=1),1,0)","v":0},{"$f":"IF(AND(AA155=1,AA$410=1),1,0)","v":0},{"$f":"IF(AND(AB155=1,AB$410=1),1,0)","v":0},{"$f":"IF(AND(AC155=1,AC$410=1),1,0)","v":1},{"$f":"IF(AND(AD155=1,AD$410=1),1,0)","v":0},{"$f":"IF(AND(AE155=1,AE$410=1),1,0)","v":0},{"$f":"IF(AND(AF155=1,AF$410=1),1,0)","v":0},1,{"$f":"IF(AND(AG155=1,AG$410=1),1,0)","v":0},{"$f":"IF(AND(AH155=1,AH$410=1),1,0)","v":0},{"$f":"IF(AND(AI155=1,AI$410=1),1,0)","v":0},{"$f":"IF(AND(AJ155=1,AJ$410=1),1,0)","v":0},{"$f":"IF(AND(AK155=1,AK$410=1),1,0)","v":0},{"$f":"IF(AND(AL155=1,AL$410=1),1,0)","v":0},{"$f":"IF(AND(AM155=1,AM$410=1),1,0)","v":0},{"$f":"IF(AND(AN155=1,AN$410=1),1,0)","v":0},{"$f":"IF(AND(AO155=1,AO$410=1),1,0)","v":0},1,{"$f":"IF(AND(AP155=1,AP$410=1),1,0)","v":0},{"$f":"IF(AND(AQ155=1,AQ$410=1),1,0)","v":0},{"$f":"IF(AND(AR155=1,AR$410=1),1,0)","v":1},{"$f":"IF(AND(AS155=1,AS$410=1),1,0)","v":0},{"$f":"IF(AND(AT155=1,AT$410=1),1,0)","v":0},1,1,147,147,{"$f":"IFERROR(SMALL($CL$9:$CL$408,CK155),\"\")","v":147},{"$f":"IFERROR(INDEX($B$9:$I$408,$CM155,COLUMNS($CN$9:CN155)),\"\")","v":"TA147"},{"$f":"IFERROR(INDEX($B$9:$I$408,$CM155,COLUMNS($CN$9:CO155)),\"\")","v":"Number of projects managed by certain unit"},{"$f":"IFERROR(INDEX($B$9:$I$408,$CM155,COLUMNS($CN$9:CP155)),\"\")","v":"-"},{"$f":"IFERROR(INDEX($B$9:$I$408,$CM155,COLUMNS($CN$9:CQ155)),\"\")","v":"Output"},{"$f":"IFERROR(INDEX($B$9:$I$408,$CM155,COLUMNS($CN$9:CR155)),\"\")","v":"-"},{"$f":"IFERROR(INDEX($B$9:$I$408,$CM155,COLUMNS($CN$9:CS155)),\"\")","v":"Project development support"},{"$f":"IFERROR(INDEX($B$9:$I$408,$CM155,COLUMNS($CN$9:CT155)),\"\")","v":"-"},{"$f":"IFERROR(INDEX($B$9:$I$408,$CM155,COLUMNS($CN$9:CU155)),\"\")","v":"Number"}]
[null,{"$f":"IF(ISBLANK('TA Indicator Bank'!B152),\"\",'TA Indicator Bank'!B152)","v":"TA148"},{"$f":"IF(ISBLANK('TA Indicator Bank'!C152),\"\",'TA Indicator Bank'!C152)","v":"Specified process management structures in place"},{"$f":"IF(ISBLANK('TA Indicator Bank'!D152),\"\",'TA Indicator Bank'!D152)","v":"-"},{"$f":"IF(ISBLANK('TA Indicator Bank'!E152),\"\",'TA Indicator Bank'!E152)","v":"Output"},{"$f":"IF(ISBLANK('TA Indicator Bank'!F152),\"\",'TA Indicator Bank'!F152)","v":"-"},{"$f":"IF(ISBLANK('TA Indicator Bank'!G152),\"\",'TA Indicator Bank'!G152)","v":"Process/asset operation support"},{"$f":"IF(ISBLANK('TA Indicator Bank'!H152),\"\",'TA Indicator Bank'!H152)","v":"-"},{"$f":"IF(ISBLANK('TA Indicator Bank'!I152),\"\",'TA Indicator Bank'!I152)","v":"Yes/No"},{"$f":"IF(ISBLANK('TA Indicator Bank'!J152),\"\",'TA Indicator Bank'!J152)","v":0},{"$f":"IF(ISBLANK('TA Indicator Bank'!K152),\"\",'TA Indicator Bank'!K152)","v":0},{"$f":"IF(ISBLANK('TA Indicator Bank'!L152),\"\",'TA Indicator Bank'!L152)","v":0},{"$f":"IF(ISBLANK('TA Indicator Bank'!M152),\"\",'TA Indicator Bank'!M152)","v":0},{"$f":"IF(ISBLANK('TA Indicator Bank'!N152),\"\",'TA Indicator Bank'!N152)","v":0},{"$f":"IF(ISBLANK('TA Indicator Bank'!O152),\"\",'TA Indicator Bank'!O152)","v":0},{"$f":"IF(ISBLANK('TA Indicator Bank'!P152),\"\",'TA Indicator Bank'!P152)","v":0},{"$f":"IF(ISBLANK('TA Indicator Bank'!Q152),\"\",'TA Indicator Bank'!Q152)","v":0},{"$f":"IF(ISBLANK('TA Indicator Bank'!R152),\"\",'TA Indicator Bank'!R152)","v":0},{"$f":"IF(ISBLANK('TA Indicator Bank'!S152),\"\",'TA Indicator Bank'!S152)","v":0},{"$f":"IF(ISBLANK('TA Indicator Bank'!T152),\"\",'TA Indicator Bank'!T152)","v":0},{"$f":"IF(ISBLANK('TA Indicator Bank'!U152),\"\",'TA Indicator Bank'!U152)","v":0},{"$f":"IF(ISBLANK('TA Indicator Bank'!V152),\"\",'TA Indicator Bank'!V152)","v":0},{"$f":"IF(ISBLANK('TA Indicator Bank'!W152),\"\",'TA Indicator Bank'!W152)","v":0},{"$f":"IF(ISBLANK('TA Indicator Bank'!X152),\"\",'TA Indicator Bank'!X152)","v":0},{"$f":"IF(ISBLANK('TA Indicator Bank'!Y152),\"\",'TA Indicator Bank'!Y152)","v":0},{"$f":"IF(ISBLANK('TA Indicator Bank'!Z152),\"\",'TA Indicator Bank'!Z152)","v":0},{"$f":"IF(ISBLANK('TA Indicator Bank'!AA152),\"\",'TA Indicator Bank'!AA152)","v":0},{"$f":"IF(ISBLANK('TA Indicator Bank'!AB152),\"\",'TA Indicator Bank'!AB152)","v":0},{"$f":"IF(ISBLANK('TA Indicator Bank'!AC152),\"\",'TA Indicator Bank'!AC152)","v":0},{"$f":"IF(ISBLANK('TA Indicator Bank'!AD152),\"\",'TA Indicator Bank'!AD152)","v":1},{"$f":"IF(ISBLANK('TA Indicator Bank'!AE152),\"\",'TA Indicator Bank'!AE152)","v":0},{"$f":"IF(ISBLANK('TA Indicator Bank'!AF152),\"\",'TA Indicator Bank'!AF152)","v":0},{"$f":"IF(ISBLANK('TA Indicator Bank'!AG152),\"\",'TA Indicator Bank'!AG152)","v":0},{"$f":"IF(ISBLANK('TA Indicator Bank'!AH152),\"\",'TA Indicator Bank'!AH152)","v":0},{"$f":"IF(ISBLANK('TA Indicator Bank'!AI152),\"\",'TA Indicator Bank'!AI152)","v":0},{"$f":"IF(ISBLANK('TA Indicator Bank'!AJ152),\"\",'TA Indicator Bank'!AJ152)","v":0},{"$f":"IF(ISBLANK('TA Indicator Bank'!AK152),\"\",'TA Indicator Bank'!AK152)","v":0},{"$f":"IF(ISBLANK('TA Indicator Bank'!AL152),\"\",'TA Indicator Bank'!AL152)","v":0},{"$f":"IF(ISBLANK('TA Indicator Bank'!AM152),\"\",'TA Indicator Bank'!AM152)","v":0},{"$f":"IF(ISBLANK('TA Indicator Bank'!AN152),\"\",'TA Indicator Bank'!AN152)","v":0},{"$f":"IF(ISBLANK('TA Indicator Bank'!AO152),\"\",'TA Indicator Bank'!AO152)","v":0},{"$f":"IF(ISBLANK('TA Indicator Bank'!AP152),\"\",'TA Indicator Bank'!AP152)","v":0},{"$f":"IF(ISBLANK('TA Indicator Bank'!AQ152),\"\",'TA Indicator Bank'!AQ152)","v":0},{"$f":"IF(ISBLANK('TA Indicator Bank'!AR152),\"\",'TA Indicator Bank'!AR152)","v":1},{"$f":"IF(ISBLANK('TA Indicator Bank'!AS152),\"\",'TA Indicator Bank'!AS152)","v":0},{"$f":"IF(ISBLANK('TA Indicator Bank'!AT152),\"\",'TA Indicator Bank'!AT152)","v":0},{"$f":"IF(AND(J156=1,J$410=1),1,0)","v":0},{"$f":"IF(AND(K156=1,K$410=1),1,0)","v":0},{"$f":"IF(AND(L156=1,L$410=1),1,0)","v":0},{"$f":"IF(AND(M156=1,M$410=1),1,0)","v":0},{"$f":"IF(AND(N156=1,N$410=1),1,0)","v":0},{"$f":"IF(AND(O156=1,O$410=1),1,0)","v":0},{"$f":"IF(AND(P156=1,P$410=1),1,0)","v":0},{"$f":"IF(AND(Q156=1,Q$410=1),1,0)","v":0},{"$f":"IF(AND(R156=1,R$410=1),1,0)","v":0},{"$f":"IF(AND(S156=1,S$410=1),1,0)","v":0},{"$f":"IF(AND(T156=1,T$410=1),1,0)","v":0},{"$f":"IF(AND(U156=1,U$410=1),1,0)","v":0},{"$f":"IF(AND(V156=1,V$410=1),1,0)","v":0},{"$f":"IF(AND(W156=1,W$410=1),1,0)","v":0},1,{"$f":"IF(AND(X156=1,X$410=1),1,0)","v":0},{"$f":"IF(AND(Y156=1,Y$410=1),1,0)","v":0},{"$f":"IF(AND(Z156=1,Z$410=1),1,0)","v":0},{"$f":"IF(AND(AA156=1,AA$410=1),1,0)","v":0},{"$f":"IF(AND(AB156=1,AB$410=1),1,0)","v":0},{"$f":"IF(AND(AC156=1,AC$410=1),1,0)","v":0},{"$f":"IF(AND(AD156=1,AD$410=1),1,0)","v":1},{"$f":"IF(AND(AE156=1,AE$410=1),1,0)","v":0},{"$f":"IF(AND(AF156=1,AF$410=1),1,0)","v":0},1,{"$f":"IF(AND(AG156=1,AG$410=1),1,0)","v":0},{"$f":"IF(AND(AH156=1,AH$410=1),1,0)","v":0},{"$f":"IF(AND(AI156=1,AI$410=1),1,0)","v":0},{"$f":"IF(AND(AJ156=1,AJ$410=1),1,0)","v":0},{"$f":"IF(AND(AK156=1,AK$410=1),1,0)","v":0},{"$f":"IF(AND(AL156=1,AL$410=1),1,0)","v":0},{"$f":"IF(AND(AM156=1,AM$410=1),1,0)","v":0},{"$f":"IF(AND(AN156=1,AN$410=1),1,0)","v":0},{"$f":"IF(AND(AO156=1,AO$410=1),1,0)","v":0},1,{"$f":"IF(AND(AP156=1,AP$410=1),1,0)","v":0},{"$f":"IF(AND(AQ156=1,AQ$410=1),1,0)","v":0},{"$f":"IF(AND(AR156=1,AR$410=1),1,0)","v":1},{"$f":"IF(AND(AS156=1,AS$410=1),1,0)","v":0},{"$f":"IF(AND(AT156=1,AT$410=1),1,0)","v":0},1,1,148,148,{"$f":"IFERROR(SMALL($CL$9:$CL$408,CK156),\"\")","v":148},{"$f":"IFERROR(INDEX($B$9:$I$408,$CM156,COLUMNS($CN$9:CN156)),\"\")","v":"TA148"},{"$f":"IFERROR(INDEX($B$9:$I$408,$CM156,COLUMNS($CN$9:CO156)),\"\")","v":"Specified process management structures in place"},{"$f":"IFERROR(INDEX($B$9:$I$408,$CM156,COLUMNS($CN$9:CP156)),\"\")","v":"-"},{"$f":"IFERROR(INDEX($B$9:$I$408,$CM156,COLUMNS($CN$9:CQ156)),\"\")","v":"Output"},{"$f":"IFERROR(INDEX($B$9:$I$408,$CM156,COLUMNS($CN$9:CR156)),\"\")","v":"-"},{"$f":"IFERROR(INDEX($B$9:$I$408,$CM156,COLUMNS($CN$9:CS156)),\"\")","v":"Process/asset operation support"},{"$f":"IFERROR(INDEX($B$9:$I$408,$CM156,COLUMNS($CN$9:CT156)),\"\")","v":"-"},{"$f":"IFERROR(INDEX($B$9:$I$408,$CM156,COLUMNS($CN$9:CU156)),\"\")","v":"Yes/No"}]
[null,{"$f":"IF(ISBLANK('TA Indicator Bank'!B153),\"\",'TA Indicator Bank'!B153)","v":"TA149"},{"$f":"IF(ISBLANK('TA Indicator Bank'!C153),\"\",'TA Indicator Bank'!C153)","v":"Process documents are produced (and publicly available)"},{"$f":"IF(ISBLANK('TA Indicator Bank'!D153),\"\",'TA Indicator Bank'!D153)","v":"-"},{"$f":"IF(ISBLANK('TA Indicator Bank'!E153),\"\",'TA Indicator Bank'!E153)","v":"Output"},{"$f":"IF(ISBLANK('TA Indicator Bank'!F153),\"\",'TA Indicator Bank'!F153)","v":"-"},{"$f":"IF(ISBLANK('TA Indicator Bank'!G153),\"\",'TA Indicator Bank'!G153)","v":"Process/asset operation support"},{"$f":"IF(ISBLANK('TA Indicator Bank'!H153),\"\",'TA Indicator Bank'!H153)","v":"-"},{"$f":"IF(ISBLANK('TA Indicator Bank'!I153),\"\",'TA Indicator Bank'!I153)","v":"Yes/No"},{"$f":"IF(ISBLANK('TA Indicator Bank'!J153),\"\",'TA Indicator Bank'!J153)","v":0},{"$f":"IF(ISBLANK('TA Indicator Bank'!K153),\"\",'TA Indicator Bank'!K153)","v":0},{"$f":"IF(ISBLANK('TA Indicator Bank'!L153),\"\",'TA Indicator Bank'!L153)","v":0},{"$f":"IF(ISBLANK('TA Indicator Bank'!M153),\"\",'TA Indicator Bank'!M153)","v":0},{"$f":"IF(ISBLANK('TA Indicator Bank'!N153),\"\",'TA Indicator Bank'!N153)","v":0},{"$f":"IF(ISBLANK('TA Indicator Bank'!O153),\"\",'TA Indicator Bank'!O153)","v":0},{"$f":"IF(ISBLANK('TA Indicator Bank'!P153),\"\",'TA Indicator Bank'!P153)","v":0},{"$f":"IF(ISBLANK('TA Indicator Bank'!Q153),\"\",'TA Indicator Bank'!Q153)","v":0},{"$f":"IF(ISBLANK('TA Indicator Bank'!R153),\"\",'TA Indicator Bank'!R153)","v":0},{"$f":"IF(ISBLANK('TA Indicator Bank'!S153),\"\",'TA Indicator Bank'!S153)","v":0},{"$f":"IF(ISBLANK('TA Indicator Bank'!T153),\"\",'TA Indicator Bank'!T153)","v":0},{"$f":"IF(ISBLANK('TA Indicator Bank'!U153),\"\",'TA Indicator Bank'!U153)","v":0},{"$f":"IF(ISBLANK('TA Indicator Bank'!V153),\"\",'TA Indicator Bank'!V153)","v":0},{"$f":"IF(ISBLANK('TA Indicator Bank'!W153),\"\",'TA Indicator Bank'!W153)","v":0},{"$f":"IF(ISBLANK('TA Indicator Bank'!X153),\"\",'TA Indicator Bank'!X153)","v":0},{"$f":"IF(ISBLANK('TA Indicator Bank'!Y153),\"\",'TA Indicator Bank'!Y153)","v":0},{"$f":"IF(ISBLANK('TA Indicator Bank'!Z153),\"\",'TA Indicator Bank'!Z153)","v":0},{"$f":"IF(ISBLANK('TA Indicator Bank'!AA153),\"\",'TA Indicator Bank'!AA153)","v":0},{"$f":"IF(ISBLANK('TA Indicator Bank'!AB153),\"\",'TA Indicator Bank'!AB153)","v":0},{"$f":"IF(ISBLANK('TA Indicator Bank'!AC153),\"\",'TA Indicator Bank'!AC153)","v":0},{"$f":"IF(ISBLANK('TA Indicator Bank'!AD153),\"\",'TA Indicator Bank'!AD153)","v":1},{"$f":"IF(ISBLANK('TA Indicator Bank'!AE153),\"\",'TA Indicator Bank'!AE153)","v":0},{"$f":"IF(ISBLANK('TA Indicator Bank'!AF153),\"\",'TA Indicator Bank'!AF153)","v":0},{"$f":"IF(ISBLANK('TA Indicator Bank'!AG153),\"\",'TA Indicator Bank'!AG153)","v":0},{"$f":"IF(ISBLANK('TA Indicator Bank'!AH153),\"\",'TA Indicator Bank'!AH153)","v":0},{"$f":"IF(ISBLANK('TA Indicator Bank'!AI153),\"\",'TA Indicator Bank'!AI153)","v":0},{"$f":"IF(ISBLANK('TA Indicator Bank'!AJ153),\"\",'TA Indicator Bank'!AJ153)","v":0},{"$f":"IF(ISBLANK('TA Indicator Bank'!AK153),\"\",'TA Indicator Bank'!AK153)","v":0},{"$f":"IF(ISBLANK('TA Indicator Bank'!AL153),\"\",'TA Indicator Bank'!AL153)","v":0},{"$f":"IF(ISBLANK('TA Indicator Bank'!AM153),\"\",'TA Indicator Bank'!AM153)","v":0},{"$f":"IF(ISBLANK('TA Indicator Bank'!AN153),\"\",'TA Indicator Bank'!AN153)","v":0},{"$f":"IF(ISBLANK('TA Indicator Bank'!AO153),\"\",'TA Indicator Bank'!AO153)","v":0},{"$f":"IF(ISBLANK('TA Indicator Bank'!AP153),\"\",'TA Indicator Bank'!AP153)","v":0},{"$f":"IF(ISBLANK('TA Indicator Bank'!AQ153),\"\",'TA Indicator Bank'!AQ153)","v":0},{"$f":"IF(ISBLANK('TA Indicator Bank'!AR153),\"\",'TA Indicator Bank'!AR153)","v":1},{"$f":"IF(ISBLANK('TA Indicator Bank'!AS153),\"\",'TA Indicator Bank'!AS153)","v":0},{"$f":"IF(ISBLANK('TA Indicator Bank'!AT153),\"\",'TA Indicator Bank'!AT153)","v":0},{"$f":"IF(AND(J157=1,J$410=1),1,0)","v":0},{"$f":"IF(AND(K157=1,K$410=1),1,0)","v":0},{"$f":"IF(AND(L157=1,L$410=1),1,0)","v":0},{"$f":"IF(AND(M157=1,M$410=1),1,0)","v":0},{"$f":"IF(AND(N157=1,N$410=1),1,0)","v":0},{"$f":"IF(AND(O157=1,O$410=1),1,0)","v":0},{"$f":"IF(AND(P157=1,P$410=1),1,0)","v":0},{"$f":"IF(AND(Q157=1,Q$410=1),1,0)","v":0},{"$f":"IF(AND(R157=1,R$410=1),1,0)","v":0},{"$f":"IF(AND(S157=1,S$410=1),1,0)","v":0},{"$f":"IF(AND(T157=1,T$410=1),1,0)","v":0},{"$f":"IF(AND(U157=1,U$410=1),1,0)","v":0},{"$f":"IF(AND(V157=1,V$410=1),1,0)","v":0},{"$f":"IF(AND(W157=1,W$410=1),1,0)","v":0},1,{"$f":"IF(AND(X157=1,X$410=1),1,0)","v":0},{"$f":"IF(AND(Y157=1,Y$410=1),1,0)","v":0},{"$f":"IF(AND(Z157=1,Z$410=1),1,0)","v":0},{"$f":"IF(AND(AA157=1,AA$410=1),1,0)","v":0},{"$f":"IF(AND(AB157=1,AB$410=1),1,0)","v":0},{"$f":"IF(AND(AC157=1,AC$410=1),1,0)","v":0},{"$f":"IF(AND(AD157=1,AD$410=1),1,0)","v":1},{"$f":"IF(AND(AE157=1,AE$410=1),1,0)","v":0},{"$f":"IF(AND(AF157=1,AF$410=1),1,0)","v":0},1,{"$f":"IF(AND(AG157=1,AG$410=1),1,0)","v":0},{"$f":"IF(AND(AH157=1,AH$410=1),1,0)","v":0},{"$f":"IF(AND(AI157=1,AI$410=1),1,0)","v":0},{"$f":"IF(AND(AJ157=1,AJ$410=1),1,0)","v":0},{"$f":"IF(AND(AK157=1,AK$410=1),1,0)","v":0},{"$f":"IF(AND(AL157=1,AL$410=1),1,0)","v":0},{"$f":"IF(AND(AM157=1,AM$410=1),1,0)","v":0},{"$f":"IF(AND(AN157=1,AN$410=1),1,0)","v":0},{"$f":"IF(AND(AO157=1,AO$410=1),1,0)","v":0},1,{"$f":"IF(AND(AP157=1,AP$410=1),1,0)","v":0},{"$f":"IF(AND(AQ157=1,AQ$410=1),1,0)","v":0},{"$f":"IF(AND(AR157=1,AR$410=1),1,0)","v":1},{"$f":"IF(AND(AS157=1,AS$410=1),1,0)","v":0},{"$f":"IF(AND(AT157=1,AT$410=1),1,0)","v":0},1,1,149,149,{"$f":"IFERROR(SMALL($CL$9:$CL$408,CK157),\"\")","v":149},{"$f":"IFERROR(INDEX($B$9:$I$408,$CM157,COLUMNS($CN$9:CN157)),\"\")","v":"TA149"},{"$f":"IFERROR(INDEX($B$9:$I$408,$CM157,COLUMNS($CN$9:CO157)),\"\")","v":"Process documents are produced (and publicly available)"},{"$f":"IFERROR(INDEX($B$9:$I$408,$CM157,COLUMNS($CN$9:CP157)),\"\")","v":"-"},{"$f":"IFERROR(INDEX($B$9:$I$408,$CM157,COLUMNS($CN$9:CQ157)),\"\")","v":"Output"},{"$f":"IFERROR(INDEX($B$9:$I$408,$CM157,COLUMNS($CN$9:CR157)),\"\")","v":"-"},{"$f":"IFERROR(INDEX($B$9:$I$408,$CM157,COLUMNS($CN$9:CS157)),\"\")","v":"Process/asset operation support"},{"$f":"IFERROR(INDEX($B$9:$I$408,$CM157,COLUMNS($CN$9:CT157)),\"\")","v":"-"},{"$f":"IFERROR(INDEX($B$9:$I$408,$CM157,COLUMNS($CN$9:CU157)),\"\")","v":"Yes/No"}]
[null,{"$f":"IF(ISBLANK('TA Indicator Bank'!B154),\"\",'TA Indicator Bank'!B154)","v":"TA150"},{"$f":"IF(ISBLANK('TA Indicator Bank'!C154),\"\",'TA Indicator Bank'!C154)","v":"Percentage of participants that use or comply with certain elements required in project/process plans"},{"$f":"IF(ISBLANK('TA Indicator Bank'!D154),\"\",'TA Indicator Bank'!D154)","v":"-"},{"$f":"IF(ISBLANK('TA Indicator Bank'!E154),\"\",'TA Indicator Bank'!E154)","v":"Output"},{"$f":"IF(ISBLANK('TA Indicator Bank'!F154),\"\",'TA Indicator Bank'!F154)","v":"-"},{"$f":"IF(ISBLANK('TA Indicator Bank'!G154),\"\",'TA Indicator Bank'!G154)","v":"Process/asset operation support"},{"$f":"IF(ISBLANK('TA Indicator Bank'!H154),\"\",'TA Indicator Bank'!H154)","v":"-"},{"$f":"IF(ISBLANK('TA Indicator Bank'!I154),\"\",'TA Indicator Bank'!I154)","v":""},{"$f":"IF(ISBLANK('TA Indicator Bank'!J154),\"\",'TA Indicator Bank'!J154)","v":0},{"$f":"IF(ISBLANK('TA Indicator Bank'!K154),\"\",'TA Indicator Bank'!K154)","v":0},{"$f":"IF(ISBLANK('TA Indicator Bank'!L154),\"\",'TA Indicator Bank'!L154)","v":0},{"$f":"IF(ISBLANK('TA Indicator Bank'!M154),\"\",'TA Indicator Bank'!M154)","v":0},{"$f":"IF(ISBLANK('TA Indicator Bank'!N154),\"\",'TA Indicator Bank'!N154)","v":0},{"$f":"IF(ISBLANK('TA Indicator Bank'!O154),\"\",'TA Indicator Bank'!O154)","v":0},{"$f":"IF(ISBLANK('TA Indicator Bank'!P154),\"\",'TA Indicator Bank'!P154)","v":0},{"$f":"IF(ISBLANK('TA Indicator Bank'!Q154),\"\",'TA Indicator Bank'!Q154)","v":0},{"$f":"IF(ISBLANK('TA Indicator Bank'!R154),\"\",'TA Indicator Bank'!R154)","v":0},{"$f":"IF(ISBLANK('TA Indicator Bank'!S154),\"\",'TA Indicator Bank'!S154)","v":0},{"$f":"IF(ISBLANK('TA Indicator Bank'!T154),\"\",'TA Indicator Bank'!T154)","v":0},{"$f":"IF(ISBLANK('TA Indicator Bank'!U154),\"\",'TA Indicator Bank'!U154)","v":0},{"$f":"IF(ISBLANK('TA Indicator Bank'!V154),\"\",'TA Indicator Bank'!V154)","v":0},{"$f":"IF(ISBLANK('TA Indicator Bank'!W154),\"\",'TA Indicator Bank'!W154)","v":0},{"$f":"IF(ISBLANK('TA Indicator Bank'!X154),\"\",'TA Indicator Bank'!X154)","v":0},{"$f":"IF(ISBLANK('TA Indicator Bank'!Y154),\"\",'TA Indicator Bank'!Y154)","v":0},{"$f":"IF(ISBLANK('TA Indicator Bank'!Z154),\"\",'TA Indicator Bank'!Z154)","v":0},{"$f":"IF(ISBLANK('TA Indicator Bank'!AA154),\"\",'TA Indicator Bank'!AA154)","v":0},{"$f":"IF(ISBLANK('TA Indicator Bank'!AB154),\"\",'TA Indicator Bank'!AB154)","v":0},{"$f":"IF(ISBLANK('TA Indicator Bank'!AC154),\"\",'TA Indicator Bank'!AC154)","v":0},{"$f":"IF(ISBLANK('TA Indicator Bank'!AD154),\"\",'TA Indicator Bank'!AD154)","v":1},{"$f":"IF(ISBLANK('TA Indicator Bank'!AE154),\"\",'TA Indicator Bank'!AE154)","v":0},{"$f":"IF(ISBLANK('TA Indicator Bank'!AF154),\"\",'TA Indicator Bank'!AF154)","v":0},{"$f":"IF(ISBLANK('TA Indicator Bank'!AG154),\"\",'TA Indicator Bank'!AG154)","v":0},{"$f":"IF(ISBLANK('TA Indicator Bank'!AH154),\"\",'TA Indicator Bank'!AH154)","v":0},{"$f":"IF(ISBLANK('TA Indicator Bank'!AI154),\"\",'TA Indicator Bank'!AI154)","v":0},{"$f":"IF(ISBLANK('TA Indicator Bank'!AJ154),\"\",'TA Indicator Bank'!AJ154)","v":0},{"$f":"IF(ISBLANK('TA Indicator Bank'!AK154),\"\",'TA Indicator Bank'!AK154)","v":0},{"$f":"IF(ISBLANK('TA Indicator Bank'!AL154),\"\",'TA Indicator Bank'!AL154)","v":0},{"$f":"IF(ISBLANK('TA Indicator Bank'!AM154),\"\",'TA Indicator Bank'!AM154)","v":0},{"$f":"IF(ISBLANK('TA Indicator Bank'!AN154),\"\",'TA Indicator Bank'!AN154)","v":0},{"$f":"IF(ISBLANK('TA Indicator Bank'!AO154),\"\",'TA Indicator Bank'!AO154)","v":0},{"$f":"IF(ISBLANK('TA Indicator Bank'!AP154),\"\",'TA Indicator Bank'!AP154)","v":0},{"$f":"IF(ISBLANK('TA Indicator Bank'!AQ154),\"\",'TA Indicator Bank'!AQ154)","v":0},{"$f":"IF(ISBLANK('TA Indicator Bank'!AR154),\"\",'TA Indicator Bank'!AR154)","v":1},{"$f":"IF(ISBLANK('TA Indicator Bank'!AS154),\"\",'TA Indicator Bank'!AS154)","v":0},{"$f":"IF(ISBLANK('TA Indicator Bank'!AT154),\"\",'TA Indicator Bank'!AT154)","v":0},{"$f":"IF(AND(J158=1,J$410=1),1,0)","v":0},{"$f":"IF(AND(K158=1,K$410=1),1,0)","v":0},{"$f":"IF(AND(L158=1,L$410=1),1,0)","v":0},{"$f":"IF(AND(M158=1,M$410=1),1,0)","v":0},{"$f":"IF(AND(N158=1,N$410=1),1,0)","v":0},{"$f":"IF(AND(O158=1,O$410=1),1,0)","v":0},{"$f":"IF(AND(P158=1,P$410=1),1,0)","v":0},{"$f":"IF(AND(Q158=1,Q$410=1),1,0)","v":0},{"$f":"IF(AND(R158=1,R$410=1),1,0)","v":0},{"$f":"IF(AND(S158=1,S$410=1),1,0)","v":0},{"$f":"IF(AND(T158=1,T$410=1),1,0)","v":0},{"$f":"IF(AND(U158=1,U$410=1),1,0)","v":0},{"$f":"IF(AND(V158=1,V$410=1),1,0)","v":0},{"$f":"IF(AND(W158=1,W$410=1),1,0)","v":0},1,{"$f":"IF(AND(X158=1,X$410=1),1,0)","v":0},{"$f":"IF(AND(Y158=1,Y$410=1),1,0)","v":0},{"$f":"IF(AND(Z158=1,Z$410=1),1,0)","v":0},{"$f":"IF(AND(AA158=1,AA$410=1),1,0)","v":0},{"$f":"IF(AND(AB158=1,AB$410=1),1,0)","v":0},{"$f":"IF(AND(AC158=1,AC$410=1),1,0)","v":0},{"$f":"IF(AND(AD158=1,AD$410=1),1,0)","v":1},{"$f":"IF(AND(AE158=1,AE$410=1),1,0)","v":0},{"$f":"IF(AND(AF158=1,AF$410=1),1,0)","v":0},1,{"$f":"IF(AND(AG158=1,AG$410=1),1,0)","v":0},{"$f":"IF(AND(AH158=1,AH$410=1),1,0)","v":0},{"$f":"IF(AND(AI158=1,AI$410=1),1,0)","v":0},{"$f":"IF(AND(AJ158=1,AJ$410=1),1,0)","v":0},{"$f":"IF(AND(AK158=1,AK$410=1),1,0)","v":0},{"$f":"IF(AND(AL158=1,AL$410=1),1,0)","v":0},{"$f":"IF(AND(AM158=1,AM$410=1),1,0)","v":0},{"$f":"IF(AND(AN158=1,AN$410=1),1,0)","v":0},{"$f":"IF(AND(AO158=1,AO$410=1),1,0)","v":0},1,{"$f":"IF(AND(AP158=1,AP$410=1),1,0)","v":0},{"$f":"IF(AND(AQ158=1,AQ$410=1),1,0)","v":0},{"$f":"IF(AND(AR158=1,AR$410=1),1,0)","v":1},{"$f":"IF(AND(AS158=1,AS$410=1),1,0)","v":0},{"$f":"IF(AND(AT158=1,AT$410=1),1,0)","v":0},1,1,150,150,{"$f":"IFERROR(SMALL($CL$9:$CL$408,CK158),\"\")","v":150},{"$f":"IFERROR(INDEX($B$9:$I$408,$CM158,COLUMNS($CN$9:CN158)),\"\")","v":"TA150"},{"$f":"IFERROR(INDEX($B$9:$I$408,$CM158,COLUMNS($CN$9:CO158)),\"\")","v":"Percentage of participants that use or comply with certain elements required in project/process plans"},{"$f":"IFERROR(INDEX($B$9:$I$408,$CM158,COLUMNS($CN$9:CP158)),\"\")","v":"-"},{"$f":"IFERROR(INDEX($B$9:$I$408,$CM158,COLUMNS($CN$9:CQ158)),\"\")","v":"Output"},{"$f":"IFERROR(INDEX($B$9:$I$408,$CM158,COLUMNS($CN$9:CR158)),\"\")","v":"-"},{"$f":"IFERROR(INDEX($B$9:$I$408,$CM158,COLUMNS($CN$9:CS158)),\"\")","v":"Process/asset operation support"},{"$f":"IFERROR(INDEX($B$9:$I$408,$CM158,COLUMNS($CN$9:CT158)),\"\")","v":"-"},{"$f":"IFERROR(INDEX($B$9:$I$408,$CM158,COLUMNS($CN$9:CU158)),\"\")","v":""}]
[null,{"$f":"IF(ISBLANK('TA Indicator Bank'!B155),\"\",'TA Indicator Bank'!B155)","v":"TA151"},{"$f":"IF(ISBLANK('TA Indicator Bank'!C155),\"\",'TA Indicator Bank'!C155)","v":"Process management documents shared between participants"},{"$f":"IF(ISBLANK('TA Indicator Bank'!D155),\"\",'TA Indicator Bank'!D155)","v":"-"},{"$f":"IF(ISBLANK('TA Indicator Bank'!E155),\"\",'TA Indicator Bank'!E155)","v":"Output"},{"$f":"IF(ISBLANK('TA Indicator Bank'!F155),\"\",'TA Indicator Bank'!F155)","v":"-"},{"$f":"IF(ISBLANK('TA Indicator Bank'!G155),\"\",'TA Indicator Bank'!G155)","v":"Process/asset operation support"},{"$f":"IF(ISBLANK('TA Indicator Bank'!H155),\"\",'TA Indicator Bank'!H155)","v":"-"},{"$f":"IF(ISBLANK('TA Indicator Bank'!I155),\"\",'TA Indicator Bank'!I155)","v":"Yes/No"},{"$f":"IF(ISBLANK('TA Indicator Bank'!J155),\"\",'TA Indicator Bank'!J155)","v":0},{"$f":"IF(ISBLANK('TA Indicator Bank'!K155),\"\",'TA Indicator Bank'!K155)","v":0},{"$f":"IF(ISBLANK('TA Indicator Bank'!L155),\"\",'TA Indicator Bank'!L155)","v":0},{"$f":"IF(ISBLANK('TA Indicator Bank'!M155),\"\",'TA Indicator Bank'!M155)","v":0},{"$f":"IF(ISBLANK('TA Indicator Bank'!N155),\"\",'TA Indicator Bank'!N155)","v":0},{"$f":"IF(ISBLANK('TA Indicator Bank'!O155),\"\",'TA Indicator Bank'!O155)","v":0},{"$f":"IF(ISBLANK('TA Indicator Bank'!P155),\"\",'TA Indicator Bank'!P155)","v":0},{"$f":"IF(ISBLANK('TA Indicator Bank'!Q155),\"\",'TA Indicator Bank'!Q155)","v":0},{"$f":"IF(ISBLANK('TA Indicator Bank'!R155),\"\",'TA Indicator Bank'!R155)","v":0},{"$f":"IF(ISBLANK('TA Indicator Bank'!S155),\"\",'TA Indicator Bank'!S155)","v":0},{"$f":"IF(ISBLANK('TA Indicator Bank'!T155),\"\",'TA Indicator Bank'!T155)","v":0},{"$f":"IF(ISBLANK('TA Indicator Bank'!U155),\"\",'TA Indicator Bank'!U155)","v":0},{"$f":"IF(ISBLANK('TA Indicator Bank'!V155),\"\",'TA Indicator Bank'!V155)","v":0},{"$f":"IF(ISBLANK('TA Indicator Bank'!W155),\"\",'TA Indicator Bank'!W155)","v":0},{"$f":"IF(ISBLANK('TA Indicator Bank'!X155),\"\",'TA Indicator Bank'!X155)","v":0},{"$f":"IF(ISBLANK('TA Indicator Bank'!Y155),\"\",'TA Indicator Bank'!Y155)","v":0},{"$f":"IF(ISBLANK('TA Indicator Bank'!Z155),\"\",'TA Indicator Bank'!Z155)","v":0},{"$f":"IF(ISBLANK('TA Indicator Bank'!AA155),\"\",'TA Indicator Bank'!AA155)","v":0},{"$f":"IF(ISBLANK('TA Indicator Bank'!AB155),\"\",'TA Indicator Bank'!AB155)","v":0},{"$f":"IF(ISBLANK('TA Indicator Bank'!AC155),\"\",'TA Indicator Bank'!AC155)","v":0},{"$f":"IF(ISBLANK('TA Indicator Bank'!AD155),\"\",'TA Indicator Bank'!AD155)","v":1},{"$f":"IF(ISBLANK('TA Indicator Bank'!AE155),\"\",'TA Indicator Bank'!AE155)","v":0},{"$f":"IF(ISBLANK('TA Indicator Bank'!AF155),\"\",'TA Indicator Bank'!AF155)","v":0},{"$f":"IF(ISBLANK('TA Indicator Bank'!AG155),\"\",'TA Indicator Bank'!AG155)","v":0},{"$f":"IF(ISBLANK('TA Indicator Bank'!AH155),\"\",'TA Indicator Bank'!AH155)","v":0},{"$f":"IF(ISBLANK('TA Indicator Bank'!AI155),\"\",'TA Indicator Bank'!AI155)","v":0},{"$f":"IF(ISBLANK('TA Indicator Bank'!AJ155),\"\",'TA Indicator Bank'!AJ155)","v":0},{"$f":"IF(ISBLANK('TA Indicator Bank'!AK155),\"\",'TA Indicator Bank'!AK155)","v":0},{"$f":"IF(ISBLANK('TA Indicator Bank'!AL155),\"\",'TA Indicator Bank'!AL155)","v":0},{"$f":"IF(ISBLANK('TA Indicator Bank'!AM155),\"\",'TA Indicator Bank'!AM155)","v":0},{"$f":"IF(ISBLANK('TA Indicator Bank'!AN155),\"\",'TA Indicator Bank'!AN155)","v":0},{"$f":"IF(ISBLANK('TA Indicator Bank'!AO155),\"\",'TA Indicator Bank'!AO155)","v":0},{"$f":"IF(ISBLANK('TA Indicator Bank'!AP155),\"\",'TA Indicator Bank'!AP155)","v":0},{"$f":"IF(ISBLANK('TA Indicator Bank'!AQ155),\"\",'TA Indicator Bank'!AQ155)","v":0},{"$f":"IF(ISBLANK('TA Indicator Bank'!AR155),\"\",'TA Indicator Bank'!AR155)","v":1},{"$f":"IF(ISBLANK('TA Indicator Bank'!AS155),\"\",'TA Indicator Bank'!AS155)","v":0},{"$f":"IF(ISBLANK('TA Indicator Bank'!AT155),\"\",'TA Indicator Bank'!AT155)","v":0},{"$f":"IF(AND(J159=1,J$410=1),1,0)","v":0},{"$f":"IF(AND(K159=1,K$410=1),1,0)","v":0},{"$f":"IF(AND(L159=1,L$410=1),1,0)","v":0},{"$f":"IF(AND(M159=1,M$410=1),1,0)","v":0},{"$f":"IF(AND(N159=1,N$410=1),1,0)","v":0},{"$f":"IF(AND(O159=1,O$410=1),1,0)","v":0},{"$f":"IF(AND(P159=1,P$410=1),1,0)","v":0},{"$f":"IF(AND(Q159=1,Q$410=1),1,0)","v":0},{"$f":"IF(AND(R159=1,R$410=1),1,0)","v":0},{"$f":"IF(AND(S159=1,S$410=1),1,0)","v":0},{"$f":"IF(AND(T159=1,T$410=1),1,0)","v":0},{"$f":"IF(AND(U159=1,U$410=1),1,0)","v":0},{"$f":"IF(AND(V159=1,V$410=1),1,0)","v":0},{"$f":"IF(AND(W159=1,W$410=1),1,0)","v":0},1,{"$f":"IF(AND(X159=1,X$410=1),1,0)","v":0},{"$f":"IF(AND(Y159=1,Y$410=1),1,0)","v":0},{"$f":"IF(AND(Z159=1,Z$410=1),1,0)","v":0},{"$f":"IF(AND(AA159=1,AA$410=1),1,0)","v":0},{"$f":"IF(AND(AB159=1,AB$410=1),1,0)","v":0},{"$f":"IF(AND(AC159=1,AC$410=1),1,0)","v":0},{"$f":"IF(AND(AD159=1,AD$410=1),1,0)","v":1},{"$f":"IF(AND(AE159=1,AE$410=1),1,0)","v":0},{"$f":"IF(AND(AF159=1,AF$410=1),1,0)","v":0},1,{"$f":"IF(AND(AG159=1,AG$410=1),1,0)","v":0},{"$f":"IF(AND(AH159=1,AH$410=1),1,0)","v":0},{"$f":"IF(AND(AI159=1,AI$410=1),1,0)","v":0},{"$f":"IF(AND(AJ159=1,AJ$410=1),1,0)","v":0},{"$f":"IF(AND(AK159=1,AK$410=1),1,0)","v":0},{"$f":"IF(AND(AL159=1,AL$410=1),1,0)","v":0},{"$f":"IF(AND(AM159=1,AM$410=1),1,0)","v":0},{"$f":"IF(AND(AN159=1,AN$410=1),1,0)","v":0},{"$f":"IF(AND(AO159=1,AO$410=1),1,0)","v":0},1,{"$f":"IF(AND(AP159=1,AP$410=1),1,0)","v":0},{"$f":"IF(AND(AQ159=1,AQ$410=1),1,0)","v":0},{"$f":"IF(AND(AR159=1,AR$410=1),1,0)","v":1},{"$f":"IF(AND(AS159=1,AS$410=1),1,0)","v":0},{"$f":"IF(AND(AT159=1,AT$410=1),1,0)","v":0},1,1,151,151,{"$f":"IFERROR(SMALL($CL$9:$CL$408,CK159),\"\")","v":151},{"$f":"IFERROR(INDEX($B$9:$I$408,$CM159,COLUMNS($CN$9:CN159)),\"\")","v":"TA151"},{"$f":"IFERROR(INDEX($B$9:$I$408,$CM159,COLUMNS($CN$9:CO159)),\"\")","v":"Process management documents shared between participants"},{"$f":"IFERROR(INDEX($B$9:$I$408,$CM159,COLUMNS($CN$9:CP159)),\"\")","v":"-"},{"$f":"IFERROR(INDEX($B$9:$I$408,$CM159,COLUMNS($CN$9:CQ159)),\"\")","v":"Output"},{"$f":"IFERROR(INDEX($B$9:$I$408,$CM159,COLUMNS($CN$9:CR159)),\"\")","v":"-"},{"$f":"IFERROR(INDEX($B$9:$I$408,$CM159,COLUMNS($CN$9:CS159)),\"\")","v":"Process/asset operation support"},{"$f":"IFERROR(INDEX($B$9:$I$408,$CM159,COLUMNS($CN$9:CT159)),\"\")","v":"-"},{"$f":"IFERROR(INDEX($B$9:$I$408,$CM159,COLUMNS($CN$9:CU159)),\"\")","v":"Yes/No"}]
[null,{"$f":"IF(ISBLANK('TA Indicator Bank'!B156),\"\",'TA Indicator Bank'!B156)","v":"TA152"},{"$f":"IF(ISBLANK('TA Indicator Bank'!C156),\"\",'TA Indicator Bank'!C156)","v":"Understanding the level and reason for pass/fail/return of certain process management step"},{"$f":"IF(ISBLANK('TA Indicator Bank'!D156),\"\",'TA Indicator Bank'!D156)","v":"-"},{"$f":"IF(ISBLANK('TA Indicator Bank'!E156),\"\",'TA Indicator Bank'!E156)","v":"Output"},{"$f":"IF(ISBLANK('TA Indicator Bank'!F156),\"\",'TA Indicator Bank'!F156)","v":"-"},{"$f":"IF(ISBLANK('TA Indicator Bank'!G156),\"\",'TA Indicator Bank'!G156)","v":"Process/asset operation support"},{"$f":"IF(ISBLANK('TA Indicator Bank'!H156),\"\",'TA Indicator Bank'!H156)","v":"-"},{"$f":"IF(ISBLANK('TA Indicator Bank'!I156),\"\",'TA Indicator Bank'!I156)","v":"Narrative"},{"$f":"IF(ISBLANK('TA Indicator Bank'!J156),\"\",'TA Indicator Bank'!J156)","v":0},{"$f":"IF(ISBLANK('TA Indicator Bank'!K156),\"\",'TA Indicator Bank'!K156)","v":0},{"$f":"IF(ISBLANK('TA Indicator Bank'!L156),\"\",'TA Indicator Bank'!L156)","v":0},{"$f":"IF(ISBLANK('TA Indicator Bank'!M156),\"\",'TA Indicator Bank'!M156)","v":0},{"$f":"IF(ISBLANK('TA Indicator Bank'!N156),\"\",'TA Indicator Bank'!N156)","v":0},{"$f":"IF(ISBLANK('TA Indicator Bank'!O156),\"\",'TA Indicator Bank'!O156)","v":0},{"$f":"IF(ISBLANK('TA Indicator Bank'!P156),\"\",'TA Indicator Bank'!P156)","v":0},{"$f":"IF(ISBLANK('TA Indicator Bank'!Q156),\"\",'TA Indicator Bank'!Q156)","v":0},{"$f":"IF(ISBLANK('TA Indicator Bank'!R156),\"\",'TA Indicator Bank'!R156)","v":0},{"$f":"IF(ISBLANK('TA Indicator Bank'!S156),\"\",'TA Indicator Bank'!S156)","v":0},{"$f":"IF(ISBLANK('TA Indicator Bank'!T156),\"\",'TA Indicator Bank'!T156)","v":0},{"$f":"IF(ISBLANK('TA Indicator Bank'!U156),\"\",'TA Indicator Bank'!U156)","v":0},{"$f":"IF(ISBLANK('TA Indicator Bank'!V156),\"\",'TA Indicator Bank'!V156)","v":0},{"$f":"IF(ISBLANK('TA Indicator Bank'!W156),\"\",'TA Indicator Bank'!W156)","v":0},{"$f":"IF(ISBLANK('TA Indicator Bank'!X156),\"\",'TA Indicator Bank'!X156)","v":0},{"$f":"IF(ISBLANK('TA Indicator Bank'!Y156),\"\",'TA Indicator Bank'!Y156)","v":0},{"$f":"IF(ISBLANK('TA Indicator Bank'!Z156),\"\",'TA Indicator Bank'!Z156)","v":0},{"$f":"IF(ISBLANK('TA Indicator Bank'!AA156),\"\",'TA Indicator Bank'!AA156)","v":0},{"$f":"IF(ISBLANK('TA Indicator Bank'!AB156),\"\",'TA Indicator Bank'!AB156)","v":0},{"$f":"IF(ISBLANK('TA Indicator Bank'!AC156),\"\",'TA Indicator Bank'!AC156)","v":0},{"$f":"IF(ISBLANK('TA Indicator Bank'!AD156),\"\",'TA Indicator Bank'!AD156)","v":1},{"$f":"IF(ISBLANK('TA Indicator Bank'!AE156),\"\",'TA Indicator Bank'!AE156)","v":0},{"$f":"IF(ISBLANK('TA Indicator Bank'!AF156),\"\",'TA Indicator Bank'!AF156)","v":0},{"$f":"IF(ISBLANK('TA Indicator Bank'!AG156),\"\",'TA Indicator Bank'!AG156)","v":0},{"$f":"IF(ISBLANK('TA Indicator Bank'!AH156),\"\",'TA Indicator Bank'!AH156)","v":0},{"$f":"IF(ISBLANK('TA Indicator Bank'!AI156),\"\",'TA Indicator Bank'!AI156)","v":0},{"$f":"IF(ISBLANK('TA Indicator Bank'!AJ156),\"\",'TA Indicator Bank'!AJ156)","v":0},{"$f":"IF(ISBLANK('TA Indicator Bank'!AK156),\"\",'TA Indicator Bank'!AK156)","v":0},{"$f":"IF(ISBLANK('TA Indicator Bank'!AL156),\"\",'TA Indicator Bank'!AL156)","v":0},{"$f":"IF(ISBLANK('TA Indicator Bank'!AM156),\"\",'TA Indicator Bank'!AM156)","v":0},{"$f":"IF(ISBLANK('TA Indicator Bank'!AN156),\"\",'TA Indicator Bank'!AN156)","v":0},{"$f":"IF(ISBLANK('TA Indicator Bank'!AO156),\"\",'TA Indicator Bank'!AO156)","v":0},{"$f":"IF(ISBLANK('TA Indicator Bank'!AP156),\"\",'TA Indicator Bank'!AP156)","v":0},{"$f":"IF(ISBLANK('TA Indicator Bank'!AQ156),\"\",'TA Indicator Bank'!AQ156)","v":0},{"$f":"IF(ISBLANK('TA Indicator Bank'!AR156),\"\",'TA Indicator Bank'!AR156)","v":1},{"$f":"IF(ISBLANK('TA Indicator Bank'!AS156),\"\",'TA Indicator Bank'!AS156)","v":0},{"$f":"IF(ISBLANK('TA Indicator Bank'!AT156),\"\",'TA Indicator Bank'!AT156)","v":0},{"$f":"IF(AND(J160=1,J$410=1),1,0)","v":0},{"$f":"IF(AND(K160=1,K$410=1),1,0)","v":0},{"$f":"IF(AND(L160=1,L$410=1),1,0)","v":0},{"$f":"IF(AND(M160=1,M$410=1),1,0)","v":0},{"$f":"IF(AND(N160=1,N$410=1),1,0)","v":0},{"$f":"IF(AND(O160=1,O$410=1),1,0)","v":0},{"$f":"IF(AND(P160=1,P$410=1),1,0)","v":0},{"$f":"IF(AND(Q160=1,Q$410=1),1,0)","v":0},{"$f":"IF(AND(R160=1,R$410=1),1,0)","v":0},{"$f":"IF(AND(S160=1,S$410=1),1,0)","v":0},{"$f":"IF(AND(T160=1,T$410=1),1,0)","v":0},{"$f":"IF(AND(U160=1,U$410=1),1,0)","v":0},{"$f":"IF(AND(V160=1,V$410=1),1,0)","v":0},{"$f":"IF(AND(W160=1,W$410=1),1,0)","v":0},1,{"$f":"IF(AND(X160=1,X$410=1),1,0)","v":0},{"$f":"IF(AND(Y160=1,Y$410=1),1,0)","v":0},{"$f":"IF(AND(Z160=1,Z$410=1),1,0)","v":0},{"$f":"IF(AND(AA160=1,AA$410=1),1,0)","v":0},{"$f":"IF(AND(AB160=1,AB$410=1),1,0)","v":0},{"$f":"IF(AND(AC160=1,AC$410=1),1,0)","v":0},{"$f":"IF(AND(AD160=1,AD$410=1),1,0)","v":1},{"$f":"IF(AND(AE160=1,AE$410=1),1,0)","v":0},{"$f":"IF(AND(AF160=1,AF$410=1),1,0)","v":0},1,{"$f":"IF(AND(AG160=1,AG$410=1),1,0)","v":0},{"$f":"IF(AND(AH160=1,AH$410=1),1,0)","v":0},{"$f":"IF(AND(AI160=1,AI$410=1),1,0)","v":0},{"$f":"IF(AND(AJ160=1,AJ$410=1),1,0)","v":0},{"$f":"IF(AND(AK160=1,AK$410=1),1,0)","v":0},{"$f":"IF(AND(AL160=1,AL$410=1),1,0)","v":0},{"$f":"IF(AND(AM160=1,AM$410=1),1,0)","v":0},{"$f":"IF(AND(AN160=1,AN$410=1),1,0)","v":0},{"$f":"IF(AND(AO160=1,AO$410=1),1,0)","v":0},1,{"$f":"IF(AND(AP160=1,AP$410=1),1,0)","v":0},{"$f":"IF(AND(AQ160=1,AQ$410=1),1,0)","v":0},{"$f":"IF(AND(AR160=1,AR$410=1),1,0)","v":1},{"$f":"IF(AND(AS160=1,AS$410=1),1,0)","v":0},{"$f":"IF(AND(AT160=1,AT$410=1),1,0)","v":0},1,1,152,152,{"$f":"IFERROR(SMALL($CL$9:$CL$408,CK160),\"\")","v":152},{"$f":"IFERROR(INDEX($B$9:$I$408,$CM160,COLUMNS($CN$9:CN160)),\"\")","v":"TA152"},{"$f":"IFERROR(INDEX($B$9:$I$408,$CM160,COLUMNS($CN$9:CO160)),\"\")","v":"Understanding the level and reason for pass/fail/return of certain process management step"},{"$f":"IFERROR(INDEX($B$9:$I$408,$CM160,COLUMNS($CN$9:CP160)),\"\")","v":"-"},{"$f":"IFERROR(INDEX($B$9:$I$408,$CM160,COLUMNS($CN$9:CQ160)),\"\")","v":"Output"},{"$f":"IFERROR(INDEX($B$9:$I$408,$CM160,COLUMNS($CN$9:CR160)),\"\")","v":"-"},{"$f":"IFERROR(INDEX($B$9:$I$408,$CM160,COLUMNS($CN$9:CS160)),\"\")","v":"Process/asset operation support"},{"$f":"IFERROR(INDEX($B$9:$I$408,$CM160,COLUMNS($CN$9:CT160)),\"\")","v":"-"},{"$f":"IFERROR(INDEX($B$9:$I$408,$CM160,COLUMNS($CN$9:CU160)),\"\")","v":"Narrative"}]
[null,{"$f":"IF(ISBLANK('TA Indicator Bank'!B157),\"\",'TA Indicator Bank'!B157)","v":"TA153"},{"$f":"IF(ISBLANK('TA Indicator Bank'!C157),\"\",'TA Indicator Bank'!C157)","v":"(Number/percentage of) Projects that pass through certain stage that requires approval"},{"$f":"IF(ISBLANK('TA Indicator Bank'!D157),\"\",'TA Indicator Bank'!D157)","v":"Measures ability of projects to achieve milestones due to improved functioning"},{"$f":"IF(ISBLANK('TA Indicator Bank'!E157),\"\",'TA Indicator Bank'!E157)","v":"Output"},{"$f":"IF(ISBLANK('TA Indicator Bank'!F157),\"\",'TA Indicator Bank'!F157)","v":"-"},{"$f":"IF(ISBLANK('TA Indicator Bank'!G157),\"\",'TA Indicator Bank'!G157)","v":"Process/asset operation support"},{"$f":"IF(ISBLANK('TA Indicator Bank'!H157),\"\",'TA Indicator Bank'!H157)","v":"-"},{"$f":"IF(ISBLANK('TA Indicator Bank'!I157),\"\",'TA Indicator Bank'!I157)","v":"Number, Percentage"},{"$f":"IF(ISBLANK('TA Indicator Bank'!J157),\"\",'TA Indicator Bank'!J157)","v":0},{"$f":"IF(ISBLANK('TA Indicator Bank'!K157),\"\",'TA Indicator Bank'!K157)","v":0},{"$f":"IF(ISBLANK('TA Indicator Bank'!L157),\"\",'TA Indicator Bank'!L157)","v":0},{"$f":"IF(ISBLANK('TA Indicator Bank'!M157),\"\",'TA Indicator Bank'!M157)","v":0},{"$f":"IF(ISBLANK('TA Indicator Bank'!N157),\"\",'TA Indicator Bank'!N157)","v":0},{"$f":"IF(ISBLANK('TA Indicator Bank'!O157),\"\",'TA Indicator Bank'!O157)","v":0},{"$f":"IF(ISBLANK('TA Indicator Bank'!P157),\"\",'TA Indicator Bank'!P157)","v":0},{"$f":"IF(ISBLANK('TA Indicator Bank'!Q157),\"\",'TA Indicator Bank'!Q157)","v":0},{"$f":"IF(ISBLANK('TA Indicator Bank'!R157),\"\",'TA Indicator Bank'!R157)","v":0},{"$f":"IF(ISBLANK('TA Indicator Bank'!S157),\"\",'TA Indicator Bank'!S157)","v":0},{"$f":"IF(ISBLANK('TA Indicator Bank'!T157),\"\",'TA Indicator Bank'!T157)","v":0},{"$f":"IF(ISBLANK('TA Indicator Bank'!U157),\"\",'TA Indicator Bank'!U157)","v":0},{"$f":"IF(ISBLANK('TA Indicator Bank'!V157),\"\",'TA Indicator Bank'!V157)","v":0},{"$f":"IF(ISBLANK('TA Indicator Bank'!W157),\"\",'TA Indicator Bank'!W157)","v":0},{"$f":"IF(ISBLANK('TA Indicator Bank'!X157),\"\",'TA Indicator Bank'!X157)","v":0},{"$f":"IF(ISBLANK('TA Indicator Bank'!Y157),\"\",'TA Indicator Bank'!Y157)","v":0},{"$f":"IF(ISBLANK('TA Indicator Bank'!Z157),\"\",'TA Indicator Bank'!Z157)","v":0},{"$f":"IF(ISBLANK('TA Indicator Bank'!AA157),\"\",'TA Indicator Bank'!AA157)","v":0},{"$f":"IF(ISBLANK('TA Indicator Bank'!AB157),\"\",'TA Indicator Bank'!AB157)","v":0},{"$f":"IF(ISBLANK('TA Indicator Bank'!AC157),\"\",'TA Indicator Bank'!AC157)","v":0},{"$f":"IF(ISBLANK('TA Indicator Bank'!AD157),\"\",'TA Indicator Bank'!AD157)","v":1},{"$f":"IF(ISBLANK('TA Indicator Bank'!AE157),\"\",'TA Indicator Bank'!AE157)","v":0},{"$f":"IF(ISBLANK('TA Indicator Bank'!AF157),\"\",'TA Indicator Bank'!AF157)","v":0},{"$f":"IF(ISBLANK('TA Indicator Bank'!AG157),\"\",'TA Indicator Bank'!AG157)","v":0},{"$f":"IF(ISBLANK('TA Indicator Bank'!AH157),\"\",'TA Indicator Bank'!AH157)","v":0},{"$f":"IF(ISBLANK('TA Indicator Bank'!AI157),\"\",'TA Indicator Bank'!AI157)","v":0},{"$f":"IF(ISBLANK('TA Indicator Bank'!AJ157),\"\",'TA Indicator Bank'!AJ157)","v":0},{"$f":"IF(ISBLANK('TA Indicator Bank'!AK157),\"\",'TA Indicator Bank'!AK157)","v":0},{"$f":"IF(ISBLANK('TA Indicator Bank'!AL157),\"\",'TA Indicator Bank'!AL157)","v":0},{"$f":"IF(ISBLANK('TA Indicator Bank'!AM157),\"\",'TA Indicator Bank'!AM157)","v":0},{"$f":"IF(ISBLANK('TA Indicator Bank'!AN157),\"\",'TA Indicator Bank'!AN157)","v":0},{"$f":"IF(ISBLANK('TA Indicator Bank'!AO157),\"\",'TA Indicator Bank'!AO157)","v":0},{"$f":"IF(ISBLANK('TA Indicator Bank'!AP157),\"\",'TA Indicator Bank'!AP157)","v":0},{"$f":"IF(ISBLANK('TA Indicator Bank'!AQ157),\"\",'TA Indicator Bank'!AQ157)","v":0},{"$f":"IF(ISBLANK('TA Indicator Bank'!AR157),\"\",'TA Indicator Bank'!AR157)","v":1},{"$f":"IF(ISBLANK('TA Indicator Bank'!AS157),\"\",'TA Indicator Bank'!AS157)","v":0},{"$f":"IF(ISBLANK('TA Indicator Bank'!AT157),\"\",'TA Indicator Bank'!AT157)","v":0},{"$f":"IF(AND(J161=1,J$410=1),1,0)","v":0},{"$f":"IF(AND(K161=1,K$410=1),1,0)","v":0},{"$f":"IF(AND(L161=1,L$410=1),1,0)","v":0},{"$f":"IF(AND(M161=1,M$410=1),1,0)","v":0},{"$f":"IF(AND(N161=1,N$410=1),1,0)","v":0},{"$f":"IF(AND(O161=1,O$410=1),1,0)","v":0},{"$f":"IF(AND(P161=1,P$410=1),1,0)","v":0},{"$f":"IF(AND(Q161=1,Q$410=1),1,0)","v":0},{"$f":"IF(AND(R161=1,R$410=1),1,0)","v":0},{"$f":"IF(AND(S161=1,S$410=1),1,0)","v":0},{"$f":"IF(AND(T161=1,T$410=1),1,0)","v":0},{"$f":"IF(AND(U161=1,U$410=1),1,0)","v":0},{"$f":"IF(AND(V161=1,V$410=1),1,0)","v":0},{"$f":"IF(AND(W161=1,W$410=1),1,0)","v":0},1,{"$f":"IF(AND(X161=1,X$410=1),1,0)","v":0},{"$f":"IF(AND(Y161=1,Y$410=1),1,0)","v":0},{"$f":"IF(AND(Z161=1,Z$410=1),1,0)","v":0},{"$f":"IF(AND(AA161=1,AA$410=1),1,0)","v":0},{"$f":"IF(AND(AB161=1,AB$410=1),1,0)","v":0},{"$f":"IF(AND(AC161=1,AC$410=1),1,0)","v":0},{"$f":"IF(AND(AD161=1,AD$410=1),1,0)","v":1},{"$f":"IF(AND(AE161=1,AE$410=1),1,0)","v":0},{"$f":"IF(AND(AF161=1,AF$410=1),1,0)","v":0},1,{"$f":"IF(AND(AG161=1,AG$410=1),1,0)","v":0},{"$f":"IF(AND(AH161=1,AH$410=1),1,0)","v":0},{"$f":"IF(AND(AI161=1,AI$410=1),1,0)","v":0},{"$f":"IF(AND(AJ161=1,AJ$410=1),1,0)","v":0},{"$f":"IF(AND(AK161=1,AK$410=1),1,0)","v":0},{"$f":"IF(AND(AL161=1,AL$410=1),1,0)","v":0},{"$f":"IF(AND(AM161=1,AM$410=1),1,0)","v":0},{"$f":"IF(AND(AN161=1,AN$410=1),1,0)","v":0},{"$f":"IF(AND(AO161=1,AO$410=1),1,0)","v":0},1,{"$f":"IF(AND(AP161=1,AP$410=1),1,0)","v":0},{"$f":"IF(AND(AQ161=1,AQ$410=1),1,0)","v":0},{"$f":"IF(AND(AR161=1,AR$410=1),1,0)","v":1},{"$f":"IF(AND(AS161=1,AS$410=1),1,0)","v":0},{"$f":"IF(AND(AT161=1,AT$410=1),1,0)","v":0},1,1,153,153,{"$f":"IFERROR(SMALL($CL$9:$CL$408,CK161),\"\")","v":153},{"$f":"IFERROR(INDEX($B$9:$I$408,$CM161,COLUMNS($CN$9:CN161)),\"\")","v":"TA153"},{"$f":"IFERROR(INDEX($B$9:$I$408,$CM161,COLUMNS($CN$9:CO161)),\"\")","v":"(Number/percentage of) Projects that pass through certain stage that requires approval"},{"$f":"IFERROR(INDEX($B$9:$I$408,$CM161,COLUMNS($CN$9:CP161)),\"\")","v":"Measures ability of projects to achieve milestones due to improved functioning"},{"$f":"IFERROR(INDEX($B$9:$I$408,$CM161,COLUMNS($CN$9:CQ161)),\"\")","v":"Output"},{"$f":"IFERROR(INDEX($B$9:$I$408,$CM161,COLUMNS($CN$9:CR161)),\"\")","v":"-"},{"$f":"IFERROR(INDEX($B$9:$I$408,$CM161,COLUMNS($CN$9:CS161)),\"\")","v":"Process/asset operation support"},{"$f":"IFERROR(INDEX($B$9:$I$408,$CM161,COLUMNS($CN$9:CT161)),\"\")","v":"-"},{"$f":"IFERROR(INDEX($B$9:$I$408,$CM161,COLUMNS($CN$9:CU161)),\"\")","v":"Number, Percentage"}]
[null,{"$f":"IF(ISBLANK('TA Indicator Bank'!B158),\"\",'TA Indicator Bank'!B158)","v":"TA154"},{"$f":"IF(ISBLANK('TA Indicator Bank'!C158),\"\",'TA Indicator Bank'!C158)","v":"Sufficient resources for certain process management step available"},{"$f":"IF(ISBLANK('TA Indicator Bank'!D158),\"\",'TA Indicator Bank'!D158)","v":"-"},{"$f":"IF(ISBLANK('TA Indicator Bank'!E158),\"\",'TA Indicator Bank'!E158)","v":"Output"},{"$f":"IF(ISBLANK('TA Indicator Bank'!F158),\"\",'TA Indicator Bank'!F158)","v":"-"},{"$f":"IF(ISBLANK('TA Indicator Bank'!G158),\"\",'TA Indicator Bank'!G158)","v":"Process/asset operation support"},{"$f":"IF(ISBLANK('TA Indicator Bank'!H158),\"\",'TA Indicator Bank'!H158)","v":"-"},{"$f":"IF(ISBLANK('TA Indicator Bank'!I158),\"\",'TA Indicator Bank'!I158)","v":"Narrative"},{"$f":"IF(ISBLANK('TA Indicator Bank'!J158),\"\",'TA Indicator Bank'!J158)","v":0},{"$f":"IF(ISBLANK('TA Indicator Bank'!K158),\"\",'TA Indicator Bank'!K158)","v":0},{"$f":"IF(ISBLANK('TA Indicator Bank'!L158),\"\",'TA Indicator Bank'!L158)","v":0},{"$f":"IF(ISBLANK('TA Indicator Bank'!M158),\"\",'TA Indicator Bank'!M158)","v":0},{"$f":"IF(ISBLANK('TA Indicator Bank'!N158),\"\",'TA Indicator Bank'!N158)","v":0},{"$f":"IF(ISBLANK('TA Indicator Bank'!O158),\"\",'TA Indicator Bank'!O158)","v":0},{"$f":"IF(ISBLANK('TA Indicator Bank'!P158),\"\",'TA Indicator Bank'!P158)","v":0},{"$f":"IF(ISBLANK('TA Indicator Bank'!Q158),\"\",'TA Indicator Bank'!Q158)","v":0},{"$f":"IF(ISBLANK('TA Indicator Bank'!R158),\"\",'TA Indicator Bank'!R158)","v":0},{"$f":"IF(ISBLANK('TA Indicator Bank'!S158),\"\",'TA Indicator Bank'!S158)","v":0},{"$f":"IF(ISBLANK('TA Indicator Bank'!T158),\"\",'TA Indicator Bank'!T158)","v":0},{"$f":"IF(ISBLANK('TA Indicator Bank'!U158),\"\",'TA Indicator Bank'!U158)","v":0},{"$f":"IF(ISBLANK('TA Indicator Bank'!V158),\"\",'TA Indicator Bank'!V158)","v":0},{"$f":"IF(ISBLANK('TA Indicator Bank'!W158),\"\",'TA Indicator Bank'!W158)","v":0},{"$f":"IF(ISBLANK('TA Indicator Bank'!X158),\"\",'TA Indicator Bank'!X158)","v":0},{"$f":"IF(ISBLANK('TA Indicator Bank'!Y158),\"\",'TA Indicator Bank'!Y158)","v":0},{"$f":"IF(ISBLANK('TA Indicator Bank'!Z158),\"\",'TA Indicator Bank'!Z158)","v":0},{"$f":"IF(ISBLANK('TA Indicator Bank'!AA158),\"\",'TA Indicator Bank'!AA158)","v":0},{"$f":"IF(ISBLANK('TA Indicator Bank'!AB158),\"\",'TA Indicator Bank'!AB158)","v":0},{"$f":"IF(ISBLANK('TA Indicator Bank'!AC158),\"\",'TA Indicator Bank'!AC158)","v":0},{"$f":"IF(ISBLANK('TA Indicator Bank'!AD158),\"\",'TA Indicator Bank'!AD158)","v":1},{"$f":"IF(ISBLANK('TA Indicator Bank'!AE158),\"\",'TA Indicator Bank'!AE158)","v":0},{"$f":"IF(ISBLANK('TA Indicator Bank'!AF158),\"\",'TA Indicator Bank'!AF158)","v":0},{"$f":"IF(ISBLANK('TA Indicator Bank'!AG158),\"\",'TA Indicator Bank'!AG158)","v":0},{"$f":"IF(ISBLANK('TA Indicator Bank'!AH158),\"\",'TA Indicator Bank'!AH158)","v":0},{"$f":"IF(ISBLANK('TA Indicator Bank'!AI158),\"\",'TA Indicator Bank'!AI158)","v":0},{"$f":"IF(ISBLANK('TA Indicator Bank'!AJ158),\"\",'TA Indicator Bank'!AJ158)","v":0},{"$f":"IF(ISBLANK('TA Indicator Bank'!AK158),\"\",'TA Indicator Bank'!AK158)","v":0},{"$f":"IF(ISBLANK('TA Indicator Bank'!AL158),\"\",'TA Indicator Bank'!AL158)","v":0},{"$f":"IF(ISBLANK('TA Indicator Bank'!AM158),\"\",'TA Indicator Bank'!AM158)","v":0},{"$f":"IF(ISBLANK('TA Indicator Bank'!AN158),\"\",'TA Indicator Bank'!AN158)","v":0},{"$f":"IF(ISBLANK('TA Indicator Bank'!AO158),\"\",'TA Indicator Bank'!AO158)","v":0},{"$f":"IF(ISBLANK('TA Indicator Bank'!AP158),\"\",'TA Indicator Bank'!AP158)","v":0},{"$f":"IF(ISBLANK('TA Indicator Bank'!AQ158),\"\",'TA Indicator Bank'!AQ158)","v":0},{"$f":"IF(ISBLANK('TA Indicator Bank'!AR158),\"\",'TA Indicator Bank'!AR158)","v":1},{"$f":"IF(ISBLANK('TA Indicator Bank'!AS158),\"\",'TA Indicator Bank'!AS158)","v":0},{"$f":"IF(ISBLANK('TA Indicator Bank'!AT158),\"\",'TA Indicator Bank'!AT158)","v":0},{"$f":"IF(AND(J162=1,J$410=1),1,0)","v":0},{"$f":"IF(AND(K162=1,K$410=1),1,0)","v":0},{"$f":"IF(AND(L162=1,L$410=1),1,0)","v":0},{"$f":"IF(AND(M162=1,M$410=1),1,0)","v":0},{"$f":"IF(AND(N162=1,N$410=1),1,0)","v":0},{"$f":"IF(AND(O162=1,O$410=1),1,0)","v":0},{"$f":"IF(AND(P162=1,P$410=1),1,0)","v":0},{"$f":"IF(AND(Q162=1,Q$410=1),1,0)","v":0},{"$f":"IF(AND(R162=1,R$410=1),1,0)","v":0},{"$f":"IF(AND(S162=1,S$410=1),1,0)","v":0},{"$f":"IF(AND(T162=1,T$410=1),1,0)","v":0},{"$f":"IF(AND(U162=1,U$410=1),1,0)","v":0},{"$f":"IF(AND(V162=1,V$410=1),1,0)","v":0},{"$f":"IF(AND(W162=1,W$410=1),1,0)","v":0},1,{"$f":"IF(AND(X162=1,X$410=1),1,0)","v":0},{"$f":"IF(AND(Y162=1,Y$410=1),1,0)","v":0},{"$f":"IF(AND(Z162=1,Z$410=1),1,0)","v":0},{"$f":"IF(AND(AA162=1,AA$410=1),1,0)","v":0},{"$f":"IF(AND(AB162=1,AB$410=1),1,0)","v":0},{"$f":"IF(AND(AC162=1,AC$410=1),1,0)","v":0},{"$f":"IF(AND(AD162=1,AD$410=1),1,0)","v":1},{"$f":"IF(AND(AE162=1,AE$410=1),1,0)","v":0},{"$f":"IF(AND(AF162=1,AF$410=1),1,0)","v":0},1,{"$f":"IF(AND(AG162=1,AG$410=1),1,0)","v":0},{"$f":"IF(AND(AH162=1,AH$410=1),1,0)","v":0},{"$f":"IF(AND(AI162=1,AI$410=1),1,0)","v":0},{"$f":"IF(AND(AJ162=1,AJ$410=1),1,0)","v":0},{"$f":"IF(AND(AK162=1,AK$410=1),1,0)","v":0},{"$f":"IF(AND(AL162=1,AL$410=1),1,0)","v":0},{"$f":"IF(AND(AM162=1,AM$410=1),1,0)","v":0},{"$f":"IF(AND(AN162=1,AN$410=1),1,0)","v":0},{"$f":"IF(AND(AO162=1,AO$410=1),1,0)","v":0},1,{"$f":"IF(AND(AP162=1,AP$410=1),1,0)","v":0},{"$f":"IF(AND(AQ162=1,AQ$410=1),1,0)","v":0},{"$f":"IF(AND(AR162=1,AR$410=1),1,0)","v":1},{"$f":"IF(AND(AS162=1,AS$410=1),1,0)","v":0},{"$f":"IF(AND(AT162=1,AT$410=1),1,0)","v":0},1,1,154,154,{"$f":"IFERROR(SMALL($CL$9:$CL$408,CK162),\"\")","v":154},{"$f":"IFERROR(INDEX($B$9:$I$408,$CM162,COLUMNS($CN$9:CN162)),\"\")","v":"TA154"},{"$f":"IFERROR(INDEX($B$9:$I$408,$CM162,COLUMNS($CN$9:CO162)),\"\")","v":"Sufficient resources for certain process management step available"},{"$f":"IFERROR(INDEX($B$9:$I$408,$CM162,COLUMNS($CN$9:CP162)),\"\")","v":"-"},{"$f":"IFERROR(INDEX($B$9:$I$408,$CM162,COLUMNS($CN$9:CQ162)),\"\")","v":"Output"},{"$f":"IFERROR(INDEX($B$9:$I$408,$CM162,COLUMNS($CN$9:CR162)),\"\")","v":"-"},{"$f":"IFERROR(INDEX($B$9:$I$408,$CM162,COLUMNS($CN$9:CS162)),\"\")","v":"Process/asset operation support"},{"$f":"IFERROR(INDEX($B$9:$I$408,$CM162,COLUMNS($CN$9:CT162)),\"\")","v":"-"},{"$f":"IFERROR(INDEX($B$9:$I$408,$CM162,COLUMNS($CN$9:CU162)),\"\")","v":"Narrative"}]
[null,{"$f":"IF(ISBLANK('TA Indicator Bank'!B159),\"\",'TA Indicator Bank'!B159)","v":"TA155"},{"$f":"IF(ISBLANK('TA Indicator Bank'!C159),\"\",'TA Indicator Bank'!C159)","v":"Proportion of stakeholders reporting improved process management or satisfaction"},{"$f":"IF(ISBLANK('TA Indicator Bank'!D159),\"\",'TA Indicator Bank'!D159)","v":"-"},{"$f":"IF(ISBLANK('TA Indicator Bank'!E159),\"\",'TA Indicator Bank'!E159)","v":"Output"},{"$f":"IF(ISBLANK('TA Indicator Bank'!F159),\"\",'TA Indicator Bank'!F159)","v":"-"},{"$f":"IF(ISBLANK('TA Indicator Bank'!G159),\"\",'TA Indicator Bank'!G159)","v":"Process/asset operation support"},{"$f":"IF(ISBLANK('TA Indicator Bank'!H159),\"\",'TA Indicator Bank'!H159)","v":"-"},{"$f":"IF(ISBLANK('TA Indicator Bank'!I159),\"\",'TA Indicator Bank'!I159)","v":"Percentage"},{"$f":"IF(ISBLANK('TA Indicator Bank'!J159),\"\",'TA Indicator Bank'!J159)","v":0},{"$f":"IF(ISBLANK('TA Indicator Bank'!K159),\"\",'TA Indicator Bank'!K159)","v":0},{"$f":"IF(ISBLANK('TA Indicator Bank'!L159),\"\",'TA Indicator Bank'!L159)","v":0},{"$f":"IF(ISBLANK('TA Indicator Bank'!M159),\"\",'TA Indicator Bank'!M159)","v":0},{"$f":"IF(ISBLANK('TA Indicator Bank'!N159),\"\",'TA Indicator Bank'!N159)","v":0},{"$f":"IF(ISBLANK('TA Indicator Bank'!O159),\"\",'TA Indicator Bank'!O159)","v":0},{"$f":"IF(ISBLANK('TA Indicator Bank'!P159),\"\",'TA Indicator Bank'!P159)","v":0},{"$f":"IF(ISBLANK('TA Indicator Bank'!Q159),\"\",'TA Indicator Bank'!Q159)","v":0},{"$f":"IF(ISBLANK('TA Indicator Bank'!R159),\"\",'TA Indicator Bank'!R159)","v":0},{"$f":"IF(ISBLANK('TA Indicator Bank'!S159),\"\",'TA Indicator Bank'!S159)","v":0},{"$f":"IF(ISBLANK('TA Indicator Bank'!T159),\"\",'TA Indicator Bank'!T159)","v":0},{"$f":"IF(ISBLANK('TA Indicator Bank'!U159),\"\",'TA Indicator Bank'!U159)","v":0},{"$f":"IF(ISBLANK('TA Indicator Bank'!V159),\"\",'TA Indicator Bank'!V159)","v":0},{"$f":"IF(ISBLANK('TA Indicator Bank'!W159),\"\",'TA Indicator Bank'!W159)","v":0},{"$f":"IF(ISBLANK('TA Indicator Bank'!X159),\"\",'TA Indicator Bank'!X159)","v":0},{"$f":"IF(ISBLANK('TA Indicator Bank'!Y159),\"\",'TA Indicator Bank'!Y159)","v":0},{"$f":"IF(ISBLANK('TA Indicator Bank'!Z159),\"\",'TA Indicator Bank'!Z159)","v":0},{"$f":"IF(ISBLANK('TA Indicator Bank'!AA159),\"\",'TA Indicator Bank'!AA159)","v":0},{"$f":"IF(ISBLANK('TA Indicator Bank'!AB159),\"\",'TA Indicator Bank'!AB159)","v":0},{"$f":"IF(ISBLANK('TA Indicator Bank'!AC159),\"\",'TA Indicator Bank'!AC159)","v":0},{"$f":"IF(ISBLANK('TA Indicator Bank'!AD159),\"\",'TA Indicator Bank'!AD159)","v":1},{"$f":"IF(ISBLANK('TA Indicator Bank'!AE159),\"\",'TA Indicator Bank'!AE159)","v":0},{"$f":"IF(ISBLANK('TA Indicator Bank'!AF159),\"\",'TA Indicator Bank'!AF159)","v":0},{"$f":"IF(ISBLANK('TA Indicator Bank'!AG159),\"\",'TA Indicator Bank'!AG159)","v":0},{"$f":"IF(ISBLANK('TA Indicator Bank'!AH159),\"\",'TA Indicator Bank'!AH159)","v":0},{"$f":"IF(ISBLANK('TA Indicator Bank'!AI159),\"\",'TA Indicator Bank'!AI159)","v":0},{"$f":"IF(ISBLANK('TA Indicator Bank'!AJ159),\"\",'TA Indicator Bank'!AJ159)","v":0},{"$f":"IF(ISBLANK('TA Indicator Bank'!AK159),\"\",'TA Indicator Bank'!AK159)","v":0},{"$f":"IF(ISBLANK('TA Indicator Bank'!AL159),\"\",'TA Indicator Bank'!AL159)","v":0},{"$f":"IF(ISBLANK('TA Indicator Bank'!AM159),\"\",'TA Indicator Bank'!AM159)","v":0},{"$f":"IF(ISBLANK('TA Indicator Bank'!AN159),\"\",'TA Indicator Bank'!AN159)","v":0},{"$f":"IF(ISBLANK('TA Indicator Bank'!AO159),\"\",'TA Indicator Bank'!AO159)","v":0},{"$f":"IF(ISBLANK('TA Indicator Bank'!AP159),\"\",'TA Indicator Bank'!AP159)","v":0},{"$f":"IF(ISBLANK('TA Indicator Bank'!AQ159),\"\",'TA Indicator Bank'!AQ159)","v":0},{"$f":"IF(ISBLANK('TA Indicator Bank'!AR159),\"\",'TA Indicator Bank'!AR159)","v":1},{"$f":"IF(ISBLANK('TA Indicator Bank'!AS159),\"\",'TA Indicator Bank'!AS159)","v":0},{"$f":"IF(ISBLANK('TA Indicator Bank'!AT159),\"\",'TA Indicator Bank'!AT159)","v":0},{"$f":"IF(AND(J163=1,J$410=1),1,0)","v":0},{"$f":"IF(AND(K163=1,K$410=1),1,0)","v":0},{"$f":"IF(AND(L163=1,L$410=1),1,0)","v":0},{"$f":"IF(AND(M163=1,M$410=1),1,0)","v":0},{"$f":"IF(AND(N163=1,N$410=1),1,0)","v":0},{"$f":"IF(AND(O163=1,O$410=1),1,0)","v":0},{"$f":"IF(AND(P163=1,P$410=1),1,0)","v":0},{"$f":"IF(AND(Q163=1,Q$410=1),1,0)","v":0},{"$f":"IF(AND(R163=1,R$410=1),1,0)","v":0},{"$f":"IF(AND(S163=1,S$410=1),1,0)","v":0},{"$f":"IF(AND(T163=1,T$410=1),1,0)","v":0},{"$f":"IF(AND(U163=1,U$410=1),1,0)","v":0},{"$f":"IF(AND(V163=1,V$410=1),1,0)","v":0},{"$f":"IF(AND(W163=1,W$410=1),1,0)","v":0},1,{"$f":"IF(AND(X163=1,X$410=1),1,0)","v":0},{"$f":"IF(AND(Y163=1,Y$410=1),1,0)","v":0},{"$f":"IF(AND(Z163=1,Z$410=1),1,0)","v":0},{"$f":"IF(AND(AA163=1,AA$410=1),1,0)","v":0},{"$f":"IF(AND(AB163=1,AB$410=1),1,0)","v":0},{"$f":"IF(AND(AC163=1,AC$410=1),1,0)","v":0},{"$f":"IF(AND(AD163=1,AD$410=1),1,0)","v":1},{"$f":"IF(AND(AE163=1,AE$410=1),1,0)","v":0},{"$f":"IF(AND(AF163=1,AF$410=1),1,0)","v":0},1,{"$f":"IF(AND(AG163=1,AG$410=1),1,0)","v":0},{"$f":"IF(AND(AH163=1,AH$410=1),1,0)","v":0},{"$f":"IF(AND(AI163=1,AI$410=1),1,0)","v":0},{"$f":"IF(AND(AJ163=1,AJ$410=1),1,0)","v":0},{"$f":"IF(AND(AK163=1,AK$410=1),1,0)","v":0},{"$f":"IF(AND(AL163=1,AL$410=1),1,0)","v":0},{"$f":"IF(AND(AM163=1,AM$410=1),1,0)","v":0},{"$f":"IF(AND(AN163=1,AN$410=1),1,0)","v":0},{"$f":"IF(AND(AO163=1,AO$410=1),1,0)","v":0},1,{"$f":"IF(AND(AP163=1,AP$410=1),1,0)","v":0},{"$f":"IF(AND(AQ163=1,AQ$410=1),1,0)","v":0},{"$f":"IF(AND(AR163=1,AR$410=1),1,0)","v":1},{"$f":"IF(AND(AS163=1,AS$410=1),1,0)","v":0},{"$f":"IF(AND(AT163=1,AT$410=1),1,0)","v":0},1,1,155,155,{"$f":"IFERROR(SMALL($CL$9:$CL$408,CK163),\"\")","v":155},{"$f":"IFERROR(INDEX($B$9:$I$408,$CM163,COLUMNS($CN$9:CN163)),\"\")","v":"TA155"},{"$f":"IFERROR(INDEX($B$9:$I$408,$CM163,COLUMNS($CN$9:CO163)),\"\")","v":"Proportion of stakeholders reporting improved process management or satisfaction"},{"$f":"IFERROR(INDEX($B$9:$I$408,$CM163,COLUMNS($CN$9:CP163)),\"\")","v":"-"},{"$f":"IFERROR(INDEX($B$9:$I$408,$CM163,COLUMNS($CN$9:CQ163)),\"\")","v":"Output"},{"$f":"IFERROR(INDEX($B$9:$I$408,$CM163,COLUMNS($CN$9:CR163)),\"\")","v":"-"},{"$f":"IFERROR(INDEX($B$9:$I$408,$CM163,COLUMNS($CN$9:CS163)),\"\")","v":"Process/asset operation support"},{"$f":"IFERROR(INDEX($B$9:$I$408,$CM163,COLUMNS($CN$9:CT163)),\"\")","v":"-"},{"$f":"IFERROR(INDEX($B$9:$I$408,$CM163,COLUMNS($CN$9:CU163)),\"\")","v":"Percentage"}]
[null,{"$f":"IF(ISBLANK('TA Indicator Bank'!B160),\"\",'TA Indicator Bank'!B160)","v":"TA156"},{"$f":"IF(ISBLANK('TA Indicator Bank'!C160),\"\",'TA Indicator Bank'!C160)","v":"(Number of) System enhancements developed"},{"$f":"IF(ISBLANK('TA Indicator Bank'!D160),\"\",'TA Indicator Bank'!D160)","v":"-"},{"$f":"IF(ISBLANK('TA Indicator Bank'!E160),\"\",'TA Indicator Bank'!E160)","v":"Output"},{"$f":"IF(ISBLANK('TA Indicator Bank'!F160),\"\",'TA Indicator Bank'!F160)","v":"-"},{"$f":"IF(ISBLANK('TA Indicator Bank'!G160),\"\",'TA Indicator Bank'!G160)","v":"Process/asset operation support"},{"$f":"IF(ISBLANK('TA Indicator Bank'!H160),\"\",'TA Indicator Bank'!H160)","v":"-"},{"$f":"IF(ISBLANK('TA Indicator Bank'!I160),\"\",'TA Indicator Bank'!I160)","v":"Number, Percentage"},{"$f":"IF(ISBLANK('TA Indicator Bank'!J160),\"\",'TA Indicator Bank'!J160)","v":0},{"$f":"IF(ISBLANK('TA Indicator Bank'!K160),\"\",'TA Indicator Bank'!K160)","v":0},{"$f":"IF(ISBLANK('TA Indicator Bank'!L160),\"\",'TA Indicator Bank'!L160)","v":0},{"$f":"IF(ISBLANK('TA Indicator Bank'!M160),\"\",'TA Indicator Bank'!M160)","v":0},{"$f":"IF(ISBLANK('TA Indicator Bank'!N160),\"\",'TA Indicator Bank'!N160)","v":0},{"$f":"IF(ISBLANK('TA Indicator Bank'!O160),\"\",'TA Indicator Bank'!O160)","v":0},{"$f":"IF(ISBLANK('TA Indicator Bank'!P160),\"\",'TA Indicator Bank'!P160)","v":0},{"$f":"IF(ISBLANK('TA Indicator Bank'!Q160),\"\",'TA Indicator Bank'!Q160)","v":0},{"$f":"IF(ISBLANK('TA Indicator Bank'!R160),\"\",'TA Indicator Bank'!R160)","v":0},{"$f":"IF(ISBLANK('TA Indicator Bank'!S160),\"\",'TA Indicator Bank'!S160)","v":0},{"$f":"IF(ISBLANK('TA Indicator Bank'!T160),\"\",'TA Indicator Bank'!T160)","v":0},{"$f":"IF(ISBLANK('TA Indicator Bank'!U160),\"\",'TA Indicator Bank'!U160)","v":0},{"$f":"IF(ISBLANK('TA Indicator Bank'!V160),\"\",'TA Indicator Bank'!V160)","v":0},{"$f":"IF(ISBLANK('TA Indicator Bank'!W160),\"\",'TA Indicator Bank'!W160)","v":0},{"$f":"IF(ISBLANK('TA Indicator Bank'!X160),\"\",'TA Indicator Bank'!X160)","v":0},{"$f":"IF(ISBLANK('TA Indicator Bank'!Y160),\"\",'TA Indicator Bank'!Y160)","v":0},{"$f":"IF(ISBLANK('TA Indicator Bank'!Z160),\"\",'TA Indicator Bank'!Z160)","v":0},{"$f":"IF(ISBLANK('TA Indicator Bank'!AA160),\"\",'TA Indicator Bank'!AA160)","v":0},{"$f":"IF(ISBLANK('TA Indicator Bank'!AB160),\"\",'TA Indicator Bank'!AB160)","v":0},{"$f":"IF(ISBLANK('TA Indicator Bank'!AC160),\"\",'TA Indicator Bank'!AC160)","v":0},{"$f":"IF(ISBLANK('TA Indicator Bank'!AD160),\"\",'TA Indicator Bank'!AD160)","v":1},{"$f":"IF(ISBLANK('TA Indicator Bank'!AE160),\"\",'TA Indicator Bank'!AE160)","v":0},{"$f":"IF(ISBLANK('TA Indicator Bank'!AF160),\"\",'TA Indicator Bank'!AF160)","v":0},{"$f":"IF(ISBLANK('TA Indicator Bank'!AG160),\"\",'TA Indicator Bank'!AG160)","v":0},{"$f":"IF(ISBLANK('TA Indicator Bank'!AH160),\"\",'TA Indicator Bank'!AH160)","v":0},{"$f":"IF(ISBLANK('TA Indicator Bank'!AI160),\"\",'TA Indicator Bank'!AI160)","v":0},{"$f":"IF(ISBLANK('TA Indicator Bank'!AJ160),\"\",'TA Indicator Bank'!AJ160)","v":0},{"$f":"IF(ISBLANK('TA Indicator Bank'!AK160),\"\",'TA Indicator Bank'!AK160)","v":0},{"$f":"IF(ISBLANK('TA Indicator Bank'!AL160),\"\",'TA Indicator Bank'!AL160)","v":0},{"$f":"IF(ISBLANK('TA Indicator Bank'!AM160),\"\",'TA Indicator Bank'!AM160)","v":0},{"$f":"IF(ISBLANK('TA Indicator Bank'!AN160),\"\",'TA Indicator Bank'!AN160)","v":0},{"$f":"IF(ISBLANK('TA Indicator Bank'!AO160),\"\",'TA Indicator Bank'!AO160)","v":0},{"$f":"IF(ISBLANK('TA Indicator Bank'!AP160),\"\",'TA Indicator Bank'!AP160)","v":0},{"$f":"IF(ISBLANK('TA Indicator Bank'!AQ160),\"\",'TA Indicator Bank'!AQ160)","v":0},{"$f":"IF(ISBLANK('TA Indicator Bank'!AR160),\"\",'TA Indicator Bank'!AR160)","v":1},{"$f":"IF(ISBLANK('TA Indicator Bank'!AS160),\"\",'TA Indicator Bank'!AS160)","v":0},{"$f":"IF(ISBLANK('TA Indicator Bank'!AT160),\"\",'TA Indicator Bank'!AT160)","v":0},{"$f":"IF(AND(J164=1,J$410=1),1,0)","v":0},{"$f":"IF(AND(K164=1,K$410=1),1,0)","v":0},{"$f":"IF(AND(L164=1,L$410=1),1,0)","v":0},{"$f":"IF(AND(M164=1,M$410=1),1,0)","v":0},{"$f":"IF(AND(N164=1,N$410=1),1,0)","v":0},{"$f":"IF(AND(O164=1,O$410=1),1,0)","v":0},{"$f":"IF(AND(P164=1,P$410=1),1,0)","v":0},{"$f":"IF(AND(Q164=1,Q$410=1),1,0)","v":0},{"$f":"IF(AND(R164=1,R$410=1),1,0)","v":0},{"$f":"IF(AND(S164=1,S$410=1),1,0)","v":0},{"$f":"IF(AND(T164=1,T$410=1),1,0)","v":0},{"$f":"IF(AND(U164=1,U$410=1),1,0)","v":0},{"$f":"IF(AND(V164=1,V$410=1),1,0)","v":0},{"$f":"IF(AND(W164=1,W$410=1),1,0)","v":0},1,{"$f":"IF(AND(X164=1,X$410=1),1,0)","v":0},{"$f":"IF(AND(Y164=1,Y$410=1),1,0)","v":0},{"$f":"IF(AND(Z164=1,Z$410=1),1,0)","v":0},{"$f":"IF(AND(AA164=1,AA$410=1),1,0)","v":0},{"$f":"IF(AND(AB164=1,AB$410=1),1,0)","v":0},{"$f":"IF(AND(AC164=1,AC$410=1),1,0)","v":0},{"$f":"IF(AND(AD164=1,AD$410=1),1,0)","v":1},{"$f":"IF(AND(AE164=1,AE$410=1),1,0)","v":0},{"$f":"IF(AND(AF164=1,AF$410=1),1,0)","v":0},1,{"$f":"IF(AND(AG164=1,AG$410=1),1,0)","v":0},{"$f":"IF(AND(AH164=1,AH$410=1),1,0)","v":0},{"$f":"IF(AND(AI164=1,AI$410=1),1,0)","v":0},{"$f":"IF(AND(AJ164=1,AJ$410=1),1,0)","v":0},{"$f":"IF(AND(AK164=1,AK$410=1),1,0)","v":0},{"$f":"IF(AND(AL164=1,AL$410=1),1,0)","v":0},{"$f":"IF(AND(AM164=1,AM$410=1),1,0)","v":0},{"$f":"IF(AND(AN164=1,AN$410=1),1,0)","v":0},{"$f":"IF(AND(AO164=1,AO$410=1),1,0)","v":0},1,{"$f":"IF(AND(AP164=1,AP$410=1),1,0)","v":0},{"$f":"IF(AND(AQ164=1,AQ$410=1),1,0)","v":0},{"$f":"IF(AND(AR164=1,AR$410=1),1,0)","v":1},{"$f":"IF(AND(AS164=1,AS$410=1),1,0)","v":0},{"$f":"IF(AND(AT164=1,AT$410=1),1,0)","v":0},1,1,156,156,{"$f":"IFERROR(SMALL($CL$9:$CL$408,CK164),\"\")","v":156},{"$f":"IFERROR(INDEX($B$9:$I$408,$CM164,COLUMNS($CN$9:CN164)),\"\")","v":"TA156"},{"$f":"IFERROR(INDEX($B$9:$I$408,$CM164,COLUMNS($CN$9:CO164)),\"\")","v":"(Number of) System enhancements developed"},{"$f":"IFERROR(INDEX($B$9:$I$408,$CM164,COLUMNS($CN$9:CP164)),\"\")","v":"-"},{"$f":"IFERROR(INDEX($B$9:$I$408,$CM164,COLUMNS($CN$9:CQ164)),\"\")","v":"Output"},{"$f":"IFERROR(INDEX($B$9:$I$408,$CM164,COLUMNS($CN$9:CR164)),\"\")","v":"-"},{"$f":"IFERROR(INDEX($B$9:$I$408,$CM164,COLUMNS($CN$9:CS164)),\"\")","v":"Process/asset operation support"},{"$f":"IFERROR(INDEX($B$9:$I$408,$CM164,COLUMNS($CN$9:CT164)),\"\")","v":"-"},{"$f":"IFERROR(INDEX($B$9:$I$408,$CM164,COLUMNS($CN$9:CU164)),\"\")","v":"Number, Percentage"}]
[null,{"$f":"IF(ISBLANK('TA Indicator Bank'!B161),\"\",'TA Indicator Bank'!B161)","v":"TA157"},{"$f":"IF(ISBLANK('TA Indicator Bank'!C161),\"\",'TA Indicator Bank'!C161)","v":"Extent of policy compliance"},{"$f":"IF(ISBLANK('TA Indicator Bank'!D161),\"\",'TA Indicator Bank'!D161)","v":"-"},{"$f":"IF(ISBLANK('TA Indicator Bank'!E161),\"\",'TA Indicator Bank'!E161)","v":"Output"},{"$f":"IF(ISBLANK('TA Indicator Bank'!F161),\"\",'TA Indicator Bank'!F161)","v":"-"},{"$f":"IF(ISBLANK('TA Indicator Bank'!G161),\"\",'TA Indicator Bank'!G161)","v":"Process/asset operation support"},{"$f":"IF(ISBLANK('TA Indicator Bank'!H161),\"\",'TA Indicator Bank'!H161)","v":"-"},{"$f":"IF(ISBLANK('TA Indicator Bank'!I161),\"\",'TA Indicator Bank'!I161)","v":"Narrative"},{"$f":"IF(ISBLANK('TA Indicator Bank'!J161),\"\",'TA Indicator Bank'!J161)","v":0},{"$f":"IF(ISBLANK('TA Indicator Bank'!K161),\"\",'TA Indicator Bank'!K161)","v":0},{"$f":"IF(ISBLANK('TA Indicator Bank'!L161),\"\",'TA Indicator Bank'!L161)","v":0},{"$f":"IF(ISBLANK('TA Indicator Bank'!M161),\"\",'TA Indicator Bank'!M161)","v":0},{"$f":"IF(ISBLANK('TA Indicator Bank'!N161),\"\",'TA Indicator Bank'!N161)","v":0},{"$f":"IF(ISBLANK('TA Indicator Bank'!O161),\"\",'TA Indicator Bank'!O161)","v":0},{"$f":"IF(ISBLANK('TA Indicator Bank'!P161),\"\",'TA Indicator Bank'!P161)","v":0},{"$f":"IF(ISBLANK('TA Indicator Bank'!Q161),\"\",'TA Indicator Bank'!Q161)","v":0},{"$f":"IF(ISBLANK('TA Indicator Bank'!R161),\"\",'TA Indicator Bank'!R161)","v":0},{"$f":"IF(ISBLANK('TA Indicator Bank'!S161),\"\",'TA Indicator Bank'!S161)","v":0},{"$f":"IF(ISBLANK('TA Indicator Bank'!T161),\"\",'TA Indicator Bank'!T161)","v":0},{"$f":"IF(ISBLANK('TA Indicator Bank'!U161),\"\",'TA Indicator Bank'!U161)","v":0},{"$f":"IF(ISBLANK('TA Indicator Bank'!V161),\"\",'TA Indicator Bank'!V161)","v":0},{"$f":"IF(ISBLANK('TA Indicator Bank'!W161),\"\",'TA Indicator Bank'!W161)","v":0},{"$f":"IF(ISBLANK('TA Indicator Bank'!X161),\"\",'TA Indicator Bank'!X161)","v":0},{"$f":"IF(ISBLANK('TA Indicator Bank'!Y161),\"\",'TA Indicator Bank'!Y161)","v":0},{"$f":"IF(ISBLANK('TA Indicator Bank'!Z161),\"\",'TA Indicator Bank'!Z161)","v":0},{"$f":"IF(ISBLANK('TA Indicator Bank'!AA161),\"\",'TA Indicator Bank'!AA161)","v":0},{"$f":"IF(ISBLANK('TA Indicator Bank'!AB161),\"\",'TA Indicator Bank'!AB161)","v":0},{"$f":"IF(ISBLANK('TA Indicator Bank'!AC161),\"\",'TA Indicator Bank'!AC161)","v":0},{"$f":"IF(ISBLANK('TA Indicator Bank'!AD161),\"\",'TA Indicator Bank'!AD161)","v":1},{"$f":"IF(ISBLANK('TA Indicator Bank'!AE161),\"\",'TA Indicator Bank'!AE161)","v":0},{"$f":"IF(ISBLANK('TA Indicator Bank'!AF161),\"\",'TA Indicator Bank'!AF161)","v":0},{"$f":"IF(ISBLANK('TA Indicator Bank'!AG161),\"\",'TA Indicator Bank'!AG161)","v":0},{"$f":"IF(ISBLANK('TA Indicator Bank'!AH161),\"\",'TA Indicator Bank'!AH161)","v":0},{"$f":"IF(ISBLANK('TA Indicator Bank'!AI161),\"\",'TA Indicator Bank'!AI161)","v":0},{"$f":"IF(ISBLANK('TA Indicator Bank'!AJ161),\"\",'TA Indicator Bank'!AJ161)","v":0},{"$f":"IF(ISBLANK('TA Indicator Bank'!AK161),\"\",'TA Indicator Bank'!AK161)","v":0},{"$f":"IF(ISBLANK('TA Indicator Bank'!AL161),\"\",'TA Indicator Bank'!AL161)","v":0},{"$f":"IF(ISBLANK('TA Indicator Bank'!AM161),\"\",'TA Indicator Bank'!AM161)","v":0},{"$f":"IF(ISBLANK('TA Indicator Bank'!AN161),\"\",'TA Indicator Bank'!AN161)","v":0},{"$f":"IF(ISBLANK('TA Indicator Bank'!AO161),\"\",'TA Indicator Bank'!AO161)","v":0},{"$f":"IF(ISBLANK('TA Indicator Bank'!AP161),\"\",'TA Indicator Bank'!AP161)","v":0},{"$f":"IF(ISBLANK('TA Indicator Bank'!AQ161),\"\",'TA Indicator Bank'!AQ161)","v":0},{"$f":"IF(ISBLANK('TA Indicator Bank'!AR161),\"\",'TA Indicator Bank'!AR161)","v":1},{"$f":"IF(ISBLANK('TA Indicator Bank'!AS161),\"\",'TA Indicator Bank'!AS161)","v":0},{"$f":"IF(ISBLANK('TA Indicator Bank'!AT161),\"\",'TA Indicator Bank'!AT161)","v":0},{"$f":"IF(AND(J165=1,J$410=1),1,0)","v":0},{"$f":"IF(AND(K165=1,K$410=1),1,0)","v":0},{"$f":"IF(AND(L165=1,L$410=1),1,0)","v":0},{"$f":"IF(AND(M165=1,M$410=1),1,0)","v":0},{"$f":"IF(AND(N165=1,N$410=1),1,0)","v":0},{"$f":"IF(AND(O165=1,O$410=1),1,0)","v":0},{"$f":"IF(AND(P165=1,P$410=1),1,0)","v":0},{"$f":"IF(AND(Q165=1,Q$410=1),1,0)","v":0},{"$f":"IF(AND(R165=1,R$410=1),1,0)","v":0},{"$f":"IF(AND(S165=1,S$410=1),1,0)","v":0},{"$f":"IF(AND(T165=1,T$410=1),1,0)","v":0},{"$f":"IF(AND(U165=1,U$410=1),1,0)","v":0},{"$f":"IF(AND(V165=1,V$410=1),1,0)","v":0},{"$f":"IF(AND(W165=1,W$410=1),1,0)","v":0},1,{"$f":"IF(AND(X165=1,X$410=1),1,0)","v":0},{"$f":"IF(AND(Y165=1,Y$410=1),1,0)","v":0},{"$f":"IF(AND(Z165=1,Z$410=1),1,0)","v":0},{"$f":"IF(AND(AA165=1,AA$410=1),1,0)","v":0},{"$f":"IF(AND(AB165=1,AB$410=1),1,0)","v":0},{"$f":"IF(AND(AC165=1,AC$410=1),1,0)","v":0},{"$f":"IF(AND(AD165=1,AD$410=1),1,0)","v":1},{"$f":"IF(AND(AE165=1,AE$410=1),1,0)","v":0},{"$f":"IF(AND(AF165=1,AF$410=1),1,0)","v":0},1,{"$f":"IF(AND(AG165=1,AG$410=1),1,0)","v":0},{"$f":"IF(AND(AH165=1,AH$410=1),1,0)","v":0},{"$f":"IF(AND(AI165=1,AI$410=1),1,0)","v":0},{"$f":"IF(AND(AJ165=1,AJ$410=1),1,0)","v":0},{"$f":"IF(AND(AK165=1,AK$410=1),1,0)","v":0},{"$f":"IF(AND(AL165=1,AL$410=1),1,0)","v":0},{"$f":"IF(AND(AM165=1,AM$410=1),1,0)","v":0},{"$f":"IF(AND(AN165=1,AN$410=1),1,0)","v":0},{"$f":"IF(AND(AO165=1,AO$410=1),1,0)","v":0},1,{"$f":"IF(AND(AP165=1,AP$410=1),1,0)","v":0},{"$f":"IF(AND(AQ165=1,AQ$410=1),1,0)","v":0},{"$f":"IF(AND(AR165=1,AR$410=1),1,0)","v":1},{"$f":"IF(AND(AS165=1,AS$410=1),1,0)","v":0},{"$f":"IF(AND(AT165=1,AT$410=1),1,0)","v":0},1,1,157,157,{"$f":"IFERROR(SMALL($CL$9:$CL$408,CK165),\"\")","v":157},{"$f":"IFERROR(INDEX($B$9:$I$408,$CM165,COLUMNS($CN$9:CN165)),\"\")","v":"TA157"},{"$f":"IFERROR(INDEX($B$9:$I$408,$CM165,COLUMNS($CN$9:CO165)),\"\")","v":"Extent of policy compliance"},{"$f":"IFERROR(INDEX($B$9:$I$408,$CM165,COLUMNS($CN$9:CP165)),\"\")","v":"-"},{"$f":"IFERROR(INDEX($B$9:$I$408,$CM165,COLUMNS($CN$9:CQ165)),\"\")","v":"Output"},{"$f":"IFERROR(INDEX($B$9:$I$408,$CM165,COLUMNS($CN$9:CR165)),\"\")","v":"-"},{"$f":"IFERROR(INDEX($B$9:$I$408,$CM165,COLUMNS($CN$9:CS165)),\"\")","v":"Process/asset operation support"},{"$f":"IFERROR(INDEX($B$9:$I$408,$CM165,COLUMNS($CN$9:CT165)),\"\")","v":"-"},{"$f":"IFERROR(INDEX($B$9:$I$408,$CM165,COLUMNS($CN$9:CU165)),\"\")","v":"Narrative"}]
[null,{"$f":"IF(ISBLANK('TA Indicator Bank'!B162),\"\",'TA Indicator Bank'!B162)","v":"TA158"},{"$f":"IF(ISBLANK('TA Indicator Bank'!C162),\"\",'TA Indicator Bank'!C162)","v":"(Percentage of participants with the) Specified process management structures in place"},{"$f":"IF(ISBLANK('TA Indicator Bank'!D162),\"\",'TA Indicator Bank'!D162)","v":"-"},{"$f":"IF(ISBLANK('TA Indicator Bank'!E162),\"\",'TA Indicator Bank'!E162)","v":"Output"},{"$f":"IF(ISBLANK('TA Indicator Bank'!F162),\"\",'TA Indicator Bank'!F162)","v":"-"},{"$f":"IF(ISBLANK('TA Indicator Bank'!G162),\"\",'TA Indicator Bank'!G162)","v":"Process/asset operation support"},{"$f":"IF(ISBLANK('TA Indicator Bank'!H162),\"\",'TA Indicator Bank'!H162)","v":"-"},{"$f":"IF(ISBLANK('TA Indicator Bank'!I162),\"\",'TA Indicator Bank'!I162)","v":"Percentage"},{"$f":"IF(ISBLANK('TA Indicator Bank'!J162),\"\",'TA Indicator Bank'!J162)","v":0},{"$f":"IF(ISBLANK('TA Indicator Bank'!K162),\"\",'TA Indicator Bank'!K162)","v":0},{"$f":"IF(ISBLANK('TA Indicator Bank'!L162),\"\",'TA Indicator Bank'!L162)","v":0},{"$f":"IF(ISBLANK('TA Indicator Bank'!M162),\"\",'TA Indicator Bank'!M162)","v":0},{"$f":"IF(ISBLANK('TA Indicator Bank'!N162),\"\",'TA Indicator Bank'!N162)","v":0},{"$f":"IF(ISBLANK('TA Indicator Bank'!O162),\"\",'TA Indicator Bank'!O162)","v":0},{"$f":"IF(ISBLANK('TA Indicator Bank'!P162),\"\",'TA Indicator Bank'!P162)","v":0},{"$f":"IF(ISBLANK('TA Indicator Bank'!Q162),\"\",'TA Indicator Bank'!Q162)","v":0},{"$f":"IF(ISBLANK('TA Indicator Bank'!R162),\"\",'TA Indicator Bank'!R162)","v":0},{"$f":"IF(ISBLANK('TA Indicator Bank'!S162),\"\",'TA Indicator Bank'!S162)","v":0},{"$f":"IF(ISBLANK('TA Indicator Bank'!T162),\"\",'TA Indicator Bank'!T162)","v":0},{"$f":"IF(ISBLANK('TA Indicator Bank'!U162),\"\",'TA Indicator Bank'!U162)","v":0},{"$f":"IF(ISBLANK('TA Indicator Bank'!V162),\"\",'TA Indicator Bank'!V162)","v":0},{"$f":"IF(ISBLANK('TA Indicator Bank'!W162),\"\",'TA Indicator Bank'!W162)","v":0},{"$f":"IF(ISBLANK('TA Indicator Bank'!X162),\"\",'TA Indicator Bank'!X162)","v":0},{"$f":"IF(ISBLANK('TA Indicator Bank'!Y162),\"\",'TA Indicator Bank'!Y162)","v":0},{"$f":"IF(ISBLANK('TA Indicator Bank'!Z162),\"\",'TA Indicator Bank'!Z162)","v":0},{"$f":"IF(ISBLANK('TA Indicator Bank'!AA162),\"\",'TA Indicator Bank'!AA162)","v":0},{"$f":"IF(ISBLANK('TA Indicator Bank'!AB162),\"\",'TA Indicator Bank'!AB162)","v":0},{"$f":"IF(ISBLANK('TA Indicator Bank'!AC162),\"\",'TA Indicator Bank'!AC162)","v":0},{"$f":"IF(ISBLANK('TA Indicator Bank'!AD162),\"\",'TA Indicator Bank'!AD162)","v":1},{"$f":"IF(ISBLANK('TA Indicator Bank'!AE162),\"\",'TA Indicator Bank'!AE162)","v":0},{"$f":"IF(ISBLANK('TA Indicator Bank'!AF162),\"\",'TA Indicator Bank'!AF162)","v":0},{"$f":"IF(ISBLANK('TA Indicator Bank'!AG162),\"\",'TA Indicator Bank'!AG162)","v":0},{"$f":"IF(ISBLANK('TA Indicator Bank'!AH162),\"\",'TA Indicator Bank'!AH162)","v":0},{"$f":"IF(ISBLANK('TA Indicator Bank'!AI162),\"\",'TA Indicator Bank'!AI162)","v":0},{"$f":"IF(ISBLANK('TA Indicator Bank'!AJ162),\"\",'TA Indicator Bank'!AJ162)","v":0},{"$f":"IF(ISBLANK('TA Indicator Bank'!AK162),\"\",'TA Indicator Bank'!AK162)","v":0},{"$f":"IF(ISBLANK('TA Indicator Bank'!AL162),\"\",'TA Indicator Bank'!AL162)","v":0},{"$f":"IF(ISBLANK('TA Indicator Bank'!AM162),\"\",'TA Indicator Bank'!AM162)","v":0},{"$f":"IF(ISBLANK('TA Indicator Bank'!AN162),\"\",'TA Indicator Bank'!AN162)","v":0},{"$f":"IF(ISBLANK('TA Indicator Bank'!AO162),\"\",'TA Indicator Bank'!AO162)","v":0},{"$f":"IF(ISBLANK('TA Indicator Bank'!AP162),\"\",'TA Indicator Bank'!AP162)","v":0},{"$f":"IF(ISBLANK('TA Indicator Bank'!AQ162),\"\",'TA Indicator Bank'!AQ162)","v":0},{"$f":"IF(ISBLANK('TA Indicator Bank'!AR162),\"\",'TA Indicator Bank'!AR162)","v":1},{"$f":"IF(ISBLANK('TA Indicator Bank'!AS162),\"\",'TA Indicator Bank'!AS162)","v":0},{"$f":"IF(ISBLANK('TA Indicator Bank'!AT162),\"\",'TA Indicator Bank'!AT162)","v":0},{"$f":"IF(AND(J166=1,J$410=1),1,0)","v":0},{"$f":"IF(AND(K166=1,K$410=1),1,0)","v":0},{"$f":"IF(AND(L166=1,L$410=1),1,0)","v":0},{"$f":"IF(AND(M166=1,M$410=1),1,0)","v":0},{"$f":"IF(AND(N166=1,N$410=1),1,0)","v":0},{"$f":"IF(AND(O166=1,O$410=1),1,0)","v":0},{"$f":"IF(AND(P166=1,P$410=1),1,0)","v":0},{"$f":"IF(AND(Q166=1,Q$410=1),1,0)","v":0},{"$f":"IF(AND(R166=1,R$410=1),1,0)","v":0},{"$f":"IF(AND(S166=1,S$410=1),1,0)","v":0},{"$f":"IF(AND(T166=1,T$410=1),1,0)","v":0},{"$f":"IF(AND(U166=1,U$410=1),1,0)","v":0},{"$f":"IF(AND(V166=1,V$410=1),1,0)","v":0},{"$f":"IF(AND(W166=1,W$410=1),1,0)","v":0},1,{"$f":"IF(AND(X166=1,X$410=1),1,0)","v":0},{"$f":"IF(AND(Y166=1,Y$410=1),1,0)","v":0},{"$f":"IF(AND(Z166=1,Z$410=1),1,0)","v":0},{"$f":"IF(AND(AA166=1,AA$410=1),1,0)","v":0},{"$f":"IF(AND(AB166=1,AB$410=1),1,0)","v":0},{"$f":"IF(AND(AC166=1,AC$410=1),1,0)","v":0},{"$f":"IF(AND(AD166=1,AD$410=1),1,0)","v":1},{"$f":"IF(AND(AE166=1,AE$410=1),1,0)","v":0},{"$f":"IF(AND(AF166=1,AF$410=1),1,0)","v":0},1,{"$f":"IF(AND(AG166=1,AG$410=1),1,0)","v":0},{"$f":"IF(AND(AH166=1,AH$410=1),1,0)","v":0},{"$f":"IF(AND(AI166=1,AI$410=1),1,0)","v":0},{"$f":"IF(AND(AJ166=1,AJ$410=1),1,0)","v":0},{"$f":"IF(AND(AK166=1,AK$410=1),1,0)","v":0},{"$f":"IF(AND(AL166=1,AL$410=1),1,0)","v":0},{"$f":"IF(AND(AM166=1,AM$410=1),1,0)","v":0},{"$f":"IF(AND(AN166=1,AN$410=1),1,0)","v":0},{"$f":"IF(AND(AO166=1,AO$410=1),1,0)","v":0},1,{"$f":"IF(AND(AP166=1,AP$410=1),1,0)","v":0},{"$f":"IF(AND(AQ166=1,AQ$410=1),1,0)","v":0},{"$f":"IF(AND(AR166=1,AR$410=1),1,0)","v":1},{"$f":"IF(AND(AS166=1,AS$410=1),1,0)","v":0},{"$f":"IF(AND(AT166=1,AT$410=1),1,0)","v":0},1,1,158,158,{"$f":"IFERROR(SMALL($CL$9:$CL$408,CK166),\"\")","v":158},{"$f":"IFERROR(INDEX($B$9:$I$408,$CM166,COLUMNS($CN$9:CN166)),\"\")","v":"TA158"},{"$f":"IFERROR(INDEX($B$9:$I$408,$CM166,COLUMNS($CN$9:CO166)),\"\")","v":"(Percentage of participants with the) Specified process management structures in place"},{"$f":"IFERROR(INDEX($B$9:$I$408,$CM166,COLUMNS($CN$9:CP166)),\"\")","v":"-"},{"$f":"IFERROR(INDEX($B$9:$I$408,$CM166,COLUMNS($CN$9:CQ166)),\"\")","v":"Output"},{"$f":"IFERROR(INDEX($B$9:$I$408,$CM166,COLUMNS($CN$9:CR166)),\"\")","v":"-"},{"$f":"IFERROR(INDEX($B$9:$I$408,$CM166,COLUMNS($CN$9:CS166)),\"\")","v":"Process/asset operation support"},{"$f":"IFERROR(INDEX($B$9:$I$408,$CM166,COLUMNS($CN$9:CT166)),\"\")","v":"-"},{"$f":"IFERROR(INDEX($B$9:$I$408,$CM166,COLUMNS($CN$9:CU166)),\"\")","v":"Percentage"}]
[null,{"$f":"IF(ISBLANK('TA Indicator Bank'!B163),\"\",'TA Indicator Bank'!B163)","v":"TA159"},{"$f":"IF(ISBLANK('TA Indicator Bank'!C163),\"\",'TA Indicator Bank'!C163)","v":"Percentage reduction in audit arrears"},{"$f":"IF(ISBLANK('TA Indicator Bank'!D163),\"\",'TA Indicator Bank'!D163)","v":"-"},{"$f":"IF(ISBLANK('TA Indicator Bank'!E163),\"\",'TA Indicator Bank'!E163)","v":"Output"},{"$f":"IF(ISBLANK('TA Indicator Bank'!F163),\"\",'TA Indicator Bank'!F163)","v":"-"},{"$f":"IF(ISBLANK('TA Indicator Bank'!G163),\"\",'TA Indicator Bank'!G163)","v":"Process/asset operation support"},{"$f":"IF(ISBLANK('TA Indicator Bank'!H163),\"\",'TA Indicator Bank'!H163)","v":"-"},{"$f":"IF(ISBLANK('TA Indicator Bank'!I163),\"\",'TA Indicator Bank'!I163)","v":"Percentage"},{"$f":"IF(ISBLANK('TA Indicator Bank'!J163),\"\",'TA Indicator Bank'!J163)","v":0},{"$f":"IF(ISBLANK('TA Indicator Bank'!K163),\"\",'TA Indicator Bank'!K163)","v":0},{"$f":"IF(ISBLANK('TA Indicator Bank'!L163),\"\",'TA Indicator Bank'!L163)","v":0},{"$f":"IF(ISBLANK('TA Indicator Bank'!M163),\"\",'TA Indicator Bank'!M163)","v":0},{"$f":"IF(ISBLANK('TA Indicator Bank'!N163),\"\",'TA Indicator Bank'!N163)","v":0},{"$f":"IF(ISBLANK('TA Indicator Bank'!O163),\"\",'TA Indicator Bank'!O163)","v":0},{"$f":"IF(ISBLANK('TA Indicator Bank'!P163),\"\",'TA Indicator Bank'!P163)","v":0},{"$f":"IF(ISBLANK('TA Indicator Bank'!Q163),\"\",'TA Indicator Bank'!Q163)","v":0},{"$f":"IF(ISBLANK('TA Indicator Bank'!R163),\"\",'TA Indicator Bank'!R163)","v":0},{"$f":"IF(ISBLANK('TA Indicator Bank'!S163),\"\",'TA Indicator Bank'!S163)","v":0},{"$f":"IF(ISBLANK('TA Indicator Bank'!T163),\"\",'TA Indicator Bank'!T163)","v":0},{"$f":"IF(ISBLANK('TA Indicator Bank'!U163),\"\",'TA Indicator Bank'!U163)","v":0},{"$f":"IF(ISBLANK('TA Indicator Bank'!V163),\"\",'TA Indicator Bank'!V163)","v":0},{"$f":"IF(ISBLANK('TA Indicator Bank'!W163),\"\",'TA Indicator Bank'!W163)","v":0},{"$f":"IF(ISBLANK('TA Indicator Bank'!X163),\"\",'TA Indicator Bank'!X163)","v":0},{"$f":"IF(ISBLANK('TA Indicator Bank'!Y163),\"\",'TA Indicator Bank'!Y163)","v":0},{"$f":"IF(ISBLANK('TA Indicator Bank'!Z163),\"\",'TA Indicator Bank'!Z163)","v":0},{"$f":"IF(ISBLANK('TA Indicator Bank'!AA163),\"\",'TA Indicator Bank'!AA163)","v":0},{"$f":"IF(ISBLANK('TA Indicator Bank'!AB163),\"\",'TA Indicator Bank'!AB163)","v":0},{"$f":"IF(ISBLANK('TA Indicator Bank'!AC163),\"\",'TA Indicator Bank'!AC163)","v":0},{"$f":"IF(ISBLANK('TA Indicator Bank'!AD163),\"\",'TA Indicator Bank'!AD163)","v":1},{"$f":"IF(ISBLANK('TA Indicator Bank'!AE163),\"\",'TA Indicator Bank'!AE163)","v":0},{"$f":"IF(ISBLANK('TA Indicator Bank'!AF163),\"\",'TA Indicator Bank'!AF163)","v":0},{"$f":"IF(ISBLANK('TA Indicator Bank'!AG163),\"\",'TA Indicator Bank'!AG163)","v":0},{"$f":"IF(ISBLANK('TA Indicator Bank'!AH163),\"\",'TA Indicator Bank'!AH163)","v":0},{"$f":"IF(ISBLANK('TA Indicator Bank'!AI163),\"\",'TA Indicator Bank'!AI163)","v":0},{"$f":"IF(ISBLANK('TA Indicator Bank'!AJ163),\"\",'TA Indicator Bank'!AJ163)","v":0},{"$f":"IF(ISBLANK('TA Indicator Bank'!AK163),\"\",'TA Indicator Bank'!AK163)","v":0},{"$f":"IF(ISBLANK('TA Indicator Bank'!AL163),\"\",'TA Indicator Bank'!AL163)","v":0},{"$f":"IF(ISBLANK('TA Indicator Bank'!AM163),\"\",'TA Indicator Bank'!AM163)","v":0},{"$f":"IF(ISBLANK('TA Indicator Bank'!AN163),\"\",'TA Indicator Bank'!AN163)","v":0},{"$f":"IF(ISBLANK('TA Indicator Bank'!AO163),\"\",'TA Indicator Bank'!AO163)","v":0},{"$f":"IF(ISBLANK('TA Indicator Bank'!AP163),\"\",'TA Indicator Bank'!AP163)","v":0},{"$f":"IF(ISBLANK('TA Indicator Bank'!AQ163),\"\",'TA Indicator Bank'!AQ163)","v":0},{"$f":"IF(ISBLANK('TA Indicator Bank'!AR163),\"\",'TA Indicator Bank'!AR163)","v":1},{"$f":"IF(ISBLANK('TA Indicator Bank'!AS163),\"\",'TA Indicator Bank'!AS163)","v":0},{"$f":"IF(ISBLANK('TA Indicator Bank'!AT163),\"\",'TA Indicator Bank'!AT163)","v":0},{"$f":"IF(AND(J167=1,J$410=1),1,0)","v":0},{"$f":"IF(AND(K167=1,K$410=1),1,0)","v":0},{"$f":"IF(AND(L167=1,L$410=1),1,0)","v":0},{"$f":"IF(AND(M167=1,M$410=1),1,0)","v":0},{"$f":"IF(AND(N167=1,N$410=1),1,0)","v":0},{"$f":"IF(AND(O167=1,O$410=1),1,0)","v":0},{"$f":"IF(AND(P167=1,P$410=1),1,0)","v":0},{"$f":"IF(AND(Q167=1,Q$410=1),1,0)","v":0},{"$f":"IF(AND(R167=1,R$410=1),1,0)","v":0},{"$f":"IF(AND(S167=1,S$410=1),1,0)","v":0},{"$f":"IF(AND(T167=1,T$410=1),1,0)","v":0},{"$f":"IF(AND(U167=1,U$410=1),1,0)","v":0},{"$f":"IF(AND(V167=1,V$410=1),1,0)","v":0},{"$f":"IF(AND(W167=1,W$410=1),1,0)","v":0},1,{"$f":"IF(AND(X167=1,X$410=1),1,0)","v":0},{"$f":"IF(AND(Y167=1,Y$410=1),1,0)","v":0},{"$f":"IF(AND(Z167=1,Z$410=1),1,0)","v":0},{"$f":"IF(AND(AA167=1,AA$410=1),1,0)","v":0},{"$f":"IF(AND(AB167=1,AB$410=1),1,0)","v":0},{"$f":"IF(AND(AC167=1,AC$410=1),1,0)","v":0},{"$f":"IF(AND(AD167=1,AD$410=1),1,0)","v":1},{"$f":"IF(AND(AE167=1,AE$410=1),1,0)","v":0},{"$f":"IF(AND(AF167=1,AF$410=1),1,0)","v":0},1,{"$f":"IF(AND(AG167=1,AG$410=1),1,0)","v":0},{"$f":"IF(AND(AH167=1,AH$410=1),1,0)","v":0},{"$f":"IF(AND(AI167=1,AI$410=1),1,0)","v":0},{"$f":"IF(AND(AJ167=1,AJ$410=1),1,0)","v":0},{"$f":"IF(AND(AK167=1,AK$410=1),1,0)","v":0},{"$f":"IF(AND(AL167=1,AL$410=1),1,0)","v":0},{"$f":"IF(AND(AM167=1,AM$410=1),1,0)","v":0},{"$f":"IF(AND(AN167=1,AN$410=1),1,0)","v":0},{"$f":"IF(AND(AO167=1,AO$410=1),1,0)","v":0},1,{"$f":"IF(AND(AP167=1,AP$410=1),1,0)","v":0},{"$f":"IF(AND(AQ167=1,AQ$410=1),1,0)","v":0},{"$f":"IF(AND(AR167=1,AR$410=1),1,0)","v":1},{"$f":"IF(AND(AS167=1,AS$410=1),1,0)","v":0},{"$f":"IF(AND(AT167=1,AT$410=1),1,0)","v":0},1,1,159,159,{"$f":"IFERROR(SMALL($CL$9:$CL$408,CK167),\"\")","v":159},{"$f":"IFERROR(INDEX($B$9:$I$408,$CM167,COLUMNS($CN$9:CN167)),\"\")","v":"TA159"},{"$f":"IFERROR(INDEX($B$9:$I$408,$CM167,COLUMNS($CN$9:CO167)),\"\")","v":"Percentage reduction in audit arrears"},{"$f":"IFERROR(INDEX($B$9:$I$408,$CM167,COLUMNS($CN$9:CP167)),\"\")","v":"-"},{"$f":"IFERROR(INDEX($B$9:$I$408,$CM167,COLUMNS($CN$9:CQ167)),\"\")","v":"Output"},{"$f":"IFERROR(INDEX($B$9:$I$408,$CM167,COLUMNS($CN$9:CR167)),\"\")","v":"-"},{"$f":"IFERROR(INDEX($B$9:$I$408,$CM167,COLUMNS($CN$9:CS167)),\"\")","v":"Process/asset operation support"},{"$f":"IFERROR(INDEX($B$9:$I$408,$CM167,COLUMNS($CN$9:CT167)),\"\")","v":"-"},{"$f":"IFERROR(INDEX($B$9:$I$408,$CM167,COLUMNS($CN$9:CU167)),\"\")","v":"Percentage"}]
[null,{"$f":"IF(ISBLANK('TA Indicator Bank'!B164),\"\",'TA Indicator Bank'!B164)","v":"TA160"},{"$f":"IF(ISBLANK('TA Indicator Bank'!C164),\"\",'TA Indicator Bank'!C164)","v":"How well a programme converts inputs into intended output (e.g. output unit costs)"},{"$f":"IF(ISBLANK('TA Indicator Bank'!D164),\"\",'TA Indicator Bank'!D164)","v":"-"},{"$f":"IF(ISBLANK('TA Indicator Bank'!E164),\"\",'TA Indicator Bank'!E164)","v":"Output"},{"$f":"IF(ISBLANK('TA Indicator Bank'!F164),\"\",'TA Indicator Bank'!F164)","v":"-"},{"$f":"IF(ISBLANK('TA Indicator Bank'!G164),\"\",'TA Indicator Bank'!G164)","v":"Process/asset operation support"},{"$f":"IF(ISBLANK('TA Indicator Bank'!H164),\"\",'TA Indicator Bank'!H164)","v":"-"},{"$f":"IF(ISBLANK('TA Indicator Bank'!I164),\"\",'TA Indicator Bank'!I164)","v":"Number"},{"$f":"IF(ISBLANK('TA Indicator Bank'!J164),\"\",'TA Indicator Bank'!J164)","v":0},{"$f":"IF(ISBLANK('TA Indicator Bank'!K164),\"\",'TA Indicator Bank'!K164)","v":0},{"$f":"IF(ISBLANK('TA Indicator Bank'!L164),\"\",'TA Indicator Bank'!L164)","v":0},{"$f":"IF(ISBLANK('TA Indicator Bank'!M164),\"\",'TA Indicator Bank'!M164)","v":0},{"$f":"IF(ISBLANK('TA Indicator Bank'!N164),\"\",'TA Indicator Bank'!N164)","v":0},{"$f":"IF(ISBLANK('TA Indicator Bank'!O164),\"\",'TA Indicator Bank'!O164)","v":0},{"$f":"IF(ISBLANK('TA Indicator Bank'!P164),\"\",'TA Indicator Bank'!P164)","v":0},{"$f":"IF(ISBLANK('TA Indicator Bank'!Q164),\"\",'TA Indicator Bank'!Q164)","v":0},{"$f":"IF(ISBLANK('TA Indicator Bank'!R164),\"\",'TA Indicator Bank'!R164)","v":0},{"$f":"IF(ISBLANK('TA Indicator Bank'!S164),\"\",'TA Indicator Bank'!S164)","v":0},{"$f":"IF(ISBLANK('TA Indicator Bank'!T164),\"\",'TA Indicator Bank'!T164)","v":0},{"$f":"IF(ISBLANK('TA Indicator Bank'!U164),\"\",'TA Indicator Bank'!U164)","v":0},{"$f":"IF(ISBLANK('TA Indicator Bank'!V164),\"\",'TA Indicator Bank'!V164)","v":0},{"$f":"IF(ISBLANK('TA Indicator Bank'!W164),\"\",'TA Indicator Bank'!W164)","v":0},{"$f":"IF(ISBLANK('TA Indicator Bank'!X164),\"\",'TA Indicator Bank'!X164)","v":0},{"$f":"IF(ISBLANK('TA Indicator Bank'!Y164),\"\",'TA Indicator Bank'!Y164)","v":0},{"$f":"IF(ISBLANK('TA Indicator Bank'!Z164),\"\",'TA Indicator Bank'!Z164)","v":0},{"$f":"IF(ISBLANK('TA Indicator Bank'!AA164),\"\",'TA Indicator Bank'!AA164)","v":0},{"$f":"IF(ISBLANK('TA Indicator Bank'!AB164),\"\",'TA Indicator Bank'!AB164)","v":0},{"$f":"IF(ISBLANK('TA Indicator Bank'!AC164),\"\",'TA Indicator Bank'!AC164)","v":0},{"$f":"IF(ISBLANK('TA Indicator Bank'!AD164),\"\",'TA Indicator Bank'!AD164)","v":1},{"$f":"IF(ISBLANK('TA Indicator Bank'!AE164),\"\",'TA Indicator Bank'!AE164)","v":0},{"$f":"IF(ISBLANK('TA Indicator Bank'!AF164),\"\",'TA Indicator Bank'!AF164)","v":0},{"$f":"IF(ISBLANK('TA Indicator Bank'!AG164),\"\",'TA Indicator Bank'!AG164)","v":0},{"$f":"IF(ISBLANK('TA Indicator Bank'!AH164),\"\",'TA Indicator Bank'!AH164)","v":0},{"$f":"IF(ISBLANK('TA Indicator Bank'!AI164),\"\",'TA Indicator Bank'!AI164)","v":0},{"$f":"IF(ISBLANK('TA Indicator Bank'!AJ164),\"\",'TA Indicator Bank'!AJ164)","v":0},{"$f":"IF(ISBLANK('TA Indicator Bank'!AK164),\"\",'TA Indicator Bank'!AK164)","v":0},{"$f":"IF(ISBLANK('TA Indicator Bank'!AL164),\"\",'TA Indicator Bank'!AL164)","v":0},{"$f":"IF(ISBLANK('TA Indicator Bank'!AM164),\"\",'TA Indicator Bank'!AM164)","v":0},{"$f":"IF(ISBLANK('TA Indicator Bank'!AN164),\"\",'TA Indicator Bank'!AN164)","v":0},{"$f":"IF(ISBLANK('TA Indicator Bank'!AO164),\"\",'TA Indicator Bank'!AO164)","v":0},{"$f":"IF(ISBLANK('TA Indicator Bank'!AP164),\"\",'TA Indicator Bank'!AP164)","v":0},{"$f":"IF(ISBLANK('TA Indicator Bank'!AQ164),\"\",'TA Indicator Bank'!AQ164)","v":0},{"$f":"IF(ISBLANK('TA Indicator Bank'!AR164),\"\",'TA Indicator Bank'!AR164)","v":1},{"$f":"IF(ISBLANK('TA Indicator Bank'!AS164),\"\",'TA Indicator Bank'!AS164)","v":0},{"$f":"IF(ISBLANK('TA Indicator Bank'!AT164),\"\",'TA Indicator Bank'!AT164)","v":0},{"$f":"IF(AND(J168=1,J$410=1),1,0)","v":0},{"$f":"IF(AND(K168=1,K$410=1),1,0)","v":0},{"$f":"IF(AND(L168=1,L$410=1),1,0)","v":0},{"$f":"IF(AND(M168=1,M$410=1),1,0)","v":0},{"$f":"IF(AND(N168=1,N$410=1),1,0)","v":0},{"$f":"IF(AND(O168=1,O$410=1),1,0)","v":0},{"$f":"IF(AND(P168=1,P$410=1),1,0)","v":0},{"$f":"IF(AND(Q168=1,Q$410=1),1,0)","v":0},{"$f":"IF(AND(R168=1,R$410=1),1,0)","v":0},{"$f":"IF(AND(S168=1,S$410=1),1,0)","v":0},{"$f":"IF(AND(T168=1,T$410=1),1,0)","v":0},{"$f":"IF(AND(U168=1,U$410=1),1,0)","v":0},{"$f":"IF(AND(V168=1,V$410=1),1,0)","v":0},{"$f":"IF(AND(W168=1,W$410=1),1,0)","v":0},1,{"$f":"IF(AND(X168=1,X$410=1),1,0)","v":0},{"$f":"IF(AND(Y168=1,Y$410=1),1,0)","v":0},{"$f":"IF(AND(Z168=1,Z$410=1),1,0)","v":0},{"$f":"IF(AND(AA168=1,AA$410=1),1,0)","v":0},{"$f":"IF(AND(AB168=1,AB$410=1),1,0)","v":0},{"$f":"IF(AND(AC168=1,AC$410=1),1,0)","v":0},{"$f":"IF(AND(AD168=1,AD$410=1),1,0)","v":1},{"$f":"IF(AND(AE168=1,AE$410=1),1,0)","v":0},{"$f":"IF(AND(AF168=1,AF$410=1),1,0)","v":0},1,{"$f":"IF(AND(AG168=1,AG$410=1),1,0)","v":0},{"$f":"IF(AND(AH168=1,AH$410=1),1,0)","v":0},{"$f":"IF(AND(AI168=1,AI$410=1),1,0)","v":0},{"$f":"IF(AND(AJ168=1,AJ$410=1),1,0)","v":0},{"$f":"IF(AND(AK168=1,AK$410=1),1,0)","v":0},{"$f":"IF(AND(AL168=1,AL$410=1),1,0)","v":0},{"$f":"IF(AND(AM168=1,AM$410=1),1,0)","v":0},{"$f":"IF(AND(AN168=1,AN$410=1),1,0)","v":0},{"$f":"IF(AND(AO168=1,AO$410=1),1,0)","v":0},1,{"$f":"IF(AND(AP168=1,AP$410=1),1,0)","v":0},{"$f":"IF(AND(AQ168=1,AQ$410=1),1,0)","v":0},{"$f":"IF(AND(AR168=1,AR$410=1),1,0)","v":1},{"$f":"IF(AND(AS168=1,AS$410=1),1,0)","v":0},{"$f":"IF(AND(AT168=1,AT$410=1),1,0)","v":0},1,1,160,160,{"$f":"IFERROR(SMALL($CL$9:$CL$408,CK168),\"\")","v":160},{"$f":"IFERROR(INDEX($B$9:$I$408,$CM168,COLUMNS($CN$9:CN168)),\"\")","v":"TA160"},{"$f":"IFERROR(INDEX($B$9:$I$408,$CM168,COLUMNS($CN$9:CO168)),\"\")","v":"How well a programme converts inputs into intended output (e.g. output unit costs)"},{"$f":"IFERROR(INDEX($B$9:$I$408,$CM168,COLUMNS($CN$9:CP168)),\"\")","v":"-"},{"$f":"IFERROR(INDEX($B$9:$I$408,$CM168,COLUMNS($CN$9:CQ168)),\"\")","v":"Output"},{"$f":"IFERROR(INDEX($B$9:$I$408,$CM168,COLUMNS($CN$9:CR168)),\"\")","v":"-"},{"$f":"IFERROR(INDEX($B$9:$I$408,$CM168,COLUMNS($CN$9:CS168)),\"\")","v":"Process/asset operation support"},{"$f":"IFERROR(INDEX($B$9:$I$408,$CM168,COLUMNS($CN$9:CT168)),\"\")","v":"-"},{"$f":"IFERROR(INDEX($B$9:$I$408,$CM168,COLUMNS($CN$9:CU168)),\"\")","v":"Number"}]
[null,{"$f":"IF(ISBLANK('TA Indicator Bank'!B165),\"\",'TA Indicator Bank'!B165)","v":"TA161"},{"$f":"IF(ISBLANK('TA Indicator Bank'!C165),\"\",'TA Indicator Bank'!C165)","v":"Number of participants form better relationships with government"},{"$f":"IF(ISBLANK('TA Indicator Bank'!D165),\"\",'TA Indicator Bank'!D165)","v":"-"},{"$f":"IF(ISBLANK('TA Indicator Bank'!E165),\"\",'TA Indicator Bank'!E165)","v":"Output"},{"$f":"IF(ISBLANK('TA Indicator Bank'!F165),\"\",'TA Indicator Bank'!F165)","v":"-"},{"$f":"IF(ISBLANK('TA Indicator Bank'!G165),\"\",'TA Indicator Bank'!G165)","v":"Process/asset operation support"},{"$f":"IF(ISBLANK('TA Indicator Bank'!H165),\"\",'TA Indicator Bank'!H165)","v":"-"},{"$f":"IF(ISBLANK('TA Indicator Bank'!I165),\"\",'TA Indicator Bank'!I165)","v":"Number"},{"$f":"IF(ISBLANK('TA Indicator Bank'!J165),\"\",'TA Indicator Bank'!J165)","v":0},{"$f":"IF(ISBLANK('TA Indicator Bank'!K165),\"\",'TA Indicator Bank'!K165)","v":0},{"$f":"IF(ISBLANK('TA Indicator Bank'!L165),\"\",'TA Indicator Bank'!L165)","v":0},{"$f":"IF(ISBLANK('TA Indicator Bank'!M165),\"\",'TA Indicator Bank'!M165)","v":0},{"$f":"IF(ISBLANK('TA Indicator Bank'!N165),\"\",'TA Indicator Bank'!N165)","v":0},{"$f":"IF(ISBLANK('TA Indicator Bank'!O165),\"\",'TA Indicator Bank'!O165)","v":0},{"$f":"IF(ISBLANK('TA Indicator Bank'!P165),\"\",'TA Indicator Bank'!P165)","v":0},{"$f":"IF(ISBLANK('TA Indicator Bank'!Q165),\"\",'TA Indicator Bank'!Q165)","v":0},{"$f":"IF(ISBLANK('TA Indicator Bank'!R165),\"\",'TA Indicator Bank'!R165)","v":0},{"$f":"IF(ISBLANK('TA Indicator Bank'!S165),\"\",'TA Indicator Bank'!S165)","v":0},{"$f":"IF(ISBLANK('TA Indicator Bank'!T165),\"\",'TA Indicator Bank'!T165)","v":0},{"$f":"IF(ISBLANK('TA Indicator Bank'!U165),\"\",'TA Indicator Bank'!U165)","v":0},{"$f":"IF(ISBLANK('TA Indicator Bank'!V165),\"\",'TA Indicator Bank'!V165)","v":0},{"$f":"IF(ISBLANK('TA Indicator Bank'!W165),\"\",'TA Indicator Bank'!W165)","v":0},{"$f":"IF(ISBLANK('TA Indicator Bank'!X165),\"\",'TA Indicator Bank'!X165)","v":0},{"$f":"IF(ISBLANK('TA Indicator Bank'!Y165),\"\",'TA Indicator Bank'!Y165)","v":0},{"$f":"IF(ISBLANK('TA Indicator Bank'!Z165),\"\",'TA Indicator Bank'!Z165)","v":0},{"$f":"IF(ISBLANK('TA Indicator Bank'!AA165),\"\",'TA Indicator Bank'!AA165)","v":0},{"$f":"IF(ISBLANK('TA Indicator Bank'!AB165),\"\",'TA Indicator Bank'!AB165)","v":0},{"$f":"IF(ISBLANK('TA Indicator Bank'!AC165),\"\",'TA Indicator Bank'!AC165)","v":0},{"$f":"IF(ISBLANK('TA Indicator Bank'!AD165),\"\",'TA Indicator Bank'!AD165)","v":1},{"$f":"IF(ISBLANK('TA Indicator Bank'!AE165),\"\",'TA Indicator Bank'!AE165)","v":0},{"$f":"IF(ISBLANK('TA Indicator Bank'!AF165),\"\",'TA Indicator Bank'!AF165)","v":0},{"$f":"IF(ISBLANK('TA Indicator Bank'!AG165),\"\",'TA Indicator Bank'!AG165)","v":0},{"$f":"IF(ISBLANK('TA Indicator Bank'!AH165),\"\",'TA Indicator Bank'!AH165)","v":0},{"$f":"IF(ISBLANK('TA Indicator Bank'!AI165),\"\",'TA Indicator Bank'!AI165)","v":0},{"$f":"IF(ISBLANK('TA Indicator Bank'!AJ165),\"\",'TA Indicator Bank'!AJ165)","v":0},{"$f":"IF(ISBLANK('TA Indicator Bank'!AK165),\"\",'TA Indicator Bank'!AK165)","v":0},{"$f":"IF(ISBLANK('TA Indicator Bank'!AL165),\"\",'TA Indicator Bank'!AL165)","v":0},{"$f":"IF(ISBLANK('TA Indicator Bank'!AM165),\"\",'TA Indicator Bank'!AM165)","v":0},{"$f":"IF(ISBLANK('TA Indicator Bank'!AN165),\"\",'TA Indicator Bank'!AN165)","v":0},{"$f":"IF(ISBLANK('TA Indicator Bank'!AO165),\"\",'TA Indicator Bank'!AO165)","v":0},{"$f":"IF(ISBLANK('TA Indicator Bank'!AP165),\"\",'TA Indicator Bank'!AP165)","v":0},{"$f":"IF(ISBLANK('TA Indicator Bank'!AQ165),\"\",'TA Indicator Bank'!AQ165)","v":0},{"$f":"IF(ISBLANK('TA Indicator Bank'!AR165),\"\",'TA Indicator Bank'!AR165)","v":1},{"$f":"IF(ISBLANK('TA Indicator Bank'!AS165),\"\",'TA Indicator Bank'!AS165)","v":0},{"$f":"IF(ISBLANK('TA Indicator Bank'!AT165),\"\",'TA Indicator Bank'!AT165)","v":0},{"$f":"IF(AND(J169=1,J$410=1),1,0)","v":0},{"$f":"IF(AND(K169=1,K$410=1),1,0)","v":0},{"$f":"IF(AND(L169=1,L$410=1),1,0)","v":0},{"$f":"IF(AND(M169=1,M$410=1),1,0)","v":0},{"$f":"IF(AND(N169=1,N$410=1),1,0)","v":0},{"$f":"IF(AND(O169=1,O$410=1),1,0)","v":0},{"$f":"IF(AND(P169=1,P$410=1),1,0)","v":0},{"$f":"IF(AND(Q169=1,Q$410=1),1,0)","v":0},{"$f":"IF(AND(R169=1,R$410=1),1,0)","v":0},{"$f":"IF(AND(S169=1,S$410=1),1,0)","v":0},{"$f":"IF(AND(T169=1,T$410=1),1,0)","v":0},{"$f":"IF(AND(U169=1,U$410=1),1,0)","v":0},{"$f":"IF(AND(V169=1,V$410=1),1,0)","v":0},{"$f":"IF(AND(W169=1,W$410=1),1,0)","v":0},1,{"$f":"IF(AND(X169=1,X$410=1),1,0)","v":0},{"$f":"IF(AND(Y169=1,Y$410=1),1,0)","v":0},{"$f":"IF(AND(Z169=1,Z$410=1),1,0)","v":0},{"$f":"IF(AND(AA169=1,AA$410=1),1,0)","v":0},{"$f":"IF(AND(AB169=1,AB$410=1),1,0)","v":0},{"$f":"IF(AND(AC169=1,AC$410=1),1,0)","v":0},{"$f":"IF(AND(AD169=1,AD$410=1),1,0)","v":1},{"$f":"IF(AND(AE169=1,AE$410=1),1,0)","v":0},{"$f":"IF(AND(AF169=1,AF$410=1),1,0)","v":0},1,{"$f":"IF(AND(AG169=1,AG$410=1),1,0)","v":0},{"$f":"IF(AND(AH169=1,AH$410=1),1,0)","v":0},{"$f":"IF(AND(AI169=1,AI$410=1),1,0)","v":0},{"$f":"IF(AND(AJ169=1,AJ$410=1),1,0)","v":0},{"$f":"IF(AND(AK169=1,AK$410=1),1,0)","v":0},{"$f":"IF(AND(AL169=1,AL$410=1),1,0)","v":0},{"$f":"IF(AND(AM169=1,AM$410=1),1,0)","v":0},{"$f":"IF(AND(AN169=1,AN$410=1),1,0)","v":0},{"$f":"IF(AND(AO169=1,AO$410=1),1,0)","v":0},1,{"$f":"IF(AND(AP169=1,AP$410=1),1,0)","v":0},{"$f":"IF(AND(AQ169=1,AQ$410=1),1,0)","v":0},{"$f":"IF(AND(AR169=1,AR$410=1),1,0)","v":1},{"$f":"IF(AND(AS169=1,AS$410=1),1,0)","v":0},{"$f":"IF(AND(AT169=1,AT$410=1),1,0)","v":0},1,1,161,161,{"$f":"IFERROR(SMALL($CL$9:$CL$408,CK169),\"\")","v":161},{"$f":"IFERROR(INDEX($B$9:$I$408,$CM169,COLUMNS($CN$9:CN169)),\"\")","v":"TA161"},{"$f":"IFERROR(INDEX($B$9:$I$408,$CM169,COLUMNS($CN$9:CO169)),\"\")","v":"Number of participants form better relationships with government"},{"$f":"IFERROR(INDEX($B$9:$I$408,$CM169,COLUMNS($CN$9:CP169)),\"\")","v":"-"},{"$f":"IFERROR(INDEX($B$9:$I$408,$CM169,COLUMNS($CN$9:CQ169)),\"\")","v":"Output"},{"$f":"IFERROR(INDEX($B$9:$I$408,$CM169,COLUMNS($CN$9:CR169)),\"\")","v":"-"},{"$f":"IFERROR(INDEX($B$9:$I$408,$CM169,COLUMNS($CN$9:CS169)),\"\")","v":"Process/asset operation support"},{"$f":"IFERROR(INDEX($B$9:$I$408,$CM169,COLUMNS($CN$9:CT169)),\"\")","v":"-"},{"$f":"IFERROR(INDEX($B$9:$I$408,$CM169,COLUMNS($CN$9:CU169)),\"\")","v":"Number"}]
[null,{"$f":"IF(ISBLANK('TA Indicator Bank'!B166),\"\",'TA Indicator Bank'!B166)","v":"TA162"},{"$f":"IF(ISBLANK('TA Indicator Bank'!C166),\"\",'TA Indicator Bank'!C166)","v":"Average/increased capacity score"},{"$f":"IF(ISBLANK('TA Indicator Bank'!D166),\"\",'TA Indicator Bank'!D166)","v":"-"},{"$f":"IF(ISBLANK('TA Indicator Bank'!E166),\"\",'TA Indicator Bank'!E166)","v":"Output"},{"$f":"IF(ISBLANK('TA Indicator Bank'!F166),\"\",'TA Indicator Bank'!F166)","v":"-"},{"$f":"IF(ISBLANK('TA Indicator Bank'!G166),\"\",'TA Indicator Bank'!G166)","v":"Process/asset operation support"},{"$f":"IF(ISBLANK('TA Indicator Bank'!H166),\"\",'TA Indicator Bank'!H166)","v":"-"},{"$f":"IF(ISBLANK('TA Indicator Bank'!I166),\"\",'TA Indicator Bank'!I166)","v":"Score"},{"$f":"IF(ISBLANK('TA Indicator Bank'!J166),\"\",'TA Indicator Bank'!J166)","v":0},{"$f":"IF(ISBLANK('TA Indicator Bank'!K166),\"\",'TA Indicator Bank'!K166)","v":0},{"$f":"IF(ISBLANK('TA Indicator Bank'!L166),\"\",'TA Indicator Bank'!L166)","v":0},{"$f":"IF(ISBLANK('TA Indicator Bank'!M166),\"\",'TA Indicator Bank'!M166)","v":0},{"$f":"IF(ISBLANK('TA Indicator Bank'!N166),\"\",'TA Indicator Bank'!N166)","v":0},{"$f":"IF(ISBLANK('TA Indicator Bank'!O166),\"\",'TA Indicator Bank'!O166)","v":0},{"$f":"IF(ISBLANK('TA Indicator Bank'!P166),\"\",'TA Indicator Bank'!P166)","v":0},{"$f":"IF(ISBLANK('TA Indicator Bank'!Q166),\"\",'TA Indicator Bank'!Q166)","v":0},{"$f":"IF(ISBLANK('TA Indicator Bank'!R166),\"\",'TA Indicator Bank'!R166)","v":0},{"$f":"IF(ISBLANK('TA Indicator Bank'!S166),\"\",'TA Indicator Bank'!S166)","v":0},{"$f":"IF(ISBLANK('TA Indicator Bank'!T166),\"\",'TA Indicator Bank'!T166)","v":0},{"$f":"IF(ISBLANK('TA Indicator Bank'!U166),\"\",'TA Indicator Bank'!U166)","v":0},{"$f":"IF(ISBLANK('TA Indicator Bank'!V166),\"\",'TA Indicator Bank'!V166)","v":0},{"$f":"IF(ISBLANK('TA Indicator Bank'!W166),\"\",'TA Indicator Bank'!W166)","v":0},{"$f":"IF(ISBLANK('TA Indicator Bank'!X166),\"\",'TA Indicator Bank'!X166)","v":0},{"$f":"IF(ISBLANK('TA Indicator Bank'!Y166),\"\",'TA Indicator Bank'!Y166)","v":0},{"$f":"IF(ISBLANK('TA Indicator Bank'!Z166),\"\",'TA Indicator Bank'!Z166)","v":0},{"$f":"IF(ISBLANK('TA Indicator Bank'!AA166),\"\",'TA Indicator Bank'!AA166)","v":0},{"$f":"IF(ISBLANK('TA Indicator Bank'!AB166),\"\",'TA Indicator Bank'!AB166)","v":0},{"$f":"IF(ISBLANK('TA Indicator Bank'!AC166),\"\",'TA Indicator Bank'!AC166)","v":0},{"$f":"IF(ISBLANK('TA Indicator Bank'!AD166),\"\",'TA Indicator Bank'!AD166)","v":1},{"$f":"IF(ISBLANK('TA Indicator Bank'!AE166),\"\",'TA Indicator Bank'!AE166)","v":0},{"$f":"IF(ISBLANK('TA Indicator Bank'!AF166),\"\",'TA Indicator Bank'!AF166)","v":0},{"$f":"IF(ISBLANK('TA Indicator Bank'!AG166),\"\",'TA Indicator Bank'!AG166)","v":0},{"$f":"IF(ISBLANK('TA Indicator Bank'!AH166),\"\",'TA Indicator Bank'!AH166)","v":0},{"$f":"IF(ISBLANK('TA Indicator Bank'!AI166),\"\",'TA Indicator Bank'!AI166)","v":0},{"$f":"IF(ISBLANK('TA Indicator Bank'!AJ166),\"\",'TA Indicator Bank'!AJ166)","v":0},{"$f":"IF(ISBLANK('TA Indicator Bank'!AK166),\"\",'TA Indicator Bank'!AK166)","v":0},{"$f":"IF(ISBLANK('TA Indicator Bank'!AL166),\"\",'TA Indicator Bank'!AL166)","v":0},{"$f":"IF(ISBLANK('TA Indicator Bank'!AM166),\"\",'TA Indicator Bank'!AM166)","v":0},{"$f":"IF(ISBLANK('TA Indicator Bank'!AN166),\"\",'TA Indicator Bank'!AN166)","v":0},{"$f":"IF(ISBLANK('TA Indicator Bank'!AO166),\"\",'TA Indicator Bank'!AO166)","v":0},{"$f":"IF(ISBLANK('TA Indicator Bank'!AP166),\"\",'TA Indicator Bank'!AP166)","v":0},{"$f":"IF(ISBLANK('TA Indicator Bank'!AQ166),\"\",'TA Indicator Bank'!AQ166)","v":0},{"$f":"IF(ISBLANK('TA Indicator Bank'!AR166),\"\",'TA Indicator Bank'!AR166)","v":1},{"$f":"IF(ISBLANK('TA Indicator Bank'!AS166),\"\",'TA Indicator Bank'!AS166)","v":0},{"$f":"IF(ISBLANK('TA Indicator Bank'!AT166),\"\",'TA Indicator Bank'!AT166)","v":0},{"$f":"IF(AND(J170=1,J$410=1),1,0)","v":0},{"$f":"IF(AND(K170=1,K$410=1),1,0)","v":0},{"$f":"IF(AND(L170=1,L$410=1),1,0)","v":0},{"$f":"IF(AND(M170=1,M$410=1),1,0)","v":0},{"$f":"IF(AND(N170=1,N$410=1),1,0)","v":0},{"$f":"IF(AND(O170=1,O$410=1),1,0)","v":0},{"$f":"IF(AND(P170=1,P$410=1),1,0)","v":0},{"$f":"IF(AND(Q170=1,Q$410=1),1,0)","v":0},{"$f":"IF(AND(R170=1,R$410=1),1,0)","v":0},{"$f":"IF(AND(S170=1,S$410=1),1,0)","v":0},{"$f":"IF(AND(T170=1,T$410=1),1,0)","v":0},{"$f":"IF(AND(U170=1,U$410=1),1,0)","v":0},{"$f":"IF(AND(V170=1,V$410=1),1,0)","v":0},{"$f":"IF(AND(W170=1,W$410=1),1,0)","v":0},1,{"$f":"IF(AND(X170=1,X$410=1),1,0)","v":0},{"$f":"IF(AND(Y170=1,Y$410=1),1,0)","v":0},{"$f":"IF(AND(Z170=1,Z$410=1),1,0)","v":0},{"$f":"IF(AND(AA170=1,AA$410=1),1,0)","v":0},{"$f":"IF(AND(AB170=1,AB$410=1),1,0)","v":0},{"$f":"IF(AND(AC170=1,AC$410=1),1,0)","v":0},{"$f":"IF(AND(AD170=1,AD$410=1),1,0)","v":1},{"$f":"IF(AND(AE170=1,AE$410=1),1,0)","v":0},{"$f":"IF(AND(AF170=1,AF$410=1),1,0)","v":0},1,{"$f":"IF(AND(AG170=1,AG$410=1),1,0)","v":0},{"$f":"IF(AND(AH170=1,AH$410=1),1,0)","v":0},{"$f":"IF(AND(AI170=1,AI$410=1),1,0)","v":0},{"$f":"IF(AND(AJ170=1,AJ$410=1),1,0)","v":0},{"$f":"IF(AND(AK170=1,AK$410=1),1,0)","v":0},{"$f":"IF(AND(AL170=1,AL$410=1),1,0)","v":0},{"$f":"IF(AND(AM170=1,AM$410=1),1,0)","v":0},{"$f":"IF(AND(AN170=1,AN$410=1),1,0)","v":0},{"$f":"IF(AND(AO170=1,AO$410=1),1,0)","v":0},1,{"$f":"IF(AND(AP170=1,AP$410=1),1,0)","v":0},{"$f":"IF(AND(AQ170=1,AQ$410=1),1,0)","v":0},{"$f":"IF(AND(AR170=1,AR$410=1),1,0)","v":1},{"$f":"IF(AND(AS170=1,AS$410=1),1,0)","v":0},{"$f":"IF(AND(AT170=1,AT$410=1),1,0)","v":0},1,1,162,162,{"$f":"IFERROR(SMALL($CL$9:$CL$408,CK170),\"\")","v":162},{"$f":"IFERROR(INDEX($B$9:$I$408,$CM170,COLUMNS($CN$9:CN170)),\"\")","v":"TA162"},{"$f":"IFERROR(INDEX($B$9:$I$408,$CM170,COLUMNS($CN$9:CO170)),\"\")","v":"Average/increased capacity score"},{"$f":"IFERROR(INDEX($B$9:$I$408,$CM170,COLUMNS($CN$9:CP170)),\"\")","v":"-"},{"$f":"IFERROR(INDEX($B$9:$I$408,$CM170,COLUMNS($CN$9:CQ170)),\"\")","v":"Output"},{"$f":"IFERROR(INDEX($B$9:$I$408,$CM170,COLUMNS($CN$9:CR170)),\"\")","v":"-"},{"$f":"IFERROR(INDEX($B$9:$I$408,$CM170,COLUMNS($CN$9:CS170)),\"\")","v":"Process/asset operation support"},{"$f":"IFERROR(INDEX($B$9:$I$408,$CM170,COLUMNS($CN$9:CT170)),\"\")","v":"-"},{"$f":"IFERROR(INDEX($B$9:$I$408,$CM170,COLUMNS($CN$9:CU170)),\"\")","v":"Score"}]
[null,{"$f":"IF(ISBLANK('TA Indicator Bank'!B167),\"\",'TA Indicator Bank'!B167)","v":"TA163"},{"$f":"IF(ISBLANK('TA Indicator Bank'!C167),\"\",'TA Indicator Bank'!C167)","v":"Number of companies bidding for project"},{"$f":"IF(ISBLANK('TA Indicator Bank'!D167),\"\",'TA Indicator Bank'!D167)","v":"-"},{"$f":"IF(ISBLANK('TA Indicator Bank'!E167),\"\",'TA Indicator Bank'!E167)","v":"Output"},{"$f":"IF(ISBLANK('TA Indicator Bank'!F167),\"\",'TA Indicator Bank'!F167)","v":"-"},{"$f":"IF(ISBLANK('TA Indicator Bank'!G167),\"\",'TA Indicator Bank'!G167)","v":"Financing support"},{"$f":"IF(ISBLANK('TA Indicator Bank'!H167),\"\",'TA Indicator Bank'!H167)","v":"-"},{"$f":"IF(ISBLANK('TA Indicator Bank'!I167),\"\",'TA Indicator Bank'!I167)","v":"Number"},{"$f":"IF(ISBLANK('TA Indicator Bank'!J167),\"\",'TA Indicator Bank'!J167)","v":0},{"$f":"IF(ISBLANK('TA Indicator Bank'!K167),\"\",'TA Indicator Bank'!K167)","v":0},{"$f":"IF(ISBLANK('TA Indicator Bank'!L167),\"\",'TA Indicator Bank'!L167)","v":0},{"$f":"IF(ISBLANK('TA Indicator Bank'!M167),\"\",'TA Indicator Bank'!M167)","v":0},{"$f":"IF(ISBLANK('TA Indicator Bank'!N167),\"\",'TA Indicator Bank'!N167)","v":0},{"$f":"IF(ISBLANK('TA Indicator Bank'!O167),\"\",'TA Indicator Bank'!O167)","v":0},{"$f":"IF(ISBLANK('TA Indicator Bank'!P167),\"\",'TA Indicator Bank'!P167)","v":0},{"$f":"IF(ISBLANK('TA Indicator Bank'!Q167),\"\",'TA Indicator Bank'!Q167)","v":0},{"$f":"IF(ISBLANK('TA Indicator Bank'!R167),\"\",'TA Indicator Bank'!R167)","v":0},{"$f":"IF(ISBLANK('TA Indicator Bank'!S167),\"\",'TA Indicator Bank'!S167)","v":0},{"$f":"IF(ISBLANK('TA Indicator Bank'!T167),\"\",'TA Indicator Bank'!T167)","v":0},{"$f":"IF(ISBLANK('TA Indicator Bank'!U167),\"\",'TA Indicator Bank'!U167)","v":0},{"$f":"IF(ISBLANK('TA Indicator Bank'!V167),\"\",'TA Indicator Bank'!V167)","v":0},{"$f":"IF(ISBLANK('TA Indicator Bank'!W167),\"\",'TA Indicator Bank'!W167)","v":0},{"$f":"IF(ISBLANK('TA Indicator Bank'!X167),\"\",'TA Indicator Bank'!X167)","v":0},{"$f":"IF(ISBLANK('TA Indicator Bank'!Y167),\"\",'TA Indicator Bank'!Y167)","v":0},{"$f":"IF(ISBLANK('TA Indicator Bank'!Z167),\"\",'TA Indicator Bank'!Z167)","v":0},{"$f":"IF(ISBLANK('TA Indicator Bank'!AA167),\"\",'TA Indicator Bank'!AA167)","v":0},{"$f":"IF(ISBLANK('TA Indicator Bank'!AB167),\"\",'TA Indicator Bank'!AB167)","v":0},{"$f":"IF(ISBLANK('TA Indicator Bank'!AC167),\"\",'TA Indicator Bank'!AC167)","v":0},{"$f":"IF(ISBLANK('TA Indicator Bank'!AD167),\"\",'TA Indicator Bank'!AD167)","v":0},{"$f":"IF(ISBLANK('TA Indicator Bank'!AE167),\"\",'TA Indicator Bank'!AE167)","v":1},{"$f":"IF(ISBLANK('TA Indicator Bank'!AF167),\"\",'TA Indicator Bank'!AF167)","v":0},{"$f":"IF(ISBLANK('TA Indicator Bank'!AG167),\"\",'TA Indicator Bank'!AG167)","v":0},{"$f":"IF(ISBLANK('TA Indicator Bank'!AH167),\"\",'TA Indicator Bank'!AH167)","v":0},{"$f":"IF(ISBLANK('TA Indicator Bank'!AI167),\"\",'TA Indicator Bank'!AI167)","v":0},{"$f":"IF(ISBLANK('TA Indicator Bank'!AJ167),\"\",'TA Indicator Bank'!AJ167)","v":0},{"$f":"IF(ISBLANK('TA Indicator Bank'!AK167),\"\",'TA Indicator Bank'!AK167)","v":0},{"$f":"IF(ISBLANK('TA Indicator Bank'!AL167),\"\",'TA Indicator Bank'!AL167)","v":0},{"$f":"IF(ISBLANK('TA Indicator Bank'!AM167),\"\",'TA Indicator Bank'!AM167)","v":0},{"$f":"IF(ISBLANK('TA Indicator Bank'!AN167),\"\",'TA Indicator Bank'!AN167)","v":0},{"$f":"IF(ISBLANK('TA Indicator Bank'!AO167),\"\",'TA Indicator Bank'!AO167)","v":0},{"$f":"IF(ISBLANK('TA Indicator Bank'!AP167),\"\",'TA Indicator Bank'!AP167)","v":0},{"$f":"IF(ISBLANK('TA Indicator Bank'!AQ167),\"\",'TA Indicator Bank'!AQ167)","v":0},{"$f":"IF(ISBLANK('TA Indicator Bank'!AR167),\"\",'TA Indicator Bank'!AR167)","v":1},{"$f":"IF(ISBLANK('TA Indicator Bank'!AS167),\"\",'TA Indicator Bank'!AS167)","v":0},{"$f":"IF(ISBLANK('TA Indicator Bank'!AT167),\"\",'TA Indicator Bank'!AT167)","v":0},{"$f":"IF(AND(J171=1,J$410=1),1,0)","v":0},{"$f":"IF(AND(K171=1,K$410=1),1,0)","v":0},{"$f":"IF(AND(L171=1,L$410=1),1,0)","v":0},{"$f":"IF(AND(M171=1,M$410=1),1,0)","v":0},{"$f":"IF(AND(N171=1,N$410=1),1,0)","v":0},{"$f":"IF(AND(O171=1,O$410=1),1,0)","v":0},{"$f":"IF(AND(P171=1,P$410=1),1,0)","v":0},{"$f":"IF(AND(Q171=1,Q$410=1),1,0)","v":0},{"$f":"IF(AND(R171=1,R$410=1),1,0)","v":0},{"$f":"IF(AND(S171=1,S$410=1),1,0)","v":0},{"$f":"IF(AND(T171=1,T$410=1),1,0)","v":0},{"$f":"IF(AND(U171=1,U$410=1),1,0)","v":0},{"$f":"IF(AND(V171=1,V$410=1),1,0)","v":0},{"$f":"IF(AND(W171=1,W$410=1),1,0)","v":0},1,{"$f":"IF(AND(X171=1,X$410=1),1,0)","v":0},{"$f":"IF(AND(Y171=1,Y$410=1),1,0)","v":0},{"$f":"IF(AND(Z171=1,Z$410=1),1,0)","v":0},{"$f":"IF(AND(AA171=1,AA$410=1),1,0)","v":0},{"$f":"IF(AND(AB171=1,AB$410=1),1,0)","v":0},{"$f":"IF(AND(AC171=1,AC$410=1),1,0)","v":0},{"$f":"IF(AND(AD171=1,AD$410=1),1,0)","v":0},{"$f":"IF(AND(AE171=1,AE$410=1),1,0)","v":1},{"$f":"IF(AND(AF171=1,AF$410=1),1,0)","v":0},1,{"$f":"IF(AND(AG171=1,AG$410=1),1,0)","v":0},{"$f":"IF(AND(AH171=1,AH$410=1),1,0)","v":0},{"$f":"IF(AND(AI171=1,AI$410=1),1,0)","v":0},{"$f":"IF(AND(AJ171=1,AJ$410=1),1,0)","v":0},{"$f":"IF(AND(AK171=1,AK$410=1),1,0)","v":0},{"$f":"IF(AND(AL171=1,AL$410=1),1,0)","v":0},{"$f":"IF(AND(AM171=1,AM$410=1),1,0)","v":0},{"$f":"IF(AND(AN171=1,AN$410=1),1,0)","v":0},{"$f":"IF(AND(AO171=1,AO$410=1),1,0)","v":0},1,{"$f":"IF(AND(AP171=1,AP$410=1),1,0)","v":0},{"$f":"IF(AND(AQ171=1,AQ$410=1),1,0)","v":0},{"$f":"IF(AND(AR171=1,AR$410=1),1,0)","v":1},{"$f":"IF(AND(AS171=1,AS$410=1),1,0)","v":0},{"$f":"IF(AND(AT171=1,AT$410=1),1,0)","v":0},1,1,163,163,{"$f":"IFERROR(SMALL($CL$9:$CL$408,CK171),\"\")","v":163},{"$f":"IFERROR(INDEX($B$9:$I$408,$CM171,COLUMNS($CN$9:CN171)),\"\")","v":"TA163"},{"$f":"IFERROR(INDEX($B$9:$I$408,$CM171,COLUMNS($CN$9:CO171)),\"\")","v":"Number of companies bidding for project"},{"$f":"IFERROR(INDEX($B$9:$I$408,$CM171,COLUMNS($CN$9:CP171)),\"\")","v":"-"},{"$f":"IFERROR(INDEX($B$9:$I$408,$CM171,COLUMNS($CN$9:CQ171)),\"\")","v":"Output"},{"$f":"IFERROR(INDEX($B$9:$I$408,$CM171,COLUMNS($CN$9:CR171)),\"\")","v":"-"},{"$f":"IFERROR(INDEX($B$9:$I$408,$CM171,COLUMNS($CN$9:CS171)),\"\")","v":"Financing support"},{"$f":"IFERROR(INDEX($B$9:$I$408,$CM171,COLUMNS($CN$9:CT171)),\"\")","v":"-"},{"$f":"IFERROR(INDEX($B$9:$I$408,$CM171,COLUMNS($CN$9:CU171)),\"\")","v":"Number"}]
[null,{"$f":"IF(ISBLANK('TA Indicator Bank'!B168),\"\",'TA Indicator Bank'!B168)","v":"TA164"},{"$f":"IF(ISBLANK('TA Indicator Bank'!C168),\"\",'TA Indicator Bank'!C168)","v":"Number of projects supported"},{"$f":"IF(ISBLANK('TA Indicator Bank'!D168),\"\",'TA Indicator Bank'!D168)","v":"-"},{"$f":"IF(ISBLANK('TA Indicator Bank'!E168),\"\",'TA Indicator Bank'!E168)","v":"Activity"},{"$f":"IF(ISBLANK('TA Indicator Bank'!F168),\"\",'TA Indicator Bank'!F168)","v":"Specialist research, inc. market / policy / legal / regulatory / technology research briefs; Strategic organisational guidance"},{"$f":"IF(ISBLANK('TA Indicator Bank'!G168),\"\",'TA Indicator Bank'!G168)","v":"-"},{"$f":"IF(ISBLANK('TA Indicator Bank'!H168),\"\",'TA Indicator Bank'!H168)","v":"-"},{"$f":"IF(ISBLANK('TA Indicator Bank'!I168),\"\",'TA Indicator Bank'!I168)","v":"Number"},{"$f":"IF(ISBLANK('TA Indicator Bank'!J168),\"\",'TA Indicator Bank'!J168)","v":0},{"$f":"IF(ISBLANK('TA Indicator Bank'!K168),\"\",'TA Indicator Bank'!K168)","v":0},{"$f":"IF(ISBLANK('TA Indicator Bank'!L168),\"\",'TA Indicator Bank'!L168)","v":0},{"$f":"IF(ISBLANK('TA Indicator Bank'!M168),\"\",'TA Indicator Bank'!M168)","v":0},{"$f":"IF(ISBLANK('TA Indicator Bank'!N168),\"\",'TA Indicator Bank'!N168)","v":1},{"$f":"IF(ISBLANK('TA Indicator Bank'!O168),\"\",'TA Indicator Bank'!O168)","v":1},{"$f":"IF(ISBLANK('TA Indicator Bank'!P168),\"\",'TA Indicator Bank'!P168)","v":0},{"$f":"IF(ISBLANK('TA Indicator Bank'!Q168),\"\",'TA Indicator Bank'!Q168)","v":0},{"$f":"IF(ISBLANK('TA Indicator Bank'!R168),\"\",'TA Indicator Bank'!R168)","v":0},{"$f":"IF(ISBLANK('TA Indicator Bank'!S168),\"\",'TA Indicator Bank'!S168)","v":0},{"$f":"IF(ISBLANK('TA Indicator Bank'!T168),\"\",'TA Indicator Bank'!T168)","v":0},{"$f":"IF(ISBLANK('TA Indicator Bank'!U168),\"\",'TA Indicator Bank'!U168)","v":0},{"$f":"IF(ISBLANK('TA Indicator Bank'!V168),\"\",'TA Indicator Bank'!V168)","v":0},{"$f":"IF(ISBLANK('TA Indicator Bank'!W168),\"\",'TA Indicator Bank'!W168)","v":0},{"$f":"IF(ISBLANK('TA Indicator Bank'!X168),\"\",'TA Indicator Bank'!X168)","v":0},{"$f":"IF(ISBLANK('TA Indicator Bank'!Y168),\"\",'TA Indicator Bank'!Y168)","v":0},{"$f":"IF(ISBLANK('TA Indicator Bank'!Z168),\"\",'TA Indicator Bank'!Z168)","v":0},{"$f":"IF(ISBLANK('TA Indicator Bank'!AA168),\"\",'TA Indicator Bank'!AA168)","v":0},{"$f":"IF(ISBLANK('TA Indicator Bank'!AB168),\"\",'TA Indicator Bank'!AB168)","v":0},{"$f":"IF(ISBLANK('TA Indicator Bank'!AC168),\"\",'TA Indicator Bank'!AC168)","v":0},{"$f":"IF(ISBLANK('TA Indicator Bank'!AD168),\"\",'TA Indicator Bank'!AD168)","v":0},{"$f":"IF(ISBLANK('TA Indicator Bank'!AE168),\"\",'TA Indicator Bank'!AE168)","v":0},{"$f":"IF(ISBLANK('TA Indicator Bank'!AF168),\"\",'TA Indicator Bank'!AF168)","v":0},{"$f":"IF(ISBLANK('TA Indicator Bank'!AG168),\"\",'TA Indicator Bank'!AG168)","v":0},{"$f":"IF(ISBLANK('TA Indicator Bank'!AH168),\"\",'TA Indicator Bank'!AH168)","v":0},{"$f":"IF(ISBLANK('TA Indicator Bank'!AI168),\"\",'TA Indicator Bank'!AI168)","v":0},{"$f":"IF(ISBLANK('TA Indicator Bank'!AJ168),\"\",'TA Indicator Bank'!AJ168)","v":0},{"$f":"IF(ISBLANK('TA Indicator Bank'!AK168),\"\",'TA Indicator Bank'!AK168)","v":0},{"$f":"IF(ISBLANK('TA Indicator Bank'!AL168),\"\",'TA Indicator Bank'!AL168)","v":0},{"$f":"IF(ISBLANK('TA Indicator Bank'!AM168),\"\",'TA Indicator Bank'!AM168)","v":0},{"$f":"IF(ISBLANK('TA Indicator Bank'!AN168),\"\",'TA Indicator Bank'!AN168)","v":0},{"$f":"IF(ISBLANK('TA Indicator Bank'!AO168),\"\",'TA Indicator Bank'!AO168)","v":0},{"$f":"IF(ISBLANK('TA Indicator Bank'!AP168),\"\",'TA Indicator Bank'!AP168)","v":1},{"$f":"IF(ISBLANK('TA Indicator Bank'!AQ168),\"\",'TA Indicator Bank'!AQ168)","v":0},{"$f":"IF(ISBLANK('TA Indicator Bank'!AR168),\"\",'TA Indicator Bank'!AR168)","v":0},{"$f":"IF(ISBLANK('TA Indicator Bank'!AS168),\"\",'TA Indicator Bank'!AS168)","v":0},{"$f":"IF(ISBLANK('TA Indicator Bank'!AT168),\"\",'TA Indicator Bank'!AT168)","v":0},{"$f":"IF(AND(J172=1,J$410=1),1,0)","v":0},{"$f":"IF(AND(K172=1,K$410=1),1,0)","v":0},{"$f":"IF(AND(L172=1,L$410=1),1,0)","v":0},{"$f":"IF(AND(M172=1,M$410=1),1,0)","v":0},{"$f":"IF(AND(N172=1,N$410=1),1,0)","v":1},{"$f":"IF(AND(O172=1,O$410=1),1,0)","v":1},{"$f":"IF(AND(P172=1,P$410=1),1,0)","v":0},{"$f":"IF(AND(Q172=1,Q$410=1),1,0)","v":0},{"$f":"IF(AND(R172=1,R$410=1),1,0)","v":0},{"$f":"IF(AND(S172=1,S$410=1),1,0)","v":0},{"$f":"IF(AND(T172=1,T$410=1),1,0)","v":0},{"$f":"IF(AND(U172=1,U$410=1),1,0)","v":0},{"$f":"IF(AND(V172=1,V$410=1),1,0)","v":0},{"$f":"IF(AND(W172=1,W$410=1),1,0)","v":0},1,{"$f":"IF(AND(X172=1,X$410=1),1,0)","v":0},{"$f":"IF(AND(Y172=1,Y$410=1),1,0)","v":0},{"$f":"IF(AND(Z172=1,Z$410=1),1,0)","v":0},{"$f":"IF(AND(AA172=1,AA$410=1),1,0)","v":0},{"$f":"IF(AND(AB172=1,AB$410=1),1,0)","v":0},{"$f":"IF(AND(AC172=1,AC$410=1),1,0)","v":0},{"$f":"IF(AND(AD172=1,AD$410=1),1,0)","v":0},{"$f":"IF(AND(AE172=1,AE$410=1),1,0)","v":0},{"$f":"IF(AND(AF172=1,AF$410=1),1,0)","v":0},1,{"$f":"IF(AND(AG172=1,AG$410=1),1,0)","v":0},{"$f":"IF(AND(AH172=1,AH$410=1),1,0)","v":0},{"$f":"IF(AND(AI172=1,AI$410=1),1,0)","v":0},{"$f":"IF(AND(AJ172=1,AJ$410=1),1,0)","v":0},{"$f":"IF(AND(AK172=1,AK$410=1),1,0)","v":0},{"$f":"IF(AND(AL172=1,AL$410=1),1,0)","v":0},{"$f":"IF(AND(AM172=1,AM$410=1),1,0)","v":0},{"$f":"IF(AND(AN172=1,AN$410=1),1,0)","v":0},{"$f":"IF(AND(AO172=1,AO$410=1),1,0)","v":0},1,{"$f":"IF(AND(AP172=1,AP$410=1),1,0)","v":1},{"$f":"IF(AND(AQ172=1,AQ$410=1),1,0)","v":0},{"$f":"IF(AND(AR172=1,AR$410=1),1,0)","v":0},{"$f":"IF(AND(AS172=1,AS$410=1),1,0)","v":0},{"$f":"IF(AND(AT172=1,AT$410=1),1,0)","v":0},1,1,164,164,{"$f":"IFERROR(SMALL($CL$9:$CL$408,CK172),\"\")","v":164},{"$f":"IFERROR(INDEX($B$9:$I$408,$CM172,COLUMNS($CN$9:CN172)),\"\")","v":"TA164"},{"$f":"IFERROR(INDEX($B$9:$I$408,$CM172,COLUMNS($CN$9:CO172)),\"\")","v":"Number of projects supported"},{"$f":"IFERROR(INDEX($B$9:$I$408,$CM172,COLUMNS($CN$9:CP172)),\"\")","v":"-"},{"$f":"IFERROR(INDEX($B$9:$I$408,$CM172,COLUMNS($CN$9:CQ172)),\"\")","v":"Activity"},{"$f":"IFERROR(INDEX($B$9:$I$408,$CM172,COLUMNS($CN$9:CR172)),\"\")","v":"Specialist research, inc. market / policy / legal / regulatory / technology research briefs; Strategic organisational guidance"},{"$f":"IFERROR(INDEX($B$9:$I$408,$CM172,COLUMNS($CN$9:CS172)),\"\")","v":"-"},{"$f":"IFERROR(INDEX($B$9:$I$408,$CM172,COLUMNS($CN$9:CT172)),\"\")","v":"-"},{"$f":"IFERROR(INDEX($B$9:$I$408,$CM172,COLUMNS($CN$9:CU172)),\"\")","v":"Number"}]
[null,{"$f":"IF(ISBLANK('TA Indicator Bank'!B169),\"\",'TA Indicator Bank'!B169)","v":"TA165"},{"$f":"IF(ISBLANK('TA Indicator Bank'!C169),\"\",'TA Indicator Bank'!C169)","v":"(Number of) Finance mechanisms pass through certain stage that requires approval"},{"$f":"IF(ISBLANK('TA Indicator Bank'!D169),\"\",'TA Indicator Bank'!D169)","v":"-"},{"$f":"IF(ISBLANK('TA Indicator Bank'!E169),\"\",'TA Indicator Bank'!E169)","v":"Output"},{"$f":"IF(ISBLANK('TA Indicator Bank'!F169),\"\",'TA Indicator Bank'!F169)","v":"-"},{"$f":"IF(ISBLANK('TA Indicator Bank'!G169),\"\",'TA Indicator Bank'!G169)","v":"Financing support"},{"$f":"IF(ISBLANK('TA Indicator Bank'!H169),\"\",'TA Indicator Bank'!H169)","v":"-"},{"$f":"IF(ISBLANK('TA Indicator Bank'!I169),\"\",'TA Indicator Bank'!I169)","v":"Number"},{"$f":"IF(ISBLANK('TA Indicator Bank'!J169),\"\",'TA Indicator Bank'!J169)","v":0},{"$f":"IF(ISBLANK('TA Indicator Bank'!K169),\"\",'TA Indicator Bank'!K169)","v":0},{"$f":"IF(ISBLANK('TA Indicator Bank'!L169),\"\",'TA Indicator Bank'!L169)","v":0},{"$f":"IF(ISBLANK('TA Indicator Bank'!M169),\"\",'TA Indicator Bank'!M169)","v":0},{"$f":"IF(ISBLANK('TA Indicator Bank'!N169),\"\",'TA Indicator Bank'!N169)","v":0},{"$f":"IF(ISBLANK('TA Indicator Bank'!O169),\"\",'TA Indicator Bank'!O169)","v":0},{"$f":"IF(ISBLANK('TA Indicator Bank'!P169),\"\",'TA Indicator Bank'!P169)","v":0},{"$f":"IF(ISBLANK('TA Indicator Bank'!Q169),\"\",'TA Indicator Bank'!Q169)","v":0},{"$f":"IF(ISBLANK('TA Indicator Bank'!R169),\"\",'TA Indicator Bank'!R169)","v":0},{"$f":"IF(ISBLANK('TA Indicator Bank'!S169),\"\",'TA Indicator Bank'!S169)","v":0},{"$f":"IF(ISBLANK('TA Indicator Bank'!T169),\"\",'TA Indicator Bank'!T169)","v":0},{"$f":"IF(ISBLANK('TA Indicator Bank'!U169),\"\",'TA Indicator Bank'!U169)","v":0},{"$f":"IF(ISBLANK('TA Indicator Bank'!V169),\"\",'TA Indicator Bank'!V169)","v":0},{"$f":"IF(ISBLANK('TA Indicator Bank'!W169),\"\",'TA Indicator Bank'!W169)","v":0},{"$f":"IF(ISBLANK('TA Indicator Bank'!X169),\"\",'TA Indicator Bank'!X169)","v":0},{"$f":"IF(ISBLANK('TA Indicator Bank'!Y169),\"\",'TA Indicator Bank'!Y169)","v":0},{"$f":"IF(ISBLANK('TA Indicator Bank'!Z169),\"\",'TA Indicator Bank'!Z169)","v":0},{"$f":"IF(ISBLANK('TA Indicator Bank'!AA169),\"\",'TA Indicator Bank'!AA169)","v":0},{"$f":"IF(ISBLANK('TA Indicator Bank'!AB169),\"\",'TA Indicator Bank'!AB169)","v":0},{"$f":"IF(ISBLANK('TA Indicator Bank'!AC169),\"\",'TA Indicator Bank'!AC169)","v":0},{"$f":"IF(ISBLANK('TA Indicator Bank'!AD169),\"\",'TA Indicator Bank'!AD169)","v":0},{"$f":"IF(ISBLANK('TA Indicator Bank'!AE169),\"\",'TA Indicator Bank'!AE169)","v":1},{"$f":"IF(ISBLANK('TA Indicator Bank'!AF169),\"\",'TA Indicator Bank'!AF169)","v":0},{"$f":"IF(ISBLANK('TA Indicator Bank'!AG169),\"\",'TA Indicator Bank'!AG169)","v":0},{"$f":"IF(ISBLANK('TA Indicator Bank'!AH169),\"\",'TA Indicator Bank'!AH169)","v":0},{"$f":"IF(ISBLANK('TA Indicator Bank'!AI169),\"\",'TA Indicator Bank'!AI169)","v":0},{"$f":"IF(ISBLANK('TA Indicator Bank'!AJ169),\"\",'TA Indicator Bank'!AJ169)","v":0},{"$f":"IF(ISBLANK('TA Indicator Bank'!AK169),\"\",'TA Indicator Bank'!AK169)","v":0},{"$f":"IF(ISBLANK('TA Indicator Bank'!AL169),\"\",'TA Indicator Bank'!AL169)","v":0},{"$f":"IF(ISBLANK('TA Indicator Bank'!AM169),\"\",'TA Indicator Bank'!AM169)","v":0},{"$f":"IF(ISBLANK('TA Indicator Bank'!AN169),\"\",'TA Indicator Bank'!AN169)","v":0},{"$f":"IF(ISBLANK('TA Indicator Bank'!AO169),\"\",'TA Indicator Bank'!AO169)","v":0},{"$f":"IF(ISBLANK('TA Indicator Bank'!AP169),\"\",'TA Indicator Bank'!AP169)","v":0},{"$f":"IF(ISBLANK('TA Indicator Bank'!AQ169),\"\",'TA Indicator Bank'!AQ169)","v":0},{"$f":"IF(ISBLANK('TA Indicator Bank'!AR169),\"\",'TA Indicator Bank'!AR169)","v":1},{"$f":"IF(ISBLANK('TA Indicator Bank'!AS169),\"\",'TA Indicator Bank'!AS169)","v":0},{"$f":"IF(ISBLANK('TA Indicator Bank'!AT169),\"\",'TA Indicator Bank'!AT169)","v":0},{"$f":"IF(AND(J173=1,J$410=1),1,0)","v":0},{"$f":"IF(AND(K173=1,K$410=1),1,0)","v":0},{"$f":"IF(AND(L173=1,L$410=1),1,0)","v":0},{"$f":"IF(AND(M173=1,M$410=1),1,0)","v":0},{"$f":"IF(AND(N173=1,N$410=1),1,0)","v":0},{"$f":"IF(AND(O173=1,O$410=1),1,0)","v":0},{"$f":"IF(AND(P173=1,P$410=1),1,0)","v":0},{"$f":"IF(AND(Q173=1,Q$410=1),1,0)","v":0},{"$f":"IF(AND(R173=1,R$410=1),1,0)","v":0},{"$f":"IF(AND(S173=1,S$410=1),1,0)","v":0},{"$f":"IF(AND(T173=1,T$410=1),1,0)","v":0},{"$f":"IF(AND(U173=1,U$410=1),1,0)","v":0},{"$f":"IF(AND(V173=1,V$410=1),1,0)","v":0},{"$f":"IF(AND(W173=1,W$410=1),1,0)","v":0},1,{"$f":"IF(AND(X173=1,X$410=1),1,0)","v":0},{"$f":"IF(AND(Y173=1,Y$410=1),1,0)","v":0},{"$f":"IF(AND(Z173=1,Z$410=1),1,0)","v":0},{"$f":"IF(AND(AA173=1,AA$410=1),1,0)","v":0},{"$f":"IF(AND(AB173=1,AB$410=1),1,0)","v":0},{"$f":"IF(AND(AC173=1,AC$410=1),1,0)","v":0},{"$f":"IF(AND(AD173=1,AD$410=1),1,0)","v":0},{"$f":"IF(AND(AE173=1,AE$410=1),1,0)","v":1},{"$f":"IF(AND(AF173=1,AF$410=1),1,0)","v":0},1,{"$f":"IF(AND(AG173=1,AG$410=1),1,0)","v":0},{"$f":"IF(AND(AH173=1,AH$410=1),1,0)","v":0},{"$f":"IF(AND(AI173=1,AI$410=1),1,0)","v":0},{"$f":"IF(AND(AJ173=1,AJ$410=1),1,0)","v":0},{"$f":"IF(AND(AK173=1,AK$410=1),1,0)","v":0},{"$f":"IF(AND(AL173=1,AL$410=1),1,0)","v":0},{"$f":"IF(AND(AM173=1,AM$410=1),1,0)","v":0},{"$f":"IF(AND(AN173=1,AN$410=1),1,0)","v":0},{"$f":"IF(AND(AO173=1,AO$410=1),1,0)","v":0},1,{"$f":"IF(AND(AP173=1,AP$410=1),1,0)","v":0},{"$f":"IF(AND(AQ173=1,AQ$410=1),1,0)","v":0},{"$f":"IF(AND(AR173=1,AR$410=1),1,0)","v":1},{"$f":"IF(AND(AS173=1,AS$410=1),1,0)","v":0},{"$f":"IF(AND(AT173=1,AT$410=1),1,0)","v":0},1,1,165,165,{"$f":"IFERROR(SMALL($CL$9:$CL$408,CK173),\"\")","v":165},{"$f":"IFERROR(INDEX($B$9:$I$408,$CM173,COLUMNS($CN$9:CN173)),\"\")","v":"TA165"},{"$f":"IFERROR(INDEX($B$9:$I$408,$CM173,COLUMNS($CN$9:CO173)),\"\")","v":"(Number of) Finance mechanisms pass through certain stage that requires approval"},{"$f":"IFERROR(INDEX($B$9:$I$408,$CM173,COLUMNS($CN$9:CP173)),\"\")","v":"-"},{"$f":"IFERROR(INDEX($B$9:$I$408,$CM173,COLUMNS($CN$9:CQ173)),\"\")","v":"Output"},{"$f":"IFERROR(INDEX($B$9:$I$408,$CM173,COLUMNS($CN$9:CR173)),\"\")","v":"-"},{"$f":"IFERROR(INDEX($B$9:$I$408,$CM173,COLUMNS($CN$9:CS173)),\"\")","v":"Financing support"},{"$f":"IFERROR(INDEX($B$9:$I$408,$CM173,COLUMNS($CN$9:CT173)),\"\")","v":"-"},{"$f":"IFERROR(INDEX($B$9:$I$408,$CM173,COLUMNS($CN$9:CU173)),\"\")","v":"Number"}]
[null,{"$f":"IF(ISBLANK('TA Indicator Bank'!B170),\"\",'TA Indicator Bank'!B170)","v":"TA166"},{"$f":"IF(ISBLANK('TA Indicator Bank'!C170),\"\",'TA Indicator Bank'!C170)","v":"Number of sanctions against insufficient finance procedures"},{"$f":"IF(ISBLANK('TA Indicator Bank'!D170),\"\",'TA Indicator Bank'!D170)","v":"-"},{"$f":"IF(ISBLANK('TA Indicator Bank'!E170),\"\",'TA Indicator Bank'!E170)","v":"Output"},{"$f":"IF(ISBLANK('TA Indicator Bank'!F170),\"\",'TA Indicator Bank'!F170)","v":"-"},{"$f":"IF(ISBLANK('TA Indicator Bank'!G170),\"\",'TA Indicator Bank'!G170)","v":"Financing support"},{"$f":"IF(ISBLANK('TA Indicator Bank'!H170),\"\",'TA Indicator Bank'!H170)","v":"-"},{"$f":"IF(ISBLANK('TA Indicator Bank'!I170),\"\",'TA Indicator Bank'!I170)","v":"Number"},{"$f":"IF(ISBLANK('TA Indicator Bank'!J170),\"\",'TA Indicator Bank'!J170)","v":0},{"$f":"IF(ISBLANK('TA Indicator Bank'!K170),\"\",'TA Indicator Bank'!K170)","v":0},{"$f":"IF(ISBLANK('TA Indicator Bank'!L170),\"\",'TA Indicator Bank'!L170)","v":0},{"$f":"IF(ISBLANK('TA Indicator Bank'!M170),\"\",'TA Indicator Bank'!M170)","v":0},{"$f":"IF(ISBLANK('TA Indicator Bank'!N170),\"\",'TA Indicator Bank'!N170)","v":0},{"$f":"IF(ISBLANK('TA Indicator Bank'!O170),\"\",'TA Indicator Bank'!O170)","v":0},{"$f":"IF(ISBLANK('TA Indicator Bank'!P170),\"\",'TA Indicator Bank'!P170)","v":0},{"$f":"IF(ISBLANK('TA Indicator Bank'!Q170),\"\",'TA Indicator Bank'!Q170)","v":0},{"$f":"IF(ISBLANK('TA Indicator Bank'!R170),\"\",'TA Indicator Bank'!R170)","v":0},{"$f":"IF(ISBLANK('TA Indicator Bank'!S170),\"\",'TA Indicator Bank'!S170)","v":0},{"$f":"IF(ISBLANK('TA Indicator Bank'!T170),\"\",'TA Indicator Bank'!T170)","v":0},{"$f":"IF(ISBLANK('TA Indicator Bank'!U170),\"\",'TA Indicator Bank'!U170)","v":0},{"$f":"IF(ISBLANK('TA Indicator Bank'!V170),\"\",'TA Indicator Bank'!V170)","v":0},{"$f":"IF(ISBLANK('TA Indicator Bank'!W170),\"\",'TA Indicator Bank'!W170)","v":0},{"$f":"IF(ISBLANK('TA Indicator Bank'!X170),\"\",'TA Indicator Bank'!X170)","v":0},{"$f":"IF(ISBLANK('TA Indicator Bank'!Y170),\"\",'TA Indicator Bank'!Y170)","v":0},{"$f":"IF(ISBLANK('TA Indicator Bank'!Z170),\"\",'TA Indicator Bank'!Z170)","v":0},{"$f":"IF(ISBLANK('TA Indicator Bank'!AA170),\"\",'TA Indicator Bank'!AA170)","v":0},{"$f":"IF(ISBLANK('TA Indicator Bank'!AB170),\"\",'TA Indicator Bank'!AB170)","v":0},{"$f":"IF(ISBLANK('TA Indicator Bank'!AC170),\"\",'TA Indicator Bank'!AC170)","v":0},{"$f":"IF(ISBLANK('TA Indicator Bank'!AD170),\"\",'TA Indicator Bank'!AD170)","v":0},{"$f":"IF(ISBLANK('TA Indicator Bank'!AE170),\"\",'TA Indicator Bank'!AE170)","v":1},{"$f":"IF(ISBLANK('TA Indicator Bank'!AF170),\"\",'TA Indicator Bank'!AF170)","v":0},{"$f":"IF(ISBLANK('TA Indicator Bank'!AG170),\"\",'TA Indicator Bank'!AG170)","v":0},{"$f":"IF(ISBLANK('TA Indicator Bank'!AH170),\"\",'TA Indicator Bank'!AH170)","v":0},{"$f":"IF(ISBLANK('TA Indicator Bank'!AI170),\"\",'TA Indicator Bank'!AI170)","v":0},{"$f":"IF(ISBLANK('TA Indicator Bank'!AJ170),\"\",'TA Indicator Bank'!AJ170)","v":0},{"$f":"IF(ISBLANK('TA Indicator Bank'!AK170),\"\",'TA Indicator Bank'!AK170)","v":0},{"$f":"IF(ISBLANK('TA Indicator Bank'!AL170),\"\",'TA Indicator Bank'!AL170)","v":0},{"$f":"IF(ISBLANK('TA Indicator Bank'!AM170),\"\",'TA Indicator Bank'!AM170)","v":0},{"$f":"IF(ISBLANK('TA Indicator Bank'!AN170),\"\",'TA Indicator Bank'!AN170)","v":0},{"$f":"IF(ISBLANK('TA Indicator Bank'!AO170),\"\",'TA Indicator Bank'!AO170)","v":0},{"$f":"IF(ISBLANK('TA Indicator Bank'!AP170),\"\",'TA Indicator Bank'!AP170)","v":0},{"$f":"IF(ISBLANK('TA Indicator Bank'!AQ170),\"\",'TA Indicator Bank'!AQ170)","v":0},{"$f":"IF(ISBLANK('TA Indicator Bank'!AR170),\"\",'TA Indicator Bank'!AR170)","v":1},{"$f":"IF(ISBLANK('TA Indicator Bank'!AS170),\"\",'TA Indicator Bank'!AS170)","v":0},{"$f":"IF(ISBLANK('TA Indicator Bank'!AT170),\"\",'TA Indicator Bank'!AT170)","v":0},{"$f":"IF(AND(J174=1,J$410=1),1,0)","v":0},{"$f":"IF(AND(K174=1,K$410=1),1,0)","v":0},{"$f":"IF(AND(L174=1,L$410=1),1,0)","v":0},{"$f":"IF(AND(M174=1,M$410=1),1,0)","v":0},{"$f":"IF(AND(N174=1,N$410=1),1,0)","v":0},{"$f":"IF(AND(O174=1,O$410=1),1,0)","v":0},{"$f":"IF(AND(P174=1,P$410=1),1,0)","v":0},{"$f":"IF(AND(Q174=1,Q$410=1),1,0)","v":0},{"$f":"IF(AND(R174=1,R$410=1),1,0)","v":0},{"$f":"IF(AND(S174=1,S$410=1),1,0)","v":0},{"$f":"IF(AND(T174=1,T$410=1),1,0)","v":0},{"$f":"IF(AND(U174=1,U$410=1),1,0)","v":0},{"$f":"IF(AND(V174=1,V$410=1),1,0)","v":0},{"$f":"IF(AND(W174=1,W$410=1),1,0)","v":0},1,{"$f":"IF(AND(X174=1,X$410=1),1,0)","v":0},{"$f":"IF(AND(Y174=1,Y$410=1),1,0)","v":0},{"$f":"IF(AND(Z174=1,Z$410=1),1,0)","v":0},{"$f":"IF(AND(AA174=1,AA$410=1),1,0)","v":0},{"$f":"IF(AND(AB174=1,AB$410=1),1,0)","v":0},{"$f":"IF(AND(AC174=1,AC$410=1),1,0)","v":0},{"$f":"IF(AND(AD174=1,AD$410=1),1,0)","v":0},{"$f":"IF(AND(AE174=1,AE$410=1),1,0)","v":1},{"$f":"IF(AND(AF174=1,AF$410=1),1,0)","v":0},1,{"$f":"IF(AND(AG174=1,AG$410=1),1,0)","v":0},{"$f":"IF(AND(AH174=1,AH$410=1),1,0)","v":0},{"$f":"IF(AND(AI174=1,AI$410=1),1,0)","v":0},{"$f":"IF(AND(AJ174=1,AJ$410=1),1,0)","v":0},{"$f":"IF(AND(AK174=1,AK$410=1),1,0)","v":0},{"$f":"IF(AND(AL174=1,AL$410=1),1,0)","v":0},{"$f":"IF(AND(AM174=1,AM$410=1),1,0)","v":0},{"$f":"IF(AND(AN174=1,AN$410=1),1,0)","v":0},{"$f":"IF(AND(AO174=1,AO$410=1),1,0)","v":0},1,{"$f":"IF(AND(AP174=1,AP$410=1),1,0)","v":0},{"$f":"IF(AND(AQ174=1,AQ$410=1),1,0)","v":0},{"$f":"IF(AND(AR174=1,AR$410=1),1,0)","v":1},{"$f":"IF(AND(AS174=1,AS$410=1),1,0)","v":0},{"$f":"IF(AND(AT174=1,AT$410=1),1,0)","v":0},1,1,166,166,{"$f":"IFERROR(SMALL($CL$9:$CL$408,CK174),\"\")","v":166},{"$f":"IFERROR(INDEX($B$9:$I$408,$CM174,COLUMNS($CN$9:CN174)),\"\")","v":"TA166"},{"$f":"IFERROR(INDEX($B$9:$I$408,$CM174,COLUMNS($CN$9:CO174)),\"\")","v":"Number of sanctions against insufficient finance procedures"},{"$f":"IFERROR(INDEX($B$9:$I$408,$CM174,COLUMNS($CN$9:CP174)),\"\")","v":"-"},{"$f":"IFERROR(INDEX($B$9:$I$408,$CM174,COLUMNS($CN$9:CQ174)),\"\")","v":"Output"},{"$f":"IFERROR(INDEX($B$9:$I$408,$CM174,COLUMNS($CN$9:CR174)),\"\")","v":"-"},{"$f":"IFERROR(INDEX($B$9:$I$408,$CM174,COLUMNS($CN$9:CS174)),\"\")","v":"Financing support"},{"$f":"IFERROR(INDEX($B$9:$I$408,$CM174,COLUMNS($CN$9:CT174)),\"\")","v":"-"},{"$f":"IFERROR(INDEX($B$9:$I$408,$CM174,COLUMNS($CN$9:CU174)),\"\")","v":"Number"}]
[null,{"$f":"IF(ISBLANK('TA Indicator Bank'!B171),\"\",'TA Indicator Bank'!B171)","v":"TA167"},{"$f":"IF(ISBLANK('TA Indicator Bank'!C171),\"\",'TA Indicator Bank'!C171)","v":"Reporting/documentation delivered (on time and following the agreed standards)"},{"$f":"IF(ISBLANK('TA Indicator Bank'!D171),\"\",'TA Indicator Bank'!D171)","v":"-"},{"$f":"IF(ISBLANK('TA Indicator Bank'!E171),\"\",'TA Indicator Bank'!E171)","v":"Output"},{"$f":"IF(ISBLANK('TA Indicator Bank'!F171),\"\",'TA Indicator Bank'!F171)","v":"-"},{"$f":"IF(ISBLANK('TA Indicator Bank'!G171),\"\",'TA Indicator Bank'!G171)","v":"Financing support"},{"$f":"IF(ISBLANK('TA Indicator Bank'!H171),\"\",'TA Indicator Bank'!H171)","v":"-"},{"$f":"IF(ISBLANK('TA Indicator Bank'!I171),\"\",'TA Indicator Bank'!I171)","v":"Yes/No"},{"$f":"IF(ISBLANK('TA Indicator Bank'!J171),\"\",'TA Indicator Bank'!J171)","v":0},{"$f":"IF(ISBLANK('TA Indicator Bank'!K171),\"\",'TA Indicator Bank'!K171)","v":0},{"$f":"IF(ISBLANK('TA Indicator Bank'!L171),\"\",'TA Indicator Bank'!L171)","v":0},{"$f":"IF(ISBLANK('TA Indicator Bank'!M171),\"\",'TA Indicator Bank'!M171)","v":0},{"$f":"IF(ISBLANK('TA Indicator Bank'!N171),\"\",'TA Indicator Bank'!N171)","v":0},{"$f":"IF(ISBLANK('TA Indicator Bank'!O171),\"\",'TA Indicator Bank'!O171)","v":0},{"$f":"IF(ISBLANK('TA Indicator Bank'!P171),\"\",'TA Indicator Bank'!P171)","v":0},{"$f":"IF(ISBLANK('TA Indicator Bank'!Q171),\"\",'TA Indicator Bank'!Q171)","v":0},{"$f":"IF(ISBLANK('TA Indicator Bank'!R171),\"\",'TA Indicator Bank'!R171)","v":0},{"$f":"IF(ISBLANK('TA Indicator Bank'!S171),\"\",'TA Indicator Bank'!S171)","v":0},{"$f":"IF(ISBLANK('TA Indicator Bank'!T171),\"\",'TA Indicator Bank'!T171)","v":0},{"$f":"IF(ISBLANK('TA Indicator Bank'!U171),\"\",'TA Indicator Bank'!U171)","v":0},{"$f":"IF(ISBLANK('TA Indicator Bank'!V171),\"\",'TA Indicator Bank'!V171)","v":0},{"$f":"IF(ISBLANK('TA Indicator Bank'!W171),\"\",'TA Indicator Bank'!W171)","v":0},{"$f":"IF(ISBLANK('TA Indicator Bank'!X171),\"\",'TA Indicator Bank'!X171)","v":0},{"$f":"IF(ISBLANK('TA Indicator Bank'!Y171),\"\",'TA Indicator Bank'!Y171)","v":0},{"$f":"IF(ISBLANK('TA Indicator Bank'!Z171),\"\",'TA Indicator Bank'!Z171)","v":0},{"$f":"IF(ISBLANK('TA Indicator Bank'!AA171),\"\",'TA Indicator Bank'!AA171)","v":0},{"$f":"IF(ISBLANK('TA Indicator Bank'!AB171),\"\",'TA Indicator Bank'!AB171)","v":0},{"$f":"IF(ISBLANK('TA Indicator Bank'!AC171),\"\",'TA Indicator Bank'!AC171)","v":0},{"$f":"IF(ISBLANK('TA Indicator Bank'!AD171),\"\",'TA Indicator Bank'!AD171)","v":0},{"$f":"IF(ISBLANK('TA Indicator Bank'!AE171),\"\",'TA Indicator Bank'!AE171)","v":1},{"$f":"IF(ISBLANK('TA Indicator Bank'!AF171),\"\",'TA Indicator Bank'!AF171)","v":0},{"$f":"IF(ISBLANK('TA Indicator Bank'!AG171),\"\",'TA Indicator Bank'!AG171)","v":0},{"$f":"IF(ISBLANK('TA Indicator Bank'!AH171),\"\",'TA Indicator Bank'!AH171)","v":0},{"$f":"IF(ISBLANK('TA Indicator Bank'!AI171),\"\",'TA Indicator Bank'!AI171)","v":0},{"$f":"IF(ISBLANK('TA Indicator Bank'!AJ171),\"\",'TA Indicator Bank'!AJ171)","v":0},{"$f":"IF(ISBLANK('TA Indicator Bank'!AK171),\"\",'TA Indicator Bank'!AK171)","v":0},{"$f":"IF(ISBLANK('TA Indicator Bank'!AL171),\"\",'TA Indicator Bank'!AL171)","v":0},{"$f":"IF(ISBLANK('TA Indicator Bank'!AM171),\"\",'TA Indicator Bank'!AM171)","v":0},{"$f":"IF(ISBLANK('TA Indicator Bank'!AN171),\"\",'TA Indicator Bank'!AN171)","v":0},{"$f":"IF(ISBLANK('TA Indicator Bank'!AO171),\"\",'TA Indicator Bank'!AO171)","v":0},{"$f":"IF(ISBLANK('TA Indicator Bank'!AP171),\"\",'TA Indicator Bank'!AP171)","v":0},{"$f":"IF(ISBLANK('TA Indicator Bank'!AQ171),\"\",'TA Indicator Bank'!AQ171)","v":0},{"$f":"IF(ISBLANK('TA Indicator Bank'!AR171),\"\",'TA Indicator Bank'!AR171)","v":1},{"$f":"IF(ISBLANK('TA Indicator Bank'!AS171),\"\",'TA Indicator Bank'!AS171)","v":0},{"$f":"IF(ISBLANK('TA Indicator Bank'!AT171),\"\",'TA Indicator Bank'!AT171)","v":0},{"$f":"IF(AND(J175=1,J$410=1),1,0)","v":0},{"$f":"IF(AND(K175=1,K$410=1),1,0)","v":0},{"$f":"IF(AND(L175=1,L$410=1),1,0)","v":0},{"$f":"IF(AND(M175=1,M$410=1),1,0)","v":0},{"$f":"IF(AND(N175=1,N$410=1),1,0)","v":0},{"$f":"IF(AND(O175=1,O$410=1),1,0)","v":0},{"$f":"IF(AND(P175=1,P$410=1),1,0)","v":0},{"$f":"IF(AND(Q175=1,Q$410=1),1,0)","v":0},{"$f":"IF(AND(R175=1,R$410=1),1,0)","v":0},{"$f":"IF(AND(S175=1,S$410=1),1,0)","v":0},{"$f":"IF(AND(T175=1,T$410=1),1,0)","v":0},{"$f":"IF(AND(U175=1,U$410=1),1,0)","v":0},{"$f":"IF(AND(V175=1,V$410=1),1,0)","v":0},{"$f":"IF(AND(W175=1,W$410=1),1,0)","v":0},1,{"$f":"IF(AND(X175=1,X$410=1),1,0)","v":0},{"$f":"IF(AND(Y175=1,Y$410=1),1,0)","v":0},{"$f":"IF(AND(Z175=1,Z$410=1),1,0)","v":0},{"$f":"IF(AND(AA175=1,AA$410=1),1,0)","v":0},{"$f":"IF(AND(AB175=1,AB$410=1),1,0)","v":0},{"$f":"IF(AND(AC175=1,AC$410=1),1,0)","v":0},{"$f":"IF(AND(AD175=1,AD$410=1),1,0)","v":0},{"$f":"IF(AND(AE175=1,AE$410=1),1,0)","v":1},{"$f":"IF(AND(AF175=1,AF$410=1),1,0)","v":0},1,{"$f":"IF(AND(AG175=1,AG$410=1),1,0)","v":0},{"$f":"IF(AND(AH175=1,AH$410=1),1,0)","v":0},{"$f":"IF(AND(AI175=1,AI$410=1),1,0)","v":0},{"$f":"IF(AND(AJ175=1,AJ$410=1),1,0)","v":0},{"$f":"IF(AND(AK175=1,AK$410=1),1,0)","v":0},{"$f":"IF(AND(AL175=1,AL$410=1),1,0)","v":0},{"$f":"IF(AND(AM175=1,AM$410=1),1,0)","v":0},{"$f":"IF(AND(AN175=1,AN$410=1),1,0)","v":0},{"$f":"IF(AND(AO175=1,AO$410=1),1,0)","v":0},1,{"$f":"IF(AND(AP175=1,AP$410=1),1,0)","v":0},{"$f":"IF(AND(AQ175=1,AQ$410=1),1,0)","v":0},{"$f":"IF(AND(AR175=1,AR$410=1),1,0)","v":1},{"$f":"IF(AND(AS175=1,AS$410=1),1,0)","v":0},{"$f":"IF(AND(AT175=1,AT$410=1),1,0)","v":0},1,1,167,167,{"$f":"IFERROR(SMALL($CL$9:$CL$408,CK175),\"\")","v":167},{"$f":"IFERROR(INDEX($B$9:$I$408,$CM175,COLUMNS($CN$9:CN175)),\"\")","v":"TA167"},{"$f":"IFERROR(INDEX($B$9:$I$408,$CM175,COLUMNS($CN$9:CO175)),\"\")","v":"Reporting/documentation delivered (on time and following the agreed standards)"},{"$f":"IFERROR(INDEX($B$9:$I$408,$CM175,COLUMNS($CN$9:CP175)),\"\")","v":"-"},{"$f":"IFERROR(INDEX($B$9:$I$408,$CM175,COLUMNS($CN$9:CQ175)),\"\")","v":"Output"},{"$f":"IFERROR(INDEX($B$9:$I$408,$CM175,COLUMNS($CN$9:CR175)),\"\")","v":"-"},{"$f":"IFERROR(INDEX($B$9:$I$408,$CM175,COLUMNS($CN$9:CS175)),\"\")","v":"Financing support"},{"$f":"IFERROR(INDEX($B$9:$I$408,$CM175,COLUMNS($CN$9:CT175)),\"\")","v":"-"},{"$f":"IFERROR(INDEX($B$9:$I$408,$CM175,COLUMNS($CN$9:CU175)),\"\")","v":"Yes/No"}]
[null,{"$f":"IF(ISBLANK('TA Indicator Bank'!B172),\"\",'TA Indicator Bank'!B172)","v":"TA168"},{"$f":"IF(ISBLANK('TA Indicator Bank'!C172),\"\",'TA Indicator Bank'!C172)","v":"Finance support reaches certain maturity"},{"$f":"IF(ISBLANK('TA Indicator Bank'!D172),\"\",'TA Indicator Bank'!D172)","v":"-"},{"$f":"IF(ISBLANK('TA Indicator Bank'!E172),\"\",'TA Indicator Bank'!E172)","v":"Output"},{"$f":"IF(ISBLANK('TA Indicator Bank'!F172),\"\",'TA Indicator Bank'!F172)","v":"-"},{"$f":"IF(ISBLANK('TA Indicator Bank'!G172),\"\",'TA Indicator Bank'!G172)","v":"Financing support"},{"$f":"IF(ISBLANK('TA Indicator Bank'!H172),\"\",'TA Indicator Bank'!H172)","v":"-"},{"$f":"IF(ISBLANK('TA Indicator Bank'!I172),\"\",'TA Indicator Bank'!I172)","v":"Yes/No"},{"$f":"IF(ISBLANK('TA Indicator Bank'!J172),\"\",'TA Indicator Bank'!J172)","v":0},{"$f":"IF(ISBLANK('TA Indicator Bank'!K172),\"\",'TA Indicator Bank'!K172)","v":0},{"$f":"IF(ISBLANK('TA Indicator Bank'!L172),\"\",'TA Indicator Bank'!L172)","v":0},{"$f":"IF(ISBLANK('TA Indicator Bank'!M172),\"\",'TA Indicator Bank'!M172)","v":0},{"$f":"IF(ISBLANK('TA Indicator Bank'!N172),\"\",'TA Indicator Bank'!N172)","v":0},{"$f":"IF(ISBLANK('TA Indicator Bank'!O172),\"\",'TA Indicator Bank'!O172)","v":0},{"$f":"IF(ISBLANK('TA Indicator Bank'!P172),\"\",'TA Indicator Bank'!P172)","v":0},{"$f":"IF(ISBLANK('TA Indicator Bank'!Q172),\"\",'TA Indicator Bank'!Q172)","v":0},{"$f":"IF(ISBLANK('TA Indicator Bank'!R172),\"\",'TA Indicator Bank'!R172)","v":0},{"$f":"IF(ISBLANK('TA Indicator Bank'!S172),\"\",'TA Indicator Bank'!S172)","v":0},{"$f":"IF(ISBLANK('TA Indicator Bank'!T172),\"\",'TA Indicator Bank'!T172)","v":0},{"$f":"IF(ISBLANK('TA Indicator Bank'!U172),\"\",'TA Indicator Bank'!U172)","v":0},{"$f":"IF(ISBLANK('TA Indicator Bank'!V172),\"\",'TA Indicator Bank'!V172)","v":0},{"$f":"IF(ISBLANK('TA Indicator Bank'!W172),\"\",'TA Indicator Bank'!W172)","v":0},{"$f":"IF(ISBLANK('TA Indicator Bank'!X172),\"\",'TA Indicator Bank'!X172)","v":0},{"$f":"IF(ISBLANK('TA Indicator Bank'!Y172),\"\",'TA Indicator Bank'!Y172)","v":0},{"$f":"IF(ISBLANK('TA Indicator Bank'!Z172),\"\",'TA Indicator Bank'!Z172)","v":0},{"$f":"IF(ISBLANK('TA Indicator Bank'!AA172),\"\",'TA Indicator Bank'!AA172)","v":0},{"$f":"IF(ISBLANK('TA Indicator Bank'!AB172),\"\",'TA Indicator Bank'!AB172)","v":0},{"$f":"IF(ISBLANK('TA Indicator Bank'!AC172),\"\",'TA Indicator Bank'!AC172)","v":0},{"$f":"IF(ISBLANK('TA Indicator Bank'!AD172),\"\",'TA Indicator Bank'!AD172)","v":0},{"$f":"IF(ISBLANK('TA Indicator Bank'!AE172),\"\",'TA Indicator Bank'!AE172)","v":1},{"$f":"IF(ISBLANK('TA Indicator Bank'!AF172),\"\",'TA Indicator Bank'!AF172)","v":0},{"$f":"IF(ISBLANK('TA Indicator Bank'!AG172),\"\",'TA Indicator Bank'!AG172)","v":0},{"$f":"IF(ISBLANK('TA Indicator Bank'!AH172),\"\",'TA Indicator Bank'!AH172)","v":0},{"$f":"IF(ISBLANK('TA Indicator Bank'!AI172),\"\",'TA Indicator Bank'!AI172)","v":0},{"$f":"IF(ISBLANK('TA Indicator Bank'!AJ172),\"\",'TA Indicator Bank'!AJ172)","v":0},{"$f":"IF(ISBLANK('TA Indicator Bank'!AK172),\"\",'TA Indicator Bank'!AK172)","v":0},{"$f":"IF(ISBLANK('TA Indicator Bank'!AL172),\"\",'TA Indicator Bank'!AL172)","v":0},{"$f":"IF(ISBLANK('TA Indicator Bank'!AM172),\"\",'TA Indicator Bank'!AM172)","v":0},{"$f":"IF(ISBLANK('TA Indicator Bank'!AN172),\"\",'TA Indicator Bank'!AN172)","v":0},{"$f":"IF(ISBLANK('TA Indicator Bank'!AO172),\"\",'TA Indicator Bank'!AO172)","v":0},{"$f":"IF(ISBLANK('TA Indicator Bank'!AP172),\"\",'TA Indicator Bank'!AP172)","v":0},{"$f":"IF(ISBLANK('TA Indicator Bank'!AQ172),\"\",'TA Indicator Bank'!AQ172)","v":0},{"$f":"IF(ISBLANK('TA Indicator Bank'!AR172),\"\",'TA Indicator Bank'!AR172)","v":1},{"$f":"IF(ISBLANK('TA Indicator Bank'!AS172),\"\",'TA Indicator Bank'!AS172)","v":0},{"$f":"IF(ISBLANK('TA Indicator Bank'!AT172),\"\",'TA Indicator Bank'!AT172)","v":0},{"$f":"IF(AND(J176=1,J$410=1),1,0)","v":0},{"$f":"IF(AND(K176=1,K$410=1),1,0)","v":0},{"$f":"IF(AND(L176=1,L$410=1),1,0)","v":0},{"$f":"IF(AND(M176=1,M$410=1),1,0)","v":0},{"$f":"IF(AND(N176=1,N$410=1),1,0)","v":0},{"$f":"IF(AND(O176=1,O$410=1),1,0)","v":0},{"$f":"IF(AND(P176=1,P$410=1),1,0)","v":0},{"$f":"IF(AND(Q176=1,Q$410=1),1,0)","v":0},{"$f":"IF(AND(R176=1,R$410=1),1,0)","v":0},{"$f":"IF(AND(S176=1,S$410=1),1,0)","v":0},{"$f":"IF(AND(T176=1,T$410=1),1,0)","v":0},{"$f":"IF(AND(U176=1,U$410=1),1,0)","v":0},{"$f":"IF(AND(V176=1,V$410=1),1,0)","v":0},{"$f":"IF(AND(W176=1,W$410=1),1,0)","v":0},1,{"$f":"IF(AND(X176=1,X$410=1),1,0)","v":0},{"$f":"IF(AND(Y176=1,Y$410=1),1,0)","v":0},{"$f":"IF(AND(Z176=1,Z$410=1),1,0)","v":0},{"$f":"IF(AND(AA176=1,AA$410=1),1,0)","v":0},{"$f":"IF(AND(AB176=1,AB$410=1),1,0)","v":0},{"$f":"IF(AND(AC176=1,AC$410=1),1,0)","v":0},{"$f":"IF(AND(AD176=1,AD$410=1),1,0)","v":0},{"$f":"IF(AND(AE176=1,AE$410=1),1,0)","v":1},{"$f":"IF(AND(AF176=1,AF$410=1),1,0)","v":0},1,{"$f":"IF(AND(AG176=1,AG$410=1),1,0)","v":0},{"$f":"IF(AND(AH176=1,AH$410=1),1,0)","v":0},{"$f":"IF(AND(AI176=1,AI$410=1),1,0)","v":0},{"$f":"IF(AND(AJ176=1,AJ$410=1),1,0)","v":0},{"$f":"IF(AND(AK176=1,AK$410=1),1,0)","v":0},{"$f":"IF(AND(AL176=1,AL$410=1),1,0)","v":0},{"$f":"IF(AND(AM176=1,AM$410=1),1,0)","v":0},{"$f":"IF(AND(AN176=1,AN$410=1),1,0)","v":0},{"$f":"IF(AND(AO176=1,AO$410=1),1,0)","v":0},1,{"$f":"IF(AND(AP176=1,AP$410=1),1,0)","v":0},{"$f":"IF(AND(AQ176=1,AQ$410=1),1,0)","v":0},{"$f":"IF(AND(AR176=1,AR$410=1),1,0)","v":1},{"$f":"IF(AND(AS176=1,AS$410=1),1,0)","v":0},{"$f":"IF(AND(AT176=1,AT$410=1),1,0)","v":0},1,1,168,168,{"$f":"IFERROR(SMALL($CL$9:$CL$408,CK176),\"\")","v":168},{"$f":"IFERROR(INDEX($B$9:$I$408,$CM176,COLUMNS($CN$9:CN176)),\"\")","v":"TA168"},{"$f":"IFERROR(INDEX($B$9:$I$408,$CM176,COLUMNS($CN$9:CO176)),\"\")","v":"Finance support reaches certain maturity"},{"$f":"IFERROR(INDEX($B$9:$I$408,$CM176,COLUMNS($CN$9:CP176)),\"\")","v":"-"},{"$f":"IFERROR(INDEX($B$9:$I$408,$CM176,COLUMNS($CN$9:CQ176)),\"\")","v":"Output"},{"$f":"IFERROR(INDEX($B$9:$I$408,$CM176,COLUMNS($CN$9:CR176)),\"\")","v":"-"},{"$f":"IFERROR(INDEX($B$9:$I$408,$CM176,COLUMNS($CN$9:CS176)),\"\")","v":"Financing support"},{"$f":"IFERROR(INDEX($B$9:$I$408,$CM176,COLUMNS($CN$9:CT176)),\"\")","v":"-"},{"$f":"IFERROR(INDEX($B$9:$I$408,$CM176,COLUMNS($CN$9:CU176)),\"\")","v":"Yes/No"}]
[null,{"$f":"IF(ISBLANK('TA Indicator Bank'!B173),\"\",'TA Indicator Bank'!B173)","v":"TA169"},{"$f":"IF(ISBLANK('TA Indicator Bank'!C173),\"\",'TA Indicator Bank'!C173)","v":"Increased efficiency of internal fund measured as programme funds disbursed as percentage of total portfolio"},{"$f":"IF(ISBLANK('TA Indicator Bank'!D173),\"\",'TA Indicator Bank'!D173)","v":"-"},{"$f":"IF(ISBLANK('TA Indicator Bank'!E173),\"\",'TA Indicator Bank'!E173)","v":"Output"},{"$f":"IF(ISBLANK('TA Indicator Bank'!F173),\"\",'TA Indicator Bank'!F173)","v":"-"},{"$f":"IF(ISBLANK('TA Indicator Bank'!G173),\"\",'TA Indicator Bank'!G173)","v":"Financing support"},{"$f":"IF(ISBLANK('TA Indicator Bank'!H173),\"\",'TA Indicator Bank'!H173)","v":"-"},{"$f":"IF(ISBLANK('TA Indicator Bank'!I173),\"\",'TA Indicator Bank'!I173)","v":"Percentage"},{"$f":"IF(ISBLANK('TA Indicator Bank'!J173),\"\",'TA Indicator Bank'!J173)","v":0},{"$f":"IF(ISBLANK('TA Indicator Bank'!K173),\"\",'TA Indicator Bank'!K173)","v":0},{"$f":"IF(ISBLANK('TA Indicator Bank'!L173),\"\",'TA Indicator Bank'!L173)","v":0},{"$f":"IF(ISBLANK('TA Indicator Bank'!M173),\"\",'TA Indicator Bank'!M173)","v":0},{"$f":"IF(ISBLANK('TA Indicator Bank'!N173),\"\",'TA Indicator Bank'!N173)","v":0},{"$f":"IF(ISBLANK('TA Indicator Bank'!O173),\"\",'TA Indicator Bank'!O173)","v":0},{"$f":"IF(ISBLANK('TA Indicator Bank'!P173),\"\",'TA Indicator Bank'!P173)","v":0},{"$f":"IF(ISBLANK('TA Indicator Bank'!Q173),\"\",'TA Indicator Bank'!Q173)","v":0},{"$f":"IF(ISBLANK('TA Indicator Bank'!R173),\"\",'TA Indicator Bank'!R173)","v":0},{"$f":"IF(ISBLANK('TA Indicator Bank'!S173),\"\",'TA Indicator Bank'!S173)","v":0},{"$f":"IF(ISBLANK('TA Indicator Bank'!T173),\"\",'TA Indicator Bank'!T173)","v":0},{"$f":"IF(ISBLANK('TA Indicator Bank'!U173),\"\",'TA Indicator Bank'!U173)","v":0},{"$f":"IF(ISBLANK('TA Indicator Bank'!V173),\"\",'TA Indicator Bank'!V173)","v":0},{"$f":"IF(ISBLANK('TA Indicator Bank'!W173),\"\",'TA Indicator Bank'!W173)","v":0},{"$f":"IF(ISBLANK('TA Indicator Bank'!X173),\"\",'TA Indicator Bank'!X173)","v":0},{"$f":"IF(ISBLANK('TA Indicator Bank'!Y173),\"\",'TA Indicator Bank'!Y173)","v":0},{"$f":"IF(ISBLANK('TA Indicator Bank'!Z173),\"\",'TA Indicator Bank'!Z173)","v":0},{"$f":"IF(ISBLANK('TA Indicator Bank'!AA173),\"\",'TA Indicator Bank'!AA173)","v":0},{"$f":"IF(ISBLANK('TA Indicator Bank'!AB173),\"\",'TA Indicator Bank'!AB173)","v":0},{"$f":"IF(ISBLANK('TA Indicator Bank'!AC173),\"\",'TA Indicator Bank'!AC173)","v":0},{"$f":"IF(ISBLANK('TA Indicator Bank'!AD173),\"\",'TA Indicator Bank'!AD173)","v":0},{"$f":"IF(ISBLANK('TA Indicator Bank'!AE173),\"\",'TA Indicator Bank'!AE173)","v":1},{"$f":"IF(ISBLANK('TA Indicator Bank'!AF173),\"\",'TA Indicator Bank'!AF173)","v":0},{"$f":"IF(ISBLANK('TA Indicator Bank'!AG173),\"\",'TA Indicator Bank'!AG173)","v":0},{"$f":"IF(ISBLANK('TA Indicator Bank'!AH173),\"\",'TA Indicator Bank'!AH173)","v":0},{"$f":"IF(ISBLANK('TA Indicator Bank'!AI173),\"\",'TA Indicator Bank'!AI173)","v":0},{"$f":"IF(ISBLANK('TA Indicator Bank'!AJ173),\"\",'TA Indicator Bank'!AJ173)","v":0},{"$f":"IF(ISBLANK('TA Indicator Bank'!AK173),\"\",'TA Indicator Bank'!AK173)","v":0},{"$f":"IF(ISBLANK('TA Indicator Bank'!AL173),\"\",'TA Indicator Bank'!AL173)","v":0},{"$f":"IF(ISBLANK('TA Indicator Bank'!AM173),\"\",'TA Indicator Bank'!AM173)","v":0},{"$f":"IF(ISBLANK('TA Indicator Bank'!AN173),\"\",'TA Indicator Bank'!AN173)","v":0},{"$f":"IF(ISBLANK('TA Indicator Bank'!AO173),\"\",'TA Indicator Bank'!AO173)","v":0},{"$f":"IF(ISBLANK('TA Indicator Bank'!AP173),\"\",'TA Indicator Bank'!AP173)","v":0},{"$f":"IF(ISBLANK('TA Indicator Bank'!AQ173),\"\",'TA Indicator Bank'!AQ173)","v":0},{"$f":"IF(ISBLANK('TA Indicator Bank'!AR173),\"\",'TA Indicator Bank'!AR173)","v":1},{"$f":"IF(ISBLANK('TA Indicator Bank'!AS173),\"\",'TA Indicator Bank'!AS173)","v":0},{"$f":"IF(ISBLANK('TA Indicator Bank'!AT173),\"\",'TA Indicator Bank'!AT173)","v":0},{"$f":"IF(AND(J177=1,J$410=1),1,0)","v":0},{"$f":"IF(AND(K177=1,K$410=1),1,0)","v":0},{"$f":"IF(AND(L177=1,L$410=1),1,0)","v":0},{"$f":"IF(AND(M177=1,M$410=1),1,0)","v":0},{"$f":"IF(AND(N177=1,N$410=1),1,0)","v":0},{"$f":"IF(AND(O177=1,O$410=1),1,0)","v":0},{"$f":"IF(AND(P177=1,P$410=1),1,0)","v":0},{"$f":"IF(AND(Q177=1,Q$410=1),1,0)","v":0},{"$f":"IF(AND(R177=1,R$410=1),1,0)","v":0},{"$f":"IF(AND(S177=1,S$410=1),1,0)","v":0},{"$f":"IF(AND(T177=1,T$410=1),1,0)","v":0},{"$f":"IF(AND(U177=1,U$410=1),1,0)","v":0},{"$f":"IF(AND(V177=1,V$410=1),1,0)","v":0},{"$f":"IF(AND(W177=1,W$410=1),1,0)","v":0},1,{"$f":"IF(AND(X177=1,X$410=1),1,0)","v":0},{"$f":"IF(AND(Y177=1,Y$410=1),1,0)","v":0},{"$f":"IF(AND(Z177=1,Z$410=1),1,0)","v":0},{"$f":"IF(AND(AA177=1,AA$410=1),1,0)","v":0},{"$f":"IF(AND(AB177=1,AB$410=1),1,0)","v":0},{"$f":"IF(AND(AC177=1,AC$410=1),1,0)","v":0},{"$f":"IF(AND(AD177=1,AD$410=1),1,0)","v":0},{"$f":"IF(AND(AE177=1,AE$410=1),1,0)","v":1},{"$f":"IF(AND(AF177=1,AF$410=1),1,0)","v":0},1,{"$f":"IF(AND(AG177=1,AG$410=1),1,0)","v":0},{"$f":"IF(AND(AH177=1,AH$410=1),1,0)","v":0},{"$f":"IF(AND(AI177=1,AI$410=1),1,0)","v":0},{"$f":"IF(AND(AJ177=1,AJ$410=1),1,0)","v":0},{"$f":"IF(AND(AK177=1,AK$410=1),1,0)","v":0},{"$f":"IF(AND(AL177=1,AL$410=1),1,0)","v":0},{"$f":"IF(AND(AM177=1,AM$410=1),1,0)","v":0},{"$f":"IF(AND(AN177=1,AN$410=1),1,0)","v":0},{"$f":"IF(AND(AO177=1,AO$410=1),1,0)","v":0},1,{"$f":"IF(AND(AP177=1,AP$410=1),1,0)","v":0},{"$f":"IF(AND(AQ177=1,AQ$410=1),1,0)","v":0},{"$f":"IF(AND(AR177=1,AR$410=1),1,0)","v":1},{"$f":"IF(AND(AS177=1,AS$410=1),1,0)","v":0},{"$f":"IF(AND(AT177=1,AT$410=1),1,0)","v":0},1,1,169,169,{"$f":"IFERROR(SMALL($CL$9:$CL$408,CK177),\"\")","v":169},{"$f":"IFERROR(INDEX($B$9:$I$408,$CM177,COLUMNS($CN$9:CN177)),\"\")","v":"TA169"},{"$f":"IFERROR(INDEX($B$9:$I$408,$CM177,COLUMNS($CN$9:CO177)),\"\")","v":"Increased efficiency of internal fund measured as programme funds disbursed as percentage of total portfolio"},{"$f":"IFERROR(INDEX($B$9:$I$408,$CM177,COLUMNS($CN$9:CP177)),\"\")","v":"-"},{"$f":"IFERROR(INDEX($B$9:$I$408,$CM177,COLUMNS($CN$9:CQ177)),\"\")","v":"Output"},{"$f":"IFERROR(INDEX($B$9:$I$408,$CM177,COLUMNS($CN$9:CR177)),\"\")","v":"-"},{"$f":"IFERROR(INDEX($B$9:$I$408,$CM177,COLUMNS($CN$9:CS177)),\"\")","v":"Financing support"},{"$f":"IFERROR(INDEX($B$9:$I$408,$CM177,COLUMNS($CN$9:CT177)),\"\")","v":"-"},{"$f":"IFERROR(INDEX($B$9:$I$408,$CM177,COLUMNS($CN$9:CU177)),\"\")","v":"Percentage"}]
[null,{"$f":"IF(ISBLANK('TA Indicator Bank'!B174),\"\",'TA Indicator Bank'!B174)","v":"TA170"},{"$f":"IF(ISBLANK('TA Indicator Bank'!C174),\"\",'TA Indicator Bank'!C174)","v":"Knowledge products created"},{"$f":"IF(ISBLANK('TA Indicator Bank'!D174),\"\",'TA Indicator Bank'!D174)","v":"-"},{"$f":"IF(ISBLANK('TA Indicator Bank'!E174),\"\",'TA Indicator Bank'!E174)","v":"Output"},{"$f":"IF(ISBLANK('TA Indicator Bank'!F174),\"\",'TA Indicator Bank'!F174)","v":"-"},{"$f":"IF(ISBLANK('TA Indicator Bank'!G174),\"\",'TA Indicator Bank'!G174)","v":"Financing support"},{"$f":"IF(ISBLANK('TA Indicator Bank'!H174),\"\",'TA Indicator Bank'!H174)","v":"-"},{"$f":"IF(ISBLANK('TA Indicator Bank'!I174),\"\",'TA Indicator Bank'!I174)","v":"Yes/No"},{"$f":"IF(ISBLANK('TA Indicator Bank'!J174),\"\",'TA Indicator Bank'!J174)","v":0},{"$f":"IF(ISBLANK('TA Indicator Bank'!K174),\"\",'TA Indicator Bank'!K174)","v":0},{"$f":"IF(ISBLANK('TA Indicator Bank'!L174),\"\",'TA Indicator Bank'!L174)","v":0},{"$f":"IF(ISBLANK('TA Indicator Bank'!M174),\"\",'TA Indicator Bank'!M174)","v":0},{"$f":"IF(ISBLANK('TA Indicator Bank'!N174),\"\",'TA Indicator Bank'!N174)","v":0},{"$f":"IF(ISBLANK('TA Indicator Bank'!O174),\"\",'TA Indicator Bank'!O174)","v":0},{"$f":"IF(ISBLANK('TA Indicator Bank'!P174),\"\",'TA Indicator Bank'!P174)","v":0},{"$f":"IF(ISBLANK('TA Indicator Bank'!Q174),\"\",'TA Indicator Bank'!Q174)","v":0},{"$f":"IF(ISBLANK('TA Indicator Bank'!R174),\"\",'TA Indicator Bank'!R174)","v":0},{"$f":"IF(ISBLANK('TA Indicator Bank'!S174),\"\",'TA Indicator Bank'!S174)","v":0},{"$f":"IF(ISBLANK('TA Indicator Bank'!T174),\"\",'TA Indicator Bank'!T174)","v":0},{"$f":"IF(ISBLANK('TA Indicator Bank'!U174),\"\",'TA Indicator Bank'!U174)","v":0},{"$f":"IF(ISBLANK('TA Indicator Bank'!V174),\"\",'TA Indicator Bank'!V174)","v":0},{"$f":"IF(ISBLANK('TA Indicator Bank'!W174),\"\",'TA Indicator Bank'!W174)","v":0},{"$f":"IF(ISBLANK('TA Indicator Bank'!X174),\"\",'TA Indicator Bank'!X174)","v":0},{"$f":"IF(ISBLANK('TA Indicator Bank'!Y174),\"\",'TA Indicator Bank'!Y174)","v":0},{"$f":"IF(ISBLANK('TA Indicator Bank'!Z174),\"\",'TA Indicator Bank'!Z174)","v":0},{"$f":"IF(ISBLANK('TA Indicator Bank'!AA174),\"\",'TA Indicator Bank'!AA174)","v":0},{"$f":"IF(ISBLANK('TA Indicator Bank'!AB174),\"\",'TA Indicator Bank'!AB174)","v":0},{"$f":"IF(ISBLANK('TA Indicator Bank'!AC174),\"\",'TA Indicator Bank'!AC174)","v":0},{"$f":"IF(ISBLANK('TA Indicator Bank'!AD174),\"\",'TA Indicator Bank'!AD174)","v":0},{"$f":"IF(ISBLANK('TA Indicator Bank'!AE174),\"\",'TA Indicator Bank'!AE174)","v":1},{"$f":"IF(ISBLANK('TA Indicator Bank'!AF174),\"\",'TA Indicator Bank'!AF174)","v":0},{"$f":"IF(ISBLANK('TA Indicator Bank'!AG174),\"\",'TA Indicator Bank'!AG174)","v":0},{"$f":"IF(ISBLANK('TA Indicator Bank'!AH174),\"\",'TA Indicator Bank'!AH174)","v":0},{"$f":"IF(ISBLANK('TA Indicator Bank'!AI174),\"\",'TA Indicator Bank'!AI174)","v":0},{"$f":"IF(ISBLANK('TA Indicator Bank'!AJ174),\"\",'TA Indicator Bank'!AJ174)","v":0},{"$f":"IF(ISBLANK('TA Indicator Bank'!AK174),\"\",'TA Indicator Bank'!AK174)","v":0},{"$f":"IF(ISBLANK('TA Indicator Bank'!AL174),\"\",'TA Indicator Bank'!AL174)","v":0},{"$f":"IF(ISBLANK('TA Indicator Bank'!AM174),\"\",'TA Indicator Bank'!AM174)","v":0},{"$f":"IF(ISBLANK('TA Indicator Bank'!AN174),\"\",'TA Indicator Bank'!AN174)","v":0},{"$f":"IF(ISBLANK('TA Indicator Bank'!AO174),\"\",'TA Indicator Bank'!AO174)","v":0},{"$f":"IF(ISBLANK('TA Indicator Bank'!AP174),\"\",'TA Indicator Bank'!AP174)","v":0},{"$f":"IF(ISBLANK('TA Indicator Bank'!AQ174),\"\",'TA Indicator Bank'!AQ174)","v":0},{"$f":"IF(ISBLANK('TA Indicator Bank'!AR174),\"\",'TA Indicator Bank'!AR174)","v":1},{"$f":"IF(ISBLANK('TA Indicator Bank'!AS174),\"\",'TA Indicator Bank'!AS174)","v":0},{"$f":"IF(ISBLANK('TA Indicator Bank'!AT174),\"\",'TA Indicator Bank'!AT174)","v":0},{"$f":"IF(AND(J178=1,J$410=1),1,0)","v":0},{"$f":"IF(AND(K178=1,K$410=1),1,0)","v":0},{"$f":"IF(AND(L178=1,L$410=1),1,0)","v":0},{"$f":"IF(AND(M178=1,M$410=1),1,0)","v":0},{"$f":"IF(AND(N178=1,N$410=1),1,0)","v":0},{"$f":"IF(AND(O178=1,O$410=1),1,0)","v":0},{"$f":"IF(AND(P178=1,P$410=1),1,0)","v":0},{"$f":"IF(AND(Q178=1,Q$410=1),1,0)","v":0},{"$f":"IF(AND(R178=1,R$410=1),1,0)","v":0},{"$f":"IF(AND(S178=1,S$410=1),1,0)","v":0},{"$f":"IF(AND(T178=1,T$410=1),1,0)","v":0},{"$f":"IF(AND(U178=1,U$410=1),1,0)","v":0},{"$f":"IF(AND(V178=1,V$410=1),1,0)","v":0},{"$f":"IF(AND(W178=1,W$410=1),1,0)","v":0},1,{"$f":"IF(AND(X178=1,X$410=1),1,0)","v":0},{"$f":"IF(AND(Y178=1,Y$410=1),1,0)","v":0},{"$f":"IF(AND(Z178=1,Z$410=1),1,0)","v":0},{"$f":"IF(AND(AA178=1,AA$410=1),1,0)","v":0},{"$f":"IF(AND(AB178=1,AB$410=1),1,0)","v":0},{"$f":"IF(AND(AC178=1,AC$410=1),1,0)","v":0},{"$f":"IF(AND(AD178=1,AD$410=1),1,0)","v":0},{"$f":"IF(AND(AE178=1,AE$410=1),1,0)","v":1},{"$f":"IF(AND(AF178=1,AF$410=1),1,0)","v":0},1,{"$f":"IF(AND(AG178=1,AG$410=1),1,0)","v":0},{"$f":"IF(AND(AH178=1,AH$410=1),1,0)","v":0},{"$f":"IF(AND(AI178=1,AI$410=1),1,0)","v":0},{"$f":"IF(AND(AJ178=1,AJ$410=1),1,0)","v":0},{"$f":"IF(AND(AK178=1,AK$410=1),1,0)","v":0},{"$f":"IF(AND(AL178=1,AL$410=1),1,0)","v":0},{"$f":"IF(AND(AM178=1,AM$410=1),1,0)","v":0},{"$f":"IF(AND(AN178=1,AN$410=1),1,0)","v":0},{"$f":"IF(AND(AO178=1,AO$410=1),1,0)","v":0},1,{"$f":"IF(AND(AP178=1,AP$410=1),1,0)","v":0},{"$f":"IF(AND(AQ178=1,AQ$410=1),1,0)","v":0},{"$f":"IF(AND(AR178=1,AR$410=1),1,0)","v":1},{"$f":"IF(AND(AS178=1,AS$410=1),1,0)","v":0},{"$f":"IF(AND(AT178=1,AT$410=1),1,0)","v":0},1,1,170,170,{"$f":"IFERROR(SMALL($CL$9:$CL$408,CK178),\"\")","v":170},{"$f":"IFERROR(INDEX($B$9:$I$408,$CM178,COLUMNS($CN$9:CN178)),\"\")","v":"TA170"},{"$f":"IFERROR(INDEX($B$9:$I$408,$CM178,COLUMNS($CN$9:CO178)),\"\")","v":"Knowledge products created"},{"$f":"IFERROR(INDEX($B$9:$I$408,$CM178,COLUMNS($CN$9:CP178)),\"\")","v":"-"},{"$f":"IFERROR(INDEX($B$9:$I$408,$CM178,COLUMNS($CN$9:CQ178)),\"\")","v":"Output"},{"$f":"IFERROR(INDEX($B$9:$I$408,$CM178,COLUMNS($CN$9:CR178)),\"\")","v":"-"},{"$f":"IFERROR(INDEX($B$9:$I$408,$CM178,COLUMNS($CN$9:CS178)),\"\")","v":"Financing support"},{"$f":"IFERROR(INDEX($B$9:$I$408,$CM178,COLUMNS($CN$9:CT178)),\"\")","v":"-"},{"$f":"IFERROR(INDEX($B$9:$I$408,$CM178,COLUMNS($CN$9:CU178)),\"\")","v":"Yes/No"}]
[null,{"$f":"IF(ISBLANK('TA Indicator Bank'!B175),\"\",'TA Indicator Bank'!B175)","v":"TA171"},{"$f":"IF(ISBLANK('TA Indicator Bank'!C175),\"\",'TA Indicator Bank'!C175)","v":"Ratio of mobilised versus provided funding (leverage ratio)"},{"$f":"IF(ISBLANK('TA Indicator Bank'!D175),\"\",'TA Indicator Bank'!D175)","v":"-"},{"$f":"IF(ISBLANK('TA Indicator Bank'!E175),\"\",'TA Indicator Bank'!E175)","v":"Outcome"},{"$f":"IF(ISBLANK('TA Indicator Bank'!F175),\"\",'TA Indicator Bank'!F175)","v":"-"},{"$f":"IF(ISBLANK('TA Indicator Bank'!G175),\"\",'TA Indicator Bank'!G175)","v":"-"},{"$f":"IF(ISBLANK('TA Indicator Bank'!H175),\"\",'TA Indicator Bank'!H175)","v":"Increased or improved allocation of domestic climate finance; Increased or improved access to international climate finance"},{"$f":"IF(ISBLANK('TA Indicator Bank'!I175),\"\",'TA Indicator Bank'!I175)","v":"Number"},{"$f":"IF(ISBLANK('TA Indicator Bank'!J175),\"\",'TA Indicator Bank'!J175)","v":0},{"$f":"IF(ISBLANK('TA Indicator Bank'!K175),\"\",'TA Indicator Bank'!K175)","v":0},{"$f":"IF(ISBLANK('TA Indicator Bank'!L175),\"\",'TA Indicator Bank'!L175)","v":0},{"$f":"IF(ISBLANK('TA Indicator Bank'!M175),\"\",'TA Indicator Bank'!M175)","v":0},{"$f":"IF(ISBLANK('TA Indicator Bank'!N175),\"\",'TA Indicator Bank'!N175)","v":0},{"$f":"IF(ISBLANK('TA Indicator Bank'!O175),\"\",'TA Indicator Bank'!O175)","v":0},{"$f":"IF(ISBLANK('TA Indicator Bank'!P175),\"\",'TA Indicator Bank'!P175)","v":0},{"$f":"IF(ISBLANK('TA Indicator Bank'!Q175),\"\",'TA Indicator Bank'!Q175)","v":0},{"$f":"IF(ISBLANK('TA Indicator Bank'!R175),\"\",'TA Indicator Bank'!R175)","v":0},{"$f":"IF(ISBLANK('TA Indicator Bank'!S175),\"\",'TA Indicator Bank'!S175)","v":0},{"$f":"IF(ISBLANK('TA Indicator Bank'!T175),\"\",'TA Indicator Bank'!T175)","v":0},{"$f":"IF(ISBLANK('TA Indicator Bank'!U175),\"\",'TA Indicator Bank'!U175)","v":0},{"$f":"IF(ISBLANK('TA Indicator Bank'!V175),\"\",'TA Indicator Bank'!V175)","v":0},{"$f":"IF(ISBLANK('TA Indicator Bank'!W175),\"\",'TA Indicator Bank'!W175)","v":0},{"$f":"IF(ISBLANK('TA Indicator Bank'!X175),\"\",'TA Indicator Bank'!X175)","v":0},{"$f":"IF(ISBLANK('TA Indicator Bank'!Y175),\"\",'TA Indicator Bank'!Y175)","v":0},{"$f":"IF(ISBLANK('TA Indicator Bank'!Z175),\"\",'TA Indicator Bank'!Z175)","v":0},{"$f":"IF(ISBLANK('TA Indicator Bank'!AA175),\"\",'TA Indicator Bank'!AA175)","v":0},{"$f":"IF(ISBLANK('TA Indicator Bank'!AB175),\"\",'TA Indicator Bank'!AB175)","v":0},{"$f":"IF(ISBLANK('TA Indicator Bank'!AC175),\"\",'TA Indicator Bank'!AC175)","v":0},{"$f":"IF(ISBLANK('TA Indicator Bank'!AD175),\"\",'TA Indicator Bank'!AD175)","v":0},{"$f":"IF(ISBLANK('TA Indicator Bank'!AE175),\"\",'TA Indicator Bank'!AE175)","v":0},{"$f":"IF(ISBLANK('TA Indicator Bank'!AF175),\"\",'TA Indicator Bank'!AF175)","v":0},{"$f":"IF(ISBLANK('TA Indicator Bank'!AG175),\"\",'TA Indicator Bank'!AG175)","v":0},{"$f":"IF(ISBLANK('TA Indicator Bank'!AH175),\"\",'TA Indicator Bank'!AH175)","v":0},{"$f":"IF(ISBLANK('TA Indicator Bank'!AI175),\"\",'TA Indicator Bank'!AI175)","v":0},{"$f":"IF(ISBLANK('TA Indicator Bank'!AJ175),\"\",'TA Indicator Bank'!AJ175)","v":0},{"$f":"IF(ISBLANK('TA Indicator Bank'!AK175),\"\",'TA Indicator Bank'!AK175)","v":0},{"$f":"IF(ISBLANK('TA Indicator Bank'!AL175),\"\",'TA Indicator Bank'!AL175)","v":0},{"$f":"IF(ISBLANK('TA Indicator Bank'!AM175),\"\",'TA Indicator Bank'!AM175)","v":0},{"$f":"IF(ISBLANK('TA Indicator Bank'!AN175),\"\",'TA Indicator Bank'!AN175)","v":1},{"$f":"IF(ISBLANK('TA Indicator Bank'!AO175),\"\",'TA Indicator Bank'!AO175)","v":1},{"$f":"IF(ISBLANK('TA Indicator Bank'!AP175),\"\",'TA Indicator Bank'!AP175)","v":0},{"$f":"IF(ISBLANK('TA Indicator Bank'!AQ175),\"\",'TA Indicator Bank'!AQ175)","v":0},{"$f":"IF(ISBLANK('TA Indicator Bank'!AR175),\"\",'TA Indicator Bank'!AR175)","v":0},{"$f":"IF(ISBLANK('TA Indicator Bank'!AS175),\"\",'TA Indicator Bank'!AS175)","v":1},{"$f":"IF(ISBLANK('TA Indicator Bank'!AT175),\"\",'TA Indicator Bank'!AT175)","v":0},{"$f":"IF(AND(J179=1,J$410=1),1,0)","v":0},{"$f":"IF(AND(K179=1,K$410=1),1,0)","v":0},{"$f":"IF(AND(L179=1,L$410=1),1,0)","v":0},{"$f":"IF(AND(M179=1,M$410=1),1,0)","v":0},{"$f":"IF(AND(N179=1,N$410=1),1,0)","v":0},{"$f":"IF(AND(O179=1,O$410=1),1,0)","v":0},{"$f":"IF(AND(P179=1,P$410=1),1,0)","v":0},{"$f":"IF(AND(Q179=1,Q$410=1),1,0)","v":0},{"$f":"IF(AND(R179=1,R$410=1),1,0)","v":0},{"$f":"IF(AND(S179=1,S$410=1),1,0)","v":0},{"$f":"IF(AND(T179=1,T$410=1),1,0)","v":0},{"$f":"IF(AND(U179=1,U$410=1),1,0)","v":0},{"$f":"IF(AND(V179=1,V$410=1),1,0)","v":0},{"$f":"IF(AND(W179=1,W$410=1),1,0)","v":0},1,{"$f":"IF(AND(X179=1,X$410=1),1,0)","v":0},{"$f":"IF(AND(Y179=1,Y$410=1),1,0)","v":0},{"$f":"IF(AND(Z179=1,Z$410=1),1,0)","v":0},{"$f":"IF(AND(AA179=1,AA$410=1),1,0)","v":0},{"$f":"IF(AND(AB179=1,AB$410=1),1,0)","v":0},{"$f":"IF(AND(AC179=1,AC$410=1),1,0)","v":0},{"$f":"IF(AND(AD179=1,AD$410=1),1,0)","v":0},{"$f":"IF(AND(AE179=1,AE$410=1),1,0)","v":0},{"$f":"IF(AND(AF179=1,AF$410=1),1,0)","v":0},1,{"$f":"IF(AND(AG179=1,AG$410=1),1,0)","v":0},{"$f":"IF(AND(AH179=1,AH$410=1),1,0)","v":0},{"$f":"IF(AND(AI179=1,AI$410=1),1,0)","v":0},{"$f":"IF(AND(AJ179=1,AJ$410=1),1,0)","v":0},{"$f":"IF(AND(AK179=1,AK$410=1),1,0)","v":0},{"$f":"IF(AND(AL179=1,AL$410=1),1,0)","v":0},{"$f":"IF(AND(AM179=1,AM$410=1),1,0)","v":0},{"$f":"IF(AND(AN179=1,AN$410=1),1,0)","v":1},{"$f":"IF(AND(AO179=1,AO$410=1),1,0)","v":1},1,{"$f":"IF(AND(AP179=1,AP$410=1),1,0)","v":0},{"$f":"IF(AND(AQ179=1,AQ$410=1),1,0)","v":0},{"$f":"IF(AND(AR179=1,AR$410=1),1,0)","v":0},{"$f":"IF(AND(AS179=1,AS$410=1),1,0)","v":1},{"$f":"IF(AND(AT179=1,AT$410=1),1,0)","v":0},1,1,171,171,{"$f":"IFERROR(SMALL($CL$9:$CL$408,CK179),\"\")","v":171},{"$f":"IFERROR(INDEX($B$9:$I$408,$CM179,COLUMNS($CN$9:CN179)),\"\")","v":"TA171"},{"$f":"IFERROR(INDEX($B$9:$I$408,$CM179,COLUMNS($CN$9:CO179)),\"\")","v":"Ratio of mobilised versus provided funding (leverage ratio)"},{"$f":"IFERROR(INDEX($B$9:$I$408,$CM179,COLUMNS($CN$9:CP179)),\"\")","v":"-"},{"$f":"IFERROR(INDEX($B$9:$I$408,$CM179,COLUMNS($CN$9:CQ179)),\"\")","v":"Outcome"},{"$f":"IFERROR(INDEX($B$9:$I$408,$CM179,COLUMNS($CN$9:CR179)),\"\")","v":"-"},{"$f":"IFERROR(INDEX($B$9:$I$408,$CM179,COLUMNS($CN$9:CS179)),\"\")","v":"-"},{"$f":"IFERROR(INDEX($B$9:$I$408,$CM179,COLUMNS($CN$9:CT179)),\"\")","v":"Increased or improved allocation of domestic climate finance; Increased or improved access to international climate finance"},{"$f":"IFERROR(INDEX($B$9:$I$408,$CM179,COLUMNS($CN$9:CU179)),\"\")","v":"Number"}]
[null,{"$f":"IF(ISBLANK('TA Indicator Bank'!B176),\"\",'TA Indicator Bank'!B176)","v":"TA172"},{"$f":"IF(ISBLANK('TA Indicator Bank'!C176),\"\",'TA Indicator Bank'!C176)","v":"Volume of operational expenditures for finance support"},{"$f":"IF(ISBLANK('TA Indicator Bank'!D176),\"\",'TA Indicator Bank'!D176)","v":"-"},{"$f":"IF(ISBLANK('TA Indicator Bank'!E176),\"\",'TA Indicator Bank'!E176)","v":"Outcome"},{"$f":"IF(ISBLANK('TA Indicator Bank'!F176),\"\",'TA Indicator Bank'!F176)","v":"-"},{"$f":"IF(ISBLANK('TA Indicator Bank'!G176),\"\",'TA Indicator Bank'!G176)","v":"-"},{"$f":"IF(ISBLANK('TA Indicator Bank'!H176),\"\",'TA Indicator Bank'!H176)","v":"Increased or improved allocation of domestic climate finance; Increased or improved access to international climate finance"},{"$f":"IF(ISBLANK('TA Indicator Bank'!I176),\"\",'TA Indicator Bank'!I176)","v":"Number"},{"$f":"IF(ISBLANK('TA Indicator Bank'!J176),\"\",'TA Indicator Bank'!J176)","v":0},{"$f":"IF(ISBLANK('TA Indicator Bank'!K176),\"\",'TA Indicator Bank'!K176)","v":0},{"$f":"IF(ISBLANK('TA Indicator Bank'!L176),\"\",'TA Indicator Bank'!L176)","v":0},{"$f":"IF(ISBLANK('TA Indicator Bank'!M176),\"\",'TA Indicator Bank'!M176)","v":0},{"$f":"IF(ISBLANK('TA Indicator Bank'!N176),\"\",'TA Indicator Bank'!N176)","v":0},{"$f":"IF(ISBLANK('TA Indicator Bank'!O176),\"\",'TA Indicator Bank'!O176)","v":0},{"$f":"IF(ISBLANK('TA Indicator Bank'!P176),\"\",'TA Indicator Bank'!P176)","v":0},{"$f":"IF(ISBLANK('TA Indicator Bank'!Q176),\"\",'TA Indicator Bank'!Q176)","v":0},{"$f":"IF(ISBLANK('TA Indicator Bank'!R176),\"\",'TA Indicator Bank'!R176)","v":0},{"$f":"IF(ISBLANK('TA Indicator Bank'!S176),\"\",'TA Indicator Bank'!S176)","v":0},{"$f":"IF(ISBLANK('TA Indicator Bank'!T176),\"\",'TA Indicator Bank'!T176)","v":0},{"$f":"IF(ISBLANK('TA Indicator Bank'!U176),\"\",'TA Indicator Bank'!U176)","v":0},{"$f":"IF(ISBLANK('TA Indicator Bank'!V176),\"\",'TA Indicator Bank'!V176)","v":0},{"$f":"IF(ISBLANK('TA Indicator Bank'!W176),\"\",'TA Indicator Bank'!W176)","v":0},{"$f":"IF(ISBLANK('TA Indicator Bank'!X176),\"\",'TA Indicator Bank'!X176)","v":0},{"$f":"IF(ISBLANK('TA Indicator Bank'!Y176),\"\",'TA Indicator Bank'!Y176)","v":0},{"$f":"IF(ISBLANK('TA Indicator Bank'!Z176),\"\",'TA Indicator Bank'!Z176)","v":0},{"$f":"IF(ISBLANK('TA Indicator Bank'!AA176),\"\",'TA Indicator Bank'!AA176)","v":0},{"$f":"IF(ISBLANK('TA Indicator Bank'!AB176),\"\",'TA Indicator Bank'!AB176)","v":0},{"$f":"IF(ISBLANK('TA Indicator Bank'!AC176),\"\",'TA Indicator Bank'!AC176)","v":0},{"$f":"IF(ISBLANK('TA Indicator Bank'!AD176),\"\",'TA Indicator Bank'!AD176)","v":0},{"$f":"IF(ISBLANK('TA Indicator Bank'!AE176),\"\",'TA Indicator Bank'!AE176)","v":0},{"$f":"IF(ISBLANK('TA Indicator Bank'!AF176),\"\",'TA Indicator Bank'!AF176)","v":0},{"$f":"IF(ISBLANK('TA Indicator Bank'!AG176),\"\",'TA Indicator Bank'!AG176)","v":0},{"$f":"IF(ISBLANK('TA Indicator Bank'!AH176),\"\",'TA Indicator Bank'!AH176)","v":0},{"$f":"IF(ISBLANK('TA Indicator Bank'!AI176),\"\",'TA Indicator Bank'!AI176)","v":0},{"$f":"IF(ISBLANK('TA Indicator Bank'!AJ176),\"\",'TA Indicator Bank'!AJ176)","v":0},{"$f":"IF(ISBLANK('TA Indicator Bank'!AK176),\"\",'TA Indicator Bank'!AK176)","v":0},{"$f":"IF(ISBLANK('TA Indicator Bank'!AL176),\"\",'TA Indicator Bank'!AL176)","v":0},{"$f":"IF(ISBLANK('TA Indicator Bank'!AM176),\"\",'TA Indicator Bank'!AM176)","v":0},{"$f":"IF(ISBLANK('TA Indicator Bank'!AN176),\"\",'TA Indicator Bank'!AN176)","v":1},{"$f":"IF(ISBLANK('TA Indicator Bank'!AO176),\"\",'TA Indicator Bank'!AO176)","v":1},{"$f":"IF(ISBLANK('TA Indicator Bank'!AP176),\"\",'TA Indicator Bank'!AP176)","v":0},{"$f":"IF(ISBLANK('TA Indicator Bank'!AQ176),\"\",'TA Indicator Bank'!AQ176)","v":0},{"$f":"IF(ISBLANK('TA Indicator Bank'!AR176),\"\",'TA Indicator Bank'!AR176)","v":0},{"$f":"IF(ISBLANK('TA Indicator Bank'!AS176),\"\",'TA Indicator Bank'!AS176)","v":1},{"$f":"IF(ISBLANK('TA Indicator Bank'!AT176),\"\",'TA Indicator Bank'!AT176)","v":0},{"$f":"IF(AND(J180=1,J$410=1),1,0)","v":0},{"$f":"IF(AND(K180=1,K$410=1),1,0)","v":0},{"$f":"IF(AND(L180=1,L$410=1),1,0)","v":0},{"$f":"IF(AND(M180=1,M$410=1),1,0)","v":0},{"$f":"IF(AND(N180=1,N$410=1),1,0)","v":0},{"$f":"IF(AND(O180=1,O$410=1),1,0)","v":0},{"$f":"IF(AND(P180=1,P$410=1),1,0)","v":0},{"$f":"IF(AND(Q180=1,Q$410=1),1,0)","v":0},{"$f":"IF(AND(R180=1,R$410=1),1,0)","v":0},{"$f":"IF(AND(S180=1,S$410=1),1,0)","v":0},{"$f":"IF(AND(T180=1,T$410=1),1,0)","v":0},{"$f":"IF(AND(U180=1,U$410=1),1,0)","v":0},{"$f":"IF(AND(V180=1,V$410=1),1,0)","v":0},{"$f":"IF(AND(W180=1,W$410=1),1,0)","v":0},1,{"$f":"IF(AND(X180=1,X$410=1),1,0)","v":0},{"$f":"IF(AND(Y180=1,Y$410=1),1,0)","v":0},{"$f":"IF(AND(Z180=1,Z$410=1),1,0)","v":0},{"$f":"IF(AND(AA180=1,AA$410=1),1,0)","v":0},{"$f":"IF(AND(AB180=1,AB$410=1),1,0)","v":0},{"$f":"IF(AND(AC180=1,AC$410=1),1,0)","v":0},{"$f":"IF(AND(AD180=1,AD$410=1),1,0)","v":0},{"$f":"IF(AND(AE180=1,AE$410=1),1,0)","v":0},{"$f":"IF(AND(AF180=1,AF$410=1),1,0)","v":0},1,{"$f":"IF(AND(AG180=1,AG$410=1),1,0)","v":0},{"$f":"IF(AND(AH180=1,AH$410=1),1,0)","v":0},{"$f":"IF(AND(AI180=1,AI$410=1),1,0)","v":0},{"$f":"IF(AND(AJ180=1,AJ$410=1),1,0)","v":0},{"$f":"IF(AND(AK180=1,AK$410=1),1,0)","v":0},{"$f":"IF(AND(AL180=1,AL$410=1),1,0)","v":0},{"$f":"IF(AND(AM180=1,AM$410=1),1,0)","v":0},{"$f":"IF(AND(AN180=1,AN$410=1),1,0)","v":1},{"$f":"IF(AND(AO180=1,AO$410=1),1,0)","v":1},1,{"$f":"IF(AND(AP180=1,AP$410=1),1,0)","v":0},{"$f":"IF(AND(AQ180=1,AQ$410=1),1,0)","v":0},{"$f":"IF(AND(AR180=1,AR$410=1),1,0)","v":0},{"$f":"IF(AND(AS180=1,AS$410=1),1,0)","v":1},{"$f":"IF(AND(AT180=1,AT$410=1),1,0)","v":0},1,1,172,172,{"$f":"IFERROR(SMALL($CL$9:$CL$408,CK180),\"\")","v":172},{"$f":"IFERROR(INDEX($B$9:$I$408,$CM180,COLUMNS($CN$9:CN180)),\"\")","v":"TA172"},{"$f":"IFERROR(INDEX($B$9:$I$408,$CM180,COLUMNS($CN$9:CO180)),\"\")","v":"Volume of operational expenditures for finance support"},{"$f":"IFERROR(INDEX($B$9:$I$408,$CM180,COLUMNS($CN$9:CP180)),\"\")","v":"-"},{"$f":"IFERROR(INDEX($B$9:$I$408,$CM180,COLUMNS($CN$9:CQ180)),\"\")","v":"Outcome"},{"$f":"IFERROR(INDEX($B$9:$I$408,$CM180,COLUMNS($CN$9:CR180)),\"\")","v":"-"},{"$f":"IFERROR(INDEX($B$9:$I$408,$CM180,COLUMNS($CN$9:CS180)),\"\")","v":"-"},{"$f":"IFERROR(INDEX($B$9:$I$408,$CM180,COLUMNS($CN$9:CT180)),\"\")","v":"Increased or improved allocation of domestic climate finance; Increased or improved access to international climate finance"},{"$f":"IFERROR(INDEX($B$9:$I$408,$CM180,COLUMNS($CN$9:CU180)),\"\")","v":"Number"}]
[null,{"$f":"IF(ISBLANK('TA Indicator Bank'!B177),\"\",'TA Indicator Bank'!B177)","v":"TA173"},{"$f":"IF(ISBLANK('TA Indicator Bank'!C177),\"\",'TA Indicator Bank'!C177)","v":"Number of trust funds providing financial support"},{"$f":"IF(ISBLANK('TA Indicator Bank'!D177),\"\",'TA Indicator Bank'!D177)","v":"-"},{"$f":"IF(ISBLANK('TA Indicator Bank'!E177),\"\",'TA Indicator Bank'!E177)","v":"Output"},{"$f":"IF(ISBLANK('TA Indicator Bank'!F177),\"\",'TA Indicator Bank'!F177)","v":"-"},{"$f":"IF(ISBLANK('TA Indicator Bank'!G177),\"\",'TA Indicator Bank'!G177)","v":"Financing support"},{"$f":"IF(ISBLANK('TA Indicator Bank'!H177),\"\",'TA Indicator Bank'!H177)","v":"-"},{"$f":"IF(ISBLANK('TA Indicator Bank'!I177),\"\",'TA Indicator Bank'!I177)","v":"Number"},{"$f":"IF(ISBLANK('TA Indicator Bank'!J177),\"\",'TA Indicator Bank'!J177)","v":0},{"$f":"IF(ISBLANK('TA Indicator Bank'!K177),\"\",'TA Indicator Bank'!K177)","v":0},{"$f":"IF(ISBLANK('TA Indicator Bank'!L177),\"\",'TA Indicator Bank'!L177)","v":0},{"$f":"IF(ISBLANK('TA Indicator Bank'!M177),\"\",'TA Indicator Bank'!M177)","v":0},{"$f":"IF(ISBLANK('TA Indicator Bank'!N177),\"\",'TA Indicator Bank'!N177)","v":0},{"$f":"IF(ISBLANK('TA Indicator Bank'!O177),\"\",'TA Indicator Bank'!O177)","v":0},{"$f":"IF(ISBLANK('TA Indicator Bank'!P177),\"\",'TA Indicator Bank'!P177)","v":0},{"$f":"IF(ISBLANK('TA Indicator Bank'!Q177),\"\",'TA Indicator Bank'!Q177)","v":0},{"$f":"IF(ISBLANK('TA Indicator Bank'!R177),\"\",'TA Indicator Bank'!R177)","v":0},{"$f":"IF(ISBLANK('TA Indicator Bank'!S177),\"\",'TA Indicator Bank'!S177)","v":0},{"$f":"IF(ISBLANK('TA Indicator Bank'!T177),\"\",'TA Indicator Bank'!T177)","v":0},{"$f":"IF(ISBLANK('TA Indicator Bank'!U177),\"\",'TA Indicator Bank'!U177)","v":0},{"$f":"IF(ISBLANK('TA Indicator Bank'!V177),\"\",'TA Indicator Bank'!V177)","v":0},{"$f":"IF(ISBLANK('TA Indicator Bank'!W177),\"\",'TA Indicator Bank'!W177)","v":0},{"$f":"IF(ISBLANK('TA Indicator Bank'!X177),\"\",'TA Indicator Bank'!X177)","v":0},{"$f":"IF(ISBLANK('TA Indicator Bank'!Y177),\"\",'TA Indicator Bank'!Y177)","v":0},{"$f":"IF(ISBLANK('TA Indicator Bank'!Z177),\"\",'TA Indicator Bank'!Z177)","v":0},{"$f":"IF(ISBLANK('TA Indicator Bank'!AA177),\"\",'TA Indicator Bank'!AA177)","v":0},{"$f":"IF(ISBLANK('TA Indicator Bank'!AB177),\"\",'TA Indicator Bank'!AB177)","v":0},{"$f":"IF(ISBLANK('TA Indicator Bank'!AC177),\"\",'TA Indicator Bank'!AC177)","v":0},{"$f":"IF(ISBLANK('TA Indicator Bank'!AD177),\"\",'TA Indicator Bank'!AD177)","v":0},{"$f":"IF(ISBLANK('TA Indicator Bank'!AE177),\"\",'TA Indicator Bank'!AE177)","v":1},{"$f":"IF(ISBLANK('TA Indicator Bank'!AF177),\"\",'TA Indicator Bank'!AF177)","v":0},{"$f":"IF(ISBLANK('TA Indicator Bank'!AG177),\"\",'TA Indicator Bank'!AG177)","v":0},{"$f":"IF(ISBLANK('TA Indicator Bank'!AH177),\"\",'TA Indicator Bank'!AH177)","v":0},{"$f":"IF(ISBLANK('TA Indicator Bank'!AI177),\"\",'TA Indicator Bank'!AI177)","v":0},{"$f":"IF(ISBLANK('TA Indicator Bank'!AJ177),\"\",'TA Indicator Bank'!AJ177)","v":0},{"$f":"IF(ISBLANK('TA Indicator Bank'!AK177),\"\",'TA Indicator Bank'!AK177)","v":0},{"$f":"IF(ISBLANK('TA Indicator Bank'!AL177),\"\",'TA Indicator Bank'!AL177)","v":0},{"$f":"IF(ISBLANK('TA Indicator Bank'!AM177),\"\",'TA Indicator Bank'!AM177)","v":0},{"$f":"IF(ISBLANK('TA Indicator Bank'!AN177),\"\",'TA Indicator Bank'!AN177)","v":0},{"$f":"IF(ISBLANK('TA Indicator Bank'!AO177),\"\",'TA Indicator Bank'!AO177)","v":0},{"$f":"IF(ISBLANK('TA Indicator Bank'!AP177),\"\",'TA Indicator Bank'!AP177)","v":0},{"$f":"IF(ISBLANK('TA Indicator Bank'!AQ177),\"\",'TA Indicator Bank'!AQ177)","v":0},{"$f":"IF(ISBLANK('TA Indicator Bank'!AR177),\"\",'TA Indicator Bank'!AR177)","v":1},{"$f":"IF(ISBLANK('TA Indicator Bank'!AS177),\"\",'TA Indicator Bank'!AS177)","v":0},{"$f":"IF(ISBLANK('TA Indicator Bank'!AT177),\"\",'TA Indicator Bank'!AT177)","v":0},{"$f":"IF(AND(J181=1,J$410=1),1,0)","v":0},{"$f":"IF(AND(K181=1,K$410=1),1,0)","v":0},{"$f":"IF(AND(L181=1,L$410=1),1,0)","v":0},{"$f":"IF(AND(M181=1,M$410=1),1,0)","v":0},{"$f":"IF(AND(N181=1,N$410=1),1,0)","v":0},{"$f":"IF(AND(O181=1,O$410=1),1,0)","v":0},{"$f":"IF(AND(P181=1,P$410=1),1,0)","v":0},{"$f":"IF(AND(Q181=1,Q$410=1),1,0)","v":0},{"$f":"IF(AND(R181=1,R$410=1),1,0)","v":0},{"$f":"IF(AND(S181=1,S$410=1),1,0)","v":0},{"$f":"IF(AND(T181=1,T$410=1),1,0)","v":0},{"$f":"IF(AND(U181=1,U$410=1),1,0)","v":0},{"$f":"IF(AND(V181=1,V$410=1),1,0)","v":0},{"$f":"IF(AND(W181=1,W$410=1),1,0)","v":0},1,{"$f":"IF(AND(X181=1,X$410=1),1,0)","v":0},{"$f":"IF(AND(Y181=1,Y$410=1),1,0)","v":0},{"$f":"IF(AND(Z181=1,Z$410=1),1,0)","v":0},{"$f":"IF(AND(AA181=1,AA$410=1),1,0)","v":0},{"$f":"IF(AND(AB181=1,AB$410=1),1,0)","v":0},{"$f":"IF(AND(AC181=1,AC$410=1),1,0)","v":0},{"$f":"IF(AND(AD181=1,AD$410=1),1,0)","v":0},{"$f":"IF(AND(AE181=1,AE$410=1),1,0)","v":1},{"$f":"IF(AND(AF181=1,AF$410=1),1,0)","v":0},1,{"$f":"IF(AND(AG181=1,AG$410=1),1,0)","v":0},{"$f":"IF(AND(AH181=1,AH$410=1),1,0)","v":0},{"$f":"IF(AND(AI181=1,AI$410=1),1,0)","v":0},{"$f":"IF(AND(AJ181=1,AJ$410=1),1,0)","v":0},{"$f":"IF(AND(AK181=1,AK$410=1),1,0)","v":0},{"$f":"IF(AND(AL181=1,AL$410=1),1,0)","v":0},{"$f":"IF(AND(AM181=1,AM$410=1),1,0)","v":0},{"$f":"IF(AND(AN181=1,AN$410=1),1,0)","v":0},{"$f":"IF(AND(AO181=1,AO$410=1),1,0)","v":0},1,{"$f":"IF(AND(AP181=1,AP$410=1),1,0)","v":0},{"$f":"IF(AND(AQ181=1,AQ$410=1),1,0)","v":0},{"$f":"IF(AND(AR181=1,AR$410=1),1,0)","v":1},{"$f":"IF(AND(AS181=1,AS$410=1),1,0)","v":0},{"$f":"IF(AND(AT181=1,AT$410=1),1,0)","v":0},1,1,173,173,{"$f":"IFERROR(SMALL($CL$9:$CL$408,CK181),\"\")","v":173},{"$f":"IFERROR(INDEX($B$9:$I$408,$CM181,COLUMNS($CN$9:CN181)),\"\")","v":"TA173"},{"$f":"IFERROR(INDEX($B$9:$I$408,$CM181,COLUMNS($CN$9:CO181)),\"\")","v":"Number of trust funds providing financial support"},{"$f":"IFERROR(INDEX($B$9:$I$408,$CM181,COLUMNS($CN$9:CP181)),\"\")","v":"-"},{"$f":"IFERROR(INDEX($B$9:$I$408,$CM181,COLUMNS($CN$9:CQ181)),\"\")","v":"Output"},{"$f":"IFERROR(INDEX($B$9:$I$408,$CM181,COLUMNS($CN$9:CR181)),\"\")","v":"-"},{"$f":"IFERROR(INDEX($B$9:$I$408,$CM181,COLUMNS($CN$9:CS181)),\"\")","v":"Financing support"},{"$f":"IFERROR(INDEX($B$9:$I$408,$CM181,COLUMNS($CN$9:CT181)),\"\")","v":"-"},{"$f":"IFERROR(INDEX($B$9:$I$408,$CM181,COLUMNS($CN$9:CU181)),\"\")","v":"Number"}]
[null,{"$f":"IF(ISBLANK('TA Indicator Bank'!B178),\"\",'TA Indicator Bank'!B178)","v":"TA174"},{"$f":"IF(ISBLANK('TA Indicator Bank'!C178),\"\",'TA Indicator Bank'!C178)","v":"Stakeholders informed about programme"},{"$f":"IF(ISBLANK('TA Indicator Bank'!D178),\"\",'TA Indicator Bank'!D178)","v":"-"},{"$f":"IF(ISBLANK('TA Indicator Bank'!E178),\"\",'TA Indicator Bank'!E178)","v":"Uptake"},{"$f":"IF(ISBLANK('TA Indicator Bank'!F178),\"\",'TA Indicator Bank'!F178)","v":"Strategic organisational guidance"},{"$f":"IF(ISBLANK('TA Indicator Bank'!G178),\"\",'TA Indicator Bank'!G178)","v":"-"},{"$f":"IF(ISBLANK('TA Indicator Bank'!H178),\"\",'TA Indicator Bank'!H178)","v":"-"},{"$f":"IF(ISBLANK('TA Indicator Bank'!I178),\"\",'TA Indicator Bank'!I178)","v":"Yes/No"},{"$f":"IF(ISBLANK('TA Indicator Bank'!J178),\"\",'TA Indicator Bank'!J178)","v":0},{"$f":"IF(ISBLANK('TA Indicator Bank'!K178),\"\",'TA Indicator Bank'!K178)","v":0},{"$f":"IF(ISBLANK('TA Indicator Bank'!L178),\"\",'TA Indicator Bank'!L178)","v":0},{"$f":"IF(ISBLANK('TA Indicator Bank'!M178),\"\",'TA Indicator Bank'!M178)","v":0},{"$f":"IF(ISBLANK('TA Indicator Bank'!N178),\"\",'TA Indicator Bank'!N178)","v":0},{"$f":"IF(ISBLANK('TA Indicator Bank'!O178),\"\",'TA Indicator Bank'!O178)","v":1},{"$f":"IF(ISBLANK('TA Indicator Bank'!P178),\"\",'TA Indicator Bank'!P178)","v":0},{"$f":"IF(ISBLANK('TA Indicator Bank'!Q178),\"\",'TA Indicator Bank'!Q178)","v":0},{"$f":"IF(ISBLANK('TA Indicator Bank'!R178),\"\",'TA Indicator Bank'!R178)","v":0},{"$f":"IF(ISBLANK('TA Indicator Bank'!S178),\"\",'TA Indicator Bank'!S178)","v":0},{"$f":"IF(ISBLANK('TA Indicator Bank'!T178),\"\",'TA Indicator Bank'!T178)","v":0},{"$f":"IF(ISBLANK('TA Indicator Bank'!U178),\"\",'TA Indicator Bank'!U178)","v":0},{"$f":"IF(ISBLANK('TA Indicator Bank'!V178),\"\",'TA Indicator Bank'!V178)","v":0},{"$f":"IF(ISBLANK('TA Indicator Bank'!W178),\"\",'TA Indicator Bank'!W178)","v":0},{"$f":"IF(ISBLANK('TA Indicator Bank'!X178),\"\",'TA Indicator Bank'!X178)","v":0},{"$f":"IF(ISBLANK('TA Indicator Bank'!Y178),\"\",'TA Indicator Bank'!Y178)","v":0},{"$f":"IF(ISBLANK('TA Indicator Bank'!Z178),\"\",'TA Indicator Bank'!Z178)","v":0},{"$f":"IF(ISBLANK('TA Indicator Bank'!AA178),\"\",'TA Indicator Bank'!AA178)","v":0},{"$f":"IF(ISBLANK('TA Indicator Bank'!AB178),\"\",'TA Indicator Bank'!AB178)","v":0},{"$f":"IF(ISBLANK('TA Indicator Bank'!AC178),\"\",'TA Indicator Bank'!AC178)","v":0},{"$f":"IF(ISBLANK('TA Indicator Bank'!AD178),\"\",'TA Indicator Bank'!AD178)","v":0},{"$f":"IF(ISBLANK('TA Indicator Bank'!AE178),\"\",'TA Indicator Bank'!AE178)","v":0},{"$f":"IF(ISBLANK('TA Indicator Bank'!AF178),\"\",'TA Indicator Bank'!AF178)","v":0},{"$f":"IF(ISBLANK('TA Indicator Bank'!AG178),\"\",'TA Indicator Bank'!AG178)","v":0},{"$f":"IF(ISBLANK('TA Indicator Bank'!AH178),\"\",'TA Indicator Bank'!AH178)","v":0},{"$f":"IF(ISBLANK('TA Indicator Bank'!AI178),\"\",'TA Indicator Bank'!AI178)","v":0},{"$f":"IF(ISBLANK('TA Indicator Bank'!AJ178),\"\",'TA Indicator Bank'!AJ178)","v":0},{"$f":"IF(ISBLANK('TA Indicator Bank'!AK178),\"\",'TA Indicator Bank'!AK178)","v":0},{"$f":"IF(ISBLANK('TA Indicator Bank'!AL178),\"\",'TA Indicator Bank'!AL178)","v":0},{"$f":"IF(ISBLANK('TA Indicator Bank'!AM178),\"\",'TA Indicator Bank'!AM178)","v":0},{"$f":"IF(ISBLANK('TA Indicator Bank'!AN178),\"\",'TA Indicator Bank'!AN178)","v":0},{"$f":"IF(ISBLANK('TA Indicator Bank'!AO178),\"\",'TA Indicator Bank'!AO178)","v":0},{"$f":"IF(ISBLANK('TA Indicator Bank'!AP178),\"\",'TA Indicator Bank'!AP178)","v":0},{"$f":"IF(ISBLANK('TA Indicator Bank'!AQ178),\"\",'TA Indicator Bank'!AQ178)","v":1},{"$f":"IF(ISBLANK('TA Indicator Bank'!AR178),\"\",'TA Indicator Bank'!AR178)","v":0},{"$f":"IF(ISBLANK('TA Indicator Bank'!AS178),\"\",'TA Indicator Bank'!AS178)","v":0},{"$f":"IF(ISBLANK('TA Indicator Bank'!AT178),\"\",'TA Indicator Bank'!AT178)","v":0},{"$f":"IF(AND(J182=1,J$410=1),1,0)","v":0},{"$f":"IF(AND(K182=1,K$410=1),1,0)","v":0},{"$f":"IF(AND(L182=1,L$410=1),1,0)","v":0},{"$f":"IF(AND(M182=1,M$410=1),1,0)","v":0},{"$f":"IF(AND(N182=1,N$410=1),1,0)","v":0},{"$f":"IF(AND(O182=1,O$410=1),1,0)","v":1},{"$f":"IF(AND(P182=1,P$410=1),1,0)","v":0},{"$f":"IF(AND(Q182=1,Q$410=1),1,0)","v":0},{"$f":"IF(AND(R182=1,R$410=1),1,0)","v":0},{"$f":"IF(AND(S182=1,S$410=1),1,0)","v":0},{"$f":"IF(AND(T182=1,T$410=1),1,0)","v":0},{"$f":"IF(AND(U182=1,U$410=1),1,0)","v":0},{"$f":"IF(AND(V182=1,V$410=1),1,0)","v":0},{"$f":"IF(AND(W182=1,W$410=1),1,0)","v":0},1,{"$f":"IF(AND(X182=1,X$410=1),1,0)","v":0},{"$f":"IF(AND(Y182=1,Y$410=1),1,0)","v":0},{"$f":"IF(AND(Z182=1,Z$410=1),1,0)","v":0},{"$f":"IF(AND(AA182=1,AA$410=1),1,0)","v":0},{"$f":"IF(AND(AB182=1,AB$410=1),1,0)","v":0},{"$f":"IF(AND(AC182=1,AC$410=1),1,0)","v":0},{"$f":"IF(AND(AD182=1,AD$410=1),1,0)","v":0},{"$f":"IF(AND(AE182=1,AE$410=1),1,0)","v":0},{"$f":"IF(AND(AF182=1,AF$410=1),1,0)","v":0},1,{"$f":"IF(AND(AG182=1,AG$410=1),1,0)","v":0},{"$f":"IF(AND(AH182=1,AH$410=1),1,0)","v":0},{"$f":"IF(AND(AI182=1,AI$410=1),1,0)","v":0},{"$f":"IF(AND(AJ182=1,AJ$410=1),1,0)","v":0},{"$f":"IF(AND(AK182=1,AK$410=1),1,0)","v":0},{"$f":"IF(AND(AL182=1,AL$410=1),1,0)","v":0},{"$f":"IF(AND(AM182=1,AM$410=1),1,0)","v":0},{"$f":"IF(AND(AN182=1,AN$410=1),1,0)","v":0},{"$f":"IF(AND(AO182=1,AO$410=1),1,0)","v":0},1,{"$f":"IF(AND(AP182=1,AP$410=1),1,0)","v":0},{"$f":"IF(AND(AQ182=1,AQ$410=1),1,0)","v":1},{"$f":"IF(AND(AR182=1,AR$410=1),1,0)","v":0},{"$f":"IF(AND(AS182=1,AS$410=1),1,0)","v":0},{"$f":"IF(AND(AT182=1,AT$410=1),1,0)","v":0},1,1,174,174,{"$f":"IFERROR(SMALL($CL$9:$CL$408,CK182),\"\")","v":174},{"$f":"IFERROR(INDEX($B$9:$I$408,$CM182,COLUMNS($CN$9:CN182)),\"\")","v":"TA174"},{"$f":"IFERROR(INDEX($B$9:$I$408,$CM182,COLUMNS($CN$9:CO182)),\"\")","v":"Stakeholders informed about programme"},{"$f":"IFERROR(INDEX($B$9:$I$408,$CM182,COLUMNS($CN$9:CP182)),\"\")","v":"-"},{"$f":"IFERROR(INDEX($B$9:$I$408,$CM182,COLUMNS($CN$9:CQ182)),\"\")","v":"Uptake"},{"$f":"IFERROR(INDEX($B$9:$I$408,$CM182,COLUMNS($CN$9:CR182)),\"\")","v":"Strategic organisational guidance"},{"$f":"IFERROR(INDEX($B$9:$I$408,$CM182,COLUMNS($CN$9:CS182)),\"\")","v":"-"},{"$f":"IFERROR(INDEX($B$9:$I$408,$CM182,COLUMNS($CN$9:CT182)),\"\")","v":"-"},{"$f":"IFERROR(INDEX($B$9:$I$408,$CM182,COLUMNS($CN$9:CU182)),\"\")","v":"Yes/No"}]
[null,{"$f":"IF(ISBLANK('TA Indicator Bank'!B179),\"\",'TA Indicator Bank'!B179)","v":"TA175"},{"$f":"IF(ISBLANK('TA Indicator Bank'!C179),\"\",'TA Indicator Bank'!C179)","v":"Number of cases where programme has contributed to value chain or business environment"},{"$f":"IF(ISBLANK('TA Indicator Bank'!D179),\"\",'TA Indicator Bank'!D179)","v":"-"},{"$f":"IF(ISBLANK('TA Indicator Bank'!E179),\"\",'TA Indicator Bank'!E179)","v":"Output"},{"$f":"IF(ISBLANK('TA Indicator Bank'!F179),\"\",'TA Indicator Bank'!F179)","v":"-"},{"$f":"IF(ISBLANK('TA Indicator Bank'!G179),\"\",'TA Indicator Bank'!G179)","v":"Public-private co-ordination support"},{"$f":"IF(ISBLANK('TA Indicator Bank'!H179),\"\",'TA Indicator Bank'!H179)","v":"-"},{"$f":"IF(ISBLANK('TA Indicator Bank'!I179),\"\",'TA Indicator Bank'!I179)","v":"Narrative"},{"$f":"IF(ISBLANK('TA Indicator Bank'!J179),\"\",'TA Indicator Bank'!J179)","v":0},{"$f":"IF(ISBLANK('TA Indicator Bank'!K179),\"\",'TA Indicator Bank'!K179)","v":0},{"$f":"IF(ISBLANK('TA Indicator Bank'!L179),\"\",'TA Indicator Bank'!L179)","v":0},{"$f":"IF(ISBLANK('TA Indicator Bank'!M179),\"\",'TA Indicator Bank'!M179)","v":0},{"$f":"IF(ISBLANK('TA Indicator Bank'!N179),\"\",'TA Indicator Bank'!N179)","v":0},{"$f":"IF(ISBLANK('TA Indicator Bank'!O179),\"\",'TA Indicator Bank'!O179)","v":0},{"$f":"IF(ISBLANK('TA Indicator Bank'!P179),\"\",'TA Indicator Bank'!P179)","v":0},{"$f":"IF(ISBLANK('TA Indicator Bank'!Q179),\"\",'TA Indicator Bank'!Q179)","v":0},{"$f":"IF(ISBLANK('TA Indicator Bank'!R179),\"\",'TA Indicator Bank'!R179)","v":0},{"$f":"IF(ISBLANK('TA Indicator Bank'!S179),\"\",'TA Indicator Bank'!S179)","v":0},{"$f":"IF(ISBLANK('TA Indicator Bank'!T179),\"\",'TA Indicator Bank'!T179)","v":0},{"$f":"IF(ISBLANK('TA Indicator Bank'!U179),\"\",'TA Indicator Bank'!U179)","v":0},{"$f":"IF(ISBLANK('TA Indicator Bank'!V179),\"\",'TA Indicator Bank'!V179)","v":0},{"$f":"IF(ISBLANK('TA Indicator Bank'!W179),\"\",'TA Indicator Bank'!W179)","v":0},{"$f":"IF(ISBLANK('TA Indicator Bank'!X179),\"\",'TA Indicator Bank'!X179)","v":0},{"$f":"IF(ISBLANK('TA Indicator Bank'!Y179),\"\",'TA Indicator Bank'!Y179)","v":0},{"$f":"IF(ISBLANK('TA Indicator Bank'!Z179),\"\",'TA Indicator Bank'!Z179)","v":0},{"$f":"IF(ISBLANK('TA Indicator Bank'!AA179),\"\",'TA Indicator Bank'!AA179)","v":0},{"$f":"IF(ISBLANK('TA Indicator Bank'!AB179),\"\",'TA Indicator Bank'!AB179)","v":0},{"$f":"IF(ISBLANK('TA Indicator Bank'!AC179),\"\",'TA Indicator Bank'!AC179)","v":0},{"$f":"IF(ISBLANK('TA Indicator Bank'!AD179),\"\",'TA Indicator Bank'!AD179)","v":0},{"$f":"IF(ISBLANK('TA Indicator Bank'!AE179),\"\",'TA Indicator Bank'!AE179)","v":0},{"$f":"IF(ISBLANK('TA Indicator Bank'!AF179),\"\",'TA Indicator Bank'!AF179)","v":1},{"$f":"IF(ISBLANK('TA Indicator Bank'!AG179),\"\",'TA Indicator Bank'!AG179)","v":0},{"$f":"IF(ISBLANK('TA Indicator Bank'!AH179),\"\",'TA Indicator Bank'!AH179)","v":0},{"$f":"IF(ISBLANK('TA Indicator Bank'!AI179),\"\",'TA Indicator Bank'!AI179)","v":0},{"$f":"IF(ISBLANK('TA Indicator Bank'!AJ179),\"\",'TA Indicator Bank'!AJ179)","v":0},{"$f":"IF(ISBLANK('TA Indicator Bank'!AK179),\"\",'TA Indicator Bank'!AK179)","v":0},{"$f":"IF(ISBLANK('TA Indicator Bank'!AL179),\"\",'TA Indicator Bank'!AL179)","v":0},{"$f":"IF(ISBLANK('TA Indicator Bank'!AM179),\"\",'TA Indicator Bank'!AM179)","v":0},{"$f":"IF(ISBLANK('TA Indicator Bank'!AN179),\"\",'TA Indicator Bank'!AN179)","v":0},{"$f":"IF(ISBLANK('TA Indicator Bank'!AO179),\"\",'TA Indicator Bank'!AO179)","v":0},{"$f":"IF(ISBLANK('TA Indicator Bank'!AP179),\"\",'TA Indicator Bank'!AP179)","v":0},{"$f":"IF(ISBLANK('TA Indicator Bank'!AQ179),\"\",'TA Indicator Bank'!AQ179)","v":0},{"$f":"IF(ISBLANK('TA Indicator Bank'!AR179),\"\",'TA Indicator Bank'!AR179)","v":1},{"$f":"IF(ISBLANK('TA Indicator Bank'!AS179),\"\",'TA Indicator Bank'!AS179)","v":0},{"$f":"IF(ISBLANK('TA Indicator Bank'!AT179),\"\",'TA Indicator Bank'!AT179)","v":0},{"$f":"IF(AND(J183=1,J$410=1),1,0)","v":0},{"$f":"IF(AND(K183=1,K$410=1),1,0)","v":0},{"$f":"IF(AND(L183=1,L$410=1),1,0)","v":0},{"$f":"IF(AND(M183=1,M$410=1),1,0)","v":0},{"$f":"IF(AND(N183=1,N$410=1),1,0)","v":0},{"$f":"IF(AND(O183=1,O$410=1),1,0)","v":0},{"$f":"IF(AND(P183=1,P$410=1),1,0)","v":0},{"$f":"IF(AND(Q183=1,Q$410=1),1,0)","v":0},{"$f":"IF(AND(R183=1,R$410=1),1,0)","v":0},{"$f":"IF(AND(S183=1,S$410=1),1,0)","v":0},{"$f":"IF(AND(T183=1,T$410=1),1,0)","v":0},{"$f":"IF(AND(U183=1,U$410=1),1,0)","v":0},{"$f":"IF(AND(V183=1,V$410=1),1,0)","v":0},{"$f":"IF(AND(W183=1,W$410=1),1,0)","v":0},1,{"$f":"IF(AND(X183=1,X$410=1),1,0)","v":0},{"$f":"IF(AND(Y183=1,Y$410=1),1,0)","v":0},{"$f":"IF(AND(Z183=1,Z$410=1),1,0)","v":0},{"$f":"IF(AND(AA183=1,AA$410=1),1,0)","v":0},{"$f":"IF(AND(AB183=1,AB$410=1),1,0)","v":0},{"$f":"IF(AND(AC183=1,AC$410=1),1,0)","v":0},{"$f":"IF(AND(AD183=1,AD$410=1),1,0)","v":0},{"$f":"IF(AND(AE183=1,AE$410=1),1,0)","v":0},{"$f":"IF(AND(AF183=1,AF$410=1),1,0)","v":1},1,{"$f":"IF(AND(AG183=1,AG$410=1),1,0)","v":0},{"$f":"IF(AND(AH183=1,AH$410=1),1,0)","v":0},{"$f":"IF(AND(AI183=1,AI$410=1),1,0)","v":0},{"$f":"IF(AND(AJ183=1,AJ$410=1),1,0)","v":0},{"$f":"IF(AND(AK183=1,AK$410=1),1,0)","v":0},{"$f":"IF(AND(AL183=1,AL$410=1),1,0)","v":0},{"$f":"IF(AND(AM183=1,AM$410=1),1,0)","v":0},{"$f":"IF(AND(AN183=1,AN$410=1),1,0)","v":0},{"$f":"IF(AND(AO183=1,AO$410=1),1,0)","v":0},1,{"$f":"IF(AND(AP183=1,AP$410=1),1,0)","v":0},{"$f":"IF(AND(AQ183=1,AQ$410=1),1,0)","v":0},{"$f":"IF(AND(AR183=1,AR$410=1),1,0)","v":1},{"$f":"IF(AND(AS183=1,AS$410=1),1,0)","v":0},{"$f":"IF(AND(AT183=1,AT$410=1),1,0)","v":0},1,1,175,175,{"$f":"IFERROR(SMALL($CL$9:$CL$408,CK183),\"\")","v":175},{"$f":"IFERROR(INDEX($B$9:$I$408,$CM183,COLUMNS($CN$9:CN183)),\"\")","v":"TA175"},{"$f":"IFERROR(INDEX($B$9:$I$408,$CM183,COLUMNS($CN$9:CO183)),\"\")","v":"Number of cases where programme has contributed to value chain or business environment"},{"$f":"IFERROR(INDEX($B$9:$I$408,$CM183,COLUMNS($CN$9:CP183)),\"\")","v":"-"},{"$f":"IFERROR(INDEX($B$9:$I$408,$CM183,COLUMNS($CN$9:CQ183)),\"\")","v":"Output"},{"$f":"IFERROR(INDEX($B$9:$I$408,$CM183,COLUMNS($CN$9:CR183)),\"\")","v":"-"},{"$f":"IFERROR(INDEX($B$9:$I$408,$CM183,COLUMNS($CN$9:CS183)),\"\")","v":"Public-private co-ordination support"},{"$f":"IFERROR(INDEX($B$9:$I$408,$CM183,COLUMNS($CN$9:CT183)),\"\")","v":"-"},{"$f":"IFERROR(INDEX($B$9:$I$408,$CM183,COLUMNS($CN$9:CU183)),\"\")","v":"Narrative"}]
[null,{"$f":"IF(ISBLANK('TA Indicator Bank'!B180),\"\",'TA Indicator Bank'!B180)","v":"TA176"},{"$f":"IF(ISBLANK('TA Indicator Bank'!C180),\"\",'TA Indicator Bank'!C180)","v":"(Number of) Public-private cooperation reaches certain maturity"},{"$f":"IF(ISBLANK('TA Indicator Bank'!D180),\"\",'TA Indicator Bank'!D180)","v":"-"},{"$f":"IF(ISBLANK('TA Indicator Bank'!E180),\"\",'TA Indicator Bank'!E180)","v":"Output"},{"$f":"IF(ISBLANK('TA Indicator Bank'!F180),\"\",'TA Indicator Bank'!F180)","v":"-"},{"$f":"IF(ISBLANK('TA Indicator Bank'!G180),\"\",'TA Indicator Bank'!G180)","v":"Public-private co-ordination support"},{"$f":"IF(ISBLANK('TA Indicator Bank'!H180),\"\",'TA Indicator Bank'!H180)","v":"-"},{"$f":"IF(ISBLANK('TA Indicator Bank'!I180),\"\",'TA Indicator Bank'!I180)","v":"Number"},{"$f":"IF(ISBLANK('TA Indicator Bank'!J180),\"\",'TA Indicator Bank'!J180)","v":0},{"$f":"IF(ISBLANK('TA Indicator Bank'!K180),\"\",'TA Indicator Bank'!K180)","v":0},{"$f":"IF(ISBLANK('TA Indicator Bank'!L180),\"\",'TA Indicator Bank'!L180)","v":0},{"$f":"IF(ISBLANK('TA Indicator Bank'!M180),\"\",'TA Indicator Bank'!M180)","v":0},{"$f":"IF(ISBLANK('TA Indicator Bank'!N180),\"\",'TA Indicator Bank'!N180)","v":0},{"$f":"IF(ISBLANK('TA Indicator Bank'!O180),\"\",'TA Indicator Bank'!O180)","v":0},{"$f":"IF(ISBLANK('TA Indicator Bank'!P180),\"\",'TA Indicator Bank'!P180)","v":0},{"$f":"IF(ISBLANK('TA Indicator Bank'!Q180),\"\",'TA Indicator Bank'!Q180)","v":0},{"$f":"IF(ISBLANK('TA Indicator Bank'!R180),\"\",'TA Indicator Bank'!R180)","v":0},{"$f":"IF(ISBLANK('TA Indicator Bank'!S180),\"\",'TA Indicator Bank'!S180)","v":0},{"$f":"IF(ISBLANK('TA Indicator Bank'!T180),\"\",'TA Indicator Bank'!T180)","v":0},{"$f":"IF(ISBLANK('TA Indicator Bank'!U180),\"\",'TA Indicator Bank'!U180)","v":0},{"$f":"IF(ISBLANK('TA Indicator Bank'!V180),\"\",'TA Indicator Bank'!V180)","v":0},{"$f":"IF(ISBLANK('TA Indicator Bank'!W180),\"\",'TA Indicator Bank'!W180)","v":0},{"$f":"IF(ISBLANK('TA Indicator Bank'!X180),\"\",'TA Indicator Bank'!X180)","v":0},{"$f":"IF(ISBLANK('TA Indicator Bank'!Y180),\"\",'TA Indicator Bank'!Y180)","v":0},{"$f":"IF(ISBLANK('TA Indicator Bank'!Z180),\"\",'TA Indicator Bank'!Z180)","v":0},{"$f":"IF(ISBLANK('TA Indicator Bank'!AA180),\"\",'TA Indicator Bank'!AA180)","v":0},{"$f":"IF(ISBLANK('TA Indicator Bank'!AB180),\"\",'TA Indicator Bank'!AB180)","v":0},{"$f":"IF(ISBLANK('TA Indicator Bank'!AC180),\"\",'TA Indicator Bank'!AC180)","v":0},{"$f":"IF(ISBLANK('TA Indicator Bank'!AD180),\"\",'TA Indicator Bank'!AD180)","v":0},{"$f":"IF(ISBLANK('TA Indicator Bank'!AE180),\"\",'TA Indicator Bank'!AE180)","v":0},{"$f":"IF(ISBLANK('TA Indicator Bank'!AF180),\"\",'TA Indicator Bank'!AF180)","v":1},{"$f":"IF(ISBLANK('TA Indicator Bank'!AG180),\"\",'TA Indicator Bank'!AG180)","v":0},{"$f":"IF(ISBLANK('TA Indicator Bank'!AH180),\"\",'TA Indicator Bank'!AH180)","v":0},{"$f":"IF(ISBLANK('TA Indicator Bank'!AI180),\"\",'TA Indicator Bank'!AI180)","v":0},{"$f":"IF(ISBLANK('TA Indicator Bank'!AJ180),\"\",'TA Indicator Bank'!AJ180)","v":0},{"$f":"IF(ISBLANK('TA Indicator Bank'!AK180),\"\",'TA Indicator Bank'!AK180)","v":0},{"$f":"IF(ISBLANK('TA Indicator Bank'!AL180),\"\",'TA Indicator Bank'!AL180)","v":0},{"$f":"IF(ISBLANK('TA Indicator Bank'!AM180),\"\",'TA Indicator Bank'!AM180)","v":0},{"$f":"IF(ISBLANK('TA Indicator Bank'!AN180),\"\",'TA Indicator Bank'!AN180)","v":0},{"$f":"IF(ISBLANK('TA Indicator Bank'!AO180),\"\",'TA Indicator Bank'!AO180)","v":0},{"$f":"IF(ISBLANK('TA Indicator Bank'!AP180),\"\",'TA Indicator Bank'!AP180)","v":0},{"$f":"IF(ISBLANK('TA Indicator Bank'!AQ180),\"\",'TA Indicator Bank'!AQ180)","v":0},{"$f":"IF(ISBLANK('TA Indicator Bank'!AR180),\"\",'TA Indicator Bank'!AR180)","v":1},{"$f":"IF(ISBLANK('TA Indicator Bank'!AS180),\"\",'TA Indicator Bank'!AS180)","v":0},{"$f":"IF(ISBLANK('TA Indicator Bank'!AT180),\"\",'TA Indicator Bank'!AT180)","v":0},{"$f":"IF(AND(J184=1,J$410=1),1,0)","v":0},{"$f":"IF(AND(K184=1,K$410=1),1,0)","v":0},{"$f":"IF(AND(L184=1,L$410=1),1,0)","v":0},{"$f":"IF(AND(M184=1,M$410=1),1,0)","v":0},{"$f":"IF(AND(N184=1,N$410=1),1,0)","v":0},{"$f":"IF(AND(O184=1,O$410=1),1,0)","v":0},{"$f":"IF(AND(P184=1,P$410=1),1,0)","v":0},{"$f":"IF(AND(Q184=1,Q$410=1),1,0)","v":0},{"$f":"IF(AND(R184=1,R$410=1),1,0)","v":0},{"$f":"IF(AND(S184=1,S$410=1),1,0)","v":0},{"$f":"IF(AND(T184=1,T$410=1),1,0)","v":0},{"$f":"IF(AND(U184=1,U$410=1),1,0)","v":0},{"$f":"IF(AND(V184=1,V$410=1),1,0)","v":0},{"$f":"IF(AND(W184=1,W$410=1),1,0)","v":0},1,{"$f":"IF(AND(X184=1,X$410=1),1,0)","v":0},{"$f":"IF(AND(Y184=1,Y$410=1),1,0)","v":0},{"$f":"IF(AND(Z184=1,Z$410=1),1,0)","v":0},{"$f":"IF(AND(AA184=1,AA$410=1),1,0)","v":0},{"$f":"IF(AND(AB184=1,AB$410=1),1,0)","v":0},{"$f":"IF(AND(AC184=1,AC$410=1),1,0)","v":0},{"$f":"IF(AND(AD184=1,AD$410=1),1,0)","v":0},{"$f":"IF(AND(AE184=1,AE$410=1),1,0)","v":0},{"$f":"IF(AND(AF184=1,AF$410=1),1,0)","v":1},1,{"$f":"IF(AND(AG184=1,AG$410=1),1,0)","v":0},{"$f":"IF(AND(AH184=1,AH$410=1),1,0)","v":0},{"$f":"IF(AND(AI184=1,AI$410=1),1,0)","v":0},{"$f":"IF(AND(AJ184=1,AJ$410=1),1,0)","v":0},{"$f":"IF(AND(AK184=1,AK$410=1),1,0)","v":0},{"$f":"IF(AND(AL184=1,AL$410=1),1,0)","v":0},{"$f":"IF(AND(AM184=1,AM$410=1),1,0)","v":0},{"$f":"IF(AND(AN184=1,AN$410=1),1,0)","v":0},{"$f":"IF(AND(AO184=1,AO$410=1),1,0)","v":0},1,{"$f":"IF(AND(AP184=1,AP$410=1),1,0)","v":0},{"$f":"IF(AND(AQ184=1,AQ$410=1),1,0)","v":0},{"$f":"IF(AND(AR184=1,AR$410=1),1,0)","v":1},{"$f":"IF(AND(AS184=1,AS$410=1),1,0)","v":0},{"$f":"IF(AND(AT184=1,AT$410=1),1,0)","v":0},1,1,176,176,{"$f":"IFERROR(SMALL($CL$9:$CL$408,CK184),\"\")","v":176},{"$f":"IFERROR(INDEX($B$9:$I$408,$CM184,COLUMNS($CN$9:CN184)),\"\")","v":"TA176"},{"$f":"IFERROR(INDEX($B$9:$I$408,$CM184,COLUMNS($CN$9:CO184)),\"\")","v":"(Number of) Public-private cooperation reaches certain maturity"},{"$f":"IFERROR(INDEX($B$9:$I$408,$CM184,COLUMNS($CN$9:CP184)),\"\")","v":"-"},{"$f":"IFERROR(INDEX($B$9:$I$408,$CM184,COLUMNS($CN$9:CQ184)),\"\")","v":"Output"},{"$f":"IFERROR(INDEX($B$9:$I$408,$CM184,COLUMNS($CN$9:CR184)),\"\")","v":"-"},{"$f":"IFERROR(INDEX($B$9:$I$408,$CM184,COLUMNS($CN$9:CS184)),\"\")","v":"Public-private co-ordination support"},{"$f":"IFERROR(INDEX($B$9:$I$408,$CM184,COLUMNS($CN$9:CT184)),\"\")","v":"-"},{"$f":"IFERROR(INDEX($B$9:$I$408,$CM184,COLUMNS($CN$9:CU184)),\"\")","v":"Number"}]
[null,{"$f":"IF(ISBLANK('TA Indicator Bank'!B181),\"\",'TA Indicator Bank'!B181)","v":"TA177"},{"$f":"IF(ISBLANK('TA Indicator Bank'!C181),\"\",'TA Indicator Bank'!C181)","v":"(Number of) Public-private cooperation reaches certain maturity due to programme support"},{"$f":"IF(ISBLANK('TA Indicator Bank'!D181),\"\",'TA Indicator Bank'!D181)","v":"-"},{"$f":"IF(ISBLANK('TA Indicator Bank'!E181),\"\",'TA Indicator Bank'!E181)","v":"Output"},{"$f":"IF(ISBLANK('TA Indicator Bank'!F181),\"\",'TA Indicator Bank'!F181)","v":"-"},{"$f":"IF(ISBLANK('TA Indicator Bank'!G181),\"\",'TA Indicator Bank'!G181)","v":"Public-private co-ordination support"},{"$f":"IF(ISBLANK('TA Indicator Bank'!H181),\"\",'TA Indicator Bank'!H181)","v":"-"},{"$f":"IF(ISBLANK('TA Indicator Bank'!I181),\"\",'TA Indicator Bank'!I181)","v":"Number"},{"$f":"IF(ISBLANK('TA Indicator Bank'!J181),\"\",'TA Indicator Bank'!J181)","v":0},{"$f":"IF(ISBLANK('TA Indicator Bank'!K181),\"\",'TA Indicator Bank'!K181)","v":0},{"$f":"IF(ISBLANK('TA Indicator Bank'!L181),\"\",'TA Indicator Bank'!L181)","v":0},{"$f":"IF(ISBLANK('TA Indicator Bank'!M181),\"\",'TA Indicator Bank'!M181)","v":0},{"$f":"IF(ISBLANK('TA Indicator Bank'!N181),\"\",'TA Indicator Bank'!N181)","v":0},{"$f":"IF(ISBLANK('TA Indicator Bank'!O181),\"\",'TA Indicator Bank'!O181)","v":0},{"$f":"IF(ISBLANK('TA Indicator Bank'!P181),\"\",'TA Indicator Bank'!P181)","v":0},{"$f":"IF(ISBLANK('TA Indicator Bank'!Q181),\"\",'TA Indicator Bank'!Q181)","v":0},{"$f":"IF(ISBLANK('TA Indicator Bank'!R181),\"\",'TA Indicator Bank'!R181)","v":0},{"$f":"IF(ISBLANK('TA Indicator Bank'!S181),\"\",'TA Indicator Bank'!S181)","v":0},{"$f":"IF(ISBLANK('TA Indicator Bank'!T181),\"\",'TA Indicator Bank'!T181)","v":0},{"$f":"IF(ISBLANK('TA Indicator Bank'!U181),\"\",'TA Indicator Bank'!U181)","v":0},{"$f":"IF(ISBLANK('TA Indicator Bank'!V181),\"\",'TA Indicator Bank'!V181)","v":0},{"$f":"IF(ISBLANK('TA Indicator Bank'!W181),\"\",'TA Indicator Bank'!W181)","v":0},{"$f":"IF(ISBLANK('TA Indicator Bank'!X181),\"\",'TA Indicator Bank'!X181)","v":0},{"$f":"IF(ISBLANK('TA Indicator Bank'!Y181),\"\",'TA Indicator Bank'!Y181)","v":0},{"$f":"IF(ISBLANK('TA Indicator Bank'!Z181),\"\",'TA Indicator Bank'!Z181)","v":0},{"$f":"IF(ISBLANK('TA Indicator Bank'!AA181),\"\",'TA Indicator Bank'!AA181)","v":0},{"$f":"IF(ISBLANK('TA Indicator Bank'!AB181),\"\",'TA Indicator Bank'!AB181)","v":0},{"$f":"IF(ISBLANK('TA Indicator Bank'!AC181),\"\",'TA Indicator Bank'!AC181)","v":0},{"$f":"IF(ISBLANK('TA Indicator Bank'!AD181),\"\",'TA Indicator Bank'!AD181)","v":0},{"$f":"IF(ISBLANK('TA Indicator Bank'!AE181),\"\",'TA Indicator Bank'!AE181)","v":0},{"$f":"IF(ISBLANK('TA Indicator Bank'!AF181),\"\",'TA Indicator Bank'!AF181)","v":1},{"$f":"IF(ISBLANK('TA Indicator Bank'!AG181),\"\",'TA Indicator Bank'!AG181)","v":0},{"$f":"IF(ISBLANK('TA Indicator Bank'!AH181),\"\",'TA Indicator Bank'!AH181)","v":0},{"$f":"IF(ISBLANK('TA Indicator Bank'!AI181),\"\",'TA Indicator Bank'!AI181)","v":0},{"$f":"IF(ISBLANK('TA Indicator Bank'!AJ181),\"\",'TA Indicator Bank'!AJ181)","v":0},{"$f":"IF(ISBLANK('TA Indicator Bank'!AK181),\"\",'TA Indicator Bank'!AK181)","v":0},{"$f":"IF(ISBLANK('TA Indicator Bank'!AL181),\"\",'TA Indicator Bank'!AL181)","v":0},{"$f":"IF(ISBLANK('TA Indicator Bank'!AM181),\"\",'TA Indicator Bank'!AM181)","v":0},{"$f":"IF(ISBLANK('TA Indicator Bank'!AN181),\"\",'TA Indicator Bank'!AN181)","v":0},{"$f":"IF(ISBLANK('TA Indicator Bank'!AO181),\"\",'TA Indicator Bank'!AO181)","v":0},{"$f":"IF(ISBLANK('TA Indicator Bank'!AP181),\"\",'TA Indicator Bank'!AP181)","v":0},{"$f":"IF(ISBLANK('TA Indicator Bank'!AQ181),\"\",'TA Indicator Bank'!AQ181)","v":0},{"$f":"IF(ISBLANK('TA Indicator Bank'!AR181),\"\",'TA Indicator Bank'!AR181)","v":1},{"$f":"IF(ISBLANK('TA Indicator Bank'!AS181),\"\",'TA Indicator Bank'!AS181)","v":0},{"$f":"IF(ISBLANK('TA Indicator Bank'!AT181),\"\",'TA Indicator Bank'!AT181)","v":0},{"$f":"IF(AND(J185=1,J$410=1),1,0)","v":0},{"$f":"IF(AND(K185=1,K$410=1),1,0)","v":0},{"$f":"IF(AND(L185=1,L$410=1),1,0)","v":0},{"$f":"IF(AND(M185=1,M$410=1),1,0)","v":0},{"$f":"IF(AND(N185=1,N$410=1),1,0)","v":0},{"$f":"IF(AND(O185=1,O$410=1),1,0)","v":0},{"$f":"IF(AND(P185=1,P$410=1),1,0)","v":0},{"$f":"IF(AND(Q185=1,Q$410=1),1,0)","v":0},{"$f":"IF(AND(R185=1,R$410=1),1,0)","v":0},{"$f":"IF(AND(S185=1,S$410=1),1,0)","v":0},{"$f":"IF(AND(T185=1,T$410=1),1,0)","v":0},{"$f":"IF(AND(U185=1,U$410=1),1,0)","v":0},{"$f":"IF(AND(V185=1,V$410=1),1,0)","v":0},{"$f":"IF(AND(W185=1,W$410=1),1,0)","v":0},1,{"$f":"IF(AND(X185=1,X$410=1),1,0)","v":0},{"$f":"IF(AND(Y185=1,Y$410=1),1,0)","v":0},{"$f":"IF(AND(Z185=1,Z$410=1),1,0)","v":0},{"$f":"IF(AND(AA185=1,AA$410=1),1,0)","v":0},{"$f":"IF(AND(AB185=1,AB$410=1),1,0)","v":0},{"$f":"IF(AND(AC185=1,AC$410=1),1,0)","v":0},{"$f":"IF(AND(AD185=1,AD$410=1),1,0)","v":0},{"$f":"IF(AND(AE185=1,AE$410=1),1,0)","v":0},{"$f":"IF(AND(AF185=1,AF$410=1),1,0)","v":1},1,{"$f":"IF(AND(AG185=1,AG$410=1),1,0)","v":0},{"$f":"IF(AND(AH185=1,AH$410=1),1,0)","v":0},{"$f":"IF(AND(AI185=1,AI$410=1),1,0)","v":0},{"$f":"IF(AND(AJ185=1,AJ$410=1),1,0)","v":0},{"$f":"IF(AND(AK185=1,AK$410=1),1,0)","v":0},{"$f":"IF(AND(AL185=1,AL$410=1),1,0)","v":0},{"$f":"IF(AND(AM185=1,AM$410=1),1,0)","v":0},{"$f":"IF(AND(AN185=1,AN$410=1),1,0)","v":0},{"$f":"IF(AND(AO185=1,AO$410=1),1,0)","v":0},1,{"$f":"IF(AND(AP185=1,AP$410=1),1,0)","v":0},{"$f":"IF(AND(AQ185=1,AQ$410=1),1,0)","v":0},{"$f":"IF(AND(AR185=1,AR$410=1),1,0)","v":1},{"$f":"IF(AND(AS185=1,AS$410=1),1,0)","v":0},{"$f":"IF(AND(AT185=1,AT$410=1),1,0)","v":0},1,1,177,177,{"$f":"IFERROR(SMALL($CL$9:$CL$408,CK185),\"\")","v":177},{"$f":"IFERROR(INDEX($B$9:$I$408,$CM185,COLUMNS($CN$9:CN185)),\"\")","v":"TA177"},{"$f":"IFERROR(INDEX($B$9:$I$408,$CM185,COLUMNS($CN$9:CO185)),\"\")","v":"(Number of) Public-private cooperation reaches certain maturity due to programme support"},{"$f":"IFERROR(INDEX($B$9:$I$408,$CM185,COLUMNS($CN$9:CP185)),\"\")","v":"-"},{"$f":"IFERROR(INDEX($B$9:$I$408,$CM185,COLUMNS($CN$9:CQ185)),\"\")","v":"Output"},{"$f":"IFERROR(INDEX($B$9:$I$408,$CM185,COLUMNS($CN$9:CR185)),\"\")","v":"-"},{"$f":"IFERROR(INDEX($B$9:$I$408,$CM185,COLUMNS($CN$9:CS185)),\"\")","v":"Public-private co-ordination support"},{"$f":"IFERROR(INDEX($B$9:$I$408,$CM185,COLUMNS($CN$9:CT185)),\"\")","v":"-"},{"$f":"IFERROR(INDEX($B$9:$I$408,$CM185,COLUMNS($CN$9:CU185)),\"\")","v":"Number"}]
[null,{"$f":"IF(ISBLANK('TA Indicator Bank'!B182),\"\",'TA Indicator Bank'!B182)","v":"TA178"},{"$f":"IF(ISBLANK('TA Indicator Bank'!C182),\"\",'TA Indicator Bank'!C182)","v":"(Number of) Public-private cooperation passes through certain maturity due to programme support"},{"$f":"IF(ISBLANK('TA Indicator Bank'!D182),\"\",'TA Indicator Bank'!D182)","v":"-"},{"$f":"IF(ISBLANK('TA Indicator Bank'!E182),\"\",'TA Indicator Bank'!E182)","v":"Output"},{"$f":"IF(ISBLANK('TA Indicator Bank'!F182),\"\",'TA Indicator Bank'!F182)","v":"-"},{"$f":"IF(ISBLANK('TA Indicator Bank'!G182),\"\",'TA Indicator Bank'!G182)","v":"Public-private co-ordination support"},{"$f":"IF(ISBLANK('TA Indicator Bank'!H182),\"\",'TA Indicator Bank'!H182)","v":"-"},{"$f":"IF(ISBLANK('TA Indicator Bank'!I182),\"\",'TA Indicator Bank'!I182)","v":"Number"},{"$f":"IF(ISBLANK('TA Indicator Bank'!J182),\"\",'TA Indicator Bank'!J182)","v":0},{"$f":"IF(ISBLANK('TA Indicator Bank'!K182),\"\",'TA Indicator Bank'!K182)","v":0},{"$f":"IF(ISBLANK('TA Indicator Bank'!L182),\"\",'TA Indicator Bank'!L182)","v":0},{"$f":"IF(ISBLANK('TA Indicator Bank'!M182),\"\",'TA Indicator Bank'!M182)","v":0},{"$f":"IF(ISBLANK('TA Indicator Bank'!N182),\"\",'TA Indicator Bank'!N182)","v":0},{"$f":"IF(ISBLANK('TA Indicator Bank'!O182),\"\",'TA Indicator Bank'!O182)","v":0},{"$f":"IF(ISBLANK('TA Indicator Bank'!P182),\"\",'TA Indicator Bank'!P182)","v":0},{"$f":"IF(ISBLANK('TA Indicator Bank'!Q182),\"\",'TA Indicator Bank'!Q182)","v":0},{"$f":"IF(ISBLANK('TA Indicator Bank'!R182),\"\",'TA Indicator Bank'!R182)","v":0},{"$f":"IF(ISBLANK('TA Indicator Bank'!S182),\"\",'TA Indicator Bank'!S182)","v":0},{"$f":"IF(ISBLANK('TA Indicator Bank'!T182),\"\",'TA Indicator Bank'!T182)","v":0},{"$f":"IF(ISBLANK('TA Indicator Bank'!U182),\"\",'TA Indicator Bank'!U182)","v":0},{"$f":"IF(ISBLANK('TA Indicator Bank'!V182),\"\",'TA Indicator Bank'!V182)","v":0},{"$f":"IF(ISBLANK('TA Indicator Bank'!W182),\"\",'TA Indicator Bank'!W182)","v":0},{"$f":"IF(ISBLANK('TA Indicator Bank'!X182),\"\",'TA Indicator Bank'!X182)","v":0},{"$f":"IF(ISBLANK('TA Indicator Bank'!Y182),\"\",'TA Indicator Bank'!Y182)","v":0},{"$f":"IF(ISBLANK('TA Indicator Bank'!Z182),\"\",'TA Indicator Bank'!Z182)","v":0},{"$f":"IF(ISBLANK('TA Indicator Bank'!AA182),\"\",'TA Indicator Bank'!AA182)","v":0},{"$f":"IF(ISBLANK('TA Indicator Bank'!AB182),\"\",'TA Indicator Bank'!AB182)","v":0},{"$f":"IF(ISBLANK('TA Indicator Bank'!AC182),\"\",'TA Indicator Bank'!AC182)","v":0},{"$f":"IF(ISBLANK('TA Indicator Bank'!AD182),\"\",'TA Indicator Bank'!AD182)","v":0},{"$f":"IF(ISBLANK('TA Indicator Bank'!AE182),\"\",'TA Indicator Bank'!AE182)","v":0},{"$f":"IF(ISBLANK('TA Indicator Bank'!AF182),\"\",'TA Indicator Bank'!AF182)","v":1},{"$f":"IF(ISBLANK('TA Indicator Bank'!AG182),\"\",'TA Indicator Bank'!AG182)","v":0},{"$f":"IF(ISBLANK('TA Indicator Bank'!AH182),\"\",'TA Indicator Bank'!AH182)","v":0},{"$f":"IF(ISBLANK('TA Indicator Bank'!AI182),\"\",'TA Indicator Bank'!AI182)","v":0},{"$f":"IF(ISBLANK('TA Indicator Bank'!AJ182),\"\",'TA Indicator Bank'!AJ182)","v":0},{"$f":"IF(ISBLANK('TA Indicator Bank'!AK182),\"\",'TA Indicator Bank'!AK182)","v":0},{"$f":"IF(ISBLANK('TA Indicator Bank'!AL182),\"\",'TA Indicator Bank'!AL182)","v":0},{"$f":"IF(ISBLANK('TA Indicator Bank'!AM182),\"\",'TA Indicator Bank'!AM182)","v":0},{"$f":"IF(ISBLANK('TA Indicator Bank'!AN182),\"\",'TA Indicator Bank'!AN182)","v":0},{"$f":"IF(ISBLANK('TA Indicator Bank'!AO182),\"\",'TA Indicator Bank'!AO182)","v":0},{"$f":"IF(ISBLANK('TA Indicator Bank'!AP182),\"\",'TA Indicator Bank'!AP182)","v":0},{"$f":"IF(ISBLANK('TA Indicator Bank'!AQ182),\"\",'TA Indicator Bank'!AQ182)","v":0},{"$f":"IF(ISBLANK('TA Indicator Bank'!AR182),\"\",'TA Indicator Bank'!AR182)","v":1},{"$f":"IF(ISBLANK('TA Indicator Bank'!AS182),\"\",'TA Indicator Bank'!AS182)","v":0},{"$f":"IF(ISBLANK('TA Indicator Bank'!AT182),\"\",'TA Indicator Bank'!AT182)","v":0},{"$f":"IF(AND(J186=1,J$410=1),1,0)","v":0},{"$f":"IF(AND(K186=1,K$410=1),1,0)","v":0},{"$f":"IF(AND(L186=1,L$410=1),1,0)","v":0},{"$f":"IF(AND(M186=1,M$410=1),1,0)","v":0},{"$f":"IF(AND(N186=1,N$410=1),1,0)","v":0},{"$f":"IF(AND(O186=1,O$410=1),1,0)","v":0},{"$f":"IF(AND(P186=1,P$410=1),1,0)","v":0},{"$f":"IF(AND(Q186=1,Q$410=1),1,0)","v":0},{"$f":"IF(AND(R186=1,R$410=1),1,0)","v":0},{"$f":"IF(AND(S186=1,S$410=1),1,0)","v":0},{"$f":"IF(AND(T186=1,T$410=1),1,0)","v":0},{"$f":"IF(AND(U186=1,U$410=1),1,0)","v":0},{"$f":"IF(AND(V186=1,V$410=1),1,0)","v":0},{"$f":"IF(AND(W186=1,W$410=1),1,0)","v":0},1,{"$f":"IF(AND(X186=1,X$410=1),1,0)","v":0},{"$f":"IF(AND(Y186=1,Y$410=1),1,0)","v":0},{"$f":"IF(AND(Z186=1,Z$410=1),1,0)","v":0},{"$f":"IF(AND(AA186=1,AA$410=1),1,0)","v":0},{"$f":"IF(AND(AB186=1,AB$410=1),1,0)","v":0},{"$f":"IF(AND(AC186=1,AC$410=1),1,0)","v":0},{"$f":"IF(AND(AD186=1,AD$410=1),1,0)","v":0},{"$f":"IF(AND(AE186=1,AE$410=1),1,0)","v":0},{"$f":"IF(AND(AF186=1,AF$410=1),1,0)","v":1},1,{"$f":"IF(AND(AG186=1,AG$410=1),1,0)","v":0},{"$f":"IF(AND(AH186=1,AH$410=1),1,0)","v":0},{"$f":"IF(AND(AI186=1,AI$410=1),1,0)","v":0},{"$f":"IF(AND(AJ186=1,AJ$410=1),1,0)","v":0},{"$f":"IF(AND(AK186=1,AK$410=1),1,0)","v":0},{"$f":"IF(AND(AL186=1,AL$410=1),1,0)","v":0},{"$f":"IF(AND(AM186=1,AM$410=1),1,0)","v":0},{"$f":"IF(AND(AN186=1,AN$410=1),1,0)","v":0},{"$f":"IF(AND(AO186=1,AO$410=1),1,0)","v":0},1,{"$f":"IF(AND(AP186=1,AP$410=1),1,0)","v":0},{"$f":"IF(AND(AQ186=1,AQ$410=1),1,0)","v":0},{"$f":"IF(AND(AR186=1,AR$410=1),1,0)","v":1},{"$f":"IF(AND(AS186=1,AS$410=1),1,0)","v":0},{"$f":"IF(AND(AT186=1,AT$410=1),1,0)","v":0},1,1,178,178,{"$f":"IFERROR(SMALL($CL$9:$CL$408,CK186),\"\")","v":178},{"$f":"IFERROR(INDEX($B$9:$I$408,$CM186,COLUMNS($CN$9:CN186)),\"\")","v":"TA178"},{"$f":"IFERROR(INDEX($B$9:$I$408,$CM186,COLUMNS($CN$9:CO186)),\"\")","v":"(Number of) Public-private cooperation passes through certain maturity due to programme support"},{"$f":"IFERROR(INDEX($B$9:$I$408,$CM186,COLUMNS($CN$9:CP186)),\"\")","v":"-"},{"$f":"IFERROR(INDEX($B$9:$I$408,$CM186,COLUMNS($CN$9:CQ186)),\"\")","v":"Output"},{"$f":"IFERROR(INDEX($B$9:$I$408,$CM186,COLUMNS($CN$9:CR186)),\"\")","v":"-"},{"$f":"IFERROR(INDEX($B$9:$I$408,$CM186,COLUMNS($CN$9:CS186)),\"\")","v":"Public-private co-ordination support"},{"$f":"IFERROR(INDEX($B$9:$I$408,$CM186,COLUMNS($CN$9:CT186)),\"\")","v":"-"},{"$f":"IFERROR(INDEX($B$9:$I$408,$CM186,COLUMNS($CN$9:CU186)),\"\")","v":"Number"}]
[null,{"$f":"IF(ISBLANK('TA Indicator Bank'!B183),\"\",'TA Indicator Bank'!B183)","v":"TA179"},{"$f":"IF(ISBLANK('TA Indicator Bank'!C183),\"\",'TA Indicator Bank'!C183)","v":"Number of market participants that received support"},{"$f":"IF(ISBLANK('TA Indicator Bank'!D183),\"\",'TA Indicator Bank'!D183)","v":"-"},{"$f":"IF(ISBLANK('TA Indicator Bank'!E183),\"\",'TA Indicator Bank'!E183)","v":"Uptake"},{"$f":"IF(ISBLANK('TA Indicator Bank'!F183),\"\",'TA Indicator Bank'!F183)","v":"Strategic organisational guidance"},{"$f":"IF(ISBLANK('TA Indicator Bank'!G183),\"\",'TA Indicator Bank'!G183)","v":"-"},{"$f":"IF(ISBLANK('TA Indicator Bank'!H183),\"\",'TA Indicator Bank'!H183)","v":"-"},{"$f":"IF(ISBLANK('TA Indicator Bank'!I183),\"\",'TA Indicator Bank'!I183)","v":"Number"},{"$f":"IF(ISBLANK('TA Indicator Bank'!J183),\"\",'TA Indicator Bank'!J183)","v":0},{"$f":"IF(ISBLANK('TA Indicator Bank'!K183),\"\",'TA Indicator Bank'!K183)","v":0},{"$f":"IF(ISBLANK('TA Indicator Bank'!L183),\"\",'TA Indicator Bank'!L183)","v":0},{"$f":"IF(ISBLANK('TA Indicator Bank'!M183),\"\",'TA Indicator Bank'!M183)","v":0},{"$f":"IF(ISBLANK('TA Indicator Bank'!N183),\"\",'TA Indicator Bank'!N183)","v":0},{"$f":"IF(ISBLANK('TA Indicator Bank'!O183),\"\",'TA Indicator Bank'!O183)","v":1},{"$f":"IF(ISBLANK('TA Indicator Bank'!P183),\"\",'TA Indicator Bank'!P183)","v":0},{"$f":"IF(ISBLANK('TA Indicator Bank'!Q183),\"\",'TA Indicator Bank'!Q183)","v":0},{"$f":"IF(ISBLANK('TA Indicator Bank'!R183),\"\",'TA Indicator Bank'!R183)","v":0},{"$f":"IF(ISBLANK('TA Indicator Bank'!S183),\"\",'TA Indicator Bank'!S183)","v":0},{"$f":"IF(ISBLANK('TA Indicator Bank'!T183),\"\",'TA Indicator Bank'!T183)","v":0},{"$f":"IF(ISBLANK('TA Indicator Bank'!U183),\"\",'TA Indicator Bank'!U183)","v":0},{"$f":"IF(ISBLANK('TA Indicator Bank'!V183),\"\",'TA Indicator Bank'!V183)","v":0},{"$f":"IF(ISBLANK('TA Indicator Bank'!W183),\"\",'TA Indicator Bank'!W183)","v":0},{"$f":"IF(ISBLANK('TA Indicator Bank'!X183),\"\",'TA Indicator Bank'!X183)","v":0},{"$f":"IF(ISBLANK('TA Indicator Bank'!Y183),\"\",'TA Indicator Bank'!Y183)","v":0},{"$f":"IF(ISBLANK('TA Indicator Bank'!Z183),\"\",'TA Indicator Bank'!Z183)","v":0},{"$f":"IF(ISBLANK('TA Indicator Bank'!AA183),\"\",'TA Indicator Bank'!AA183)","v":0},{"$f":"IF(ISBLANK('TA Indicator Bank'!AB183),\"\",'TA Indicator Bank'!AB183)","v":0},{"$f":"IF(ISBLANK('TA Indicator Bank'!AC183),\"\",'TA Indicator Bank'!AC183)","v":0},{"$f":"IF(ISBLANK('TA Indicator Bank'!AD183),\"\",'TA Indicator Bank'!AD183)","v":0},{"$f":"IF(ISBLANK('TA Indicator Bank'!AE183),\"\",'TA Indicator Bank'!AE183)","v":0},{"$f":"IF(ISBLANK('TA Indicator Bank'!AF183),\"\",'TA Indicator Bank'!AF183)","v":0},{"$f":"IF(ISBLANK('TA Indicator Bank'!AG183),\"\",'TA Indicator Bank'!AG183)","v":0},{"$f":"IF(ISBLANK('TA Indicator Bank'!AH183),\"\",'TA Indicator Bank'!AH183)","v":0},{"$f":"IF(ISBLANK('TA Indicator Bank'!AI183),\"\",'TA Indicator Bank'!AI183)","v":0},{"$f":"IF(ISBLANK('TA Indicator Bank'!AJ183),\"\",'TA Indicator Bank'!AJ183)","v":0},{"$f":"IF(ISBLANK('TA Indicator Bank'!AK183),\"\",'TA Indicator Bank'!AK183)","v":0},{"$f":"IF(ISBLANK('TA Indicator Bank'!AL183),\"\",'TA Indicator Bank'!AL183)","v":0},{"$f":"IF(ISBLANK('TA Indicator Bank'!AM183),\"\",'TA Indicator Bank'!AM183)","v":0},{"$f":"IF(ISBLANK('TA Indicator Bank'!AN183),\"\",'TA Indicator Bank'!AN183)","v":0},{"$f":"IF(ISBLANK('TA Indicator Bank'!AO183),\"\",'TA Indicator Bank'!AO183)","v":0},{"$f":"IF(ISBLANK('TA Indicator Bank'!AP183),\"\",'TA Indicator Bank'!AP183)","v":0},{"$f":"IF(ISBLANK('TA Indicator Bank'!AQ183),\"\",'TA Indicator Bank'!AQ183)","v":1},{"$f":"IF(ISBLANK('TA Indicator Bank'!AR183),\"\",'TA Indicator Bank'!AR183)","v":0},{"$f":"IF(ISBLANK('TA Indicator Bank'!AS183),\"\",'TA Indicator Bank'!AS183)","v":0},{"$f":"IF(ISBLANK('TA Indicator Bank'!AT183),\"\",'TA Indicator Bank'!AT183)","v":0},{"$f":"IF(AND(J187=1,J$410=1),1,0)","v":0},{"$f":"IF(AND(K187=1,K$410=1),1,0)","v":0},{"$f":"IF(AND(L187=1,L$410=1),1,0)","v":0},{"$f":"IF(AND(M187=1,M$410=1),1,0)","v":0},{"$f":"IF(AND(N187=1,N$410=1),1,0)","v":0},{"$f":"IF(AND(O187=1,O$410=1),1,0)","v":1},{"$f":"IF(AND(P187=1,P$410=1),1,0)","v":0},{"$f":"IF(AND(Q187=1,Q$410=1),1,0)","v":0},{"$f":"IF(AND(R187=1,R$410=1),1,0)","v":0},{"$f":"IF(AND(S187=1,S$410=1),1,0)","v":0},{"$f":"IF(AND(T187=1,T$410=1),1,0)","v":0},{"$f":"IF(AND(U187=1,U$410=1),1,0)","v":0},{"$f":"IF(AND(V187=1,V$410=1),1,0)","v":0},{"$f":"IF(AND(W187=1,W$410=1),1,0)","v":0},1,{"$f":"IF(AND(X187=1,X$410=1),1,0)","v":0},{"$f":"IF(AND(Y187=1,Y$410=1),1,0)","v":0},{"$f":"IF(AND(Z187=1,Z$410=1),1,0)","v":0},{"$f":"IF(AND(AA187=1,AA$410=1),1,0)","v":0},{"$f":"IF(AND(AB187=1,AB$410=1),1,0)","v":0},{"$f":"IF(AND(AC187=1,AC$410=1),1,0)","v":0},{"$f":"IF(AND(AD187=1,AD$410=1),1,0)","v":0},{"$f":"IF(AND(AE187=1,AE$410=1),1,0)","v":0},{"$f":"IF(AND(AF187=1,AF$410=1),1,0)","v":0},1,{"$f":"IF(AND(AG187=1,AG$410=1),1,0)","v":0},{"$f":"IF(AND(AH187=1,AH$410=1),1,0)","v":0},{"$f":"IF(AND(AI187=1,AI$410=1),1,0)","v":0},{"$f":"IF(AND(AJ187=1,AJ$410=1),1,0)","v":0},{"$f":"IF(AND(AK187=1,AK$410=1),1,0)","v":0},{"$f":"IF(AND(AL187=1,AL$410=1),1,0)","v":0},{"$f":"IF(AND(AM187=1,AM$410=1),1,0)","v":0},{"$f":"IF(AND(AN187=1,AN$410=1),1,0)","v":0},{"$f":"IF(AND(AO187=1,AO$410=1),1,0)","v":0},1,{"$f":"IF(AND(AP187=1,AP$410=1),1,0)","v":0},{"$f":"IF(AND(AQ187=1,AQ$410=1),1,0)","v":1},{"$f":"IF(AND(AR187=1,AR$410=1),1,0)","v":0},{"$f":"IF(AND(AS187=1,AS$410=1),1,0)","v":0},{"$f":"IF(AND(AT187=1,AT$410=1),1,0)","v":0},1,1,179,179,{"$f":"IFERROR(SMALL($CL$9:$CL$408,CK187),\"\")","v":179},{"$f":"IFERROR(INDEX($B$9:$I$408,$CM187,COLUMNS($CN$9:CN187)),\"\")","v":"TA179"},{"$f":"IFERROR(INDEX($B$9:$I$408,$CM187,COLUMNS($CN$9:CO187)),\"\")","v":"Number of market participants that received support"},{"$f":"IFERROR(INDEX($B$9:$I$408,$CM187,COLUMNS($CN$9:CP187)),\"\")","v":"-"},{"$f":"IFERROR(INDEX($B$9:$I$408,$CM187,COLUMNS($CN$9:CQ187)),\"\")","v":"Uptake"},{"$f":"IFERROR(INDEX($B$9:$I$408,$CM187,COLUMNS($CN$9:CR187)),\"\")","v":"Strategic organisational guidance"},{"$f":"IFERROR(INDEX($B$9:$I$408,$CM187,COLUMNS($CN$9:CS187)),\"\")","v":"-"},{"$f":"IFERROR(INDEX($B$9:$I$408,$CM187,COLUMNS($CN$9:CT187)),\"\")","v":"-"},{"$f":"IFERROR(INDEX($B$9:$I$408,$CM187,COLUMNS($CN$9:CU187)),\"\")","v":"Number"}]
[null,{"$f":"IF(ISBLANK('TA Indicator Bank'!B184),\"\",'TA Indicator Bank'!B184)","v":"TA180"},{"$f":"IF(ISBLANK('TA Indicator Bank'!C184),\"\",'TA Indicator Bank'!C184)","v":"Number of co-production processes supported"},{"$f":"IF(ISBLANK('TA Indicator Bank'!D184),\"\",'TA Indicator Bank'!D184)","v":"-"},{"$f":"IF(ISBLANK('TA Indicator Bank'!E184),\"\",'TA Indicator Bank'!E184)","v":"Output"},{"$f":"IF(ISBLANK('TA Indicator Bank'!F184),\"\",'TA Indicator Bank'!F184)","v":"-"},{"$f":"IF(ISBLANK('TA Indicator Bank'!G184),\"\",'TA Indicator Bank'!G184)","v":"Public-private co-ordination support"},{"$f":"IF(ISBLANK('TA Indicator Bank'!H184),\"\",'TA Indicator Bank'!H184)","v":"-"},{"$f":"IF(ISBLANK('TA Indicator Bank'!I184),\"\",'TA Indicator Bank'!I184)","v":"Number"},{"$f":"IF(ISBLANK('TA Indicator Bank'!J184),\"\",'TA Indicator Bank'!J184)","v":0},{"$f":"IF(ISBLANK('TA Indicator Bank'!K184),\"\",'TA Indicator Bank'!K184)","v":0},{"$f":"IF(ISBLANK('TA Indicator Bank'!L184),\"\",'TA Indicator Bank'!L184)","v":0},{"$f":"IF(ISBLANK('TA Indicator Bank'!M184),\"\",'TA Indicator Bank'!M184)","v":0},{"$f":"IF(ISBLANK('TA Indicator Bank'!N184),\"\",'TA Indicator Bank'!N184)","v":0},{"$f":"IF(ISBLANK('TA Indicator Bank'!O184),\"\",'TA Indicator Bank'!O184)","v":0},{"$f":"IF(ISBLANK('TA Indicator Bank'!P184),\"\",'TA Indicator Bank'!P184)","v":0},{"$f":"IF(ISBLANK('TA Indicator Bank'!Q184),\"\",'TA Indicator Bank'!Q184)","v":0},{"$f":"IF(ISBLANK('TA Indicator Bank'!R184),\"\",'TA Indicator Bank'!R184)","v":0},{"$f":"IF(ISBLANK('TA Indicator Bank'!S184),\"\",'TA Indicator Bank'!S184)","v":0},{"$f":"IF(ISBLANK('TA Indicator Bank'!T184),\"\",'TA Indicator Bank'!T184)","v":0},{"$f":"IF(ISBLANK('TA Indicator Bank'!U184),\"\",'TA Indicator Bank'!U184)","v":0},{"$f":"IF(ISBLANK('TA Indicator Bank'!V184),\"\",'TA Indicator Bank'!V184)","v":0},{"$f":"IF(ISBLANK('TA Indicator Bank'!W184),\"\",'TA Indicator Bank'!W184)","v":0},{"$f":"IF(ISBLANK('TA Indicator Bank'!X184),\"\",'TA Indicator Bank'!X184)","v":0},{"$f":"IF(ISBLANK('TA Indicator Bank'!Y184),\"\",'TA Indicator Bank'!Y184)","v":0},{"$f":"IF(ISBLANK('TA Indicator Bank'!Z184),\"\",'TA Indicator Bank'!Z184)","v":0},{"$f":"IF(ISBLANK('TA Indicator Bank'!AA184),\"\",'TA Indicator Bank'!AA184)","v":0},{"$f":"IF(ISBLANK('TA Indicator Bank'!AB184),\"\",'TA Indicator Bank'!AB184)","v":0},{"$f":"IF(ISBLANK('TA Indicator Bank'!AC184),\"\",'TA Indicator Bank'!AC184)","v":0},{"$f":"IF(ISBLANK('TA Indicator Bank'!AD184),\"\",'TA Indicator Bank'!AD184)","v":0},{"$f":"IF(ISBLANK('TA Indicator Bank'!AE184),\"\",'TA Indicator Bank'!AE184)","v":0},{"$f":"IF(ISBLANK('TA Indicator Bank'!AF184),\"\",'TA Indicator Bank'!AF184)","v":1},{"$f":"IF(ISBLANK('TA Indicator Bank'!AG184),\"\",'TA Indicator Bank'!AG184)","v":0},{"$f":"IF(ISBLANK('TA Indicator Bank'!AH184),\"\",'TA Indicator Bank'!AH184)","v":0},{"$f":"IF(ISBLANK('TA Indicator Bank'!AI184),\"\",'TA Indicator Bank'!AI184)","v":0},{"$f":"IF(ISBLANK('TA Indicator Bank'!AJ184),\"\",'TA Indicator Bank'!AJ184)","v":0},{"$f":"IF(ISBLANK('TA Indicator Bank'!AK184),\"\",'TA Indicator Bank'!AK184)","v":0},{"$f":"IF(ISBLANK('TA Indicator Bank'!AL184),\"\",'TA Indicator Bank'!AL184)","v":0},{"$f":"IF(ISBLANK('TA Indicator Bank'!AM184),\"\",'TA Indicator Bank'!AM184)","v":0},{"$f":"IF(ISBLANK('TA Indicator Bank'!AN184),\"\",'TA Indicator Bank'!AN184)","v":0},{"$f":"IF(ISBLANK('TA Indicator Bank'!AO184),\"\",'TA Indicator Bank'!AO184)","v":0},{"$f":"IF(ISBLANK('TA Indicator Bank'!AP184),\"\",'TA Indicator Bank'!AP184)","v":0},{"$f":"IF(ISBLANK('TA Indicator Bank'!AQ184),\"\",'TA Indicator Bank'!AQ184)","v":0},{"$f":"IF(ISBLANK('TA Indicator Bank'!AR184),\"\",'TA Indicator Bank'!AR184)","v":1},{"$f":"IF(ISBLANK('TA Indicator Bank'!AS184),\"\",'TA Indicator Bank'!AS184)","v":0},{"$f":"IF(ISBLANK('TA Indicator Bank'!AT184),\"\",'TA Indicator Bank'!AT184)","v":0},{"$f":"IF(AND(J188=1,J$410=1),1,0)","v":0},{"$f":"IF(AND(K188=1,K$410=1),1,0)","v":0},{"$f":"IF(AND(L188=1,L$410=1),1,0)","v":0},{"$f":"IF(AND(M188=1,M$410=1),1,0)","v":0},{"$f":"IF(AND(N188=1,N$410=1),1,0)","v":0},{"$f":"IF(AND(O188=1,O$410=1),1,0)","v":0},{"$f":"IF(AND(P188=1,P$410=1),1,0)","v":0},{"$f":"IF(AND(Q188=1,Q$410=1),1,0)","v":0},{"$f":"IF(AND(R188=1,R$410=1),1,0)","v":0},{"$f":"IF(AND(S188=1,S$410=1),1,0)","v":0},{"$f":"IF(AND(T188=1,T$410=1),1,0)","v":0},{"$f":"IF(AND(U188=1,U$410=1),1,0)","v":0},{"$f":"IF(AND(V188=1,V$410=1),1,0)","v":0},{"$f":"IF(AND(W188=1,W$410=1),1,0)","v":0},1,{"$f":"IF(AND(X188=1,X$410=1),1,0)","v":0},{"$f":"IF(AND(Y188=1,Y$410=1),1,0)","v":0},{"$f":"IF(AND(Z188=1,Z$410=1),1,0)","v":0},{"$f":"IF(AND(AA188=1,AA$410=1),1,0)","v":0},{"$f":"IF(AND(AB188=1,AB$410=1),1,0)","v":0},{"$f":"IF(AND(AC188=1,AC$410=1),1,0)","v":0},{"$f":"IF(AND(AD188=1,AD$410=1),1,0)","v":0},{"$f":"IF(AND(AE188=1,AE$410=1),1,0)","v":0},{"$f":"IF(AND(AF188=1,AF$410=1),1,0)","v":1},1,{"$f":"IF(AND(AG188=1,AG$410=1),1,0)","v":0},{"$f":"IF(AND(AH188=1,AH$410=1),1,0)","v":0},{"$f":"IF(AND(AI188=1,AI$410=1),1,0)","v":0},{"$f":"IF(AND(AJ188=1,AJ$410=1),1,0)","v":0},{"$f":"IF(AND(AK188=1,AK$410=1),1,0)","v":0},{"$f":"IF(AND(AL188=1,AL$410=1),1,0)","v":0},{"$f":"IF(AND(AM188=1,AM$410=1),1,0)","v":0},{"$f":"IF(AND(AN188=1,AN$410=1),1,0)","v":0},{"$f":"IF(AND(AO188=1,AO$410=1),1,0)","v":0},1,{"$f":"IF(AND(AP188=1,AP$410=1),1,0)","v":0},{"$f":"IF(AND(AQ188=1,AQ$410=1),1,0)","v":0},{"$f":"IF(AND(AR188=1,AR$410=1),1,0)","v":1},{"$f":"IF(AND(AS188=1,AS$410=1),1,0)","v":0},{"$f":"IF(AND(AT188=1,AT$410=1),1,0)","v":0},1,1,180,180,{"$f":"IFERROR(SMALL($CL$9:$CL$408,CK188),\"\")","v":180},{"$f":"IFERROR(INDEX($B$9:$I$408,$CM188,COLUMNS($CN$9:CN188)),\"\")","v":"TA180"},{"$f":"IFERROR(INDEX($B$9:$I$408,$CM188,COLUMNS($CN$9:CO188)),\"\")","v":"Number of co-production processes supported"},{"$f":"IFERROR(INDEX($B$9:$I$408,$CM188,COLUMNS($CN$9:CP188)),\"\")","v":"-"},{"$f":"IFERROR(INDEX($B$9:$I$408,$CM188,COLUMNS($CN$9:CQ188)),\"\")","v":"Output"},{"$f":"IFERROR(INDEX($B$9:$I$408,$CM188,COLUMNS($CN$9:CR188)),\"\")","v":"-"},{"$f":"IFERROR(INDEX($B$9:$I$408,$CM188,COLUMNS($CN$9:CS188)),\"\")","v":"Public-private co-ordination support"},{"$f":"IFERROR(INDEX($B$9:$I$408,$CM188,COLUMNS($CN$9:CT188)),\"\")","v":"-"},{"$f":"IFERROR(INDEX($B$9:$I$408,$CM188,COLUMNS($CN$9:CU188)),\"\")","v":"Number"}]
[null,{"$f":"IF(ISBLANK('TA Indicator Bank'!B185),\"\",'TA Indicator Bank'!B185)","v":"TA181"},{"$f":"IF(ISBLANK('TA Indicator Bank'!C185),\"\",'TA Indicator Bank'!C185)","v":"Level of integration of climate change in policymaking as result of programme"},{"$f":"IF(ISBLANK('TA Indicator Bank'!D185),\"\",'TA Indicator Bank'!D185)","v":"-"},{"$f":"IF(ISBLANK('TA Indicator Bank'!E185),\"\",'TA Indicator Bank'!E185)","v":"Outcome"},{"$f":"IF(ISBLANK('TA Indicator Bank'!F185),\"\",'TA Indicator Bank'!F185)","v":"-"},{"$f":"IF(ISBLANK('TA Indicator Bank'!G185),\"\",'TA Indicator Bank'!G185)","v":"-"},{"$f":"IF(ISBLANK('TA Indicator Bank'!H185),\"\",'TA Indicator Bank'!H185)","v":"Increased or improved policy development or execution; Improved domestic co-ordination"},{"$f":"IF(ISBLANK('TA Indicator Bank'!I185),\"\",'TA Indicator Bank'!I185)","v":"Narrative"},{"$f":"IF(ISBLANK('TA Indicator Bank'!J185),\"\",'TA Indicator Bank'!J185)","v":0},{"$f":"IF(ISBLANK('TA Indicator Bank'!K185),\"\",'TA Indicator Bank'!K185)","v":0},{"$f":"IF(ISBLANK('TA Indicator Bank'!L185),\"\",'TA Indicator Bank'!L185)","v":0},{"$f":"IF(ISBLANK('TA Indicator Bank'!M185),\"\",'TA Indicator Bank'!M185)","v":0},{"$f":"IF(ISBLANK('TA Indicator Bank'!N185),\"\",'TA Indicator Bank'!N185)","v":0},{"$f":"IF(ISBLANK('TA Indicator Bank'!O185),\"\",'TA Indicator Bank'!O185)","v":0},{"$f":"IF(ISBLANK('TA Indicator Bank'!P185),\"\",'TA Indicator Bank'!P185)","v":0},{"$f":"IF(ISBLANK('TA Indicator Bank'!Q185),\"\",'TA Indicator Bank'!Q185)","v":0},{"$f":"IF(ISBLANK('TA Indicator Bank'!R185),\"\",'TA Indicator Bank'!R185)","v":0},{"$f":"IF(ISBLANK('TA Indicator Bank'!S185),\"\",'TA Indicator Bank'!S185)","v":0},{"$f":"IF(ISBLANK('TA Indicator Bank'!T185),\"\",'TA Indicator Bank'!T185)","v":0},{"$f":"IF(ISBLANK('TA Indicator Bank'!U185),\"\",'TA Indicator Bank'!U185)","v":0},{"$f":"IF(ISBLANK('TA Indicator Bank'!V185),\"\",'TA Indicator Bank'!V185)","v":0},{"$f":"IF(ISBLANK('TA Indicator Bank'!W185),\"\",'TA Indicator Bank'!W185)","v":0},{"$f":"IF(ISBLANK('TA Indicator Bank'!X185),\"\",'TA Indicator Bank'!X185)","v":0},{"$f":"IF(ISBLANK('TA Indicator Bank'!Y185),\"\",'TA Indicator Bank'!Y185)","v":0},{"$f":"IF(ISBLANK('TA Indicator Bank'!Z185),\"\",'TA Indicator Bank'!Z185)","v":0},{"$f":"IF(ISBLANK('TA Indicator Bank'!AA185),\"\",'TA Indicator Bank'!AA185)","v":0},{"$f":"IF(ISBLANK('TA Indicator Bank'!AB185),\"\",'TA Indicator Bank'!AB185)","v":0},{"$f":"IF(ISBLANK('TA Indicator Bank'!AC185),\"\",'TA Indicator Bank'!AC185)","v":0},{"$f":"IF(ISBLANK('TA Indicator Bank'!AD185),\"\",'TA Indicator Bank'!AD185)","v":0},{"$f":"IF(ISBLANK('TA Indicator Bank'!AE185),\"\",'TA Indicator Bank'!AE185)","v":0},{"$f":"IF(ISBLANK('TA Indicator Bank'!AF185),\"\",'TA Indicator Bank'!AF185)","v":0},{"$f":"IF(ISBLANK('TA Indicator Bank'!AG185),\"\",'TA Indicator Bank'!AG185)","v":1},{"$f":"IF(ISBLANK('TA Indicator Bank'!AH185),\"\",'TA Indicator Bank'!AH185)","v":0},{"$f":"IF(ISBLANK('TA Indicator Bank'!AI185),\"\",'TA Indicator Bank'!AI185)","v":1},{"$f":"IF(ISBLANK('TA Indicator Bank'!AJ185),\"\",'TA Indicator Bank'!AJ185)","v":0},{"$f":"IF(ISBLANK('TA Indicator Bank'!AK185),\"\",'TA Indicator Bank'!AK185)","v":0},{"$f":"IF(ISBLANK('TA Indicator Bank'!AL185),\"\",'TA Indicator Bank'!AL185)","v":0},{"$f":"IF(ISBLANK('TA Indicator Bank'!AM185),\"\",'TA Indicator Bank'!AM185)","v":0},{"$f":"IF(ISBLANK('TA Indicator Bank'!AN185),\"\",'TA Indicator Bank'!AN185)","v":0},{"$f":"IF(ISBLANK('TA Indicator Bank'!AO185),\"\",'TA Indicator Bank'!AO185)","v":0},{"$f":"IF(ISBLANK('TA Indicator Bank'!AP185),\"\",'TA Indicator Bank'!AP185)","v":0},{"$f":"IF(ISBLANK('TA Indicator Bank'!AQ185),\"\",'TA Indicator Bank'!AQ185)","v":0},{"$f":"IF(ISBLANK('TA Indicator Bank'!AR185),\"\",'TA Indicator Bank'!AR185)","v":0},{"$f":"IF(ISBLANK('TA Indicator Bank'!AS185),\"\",'TA Indicator Bank'!AS185)","v":1},{"$f":"IF(ISBLANK('TA Indicator Bank'!AT185),\"\",'TA Indicator Bank'!AT185)","v":0},{"$f":"IF(AND(J189=1,J$410=1),1,0)","v":0},{"$f":"IF(AND(K189=1,K$410=1),1,0)","v":0},{"$f":"IF(AND(L189=1,L$410=1),1,0)","v":0},{"$f":"IF(AND(M189=1,M$410=1),1,0)","v":0},{"$f":"IF(AND(N189=1,N$410=1),1,0)","v":0},{"$f":"IF(AND(O189=1,O$410=1),1,0)","v":0},{"$f":"IF(AND(P189=1,P$410=1),1,0)","v":0},{"$f":"IF(AND(Q189=1,Q$410=1),1,0)","v":0},{"$f":"IF(AND(R189=1,R$410=1),1,0)","v":0},{"$f":"IF(AND(S189=1,S$410=1),1,0)","v":0},{"$f":"IF(AND(T189=1,T$410=1),1,0)","v":0},{"$f":"IF(AND(U189=1,U$410=1),1,0)","v":0},{"$f":"IF(AND(V189=1,V$410=1),1,0)","v":0},{"$f":"IF(AND(W189=1,W$410=1),1,0)","v":0},1,{"$f":"IF(AND(X189=1,X$410=1),1,0)","v":0},{"$f":"IF(AND(Y189=1,Y$410=1),1,0)","v":0},{"$f":"IF(AND(Z189=1,Z$410=1),1,0)","v":0},{"$f":"IF(AND(AA189=1,AA$410=1),1,0)","v":0},{"$f":"IF(AND(AB189=1,AB$410=1),1,0)","v":0},{"$f":"IF(AND(AC189=1,AC$410=1),1,0)","v":0},{"$f":"IF(AND(AD189=1,AD$410=1),1,0)","v":0},{"$f":"IF(AND(AE189=1,AE$410=1),1,0)","v":0},{"$f":"IF(AND(AF189=1,AF$410=1),1,0)","v":0},1,{"$f":"IF(AND(AG189=1,AG$410=1),1,0)","v":1},{"$f":"IF(AND(AH189=1,AH$410=1),1,0)","v":0},{"$f":"IF(AND(AI189=1,AI$410=1),1,0)","v":1},{"$f":"IF(AND(AJ189=1,AJ$410=1),1,0)","v":0},{"$f":"IF(AND(AK189=1,AK$410=1),1,0)","v":0},{"$f":"IF(AND(AL189=1,AL$410=1),1,0)","v":0},{"$f":"IF(AND(AM189=1,AM$410=1),1,0)","v":0},{"$f":"IF(AND(AN189=1,AN$410=1),1,0)","v":0},{"$f":"IF(AND(AO189=1,AO$410=1),1,0)","v":0},1,{"$f":"IF(AND(AP189=1,AP$410=1),1,0)","v":0},{"$f":"IF(AND(AQ189=1,AQ$410=1),1,0)","v":0},{"$f":"IF(AND(AR189=1,AR$410=1),1,0)","v":0},{"$f":"IF(AND(AS189=1,AS$410=1),1,0)","v":1},{"$f":"IF(AND(AT189=1,AT$410=1),1,0)","v":0},1,1,181,181,{"$f":"IFERROR(SMALL($CL$9:$CL$408,CK189),\"\")","v":181},{"$f":"IFERROR(INDEX($B$9:$I$408,$CM189,COLUMNS($CN$9:CN189)),\"\")","v":"TA181"},{"$f":"IFERROR(INDEX($B$9:$I$408,$CM189,COLUMNS($CN$9:CO189)),\"\")","v":"Level of integration of climate change in policymaking as result of programme"},{"$f":"IFERROR(INDEX($B$9:$I$408,$CM189,COLUMNS($CN$9:CP189)),\"\")","v":"-"},{"$f":"IFERROR(INDEX($B$9:$I$408,$CM189,COLUMNS($CN$9:CQ189)),\"\")","v":"Outcome"},{"$f":"IFERROR(INDEX($B$9:$I$408,$CM189,COLUMNS($CN$9:CR189)),\"\")","v":"-"},{"$f":"IFERROR(INDEX($B$9:$I$408,$CM189,COLUMNS($CN$9:CS189)),\"\")","v":"-"},{"$f":"IFERROR(INDEX($B$9:$I$408,$CM189,COLUMNS($CN$9:CT189)),\"\")","v":"Increased or improved policy development or execution; Improved domestic co-ordination"},{"$f":"IFERROR(INDEX($B$9:$I$408,$CM189,COLUMNS($CN$9:CU189)),\"\")","v":"Narrative"}]
[null,{"$f":"IF(ISBLANK('TA Indicator Bank'!B186),\"\",'TA Indicator Bank'!B186)","v":"TA182"},{"$f":"IF(ISBLANK('TA Indicator Bank'!C186),\"\",'TA Indicator Bank'!C186)","v":"Percentage/number of countries where programme has encouraged movement or policies towards end goal"},{"$f":"IF(ISBLANK('TA Indicator Bank'!D186),\"\",'TA Indicator Bank'!D186)","v":"-"},{"$f":"IF(ISBLANK('TA Indicator Bank'!E186),\"\",'TA Indicator Bank'!E186)","v":"Outcome"},{"$f":"IF(ISBLANK('TA Indicator Bank'!F186),\"\",'TA Indicator Bank'!F186)","v":"-"},{"$f":"IF(ISBLANK('TA Indicator Bank'!G186),\"\",'TA Indicator Bank'!G186)","v":"-"},{"$f":"IF(ISBLANK('TA Indicator Bank'!H186),\"\",'TA Indicator Bank'!H186)","v":"Increased or improved policy development or execution"},{"$f":"IF(ISBLANK('TA Indicator Bank'!I186),\"\",'TA Indicator Bank'!I186)","v":"Number, Percentage"},{"$f":"IF(ISBLANK('TA Indicator Bank'!J186),\"\",'TA Indicator Bank'!J186)","v":0},{"$f":"IF(ISBLANK('TA Indicator Bank'!K186),\"\",'TA Indicator Bank'!K186)","v":0},{"$f":"IF(ISBLANK('TA Indicator Bank'!L186),\"\",'TA Indicator Bank'!L186)","v":0},{"$f":"IF(ISBLANK('TA Indicator Bank'!M186),\"\",'TA Indicator Bank'!M186)","v":0},{"$f":"IF(ISBLANK('TA Indicator Bank'!N186),\"\",'TA Indicator Bank'!N186)","v":0},{"$f":"IF(ISBLANK('TA Indicator Bank'!O186),\"\",'TA Indicator Bank'!O186)","v":0},{"$f":"IF(ISBLANK('TA Indicator Bank'!P186),\"\",'TA Indicator Bank'!P186)","v":0},{"$f":"IF(ISBLANK('TA Indicator Bank'!Q186),\"\",'TA Indicator Bank'!Q186)","v":0},{"$f":"IF(ISBLANK('TA Indicator Bank'!R186),\"\",'TA Indicator Bank'!R186)","v":0},{"$f":"IF(ISBLANK('TA Indicator Bank'!S186),\"\",'TA Indicator Bank'!S186)","v":0},{"$f":"IF(ISBLANK('TA Indicator Bank'!T186),\"\",'TA Indicator Bank'!T186)","v":0},{"$f":"IF(ISBLANK('TA Indicator Bank'!U186),\"\",'TA Indicator Bank'!U186)","v":0},{"$f":"IF(ISBLANK('TA Indicator Bank'!V186),\"\",'TA Indicator Bank'!V186)","v":0},{"$f":"IF(ISBLANK('TA Indicator Bank'!W186),\"\",'TA Indicator Bank'!W186)","v":0},{"$f":"IF(ISBLANK('TA Indicator Bank'!X186),\"\",'TA Indicator Bank'!X186)","v":0},{"$f":"IF(ISBLANK('TA Indicator Bank'!Y186),\"\",'TA Indicator Bank'!Y186)","v":0},{"$f":"IF(ISBLANK('TA Indicator Bank'!Z186),\"\",'TA Indicator Bank'!Z186)","v":0},{"$f":"IF(ISBLANK('TA Indicator Bank'!AA186),\"\",'TA Indicator Bank'!AA186)","v":0},{"$f":"IF(ISBLANK('TA Indicator Bank'!AB186),\"\",'TA Indicator Bank'!AB186)","v":0},{"$f":"IF(ISBLANK('TA Indicator Bank'!AC186),\"\",'TA Indicator Bank'!AC186)","v":0},{"$f":"IF(ISBLANK('TA Indicator Bank'!AD186),\"\",'TA Indicator Bank'!AD186)","v":0},{"$f":"IF(ISBLANK('TA Indicator Bank'!AE186),\"\",'TA Indicator Bank'!AE186)","v":0},{"$f":"IF(ISBLANK('TA Indicator Bank'!AF186),\"\",'TA Indicator Bank'!AF186)","v":0},{"$f":"IF(ISBLANK('TA Indicator Bank'!AG186),\"\",'TA Indicator Bank'!AG186)","v":1},{"$f":"IF(ISBLANK('TA Indicator Bank'!AH186),\"\",'TA Indicator Bank'!AH186)","v":0},{"$f":"IF(ISBLANK('TA Indicator Bank'!AI186),\"\",'TA Indicator Bank'!AI186)","v":0},{"$f":"IF(ISBLANK('TA Indicator Bank'!AJ186),\"\",'TA Indicator Bank'!AJ186)","v":0},{"$f":"IF(ISBLANK('TA Indicator Bank'!AK186),\"\",'TA Indicator Bank'!AK186)","v":0},{"$f":"IF(ISBLANK('TA Indicator Bank'!AL186),\"\",'TA Indicator Bank'!AL186)","v":0},{"$f":"IF(ISBLANK('TA Indicator Bank'!AM186),\"\",'TA Indicator Bank'!AM186)","v":0},{"$f":"IF(ISBLANK('TA Indicator Bank'!AN186),\"\",'TA Indicator Bank'!AN186)","v":0},{"$f":"IF(ISBLANK('TA Indicator Bank'!AO186),\"\",'TA Indicator Bank'!AO186)","v":0},{"$f":"IF(ISBLANK('TA Indicator Bank'!AP186),\"\",'TA Indicator Bank'!AP186)","v":0},{"$f":"IF(ISBLANK('TA Indicator Bank'!AQ186),\"\",'TA Indicator Bank'!AQ186)","v":0},{"$f":"IF(ISBLANK('TA Indicator Bank'!AR186),\"\",'TA Indicator Bank'!AR186)","v":0},{"$f":"IF(ISBLANK('TA Indicator Bank'!AS186),\"\",'TA Indicator Bank'!AS186)","v":1},{"$f":"IF(ISBLANK('TA Indicator Bank'!AT186),\"\",'TA Indicator Bank'!AT186)","v":0},{"$f":"IF(AND(J190=1,J$410=1),1,0)","v":0},{"$f":"IF(AND(K190=1,K$410=1),1,0)","v":0},{"$f":"IF(AND(L190=1,L$410=1),1,0)","v":0},{"$f":"IF(AND(M190=1,M$410=1),1,0)","v":0},{"$f":"IF(AND(N190=1,N$410=1),1,0)","v":0},{"$f":"IF(AND(O190=1,O$410=1),1,0)","v":0},{"$f":"IF(AND(P190=1,P$410=1),1,0)","v":0},{"$f":"IF(AND(Q190=1,Q$410=1),1,0)","v":0},{"$f":"IF(AND(R190=1,R$410=1),1,0)","v":0},{"$f":"IF(AND(S190=1,S$410=1),1,0)","v":0},{"$f":"IF(AND(T190=1,T$410=1),1,0)","v":0},{"$f":"IF(AND(U190=1,U$410=1),1,0)","v":0},{"$f":"IF(AND(V190=1,V$410=1),1,0)","v":0},{"$f":"IF(AND(W190=1,W$410=1),1,0)","v":0},1,{"$f":"IF(AND(X190=1,X$410=1),1,0)","v":0},{"$f":"IF(AND(Y190=1,Y$410=1),1,0)","v":0},{"$f":"IF(AND(Z190=1,Z$410=1),1,0)","v":0},{"$f":"IF(AND(AA190=1,AA$410=1),1,0)","v":0},{"$f":"IF(AND(AB190=1,AB$410=1),1,0)","v":0},{"$f":"IF(AND(AC190=1,AC$410=1),1,0)","v":0},{"$f":"IF(AND(AD190=1,AD$410=1),1,0)","v":0},{"$f":"IF(AND(AE190=1,AE$410=1),1,0)","v":0},{"$f":"IF(AND(AF190=1,AF$410=1),1,0)","v":0},1,{"$f":"IF(AND(AG190=1,AG$410=1),1,0)","v":1},{"$f":"IF(AND(AH190=1,AH$410=1),1,0)","v":0},{"$f":"IF(AND(AI190=1,AI$410=1),1,0)","v":0},{"$f":"IF(AND(AJ190=1,AJ$410=1),1,0)","v":0},{"$f":"IF(AND(AK190=1,AK$410=1),1,0)","v":0},{"$f":"IF(AND(AL190=1,AL$410=1),1,0)","v":0},{"$f":"IF(AND(AM190=1,AM$410=1),1,0)","v":0},{"$f":"IF(AND(AN190=1,AN$410=1),1,0)","v":0},{"$f":"IF(AND(AO190=1,AO$410=1),1,0)","v":0},1,{"$f":"IF(AND(AP190=1,AP$410=1),1,0)","v":0},{"$f":"IF(AND(AQ190=1,AQ$410=1),1,0)","v":0},{"$f":"IF(AND(AR190=1,AR$410=1),1,0)","v":0},{"$f":"IF(AND(AS190=1,AS$410=1),1,0)","v":1},{"$f":"IF(AND(AT190=1,AT$410=1),1,0)","v":0},1,1,182,182,{"$f":"IFERROR(SMALL($CL$9:$CL$408,CK190),\"\")","v":182},{"$f":"IFERROR(INDEX($B$9:$I$408,$CM190,COLUMNS($CN$9:CN190)),\"\")","v":"TA182"},{"$f":"IFERROR(INDEX($B$9:$I$408,$CM190,COLUMNS($CN$9:CO190)),\"\")","v":"Percentage/number of countries where programme has encouraged movement or policies towards end goal"},{"$f":"IFERROR(INDEX($B$9:$I$408,$CM190,COLUMNS($CN$9:CP190)),\"\")","v":"-"},{"$f":"IFERROR(INDEX($B$9:$I$408,$CM190,COLUMNS($CN$9:CQ190)),\"\")","v":"Outcome"},{"$f":"IFERROR(INDEX($B$9:$I$408,$CM190,COLUMNS($CN$9:CR190)),\"\")","v":"-"},{"$f":"IFERROR(INDEX($B$9:$I$408,$CM190,COLUMNS($CN$9:CS190)),\"\")","v":"-"},{"$f":"IFERROR(INDEX($B$9:$I$408,$CM190,COLUMNS($CN$9:CT190)),\"\")","v":"Increased or improved policy development or execution"},{"$f":"IFERROR(INDEX($B$9:$I$408,$CM190,COLUMNS($CN$9:CU190)),\"\")","v":"Number, Percentage"}]
[null,{"$f":"IF(ISBLANK('TA Indicator Bank'!B187),\"\",'TA Indicator Bank'!B187)","v":"TA183"},{"$f":"IF(ISBLANK('TA Indicator Bank'!C187),\"\",'TA Indicator Bank'!C187)","v":"Number of programme countries that raise their ambition partly due to the programme"},{"$f":"IF(ISBLANK('TA Indicator Bank'!D187),\"\",'TA Indicator Bank'!D187)","v":"-"},{"$f":"IF(ISBLANK('TA Indicator Bank'!E187),\"\",'TA Indicator Bank'!E187)","v":"Outcome"},{"$f":"IF(ISBLANK('TA Indicator Bank'!F187),\"\",'TA Indicator Bank'!F187)","v":"-"},{"$f":"IF(ISBLANK('TA Indicator Bank'!G187),\"\",'TA Indicator Bank'!G187)","v":"-"},{"$f":"IF(ISBLANK('TA Indicator Bank'!H187),\"\",'TA Indicator Bank'!H187)","v":"Increased or improved policy development or execution"},{"$f":"IF(ISBLANK('TA Indicator Bank'!I187),\"\",'TA Indicator Bank'!I187)","v":"Number"},{"$f":"IF(ISBLANK('TA Indicator Bank'!J187),\"\",'TA Indicator Bank'!J187)","v":0},{"$f":"IF(ISBLANK('TA Indicator Bank'!K187),\"\",'TA Indicator Bank'!K187)","v":0},{"$f":"IF(ISBLANK('TA Indicator Bank'!L187),\"\",'TA Indicator Bank'!L187)","v":0},{"$f":"IF(ISBLANK('TA Indicator Bank'!M187),\"\",'TA Indicator Bank'!M187)","v":0},{"$f":"IF(ISBLANK('TA Indicator Bank'!N187),\"\",'TA Indicator Bank'!N187)","v":0},{"$f":"IF(ISBLANK('TA Indicator Bank'!O187),\"\",'TA Indicator Bank'!O187)","v":0},{"$f":"IF(ISBLANK('TA Indicator Bank'!P187),\"\",'TA Indicator Bank'!P187)","v":0},{"$f":"IF(ISBLANK('TA Indicator Bank'!Q187),\"\",'TA Indicator Bank'!Q187)","v":0},{"$f":"IF(ISBLANK('TA Indicator Bank'!R187),\"\",'TA Indicator Bank'!R187)","v":0},{"$f":"IF(ISBLANK('TA Indicator Bank'!S187),\"\",'TA Indicator Bank'!S187)","v":0},{"$f":"IF(ISBLANK('TA Indicator Bank'!T187),\"\",'TA Indicator Bank'!T187)","v":0},{"$f":"IF(ISBLANK('TA Indicator Bank'!U187),\"\",'TA Indicator Bank'!U187)","v":0},{"$f":"IF(ISBLANK('TA Indicator Bank'!V187),\"\",'TA Indicator Bank'!V187)","v":0},{"$f":"IF(ISBLANK('TA Indicator Bank'!W187),\"\",'TA Indicator Bank'!W187)","v":0},{"$f":"IF(ISBLANK('TA Indicator Bank'!X187),\"\",'TA Indicator Bank'!X187)","v":0},{"$f":"IF(ISBLANK('TA Indicator Bank'!Y187),\"\",'TA Indicator Bank'!Y187)","v":0},{"$f":"IF(ISBLANK('TA Indicator Bank'!Z187),\"\",'TA Indicator Bank'!Z187)","v":0},{"$f":"IF(ISBLANK('TA Indicator Bank'!AA187),\"\",'TA Indicator Bank'!AA187)","v":0},{"$f":"IF(ISBLANK('TA Indicator Bank'!AB187),\"\",'TA Indicator Bank'!AB187)","v":0},{"$f":"IF(ISBLANK('TA Indicator Bank'!AC187),\"\",'TA Indicator Bank'!AC187)","v":0},{"$f":"IF(ISBLANK('TA Indicator Bank'!AD187),\"\",'TA Indicator Bank'!AD187)","v":0},{"$f":"IF(ISBLANK('TA Indicator Bank'!AE187),\"\",'TA Indicator Bank'!AE187)","v":0},{"$f":"IF(ISBLANK('TA Indicator Bank'!AF187),\"\",'TA Indicator Bank'!AF187)","v":0},{"$f":"IF(ISBLANK('TA Indicator Bank'!AG187),\"\",'TA Indicator Bank'!AG187)","v":1},{"$f":"IF(ISBLANK('TA Indicator Bank'!AH187),\"\",'TA Indicator Bank'!AH187)","v":0},{"$f":"IF(ISBLANK('TA Indicator Bank'!AI187),\"\",'TA Indicator Bank'!AI187)","v":0},{"$f":"IF(ISBLANK('TA Indicator Bank'!AJ187),\"\",'TA Indicator Bank'!AJ187)","v":0},{"$f":"IF(ISBLANK('TA Indicator Bank'!AK187),\"\",'TA Indicator Bank'!AK187)","v":0},{"$f":"IF(ISBLANK('TA Indicator Bank'!AL187),\"\",'TA Indicator Bank'!AL187)","v":0},{"$f":"IF(ISBLANK('TA Indicator Bank'!AM187),\"\",'TA Indicator Bank'!AM187)","v":0},{"$f":"IF(ISBLANK('TA Indicator Bank'!AN187),\"\",'TA Indicator Bank'!AN187)","v":0},{"$f":"IF(ISBLANK('TA Indicator Bank'!AO187),\"\",'TA Indicator Bank'!AO187)","v":0},{"$f":"IF(ISBLANK('TA Indicator Bank'!AP187),\"\",'TA Indicator Bank'!AP187)","v":0},{"$f":"IF(ISBLANK('TA Indicator Bank'!AQ187),\"\",'TA Indicator Bank'!AQ187)","v":0},{"$f":"IF(ISBLANK('TA Indicator Bank'!AR187),\"\",'TA Indicator Bank'!AR187)","v":0},{"$f":"IF(ISBLANK('TA Indicator Bank'!AS187),\"\",'TA Indicator Bank'!AS187)","v":1},{"$f":"IF(ISBLANK('TA Indicator Bank'!AT187),\"\",'TA Indicator Bank'!AT187)","v":0},{"$f":"IF(AND(J191=1,J$410=1),1,0)","v":0},{"$f":"IF(AND(K191=1,K$410=1),1,0)","v":0},{"$f":"IF(AND(L191=1,L$410=1),1,0)","v":0},{"$f":"IF(AND(M191=1,M$410=1),1,0)","v":0},{"$f":"IF(AND(N191=1,N$410=1),1,0)","v":0},{"$f":"IF(AND(O191=1,O$410=1),1,0)","v":0},{"$f":"IF(AND(P191=1,P$410=1),1,0)","v":0},{"$f":"IF(AND(Q191=1,Q$410=1),1,0)","v":0},{"$f":"IF(AND(R191=1,R$410=1),1,0)","v":0},{"$f":"IF(AND(S191=1,S$410=1),1,0)","v":0},{"$f":"IF(AND(T191=1,T$410=1),1,0)","v":0},{"$f":"IF(AND(U191=1,U$410=1),1,0)","v":0},{"$f":"IF(AND(V191=1,V$410=1),1,0)","v":0},{"$f":"IF(AND(W191=1,W$410=1),1,0)","v":0},1,{"$f":"IF(AND(X191=1,X$410=1),1,0)","v":0},{"$f":"IF(AND(Y191=1,Y$410=1),1,0)","v":0},{"$f":"IF(AND(Z191=1,Z$410=1),1,0)","v":0},{"$f":"IF(AND(AA191=1,AA$410=1),1,0)","v":0},{"$f":"IF(AND(AB191=1,AB$410=1),1,0)","v":0},{"$f":"IF(AND(AC191=1,AC$410=1),1,0)","v":0},{"$f":"IF(AND(AD191=1,AD$410=1),1,0)","v":0},{"$f":"IF(AND(AE191=1,AE$410=1),1,0)","v":0},{"$f":"IF(AND(AF191=1,AF$410=1),1,0)","v":0},1,{"$f":"IF(AND(AG191=1,AG$410=1),1,0)","v":1},{"$f":"IF(AND(AH191=1,AH$410=1),1,0)","v":0},{"$f":"IF(AND(AI191=1,AI$410=1),1,0)","v":0},{"$f":"IF(AND(AJ191=1,AJ$410=1),1,0)","v":0},{"$f":"IF(AND(AK191=1,AK$410=1),1,0)","v":0},{"$f":"IF(AND(AL191=1,AL$410=1),1,0)","v":0},{"$f":"IF(AND(AM191=1,AM$410=1),1,0)","v":0},{"$f":"IF(AND(AN191=1,AN$410=1),1,0)","v":0},{"$f":"IF(AND(AO191=1,AO$410=1),1,0)","v":0},1,{"$f":"IF(AND(AP191=1,AP$410=1),1,0)","v":0},{"$f":"IF(AND(AQ191=1,AQ$410=1),1,0)","v":0},{"$f":"IF(AND(AR191=1,AR$410=1),1,0)","v":0},{"$f":"IF(AND(AS191=1,AS$410=1),1,0)","v":1},{"$f":"IF(AND(AT191=1,AT$410=1),1,0)","v":0},1,1,183,183,{"$f":"IFERROR(SMALL($CL$9:$CL$408,CK191),\"\")","v":183},{"$f":"IFERROR(INDEX($B$9:$I$408,$CM191,COLUMNS($CN$9:CN191)),\"\")","v":"TA183"},{"$f":"IFERROR(INDEX($B$9:$I$408,$CM191,COLUMNS($CN$9:CO191)),\"\")","v":"Number of programme countries that raise their ambition partly due to the programme"},{"$f":"IFERROR(INDEX($B$9:$I$408,$CM191,COLUMNS($CN$9:CP191)),\"\")","v":"-"},{"$f":"IFERROR(INDEX($B$9:$I$408,$CM191,COLUMNS($CN$9:CQ191)),\"\")","v":"Outcome"},{"$f":"IFERROR(INDEX($B$9:$I$408,$CM191,COLUMNS($CN$9:CR191)),\"\")","v":"-"},{"$f":"IFERROR(INDEX($B$9:$I$408,$CM191,COLUMNS($CN$9:CS191)),\"\")","v":"-"},{"$f":"IFERROR(INDEX($B$9:$I$408,$CM191,COLUMNS($CN$9:CT191)),\"\")","v":"Increased or improved policy development or execution"},{"$f":"IFERROR(INDEX($B$9:$I$408,$CM191,COLUMNS($CN$9:CU191)),\"\")","v":"Number"}]
[null,{"$f":"IF(ISBLANK('TA Indicator Bank'!B188),\"\",'TA Indicator Bank'!B188)","v":"TA184"},{"$f":"IF(ISBLANK('TA Indicator Bank'!C188),\"\",'TA Indicator Bank'!C188)","v":"Number of non-programme countries use programme outputs for policy design"},{"$f":"IF(ISBLANK('TA Indicator Bank'!D188),\"\",'TA Indicator Bank'!D188)","v":"-"},{"$f":"IF(ISBLANK('TA Indicator Bank'!E188),\"\",'TA Indicator Bank'!E188)","v":"Uptake"},{"$f":"IF(ISBLANK('TA Indicator Bank'!F188),\"\",'TA Indicator Bank'!F188)","v":"Specialist research, inc. market / policy / legal / regulatory / technology research briefs; Data, software, tools and models"},{"$f":"IF(ISBLANK('TA Indicator Bank'!G188),\"\",'TA Indicator Bank'!G188)","v":"-"},{"$f":"IF(ISBLANK('TA Indicator Bank'!H188),\"\",'TA Indicator Bank'!H188)","v":"-"},{"$f":"IF(ISBLANK('TA Indicator Bank'!I188),\"\",'TA Indicator Bank'!I188)","v":"Number"},{"$f":"IF(ISBLANK('TA Indicator Bank'!J188),\"\",'TA Indicator Bank'!J188)","v":0},{"$f":"IF(ISBLANK('TA Indicator Bank'!K188),\"\",'TA Indicator Bank'!K188)","v":0},{"$f":"IF(ISBLANK('TA Indicator Bank'!L188),\"\",'TA Indicator Bank'!L188)","v":0},{"$f":"IF(ISBLANK('TA Indicator Bank'!M188),\"\",'TA Indicator Bank'!M188)","v":0},{"$f":"IF(ISBLANK('TA Indicator Bank'!N188),\"\",'TA Indicator Bank'!N188)","v":1},{"$f":"IF(ISBLANK('TA Indicator Bank'!O188),\"\",'TA Indicator Bank'!O188)","v":0},{"$f":"IF(ISBLANK('TA Indicator Bank'!P188),\"\",'TA Indicator Bank'!P188)","v":0},{"$f":"IF(ISBLANK('TA Indicator Bank'!Q188),\"\",'TA Indicator Bank'!Q188)","v":0},{"$f":"IF(ISBLANK('TA Indicator Bank'!R188),\"\",'TA Indicator Bank'!R188)","v":0},{"$f":"IF(ISBLANK('TA Indicator Bank'!S188),\"\",'TA Indicator Bank'!S188)","v":0},{"$f":"IF(ISBLANK('TA Indicator Bank'!T188),\"\",'TA Indicator Bank'!T188)","v":0},{"$f":"IF(ISBLANK('TA Indicator Bank'!U188),\"\",'TA Indicator Bank'!U188)","v":0},{"$f":"IF(ISBLANK('TA Indicator Bank'!V188),\"\",'TA Indicator Bank'!V188)","v":1},{"$f":"IF(ISBLANK('TA Indicator Bank'!W188),\"\",'TA Indicator Bank'!W188)","v":0},{"$f":"IF(ISBLANK('TA Indicator Bank'!X188),\"\",'TA Indicator Bank'!X188)","v":0},{"$f":"IF(ISBLANK('TA Indicator Bank'!Y188),\"\",'TA Indicator Bank'!Y188)","v":0},{"$f":"IF(ISBLANK('TA Indicator Bank'!Z188),\"\",'TA Indicator Bank'!Z188)","v":0},{"$f":"IF(ISBLANK('TA Indicator Bank'!AA188),\"\",'TA Indicator Bank'!AA188)","v":0},{"$f":"IF(ISBLANK('TA Indicator Bank'!AB188),\"\",'TA Indicator Bank'!AB188)","v":0},{"$f":"IF(ISBLANK('TA Indicator Bank'!AC188),\"\",'TA Indicator Bank'!AC188)","v":0},{"$f":"IF(ISBLANK('TA Indicator Bank'!AD188),\"\",'TA Indicator Bank'!AD188)","v":0},{"$f":"IF(ISBLANK('TA Indicator Bank'!AE188),\"\",'TA Indicator Bank'!AE188)","v":0},{"$f":"IF(ISBLANK('TA Indicator Bank'!AF188),\"\",'TA Indicator Bank'!AF188)","v":0},{"$f":"IF(ISBLANK('TA Indicator Bank'!AG188),\"\",'TA Indicator Bank'!AG188)","v":0},{"$f":"IF(ISBLANK('TA Indicator Bank'!AH188),\"\",'TA Indicator Bank'!AH188)","v":0},{"$f":"IF(ISBLANK('TA Indicator Bank'!AI188),\"\",'TA Indicator Bank'!AI188)","v":0},{"$f":"IF(ISBLANK('TA Indicator Bank'!AJ188),\"\",'TA Indicator Bank'!AJ188)","v":0},{"$f":"IF(ISBLANK('TA Indicator Bank'!AK188),\"\",'TA Indicator Bank'!AK188)","v":0},{"$f":"IF(ISBLANK('TA Indicator Bank'!AL188),\"\",'TA Indicator Bank'!AL188)","v":0},{"$f":"IF(ISBLANK('TA Indicator Bank'!AM188),\"\",'TA Indicator Bank'!AM188)","v":0},{"$f":"IF(ISBLANK('TA Indicator Bank'!AN188),\"\",'TA Indicator Bank'!AN188)","v":0},{"$f":"IF(ISBLANK('TA Indicator Bank'!AO188),\"\",'TA Indicator Bank'!AO188)","v":0},{"$f":"IF(ISBLANK('TA Indicator Bank'!AP188),\"\",'TA Indicator Bank'!AP188)","v":0},{"$f":"IF(ISBLANK('TA Indicator Bank'!AQ188),\"\",'TA Indicator Bank'!AQ188)","v":1},{"$f":"IF(ISBLANK('TA Indicator Bank'!AR188),\"\",'TA Indicator Bank'!AR188)","v":0},{"$f":"IF(ISBLANK('TA Indicator Bank'!AS188),\"\",'TA Indicator Bank'!AS188)","v":0},{"$f":"IF(ISBLANK('TA Indicator Bank'!AT188),\"\",'TA Indicator Bank'!AT188)","v":0},{"$f":"IF(AND(J192=1,J$410=1),1,0)","v":0},{"$f":"IF(AND(K192=1,K$410=1),1,0)","v":0},{"$f":"IF(AND(L192=1,L$410=1),1,0)","v":0},{"$f":"IF(AND(M192=1,M$410=1),1,0)","v":0},{"$f":"IF(AND(N192=1,N$410=1),1,0)","v":1},{"$f":"IF(AND(O192=1,O$410=1),1,0)","v":0},{"$f":"IF(AND(P192=1,P$410=1),1,0)","v":0},{"$f":"IF(AND(Q192=1,Q$410=1),1,0)","v":0},{"$f":"IF(AND(R192=1,R$410=1),1,0)","v":0},{"$f":"IF(AND(S192=1,S$410=1),1,0)","v":0},{"$f":"IF(AND(T192=1,T$410=1),1,0)","v":0},{"$f":"IF(AND(U192=1,U$410=1),1,0)","v":0},{"$f":"IF(AND(V192=1,V$410=1),1,0)","v":1},{"$f":"IF(AND(W192=1,W$410=1),1,0)","v":0},1,{"$f":"IF(AND(X192=1,X$410=1),1,0)","v":0},{"$f":"IF(AND(Y192=1,Y$410=1),1,0)","v":0},{"$f":"IF(AND(Z192=1,Z$410=1),1,0)","v":0},{"$f":"IF(AND(AA192=1,AA$410=1),1,0)","v":0},{"$f":"IF(AND(AB192=1,AB$410=1),1,0)","v":0},{"$f":"IF(AND(AC192=1,AC$410=1),1,0)","v":0},{"$f":"IF(AND(AD192=1,AD$410=1),1,0)","v":0},{"$f":"IF(AND(AE192=1,AE$410=1),1,0)","v":0},{"$f":"IF(AND(AF192=1,AF$410=1),1,0)","v":0},1,{"$f":"IF(AND(AG192=1,AG$410=1),1,0)","v":0},{"$f":"IF(AND(AH192=1,AH$410=1),1,0)","v":0},{"$f":"IF(AND(AI192=1,AI$410=1),1,0)","v":0},{"$f":"IF(AND(AJ192=1,AJ$410=1),1,0)","v":0},{"$f":"IF(AND(AK192=1,AK$410=1),1,0)","v":0},{"$f":"IF(AND(AL192=1,AL$410=1),1,0)","v":0},{"$f":"IF(AND(AM192=1,AM$410=1),1,0)","v":0},{"$f":"IF(AND(AN192=1,AN$410=1),1,0)","v":0},{"$f":"IF(AND(AO192=1,AO$410=1),1,0)","v":0},1,{"$f":"IF(AND(AP192=1,AP$410=1),1,0)","v":0},{"$f":"IF(AND(AQ192=1,AQ$410=1),1,0)","v":1},{"$f":"IF(AND(AR192=1,AR$410=1),1,0)","v":0},{"$f":"IF(AND(AS192=1,AS$410=1),1,0)","v":0},{"$f":"IF(AND(AT192=1,AT$410=1),1,0)","v":0},1,1,184,184,{"$f":"IFERROR(SMALL($CL$9:$CL$408,CK192),\"\")","v":184},{"$f":"IFERROR(INDEX($B$9:$I$408,$CM192,COLUMNS($CN$9:CN192)),\"\")","v":"TA184"},{"$f":"IFERROR(INDEX($B$9:$I$408,$CM192,COLUMNS($CN$9:CO192)),\"\")","v":"Number of non-programme countries use programme outputs for policy design"},{"$f":"IFERROR(INDEX($B$9:$I$408,$CM192,COLUMNS($CN$9:CP192)),\"\")","v":"-"},{"$f":"IFERROR(INDEX($B$9:$I$408,$CM192,COLUMNS($CN$9:CQ192)),\"\")","v":"Uptake"},{"$f":"IFERROR(INDEX($B$9:$I$408,$CM192,COLUMNS($CN$9:CR192)),\"\")","v":"Specialist research, inc. market / policy / legal / regulatory / technology research briefs; Data, software, tools and models"},{"$f":"IFERROR(INDEX($B$9:$I$408,$CM192,COLUMNS($CN$9:CS192)),\"\")","v":"-"},{"$f":"IFERROR(INDEX($B$9:$I$408,$CM192,COLUMNS($CN$9:CT192)),\"\")","v":"-"},{"$f":"IFERROR(INDEX($B$9:$I$408,$CM192,COLUMNS($CN$9:CU192)),\"\")","v":"Number"}]
[null,{"$f":"IF(ISBLANK('TA Indicator Bank'!B189),\"\",'TA Indicator Bank'!B189)","v":"TA185"},{"$f":"IF(ISBLANK('TA Indicator Bank'!C189),\"\",'TA Indicator Bank'!C189)","v":"Number/percentage of people in the target group benefiting from the programme"},{"$f":"IF(ISBLANK('TA Indicator Bank'!D189),\"\",'TA Indicator Bank'!D189)","v":"-"},{"$f":"IF(ISBLANK('TA Indicator Bank'!E189),\"\",'TA Indicator Bank'!E189)","v":"Output"},{"$f":"IF(ISBLANK('TA Indicator Bank'!F189),\"\",'TA Indicator Bank'!F189)","v":"-"},{"$f":"IF(ISBLANK('TA Indicator Bank'!G189),\"\",'TA Indicator Bank'!G189)","v":"Public-private co-ordination support"},{"$f":"IF(ISBLANK('TA Indicator Bank'!H189),\"\",'TA Indicator Bank'!H189)","v":"Increased or improved policy development or execution"},{"$f":"IF(ISBLANK('TA Indicator Bank'!I189),\"\",'TA Indicator Bank'!I189)","v":"Number, Percentage"},{"$f":"IF(ISBLANK('TA Indicator Bank'!J189),\"\",'TA Indicator Bank'!J189)","v":0},{"$f":"IF(ISBLANK('TA Indicator Bank'!K189),\"\",'TA Indicator Bank'!K189)","v":0},{"$f":"IF(ISBLANK('TA Indicator Bank'!L189),\"\",'TA Indicator Bank'!L189)","v":0},{"$f":"IF(ISBLANK('TA Indicator Bank'!M189),\"\",'TA Indicator Bank'!M189)","v":0},{"$f":"IF(ISBLANK('TA Indicator Bank'!N189),\"\",'TA Indicator Bank'!N189)","v":0},{"$f":"IF(ISBLANK('TA Indicator Bank'!O189),\"\",'TA Indicator Bank'!O189)","v":0},{"$f":"IF(ISBLANK('TA Indicator Bank'!P189),\"\",'TA Indicator Bank'!P189)","v":0},{"$f":"IF(ISBLANK('TA Indicator Bank'!Q189),\"\",'TA Indicator Bank'!Q189)","v":0},{"$f":"IF(ISBLANK('TA Indicator Bank'!R189),\"\",'TA Indicator Bank'!R189)","v":0},{"$f":"IF(ISBLANK('TA Indicator Bank'!S189),\"\",'TA Indicator Bank'!S189)","v":0},{"$f":"IF(ISBLANK('TA Indicator Bank'!T189),\"\",'TA Indicator Bank'!T189)","v":0},{"$f":"IF(ISBLANK('TA Indicator Bank'!U189),\"\",'TA Indicator Bank'!U189)","v":0},{"$f":"IF(ISBLANK('TA Indicator Bank'!V189),\"\",'TA Indicator Bank'!V189)","v":0},{"$f":"IF(ISBLANK('TA Indicator Bank'!W189),\"\",'TA Indicator Bank'!W189)","v":0},{"$f":"IF(ISBLANK('TA Indicator Bank'!X189),\"\",'TA Indicator Bank'!X189)","v":0},{"$f":"IF(ISBLANK('TA Indicator Bank'!Y189),\"\",'TA Indicator Bank'!Y189)","v":0},{"$f":"IF(ISBLANK('TA Indicator Bank'!Z189),\"\",'TA Indicator Bank'!Z189)","v":0},{"$f":"IF(ISBLANK('TA Indicator Bank'!AA189),\"\",'TA Indicator Bank'!AA189)","v":0},{"$f":"IF(ISBLANK('TA Indicator Bank'!AB189),\"\",'TA Indicator Bank'!AB189)","v":0},{"$f":"IF(ISBLANK('TA Indicator Bank'!AC189),\"\",'TA Indicator Bank'!AC189)","v":0},{"$f":"IF(ISBLANK('TA Indicator Bank'!AD189),\"\",'TA Indicator Bank'!AD189)","v":0},{"$f":"IF(ISBLANK('TA Indicator Bank'!AE189),\"\",'TA Indicator Bank'!AE189)","v":0},{"$f":"IF(ISBLANK('TA Indicator Bank'!AF189),\"\",'TA Indicator Bank'!AF189)","v":1},{"$f":"IF(ISBLANK('TA Indicator Bank'!AG189),\"\",'TA Indicator Bank'!AG189)","v":1},{"$f":"IF(ISBLANK('TA Indicator Bank'!AH189),\"\",'TA Indicator Bank'!AH189)","v":0},{"$f":"IF(ISBLANK('TA Indicator Bank'!AI189),\"\",'TA Indicator Bank'!AI189)","v":0},{"$f":"IF(ISBLANK('TA Indicator Bank'!AJ189),\"\",'TA Indicator Bank'!AJ189)","v":0},{"$f":"IF(ISBLANK('TA Indicator Bank'!AK189),\"\",'TA Indicator Bank'!AK189)","v":0},{"$f":"IF(ISBLANK('TA Indicator Bank'!AL189),\"\",'TA Indicator Bank'!AL189)","v":0},{"$f":"IF(ISBLANK('TA Indicator Bank'!AM189),\"\",'TA Indicator Bank'!AM189)","v":0},{"$f":"IF(ISBLANK('TA Indicator Bank'!AN189),\"\",'TA Indicator Bank'!AN189)","v":0},{"$f":"IF(ISBLANK('TA Indicator Bank'!AO189),\"\",'TA Indicator Bank'!AO189)","v":0},{"$f":"IF(ISBLANK('TA Indicator Bank'!AP189),\"\",'TA Indicator Bank'!AP189)","v":0},{"$f":"IF(ISBLANK('TA Indicator Bank'!AQ189),\"\",'TA Indicator Bank'!AQ189)","v":0},{"$f":"IF(ISBLANK('TA Indicator Bank'!AR189),\"\",'TA Indicator Bank'!AR189)","v":1},{"$f":"IF(ISBLANK('TA Indicator Bank'!AS189),\"\",'TA Indicator Bank'!AS189)","v":0},{"$f":"IF(ISBLANK('TA Indicator Bank'!AT189),\"\",'TA Indicator Bank'!AT189)","v":0},{"$f":"IF(AND(J193=1,J$410=1),1,0)","v":0},{"$f":"IF(AND(K193=1,K$410=1),1,0)","v":0},{"$f":"IF(AND(L193=1,L$410=1),1,0)","v":0},{"$f":"IF(AND(M193=1,M$410=1),1,0)","v":0},{"$f":"IF(AND(N193=1,N$410=1),1,0)","v":0},{"$f":"IF(AND(O193=1,O$410=1),1,0)","v":0},{"$f":"IF(AND(P193=1,P$410=1),1,0)","v":0},{"$f":"IF(AND(Q193=1,Q$410=1),1,0)","v":0},{"$f":"IF(AND(R193=1,R$410=1),1,0)","v":0},{"$f":"IF(AND(S193=1,S$410=1),1,0)","v":0},{"$f":"IF(AND(T193=1,T$410=1),1,0)","v":0},{"$f":"IF(AND(U193=1,U$410=1),1,0)","v":0},{"$f":"IF(AND(V193=1,V$410=1),1,0)","v":0},{"$f":"IF(AND(W193=1,W$410=1),1,0)","v":0},1,{"$f":"IF(AND(X193=1,X$410=1),1,0)","v":0},{"$f":"IF(AND(Y193=1,Y$410=1),1,0)","v":0},{"$f":"IF(AND(Z193=1,Z$410=1),1,0)","v":0},{"$f":"IF(AND(AA193=1,AA$410=1),1,0)","v":0},{"$f":"IF(AND(AB193=1,AB$410=1),1,0)","v":0},{"$f":"IF(AND(AC193=1,AC$410=1),1,0)","v":0},{"$f":"IF(AND(AD193=1,AD$410=1),1,0)","v":0},{"$f":"IF(AND(AE193=1,AE$410=1),1,0)","v":0},{"$f":"IF(AND(AF193=1,AF$410=1),1,0)","v":1},1,{"$f":"IF(AND(AG193=1,AG$410=1),1,0)","v":1},{"$f":"IF(AND(AH193=1,AH$410=1),1,0)","v":0},{"$f":"IF(AND(AI193=1,AI$410=1),1,0)","v":0},{"$f":"IF(AND(AJ193=1,AJ$410=1),1,0)","v":0},{"$f":"IF(AND(AK193=1,AK$410=1),1,0)","v":0},{"$f":"IF(AND(AL193=1,AL$410=1),1,0)","v":0},{"$f":"IF(AND(AM193=1,AM$410=1),1,0)","v":0},{"$f":"IF(AND(AN193=1,AN$410=1),1,0)","v":0},{"$f":"IF(AND(AO193=1,AO$410=1),1,0)","v":0},1,{"$f":"IF(AND(AP193=1,AP$410=1),1,0)","v":0},{"$f":"IF(AND(AQ193=1,AQ$410=1),1,0)","v":0},{"$f":"IF(AND(AR193=1,AR$410=1),1,0)","v":1},{"$f":"IF(AND(AS193=1,AS$410=1),1,0)","v":0},{"$f":"IF(AND(AT193=1,AT$410=1),1,0)","v":0},1,1,185,185,{"$f":"IFERROR(SMALL($CL$9:$CL$408,CK193),\"\")","v":185},{"$f":"IFERROR(INDEX($B$9:$I$408,$CM193,COLUMNS($CN$9:CN193)),\"\")","v":"TA185"},{"$f":"IFERROR(INDEX($B$9:$I$408,$CM193,COLUMNS($CN$9:CO193)),\"\")","v":"Number/percentage of people in the target group benefiting from the programme"},{"$f":"IFERROR(INDEX($B$9:$I$408,$CM193,COLUMNS($CN$9:CP193)),\"\")","v":"-"},{"$f":"IFERROR(INDEX($B$9:$I$408,$CM193,COLUMNS($CN$9:CQ193)),\"\")","v":"Output"},{"$f":"IFERROR(INDEX($B$9:$I$408,$CM193,COLUMNS($CN$9:CR193)),\"\")","v":"-"},{"$f":"IFERROR(INDEX($B$9:$I$408,$CM193,COLUMNS($CN$9:CS193)),\"\")","v":"Public-private co-ordination support"},{"$f":"IFERROR(INDEX($B$9:$I$408,$CM193,COLUMNS($CN$9:CT193)),\"\")","v":"Increased or improved policy development or execution"},{"$f":"IFERROR(INDEX($B$9:$I$408,$CM193,COLUMNS($CN$9:CU193)),\"\")","v":"Number, Percentage"}]
[null,{"$f":"IF(ISBLANK('TA Indicator Bank'!B190),\"\",'TA Indicator Bank'!B190)","v":"TA186"},{"$f":"IF(ISBLANK('TA Indicator Bank'!C190),\"\",'TA Indicator Bank'!C190)","v":"Land area covered by the policy"},{"$f":"IF(ISBLANK('TA Indicator Bank'!D190),\"\",'TA Indicator Bank'!D190)","v":"-"},{"$f":"IF(ISBLANK('TA Indicator Bank'!E190),\"\",'TA Indicator Bank'!E190)","v":"Outcome"},{"$f":"IF(ISBLANK('TA Indicator Bank'!F190),\"\",'TA Indicator Bank'!F190)","v":"-"},{"$f":"IF(ISBLANK('TA Indicator Bank'!G190),\"\",'TA Indicator Bank'!G190)","v":"-"},{"$f":"IF(ISBLANK('TA Indicator Bank'!H190),\"\",'TA Indicator Bank'!H190)","v":"Increased or improved policy development or execution"},{"$f":"IF(ISBLANK('TA Indicator Bank'!I190),\"\",'TA Indicator Bank'!I190)","v":"Number"},{"$f":"IF(ISBLANK('TA Indicator Bank'!J190),\"\",'TA Indicator Bank'!J190)","v":0},{"$f":"IF(ISBLANK('TA Indicator Bank'!K190),\"\",'TA Indicator Bank'!K190)","v":0},{"$f":"IF(ISBLANK('TA Indicator Bank'!L190),\"\",'TA Indicator Bank'!L190)","v":0},{"$f":"IF(ISBLANK('TA Indicator Bank'!M190),\"\",'TA Indicator Bank'!M190)","v":0},{"$f":"IF(ISBLANK('TA Indicator Bank'!N190),\"\",'TA Indicator Bank'!N190)","v":0},{"$f":"IF(ISBLANK('TA Indicator Bank'!O190),\"\",'TA Indicator Bank'!O190)","v":0},{"$f":"IF(ISBLANK('TA Indicator Bank'!P190),\"\",'TA Indicator Bank'!P190)","v":0},{"$f":"IF(ISBLANK('TA Indicator Bank'!Q190),\"\",'TA Indicator Bank'!Q190)","v":0},{"$f":"IF(ISBLANK('TA Indicator Bank'!R190),\"\",'TA Indicator Bank'!R190)","v":0},{"$f":"IF(ISBLANK('TA Indicator Bank'!S190),\"\",'TA Indicator Bank'!S190)","v":0},{"$f":"IF(ISBLANK('TA Indicator Bank'!T190),\"\",'TA Indicator Bank'!T190)","v":0},{"$f":"IF(ISBLANK('TA Indicator Bank'!U190),\"\",'TA Indicator Bank'!U190)","v":0},{"$f":"IF(ISBLANK('TA Indicator Bank'!V190),\"\",'TA Indicator Bank'!V190)","v":0},{"$f":"IF(ISBLANK('TA Indicator Bank'!W190),\"\",'TA Indicator Bank'!W190)","v":0},{"$f":"IF(ISBLANK('TA Indicator Bank'!X190),\"\",'TA Indicator Bank'!X190)","v":0},{"$f":"IF(ISBLANK('TA Indicator Bank'!Y190),\"\",'TA Indicator Bank'!Y190)","v":0},{"$f":"IF(ISBLANK('TA Indicator Bank'!Z190),\"\",'TA Indicator Bank'!Z190)","v":0},{"$f":"IF(ISBLANK('TA Indicator Bank'!AA190),\"\",'TA Indicator Bank'!AA190)","v":0},{"$f":"IF(ISBLANK('TA Indicator Bank'!AB190),\"\",'TA Indicator Bank'!AB190)","v":0},{"$f":"IF(ISBLANK('TA Indicator Bank'!AC190),\"\",'TA Indicator Bank'!AC190)","v":0},{"$f":"IF(ISBLANK('TA Indicator Bank'!AD190),\"\",'TA Indicator Bank'!AD190)","v":0},{"$f":"IF(ISBLANK('TA Indicator Bank'!AE190),\"\",'TA Indicator Bank'!AE190)","v":0},{"$f":"IF(ISBLANK('TA Indicator Bank'!AF190),\"\",'TA Indicator Bank'!AF190)","v":0},{"$f":"IF(ISBLANK('TA Indicator Bank'!AG190),\"\",'TA Indicator Bank'!AG190)","v":1},{"$f":"IF(ISBLANK('TA Indicator Bank'!AH190),\"\",'TA Indicator Bank'!AH190)","v":0},{"$f":"IF(ISBLANK('TA Indicator Bank'!AI190),\"\",'TA Indicator Bank'!AI190)","v":0},{"$f":"IF(ISBLANK('TA Indicator Bank'!AJ190),\"\",'TA Indicator Bank'!AJ190)","v":0},{"$f":"IF(ISBLANK('TA Indicator Bank'!AK190),\"\",'TA Indicator Bank'!AK190)","v":0},{"$f":"IF(ISBLANK('TA Indicator Bank'!AL190),\"\",'TA Indicator Bank'!AL190)","v":0},{"$f":"IF(ISBLANK('TA Indicator Bank'!AM190),\"\",'TA Indicator Bank'!AM190)","v":0},{"$f":"IF(ISBLANK('TA Indicator Bank'!AN190),\"\",'TA Indicator Bank'!AN190)","v":0},{"$f":"IF(ISBLANK('TA Indicator Bank'!AO190),\"\",'TA Indicator Bank'!AO190)","v":0},{"$f":"IF(ISBLANK('TA Indicator Bank'!AP190),\"\",'TA Indicator Bank'!AP190)","v":0},{"$f":"IF(ISBLANK('TA Indicator Bank'!AQ190),\"\",'TA Indicator Bank'!AQ190)","v":0},{"$f":"IF(ISBLANK('TA Indicator Bank'!AR190),\"\",'TA Indicator Bank'!AR190)","v":0},{"$f":"IF(ISBLANK('TA Indicator Bank'!AS190),\"\",'TA Indicator Bank'!AS190)","v":1},{"$f":"IF(ISBLANK('TA Indicator Bank'!AT190),\"\",'TA Indicator Bank'!AT190)","v":0},{"$f":"IF(AND(J194=1,J$410=1),1,0)","v":0},{"$f":"IF(AND(K194=1,K$410=1),1,0)","v":0},{"$f":"IF(AND(L194=1,L$410=1),1,0)","v":0},{"$f":"IF(AND(M194=1,M$410=1),1,0)","v":0},{"$f":"IF(AND(N194=1,N$410=1),1,0)","v":0},{"$f":"IF(AND(O194=1,O$410=1),1,0)","v":0},{"$f":"IF(AND(P194=1,P$410=1),1,0)","v":0},{"$f":"IF(AND(Q194=1,Q$410=1),1,0)","v":0},{"$f":"IF(AND(R194=1,R$410=1),1,0)","v":0},{"$f":"IF(AND(S194=1,S$410=1),1,0)","v":0},{"$f":"IF(AND(T194=1,T$410=1),1,0)","v":0},{"$f":"IF(AND(U194=1,U$410=1),1,0)","v":0},{"$f":"IF(AND(V194=1,V$410=1),1,0)","v":0},{"$f":"IF(AND(W194=1,W$410=1),1,0)","v":0},1,{"$f":"IF(AND(X194=1,X$410=1),1,0)","v":0},{"$f":"IF(AND(Y194=1,Y$410=1),1,0)","v":0},{"$f":"IF(AND(Z194=1,Z$410=1),1,0)","v":0},{"$f":"IF(AND(AA194=1,AA$410=1),1,0)","v":0},{"$f":"IF(AND(AB194=1,AB$410=1),1,0)","v":0},{"$f":"IF(AND(AC194=1,AC$410=1),1,0)","v":0},{"$f":"IF(AND(AD194=1,AD$410=1),1,0)","v":0},{"$f":"IF(AND(AE194=1,AE$410=1),1,0)","v":0},{"$f":"IF(AND(AF194=1,AF$410=1),1,0)","v":0},1,{"$f":"IF(AND(AG194=1,AG$410=1),1,0)","v":1},{"$f":"IF(AND(AH194=1,AH$410=1),1,0)","v":0},{"$f":"IF(AND(AI194=1,AI$410=1),1,0)","v":0},{"$f":"IF(AND(AJ194=1,AJ$410=1),1,0)","v":0},{"$f":"IF(AND(AK194=1,AK$410=1),1,0)","v":0},{"$f":"IF(AND(AL194=1,AL$410=1),1,0)","v":0},{"$f":"IF(AND(AM194=1,AM$410=1),1,0)","v":0},{"$f":"IF(AND(AN194=1,AN$410=1),1,0)","v":0},{"$f":"IF(AND(AO194=1,AO$410=1),1,0)","v":0},1,{"$f":"IF(AND(AP194=1,AP$410=1),1,0)","v":0},{"$f":"IF(AND(AQ194=1,AQ$410=1),1,0)","v":0},{"$f":"IF(AND(AR194=1,AR$410=1),1,0)","v":0},{"$f":"IF(AND(AS194=1,AS$410=1),1,0)","v":1},{"$f":"IF(AND(AT194=1,AT$410=1),1,0)","v":0},1,1,186,186,{"$f":"IFERROR(SMALL($CL$9:$CL$408,CK194),\"\")","v":186},{"$f":"IFERROR(INDEX($B$9:$I$408,$CM194,COLUMNS($CN$9:CN194)),\"\")","v":"TA186"},{"$f":"IFERROR(INDEX($B$9:$I$408,$CM194,COLUMNS($CN$9:CO194)),\"\")","v":"Land area covered by the policy"},{"$f":"IFERROR(INDEX($B$9:$I$408,$CM194,COLUMNS($CN$9:CP194)),\"\")","v":"-"},{"$f":"IFERROR(INDEX($B$9:$I$408,$CM194,COLUMNS($CN$9:CQ194)),\"\")","v":"Outcome"},{"$f":"IFERROR(INDEX($B$9:$I$408,$CM194,COLUMNS($CN$9:CR194)),\"\")","v":"-"},{"$f":"IFERROR(INDEX($B$9:$I$408,$CM194,COLUMNS($CN$9:CS194)),\"\")","v":"-"},{"$f":"IFERROR(INDEX($B$9:$I$408,$CM194,COLUMNS($CN$9:CT194)),\"\")","v":"Increased or improved policy development or execution"},{"$f":"IFERROR(INDEX($B$9:$I$408,$CM194,COLUMNS($CN$9:CU194)),\"\")","v":"Number"}]
[null,{"$f":"IF(ISBLANK('TA Indicator Bank'!B191),\"\",'TA Indicator Bank'!B191)","v":"TA187"},{"$f":"IF(ISBLANK('TA Indicator Bank'!C191),\"\",'TA Indicator Bank'!C191)","v":"Policy implemented/ progress towards policy implementation"},{"$f":"IF(ISBLANK('TA Indicator Bank'!D191),\"\",'TA Indicator Bank'!D191)","v":"-"},{"$f":"IF(ISBLANK('TA Indicator Bank'!E191),\"\",'TA Indicator Bank'!E191)","v":"Outcome"},{"$f":"IF(ISBLANK('TA Indicator Bank'!F191),\"\",'TA Indicator Bank'!F191)","v":"-"},{"$f":"IF(ISBLANK('TA Indicator Bank'!G191),\"\",'TA Indicator Bank'!G191)","v":"-"},{"$f":"IF(ISBLANK('TA Indicator Bank'!H191),\"\",'TA Indicator Bank'!H191)","v":"Increased or improved policy development or execution"},{"$f":"IF(ISBLANK('TA Indicator Bank'!I191),\"\",'TA Indicator Bank'!I191)","v":"Yes/No"},{"$f":"IF(ISBLANK('TA Indicator Bank'!J191),\"\",'TA Indicator Bank'!J191)","v":0},{"$f":"IF(ISBLANK('TA Indicator Bank'!K191),\"\",'TA Indicator Bank'!K191)","v":0},{"$f":"IF(ISBLANK('TA Indicator Bank'!L191),\"\",'TA Indicator Bank'!L191)","v":0},{"$f":"IF(ISBLANK('TA Indicator Bank'!M191),\"\",'TA Indicator Bank'!M191)","v":0},{"$f":"IF(ISBLANK('TA Indicator Bank'!N191),\"\",'TA Indicator Bank'!N191)","v":0},{"$f":"IF(ISBLANK('TA Indicator Bank'!O191),\"\",'TA Indicator Bank'!O191)","v":0},{"$f":"IF(ISBLANK('TA Indicator Bank'!P191),\"\",'TA Indicator Bank'!P191)","v":0},{"$f":"IF(ISBLANK('TA Indicator Bank'!Q191),\"\",'TA Indicator Bank'!Q191)","v":0},{"$f":"IF(ISBLANK('TA Indicator Bank'!R191),\"\",'TA Indicator Bank'!R191)","v":0},{"$f":"IF(ISBLANK('TA Indicator Bank'!S191),\"\",'TA Indicator Bank'!S191)","v":0},{"$f":"IF(ISBLANK('TA Indicator Bank'!T191),\"\",'TA Indicator Bank'!T191)","v":0},{"$f":"IF(ISBLANK('TA Indicator Bank'!U191),\"\",'TA Indicator Bank'!U191)","v":0},{"$f":"IF(ISBLANK('TA Indicator Bank'!V191),\"\",'TA Indicator Bank'!V191)","v":0},{"$f":"IF(ISBLANK('TA Indicator Bank'!W191),\"\",'TA Indicator Bank'!W191)","v":0},{"$f":"IF(ISBLANK('TA Indicator Bank'!X191),\"\",'TA Indicator Bank'!X191)","v":0},{"$f":"IF(ISBLANK('TA Indicator Bank'!Y191),\"\",'TA Indicator Bank'!Y191)","v":0},{"$f":"IF(ISBLANK('TA Indicator Bank'!Z191),\"\",'TA Indicator Bank'!Z191)","v":0},{"$f":"IF(ISBLANK('TA Indicator Bank'!AA191),\"\",'TA Indicator Bank'!AA191)","v":0},{"$f":"IF(ISBLANK('TA Indicator Bank'!AB191),\"\",'TA Indicator Bank'!AB191)","v":0},{"$f":"IF(ISBLANK('TA Indicator Bank'!AC191),\"\",'TA Indicator Bank'!AC191)","v":0},{"$f":"IF(ISBLANK('TA Indicator Bank'!AD191),\"\",'TA Indicator Bank'!AD191)","v":0},{"$f":"IF(ISBLANK('TA Indicator Bank'!AE191),\"\",'TA Indicator Bank'!AE191)","v":0},{"$f":"IF(ISBLANK('TA Indicator Bank'!AF191),\"\",'TA Indicator Bank'!AF191)","v":0},{"$f":"IF(ISBLANK('TA Indicator Bank'!AG191),\"\",'TA Indicator Bank'!AG191)","v":1},{"$f":"IF(ISBLANK('TA Indicator Bank'!AH191),\"\",'TA Indicator Bank'!AH191)","v":0},{"$f":"IF(ISBLANK('TA Indicator Bank'!AI191),\"\",'TA Indicator Bank'!AI191)","v":0},{"$f":"IF(ISBLANK('TA Indicator Bank'!AJ191),\"\",'TA Indicator Bank'!AJ191)","v":0},{"$f":"IF(ISBLANK('TA Indicator Bank'!AK191),\"\",'TA Indicator Bank'!AK191)","v":0},{"$f":"IF(ISBLANK('TA Indicator Bank'!AL191),\"\",'TA Indicator Bank'!AL191)","v":0},{"$f":"IF(ISBLANK('TA Indicator Bank'!AM191),\"\",'TA Indicator Bank'!AM191)","v":0},{"$f":"IF(ISBLANK('TA Indicator Bank'!AN191),\"\",'TA Indicator Bank'!AN191)","v":0},{"$f":"IF(ISBLANK('TA Indicator Bank'!AO191),\"\",'TA Indicator Bank'!AO191)","v":0},{"$f":"IF(ISBLANK('TA Indicator Bank'!AP191),\"\",'TA Indicator Bank'!AP191)","v":0},{"$f":"IF(ISBLANK('TA Indicator Bank'!AQ191),\"\",'TA Indicator Bank'!AQ191)","v":0},{"$f":"IF(ISBLANK('TA Indicator Bank'!AR191),\"\",'TA Indicator Bank'!AR191)","v":0},{"$f":"IF(ISBLANK('TA Indicator Bank'!AS191),\"\",'TA Indicator Bank'!AS191)","v":1},{"$f":"IF(ISBLANK('TA Indicator Bank'!AT191),\"\",'TA Indicator Bank'!AT191)","v":0},{"$f":"IF(AND(J195=1,J$410=1),1,0)","v":0},{"$f":"IF(AND(K195=1,K$410=1),1,0)","v":0},{"$f":"IF(AND(L195=1,L$410=1),1,0)","v":0},{"$f":"IF(AND(M195=1,M$410=1),1,0)","v":0},{"$f":"IF(AND(N195=1,N$410=1),1,0)","v":0},{"$f":"IF(AND(O195=1,O$410=1),1,0)","v":0},{"$f":"IF(AND(P195=1,P$410=1),1,0)","v":0},{"$f":"IF(AND(Q195=1,Q$410=1),1,0)","v":0},{"$f":"IF(AND(R195=1,R$410=1),1,0)","v":0},{"$f":"IF(AND(S195=1,S$410=1),1,0)","v":0},{"$f":"IF(AND(T195=1,T$410=1),1,0)","v":0},{"$f":"IF(AND(U195=1,U$410=1),1,0)","v":0},{"$f":"IF(AND(V195=1,V$410=1),1,0)","v":0},{"$f":"IF(AND(W195=1,W$410=1),1,0)","v":0},1,{"$f":"IF(AND(X195=1,X$410=1),1,0)","v":0},{"$f":"IF(AND(Y195=1,Y$410=1),1,0)","v":0},{"$f":"IF(AND(Z195=1,Z$410=1),1,0)","v":0},{"$f":"IF(AND(AA195=1,AA$410=1),1,0)","v":0},{"$f":"IF(AND(AB195=1,AB$410=1),1,0)","v":0},{"$f":"IF(AND(AC195=1,AC$410=1),1,0)","v":0},{"$f":"IF(AND(AD195=1,AD$410=1),1,0)","v":0},{"$f":"IF(AND(AE195=1,AE$410=1),1,0)","v":0},{"$f":"IF(AND(AF195=1,AF$410=1),1,0)","v":0},1,{"$f":"IF(AND(AG195=1,AG$410=1),1,0)","v":1},{"$f":"IF(AND(AH195=1,AH$410=1),1,0)","v":0},{"$f":"IF(AND(AI195=1,AI$410=1),1,0)","v":0},{"$f":"IF(AND(AJ195=1,AJ$410=1),1,0)","v":0},{"$f":"IF(AND(AK195=1,AK$410=1),1,0)","v":0},{"$f":"IF(AND(AL195=1,AL$410=1),1,0)","v":0},{"$f":"IF(AND(AM195=1,AM$410=1),1,0)","v":0},{"$f":"IF(AND(AN195=1,AN$410=1),1,0)","v":0},{"$f":"IF(AND(AO195=1,AO$410=1),1,0)","v":0},1,{"$f":"IF(AND(AP195=1,AP$410=1),1,0)","v":0},{"$f":"IF(AND(AQ195=1,AQ$410=1),1,0)","v":0},{"$f":"IF(AND(AR195=1,AR$410=1),1,0)","v":0},{"$f":"IF(AND(AS195=1,AS$410=1),1,0)","v":1},{"$f":"IF(AND(AT195=1,AT$410=1),1,0)","v":0},1,1,187,187,{"$f":"IFERROR(SMALL($CL$9:$CL$408,CK195),\"\")","v":187},{"$f":"IFERROR(INDEX($B$9:$I$408,$CM195,COLUMNS($CN$9:CN195)),\"\")","v":"TA187"},{"$f":"IFERROR(INDEX($B$9:$I$408,$CM195,COLUMNS($CN$9:CO195)),\"\")","v":"Policy implemented/ progress towards policy implementation"},{"$f":"IFERROR(INDEX($B$9:$I$408,$CM195,COLUMNS($CN$9:CP195)),\"\")","v":"-"},{"$f":"IFERROR(INDEX($B$9:$I$408,$CM195,COLUMNS($CN$9:CQ195)),\"\")","v":"Outcome"},{"$f":"IFERROR(INDEX($B$9:$I$408,$CM195,COLUMNS($CN$9:CR195)),\"\")","v":"-"},{"$f":"IFERROR(INDEX($B$9:$I$408,$CM195,COLUMNS($CN$9:CS195)),\"\")","v":"-"},{"$f":"IFERROR(INDEX($B$9:$I$408,$CM195,COLUMNS($CN$9:CT195)),\"\")","v":"Increased or improved policy development or execution"},{"$f":"IFERROR(INDEX($B$9:$I$408,$CM195,COLUMNS($CN$9:CU195)),\"\")","v":"Yes/No"}]
[null,{"$f":"IF(ISBLANK('TA Indicator Bank'!B192),\"\",'TA Indicator Bank'!B192)","v":"TA188"},{"$f":"IF(ISBLANK('TA Indicator Bank'!C192),\"\",'TA Indicator Bank'!C192)","v":"Revenue raised from policy"},{"$f":"IF(ISBLANK('TA Indicator Bank'!D192),\"\",'TA Indicator Bank'!D192)","v":"-"},{"$f":"IF(ISBLANK('TA Indicator Bank'!E192),\"\",'TA Indicator Bank'!E192)","v":"Outcome"},{"$f":"IF(ISBLANK('TA Indicator Bank'!F192),\"\",'TA Indicator Bank'!F192)","v":"-"},{"$f":"IF(ISBLANK('TA Indicator Bank'!G192),\"\",'TA Indicator Bank'!G192)","v":"-"},{"$f":"IF(ISBLANK('TA Indicator Bank'!H192),\"\",'TA Indicator Bank'!H192)","v":"Increased or improved policy development or execution"},{"$f":"IF(ISBLANK('TA Indicator Bank'!I192),\"\",'TA Indicator Bank'!I192)","v":"Number"},{"$f":"IF(ISBLANK('TA Indicator Bank'!J192),\"\",'TA Indicator Bank'!J192)","v":0},{"$f":"IF(ISBLANK('TA Indicator Bank'!K192),\"\",'TA Indicator Bank'!K192)","v":0},{"$f":"IF(ISBLANK('TA Indicator Bank'!L192),\"\",'TA Indicator Bank'!L192)","v":0},{"$f":"IF(ISBLANK('TA Indicator Bank'!M192),\"\",'TA Indicator Bank'!M192)","v":0},{"$f":"IF(ISBLANK('TA Indicator Bank'!N192),\"\",'TA Indicator Bank'!N192)","v":0},{"$f":"IF(ISBLANK('TA Indicator Bank'!O192),\"\",'TA Indicator Bank'!O192)","v":0},{"$f":"IF(ISBLANK('TA Indicator Bank'!P192),\"\",'TA Indicator Bank'!P192)","v":0},{"$f":"IF(ISBLANK('TA Indicator Bank'!Q192),\"\",'TA Indicator Bank'!Q192)","v":0},{"$f":"IF(ISBLANK('TA Indicator Bank'!R192),\"\",'TA Indicator Bank'!R192)","v":0},{"$f":"IF(ISBLANK('TA Indicator Bank'!S192),\"\",'TA Indicator Bank'!S192)","v":0},{"$f":"IF(ISBLANK('TA Indicator Bank'!T192),\"\",'TA Indicator Bank'!T192)","v":0},{"$f":"IF(ISBLANK('TA Indicator Bank'!U192),\"\",'TA Indicator Bank'!U192)","v":0},{"$f":"IF(ISBLANK('TA Indicator Bank'!V192),\"\",'TA Indicator Bank'!V192)","v":0},{"$f":"IF(ISBLANK('TA Indicator Bank'!W192),\"\",'TA Indicator Bank'!W192)","v":0},{"$f":"IF(ISBLANK('TA Indicator Bank'!X192),\"\",'TA Indicator Bank'!X192)","v":0},{"$f":"IF(ISBLANK('TA Indicator Bank'!Y192),\"\",'TA Indicator Bank'!Y192)","v":0},{"$f":"IF(ISBLANK('TA Indicator Bank'!Z192),\"\",'TA Indicator Bank'!Z192)","v":0},{"$f":"IF(ISBLANK('TA Indicator Bank'!AA192),\"\",'TA Indicator Bank'!AA192)","v":0},{"$f":"IF(ISBLANK('TA Indicator Bank'!AB192),\"\",'TA Indicator Bank'!AB192)","v":0},{"$f":"IF(ISBLANK('TA Indicator Bank'!AC192),\"\",'TA Indicator Bank'!AC192)","v":0},{"$f":"IF(ISBLANK('TA Indicator Bank'!AD192),\"\",'TA Indicator Bank'!AD192)","v":0},{"$f":"IF(ISBLANK('TA Indicator Bank'!AE192),\"\",'TA Indicator Bank'!AE192)","v":0},{"$f":"IF(ISBLANK('TA Indicator Bank'!AF192),\"\",'TA Indicator Bank'!AF192)","v":0},{"$f":"IF(ISBLANK('TA Indicator Bank'!AG192),\"\",'TA Indicator Bank'!AG192)","v":1},{"$f":"IF(ISBLANK('TA Indicator Bank'!AH192),\"\",'TA Indicator Bank'!AH192)","v":0},{"$f":"IF(ISBLANK('TA Indicator Bank'!AI192),\"\",'TA Indicator Bank'!AI192)","v":0},{"$f":"IF(ISBLANK('TA Indicator Bank'!AJ192),\"\",'TA Indicator Bank'!AJ192)","v":0},{"$f":"IF(ISBLANK('TA Indicator Bank'!AK192),\"\",'TA Indicator Bank'!AK192)","v":0},{"$f":"IF(ISBLANK('TA Indicator Bank'!AL192),\"\",'TA Indicator Bank'!AL192)","v":0},{"$f":"IF(ISBLANK('TA Indicator Bank'!AM192),\"\",'TA Indicator Bank'!AM192)","v":0},{"$f":"IF(ISBLANK('TA Indicator Bank'!AN192),\"\",'TA Indicator Bank'!AN192)","v":0},{"$f":"IF(ISBLANK('TA Indicator Bank'!AO192),\"\",'TA Indicator Bank'!AO192)","v":0},{"$f":"IF(ISBLANK('TA Indicator Bank'!AP192),\"\",'TA Indicator Bank'!AP192)","v":0},{"$f":"IF(ISBLANK('TA Indicator Bank'!AQ192),\"\",'TA Indicator Bank'!AQ192)","v":0},{"$f":"IF(ISBLANK('TA Indicator Bank'!AR192),\"\",'TA Indicator Bank'!AR192)","v":0},{"$f":"IF(ISBLANK('TA Indicator Bank'!AS192),\"\",'TA Indicator Bank'!AS192)","v":1},{"$f":"IF(ISBLANK('TA Indicator Bank'!AT192),\"\",'TA Indicator Bank'!AT192)","v":0},{"$f":"IF(AND(J196=1,J$410=1),1,0)","v":0},{"$f":"IF(AND(K196=1,K$410=1),1,0)","v":0},{"$f":"IF(AND(L196=1,L$410=1),1,0)","v":0},{"$f":"IF(AND(M196=1,M$410=1),1,0)","v":0},{"$f":"IF(AND(N196=1,N$410=1),1,0)","v":0},{"$f":"IF(AND(O196=1,O$410=1),1,0)","v":0},{"$f":"IF(AND(P196=1,P$410=1),1,0)","v":0},{"$f":"IF(AND(Q196=1,Q$410=1),1,0)","v":0},{"$f":"IF(AND(R196=1,R$410=1),1,0)","v":0},{"$f":"IF(AND(S196=1,S$410=1),1,0)","v":0},{"$f":"IF(AND(T196=1,T$410=1),1,0)","v":0},{"$f":"IF(AND(U196=1,U$410=1),1,0)","v":0},{"$f":"IF(AND(V196=1,V$410=1),1,0)","v":0},{"$f":"IF(AND(W196=1,W$410=1),1,0)","v":0},1,{"$f":"IF(AND(X196=1,X$410=1),1,0)","v":0},{"$f":"IF(AND(Y196=1,Y$410=1),1,0)","v":0},{"$f":"IF(AND(Z196=1,Z$410=1),1,0)","v":0},{"$f":"IF(AND(AA196=1,AA$410=1),1,0)","v":0},{"$f":"IF(AND(AB196=1,AB$410=1),1,0)","v":0},{"$f":"IF(AND(AC196=1,AC$410=1),1,0)","v":0},{"$f":"IF(AND(AD196=1,AD$410=1),1,0)","v":0},{"$f":"IF(AND(AE196=1,AE$410=1),1,0)","v":0},{"$f":"IF(AND(AF196=1,AF$410=1),1,0)","v":0},1,{"$f":"IF(AND(AG196=1,AG$410=1),1,0)","v":1},{"$f":"IF(AND(AH196=1,AH$410=1),1,0)","v":0},{"$f":"IF(AND(AI196=1,AI$410=1),1,0)","v":0},{"$f":"IF(AND(AJ196=1,AJ$410=1),1,0)","v":0},{"$f":"IF(AND(AK196=1,AK$410=1),1,0)","v":0},{"$f":"IF(AND(AL196=1,AL$410=1),1,0)","v":0},{"$f":"IF(AND(AM196=1,AM$410=1),1,0)","v":0},{"$f":"IF(AND(AN196=1,AN$410=1),1,0)","v":0},{"$f":"IF(AND(AO196=1,AO$410=1),1,0)","v":0},1,{"$f":"IF(AND(AP196=1,AP$410=1),1,0)","v":0},{"$f":"IF(AND(AQ196=1,AQ$410=1),1,0)","v":0},{"$f":"IF(AND(AR196=1,AR$410=1),1,0)","v":0},{"$f":"IF(AND(AS196=1,AS$410=1),1,0)","v":1},{"$f":"IF(AND(AT196=1,AT$410=1),1,0)","v":0},1,1,188,188,{"$f":"IFERROR(SMALL($CL$9:$CL$408,CK196),\"\")","v":188},{"$f":"IFERROR(INDEX($B$9:$I$408,$CM196,COLUMNS($CN$9:CN196)),\"\")","v":"TA188"},{"$f":"IFERROR(INDEX($B$9:$I$408,$CM196,COLUMNS($CN$9:CO196)),\"\")","v":"Revenue raised from policy"},{"$f":"IFERROR(INDEX($B$9:$I$408,$CM196,COLUMNS($CN$9:CP196)),\"\")","v":"-"},{"$f":"IFERROR(INDEX($B$9:$I$408,$CM196,COLUMNS($CN$9:CQ196)),\"\")","v":"Outcome"},{"$f":"IFERROR(INDEX($B$9:$I$408,$CM196,COLUMNS($CN$9:CR196)),\"\")","v":"-"},{"$f":"IFERROR(INDEX($B$9:$I$408,$CM196,COLUMNS($CN$9:CS196)),\"\")","v":"-"},{"$f":"IFERROR(INDEX($B$9:$I$408,$CM196,COLUMNS($CN$9:CT196)),\"\")","v":"Increased or improved policy development or execution"},{"$f":"IFERROR(INDEX($B$9:$I$408,$CM196,COLUMNS($CN$9:CU196)),\"\")","v":"Number"}]
[null,{"$f":"IF(ISBLANK('TA Indicator Bank'!B193),\"\",'TA Indicator Bank'!B193)","v":"TA189"},{"$f":"IF(ISBLANK('TA Indicator Bank'!C193),\"\",'TA Indicator Bank'!C193)","v":"Number of international submissions (to policy fora, funding opportunities, etc) attributable to programme support"},{"$f":"IF(ISBLANK('TA Indicator Bank'!D193),\"\",'TA Indicator Bank'!D193)","v":"-"},{"$f":"IF(ISBLANK('TA Indicator Bank'!E193),\"\",'TA Indicator Bank'!E193)","v":"Output"},{"$f":"IF(ISBLANK('TA Indicator Bank'!F193),\"\",'TA Indicator Bank'!F193)","v":"-"},{"$f":"IF(ISBLANK('TA Indicator Bank'!G193),\"\",'TA Indicator Bank'!G193)","v":"International policy support"},{"$f":"IF(ISBLANK('TA Indicator Bank'!H193),\"\",'TA Indicator Bank'!H193)","v":"-"},{"$f":"IF(ISBLANK('TA Indicator Bank'!I193),\"\",'TA Indicator Bank'!I193)","v":"Number"},{"$f":"IF(ISBLANK('TA Indicator Bank'!J193),\"\",'TA Indicator Bank'!J193)","v":0},{"$f":"IF(ISBLANK('TA Indicator Bank'!K193),\"\",'TA Indicator Bank'!K193)","v":0},{"$f":"IF(ISBLANK('TA Indicator Bank'!L193),\"\",'TA Indicator Bank'!L193)","v":0},{"$f":"IF(ISBLANK('TA Indicator Bank'!M193),\"\",'TA Indicator Bank'!M193)","v":0},{"$f":"IF(ISBLANK('TA Indicator Bank'!N193),\"\",'TA Indicator Bank'!N193)","v":0},{"$f":"IF(ISBLANK('TA Indicator Bank'!O193),\"\",'TA Indicator Bank'!O193)","v":0},{"$f":"IF(ISBLANK('TA Indicator Bank'!P193),\"\",'TA Indicator Bank'!P193)","v":0},{"$f":"IF(ISBLANK('TA Indicator Bank'!Q193),\"\",'TA Indicator Bank'!Q193)","v":0},{"$f":"IF(ISBLANK('TA Indicator Bank'!R193),\"\",'TA Indicator Bank'!R193)","v":0},{"$f":"IF(ISBLANK('TA Indicator Bank'!S193),\"\",'TA Indicator Bank'!S193)","v":0},{"$f":"IF(ISBLANK('TA Indicator Bank'!T193),\"\",'TA Indicator Bank'!T193)","v":0},{"$f":"IF(ISBLANK('TA Indicator Bank'!U193),\"\",'TA Indicator Bank'!U193)","v":0},{"$f":"IF(ISBLANK('TA Indicator Bank'!V193),\"\",'TA Indicator Bank'!V193)","v":0},{"$f":"IF(ISBLANK('TA Indicator Bank'!W193),\"\",'TA Indicator Bank'!W193)","v":0},{"$f":"IF(ISBLANK('TA Indicator Bank'!X193),\"\",'TA Indicator Bank'!X193)","v":0},{"$f":"IF(ISBLANK('TA Indicator Bank'!Y193),\"\",'TA Indicator Bank'!Y193)","v":0},{"$f":"IF(ISBLANK('TA Indicator Bank'!Z193),\"\",'TA Indicator Bank'!Z193)","v":0},{"$f":"IF(ISBLANK('TA Indicator Bank'!AA193),\"\",'TA Indicator Bank'!AA193)","v":0},{"$f":"IF(ISBLANK('TA Indicator Bank'!AB193),\"\",'TA Indicator Bank'!AB193)","v":1},{"$f":"IF(ISBLANK('TA Indicator Bank'!AC193),\"\",'TA Indicator Bank'!AC193)","v":0},{"$f":"IF(ISBLANK('TA Indicator Bank'!AD193),\"\",'TA Indicator Bank'!AD193)","v":0},{"$f":"IF(ISBLANK('TA Indicator Bank'!AE193),\"\",'TA Indicator Bank'!AE193)","v":0},{"$f":"IF(ISBLANK('TA Indicator Bank'!AF193),\"\",'TA Indicator Bank'!AF193)","v":0},{"$f":"IF(ISBLANK('TA Indicator Bank'!AG193),\"\",'TA Indicator Bank'!AG193)","v":0},{"$f":"IF(ISBLANK('TA Indicator Bank'!AH193),\"\",'TA Indicator Bank'!AH193)","v":0},{"$f":"IF(ISBLANK('TA Indicator Bank'!AI193),\"\",'TA Indicator Bank'!AI193)","v":0},{"$f":"IF(ISBLANK('TA Indicator Bank'!AJ193),\"\",'TA Indicator Bank'!AJ193)","v":0},{"$f":"IF(ISBLANK('TA Indicator Bank'!AK193),\"\",'TA Indicator Bank'!AK193)","v":0},{"$f":"IF(ISBLANK('TA Indicator Bank'!AL193),\"\",'TA Indicator Bank'!AL193)","v":0},{"$f":"IF(ISBLANK('TA Indicator Bank'!AM193),\"\",'TA Indicator Bank'!AM193)","v":0},{"$f":"IF(ISBLANK('TA Indicator Bank'!AN193),\"\",'TA Indicator Bank'!AN193)","v":0},{"$f":"IF(ISBLANK('TA Indicator Bank'!AO193),\"\",'TA Indicator Bank'!AO193)","v":0},{"$f":"IF(ISBLANK('TA Indicator Bank'!AP193),\"\",'TA Indicator Bank'!AP193)","v":0},{"$f":"IF(ISBLANK('TA Indicator Bank'!AQ193),\"\",'TA Indicator Bank'!AQ193)","v":0},{"$f":"IF(ISBLANK('TA Indicator Bank'!AR193),\"\",'TA Indicator Bank'!AR193)","v":1},{"$f":"IF(ISBLANK('TA Indicator Bank'!AS193),\"\",'TA Indicator Bank'!AS193)","v":0},{"$f":"IF(ISBLANK('TA Indicator Bank'!AT193),\"\",'TA Indicator Bank'!AT193)","v":0},{"$f":"IF(AND(J197=1,J$410=1),1,0)","v":0},{"$f":"IF(AND(K197=1,K$410=1),1,0)","v":0},{"$f":"IF(AND(L197=1,L$410=1),1,0)","v":0},{"$f":"IF(AND(M197=1,M$410=1),1,0)","v":0},{"$f":"IF(AND(N197=1,N$410=1),1,0)","v":0},{"$f":"IF(AND(O197=1,O$410=1),1,0)","v":0},{"$f":"IF(AND(P197=1,P$410=1),1,0)","v":0},{"$f":"IF(AND(Q197=1,Q$410=1),1,0)","v":0},{"$f":"IF(AND(R197=1,R$410=1),1,0)","v":0},{"$f":"IF(AND(S197=1,S$410=1),1,0)","v":0},{"$f":"IF(AND(T197=1,T$410=1),1,0)","v":0},{"$f":"IF(AND(U197=1,U$410=1),1,0)","v":0},{"$f":"IF(AND(V197=1,V$410=1),1,0)","v":0},{"$f":"IF(AND(W197=1,W$410=1),1,0)","v":0},1,{"$f":"IF(AND(X197=1,X$410=1),1,0)","v":0},{"$f":"IF(AND(Y197=1,Y$410=1),1,0)","v":0},{"$f":"IF(AND(Z197=1,Z$410=1),1,0)","v":0},{"$f":"IF(AND(AA197=1,AA$410=1),1,0)","v":0},{"$f":"IF(AND(AB197=1,AB$410=1),1,0)","v":1},{"$f":"IF(AND(AC197=1,AC$410=1),1,0)","v":0},{"$f":"IF(AND(AD197=1,AD$410=1),1,0)","v":0},{"$f":"IF(AND(AE197=1,AE$410=1),1,0)","v":0},{"$f":"IF(AND(AF197=1,AF$410=1),1,0)","v":0},1,{"$f":"IF(AND(AG197=1,AG$410=1),1,0)","v":0},{"$f":"IF(AND(AH197=1,AH$410=1),1,0)","v":0},{"$f":"IF(AND(AI197=1,AI$410=1),1,0)","v":0},{"$f":"IF(AND(AJ197=1,AJ$410=1),1,0)","v":0},{"$f":"IF(AND(AK197=1,AK$410=1),1,0)","v":0},{"$f":"IF(AND(AL197=1,AL$410=1),1,0)","v":0},{"$f":"IF(AND(AM197=1,AM$410=1),1,0)","v":0},{"$f":"IF(AND(AN197=1,AN$410=1),1,0)","v":0},{"$f":"IF(AND(AO197=1,AO$410=1),1,0)","v":0},1,{"$f":"IF(AND(AP197=1,AP$410=1),1,0)","v":0},{"$f":"IF(AND(AQ197=1,AQ$410=1),1,0)","v":0},{"$f":"IF(AND(AR197=1,AR$410=1),1,0)","v":1},{"$f":"IF(AND(AS197=1,AS$410=1),1,0)","v":0},{"$f":"IF(AND(AT197=1,AT$410=1),1,0)","v":0},1,1,189,189,{"$f":"IFERROR(SMALL($CL$9:$CL$408,CK197),\"\")","v":189},{"$f":"IFERROR(INDEX($B$9:$I$408,$CM197,COLUMNS($CN$9:CN197)),\"\")","v":"TA189"},{"$f":"IFERROR(INDEX($B$9:$I$408,$CM197,COLUMNS($CN$9:CO197)),\"\")","v":"Number of international submissions (to policy fora, funding opportunities, etc) attributable to programme support"},{"$f":"IFERROR(INDEX($B$9:$I$408,$CM197,COLUMNS($CN$9:CP197)),\"\")","v":"-"},{"$f":"IFERROR(INDEX($B$9:$I$408,$CM197,COLUMNS($CN$9:CQ197)),\"\")","v":"Output"},{"$f":"IFERROR(INDEX($B$9:$I$408,$CM197,COLUMNS($CN$9:CR197)),\"\")","v":"-"},{"$f":"IFERROR(INDEX($B$9:$I$408,$CM197,COLUMNS($CN$9:CS197)),\"\")","v":"International policy support"},{"$f":"IFERROR(INDEX($B$9:$I$408,$CM197,COLUMNS($CN$9:CT197)),\"\")","v":"-"},{"$f":"IFERROR(INDEX($B$9:$I$408,$CM197,COLUMNS($CN$9:CU197)),\"\")","v":"Number"}]
[null,{"$f":"IF(ISBLANK('TA Indicator Bank'!B194),\"\",'TA Indicator Bank'!B194)","v":"TA190"},{"$f":"IF(ISBLANK('TA Indicator Bank'!C194),\"\",'TA Indicator Bank'!C194)","v":"Change in number of cases of policy enforcement"},{"$f":"IF(ISBLANK('TA Indicator Bank'!D194),\"\",'TA Indicator Bank'!D194)","v":"-"},{"$f":"IF(ISBLANK('TA Indicator Bank'!E194),\"\",'TA Indicator Bank'!E194)","v":"Outcome"},{"$f":"IF(ISBLANK('TA Indicator Bank'!F194),\"\",'TA Indicator Bank'!F194)","v":"-"},{"$f":"IF(ISBLANK('TA Indicator Bank'!G194),\"\",'TA Indicator Bank'!G194)","v":"-"},{"$f":"IF(ISBLANK('TA Indicator Bank'!H194),\"\",'TA Indicator Bank'!H194)","v":"Increased or improved policy development or execution; Improved operation of processes or assets (inc. e.g. electricity grid stability, agricultural livelihoods, forest management)"},{"$f":"IF(ISBLANK('TA Indicator Bank'!I194),\"\",'TA Indicator Bank'!I194)","v":"Number"},{"$f":"IF(ISBLANK('TA Indicator Bank'!J194),\"\",'TA Indicator Bank'!J194)","v":0},{"$f":"IF(ISBLANK('TA Indicator Bank'!K194),\"\",'TA Indicator Bank'!K194)","v":0},{"$f":"IF(ISBLANK('TA Indicator Bank'!L194),\"\",'TA Indicator Bank'!L194)","v":0},{"$f":"IF(ISBLANK('TA Indicator Bank'!M194),\"\",'TA Indicator Bank'!M194)","v":0},{"$f":"IF(ISBLANK('TA Indicator Bank'!N194),\"\",'TA Indicator Bank'!N194)","v":0},{"$f":"IF(ISBLANK('TA Indicator Bank'!O194),\"\",'TA Indicator Bank'!O194)","v":0},{"$f":"IF(ISBLANK('TA Indicator Bank'!P194),\"\",'TA Indicator Bank'!P194)","v":0},{"$f":"IF(ISBLANK('TA Indicator Bank'!Q194),\"\",'TA Indicator Bank'!Q194)","v":0},{"$f":"IF(ISBLANK('TA Indicator Bank'!R194),\"\",'TA Indicator Bank'!R194)","v":0},{"$f":"IF(ISBLANK('TA Indicator Bank'!S194),\"\",'TA Indicator Bank'!S194)","v":0},{"$f":"IF(ISBLANK('TA Indicator Bank'!T194),\"\",'TA Indicator Bank'!T194)","v":0},{"$f":"IF(ISBLANK('TA Indicator Bank'!U194),\"\",'TA Indicator Bank'!U194)","v":0},{"$f":"IF(ISBLANK('TA Indicator Bank'!V194),\"\",'TA Indicator Bank'!V194)","v":0},{"$f":"IF(ISBLANK('TA Indicator Bank'!W194),\"\",'TA Indicator Bank'!W194)","v":0},{"$f":"IF(ISBLANK('TA Indicator Bank'!X194),\"\",'TA Indicator Bank'!X194)","v":0},{"$f":"IF(ISBLANK('TA Indicator Bank'!Y194),\"\",'TA Indicator Bank'!Y194)","v":0},{"$f":"IF(ISBLANK('TA Indicator Bank'!Z194),\"\",'TA Indicator Bank'!Z194)","v":0},{"$f":"IF(ISBLANK('TA Indicator Bank'!AA194),\"\",'TA Indicator Bank'!AA194)","v":0},{"$f":"IF(ISBLANK('TA Indicator Bank'!AB194),\"\",'TA Indicator Bank'!AB194)","v":0},{"$f":"IF(ISBLANK('TA Indicator Bank'!AC194),\"\",'TA Indicator Bank'!AC194)","v":0},{"$f":"IF(ISBLANK('TA Indicator Bank'!AD194),\"\",'TA Indicator Bank'!AD194)","v":0},{"$f":"IF(ISBLANK('TA Indicator Bank'!AE194),\"\",'TA Indicator Bank'!AE194)","v":0},{"$f":"IF(ISBLANK('TA Indicator Bank'!AF194),\"\",'TA Indicator Bank'!AF194)","v":0},{"$f":"IF(ISBLANK('TA Indicator Bank'!AG194),\"\",'TA Indicator Bank'!AG194)","v":1},{"$f":"IF(ISBLANK('TA Indicator Bank'!AH194),\"\",'TA Indicator Bank'!AH194)","v":0},{"$f":"IF(ISBLANK('TA Indicator Bank'!AI194),\"\",'TA Indicator Bank'!AI194)","v":0},{"$f":"IF(ISBLANK('TA Indicator Bank'!AJ194),\"\",'TA Indicator Bank'!AJ194)","v":0},{"$f":"IF(ISBLANK('TA Indicator Bank'!AK194),\"\",'TA Indicator Bank'!AK194)","v":0},{"$f":"IF(ISBLANK('TA Indicator Bank'!AL194),\"\",'TA Indicator Bank'!AL194)","v":1},{"$f":"IF(ISBLANK('TA Indicator Bank'!AM194),\"\",'TA Indicator Bank'!AM194)","v":0},{"$f":"IF(ISBLANK('TA Indicator Bank'!AN194),\"\",'TA Indicator Bank'!AN194)","v":0},{"$f":"IF(ISBLANK('TA Indicator Bank'!AO194),\"\",'TA Indicator Bank'!AO194)","v":0},{"$f":"IF(ISBLANK('TA Indicator Bank'!AP194),\"\",'TA Indicator Bank'!AP194)","v":0},{"$f":"IF(ISBLANK('TA Indicator Bank'!AQ194),\"\",'TA Indicator Bank'!AQ194)","v":0},{"$f":"IF(ISBLANK('TA Indicator Bank'!AR194),\"\",'TA Indicator Bank'!AR194)","v":0},{"$f":"IF(ISBLANK('TA Indicator Bank'!AS194),\"\",'TA Indicator Bank'!AS194)","v":1},{"$f":"IF(ISBLANK('TA Indicator Bank'!AT194),\"\",'TA Indicator Bank'!AT194)","v":0},{"$f":"IF(AND(J198=1,J$410=1),1,0)","v":0},{"$f":"IF(AND(K198=1,K$410=1),1,0)","v":0},{"$f":"IF(AND(L198=1,L$410=1),1,0)","v":0},{"$f":"IF(AND(M198=1,M$410=1),1,0)","v":0},{"$f":"IF(AND(N198=1,N$410=1),1,0)","v":0},{"$f":"IF(AND(O198=1,O$410=1),1,0)","v":0},{"$f":"IF(AND(P198=1,P$410=1),1,0)","v":0},{"$f":"IF(AND(Q198=1,Q$410=1),1,0)","v":0},{"$f":"IF(AND(R198=1,R$410=1),1,0)","v":0},{"$f":"IF(AND(S198=1,S$410=1),1,0)","v":0},{"$f":"IF(AND(T198=1,T$410=1),1,0)","v":0},{"$f":"IF(AND(U198=1,U$410=1),1,0)","v":0},{"$f":"IF(AND(V198=1,V$410=1),1,0)","v":0},{"$f":"IF(AND(W198=1,W$410=1),1,0)","v":0},1,{"$f":"IF(AND(X198=1,X$410=1),1,0)","v":0},{"$f":"IF(AND(Y198=1,Y$410=1),1,0)","v":0},{"$f":"IF(AND(Z198=1,Z$410=1),1,0)","v":0},{"$f":"IF(AND(AA198=1,AA$410=1),1,0)","v":0},{"$f":"IF(AND(AB198=1,AB$410=1),1,0)","v":0},{"$f":"IF(AND(AC198=1,AC$410=1),1,0)","v":0},{"$f":"IF(AND(AD198=1,AD$410=1),1,0)","v":0},{"$f":"IF(AND(AE198=1,AE$410=1),1,0)","v":0},{"$f":"IF(AND(AF198=1,AF$410=1),1,0)","v":0},1,{"$f":"IF(AND(AG198=1,AG$410=1),1,0)","v":1},{"$f":"IF(AND(AH198=1,AH$410=1),1,0)","v":0},{"$f":"IF(AND(AI198=1,AI$410=1),1,0)","v":0},{"$f":"IF(AND(AJ198=1,AJ$410=1),1,0)","v":0},{"$f":"IF(AND(AK198=1,AK$410=1),1,0)","v":0},{"$f":"IF(AND(AL198=1,AL$410=1),1,0)","v":1},{"$f":"IF(AND(AM198=1,AM$410=1),1,0)","v":0},{"$f":"IF(AND(AN198=1,AN$410=1),1,0)","v":0},{"$f":"IF(AND(AO198=1,AO$410=1),1,0)","v":0},1,{"$f":"IF(AND(AP198=1,AP$410=1),1,0)","v":0},{"$f":"IF(AND(AQ198=1,AQ$410=1),1,0)","v":0},{"$f":"IF(AND(AR198=1,AR$410=1),1,0)","v":0},{"$f":"IF(AND(AS198=1,AS$410=1),1,0)","v":1},{"$f":"IF(AND(AT198=1,AT$410=1),1,0)","v":0},1,1,190,190,{"$f":"IFERROR(SMALL($CL$9:$CL$408,CK198),\"\")","v":190},{"$f":"IFERROR(INDEX($B$9:$I$408,$CM198,COLUMNS($CN$9:CN198)),\"\")","v":"TA190"},{"$f":"IFERROR(INDEX($B$9:$I$408,$CM198,COLUMNS($CN$9:CO198)),\"\")","v":"Change in number of cases of policy enforcement"},{"$f":"IFERROR(INDEX($B$9:$I$408,$CM198,COLUMNS($CN$9:CP198)),\"\")","v":"-"},{"$f":"IFERROR(INDEX($B$9:$I$408,$CM198,COLUMNS($CN$9:CQ198)),\"\")","v":"Outcome"},{"$f":"IFERROR(INDEX($B$9:$I$408,$CM198,COLUMNS($CN$9:CR198)),\"\")","v":"-"},{"$f":"IFERROR(INDEX($B$9:$I$408,$CM198,COLUMNS($CN$9:CS198)),\"\")","v":"-"},{"$f":"IFERROR(INDEX($B$9:$I$408,$CM198,COLUMNS($CN$9:CT198)),\"\")","v":"Increased or improved policy development or execution; Improved operation of processes or assets (inc. e.g. electricity grid stability, agricultural livelihoods, forest management)"},{"$f":"IFERROR(INDEX($B$9:$I$408,$CM198,COLUMNS($CN$9:CU198)),\"\")","v":"Number"}]
[null,{"$f":"IF(ISBLANK('TA Indicator Bank'!B195),\"\",'TA Indicator Bank'!B195)","v":"TA191"},{"$f":"IF(ISBLANK('TA Indicator Bank'!C195),\"\",'TA Indicator Bank'!C195)","v":"Number of policy procedures/framework strengthened "},{"$f":"IF(ISBLANK('TA Indicator Bank'!D195),\"\",'TA Indicator Bank'!D195)","v":"-"},{"$f":"IF(ISBLANK('TA Indicator Bank'!E195),\"\",'TA Indicator Bank'!E195)","v":"Outcome"},{"$f":"IF(ISBLANK('TA Indicator Bank'!F195),\"\",'TA Indicator Bank'!F195)","v":"-"},{"$f":"IF(ISBLANK('TA Indicator Bank'!G195),\"\",'TA Indicator Bank'!G195)","v":"-"},{"$f":"IF(ISBLANK('TA Indicator Bank'!H195),\"\",'TA Indicator Bank'!H195)","v":"Increased or improved policy development or execution"},{"$f":"IF(ISBLANK('TA Indicator Bank'!I195),\"\",'TA Indicator Bank'!I195)","v":"Number"},{"$f":"IF(ISBLANK('TA Indicator Bank'!J195),\"\",'TA Indicator Bank'!J195)","v":0},{"$f":"IF(ISBLANK('TA Indicator Bank'!K195),\"\",'TA Indicator Bank'!K195)","v":0},{"$f":"IF(ISBLANK('TA Indicator Bank'!L195),\"\",'TA Indicator Bank'!L195)","v":0},{"$f":"IF(ISBLANK('TA Indicator Bank'!M195),\"\",'TA Indicator Bank'!M195)","v":0},{"$f":"IF(ISBLANK('TA Indicator Bank'!N195),\"\",'TA Indicator Bank'!N195)","v":0},{"$f":"IF(ISBLANK('TA Indicator Bank'!O195),\"\",'TA Indicator Bank'!O195)","v":0},{"$f":"IF(ISBLANK('TA Indicator Bank'!P195),\"\",'TA Indicator Bank'!P195)","v":0},{"$f":"IF(ISBLANK('TA Indicator Bank'!Q195),\"\",'TA Indicator Bank'!Q195)","v":0},{"$f":"IF(ISBLANK('TA Indicator Bank'!R195),\"\",'TA Indicator Bank'!R195)","v":0},{"$f":"IF(ISBLANK('TA Indicator Bank'!S195),\"\",'TA Indicator Bank'!S195)","v":0},{"$f":"IF(ISBLANK('TA Indicator Bank'!T195),\"\",'TA Indicator Bank'!T195)","v":0},{"$f":"IF(ISBLANK('TA Indicator Bank'!U195),\"\",'TA Indicator Bank'!U195)","v":0},{"$f":"IF(ISBLANK('TA Indicator Bank'!V195),\"\",'TA Indicator Bank'!V195)","v":0},{"$f":"IF(ISBLANK('TA Indicator Bank'!W195),\"\",'TA Indicator Bank'!W195)","v":0},{"$f":"IF(ISBLANK('TA Indicator Bank'!X195),\"\",'TA Indicator Bank'!X195)","v":0},{"$f":"IF(ISBLANK('TA Indicator Bank'!Y195),\"\",'TA Indicator Bank'!Y195)","v":0},{"$f":"IF(ISBLANK('TA Indicator Bank'!Z195),\"\",'TA Indicator Bank'!Z195)","v":0},{"$f":"IF(ISBLANK('TA Indicator Bank'!AA195),\"\",'TA Indicator Bank'!AA195)","v":0},{"$f":"IF(ISBLANK('TA Indicator Bank'!AB195),\"\",'TA Indicator Bank'!AB195)","v":0},{"$f":"IF(ISBLANK('TA Indicator Bank'!AC195),\"\",'TA Indicator Bank'!AC195)","v":0},{"$f":"IF(ISBLANK('TA Indicator Bank'!AD195),\"\",'TA Indicator Bank'!AD195)","v":0},{"$f":"IF(ISBLANK('TA Indicator Bank'!AE195),\"\",'TA Indicator Bank'!AE195)","v":0},{"$f":"IF(ISBLANK('TA Indicator Bank'!AF195),\"\",'TA Indicator Bank'!AF195)","v":0},{"$f":"IF(ISBLANK('TA Indicator Bank'!AG195),\"\",'TA Indicator Bank'!AG195)","v":1},{"$f":"IF(ISBLANK('TA Indicator Bank'!AH195),\"\",'TA Indicator Bank'!AH195)","v":0},{"$f":"IF(ISBLANK('TA Indicator Bank'!AI195),\"\",'TA Indicator Bank'!AI195)","v":0},{"$f":"IF(ISBLANK('TA Indicator Bank'!AJ195),\"\",'TA Indicator Bank'!AJ195)","v":0},{"$f":"IF(ISBLANK('TA Indicator Bank'!AK195),\"\",'TA Indicator Bank'!AK195)","v":0},{"$f":"IF(ISBLANK('TA Indicator Bank'!AL195),\"\",'TA Indicator Bank'!AL195)","v":0},{"$f":"IF(ISBLANK('TA Indicator Bank'!AM195),\"\",'TA Indicator Bank'!AM195)","v":0},{"$f":"IF(ISBLANK('TA Indicator Bank'!AN195),\"\",'TA Indicator Bank'!AN195)","v":0},{"$f":"IF(ISBLANK('TA Indicator Bank'!AO195),\"\",'TA Indicator Bank'!AO195)","v":0},{"$f":"IF(ISBLANK('TA Indicator Bank'!AP195),\"\",'TA Indicator Bank'!AP195)","v":0},{"$f":"IF(ISBLANK('TA Indicator Bank'!AQ195),\"\",'TA Indicator Bank'!AQ195)","v":0},{"$f":"IF(ISBLANK('TA Indicator Bank'!AR195),\"\",'TA Indicator Bank'!AR195)","v":0},{"$f":"IF(ISBLANK('TA Indicator Bank'!AS195),\"\",'TA Indicator Bank'!AS195)","v":1},{"$f":"IF(ISBLANK('TA Indicator Bank'!AT195),\"\",'TA Indicator Bank'!AT195)","v":0},{"$f":"IF(AND(J199=1,J$410=1),1,0)","v":0},{"$f":"IF(AND(K199=1,K$410=1),1,0)","v":0},{"$f":"IF(AND(L199=1,L$410=1),1,0)","v":0},{"$f":"IF(AND(M199=1,M$410=1),1,0)","v":0},{"$f":"IF(AND(N199=1,N$410=1),1,0)","v":0},{"$f":"IF(AND(O199=1,O$410=1),1,0)","v":0},{"$f":"IF(AND(P199=1,P$410=1),1,0)","v":0},{"$f":"IF(AND(Q199=1,Q$410=1),1,0)","v":0},{"$f":"IF(AND(R199=1,R$410=1),1,0)","v":0},{"$f":"IF(AND(S199=1,S$410=1),1,0)","v":0},{"$f":"IF(AND(T199=1,T$410=1),1,0)","v":0},{"$f":"IF(AND(U199=1,U$410=1),1,0)","v":0},{"$f":"IF(AND(V199=1,V$410=1),1,0)","v":0},{"$f":"IF(AND(W199=1,W$410=1),1,0)","v":0},1,{"$f":"IF(AND(X199=1,X$410=1),1,0)","v":0},{"$f":"IF(AND(Y199=1,Y$410=1),1,0)","v":0},{"$f":"IF(AND(Z199=1,Z$410=1),1,0)","v":0},{"$f":"IF(AND(AA199=1,AA$410=1),1,0)","v":0},{"$f":"IF(AND(AB199=1,AB$410=1),1,0)","v":0},{"$f":"IF(AND(AC199=1,AC$410=1),1,0)","v":0},{"$f":"IF(AND(AD199=1,AD$410=1),1,0)","v":0},{"$f":"IF(AND(AE199=1,AE$410=1),1,0)","v":0},{"$f":"IF(AND(AF199=1,AF$410=1),1,0)","v":0},1,{"$f":"IF(AND(AG199=1,AG$410=1),1,0)","v":1},{"$f":"IF(AND(AH199=1,AH$410=1),1,0)","v":0},{"$f":"IF(AND(AI199=1,AI$410=1),1,0)","v":0},{"$f":"IF(AND(AJ199=1,AJ$410=1),1,0)","v":0},{"$f":"IF(AND(AK199=1,AK$410=1),1,0)","v":0},{"$f":"IF(AND(AL199=1,AL$410=1),1,0)","v":0},{"$f":"IF(AND(AM199=1,AM$410=1),1,0)","v":0},{"$f":"IF(AND(AN199=1,AN$410=1),1,0)","v":0},{"$f":"IF(AND(AO199=1,AO$410=1),1,0)","v":0},1,{"$f":"IF(AND(AP199=1,AP$410=1),1,0)","v":0},{"$f":"IF(AND(AQ199=1,AQ$410=1),1,0)","v":0},{"$f":"IF(AND(AR199=1,AR$410=1),1,0)","v":0},{"$f":"IF(AND(AS199=1,AS$410=1),1,0)","v":1},{"$f":"IF(AND(AT199=1,AT$410=1),1,0)","v":0},1,1,191,191,{"$f":"IFERROR(SMALL($CL$9:$CL$408,CK199),\"\")","v":191},{"$f":"IFERROR(INDEX($B$9:$I$408,$CM199,COLUMNS($CN$9:CN199)),\"\")","v":"TA191"},{"$f":"IFERROR(INDEX($B$9:$I$408,$CM199,COLUMNS($CN$9:CO199)),\"\")","v":"Number of policy procedures/framework strengthened "},{"$f":"IFERROR(INDEX($B$9:$I$408,$CM199,COLUMNS($CN$9:CP199)),\"\")","v":"-"},{"$f":"IFERROR(INDEX($B$9:$I$408,$CM199,COLUMNS($CN$9:CQ199)),\"\")","v":"Outcome"},{"$f":"IFERROR(INDEX($B$9:$I$408,$CM199,COLUMNS($CN$9:CR199)),\"\")","v":"-"},{"$f":"IFERROR(INDEX($B$9:$I$408,$CM199,COLUMNS($CN$9:CS199)),\"\")","v":"-"},{"$f":"IFERROR(INDEX($B$9:$I$408,$CM199,COLUMNS($CN$9:CT199)),\"\")","v":"Increased or improved policy development or execution"},{"$f":"IFERROR(INDEX($B$9:$I$408,$CM199,COLUMNS($CN$9:CU199)),\"\")","v":"Number"}]
[null,{"$f":"IF(ISBLANK('TA Indicator Bank'!B196),\"\",'TA Indicator Bank'!B196)","v":"TA192"},{"$f":"IF(ISBLANK('TA Indicator Bank'!C196),\"\",'TA Indicator Bank'!C196)","v":"Percentage/number of policies towards end goal programme has supported"},{"$f":"IF(ISBLANK('TA Indicator Bank'!D196),\"\",'TA Indicator Bank'!D196)","v":"-"},{"$f":"IF(ISBLANK('TA Indicator Bank'!E196),\"\",'TA Indicator Bank'!E196)","v":"Outcome"},{"$f":"IF(ISBLANK('TA Indicator Bank'!F196),\"\",'TA Indicator Bank'!F196)","v":"-"},{"$f":"IF(ISBLANK('TA Indicator Bank'!G196),\"\",'TA Indicator Bank'!G196)","v":"-"},{"$f":"IF(ISBLANK('TA Indicator Bank'!H196),\"\",'TA Indicator Bank'!H196)","v":"Increased or improved policy development or execution"},{"$f":"IF(ISBLANK('TA Indicator Bank'!I196),\"\",'TA Indicator Bank'!I196)","v":"Number, Percentage"},{"$f":"IF(ISBLANK('TA Indicator Bank'!J196),\"\",'TA Indicator Bank'!J196)","v":0},{"$f":"IF(ISBLANK('TA Indicator Bank'!K196),\"\",'TA Indicator Bank'!K196)","v":0},{"$f":"IF(ISBLANK('TA Indicator Bank'!L196),\"\",'TA Indicator Bank'!L196)","v":0},{"$f":"IF(ISBLANK('TA Indicator Bank'!M196),\"\",'TA Indicator Bank'!M196)","v":0},{"$f":"IF(ISBLANK('TA Indicator Bank'!N196),\"\",'TA Indicator Bank'!N196)","v":0},{"$f":"IF(ISBLANK('TA Indicator Bank'!O196),\"\",'TA Indicator Bank'!O196)","v":0},{"$f":"IF(ISBLANK('TA Indicator Bank'!P196),\"\",'TA Indicator Bank'!P196)","v":0},{"$f":"IF(ISBLANK('TA Indicator Bank'!Q196),\"\",'TA Indicator Bank'!Q196)","v":0},{"$f":"IF(ISBLANK('TA Indicator Bank'!R196),\"\",'TA Indicator Bank'!R196)","v":0},{"$f":"IF(ISBLANK('TA Indicator Bank'!S196),\"\",'TA Indicator Bank'!S196)","v":0},{"$f":"IF(ISBLANK('TA Indicator Bank'!T196),\"\",'TA Indicator Bank'!T196)","v":0},{"$f":"IF(ISBLANK('TA Indicator Bank'!U196),\"\",'TA Indicator Bank'!U196)","v":0},{"$f":"IF(ISBLANK('TA Indicator Bank'!V196),\"\",'TA Indicator Bank'!V196)","v":0},{"$f":"IF(ISBLANK('TA Indicator Bank'!W196),\"\",'TA Indicator Bank'!W196)","v":0},{"$f":"IF(ISBLANK('TA Indicator Bank'!X196),\"\",'TA Indicator Bank'!X196)","v":0},{"$f":"IF(ISBLANK('TA Indicator Bank'!Y196),\"\",'TA Indicator Bank'!Y196)","v":0},{"$f":"IF(ISBLANK('TA Indicator Bank'!Z196),\"\",'TA Indicator Bank'!Z196)","v":0},{"$f":"IF(ISBLANK('TA Indicator Bank'!AA196),\"\",'TA Indicator Bank'!AA196)","v":0},{"$f":"IF(ISBLANK('TA Indicator Bank'!AB196),\"\",'TA Indicator Bank'!AB196)","v":0},{"$f":"IF(ISBLANK('TA Indicator Bank'!AC196),\"\",'TA Indicator Bank'!AC196)","v":0},{"$f":"IF(ISBLANK('TA Indicator Bank'!AD196),\"\",'TA Indicator Bank'!AD196)","v":0},{"$f":"IF(ISBLANK('TA Indicator Bank'!AE196),\"\",'TA Indicator Bank'!AE196)","v":0},{"$f":"IF(ISBLANK('TA Indicator Bank'!AF196),\"\",'TA Indicator Bank'!AF196)","v":0},{"$f":"IF(ISBLANK('TA Indicator Bank'!AG196),\"\",'TA Indicator Bank'!AG196)","v":1},{"$f":"IF(ISBLANK('TA Indicator Bank'!AH196),\"\",'TA Indicator Bank'!AH196)","v":0},{"$f":"IF(ISBLANK('TA Indicator Bank'!AI196),\"\",'TA Indicator Bank'!AI196)","v":0},{"$f":"IF(ISBLANK('TA Indicator Bank'!AJ196),\"\",'TA Indicator Bank'!AJ196)","v":0},{"$f":"IF(ISBLANK('TA Indicator Bank'!AK196),\"\",'TA Indicator Bank'!AK196)","v":0},{"$f":"IF(ISBLANK('TA Indicator Bank'!AL196),\"\",'TA Indicator Bank'!AL196)","v":0},{"$f":"IF(ISBLANK('TA Indicator Bank'!AM196),\"\",'TA Indicator Bank'!AM196)","v":0},{"$f":"IF(ISBLANK('TA Indicator Bank'!AN196),\"\",'TA Indicator Bank'!AN196)","v":0},{"$f":"IF(ISBLANK('TA Indicator Bank'!AO196),\"\",'TA Indicator Bank'!AO196)","v":0},{"$f":"IF(ISBLANK('TA Indicator Bank'!AP196),\"\",'TA Indicator Bank'!AP196)","v":0},{"$f":"IF(ISBLANK('TA Indicator Bank'!AQ196),\"\",'TA Indicator Bank'!AQ196)","v":0},{"$f":"IF(ISBLANK('TA Indicator Bank'!AR196),\"\",'TA Indicator Bank'!AR196)","v":0},{"$f":"IF(ISBLANK('TA Indicator Bank'!AS196),\"\",'TA Indicator Bank'!AS196)","v":1},{"$f":"IF(ISBLANK('TA Indicator Bank'!AT196),\"\",'TA Indicator Bank'!AT196)","v":0},{"$f":"IF(AND(J200=1,J$410=1),1,0)","v":0},{"$f":"IF(AND(K200=1,K$410=1),1,0)","v":0},{"$f":"IF(AND(L200=1,L$410=1),1,0)","v":0},{"$f":"IF(AND(M200=1,M$410=1),1,0)","v":0},{"$f":"IF(AND(N200=1,N$410=1),1,0)","v":0},{"$f":"IF(AND(O200=1,O$410=1),1,0)","v":0},{"$f":"IF(AND(P200=1,P$410=1),1,0)","v":0},{"$f":"IF(AND(Q200=1,Q$410=1),1,0)","v":0},{"$f":"IF(AND(R200=1,R$410=1),1,0)","v":0},{"$f":"IF(AND(S200=1,S$410=1),1,0)","v":0},{"$f":"IF(AND(T200=1,T$410=1),1,0)","v":0},{"$f":"IF(AND(U200=1,U$410=1),1,0)","v":0},{"$f":"IF(AND(V200=1,V$410=1),1,0)","v":0},{"$f":"IF(AND(W200=1,W$410=1),1,0)","v":0},1,{"$f":"IF(AND(X200=1,X$410=1),1,0)","v":0},{"$f":"IF(AND(Y200=1,Y$410=1),1,0)","v":0},{"$f":"IF(AND(Z200=1,Z$410=1),1,0)","v":0},{"$f":"IF(AND(AA200=1,AA$410=1),1,0)","v":0},{"$f":"IF(AND(AB200=1,AB$410=1),1,0)","v":0},{"$f":"IF(AND(AC200=1,AC$410=1),1,0)","v":0},{"$f":"IF(AND(AD200=1,AD$410=1),1,0)","v":0},{"$f":"IF(AND(AE200=1,AE$410=1),1,0)","v":0},{"$f":"IF(AND(AF200=1,AF$410=1),1,0)","v":0},1,{"$f":"IF(AND(AG200=1,AG$410=1),1,0)","v":1},{"$f":"IF(AND(AH200=1,AH$410=1),1,0)","v":0},{"$f":"IF(AND(AI200=1,AI$410=1),1,0)","v":0},{"$f":"IF(AND(AJ200=1,AJ$410=1),1,0)","v":0},{"$f":"IF(AND(AK200=1,AK$410=1),1,0)","v":0},{"$f":"IF(AND(AL200=1,AL$410=1),1,0)","v":0},{"$f":"IF(AND(AM200=1,AM$410=1),1,0)","v":0},{"$f":"IF(AND(AN200=1,AN$410=1),1,0)","v":0},{"$f":"IF(AND(AO200=1,AO$410=1),1,0)","v":0},1,{"$f":"IF(AND(AP200=1,AP$410=1),1,0)","v":0},{"$f":"IF(AND(AQ200=1,AQ$410=1),1,0)","v":0},{"$f":"IF(AND(AR200=1,AR$410=1),1,0)","v":0},{"$f":"IF(AND(AS200=1,AS$410=1),1,0)","v":1},{"$f":"IF(AND(AT200=1,AT$410=1),1,0)","v":0},1,1,192,192,{"$f":"IFERROR(SMALL($CL$9:$CL$408,CK200),\"\")","v":192},{"$f":"IFERROR(INDEX($B$9:$I$408,$CM200,COLUMNS($CN$9:CN200)),\"\")","v":"TA192"},{"$f":"IFERROR(INDEX($B$9:$I$408,$CM200,COLUMNS($CN$9:CO200)),\"\")","v":"Percentage/number of policies towards end goal programme has supported"},{"$f":"IFERROR(INDEX($B$9:$I$408,$CM200,COLUMNS($CN$9:CP200)),\"\")","v":"-"},{"$f":"IFERROR(INDEX($B$9:$I$408,$CM200,COLUMNS($CN$9:CQ200)),\"\")","v":"Outcome"},{"$f":"IFERROR(INDEX($B$9:$I$408,$CM200,COLUMNS($CN$9:CR200)),\"\")","v":"-"},{"$f":"IFERROR(INDEX($B$9:$I$408,$CM200,COLUMNS($CN$9:CS200)),\"\")","v":"-"},{"$f":"IFERROR(INDEX($B$9:$I$408,$CM200,COLUMNS($CN$9:CT200)),\"\")","v":"Increased or improved policy development or execution"},{"$f":"IFERROR(INDEX($B$9:$I$408,$CM200,COLUMNS($CN$9:CU200)),\"\")","v":"Number, Percentage"}]
[null,{"$f":"IF(ISBLANK('TA Indicator Bank'!B197),\"\",'TA Indicator Bank'!B197)","v":"TA193"},{"$f":"IF(ISBLANK('TA Indicator Bank'!C197),\"\",'TA Indicator Bank'!C197)","v":"Number of countries reporting policy procedures/framework strengthened "},{"$f":"IF(ISBLANK('TA Indicator Bank'!D197),\"\",'TA Indicator Bank'!D197)","v":"-"},{"$f":"IF(ISBLANK('TA Indicator Bank'!E197),\"\",'TA Indicator Bank'!E197)","v":"Outcome"},{"$f":"IF(ISBLANK('TA Indicator Bank'!F197),\"\",'TA Indicator Bank'!F197)","v":"-"},{"$f":"IF(ISBLANK('TA Indicator Bank'!G197),\"\",'TA Indicator Bank'!G197)","v":"-"},{"$f":"IF(ISBLANK('TA Indicator Bank'!H197),\"\",'TA Indicator Bank'!H197)","v":"Increased or improved policy development or execution"},{"$f":"IF(ISBLANK('TA Indicator Bank'!I197),\"\",'TA Indicator Bank'!I197)","v":"Number"},{"$f":"IF(ISBLANK('TA Indicator Bank'!J197),\"\",'TA Indicator Bank'!J197)","v":0},{"$f":"IF(ISBLANK('TA Indicator Bank'!K197),\"\",'TA Indicator Bank'!K197)","v":0},{"$f":"IF(ISBLANK('TA Indicator Bank'!L197),\"\",'TA Indicator Bank'!L197)","v":0},{"$f":"IF(ISBLANK('TA Indicator Bank'!M197),\"\",'TA Indicator Bank'!M197)","v":0},{"$f":"IF(ISBLANK('TA Indicator Bank'!N197),\"\",'TA Indicator Bank'!N197)","v":0},{"$f":"IF(ISBLANK('TA Indicator Bank'!O197),\"\",'TA Indicator Bank'!O197)","v":0},{"$f":"IF(ISBLANK('TA Indicator Bank'!P197),\"\",'TA Indicator Bank'!P197)","v":0},{"$f":"IF(ISBLANK('TA Indicator Bank'!Q197),\"\",'TA Indicator Bank'!Q197)","v":0},{"$f":"IF(ISBLANK('TA Indicator Bank'!R197),\"\",'TA Indicator Bank'!R197)","v":0},{"$f":"IF(ISBLANK('TA Indicator Bank'!S197),\"\",'TA Indicator Bank'!S197)","v":0},{"$f":"IF(ISBLANK('TA Indicator Bank'!T197),\"\",'TA Indicator Bank'!T197)","v":0},{"$f":"IF(ISBLANK('TA Indicator Bank'!U197),\"\",'TA Indicator Bank'!U197)","v":0},{"$f":"IF(ISBLANK('TA Indicator Bank'!V197),\"\",'TA Indicator Bank'!V197)","v":0},{"$f":"IF(ISBLANK('TA Indicator Bank'!W197),\"\",'TA Indicator Bank'!W197)","v":0},{"$f":"IF(ISBLANK('TA Indicator Bank'!X197),\"\",'TA Indicator Bank'!X197)","v":0},{"$f":"IF(ISBLANK('TA Indicator Bank'!Y197),\"\",'TA Indicator Bank'!Y197)","v":0},{"$f":"IF(ISBLANK('TA Indicator Bank'!Z197),\"\",'TA Indicator Bank'!Z197)","v":0},{"$f":"IF(ISBLANK('TA Indicator Bank'!AA197),\"\",'TA Indicator Bank'!AA197)","v":0},{"$f":"IF(ISBLANK('TA Indicator Bank'!AB197),\"\",'TA Indicator Bank'!AB197)","v":0},{"$f":"IF(ISBLANK('TA Indicator Bank'!AC197),\"\",'TA Indicator Bank'!AC197)","v":0},{"$f":"IF(ISBLANK('TA Indicator Bank'!AD197),\"\",'TA Indicator Bank'!AD197)","v":0},{"$f":"IF(ISBLANK('TA Indicator Bank'!AE197),\"\",'TA Indicator Bank'!AE197)","v":0},{"$f":"IF(ISBLANK('TA Indicator Bank'!AF197),\"\",'TA Indicator Bank'!AF197)","v":0},{"$f":"IF(ISBLANK('TA Indicator Bank'!AG197),\"\",'TA Indicator Bank'!AG197)","v":1},{"$f":"IF(ISBLANK('TA Indicator Bank'!AH197),\"\",'TA Indicator Bank'!AH197)","v":0},{"$f":"IF(ISBLANK('TA Indicator Bank'!AI197),\"\",'TA Indicator Bank'!AI197)","v":0},{"$f":"IF(ISBLANK('TA Indicator Bank'!AJ197),\"\",'TA Indicator Bank'!AJ197)","v":0},{"$f":"IF(ISBLANK('TA Indicator Bank'!AK197),\"\",'TA Indicator Bank'!AK197)","v":0},{"$f":"IF(ISBLANK('TA Indicator Bank'!AL197),\"\",'TA Indicator Bank'!AL197)","v":0},{"$f":"IF(ISBLANK('TA Indicator Bank'!AM197),\"\",'TA Indicator Bank'!AM197)","v":0},{"$f":"IF(ISBLANK('TA Indicator Bank'!AN197),\"\",'TA Indicator Bank'!AN197)","v":0},{"$f":"IF(ISBLANK('TA Indicator Bank'!AO197),\"\",'TA Indicator Bank'!AO197)","v":0},{"$f":"IF(ISBLANK('TA Indicator Bank'!AP197),\"\",'TA Indicator Bank'!AP197)","v":0},{"$f":"IF(ISBLANK('TA Indicator Bank'!AQ197),\"\",'TA Indicator Bank'!AQ197)","v":0},{"$f":"IF(ISBLANK('TA Indicator Bank'!AR197),\"\",'TA Indicator Bank'!AR197)","v":0},{"$f":"IF(ISBLANK('TA Indicator Bank'!AS197),\"\",'TA Indicator Bank'!AS197)","v":1},{"$f":"IF(ISBLANK('TA Indicator Bank'!AT197),\"\",'TA Indicator Bank'!AT197)","v":0},{"$f":"IF(AND(J201=1,J$410=1),1,0)","v":0},{"$f":"IF(AND(K201=1,K$410=1),1,0)","v":0},{"$f":"IF(AND(L201=1,L$410=1),1,0)","v":0},{"$f":"IF(AND(M201=1,M$410=1),1,0)","v":0},{"$f":"IF(AND(N201=1,N$410=1),1,0)","v":0},{"$f":"IF(AND(O201=1,O$410=1),1,0)","v":0},{"$f":"IF(AND(P201=1,P$410=1),1,0)","v":0},{"$f":"IF(AND(Q201=1,Q$410=1),1,0)","v":0},{"$f":"IF(AND(R201=1,R$410=1),1,0)","v":0},{"$f":"IF(AND(S201=1,S$410=1),1,0)","v":0},{"$f":"IF(AND(T201=1,T$410=1),1,0)","v":0},{"$f":"IF(AND(U201=1,U$410=1),1,0)","v":0},{"$f":"IF(AND(V201=1,V$410=1),1,0)","v":0},{"$f":"IF(AND(W201=1,W$410=1),1,0)","v":0},1,{"$f":"IF(AND(X201=1,X$410=1),1,0)","v":0},{"$f":"IF(AND(Y201=1,Y$410=1),1,0)","v":0},{"$f":"IF(AND(Z201=1,Z$410=1),1,0)","v":0},{"$f":"IF(AND(AA201=1,AA$410=1),1,0)","v":0},{"$f":"IF(AND(AB201=1,AB$410=1),1,0)","v":0},{"$f":"IF(AND(AC201=1,AC$410=1),1,0)","v":0},{"$f":"IF(AND(AD201=1,AD$410=1),1,0)","v":0},{"$f":"IF(AND(AE201=1,AE$410=1),1,0)","v":0},{"$f":"IF(AND(AF201=1,AF$410=1),1,0)","v":0},1,{"$f":"IF(AND(AG201=1,AG$410=1),1,0)","v":1},{"$f":"IF(AND(AH201=1,AH$410=1),1,0)","v":0},{"$f":"IF(AND(AI201=1,AI$410=1),1,0)","v":0},{"$f":"IF(AND(AJ201=1,AJ$410=1),1,0)","v":0},{"$f":"IF(AND(AK201=1,AK$410=1),1,0)","v":0},{"$f":"IF(AND(AL201=1,AL$410=1),1,0)","v":0},{"$f":"IF(AND(AM201=1,AM$410=1),1,0)","v":0},{"$f":"IF(AND(AN201=1,AN$410=1),1,0)","v":0},{"$f":"IF(AND(AO201=1,AO$410=1),1,0)","v":0},1,{"$f":"IF(AND(AP201=1,AP$410=1),1,0)","v":0},{"$f":"IF(AND(AQ201=1,AQ$410=1),1,0)","v":0},{"$f":"IF(AND(AR201=1,AR$410=1),1,0)","v":0},{"$f":"IF(AND(AS201=1,AS$410=1),1,0)","v":1},{"$f":"IF(AND(AT201=1,AT$410=1),1,0)","v":0},1,1,193,193,{"$f":"IFERROR(SMALL($CL$9:$CL$408,CK201),\"\")","v":193},{"$f":"IFERROR(INDEX($B$9:$I$408,$CM201,COLUMNS($CN$9:CN201)),\"\")","v":"TA193"},{"$f":"IFERROR(INDEX($B$9:$I$408,$CM201,COLUMNS($CN$9:CO201)),\"\")","v":"Number of countries reporting policy procedures/framework strengthened "},{"$f":"IFERROR(INDEX($B$9:$I$408,$CM201,COLUMNS($CN$9:CP201)),\"\")","v":"-"},{"$f":"IFERROR(INDEX($B$9:$I$408,$CM201,COLUMNS($CN$9:CQ201)),\"\")","v":"Outcome"},{"$f":"IFERROR(INDEX($B$9:$I$408,$CM201,COLUMNS($CN$9:CR201)),\"\")","v":"-"},{"$f":"IFERROR(INDEX($B$9:$I$408,$CM201,COLUMNS($CN$9:CS201)),\"\")","v":"-"},{"$f":"IFERROR(INDEX($B$9:$I$408,$CM201,COLUMNS($CN$9:CT201)),\"\")","v":"Increased or improved policy development or execution"},{"$f":"IFERROR(INDEX($B$9:$I$408,$CM201,COLUMNS($CN$9:CU201)),\"\")","v":"Number"}]
[null,{"$f":"IF(ISBLANK('TA Indicator Bank'!B198),\"\",'TA Indicator Bank'!B198)","v":"TA194"},{"$f":"IF(ISBLANK('TA Indicator Bank'!C198),\"\",'TA Indicator Bank'!C198)","v":"(Number of) Knowledge products are produced/launched (on time)"},{"$f":"IF(ISBLANK('TA Indicator Bank'!D198),\"\",'TA Indicator Bank'!D198)","v":"-"},{"$f":"IF(ISBLANK('TA Indicator Bank'!E198),\"\",'TA Indicator Bank'!E198)","v":"Activity"},{"$f":"IF(ISBLANK('TA Indicator Bank'!F198),\"\",'TA Indicator Bank'!F198)","v":"Specialist research, inc. market / policy / legal / regulatory / technology research briefs"},{"$f":"IF(ISBLANK('TA Indicator Bank'!G198),\"\",'TA Indicator Bank'!G198)","v":"-"},{"$f":"IF(ISBLANK('TA Indicator Bank'!H198),\"\",'TA Indicator Bank'!H198)","v":"-"},{"$f":"IF(ISBLANK('TA Indicator Bank'!I198),\"\",'TA Indicator Bank'!I198)","v":"Number"},{"$f":"IF(ISBLANK('TA Indicator Bank'!J198),\"\",'TA Indicator Bank'!J198)","v":0},{"$f":"IF(ISBLANK('TA Indicator Bank'!K198),\"\",'TA Indicator Bank'!K198)","v":0},{"$f":"IF(ISBLANK('TA Indicator Bank'!L198),\"\",'TA Indicator Bank'!L198)","v":0},{"$f":"IF(ISBLANK('TA Indicator Bank'!M198),\"\",'TA Indicator Bank'!M198)","v":0},{"$f":"IF(ISBLANK('TA Indicator Bank'!N198),\"\",'TA Indicator Bank'!N198)","v":1},{"$f":"IF(ISBLANK('TA Indicator Bank'!O198),\"\",'TA Indicator Bank'!O198)","v":0},{"$f":"IF(ISBLANK('TA Indicator Bank'!P198),\"\",'TA Indicator Bank'!P198)","v":0},{"$f":"IF(ISBLANK('TA Indicator Bank'!Q198),\"\",'TA Indicator Bank'!Q198)","v":0},{"$f":"IF(ISBLANK('TA Indicator Bank'!R198),\"\",'TA Indicator Bank'!R198)","v":0},{"$f":"IF(ISBLANK('TA Indicator Bank'!S198),\"\",'TA Indicator Bank'!S198)","v":0},{"$f":"IF(ISBLANK('TA Indicator Bank'!T198),\"\",'TA Indicator Bank'!T198)","v":0},{"$f":"IF(ISBLANK('TA Indicator Bank'!U198),\"\",'TA Indicator Bank'!U198)","v":0},{"$f":"IF(ISBLANK('TA Indicator Bank'!V198),\"\",'TA Indicator Bank'!V198)","v":0},{"$f":"IF(ISBLANK('TA Indicator Bank'!W198),\"\",'TA Indicator Bank'!W198)","v":0},{"$f":"IF(ISBLANK('TA Indicator Bank'!X198),\"\",'TA Indicator Bank'!X198)","v":0},{"$f":"IF(ISBLANK('TA Indicator Bank'!Y198),\"\",'TA Indicator Bank'!Y198)","v":0},{"$f":"IF(ISBLANK('TA Indicator Bank'!Z198),\"\",'TA Indicator Bank'!Z198)","v":0},{"$f":"IF(ISBLANK('TA Indicator Bank'!AA198),\"\",'TA Indicator Bank'!AA198)","v":0},{"$f":"IF(ISBLANK('TA Indicator Bank'!AB198),\"\",'TA Indicator Bank'!AB198)","v":0},{"$f":"IF(ISBLANK('TA Indicator Bank'!AC198),\"\",'TA Indicator Bank'!AC198)","v":0},{"$f":"IF(ISBLANK('TA Indicator Bank'!AD198),\"\",'TA Indicator Bank'!AD198)","v":0},{"$f":"IF(ISBLANK('TA Indicator Bank'!AE198),\"\",'TA Indicator Bank'!AE198)","v":0},{"$f":"IF(ISBLANK('TA Indicator Bank'!AF198),\"\",'TA Indicator Bank'!AF198)","v":0},{"$f":"IF(ISBLANK('TA Indicator Bank'!AG198),\"\",'TA Indicator Bank'!AG198)","v":0},{"$f":"IF(ISBLANK('TA Indicator Bank'!AH198),\"\",'TA Indicator Bank'!AH198)","v":0},{"$f":"IF(ISBLANK('TA Indicator Bank'!AI198),\"\",'TA Indicator Bank'!AI198)","v":0},{"$f":"IF(ISBLANK('TA Indicator Bank'!AJ198),\"\",'TA Indicator Bank'!AJ198)","v":0},{"$f":"IF(ISBLANK('TA Indicator Bank'!AK198),\"\",'TA Indicator Bank'!AK198)","v":0},{"$f":"IF(ISBLANK('TA Indicator Bank'!AL198),\"\",'TA Indicator Bank'!AL198)","v":0},{"$f":"IF(ISBLANK('TA Indicator Bank'!AM198),\"\",'TA Indicator Bank'!AM198)","v":0},{"$f":"IF(ISBLANK('TA Indicator Bank'!AN198),\"\",'TA Indicator Bank'!AN198)","v":0},{"$f":"IF(ISBLANK('TA Indicator Bank'!AO198),\"\",'TA Indicator Bank'!AO198)","v":0},{"$f":"IF(ISBLANK('TA Indicator Bank'!AP198),\"\",'TA Indicator Bank'!AP198)","v":1},{"$f":"IF(ISBLANK('TA Indicator Bank'!AQ198),\"\",'TA Indicator Bank'!AQ198)","v":0},{"$f":"IF(ISBLANK('TA Indicator Bank'!AR198),\"\",'TA Indicator Bank'!AR198)","v":0},{"$f":"IF(ISBLANK('TA Indicator Bank'!AS198),\"\",'TA Indicator Bank'!AS198)","v":0},{"$f":"IF(ISBLANK('TA Indicator Bank'!AT198),\"\",'TA Indicator Bank'!AT198)","v":0},{"$f":"IF(AND(J202=1,J$410=1),1,0)","v":0},{"$f":"IF(AND(K202=1,K$410=1),1,0)","v":0},{"$f":"IF(AND(L202=1,L$410=1),1,0)","v":0},{"$f":"IF(AND(M202=1,M$410=1),1,0)","v":0},{"$f":"IF(AND(N202=1,N$410=1),1,0)","v":1},{"$f":"IF(AND(O202=1,O$410=1),1,0)","v":0},{"$f":"IF(AND(P202=1,P$410=1),1,0)","v":0},{"$f":"IF(AND(Q202=1,Q$410=1),1,0)","v":0},{"$f":"IF(AND(R202=1,R$410=1),1,0)","v":0},{"$f":"IF(AND(S202=1,S$410=1),1,0)","v":0},{"$f":"IF(AND(T202=1,T$410=1),1,0)","v":0},{"$f":"IF(AND(U202=1,U$410=1),1,0)","v":0},{"$f":"IF(AND(V202=1,V$410=1),1,0)","v":0},{"$f":"IF(AND(W202=1,W$410=1),1,0)","v":0},{"$f":"IF($C$4=\"All\",1,IF(SUM(AU202:BH202)>0,1,0))","v":1},{"$f":"IF(AND(X202=1,X$410=1),1,0)","v":0},{"$f":"IF(AND(Y202=1,Y$410=1),1,0)","v":0},{"$f":"IF(AND(Z202=1,Z$410=1),1,0)","v":0},{"$f":"IF(AND(AA202=1,AA$410=1),1,0)","v":0},{"$f":"IF(AND(AB202=1,AB$410=1),1,0)","v":0},{"$f":"IF(AND(AC202=1,AC$410=1),1,0)","v":0},{"$f":"IF(AND(AD202=1,AD$410=1),1,0)","v":0},{"$f":"IF(AND(AE202=1,AE$410=1),1,0)","v":0},{"$f":"IF(AND(AF202=1,AF$410=1),1,0)","v":0},{"$f":"IF($C$5=\"All\",1,IF(SUM(BJ202:BR202)>0,1,0))","v":1},{"$f":"IF(AND(AG202=1,AG$410=1),1,0)","v":0},{"$f":"IF(AND(AH202=1,AH$410=1),1,0)","v":0},{"$f":"IF(AND(AI202=1,AI$410=1),1,0)","v":0},{"$f":"IF(AND(AJ202=1,AJ$410=1),1,0)","v":0},{"$f":"IF(AND(AK202=1,AK$410=1),1,0)","v":0},{"$f":"IF(AND(AL202=1,AL$410=1),1,0)","v":0},{"$f":"IF(AND(AM202=1,AM$410=1),1,0)","v":0},{"$f":"IF(AND(AN202=1,AN$410=1),1,0)","v":0},{"$f":"IF(AND(AO202=1,AO$410=1),1,0)","v":0},{"$f":"IF($C$6=\"All\",1,IF(SUM(BT202:CB202)>0,1,0))","v":1},{"$f":"IF(AND(AP202=1,AP$410=1),1,0)","v":1},{"$f":"IF(AND(AQ202=1,AQ$410=1),1,0)","v":0},{"$f":"IF(AND(AR202=1,AR$410=1),1,0)","v":0},{"$f":"IF(AND(AS202=1,AS$410=1),1,0)","v":0},{"$f":"IF(AND(AT202=1,AT$410=1),1,0)","v":0},{"$f":"IF($C$3=\"All\",1,IF(SUM(CD202:CH202)>0,1,0))","v":1},{"$f":"IF(AND(BI202=1,BS202=1,CC202=1,CI202=1),1,0)","v":1},194,{"$f":"IF(CJ202=1,CK202,\"\")","v":194},{"$f":"IFERROR(SMALL($CL$9:$CL$408,CK202),\"\")","v":194},{"$f":"IFERROR(INDEX($B$9:$I$408,$CM202,COLUMNS($CN$9:CN202)),\"\")","v":"TA194"},{"$f":"IFERROR(INDEX($B$9:$I$408,$CM202,COLUMNS($CN$9:CO202)),\"\")","v":"(Number of) Knowledge products are produced/launched (on time)"},{"$f":"IFERROR(INDEX($B$9:$I$408,$CM202,COLUMNS($CN$9:CP202)),\"\")","v":"-"},{"$f":"IFERROR(INDEX($B$9:$I$408,$CM202,COLUMNS($CN$9:CQ202)),\"\")","v":"Activity"},{"$f":"IFERROR(INDEX($B$9:$I$408,$CM202,COLUMNS($CN$9:CR202)),\"\")","v":"Specialist research, inc. market / policy / legal / regulatory / technology research briefs"},{"$f":"IFERROR(INDEX($B$9:$I$408,$CM202,COLUMNS($CN$9:CS202)),\"\")","v":"-"},{"$f":"IFERROR(INDEX($B$9:$I$408,$CM202,COLUMNS($CN$9:CT202)),\"\")","v":"-"},{"$f":"IFERROR(INDEX($B$9:$I$408,$CM202,COLUMNS($CN$9:CU202)),\"\")","v":"Number"}]
[null,{"$f":"IF(ISBLANK('TA Indicator Bank'!B199),\"\",'TA Indicator Bank'!B199)","v":"TA195"},{"$f":"IF(ISBLANK('TA Indicator Bank'!C199),\"\",'TA Indicator Bank'!C199)","v":"Number of countries that have accessed knowledge product"},{"$f":"IF(ISBLANK('TA Indicator Bank'!D199),\"\",'TA Indicator Bank'!D199)","v":"-"},{"$f":"IF(ISBLANK('TA Indicator Bank'!E199),\"\",'TA Indicator Bank'!E199)","v":"Uptake"},{"$f":"IF(ISBLANK('TA Indicator Bank'!F199),\"\",'TA Indicator Bank'!F199)","v":"Specialist research, inc. market / policy / legal / regulatory / technology research briefs"},{"$f":"IF(ISBLANK('TA Indicator Bank'!G199),\"\",'TA Indicator Bank'!G199)","v":"-"},{"$f":"IF(ISBLANK('TA Indicator Bank'!H199),\"\",'TA Indicator Bank'!H199)","v":"-"},{"$f":"IF(ISBLANK('TA Indicator Bank'!I199),\"\",'TA Indicator Bank'!I199)","v":"Number"},{"$f":"IF(ISBLANK('TA Indicator Bank'!J199),\"\",'TA Indicator Bank'!J199)","v":0},{"$f":"IF(ISBLANK('TA Indicator Bank'!K199),\"\",'TA Indicator Bank'!K199)","v":0},{"$f":"IF(ISBLANK('TA Indicator Bank'!L199),\"\",'TA Indicator Bank'!L199)","v":0},{"$f":"IF(ISBLANK('TA Indicator Bank'!M199),\"\",'TA Indicator Bank'!M199)","v":0},{"$f":"IF(ISBLANK('TA Indicator Bank'!N199),\"\",'TA Indicator Bank'!N199)","v":1},{"$f":"IF(ISBLANK('TA Indicator Bank'!O199),\"\",'TA Indicator Bank'!O199)","v":0},{"$f":"IF(ISBLANK('TA Indicator Bank'!P199),\"\",'TA Indicator Bank'!P199)","v":0},{"$f":"IF(ISBLANK('TA Indicator Bank'!Q199),\"\",'TA Indicator Bank'!Q199)","v":0},{"$f":"IF(ISBLANK('TA Indicator Bank'!R199),\"\",'TA Indicator Bank'!R199)","v":0},{"$f":"IF(ISBLANK('TA Indicator Bank'!S199),\"\",'TA Indicator Bank'!S199)","v":0},{"$f":"IF(ISBLANK('TA Indicator Bank'!T199),\"\",'TA Indicator Bank'!T199)","v":0},{"$f":"IF(ISBLANK('TA Indicator Bank'!U199),\"\",'TA Indicator Bank'!U199)","v":0},{"$f":"IF(ISBLANK('TA Indicator Bank'!V199),\"\",'TA Indicator Bank'!V199)","v":0},{"$f":"IF(ISBLANK('TA Indicator Bank'!W199),\"\",'TA Indicator Bank'!W199)","v":0},{"$f":"IF(ISBLANK('TA Indicator Bank'!X199),\"\",'TA Indicator Bank'!X199)","v":0},{"$f":"IF(ISBLANK('TA Indicator Bank'!Y199),\"\",'TA Indicator Bank'!Y199)","v":0},{"$f":"IF(ISBLANK('TA Indicator Bank'!Z199),\"\",'TA Indicator Bank'!Z199)","v":0},{"$f":"IF(ISBLANK('TA Indicator Bank'!AA199),\"\",'TA Indicator Bank'!AA199)","v":0},{"$f":"IF(ISBLANK('TA Indicator Bank'!AB199),\"\",'TA Indicator Bank'!AB199)","v":0},{"$f":"IF(ISBLANK('TA Indicator Bank'!AC199),\"\",'TA Indicator Bank'!AC199)","v":0},{"$f":"IF(ISBLANK('TA Indicator Bank'!AD199),\"\",'TA Indicator Bank'!AD199)","v":0},{"$f":"IF(ISBLANK('TA Indicator Bank'!AE199),\"\",'TA Indicator Bank'!AE199)","v":0},{"$f":"IF(ISBLANK('TA Indicator Bank'!AF199),\"\",'TA Indicator Bank'!AF199)","v":0},{"$f":"IF(ISBLANK('TA Indicator Bank'!AG199),\"\",'TA Indicator Bank'!AG199)","v":0},{"$f":"IF(ISBLANK('TA Indicator Bank'!AH199),\"\",'TA Indicator Bank'!AH199)","v":0},{"$f":"IF(ISBLANK('TA Indicator Bank'!AI199),\"\",'TA Indicator Bank'!AI199)","v":0},{"$f":"IF(ISBLANK('TA Indicator Bank'!AJ199),\"\",'TA Indicator Bank'!AJ199)","v":0},{"$f":"IF(ISBLANK('TA Indicator Bank'!AK199),\"\",'TA Indicator Bank'!AK199)","v":0},{"$f":"IF(ISBLANK('TA Indicator Bank'!AL199),\"\",'TA Indicator Bank'!AL199)","v":0},{"$f":"IF(ISBLANK('TA Indicator Bank'!AM199),\"\",'TA Indicator Bank'!AM199)","v":0},{"$f":"IF(ISBLANK('TA Indicator Bank'!AN199),\"\",'TA Indicator Bank'!AN199)","v":0},{"$f":"IF(ISBLANK('TA Indicator Bank'!AO199),\"\",'TA Indicator Bank'!AO199)","v":0},{"$f":"IF(ISBLANK('TA Indicator Bank'!AP199),\"\",'TA Indicator Bank'!AP199)","v":0},{"$f":"IF(ISBLANK('TA Indicator Bank'!AQ199),\"\",'TA Indicator Bank'!AQ199)","v":1},{"$f":"IF(ISBLANK('TA Indicator Bank'!AR199),\"\",'TA Indicator Bank'!AR199)","v":0},{"$f":"IF(ISBLANK('TA Indicator Bank'!AS199),\"\",'TA Indicator Bank'!AS199)","v":0},{"$f":"IF(ISBLANK('TA Indicator Bank'!AT199),\"\",'TA Indicator Bank'!AT199)","v":0},{"$f":"IF(AND(J203=1,J$410=1),1,0)","v":0},{"$f":"IF(AND(K203=1,K$410=1),1,0)","v":0},{"$f":"IF(AND(L203=1,L$410=1),1,0)","v":0},{"$f":"IF(AND(M203=1,M$410=1),1,0)","v":0},{"$f":"IF(AND(N203=1,N$410=1),1,0)","v":1},{"$f":"IF(AND(O203=1,O$410=1),1,0)","v":0},{"$f":"IF(AND(P203=1,P$410=1),1,0)","v":0},{"$f":"IF(AND(Q203=1,Q$410=1),1,0)","v":0},{"$f":"IF(AND(R203=1,R$410=1),1,0)","v":0},{"$f":"IF(AND(S203=1,S$410=1),1,0)","v":0},{"$f":"IF(AND(T203=1,T$410=1),1,0)","v":0},{"$f":"IF(AND(U203=1,U$410=1),1,0)","v":0},{"$f":"IF(AND(V203=1,V$410=1),1,0)","v":0},{"$f":"IF(AND(W203=1,W$410=1),1,0)","v":0},1,{"$f":"IF(AND(X203=1,X$410=1),1,0)","v":0},{"$f":"IF(AND(Y203=1,Y$410=1),1,0)","v":0},{"$f":"IF(AND(Z203=1,Z$410=1),1,0)","v":0},{"$f":"IF(AND(AA203=1,AA$410=1),1,0)","v":0},{"$f":"IF(AND(AB203=1,AB$410=1),1,0)","v":0},{"$f":"IF(AND(AC203=1,AC$410=1),1,0)","v":0},{"$f":"IF(AND(AD203=1,AD$410=1),1,0)","v":0},{"$f":"IF(AND(AE203=1,AE$410=1),1,0)","v":0},{"$f":"IF(AND(AF203=1,AF$410=1),1,0)","v":0},1,{"$f":"IF(AND(AG203=1,AG$410=1),1,0)","v":0},{"$f":"IF(AND(AH203=1,AH$410=1),1,0)","v":0},{"$f":"IF(AND(AI203=1,AI$410=1),1,0)","v":0},{"$f":"IF(AND(AJ203=1,AJ$410=1),1,0)","v":0},{"$f":"IF(AND(AK203=1,AK$410=1),1,0)","v":0},{"$f":"IF(AND(AL203=1,AL$410=1),1,0)","v":0},{"$f":"IF(AND(AM203=1,AM$410=1),1,0)","v":0},{"$f":"IF(AND(AN203=1,AN$410=1),1,0)","v":0},{"$f":"IF(AND(AO203=1,AO$410=1),1,0)","v":0},1,{"$f":"IF(AND(AP203=1,AP$410=1),1,0)","v":0},{"$f":"IF(AND(AQ203=1,AQ$410=1),1,0)","v":1},{"$f":"IF(AND(AR203=1,AR$410=1),1,0)","v":0},{"$f":"IF(AND(AS203=1,AS$410=1),1,0)","v":0},{"$f":"IF(AND(AT203=1,AT$410=1),1,0)","v":0},1,1,195,195,{"$f":"IFERROR(SMALL($CL$9:$CL$408,CK203),\"\")","v":195},{"$f":"IFERROR(INDEX($B$9:$I$408,$CM203,COLUMNS($CN$9:CN203)),\"\")","v":"TA195"},{"$f":"IFERROR(INDEX($B$9:$I$408,$CM203,COLUMNS($CN$9:CO203)),\"\")","v":"Number of countries that have accessed knowledge product"},{"$f":"IFERROR(INDEX($B$9:$I$408,$CM203,COLUMNS($CN$9:CP203)),\"\")","v":"-"},{"$f":"IFERROR(INDEX($B$9:$I$408,$CM203,COLUMNS($CN$9:CQ203)),\"\")","v":"Uptake"},{"$f":"IFERROR(INDEX($B$9:$I$408,$CM203,COLUMNS($CN$9:CR203)),\"\")","v":"Specialist research, inc. market / policy / legal / regulatory / technology research briefs"},{"$f":"IFERROR(INDEX($B$9:$I$408,$CM203,COLUMNS($CN$9:CS203)),\"\")","v":"-"},{"$f":"IFERROR(INDEX($B$9:$I$408,$CM203,COLUMNS($CN$9:CT203)),\"\")","v":"-"},{"$f":"IFERROR(INDEX($B$9:$I$408,$CM203,COLUMNS($CN$9:CU203)),\"\")","v":"Number"}]
[null,{"$f":"IF(ISBLANK('TA Indicator Bank'!B200),\"\",'TA Indicator Bank'!B200)","v":"TA196"},{"$f":"IF(ISBLANK('TA Indicator Bank'!C200),\"\",'TA Indicator Bank'!C200)","v":"Institutional knowledge increases as result of programme"},{"$f":"IF(ISBLANK('TA Indicator Bank'!D200),\"\",'TA Indicator Bank'!D200)","v":"-"},{"$f":"IF(ISBLANK('TA Indicator Bank'!E200),\"\",'TA Indicator Bank'!E200)","v":"Outcome"},{"$f":"IF(ISBLANK('TA Indicator Bank'!F200),\"\",'TA Indicator Bank'!F200)","v":"-"},{"$f":"IF(ISBLANK('TA Indicator Bank'!G200),\"\",'TA Indicator Bank'!G200)","v":"-"},{"$f":"IF(ISBLANK('TA Indicator Bank'!H200),\"\",'TA Indicator Bank'!H200)","v":"Increased access to information/knowledge"},{"$f":"IF(ISBLANK('TA Indicator Bank'!I200),\"\",'TA Indicator Bank'!I200)","v":"Narrative"},{"$f":"IF(ISBLANK('TA Indicator Bank'!J200),\"\",'TA Indicator Bank'!J200)","v":0},{"$f":"IF(ISBLANK('TA Indicator Bank'!K200),\"\",'TA Indicator Bank'!K200)","v":0},{"$f":"IF(ISBLANK('TA Indicator Bank'!L200),\"\",'TA Indicator Bank'!L200)","v":0},{"$f":"IF(ISBLANK('TA Indicator Bank'!M200),\"\",'TA Indicator Bank'!M200)","v":0},{"$f":"IF(ISBLANK('TA Indicator Bank'!N200),\"\",'TA Indicator Bank'!N200)","v":0},{"$f":"IF(ISBLANK('TA Indicator Bank'!O200),\"\",'TA Indicator Bank'!O200)","v":0},{"$f":"IF(ISBLANK('TA Indicator Bank'!P200),\"\",'TA Indicator Bank'!P200)","v":0},{"$f":"IF(ISBLANK('TA Indicator Bank'!Q200),\"\",'TA Indicator Bank'!Q200)","v":0},{"$f":"IF(ISBLANK('TA Indicator Bank'!R200),\"\",'TA Indicator Bank'!R200)","v":0},{"$f":"IF(ISBLANK('TA Indicator Bank'!S200),\"\",'TA Indicator Bank'!S200)","v":0},{"$f":"IF(ISBLANK('TA Indicator Bank'!T200),\"\",'TA Indicator Bank'!T200)","v":0},{"$f":"IF(ISBLANK('TA Indicator Bank'!U200),\"\",'TA Indicator Bank'!U200)","v":0},{"$f":"IF(ISBLANK('TA Indicator Bank'!V200),\"\",'TA Indicator Bank'!V200)","v":0},{"$f":"IF(ISBLANK('TA Indicator Bank'!W200),\"\",'TA Indicator Bank'!W200)","v":0},{"$f":"IF(ISBLANK('TA Indicator Bank'!X200),\"\",'TA Indicator Bank'!X200)","v":0},{"$f":"IF(ISBLANK('TA Indicator Bank'!Y200),\"\",'TA Indicator Bank'!Y200)","v":0},{"$f":"IF(ISBLANK('TA Indicator Bank'!Z200),\"\",'TA Indicator Bank'!Z200)","v":0},{"$f":"IF(ISBLANK('TA Indicator Bank'!AA200),\"\",'TA Indicator Bank'!AA200)","v":0},{"$f":"IF(ISBLANK('TA Indicator Bank'!AB200),\"\",'TA Indicator Bank'!AB200)","v":0},{"$f":"IF(ISBLANK('TA Indicator Bank'!AC200),\"\",'TA Indicator Bank'!AC200)","v":0},{"$f":"IF(ISBLANK('TA Indicator Bank'!AD200),\"\",'TA Indicator Bank'!AD200)","v":0},{"$f":"IF(ISBLANK('TA Indicator Bank'!AE200),\"\",'TA Indicator Bank'!AE200)","v":0},{"$f":"IF(ISBLANK('TA Indicator Bank'!AF200),\"\",'TA Indicator Bank'!AF200)","v":0},{"$f":"IF(ISBLANK('TA Indicator Bank'!AG200),\"\",'TA Indicator Bank'!AG200)","v":0},{"$f":"IF(ISBLANK('TA Indicator Bank'!AH200),\"\",'TA Indicator Bank'!AH200)","v":1},{"$f":"IF(ISBLANK('TA Indicator Bank'!AI200),\"\",'TA Indicator Bank'!AI200)","v":0},{"$f":"IF(ISBLANK('TA Indicator Bank'!AJ200),\"\",'TA Indicator Bank'!AJ200)","v":0},{"$f":"IF(ISBLANK('TA Indicator Bank'!AK200),\"\",'TA Indicator Bank'!AK200)","v":0},{"$f":"IF(ISBLANK('TA Indicator Bank'!AL200),\"\",'TA Indicator Bank'!AL200)","v":0},{"$f":"IF(ISBLANK('TA Indicator Bank'!AM200),\"\",'TA Indicator Bank'!AM200)","v":0},{"$f":"IF(ISBLANK('TA Indicator Bank'!AN200),\"\",'TA Indicator Bank'!AN200)","v":0},{"$f":"IF(ISBLANK('TA Indicator Bank'!AO200),\"\",'TA Indicator Bank'!AO200)","v":0},{"$f":"IF(ISBLANK('TA Indicator Bank'!AP200),\"\",'TA Indicator Bank'!AP200)","v":0},{"$f":"IF(ISBLANK('TA Indicator Bank'!AQ200),\"\",'TA Indicator Bank'!AQ200)","v":0},{"$f":"IF(ISBLANK('TA Indicator Bank'!AR200),\"\",'TA Indicator Bank'!AR200)","v":0},{"$f":"IF(ISBLANK('TA Indicator Bank'!AS200),\"\",'TA Indicator Bank'!AS200)","v":1},{"$f":"IF(ISBLANK('TA Indicator Bank'!AT200),\"\",'TA Indicator Bank'!AT200)","v":0},{"$f":"IF(AND(J204=1,J$410=1),1,0)","v":0},{"$f":"IF(AND(K204=1,K$410=1),1,0)","v":0},{"$f":"IF(AND(L204=1,L$410=1),1,0)","v":0},{"$f":"IF(AND(M204=1,M$410=1),1,0)","v":0},{"$f":"IF(AND(N204=1,N$410=1),1,0)","v":0},{"$f":"IF(AND(O204=1,O$410=1),1,0)","v":0},{"$f":"IF(AND(P204=1,P$410=1),1,0)","v":0},{"$f":"IF(AND(Q204=1,Q$410=1),1,0)","v":0},{"$f":"IF(AND(R204=1,R$410=1),1,0)","v":0},{"$f":"IF(AND(S204=1,S$410=1),1,0)","v":0},{"$f":"IF(AND(T204=1,T$410=1),1,0)","v":0},{"$f":"IF(AND(U204=1,U$410=1),1,0)","v":0},{"$f":"IF(AND(V204=1,V$410=1),1,0)","v":0},{"$f":"IF(AND(W204=1,W$410=1),1,0)","v":0},1,{"$f":"IF(AND(X204=1,X$410=1),1,0)","v":0},{"$f":"IF(AND(Y204=1,Y$410=1),1,0)","v":0},{"$f":"IF(AND(Z204=1,Z$410=1),1,0)","v":0},{"$f":"IF(AND(AA204=1,AA$410=1),1,0)","v":0},{"$f":"IF(AND(AB204=1,AB$410=1),1,0)","v":0},{"$f":"IF(AND(AC204=1,AC$410=1),1,0)","v":0},{"$f":"IF(AND(AD204=1,AD$410=1),1,0)","v":0},{"$f":"IF(AND(AE204=1,AE$410=1),1,0)","v":0},{"$f":"IF(AND(AF204=1,AF$410=1),1,0)","v":0},1,{"$f":"IF(AND(AG204=1,AG$410=1),1,0)","v":0},{"$f":"IF(AND(AH204=1,AH$410=1),1,0)","v":1},{"$f":"IF(AND(AI204=1,AI$410=1),1,0)","v":0},{"$f":"IF(AND(AJ204=1,AJ$410=1),1,0)","v":0},{"$f":"IF(AND(AK204=1,AK$410=1),1,0)","v":0},{"$f":"IF(AND(AL204=1,AL$410=1),1,0)","v":0},{"$f":"IF(AND(AM204=1,AM$410=1),1,0)","v":0},{"$f":"IF(AND(AN204=1,AN$410=1),1,0)","v":0},{"$f":"IF(AND(AO204=1,AO$410=1),1,0)","v":0},1,{"$f":"IF(AND(AP204=1,AP$410=1),1,0)","v":0},{"$f":"IF(AND(AQ204=1,AQ$410=1),1,0)","v":0},{"$f":"IF(AND(AR204=1,AR$410=1),1,0)","v":0},{"$f":"IF(AND(AS204=1,AS$410=1),1,0)","v":1},{"$f":"IF(AND(AT204=1,AT$410=1),1,0)","v":0},1,1,196,196,{"$f":"IFERROR(SMALL($CL$9:$CL$408,CK204),\"\")","v":196},{"$f":"IFERROR(INDEX($B$9:$I$408,$CM204,COLUMNS($CN$9:CN204)),\"\")","v":"TA196"},{"$f":"IFERROR(INDEX($B$9:$I$408,$CM204,COLUMNS($CN$9:CO204)),\"\")","v":"Institutional knowledge increases as result of programme"},{"$f":"IFERROR(INDEX($B$9:$I$408,$CM204,COLUMNS($CN$9:CP204)),\"\")","v":"-"},{"$f":"IFERROR(INDEX($B$9:$I$408,$CM204,COLUMNS($CN$9:CQ204)),\"\")","v":"Outcome"},{"$f":"IFERROR(INDEX($B$9:$I$408,$CM204,COLUMNS($CN$9:CR204)),\"\")","v":"-"},{"$f":"IFERROR(INDEX($B$9:$I$408,$CM204,COLUMNS($CN$9:CS204)),\"\")","v":"-"},{"$f":"IFERROR(INDEX($B$9:$I$408,$CM204,COLUMNS($CN$9:CT204)),\"\")","v":"Increased access to information/knowledge"},{"$f":"IFERROR(INDEX($B$9:$I$408,$CM204,COLUMNS($CN$9:CU204)),\"\")","v":"Narrative"}]
[null,{"$f":"IF(ISBLANK('TA Indicator Bank'!B201),\"\",'TA Indicator Bank'!B201)","v":"TA197"},{"$f":"IF(ISBLANK('TA Indicator Bank'!C201),\"\",'TA Indicator Bank'!C201)","v":"Knowledge product is used and applied by (number of) stakeholders"},{"$f":"IF(ISBLANK('TA Indicator Bank'!D201),\"\",'TA Indicator Bank'!D201)","v":"-"},{"$f":"IF(ISBLANK('TA Indicator Bank'!E201),\"\",'TA Indicator Bank'!E201)","v":"Uptake"},{"$f":"IF(ISBLANK('TA Indicator Bank'!F201),\"\",'TA Indicator Bank'!F201)","v":"Specialist research, inc. market / policy / legal / regulatory / technology research briefs"},{"$f":"IF(ISBLANK('TA Indicator Bank'!G201),\"\",'TA Indicator Bank'!G201)","v":"-"},{"$f":"IF(ISBLANK('TA Indicator Bank'!H201),\"\",'TA Indicator Bank'!H201)","v":"-"},{"$f":"IF(ISBLANK('TA Indicator Bank'!I201),\"\",'TA Indicator Bank'!I201)","v":"Yes/No"},{"$f":"IF(ISBLANK('TA Indicator Bank'!J201),\"\",'TA Indicator Bank'!J201)","v":0},{"$f":"IF(ISBLANK('TA Indicator Bank'!K201),\"\",'TA Indicator Bank'!K201)","v":0},{"$f":"IF(ISBLANK('TA Indicator Bank'!L201),\"\",'TA Indicator Bank'!L201)","v":0},{"$f":"IF(ISBLANK('TA Indicator Bank'!M201),\"\",'TA Indicator Bank'!M201)","v":0},{"$f":"IF(ISBLANK('TA Indicator Bank'!N201),\"\",'TA Indicator Bank'!N201)","v":1},{"$f":"IF(ISBLANK('TA Indicator Bank'!O201),\"\",'TA Indicator Bank'!O201)","v":0},{"$f":"IF(ISBLANK('TA Indicator Bank'!P201),\"\",'TA Indicator Bank'!P201)","v":0},{"$f":"IF(ISBLANK('TA Indicator Bank'!Q201),\"\",'TA Indicator Bank'!Q201)","v":0},{"$f":"IF(ISBLANK('TA Indicator Bank'!R201),\"\",'TA Indicator Bank'!R201)","v":0},{"$f":"IF(ISBLANK('TA Indicator Bank'!S201),\"\",'TA Indicator Bank'!S201)","v":0},{"$f":"IF(ISBLANK('TA Indicator Bank'!T201),\"\",'TA Indicator Bank'!T201)","v":0},{"$f":"IF(ISBLANK('TA Indicator Bank'!U201),\"\",'TA Indicator Bank'!U201)","v":0},{"$f":"IF(ISBLANK('TA Indicator Bank'!V201),\"\",'TA Indicator Bank'!V201)","v":0},{"$f":"IF(ISBLANK('TA Indicator Bank'!W201),\"\",'TA Indicator Bank'!W201)","v":0},{"$f":"IF(ISBLANK('TA Indicator Bank'!X201),\"\",'TA Indicator Bank'!X201)","v":0},{"$f":"IF(ISBLANK('TA Indicator Bank'!Y201),\"\",'TA Indicator Bank'!Y201)","v":0},{"$f":"IF(ISBLANK('TA Indicator Bank'!Z201),\"\",'TA Indicator Bank'!Z201)","v":0},{"$f":"IF(ISBLANK('TA Indicator Bank'!AA201),\"\",'TA Indicator Bank'!AA201)","v":0},{"$f":"IF(ISBLANK('TA Indicator Bank'!AB201),\"\",'TA Indicator Bank'!AB201)","v":0},{"$f":"IF(ISBLANK('TA Indicator Bank'!AC201),\"\",'TA Indicator Bank'!AC201)","v":0},{"$f":"IF(ISBLANK('TA Indicator Bank'!AD201),\"\",'TA Indicator Bank'!AD201)","v":0},{"$f":"IF(ISBLANK('TA Indicator Bank'!AE201),\"\",'TA Indicator Bank'!AE201)","v":0},{"$f":"IF(ISBLANK('TA Indicator Bank'!AF201),\"\",'TA Indicator Bank'!AF201)","v":0},{"$f":"IF(ISBLANK('TA Indicator Bank'!AG201),\"\",'TA Indicator Bank'!AG201)","v":0},{"$f":"IF(ISBLANK('TA Indicator Bank'!AH201),\"\",'TA Indicator Bank'!AH201)","v":0},{"$f":"IF(ISBLANK('TA Indicator Bank'!AI201),\"\",'TA Indicator Bank'!AI201)","v":0},{"$f":"IF(ISBLANK('TA Indicator Bank'!AJ201),\"\",'TA Indicator Bank'!AJ201)","v":0},{"$f":"IF(ISBLANK('TA Indicator Bank'!AK201),\"\",'TA Indicator Bank'!AK201)","v":0},{"$f":"IF(ISBLANK('TA Indicator Bank'!AL201),\"\",'TA Indicator Bank'!AL201)","v":0},{"$f":"IF(ISBLANK('TA Indicator Bank'!AM201),\"\",'TA Indicator Bank'!AM201)","v":0},{"$f":"IF(ISBLANK('TA Indicator Bank'!AN201),\"\",'TA Indicator Bank'!AN201)","v":0},{"$f":"IF(ISBLANK('TA Indicator Bank'!AO201),\"\",'TA Indicator Bank'!AO201)","v":0},{"$f":"IF(ISBLANK('TA Indicator Bank'!AP201),\"\",'TA Indicator Bank'!AP201)","v":0},{"$f":"IF(ISBLANK('TA Indicator Bank'!AQ201),\"\",'TA Indicator Bank'!AQ201)","v":1},{"$f":"IF(ISBLANK('TA Indicator Bank'!AR201),\"\",'TA Indicator Bank'!AR201)","v":0},{"$f":"IF(ISBLANK('TA Indicator Bank'!AS201),\"\",'TA Indicator Bank'!AS201)","v":0},{"$f":"IF(ISBLANK('TA Indicator Bank'!AT201),\"\",'TA Indicator Bank'!AT201)","v":0},{"$f":"IF(AND(J205=1,J$410=1),1,0)","v":0},{"$f":"IF(AND(K205=1,K$410=1),1,0)","v":0},{"$f":"IF(AND(L205=1,L$410=1),1,0)","v":0},{"$f":"IF(AND(M205=1,M$410=1),1,0)","v":0},{"$f":"IF(AND(N205=1,N$410=1),1,0)","v":1},{"$f":"IF(AND(O205=1,O$410=1),1,0)","v":0},{"$f":"IF(AND(P205=1,P$410=1),1,0)","v":0},{"$f":"IF(AND(Q205=1,Q$410=1),1,0)","v":0},{"$f":"IF(AND(R205=1,R$410=1),1,0)","v":0},{"$f":"IF(AND(S205=1,S$410=1),1,0)","v":0},{"$f":"IF(AND(T205=1,T$410=1),1,0)","v":0},{"$f":"IF(AND(U205=1,U$410=1),1,0)","v":0},{"$f":"IF(AND(V205=1,V$410=1),1,0)","v":0},{"$f":"IF(AND(W205=1,W$410=1),1,0)","v":0},1,{"$f":"IF(AND(X205=1,X$410=1),1,0)","v":0},{"$f":"IF(AND(Y205=1,Y$410=1),1,0)","v":0},{"$f":"IF(AND(Z205=1,Z$410=1),1,0)","v":0},{"$f":"IF(AND(AA205=1,AA$410=1),1,0)","v":0},{"$f":"IF(AND(AB205=1,AB$410=1),1,0)","v":0},{"$f":"IF(AND(AC205=1,AC$410=1),1,0)","v":0},{"$f":"IF(AND(AD205=1,AD$410=1),1,0)","v":0},{"$f":"IF(AND(AE205=1,AE$410=1),1,0)","v":0},{"$f":"IF(AND(AF205=1,AF$410=1),1,0)","v":0},1,{"$f":"IF(AND(AG205=1,AG$410=1),1,0)","v":0},{"$f":"IF(AND(AH205=1,AH$410=1),1,0)","v":0},{"$f":"IF(AND(AI205=1,AI$410=1),1,0)","v":0},{"$f":"IF(AND(AJ205=1,AJ$410=1),1,0)","v":0},{"$f":"IF(AND(AK205=1,AK$410=1),1,0)","v":0},{"$f":"IF(AND(AL205=1,AL$410=1),1,0)","v":0},{"$f":"IF(AND(AM205=1,AM$410=1),1,0)","v":0},{"$f":"IF(AND(AN205=1,AN$410=1),1,0)","v":0},{"$f":"IF(AND(AO205=1,AO$410=1),1,0)","v":0},1,{"$f":"IF(AND(AP205=1,AP$410=1),1,0)","v":0},{"$f":"IF(AND(AQ205=1,AQ$410=1),1,0)","v":1},{"$f":"IF(AND(AR205=1,AR$410=1),1,0)","v":0},{"$f":"IF(AND(AS205=1,AS$410=1),1,0)","v":0},{"$f":"IF(AND(AT205=1,AT$410=1),1,0)","v":0},1,1,197,197,{"$f":"IFERROR(SMALL($CL$9:$CL$408,CK205),\"\")","v":197},{"$f":"IFERROR(INDEX($B$9:$I$408,$CM205,COLUMNS($CN$9:CN205)),\"\")","v":"TA197"},{"$f":"IFERROR(INDEX($B$9:$I$408,$CM205,COLUMNS($CN$9:CO205)),\"\")","v":"Knowledge product is used and applied by (number of) stakeholders"},{"$f":"IFERROR(INDEX($B$9:$I$408,$CM205,COLUMNS($CN$9:CP205)),\"\")","v":"-"},{"$f":"IFERROR(INDEX($B$9:$I$408,$CM205,COLUMNS($CN$9:CQ205)),\"\")","v":"Uptake"},{"$f":"IFERROR(INDEX($B$9:$I$408,$CM205,COLUMNS($CN$9:CR205)),\"\")","v":"Specialist research, inc. market / policy / legal / regulatory / technology research briefs"},{"$f":"IFERROR(INDEX($B$9:$I$408,$CM205,COLUMNS($CN$9:CS205)),\"\")","v":"-"},{"$f":"IFERROR(INDEX($B$9:$I$408,$CM205,COLUMNS($CN$9:CT205)),\"\")","v":"-"},{"$f":"IFERROR(INDEX($B$9:$I$408,$CM205,COLUMNS($CN$9:CU205)),\"\")","v":"Yes/No"}]
[null,{"$f":"IF(ISBLANK('TA Indicator Bank'!B202),\"\",'TA Indicator Bank'!B202)","v":"TA198"},{"$f":"IF(ISBLANK('TA Indicator Bank'!C202),\"\",'TA Indicator Bank'!C202)","v":"Knowledge product is assessed as useful by stakeholders"},{"$f":"IF(ISBLANK('TA Indicator Bank'!D202),\"\",'TA Indicator Bank'!D202)","v":"-"},{"$f":"IF(ISBLANK('TA Indicator Bank'!E202),\"\",'TA Indicator Bank'!E202)","v":"Uptake"},{"$f":"IF(ISBLANK('TA Indicator Bank'!F202),\"\",'TA Indicator Bank'!F202)","v":"Specialist research, inc. market / policy / legal / regulatory / technology research briefs"},{"$f":"IF(ISBLANK('TA Indicator Bank'!G202),\"\",'TA Indicator Bank'!G202)","v":"-"},{"$f":"IF(ISBLANK('TA Indicator Bank'!H202),\"\",'TA Indicator Bank'!H202)","v":"-"},{"$f":"IF(ISBLANK('TA Indicator Bank'!I202),\"\",'TA Indicator Bank'!I202)","v":"Yes/No"},{"$f":"IF(ISBLANK('TA Indicator Bank'!J202),\"\",'TA Indicator Bank'!J202)","v":0},{"$f":"IF(ISBLANK('TA Indicator Bank'!K202),\"\",'TA Indicator Bank'!K202)","v":0},{"$f":"IF(ISBLANK('TA Indicator Bank'!L202),\"\",'TA Indicator Bank'!L202)","v":0},{"$f":"IF(ISBLANK('TA Indicator Bank'!M202),\"\",'TA Indicator Bank'!M202)","v":0},{"$f":"IF(ISBLANK('TA Indicator Bank'!N202),\"\",'TA Indicator Bank'!N202)","v":1},{"$f":"IF(ISBLANK('TA Indicator Bank'!O202),\"\",'TA Indicator Bank'!O202)","v":0},{"$f":"IF(ISBLANK('TA Indicator Bank'!P202),\"\",'TA Indicator Bank'!P202)","v":0},{"$f":"IF(ISBLANK('TA Indicator Bank'!Q202),\"\",'TA Indicator Bank'!Q202)","v":0},{"$f":"IF(ISBLANK('TA Indicator Bank'!R202),\"\",'TA Indicator Bank'!R202)","v":0},{"$f":"IF(ISBLANK('TA Indicator Bank'!S202),\"\",'TA Indicator Bank'!S202)","v":0},{"$f":"IF(ISBLANK('TA Indicator Bank'!T202),\"\",'TA Indicator Bank'!T202)","v":0},{"$f":"IF(ISBLANK('TA Indicator Bank'!U202),\"\",'TA Indicator Bank'!U202)","v":0},{"$f":"IF(ISBLANK('TA Indicator Bank'!V202),\"\",'TA Indicator Bank'!V202)","v":0},{"$f":"IF(ISBLANK('TA Indicator Bank'!W202),\"\",'TA Indicator Bank'!W202)","v":0},{"$f":"IF(ISBLANK('TA Indicator Bank'!X202),\"\",'TA Indicator Bank'!X202)","v":0},{"$f":"IF(ISBLANK('TA Indicator Bank'!Y202),\"\",'TA Indicator Bank'!Y202)","v":0},{"$f":"IF(ISBLANK('TA Indicator Bank'!Z202),\"\",'TA Indicator Bank'!Z202)","v":0},{"$f":"IF(ISBLANK('TA Indicator Bank'!AA202),\"\",'TA Indicator Bank'!AA202)","v":0},{"$f":"IF(ISBLANK('TA Indicator Bank'!AB202),\"\",'TA Indicator Bank'!AB202)","v":0},{"$f":"IF(ISBLANK('TA Indicator Bank'!AC202),\"\",'TA Indicator Bank'!AC202)","v":0},{"$f":"IF(ISBLANK('TA Indicator Bank'!AD202),\"\",'TA Indicator Bank'!AD202)","v":0},{"$f":"IF(ISBLANK('TA Indicator Bank'!AE202),\"\",'TA Indicator Bank'!AE202)","v":0},{"$f":"IF(ISBLANK('TA Indicator Bank'!AF202),\"\",'TA Indicator Bank'!AF202)","v":0},{"$f":"IF(ISBLANK('TA Indicator Bank'!AG202),\"\",'TA Indicator Bank'!AG202)","v":0},{"$f":"IF(ISBLANK('TA Indicator Bank'!AH202),\"\",'TA Indicator Bank'!AH202)","v":0},{"$f":"IF(ISBLANK('TA Indicator Bank'!AI202),\"\",'TA Indicator Bank'!AI202)","v":0},{"$f":"IF(ISBLANK('TA Indicator Bank'!AJ202),\"\",'TA Indicator Bank'!AJ202)","v":0},{"$f":"IF(ISBLANK('TA Indicator Bank'!AK202),\"\",'TA Indicator Bank'!AK202)","v":0},{"$f":"IF(ISBLANK('TA Indicator Bank'!AL202),\"\",'TA Indicator Bank'!AL202)","v":0},{"$f":"IF(ISBLANK('TA Indicator Bank'!AM202),\"\",'TA Indicator Bank'!AM202)","v":0},{"$f":"IF(ISBLANK('TA Indicator Bank'!AN202),\"\",'TA Indicator Bank'!AN202)","v":0},{"$f":"IF(ISBLANK('TA Indicator Bank'!AO202),\"\",'TA Indicator Bank'!AO202)","v":0},{"$f":"IF(ISBLANK('TA Indicator Bank'!AP202),\"\",'TA Indicator Bank'!AP202)","v":0},{"$f":"IF(ISBLANK('TA Indicator Bank'!AQ202),\"\",'TA Indicator Bank'!AQ202)","v":1},{"$f":"IF(ISBLANK('TA Indicator Bank'!AR202),\"\",'TA Indicator Bank'!AR202)","v":0},{"$f":"IF(ISBLANK('TA Indicator Bank'!AS202),\"\",'TA Indicator Bank'!AS202)","v":0},{"$f":"IF(ISBLANK('TA Indicator Bank'!AT202),\"\",'TA Indicator Bank'!AT202)","v":0},{"$f":"IF(AND(J206=1,J$410=1),1,0)","v":0},{"$f":"IF(AND(K206=1,K$410=1),1,0)","v":0},{"$f":"IF(AND(L206=1,L$410=1),1,0)","v":0},{"$f":"IF(AND(M206=1,M$410=1),1,0)","v":0},{"$f":"IF(AND(N206=1,N$410=1),1,0)","v":1},{"$f":"IF(AND(O206=1,O$410=1),1,0)","v":0},{"$f":"IF(AND(P206=1,P$410=1),1,0)","v":0},{"$f":"IF(AND(Q206=1,Q$410=1),1,0)","v":0},{"$f":"IF(AND(R206=1,R$410=1),1,0)","v":0},{"$f":"IF(AND(S206=1,S$410=1),1,0)","v":0},{"$f":"IF(AND(T206=1,T$410=1),1,0)","v":0},{"$f":"IF(AND(U206=1,U$410=1),1,0)","v":0},{"$f":"IF(AND(V206=1,V$410=1),1,0)","v":0},{"$f":"IF(AND(W206=1,W$410=1),1,0)","v":0},1,{"$f":"IF(AND(X206=1,X$410=1),1,0)","v":0},{"$f":"IF(AND(Y206=1,Y$410=1),1,0)","v":0},{"$f":"IF(AND(Z206=1,Z$410=1),1,0)","v":0},{"$f":"IF(AND(AA206=1,AA$410=1),1,0)","v":0},{"$f":"IF(AND(AB206=1,AB$410=1),1,0)","v":0},{"$f":"IF(AND(AC206=1,AC$410=1),1,0)","v":0},{"$f":"IF(AND(AD206=1,AD$410=1),1,0)","v":0},{"$f":"IF(AND(AE206=1,AE$410=1),1,0)","v":0},{"$f":"IF(AND(AF206=1,AF$410=1),1,0)","v":0},1,{"$f":"IF(AND(AG206=1,AG$410=1),1,0)","v":0},{"$f":"IF(AND(AH206=1,AH$410=1),1,0)","v":0},{"$f":"IF(AND(AI206=1,AI$410=1),1,0)","v":0},{"$f":"IF(AND(AJ206=1,AJ$410=1),1,0)","v":0},{"$f":"IF(AND(AK206=1,AK$410=1),1,0)","v":0},{"$f":"IF(AND(AL206=1,AL$410=1),1,0)","v":0},{"$f":"IF(AND(AM206=1,AM$410=1),1,0)","v":0},{"$f":"IF(AND(AN206=1,AN$410=1),1,0)","v":0},{"$f":"IF(AND(AO206=1,AO$410=1),1,0)","v":0},1,{"$f":"IF(AND(AP206=1,AP$410=1),1,0)","v":0},{"$f":"IF(AND(AQ206=1,AQ$410=1),1,0)","v":1},{"$f":"IF(AND(AR206=1,AR$410=1),1,0)","v":0},{"$f":"IF(AND(AS206=1,AS$410=1),1,0)","v":0},{"$f":"IF(AND(AT206=1,AT$410=1),1,0)","v":0},1,1,198,198,{"$f":"IFERROR(SMALL($CL$9:$CL$408,CK206),\"\")","v":198},{"$f":"IFERROR(INDEX($B$9:$I$408,$CM206,COLUMNS($CN$9:CN206)),\"\")","v":"TA198"},{"$f":"IFERROR(INDEX($B$9:$I$408,$CM206,COLUMNS($CN$9:CO206)),\"\")","v":"Knowledge product is assessed as useful by stakeholders"},{"$f":"IFERROR(INDEX($B$9:$I$408,$CM206,COLUMNS($CN$9:CP206)),\"\")","v":"-"},{"$f":"IFERROR(INDEX($B$9:$I$408,$CM206,COLUMNS($CN$9:CQ206)),\"\")","v":"Uptake"},{"$f":"IFERROR(INDEX($B$9:$I$408,$CM206,COLUMNS($CN$9:CR206)),\"\")","v":"Specialist research, inc. market / policy / legal / regulatory / technology research briefs"},{"$f":"IFERROR(INDEX($B$9:$I$408,$CM206,COLUMNS($CN$9:CS206)),\"\")","v":"-"},{"$f":"IFERROR(INDEX($B$9:$I$408,$CM206,COLUMNS($CN$9:CT206)),\"\")","v":"-"},{"$f":"IFERROR(INDEX($B$9:$I$408,$CM206,COLUMNS($CN$9:CU206)),\"\")","v":"Yes/No"}]
[null,{"$f":"IF(ISBLANK('TA Indicator Bank'!B203),\"\",'TA Indicator Bank'!B203)","v":"TA199"},{"$f":"IF(ISBLANK('TA Indicator Bank'!C203),\"\",'TA Indicator Bank'!C203)","v":"Percentage of targeted population that is aware of certain issue"},{"$f":"IF(ISBLANK('TA Indicator Bank'!D203),\"\",'TA Indicator Bank'!D203)","v":"-"},{"$f":"IF(ISBLANK('TA Indicator Bank'!E203),\"\",'TA Indicator Bank'!E203)","v":"Outcome"},{"$f":"IF(ISBLANK('TA Indicator Bank'!F203),\"\",'TA Indicator Bank'!F203)","v":"-"},{"$f":"IF(ISBLANK('TA Indicator Bank'!G203),\"\",'TA Indicator Bank'!G203)","v":"-"},{"$f":"IF(ISBLANK('TA Indicator Bank'!H203),\"\",'TA Indicator Bank'!H203)","v":"Increased access to information/knowledge; Improved domestic co-ordination"},{"$f":"IF(ISBLANK('TA Indicator Bank'!I203),\"\",'TA Indicator Bank'!I203)","v":"Percentage"},{"$f":"IF(ISBLANK('TA Indicator Bank'!J203),\"\",'TA Indicator Bank'!J203)","v":0},{"$f":"IF(ISBLANK('TA Indicator Bank'!K203),\"\",'TA Indicator Bank'!K203)","v":0},{"$f":"IF(ISBLANK('TA Indicator Bank'!L203),\"\",'TA Indicator Bank'!L203)","v":0},{"$f":"IF(ISBLANK('TA Indicator Bank'!M203),\"\",'TA Indicator Bank'!M203)","v":0},{"$f":"IF(ISBLANK('TA Indicator Bank'!N203),\"\",'TA Indicator Bank'!N203)","v":0},{"$f":"IF(ISBLANK('TA Indicator Bank'!O203),\"\",'TA Indicator Bank'!O203)","v":0},{"$f":"IF(ISBLANK('TA Indicator Bank'!P203),\"\",'TA Indicator Bank'!P203)","v":0},{"$f":"IF(ISBLANK('TA Indicator Bank'!Q203),\"\",'TA Indicator Bank'!Q203)","v":0},{"$f":"IF(ISBLANK('TA Indicator Bank'!R203),\"\",'TA Indicator Bank'!R203)","v":0},{"$f":"IF(ISBLANK('TA Indicator Bank'!S203),\"\",'TA Indicator Bank'!S203)","v":0},{"$f":"IF(ISBLANK('TA Indicator Bank'!T203),\"\",'TA Indicator Bank'!T203)","v":0},{"$f":"IF(ISBLANK('TA Indicator Bank'!U203),\"\",'TA Indicator Bank'!U203)","v":0},{"$f":"IF(ISBLANK('TA Indicator Bank'!V203),\"\",'TA Indicator Bank'!V203)","v":0},{"$f":"IF(ISBLANK('TA Indicator Bank'!W203),\"\",'TA Indicator Bank'!W203)","v":0},{"$f":"IF(ISBLANK('TA Indicator Bank'!X203),\"\",'TA Indicator Bank'!X203)","v":0},{"$f":"IF(ISBLANK('TA Indicator Bank'!Y203),\"\",'TA Indicator Bank'!Y203)","v":0},{"$f":"IF(ISBLANK('TA Indicator Bank'!Z203),\"\",'TA Indicator Bank'!Z203)","v":0},{"$f":"IF(ISBLANK('TA Indicator Bank'!AA203),\"\",'TA Indicator Bank'!AA203)","v":0},{"$f":"IF(ISBLANK('TA Indicator Bank'!AB203),\"\",'TA Indicator Bank'!AB203)","v":0},{"$f":"IF(ISBLANK('TA Indicator Bank'!AC203),\"\",'TA Indicator Bank'!AC203)","v":0},{"$f":"IF(ISBLANK('TA Indicator Bank'!AD203),\"\",'TA Indicator Bank'!AD203)","v":0},{"$f":"IF(ISBLANK('TA Indicator Bank'!AE203),\"\",'TA Indicator Bank'!AE203)","v":0},{"$f":"IF(ISBLANK('TA Indicator Bank'!AF203),\"\",'TA Indicator Bank'!AF203)","v":0},{"$f":"IF(ISBLANK('TA Indicator Bank'!AG203),\"\",'TA Indicator Bank'!AG203)","v":0},{"$f":"IF(ISBLANK('TA Indicator Bank'!AH203),\"\",'TA Indicator Bank'!AH203)","v":1},{"$f":"IF(ISBLANK('TA Indicator Bank'!AI203),\"\",'TA Indicator Bank'!AI203)","v":1},{"$f":"IF(ISBLANK('TA Indicator Bank'!AJ203),\"\",'TA Indicator Bank'!AJ203)","v":0},{"$f":"IF(ISBLANK('TA Indicator Bank'!AK203),\"\",'TA Indicator Bank'!AK203)","v":0},{"$f":"IF(ISBLANK('TA Indicator Bank'!AL203),\"\",'TA Indicator Bank'!AL203)","v":0},{"$f":"IF(ISBLANK('TA Indicator Bank'!AM203),\"\",'TA Indicator Bank'!AM203)","v":0},{"$f":"IF(ISBLANK('TA Indicator Bank'!AN203),\"\",'TA Indicator Bank'!AN203)","v":0},{"$f":"IF(ISBLANK('TA Indicator Bank'!AO203),\"\",'TA Indicator Bank'!AO203)","v":0},{"$f":"IF(ISBLANK('TA Indicator Bank'!AP203),\"\",'TA Indicator Bank'!AP203)","v":0},{"$f":"IF(ISBLANK('TA Indicator Bank'!AQ203),\"\",'TA Indicator Bank'!AQ203)","v":0},{"$f":"IF(ISBLANK('TA Indicator Bank'!AR203),\"\",'TA Indicator Bank'!AR203)","v":0},{"$f":"IF(ISBLANK('TA Indicator Bank'!AS203),\"\",'TA Indicator Bank'!AS203)","v":1},{"$f":"IF(ISBLANK('TA Indicator Bank'!AT203),\"\",'TA Indicator Bank'!AT203)","v":0},{"$f":"IF(AND(J207=1,J$410=1),1,0)","v":0},{"$f":"IF(AND(K207=1,K$410=1),1,0)","v":0},{"$f":"IF(AND(L207=1,L$410=1),1,0)","v":0},{"$f":"IF(AND(M207=1,M$410=1),1,0)","v":0},{"$f":"IF(AND(N207=1,N$410=1),1,0)","v":0},{"$f":"IF(AND(O207=1,O$410=1),1,0)","v":0},{"$f":"IF(AND(P207=1,P$410=1),1,0)","v":0},{"$f":"IF(AND(Q207=1,Q$410=1),1,0)","v":0},{"$f":"IF(AND(R207=1,R$410=1),1,0)","v":0},{"$f":"IF(AND(S207=1,S$410=1),1,0)","v":0},{"$f":"IF(AND(T207=1,T$410=1),1,0)","v":0},{"$f":"IF(AND(U207=1,U$410=1),1,0)","v":0},{"$f":"IF(AND(V207=1,V$410=1),1,0)","v":0},{"$f":"IF(AND(W207=1,W$410=1),1,0)","v":0},1,{"$f":"IF(AND(X207=1,X$410=1),1,0)","v":0},{"$f":"IF(AND(Y207=1,Y$410=1),1,0)","v":0},{"$f":"IF(AND(Z207=1,Z$410=1),1,0)","v":0},{"$f":"IF(AND(AA207=1,AA$410=1),1,0)","v":0},{"$f":"IF(AND(AB207=1,AB$410=1),1,0)","v":0},{"$f":"IF(AND(AC207=1,AC$410=1),1,0)","v":0},{"$f":"IF(AND(AD207=1,AD$410=1),1,0)","v":0},{"$f":"IF(AND(AE207=1,AE$410=1),1,0)","v":0},{"$f":"IF(AND(AF207=1,AF$410=1),1,0)","v":0},1,{"$f":"IF(AND(AG207=1,AG$410=1),1,0)","v":0},{"$f":"IF(AND(AH207=1,AH$410=1),1,0)","v":1},{"$f":"IF(AND(AI207=1,AI$410=1),1,0)","v":1},{"$f":"IF(AND(AJ207=1,AJ$410=1),1,0)","v":0},{"$f":"IF(AND(AK207=1,AK$410=1),1,0)","v":0},{"$f":"IF(AND(AL207=1,AL$410=1),1,0)","v":0},{"$f":"IF(AND(AM207=1,AM$410=1),1,0)","v":0},{"$f":"IF(AND(AN207=1,AN$410=1),1,0)","v":0},{"$f":"IF(AND(AO207=1,AO$410=1),1,0)","v":0},1,{"$f":"IF(AND(AP207=1,AP$410=1),1,0)","v":0},{"$f":"IF(AND(AQ207=1,AQ$410=1),1,0)","v":0},{"$f":"IF(AND(AR207=1,AR$410=1),1,0)","v":0},{"$f":"IF(AND(AS207=1,AS$410=1),1,0)","v":1},{"$f":"IF(AND(AT207=1,AT$410=1),1,0)","v":0},1,1,199,199,{"$f":"IFERROR(SMALL($CL$9:$CL$408,CK207),\"\")","v":199},{"$f":"IFERROR(INDEX($B$9:$I$408,$CM207,COLUMNS($CN$9:CN207)),\"\")","v":"TA199"},{"$f":"IFERROR(INDEX($B$9:$I$408,$CM207,COLUMNS($CN$9:CO207)),\"\")","v":"Percentage of targeted population that is aware of certain issue"},{"$f":"IFERROR(INDEX($B$9:$I$408,$CM207,COLUMNS($CN$9:CP207)),\"\")","v":"-"},{"$f":"IFERROR(INDEX($B$9:$I$408,$CM207,COLUMNS($CN$9:CQ207)),\"\")","v":"Outcome"},{"$f":"IFERROR(INDEX($B$9:$I$408,$CM207,COLUMNS($CN$9:CR207)),\"\")","v":"-"},{"$f":"IFERROR(INDEX($B$9:$I$408,$CM207,COLUMNS($CN$9:CS207)),\"\")","v":"-"},{"$f":"IFERROR(INDEX($B$9:$I$408,$CM207,COLUMNS($CN$9:CT207)),\"\")","v":"Increased access to information/knowledge; Improved domestic co-ordination"},{"$f":"IFERROR(INDEX($B$9:$I$408,$CM207,COLUMNS($CN$9:CU207)),\"\")","v":"Percentage"}]
[null,{"$f":"IF(ISBLANK('TA Indicator Bank'!B204),\"\",'TA Indicator Bank'!B204)","v":"TA200"},{"$f":"IF(ISBLANK('TA Indicator Bank'!C204),\"\",'TA Indicator Bank'!C204)","v":"Number of countries that refer to the knowledge product"},{"$f":"IF(ISBLANK('TA Indicator Bank'!D204),\"\",'TA Indicator Bank'!D204)","v":"-"},{"$f":"IF(ISBLANK('TA Indicator Bank'!E204),\"\",'TA Indicator Bank'!E204)","v":"Uptake"},{"$f":"IF(ISBLANK('TA Indicator Bank'!F204),\"\",'TA Indicator Bank'!F204)","v":"Specialist research, inc. market / policy / legal / regulatory / technology research briefs"},{"$f":"IF(ISBLANK('TA Indicator Bank'!G204),\"\",'TA Indicator Bank'!G204)","v":"-"},{"$f":"IF(ISBLANK('TA Indicator Bank'!H204),\"\",'TA Indicator Bank'!H204)","v":"-"},{"$f":"IF(ISBLANK('TA Indicator Bank'!I204),\"\",'TA Indicator Bank'!I204)","v":"Number"},{"$f":"IF(ISBLANK('TA Indicator Bank'!J204),\"\",'TA Indicator Bank'!J204)","v":0},{"$f":"IF(ISBLANK('TA Indicator Bank'!K204),\"\",'TA Indicator Bank'!K204)","v":0},{"$f":"IF(ISBLANK('TA Indicator Bank'!L204),\"\",'TA Indicator Bank'!L204)","v":0},{"$f":"IF(ISBLANK('TA Indicator Bank'!M204),\"\",'TA Indicator Bank'!M204)","v":0},{"$f":"IF(ISBLANK('TA Indicator Bank'!N204),\"\",'TA Indicator Bank'!N204)","v":1},{"$f":"IF(ISBLANK('TA Indicator Bank'!O204),\"\",'TA Indicator Bank'!O204)","v":0},{"$f":"IF(ISBLANK('TA Indicator Bank'!P204),\"\",'TA Indicator Bank'!P204)","v":0},{"$f":"IF(ISBLANK('TA Indicator Bank'!Q204),\"\",'TA Indicator Bank'!Q204)","v":0},{"$f":"IF(ISBLANK('TA Indicator Bank'!R204),\"\",'TA Indicator Bank'!R204)","v":0},{"$f":"IF(ISBLANK('TA Indicator Bank'!S204),\"\",'TA Indicator Bank'!S204)","v":0},{"$f":"IF(ISBLANK('TA Indicator Bank'!T204),\"\",'TA Indicator Bank'!T204)","v":0},{"$f":"IF(ISBLANK('TA Indicator Bank'!U204),\"\",'TA Indicator Bank'!U204)","v":0},{"$f":"IF(ISBLANK('TA Indicator Bank'!V204),\"\",'TA Indicator Bank'!V204)","v":0},{"$f":"IF(ISBLANK('TA Indicator Bank'!W204),\"\",'TA Indicator Bank'!W204)","v":0},{"$f":"IF(ISBLANK('TA Indicator Bank'!X204),\"\",'TA Indicator Bank'!X204)","v":0},{"$f":"IF(ISBLANK('TA Indicator Bank'!Y204),\"\",'TA Indicator Bank'!Y204)","v":0},{"$f":"IF(ISBLANK('TA Indicator Bank'!Z204),\"\",'TA Indicator Bank'!Z204)","v":0},{"$f":"IF(ISBLANK('TA Indicator Bank'!AA204),\"\",'TA Indicator Bank'!AA204)","v":0},{"$f":"IF(ISBLANK('TA Indicator Bank'!AB204),\"\",'TA Indicator Bank'!AB204)","v":0},{"$f":"IF(ISBLANK('TA Indicator Bank'!AC204),\"\",'TA Indicator Bank'!AC204)","v":0},{"$f":"IF(ISBLANK('TA Indicator Bank'!AD204),\"\",'TA Indicator Bank'!AD204)","v":0},{"$f":"IF(ISBLANK('TA Indicator Bank'!AE204),\"\",'TA Indicator Bank'!AE204)","v":0},{"$f":"IF(ISBLANK('TA Indicator Bank'!AF204),\"\",'TA Indicator Bank'!AF204)","v":0},{"$f":"IF(ISBLANK('TA Indicator Bank'!AG204),\"\",'TA Indicator Bank'!AG204)","v":0},{"$f":"IF(ISBLANK('TA Indicator Bank'!AH204),\"\",'TA Indicator Bank'!AH204)","v":0},{"$f":"IF(ISBLANK('TA Indicator Bank'!AI204),\"\",'TA Indicator Bank'!AI204)","v":0},{"$f":"IF(ISBLANK('TA Indicator Bank'!AJ204),\"\",'TA Indicator Bank'!AJ204)","v":0},{"$f":"IF(ISBLANK('TA Indicator Bank'!AK204),\"\",'TA Indicator Bank'!AK204)","v":0},{"$f":"IF(ISBLANK('TA Indicator Bank'!AL204),\"\",'TA Indicator Bank'!AL204)","v":0},{"$f":"IF(ISBLANK('TA Indicator Bank'!AM204),\"\",'TA Indicator Bank'!AM204)","v":0},{"$f":"IF(ISBLANK('TA Indicator Bank'!AN204),\"\",'TA Indicator Bank'!AN204)","v":0},{"$f":"IF(ISBLANK('TA Indicator Bank'!AO204),\"\",'TA Indicator Bank'!AO204)","v":0},{"$f":"IF(ISBLANK('TA Indicator Bank'!AP204),\"\",'TA Indicator Bank'!AP204)","v":0},{"$f":"IF(ISBLANK('TA Indicator Bank'!AQ204),\"\",'TA Indicator Bank'!AQ204)","v":1},{"$f":"IF(ISBLANK('TA Indicator Bank'!AR204),\"\",'TA Indicator Bank'!AR204)","v":0},{"$f":"IF(ISBLANK('TA Indicator Bank'!AS204),\"\",'TA Indicator Bank'!AS204)","v":0},{"$f":"IF(ISBLANK('TA Indicator Bank'!AT204),\"\",'TA Indicator Bank'!AT204)","v":0},{"$f":"IF(AND(J208=1,J$410=1),1,0)","v":0},{"$f":"IF(AND(K208=1,K$410=1),1,0)","v":0},{"$f":"IF(AND(L208=1,L$410=1),1,0)","v":0},{"$f":"IF(AND(M208=1,M$410=1),1,0)","v":0},{"$f":"IF(AND(N208=1,N$410=1),1,0)","v":1},{"$f":"IF(AND(O208=1,O$410=1),1,0)","v":0},{"$f":"IF(AND(P208=1,P$410=1),1,0)","v":0},{"$f":"IF(AND(Q208=1,Q$410=1),1,0)","v":0},{"$f":"IF(AND(R208=1,R$410=1),1,0)","v":0},{"$f":"IF(AND(S208=1,S$410=1),1,0)","v":0},{"$f":"IF(AND(T208=1,T$410=1),1,0)","v":0},{"$f":"IF(AND(U208=1,U$410=1),1,0)","v":0},{"$f":"IF(AND(V208=1,V$410=1),1,0)","v":0},{"$f":"IF(AND(W208=1,W$410=1),1,0)","v":0},1,{"$f":"IF(AND(X208=1,X$410=1),1,0)","v":0},{"$f":"IF(AND(Y208=1,Y$410=1),1,0)","v":0},{"$f":"IF(AND(Z208=1,Z$410=1),1,0)","v":0},{"$f":"IF(AND(AA208=1,AA$410=1),1,0)","v":0},{"$f":"IF(AND(AB208=1,AB$410=1),1,0)","v":0},{"$f":"IF(AND(AC208=1,AC$410=1),1,0)","v":0},{"$f":"IF(AND(AD208=1,AD$410=1),1,0)","v":0},{"$f":"IF(AND(AE208=1,AE$410=1),1,0)","v":0},{"$f":"IF(AND(AF208=1,AF$410=1),1,0)","v":0},1,{"$f":"IF(AND(AG208=1,AG$410=1),1,0)","v":0},{"$f":"IF(AND(AH208=1,AH$410=1),1,0)","v":0},{"$f":"IF(AND(AI208=1,AI$410=1),1,0)","v":0},{"$f":"IF(AND(AJ208=1,AJ$410=1),1,0)","v":0},{"$f":"IF(AND(AK208=1,AK$410=1),1,0)","v":0},{"$f":"IF(AND(AL208=1,AL$410=1),1,0)","v":0},{"$f":"IF(AND(AM208=1,AM$410=1),1,0)","v":0},{"$f":"IF(AND(AN208=1,AN$410=1),1,0)","v":0},{"$f":"IF(AND(AO208=1,AO$410=1),1,0)","v":0},1,{"$f":"IF(AND(AP208=1,AP$410=1),1,0)","v":0},{"$f":"IF(AND(AQ208=1,AQ$410=1),1,0)","v":1},{"$f":"IF(AND(AR208=1,AR$410=1),1,0)","v":0},{"$f":"IF(AND(AS208=1,AS$410=1),1,0)","v":0},{"$f":"IF(AND(AT208=1,AT$410=1),1,0)","v":0},1,1,200,200,{"$f":"IFERROR(SMALL($CL$9:$CL$408,CK208),\"\")","v":200},{"$f":"IFERROR(INDEX($B$9:$I$408,$CM208,COLUMNS($CN$9:CN208)),\"\")","v":"TA200"},{"$f":"IFERROR(INDEX($B$9:$I$408,$CM208,COLUMNS($CN$9:CO208)),\"\")","v":"Number of countries that refer to the knowledge product"},{"$f":"IFERROR(INDEX($B$9:$I$408,$CM208,COLUMNS($CN$9:CP208)),\"\")","v":"-"},{"$f":"IFERROR(INDEX($B$9:$I$408,$CM208,COLUMNS($CN$9:CQ208)),\"\")","v":"Uptake"},{"$f":"IFERROR(INDEX($B$9:$I$408,$CM208,COLUMNS($CN$9:CR208)),\"\")","v":"Specialist research, inc. market / policy / legal / regulatory / technology research briefs"},{"$f":"IFERROR(INDEX($B$9:$I$408,$CM208,COLUMNS($CN$9:CS208)),\"\")","v":"-"},{"$f":"IFERROR(INDEX($B$9:$I$408,$CM208,COLUMNS($CN$9:CT208)),\"\")","v":"-"},{"$f":"IFERROR(INDEX($B$9:$I$408,$CM208,COLUMNS($CN$9:CU208)),\"\")","v":"Number"}]
[null,{"$f":"IF(ISBLANK('TA Indicator Bank'!B205),\"\",'TA Indicator Bank'!B205)","v":"TA201"},{"$f":"IF(ISBLANK('TA Indicator Bank'!C205),\"\",'TA Indicator Bank'!C205)","v":"Number of policies where better information is used"},{"$f":"IF(ISBLANK('TA Indicator Bank'!D205),\"\",'TA Indicator Bank'!D205)","v":"-"},{"$f":"IF(ISBLANK('TA Indicator Bank'!E205),\"\",'TA Indicator Bank'!E205)","v":"Outcome"},{"$f":"IF(ISBLANK('TA Indicator Bank'!F205),\"\",'TA Indicator Bank'!F205)","v":"-"},{"$f":"IF(ISBLANK('TA Indicator Bank'!G205),\"\",'TA Indicator Bank'!G205)","v":"-"},{"$f":"IF(ISBLANK('TA Indicator Bank'!H205),\"\",'TA Indicator Bank'!H205)","v":"Increased access to information/knowledge"},{"$f":"IF(ISBLANK('TA Indicator Bank'!I205),\"\",'TA Indicator Bank'!I205)","v":"Number"},{"$f":"IF(ISBLANK('TA Indicator Bank'!J205),\"\",'TA Indicator Bank'!J205)","v":0},{"$f":"IF(ISBLANK('TA Indicator Bank'!K205),\"\",'TA Indicator Bank'!K205)","v":0},{"$f":"IF(ISBLANK('TA Indicator Bank'!L205),\"\",'TA Indicator Bank'!L205)","v":0},{"$f":"IF(ISBLANK('TA Indicator Bank'!M205),\"\",'TA Indicator Bank'!M205)","v":0},{"$f":"IF(ISBLANK('TA Indicator Bank'!N205),\"\",'TA Indicator Bank'!N205)","v":0},{"$f":"IF(ISBLANK('TA Indicator Bank'!O205),\"\",'TA Indicator Bank'!O205)","v":0},{"$f":"IF(ISBLANK('TA Indicator Bank'!P205),\"\",'TA Indicator Bank'!P205)","v":0},{"$f":"IF(ISBLANK('TA Indicator Bank'!Q205),\"\",'TA Indicator Bank'!Q205)","v":0},{"$f":"IF(ISBLANK('TA Indicator Bank'!R205),\"\",'TA Indicator Bank'!R205)","v":0},{"$f":"IF(ISBLANK('TA Indicator Bank'!S205),\"\",'TA Indicator Bank'!S205)","v":0},{"$f":"IF(ISBLANK('TA Indicator Bank'!T205),\"\",'TA Indicator Bank'!T205)","v":0},{"$f":"IF(ISBLANK('TA Indicator Bank'!U205),\"\",'TA Indicator Bank'!U205)","v":0},{"$f":"IF(ISBLANK('TA Indicator Bank'!V205),\"\",'TA Indicator Bank'!V205)","v":0},{"$f":"IF(ISBLANK('TA Indicator Bank'!W205),\"\",'TA Indicator Bank'!W205)","v":0},{"$f":"IF(ISBLANK('TA Indicator Bank'!X205),\"\",'TA Indicator Bank'!X205)","v":0},{"$f":"IF(ISBLANK('TA Indicator Bank'!Y205),\"\",'TA Indicator Bank'!Y205)","v":0},{"$f":"IF(ISBLANK('TA Indicator Bank'!Z205),\"\",'TA Indicator Bank'!Z205)","v":0},{"$f":"IF(ISBLANK('TA Indicator Bank'!AA205),\"\",'TA Indicator Bank'!AA205)","v":0},{"$f":"IF(ISBLANK('TA Indicator Bank'!AB205),\"\",'TA Indicator Bank'!AB205)","v":0},{"$f":"IF(ISBLANK('TA Indicator Bank'!AC205),\"\",'TA Indicator Bank'!AC205)","v":0},{"$f":"IF(ISBLANK('TA Indicator Bank'!AD205),\"\",'TA Indicator Bank'!AD205)","v":0},{"$f":"IF(ISBLANK('TA Indicator Bank'!AE205),\"\",'TA Indicator Bank'!AE205)","v":0},{"$f":"IF(ISBLANK('TA Indicator Bank'!AF205),\"\",'TA Indicator Bank'!AF205)","v":0},{"$f":"IF(ISBLANK('TA Indicator Bank'!AG205),\"\",'TA Indicator Bank'!AG205)","v":0},{"$f":"IF(ISBLANK('TA Indicator Bank'!AH205),\"\",'TA Indicator Bank'!AH205)","v":1},{"$f":"IF(ISBLANK('TA Indicator Bank'!AI205),\"\",'TA Indicator Bank'!AI205)","v":0},{"$f":"IF(ISBLANK('TA Indicator Bank'!AJ205),\"\",'TA Indicator Bank'!AJ205)","v":0},{"$f":"IF(ISBLANK('TA Indicator Bank'!AK205),\"\",'TA Indicator Bank'!AK205)","v":0},{"$f":"IF(ISBLANK('TA Indicator Bank'!AL205),\"\",'TA Indicator Bank'!AL205)","v":0},{"$f":"IF(ISBLANK('TA Indicator Bank'!AM205),\"\",'TA Indicator Bank'!AM205)","v":0},{"$f":"IF(ISBLANK('TA Indicator Bank'!AN205),\"\",'TA Indicator Bank'!AN205)","v":0},{"$f":"IF(ISBLANK('TA Indicator Bank'!AO205),\"\",'TA Indicator Bank'!AO205)","v":0},{"$f":"IF(ISBLANK('TA Indicator Bank'!AP205),\"\",'TA Indicator Bank'!AP205)","v":0},{"$f":"IF(ISBLANK('TA Indicator Bank'!AQ205),\"\",'TA Indicator Bank'!AQ205)","v":0},{"$f":"IF(ISBLANK('TA Indicator Bank'!AR205),\"\",'TA Indicator Bank'!AR205)","v":0},{"$f":"IF(ISBLANK('TA Indicator Bank'!AS205),\"\",'TA Indicator Bank'!AS205)","v":1},{"$f":"IF(ISBLANK('TA Indicator Bank'!AT205),\"\",'TA Indicator Bank'!AT205)","v":0},{"$f":"IF(AND(J209=1,J$410=1),1,0)","v":0},{"$f":"IF(AND(K209=1,K$410=1),1,0)","v":0},{"$f":"IF(AND(L209=1,L$410=1),1,0)","v":0},{"$f":"IF(AND(M209=1,M$410=1),1,0)","v":0},{"$f":"IF(AND(N209=1,N$410=1),1,0)","v":0},{"$f":"IF(AND(O209=1,O$410=1),1,0)","v":0},{"$f":"IF(AND(P209=1,P$410=1),1,0)","v":0},{"$f":"IF(AND(Q209=1,Q$410=1),1,0)","v":0},{"$f":"IF(AND(R209=1,R$410=1),1,0)","v":0},{"$f":"IF(AND(S209=1,S$410=1),1,0)","v":0},{"$f":"IF(AND(T209=1,T$410=1),1,0)","v":0},{"$f":"IF(AND(U209=1,U$410=1),1,0)","v":0},{"$f":"IF(AND(V209=1,V$410=1),1,0)","v":0},{"$f":"IF(AND(W209=1,W$410=1),1,0)","v":0},1,{"$f":"IF(AND(X209=1,X$410=1),1,0)","v":0},{"$f":"IF(AND(Y209=1,Y$410=1),1,0)","v":0},{"$f":"IF(AND(Z209=1,Z$410=1),1,0)","v":0},{"$f":"IF(AND(AA209=1,AA$410=1),1,0)","v":0},{"$f":"IF(AND(AB209=1,AB$410=1),1,0)","v":0},{"$f":"IF(AND(AC209=1,AC$410=1),1,0)","v":0},{"$f":"IF(AND(AD209=1,AD$410=1),1,0)","v":0},{"$f":"IF(AND(AE209=1,AE$410=1),1,0)","v":0},{"$f":"IF(AND(AF209=1,AF$410=1),1,0)","v":0},1,{"$f":"IF(AND(AG209=1,AG$410=1),1,0)","v":0},{"$f":"IF(AND(AH209=1,AH$410=1),1,0)","v":1},{"$f":"IF(AND(AI209=1,AI$410=1),1,0)","v":0},{"$f":"IF(AND(AJ209=1,AJ$410=1),1,0)","v":0},{"$f":"IF(AND(AK209=1,AK$410=1),1,0)","v":0},{"$f":"IF(AND(AL209=1,AL$410=1),1,0)","v":0},{"$f":"IF(AND(AM209=1,AM$410=1),1,0)","v":0},{"$f":"IF(AND(AN209=1,AN$410=1),1,0)","v":0},{"$f":"IF(AND(AO209=1,AO$410=1),1,0)","v":0},1,{"$f":"IF(AND(AP209=1,AP$410=1),1,0)","v":0},{"$f":"IF(AND(AQ209=1,AQ$410=1),1,0)","v":0},{"$f":"IF(AND(AR209=1,AR$410=1),1,0)","v":0},{"$f":"IF(AND(AS209=1,AS$410=1),1,0)","v":1},{"$f":"IF(AND(AT209=1,AT$410=1),1,0)","v":0},1,1,201,201,{"$f":"IFERROR(SMALL($CL$9:$CL$408,CK209),\"\")","v":201},{"$f":"IFERROR(INDEX($B$9:$I$408,$CM209,COLUMNS($CN$9:CN209)),\"\")","v":"TA201"},{"$f":"IFERROR(INDEX($B$9:$I$408,$CM209,COLUMNS($CN$9:CO209)),\"\")","v":"Number of policies where better information is used"},{"$f":"IFERROR(INDEX($B$9:$I$408,$CM209,COLUMNS($CN$9:CP209)),\"\")","v":"-"},{"$f":"IFERROR(INDEX($B$9:$I$408,$CM209,COLUMNS($CN$9:CQ209)),\"\")","v":"Outcome"},{"$f":"IFERROR(INDEX($B$9:$I$408,$CM209,COLUMNS($CN$9:CR209)),\"\")","v":"-"},{"$f":"IFERROR(INDEX($B$9:$I$408,$CM209,COLUMNS($CN$9:CS209)),\"\")","v":"-"},{"$f":"IFERROR(INDEX($B$9:$I$408,$CM209,COLUMNS($CN$9:CT209)),\"\")","v":"Increased access to information/knowledge"},{"$f":"IFERROR(INDEX($B$9:$I$408,$CM209,COLUMNS($CN$9:CU209)),\"\")","v":"Number"}]
[null,{"$f":"IF(ISBLANK('TA Indicator Bank'!B206),\"\",'TA Indicator Bank'!B206)","v":"TA202"},{"$f":"IF(ISBLANK('TA Indicator Bank'!C206),\"\",'TA Indicator Bank'!C206)","v":"Number of policymakers/stakeholder that use new information for decision making"},{"$f":"IF(ISBLANK('TA Indicator Bank'!D206),\"\",'TA Indicator Bank'!D206)","v":"-"},{"$f":"IF(ISBLANK('TA Indicator Bank'!E206),\"\",'TA Indicator Bank'!E206)","v":"Outcome"},{"$f":"IF(ISBLANK('TA Indicator Bank'!F206),\"\",'TA Indicator Bank'!F206)","v":"-"},{"$f":"IF(ISBLANK('TA Indicator Bank'!G206),\"\",'TA Indicator Bank'!G206)","v":"-"},{"$f":"IF(ISBLANK('TA Indicator Bank'!H206),\"\",'TA Indicator Bank'!H206)","v":"Increased access to information/knowledge"},{"$f":"IF(ISBLANK('TA Indicator Bank'!I206),\"\",'TA Indicator Bank'!I206)","v":"Number"},{"$f":"IF(ISBLANK('TA Indicator Bank'!J206),\"\",'TA Indicator Bank'!J206)","v":0},{"$f":"IF(ISBLANK('TA Indicator Bank'!K206),\"\",'TA Indicator Bank'!K206)","v":0},{"$f":"IF(ISBLANK('TA Indicator Bank'!L206),\"\",'TA Indicator Bank'!L206)","v":0},{"$f":"IF(ISBLANK('TA Indicator Bank'!M206),\"\",'TA Indicator Bank'!M206)","v":0},{"$f":"IF(ISBLANK('TA Indicator Bank'!N206),\"\",'TA Indicator Bank'!N206)","v":0},{"$f":"IF(ISBLANK('TA Indicator Bank'!O206),\"\",'TA Indicator Bank'!O206)","v":0},{"$f":"IF(ISBLANK('TA Indicator Bank'!P206),\"\",'TA Indicator Bank'!P206)","v":0},{"$f":"IF(ISBLANK('TA Indicator Bank'!Q206),\"\",'TA Indicator Bank'!Q206)","v":0},{"$f":"IF(ISBLANK('TA Indicator Bank'!R206),\"\",'TA Indicator Bank'!R206)","v":0},{"$f":"IF(ISBLANK('TA Indicator Bank'!S206),\"\",'TA Indicator Bank'!S206)","v":0},{"$f":"IF(ISBLANK('TA Indicator Bank'!T206),\"\",'TA Indicator Bank'!T206)","v":0},{"$f":"IF(ISBLANK('TA Indicator Bank'!U206),\"\",'TA Indicator Bank'!U206)","v":0},{"$f":"IF(ISBLANK('TA Indicator Bank'!V206),\"\",'TA Indicator Bank'!V206)","v":0},{"$f":"IF(ISBLANK('TA Indicator Bank'!W206),\"\",'TA Indicator Bank'!W206)","v":0},{"$f":"IF(ISBLANK('TA Indicator Bank'!X206),\"\",'TA Indicator Bank'!X206)","v":0},{"$f":"IF(ISBLANK('TA Indicator Bank'!Y206),\"\",'TA Indicator Bank'!Y206)","v":0},{"$f":"IF(ISBLANK('TA Indicator Bank'!Z206),\"\",'TA Indicator Bank'!Z206)","v":0},{"$f":"IF(ISBLANK('TA Indicator Bank'!AA206),\"\",'TA Indicator Bank'!AA206)","v":0},{"$f":"IF(ISBLANK('TA Indicator Bank'!AB206),\"\",'TA Indicator Bank'!AB206)","v":0},{"$f":"IF(ISBLANK('TA Indicator Bank'!AC206),\"\",'TA Indicator Bank'!AC206)","v":0},{"$f":"IF(ISBLANK('TA Indicator Bank'!AD206),\"\",'TA Indicator Bank'!AD206)","v":0},{"$f":"IF(ISBLANK('TA Indicator Bank'!AE206),\"\",'TA Indicator Bank'!AE206)","v":0},{"$f":"IF(ISBLANK('TA Indicator Bank'!AF206),\"\",'TA Indicator Bank'!AF206)","v":0},{"$f":"IF(ISBLANK('TA Indicator Bank'!AG206),\"\",'TA Indicator Bank'!AG206)","v":0},{"$f":"IF(ISBLANK('TA Indicator Bank'!AH206),\"\",'TA Indicator Bank'!AH206)","v":1},{"$f":"IF(ISBLANK('TA Indicator Bank'!AI206),\"\",'TA Indicator Bank'!AI206)","v":0},{"$f":"IF(ISBLANK('TA Indicator Bank'!AJ206),\"\",'TA Indicator Bank'!AJ206)","v":0},{"$f":"IF(ISBLANK('TA Indicator Bank'!AK206),\"\",'TA Indicator Bank'!AK206)","v":0},{"$f":"IF(ISBLANK('TA Indicator Bank'!AL206),\"\",'TA Indicator Bank'!AL206)","v":0},{"$f":"IF(ISBLANK('TA Indicator Bank'!AM206),\"\",'TA Indicator Bank'!AM206)","v":0},{"$f":"IF(ISBLANK('TA Indicator Bank'!AN206),\"\",'TA Indicator Bank'!AN206)","v":0},{"$f":"IF(ISBLANK('TA Indicator Bank'!AO206),\"\",'TA Indicator Bank'!AO206)","v":0},{"$f":"IF(ISBLANK('TA Indicator Bank'!AP206),\"\",'TA Indicator Bank'!AP206)","v":0},{"$f":"IF(ISBLANK('TA Indicator Bank'!AQ206),\"\",'TA Indicator Bank'!AQ206)","v":0},{"$f":"IF(ISBLANK('TA Indicator Bank'!AR206),\"\",'TA Indicator Bank'!AR206)","v":0},{"$f":"IF(ISBLANK('TA Indicator Bank'!AS206),\"\",'TA Indicator Bank'!AS206)","v":1},{"$f":"IF(ISBLANK('TA Indicator Bank'!AT206),\"\",'TA Indicator Bank'!AT206)","v":0},{"$f":"IF(AND(J210=1,J$410=1),1,0)","v":0},{"$f":"IF(AND(K210=1,K$410=1),1,0)","v":0},{"$f":"IF(AND(L210=1,L$410=1),1,0)","v":0},{"$f":"IF(AND(M210=1,M$410=1),1,0)","v":0},{"$f":"IF(AND(N210=1,N$410=1),1,0)","v":0},{"$f":"IF(AND(O210=1,O$410=1),1,0)","v":0},{"$f":"IF(AND(P210=1,P$410=1),1,0)","v":0},{"$f":"IF(AND(Q210=1,Q$410=1),1,0)","v":0},{"$f":"IF(AND(R210=1,R$410=1),1,0)","v":0},{"$f":"IF(AND(S210=1,S$410=1),1,0)","v":0},{"$f":"IF(AND(T210=1,T$410=1),1,0)","v":0},{"$f":"IF(AND(U210=1,U$410=1),1,0)","v":0},{"$f":"IF(AND(V210=1,V$410=1),1,0)","v":0},{"$f":"IF(AND(W210=1,W$410=1),1,0)","v":0},1,{"$f":"IF(AND(X210=1,X$410=1),1,0)","v":0},{"$f":"IF(AND(Y210=1,Y$410=1),1,0)","v":0},{"$f":"IF(AND(Z210=1,Z$410=1),1,0)","v":0},{"$f":"IF(AND(AA210=1,AA$410=1),1,0)","v":0},{"$f":"IF(AND(AB210=1,AB$410=1),1,0)","v":0},{"$f":"IF(AND(AC210=1,AC$410=1),1,0)","v":0},{"$f":"IF(AND(AD210=1,AD$410=1),1,0)","v":0},{"$f":"IF(AND(AE210=1,AE$410=1),1,0)","v":0},{"$f":"IF(AND(AF210=1,AF$410=1),1,0)","v":0},1,{"$f":"IF(AND(AG210=1,AG$410=1),1,0)","v":0},{"$f":"IF(AND(AH210=1,AH$410=1),1,0)","v":1},{"$f":"IF(AND(AI210=1,AI$410=1),1,0)","v":0},{"$f":"IF(AND(AJ210=1,AJ$410=1),1,0)","v":0},{"$f":"IF(AND(AK210=1,AK$410=1),1,0)","v":0},{"$f":"IF(AND(AL210=1,AL$410=1),1,0)","v":0},{"$f":"IF(AND(AM210=1,AM$410=1),1,0)","v":0},{"$f":"IF(AND(AN210=1,AN$410=1),1,0)","v":0},{"$f":"IF(AND(AO210=1,AO$410=1),1,0)","v":0},1,{"$f":"IF(AND(AP210=1,AP$410=1),1,0)","v":0},{"$f":"IF(AND(AQ210=1,AQ$410=1),1,0)","v":0},{"$f":"IF(AND(AR210=1,AR$410=1),1,0)","v":0},{"$f":"IF(AND(AS210=1,AS$410=1),1,0)","v":1},{"$f":"IF(AND(AT210=1,AT$410=1),1,0)","v":0},1,1,202,202,{"$f":"IFERROR(SMALL($CL$9:$CL$408,CK210),\"\")","v":202},{"$f":"IFERROR(INDEX($B$9:$I$408,$CM210,COLUMNS($CN$9:CN210)),\"\")","v":"TA202"},{"$f":"IFERROR(INDEX($B$9:$I$408,$CM210,COLUMNS($CN$9:CO210)),\"\")","v":"Number of policymakers/stakeholder that use new information for decision making"},{"$f":"IFERROR(INDEX($B$9:$I$408,$CM210,COLUMNS($CN$9:CP210)),\"\")","v":"-"},{"$f":"IFERROR(INDEX($B$9:$I$408,$CM210,COLUMNS($CN$9:CQ210)),\"\")","v":"Outcome"},{"$f":"IFERROR(INDEX($B$9:$I$408,$CM210,COLUMNS($CN$9:CR210)),\"\")","v":"-"},{"$f":"IFERROR(INDEX($B$9:$I$408,$CM210,COLUMNS($CN$9:CS210)),\"\")","v":"-"},{"$f":"IFERROR(INDEX($B$9:$I$408,$CM210,COLUMNS($CN$9:CT210)),\"\")","v":"Increased access to information/knowledge"},{"$f":"IFERROR(INDEX($B$9:$I$408,$CM210,COLUMNS($CN$9:CU210)),\"\")","v":"Number"}]
[null,{"$f":"IF(ISBLANK('TA Indicator Bank'!B207),\"\",'TA Indicator Bank'!B207)","v":"TA203"},{"$f":"IF(ISBLANK('TA Indicator Bank'!C207),\"\",'TA Indicator Bank'!C207)","v":"Number of countries that are able to create and develop knowledge products themselves"},{"$f":"IF(ISBLANK('TA Indicator Bank'!D207),\"\",'TA Indicator Bank'!D207)","v":"-"},{"$f":"IF(ISBLANK('TA Indicator Bank'!E207),\"\",'TA Indicator Bank'!E207)","v":"Outcome"},{"$f":"IF(ISBLANK('TA Indicator Bank'!F207),\"\",'TA Indicator Bank'!F207)","v":"-"},{"$f":"IF(ISBLANK('TA Indicator Bank'!G207),\"\",'TA Indicator Bank'!G207)","v":"-"},{"$f":"IF(ISBLANK('TA Indicator Bank'!H207),\"\",'TA Indicator Bank'!H207)","v":"Increased access to information/knowledge"},{"$f":"IF(ISBLANK('TA Indicator Bank'!I207),\"\",'TA Indicator Bank'!I207)","v":"Number"},{"$f":"IF(ISBLANK('TA Indicator Bank'!J207),\"\",'TA Indicator Bank'!J207)","v":0},{"$f":"IF(ISBLANK('TA Indicator Bank'!K207),\"\",'TA Indicator Bank'!K207)","v":0},{"$f":"IF(ISBLANK('TA Indicator Bank'!L207),\"\",'TA Indicator Bank'!L207)","v":0},{"$f":"IF(ISBLANK('TA Indicator Bank'!M207),\"\",'TA Indicator Bank'!M207)","v":0},{"$f":"IF(ISBLANK('TA Indicator Bank'!N207),\"\",'TA Indicator Bank'!N207)","v":0},{"$f":"IF(ISBLANK('TA Indicator Bank'!O207),\"\",'TA Indicator Bank'!O207)","v":0},{"$f":"IF(ISBLANK('TA Indicator Bank'!P207),\"\",'TA Indicator Bank'!P207)","v":0},{"$f":"IF(ISBLANK('TA Indicator Bank'!Q207),\"\",'TA Indicator Bank'!Q207)","v":0},{"$f":"IF(ISBLANK('TA Indicator Bank'!R207),\"\",'TA Indicator Bank'!R207)","v":0},{"$f":"IF(ISBLANK('TA Indicator Bank'!S207),\"\",'TA Indicator Bank'!S207)","v":0},{"$f":"IF(ISBLANK('TA Indicator Bank'!T207),\"\",'TA Indicator Bank'!T207)","v":0},{"$f":"IF(ISBLANK('TA Indicator Bank'!U207),\"\",'TA Indicator Bank'!U207)","v":0},{"$f":"IF(ISBLANK('TA Indicator Bank'!V207),\"\",'TA Indicator Bank'!V207)","v":0},{"$f":"IF(ISBLANK('TA Indicator Bank'!W207),\"\",'TA Indicator Bank'!W207)","v":0},{"$f":"IF(ISBLANK('TA Indicator Bank'!X207),\"\",'TA Indicator Bank'!X207)","v":0},{"$f":"IF(ISBLANK('TA Indicator Bank'!Y207),\"\",'TA Indicator Bank'!Y207)","v":0},{"$f":"IF(ISBLANK('TA Indicator Bank'!Z207),\"\",'TA Indicator Bank'!Z207)","v":0},{"$f":"IF(ISBLANK('TA Indicator Bank'!AA207),\"\",'TA Indicator Bank'!AA207)","v":0},{"$f":"IF(ISBLANK('TA Indicator Bank'!AB207),\"\",'TA Indicator Bank'!AB207)","v":0},{"$f":"IF(ISBLANK('TA Indicator Bank'!AC207),\"\",'TA Indicator Bank'!AC207)","v":0},{"$f":"IF(ISBLANK('TA Indicator Bank'!AD207),\"\",'TA Indicator Bank'!AD207)","v":0},{"$f":"IF(ISBLANK('TA Indicator Bank'!AE207),\"\",'TA Indicator Bank'!AE207)","v":0},{"$f":"IF(ISBLANK('TA Indicator Bank'!AF207),\"\",'TA Indicator Bank'!AF207)","v":0},{"$f":"IF(ISBLANK('TA Indicator Bank'!AG207),\"\",'TA Indicator Bank'!AG207)","v":0},{"$f":"IF(ISBLANK('TA Indicator Bank'!AH207),\"\",'TA Indicator Bank'!AH207)","v":1},{"$f":"IF(ISBLANK('TA Indicator Bank'!AI207),\"\",'TA Indicator Bank'!AI207)","v":0},{"$f":"IF(ISBLANK('TA Indicator Bank'!AJ207),\"\",'TA Indicator Bank'!AJ207)","v":0},{"$f":"IF(ISBLANK('TA Indicator Bank'!AK207),\"\",'TA Indicator Bank'!AK207)","v":0},{"$f":"IF(ISBLANK('TA Indicator Bank'!AL207),\"\",'TA Indicator Bank'!AL207)","v":0},{"$f":"IF(ISBLANK('TA Indicator Bank'!AM207),\"\",'TA Indicator Bank'!AM207)","v":0},{"$f":"IF(ISBLANK('TA Indicator Bank'!AN207),\"\",'TA Indicator Bank'!AN207)","v":0},{"$f":"IF(ISBLANK('TA Indicator Bank'!AO207),\"\",'TA Indicator Bank'!AO207)","v":0},{"$f":"IF(ISBLANK('TA Indicator Bank'!AP207),\"\",'TA Indicator Bank'!AP207)","v":0},{"$f":"IF(ISBLANK('TA Indicator Bank'!AQ207),\"\",'TA Indicator Bank'!AQ207)","v":0},{"$f":"IF(ISBLANK('TA Indicator Bank'!AR207),\"\",'TA Indicator Bank'!AR207)","v":0},{"$f":"IF(ISBLANK('TA Indicator Bank'!AS207),\"\",'TA Indicator Bank'!AS207)","v":1},{"$f":"IF(ISBLANK('TA Indicator Bank'!AT207),\"\",'TA Indicator Bank'!AT207)","v":0},{"$f":"IF(AND(J211=1,J$410=1),1,0)","v":0},{"$f":"IF(AND(K211=1,K$410=1),1,0)","v":0},{"$f":"IF(AND(L211=1,L$410=1),1,0)","v":0},{"$f":"IF(AND(M211=1,M$410=1),1,0)","v":0},{"$f":"IF(AND(N211=1,N$410=1),1,0)","v":0},{"$f":"IF(AND(O211=1,O$410=1),1,0)","v":0},{"$f":"IF(AND(P211=1,P$410=1),1,0)","v":0},{"$f":"IF(AND(Q211=1,Q$410=1),1,0)","v":0},{"$f":"IF(AND(R211=1,R$410=1),1,0)","v":0},{"$f":"IF(AND(S211=1,S$410=1),1,0)","v":0},{"$f":"IF(AND(T211=1,T$410=1),1,0)","v":0},{"$f":"IF(AND(U211=1,U$410=1),1,0)","v":0},{"$f":"IF(AND(V211=1,V$410=1),1,0)","v":0},{"$f":"IF(AND(W211=1,W$410=1),1,0)","v":0},1,{"$f":"IF(AND(X211=1,X$410=1),1,0)","v":0},{"$f":"IF(AND(Y211=1,Y$410=1),1,0)","v":0},{"$f":"IF(AND(Z211=1,Z$410=1),1,0)","v":0},{"$f":"IF(AND(AA211=1,AA$410=1),1,0)","v":0},{"$f":"IF(AND(AB211=1,AB$410=1),1,0)","v":0},{"$f":"IF(AND(AC211=1,AC$410=1),1,0)","v":0},{"$f":"IF(AND(AD211=1,AD$410=1),1,0)","v":0},{"$f":"IF(AND(AE211=1,AE$410=1),1,0)","v":0},{"$f":"IF(AND(AF211=1,AF$410=1),1,0)","v":0},1,{"$f":"IF(AND(AG211=1,AG$410=1),1,0)","v":0},{"$f":"IF(AND(AH211=1,AH$410=1),1,0)","v":1},{"$f":"IF(AND(AI211=1,AI$410=1),1,0)","v":0},{"$f":"IF(AND(AJ211=1,AJ$410=1),1,0)","v":0},{"$f":"IF(AND(AK211=1,AK$410=1),1,0)","v":0},{"$f":"IF(AND(AL211=1,AL$410=1),1,0)","v":0},{"$f":"IF(AND(AM211=1,AM$410=1),1,0)","v":0},{"$f":"IF(AND(AN211=1,AN$410=1),1,0)","v":0},{"$f":"IF(AND(AO211=1,AO$410=1),1,0)","v":0},1,{"$f":"IF(AND(AP211=1,AP$410=1),1,0)","v":0},{"$f":"IF(AND(AQ211=1,AQ$410=1),1,0)","v":0},{"$f":"IF(AND(AR211=1,AR$410=1),1,0)","v":0},{"$f":"IF(AND(AS211=1,AS$410=1),1,0)","v":1},{"$f":"IF(AND(AT211=1,AT$410=1),1,0)","v":0},1,1,203,203,{"$f":"IFERROR(SMALL($CL$9:$CL$408,CK211),\"\")","v":203},{"$f":"IFERROR(INDEX($B$9:$I$408,$CM211,COLUMNS($CN$9:CN211)),\"\")","v":"TA203"},{"$f":"IFERROR(INDEX($B$9:$I$408,$CM211,COLUMNS($CN$9:CO211)),\"\")","v":"Number of countries that are able to create and develop knowledge products themselves"},{"$f":"IFERROR(INDEX($B$9:$I$408,$CM211,COLUMNS($CN$9:CP211)),\"\")","v":"-"},{"$f":"IFERROR(INDEX($B$9:$I$408,$CM211,COLUMNS($CN$9:CQ211)),\"\")","v":"Outcome"},{"$f":"IFERROR(INDEX($B$9:$I$408,$CM211,COLUMNS($CN$9:CR211)),\"\")","v":"-"},{"$f":"IFERROR(INDEX($B$9:$I$408,$CM211,COLUMNS($CN$9:CS211)),\"\")","v":"-"},{"$f":"IFERROR(INDEX($B$9:$I$408,$CM211,COLUMNS($CN$9:CT211)),\"\")","v":"Increased access to information/knowledge"},{"$f":"IFERROR(INDEX($B$9:$I$408,$CM211,COLUMNS($CN$9:CU211)),\"\")","v":"Number"}]
[null,{"$f":"IF(ISBLANK('TA Indicator Bank'!B208),\"\",'TA Indicator Bank'!B208)","v":"TA204"},{"$f":"IF(ISBLANK('TA Indicator Bank'!C208),\"\",'TA Indicator Bank'!C208)","v":"Players not part of the programme use lessons learned and replicate programme outputs"},{"$f":"IF(ISBLANK('TA Indicator Bank'!D208),\"\",'TA Indicator Bank'!D208)","v":"-"},{"$f":"IF(ISBLANK('TA Indicator Bank'!E208),\"\",'TA Indicator Bank'!E208)","v":"Output"},{"$f":"IF(ISBLANK('TA Indicator Bank'!F208),\"\",'TA Indicator Bank'!F208)","v":"-"},{"$f":"IF(ISBLANK('TA Indicator Bank'!G208),\"\",'TA Indicator Bank'!G208)","v":"Capacity building: Technical capacity; Process/asset operation support"},{"$f":"IF(ISBLANK('TA Indicator Bank'!H208),\"\",'TA Indicator Bank'!H208)","v":"-"},{"$f":"IF(ISBLANK('TA Indicator Bank'!I208),\"\",'TA Indicator Bank'!I208)","v":"Narrative"},{"$f":"IF(ISBLANK('TA Indicator Bank'!J208),\"\",'TA Indicator Bank'!J208)","v":0},{"$f":"IF(ISBLANK('TA Indicator Bank'!K208),\"\",'TA Indicator Bank'!K208)","v":0},{"$f":"IF(ISBLANK('TA Indicator Bank'!L208),\"\",'TA Indicator Bank'!L208)","v":0},{"$f":"IF(ISBLANK('TA Indicator Bank'!M208),\"\",'TA Indicator Bank'!M208)","v":0},{"$f":"IF(ISBLANK('TA Indicator Bank'!N208),\"\",'TA Indicator Bank'!N208)","v":0},{"$f":"IF(ISBLANK('TA Indicator Bank'!O208),\"\",'TA Indicator Bank'!O208)","v":0},{"$f":"IF(ISBLANK('TA Indicator Bank'!P208),\"\",'TA Indicator Bank'!P208)","v":0},{"$f":"IF(ISBLANK('TA Indicator Bank'!Q208),\"\",'TA Indicator Bank'!Q208)","v":0},{"$f":"IF(ISBLANK('TA Indicator Bank'!R208),\"\",'TA Indicator Bank'!R208)","v":0},{"$f":"IF(ISBLANK('TA Indicator Bank'!S208),\"\",'TA Indicator Bank'!S208)","v":0},{"$f":"IF(ISBLANK('TA Indicator Bank'!T208),\"\",'TA Indicator Bank'!T208)","v":0},{"$f":"IF(ISBLANK('TA Indicator Bank'!U208),\"\",'TA Indicator Bank'!U208)","v":0},{"$f":"IF(ISBLANK('TA Indicator Bank'!V208),\"\",'TA Indicator Bank'!V208)","v":0},{"$f":"IF(ISBLANK('TA Indicator Bank'!W208),\"\",'TA Indicator Bank'!W208)","v":0},{"$f":"IF(ISBLANK('TA Indicator Bank'!X208),\"\",'TA Indicator Bank'!X208)","v":0},{"$f":"IF(ISBLANK('TA Indicator Bank'!Y208),\"\",'TA Indicator Bank'!Y208)","v":1},{"$f":"IF(ISBLANK('TA Indicator Bank'!Z208),\"\",'TA Indicator Bank'!Z208)","v":0},{"$f":"IF(ISBLANK('TA Indicator Bank'!AA208),\"\",'TA Indicator Bank'!AA208)","v":0},{"$f":"IF(ISBLANK('TA Indicator Bank'!AB208),\"\",'TA Indicator Bank'!AB208)","v":0},{"$f":"IF(ISBLANK('TA Indicator Bank'!AC208),\"\",'TA Indicator Bank'!AC208)","v":0},{"$f":"IF(ISBLANK('TA Indicator Bank'!AD208),\"\",'TA Indicator Bank'!AD208)","v":1},{"$f":"IF(ISBLANK('TA Indicator Bank'!AE208),\"\",'TA Indicator Bank'!AE208)","v":0},{"$f":"IF(ISBLANK('TA Indicator Bank'!AF208),\"\",'TA Indicator Bank'!AF208)","v":0},{"$f":"IF(ISBLANK('TA Indicator Bank'!AG208),\"\",'TA Indicator Bank'!AG208)","v":0},{"$f":"IF(ISBLANK('TA Indicator Bank'!AH208),\"\",'TA Indicator Bank'!AH208)","v":0},{"$f":"IF(ISBLANK('TA Indicator Bank'!AI208),\"\",'TA Indicator Bank'!AI208)","v":0},{"$f":"IF(ISBLANK('TA Indicator Bank'!AJ208),\"\",'TA Indicator Bank'!AJ208)","v":0},{"$f":"IF(ISBLANK('TA Indicator Bank'!AK208),\"\",'TA Indicator Bank'!AK208)","v":0},{"$f":"IF(ISBLANK('TA Indicator Bank'!AL208),\"\",'TA Indicator Bank'!AL208)","v":0},{"$f":"IF(ISBLANK('TA Indicator Bank'!AM208),\"\",'TA Indicator Bank'!AM208)","v":0},{"$f":"IF(ISBLANK('TA Indicator Bank'!AN208),\"\",'TA Indicator Bank'!AN208)","v":0},{"$f":"IF(ISBLANK('TA Indicator Bank'!AO208),\"\",'TA Indicator Bank'!AO208)","v":0},{"$f":"IF(ISBLANK('TA Indicator Bank'!AP208),\"\",'TA Indicator Bank'!AP208)","v":0},{"$f":"IF(ISBLANK('TA Indicator Bank'!AQ208),\"\",'TA Indicator Bank'!AQ208)","v":0},{"$f":"IF(ISBLANK('TA Indicator Bank'!AR208),\"\",'TA Indicator Bank'!AR208)","v":1},{"$f":"IF(ISBLANK('TA Indicator Bank'!AS208),\"\",'TA Indicator Bank'!AS208)","v":0},{"$f":"IF(ISBLANK('TA Indicator Bank'!AT208),\"\",'TA Indicator Bank'!AT208)","v":0},{"$f":"IF(AND(J212=1,J$410=1),1,0)","v":0},{"$f":"IF(AND(K212=1,K$410=1),1,0)","v":0},{"$f":"IF(AND(L212=1,L$410=1),1,0)","v":0},{"$f":"IF(AND(M212=1,M$410=1),1,0)","v":0},{"$f":"IF(AND(N212=1,N$410=1),1,0)","v":0},{"$f":"IF(AND(O212=1,O$410=1),1,0)","v":0},{"$f":"IF(AND(P212=1,P$410=1),1,0)","v":0},{"$f":"IF(AND(Q212=1,Q$410=1),1,0)","v":0},{"$f":"IF(AND(R212=1,R$410=1),1,0)","v":0},{"$f":"IF(AND(S212=1,S$410=1),1,0)","v":0},{"$f":"IF(AND(T212=1,T$410=1),1,0)","v":0},{"$f":"IF(AND(U212=1,U$410=1),1,0)","v":0},{"$f":"IF(AND(V212=1,V$410=1),1,0)","v":0},{"$f":"IF(AND(W212=1,W$410=1),1,0)","v":0},1,{"$f":"IF(AND(X212=1,X$410=1),1,0)","v":0},{"$f":"IF(AND(Y212=1,Y$410=1),1,0)","v":1},{"$f":"IF(AND(Z212=1,Z$410=1),1,0)","v":0},{"$f":"IF(AND(AA212=1,AA$410=1),1,0)","v":0},{"$f":"IF(AND(AB212=1,AB$410=1),1,0)","v":0},{"$f":"IF(AND(AC212=1,AC$410=1),1,0)","v":0},{"$f":"IF(AND(AD212=1,AD$410=1),1,0)","v":1},{"$f":"IF(AND(AE212=1,AE$410=1),1,0)","v":0},{"$f":"IF(AND(AF212=1,AF$410=1),1,0)","v":0},1,{"$f":"IF(AND(AG212=1,AG$410=1),1,0)","v":0},{"$f":"IF(AND(AH212=1,AH$410=1),1,0)","v":0},{"$f":"IF(AND(AI212=1,AI$410=1),1,0)","v":0},{"$f":"IF(AND(AJ212=1,AJ$410=1),1,0)","v":0},{"$f":"IF(AND(AK212=1,AK$410=1),1,0)","v":0},{"$f":"IF(AND(AL212=1,AL$410=1),1,0)","v":0},{"$f":"IF(AND(AM212=1,AM$410=1),1,0)","v":0},{"$f":"IF(AND(AN212=1,AN$410=1),1,0)","v":0},{"$f":"IF(AND(AO212=1,AO$410=1),1,0)","v":0},1,{"$f":"IF(AND(AP212=1,AP$410=1),1,0)","v":0},{"$f":"IF(AND(AQ212=1,AQ$410=1),1,0)","v":0},{"$f":"IF(AND(AR212=1,AR$410=1),1,0)","v":1},{"$f":"IF(AND(AS212=1,AS$410=1),1,0)","v":0},{"$f":"IF(AND(AT212=1,AT$410=1),1,0)","v":0},1,1,204,204,{"$f":"IFERROR(SMALL($CL$9:$CL$408,CK212),\"\")","v":204},{"$f":"IFERROR(INDEX($B$9:$I$408,$CM212,COLUMNS($CN$9:CN212)),\"\")","v":"TA204"},{"$f":"IFERROR(INDEX($B$9:$I$408,$CM212,COLUMNS($CN$9:CO212)),\"\")","v":"Players not part of the programme use lessons learned and replicate programme outputs"},{"$f":"IFERROR(INDEX($B$9:$I$408,$CM212,COLUMNS($CN$9:CP212)),\"\")","v":"-"},{"$f":"IFERROR(INDEX($B$9:$I$408,$CM212,COLUMNS($CN$9:CQ212)),\"\")","v":"Output"},{"$f":"IFERROR(INDEX($B$9:$I$408,$CM212,COLUMNS($CN$9:CR212)),\"\")","v":"-"},{"$f":"IFERROR(INDEX($B$9:$I$408,$CM212,COLUMNS($CN$9:CS212)),\"\")","v":"Capacity building: Technical capacity; Process/asset operation support"},{"$f":"IFERROR(INDEX($B$9:$I$408,$CM212,COLUMNS($CN$9:CT212)),\"\")","v":"-"},{"$f":"IFERROR(INDEX($B$9:$I$408,$CM212,COLUMNS($CN$9:CU212)),\"\")","v":"Narrative"}]
[null,{"$f":"IF(ISBLANK('TA Indicator Bank'!B209),\"\",'TA Indicator Bank'!B209)","v":"TA205"},{"$f":"IF(ISBLANK('TA Indicator Bank'!C209),\"\",'TA Indicator Bank'!C209)","v":"Percentage of finance disbursement that takes place at the local level rather than the operational framework of implementation"},{"$f":"IF(ISBLANK('TA Indicator Bank'!D209),\"\",'TA Indicator Bank'!D209)","v":"-"},{"$f":"IF(ISBLANK('TA Indicator Bank'!E209),\"\",'TA Indicator Bank'!E209)","v":"Outcome"},{"$f":"IF(ISBLANK('TA Indicator Bank'!F209),\"\",'TA Indicator Bank'!F209)","v":"-"},{"$f":"IF(ISBLANK('TA Indicator Bank'!G209),\"\",'TA Indicator Bank'!G209)","v":"-"},{"$f":"IF(ISBLANK('TA Indicator Bank'!H209),\"\",'TA Indicator Bank'!H209)","v":"Improved domestic co-ordination"},{"$f":"IF(ISBLANK('TA Indicator Bank'!I209),\"\",'TA Indicator Bank'!I209)","v":"Percentage"},{"$f":"IF(ISBLANK('TA Indicator Bank'!J209),\"\",'TA Indicator Bank'!J209)","v":0},{"$f":"IF(ISBLANK('TA Indicator Bank'!K209),\"\",'TA Indicator Bank'!K209)","v":0},{"$f":"IF(ISBLANK('TA Indicator Bank'!L209),\"\",'TA Indicator Bank'!L209)","v":0},{"$f":"IF(ISBLANK('TA Indicator Bank'!M209),\"\",'TA Indicator Bank'!M209)","v":0},{"$f":"IF(ISBLANK('TA Indicator Bank'!N209),\"\",'TA Indicator Bank'!N209)","v":0},{"$f":"IF(ISBLANK('TA Indicator Bank'!O209),\"\",'TA Indicator Bank'!O209)","v":0},{"$f":"IF(ISBLANK('TA Indicator Bank'!P209),\"\",'TA Indicator Bank'!P209)","v":0},{"$f":"IF(ISBLANK('TA Indicator Bank'!Q209),\"\",'TA Indicator Bank'!Q209)","v":0},{"$f":"IF(ISBLANK('TA Indicator Bank'!R209),\"\",'TA Indicator Bank'!R209)","v":0},{"$f":"IF(ISBLANK('TA Indicator Bank'!S209),\"\",'TA Indicator Bank'!S209)","v":0},{"$f":"IF(ISBLANK('TA Indicator Bank'!T209),\"\",'TA Indicator Bank'!T209)","v":0},{"$f":"IF(ISBLANK('TA Indicator Bank'!U209),\"\",'TA Indicator Bank'!U209)","v":0},{"$f":"IF(ISBLANK('TA Indicator Bank'!V209),\"\",'TA Indicator Bank'!V209)","v":0},{"$f":"IF(ISBLANK('TA Indicator Bank'!W209),\"\",'TA Indicator Bank'!W209)","v":0},{"$f":"IF(ISBLANK('TA Indicator Bank'!X209),\"\",'TA Indicator Bank'!X209)","v":0},{"$f":"IF(ISBLANK('TA Indicator Bank'!Y209),\"\",'TA Indicator Bank'!Y209)","v":0},{"$f":"IF(ISBLANK('TA Indicator Bank'!Z209),\"\",'TA Indicator Bank'!Z209)","v":0},{"$f":"IF(ISBLANK('TA Indicator Bank'!AA209),\"\",'TA Indicator Bank'!AA209)","v":0},{"$f":"IF(ISBLANK('TA Indicator Bank'!AB209),\"\",'TA Indicator Bank'!AB209)","v":0},{"$f":"IF(ISBLANK('TA Indicator Bank'!AC209),\"\",'TA Indicator Bank'!AC209)","v":0},{"$f":"IF(ISBLANK('TA Indicator Bank'!AD209),\"\",'TA Indicator Bank'!AD209)","v":0},{"$f":"IF(ISBLANK('TA Indicator Bank'!AE209),\"\",'TA Indicator Bank'!AE209)","v":0},{"$f":"IF(ISBLANK('TA Indicator Bank'!AF209),\"\",'TA Indicator Bank'!AF209)","v":0},{"$f":"IF(ISBLANK('TA Indicator Bank'!AG209),\"\",'TA Indicator Bank'!AG209)","v":0},{"$f":"IF(ISBLANK('TA Indicator Bank'!AH209),\"\",'TA Indicator Bank'!AH209)","v":0},{"$f":"IF(ISBLANK('TA Indicator Bank'!AI209),\"\",'TA Indicator Bank'!AI209)","v":1},{"$f":"IF(ISBLANK('TA Indicator Bank'!AJ209),\"\",'TA Indicator Bank'!AJ209)","v":0},{"$f":"IF(ISBLANK('TA Indicator Bank'!AK209),\"\",'TA Indicator Bank'!AK209)","v":0},{"$f":"IF(ISBLANK('TA Indicator Bank'!AL209),\"\",'TA Indicator Bank'!AL209)","v":0},{"$f":"IF(ISBLANK('TA Indicator Bank'!AM209),\"\",'TA Indicator Bank'!AM209)","v":0},{"$f":"IF(ISBLANK('TA Indicator Bank'!AN209),\"\",'TA Indicator Bank'!AN209)","v":0},{"$f":"IF(ISBLANK('TA Indicator Bank'!AO209),\"\",'TA Indicator Bank'!AO209)","v":0},{"$f":"IF(ISBLANK('TA Indicator Bank'!AP209),\"\",'TA Indicator Bank'!AP209)","v":0},{"$f":"IF(ISBLANK('TA Indicator Bank'!AQ209),\"\",'TA Indicator Bank'!AQ209)","v":0},{"$f":"IF(ISBLANK('TA Indicator Bank'!AR209),\"\",'TA Indicator Bank'!AR209)","v":0},{"$f":"IF(ISBLANK('TA Indicator Bank'!AS209),\"\",'TA Indicator Bank'!AS209)","v":1},{"$f":"IF(ISBLANK('TA Indicator Bank'!AT209),\"\",'TA Indicator Bank'!AT209)","v":0},{"$f":"IF(AND(J213=1,J$410=1),1,0)","v":0},{"$f":"IF(AND(K213=1,K$410=1),1,0)","v":0},{"$f":"IF(AND(L213=1,L$410=1),1,0)","v":0},{"$f":"IF(AND(M213=1,M$410=1),1,0)","v":0},{"$f":"IF(AND(N213=1,N$410=1),1,0)","v":0},{"$f":"IF(AND(O213=1,O$410=1),1,0)","v":0},{"$f":"IF(AND(P213=1,P$410=1),1,0)","v":0},{"$f":"IF(AND(Q213=1,Q$410=1),1,0)","v":0},{"$f":"IF(AND(R213=1,R$410=1),1,0)","v":0},{"$f":"IF(AND(S213=1,S$410=1),1,0)","v":0},{"$f":"IF(AND(T213=1,T$410=1),1,0)","v":0},{"$f":"IF(AND(U213=1,U$410=1),1,0)","v":0},{"$f":"IF(AND(V213=1,V$410=1),1,0)","v":0},{"$f":"IF(AND(W213=1,W$410=1),1,0)","v":0},1,{"$f":"IF(AND(X213=1,X$410=1),1,0)","v":0},{"$f":"IF(AND(Y213=1,Y$410=1),1,0)","v":0},{"$f":"IF(AND(Z213=1,Z$410=1),1,0)","v":0},{"$f":"IF(AND(AA213=1,AA$410=1),1,0)","v":0},{"$f":"IF(AND(AB213=1,AB$410=1),1,0)","v":0},{"$f":"IF(AND(AC213=1,AC$410=1),1,0)","v":0},{"$f":"IF(AND(AD213=1,AD$410=1),1,0)","v":0},{"$f":"IF(AND(AE213=1,AE$410=1),1,0)","v":0},{"$f":"IF(AND(AF213=1,AF$410=1),1,0)","v":0},1,{"$f":"IF(AND(AG213=1,AG$410=1),1,0)","v":0},{"$f":"IF(AND(AH213=1,AH$410=1),1,0)","v":0},{"$f":"IF(AND(AI213=1,AI$410=1),1,0)","v":1},{"$f":"IF(AND(AJ213=1,AJ$410=1),1,0)","v":0},{"$f":"IF(AND(AK213=1,AK$410=1),1,0)","v":0},{"$f":"IF(AND(AL213=1,AL$410=1),1,0)","v":0},{"$f":"IF(AND(AM213=1,AM$410=1),1,0)","v":0},{"$f":"IF(AND(AN213=1,AN$410=1),1,0)","v":0},{"$f":"IF(AND(AO213=1,AO$410=1),1,0)","v":0},1,{"$f":"IF(AND(AP213=1,AP$410=1),1,0)","v":0},{"$f":"IF(AND(AQ213=1,AQ$410=1),1,0)","v":0},{"$f":"IF(AND(AR213=1,AR$410=1),1,0)","v":0},{"$f":"IF(AND(AS213=1,AS$410=1),1,0)","v":1},{"$f":"IF(AND(AT213=1,AT$410=1),1,0)","v":0},1,1,205,205,{"$f":"IFERROR(SMALL($CL$9:$CL$408,CK213),\"\")","v":205},{"$f":"IFERROR(INDEX($B$9:$I$408,$CM213,COLUMNS($CN$9:CN213)),\"\")","v":"TA205"},{"$f":"IFERROR(INDEX($B$9:$I$408,$CM213,COLUMNS($CN$9:CO213)),\"\")","v":"Percentage of finance disbursement that takes place at the local level rather than the operational framework of implementation"},{"$f":"IFERROR(INDEX($B$9:$I$408,$CM213,COLUMNS($CN$9:CP213)),\"\")","v":"-"},{"$f":"IFERROR(INDEX($B$9:$I$408,$CM213,COLUMNS($CN$9:CQ213)),\"\")","v":"Outcome"},{"$f":"IFERROR(INDEX($B$9:$I$408,$CM213,COLUMNS($CN$9:CR213)),\"\")","v":"-"},{"$f":"IFERROR(INDEX($B$9:$I$408,$CM213,COLUMNS($CN$9:CS213)),\"\")","v":"-"},{"$f":"IFERROR(INDEX($B$9:$I$408,$CM213,COLUMNS($CN$9:CT213)),\"\")","v":"Improved domestic co-ordination"},{"$f":"IFERROR(INDEX($B$9:$I$408,$CM213,COLUMNS($CN$9:CU213)),\"\")","v":"Percentage"}]
[null,{"$f":"IF(ISBLANK('TA Indicator Bank'!B210),\"\",'TA Indicator Bank'!B210)","v":"TA206"},{"$f":"IF(ISBLANK('TA Indicator Bank'!C210),\"\",'TA Indicator Bank'!C210)","v":"Area of land covered by agreements between governments/authorities, associations and private sectors"},{"$f":"IF(ISBLANK('TA Indicator Bank'!D210),\"\",'TA Indicator Bank'!D210)","v":"-"},{"$f":"IF(ISBLANK('TA Indicator Bank'!E210),\"\",'TA Indicator Bank'!E210)","v":"Outcome"},{"$f":"IF(ISBLANK('TA Indicator Bank'!F210),\"\",'TA Indicator Bank'!F210)","v":"-"},{"$f":"IF(ISBLANK('TA Indicator Bank'!G210),\"\",'TA Indicator Bank'!G210)","v":"-"},{"$f":"IF(ISBLANK('TA Indicator Bank'!H210),\"\",'TA Indicator Bank'!H210)","v":"Improved domestic co-ordination"},{"$f":"IF(ISBLANK('TA Indicator Bank'!I210),\"\",'TA Indicator Bank'!I210)","v":"Number"},{"$f":"IF(ISBLANK('TA Indicator Bank'!J210),\"\",'TA Indicator Bank'!J210)","v":0},{"$f":"IF(ISBLANK('TA Indicator Bank'!K210),\"\",'TA Indicator Bank'!K210)","v":0},{"$f":"IF(ISBLANK('TA Indicator Bank'!L210),\"\",'TA Indicator Bank'!L210)","v":0},{"$f":"IF(ISBLANK('TA Indicator Bank'!M210),\"\",'TA Indicator Bank'!M210)","v":0},{"$f":"IF(ISBLANK('TA Indicator Bank'!N210),\"\",'TA Indicator Bank'!N210)","v":0},{"$f":"IF(ISBLANK('TA Indicator Bank'!O210),\"\",'TA Indicator Bank'!O210)","v":0},{"$f":"IF(ISBLANK('TA Indicator Bank'!P210),\"\",'TA Indicator Bank'!P210)","v":0},{"$f":"IF(ISBLANK('TA Indicator Bank'!Q210),\"\",'TA Indicator Bank'!Q210)","v":0},{"$f":"IF(ISBLANK('TA Indicator Bank'!R210),\"\",'TA Indicator Bank'!R210)","v":0},{"$f":"IF(ISBLANK('TA Indicator Bank'!S210),\"\",'TA Indicator Bank'!S210)","v":0},{"$f":"IF(ISBLANK('TA Indicator Bank'!T210),\"\",'TA Indicator Bank'!T210)","v":0},{"$f":"IF(ISBLANK('TA Indicator Bank'!U210),\"\",'TA Indicator Bank'!U210)","v":0},{"$f":"IF(ISBLANK('TA Indicator Bank'!V210),\"\",'TA Indicator Bank'!V210)","v":0},{"$f":"IF(ISBLANK('TA Indicator Bank'!W210),\"\",'TA Indicator Bank'!W210)","v":0},{"$f":"IF(ISBLANK('TA Indicator Bank'!X210),\"\",'TA Indicator Bank'!X210)","v":0},{"$f":"IF(ISBLANK('TA Indicator Bank'!Y210),\"\",'TA Indicator Bank'!Y210)","v":0},{"$f":"IF(ISBLANK('TA Indicator Bank'!Z210),\"\",'TA Indicator Bank'!Z210)","v":0},{"$f":"IF(ISBLANK('TA Indicator Bank'!AA210),\"\",'TA Indicator Bank'!AA210)","v":0},{"$f":"IF(ISBLANK('TA Indicator Bank'!AB210),\"\",'TA Indicator Bank'!AB210)","v":0},{"$f":"IF(ISBLANK('TA Indicator Bank'!AC210),\"\",'TA Indicator Bank'!AC210)","v":0},{"$f":"IF(ISBLANK('TA Indicator Bank'!AD210),\"\",'TA Indicator Bank'!AD210)","v":0},{"$f":"IF(ISBLANK('TA Indicator Bank'!AE210),\"\",'TA Indicator Bank'!AE210)","v":0},{"$f":"IF(ISBLANK('TA Indicator Bank'!AF210),\"\",'TA Indicator Bank'!AF210)","v":0},{"$f":"IF(ISBLANK('TA Indicator Bank'!AG210),\"\",'TA Indicator Bank'!AG210)","v":0},{"$f":"IF(ISBLANK('TA Indicator Bank'!AH210),\"\",'TA Indicator Bank'!AH210)","v":0},{"$f":"IF(ISBLANK('TA Indicator Bank'!AI210),\"\",'TA Indicator Bank'!AI210)","v":1},{"$f":"IF(ISBLANK('TA Indicator Bank'!AJ210),\"\",'TA Indicator Bank'!AJ210)","v":0},{"$f":"IF(ISBLANK('TA Indicator Bank'!AK210),\"\",'TA Indicator Bank'!AK210)","v":0},{"$f":"IF(ISBLANK('TA Indicator Bank'!AL210),\"\",'TA Indicator Bank'!AL210)","v":0},{"$f":"IF(ISBLANK('TA Indicator Bank'!AM210),\"\",'TA Indicator Bank'!AM210)","v":0},{"$f":"IF(ISBLANK('TA Indicator Bank'!AN210),\"\",'TA Indicator Bank'!AN210)","v":0},{"$f":"IF(ISBLANK('TA Indicator Bank'!AO210),\"\",'TA Indicator Bank'!AO210)","v":0},{"$f":"IF(ISBLANK('TA Indicator Bank'!AP210),\"\",'TA Indicator Bank'!AP210)","v":0},{"$f":"IF(ISBLANK('TA Indicator Bank'!AQ210),\"\",'TA Indicator Bank'!AQ210)","v":0},{"$f":"IF(ISBLANK('TA Indicator Bank'!AR210),\"\",'TA Indicator Bank'!AR210)","v":0},{"$f":"IF(ISBLANK('TA Indicator Bank'!AS210),\"\",'TA Indicator Bank'!AS210)","v":1},{"$f":"IF(ISBLANK('TA Indicator Bank'!AT210),\"\",'TA Indicator Bank'!AT210)","v":0},{"$f":"IF(AND(J214=1,J$410=1),1,0)","v":0},0,0,0,0,0,0,0,0,0,0,{"$f":"IF(AND(U214=1,U$410=1),1,0)","v":0},{"$f":"IF(AND(V214=1,V$410=1),1,0)","v":0},{"$f":"IF(AND(W214=1,W$410=1),1,0)","v":0},1,{"$f":"IF(AND(X214=1,X$410=1),1,0)","v":0},{"$f":"IF(AND(Y214=1,Y$410=1),1,0)","v":0},{"$f":"IF(AND(Z214=1,Z$410=1),1,0)","v":0},{"$f":"IF(AND(AA214=1,AA$410=1),1,0)","v":0},{"$f":"IF(AND(AB214=1,AB$410=1),1,0)","v":0},{"$f":"IF(AND(AC214=1,AC$410=1),1,0)","v":0},{"$f":"IF(AND(AD214=1,AD$410=1),1,0)","v":0},{"$f":"IF(AND(AE214=1,AE$410=1),1,0)","v":0},{"$f":"IF(AND(AF214=1,AF$410=1),1,0)","v":0},1,{"$f":"IF(AND(AG214=1,AG$410=1),1,0)","v":0},{"$f":"IF(AND(AH214=1,AH$410=1),1,0)","v":0},{"$f":"IF(AND(AI214=1,AI$410=1),1,0)","v":1},{"$f":"IF(AND(AJ214=1,AJ$410=1),1,0)","v":0},{"$f":"IF(AND(AK214=1,AK$410=1),1,0)","v":0},{"$f":"IF(AND(AL214=1,AL$410=1),1,0)","v":0},{"$f":"IF(AND(AM214=1,AM$410=1),1,0)","v":0},{"$f":"IF(AND(AN214=1,AN$410=1),1,0)","v":0},{"$f":"IF(AND(AO214=1,AO$410=1),1,0)","v":0},1,{"$f":"IF(AND(AP214=1,AP$410=1),1,0)","v":0},{"$f":"IF(AND(AQ214=1,AQ$410=1),1,0)","v":0},{"$f":"IF(AND(AR214=1,AR$410=1),1,0)","v":0},{"$f":"IF(AND(AS214=1,AS$410=1),1,0)","v":1},{"$f":"IF(AND(AT214=1,AT$410=1),1,0)","v":0},1,1,206,206,{"$f":"IFERROR(SMALL($CL$9:$CL$408,CK214),\"\")","v":206},{"$f":"IFERROR(INDEX($B$9:$I$408,$CM214,COLUMNS($CN$9:CN214)),\"\")","v":"TA206"},{"$f":"IFERROR(INDEX($B$9:$I$408,$CM214,COLUMNS($CN$9:CO214)),\"\")","v":"Area of land covered by agreements between governments/authorities, associations and private sectors"},{"$f":"IFERROR(INDEX($B$9:$I$408,$CM214,COLUMNS($CN$9:CP214)),\"\")","v":"-"},{"$f":"IFERROR(INDEX($B$9:$I$408,$CM214,COLUMNS($CN$9:CQ214)),\"\")","v":"Outcome"},{"$f":"IFERROR(INDEX($B$9:$I$408,$CM214,COLUMNS($CN$9:CR214)),\"\")","v":"-"},{"$f":"IFERROR(INDEX($B$9:$I$408,$CM214,COLUMNS($CN$9:CS214)),\"\")","v":"-"},{"$f":"IFERROR(INDEX($B$9:$I$408,$CM214,COLUMNS($CN$9:CT214)),\"\")","v":"Improved domestic co-ordination"},{"$f":"IFERROR(INDEX($B$9:$I$408,$CM214,COLUMNS($CN$9:CU214)),\"\")","v":"Number"}]
[null,{"$f":"IF(ISBLANK('TA Indicator Bank'!B211),\"\",'TA Indicator Bank'!B211)","v":"TA207"},{"$f":"IF(ISBLANK('TA Indicator Bank'!C211),\"\",'TA Indicator Bank'!C211)","v":"Evidence that data is collected, analysed and used by government and private sector"},{"$f":"IF(ISBLANK('TA Indicator Bank'!D211),\"\",'TA Indicator Bank'!D211)","v":"-"},{"$f":"IF(ISBLANK('TA Indicator Bank'!E211),\"\",'TA Indicator Bank'!E211)","v":"Output"},{"$f":"IF(ISBLANK('TA Indicator Bank'!F211),\"\",'TA Indicator Bank'!F211)","v":"-"},{"$f":"IF(ISBLANK('TA Indicator Bank'!G211),\"\",'TA Indicator Bank'!G211)","v":"Process/asset operation support"},{"$f":"IF(ISBLANK('TA Indicator Bank'!H211),\"\",'TA Indicator Bank'!H211)","v":"-"},{"$f":"IF(ISBLANK('TA Indicator Bank'!I211),\"\",'TA Indicator Bank'!I211)","v":"Narrative"},{"$f":"IF(ISBLANK('TA Indicator Bank'!J211),\"\",'TA Indicator Bank'!J211)","v":0},{"$f":"IF(ISBLANK('TA Indicator Bank'!K211),\"\",'TA Indicator Bank'!K211)","v":0},{"$f":"IF(ISBLANK('TA Indicator Bank'!L211),\"\",'TA Indicator Bank'!L211)","v":0},{"$f":"IF(ISBLANK('TA Indicator Bank'!M211),\"\",'TA Indicator Bank'!M211)","v":0},{"$f":"IF(ISBLANK('TA Indicator Bank'!N211),\"\",'TA Indicator Bank'!N211)","v":0},{"$f":"IF(ISBLANK('TA Indicator Bank'!O211),\"\",'TA Indicator Bank'!O211)","v":0},{"$f":"IF(ISBLANK('TA Indicator Bank'!P211),\"\",'TA Indicator Bank'!P211)","v":0},{"$f":"IF(ISBLANK('TA Indicator Bank'!Q211),\"\",'TA Indicator Bank'!Q211)","v":0},{"$f":"IF(ISBLANK('TA Indicator Bank'!R211),\"\",'TA Indicator Bank'!R211)","v":0},{"$f":"IF(ISBLANK('TA Indicator Bank'!S211),\"\",'TA Indicator Bank'!S211)","v":0},{"$f":"IF(ISBLANK('TA Indicator Bank'!T211),\"\",'TA Indicator Bank'!T211)","v":0},{"$f":"IF(ISBLANK('TA Indicator Bank'!U211),\"\",'TA Indicator Bank'!U211)","v":0},{"$f":"IF(ISBLANK('TA Indicator Bank'!V211),\"\",'TA Indicator Bank'!V211)","v":0},{"$f":"IF(ISBLANK('TA Indicator Bank'!W211),\"\",'TA Indicator Bank'!W211)","v":0},{"$f":"IF(ISBLANK('TA Indicator Bank'!X211),\"\",'TA Indicator Bank'!X211)","v":0},{"$f":"IF(ISBLANK('TA Indicator Bank'!Y211),\"\",'TA Indicator Bank'!Y211)","v":0},{"$f":"IF(ISBLANK('TA Indicator Bank'!Z211),\"\",'TA Indicator Bank'!Z211)","v":0},{"$f":"IF(ISBLANK('TA Indicator Bank'!AA211),\"\",'TA Indicator Bank'!AA211)","v":0},{"$f":"IF(ISBLANK('TA Indicator Bank'!AB211),\"\",'TA Indicator Bank'!AB211)","v":0},{"$f":"IF(ISBLANK('TA Indicator Bank'!AC211),\"\",'TA Indicator Bank'!AC211)","v":0},{"$f":"IF(ISBLANK('TA Indicator Bank'!AD211),\"\",'TA Indicator Bank'!AD211)","v":1},{"$f":"IF(ISBLANK('TA Indicator Bank'!AE211),\"\",'TA Indicator Bank'!AE211)","v":0},{"$f":"IF(ISBLANK('TA Indicator Bank'!AF211),\"\",'TA Indicator Bank'!AF211)","v":0},{"$f":"IF(ISBLANK('TA Indicator Bank'!AG211),\"\",'TA Indicator Bank'!AG211)","v":0},{"$f":"IF(ISBLANK('TA Indicator Bank'!AH211),\"\",'TA Indicator Bank'!AH211)","v":0},{"$f":"IF(ISBLANK('TA Indicator Bank'!AI211),\"\",'TA Indicator Bank'!AI211)","v":0},{"$f":"IF(ISBLANK('TA Indicator Bank'!AJ211),\"\",'TA Indicator Bank'!AJ211)","v":0},{"$f":"IF(ISBLANK('TA Indicator Bank'!AK211),\"\",'TA Indicator Bank'!AK211)","v":0},{"$f":"IF(ISBLANK('TA Indicator Bank'!AL211),\"\",'TA Indicator Bank'!AL211)","v":0},{"$f":"IF(ISBLANK('TA Indicator Bank'!AM211),\"\",'TA Indicator Bank'!AM211)","v":0},{"$f":"IF(ISBLANK('TA Indicator Bank'!AN211),\"\",'TA Indicator Bank'!AN211)","v":0},{"$f":"IF(ISBLANK('TA Indicator Bank'!AO211),\"\",'TA Indicator Bank'!AO211)","v":0},{"$f":"IF(ISBLANK('TA Indicator Bank'!AP211),\"\",'TA Indicator Bank'!AP211)","v":0},{"$f":"IF(ISBLANK('TA Indicator Bank'!AQ211),\"\",'TA Indicator Bank'!AQ211)","v":0},{"$f":"IF(ISBLANK('TA Indicator Bank'!AR211),\"\",'TA Indicator Bank'!AR211)","v":1},{"$f":"IF(ISBLANK('TA Indicator Bank'!AS211),\"\",'TA Indicator Bank'!AS211)","v":0},{"$f":"IF(ISBLANK('TA Indicator Bank'!AT211),\"\",'TA Indicator Bank'!AT211)","v":0},0,0,0,0,0,0,0,0,0,0,0,0,0,{"$f":"IF(AND(W215=1,W$410=1),1,0)","v":0},1,{"$f":"IF(AND(X215=1,X$410=1),1,0)","v":0},{"$f":"IF(AND(Y215=1,Y$410=1),1,0)","v":0},{"$f":"IF(AND(Z215=1,Z$410=1),1,0)","v":0},{"$f":"IF(AND(AA215=1,AA$410=1),1,0)","v":0},{"$f":"IF(AND(AB215=1,AB$410=1),1,0)","v":0},{"$f":"IF(AND(AC215=1,AC$410=1),1,0)","v":0},{"$f":"IF(AND(AD215=1,AD$410=1),1,0)","v":1},{"$f":"IF(AND(AE215=1,AE$410=1),1,0)","v":0},{"$f":"IF(AND(AF215=1,AF$410=1),1,0)","v":0},1,{"$f":"IF(AND(AG215=1,AG$410=1),1,0)","v":0},{"$f":"IF(AND(AH215=1,AH$410=1),1,0)","v":0},{"$f":"IF(AND(AI215=1,AI$410=1),1,0)","v":0},{"$f":"IF(AND(AJ215=1,AJ$410=1),1,0)","v":0},{"$f":"IF(AND(AK215=1,AK$410=1),1,0)","v":0},{"$f":"IF(AND(AL215=1,AL$410=1),1,0)","v":0},{"$f":"IF(AND(AM215=1,AM$410=1),1,0)","v":0},{"$f":"IF(AND(AN215=1,AN$410=1),1,0)","v":0},{"$f":"IF(AND(AO215=1,AO$410=1),1,0)","v":0},1,{"$f":"IF(AND(AP215=1,AP$410=1),1,0)","v":0},{"$f":"IF(AND(AQ215=1,AQ$410=1),1,0)","v":0},{"$f":"IF(AND(AR215=1,AR$410=1),1,0)","v":1},{"$f":"IF(AND(AS215=1,AS$410=1),1,0)","v":0},{"$f":"IF(AND(AT215=1,AT$410=1),1,0)","v":0},1,1,207,207,{"$f":"IFERROR(SMALL($CL$9:$CL$408,CK215),\"\")","v":207},{"$f":"IFERROR(INDEX($B$9:$I$408,$CM215,COLUMNS($CN$9:CN215)),\"\")","v":"TA207"},{"$f":"IFERROR(INDEX($B$9:$I$408,$CM215,COLUMNS($CN$9:CO215)),\"\")","v":"Evidence that data is collected, analysed and used by government and private sector"},{"$f":"IFERROR(INDEX($B$9:$I$408,$CM215,COLUMNS($CN$9:CP215)),\"\")","v":"-"},{"$f":"IFERROR(INDEX($B$9:$I$408,$CM215,COLUMNS($CN$9:CQ215)),\"\")","v":"Output"},{"$f":"IFERROR(INDEX($B$9:$I$408,$CM215,COLUMNS($CN$9:CR215)),\"\")","v":"-"},{"$f":"IFERROR(INDEX($B$9:$I$408,$CM215,COLUMNS($CN$9:CS215)),\"\")","v":"Process/asset operation support"},{"$f":"IFERROR(INDEX($B$9:$I$408,$CM215,COLUMNS($CN$9:CT215)),\"\")","v":"-"},{"$f":"IFERROR(INDEX($B$9:$I$408,$CM215,COLUMNS($CN$9:CU215)),\"\")","v":"Narrative"}]
[null,{"$f":"IF(ISBLANK('TA Indicator Bank'!B212),\"\",'TA Indicator Bank'!B212)","v":"TA208"},{"$f":"IF(ISBLANK('TA Indicator Bank'!C212),\"\",'TA Indicator Bank'!C212)","v":"Extent to which targeted stakeholders use tools and information (including those supported by the programme) "},{"$f":"IF(ISBLANK('TA Indicator Bank'!D212),\"\",'TA Indicator Bank'!D212)","v":"-"},{"$f":"IF(ISBLANK('TA Indicator Bank'!E212),\"\",'TA Indicator Bank'!E212)","v":"Output"},{"$f":"IF(ISBLANK('TA Indicator Bank'!F212),\"\",'TA Indicator Bank'!F212)","v":"-"},{"$f":"IF(ISBLANK('TA Indicator Bank'!G212),\"\",'TA Indicator Bank'!G212)","v":"Process/asset operation support"},{"$f":"IF(ISBLANK('TA Indicator Bank'!H212),\"\",'TA Indicator Bank'!H212)","v":"-"},{"$f":"IF(ISBLANK('TA Indicator Bank'!I212),\"\",'TA Indicator Bank'!I212)","v":"Narrative"},{"$f":"IF(ISBLANK('TA Indicator Bank'!J212),\"\",'TA Indicator Bank'!J212)","v":0},{"$f":"IF(ISBLANK('TA Indicator Bank'!K212),\"\",'TA Indicator Bank'!K212)","v":0},{"$f":"IF(ISBLANK('TA Indicator Bank'!L212),\"\",'TA Indicator Bank'!L212)","v":0},{"$f":"IF(ISBLANK('TA Indicator Bank'!M212),\"\",'TA Indicator Bank'!M212)","v":0},{"$f":"IF(ISBLANK('TA Indicator Bank'!N212),\"\",'TA Indicator Bank'!N212)","v":0},{"$f":"IF(ISBLANK('TA Indicator Bank'!O212),\"\",'TA Indicator Bank'!O212)","v":0},{"$f":"IF(ISBLANK('TA Indicator Bank'!P212),\"\",'TA Indicator Bank'!P212)","v":0},{"$f":"IF(ISBLANK('TA Indicator Bank'!Q212),\"\",'TA Indicator Bank'!Q212)","v":0},{"$f":"IF(ISBLANK('TA Indicator Bank'!R212),\"\",'TA Indicator Bank'!R212)","v":0},{"$f":"IF(ISBLANK('TA Indicator Bank'!S212),\"\",'TA Indicator Bank'!S212)","v":0},{"$f":"IF(ISBLANK('TA Indicator Bank'!T212),\"\",'TA Indicator Bank'!T212)","v":0},{"$f":"IF(ISBLANK('TA Indicator Bank'!U212),\"\",'TA Indicator Bank'!U212)","v":0},{"$f":"IF(ISBLANK('TA Indicator Bank'!V212),\"\",'TA Indicator Bank'!V212)","v":0},{"$f":"IF(ISBLANK('TA Indicator Bank'!W212),\"\",'TA Indicator Bank'!W212)","v":0},{"$f":"IF(ISBLANK('TA Indicator Bank'!X212),\"\",'TA Indicator Bank'!X212)","v":0},{"$f":"IF(ISBLANK('TA Indicator Bank'!Y212),\"\",'TA Indicator Bank'!Y212)","v":0},{"$f":"IF(ISBLANK('TA Indicator Bank'!Z212),\"\",'TA Indicator Bank'!Z212)","v":0},{"$f":"IF(ISBLANK('TA Indicator Bank'!AA212),\"\",'TA Indicator Bank'!AA212)","v":0},{"$f":"IF(ISBLANK('TA Indicator Bank'!AB212),\"\",'TA Indicator Bank'!AB212)","v":0},{"$f":"IF(ISBLANK('TA Indicator Bank'!AC212),\"\",'TA Indicator Bank'!AC212)","v":0},{"$f":"IF(ISBLANK('TA Indicator Bank'!AD212),\"\",'TA Indicator Bank'!AD212)","v":1},{"$f":"IF(ISBLANK('TA Indicator Bank'!AE212),\"\",'TA Indicator Bank'!AE212)","v":0},{"$f":"IF(ISBLANK('TA Indicator Bank'!AF212),\"\",'TA Indicator Bank'!AF212)","v":0},{"$f":"IF(ISBLANK('TA Indicator Bank'!AG212),\"\",'TA Indicator Bank'!AG212)","v":0},{"$f":"IF(ISBLANK('TA Indicator Bank'!AH212),\"\",'TA Indicator Bank'!AH212)","v":0},{"$f":"IF(ISBLANK('TA Indicator Bank'!AI212),\"\",'TA Indicator Bank'!AI212)","v":0},{"$f":"IF(ISBLANK('TA Indicator Bank'!AJ212),\"\",'TA Indicator Bank'!AJ212)","v":0},{"$f":"IF(ISBLANK('TA Indicator Bank'!AK212),\"\",'TA Indicator Bank'!AK212)","v":0},{"$f":"IF(ISBLANK('TA Indicator Bank'!AL212),\"\",'TA Indicator Bank'!AL212)","v":0},{"$f":"IF(ISBLANK('TA Indicator Bank'!AM212),\"\",'TA Indicator Bank'!AM212)","v":0},{"$f":"IF(ISBLANK('TA Indicator Bank'!AN212),\"\",'TA Indicator Bank'!AN212)","v":0},{"$f":"IF(ISBLANK('TA Indicator Bank'!AO212),\"\",'TA Indicator Bank'!AO212)","v":0},{"$f":"IF(ISBLANK('TA Indicator Bank'!AP212),\"\",'TA Indicator Bank'!AP212)","v":0},{"$f":"IF(ISBLANK('TA Indicator Bank'!AQ212),\"\",'TA Indicator Bank'!AQ212)","v":0},{"$f":"IF(ISBLANK('TA Indicator Bank'!AR212),\"\",'TA Indicator Bank'!AR212)","v":1},{"$f":"IF(ISBLANK('TA Indicator Bank'!AS212),\"\",'TA Indicator Bank'!AS212)","v":0},{"$f":"IF(ISBLANK('TA Indicator Bank'!AT212),\"\",'TA Indicator Bank'!AT212)","v":0},0,0,0,0,0,0,0,0,0,0,0,0,0,{"$f":"IF(AND(W216=1,W$410=1),1,0)","v":0},1,{"$f":"IF(AND(X216=1,X$410=1),1,0)","v":0},{"$f":"IF(AND(Y216=1,Y$410=1),1,0)","v":0},{"$f":"IF(AND(Z216=1,Z$410=1),1,0)","v":0},{"$f":"IF(AND(AA216=1,AA$410=1),1,0)","v":0},{"$f":"IF(AND(AB216=1,AB$410=1),1,0)","v":0},{"$f":"IF(AND(AC216=1,AC$410=1),1,0)","v":0},{"$f":"IF(AND(AD216=1,AD$410=1),1,0)","v":1},{"$f":"IF(AND(AE216=1,AE$410=1),1,0)","v":0},{"$f":"IF(AND(AF216=1,AF$410=1),1,0)","v":0},1,{"$f":"IF(AND(AG216=1,AG$410=1),1,0)","v":0},{"$f":"IF(AND(AH216=1,AH$410=1),1,0)","v":0},{"$f":"IF(AND(AI216=1,AI$410=1),1,0)","v":0},{"$f":"IF(AND(AJ216=1,AJ$410=1),1,0)","v":0},{"$f":"IF(AND(AK216=1,AK$410=1),1,0)","v":0},{"$f":"IF(AND(AL216=1,AL$410=1),1,0)","v":0},{"$f":"IF(AND(AM216=1,AM$410=1),1,0)","v":0},{"$f":"IF(AND(AN216=1,AN$410=1),1,0)","v":0},{"$f":"IF(AND(AO216=1,AO$410=1),1,0)","v":0},1,{"$f":"IF(AND(AP216=1,AP$410=1),1,0)","v":0},{"$f":"IF(AND(AQ216=1,AQ$410=1),1,0)","v":0},{"$f":"IF(AND(AR216=1,AR$410=1),1,0)","v":1},{"$f":"IF(AND(AS216=1,AS$410=1),1,0)","v":0},{"$f":"IF(AND(AT216=1,AT$410=1),1,0)","v":0},1,1,208,208,{"$f":"IFERROR(SMALL($CL$9:$CL$408,CK216),\"\")","v":208},{"$f":"IFERROR(INDEX($B$9:$I$408,$CM216,COLUMNS($CN$9:CN216)),\"\")","v":"TA208"},{"$f":"IFERROR(INDEX($B$9:$I$408,$CM216,COLUMNS($CN$9:CO216)),\"\")","v":"Extent to which targeted stakeholders use tools and information (including those supported by the programme) "},{"$f":"IFERROR(INDEX($B$9:$I$408,$CM216,COLUMNS($CN$9:CP216)),\"\")","v":"-"},{"$f":"IFERROR(INDEX($B$9:$I$408,$CM216,COLUMNS($CN$9:CQ216)),\"\")","v":"Output"},{"$f":"IFERROR(INDEX($B$9:$I$408,$CM216,COLUMNS($CN$9:CR216)),\"\")","v":"-"},{"$f":"IFERROR(INDEX($B$9:$I$408,$CM216,COLUMNS($CN$9:CS216)),\"\")","v":"Process/asset operation support"},{"$f":"IFERROR(INDEX($B$9:$I$408,$CM216,COLUMNS($CN$9:CT216)),\"\")","v":"-"},{"$f":"IFERROR(INDEX($B$9:$I$408,$CM216,COLUMNS($CN$9:CU216)),\"\")","v":"Narrative"}]
[null,{"$f":"IF(ISBLANK('TA Indicator Bank'!B213),\"\",'TA Indicator Bank'!B213)","v":"TA209"},{"$f":"IF(ISBLANK('TA Indicator Bank'!C213),\"\",'TA Indicator Bank'!C213)","v":"Percentage of countries that have adopted policies and recommendations plans, programmes and institutions"},{"$f":"IF(ISBLANK('TA Indicator Bank'!D213),\"\",'TA Indicator Bank'!D213)","v":"-"},{"$f":"IF(ISBLANK('TA Indicator Bank'!E213),\"\",'TA Indicator Bank'!E213)","v":"Output"},{"$f":"IF(ISBLANK('TA Indicator Bank'!F213),\"\",'TA Indicator Bank'!F213)","v":"-"},{"$f":"IF(ISBLANK('TA Indicator Bank'!G213),\"\",'TA Indicator Bank'!G213)","v":"Domestic policy support"},{"$f":"IF(ISBLANK('TA Indicator Bank'!H213),\"\",'TA Indicator Bank'!H213)","v":"-"},{"$f":"IF(ISBLANK('TA Indicator Bank'!I213),\"\",'TA Indicator Bank'!I213)","v":"Percentage"},{"$f":"IF(ISBLANK('TA Indicator Bank'!J213),\"\",'TA Indicator Bank'!J213)","v":0},{"$f":"IF(ISBLANK('TA Indicator Bank'!K213),\"\",'TA Indicator Bank'!K213)","v":0},{"$f":"IF(ISBLANK('TA Indicator Bank'!L213),\"\",'TA Indicator Bank'!L213)","v":0},{"$f":"IF(ISBLANK('TA Indicator Bank'!M213),\"\",'TA Indicator Bank'!M213)","v":0},{"$f":"IF(ISBLANK('TA Indicator Bank'!N213),\"\",'TA Indicator Bank'!N213)","v":0},{"$f":"IF(ISBLANK('TA Indicator Bank'!O213),\"\",'TA Indicator Bank'!O213)","v":0},{"$f":"IF(ISBLANK('TA Indicator Bank'!P213),\"\",'TA Indicator Bank'!P213)","v":0},{"$f":"IF(ISBLANK('TA Indicator Bank'!Q213),\"\",'TA Indicator Bank'!Q213)","v":0},{"$f":"IF(ISBLANK('TA Indicator Bank'!R213),\"\",'TA Indicator Bank'!R213)","v":0},{"$f":"IF(ISBLANK('TA Indicator Bank'!S213),\"\",'TA Indicator Bank'!S213)","v":0},{"$f":"IF(ISBLANK('TA Indicator Bank'!T213),\"\",'TA Indicator Bank'!T213)","v":0},{"$f":"IF(ISBLANK('TA Indicator Bank'!U213),\"\",'TA Indicator Bank'!U213)","v":0},{"$f":"IF(ISBLANK('TA Indicator Bank'!V213),\"\",'TA Indicator Bank'!V213)","v":0},{"$f":"IF(ISBLANK('TA Indicator Bank'!W213),\"\",'TA Indicator Bank'!W213)","v":0},{"$f":"IF(ISBLANK('TA Indicator Bank'!X213),\"\",'TA Indicator Bank'!X213)","v":0},{"$f":"IF(ISBLANK('TA Indicator Bank'!Y213),\"\",'TA Indicator Bank'!Y213)","v":0},{"$f":"IF(ISBLANK('TA Indicator Bank'!Z213),\"\",'TA Indicator Bank'!Z213)","v":0},{"$f":"IF(ISBLANK('TA Indicator Bank'!AA213),\"\",'TA Indicator Bank'!AA213)","v":1},{"$f":"IF(ISBLANK('TA Indicator Bank'!AB213),\"\",'TA Indicator Bank'!AB213)","v":0},{"$f":"IF(ISBLANK('TA Indicator Bank'!AC213),\"\",'TA Indicator Bank'!AC213)","v":0},{"$f":"IF(ISBLANK('TA Indicator Bank'!AD213),\"\",'TA Indicator Bank'!AD213)","v":0},{"$f":"IF(ISBLANK('TA Indicator Bank'!AE213),\"\",'TA Indicator Bank'!AE213)","v":0},{"$f":"IF(ISBLANK('TA Indicator Bank'!AF213),\"\",'TA Indicator Bank'!AF213)","v":0},{"$f":"IF(ISBLANK('TA Indicator Bank'!AG213),\"\",'TA Indicator Bank'!AG213)","v":0},{"$f":"IF(ISBLANK('TA Indicator Bank'!AH213),\"\",'TA Indicator Bank'!AH213)","v":0},{"$f":"IF(ISBLANK('TA Indicator Bank'!AI213),\"\",'TA Indicator Bank'!AI213)","v":0},{"$f":"IF(ISBLANK('TA Indicator Bank'!AJ213),\"\",'TA Indicator Bank'!AJ213)","v":0},{"$f":"IF(ISBLANK('TA Indicator Bank'!AK213),\"\",'TA Indicator Bank'!AK213)","v":0},{"$f":"IF(ISBLANK('TA Indicator Bank'!AL213),\"\",'TA Indicator Bank'!AL213)","v":0},{"$f":"IF(ISBLANK('TA Indicator Bank'!AM213),\"\",'TA Indicator Bank'!AM213)","v":0},{"$f":"IF(ISBLANK('TA Indicator Bank'!AN213),\"\",'TA Indicator Bank'!AN213)","v":0},{"$f":"IF(ISBLANK('TA Indicator Bank'!AO213),\"\",'TA Indicator Bank'!AO213)","v":0},{"$f":"IF(ISBLANK('TA Indicator Bank'!AP213),\"\",'TA Indicator Bank'!AP213)","v":0},{"$f":"IF(ISBLANK('TA Indicator Bank'!AQ213),\"\",'TA Indicator Bank'!AQ213)","v":0},{"$f":"IF(ISBLANK('TA Indicator Bank'!AR213),\"\",'TA Indicator Bank'!AR213)","v":1},{"$f":"IF(ISBLANK('TA Indicator Bank'!AS213),\"\",'TA Indicator Bank'!AS213)","v":0},{"$f":"IF(ISBLANK('TA Indicator Bank'!AT213),\"\",'TA Indicator Bank'!AT213)","v":0},0,0,0,0,0,0,0,0,0,0,0,0,0,0,1,{"$f":"IF(AND(X217=1,X$410=1),1,0)","v":0},{"$f":"IF(AND(Y217=1,Y$410=1),1,0)","v":0},{"$f":"IF(AND(Z217=1,Z$410=1),1,0)","v":0},{"$f":"IF(AND(AA217=1,AA$410=1),1,0)","v":1},{"$f":"IF(AND(AB217=1,AB$410=1),1,0)","v":0},{"$f":"IF(AND(AC217=1,AC$410=1),1,0)","v":0},{"$f":"IF(AND(AD217=1,AD$410=1),1,0)","v":0},{"$f":"IF(AND(AE217=1,AE$410=1),1,0)","v":0},{"$f":"IF(AND(AF217=1,AF$410=1),1,0)","v":0},1,{"$f":"IF(AND(AG217=1,AG$410=1),1,0)","v":0},{"$f":"IF(AND(AH217=1,AH$410=1),1,0)","v":0},{"$f":"IF(AND(AI217=1,AI$410=1),1,0)","v":0},{"$f":"IF(AND(AJ217=1,AJ$410=1),1,0)","v":0},{"$f":"IF(AND(AK217=1,AK$410=1),1,0)","v":0},{"$f":"IF(AND(AL217=1,AL$410=1),1,0)","v":0},{"$f":"IF(AND(AM217=1,AM$410=1),1,0)","v":0},{"$f":"IF(AND(AN217=1,AN$410=1),1,0)","v":0},{"$f":"IF(AND(AO217=1,AO$410=1),1,0)","v":0},1,{"$f":"IF(AND(AP217=1,AP$410=1),1,0)","v":0},{"$f":"IF(AND(AQ217=1,AQ$410=1),1,0)","v":0},{"$f":"IF(AND(AR217=1,AR$410=1),1,0)","v":1},{"$f":"IF(AND(AS217=1,AS$410=1),1,0)","v":0},{"$f":"IF(AND(AT217=1,AT$410=1),1,0)","v":0},1,1,209,209,{"$f":"IFERROR(SMALL($CL$9:$CL$408,CK217),\"\")","v":209},{"$f":"IFERROR(INDEX($B$9:$I$408,$CM217,COLUMNS($CN$9:CN217)),\"\")","v":"TA209"},{"$f":"IFERROR(INDEX($B$9:$I$408,$CM217,COLUMNS($CN$9:CO217)),\"\")","v":"Percentage of countries that have adopted policies and recommendations plans, programmes and institutions"},{"$f":"IFERROR(INDEX($B$9:$I$408,$CM217,COLUMNS($CN$9:CP217)),\"\")","v":"-"},{"$f":"IFERROR(INDEX($B$9:$I$408,$CM217,COLUMNS($CN$9:CQ217)),\"\")","v":"Output"},{"$f":"IFERROR(INDEX($B$9:$I$408,$CM217,COLUMNS($CN$9:CR217)),\"\")","v":"-"},{"$f":"IFERROR(INDEX($B$9:$I$408,$CM217,COLUMNS($CN$9:CS217)),\"\")","v":"Domestic policy support"},{"$f":"IFERROR(INDEX($B$9:$I$408,$CM217,COLUMNS($CN$9:CT217)),\"\")","v":"-"},{"$f":"IFERROR(INDEX($B$9:$I$408,$CM217,COLUMNS($CN$9:CU217)),\"\")","v":"Percentage"}]
[null,{"$f":"IF(ISBLANK('TA Indicator Bank'!B214),\"\",'TA Indicator Bank'!B214)","v":"TA210"},{"$f":"IF(ISBLANK('TA Indicator Bank'!C214),\"\",'TA Indicator Bank'!C214)","v":"Number of cases where final documents in international climate negotiations include positions, submissions and/or preferred  outcomes from developing countries"},{"$f":"IF(ISBLANK('TA Indicator Bank'!D214),\"\",'TA Indicator Bank'!D214)","v":"-"},{"$f":"IF(ISBLANK('TA Indicator Bank'!E214),\"\",'TA Indicator Bank'!E214)","v":"Outcome"},{"$f":"IF(ISBLANK('TA Indicator Bank'!F214),\"\",'TA Indicator Bank'!F214)","v":"-"},{"$f":"IF(ISBLANK('TA Indicator Bank'!G214),\"\",'TA Indicator Bank'!G214)","v":"-"},{"$f":"IF(ISBLANK('TA Indicator Bank'!H214),\"\",'TA Indicator Bank'!H214)","v":"Improved international co-ordination"},{"$f":"IF(ISBLANK('TA Indicator Bank'!I214),\"\",'TA Indicator Bank'!I214)","v":"Number"},{"$f":"IF(ISBLANK('TA Indicator Bank'!J214),\"\",'TA Indicator Bank'!J214)","v":0},{"$f":"IF(ISBLANK('TA Indicator Bank'!K214),\"\",'TA Indicator Bank'!K214)","v":0},{"$f":"IF(ISBLANK('TA Indicator Bank'!L214),\"\",'TA Indicator Bank'!L214)","v":0},{"$f":"IF(ISBLANK('TA Indicator Bank'!M214),\"\",'TA Indicator Bank'!M214)","v":0},{"$f":"IF(ISBLANK('TA Indicator Bank'!N214),\"\",'TA Indicator Bank'!N214)","v":0},{"$f":"IF(ISBLANK('TA Indicator Bank'!O214),\"\",'TA Indicator Bank'!O214)","v":0},{"$f":"IF(ISBLANK('TA Indicator Bank'!P214),\"\",'TA Indicator Bank'!P214)","v":0},{"$f":"IF(ISBLANK('TA Indicator Bank'!Q214),\"\",'TA Indicator Bank'!Q214)","v":0},{"$f":"IF(ISBLANK('TA Indicator Bank'!R214),\"\",'TA Indicator Bank'!R214)","v":0},{"$f":"IF(ISBLANK('TA Indicator Bank'!S214),\"\",'TA Indicator Bank'!S214)","v":0},{"$f":"IF(ISBLANK('TA Indicator Bank'!T214),\"\",'TA Indicator Bank'!T214)","v":0},{"$f":"IF(ISBLANK('TA Indicator Bank'!U214),\"\",'TA Indicator Bank'!U214)","v":0},{"$f":"IF(ISBLANK('TA Indicator Bank'!V214),\"\",'TA Indicator Bank'!V214)","v":0},{"$f":"IF(ISBLANK('TA Indicator Bank'!W214),\"\",'TA Indicator Bank'!W214)","v":0},{"$f":"IF(ISBLANK('TA Indicator Bank'!X214),\"\",'TA Indicator Bank'!X214)","v":0},{"$f":"IF(ISBLANK('TA Indicator Bank'!Y214),\"\",'TA Indicator Bank'!Y214)","v":0},{"$f":"IF(ISBLANK('TA Indicator Bank'!Z214),\"\",'TA Indicator Bank'!Z214)","v":0},{"$f":"IF(ISBLANK('TA Indicator Bank'!AA214),\"\",'TA Indicator Bank'!AA214)","v":0},{"$f":"IF(ISBLANK('TA Indicator Bank'!AB214),\"\",'TA Indicator Bank'!AB214)","v":0},{"$f":"IF(ISBLANK('TA Indicator Bank'!AC214),\"\",'TA Indicator Bank'!AC214)","v":0},{"$f":"IF(ISBLANK('TA Indicator Bank'!AD214),\"\",'TA Indicator Bank'!AD214)","v":0},{"$f":"IF(ISBLANK('TA Indicator Bank'!AE214),\"\",'TA Indicator Bank'!AE214)","v":0},{"$f":"IF(ISBLANK('TA Indicator Bank'!AF214),\"\",'TA Indicator Bank'!AF214)","v":0},{"$f":"IF(ISBLANK('TA Indicator Bank'!AG214),\"\",'TA Indicator Bank'!AG214)","v":0},{"$f":"IF(ISBLANK('TA Indicator Bank'!AH214),\"\",'TA Indicator Bank'!AH214)","v":0},{"$f":"IF(ISBLANK('TA Indicator Bank'!AI214),\"\",'TA Indicator Bank'!AI214)","v":0},{"$f":"IF(ISBLANK('TA Indicator Bank'!AJ214),\"\",'TA Indicator Bank'!AJ214)","v":1},{"$f":"IF(ISBLANK('TA Indicator Bank'!AK214),\"\",'TA Indicator Bank'!AK214)","v":0},{"$f":"IF(ISBLANK('TA Indicator Bank'!AL214),\"\",'TA Indicator Bank'!AL214)","v":0},{"$f":"IF(ISBLANK('TA Indicator Bank'!AM214),\"\",'TA Indicator Bank'!AM214)","v":0},{"$f":"IF(ISBLANK('TA Indicator Bank'!AN214),\"\",'TA Indicator Bank'!AN214)","v":0},{"$f":"IF(ISBLANK('TA Indicator Bank'!AO214),\"\",'TA Indicator Bank'!AO214)","v":0},{"$f":"IF(ISBLANK('TA Indicator Bank'!AP214),\"\",'TA Indicator Bank'!AP214)","v":0},{"$f":"IF(ISBLANK('TA Indicator Bank'!AQ214),\"\",'TA Indicator Bank'!AQ214)","v":0},{"$f":"IF(ISBLANK('TA Indicator Bank'!AR214),\"\",'TA Indicator Bank'!AR214)","v":0},{"$f":"IF(ISBLANK('TA Indicator Bank'!AS214),\"\",'TA Indicator Bank'!AS214)","v":1},{"$f":"IF(ISBLANK('TA Indicator Bank'!AT214),\"\",'TA Indicator Bank'!AT214)","v":0},0,0,0,0,0,0,0,0,0,0,0,0,0,0,1,{"$f":"IF(AND(X218=1,X$410=1),1,0)","v":0},{"$f":"IF(AND(Y218=1,Y$410=1),1,0)","v":0},{"$f":"IF(AND(Z218=1,Z$410=1),1,0)","v":0},{"$f":"IF(AND(AA218=1,AA$410=1),1,0)","v":0},{"$f":"IF(AND(AB218=1,AB$410=1),1,0)","v":0},{"$f":"IF(AND(AC218=1,AC$410=1),1,0)","v":0},{"$f":"IF(AND(AD218=1,AD$410=1),1,0)","v":0},{"$f":"IF(AND(AE218=1,AE$410=1),1,0)","v":0},{"$f":"IF(AND(AF218=1,AF$410=1),1,0)","v":0},1,{"$f":"IF(AND(AG218=1,AG$410=1),1,0)","v":0},{"$f":"IF(AND(AH218=1,AH$410=1),1,0)","v":0},{"$f":"IF(AND(AI218=1,AI$410=1),1,0)","v":0},{"$f":"IF(AND(AJ218=1,AJ$410=1),1,0)","v":1},{"$f":"IF(AND(AK218=1,AK$410=1),1,0)","v":0},{"$f":"IF(AND(AL218=1,AL$410=1),1,0)","v":0},{"$f":"IF(AND(AM218=1,AM$410=1),1,0)","v":0},{"$f":"IF(AND(AN218=1,AN$410=1),1,0)","v":0},{"$f":"IF(AND(AO218=1,AO$410=1),1,0)","v":0},1,{"$f":"IF(AND(AP218=1,AP$410=1),1,0)","v":0},{"$f":"IF(AND(AQ218=1,AQ$410=1),1,0)","v":0},{"$f":"IF(AND(AR218=1,AR$410=1),1,0)","v":0},{"$f":"IF(AND(AS218=1,AS$410=1),1,0)","v":1},{"$f":"IF(AND(AT218=1,AT$410=1),1,0)","v":0},1,1,210,210,{"$f":"IFERROR(SMALL($CL$9:$CL$408,CK218),\"\")","v":210},{"$f":"IFERROR(INDEX($B$9:$I$408,$CM218,COLUMNS($CN$9:CN218)),\"\")","v":"TA210"},{"$f":"IFERROR(INDEX($B$9:$I$408,$CM218,COLUMNS($CN$9:CO218)),\"\")","v":"Number of cases where final documents in international climate negotiations include positions, submissions and/or preferred  outcomes from developing countries"},{"$f":"IFERROR(INDEX($B$9:$I$408,$CM218,COLUMNS($CN$9:CP218)),\"\")","v":"-"},{"$f":"IFERROR(INDEX($B$9:$I$408,$CM218,COLUMNS($CN$9:CQ218)),\"\")","v":"Outcome"},{"$f":"IFERROR(INDEX($B$9:$I$408,$CM218,COLUMNS($CN$9:CR218)),\"\")","v":"-"},{"$f":"IFERROR(INDEX($B$9:$I$408,$CM218,COLUMNS($CN$9:CS218)),\"\")","v":"-"},{"$f":"IFERROR(INDEX($B$9:$I$408,$CM218,COLUMNS($CN$9:CT218)),\"\")","v":"Improved international co-ordination"},{"$f":"IFERROR(INDEX($B$9:$I$408,$CM218,COLUMNS($CN$9:CU218)),\"\")","v":"Number"}]
[null,{"$f":"IF(ISBLANK('TA Indicator Bank'!B215),\"\",'TA Indicator Bank'!B215)","v":"TA211"},{"$f":"IF(ISBLANK('TA Indicator Bank'!C215),\"\",'TA Indicator Bank'!C215)","v":"Number of cases where there has been enhanced coordination and collaboration amongst negotiators in progressive alliances"},{"$f":"IF(ISBLANK('TA Indicator Bank'!D215),\"\",'TA Indicator Bank'!D215)","v":"-"},{"$f":"IF(ISBLANK('TA Indicator Bank'!E215),\"\",'TA Indicator Bank'!E215)","v":"Outcome"},{"$f":"IF(ISBLANK('TA Indicator Bank'!F215),\"\",'TA Indicator Bank'!F215)","v":"-"},{"$f":"IF(ISBLANK('TA Indicator Bank'!G215),\"\",'TA Indicator Bank'!G215)","v":"-"},{"$f":"IF(ISBLANK('TA Indicator Bank'!H215),\"\",'TA Indicator Bank'!H215)","v":"Improved international co-ordination"},{"$f":"IF(ISBLANK('TA Indicator Bank'!I215),\"\",'TA Indicator Bank'!I215)","v":"Number"},{"$f":"IF(ISBLANK('TA Indicator Bank'!J215),\"\",'TA Indicator Bank'!J215)","v":0},{"$f":"IF(ISBLANK('TA Indicator Bank'!K215),\"\",'TA Indicator Bank'!K215)","v":0},{"$f":"IF(ISBLANK('TA Indicator Bank'!L215),\"\",'TA Indicator Bank'!L215)","v":0},{"$f":"IF(ISBLANK('TA Indicator Bank'!M215),\"\",'TA Indicator Bank'!M215)","v":0},{"$f":"IF(ISBLANK('TA Indicator Bank'!N215),\"\",'TA Indicator Bank'!N215)","v":0},{"$f":"IF(ISBLANK('TA Indicator Bank'!O215),\"\",'TA Indicator Bank'!O215)","v":0},{"$f":"IF(ISBLANK('TA Indicator Bank'!P215),\"\",'TA Indicator Bank'!P215)","v":0},{"$f":"IF(ISBLANK('TA Indicator Bank'!Q215),\"\",'TA Indicator Bank'!Q215)","v":0},{"$f":"IF(ISBLANK('TA Indicator Bank'!R215),\"\",'TA Indicator Bank'!R215)","v":0},{"$f":"IF(ISBLANK('TA Indicator Bank'!S215),\"\",'TA Indicator Bank'!S215)","v":0},{"$f":"IF(ISBLANK('TA Indicator Bank'!T215),\"\",'TA Indicator Bank'!T215)","v":0},{"$f":"IF(ISBLANK('TA Indicator Bank'!U215),\"\",'TA Indicator Bank'!U215)","v":0},{"$f":"IF(ISBLANK('TA Indicator Bank'!V215),\"\",'TA Indicator Bank'!V215)","v":0},{"$f":"IF(ISBLANK('TA Indicator Bank'!W215),\"\",'TA Indicator Bank'!W215)","v":0},{"$f":"IF(ISBLANK('TA Indicator Bank'!X215),\"\",'TA Indicator Bank'!X215)","v":0},{"$f":"IF(ISBLANK('TA Indicator Bank'!Y215),\"\",'TA Indicator Bank'!Y215)","v":0},{"$f":"IF(ISBLANK('TA Indicator Bank'!Z215),\"\",'TA Indicator Bank'!Z215)","v":0},{"$f":"IF(ISBLANK('TA Indicator Bank'!AA215),\"\",'TA Indicator Bank'!AA215)","v":0},{"$f":"IF(ISBLANK('TA Indicator Bank'!AB215),\"\",'TA Indicator Bank'!AB215)","v":0},{"$f":"IF(ISBLANK('TA Indicator Bank'!AC215),\"\",'TA Indicator Bank'!AC215)","v":0},{"$f":"IF(ISBLANK('TA Indicator Bank'!AD215),\"\",'TA Indicator Bank'!AD215)","v":0},{"$f":"IF(ISBLANK('TA Indicator Bank'!AE215),\"\",'TA Indicator Bank'!AE215)","v":0},{"$f":"IF(ISBLANK('TA Indicator Bank'!AF215),\"\",'TA Indicator Bank'!AF215)","v":0},{"$f":"IF(ISBLANK('TA Indicator Bank'!AG215),\"\",'TA Indicator Bank'!AG215)","v":0},{"$f":"IF(ISBLANK('TA Indicator Bank'!AH215),\"\",'TA Indicator Bank'!AH215)","v":0},{"$f":"IF(ISBLANK('TA Indicator Bank'!AI215),\"\",'TA Indicator Bank'!AI215)","v":0},{"$f":"IF(ISBLANK('TA Indicator Bank'!AJ215),\"\",'TA Indicator Bank'!AJ215)","v":1},{"$f":"IF(ISBLANK('TA Indicator Bank'!AK215),\"\",'TA Indicator Bank'!AK215)","v":0},{"$f":"IF(ISBLANK('TA Indicator Bank'!AL215),\"\",'TA Indicator Bank'!AL215)","v":0},{"$f":"IF(ISBLANK('TA Indicator Bank'!AM215),\"\",'TA Indicator Bank'!AM215)","v":0},{"$f":"IF(ISBLANK('TA Indicator Bank'!AN215),\"\",'TA Indicator Bank'!AN215)","v":0},{"$f":"IF(ISBLANK('TA Indicator Bank'!AO215),\"\",'TA Indicator Bank'!AO215)","v":0},{"$f":"IF(ISBLANK('TA Indicator Bank'!AP215),\"\",'TA Indicator Bank'!AP215)","v":0},{"$f":"IF(ISBLANK('TA Indicator Bank'!AQ215),\"\",'TA Indicator Bank'!AQ215)","v":0},{"$f":"IF(ISBLANK('TA Indicator Bank'!AR215),\"\",'TA Indicator Bank'!AR215)","v":0},{"$f":"IF(ISBLANK('TA Indicator Bank'!AS215),\"\",'TA Indicator Bank'!AS215)","v":1},{"$f":"IF(ISBLANK('TA Indicator Bank'!AT215),\"\",'TA Indicator Bank'!AT215)","v":0},0,0,0,0,0,0,0,0,0,0,0,0,0,0,1,{"$f":"IF(AND(X219=1,X$410=1),1,0)","v":0},{"$f":"IF(AND(Y219=1,Y$410=1),1,0)","v":0},{"$f":"IF(AND(Z219=1,Z$410=1),1,0)","v":0},{"$f":"IF(AND(AA219=1,AA$410=1),1,0)","v":0},{"$f":"IF(AND(AB219=1,AB$410=1),1,0)","v":0},{"$f":"IF(AND(AC219=1,AC$410=1),1,0)","v":0},{"$f":"IF(AND(AD219=1,AD$410=1),1,0)","v":0},{"$f":"IF(AND(AE219=1,AE$410=1),1,0)","v":0},{"$f":"IF(AND(AF219=1,AF$410=1),1,0)","v":0},1,{"$f":"IF(AND(AG219=1,AG$410=1),1,0)","v":0},{"$f":"IF(AND(AH219=1,AH$410=1),1,0)","v":0},{"$f":"IF(AND(AI219=1,AI$410=1),1,0)","v":0},{"$f":"IF(AND(AJ219=1,AJ$410=1),1,0)","v":1},{"$f":"IF(AND(AK219=1,AK$410=1),1,0)","v":0},{"$f":"IF(AND(AL219=1,AL$410=1),1,0)","v":0},{"$f":"IF(AND(AM219=1,AM$410=1),1,0)","v":0},{"$f":"IF(AND(AN219=1,AN$410=1),1,0)","v":0},{"$f":"IF(AND(AO219=1,AO$410=1),1,0)","v":0},1,{"$f":"IF(AND(AP219=1,AP$410=1),1,0)","v":0},{"$f":"IF(AND(AQ219=1,AQ$410=1),1,0)","v":0},{"$f":"IF(AND(AR219=1,AR$410=1),1,0)","v":0},{"$f":"IF(AND(AS219=1,AS$410=1),1,0)","v":1},{"$f":"IF(AND(AT219=1,AT$410=1),1,0)","v":0},1,1,211,211,{"$f":"IFERROR(SMALL($CL$9:$CL$408,CK219),\"\")","v":211},{"$f":"IFERROR(INDEX($B$9:$I$408,$CM219,COLUMNS($CN$9:CN219)),\"\")","v":"TA211"},{"$f":"IFERROR(INDEX($B$9:$I$408,$CM219,COLUMNS($CN$9:CO219)),\"\")","v":"Number of cases where there has been enhanced coordination and collaboration amongst negotiators in progressive alliances"},{"$f":"IFERROR(INDEX($B$9:$I$408,$CM219,COLUMNS($CN$9:CP219)),\"\")","v":"-"},{"$f":"IFERROR(INDEX($B$9:$I$408,$CM219,COLUMNS($CN$9:CQ219)),\"\")","v":"Outcome"},{"$f":"IFERROR(INDEX($B$9:$I$408,$CM219,COLUMNS($CN$9:CR219)),\"\")","v":"-"},{"$f":"IFERROR(INDEX($B$9:$I$408,$CM219,COLUMNS($CN$9:CS219)),\"\")","v":"-"},{"$f":"IFERROR(INDEX($B$9:$I$408,$CM219,COLUMNS($CN$9:CT219)),\"\")","v":"Improved international co-ordination"},{"$f":"IFERROR(INDEX($B$9:$I$408,$CM219,COLUMNS($CN$9:CU219)),\"\")","v":"Number"}]
[null,{"$f":"IF(ISBLANK('TA Indicator Bank'!B216),\"\",'TA Indicator Bank'!B216)","v":"TA212"},{"$f":"IF(ISBLANK('TA Indicator Bank'!C216),\"\",'TA Indicator Bank'!C216)","v":"Number of cases where women have taken key role in international negotiations with support of the programme"},{"$f":"IF(ISBLANK('TA Indicator Bank'!D216),\"\",'TA Indicator Bank'!D216)","v":"-"},{"$f":"IF(ISBLANK('TA Indicator Bank'!E216),\"\",'TA Indicator Bank'!E216)","v":"Outcome"},{"$f":"IF(ISBLANK('TA Indicator Bank'!F216),\"\",'TA Indicator Bank'!F216)","v":"-"},{"$f":"IF(ISBLANK('TA Indicator Bank'!G216),\"\",'TA Indicator Bank'!G216)","v":"-"},{"$f":"IF(ISBLANK('TA Indicator Bank'!H216),\"\",'TA Indicator Bank'!H216)","v":"Improved international co-ordination"},{"$f":"IF(ISBLANK('TA Indicator Bank'!I216),\"\",'TA Indicator Bank'!I216)","v":"Number"},{"$f":"IF(ISBLANK('TA Indicator Bank'!J216),\"\",'TA Indicator Bank'!J216)","v":0},{"$f":"IF(ISBLANK('TA Indicator Bank'!K216),\"\",'TA Indicator Bank'!K216)","v":0},{"$f":"IF(ISBLANK('TA Indicator Bank'!L216),\"\",'TA Indicator Bank'!L216)","v":0},{"$f":"IF(ISBLANK('TA Indicator Bank'!M216),\"\",'TA Indicator Bank'!M216)","v":0},{"$f":"IF(ISBLANK('TA Indicator Bank'!N216),\"\",'TA Indicator Bank'!N216)","v":0},{"$f":"IF(ISBLANK('TA Indicator Bank'!O216),\"\",'TA Indicator Bank'!O216)","v":0},{"$f":"IF(ISBLANK('TA Indicator Bank'!P216),\"\",'TA Indicator Bank'!P216)","v":0},{"$f":"IF(ISBLANK('TA Indicator Bank'!Q216),\"\",'TA Indicator Bank'!Q216)","v":0},{"$f":"IF(ISBLANK('TA Indicator Bank'!R216),\"\",'TA Indicator Bank'!R216)","v":0},{"$f":"IF(ISBLANK('TA Indicator Bank'!S216),\"\",'TA Indicator Bank'!S216)","v":0},{"$f":"IF(ISBLANK('TA Indicator Bank'!T216),\"\",'TA Indicator Bank'!T216)","v":0},{"$f":"IF(ISBLANK('TA Indicator Bank'!U216),\"\",'TA Indicator Bank'!U216)","v":0},{"$f":"IF(ISBLANK('TA Indicator Bank'!V216),\"\",'TA Indicator Bank'!V216)","v":0},{"$f":"IF(ISBLANK('TA Indicator Bank'!W216),\"\",'TA Indicator Bank'!W216)","v":0},{"$f":"IF(ISBLANK('TA Indicator Bank'!X216),\"\",'TA Indicator Bank'!X216)","v":0},{"$f":"IF(ISBLANK('TA Indicator Bank'!Y216),\"\",'TA Indicator Bank'!Y216)","v":0},{"$f":"IF(ISBLANK('TA Indicator Bank'!Z216),\"\",'TA Indicator Bank'!Z216)","v":0},{"$f":"IF(ISBLANK('TA Indicator Bank'!AA216),\"\",'TA Indicator Bank'!AA216)","v":0},{"$f":"IF(ISBLANK('TA Indicator Bank'!AB216),\"\",'TA Indicator Bank'!AB216)","v":0},{"$f":"IF(ISBLANK('TA Indicator Bank'!AC216),\"\",'TA Indicator Bank'!AC216)","v":0},{"$f":"IF(ISBLANK('TA Indicator Bank'!AD216),\"\",'TA Indicator Bank'!AD216)","v":0},{"$f":"IF(ISBLANK('TA Indicator Bank'!AE216),\"\",'TA Indicator Bank'!AE216)","v":0},{"$f":"IF(ISBLANK('TA Indicator Bank'!AF216),\"\",'TA Indicator Bank'!AF216)","v":0},{"$f":"IF(ISBLANK('TA Indicator Bank'!AG216),\"\",'TA Indicator Bank'!AG216)","v":0},{"$f":"IF(ISBLANK('TA Indicator Bank'!AH216),\"\",'TA Indicator Bank'!AH216)","v":0},{"$f":"IF(ISBLANK('TA Indicator Bank'!AI216),\"\",'TA Indicator Bank'!AI216)","v":0},{"$f":"IF(ISBLANK('TA Indicator Bank'!AJ216),\"\",'TA Indicator Bank'!AJ216)","v":1},{"$f":"IF(ISBLANK('TA Indicator Bank'!AK216),\"\",'TA Indicator Bank'!AK216)","v":0},{"$f":"IF(ISBLANK('TA Indicator Bank'!AL216),\"\",'TA Indicator Bank'!AL216)","v":0},{"$f":"IF(ISBLANK('TA Indicator Bank'!AM216),\"\",'TA Indicator Bank'!AM216)","v":0},{"$f":"IF(ISBLANK('TA Indicator Bank'!AN216),\"\",'TA Indicator Bank'!AN216)","v":0},{"$f":"IF(ISBLANK('TA Indicator Bank'!AO216),\"\",'TA Indicator Bank'!AO216)","v":0},{"$f":"IF(ISBLANK('TA Indicator Bank'!AP216),\"\",'TA Indicator Bank'!AP216)","v":0},{"$f":"IF(ISBLANK('TA Indicator Bank'!AQ216),\"\",'TA Indicator Bank'!AQ216)","v":0},{"$f":"IF(ISBLANK('TA Indicator Bank'!AR216),\"\",'TA Indicator Bank'!AR216)","v":0},{"$f":"IF(ISBLANK('TA Indicator Bank'!AS216),\"\",'TA Indicator Bank'!AS216)","v":1},{"$f":"IF(ISBLANK('TA Indicator Bank'!AT216),\"\",'TA Indicator Bank'!AT216)","v":0},0,0,0,0,0,0,0,0,0,0,0,0,0,0,1,{"$f":"IF(AND(X220=1,X$410=1),1,0)","v":0},{"$f":"IF(AND(Y220=1,Y$410=1),1,0)","v":0},{"$f":"IF(AND(Z220=1,Z$410=1),1,0)","v":0},{"$f":"IF(AND(AA220=1,AA$410=1),1,0)","v":0},{"$f":"IF(AND(AB220=1,AB$410=1),1,0)","v":0},{"$f":"IF(AND(AC220=1,AC$410=1),1,0)","v":0},{"$f":"IF(AND(AD220=1,AD$410=1),1,0)","v":0},{"$f":"IF(AND(AE220=1,AE$410=1),1,0)","v":0},{"$f":"IF(AND(AF220=1,AF$410=1),1,0)","v":0},1,{"$f":"IF(AND(AG220=1,AG$410=1),1,0)","v":0},{"$f":"IF(AND(AH220=1,AH$410=1),1,0)","v":0},{"$f":"IF(AND(AI220=1,AI$410=1),1,0)","v":0},{"$f":"IF(AND(AJ220=1,AJ$410=1),1,0)","v":1},{"$f":"IF(AND(AK220=1,AK$410=1),1,0)","v":0},{"$f":"IF(AND(AL220=1,AL$410=1),1,0)","v":0},{"$f":"IF(AND(AM220=1,AM$410=1),1,0)","v":0},{"$f":"IF(AND(AN220=1,AN$410=1),1,0)","v":0},{"$f":"IF(AND(AO220=1,AO$410=1),1,0)","v":0},1,{"$f":"IF(AND(AP220=1,AP$410=1),1,0)","v":0},{"$f":"IF(AND(AQ220=1,AQ$410=1),1,0)","v":0},{"$f":"IF(AND(AR220=1,AR$410=1),1,0)","v":0},{"$f":"IF(AND(AS220=1,AS$410=1),1,0)","v":1},{"$f":"IF(AND(AT220=1,AT$410=1),1,0)","v":0},1,1,212,212,{"$f":"IFERROR(SMALL($CL$9:$CL$408,CK220),\"\")","v":212},{"$f":"IFERROR(INDEX($B$9:$I$408,$CM220,COLUMNS($CN$9:CN220)),\"\")","v":"TA212"},{"$f":"IFERROR(INDEX($B$9:$I$408,$CM220,COLUMNS($CN$9:CO220)),\"\")","v":"Number of cases where women have taken key role in international negotiations with support of the programme"},{"$f":"IFERROR(INDEX($B$9:$I$408,$CM220,COLUMNS($CN$9:CP220)),\"\")","v":"-"},{"$f":"IFERROR(INDEX($B$9:$I$408,$CM220,COLUMNS($CN$9:CQ220)),\"\")","v":"Outcome"},{"$f":"IFERROR(INDEX($B$9:$I$408,$CM220,COLUMNS($CN$9:CR220)),\"\")","v":"-"},{"$f":"IFERROR(INDEX($B$9:$I$408,$CM220,COLUMNS($CN$9:CS220)),\"\")","v":"-"},{"$f":"IFERROR(INDEX($B$9:$I$408,$CM220,COLUMNS($CN$9:CT220)),\"\")","v":"Improved international co-ordination"},{"$f":"IFERROR(INDEX($B$9:$I$408,$CM220,COLUMNS($CN$9:CU220)),\"\")","v":"Number"}]
[null,{"$f":"IF(ISBLANK('TA Indicator Bank'!B217),\"\",'TA Indicator Bank'!B217)","v":"TA213"},{"$f":"IF(ISBLANK('TA Indicator Bank'!C217),\"\",'TA Indicator Bank'!C217)","v":"Number of countries/projects supported by the programme"},{"$f":"IF(ISBLANK('TA Indicator Bank'!D217),\"\",'TA Indicator Bank'!D217)","v":"-"},{"$f":"IF(ISBLANK('TA Indicator Bank'!E217),\"\",'TA Indicator Bank'!E217)","v":"Activity"},{"$f":"IF(ISBLANK('TA Indicator Bank'!F217),\"\",'TA Indicator Bank'!F217)","v":"Secondments; Expert guidance and review"},{"$f":"IF(ISBLANK('TA Indicator Bank'!G217),\"\",'TA Indicator Bank'!G217)","v":"-"},{"$f":"IF(ISBLANK('TA Indicator Bank'!H217),\"\",'TA Indicator Bank'!H217)","v":"-"},{"$f":"IF(ISBLANK('TA Indicator Bank'!I217),\"\",'TA Indicator Bank'!I217)","v":"Number"},{"$f":"IF(ISBLANK('TA Indicator Bank'!J217),\"\",'TA Indicator Bank'!J217)","v":0},{"$f":"IF(ISBLANK('TA Indicator Bank'!K217),\"\",'TA Indicator Bank'!K217)","v":0},{"$f":"IF(ISBLANK('TA Indicator Bank'!L217),\"\",'TA Indicator Bank'!L217)","v":0},{"$f":"IF(ISBLANK('TA Indicator Bank'!M217),\"\",'TA Indicator Bank'!M217)","v":1},{"$f":"IF(ISBLANK('TA Indicator Bank'!N217),\"\",'TA Indicator Bank'!N217)","v":0},{"$f":"IF(ISBLANK('TA Indicator Bank'!O217),\"\",'TA Indicator Bank'!O217)","v":0},{"$f":"IF(ISBLANK('TA Indicator Bank'!P217),\"\",'TA Indicator Bank'!P217)","v":1},{"$f":"IF(ISBLANK('TA Indicator Bank'!Q217),\"\",'TA Indicator Bank'!Q217)","v":0},{"$f":"IF(ISBLANK('TA Indicator Bank'!R217),\"\",'TA Indicator Bank'!R217)","v":0},{"$f":"IF(ISBLANK('TA Indicator Bank'!S217),\"\",'TA Indicator Bank'!S217)","v":0},{"$f":"IF(ISBLANK('TA Indicator Bank'!T217),\"\",'TA Indicator Bank'!T217)","v":0},{"$f":"IF(ISBLANK('TA Indicator Bank'!U217),\"\",'TA Indicator Bank'!U217)","v":0},{"$f":"IF(ISBLANK('TA Indicator Bank'!V217),\"\",'TA Indicator Bank'!V217)","v":0},{"$f":"IF(ISBLANK('TA Indicator Bank'!W217),\"\",'TA Indicator Bank'!W217)","v":0},{"$f":"IF(ISBLANK('TA Indicator Bank'!X217),\"\",'TA Indicator Bank'!X217)","v":0},{"$f":"IF(ISBLANK('TA Indicator Bank'!Y217),\"\",'TA Indicator Bank'!Y217)","v":0},{"$f":"IF(ISBLANK('TA Indicator Bank'!Z217),\"\",'TA Indicator Bank'!Z217)","v":0},{"$f":"IF(ISBLANK('TA Indicator Bank'!AA217),\"\",'TA Indicator Bank'!AA217)","v":0},{"$f":"IF(ISBLANK('TA Indicator Bank'!AB217),\"\",'TA Indicator Bank'!AB217)","v":0},{"$f":"IF(ISBLANK('TA Indicator Bank'!AC217),\"\",'TA Indicator Bank'!AC217)","v":0},{"$f":"IF(ISBLANK('TA Indicator Bank'!AD217),\"\",'TA Indicator Bank'!AD217)","v":0},{"$f":"IF(ISBLANK('TA Indicator Bank'!AE217),\"\",'TA Indicator Bank'!AE217)","v":0},{"$f":"IF(ISBLANK('TA Indicator Bank'!AF217),\"\",'TA Indicator Bank'!AF217)","v":0},{"$f":"IF(ISBLANK('TA Indicator Bank'!AG217),\"\",'TA Indicator Bank'!AG217)","v":0},{"$f":"IF(ISBLANK('TA Indicator Bank'!AH217),\"\",'TA Indicator Bank'!AH217)","v":0},{"$f":"IF(ISBLANK('TA Indicator Bank'!AI217),\"\",'TA Indicator Bank'!AI217)","v":0},{"$f":"IF(ISBLANK('TA Indicator Bank'!AJ217),\"\",'TA Indicator Bank'!AJ217)","v":0},{"$f":"IF(ISBLANK('TA Indicator Bank'!AK217),\"\",'TA Indicator Bank'!AK217)","v":0},{"$f":"IF(ISBLANK('TA Indicator Bank'!AL217),\"\",'TA Indicator Bank'!AL217)","v":0},{"$f":"IF(ISBLANK('TA Indicator Bank'!AM217),\"\",'TA Indicator Bank'!AM217)","v":0},{"$f":"IF(ISBLANK('TA Indicator Bank'!AN217),\"\",'TA Indicator Bank'!AN217)","v":0},{"$f":"IF(ISBLANK('TA Indicator Bank'!AO217),\"\",'TA Indicator Bank'!AO217)","v":0},{"$f":"IF(ISBLANK('TA Indicator Bank'!AP217),\"\",'TA Indicator Bank'!AP217)","v":1},{"$f":"IF(ISBLANK('TA Indicator Bank'!AQ217),\"\",'TA Indicator Bank'!AQ217)","v":0},{"$f":"IF(ISBLANK('TA Indicator Bank'!AR217),\"\",'TA Indicator Bank'!AR217)","v":0},{"$f":"IF(ISBLANK('TA Indicator Bank'!AS217),\"\",'TA Indicator Bank'!AS217)","v":0},{"$f":"IF(ISBLANK('TA Indicator Bank'!AT217),\"\",'TA Indicator Bank'!AT217)","v":0},0,0,0,1,0,0,1,0,0,0,0,0,0,0,1,{"$f":"IF(AND(X221=1,X$410=1),1,0)","v":0},{"$f":"IF(AND(Y221=1,Y$410=1),1,0)","v":0},{"$f":"IF(AND(Z221=1,Z$410=1),1,0)","v":0},{"$f":"IF(AND(AA221=1,AA$410=1),1,0)","v":0},{"$f":"IF(AND(AB221=1,AB$410=1),1,0)","v":0},{"$f":"IF(AND(AC221=1,AC$410=1),1,0)","v":0},{"$f":"IF(AND(AD221=1,AD$410=1),1,0)","v":0},{"$f":"IF(AND(AE221=1,AE$410=1),1,0)","v":0},{"$f":"IF(AND(AF221=1,AF$410=1),1,0)","v":0},1,{"$f":"IF(AND(AG221=1,AG$410=1),1,0)","v":0},{"$f":"IF(AND(AH221=1,AH$410=1),1,0)","v":0},{"$f":"IF(AND(AI221=1,AI$410=1),1,0)","v":0},{"$f":"IF(AND(AJ221=1,AJ$410=1),1,0)","v":0},{"$f":"IF(AND(AK221=1,AK$410=1),1,0)","v":0},{"$f":"IF(AND(AL221=1,AL$410=1),1,0)","v":0},{"$f":"IF(AND(AM221=1,AM$410=1),1,0)","v":0},{"$f":"IF(AND(AN221=1,AN$410=1),1,0)","v":0},{"$f":"IF(AND(AO221=1,AO$410=1),1,0)","v":0},1,{"$f":"IF(AND(AP221=1,AP$410=1),1,0)","v":1},{"$f":"IF(AND(AQ221=1,AQ$410=1),1,0)","v":0},{"$f":"IF(AND(AR221=1,AR$410=1),1,0)","v":0},{"$f":"IF(AND(AS221=1,AS$410=1),1,0)","v":0},{"$f":"IF(AND(AT221=1,AT$410=1),1,0)","v":0},1,1,213,213,{"$f":"IFERROR(SMALL($CL$9:$CL$408,CK221),\"\")","v":213},{"$f":"IFERROR(INDEX($B$9:$I$408,$CM221,COLUMNS($CN$9:CN221)),\"\")","v":"TA213"},{"$f":"IFERROR(INDEX($B$9:$I$408,$CM221,COLUMNS($CN$9:CO221)),\"\")","v":"Number of countries/projects supported by the programme"},{"$f":"IFERROR(INDEX($B$9:$I$408,$CM221,COLUMNS($CN$9:CP221)),\"\")","v":"-"},{"$f":"IFERROR(INDEX($B$9:$I$408,$CM221,COLUMNS($CN$9:CQ221)),\"\")","v":"Activity"},{"$f":"IFERROR(INDEX($B$9:$I$408,$CM221,COLUMNS($CN$9:CR221)),\"\")","v":"Secondments; Expert guidance and review"},{"$f":"IFERROR(INDEX($B$9:$I$408,$CM221,COLUMNS($CN$9:CS221)),\"\")","v":"-"},{"$f":"IFERROR(INDEX($B$9:$I$408,$CM221,COLUMNS($CN$9:CT221)),\"\")","v":"-"},{"$f":"IFERROR(INDEX($B$9:$I$408,$CM221,COLUMNS($CN$9:CU221)),\"\")","v":"Number"}]
[null,{"$f":"IF(ISBLANK('TA Indicator Bank'!B218),\"\",'TA Indicator Bank'!B218)","v":"TA214"},{"$f":"IF(ISBLANK('TA Indicator Bank'!C218),\"\",'TA Indicator Bank'!C218)","v":"New innovations are deployed at scale"},{"$f":"IF(ISBLANK('TA Indicator Bank'!D218),\"\",'TA Indicator Bank'!D218)","v":"-"},{"$f":"IF(ISBLANK('TA Indicator Bank'!E218),\"\",'TA Indicator Bank'!E218)","v":"Outcome"},{"$f":"IF(ISBLANK('TA Indicator Bank'!F218),\"\",'TA Indicator Bank'!F218)","v":"-"},{"$f":"IF(ISBLANK('TA Indicator Bank'!G218),\"\",'TA Indicator Bank'!G218)","v":"-"},{"$f":"IF(ISBLANK('TA Indicator Bank'!H218),\"\",'TA Indicator Bank'!H218)","v":"Increased or improved investment in climate-related projects/assets"},{"$f":"IF(ISBLANK('TA Indicator Bank'!I218),\"\",'TA Indicator Bank'!I218)","v":"Yes/No"},{"$f":"IF(ISBLANK('TA Indicator Bank'!J218),\"\",'TA Indicator Bank'!J218)","v":0},{"$f":"IF(ISBLANK('TA Indicator Bank'!K218),\"\",'TA Indicator Bank'!K218)","v":0},{"$f":"IF(ISBLANK('TA Indicator Bank'!L218),\"\",'TA Indicator Bank'!L218)","v":0},{"$f":"IF(ISBLANK('TA Indicator Bank'!M218),\"\",'TA Indicator Bank'!M218)","v":0},{"$f":"IF(ISBLANK('TA Indicator Bank'!N218),\"\",'TA Indicator Bank'!N218)","v":0},{"$f":"IF(ISBLANK('TA Indicator Bank'!O218),\"\",'TA Indicator Bank'!O218)","v":0},{"$f":"IF(ISBLANK('TA Indicator Bank'!P218),\"\",'TA Indicator Bank'!P218)","v":0},{"$f":"IF(ISBLANK('TA Indicator Bank'!Q218),\"\",'TA Indicator Bank'!Q218)","v":0},{"$f":"IF(ISBLANK('TA Indicator Bank'!R218),\"\",'TA Indicator Bank'!R218)","v":0},{"$f":"IF(ISBLANK('TA Indicator Bank'!S218),\"\",'TA Indicator Bank'!S218)","v":0},{"$f":"IF(ISBLANK('TA Indicator Bank'!T218),\"\",'TA Indicator Bank'!T218)","v":0},{"$f":"IF(ISBLANK('TA Indicator Bank'!U218),\"\",'TA Indicator Bank'!U218)","v":0},{"$f":"IF(ISBLANK('TA Indicator Bank'!V218),\"\",'TA Indicator Bank'!V218)","v":0},{"$f":"IF(ISBLANK('TA Indicator Bank'!W218),\"\",'TA Indicator Bank'!W218)","v":0},{"$f":"IF(ISBLANK('TA Indicator Bank'!X218),\"\",'TA Indicator Bank'!X218)","v":0},{"$f":"IF(ISBLANK('TA Indicator Bank'!Y218),\"\",'TA Indicator Bank'!Y218)","v":0},{"$f":"IF(ISBLANK('TA Indicator Bank'!Z218),\"\",'TA Indicator Bank'!Z218)","v":0},{"$f":"IF(ISBLANK('TA Indicator Bank'!AA218),\"\",'TA Indicator Bank'!AA218)","v":0},{"$f":"IF(ISBLANK('TA Indicator Bank'!AB218),\"\",'TA Indicator Bank'!AB218)","v":0},{"$f":"IF(ISBLANK('TA Indicator Bank'!AC218),\"\",'TA Indicator Bank'!AC218)","v":0},{"$f":"IF(ISBLANK('TA Indicator Bank'!AD218),\"\",'TA Indicator Bank'!AD218)","v":0},{"$f":"IF(ISBLANK('TA Indicator Bank'!AE218),\"\",'TA Indicator Bank'!AE218)","v":0},{"$f":"IF(ISBLANK('TA Indicator Bank'!AF218),\"\",'TA Indicator Bank'!AF218)","v":0},{"$f":"IF(ISBLANK('TA Indicator Bank'!AG218),\"\",'TA Indicator Bank'!AG218)","v":0},{"$f":"IF(ISBLANK('TA Indicator Bank'!AH218),\"\",'TA Indicator Bank'!AH218)","v":0},{"$f":"IF(ISBLANK('TA Indicator Bank'!AI218),\"\",'TA Indicator Bank'!AI218)","v":0},{"$f":"IF(ISBLANK('TA Indicator Bank'!AJ218),\"\",'TA Indicator Bank'!AJ218)","v":0},{"$f":"IF(ISBLANK('TA Indicator Bank'!AK218),\"\",'TA Indicator Bank'!AK218)","v":1},{"$f":"IF(ISBLANK('TA Indicator Bank'!AL218),\"\",'TA Indicator Bank'!AL218)","v":0},{"$f":"IF(ISBLANK('TA Indicator Bank'!AM218),\"\",'TA Indicator Bank'!AM218)","v":0},{"$f":"IF(ISBLANK('TA Indicator Bank'!AN218),\"\",'TA Indicator Bank'!AN218)","v":0},{"$f":"IF(ISBLANK('TA Indicator Bank'!AO218),\"\",'TA Indicator Bank'!AO218)","v":0},{"$f":"IF(ISBLANK('TA Indicator Bank'!AP218),\"\",'TA Indicator Bank'!AP218)","v":0},{"$f":"IF(ISBLANK('TA Indicator Bank'!AQ218),\"\",'TA Indicator Bank'!AQ218)","v":0},{"$f":"IF(ISBLANK('TA Indicator Bank'!AR218),\"\",'TA Indicator Bank'!AR218)","v":0},{"$f":"IF(ISBLANK('TA Indicator Bank'!AS218),\"\",'TA Indicator Bank'!AS218)","v":1},{"$f":"IF(ISBLANK('TA Indicator Bank'!AT218),\"\",'TA Indicator Bank'!AT218)","v":0},0,0,0,0,0,0,0,0,0,0,0,0,0,0,1,{"$f":"IF(AND(X222=1,X$410=1),1,0)","v":0},{"$f":"IF(AND(Y222=1,Y$410=1),1,0)","v":0},{"$f":"IF(AND(Z222=1,Z$410=1),1,0)","v":0},{"$f":"IF(AND(AA222=1,AA$410=1),1,0)","v":0},{"$f":"IF(AND(AB222=1,AB$410=1),1,0)","v":0},{"$f":"IF(AND(AC222=1,AC$410=1),1,0)","v":0},{"$f":"IF(AND(AD222=1,AD$410=1),1,0)","v":0},{"$f":"IF(AND(AE222=1,AE$410=1),1,0)","v":0},{"$f":"IF(AND(AF222=1,AF$410=1),1,0)","v":0},1,{"$f":"IF(AND(AG222=1,AG$410=1),1,0)","v":0},{"$f":"IF(AND(AH222=1,AH$410=1),1,0)","v":0},{"$f":"IF(AND(AI222=1,AI$410=1),1,0)","v":0},{"$f":"IF(AND(AJ222=1,AJ$410=1),1,0)","v":0},{"$f":"IF(AND(AK222=1,AK$410=1),1,0)","v":1},{"$f":"IF(AND(AL222=1,AL$410=1),1,0)","v":0},{"$f":"IF(AND(AM222=1,AM$410=1),1,0)","v":0},{"$f":"IF(AND(AN222=1,AN$410=1),1,0)","v":0},{"$f":"IF(AND(AO222=1,AO$410=1),1,0)","v":0},1,{"$f":"IF(AND(AP222=1,AP$410=1),1,0)","v":0},{"$f":"IF(AND(AQ222=1,AQ$410=1),1,0)","v":0},{"$f":"IF(AND(AR222=1,AR$410=1),1,0)","v":0},{"$f":"IF(AND(AS222=1,AS$410=1),1,0)","v":1},{"$f":"IF(AND(AT222=1,AT$410=1),1,0)","v":0},1,1,214,214,{"$f":"IFERROR(SMALL($CL$9:$CL$408,CK222),\"\")","v":214},{"$f":"IFERROR(INDEX($B$9:$I$408,$CM222,COLUMNS($CN$9:CN222)),\"\")","v":"TA214"},{"$f":"IFERROR(INDEX($B$9:$I$408,$CM222,COLUMNS($CN$9:CO222)),\"\")","v":"New innovations are deployed at scale"},{"$f":"IFERROR(INDEX($B$9:$I$408,$CM222,COLUMNS($CN$9:CP222)),\"\")","v":"-"},{"$f":"IFERROR(INDEX($B$9:$I$408,$CM222,COLUMNS($CN$9:CQ222)),\"\")","v":"Outcome"},{"$f":"IFERROR(INDEX($B$9:$I$408,$CM222,COLUMNS($CN$9:CR222)),\"\")","v":"-"},{"$f":"IFERROR(INDEX($B$9:$I$408,$CM222,COLUMNS($CN$9:CS222)),\"\")","v":"-"},{"$f":"IFERROR(INDEX($B$9:$I$408,$CM222,COLUMNS($CN$9:CT222)),\"\")","v":"Increased or improved investment in climate-related projects/assets"},{"$f":"IFERROR(INDEX($B$9:$I$408,$CM222,COLUMNS($CN$9:CU222)),\"\")","v":"Yes/No"}]
[null,{"$f":"IF(ISBLANK('TA Indicator Bank'!B219),\"\",'TA Indicator Bank'!B219)","v":"TA215"},{"$f":"IF(ISBLANK('TA Indicator Bank'!C219),\"\",'TA Indicator Bank'!C219)","v":"Percentage of private investors placing funds in specific area"},{"$f":"IF(ISBLANK('TA Indicator Bank'!D219),\"\",'TA Indicator Bank'!D219)","v":"-"},{"$f":"IF(ISBLANK('TA Indicator Bank'!E219),\"\",'TA Indicator Bank'!E219)","v":"Outcome"},{"$f":"IF(ISBLANK('TA Indicator Bank'!F219),\"\",'TA Indicator Bank'!F219)","v":"-"},{"$f":"IF(ISBLANK('TA Indicator Bank'!G219),\"\",'TA Indicator Bank'!G219)","v":"-"},{"$f":"IF(ISBLANK('TA Indicator Bank'!H219),\"\",'TA Indicator Bank'!H219)","v":"Increased or improved investment in climate-related projects/assets"},{"$f":"IF(ISBLANK('TA Indicator Bank'!I219),\"\",'TA Indicator Bank'!I219)","v":"Percentage"},{"$f":"IF(ISBLANK('TA Indicator Bank'!J219),\"\",'TA Indicator Bank'!J219)","v":0},{"$f":"IF(ISBLANK('TA Indicator Bank'!K219),\"\",'TA Indicator Bank'!K219)","v":0},{"$f":"IF(ISBLANK('TA Indicator Bank'!L219),\"\",'TA Indicator Bank'!L219)","v":0},{"$f":"IF(ISBLANK('TA Indicator Bank'!M219),\"\",'TA Indicator Bank'!M219)","v":0},{"$f":"IF(ISBLANK('TA Indicator Bank'!N219),\"\",'TA Indicator Bank'!N219)","v":0},{"$f":"IF(ISBLANK('TA Indicator Bank'!O219),\"\",'TA Indicator Bank'!O219)","v":0},{"$f":"IF(ISBLANK('TA Indicator Bank'!P219),\"\",'TA Indicator Bank'!P219)","v":0},{"$f":"IF(ISBLANK('TA Indicator Bank'!Q219),\"\",'TA Indicator Bank'!Q219)","v":0},{"$f":"IF(ISBLANK('TA Indicator Bank'!R219),\"\",'TA Indicator Bank'!R219)","v":0},{"$f":"IF(ISBLANK('TA Indicator Bank'!S219),\"\",'TA Indicator Bank'!S219)","v":0},{"$f":"IF(ISBLANK('TA Indicator Bank'!T219),\"\",'TA Indicator Bank'!T219)","v":0},{"$f":"IF(ISBLANK('TA Indicator Bank'!U219),\"\",'TA Indicator Bank'!U219)","v":0},{"$f":"IF(ISBLANK('TA Indicator Bank'!V219),\"\",'TA Indicator Bank'!V219)","v":0},{"$f":"IF(ISBLANK('TA Indicator Bank'!W219),\"\",'TA Indicator Bank'!W219)","v":0},{"$f":"IF(ISBLANK('TA Indicator Bank'!X219),\"\",'TA Indicator Bank'!X219)","v":0},{"$f":"IF(ISBLANK('TA Indicator Bank'!Y219),\"\",'TA Indicator Bank'!Y219)","v":0},{"$f":"IF(ISBLANK('TA Indicator Bank'!Z219),\"\",'TA Indicator Bank'!Z219)","v":0},{"$f":"IF(ISBLANK('TA Indicator Bank'!AA219),\"\",'TA Indicator Bank'!AA219)","v":0},{"$f":"IF(ISBLANK('TA Indicator Bank'!AB219),\"\",'TA Indicator Bank'!AB219)","v":0},{"$f":"IF(ISBLANK('TA Indicator Bank'!AC219),\"\",'TA Indicator Bank'!AC219)","v":0},{"$f":"IF(ISBLANK('TA Indicator Bank'!AD219),\"\",'TA Indicator Bank'!AD219)","v":0},{"$f":"IF(ISBLANK('TA Indicator Bank'!AE219),\"\",'TA Indicator Bank'!AE219)","v":0},{"$f":"IF(ISBLANK('TA Indicator Bank'!AF219),\"\",'TA Indicator Bank'!AF219)","v":0},{"$f":"IF(ISBLANK('TA Indicator Bank'!AG219),\"\",'TA Indicator Bank'!AG219)","v":0},{"$f":"IF(ISBLANK('TA Indicator Bank'!AH219),\"\",'TA Indicator Bank'!AH219)","v":0},{"$f":"IF(ISBLANK('TA Indicator Bank'!AI219),\"\",'TA Indicator Bank'!AI219)","v":0},{"$f":"IF(ISBLANK('TA Indicator Bank'!AJ219),\"\",'TA Indicator Bank'!AJ219)","v":0},{"$f":"IF(ISBLANK('TA Indicator Bank'!AK219),\"\",'TA Indicator Bank'!AK219)","v":1},{"$f":"IF(ISBLANK('TA Indicator Bank'!AL219),\"\",'TA Indicator Bank'!AL219)","v":0},{"$f":"IF(ISBLANK('TA Indicator Bank'!AM219),\"\",'TA Indicator Bank'!AM219)","v":0},{"$f":"IF(ISBLANK('TA Indicator Bank'!AN219),\"\",'TA Indicator Bank'!AN219)","v":0},{"$f":"IF(ISBLANK('TA Indicator Bank'!AO219),\"\",'TA Indicator Bank'!AO219)","v":0},{"$f":"IF(ISBLANK('TA Indicator Bank'!AP219),\"\",'TA Indicator Bank'!AP219)","v":0},{"$f":"IF(ISBLANK('TA Indicator Bank'!AQ219),\"\",'TA Indicator Bank'!AQ219)","v":0},{"$f":"IF(ISBLANK('TA Indicator Bank'!AR219),\"\",'TA Indicator Bank'!AR219)","v":0},{"$f":"IF(ISBLANK('TA Indicator Bank'!AS219),\"\",'TA Indicator Bank'!AS219)","v":1},{"$f":"IF(ISBLANK('TA Indicator Bank'!AT219),\"\",'TA Indicator Bank'!AT219)","v":0},0,0,0,0,0,0,0,0,0,0,0,0,0,0,1,{"$f":"IF(AND(X223=1,X$410=1),1,0)","v":0},{"$f":"IF(AND(Y223=1,Y$410=1),1,0)","v":0},{"$f":"IF(AND(Z223=1,Z$410=1),1,0)","v":0},{"$f":"IF(AND(AA223=1,AA$410=1),1,0)","v":0},{"$f":"IF(AND(AB223=1,AB$410=1),1,0)","v":0},{"$f":"IF(AND(AC223=1,AC$410=1),1,0)","v":0},{"$f":"IF(AND(AD223=1,AD$410=1),1,0)","v":0},{"$f":"IF(AND(AE223=1,AE$410=1),1,0)","v":0},{"$f":"IF(AND(AF223=1,AF$410=1),1,0)","v":0},1,{"$f":"IF(AND(AG223=1,AG$410=1),1,0)","v":0},{"$f":"IF(AND(AH223=1,AH$410=1),1,0)","v":0},{"$f":"IF(AND(AI223=1,AI$410=1),1,0)","v":0},{"$f":"IF(AND(AJ223=1,AJ$410=1),1,0)","v":0},{"$f":"IF(AND(AK223=1,AK$410=1),1,0)","v":1},{"$f":"IF(AND(AL223=1,AL$410=1),1,0)","v":0},{"$f":"IF(AND(AM223=1,AM$410=1),1,0)","v":0},{"$f":"IF(AND(AN223=1,AN$410=1),1,0)","v":0},{"$f":"IF(AND(AO223=1,AO$410=1),1,0)","v":0},1,{"$f":"IF(AND(AP223=1,AP$410=1),1,0)","v":0},{"$f":"IF(AND(AQ223=1,AQ$410=1),1,0)","v":0},{"$f":"IF(AND(AR223=1,AR$410=1),1,0)","v":0},{"$f":"IF(AND(AS223=1,AS$410=1),1,0)","v":1},{"$f":"IF(AND(AT223=1,AT$410=1),1,0)","v":0},1,1,215,215,{"$f":"IFERROR(SMALL($CL$9:$CL$408,CK223),\"\")","v":215},{"$f":"IFERROR(INDEX($B$9:$I$408,$CM223,COLUMNS($CN$9:CN223)),\"\")","v":"TA215"},{"$f":"IFERROR(INDEX($B$9:$I$408,$CM223,COLUMNS($CN$9:CO223)),\"\")","v":"Percentage of private investors placing funds in specific area"},{"$f":"IFERROR(INDEX($B$9:$I$408,$CM223,COLUMNS($CN$9:CP223)),\"\")","v":"-"},{"$f":"IFERROR(INDEX($B$9:$I$408,$CM223,COLUMNS($CN$9:CQ223)),\"\")","v":"Outcome"},{"$f":"IFERROR(INDEX($B$9:$I$408,$CM223,COLUMNS($CN$9:CR223)),\"\")","v":"-"},{"$f":"IFERROR(INDEX($B$9:$I$408,$CM223,COLUMNS($CN$9:CS223)),\"\")","v":"-"},{"$f":"IFERROR(INDEX($B$9:$I$408,$CM223,COLUMNS($CN$9:CT223)),\"\")","v":"Increased or improved investment in climate-related projects/assets"},{"$f":"IFERROR(INDEX($B$9:$I$408,$CM223,COLUMNS($CN$9:CU223)),\"\")","v":"Percentage"}]
[null,{"$f":"IF(ISBLANK('TA Indicator Bank'!B220),\"\",'TA Indicator Bank'!B220)","v":"TA216"},{"$f":"IF(ISBLANK('TA Indicator Bank'!C220),\"\",'TA Indicator Bank'!C220)","v":"ESG standards mainstreamed/adopted in climate finance"},{"$f":"IF(ISBLANK('TA Indicator Bank'!D220),\"\",'TA Indicator Bank'!D220)","v":"-"},{"$f":"IF(ISBLANK('TA Indicator Bank'!E220),\"\",'TA Indicator Bank'!E220)","v":"Outcome"},{"$f":"IF(ISBLANK('TA Indicator Bank'!F220),\"\",'TA Indicator Bank'!F220)","v":"-"},{"$f":"IF(ISBLANK('TA Indicator Bank'!G220),\"\",'TA Indicator Bank'!G220)","v":"-"},{"$f":"IF(ISBLANK('TA Indicator Bank'!H220),\"\",'TA Indicator Bank'!H220)","v":"Increased or improved investment in climate-related projects/assets"},{"$f":"IF(ISBLANK('TA Indicator Bank'!I220),\"\",'TA Indicator Bank'!I220)","v":"Yes/No"},{"$f":"IF(ISBLANK('TA Indicator Bank'!J220),\"\",'TA Indicator Bank'!J220)","v":0},{"$f":"IF(ISBLANK('TA Indicator Bank'!K220),\"\",'TA Indicator Bank'!K220)","v":0},{"$f":"IF(ISBLANK('TA Indicator Bank'!L220),\"\",'TA Indicator Bank'!L220)","v":0},{"$f":"IF(ISBLANK('TA Indicator Bank'!M220),\"\",'TA Indicator Bank'!M220)","v":0},{"$f":"IF(ISBLANK('TA Indicator Bank'!N220),\"\",'TA Indicator Bank'!N220)","v":0},{"$f":"IF(ISBLANK('TA Indicator Bank'!O220),\"\",'TA Indicator Bank'!O220)","v":0},{"$f":"IF(ISBLANK('TA Indicator Bank'!P220),\"\",'TA Indicator Bank'!P220)","v":0},{"$f":"IF(ISBLANK('TA Indicator Bank'!Q220),\"\",'TA Indicator Bank'!Q220)","v":0},{"$f":"IF(ISBLANK('TA Indicator Bank'!R220),\"\",'TA Indicator Bank'!R220)","v":0},{"$f":"IF(ISBLANK('TA Indicator Bank'!S220),\"\",'TA Indicator Bank'!S220)","v":0},{"$f":"IF(ISBLANK('TA Indicator Bank'!T220),\"\",'TA Indicator Bank'!T220)","v":0},{"$f":"IF(ISBLANK('TA Indicator Bank'!U220),\"\",'TA Indicator Bank'!U220)","v":0},{"$f":"IF(ISBLANK('TA Indicator Bank'!V220),\"\",'TA Indicator Bank'!V220)","v":0},{"$f":"IF(ISBLANK('TA Indicator Bank'!W220),\"\",'TA Indicator Bank'!W220)","v":0},{"$f":"IF(ISBLANK('TA Indicator Bank'!X220),\"\",'TA Indicator Bank'!X220)","v":0},{"$f":"IF(ISBLANK('TA Indicator Bank'!Y220),\"\",'TA Indicator Bank'!Y220)","v":0},{"$f":"IF(ISBLANK('TA Indicator Bank'!Z220),\"\",'TA Indicator Bank'!Z220)","v":0},{"$f":"IF(ISBLANK('TA Indicator Bank'!AA220),\"\",'TA Indicator Bank'!AA220)","v":0},{"$f":"IF(ISBLANK('TA Indicator Bank'!AB220),\"\",'TA Indicator Bank'!AB220)","v":0},{"$f":"IF(ISBLANK('TA Indicator Bank'!AC220),\"\",'TA Indicator Bank'!AC220)","v":0},{"$f":"IF(ISBLANK('TA Indicator Bank'!AD220),\"\",'TA Indicator Bank'!AD220)","v":0},{"$f":"IF(ISBLANK('TA Indicator Bank'!AE220),\"\",'TA Indicator Bank'!AE220)","v":0},{"$f":"IF(ISBLANK('TA Indicator Bank'!AF220),\"\",'TA Indicator Bank'!AF220)","v":0},{"$f":"IF(ISBLANK('TA Indicator Bank'!AG220),\"\",'TA Indicator Bank'!AG220)","v":0},{"$f":"IF(ISBLANK('TA Indicator Bank'!AH220),\"\",'TA Indicator Bank'!AH220)","v":0},{"$f":"IF(ISBLANK('TA Indicator Bank'!AI220),\"\",'TA Indicator Bank'!AI220)","v":0},{"$f":"IF(ISBLANK('TA Indicator Bank'!AJ220),\"\",'TA Indicator Bank'!AJ220)","v":0},{"$f":"IF(ISBLANK('TA Indicator Bank'!AK220),\"\",'TA Indicator Bank'!AK220)","v":1},{"$f":"IF(ISBLANK('TA Indicator Bank'!AL220),\"\",'TA Indicator Bank'!AL220)","v":0},{"$f":"IF(ISBLANK('TA Indicator Bank'!AM220),\"\",'TA Indicator Bank'!AM220)","v":0},{"$f":"IF(ISBLANK('TA Indicator Bank'!AN220),\"\",'TA Indicator Bank'!AN220)","v":0},{"$f":"IF(ISBLANK('TA Indicator Bank'!AO220),\"\",'TA Indicator Bank'!AO220)","v":0},{"$f":"IF(ISBLANK('TA Indicator Bank'!AP220),\"\",'TA Indicator Bank'!AP220)","v":0},{"$f":"IF(ISBLANK('TA Indicator Bank'!AQ220),\"\",'TA Indicator Bank'!AQ220)","v":0},{"$f":"IF(ISBLANK('TA Indicator Bank'!AR220),\"\",'TA Indicator Bank'!AR220)","v":0},{"$f":"IF(ISBLANK('TA Indicator Bank'!AS220),\"\",'TA Indicator Bank'!AS220)","v":1},{"$f":"IF(ISBLANK('TA Indicator Bank'!AT220),\"\",'TA Indicator Bank'!AT220)","v":0},0,0,0,0,0,0,0,0,0,0,0,0,0,0,1,{"$f":"IF(AND(X224=1,X$410=1),1,0)","v":0},{"$f":"IF(AND(Y224=1,Y$410=1),1,0)","v":0},{"$f":"IF(AND(Z224=1,Z$410=1),1,0)","v":0},{"$f":"IF(AND(AA224=1,AA$410=1),1,0)","v":0},{"$f":"IF(AND(AB224=1,AB$410=1),1,0)","v":0},{"$f":"IF(AND(AC224=1,AC$410=1),1,0)","v":0},{"$f":"IF(AND(AD224=1,AD$410=1),1,0)","v":0},{"$f":"IF(AND(AE224=1,AE$410=1),1,0)","v":0},{"$f":"IF(AND(AF224=1,AF$410=1),1,0)","v":0},1,{"$f":"IF(AND(AG224=1,AG$410=1),1,0)","v":0},{"$f":"IF(AND(AH224=1,AH$410=1),1,0)","v":0},{"$f":"IF(AND(AI224=1,AI$410=1),1,0)","v":0},{"$f":"IF(AND(AJ224=1,AJ$410=1),1,0)","v":0},{"$f":"IF(AND(AK224=1,AK$410=1),1,0)","v":1},{"$f":"IF(AND(AL224=1,AL$410=1),1,0)","v":0},{"$f":"IF(AND(AM224=1,AM$410=1),1,0)","v":0},{"$f":"IF(AND(AN224=1,AN$410=1),1,0)","v":0},{"$f":"IF(AND(AO224=1,AO$410=1),1,0)","v":0},1,{"$f":"IF(AND(AP224=1,AP$410=1),1,0)","v":0},{"$f":"IF(AND(AQ224=1,AQ$410=1),1,0)","v":0},{"$f":"IF(AND(AR224=1,AR$410=1),1,0)","v":0},{"$f":"IF(AND(AS224=1,AS$410=1),1,0)","v":1},{"$f":"IF(AND(AT224=1,AT$410=1),1,0)","v":0},1,1,216,216,{"$f":"IFERROR(SMALL($CL$9:$CL$408,CK224),\"\")","v":216},{"$f":"IFERROR(INDEX($B$9:$I$408,$CM224,COLUMNS($CN$9:CN224)),\"\")","v":"TA216"},{"$f":"IFERROR(INDEX($B$9:$I$408,$CM224,COLUMNS($CN$9:CO224)),\"\")","v":"ESG standards mainstreamed/adopted in climate finance"},{"$f":"IFERROR(INDEX($B$9:$I$408,$CM224,COLUMNS($CN$9:CP224)),\"\")","v":"-"},{"$f":"IFERROR(INDEX($B$9:$I$408,$CM224,COLUMNS($CN$9:CQ224)),\"\")","v":"Outcome"},{"$f":"IFERROR(INDEX($B$9:$I$408,$CM224,COLUMNS($CN$9:CR224)),\"\")","v":"-"},{"$f":"IFERROR(INDEX($B$9:$I$408,$CM224,COLUMNS($CN$9:CS224)),\"\")","v":"-"},{"$f":"IFERROR(INDEX($B$9:$I$408,$CM224,COLUMNS($CN$9:CT224)),\"\")","v":"Increased or improved investment in climate-related projects/assets"},{"$f":"IFERROR(INDEX($B$9:$I$408,$CM224,COLUMNS($CN$9:CU224)),\"\")","v":"Yes/No"}]
[null,{"$f":"IF(ISBLANK('TA Indicator Bank'!B221),\"\",'TA Indicator Bank'!B221)","v":"TA217"},{"$f":"IF(ISBLANK('TA Indicator Bank'!C221),\"\",'TA Indicator Bank'!C221)","v":"Fund performs well compared to market indices"},{"$f":"IF(ISBLANK('TA Indicator Bank'!D221),\"\",'TA Indicator Bank'!D221)","v":"-"},{"$f":"IF(ISBLANK('TA Indicator Bank'!E221),\"\",'TA Indicator Bank'!E221)","v":"Outcome"},{"$f":"IF(ISBLANK('TA Indicator Bank'!F221),\"\",'TA Indicator Bank'!F221)","v":"-"},{"$f":"IF(ISBLANK('TA Indicator Bank'!G221),\"\",'TA Indicator Bank'!G221)","v":"-"},{"$f":"IF(ISBLANK('TA Indicator Bank'!H221),\"\",'TA Indicator Bank'!H221)","v":"Increased or improved investment in climate-related projects/assets"},{"$f":"IF(ISBLANK('TA Indicator Bank'!I221),\"\",'TA Indicator Bank'!I221)","v":"Number"},{"$f":"IF(ISBLANK('TA Indicator Bank'!J221),\"\",'TA Indicator Bank'!J221)","v":0},{"$f":"IF(ISBLANK('TA Indicator Bank'!K221),\"\",'TA Indicator Bank'!K221)","v":0},{"$f":"IF(ISBLANK('TA Indicator Bank'!L221),\"\",'TA Indicator Bank'!L221)","v":0},{"$f":"IF(ISBLANK('TA Indicator Bank'!M221),\"\",'TA Indicator Bank'!M221)","v":0},{"$f":"IF(ISBLANK('TA Indicator Bank'!N221),\"\",'TA Indicator Bank'!N221)","v":0},{"$f":"IF(ISBLANK('TA Indicator Bank'!O221),\"\",'TA Indicator Bank'!O221)","v":0},{"$f":"IF(ISBLANK('TA Indicator Bank'!P221),\"\",'TA Indicator Bank'!P221)","v":0},{"$f":"IF(ISBLANK('TA Indicator Bank'!Q221),\"\",'TA Indicator Bank'!Q221)","v":0},{"$f":"IF(ISBLANK('TA Indicator Bank'!R221),\"\",'TA Indicator Bank'!R221)","v":0},{"$f":"IF(ISBLANK('TA Indicator Bank'!S221),\"\",'TA Indicator Bank'!S221)","v":0},{"$f":"IF(ISBLANK('TA Indicator Bank'!T221),\"\",'TA Indicator Bank'!T221)","v":0},{"$f":"IF(ISBLANK('TA Indicator Bank'!U221),\"\",'TA Indicator Bank'!U221)","v":0},{"$f":"IF(ISBLANK('TA Indicator Bank'!V221),\"\",'TA Indicator Bank'!V221)","v":0},{"$f":"IF(ISBLANK('TA Indicator Bank'!W221),\"\",'TA Indicator Bank'!W221)","v":0},{"$f":"IF(ISBLANK('TA Indicator Bank'!X221),\"\",'TA Indicator Bank'!X221)","v":0},{"$f":"IF(ISBLANK('TA Indicator Bank'!Y221),\"\",'TA Indicator Bank'!Y221)","v":0},{"$f":"IF(ISBLANK('TA Indicator Bank'!Z221),\"\",'TA Indicator Bank'!Z221)","v":0},{"$f":"IF(ISBLANK('TA Indicator Bank'!AA221),\"\",'TA Indicator Bank'!AA221)","v":0},{"$f":"IF(ISBLANK('TA Indicator Bank'!AB221),\"\",'TA Indicator Bank'!AB221)","v":0},{"$f":"IF(ISBLANK('TA Indicator Bank'!AC221),\"\",'TA Indicator Bank'!AC221)","v":0},{"$f":"IF(ISBLANK('TA Indicator Bank'!AD221),\"\",'TA Indicator Bank'!AD221)","v":0},{"$f":"IF(ISBLANK('TA Indicator Bank'!AE221),\"\",'TA Indicator Bank'!AE221)","v":0},{"$f":"IF(ISBLANK('TA Indicator Bank'!AF221),\"\",'TA Indicator Bank'!AF221)","v":0},{"$f":"IF(ISBLANK('TA Indicator Bank'!AG221),\"\",'TA Indicator Bank'!AG221)","v":0},{"$f":"IF(ISBLANK('TA Indicator Bank'!AH221),\"\",'TA Indicator Bank'!AH221)","v":0},{"$f":"IF(ISBLANK('TA Indicator Bank'!AI221),\"\",'TA Indicator Bank'!AI221)","v":0},{"$f":"IF(ISBLANK('TA Indicator Bank'!AJ221),\"\",'TA Indicator Bank'!AJ221)","v":0},{"$f":"IF(ISBLANK('TA Indicator Bank'!AK221),\"\",'TA Indicator Bank'!AK221)","v":1},{"$f":"IF(ISBLANK('TA Indicator Bank'!AL221),\"\",'TA Indicator Bank'!AL221)","v":0},{"$f":"IF(ISBLANK('TA Indicator Bank'!AM221),\"\",'TA Indicator Bank'!AM221)","v":0},{"$f":"IF(ISBLANK('TA Indicator Bank'!AN221),\"\",'TA Indicator Bank'!AN221)","v":0},{"$f":"IF(ISBLANK('TA Indicator Bank'!AO221),\"\",'TA Indicator Bank'!AO221)","v":0},{"$f":"IF(ISBLANK('TA Indicator Bank'!AP221),\"\",'TA Indicator Bank'!AP221)","v":0},{"$f":"IF(ISBLANK('TA Indicator Bank'!AQ221),\"\",'TA Indicator Bank'!AQ221)","v":0},{"$f":"IF(ISBLANK('TA Indicator Bank'!AR221),\"\",'TA Indicator Bank'!AR221)","v":0},{"$f":"IF(ISBLANK('TA Indicator Bank'!AS221),\"\",'TA Indicator Bank'!AS221)","v":1},{"$f":"IF(ISBLANK('TA Indicator Bank'!AT221),\"\",'TA Indicator Bank'!AT221)","v":0},0,0,0,0,0,0,0,0,0,0,0,0,0,0,1,{"$f":"IF(AND(X225=1,X$410=1),1,0)","v":0},{"$f":"IF(AND(Y225=1,Y$410=1),1,0)","v":0},{"$f":"IF(AND(Z225=1,Z$410=1),1,0)","v":0},{"$f":"IF(AND(AA225=1,AA$410=1),1,0)","v":0},{"$f":"IF(AND(AB225=1,AB$410=1),1,0)","v":0},{"$f":"IF(AND(AC225=1,AC$410=1),1,0)","v":0},{"$f":"IF(AND(AD225=1,AD$410=1),1,0)","v":0},{"$f":"IF(AND(AE225=1,AE$410=1),1,0)","v":0},{"$f":"IF(AND(AF225=1,AF$410=1),1,0)","v":0},1,{"$f":"IF(AND(AG225=1,AG$410=1),1,0)","v":0},{"$f":"IF(AND(AH225=1,AH$410=1),1,0)","v":0},{"$f":"IF(AND(AI225=1,AI$410=1),1,0)","v":0},{"$f":"IF(AND(AJ225=1,AJ$410=1),1,0)","v":0},{"$f":"IF(AND(AK225=1,AK$410=1),1,0)","v":1},{"$f":"IF(AND(AL225=1,AL$410=1),1,0)","v":0},{"$f":"IF(AND(AM225=1,AM$410=1),1,0)","v":0},{"$f":"IF(AND(AN225=1,AN$410=1),1,0)","v":0},{"$f":"IF(AND(AO225=1,AO$410=1),1,0)","v":0},1,{"$f":"IF(AND(AP225=1,AP$410=1),1,0)","v":0},{"$f":"IF(AND(AQ225=1,AQ$410=1),1,0)","v":0},{"$f":"IF(AND(AR225=1,AR$410=1),1,0)","v":0},{"$f":"IF(AND(AS225=1,AS$410=1),1,0)","v":1},{"$f":"IF(AND(AT225=1,AT$410=1),1,0)","v":0},1,1,217,217,{"$f":"IFERROR(SMALL($CL$9:$CL$408,CK225),\"\")","v":217},{"$f":"IFERROR(INDEX($B$9:$I$408,$CM225,COLUMNS($CN$9:CN225)),\"\")","v":"TA217"},{"$f":"IFERROR(INDEX($B$9:$I$408,$CM225,COLUMNS($CN$9:CO225)),\"\")","v":"Fund performs well compared to market indices"},{"$f":"IFERROR(INDEX($B$9:$I$408,$CM225,COLUMNS($CN$9:CP225)),\"\")","v":"-"},{"$f":"IFERROR(INDEX($B$9:$I$408,$CM225,COLUMNS($CN$9:CQ225)),\"\")","v":"Outcome"},{"$f":"IFERROR(INDEX($B$9:$I$408,$CM225,COLUMNS($CN$9:CR225)),\"\")","v":"-"},{"$f":"IFERROR(INDEX($B$9:$I$408,$CM225,COLUMNS($CN$9:CS225)),\"\")","v":"-"},{"$f":"IFERROR(INDEX($B$9:$I$408,$CM225,COLUMNS($CN$9:CT225)),\"\")","v":"Increased or improved investment in climate-related projects/assets"},{"$f":"IFERROR(INDEX($B$9:$I$408,$CM225,COLUMNS($CN$9:CU225)),\"\")","v":"Number"}]
[null,{"$f":"IF(ISBLANK('TA Indicator Bank'!B222),\"\",'TA Indicator Bank'!B222)","v":"TA218"},{"$f":"IF(ISBLANK('TA Indicator Bank'!C222),\"\",'TA Indicator Bank'!C222)","v":"Amount of additional investment/finance available (due to the programme support)"},{"$f":"IF(ISBLANK('TA Indicator Bank'!D222),\"\",'TA Indicator Bank'!D222)","v":"-"},{"$f":"IF(ISBLANK('TA Indicator Bank'!E222),\"\",'TA Indicator Bank'!E222)","v":"Outcome"},{"$f":"IF(ISBLANK('TA Indicator Bank'!F222),\"\",'TA Indicator Bank'!F222)","v":"-"},{"$f":"IF(ISBLANK('TA Indicator Bank'!G222),\"\",'TA Indicator Bank'!G222)","v":"-"},{"$f":"IF(ISBLANK('TA Indicator Bank'!H222),\"\",'TA Indicator Bank'!H222)","v":"Increased or improved investment in climate-related projects/assets"},{"$f":"IF(ISBLANK('TA Indicator Bank'!I222),\"\",'TA Indicator Bank'!I222)","v":"Number"},{"$f":"IF(ISBLANK('TA Indicator Bank'!J222),\"\",'TA Indicator Bank'!J222)","v":0},{"$f":"IF(ISBLANK('TA Indicator Bank'!K222),\"\",'TA Indicator Bank'!K222)","v":0},{"$f":"IF(ISBLANK('TA Indicator Bank'!L222),\"\",'TA Indicator Bank'!L222)","v":0},{"$f":"IF(ISBLANK('TA Indicator Bank'!M222),\"\",'TA Indicator Bank'!M222)","v":0},{"$f":"IF(ISBLANK('TA Indicator Bank'!N222),\"\",'TA Indicator Bank'!N222)","v":0},{"$f":"IF(ISBLANK('TA Indicator Bank'!O222),\"\",'TA Indicator Bank'!O222)","v":0},{"$f":"IF(ISBLANK('TA Indicator Bank'!P222),\"\",'TA Indicator Bank'!P222)","v":0},{"$f":"IF(ISBLANK('TA Indicator Bank'!Q222),\"\",'TA Indicator Bank'!Q222)","v":0},{"$f":"IF(ISBLANK('TA Indicator Bank'!R222),\"\",'TA Indicator Bank'!R222)","v":0},{"$f":"IF(ISBLANK('TA Indicator Bank'!S222),\"\",'TA Indicator Bank'!S222)","v":0},{"$f":"IF(ISBLANK('TA Indicator Bank'!T222),\"\",'TA Indicator Bank'!T222)","v":0},{"$f":"IF(ISBLANK('TA Indicator Bank'!U222),\"\",'TA Indicator Bank'!U222)","v":0},{"$f":"IF(ISBLANK('TA Indicator Bank'!V222),\"\",'TA Indicator Bank'!V222)","v":0},{"$f":"IF(ISBLANK('TA Indicator Bank'!W222),\"\",'TA Indicator Bank'!W222)","v":0},{"$f":"IF(ISBLANK('TA Indicator Bank'!X222),\"\",'TA Indicator Bank'!X222)","v":0},{"$f":"IF(ISBLANK('TA Indicator Bank'!Y222),\"\",'TA Indicator Bank'!Y222)","v":0},{"$f":"IF(ISBLANK('TA Indicator Bank'!Z222),\"\",'TA Indicator Bank'!Z222)","v":0},{"$f":"IF(ISBLANK('TA Indicator Bank'!AA222),\"\",'TA Indicator Bank'!AA222)","v":0},{"$f":"IF(ISBLANK('TA Indicator Bank'!AB222),\"\",'TA Indicator Bank'!AB222)","v":0},{"$f":"IF(ISBLANK('TA Indicator Bank'!AC222),\"\",'TA Indicator Bank'!AC222)","v":0},{"$f":"IF(ISBLANK('TA Indicator Bank'!AD222),\"\",'TA Indicator Bank'!AD222)","v":0},{"$f":"IF(ISBLANK('TA Indicator Bank'!AE222),\"\",'TA Indicator Bank'!AE222)","v":0},{"$f":"IF(ISBLANK('TA Indicator Bank'!AF222),\"\",'TA Indicator Bank'!AF222)","v":0},{"$f":"IF(ISBLANK('TA Indicator Bank'!AG222),\"\",'TA Indicator Bank'!AG222)","v":0},{"$f":"IF(ISBLANK('TA Indicator Bank'!AH222),\"\",'TA Indicator Bank'!AH222)","v":0},{"$f":"IF(ISBLANK('TA Indicator Bank'!AI222),\"\",'TA Indicator Bank'!AI222)","v":0},{"$f":"IF(ISBLANK('TA Indicator Bank'!AJ222),\"\",'TA Indicator Bank'!AJ222)","v":0},{"$f":"IF(ISBLANK('TA Indicator Bank'!AK222),\"\",'TA Indicator Bank'!AK222)","v":1},{"$f":"IF(ISBLANK('TA Indicator Bank'!AL222),\"\",'TA Indicator Bank'!AL222)","v":0},{"$f":"IF(ISBLANK('TA Indicator Bank'!AM222),\"\",'TA Indicator Bank'!AM222)","v":0},{"$f":"IF(ISBLANK('TA Indicator Bank'!AN222),\"\",'TA Indicator Bank'!AN222)","v":0},{"$f":"IF(ISBLANK('TA Indicator Bank'!AO222),\"\",'TA Indicator Bank'!AO222)","v":0},{"$f":"IF(ISBLANK('TA Indicator Bank'!AP222),\"\",'TA Indicator Bank'!AP222)","v":0},{"$f":"IF(ISBLANK('TA Indicator Bank'!AQ222),\"\",'TA Indicator Bank'!AQ222)","v":0},{"$f":"IF(ISBLANK('TA Indicator Bank'!AR222),\"\",'TA Indicator Bank'!AR222)","v":0},{"$f":"IF(ISBLANK('TA Indicator Bank'!AS222),\"\",'TA Indicator Bank'!AS222)","v":1},{"$f":"IF(ISBLANK('TA Indicator Bank'!AT222),\"\",'TA Indicator Bank'!AT222)","v":0},0,0,0,0,0,0,0,0,0,0,0,0,0,0,1,{"$f":"IF(AND(X226=1,X$410=1),1,0)","v":0},{"$f":"IF(AND(Y226=1,Y$410=1),1,0)","v":0},{"$f":"IF(AND(Z226=1,Z$410=1),1,0)","v":0},{"$f":"IF(AND(AA226=1,AA$410=1),1,0)","v":0},{"$f":"IF(AND(AB226=1,AB$410=1),1,0)","v":0},{"$f":"IF(AND(AC226=1,AC$410=1),1,0)","v":0},{"$f":"IF(AND(AD226=1,AD$410=1),1,0)","v":0},{"$f":"IF(AND(AE226=1,AE$410=1),1,0)","v":0},{"$f":"IF(AND(AF226=1,AF$410=1),1,0)","v":0},1,{"$f":"IF(AND(AG226=1,AG$410=1),1,0)","v":0},{"$f":"IF(AND(AH226=1,AH$410=1),1,0)","v":0},{"$f":"IF(AND(AI226=1,AI$410=1),1,0)","v":0},{"$f":"IF(AND(AJ226=1,AJ$410=1),1,0)","v":0},{"$f":"IF(AND(AK226=1,AK$410=1),1,0)","v":1},{"$f":"IF(AND(AL226=1,AL$410=1),1,0)","v":0},{"$f":"IF(AND(AM226=1,AM$410=1),1,0)","v":0},{"$f":"IF(AND(AN226=1,AN$410=1),1,0)","v":0},{"$f":"IF(AND(AO226=1,AO$410=1),1,0)","v":0},1,{"$f":"IF(AND(AP226=1,AP$410=1),1,0)","v":0},{"$f":"IF(AND(AQ226=1,AQ$410=1),1,0)","v":0},{"$f":"IF(AND(AR226=1,AR$410=1),1,0)","v":0},{"$f":"IF(AND(AS226=1,AS$410=1),1,0)","v":1},{"$f":"IF(AND(AT226=1,AT$410=1),1,0)","v":0},1,1,218,218,{"$f":"IFERROR(SMALL($CL$9:$CL$408,CK226),\"\")","v":218},{"$f":"IFERROR(INDEX($B$9:$I$408,$CM226,COLUMNS($CN$9:CN226)),\"\")","v":"TA218"},{"$f":"IFERROR(INDEX($B$9:$I$408,$CM226,COLUMNS($CN$9:CO226)),\"\")","v":"Amount of additional investment/finance available (due to the programme support)"},{"$f":"IFERROR(INDEX($B$9:$I$408,$CM226,COLUMNS($CN$9:CP226)),\"\")","v":"-"},{"$f":"IFERROR(INDEX($B$9:$I$408,$CM226,COLUMNS($CN$9:CQ226)),\"\")","v":"Outcome"},{"$f":"IFERROR(INDEX($B$9:$I$408,$CM226,COLUMNS($CN$9:CR226)),\"\")","v":"-"},{"$f":"IFERROR(INDEX($B$9:$I$408,$CM226,COLUMNS($CN$9:CS226)),\"\")","v":"-"},{"$f":"IFERROR(INDEX($B$9:$I$408,$CM226,COLUMNS($CN$9:CT226)),\"\")","v":"Increased or improved investment in climate-related projects/assets"},{"$f":"IFERROR(INDEX($B$9:$I$408,$CM226,COLUMNS($CN$9:CU226)),\"\")","v":"Number"}]
[null,{"$f":"IF(ISBLANK('TA Indicator Bank'!B223),\"\",'TA Indicator Bank'!B223)","v":"TA219"},{"$f":"IF(ISBLANK('TA Indicator Bank'!C223),\"\",'TA Indicator Bank'!C223)","v":"Number of projects in operation"},{"$f":"IF(ISBLANK('TA Indicator Bank'!D223),\"\",'TA Indicator Bank'!D223)","v":"-"},{"$f":"IF(ISBLANK('TA Indicator Bank'!E223),\"\",'TA Indicator Bank'!E223)","v":"Outcome"},{"$f":"IF(ISBLANK('TA Indicator Bank'!F223),\"\",'TA Indicator Bank'!F223)","v":"-"},{"$f":"IF(ISBLANK('TA Indicator Bank'!G223),\"\",'TA Indicator Bank'!G223)","v":"-"},{"$f":"IF(ISBLANK('TA Indicator Bank'!H223),\"\",'TA Indicator Bank'!H223)","v":"Increased or improved investment in climate-related projects/assets"},{"$f":"IF(ISBLANK('TA Indicator Bank'!I223),\"\",'TA Indicator Bank'!I223)","v":"Number"},{"$f":"IF(ISBLANK('TA Indicator Bank'!J223),\"\",'TA Indicator Bank'!J223)","v":0},{"$f":"IF(ISBLANK('TA Indicator Bank'!K223),\"\",'TA Indicator Bank'!K223)","v":0},{"$f":"IF(ISBLANK('TA Indicator Bank'!L223),\"\",'TA Indicator Bank'!L223)","v":0},{"$f":"IF(ISBLANK('TA Indicator Bank'!M223),\"\",'TA Indicator Bank'!M223)","v":0},{"$f":"IF(ISBLANK('TA Indicator Bank'!N223),\"\",'TA Indicator Bank'!N223)","v":0},{"$f":"IF(ISBLANK('TA Indicator Bank'!O223),\"\",'TA Indicator Bank'!O223)","v":0},{"$f":"IF(ISBLANK('TA Indicator Bank'!P223),\"\",'TA Indicator Bank'!P223)","v":0},{"$f":"IF(ISBLANK('TA Indicator Bank'!Q223),\"\",'TA Indicator Bank'!Q223)","v":0},{"$f":"IF(ISBLANK('TA Indicator Bank'!R223),\"\",'TA Indicator Bank'!R223)","v":0},{"$f":"IF(ISBLANK('TA Indicator Bank'!S223),\"\",'TA Indicator Bank'!S223)","v":0},{"$f":"IF(ISBLANK('TA Indicator Bank'!T223),\"\",'TA Indicator Bank'!T223)","v":0},{"$f":"IF(ISBLANK('TA Indicator Bank'!U223),\"\",'TA Indicator Bank'!U223)","v":0},{"$f":"IF(ISBLANK('TA Indicator Bank'!V223),\"\",'TA Indicator Bank'!V223)","v":0},{"$f":"IF(ISBLANK('TA Indicator Bank'!W223),\"\",'TA Indicator Bank'!W223)","v":0},{"$f":"IF(ISBLANK('TA Indicator Bank'!X223),\"\",'TA Indicator Bank'!X223)","v":0},{"$f":"IF(ISBLANK('TA Indicator Bank'!Y223),\"\",'TA Indicator Bank'!Y223)","v":0},{"$f":"IF(ISBLANK('TA Indicator Bank'!Z223),\"\",'TA Indicator Bank'!Z223)","v":0},{"$f":"IF(ISBLANK('TA Indicator Bank'!AA223),\"\",'TA Indicator Bank'!AA223)","v":0},{"$f":"IF(ISBLANK('TA Indicator Bank'!AB223),\"\",'TA Indicator Bank'!AB223)","v":0},{"$f":"IF(ISBLANK('TA Indicator Bank'!AC223),\"\",'TA Indicator Bank'!AC223)","v":0},{"$f":"IF(ISBLANK('TA Indicator Bank'!AD223),\"\",'TA Indicator Bank'!AD223)","v":0},{"$f":"IF(ISBLANK('TA Indicator Bank'!AE223),\"\",'TA Indicator Bank'!AE223)","v":0},{"$f":"IF(ISBLANK('TA Indicator Bank'!AF223),\"\",'TA Indicator Bank'!AF223)","v":0},{"$f":"IF(ISBLANK('TA Indicator Bank'!AG223),\"\",'TA Indicator Bank'!AG223)","v":0},{"$f":"IF(ISBLANK('TA Indicator Bank'!AH223),\"\",'TA Indicator Bank'!AH223)","v":0},{"$f":"IF(ISBLANK('TA Indicator Bank'!AI223),\"\",'TA Indicator Bank'!AI223)","v":0},{"$f":"IF(ISBLANK('TA Indicator Bank'!AJ223),\"\",'TA Indicator Bank'!AJ223)","v":0},{"$f":"IF(ISBLANK('TA Indicator Bank'!AK223),\"\",'TA Indicator Bank'!AK223)","v":1},{"$f":"IF(ISBLANK('TA Indicator Bank'!AL223),\"\",'TA Indicator Bank'!AL223)","v":0},{"$f":"IF(ISBLANK('TA Indicator Bank'!AM223),\"\",'TA Indicator Bank'!AM223)","v":0},{"$f":"IF(ISBLANK('TA Indicator Bank'!AN223),\"\",'TA Indicator Bank'!AN223)","v":0},{"$f":"IF(ISBLANK('TA Indicator Bank'!AO223),\"\",'TA Indicator Bank'!AO223)","v":0},{"$f":"IF(ISBLANK('TA Indicator Bank'!AP223),\"\",'TA Indicator Bank'!AP223)","v":0},{"$f":"IF(ISBLANK('TA Indicator Bank'!AQ223),\"\",'TA Indicator Bank'!AQ223)","v":0},{"$f":"IF(ISBLANK('TA Indicator Bank'!AR223),\"\",'TA Indicator Bank'!AR223)","v":0},{"$f":"IF(ISBLANK('TA Indicator Bank'!AS223),\"\",'TA Indicator Bank'!AS223)","v":1},{"$f":"IF(ISBLANK('TA Indicator Bank'!AT223),\"\",'TA Indicator Bank'!AT223)","v":0},0,0,0,0,0,0,0,0,0,0,0,0,0,0,1,{"$f":"IF(AND(X227=1,X$410=1),1,0)","v":0},{"$f":"IF(AND(Y227=1,Y$410=1),1,0)","v":0},{"$f":"IF(AND(Z227=1,Z$410=1),1,0)","v":0},{"$f":"IF(AND(AA227=1,AA$410=1),1,0)","v":0},{"$f":"IF(AND(AB227=1,AB$410=1),1,0)","v":0},{"$f":"IF(AND(AC227=1,AC$410=1),1,0)","v":0},{"$f":"IF(AND(AD227=1,AD$410=1),1,0)","v":0},{"$f":"IF(AND(AE227=1,AE$410=1),1,0)","v":0},{"$f":"IF(AND(AF227=1,AF$410=1),1,0)","v":0},1,{"$f":"IF(AND(AG227=1,AG$410=1),1,0)","v":0},{"$f":"IF(AND(AH227=1,AH$410=1),1,0)","v":0},{"$f":"IF(AND(AI227=1,AI$410=1),1,0)","v":0},{"$f":"IF(AND(AJ227=1,AJ$410=1),1,0)","v":0},{"$f":"IF(AND(AK227=1,AK$410=1),1,0)","v":1},{"$f":"IF(AND(AL227=1,AL$410=1),1,0)","v":0},{"$f":"IF(AND(AM227=1,AM$410=1),1,0)","v":0},{"$f":"IF(AND(AN227=1,AN$410=1),1,0)","v":0},{"$f":"IF(AND(AO227=1,AO$410=1),1,0)","v":0},1,{"$f":"IF(AND(AP227=1,AP$410=1),1,0)","v":0},{"$f":"IF(AND(AQ227=1,AQ$410=1),1,0)","v":0},{"$f":"IF(AND(AR227=1,AR$410=1),1,0)","v":0},{"$f":"IF(AND(AS227=1,AS$410=1),1,0)","v":1},{"$f":"IF(AND(AT227=1,AT$410=1),1,0)","v":0},1,1,219,219,{"$f":"IFERROR(SMALL($CL$9:$CL$408,CK227),\"\")","v":219},{"$f":"IFERROR(INDEX($B$9:$I$408,$CM227,COLUMNS($CN$9:CN227)),\"\")","v":"TA219"},{"$f":"IFERROR(INDEX($B$9:$I$408,$CM227,COLUMNS($CN$9:CO227)),\"\")","v":"Number of projects in operation"},{"$f":"IFERROR(INDEX($B$9:$I$408,$CM227,COLUMNS($CN$9:CP227)),\"\")","v":"-"},{"$f":"IFERROR(INDEX($B$9:$I$408,$CM227,COLUMNS($CN$9:CQ227)),\"\")","v":"Outcome"},{"$f":"IFERROR(INDEX($B$9:$I$408,$CM227,COLUMNS($CN$9:CR227)),\"\")","v":"-"},{"$f":"IFERROR(INDEX($B$9:$I$408,$CM227,COLUMNS($CN$9:CS227)),\"\")","v":"-"},{"$f":"IFERROR(INDEX($B$9:$I$408,$CM227,COLUMNS($CN$9:CT227)),\"\")","v":"Increased or improved investment in climate-related projects/assets"},{"$f":"IFERROR(INDEX($B$9:$I$408,$CM227,COLUMNS($CN$9:CU227)),\"\")","v":"Number"}]
[null,{"$f":"IF(ISBLANK('TA Indicator Bank'!B224),\"\",'TA Indicator Bank'!B224)","v":"TA220"},{"$f":"IF(ISBLANK('TA Indicator Bank'!C224),\"\",'TA Indicator Bank'!C224)","v":"Number of projects developed/in operation"},{"$f":"IF(ISBLANK('TA Indicator Bank'!D224),\"\",'TA Indicator Bank'!D224)","v":"-"},{"$f":"IF(ISBLANK('TA Indicator Bank'!E224),\"\",'TA Indicator Bank'!E224)","v":"Outcome"},{"$f":"IF(ISBLANK('TA Indicator Bank'!F224),\"\",'TA Indicator Bank'!F224)","v":"-"},{"$f":"IF(ISBLANK('TA Indicator Bank'!G224),\"\",'TA Indicator Bank'!G224)","v":"-"},{"$f":"IF(ISBLANK('TA Indicator Bank'!H224),\"\",'TA Indicator Bank'!H224)","v":"Increased or improved investment in climate-related projects/assets"},{"$f":"IF(ISBLANK('TA Indicator Bank'!I224),\"\",'TA Indicator Bank'!I224)","v":"Number"},{"$f":"IF(ISBLANK('TA Indicator Bank'!J224),\"\",'TA Indicator Bank'!J224)","v":0},{"$f":"IF(ISBLANK('TA Indicator Bank'!K224),\"\",'TA Indicator Bank'!K224)","v":0},{"$f":"IF(ISBLANK('TA Indicator Bank'!L224),\"\",'TA Indicator Bank'!L224)","v":0},{"$f":"IF(ISBLANK('TA Indicator Bank'!M224),\"\",'TA Indicator Bank'!M224)","v":0},{"$f":"IF(ISBLANK('TA Indicator Bank'!N224),\"\",'TA Indicator Bank'!N224)","v":0},{"$f":"IF(ISBLANK('TA Indicator Bank'!O224),\"\",'TA Indicator Bank'!O224)","v":0},{"$f":"IF(ISBLANK('TA Indicator Bank'!P224),\"\",'TA Indicator Bank'!P224)","v":0},{"$f":"IF(ISBLANK('TA Indicator Bank'!Q224),\"\",'TA Indicator Bank'!Q224)","v":0},{"$f":"IF(ISBLANK('TA Indicator Bank'!R224),\"\",'TA Indicator Bank'!R224)","v":0},{"$f":"IF(ISBLANK('TA Indicator Bank'!S224),\"\",'TA Indicator Bank'!S224)","v":0},{"$f":"IF(ISBLANK('TA Indicator Bank'!T224),\"\",'TA Indicator Bank'!T224)","v":0},{"$f":"IF(ISBLANK('TA Indicator Bank'!U224),\"\",'TA Indicator Bank'!U224)","v":0},{"$f":"IF(ISBLANK('TA Indicator Bank'!V224),\"\",'TA Indicator Bank'!V224)","v":0},{"$f":"IF(ISBLANK('TA Indicator Bank'!W224),\"\",'TA Indicator Bank'!W224)","v":0},{"$f":"IF(ISBLANK('TA Indicator Bank'!X224),\"\",'TA Indicator Bank'!X224)","v":0},{"$f":"IF(ISBLANK('TA Indicator Bank'!Y224),\"\",'TA Indicator Bank'!Y224)","v":0},{"$f":"IF(ISBLANK('TA Indicator Bank'!Z224),\"\",'TA Indicator Bank'!Z224)","v":0},{"$f":"IF(ISBLANK('TA Indicator Bank'!AA224),\"\",'TA Indicator Bank'!AA224)","v":0},{"$f":"IF(ISBLANK('TA Indicator Bank'!AB224),\"\",'TA Indicator Bank'!AB224)","v":0},{"$f":"IF(ISBLANK('TA Indicator Bank'!AC224),\"\",'TA Indicator Bank'!AC224)","v":0},{"$f":"IF(ISBLANK('TA Indicator Bank'!AD224),\"\",'TA Indicator Bank'!AD224)","v":0},{"$f":"IF(ISBLANK('TA Indicator Bank'!AE224),\"\",'TA Indicator Bank'!AE224)","v":0},{"$f":"IF(ISBLANK('TA Indicator Bank'!AF224),\"\",'TA Indicator Bank'!AF224)","v":0},{"$f":"IF(ISBLANK('TA Indicator Bank'!AG224),\"\",'TA Indicator Bank'!AG224)","v":0},{"$f":"IF(ISBLANK('TA Indicator Bank'!AH224),\"\",'TA Indicator Bank'!AH224)","v":0},{"$f":"IF(ISBLANK('TA Indicator Bank'!AI224),\"\",'TA Indicator Bank'!AI224)","v":0},{"$f":"IF(ISBLANK('TA Indicator Bank'!AJ224),\"\",'TA Indicator Bank'!AJ224)","v":0},{"$f":"IF(ISBLANK('TA Indicator Bank'!AK224),\"\",'TA Indicator Bank'!AK224)","v":1},{"$f":"IF(ISBLANK('TA Indicator Bank'!AL224),\"\",'TA Indicator Bank'!AL224)","v":0},{"$f":"IF(ISBLANK('TA Indicator Bank'!AM224),\"\",'TA Indicator Bank'!AM224)","v":0},{"$f":"IF(ISBLANK('TA Indicator Bank'!AN224),\"\",'TA Indicator Bank'!AN224)","v":0},{"$f":"IF(ISBLANK('TA Indicator Bank'!AO224),\"\",'TA Indicator Bank'!AO224)","v":0},{"$f":"IF(ISBLANK('TA Indicator Bank'!AP224),\"\",'TA Indicator Bank'!AP224)","v":0},{"$f":"IF(ISBLANK('TA Indicator Bank'!AQ224),\"\",'TA Indicator Bank'!AQ224)","v":0},{"$f":"IF(ISBLANK('TA Indicator Bank'!AR224),\"\",'TA Indicator Bank'!AR224)","v":0},{"$f":"IF(ISBLANK('TA Indicator Bank'!AS224),\"\",'TA Indicator Bank'!AS224)","v":1},{"$f":"IF(ISBLANK('TA Indicator Bank'!AT224),\"\",'TA Indicator Bank'!AT224)","v":0},0,0,0,0,0,0,0,0,0,0,0,0,0,0,1,{"$f":"IF(AND(X228=1,X$410=1),1,0)","v":0},{"$f":"IF(AND(Y228=1,Y$410=1),1,0)","v":0},{"$f":"IF(AND(Z228=1,Z$410=1),1,0)","v":0},{"$f":"IF(AND(AA228=1,AA$410=1),1,0)","v":0},{"$f":"IF(AND(AB228=1,AB$410=1),1,0)","v":0},{"$f":"IF(AND(AC228=1,AC$410=1),1,0)","v":0},{"$f":"IF(AND(AD228=1,AD$410=1),1,0)","v":0},0,0,1,{"$f":"IF(AND(AG228=1,AG$410=1),1,0)","v":0},{"$f":"IF(AND(AH228=1,AH$410=1),1,0)","v":0},{"$f":"IF(AND(AI228=1,AI$410=1),1,0)","v":0},{"$f":"IF(AND(AJ228=1,AJ$410=1),1,0)","v":0},{"$f":"IF(AND(AK228=1,AK$410=1),1,0)","v":1},{"$f":"IF(AND(AL228=1,AL$410=1),1,0)","v":0},{"$f":"IF(AND(AM228=1,AM$410=1),1,0)","v":0},0,0,1,{"$f":"IF(AND(AP228=1,AP$410=1),1,0)","v":0},{"$f":"IF(AND(AQ228=1,AQ$410=1),1,0)","v":0},{"$f":"IF(AND(AR228=1,AR$410=1),1,0)","v":0},{"$f":"IF(AND(AS228=1,AS$410=1),1,0)","v":1},{"$f":"IF(AND(AT228=1,AT$410=1),1,0)","v":0},1,1,220,220,{"$f":"IFERROR(SMALL($CL$9:$CL$408,CK228),\"\")","v":220},{"$f":"IFERROR(INDEX($B$9:$I$408,$CM228,COLUMNS($CN$9:CN228)),\"\")","v":"TA220"},{"$f":"IFERROR(INDEX($B$9:$I$408,$CM228,COLUMNS($CN$9:CO228)),\"\")","v":"Number of projects developed/in operation"},{"$f":"IFERROR(INDEX($B$9:$I$408,$CM228,COLUMNS($CN$9:CP228)),\"\")","v":"-"},{"$f":"IFERROR(INDEX($B$9:$I$408,$CM228,COLUMNS($CN$9:CQ228)),\"\")","v":"Outcome"},{"$f":"IFERROR(INDEX($B$9:$I$408,$CM228,COLUMNS($CN$9:CR228)),\"\")","v":"-"},{"$f":"IFERROR(INDEX($B$9:$I$408,$CM228,COLUMNS($CN$9:CS228)),\"\")","v":"-"},{"$f":"IFERROR(INDEX($B$9:$I$408,$CM228,COLUMNS($CN$9:CT228)),\"\")","v":"Increased or improved investment in climate-related projects/assets"},{"$f":"IFERROR(INDEX($B$9:$I$408,$CM228,COLUMNS($CN$9:CU228)),\"\")","v":"Number"}]
[null,{"$f":"IF(ISBLANK('TA Indicator Bank'!B225),\"\",'TA Indicator Bank'!B225)","v":"TA221"},{"$f":"IF(ISBLANK('TA Indicator Bank'!C225),\"\",'TA Indicator Bank'!C225)","v":"Number of projects that receive additional investment"},{"$f":"IF(ISBLANK('TA Indicator Bank'!D225),\"\",'TA Indicator Bank'!D225)","v":"-"},{"$f":"IF(ISBLANK('TA Indicator Bank'!E225),\"\",'TA Indicator Bank'!E225)","v":"Outcome"},{"$f":"IF(ISBLANK('TA Indicator Bank'!F225),\"\",'TA Indicator Bank'!F225)","v":"-"},{"$f":"IF(ISBLANK('TA Indicator Bank'!G225),\"\",'TA Indicator Bank'!G225)","v":"-"},{"$f":"IF(ISBLANK('TA Indicator Bank'!H225),\"\",'TA Indicator Bank'!H225)","v":"Increased or improved investment in climate-related projects/assets"},{"$f":"IF(ISBLANK('TA Indicator Bank'!I225),\"\",'TA Indicator Bank'!I225)","v":"Number"},{"$f":"IF(ISBLANK('TA Indicator Bank'!J225),\"\",'TA Indicator Bank'!J225)","v":0},{"$f":"IF(ISBLANK('TA Indicator Bank'!K225),\"\",'TA Indicator Bank'!K225)","v":0},{"$f":"IF(ISBLANK('TA Indicator Bank'!L225),\"\",'TA Indicator Bank'!L225)","v":0},{"$f":"IF(ISBLANK('TA Indicator Bank'!M225),\"\",'TA Indicator Bank'!M225)","v":0},{"$f":"IF(ISBLANK('TA Indicator Bank'!N225),\"\",'TA Indicator Bank'!N225)","v":0},{"$f":"IF(ISBLANK('TA Indicator Bank'!O225),\"\",'TA Indicator Bank'!O225)","v":0},{"$f":"IF(ISBLANK('TA Indicator Bank'!P225),\"\",'TA Indicator Bank'!P225)","v":0},{"$f":"IF(ISBLANK('TA Indicator Bank'!Q225),\"\",'TA Indicator Bank'!Q225)","v":0},{"$f":"IF(ISBLANK('TA Indicator Bank'!R225),\"\",'TA Indicator Bank'!R225)","v":0},{"$f":"IF(ISBLANK('TA Indicator Bank'!S225),\"\",'TA Indicator Bank'!S225)","v":0},{"$f":"IF(ISBLANK('TA Indicator Bank'!T225),\"\",'TA Indicator Bank'!T225)","v":0},{"$f":"IF(ISBLANK('TA Indicator Bank'!U225),\"\",'TA Indicator Bank'!U225)","v":0},{"$f":"IF(ISBLANK('TA Indicator Bank'!V225),\"\",'TA Indicator Bank'!V225)","v":0},{"$f":"IF(ISBLANK('TA Indicator Bank'!W225),\"\",'TA Indicator Bank'!W225)","v":0},{"$f":"IF(ISBLANK('TA Indicator Bank'!X225),\"\",'TA Indicator Bank'!X225)","v":0},{"$f":"IF(ISBLANK('TA Indicator Bank'!Y225),\"\",'TA Indicator Bank'!Y225)","v":0},{"$f":"IF(ISBLANK('TA Indicator Bank'!Z225),\"\",'TA Indicator Bank'!Z225)","v":0},{"$f":"IF(ISBLANK('TA Indicator Bank'!AA225),\"\",'TA Indicator Bank'!AA225)","v":0},{"$f":"IF(ISBLANK('TA Indicator Bank'!AB225),\"\",'TA Indicator Bank'!AB225)","v":0},{"$f":"IF(ISBLANK('TA Indicator Bank'!AC225),\"\",'TA Indicator Bank'!AC225)","v":0},{"$f":"IF(ISBLANK('TA Indicator Bank'!AD225),\"\",'TA Indicator Bank'!AD225)","v":0},{"$f":"IF(ISBLANK('TA Indicator Bank'!AE225),\"\",'TA Indicator Bank'!AE225)","v":0},{"$f":"IF(ISBLANK('TA Indicator Bank'!AF225),\"\",'TA Indicator Bank'!AF225)","v":0},{"$f":"IF(ISBLANK('TA Indicator Bank'!AG225),\"\",'TA Indicator Bank'!AG225)","v":0},{"$f":"IF(ISBLANK('TA Indicator Bank'!AH225),\"\",'TA Indicator Bank'!AH225)","v":0},{"$f":"IF(ISBLANK('TA Indicator Bank'!AI225),\"\",'TA Indicator Bank'!AI225)","v":0},{"$f":"IF(ISBLANK('TA Indicator Bank'!AJ225),\"\",'TA Indicator Bank'!AJ225)","v":0},{"$f":"IF(ISBLANK('TA Indicator Bank'!AK225),\"\",'TA Indicator Bank'!AK225)","v":1},{"$f":"IF(ISBLANK('TA Indicator Bank'!AL225),\"\",'TA Indicator Bank'!AL225)","v":0},{"$f":"IF(ISBLANK('TA Indicator Bank'!AM225),\"\",'TA Indicator Bank'!AM225)","v":0},{"$f":"IF(ISBLANK('TA Indicator Bank'!AN225),\"\",'TA Indicator Bank'!AN225)","v":0},{"$f":"IF(ISBLANK('TA Indicator Bank'!AO225),\"\",'TA Indicator Bank'!AO225)","v":0},{"$f":"IF(ISBLANK('TA Indicator Bank'!AP225),\"\",'TA Indicator Bank'!AP225)","v":0},{"$f":"IF(ISBLANK('TA Indicator Bank'!AQ225),\"\",'TA Indicator Bank'!AQ225)","v":0},{"$f":"IF(ISBLANK('TA Indicator Bank'!AR225),\"\",'TA Indicator Bank'!AR225)","v":0},{"$f":"IF(ISBLANK('TA Indicator Bank'!AS225),\"\",'TA Indicator Bank'!AS225)","v":1},{"$f":"IF(ISBLANK('TA Indicator Bank'!AT225),\"\",'TA Indicator Bank'!AT225)","v":0},0,0,0,0,0,0,0,0,0,0,0,0,0,0,1,0,0,0,0,0,0,0,0,0,1,0,0,0,0,1,0,0,0,0,1,{"$f":"IF(AND(AP229=1,AP$410=1),1,0)","v":0},{"$f":"IF(AND(AQ229=1,AQ$410=1),1,0)","v":0},{"$f":"IF(AND(AR229=1,AR$410=1),1,0)","v":0},{"$f":"IF(AND(AS229=1,AS$410=1),1,0)","v":1},{"$f":"IF(AND(AT229=1,AT$410=1),1,0)","v":0},1,1,221,221,{"$f":"IFERROR(SMALL($CL$9:$CL$408,CK229),\"\")","v":221},{"$f":"IFERROR(INDEX($B$9:$I$408,$CM229,COLUMNS($CN$9:CN229)),\"\")","v":"TA221"},{"$f":"IFERROR(INDEX($B$9:$I$408,$CM229,COLUMNS($CN$9:CO229)),\"\")","v":"Number of projects that receive additional investment"},{"$f":"IFERROR(INDEX($B$9:$I$408,$CM229,COLUMNS($CN$9:CP229)),\"\")","v":"-"},{"$f":"IFERROR(INDEX($B$9:$I$408,$CM229,COLUMNS($CN$9:CQ229)),\"\")","v":"Outcome"},{"$f":"IFERROR(INDEX($B$9:$I$408,$CM229,COLUMNS($CN$9:CR229)),\"\")","v":"-"},{"$f":"IFERROR(INDEX($B$9:$I$408,$CM229,COLUMNS($CN$9:CS229)),\"\")","v":"-"},{"$f":"IFERROR(INDEX($B$9:$I$408,$CM229,COLUMNS($CN$9:CT229)),\"\")","v":"Increased or improved investment in climate-related projects/assets"},{"$f":"IFERROR(INDEX($B$9:$I$408,$CM229,COLUMNS($CN$9:CU229)),\"\")","v":"Number"}]
[null,{"$f":"IF(ISBLANK('TA Indicator Bank'!B226),\"\",'TA Indicator Bank'!B226)","v":"TA222"},{"$f":"IF(ISBLANK('TA Indicator Bank'!C226),\"\",'TA Indicator Bank'!C226)","v":"Number of direct jobs created as result of support to investment"},{"$f":"IF(ISBLANK('TA Indicator Bank'!D226),\"\",'TA Indicator Bank'!D226)","v":"-"},{"$f":"IF(ISBLANK('TA Indicator Bank'!E226),\"\",'TA Indicator Bank'!E226)","v":"Outcome"},{"$f":"IF(ISBLANK('TA Indicator Bank'!F226),\"\",'TA Indicator Bank'!F226)","v":"-"},{"$f":"IF(ISBLANK('TA Indicator Bank'!G226),\"\",'TA Indicator Bank'!G226)","v":"-"},{"$f":"IF(ISBLANK('TA Indicator Bank'!H226),\"\",'TA Indicator Bank'!H226)","v":"Increased or improved investment in climate-related projects/assets"},{"$f":"IF(ISBLANK('TA Indicator Bank'!I226),\"\",'TA Indicator Bank'!I226)","v":"Number"},{"$f":"IF(ISBLANK('TA Indicator Bank'!J226),\"\",'TA Indicator Bank'!J226)","v":0},{"$f":"IF(ISBLANK('TA Indicator Bank'!K226),\"\",'TA Indicator Bank'!K226)","v":0},{"$f":"IF(ISBLANK('TA Indicator Bank'!L226),\"\",'TA Indicator Bank'!L226)","v":0},{"$f":"IF(ISBLANK('TA Indicator Bank'!M226),\"\",'TA Indicator Bank'!M226)","v":0},{"$f":"IF(ISBLANK('TA Indicator Bank'!N226),\"\",'TA Indicator Bank'!N226)","v":0},{"$f":"IF(ISBLANK('TA Indicator Bank'!O226),\"\",'TA Indicator Bank'!O226)","v":0},{"$f":"IF(ISBLANK('TA Indicator Bank'!P226),\"\",'TA Indicator Bank'!P226)","v":0},{"$f":"IF(ISBLANK('TA Indicator Bank'!Q226),\"\",'TA Indicator Bank'!Q226)","v":0},{"$f":"IF(ISBLANK('TA Indicator Bank'!R226),\"\",'TA Indicator Bank'!R226)","v":0},{"$f":"IF(ISBLANK('TA Indicator Bank'!S226),\"\",'TA Indicator Bank'!S226)","v":0},{"$f":"IF(ISBLANK('TA Indicator Bank'!T226),\"\",'TA Indicator Bank'!T226)","v":0},{"$f":"IF(ISBLANK('TA Indicator Bank'!U226),\"\",'TA Indicator Bank'!U226)","v":0},{"$f":"IF(ISBLANK('TA Indicator Bank'!V226),\"\",'TA Indicator Bank'!V226)","v":0},{"$f":"IF(ISBLANK('TA Indicator Bank'!W226),\"\",'TA Indicator Bank'!W226)","v":0},{"$f":"IF(ISBLANK('TA Indicator Bank'!X226),\"\",'TA Indicator Bank'!X226)","v":0},{"$f":"IF(ISBLANK('TA Indicator Bank'!Y226),\"\",'TA Indicator Bank'!Y226)","v":0},{"$f":"IF(ISBLANK('TA Indicator Bank'!Z226),\"\",'TA Indicator Bank'!Z226)","v":0},{"$f":"IF(ISBLANK('TA Indicator Bank'!AA226),\"\",'TA Indicator Bank'!AA226)","v":0},{"$f":"IF(ISBLANK('TA Indicator Bank'!AB226),\"\",'TA Indicator Bank'!AB226)","v":0},{"$f":"IF(ISBLANK('TA Indicator Bank'!AC226),\"\",'TA Indicator Bank'!AC226)","v":0},{"$f":"IF(ISBLANK('TA Indicator Bank'!AD226),\"\",'TA Indicator Bank'!AD226)","v":0},{"$f":"IF(ISBLANK('TA Indicator Bank'!AE226),\"\",'TA Indicator Bank'!AE226)","v":0},{"$f":"IF(ISBLANK('TA Indicator Bank'!AF226),\"\",'TA Indicator Bank'!AF226)","v":0},{"$f":"IF(ISBLANK('TA Indicator Bank'!AG226),\"\",'TA Indicator Bank'!AG226)","v":0},{"$f":"IF(ISBLANK('TA Indicator Bank'!AH226),\"\",'TA Indicator Bank'!AH226)","v":0},{"$f":"IF(ISBLANK('TA Indicator Bank'!AI226),\"\",'TA Indicator Bank'!AI226)","v":0},{"$f":"IF(ISBLANK('TA Indicator Bank'!AJ226),\"\",'TA Indicator Bank'!AJ226)","v":0},{"$f":"IF(ISBLANK('TA Indicator Bank'!AK226),\"\",'TA Indicator Bank'!AK226)","v":1},{"$f":"IF(ISBLANK('TA Indicator Bank'!AL226),\"\",'TA Indicator Bank'!AL226)","v":0},{"$f":"IF(ISBLANK('TA Indicator Bank'!AM226),\"\",'TA Indicator Bank'!AM226)","v":0},{"$f":"IF(ISBLANK('TA Indicator Bank'!AN226),\"\",'TA Indicator Bank'!AN226)","v":0},{"$f":"IF(ISBLANK('TA Indicator Bank'!AO226),\"\",'TA Indicator Bank'!AO226)","v":0},{"$f":"IF(ISBLANK('TA Indicator Bank'!AP226),\"\",'TA Indicator Bank'!AP226)","v":0},{"$f":"IF(ISBLANK('TA Indicator Bank'!AQ226),\"\",'TA Indicator Bank'!AQ226)","v":0},{"$f":"IF(ISBLANK('TA Indicator Bank'!AR226),\"\",'TA Indicator Bank'!AR226)","v":0},{"$f":"IF(ISBLANK('TA Indicator Bank'!AS226),\"\",'TA Indicator Bank'!AS226)","v":1},{"$f":"IF(ISBLANK('TA Indicator Bank'!AT226),\"\",'TA Indicator Bank'!AT226)","v":0},0,0,0,0,0,0,0,0,0,0,0,0,0,0,1,0,0,0,0,0,0,0,0,0,1,0,0,0,0,1,0,0,0,0,1,{"$f":"IF(AND(AP230=1,AP$410=1),1,0)","v":0},{"$f":"IF(AND(AQ230=1,AQ$410=1),1,0)","v":0},{"$f":"IF(AND(AR230=1,AR$410=1),1,0)","v":0},{"$f":"IF(AND(AS230=1,AS$410=1),1,0)","v":1},{"$f":"IF(AND(AT230=1,AT$410=1),1,0)","v":0},1,1,222,222,{"$f":"IFERROR(SMALL($CL$9:$CL$408,CK230),\"\")","v":222},{"$f":"IFERROR(INDEX($B$9:$I$408,$CM230,COLUMNS($CN$9:CN230)),\"\")","v":"TA222"},{"$f":"IFERROR(INDEX($B$9:$I$408,$CM230,COLUMNS($CN$9:CO230)),\"\")","v":"Number of direct jobs created as result of support to investment"},{"$f":"IFERROR(INDEX($B$9:$I$408,$CM230,COLUMNS($CN$9:CP230)),\"\")","v":"-"},{"$f":"IFERROR(INDEX($B$9:$I$408,$CM230,COLUMNS($CN$9:CQ230)),\"\")","v":"Outcome"},{"$f":"IFERROR(INDEX($B$9:$I$408,$CM230,COLUMNS($CN$9:CR230)),\"\")","v":"-"},{"$f":"IFERROR(INDEX($B$9:$I$408,$CM230,COLUMNS($CN$9:CS230)),\"\")","v":"-"},{"$f":"IFERROR(INDEX($B$9:$I$408,$CM230,COLUMNS($CN$9:CT230)),\"\")","v":"Increased or improved investment in climate-related projects/assets"},{"$f":"IFERROR(INDEX($B$9:$I$408,$CM230,COLUMNS($CN$9:CU230)),\"\")","v":"Number"}]
[null,{"$f":"IF(ISBLANK('TA Indicator Bank'!B227),\"\",'TA Indicator Bank'!B227)","v":"TA223"},{"$f":"IF(ISBLANK('TA Indicator Bank'!C227),\"\",'TA Indicator Bank'!C227)","v":"Amount of available finance assessed by the government"},{"$f":"IF(ISBLANK('TA Indicator Bank'!D227),\"\",'TA Indicator Bank'!D227)","v":"-"},{"$f":"IF(ISBLANK('TA Indicator Bank'!E227),\"\",'TA Indicator Bank'!E227)","v":"Outcome"},{"$f":"IF(ISBLANK('TA Indicator Bank'!F227),\"\",'TA Indicator Bank'!F227)","v":"-"},{"$f":"IF(ISBLANK('TA Indicator Bank'!G227),\"\",'TA Indicator Bank'!G227)","v":"-"},{"$f":"IF(ISBLANK('TA Indicator Bank'!H227),\"\",'TA Indicator Bank'!H227)","v":"Increased or improved investment in climate-related projects/assets"},{"$f":"IF(ISBLANK('TA Indicator Bank'!I227),\"\",'TA Indicator Bank'!I227)","v":"Number"},{"$f":"IF(ISBLANK('TA Indicator Bank'!J227),\"\",'TA Indicator Bank'!J227)","v":0},{"$f":"IF(ISBLANK('TA Indicator Bank'!K227),\"\",'TA Indicator Bank'!K227)","v":0},{"$f":"IF(ISBLANK('TA Indicator Bank'!L227),\"\",'TA Indicator Bank'!L227)","v":0},{"$f":"IF(ISBLANK('TA Indicator Bank'!M227),\"\",'TA Indicator Bank'!M227)","v":0},{"$f":"IF(ISBLANK('TA Indicator Bank'!N227),\"\",'TA Indicator Bank'!N227)","v":0},{"$f":"IF(ISBLANK('TA Indicator Bank'!O227),\"\",'TA Indicator Bank'!O227)","v":0},{"$f":"IF(ISBLANK('TA Indicator Bank'!P227),\"\",'TA Indicator Bank'!P227)","v":0},{"$f":"IF(ISBLANK('TA Indicator Bank'!Q227),\"\",'TA Indicator Bank'!Q227)","v":0},{"$f":"IF(ISBLANK('TA Indicator Bank'!R227),\"\",'TA Indicator Bank'!R227)","v":0},{"$f":"IF(ISBLANK('TA Indicator Bank'!S227),\"\",'TA Indicator Bank'!S227)","v":0},{"$f":"IF(ISBLANK('TA Indicator Bank'!T227),\"\",'TA Indicator Bank'!T227)","v":0},{"$f":"IF(ISBLANK('TA Indicator Bank'!U227),\"\",'TA Indicator Bank'!U227)","v":0},{"$f":"IF(ISBLANK('TA Indicator Bank'!V227),\"\",'TA Indicator Bank'!V227)","v":0},{"$f":"IF(ISBLANK('TA Indicator Bank'!W227),\"\",'TA Indicator Bank'!W227)","v":0},{"$f":"IF(ISBLANK('TA Indicator Bank'!X227),\"\",'TA Indicator Bank'!X227)","v":0},{"$f":"IF(ISBLANK('TA Indicator Bank'!Y227),\"\",'TA Indicator Bank'!Y227)","v":0},{"$f":"IF(ISBLANK('TA Indicator Bank'!Z227),\"\",'TA Indicator Bank'!Z227)","v":0},{"$f":"IF(ISBLANK('TA Indicator Bank'!AA227),\"\",'TA Indicator Bank'!AA227)","v":0},{"$f":"IF(ISBLANK('TA Indicator Bank'!AB227),\"\",'TA Indicator Bank'!AB227)","v":0},{"$f":"IF(ISBLANK('TA Indicator Bank'!AC227),\"\",'TA Indicator Bank'!AC227)","v":0},{"$f":"IF(ISBLANK('TA Indicator Bank'!AD227),\"\",'TA Indicator Bank'!AD227)","v":0},{"$f":"IF(ISBLANK('TA Indicator Bank'!AE227),\"\",'TA Indicator Bank'!AE227)","v":0},{"$f":"IF(ISBLANK('TA Indicator Bank'!AF227),\"\",'TA Indicator Bank'!AF227)","v":0},{"$f":"IF(ISBLANK('TA Indicator Bank'!AG227),\"\",'TA Indicator Bank'!AG227)","v":0},{"$f":"IF(ISBLANK('TA Indicator Bank'!AH227),\"\",'TA Indicator Bank'!AH227)","v":0},{"$f":"IF(ISBLANK('TA Indicator Bank'!AI227),\"\",'TA Indicator Bank'!AI227)","v":0},{"$f":"IF(ISBLANK('TA Indicator Bank'!AJ227),\"\",'TA Indicator Bank'!AJ227)","v":0},{"$f":"IF(ISBLANK('TA Indicator Bank'!AK227),\"\",'TA Indicator Bank'!AK227)","v":1},{"$f":"IF(ISBLANK('TA Indicator Bank'!AL227),\"\",'TA Indicator Bank'!AL227)","v":0},{"$f":"IF(ISBLANK('TA Indicator Bank'!AM227),\"\",'TA Indicator Bank'!AM227)","v":0},{"$f":"IF(ISBLANK('TA Indicator Bank'!AN227),\"\",'TA Indicator Bank'!AN227)","v":0},{"$f":"IF(ISBLANK('TA Indicator Bank'!AO227),\"\",'TA Indicator Bank'!AO227)","v":0},{"$f":"IF(ISBLANK('TA Indicator Bank'!AP227),\"\",'TA Indicator Bank'!AP227)","v":0},{"$f":"IF(ISBLANK('TA Indicator Bank'!AQ227),\"\",'TA Indicator Bank'!AQ227)","v":0},{"$f":"IF(ISBLANK('TA Indicator Bank'!AR227),\"\",'TA Indicator Bank'!AR227)","v":0},{"$f":"IF(ISBLANK('TA Indicator Bank'!AS227),\"\",'TA Indicator Bank'!AS227)","v":1},{"$f":"IF(ISBLANK('TA Indicator Bank'!AT227),\"\",'TA Indicator Bank'!AT227)","v":0},0,0,0,0,0,0,0,0,0,0,0,0,0,0,1,0,0,0,0,0,0,0,0,0,1,0,0,0,0,1,0,0,0,0,1,{"$f":"IF(AND(AP231=1,AP$410=1),1,0)","v":0},{"$f":"IF(AND(AQ231=1,AQ$410=1),1,0)","v":0},{"$f":"IF(AND(AR231=1,AR$410=1),1,0)","v":0},{"$f":"IF(AND(AS231=1,AS$410=1),1,0)","v":1},{"$f":"IF(AND(AT231=1,AT$410=1),1,0)","v":0},1,1,223,223,{"$f":"IFERROR(SMALL($CL$9:$CL$408,CK231),\"\")","v":223},{"$f":"IFERROR(INDEX($B$9:$I$408,$CM231,COLUMNS($CN$9:CN231)),\"\")","v":"TA223"},{"$f":"IFERROR(INDEX($B$9:$I$408,$CM231,COLUMNS($CN$9:CO231)),\"\")","v":"Amount of available finance assessed by the government"},{"$f":"IFERROR(INDEX($B$9:$I$408,$CM231,COLUMNS($CN$9:CP231)),\"\")","v":"-"},{"$f":"IFERROR(INDEX($B$9:$I$408,$CM231,COLUMNS($CN$9:CQ231)),\"\")","v":"Outcome"},{"$f":"IFERROR(INDEX($B$9:$I$408,$CM231,COLUMNS($CN$9:CR231)),\"\")","v":"-"},{"$f":"IFERROR(INDEX($B$9:$I$408,$CM231,COLUMNS($CN$9:CS231)),\"\")","v":"-"},{"$f":"IFERROR(INDEX($B$9:$I$408,$CM231,COLUMNS($CN$9:CT231)),\"\")","v":"Increased or improved investment in climate-related projects/assets"},{"$f":"IFERROR(INDEX($B$9:$I$408,$CM231,COLUMNS($CN$9:CU231)),\"\")","v":"Number"}]
[null,{"$f":"IF(ISBLANK('TA Indicator Bank'!B228),\"\",'TA Indicator Bank'!B228)","v":"TA224"},{"$f":"IF(ISBLANK('TA Indicator Bank'!C228),\"\",'TA Indicator Bank'!C228)","v":"Annual investment in certain area"},{"$f":"IF(ISBLANK('TA Indicator Bank'!D228),\"\",'TA Indicator Bank'!D228)","v":"-"},{"$f":"IF(ISBLANK('TA Indicator Bank'!E228),\"\",'TA Indicator Bank'!E228)","v":"Outcome"},{"$f":"IF(ISBLANK('TA Indicator Bank'!F228),\"\",'TA Indicator Bank'!F228)","v":"-"},{"$f":"IF(ISBLANK('TA Indicator Bank'!G228),\"\",'TA Indicator Bank'!G228)","v":"-"},{"$f":"IF(ISBLANK('TA Indicator Bank'!H228),\"\",'TA Indicator Bank'!H228)","v":"Increased or improved investment in climate-related projects/assets"},{"$f":"IF(ISBLANK('TA Indicator Bank'!I228),\"\",'TA Indicator Bank'!I228)","v":"Number"},{"$f":"IF(ISBLANK('TA Indicator Bank'!J228),\"\",'TA Indicator Bank'!J228)","v":0},{"$f":"IF(ISBLANK('TA Indicator Bank'!K228),\"\",'TA Indicator Bank'!K228)","v":0},{"$f":"IF(ISBLANK('TA Indicator Bank'!L228),\"\",'TA Indicator Bank'!L228)","v":0},{"$f":"IF(ISBLANK('TA Indicator Bank'!M228),\"\",'TA Indicator Bank'!M228)","v":0},{"$f":"IF(ISBLANK('TA Indicator Bank'!N228),\"\",'TA Indicator Bank'!N228)","v":0},{"$f":"IF(ISBLANK('TA Indicator Bank'!O228),\"\",'TA Indicator Bank'!O228)","v":0},{"$f":"IF(ISBLANK('TA Indicator Bank'!P228),\"\",'TA Indicator Bank'!P228)","v":0},{"$f":"IF(ISBLANK('TA Indicator Bank'!Q228),\"\",'TA Indicator Bank'!Q228)","v":0},{"$f":"IF(ISBLANK('TA Indicator Bank'!R228),\"\",'TA Indicator Bank'!R228)","v":0},{"$f":"IF(ISBLANK('TA Indicator Bank'!S228),\"\",'TA Indicator Bank'!S228)","v":0},{"$f":"IF(ISBLANK('TA Indicator Bank'!T228),\"\",'TA Indicator Bank'!T228)","v":0},{"$f":"IF(ISBLANK('TA Indicator Bank'!U228),\"\",'TA Indicator Bank'!U228)","v":0},{"$f":"IF(ISBLANK('TA Indicator Bank'!V228),\"\",'TA Indicator Bank'!V228)","v":0},{"$f":"IF(ISBLANK('TA Indicator Bank'!W228),\"\",'TA Indicator Bank'!W228)","v":0},{"$f":"IF(ISBLANK('TA Indicator Bank'!X228),\"\",'TA Indicator Bank'!X228)","v":0},{"$f":"IF(ISBLANK('TA Indicator Bank'!Y228),\"\",'TA Indicator Bank'!Y228)","v":0},{"$f":"IF(ISBLANK('TA Indicator Bank'!Z228),\"\",'TA Indicator Bank'!Z228)","v":0},{"$f":"IF(ISBLANK('TA Indicator Bank'!AA228),\"\",'TA Indicator Bank'!AA228)","v":0},{"$f":"IF(ISBLANK('TA Indicator Bank'!AB228),\"\",'TA Indicator Bank'!AB228)","v":0},{"$f":"IF(ISBLANK('TA Indicator Bank'!AC228),\"\",'TA Indicator Bank'!AC228)","v":0},{"$f":"IF(ISBLANK('TA Indicator Bank'!AD228),\"\",'TA Indicator Bank'!AD228)","v":0},{"$f":"IF(ISBLANK('TA Indicator Bank'!AE228),\"\",'TA Indicator Bank'!AE228)","v":0},{"$f":"IF(ISBLANK('TA Indicator Bank'!AF228),\"\",'TA Indicator Bank'!AF228)","v":0},{"$f":"IF(ISBLANK('TA Indicator Bank'!AG228),\"\",'TA Indicator Bank'!AG228)","v":0},{"$f":"IF(ISBLANK('TA Indicator Bank'!AH228),\"\",'TA Indicator Bank'!AH228)","v":0},{"$f":"IF(ISBLANK('TA Indicator Bank'!AI228),\"\",'TA Indicator Bank'!AI228)","v":0},{"$f":"IF(ISBLANK('TA Indicator Bank'!AJ228),\"\",'TA Indicator Bank'!AJ228)","v":0},{"$f":"IF(ISBLANK('TA Indicator Bank'!AK228),\"\",'TA Indicator Bank'!AK228)","v":1},{"$f":"IF(ISBLANK('TA Indicator Bank'!AL228),\"\",'TA Indicator Bank'!AL228)","v":0},{"$f":"IF(ISBLANK('TA Indicator Bank'!AM228),\"\",'TA Indicator Bank'!AM228)","v":0},{"$f":"IF(ISBLANK('TA Indicator Bank'!AN228),\"\",'TA Indicator Bank'!AN228)","v":0},{"$f":"IF(ISBLANK('TA Indicator Bank'!AO228),\"\",'TA Indicator Bank'!AO228)","v":0},{"$f":"IF(ISBLANK('TA Indicator Bank'!AP228),\"\",'TA Indicator Bank'!AP228)","v":0},{"$f":"IF(ISBLANK('TA Indicator Bank'!AQ228),\"\",'TA Indicator Bank'!AQ228)","v":0},{"$f":"IF(ISBLANK('TA Indicator Bank'!AR228),\"\",'TA Indicator Bank'!AR228)","v":0},{"$f":"IF(ISBLANK('TA Indicator Bank'!AS228),\"\",'TA Indicator Bank'!AS228)","v":1},{"$f":"IF(ISBLANK('TA Indicator Bank'!AT228),\"\",'TA Indicator Bank'!AT228)","v":0},0,0,0,0,0,0,0,0,0,0,0,0,0,0,1,0,0,0,0,0,0,0,0,0,1,0,0,0,0,1,0,0,0,0,1,{"$f":"IF(AND(AP232=1,AP$410=1),1,0)","v":0},{"$f":"IF(AND(AQ232=1,AQ$410=1),1,0)","v":0},{"$f":"IF(AND(AR232=1,AR$410=1),1,0)","v":0},{"$f":"IF(AND(AS232=1,AS$410=1),1,0)","v":1},{"$f":"IF(AND(AT232=1,AT$410=1),1,0)","v":0},1,1,224,224,{"$f":"IFERROR(SMALL($CL$9:$CL$408,CK232),\"\")","v":224},{"$f":"IFERROR(INDEX($B$9:$I$408,$CM232,COLUMNS($CN$9:CN232)),\"\")","v":"TA224"},{"$f":"IFERROR(INDEX($B$9:$I$408,$CM232,COLUMNS($CN$9:CO232)),\"\")","v":"Annual investment in certain area"},{"$f":"IFERROR(INDEX($B$9:$I$408,$CM232,COLUMNS($CN$9:CP232)),\"\")","v":"-"},{"$f":"IFERROR(INDEX($B$9:$I$408,$CM232,COLUMNS($CN$9:CQ232)),\"\")","v":"Outcome"},{"$f":"IFERROR(INDEX($B$9:$I$408,$CM232,COLUMNS($CN$9:CR232)),\"\")","v":"-"},{"$f":"IFERROR(INDEX($B$9:$I$408,$CM232,COLUMNS($CN$9:CS232)),\"\")","v":"-"},{"$f":"IFERROR(INDEX($B$9:$I$408,$CM232,COLUMNS($CN$9:CT232)),\"\")","v":"Increased or improved investment in climate-related projects/assets"},{"$f":"IFERROR(INDEX($B$9:$I$408,$CM232,COLUMNS($CN$9:CU232)),\"\")","v":"Number"}]
[null,{"$f":"IF(ISBLANK('TA Indicator Bank'!B229),\"\",'TA Indicator Bank'!B229)","v":"TA225"},{"$f":"IF(ISBLANK('TA Indicator Bank'!C229),\"\",'TA Indicator Bank'!C229)","v":"The investment selected by the authorities contributes to the identified climate goal"},{"$f":"IF(ISBLANK('TA Indicator Bank'!D229),\"\",'TA Indicator Bank'!D229)","v":"-"},{"$f":"IF(ISBLANK('TA Indicator Bank'!E229),\"\",'TA Indicator Bank'!E229)","v":"Outcome"},{"$f":"IF(ISBLANK('TA Indicator Bank'!F229),\"\",'TA Indicator Bank'!F229)","v":"-"},{"$f":"IF(ISBLANK('TA Indicator Bank'!G229),\"\",'TA Indicator Bank'!G229)","v":"-"},{"$f":"IF(ISBLANK('TA Indicator Bank'!H229),\"\",'TA Indicator Bank'!H229)","v":"Increased or improved investment in climate-related projects/assets"},{"$f":"IF(ISBLANK('TA Indicator Bank'!I229),\"\",'TA Indicator Bank'!I229)","v":"Yes/No"},{"$f":"IF(ISBLANK('TA Indicator Bank'!J229),\"\",'TA Indicator Bank'!J229)","v":0},{"$f":"IF(ISBLANK('TA Indicator Bank'!K229),\"\",'TA Indicator Bank'!K229)","v":0},{"$f":"IF(ISBLANK('TA Indicator Bank'!L229),\"\",'TA Indicator Bank'!L229)","v":0},{"$f":"IF(ISBLANK('TA Indicator Bank'!M229),\"\",'TA Indicator Bank'!M229)","v":0},{"$f":"IF(ISBLANK('TA Indicator Bank'!N229),\"\",'TA Indicator Bank'!N229)","v":0},{"$f":"IF(ISBLANK('TA Indicator Bank'!O229),\"\",'TA Indicator Bank'!O229)","v":0},{"$f":"IF(ISBLANK('TA Indicator Bank'!P229),\"\",'TA Indicator Bank'!P229)","v":0},{"$f":"IF(ISBLANK('TA Indicator Bank'!Q229),\"\",'TA Indicator Bank'!Q229)","v":0},{"$f":"IF(ISBLANK('TA Indicator Bank'!R229),\"\",'TA Indicator Bank'!R229)","v":0},{"$f":"IF(ISBLANK('TA Indicator Bank'!S229),\"\",'TA Indicator Bank'!S229)","v":0},{"$f":"IF(ISBLANK('TA Indicator Bank'!T229),\"\",'TA Indicator Bank'!T229)","v":0},{"$f":"IF(ISBLANK('TA Indicator Bank'!U229),\"\",'TA Indicator Bank'!U229)","v":0},{"$f":"IF(ISBLANK('TA Indicator Bank'!V229),\"\",'TA Indicator Bank'!V229)","v":0},{"$f":"IF(ISBLANK('TA Indicator Bank'!W229),\"\",'TA Indicator Bank'!W229)","v":0},{"$f":"IF(ISBLANK('TA Indicator Bank'!X229),\"\",'TA Indicator Bank'!X229)","v":0},{"$f":"IF(ISBLANK('TA Indicator Bank'!Y229),\"\",'TA Indicator Bank'!Y229)","v":0},{"$f":"IF(ISBLANK('TA Indicator Bank'!Z229),\"\",'TA Indicator Bank'!Z229)","v":0},{"$f":"IF(ISBLANK('TA Indicator Bank'!AA229),\"\",'TA Indicator Bank'!AA229)","v":0},{"$f":"IF(ISBLANK('TA Indicator Bank'!AB229),\"\",'TA Indicator Bank'!AB229)","v":0},{"$f":"IF(ISBLANK('TA Indicator Bank'!AC229),\"\",'TA Indicator Bank'!AC229)","v":0},{"$f":"IF(ISBLANK('TA Indicator Bank'!AD229),\"\",'TA Indicator Bank'!AD229)","v":0},{"$f":"IF(ISBLANK('TA Indicator Bank'!AE229),\"\",'TA Indicator Bank'!AE229)","v":0},{"$f":"IF(ISBLANK('TA Indicator Bank'!AF229),\"\",'TA Indicator Bank'!AF229)","v":0},{"$f":"IF(ISBLANK('TA Indicator Bank'!AG229),\"\",'TA Indicator Bank'!AG229)","v":0},{"$f":"IF(ISBLANK('TA Indicator Bank'!AH229),\"\",'TA Indicator Bank'!AH229)","v":0},{"$f":"IF(ISBLANK('TA Indicator Bank'!AI229),\"\",'TA Indicator Bank'!AI229)","v":0},{"$f":"IF(ISBLANK('TA Indicator Bank'!AJ229),\"\",'TA Indicator Bank'!AJ229)","v":0},{"$f":"IF(ISBLANK('TA Indicator Bank'!AK229),\"\",'TA Indicator Bank'!AK229)","v":1},{"$f":"IF(ISBLANK('TA Indicator Bank'!AL229),\"\",'TA Indicator Bank'!AL229)","v":0},{"$f":"IF(ISBLANK('TA Indicator Bank'!AM229),\"\",'TA Indicator Bank'!AM229)","v":0},{"$f":"IF(ISBLANK('TA Indicator Bank'!AN229),\"\",'TA Indicator Bank'!AN229)","v":0},{"$f":"IF(ISBLANK('TA Indicator Bank'!AO229),\"\",'TA Indicator Bank'!AO229)","v":0},{"$f":"IF(ISBLANK('TA Indicator Bank'!AP229),\"\",'TA Indicator Bank'!AP229)","v":0},{"$f":"IF(ISBLANK('TA Indicator Bank'!AQ229),\"\",'TA Indicator Bank'!AQ229)","v":0},{"$f":"IF(ISBLANK('TA Indicator Bank'!AR229),\"\",'TA Indicator Bank'!AR229)","v":0},{"$f":"IF(ISBLANK('TA Indicator Bank'!AS229),\"\",'TA Indicator Bank'!AS229)","v":1},{"$f":"IF(ISBLANK('TA Indicator Bank'!AT229),\"\",'TA Indicator Bank'!AT229)","v":0},0,0,0,0,0,0,0,0,0,0,0,0,0,0,1,0,0,0,0,0,0,0,0,0,1,0,0,0,0,1,0,0,0,0,1,{"$f":"IF(AND(AP233=1,AP$410=1),1,0)","v":0},{"$f":"IF(AND(AQ233=1,AQ$410=1),1,0)","v":0},{"$f":"IF(AND(AR233=1,AR$410=1),1,0)","v":0},{"$f":"IF(AND(AS233=1,AS$410=1),1,0)","v":1},{"$f":"IF(AND(AT233=1,AT$410=1),1,0)","v":0},1,1,225,225,{"$f":"IFERROR(SMALL($CL$9:$CL$408,CK233),\"\")","v":225},{"$f":"IFERROR(INDEX($B$9:$I$408,$CM233,COLUMNS($CN$9:CN233)),\"\")","v":"TA225"},{"$f":"IFERROR(INDEX($B$9:$I$408,$CM233,COLUMNS($CN$9:CO233)),\"\")","v":"The investment selected by the authorities contributes to the identified climate goal"},{"$f":"IFERROR(INDEX($B$9:$I$408,$CM233,COLUMNS($CN$9:CP233)),\"\")","v":"-"},{"$f":"IFERROR(INDEX($B$9:$I$408,$CM233,COLUMNS($CN$9:CQ233)),\"\")","v":"Outcome"},{"$f":"IFERROR(INDEX($B$9:$I$408,$CM233,COLUMNS($CN$9:CR233)),\"\")","v":"-"},{"$f":"IFERROR(INDEX($B$9:$I$408,$CM233,COLUMNS($CN$9:CS233)),\"\")","v":"-"},{"$f":"IFERROR(INDEX($B$9:$I$408,$CM233,COLUMNS($CN$9:CT233)),\"\")","v":"Increased or improved investment in climate-related projects/assets"},{"$f":"IFERROR(INDEX($B$9:$I$408,$CM233,COLUMNS($CN$9:CU233)),\"\")","v":"Yes/No"}]
[null,{"$f":"IF(ISBLANK('TA Indicator Bank'!B230),\"\",'TA Indicator Bank'!B230)","v":"TA226"},{"$f":"IF(ISBLANK('TA Indicator Bank'!C230),\"\",'TA Indicator Bank'!C230)","v":"Unit/project takes lessons learned into account"},{"$f":"IF(ISBLANK('TA Indicator Bank'!D230),\"\",'TA Indicator Bank'!D230)","v":"-"},{"$f":"IF(ISBLANK('TA Indicator Bank'!E230),\"\",'TA Indicator Bank'!E230)","v":"Output"},{"$f":"IF(ISBLANK('TA Indicator Bank'!F230),\"\",'TA Indicator Bank'!F230)","v":"-"},{"$f":"IF(ISBLANK('TA Indicator Bank'!G230),\"\",'TA Indicator Bank'!G230)","v":"Process/asset operation support"},{"$f":"IF(ISBLANK('TA Indicator Bank'!H230),\"\",'TA Indicator Bank'!H230)","v":"-"},{"$f":"IF(ISBLANK('TA Indicator Bank'!I230),\"\",'TA Indicator Bank'!I230)","v":"Narrative"},{"$f":"IF(ISBLANK('TA Indicator Bank'!J230),\"\",'TA Indicator Bank'!J230)","v":0},{"$f":"IF(ISBLANK('TA Indicator Bank'!K230),\"\",'TA Indicator Bank'!K230)","v":0},{"$f":"IF(ISBLANK('TA Indicator Bank'!L230),\"\",'TA Indicator Bank'!L230)","v":0},{"$f":"IF(ISBLANK('TA Indicator Bank'!M230),\"\",'TA Indicator Bank'!M230)","v":0},{"$f":"IF(ISBLANK('TA Indicator Bank'!N230),\"\",'TA Indicator Bank'!N230)","v":0},{"$f":"IF(ISBLANK('TA Indicator Bank'!O230),\"\",'TA Indicator Bank'!O230)","v":0},{"$f":"IF(ISBLANK('TA Indicator Bank'!P230),\"\",'TA Indicator Bank'!P230)","v":0},{"$f":"IF(ISBLANK('TA Indicator Bank'!Q230),\"\",'TA Indicator Bank'!Q230)","v":0},{"$f":"IF(ISBLANK('TA Indicator Bank'!R230),\"\",'TA Indicator Bank'!R230)","v":0},{"$f":"IF(ISBLANK('TA Indicator Bank'!S230),\"\",'TA Indicator Bank'!S230)","v":0},{"$f":"IF(ISBLANK('TA Indicator Bank'!T230),\"\",'TA Indicator Bank'!T230)","v":0},{"$f":"IF(ISBLANK('TA Indicator Bank'!U230),\"\",'TA Indicator Bank'!U230)","v":0},{"$f":"IF(ISBLANK('TA Indicator Bank'!V230),\"\",'TA Indicator Bank'!V230)","v":0},{"$f":"IF(ISBLANK('TA Indicator Bank'!W230),\"\",'TA Indicator Bank'!W230)","v":0},{"$f":"IF(ISBLANK('TA Indicator Bank'!X230),\"\",'TA Indicator Bank'!X230)","v":0},{"$f":"IF(ISBLANK('TA Indicator Bank'!Y230),\"\",'TA Indicator Bank'!Y230)","v":0},{"$f":"IF(ISBLANK('TA Indicator Bank'!Z230),\"\",'TA Indicator Bank'!Z230)","v":0},{"$f":"IF(ISBLANK('TA Indicator Bank'!AA230),\"\",'TA Indicator Bank'!AA230)","v":0},{"$f":"IF(ISBLANK('TA Indicator Bank'!AB230),\"\",'TA Indicator Bank'!AB230)","v":0},{"$f":"IF(ISBLANK('TA Indicator Bank'!AC230),\"\",'TA Indicator Bank'!AC230)","v":0},{"$f":"IF(ISBLANK('TA Indicator Bank'!AD230),\"\",'TA Indicator Bank'!AD230)","v":1},{"$f":"IF(ISBLANK('TA Indicator Bank'!AE230),\"\",'TA Indicator Bank'!AE230)","v":0},{"$f":"IF(ISBLANK('TA Indicator Bank'!AF230),\"\",'TA Indicator Bank'!AF230)","v":0},{"$f":"IF(ISBLANK('TA Indicator Bank'!AG230),\"\",'TA Indicator Bank'!AG230)","v":0},{"$f":"IF(ISBLANK('TA Indicator Bank'!AH230),\"\",'TA Indicator Bank'!AH230)","v":0},{"$f":"IF(ISBLANK('TA Indicator Bank'!AI230),\"\",'TA Indicator Bank'!AI230)","v":0},{"$f":"IF(ISBLANK('TA Indicator Bank'!AJ230),\"\",'TA Indicator Bank'!AJ230)","v":0},{"$f":"IF(ISBLANK('TA Indicator Bank'!AK230),\"\",'TA Indicator Bank'!AK230)","v":0},{"$f":"IF(ISBLANK('TA Indicator Bank'!AL230),\"\",'TA Indicator Bank'!AL230)","v":0},{"$f":"IF(ISBLANK('TA Indicator Bank'!AM230),\"\",'TA Indicator Bank'!AM230)","v":0},{"$f":"IF(ISBLANK('TA Indicator Bank'!AN230),\"\",'TA Indicator Bank'!AN230)","v":0},{"$f":"IF(ISBLANK('TA Indicator Bank'!AO230),\"\",'TA Indicator Bank'!AO230)","v":0},{"$f":"IF(ISBLANK('TA Indicator Bank'!AP230),\"\",'TA Indicator Bank'!AP230)","v":0},{"$f":"IF(ISBLANK('TA Indicator Bank'!AQ230),\"\",'TA Indicator Bank'!AQ230)","v":0},{"$f":"IF(ISBLANK('TA Indicator Bank'!AR230),\"\",'TA Indicator Bank'!AR230)","v":1},{"$f":"IF(ISBLANK('TA Indicator Bank'!AS230),\"\",'TA Indicator Bank'!AS230)","v":0},{"$f":"IF(ISBLANK('TA Indicator Bank'!AT230),\"\",'TA Indicator Bank'!AT230)","v":0},0,0,0,0,0,0,0,0,0,0,0,0,0,0,1,0,0,0,0,0,0,1,0,0,1,0,0,0,0,0,0,0,0,0,1,{"$f":"IF(AND(AP234=1,AP$410=1),1,0)","v":0},{"$f":"IF(AND(AQ234=1,AQ$410=1),1,0)","v":0},{"$f":"IF(AND(AR234=1,AR$410=1),1,0)","v":1},{"$f":"IF(AND(AS234=1,AS$410=1),1,0)","v":0},{"$f":"IF(AND(AT234=1,AT$410=1),1,0)","v":0},1,1,226,226,{"$f":"IFERROR(SMALL($CL$9:$CL$408,CK234),\"\")","v":226},{"$f":"IFERROR(INDEX($B$9:$I$408,$CM234,COLUMNS($CN$9:CN234)),\"\")","v":"TA226"},{"$f":"IFERROR(INDEX($B$9:$I$408,$CM234,COLUMNS($CN$9:CO234)),\"\")","v":"Unit/project takes lessons learned into account"},{"$f":"IFERROR(INDEX($B$9:$I$408,$CM234,COLUMNS($CN$9:CP234)),\"\")","v":"-"},{"$f":"IFERROR(INDEX($B$9:$I$408,$CM234,COLUMNS($CN$9:CQ234)),\"\")","v":"Output"},{"$f":"IFERROR(INDEX($B$9:$I$408,$CM234,COLUMNS($CN$9:CR234)),\"\")","v":"-"},{"$f":"IFERROR(INDEX($B$9:$I$408,$CM234,COLUMNS($CN$9:CS234)),\"\")","v":"Process/asset operation support"},{"$f":"IFERROR(INDEX($B$9:$I$408,$CM234,COLUMNS($CN$9:CT234)),\"\")","v":"-"},{"$f":"IFERROR(INDEX($B$9:$I$408,$CM234,COLUMNS($CN$9:CU234)),\"\")","v":"Narrative"}]
[null,{"$f":"IF(ISBLANK('TA Indicator Bank'!B231),\"\",'TA Indicator Bank'!B231)","v":"TA227"},{"$f":"IF(ISBLANK('TA Indicator Bank'!C231),\"\",'TA Indicator Bank'!C231)","v":"MRV system is operational"},{"$f":"IF(ISBLANK('TA Indicator Bank'!D231),\"\",'TA Indicator Bank'!D231)","v":"-"},{"$f":"IF(ISBLANK('TA Indicator Bank'!E231),\"\",'TA Indicator Bank'!E231)","v":"Outcome"},{"$f":"IF(ISBLANK('TA Indicator Bank'!F231),\"\",'TA Indicator Bank'!F231)","v":"-"},{"$f":"IF(ISBLANK('TA Indicator Bank'!G231),\"\",'TA Indicator Bank'!G231)","v":"-"},{"$f":"IF(ISBLANK('TA Indicator Bank'!H231),\"\",'TA Indicator Bank'!H231)","v":"Increased or improved policy development or execution; Improved operation of processes or assets (inc. e.g. electricity grid stability, agricultural livelihoods, forest management)"},{"$f":"IF(ISBLANK('TA Indicator Bank'!I231),\"\",'TA Indicator Bank'!I231)","v":"Yes/No"},{"$f":"IF(ISBLANK('TA Indicator Bank'!J231),\"\",'TA Indicator Bank'!J231)","v":0},{"$f":"IF(ISBLANK('TA Indicator Bank'!K231),\"\",'TA Indicator Bank'!K231)","v":0},{"$f":"IF(ISBLANK('TA Indicator Bank'!L231),\"\",'TA Indicator Bank'!L231)","v":0},{"$f":"IF(ISBLANK('TA Indicator Bank'!M231),\"\",'TA Indicator Bank'!M231)","v":0},{"$f":"IF(ISBLANK('TA Indicator Bank'!N231),\"\",'TA Indicator Bank'!N231)","v":0},{"$f":"IF(ISBLANK('TA Indicator Bank'!O231),\"\",'TA Indicator Bank'!O231)","v":0},{"$f":"IF(ISBLANK('TA Indicator Bank'!P231),\"\",'TA Indicator Bank'!P231)","v":0},{"$f":"IF(ISBLANK('TA Indicator Bank'!Q231),\"\",'TA Indicator Bank'!Q231)","v":0},{"$f":"IF(ISBLANK('TA Indicator Bank'!R231),\"\",'TA Indicator Bank'!R231)","v":0},{"$f":"IF(ISBLANK('TA Indicator Bank'!S231),\"\",'TA Indicator Bank'!S231)","v":0},{"$f":"IF(ISBLANK('TA Indicator Bank'!T231),\"\",'TA Indicator Bank'!T231)","v":0},{"$f":"IF(ISBLANK('TA Indicator Bank'!U231),\"\",'TA Indicator Bank'!U231)","v":0},{"$f":"IF(ISBLANK('TA Indicator Bank'!V231),\"\",'TA Indicator Bank'!V231)","v":0},{"$f":"IF(ISBLANK('TA Indicator Bank'!W231),\"\",'TA Indicator Bank'!W231)","v":0},{"$f":"IF(ISBLANK('TA Indicator Bank'!X231),\"\",'TA Indicator Bank'!X231)","v":0},{"$f":"IF(ISBLANK('TA Indicator Bank'!Y231),\"\",'TA Indicator Bank'!Y231)","v":0},{"$f":"IF(ISBLANK('TA Indicator Bank'!Z231),\"\",'TA Indicator Bank'!Z231)","v":0},{"$f":"IF(ISBLANK('TA Indicator Bank'!AA231),\"\",'TA Indicator Bank'!AA231)","v":0},{"$f":"IF(ISBLANK('TA Indicator Bank'!AB231),\"\",'TA Indicator Bank'!AB231)","v":0},{"$f":"IF(ISBLANK('TA Indicator Bank'!AC231),\"\",'TA Indicator Bank'!AC231)","v":0},{"$f":"IF(ISBLANK('TA Indicator Bank'!AD231),\"\",'TA Indicator Bank'!AD231)","v":0},{"$f":"IF(ISBLANK('TA Indicator Bank'!AE231),\"\",'TA Indicator Bank'!AE231)","v":0},{"$f":"IF(ISBLANK('TA Indicator Bank'!AF231),\"\",'TA Indicator Bank'!AF231)","v":0},{"$f":"IF(ISBLANK('TA Indicator Bank'!AG231),\"\",'TA Indicator Bank'!AG231)","v":1},{"$f":"IF(ISBLANK('TA Indicator Bank'!AH231),\"\",'TA Indicator Bank'!AH231)","v":0},{"$f":"IF(ISBLANK('TA Indicator Bank'!AI231),\"\",'TA Indicator Bank'!AI231)","v":0},{"$f":"IF(ISBLANK('TA Indicator Bank'!AJ231),\"\",'TA Indicator Bank'!AJ231)","v":0},{"$f":"IF(ISBLANK('TA Indicator Bank'!AK231),\"\",'TA Indicator Bank'!AK231)","v":0},{"$f":"IF(ISBLANK('TA Indicator Bank'!AL231),\"\",'TA Indicator Bank'!AL231)","v":1},{"$f":"IF(ISBLANK('TA Indicator Bank'!AM231),\"\",'TA Indicator Bank'!AM231)","v":0},{"$f":"IF(ISBLANK('TA Indicator Bank'!AN231),\"\",'TA Indicator Bank'!AN231)","v":0},{"$f":"IF(ISBLANK('TA Indicator Bank'!AO231),\"\",'TA Indicator Bank'!AO231)","v":0},{"$f":"IF(ISBLANK('TA Indicator Bank'!AP231),\"\",'TA Indicator Bank'!AP231)","v":0},{"$f":"IF(ISBLANK('TA Indicator Bank'!AQ231),\"\",'TA Indicator Bank'!AQ231)","v":0},{"$f":"IF(ISBLANK('TA Indicator Bank'!AR231),\"\",'TA Indicator Bank'!AR231)","v":0},{"$f":"IF(ISBLANK('TA Indicator Bank'!AS231),\"\",'TA Indicator Bank'!AS231)","v":1},{"$f":"IF(ISBLANK('TA Indicator Bank'!AT231),\"\",'TA Indicator Bank'!AT231)","v":0},0,0,0,0,0,0,0,0,0,0,0,0,0,0,1,0,0,0,0,0,0,0,0,0,1,1,0,0,0,0,1,0,0,0,1,{"$f":"IF(AND(AP235=1,AP$410=1),1,0)","v":0},{"$f":"IF(AND(AQ235=1,AQ$410=1),1,0)","v":0},{"$f":"IF(AND(AR235=1,AR$410=1),1,0)","v":0},{"$f":"IF(AND(AS235=1,AS$410=1),1,0)","v":1},{"$f":"IF(AND(AT235=1,AT$410=1),1,0)","v":0},1,1,227,227,{"$f":"IFERROR(SMALL($CL$9:$CL$408,CK235),\"\")","v":227},{"$f":"IFERROR(INDEX($B$9:$I$408,$CM235,COLUMNS($CN$9:CN235)),\"\")","v":"TA227"},{"$f":"IFERROR(INDEX($B$9:$I$408,$CM235,COLUMNS($CN$9:CO235)),\"\")","v":"MRV system is operational"},{"$f":"IFERROR(INDEX($B$9:$I$408,$CM235,COLUMNS($CN$9:CP235)),\"\")","v":"-"},{"$f":"IFERROR(INDEX($B$9:$I$408,$CM235,COLUMNS($CN$9:CQ235)),\"\")","v":"Outcome"},{"$f":"IFERROR(INDEX($B$9:$I$408,$CM235,COLUMNS($CN$9:CR235)),\"\")","v":"-"},{"$f":"IFERROR(INDEX($B$9:$I$408,$CM235,COLUMNS($CN$9:CS235)),\"\")","v":"-"},{"$f":"IFERROR(INDEX($B$9:$I$408,$CM235,COLUMNS($CN$9:CT235)),\"\")","v":"Increased or improved policy development or execution; Improved operation of processes or assets (inc. e.g. electricity grid stability, agricultural livelihoods, forest management)"},{"$f":"IFERROR(INDEX($B$9:$I$408,$CM235,COLUMNS($CN$9:CU235)),\"\")","v":"Yes/No"}]
[null,{"$f":"IF(ISBLANK('TA Indicator Bank'!B232),\"\",'TA Indicator Bank'!B232)","v":"TA228"},{"$f":"IF(ISBLANK('TA Indicator Bank'!C232),\"\",'TA Indicator Bank'!C232)","v":"Number of people/area of land that benefits from improved operation"},{"$f":"IF(ISBLANK('TA Indicator Bank'!D232),\"\",'TA Indicator Bank'!D232)","v":"-"},{"$f":"IF(ISBLANK('TA Indicator Bank'!E232),\"\",'TA Indicator Bank'!E232)","v":"Outcome"},{"$f":"IF(ISBLANK('TA Indicator Bank'!F232),\"\",'TA Indicator Bank'!F232)","v":"-"},{"$f":"IF(ISBLANK('TA Indicator Bank'!G232),\"\",'TA Indicator Bank'!G232)","v":"-"},{"$f":"IF(ISBLANK('TA Indicator Bank'!H232),\"\",'TA Indicator Bank'!H232)","v":"Improved operation of processes or assets (inc. e.g. electricity grid stability, agricultural livelihoods, forest management)"},{"$f":"IF(ISBLANK('TA Indicator Bank'!I232),\"\",'TA Indicator Bank'!I232)","v":"Number"},{"$f":"IF(ISBLANK('TA Indicator Bank'!J232),\"\",'TA Indicator Bank'!J232)","v":0},{"$f":"IF(ISBLANK('TA Indicator Bank'!K232),\"\",'TA Indicator Bank'!K232)","v":0},{"$f":"IF(ISBLANK('TA Indicator Bank'!L232),\"\",'TA Indicator Bank'!L232)","v":0},{"$f":"IF(ISBLANK('TA Indicator Bank'!M232),\"\",'TA Indicator Bank'!M232)","v":0},{"$f":"IF(ISBLANK('TA Indicator Bank'!N232),\"\",'TA Indicator Bank'!N232)","v":0},{"$f":"IF(ISBLANK('TA Indicator Bank'!O232),\"\",'TA Indicator Bank'!O232)","v":0},{"$f":"IF(ISBLANK('TA Indicator Bank'!P232),\"\",'TA Indicator Bank'!P232)","v":0},{"$f":"IF(ISBLANK('TA Indicator Bank'!Q232),\"\",'TA Indicator Bank'!Q232)","v":0},{"$f":"IF(ISBLANK('TA Indicator Bank'!R232),\"\",'TA Indicator Bank'!R232)","v":0},{"$f":"IF(ISBLANK('TA Indicator Bank'!S232),\"\",'TA Indicator Bank'!S232)","v":0},{"$f":"IF(ISBLANK('TA Indicator Bank'!T232),\"\",'TA Indicator Bank'!T232)","v":0},{"$f":"IF(ISBLANK('TA Indicator Bank'!U232),\"\",'TA Indicator Bank'!U232)","v":0},{"$f":"IF(ISBLANK('TA Indicator Bank'!V232),\"\",'TA Indicator Bank'!V232)","v":0},{"$f":"IF(ISBLANK('TA Indicator Bank'!W232),\"\",'TA Indicator Bank'!W232)","v":0},{"$f":"IF(ISBLANK('TA Indicator Bank'!X232),\"\",'TA Indicator Bank'!X232)","v":0},{"$f":"IF(ISBLANK('TA Indicator Bank'!Y232),\"\",'TA Indicator Bank'!Y232)","v":0},{"$f":"IF(ISBLANK('TA Indicator Bank'!Z232),\"\",'TA Indicator Bank'!Z232)","v":0},{"$f":"IF(ISBLANK('TA Indicator Bank'!AA232),\"\",'TA Indicator Bank'!AA232)","v":0},{"$f":"IF(ISBLANK('TA Indicator Bank'!AB232),\"\",'TA Indicator Bank'!AB232)","v":0},{"$f":"IF(ISBLANK('TA Indicator Bank'!AC232),\"\",'TA Indicator Bank'!AC232)","v":0},{"$f":"IF(ISBLANK('TA Indicator Bank'!AD232),\"\",'TA Indicator Bank'!AD232)","v":0},{"$f":"IF(ISBLANK('TA Indicator Bank'!AE232),\"\",'TA Indicator Bank'!AE232)","v":0},{"$f":"IF(ISBLANK('TA Indicator Bank'!AF232),\"\",'TA Indicator Bank'!AF232)","v":0},{"$f":"IF(ISBLANK('TA Indicator Bank'!AG232),\"\",'TA Indicator Bank'!AG232)","v":0},{"$f":"IF(ISBLANK('TA Indicator Bank'!AH232),\"\",'TA Indicator Bank'!AH232)","v":0},{"$f":"IF(ISBLANK('TA Indicator Bank'!AI232),\"\",'TA Indicator Bank'!AI232)","v":0},{"$f":"IF(ISBLANK('TA Indicator Bank'!AJ232),\"\",'TA Indicator Bank'!AJ232)","v":0},{"$f":"IF(ISBLANK('TA Indicator Bank'!AK232),\"\",'TA Indicator Bank'!AK232)","v":0},{"$f":"IF(ISBLANK('TA Indicator Bank'!AL232),\"\",'TA Indicator Bank'!AL232)","v":1},{"$f":"IF(ISBLANK('TA Indicator Bank'!AM232),\"\",'TA Indicator Bank'!AM232)","v":0},{"$f":"IF(ISBLANK('TA Indicator Bank'!AN232),\"\",'TA Indicator Bank'!AN232)","v":0},{"$f":"IF(ISBLANK('TA Indicator Bank'!AO232),\"\",'TA Indicator Bank'!AO232)","v":0},{"$f":"IF(ISBLANK('TA Indicator Bank'!AP232),\"\",'TA Indicator Bank'!AP232)","v":0},{"$f":"IF(ISBLANK('TA Indicator Bank'!AQ232),\"\",'TA Indicator Bank'!AQ232)","v":0},{"$f":"IF(ISBLANK('TA Indicator Bank'!AR232),\"\",'TA Indicator Bank'!AR232)","v":0},{"$f":"IF(ISBLANK('TA Indicator Bank'!AS232),\"\",'TA Indicator Bank'!AS232)","v":1},{"$f":"IF(ISBLANK('TA Indicator Bank'!AT232),\"\",'TA Indicator Bank'!AT232)","v":0},0,0,0,0,0,0,0,0,0,0,0,0,0,0,1,0,0,0,0,0,0,0,0,0,1,0,0,0,0,0,1,0,0,0,1,{"$f":"IF(AND(AP236=1,AP$410=1),1,0)","v":0},{"$f":"IF(AND(AQ236=1,AQ$410=1),1,0)","v":0},{"$f":"IF(AND(AR236=1,AR$410=1),1,0)","v":0},{"$f":"IF(AND(AS236=1,AS$410=1),1,0)","v":1},{"$f":"IF(AND(AT236=1,AT$410=1),1,0)","v":0},1,1,228,228,{"$f":"IFERROR(SMALL($CL$9:$CL$408,CK236),\"\")","v":228},{"$f":"IFERROR(INDEX($B$9:$I$408,$CM236,COLUMNS($CN$9:CN236)),\"\")","v":"TA228"},{"$f":"IFERROR(INDEX($B$9:$I$408,$CM236,COLUMNS($CN$9:CO236)),\"\")","v":"Number of people/area of land that benefits from improved operation"},{"$f":"IFERROR(INDEX($B$9:$I$408,$CM236,COLUMNS($CN$9:CP236)),\"\")","v":"-"},{"$f":"IFERROR(INDEX($B$9:$I$408,$CM236,COLUMNS($CN$9:CQ236)),\"\")","v":"Outcome"},{"$f":"IFERROR(INDEX($B$9:$I$408,$CM236,COLUMNS($CN$9:CR236)),\"\")","v":"-"},{"$f":"IFERROR(INDEX($B$9:$I$408,$CM236,COLUMNS($CN$9:CS236)),\"\")","v":"-"},{"$f":"IFERROR(INDEX($B$9:$I$408,$CM236,COLUMNS($CN$9:CT236)),\"\")","v":"Improved operation of processes or assets (inc. e.g. electricity grid stability, agricultural livelihoods, forest management)"},{"$f":"IFERROR(INDEX($B$9:$I$408,$CM236,COLUMNS($CN$9:CU236)),\"\")","v":"Number"}]
[null,{"$f":"IF(ISBLANK('TA Indicator Bank'!B233),\"\",'TA Indicator Bank'!B233)","v":"TA229"},{"$f":"IF(ISBLANK('TA Indicator Bank'!C233),\"\",'TA Indicator Bank'!C233)","v":"Area covered by improved operation"},{"$f":"IF(ISBLANK('TA Indicator Bank'!D233),\"\",'TA Indicator Bank'!D233)","v":"-"},{"$f":"IF(ISBLANK('TA Indicator Bank'!E233),\"\",'TA Indicator Bank'!E233)","v":"Outcome"},{"$f":"IF(ISBLANK('TA Indicator Bank'!F233),\"\",'TA Indicator Bank'!F233)","v":"-"},{"$f":"IF(ISBLANK('TA Indicator Bank'!G233),\"\",'TA Indicator Bank'!G233)","v":"-"},{"$f":"IF(ISBLANK('TA Indicator Bank'!H233),\"\",'TA Indicator Bank'!H233)","v":"Improved operation of processes or assets (inc. e.g. electricity grid stability, agricultural livelihoods, forest management)"},{"$f":"IF(ISBLANK('TA Indicator Bank'!I233),\"\",'TA Indicator Bank'!I233)","v":"Number"},{"$f":"IF(ISBLANK('TA Indicator Bank'!J233),\"\",'TA Indicator Bank'!J233)","v":0},{"$f":"IF(ISBLANK('TA Indicator Bank'!K233),\"\",'TA Indicator Bank'!K233)","v":0},{"$f":"IF(ISBLANK('TA Indicator Bank'!L233),\"\",'TA Indicator Bank'!L233)","v":0},{"$f":"IF(ISBLANK('TA Indicator Bank'!M233),\"\",'TA Indicator Bank'!M233)","v":0},{"$f":"IF(ISBLANK('TA Indicator Bank'!N233),\"\",'TA Indicator Bank'!N233)","v":0},{"$f":"IF(ISBLANK('TA Indicator Bank'!O233),\"\",'TA Indicator Bank'!O233)","v":0},{"$f":"IF(ISBLANK('TA Indicator Bank'!P233),\"\",'TA Indicator Bank'!P233)","v":0},{"$f":"IF(ISBLANK('TA Indicator Bank'!Q233),\"\",'TA Indicator Bank'!Q233)","v":0},{"$f":"IF(ISBLANK('TA Indicator Bank'!R233),\"\",'TA Indicator Bank'!R233)","v":0},{"$f":"IF(ISBLANK('TA Indicator Bank'!S233),\"\",'TA Indicator Bank'!S233)","v":0},{"$f":"IF(ISBLANK('TA Indicator Bank'!T233),\"\",'TA Indicator Bank'!T233)","v":0},{"$f":"IF(ISBLANK('TA Indicator Bank'!U233),\"\",'TA Indicator Bank'!U233)","v":0},{"$f":"IF(ISBLANK('TA Indicator Bank'!V233),\"\",'TA Indicator Bank'!V233)","v":0},{"$f":"IF(ISBLANK('TA Indicator Bank'!W233),\"\",'TA Indicator Bank'!W233)","v":0},{"$f":"IF(ISBLANK('TA Indicator Bank'!X233),\"\",'TA Indicator Bank'!X233)","v":0},{"$f":"IF(ISBLANK('TA Indicator Bank'!Y233),\"\",'TA Indicator Bank'!Y233)","v":0},{"$f":"IF(ISBLANK('TA Indicator Bank'!Z233),\"\",'TA Indicator Bank'!Z233)","v":0},{"$f":"IF(ISBLANK('TA Indicator Bank'!AA233),\"\",'TA Indicator Bank'!AA233)","v":0},{"$f":"IF(ISBLANK('TA Indicator Bank'!AB233),\"\",'TA Indicator Bank'!AB233)","v":0},{"$f":"IF(ISBLANK('TA Indicator Bank'!AC233),\"\",'TA Indicator Bank'!AC233)","v":0},{"$f":"IF(ISBLANK('TA Indicator Bank'!AD233),\"\",'TA Indicator Bank'!AD233)","v":0},{"$f":"IF(ISBLANK('TA Indicator Bank'!AE233),\"\",'TA Indicator Bank'!AE233)","v":0},{"$f":"IF(ISBLANK('TA Indicator Bank'!AF233),\"\",'TA Indicator Bank'!AF233)","v":0},{"$f":"IF(ISBLANK('TA Indicator Bank'!AG233),\"\",'TA Indicator Bank'!AG233)","v":0},{"$f":"IF(ISBLANK('TA Indicator Bank'!AH233),\"\",'TA Indicator Bank'!AH233)","v":0},{"$f":"IF(ISBLANK('TA Indicator Bank'!AI233),\"\",'TA Indicator Bank'!AI233)","v":0},{"$f":"IF(ISBLANK('TA Indicator Bank'!AJ233),\"\",'TA Indicator Bank'!AJ233)","v":0},{"$f":"IF(ISBLANK('TA Indicator Bank'!AK233),\"\",'TA Indicator Bank'!AK233)","v":0},{"$f":"IF(ISBLANK('TA Indicator Bank'!AL233),\"\",'TA Indicator Bank'!AL233)","v":1},{"$f":"IF(ISBLANK('TA Indicator Bank'!AM233),\"\",'TA Indicator Bank'!AM233)","v":0},{"$f":"IF(ISBLANK('TA Indicator Bank'!AN233),\"\",'TA Indicator Bank'!AN233)","v":0},{"$f":"IF(ISBLANK('TA Indicator Bank'!AO233),\"\",'TA Indicator Bank'!AO233)","v":0},{"$f":"IF(ISBLANK('TA Indicator Bank'!AP233),\"\",'TA Indicator Bank'!AP233)","v":0},{"$f":"IF(ISBLANK('TA Indicator Bank'!AQ233),\"\",'TA Indicator Bank'!AQ233)","v":0},{"$f":"IF(ISBLANK('TA Indicator Bank'!AR233),\"\",'TA Indicator Bank'!AR233)","v":0},{"$f":"IF(ISBLANK('TA Indicator Bank'!AS233),\"\",'TA Indicator Bank'!AS233)","v":1},{"$f":"IF(ISBLANK('TA Indicator Bank'!AT233),\"\",'TA Indicator Bank'!AT233)","v":0},0,0,{"$f":"IF(AND(L237=1,L$410=1),1,0)","v":0},0,0,0,0,0,0,0,0,0,0,0,1,0,0,0,0,0,0,0,0,0,1,0,0,0,0,0,1,0,0,0,1,{"$f":"IF(AND(AP237=1,AP$410=1),1,0)","v":0},{"$f":"IF(AND(AQ237=1,AQ$410=1),1,0)","v":0},{"$f":"IF(AND(AR237=1,AR$410=1),1,0)","v":0},{"$f":"IF(AND(AS237=1,AS$410=1),1,0)","v":1},{"$f":"IF(AND(AT237=1,AT$410=1),1,0)","v":0},1,1,229,229,{"$f":"IFERROR(SMALL($CL$9:$CL$408,CK237),\"\")","v":229},{"$f":"IFERROR(INDEX($B$9:$I$408,$CM237,COLUMNS($CN$9:CN237)),\"\")","v":"TA229"},{"$f":"IFERROR(INDEX($B$9:$I$408,$CM237,COLUMNS($CN$9:CO237)),\"\")","v":"Area covered by improved operation"},{"$f":"IFERROR(INDEX($B$9:$I$408,$CM237,COLUMNS($CN$9:CP237)),\"\")","v":"-"},{"$f":"IFERROR(INDEX($B$9:$I$408,$CM237,COLUMNS($CN$9:CQ237)),\"\")","v":"Outcome"},{"$f":"IFERROR(INDEX($B$9:$I$408,$CM237,COLUMNS($CN$9:CR237)),\"\")","v":"-"},{"$f":"IFERROR(INDEX($B$9:$I$408,$CM237,COLUMNS($CN$9:CS237)),\"\")","v":"-"},{"$f":"IFERROR(INDEX($B$9:$I$408,$CM237,COLUMNS($CN$9:CT237)),\"\")","v":"Improved operation of processes or assets (inc. e.g. electricity grid stability, agricultural livelihoods, forest management)"},{"$f":"IFERROR(INDEX($B$9:$I$408,$CM237,COLUMNS($CN$9:CU237)),\"\")","v":"Number"}]
[null,{"$f":"IF(ISBLANK('TA Indicator Bank'!B234),\"\",'TA Indicator Bank'!B234)","v":"TA230"},{"$f":"IF(ISBLANK('TA Indicator Bank'!C234),\"\",'TA Indicator Bank'!C234)","v":"Number of instruments designed to improve operations"},{"$f":"IF(ISBLANK('TA Indicator Bank'!D234),\"\",'TA Indicator Bank'!D234)","v":"-"},{"$f":"IF(ISBLANK('TA Indicator Bank'!E234),\"\",'TA Indicator Bank'!E234)","v":"Output"},{"$f":"IF(ISBLANK('TA Indicator Bank'!F234),\"\",'TA Indicator Bank'!F234)","v":"-"},{"$f":"IF(ISBLANK('TA Indicator Bank'!G234),\"\",'TA Indicator Bank'!G234)","v":"Process/asset operation support"},{"$f":"IF(ISBLANK('TA Indicator Bank'!H234),\"\",'TA Indicator Bank'!H234)","v":"-"},{"$f":"IF(ISBLANK('TA Indicator Bank'!I234),\"\",'TA Indicator Bank'!I234)","v":"Number"},{"$f":"IF(ISBLANK('TA Indicator Bank'!J234),\"\",'TA Indicator Bank'!J234)","v":0},{"$f":"IF(ISBLANK('TA Indicator Bank'!K234),\"\",'TA Indicator Bank'!K234)","v":0},{"$f":"IF(ISBLANK('TA Indicator Bank'!L234),\"\",'TA Indicator Bank'!L234)","v":0},{"$f":"IF(ISBLANK('TA Indicator Bank'!M234),\"\",'TA Indicator Bank'!M234)","v":0},{"$f":"IF(ISBLANK('TA Indicator Bank'!N234),\"\",'TA Indicator Bank'!N234)","v":0},{"$f":"IF(ISBLANK('TA Indicator Bank'!O234),\"\",'TA Indicator Bank'!O234)","v":0},{"$f":"IF(ISBLANK('TA Indicator Bank'!P234),\"\",'TA Indicator Bank'!P234)","v":0},{"$f":"IF(ISBLANK('TA Indicator Bank'!Q234),\"\",'TA Indicator Bank'!Q234)","v":0},{"$f":"IF(ISBLANK('TA Indicator Bank'!R234),\"\",'TA Indicator Bank'!R234)","v":0},{"$f":"IF(ISBLANK('TA Indicator Bank'!S234),\"\",'TA Indicator Bank'!S234)","v":0},{"$f":"IF(ISBLANK('TA Indicator Bank'!T234),\"\",'TA Indicator Bank'!T234)","v":0},{"$f":"IF(ISBLANK('TA Indicator Bank'!U234),\"\",'TA Indicator Bank'!U234)","v":0},{"$f":"IF(ISBLANK('TA Indicator Bank'!V234),\"\",'TA Indicator Bank'!V234)","v":0},{"$f":"IF(ISBLANK('TA Indicator Bank'!W234),\"\",'TA Indicator Bank'!W234)","v":0},{"$f":"IF(ISBLANK('TA Indicator Bank'!X234),\"\",'TA Indicator Bank'!X234)","v":0},{"$f":"IF(ISBLANK('TA Indicator Bank'!Y234),\"\",'TA Indicator Bank'!Y234)","v":0},{"$f":"IF(ISBLANK('TA Indicator Bank'!Z234),\"\",'TA Indicator Bank'!Z234)","v":0},{"$f":"IF(ISBLANK('TA Indicator Bank'!AA234),\"\",'TA Indicator Bank'!AA234)","v":0},{"$f":"IF(ISBLANK('TA Indicator Bank'!AB234),\"\",'TA Indicator Bank'!AB234)","v":0},{"$f":"IF(ISBLANK('TA Indicator Bank'!AC234),\"\",'TA Indicator Bank'!AC234)","v":0},{"$f":"IF(ISBLANK('TA Indicator Bank'!AD234),\"\",'TA Indicator Bank'!AD234)","v":1},{"$f":"IF(ISBLANK('TA Indicator Bank'!AE234),\"\",'TA Indicator Bank'!AE234)","v":0},{"$f":"IF(ISBLANK('TA Indicator Bank'!AF234),\"\",'TA Indicator Bank'!AF234)","v":0},{"$f":"IF(ISBLANK('TA Indicator Bank'!AG234),\"\",'TA Indicator Bank'!AG234)","v":0},{"$f":"IF(ISBLANK('TA Indicator Bank'!AH234),\"\",'TA Indicator Bank'!AH234)","v":0},{"$f":"IF(ISBLANK('TA Indicator Bank'!AI234),\"\",'TA Indicator Bank'!AI234)","v":0},{"$f":"IF(ISBLANK('TA Indicator Bank'!AJ234),\"\",'TA Indicator Bank'!AJ234)","v":0},{"$f":"IF(ISBLANK('TA Indicator Bank'!AK234),\"\",'TA Indicator Bank'!AK234)","v":0},{"$f":"IF(ISBLANK('TA Indicator Bank'!AL234),\"\",'TA Indicator Bank'!AL234)","v":0},{"$f":"IF(ISBLANK('TA Indicator Bank'!AM234),\"\",'TA Indicator Bank'!AM234)","v":0},{"$f":"IF(ISBLANK('TA Indicator Bank'!AN234),\"\",'TA Indicator Bank'!AN234)","v":0},{"$f":"IF(ISBLANK('TA Indicator Bank'!AO234),\"\",'TA Indicator Bank'!AO234)","v":0},{"$f":"IF(ISBLANK('TA Indicator Bank'!AP234),\"\",'TA Indicator Bank'!AP234)","v":0},{"$f":"IF(ISBLANK('TA Indicator Bank'!AQ234),\"\",'TA Indicator Bank'!AQ234)","v":0},{"$f":"IF(ISBLANK('TA Indicator Bank'!AR234),\"\",'TA Indicator Bank'!AR234)","v":1},{"$f":"IF(ISBLANK('TA Indicator Bank'!AS234),\"\",'TA Indicator Bank'!AS234)","v":0},{"$f":"IF(ISBLANK('TA Indicator Bank'!AT234),\"\",'TA Indicator Bank'!AT234)","v":0},{"$f":"IF(AND(J238=1,J$410=1),1,0)","v":0},{"$f":"IF(AND(K238=1,K$410=1),1,0)","v":0},0,0,0,0,0,0,0,0,0,0,0,0,1,0,0,0,0,0,0,1,0,0,1,0,0,0,0,0,0,0,0,0,1,{"$f":"IF(AND(AP238=1,AP$410=1),1,0)","v":0},{"$f":"IF(AND(AQ238=1,AQ$410=1),1,0)","v":0},{"$f":"IF(AND(AR238=1,AR$410=1),1,0)","v":1},{"$f":"IF(AND(AS238=1,AS$410=1),1,0)","v":0},{"$f":"IF(AND(AT238=1,AT$410=1),1,0)","v":0},1,1,230,230,{"$f":"IFERROR(SMALL($CL$9:$CL$408,CK238),\"\")","v":230},{"$f":"IFERROR(INDEX($B$9:$I$408,$CM238,COLUMNS($CN$9:CN238)),\"\")","v":"TA230"},{"$f":"IFERROR(INDEX($B$9:$I$408,$CM238,COLUMNS($CN$9:CO238)),\"\")","v":"Number of instruments designed to improve operations"},{"$f":"IFERROR(INDEX($B$9:$I$408,$CM238,COLUMNS($CN$9:CP238)),\"\")","v":"-"},{"$f":"IFERROR(INDEX($B$9:$I$408,$CM238,COLUMNS($CN$9:CQ238)),\"\")","v":"Output"},{"$f":"IFERROR(INDEX($B$9:$I$408,$CM238,COLUMNS($CN$9:CR238)),\"\")","v":"-"},{"$f":"IFERROR(INDEX($B$9:$I$408,$CM238,COLUMNS($CN$9:CS238)),\"\")","v":"Process/asset operation support"},{"$f":"IFERROR(INDEX($B$9:$I$408,$CM238,COLUMNS($CN$9:CT238)),\"\")","v":"-"},{"$f":"IFERROR(INDEX($B$9:$I$408,$CM238,COLUMNS($CN$9:CU238)),\"\")","v":"Number"}]
[null,{"$f":"IF(ISBLANK('TA Indicator Bank'!B235),\"\",'TA Indicator Bank'!B235)","v":"TA231"},{"$f":"IF(ISBLANK('TA Indicator Bank'!C235),\"\",'TA Indicator Bank'!C235)","v":"Number of alliances established with key stakeholders"},{"$f":"IF(ISBLANK('TA Indicator Bank'!D235),\"\",'TA Indicator Bank'!D235)","v":"-"},{"$f":"IF(ISBLANK('TA Indicator Bank'!E235),\"\",'TA Indicator Bank'!E235)","v":"Output"},{"$f":"IF(ISBLANK('TA Indicator Bank'!F235),\"\",'TA Indicator Bank'!F235)","v":"-"},{"$f":"IF(ISBLANK('TA Indicator Bank'!G235),\"\",'TA Indicator Bank'!G235)","v":"Process/asset operation support"},{"$f":"IF(ISBLANK('TA Indicator Bank'!H235),\"\",'TA Indicator Bank'!H235)","v":"-"},{"$f":"IF(ISBLANK('TA Indicator Bank'!I235),\"\",'TA Indicator Bank'!I235)","v":"Number"},{"$f":"IF(ISBLANK('TA Indicator Bank'!J235),\"\",'TA Indicator Bank'!J235)","v":0},{"$f":"IF(ISBLANK('TA Indicator Bank'!K235),\"\",'TA Indicator Bank'!K235)","v":0},{"$f":"IF(ISBLANK('TA Indicator Bank'!L235),\"\",'TA Indicator Bank'!L235)","v":0},{"$f":"IF(ISBLANK('TA Indicator Bank'!M235),\"\",'TA Indicator Bank'!M235)","v":0},{"$f":"IF(ISBLANK('TA Indicator Bank'!N235),\"\",'TA Indicator Bank'!N235)","v":0},{"$f":"IF(ISBLANK('TA Indicator Bank'!O235),\"\",'TA Indicator Bank'!O235)","v":0},{"$f":"IF(ISBLANK('TA Indicator Bank'!P235),\"\",'TA Indicator Bank'!P235)","v":0},{"$f":"IF(ISBLANK('TA Indicator Bank'!Q235),\"\",'TA Indicator Bank'!Q235)","v":0},{"$f":"IF(ISBLANK('TA Indicator Bank'!R235),\"\",'TA Indicator Bank'!R235)","v":0},{"$f":"IF(ISBLANK('TA Indicator Bank'!S235),\"\",'TA Indicator Bank'!S235)","v":0},{"$f":"IF(ISBLANK('TA Indicator Bank'!T235),\"\",'TA Indicator Bank'!T235)","v":0},{"$f":"IF(ISBLANK('TA Indicator Bank'!U235),\"\",'TA Indicator Bank'!U235)","v":0},{"$f":"IF(ISBLANK('TA Indicator Bank'!V235),\"\",'TA Indicator Bank'!V235)","v":0},{"$f":"IF(ISBLANK('TA Indicator Bank'!W235),\"\",'TA Indicator Bank'!W235)","v":0},{"$f":"IF(ISBLANK('TA Indicator Bank'!X235),\"\",'TA Indicator Bank'!X235)","v":0},{"$f":"IF(ISBLANK('TA Indicator Bank'!Y235),\"\",'TA Indicator Bank'!Y235)","v":0},{"$f":"IF(ISBLANK('TA Indicator Bank'!Z235),\"\",'TA Indicator Bank'!Z235)","v":0},{"$f":"IF(ISBLANK('TA Indicator Bank'!AA235),\"\",'TA Indicator Bank'!AA235)","v":0},{"$f":"IF(ISBLANK('TA Indicator Bank'!AB235),\"\",'TA Indicator Bank'!AB235)","v":0},{"$f":"IF(ISBLANK('TA Indicator Bank'!AC235),\"\",'TA Indicator Bank'!AC235)","v":0},{"$f":"IF(ISBLANK('TA Indicator Bank'!AD235),\"\",'TA Indicator Bank'!AD235)","v":1},{"$f":"IF(ISBLANK('TA Indicator Bank'!AE235),\"\",'TA Indicator Bank'!AE235)","v":0},{"$f":"IF(ISBLANK('TA Indicator Bank'!AF235),\"\",'TA Indicator Bank'!AF235)","v":0},{"$f":"IF(ISBLANK('TA Indicator Bank'!AG235),\"\",'TA Indicator Bank'!AG235)","v":0},{"$f":"IF(ISBLANK('TA Indicator Bank'!AH235),\"\",'TA Indicator Bank'!AH235)","v":0},{"$f":"IF(ISBLANK('TA Indicator Bank'!AI235),\"\",'TA Indicator Bank'!AI235)","v":0},{"$f":"IF(ISBLANK('TA Indicator Bank'!AJ235),\"\",'TA Indicator Bank'!AJ235)","v":0},{"$f":"IF(ISBLANK('TA Indicator Bank'!AK235),\"\",'TA Indicator Bank'!AK235)","v":0},{"$f":"IF(ISBLANK('TA Indicator Bank'!AL235),\"\",'TA Indicator Bank'!AL235)","v":0},{"$f":"IF(ISBLANK('TA Indicator Bank'!AM235),\"\",'TA Indicator Bank'!AM235)","v":0},{"$f":"IF(ISBLANK('TA Indicator Bank'!AN235),\"\",'TA Indicator Bank'!AN235)","v":0},{"$f":"IF(ISBLANK('TA Indicator Bank'!AO235),\"\",'TA Indicator Bank'!AO235)","v":0},{"$f":"IF(ISBLANK('TA Indicator Bank'!AP235),\"\",'TA Indicator Bank'!AP235)","v":0},{"$f":"IF(ISBLANK('TA Indicator Bank'!AQ235),\"\",'TA Indicator Bank'!AQ235)","v":0},{"$f":"IF(ISBLANK('TA Indicator Bank'!AR235),\"\",'TA Indicator Bank'!AR235)","v":1},{"$f":"IF(ISBLANK('TA Indicator Bank'!AS235),\"\",'TA Indicator Bank'!AS235)","v":0},{"$f":"IF(ISBLANK('TA Indicator Bank'!AT235),\"\",'TA Indicator Bank'!AT235)","v":0},0,0,0,0,0,0,0,0,0,0,0,0,0,0,1,0,0,0,0,0,0,1,0,0,1,0,0,0,0,0,0,0,0,0,1,{"$f":"IF(AND(AP239=1,AP$410=1),1,0)","v":0},{"$f":"IF(AND(AQ239=1,AQ$410=1),1,0)","v":0},{"$f":"IF(AND(AR239=1,AR$410=1),1,0)","v":1},{"$f":"IF(AND(AS239=1,AS$410=1),1,0)","v":0},{"$f":"IF(AND(AT239=1,AT$410=1),1,0)","v":0},1,1,231,231,{"$f":"IFERROR(SMALL($CL$9:$CL$408,CK239),\"\")","v":231},{"$f":"IFERROR(INDEX($B$9:$I$408,$CM239,COLUMNS($CN$9:CN239)),\"\")","v":"TA231"},{"$f":"IFERROR(INDEX($B$9:$I$408,$CM239,COLUMNS($CN$9:CO239)),\"\")","v":"Number of alliances established with key stakeholders"},{"$f":"IFERROR(INDEX($B$9:$I$408,$CM239,COLUMNS($CN$9:CP239)),\"\")","v":"-"},{"$f":"IFERROR(INDEX($B$9:$I$408,$CM239,COLUMNS($CN$9:CQ239)),\"\")","v":"Output"},{"$f":"IFERROR(INDEX($B$9:$I$408,$CM239,COLUMNS($CN$9:CR239)),\"\")","v":"-"},{"$f":"IFERROR(INDEX($B$9:$I$408,$CM239,COLUMNS($CN$9:CS239)),\"\")","v":"Process/asset operation support"},{"$f":"IFERROR(INDEX($B$9:$I$408,$CM239,COLUMNS($CN$9:CT239)),\"\")","v":"-"},{"$f":"IFERROR(INDEX($B$9:$I$408,$CM239,COLUMNS($CN$9:CU239)),\"\")","v":"Number"}]
[null,{"$f":"IF(ISBLANK('TA Indicator Bank'!B236),\"\",'TA Indicator Bank'!B236)","v":"TA232"},{"$f":"IF(ISBLANK('TA Indicator Bank'!C236),\"\",'TA Indicator Bank'!C236)","v":"Number of people not participating in programme using programme outputs (spillovers)"},{"$f":"IF(ISBLANK('TA Indicator Bank'!D236),\"\",'TA Indicator Bank'!D236)","v":"-"},{"$f":"IF(ISBLANK('TA Indicator Bank'!E236),\"\",'TA Indicator Bank'!E236)","v":"Uptake"},{"$f":"IF(ISBLANK('TA Indicator Bank'!F236),\"\",'TA Indicator Bank'!F236)","v":"Specialist research, inc. market / policy / legal / regulatory / technology research briefs"},{"$f":"IF(ISBLANK('TA Indicator Bank'!G236),\"\",'TA Indicator Bank'!G236)","v":"-"},{"$f":"IF(ISBLANK('TA Indicator Bank'!H236),\"\",'TA Indicator Bank'!H236)","v":"-"},{"$f":"IF(ISBLANK('TA Indicator Bank'!I236),\"\",'TA Indicator Bank'!I236)","v":"Number"},{"$f":"IF(ISBLANK('TA Indicator Bank'!J236),\"\",'TA Indicator Bank'!J236)","v":0},{"$f":"IF(ISBLANK('TA Indicator Bank'!K236),\"\",'TA Indicator Bank'!K236)","v":0},{"$f":"IF(ISBLANK('TA Indicator Bank'!L236),\"\",'TA Indicator Bank'!L236)","v":0},{"$f":"IF(ISBLANK('TA Indicator Bank'!M236),\"\",'TA Indicator Bank'!M236)","v":0},{"$f":"IF(ISBLANK('TA Indicator Bank'!N236),\"\",'TA Indicator Bank'!N236)","v":1},{"$f":"IF(ISBLANK('TA Indicator Bank'!O236),\"\",'TA Indicator Bank'!O236)","v":0},{"$f":"IF(ISBLANK('TA Indicator Bank'!P236),\"\",'TA Indicator Bank'!P236)","v":0},{"$f":"IF(ISBLANK('TA Indicator Bank'!Q236),\"\",'TA Indicator Bank'!Q236)","v":0},{"$f":"IF(ISBLANK('TA Indicator Bank'!R236),\"\",'TA Indicator Bank'!R236)","v":0},{"$f":"IF(ISBLANK('TA Indicator Bank'!S236),\"\",'TA Indicator Bank'!S236)","v":0},{"$f":"IF(ISBLANK('TA Indicator Bank'!T236),\"\",'TA Indicator Bank'!T236)","v":0},{"$f":"IF(ISBLANK('TA Indicator Bank'!U236),\"\",'TA Indicator Bank'!U236)","v":0},{"$f":"IF(ISBLANK('TA Indicator Bank'!V236),\"\",'TA Indicator Bank'!V236)","v":0},{"$f":"IF(ISBLANK('TA Indicator Bank'!W236),\"\",'TA Indicator Bank'!W236)","v":0},{"$f":"IF(ISBLANK('TA Indicator Bank'!X236),\"\",'TA Indicator Bank'!X236)","v":0},{"$f":"IF(ISBLANK('TA Indicator Bank'!Y236),\"\",'TA Indicator Bank'!Y236)","v":0},{"$f":"IF(ISBLANK('TA Indicator Bank'!Z236),\"\",'TA Indicator Bank'!Z236)","v":0},{"$f":"IF(ISBLANK('TA Indicator Bank'!AA236),\"\",'TA Indicator Bank'!AA236)","v":0},{"$f":"IF(ISBLANK('TA Indicator Bank'!AB236),\"\",'TA Indicator Bank'!AB236)","v":0},{"$f":"IF(ISBLANK('TA Indicator Bank'!AC236),\"\",'TA Indicator Bank'!AC236)","v":0},{"$f":"IF(ISBLANK('TA Indicator Bank'!AD236),\"\",'TA Indicator Bank'!AD236)","v":0},{"$f":"IF(ISBLANK('TA Indicator Bank'!AE236),\"\",'TA Indicator Bank'!AE236)","v":0},{"$f":"IF(ISBLANK('TA Indicator Bank'!AF236),\"\",'TA Indicator Bank'!AF236)","v":0},{"$f":"IF(ISBLANK('TA Indicator Bank'!AG236),\"\",'TA Indicator Bank'!AG236)","v":0},{"$f":"IF(ISBLANK('TA Indicator Bank'!AH236),\"\",'TA Indicator Bank'!AH236)","v":0},{"$f":"IF(ISBLANK('TA Indicator Bank'!AI236),\"\",'TA Indicator Bank'!AI236)","v":0},{"$f":"IF(ISBLANK('TA Indicator Bank'!AJ236),\"\",'TA Indicator Bank'!AJ236)","v":0},{"$f":"IF(ISBLANK('TA Indicator Bank'!AK236),\"\",'TA Indicator Bank'!AK236)","v":0},{"$f":"IF(ISBLANK('TA Indicator Bank'!AL236),\"\",'TA Indicator Bank'!AL236)","v":0},{"$f":"IF(ISBLANK('TA Indicator Bank'!AM236),\"\",'TA Indicator Bank'!AM236)","v":0},{"$f":"IF(ISBLANK('TA Indicator Bank'!AN236),\"\",'TA Indicator Bank'!AN236)","v":0},{"$f":"IF(ISBLANK('TA Indicator Bank'!AO236),\"\",'TA Indicator Bank'!AO236)","v":0},{"$f":"IF(ISBLANK('TA Indicator Bank'!AP236),\"\",'TA Indicator Bank'!AP236)","v":0},{"$f":"IF(ISBLANK('TA Indicator Bank'!AQ236),\"\",'TA Indicator Bank'!AQ236)","v":1},{"$f":"IF(ISBLANK('TA Indicator Bank'!AR236),\"\",'TA Indicator Bank'!AR236)","v":0},{"$f":"IF(ISBLANK('TA Indicator Bank'!AS236),\"\",'TA Indicator Bank'!AS236)","v":0},{"$f":"IF(ISBLANK('TA Indicator Bank'!AT236),\"\",'TA Indicator Bank'!AT236)","v":0},0,0,0,0,1,0,0,0,0,0,0,0,0,0,1,0,0,0,0,0,0,0,0,0,1,0,0,0,0,0,0,0,0,0,1,{"$f":"IF(AND(AP240=1,AP$410=1),1,0)","v":0},{"$f":"IF(AND(AQ240=1,AQ$410=1),1,0)","v":1},{"$f":"IF(AND(AR240=1,AR$410=1),1,0)","v":0},{"$f":"IF(AND(AS240=1,AS$410=1),1,0)","v":0},{"$f":"IF(AND(AT240=1,AT$410=1),1,0)","v":0},1,1,232,232,{"$f":"IFERROR(SMALL($CL$9:$CL$408,CK240),\"\")","v":232},{"$f":"IFERROR(INDEX($B$9:$I$408,$CM240,COLUMNS($CN$9:CN240)),\"\")","v":"TA232"},{"$f":"IFERROR(INDEX($B$9:$I$408,$CM240,COLUMNS($CN$9:CO240)),\"\")","v":"Number of people not participating in programme using programme outputs (spillovers)"},{"$f":"IFERROR(INDEX($B$9:$I$408,$CM240,COLUMNS($CN$9:CP240)),\"\")","v":"-"},{"$f":"IFERROR(INDEX($B$9:$I$408,$CM240,COLUMNS($CN$9:CQ240)),\"\")","v":"Uptake"},{"$f":"IFERROR(INDEX($B$9:$I$408,$CM240,COLUMNS($CN$9:CR240)),\"\")","v":"Specialist research, inc. market / policy / legal / regulatory / technology research briefs"},{"$f":"IFERROR(INDEX($B$9:$I$408,$CM240,COLUMNS($CN$9:CS240)),\"\")","v":"-"},{"$f":"IFERROR(INDEX($B$9:$I$408,$CM240,COLUMNS($CN$9:CT240)),\"\")","v":"-"},{"$f":"IFERROR(INDEX($B$9:$I$408,$CM240,COLUMNS($CN$9:CU240)),\"\")","v":"Number"}]
[null,{"$f":"IF(ISBLANK('TA Indicator Bank'!B237),\"\",'TA Indicator Bank'!B237)","v":"TA233"},{"$f":"IF(ISBLANK('TA Indicator Bank'!C237),\"\",'TA Indicator Bank'!C237)","v":"Country features in international rankings"},{"$f":"IF(ISBLANK('TA Indicator Bank'!D237),\"\",'TA Indicator Bank'!D237)","v":"-"},{"$f":"IF(ISBLANK('TA Indicator Bank'!E237),\"\",'TA Indicator Bank'!E237)","v":"Outcome"},{"$f":"IF(ISBLANK('TA Indicator Bank'!F237),\"\",'TA Indicator Bank'!F237)","v":"-"},{"$f":"IF(ISBLANK('TA Indicator Bank'!G237),\"\",'TA Indicator Bank'!G237)","v":"-"},{"$f":"IF(ISBLANK('TA Indicator Bank'!H237),\"\",'TA Indicator Bank'!H237)","v":"Improved operation of processes or assets (inc. e.g. electricity grid stability, agricultural livelihoods, forest management)"},{"$f":"IF(ISBLANK('TA Indicator Bank'!I237),\"\",'TA Indicator Bank'!I237)","v":"Yes/No"},{"$f":"IF(ISBLANK('TA Indicator Bank'!J237),\"\",'TA Indicator Bank'!J237)","v":0},{"$f":"IF(ISBLANK('TA Indicator Bank'!K237),\"\",'TA Indicator Bank'!K237)","v":0},{"$f":"IF(ISBLANK('TA Indicator Bank'!L237),\"\",'TA Indicator Bank'!L237)","v":0},{"$f":"IF(ISBLANK('TA Indicator Bank'!M237),\"\",'TA Indicator Bank'!M237)","v":0},{"$f":"IF(ISBLANK('TA Indicator Bank'!N237),\"\",'TA Indicator Bank'!N237)","v":0},{"$f":"IF(ISBLANK('TA Indicator Bank'!O237),\"\",'TA Indicator Bank'!O237)","v":0},{"$f":"IF(ISBLANK('TA Indicator Bank'!P237),\"\",'TA Indicator Bank'!P237)","v":0},{"$f":"IF(ISBLANK('TA Indicator Bank'!Q237),\"\",'TA Indicator Bank'!Q237)","v":0},{"$f":"IF(ISBLANK('TA Indicator Bank'!R237),\"\",'TA Indicator Bank'!R237)","v":0},{"$f":"IF(ISBLANK('TA Indicator Bank'!S237),\"\",'TA Indicator Bank'!S237)","v":0},{"$f":"IF(ISBLANK('TA Indicator Bank'!T237),\"\",'TA Indicator Bank'!T237)","v":0},{"$f":"IF(ISBLANK('TA Indicator Bank'!U237),\"\",'TA Indicator Bank'!U237)","v":0},{"$f":"IF(ISBLANK('TA Indicator Bank'!V237),\"\",'TA Indicator Bank'!V237)","v":0},{"$f":"IF(ISBLANK('TA Indicator Bank'!W237),\"\",'TA Indicator Bank'!W237)","v":0},{"$f":"IF(ISBLANK('TA Indicator Bank'!X237),\"\",'TA Indicator Bank'!X237)","v":0},{"$f":"IF(ISBLANK('TA Indicator Bank'!Y237),\"\",'TA Indicator Bank'!Y237)","v":0},{"$f":"IF(ISBLANK('TA Indicator Bank'!Z237),\"\",'TA Indicator Bank'!Z237)","v":0},{"$f":"IF(ISBLANK('TA Indicator Bank'!AA237),\"\",'TA Indicator Bank'!AA237)","v":0},{"$f":"IF(ISBLANK('TA Indicator Bank'!AB237),\"\",'TA Indicator Bank'!AB237)","v":0},{"$f":"IF(ISBLANK('TA Indicator Bank'!AC237),\"\",'TA Indicator Bank'!AC237)","v":0},{"$f":"IF(ISBLANK('TA Indicator Bank'!AD237),\"\",'TA Indicator Bank'!AD237)","v":0},{"$f":"IF(ISBLANK('TA Indicator Bank'!AE237),\"\",'TA Indicator Bank'!AE237)","v":0},{"$f":"IF(ISBLANK('TA Indicator Bank'!AF237),\"\",'TA Indicator Bank'!AF237)","v":0},{"$f":"IF(ISBLANK('TA Indicator Bank'!AG237),\"\",'TA Indicator Bank'!AG237)","v":0},{"$f":"IF(ISBLANK('TA Indicator Bank'!AH237),\"\",'TA Indicator Bank'!AH237)","v":0},{"$f":"IF(ISBLANK('TA Indicator Bank'!AI237),\"\",'TA Indicator Bank'!AI237)","v":0},{"$f":"IF(ISBLANK('TA Indicator Bank'!AJ237),\"\",'TA Indicator Bank'!AJ237)","v":0},{"$f":"IF(ISBLANK('TA Indicator Bank'!AK237),\"\",'TA Indicator Bank'!AK237)","v":0},{"$f":"IF(ISBLANK('TA Indicator Bank'!AL237),\"\",'TA Indicator Bank'!AL237)","v":1},{"$f":"IF(ISBLANK('TA Indicator Bank'!AM237),\"\",'TA Indicator Bank'!AM237)","v":0},{"$f":"IF(ISBLANK('TA Indicator Bank'!AN237),\"\",'TA Indicator Bank'!AN237)","v":0},{"$f":"IF(ISBLANK('TA Indicator Bank'!AO237),\"\",'TA Indicator Bank'!AO237)","v":0},{"$f":"IF(ISBLANK('TA Indicator Bank'!AP237),\"\",'TA Indicator Bank'!AP237)","v":0},{"$f":"IF(ISBLANK('TA Indicator Bank'!AQ237),\"\",'TA Indicator Bank'!AQ237)","v":0},{"$f":"IF(ISBLANK('TA Indicator Bank'!AR237),\"\",'TA Indicator Bank'!AR237)","v":0},{"$f":"IF(ISBLANK('TA Indicator Bank'!AS237),\"\",'TA Indicator Bank'!AS237)","v":1},{"$f":"IF(ISBLANK('TA Indicator Bank'!AT237),\"\",'TA Indicator Bank'!AT237)","v":0},0,0,0,0,0,0,0,0,0,0,0,0,0,0,1,0,0,0,0,0,0,0,0,0,1,0,0,0,0,0,1,0,0,0,1,{"$f":"IF(AND(AP241=1,AP$410=1),1,0)","v":0},{"$f":"IF(AND(AQ241=1,AQ$410=1),1,0)","v":0},{"$f":"IF(AND(AR241=1,AR$410=1),1,0)","v":0},{"$f":"IF(AND(AS241=1,AS$410=1),1,0)","v":1},{"$f":"IF(AND(AT241=1,AT$410=1),1,0)","v":0},1,1,233,233,{"$f":"IFERROR(SMALL($CL$9:$CL$408,CK241),\"\")","v":233},{"$f":"IFERROR(INDEX($B$9:$I$408,$CM241,COLUMNS($CN$9:CN241)),\"\")","v":"TA233"},{"$f":"IFERROR(INDEX($B$9:$I$408,$CM241,COLUMNS($CN$9:CO241)),\"\")","v":"Country features in international rankings"},{"$f":"IFERROR(INDEX($B$9:$I$408,$CM241,COLUMNS($CN$9:CP241)),\"\")","v":"-"},{"$f":"IFERROR(INDEX($B$9:$I$408,$CM241,COLUMNS($CN$9:CQ241)),\"\")","v":"Outcome"},{"$f":"IFERROR(INDEX($B$9:$I$408,$CM241,COLUMNS($CN$9:CR241)),\"\")","v":"-"},{"$f":"IFERROR(INDEX($B$9:$I$408,$CM241,COLUMNS($CN$9:CS241)),\"\")","v":"-"},{"$f":"IFERROR(INDEX($B$9:$I$408,$CM241,COLUMNS($CN$9:CT241)),\"\")","v":"Improved operation of processes or assets (inc. e.g. electricity grid stability, agricultural livelihoods, forest management)"},{"$f":"IFERROR(INDEX($B$9:$I$408,$CM241,COLUMNS($CN$9:CU241)),\"\")","v":"Yes/No"}]
[null,{"$f":"IF(ISBLANK('TA Indicator Bank'!B238),\"\",'TA Indicator Bank'!B238)","v":"TA234"},{"$f":"IF(ISBLANK('TA Indicator Bank'!C238),\"\",'TA Indicator Bank'!C238)","v":"Reduction in average time needed to process certain operations"},{"$f":"IF(ISBLANK('TA Indicator Bank'!D238),\"\",'TA Indicator Bank'!D238)","v":"-"},{"$f":"IF(ISBLANK('TA Indicator Bank'!E238),\"\",'TA Indicator Bank'!E238)","v":"Outcome"},{"$f":"IF(ISBLANK('TA Indicator Bank'!F238),\"\",'TA Indicator Bank'!F238)","v":"-"},{"$f":"IF(ISBLANK('TA Indicator Bank'!G238),\"\",'TA Indicator Bank'!G238)","v":"-"},{"$f":"IF(ISBLANK('TA Indicator Bank'!H238),\"\",'TA Indicator Bank'!H238)","v":"Improved operation of processes or assets (inc. e.g. electricity grid stability, agricultural livelihoods, forest management)"},{"$f":"IF(ISBLANK('TA Indicator Bank'!I238),\"\",'TA Indicator Bank'!I238)","v":"Number"},{"$f":"IF(ISBLANK('TA Indicator Bank'!J238),\"\",'TA Indicator Bank'!J238)","v":0},{"$f":"IF(ISBLANK('TA Indicator Bank'!K238),\"\",'TA Indicator Bank'!K238)","v":0},{"$f":"IF(ISBLANK('TA Indicator Bank'!L238),\"\",'TA Indicator Bank'!L238)","v":0},{"$f":"IF(ISBLANK('TA Indicator Bank'!M238),\"\",'TA Indicator Bank'!M238)","v":0},{"$f":"IF(ISBLANK('TA Indicator Bank'!N238),\"\",'TA Indicator Bank'!N238)","v":0},{"$f":"IF(ISBLANK('TA Indicator Bank'!O238),\"\",'TA Indicator Bank'!O238)","v":0},{"$f":"IF(ISBLANK('TA Indicator Bank'!P238),\"\",'TA Indicator Bank'!P238)","v":0},{"$f":"IF(ISBLANK('TA Indicator Bank'!Q238),\"\",'TA Indicator Bank'!Q238)","v":0},{"$f":"IF(ISBLANK('TA Indicator Bank'!R238),\"\",'TA Indicator Bank'!R238)","v":0},{"$f":"IF(ISBLANK('TA Indicator Bank'!S238),\"\",'TA Indicator Bank'!S238)","v":0},{"$f":"IF(ISBLANK('TA Indicator Bank'!T238),\"\",'TA Indicator Bank'!T238)","v":0},{"$f":"IF(ISBLANK('TA Indicator Bank'!U238),\"\",'TA Indicator Bank'!U238)","v":0},{"$f":"IF(ISBLANK('TA Indicator Bank'!V238),\"\",'TA Indicator Bank'!V238)","v":0},{"$f":"IF(ISBLANK('TA Indicator Bank'!W238),\"\",'TA Indicator Bank'!W238)","v":0},{"$f":"IF(ISBLANK('TA Indicator Bank'!X238),\"\",'TA Indicator Bank'!X238)","v":0},{"$f":"IF(ISBLANK('TA Indicator Bank'!Y238),\"\",'TA Indicator Bank'!Y238)","v":0},{"$f":"IF(ISBLANK('TA Indicator Bank'!Z238),\"\",'TA Indicator Bank'!Z238)","v":0},{"$f":"IF(ISBLANK('TA Indicator Bank'!AA238),\"\",'TA Indicator Bank'!AA238)","v":0},{"$f":"IF(ISBLANK('TA Indicator Bank'!AB238),\"\",'TA Indicator Bank'!AB238)","v":0},{"$f":"IF(ISBLANK('TA Indicator Bank'!AC238),\"\",'TA Indicator Bank'!AC238)","v":0},{"$f":"IF(ISBLANK('TA Indicator Bank'!AD238),\"\",'TA Indicator Bank'!AD238)","v":0},{"$f":"IF(ISBLANK('TA Indicator Bank'!AE238),\"\",'TA Indicator Bank'!AE238)","v":0},{"$f":"IF(ISBLANK('TA Indicator Bank'!AF238),\"\",'TA Indicator Bank'!AF238)","v":0},{"$f":"IF(ISBLANK('TA Indicator Bank'!AG238),\"\",'TA Indicator Bank'!AG238)","v":0},{"$f":"IF(ISBLANK('TA Indicator Bank'!AH238),\"\",'TA Indicator Bank'!AH238)","v":0},{"$f":"IF(ISBLANK('TA Indicator Bank'!AI238),\"\",'TA Indicator Bank'!AI238)","v":0},{"$f":"IF(ISBLANK('TA Indicator Bank'!AJ238),\"\",'TA Indicator Bank'!AJ238)","v":0},{"$f":"IF(ISBLANK('TA Indicator Bank'!AK238),\"\",'TA Indicator Bank'!AK238)","v":0},{"$f":"IF(ISBLANK('TA Indicator Bank'!AL238),\"\",'TA Indicator Bank'!AL238)","v":1},{"$f":"IF(ISBLANK('TA Indicator Bank'!AM238),\"\",'TA Indicator Bank'!AM238)","v":0},{"$f":"IF(ISBLANK('TA Indicator Bank'!AN238),\"\",'TA Indicator Bank'!AN238)","v":0},{"$f":"IF(ISBLANK('TA Indicator Bank'!AO238),\"\",'TA Indicator Bank'!AO238)","v":0},{"$f":"IF(ISBLANK('TA Indicator Bank'!AP238),\"\",'TA Indicator Bank'!AP238)","v":0},{"$f":"IF(ISBLANK('TA Indicator Bank'!AQ238),\"\",'TA Indicator Bank'!AQ238)","v":0},{"$f":"IF(ISBLANK('TA Indicator Bank'!AR238),\"\",'TA Indicator Bank'!AR238)","v":0},{"$f":"IF(ISBLANK('TA Indicator Bank'!AS238),\"\",'TA Indicator Bank'!AS238)","v":1},{"$f":"IF(ISBLANK('TA Indicator Bank'!AT238),\"\",'TA Indicator Bank'!AT238)","v":0},0,0,0,0,0,0,0,0,0,0,0,0,0,0,1,0,0,0,0,0,0,0,0,0,1,0,0,0,0,0,1,0,0,0,1,{"$f":"IF(AND(AP242=1,AP$410=1),1,0)","v":0},{"$f":"IF(AND(AQ242=1,AQ$410=1),1,0)","v":0},{"$f":"IF(AND(AR242=1,AR$410=1),1,0)","v":0},{"$f":"IF(AND(AS242=1,AS$410=1),1,0)","v":1},{"$f":"IF(AND(AT242=1,AT$410=1),1,0)","v":0},1,1,234,234,{"$f":"IFERROR(SMALL($CL$9:$CL$408,CK242),\"\")","v":234},{"$f":"IFERROR(INDEX($B$9:$I$408,$CM242,COLUMNS($CN$9:CN242)),\"\")","v":"TA234"},{"$f":"IFERROR(INDEX($B$9:$I$408,$CM242,COLUMNS($CN$9:CO242)),\"\")","v":"Reduction in average time needed to process certain operations"},{"$f":"IFERROR(INDEX($B$9:$I$408,$CM242,COLUMNS($CN$9:CP242)),\"\")","v":"-"},{"$f":"IFERROR(INDEX($B$9:$I$408,$CM242,COLUMNS($CN$9:CQ242)),\"\")","v":"Outcome"},{"$f":"IFERROR(INDEX($B$9:$I$408,$CM242,COLUMNS($CN$9:CR242)),\"\")","v":"-"},{"$f":"IFERROR(INDEX($B$9:$I$408,$CM242,COLUMNS($CN$9:CS242)),\"\")","v":"-"},{"$f":"IFERROR(INDEX($B$9:$I$408,$CM242,COLUMNS($CN$9:CT242)),\"\")","v":"Improved operation of processes or assets (inc. e.g. electricity grid stability, agricultural livelihoods, forest management)"},{"$f":"IFERROR(INDEX($B$9:$I$408,$CM242,COLUMNS($CN$9:CU242)),\"\")","v":"Number"}]
[null,{"$f":"IF(ISBLANK('TA Indicator Bank'!B239),\"\",'TA Indicator Bank'!B239)","v":"TA235"},{"$f":"IF(ISBLANK('TA Indicator Bank'!C239),\"\",'TA Indicator Bank'!C239)","v":"Units that reduce average time needed to process certain operation beyond a certain threshold"},{"$f":"IF(ISBLANK('TA Indicator Bank'!D239),\"\",'TA Indicator Bank'!D239)","v":"-"},{"$f":"IF(ISBLANK('TA Indicator Bank'!E239),\"\",'TA Indicator Bank'!E239)","v":"Outcome"},{"$f":"IF(ISBLANK('TA Indicator Bank'!F239),\"\",'TA Indicator Bank'!F239)","v":"-"},{"$f":"IF(ISBLANK('TA Indicator Bank'!G239),\"\",'TA Indicator Bank'!G239)","v":"-"},{"$f":"IF(ISBLANK('TA Indicator Bank'!H239),\"\",'TA Indicator Bank'!H239)","v":"Improved operation of processes or assets (inc. e.g. electricity grid stability, agricultural livelihoods, forest management)"},{"$f":"IF(ISBLANK('TA Indicator Bank'!I239),\"\",'TA Indicator Bank'!I239)","v":"Yes/No"},{"$f":"IF(ISBLANK('TA Indicator Bank'!J239),\"\",'TA Indicator Bank'!J239)","v":0},{"$f":"IF(ISBLANK('TA Indicator Bank'!K239),\"\",'TA Indicator Bank'!K239)","v":0},{"$f":"IF(ISBLANK('TA Indicator Bank'!L239),\"\",'TA Indicator Bank'!L239)","v":0},{"$f":"IF(ISBLANK('TA Indicator Bank'!M239),\"\",'TA Indicator Bank'!M239)","v":0},{"$f":"IF(ISBLANK('TA Indicator Bank'!N239),\"\",'TA Indicator Bank'!N239)","v":0},{"$f":"IF(ISBLANK('TA Indicator Bank'!O239),\"\",'TA Indicator Bank'!O239)","v":0},{"$f":"IF(ISBLANK('TA Indicator Bank'!P239),\"\",'TA Indicator Bank'!P239)","v":0},{"$f":"IF(ISBLANK('TA Indicator Bank'!Q239),\"\",'TA Indicator Bank'!Q239)","v":0},{"$f":"IF(ISBLANK('TA Indicator Bank'!R239),\"\",'TA Indicator Bank'!R239)","v":0},{"$f":"IF(ISBLANK('TA Indicator Bank'!S239),\"\",'TA Indicator Bank'!S239)","v":0},{"$f":"IF(ISBLANK('TA Indicator Bank'!T239),\"\",'TA Indicator Bank'!T239)","v":0},{"$f":"IF(ISBLANK('TA Indicator Bank'!U239),\"\",'TA Indicator Bank'!U239)","v":0},{"$f":"IF(ISBLANK('TA Indicator Bank'!V239),\"\",'TA Indicator Bank'!V239)","v":0},{"$f":"IF(ISBLANK('TA Indicator Bank'!W239),\"\",'TA Indicator Bank'!W239)","v":0},{"$f":"IF(ISBLANK('TA Indicator Bank'!X239),\"\",'TA Indicator Bank'!X239)","v":0},{"$f":"IF(ISBLANK('TA Indicator Bank'!Y239),\"\",'TA Indicator Bank'!Y239)","v":0},{"$f":"IF(ISBLANK('TA Indicator Bank'!Z239),\"\",'TA Indicator Bank'!Z239)","v":0},{"$f":"IF(ISBLANK('TA Indicator Bank'!AA239),\"\",'TA Indicator Bank'!AA239)","v":0},{"$f":"IF(ISBLANK('TA Indicator Bank'!AB239),\"\",'TA Indicator Bank'!AB239)","v":0},{"$f":"IF(ISBLANK('TA Indicator Bank'!AC239),\"\",'TA Indicator Bank'!AC239)","v":0},{"$f":"IF(ISBLANK('TA Indicator Bank'!AD239),\"\",'TA Indicator Bank'!AD239)","v":0},{"$f":"IF(ISBLANK('TA Indicator Bank'!AE239),\"\",'TA Indicator Bank'!AE239)","v":0},{"$f":"IF(ISBLANK('TA Indicator Bank'!AF239),\"\",'TA Indicator Bank'!AF239)","v":0},{"$f":"IF(ISBLANK('TA Indicator Bank'!AG239),\"\",'TA Indicator Bank'!AG239)","v":0},{"$f":"IF(ISBLANK('TA Indicator Bank'!AH239),\"\",'TA Indicator Bank'!AH239)","v":0},{"$f":"IF(ISBLANK('TA Indicator Bank'!AI239),\"\",'TA Indicator Bank'!AI239)","v":0},{"$f":"IF(ISBLANK('TA Indicator Bank'!AJ239),\"\",'TA Indicator Bank'!AJ239)","v":0},{"$f":"IF(ISBLANK('TA Indicator Bank'!AK239),\"\",'TA Indicator Bank'!AK239)","v":0},{"$f":"IF(ISBLANK('TA Indicator Bank'!AL239),\"\",'TA Indicator Bank'!AL239)","v":1},{"$f":"IF(ISBLANK('TA Indicator Bank'!AM239),\"\",'TA Indicator Bank'!AM239)","v":0},{"$f":"IF(ISBLANK('TA Indicator Bank'!AN239),\"\",'TA Indicator Bank'!AN239)","v":0},{"$f":"IF(ISBLANK('TA Indicator Bank'!AO239),\"\",'TA Indicator Bank'!AO239)","v":0},{"$f":"IF(ISBLANK('TA Indicator Bank'!AP239),\"\",'TA Indicator Bank'!AP239)","v":0},{"$f":"IF(ISBLANK('TA Indicator Bank'!AQ239),\"\",'TA Indicator Bank'!AQ239)","v":0},{"$f":"IF(ISBLANK('TA Indicator Bank'!AR239),\"\",'TA Indicator Bank'!AR239)","v":0},{"$f":"IF(ISBLANK('TA Indicator Bank'!AS239),\"\",'TA Indicator Bank'!AS239)","v":1},{"$f":"IF(ISBLANK('TA Indicator Bank'!AT239),\"\",'TA Indicator Bank'!AT239)","v":0},0,0,0,0,0,0,0,0,0,0,0,0,0,0,1,0,0,0,0,0,0,0,0,0,1,0,0,0,0,0,1,0,0,0,1,{"$f":"IF(AND(AP243=1,AP$410=1),1,0)","v":0},{"$f":"IF(AND(AQ243=1,AQ$410=1),1,0)","v":0},{"$f":"IF(AND(AR243=1,AR$410=1),1,0)","v":0},{"$f":"IF(AND(AS243=1,AS$410=1),1,0)","v":1},{"$f":"IF(AND(AT243=1,AT$410=1),1,0)","v":0},1,1,235,235,{"$f":"IFERROR(SMALL($CL$9:$CL$408,CK243),\"\")","v":235},{"$f":"IFERROR(INDEX($B$9:$I$408,$CM243,COLUMNS($CN$9:CN243)),\"\")","v":"TA235"},{"$f":"IFERROR(INDEX($B$9:$I$408,$CM243,COLUMNS($CN$9:CO243)),\"\")","v":"Units that reduce average time needed to process certain operation beyond a certain threshold"},{"$f":"IFERROR(INDEX($B$9:$I$408,$CM243,COLUMNS($CN$9:CP243)),\"\")","v":"-"},{"$f":"IFERROR(INDEX($B$9:$I$408,$CM243,COLUMNS($CN$9:CQ243)),\"\")","v":"Outcome"},{"$f":"IFERROR(INDEX($B$9:$I$408,$CM243,COLUMNS($CN$9:CR243)),\"\")","v":"-"},{"$f":"IFERROR(INDEX($B$9:$I$408,$CM243,COLUMNS($CN$9:CS243)),\"\")","v":"-"},{"$f":"IFERROR(INDEX($B$9:$I$408,$CM243,COLUMNS($CN$9:CT243)),\"\")","v":"Improved operation of processes or assets (inc. e.g. electricity grid stability, agricultural livelihoods, forest management)"},{"$f":"IFERROR(INDEX($B$9:$I$408,$CM243,COLUMNS($CN$9:CU243)),\"\")","v":"Yes/No"}]
[null,{"$f":"IF(ISBLANK('TA Indicator Bank'!B240),\"\",'TA Indicator Bank'!B240)","v":"TA236"},{"$f":"IF(ISBLANK('TA Indicator Bank'!C240),\"\",'TA Indicator Bank'!C240)","v":"Reduction in accidents, damage or hazardous events"},{"$f":"IF(ISBLANK('TA Indicator Bank'!D240),\"\",'TA Indicator Bank'!D240)","v":"-"},{"$f":"IF(ISBLANK('TA Indicator Bank'!E240),\"\",'TA Indicator Bank'!E240)","v":"Outcome"},{"$f":"IF(ISBLANK('TA Indicator Bank'!F240),\"\",'TA Indicator Bank'!F240)","v":"-"},{"$f":"IF(ISBLANK('TA Indicator Bank'!G240),\"\",'TA Indicator Bank'!G240)","v":"-"},{"$f":"IF(ISBLANK('TA Indicator Bank'!H240),\"\",'TA Indicator Bank'!H240)","v":"Improved operation of processes or assets (inc. e.g. electricity grid stability, agricultural livelihoods, forest management)"},{"$f":"IF(ISBLANK('TA Indicator Bank'!I240),\"\",'TA Indicator Bank'!I240)","v":"Number"},{"$f":"IF(ISBLANK('TA Indicator Bank'!J240),\"\",'TA Indicator Bank'!J240)","v":0},{"$f":"IF(ISBLANK('TA Indicator Bank'!K240),\"\",'TA Indicator Bank'!K240)","v":0},{"$f":"IF(ISBLANK('TA Indicator Bank'!L240),\"\",'TA Indicator Bank'!L240)","v":0},{"$f":"IF(ISBLANK('TA Indicator Bank'!M240),\"\",'TA Indicator Bank'!M240)","v":0},{"$f":"IF(ISBLANK('TA Indicator Bank'!N240),\"\",'TA Indicator Bank'!N240)","v":0},{"$f":"IF(ISBLANK('TA Indicator Bank'!O240),\"\",'TA Indicator Bank'!O240)","v":0},{"$f":"IF(ISBLANK('TA Indicator Bank'!P240),\"\",'TA Indicator Bank'!P240)","v":0},{"$f":"IF(ISBLANK('TA Indicator Bank'!Q240),\"\",'TA Indicator Bank'!Q240)","v":0},{"$f":"IF(ISBLANK('TA Indicator Bank'!R240),\"\",'TA Indicator Bank'!R240)","v":0},{"$f":"IF(ISBLANK('TA Indicator Bank'!S240),\"\",'TA Indicator Bank'!S240)","v":0},{"$f":"IF(ISBLANK('TA Indicator Bank'!T240),\"\",'TA Indicator Bank'!T240)","v":0},{"$f":"IF(ISBLANK('TA Indicator Bank'!U240),\"\",'TA Indicator Bank'!U240)","v":0},{"$f":"IF(ISBLANK('TA Indicator Bank'!V240),\"\",'TA Indicator Bank'!V240)","v":0},{"$f":"IF(ISBLANK('TA Indicator Bank'!W240),\"\",'TA Indicator Bank'!W240)","v":0},{"$f":"IF(ISBLANK('TA Indicator Bank'!X240),\"\",'TA Indicator Bank'!X240)","v":0},{"$f":"IF(ISBLANK('TA Indicator Bank'!Y240),\"\",'TA Indicator Bank'!Y240)","v":0},{"$f":"IF(ISBLANK('TA Indicator Bank'!Z240),\"\",'TA Indicator Bank'!Z240)","v":0},{"$f":"IF(ISBLANK('TA Indicator Bank'!AA240),\"\",'TA Indicator Bank'!AA240)","v":0},{"$f":"IF(ISBLANK('TA Indicator Bank'!AB240),\"\",'TA Indicator Bank'!AB240)","v":0},{"$f":"IF(ISBLANK('TA Indicator Bank'!AC240),\"\",'TA Indicator Bank'!AC240)","v":0},{"$f":"IF(ISBLANK('TA Indicator Bank'!AD240),\"\",'TA Indicator Bank'!AD240)","v":0},{"$f":"IF(ISBLANK('TA Indicator Bank'!AE240),\"\",'TA Indicator Bank'!AE240)","v":0},{"$f":"IF(ISBLANK('TA Indicator Bank'!AF240),\"\",'TA Indicator Bank'!AF240)","v":0},{"$f":"IF(ISBLANK('TA Indicator Bank'!AG240),\"\",'TA Indicator Bank'!AG240)","v":0},{"$f":"IF(ISBLANK('TA Indicator Bank'!AH240),\"\",'TA Indicator Bank'!AH240)","v":0},{"$f":"IF(ISBLANK('TA Indicator Bank'!AI240),\"\",'TA Indicator Bank'!AI240)","v":0},{"$f":"IF(ISBLANK('TA Indicator Bank'!AJ240),\"\",'TA Indicator Bank'!AJ240)","v":0},{"$f":"IF(ISBLANK('TA Indicator Bank'!AK240),\"\",'TA Indicator Bank'!AK240)","v":0},{"$f":"IF(ISBLANK('TA Indicator Bank'!AL240),\"\",'TA Indicator Bank'!AL240)","v":1},{"$f":"IF(ISBLANK('TA Indicator Bank'!AM240),\"\",'TA Indicator Bank'!AM240)","v":0},{"$f":"IF(ISBLANK('TA Indicator Bank'!AN240),\"\",'TA Indicator Bank'!AN240)","v":0},{"$f":"IF(ISBLANK('TA Indicator Bank'!AO240),\"\",'TA Indicator Bank'!AO240)","v":0},{"$f":"IF(ISBLANK('TA Indicator Bank'!AP240),\"\",'TA Indicator Bank'!AP240)","v":0},{"$f":"IF(ISBLANK('TA Indicator Bank'!AQ240),\"\",'TA Indicator Bank'!AQ240)","v":0},{"$f":"IF(ISBLANK('TA Indicator Bank'!AR240),\"\",'TA Indicator Bank'!AR240)","v":0},{"$f":"IF(ISBLANK('TA Indicator Bank'!AS240),\"\",'TA Indicator Bank'!AS240)","v":1},{"$f":"IF(ISBLANK('TA Indicator Bank'!AT240),\"\",'TA Indicator Bank'!AT240)","v":0},0,0,0,0,0,0,0,0,0,0,0,0,0,0,1,0,0,0,0,0,0,0,0,0,1,0,0,0,0,0,1,0,0,0,1,{"$f":"IF(AND(AP244=1,AP$410=1),1,0)","v":0},{"$f":"IF(AND(AQ244=1,AQ$410=1),1,0)","v":0},{"$f":"IF(AND(AR244=1,AR$410=1),1,0)","v":0},{"$f":"IF(AND(AS244=1,AS$410=1),1,0)","v":1},{"$f":"IF(AND(AT244=1,AT$410=1),1,0)","v":0},1,1,236,236,{"$f":"IFERROR(SMALL($CL$9:$CL$408,CK244),\"\")","v":236},{"$f":"IFERROR(INDEX($B$9:$I$408,$CM244,COLUMNS($CN$9:CN244)),\"\")","v":"TA236"},{"$f":"IFERROR(INDEX($B$9:$I$408,$CM244,COLUMNS($CN$9:CO244)),\"\")","v":"Reduction in accidents, damage or hazardous events"},{"$f":"IFERROR(INDEX($B$9:$I$408,$CM244,COLUMNS($CN$9:CP244)),\"\")","v":"-"},{"$f":"IFERROR(INDEX($B$9:$I$408,$CM244,COLUMNS($CN$9:CQ244)),\"\")","v":"Outcome"},{"$f":"IFERROR(INDEX($B$9:$I$408,$CM244,COLUMNS($CN$9:CR244)),\"\")","v":"-"},{"$f":"IFERROR(INDEX($B$9:$I$408,$CM244,COLUMNS($CN$9:CS244)),\"\")","v":"-"},{"$f":"IFERROR(INDEX($B$9:$I$408,$CM244,COLUMNS($CN$9:CT244)),\"\")","v":"Improved operation of processes or assets (inc. e.g. electricity grid stability, agricultural livelihoods, forest management)"},{"$f":"IFERROR(INDEX($B$9:$I$408,$CM244,COLUMNS($CN$9:CU244)),\"\")","v":"Number"}]
[null,{"$f":"IF(ISBLANK('TA Indicator Bank'!B241),\"\",'TA Indicator Bank'!B241)","v":"TA237"},{"$f":"IF(ISBLANK('TA Indicator Bank'!C241),\"\",'TA Indicator Bank'!C241)","v":"Evidence of data-driven decision-making"},{"$f":"IF(ISBLANK('TA Indicator Bank'!D241),\"\",'TA Indicator Bank'!D241)","v":"-"},{"$f":"IF(ISBLANK('TA Indicator Bank'!E241),\"\",'TA Indicator Bank'!E241)","v":"Output"},{"$f":"IF(ISBLANK('TA Indicator Bank'!F241),\"\",'TA Indicator Bank'!F241)","v":"-"},{"$f":"IF(ISBLANK('TA Indicator Bank'!G241),\"\",'TA Indicator Bank'!G241)","v":"Process/asset operation support"},{"$f":"IF(ISBLANK('TA Indicator Bank'!H241),\"\",'TA Indicator Bank'!H241)","v":"-"},{"$f":"IF(ISBLANK('TA Indicator Bank'!I241),\"\",'TA Indicator Bank'!I241)","v":"Narrative"},{"$f":"IF(ISBLANK('TA Indicator Bank'!J241),\"\",'TA Indicator Bank'!J241)","v":0},{"$f":"IF(ISBLANK('TA Indicator Bank'!K241),\"\",'TA Indicator Bank'!K241)","v":0},{"$f":"IF(ISBLANK('TA Indicator Bank'!L241),\"\",'TA Indicator Bank'!L241)","v":0},{"$f":"IF(ISBLANK('TA Indicator Bank'!M241),\"\",'TA Indicator Bank'!M241)","v":0},{"$f":"IF(ISBLANK('TA Indicator Bank'!N241),\"\",'TA Indicator Bank'!N241)","v":0},{"$f":"IF(ISBLANK('TA Indicator Bank'!O241),\"\",'TA Indicator Bank'!O241)","v":0},{"$f":"IF(ISBLANK('TA Indicator Bank'!P241),\"\",'TA Indicator Bank'!P241)","v":0},{"$f":"IF(ISBLANK('TA Indicator Bank'!Q241),\"\",'TA Indicator Bank'!Q241)","v":0},{"$f":"IF(ISBLANK('TA Indicator Bank'!R241),\"\",'TA Indicator Bank'!R241)","v":0},{"$f":"IF(ISBLANK('TA Indicator Bank'!S241),\"\",'TA Indicator Bank'!S241)","v":0},{"$f":"IF(ISBLANK('TA Indicator Bank'!T241),\"\",'TA Indicator Bank'!T241)","v":0},{"$f":"IF(ISBLANK('TA Indicator Bank'!U241),\"\",'TA Indicator Bank'!U241)","v":0},{"$f":"IF(ISBLANK('TA Indicator Bank'!V241),\"\",'TA Indicator Bank'!V241)","v":0},{"$f":"IF(ISBLANK('TA Indicator Bank'!W241),\"\",'TA Indicator Bank'!W241)","v":0},{"$f":"IF(ISBLANK('TA Indicator Bank'!X241),\"\",'TA Indicator Bank'!X241)","v":0},{"$f":"IF(ISBLANK('TA Indicator Bank'!Y241),\"\",'TA Indicator Bank'!Y241)","v":0},{"$f":"IF(ISBLANK('TA Indicator Bank'!Z241),\"\",'TA Indicator Bank'!Z241)","v":0},{"$f":"IF(ISBLANK('TA Indicator Bank'!AA241),\"\",'TA Indicator Bank'!AA241)","v":0},{"$f":"IF(ISBLANK('TA Indicator Bank'!AB241),\"\",'TA Indicator Bank'!AB241)","v":0},{"$f":"IF(ISBLANK('TA Indicator Bank'!AC241),\"\",'TA Indicator Bank'!AC241)","v":0},{"$f":"IF(ISBLANK('TA Indicator Bank'!AD241),\"\",'TA Indicator Bank'!AD241)","v":1},{"$f":"IF(ISBLANK('TA Indicator Bank'!AE241),\"\",'TA Indicator Bank'!AE241)","v":0},{"$f":"IF(ISBLANK('TA Indicator Bank'!AF241),\"\",'TA Indicator Bank'!AF241)","v":0},{"$f":"IF(ISBLANK('TA Indicator Bank'!AG241),\"\",'TA Indicator Bank'!AG241)","v":0},{"$f":"IF(ISBLANK('TA Indicator Bank'!AH241),\"\",'TA Indicator Bank'!AH241)","v":0},{"$f":"IF(ISBLANK('TA Indicator Bank'!AI241),\"\",'TA Indicator Bank'!AI241)","v":0},{"$f":"IF(ISBLANK('TA Indicator Bank'!AJ241),\"\",'TA Indicator Bank'!AJ241)","v":0},{"$f":"IF(ISBLANK('TA Indicator Bank'!AK241),\"\",'TA Indicator Bank'!AK241)","v":0},{"$f":"IF(ISBLANK('TA Indicator Bank'!AL241),\"\",'TA Indicator Bank'!AL241)","v":0},{"$f":"IF(ISBLANK('TA Indicator Bank'!AM241),\"\",'TA Indicator Bank'!AM241)","v":0},{"$f":"IF(ISBLANK('TA Indicator Bank'!AN241),\"\",'TA Indicator Bank'!AN241)","v":0},{"$f":"IF(ISBLANK('TA Indicator Bank'!AO241),\"\",'TA Indicator Bank'!AO241)","v":0},{"$f":"IF(ISBLANK('TA Indicator Bank'!AP241),\"\",'TA Indicator Bank'!AP241)","v":0},{"$f":"IF(ISBLANK('TA Indicator Bank'!AQ241),\"\",'TA Indicator Bank'!AQ241)","v":0},{"$f":"IF(ISBLANK('TA Indicator Bank'!AR241),\"\",'TA Indicator Bank'!AR241)","v":1},{"$f":"IF(ISBLANK('TA Indicator Bank'!AS241),\"\",'TA Indicator Bank'!AS241)","v":0},{"$f":"IF(ISBLANK('TA Indicator Bank'!AT241),\"\",'TA Indicator Bank'!AT241)","v":0},0,0,0,0,0,0,0,0,0,0,0,0,0,0,1,0,0,0,0,0,0,1,0,0,1,0,0,0,0,0,0,0,0,0,1,{"$f":"IF(AND(AP245=1,AP$410=1),1,0)","v":0},{"$f":"IF(AND(AQ245=1,AQ$410=1),1,0)","v":0},{"$f":"IF(AND(AR245=1,AR$410=1),1,0)","v":1},{"$f":"IF(AND(AS245=1,AS$410=1),1,0)","v":0},{"$f":"IF(AND(AT245=1,AT$410=1),1,0)","v":0},1,1,237,237,{"$f":"IFERROR(SMALL($CL$9:$CL$408,CK245),\"\")","v":237},{"$f":"IFERROR(INDEX($B$9:$I$408,$CM245,COLUMNS($CN$9:CN245)),\"\")","v":"TA237"},{"$f":"IFERROR(INDEX($B$9:$I$408,$CM245,COLUMNS($CN$9:CO245)),\"\")","v":"Evidence of data-driven decision-making"},{"$f":"IFERROR(INDEX($B$9:$I$408,$CM245,COLUMNS($CN$9:CP245)),\"\")","v":"-"},{"$f":"IFERROR(INDEX($B$9:$I$408,$CM245,COLUMNS($CN$9:CQ245)),\"\")","v":"Output"},{"$f":"IFERROR(INDEX($B$9:$I$408,$CM245,COLUMNS($CN$9:CR245)),\"\")","v":"-"},{"$f":"IFERROR(INDEX($B$9:$I$408,$CM245,COLUMNS($CN$9:CS245)),\"\")","v":"Process/asset operation support"},{"$f":"IFERROR(INDEX($B$9:$I$408,$CM245,COLUMNS($CN$9:CT245)),\"\")","v":"-"},{"$f":"IFERROR(INDEX($B$9:$I$408,$CM245,COLUMNS($CN$9:CU245)),\"\")","v":"Narrative"}]
[null,{"$f":"IF(ISBLANK('TA Indicator Bank'!B242),\"\",'TA Indicator Bank'!B242)","v":"TA238"},{"$f":"IF(ISBLANK('TA Indicator Bank'!C242),\"\",'TA Indicator Bank'!C242)","v":"Perception of stakeholders that operation are run well"},{"$f":"IF(ISBLANK('TA Indicator Bank'!D242),\"\",'TA Indicator Bank'!D242)","v":"-"},{"$f":"IF(ISBLANK('TA Indicator Bank'!E242),\"\",'TA Indicator Bank'!E242)","v":"Outcome"},{"$f":"IF(ISBLANK('TA Indicator Bank'!F242),\"\",'TA Indicator Bank'!F242)","v":"-"},{"$f":"IF(ISBLANK('TA Indicator Bank'!G242),\"\",'TA Indicator Bank'!G242)","v":"-"},{"$f":"IF(ISBLANK('TA Indicator Bank'!H242),\"\",'TA Indicator Bank'!H242)","v":"Improved operation of processes or assets (inc. e.g. electricity grid stability, agricultural livelihoods, forest management)"},{"$f":"IF(ISBLANK('TA Indicator Bank'!I242),\"\",'TA Indicator Bank'!I242)","v":"Yes/No"},{"$f":"IF(ISBLANK('TA Indicator Bank'!J242),\"\",'TA Indicator Bank'!J242)","v":0},{"$f":"IF(ISBLANK('TA Indicator Bank'!K242),\"\",'TA Indicator Bank'!K242)","v":0},{"$f":"IF(ISBLANK('TA Indicator Bank'!L242),\"\",'TA Indicator Bank'!L242)","v":0},{"$f":"IF(ISBLANK('TA Indicator Bank'!M242),\"\",'TA Indicator Bank'!M242)","v":0},{"$f":"IF(ISBLANK('TA Indicator Bank'!N242),\"\",'TA Indicator Bank'!N242)","v":0},{"$f":"IF(ISBLANK('TA Indicator Bank'!O242),\"\",'TA Indicator Bank'!O242)","v":0},{"$f":"IF(ISBLANK('TA Indicator Bank'!P242),\"\",'TA Indicator Bank'!P242)","v":0},{"$f":"IF(ISBLANK('TA Indicator Bank'!Q242),\"\",'TA Indicator Bank'!Q242)","v":0},{"$f":"IF(ISBLANK('TA Indicator Bank'!R242),\"\",'TA Indicator Bank'!R242)","v":0},{"$f":"IF(ISBLANK('TA Indicator Bank'!S242),\"\",'TA Indicator Bank'!S242)","v":0},{"$f":"IF(ISBLANK('TA Indicator Bank'!T242),\"\",'TA Indicator Bank'!T242)","v":0},{"$f":"IF(ISBLANK('TA Indicator Bank'!U242),\"\",'TA Indicator Bank'!U242)","v":0},{"$f":"IF(ISBLANK('TA Indicator Bank'!V242),\"\",'TA Indicator Bank'!V242)","v":0},{"$f":"IF(ISBLANK('TA Indicator Bank'!W242),\"\",'TA Indicator Bank'!W242)","v":0},{"$f":"IF(ISBLANK('TA Indicator Bank'!X242),\"\",'TA Indicator Bank'!X242)","v":0},{"$f":"IF(ISBLANK('TA Indicator Bank'!Y242),\"\",'TA Indicator Bank'!Y242)","v":0},{"$f":"IF(ISBLANK('TA Indicator Bank'!Z242),\"\",'TA Indicator Bank'!Z242)","v":0},{"$f":"IF(ISBLANK('TA Indicator Bank'!AA242),\"\",'TA Indicator Bank'!AA242)","v":0},{"$f":"IF(ISBLANK('TA Indicator Bank'!AB242),\"\",'TA Indicator Bank'!AB242)","v":0},{"$f":"IF(ISBLANK('TA Indicator Bank'!AC242),\"\",'TA Indicator Bank'!AC242)","v":0},{"$f":"IF(ISBLANK('TA Indicator Bank'!AD242),\"\",'TA Indicator Bank'!AD242)","v":0},{"$f":"IF(ISBLANK('TA Indicator Bank'!AE242),\"\",'TA Indicator Bank'!AE242)","v":0},{"$f":"IF(ISBLANK('TA Indicator Bank'!AF242),\"\",'TA Indicator Bank'!AF242)","v":0},{"$f":"IF(ISBLANK('TA Indicator Bank'!AG242),\"\",'TA Indicator Bank'!AG242)","v":0},{"$f":"IF(ISBLANK('TA Indicator Bank'!AH242),\"\",'TA Indicator Bank'!AH242)","v":0},{"$f":"IF(ISBLANK('TA Indicator Bank'!AI242),\"\",'TA Indicator Bank'!AI242)","v":0},{"$f":"IF(ISBLANK('TA Indicator Bank'!AJ242),\"\",'TA Indicator Bank'!AJ242)","v":0},{"$f":"IF(ISBLANK('TA Indicator Bank'!AK242),\"\",'TA Indicator Bank'!AK242)","v":0},{"$f":"IF(ISBLANK('TA Indicator Bank'!AL242),\"\",'TA Indicator Bank'!AL242)","v":1},{"$f":"IF(ISBLANK('TA Indicator Bank'!AM242),\"\",'TA Indicator Bank'!AM242)","v":0},{"$f":"IF(ISBLANK('TA Indicator Bank'!AN242),\"\",'TA Indicator Bank'!AN242)","v":0},{"$f":"IF(ISBLANK('TA Indicator Bank'!AO242),\"\",'TA Indicator Bank'!AO242)","v":0},{"$f":"IF(ISBLANK('TA Indicator Bank'!AP242),\"\",'TA Indicator Bank'!AP242)","v":0},{"$f":"IF(ISBLANK('TA Indicator Bank'!AQ242),\"\",'TA Indicator Bank'!AQ242)","v":0},{"$f":"IF(ISBLANK('TA Indicator Bank'!AR242),\"\",'TA Indicator Bank'!AR242)","v":0},{"$f":"IF(ISBLANK('TA Indicator Bank'!AS242),\"\",'TA Indicator Bank'!AS242)","v":1},{"$f":"IF(ISBLANK('TA Indicator Bank'!AT242),\"\",'TA Indicator Bank'!AT242)","v":0},0,0,0,0,0,0,0,0,0,0,0,0,0,0,1,0,0,0,0,0,0,0,0,0,1,0,0,0,0,0,1,0,0,0,1,{"$f":"IF(AND(AP246=1,AP$410=1),1,0)","v":0},{"$f":"IF(AND(AQ246=1,AQ$410=1),1,0)","v":0},{"$f":"IF(AND(AR246=1,AR$410=1),1,0)","v":0},{"$f":"IF(AND(AS246=1,AS$410=1),1,0)","v":1},{"$f":"IF(AND(AT246=1,AT$410=1),1,0)","v":0},1,1,238,238,{"$f":"IFERROR(SMALL($CL$9:$CL$408,CK246),\"\")","v":238},{"$f":"IFERROR(INDEX($B$9:$I$408,$CM246,COLUMNS($CN$9:CN246)),\"\")","v":"TA238"},{"$f":"IFERROR(INDEX($B$9:$I$408,$CM246,COLUMNS($CN$9:CO246)),\"\")","v":"Perception of stakeholders that operation are run well"},{"$f":"IFERROR(INDEX($B$9:$I$408,$CM246,COLUMNS($CN$9:CP246)),\"\")","v":"-"},{"$f":"IFERROR(INDEX($B$9:$I$408,$CM246,COLUMNS($CN$9:CQ246)),\"\")","v":"Outcome"},{"$f":"IFERROR(INDEX($B$9:$I$408,$CM246,COLUMNS($CN$9:CR246)),\"\")","v":"-"},{"$f":"IFERROR(INDEX($B$9:$I$408,$CM246,COLUMNS($CN$9:CS246)),\"\")","v":"-"},{"$f":"IFERROR(INDEX($B$9:$I$408,$CM246,COLUMNS($CN$9:CT246)),\"\")","v":"Improved operation of processes or assets (inc. e.g. electricity grid stability, agricultural livelihoods, forest management)"},{"$f":"IFERROR(INDEX($B$9:$I$408,$CM246,COLUMNS($CN$9:CU246)),\"\")","v":"Yes/No"}]
[null,{"$f":"IF(ISBLANK('TA Indicator Bank'!B243),\"\",'TA Indicator Bank'!B243)","v":"TA239"},{"$f":"IF(ISBLANK('TA Indicator Bank'!C243),\"\",'TA Indicator Bank'!C243)","v":"Percentage increase of resilient infrastructure"},{"$f":"IF(ISBLANK('TA Indicator Bank'!D243),\"\",'TA Indicator Bank'!D243)","v":"-"},{"$f":"IF(ISBLANK('TA Indicator Bank'!E243),\"\",'TA Indicator Bank'!E243)","v":"Outcome"},{"$f":"IF(ISBLANK('TA Indicator Bank'!F243),\"\",'TA Indicator Bank'!F243)","v":"-"},{"$f":"IF(ISBLANK('TA Indicator Bank'!G243),\"\",'TA Indicator Bank'!G243)","v":"-"},{"$f":"IF(ISBLANK('TA Indicator Bank'!H243),\"\",'TA Indicator Bank'!H243)","v":"Improved operation of processes or assets (inc. e.g. electricity grid stability, agricultural livelihoods, forest management)"},{"$f":"IF(ISBLANK('TA Indicator Bank'!I243),\"\",'TA Indicator Bank'!I243)","v":"Percentage"},{"$f":"IF(ISBLANK('TA Indicator Bank'!J243),\"\",'TA Indicator Bank'!J243)","v":0},{"$f":"IF(ISBLANK('TA Indicator Bank'!K243),\"\",'TA Indicator Bank'!K243)","v":0},{"$f":"IF(ISBLANK('TA Indicator Bank'!L243),\"\",'TA Indicator Bank'!L243)","v":0},{"$f":"IF(ISBLANK('TA Indicator Bank'!M243),\"\",'TA Indicator Bank'!M243)","v":0},{"$f":"IF(ISBLANK('TA Indicator Bank'!N243),\"\",'TA Indicator Bank'!N243)","v":0},{"$f":"IF(ISBLANK('TA Indicator Bank'!O243),\"\",'TA Indicator Bank'!O243)","v":0},{"$f":"IF(ISBLANK('TA Indicator Bank'!P243),\"\",'TA Indicator Bank'!P243)","v":0},{"$f":"IF(ISBLANK('TA Indicator Bank'!Q243),\"\",'TA Indicator Bank'!Q243)","v":0},{"$f":"IF(ISBLANK('TA Indicator Bank'!R243),\"\",'TA Indicator Bank'!R243)","v":0},{"$f":"IF(ISBLANK('TA Indicator Bank'!S243),\"\",'TA Indicator Bank'!S243)","v":0},{"$f":"IF(ISBLANK('TA Indicator Bank'!T243),\"\",'TA Indicator Bank'!T243)","v":0},{"$f":"IF(ISBLANK('TA Indicator Bank'!U243),\"\",'TA Indicator Bank'!U243)","v":0},{"$f":"IF(ISBLANK('TA Indicator Bank'!V243),\"\",'TA Indicator Bank'!V243)","v":0},{"$f":"IF(ISBLANK('TA Indicator Bank'!W243),\"\",'TA Indicator Bank'!W243)","v":0},{"$f":"IF(ISBLANK('TA Indicator Bank'!X243),\"\",'TA Indicator Bank'!X243)","v":0},{"$f":"IF(ISBLANK('TA Indicator Bank'!Y243),\"\",'TA Indicator Bank'!Y243)","v":0},{"$f":"IF(ISBLANK('TA Indicator Bank'!Z243),\"\",'TA Indicator Bank'!Z243)","v":0},{"$f":"IF(ISBLANK('TA Indicator Bank'!AA243),\"\",'TA Indicator Bank'!AA243)","v":0},{"$f":"IF(ISBLANK('TA Indicator Bank'!AB243),\"\",'TA Indicator Bank'!AB243)","v":0},{"$f":"IF(ISBLANK('TA Indicator Bank'!AC243),\"\",'TA Indicator Bank'!AC243)","v":0},{"$f":"IF(ISBLANK('TA Indicator Bank'!AD243),\"\",'TA Indicator Bank'!AD243)","v":0},{"$f":"IF(ISBLANK('TA Indicator Bank'!AE243),\"\",'TA Indicator Bank'!AE243)","v":0},{"$f":"IF(ISBLANK('TA Indicator Bank'!AF243),\"\",'TA Indicator Bank'!AF243)","v":0},{"$f":"IF(ISBLANK('TA Indicator Bank'!AG243),\"\",'TA Indicator Bank'!AG243)","v":0},{"$f":"IF(ISBLANK('TA Indicator Bank'!AH243),\"\",'TA Indicator Bank'!AH243)","v":0},{"$f":"IF(ISBLANK('TA Indicator Bank'!AI243),\"\",'TA Indicator Bank'!AI243)","v":0},{"$f":"IF(ISBLANK('TA Indicator Bank'!AJ243),\"\",'TA Indicator Bank'!AJ243)","v":0},{"$f":"IF(ISBLANK('TA Indicator Bank'!AK243),\"\",'TA Indicator Bank'!AK243)","v":0},{"$f":"IF(ISBLANK('TA Indicator Bank'!AL243),\"\",'TA Indicator Bank'!AL243)","v":1},{"$f":"IF(ISBLANK('TA Indicator Bank'!AM243),\"\",'TA Indicator Bank'!AM243)","v":0},{"$f":"IF(ISBLANK('TA Indicator Bank'!AN243),\"\",'TA Indicator Bank'!AN243)","v":0},{"$f":"IF(ISBLANK('TA Indicator Bank'!AO243),\"\",'TA Indicator Bank'!AO243)","v":0},{"$f":"IF(ISBLANK('TA Indicator Bank'!AP243),\"\",'TA Indicator Bank'!AP243)","v":0},{"$f":"IF(ISBLANK('TA Indicator Bank'!AQ243),\"\",'TA Indicator Bank'!AQ243)","v":0},{"$f":"IF(ISBLANK('TA Indicator Bank'!AR243),\"\",'TA Indicator Bank'!AR243)","v":0},{"$f":"IF(ISBLANK('TA Indicator Bank'!AS243),\"\",'TA Indicator Bank'!AS243)","v":1},{"$f":"IF(ISBLANK('TA Indicator Bank'!AT243),\"\",'TA Indicator Bank'!AT243)","v":0},0,0,0,0,0,0,0,0,0,0,0,0,0,0,1,0,0,0,0,0,0,0,0,0,1,0,0,0,0,0,1,0,0,0,1,{"$f":"IF(AND(AP247=1,AP$410=1),1,0)","v":0},{"$f":"IF(AND(AQ247=1,AQ$410=1),1,0)","v":0},{"$f":"IF(AND(AR247=1,AR$410=1),1,0)","v":0},{"$f":"IF(AND(AS247=1,AS$410=1),1,0)","v":1},{"$f":"IF(AND(AT247=1,AT$410=1),1,0)","v":0},1,1,239,239,{"$f":"IFERROR(SMALL($CL$9:$CL$408,CK247),\"\")","v":239},{"$f":"IFERROR(INDEX($B$9:$I$408,$CM247,COLUMNS($CN$9:CN247)),\"\")","v":"TA239"},{"$f":"IFERROR(INDEX($B$9:$I$408,$CM247,COLUMNS($CN$9:CO247)),\"\")","v":"Percentage increase of resilient infrastructure"},{"$f":"IFERROR(INDEX($B$9:$I$408,$CM247,COLUMNS($CN$9:CP247)),\"\")","v":"-"},{"$f":"IFERROR(INDEX($B$9:$I$408,$CM247,COLUMNS($CN$9:CQ247)),\"\")","v":"Outcome"},{"$f":"IFERROR(INDEX($B$9:$I$408,$CM247,COLUMNS($CN$9:CR247)),\"\")","v":"-"},{"$f":"IFERROR(INDEX($B$9:$I$408,$CM247,COLUMNS($CN$9:CS247)),\"\")","v":"-"},{"$f":"IFERROR(INDEX($B$9:$I$408,$CM247,COLUMNS($CN$9:CT247)),\"\")","v":"Improved operation of processes or assets (inc. e.g. electricity grid stability, agricultural livelihoods, forest management)"},{"$f":"IFERROR(INDEX($B$9:$I$408,$CM247,COLUMNS($CN$9:CU247)),\"\")","v":"Percentage"}]
[null,{"$f":"IF(ISBLANK('TA Indicator Bank'!B244),\"\",'TA Indicator Bank'!B244)","v":"TA240"},{"$f":"IF(ISBLANK('TA Indicator Bank'!C244),\"\",'TA Indicator Bank'!C244)","v":"Percentage of installed units that are still operating at an acceptable level of eficiency after 1 year"},{"$f":"IF(ISBLANK('TA Indicator Bank'!D244),\"\",'TA Indicator Bank'!D244)","v":"Most applicable to specific technologies where efficiency can be measured on a technical basis"},{"$f":"IF(ISBLANK('TA Indicator Bank'!E244),\"\",'TA Indicator Bank'!E244)","v":"Outcome"},{"$f":"IF(ISBLANK('TA Indicator Bank'!F244),\"\",'TA Indicator Bank'!F244)","v":"-"},{"$f":"IF(ISBLANK('TA Indicator Bank'!G244),\"\",'TA Indicator Bank'!G244)","v":"-"},{"$f":"IF(ISBLANK('TA Indicator Bank'!H244),\"\",'TA Indicator Bank'!H244)","v":"Improved operation of processes or assets (inc. e.g. electricity grid stability, agricultural livelihoods, forest management)"},{"$f":"IF(ISBLANK('TA Indicator Bank'!I244),\"\",'TA Indicator Bank'!I244)","v":"Percentage"},{"$f":"IF(ISBLANK('TA Indicator Bank'!J244),\"\",'TA Indicator Bank'!J244)","v":0},{"$f":"IF(ISBLANK('TA Indicator Bank'!K244),\"\",'TA Indicator Bank'!K244)","v":0},{"$f":"IF(ISBLANK('TA Indicator Bank'!L244),\"\",'TA Indicator Bank'!L244)","v":0},{"$f":"IF(ISBLANK('TA Indicator Bank'!M244),\"\",'TA Indicator Bank'!M244)","v":0},{"$f":"IF(ISBLANK('TA Indicator Bank'!N244),\"\",'TA Indicator Bank'!N244)","v":0},{"$f":"IF(ISBLANK('TA Indicator Bank'!O244),\"\",'TA Indicator Bank'!O244)","v":0},{"$f":"IF(ISBLANK('TA Indicator Bank'!P244),\"\",'TA Indicator Bank'!P244)","v":0},{"$f":"IF(ISBLANK('TA Indicator Bank'!Q244),\"\",'TA Indicator Bank'!Q244)","v":0},{"$f":"IF(ISBLANK('TA Indicator Bank'!R244),\"\",'TA Indicator Bank'!R244)","v":0},{"$f":"IF(ISBLANK('TA Indicator Bank'!S244),\"\",'TA Indicator Bank'!S244)","v":0},{"$f":"IF(ISBLANK('TA Indicator Bank'!T244),\"\",'TA Indicator Bank'!T244)","v":0},{"$f":"IF(ISBLANK('TA Indicator Bank'!U244),\"\",'TA Indicator Bank'!U244)","v":0},{"$f":"IF(ISBLANK('TA Indicator Bank'!V244),\"\",'TA Indicator Bank'!V244)","v":0},{"$f":"IF(ISBLANK('TA Indicator Bank'!W244),\"\",'TA Indicator Bank'!W244)","v":0},{"$f":"IF(ISBLANK('TA Indicator Bank'!X244),\"\",'TA Indicator Bank'!X244)","v":0},{"$f":"IF(ISBLANK('TA Indicator Bank'!Y244),\"\",'TA Indicator Bank'!Y244)","v":0},{"$f":"IF(ISBLANK('TA Indicator Bank'!Z244),\"\",'TA Indicator Bank'!Z244)","v":0},{"$f":"IF(ISBLANK('TA Indicator Bank'!AA244),\"\",'TA Indicator Bank'!AA244)","v":0},{"$f":"IF(ISBLANK('TA Indicator Bank'!AB244),\"\",'TA Indicator Bank'!AB244)","v":0},{"$f":"IF(ISBLANK('TA Indicator Bank'!AC244),\"\",'TA Indicator Bank'!AC244)","v":0},{"$f":"IF(ISBLANK('TA Indicator Bank'!AD244),\"\",'TA Indicator Bank'!AD244)","v":0},{"$f":"IF(ISBLANK('TA Indicator Bank'!AE244),\"\",'TA Indicator Bank'!AE244)","v":0},{"$f":"IF(ISBLANK('TA Indicator Bank'!AF244),\"\",'TA Indicator Bank'!AF244)","v":0},{"$f":"IF(ISBLANK('TA Indicator Bank'!AG244),\"\",'TA Indicator Bank'!AG244)","v":0},{"$f":"IF(ISBLANK('TA Indicator Bank'!AH244),\"\",'TA Indicator Bank'!AH244)","v":0},{"$f":"IF(ISBLANK('TA Indicator Bank'!AI244),\"\",'TA Indicator Bank'!AI244)","v":0},{"$f":"IF(ISBLANK('TA Indicator Bank'!AJ244),\"\",'TA Indicator Bank'!AJ244)","v":0},{"$f":"IF(ISBLANK('TA Indicator Bank'!AK244),\"\",'TA Indicator Bank'!AK244)","v":0},{"$f":"IF(ISBLANK('TA Indicator Bank'!AL244),\"\",'TA Indicator Bank'!AL244)","v":1},{"$f":"IF(ISBLANK('TA Indicator Bank'!AM244),\"\",'TA Indicator Bank'!AM244)","v":0},{"$f":"IF(ISBLANK('TA Indicator Bank'!AN244),\"\",'TA Indicator Bank'!AN244)","v":0},{"$f":"IF(ISBLANK('TA Indicator Bank'!AO244),\"\",'TA Indicator Bank'!AO244)","v":0},{"$f":"IF(ISBLANK('TA Indicator Bank'!AP244),\"\",'TA Indicator Bank'!AP244)","v":0},{"$f":"IF(ISBLANK('TA Indicator Bank'!AQ244),\"\",'TA Indicator Bank'!AQ244)","v":0},{"$f":"IF(ISBLANK('TA Indicator Bank'!AR244),\"\",'TA Indicator Bank'!AR244)","v":0},{"$f":"IF(ISBLANK('TA Indicator Bank'!AS244),\"\",'TA Indicator Bank'!AS244)","v":1},{"$f":"IF(ISBLANK('TA Indicator Bank'!AT244),\"\",'TA Indicator Bank'!AT244)","v":0},0,0,0,0,0,0,0,0,0,0,0,0,0,{"$f":"IF(AND(W248=1,W$410=1),1,0)","v":0},1,0,0,0,0,0,0,0,0,0,1,0,0,0,0,0,1,0,0,0,1,{"$f":"IF(AND(AP248=1,AP$410=1),1,0)","v":0},{"$f":"IF(AND(AQ248=1,AQ$410=1),1,0)","v":0},{"$f":"IF(AND(AR248=1,AR$410=1),1,0)","v":0},{"$f":"IF(AND(AS248=1,AS$410=1),1,0)","v":1},{"$f":"IF(AND(AT248=1,AT$410=1),1,0)","v":0},1,1,240,240,{"$f":"IFERROR(SMALL($CL$9:$CL$408,CK248),\"\")","v":240},{"$f":"IFERROR(INDEX($B$9:$I$408,$CM248,COLUMNS($CN$9:CN248)),\"\")","v":"TA240"},{"$f":"IFERROR(INDEX($B$9:$I$408,$CM248,COLUMNS($CN$9:CO248)),\"\")","v":"Percentage of installed units that are still operating at an acceptable level of eficiency after 1 year"},{"$f":"IFERROR(INDEX($B$9:$I$408,$CM248,COLUMNS($CN$9:CP248)),\"\")","v":"Most applicable to specific technologies where efficiency can be measured on a technical basis"},{"$f":"IFERROR(INDEX($B$9:$I$408,$CM248,COLUMNS($CN$9:CQ248)),\"\")","v":"Outcome"},{"$f":"IFERROR(INDEX($B$9:$I$408,$CM248,COLUMNS($CN$9:CR248)),\"\")","v":"-"},{"$f":"IFERROR(INDEX($B$9:$I$408,$CM248,COLUMNS($CN$9:CS248)),\"\")","v":"-"},{"$f":"IFERROR(INDEX($B$9:$I$408,$CM248,COLUMNS($CN$9:CT248)),\"\")","v":"Improved operation of processes or assets (inc. e.g. electricity grid stability, agricultural livelihoods, forest management)"},{"$f":"IFERROR(INDEX($B$9:$I$408,$CM248,COLUMNS($CN$9:CU248)),\"\")","v":"Percentage"}]
[null,{"$f":"IF(ISBLANK('TA Indicator Bank'!B245),\"\",'TA Indicator Bank'!B245)","v":"TA241"},{"$f":"IF(ISBLANK('TA Indicator Bank'!C245),\"\",'TA Indicator Bank'!C245)","v":"Number of people that receive assistance compared to initially targeted group"},{"$f":"IF(ISBLANK('TA Indicator Bank'!D245),\"\",'TA Indicator Bank'!D245)","v":"-"},{"$f":"IF(ISBLANK('TA Indicator Bank'!E245),\"\",'TA Indicator Bank'!E245)","v":"Outcome"},{"$f":"IF(ISBLANK('TA Indicator Bank'!F245),\"\",'TA Indicator Bank'!F245)","v":"-"},{"$f":"IF(ISBLANK('TA Indicator Bank'!G245),\"\",'TA Indicator Bank'!G245)","v":"-"},{"$f":"IF(ISBLANK('TA Indicator Bank'!H245),\"\",'TA Indicator Bank'!H245)","v":"Improved operation of processes or assets (inc. e.g. electricity grid stability, agricultural livelihoods, forest management)"},{"$f":"IF(ISBLANK('TA Indicator Bank'!I245),\"\",'TA Indicator Bank'!I245)","v":"Number"},{"$f":"IF(ISBLANK('TA Indicator Bank'!J245),\"\",'TA Indicator Bank'!J245)","v":0},{"$f":"IF(ISBLANK('TA Indicator Bank'!K245),\"\",'TA Indicator Bank'!K245)","v":0},{"$f":"IF(ISBLANK('TA Indicator Bank'!L245),\"\",'TA Indicator Bank'!L245)","v":0},{"$f":"IF(ISBLANK('TA Indicator Bank'!M245),\"\",'TA Indicator Bank'!M245)","v":0},{"$f":"IF(ISBLANK('TA Indicator Bank'!N245),\"\",'TA Indicator Bank'!N245)","v":0},{"$f":"IF(ISBLANK('TA Indicator Bank'!O245),\"\",'TA Indicator Bank'!O245)","v":0},{"$f":"IF(ISBLANK('TA Indicator Bank'!P245),\"\",'TA Indicator Bank'!P245)","v":0},{"$f":"IF(ISBLANK('TA Indicator Bank'!Q245),\"\",'TA Indicator Bank'!Q245)","v":0},{"$f":"IF(ISBLANK('TA Indicator Bank'!R245),\"\",'TA Indicator Bank'!R245)","v":0},{"$f":"IF(ISBLANK('TA Indicator Bank'!S245),\"\",'TA Indicator Bank'!S245)","v":0},{"$f":"IF(ISBLANK('TA Indicator Bank'!T245),\"\",'TA Indicator Bank'!T245)","v":0},{"$f":"IF(ISBLANK('TA Indicator Bank'!U245),\"\",'TA Indicator Bank'!U245)","v":0},{"$f":"IF(ISBLANK('TA Indicator Bank'!V245),\"\",'TA Indicator Bank'!V245)","v":0},{"$f":"IF(ISBLANK('TA Indicator Bank'!W245),\"\",'TA Indicator Bank'!W245)","v":0},{"$f":"IF(ISBLANK('TA Indicator Bank'!X245),\"\",'TA Indicator Bank'!X245)","v":0},{"$f":"IF(ISBLANK('TA Indicator Bank'!Y245),\"\",'TA Indicator Bank'!Y245)","v":0},{"$f":"IF(ISBLANK('TA Indicator Bank'!Z245),\"\",'TA Indicator Bank'!Z245)","v":0},{"$f":"IF(ISBLANK('TA Indicator Bank'!AA245),\"\",'TA Indicator Bank'!AA245)","v":0},{"$f":"IF(ISBLANK('TA Indicator Bank'!AB245),\"\",'TA Indicator Bank'!AB245)","v":0},{"$f":"IF(ISBLANK('TA Indicator Bank'!AC245),\"\",'TA Indicator Bank'!AC245)","v":0},{"$f":"IF(ISBLANK('TA Indicator Bank'!AD245),\"\",'TA Indicator Bank'!AD245)","v":0},{"$f":"IF(ISBLANK('TA Indicator Bank'!AE245),\"\",'TA Indicator Bank'!AE245)","v":0},{"$f":"IF(ISBLANK('TA Indicator Bank'!AF245),\"\",'TA Indicator Bank'!AF245)","v":0},{"$f":"IF(ISBLANK('TA Indicator Bank'!AG245),\"\",'TA Indicator Bank'!AG245)","v":0},{"$f":"IF(ISBLANK('TA Indicator Bank'!AH245),\"\",'TA Indicator Bank'!AH245)","v":0},{"$f":"IF(ISBLANK('TA Indicator Bank'!AI245),\"\",'TA Indicator Bank'!AI245)","v":0},{"$f":"IF(ISBLANK('TA Indicator Bank'!AJ245),\"\",'TA Indicator Bank'!AJ245)","v":0},{"$f":"IF(ISBLANK('TA Indicator Bank'!AK245),\"\",'TA Indicator Bank'!AK245)","v":0},{"$f":"IF(ISBLANK('TA Indicator Bank'!AL245),\"\",'TA Indicator Bank'!AL245)","v":1},{"$f":"IF(ISBLANK('TA Indicator Bank'!AM245),\"\",'TA Indicator Bank'!AM245)","v":0},{"$f":"IF(ISBLANK('TA Indicator Bank'!AN245),\"\",'TA Indicator Bank'!AN245)","v":0},{"$f":"IF(ISBLANK('TA Indicator Bank'!AO245),\"\",'TA Indicator Bank'!AO245)","v":0},{"$f":"IF(ISBLANK('TA Indicator Bank'!AP245),\"\",'TA Indicator Bank'!AP245)","v":0},{"$f":"IF(ISBLANK('TA Indicator Bank'!AQ245),\"\",'TA Indicator Bank'!AQ245)","v":0},{"$f":"IF(ISBLANK('TA Indicator Bank'!AR245),\"\",'TA Indicator Bank'!AR245)","v":0},{"$f":"IF(ISBLANK('TA Indicator Bank'!AS245),\"\",'TA Indicator Bank'!AS245)","v":1},{"$f":"IF(ISBLANK('TA Indicator Bank'!AT245),\"\",'TA Indicator Bank'!AT245)","v":0},0,0,0,0,0,0,0,0,0,0,0,0,0,0,1,0,0,0,0,0,0,0,0,0,1,0,0,0,0,0,1,0,0,0,1,{"$f":"IF(AND(AP249=1,AP$410=1),1,0)","v":0},{"$f":"IF(AND(AQ249=1,AQ$410=1),1,0)","v":0},{"$f":"IF(AND(AR249=1,AR$410=1),1,0)","v":0},{"$f":"IF(AND(AS249=1,AS$410=1),1,0)","v":1},{"$f":"IF(AND(AT249=1,AT$410=1),1,0)","v":0},1,1,241,241,{"$f":"IFERROR(SMALL($CL$9:$CL$408,CK249),\"\")","v":241},{"$f":"IFERROR(INDEX($B$9:$I$408,$CM249,COLUMNS($CN$9:CN249)),\"\")","v":"TA241"},{"$f":"IFERROR(INDEX($B$9:$I$408,$CM249,COLUMNS($CN$9:CO249)),\"\")","v":"Number of people that receive assistance compared to initially targeted group"},{"$f":"IFERROR(INDEX($B$9:$I$408,$CM249,COLUMNS($CN$9:CP249)),\"\")","v":"-"},{"$f":"IFERROR(INDEX($B$9:$I$408,$CM249,COLUMNS($CN$9:CQ249)),\"\")","v":"Outcome"},{"$f":"IFERROR(INDEX($B$9:$I$408,$CM249,COLUMNS($CN$9:CR249)),\"\")","v":"-"},{"$f":"IFERROR(INDEX($B$9:$I$408,$CM249,COLUMNS($CN$9:CS249)),\"\")","v":"-"},{"$f":"IFERROR(INDEX($B$9:$I$408,$CM249,COLUMNS($CN$9:CT249)),\"\")","v":"Improved operation of processes or assets (inc. e.g. electricity grid stability, agricultural livelihoods, forest management)"},{"$f":"IFERROR(INDEX($B$9:$I$408,$CM249,COLUMNS($CN$9:CU249)),\"\")","v":"Number"}]
[null,{"$f":"IF(ISBLANK('TA Indicator Bank'!B246),\"\",'TA Indicator Bank'!B246)","v":"TA242"},{"$f":"IF(ISBLANK('TA Indicator Bank'!C246),\"\",'TA Indicator Bank'!C246)","v":"Number of policies/organisations where data is better used"},{"$f":"IF(ISBLANK('TA Indicator Bank'!D246),\"\",'TA Indicator Bank'!D246)","v":"-"},{"$f":"IF(ISBLANK('TA Indicator Bank'!E246),\"\",'TA Indicator Bank'!E246)","v":"Output"},{"$f":"IF(ISBLANK('TA Indicator Bank'!F246),\"\",'TA Indicator Bank'!F246)","v":"-"},{"$f":"IF(ISBLANK('TA Indicator Bank'!G246),\"\",'TA Indicator Bank'!G246)","v":"Process/asset operation support"},{"$f":"IF(ISBLANK('TA Indicator Bank'!H246),\"\",'TA Indicator Bank'!H246)","v":"-"},{"$f":"IF(ISBLANK('TA Indicator Bank'!I246),\"\",'TA Indicator Bank'!I246)","v":"Number"},{"$f":"IF(ISBLANK('TA Indicator Bank'!J246),\"\",'TA Indicator Bank'!J246)","v":0},{"$f":"IF(ISBLANK('TA Indicator Bank'!K246),\"\",'TA Indicator Bank'!K246)","v":0},{"$f":"IF(ISBLANK('TA Indicator Bank'!L246),\"\",'TA Indicator Bank'!L246)","v":0},{"$f":"IF(ISBLANK('TA Indicator Bank'!M246),\"\",'TA Indicator Bank'!M246)","v":0},{"$f":"IF(ISBLANK('TA Indicator Bank'!N246),\"\",'TA Indicator Bank'!N246)","v":0},{"$f":"IF(ISBLANK('TA Indicator Bank'!O246),\"\",'TA Indicator Bank'!O246)","v":0},{"$f":"IF(ISBLANK('TA Indicator Bank'!P246),\"\",'TA Indicator Bank'!P246)","v":0},{"$f":"IF(ISBLANK('TA Indicator Bank'!Q246),\"\",'TA Indicator Bank'!Q246)","v":0},{"$f":"IF(ISBLANK('TA Indicator Bank'!R246),\"\",'TA Indicator Bank'!R246)","v":0},{"$f":"IF(ISBLANK('TA Indicator Bank'!S246),\"\",'TA Indicator Bank'!S246)","v":0},{"$f":"IF(ISBLANK('TA Indicator Bank'!T246),\"\",'TA Indicator Bank'!T246)","v":0},{"$f":"IF(ISBLANK('TA Indicator Bank'!U246),\"\",'TA Indicator Bank'!U246)","v":0},{"$f":"IF(ISBLANK('TA Indicator Bank'!V246),\"\",'TA Indicator Bank'!V246)","v":0},{"$f":"IF(ISBLANK('TA Indicator Bank'!W246),\"\",'TA Indicator Bank'!W246)","v":0},{"$f":"IF(ISBLANK('TA Indicator Bank'!X246),\"\",'TA Indicator Bank'!X246)","v":0},{"$f":"IF(ISBLANK('TA Indicator Bank'!Y246),\"\",'TA Indicator Bank'!Y246)","v":0},{"$f":"IF(ISBLANK('TA Indicator Bank'!Z246),\"\",'TA Indicator Bank'!Z246)","v":0},{"$f":"IF(ISBLANK('TA Indicator Bank'!AA246),\"\",'TA Indicator Bank'!AA246)","v":0},{"$f":"IF(ISBLANK('TA Indicator Bank'!AB246),\"\",'TA Indicator Bank'!AB246)","v":0},{"$f":"IF(ISBLANK('TA Indicator Bank'!AC246),\"\",'TA Indicator Bank'!AC246)","v":0},{"$f":"IF(ISBLANK('TA Indicator Bank'!AD246),\"\",'TA Indicator Bank'!AD246)","v":1},{"$f":"IF(ISBLANK('TA Indicator Bank'!AE246),\"\",'TA Indicator Bank'!AE246)","v":0},{"$f":"IF(ISBLANK('TA Indicator Bank'!AF246),\"\",'TA Indicator Bank'!AF246)","v":0},{"$f":"IF(ISBLANK('TA Indicator Bank'!AG246),\"\",'TA Indicator Bank'!AG246)","v":0},{"$f":"IF(ISBLANK('TA Indicator Bank'!AH246),\"\",'TA Indicator Bank'!AH246)","v":0},{"$f":"IF(ISBLANK('TA Indicator Bank'!AI246),\"\",'TA Indicator Bank'!AI246)","v":0},{"$f":"IF(ISBLANK('TA Indicator Bank'!AJ246),\"\",'TA Indicator Bank'!AJ246)","v":0},{"$f":"IF(ISBLANK('TA Indicator Bank'!AK246),\"\",'TA Indicator Bank'!AK246)","v":0},{"$f":"IF(ISBLANK('TA Indicator Bank'!AL246),\"\",'TA Indicator Bank'!AL246)","v":0},{"$f":"IF(ISBLANK('TA Indicator Bank'!AM246),\"\",'TA Indicator Bank'!AM246)","v":0},{"$f":"IF(ISBLANK('TA Indicator Bank'!AN246),\"\",'TA Indicator Bank'!AN246)","v":0},{"$f":"IF(ISBLANK('TA Indicator Bank'!AO246),\"\",'TA Indicator Bank'!AO246)","v":0},{"$f":"IF(ISBLANK('TA Indicator Bank'!AP246),\"\",'TA Indicator Bank'!AP246)","v":0},{"$f":"IF(ISBLANK('TA Indicator Bank'!AQ246),\"\",'TA Indicator Bank'!AQ246)","v":0},{"$f":"IF(ISBLANK('TA Indicator Bank'!AR246),\"\",'TA Indicator Bank'!AR246)","v":1},{"$f":"IF(ISBLANK('TA Indicator Bank'!AS246),\"\",'TA Indicator Bank'!AS246)","v":0},{"$f":"IF(ISBLANK('TA Indicator Bank'!AT246),\"\",'TA Indicator Bank'!AT246)","v":0},0,0,0,0,0,0,0,0,0,0,0,0,0,0,1,{"$f":"IF(AND(X250=1,X$410=1),1,0)","v":0},{"$f":"IF(AND(Y250=1,Y$410=1),1,0)","v":0},{"$f":"IF(AND(Z250=1,Z$410=1),1,0)","v":0},{"$f":"IF(AND(AA250=1,AA$410=1),1,0)","v":0},0,0,1,0,0,1,{"$f":"IF(AND(AG250=1,AG$410=1),1,0)","v":0},{"$f":"IF(AND(AH250=1,AH$410=1),1,0)","v":0},{"$f":"IF(AND(AI250=1,AI$410=1),1,0)","v":0},{"$f":"IF(AND(AJ250=1,AJ$410=1),1,0)","v":0},0,0,0,0,0,1,{"$f":"IF(AND(AP250=1,AP$410=1),1,0)","v":0},{"$f":"IF(AND(AQ250=1,AQ$410=1),1,0)","v":0},{"$f":"IF(AND(AR250=1,AR$410=1),1,0)","v":1},{"$f":"IF(AND(AS250=1,AS$410=1),1,0)","v":0},{"$f":"IF(AND(AT250=1,AT$410=1),1,0)","v":0},1,1,242,242,{"$f":"IFERROR(SMALL($CL$9:$CL$408,CK250),\"\")","v":242},{"$f":"IFERROR(INDEX($B$9:$I$408,$CM250,COLUMNS($CN$9:CN250)),\"\")","v":"TA242"},{"$f":"IFERROR(INDEX($B$9:$I$408,$CM250,COLUMNS($CN$9:CO250)),\"\")","v":"Number of policies/organisations where data is better used"},{"$f":"IFERROR(INDEX($B$9:$I$408,$CM250,COLUMNS($CN$9:CP250)),\"\")","v":"-"},{"$f":"IFERROR(INDEX($B$9:$I$408,$CM250,COLUMNS($CN$9:CQ250)),\"\")","v":"Output"},{"$f":"IFERROR(INDEX($B$9:$I$408,$CM250,COLUMNS($CN$9:CR250)),\"\")","v":"-"},{"$f":"IFERROR(INDEX($B$9:$I$408,$CM250,COLUMNS($CN$9:CS250)),\"\")","v":"Process/asset operation support"},{"$f":"IFERROR(INDEX($B$9:$I$408,$CM250,COLUMNS($CN$9:CT250)),\"\")","v":"-"},{"$f":"IFERROR(INDEX($B$9:$I$408,$CM250,COLUMNS($CN$9:CU250)),\"\")","v":"Number"}]
[null,{"$f":"IF(ISBLANK('TA Indicator Bank'!B247),\"\",'TA Indicator Bank'!B247)","v":"TA243"},{"$f":"IF(ISBLANK('TA Indicator Bank'!C247),\"\",'TA Indicator Bank'!C247)","v":"Government delivers with automatic and clearly defined triggers"},{"$f":"IF(ISBLANK('TA Indicator Bank'!D247),\"\",'TA Indicator Bank'!D247)","v":"-"},{"$f":"IF(ISBLANK('TA Indicator Bank'!E247),\"\",'TA Indicator Bank'!E247)","v":"Outcome"},{"$f":"IF(ISBLANK('TA Indicator Bank'!F247),\"\",'TA Indicator Bank'!F247)","v":"-"},{"$f":"IF(ISBLANK('TA Indicator Bank'!G247),\"\",'TA Indicator Bank'!G247)","v":"-"},{"$f":"IF(ISBLANK('TA Indicator Bank'!H247),\"\",'TA Indicator Bank'!H247)","v":"Improved operation of processes or assets (inc. e.g. electricity grid stability, agricultural livelihoods, forest management)"},{"$f":"IF(ISBLANK('TA Indicator Bank'!I247),\"\",'TA Indicator Bank'!I247)","v":"Yes/No"},{"$f":"IF(ISBLANK('TA Indicator Bank'!J247),\"\",'TA Indicator Bank'!J247)","v":0},{"$f":"IF(ISBLANK('TA Indicator Bank'!K247),\"\",'TA Indicator Bank'!K247)","v":0},{"$f":"IF(ISBLANK('TA Indicator Bank'!L247),\"\",'TA Indicator Bank'!L247)","v":0},{"$f":"IF(ISBLANK('TA Indicator Bank'!M247),\"\",'TA Indicator Bank'!M247)","v":0},{"$f":"IF(ISBLANK('TA Indicator Bank'!N247),\"\",'TA Indicator Bank'!N247)","v":0},{"$f":"IF(ISBLANK('TA Indicator Bank'!O247),\"\",'TA Indicator Bank'!O247)","v":0},{"$f":"IF(ISBLANK('TA Indicator Bank'!P247),\"\",'TA Indicator Bank'!P247)","v":0},{"$f":"IF(ISBLANK('TA Indicator Bank'!Q247),\"\",'TA Indicator Bank'!Q247)","v":0},{"$f":"IF(ISBLANK('TA Indicator Bank'!R247),\"\",'TA Indicator Bank'!R247)","v":0},{"$f":"IF(ISBLANK('TA Indicator Bank'!S247),\"\",'TA Indicator Bank'!S247)","v":0},{"$f":"IF(ISBLANK('TA Indicator Bank'!T247),\"\",'TA Indicator Bank'!T247)","v":0},{"$f":"IF(ISBLANK('TA Indicator Bank'!U247),\"\",'TA Indicator Bank'!U247)","v":0},{"$f":"IF(ISBLANK('TA Indicator Bank'!V247),\"\",'TA Indicator Bank'!V247)","v":0},{"$f":"IF(ISBLANK('TA Indicator Bank'!W247),\"\",'TA Indicator Bank'!W247)","v":0},{"$f":"IF(ISBLANK('TA Indicator Bank'!X247),\"\",'TA Indicator Bank'!X247)","v":0},{"$f":"IF(ISBLANK('TA Indicator Bank'!Y247),\"\",'TA Indicator Bank'!Y247)","v":0},{"$f":"IF(ISBLANK('TA Indicator Bank'!Z247),\"\",'TA Indicator Bank'!Z247)","v":0},{"$f":"IF(ISBLANK('TA Indicator Bank'!AA247),\"\",'TA Indicator Bank'!AA247)","v":0},{"$f":"IF(ISBLANK('TA Indicator Bank'!AB247),\"\",'TA Indicator Bank'!AB247)","v":0},{"$f":"IF(ISBLANK('TA Indicator Bank'!AC247),\"\",'TA Indicator Bank'!AC247)","v":0},{"$f":"IF(ISBLANK('TA Indicator Bank'!AD247),\"\",'TA Indicator Bank'!AD247)","v":0},{"$f":"IF(ISBLANK('TA Indicator Bank'!AE247),\"\",'TA Indicator Bank'!AE247)","v":0},{"$f":"IF(ISBLANK('TA Indicator Bank'!AF247),\"\",'TA Indicator Bank'!AF247)","v":0},{"$f":"IF(ISBLANK('TA Indicator Bank'!AG247),\"\",'TA Indicator Bank'!AG247)","v":0},{"$f":"IF(ISBLANK('TA Indicator Bank'!AH247),\"\",'TA Indicator Bank'!AH247)","v":0},{"$f":"IF(ISBLANK('TA Indicator Bank'!AI247),\"\",'TA Indicator Bank'!AI247)","v":0},{"$f":"IF(ISBLANK('TA Indicator Bank'!AJ247),\"\",'TA Indicator Bank'!AJ247)","v":0},{"$f":"IF(ISBLANK('TA Indicator Bank'!AK247),\"\",'TA Indicator Bank'!AK247)","v":0},{"$f":"IF(ISBLANK('TA Indicator Bank'!AL247),\"\",'TA Indicator Bank'!AL247)","v":1},{"$f":"IF(ISBLANK('TA Indicator Bank'!AM247),\"\",'TA Indicator Bank'!AM247)","v":0},{"$f":"IF(ISBLANK('TA Indicator Bank'!AN247),\"\",'TA Indicator Bank'!AN247)","v":0},{"$f":"IF(ISBLANK('TA Indicator Bank'!AO247),\"\",'TA Indicator Bank'!AO247)","v":0},{"$f":"IF(ISBLANK('TA Indicator Bank'!AP247),\"\",'TA Indicator Bank'!AP247)","v":0},{"$f":"IF(ISBLANK('TA Indicator Bank'!AQ247),\"\",'TA Indicator Bank'!AQ247)","v":0},{"$f":"IF(ISBLANK('TA Indicator Bank'!AR247),\"\",'TA Indicator Bank'!AR247)","v":0},{"$f":"IF(ISBLANK('TA Indicator Bank'!AS247),\"\",'TA Indicator Bank'!AS247)","v":1},{"$f":"IF(ISBLANK('TA Indicator Bank'!AT247),\"\",'TA Indicator Bank'!AT247)","v":0},0,0,0,0,0,0,0,0,0,0,0,0,0,0,1,{"$f":"IF(AND(X251=1,X$410=1),1,0)","v":0},0,0,0,0,0,0,0,0,1,{"$f":"IF(AND(AG251=1,AG$410=1),1,0)","v":0},0,0,0,0,1,0,0,0,1,{"$f":"IF(AND(AP251=1,AP$410=1),1,0)","v":0},{"$f":"IF(AND(AQ251=1,AQ$410=1),1,0)","v":0},{"$f":"IF(AND(AR251=1,AR$410=1),1,0)","v":0},{"$f":"IF(AND(AS251=1,AS$410=1),1,0)","v":1},{"$f":"IF(AND(AT251=1,AT$410=1),1,0)","v":0},1,1,243,243,{"$f":"IFERROR(SMALL($CL$9:$CL$408,CK251),\"\")","v":243},{"$f":"IFERROR(INDEX($B$9:$I$408,$CM251,COLUMNS($CN$9:CN251)),\"\")","v":"TA243"},{"$f":"IFERROR(INDEX($B$9:$I$408,$CM251,COLUMNS($CN$9:CO251)),\"\")","v":"Government delivers with automatic and clearly defined triggers"},{"$f":"IFERROR(INDEX($B$9:$I$408,$CM251,COLUMNS($CN$9:CP251)),\"\")","v":"-"},{"$f":"IFERROR(INDEX($B$9:$I$408,$CM251,COLUMNS($CN$9:CQ251)),\"\")","v":"Outcome"},{"$f":"IFERROR(INDEX($B$9:$I$408,$CM251,COLUMNS($CN$9:CR251)),\"\")","v":"-"},{"$f":"IFERROR(INDEX($B$9:$I$408,$CM251,COLUMNS($CN$9:CS251)),\"\")","v":"-"},{"$f":"IFERROR(INDEX($B$9:$I$408,$CM251,COLUMNS($CN$9:CT251)),\"\")","v":"Improved operation of processes or assets (inc. e.g. electricity grid stability, agricultural livelihoods, forest management)"},{"$f":"IFERROR(INDEX($B$9:$I$408,$CM251,COLUMNS($CN$9:CU251)),\"\")","v":"Yes/No"}]
[null,{"$f":"IF(ISBLANK('TA Indicator Bank'!B248),\"\",'TA Indicator Bank'!B248)","v":"TA244"},{"$f":"IF(ISBLANK('TA Indicator Bank'!C248),\"\",'TA Indicator Bank'!C248)","v":"Savings achieved (compared to pre-intervention)"},{"$f":"IF(ISBLANK('TA Indicator Bank'!D248),\"\",'TA Indicator Bank'!D248)","v":"-"},{"$f":"IF(ISBLANK('TA Indicator Bank'!E248),\"\",'TA Indicator Bank'!E248)","v":"Outcome"},{"$f":"IF(ISBLANK('TA Indicator Bank'!F248),\"\",'TA Indicator Bank'!F248)","v":"-"},{"$f":"IF(ISBLANK('TA Indicator Bank'!G248),\"\",'TA Indicator Bank'!G248)","v":"-"},{"$f":"IF(ISBLANK('TA Indicator Bank'!H248),\"\",'TA Indicator Bank'!H248)","v":"Improved operation of processes or assets (inc. e.g. electricity grid stability, agricultural livelihoods, forest management)"},{"$f":"IF(ISBLANK('TA Indicator Bank'!I248),\"\",'TA Indicator Bank'!I248)","v":"Number"},{"$f":"IF(ISBLANK('TA Indicator Bank'!J248),\"\",'TA Indicator Bank'!J248)","v":0},{"$f":"IF(ISBLANK('TA Indicator Bank'!K248),\"\",'TA Indicator Bank'!K248)","v":0},{"$f":"IF(ISBLANK('TA Indicator Bank'!L248),\"\",'TA Indicator Bank'!L248)","v":0},{"$f":"IF(ISBLANK('TA Indicator Bank'!M248),\"\",'TA Indicator Bank'!M248)","v":0},{"$f":"IF(ISBLANK('TA Indicator Bank'!N248),\"\",'TA Indicator Bank'!N248)","v":0},{"$f":"IF(ISBLANK('TA Indicator Bank'!O248),\"\",'TA Indicator Bank'!O248)","v":0},{"$f":"IF(ISBLANK('TA Indicator Bank'!P248),\"\",'TA Indicator Bank'!P248)","v":0},{"$f":"IF(ISBLANK('TA Indicator Bank'!Q248),\"\",'TA Indicator Bank'!Q248)","v":0},{"$f":"IF(ISBLANK('TA Indicator Bank'!R248),\"\",'TA Indicator Bank'!R248)","v":0},{"$f":"IF(ISBLANK('TA Indicator Bank'!S248),\"\",'TA Indicator Bank'!S248)","v":0},{"$f":"IF(ISBLANK('TA Indicator Bank'!T248),\"\",'TA Indicator Bank'!T248)","v":0},{"$f":"IF(ISBLANK('TA Indicator Bank'!U248),\"\",'TA Indicator Bank'!U248)","v":0},{"$f":"IF(ISBLANK('TA Indicator Bank'!V248),\"\",'TA Indicator Bank'!V248)","v":0},{"$f":"IF(ISBLANK('TA Indicator Bank'!W248),\"\",'TA Indicator Bank'!W248)","v":0},{"$f":"IF(ISBLANK('TA Indicator Bank'!X248),\"\",'TA Indicator Bank'!X248)","v":0},{"$f":"IF(ISBLANK('TA Indicator Bank'!Y248),\"\",'TA Indicator Bank'!Y248)","v":0},{"$f":"IF(ISBLANK('TA Indicator Bank'!Z248),\"\",'TA Indicator Bank'!Z248)","v":0},{"$f":"IF(ISBLANK('TA Indicator Bank'!AA248),\"\",'TA Indicator Bank'!AA248)","v":0},{"$f":"IF(ISBLANK('TA Indicator Bank'!AB248),\"\",'TA Indicator Bank'!AB248)","v":0},{"$f":"IF(ISBLANK('TA Indicator Bank'!AC248),\"\",'TA Indicator Bank'!AC248)","v":0},{"$f":"IF(ISBLANK('TA Indicator Bank'!AD248),\"\",'TA Indicator Bank'!AD248)","v":0},{"$f":"IF(ISBLANK('TA Indicator Bank'!AE248),\"\",'TA Indicator Bank'!AE248)","v":0},{"$f":"IF(ISBLANK('TA Indicator Bank'!AF248),\"\",'TA Indicator Bank'!AF248)","v":0},{"$f":"IF(ISBLANK('TA Indicator Bank'!AG248),\"\",'TA Indicator Bank'!AG248)","v":0},{"$f":"IF(ISBLANK('TA Indicator Bank'!AH248),\"\",'TA Indicator Bank'!AH248)","v":0},{"$f":"IF(ISBLANK('TA Indicator Bank'!AI248),\"\",'TA Indicator Bank'!AI248)","v":0},{"$f":"IF(ISBLANK('TA Indicator Bank'!AJ248),\"\",'TA Indicator Bank'!AJ248)","v":0},{"$f":"IF(ISBLANK('TA Indicator Bank'!AK248),\"\",'TA Indicator Bank'!AK248)","v":0},{"$f":"IF(ISBLANK('TA Indicator Bank'!AL248),\"\",'TA Indicator Bank'!AL248)","v":1},{"$f":"IF(ISBLANK('TA Indicator Bank'!AM248),\"\",'TA Indicator Bank'!AM248)","v":0},{"$f":"IF(ISBLANK('TA Indicator Bank'!AN248),\"\",'TA Indicator Bank'!AN248)","v":0},{"$f":"IF(ISBLANK('TA Indicator Bank'!AO248),\"\",'TA Indicator Bank'!AO248)","v":0},{"$f":"IF(ISBLANK('TA Indicator Bank'!AP248),\"\",'TA Indicator Bank'!AP248)","v":0},{"$f":"IF(ISBLANK('TA Indicator Bank'!AQ248),\"\",'TA Indicator Bank'!AQ248)","v":0},{"$f":"IF(ISBLANK('TA Indicator Bank'!AR248),\"\",'TA Indicator Bank'!AR248)","v":0},{"$f":"IF(ISBLANK('TA Indicator Bank'!AS248),\"\",'TA Indicator Bank'!AS248)","v":1},{"$f":"IF(ISBLANK('TA Indicator Bank'!AT248),\"\",'TA Indicator Bank'!AT248)","v":0},0,0,0,0,0,0,0,0,0,0,0,0,0,0,1,0,0,0,0,0,0,0,0,0,1,0,0,0,0,0,1,0,0,0,1,{"$f":"IF(AND(AP252=1,AP$410=1),1,0)","v":0},{"$f":"IF(AND(AQ252=1,AQ$410=1),1,0)","v":0},{"$f":"IF(AND(AR252=1,AR$410=1),1,0)","v":0},{"$f":"IF(AND(AS252=1,AS$410=1),1,0)","v":1},{"$f":"IF(AND(AT252=1,AT$410=1),1,0)","v":0},1,1,244,244,{"$f":"IFERROR(SMALL($CL$9:$CL$408,CK252),\"\")","v":244},{"$f":"IFERROR(INDEX($B$9:$I$408,$CM252,COLUMNS($CN$9:CN252)),\"\")","v":"TA244"},{"$f":"IFERROR(INDEX($B$9:$I$408,$CM252,COLUMNS($CN$9:CO252)),\"\")","v":"Savings achieved (compared to pre-intervention)"},{"$f":"IFERROR(INDEX($B$9:$I$408,$CM252,COLUMNS($CN$9:CP252)),\"\")","v":"-"},{"$f":"IFERROR(INDEX($B$9:$I$408,$CM252,COLUMNS($CN$9:CQ252)),\"\")","v":"Outcome"},{"$f":"IFERROR(INDEX($B$9:$I$408,$CM252,COLUMNS($CN$9:CR252)),\"\")","v":"-"},{"$f":"IFERROR(INDEX($B$9:$I$408,$CM252,COLUMNS($CN$9:CS252)),\"\")","v":"-"},{"$f":"IFERROR(INDEX($B$9:$I$408,$CM252,COLUMNS($CN$9:CT252)),\"\")","v":"Improved operation of processes or assets (inc. e.g. electricity grid stability, agricultural livelihoods, forest management)"},{"$f":"IFERROR(INDEX($B$9:$I$408,$CM252,COLUMNS($CN$9:CU252)),\"\")","v":"Number"}]
[null,{"$f":"IF(ISBLANK('TA Indicator Bank'!B249),\"\",'TA Indicator Bank'!B249)","v":"TA245"},{"$f":"IF(ISBLANK('TA Indicator Bank'!C249),\"\",'TA Indicator Bank'!C249)","v":"Proposed system enhancement are implemented"},{"$f":"IF(ISBLANK('TA Indicator Bank'!D249),\"\",'TA Indicator Bank'!D249)","v":"-"},{"$f":"IF(ISBLANK('TA Indicator Bank'!E249),\"\",'TA Indicator Bank'!E249)","v":"Outcome"},{"$f":"IF(ISBLANK('TA Indicator Bank'!F249),\"\",'TA Indicator Bank'!F249)","v":"-"},{"$f":"IF(ISBLANK('TA Indicator Bank'!G249),\"\",'TA Indicator Bank'!G249)","v":"-"},{"$f":"IF(ISBLANK('TA Indicator Bank'!H249),\"\",'TA Indicator Bank'!H249)","v":"Improved operation of processes or assets (inc. e.g. electricity grid stability, agricultural livelihoods, forest management)"},{"$f":"IF(ISBLANK('TA Indicator Bank'!I249),\"\",'TA Indicator Bank'!I249)","v":"Yes/No"},{"$f":"IF(ISBLANK('TA Indicator Bank'!J249),\"\",'TA Indicator Bank'!J249)","v":0},{"$f":"IF(ISBLANK('TA Indicator Bank'!K249),\"\",'TA Indicator Bank'!K249)","v":0},{"$f":"IF(ISBLANK('TA Indicator Bank'!L249),\"\",'TA Indicator Bank'!L249)","v":0},{"$f":"IF(ISBLANK('TA Indicator Bank'!M249),\"\",'TA Indicator Bank'!M249)","v":0},{"$f":"IF(ISBLANK('TA Indicator Bank'!N249),\"\",'TA Indicator Bank'!N249)","v":0},{"$f":"IF(ISBLANK('TA Indicator Bank'!O249),\"\",'TA Indicator Bank'!O249)","v":0},{"$f":"IF(ISBLANK('TA Indicator Bank'!P249),\"\",'TA Indicator Bank'!P249)","v":0},{"$f":"IF(ISBLANK('TA Indicator Bank'!Q249),\"\",'TA Indicator Bank'!Q249)","v":0},{"$f":"IF(ISBLANK('TA Indicator Bank'!R249),\"\",'TA Indicator Bank'!R249)","v":0},{"$f":"IF(ISBLANK('TA Indicator Bank'!S249),\"\",'TA Indicator Bank'!S249)","v":0},{"$f":"IF(ISBLANK('TA Indicator Bank'!T249),\"\",'TA Indicator Bank'!T249)","v":0},{"$f":"IF(ISBLANK('TA Indicator Bank'!U249),\"\",'TA Indicator Bank'!U249)","v":0},{"$f":"IF(ISBLANK('TA Indicator Bank'!V249),\"\",'TA Indicator Bank'!V249)","v":0},{"$f":"IF(ISBLANK('TA Indicator Bank'!W249),\"\",'TA Indicator Bank'!W249)","v":0},{"$f":"IF(ISBLANK('TA Indicator Bank'!X249),\"\",'TA Indicator Bank'!X249)","v":0},{"$f":"IF(ISBLANK('TA Indicator Bank'!Y249),\"\",'TA Indicator Bank'!Y249)","v":0},{"$f":"IF(ISBLANK('TA Indicator Bank'!Z249),\"\",'TA Indicator Bank'!Z249)","v":0},{"$f":"IF(ISBLANK('TA Indicator Bank'!AA249),\"\",'TA Indicator Bank'!AA249)","v":0},{"$f":"IF(ISBLANK('TA Indicator Bank'!AB249),\"\",'TA Indicator Bank'!AB249)","v":0},{"$f":"IF(ISBLANK('TA Indicator Bank'!AC249),\"\",'TA Indicator Bank'!AC249)","v":0},{"$f":"IF(ISBLANK('TA Indicator Bank'!AD249),\"\",'TA Indicator Bank'!AD249)","v":0},{"$f":"IF(ISBLANK('TA Indicator Bank'!AE249),\"\",'TA Indicator Bank'!AE249)","v":0},{"$f":"IF(ISBLANK('TA Indicator Bank'!AF249),\"\",'TA Indicator Bank'!AF249)","v":0},{"$f":"IF(ISBLANK('TA Indicator Bank'!AG249),\"\",'TA Indicator Bank'!AG249)","v":0},{"$f":"IF(ISBLANK('TA Indicator Bank'!AH249),\"\",'TA Indicator Bank'!AH249)","v":0},{"$f":"IF(ISBLANK('TA Indicator Bank'!AI249),\"\",'TA Indicator Bank'!AI249)","v":0},{"$f":"IF(ISBLANK('TA Indicator Bank'!AJ249),\"\",'TA Indicator Bank'!AJ249)","v":0},{"$f":"IF(ISBLANK('TA Indicator Bank'!AK249),\"\",'TA Indicator Bank'!AK249)","v":0},{"$f":"IF(ISBLANK('TA Indicator Bank'!AL249),\"\",'TA Indicator Bank'!AL249)","v":1},{"$f":"IF(ISBLANK('TA Indicator Bank'!AM249),\"\",'TA Indicator Bank'!AM249)","v":0},{"$f":"IF(ISBLANK('TA Indicator Bank'!AN249),\"\",'TA Indicator Bank'!AN249)","v":0},{"$f":"IF(ISBLANK('TA Indicator Bank'!AO249),\"\",'TA Indicator Bank'!AO249)","v":0},{"$f":"IF(ISBLANK('TA Indicator Bank'!AP249),\"\",'TA Indicator Bank'!AP249)","v":0},{"$f":"IF(ISBLANK('TA Indicator Bank'!AQ249),\"\",'TA Indicator Bank'!AQ249)","v":0},{"$f":"IF(ISBLANK('TA Indicator Bank'!AR249),\"\",'TA Indicator Bank'!AR249)","v":0},{"$f":"IF(ISBLANK('TA Indicator Bank'!AS249),\"\",'TA Indicator Bank'!AS249)","v":1},{"$f":"IF(ISBLANK('TA Indicator Bank'!AT249),\"\",'TA Indicator Bank'!AT249)","v":0},0,0,0,0,0,0,0,0,0,0,0,0,0,0,1,0,0,0,0,0,0,0,0,0,1,0,0,0,0,0,1,0,0,0,1,{"$f":"IF(AND(AP253=1,AP$410=1),1,0)","v":0},{"$f":"IF(AND(AQ253=1,AQ$410=1),1,0)","v":0},{"$f":"IF(AND(AR253=1,AR$410=1),1,0)","v":0},{"$f":"IF(AND(AS253=1,AS$410=1),1,0)","v":1},{"$f":"IF(AND(AT253=1,AT$410=1),1,0)","v":0},1,1,245,245,{"$f":"IFERROR(SMALL($CL$9:$CL$408,CK253),\"\")","v":245},{"$f":"IFERROR(INDEX($B$9:$I$408,$CM253,COLUMNS($CN$9:CN253)),\"\")","v":"TA245"},{"$f":"IFERROR(INDEX($B$9:$I$408,$CM253,COLUMNS($CN$9:CO253)),\"\")","v":"Proposed system enhancement are implemented"},{"$f":"IFERROR(INDEX($B$9:$I$408,$CM253,COLUMNS($CN$9:CP253)),\"\")","v":"-"},{"$f":"IFERROR(INDEX($B$9:$I$408,$CM253,COLUMNS($CN$9:CQ253)),\"\")","v":"Outcome"},{"$f":"IFERROR(INDEX($B$9:$I$408,$CM253,COLUMNS($CN$9:CR253)),\"\")","v":"-"},{"$f":"IFERROR(INDEX($B$9:$I$408,$CM253,COLUMNS($CN$9:CS253)),\"\")","v":"-"},{"$f":"IFERROR(INDEX($B$9:$I$408,$CM253,COLUMNS($CN$9:CT253)),\"\")","v":"Improved operation of processes or assets (inc. e.g. electricity grid stability, agricultural livelihoods, forest management)"},{"$f":"IFERROR(INDEX($B$9:$I$408,$CM253,COLUMNS($CN$9:CU253)),\"\")","v":"Yes/No"}]
[null,{"$f":"IF(ISBLANK('TA Indicator Bank'!B250),\"\",'TA Indicator Bank'!B250)","v":"TA246"},{"$f":"IF(ISBLANK('TA Indicator Bank'!C250),\"\",'TA Indicator Bank'!C250)","v":"Percentage of countries whose agencies improved quality and timeliness of (emergency) response"},{"$f":"IF(ISBLANK('TA Indicator Bank'!D250),\"\",'TA Indicator Bank'!D250)","v":"-"},{"$f":"IF(ISBLANK('TA Indicator Bank'!E250),\"\",'TA Indicator Bank'!E250)","v":"Outcome"},{"$f":"IF(ISBLANK('TA Indicator Bank'!F250),\"\",'TA Indicator Bank'!F250)","v":"-"},{"$f":"IF(ISBLANK('TA Indicator Bank'!G250),\"\",'TA Indicator Bank'!G250)","v":"-"},{"$f":"IF(ISBLANK('TA Indicator Bank'!H250),\"\",'TA Indicator Bank'!H250)","v":"Improved operation of processes or assets (inc. e.g. electricity grid stability, agricultural livelihoods, forest management)"},{"$f":"IF(ISBLANK('TA Indicator Bank'!I250),\"\",'TA Indicator Bank'!I250)","v":"Percentage"},{"$f":"IF(ISBLANK('TA Indicator Bank'!J250),\"\",'TA Indicator Bank'!J250)","v":0},{"$f":"IF(ISBLANK('TA Indicator Bank'!K250),\"\",'TA Indicator Bank'!K250)","v":0},{"$f":"IF(ISBLANK('TA Indicator Bank'!L250),\"\",'TA Indicator Bank'!L250)","v":0},{"$f":"IF(ISBLANK('TA Indicator Bank'!M250),\"\",'TA Indicator Bank'!M250)","v":0},{"$f":"IF(ISBLANK('TA Indicator Bank'!N250),\"\",'TA Indicator Bank'!N250)","v":0},{"$f":"IF(ISBLANK('TA Indicator Bank'!O250),\"\",'TA Indicator Bank'!O250)","v":0},{"$f":"IF(ISBLANK('TA Indicator Bank'!P250),\"\",'TA Indicator Bank'!P250)","v":0},{"$f":"IF(ISBLANK('TA Indicator Bank'!Q250),\"\",'TA Indicator Bank'!Q250)","v":0},{"$f":"IF(ISBLANK('TA Indicator Bank'!R250),\"\",'TA Indicator Bank'!R250)","v":0},{"$f":"IF(ISBLANK('TA Indicator Bank'!S250),\"\",'TA Indicator Bank'!S250)","v":0},{"$f":"IF(ISBLANK('TA Indicator Bank'!T250),\"\",'TA Indicator Bank'!T250)","v":0},{"$f":"IF(ISBLANK('TA Indicator Bank'!U250),\"\",'TA Indicator Bank'!U250)","v":0},{"$f":"IF(ISBLANK('TA Indicator Bank'!V250),\"\",'TA Indicator Bank'!V250)","v":0},{"$f":"IF(ISBLANK('TA Indicator Bank'!W250),\"\",'TA Indicator Bank'!W250)","v":0},{"$f":"IF(ISBLANK('TA Indicator Bank'!X250),\"\",'TA Indicator Bank'!X250)","v":0},{"$f":"IF(ISBLANK('TA Indicator Bank'!Y250),\"\",'TA Indicator Bank'!Y250)","v":0},{"$f":"IF(ISBLANK('TA Indicator Bank'!Z250),\"\",'TA Indicator Bank'!Z250)","v":0},{"$f":"IF(ISBLANK('TA Indicator Bank'!AA250),\"\",'TA Indicator Bank'!AA250)","v":0},{"$f":"IF(ISBLANK('TA Indicator Bank'!AB250),\"\",'TA Indicator Bank'!AB250)","v":0},{"$f":"IF(ISBLANK('TA Indicator Bank'!AC250),\"\",'TA Indicator Bank'!AC250)","v":0},{"$f":"IF(ISBLANK('TA Indicator Bank'!AD250),\"\",'TA Indicator Bank'!AD250)","v":0},{"$f":"IF(ISBLANK('TA Indicator Bank'!AE250),\"\",'TA Indicator Bank'!AE250)","v":0},{"$f":"IF(ISBLANK('TA Indicator Bank'!AF250),\"\",'TA Indicator Bank'!AF250)","v":0},{"$f":"IF(ISBLANK('TA Indicator Bank'!AG250),\"\",'TA Indicator Bank'!AG250)","v":0},{"$f":"IF(ISBLANK('TA Indicator Bank'!AH250),\"\",'TA Indicator Bank'!AH250)","v":0},{"$f":"IF(ISBLANK('TA Indicator Bank'!AI250),\"\",'TA Indicator Bank'!AI250)","v":0},{"$f":"IF(ISBLANK('TA Indicator Bank'!AJ250),\"\",'TA Indicator Bank'!AJ250)","v":0},{"$f":"IF(ISBLANK('TA Indicator Bank'!AK250),\"\",'TA Indicator Bank'!AK250)","v":0},{"$f":"IF(ISBLANK('TA Indicator Bank'!AL250),\"\",'TA Indicator Bank'!AL250)","v":1},{"$f":"IF(ISBLANK('TA Indicator Bank'!AM250),\"\",'TA Indicator Bank'!AM250)","v":0},{"$f":"IF(ISBLANK('TA Indicator Bank'!AN250),\"\",'TA Indicator Bank'!AN250)","v":0},{"$f":"IF(ISBLANK('TA Indicator Bank'!AO250),\"\",'TA Indicator Bank'!AO250)","v":0},{"$f":"IF(ISBLANK('TA Indicator Bank'!AP250),\"\",'TA Indicator Bank'!AP250)","v":0},{"$f":"IF(ISBLANK('TA Indicator Bank'!AQ250),\"\",'TA Indicator Bank'!AQ250)","v":0},{"$f":"IF(ISBLANK('TA Indicator Bank'!AR250),\"\",'TA Indicator Bank'!AR250)","v":0},{"$f":"IF(ISBLANK('TA Indicator Bank'!AS250),\"\",'TA Indicator Bank'!AS250)","v":1},{"$f":"IF(ISBLANK('TA Indicator Bank'!AT250),\"\",'TA Indicator Bank'!AT250)","v":0},0,0,0,0,0,0,0,0,0,0,0,0,0,0,1,0,0,0,0,0,0,0,0,0,1,0,0,0,0,0,1,0,0,0,1,{"$f":"IF(AND(AP254=1,AP$410=1),1,0)","v":0},{"$f":"IF(AND(AQ254=1,AQ$410=1),1,0)","v":0},{"$f":"IF(AND(AR254=1,AR$410=1),1,0)","v":0},{"$f":"IF(AND(AS254=1,AS$410=1),1,0)","v":1},{"$f":"IF(AND(AT254=1,AT$410=1),1,0)","v":0},1,1,246,246,{"$f":"IFERROR(SMALL($CL$9:$CL$408,CK254),\"\")","v":246},{"$f":"IFERROR(INDEX($B$9:$I$408,$CM254,COLUMNS($CN$9:CN254)),\"\")","v":"TA246"},{"$f":"IFERROR(INDEX($B$9:$I$408,$CM254,COLUMNS($CN$9:CO254)),\"\")","v":"Percentage of countries whose agencies improved quality and timeliness of (emergency) response"},{"$f":"IFERROR(INDEX($B$9:$I$408,$CM254,COLUMNS($CN$9:CP254)),\"\")","v":"-"},{"$f":"IFERROR(INDEX($B$9:$I$408,$CM254,COLUMNS($CN$9:CQ254)),\"\")","v":"Outcome"},{"$f":"IFERROR(INDEX($B$9:$I$408,$CM254,COLUMNS($CN$9:CR254)),\"\")","v":"-"},{"$f":"IFERROR(INDEX($B$9:$I$408,$CM254,COLUMNS($CN$9:CS254)),\"\")","v":"-"},{"$f":"IFERROR(INDEX($B$9:$I$408,$CM254,COLUMNS($CN$9:CT254)),\"\")","v":"Improved operation of processes or assets (inc. e.g. electricity grid stability, agricultural livelihoods, forest management)"},{"$f":"IFERROR(INDEX($B$9:$I$408,$CM254,COLUMNS($CN$9:CU254)),\"\")","v":"Percentage"}]
[null,{"$f":"IF(ISBLANK('TA Indicator Bank'!B251),\"\",'TA Indicator Bank'!B251)","v":"TA247"},{"$f":"IF(ISBLANK('TA Indicator Bank'!C251),\"\",'TA Indicator Bank'!C251)","v":"Level of installed capacity of low-carbon energy installed as result of programme support"},{"$f":"IF(ISBLANK('TA Indicator Bank'!D251),\"\",'TA Indicator Bank'!D251)","v":"-"},{"$f":"IF(ISBLANK('TA Indicator Bank'!E251),\"\",'TA Indicator Bank'!E251)","v":"Outcome"},{"$f":"IF(ISBLANK('TA Indicator Bank'!F251),\"\",'TA Indicator Bank'!F251)","v":"-"},{"$f":"IF(ISBLANK('TA Indicator Bank'!G251),\"\",'TA Indicator Bank'!G251)","v":"-"},{"$f":"IF(ISBLANK('TA Indicator Bank'!H251),\"\",'TA Indicator Bank'!H251)","v":"Increased access to climate goods and services"},{"$f":"IF(ISBLANK('TA Indicator Bank'!I251),\"\",'TA Indicator Bank'!I251)","v":"Number"},{"$f":"IF(ISBLANK('TA Indicator Bank'!J251),\"\",'TA Indicator Bank'!J251)","v":0},{"$f":"IF(ISBLANK('TA Indicator Bank'!K251),\"\",'TA Indicator Bank'!K251)","v":0},{"$f":"IF(ISBLANK('TA Indicator Bank'!L251),\"\",'TA Indicator Bank'!L251)","v":0},{"$f":"IF(ISBLANK('TA Indicator Bank'!M251),\"\",'TA Indicator Bank'!M251)","v":0},{"$f":"IF(ISBLANK('TA Indicator Bank'!N251),\"\",'TA Indicator Bank'!N251)","v":0},{"$f":"IF(ISBLANK('TA Indicator Bank'!O251),\"\",'TA Indicator Bank'!O251)","v":0},{"$f":"IF(ISBLANK('TA Indicator Bank'!P251),\"\",'TA Indicator Bank'!P251)","v":0},{"$f":"IF(ISBLANK('TA Indicator Bank'!Q251),\"\",'TA Indicator Bank'!Q251)","v":0},{"$f":"IF(ISBLANK('TA Indicator Bank'!R251),\"\",'TA Indicator Bank'!R251)","v":0},{"$f":"IF(ISBLANK('TA Indicator Bank'!S251),\"\",'TA Indicator Bank'!S251)","v":0},{"$f":"IF(ISBLANK('TA Indicator Bank'!T251),\"\",'TA Indicator Bank'!T251)","v":0},{"$f":"IF(ISBLANK('TA Indicator Bank'!U251),\"\",'TA Indicator Bank'!U251)","v":0},{"$f":"IF(ISBLANK('TA Indicator Bank'!V251),\"\",'TA Indicator Bank'!V251)","v":0},{"$f":"IF(ISBLANK('TA Indicator Bank'!W251),\"\",'TA Indicator Bank'!W251)","v":0},{"$f":"IF(ISBLANK('TA Indicator Bank'!X251),\"\",'TA Indicator Bank'!X251)","v":0},{"$f":"IF(ISBLANK('TA Indicator Bank'!Y251),\"\",'TA Indicator Bank'!Y251)","v":0},{"$f":"IF(ISBLANK('TA Indicator Bank'!Z251),\"\",'TA Indicator Bank'!Z251)","v":0},{"$f":"IF(ISBLANK('TA Indicator Bank'!AA251),\"\",'TA Indicator Bank'!AA251)","v":0},{"$f":"IF(ISBLANK('TA Indicator Bank'!AB251),\"\",'TA Indicator Bank'!AB251)","v":0},{"$f":"IF(ISBLANK('TA Indicator Bank'!AC251),\"\",'TA Indicator Bank'!AC251)","v":0},{"$f":"IF(ISBLANK('TA Indicator Bank'!AD251),\"\",'TA Indicator Bank'!AD251)","v":0},{"$f":"IF(ISBLANK('TA Indicator Bank'!AE251),\"\",'TA Indicator Bank'!AE251)","v":0},{"$f":"IF(ISBLANK('TA Indicator Bank'!AF251),\"\",'TA Indicator Bank'!AF251)","v":0},{"$f":"IF(ISBLANK('TA Indicator Bank'!AG251),\"\",'TA Indicator Bank'!AG251)","v":0},{"$f":"IF(ISBLANK('TA Indicator Bank'!AH251),\"\",'TA Indicator Bank'!AH251)","v":0},{"$f":"IF(ISBLANK('TA Indicator Bank'!AI251),\"\",'TA Indicator Bank'!AI251)","v":0},{"$f":"IF(ISBLANK('TA Indicator Bank'!AJ251),\"\",'TA Indicator Bank'!AJ251)","v":0},{"$f":"IF(ISBLANK('TA Indicator Bank'!AK251),\"\",'TA Indicator Bank'!AK251)","v":0},{"$f":"IF(ISBLANK('TA Indicator Bank'!AL251),\"\",'TA Indicator Bank'!AL251)","v":0},{"$f":"IF(ISBLANK('TA Indicator Bank'!AM251),\"\",'TA Indicator Bank'!AM251)","v":1},{"$f":"IF(ISBLANK('TA Indicator Bank'!AN251),\"\",'TA Indicator Bank'!AN251)","v":0},{"$f":"IF(ISBLANK('TA Indicator Bank'!AO251),\"\",'TA Indicator Bank'!AO251)","v":0},{"$f":"IF(ISBLANK('TA Indicator Bank'!AP251),\"\",'TA Indicator Bank'!AP251)","v":0},{"$f":"IF(ISBLANK('TA Indicator Bank'!AQ251),\"\",'TA Indicator Bank'!AQ251)","v":0},{"$f":"IF(ISBLANK('TA Indicator Bank'!AR251),\"\",'TA Indicator Bank'!AR251)","v":0},{"$f":"IF(ISBLANK('TA Indicator Bank'!AS251),\"\",'TA Indicator Bank'!AS251)","v":1},{"$f":"IF(ISBLANK('TA Indicator Bank'!AT251),\"\",'TA Indicator Bank'!AT251)","v":0},0,0,0,0,0,0,0,0,0,0,0,0,0,0,1,0,0,0,0,0,0,0,0,0,1,0,0,0,0,0,0,1,0,0,1,{"$f":"IF(AND(AP255=1,AP$410=1),1,0)","v":0},{"$f":"IF(AND(AQ255=1,AQ$410=1),1,0)","v":0},{"$f":"IF(AND(AR255=1,AR$410=1),1,0)","v":0},{"$f":"IF(AND(AS255=1,AS$410=1),1,0)","v":1},{"$f":"IF(AND(AT255=1,AT$410=1),1,0)","v":0},1,1,247,247,{"$f":"IFERROR(SMALL($CL$9:$CL$408,CK255),\"\")","v":247},{"$f":"IFERROR(INDEX($B$9:$I$408,$CM255,COLUMNS($CN$9:CN255)),\"\")","v":"TA247"},{"$f":"IFERROR(INDEX($B$9:$I$408,$CM255,COLUMNS($CN$9:CO255)),\"\")","v":"Level of installed capacity of low-carbon energy installed as result of programme support"},{"$f":"IFERROR(INDEX($B$9:$I$408,$CM255,COLUMNS($CN$9:CP255)),\"\")","v":"-"},{"$f":"IFERROR(INDEX($B$9:$I$408,$CM255,COLUMNS($CN$9:CQ255)),\"\")","v":"Outcome"},{"$f":"IFERROR(INDEX($B$9:$I$408,$CM255,COLUMNS($CN$9:CR255)),\"\")","v":"-"},{"$f":"IFERROR(INDEX($B$9:$I$408,$CM255,COLUMNS($CN$9:CS255)),\"\")","v":"-"},{"$f":"IFERROR(INDEX($B$9:$I$408,$CM255,COLUMNS($CN$9:CT255)),\"\")","v":"Increased access to climate goods and services"},{"$f":"IFERROR(INDEX($B$9:$I$408,$CM255,COLUMNS($CN$9:CU255)),\"\")","v":"Number"}]
[null,{"$f":"IF(ISBLANK('TA Indicator Bank'!B252),\"\",'TA Indicator Bank'!B252)","v":"TA248"},{"$f":"IF(ISBLANK('TA Indicator Bank'!C252),\"\",'TA Indicator Bank'!C252)","v":"Number of (additional) passengers of low-carbon transport as result of programme support"},{"$f":"IF(ISBLANK('TA Indicator Bank'!D252),\"\",'TA Indicator Bank'!D252)","v":"-"},{"$f":"IF(ISBLANK('TA Indicator Bank'!E252),\"\",'TA Indicator Bank'!E252)","v":"Outcome"},{"$f":"IF(ISBLANK('TA Indicator Bank'!F252),\"\",'TA Indicator Bank'!F252)","v":"-"},{"$f":"IF(ISBLANK('TA Indicator Bank'!G252),\"\",'TA Indicator Bank'!G252)","v":"-"},{"$f":"IF(ISBLANK('TA Indicator Bank'!H252),\"\",'TA Indicator Bank'!H252)","v":"Increased access to climate goods and services"},{"$f":"IF(ISBLANK('TA Indicator Bank'!I252),\"\",'TA Indicator Bank'!I252)","v":"Number"},{"$f":"IF(ISBLANK('TA Indicator Bank'!J252),\"\",'TA Indicator Bank'!J252)","v":0},{"$f":"IF(ISBLANK('TA Indicator Bank'!K252),\"\",'TA Indicator Bank'!K252)","v":0},{"$f":"IF(ISBLANK('TA Indicator Bank'!L252),\"\",'TA Indicator Bank'!L252)","v":0},{"$f":"IF(ISBLANK('TA Indicator Bank'!M252),\"\",'TA Indicator Bank'!M252)","v":0},{"$f":"IF(ISBLANK('TA Indicator Bank'!N252),\"\",'TA Indicator Bank'!N252)","v":0},{"$f":"IF(ISBLANK('TA Indicator Bank'!O252),\"\",'TA Indicator Bank'!O252)","v":0},{"$f":"IF(ISBLANK('TA Indicator Bank'!P252),\"\",'TA Indicator Bank'!P252)","v":0},{"$f":"IF(ISBLANK('TA Indicator Bank'!Q252),\"\",'TA Indicator Bank'!Q252)","v":0},{"$f":"IF(ISBLANK('TA Indicator Bank'!R252),\"\",'TA Indicator Bank'!R252)","v":0},{"$f":"IF(ISBLANK('TA Indicator Bank'!S252),\"\",'TA Indicator Bank'!S252)","v":0},{"$f":"IF(ISBLANK('TA Indicator Bank'!T252),\"\",'TA Indicator Bank'!T252)","v":0},{"$f":"IF(ISBLANK('TA Indicator Bank'!U252),\"\",'TA Indicator Bank'!U252)","v":0},{"$f":"IF(ISBLANK('TA Indicator Bank'!V252),\"\",'TA Indicator Bank'!V252)","v":0},{"$f":"IF(ISBLANK('TA Indicator Bank'!W252),\"\",'TA Indicator Bank'!W252)","v":0},{"$f":"IF(ISBLANK('TA Indicator Bank'!X252),\"\",'TA Indicator Bank'!X252)","v":0},{"$f":"IF(ISBLANK('TA Indicator Bank'!Y252),\"\",'TA Indicator Bank'!Y252)","v":0},{"$f":"IF(ISBLANK('TA Indicator Bank'!Z252),\"\",'TA Indicator Bank'!Z252)","v":0},{"$f":"IF(ISBLANK('TA Indicator Bank'!AA252),\"\",'TA Indicator Bank'!AA252)","v":0},{"$f":"IF(ISBLANK('TA Indicator Bank'!AB252),\"\",'TA Indicator Bank'!AB252)","v":0},{"$f":"IF(ISBLANK('TA Indicator Bank'!AC252),\"\",'TA Indicator Bank'!AC252)","v":0},{"$f":"IF(ISBLANK('TA Indicator Bank'!AD252),\"\",'TA Indicator Bank'!AD252)","v":0},{"$f":"IF(ISBLANK('TA Indicator Bank'!AE252),\"\",'TA Indicator Bank'!AE252)","v":0},{"$f":"IF(ISBLANK('TA Indicator Bank'!AF252),\"\",'TA Indicator Bank'!AF252)","v":0},{"$f":"IF(ISBLANK('TA Indicator Bank'!AG252),\"\",'TA Indicator Bank'!AG252)","v":0},{"$f":"IF(ISBLANK('TA Indicator Bank'!AH252),\"\",'TA Indicator Bank'!AH252)","v":0},{"$f":"IF(ISBLANK('TA Indicator Bank'!AI252),\"\",'TA Indicator Bank'!AI252)","v":0},{"$f":"IF(ISBLANK('TA Indicator Bank'!AJ252),\"\",'TA Indicator Bank'!AJ252)","v":0},{"$f":"IF(ISBLANK('TA Indicator Bank'!AK252),\"\",'TA Indicator Bank'!AK252)","v":0},{"$f":"IF(ISBLANK('TA Indicator Bank'!AL252),\"\",'TA Indicator Bank'!AL252)","v":0},{"$f":"IF(ISBLANK('TA Indicator Bank'!AM252),\"\",'TA Indicator Bank'!AM252)","v":1},{"$f":"IF(ISBLANK('TA Indicator Bank'!AN252),\"\",'TA Indicator Bank'!AN252)","v":0},{"$f":"IF(ISBLANK('TA Indicator Bank'!AO252),\"\",'TA Indicator Bank'!AO252)","v":0},{"$f":"IF(ISBLANK('TA Indicator Bank'!AP252),\"\",'TA Indicator Bank'!AP252)","v":0},{"$f":"IF(ISBLANK('TA Indicator Bank'!AQ252),\"\",'TA Indicator Bank'!AQ252)","v":0},{"$f":"IF(ISBLANK('TA Indicator Bank'!AR252),\"\",'TA Indicator Bank'!AR252)","v":0},{"$f":"IF(ISBLANK('TA Indicator Bank'!AS252),\"\",'TA Indicator Bank'!AS252)","v":1},{"$f":"IF(ISBLANK('TA Indicator Bank'!AT252),\"\",'TA Indicator Bank'!AT252)","v":0},0,0,0,0,0,0,0,0,0,0,0,0,0,0,1,0,0,0,0,0,0,0,0,0,1,0,0,0,0,0,0,1,0,0,1,{"$f":"IF(AND(AP256=1,AP$410=1),1,0)","v":0},{"$f":"IF(AND(AQ256=1,AQ$410=1),1,0)","v":0},{"$f":"IF(AND(AR256=1,AR$410=1),1,0)","v":0},{"$f":"IF(AND(AS256=1,AS$410=1),1,0)","v":1},{"$f":"IF(AND(AT256=1,AT$410=1),1,0)","v":0},1,1,248,248,{"$f":"IFERROR(SMALL($CL$9:$CL$408,CK256),\"\")","v":248},{"$f":"IFERROR(INDEX($B$9:$I$408,$CM256,COLUMNS($CN$9:CN256)),\"\")","v":"TA248"},{"$f":"IFERROR(INDEX($B$9:$I$408,$CM256,COLUMNS($CN$9:CO256)),\"\")","v":"Number of (additional) passengers of low-carbon transport as result of programme support"},{"$f":"IFERROR(INDEX($B$9:$I$408,$CM256,COLUMNS($CN$9:CP256)),\"\")","v":"-"},{"$f":"IFERROR(INDEX($B$9:$I$408,$CM256,COLUMNS($CN$9:CQ256)),\"\")","v":"Outcome"},{"$f":"IFERROR(INDEX($B$9:$I$408,$CM256,COLUMNS($CN$9:CR256)),\"\")","v":"-"},{"$f":"IFERROR(INDEX($B$9:$I$408,$CM256,COLUMNS($CN$9:CS256)),\"\")","v":"-"},{"$f":"IFERROR(INDEX($B$9:$I$408,$CM256,COLUMNS($CN$9:CT256)),\"\")","v":"Increased access to climate goods and services"},{"$f":"IFERROR(INDEX($B$9:$I$408,$CM256,COLUMNS($CN$9:CU256)),\"\")","v":"Number"}]
[null,{"$f":"IF(ISBLANK('TA Indicator Bank'!B253),\"\",'TA Indicator Bank'!B253)","v":"TA249"},{"$f":"IF(ISBLANK('TA Indicator Bank'!C253),\"\",'TA Indicator Bank'!C253)","v":"Number of green mini-grids installed as result of programme support"},{"$f":"IF(ISBLANK('TA Indicator Bank'!D253),\"\",'TA Indicator Bank'!D253)","v":"-"},{"$f":"IF(ISBLANK('TA Indicator Bank'!E253),\"\",'TA Indicator Bank'!E253)","v":"Outcome"},{"$f":"IF(ISBLANK('TA Indicator Bank'!F253),\"\",'TA Indicator Bank'!F253)","v":"-"},{"$f":"IF(ISBLANK('TA Indicator Bank'!G253),\"\",'TA Indicator Bank'!G253)","v":"-"},{"$f":"IF(ISBLANK('TA Indicator Bank'!H253),\"\",'TA Indicator Bank'!H253)","v":"Increased access to climate goods and services"},{"$f":"IF(ISBLANK('TA Indicator Bank'!I253),\"\",'TA Indicator Bank'!I253)","v":"Number"},{"$f":"IF(ISBLANK('TA Indicator Bank'!J253),\"\",'TA Indicator Bank'!J253)","v":0},{"$f":"IF(ISBLANK('TA Indicator Bank'!K253),\"\",'TA Indicator Bank'!K253)","v":0},{"$f":"IF(ISBLANK('TA Indicator Bank'!L253),\"\",'TA Indicator Bank'!L253)","v":0},{"$f":"IF(ISBLANK('TA Indicator Bank'!M253),\"\",'TA Indicator Bank'!M253)","v":0},{"$f":"IF(ISBLANK('TA Indicator Bank'!N253),\"\",'TA Indicator Bank'!N253)","v":0},{"$f":"IF(ISBLANK('TA Indicator Bank'!O253),\"\",'TA Indicator Bank'!O253)","v":0},{"$f":"IF(ISBLANK('TA Indicator Bank'!P253),\"\",'TA Indicator Bank'!P253)","v":0},{"$f":"IF(ISBLANK('TA Indicator Bank'!Q253),\"\",'TA Indicator Bank'!Q253)","v":0},{"$f":"IF(ISBLANK('TA Indicator Bank'!R253),\"\",'TA Indicator Bank'!R253)","v":0},{"$f":"IF(ISBLANK('TA Indicator Bank'!S253),\"\",'TA Indicator Bank'!S253)","v":0},{"$f":"IF(ISBLANK('TA Indicator Bank'!T253),\"\",'TA Indicator Bank'!T253)","v":0},{"$f":"IF(ISBLANK('TA Indicator Bank'!U253),\"\",'TA Indicator Bank'!U253)","v":0},{"$f":"IF(ISBLANK('TA Indicator Bank'!V253),\"\",'TA Indicator Bank'!V253)","v":0},{"$f":"IF(ISBLANK('TA Indicator Bank'!W253),\"\",'TA Indicator Bank'!W253)","v":0},{"$f":"IF(ISBLANK('TA Indicator Bank'!X253),\"\",'TA Indicator Bank'!X253)","v":0},{"$f":"IF(ISBLANK('TA Indicator Bank'!Y253),\"\",'TA Indicator Bank'!Y253)","v":0},{"$f":"IF(ISBLANK('TA Indicator Bank'!Z253),\"\",'TA Indicator Bank'!Z253)","v":0},{"$f":"IF(ISBLANK('TA Indicator Bank'!AA253),\"\",'TA Indicator Bank'!AA253)","v":0},{"$f":"IF(ISBLANK('TA Indicator Bank'!AB253),\"\",'TA Indicator Bank'!AB253)","v":0},{"$f":"IF(ISBLANK('TA Indicator Bank'!AC253),\"\",'TA Indicator Bank'!AC253)","v":0},{"$f":"IF(ISBLANK('TA Indicator Bank'!AD253),\"\",'TA Indicator Bank'!AD253)","v":0},{"$f":"IF(ISBLANK('TA Indicator Bank'!AE253),\"\",'TA Indicator Bank'!AE253)","v":0},{"$f":"IF(ISBLANK('TA Indicator Bank'!AF253),\"\",'TA Indicator Bank'!AF253)","v":0},{"$f":"IF(ISBLANK('TA Indicator Bank'!AG253),\"\",'TA Indicator Bank'!AG253)","v":0},{"$f":"IF(ISBLANK('TA Indicator Bank'!AH253),\"\",'TA Indicator Bank'!AH253)","v":0},{"$f":"IF(ISBLANK('TA Indicator Bank'!AI253),\"\",'TA Indicator Bank'!AI253)","v":0},{"$f":"IF(ISBLANK('TA Indicator Bank'!AJ253),\"\",'TA Indicator Bank'!AJ253)","v":0},{"$f":"IF(ISBLANK('TA Indicator Bank'!AK253),\"\",'TA Indicator Bank'!AK253)","v":0},{"$f":"IF(ISBLANK('TA Indicator Bank'!AL253),\"\",'TA Indicator Bank'!AL253)","v":0},{"$f":"IF(ISBLANK('TA Indicator Bank'!AM253),\"\",'TA Indicator Bank'!AM253)","v":1},{"$f":"IF(ISBLANK('TA Indicator Bank'!AN253),\"\",'TA Indicator Bank'!AN253)","v":0},{"$f":"IF(ISBLANK('TA Indicator Bank'!AO253),\"\",'TA Indicator Bank'!AO253)","v":0},{"$f":"IF(ISBLANK('TA Indicator Bank'!AP253),\"\",'TA Indicator Bank'!AP253)","v":0},{"$f":"IF(ISBLANK('TA Indicator Bank'!AQ253),\"\",'TA Indicator Bank'!AQ253)","v":0},{"$f":"IF(ISBLANK('TA Indicator Bank'!AR253),\"\",'TA Indicator Bank'!AR253)","v":0},{"$f":"IF(ISBLANK('TA Indicator Bank'!AS253),\"\",'TA Indicator Bank'!AS253)","v":1},{"$f":"IF(ISBLANK('TA Indicator Bank'!AT253),\"\",'TA Indicator Bank'!AT253)","v":0},0,0,0,0,0,0,0,0,0,0,0,0,0,0,1,0,0,0,0,0,0,0,0,0,1,0,0,0,0,0,0,1,0,0,1,{"$f":"IF(AND(AP257=1,AP$410=1),1,0)","v":0},{"$f":"IF(AND(AQ257=1,AQ$410=1),1,0)","v":0},{"$f":"IF(AND(AR257=1,AR$410=1),1,0)","v":0},{"$f":"IF(AND(AS257=1,AS$410=1),1,0)","v":1},{"$f":"IF(AND(AT257=1,AT$410=1),1,0)","v":0},1,1,249,249,{"$f":"IFERROR(SMALL($CL$9:$CL$408,CK257),\"\")","v":249},{"$f":"IFERROR(INDEX($B$9:$I$408,$CM257,COLUMNS($CN$9:CN257)),\"\")","v":"TA249"},{"$f":"IFERROR(INDEX($B$9:$I$408,$CM257,COLUMNS($CN$9:CO257)),\"\")","v":"Number of green mini-grids installed as result of programme support"},{"$f":"IFERROR(INDEX($B$9:$I$408,$CM257,COLUMNS($CN$9:CP257)),\"\")","v":"-"},{"$f":"IFERROR(INDEX($B$9:$I$408,$CM257,COLUMNS($CN$9:CQ257)),\"\")","v":"Outcome"},{"$f":"IFERROR(INDEX($B$9:$I$408,$CM257,COLUMNS($CN$9:CR257)),\"\")","v":"-"},{"$f":"IFERROR(INDEX($B$9:$I$408,$CM257,COLUMNS($CN$9:CS257)),\"\")","v":"-"},{"$f":"IFERROR(INDEX($B$9:$I$408,$CM257,COLUMNS($CN$9:CT257)),\"\")","v":"Increased access to climate goods and services"},{"$f":"IFERROR(INDEX($B$9:$I$408,$CM257,COLUMNS($CN$9:CU257)),\"\")","v":"Number"}]
[null,{"$f":"IF(ISBLANK('TA Indicator Bank'!B254),\"\",'TA Indicator Bank'!B254)","v":"TA250"},{"$f":"IF(ISBLANK('TA Indicator Bank'!C254),\"\",'TA Indicator Bank'!C254)","v":"Number of direct jobs in climate goods sector created"},{"$f":"IF(ISBLANK('TA Indicator Bank'!D254),\"\",'TA Indicator Bank'!D254)","v":"-"},{"$f":"IF(ISBLANK('TA Indicator Bank'!E254),\"\",'TA Indicator Bank'!E254)","v":"Outcome"},{"$f":"IF(ISBLANK('TA Indicator Bank'!F254),\"\",'TA Indicator Bank'!F254)","v":"-"},{"$f":"IF(ISBLANK('TA Indicator Bank'!G254),\"\",'TA Indicator Bank'!G254)","v":"-"},{"$f":"IF(ISBLANK('TA Indicator Bank'!H254),\"\",'TA Indicator Bank'!H254)","v":"Increased access to climate goods and services"},{"$f":"IF(ISBLANK('TA Indicator Bank'!I254),\"\",'TA Indicator Bank'!I254)","v":"Number"},{"$f":"IF(ISBLANK('TA Indicator Bank'!J254),\"\",'TA Indicator Bank'!J254)","v":0},{"$f":"IF(ISBLANK('TA Indicator Bank'!K254),\"\",'TA Indicator Bank'!K254)","v":0},{"$f":"IF(ISBLANK('TA Indicator Bank'!L254),\"\",'TA Indicator Bank'!L254)","v":0},{"$f":"IF(ISBLANK('TA Indicator Bank'!M254),\"\",'TA Indicator Bank'!M254)","v":0},{"$f":"IF(ISBLANK('TA Indicator Bank'!N254),\"\",'TA Indicator Bank'!N254)","v":0},{"$f":"IF(ISBLANK('TA Indicator Bank'!O254),\"\",'TA Indicator Bank'!O254)","v":0},{"$f":"IF(ISBLANK('TA Indicator Bank'!P254),\"\",'TA Indicator Bank'!P254)","v":0},{"$f":"IF(ISBLANK('TA Indicator Bank'!Q254),\"\",'TA Indicator Bank'!Q254)","v":0},{"$f":"IF(ISBLANK('TA Indicator Bank'!R254),\"\",'TA Indicator Bank'!R254)","v":0},{"$f":"IF(ISBLANK('TA Indicator Bank'!S254),\"\",'TA Indicator Bank'!S254)","v":0},{"$f":"IF(ISBLANK('TA Indicator Bank'!T254),\"\",'TA Indicator Bank'!T254)","v":0},{"$f":"IF(ISBLANK('TA Indicator Bank'!U254),\"\",'TA Indicator Bank'!U254)","v":0},{"$f":"IF(ISBLANK('TA Indicator Bank'!V254),\"\",'TA Indicator Bank'!V254)","v":0},{"$f":"IF(ISBLANK('TA Indicator Bank'!W254),\"\",'TA Indicator Bank'!W254)","v":0},{"$f":"IF(ISBLANK('TA Indicator Bank'!X254),\"\",'TA Indicator Bank'!X254)","v":0},{"$f":"IF(ISBLANK('TA Indicator Bank'!Y254),\"\",'TA Indicator Bank'!Y254)","v":0},{"$f":"IF(ISBLANK('TA Indicator Bank'!Z254),\"\",'TA Indicator Bank'!Z254)","v":0},{"$f":"IF(ISBLANK('TA Indicator Bank'!AA254),\"\",'TA Indicator Bank'!AA254)","v":0},{"$f":"IF(ISBLANK('TA Indicator Bank'!AB254),\"\",'TA Indicator Bank'!AB254)","v":0},{"$f":"IF(ISBLANK('TA Indicator Bank'!AC254),\"\",'TA Indicator Bank'!AC254)","v":0},{"$f":"IF(ISBLANK('TA Indicator Bank'!AD254),\"\",'TA Indicator Bank'!AD254)","v":0},{"$f":"IF(ISBLANK('TA Indicator Bank'!AE254),\"\",'TA Indicator Bank'!AE254)","v":0},{"$f":"IF(ISBLANK('TA Indicator Bank'!AF254),\"\",'TA Indicator Bank'!AF254)","v":0},{"$f":"IF(ISBLANK('TA Indicator Bank'!AG254),\"\",'TA Indicator Bank'!AG254)","v":0},{"$f":"IF(ISBLANK('TA Indicator Bank'!AH254),\"\",'TA Indicator Bank'!AH254)","v":0},{"$f":"IF(ISBLANK('TA Indicator Bank'!AI254),\"\",'TA Indicator Bank'!AI254)","v":0},{"$f":"IF(ISBLANK('TA Indicator Bank'!AJ254),\"\",'TA Indicator Bank'!AJ254)","v":0},{"$f":"IF(ISBLANK('TA Indicator Bank'!AK254),\"\",'TA Indicator Bank'!AK254)","v":0},{"$f":"IF(ISBLANK('TA Indicator Bank'!AL254),\"\",'TA Indicator Bank'!AL254)","v":0},{"$f":"IF(ISBLANK('TA Indicator Bank'!AM254),\"\",'TA Indicator Bank'!AM254)","v":1},{"$f":"IF(ISBLANK('TA Indicator Bank'!AN254),\"\",'TA Indicator Bank'!AN254)","v":0},{"$f":"IF(ISBLANK('TA Indicator Bank'!AO254),\"\",'TA Indicator Bank'!AO254)","v":0},{"$f":"IF(ISBLANK('TA Indicator Bank'!AP254),\"\",'TA Indicator Bank'!AP254)","v":0},{"$f":"IF(ISBLANK('TA Indicator Bank'!AQ254),\"\",'TA Indicator Bank'!AQ254)","v":0},{"$f":"IF(ISBLANK('TA Indicator Bank'!AR254),\"\",'TA Indicator Bank'!AR254)","v":0},{"$f":"IF(ISBLANK('TA Indicator Bank'!AS254),\"\",'TA Indicator Bank'!AS254)","v":1},{"$f":"IF(ISBLANK('TA Indicator Bank'!AT254),\"\",'TA Indicator Bank'!AT254)","v":0},0,0,0,0,0,0,0,0,0,0,0,0,0,0,1,0,0,0,0,0,0,0,0,0,1,0,0,0,0,0,0,1,0,0,1,{"$f":"IF(AND(AP258=1,AP$410=1),1,0)","v":0},{"$f":"IF(AND(AQ258=1,AQ$410=1),1,0)","v":0},{"$f":"IF(AND(AR258=1,AR$410=1),1,0)","v":0},{"$f":"IF(AND(AS258=1,AS$410=1),1,0)","v":1},{"$f":"IF(AND(AT258=1,AT$410=1),1,0)","v":0},1,1,250,250,{"$f":"IFERROR(SMALL($CL$9:$CL$408,CK258),\"\")","v":250},{"$f":"IFERROR(INDEX($B$9:$I$408,$CM258,COLUMNS($CN$9:CN258)),\"\")","v":"TA250"},{"$f":"IFERROR(INDEX($B$9:$I$408,$CM258,COLUMNS($CN$9:CO258)),\"\")","v":"Number of direct jobs in climate goods sector created"},{"$f":"IFERROR(INDEX($B$9:$I$408,$CM258,COLUMNS($CN$9:CP258)),\"\")","v":"-"},{"$f":"IFERROR(INDEX($B$9:$I$408,$CM258,COLUMNS($CN$9:CQ258)),\"\")","v":"Outcome"},{"$f":"IFERROR(INDEX($B$9:$I$408,$CM258,COLUMNS($CN$9:CR258)),\"\")","v":"-"},{"$f":"IFERROR(INDEX($B$9:$I$408,$CM258,COLUMNS($CN$9:CS258)),\"\")","v":"-"},{"$f":"IFERROR(INDEX($B$9:$I$408,$CM258,COLUMNS($CN$9:CT258)),\"\")","v":"Increased access to climate goods and services"},{"$f":"IFERROR(INDEX($B$9:$I$408,$CM258,COLUMNS($CN$9:CU258)),\"\")","v":"Number"}]
[null,{"$f":"IF(ISBLANK('TA Indicator Bank'!B255),\"\",'TA Indicator Bank'!B255)","v":"TA251"},{"$f":"IF(ISBLANK('TA Indicator Bank'!C255),\"\",'TA Indicator Bank'!C255)","v":"Volume of increased (climate) finance (as result of programme support)"},{"$f":"IF(ISBLANK('TA Indicator Bank'!D255),\"\",'TA Indicator Bank'!D255)","v":"-"},{"$f":"IF(ISBLANK('TA Indicator Bank'!E255),\"\",'TA Indicator Bank'!E255)","v":"Outcome"},{"$f":"IF(ISBLANK('TA Indicator Bank'!F255),\"\",'TA Indicator Bank'!F255)","v":"-"},{"$f":"IF(ISBLANK('TA Indicator Bank'!G255),\"\",'TA Indicator Bank'!G255)","v":"-"},{"$f":"IF(ISBLANK('TA Indicator Bank'!H255),\"\",'TA Indicator Bank'!H255)","v":"Improved domestic co-ordination; Increased or improved allocation of domestic climate finance; Increased or improved access to international climate finance"},{"$f":"IF(ISBLANK('TA Indicator Bank'!I255),\"\",'TA Indicator Bank'!I255)","v":"Number"},{"$f":"IF(ISBLANK('TA Indicator Bank'!J255),\"\",'TA Indicator Bank'!J255)","v":0},{"$f":"IF(ISBLANK('TA Indicator Bank'!K255),\"\",'TA Indicator Bank'!K255)","v":0},{"$f":"IF(ISBLANK('TA Indicator Bank'!L255),\"\",'TA Indicator Bank'!L255)","v":0},{"$f":"IF(ISBLANK('TA Indicator Bank'!M255),\"\",'TA Indicator Bank'!M255)","v":0},{"$f":"IF(ISBLANK('TA Indicator Bank'!N255),\"\",'TA Indicator Bank'!N255)","v":0},{"$f":"IF(ISBLANK('TA Indicator Bank'!O255),\"\",'TA Indicator Bank'!O255)","v":0},{"$f":"IF(ISBLANK('TA Indicator Bank'!P255),\"\",'TA Indicator Bank'!P255)","v":0},{"$f":"IF(ISBLANK('TA Indicator Bank'!Q255),\"\",'TA Indicator Bank'!Q255)","v":0},{"$f":"IF(ISBLANK('TA Indicator Bank'!R255),\"\",'TA Indicator Bank'!R255)","v":0},{"$f":"IF(ISBLANK('TA Indicator Bank'!S255),\"\",'TA Indicator Bank'!S255)","v":0},{"$f":"IF(ISBLANK('TA Indicator Bank'!T255),\"\",'TA Indicator Bank'!T255)","v":0},{"$f":"IF(ISBLANK('TA Indicator Bank'!U255),\"\",'TA Indicator Bank'!U255)","v":0},{"$f":"IF(ISBLANK('TA Indicator Bank'!V255),\"\",'TA Indicator Bank'!V255)","v":0},{"$f":"IF(ISBLANK('TA Indicator Bank'!W255),\"\",'TA Indicator Bank'!W255)","v":0},{"$f":"IF(ISBLANK('TA Indicator Bank'!X255),\"\",'TA Indicator Bank'!X255)","v":0},{"$f":"IF(ISBLANK('TA Indicator Bank'!Y255),\"\",'TA Indicator Bank'!Y255)","v":0},{"$f":"IF(ISBLANK('TA Indicator Bank'!Z255),\"\",'TA Indicator Bank'!Z255)","v":0},{"$f":"IF(ISBLANK('TA Indicator Bank'!AA255),\"\",'TA Indicator Bank'!AA255)","v":0},{"$f":"IF(ISBLANK('TA Indicator Bank'!AB255),\"\",'TA Indicator Bank'!AB255)","v":0},{"$f":"IF(ISBLANK('TA Indicator Bank'!AC255),\"\",'TA Indicator Bank'!AC255)","v":0},{"$f":"IF(ISBLANK('TA Indicator Bank'!AD255),\"\",'TA Indicator Bank'!AD255)","v":0},{"$f":"IF(ISBLANK('TA Indicator Bank'!AE255),\"\",'TA Indicator Bank'!AE255)","v":0},{"$f":"IF(ISBLANK('TA Indicator Bank'!AF255),\"\",'TA Indicator Bank'!AF255)","v":0},{"$f":"IF(ISBLANK('TA Indicator Bank'!AG255),\"\",'TA Indicator Bank'!AG255)","v":0},{"$f":"IF(ISBLANK('TA Indicator Bank'!AH255),\"\",'TA Indicator Bank'!AH255)","v":0},{"$f":"IF(ISBLANK('TA Indicator Bank'!AI255),\"\",'TA Indicator Bank'!AI255)","v":1},{"$f":"IF(ISBLANK('TA Indicator Bank'!AJ255),\"\",'TA Indicator Bank'!AJ255)","v":0},{"$f":"IF(ISBLANK('TA Indicator Bank'!AK255),\"\",'TA Indicator Bank'!AK255)","v":0},{"$f":"IF(ISBLANK('TA Indicator Bank'!AL255),\"\",'TA Indicator Bank'!AL255)","v":0},{"$f":"IF(ISBLANK('TA Indicator Bank'!AM255),\"\",'TA Indicator Bank'!AM255)","v":0},{"$f":"IF(ISBLANK('TA Indicator Bank'!AN255),\"\",'TA Indicator Bank'!AN255)","v":1},{"$f":"IF(ISBLANK('TA Indicator Bank'!AO255),\"\",'TA Indicator Bank'!AO255)","v":1},{"$f":"IF(ISBLANK('TA Indicator Bank'!AP255),\"\",'TA Indicator Bank'!AP255)","v":0},{"$f":"IF(ISBLANK('TA Indicator Bank'!AQ255),\"\",'TA Indicator Bank'!AQ255)","v":0},{"$f":"IF(ISBLANK('TA Indicator Bank'!AR255),\"\",'TA Indicator Bank'!AR255)","v":0},{"$f":"IF(ISBLANK('TA Indicator Bank'!AS255),\"\",'TA Indicator Bank'!AS255)","v":1},{"$f":"IF(ISBLANK('TA Indicator Bank'!AT255),\"\",'TA Indicator Bank'!AT255)","v":0},0,0,0,0,0,0,0,0,0,0,0,0,0,0,1,0,0,0,0,0,0,0,0,0,1,0,0,1,0,0,0,0,1,1,1,{"$f":"IF(AND(AP259=1,AP$410=1),1,0)","v":0},{"$f":"IF(AND(AQ259=1,AQ$410=1),1,0)","v":0},{"$f":"IF(AND(AR259=1,AR$410=1),1,0)","v":0},{"$f":"IF(AND(AS259=1,AS$410=1),1,0)","v":1},{"$f":"IF(AND(AT259=1,AT$410=1),1,0)","v":0},1,1,251,251,{"$f":"IFERROR(SMALL($CL$9:$CL$408,CK259),\"\")","v":251},{"$f":"IFERROR(INDEX($B$9:$I$408,$CM259,COLUMNS($CN$9:CN259)),\"\")","v":"TA251"},{"$f":"IFERROR(INDEX($B$9:$I$408,$CM259,COLUMNS($CN$9:CO259)),\"\")","v":"Volume of increased (climate) finance (as result of programme support)"},{"$f":"IFERROR(INDEX($B$9:$I$408,$CM259,COLUMNS($CN$9:CP259)),\"\")","v":"-"},{"$f":"IFERROR(INDEX($B$9:$I$408,$CM259,COLUMNS($CN$9:CQ259)),\"\")","v":"Outcome"},{"$f":"IFERROR(INDEX($B$9:$I$408,$CM259,COLUMNS($CN$9:CR259)),\"\")","v":"-"},{"$f":"IFERROR(INDEX($B$9:$I$408,$CM259,COLUMNS($CN$9:CS259)),\"\")","v":"-"},{"$f":"IFERROR(INDEX($B$9:$I$408,$CM259,COLUMNS($CN$9:CT259)),\"\")","v":"Improved domestic co-ordination; Increased or improved allocation of domestic climate finance; Increased or improved access to international climate finance"},{"$f":"IFERROR(INDEX($B$9:$I$408,$CM259,COLUMNS($CN$9:CU259)),\"\")","v":"Number"}]
[null,{"$f":"IF(ISBLANK('TA Indicator Bank'!B256),\"\",'TA Indicator Bank'!B256)","v":"TA252"},{"$f":"IF(ISBLANK('TA Indicator Bank'!C256),\"\",'TA Indicator Bank'!C256)","v":"Number of direct jobs created (as result of programme support)"},{"$f":"IF(ISBLANK('TA Indicator Bank'!D256),\"\",'TA Indicator Bank'!D256)","v":"-"},{"$f":"IF(ISBLANK('TA Indicator Bank'!E256),\"\",'TA Indicator Bank'!E256)","v":"Outcome"},{"$f":"IF(ISBLANK('TA Indicator Bank'!F256),\"\",'TA Indicator Bank'!F256)","v":"-"},{"$f":"IF(ISBLANK('TA Indicator Bank'!G256),\"\",'TA Indicator Bank'!G256)","v":"-"},{"$f":"IF(ISBLANK('TA Indicator Bank'!H256),\"\",'TA Indicator Bank'!H256)","v":"Increased or improved policy development or execution; Improved operation of processes or assets (inc. e.g. electricity grid stability, agricultural livelihoods, forest management); Increased or improved allocation of domestic climate finance; Increased or improved access to international climate finance"},{"$f":"IF(ISBLANK('TA Indicator Bank'!I256),\"\",'TA Indicator Bank'!I256)","v":"Number"},{"$f":"IF(ISBLANK('TA Indicator Bank'!J256),\"\",'TA Indicator Bank'!J256)","v":0},{"$f":"IF(ISBLANK('TA Indicator Bank'!K256),\"\",'TA Indicator Bank'!K256)","v":0},{"$f":"IF(ISBLANK('TA Indicator Bank'!L256),\"\",'TA Indicator Bank'!L256)","v":0},{"$f":"IF(ISBLANK('TA Indicator Bank'!M256),\"\",'TA Indicator Bank'!M256)","v":0},{"$f":"IF(ISBLANK('TA Indicator Bank'!N256),\"\",'TA Indicator Bank'!N256)","v":0},{"$f":"IF(ISBLANK('TA Indicator Bank'!O256),\"\",'TA Indicator Bank'!O256)","v":0},{"$f":"IF(ISBLANK('TA Indicator Bank'!P256),\"\",'TA Indicator Bank'!P256)","v":0},{"$f":"IF(ISBLANK('TA Indicator Bank'!Q256),\"\",'TA Indicator Bank'!Q256)","v":0},{"$f":"IF(ISBLANK('TA Indicator Bank'!R256),\"\",'TA Indicator Bank'!R256)","v":0},{"$f":"IF(ISBLANK('TA Indicator Bank'!S256),\"\",'TA Indicator Bank'!S256)","v":0},{"$f":"IF(ISBLANK('TA Indicator Bank'!T256),\"\",'TA Indicator Bank'!T256)","v":0},{"$f":"IF(ISBLANK('TA Indicator Bank'!U256),\"\",'TA Indicator Bank'!U256)","v":0},{"$f":"IF(ISBLANK('TA Indicator Bank'!V256),\"\",'TA Indicator Bank'!V256)","v":0},{"$f":"IF(ISBLANK('TA Indicator Bank'!W256),\"\",'TA Indicator Bank'!W256)","v":0},{"$f":"IF(ISBLANK('TA Indicator Bank'!X256),\"\",'TA Indicator Bank'!X256)","v":0},{"$f":"IF(ISBLANK('TA Indicator Bank'!Y256),\"\",'TA Indicator Bank'!Y256)","v":0},{"$f":"IF(ISBLANK('TA Indicator Bank'!Z256),\"\",'TA Indicator Bank'!Z256)","v":0},{"$f":"IF(ISBLANK('TA Indicator Bank'!AA256),\"\",'TA Indicator Bank'!AA256)","v":0},{"$f":"IF(ISBLANK('TA Indicator Bank'!AB256),\"\",'TA Indicator Bank'!AB256)","v":0},{"$f":"IF(ISBLANK('TA Indicator Bank'!AC256),\"\",'TA Indicator Bank'!AC256)","v":0},{"$f":"IF(ISBLANK('TA Indicator Bank'!AD256),\"\",'TA Indicator Bank'!AD256)","v":0},{"$f":"IF(ISBLANK('TA Indicator Bank'!AE256),\"\",'TA Indicator Bank'!AE256)","v":0},{"$f":"IF(ISBLANK('TA Indicator Bank'!AF256),\"\",'TA Indicator Bank'!AF256)","v":0},{"$f":"IF(ISBLANK('TA Indicator Bank'!AG256),\"\",'TA Indicator Bank'!AG256)","v":1},{"$f":"IF(ISBLANK('TA Indicator Bank'!AH256),\"\",'TA Indicator Bank'!AH256)","v":0},{"$f":"IF(ISBLANK('TA Indicator Bank'!AI256),\"\",'TA Indicator Bank'!AI256)","v":0},{"$f":"IF(ISBLANK('TA Indicator Bank'!AJ256),\"\",'TA Indicator Bank'!AJ256)","v":0},{"$f":"IF(ISBLANK('TA Indicator Bank'!AK256),\"\",'TA Indicator Bank'!AK256)","v":0},{"$f":"IF(ISBLANK('TA Indicator Bank'!AL256),\"\",'TA Indicator Bank'!AL256)","v":1},{"$f":"IF(ISBLANK('TA Indicator Bank'!AM256),\"\",'TA Indicator Bank'!AM256)","v":0},{"$f":"IF(ISBLANK('TA Indicator Bank'!AN256),\"\",'TA Indicator Bank'!AN256)","v":1},{"$f":"IF(ISBLANK('TA Indicator Bank'!AO256),\"\",'TA Indicator Bank'!AO256)","v":1},{"$f":"IF(ISBLANK('TA Indicator Bank'!AP256),\"\",'TA Indicator Bank'!AP256)","v":0},{"$f":"IF(ISBLANK('TA Indicator Bank'!AQ256),\"\",'TA Indicator Bank'!AQ256)","v":0},{"$f":"IF(ISBLANK('TA Indicator Bank'!AR256),\"\",'TA Indicator Bank'!AR256)","v":0},{"$f":"IF(ISBLANK('TA Indicator Bank'!AS256),\"\",'TA Indicator Bank'!AS256)","v":1},{"$f":"IF(ISBLANK('TA Indicator Bank'!AT256),\"\",'TA Indicator Bank'!AT256)","v":0},0,0,0,0,0,0,0,0,0,0,0,0,0,0,1,0,0,0,0,0,0,0,0,0,1,1,0,0,0,0,1,0,1,1,1,{"$f":"IF(AND(AP260=1,AP$410=1),1,0)","v":0},{"$f":"IF(AND(AQ260=1,AQ$410=1),1,0)","v":0},{"$f":"IF(AND(AR260=1,AR$410=1),1,0)","v":0},{"$f":"IF(AND(AS260=1,AS$410=1),1,0)","v":1},{"$f":"IF(AND(AT260=1,AT$410=1),1,0)","v":0},1,1,252,252,{"$f":"IFERROR(SMALL($CL$9:$CL$408,CK260),\"\")","v":252},{"$f":"IFERROR(INDEX($B$9:$I$408,$CM260,COLUMNS($CN$9:CN260)),\"\")","v":"TA252"},{"$f":"IFERROR(INDEX($B$9:$I$408,$CM260,COLUMNS($CN$9:CO260)),\"\")","v":"Number of direct jobs created (as result of programme support)"},{"$f":"IFERROR(INDEX($B$9:$I$408,$CM260,COLUMNS($CN$9:CP260)),\"\")","v":"-"},{"$f":"IFERROR(INDEX($B$9:$I$408,$CM260,COLUMNS($CN$9:CQ260)),\"\")","v":"Outcome"},{"$f":"IFERROR(INDEX($B$9:$I$408,$CM260,COLUMNS($CN$9:CR260)),\"\")","v":"-"},{"$f":"IFERROR(INDEX($B$9:$I$408,$CM260,COLUMNS($CN$9:CS260)),\"\")","v":"-"},{"$f":"IFERROR(INDEX($B$9:$I$408,$CM260,COLUMNS($CN$9:CT260)),\"\")","v":"Increased or improved policy development or execution; Improved operation of processes or assets (inc. e.g. electricity grid stability, agricultural livelihoods, forest management); Increased or improved allocation of domestic climate finance; Increased or improved access to international climate finance"},{"$f":"IFERROR(INDEX($B$9:$I$408,$CM260,COLUMNS($CN$9:CU260)),\"\")","v":"Number"}]
[null,{"$f":"IF(ISBLANK('TA Indicator Bank'!B257),\"\",'TA Indicator Bank'!B257)","v":"TA253"},{"$f":"IF(ISBLANK('TA Indicator Bank'!C257),\"\",'TA Indicator Bank'!C257)","v":"Ratio of climate finance raised to programme funding"},{"$f":"IF(ISBLANK('TA Indicator Bank'!D257),\"\",'TA Indicator Bank'!D257)","v":"-"},{"$f":"IF(ISBLANK('TA Indicator Bank'!E257),\"\",'TA Indicator Bank'!E257)","v":"Outcome"},{"$f":"IF(ISBLANK('TA Indicator Bank'!F257),\"\",'TA Indicator Bank'!F257)","v":"-"},{"$f":"IF(ISBLANK('TA Indicator Bank'!G257),\"\",'TA Indicator Bank'!G257)","v":"-"},{"$f":"IF(ISBLANK('TA Indicator Bank'!H257),\"\",'TA Indicator Bank'!H257)","v":"Increased or improved allocation of domestic climate finance"},{"$f":"IF(ISBLANK('TA Indicator Bank'!I257),\"\",'TA Indicator Bank'!I257)","v":"Number"},{"$f":"IF(ISBLANK('TA Indicator Bank'!J257),\"\",'TA Indicator Bank'!J257)","v":0},{"$f":"IF(ISBLANK('TA Indicator Bank'!K257),\"\",'TA Indicator Bank'!K257)","v":0},{"$f":"IF(ISBLANK('TA Indicator Bank'!L257),\"\",'TA Indicator Bank'!L257)","v":0},{"$f":"IF(ISBLANK('TA Indicator Bank'!M257),\"\",'TA Indicator Bank'!M257)","v":0},{"$f":"IF(ISBLANK('TA Indicator Bank'!N257),\"\",'TA Indicator Bank'!N257)","v":0},{"$f":"IF(ISBLANK('TA Indicator Bank'!O257),\"\",'TA Indicator Bank'!O257)","v":0},{"$f":"IF(ISBLANK('TA Indicator Bank'!P257),\"\",'TA Indicator Bank'!P257)","v":0},{"$f":"IF(ISBLANK('TA Indicator Bank'!Q257),\"\",'TA Indicator Bank'!Q257)","v":0},{"$f":"IF(ISBLANK('TA Indicator Bank'!R257),\"\",'TA Indicator Bank'!R257)","v":0},{"$f":"IF(ISBLANK('TA Indicator Bank'!S257),\"\",'TA Indicator Bank'!S257)","v":0},{"$f":"IF(ISBLANK('TA Indicator Bank'!T257),\"\",'TA Indicator Bank'!T257)","v":0},{"$f":"IF(ISBLANK('TA Indicator Bank'!U257),\"\",'TA Indicator Bank'!U257)","v":0},{"$f":"IF(ISBLANK('TA Indicator Bank'!V257),\"\",'TA Indicator Bank'!V257)","v":0},{"$f":"IF(ISBLANK('TA Indicator Bank'!W257),\"\",'TA Indicator Bank'!W257)","v":0},{"$f":"IF(ISBLANK('TA Indicator Bank'!X257),\"\",'TA Indicator Bank'!X257)","v":0},{"$f":"IF(ISBLANK('TA Indicator Bank'!Y257),\"\",'TA Indicator Bank'!Y257)","v":0},{"$f":"IF(ISBLANK('TA Indicator Bank'!Z257),\"\",'TA Indicator Bank'!Z257)","v":0},{"$f":"IF(ISBLANK('TA Indicator Bank'!AA257),\"\",'TA Indicator Bank'!AA257)","v":0},{"$f":"IF(ISBLANK('TA Indicator Bank'!AB257),\"\",'TA Indicator Bank'!AB257)","v":0},{"$f":"IF(ISBLANK('TA Indicator Bank'!AC257),\"\",'TA Indicator Bank'!AC257)","v":0},{"$f":"IF(ISBLANK('TA Indicator Bank'!AD257),\"\",'TA Indicator Bank'!AD257)","v":0},{"$f":"IF(ISBLANK('TA Indicator Bank'!AE257),\"\",'TA Indicator Bank'!AE257)","v":0},{"$f":"IF(ISBLANK('TA Indicator Bank'!AF257),\"\",'TA Indicator Bank'!AF257)","v":0},{"$f":"IF(ISBLANK('TA Indicator Bank'!AG257),\"\",'TA Indicator Bank'!AG257)","v":0},{"$f":"IF(ISBLANK('TA Indicator Bank'!AH257),\"\",'TA Indicator Bank'!AH257)","v":0},{"$f":"IF(ISBLANK('TA Indicator Bank'!AI257),\"\",'TA Indicator Bank'!AI257)","v":0},{"$f":"IF(ISBLANK('TA Indicator Bank'!AJ257),\"\",'TA Indicator Bank'!AJ257)","v":0},{"$f":"IF(ISBLANK('TA Indicator Bank'!AK257),\"\",'TA Indicator Bank'!AK257)","v":0},{"$f":"IF(ISBLANK('TA Indicator Bank'!AL257),\"\",'TA Indicator Bank'!AL257)","v":0},{"$f":"IF(ISBLANK('TA Indicator Bank'!AM257),\"\",'TA Indicator Bank'!AM257)","v":0},{"$f":"IF(ISBLANK('TA Indicator Bank'!AN257),\"\",'TA Indicator Bank'!AN257)","v":1},{"$f":"IF(ISBLANK('TA Indicator Bank'!AO257),\"\",'TA Indicator Bank'!AO257)","v":0},{"$f":"IF(ISBLANK('TA Indicator Bank'!AP257),\"\",'TA Indicator Bank'!AP257)","v":0},{"$f":"IF(ISBLANK('TA Indicator Bank'!AQ257),\"\",'TA Indicator Bank'!AQ257)","v":0},{"$f":"IF(ISBLANK('TA Indicator Bank'!AR257),\"\",'TA Indicator Bank'!AR257)","v":0},{"$f":"IF(ISBLANK('TA Indicator Bank'!AS257),\"\",'TA Indicator Bank'!AS257)","v":1},{"$f":"IF(ISBLANK('TA Indicator Bank'!AT257),\"\",'TA Indicator Bank'!AT257)","v":0},0,0,0,0,0,0,0,0,0,0,0,0,0,0,1,0,0,0,0,0,0,0,0,0,1,0,0,0,0,0,0,0,1,0,1,{"$f":"IF(AND(AP261=1,AP$410=1),1,0)","v":0},{"$f":"IF(AND(AQ261=1,AQ$410=1),1,0)","v":0},{"$f":"IF(AND(AR261=1,AR$410=1),1,0)","v":0},{"$f":"IF(AND(AS261=1,AS$410=1),1,0)","v":1},{"$f":"IF(AND(AT261=1,AT$410=1),1,0)","v":0},1,1,253,253,{"$f":"IFERROR(SMALL($CL$9:$CL$408,CK261),\"\")","v":253},{"$f":"IFERROR(INDEX($B$9:$I$408,$CM261,COLUMNS($CN$9:CN261)),\"\")","v":"TA253"},{"$f":"IFERROR(INDEX($B$9:$I$408,$CM261,COLUMNS($CN$9:CO261)),\"\")","v":"Ratio of climate finance raised to programme funding"},{"$f":"IFERROR(INDEX($B$9:$I$408,$CM261,COLUMNS($CN$9:CP261)),\"\")","v":"-"},{"$f":"IFERROR(INDEX($B$9:$I$408,$CM261,COLUMNS($CN$9:CQ261)),\"\")","v":"Outcome"},{"$f":"IFERROR(INDEX($B$9:$I$408,$CM261,COLUMNS($CN$9:CR261)),\"\")","v":"-"},{"$f":"IFERROR(INDEX($B$9:$I$408,$CM261,COLUMNS($CN$9:CS261)),\"\")","v":"-"},{"$f":"IFERROR(INDEX($B$9:$I$408,$CM261,COLUMNS($CN$9:CT261)),\"\")","v":"Increased or improved allocation of domestic climate finance"},{"$f":"IFERROR(INDEX($B$9:$I$408,$CM261,COLUMNS($CN$9:CU261)),\"\")","v":"Number"}]
[null,{"$f":"IF(ISBLANK('TA Indicator Bank'!B258),\"\",'TA Indicator Bank'!B258)","v":"TA254"},{"$f":"IF(ISBLANK('TA Indicator Bank'!C258),\"\",'TA Indicator Bank'!C258)","v":"Number of countries with increased financial resilience to disasters"},{"$f":"IF(ISBLANK('TA Indicator Bank'!D258),\"\",'TA Indicator Bank'!D258)","v":"-"},{"$f":"IF(ISBLANK('TA Indicator Bank'!E258),\"\",'TA Indicator Bank'!E258)","v":"Outcome"},{"$f":"IF(ISBLANK('TA Indicator Bank'!F258),\"\",'TA Indicator Bank'!F258)","v":"-"},{"$f":"IF(ISBLANK('TA Indicator Bank'!G258),\"\",'TA Indicator Bank'!G258)","v":"-"},{"$f":"IF(ISBLANK('TA Indicator Bank'!H258),\"\",'TA Indicator Bank'!H258)","v":"Increased or improved allocation of domestic climate finance"},{"$f":"IF(ISBLANK('TA Indicator Bank'!I258),\"\",'TA Indicator Bank'!I258)","v":"Number"},{"$f":"IF(ISBLANK('TA Indicator Bank'!J258),\"\",'TA Indicator Bank'!J258)","v":0},{"$f":"IF(ISBLANK('TA Indicator Bank'!K258),\"\",'TA Indicator Bank'!K258)","v":0},{"$f":"IF(ISBLANK('TA Indicator Bank'!L258),\"\",'TA Indicator Bank'!L258)","v":0},{"$f":"IF(ISBLANK('TA Indicator Bank'!M258),\"\",'TA Indicator Bank'!M258)","v":0},{"$f":"IF(ISBLANK('TA Indicator Bank'!N258),\"\",'TA Indicator Bank'!N258)","v":0},{"$f":"IF(ISBLANK('TA Indicator Bank'!O258),\"\",'TA Indicator Bank'!O258)","v":0},{"$f":"IF(ISBLANK('TA Indicator Bank'!P258),\"\",'TA Indicator Bank'!P258)","v":0},{"$f":"IF(ISBLANK('TA Indicator Bank'!Q258),\"\",'TA Indicator Bank'!Q258)","v":0},{"$f":"IF(ISBLANK('TA Indicator Bank'!R258),\"\",'TA Indicator Bank'!R258)","v":0},{"$f":"IF(ISBLANK('TA Indicator Bank'!S258),\"\",'TA Indicator Bank'!S258)","v":0},{"$f":"IF(ISBLANK('TA Indicator Bank'!T258),\"\",'TA Indicator Bank'!T258)","v":0},{"$f":"IF(ISBLANK('TA Indicator Bank'!U258),\"\",'TA Indicator Bank'!U258)","v":0},{"$f":"IF(ISBLANK('TA Indicator Bank'!V258),\"\",'TA Indicator Bank'!V258)","v":0},{"$f":"IF(ISBLANK('TA Indicator Bank'!W258),\"\",'TA Indicator Bank'!W258)","v":0},{"$f":"IF(ISBLANK('TA Indicator Bank'!X258),\"\",'TA Indicator Bank'!X258)","v":0},{"$f":"IF(ISBLANK('TA Indicator Bank'!Y258),\"\",'TA Indicator Bank'!Y258)","v":0},{"$f":"IF(ISBLANK('TA Indicator Bank'!Z258),\"\",'TA Indicator Bank'!Z258)","v":0},{"$f":"IF(ISBLANK('TA Indicator Bank'!AA258),\"\",'TA Indicator Bank'!AA258)","v":0},{"$f":"IF(ISBLANK('TA Indicator Bank'!AB258),\"\",'TA Indicator Bank'!AB258)","v":0},{"$f":"IF(ISBLANK('TA Indicator Bank'!AC258),\"\",'TA Indicator Bank'!AC258)","v":0},{"$f":"IF(ISBLANK('TA Indicator Bank'!AD258),\"\",'TA Indicator Bank'!AD258)","v":0},{"$f":"IF(ISBLANK('TA Indicator Bank'!AE258),\"\",'TA Indicator Bank'!AE258)","v":0},{"$f":"IF(ISBLANK('TA Indicator Bank'!AF258),\"\",'TA Indicator Bank'!AF258)","v":0},{"$f":"IF(ISBLANK('TA Indicator Bank'!AG258),\"\",'TA Indicator Bank'!AG258)","v":0},{"$f":"IF(ISBLANK('TA Indicator Bank'!AH258),\"\",'TA Indicator Bank'!AH258)","v":0},{"$f":"IF(ISBLANK('TA Indicator Bank'!AI258),\"\",'TA Indicator Bank'!AI258)","v":0},{"$f":"IF(ISBLANK('TA Indicator Bank'!AJ258),\"\",'TA Indicator Bank'!AJ258)","v":0},{"$f":"IF(ISBLANK('TA Indicator Bank'!AK258),\"\",'TA Indicator Bank'!AK258)","v":0},{"$f":"IF(ISBLANK('TA Indicator Bank'!AL258),\"\",'TA Indicator Bank'!AL258)","v":0},{"$f":"IF(ISBLANK('TA Indicator Bank'!AM258),\"\",'TA Indicator Bank'!AM258)","v":0},{"$f":"IF(ISBLANK('TA Indicator Bank'!AN258),\"\",'TA Indicator Bank'!AN258)","v":1},{"$f":"IF(ISBLANK('TA Indicator Bank'!AO258),\"\",'TA Indicator Bank'!AO258)","v":0},{"$f":"IF(ISBLANK('TA Indicator Bank'!AP258),\"\",'TA Indicator Bank'!AP258)","v":0},{"$f":"IF(ISBLANK('TA Indicator Bank'!AQ258),\"\",'TA Indicator Bank'!AQ258)","v":0},{"$f":"IF(ISBLANK('TA Indicator Bank'!AR258),\"\",'TA Indicator Bank'!AR258)","v":0},{"$f":"IF(ISBLANK('TA Indicator Bank'!AS258),\"\",'TA Indicator Bank'!AS258)","v":1},{"$f":"IF(ISBLANK('TA Indicator Bank'!AT258),\"\",'TA Indicator Bank'!AT258)","v":0},0,0,0,0,0,0,0,0,0,0,0,{"$f":"IF(AND(U262=1,U$410=1),1,0)","v":0},0,0,1,0,0,0,0,0,0,0,0,0,1,0,0,0,0,0,0,0,1,0,1,{"$f":"IF(AND(AP262=1,AP$410=1),1,0)","v":0},{"$f":"IF(AND(AQ262=1,AQ$410=1),1,0)","v":0},{"$f":"IF(AND(AR262=1,AR$410=1),1,0)","v":0},{"$f":"IF(AND(AS262=1,AS$410=1),1,0)","v":1},{"$f":"IF(AND(AT262=1,AT$410=1),1,0)","v":0},1,1,254,254,{"$f":"IFERROR(SMALL($CL$9:$CL$408,CK262),\"\")","v":254},{"$f":"IFERROR(INDEX($B$9:$I$408,$CM262,COLUMNS($CN$9:CN262)),\"\")","v":"TA254"},{"$f":"IFERROR(INDEX($B$9:$I$408,$CM262,COLUMNS($CN$9:CO262)),\"\")","v":"Number of countries with increased financial resilience to disasters"},{"$f":"IFERROR(INDEX($B$9:$I$408,$CM262,COLUMNS($CN$9:CP262)),\"\")","v":"-"},{"$f":"IFERROR(INDEX($B$9:$I$408,$CM262,COLUMNS($CN$9:CQ262)),\"\")","v":"Outcome"},{"$f":"IFERROR(INDEX($B$9:$I$408,$CM262,COLUMNS($CN$9:CR262)),\"\")","v":"-"},{"$f":"IFERROR(INDEX($B$9:$I$408,$CM262,COLUMNS($CN$9:CS262)),\"\")","v":"-"},{"$f":"IFERROR(INDEX($B$9:$I$408,$CM262,COLUMNS($CN$9:CT262)),\"\")","v":"Increased or improved allocation of domestic climate finance"},{"$f":"IFERROR(INDEX($B$9:$I$408,$CM262,COLUMNS($CN$9:CU262)),\"\")","v":"Number"}]
[null,{"$f":"IF(ISBLANK('TA Indicator Bank'!B259),\"\",'TA Indicator Bank'!B259)","v":"TA255"},{"$f":"IF(ISBLANK('TA Indicator Bank'!C259),\"\",'TA Indicator Bank'!C259)","v":"Volume of increased climate finance that use programme's methodology"},{"$f":"IF(ISBLANK('TA Indicator Bank'!D259),\"\",'TA Indicator Bank'!D259)","v":"-"},{"$f":"IF(ISBLANK('TA Indicator Bank'!E259),\"\",'TA Indicator Bank'!E259)","v":"Outcome"},{"$f":"IF(ISBLANK('TA Indicator Bank'!F259),\"\",'TA Indicator Bank'!F259)","v":"-"},{"$f":"IF(ISBLANK('TA Indicator Bank'!G259),\"\",'TA Indicator Bank'!G259)","v":"-"},{"$f":"IF(ISBLANK('TA Indicator Bank'!H259),\"\",'TA Indicator Bank'!H259)","v":"Increased or improved access to international climate finance"},{"$f":"IF(ISBLANK('TA Indicator Bank'!I259),\"\",'TA Indicator Bank'!I259)","v":"Number"},{"$f":"IF(ISBLANK('TA Indicator Bank'!J259),\"\",'TA Indicator Bank'!J259)","v":0},{"$f":"IF(ISBLANK('TA Indicator Bank'!K259),\"\",'TA Indicator Bank'!K259)","v":0},{"$f":"IF(ISBLANK('TA Indicator Bank'!L259),\"\",'TA Indicator Bank'!L259)","v":0},{"$f":"IF(ISBLANK('TA Indicator Bank'!M259),\"\",'TA Indicator Bank'!M259)","v":0},{"$f":"IF(ISBLANK('TA Indicator Bank'!N259),\"\",'TA Indicator Bank'!N259)","v":0},{"$f":"IF(ISBLANK('TA Indicator Bank'!O259),\"\",'TA Indicator Bank'!O259)","v":0},{"$f":"IF(ISBLANK('TA Indicator Bank'!P259),\"\",'TA Indicator Bank'!P259)","v":0},{"$f":"IF(ISBLANK('TA Indicator Bank'!Q259),\"\",'TA Indicator Bank'!Q259)","v":0},{"$f":"IF(ISBLANK('TA Indicator Bank'!R259),\"\",'TA Indicator Bank'!R259)","v":0},{"$f":"IF(ISBLANK('TA Indicator Bank'!S259),\"\",'TA Indicator Bank'!S259)","v":0},{"$f":"IF(ISBLANK('TA Indicator Bank'!T259),\"\",'TA Indicator Bank'!T259)","v":0},{"$f":"IF(ISBLANK('TA Indicator Bank'!U259),\"\",'TA Indicator Bank'!U259)","v":0},{"$f":"IF(ISBLANK('TA Indicator Bank'!V259),\"\",'TA Indicator Bank'!V259)","v":0},{"$f":"IF(ISBLANK('TA Indicator Bank'!W259),\"\",'TA Indicator Bank'!W259)","v":0},{"$f":"IF(ISBLANK('TA Indicator Bank'!X259),\"\",'TA Indicator Bank'!X259)","v":0},{"$f":"IF(ISBLANK('TA Indicator Bank'!Y259),\"\",'TA Indicator Bank'!Y259)","v":0},{"$f":"IF(ISBLANK('TA Indicator Bank'!Z259),\"\",'TA Indicator Bank'!Z259)","v":0},{"$f":"IF(ISBLANK('TA Indicator Bank'!AA259),\"\",'TA Indicator Bank'!AA259)","v":0},{"$f":"IF(ISBLANK('TA Indicator Bank'!AB259),\"\",'TA Indicator Bank'!AB259)","v":0},{"$f":"IF(ISBLANK('TA Indicator Bank'!AC259),\"\",'TA Indicator Bank'!AC259)","v":0},{"$f":"IF(ISBLANK('TA Indicator Bank'!AD259),\"\",'TA Indicator Bank'!AD259)","v":0},{"$f":"IF(ISBLANK('TA Indicator Bank'!AE259),\"\",'TA Indicator Bank'!AE259)","v":0},{"$f":"IF(ISBLANK('TA Indicator Bank'!AF259),\"\",'TA Indicator Bank'!AF259)","v":0},{"$f":"IF(ISBLANK('TA Indicator Bank'!AG259),\"\",'TA Indicator Bank'!AG259)","v":0},{"$f":"IF(ISBLANK('TA Indicator Bank'!AH259),\"\",'TA Indicator Bank'!AH259)","v":0},{"$f":"IF(ISBLANK('TA Indicator Bank'!AI259),\"\",'TA Indicator Bank'!AI259)","v":0},{"$f":"IF(ISBLANK('TA Indicator Bank'!AJ259),\"\",'TA Indicator Bank'!AJ259)","v":0},{"$f":"IF(ISBLANK('TA Indicator Bank'!AK259),\"\",'TA Indicator Bank'!AK259)","v":0},{"$f":"IF(ISBLANK('TA Indicator Bank'!AL259),\"\",'TA Indicator Bank'!AL259)","v":0},{"$f":"IF(ISBLANK('TA Indicator Bank'!AM259),\"\",'TA Indicator Bank'!AM259)","v":0},{"$f":"IF(ISBLANK('TA Indicator Bank'!AN259),\"\",'TA Indicator Bank'!AN259)","v":0},{"$f":"IF(ISBLANK('TA Indicator Bank'!AO259),\"\",'TA Indicator Bank'!AO259)","v":1},{"$f":"IF(ISBLANK('TA Indicator Bank'!AP259),\"\",'TA Indicator Bank'!AP259)","v":0},{"$f":"IF(ISBLANK('TA Indicator Bank'!AQ259),\"\",'TA Indicator Bank'!AQ259)","v":0},{"$f":"IF(ISBLANK('TA Indicator Bank'!AR259),\"\",'TA Indicator Bank'!AR259)","v":0},{"$f":"IF(ISBLANK('TA Indicator Bank'!AS259),\"\",'TA Indicator Bank'!AS259)","v":1},{"$f":"IF(ISBLANK('TA Indicator Bank'!AT259),\"\",'TA Indicator Bank'!AT259)","v":0},0,0,{"$f":"IF(AND(L263=1,L$410=1),1,0)","v":0},0,0,0,0,0,0,0,0,0,0,0,1,0,0,0,0,0,0,0,0,0,1,0,0,0,0,0,0,0,0,1,1,{"$f":"IF(AND(AP263=1,AP$410=1),1,0)","v":0},{"$f":"IF(AND(AQ263=1,AQ$410=1),1,0)","v":0},{"$f":"IF(AND(AR263=1,AR$410=1),1,0)","v":0},{"$f":"IF(AND(AS263=1,AS$410=1),1,0)","v":1},{"$f":"IF(AND(AT263=1,AT$410=1),1,0)","v":0},1,1,255,255,{"$f":"IFERROR(SMALL($CL$9:$CL$408,CK263),\"\")","v":255},{"$f":"IFERROR(INDEX($B$9:$I$408,$CM263,COLUMNS($CN$9:CN263)),\"\")","v":"TA255"},{"$f":"IFERROR(INDEX($B$9:$I$408,$CM263,COLUMNS($CN$9:CO263)),\"\")","v":"Volume of increased climate finance that use programme's methodology"},{"$f":"IFERROR(INDEX($B$9:$I$408,$CM263,COLUMNS($CN$9:CP263)),\"\")","v":"-"},{"$f":"IFERROR(INDEX($B$9:$I$408,$CM263,COLUMNS($CN$9:CQ263)),\"\")","v":"Outcome"},{"$f":"IFERROR(INDEX($B$9:$I$408,$CM263,COLUMNS($CN$9:CR263)),\"\")","v":"-"},{"$f":"IFERROR(INDEX($B$9:$I$408,$CM263,COLUMNS($CN$9:CS263)),\"\")","v":"-"},{"$f":"IFERROR(INDEX($B$9:$I$408,$CM263,COLUMNS($CN$9:CT263)),\"\")","v":"Increased or improved access to international climate finance"},{"$f":"IFERROR(INDEX($B$9:$I$408,$CM263,COLUMNS($CN$9:CU263)),\"\")","v":"Number"}]
[null,{"$f":"IF(ISBLANK('TA Indicator Bank'!B260),\"\",'TA Indicator Bank'!B260)","v":"TA256"},{"$f":"IF(ISBLANK('TA Indicator Bank'!C260),\"\",'TA Indicator Bank'!C260)","v":"Number and duration of secondments"},{"$f":"IF(ISBLANK('TA Indicator Bank'!D260),\"\",'TA Indicator Bank'!D260)","v":"Can be measured in terms of the number of individual secondments, or total length of secondments (for example in person-days)."},{"$f":"IF(ISBLANK('TA Indicator Bank'!E260),\"\",'TA Indicator Bank'!E260)","v":"Activity"},{"$f":"IF(ISBLANK('TA Indicator Bank'!F260),\"\",'TA Indicator Bank'!F260)","v":"Secondments"},{"$f":"IF(ISBLANK('TA Indicator Bank'!G260),\"\",'TA Indicator Bank'!G260)","v":"-"},{"$f":"IF(ISBLANK('TA Indicator Bank'!H260),\"\",'TA Indicator Bank'!H260)","v":"-"},{"$f":"IF(ISBLANK('TA Indicator Bank'!I260),\"\",'TA Indicator Bank'!I260)","v":"Number"},{"$f":"IF(ISBLANK('TA Indicator Bank'!J260),\"\",'TA Indicator Bank'!J260)","v":0},{"$f":"IF(ISBLANK('TA Indicator Bank'!K260),\"\",'TA Indicator Bank'!K260)","v":0},{"$f":"IF(ISBLANK('TA Indicator Bank'!L260),\"\",'TA Indicator Bank'!L260)","v":0},{"$f":"IF(ISBLANK('TA Indicator Bank'!M260),\"\",'TA Indicator Bank'!M260)","v":1},{"$f":"IF(ISBLANK('TA Indicator Bank'!N260),\"\",'TA Indicator Bank'!N260)","v":0},{"$f":"IF(ISBLANK('TA Indicator Bank'!O260),\"\",'TA Indicator Bank'!O260)","v":0},{"$f":"IF(ISBLANK('TA Indicator Bank'!P260),\"\",'TA Indicator Bank'!P260)","v":0},{"$f":"IF(ISBLANK('TA Indicator Bank'!Q260),\"\",'TA Indicator Bank'!Q260)","v":0},{"$f":"IF(ISBLANK('TA Indicator Bank'!R260),\"\",'TA Indicator Bank'!R260)","v":0},{"$f":"IF(ISBLANK('TA Indicator Bank'!S260),\"\",'TA Indicator Bank'!S260)","v":0},{"$f":"IF(ISBLANK('TA Indicator Bank'!T260),\"\",'TA Indicator Bank'!T260)","v":0},{"$f":"IF(ISBLANK('TA Indicator Bank'!U260),\"\",'TA Indicator Bank'!U260)","v":0},{"$f":"IF(ISBLANK('TA Indicator Bank'!V260),\"\",'TA Indicator Bank'!V260)","v":0},{"$f":"IF(ISBLANK('TA Indicator Bank'!W260),\"\",'TA Indicator Bank'!W260)","v":0},{"$f":"IF(ISBLANK('TA Indicator Bank'!X260),\"\",'TA Indicator Bank'!X260)","v":0},{"$f":"IF(ISBLANK('TA Indicator Bank'!Y260),\"\",'TA Indicator Bank'!Y260)","v":0},{"$f":"IF(ISBLANK('TA Indicator Bank'!Z260),\"\",'TA Indicator Bank'!Z260)","v":0},{"$f":"IF(ISBLANK('TA Indicator Bank'!AA260),\"\",'TA Indicator Bank'!AA260)","v":0},{"$f":"IF(ISBLANK('TA Indicator Bank'!AB260),\"\",'TA Indicator Bank'!AB260)","v":0},{"$f":"IF(ISBLANK('TA Indicator Bank'!AC260),\"\",'TA Indicator Bank'!AC260)","v":0},{"$f":"IF(ISBLANK('TA Indicator Bank'!AD260),\"\",'TA Indicator Bank'!AD260)","v":0},{"$f":"IF(ISBLANK('TA Indicator Bank'!AE260),\"\",'TA Indicator Bank'!AE260)","v":0},{"$f":"IF(ISBLANK('TA Indicator Bank'!AF260),\"\",'TA Indicator Bank'!AF260)","v":0},{"$f":"IF(ISBLANK('TA Indicator Bank'!AG260),\"\",'TA Indicator Bank'!AG260)","v":0},{"$f":"IF(ISBLANK('TA Indicator Bank'!AH260),\"\",'TA Indicator Bank'!AH260)","v":0},{"$f":"IF(ISBLANK('TA Indicator Bank'!AI260),\"\",'TA Indicator Bank'!AI260)","v":0},{"$f":"IF(ISBLANK('TA Indicator Bank'!AJ260),\"\",'TA Indicator Bank'!AJ260)","v":0},{"$f":"IF(ISBLANK('TA Indicator Bank'!AK260),\"\",'TA Indicator Bank'!AK260)","v":0},{"$f":"IF(ISBLANK('TA Indicator Bank'!AL260),\"\",'TA Indicator Bank'!AL260)","v":0},{"$f":"IF(ISBLANK('TA Indicator Bank'!AM260),\"\",'TA Indicator Bank'!AM260)","v":0},{"$f":"IF(ISBLANK('TA Indicator Bank'!AN260),\"\",'TA Indicator Bank'!AN260)","v":0},{"$f":"IF(ISBLANK('TA Indicator Bank'!AO260),\"\",'TA Indicator Bank'!AO260)","v":0},{"$f":"IF(ISBLANK('TA Indicator Bank'!AP260),\"\",'TA Indicator Bank'!AP260)","v":1},{"$f":"IF(ISBLANK('TA Indicator Bank'!AQ260),\"\",'TA Indicator Bank'!AQ260)","v":0},{"$f":"IF(ISBLANK('TA Indicator Bank'!AR260),\"\",'TA Indicator Bank'!AR260)","v":0},{"$f":"IF(ISBLANK('TA Indicator Bank'!AS260),\"\",'TA Indicator Bank'!AS260)","v":0},{"$f":"IF(ISBLANK('TA Indicator Bank'!AT260),\"\",'TA Indicator Bank'!AT260)","v":0},0,0,0,1,0,0,0,0,0,0,0,0,0,0,1,0,0,0,0,0,0,0,0,0,1,0,0,0,0,0,0,0,0,0,1,{"$f":"IF(AND(AP264=1,AP$410=1),1,0)","v":1},{"$f":"IF(AND(AQ264=1,AQ$410=1),1,0)","v":0},{"$f":"IF(AND(AR264=1,AR$410=1),1,0)","v":0},{"$f":"IF(AND(AS264=1,AS$410=1),1,0)","v":0},{"$f":"IF(AND(AT264=1,AT$410=1),1,0)","v":0},1,1,256,256,{"$f":"IFERROR(SMALL($CL$9:$CL$408,CK264),\"\")","v":256},{"$f":"IFERROR(INDEX($B$9:$I$408,$CM264,COLUMNS($CN$9:CN264)),\"\")","v":"TA256"},{"$f":"IFERROR(INDEX($B$9:$I$408,$CM264,COLUMNS($CN$9:CO264)),\"\")","v":"Number and duration of secondments"},{"$f":"IFERROR(INDEX($B$9:$I$408,$CM264,COLUMNS($CN$9:CP264)),\"\")","v":"Can be measured in terms of the number of individual secondments, or total length of secondments (for example in person-days)."},{"$f":"IFERROR(INDEX($B$9:$I$408,$CM264,COLUMNS($CN$9:CQ264)),\"\")","v":"Activity"},{"$f":"IFERROR(INDEX($B$9:$I$408,$CM264,COLUMNS($CN$9:CR264)),\"\")","v":"Secondments"},{"$f":"IFERROR(INDEX($B$9:$I$408,$CM264,COLUMNS($CN$9:CS264)),\"\")","v":"-"},{"$f":"IFERROR(INDEX($B$9:$I$408,$CM264,COLUMNS($CN$9:CT264)),\"\")","v":"-"},{"$f":"IFERROR(INDEX($B$9:$I$408,$CM264,COLUMNS($CN$9:CU264)),\"\")","v":"Number"}]
[null,{"$f":"IF(ISBLANK('TA Indicator Bank'!B261),\"\",'TA Indicator Bank'!B261)","v":"TA257"},{"$f":"IF(ISBLANK('TA Indicator Bank'!C261),\"\",'TA Indicator Bank'!C261)","v":"Number of organisations or government departments/units supported by secondments"},{"$f":"IF(ISBLANK('TA Indicator Bank'!D261),\"\",'TA Indicator Bank'!D261)","v":"-"},{"$f":"IF(ISBLANK('TA Indicator Bank'!E261),\"\",'TA Indicator Bank'!E261)","v":"Uptake"},{"$f":"IF(ISBLANK('TA Indicator Bank'!F261),\"\",'TA Indicator Bank'!F261)","v":"Secondments"},{"$f":"IF(ISBLANK('TA Indicator Bank'!G261),\"\",'TA Indicator Bank'!G261)","v":"-"},{"$f":"IF(ISBLANK('TA Indicator Bank'!H261),\"\",'TA Indicator Bank'!H261)","v":"-"},{"$f":"IF(ISBLANK('TA Indicator Bank'!I261),\"\",'TA Indicator Bank'!I261)","v":"Number"},{"$f":"IF(ISBLANK('TA Indicator Bank'!J261),\"\",'TA Indicator Bank'!J261)","v":0},{"$f":"IF(ISBLANK('TA Indicator Bank'!K261),\"\",'TA Indicator Bank'!K261)","v":0},{"$f":"IF(ISBLANK('TA Indicator Bank'!L261),\"\",'TA Indicator Bank'!L261)","v":0},{"$f":"IF(ISBLANK('TA Indicator Bank'!M261),\"\",'TA Indicator Bank'!M261)","v":1},{"$f":"IF(ISBLANK('TA Indicator Bank'!N261),\"\",'TA Indicator Bank'!N261)","v":0},{"$f":"IF(ISBLANK('TA Indicator Bank'!O261),\"\",'TA Indicator Bank'!O261)","v":0},{"$f":"IF(ISBLANK('TA Indicator Bank'!P261),\"\",'TA Indicator Bank'!P261)","v":0},{"$f":"IF(ISBLANK('TA Indicator Bank'!Q261),\"\",'TA Indicator Bank'!Q261)","v":0},{"$f":"IF(ISBLANK('TA Indicator Bank'!R261),\"\",'TA Indicator Bank'!R261)","v":0},{"$f":"IF(ISBLANK('TA Indicator Bank'!S261),\"\",'TA Indicator Bank'!S261)","v":0},{"$f":"IF(ISBLANK('TA Indicator Bank'!T261),\"\",'TA Indicator Bank'!T261)","v":0},{"$f":"IF(ISBLANK('TA Indicator Bank'!U261),\"\",'TA Indicator Bank'!U261)","v":0},{"$f":"IF(ISBLANK('TA Indicator Bank'!V261),\"\",'TA Indicator Bank'!V261)","v":0},{"$f":"IF(ISBLANK('TA Indicator Bank'!W261),\"\",'TA Indicator Bank'!W261)","v":0},{"$f":"IF(ISBLANK('TA Indicator Bank'!X261),\"\",'TA Indicator Bank'!X261)","v":0},{"$f":"IF(ISBLANK('TA Indicator Bank'!Y261),\"\",'TA Indicator Bank'!Y261)","v":0},{"$f":"IF(ISBLANK('TA Indicator Bank'!Z261),\"\",'TA Indicator Bank'!Z261)","v":0},{"$f":"IF(ISBLANK('TA Indicator Bank'!AA261),\"\",'TA Indicator Bank'!AA261)","v":0},{"$f":"IF(ISBLANK('TA Indicator Bank'!AB261),\"\",'TA Indicator Bank'!AB261)","v":0},{"$f":"IF(ISBLANK('TA Indicator Bank'!AC261),\"\",'TA Indicator Bank'!AC261)","v":0},{"$f":"IF(ISBLANK('TA Indicator Bank'!AD261),\"\",'TA Indicator Bank'!AD261)","v":0},{"$f":"IF(ISBLANK('TA Indicator Bank'!AE261),\"\",'TA Indicator Bank'!AE261)","v":0},{"$f":"IF(ISBLANK('TA Indicator Bank'!AF261),\"\",'TA Indicator Bank'!AF261)","v":0},{"$f":"IF(ISBLANK('TA Indicator Bank'!AG261),\"\",'TA Indicator Bank'!AG261)","v":0},{"$f":"IF(ISBLANK('TA Indicator Bank'!AH261),\"\",'TA Indicator Bank'!AH261)","v":0},{"$f":"IF(ISBLANK('TA Indicator Bank'!AI261),\"\",'TA Indicator Bank'!AI261)","v":0},{"$f":"IF(ISBLANK('TA Indicator Bank'!AJ261),\"\",'TA Indicator Bank'!AJ261)","v":0},{"$f":"IF(ISBLANK('TA Indicator Bank'!AK261),\"\",'TA Indicator Bank'!AK261)","v":0},{"$f":"IF(ISBLANK('TA Indicator Bank'!AL261),\"\",'TA Indicator Bank'!AL261)","v":0},{"$f":"IF(ISBLANK('TA Indicator Bank'!AM261),\"\",'TA Indicator Bank'!AM261)","v":0},{"$f":"IF(ISBLANK('TA Indicator Bank'!AN261),\"\",'TA Indicator Bank'!AN261)","v":0},{"$f":"IF(ISBLANK('TA Indicator Bank'!AO261),\"\",'TA Indicator Bank'!AO261)","v":0},{"$f":"IF(ISBLANK('TA Indicator Bank'!AP261),\"\",'TA Indicator Bank'!AP261)","v":0},{"$f":"IF(ISBLANK('TA Indicator Bank'!AQ261),\"\",'TA Indicator Bank'!AQ261)","v":1},{"$f":"IF(ISBLANK('TA Indicator Bank'!AR261),\"\",'TA Indicator Bank'!AR261)","v":0},{"$f":"IF(ISBLANK('TA Indicator Bank'!AS261),\"\",'TA Indicator Bank'!AS261)","v":0},{"$f":"IF(ISBLANK('TA Indicator Bank'!AT261),\"\",'TA Indicator Bank'!AT261)","v":0},0,0,0,1,0,0,0,0,0,0,0,0,0,0,1,0,0,0,0,0,0,0,0,0,1,0,0,0,0,0,0,0,0,0,1,{"$f":"IF(AND(AP265=1,AP$410=1),1,0)","v":0},{"$f":"IF(AND(AQ265=1,AQ$410=1),1,0)","v":1},{"$f":"IF(AND(AR265=1,AR$410=1),1,0)","v":0},{"$f":"IF(AND(AS265=1,AS$410=1),1,0)","v":0},{"$f":"IF(AND(AT265=1,AT$410=1),1,0)","v":0},1,1,257,257,{"$f":"IFERROR(SMALL($CL$9:$CL$408,CK265),\"\")","v":257},{"$f":"IFERROR(INDEX($B$9:$I$408,$CM265,COLUMNS($CN$9:CN265)),\"\")","v":"TA257"},{"$f":"IFERROR(INDEX($B$9:$I$408,$CM265,COLUMNS($CN$9:CO265)),\"\")","v":"Number of organisations or government departments/units supported by secondments"},{"$f":"IFERROR(INDEX($B$9:$I$408,$CM265,COLUMNS($CN$9:CP265)),\"\")","v":"-"},{"$f":"IFERROR(INDEX($B$9:$I$408,$CM265,COLUMNS($CN$9:CQ265)),\"\")","v":"Uptake"},{"$f":"IFERROR(INDEX($B$9:$I$408,$CM265,COLUMNS($CN$9:CR265)),\"\")","v":"Secondments"},{"$f":"IFERROR(INDEX($B$9:$I$408,$CM265,COLUMNS($CN$9:CS265)),\"\")","v":"-"},{"$f":"IFERROR(INDEX($B$9:$I$408,$CM265,COLUMNS($CN$9:CT265)),\"\")","v":"-"},{"$f":"IFERROR(INDEX($B$9:$I$408,$CM265,COLUMNS($CN$9:CU265)),\"\")","v":"Number"}]
[null,{"$f":"IF(ISBLANK('TA Indicator Bank'!B262),\"\",'TA Indicator Bank'!B262)","v":""},{"$f":"IF(ISBLANK('TA Indicator Bank'!C262),\"\",'TA Indicator Bank'!C262)","v":""},{"$f":"IF(ISBLANK('TA Indicator Bank'!D262),\"\",'TA Indicator Bank'!D262)","v":""},{"$f":"IF(ISBLANK('TA Indicator Bank'!E262),\"\",'TA Indicator Bank'!E262)","v":""},{"$f":"IF(ISBLANK('TA Indicator Bank'!F262),\"\",'TA Indicator Bank'!F262)","v":""},{"$f":"IF(ISBLANK('TA Indicator Bank'!G262),\"\",'TA Indicator Bank'!G262)","v":""},{"$f":"IF(ISBLANK('TA Indicator Bank'!H262),\"\",'TA Indicator Bank'!H262)","v":""},{"$f":"IF(ISBLANK('TA Indicator Bank'!I262),\"\",'TA Indicator Bank'!I262)","v":""},{"$f":"IF(ISBLANK('TA Indicator Bank'!J262),\"\",'TA Indicator Bank'!J262)","v":""},{"$f":"IF(ISBLANK('TA Indicator Bank'!K262),\"\",'TA Indicator Bank'!K262)","v":""},{"$f":"IF(ISBLANK('TA Indicator Bank'!L262),\"\",'TA Indicator Bank'!L262)","v":""},{"$f":"IF(ISBLANK('TA Indicator Bank'!M262),\"\",'TA Indicator Bank'!M262)","v":""},{"$f":"IF(ISBLANK('TA Indicator Bank'!N262),\"\",'TA Indicator Bank'!N262)","v":""},{"$f":"IF(ISBLANK('TA Indicator Bank'!O262),\"\",'TA Indicator Bank'!O262)","v":""},{"$f":"IF(ISBLANK('TA Indicator Bank'!P262),\"\",'TA Indicator Bank'!P262)","v":""},{"$f":"IF(ISBLANK('TA Indicator Bank'!Q262),\"\",'TA Indicator Bank'!Q262)","v":""},{"$f":"IF(ISBLANK('TA Indicator Bank'!R262),\"\",'TA Indicator Bank'!R262)","v":""},{"$f":"IF(ISBLANK('TA Indicator Bank'!S262),\"\",'TA Indicator Bank'!S262)","v":""},{"$f":"IF(ISBLANK('TA Indicator Bank'!T262),\"\",'TA Indicator Bank'!T262)","v":""},{"$f":"IF(ISBLANK('TA Indicator Bank'!U262),\"\",'TA Indicator Bank'!U262)","v":""},{"$f":"IF(ISBLANK('TA Indicator Bank'!V262),\"\",'TA Indicator Bank'!V262)","v":""},{"$f":"IF(ISBLANK('TA Indicator Bank'!W262),\"\",'TA Indicator Bank'!W262)","v":""},{"$f":"IF(ISBLANK('TA Indicator Bank'!X262),\"\",'TA Indicator Bank'!X262)","v":""},{"$f":"IF(ISBLANK('TA Indicator Bank'!Y262),\"\",'TA Indicator Bank'!Y262)","v":""},{"$f":"IF(ISBLANK('TA Indicator Bank'!Z262),\"\",'TA Indicator Bank'!Z262)","v":""},{"$f":"IF(ISBLANK('TA Indicator Bank'!AA262),\"\",'TA Indicator Bank'!AA262)","v":""},{"$f":"IF(ISBLANK('TA Indicator Bank'!AB262),\"\",'TA Indicator Bank'!AB262)","v":""},{"$f":"IF(ISBLANK('TA Indicator Bank'!AC262),\"\",'TA Indicator Bank'!AC262)","v":""},{"$f":"IF(ISBLANK('TA Indicator Bank'!AD262),\"\",'TA Indicator Bank'!AD262)","v":""},{"$f":"IF(ISBLANK('TA Indicator Bank'!AE262),\"\",'TA Indicator Bank'!AE262)","v":""},{"$f":"IF(ISBLANK('TA Indicator Bank'!AF262),\"\",'TA Indicator Bank'!AF262)","v":""},{"$f":"IF(ISBLANK('TA Indicator Bank'!AG262),\"\",'TA Indicator Bank'!AG262)","v":""},{"$f":"IF(ISBLANK('TA Indicator Bank'!AH262),\"\",'TA Indicator Bank'!AH262)","v":""},{"$f":"IF(ISBLANK('TA Indicator Bank'!AI262),\"\",'TA Indicator Bank'!AI262)","v":""},{"$f":"IF(ISBLANK('TA Indicator Bank'!AJ262),\"\",'TA Indicator Bank'!AJ262)","v":""},{"$f":"IF(ISBLANK('TA Indicator Bank'!AK262),\"\",'TA Indicator Bank'!AK262)","v":""},{"$f":"IF(ISBLANK('TA Indicator Bank'!AL262),\"\",'TA Indicator Bank'!AL262)","v":""},{"$f":"IF(ISBLANK('TA Indicator Bank'!AM262),\"\",'TA Indicator Bank'!AM262)","v":""},{"$f":"IF(ISBLANK('TA Indicator Bank'!AN262),\"\",'TA Indicator Bank'!AN262)","v":""},{"$f":"IF(ISBLANK('TA Indicator Bank'!AO262),\"\",'TA Indicator Bank'!AO262)","v":""},{"$f":"IF(ISBLANK('TA Indicator Bank'!AP262),\"\",'TA Indicator Bank'!AP262)","v":""},{"$f":"IF(ISBLANK('TA Indicator Bank'!AQ262),\"\",'TA Indicator Bank'!AQ262)","v":""},{"$f":"IF(ISBLANK('TA Indicator Bank'!AR262),\"\",'TA Indicator Bank'!AR262)","v":""},{"$f":"IF(ISBLANK('TA Indicator Bank'!AS262),\"\",'TA Indicator Bank'!AS262)","v":""},{"$f":"IF(ISBLANK('TA Indicator Bank'!AT262),\"\",'TA Indicator Bank'!AT262)","v":""},{"$f":"IF(AND(J266=1,J$410=1),1,0)","v":0},{"$f":"IF(AND(K266=1,K$410=1),1,0)","v":0},{"$f":"IF(AND(L266=1,L$410=1),1,0)","v":0},{"$f":"IF(AND(M266=1,M$410=1),1,0)","v":0},{"$f":"IF(AND(N266=1,N$410=1),1,0)","v":0},{"$f":"IF(AND(O266=1,O$410=1),1,0)","v":0},{"$f":"IF(AND(P266=1,P$410=1),1,0)","v":0},{"$f":"IF(AND(Q266=1,Q$410=1),1,0)","v":0},{"$f":"IF(AND(R266=1,R$410=1),1,0)","v":0},{"$f":"IF(AND(S266=1,S$410=1),1,0)","v":0},{"$f":"IF(AND(T266=1,T$410=1),1,0)","v":0},{"$f":"IF(AND(U266=1,U$410=1),1,0)","v":0},{"$f":"IF(AND(V266=1,V$410=1),1,0)","v":0},{"$f":"IF(AND(W266=1,W$410=1),1,0)","v":0},{"$f":"IF($C$4=\"All\",1,IF(SUM(AU266:BH266)>0,1,0))","v":1},{"$f":"IF(AND(X266=1,X$410=1),1,0)","v":0},{"$f":"IF(AND(Y266=1,Y$410=1),1,0)","v":0},{"$f":"IF(AND(Z266=1,Z$410=1),1,0)","v":0},{"$f":"IF(AND(AA266=1,AA$410=1),1,0)","v":0},{"$f":"IF(AND(AB266=1,AB$410=1),1,0)","v":0},{"$f":"IF(AND(AC266=1,AC$410=1),1,0)","v":0},{"$f":"IF(AND(AD266=1,AD$410=1),1,0)","v":0},{"$f":"IF(AND(AE266=1,AE$410=1),1,0)","v":0},{"$f":"IF(AND(AF266=1,AF$410=1),1,0)","v":0},{"$f":"IF($C$5=\"All\",1,IF(SUM(BJ266:BR266)>0,1,0))","v":1},{"$f":"IF(AND(AG266=1,AG$410=1),1,0)","v":0},{"$f":"IF(AND(AH266=1,AH$410=1),1,0)","v":0},{"$f":"IF(AND(AI266=1,AI$410=1),1,0)","v":0},{"$f":"IF(AND(AJ266=1,AJ$410=1),1,0)","v":0},{"$f":"IF(AND(AK266=1,AK$410=1),1,0)","v":0},{"$f":"IF(AND(AL266=1,AL$410=1),1,0)","v":0},{"$f":"IF(AND(AM266=1,AM$410=1),1,0)","v":0},{"$f":"IF(AND(AN266=1,AN$410=1),1,0)","v":0},{"$f":"IF(AND(AO266=1,AO$410=1),1,0)","v":0},{"$f":"IF($C$6=\"All\",1,IF(SUM(BT266:CB266)>0,1,0))","v":1},{"$f":"IF(AND(AP266=1,AP$410=1),1,0)","v":0},{"$f":"IF(AND(AQ266=1,AQ$410=1),1,0)","v":0},{"$f":"IF(AND(AR266=1,AR$410=1),1,0)","v":0},{"$f":"IF(AND(AS266=1,AS$410=1),1,0)","v":0},{"$f":"IF(AND(AT266=1,AT$410=1),1,0)","v":0},{"$f":"IF($C$3=\"All\",1,IF(SUM(CD266:CH266)>0,1,0))","v":1},{"$f":"IF(AND(BI266=1,BS266=1,CC266=1,CI266=1),1,0)","v":1},258,{"$f":"IF(CJ266=1,CK266,\"\")","v":258},{"$f":"IFERROR(SMALL($CL$9:$CL$408,CK409),\"\")","v":""},{"$f":"IFERROR(INDEX($B$9:$I$408,$CM409,COLUMNS($CN$9:CN409)),\"\")","v":""},{"$f":"IFERROR(INDEX($B$9:$I$408,$CM409,COLUMNS($CN$9:CO409)),\"\")","v":""},{"$f":"IFERROR(INDEX($B$9:$I$408,$CM409,COLUMNS($CN$9:CP409)),\"\")","v":""},{"$f":"IFERROR(INDEX($B$9:$I$408,$CM409,COLUMNS($CN$9:CQ409)),\"\")","v":""},{"$f":"IFERROR(INDEX($B$9:$I$408,$CM409,COLUMNS($CN$9:CR409)),\"\")","v":""},{"$f":"IFERROR(INDEX($B$9:$I$408,$CM409,COLUMNS($CN$9:CS409)),\"\")","v":""},{"$f":"IFERROR(INDEX($B$9:$I$408,$CM409,COLUMNS($CN$9:CT409)),\"\")","v":""},{"$f":"IFERROR(INDEX($B$9:$I$408,$CM409,COLUMNS($CN$9:CU409)),\"\")","v":""}]
[null,{"$f":"IF(ISBLANK('TA Indicator Bank'!B263),\"\",'TA Indicator Bank'!B263)","v":""},{"$f":"IF(ISBLANK('TA Indicator Bank'!C263),\"\",'TA Indicator Bank'!C263)","v":""},{"$f":"IF(ISBLANK('TA Indicator Bank'!D263),\"\",'TA Indicator Bank'!D263)","v":""},{"$f":"IF(ISBLANK('TA Indicator Bank'!E263),\"\",'TA Indicator Bank'!E263)","v":""},{"$f":"IF(ISBLANK('TA Indicator Bank'!F263),\"\",'TA Indicator Bank'!F263)","v":""},{"$f":"IF(ISBLANK('TA Indicator Bank'!G263),\"\",'TA Indicator Bank'!G263)","v":""},{"$f":"IF(ISBLANK('TA Indicator Bank'!H263),\"\",'TA Indicator Bank'!H263)","v":""},{"$f":"IF(ISBLANK('TA Indicator Bank'!I263),\"\",'TA Indicator Bank'!I263)","v":""},{"$f":"IF(ISBLANK('TA Indicator Bank'!J263),\"\",'TA Indicator Bank'!J263)","v":""},{"$f":"IF(ISBLANK('TA Indicator Bank'!K263),\"\",'TA Indicator Bank'!K263)","v":""},{"$f":"IF(ISBLANK('TA Indicator Bank'!L263),\"\",'TA Indicator Bank'!L263)","v":""},{"$f":"IF(ISBLANK('TA Indicator Bank'!M263),\"\",'TA Indicator Bank'!M263)","v":""},{"$f":"IF(ISBLANK('TA Indicator Bank'!N263),\"\",'TA Indicator Bank'!N263)","v":""},{"$f":"IF(ISBLANK('TA Indicator Bank'!O263),\"\",'TA Indicator Bank'!O263)","v":""},{"$f":"IF(ISBLANK('TA Indicator Bank'!P263),\"\",'TA Indicator Bank'!P263)","v":""},{"$f":"IF(ISBLANK('TA Indicator Bank'!Q263),\"\",'TA Indicator Bank'!Q263)","v":""},{"$f":"IF(ISBLANK('TA Indicator Bank'!R263),\"\",'TA Indicator Bank'!R263)","v":""},{"$f":"IF(ISBLANK('TA Indicator Bank'!S263),\"\",'TA Indicator Bank'!S263)","v":""},{"$f":"IF(ISBLANK('TA Indicator Bank'!T263),\"\",'TA Indicator Bank'!T263)","v":""},{"$f":"IF(ISBLANK('TA Indicator Bank'!U263),\"\",'TA Indicator Bank'!U263)","v":""},{"$f":"IF(ISBLANK('TA Indicator Bank'!V263),\"\",'TA Indicator Bank'!V263)","v":""},{"$f":"IF(ISBLANK('TA Indicator Bank'!W263),\"\",'TA Indicator Bank'!W263)","v":""},{"$f":"IF(ISBLANK('TA Indicator Bank'!X263),\"\",'TA Indicator Bank'!X263)","v":""},{"$f":"IF(ISBLANK('TA Indicator Bank'!Y263),\"\",'TA Indicator Bank'!Y263)","v":""},{"$f":"IF(ISBLANK('TA Indicator Bank'!Z263),\"\",'TA Indicator Bank'!Z263)","v":""},{"$f":"IF(ISBLANK('TA Indicator Bank'!AA263),\"\",'TA Indicator Bank'!AA263)","v":""},{"$f":"IF(ISBLANK('TA Indicator Bank'!AB263),\"\",'TA Indicator Bank'!AB263)","v":""},{"$f":"IF(ISBLANK('TA Indicator Bank'!AC263),\"\",'TA Indicator Bank'!AC263)","v":""},{"$f":"IF(ISBLANK('TA Indicator Bank'!AD263),\"\",'TA Indicator Bank'!AD263)","v":""},{"$f":"IF(ISBLANK('TA Indicator Bank'!AE263),\"\",'TA Indicator Bank'!AE263)","v":""},{"$f":"IF(ISBLANK('TA Indicator Bank'!AF263),\"\",'TA Indicator Bank'!AF263)","v":""},{"$f":"IF(ISBLANK('TA Indicator Bank'!AG263),\"\",'TA Indicator Bank'!AG263)","v":""},{"$f":"IF(ISBLANK('TA Indicator Bank'!AH263),\"\",'TA Indicator Bank'!AH263)","v":""},{"$f":"IF(ISBLANK('TA Indicator Bank'!AI263),\"\",'TA Indicator Bank'!AI263)","v":""},{"$f":"IF(ISBLANK('TA Indicator Bank'!AJ263),\"\",'TA Indicator Bank'!AJ263)","v":""},{"$f":"IF(ISBLANK('TA Indicator Bank'!AK263),\"\",'TA Indicator Bank'!AK263)","v":""},{"$f":"IF(ISBLANK('TA Indicator Bank'!AL263),\"\",'TA Indicator Bank'!AL263)","v":""},{"$f":"IF(ISBLANK('TA Indicator Bank'!AM263),\"\",'TA Indicator Bank'!AM263)","v":""},{"$f":"IF(ISBLANK('TA Indicator Bank'!AN263),\"\",'TA Indicator Bank'!AN263)","v":""},{"$f":"IF(ISBLANK('TA Indicator Bank'!AO263),\"\",'TA Indicator Bank'!AO263)","v":""},{"$f":"IF(ISBLANK('TA Indicator Bank'!AP263),\"\",'TA Indicator Bank'!AP263)","v":""},{"$f":"IF(ISBLANK('TA Indicator Bank'!AQ263),\"\",'TA Indicator Bank'!AQ263)","v":""},{"$f":"IF(ISBLANK('TA Indicator Bank'!AR263),\"\",'TA Indicator Bank'!AR263)","v":""},{"$f":"IF(ISBLANK('TA Indicator Bank'!AS263),\"\",'TA Indicator Bank'!AS263)","v":""},{"$f":"IF(ISBLANK('TA Indicator Bank'!AT263),\"\",'TA Indicator Bank'!AT263)","v":""},0,0,0,0,0,0,0,0,0,0,0,0,0,0,1,0,0,0,0,0,0,0,0,0,1,0,0,0,0,0,0,0,0,0,1,0,0,0,0,0,1,1,259,259,"",{"$f":"IFERROR(INDEX($B$9:$I$408,$CM410,COLUMNS($CN$9:CN410)),\"\")","v":""},{"$f":"IFERROR(INDEX($B$9:$I$408,$CM410,COLUMNS($CN$9:CO410)),\"\")","v":""},{"$f":"IFERROR(INDEX($B$9:$I$408,$CM410,COLUMNS($CN$9:CP410)),\"\")","v":""},{"$f":"IFERROR(INDEX($B$9:$I$408,$CM410,COLUMNS($CN$9:CQ410)),\"\")","v":""},{"$f":"IFERROR(INDEX($B$9:$I$408,$CM410,COLUMNS($CN$9:CR410)),\"\")","v":""},{"$f":"IFERROR(INDEX($B$9:$I$408,$CM410,COLUMNS($CN$9:CS410)),\"\")","v":""},{"$f":"IFERROR(INDEX($B$9:$I$408,$CM410,COLUMNS($CN$9:CT410)),\"\")","v":""},{"$f":"IFERROR(INDEX($B$9:$I$408,$CM410,COLUMNS($CN$9:CU410)),\"\")","v":""}]
[null,{"$f":"IF(ISBLANK('TA Indicator Bank'!B264),\"\",'TA Indicator Bank'!B264)","v":""},{"$f":"IF(ISBLANK('TA Indicator Bank'!C264),\"\",'TA Indicator Bank'!C264)","v":""},{"$f":"IF(ISBLANK('TA Indicator Bank'!D264),\"\",'TA Indicator Bank'!D264)","v":""},{"$f":"IF(ISBLANK('TA Indicator Bank'!E264),\"\",'TA Indicator Bank'!E264)","v":""},{"$f":"IF(ISBLANK('TA Indicator Bank'!F264),\"\",'TA Indicator Bank'!F264)","v":""},{"$f":"IF(ISBLANK('TA Indicator Bank'!G264),\"\",'TA Indicator Bank'!G264)","v":""},{"$f":"IF(ISBLANK('TA Indicator Bank'!H264),\"\",'TA Indicator Bank'!H264)","v":""},{"$f":"IF(ISBLANK('TA Indicator Bank'!I264),\"\",'TA Indicator Bank'!I264)","v":""},{"$f":"IF(ISBLANK('TA Indicator Bank'!J264),\"\",'TA Indicator Bank'!J264)","v":""},{"$f":"IF(ISBLANK('TA Indicator Bank'!K264),\"\",'TA Indicator Bank'!K264)","v":""},{"$f":"IF(ISBLANK('TA Indicator Bank'!L264),\"\",'TA Indicator Bank'!L264)","v":""},{"$f":"IF(ISBLANK('TA Indicator Bank'!M264),\"\",'TA Indicator Bank'!M264)","v":""},{"$f":"IF(ISBLANK('TA Indicator Bank'!N264),\"\",'TA Indicator Bank'!N264)","v":""},{"$f":"IF(ISBLANK('TA Indicator Bank'!O264),\"\",'TA Indicator Bank'!O264)","v":""},{"$f":"IF(ISBLANK('TA Indicator Bank'!P264),\"\",'TA Indicator Bank'!P264)","v":""},{"$f":"IF(ISBLANK('TA Indicator Bank'!Q264),\"\",'TA Indicator Bank'!Q264)","v":""},{"$f":"IF(ISBLANK('TA Indicator Bank'!R264),\"\",'TA Indicator Bank'!R264)","v":""},{"$f":"IF(ISBLANK('TA Indicator Bank'!S264),\"\",'TA Indicator Bank'!S264)","v":""},{"$f":"IF(ISBLANK('TA Indicator Bank'!T264),\"\",'TA Indicator Bank'!T264)","v":""},{"$f":"IF(ISBLANK('TA Indicator Bank'!U264),\"\",'TA Indicator Bank'!U264)","v":""},{"$f":"IF(ISBLANK('TA Indicator Bank'!V264),\"\",'TA Indicator Bank'!V264)","v":""},{"$f":"IF(ISBLANK('TA Indicator Bank'!W264),\"\",'TA Indicator Bank'!W264)","v":""},{"$f":"IF(ISBLANK('TA Indicator Bank'!X264),\"\",'TA Indicator Bank'!X264)","v":""},{"$f":"IF(ISBLANK('TA Indicator Bank'!Y264),\"\",'TA Indicator Bank'!Y264)","v":""},{"$f":"IF(ISBLANK('TA Indicator Bank'!Z264),\"\",'TA Indicator Bank'!Z264)","v":""},{"$f":"IF(ISBLANK('TA Indicator Bank'!AA264),\"\",'TA Indicator Bank'!AA264)","v":""},{"$f":"IF(ISBLANK('TA Indicator Bank'!AB264),\"\",'TA Indicator Bank'!AB264)","v":""},{"$f":"IF(ISBLANK('TA Indicator Bank'!AC264),\"\",'TA Indicator Bank'!AC264)","v":""},{"$f":"IF(ISBLANK('TA Indicator Bank'!AD264),\"\",'TA Indicator Bank'!AD264)","v":""},{"$f":"IF(ISBLANK('TA Indicator Bank'!AE264),\"\",'TA Indicator Bank'!AE264)","v":""},{"$f":"IF(ISBLANK('TA Indicator Bank'!AF264),\"\",'TA Indicator Bank'!AF264)","v":""},{"$f":"IF(ISBLANK('TA Indicator Bank'!AG264),\"\",'TA Indicator Bank'!AG264)","v":""},{"$f":"IF(ISBLANK('TA Indicator Bank'!AH264),\"\",'TA Indicator Bank'!AH264)","v":""},{"$f":"IF(ISBLANK('TA Indicator Bank'!AI264),\"\",'TA Indicator Bank'!AI264)","v":""},{"$f":"IF(ISBLANK('TA Indicator Bank'!AJ264),\"\",'TA Indicator Bank'!AJ264)","v":""},{"$f":"IF(ISBLANK('TA Indicator Bank'!AK264),\"\",'TA Indicator Bank'!AK264)","v":""},{"$f":"IF(ISBLANK('TA Indicator Bank'!AL264),\"\",'TA Indicator Bank'!AL264)","v":""},{"$f":"IF(ISBLANK('TA Indicator Bank'!AM264),\"\",'TA Indicator Bank'!AM264)","v":""},{"$f":"IF(ISBLANK('TA Indicator Bank'!AN264),\"\",'TA Indicator Bank'!AN264)","v":""},{"$f":"IF(ISBLANK('TA Indicator Bank'!AO264),\"\",'TA Indicator Bank'!AO264)","v":""},{"$f":"IF(ISBLANK('TA Indicator Bank'!AP264),\"\",'TA Indicator Bank'!AP264)","v":""},{"$f":"IF(ISBLANK('TA Indicator Bank'!AQ264),\"\",'TA Indicator Bank'!AQ264)","v":""},{"$f":"IF(ISBLANK('TA Indicator Bank'!AR264),\"\",'TA Indicator Bank'!AR264)","v":""},{"$f":"IF(ISBLANK('TA Indicator Bank'!AS264),\"\",'TA Indicator Bank'!AS264)","v":""},{"$f":"IF(ISBLANK('TA Indicator Bank'!AT264),\"\",'TA Indicator Bank'!AT264)","v":""},0,0,0,0,0,0,0,0,0,0,0,0,0,0,1,0,0,0,0,0,0,0,0,0,1,0,0,0,0,0,0,0,0,0,1,0,0,0,0,0,1,1,260,260,"",{"$f":"IFERROR(INDEX($B$9:$I$408,$CM411,COLUMNS($CN$9:CN411)),\"\")","v":""},{"$f":"IFERROR(INDEX($B$9:$I$408,$CM411,COLUMNS($CN$9:CO411)),\"\")","v":""},{"$f":"IFERROR(INDEX($B$9:$I$408,$CM411,COLUMNS($CN$9:CP411)),\"\")","v":""},{"$f":"IFERROR(INDEX($B$9:$I$408,$CM411,COLUMNS($CN$9:CQ411)),\"\")","v":""},{"$f":"IFERROR(INDEX($B$9:$I$408,$CM411,COLUMNS($CN$9:CR411)),\"\")","v":""},{"$f":"IFERROR(INDEX($B$9:$I$408,$CM411,COLUMNS($CN$9:CS411)),\"\")","v":""},{"$f":"IFERROR(INDEX($B$9:$I$408,$CM411,COLUMNS($CN$9:CT411)),\"\")","v":""},{"$f":"IFERROR(INDEX($B$9:$I$408,$CM411,COLUMNS($CN$9:CU411)),\"\")","v":""}]
[null,{"$f":"IF(ISBLANK('TA Indicator Bank'!B265),\"\",'TA Indicator Bank'!B265)","v":""},{"$f":"IF(ISBLANK('TA Indicator Bank'!C265),\"\",'TA Indicator Bank'!C265)","v":""},{"$f":"IF(ISBLANK('TA Indicator Bank'!D265),\"\",'TA Indicator Bank'!D265)","v":""},{"$f":"IF(ISBLANK('TA Indicator Bank'!E265),\"\",'TA Indicator Bank'!E265)","v":""},{"$f":"IF(ISBLANK('TA Indicator Bank'!F265),\"\",'TA Indicator Bank'!F265)","v":""},{"$f":"IF(ISBLANK('TA Indicator Bank'!G265),\"\",'TA Indicator Bank'!G265)","v":""},{"$f":"IF(ISBLANK('TA Indicator Bank'!H265),\"\",'TA Indicator Bank'!H265)","v":""},{"$f":"IF(ISBLANK('TA Indicator Bank'!I265),\"\",'TA Indicator Bank'!I265)","v":""},{"$f":"IF(ISBLANK('TA Indicator Bank'!J265),\"\",'TA Indicator Bank'!J265)","v":""},{"$f":"IF(ISBLANK('TA Indicator Bank'!K265),\"\",'TA Indicator Bank'!K265)","v":""},{"$f":"IF(ISBLANK('TA Indicator Bank'!L265),\"\",'TA Indicator Bank'!L265)","v":""},{"$f":"IF(ISBLANK('TA Indicator Bank'!M265),\"\",'TA Indicator Bank'!M265)","v":""},{"$f":"IF(ISBLANK('TA Indicator Bank'!N265),\"\",'TA Indicator Bank'!N265)","v":""},{"$f":"IF(ISBLANK('TA Indicator Bank'!O265),\"\",'TA Indicator Bank'!O265)","v":""},{"$f":"IF(ISBLANK('TA Indicator Bank'!P265),\"\",'TA Indicator Bank'!P265)","v":""},{"$f":"IF(ISBLANK('TA Indicator Bank'!Q265),\"\",'TA Indicator Bank'!Q265)","v":""},{"$f":"IF(ISBLANK('TA Indicator Bank'!R265),\"\",'TA Indicator Bank'!R265)","v":""},{"$f":"IF(ISBLANK('TA Indicator Bank'!S265),\"\",'TA Indicator Bank'!S265)","v":""},{"$f":"IF(ISBLANK('TA Indicator Bank'!T265),\"\",'TA Indicator Bank'!T265)","v":""},{"$f":"IF(ISBLANK('TA Indicator Bank'!U265),\"\",'TA Indicator Bank'!U265)","v":""},{"$f":"IF(ISBLANK('TA Indicator Bank'!V265),\"\",'TA Indicator Bank'!V265)","v":""},{"$f":"IF(ISBLANK('TA Indicator Bank'!W265),\"\",'TA Indicator Bank'!W265)","v":""},{"$f":"IF(ISBLANK('TA Indicator Bank'!X265),\"\",'TA Indicator Bank'!X265)","v":""},{"$f":"IF(ISBLANK('TA Indicator Bank'!Y265),\"\",'TA Indicator Bank'!Y265)","v":""},{"$f":"IF(ISBLANK('TA Indicator Bank'!Z265),\"\",'TA Indicator Bank'!Z265)","v":""},{"$f":"IF(ISBLANK('TA Indicator Bank'!AA265),\"\",'TA Indicator Bank'!AA265)","v":""},{"$f":"IF(ISBLANK('TA Indicator Bank'!AB265),\"\",'TA Indicator Bank'!AB265)","v":""},{"$f":"IF(ISBLANK('TA Indicator Bank'!AC265),\"\",'TA Indicator Bank'!AC265)","v":""},{"$f":"IF(ISBLANK('TA Indicator Bank'!AD265),\"\",'TA Indicator Bank'!AD265)","v":""},{"$f":"IF(ISBLANK('TA Indicator Bank'!AE265),\"\",'TA Indicator Bank'!AE265)","v":""},{"$f":"IF(ISBLANK('TA Indicator Bank'!AF265),\"\",'TA Indicator Bank'!AF265)","v":""},{"$f":"IF(ISBLANK('TA Indicator Bank'!AG265),\"\",'TA Indicator Bank'!AG265)","v":""},{"$f":"IF(ISBLANK('TA Indicator Bank'!AH265),\"\",'TA Indicator Bank'!AH265)","v":""},{"$f":"IF(ISBLANK('TA Indicator Bank'!AI265),\"\",'TA Indicator Bank'!AI265)","v":""},{"$f":"IF(ISBLANK('TA Indicator Bank'!AJ265),\"\",'TA Indicator Bank'!AJ265)","v":""},{"$f":"IF(ISBLANK('TA Indicator Bank'!AK265),\"\",'TA Indicator Bank'!AK265)","v":""},{"$f":"IF(ISBLANK('TA Indicator Bank'!AL265),\"\",'TA Indicator Bank'!AL265)","v":""},{"$f":"IF(ISBLANK('TA Indicator Bank'!AM265),\"\",'TA Indicator Bank'!AM265)","v":""},{"$f":"IF(ISBLANK('TA Indicator Bank'!AN265),\"\",'TA Indicator Bank'!AN265)","v":""},{"$f":"IF(ISBLANK('TA Indicator Bank'!AO265),\"\",'TA Indicator Bank'!AO265)","v":""},{"$f":"IF(ISBLANK('TA Indicator Bank'!AP265),\"\",'TA Indicator Bank'!AP265)","v":""},{"$f":"IF(ISBLANK('TA Indicator Bank'!AQ265),\"\",'TA Indicator Bank'!AQ265)","v":""},{"$f":"IF(ISBLANK('TA Indicator Bank'!AR265),\"\",'TA Indicator Bank'!AR265)","v":""},{"$f":"IF(ISBLANK('TA Indicator Bank'!AS265),\"\",'TA Indicator Bank'!AS265)","v":""},{"$f":"IF(ISBLANK('TA Indicator Bank'!AT265),\"\",'TA Indicator Bank'!AT265)","v":""},0,0,0,0,0,0,0,0,0,0,0,0,0,0,1,0,0,0,0,0,0,0,0,0,1,0,0,0,0,0,0,0,0,0,1,0,0,0,0,0,1,1,261,261,"",{"$f":"IFERROR(INDEX($B$9:$I$408,$CM412,COLUMNS($CN$9:CN412)),\"\")","v":""},{"$f":"IFERROR(INDEX($B$9:$I$408,$CM412,COLUMNS($CN$9:CO412)),\"\")","v":""},{"$f":"IFERROR(INDEX($B$9:$I$408,$CM412,COLUMNS($CN$9:CP412)),\"\")","v":""},{"$f":"IFERROR(INDEX($B$9:$I$408,$CM412,COLUMNS($CN$9:CQ412)),\"\")","v":""},{"$f":"IFERROR(INDEX($B$9:$I$408,$CM412,COLUMNS($CN$9:CR412)),\"\")","v":""},{"$f":"IFERROR(INDEX($B$9:$I$408,$CM412,COLUMNS($CN$9:CS412)),\"\")","v":""},{"$f":"IFERROR(INDEX($B$9:$I$408,$CM412,COLUMNS($CN$9:CT412)),\"\")","v":""},{"$f":"IFERROR(INDEX($B$9:$I$408,$CM412,COLUMNS($CN$9:CU412)),\"\")","v":""}]
[null,{"$f":"IF(ISBLANK('TA Indicator Bank'!B266),\"\",'TA Indicator Bank'!B266)","v":""},{"$f":"IF(ISBLANK('TA Indicator Bank'!C266),\"\",'TA Indicator Bank'!C266)","v":""},{"$f":"IF(ISBLANK('TA Indicator Bank'!D266),\"\",'TA Indicator Bank'!D266)","v":""},{"$f":"IF(ISBLANK('TA Indicator Bank'!E266),\"\",'TA Indicator Bank'!E266)","v":""},{"$f":"IF(ISBLANK('TA Indicator Bank'!F266),\"\",'TA Indicator Bank'!F266)","v":""},{"$f":"IF(ISBLANK('TA Indicator Bank'!G266),\"\",'TA Indicator Bank'!G266)","v":""},{"$f":"IF(ISBLANK('TA Indicator Bank'!H266),\"\",'TA Indicator Bank'!H266)","v":""},{"$f":"IF(ISBLANK('TA Indicator Bank'!I266),\"\",'TA Indicator Bank'!I266)","v":""},{"$f":"IF(ISBLANK('TA Indicator Bank'!J266),\"\",'TA Indicator Bank'!J266)","v":""},{"$f":"IF(ISBLANK('TA Indicator Bank'!K266),\"\",'TA Indicator Bank'!K266)","v":""},{"$f":"IF(ISBLANK('TA Indicator Bank'!L266),\"\",'TA Indicator Bank'!L266)","v":""},{"$f":"IF(ISBLANK('TA Indicator Bank'!M266),\"\",'TA Indicator Bank'!M266)","v":""},{"$f":"IF(ISBLANK('TA Indicator Bank'!N266),\"\",'TA Indicator Bank'!N266)","v":""},{"$f":"IF(ISBLANK('TA Indicator Bank'!O266),\"\",'TA Indicator Bank'!O266)","v":""},{"$f":"IF(ISBLANK('TA Indicator Bank'!P266),\"\",'TA Indicator Bank'!P266)","v":""},{"$f":"IF(ISBLANK('TA Indicator Bank'!Q266),\"\",'TA Indicator Bank'!Q266)","v":""},{"$f":"IF(ISBLANK('TA Indicator Bank'!R266),\"\",'TA Indicator Bank'!R266)","v":""},{"$f":"IF(ISBLANK('TA Indicator Bank'!S266),\"\",'TA Indicator Bank'!S266)","v":""},{"$f":"IF(ISBLANK('TA Indicator Bank'!T266),\"\",'TA Indicator Bank'!T266)","v":""},{"$f":"IF(ISBLANK('TA Indicator Bank'!U266),\"\",'TA Indicator Bank'!U266)","v":""},{"$f":"IF(ISBLANK('TA Indicator Bank'!V266),\"\",'TA Indicator Bank'!V266)","v":""},{"$f":"IF(ISBLANK('TA Indicator Bank'!W266),\"\",'TA Indicator Bank'!W266)","v":""},{"$f":"IF(ISBLANK('TA Indicator Bank'!X266),\"\",'TA Indicator Bank'!X266)","v":""},{"$f":"IF(ISBLANK('TA Indicator Bank'!Y266),\"\",'TA Indicator Bank'!Y266)","v":""},{"$f":"IF(ISBLANK('TA Indicator Bank'!Z266),\"\",'TA Indicator Bank'!Z266)","v":""},{"$f":"IF(ISBLANK('TA Indicator Bank'!AA266),\"\",'TA Indicator Bank'!AA266)","v":""},{"$f":"IF(ISBLANK('TA Indicator Bank'!AB266),\"\",'TA Indicator Bank'!AB266)","v":""},{"$f":"IF(ISBLANK('TA Indicator Bank'!AC266),\"\",'TA Indicator Bank'!AC266)","v":""},{"$f":"IF(ISBLANK('TA Indicator Bank'!AD266),\"\",'TA Indicator Bank'!AD266)","v":""},{"$f":"IF(ISBLANK('TA Indicator Bank'!AE266),\"\",'TA Indicator Bank'!AE266)","v":""},{"$f":"IF(ISBLANK('TA Indicator Bank'!AF266),\"\",'TA Indicator Bank'!AF266)","v":""},{"$f":"IF(ISBLANK('TA Indicator Bank'!AG266),\"\",'TA Indicator Bank'!AG266)","v":""},{"$f":"IF(ISBLANK('TA Indicator Bank'!AH266),\"\",'TA Indicator Bank'!AH266)","v":""},{"$f":"IF(ISBLANK('TA Indicator Bank'!AI266),\"\",'TA Indicator Bank'!AI266)","v":""},{"$f":"IF(ISBLANK('TA Indicator Bank'!AJ266),\"\",'TA Indicator Bank'!AJ266)","v":""},{"$f":"IF(ISBLANK('TA Indicator Bank'!AK266),\"\",'TA Indicator Bank'!AK266)","v":""},{"$f":"IF(ISBLANK('TA Indicator Bank'!AL266),\"\",'TA Indicator Bank'!AL266)","v":""},{"$f":"IF(ISBLANK('TA Indicator Bank'!AM266),\"\",'TA Indicator Bank'!AM266)","v":""},{"$f":"IF(ISBLANK('TA Indicator Bank'!AN266),\"\",'TA Indicator Bank'!AN266)","v":""},{"$f":"IF(ISBLANK('TA Indicator Bank'!AO266),\"\",'TA Indicator Bank'!AO266)","v":""},{"$f":"IF(ISBLANK('TA Indicator Bank'!AP266),\"\",'TA Indicator Bank'!AP266)","v":""},{"$f":"IF(ISBLANK('TA Indicator Bank'!AQ266),\"\",'TA Indicator Bank'!AQ266)","v":""},{"$f":"IF(ISBLANK('TA Indicator Bank'!AR266),\"\",'TA Indicator Bank'!AR266)","v":""},{"$f":"IF(ISBLANK('TA Indicator Bank'!AS266),\"\",'TA Indicator Bank'!AS266)","v":""},{"$f":"IF(ISBLANK('TA Indicator Bank'!AT266),\"\",'TA Indicator Bank'!AT266)","v":""},0,0,0,0,0,0,0,0,0,0,0,0,0,0,1,0,0,0,0,0,0,0,0,0,1,0,0,0,0,0,0,0,0,0,1,0,0,0,0,0,1,1,262,262,"",{"$f":"IFERROR(INDEX($B$9:$I$408,$CM413,COLUMNS($CN$9:CN413)),\"\")","v":""},{"$f":"IFERROR(INDEX($B$9:$I$408,$CM413,COLUMNS($CN$9:CO413)),\"\")","v":""},{"$f":"IFERROR(INDEX($B$9:$I$408,$CM413,COLUMNS($CN$9:CP413)),\"\")","v":""},{"$f":"IFERROR(INDEX($B$9:$I$408,$CM413,COLUMNS($CN$9:CQ413)),\"\")","v":""},{"$f":"IFERROR(INDEX($B$9:$I$408,$CM413,COLUMNS($CN$9:CR413)),\"\")","v":""},{"$f":"IFERROR(INDEX($B$9:$I$408,$CM413,COLUMNS($CN$9:CS413)),\"\")","v":""},{"$f":"IFERROR(INDEX($B$9:$I$408,$CM413,COLUMNS($CN$9:CT413)),\"\")","v":""},{"$f":"IFERROR(INDEX($B$9:$I$408,$CM413,COLUMNS($CN$9:CU413)),\"\")","v":""}]
[null,{"$f":"IF(ISBLANK('TA Indicator Bank'!B267),\"\",'TA Indicator Bank'!B267)","v":""},{"$f":"IF(ISBLANK('TA Indicator Bank'!C267),\"\",'TA Indicator Bank'!C267)","v":""},{"$f":"IF(ISBLANK('TA Indicator Bank'!D267),\"\",'TA Indicator Bank'!D267)","v":""},{"$f":"IF(ISBLANK('TA Indicator Bank'!E267),\"\",'TA Indicator Bank'!E267)","v":""},{"$f":"IF(ISBLANK('TA Indicator Bank'!F267),\"\",'TA Indicator Bank'!F267)","v":""},{"$f":"IF(ISBLANK('TA Indicator Bank'!G267),\"\",'TA Indicator Bank'!G267)","v":""},{"$f":"IF(ISBLANK('TA Indicator Bank'!H267),\"\",'TA Indicator Bank'!H267)","v":""},{"$f":"IF(ISBLANK('TA Indicator Bank'!I267),\"\",'TA Indicator Bank'!I267)","v":""},{"$f":"IF(ISBLANK('TA Indicator Bank'!J267),\"\",'TA Indicator Bank'!J267)","v":""},{"$f":"IF(ISBLANK('TA Indicator Bank'!K267),\"\",'TA Indicator Bank'!K267)","v":""},{"$f":"IF(ISBLANK('TA Indicator Bank'!L267),\"\",'TA Indicator Bank'!L267)","v":""},{"$f":"IF(ISBLANK('TA Indicator Bank'!M267),\"\",'TA Indicator Bank'!M267)","v":""},{"$f":"IF(ISBLANK('TA Indicator Bank'!N267),\"\",'TA Indicator Bank'!N267)","v":""},{"$f":"IF(ISBLANK('TA Indicator Bank'!O267),\"\",'TA Indicator Bank'!O267)","v":""},{"$f":"IF(ISBLANK('TA Indicator Bank'!P267),\"\",'TA Indicator Bank'!P267)","v":""},{"$f":"IF(ISBLANK('TA Indicator Bank'!Q267),\"\",'TA Indicator Bank'!Q267)","v":""},{"$f":"IF(ISBLANK('TA Indicator Bank'!R267),\"\",'TA Indicator Bank'!R267)","v":""},{"$f":"IF(ISBLANK('TA Indicator Bank'!S267),\"\",'TA Indicator Bank'!S267)","v":""},{"$f":"IF(ISBLANK('TA Indicator Bank'!T267),\"\",'TA Indicator Bank'!T267)","v":""},{"$f":"IF(ISBLANK('TA Indicator Bank'!U267),\"\",'TA Indicator Bank'!U267)","v":""},{"$f":"IF(ISBLANK('TA Indicator Bank'!V267),\"\",'TA Indicator Bank'!V267)","v":""},{"$f":"IF(ISBLANK('TA Indicator Bank'!W267),\"\",'TA Indicator Bank'!W267)","v":""},{"$f":"IF(ISBLANK('TA Indicator Bank'!X267),\"\",'TA Indicator Bank'!X267)","v":""},{"$f":"IF(ISBLANK('TA Indicator Bank'!Y267),\"\",'TA Indicator Bank'!Y267)","v":""},{"$f":"IF(ISBLANK('TA Indicator Bank'!Z267),\"\",'TA Indicator Bank'!Z267)","v":""},{"$f":"IF(ISBLANK('TA Indicator Bank'!AA267),\"\",'TA Indicator Bank'!AA267)","v":""},{"$f":"IF(ISBLANK('TA Indicator Bank'!AB267),\"\",'TA Indicator Bank'!AB267)","v":""},{"$f":"IF(ISBLANK('TA Indicator Bank'!AC267),\"\",'TA Indicator Bank'!AC267)","v":""},{"$f":"IF(ISBLANK('TA Indicator Bank'!AD267),\"\",'TA Indicator Bank'!AD267)","v":""},{"$f":"IF(ISBLANK('TA Indicator Bank'!AE267),\"\",'TA Indicator Bank'!AE267)","v":""},{"$f":"IF(ISBLANK('TA Indicator Bank'!AF267),\"\",'TA Indicator Bank'!AF267)","v":""},{"$f":"IF(ISBLANK('TA Indicator Bank'!AG267),\"\",'TA Indicator Bank'!AG267)","v":""},{"$f":"IF(ISBLANK('TA Indicator Bank'!AH267),\"\",'TA Indicator Bank'!AH267)","v":""},{"$f":"IF(ISBLANK('TA Indicator Bank'!AI267),\"\",'TA Indicator Bank'!AI267)","v":""},{"$f":"IF(ISBLANK('TA Indicator Bank'!AJ267),\"\",'TA Indicator Bank'!AJ267)","v":""},{"$f":"IF(ISBLANK('TA Indicator Bank'!AK267),\"\",'TA Indicator Bank'!AK267)","v":""},{"$f":"IF(ISBLANK('TA Indicator Bank'!AL267),\"\",'TA Indicator Bank'!AL267)","v":""},{"$f":"IF(ISBLANK('TA Indicator Bank'!AM267),\"\",'TA Indicator Bank'!AM267)","v":""},{"$f":"IF(ISBLANK('TA Indicator Bank'!AN267),\"\",'TA Indicator Bank'!AN267)","v":""},{"$f":"IF(ISBLANK('TA Indicator Bank'!AO267),\"\",'TA Indicator Bank'!AO267)","v":""},{"$f":"IF(ISBLANK('TA Indicator Bank'!AP267),\"\",'TA Indicator Bank'!AP267)","v":""},{"$f":"IF(ISBLANK('TA Indicator Bank'!AQ267),\"\",'TA Indicator Bank'!AQ267)","v":""},{"$f":"IF(ISBLANK('TA Indicator Bank'!AR267),\"\",'TA Indicator Bank'!AR267)","v":""},{"$f":"IF(ISBLANK('TA Indicator Bank'!AS267),\"\",'TA Indicator Bank'!AS267)","v":""},{"$f":"IF(ISBLANK('TA Indicator Bank'!AT267),\"\",'TA Indicator Bank'!AT267)","v":""},0,0,0,0,0,0,0,0,0,0,0,0,0,0,1,0,0,0,0,0,0,0,0,0,1,0,0,0,0,0,0,0,0,0,1,0,0,0,0,0,1,1,263,263,"",{"$f":"IFERROR(INDEX($B$9:$I$408,$CM414,COLUMNS($CN$9:CN414)),\"\")","v":""},{"$f":"IFERROR(INDEX($B$9:$I$408,$CM414,COLUMNS($CN$9:CO414)),\"\")","v":""},{"$f":"IFERROR(INDEX($B$9:$I$408,$CM414,COLUMNS($CN$9:CP414)),\"\")","v":""},{"$f":"IFERROR(INDEX($B$9:$I$408,$CM414,COLUMNS($CN$9:CQ414)),\"\")","v":""},{"$f":"IFERROR(INDEX($B$9:$I$408,$CM414,COLUMNS($CN$9:CR414)),\"\")","v":""},{"$f":"IFERROR(INDEX($B$9:$I$408,$CM414,COLUMNS($CN$9:CS414)),\"\")","v":""},{"$f":"IFERROR(INDEX($B$9:$I$408,$CM414,COLUMNS($CN$9:CT414)),\"\")","v":""},{"$f":"IFERROR(INDEX($B$9:$I$408,$CM414,COLUMNS($CN$9:CU414)),\"\")","v":""}]
[null,{"$f":"IF(ISBLANK('TA Indicator Bank'!B268),\"\",'TA Indicator Bank'!B268)","v":""},{"$f":"IF(ISBLANK('TA Indicator Bank'!C268),\"\",'TA Indicator Bank'!C268)","v":""},{"$f":"IF(ISBLANK('TA Indicator Bank'!D268),\"\",'TA Indicator Bank'!D268)","v":""},{"$f":"IF(ISBLANK('TA Indicator Bank'!E268),\"\",'TA Indicator Bank'!E268)","v":""},{"$f":"IF(ISBLANK('TA Indicator Bank'!F268),\"\",'TA Indicator Bank'!F268)","v":""},{"$f":"IF(ISBLANK('TA Indicator Bank'!G268),\"\",'TA Indicator Bank'!G268)","v":""},{"$f":"IF(ISBLANK('TA Indicator Bank'!H268),\"\",'TA Indicator Bank'!H268)","v":""},{"$f":"IF(ISBLANK('TA Indicator Bank'!I268),\"\",'TA Indicator Bank'!I268)","v":""},{"$f":"IF(ISBLANK('TA Indicator Bank'!J268),\"\",'TA Indicator Bank'!J268)","v":""},{"$f":"IF(ISBLANK('TA Indicator Bank'!K268),\"\",'TA Indicator Bank'!K268)","v":""},{"$f":"IF(ISBLANK('TA Indicator Bank'!L268),\"\",'TA Indicator Bank'!L268)","v":""},{"$f":"IF(ISBLANK('TA Indicator Bank'!M268),\"\",'TA Indicator Bank'!M268)","v":""},{"$f":"IF(ISBLANK('TA Indicator Bank'!N268),\"\",'TA Indicator Bank'!N268)","v":""},{"$f":"IF(ISBLANK('TA Indicator Bank'!O268),\"\",'TA Indicator Bank'!O268)","v":""},{"$f":"IF(ISBLANK('TA Indicator Bank'!P268),\"\",'TA Indicator Bank'!P268)","v":""},{"$f":"IF(ISBLANK('TA Indicator Bank'!Q268),\"\",'TA Indicator Bank'!Q268)","v":""},{"$f":"IF(ISBLANK('TA Indicator Bank'!R268),\"\",'TA Indicator Bank'!R268)","v":""},{"$f":"IF(ISBLANK('TA Indicator Bank'!S268),\"\",'TA Indicator Bank'!S268)","v":""},{"$f":"IF(ISBLANK('TA Indicator Bank'!T268),\"\",'TA Indicator Bank'!T268)","v":""},{"$f":"IF(ISBLANK('TA Indicator Bank'!U268),\"\",'TA Indicator Bank'!U268)","v":""},{"$f":"IF(ISBLANK('TA Indicator Bank'!V268),\"\",'TA Indicator Bank'!V268)","v":""},{"$f":"IF(ISBLANK('TA Indicator Bank'!W268),\"\",'TA Indicator Bank'!W268)","v":""},{"$f":"IF(ISBLANK('TA Indicator Bank'!X268),\"\",'TA Indicator Bank'!X268)","v":""},{"$f":"IF(ISBLANK('TA Indicator Bank'!Y268),\"\",'TA Indicator Bank'!Y268)","v":""},{"$f":"IF(ISBLANK('TA Indicator Bank'!Z268),\"\",'TA Indicator Bank'!Z268)","v":""},{"$f":"IF(ISBLANK('TA Indicator Bank'!AA268),\"\",'TA Indicator Bank'!AA268)","v":""},{"$f":"IF(ISBLANK('TA Indicator Bank'!AB268),\"\",'TA Indicator Bank'!AB268)","v":""},{"$f":"IF(ISBLANK('TA Indicator Bank'!AC268),\"\",'TA Indicator Bank'!AC268)","v":""},{"$f":"IF(ISBLANK('TA Indicator Bank'!AD268),\"\",'TA Indicator Bank'!AD268)","v":""},{"$f":"IF(ISBLANK('TA Indicator Bank'!AE268),\"\",'TA Indicator Bank'!AE268)","v":""},{"$f":"IF(ISBLANK('TA Indicator Bank'!AF268),\"\",'TA Indicator Bank'!AF268)","v":""},{"$f":"IF(ISBLANK('TA Indicator Bank'!AG268),\"\",'TA Indicator Bank'!AG268)","v":""},{"$f":"IF(ISBLANK('TA Indicator Bank'!AH268),\"\",'TA Indicator Bank'!AH268)","v":""},{"$f":"IF(ISBLANK('TA Indicator Bank'!AI268),\"\",'TA Indicator Bank'!AI268)","v":""},{"$f":"IF(ISBLANK('TA Indicator Bank'!AJ268),\"\",'TA Indicator Bank'!AJ268)","v":""},{"$f":"IF(ISBLANK('TA Indicator Bank'!AK268),\"\",'TA Indicator Bank'!AK268)","v":""},{"$f":"IF(ISBLANK('TA Indicator Bank'!AL268),\"\",'TA Indicator Bank'!AL268)","v":""},{"$f":"IF(ISBLANK('TA Indicator Bank'!AM268),\"\",'TA Indicator Bank'!AM268)","v":""},{"$f":"IF(ISBLANK('TA Indicator Bank'!AN268),\"\",'TA Indicator Bank'!AN268)","v":""},{"$f":"IF(ISBLANK('TA Indicator Bank'!AO268),\"\",'TA Indicator Bank'!AO268)","v":""},{"$f":"IF(ISBLANK('TA Indicator Bank'!AP268),\"\",'TA Indicator Bank'!AP268)","v":""},{"$f":"IF(ISBLANK('TA Indicator Bank'!AQ268),\"\",'TA Indicator Bank'!AQ268)","v":""},{"$f":"IF(ISBLANK('TA Indicator Bank'!AR268),\"\",'TA Indicator Bank'!AR268)","v":""},{"$f":"IF(ISBLANK('TA Indicator Bank'!AS268),\"\",'TA Indicator Bank'!AS268)","v":""},{"$f":"IF(ISBLANK('TA Indicator Bank'!AT268),\"\",'TA Indicator Bank'!AT268)","v":""},0,0,0,0,0,0,0,0,0,0,0,0,0,0,1,0,0,0,0,0,0,0,0,0,1,0,0,0,0,0,0,0,0,0,1,0,0,0,0,0,1,1,264,264,"",{"$f":"IFERROR(INDEX($B$9:$I$408,$CM415,COLUMNS($CN$9:CN415)),\"\")","v":""},{"$f":"IFERROR(INDEX($B$9:$I$408,$CM415,COLUMNS($CN$9:CO415)),\"\")","v":""},{"$f":"IFERROR(INDEX($B$9:$I$408,$CM415,COLUMNS($CN$9:CP415)),\"\")","v":""},{"$f":"IFERROR(INDEX($B$9:$I$408,$CM415,COLUMNS($CN$9:CQ415)),\"\")","v":""},{"$f":"IFERROR(INDEX($B$9:$I$408,$CM415,COLUMNS($CN$9:CR415)),\"\")","v":""},{"$f":"IFERROR(INDEX($B$9:$I$408,$CM415,COLUMNS($CN$9:CS415)),\"\")","v":""},{"$f":"IFERROR(INDEX($B$9:$I$408,$CM415,COLUMNS($CN$9:CT415)),\"\")","v":""},{"$f":"IFERROR(INDEX($B$9:$I$408,$CM415,COLUMNS($CN$9:CU415)),\"\")","v":""}]
[null,{"$f":"IF(ISBLANK('TA Indicator Bank'!B269),\"\",'TA Indicator Bank'!B269)","v":""},{"$f":"IF(ISBLANK('TA Indicator Bank'!C269),\"\",'TA Indicator Bank'!C269)","v":""},{"$f":"IF(ISBLANK('TA Indicator Bank'!D269),\"\",'TA Indicator Bank'!D269)","v":""},{"$f":"IF(ISBLANK('TA Indicator Bank'!E269),\"\",'TA Indicator Bank'!E269)","v":""},{"$f":"IF(ISBLANK('TA Indicator Bank'!F269),\"\",'TA Indicator Bank'!F269)","v":""},{"$f":"IF(ISBLANK('TA Indicator Bank'!G269),\"\",'TA Indicator Bank'!G269)","v":""},{"$f":"IF(ISBLANK('TA Indicator Bank'!H269),\"\",'TA Indicator Bank'!H269)","v":""},{"$f":"IF(ISBLANK('TA Indicator Bank'!I269),\"\",'TA Indicator Bank'!I269)","v":""},{"$f":"IF(ISBLANK('TA Indicator Bank'!J269),\"\",'TA Indicator Bank'!J269)","v":""},{"$f":"IF(ISBLANK('TA Indicator Bank'!K269),\"\",'TA Indicator Bank'!K269)","v":""},{"$f":"IF(ISBLANK('TA Indicator Bank'!L269),\"\",'TA Indicator Bank'!L269)","v":""},{"$f":"IF(ISBLANK('TA Indicator Bank'!M269),\"\",'TA Indicator Bank'!M269)","v":""},{"$f":"IF(ISBLANK('TA Indicator Bank'!N269),\"\",'TA Indicator Bank'!N269)","v":""},{"$f":"IF(ISBLANK('TA Indicator Bank'!O269),\"\",'TA Indicator Bank'!O269)","v":""},{"$f":"IF(ISBLANK('TA Indicator Bank'!P269),\"\",'TA Indicator Bank'!P269)","v":""},{"$f":"IF(ISBLANK('TA Indicator Bank'!Q269),\"\",'TA Indicator Bank'!Q269)","v":""},{"$f":"IF(ISBLANK('TA Indicator Bank'!R269),\"\",'TA Indicator Bank'!R269)","v":""},{"$f":"IF(ISBLANK('TA Indicator Bank'!S269),\"\",'TA Indicator Bank'!S269)","v":""},{"$f":"IF(ISBLANK('TA Indicator Bank'!T269),\"\",'TA Indicator Bank'!T269)","v":""},{"$f":"IF(ISBLANK('TA Indicator Bank'!U269),\"\",'TA Indicator Bank'!U269)","v":""},{"$f":"IF(ISBLANK('TA Indicator Bank'!V269),\"\",'TA Indicator Bank'!V269)","v":""},{"$f":"IF(ISBLANK('TA Indicator Bank'!W269),\"\",'TA Indicator Bank'!W269)","v":""},{"$f":"IF(ISBLANK('TA Indicator Bank'!X269),\"\",'TA Indicator Bank'!X269)","v":""},{"$f":"IF(ISBLANK('TA Indicator Bank'!Y269),\"\",'TA Indicator Bank'!Y269)","v":""},{"$f":"IF(ISBLANK('TA Indicator Bank'!Z269),\"\",'TA Indicator Bank'!Z269)","v":""},{"$f":"IF(ISBLANK('TA Indicator Bank'!AA269),\"\",'TA Indicator Bank'!AA269)","v":""},{"$f":"IF(ISBLANK('TA Indicator Bank'!AB269),\"\",'TA Indicator Bank'!AB269)","v":""},{"$f":"IF(ISBLANK('TA Indicator Bank'!AC269),\"\",'TA Indicator Bank'!AC269)","v":""},{"$f":"IF(ISBLANK('TA Indicator Bank'!AD269),\"\",'TA Indicator Bank'!AD269)","v":""},{"$f":"IF(ISBLANK('TA Indicator Bank'!AE269),\"\",'TA Indicator Bank'!AE269)","v":""},{"$f":"IF(ISBLANK('TA Indicator Bank'!AF269),\"\",'TA Indicator Bank'!AF269)","v":""},{"$f":"IF(ISBLANK('TA Indicator Bank'!AG269),\"\",'TA Indicator Bank'!AG269)","v":""},{"$f":"IF(ISBLANK('TA Indicator Bank'!AH269),\"\",'TA Indicator Bank'!AH269)","v":""},{"$f":"IF(ISBLANK('TA Indicator Bank'!AI269),\"\",'TA Indicator Bank'!AI269)","v":""},{"$f":"IF(ISBLANK('TA Indicator Bank'!AJ269),\"\",'TA Indicator Bank'!AJ269)","v":""},{"$f":"IF(ISBLANK('TA Indicator Bank'!AK269),\"\",'TA Indicator Bank'!AK269)","v":""},{"$f":"IF(ISBLANK('TA Indicator Bank'!AL269),\"\",'TA Indicator Bank'!AL269)","v":""},{"$f":"IF(ISBLANK('TA Indicator Bank'!AM269),\"\",'TA Indicator Bank'!AM269)","v":""},{"$f":"IF(ISBLANK('TA Indicator Bank'!AN269),\"\",'TA Indicator Bank'!AN269)","v":""},{"$f":"IF(ISBLANK('TA Indicator Bank'!AO269),\"\",'TA Indicator Bank'!AO269)","v":""},{"$f":"IF(ISBLANK('TA Indicator Bank'!AP269),\"\",'TA Indicator Bank'!AP269)","v":""},{"$f":"IF(ISBLANK('TA Indicator Bank'!AQ269),\"\",'TA Indicator Bank'!AQ269)","v":""},{"$f":"IF(ISBLANK('TA Indicator Bank'!AR269),\"\",'TA Indicator Bank'!AR269)","v":""},{"$f":"IF(ISBLANK('TA Indicator Bank'!AS269),\"\",'TA Indicator Bank'!AS269)","v":""},{"$f":"IF(ISBLANK('TA Indicator Bank'!AT269),\"\",'TA Indicator Bank'!AT269)","v":""},0,0,0,0,0,0,0,0,0,0,0,0,0,0,1,0,0,0,0,0,0,0,0,0,1,0,0,0,0,0,0,0,0,0,1,0,0,0,0,0,1,1,265,265,"",{"$f":"IFERROR(INDEX($B$9:$I$408,$CM416,COLUMNS($CN$9:CN416)),\"\")","v":""},{"$f":"IFERROR(INDEX($B$9:$I$408,$CM416,COLUMNS($CN$9:CO416)),\"\")","v":""},{"$f":"IFERROR(INDEX($B$9:$I$408,$CM416,COLUMNS($CN$9:CP416)),\"\")","v":""},{"$f":"IFERROR(INDEX($B$9:$I$408,$CM416,COLUMNS($CN$9:CQ416)),\"\")","v":""},{"$f":"IFERROR(INDEX($B$9:$I$408,$CM416,COLUMNS($CN$9:CR416)),\"\")","v":""},{"$f":"IFERROR(INDEX($B$9:$I$408,$CM416,COLUMNS($CN$9:CS416)),\"\")","v":""},{"$f":"IFERROR(INDEX($B$9:$I$408,$CM416,COLUMNS($CN$9:CT416)),\"\")","v":""},{"$f":"IFERROR(INDEX($B$9:$I$408,$CM416,COLUMNS($CN$9:CU416)),\"\")","v":""}]
[null,{"$f":"IF(ISBLANK('TA Indicator Bank'!B270),\"\",'TA Indicator Bank'!B270)","v":""},{"$f":"IF(ISBLANK('TA Indicator Bank'!C270),\"\",'TA Indicator Bank'!C270)","v":""},{"$f":"IF(ISBLANK('TA Indicator Bank'!D270),\"\",'TA Indicator Bank'!D270)","v":""},{"$f":"IF(ISBLANK('TA Indicator Bank'!E270),\"\",'TA Indicator Bank'!E270)","v":""},{"$f":"IF(ISBLANK('TA Indicator Bank'!F270),\"\",'TA Indicator Bank'!F270)","v":""},{"$f":"IF(ISBLANK('TA Indicator Bank'!G270),\"\",'TA Indicator Bank'!G270)","v":""},{"$f":"IF(ISBLANK('TA Indicator Bank'!H270),\"\",'TA Indicator Bank'!H270)","v":""},{"$f":"IF(ISBLANK('TA Indicator Bank'!I270),\"\",'TA Indicator Bank'!I270)","v":""},{"$f":"IF(ISBLANK('TA Indicator Bank'!J270),\"\",'TA Indicator Bank'!J270)","v":""},{"$f":"IF(ISBLANK('TA Indicator Bank'!K270),\"\",'TA Indicator Bank'!K270)","v":""},{"$f":"IF(ISBLANK('TA Indicator Bank'!L270),\"\",'TA Indicator Bank'!L270)","v":""},{"$f":"IF(ISBLANK('TA Indicator Bank'!M270),\"\",'TA Indicator Bank'!M270)","v":""},{"$f":"IF(ISBLANK('TA Indicator Bank'!N270),\"\",'TA Indicator Bank'!N270)","v":""},{"$f":"IF(ISBLANK('TA Indicator Bank'!O270),\"\",'TA Indicator Bank'!O270)","v":""},{"$f":"IF(ISBLANK('TA Indicator Bank'!P270),\"\",'TA Indicator Bank'!P270)","v":""},{"$f":"IF(ISBLANK('TA Indicator Bank'!Q270),\"\",'TA Indicator Bank'!Q270)","v":""},{"$f":"IF(ISBLANK('TA Indicator Bank'!R270),\"\",'TA Indicator Bank'!R270)","v":""},{"$f":"IF(ISBLANK('TA Indicator Bank'!S270),\"\",'TA Indicator Bank'!S270)","v":""},{"$f":"IF(ISBLANK('TA Indicator Bank'!T270),\"\",'TA Indicator Bank'!T270)","v":""},{"$f":"IF(ISBLANK('TA Indicator Bank'!U270),\"\",'TA Indicator Bank'!U270)","v":""},{"$f":"IF(ISBLANK('TA Indicator Bank'!V270),\"\",'TA Indicator Bank'!V270)","v":""},{"$f":"IF(ISBLANK('TA Indicator Bank'!W270),\"\",'TA Indicator Bank'!W270)","v":""},{"$f":"IF(ISBLANK('TA Indicator Bank'!X270),\"\",'TA Indicator Bank'!X270)","v":""},{"$f":"IF(ISBLANK('TA Indicator Bank'!Y270),\"\",'TA Indicator Bank'!Y270)","v":""},{"$f":"IF(ISBLANK('TA Indicator Bank'!Z270),\"\",'TA Indicator Bank'!Z270)","v":""},{"$f":"IF(ISBLANK('TA Indicator Bank'!AA270),\"\",'TA Indicator Bank'!AA270)","v":""},{"$f":"IF(ISBLANK('TA Indicator Bank'!AB270),\"\",'TA Indicator Bank'!AB270)","v":""},{"$f":"IF(ISBLANK('TA Indicator Bank'!AC270),\"\",'TA Indicator Bank'!AC270)","v":""},{"$f":"IF(ISBLANK('TA Indicator Bank'!AD270),\"\",'TA Indicator Bank'!AD270)","v":""},{"$f":"IF(ISBLANK('TA Indicator Bank'!AE270),\"\",'TA Indicator Bank'!AE270)","v":""},{"$f":"IF(ISBLANK('TA Indicator Bank'!AF270),\"\",'TA Indicator Bank'!AF270)","v":""},{"$f":"IF(ISBLANK('TA Indicator Bank'!AG270),\"\",'TA Indicator Bank'!AG270)","v":""},{"$f":"IF(ISBLANK('TA Indicator Bank'!AH270),\"\",'TA Indicator Bank'!AH270)","v":""},{"$f":"IF(ISBLANK('TA Indicator Bank'!AI270),\"\",'TA Indicator Bank'!AI270)","v":""},{"$f":"IF(ISBLANK('TA Indicator Bank'!AJ270),\"\",'TA Indicator Bank'!AJ270)","v":""},{"$f":"IF(ISBLANK('TA Indicator Bank'!AK270),\"\",'TA Indicator Bank'!AK270)","v":""},{"$f":"IF(ISBLANK('TA Indicator Bank'!AL270),\"\",'TA Indicator Bank'!AL270)","v":""},{"$f":"IF(ISBLANK('TA Indicator Bank'!AM270),\"\",'TA Indicator Bank'!AM270)","v":""},{"$f":"IF(ISBLANK('TA Indicator Bank'!AN270),\"\",'TA Indicator Bank'!AN270)","v":""},{"$f":"IF(ISBLANK('TA Indicator Bank'!AO270),\"\",'TA Indicator Bank'!AO270)","v":""},{"$f":"IF(ISBLANK('TA Indicator Bank'!AP270),\"\",'TA Indicator Bank'!AP270)","v":""},{"$f":"IF(ISBLANK('TA Indicator Bank'!AQ270),\"\",'TA Indicator Bank'!AQ270)","v":""},{"$f":"IF(ISBLANK('TA Indicator Bank'!AR270),\"\",'TA Indicator Bank'!AR270)","v":""},{"$f":"IF(ISBLANK('TA Indicator Bank'!AS270),\"\",'TA Indicator Bank'!AS270)","v":""},{"$f":"IF(ISBLANK('TA Indicator Bank'!AT270),\"\",'TA Indicator Bank'!AT270)","v":""},0,0,0,0,0,0,0,0,0,0,0,0,0,0,1,0,0,0,0,0,0,0,0,0,1,0,0,0,0,0,0,0,0,0,1,0,0,0,0,0,1,1,266,266,"",{"$f":"IFERROR(INDEX($B$9:$I$408,$CM417,COLUMNS($CN$9:CN417)),\"\")","v":""},{"$f":"IFERROR(INDEX($B$9:$I$408,$CM417,COLUMNS($CN$9:CO417)),\"\")","v":""},{"$f":"IFERROR(INDEX($B$9:$I$408,$CM417,COLUMNS($CN$9:CP417)),\"\")","v":""},{"$f":"IFERROR(INDEX($B$9:$I$408,$CM417,COLUMNS($CN$9:CQ417)),\"\")","v":""},{"$f":"IFERROR(INDEX($B$9:$I$408,$CM417,COLUMNS($CN$9:CR417)),\"\")","v":""},{"$f":"IFERROR(INDEX($B$9:$I$408,$CM417,COLUMNS($CN$9:CS417)),\"\")","v":""},{"$f":"IFERROR(INDEX($B$9:$I$408,$CM417,COLUMNS($CN$9:CT417)),\"\")","v":""},{"$f":"IFERROR(INDEX($B$9:$I$408,$CM417,COLUMNS($CN$9:CU417)),\"\")","v":""}]
[null,{"$f":"IF(ISBLANK('TA Indicator Bank'!B271),\"\",'TA Indicator Bank'!B271)","v":""},{"$f":"IF(ISBLANK('TA Indicator Bank'!C271),\"\",'TA Indicator Bank'!C271)","v":""},{"$f":"IF(ISBLANK('TA Indicator Bank'!D271),\"\",'TA Indicator Bank'!D271)","v":""},{"$f":"IF(ISBLANK('TA Indicator Bank'!E271),\"\",'TA Indicator Bank'!E271)","v":""},{"$f":"IF(ISBLANK('TA Indicator Bank'!F271),\"\",'TA Indicator Bank'!F271)","v":""},{"$f":"IF(ISBLANK('TA Indicator Bank'!G271),\"\",'TA Indicator Bank'!G271)","v":""},{"$f":"IF(ISBLANK('TA Indicator Bank'!H271),\"\",'TA Indicator Bank'!H271)","v":""},{"$f":"IF(ISBLANK('TA Indicator Bank'!I271),\"\",'TA Indicator Bank'!I271)","v":""},{"$f":"IF(ISBLANK('TA Indicator Bank'!J271),\"\",'TA Indicator Bank'!J271)","v":""},{"$f":"IF(ISBLANK('TA Indicator Bank'!K271),\"\",'TA Indicator Bank'!K271)","v":""},{"$f":"IF(ISBLANK('TA Indicator Bank'!L271),\"\",'TA Indicator Bank'!L271)","v":""},{"$f":"IF(ISBLANK('TA Indicator Bank'!M271),\"\",'TA Indicator Bank'!M271)","v":""},{"$f":"IF(ISBLANK('TA Indicator Bank'!N271),\"\",'TA Indicator Bank'!N271)","v":""},{"$f":"IF(ISBLANK('TA Indicator Bank'!O271),\"\",'TA Indicator Bank'!O271)","v":""},{"$f":"IF(ISBLANK('TA Indicator Bank'!P271),\"\",'TA Indicator Bank'!P271)","v":""},{"$f":"IF(ISBLANK('TA Indicator Bank'!Q271),\"\",'TA Indicator Bank'!Q271)","v":""},{"$f":"IF(ISBLANK('TA Indicator Bank'!R271),\"\",'TA Indicator Bank'!R271)","v":""},{"$f":"IF(ISBLANK('TA Indicator Bank'!S271),\"\",'TA Indicator Bank'!S271)","v":""},{"$f":"IF(ISBLANK('TA Indicator Bank'!T271),\"\",'TA Indicator Bank'!T271)","v":""},{"$f":"IF(ISBLANK('TA Indicator Bank'!U271),\"\",'TA Indicator Bank'!U271)","v":""},{"$f":"IF(ISBLANK('TA Indicator Bank'!V271),\"\",'TA Indicator Bank'!V271)","v":""},{"$f":"IF(ISBLANK('TA Indicator Bank'!W271),\"\",'TA Indicator Bank'!W271)","v":""},{"$f":"IF(ISBLANK('TA Indicator Bank'!X271),\"\",'TA Indicator Bank'!X271)","v":""},{"$f":"IF(ISBLANK('TA Indicator Bank'!Y271),\"\",'TA Indicator Bank'!Y271)","v":""},{"$f":"IF(ISBLANK('TA Indicator Bank'!Z271),\"\",'TA Indicator Bank'!Z271)","v":""},{"$f":"IF(ISBLANK('TA Indicator Bank'!AA271),\"\",'TA Indicator Bank'!AA271)","v":""},{"$f":"IF(ISBLANK('TA Indicator Bank'!AB271),\"\",'TA Indicator Bank'!AB271)","v":""},{"$f":"IF(ISBLANK('TA Indicator Bank'!AC271),\"\",'TA Indicator Bank'!AC271)","v":""},{"$f":"IF(ISBLANK('TA Indicator Bank'!AD271),\"\",'TA Indicator Bank'!AD271)","v":""},{"$f":"IF(ISBLANK('TA Indicator Bank'!AE271),\"\",'TA Indicator Bank'!AE271)","v":""},{"$f":"IF(ISBLANK('TA Indicator Bank'!AF271),\"\",'TA Indicator Bank'!AF271)","v":""},{"$f":"IF(ISBLANK('TA Indicator Bank'!AG271),\"\",'TA Indicator Bank'!AG271)","v":""},{"$f":"IF(ISBLANK('TA Indicator Bank'!AH271),\"\",'TA Indicator Bank'!AH271)","v":""},{"$f":"IF(ISBLANK('TA Indicator Bank'!AI271),\"\",'TA Indicator Bank'!AI271)","v":""},{"$f":"IF(ISBLANK('TA Indicator Bank'!AJ271),\"\",'TA Indicator Bank'!AJ271)","v":""},{"$f":"IF(ISBLANK('TA Indicator Bank'!AK271),\"\",'TA Indicator Bank'!AK271)","v":""},{"$f":"IF(ISBLANK('TA Indicator Bank'!AL271),\"\",'TA Indicator Bank'!AL271)","v":""},{"$f":"IF(ISBLANK('TA Indicator Bank'!AM271),\"\",'TA Indicator Bank'!AM271)","v":""},{"$f":"IF(ISBLANK('TA Indicator Bank'!AN271),\"\",'TA Indicator Bank'!AN271)","v":""},{"$f":"IF(ISBLANK('TA Indicator Bank'!AO271),\"\",'TA Indicator Bank'!AO271)","v":""},{"$f":"IF(ISBLANK('TA Indicator Bank'!AP271),\"\",'TA Indicator Bank'!AP271)","v":""},{"$f":"IF(ISBLANK('TA Indicator Bank'!AQ271),\"\",'TA Indicator Bank'!AQ271)","v":""},{"$f":"IF(ISBLANK('TA Indicator Bank'!AR271),\"\",'TA Indicator Bank'!AR271)","v":""},{"$f":"IF(ISBLANK('TA Indicator Bank'!AS271),\"\",'TA Indicator Bank'!AS271)","v":""},{"$f":"IF(ISBLANK('TA Indicator Bank'!AT271),\"\",'TA Indicator Bank'!AT271)","v":""},0,0,0,0,0,0,0,0,0,0,0,0,0,0,1,0,0,0,0,0,0,0,0,0,1,0,0,0,0,0,0,0,0,0,1,0,0,0,0,0,1,1,267,267,"",{"$f":"IFERROR(INDEX($B$9:$I$408,$CM418,COLUMNS($CN$9:CN418)),\"\")","v":""},{"$f":"IFERROR(INDEX($B$9:$I$408,$CM418,COLUMNS($CN$9:CO418)),\"\")","v":""},{"$f":"IFERROR(INDEX($B$9:$I$408,$CM418,COLUMNS($CN$9:CP418)),\"\")","v":""},{"$f":"IFERROR(INDEX($B$9:$I$408,$CM418,COLUMNS($CN$9:CQ418)),\"\")","v":""},{"$f":"IFERROR(INDEX($B$9:$I$408,$CM418,COLUMNS($CN$9:CR418)),\"\")","v":""},{"$f":"IFERROR(INDEX($B$9:$I$408,$CM418,COLUMNS($CN$9:CS418)),\"\")","v":""},{"$f":"IFERROR(INDEX($B$9:$I$408,$CM418,COLUMNS($CN$9:CT418)),\"\")","v":""},{"$f":"IFERROR(INDEX($B$9:$I$408,$CM418,COLUMNS($CN$9:CU418)),\"\")","v":""}]
[null,{"$f":"IF(ISBLANK('TA Indicator Bank'!B272),\"\",'TA Indicator Bank'!B272)","v":""},{"$f":"IF(ISBLANK('TA Indicator Bank'!C272),\"\",'TA Indicator Bank'!C272)","v":""},{"$f":"IF(ISBLANK('TA Indicator Bank'!D272),\"\",'TA Indicator Bank'!D272)","v":""},{"$f":"IF(ISBLANK('TA Indicator Bank'!E272),\"\",'TA Indicator Bank'!E272)","v":""},{"$f":"IF(ISBLANK('TA Indicator Bank'!F272),\"\",'TA Indicator Bank'!F272)","v":""},{"$f":"IF(ISBLANK('TA Indicator Bank'!G272),\"\",'TA Indicator Bank'!G272)","v":""},{"$f":"IF(ISBLANK('TA Indicator Bank'!H272),\"\",'TA Indicator Bank'!H272)","v":""},{"$f":"IF(ISBLANK('TA Indicator Bank'!I272),\"\",'TA Indicator Bank'!I272)","v":""},{"$f":"IF(ISBLANK('TA Indicator Bank'!J272),\"\",'TA Indicator Bank'!J272)","v":""},{"$f":"IF(ISBLANK('TA Indicator Bank'!K272),\"\",'TA Indicator Bank'!K272)","v":""},{"$f":"IF(ISBLANK('TA Indicator Bank'!L272),\"\",'TA Indicator Bank'!L272)","v":""},{"$f":"IF(ISBLANK('TA Indicator Bank'!M272),\"\",'TA Indicator Bank'!M272)","v":""},{"$f":"IF(ISBLANK('TA Indicator Bank'!N272),\"\",'TA Indicator Bank'!N272)","v":""},{"$f":"IF(ISBLANK('TA Indicator Bank'!O272),\"\",'TA Indicator Bank'!O272)","v":""},{"$f":"IF(ISBLANK('TA Indicator Bank'!P272),\"\",'TA Indicator Bank'!P272)","v":""},{"$f":"IF(ISBLANK('TA Indicator Bank'!Q272),\"\",'TA Indicator Bank'!Q272)","v":""},{"$f":"IF(ISBLANK('TA Indicator Bank'!R272),\"\",'TA Indicator Bank'!R272)","v":""},{"$f":"IF(ISBLANK('TA Indicator Bank'!S272),\"\",'TA Indicator Bank'!S272)","v":""},{"$f":"IF(ISBLANK('TA Indicator Bank'!T272),\"\",'TA Indicator Bank'!T272)","v":""},{"$f":"IF(ISBLANK('TA Indicator Bank'!U272),\"\",'TA Indicator Bank'!U272)","v":""},{"$f":"IF(ISBLANK('TA Indicator Bank'!V272),\"\",'TA Indicator Bank'!V272)","v":""},{"$f":"IF(ISBLANK('TA Indicator Bank'!W272),\"\",'TA Indicator Bank'!W272)","v":""},{"$f":"IF(ISBLANK('TA Indicator Bank'!X272),\"\",'TA Indicator Bank'!X272)","v":""},{"$f":"IF(ISBLANK('TA Indicator Bank'!Y272),\"\",'TA Indicator Bank'!Y272)","v":""},{"$f":"IF(ISBLANK('TA Indicator Bank'!Z272),\"\",'TA Indicator Bank'!Z272)","v":""},{"$f":"IF(ISBLANK('TA Indicator Bank'!AA272),\"\",'TA Indicator Bank'!AA272)","v":""},{"$f":"IF(ISBLANK('TA Indicator Bank'!AB272),\"\",'TA Indicator Bank'!AB272)","v":""},{"$f":"IF(ISBLANK('TA Indicator Bank'!AC272),\"\",'TA Indicator Bank'!AC272)","v":""},{"$f":"IF(ISBLANK('TA Indicator Bank'!AD272),\"\",'TA Indicator Bank'!AD272)","v":""},{"$f":"IF(ISBLANK('TA Indicator Bank'!AE272),\"\",'TA Indicator Bank'!AE272)","v":""},{"$f":"IF(ISBLANK('TA Indicator Bank'!AF272),\"\",'TA Indicator Bank'!AF272)","v":""},{"$f":"IF(ISBLANK('TA Indicator Bank'!AG272),\"\",'TA Indicator Bank'!AG272)","v":""},{"$f":"IF(ISBLANK('TA Indicator Bank'!AH272),\"\",'TA Indicator Bank'!AH272)","v":""},{"$f":"IF(ISBLANK('TA Indicator Bank'!AI272),\"\",'TA Indicator Bank'!AI272)","v":""},{"$f":"IF(ISBLANK('TA Indicator Bank'!AJ272),\"\",'TA Indicator Bank'!AJ272)","v":""},{"$f":"IF(ISBLANK('TA Indicator Bank'!AK272),\"\",'TA Indicator Bank'!AK272)","v":""},{"$f":"IF(ISBLANK('TA Indicator Bank'!AL272),\"\",'TA Indicator Bank'!AL272)","v":""},{"$f":"IF(ISBLANK('TA Indicator Bank'!AM272),\"\",'TA Indicator Bank'!AM272)","v":""},{"$f":"IF(ISBLANK('TA Indicator Bank'!AN272),\"\",'TA Indicator Bank'!AN272)","v":""},{"$f":"IF(ISBLANK('TA Indicator Bank'!AO272),\"\",'TA Indicator Bank'!AO272)","v":""},{"$f":"IF(ISBLANK('TA Indicator Bank'!AP272),\"\",'TA Indicator Bank'!AP272)","v":""},{"$f":"IF(ISBLANK('TA Indicator Bank'!AQ272),\"\",'TA Indicator Bank'!AQ272)","v":""},{"$f":"IF(ISBLANK('TA Indicator Bank'!AR272),\"\",'TA Indicator Bank'!AR272)","v":""},{"$f":"IF(ISBLANK('TA Indicator Bank'!AS272),\"\",'TA Indicator Bank'!AS272)","v":""},{"$f":"IF(ISBLANK('TA Indicator Bank'!AT272),\"\",'TA Indicator Bank'!AT272)","v":""},0,0,0,0,0,0,0,0,0,0,0,0,0,0,1,0,0,0,0,0,0,0,0,0,1,0,0,0,0,0,0,0,0,0,1,0,0,0,0,0,1,1,268,268,"",{"$f":"IFERROR(INDEX($B$9:$I$408,$CM419,COLUMNS($CN$9:CN419)),\"\")","v":""},{"$f":"IFERROR(INDEX($B$9:$I$408,$CM419,COLUMNS($CN$9:CO419)),\"\")","v":""},{"$f":"IFERROR(INDEX($B$9:$I$408,$CM419,COLUMNS($CN$9:CP419)),\"\")","v":""},{"$f":"IFERROR(INDEX($B$9:$I$408,$CM419,COLUMNS($CN$9:CQ419)),\"\")","v":""},{"$f":"IFERROR(INDEX($B$9:$I$408,$CM419,COLUMNS($CN$9:CR419)),\"\")","v":""},{"$f":"IFERROR(INDEX($B$9:$I$408,$CM419,COLUMNS($CN$9:CS419)),\"\")","v":""},{"$f":"IFERROR(INDEX($B$9:$I$408,$CM419,COLUMNS($CN$9:CT419)),\"\")","v":""},{"$f":"IFERROR(INDEX($B$9:$I$408,$CM419,COLUMNS($CN$9:CU419)),\"\")","v":""}]
[null,{"$f":"IF(ISBLANK('TA Indicator Bank'!B273),\"\",'TA Indicator Bank'!B273)","v":""},{"$f":"IF(ISBLANK('TA Indicator Bank'!C273),\"\",'TA Indicator Bank'!C273)","v":""},{"$f":"IF(ISBLANK('TA Indicator Bank'!D273),\"\",'TA Indicator Bank'!D273)","v":""},{"$f":"IF(ISBLANK('TA Indicator Bank'!E273),\"\",'TA Indicator Bank'!E273)","v":""},{"$f":"IF(ISBLANK('TA Indicator Bank'!F273),\"\",'TA Indicator Bank'!F273)","v":""},{"$f":"IF(ISBLANK('TA Indicator Bank'!G273),\"\",'TA Indicator Bank'!G273)","v":""},{"$f":"IF(ISBLANK('TA Indicator Bank'!H273),\"\",'TA Indicator Bank'!H273)","v":""},{"$f":"IF(ISBLANK('TA Indicator Bank'!I273),\"\",'TA Indicator Bank'!I273)","v":""},{"$f":"IF(ISBLANK('TA Indicator Bank'!J273),\"\",'TA Indicator Bank'!J273)","v":""},{"$f":"IF(ISBLANK('TA Indicator Bank'!K273),\"\",'TA Indicator Bank'!K273)","v":""},{"$f":"IF(ISBLANK('TA Indicator Bank'!L273),\"\",'TA Indicator Bank'!L273)","v":""},{"$f":"IF(ISBLANK('TA Indicator Bank'!M273),\"\",'TA Indicator Bank'!M273)","v":""},{"$f":"IF(ISBLANK('TA Indicator Bank'!N273),\"\",'TA Indicator Bank'!N273)","v":""},{"$f":"IF(ISBLANK('TA Indicator Bank'!O273),\"\",'TA Indicator Bank'!O273)","v":""},{"$f":"IF(ISBLANK('TA Indicator Bank'!P273),\"\",'TA Indicator Bank'!P273)","v":""},{"$f":"IF(ISBLANK('TA Indicator Bank'!Q273),\"\",'TA Indicator Bank'!Q273)","v":""},{"$f":"IF(ISBLANK('TA Indicator Bank'!R273),\"\",'TA Indicator Bank'!R273)","v":""},{"$f":"IF(ISBLANK('TA Indicator Bank'!S273),\"\",'TA Indicator Bank'!S273)","v":""},{"$f":"IF(ISBLANK('TA Indicator Bank'!T273),\"\",'TA Indicator Bank'!T273)","v":""},{"$f":"IF(ISBLANK('TA Indicator Bank'!U273),\"\",'TA Indicator Bank'!U273)","v":""},{"$f":"IF(ISBLANK('TA Indicator Bank'!V273),\"\",'TA Indicator Bank'!V273)","v":""},{"$f":"IF(ISBLANK('TA Indicator Bank'!W273),\"\",'TA Indicator Bank'!W273)","v":""},{"$f":"IF(ISBLANK('TA Indicator Bank'!X273),\"\",'TA Indicator Bank'!X273)","v":""},{"$f":"IF(ISBLANK('TA Indicator Bank'!Y273),\"\",'TA Indicator Bank'!Y273)","v":""},{"$f":"IF(ISBLANK('TA Indicator Bank'!Z273),\"\",'TA Indicator Bank'!Z273)","v":""},{"$f":"IF(ISBLANK('TA Indicator Bank'!AA273),\"\",'TA Indicator Bank'!AA273)","v":""},{"$f":"IF(ISBLANK('TA Indicator Bank'!AB273),\"\",'TA Indicator Bank'!AB273)","v":""},{"$f":"IF(ISBLANK('TA Indicator Bank'!AC273),\"\",'TA Indicator Bank'!AC273)","v":""},{"$f":"IF(ISBLANK('TA Indicator Bank'!AD273),\"\",'TA Indicator Bank'!AD273)","v":""},{"$f":"IF(ISBLANK('TA Indicator Bank'!AE273),\"\",'TA Indicator Bank'!AE273)","v":""},{"$f":"IF(ISBLANK('TA Indicator Bank'!AF273),\"\",'TA Indicator Bank'!AF273)","v":""},{"$f":"IF(ISBLANK('TA Indicator Bank'!AG273),\"\",'TA Indicator Bank'!AG273)","v":""},{"$f":"IF(ISBLANK('TA Indicator Bank'!AH273),\"\",'TA Indicator Bank'!AH273)","v":""},{"$f":"IF(ISBLANK('TA Indicator Bank'!AI273),\"\",'TA Indicator Bank'!AI273)","v":""},{"$f":"IF(ISBLANK('TA Indicator Bank'!AJ273),\"\",'TA Indicator Bank'!AJ273)","v":""},{"$f":"IF(ISBLANK('TA Indicator Bank'!AK273),\"\",'TA Indicator Bank'!AK273)","v":""},{"$f":"IF(ISBLANK('TA Indicator Bank'!AL273),\"\",'TA Indicator Bank'!AL273)","v":""},{"$f":"IF(ISBLANK('TA Indicator Bank'!AM273),\"\",'TA Indicator Bank'!AM273)","v":""},{"$f":"IF(ISBLANK('TA Indicator Bank'!AN273),\"\",'TA Indicator Bank'!AN273)","v":""},{"$f":"IF(ISBLANK('TA Indicator Bank'!AO273),\"\",'TA Indicator Bank'!AO273)","v":""},{"$f":"IF(ISBLANK('TA Indicator Bank'!AP273),\"\",'TA Indicator Bank'!AP273)","v":""},{"$f":"IF(ISBLANK('TA Indicator Bank'!AQ273),\"\",'TA Indicator Bank'!AQ273)","v":""},{"$f":"IF(ISBLANK('TA Indicator Bank'!AR273),\"\",'TA Indicator Bank'!AR273)","v":""},{"$f":"IF(ISBLANK('TA Indicator Bank'!AS273),\"\",'TA Indicator Bank'!AS273)","v":""},{"$f":"IF(ISBLANK('TA Indicator Bank'!AT273),\"\",'TA Indicator Bank'!AT273)","v":""},0,0,0,0,0,0,0,0,0,0,0,0,0,0,1,0,0,0,0,0,0,0,0,0,1,0,0,0,0,0,0,0,0,0,1,0,0,0,0,0,1,1,269,269,"",{"$f":"IFERROR(INDEX($B$9:$I$408,$CM420,COLUMNS($CN$9:CN420)),\"\")","v":""},{"$f":"IFERROR(INDEX($B$9:$I$408,$CM420,COLUMNS($CN$9:CO420)),\"\")","v":""},{"$f":"IFERROR(INDEX($B$9:$I$408,$CM420,COLUMNS($CN$9:CP420)),\"\")","v":""},{"$f":"IFERROR(INDEX($B$9:$I$408,$CM420,COLUMNS($CN$9:CQ420)),\"\")","v":""},{"$f":"IFERROR(INDEX($B$9:$I$408,$CM420,COLUMNS($CN$9:CR420)),\"\")","v":""},{"$f":"IFERROR(INDEX($B$9:$I$408,$CM420,COLUMNS($CN$9:CS420)),\"\")","v":""},{"$f":"IFERROR(INDEX($B$9:$I$408,$CM420,COLUMNS($CN$9:CT420)),\"\")","v":""},{"$f":"IFERROR(INDEX($B$9:$I$408,$CM420,COLUMNS($CN$9:CU420)),\"\")","v":""}]
[null,{"$f":"IF(ISBLANK('TA Indicator Bank'!B274),\"\",'TA Indicator Bank'!B274)","v":""},{"$f":"IF(ISBLANK('TA Indicator Bank'!C274),\"\",'TA Indicator Bank'!C274)","v":""},{"$f":"IF(ISBLANK('TA Indicator Bank'!D274),\"\",'TA Indicator Bank'!D274)","v":""},{"$f":"IF(ISBLANK('TA Indicator Bank'!E274),\"\",'TA Indicator Bank'!E274)","v":""},{"$f":"IF(ISBLANK('TA Indicator Bank'!F274),\"\",'TA Indicator Bank'!F274)","v":""},{"$f":"IF(ISBLANK('TA Indicator Bank'!G274),\"\",'TA Indicator Bank'!G274)","v":""},{"$f":"IF(ISBLANK('TA Indicator Bank'!H274),\"\",'TA Indicator Bank'!H274)","v":""},{"$f":"IF(ISBLANK('TA Indicator Bank'!I274),\"\",'TA Indicator Bank'!I274)","v":""},{"$f":"IF(ISBLANK('TA Indicator Bank'!J274),\"\",'TA Indicator Bank'!J274)","v":""},{"$f":"IF(ISBLANK('TA Indicator Bank'!K274),\"\",'TA Indicator Bank'!K274)","v":""},{"$f":"IF(ISBLANK('TA Indicator Bank'!L274),\"\",'TA Indicator Bank'!L274)","v":""},{"$f":"IF(ISBLANK('TA Indicator Bank'!M274),\"\",'TA Indicator Bank'!M274)","v":""},{"$f":"IF(ISBLANK('TA Indicator Bank'!N274),\"\",'TA Indicator Bank'!N274)","v":""},{"$f":"IF(ISBLANK('TA Indicator Bank'!O274),\"\",'TA Indicator Bank'!O274)","v":""},{"$f":"IF(ISBLANK('TA Indicator Bank'!P274),\"\",'TA Indicator Bank'!P274)","v":""},{"$f":"IF(ISBLANK('TA Indicator Bank'!Q274),\"\",'TA Indicator Bank'!Q274)","v":""},{"$f":"IF(ISBLANK('TA Indicator Bank'!R274),\"\",'TA Indicator Bank'!R274)","v":""},{"$f":"IF(ISBLANK('TA Indicator Bank'!S274),\"\",'TA Indicator Bank'!S274)","v":""},{"$f":"IF(ISBLANK('TA Indicator Bank'!T274),\"\",'TA Indicator Bank'!T274)","v":""},{"$f":"IF(ISBLANK('TA Indicator Bank'!U274),\"\",'TA Indicator Bank'!U274)","v":""},{"$f":"IF(ISBLANK('TA Indicator Bank'!V274),\"\",'TA Indicator Bank'!V274)","v":""},{"$f":"IF(ISBLANK('TA Indicator Bank'!W274),\"\",'TA Indicator Bank'!W274)","v":""},{"$f":"IF(ISBLANK('TA Indicator Bank'!X274),\"\",'TA Indicator Bank'!X274)","v":""},{"$f":"IF(ISBLANK('TA Indicator Bank'!Y274),\"\",'TA Indicator Bank'!Y274)","v":""},{"$f":"IF(ISBLANK('TA Indicator Bank'!Z274),\"\",'TA Indicator Bank'!Z274)","v":""},{"$f":"IF(ISBLANK('TA Indicator Bank'!AA274),\"\",'TA Indicator Bank'!AA274)","v":""},{"$f":"IF(ISBLANK('TA Indicator Bank'!AB274),\"\",'TA Indicator Bank'!AB274)","v":""},{"$f":"IF(ISBLANK('TA Indicator Bank'!AC274),\"\",'TA Indicator Bank'!AC274)","v":""},{"$f":"IF(ISBLANK('TA Indicator Bank'!AD274),\"\",'TA Indicator Bank'!AD274)","v":""},{"$f":"IF(ISBLANK('TA Indicator Bank'!AE274),\"\",'TA Indicator Bank'!AE274)","v":""},{"$f":"IF(ISBLANK('TA Indicator Bank'!AF274),\"\",'TA Indicator Bank'!AF274)","v":""},{"$f":"IF(ISBLANK('TA Indicator Bank'!AG274),\"\",'TA Indicator Bank'!AG274)","v":""},{"$f":"IF(ISBLANK('TA Indicator Bank'!AH274),\"\",'TA Indicator Bank'!AH274)","v":""},{"$f":"IF(ISBLANK('TA Indicator Bank'!AI274),\"\",'TA Indicator Bank'!AI274)","v":""},{"$f":"IF(ISBLANK('TA Indicator Bank'!AJ274),\"\",'TA Indicator Bank'!AJ274)","v":""},{"$f":"IF(ISBLANK('TA Indicator Bank'!AK274),\"\",'TA Indicator Bank'!AK274)","v":""},{"$f":"IF(ISBLANK('TA Indicator Bank'!AL274),\"\",'TA Indicator Bank'!AL274)","v":""},{"$f":"IF(ISBLANK('TA Indicator Bank'!AM274),\"\",'TA Indicator Bank'!AM274)","v":""},{"$f":"IF(ISBLANK('TA Indicator Bank'!AN274),\"\",'TA Indicator Bank'!AN274)","v":""},{"$f":"IF(ISBLANK('TA Indicator Bank'!AO274),\"\",'TA Indicator Bank'!AO274)","v":""},{"$f":"IF(ISBLANK('TA Indicator Bank'!AP274),\"\",'TA Indicator Bank'!AP274)","v":""},{"$f":"IF(ISBLANK('TA Indicator Bank'!AQ274),\"\",'TA Indicator Bank'!AQ274)","v":""},{"$f":"IF(ISBLANK('TA Indicator Bank'!AR274),\"\",'TA Indicator Bank'!AR274)","v":""},{"$f":"IF(ISBLANK('TA Indicator Bank'!AS274),\"\",'TA Indicator Bank'!AS274)","v":""},{"$f":"IF(ISBLANK('TA Indicator Bank'!AT274),\"\",'TA Indicator Bank'!AT274)","v":""},0,0,0,0,0,0,0,0,0,0,0,0,0,0,1,0,0,0,0,0,0,0,0,0,1,0,0,0,0,0,0,0,0,0,1,0,0,0,0,0,1,1,270,270,"",{"$f":"IFERROR(INDEX($B$9:$I$408,$CM421,COLUMNS($CN$9:CN421)),\"\")","v":""},{"$f":"IFERROR(INDEX($B$9:$I$408,$CM421,COLUMNS($CN$9:CO421)),\"\")","v":""},{"$f":"IFERROR(INDEX($B$9:$I$408,$CM421,COLUMNS($CN$9:CP421)),\"\")","v":""},{"$f":"IFERROR(INDEX($B$9:$I$408,$CM421,COLUMNS($CN$9:CQ421)),\"\")","v":""},{"$f":"IFERROR(INDEX($B$9:$I$408,$CM421,COLUMNS($CN$9:CR421)),\"\")","v":""},{"$f":"IFERROR(INDEX($B$9:$I$408,$CM421,COLUMNS($CN$9:CS421)),\"\")","v":""},{"$f":"IFERROR(INDEX($B$9:$I$408,$CM421,COLUMNS($CN$9:CT421)),\"\")","v":""},{"$f":"IFERROR(INDEX($B$9:$I$408,$CM421,COLUMNS($CN$9:CU421)),\"\")","v":""}]
[null,{"$f":"IF(ISBLANK('TA Indicator Bank'!B275),\"\",'TA Indicator Bank'!B275)","v":""},{"$f":"IF(ISBLANK('TA Indicator Bank'!C275),\"\",'TA Indicator Bank'!C275)","v":""},{"$f":"IF(ISBLANK('TA Indicator Bank'!D275),\"\",'TA Indicator Bank'!D275)","v":""},{"$f":"IF(ISBLANK('TA Indicator Bank'!E275),\"\",'TA Indicator Bank'!E275)","v":""},{"$f":"IF(ISBLANK('TA Indicator Bank'!F275),\"\",'TA Indicator Bank'!F275)","v":""},{"$f":"IF(ISBLANK('TA Indicator Bank'!G275),\"\",'TA Indicator Bank'!G275)","v":""},{"$f":"IF(ISBLANK('TA Indicator Bank'!H275),\"\",'TA Indicator Bank'!H275)","v":""},{"$f":"IF(ISBLANK('TA Indicator Bank'!I275),\"\",'TA Indicator Bank'!I275)","v":""},{"$f":"IF(ISBLANK('TA Indicator Bank'!J275),\"\",'TA Indicator Bank'!J275)","v":""},{"$f":"IF(ISBLANK('TA Indicator Bank'!K275),\"\",'TA Indicator Bank'!K275)","v":""},{"$f":"IF(ISBLANK('TA Indicator Bank'!L275),\"\",'TA Indicator Bank'!L275)","v":""},{"$f":"IF(ISBLANK('TA Indicator Bank'!M275),\"\",'TA Indicator Bank'!M275)","v":""},{"$f":"IF(ISBLANK('TA Indicator Bank'!N275),\"\",'TA Indicator Bank'!N275)","v":""},{"$f":"IF(ISBLANK('TA Indicator Bank'!O275),\"\",'TA Indicator Bank'!O275)","v":""},{"$f":"IF(ISBLANK('TA Indicator Bank'!P275),\"\",'TA Indicator Bank'!P275)","v":""},{"$f":"IF(ISBLANK('TA Indicator Bank'!Q275),\"\",'TA Indicator Bank'!Q275)","v":""},{"$f":"IF(ISBLANK('TA Indicator Bank'!R275),\"\",'TA Indicator Bank'!R275)","v":""},{"$f":"IF(ISBLANK('TA Indicator Bank'!S275),\"\",'TA Indicator Bank'!S275)","v":""},{"$f":"IF(ISBLANK('TA Indicator Bank'!T275),\"\",'TA Indicator Bank'!T275)","v":""},{"$f":"IF(ISBLANK('TA Indicator Bank'!U275),\"\",'TA Indicator Bank'!U275)","v":""},{"$f":"IF(ISBLANK('TA Indicator Bank'!V275),\"\",'TA Indicator Bank'!V275)","v":""},{"$f":"IF(ISBLANK('TA Indicator Bank'!W275),\"\",'TA Indicator Bank'!W275)","v":""},{"$f":"IF(ISBLANK('TA Indicator Bank'!X275),\"\",'TA Indicator Bank'!X275)","v":""},{"$f":"IF(ISBLANK('TA Indicator Bank'!Y275),\"\",'TA Indicator Bank'!Y275)","v":""},{"$f":"IF(ISBLANK('TA Indicator Bank'!Z275),\"\",'TA Indicator Bank'!Z275)","v":""},{"$f":"IF(ISBLANK('TA Indicator Bank'!AA275),\"\",'TA Indicator Bank'!AA275)","v":""},{"$f":"IF(ISBLANK('TA Indicator Bank'!AB275),\"\",'TA Indicator Bank'!AB275)","v":""},{"$f":"IF(ISBLANK('TA Indicator Bank'!AC275),\"\",'TA Indicator Bank'!AC275)","v":""},{"$f":"IF(ISBLANK('TA Indicator Bank'!AD275),\"\",'TA Indicator Bank'!AD275)","v":""},{"$f":"IF(ISBLANK('TA Indicator Bank'!AE275),\"\",'TA Indicator Bank'!AE275)","v":""},{"$f":"IF(ISBLANK('TA Indicator Bank'!AF275),\"\",'TA Indicator Bank'!AF275)","v":""},{"$f":"IF(ISBLANK('TA Indicator Bank'!AG275),\"\",'TA Indicator Bank'!AG275)","v":""},{"$f":"IF(ISBLANK('TA Indicator Bank'!AH275),\"\",'TA Indicator Bank'!AH275)","v":""},{"$f":"IF(ISBLANK('TA Indicator Bank'!AI275),\"\",'TA Indicator Bank'!AI275)","v":""},{"$f":"IF(ISBLANK('TA Indicator Bank'!AJ275),\"\",'TA Indicator Bank'!AJ275)","v":""},{"$f":"IF(ISBLANK('TA Indicator Bank'!AK275),\"\",'TA Indicator Bank'!AK275)","v":""},{"$f":"IF(ISBLANK('TA Indicator Bank'!AL275),\"\",'TA Indicator Bank'!AL275)","v":""},{"$f":"IF(ISBLANK('TA Indicator Bank'!AM275),\"\",'TA Indicator Bank'!AM275)","v":""},{"$f":"IF(ISBLANK('TA Indicator Bank'!AN275),\"\",'TA Indicator Bank'!AN275)","v":""},{"$f":"IF(ISBLANK('TA Indicator Bank'!AO275),\"\",'TA Indicator Bank'!AO275)","v":""},{"$f":"IF(ISBLANK('TA Indicator Bank'!AP275),\"\",'TA Indicator Bank'!AP275)","v":""},{"$f":"IF(ISBLANK('TA Indicator Bank'!AQ275),\"\",'TA Indicator Bank'!AQ275)","v":""},{"$f":"IF(ISBLANK('TA Indicator Bank'!AR275),\"\",'TA Indicator Bank'!AR275)","v":""},{"$f":"IF(ISBLANK('TA Indicator Bank'!AS275),\"\",'TA Indicator Bank'!AS275)","v":""},{"$f":"IF(ISBLANK('TA Indicator Bank'!AT275),\"\",'TA Indicator Bank'!AT275)","v":""},0,0,0,0,0,0,0,0,0,0,0,0,0,0,1,0,0,0,0,0,0,0,0,0,1,0,0,0,0,0,0,0,0,0,1,0,0,0,0,0,1,1,271,271,"",{"$f":"IFERROR(INDEX($B$9:$I$408,$CM422,COLUMNS($CN$9:CN422)),\"\")","v":""},{"$f":"IFERROR(INDEX($B$9:$I$408,$CM422,COLUMNS($CN$9:CO422)),\"\")","v":""},{"$f":"IFERROR(INDEX($B$9:$I$408,$CM422,COLUMNS($CN$9:CP422)),\"\")","v":""},{"$f":"IFERROR(INDEX($B$9:$I$408,$CM422,COLUMNS($CN$9:CQ422)),\"\")","v":""},{"$f":"IFERROR(INDEX($B$9:$I$408,$CM422,COLUMNS($CN$9:CR422)),\"\")","v":""},{"$f":"IFERROR(INDEX($B$9:$I$408,$CM422,COLUMNS($CN$9:CS422)),\"\")","v":""},{"$f":"IFERROR(INDEX($B$9:$I$408,$CM422,COLUMNS($CN$9:CT422)),\"\")","v":""},{"$f":"IFERROR(INDEX($B$9:$I$408,$CM422,COLUMNS($CN$9:CU422)),\"\")","v":""}]
[null,{"$f":"IF(ISBLANK('TA Indicator Bank'!B276),\"\",'TA Indicator Bank'!B276)","v":""},{"$f":"IF(ISBLANK('TA Indicator Bank'!C276),\"\",'TA Indicator Bank'!C276)","v":""},{"$f":"IF(ISBLANK('TA Indicator Bank'!D276),\"\",'TA Indicator Bank'!D276)","v":""},{"$f":"IF(ISBLANK('TA Indicator Bank'!E276),\"\",'TA Indicator Bank'!E276)","v":""},{"$f":"IF(ISBLANK('TA Indicator Bank'!F276),\"\",'TA Indicator Bank'!F276)","v":""},{"$f":"IF(ISBLANK('TA Indicator Bank'!G276),\"\",'TA Indicator Bank'!G276)","v":""},{"$f":"IF(ISBLANK('TA Indicator Bank'!H276),\"\",'TA Indicator Bank'!H276)","v":""},{"$f":"IF(ISBLANK('TA Indicator Bank'!I276),\"\",'TA Indicator Bank'!I276)","v":""},{"$f":"IF(ISBLANK('TA Indicator Bank'!J276),\"\",'TA Indicator Bank'!J276)","v":""},{"$f":"IF(ISBLANK('TA Indicator Bank'!K276),\"\",'TA Indicator Bank'!K276)","v":""},{"$f":"IF(ISBLANK('TA Indicator Bank'!L276),\"\",'TA Indicator Bank'!L276)","v":""},{"$f":"IF(ISBLANK('TA Indicator Bank'!M276),\"\",'TA Indicator Bank'!M276)","v":""},{"$f":"IF(ISBLANK('TA Indicator Bank'!N276),\"\",'TA Indicator Bank'!N276)","v":""},{"$f":"IF(ISBLANK('TA Indicator Bank'!O276),\"\",'TA Indicator Bank'!O276)","v":""},{"$f":"IF(ISBLANK('TA Indicator Bank'!P276),\"\",'TA Indicator Bank'!P276)","v":""},{"$f":"IF(ISBLANK('TA Indicator Bank'!Q276),\"\",'TA Indicator Bank'!Q276)","v":""},{"$f":"IF(ISBLANK('TA Indicator Bank'!R276),\"\",'TA Indicator Bank'!R276)","v":""},{"$f":"IF(ISBLANK('TA Indicator Bank'!S276),\"\",'TA Indicator Bank'!S276)","v":""},{"$f":"IF(ISBLANK('TA Indicator Bank'!T276),\"\",'TA Indicator Bank'!T276)","v":""},{"$f":"IF(ISBLANK('TA Indicator Bank'!U276),\"\",'TA Indicator Bank'!U276)","v":""},{"$f":"IF(ISBLANK('TA Indicator Bank'!V276),\"\",'TA Indicator Bank'!V276)","v":""},{"$f":"IF(ISBLANK('TA Indicator Bank'!W276),\"\",'TA Indicator Bank'!W276)","v":""},{"$f":"IF(ISBLANK('TA Indicator Bank'!X276),\"\",'TA Indicator Bank'!X276)","v":""},{"$f":"IF(ISBLANK('TA Indicator Bank'!Y276),\"\",'TA Indicator Bank'!Y276)","v":""},{"$f":"IF(ISBLANK('TA Indicator Bank'!Z276),\"\",'TA Indicator Bank'!Z276)","v":""},{"$f":"IF(ISBLANK('TA Indicator Bank'!AA276),\"\",'TA Indicator Bank'!AA276)","v":""},{"$f":"IF(ISBLANK('TA Indicator Bank'!AB276),\"\",'TA Indicator Bank'!AB276)","v":""},{"$f":"IF(ISBLANK('TA Indicator Bank'!AC276),\"\",'TA Indicator Bank'!AC276)","v":""},{"$f":"IF(ISBLANK('TA Indicator Bank'!AD276),\"\",'TA Indicator Bank'!AD276)","v":""},{"$f":"IF(ISBLANK('TA Indicator Bank'!AE276),\"\",'TA Indicator Bank'!AE276)","v":""},{"$f":"IF(ISBLANK('TA Indicator Bank'!AF276),\"\",'TA Indicator Bank'!AF276)","v":""},{"$f":"IF(ISBLANK('TA Indicator Bank'!AG276),\"\",'TA Indicator Bank'!AG276)","v":""},{"$f":"IF(ISBLANK('TA Indicator Bank'!AH276),\"\",'TA Indicator Bank'!AH276)","v":""},{"$f":"IF(ISBLANK('TA Indicator Bank'!AI276),\"\",'TA Indicator Bank'!AI276)","v":""},{"$f":"IF(ISBLANK('TA Indicator Bank'!AJ276),\"\",'TA Indicator Bank'!AJ276)","v":""},{"$f":"IF(ISBLANK('TA Indicator Bank'!AK276),\"\",'TA Indicator Bank'!AK276)","v":""},{"$f":"IF(ISBLANK('TA Indicator Bank'!AL276),\"\",'TA Indicator Bank'!AL276)","v":""},{"$f":"IF(ISBLANK('TA Indicator Bank'!AM276),\"\",'TA Indicator Bank'!AM276)","v":""},{"$f":"IF(ISBLANK('TA Indicator Bank'!AN276),\"\",'TA Indicator Bank'!AN276)","v":""},{"$f":"IF(ISBLANK('TA Indicator Bank'!AO276),\"\",'TA Indicator Bank'!AO276)","v":""},{"$f":"IF(ISBLANK('TA Indicator Bank'!AP276),\"\",'TA Indicator Bank'!AP276)","v":""},{"$f":"IF(ISBLANK('TA Indicator Bank'!AQ276),\"\",'TA Indicator Bank'!AQ276)","v":""},{"$f":"IF(ISBLANK('TA Indicator Bank'!AR276),\"\",'TA Indicator Bank'!AR276)","v":""},{"$f":"IF(ISBLANK('TA Indicator Bank'!AS276),\"\",'TA Indicator Bank'!AS276)","v":""},{"$f":"IF(ISBLANK('TA Indicator Bank'!AT276),\"\",'TA Indicator Bank'!AT276)","v":""},0,0,0,0,0,0,0,0,0,0,0,0,0,0,1,0,0,0,0,0,0,0,0,0,1,0,0,0,0,0,0,0,0,0,1,0,0,0,0,0,1,1,272,272,"",{"$f":"IFERROR(INDEX($B$9:$I$408,$CM423,COLUMNS($CN$9:CN423)),\"\")","v":""},{"$f":"IFERROR(INDEX($B$9:$I$408,$CM423,COLUMNS($CN$9:CO423)),\"\")","v":""},{"$f":"IFERROR(INDEX($B$9:$I$408,$CM423,COLUMNS($CN$9:CP423)),\"\")","v":""},{"$f":"IFERROR(INDEX($B$9:$I$408,$CM423,COLUMNS($CN$9:CQ423)),\"\")","v":""},{"$f":"IFERROR(INDEX($B$9:$I$408,$CM423,COLUMNS($CN$9:CR423)),\"\")","v":""},{"$f":"IFERROR(INDEX($B$9:$I$408,$CM423,COLUMNS($CN$9:CS423)),\"\")","v":""},{"$f":"IFERROR(INDEX($B$9:$I$408,$CM423,COLUMNS($CN$9:CT423)),\"\")","v":""},{"$f":"IFERROR(INDEX($B$9:$I$408,$CM423,COLUMNS($CN$9:CU423)),\"\")","v":""}]
[null,{"$f":"IF(ISBLANK('TA Indicator Bank'!B277),\"\",'TA Indicator Bank'!B277)","v":""},{"$f":"IF(ISBLANK('TA Indicator Bank'!C277),\"\",'TA Indicator Bank'!C277)","v":""},{"$f":"IF(ISBLANK('TA Indicator Bank'!D277),\"\",'TA Indicator Bank'!D277)","v":""},{"$f":"IF(ISBLANK('TA Indicator Bank'!E277),\"\",'TA Indicator Bank'!E277)","v":""},{"$f":"IF(ISBLANK('TA Indicator Bank'!F277),\"\",'TA Indicator Bank'!F277)","v":""},{"$f":"IF(ISBLANK('TA Indicator Bank'!G277),\"\",'TA Indicator Bank'!G277)","v":""},{"$f":"IF(ISBLANK('TA Indicator Bank'!H277),\"\",'TA Indicator Bank'!H277)","v":""},{"$f":"IF(ISBLANK('TA Indicator Bank'!I277),\"\",'TA Indicator Bank'!I277)","v":""},{"$f":"IF(ISBLANK('TA Indicator Bank'!J277),\"\",'TA Indicator Bank'!J277)","v":""},{"$f":"IF(ISBLANK('TA Indicator Bank'!K277),\"\",'TA Indicator Bank'!K277)","v":""},{"$f":"IF(ISBLANK('TA Indicator Bank'!L277),\"\",'TA Indicator Bank'!L277)","v":""},{"$f":"IF(ISBLANK('TA Indicator Bank'!M277),\"\",'TA Indicator Bank'!M277)","v":""},{"$f":"IF(ISBLANK('TA Indicator Bank'!N277),\"\",'TA Indicator Bank'!N277)","v":""},{"$f":"IF(ISBLANK('TA Indicator Bank'!O277),\"\",'TA Indicator Bank'!O277)","v":""},{"$f":"IF(ISBLANK('TA Indicator Bank'!P277),\"\",'TA Indicator Bank'!P277)","v":""},{"$f":"IF(ISBLANK('TA Indicator Bank'!Q277),\"\",'TA Indicator Bank'!Q277)","v":""},{"$f":"IF(ISBLANK('TA Indicator Bank'!R277),\"\",'TA Indicator Bank'!R277)","v":""},{"$f":"IF(ISBLANK('TA Indicator Bank'!S277),\"\",'TA Indicator Bank'!S277)","v":""},{"$f":"IF(ISBLANK('TA Indicator Bank'!T277),\"\",'TA Indicator Bank'!T277)","v":""},{"$f":"IF(ISBLANK('TA Indicator Bank'!U277),\"\",'TA Indicator Bank'!U277)","v":""},{"$f":"IF(ISBLANK('TA Indicator Bank'!V277),\"\",'TA Indicator Bank'!V277)","v":""},{"$f":"IF(ISBLANK('TA Indicator Bank'!W277),\"\",'TA Indicator Bank'!W277)","v":""},{"$f":"IF(ISBLANK('TA Indicator Bank'!X277),\"\",'TA Indicator Bank'!X277)","v":""},{"$f":"IF(ISBLANK('TA Indicator Bank'!Y277),\"\",'TA Indicator Bank'!Y277)","v":""},{"$f":"IF(ISBLANK('TA Indicator Bank'!Z277),\"\",'TA Indicator Bank'!Z277)","v":""},{"$f":"IF(ISBLANK('TA Indicator Bank'!AA277),\"\",'TA Indicator Bank'!AA277)","v":""},{"$f":"IF(ISBLANK('TA Indicator Bank'!AB277),\"\",'TA Indicator Bank'!AB277)","v":""},{"$f":"IF(ISBLANK('TA Indicator Bank'!AC277),\"\",'TA Indicator Bank'!AC277)","v":""},{"$f":"IF(ISBLANK('TA Indicator Bank'!AD277),\"\",'TA Indicator Bank'!AD277)","v":""},{"$f":"IF(ISBLANK('TA Indicator Bank'!AE277),\"\",'TA Indicator Bank'!AE277)","v":""},{"$f":"IF(ISBLANK('TA Indicator Bank'!AF277),\"\",'TA Indicator Bank'!AF277)","v":""},{"$f":"IF(ISBLANK('TA Indicator Bank'!AG277),\"\",'TA Indicator Bank'!AG277)","v":""},{"$f":"IF(ISBLANK('TA Indicator Bank'!AH277),\"\",'TA Indicator Bank'!AH277)","v":""},{"$f":"IF(ISBLANK('TA Indicator Bank'!AI277),\"\",'TA Indicator Bank'!AI277)","v":""},{"$f":"IF(ISBLANK('TA Indicator Bank'!AJ277),\"\",'TA Indicator Bank'!AJ277)","v":""},{"$f":"IF(ISBLANK('TA Indicator Bank'!AK277),\"\",'TA Indicator Bank'!AK277)","v":""},{"$f":"IF(ISBLANK('TA Indicator Bank'!AL277),\"\",'TA Indicator Bank'!AL277)","v":""},{"$f":"IF(ISBLANK('TA Indicator Bank'!AM277),\"\",'TA Indicator Bank'!AM277)","v":""},{"$f":"IF(ISBLANK('TA Indicator Bank'!AN277),\"\",'TA Indicator Bank'!AN277)","v":""},{"$f":"IF(ISBLANK('TA Indicator Bank'!AO277),\"\",'TA Indicator Bank'!AO277)","v":""},{"$f":"IF(ISBLANK('TA Indicator Bank'!AP277),\"\",'TA Indicator Bank'!AP277)","v":""},{"$f":"IF(ISBLANK('TA Indicator Bank'!AQ277),\"\",'TA Indicator Bank'!AQ277)","v":""},{"$f":"IF(ISBLANK('TA Indicator Bank'!AR277),\"\",'TA Indicator Bank'!AR277)","v":""},{"$f":"IF(ISBLANK('TA Indicator Bank'!AS277),\"\",'TA Indicator Bank'!AS277)","v":""},{"$f":"IF(ISBLANK('TA Indicator Bank'!AT277),\"\",'TA Indicator Bank'!AT277)","v":""},0,0,0,0,0,0,0,0,0,0,0,0,0,0,1,0,0,0,0,0,0,0,0,0,1,0,0,0,0,0,0,0,0,0,1,0,0,0,0,0,1,1,273,273,"",{"$f":"IFERROR(INDEX($B$9:$I$408,$CM424,COLUMNS($CN$9:CN424)),\"\")","v":""},{"$f":"IFERROR(INDEX($B$9:$I$408,$CM424,COLUMNS($CN$9:CO424)),\"\")","v":""},{"$f":"IFERROR(INDEX($B$9:$I$408,$CM424,COLUMNS($CN$9:CP424)),\"\")","v":""},{"$f":"IFERROR(INDEX($B$9:$I$408,$CM424,COLUMNS($CN$9:CQ424)),\"\")","v":""},{"$f":"IFERROR(INDEX($B$9:$I$408,$CM424,COLUMNS($CN$9:CR424)),\"\")","v":""},{"$f":"IFERROR(INDEX($B$9:$I$408,$CM424,COLUMNS($CN$9:CS424)),\"\")","v":""},{"$f":"IFERROR(INDEX($B$9:$I$408,$CM424,COLUMNS($CN$9:CT424)),\"\")","v":""},{"$f":"IFERROR(INDEX($B$9:$I$408,$CM424,COLUMNS($CN$9:CU424)),\"\")","v":""}]
[null,{"$f":"IF(ISBLANK('TA Indicator Bank'!B278),\"\",'TA Indicator Bank'!B278)","v":""},{"$f":"IF(ISBLANK('TA Indicator Bank'!C278),\"\",'TA Indicator Bank'!C278)","v":""},{"$f":"IF(ISBLANK('TA Indicator Bank'!D278),\"\",'TA Indicator Bank'!D278)","v":""},{"$f":"IF(ISBLANK('TA Indicator Bank'!E278),\"\",'TA Indicator Bank'!E278)","v":""},{"$f":"IF(ISBLANK('TA Indicator Bank'!F278),\"\",'TA Indicator Bank'!F278)","v":""},{"$f":"IF(ISBLANK('TA Indicator Bank'!G278),\"\",'TA Indicator Bank'!G278)","v":""},{"$f":"IF(ISBLANK('TA Indicator Bank'!H278),\"\",'TA Indicator Bank'!H278)","v":""},{"$f":"IF(ISBLANK('TA Indicator Bank'!I278),\"\",'TA Indicator Bank'!I278)","v":""},{"$f":"IF(ISBLANK('TA Indicator Bank'!J278),\"\",'TA Indicator Bank'!J278)","v":""},{"$f":"IF(ISBLANK('TA Indicator Bank'!K278),\"\",'TA Indicator Bank'!K278)","v":""},{"$f":"IF(ISBLANK('TA Indicator Bank'!L278),\"\",'TA Indicator Bank'!L278)","v":""},{"$f":"IF(ISBLANK('TA Indicator Bank'!M278),\"\",'TA Indicator Bank'!M278)","v":""},{"$f":"IF(ISBLANK('TA Indicator Bank'!N278),\"\",'TA Indicator Bank'!N278)","v":""},{"$f":"IF(ISBLANK('TA Indicator Bank'!O278),\"\",'TA Indicator Bank'!O278)","v":""},{"$f":"IF(ISBLANK('TA Indicator Bank'!P278),\"\",'TA Indicator Bank'!P278)","v":""},{"$f":"IF(ISBLANK('TA Indicator Bank'!Q278),\"\",'TA Indicator Bank'!Q278)","v":""},{"$f":"IF(ISBLANK('TA Indicator Bank'!R278),\"\",'TA Indicator Bank'!R278)","v":""},{"$f":"IF(ISBLANK('TA Indicator Bank'!S278),\"\",'TA Indicator Bank'!S278)","v":""},{"$f":"IF(ISBLANK('TA Indicator Bank'!T278),\"\",'TA Indicator Bank'!T278)","v":""},{"$f":"IF(ISBLANK('TA Indicator Bank'!U278),\"\",'TA Indicator Bank'!U278)","v":""},{"$f":"IF(ISBLANK('TA Indicator Bank'!V278),\"\",'TA Indicator Bank'!V278)","v":""},{"$f":"IF(ISBLANK('TA Indicator Bank'!W278),\"\",'TA Indicator Bank'!W278)","v":""},{"$f":"IF(ISBLANK('TA Indicator Bank'!X278),\"\",'TA Indicator Bank'!X278)","v":""},{"$f":"IF(ISBLANK('TA Indicator Bank'!Y278),\"\",'TA Indicator Bank'!Y278)","v":""},{"$f":"IF(ISBLANK('TA Indicator Bank'!Z278),\"\",'TA Indicator Bank'!Z278)","v":""},{"$f":"IF(ISBLANK('TA Indicator Bank'!AA278),\"\",'TA Indicator Bank'!AA278)","v":""},{"$f":"IF(ISBLANK('TA Indicator Bank'!AB278),\"\",'TA Indicator Bank'!AB278)","v":""},{"$f":"IF(ISBLANK('TA Indicator Bank'!AC278),\"\",'TA Indicator Bank'!AC278)","v":""},{"$f":"IF(ISBLANK('TA Indicator Bank'!AD278),\"\",'TA Indicator Bank'!AD278)","v":""},{"$f":"IF(ISBLANK('TA Indicator Bank'!AE278),\"\",'TA Indicator Bank'!AE278)","v":""},{"$f":"IF(ISBLANK('TA Indicator Bank'!AF278),\"\",'TA Indicator Bank'!AF278)","v":""},{"$f":"IF(ISBLANK('TA Indicator Bank'!AG278),\"\",'TA Indicator Bank'!AG278)","v":""},{"$f":"IF(ISBLANK('TA Indicator Bank'!AH278),\"\",'TA Indicator Bank'!AH278)","v":""},{"$f":"IF(ISBLANK('TA Indicator Bank'!AI278),\"\",'TA Indicator Bank'!AI278)","v":""},{"$f":"IF(ISBLANK('TA Indicator Bank'!AJ278),\"\",'TA Indicator Bank'!AJ278)","v":""},{"$f":"IF(ISBLANK('TA Indicator Bank'!AK278),\"\",'TA Indicator Bank'!AK278)","v":""},{"$f":"IF(ISBLANK('TA Indicator Bank'!AL278),\"\",'TA Indicator Bank'!AL278)","v":""},{"$f":"IF(ISBLANK('TA Indicator Bank'!AM278),\"\",'TA Indicator Bank'!AM278)","v":""},{"$f":"IF(ISBLANK('TA Indicator Bank'!AN278),\"\",'TA Indicator Bank'!AN278)","v":""},{"$f":"IF(ISBLANK('TA Indicator Bank'!AO278),\"\",'TA Indicator Bank'!AO278)","v":""},{"$f":"IF(ISBLANK('TA Indicator Bank'!AP278),\"\",'TA Indicator Bank'!AP278)","v":""},{"$f":"IF(ISBLANK('TA Indicator Bank'!AQ278),\"\",'TA Indicator Bank'!AQ278)","v":""},{"$f":"IF(ISBLANK('TA Indicator Bank'!AR278),\"\",'TA Indicator Bank'!AR278)","v":""},{"$f":"IF(ISBLANK('TA Indicator Bank'!AS278),\"\",'TA Indicator Bank'!AS278)","v":""},{"$f":"IF(ISBLANK('TA Indicator Bank'!AT278),\"\",'TA Indicator Bank'!AT278)","v":""},0,0,0,0,0,0,0,0,0,0,0,0,0,0,1,0,0,0,0,0,0,0,0,0,1,0,0,0,0,0,0,0,0,0,1,0,0,0,0,0,1,1,274,274,"",{"$f":"IFERROR(INDEX($B$9:$I$408,$CM425,COLUMNS($CN$9:CN425)),\"\")","v":""},{"$f":"IFERROR(INDEX($B$9:$I$408,$CM425,COLUMNS($CN$9:CO425)),\"\")","v":""},{"$f":"IFERROR(INDEX($B$9:$I$408,$CM425,COLUMNS($CN$9:CP425)),\"\")","v":""},{"$f":"IFERROR(INDEX($B$9:$I$408,$CM425,COLUMNS($CN$9:CQ425)),\"\")","v":""},{"$f":"IFERROR(INDEX($B$9:$I$408,$CM425,COLUMNS($CN$9:CR425)),\"\")","v":""},{"$f":"IFERROR(INDEX($B$9:$I$408,$CM425,COLUMNS($CN$9:CS425)),\"\")","v":""},{"$f":"IFERROR(INDEX($B$9:$I$408,$CM425,COLUMNS($CN$9:CT425)),\"\")","v":""},{"$f":"IFERROR(INDEX($B$9:$I$408,$CM425,COLUMNS($CN$9:CU425)),\"\")","v":""}]
[null,{"$f":"IF(ISBLANK('TA Indicator Bank'!B279),\"\",'TA Indicator Bank'!B279)","v":""},{"$f":"IF(ISBLANK('TA Indicator Bank'!C279),\"\",'TA Indicator Bank'!C279)","v":""},{"$f":"IF(ISBLANK('TA Indicator Bank'!D279),\"\",'TA Indicator Bank'!D279)","v":""},{"$f":"IF(ISBLANK('TA Indicator Bank'!E279),\"\",'TA Indicator Bank'!E279)","v":""},{"$f":"IF(ISBLANK('TA Indicator Bank'!F279),\"\",'TA Indicator Bank'!F279)","v":""},{"$f":"IF(ISBLANK('TA Indicator Bank'!G279),\"\",'TA Indicator Bank'!G279)","v":""},{"$f":"IF(ISBLANK('TA Indicator Bank'!H279),\"\",'TA Indicator Bank'!H279)","v":""},{"$f":"IF(ISBLANK('TA Indicator Bank'!I279),\"\",'TA Indicator Bank'!I279)","v":""},{"$f":"IF(ISBLANK('TA Indicator Bank'!J279),\"\",'TA Indicator Bank'!J279)","v":""},{"$f":"IF(ISBLANK('TA Indicator Bank'!K279),\"\",'TA Indicator Bank'!K279)","v":""},{"$f":"IF(ISBLANK('TA Indicator Bank'!L279),\"\",'TA Indicator Bank'!L279)","v":""},{"$f":"IF(ISBLANK('TA Indicator Bank'!M279),\"\",'TA Indicator Bank'!M279)","v":""},{"$f":"IF(ISBLANK('TA Indicator Bank'!N279),\"\",'TA Indicator Bank'!N279)","v":""},{"$f":"IF(ISBLANK('TA Indicator Bank'!O279),\"\",'TA Indicator Bank'!O279)","v":""},{"$f":"IF(ISBLANK('TA Indicator Bank'!P279),\"\",'TA Indicator Bank'!P279)","v":""},{"$f":"IF(ISBLANK('TA Indicator Bank'!Q279),\"\",'TA Indicator Bank'!Q279)","v":""},{"$f":"IF(ISBLANK('TA Indicator Bank'!R279),\"\",'TA Indicator Bank'!R279)","v":""},{"$f":"IF(ISBLANK('TA Indicator Bank'!S279),\"\",'TA Indicator Bank'!S279)","v":""},{"$f":"IF(ISBLANK('TA Indicator Bank'!T279),\"\",'TA Indicator Bank'!T279)","v":""},{"$f":"IF(ISBLANK('TA Indicator Bank'!U279),\"\",'TA Indicator Bank'!U279)","v":""},{"$f":"IF(ISBLANK('TA Indicator Bank'!V279),\"\",'TA Indicator Bank'!V279)","v":""},{"$f":"IF(ISBLANK('TA Indicator Bank'!W279),\"\",'TA Indicator Bank'!W279)","v":""},{"$f":"IF(ISBLANK('TA Indicator Bank'!X279),\"\",'TA Indicator Bank'!X279)","v":""},{"$f":"IF(ISBLANK('TA Indicator Bank'!Y279),\"\",'TA Indicator Bank'!Y279)","v":""},{"$f":"IF(ISBLANK('TA Indicator Bank'!Z279),\"\",'TA Indicator Bank'!Z279)","v":""},{"$f":"IF(ISBLANK('TA Indicator Bank'!AA279),\"\",'TA Indicator Bank'!AA279)","v":""},{"$f":"IF(ISBLANK('TA Indicator Bank'!AB279),\"\",'TA Indicator Bank'!AB279)","v":""},{"$f":"IF(ISBLANK('TA Indicator Bank'!AC279),\"\",'TA Indicator Bank'!AC279)","v":""},{"$f":"IF(ISBLANK('TA Indicator Bank'!AD279),\"\",'TA Indicator Bank'!AD279)","v":""},{"$f":"IF(ISBLANK('TA Indicator Bank'!AE279),\"\",'TA Indicator Bank'!AE279)","v":""},{"$f":"IF(ISBLANK('TA Indicator Bank'!AF279),\"\",'TA Indicator Bank'!AF279)","v":""},{"$f":"IF(ISBLANK('TA Indicator Bank'!AG279),\"\",'TA Indicator Bank'!AG279)","v":""},{"$f":"IF(ISBLANK('TA Indicator Bank'!AH279),\"\",'TA Indicator Bank'!AH279)","v":""},{"$f":"IF(ISBLANK('TA Indicator Bank'!AI279),\"\",'TA Indicator Bank'!AI279)","v":""},{"$f":"IF(ISBLANK('TA Indicator Bank'!AJ279),\"\",'TA Indicator Bank'!AJ279)","v":""},{"$f":"IF(ISBLANK('TA Indicator Bank'!AK279),\"\",'TA Indicator Bank'!AK279)","v":""},{"$f":"IF(ISBLANK('TA Indicator Bank'!AL279),\"\",'TA Indicator Bank'!AL279)","v":""},{"$f":"IF(ISBLANK('TA Indicator Bank'!AM279),\"\",'TA Indicator Bank'!AM279)","v":""},{"$f":"IF(ISBLANK('TA Indicator Bank'!AN279),\"\",'TA Indicator Bank'!AN279)","v":""},{"$f":"IF(ISBLANK('TA Indicator Bank'!AO279),\"\",'TA Indicator Bank'!AO279)","v":""},{"$f":"IF(ISBLANK('TA Indicator Bank'!AP279),\"\",'TA Indicator Bank'!AP279)","v":""},{"$f":"IF(ISBLANK('TA Indicator Bank'!AQ279),\"\",'TA Indicator Bank'!AQ279)","v":""},{"$f":"IF(ISBLANK('TA Indicator Bank'!AR279),\"\",'TA Indicator Bank'!AR279)","v":""},{"$f":"IF(ISBLANK('TA Indicator Bank'!AS279),\"\",'TA Indicator Bank'!AS279)","v":""},{"$f":"IF(ISBLANK('TA Indicator Bank'!AT279),\"\",'TA Indicator Bank'!AT279)","v":""},0,0,0,0,0,0,0,0,0,0,0,0,0,0,1,0,0,0,0,0,0,0,0,0,1,0,0,0,0,0,0,0,0,0,1,0,0,0,0,0,1,1,275,275,"",{"$f":"IFERROR(INDEX($B$9:$I$408,$CM426,COLUMNS($CN$9:CN426)),\"\")","v":""},{"$f":"IFERROR(INDEX($B$9:$I$408,$CM426,COLUMNS($CN$9:CO426)),\"\")","v":""},{"$f":"IFERROR(INDEX($B$9:$I$408,$CM426,COLUMNS($CN$9:CP426)),\"\")","v":""},{"$f":"IFERROR(INDEX($B$9:$I$408,$CM426,COLUMNS($CN$9:CQ426)),\"\")","v":""},{"$f":"IFERROR(INDEX($B$9:$I$408,$CM426,COLUMNS($CN$9:CR426)),\"\")","v":""},{"$f":"IFERROR(INDEX($B$9:$I$408,$CM426,COLUMNS($CN$9:CS426)),\"\")","v":""},{"$f":"IFERROR(INDEX($B$9:$I$408,$CM426,COLUMNS($CN$9:CT426)),\"\")","v":""},{"$f":"IFERROR(INDEX($B$9:$I$408,$CM426,COLUMNS($CN$9:CU426)),\"\")","v":""}]
[null,{"$f":"IF(ISBLANK('TA Indicator Bank'!B280),\"\",'TA Indicator Bank'!B280)","v":""},{"$f":"IF(ISBLANK('TA Indicator Bank'!C280),\"\",'TA Indicator Bank'!C280)","v":""},{"$f":"IF(ISBLANK('TA Indicator Bank'!D280),\"\",'TA Indicator Bank'!D280)","v":""},{"$f":"IF(ISBLANK('TA Indicator Bank'!E280),\"\",'TA Indicator Bank'!E280)","v":""},{"$f":"IF(ISBLANK('TA Indicator Bank'!F280),\"\",'TA Indicator Bank'!F280)","v":""},{"$f":"IF(ISBLANK('TA Indicator Bank'!G280),\"\",'TA Indicator Bank'!G280)","v":""},{"$f":"IF(ISBLANK('TA Indicator Bank'!H280),\"\",'TA Indicator Bank'!H280)","v":""},{"$f":"IF(ISBLANK('TA Indicator Bank'!I280),\"\",'TA Indicator Bank'!I280)","v":""},{"$f":"IF(ISBLANK('TA Indicator Bank'!J280),\"\",'TA Indicator Bank'!J280)","v":""},{"$f":"IF(ISBLANK('TA Indicator Bank'!K280),\"\",'TA Indicator Bank'!K280)","v":""},{"$f":"IF(ISBLANK('TA Indicator Bank'!L280),\"\",'TA Indicator Bank'!L280)","v":""},{"$f":"IF(ISBLANK('TA Indicator Bank'!M280),\"\",'TA Indicator Bank'!M280)","v":""},{"$f":"IF(ISBLANK('TA Indicator Bank'!N280),\"\",'TA Indicator Bank'!N280)","v":""},{"$f":"IF(ISBLANK('TA Indicator Bank'!O280),\"\",'TA Indicator Bank'!O280)","v":""},{"$f":"IF(ISBLANK('TA Indicator Bank'!P280),\"\",'TA Indicator Bank'!P280)","v":""},{"$f":"IF(ISBLANK('TA Indicator Bank'!Q280),\"\",'TA Indicator Bank'!Q280)","v":""},{"$f":"IF(ISBLANK('TA Indicator Bank'!R280),\"\",'TA Indicator Bank'!R280)","v":""},{"$f":"IF(ISBLANK('TA Indicator Bank'!S280),\"\",'TA Indicator Bank'!S280)","v":""},{"$f":"IF(ISBLANK('TA Indicator Bank'!T280),\"\",'TA Indicator Bank'!T280)","v":""},{"$f":"IF(ISBLANK('TA Indicator Bank'!U280),\"\",'TA Indicator Bank'!U280)","v":""},{"$f":"IF(ISBLANK('TA Indicator Bank'!V280),\"\",'TA Indicator Bank'!V280)","v":""},{"$f":"IF(ISBLANK('TA Indicator Bank'!W280),\"\",'TA Indicator Bank'!W280)","v":""},{"$f":"IF(ISBLANK('TA Indicator Bank'!X280),\"\",'TA Indicator Bank'!X280)","v":""},{"$f":"IF(ISBLANK('TA Indicator Bank'!Y280),\"\",'TA Indicator Bank'!Y280)","v":""},{"$f":"IF(ISBLANK('TA Indicator Bank'!Z280),\"\",'TA Indicator Bank'!Z280)","v":""},{"$f":"IF(ISBLANK('TA Indicator Bank'!AA280),\"\",'TA Indicator Bank'!AA280)","v":""},{"$f":"IF(ISBLANK('TA Indicator Bank'!AB280),\"\",'TA Indicator Bank'!AB280)","v":""},{"$f":"IF(ISBLANK('TA Indicator Bank'!AC280),\"\",'TA Indicator Bank'!AC280)","v":""},{"$f":"IF(ISBLANK('TA Indicator Bank'!AD280),\"\",'TA Indicator Bank'!AD280)","v":""},{"$f":"IF(ISBLANK('TA Indicator Bank'!AE280),\"\",'TA Indicator Bank'!AE280)","v":""},{"$f":"IF(ISBLANK('TA Indicator Bank'!AF280),\"\",'TA Indicator Bank'!AF280)","v":""},{"$f":"IF(ISBLANK('TA Indicator Bank'!AG280),\"\",'TA Indicator Bank'!AG280)","v":""},{"$f":"IF(ISBLANK('TA Indicator Bank'!AH280),\"\",'TA Indicator Bank'!AH280)","v":""},{"$f":"IF(ISBLANK('TA Indicator Bank'!AI280),\"\",'TA Indicator Bank'!AI280)","v":""},{"$f":"IF(ISBLANK('TA Indicator Bank'!AJ280),\"\",'TA Indicator Bank'!AJ280)","v":""},{"$f":"IF(ISBLANK('TA Indicator Bank'!AK280),\"\",'TA Indicator Bank'!AK280)","v":""},{"$f":"IF(ISBLANK('TA Indicator Bank'!AL280),\"\",'TA Indicator Bank'!AL280)","v":""},{"$f":"IF(ISBLANK('TA Indicator Bank'!AM280),\"\",'TA Indicator Bank'!AM280)","v":""},{"$f":"IF(ISBLANK('TA Indicator Bank'!AN280),\"\",'TA Indicator Bank'!AN280)","v":""},{"$f":"IF(ISBLANK('TA Indicator Bank'!AO280),\"\",'TA Indicator Bank'!AO280)","v":""},{"$f":"IF(ISBLANK('TA Indicator Bank'!AP280),\"\",'TA Indicator Bank'!AP280)","v":""},{"$f":"IF(ISBLANK('TA Indicator Bank'!AQ280),\"\",'TA Indicator Bank'!AQ280)","v":""},{"$f":"IF(ISBLANK('TA Indicator Bank'!AR280),\"\",'TA Indicator Bank'!AR280)","v":""},{"$f":"IF(ISBLANK('TA Indicator Bank'!AS280),\"\",'TA Indicator Bank'!AS280)","v":""},{"$f":"IF(ISBLANK('TA Indicator Bank'!AT280),\"\",'TA Indicator Bank'!AT280)","v":""},0,0,0,0,0,0,0,0,0,0,0,0,0,0,1,0,0,0,0,0,0,0,0,0,1,0,0,0,0,0,0,0,0,0,1,0,0,0,0,0,1,1,276,276,"",{"$f":"IFERROR(INDEX($B$9:$I$408,$CM427,COLUMNS($CN$9:CN427)),\"\")","v":""},{"$f":"IFERROR(INDEX($B$9:$I$408,$CM427,COLUMNS($CN$9:CO427)),\"\")","v":""},{"$f":"IFERROR(INDEX($B$9:$I$408,$CM427,COLUMNS($CN$9:CP427)),\"\")","v":""},{"$f":"IFERROR(INDEX($B$9:$I$408,$CM427,COLUMNS($CN$9:CQ427)),\"\")","v":""},{"$f":"IFERROR(INDEX($B$9:$I$408,$CM427,COLUMNS($CN$9:CR427)),\"\")","v":""},{"$f":"IFERROR(INDEX($B$9:$I$408,$CM427,COLUMNS($CN$9:CS427)),\"\")","v":""},{"$f":"IFERROR(INDEX($B$9:$I$408,$CM427,COLUMNS($CN$9:CT427)),\"\")","v":""},{"$f":"IFERROR(INDEX($B$9:$I$408,$CM427,COLUMNS($CN$9:CU427)),\"\")","v":""}]
[null,{"$f":"IF(ISBLANK('TA Indicator Bank'!B281),\"\",'TA Indicator Bank'!B281)","v":""},{"$f":"IF(ISBLANK('TA Indicator Bank'!C281),\"\",'TA Indicator Bank'!C281)","v":""},{"$f":"IF(ISBLANK('TA Indicator Bank'!D281),\"\",'TA Indicator Bank'!D281)","v":""},{"$f":"IF(ISBLANK('TA Indicator Bank'!E281),\"\",'TA Indicator Bank'!E281)","v":""},{"$f":"IF(ISBLANK('TA Indicator Bank'!F281),\"\",'TA Indicator Bank'!F281)","v":""},{"$f":"IF(ISBLANK('TA Indicator Bank'!G281),\"\",'TA Indicator Bank'!G281)","v":""},{"$f":"IF(ISBLANK('TA Indicator Bank'!H281),\"\",'TA Indicator Bank'!H281)","v":""},{"$f":"IF(ISBLANK('TA Indicator Bank'!I281),\"\",'TA Indicator Bank'!I281)","v":""},{"$f":"IF(ISBLANK('TA Indicator Bank'!J281),\"\",'TA Indicator Bank'!J281)","v":""},{"$f":"IF(ISBLANK('TA Indicator Bank'!K281),\"\",'TA Indicator Bank'!K281)","v":""},{"$f":"IF(ISBLANK('TA Indicator Bank'!L281),\"\",'TA Indicator Bank'!L281)","v":""},{"$f":"IF(ISBLANK('TA Indicator Bank'!M281),\"\",'TA Indicator Bank'!M281)","v":""},{"$f":"IF(ISBLANK('TA Indicator Bank'!N281),\"\",'TA Indicator Bank'!N281)","v":""},{"$f":"IF(ISBLANK('TA Indicator Bank'!O281),\"\",'TA Indicator Bank'!O281)","v":""},{"$f":"IF(ISBLANK('TA Indicator Bank'!P281),\"\",'TA Indicator Bank'!P281)","v":""},{"$f":"IF(ISBLANK('TA Indicator Bank'!Q281),\"\",'TA Indicator Bank'!Q281)","v":""},{"$f":"IF(ISBLANK('TA Indicator Bank'!R281),\"\",'TA Indicator Bank'!R281)","v":""},{"$f":"IF(ISBLANK('TA Indicator Bank'!S281),\"\",'TA Indicator Bank'!S281)","v":""},{"$f":"IF(ISBLANK('TA Indicator Bank'!T281),\"\",'TA Indicator Bank'!T281)","v":""},{"$f":"IF(ISBLANK('TA Indicator Bank'!U281),\"\",'TA Indicator Bank'!U281)","v":""},{"$f":"IF(ISBLANK('TA Indicator Bank'!V281),\"\",'TA Indicator Bank'!V281)","v":""},{"$f":"IF(ISBLANK('TA Indicator Bank'!W281),\"\",'TA Indicator Bank'!W281)","v":""},{"$f":"IF(ISBLANK('TA Indicator Bank'!X281),\"\",'TA Indicator Bank'!X281)","v":""},{"$f":"IF(ISBLANK('TA Indicator Bank'!Y281),\"\",'TA Indicator Bank'!Y281)","v":""},{"$f":"IF(ISBLANK('TA Indicator Bank'!Z281),\"\",'TA Indicator Bank'!Z281)","v":""},{"$f":"IF(ISBLANK('TA Indicator Bank'!AA281),\"\",'TA Indicator Bank'!AA281)","v":""},{"$f":"IF(ISBLANK('TA Indicator Bank'!AB281),\"\",'TA Indicator Bank'!AB281)","v":""},{"$f":"IF(ISBLANK('TA Indicator Bank'!AC281),\"\",'TA Indicator Bank'!AC281)","v":""},{"$f":"IF(ISBLANK('TA Indicator Bank'!AD281),\"\",'TA Indicator Bank'!AD281)","v":""},{"$f":"IF(ISBLANK('TA Indicator Bank'!AE281),\"\",'TA Indicator Bank'!AE281)","v":""},{"$f":"IF(ISBLANK('TA Indicator Bank'!AF281),\"\",'TA Indicator Bank'!AF281)","v":""},{"$f":"IF(ISBLANK('TA Indicator Bank'!AG281),\"\",'TA Indicator Bank'!AG281)","v":""},{"$f":"IF(ISBLANK('TA Indicator Bank'!AH281),\"\",'TA Indicator Bank'!AH281)","v":""},{"$f":"IF(ISBLANK('TA Indicator Bank'!AI281),\"\",'TA Indicator Bank'!AI281)","v":""},{"$f":"IF(ISBLANK('TA Indicator Bank'!AJ281),\"\",'TA Indicator Bank'!AJ281)","v":""},{"$f":"IF(ISBLANK('TA Indicator Bank'!AK281),\"\",'TA Indicator Bank'!AK281)","v":""},{"$f":"IF(ISBLANK('TA Indicator Bank'!AL281),\"\",'TA Indicator Bank'!AL281)","v":""},{"$f":"IF(ISBLANK('TA Indicator Bank'!AM281),\"\",'TA Indicator Bank'!AM281)","v":""},{"$f":"IF(ISBLANK('TA Indicator Bank'!AN281),\"\",'TA Indicator Bank'!AN281)","v":""},{"$f":"IF(ISBLANK('TA Indicator Bank'!AO281),\"\",'TA Indicator Bank'!AO281)","v":""},{"$f":"IF(ISBLANK('TA Indicator Bank'!AP281),\"\",'TA Indicator Bank'!AP281)","v":""},{"$f":"IF(ISBLANK('TA Indicator Bank'!AQ281),\"\",'TA Indicator Bank'!AQ281)","v":""},{"$f":"IF(ISBLANK('TA Indicator Bank'!AR281),\"\",'TA Indicator Bank'!AR281)","v":""},{"$f":"IF(ISBLANK('TA Indicator Bank'!AS281),\"\",'TA Indicator Bank'!AS281)","v":""},{"$f":"IF(ISBLANK('TA Indicator Bank'!AT281),\"\",'TA Indicator Bank'!AT281)","v":""},0,0,0,0,0,0,0,0,0,0,0,0,0,0,1,0,0,0,0,0,0,0,0,0,1,0,0,0,0,0,0,0,0,0,1,0,0,0,0,0,1,1,277,277,"",{"$f":"IFERROR(INDEX($B$9:$I$408,$CM428,COLUMNS($CN$9:CN428)),\"\")","v":""},{"$f":"IFERROR(INDEX($B$9:$I$408,$CM428,COLUMNS($CN$9:CO428)),\"\")","v":""},{"$f":"IFERROR(INDEX($B$9:$I$408,$CM428,COLUMNS($CN$9:CP428)),\"\")","v":""},{"$f":"IFERROR(INDEX($B$9:$I$408,$CM428,COLUMNS($CN$9:CQ428)),\"\")","v":""},{"$f":"IFERROR(INDEX($B$9:$I$408,$CM428,COLUMNS($CN$9:CR428)),\"\")","v":""},{"$f":"IFERROR(INDEX($B$9:$I$408,$CM428,COLUMNS($CN$9:CS428)),\"\")","v":""},{"$f":"IFERROR(INDEX($B$9:$I$408,$CM428,COLUMNS($CN$9:CT428)),\"\")","v":""},{"$f":"IFERROR(INDEX($B$9:$I$408,$CM428,COLUMNS($CN$9:CU428)),\"\")","v":""}]
[null,{"$f":"IF(ISBLANK('TA Indicator Bank'!B282),\"\",'TA Indicator Bank'!B282)","v":""},{"$f":"IF(ISBLANK('TA Indicator Bank'!C282),\"\",'TA Indicator Bank'!C282)","v":""},{"$f":"IF(ISBLANK('TA Indicator Bank'!D282),\"\",'TA Indicator Bank'!D282)","v":""},{"$f":"IF(ISBLANK('TA Indicator Bank'!E282),\"\",'TA Indicator Bank'!E282)","v":""},{"$f":"IF(ISBLANK('TA Indicator Bank'!F282),\"\",'TA Indicator Bank'!F282)","v":""},{"$f":"IF(ISBLANK('TA Indicator Bank'!G282),\"\",'TA Indicator Bank'!G282)","v":""},{"$f":"IF(ISBLANK('TA Indicator Bank'!H282),\"\",'TA Indicator Bank'!H282)","v":""},{"$f":"IF(ISBLANK('TA Indicator Bank'!I282),\"\",'TA Indicator Bank'!I282)","v":""},{"$f":"IF(ISBLANK('TA Indicator Bank'!J282),\"\",'TA Indicator Bank'!J282)","v":""},{"$f":"IF(ISBLANK('TA Indicator Bank'!K282),\"\",'TA Indicator Bank'!K282)","v":""},{"$f":"IF(ISBLANK('TA Indicator Bank'!L282),\"\",'TA Indicator Bank'!L282)","v":""},{"$f":"IF(ISBLANK('TA Indicator Bank'!M282),\"\",'TA Indicator Bank'!M282)","v":""},{"$f":"IF(ISBLANK('TA Indicator Bank'!N282),\"\",'TA Indicator Bank'!N282)","v":""},{"$f":"IF(ISBLANK('TA Indicator Bank'!O282),\"\",'TA Indicator Bank'!O282)","v":""},{"$f":"IF(ISBLANK('TA Indicator Bank'!P282),\"\",'TA Indicator Bank'!P282)","v":""},{"$f":"IF(ISBLANK('TA Indicator Bank'!Q282),\"\",'TA Indicator Bank'!Q282)","v":""},{"$f":"IF(ISBLANK('TA Indicator Bank'!R282),\"\",'TA Indicator Bank'!R282)","v":""},{"$f":"IF(ISBLANK('TA Indicator Bank'!S282),\"\",'TA Indicator Bank'!S282)","v":""},{"$f":"IF(ISBLANK('TA Indicator Bank'!T282),\"\",'TA Indicator Bank'!T282)","v":""},{"$f":"IF(ISBLANK('TA Indicator Bank'!U282),\"\",'TA Indicator Bank'!U282)","v":""},{"$f":"IF(ISBLANK('TA Indicator Bank'!V282),\"\",'TA Indicator Bank'!V282)","v":""},{"$f":"IF(ISBLANK('TA Indicator Bank'!W282),\"\",'TA Indicator Bank'!W282)","v":""},{"$f":"IF(ISBLANK('TA Indicator Bank'!X282),\"\",'TA Indicator Bank'!X282)","v":""},{"$f":"IF(ISBLANK('TA Indicator Bank'!Y282),\"\",'TA Indicator Bank'!Y282)","v":""},{"$f":"IF(ISBLANK('TA Indicator Bank'!Z282),\"\",'TA Indicator Bank'!Z282)","v":""},{"$f":"IF(ISBLANK('TA Indicator Bank'!AA282),\"\",'TA Indicator Bank'!AA282)","v":""},{"$f":"IF(ISBLANK('TA Indicator Bank'!AB282),\"\",'TA Indicator Bank'!AB282)","v":""},{"$f":"IF(ISBLANK('TA Indicator Bank'!AC282),\"\",'TA Indicator Bank'!AC282)","v":""},{"$f":"IF(ISBLANK('TA Indicator Bank'!AD282),\"\",'TA Indicator Bank'!AD282)","v":""},{"$f":"IF(ISBLANK('TA Indicator Bank'!AE282),\"\",'TA Indicator Bank'!AE282)","v":""},{"$f":"IF(ISBLANK('TA Indicator Bank'!AF282),\"\",'TA Indicator Bank'!AF282)","v":""},{"$f":"IF(ISBLANK('TA Indicator Bank'!AG282),\"\",'TA Indicator Bank'!AG282)","v":""},{"$f":"IF(ISBLANK('TA Indicator Bank'!AH282),\"\",'TA Indicator Bank'!AH282)","v":""},{"$f":"IF(ISBLANK('TA Indicator Bank'!AI282),\"\",'TA Indicator Bank'!AI282)","v":""},{"$f":"IF(ISBLANK('TA Indicator Bank'!AJ282),\"\",'TA Indicator Bank'!AJ282)","v":""},{"$f":"IF(ISBLANK('TA Indicator Bank'!AK282),\"\",'TA Indicator Bank'!AK282)","v":""},{"$f":"IF(ISBLANK('TA Indicator Bank'!AL282),\"\",'TA Indicator Bank'!AL282)","v":""},{"$f":"IF(ISBLANK('TA Indicator Bank'!AM282),\"\",'TA Indicator Bank'!AM282)","v":""},{"$f":"IF(ISBLANK('TA Indicator Bank'!AN282),\"\",'TA Indicator Bank'!AN282)","v":""},{"$f":"IF(ISBLANK('TA Indicator Bank'!AO282),\"\",'TA Indicator Bank'!AO282)","v":""},{"$f":"IF(ISBLANK('TA Indicator Bank'!AP282),\"\",'TA Indicator Bank'!AP282)","v":""},{"$f":"IF(ISBLANK('TA Indicator Bank'!AQ282),\"\",'TA Indicator Bank'!AQ282)","v":""},{"$f":"IF(ISBLANK('TA Indicator Bank'!AR282),\"\",'TA Indicator Bank'!AR282)","v":""},{"$f":"IF(ISBLANK('TA Indicator Bank'!AS282),\"\",'TA Indicator Bank'!AS282)","v":""},{"$f":"IF(ISBLANK('TA Indicator Bank'!AT282),\"\",'TA Indicator Bank'!AT282)","v":""},0,0,0,0,0,0,0,0,0,0,0,0,0,0,1,0,0,0,0,0,0,0,0,0,1,0,0,0,0,0,0,0,0,0,1,0,0,0,0,0,1,1,278,278,"",{"$f":"IFERROR(INDEX($B$9:$I$408,$CM429,COLUMNS($CN$9:CN429)),\"\")","v":""},{"$f":"IFERROR(INDEX($B$9:$I$408,$CM429,COLUMNS($CN$9:CO429)),\"\")","v":""},{"$f":"IFERROR(INDEX($B$9:$I$408,$CM429,COLUMNS($CN$9:CP429)),\"\")","v":""},{"$f":"IFERROR(INDEX($B$9:$I$408,$CM429,COLUMNS($CN$9:CQ429)),\"\")","v":""},{"$f":"IFERROR(INDEX($B$9:$I$408,$CM429,COLUMNS($CN$9:CR429)),\"\")","v":""},{"$f":"IFERROR(INDEX($B$9:$I$408,$CM429,COLUMNS($CN$9:CS429)),\"\")","v":""},{"$f":"IFERROR(INDEX($B$9:$I$408,$CM429,COLUMNS($CN$9:CT429)),\"\")","v":""},{"$f":"IFERROR(INDEX($B$9:$I$408,$CM429,COLUMNS($CN$9:CU429)),\"\")","v":""}]
[null,{"$f":"IF(ISBLANK('TA Indicator Bank'!B283),\"\",'TA Indicator Bank'!B283)","v":""},{"$f":"IF(ISBLANK('TA Indicator Bank'!C283),\"\",'TA Indicator Bank'!C283)","v":""},{"$f":"IF(ISBLANK('TA Indicator Bank'!D283),\"\",'TA Indicator Bank'!D283)","v":""},{"$f":"IF(ISBLANK('TA Indicator Bank'!E283),\"\",'TA Indicator Bank'!E283)","v":""},{"$f":"IF(ISBLANK('TA Indicator Bank'!F283),\"\",'TA Indicator Bank'!F283)","v":""},{"$f":"IF(ISBLANK('TA Indicator Bank'!G283),\"\",'TA Indicator Bank'!G283)","v":""},{"$f":"IF(ISBLANK('TA Indicator Bank'!H283),\"\",'TA Indicator Bank'!H283)","v":""},{"$f":"IF(ISBLANK('TA Indicator Bank'!I283),\"\",'TA Indicator Bank'!I283)","v":""},{"$f":"IF(ISBLANK('TA Indicator Bank'!J283),\"\",'TA Indicator Bank'!J283)","v":""},{"$f":"IF(ISBLANK('TA Indicator Bank'!K283),\"\",'TA Indicator Bank'!K283)","v":""},{"$f":"IF(ISBLANK('TA Indicator Bank'!L283),\"\",'TA Indicator Bank'!L283)","v":""},{"$f":"IF(ISBLANK('TA Indicator Bank'!M283),\"\",'TA Indicator Bank'!M283)","v":""},{"$f":"IF(ISBLANK('TA Indicator Bank'!N283),\"\",'TA Indicator Bank'!N283)","v":""},{"$f":"IF(ISBLANK('TA Indicator Bank'!O283),\"\",'TA Indicator Bank'!O283)","v":""},{"$f":"IF(ISBLANK('TA Indicator Bank'!P283),\"\",'TA Indicator Bank'!P283)","v":""},{"$f":"IF(ISBLANK('TA Indicator Bank'!Q283),\"\",'TA Indicator Bank'!Q283)","v":""},{"$f":"IF(ISBLANK('TA Indicator Bank'!R283),\"\",'TA Indicator Bank'!R283)","v":""},{"$f":"IF(ISBLANK('TA Indicator Bank'!S283),\"\",'TA Indicator Bank'!S283)","v":""},{"$f":"IF(ISBLANK('TA Indicator Bank'!T283),\"\",'TA Indicator Bank'!T283)","v":""},{"$f":"IF(ISBLANK('TA Indicator Bank'!U283),\"\",'TA Indicator Bank'!U283)","v":""},{"$f":"IF(ISBLANK('TA Indicator Bank'!V283),\"\",'TA Indicator Bank'!V283)","v":""},{"$f":"IF(ISBLANK('TA Indicator Bank'!W283),\"\",'TA Indicator Bank'!W283)","v":""},{"$f":"IF(ISBLANK('TA Indicator Bank'!X283),\"\",'TA Indicator Bank'!X283)","v":""},{"$f":"IF(ISBLANK('TA Indicator Bank'!Y283),\"\",'TA Indicator Bank'!Y283)","v":""},{"$f":"IF(ISBLANK('TA Indicator Bank'!Z283),\"\",'TA Indicator Bank'!Z283)","v":""},{"$f":"IF(ISBLANK('TA Indicator Bank'!AA283),\"\",'TA Indicator Bank'!AA283)","v":""},{"$f":"IF(ISBLANK('TA Indicator Bank'!AB283),\"\",'TA Indicator Bank'!AB283)","v":""},{"$f":"IF(ISBLANK('TA Indicator Bank'!AC283),\"\",'TA Indicator Bank'!AC283)","v":""},{"$f":"IF(ISBLANK('TA Indicator Bank'!AD283),\"\",'TA Indicator Bank'!AD283)","v":""},{"$f":"IF(ISBLANK('TA Indicator Bank'!AE283),\"\",'TA Indicator Bank'!AE283)","v":""},{"$f":"IF(ISBLANK('TA Indicator Bank'!AF283),\"\",'TA Indicator Bank'!AF283)","v":""},{"$f":"IF(ISBLANK('TA Indicator Bank'!AG283),\"\",'TA Indicator Bank'!AG283)","v":""},{"$f":"IF(ISBLANK('TA Indicator Bank'!AH283),\"\",'TA Indicator Bank'!AH283)","v":""},{"$f":"IF(ISBLANK('TA Indicator Bank'!AI283),\"\",'TA Indicator Bank'!AI283)","v":""},{"$f":"IF(ISBLANK('TA Indicator Bank'!AJ283),\"\",'TA Indicator Bank'!AJ283)","v":""},{"$f":"IF(ISBLANK('TA Indicator Bank'!AK283),\"\",'TA Indicator Bank'!AK283)","v":""},{"$f":"IF(ISBLANK('TA Indicator Bank'!AL283),\"\",'TA Indicator Bank'!AL283)","v":""},{"$f":"IF(ISBLANK('TA Indicator Bank'!AM283),\"\",'TA Indicator Bank'!AM283)","v":""},{"$f":"IF(ISBLANK('TA Indicator Bank'!AN283),\"\",'TA Indicator Bank'!AN283)","v":""},{"$f":"IF(ISBLANK('TA Indicator Bank'!AO283),\"\",'TA Indicator Bank'!AO283)","v":""},{"$f":"IF(ISBLANK('TA Indicator Bank'!AP283),\"\",'TA Indicator Bank'!AP283)","v":""},{"$f":"IF(ISBLANK('TA Indicator Bank'!AQ283),\"\",'TA Indicator Bank'!AQ283)","v":""},{"$f":"IF(ISBLANK('TA Indicator Bank'!AR283),\"\",'TA Indicator Bank'!AR283)","v":""},{"$f":"IF(ISBLANK('TA Indicator Bank'!AS283),\"\",'TA Indicator Bank'!AS283)","v":""},{"$f":"IF(ISBLANK('TA Indicator Bank'!AT283),\"\",'TA Indicator Bank'!AT283)","v":""},0,0,0,0,0,0,0,0,0,0,0,0,0,0,1,0,0,0,0,0,0,0,0,0,1,0,0,0,0,0,0,0,0,0,1,0,0,0,0,0,1,1,279,279,"",{"$f":"IFERROR(INDEX($B$9:$I$408,$CM430,COLUMNS($CN$9:CN430)),\"\")","v":""},{"$f":"IFERROR(INDEX($B$9:$I$408,$CM430,COLUMNS($CN$9:CO430)),\"\")","v":""},{"$f":"IFERROR(INDEX($B$9:$I$408,$CM430,COLUMNS($CN$9:CP430)),\"\")","v":""},{"$f":"IFERROR(INDEX($B$9:$I$408,$CM430,COLUMNS($CN$9:CQ430)),\"\")","v":""},{"$f":"IFERROR(INDEX($B$9:$I$408,$CM430,COLUMNS($CN$9:CR430)),\"\")","v":""},{"$f":"IFERROR(INDEX($B$9:$I$408,$CM430,COLUMNS($CN$9:CS430)),\"\")","v":""},{"$f":"IFERROR(INDEX($B$9:$I$408,$CM430,COLUMNS($CN$9:CT430)),\"\")","v":""},{"$f":"IFERROR(INDEX($B$9:$I$408,$CM430,COLUMNS($CN$9:CU430)),\"\")","v":""}]
[null,{"$f":"IF(ISBLANK('TA Indicator Bank'!B284),\"\",'TA Indicator Bank'!B284)","v":""},{"$f":"IF(ISBLANK('TA Indicator Bank'!C284),\"\",'TA Indicator Bank'!C284)","v":""},{"$f":"IF(ISBLANK('TA Indicator Bank'!D284),\"\",'TA Indicator Bank'!D284)","v":""},{"$f":"IF(ISBLANK('TA Indicator Bank'!E284),\"\",'TA Indicator Bank'!E284)","v":""},{"$f":"IF(ISBLANK('TA Indicator Bank'!F284),\"\",'TA Indicator Bank'!F284)","v":""},{"$f":"IF(ISBLANK('TA Indicator Bank'!G284),\"\",'TA Indicator Bank'!G284)","v":""},{"$f":"IF(ISBLANK('TA Indicator Bank'!H284),\"\",'TA Indicator Bank'!H284)","v":""},{"$f":"IF(ISBLANK('TA Indicator Bank'!I284),\"\",'TA Indicator Bank'!I284)","v":""},{"$f":"IF(ISBLANK('TA Indicator Bank'!J284),\"\",'TA Indicator Bank'!J284)","v":""},{"$f":"IF(ISBLANK('TA Indicator Bank'!K284),\"\",'TA Indicator Bank'!K284)","v":""},{"$f":"IF(ISBLANK('TA Indicator Bank'!L284),\"\",'TA Indicator Bank'!L284)","v":""},{"$f":"IF(ISBLANK('TA Indicator Bank'!M284),\"\",'TA Indicator Bank'!M284)","v":""},{"$f":"IF(ISBLANK('TA Indicator Bank'!N284),\"\",'TA Indicator Bank'!N284)","v":""},{"$f":"IF(ISBLANK('TA Indicator Bank'!O284),\"\",'TA Indicator Bank'!O284)","v":""},{"$f":"IF(ISBLANK('TA Indicator Bank'!P284),\"\",'TA Indicator Bank'!P284)","v":""},{"$f":"IF(ISBLANK('TA Indicator Bank'!Q284),\"\",'TA Indicator Bank'!Q284)","v":""},{"$f":"IF(ISBLANK('TA Indicator Bank'!R284),\"\",'TA Indicator Bank'!R284)","v":""},{"$f":"IF(ISBLANK('TA Indicator Bank'!S284),\"\",'TA Indicator Bank'!S284)","v":""},{"$f":"IF(ISBLANK('TA Indicator Bank'!T284),\"\",'TA Indicator Bank'!T284)","v":""},{"$f":"IF(ISBLANK('TA Indicator Bank'!U284),\"\",'TA Indicator Bank'!U284)","v":""},{"$f":"IF(ISBLANK('TA Indicator Bank'!V284),\"\",'TA Indicator Bank'!V284)","v":""},{"$f":"IF(ISBLANK('TA Indicator Bank'!W284),\"\",'TA Indicator Bank'!W284)","v":""},{"$f":"IF(ISBLANK('TA Indicator Bank'!X284),\"\",'TA Indicator Bank'!X284)","v":""},{"$f":"IF(ISBLANK('TA Indicator Bank'!Y284),\"\",'TA Indicator Bank'!Y284)","v":""},{"$f":"IF(ISBLANK('TA Indicator Bank'!Z284),\"\",'TA Indicator Bank'!Z284)","v":""},{"$f":"IF(ISBLANK('TA Indicator Bank'!AA284),\"\",'TA Indicator Bank'!AA284)","v":""},{"$f":"IF(ISBLANK('TA Indicator Bank'!AB284),\"\",'TA Indicator Bank'!AB284)","v":""},{"$f":"IF(ISBLANK('TA Indicator Bank'!AC284),\"\",'TA Indicator Bank'!AC284)","v":""},{"$f":"IF(ISBLANK('TA Indicator Bank'!AD284),\"\",'TA Indicator Bank'!AD284)","v":""},{"$f":"IF(ISBLANK('TA Indicator Bank'!AE284),\"\",'TA Indicator Bank'!AE284)","v":""},{"$f":"IF(ISBLANK('TA Indicator Bank'!AF284),\"\",'TA Indicator Bank'!AF284)","v":""},{"$f":"IF(ISBLANK('TA Indicator Bank'!AG284),\"\",'TA Indicator Bank'!AG284)","v":""},{"$f":"IF(ISBLANK('TA Indicator Bank'!AH284),\"\",'TA Indicator Bank'!AH284)","v":""},{"$f":"IF(ISBLANK('TA Indicator Bank'!AI284),\"\",'TA Indicator Bank'!AI284)","v":""},{"$f":"IF(ISBLANK('TA Indicator Bank'!AJ284),\"\",'TA Indicator Bank'!AJ284)","v":""},{"$f":"IF(ISBLANK('TA Indicator Bank'!AK284),\"\",'TA Indicator Bank'!AK284)","v":""},{"$f":"IF(ISBLANK('TA Indicator Bank'!AL284),\"\",'TA Indicator Bank'!AL284)","v":""},{"$f":"IF(ISBLANK('TA Indicator Bank'!AM284),\"\",'TA Indicator Bank'!AM284)","v":""},{"$f":"IF(ISBLANK('TA Indicator Bank'!AN284),\"\",'TA Indicator Bank'!AN284)","v":""},{"$f":"IF(ISBLANK('TA Indicator Bank'!AO284),\"\",'TA Indicator Bank'!AO284)","v":""},{"$f":"IF(ISBLANK('TA Indicator Bank'!AP284),\"\",'TA Indicator Bank'!AP284)","v":""},{"$f":"IF(ISBLANK('TA Indicator Bank'!AQ284),\"\",'TA Indicator Bank'!AQ284)","v":""},{"$f":"IF(ISBLANK('TA Indicator Bank'!AR284),\"\",'TA Indicator Bank'!AR284)","v":""},{"$f":"IF(ISBLANK('TA Indicator Bank'!AS284),\"\",'TA Indicator Bank'!AS284)","v":""},{"$f":"IF(ISBLANK('TA Indicator Bank'!AT284),\"\",'TA Indicator Bank'!AT284)","v":""},0,0,0,0,0,0,0,0,0,0,0,0,0,0,1,0,0,0,0,0,0,0,0,0,1,0,0,0,0,0,0,0,0,0,1,0,0,0,0,0,1,1,280,280,"",{"$f":"IFERROR(INDEX($B$9:$I$408,$CM431,COLUMNS($CN$9:CN431)),\"\")","v":""},{"$f":"IFERROR(INDEX($B$9:$I$408,$CM431,COLUMNS($CN$9:CO431)),\"\")","v":""},{"$f":"IFERROR(INDEX($B$9:$I$408,$CM431,COLUMNS($CN$9:CP431)),\"\")","v":""},{"$f":"IFERROR(INDEX($B$9:$I$408,$CM431,COLUMNS($CN$9:CQ431)),\"\")","v":""},{"$f":"IFERROR(INDEX($B$9:$I$408,$CM431,COLUMNS($CN$9:CR431)),\"\")","v":""},{"$f":"IFERROR(INDEX($B$9:$I$408,$CM431,COLUMNS($CN$9:CS431)),\"\")","v":""},{"$f":"IFERROR(INDEX($B$9:$I$408,$CM431,COLUMNS($CN$9:CT431)),\"\")","v":""},{"$f":"IFERROR(INDEX($B$9:$I$408,$CM431,COLUMNS($CN$9:CU431)),\"\")","v":""}]
[null,{"$f":"IF(ISBLANK('TA Indicator Bank'!B285),\"\",'TA Indicator Bank'!B285)","v":""},{"$f":"IF(ISBLANK('TA Indicator Bank'!C285),\"\",'TA Indicator Bank'!C285)","v":""},{"$f":"IF(ISBLANK('TA Indicator Bank'!D285),\"\",'TA Indicator Bank'!D285)","v":""},{"$f":"IF(ISBLANK('TA Indicator Bank'!E285),\"\",'TA Indicator Bank'!E285)","v":""},{"$f":"IF(ISBLANK('TA Indicator Bank'!F285),\"\",'TA Indicator Bank'!F285)","v":""},{"$f":"IF(ISBLANK('TA Indicator Bank'!G285),\"\",'TA Indicator Bank'!G285)","v":""},{"$f":"IF(ISBLANK('TA Indicator Bank'!H285),\"\",'TA Indicator Bank'!H285)","v":""},{"$f":"IF(ISBLANK('TA Indicator Bank'!I285),\"\",'TA Indicator Bank'!I285)","v":""},{"$f":"IF(ISBLANK('TA Indicator Bank'!J285),\"\",'TA Indicator Bank'!J285)","v":""},{"$f":"IF(ISBLANK('TA Indicator Bank'!K285),\"\",'TA Indicator Bank'!K285)","v":""},{"$f":"IF(ISBLANK('TA Indicator Bank'!L285),\"\",'TA Indicator Bank'!L285)","v":""},{"$f":"IF(ISBLANK('TA Indicator Bank'!M285),\"\",'TA Indicator Bank'!M285)","v":""},{"$f":"IF(ISBLANK('TA Indicator Bank'!N285),\"\",'TA Indicator Bank'!N285)","v":""},{"$f":"IF(ISBLANK('TA Indicator Bank'!O285),\"\",'TA Indicator Bank'!O285)","v":""},{"$f":"IF(ISBLANK('TA Indicator Bank'!P285),\"\",'TA Indicator Bank'!P285)","v":""},{"$f":"IF(ISBLANK('TA Indicator Bank'!Q285),\"\",'TA Indicator Bank'!Q285)","v":""},{"$f":"IF(ISBLANK('TA Indicator Bank'!R285),\"\",'TA Indicator Bank'!R285)","v":""},{"$f":"IF(ISBLANK('TA Indicator Bank'!S285),\"\",'TA Indicator Bank'!S285)","v":""},{"$f":"IF(ISBLANK('TA Indicator Bank'!T285),\"\",'TA Indicator Bank'!T285)","v":""},{"$f":"IF(ISBLANK('TA Indicator Bank'!U285),\"\",'TA Indicator Bank'!U285)","v":""},{"$f":"IF(ISBLANK('TA Indicator Bank'!V285),\"\",'TA Indicator Bank'!V285)","v":""},{"$f":"IF(ISBLANK('TA Indicator Bank'!W285),\"\",'TA Indicator Bank'!W285)","v":""},{"$f":"IF(ISBLANK('TA Indicator Bank'!X285),\"\",'TA Indicator Bank'!X285)","v":""},{"$f":"IF(ISBLANK('TA Indicator Bank'!Y285),\"\",'TA Indicator Bank'!Y285)","v":""},{"$f":"IF(ISBLANK('TA Indicator Bank'!Z285),\"\",'TA Indicator Bank'!Z285)","v":""},{"$f":"IF(ISBLANK('TA Indicator Bank'!AA285),\"\",'TA Indicator Bank'!AA285)","v":""},{"$f":"IF(ISBLANK('TA Indicator Bank'!AB285),\"\",'TA Indicator Bank'!AB285)","v":""},{"$f":"IF(ISBLANK('TA Indicator Bank'!AC285),\"\",'TA Indicator Bank'!AC285)","v":""},{"$f":"IF(ISBLANK('TA Indicator Bank'!AD285),\"\",'TA Indicator Bank'!AD285)","v":""},{"$f":"IF(ISBLANK('TA Indicator Bank'!AE285),\"\",'TA Indicator Bank'!AE285)","v":""},{"$f":"IF(ISBLANK('TA Indicator Bank'!AF285),\"\",'TA Indicator Bank'!AF285)","v":""},{"$f":"IF(ISBLANK('TA Indicator Bank'!AG285),\"\",'TA Indicator Bank'!AG285)","v":""},{"$f":"IF(ISBLANK('TA Indicator Bank'!AH285),\"\",'TA Indicator Bank'!AH285)","v":""},{"$f":"IF(ISBLANK('TA Indicator Bank'!AI285),\"\",'TA Indicator Bank'!AI285)","v":""},{"$f":"IF(ISBLANK('TA Indicator Bank'!AJ285),\"\",'TA Indicator Bank'!AJ285)","v":""},{"$f":"IF(ISBLANK('TA Indicator Bank'!AK285),\"\",'TA Indicator Bank'!AK285)","v":""},{"$f":"IF(ISBLANK('TA Indicator Bank'!AL285),\"\",'TA Indicator Bank'!AL285)","v":""},{"$f":"IF(ISBLANK('TA Indicator Bank'!AM285),\"\",'TA Indicator Bank'!AM285)","v":""},{"$f":"IF(ISBLANK('TA Indicator Bank'!AN285),\"\",'TA Indicator Bank'!AN285)","v":""},{"$f":"IF(ISBLANK('TA Indicator Bank'!AO285),\"\",'TA Indicator Bank'!AO285)","v":""},{"$f":"IF(ISBLANK('TA Indicator Bank'!AP285),\"\",'TA Indicator Bank'!AP285)","v":""},{"$f":"IF(ISBLANK('TA Indicator Bank'!AQ285),\"\",'TA Indicator Bank'!AQ285)","v":""},{"$f":"IF(ISBLANK('TA Indicator Bank'!AR285),\"\",'TA Indicator Bank'!AR285)","v":""},{"$f":"IF(ISBLANK('TA Indicator Bank'!AS285),\"\",'TA Indicator Bank'!AS285)","v":""},{"$f":"IF(ISBLANK('TA Indicator Bank'!AT285),\"\",'TA Indicator Bank'!AT285)","v":""},0,0,0,0,0,0,0,0,0,0,0,0,0,0,1,0,0,0,0,0,0,0,0,0,1,0,0,0,0,0,0,0,0,0,1,0,0,0,0,0,1,1,281,281,"",{"$f":"IFERROR(INDEX($B$9:$I$408,$CM432,COLUMNS($CN$9:CN432)),\"\")","v":""},{"$f":"IFERROR(INDEX($B$9:$I$408,$CM432,COLUMNS($CN$9:CO432)),\"\")","v":""},{"$f":"IFERROR(INDEX($B$9:$I$408,$CM432,COLUMNS($CN$9:CP432)),\"\")","v":""},{"$f":"IFERROR(INDEX($B$9:$I$408,$CM432,COLUMNS($CN$9:CQ432)),\"\")","v":""},{"$f":"IFERROR(INDEX($B$9:$I$408,$CM432,COLUMNS($CN$9:CR432)),\"\")","v":""},{"$f":"IFERROR(INDEX($B$9:$I$408,$CM432,COLUMNS($CN$9:CS432)),\"\")","v":""},{"$f":"IFERROR(INDEX($B$9:$I$408,$CM432,COLUMNS($CN$9:CT432)),\"\")","v":""},{"$f":"IFERROR(INDEX($B$9:$I$408,$CM432,COLUMNS($CN$9:CU432)),\"\")","v":""}]
[null,{"$f":"IF(ISBLANK('TA Indicator Bank'!B286),\"\",'TA Indicator Bank'!B286)","v":""},{"$f":"IF(ISBLANK('TA Indicator Bank'!C286),\"\",'TA Indicator Bank'!C286)","v":""},{"$f":"IF(ISBLANK('TA Indicator Bank'!D286),\"\",'TA Indicator Bank'!D286)","v":""},{"$f":"IF(ISBLANK('TA Indicator Bank'!E286),\"\",'TA Indicator Bank'!E286)","v":""},{"$f":"IF(ISBLANK('TA Indicator Bank'!F286),\"\",'TA Indicator Bank'!F286)","v":""},{"$f":"IF(ISBLANK('TA Indicator Bank'!G286),\"\",'TA Indicator Bank'!G286)","v":""},{"$f":"IF(ISBLANK('TA Indicator Bank'!H286),\"\",'TA Indicator Bank'!H286)","v":""},{"$f":"IF(ISBLANK('TA Indicator Bank'!I286),\"\",'TA Indicator Bank'!I286)","v":""},{"$f":"IF(ISBLANK('TA Indicator Bank'!J286),\"\",'TA Indicator Bank'!J286)","v":""},{"$f":"IF(ISBLANK('TA Indicator Bank'!K286),\"\",'TA Indicator Bank'!K286)","v":""},{"$f":"IF(ISBLANK('TA Indicator Bank'!L286),\"\",'TA Indicator Bank'!L286)","v":""},{"$f":"IF(ISBLANK('TA Indicator Bank'!M286),\"\",'TA Indicator Bank'!M286)","v":""},{"$f":"IF(ISBLANK('TA Indicator Bank'!N286),\"\",'TA Indicator Bank'!N286)","v":""},{"$f":"IF(ISBLANK('TA Indicator Bank'!O286),\"\",'TA Indicator Bank'!O286)","v":""},{"$f":"IF(ISBLANK('TA Indicator Bank'!P286),\"\",'TA Indicator Bank'!P286)","v":""},{"$f":"IF(ISBLANK('TA Indicator Bank'!Q286),\"\",'TA Indicator Bank'!Q286)","v":""},{"$f":"IF(ISBLANK('TA Indicator Bank'!R286),\"\",'TA Indicator Bank'!R286)","v":""},{"$f":"IF(ISBLANK('TA Indicator Bank'!S286),\"\",'TA Indicator Bank'!S286)","v":""},{"$f":"IF(ISBLANK('TA Indicator Bank'!T286),\"\",'TA Indicator Bank'!T286)","v":""},{"$f":"IF(ISBLANK('TA Indicator Bank'!U286),\"\",'TA Indicator Bank'!U286)","v":""},{"$f":"IF(ISBLANK('TA Indicator Bank'!V286),\"\",'TA Indicator Bank'!V286)","v":""},{"$f":"IF(ISBLANK('TA Indicator Bank'!W286),\"\",'TA Indicator Bank'!W286)","v":""},{"$f":"IF(ISBLANK('TA Indicator Bank'!X286),\"\",'TA Indicator Bank'!X286)","v":""},{"$f":"IF(ISBLANK('TA Indicator Bank'!Y286),\"\",'TA Indicator Bank'!Y286)","v":""},{"$f":"IF(ISBLANK('TA Indicator Bank'!Z286),\"\",'TA Indicator Bank'!Z286)","v":""},{"$f":"IF(ISBLANK('TA Indicator Bank'!AA286),\"\",'TA Indicator Bank'!AA286)","v":""},{"$f":"IF(ISBLANK('TA Indicator Bank'!AB286),\"\",'TA Indicator Bank'!AB286)","v":""},{"$f":"IF(ISBLANK('TA Indicator Bank'!AC286),\"\",'TA Indicator Bank'!AC286)","v":""},{"$f":"IF(ISBLANK('TA Indicator Bank'!AD286),\"\",'TA Indicator Bank'!AD286)","v":""},{"$f":"IF(ISBLANK('TA Indicator Bank'!AE286),\"\",'TA Indicator Bank'!AE286)","v":""},{"$f":"IF(ISBLANK('TA Indicator Bank'!AF286),\"\",'TA Indicator Bank'!AF286)","v":""},{"$f":"IF(ISBLANK('TA Indicator Bank'!AG286),\"\",'TA Indicator Bank'!AG286)","v":""},{"$f":"IF(ISBLANK('TA Indicator Bank'!AH286),\"\",'TA Indicator Bank'!AH286)","v":""},{"$f":"IF(ISBLANK('TA Indicator Bank'!AI286),\"\",'TA Indicator Bank'!AI286)","v":""},{"$f":"IF(ISBLANK('TA Indicator Bank'!AJ286),\"\",'TA Indicator Bank'!AJ286)","v":""},{"$f":"IF(ISBLANK('TA Indicator Bank'!AK286),\"\",'TA Indicator Bank'!AK286)","v":""},{"$f":"IF(ISBLANK('TA Indicator Bank'!AL286),\"\",'TA Indicator Bank'!AL286)","v":""},{"$f":"IF(ISBLANK('TA Indicator Bank'!AM286),\"\",'TA Indicator Bank'!AM286)","v":""},{"$f":"IF(ISBLANK('TA Indicator Bank'!AN286),\"\",'TA Indicator Bank'!AN286)","v":""},{"$f":"IF(ISBLANK('TA Indicator Bank'!AO286),\"\",'TA Indicator Bank'!AO286)","v":""},{"$f":"IF(ISBLANK('TA Indicator Bank'!AP286),\"\",'TA Indicator Bank'!AP286)","v":""},{"$f":"IF(ISBLANK('TA Indicator Bank'!AQ286),\"\",'TA Indicator Bank'!AQ286)","v":""},{"$f":"IF(ISBLANK('TA Indicator Bank'!AR286),\"\",'TA Indicator Bank'!AR286)","v":""},{"$f":"IF(ISBLANK('TA Indicator Bank'!AS286),\"\",'TA Indicator Bank'!AS286)","v":""},{"$f":"IF(ISBLANK('TA Indicator Bank'!AT286),\"\",'TA Indicator Bank'!AT286)","v":""},0,0,0,0,0,0,0,0,0,0,0,0,0,0,1,0,0,0,0,0,0,0,0,0,1,0,0,0,0,0,0,0,0,0,1,0,0,0,0,0,1,1,282,282,"",{"$f":"IFERROR(INDEX($B$9:$I$408,$CM433,COLUMNS($CN$9:CN433)),\"\")","v":""},{"$f":"IFERROR(INDEX($B$9:$I$408,$CM433,COLUMNS($CN$9:CO433)),\"\")","v":""},{"$f":"IFERROR(INDEX($B$9:$I$408,$CM433,COLUMNS($CN$9:CP433)),\"\")","v":""},{"$f":"IFERROR(INDEX($B$9:$I$408,$CM433,COLUMNS($CN$9:CQ433)),\"\")","v":""},{"$f":"IFERROR(INDEX($B$9:$I$408,$CM433,COLUMNS($CN$9:CR433)),\"\")","v":""},{"$f":"IFERROR(INDEX($B$9:$I$408,$CM433,COLUMNS($CN$9:CS433)),\"\")","v":""},{"$f":"IFERROR(INDEX($B$9:$I$408,$CM433,COLUMNS($CN$9:CT433)),\"\")","v":""},{"$f":"IFERROR(INDEX($B$9:$I$408,$CM433,COLUMNS($CN$9:CU433)),\"\")","v":""}]
[null,{"$f":"IF(ISBLANK('TA Indicator Bank'!B287),\"\",'TA Indicator Bank'!B287)","v":""},{"$f":"IF(ISBLANK('TA Indicator Bank'!C287),\"\",'TA Indicator Bank'!C287)","v":""},{"$f":"IF(ISBLANK('TA Indicator Bank'!D287),\"\",'TA Indicator Bank'!D287)","v":""},{"$f":"IF(ISBLANK('TA Indicator Bank'!E287),\"\",'TA Indicator Bank'!E287)","v":""},{"$f":"IF(ISBLANK('TA Indicator Bank'!F287),\"\",'TA Indicator Bank'!F287)","v":""},{"$f":"IF(ISBLANK('TA Indicator Bank'!G287),\"\",'TA Indicator Bank'!G287)","v":""},{"$f":"IF(ISBLANK('TA Indicator Bank'!H287),\"\",'TA Indicator Bank'!H287)","v":""},{"$f":"IF(ISBLANK('TA Indicator Bank'!I287),\"\",'TA Indicator Bank'!I287)","v":""},{"$f":"IF(ISBLANK('TA Indicator Bank'!J287),\"\",'TA Indicator Bank'!J287)","v":""},{"$f":"IF(ISBLANK('TA Indicator Bank'!K287),\"\",'TA Indicator Bank'!K287)","v":""},{"$f":"IF(ISBLANK('TA Indicator Bank'!L287),\"\",'TA Indicator Bank'!L287)","v":""},{"$f":"IF(ISBLANK('TA Indicator Bank'!M287),\"\",'TA Indicator Bank'!M287)","v":""},{"$f":"IF(ISBLANK('TA Indicator Bank'!N287),\"\",'TA Indicator Bank'!N287)","v":""},{"$f":"IF(ISBLANK('TA Indicator Bank'!O287),\"\",'TA Indicator Bank'!O287)","v":""},{"$f":"IF(ISBLANK('TA Indicator Bank'!P287),\"\",'TA Indicator Bank'!P287)","v":""},{"$f":"IF(ISBLANK('TA Indicator Bank'!Q287),\"\",'TA Indicator Bank'!Q287)","v":""},{"$f":"IF(ISBLANK('TA Indicator Bank'!R287),\"\",'TA Indicator Bank'!R287)","v":""},{"$f":"IF(ISBLANK('TA Indicator Bank'!S287),\"\",'TA Indicator Bank'!S287)","v":""},{"$f":"IF(ISBLANK('TA Indicator Bank'!T287),\"\",'TA Indicator Bank'!T287)","v":""},{"$f":"IF(ISBLANK('TA Indicator Bank'!U287),\"\",'TA Indicator Bank'!U287)","v":""},{"$f":"IF(ISBLANK('TA Indicator Bank'!V287),\"\",'TA Indicator Bank'!V287)","v":""},{"$f":"IF(ISBLANK('TA Indicator Bank'!W287),\"\",'TA Indicator Bank'!W287)","v":""},{"$f":"IF(ISBLANK('TA Indicator Bank'!X287),\"\",'TA Indicator Bank'!X287)","v":""},{"$f":"IF(ISBLANK('TA Indicator Bank'!Y287),\"\",'TA Indicator Bank'!Y287)","v":""},{"$f":"IF(ISBLANK('TA Indicator Bank'!Z287),\"\",'TA Indicator Bank'!Z287)","v":""},{"$f":"IF(ISBLANK('TA Indicator Bank'!AA287),\"\",'TA Indicator Bank'!AA287)","v":""},{"$f":"IF(ISBLANK('TA Indicator Bank'!AB287),\"\",'TA Indicator Bank'!AB287)","v":""},{"$f":"IF(ISBLANK('TA Indicator Bank'!AC287),\"\",'TA Indicator Bank'!AC287)","v":""},{"$f":"IF(ISBLANK('TA Indicator Bank'!AD287),\"\",'TA Indicator Bank'!AD287)","v":""},{"$f":"IF(ISBLANK('TA Indicator Bank'!AE287),\"\",'TA Indicator Bank'!AE287)","v":""},{"$f":"IF(ISBLANK('TA Indicator Bank'!AF287),\"\",'TA Indicator Bank'!AF287)","v":""},{"$f":"IF(ISBLANK('TA Indicator Bank'!AG287),\"\",'TA Indicator Bank'!AG287)","v":""},{"$f":"IF(ISBLANK('TA Indicator Bank'!AH287),\"\",'TA Indicator Bank'!AH287)","v":""},{"$f":"IF(ISBLANK('TA Indicator Bank'!AI287),\"\",'TA Indicator Bank'!AI287)","v":""},{"$f":"IF(ISBLANK('TA Indicator Bank'!AJ287),\"\",'TA Indicator Bank'!AJ287)","v":""},{"$f":"IF(ISBLANK('TA Indicator Bank'!AK287),\"\",'TA Indicator Bank'!AK287)","v":""},{"$f":"IF(ISBLANK('TA Indicator Bank'!AL287),\"\",'TA Indicator Bank'!AL287)","v":""},{"$f":"IF(ISBLANK('TA Indicator Bank'!AM287),\"\",'TA Indicator Bank'!AM287)","v":""},{"$f":"IF(ISBLANK('TA Indicator Bank'!AN287),\"\",'TA Indicator Bank'!AN287)","v":""},{"$f":"IF(ISBLANK('TA Indicator Bank'!AO287),\"\",'TA Indicator Bank'!AO287)","v":""},{"$f":"IF(ISBLANK('TA Indicator Bank'!AP287),\"\",'TA Indicator Bank'!AP287)","v":""},{"$f":"IF(ISBLANK('TA Indicator Bank'!AQ287),\"\",'TA Indicator Bank'!AQ287)","v":""},{"$f":"IF(ISBLANK('TA Indicator Bank'!AR287),\"\",'TA Indicator Bank'!AR287)","v":""},{"$f":"IF(ISBLANK('TA Indicator Bank'!AS287),\"\",'TA Indicator Bank'!AS287)","v":""},{"$f":"IF(ISBLANK('TA Indicator Bank'!AT287),\"\",'TA Indicator Bank'!AT287)","v":""},0,0,0,0,0,0,0,0,0,0,0,0,0,0,1,0,0,0,0,0,0,0,0,0,1,0,0,0,0,0,0,0,0,0,1,0,0,0,0,0,1,1,283,283,"",{"$f":"IFERROR(INDEX($B$9:$I$408,$CM434,COLUMNS($CN$9:CN434)),\"\")","v":""},{"$f":"IFERROR(INDEX($B$9:$I$408,$CM434,COLUMNS($CN$9:CO434)),\"\")","v":""},{"$f":"IFERROR(INDEX($B$9:$I$408,$CM434,COLUMNS($CN$9:CP434)),\"\")","v":""},{"$f":"IFERROR(INDEX($B$9:$I$408,$CM434,COLUMNS($CN$9:CQ434)),\"\")","v":""},{"$f":"IFERROR(INDEX($B$9:$I$408,$CM434,COLUMNS($CN$9:CR434)),\"\")","v":""},{"$f":"IFERROR(INDEX($B$9:$I$408,$CM434,COLUMNS($CN$9:CS434)),\"\")","v":""},{"$f":"IFERROR(INDEX($B$9:$I$408,$CM434,COLUMNS($CN$9:CT434)),\"\")","v":""},{"$f":"IFERROR(INDEX($B$9:$I$408,$CM434,COLUMNS($CN$9:CU434)),\"\")","v":""}]
[null,{"$f":"IF(ISBLANK('TA Indicator Bank'!B288),\"\",'TA Indicator Bank'!B288)","v":""},{"$f":"IF(ISBLANK('TA Indicator Bank'!C288),\"\",'TA Indicator Bank'!C288)","v":""},{"$f":"IF(ISBLANK('TA Indicator Bank'!D288),\"\",'TA Indicator Bank'!D288)","v":""},{"$f":"IF(ISBLANK('TA Indicator Bank'!E288),\"\",'TA Indicator Bank'!E288)","v":""},{"$f":"IF(ISBLANK('TA Indicator Bank'!F288),\"\",'TA Indicator Bank'!F288)","v":""},{"$f":"IF(ISBLANK('TA Indicator Bank'!G288),\"\",'TA Indicator Bank'!G288)","v":""},{"$f":"IF(ISBLANK('TA Indicator Bank'!H288),\"\",'TA Indicator Bank'!H288)","v":""},{"$f":"IF(ISBLANK('TA Indicator Bank'!I288),\"\",'TA Indicator Bank'!I288)","v":""},{"$f":"IF(ISBLANK('TA Indicator Bank'!J288),\"\",'TA Indicator Bank'!J288)","v":""},{"$f":"IF(ISBLANK('TA Indicator Bank'!K288),\"\",'TA Indicator Bank'!K288)","v":""},{"$f":"IF(ISBLANK('TA Indicator Bank'!L288),\"\",'TA Indicator Bank'!L288)","v":""},{"$f":"IF(ISBLANK('TA Indicator Bank'!M288),\"\",'TA Indicator Bank'!M288)","v":""},{"$f":"IF(ISBLANK('TA Indicator Bank'!N288),\"\",'TA Indicator Bank'!N288)","v":""},{"$f":"IF(ISBLANK('TA Indicator Bank'!O288),\"\",'TA Indicator Bank'!O288)","v":""},{"$f":"IF(ISBLANK('TA Indicator Bank'!P288),\"\",'TA Indicator Bank'!P288)","v":""},{"$f":"IF(ISBLANK('TA Indicator Bank'!Q288),\"\",'TA Indicator Bank'!Q288)","v":""},{"$f":"IF(ISBLANK('TA Indicator Bank'!R288),\"\",'TA Indicator Bank'!R288)","v":""},{"$f":"IF(ISBLANK('TA Indicator Bank'!S288),\"\",'TA Indicator Bank'!S288)","v":""},{"$f":"IF(ISBLANK('TA Indicator Bank'!T288),\"\",'TA Indicator Bank'!T288)","v":""},{"$f":"IF(ISBLANK('TA Indicator Bank'!U288),\"\",'TA Indicator Bank'!U288)","v":""},{"$f":"IF(ISBLANK('TA Indicator Bank'!V288),\"\",'TA Indicator Bank'!V288)","v":""},{"$f":"IF(ISBLANK('TA Indicator Bank'!W288),\"\",'TA Indicator Bank'!W288)","v":""},{"$f":"IF(ISBLANK('TA Indicator Bank'!X288),\"\",'TA Indicator Bank'!X288)","v":""},{"$f":"IF(ISBLANK('TA Indicator Bank'!Y288),\"\",'TA Indicator Bank'!Y288)","v":""},{"$f":"IF(ISBLANK('TA Indicator Bank'!Z288),\"\",'TA Indicator Bank'!Z288)","v":""},{"$f":"IF(ISBLANK('TA Indicator Bank'!AA288),\"\",'TA Indicator Bank'!AA288)","v":""},{"$f":"IF(ISBLANK('TA Indicator Bank'!AB288),\"\",'TA Indicator Bank'!AB288)","v":""},{"$f":"IF(ISBLANK('TA Indicator Bank'!AC288),\"\",'TA Indicator Bank'!AC288)","v":""},{"$f":"IF(ISBLANK('TA Indicator Bank'!AD288),\"\",'TA Indicator Bank'!AD288)","v":""},{"$f":"IF(ISBLANK('TA Indicator Bank'!AE288),\"\",'TA Indicator Bank'!AE288)","v":""},{"$f":"IF(ISBLANK('TA Indicator Bank'!AF288),\"\",'TA Indicator Bank'!AF288)","v":""},{"$f":"IF(ISBLANK('TA Indicator Bank'!AG288),\"\",'TA Indicator Bank'!AG288)","v":""},{"$f":"IF(ISBLANK('TA Indicator Bank'!AH288),\"\",'TA Indicator Bank'!AH288)","v":""},{"$f":"IF(ISBLANK('TA Indicator Bank'!AI288),\"\",'TA Indicator Bank'!AI288)","v":""},{"$f":"IF(ISBLANK('TA Indicator Bank'!AJ288),\"\",'TA Indicator Bank'!AJ288)","v":""},{"$f":"IF(ISBLANK('TA Indicator Bank'!AK288),\"\",'TA Indicator Bank'!AK288)","v":""},{"$f":"IF(ISBLANK('TA Indicator Bank'!AL288),\"\",'TA Indicator Bank'!AL288)","v":""},{"$f":"IF(ISBLANK('TA Indicator Bank'!AM288),\"\",'TA Indicator Bank'!AM288)","v":""},{"$f":"IF(ISBLANK('TA Indicator Bank'!AN288),\"\",'TA Indicator Bank'!AN288)","v":""},{"$f":"IF(ISBLANK('TA Indicator Bank'!AO288),\"\",'TA Indicator Bank'!AO288)","v":""},{"$f":"IF(ISBLANK('TA Indicator Bank'!AP288),\"\",'TA Indicator Bank'!AP288)","v":""},{"$f":"IF(ISBLANK('TA Indicator Bank'!AQ288),\"\",'TA Indicator Bank'!AQ288)","v":""},{"$f":"IF(ISBLANK('TA Indicator Bank'!AR288),\"\",'TA Indicator Bank'!AR288)","v":""},{"$f":"IF(ISBLANK('TA Indicator Bank'!AS288),\"\",'TA Indicator Bank'!AS288)","v":""},{"$f":"IF(ISBLANK('TA Indicator Bank'!AT288),\"\",'TA Indicator Bank'!AT288)","v":""},0,0,0,0,0,0,0,0,0,0,0,0,0,0,1,0,0,0,0,0,0,0,0,0,1,0,0,0,0,0,0,0,0,0,1,0,0,0,0,0,1,1,284,284,"",{"$f":"IFERROR(INDEX($B$9:$I$408,$CM435,COLUMNS($CN$9:CN435)),\"\")","v":""},{"$f":"IFERROR(INDEX($B$9:$I$408,$CM435,COLUMNS($CN$9:CO435)),\"\")","v":""},{"$f":"IFERROR(INDEX($B$9:$I$408,$CM435,COLUMNS($CN$9:CP435)),\"\")","v":""},{"$f":"IFERROR(INDEX($B$9:$I$408,$CM435,COLUMNS($CN$9:CQ435)),\"\")","v":""},{"$f":"IFERROR(INDEX($B$9:$I$408,$CM435,COLUMNS($CN$9:CR435)),\"\")","v":""},{"$f":"IFERROR(INDEX($B$9:$I$408,$CM435,COLUMNS($CN$9:CS435)),\"\")","v":""},{"$f":"IFERROR(INDEX($B$9:$I$408,$CM435,COLUMNS($CN$9:CT435)),\"\")","v":""},{"$f":"IFERROR(INDEX($B$9:$I$408,$CM435,COLUMNS($CN$9:CU435)),\"\")","v":""}]
[null,{"$f":"IF(ISBLANK('TA Indicator Bank'!B289),\"\",'TA Indicator Bank'!B289)","v":""},{"$f":"IF(ISBLANK('TA Indicator Bank'!C289),\"\",'TA Indicator Bank'!C289)","v":""},{"$f":"IF(ISBLANK('TA Indicator Bank'!D289),\"\",'TA Indicator Bank'!D289)","v":""},{"$f":"IF(ISBLANK('TA Indicator Bank'!E289),\"\",'TA Indicator Bank'!E289)","v":""},{"$f":"IF(ISBLANK('TA Indicator Bank'!F289),\"\",'TA Indicator Bank'!F289)","v":""},{"$f":"IF(ISBLANK('TA Indicator Bank'!G289),\"\",'TA Indicator Bank'!G289)","v":""},{"$f":"IF(ISBLANK('TA Indicator Bank'!H289),\"\",'TA Indicator Bank'!H289)","v":""},{"$f":"IF(ISBLANK('TA Indicator Bank'!I289),\"\",'TA Indicator Bank'!I289)","v":""},{"$f":"IF(ISBLANK('TA Indicator Bank'!J289),\"\",'TA Indicator Bank'!J289)","v":""},{"$f":"IF(ISBLANK('TA Indicator Bank'!K289),\"\",'TA Indicator Bank'!K289)","v":""},{"$f":"IF(ISBLANK('TA Indicator Bank'!L289),\"\",'TA Indicator Bank'!L289)","v":""},{"$f":"IF(ISBLANK('TA Indicator Bank'!M289),\"\",'TA Indicator Bank'!M289)","v":""},{"$f":"IF(ISBLANK('TA Indicator Bank'!N289),\"\",'TA Indicator Bank'!N289)","v":""},{"$f":"IF(ISBLANK('TA Indicator Bank'!O289),\"\",'TA Indicator Bank'!O289)","v":""},{"$f":"IF(ISBLANK('TA Indicator Bank'!P289),\"\",'TA Indicator Bank'!P289)","v":""},{"$f":"IF(ISBLANK('TA Indicator Bank'!Q289),\"\",'TA Indicator Bank'!Q289)","v":""},{"$f":"IF(ISBLANK('TA Indicator Bank'!R289),\"\",'TA Indicator Bank'!R289)","v":""},{"$f":"IF(ISBLANK('TA Indicator Bank'!S289),\"\",'TA Indicator Bank'!S289)","v":""},{"$f":"IF(ISBLANK('TA Indicator Bank'!T289),\"\",'TA Indicator Bank'!T289)","v":""},{"$f":"IF(ISBLANK('TA Indicator Bank'!U289),\"\",'TA Indicator Bank'!U289)","v":""},{"$f":"IF(ISBLANK('TA Indicator Bank'!V289),\"\",'TA Indicator Bank'!V289)","v":""},{"$f":"IF(ISBLANK('TA Indicator Bank'!W289),\"\",'TA Indicator Bank'!W289)","v":""},{"$f":"IF(ISBLANK('TA Indicator Bank'!X289),\"\",'TA Indicator Bank'!X289)","v":""},{"$f":"IF(ISBLANK('TA Indicator Bank'!Y289),\"\",'TA Indicator Bank'!Y289)","v":""},{"$f":"IF(ISBLANK('TA Indicator Bank'!Z289),\"\",'TA Indicator Bank'!Z289)","v":""},{"$f":"IF(ISBLANK('TA Indicator Bank'!AA289),\"\",'TA Indicator Bank'!AA289)","v":""},{"$f":"IF(ISBLANK('TA Indicator Bank'!AB289),\"\",'TA Indicator Bank'!AB289)","v":""},{"$f":"IF(ISBLANK('TA Indicator Bank'!AC289),\"\",'TA Indicator Bank'!AC289)","v":""},{"$f":"IF(ISBLANK('TA Indicator Bank'!AD289),\"\",'TA Indicator Bank'!AD289)","v":""},{"$f":"IF(ISBLANK('TA Indicator Bank'!AE289),\"\",'TA Indicator Bank'!AE289)","v":""},{"$f":"IF(ISBLANK('TA Indicator Bank'!AF289),\"\",'TA Indicator Bank'!AF289)","v":""},{"$f":"IF(ISBLANK('TA Indicator Bank'!AG289),\"\",'TA Indicator Bank'!AG289)","v":""},{"$f":"IF(ISBLANK('TA Indicator Bank'!AH289),\"\",'TA Indicator Bank'!AH289)","v":""},{"$f":"IF(ISBLANK('TA Indicator Bank'!AI289),\"\",'TA Indicator Bank'!AI289)","v":""},{"$f":"IF(ISBLANK('TA Indicator Bank'!AJ289),\"\",'TA Indicator Bank'!AJ289)","v":""},{"$f":"IF(ISBLANK('TA Indicator Bank'!AK289),\"\",'TA Indicator Bank'!AK289)","v":""},{"$f":"IF(ISBLANK('TA Indicator Bank'!AL289),\"\",'TA Indicator Bank'!AL289)","v":""},{"$f":"IF(ISBLANK('TA Indicator Bank'!AM289),\"\",'TA Indicator Bank'!AM289)","v":""},{"$f":"IF(ISBLANK('TA Indicator Bank'!AN289),\"\",'TA Indicator Bank'!AN289)","v":""},{"$f":"IF(ISBLANK('TA Indicator Bank'!AO289),\"\",'TA Indicator Bank'!AO289)","v":""},{"$f":"IF(ISBLANK('TA Indicator Bank'!AP289),\"\",'TA Indicator Bank'!AP289)","v":""},{"$f":"IF(ISBLANK('TA Indicator Bank'!AQ289),\"\",'TA Indicator Bank'!AQ289)","v":""},{"$f":"IF(ISBLANK('TA Indicator Bank'!AR289),\"\",'TA Indicator Bank'!AR289)","v":""},{"$f":"IF(ISBLANK('TA Indicator Bank'!AS289),\"\",'TA Indicator Bank'!AS289)","v":""},{"$f":"IF(ISBLANK('TA Indicator Bank'!AT289),\"\",'TA Indicator Bank'!AT289)","v":""},0,0,0,0,0,0,0,0,0,0,0,0,0,0,1,0,0,0,0,0,0,0,0,0,1,0,0,0,0,0,0,0,0,0,1,0,0,0,0,0,1,1,285,285,"",{"$f":"IFERROR(INDEX($B$9:$I$408,$CM436,COLUMNS($CN$9:CN436)),\"\")","v":""},{"$f":"IFERROR(INDEX($B$9:$I$408,$CM436,COLUMNS($CN$9:CO436)),\"\")","v":""},{"$f":"IFERROR(INDEX($B$9:$I$408,$CM436,COLUMNS($CN$9:CP436)),\"\")","v":""},{"$f":"IFERROR(INDEX($B$9:$I$408,$CM436,COLUMNS($CN$9:CQ436)),\"\")","v":""},{"$f":"IFERROR(INDEX($B$9:$I$408,$CM436,COLUMNS($CN$9:CR436)),\"\")","v":""},{"$f":"IFERROR(INDEX($B$9:$I$408,$CM436,COLUMNS($CN$9:CS436)),\"\")","v":""},{"$f":"IFERROR(INDEX($B$9:$I$408,$CM436,COLUMNS($CN$9:CT436)),\"\")","v":""},{"$f":"IFERROR(INDEX($B$9:$I$408,$CM436,COLUMNS($CN$9:CU436)),\"\")","v":""}]
[null,{"$f":"IF(ISBLANK('TA Indicator Bank'!B290),\"\",'TA Indicator Bank'!B290)","v":""},{"$f":"IF(ISBLANK('TA Indicator Bank'!C290),\"\",'TA Indicator Bank'!C290)","v":""},{"$f":"IF(ISBLANK('TA Indicator Bank'!D290),\"\",'TA Indicator Bank'!D290)","v":""},{"$f":"IF(ISBLANK('TA Indicator Bank'!E290),\"\",'TA Indicator Bank'!E290)","v":""},{"$f":"IF(ISBLANK('TA Indicator Bank'!F290),\"\",'TA Indicator Bank'!F290)","v":""},{"$f":"IF(ISBLANK('TA Indicator Bank'!G290),\"\",'TA Indicator Bank'!G290)","v":""},{"$f":"IF(ISBLANK('TA Indicator Bank'!H290),\"\",'TA Indicator Bank'!H290)","v":""},{"$f":"IF(ISBLANK('TA Indicator Bank'!I290),\"\",'TA Indicator Bank'!I290)","v":""},{"$f":"IF(ISBLANK('TA Indicator Bank'!J290),\"\",'TA Indicator Bank'!J290)","v":""},{"$f":"IF(ISBLANK('TA Indicator Bank'!K290),\"\",'TA Indicator Bank'!K290)","v":""},{"$f":"IF(ISBLANK('TA Indicator Bank'!L290),\"\",'TA Indicator Bank'!L290)","v":""},{"$f":"IF(ISBLANK('TA Indicator Bank'!M290),\"\",'TA Indicator Bank'!M290)","v":""},{"$f":"IF(ISBLANK('TA Indicator Bank'!N290),\"\",'TA Indicator Bank'!N290)","v":""},{"$f":"IF(ISBLANK('TA Indicator Bank'!O290),\"\",'TA Indicator Bank'!O290)","v":""},{"$f":"IF(ISBLANK('TA Indicator Bank'!P290),\"\",'TA Indicator Bank'!P290)","v":""},{"$f":"IF(ISBLANK('TA Indicator Bank'!Q290),\"\",'TA Indicator Bank'!Q290)","v":""},{"$f":"IF(ISBLANK('TA Indicator Bank'!R290),\"\",'TA Indicator Bank'!R290)","v":""},{"$f":"IF(ISBLANK('TA Indicator Bank'!S290),\"\",'TA Indicator Bank'!S290)","v":""},{"$f":"IF(ISBLANK('TA Indicator Bank'!T290),\"\",'TA Indicator Bank'!T290)","v":""},{"$f":"IF(ISBLANK('TA Indicator Bank'!U290),\"\",'TA Indicator Bank'!U290)","v":""},{"$f":"IF(ISBLANK('TA Indicator Bank'!V290),\"\",'TA Indicator Bank'!V290)","v":""},{"$f":"IF(ISBLANK('TA Indicator Bank'!W290),\"\",'TA Indicator Bank'!W290)","v":""},{"$f":"IF(ISBLANK('TA Indicator Bank'!X290),\"\",'TA Indicator Bank'!X290)","v":""},{"$f":"IF(ISBLANK('TA Indicator Bank'!Y290),\"\",'TA Indicator Bank'!Y290)","v":""},{"$f":"IF(ISBLANK('TA Indicator Bank'!Z290),\"\",'TA Indicator Bank'!Z290)","v":""},{"$f":"IF(ISBLANK('TA Indicator Bank'!AA290),\"\",'TA Indicator Bank'!AA290)","v":""},{"$f":"IF(ISBLANK('TA Indicator Bank'!AB290),\"\",'TA Indicator Bank'!AB290)","v":""},{"$f":"IF(ISBLANK('TA Indicator Bank'!AC290),\"\",'TA Indicator Bank'!AC290)","v":""},{"$f":"IF(ISBLANK('TA Indicator Bank'!AD290),\"\",'TA Indicator Bank'!AD290)","v":""},{"$f":"IF(ISBLANK('TA Indicator Bank'!AE290),\"\",'TA Indicator Bank'!AE290)","v":""},{"$f":"IF(ISBLANK('TA Indicator Bank'!AF290),\"\",'TA Indicator Bank'!AF290)","v":""},{"$f":"IF(ISBLANK('TA Indicator Bank'!AG290),\"\",'TA Indicator Bank'!AG290)","v":""},{"$f":"IF(ISBLANK('TA Indicator Bank'!AH290),\"\",'TA Indicator Bank'!AH290)","v":""},{"$f":"IF(ISBLANK('TA Indicator Bank'!AI290),\"\",'TA Indicator Bank'!AI290)","v":""},{"$f":"IF(ISBLANK('TA Indicator Bank'!AJ290),\"\",'TA Indicator Bank'!AJ290)","v":""},{"$f":"IF(ISBLANK('TA Indicator Bank'!AK290),\"\",'TA Indicator Bank'!AK290)","v":""},{"$f":"IF(ISBLANK('TA Indicator Bank'!AL290),\"\",'TA Indicator Bank'!AL290)","v":""},{"$f":"IF(ISBLANK('TA Indicator Bank'!AM290),\"\",'TA Indicator Bank'!AM290)","v":""},{"$f":"IF(ISBLANK('TA Indicator Bank'!AN290),\"\",'TA Indicator Bank'!AN290)","v":""},{"$f":"IF(ISBLANK('TA Indicator Bank'!AO290),\"\",'TA Indicator Bank'!AO290)","v":""},{"$f":"IF(ISBLANK('TA Indicator Bank'!AP290),\"\",'TA Indicator Bank'!AP290)","v":""},{"$f":"IF(ISBLANK('TA Indicator Bank'!AQ290),\"\",'TA Indicator Bank'!AQ290)","v":""},{"$f":"IF(ISBLANK('TA Indicator Bank'!AR290),\"\",'TA Indicator Bank'!AR290)","v":""},{"$f":"IF(ISBLANK('TA Indicator Bank'!AS290),\"\",'TA Indicator Bank'!AS290)","v":""},{"$f":"IF(ISBLANK('TA Indicator Bank'!AT290),\"\",'TA Indicator Bank'!AT290)","v":""},0,0,0,0,0,0,0,0,0,0,0,0,0,0,1,0,0,0,0,0,0,0,0,0,1,0,0,0,0,0,0,0,0,0,1,0,0,0,0,0,1,1,286,286,"",{"$f":"IFERROR(INDEX($B$9:$I$408,$CM437,COLUMNS($CN$9:CN437)),\"\")","v":""},{"$f":"IFERROR(INDEX($B$9:$I$408,$CM437,COLUMNS($CN$9:CO437)),\"\")","v":""},{"$f":"IFERROR(INDEX($B$9:$I$408,$CM437,COLUMNS($CN$9:CP437)),\"\")","v":""},{"$f":"IFERROR(INDEX($B$9:$I$408,$CM437,COLUMNS($CN$9:CQ437)),\"\")","v":""},{"$f":"IFERROR(INDEX($B$9:$I$408,$CM437,COLUMNS($CN$9:CR437)),\"\")","v":""},{"$f":"IFERROR(INDEX($B$9:$I$408,$CM437,COLUMNS($CN$9:CS437)),\"\")","v":""},{"$f":"IFERROR(INDEX($B$9:$I$408,$CM437,COLUMNS($CN$9:CT437)),\"\")","v":""},{"$f":"IFERROR(INDEX($B$9:$I$408,$CM437,COLUMNS($CN$9:CU437)),\"\")","v":""}]
[null,{"$f":"IF(ISBLANK('TA Indicator Bank'!B291),\"\",'TA Indicator Bank'!B291)","v":""},{"$f":"IF(ISBLANK('TA Indicator Bank'!C291),\"\",'TA Indicator Bank'!C291)","v":""},{"$f":"IF(ISBLANK('TA Indicator Bank'!D291),\"\",'TA Indicator Bank'!D291)","v":""},{"$f":"IF(ISBLANK('TA Indicator Bank'!E291),\"\",'TA Indicator Bank'!E291)","v":""},{"$f":"IF(ISBLANK('TA Indicator Bank'!F291),\"\",'TA Indicator Bank'!F291)","v":""},{"$f":"IF(ISBLANK('TA Indicator Bank'!G291),\"\",'TA Indicator Bank'!G291)","v":""},{"$f":"IF(ISBLANK('TA Indicator Bank'!H291),\"\",'TA Indicator Bank'!H291)","v":""},{"$f":"IF(ISBLANK('TA Indicator Bank'!I291),\"\",'TA Indicator Bank'!I291)","v":""},{"$f":"IF(ISBLANK('TA Indicator Bank'!J291),\"\",'TA Indicator Bank'!J291)","v":""},{"$f":"IF(ISBLANK('TA Indicator Bank'!K291),\"\",'TA Indicator Bank'!K291)","v":""},{"$f":"IF(ISBLANK('TA Indicator Bank'!L291),\"\",'TA Indicator Bank'!L291)","v":""},{"$f":"IF(ISBLANK('TA Indicator Bank'!M291),\"\",'TA Indicator Bank'!M291)","v":""},{"$f":"IF(ISBLANK('TA Indicator Bank'!N291),\"\",'TA Indicator Bank'!N291)","v":""},{"$f":"IF(ISBLANK('TA Indicator Bank'!O291),\"\",'TA Indicator Bank'!O291)","v":""},{"$f":"IF(ISBLANK('TA Indicator Bank'!P291),\"\",'TA Indicator Bank'!P291)","v":""},{"$f":"IF(ISBLANK('TA Indicator Bank'!Q291),\"\",'TA Indicator Bank'!Q291)","v":""},{"$f":"IF(ISBLANK('TA Indicator Bank'!R291),\"\",'TA Indicator Bank'!R291)","v":""},{"$f":"IF(ISBLANK('TA Indicator Bank'!S291),\"\",'TA Indicator Bank'!S291)","v":""},{"$f":"IF(ISBLANK('TA Indicator Bank'!T291),\"\",'TA Indicator Bank'!T291)","v":""},{"$f":"IF(ISBLANK('TA Indicator Bank'!U291),\"\",'TA Indicator Bank'!U291)","v":""},{"$f":"IF(ISBLANK('TA Indicator Bank'!V291),\"\",'TA Indicator Bank'!V291)","v":""},{"$f":"IF(ISBLANK('TA Indicator Bank'!W291),\"\",'TA Indicator Bank'!W291)","v":""},{"$f":"IF(ISBLANK('TA Indicator Bank'!X291),\"\",'TA Indicator Bank'!X291)","v":""},{"$f":"IF(ISBLANK('TA Indicator Bank'!Y291),\"\",'TA Indicator Bank'!Y291)","v":""},{"$f":"IF(ISBLANK('TA Indicator Bank'!Z291),\"\",'TA Indicator Bank'!Z291)","v":""},{"$f":"IF(ISBLANK('TA Indicator Bank'!AA291),\"\",'TA Indicator Bank'!AA291)","v":""},{"$f":"IF(ISBLANK('TA Indicator Bank'!AB291),\"\",'TA Indicator Bank'!AB291)","v":""},{"$f":"IF(ISBLANK('TA Indicator Bank'!AC291),\"\",'TA Indicator Bank'!AC291)","v":""},{"$f":"IF(ISBLANK('TA Indicator Bank'!AD291),\"\",'TA Indicator Bank'!AD291)","v":""},{"$f":"IF(ISBLANK('TA Indicator Bank'!AE291),\"\",'TA Indicator Bank'!AE291)","v":""},{"$f":"IF(ISBLANK('TA Indicator Bank'!AF291),\"\",'TA Indicator Bank'!AF291)","v":""},{"$f":"IF(ISBLANK('TA Indicator Bank'!AG291),\"\",'TA Indicator Bank'!AG291)","v":""},{"$f":"IF(ISBLANK('TA Indicator Bank'!AH291),\"\",'TA Indicator Bank'!AH291)","v":""},{"$f":"IF(ISBLANK('TA Indicator Bank'!AI291),\"\",'TA Indicator Bank'!AI291)","v":""},{"$f":"IF(ISBLANK('TA Indicator Bank'!AJ291),\"\",'TA Indicator Bank'!AJ291)","v":""},{"$f":"IF(ISBLANK('TA Indicator Bank'!AK291),\"\",'TA Indicator Bank'!AK291)","v":""},{"$f":"IF(ISBLANK('TA Indicator Bank'!AL291),\"\",'TA Indicator Bank'!AL291)","v":""},{"$f":"IF(ISBLANK('TA Indicator Bank'!AM291),\"\",'TA Indicator Bank'!AM291)","v":""},{"$f":"IF(ISBLANK('TA Indicator Bank'!AN291),\"\",'TA Indicator Bank'!AN291)","v":""},{"$f":"IF(ISBLANK('TA Indicator Bank'!AO291),\"\",'TA Indicator Bank'!AO291)","v":""},{"$f":"IF(ISBLANK('TA Indicator Bank'!AP291),\"\",'TA Indicator Bank'!AP291)","v":""},{"$f":"IF(ISBLANK('TA Indicator Bank'!AQ291),\"\",'TA Indicator Bank'!AQ291)","v":""},{"$f":"IF(ISBLANK('TA Indicator Bank'!AR291),\"\",'TA Indicator Bank'!AR291)","v":""},{"$f":"IF(ISBLANK('TA Indicator Bank'!AS291),\"\",'TA Indicator Bank'!AS291)","v":""},{"$f":"IF(ISBLANK('TA Indicator Bank'!AT291),\"\",'TA Indicator Bank'!AT291)","v":""},0,0,0,0,0,0,0,0,0,0,0,0,0,0,1,0,0,0,0,0,0,0,0,0,1,0,0,0,0,0,0,0,0,0,1,0,0,0,0,0,1,1,287,287,"",{"$f":"IFERROR(INDEX($B$9:$I$408,$CM438,COLUMNS($CN$9:CN438)),\"\")","v":""},{"$f":"IFERROR(INDEX($B$9:$I$408,$CM438,COLUMNS($CN$9:CO438)),\"\")","v":""},{"$f":"IFERROR(INDEX($B$9:$I$408,$CM438,COLUMNS($CN$9:CP438)),\"\")","v":""},{"$f":"IFERROR(INDEX($B$9:$I$408,$CM438,COLUMNS($CN$9:CQ438)),\"\")","v":""},{"$f":"IFERROR(INDEX($B$9:$I$408,$CM438,COLUMNS($CN$9:CR438)),\"\")","v":""},{"$f":"IFERROR(INDEX($B$9:$I$408,$CM438,COLUMNS($CN$9:CS438)),\"\")","v":""},{"$f":"IFERROR(INDEX($B$9:$I$408,$CM438,COLUMNS($CN$9:CT438)),\"\")","v":""},{"$f":"IFERROR(INDEX($B$9:$I$408,$CM438,COLUMNS($CN$9:CU438)),\"\")","v":""}]
[null,{"$f":"IF(ISBLANK('TA Indicator Bank'!B292),\"\",'TA Indicator Bank'!B292)","v":""},{"$f":"IF(ISBLANK('TA Indicator Bank'!C292),\"\",'TA Indicator Bank'!C292)","v":""},{"$f":"IF(ISBLANK('TA Indicator Bank'!D292),\"\",'TA Indicator Bank'!D292)","v":""},{"$f":"IF(ISBLANK('TA Indicator Bank'!E292),\"\",'TA Indicator Bank'!E292)","v":""},{"$f":"IF(ISBLANK('TA Indicator Bank'!F292),\"\",'TA Indicator Bank'!F292)","v":""},{"$f":"IF(ISBLANK('TA Indicator Bank'!G292),\"\",'TA Indicator Bank'!G292)","v":""},{"$f":"IF(ISBLANK('TA Indicator Bank'!H292),\"\",'TA Indicator Bank'!H292)","v":""},{"$f":"IF(ISBLANK('TA Indicator Bank'!I292),\"\",'TA Indicator Bank'!I292)","v":""},{"$f":"IF(ISBLANK('TA Indicator Bank'!J292),\"\",'TA Indicator Bank'!J292)","v":""},{"$f":"IF(ISBLANK('TA Indicator Bank'!K292),\"\",'TA Indicator Bank'!K292)","v":""},{"$f":"IF(ISBLANK('TA Indicator Bank'!L292),\"\",'TA Indicator Bank'!L292)","v":""},{"$f":"IF(ISBLANK('TA Indicator Bank'!M292),\"\",'TA Indicator Bank'!M292)","v":""},{"$f":"IF(ISBLANK('TA Indicator Bank'!N292),\"\",'TA Indicator Bank'!N292)","v":""},{"$f":"IF(ISBLANK('TA Indicator Bank'!O292),\"\",'TA Indicator Bank'!O292)","v":""},{"$f":"IF(ISBLANK('TA Indicator Bank'!P292),\"\",'TA Indicator Bank'!P292)","v":""},{"$f":"IF(ISBLANK('TA Indicator Bank'!Q292),\"\",'TA Indicator Bank'!Q292)","v":""},{"$f":"IF(ISBLANK('TA Indicator Bank'!R292),\"\",'TA Indicator Bank'!R292)","v":""},{"$f":"IF(ISBLANK('TA Indicator Bank'!S292),\"\",'TA Indicator Bank'!S292)","v":""},{"$f":"IF(ISBLANK('TA Indicator Bank'!T292),\"\",'TA Indicator Bank'!T292)","v":""},{"$f":"IF(ISBLANK('TA Indicator Bank'!U292),\"\",'TA Indicator Bank'!U292)","v":""},{"$f":"IF(ISBLANK('TA Indicator Bank'!V292),\"\",'TA Indicator Bank'!V292)","v":""},{"$f":"IF(ISBLANK('TA Indicator Bank'!W292),\"\",'TA Indicator Bank'!W292)","v":""},{"$f":"IF(ISBLANK('TA Indicator Bank'!X292),\"\",'TA Indicator Bank'!X292)","v":""},{"$f":"IF(ISBLANK('TA Indicator Bank'!Y292),\"\",'TA Indicator Bank'!Y292)","v":""},{"$f":"IF(ISBLANK('TA Indicator Bank'!Z292),\"\",'TA Indicator Bank'!Z292)","v":""},{"$f":"IF(ISBLANK('TA Indicator Bank'!AA292),\"\",'TA Indicator Bank'!AA292)","v":""},{"$f":"IF(ISBLANK('TA Indicator Bank'!AB292),\"\",'TA Indicator Bank'!AB292)","v":""},{"$f":"IF(ISBLANK('TA Indicator Bank'!AC292),\"\",'TA Indicator Bank'!AC292)","v":""},{"$f":"IF(ISBLANK('TA Indicator Bank'!AD292),\"\",'TA Indicator Bank'!AD292)","v":""},{"$f":"IF(ISBLANK('TA Indicator Bank'!AE292),\"\",'TA Indicator Bank'!AE292)","v":""},{"$f":"IF(ISBLANK('TA Indicator Bank'!AF292),\"\",'TA Indicator Bank'!AF292)","v":""},{"$f":"IF(ISBLANK('TA Indicator Bank'!AG292),\"\",'TA Indicator Bank'!AG292)","v":""},{"$f":"IF(ISBLANK('TA Indicator Bank'!AH292),\"\",'TA Indicator Bank'!AH292)","v":""},{"$f":"IF(ISBLANK('TA Indicator Bank'!AI292),\"\",'TA Indicator Bank'!AI292)","v":""},{"$f":"IF(ISBLANK('TA Indicator Bank'!AJ292),\"\",'TA Indicator Bank'!AJ292)","v":""},{"$f":"IF(ISBLANK('TA Indicator Bank'!AK292),\"\",'TA Indicator Bank'!AK292)","v":""},{"$f":"IF(ISBLANK('TA Indicator Bank'!AL292),\"\",'TA Indicator Bank'!AL292)","v":""},{"$f":"IF(ISBLANK('TA Indicator Bank'!AM292),\"\",'TA Indicator Bank'!AM292)","v":""},{"$f":"IF(ISBLANK('TA Indicator Bank'!AN292),\"\",'TA Indicator Bank'!AN292)","v":""},{"$f":"IF(ISBLANK('TA Indicator Bank'!AO292),\"\",'TA Indicator Bank'!AO292)","v":""},{"$f":"IF(ISBLANK('TA Indicator Bank'!AP292),\"\",'TA Indicator Bank'!AP292)","v":""},{"$f":"IF(ISBLANK('TA Indicator Bank'!AQ292),\"\",'TA Indicator Bank'!AQ292)","v":""},{"$f":"IF(ISBLANK('TA Indicator Bank'!AR292),\"\",'TA Indicator Bank'!AR292)","v":""},{"$f":"IF(ISBLANK('TA Indicator Bank'!AS292),\"\",'TA Indicator Bank'!AS292)","v":""},{"$f":"IF(ISBLANK('TA Indicator Bank'!AT292),\"\",'TA Indicator Bank'!AT292)","v":""},0,0,0,0,0,0,0,0,0,0,0,0,0,0,1,0,0,0,0,0,0,0,0,0,1,0,0,0,0,0,0,0,0,0,1,0,0,0,0,0,1,1,288,288,"",{"$f":"IFERROR(INDEX($B$9:$I$408,$CM439,COLUMNS($CN$9:CN439)),\"\")","v":""},{"$f":"IFERROR(INDEX($B$9:$I$408,$CM439,COLUMNS($CN$9:CO439)),\"\")","v":""},{"$f":"IFERROR(INDEX($B$9:$I$408,$CM439,COLUMNS($CN$9:CP439)),\"\")","v":""},{"$f":"IFERROR(INDEX($B$9:$I$408,$CM439,COLUMNS($CN$9:CQ439)),\"\")","v":""},{"$f":"IFERROR(INDEX($B$9:$I$408,$CM439,COLUMNS($CN$9:CR439)),\"\")","v":""},{"$f":"IFERROR(INDEX($B$9:$I$408,$CM439,COLUMNS($CN$9:CS439)),\"\")","v":""},{"$f":"IFERROR(INDEX($B$9:$I$408,$CM439,COLUMNS($CN$9:CT439)),\"\")","v":""},{"$f":"IFERROR(INDEX($B$9:$I$408,$CM439,COLUMNS($CN$9:CU439)),\"\")","v":""}]
[null,{"$f":"IF(ISBLANK('TA Indicator Bank'!B293),\"\",'TA Indicator Bank'!B293)","v":""},{"$f":"IF(ISBLANK('TA Indicator Bank'!C293),\"\",'TA Indicator Bank'!C293)","v":""},{"$f":"IF(ISBLANK('TA Indicator Bank'!D293),\"\",'TA Indicator Bank'!D293)","v":""},{"$f":"IF(ISBLANK('TA Indicator Bank'!E293),\"\",'TA Indicator Bank'!E293)","v":""},{"$f":"IF(ISBLANK('TA Indicator Bank'!F293),\"\",'TA Indicator Bank'!F293)","v":""},{"$f":"IF(ISBLANK('TA Indicator Bank'!G293),\"\",'TA Indicator Bank'!G293)","v":""},{"$f":"IF(ISBLANK('TA Indicator Bank'!H293),\"\",'TA Indicator Bank'!H293)","v":""},{"$f":"IF(ISBLANK('TA Indicator Bank'!I293),\"\",'TA Indicator Bank'!I293)","v":""},{"$f":"IF(ISBLANK('TA Indicator Bank'!J293),\"\",'TA Indicator Bank'!J293)","v":""},{"$f":"IF(ISBLANK('TA Indicator Bank'!K293),\"\",'TA Indicator Bank'!K293)","v":""},{"$f":"IF(ISBLANK('TA Indicator Bank'!L293),\"\",'TA Indicator Bank'!L293)","v":""},{"$f":"IF(ISBLANK('TA Indicator Bank'!M293),\"\",'TA Indicator Bank'!M293)","v":""},{"$f":"IF(ISBLANK('TA Indicator Bank'!N293),\"\",'TA Indicator Bank'!N293)","v":""},{"$f":"IF(ISBLANK('TA Indicator Bank'!O293),\"\",'TA Indicator Bank'!O293)","v":""},{"$f":"IF(ISBLANK('TA Indicator Bank'!P293),\"\",'TA Indicator Bank'!P293)","v":""},{"$f":"IF(ISBLANK('TA Indicator Bank'!Q293),\"\",'TA Indicator Bank'!Q293)","v":""},{"$f":"IF(ISBLANK('TA Indicator Bank'!R293),\"\",'TA Indicator Bank'!R293)","v":""},{"$f":"IF(ISBLANK('TA Indicator Bank'!S293),\"\",'TA Indicator Bank'!S293)","v":""},{"$f":"IF(ISBLANK('TA Indicator Bank'!T293),\"\",'TA Indicator Bank'!T293)","v":""},{"$f":"IF(ISBLANK('TA Indicator Bank'!U293),\"\",'TA Indicator Bank'!U293)","v":""},{"$f":"IF(ISBLANK('TA Indicator Bank'!V293),\"\",'TA Indicator Bank'!V293)","v":""},{"$f":"IF(ISBLANK('TA Indicator Bank'!W293),\"\",'TA Indicator Bank'!W293)","v":""},{"$f":"IF(ISBLANK('TA Indicator Bank'!X293),\"\",'TA Indicator Bank'!X293)","v":""},{"$f":"IF(ISBLANK('TA Indicator Bank'!Y293),\"\",'TA Indicator Bank'!Y293)","v":""},{"$f":"IF(ISBLANK('TA Indicator Bank'!Z293),\"\",'TA Indicator Bank'!Z293)","v":""},{"$f":"IF(ISBLANK('TA Indicator Bank'!AA293),\"\",'TA Indicator Bank'!AA293)","v":""},{"$f":"IF(ISBLANK('TA Indicator Bank'!AB293),\"\",'TA Indicator Bank'!AB293)","v":""},{"$f":"IF(ISBLANK('TA Indicator Bank'!AC293),\"\",'TA Indicator Bank'!AC293)","v":""},{"$f":"IF(ISBLANK('TA Indicator Bank'!AD293),\"\",'TA Indicator Bank'!AD293)","v":""},{"$f":"IF(ISBLANK('TA Indicator Bank'!AE293),\"\",'TA Indicator Bank'!AE293)","v":""},{"$f":"IF(ISBLANK('TA Indicator Bank'!AF293),\"\",'TA Indicator Bank'!AF293)","v":""},{"$f":"IF(ISBLANK('TA Indicator Bank'!AG293),\"\",'TA Indicator Bank'!AG293)","v":""},{"$f":"IF(ISBLANK('TA Indicator Bank'!AH293),\"\",'TA Indicator Bank'!AH293)","v":""},{"$f":"IF(ISBLANK('TA Indicator Bank'!AI293),\"\",'TA Indicator Bank'!AI293)","v":""},{"$f":"IF(ISBLANK('TA Indicator Bank'!AJ293),\"\",'TA Indicator Bank'!AJ293)","v":""},{"$f":"IF(ISBLANK('TA Indicator Bank'!AK293),\"\",'TA Indicator Bank'!AK293)","v":""},{"$f":"IF(ISBLANK('TA Indicator Bank'!AL293),\"\",'TA Indicator Bank'!AL293)","v":""},{"$f":"IF(ISBLANK('TA Indicator Bank'!AM293),\"\",'TA Indicator Bank'!AM293)","v":""},{"$f":"IF(ISBLANK('TA Indicator Bank'!AN293),\"\",'TA Indicator Bank'!AN293)","v":""},{"$f":"IF(ISBLANK('TA Indicator Bank'!AO293),\"\",'TA Indicator Bank'!AO293)","v":""},{"$f":"IF(ISBLANK('TA Indicator Bank'!AP293),\"\",'TA Indicator Bank'!AP293)","v":""},{"$f":"IF(ISBLANK('TA Indicator Bank'!AQ293),\"\",'TA Indicator Bank'!AQ293)","v":""},{"$f":"IF(ISBLANK('TA Indicator Bank'!AR293),\"\",'TA Indicator Bank'!AR293)","v":""},{"$f":"IF(ISBLANK('TA Indicator Bank'!AS293),\"\",'TA Indicator Bank'!AS293)","v":""},{"$f":"IF(ISBLANK('TA Indicator Bank'!AT293),\"\",'TA Indicator Bank'!AT293)","v":""},0,0,0,0,0,0,0,0,0,0,0,0,0,0,1,0,0,0,0,0,0,0,0,0,1,0,0,0,0,0,0,0,0,0,1,0,0,0,0,0,1,1,289,289,"",{"$f":"IFERROR(INDEX($B$9:$I$408,$CM440,COLUMNS($CN$9:CN440)),\"\")","v":""},{"$f":"IFERROR(INDEX($B$9:$I$408,$CM440,COLUMNS($CN$9:CO440)),\"\")","v":""},{"$f":"IFERROR(INDEX($B$9:$I$408,$CM440,COLUMNS($CN$9:CP440)),\"\")","v":""},{"$f":"IFERROR(INDEX($B$9:$I$408,$CM440,COLUMNS($CN$9:CQ440)),\"\")","v":""},{"$f":"IFERROR(INDEX($B$9:$I$408,$CM440,COLUMNS($CN$9:CR440)),\"\")","v":""},{"$f":"IFERROR(INDEX($B$9:$I$408,$CM440,COLUMNS($CN$9:CS440)),\"\")","v":""},{"$f":"IFERROR(INDEX($B$9:$I$408,$CM440,COLUMNS($CN$9:CT440)),\"\")","v":""},{"$f":"IFERROR(INDEX($B$9:$I$408,$CM440,COLUMNS($CN$9:CU440)),\"\")","v":""}]
[null,{"$f":"IF(ISBLANK('TA Indicator Bank'!B294),\"\",'TA Indicator Bank'!B294)","v":""},{"$f":"IF(ISBLANK('TA Indicator Bank'!C294),\"\",'TA Indicator Bank'!C294)","v":""},{"$f":"IF(ISBLANK('TA Indicator Bank'!D294),\"\",'TA Indicator Bank'!D294)","v":""},{"$f":"IF(ISBLANK('TA Indicator Bank'!E294),\"\",'TA Indicator Bank'!E294)","v":""},{"$f":"IF(ISBLANK('TA Indicator Bank'!F294),\"\",'TA Indicator Bank'!F294)","v":""},{"$f":"IF(ISBLANK('TA Indicator Bank'!G294),\"\",'TA Indicator Bank'!G294)","v":""},{"$f":"IF(ISBLANK('TA Indicator Bank'!H294),\"\",'TA Indicator Bank'!H294)","v":""},{"$f":"IF(ISBLANK('TA Indicator Bank'!I294),\"\",'TA Indicator Bank'!I294)","v":""},{"$f":"IF(ISBLANK('TA Indicator Bank'!J294),\"\",'TA Indicator Bank'!J294)","v":""},{"$f":"IF(ISBLANK('TA Indicator Bank'!K294),\"\",'TA Indicator Bank'!K294)","v":""},{"$f":"IF(ISBLANK('TA Indicator Bank'!L294),\"\",'TA Indicator Bank'!L294)","v":""},{"$f":"IF(ISBLANK('TA Indicator Bank'!M294),\"\",'TA Indicator Bank'!M294)","v":""},{"$f":"IF(ISBLANK('TA Indicator Bank'!N294),\"\",'TA Indicator Bank'!N294)","v":""},{"$f":"IF(ISBLANK('TA Indicator Bank'!O294),\"\",'TA Indicator Bank'!O294)","v":""},{"$f":"IF(ISBLANK('TA Indicator Bank'!P294),\"\",'TA Indicator Bank'!P294)","v":""},{"$f":"IF(ISBLANK('TA Indicator Bank'!Q294),\"\",'TA Indicator Bank'!Q294)","v":""},{"$f":"IF(ISBLANK('TA Indicator Bank'!R294),\"\",'TA Indicator Bank'!R294)","v":""},{"$f":"IF(ISBLANK('TA Indicator Bank'!S294),\"\",'TA Indicator Bank'!S294)","v":""},{"$f":"IF(ISBLANK('TA Indicator Bank'!T294),\"\",'TA Indicator Bank'!T294)","v":""},{"$f":"IF(ISBLANK('TA Indicator Bank'!U294),\"\",'TA Indicator Bank'!U294)","v":""},{"$f":"IF(ISBLANK('TA Indicator Bank'!V294),\"\",'TA Indicator Bank'!V294)","v":""},{"$f":"IF(ISBLANK('TA Indicator Bank'!W294),\"\",'TA Indicator Bank'!W294)","v":""},{"$f":"IF(ISBLANK('TA Indicator Bank'!X294),\"\",'TA Indicator Bank'!X294)","v":""},{"$f":"IF(ISBLANK('TA Indicator Bank'!Y294),\"\",'TA Indicator Bank'!Y294)","v":""},{"$f":"IF(ISBLANK('TA Indicator Bank'!Z294),\"\",'TA Indicator Bank'!Z294)","v":""},{"$f":"IF(ISBLANK('TA Indicator Bank'!AA294),\"\",'TA Indicator Bank'!AA294)","v":""},{"$f":"IF(ISBLANK('TA Indicator Bank'!AB294),\"\",'TA Indicator Bank'!AB294)","v":""},{"$f":"IF(ISBLANK('TA Indicator Bank'!AC294),\"\",'TA Indicator Bank'!AC294)","v":""},{"$f":"IF(ISBLANK('TA Indicator Bank'!AD294),\"\",'TA Indicator Bank'!AD294)","v":""},{"$f":"IF(ISBLANK('TA Indicator Bank'!AE294),\"\",'TA Indicator Bank'!AE294)","v":""},{"$f":"IF(ISBLANK('TA Indicator Bank'!AF294),\"\",'TA Indicator Bank'!AF294)","v":""},{"$f":"IF(ISBLANK('TA Indicator Bank'!AG294),\"\",'TA Indicator Bank'!AG294)","v":""},{"$f":"IF(ISBLANK('TA Indicator Bank'!AH294),\"\",'TA Indicator Bank'!AH294)","v":""},{"$f":"IF(ISBLANK('TA Indicator Bank'!AI294),\"\",'TA Indicator Bank'!AI294)","v":""},{"$f":"IF(ISBLANK('TA Indicator Bank'!AJ294),\"\",'TA Indicator Bank'!AJ294)","v":""},{"$f":"IF(ISBLANK('TA Indicator Bank'!AK294),\"\",'TA Indicator Bank'!AK294)","v":""},{"$f":"IF(ISBLANK('TA Indicator Bank'!AL294),\"\",'TA Indicator Bank'!AL294)","v":""},{"$f":"IF(ISBLANK('TA Indicator Bank'!AM294),\"\",'TA Indicator Bank'!AM294)","v":""},{"$f":"IF(ISBLANK('TA Indicator Bank'!AN294),\"\",'TA Indicator Bank'!AN294)","v":""},{"$f":"IF(ISBLANK('TA Indicator Bank'!AO294),\"\",'TA Indicator Bank'!AO294)","v":""},{"$f":"IF(ISBLANK('TA Indicator Bank'!AP294),\"\",'TA Indicator Bank'!AP294)","v":""},{"$f":"IF(ISBLANK('TA Indicator Bank'!AQ294),\"\",'TA Indicator Bank'!AQ294)","v":""},{"$f":"IF(ISBLANK('TA Indicator Bank'!AR294),\"\",'TA Indicator Bank'!AR294)","v":""},{"$f":"IF(ISBLANK('TA Indicator Bank'!AS294),\"\",'TA Indicator Bank'!AS294)","v":""},{"$f":"IF(ISBLANK('TA Indicator Bank'!AT294),\"\",'TA Indicator Bank'!AT294)","v":""},0,0,0,0,0,0,0,0,0,0,0,0,0,0,1,0,0,0,0,0,0,0,0,0,1,0,0,0,0,0,0,0,0,0,1,0,0,0,0,0,1,1,290,290,"",{"$f":"IFERROR(INDEX($B$9:$I$408,$CM441,COLUMNS($CN$9:CN441)),\"\")","v":""},{"$f":"IFERROR(INDEX($B$9:$I$408,$CM441,COLUMNS($CN$9:CO441)),\"\")","v":""},{"$f":"IFERROR(INDEX($B$9:$I$408,$CM441,COLUMNS($CN$9:CP441)),\"\")","v":""},{"$f":"IFERROR(INDEX($B$9:$I$408,$CM441,COLUMNS($CN$9:CQ441)),\"\")","v":""},{"$f":"IFERROR(INDEX($B$9:$I$408,$CM441,COLUMNS($CN$9:CR441)),\"\")","v":""},{"$f":"IFERROR(INDEX($B$9:$I$408,$CM441,COLUMNS($CN$9:CS441)),\"\")","v":""},{"$f":"IFERROR(INDEX($B$9:$I$408,$CM441,COLUMNS($CN$9:CT441)),\"\")","v":""},{"$f":"IFERROR(INDEX($B$9:$I$408,$CM441,COLUMNS($CN$9:CU441)),\"\")","v":""}]
[null,{"$f":"IF(ISBLANK('TA Indicator Bank'!B295),\"\",'TA Indicator Bank'!B295)","v":""},{"$f":"IF(ISBLANK('TA Indicator Bank'!C295),\"\",'TA Indicator Bank'!C295)","v":""},{"$f":"IF(ISBLANK('TA Indicator Bank'!D295),\"\",'TA Indicator Bank'!D295)","v":""},{"$f":"IF(ISBLANK('TA Indicator Bank'!E295),\"\",'TA Indicator Bank'!E295)","v":""},{"$f":"IF(ISBLANK('TA Indicator Bank'!F295),\"\",'TA Indicator Bank'!F295)","v":""},{"$f":"IF(ISBLANK('TA Indicator Bank'!G295),\"\",'TA Indicator Bank'!G295)","v":""},{"$f":"IF(ISBLANK('TA Indicator Bank'!H295),\"\",'TA Indicator Bank'!H295)","v":""},{"$f":"IF(ISBLANK('TA Indicator Bank'!I295),\"\",'TA Indicator Bank'!I295)","v":""},{"$f":"IF(ISBLANK('TA Indicator Bank'!J295),\"\",'TA Indicator Bank'!J295)","v":""},{"$f":"IF(ISBLANK('TA Indicator Bank'!K295),\"\",'TA Indicator Bank'!K295)","v":""},{"$f":"IF(ISBLANK('TA Indicator Bank'!L295),\"\",'TA Indicator Bank'!L295)","v":""},{"$f":"IF(ISBLANK('TA Indicator Bank'!M295),\"\",'TA Indicator Bank'!M295)","v":""},{"$f":"IF(ISBLANK('TA Indicator Bank'!N295),\"\",'TA Indicator Bank'!N295)","v":""},{"$f":"IF(ISBLANK('TA Indicator Bank'!O295),\"\",'TA Indicator Bank'!O295)","v":""},{"$f":"IF(ISBLANK('TA Indicator Bank'!P295),\"\",'TA Indicator Bank'!P295)","v":""},{"$f":"IF(ISBLANK('TA Indicator Bank'!Q295),\"\",'TA Indicator Bank'!Q295)","v":""},{"$f":"IF(ISBLANK('TA Indicator Bank'!R295),\"\",'TA Indicator Bank'!R295)","v":""},{"$f":"IF(ISBLANK('TA Indicator Bank'!S295),\"\",'TA Indicator Bank'!S295)","v":""},{"$f":"IF(ISBLANK('TA Indicator Bank'!T295),\"\",'TA Indicator Bank'!T295)","v":""},{"$f":"IF(ISBLANK('TA Indicator Bank'!U295),\"\",'TA Indicator Bank'!U295)","v":""},{"$f":"IF(ISBLANK('TA Indicator Bank'!V295),\"\",'TA Indicator Bank'!V295)","v":""},{"$f":"IF(ISBLANK('TA Indicator Bank'!W295),\"\",'TA Indicator Bank'!W295)","v":""},{"$f":"IF(ISBLANK('TA Indicator Bank'!X295),\"\",'TA Indicator Bank'!X295)","v":""},{"$f":"IF(ISBLANK('TA Indicator Bank'!Y295),\"\",'TA Indicator Bank'!Y295)","v":""},{"$f":"IF(ISBLANK('TA Indicator Bank'!Z295),\"\",'TA Indicator Bank'!Z295)","v":""},{"$f":"IF(ISBLANK('TA Indicator Bank'!AA295),\"\",'TA Indicator Bank'!AA295)","v":""},{"$f":"IF(ISBLANK('TA Indicator Bank'!AB295),\"\",'TA Indicator Bank'!AB295)","v":""},{"$f":"IF(ISBLANK('TA Indicator Bank'!AC295),\"\",'TA Indicator Bank'!AC295)","v":""},{"$f":"IF(ISBLANK('TA Indicator Bank'!AD295),\"\",'TA Indicator Bank'!AD295)","v":""},{"$f":"IF(ISBLANK('TA Indicator Bank'!AE295),\"\",'TA Indicator Bank'!AE295)","v":""},{"$f":"IF(ISBLANK('TA Indicator Bank'!AF295),\"\",'TA Indicator Bank'!AF295)","v":""},{"$f":"IF(ISBLANK('TA Indicator Bank'!AG295),\"\",'TA Indicator Bank'!AG295)","v":""},{"$f":"IF(ISBLANK('TA Indicator Bank'!AH295),\"\",'TA Indicator Bank'!AH295)","v":""},{"$f":"IF(ISBLANK('TA Indicator Bank'!AI295),\"\",'TA Indicator Bank'!AI295)","v":""},{"$f":"IF(ISBLANK('TA Indicator Bank'!AJ295),\"\",'TA Indicator Bank'!AJ295)","v":""},{"$f":"IF(ISBLANK('TA Indicator Bank'!AK295),\"\",'TA Indicator Bank'!AK295)","v":""},{"$f":"IF(ISBLANK('TA Indicator Bank'!AL295),\"\",'TA Indicator Bank'!AL295)","v":""},{"$f":"IF(ISBLANK('TA Indicator Bank'!AM295),\"\",'TA Indicator Bank'!AM295)","v":""},{"$f":"IF(ISBLANK('TA Indicator Bank'!AN295),\"\",'TA Indicator Bank'!AN295)","v":""},{"$f":"IF(ISBLANK('TA Indicator Bank'!AO295),\"\",'TA Indicator Bank'!AO295)","v":""},{"$f":"IF(ISBLANK('TA Indicator Bank'!AP295),\"\",'TA Indicator Bank'!AP295)","v":""},{"$f":"IF(ISBLANK('TA Indicator Bank'!AQ295),\"\",'TA Indicator Bank'!AQ295)","v":""},{"$f":"IF(ISBLANK('TA Indicator Bank'!AR295),\"\",'TA Indicator Bank'!AR295)","v":""},{"$f":"IF(ISBLANK('TA Indicator Bank'!AS295),\"\",'TA Indicator Bank'!AS295)","v":""},{"$f":"IF(ISBLANK('TA Indicator Bank'!AT295),\"\",'TA Indicator Bank'!AT295)","v":""},0,0,0,0,0,0,0,0,0,0,0,0,0,0,1,0,0,0,0,0,0,0,0,0,1,0,0,0,0,0,0,0,0,0,1,0,0,0,0,0,1,1,291,291,"",{"$f":"IFERROR(INDEX($B$9:$I$408,$CM442,COLUMNS($CN$9:CN442)),\"\")","v":""},{"$f":"IFERROR(INDEX($B$9:$I$408,$CM442,COLUMNS($CN$9:CO442)),\"\")","v":""},{"$f":"IFERROR(INDEX($B$9:$I$408,$CM442,COLUMNS($CN$9:CP442)),\"\")","v":""},{"$f":"IFERROR(INDEX($B$9:$I$408,$CM442,COLUMNS($CN$9:CQ442)),\"\")","v":""},{"$f":"IFERROR(INDEX($B$9:$I$408,$CM442,COLUMNS($CN$9:CR442)),\"\")","v":""},{"$f":"IFERROR(INDEX($B$9:$I$408,$CM442,COLUMNS($CN$9:CS442)),\"\")","v":""},{"$f":"IFERROR(INDEX($B$9:$I$408,$CM442,COLUMNS($CN$9:CT442)),\"\")","v":""},{"$f":"IFERROR(INDEX($B$9:$I$408,$CM442,COLUMNS($CN$9:CU442)),\"\")","v":""}]
[null,{"$f":"IF(ISBLANK('TA Indicator Bank'!B296),\"\",'TA Indicator Bank'!B296)","v":""},{"$f":"IF(ISBLANK('TA Indicator Bank'!C296),\"\",'TA Indicator Bank'!C296)","v":""},{"$f":"IF(ISBLANK('TA Indicator Bank'!D296),\"\",'TA Indicator Bank'!D296)","v":""},{"$f":"IF(ISBLANK('TA Indicator Bank'!E296),\"\",'TA Indicator Bank'!E296)","v":""},{"$f":"IF(ISBLANK('TA Indicator Bank'!F296),\"\",'TA Indicator Bank'!F296)","v":""},{"$f":"IF(ISBLANK('TA Indicator Bank'!G296),\"\",'TA Indicator Bank'!G296)","v":""},{"$f":"IF(ISBLANK('TA Indicator Bank'!H296),\"\",'TA Indicator Bank'!H296)","v":""},{"$f":"IF(ISBLANK('TA Indicator Bank'!I296),\"\",'TA Indicator Bank'!I296)","v":""},{"$f":"IF(ISBLANK('TA Indicator Bank'!J296),\"\",'TA Indicator Bank'!J296)","v":""},{"$f":"IF(ISBLANK('TA Indicator Bank'!K296),\"\",'TA Indicator Bank'!K296)","v":""},{"$f":"IF(ISBLANK('TA Indicator Bank'!L296),\"\",'TA Indicator Bank'!L296)","v":""},{"$f":"IF(ISBLANK('TA Indicator Bank'!M296),\"\",'TA Indicator Bank'!M296)","v":""},{"$f":"IF(ISBLANK('TA Indicator Bank'!N296),\"\",'TA Indicator Bank'!N296)","v":""},{"$f":"IF(ISBLANK('TA Indicator Bank'!O296),\"\",'TA Indicator Bank'!O296)","v":""},{"$f":"IF(ISBLANK('TA Indicator Bank'!P296),\"\",'TA Indicator Bank'!P296)","v":""},{"$f":"IF(ISBLANK('TA Indicator Bank'!Q296),\"\",'TA Indicator Bank'!Q296)","v":""},{"$f":"IF(ISBLANK('TA Indicator Bank'!R296),\"\",'TA Indicator Bank'!R296)","v":""},{"$f":"IF(ISBLANK('TA Indicator Bank'!S296),\"\",'TA Indicator Bank'!S296)","v":""},{"$f":"IF(ISBLANK('TA Indicator Bank'!T296),\"\",'TA Indicator Bank'!T296)","v":""},{"$f":"IF(ISBLANK('TA Indicator Bank'!U296),\"\",'TA Indicator Bank'!U296)","v":""},{"$f":"IF(ISBLANK('TA Indicator Bank'!V296),\"\",'TA Indicator Bank'!V296)","v":""},{"$f":"IF(ISBLANK('TA Indicator Bank'!W296),\"\",'TA Indicator Bank'!W296)","v":""},{"$f":"IF(ISBLANK('TA Indicator Bank'!X296),\"\",'TA Indicator Bank'!X296)","v":""},{"$f":"IF(ISBLANK('TA Indicator Bank'!Y296),\"\",'TA Indicator Bank'!Y296)","v":""},{"$f":"IF(ISBLANK('TA Indicator Bank'!Z296),\"\",'TA Indicator Bank'!Z296)","v":""},{"$f":"IF(ISBLANK('TA Indicator Bank'!AA296),\"\",'TA Indicator Bank'!AA296)","v":""},{"$f":"IF(ISBLANK('TA Indicator Bank'!AB296),\"\",'TA Indicator Bank'!AB296)","v":""},{"$f":"IF(ISBLANK('TA Indicator Bank'!AC296),\"\",'TA Indicator Bank'!AC296)","v":""},{"$f":"IF(ISBLANK('TA Indicator Bank'!AD296),\"\",'TA Indicator Bank'!AD296)","v":""},{"$f":"IF(ISBLANK('TA Indicator Bank'!AE296),\"\",'TA Indicator Bank'!AE296)","v":""},{"$f":"IF(ISBLANK('TA Indicator Bank'!AF296),\"\",'TA Indicator Bank'!AF296)","v":""},{"$f":"IF(ISBLANK('TA Indicator Bank'!AG296),\"\",'TA Indicator Bank'!AG296)","v":""},{"$f":"IF(ISBLANK('TA Indicator Bank'!AH296),\"\",'TA Indicator Bank'!AH296)","v":""},{"$f":"IF(ISBLANK('TA Indicator Bank'!AI296),\"\",'TA Indicator Bank'!AI296)","v":""},{"$f":"IF(ISBLANK('TA Indicator Bank'!AJ296),\"\",'TA Indicator Bank'!AJ296)","v":""},{"$f":"IF(ISBLANK('TA Indicator Bank'!AK296),\"\",'TA Indicator Bank'!AK296)","v":""},{"$f":"IF(ISBLANK('TA Indicator Bank'!AL296),\"\",'TA Indicator Bank'!AL296)","v":""},{"$f":"IF(ISBLANK('TA Indicator Bank'!AM296),\"\",'TA Indicator Bank'!AM296)","v":""},{"$f":"IF(ISBLANK('TA Indicator Bank'!AN296),\"\",'TA Indicator Bank'!AN296)","v":""},{"$f":"IF(ISBLANK('TA Indicator Bank'!AO296),\"\",'TA Indicator Bank'!AO296)","v":""},{"$f":"IF(ISBLANK('TA Indicator Bank'!AP296),\"\",'TA Indicator Bank'!AP296)","v":""},{"$f":"IF(ISBLANK('TA Indicator Bank'!AQ296),\"\",'TA Indicator Bank'!AQ296)","v":""},{"$f":"IF(ISBLANK('TA Indicator Bank'!AR296),\"\",'TA Indicator Bank'!AR296)","v":""},{"$f":"IF(ISBLANK('TA Indicator Bank'!AS296),\"\",'TA Indicator Bank'!AS296)","v":""},{"$f":"IF(ISBLANK('TA Indicator Bank'!AT296),\"\",'TA Indicator Bank'!AT296)","v":""},0,0,0,0,0,0,0,0,0,0,0,0,0,0,1,0,0,0,0,0,0,0,0,0,1,0,0,0,0,0,0,0,0,0,1,0,0,0,0,0,1,1,292,292,"",{"$f":"IFERROR(INDEX($B$9:$I$408,$CM443,COLUMNS($CN$9:CN443)),\"\")","v":""},{"$f":"IFERROR(INDEX($B$9:$I$408,$CM443,COLUMNS($CN$9:CO443)),\"\")","v":""},{"$f":"IFERROR(INDEX($B$9:$I$408,$CM443,COLUMNS($CN$9:CP443)),\"\")","v":""},{"$f":"IFERROR(INDEX($B$9:$I$408,$CM443,COLUMNS($CN$9:CQ443)),\"\")","v":""},{"$f":"IFERROR(INDEX($B$9:$I$408,$CM443,COLUMNS($CN$9:CR443)),\"\")","v":""},{"$f":"IFERROR(INDEX($B$9:$I$408,$CM443,COLUMNS($CN$9:CS443)),\"\")","v":""},{"$f":"IFERROR(INDEX($B$9:$I$408,$CM443,COLUMNS($CN$9:CT443)),\"\")","v":""},{"$f":"IFERROR(INDEX($B$9:$I$408,$CM443,COLUMNS($CN$9:CU443)),\"\")","v":""}]
[null,{"$f":"IF(ISBLANK('TA Indicator Bank'!B297),\"\",'TA Indicator Bank'!B297)","v":""},{"$f":"IF(ISBLANK('TA Indicator Bank'!C297),\"\",'TA Indicator Bank'!C297)","v":""},{"$f":"IF(ISBLANK('TA Indicator Bank'!D297),\"\",'TA Indicator Bank'!D297)","v":""},{"$f":"IF(ISBLANK('TA Indicator Bank'!E297),\"\",'TA Indicator Bank'!E297)","v":""},{"$f":"IF(ISBLANK('TA Indicator Bank'!F297),\"\",'TA Indicator Bank'!F297)","v":""},{"$f":"IF(ISBLANK('TA Indicator Bank'!G297),\"\",'TA Indicator Bank'!G297)","v":""},{"$f":"IF(ISBLANK('TA Indicator Bank'!H297),\"\",'TA Indicator Bank'!H297)","v":""},{"$f":"IF(ISBLANK('TA Indicator Bank'!I297),\"\",'TA Indicator Bank'!I297)","v":""},{"$f":"IF(ISBLANK('TA Indicator Bank'!J297),\"\",'TA Indicator Bank'!J297)","v":""},{"$f":"IF(ISBLANK('TA Indicator Bank'!K297),\"\",'TA Indicator Bank'!K297)","v":""},{"$f":"IF(ISBLANK('TA Indicator Bank'!L297),\"\",'TA Indicator Bank'!L297)","v":""},{"$f":"IF(ISBLANK('TA Indicator Bank'!M297),\"\",'TA Indicator Bank'!M297)","v":""},{"$f":"IF(ISBLANK('TA Indicator Bank'!N297),\"\",'TA Indicator Bank'!N297)","v":""},{"$f":"IF(ISBLANK('TA Indicator Bank'!O297),\"\",'TA Indicator Bank'!O297)","v":""},{"$f":"IF(ISBLANK('TA Indicator Bank'!P297),\"\",'TA Indicator Bank'!P297)","v":""},{"$f":"IF(ISBLANK('TA Indicator Bank'!Q297),\"\",'TA Indicator Bank'!Q297)","v":""},{"$f":"IF(ISBLANK('TA Indicator Bank'!R297),\"\",'TA Indicator Bank'!R297)","v":""},{"$f":"IF(ISBLANK('TA Indicator Bank'!S297),\"\",'TA Indicator Bank'!S297)","v":""},{"$f":"IF(ISBLANK('TA Indicator Bank'!T297),\"\",'TA Indicator Bank'!T297)","v":""},{"$f":"IF(ISBLANK('TA Indicator Bank'!U297),\"\",'TA Indicator Bank'!U297)","v":""},{"$f":"IF(ISBLANK('TA Indicator Bank'!V297),\"\",'TA Indicator Bank'!V297)","v":""},{"$f":"IF(ISBLANK('TA Indicator Bank'!W297),\"\",'TA Indicator Bank'!W297)","v":""},{"$f":"IF(ISBLANK('TA Indicator Bank'!X297),\"\",'TA Indicator Bank'!X297)","v":""},{"$f":"IF(ISBLANK('TA Indicator Bank'!Y297),\"\",'TA Indicator Bank'!Y297)","v":""},{"$f":"IF(ISBLANK('TA Indicator Bank'!Z297),\"\",'TA Indicator Bank'!Z297)","v":""},{"$f":"IF(ISBLANK('TA Indicator Bank'!AA297),\"\",'TA Indicator Bank'!AA297)","v":""},{"$f":"IF(ISBLANK('TA Indicator Bank'!AB297),\"\",'TA Indicator Bank'!AB297)","v":""},{"$f":"IF(ISBLANK('TA Indicator Bank'!AC297),\"\",'TA Indicator Bank'!AC297)","v":""},{"$f":"IF(ISBLANK('TA Indicator Bank'!AD297),\"\",'TA Indicator Bank'!AD297)","v":""},{"$f":"IF(ISBLANK('TA Indicator Bank'!AE297),\"\",'TA Indicator Bank'!AE297)","v":""},{"$f":"IF(ISBLANK('TA Indicator Bank'!AF297),\"\",'TA Indicator Bank'!AF297)","v":""},{"$f":"IF(ISBLANK('TA Indicator Bank'!AG297),\"\",'TA Indicator Bank'!AG297)","v":""},{"$f":"IF(ISBLANK('TA Indicator Bank'!AH297),\"\",'TA Indicator Bank'!AH297)","v":""},{"$f":"IF(ISBLANK('TA Indicator Bank'!AI297),\"\",'TA Indicator Bank'!AI297)","v":""},{"$f":"IF(ISBLANK('TA Indicator Bank'!AJ297),\"\",'TA Indicator Bank'!AJ297)","v":""},{"$f":"IF(ISBLANK('TA Indicator Bank'!AK297),\"\",'TA Indicator Bank'!AK297)","v":""},{"$f":"IF(ISBLANK('TA Indicator Bank'!AL297),\"\",'TA Indicator Bank'!AL297)","v":""},{"$f":"IF(ISBLANK('TA Indicator Bank'!AM297),\"\",'TA Indicator Bank'!AM297)","v":""},{"$f":"IF(ISBLANK('TA Indicator Bank'!AN297),\"\",'TA Indicator Bank'!AN297)","v":""},{"$f":"IF(ISBLANK('TA Indicator Bank'!AO297),\"\",'TA Indicator Bank'!AO297)","v":""},{"$f":"IF(ISBLANK('TA Indicator Bank'!AP297),\"\",'TA Indicator Bank'!AP297)","v":""},{"$f":"IF(ISBLANK('TA Indicator Bank'!AQ297),\"\",'TA Indicator Bank'!AQ297)","v":""},{"$f":"IF(ISBLANK('TA Indicator Bank'!AR297),\"\",'TA Indicator Bank'!AR297)","v":""},{"$f":"IF(ISBLANK('TA Indicator Bank'!AS297),\"\",'TA Indicator Bank'!AS297)","v":""},{"$f":"IF(ISBLANK('TA Indicator Bank'!AT297),\"\",'TA Indicator Bank'!AT297)","v":""},0,0,0,0,0,0,0,0,0,0,0,0,0,0,1,0,0,0,0,0,0,0,0,0,1,0,0,0,0,0,0,0,0,0,1,0,0,0,0,0,1,1,293,293,"",{"$f":"IFERROR(INDEX($B$9:$I$408,$CM444,COLUMNS($CN$9:CN444)),\"\")","v":""},{"$f":"IFERROR(INDEX($B$9:$I$408,$CM444,COLUMNS($CN$9:CO444)),\"\")","v":""},{"$f":"IFERROR(INDEX($B$9:$I$408,$CM444,COLUMNS($CN$9:CP444)),\"\")","v":""},{"$f":"IFERROR(INDEX($B$9:$I$408,$CM444,COLUMNS($CN$9:CQ444)),\"\")","v":""},{"$f":"IFERROR(INDEX($B$9:$I$408,$CM444,COLUMNS($CN$9:CR444)),\"\")","v":""},{"$f":"IFERROR(INDEX($B$9:$I$408,$CM444,COLUMNS($CN$9:CS444)),\"\")","v":""},{"$f":"IFERROR(INDEX($B$9:$I$408,$CM444,COLUMNS($CN$9:CT444)),\"\")","v":""},{"$f":"IFERROR(INDEX($B$9:$I$408,$CM444,COLUMNS($CN$9:CU444)),\"\")","v":""}]
[null,{"$f":"IF(ISBLANK('TA Indicator Bank'!B298),\"\",'TA Indicator Bank'!B298)","v":""},{"$f":"IF(ISBLANK('TA Indicator Bank'!C298),\"\",'TA Indicator Bank'!C298)","v":""},{"$f":"IF(ISBLANK('TA Indicator Bank'!D298),\"\",'TA Indicator Bank'!D298)","v":""},{"$f":"IF(ISBLANK('TA Indicator Bank'!E298),\"\",'TA Indicator Bank'!E298)","v":""},{"$f":"IF(ISBLANK('TA Indicator Bank'!F298),\"\",'TA Indicator Bank'!F298)","v":""},{"$f":"IF(ISBLANK('TA Indicator Bank'!G298),\"\",'TA Indicator Bank'!G298)","v":""},{"$f":"IF(ISBLANK('TA Indicator Bank'!H298),\"\",'TA Indicator Bank'!H298)","v":""},{"$f":"IF(ISBLANK('TA Indicator Bank'!I298),\"\",'TA Indicator Bank'!I298)","v":""},{"$f":"IF(ISBLANK('TA Indicator Bank'!J298),\"\",'TA Indicator Bank'!J298)","v":""},{"$f":"IF(ISBLANK('TA Indicator Bank'!K298),\"\",'TA Indicator Bank'!K298)","v":""},{"$f":"IF(ISBLANK('TA Indicator Bank'!L298),\"\",'TA Indicator Bank'!L298)","v":""},{"$f":"IF(ISBLANK('TA Indicator Bank'!M298),\"\",'TA Indicator Bank'!M298)","v":""},{"$f":"IF(ISBLANK('TA Indicator Bank'!N298),\"\",'TA Indicator Bank'!N298)","v":""},{"$f":"IF(ISBLANK('TA Indicator Bank'!O298),\"\",'TA Indicator Bank'!O298)","v":""},{"$f":"IF(ISBLANK('TA Indicator Bank'!P298),\"\",'TA Indicator Bank'!P298)","v":""},{"$f":"IF(ISBLANK('TA Indicator Bank'!Q298),\"\",'TA Indicator Bank'!Q298)","v":""},{"$f":"IF(ISBLANK('TA Indicator Bank'!R298),\"\",'TA Indicator Bank'!R298)","v":""},{"$f":"IF(ISBLANK('TA Indicator Bank'!S298),\"\",'TA Indicator Bank'!S298)","v":""},{"$f":"IF(ISBLANK('TA Indicator Bank'!T298),\"\",'TA Indicator Bank'!T298)","v":""},{"$f":"IF(ISBLANK('TA Indicator Bank'!U298),\"\",'TA Indicator Bank'!U298)","v":""},{"$f":"IF(ISBLANK('TA Indicator Bank'!V298),\"\",'TA Indicator Bank'!V298)","v":""},{"$f":"IF(ISBLANK('TA Indicator Bank'!W298),\"\",'TA Indicator Bank'!W298)","v":""},{"$f":"IF(ISBLANK('TA Indicator Bank'!X298),\"\",'TA Indicator Bank'!X298)","v":""},{"$f":"IF(ISBLANK('TA Indicator Bank'!Y298),\"\",'TA Indicator Bank'!Y298)","v":""},{"$f":"IF(ISBLANK('TA Indicator Bank'!Z298),\"\",'TA Indicator Bank'!Z298)","v":""},{"$f":"IF(ISBLANK('TA Indicator Bank'!AA298),\"\",'TA Indicator Bank'!AA298)","v":""},{"$f":"IF(ISBLANK('TA Indicator Bank'!AB298),\"\",'TA Indicator Bank'!AB298)","v":""},{"$f":"IF(ISBLANK('TA Indicator Bank'!AC298),\"\",'TA Indicator Bank'!AC298)","v":""},{"$f":"IF(ISBLANK('TA Indicator Bank'!AD298),\"\",'TA Indicator Bank'!AD298)","v":""},{"$f":"IF(ISBLANK('TA Indicator Bank'!AE298),\"\",'TA Indicator Bank'!AE298)","v":""},{"$f":"IF(ISBLANK('TA Indicator Bank'!AF298),\"\",'TA Indicator Bank'!AF298)","v":""},{"$f":"IF(ISBLANK('TA Indicator Bank'!AG298),\"\",'TA Indicator Bank'!AG298)","v":""},{"$f":"IF(ISBLANK('TA Indicator Bank'!AH298),\"\",'TA Indicator Bank'!AH298)","v":""},{"$f":"IF(ISBLANK('TA Indicator Bank'!AI298),\"\",'TA Indicator Bank'!AI298)","v":""},{"$f":"IF(ISBLANK('TA Indicator Bank'!AJ298),\"\",'TA Indicator Bank'!AJ298)","v":""},{"$f":"IF(ISBLANK('TA Indicator Bank'!AK298),\"\",'TA Indicator Bank'!AK298)","v":""},{"$f":"IF(ISBLANK('TA Indicator Bank'!AL298),\"\",'TA Indicator Bank'!AL298)","v":""},{"$f":"IF(ISBLANK('TA Indicator Bank'!AM298),\"\",'TA Indicator Bank'!AM298)","v":""},{"$f":"IF(ISBLANK('TA Indicator Bank'!AN298),\"\",'TA Indicator Bank'!AN298)","v":""},{"$f":"IF(ISBLANK('TA Indicator Bank'!AO298),\"\",'TA Indicator Bank'!AO298)","v":""},{"$f":"IF(ISBLANK('TA Indicator Bank'!AP298),\"\",'TA Indicator Bank'!AP298)","v":""},{"$f":"IF(ISBLANK('TA Indicator Bank'!AQ298),\"\",'TA Indicator Bank'!AQ298)","v":""},{"$f":"IF(ISBLANK('TA Indicator Bank'!AR298),\"\",'TA Indicator Bank'!AR298)","v":""},{"$f":"IF(ISBLANK('TA Indicator Bank'!AS298),\"\",'TA Indicator Bank'!AS298)","v":""},{"$f":"IF(ISBLANK('TA Indicator Bank'!AT298),\"\",'TA Indicator Bank'!AT298)","v":""},0,0,0,0,0,0,0,0,0,0,0,0,0,0,1,0,0,0,0,0,0,0,0,0,1,0,0,0,0,0,0,0,0,0,1,0,0,0,0,0,1,1,294,294,"",{"$f":"IFERROR(INDEX($B$9:$I$408,$CM445,COLUMNS($CN$9:CN445)),\"\")","v":""},{"$f":"IFERROR(INDEX($B$9:$I$408,$CM445,COLUMNS($CN$9:CO445)),\"\")","v":""},{"$f":"IFERROR(INDEX($B$9:$I$408,$CM445,COLUMNS($CN$9:CP445)),\"\")","v":""},{"$f":"IFERROR(INDEX($B$9:$I$408,$CM445,COLUMNS($CN$9:CQ445)),\"\")","v":""},{"$f":"IFERROR(INDEX($B$9:$I$408,$CM445,COLUMNS($CN$9:CR445)),\"\")","v":""},{"$f":"IFERROR(INDEX($B$9:$I$408,$CM445,COLUMNS($CN$9:CS445)),\"\")","v":""},{"$f":"IFERROR(INDEX($B$9:$I$408,$CM445,COLUMNS($CN$9:CT445)),\"\")","v":""},{"$f":"IFERROR(INDEX($B$9:$I$408,$CM445,COLUMNS($CN$9:CU445)),\"\")","v":""}]
[null,{"$f":"IF(ISBLANK('TA Indicator Bank'!B299),\"\",'TA Indicator Bank'!B299)","v":""},{"$f":"IF(ISBLANK('TA Indicator Bank'!C299),\"\",'TA Indicator Bank'!C299)","v":""},{"$f":"IF(ISBLANK('TA Indicator Bank'!D299),\"\",'TA Indicator Bank'!D299)","v":""},{"$f":"IF(ISBLANK('TA Indicator Bank'!E299),\"\",'TA Indicator Bank'!E299)","v":""},{"$f":"IF(ISBLANK('TA Indicator Bank'!F299),\"\",'TA Indicator Bank'!F299)","v":""},{"$f":"IF(ISBLANK('TA Indicator Bank'!G299),\"\",'TA Indicator Bank'!G299)","v":""},{"$f":"IF(ISBLANK('TA Indicator Bank'!H299),\"\",'TA Indicator Bank'!H299)","v":""},{"$f":"IF(ISBLANK('TA Indicator Bank'!I299),\"\",'TA Indicator Bank'!I299)","v":""},{"$f":"IF(ISBLANK('TA Indicator Bank'!J299),\"\",'TA Indicator Bank'!J299)","v":""},{"$f":"IF(ISBLANK('TA Indicator Bank'!K299),\"\",'TA Indicator Bank'!K299)","v":""},{"$f":"IF(ISBLANK('TA Indicator Bank'!L299),\"\",'TA Indicator Bank'!L299)","v":""},{"$f":"IF(ISBLANK('TA Indicator Bank'!M299),\"\",'TA Indicator Bank'!M299)","v":""},{"$f":"IF(ISBLANK('TA Indicator Bank'!N299),\"\",'TA Indicator Bank'!N299)","v":""},{"$f":"IF(ISBLANK('TA Indicator Bank'!O299),\"\",'TA Indicator Bank'!O299)","v":""},{"$f":"IF(ISBLANK('TA Indicator Bank'!P299),\"\",'TA Indicator Bank'!P299)","v":""},{"$f":"IF(ISBLANK('TA Indicator Bank'!Q299),\"\",'TA Indicator Bank'!Q299)","v":""},{"$f":"IF(ISBLANK('TA Indicator Bank'!R299),\"\",'TA Indicator Bank'!R299)","v":""},{"$f":"IF(ISBLANK('TA Indicator Bank'!S299),\"\",'TA Indicator Bank'!S299)","v":""},{"$f":"IF(ISBLANK('TA Indicator Bank'!T299),\"\",'TA Indicator Bank'!T299)","v":""},{"$f":"IF(ISBLANK('TA Indicator Bank'!U299),\"\",'TA Indicator Bank'!U299)","v":""},{"$f":"IF(ISBLANK('TA Indicator Bank'!V299),\"\",'TA Indicator Bank'!V299)","v":""},{"$f":"IF(ISBLANK('TA Indicator Bank'!W299),\"\",'TA Indicator Bank'!W299)","v":""},{"$f":"IF(ISBLANK('TA Indicator Bank'!X299),\"\",'TA Indicator Bank'!X299)","v":""},{"$f":"IF(ISBLANK('TA Indicator Bank'!Y299),\"\",'TA Indicator Bank'!Y299)","v":""},{"$f":"IF(ISBLANK('TA Indicator Bank'!Z299),\"\",'TA Indicator Bank'!Z299)","v":""},{"$f":"IF(ISBLANK('TA Indicator Bank'!AA299),\"\",'TA Indicator Bank'!AA299)","v":""},{"$f":"IF(ISBLANK('TA Indicator Bank'!AB299),\"\",'TA Indicator Bank'!AB299)","v":""},{"$f":"IF(ISBLANK('TA Indicator Bank'!AC299),\"\",'TA Indicator Bank'!AC299)","v":""},{"$f":"IF(ISBLANK('TA Indicator Bank'!AD299),\"\",'TA Indicator Bank'!AD299)","v":""},{"$f":"IF(ISBLANK('TA Indicator Bank'!AE299),\"\",'TA Indicator Bank'!AE299)","v":""},{"$f":"IF(ISBLANK('TA Indicator Bank'!AF299),\"\",'TA Indicator Bank'!AF299)","v":""},{"$f":"IF(ISBLANK('TA Indicator Bank'!AG299),\"\",'TA Indicator Bank'!AG299)","v":""},{"$f":"IF(ISBLANK('TA Indicator Bank'!AH299),\"\",'TA Indicator Bank'!AH299)","v":""},{"$f":"IF(ISBLANK('TA Indicator Bank'!AI299),\"\",'TA Indicator Bank'!AI299)","v":""},{"$f":"IF(ISBLANK('TA Indicator Bank'!AJ299),\"\",'TA Indicator Bank'!AJ299)","v":""},{"$f":"IF(ISBLANK('TA Indicator Bank'!AK299),\"\",'TA Indicator Bank'!AK299)","v":""},{"$f":"IF(ISBLANK('TA Indicator Bank'!AL299),\"\",'TA Indicator Bank'!AL299)","v":""},{"$f":"IF(ISBLANK('TA Indicator Bank'!AM299),\"\",'TA Indicator Bank'!AM299)","v":""},{"$f":"IF(ISBLANK('TA Indicator Bank'!AN299),\"\",'TA Indicator Bank'!AN299)","v":""},{"$f":"IF(ISBLANK('TA Indicator Bank'!AO299),\"\",'TA Indicator Bank'!AO299)","v":""},{"$f":"IF(ISBLANK('TA Indicator Bank'!AP299),\"\",'TA Indicator Bank'!AP299)","v":""},{"$f":"IF(ISBLANK('TA Indicator Bank'!AQ299),\"\",'TA Indicator Bank'!AQ299)","v":""},{"$f":"IF(ISBLANK('TA Indicator Bank'!AR299),\"\",'TA Indicator Bank'!AR299)","v":""},{"$f":"IF(ISBLANK('TA Indicator Bank'!AS299),\"\",'TA Indicator Bank'!AS299)","v":""},{"$f":"IF(ISBLANK('TA Indicator Bank'!AT299),\"\",'TA Indicator Bank'!AT299)","v":""},0,0,0,0,0,0,0,0,0,0,0,0,0,0,1,0,0,0,0,0,0,0,0,0,1,0,0,0,0,0,0,0,0,0,1,0,0,0,0,0,1,1,295,295,"",{"$f":"IFERROR(INDEX($B$9:$I$408,$CM446,COLUMNS($CN$9:CN446)),\"\")","v":""},{"$f":"IFERROR(INDEX($B$9:$I$408,$CM446,COLUMNS($CN$9:CO446)),\"\")","v":""},{"$f":"IFERROR(INDEX($B$9:$I$408,$CM446,COLUMNS($CN$9:CP446)),\"\")","v":""},{"$f":"IFERROR(INDEX($B$9:$I$408,$CM446,COLUMNS($CN$9:CQ446)),\"\")","v":""},{"$f":"IFERROR(INDEX($B$9:$I$408,$CM446,COLUMNS($CN$9:CR446)),\"\")","v":""},{"$f":"IFERROR(INDEX($B$9:$I$408,$CM446,COLUMNS($CN$9:CS446)),\"\")","v":""},{"$f":"IFERROR(INDEX($B$9:$I$408,$CM446,COLUMNS($CN$9:CT446)),\"\")","v":""},{"$f":"IFERROR(INDEX($B$9:$I$408,$CM446,COLUMNS($CN$9:CU446)),\"\")","v":""}]
[null,{"$f":"IF(ISBLANK('TA Indicator Bank'!B300),\"\",'TA Indicator Bank'!B300)","v":""},{"$f":"IF(ISBLANK('TA Indicator Bank'!C300),\"\",'TA Indicator Bank'!C300)","v":""},{"$f":"IF(ISBLANK('TA Indicator Bank'!D300),\"\",'TA Indicator Bank'!D300)","v":""},{"$f":"IF(ISBLANK('TA Indicator Bank'!E300),\"\",'TA Indicator Bank'!E300)","v":""},{"$f":"IF(ISBLANK('TA Indicator Bank'!F300),\"\",'TA Indicator Bank'!F300)","v":""},{"$f":"IF(ISBLANK('TA Indicator Bank'!G300),\"\",'TA Indicator Bank'!G300)","v":""},{"$f":"IF(ISBLANK('TA Indicator Bank'!H300),\"\",'TA Indicator Bank'!H300)","v":""},{"$f":"IF(ISBLANK('TA Indicator Bank'!I300),\"\",'TA Indicator Bank'!I300)","v":""},{"$f":"IF(ISBLANK('TA Indicator Bank'!J300),\"\",'TA Indicator Bank'!J300)","v":""},{"$f":"IF(ISBLANK('TA Indicator Bank'!K300),\"\",'TA Indicator Bank'!K300)","v":""},{"$f":"IF(ISBLANK('TA Indicator Bank'!L300),\"\",'TA Indicator Bank'!L300)","v":""},{"$f":"IF(ISBLANK('TA Indicator Bank'!M300),\"\",'TA Indicator Bank'!M300)","v":""},{"$f":"IF(ISBLANK('TA Indicator Bank'!N300),\"\",'TA Indicator Bank'!N300)","v":""},{"$f":"IF(ISBLANK('TA Indicator Bank'!O300),\"\",'TA Indicator Bank'!O300)","v":""},{"$f":"IF(ISBLANK('TA Indicator Bank'!P300),\"\",'TA Indicator Bank'!P300)","v":""},{"$f":"IF(ISBLANK('TA Indicator Bank'!Q300),\"\",'TA Indicator Bank'!Q300)","v":""},{"$f":"IF(ISBLANK('TA Indicator Bank'!R300),\"\",'TA Indicator Bank'!R300)","v":""},{"$f":"IF(ISBLANK('TA Indicator Bank'!S300),\"\",'TA Indicator Bank'!S300)","v":""},{"$f":"IF(ISBLANK('TA Indicator Bank'!T300),\"\",'TA Indicator Bank'!T300)","v":""},{"$f":"IF(ISBLANK('TA Indicator Bank'!U300),\"\",'TA Indicator Bank'!U300)","v":""},{"$f":"IF(ISBLANK('TA Indicator Bank'!V300),\"\",'TA Indicator Bank'!V300)","v":""},{"$f":"IF(ISBLANK('TA Indicator Bank'!W300),\"\",'TA Indicator Bank'!W300)","v":""},{"$f":"IF(ISBLANK('TA Indicator Bank'!X300),\"\",'TA Indicator Bank'!X300)","v":""},{"$f":"IF(ISBLANK('TA Indicator Bank'!Y300),\"\",'TA Indicator Bank'!Y300)","v":""},{"$f":"IF(ISBLANK('TA Indicator Bank'!Z300),\"\",'TA Indicator Bank'!Z300)","v":""},{"$f":"IF(ISBLANK('TA Indicator Bank'!AA300),\"\",'TA Indicator Bank'!AA300)","v":""},{"$f":"IF(ISBLANK('TA Indicator Bank'!AB300),\"\",'TA Indicator Bank'!AB300)","v":""},{"$f":"IF(ISBLANK('TA Indicator Bank'!AC300),\"\",'TA Indicator Bank'!AC300)","v":""},{"$f":"IF(ISBLANK('TA Indicator Bank'!AD300),\"\",'TA Indicator Bank'!AD300)","v":""},{"$f":"IF(ISBLANK('TA Indicator Bank'!AE300),\"\",'TA Indicator Bank'!AE300)","v":""},{"$f":"IF(ISBLANK('TA Indicator Bank'!AF300),\"\",'TA Indicator Bank'!AF300)","v":""},{"$f":"IF(ISBLANK('TA Indicator Bank'!AG300),\"\",'TA Indicator Bank'!AG300)","v":""},{"$f":"IF(ISBLANK('TA Indicator Bank'!AH300),\"\",'TA Indicator Bank'!AH300)","v":""},{"$f":"IF(ISBLANK('TA Indicator Bank'!AI300),\"\",'TA Indicator Bank'!AI300)","v":""},{"$f":"IF(ISBLANK('TA Indicator Bank'!AJ300),\"\",'TA Indicator Bank'!AJ300)","v":""},{"$f":"IF(ISBLANK('TA Indicator Bank'!AK300),\"\",'TA Indicator Bank'!AK300)","v":""},{"$f":"IF(ISBLANK('TA Indicator Bank'!AL300),\"\",'TA Indicator Bank'!AL300)","v":""},{"$f":"IF(ISBLANK('TA Indicator Bank'!AM300),\"\",'TA Indicator Bank'!AM300)","v":""},{"$f":"IF(ISBLANK('TA Indicator Bank'!AN300),\"\",'TA Indicator Bank'!AN300)","v":""},{"$f":"IF(ISBLANK('TA Indicator Bank'!AO300),\"\",'TA Indicator Bank'!AO300)","v":""},{"$f":"IF(ISBLANK('TA Indicator Bank'!AP300),\"\",'TA Indicator Bank'!AP300)","v":""},{"$f":"IF(ISBLANK('TA Indicator Bank'!AQ300),\"\",'TA Indicator Bank'!AQ300)","v":""},{"$f":"IF(ISBLANK('TA Indicator Bank'!AR300),\"\",'TA Indicator Bank'!AR300)","v":""},{"$f":"IF(ISBLANK('TA Indicator Bank'!AS300),\"\",'TA Indicator Bank'!AS300)","v":""},{"$f":"IF(ISBLANK('TA Indicator Bank'!AT300),\"\",'TA Indicator Bank'!AT300)","v":""},0,0,0,0,0,0,0,0,0,0,0,0,0,0,1,0,0,0,0,0,0,0,0,0,1,0,0,0,0,0,0,0,0,0,1,0,0,0,0,0,1,1,296,296,"",{"$f":"IFERROR(INDEX($B$9:$I$408,$CM447,COLUMNS($CN$9:CN447)),\"\")","v":""},{"$f":"IFERROR(INDEX($B$9:$I$408,$CM447,COLUMNS($CN$9:CO447)),\"\")","v":""},{"$f":"IFERROR(INDEX($B$9:$I$408,$CM447,COLUMNS($CN$9:CP447)),\"\")","v":""},{"$f":"IFERROR(INDEX($B$9:$I$408,$CM447,COLUMNS($CN$9:CQ447)),\"\")","v":""},{"$f":"IFERROR(INDEX($B$9:$I$408,$CM447,COLUMNS($CN$9:CR447)),\"\")","v":""},{"$f":"IFERROR(INDEX($B$9:$I$408,$CM447,COLUMNS($CN$9:CS447)),\"\")","v":""},{"$f":"IFERROR(INDEX($B$9:$I$408,$CM447,COLUMNS($CN$9:CT447)),\"\")","v":""},{"$f":"IFERROR(INDEX($B$9:$I$408,$CM447,COLUMNS($CN$9:CU447)),\"\")","v":""}]
[null,{"$f":"IF(ISBLANK('TA Indicator Bank'!B301),\"\",'TA Indicator Bank'!B301)","v":""},{"$f":"IF(ISBLANK('TA Indicator Bank'!C301),\"\",'TA Indicator Bank'!C301)","v":""},{"$f":"IF(ISBLANK('TA Indicator Bank'!D301),\"\",'TA Indicator Bank'!D301)","v":""},{"$f":"IF(ISBLANK('TA Indicator Bank'!E301),\"\",'TA Indicator Bank'!E301)","v":""},{"$f":"IF(ISBLANK('TA Indicator Bank'!F301),\"\",'TA Indicator Bank'!F301)","v":""},{"$f":"IF(ISBLANK('TA Indicator Bank'!G301),\"\",'TA Indicator Bank'!G301)","v":""},{"$f":"IF(ISBLANK('TA Indicator Bank'!H301),\"\",'TA Indicator Bank'!H301)","v":""},{"$f":"IF(ISBLANK('TA Indicator Bank'!I301),\"\",'TA Indicator Bank'!I301)","v":""},{"$f":"IF(ISBLANK('TA Indicator Bank'!J301),\"\",'TA Indicator Bank'!J301)","v":""},{"$f":"IF(ISBLANK('TA Indicator Bank'!K301),\"\",'TA Indicator Bank'!K301)","v":""},{"$f":"IF(ISBLANK('TA Indicator Bank'!L301),\"\",'TA Indicator Bank'!L301)","v":""},{"$f":"IF(ISBLANK('TA Indicator Bank'!M301),\"\",'TA Indicator Bank'!M301)","v":""},{"$f":"IF(ISBLANK('TA Indicator Bank'!N301),\"\",'TA Indicator Bank'!N301)","v":""},{"$f":"IF(ISBLANK('TA Indicator Bank'!O301),\"\",'TA Indicator Bank'!O301)","v":""},{"$f":"IF(ISBLANK('TA Indicator Bank'!P301),\"\",'TA Indicator Bank'!P301)","v":""},{"$f":"IF(ISBLANK('TA Indicator Bank'!Q301),\"\",'TA Indicator Bank'!Q301)","v":""},{"$f":"IF(ISBLANK('TA Indicator Bank'!R301),\"\",'TA Indicator Bank'!R301)","v":""},{"$f":"IF(ISBLANK('TA Indicator Bank'!S301),\"\",'TA Indicator Bank'!S301)","v":""},{"$f":"IF(ISBLANK('TA Indicator Bank'!T301),\"\",'TA Indicator Bank'!T301)","v":""},{"$f":"IF(ISBLANK('TA Indicator Bank'!U301),\"\",'TA Indicator Bank'!U301)","v":""},{"$f":"IF(ISBLANK('TA Indicator Bank'!V301),\"\",'TA Indicator Bank'!V301)","v":""},{"$f":"IF(ISBLANK('TA Indicator Bank'!W301),\"\",'TA Indicator Bank'!W301)","v":""},{"$f":"IF(ISBLANK('TA Indicator Bank'!X301),\"\",'TA Indicator Bank'!X301)","v":""},{"$f":"IF(ISBLANK('TA Indicator Bank'!Y301),\"\",'TA Indicator Bank'!Y301)","v":""},{"$f":"IF(ISBLANK('TA Indicator Bank'!Z301),\"\",'TA Indicator Bank'!Z301)","v":""},{"$f":"IF(ISBLANK('TA Indicator Bank'!AA301),\"\",'TA Indicator Bank'!AA301)","v":""},{"$f":"IF(ISBLANK('TA Indicator Bank'!AB301),\"\",'TA Indicator Bank'!AB301)","v":""},{"$f":"IF(ISBLANK('TA Indicator Bank'!AC301),\"\",'TA Indicator Bank'!AC301)","v":""},{"$f":"IF(ISBLANK('TA Indicator Bank'!AD301),\"\",'TA Indicator Bank'!AD301)","v":""},{"$f":"IF(ISBLANK('TA Indicator Bank'!AE301),\"\",'TA Indicator Bank'!AE301)","v":""},{"$f":"IF(ISBLANK('TA Indicator Bank'!AF301),\"\",'TA Indicator Bank'!AF301)","v":""},{"$f":"IF(ISBLANK('TA Indicator Bank'!AG301),\"\",'TA Indicator Bank'!AG301)","v":""},{"$f":"IF(ISBLANK('TA Indicator Bank'!AH301),\"\",'TA Indicator Bank'!AH301)","v":""},{"$f":"IF(ISBLANK('TA Indicator Bank'!AI301),\"\",'TA Indicator Bank'!AI301)","v":""},{"$f":"IF(ISBLANK('TA Indicator Bank'!AJ301),\"\",'TA Indicator Bank'!AJ301)","v":""},{"$f":"IF(ISBLANK('TA Indicator Bank'!AK301),\"\",'TA Indicator Bank'!AK301)","v":""},{"$f":"IF(ISBLANK('TA Indicator Bank'!AL301),\"\",'TA Indicator Bank'!AL301)","v":""},{"$f":"IF(ISBLANK('TA Indicator Bank'!AM301),\"\",'TA Indicator Bank'!AM301)","v":""},{"$f":"IF(ISBLANK('TA Indicator Bank'!AN301),\"\",'TA Indicator Bank'!AN301)","v":""},{"$f":"IF(ISBLANK('TA Indicator Bank'!AO301),\"\",'TA Indicator Bank'!AO301)","v":""},{"$f":"IF(ISBLANK('TA Indicator Bank'!AP301),\"\",'TA Indicator Bank'!AP301)","v":""},{"$f":"IF(ISBLANK('TA Indicator Bank'!AQ301),\"\",'TA Indicator Bank'!AQ301)","v":""},{"$f":"IF(ISBLANK('TA Indicator Bank'!AR301),\"\",'TA Indicator Bank'!AR301)","v":""},{"$f":"IF(ISBLANK('TA Indicator Bank'!AS301),\"\",'TA Indicator Bank'!AS301)","v":""},{"$f":"IF(ISBLANK('TA Indicator Bank'!AT301),\"\",'TA Indicator Bank'!AT301)","v":""},0,0,0,0,0,0,0,0,0,0,0,0,0,0,1,0,0,0,0,0,0,0,0,0,1,0,0,0,0,0,0,0,0,0,1,0,0,0,0,0,1,1,297,297,"",{"$f":"IFERROR(INDEX($B$9:$I$408,$CM448,COLUMNS($CN$9:CN448)),\"\")","v":""},{"$f":"IFERROR(INDEX($B$9:$I$408,$CM448,COLUMNS($CN$9:CO448)),\"\")","v":""},{"$f":"IFERROR(INDEX($B$9:$I$408,$CM448,COLUMNS($CN$9:CP448)),\"\")","v":""},{"$f":"IFERROR(INDEX($B$9:$I$408,$CM448,COLUMNS($CN$9:CQ448)),\"\")","v":""},{"$f":"IFERROR(INDEX($B$9:$I$408,$CM448,COLUMNS($CN$9:CR448)),\"\")","v":""},{"$f":"IFERROR(INDEX($B$9:$I$408,$CM448,COLUMNS($CN$9:CS448)),\"\")","v":""},{"$f":"IFERROR(INDEX($B$9:$I$408,$CM448,COLUMNS($CN$9:CT448)),\"\")","v":""},{"$f":"IFERROR(INDEX($B$9:$I$408,$CM448,COLUMNS($CN$9:CU448)),\"\")","v":""}]
[null,{"$f":"IF(ISBLANK('TA Indicator Bank'!B302),\"\",'TA Indicator Bank'!B302)","v":""},{"$f":"IF(ISBLANK('TA Indicator Bank'!C302),\"\",'TA Indicator Bank'!C302)","v":""},{"$f":"IF(ISBLANK('TA Indicator Bank'!D302),\"\",'TA Indicator Bank'!D302)","v":""},{"$f":"IF(ISBLANK('TA Indicator Bank'!E302),\"\",'TA Indicator Bank'!E302)","v":""},{"$f":"IF(ISBLANK('TA Indicator Bank'!F302),\"\",'TA Indicator Bank'!F302)","v":""},{"$f":"IF(ISBLANK('TA Indicator Bank'!G302),\"\",'TA Indicator Bank'!G302)","v":""},{"$f":"IF(ISBLANK('TA Indicator Bank'!H302),\"\",'TA Indicator Bank'!H302)","v":""},{"$f":"IF(ISBLANK('TA Indicator Bank'!I302),\"\",'TA Indicator Bank'!I302)","v":""},{"$f":"IF(ISBLANK('TA Indicator Bank'!J302),\"\",'TA Indicator Bank'!J302)","v":""},{"$f":"IF(ISBLANK('TA Indicator Bank'!K302),\"\",'TA Indicator Bank'!K302)","v":""},{"$f":"IF(ISBLANK('TA Indicator Bank'!L302),\"\",'TA Indicator Bank'!L302)","v":""},{"$f":"IF(ISBLANK('TA Indicator Bank'!M302),\"\",'TA Indicator Bank'!M302)","v":""},{"$f":"IF(ISBLANK('TA Indicator Bank'!N302),\"\",'TA Indicator Bank'!N302)","v":""},{"$f":"IF(ISBLANK('TA Indicator Bank'!O302),\"\",'TA Indicator Bank'!O302)","v":""},{"$f":"IF(ISBLANK('TA Indicator Bank'!P302),\"\",'TA Indicator Bank'!P302)","v":""},{"$f":"IF(ISBLANK('TA Indicator Bank'!Q302),\"\",'TA Indicator Bank'!Q302)","v":""},{"$f":"IF(ISBLANK('TA Indicator Bank'!R302),\"\",'TA Indicator Bank'!R302)","v":""},{"$f":"IF(ISBLANK('TA Indicator Bank'!S302),\"\",'TA Indicator Bank'!S302)","v":""},{"$f":"IF(ISBLANK('TA Indicator Bank'!T302),\"\",'TA Indicator Bank'!T302)","v":""},{"$f":"IF(ISBLANK('TA Indicator Bank'!U302),\"\",'TA Indicator Bank'!U302)","v":""},{"$f":"IF(ISBLANK('TA Indicator Bank'!V302),\"\",'TA Indicator Bank'!V302)","v":""},{"$f":"IF(ISBLANK('TA Indicator Bank'!W302),\"\",'TA Indicator Bank'!W302)","v":""},{"$f":"IF(ISBLANK('TA Indicator Bank'!X302),\"\",'TA Indicator Bank'!X302)","v":""},{"$f":"IF(ISBLANK('TA Indicator Bank'!Y302),\"\",'TA Indicator Bank'!Y302)","v":""},{"$f":"IF(ISBLANK('TA Indicator Bank'!Z302),\"\",'TA Indicator Bank'!Z302)","v":""},{"$f":"IF(ISBLANK('TA Indicator Bank'!AA302),\"\",'TA Indicator Bank'!AA302)","v":""},{"$f":"IF(ISBLANK('TA Indicator Bank'!AB302),\"\",'TA Indicator Bank'!AB302)","v":""},{"$f":"IF(ISBLANK('TA Indicator Bank'!AC302),\"\",'TA Indicator Bank'!AC302)","v":""},{"$f":"IF(ISBLANK('TA Indicator Bank'!AD302),\"\",'TA Indicator Bank'!AD302)","v":""},{"$f":"IF(ISBLANK('TA Indicator Bank'!AE302),\"\",'TA Indicator Bank'!AE302)","v":""},{"$f":"IF(ISBLANK('TA Indicator Bank'!AF302),\"\",'TA Indicator Bank'!AF302)","v":""},{"$f":"IF(ISBLANK('TA Indicator Bank'!AG302),\"\",'TA Indicator Bank'!AG302)","v":""},{"$f":"IF(ISBLANK('TA Indicator Bank'!AH302),\"\",'TA Indicator Bank'!AH302)","v":""},{"$f":"IF(ISBLANK('TA Indicator Bank'!AI302),\"\",'TA Indicator Bank'!AI302)","v":""},{"$f":"IF(ISBLANK('TA Indicator Bank'!AJ302),\"\",'TA Indicator Bank'!AJ302)","v":""},{"$f":"IF(ISBLANK('TA Indicator Bank'!AK302),\"\",'TA Indicator Bank'!AK302)","v":""},{"$f":"IF(ISBLANK('TA Indicator Bank'!AL302),\"\",'TA Indicator Bank'!AL302)","v":""},{"$f":"IF(ISBLANK('TA Indicator Bank'!AM302),\"\",'TA Indicator Bank'!AM302)","v":""},{"$f":"IF(ISBLANK('TA Indicator Bank'!AN302),\"\",'TA Indicator Bank'!AN302)","v":""},{"$f":"IF(ISBLANK('TA Indicator Bank'!AO302),\"\",'TA Indicator Bank'!AO302)","v":""},{"$f":"IF(ISBLANK('TA Indicator Bank'!AP302),\"\",'TA Indicator Bank'!AP302)","v":""},{"$f":"IF(ISBLANK('TA Indicator Bank'!AQ302),\"\",'TA Indicator Bank'!AQ302)","v":""},{"$f":"IF(ISBLANK('TA Indicator Bank'!AR302),\"\",'TA Indicator Bank'!AR302)","v":""},{"$f":"IF(ISBLANK('TA Indicator Bank'!AS302),\"\",'TA Indicator Bank'!AS302)","v":""},{"$f":"IF(ISBLANK('TA Indicator Bank'!AT302),\"\",'TA Indicator Bank'!AT302)","v":""},0,0,0,0,0,0,0,0,0,0,0,0,0,0,1,0,0,0,0,0,0,0,0,0,1,0,0,0,0,0,0,0,0,0,1,0,0,0,0,0,1,1,298,298,"",{"$f":"IFERROR(INDEX($B$9:$I$408,$CM449,COLUMNS($CN$9:CN449)),\"\")","v":""},{"$f":"IFERROR(INDEX($B$9:$I$408,$CM449,COLUMNS($CN$9:CO449)),\"\")","v":""},{"$f":"IFERROR(INDEX($B$9:$I$408,$CM449,COLUMNS($CN$9:CP449)),\"\")","v":""},{"$f":"IFERROR(INDEX($B$9:$I$408,$CM449,COLUMNS($CN$9:CQ449)),\"\")","v":""},{"$f":"IFERROR(INDEX($B$9:$I$408,$CM449,COLUMNS($CN$9:CR449)),\"\")","v":""},{"$f":"IFERROR(INDEX($B$9:$I$408,$CM449,COLUMNS($CN$9:CS449)),\"\")","v":""},{"$f":"IFERROR(INDEX($B$9:$I$408,$CM449,COLUMNS($CN$9:CT449)),\"\")","v":""},{"$f":"IFERROR(INDEX($B$9:$I$408,$CM449,COLUMNS($CN$9:CU449)),\"\")","v":""}]
[null,{"$f":"IF(ISBLANK('TA Indicator Bank'!B303),\"\",'TA Indicator Bank'!B303)","v":""},{"$f":"IF(ISBLANK('TA Indicator Bank'!C303),\"\",'TA Indicator Bank'!C303)","v":""},{"$f":"IF(ISBLANK('TA Indicator Bank'!D303),\"\",'TA Indicator Bank'!D303)","v":""},{"$f":"IF(ISBLANK('TA Indicator Bank'!E303),\"\",'TA Indicator Bank'!E303)","v":""},{"$f":"IF(ISBLANK('TA Indicator Bank'!F303),\"\",'TA Indicator Bank'!F303)","v":""},{"$f":"IF(ISBLANK('TA Indicator Bank'!G303),\"\",'TA Indicator Bank'!G303)","v":""},{"$f":"IF(ISBLANK('TA Indicator Bank'!H303),\"\",'TA Indicator Bank'!H303)","v":""},{"$f":"IF(ISBLANK('TA Indicator Bank'!I303),\"\",'TA Indicator Bank'!I303)","v":""},{"$f":"IF(ISBLANK('TA Indicator Bank'!J303),\"\",'TA Indicator Bank'!J303)","v":""},{"$f":"IF(ISBLANK('TA Indicator Bank'!K303),\"\",'TA Indicator Bank'!K303)","v":""},{"$f":"IF(ISBLANK('TA Indicator Bank'!L303),\"\",'TA Indicator Bank'!L303)","v":""},{"$f":"IF(ISBLANK('TA Indicator Bank'!M303),\"\",'TA Indicator Bank'!M303)","v":""},{"$f":"IF(ISBLANK('TA Indicator Bank'!N303),\"\",'TA Indicator Bank'!N303)","v":""},{"$f":"IF(ISBLANK('TA Indicator Bank'!O303),\"\",'TA Indicator Bank'!O303)","v":""},{"$f":"IF(ISBLANK('TA Indicator Bank'!P303),\"\",'TA Indicator Bank'!P303)","v":""},{"$f":"IF(ISBLANK('TA Indicator Bank'!Q303),\"\",'TA Indicator Bank'!Q303)","v":""},{"$f":"IF(ISBLANK('TA Indicator Bank'!R303),\"\",'TA Indicator Bank'!R303)","v":""},{"$f":"IF(ISBLANK('TA Indicator Bank'!S303),\"\",'TA Indicator Bank'!S303)","v":""},{"$f":"IF(ISBLANK('TA Indicator Bank'!T303),\"\",'TA Indicator Bank'!T303)","v":""},{"$f":"IF(ISBLANK('TA Indicator Bank'!U303),\"\",'TA Indicator Bank'!U303)","v":""},{"$f":"IF(ISBLANK('TA Indicator Bank'!V303),\"\",'TA Indicator Bank'!V303)","v":""},{"$f":"IF(ISBLANK('TA Indicator Bank'!W303),\"\",'TA Indicator Bank'!W303)","v":""},{"$f":"IF(ISBLANK('TA Indicator Bank'!X303),\"\",'TA Indicator Bank'!X303)","v":""},{"$f":"IF(ISBLANK('TA Indicator Bank'!Y303),\"\",'TA Indicator Bank'!Y303)","v":""},{"$f":"IF(ISBLANK('TA Indicator Bank'!Z303),\"\",'TA Indicator Bank'!Z303)","v":""},{"$f":"IF(ISBLANK('TA Indicator Bank'!AA303),\"\",'TA Indicator Bank'!AA303)","v":""},{"$f":"IF(ISBLANK('TA Indicator Bank'!AB303),\"\",'TA Indicator Bank'!AB303)","v":""},{"$f":"IF(ISBLANK('TA Indicator Bank'!AC303),\"\",'TA Indicator Bank'!AC303)","v":""},{"$f":"IF(ISBLANK('TA Indicator Bank'!AD303),\"\",'TA Indicator Bank'!AD303)","v":""},{"$f":"IF(ISBLANK('TA Indicator Bank'!AE303),\"\",'TA Indicator Bank'!AE303)","v":""},{"$f":"IF(ISBLANK('TA Indicator Bank'!AF303),\"\",'TA Indicator Bank'!AF303)","v":""},{"$f":"IF(ISBLANK('TA Indicator Bank'!AG303),\"\",'TA Indicator Bank'!AG303)","v":""},{"$f":"IF(ISBLANK('TA Indicator Bank'!AH303),\"\",'TA Indicator Bank'!AH303)","v":""},{"$f":"IF(ISBLANK('TA Indicator Bank'!AI303),\"\",'TA Indicator Bank'!AI303)","v":""},{"$f":"IF(ISBLANK('TA Indicator Bank'!AJ303),\"\",'TA Indicator Bank'!AJ303)","v":""},{"$f":"IF(ISBLANK('TA Indicator Bank'!AK303),\"\",'TA Indicator Bank'!AK303)","v":""},{"$f":"IF(ISBLANK('TA Indicator Bank'!AL303),\"\",'TA Indicator Bank'!AL303)","v":""},{"$f":"IF(ISBLANK('TA Indicator Bank'!AM303),\"\",'TA Indicator Bank'!AM303)","v":""},{"$f":"IF(ISBLANK('TA Indicator Bank'!AN303),\"\",'TA Indicator Bank'!AN303)","v":""},{"$f":"IF(ISBLANK('TA Indicator Bank'!AO303),\"\",'TA Indicator Bank'!AO303)","v":""},{"$f":"IF(ISBLANK('TA Indicator Bank'!AP303),\"\",'TA Indicator Bank'!AP303)","v":""},{"$f":"IF(ISBLANK('TA Indicator Bank'!AQ303),\"\",'TA Indicator Bank'!AQ303)","v":""},{"$f":"IF(ISBLANK('TA Indicator Bank'!AR303),\"\",'TA Indicator Bank'!AR303)","v":""},{"$f":"IF(ISBLANK('TA Indicator Bank'!AS303),\"\",'TA Indicator Bank'!AS303)","v":""},{"$f":"IF(ISBLANK('TA Indicator Bank'!AT303),\"\",'TA Indicator Bank'!AT303)","v":""},0,0,0,0,0,0,0,0,0,0,0,0,0,0,1,0,0,0,0,0,0,0,0,0,1,0,0,0,0,0,0,0,0,0,1,0,0,0,0,0,1,1,299,299,"",{"$f":"IFERROR(INDEX($B$9:$I$408,$CM450,COLUMNS($CN$9:CN450)),\"\")","v":""},{"$f":"IFERROR(INDEX($B$9:$I$408,$CM450,COLUMNS($CN$9:CO450)),\"\")","v":""},{"$f":"IFERROR(INDEX($B$9:$I$408,$CM450,COLUMNS($CN$9:CP450)),\"\")","v":""},{"$f":"IFERROR(INDEX($B$9:$I$408,$CM450,COLUMNS($CN$9:CQ450)),\"\")","v":""},{"$f":"IFERROR(INDEX($B$9:$I$408,$CM450,COLUMNS($CN$9:CR450)),\"\")","v":""},{"$f":"IFERROR(INDEX($B$9:$I$408,$CM450,COLUMNS($CN$9:CS450)),\"\")","v":""},{"$f":"IFERROR(INDEX($B$9:$I$408,$CM450,COLUMNS($CN$9:CT450)),\"\")","v":""},{"$f":"IFERROR(INDEX($B$9:$I$408,$CM450,COLUMNS($CN$9:CU450)),\"\")","v":""}]
[null,{"$f":"IF(ISBLANK('TA Indicator Bank'!B304),\"\",'TA Indicator Bank'!B304)","v":""},{"$f":"IF(ISBLANK('TA Indicator Bank'!C304),\"\",'TA Indicator Bank'!C304)","v":""},{"$f":"IF(ISBLANK('TA Indicator Bank'!D304),\"\",'TA Indicator Bank'!D304)","v":""},{"$f":"IF(ISBLANK('TA Indicator Bank'!E304),\"\",'TA Indicator Bank'!E304)","v":""},{"$f":"IF(ISBLANK('TA Indicator Bank'!F304),\"\",'TA Indicator Bank'!F304)","v":""},{"$f":"IF(ISBLANK('TA Indicator Bank'!G304),\"\",'TA Indicator Bank'!G304)","v":""},{"$f":"IF(ISBLANK('TA Indicator Bank'!H304),\"\",'TA Indicator Bank'!H304)","v":""},{"$f":"IF(ISBLANK('TA Indicator Bank'!I304),\"\",'TA Indicator Bank'!I304)","v":""},{"$f":"IF(ISBLANK('TA Indicator Bank'!J304),\"\",'TA Indicator Bank'!J304)","v":""},{"$f":"IF(ISBLANK('TA Indicator Bank'!K304),\"\",'TA Indicator Bank'!K304)","v":""},{"$f":"IF(ISBLANK('TA Indicator Bank'!L304),\"\",'TA Indicator Bank'!L304)","v":""},{"$f":"IF(ISBLANK('TA Indicator Bank'!M304),\"\",'TA Indicator Bank'!M304)","v":""},{"$f":"IF(ISBLANK('TA Indicator Bank'!N304),\"\",'TA Indicator Bank'!N304)","v":""},{"$f":"IF(ISBLANK('TA Indicator Bank'!O304),\"\",'TA Indicator Bank'!O304)","v":""},{"$f":"IF(ISBLANK('TA Indicator Bank'!P304),\"\",'TA Indicator Bank'!P304)","v":""},{"$f":"IF(ISBLANK('TA Indicator Bank'!Q304),\"\",'TA Indicator Bank'!Q304)","v":""},{"$f":"IF(ISBLANK('TA Indicator Bank'!R304),\"\",'TA Indicator Bank'!R304)","v":""},{"$f":"IF(ISBLANK('TA Indicator Bank'!S304),\"\",'TA Indicator Bank'!S304)","v":""},{"$f":"IF(ISBLANK('TA Indicator Bank'!T304),\"\",'TA Indicator Bank'!T304)","v":""},{"$f":"IF(ISBLANK('TA Indicator Bank'!U304),\"\",'TA Indicator Bank'!U304)","v":""},{"$f":"IF(ISBLANK('TA Indicator Bank'!V304),\"\",'TA Indicator Bank'!V304)","v":""},{"$f":"IF(ISBLANK('TA Indicator Bank'!W304),\"\",'TA Indicator Bank'!W304)","v":""},{"$f":"IF(ISBLANK('TA Indicator Bank'!X304),\"\",'TA Indicator Bank'!X304)","v":""},{"$f":"IF(ISBLANK('TA Indicator Bank'!Y304),\"\",'TA Indicator Bank'!Y304)","v":""},{"$f":"IF(ISBLANK('TA Indicator Bank'!Z304),\"\",'TA Indicator Bank'!Z304)","v":""},{"$f":"IF(ISBLANK('TA Indicator Bank'!AA304),\"\",'TA Indicator Bank'!AA304)","v":""},{"$f":"IF(ISBLANK('TA Indicator Bank'!AB304),\"\",'TA Indicator Bank'!AB304)","v":""},{"$f":"IF(ISBLANK('TA Indicator Bank'!AC304),\"\",'TA Indicator Bank'!AC304)","v":""},{"$f":"IF(ISBLANK('TA Indicator Bank'!AD304),\"\",'TA Indicator Bank'!AD304)","v":""},{"$f":"IF(ISBLANK('TA Indicator Bank'!AE304),\"\",'TA Indicator Bank'!AE304)","v":""},{"$f":"IF(ISBLANK('TA Indicator Bank'!AF304),\"\",'TA Indicator Bank'!AF304)","v":""},{"$f":"IF(ISBLANK('TA Indicator Bank'!AG304),\"\",'TA Indicator Bank'!AG304)","v":""},{"$f":"IF(ISBLANK('TA Indicator Bank'!AH304),\"\",'TA Indicator Bank'!AH304)","v":""},{"$f":"IF(ISBLANK('TA Indicator Bank'!AI304),\"\",'TA Indicator Bank'!AI304)","v":""},{"$f":"IF(ISBLANK('TA Indicator Bank'!AJ304),\"\",'TA Indicator Bank'!AJ304)","v":""},{"$f":"IF(ISBLANK('TA Indicator Bank'!AK304),\"\",'TA Indicator Bank'!AK304)","v":""},{"$f":"IF(ISBLANK('TA Indicator Bank'!AL304),\"\",'TA Indicator Bank'!AL304)","v":""},{"$f":"IF(ISBLANK('TA Indicator Bank'!AM304),\"\",'TA Indicator Bank'!AM304)","v":""},{"$f":"IF(ISBLANK('TA Indicator Bank'!AN304),\"\",'TA Indicator Bank'!AN304)","v":""},{"$f":"IF(ISBLANK('TA Indicator Bank'!AO304),\"\",'TA Indicator Bank'!AO304)","v":""},{"$f":"IF(ISBLANK('TA Indicator Bank'!AP304),\"\",'TA Indicator Bank'!AP304)","v":""},{"$f":"IF(ISBLANK('TA Indicator Bank'!AQ304),\"\",'TA Indicator Bank'!AQ304)","v":""},{"$f":"IF(ISBLANK('TA Indicator Bank'!AR304),\"\",'TA Indicator Bank'!AR304)","v":""},{"$f":"IF(ISBLANK('TA Indicator Bank'!AS304),\"\",'TA Indicator Bank'!AS304)","v":""},{"$f":"IF(ISBLANK('TA Indicator Bank'!AT304),\"\",'TA Indicator Bank'!AT304)","v":""},0,0,0,0,0,0,0,0,0,0,0,0,0,0,1,0,0,0,0,0,0,0,0,0,1,0,0,0,0,0,0,0,0,0,1,0,0,0,0,0,1,1,300,300,"",{"$f":"IFERROR(INDEX($B$9:$I$408,$CM451,COLUMNS($CN$9:CN451)),\"\")","v":""},{"$f":"IFERROR(INDEX($B$9:$I$408,$CM451,COLUMNS($CN$9:CO451)),\"\")","v":""},{"$f":"IFERROR(INDEX($B$9:$I$408,$CM451,COLUMNS($CN$9:CP451)),\"\")","v":""},{"$f":"IFERROR(INDEX($B$9:$I$408,$CM451,COLUMNS($CN$9:CQ451)),\"\")","v":""},{"$f":"IFERROR(INDEX($B$9:$I$408,$CM451,COLUMNS($CN$9:CR451)),\"\")","v":""},{"$f":"IFERROR(INDEX($B$9:$I$408,$CM451,COLUMNS($CN$9:CS451)),\"\")","v":""},{"$f":"IFERROR(INDEX($B$9:$I$408,$CM451,COLUMNS($CN$9:CT451)),\"\")","v":""},{"$f":"IFERROR(INDEX($B$9:$I$408,$CM451,COLUMNS($CN$9:CU451)),\"\")","v":""}]
[null,{"$f":"IF(ISBLANK('TA Indicator Bank'!B305),\"\",'TA Indicator Bank'!B305)","v":""},{"$f":"IF(ISBLANK('TA Indicator Bank'!C305),\"\",'TA Indicator Bank'!C305)","v":""},{"$f":"IF(ISBLANK('TA Indicator Bank'!D305),\"\",'TA Indicator Bank'!D305)","v":""},{"$f":"IF(ISBLANK('TA Indicator Bank'!E305),\"\",'TA Indicator Bank'!E305)","v":""},{"$f":"IF(ISBLANK('TA Indicator Bank'!F305),\"\",'TA Indicator Bank'!F305)","v":""},{"$f":"IF(ISBLANK('TA Indicator Bank'!G305),\"\",'TA Indicator Bank'!G305)","v":""},{"$f":"IF(ISBLANK('TA Indicator Bank'!H305),\"\",'TA Indicator Bank'!H305)","v":""},{"$f":"IF(ISBLANK('TA Indicator Bank'!I305),\"\",'TA Indicator Bank'!I305)","v":""},{"$f":"IF(ISBLANK('TA Indicator Bank'!J305),\"\",'TA Indicator Bank'!J305)","v":""},{"$f":"IF(ISBLANK('TA Indicator Bank'!K305),\"\",'TA Indicator Bank'!K305)","v":""},{"$f":"IF(ISBLANK('TA Indicator Bank'!L305),\"\",'TA Indicator Bank'!L305)","v":""},{"$f":"IF(ISBLANK('TA Indicator Bank'!M305),\"\",'TA Indicator Bank'!M305)","v":""},{"$f":"IF(ISBLANK('TA Indicator Bank'!N305),\"\",'TA Indicator Bank'!N305)","v":""},{"$f":"IF(ISBLANK('TA Indicator Bank'!O305),\"\",'TA Indicator Bank'!O305)","v":""},{"$f":"IF(ISBLANK('TA Indicator Bank'!P305),\"\",'TA Indicator Bank'!P305)","v":""},{"$f":"IF(ISBLANK('TA Indicator Bank'!Q305),\"\",'TA Indicator Bank'!Q305)","v":""},{"$f":"IF(ISBLANK('TA Indicator Bank'!R305),\"\",'TA Indicator Bank'!R305)","v":""},{"$f":"IF(ISBLANK('TA Indicator Bank'!S305),\"\",'TA Indicator Bank'!S305)","v":""},{"$f":"IF(ISBLANK('TA Indicator Bank'!T305),\"\",'TA Indicator Bank'!T305)","v":""},{"$f":"IF(ISBLANK('TA Indicator Bank'!U305),\"\",'TA Indicator Bank'!U305)","v":""},{"$f":"IF(ISBLANK('TA Indicator Bank'!V305),\"\",'TA Indicator Bank'!V305)","v":""},{"$f":"IF(ISBLANK('TA Indicator Bank'!W305),\"\",'TA Indicator Bank'!W305)","v":""},{"$f":"IF(ISBLANK('TA Indicator Bank'!X305),\"\",'TA Indicator Bank'!X305)","v":""},{"$f":"IF(ISBLANK('TA Indicator Bank'!Y305),\"\",'TA Indicator Bank'!Y305)","v":""},{"$f":"IF(ISBLANK('TA Indicator Bank'!Z305),\"\",'TA Indicator Bank'!Z305)","v":""},{"$f":"IF(ISBLANK('TA Indicator Bank'!AA305),\"\",'TA Indicator Bank'!AA305)","v":""},{"$f":"IF(ISBLANK('TA Indicator Bank'!AB305),\"\",'TA Indicator Bank'!AB305)","v":""},{"$f":"IF(ISBLANK('TA Indicator Bank'!AC305),\"\",'TA Indicator Bank'!AC305)","v":""},{"$f":"IF(ISBLANK('TA Indicator Bank'!AD305),\"\",'TA Indicator Bank'!AD305)","v":""},{"$f":"IF(ISBLANK('TA Indicator Bank'!AE305),\"\",'TA Indicator Bank'!AE305)","v":""},{"$f":"IF(ISBLANK('TA Indicator Bank'!AF305),\"\",'TA Indicator Bank'!AF305)","v":""},{"$f":"IF(ISBLANK('TA Indicator Bank'!AG305),\"\",'TA Indicator Bank'!AG305)","v":""},{"$f":"IF(ISBLANK('TA Indicator Bank'!AH305),\"\",'TA Indicator Bank'!AH305)","v":""},{"$f":"IF(ISBLANK('TA Indicator Bank'!AI305),\"\",'TA Indicator Bank'!AI305)","v":""},{"$f":"IF(ISBLANK('TA Indicator Bank'!AJ305),\"\",'TA Indicator Bank'!AJ305)","v":""},{"$f":"IF(ISBLANK('TA Indicator Bank'!AK305),\"\",'TA Indicator Bank'!AK305)","v":""},{"$f":"IF(ISBLANK('TA Indicator Bank'!AL305),\"\",'TA Indicator Bank'!AL305)","v":""},{"$f":"IF(ISBLANK('TA Indicator Bank'!AM305),\"\",'TA Indicator Bank'!AM305)","v":""},{"$f":"IF(ISBLANK('TA Indicator Bank'!AN305),\"\",'TA Indicator Bank'!AN305)","v":""},{"$f":"IF(ISBLANK('TA Indicator Bank'!AO305),\"\",'TA Indicator Bank'!AO305)","v":""},{"$f":"IF(ISBLANK('TA Indicator Bank'!AP305),\"\",'TA Indicator Bank'!AP305)","v":""},{"$f":"IF(ISBLANK('TA Indicator Bank'!AQ305),\"\",'TA Indicator Bank'!AQ305)","v":""},{"$f":"IF(ISBLANK('TA Indicator Bank'!AR305),\"\",'TA Indicator Bank'!AR305)","v":""},{"$f":"IF(ISBLANK('TA Indicator Bank'!AS305),\"\",'TA Indicator Bank'!AS305)","v":""},{"$f":"IF(ISBLANK('TA Indicator Bank'!AT305),\"\",'TA Indicator Bank'!AT305)","v":""},0,0,0,0,0,0,0,0,0,0,0,0,0,0,1,0,0,0,0,0,0,0,0,0,1,0,0,0,0,0,0,0,0,0,1,0,0,0,0,0,1,1,301,301,"",{"$f":"IFERROR(INDEX($B$9:$I$408,$CM452,COLUMNS($CN$9:CN452)),\"\")","v":""},{"$f":"IFERROR(INDEX($B$9:$I$408,$CM452,COLUMNS($CN$9:CO452)),\"\")","v":""},{"$f":"IFERROR(INDEX($B$9:$I$408,$CM452,COLUMNS($CN$9:CP452)),\"\")","v":""},{"$f":"IFERROR(INDEX($B$9:$I$408,$CM452,COLUMNS($CN$9:CQ452)),\"\")","v":""},{"$f":"IFERROR(INDEX($B$9:$I$408,$CM452,COLUMNS($CN$9:CR452)),\"\")","v":""},{"$f":"IFERROR(INDEX($B$9:$I$408,$CM452,COLUMNS($CN$9:CS452)),\"\")","v":""},{"$f":"IFERROR(INDEX($B$9:$I$408,$CM452,COLUMNS($CN$9:CT452)),\"\")","v":""},{"$f":"IFERROR(INDEX($B$9:$I$408,$CM452,COLUMNS($CN$9:CU452)),\"\")","v":""}]
[null,{"$f":"IF(ISBLANK('TA Indicator Bank'!B306),\"\",'TA Indicator Bank'!B306)","v":""},{"$f":"IF(ISBLANK('TA Indicator Bank'!C306),\"\",'TA Indicator Bank'!C306)","v":""},{"$f":"IF(ISBLANK('TA Indicator Bank'!D306),\"\",'TA Indicator Bank'!D306)","v":""},{"$f":"IF(ISBLANK('TA Indicator Bank'!E306),\"\",'TA Indicator Bank'!E306)","v":""},{"$f":"IF(ISBLANK('TA Indicator Bank'!F306),\"\",'TA Indicator Bank'!F306)","v":""},{"$f":"IF(ISBLANK('TA Indicator Bank'!G306),\"\",'TA Indicator Bank'!G306)","v":""},{"$f":"IF(ISBLANK('TA Indicator Bank'!H306),\"\",'TA Indicator Bank'!H306)","v":""},{"$f":"IF(ISBLANK('TA Indicator Bank'!I306),\"\",'TA Indicator Bank'!I306)","v":""},{"$f":"IF(ISBLANK('TA Indicator Bank'!J306),\"\",'TA Indicator Bank'!J306)","v":""},{"$f":"IF(ISBLANK('TA Indicator Bank'!K306),\"\",'TA Indicator Bank'!K306)","v":""},{"$f":"IF(ISBLANK('TA Indicator Bank'!L306),\"\",'TA Indicator Bank'!L306)","v":""},{"$f":"IF(ISBLANK('TA Indicator Bank'!M306),\"\",'TA Indicator Bank'!M306)","v":""},{"$f":"IF(ISBLANK('TA Indicator Bank'!N306),\"\",'TA Indicator Bank'!N306)","v":""},{"$f":"IF(ISBLANK('TA Indicator Bank'!O306),\"\",'TA Indicator Bank'!O306)","v":""},{"$f":"IF(ISBLANK('TA Indicator Bank'!P306),\"\",'TA Indicator Bank'!P306)","v":""},{"$f":"IF(ISBLANK('TA Indicator Bank'!Q306),\"\",'TA Indicator Bank'!Q306)","v":""},{"$f":"IF(ISBLANK('TA Indicator Bank'!R306),\"\",'TA Indicator Bank'!R306)","v":""},{"$f":"IF(ISBLANK('TA Indicator Bank'!S306),\"\",'TA Indicator Bank'!S306)","v":""},{"$f":"IF(ISBLANK('TA Indicator Bank'!T306),\"\",'TA Indicator Bank'!T306)","v":""},{"$f":"IF(ISBLANK('TA Indicator Bank'!U306),\"\",'TA Indicator Bank'!U306)","v":""},{"$f":"IF(ISBLANK('TA Indicator Bank'!V306),\"\",'TA Indicator Bank'!V306)","v":""},{"$f":"IF(ISBLANK('TA Indicator Bank'!W306),\"\",'TA Indicator Bank'!W306)","v":""},{"$f":"IF(ISBLANK('TA Indicator Bank'!X306),\"\",'TA Indicator Bank'!X306)","v":""},{"$f":"IF(ISBLANK('TA Indicator Bank'!Y306),\"\",'TA Indicator Bank'!Y306)","v":""},{"$f":"IF(ISBLANK('TA Indicator Bank'!Z306),\"\",'TA Indicator Bank'!Z306)","v":""},{"$f":"IF(ISBLANK('TA Indicator Bank'!AA306),\"\",'TA Indicator Bank'!AA306)","v":""},{"$f":"IF(ISBLANK('TA Indicator Bank'!AB306),\"\",'TA Indicator Bank'!AB306)","v":""},{"$f":"IF(ISBLANK('TA Indicator Bank'!AC306),\"\",'TA Indicator Bank'!AC306)","v":""},{"$f":"IF(ISBLANK('TA Indicator Bank'!AD306),\"\",'TA Indicator Bank'!AD306)","v":""},{"$f":"IF(ISBLANK('TA Indicator Bank'!AE306),\"\",'TA Indicator Bank'!AE306)","v":""},{"$f":"IF(ISBLANK('TA Indicator Bank'!AF306),\"\",'TA Indicator Bank'!AF306)","v":""},{"$f":"IF(ISBLANK('TA Indicator Bank'!AG306),\"\",'TA Indicator Bank'!AG306)","v":""},{"$f":"IF(ISBLANK('TA Indicator Bank'!AH306),\"\",'TA Indicator Bank'!AH306)","v":""},{"$f":"IF(ISBLANK('TA Indicator Bank'!AI306),\"\",'TA Indicator Bank'!AI306)","v":""},{"$f":"IF(ISBLANK('TA Indicator Bank'!AJ306),\"\",'TA Indicator Bank'!AJ306)","v":""},{"$f":"IF(ISBLANK('TA Indicator Bank'!AK306),\"\",'TA Indicator Bank'!AK306)","v":""},{"$f":"IF(ISBLANK('TA Indicator Bank'!AL306),\"\",'TA Indicator Bank'!AL306)","v":""},{"$f":"IF(ISBLANK('TA Indicator Bank'!AM306),\"\",'TA Indicator Bank'!AM306)","v":""},{"$f":"IF(ISBLANK('TA Indicator Bank'!AN306),\"\",'TA Indicator Bank'!AN306)","v":""},{"$f":"IF(ISBLANK('TA Indicator Bank'!AO306),\"\",'TA Indicator Bank'!AO306)","v":""},{"$f":"IF(ISBLANK('TA Indicator Bank'!AP306),\"\",'TA Indicator Bank'!AP306)","v":""},{"$f":"IF(ISBLANK('TA Indicator Bank'!AQ306),\"\",'TA Indicator Bank'!AQ306)","v":""},{"$f":"IF(ISBLANK('TA Indicator Bank'!AR306),\"\",'TA Indicator Bank'!AR306)","v":""},{"$f":"IF(ISBLANK('TA Indicator Bank'!AS306),\"\",'TA Indicator Bank'!AS306)","v":""},{"$f":"IF(ISBLANK('TA Indicator Bank'!AT306),\"\",'TA Indicator Bank'!AT306)","v":""},0,0,0,0,0,0,0,0,0,0,0,0,0,0,1,0,0,0,0,0,0,0,0,0,1,0,0,0,0,0,0,0,0,0,1,0,0,0,0,0,1,1,302,302,"",{"$f":"IFERROR(INDEX($B$9:$I$408,$CM453,COLUMNS($CN$9:CN453)),\"\")","v":""},{"$f":"IFERROR(INDEX($B$9:$I$408,$CM453,COLUMNS($CN$9:CO453)),\"\")","v":""},{"$f":"IFERROR(INDEX($B$9:$I$408,$CM453,COLUMNS($CN$9:CP453)),\"\")","v":""},{"$f":"IFERROR(INDEX($B$9:$I$408,$CM453,COLUMNS($CN$9:CQ453)),\"\")","v":""},{"$f":"IFERROR(INDEX($B$9:$I$408,$CM453,COLUMNS($CN$9:CR453)),\"\")","v":""},{"$f":"IFERROR(INDEX($B$9:$I$408,$CM453,COLUMNS($CN$9:CS453)),\"\")","v":""},{"$f":"IFERROR(INDEX($B$9:$I$408,$CM453,COLUMNS($CN$9:CT453)),\"\")","v":""},{"$f":"IFERROR(INDEX($B$9:$I$408,$CM453,COLUMNS($CN$9:CU453)),\"\")","v":""}]
[null,{"$f":"IF(ISBLANK('TA Indicator Bank'!B307),\"\",'TA Indicator Bank'!B307)","v":""},{"$f":"IF(ISBLANK('TA Indicator Bank'!C307),\"\",'TA Indicator Bank'!C307)","v":""},{"$f":"IF(ISBLANK('TA Indicator Bank'!D307),\"\",'TA Indicator Bank'!D307)","v":""},{"$f":"IF(ISBLANK('TA Indicator Bank'!E307),\"\",'TA Indicator Bank'!E307)","v":""},{"$f":"IF(ISBLANK('TA Indicator Bank'!F307),\"\",'TA Indicator Bank'!F307)","v":""},{"$f":"IF(ISBLANK('TA Indicator Bank'!G307),\"\",'TA Indicator Bank'!G307)","v":""},{"$f":"IF(ISBLANK('TA Indicator Bank'!H307),\"\",'TA Indicator Bank'!H307)","v":""},{"$f":"IF(ISBLANK('TA Indicator Bank'!I307),\"\",'TA Indicator Bank'!I307)","v":""},{"$f":"IF(ISBLANK('TA Indicator Bank'!J307),\"\",'TA Indicator Bank'!J307)","v":""},{"$f":"IF(ISBLANK('TA Indicator Bank'!K307),\"\",'TA Indicator Bank'!K307)","v":""},{"$f":"IF(ISBLANK('TA Indicator Bank'!L307),\"\",'TA Indicator Bank'!L307)","v":""},{"$f":"IF(ISBLANK('TA Indicator Bank'!M307),\"\",'TA Indicator Bank'!M307)","v":""},{"$f":"IF(ISBLANK('TA Indicator Bank'!N307),\"\",'TA Indicator Bank'!N307)","v":""},{"$f":"IF(ISBLANK('TA Indicator Bank'!O307),\"\",'TA Indicator Bank'!O307)","v":""},{"$f":"IF(ISBLANK('TA Indicator Bank'!P307),\"\",'TA Indicator Bank'!P307)","v":""},{"$f":"IF(ISBLANK('TA Indicator Bank'!Q307),\"\",'TA Indicator Bank'!Q307)","v":""},{"$f":"IF(ISBLANK('TA Indicator Bank'!R307),\"\",'TA Indicator Bank'!R307)","v":""},{"$f":"IF(ISBLANK('TA Indicator Bank'!S307),\"\",'TA Indicator Bank'!S307)","v":""},{"$f":"IF(ISBLANK('TA Indicator Bank'!T307),\"\",'TA Indicator Bank'!T307)","v":""},{"$f":"IF(ISBLANK('TA Indicator Bank'!U307),\"\",'TA Indicator Bank'!U307)","v":""},{"$f":"IF(ISBLANK('TA Indicator Bank'!V307),\"\",'TA Indicator Bank'!V307)","v":""},{"$f":"IF(ISBLANK('TA Indicator Bank'!W307),\"\",'TA Indicator Bank'!W307)","v":""},{"$f":"IF(ISBLANK('TA Indicator Bank'!X307),\"\",'TA Indicator Bank'!X307)","v":""},{"$f":"IF(ISBLANK('TA Indicator Bank'!Y307),\"\",'TA Indicator Bank'!Y307)","v":""},{"$f":"IF(ISBLANK('TA Indicator Bank'!Z307),\"\",'TA Indicator Bank'!Z307)","v":""},{"$f":"IF(ISBLANK('TA Indicator Bank'!AA307),\"\",'TA Indicator Bank'!AA307)","v":""},{"$f":"IF(ISBLANK('TA Indicator Bank'!AB307),\"\",'TA Indicator Bank'!AB307)","v":""},{"$f":"IF(ISBLANK('TA Indicator Bank'!AC307),\"\",'TA Indicator Bank'!AC307)","v":""},{"$f":"IF(ISBLANK('TA Indicator Bank'!AD307),\"\",'TA Indicator Bank'!AD307)","v":""},{"$f":"IF(ISBLANK('TA Indicator Bank'!AE307),\"\",'TA Indicator Bank'!AE307)","v":""},{"$f":"IF(ISBLANK('TA Indicator Bank'!AF307),\"\",'TA Indicator Bank'!AF307)","v":""},{"$f":"IF(ISBLANK('TA Indicator Bank'!AG307),\"\",'TA Indicator Bank'!AG307)","v":""},{"$f":"IF(ISBLANK('TA Indicator Bank'!AH307),\"\",'TA Indicator Bank'!AH307)","v":""},{"$f":"IF(ISBLANK('TA Indicator Bank'!AI307),\"\",'TA Indicator Bank'!AI307)","v":""},{"$f":"IF(ISBLANK('TA Indicator Bank'!AJ307),\"\",'TA Indicator Bank'!AJ307)","v":""},{"$f":"IF(ISBLANK('TA Indicator Bank'!AK307),\"\",'TA Indicator Bank'!AK307)","v":""},{"$f":"IF(ISBLANK('TA Indicator Bank'!AL307),\"\",'TA Indicator Bank'!AL307)","v":""},{"$f":"IF(ISBLANK('TA Indicator Bank'!AM307),\"\",'TA Indicator Bank'!AM307)","v":""},{"$f":"IF(ISBLANK('TA Indicator Bank'!AN307),\"\",'TA Indicator Bank'!AN307)","v":""},{"$f":"IF(ISBLANK('TA Indicator Bank'!AO307),\"\",'TA Indicator Bank'!AO307)","v":""},{"$f":"IF(ISBLANK('TA Indicator Bank'!AP307),\"\",'TA Indicator Bank'!AP307)","v":""},{"$f":"IF(ISBLANK('TA Indicator Bank'!AQ307),\"\",'TA Indicator Bank'!AQ307)","v":""},{"$f":"IF(ISBLANK('TA Indicator Bank'!AR307),\"\",'TA Indicator Bank'!AR307)","v":""},{"$f":"IF(ISBLANK('TA Indicator Bank'!AS307),\"\",'TA Indicator Bank'!AS307)","v":""},{"$f":"IF(ISBLANK('TA Indicator Bank'!AT307),\"\",'TA Indicator Bank'!AT307)","v":""},0,0,0,0,0,0,0,0,0,0,0,0,0,0,1,0,0,0,0,0,0,0,0,0,1,0,0,0,0,0,0,0,0,0,1,0,0,0,0,0,1,1,303,303,"",{"$f":"IFERROR(INDEX($B$9:$I$408,$CM454,COLUMNS($CN$9:CN454)),\"\")","v":""},{"$f":"IFERROR(INDEX($B$9:$I$408,$CM454,COLUMNS($CN$9:CO454)),\"\")","v":""},{"$f":"IFERROR(INDEX($B$9:$I$408,$CM454,COLUMNS($CN$9:CP454)),\"\")","v":""},{"$f":"IFERROR(INDEX($B$9:$I$408,$CM454,COLUMNS($CN$9:CQ454)),\"\")","v":""},{"$f":"IFERROR(INDEX($B$9:$I$408,$CM454,COLUMNS($CN$9:CR454)),\"\")","v":""},{"$f":"IFERROR(INDEX($B$9:$I$408,$CM454,COLUMNS($CN$9:CS454)),\"\")","v":""},{"$f":"IFERROR(INDEX($B$9:$I$408,$CM454,COLUMNS($CN$9:CT454)),\"\")","v":""},{"$f":"IFERROR(INDEX($B$9:$I$408,$CM454,COLUMNS($CN$9:CU454)),\"\")","v":""}]
[null,{"$f":"IF(ISBLANK('TA Indicator Bank'!B308),\"\",'TA Indicator Bank'!B308)","v":""},{"$f":"IF(ISBLANK('TA Indicator Bank'!C308),\"\",'TA Indicator Bank'!C308)","v":""},{"$f":"IF(ISBLANK('TA Indicator Bank'!D308),\"\",'TA Indicator Bank'!D308)","v":""},{"$f":"IF(ISBLANK('TA Indicator Bank'!E308),\"\",'TA Indicator Bank'!E308)","v":""},{"$f":"IF(ISBLANK('TA Indicator Bank'!F308),\"\",'TA Indicator Bank'!F308)","v":""},{"$f":"IF(ISBLANK('TA Indicator Bank'!G308),\"\",'TA Indicator Bank'!G308)","v":""},{"$f":"IF(ISBLANK('TA Indicator Bank'!H308),\"\",'TA Indicator Bank'!H308)","v":""},{"$f":"IF(ISBLANK('TA Indicator Bank'!I308),\"\",'TA Indicator Bank'!I308)","v":""},{"$f":"IF(ISBLANK('TA Indicator Bank'!J308),\"\",'TA Indicator Bank'!J308)","v":""},{"$f":"IF(ISBLANK('TA Indicator Bank'!K308),\"\",'TA Indicator Bank'!K308)","v":""},{"$f":"IF(ISBLANK('TA Indicator Bank'!L308),\"\",'TA Indicator Bank'!L308)","v":""},{"$f":"IF(ISBLANK('TA Indicator Bank'!M308),\"\",'TA Indicator Bank'!M308)","v":""},{"$f":"IF(ISBLANK('TA Indicator Bank'!N308),\"\",'TA Indicator Bank'!N308)","v":""},{"$f":"IF(ISBLANK('TA Indicator Bank'!O308),\"\",'TA Indicator Bank'!O308)","v":""},{"$f":"IF(ISBLANK('TA Indicator Bank'!P308),\"\",'TA Indicator Bank'!P308)","v":""},{"$f":"IF(ISBLANK('TA Indicator Bank'!Q308),\"\",'TA Indicator Bank'!Q308)","v":""},{"$f":"IF(ISBLANK('TA Indicator Bank'!R308),\"\",'TA Indicator Bank'!R308)","v":""},{"$f":"IF(ISBLANK('TA Indicator Bank'!S308),\"\",'TA Indicator Bank'!S308)","v":""},{"$f":"IF(ISBLANK('TA Indicator Bank'!T308),\"\",'TA Indicator Bank'!T308)","v":""},{"$f":"IF(ISBLANK('TA Indicator Bank'!U308),\"\",'TA Indicator Bank'!U308)","v":""},{"$f":"IF(ISBLANK('TA Indicator Bank'!V308),\"\",'TA Indicator Bank'!V308)","v":""},{"$f":"IF(ISBLANK('TA Indicator Bank'!W308),\"\",'TA Indicator Bank'!W308)","v":""},{"$f":"IF(ISBLANK('TA Indicator Bank'!X308),\"\",'TA Indicator Bank'!X308)","v":""},{"$f":"IF(ISBLANK('TA Indicator Bank'!Y308),\"\",'TA Indicator Bank'!Y308)","v":""},{"$f":"IF(ISBLANK('TA Indicator Bank'!Z308),\"\",'TA Indicator Bank'!Z308)","v":""},{"$f":"IF(ISBLANK('TA Indicator Bank'!AA308),\"\",'TA Indicator Bank'!AA308)","v":""},{"$f":"IF(ISBLANK('TA Indicator Bank'!AB308),\"\",'TA Indicator Bank'!AB308)","v":""},{"$f":"IF(ISBLANK('TA Indicator Bank'!AC308),\"\",'TA Indicator Bank'!AC308)","v":""},{"$f":"IF(ISBLANK('TA Indicator Bank'!AD308),\"\",'TA Indicator Bank'!AD308)","v":""},{"$f":"IF(ISBLANK('TA Indicator Bank'!AE308),\"\",'TA Indicator Bank'!AE308)","v":""},{"$f":"IF(ISBLANK('TA Indicator Bank'!AF308),\"\",'TA Indicator Bank'!AF308)","v":""},{"$f":"IF(ISBLANK('TA Indicator Bank'!AG308),\"\",'TA Indicator Bank'!AG308)","v":""},{"$f":"IF(ISBLANK('TA Indicator Bank'!AH308),\"\",'TA Indicator Bank'!AH308)","v":""},{"$f":"IF(ISBLANK('TA Indicator Bank'!AI308),\"\",'TA Indicator Bank'!AI308)","v":""},{"$f":"IF(ISBLANK('TA Indicator Bank'!AJ308),\"\",'TA Indicator Bank'!AJ308)","v":""},{"$f":"IF(ISBLANK('TA Indicator Bank'!AK308),\"\",'TA Indicator Bank'!AK308)","v":""},{"$f":"IF(ISBLANK('TA Indicator Bank'!AL308),\"\",'TA Indicator Bank'!AL308)","v":""},{"$f":"IF(ISBLANK('TA Indicator Bank'!AM308),\"\",'TA Indicator Bank'!AM308)","v":""},{"$f":"IF(ISBLANK('TA Indicator Bank'!AN308),\"\",'TA Indicator Bank'!AN308)","v":""},{"$f":"IF(ISBLANK('TA Indicator Bank'!AO308),\"\",'TA Indicator Bank'!AO308)","v":""},{"$f":"IF(ISBLANK('TA Indicator Bank'!AP308),\"\",'TA Indicator Bank'!AP308)","v":""},{"$f":"IF(ISBLANK('TA Indicator Bank'!AQ308),\"\",'TA Indicator Bank'!AQ308)","v":""},{"$f":"IF(ISBLANK('TA Indicator Bank'!AR308),\"\",'TA Indicator Bank'!AR308)","v":""},{"$f":"IF(ISBLANK('TA Indicator Bank'!AS308),\"\",'TA Indicator Bank'!AS308)","v":""},{"$f":"IF(ISBLANK('TA Indicator Bank'!AT308),\"\",'TA Indicator Bank'!AT308)","v":""},0,0,0,0,0,0,0,0,0,0,0,0,0,0,1,0,0,0,0,0,0,0,0,0,1,0,0,0,0,0,0,0,0,0,1,0,0,0,0,0,1,1,304,304,"",{"$f":"IFERROR(INDEX($B$9:$I$408,$CM455,COLUMNS($CN$9:CN455)),\"\")","v":""},{"$f":"IFERROR(INDEX($B$9:$I$408,$CM455,COLUMNS($CN$9:CO455)),\"\")","v":""},{"$f":"IFERROR(INDEX($B$9:$I$408,$CM455,COLUMNS($CN$9:CP455)),\"\")","v":""},{"$f":"IFERROR(INDEX($B$9:$I$408,$CM455,COLUMNS($CN$9:CQ455)),\"\")","v":""},{"$f":"IFERROR(INDEX($B$9:$I$408,$CM455,COLUMNS($CN$9:CR455)),\"\")","v":""},{"$f":"IFERROR(INDEX($B$9:$I$408,$CM455,COLUMNS($CN$9:CS455)),\"\")","v":""},{"$f":"IFERROR(INDEX($B$9:$I$408,$CM455,COLUMNS($CN$9:CT455)),\"\")","v":""},{"$f":"IFERROR(INDEX($B$9:$I$408,$CM455,COLUMNS($CN$9:CU455)),\"\")","v":""}]
[null,{"$f":"IF(ISBLANK('TA Indicator Bank'!B309),\"\",'TA Indicator Bank'!B309)","v":""},{"$f":"IF(ISBLANK('TA Indicator Bank'!C309),\"\",'TA Indicator Bank'!C309)","v":""},{"$f":"IF(ISBLANK('TA Indicator Bank'!D309),\"\",'TA Indicator Bank'!D309)","v":""},{"$f":"IF(ISBLANK('TA Indicator Bank'!E309),\"\",'TA Indicator Bank'!E309)","v":""},{"$f":"IF(ISBLANK('TA Indicator Bank'!F309),\"\",'TA Indicator Bank'!F309)","v":""},{"$f":"IF(ISBLANK('TA Indicator Bank'!G309),\"\",'TA Indicator Bank'!G309)","v":""},{"$f":"IF(ISBLANK('TA Indicator Bank'!H309),\"\",'TA Indicator Bank'!H309)","v":""},{"$f":"IF(ISBLANK('TA Indicator Bank'!I309),\"\",'TA Indicator Bank'!I309)","v":""},{"$f":"IF(ISBLANK('TA Indicator Bank'!J309),\"\",'TA Indicator Bank'!J309)","v":""},{"$f":"IF(ISBLANK('TA Indicator Bank'!K309),\"\",'TA Indicator Bank'!K309)","v":""},{"$f":"IF(ISBLANK('TA Indicator Bank'!L309),\"\",'TA Indicator Bank'!L309)","v":""},{"$f":"IF(ISBLANK('TA Indicator Bank'!M309),\"\",'TA Indicator Bank'!M309)","v":""},{"$f":"IF(ISBLANK('TA Indicator Bank'!N309),\"\",'TA Indicator Bank'!N309)","v":""},{"$f":"IF(ISBLANK('TA Indicator Bank'!O309),\"\",'TA Indicator Bank'!O309)","v":""},{"$f":"IF(ISBLANK('TA Indicator Bank'!P309),\"\",'TA Indicator Bank'!P309)","v":""},{"$f":"IF(ISBLANK('TA Indicator Bank'!Q309),\"\",'TA Indicator Bank'!Q309)","v":""},{"$f":"IF(ISBLANK('TA Indicator Bank'!R309),\"\",'TA Indicator Bank'!R309)","v":""},{"$f":"IF(ISBLANK('TA Indicator Bank'!S309),\"\",'TA Indicator Bank'!S309)","v":""},{"$f":"IF(ISBLANK('TA Indicator Bank'!T309),\"\",'TA Indicator Bank'!T309)","v":""},{"$f":"IF(ISBLANK('TA Indicator Bank'!U309),\"\",'TA Indicator Bank'!U309)","v":""},{"$f":"IF(ISBLANK('TA Indicator Bank'!V309),\"\",'TA Indicator Bank'!V309)","v":""},{"$f":"IF(ISBLANK('TA Indicator Bank'!W309),\"\",'TA Indicator Bank'!W309)","v":""},{"$f":"IF(ISBLANK('TA Indicator Bank'!X309),\"\",'TA Indicator Bank'!X309)","v":""},{"$f":"IF(ISBLANK('TA Indicator Bank'!Y309),\"\",'TA Indicator Bank'!Y309)","v":""},{"$f":"IF(ISBLANK('TA Indicator Bank'!Z309),\"\",'TA Indicator Bank'!Z309)","v":""},{"$f":"IF(ISBLANK('TA Indicator Bank'!AA309),\"\",'TA Indicator Bank'!AA309)","v":""},{"$f":"IF(ISBLANK('TA Indicator Bank'!AB309),\"\",'TA Indicator Bank'!AB309)","v":""},{"$f":"IF(ISBLANK('TA Indicator Bank'!AC309),\"\",'TA Indicator Bank'!AC309)","v":""},{"$f":"IF(ISBLANK('TA Indicator Bank'!AD309),\"\",'TA Indicator Bank'!AD309)","v":""},{"$f":"IF(ISBLANK('TA Indicator Bank'!AE309),\"\",'TA Indicator Bank'!AE309)","v":""},{"$f":"IF(ISBLANK('TA Indicator Bank'!AF309),\"\",'TA Indicator Bank'!AF309)","v":""},{"$f":"IF(ISBLANK('TA Indicator Bank'!AG309),\"\",'TA Indicator Bank'!AG309)","v":""},{"$f":"IF(ISBLANK('TA Indicator Bank'!AH309),\"\",'TA Indicator Bank'!AH309)","v":""},{"$f":"IF(ISBLANK('TA Indicator Bank'!AI309),\"\",'TA Indicator Bank'!AI309)","v":""},{"$f":"IF(ISBLANK('TA Indicator Bank'!AJ309),\"\",'TA Indicator Bank'!AJ309)","v":""},{"$f":"IF(ISBLANK('TA Indicator Bank'!AK309),\"\",'TA Indicator Bank'!AK309)","v":""},{"$f":"IF(ISBLANK('TA Indicator Bank'!AL309),\"\",'TA Indicator Bank'!AL309)","v":""},{"$f":"IF(ISBLANK('TA Indicator Bank'!AM309),\"\",'TA Indicator Bank'!AM309)","v":""},{"$f":"IF(ISBLANK('TA Indicator Bank'!AN309),\"\",'TA Indicator Bank'!AN309)","v":""},{"$f":"IF(ISBLANK('TA Indicator Bank'!AO309),\"\",'TA Indicator Bank'!AO309)","v":""},{"$f":"IF(ISBLANK('TA Indicator Bank'!AP309),\"\",'TA Indicator Bank'!AP309)","v":""},{"$f":"IF(ISBLANK('TA Indicator Bank'!AQ309),\"\",'TA Indicator Bank'!AQ309)","v":""},{"$f":"IF(ISBLANK('TA Indicator Bank'!AR309),\"\",'TA Indicator Bank'!AR309)","v":""},{"$f":"IF(ISBLANK('TA Indicator Bank'!AS309),\"\",'TA Indicator Bank'!AS309)","v":""},{"$f":"IF(ISBLANK('TA Indicator Bank'!AT309),\"\",'TA Indicator Bank'!AT309)","v":""},0,0,0,0,0,0,0,0,0,0,0,0,0,0,1,0,0,0,0,0,0,0,0,0,1,0,0,0,0,0,0,0,0,0,1,0,0,0,0,0,1,1,305,305,"",{"$f":"IFERROR(INDEX($B$9:$I$408,$CM456,COLUMNS($CN$9:CN456)),\"\")","v":""},{"$f":"IFERROR(INDEX($B$9:$I$408,$CM456,COLUMNS($CN$9:CO456)),\"\")","v":""},{"$f":"IFERROR(INDEX($B$9:$I$408,$CM456,COLUMNS($CN$9:CP456)),\"\")","v":""},{"$f":"IFERROR(INDEX($B$9:$I$408,$CM456,COLUMNS($CN$9:CQ456)),\"\")","v":""},{"$f":"IFERROR(INDEX($B$9:$I$408,$CM456,COLUMNS($CN$9:CR456)),\"\")","v":""},{"$f":"IFERROR(INDEX($B$9:$I$408,$CM456,COLUMNS($CN$9:CS456)),\"\")","v":""},{"$f":"IFERROR(INDEX($B$9:$I$408,$CM456,COLUMNS($CN$9:CT456)),\"\")","v":""},{"$f":"IFERROR(INDEX($B$9:$I$408,$CM456,COLUMNS($CN$9:CU456)),\"\")","v":""}]
[null,{"$f":"IF(ISBLANK('TA Indicator Bank'!B310),\"\",'TA Indicator Bank'!B310)","v":""},{"$f":"IF(ISBLANK('TA Indicator Bank'!C310),\"\",'TA Indicator Bank'!C310)","v":""},{"$f":"IF(ISBLANK('TA Indicator Bank'!D310),\"\",'TA Indicator Bank'!D310)","v":""},{"$f":"IF(ISBLANK('TA Indicator Bank'!E310),\"\",'TA Indicator Bank'!E310)","v":""},{"$f":"IF(ISBLANK('TA Indicator Bank'!F310),\"\",'TA Indicator Bank'!F310)","v":""},{"$f":"IF(ISBLANK('TA Indicator Bank'!G310),\"\",'TA Indicator Bank'!G310)","v":""},{"$f":"IF(ISBLANK('TA Indicator Bank'!H310),\"\",'TA Indicator Bank'!H310)","v":""},{"$f":"IF(ISBLANK('TA Indicator Bank'!I310),\"\",'TA Indicator Bank'!I310)","v":""},{"$f":"IF(ISBLANK('TA Indicator Bank'!J310),\"\",'TA Indicator Bank'!J310)","v":""},{"$f":"IF(ISBLANK('TA Indicator Bank'!K310),\"\",'TA Indicator Bank'!K310)","v":""},{"$f":"IF(ISBLANK('TA Indicator Bank'!L310),\"\",'TA Indicator Bank'!L310)","v":""},{"$f":"IF(ISBLANK('TA Indicator Bank'!M310),\"\",'TA Indicator Bank'!M310)","v":""},{"$f":"IF(ISBLANK('TA Indicator Bank'!N310),\"\",'TA Indicator Bank'!N310)","v":""},{"$f":"IF(ISBLANK('TA Indicator Bank'!O310),\"\",'TA Indicator Bank'!O310)","v":""},{"$f":"IF(ISBLANK('TA Indicator Bank'!P310),\"\",'TA Indicator Bank'!P310)","v":""},{"$f":"IF(ISBLANK('TA Indicator Bank'!Q310),\"\",'TA Indicator Bank'!Q310)","v":""},{"$f":"IF(ISBLANK('TA Indicator Bank'!R310),\"\",'TA Indicator Bank'!R310)","v":""},{"$f":"IF(ISBLANK('TA Indicator Bank'!S310),\"\",'TA Indicator Bank'!S310)","v":""},{"$f":"IF(ISBLANK('TA Indicator Bank'!T310),\"\",'TA Indicator Bank'!T310)","v":""},{"$f":"IF(ISBLANK('TA Indicator Bank'!U310),\"\",'TA Indicator Bank'!U310)","v":""},{"$f":"IF(ISBLANK('TA Indicator Bank'!V310),\"\",'TA Indicator Bank'!V310)","v":""},{"$f":"IF(ISBLANK('TA Indicator Bank'!W310),\"\",'TA Indicator Bank'!W310)","v":""},{"$f":"IF(ISBLANK('TA Indicator Bank'!X310),\"\",'TA Indicator Bank'!X310)","v":""},{"$f":"IF(ISBLANK('TA Indicator Bank'!Y310),\"\",'TA Indicator Bank'!Y310)","v":""},{"$f":"IF(ISBLANK('TA Indicator Bank'!Z310),\"\",'TA Indicator Bank'!Z310)","v":""},{"$f":"IF(ISBLANK('TA Indicator Bank'!AA310),\"\",'TA Indicator Bank'!AA310)","v":""},{"$f":"IF(ISBLANK('TA Indicator Bank'!AB310),\"\",'TA Indicator Bank'!AB310)","v":""},{"$f":"IF(ISBLANK('TA Indicator Bank'!AC310),\"\",'TA Indicator Bank'!AC310)","v":""},{"$f":"IF(ISBLANK('TA Indicator Bank'!AD310),\"\",'TA Indicator Bank'!AD310)","v":""},{"$f":"IF(ISBLANK('TA Indicator Bank'!AE310),\"\",'TA Indicator Bank'!AE310)","v":""},{"$f":"IF(ISBLANK('TA Indicator Bank'!AF310),\"\",'TA Indicator Bank'!AF310)","v":""},{"$f":"IF(ISBLANK('TA Indicator Bank'!AG310),\"\",'TA Indicator Bank'!AG310)","v":""},{"$f":"IF(ISBLANK('TA Indicator Bank'!AH310),\"\",'TA Indicator Bank'!AH310)","v":""},{"$f":"IF(ISBLANK('TA Indicator Bank'!AI310),\"\",'TA Indicator Bank'!AI310)","v":""},{"$f":"IF(ISBLANK('TA Indicator Bank'!AJ310),\"\",'TA Indicator Bank'!AJ310)","v":""},{"$f":"IF(ISBLANK('TA Indicator Bank'!AK310),\"\",'TA Indicator Bank'!AK310)","v":""},{"$f":"IF(ISBLANK('TA Indicator Bank'!AL310),\"\",'TA Indicator Bank'!AL310)","v":""},{"$f":"IF(ISBLANK('TA Indicator Bank'!AM310),\"\",'TA Indicator Bank'!AM310)","v":""},{"$f":"IF(ISBLANK('TA Indicator Bank'!AN310),\"\",'TA Indicator Bank'!AN310)","v":""},{"$f":"IF(ISBLANK('TA Indicator Bank'!AO310),\"\",'TA Indicator Bank'!AO310)","v":""},{"$f":"IF(ISBLANK('TA Indicator Bank'!AP310),\"\",'TA Indicator Bank'!AP310)","v":""},{"$f":"IF(ISBLANK('TA Indicator Bank'!AQ310),\"\",'TA Indicator Bank'!AQ310)","v":""},{"$f":"IF(ISBLANK('TA Indicator Bank'!AR310),\"\",'TA Indicator Bank'!AR310)","v":""},{"$f":"IF(ISBLANK('TA Indicator Bank'!AS310),\"\",'TA Indicator Bank'!AS310)","v":""},{"$f":"IF(ISBLANK('TA Indicator Bank'!AT310),\"\",'TA Indicator Bank'!AT310)","v":""},0,0,0,0,0,0,0,0,0,0,0,0,0,0,1,0,0,0,0,0,0,0,0,0,1,0,0,0,0,0,0,0,0,0,1,0,0,0,0,0,1,1,306,306,"",{"$f":"IFERROR(INDEX($B$9:$I$408,$CM457,COLUMNS($CN$9:CN457)),\"\")","v":""},{"$f":"IFERROR(INDEX($B$9:$I$408,$CM457,COLUMNS($CN$9:CO457)),\"\")","v":""},{"$f":"IFERROR(INDEX($B$9:$I$408,$CM457,COLUMNS($CN$9:CP457)),\"\")","v":""},{"$f":"IFERROR(INDEX($B$9:$I$408,$CM457,COLUMNS($CN$9:CQ457)),\"\")","v":""},{"$f":"IFERROR(INDEX($B$9:$I$408,$CM457,COLUMNS($CN$9:CR457)),\"\")","v":""},{"$f":"IFERROR(INDEX($B$9:$I$408,$CM457,COLUMNS($CN$9:CS457)),\"\")","v":""},{"$f":"IFERROR(INDEX($B$9:$I$408,$CM457,COLUMNS($CN$9:CT457)),\"\")","v":""},{"$f":"IFERROR(INDEX($B$9:$I$408,$CM457,COLUMNS($CN$9:CU457)),\"\")","v":""}]
[null,{"$f":"IF(ISBLANK('TA Indicator Bank'!B311),\"\",'TA Indicator Bank'!B311)","v":""},{"$f":"IF(ISBLANK('TA Indicator Bank'!C311),\"\",'TA Indicator Bank'!C311)","v":""},{"$f":"IF(ISBLANK('TA Indicator Bank'!D311),\"\",'TA Indicator Bank'!D311)","v":""},{"$f":"IF(ISBLANK('TA Indicator Bank'!E311),\"\",'TA Indicator Bank'!E311)","v":""},{"$f":"IF(ISBLANK('TA Indicator Bank'!F311),\"\",'TA Indicator Bank'!F311)","v":""},{"$f":"IF(ISBLANK('TA Indicator Bank'!G311),\"\",'TA Indicator Bank'!G311)","v":""},{"$f":"IF(ISBLANK('TA Indicator Bank'!H311),\"\",'TA Indicator Bank'!H311)","v":""},{"$f":"IF(ISBLANK('TA Indicator Bank'!I311),\"\",'TA Indicator Bank'!I311)","v":""},{"$f":"IF(ISBLANK('TA Indicator Bank'!J311),\"\",'TA Indicator Bank'!J311)","v":""},{"$f":"IF(ISBLANK('TA Indicator Bank'!K311),\"\",'TA Indicator Bank'!K311)","v":""},{"$f":"IF(ISBLANK('TA Indicator Bank'!L311),\"\",'TA Indicator Bank'!L311)","v":""},{"$f":"IF(ISBLANK('TA Indicator Bank'!M311),\"\",'TA Indicator Bank'!M311)","v":""},{"$f":"IF(ISBLANK('TA Indicator Bank'!N311),\"\",'TA Indicator Bank'!N311)","v":""},{"$f":"IF(ISBLANK('TA Indicator Bank'!O311),\"\",'TA Indicator Bank'!O311)","v":""},{"$f":"IF(ISBLANK('TA Indicator Bank'!P311),\"\",'TA Indicator Bank'!P311)","v":""},{"$f":"IF(ISBLANK('TA Indicator Bank'!Q311),\"\",'TA Indicator Bank'!Q311)","v":""},{"$f":"IF(ISBLANK('TA Indicator Bank'!R311),\"\",'TA Indicator Bank'!R311)","v":""},{"$f":"IF(ISBLANK('TA Indicator Bank'!S311),\"\",'TA Indicator Bank'!S311)","v":""},{"$f":"IF(ISBLANK('TA Indicator Bank'!T311),\"\",'TA Indicator Bank'!T311)","v":""},{"$f":"IF(ISBLANK('TA Indicator Bank'!U311),\"\",'TA Indicator Bank'!U311)","v":""},{"$f":"IF(ISBLANK('TA Indicator Bank'!V311),\"\",'TA Indicator Bank'!V311)","v":""},{"$f":"IF(ISBLANK('TA Indicator Bank'!W311),\"\",'TA Indicator Bank'!W311)","v":""},{"$f":"IF(ISBLANK('TA Indicator Bank'!X311),\"\",'TA Indicator Bank'!X311)","v":""},{"$f":"IF(ISBLANK('TA Indicator Bank'!Y311),\"\",'TA Indicator Bank'!Y311)","v":""},{"$f":"IF(ISBLANK('TA Indicator Bank'!Z311),\"\",'TA Indicator Bank'!Z311)","v":""},{"$f":"IF(ISBLANK('TA Indicator Bank'!AA311),\"\",'TA Indicator Bank'!AA311)","v":""},{"$f":"IF(ISBLANK('TA Indicator Bank'!AB311),\"\",'TA Indicator Bank'!AB311)","v":""},{"$f":"IF(ISBLANK('TA Indicator Bank'!AC311),\"\",'TA Indicator Bank'!AC311)","v":""},{"$f":"IF(ISBLANK('TA Indicator Bank'!AD311),\"\",'TA Indicator Bank'!AD311)","v":""},{"$f":"IF(ISBLANK('TA Indicator Bank'!AE311),\"\",'TA Indicator Bank'!AE311)","v":""},{"$f":"IF(ISBLANK('TA Indicator Bank'!AF311),\"\",'TA Indicator Bank'!AF311)","v":""},{"$f":"IF(ISBLANK('TA Indicator Bank'!AG311),\"\",'TA Indicator Bank'!AG311)","v":""},{"$f":"IF(ISBLANK('TA Indicator Bank'!AH311),\"\",'TA Indicator Bank'!AH311)","v":""},{"$f":"IF(ISBLANK('TA Indicator Bank'!AI311),\"\",'TA Indicator Bank'!AI311)","v":""},{"$f":"IF(ISBLANK('TA Indicator Bank'!AJ311),\"\",'TA Indicator Bank'!AJ311)","v":""},{"$f":"IF(ISBLANK('TA Indicator Bank'!AK311),\"\",'TA Indicator Bank'!AK311)","v":""},{"$f":"IF(ISBLANK('TA Indicator Bank'!AL311),\"\",'TA Indicator Bank'!AL311)","v":""},{"$f":"IF(ISBLANK('TA Indicator Bank'!AM311),\"\",'TA Indicator Bank'!AM311)","v":""},{"$f":"IF(ISBLANK('TA Indicator Bank'!AN311),\"\",'TA Indicator Bank'!AN311)","v":""},{"$f":"IF(ISBLANK('TA Indicator Bank'!AO311),\"\",'TA Indicator Bank'!AO311)","v":""},{"$f":"IF(ISBLANK('TA Indicator Bank'!AP311),\"\",'TA Indicator Bank'!AP311)","v":""},{"$f":"IF(ISBLANK('TA Indicator Bank'!AQ311),\"\",'TA Indicator Bank'!AQ311)","v":""},{"$f":"IF(ISBLANK('TA Indicator Bank'!AR311),\"\",'TA Indicator Bank'!AR311)","v":""},{"$f":"IF(ISBLANK('TA Indicator Bank'!AS311),\"\",'TA Indicator Bank'!AS311)","v":""},{"$f":"IF(ISBLANK('TA Indicator Bank'!AT311),\"\",'TA Indicator Bank'!AT311)","v":""},0,0,0,0,0,0,0,0,0,0,0,0,0,0,1,0,0,0,0,0,0,0,0,0,1,0,0,0,0,0,0,0,0,0,1,0,0,0,0,0,1,1,307,307,"",{"$f":"IFERROR(INDEX($B$9:$I$408,$CM458,COLUMNS($CN$9:CN458)),\"\")","v":""},{"$f":"IFERROR(INDEX($B$9:$I$408,$CM458,COLUMNS($CN$9:CO458)),\"\")","v":""},{"$f":"IFERROR(INDEX($B$9:$I$408,$CM458,COLUMNS($CN$9:CP458)),\"\")","v":""},{"$f":"IFERROR(INDEX($B$9:$I$408,$CM458,COLUMNS($CN$9:CQ458)),\"\")","v":""},{"$f":"IFERROR(INDEX($B$9:$I$408,$CM458,COLUMNS($CN$9:CR458)),\"\")","v":""},{"$f":"IFERROR(INDEX($B$9:$I$408,$CM458,COLUMNS($CN$9:CS458)),\"\")","v":""},{"$f":"IFERROR(INDEX($B$9:$I$408,$CM458,COLUMNS($CN$9:CT458)),\"\")","v":""},{"$f":"IFERROR(INDEX($B$9:$I$408,$CM458,COLUMNS($CN$9:CU458)),\"\")","v":""}]
[null,{"$f":"IF(ISBLANK('TA Indicator Bank'!B312),\"\",'TA Indicator Bank'!B312)","v":""},{"$f":"IF(ISBLANK('TA Indicator Bank'!C312),\"\",'TA Indicator Bank'!C312)","v":""},{"$f":"IF(ISBLANK('TA Indicator Bank'!D312),\"\",'TA Indicator Bank'!D312)","v":""},{"$f":"IF(ISBLANK('TA Indicator Bank'!E312),\"\",'TA Indicator Bank'!E312)","v":""},{"$f":"IF(ISBLANK('TA Indicator Bank'!F312),\"\",'TA Indicator Bank'!F312)","v":""},{"$f":"IF(ISBLANK('TA Indicator Bank'!G312),\"\",'TA Indicator Bank'!G312)","v":""},{"$f":"IF(ISBLANK('TA Indicator Bank'!H312),\"\",'TA Indicator Bank'!H312)","v":""},{"$f":"IF(ISBLANK('TA Indicator Bank'!I312),\"\",'TA Indicator Bank'!I312)","v":""},{"$f":"IF(ISBLANK('TA Indicator Bank'!J312),\"\",'TA Indicator Bank'!J312)","v":""},{"$f":"IF(ISBLANK('TA Indicator Bank'!K312),\"\",'TA Indicator Bank'!K312)","v":""},{"$f":"IF(ISBLANK('TA Indicator Bank'!L312),\"\",'TA Indicator Bank'!L312)","v":""},{"$f":"IF(ISBLANK('TA Indicator Bank'!M312),\"\",'TA Indicator Bank'!M312)","v":""},{"$f":"IF(ISBLANK('TA Indicator Bank'!N312),\"\",'TA Indicator Bank'!N312)","v":""},{"$f":"IF(ISBLANK('TA Indicator Bank'!O312),\"\",'TA Indicator Bank'!O312)","v":""},{"$f":"IF(ISBLANK('TA Indicator Bank'!P312),\"\",'TA Indicator Bank'!P312)","v":""},{"$f":"IF(ISBLANK('TA Indicator Bank'!Q312),\"\",'TA Indicator Bank'!Q312)","v":""},{"$f":"IF(ISBLANK('TA Indicator Bank'!R312),\"\",'TA Indicator Bank'!R312)","v":""},{"$f":"IF(ISBLANK('TA Indicator Bank'!S312),\"\",'TA Indicator Bank'!S312)","v":""},{"$f":"IF(ISBLANK('TA Indicator Bank'!T312),\"\",'TA Indicator Bank'!T312)","v":""},{"$f":"IF(ISBLANK('TA Indicator Bank'!U312),\"\",'TA Indicator Bank'!U312)","v":""},{"$f":"IF(ISBLANK('TA Indicator Bank'!V312),\"\",'TA Indicator Bank'!V312)","v":""},{"$f":"IF(ISBLANK('TA Indicator Bank'!W312),\"\",'TA Indicator Bank'!W312)","v":""},{"$f":"IF(ISBLANK('TA Indicator Bank'!X312),\"\",'TA Indicator Bank'!X312)","v":""},{"$f":"IF(ISBLANK('TA Indicator Bank'!Y312),\"\",'TA Indicator Bank'!Y312)","v":""},{"$f":"IF(ISBLANK('TA Indicator Bank'!Z312),\"\",'TA Indicator Bank'!Z312)","v":""},{"$f":"IF(ISBLANK('TA Indicator Bank'!AA312),\"\",'TA Indicator Bank'!AA312)","v":""},{"$f":"IF(ISBLANK('TA Indicator Bank'!AB312),\"\",'TA Indicator Bank'!AB312)","v":""},{"$f":"IF(ISBLANK('TA Indicator Bank'!AC312),\"\",'TA Indicator Bank'!AC312)","v":""},{"$f":"IF(ISBLANK('TA Indicator Bank'!AD312),\"\",'TA Indicator Bank'!AD312)","v":""},{"$f":"IF(ISBLANK('TA Indicator Bank'!AE312),\"\",'TA Indicator Bank'!AE312)","v":""},{"$f":"IF(ISBLANK('TA Indicator Bank'!AF312),\"\",'TA Indicator Bank'!AF312)","v":""},{"$f":"IF(ISBLANK('TA Indicator Bank'!AG312),\"\",'TA Indicator Bank'!AG312)","v":""},{"$f":"IF(ISBLANK('TA Indicator Bank'!AH312),\"\",'TA Indicator Bank'!AH312)","v":""},{"$f":"IF(ISBLANK('TA Indicator Bank'!AI312),\"\",'TA Indicator Bank'!AI312)","v":""},{"$f":"IF(ISBLANK('TA Indicator Bank'!AJ312),\"\",'TA Indicator Bank'!AJ312)","v":""},{"$f":"IF(ISBLANK('TA Indicator Bank'!AK312),\"\",'TA Indicator Bank'!AK312)","v":""},{"$f":"IF(ISBLANK('TA Indicator Bank'!AL312),\"\",'TA Indicator Bank'!AL312)","v":""},{"$f":"IF(ISBLANK('TA Indicator Bank'!AM312),\"\",'TA Indicator Bank'!AM312)","v":""},{"$f":"IF(ISBLANK('TA Indicator Bank'!AN312),\"\",'TA Indicator Bank'!AN312)","v":""},{"$f":"IF(ISBLANK('TA Indicator Bank'!AO312),\"\",'TA Indicator Bank'!AO312)","v":""},{"$f":"IF(ISBLANK('TA Indicator Bank'!AP312),\"\",'TA Indicator Bank'!AP312)","v":""},{"$f":"IF(ISBLANK('TA Indicator Bank'!AQ312),\"\",'TA Indicator Bank'!AQ312)","v":""},{"$f":"IF(ISBLANK('TA Indicator Bank'!AR312),\"\",'TA Indicator Bank'!AR312)","v":""},{"$f":"IF(ISBLANK('TA Indicator Bank'!AS312),\"\",'TA Indicator Bank'!AS312)","v":""},{"$f":"IF(ISBLANK('TA Indicator Bank'!AT312),\"\",'TA Indicator Bank'!AT312)","v":""},0,0,0,0,0,0,0,0,0,0,0,0,0,0,1,0,0,0,0,0,0,0,0,0,1,0,0,0,0,0,0,0,0,0,1,0,0,0,0,0,1,1,308,308,"",{"$f":"IFERROR(INDEX($B$9:$I$408,$CM459,COLUMNS($CN$9:CN459)),\"\")","v":""},{"$f":"IFERROR(INDEX($B$9:$I$408,$CM459,COLUMNS($CN$9:CO459)),\"\")","v":""},{"$f":"IFERROR(INDEX($B$9:$I$408,$CM459,COLUMNS($CN$9:CP459)),\"\")","v":""},{"$f":"IFERROR(INDEX($B$9:$I$408,$CM459,COLUMNS($CN$9:CQ459)),\"\")","v":""},{"$f":"IFERROR(INDEX($B$9:$I$408,$CM459,COLUMNS($CN$9:CR459)),\"\")","v":""},{"$f":"IFERROR(INDEX($B$9:$I$408,$CM459,COLUMNS($CN$9:CS459)),\"\")","v":""},{"$f":"IFERROR(INDEX($B$9:$I$408,$CM459,COLUMNS($CN$9:CT459)),\"\")","v":""},{"$f":"IFERROR(INDEX($B$9:$I$408,$CM459,COLUMNS($CN$9:CU459)),\"\")","v":""}]
[null,{"$f":"IF(ISBLANK('TA Indicator Bank'!B313),\"\",'TA Indicator Bank'!B313)","v":""},{"$f":"IF(ISBLANK('TA Indicator Bank'!C313),\"\",'TA Indicator Bank'!C313)","v":""},{"$f":"IF(ISBLANK('TA Indicator Bank'!D313),\"\",'TA Indicator Bank'!D313)","v":""},{"$f":"IF(ISBLANK('TA Indicator Bank'!E313),\"\",'TA Indicator Bank'!E313)","v":""},{"$f":"IF(ISBLANK('TA Indicator Bank'!F313),\"\",'TA Indicator Bank'!F313)","v":""},{"$f":"IF(ISBLANK('TA Indicator Bank'!G313),\"\",'TA Indicator Bank'!G313)","v":""},{"$f":"IF(ISBLANK('TA Indicator Bank'!H313),\"\",'TA Indicator Bank'!H313)","v":""},{"$f":"IF(ISBLANK('TA Indicator Bank'!I313),\"\",'TA Indicator Bank'!I313)","v":""},{"$f":"IF(ISBLANK('TA Indicator Bank'!J313),\"\",'TA Indicator Bank'!J313)","v":""},{"$f":"IF(ISBLANK('TA Indicator Bank'!K313),\"\",'TA Indicator Bank'!K313)","v":""},{"$f":"IF(ISBLANK('TA Indicator Bank'!L313),\"\",'TA Indicator Bank'!L313)","v":""},{"$f":"IF(ISBLANK('TA Indicator Bank'!M313),\"\",'TA Indicator Bank'!M313)","v":""},{"$f":"IF(ISBLANK('TA Indicator Bank'!N313),\"\",'TA Indicator Bank'!N313)","v":""},{"$f":"IF(ISBLANK('TA Indicator Bank'!O313),\"\",'TA Indicator Bank'!O313)","v":""},{"$f":"IF(ISBLANK('TA Indicator Bank'!P313),\"\",'TA Indicator Bank'!P313)","v":""},{"$f":"IF(ISBLANK('TA Indicator Bank'!Q313),\"\",'TA Indicator Bank'!Q313)","v":""},{"$f":"IF(ISBLANK('TA Indicator Bank'!R313),\"\",'TA Indicator Bank'!R313)","v":""},{"$f":"IF(ISBLANK('TA Indicator Bank'!S313),\"\",'TA Indicator Bank'!S313)","v":""},{"$f":"IF(ISBLANK('TA Indicator Bank'!T313),\"\",'TA Indicator Bank'!T313)","v":""},{"$f":"IF(ISBLANK('TA Indicator Bank'!U313),\"\",'TA Indicator Bank'!U313)","v":""},{"$f":"IF(ISBLANK('TA Indicator Bank'!V313),\"\",'TA Indicator Bank'!V313)","v":""},{"$f":"IF(ISBLANK('TA Indicator Bank'!W313),\"\",'TA Indicator Bank'!W313)","v":""},{"$f":"IF(ISBLANK('TA Indicator Bank'!X313),\"\",'TA Indicator Bank'!X313)","v":""},{"$f":"IF(ISBLANK('TA Indicator Bank'!Y313),\"\",'TA Indicator Bank'!Y313)","v":""},{"$f":"IF(ISBLANK('TA Indicator Bank'!Z313),\"\",'TA Indicator Bank'!Z313)","v":""},{"$f":"IF(ISBLANK('TA Indicator Bank'!AA313),\"\",'TA Indicator Bank'!AA313)","v":""},{"$f":"IF(ISBLANK('TA Indicator Bank'!AB313),\"\",'TA Indicator Bank'!AB313)","v":""},{"$f":"IF(ISBLANK('TA Indicator Bank'!AC313),\"\",'TA Indicator Bank'!AC313)","v":""},{"$f":"IF(ISBLANK('TA Indicator Bank'!AD313),\"\",'TA Indicator Bank'!AD313)","v":""},{"$f":"IF(ISBLANK('TA Indicator Bank'!AE313),\"\",'TA Indicator Bank'!AE313)","v":""},{"$f":"IF(ISBLANK('TA Indicator Bank'!AF313),\"\",'TA Indicator Bank'!AF313)","v":""},{"$f":"IF(ISBLANK('TA Indicator Bank'!AG313),\"\",'TA Indicator Bank'!AG313)","v":""},{"$f":"IF(ISBLANK('TA Indicator Bank'!AH313),\"\",'TA Indicator Bank'!AH313)","v":""},{"$f":"IF(ISBLANK('TA Indicator Bank'!AI313),\"\",'TA Indicator Bank'!AI313)","v":""},{"$f":"IF(ISBLANK('TA Indicator Bank'!AJ313),\"\",'TA Indicator Bank'!AJ313)","v":""},{"$f":"IF(ISBLANK('TA Indicator Bank'!AK313),\"\",'TA Indicator Bank'!AK313)","v":""},{"$f":"IF(ISBLANK('TA Indicator Bank'!AL313),\"\",'TA Indicator Bank'!AL313)","v":""},{"$f":"IF(ISBLANK('TA Indicator Bank'!AM313),\"\",'TA Indicator Bank'!AM313)","v":""},{"$f":"IF(ISBLANK('TA Indicator Bank'!AN313),\"\",'TA Indicator Bank'!AN313)","v":""},{"$f":"IF(ISBLANK('TA Indicator Bank'!AO313),\"\",'TA Indicator Bank'!AO313)","v":""},{"$f":"IF(ISBLANK('TA Indicator Bank'!AP313),\"\",'TA Indicator Bank'!AP313)","v":""},{"$f":"IF(ISBLANK('TA Indicator Bank'!AQ313),\"\",'TA Indicator Bank'!AQ313)","v":""},{"$f":"IF(ISBLANK('TA Indicator Bank'!AR313),\"\",'TA Indicator Bank'!AR313)","v":""},{"$f":"IF(ISBLANK('TA Indicator Bank'!AS313),\"\",'TA Indicator Bank'!AS313)","v":""},{"$f":"IF(ISBLANK('TA Indicator Bank'!AT313),\"\",'TA Indicator Bank'!AT313)","v":""},0,0,0,0,0,0,0,0,0,0,0,0,0,0,1,0,0,0,0,0,0,0,0,0,1,0,0,0,0,0,0,0,0,0,1,0,0,0,0,0,1,1,309,309,"",{"$f":"IFERROR(INDEX($B$9:$I$408,$CM460,COLUMNS($CN$9:CN460)),\"\")","v":""},{"$f":"IFERROR(INDEX($B$9:$I$408,$CM460,COLUMNS($CN$9:CO460)),\"\")","v":""},{"$f":"IFERROR(INDEX($B$9:$I$408,$CM460,COLUMNS($CN$9:CP460)),\"\")","v":""},{"$f":"IFERROR(INDEX($B$9:$I$408,$CM460,COLUMNS($CN$9:CQ460)),\"\")","v":""},{"$f":"IFERROR(INDEX($B$9:$I$408,$CM460,COLUMNS($CN$9:CR460)),\"\")","v":""},{"$f":"IFERROR(INDEX($B$9:$I$408,$CM460,COLUMNS($CN$9:CS460)),\"\")","v":""},{"$f":"IFERROR(INDEX($B$9:$I$408,$CM460,COLUMNS($CN$9:CT460)),\"\")","v":""},{"$f":"IFERROR(INDEX($B$9:$I$408,$CM460,COLUMNS($CN$9:CU460)),\"\")","v":""}]
[null,{"$f":"IF(ISBLANK('TA Indicator Bank'!B314),\"\",'TA Indicator Bank'!B314)","v":""},{"$f":"IF(ISBLANK('TA Indicator Bank'!C314),\"\",'TA Indicator Bank'!C314)","v":""},{"$f":"IF(ISBLANK('TA Indicator Bank'!D314),\"\",'TA Indicator Bank'!D314)","v":""},{"$f":"IF(ISBLANK('TA Indicator Bank'!E314),\"\",'TA Indicator Bank'!E314)","v":""},{"$f":"IF(ISBLANK('TA Indicator Bank'!F314),\"\",'TA Indicator Bank'!F314)","v":""},{"$f":"IF(ISBLANK('TA Indicator Bank'!G314),\"\",'TA Indicator Bank'!G314)","v":""},{"$f":"IF(ISBLANK('TA Indicator Bank'!H314),\"\",'TA Indicator Bank'!H314)","v":""},{"$f":"IF(ISBLANK('TA Indicator Bank'!I314),\"\",'TA Indicator Bank'!I314)","v":""},{"$f":"IF(ISBLANK('TA Indicator Bank'!J314),\"\",'TA Indicator Bank'!J314)","v":""},{"$f":"IF(ISBLANK('TA Indicator Bank'!K314),\"\",'TA Indicator Bank'!K314)","v":""},{"$f":"IF(ISBLANK('TA Indicator Bank'!L314),\"\",'TA Indicator Bank'!L314)","v":""},{"$f":"IF(ISBLANK('TA Indicator Bank'!M314),\"\",'TA Indicator Bank'!M314)","v":""},{"$f":"IF(ISBLANK('TA Indicator Bank'!N314),\"\",'TA Indicator Bank'!N314)","v":""},{"$f":"IF(ISBLANK('TA Indicator Bank'!O314),\"\",'TA Indicator Bank'!O314)","v":""},{"$f":"IF(ISBLANK('TA Indicator Bank'!P314),\"\",'TA Indicator Bank'!P314)","v":""},{"$f":"IF(ISBLANK('TA Indicator Bank'!Q314),\"\",'TA Indicator Bank'!Q314)","v":""},{"$f":"IF(ISBLANK('TA Indicator Bank'!R314),\"\",'TA Indicator Bank'!R314)","v":""},{"$f":"IF(ISBLANK('TA Indicator Bank'!S314),\"\",'TA Indicator Bank'!S314)","v":""},{"$f":"IF(ISBLANK('TA Indicator Bank'!T314),\"\",'TA Indicator Bank'!T314)","v":""},{"$f":"IF(ISBLANK('TA Indicator Bank'!U314),\"\",'TA Indicator Bank'!U314)","v":""},{"$f":"IF(ISBLANK('TA Indicator Bank'!V314),\"\",'TA Indicator Bank'!V314)","v":""},{"$f":"IF(ISBLANK('TA Indicator Bank'!W314),\"\",'TA Indicator Bank'!W314)","v":""},{"$f":"IF(ISBLANK('TA Indicator Bank'!X314),\"\",'TA Indicator Bank'!X314)","v":""},{"$f":"IF(ISBLANK('TA Indicator Bank'!Y314),\"\",'TA Indicator Bank'!Y314)","v":""},{"$f":"IF(ISBLANK('TA Indicator Bank'!Z314),\"\",'TA Indicator Bank'!Z314)","v":""},{"$f":"IF(ISBLANK('TA Indicator Bank'!AA314),\"\",'TA Indicator Bank'!AA314)","v":""},{"$f":"IF(ISBLANK('TA Indicator Bank'!AB314),\"\",'TA Indicator Bank'!AB314)","v":""},{"$f":"IF(ISBLANK('TA Indicator Bank'!AC314),\"\",'TA Indicator Bank'!AC314)","v":""},{"$f":"IF(ISBLANK('TA Indicator Bank'!AD314),\"\",'TA Indicator Bank'!AD314)","v":""},{"$f":"IF(ISBLANK('TA Indicator Bank'!AE314),\"\",'TA Indicator Bank'!AE314)","v":""},{"$f":"IF(ISBLANK('TA Indicator Bank'!AF314),\"\",'TA Indicator Bank'!AF314)","v":""},{"$f":"IF(ISBLANK('TA Indicator Bank'!AG314),\"\",'TA Indicator Bank'!AG314)","v":""},{"$f":"IF(ISBLANK('TA Indicator Bank'!AH314),\"\",'TA Indicator Bank'!AH314)","v":""},{"$f":"IF(ISBLANK('TA Indicator Bank'!AI314),\"\",'TA Indicator Bank'!AI314)","v":""},{"$f":"IF(ISBLANK('TA Indicator Bank'!AJ314),\"\",'TA Indicator Bank'!AJ314)","v":""},{"$f":"IF(ISBLANK('TA Indicator Bank'!AK314),\"\",'TA Indicator Bank'!AK314)","v":""},{"$f":"IF(ISBLANK('TA Indicator Bank'!AL314),\"\",'TA Indicator Bank'!AL314)","v":""},{"$f":"IF(ISBLANK('TA Indicator Bank'!AM314),\"\",'TA Indicator Bank'!AM314)","v":""},{"$f":"IF(ISBLANK('TA Indicator Bank'!AN314),\"\",'TA Indicator Bank'!AN314)","v":""},{"$f":"IF(ISBLANK('TA Indicator Bank'!AO314),\"\",'TA Indicator Bank'!AO314)","v":""},{"$f":"IF(ISBLANK('TA Indicator Bank'!AP314),\"\",'TA Indicator Bank'!AP314)","v":""},{"$f":"IF(ISBLANK('TA Indicator Bank'!AQ314),\"\",'TA Indicator Bank'!AQ314)","v":""},{"$f":"IF(ISBLANK('TA Indicator Bank'!AR314),\"\",'TA Indicator Bank'!AR314)","v":""},{"$f":"IF(ISBLANK('TA Indicator Bank'!AS314),\"\",'TA Indicator Bank'!AS314)","v":""},{"$f":"IF(ISBLANK('TA Indicator Bank'!AT314),\"\",'TA Indicator Bank'!AT314)","v":""},0,0,0,0,0,0,0,0,0,0,0,0,0,0,1,0,0,0,0,0,0,0,0,0,1,0,0,0,0,0,0,0,0,0,1,0,0,0,0,0,1,1,310,310,"",{"$f":"IFERROR(INDEX($B$9:$I$408,$CM461,COLUMNS($CN$9:CN461)),\"\")","v":""},{"$f":"IFERROR(INDEX($B$9:$I$408,$CM461,COLUMNS($CN$9:CO461)),\"\")","v":""},{"$f":"IFERROR(INDEX($B$9:$I$408,$CM461,COLUMNS($CN$9:CP461)),\"\")","v":""},{"$f":"IFERROR(INDEX($B$9:$I$408,$CM461,COLUMNS($CN$9:CQ461)),\"\")","v":""},{"$f":"IFERROR(INDEX($B$9:$I$408,$CM461,COLUMNS($CN$9:CR461)),\"\")","v":""},{"$f":"IFERROR(INDEX($B$9:$I$408,$CM461,COLUMNS($CN$9:CS461)),\"\")","v":""},{"$f":"IFERROR(INDEX($B$9:$I$408,$CM461,COLUMNS($CN$9:CT461)),\"\")","v":""},{"$f":"IFERROR(INDEX($B$9:$I$408,$CM461,COLUMNS($CN$9:CU461)),\"\")","v":""}]
[null,{"$f":"IF(ISBLANK('TA Indicator Bank'!B315),\"\",'TA Indicator Bank'!B315)","v":""},{"$f":"IF(ISBLANK('TA Indicator Bank'!C315),\"\",'TA Indicator Bank'!C315)","v":""},{"$f":"IF(ISBLANK('TA Indicator Bank'!D315),\"\",'TA Indicator Bank'!D315)","v":""},{"$f":"IF(ISBLANK('TA Indicator Bank'!E315),\"\",'TA Indicator Bank'!E315)","v":""},{"$f":"IF(ISBLANK('TA Indicator Bank'!F315),\"\",'TA Indicator Bank'!F315)","v":""},{"$f":"IF(ISBLANK('TA Indicator Bank'!G315),\"\",'TA Indicator Bank'!G315)","v":""},{"$f":"IF(ISBLANK('TA Indicator Bank'!H315),\"\",'TA Indicator Bank'!H315)","v":""},{"$f":"IF(ISBLANK('TA Indicator Bank'!I315),\"\",'TA Indicator Bank'!I315)","v":""},{"$f":"IF(ISBLANK('TA Indicator Bank'!J315),\"\",'TA Indicator Bank'!J315)","v":""},{"$f":"IF(ISBLANK('TA Indicator Bank'!K315),\"\",'TA Indicator Bank'!K315)","v":""},{"$f":"IF(ISBLANK('TA Indicator Bank'!L315),\"\",'TA Indicator Bank'!L315)","v":""},{"$f":"IF(ISBLANK('TA Indicator Bank'!M315),\"\",'TA Indicator Bank'!M315)","v":""},{"$f":"IF(ISBLANK('TA Indicator Bank'!N315),\"\",'TA Indicator Bank'!N315)","v":""},{"$f":"IF(ISBLANK('TA Indicator Bank'!O315),\"\",'TA Indicator Bank'!O315)","v":""},{"$f":"IF(ISBLANK('TA Indicator Bank'!P315),\"\",'TA Indicator Bank'!P315)","v":""},{"$f":"IF(ISBLANK('TA Indicator Bank'!Q315),\"\",'TA Indicator Bank'!Q315)","v":""},{"$f":"IF(ISBLANK('TA Indicator Bank'!R315),\"\",'TA Indicator Bank'!R315)","v":""},{"$f":"IF(ISBLANK('TA Indicator Bank'!S315),\"\",'TA Indicator Bank'!S315)","v":""},{"$f":"IF(ISBLANK('TA Indicator Bank'!T315),\"\",'TA Indicator Bank'!T315)","v":""},{"$f":"IF(ISBLANK('TA Indicator Bank'!U315),\"\",'TA Indicator Bank'!U315)","v":""},{"$f":"IF(ISBLANK('TA Indicator Bank'!V315),\"\",'TA Indicator Bank'!V315)","v":""},{"$f":"IF(ISBLANK('TA Indicator Bank'!W315),\"\",'TA Indicator Bank'!W315)","v":""},{"$f":"IF(ISBLANK('TA Indicator Bank'!X315),\"\",'TA Indicator Bank'!X315)","v":""},{"$f":"IF(ISBLANK('TA Indicator Bank'!Y315),\"\",'TA Indicator Bank'!Y315)","v":""},{"$f":"IF(ISBLANK('TA Indicator Bank'!Z315),\"\",'TA Indicator Bank'!Z315)","v":""},{"$f":"IF(ISBLANK('TA Indicator Bank'!AA315),\"\",'TA Indicator Bank'!AA315)","v":""},{"$f":"IF(ISBLANK('TA Indicator Bank'!AB315),\"\",'TA Indicator Bank'!AB315)","v":""},{"$f":"IF(ISBLANK('TA Indicator Bank'!AC315),\"\",'TA Indicator Bank'!AC315)","v":""},{"$f":"IF(ISBLANK('TA Indicator Bank'!AD315),\"\",'TA Indicator Bank'!AD315)","v":""},{"$f":"IF(ISBLANK('TA Indicator Bank'!AE315),\"\",'TA Indicator Bank'!AE315)","v":""},{"$f":"IF(ISBLANK('TA Indicator Bank'!AF315),\"\",'TA Indicator Bank'!AF315)","v":""},{"$f":"IF(ISBLANK('TA Indicator Bank'!AG315),\"\",'TA Indicator Bank'!AG315)","v":""},{"$f":"IF(ISBLANK('TA Indicator Bank'!AH315),\"\",'TA Indicator Bank'!AH315)","v":""},{"$f":"IF(ISBLANK('TA Indicator Bank'!AI315),\"\",'TA Indicator Bank'!AI315)","v":""},{"$f":"IF(ISBLANK('TA Indicator Bank'!AJ315),\"\",'TA Indicator Bank'!AJ315)","v":""},{"$f":"IF(ISBLANK('TA Indicator Bank'!AK315),\"\",'TA Indicator Bank'!AK315)","v":""},{"$f":"IF(ISBLANK('TA Indicator Bank'!AL315),\"\",'TA Indicator Bank'!AL315)","v":""},{"$f":"IF(ISBLANK('TA Indicator Bank'!AM315),\"\",'TA Indicator Bank'!AM315)","v":""},{"$f":"IF(ISBLANK('TA Indicator Bank'!AN315),\"\",'TA Indicator Bank'!AN315)","v":""},{"$f":"IF(ISBLANK('TA Indicator Bank'!AO315),\"\",'TA Indicator Bank'!AO315)","v":""},{"$f":"IF(ISBLANK('TA Indicator Bank'!AP315),\"\",'TA Indicator Bank'!AP315)","v":""},{"$f":"IF(ISBLANK('TA Indicator Bank'!AQ315),\"\",'TA Indicator Bank'!AQ315)","v":""},{"$f":"IF(ISBLANK('TA Indicator Bank'!AR315),\"\",'TA Indicator Bank'!AR315)","v":""},{"$f":"IF(ISBLANK('TA Indicator Bank'!AS315),\"\",'TA Indicator Bank'!AS315)","v":""},{"$f":"IF(ISBLANK('TA Indicator Bank'!AT315),\"\",'TA Indicator Bank'!AT315)","v":""},0,0,0,0,0,0,0,0,0,0,0,0,0,0,1,0,0,0,0,0,0,0,0,0,1,0,0,0,0,0,0,0,0,0,1,0,0,0,0,0,1,1,311,311,"",{"$f":"IFERROR(INDEX($B$9:$I$408,$CM462,COLUMNS($CN$9:CN462)),\"\")","v":""},{"$f":"IFERROR(INDEX($B$9:$I$408,$CM462,COLUMNS($CN$9:CO462)),\"\")","v":""},{"$f":"IFERROR(INDEX($B$9:$I$408,$CM462,COLUMNS($CN$9:CP462)),\"\")","v":""},{"$f":"IFERROR(INDEX($B$9:$I$408,$CM462,COLUMNS($CN$9:CQ462)),\"\")","v":""},{"$f":"IFERROR(INDEX($B$9:$I$408,$CM462,COLUMNS($CN$9:CR462)),\"\")","v":""},{"$f":"IFERROR(INDEX($B$9:$I$408,$CM462,COLUMNS($CN$9:CS462)),\"\")","v":""},{"$f":"IFERROR(INDEX($B$9:$I$408,$CM462,COLUMNS($CN$9:CT462)),\"\")","v":""},{"$f":"IFERROR(INDEX($B$9:$I$408,$CM462,COLUMNS($CN$9:CU462)),\"\")","v":""}]
[null,{"$f":"IF(ISBLANK('TA Indicator Bank'!B316),\"\",'TA Indicator Bank'!B316)","v":""},{"$f":"IF(ISBLANK('TA Indicator Bank'!C316),\"\",'TA Indicator Bank'!C316)","v":""},{"$f":"IF(ISBLANK('TA Indicator Bank'!D316),\"\",'TA Indicator Bank'!D316)","v":""},{"$f":"IF(ISBLANK('TA Indicator Bank'!E316),\"\",'TA Indicator Bank'!E316)","v":""},{"$f":"IF(ISBLANK('TA Indicator Bank'!F316),\"\",'TA Indicator Bank'!F316)","v":""},{"$f":"IF(ISBLANK('TA Indicator Bank'!G316),\"\",'TA Indicator Bank'!G316)","v":""},{"$f":"IF(ISBLANK('TA Indicator Bank'!H316),\"\",'TA Indicator Bank'!H316)","v":""},{"$f":"IF(ISBLANK('TA Indicator Bank'!I316),\"\",'TA Indicator Bank'!I316)","v":""},{"$f":"IF(ISBLANK('TA Indicator Bank'!J316),\"\",'TA Indicator Bank'!J316)","v":""},{"$f":"IF(ISBLANK('TA Indicator Bank'!K316),\"\",'TA Indicator Bank'!K316)","v":""},{"$f":"IF(ISBLANK('TA Indicator Bank'!L316),\"\",'TA Indicator Bank'!L316)","v":""},{"$f":"IF(ISBLANK('TA Indicator Bank'!M316),\"\",'TA Indicator Bank'!M316)","v":""},{"$f":"IF(ISBLANK('TA Indicator Bank'!N316),\"\",'TA Indicator Bank'!N316)","v":""},{"$f":"IF(ISBLANK('TA Indicator Bank'!O316),\"\",'TA Indicator Bank'!O316)","v":""},{"$f":"IF(ISBLANK('TA Indicator Bank'!P316),\"\",'TA Indicator Bank'!P316)","v":""},{"$f":"IF(ISBLANK('TA Indicator Bank'!Q316),\"\",'TA Indicator Bank'!Q316)","v":""},{"$f":"IF(ISBLANK('TA Indicator Bank'!R316),\"\",'TA Indicator Bank'!R316)","v":""},{"$f":"IF(ISBLANK('TA Indicator Bank'!S316),\"\",'TA Indicator Bank'!S316)","v":""},{"$f":"IF(ISBLANK('TA Indicator Bank'!T316),\"\",'TA Indicator Bank'!T316)","v":""},{"$f":"IF(ISBLANK('TA Indicator Bank'!U316),\"\",'TA Indicator Bank'!U316)","v":""},{"$f":"IF(ISBLANK('TA Indicator Bank'!V316),\"\",'TA Indicator Bank'!V316)","v":""},{"$f":"IF(ISBLANK('TA Indicator Bank'!W316),\"\",'TA Indicator Bank'!W316)","v":""},{"$f":"IF(ISBLANK('TA Indicator Bank'!X316),\"\",'TA Indicator Bank'!X316)","v":""},{"$f":"IF(ISBLANK('TA Indicator Bank'!Y316),\"\",'TA Indicator Bank'!Y316)","v":""},{"$f":"IF(ISBLANK('TA Indicator Bank'!Z316),\"\",'TA Indicator Bank'!Z316)","v":""},{"$f":"IF(ISBLANK('TA Indicator Bank'!AA316),\"\",'TA Indicator Bank'!AA316)","v":""},{"$f":"IF(ISBLANK('TA Indicator Bank'!AB316),\"\",'TA Indicator Bank'!AB316)","v":""},{"$f":"IF(ISBLANK('TA Indicator Bank'!AC316),\"\",'TA Indicator Bank'!AC316)","v":""},{"$f":"IF(ISBLANK('TA Indicator Bank'!AD316),\"\",'TA Indicator Bank'!AD316)","v":""},{"$f":"IF(ISBLANK('TA Indicator Bank'!AE316),\"\",'TA Indicator Bank'!AE316)","v":""},{"$f":"IF(ISBLANK('TA Indicator Bank'!AF316),\"\",'TA Indicator Bank'!AF316)","v":""},{"$f":"IF(ISBLANK('TA Indicator Bank'!AG316),\"\",'TA Indicator Bank'!AG316)","v":""},{"$f":"IF(ISBLANK('TA Indicator Bank'!AH316),\"\",'TA Indicator Bank'!AH316)","v":""},{"$f":"IF(ISBLANK('TA Indicator Bank'!AI316),\"\",'TA Indicator Bank'!AI316)","v":""},{"$f":"IF(ISBLANK('TA Indicator Bank'!AJ316),\"\",'TA Indicator Bank'!AJ316)","v":""},{"$f":"IF(ISBLANK('TA Indicator Bank'!AK316),\"\",'TA Indicator Bank'!AK316)","v":""},{"$f":"IF(ISBLANK('TA Indicator Bank'!AL316),\"\",'TA Indicator Bank'!AL316)","v":""},{"$f":"IF(ISBLANK('TA Indicator Bank'!AM316),\"\",'TA Indicator Bank'!AM316)","v":""},{"$f":"IF(ISBLANK('TA Indicator Bank'!AN316),\"\",'TA Indicator Bank'!AN316)","v":""},{"$f":"IF(ISBLANK('TA Indicator Bank'!AO316),\"\",'TA Indicator Bank'!AO316)","v":""},{"$f":"IF(ISBLANK('TA Indicator Bank'!AP316),\"\",'TA Indicator Bank'!AP316)","v":""},{"$f":"IF(ISBLANK('TA Indicator Bank'!AQ316),\"\",'TA Indicator Bank'!AQ316)","v":""},{"$f":"IF(ISBLANK('TA Indicator Bank'!AR316),\"\",'TA Indicator Bank'!AR316)","v":""},{"$f":"IF(ISBLANK('TA Indicator Bank'!AS316),\"\",'TA Indicator Bank'!AS316)","v":""},{"$f":"IF(ISBLANK('TA Indicator Bank'!AT316),\"\",'TA Indicator Bank'!AT316)","v":""},0,0,0,0,0,0,0,0,0,0,0,0,0,0,1,0,0,0,0,0,0,0,0,0,1,0,0,0,0,0,0,0,0,0,1,0,0,0,0,0,1,1,312,312,"",{"$f":"IFERROR(INDEX($B$9:$I$408,$CM463,COLUMNS($CN$9:CN463)),\"\")","v":""},{"$f":"IFERROR(INDEX($B$9:$I$408,$CM463,COLUMNS($CN$9:CO463)),\"\")","v":""},{"$f":"IFERROR(INDEX($B$9:$I$408,$CM463,COLUMNS($CN$9:CP463)),\"\")","v":""},{"$f":"IFERROR(INDEX($B$9:$I$408,$CM463,COLUMNS($CN$9:CQ463)),\"\")","v":""},{"$f":"IFERROR(INDEX($B$9:$I$408,$CM463,COLUMNS($CN$9:CR463)),\"\")","v":""},{"$f":"IFERROR(INDEX($B$9:$I$408,$CM463,COLUMNS($CN$9:CS463)),\"\")","v":""},{"$f":"IFERROR(INDEX($B$9:$I$408,$CM463,COLUMNS($CN$9:CT463)),\"\")","v":""},{"$f":"IFERROR(INDEX($B$9:$I$408,$CM463,COLUMNS($CN$9:CU463)),\"\")","v":""}]
[null,{"$f":"IF(ISBLANK('TA Indicator Bank'!B317),\"\",'TA Indicator Bank'!B317)","v":""},{"$f":"IF(ISBLANK('TA Indicator Bank'!C317),\"\",'TA Indicator Bank'!C317)","v":""},{"$f":"IF(ISBLANK('TA Indicator Bank'!D317),\"\",'TA Indicator Bank'!D317)","v":""},{"$f":"IF(ISBLANK('TA Indicator Bank'!E317),\"\",'TA Indicator Bank'!E317)","v":""},{"$f":"IF(ISBLANK('TA Indicator Bank'!F317),\"\",'TA Indicator Bank'!F317)","v":""},{"$f":"IF(ISBLANK('TA Indicator Bank'!G317),\"\",'TA Indicator Bank'!G317)","v":""},{"$f":"IF(ISBLANK('TA Indicator Bank'!H317),\"\",'TA Indicator Bank'!H317)","v":""},{"$f":"IF(ISBLANK('TA Indicator Bank'!I317),\"\",'TA Indicator Bank'!I317)","v":""},{"$f":"IF(ISBLANK('TA Indicator Bank'!J317),\"\",'TA Indicator Bank'!J317)","v":""},{"$f":"IF(ISBLANK('TA Indicator Bank'!K317),\"\",'TA Indicator Bank'!K317)","v":""},{"$f":"IF(ISBLANK('TA Indicator Bank'!L317),\"\",'TA Indicator Bank'!L317)","v":""},{"$f":"IF(ISBLANK('TA Indicator Bank'!M317),\"\",'TA Indicator Bank'!M317)","v":""},{"$f":"IF(ISBLANK('TA Indicator Bank'!N317),\"\",'TA Indicator Bank'!N317)","v":""},{"$f":"IF(ISBLANK('TA Indicator Bank'!O317),\"\",'TA Indicator Bank'!O317)","v":""},{"$f":"IF(ISBLANK('TA Indicator Bank'!P317),\"\",'TA Indicator Bank'!P317)","v":""},{"$f":"IF(ISBLANK('TA Indicator Bank'!Q317),\"\",'TA Indicator Bank'!Q317)","v":""},{"$f":"IF(ISBLANK('TA Indicator Bank'!R317),\"\",'TA Indicator Bank'!R317)","v":""},{"$f":"IF(ISBLANK('TA Indicator Bank'!S317),\"\",'TA Indicator Bank'!S317)","v":""},{"$f":"IF(ISBLANK('TA Indicator Bank'!T317),\"\",'TA Indicator Bank'!T317)","v":""},{"$f":"IF(ISBLANK('TA Indicator Bank'!U317),\"\",'TA Indicator Bank'!U317)","v":""},{"$f":"IF(ISBLANK('TA Indicator Bank'!V317),\"\",'TA Indicator Bank'!V317)","v":""},{"$f":"IF(ISBLANK('TA Indicator Bank'!W317),\"\",'TA Indicator Bank'!W317)","v":""},{"$f":"IF(ISBLANK('TA Indicator Bank'!X317),\"\",'TA Indicator Bank'!X317)","v":""},{"$f":"IF(ISBLANK('TA Indicator Bank'!Y317),\"\",'TA Indicator Bank'!Y317)","v":""},{"$f":"IF(ISBLANK('TA Indicator Bank'!Z317),\"\",'TA Indicator Bank'!Z317)","v":""},{"$f":"IF(ISBLANK('TA Indicator Bank'!AA317),\"\",'TA Indicator Bank'!AA317)","v":""},{"$f":"IF(ISBLANK('TA Indicator Bank'!AB317),\"\",'TA Indicator Bank'!AB317)","v":""},{"$f":"IF(ISBLANK('TA Indicator Bank'!AC317),\"\",'TA Indicator Bank'!AC317)","v":""},{"$f":"IF(ISBLANK('TA Indicator Bank'!AD317),\"\",'TA Indicator Bank'!AD317)","v":""},{"$f":"IF(ISBLANK('TA Indicator Bank'!AE317),\"\",'TA Indicator Bank'!AE317)","v":""},{"$f":"IF(ISBLANK('TA Indicator Bank'!AF317),\"\",'TA Indicator Bank'!AF317)","v":""},{"$f":"IF(ISBLANK('TA Indicator Bank'!AG317),\"\",'TA Indicator Bank'!AG317)","v":""},{"$f":"IF(ISBLANK('TA Indicator Bank'!AH317),\"\",'TA Indicator Bank'!AH317)","v":""},{"$f":"IF(ISBLANK('TA Indicator Bank'!AI317),\"\",'TA Indicator Bank'!AI317)","v":""},{"$f":"IF(ISBLANK('TA Indicator Bank'!AJ317),\"\",'TA Indicator Bank'!AJ317)","v":""},{"$f":"IF(ISBLANK('TA Indicator Bank'!AK317),\"\",'TA Indicator Bank'!AK317)","v":""},{"$f":"IF(ISBLANK('TA Indicator Bank'!AL317),\"\",'TA Indicator Bank'!AL317)","v":""},{"$f":"IF(ISBLANK('TA Indicator Bank'!AM317),\"\",'TA Indicator Bank'!AM317)","v":""},{"$f":"IF(ISBLANK('TA Indicator Bank'!AN317),\"\",'TA Indicator Bank'!AN317)","v":""},{"$f":"IF(ISBLANK('TA Indicator Bank'!AO317),\"\",'TA Indicator Bank'!AO317)","v":""},{"$f":"IF(ISBLANK('TA Indicator Bank'!AP317),\"\",'TA Indicator Bank'!AP317)","v":""},{"$f":"IF(ISBLANK('TA Indicator Bank'!AQ317),\"\",'TA Indicator Bank'!AQ317)","v":""},{"$f":"IF(ISBLANK('TA Indicator Bank'!AR317),\"\",'TA Indicator Bank'!AR317)","v":""},{"$f":"IF(ISBLANK('TA Indicator Bank'!AS317),\"\",'TA Indicator Bank'!AS317)","v":""},{"$f":"IF(ISBLANK('TA Indicator Bank'!AT317),\"\",'TA Indicator Bank'!AT317)","v":""},0,0,0,0,0,0,0,0,0,0,0,0,0,0,1,0,0,0,0,0,0,0,0,0,1,0,0,0,0,0,0,0,0,0,1,0,0,0,0,0,1,1,313,313,"",{"$f":"IFERROR(INDEX($B$9:$I$408,$CM464,COLUMNS($CN$9:CN464)),\"\")","v":""},{"$f":"IFERROR(INDEX($B$9:$I$408,$CM464,COLUMNS($CN$9:CO464)),\"\")","v":""},{"$f":"IFERROR(INDEX($B$9:$I$408,$CM464,COLUMNS($CN$9:CP464)),\"\")","v":""},{"$f":"IFERROR(INDEX($B$9:$I$408,$CM464,COLUMNS($CN$9:CQ464)),\"\")","v":""},{"$f":"IFERROR(INDEX($B$9:$I$408,$CM464,COLUMNS($CN$9:CR464)),\"\")","v":""},{"$f":"IFERROR(INDEX($B$9:$I$408,$CM464,COLUMNS($CN$9:CS464)),\"\")","v":""},{"$f":"IFERROR(INDEX($B$9:$I$408,$CM464,COLUMNS($CN$9:CT464)),\"\")","v":""},{"$f":"IFERROR(INDEX($B$9:$I$408,$CM464,COLUMNS($CN$9:CU464)),\"\")","v":""}]
[null,{"$f":"IF(ISBLANK('TA Indicator Bank'!B318),\"\",'TA Indicator Bank'!B318)","v":""},{"$f":"IF(ISBLANK('TA Indicator Bank'!C318),\"\",'TA Indicator Bank'!C318)","v":""},{"$f":"IF(ISBLANK('TA Indicator Bank'!D318),\"\",'TA Indicator Bank'!D318)","v":""},{"$f":"IF(ISBLANK('TA Indicator Bank'!E318),\"\",'TA Indicator Bank'!E318)","v":""},{"$f":"IF(ISBLANK('TA Indicator Bank'!F318),\"\",'TA Indicator Bank'!F318)","v":""},{"$f":"IF(ISBLANK('TA Indicator Bank'!G318),\"\",'TA Indicator Bank'!G318)","v":""},{"$f":"IF(ISBLANK('TA Indicator Bank'!H318),\"\",'TA Indicator Bank'!H318)","v":""},{"$f":"IF(ISBLANK('TA Indicator Bank'!I318),\"\",'TA Indicator Bank'!I318)","v":""},{"$f":"IF(ISBLANK('TA Indicator Bank'!J318),\"\",'TA Indicator Bank'!J318)","v":""},{"$f":"IF(ISBLANK('TA Indicator Bank'!K318),\"\",'TA Indicator Bank'!K318)","v":""},{"$f":"IF(ISBLANK('TA Indicator Bank'!L318),\"\",'TA Indicator Bank'!L318)","v":""},{"$f":"IF(ISBLANK('TA Indicator Bank'!M318),\"\",'TA Indicator Bank'!M318)","v":""},{"$f":"IF(ISBLANK('TA Indicator Bank'!N318),\"\",'TA Indicator Bank'!N318)","v":""},{"$f":"IF(ISBLANK('TA Indicator Bank'!O318),\"\",'TA Indicator Bank'!O318)","v":""},{"$f":"IF(ISBLANK('TA Indicator Bank'!P318),\"\",'TA Indicator Bank'!P318)","v":""},{"$f":"IF(ISBLANK('TA Indicator Bank'!Q318),\"\",'TA Indicator Bank'!Q318)","v":""},{"$f":"IF(ISBLANK('TA Indicator Bank'!R318),\"\",'TA Indicator Bank'!R318)","v":""},{"$f":"IF(ISBLANK('TA Indicator Bank'!S318),\"\",'TA Indicator Bank'!S318)","v":""},{"$f":"IF(ISBLANK('TA Indicator Bank'!T318),\"\",'TA Indicator Bank'!T318)","v":""},{"$f":"IF(ISBLANK('TA Indicator Bank'!U318),\"\",'TA Indicator Bank'!U318)","v":""},{"$f":"IF(ISBLANK('TA Indicator Bank'!V318),\"\",'TA Indicator Bank'!V318)","v":""},{"$f":"IF(ISBLANK('TA Indicator Bank'!W318),\"\",'TA Indicator Bank'!W318)","v":""},{"$f":"IF(ISBLANK('TA Indicator Bank'!X318),\"\",'TA Indicator Bank'!X318)","v":""},{"$f":"IF(ISBLANK('TA Indicator Bank'!Y318),\"\",'TA Indicator Bank'!Y318)","v":""},{"$f":"IF(ISBLANK('TA Indicator Bank'!Z318),\"\",'TA Indicator Bank'!Z318)","v":""},{"$f":"IF(ISBLANK('TA Indicator Bank'!AA318),\"\",'TA Indicator Bank'!AA318)","v":""},{"$f":"IF(ISBLANK('TA Indicator Bank'!AB318),\"\",'TA Indicator Bank'!AB318)","v":""},{"$f":"IF(ISBLANK('TA Indicator Bank'!AC318),\"\",'TA Indicator Bank'!AC318)","v":""},{"$f":"IF(ISBLANK('TA Indicator Bank'!AD318),\"\",'TA Indicator Bank'!AD318)","v":""},{"$f":"IF(ISBLANK('TA Indicator Bank'!AE318),\"\",'TA Indicator Bank'!AE318)","v":""},{"$f":"IF(ISBLANK('TA Indicator Bank'!AF318),\"\",'TA Indicator Bank'!AF318)","v":""},{"$f":"IF(ISBLANK('TA Indicator Bank'!AG318),\"\",'TA Indicator Bank'!AG318)","v":""},{"$f":"IF(ISBLANK('TA Indicator Bank'!AH318),\"\",'TA Indicator Bank'!AH318)","v":""},{"$f":"IF(ISBLANK('TA Indicator Bank'!AI318),\"\",'TA Indicator Bank'!AI318)","v":""},{"$f":"IF(ISBLANK('TA Indicator Bank'!AJ318),\"\",'TA Indicator Bank'!AJ318)","v":""},{"$f":"IF(ISBLANK('TA Indicator Bank'!AK318),\"\",'TA Indicator Bank'!AK318)","v":""},{"$f":"IF(ISBLANK('TA Indicator Bank'!AL318),\"\",'TA Indicator Bank'!AL318)","v":""},{"$f":"IF(ISBLANK('TA Indicator Bank'!AM318),\"\",'TA Indicator Bank'!AM318)","v":""},{"$f":"IF(ISBLANK('TA Indicator Bank'!AN318),\"\",'TA Indicator Bank'!AN318)","v":""},{"$f":"IF(ISBLANK('TA Indicator Bank'!AO318),\"\",'TA Indicator Bank'!AO318)","v":""},{"$f":"IF(ISBLANK('TA Indicator Bank'!AP318),\"\",'TA Indicator Bank'!AP318)","v":""},{"$f":"IF(ISBLANK('TA Indicator Bank'!AQ318),\"\",'TA Indicator Bank'!AQ318)","v":""},{"$f":"IF(ISBLANK('TA Indicator Bank'!AR318),\"\",'TA Indicator Bank'!AR318)","v":""},{"$f":"IF(ISBLANK('TA Indicator Bank'!AS318),\"\",'TA Indicator Bank'!AS318)","v":""},{"$f":"IF(ISBLANK('TA Indicator Bank'!AT318),\"\",'TA Indicator Bank'!AT318)","v":""},0,0,0,0,0,0,0,0,0,0,0,0,0,0,1,0,0,0,0,0,0,0,0,0,1,0,0,0,0,0,0,0,0,0,1,0,0,0,0,0,1,1,314,314,"",{"$f":"IFERROR(INDEX($B$9:$I$408,$CM465,COLUMNS($CN$9:CN465)),\"\")","v":""},{"$f":"IFERROR(INDEX($B$9:$I$408,$CM465,COLUMNS($CN$9:CO465)),\"\")","v":""},{"$f":"IFERROR(INDEX($B$9:$I$408,$CM465,COLUMNS($CN$9:CP465)),\"\")","v":""},{"$f":"IFERROR(INDEX($B$9:$I$408,$CM465,COLUMNS($CN$9:CQ465)),\"\")","v":""},{"$f":"IFERROR(INDEX($B$9:$I$408,$CM465,COLUMNS($CN$9:CR465)),\"\")","v":""},{"$f":"IFERROR(INDEX($B$9:$I$408,$CM465,COLUMNS($CN$9:CS465)),\"\")","v":""},{"$f":"IFERROR(INDEX($B$9:$I$408,$CM465,COLUMNS($CN$9:CT465)),\"\")","v":""},{"$f":"IFERROR(INDEX($B$9:$I$408,$CM465,COLUMNS($CN$9:CU465)),\"\")","v":""}]
[null,{"$f":"IF(ISBLANK('TA Indicator Bank'!B319),\"\",'TA Indicator Bank'!B319)","v":""},{"$f":"IF(ISBLANK('TA Indicator Bank'!C319),\"\",'TA Indicator Bank'!C319)","v":""},{"$f":"IF(ISBLANK('TA Indicator Bank'!D319),\"\",'TA Indicator Bank'!D319)","v":""},{"$f":"IF(ISBLANK('TA Indicator Bank'!E319),\"\",'TA Indicator Bank'!E319)","v":""},{"$f":"IF(ISBLANK('TA Indicator Bank'!F319),\"\",'TA Indicator Bank'!F319)","v":""},{"$f":"IF(ISBLANK('TA Indicator Bank'!G319),\"\",'TA Indicator Bank'!G319)","v":""},{"$f":"IF(ISBLANK('TA Indicator Bank'!H319),\"\",'TA Indicator Bank'!H319)","v":""},{"$f":"IF(ISBLANK('TA Indicator Bank'!I319),\"\",'TA Indicator Bank'!I319)","v":""},{"$f":"IF(ISBLANK('TA Indicator Bank'!J319),\"\",'TA Indicator Bank'!J319)","v":""},{"$f":"IF(ISBLANK('TA Indicator Bank'!K319),\"\",'TA Indicator Bank'!K319)","v":""},{"$f":"IF(ISBLANK('TA Indicator Bank'!L319),\"\",'TA Indicator Bank'!L319)","v":""},{"$f":"IF(ISBLANK('TA Indicator Bank'!M319),\"\",'TA Indicator Bank'!M319)","v":""},{"$f":"IF(ISBLANK('TA Indicator Bank'!N319),\"\",'TA Indicator Bank'!N319)","v":""},{"$f":"IF(ISBLANK('TA Indicator Bank'!O319),\"\",'TA Indicator Bank'!O319)","v":""},{"$f":"IF(ISBLANK('TA Indicator Bank'!P319),\"\",'TA Indicator Bank'!P319)","v":""},{"$f":"IF(ISBLANK('TA Indicator Bank'!Q319),\"\",'TA Indicator Bank'!Q319)","v":""},{"$f":"IF(ISBLANK('TA Indicator Bank'!R319),\"\",'TA Indicator Bank'!R319)","v":""},{"$f":"IF(ISBLANK('TA Indicator Bank'!S319),\"\",'TA Indicator Bank'!S319)","v":""},{"$f":"IF(ISBLANK('TA Indicator Bank'!T319),\"\",'TA Indicator Bank'!T319)","v":""},{"$f":"IF(ISBLANK('TA Indicator Bank'!U319),\"\",'TA Indicator Bank'!U319)","v":""},{"$f":"IF(ISBLANK('TA Indicator Bank'!V319),\"\",'TA Indicator Bank'!V319)","v":""},{"$f":"IF(ISBLANK('TA Indicator Bank'!W319),\"\",'TA Indicator Bank'!W319)","v":""},{"$f":"IF(ISBLANK('TA Indicator Bank'!X319),\"\",'TA Indicator Bank'!X319)","v":""},{"$f":"IF(ISBLANK('TA Indicator Bank'!Y319),\"\",'TA Indicator Bank'!Y319)","v":""},{"$f":"IF(ISBLANK('TA Indicator Bank'!Z319),\"\",'TA Indicator Bank'!Z319)","v":""},{"$f":"IF(ISBLANK('TA Indicator Bank'!AA319),\"\",'TA Indicator Bank'!AA319)","v":""},{"$f":"IF(ISBLANK('TA Indicator Bank'!AB319),\"\",'TA Indicator Bank'!AB319)","v":""},{"$f":"IF(ISBLANK('TA Indicator Bank'!AC319),\"\",'TA Indicator Bank'!AC319)","v":""},{"$f":"IF(ISBLANK('TA Indicator Bank'!AD319),\"\",'TA Indicator Bank'!AD319)","v":""},{"$f":"IF(ISBLANK('TA Indicator Bank'!AE319),\"\",'TA Indicator Bank'!AE319)","v":""},{"$f":"IF(ISBLANK('TA Indicator Bank'!AF319),\"\",'TA Indicator Bank'!AF319)","v":""},{"$f":"IF(ISBLANK('TA Indicator Bank'!AG319),\"\",'TA Indicator Bank'!AG319)","v":""},{"$f":"IF(ISBLANK('TA Indicator Bank'!AH319),\"\",'TA Indicator Bank'!AH319)","v":""},{"$f":"IF(ISBLANK('TA Indicator Bank'!AI319),\"\",'TA Indicator Bank'!AI319)","v":""},{"$f":"IF(ISBLANK('TA Indicator Bank'!AJ319),\"\",'TA Indicator Bank'!AJ319)","v":""},{"$f":"IF(ISBLANK('TA Indicator Bank'!AK319),\"\",'TA Indicator Bank'!AK319)","v":""},{"$f":"IF(ISBLANK('TA Indicator Bank'!AL319),\"\",'TA Indicator Bank'!AL319)","v":""},{"$f":"IF(ISBLANK('TA Indicator Bank'!AM319),\"\",'TA Indicator Bank'!AM319)","v":""},{"$f":"IF(ISBLANK('TA Indicator Bank'!AN319),\"\",'TA Indicator Bank'!AN319)","v":""},{"$f":"IF(ISBLANK('TA Indicator Bank'!AO319),\"\",'TA Indicator Bank'!AO319)","v":""},{"$f":"IF(ISBLANK('TA Indicator Bank'!AP319),\"\",'TA Indicator Bank'!AP319)","v":""},{"$f":"IF(ISBLANK('TA Indicator Bank'!AQ319),\"\",'TA Indicator Bank'!AQ319)","v":""},{"$f":"IF(ISBLANK('TA Indicator Bank'!AR319),\"\",'TA Indicator Bank'!AR319)","v":""},{"$f":"IF(ISBLANK('TA Indicator Bank'!AS319),\"\",'TA Indicator Bank'!AS319)","v":""},{"$f":"IF(ISBLANK('TA Indicator Bank'!AT319),\"\",'TA Indicator Bank'!AT319)","v":""},0,0,0,0,0,0,0,0,0,0,0,0,0,0,1,0,0,0,0,0,0,0,0,0,1,0,0,0,0,0,0,0,0,0,1,0,0,0,0,0,1,1,315,315,"",{"$f":"IFERROR(INDEX($B$9:$I$408,$CM466,COLUMNS($CN$9:CN466)),\"\")","v":""},{"$f":"IFERROR(INDEX($B$9:$I$408,$CM466,COLUMNS($CN$9:CO466)),\"\")","v":""},{"$f":"IFERROR(INDEX($B$9:$I$408,$CM466,COLUMNS($CN$9:CP466)),\"\")","v":""},{"$f":"IFERROR(INDEX($B$9:$I$408,$CM466,COLUMNS($CN$9:CQ466)),\"\")","v":""},{"$f":"IFERROR(INDEX($B$9:$I$408,$CM466,COLUMNS($CN$9:CR466)),\"\")","v":""},{"$f":"IFERROR(INDEX($B$9:$I$408,$CM466,COLUMNS($CN$9:CS466)),\"\")","v":""},{"$f":"IFERROR(INDEX($B$9:$I$408,$CM466,COLUMNS($CN$9:CT466)),\"\")","v":""},{"$f":"IFERROR(INDEX($B$9:$I$408,$CM466,COLUMNS($CN$9:CU466)),\"\")","v":""}]
[null,{"$f":"IF(ISBLANK('TA Indicator Bank'!B320),\"\",'TA Indicator Bank'!B320)","v":""},{"$f":"IF(ISBLANK('TA Indicator Bank'!C320),\"\",'TA Indicator Bank'!C320)","v":""},{"$f":"IF(ISBLANK('TA Indicator Bank'!D320),\"\",'TA Indicator Bank'!D320)","v":""},{"$f":"IF(ISBLANK('TA Indicator Bank'!E320),\"\",'TA Indicator Bank'!E320)","v":""},{"$f":"IF(ISBLANK('TA Indicator Bank'!F320),\"\",'TA Indicator Bank'!F320)","v":""},{"$f":"IF(ISBLANK('TA Indicator Bank'!G320),\"\",'TA Indicator Bank'!G320)","v":""},{"$f":"IF(ISBLANK('TA Indicator Bank'!H320),\"\",'TA Indicator Bank'!H320)","v":""},{"$f":"IF(ISBLANK('TA Indicator Bank'!I320),\"\",'TA Indicator Bank'!I320)","v":""},{"$f":"IF(ISBLANK('TA Indicator Bank'!J320),\"\",'TA Indicator Bank'!J320)","v":""},{"$f":"IF(ISBLANK('TA Indicator Bank'!K320),\"\",'TA Indicator Bank'!K320)","v":""},{"$f":"IF(ISBLANK('TA Indicator Bank'!L320),\"\",'TA Indicator Bank'!L320)","v":""},{"$f":"IF(ISBLANK('TA Indicator Bank'!M320),\"\",'TA Indicator Bank'!M320)","v":""},{"$f":"IF(ISBLANK('TA Indicator Bank'!N320),\"\",'TA Indicator Bank'!N320)","v":""},{"$f":"IF(ISBLANK('TA Indicator Bank'!O320),\"\",'TA Indicator Bank'!O320)","v":""},{"$f":"IF(ISBLANK('TA Indicator Bank'!P320),\"\",'TA Indicator Bank'!P320)","v":""},{"$f":"IF(ISBLANK('TA Indicator Bank'!Q320),\"\",'TA Indicator Bank'!Q320)","v":""},{"$f":"IF(ISBLANK('TA Indicator Bank'!R320),\"\",'TA Indicator Bank'!R320)","v":""},{"$f":"IF(ISBLANK('TA Indicator Bank'!S320),\"\",'TA Indicator Bank'!S320)","v":""},{"$f":"IF(ISBLANK('TA Indicator Bank'!T320),\"\",'TA Indicator Bank'!T320)","v":""},{"$f":"IF(ISBLANK('TA Indicator Bank'!U320),\"\",'TA Indicator Bank'!U320)","v":""},{"$f":"IF(ISBLANK('TA Indicator Bank'!V320),\"\",'TA Indicator Bank'!V320)","v":""},{"$f":"IF(ISBLANK('TA Indicator Bank'!W320),\"\",'TA Indicator Bank'!W320)","v":""},{"$f":"IF(ISBLANK('TA Indicator Bank'!X320),\"\",'TA Indicator Bank'!X320)","v":""},{"$f":"IF(ISBLANK('TA Indicator Bank'!Y320),\"\",'TA Indicator Bank'!Y320)","v":""},{"$f":"IF(ISBLANK('TA Indicator Bank'!Z320),\"\",'TA Indicator Bank'!Z320)","v":""},{"$f":"IF(ISBLANK('TA Indicator Bank'!AA320),\"\",'TA Indicator Bank'!AA320)","v":""},{"$f":"IF(ISBLANK('TA Indicator Bank'!AB320),\"\",'TA Indicator Bank'!AB320)","v":""},{"$f":"IF(ISBLANK('TA Indicator Bank'!AC320),\"\",'TA Indicator Bank'!AC320)","v":""},{"$f":"IF(ISBLANK('TA Indicator Bank'!AD320),\"\",'TA Indicator Bank'!AD320)","v":""},{"$f":"IF(ISBLANK('TA Indicator Bank'!AE320),\"\",'TA Indicator Bank'!AE320)","v":""},{"$f":"IF(ISBLANK('TA Indicator Bank'!AF320),\"\",'TA Indicator Bank'!AF320)","v":""},{"$f":"IF(ISBLANK('TA Indicator Bank'!AG320),\"\",'TA Indicator Bank'!AG320)","v":""},{"$f":"IF(ISBLANK('TA Indicator Bank'!AH320),\"\",'TA Indicator Bank'!AH320)","v":""},{"$f":"IF(ISBLANK('TA Indicator Bank'!AI320),\"\",'TA Indicator Bank'!AI320)","v":""},{"$f":"IF(ISBLANK('TA Indicator Bank'!AJ320),\"\",'TA Indicator Bank'!AJ320)","v":""},{"$f":"IF(ISBLANK('TA Indicator Bank'!AK320),\"\",'TA Indicator Bank'!AK320)","v":""},{"$f":"IF(ISBLANK('TA Indicator Bank'!AL320),\"\",'TA Indicator Bank'!AL320)","v":""},{"$f":"IF(ISBLANK('TA Indicator Bank'!AM320),\"\",'TA Indicator Bank'!AM320)","v":""},{"$f":"IF(ISBLANK('TA Indicator Bank'!AN320),\"\",'TA Indicator Bank'!AN320)","v":""},{"$f":"IF(ISBLANK('TA Indicator Bank'!AO320),\"\",'TA Indicator Bank'!AO320)","v":""},{"$f":"IF(ISBLANK('TA Indicator Bank'!AP320),\"\",'TA Indicator Bank'!AP320)","v":""},{"$f":"IF(ISBLANK('TA Indicator Bank'!AQ320),\"\",'TA Indicator Bank'!AQ320)","v":""},{"$f":"IF(ISBLANK('TA Indicator Bank'!AR320),\"\",'TA Indicator Bank'!AR320)","v":""},{"$f":"IF(ISBLANK('TA Indicator Bank'!AS320),\"\",'TA Indicator Bank'!AS320)","v":""},{"$f":"IF(ISBLANK('TA Indicator Bank'!AT320),\"\",'TA Indicator Bank'!AT320)","v":""},0,0,0,0,0,0,0,0,0,0,0,0,0,0,1,0,0,0,0,0,0,0,0,0,1,0,0,0,0,0,0,0,0,0,1,0,0,0,0,0,1,1,316,316,"",{"$f":"IFERROR(INDEX($B$9:$I$408,$CM467,COLUMNS($CN$9:CN467)),\"\")","v":""},{"$f":"IFERROR(INDEX($B$9:$I$408,$CM467,COLUMNS($CN$9:CO467)),\"\")","v":""},{"$f":"IFERROR(INDEX($B$9:$I$408,$CM467,COLUMNS($CN$9:CP467)),\"\")","v":""},{"$f":"IFERROR(INDEX($B$9:$I$408,$CM467,COLUMNS($CN$9:CQ467)),\"\")","v":""},{"$f":"IFERROR(INDEX($B$9:$I$408,$CM467,COLUMNS($CN$9:CR467)),\"\")","v":""},{"$f":"IFERROR(INDEX($B$9:$I$408,$CM467,COLUMNS($CN$9:CS467)),\"\")","v":""},{"$f":"IFERROR(INDEX($B$9:$I$408,$CM467,COLUMNS($CN$9:CT467)),\"\")","v":""},{"$f":"IFERROR(INDEX($B$9:$I$408,$CM467,COLUMNS($CN$9:CU467)),\"\")","v":""}]
[null,{"$f":"IF(ISBLANK('TA Indicator Bank'!B321),\"\",'TA Indicator Bank'!B321)","v":""},{"$f":"IF(ISBLANK('TA Indicator Bank'!C321),\"\",'TA Indicator Bank'!C321)","v":""},{"$f":"IF(ISBLANK('TA Indicator Bank'!D321),\"\",'TA Indicator Bank'!D321)","v":""},{"$f":"IF(ISBLANK('TA Indicator Bank'!E321),\"\",'TA Indicator Bank'!E321)","v":""},{"$f":"IF(ISBLANK('TA Indicator Bank'!F321),\"\",'TA Indicator Bank'!F321)","v":""},{"$f":"IF(ISBLANK('TA Indicator Bank'!G321),\"\",'TA Indicator Bank'!G321)","v":""},{"$f":"IF(ISBLANK('TA Indicator Bank'!H321),\"\",'TA Indicator Bank'!H321)","v":""},{"$f":"IF(ISBLANK('TA Indicator Bank'!I321),\"\",'TA Indicator Bank'!I321)","v":""},{"$f":"IF(ISBLANK('TA Indicator Bank'!J321),\"\",'TA Indicator Bank'!J321)","v":""},{"$f":"IF(ISBLANK('TA Indicator Bank'!K321),\"\",'TA Indicator Bank'!K321)","v":""},{"$f":"IF(ISBLANK('TA Indicator Bank'!L321),\"\",'TA Indicator Bank'!L321)","v":""},{"$f":"IF(ISBLANK('TA Indicator Bank'!M321),\"\",'TA Indicator Bank'!M321)","v":""},{"$f":"IF(ISBLANK('TA Indicator Bank'!N321),\"\",'TA Indicator Bank'!N321)","v":""},{"$f":"IF(ISBLANK('TA Indicator Bank'!O321),\"\",'TA Indicator Bank'!O321)","v":""},{"$f":"IF(ISBLANK('TA Indicator Bank'!P321),\"\",'TA Indicator Bank'!P321)","v":""},{"$f":"IF(ISBLANK('TA Indicator Bank'!Q321),\"\",'TA Indicator Bank'!Q321)","v":""},{"$f":"IF(ISBLANK('TA Indicator Bank'!R321),\"\",'TA Indicator Bank'!R321)","v":""},{"$f":"IF(ISBLANK('TA Indicator Bank'!S321),\"\",'TA Indicator Bank'!S321)","v":""},{"$f":"IF(ISBLANK('TA Indicator Bank'!T321),\"\",'TA Indicator Bank'!T321)","v":""},{"$f":"IF(ISBLANK('TA Indicator Bank'!U321),\"\",'TA Indicator Bank'!U321)","v":""},{"$f":"IF(ISBLANK('TA Indicator Bank'!V321),\"\",'TA Indicator Bank'!V321)","v":""},{"$f":"IF(ISBLANK('TA Indicator Bank'!W321),\"\",'TA Indicator Bank'!W321)","v":""},{"$f":"IF(ISBLANK('TA Indicator Bank'!X321),\"\",'TA Indicator Bank'!X321)","v":""},{"$f":"IF(ISBLANK('TA Indicator Bank'!Y321),\"\",'TA Indicator Bank'!Y321)","v":""},{"$f":"IF(ISBLANK('TA Indicator Bank'!Z321),\"\",'TA Indicator Bank'!Z321)","v":""},{"$f":"IF(ISBLANK('TA Indicator Bank'!AA321),\"\",'TA Indicator Bank'!AA321)","v":""},{"$f":"IF(ISBLANK('TA Indicator Bank'!AB321),\"\",'TA Indicator Bank'!AB321)","v":""},{"$f":"IF(ISBLANK('TA Indicator Bank'!AC321),\"\",'TA Indicator Bank'!AC321)","v":""},{"$f":"IF(ISBLANK('TA Indicator Bank'!AD321),\"\",'TA Indicator Bank'!AD321)","v":""},{"$f":"IF(ISBLANK('TA Indicator Bank'!AE321),\"\",'TA Indicator Bank'!AE321)","v":""},{"$f":"IF(ISBLANK('TA Indicator Bank'!AF321),\"\",'TA Indicator Bank'!AF321)","v":""},{"$f":"IF(ISBLANK('TA Indicator Bank'!AG321),\"\",'TA Indicator Bank'!AG321)","v":""},{"$f":"IF(ISBLANK('TA Indicator Bank'!AH321),\"\",'TA Indicator Bank'!AH321)","v":""},{"$f":"IF(ISBLANK('TA Indicator Bank'!AI321),\"\",'TA Indicator Bank'!AI321)","v":""},{"$f":"IF(ISBLANK('TA Indicator Bank'!AJ321),\"\",'TA Indicator Bank'!AJ321)","v":""},{"$f":"IF(ISBLANK('TA Indicator Bank'!AK321),\"\",'TA Indicator Bank'!AK321)","v":""},{"$f":"IF(ISBLANK('TA Indicator Bank'!AL321),\"\",'TA Indicator Bank'!AL321)","v":""},{"$f":"IF(ISBLANK('TA Indicator Bank'!AM321),\"\",'TA Indicator Bank'!AM321)","v":""},{"$f":"IF(ISBLANK('TA Indicator Bank'!AN321),\"\",'TA Indicator Bank'!AN321)","v":""},{"$f":"IF(ISBLANK('TA Indicator Bank'!AO321),\"\",'TA Indicator Bank'!AO321)","v":""},{"$f":"IF(ISBLANK('TA Indicator Bank'!AP321),\"\",'TA Indicator Bank'!AP321)","v":""},{"$f":"IF(ISBLANK('TA Indicator Bank'!AQ321),\"\",'TA Indicator Bank'!AQ321)","v":""},{"$f":"IF(ISBLANK('TA Indicator Bank'!AR321),\"\",'TA Indicator Bank'!AR321)","v":""},{"$f":"IF(ISBLANK('TA Indicator Bank'!AS321),\"\",'TA Indicator Bank'!AS321)","v":""},{"$f":"IF(ISBLANK('TA Indicator Bank'!AT321),\"\",'TA Indicator Bank'!AT321)","v":""},0,0,0,0,0,0,0,0,0,0,0,0,0,0,1,0,0,0,0,0,0,0,0,0,1,0,0,0,0,0,0,0,0,0,1,0,0,0,0,0,1,1,317,317,"",{"$f":"IFERROR(INDEX($B$9:$I$408,$CM468,COLUMNS($CN$9:CN468)),\"\")","v":""},{"$f":"IFERROR(INDEX($B$9:$I$408,$CM468,COLUMNS($CN$9:CO468)),\"\")","v":""},{"$f":"IFERROR(INDEX($B$9:$I$408,$CM468,COLUMNS($CN$9:CP468)),\"\")","v":""},{"$f":"IFERROR(INDEX($B$9:$I$408,$CM468,COLUMNS($CN$9:CQ468)),\"\")","v":""},{"$f":"IFERROR(INDEX($B$9:$I$408,$CM468,COLUMNS($CN$9:CR468)),\"\")","v":""},{"$f":"IFERROR(INDEX($B$9:$I$408,$CM468,COLUMNS($CN$9:CS468)),\"\")","v":""},{"$f":"IFERROR(INDEX($B$9:$I$408,$CM468,COLUMNS($CN$9:CT468)),\"\")","v":""},{"$f":"IFERROR(INDEX($B$9:$I$408,$CM468,COLUMNS($CN$9:CU468)),\"\")","v":""}]
[null,{"$f":"IF(ISBLANK('TA Indicator Bank'!B322),\"\",'TA Indicator Bank'!B322)","v":""},{"$f":"IF(ISBLANK('TA Indicator Bank'!C322),\"\",'TA Indicator Bank'!C322)","v":""},{"$f":"IF(ISBLANK('TA Indicator Bank'!D322),\"\",'TA Indicator Bank'!D322)","v":""},{"$f":"IF(ISBLANK('TA Indicator Bank'!E322),\"\",'TA Indicator Bank'!E322)","v":""},{"$f":"IF(ISBLANK('TA Indicator Bank'!F322),\"\",'TA Indicator Bank'!F322)","v":""},{"$f":"IF(ISBLANK('TA Indicator Bank'!G322),\"\",'TA Indicator Bank'!G322)","v":""},{"$f":"IF(ISBLANK('TA Indicator Bank'!H322),\"\",'TA Indicator Bank'!H322)","v":""},{"$f":"IF(ISBLANK('TA Indicator Bank'!I322),\"\",'TA Indicator Bank'!I322)","v":""},{"$f":"IF(ISBLANK('TA Indicator Bank'!J322),\"\",'TA Indicator Bank'!J322)","v":""},{"$f":"IF(ISBLANK('TA Indicator Bank'!K322),\"\",'TA Indicator Bank'!K322)","v":""},{"$f":"IF(ISBLANK('TA Indicator Bank'!L322),\"\",'TA Indicator Bank'!L322)","v":""},{"$f":"IF(ISBLANK('TA Indicator Bank'!M322),\"\",'TA Indicator Bank'!M322)","v":""},{"$f":"IF(ISBLANK('TA Indicator Bank'!N322),\"\",'TA Indicator Bank'!N322)","v":""},{"$f":"IF(ISBLANK('TA Indicator Bank'!O322),\"\",'TA Indicator Bank'!O322)","v":""},{"$f":"IF(ISBLANK('TA Indicator Bank'!P322),\"\",'TA Indicator Bank'!P322)","v":""},{"$f":"IF(ISBLANK('TA Indicator Bank'!Q322),\"\",'TA Indicator Bank'!Q322)","v":""},{"$f":"IF(ISBLANK('TA Indicator Bank'!R322),\"\",'TA Indicator Bank'!R322)","v":""},{"$f":"IF(ISBLANK('TA Indicator Bank'!S322),\"\",'TA Indicator Bank'!S322)","v":""},{"$f":"IF(ISBLANK('TA Indicator Bank'!T322),\"\",'TA Indicator Bank'!T322)","v":""},{"$f":"IF(ISBLANK('TA Indicator Bank'!U322),\"\",'TA Indicator Bank'!U322)","v":""},{"$f":"IF(ISBLANK('TA Indicator Bank'!V322),\"\",'TA Indicator Bank'!V322)","v":""},{"$f":"IF(ISBLANK('TA Indicator Bank'!W322),\"\",'TA Indicator Bank'!W322)","v":""},{"$f":"IF(ISBLANK('TA Indicator Bank'!X322),\"\",'TA Indicator Bank'!X322)","v":""},{"$f":"IF(ISBLANK('TA Indicator Bank'!Y322),\"\",'TA Indicator Bank'!Y322)","v":""},{"$f":"IF(ISBLANK('TA Indicator Bank'!Z322),\"\",'TA Indicator Bank'!Z322)","v":""},{"$f":"IF(ISBLANK('TA Indicator Bank'!AA322),\"\",'TA Indicator Bank'!AA322)","v":""},{"$f":"IF(ISBLANK('TA Indicator Bank'!AB322),\"\",'TA Indicator Bank'!AB322)","v":""},{"$f":"IF(ISBLANK('TA Indicator Bank'!AC322),\"\",'TA Indicator Bank'!AC322)","v":""},{"$f":"IF(ISBLANK('TA Indicator Bank'!AD322),\"\",'TA Indicator Bank'!AD322)","v":""},{"$f":"IF(ISBLANK('TA Indicator Bank'!AE322),\"\",'TA Indicator Bank'!AE322)","v":""},{"$f":"IF(ISBLANK('TA Indicator Bank'!AF322),\"\",'TA Indicator Bank'!AF322)","v":""},{"$f":"IF(ISBLANK('TA Indicator Bank'!AG322),\"\",'TA Indicator Bank'!AG322)","v":""},{"$f":"IF(ISBLANK('TA Indicator Bank'!AH322),\"\",'TA Indicator Bank'!AH322)","v":""},{"$f":"IF(ISBLANK('TA Indicator Bank'!AI322),\"\",'TA Indicator Bank'!AI322)","v":""},{"$f":"IF(ISBLANK('TA Indicator Bank'!AJ322),\"\",'TA Indicator Bank'!AJ322)","v":""},{"$f":"IF(ISBLANK('TA Indicator Bank'!AK322),\"\",'TA Indicator Bank'!AK322)","v":""},{"$f":"IF(ISBLANK('TA Indicator Bank'!AL322),\"\",'TA Indicator Bank'!AL322)","v":""},{"$f":"IF(ISBLANK('TA Indicator Bank'!AM322),\"\",'TA Indicator Bank'!AM322)","v":""},{"$f":"IF(ISBLANK('TA Indicator Bank'!AN322),\"\",'TA Indicator Bank'!AN322)","v":""},{"$f":"IF(ISBLANK('TA Indicator Bank'!AO322),\"\",'TA Indicator Bank'!AO322)","v":""},{"$f":"IF(ISBLANK('TA Indicator Bank'!AP322),\"\",'TA Indicator Bank'!AP322)","v":""},{"$f":"IF(ISBLANK('TA Indicator Bank'!AQ322),\"\",'TA Indicator Bank'!AQ322)","v":""},{"$f":"IF(ISBLANK('TA Indicator Bank'!AR322),\"\",'TA Indicator Bank'!AR322)","v":""},{"$f":"IF(ISBLANK('TA Indicator Bank'!AS322),\"\",'TA Indicator Bank'!AS322)","v":""},{"$f":"IF(ISBLANK('TA Indicator Bank'!AT322),\"\",'TA Indicator Bank'!AT322)","v":""},0,0,0,0,0,0,0,0,0,0,0,0,0,0,1,0,0,0,0,0,0,0,0,0,1,0,0,0,0,0,0,0,0,0,1,0,0,0,0,0,1,1,318,318,"",{"$f":"IFERROR(INDEX($B$9:$I$408,$CM469,COLUMNS($CN$9:CN469)),\"\")","v":""},{"$f":"IFERROR(INDEX($B$9:$I$408,$CM469,COLUMNS($CN$9:CO469)),\"\")","v":""},{"$f":"IFERROR(INDEX($B$9:$I$408,$CM469,COLUMNS($CN$9:CP469)),\"\")","v":""},{"$f":"IFERROR(INDEX($B$9:$I$408,$CM469,COLUMNS($CN$9:CQ469)),\"\")","v":""},{"$f":"IFERROR(INDEX($B$9:$I$408,$CM469,COLUMNS($CN$9:CR469)),\"\")","v":""},{"$f":"IFERROR(INDEX($B$9:$I$408,$CM469,COLUMNS($CN$9:CS469)),\"\")","v":""},{"$f":"IFERROR(INDEX($B$9:$I$408,$CM469,COLUMNS($CN$9:CT469)),\"\")","v":""},{"$f":"IFERROR(INDEX($B$9:$I$408,$CM469,COLUMNS($CN$9:CU469)),\"\")","v":""}]
[null,{"$f":"IF(ISBLANK('TA Indicator Bank'!B323),\"\",'TA Indicator Bank'!B323)","v":""},{"$f":"IF(ISBLANK('TA Indicator Bank'!C323),\"\",'TA Indicator Bank'!C323)","v":""},{"$f":"IF(ISBLANK('TA Indicator Bank'!D323),\"\",'TA Indicator Bank'!D323)","v":""},{"$f":"IF(ISBLANK('TA Indicator Bank'!E323),\"\",'TA Indicator Bank'!E323)","v":""},{"$f":"IF(ISBLANK('TA Indicator Bank'!F323),\"\",'TA Indicator Bank'!F323)","v":""},{"$f":"IF(ISBLANK('TA Indicator Bank'!G323),\"\",'TA Indicator Bank'!G323)","v":""},{"$f":"IF(ISBLANK('TA Indicator Bank'!H323),\"\",'TA Indicator Bank'!H323)","v":""},{"$f":"IF(ISBLANK('TA Indicator Bank'!I323),\"\",'TA Indicator Bank'!I323)","v":""},{"$f":"IF(ISBLANK('TA Indicator Bank'!J323),\"\",'TA Indicator Bank'!J323)","v":""},{"$f":"IF(ISBLANK('TA Indicator Bank'!K323),\"\",'TA Indicator Bank'!K323)","v":""},{"$f":"IF(ISBLANK('TA Indicator Bank'!L323),\"\",'TA Indicator Bank'!L323)","v":""},{"$f":"IF(ISBLANK('TA Indicator Bank'!M323),\"\",'TA Indicator Bank'!M323)","v":""},{"$f":"IF(ISBLANK('TA Indicator Bank'!N323),\"\",'TA Indicator Bank'!N323)","v":""},{"$f":"IF(ISBLANK('TA Indicator Bank'!O323),\"\",'TA Indicator Bank'!O323)","v":""},{"$f":"IF(ISBLANK('TA Indicator Bank'!P323),\"\",'TA Indicator Bank'!P323)","v":""},{"$f":"IF(ISBLANK('TA Indicator Bank'!Q323),\"\",'TA Indicator Bank'!Q323)","v":""},{"$f":"IF(ISBLANK('TA Indicator Bank'!R323),\"\",'TA Indicator Bank'!R323)","v":""},{"$f":"IF(ISBLANK('TA Indicator Bank'!S323),\"\",'TA Indicator Bank'!S323)","v":""},{"$f":"IF(ISBLANK('TA Indicator Bank'!T323),\"\",'TA Indicator Bank'!T323)","v":""},{"$f":"IF(ISBLANK('TA Indicator Bank'!U323),\"\",'TA Indicator Bank'!U323)","v":""},{"$f":"IF(ISBLANK('TA Indicator Bank'!V323),\"\",'TA Indicator Bank'!V323)","v":""},{"$f":"IF(ISBLANK('TA Indicator Bank'!W323),\"\",'TA Indicator Bank'!W323)","v":""},{"$f":"IF(ISBLANK('TA Indicator Bank'!X323),\"\",'TA Indicator Bank'!X323)","v":""},{"$f":"IF(ISBLANK('TA Indicator Bank'!Y323),\"\",'TA Indicator Bank'!Y323)","v":""},{"$f":"IF(ISBLANK('TA Indicator Bank'!Z323),\"\",'TA Indicator Bank'!Z323)","v":""},{"$f":"IF(ISBLANK('TA Indicator Bank'!AA323),\"\",'TA Indicator Bank'!AA323)","v":""},{"$f":"IF(ISBLANK('TA Indicator Bank'!AB323),\"\",'TA Indicator Bank'!AB323)","v":""},{"$f":"IF(ISBLANK('TA Indicator Bank'!AC323),\"\",'TA Indicator Bank'!AC323)","v":""},{"$f":"IF(ISBLANK('TA Indicator Bank'!AD323),\"\",'TA Indicator Bank'!AD323)","v":""},{"$f":"IF(ISBLANK('TA Indicator Bank'!AE323),\"\",'TA Indicator Bank'!AE323)","v":""},{"$f":"IF(ISBLANK('TA Indicator Bank'!AF323),\"\",'TA Indicator Bank'!AF323)","v":""},{"$f":"IF(ISBLANK('TA Indicator Bank'!AG323),\"\",'TA Indicator Bank'!AG323)","v":""},{"$f":"IF(ISBLANK('TA Indicator Bank'!AH323),\"\",'TA Indicator Bank'!AH323)","v":""},{"$f":"IF(ISBLANK('TA Indicator Bank'!AI323),\"\",'TA Indicator Bank'!AI323)","v":""},{"$f":"IF(ISBLANK('TA Indicator Bank'!AJ323),\"\",'TA Indicator Bank'!AJ323)","v":""},{"$f":"IF(ISBLANK('TA Indicator Bank'!AK323),\"\",'TA Indicator Bank'!AK323)","v":""},{"$f":"IF(ISBLANK('TA Indicator Bank'!AL323),\"\",'TA Indicator Bank'!AL323)","v":""},{"$f":"IF(ISBLANK('TA Indicator Bank'!AM323),\"\",'TA Indicator Bank'!AM323)","v":""},{"$f":"IF(ISBLANK('TA Indicator Bank'!AN323),\"\",'TA Indicator Bank'!AN323)","v":""},{"$f":"IF(ISBLANK('TA Indicator Bank'!AO323),\"\",'TA Indicator Bank'!AO323)","v":""},{"$f":"IF(ISBLANK('TA Indicator Bank'!AP323),\"\",'TA Indicator Bank'!AP323)","v":""},{"$f":"IF(ISBLANK('TA Indicator Bank'!AQ323),\"\",'TA Indicator Bank'!AQ323)","v":""},{"$f":"IF(ISBLANK('TA Indicator Bank'!AR323),\"\",'TA Indicator Bank'!AR323)","v":""},{"$f":"IF(ISBLANK('TA Indicator Bank'!AS323),\"\",'TA Indicator Bank'!AS323)","v":""},{"$f":"IF(ISBLANK('TA Indicator Bank'!AT323),\"\",'TA Indicator Bank'!AT323)","v":""},0,0,0,0,0,0,0,0,0,0,0,0,0,0,1,0,0,0,0,0,0,0,0,0,1,0,0,0,0,0,0,0,0,0,1,0,0,0,0,0,1,1,319,319,"",{"$f":"IFERROR(INDEX($B$9:$I$408,$CM470,COLUMNS($CN$9:CN470)),\"\")","v":""},{"$f":"IFERROR(INDEX($B$9:$I$408,$CM470,COLUMNS($CN$9:CO470)),\"\")","v":""},{"$f":"IFERROR(INDEX($B$9:$I$408,$CM470,COLUMNS($CN$9:CP470)),\"\")","v":""},{"$f":"IFERROR(INDEX($B$9:$I$408,$CM470,COLUMNS($CN$9:CQ470)),\"\")","v":""},{"$f":"IFERROR(INDEX($B$9:$I$408,$CM470,COLUMNS($CN$9:CR470)),\"\")","v":""},{"$f":"IFERROR(INDEX($B$9:$I$408,$CM470,COLUMNS($CN$9:CS470)),\"\")","v":""},{"$f":"IFERROR(INDEX($B$9:$I$408,$CM470,COLUMNS($CN$9:CT470)),\"\")","v":""},{"$f":"IFERROR(INDEX($B$9:$I$408,$CM470,COLUMNS($CN$9:CU470)),\"\")","v":""}]
[null,{"$f":"IF(ISBLANK('TA Indicator Bank'!B324),\"\",'TA Indicator Bank'!B324)","v":""},{"$f":"IF(ISBLANK('TA Indicator Bank'!C324),\"\",'TA Indicator Bank'!C324)","v":""},{"$f":"IF(ISBLANK('TA Indicator Bank'!D324),\"\",'TA Indicator Bank'!D324)","v":""},{"$f":"IF(ISBLANK('TA Indicator Bank'!E324),\"\",'TA Indicator Bank'!E324)","v":""},{"$f":"IF(ISBLANK('TA Indicator Bank'!F324),\"\",'TA Indicator Bank'!F324)","v":""},{"$f":"IF(ISBLANK('TA Indicator Bank'!G324),\"\",'TA Indicator Bank'!G324)","v":""},{"$f":"IF(ISBLANK('TA Indicator Bank'!H324),\"\",'TA Indicator Bank'!H324)","v":""},{"$f":"IF(ISBLANK('TA Indicator Bank'!I324),\"\",'TA Indicator Bank'!I324)","v":""},{"$f":"IF(ISBLANK('TA Indicator Bank'!J324),\"\",'TA Indicator Bank'!J324)","v":""},{"$f":"IF(ISBLANK('TA Indicator Bank'!K324),\"\",'TA Indicator Bank'!K324)","v":""},{"$f":"IF(ISBLANK('TA Indicator Bank'!L324),\"\",'TA Indicator Bank'!L324)","v":""},{"$f":"IF(ISBLANK('TA Indicator Bank'!M324),\"\",'TA Indicator Bank'!M324)","v":""},{"$f":"IF(ISBLANK('TA Indicator Bank'!N324),\"\",'TA Indicator Bank'!N324)","v":""},{"$f":"IF(ISBLANK('TA Indicator Bank'!O324),\"\",'TA Indicator Bank'!O324)","v":""},{"$f":"IF(ISBLANK('TA Indicator Bank'!P324),\"\",'TA Indicator Bank'!P324)","v":""},{"$f":"IF(ISBLANK('TA Indicator Bank'!Q324),\"\",'TA Indicator Bank'!Q324)","v":""},{"$f":"IF(ISBLANK('TA Indicator Bank'!R324),\"\",'TA Indicator Bank'!R324)","v":""},{"$f":"IF(ISBLANK('TA Indicator Bank'!S324),\"\",'TA Indicator Bank'!S324)","v":""},{"$f":"IF(ISBLANK('TA Indicator Bank'!T324),\"\",'TA Indicator Bank'!T324)","v":""},{"$f":"IF(ISBLANK('TA Indicator Bank'!U324),\"\",'TA Indicator Bank'!U324)","v":""},{"$f":"IF(ISBLANK('TA Indicator Bank'!V324),\"\",'TA Indicator Bank'!V324)","v":""},{"$f":"IF(ISBLANK('TA Indicator Bank'!W324),\"\",'TA Indicator Bank'!W324)","v":""},{"$f":"IF(ISBLANK('TA Indicator Bank'!X324),\"\",'TA Indicator Bank'!X324)","v":""},{"$f":"IF(ISBLANK('TA Indicator Bank'!Y324),\"\",'TA Indicator Bank'!Y324)","v":""},{"$f":"IF(ISBLANK('TA Indicator Bank'!Z324),\"\",'TA Indicator Bank'!Z324)","v":""},{"$f":"IF(ISBLANK('TA Indicator Bank'!AA324),\"\",'TA Indicator Bank'!AA324)","v":""},{"$f":"IF(ISBLANK('TA Indicator Bank'!AB324),\"\",'TA Indicator Bank'!AB324)","v":""},{"$f":"IF(ISBLANK('TA Indicator Bank'!AC324),\"\",'TA Indicator Bank'!AC324)","v":""},{"$f":"IF(ISBLANK('TA Indicator Bank'!AD324),\"\",'TA Indicator Bank'!AD324)","v":""},{"$f":"IF(ISBLANK('TA Indicator Bank'!AE324),\"\",'TA Indicator Bank'!AE324)","v":""},{"$f":"IF(ISBLANK('TA Indicator Bank'!AF324),\"\",'TA Indicator Bank'!AF324)","v":""},{"$f":"IF(ISBLANK('TA Indicator Bank'!AG324),\"\",'TA Indicator Bank'!AG324)","v":""},{"$f":"IF(ISBLANK('TA Indicator Bank'!AH324),\"\",'TA Indicator Bank'!AH324)","v":""},{"$f":"IF(ISBLANK('TA Indicator Bank'!AI324),\"\",'TA Indicator Bank'!AI324)","v":""},{"$f":"IF(ISBLANK('TA Indicator Bank'!AJ324),\"\",'TA Indicator Bank'!AJ324)","v":""},{"$f":"IF(ISBLANK('TA Indicator Bank'!AK324),\"\",'TA Indicator Bank'!AK324)","v":""},{"$f":"IF(ISBLANK('TA Indicator Bank'!AL324),\"\",'TA Indicator Bank'!AL324)","v":""},{"$f":"IF(ISBLANK('TA Indicator Bank'!AM324),\"\",'TA Indicator Bank'!AM324)","v":""},{"$f":"IF(ISBLANK('TA Indicator Bank'!AN324),\"\",'TA Indicator Bank'!AN324)","v":""},{"$f":"IF(ISBLANK('TA Indicator Bank'!AO324),\"\",'TA Indicator Bank'!AO324)","v":""},{"$f":"IF(ISBLANK('TA Indicator Bank'!AP324),\"\",'TA Indicator Bank'!AP324)","v":""},{"$f":"IF(ISBLANK('TA Indicator Bank'!AQ324),\"\",'TA Indicator Bank'!AQ324)","v":""},{"$f":"IF(ISBLANK('TA Indicator Bank'!AR324),\"\",'TA Indicator Bank'!AR324)","v":""},{"$f":"IF(ISBLANK('TA Indicator Bank'!AS324),\"\",'TA Indicator Bank'!AS324)","v":""},{"$f":"IF(ISBLANK('TA Indicator Bank'!AT324),\"\",'TA Indicator Bank'!AT324)","v":""},0,0,0,0,0,0,0,0,0,0,0,0,0,0,1,0,0,0,0,0,0,0,0,0,1,0,0,0,0,0,0,0,0,0,1,0,0,0,0,0,1,1,320,320,"",{"$f":"IFERROR(INDEX($B$9:$I$408,$CM471,COLUMNS($CN$9:CN471)),\"\")","v":""},{"$f":"IFERROR(INDEX($B$9:$I$408,$CM471,COLUMNS($CN$9:CO471)),\"\")","v":""},{"$f":"IFERROR(INDEX($B$9:$I$408,$CM471,COLUMNS($CN$9:CP471)),\"\")","v":""},{"$f":"IFERROR(INDEX($B$9:$I$408,$CM471,COLUMNS($CN$9:CQ471)),\"\")","v":""},{"$f":"IFERROR(INDEX($B$9:$I$408,$CM471,COLUMNS($CN$9:CR471)),\"\")","v":""},{"$f":"IFERROR(INDEX($B$9:$I$408,$CM471,COLUMNS($CN$9:CS471)),\"\")","v":""},{"$f":"IFERROR(INDEX($B$9:$I$408,$CM471,COLUMNS($CN$9:CT471)),\"\")","v":""},{"$f":"IFERROR(INDEX($B$9:$I$408,$CM471,COLUMNS($CN$9:CU471)),\"\")","v":""}]
[null,{"$f":"IF(ISBLANK('TA Indicator Bank'!B325),\"\",'TA Indicator Bank'!B325)","v":""},{"$f":"IF(ISBLANK('TA Indicator Bank'!C325),\"\",'TA Indicator Bank'!C325)","v":""},{"$f":"IF(ISBLANK('TA Indicator Bank'!D325),\"\",'TA Indicator Bank'!D325)","v":""},{"$f":"IF(ISBLANK('TA Indicator Bank'!E325),\"\",'TA Indicator Bank'!E325)","v":""},{"$f":"IF(ISBLANK('TA Indicator Bank'!F325),\"\",'TA Indicator Bank'!F325)","v":""},{"$f":"IF(ISBLANK('TA Indicator Bank'!G325),\"\",'TA Indicator Bank'!G325)","v":""},{"$f":"IF(ISBLANK('TA Indicator Bank'!H325),\"\",'TA Indicator Bank'!H325)","v":""},{"$f":"IF(ISBLANK('TA Indicator Bank'!I325),\"\",'TA Indicator Bank'!I325)","v":""},{"$f":"IF(ISBLANK('TA Indicator Bank'!J325),\"\",'TA Indicator Bank'!J325)","v":""},{"$f":"IF(ISBLANK('TA Indicator Bank'!K325),\"\",'TA Indicator Bank'!K325)","v":""},{"$f":"IF(ISBLANK('TA Indicator Bank'!L325),\"\",'TA Indicator Bank'!L325)","v":""},{"$f":"IF(ISBLANK('TA Indicator Bank'!M325),\"\",'TA Indicator Bank'!M325)","v":""},{"$f":"IF(ISBLANK('TA Indicator Bank'!N325),\"\",'TA Indicator Bank'!N325)","v":""},{"$f":"IF(ISBLANK('TA Indicator Bank'!O325),\"\",'TA Indicator Bank'!O325)","v":""},{"$f":"IF(ISBLANK('TA Indicator Bank'!P325),\"\",'TA Indicator Bank'!P325)","v":""},{"$f":"IF(ISBLANK('TA Indicator Bank'!Q325),\"\",'TA Indicator Bank'!Q325)","v":""},{"$f":"IF(ISBLANK('TA Indicator Bank'!R325),\"\",'TA Indicator Bank'!R325)","v":""},{"$f":"IF(ISBLANK('TA Indicator Bank'!S325),\"\",'TA Indicator Bank'!S325)","v":""},{"$f":"IF(ISBLANK('TA Indicator Bank'!T325),\"\",'TA Indicator Bank'!T325)","v":""},{"$f":"IF(ISBLANK('TA Indicator Bank'!U325),\"\",'TA Indicator Bank'!U325)","v":""},{"$f":"IF(ISBLANK('TA Indicator Bank'!V325),\"\",'TA Indicator Bank'!V325)","v":""},{"$f":"IF(ISBLANK('TA Indicator Bank'!W325),\"\",'TA Indicator Bank'!W325)","v":""},{"$f":"IF(ISBLANK('TA Indicator Bank'!X325),\"\",'TA Indicator Bank'!X325)","v":""},{"$f":"IF(ISBLANK('TA Indicator Bank'!Y325),\"\",'TA Indicator Bank'!Y325)","v":""},{"$f":"IF(ISBLANK('TA Indicator Bank'!Z325),\"\",'TA Indicator Bank'!Z325)","v":""},{"$f":"IF(ISBLANK('TA Indicator Bank'!AA325),\"\",'TA Indicator Bank'!AA325)","v":""},{"$f":"IF(ISBLANK('TA Indicator Bank'!AB325),\"\",'TA Indicator Bank'!AB325)","v":""},{"$f":"IF(ISBLANK('TA Indicator Bank'!AC325),\"\",'TA Indicator Bank'!AC325)","v":""},{"$f":"IF(ISBLANK('TA Indicator Bank'!AD325),\"\",'TA Indicator Bank'!AD325)","v":""},{"$f":"IF(ISBLANK('TA Indicator Bank'!AE325),\"\",'TA Indicator Bank'!AE325)","v":""},{"$f":"IF(ISBLANK('TA Indicator Bank'!AF325),\"\",'TA Indicator Bank'!AF325)","v":""},{"$f":"IF(ISBLANK('TA Indicator Bank'!AG325),\"\",'TA Indicator Bank'!AG325)","v":""},{"$f":"IF(ISBLANK('TA Indicator Bank'!AH325),\"\",'TA Indicator Bank'!AH325)","v":""},{"$f":"IF(ISBLANK('TA Indicator Bank'!AI325),\"\",'TA Indicator Bank'!AI325)","v":""},{"$f":"IF(ISBLANK('TA Indicator Bank'!AJ325),\"\",'TA Indicator Bank'!AJ325)","v":""},{"$f":"IF(ISBLANK('TA Indicator Bank'!AK325),\"\",'TA Indicator Bank'!AK325)","v":""},{"$f":"IF(ISBLANK('TA Indicator Bank'!AL325),\"\",'TA Indicator Bank'!AL325)","v":""},{"$f":"IF(ISBLANK('TA Indicator Bank'!AM325),\"\",'TA Indicator Bank'!AM325)","v":""},{"$f":"IF(ISBLANK('TA Indicator Bank'!AN325),\"\",'TA Indicator Bank'!AN325)","v":""},{"$f":"IF(ISBLANK('TA Indicator Bank'!AO325),\"\",'TA Indicator Bank'!AO325)","v":""},{"$f":"IF(ISBLANK('TA Indicator Bank'!AP325),\"\",'TA Indicator Bank'!AP325)","v":""},{"$f":"IF(ISBLANK('TA Indicator Bank'!AQ325),\"\",'TA Indicator Bank'!AQ325)","v":""},{"$f":"IF(ISBLANK('TA Indicator Bank'!AR325),\"\",'TA Indicator Bank'!AR325)","v":""},{"$f":"IF(ISBLANK('TA Indicator Bank'!AS325),\"\",'TA Indicator Bank'!AS325)","v":""},{"$f":"IF(ISBLANK('TA Indicator Bank'!AT325),\"\",'TA Indicator Bank'!AT325)","v":""},0,0,0,0,0,0,0,0,0,0,0,0,0,0,1,0,0,0,0,0,0,0,0,0,1,0,0,0,0,0,0,0,0,0,1,0,0,0,0,0,1,1,321,321,"",{"$f":"IFERROR(INDEX($B$9:$I$408,$CM472,COLUMNS($CN$9:CN472)),\"\")","v":""},{"$f":"IFERROR(INDEX($B$9:$I$408,$CM472,COLUMNS($CN$9:CO472)),\"\")","v":""},{"$f":"IFERROR(INDEX($B$9:$I$408,$CM472,COLUMNS($CN$9:CP472)),\"\")","v":""},{"$f":"IFERROR(INDEX($B$9:$I$408,$CM472,COLUMNS($CN$9:CQ472)),\"\")","v":""},{"$f":"IFERROR(INDEX($B$9:$I$408,$CM472,COLUMNS($CN$9:CR472)),\"\")","v":""},{"$f":"IFERROR(INDEX($B$9:$I$408,$CM472,COLUMNS($CN$9:CS472)),\"\")","v":""},{"$f":"IFERROR(INDEX($B$9:$I$408,$CM472,COLUMNS($CN$9:CT472)),\"\")","v":""},{"$f":"IFERROR(INDEX($B$9:$I$408,$CM472,COLUMNS($CN$9:CU472)),\"\")","v":""}]
[null,{"$f":"IF(ISBLANK('TA Indicator Bank'!B326),\"\",'TA Indicator Bank'!B326)","v":""},{"$f":"IF(ISBLANK('TA Indicator Bank'!C326),\"\",'TA Indicator Bank'!C326)","v":""},{"$f":"IF(ISBLANK('TA Indicator Bank'!D326),\"\",'TA Indicator Bank'!D326)","v":""},{"$f":"IF(ISBLANK('TA Indicator Bank'!E326),\"\",'TA Indicator Bank'!E326)","v":""},{"$f":"IF(ISBLANK('TA Indicator Bank'!F326),\"\",'TA Indicator Bank'!F326)","v":""},{"$f":"IF(ISBLANK('TA Indicator Bank'!G326),\"\",'TA Indicator Bank'!G326)","v":""},{"$f":"IF(ISBLANK('TA Indicator Bank'!H326),\"\",'TA Indicator Bank'!H326)","v":""},{"$f":"IF(ISBLANK('TA Indicator Bank'!I326),\"\",'TA Indicator Bank'!I326)","v":""},{"$f":"IF(ISBLANK('TA Indicator Bank'!J326),\"\",'TA Indicator Bank'!J326)","v":""},{"$f":"IF(ISBLANK('TA Indicator Bank'!K326),\"\",'TA Indicator Bank'!K326)","v":""},{"$f":"IF(ISBLANK('TA Indicator Bank'!L326),\"\",'TA Indicator Bank'!L326)","v":""},{"$f":"IF(ISBLANK('TA Indicator Bank'!M326),\"\",'TA Indicator Bank'!M326)","v":""},{"$f":"IF(ISBLANK('TA Indicator Bank'!N326),\"\",'TA Indicator Bank'!N326)","v":""},{"$f":"IF(ISBLANK('TA Indicator Bank'!O326),\"\",'TA Indicator Bank'!O326)","v":""},{"$f":"IF(ISBLANK('TA Indicator Bank'!P326),\"\",'TA Indicator Bank'!P326)","v":""},{"$f":"IF(ISBLANK('TA Indicator Bank'!Q326),\"\",'TA Indicator Bank'!Q326)","v":""},{"$f":"IF(ISBLANK('TA Indicator Bank'!R326),\"\",'TA Indicator Bank'!R326)","v":""},{"$f":"IF(ISBLANK('TA Indicator Bank'!S326),\"\",'TA Indicator Bank'!S326)","v":""},{"$f":"IF(ISBLANK('TA Indicator Bank'!T326),\"\",'TA Indicator Bank'!T326)","v":""},{"$f":"IF(ISBLANK('TA Indicator Bank'!U326),\"\",'TA Indicator Bank'!U326)","v":""},{"$f":"IF(ISBLANK('TA Indicator Bank'!V326),\"\",'TA Indicator Bank'!V326)","v":""},{"$f":"IF(ISBLANK('TA Indicator Bank'!W326),\"\",'TA Indicator Bank'!W326)","v":""},{"$f":"IF(ISBLANK('TA Indicator Bank'!X326),\"\",'TA Indicator Bank'!X326)","v":""},{"$f":"IF(ISBLANK('TA Indicator Bank'!Y326),\"\",'TA Indicator Bank'!Y326)","v":""},{"$f":"IF(ISBLANK('TA Indicator Bank'!Z326),\"\",'TA Indicator Bank'!Z326)","v":""},{"$f":"IF(ISBLANK('TA Indicator Bank'!AA326),\"\",'TA Indicator Bank'!AA326)","v":""},{"$f":"IF(ISBLANK('TA Indicator Bank'!AB326),\"\",'TA Indicator Bank'!AB326)","v":""},{"$f":"IF(ISBLANK('TA Indicator Bank'!AC326),\"\",'TA Indicator Bank'!AC326)","v":""},{"$f":"IF(ISBLANK('TA Indicator Bank'!AD326),\"\",'TA Indicator Bank'!AD326)","v":""},{"$f":"IF(ISBLANK('TA Indicator Bank'!AE326),\"\",'TA Indicator Bank'!AE326)","v":""},{"$f":"IF(ISBLANK('TA Indicator Bank'!AF326),\"\",'TA Indicator Bank'!AF326)","v":""},{"$f":"IF(ISBLANK('TA Indicator Bank'!AG326),\"\",'TA Indicator Bank'!AG326)","v":""},{"$f":"IF(ISBLANK('TA Indicator Bank'!AH326),\"\",'TA Indicator Bank'!AH326)","v":""},{"$f":"IF(ISBLANK('TA Indicator Bank'!AI326),\"\",'TA Indicator Bank'!AI326)","v":""},{"$f":"IF(ISBLANK('TA Indicator Bank'!AJ326),\"\",'TA Indicator Bank'!AJ326)","v":""},{"$f":"IF(ISBLANK('TA Indicator Bank'!AK326),\"\",'TA Indicator Bank'!AK326)","v":""},{"$f":"IF(ISBLANK('TA Indicator Bank'!AL326),\"\",'TA Indicator Bank'!AL326)","v":""},{"$f":"IF(ISBLANK('TA Indicator Bank'!AM326),\"\",'TA Indicator Bank'!AM326)","v":""},{"$f":"IF(ISBLANK('TA Indicator Bank'!AN326),\"\",'TA Indicator Bank'!AN326)","v":""},{"$f":"IF(ISBLANK('TA Indicator Bank'!AO326),\"\",'TA Indicator Bank'!AO326)","v":""},{"$f":"IF(ISBLANK('TA Indicator Bank'!AP326),\"\",'TA Indicator Bank'!AP326)","v":""},{"$f":"IF(ISBLANK('TA Indicator Bank'!AQ326),\"\",'TA Indicator Bank'!AQ326)","v":""},{"$f":"IF(ISBLANK('TA Indicator Bank'!AR326),\"\",'TA Indicator Bank'!AR326)","v":""},{"$f":"IF(ISBLANK('TA Indicator Bank'!AS326),\"\",'TA Indicator Bank'!AS326)","v":""},{"$f":"IF(ISBLANK('TA Indicator Bank'!AT326),\"\",'TA Indicator Bank'!AT326)","v":""},{"$f":"IF(AND(J330=1,J$410=1),1,0)","v":0},{"$f":"IF(AND(K330=1,K$410=1),1,0)","v":0},{"$f":"IF(AND(L330=1,L$410=1),1,0)","v":0},{"$f":"IF(AND(M330=1,M$410=1),1,0)","v":0},{"$f":"IF(AND(N330=1,N$410=1),1,0)","v":0},{"$f":"IF(AND(O330=1,O$410=1),1,0)","v":0},{"$f":"IF(AND(P330=1,P$410=1),1,0)","v":0},{"$f":"IF(AND(Q330=1,Q$410=1),1,0)","v":0},{"$f":"IF(AND(R330=1,R$410=1),1,0)","v":0},{"$f":"IF(AND(S330=1,S$410=1),1,0)","v":0},{"$f":"IF(AND(T330=1,T$410=1),1,0)","v":0},{"$f":"IF(AND(U330=1,U$410=1),1,0)","v":0},{"$f":"IF(AND(V330=1,V$410=1),1,0)","v":0},{"$f":"IF(AND(W330=1,W$410=1),1,0)","v":0},{"$f":"IF($C$4=\"All\",1,IF(SUM(AU330:BH330)>0,1,0))","v":1},{"$f":"IF(AND(X330=1,X$410=1),1,0)","v":0},{"$f":"IF(AND(Y330=1,Y$410=1),1,0)","v":0},{"$f":"IF(AND(Z330=1,Z$410=1),1,0)","v":0},{"$f":"IF(AND(AA330=1,AA$410=1),1,0)","v":0},{"$f":"IF(AND(AB330=1,AB$410=1),1,0)","v":0},{"$f":"IF(AND(AC330=1,AC$410=1),1,0)","v":0},{"$f":"IF(AND(AD330=1,AD$410=1),1,0)","v":0},{"$f":"IF(AND(AE330=1,AE$410=1),1,0)","v":0},{"$f":"IF(AND(AF330=1,AF$410=1),1,0)","v":0},{"$f":"IF($C$5=\"All\",1,IF(SUM(BJ330:BR330)>0,1,0))","v":1},{"$f":"IF(AND(AG330=1,AG$410=1),1,0)","v":0},{"$f":"IF(AND(AH330=1,AH$410=1),1,0)","v":0},{"$f":"IF(AND(AI330=1,AI$410=1),1,0)","v":0},{"$f":"IF(AND(AJ330=1,AJ$410=1),1,0)","v":0},{"$f":"IF(AND(AK330=1,AK$410=1),1,0)","v":0},{"$f":"IF(AND(AL330=1,AL$410=1),1,0)","v":0},{"$f":"IF(AND(AM330=1,AM$410=1),1,0)","v":0},{"$f":"IF(AND(AN330=1,AN$410=1),1,0)","v":0},{"$f":"IF(AND(AO330=1,AO$410=1),1,0)","v":0},{"$f":"IF($C$6=\"All\",1,IF(SUM(BT330:CB330)>0,1,0))","v":1},{"$f":"IF(AND(AP330=1,AP$410=1),1,0)","v":0},{"$f":"IF(AND(AQ330=1,AQ$410=1),1,0)","v":0},{"$f":"IF(AND(AR330=1,AR$410=1),1,0)","v":0},{"$f":"IF(AND(AS330=1,AS$410=1),1,0)","v":0},{"$f":"IF(AND(AT330=1,AT$410=1),1,0)","v":0},{"$f":"IF($C$3=\"All\",1,IF(SUM(CD330:CH330)>0,1,0))","v":1},{"$f":"IF(AND(BI330=1,BS330=1,CC330=1,CI330=1),1,0)","v":1},322,{"$f":"IF(CJ330=1,CK330,\"\")","v":322},{"$f":"IFERROR(SMALL($CL$9:$CL$408,CK473),\"\")","v":""},{"$f":"IFERROR(INDEX($B$9:$I$408,$CM473,COLUMNS($CN$9:CN473)),\"\")","v":""},{"$f":"IFERROR(INDEX($B$9:$I$408,$CM473,COLUMNS($CN$9:CO473)),\"\")","v":""},{"$f":"IFERROR(INDEX($B$9:$I$408,$CM473,COLUMNS($CN$9:CP473)),\"\")","v":""},{"$f":"IFERROR(INDEX($B$9:$I$408,$CM473,COLUMNS($CN$9:CQ473)),\"\")","v":""},{"$f":"IFERROR(INDEX($B$9:$I$408,$CM473,COLUMNS($CN$9:CR473)),\"\")","v":""},{"$f":"IFERROR(INDEX($B$9:$I$408,$CM473,COLUMNS($CN$9:CS473)),\"\")","v":""},{"$f":"IFERROR(INDEX($B$9:$I$408,$CM473,COLUMNS($CN$9:CT473)),\"\")","v":""},{"$f":"IFERROR(INDEX($B$9:$I$408,$CM473,COLUMNS($CN$9:CU473)),\"\")","v":""}]
[null,{"$f":"IF(ISBLANK('TA Indicator Bank'!B327),\"\",'TA Indicator Bank'!B327)","v":""},{"$f":"IF(ISBLANK('TA Indicator Bank'!C327),\"\",'TA Indicator Bank'!C327)","v":""},{"$f":"IF(ISBLANK('TA Indicator Bank'!D327),\"\",'TA Indicator Bank'!D327)","v":""},{"$f":"IF(ISBLANK('TA Indicator Bank'!E327),\"\",'TA Indicator Bank'!E327)","v":""},{"$f":"IF(ISBLANK('TA Indicator Bank'!F327),\"\",'TA Indicator Bank'!F327)","v":""},{"$f":"IF(ISBLANK('TA Indicator Bank'!G327),\"\",'TA Indicator Bank'!G327)","v":""},{"$f":"IF(ISBLANK('TA Indicator Bank'!H327),\"\",'TA Indicator Bank'!H327)","v":""},{"$f":"IF(ISBLANK('TA Indicator Bank'!I327),\"\",'TA Indicator Bank'!I327)","v":""},{"$f":"IF(ISBLANK('TA Indicator Bank'!J327),\"\",'TA Indicator Bank'!J327)","v":""},{"$f":"IF(ISBLANK('TA Indicator Bank'!K327),\"\",'TA Indicator Bank'!K327)","v":""},{"$f":"IF(ISBLANK('TA Indicator Bank'!L327),\"\",'TA Indicator Bank'!L327)","v":""},{"$f":"IF(ISBLANK('TA Indicator Bank'!M327),\"\",'TA Indicator Bank'!M327)","v":""},{"$f":"IF(ISBLANK('TA Indicator Bank'!N327),\"\",'TA Indicator Bank'!N327)","v":""},{"$f":"IF(ISBLANK('TA Indicator Bank'!O327),\"\",'TA Indicator Bank'!O327)","v":""},{"$f":"IF(ISBLANK('TA Indicator Bank'!P327),\"\",'TA Indicator Bank'!P327)","v":""},{"$f":"IF(ISBLANK('TA Indicator Bank'!Q327),\"\",'TA Indicator Bank'!Q327)","v":""},{"$f":"IF(ISBLANK('TA Indicator Bank'!R327),\"\",'TA Indicator Bank'!R327)","v":""},{"$f":"IF(ISBLANK('TA Indicator Bank'!S327),\"\",'TA Indicator Bank'!S327)","v":""},{"$f":"IF(ISBLANK('TA Indicator Bank'!T327),\"\",'TA Indicator Bank'!T327)","v":""},{"$f":"IF(ISBLANK('TA Indicator Bank'!U327),\"\",'TA Indicator Bank'!U327)","v":""},{"$f":"IF(ISBLANK('TA Indicator Bank'!V327),\"\",'TA Indicator Bank'!V327)","v":""},{"$f":"IF(ISBLANK('TA Indicator Bank'!W327),\"\",'TA Indicator Bank'!W327)","v":""},{"$f":"IF(ISBLANK('TA Indicator Bank'!X327),\"\",'TA Indicator Bank'!X327)","v":""},{"$f":"IF(ISBLANK('TA Indicator Bank'!Y327),\"\",'TA Indicator Bank'!Y327)","v":""},{"$f":"IF(ISBLANK('TA Indicator Bank'!Z327),\"\",'TA Indicator Bank'!Z327)","v":""},{"$f":"IF(ISBLANK('TA Indicator Bank'!AA327),\"\",'TA Indicator Bank'!AA327)","v":""},{"$f":"IF(ISBLANK('TA Indicator Bank'!AB327),\"\",'TA Indicator Bank'!AB327)","v":""},{"$f":"IF(ISBLANK('TA Indicator Bank'!AC327),\"\",'TA Indicator Bank'!AC327)","v":""},{"$f":"IF(ISBLANK('TA Indicator Bank'!AD327),\"\",'TA Indicator Bank'!AD327)","v":""},{"$f":"IF(ISBLANK('TA Indicator Bank'!AE327),\"\",'TA Indicator Bank'!AE327)","v":""},{"$f":"IF(ISBLANK('TA Indicator Bank'!AF327),\"\",'TA Indicator Bank'!AF327)","v":""},{"$f":"IF(ISBLANK('TA Indicator Bank'!AG327),\"\",'TA Indicator Bank'!AG327)","v":""},{"$f":"IF(ISBLANK('TA Indicator Bank'!AH327),\"\",'TA Indicator Bank'!AH327)","v":""},{"$f":"IF(ISBLANK('TA Indicator Bank'!AI327),\"\",'TA Indicator Bank'!AI327)","v":""},{"$f":"IF(ISBLANK('TA Indicator Bank'!AJ327),\"\",'TA Indicator Bank'!AJ327)","v":""},{"$f":"IF(ISBLANK('TA Indicator Bank'!AK327),\"\",'TA Indicator Bank'!AK327)","v":""},{"$f":"IF(ISBLANK('TA Indicator Bank'!AL327),\"\",'TA Indicator Bank'!AL327)","v":""},{"$f":"IF(ISBLANK('TA Indicator Bank'!AM327),\"\",'TA Indicator Bank'!AM327)","v":""},{"$f":"IF(ISBLANK('TA Indicator Bank'!AN327),\"\",'TA Indicator Bank'!AN327)","v":""},{"$f":"IF(ISBLANK('TA Indicator Bank'!AO327),\"\",'TA Indicator Bank'!AO327)","v":""},{"$f":"IF(ISBLANK('TA Indicator Bank'!AP327),\"\",'TA Indicator Bank'!AP327)","v":""},{"$f":"IF(ISBLANK('TA Indicator Bank'!AQ327),\"\",'TA Indicator Bank'!AQ327)","v":""},{"$f":"IF(ISBLANK('TA Indicator Bank'!AR327),\"\",'TA Indicator Bank'!AR327)","v":""},{"$f":"IF(ISBLANK('TA Indicator Bank'!AS327),\"\",'TA Indicator Bank'!AS327)","v":""},{"$f":"IF(ISBLANK('TA Indicator Bank'!AT327),\"\",'TA Indicator Bank'!AT327)","v":""},0,0,0,0,0,0,0,0,0,0,0,0,0,0,1,0,0,0,0,0,0,0,0,0,1,0,0,0,0,0,0,0,0,0,1,0,0,0,0,0,1,1,323,323,"",{"$f":"IFERROR(INDEX($B$9:$I$408,$CM474,COLUMNS($CN$9:CN474)),\"\")","v":""},{"$f":"IFERROR(INDEX($B$9:$I$408,$CM474,COLUMNS($CN$9:CO474)),\"\")","v":""},{"$f":"IFERROR(INDEX($B$9:$I$408,$CM474,COLUMNS($CN$9:CP474)),\"\")","v":""},{"$f":"IFERROR(INDEX($B$9:$I$408,$CM474,COLUMNS($CN$9:CQ474)),\"\")","v":""},{"$f":"IFERROR(INDEX($B$9:$I$408,$CM474,COLUMNS($CN$9:CR474)),\"\")","v":""},{"$f":"IFERROR(INDEX($B$9:$I$408,$CM474,COLUMNS($CN$9:CS474)),\"\")","v":""},{"$f":"IFERROR(INDEX($B$9:$I$408,$CM474,COLUMNS($CN$9:CT474)),\"\")","v":""},{"$f":"IFERROR(INDEX($B$9:$I$408,$CM474,COLUMNS($CN$9:CU474)),\"\")","v":""}]
[null,{"$f":"IF(ISBLANK('TA Indicator Bank'!B328),\"\",'TA Indicator Bank'!B328)","v":""},{"$f":"IF(ISBLANK('TA Indicator Bank'!C328),\"\",'TA Indicator Bank'!C328)","v":""},{"$f":"IF(ISBLANK('TA Indicator Bank'!D328),\"\",'TA Indicator Bank'!D328)","v":""},{"$f":"IF(ISBLANK('TA Indicator Bank'!E328),\"\",'TA Indicator Bank'!E328)","v":""},{"$f":"IF(ISBLANK('TA Indicator Bank'!F328),\"\",'TA Indicator Bank'!F328)","v":""},{"$f":"IF(ISBLANK('TA Indicator Bank'!G328),\"\",'TA Indicator Bank'!G328)","v":""},{"$f":"IF(ISBLANK('TA Indicator Bank'!H328),\"\",'TA Indicator Bank'!H328)","v":""},{"$f":"IF(ISBLANK('TA Indicator Bank'!I328),\"\",'TA Indicator Bank'!I328)","v":""},{"$f":"IF(ISBLANK('TA Indicator Bank'!J328),\"\",'TA Indicator Bank'!J328)","v":""},{"$f":"IF(ISBLANK('TA Indicator Bank'!K328),\"\",'TA Indicator Bank'!K328)","v":""},{"$f":"IF(ISBLANK('TA Indicator Bank'!L328),\"\",'TA Indicator Bank'!L328)","v":""},{"$f":"IF(ISBLANK('TA Indicator Bank'!M328),\"\",'TA Indicator Bank'!M328)","v":""},{"$f":"IF(ISBLANK('TA Indicator Bank'!N328),\"\",'TA Indicator Bank'!N328)","v":""},{"$f":"IF(ISBLANK('TA Indicator Bank'!O328),\"\",'TA Indicator Bank'!O328)","v":""},{"$f":"IF(ISBLANK('TA Indicator Bank'!P328),\"\",'TA Indicator Bank'!P328)","v":""},{"$f":"IF(ISBLANK('TA Indicator Bank'!Q328),\"\",'TA Indicator Bank'!Q328)","v":""},{"$f":"IF(ISBLANK('TA Indicator Bank'!R328),\"\",'TA Indicator Bank'!R328)","v":""},{"$f":"IF(ISBLANK('TA Indicator Bank'!S328),\"\",'TA Indicator Bank'!S328)","v":""},{"$f":"IF(ISBLANK('TA Indicator Bank'!T328),\"\",'TA Indicator Bank'!T328)","v":""},{"$f":"IF(ISBLANK('TA Indicator Bank'!U328),\"\",'TA Indicator Bank'!U328)","v":""},{"$f":"IF(ISBLANK('TA Indicator Bank'!V328),\"\",'TA Indicator Bank'!V328)","v":""},{"$f":"IF(ISBLANK('TA Indicator Bank'!W328),\"\",'TA Indicator Bank'!W328)","v":""},{"$f":"IF(ISBLANK('TA Indicator Bank'!X328),\"\",'TA Indicator Bank'!X328)","v":""},{"$f":"IF(ISBLANK('TA Indicator Bank'!Y328),\"\",'TA Indicator Bank'!Y328)","v":""},{"$f":"IF(ISBLANK('TA Indicator Bank'!Z328),\"\",'TA Indicator Bank'!Z328)","v":""},{"$f":"IF(ISBLANK('TA Indicator Bank'!AA328),\"\",'TA Indicator Bank'!AA328)","v":""},{"$f":"IF(ISBLANK('TA Indicator Bank'!AB328),\"\",'TA Indicator Bank'!AB328)","v":""},{"$f":"IF(ISBLANK('TA Indicator Bank'!AC328),\"\",'TA Indicator Bank'!AC328)","v":""},{"$f":"IF(ISBLANK('TA Indicator Bank'!AD328),\"\",'TA Indicator Bank'!AD328)","v":""},{"$f":"IF(ISBLANK('TA Indicator Bank'!AE328),\"\",'TA Indicator Bank'!AE328)","v":""},{"$f":"IF(ISBLANK('TA Indicator Bank'!AF328),\"\",'TA Indicator Bank'!AF328)","v":""},{"$f":"IF(ISBLANK('TA Indicator Bank'!AG328),\"\",'TA Indicator Bank'!AG328)","v":""},{"$f":"IF(ISBLANK('TA Indicator Bank'!AH328),\"\",'TA Indicator Bank'!AH328)","v":""},{"$f":"IF(ISBLANK('TA Indicator Bank'!AI328),\"\",'TA Indicator Bank'!AI328)","v":""},{"$f":"IF(ISBLANK('TA Indicator Bank'!AJ328),\"\",'TA Indicator Bank'!AJ328)","v":""},{"$f":"IF(ISBLANK('TA Indicator Bank'!AK328),\"\",'TA Indicator Bank'!AK328)","v":""},{"$f":"IF(ISBLANK('TA Indicator Bank'!AL328),\"\",'TA Indicator Bank'!AL328)","v":""},{"$f":"IF(ISBLANK('TA Indicator Bank'!AM328),\"\",'TA Indicator Bank'!AM328)","v":""},{"$f":"IF(ISBLANK('TA Indicator Bank'!AN328),\"\",'TA Indicator Bank'!AN328)","v":""},{"$f":"IF(ISBLANK('TA Indicator Bank'!AO328),\"\",'TA Indicator Bank'!AO328)","v":""},{"$f":"IF(ISBLANK('TA Indicator Bank'!AP328),\"\",'TA Indicator Bank'!AP328)","v":""},{"$f":"IF(ISBLANK('TA Indicator Bank'!AQ328),\"\",'TA Indicator Bank'!AQ328)","v":""},{"$f":"IF(ISBLANK('TA Indicator Bank'!AR328),\"\",'TA Indicator Bank'!AR328)","v":""},{"$f":"IF(ISBLANK('TA Indicator Bank'!AS328),\"\",'TA Indicator Bank'!AS328)","v":""},{"$f":"IF(ISBLANK('TA Indicator Bank'!AT328),\"\",'TA Indicator Bank'!AT328)","v":""},0,0,0,0,0,0,0,0,0,0,0,0,0,0,1,0,0,0,0,0,0,0,0,0,1,0,0,0,0,0,0,0,0,0,1,0,0,0,0,0,1,1,324,324,"",{"$f":"IFERROR(INDEX($B$9:$I$408,$CM475,COLUMNS($CN$9:CN475)),\"\")","v":""},{"$f":"IFERROR(INDEX($B$9:$I$408,$CM475,COLUMNS($CN$9:CO475)),\"\")","v":""},{"$f":"IFERROR(INDEX($B$9:$I$408,$CM475,COLUMNS($CN$9:CP475)),\"\")","v":""},{"$f":"IFERROR(INDEX($B$9:$I$408,$CM475,COLUMNS($CN$9:CQ475)),\"\")","v":""},{"$f":"IFERROR(INDEX($B$9:$I$408,$CM475,COLUMNS($CN$9:CR475)),\"\")","v":""},{"$f":"IFERROR(INDEX($B$9:$I$408,$CM475,COLUMNS($CN$9:CS475)),\"\")","v":""},{"$f":"IFERROR(INDEX($B$9:$I$408,$CM475,COLUMNS($CN$9:CT475)),\"\")","v":""},{"$f":"IFERROR(INDEX($B$9:$I$408,$CM475,COLUMNS($CN$9:CU475)),\"\")","v":""}]
[null,{"$f":"IF(ISBLANK('TA Indicator Bank'!B329),\"\",'TA Indicator Bank'!B329)","v":""},{"$f":"IF(ISBLANK('TA Indicator Bank'!C329),\"\",'TA Indicator Bank'!C329)","v":""},{"$f":"IF(ISBLANK('TA Indicator Bank'!D329),\"\",'TA Indicator Bank'!D329)","v":""},{"$f":"IF(ISBLANK('TA Indicator Bank'!E329),\"\",'TA Indicator Bank'!E329)","v":""},{"$f":"IF(ISBLANK('TA Indicator Bank'!F329),\"\",'TA Indicator Bank'!F329)","v":""},{"$f":"IF(ISBLANK('TA Indicator Bank'!G329),\"\",'TA Indicator Bank'!G329)","v":""},{"$f":"IF(ISBLANK('TA Indicator Bank'!H329),\"\",'TA Indicator Bank'!H329)","v":""},{"$f":"IF(ISBLANK('TA Indicator Bank'!I329),\"\",'TA Indicator Bank'!I329)","v":""},{"$f":"IF(ISBLANK('TA Indicator Bank'!J329),\"\",'TA Indicator Bank'!J329)","v":""},{"$f":"IF(ISBLANK('TA Indicator Bank'!K329),\"\",'TA Indicator Bank'!K329)","v":""},{"$f":"IF(ISBLANK('TA Indicator Bank'!L329),\"\",'TA Indicator Bank'!L329)","v":""},{"$f":"IF(ISBLANK('TA Indicator Bank'!M329),\"\",'TA Indicator Bank'!M329)","v":""},{"$f":"IF(ISBLANK('TA Indicator Bank'!N329),\"\",'TA Indicator Bank'!N329)","v":""},{"$f":"IF(ISBLANK('TA Indicator Bank'!O329),\"\",'TA Indicator Bank'!O329)","v":""},{"$f":"IF(ISBLANK('TA Indicator Bank'!P329),\"\",'TA Indicator Bank'!P329)","v":""},{"$f":"IF(ISBLANK('TA Indicator Bank'!Q329),\"\",'TA Indicator Bank'!Q329)","v":""},{"$f":"IF(ISBLANK('TA Indicator Bank'!R329),\"\",'TA Indicator Bank'!R329)","v":""},{"$f":"IF(ISBLANK('TA Indicator Bank'!S329),\"\",'TA Indicator Bank'!S329)","v":""},{"$f":"IF(ISBLANK('TA Indicator Bank'!T329),\"\",'TA Indicator Bank'!T329)","v":""},{"$f":"IF(ISBLANK('TA Indicator Bank'!U329),\"\",'TA Indicator Bank'!U329)","v":""},{"$f":"IF(ISBLANK('TA Indicator Bank'!V329),\"\",'TA Indicator Bank'!V329)","v":""},{"$f":"IF(ISBLANK('TA Indicator Bank'!W329),\"\",'TA Indicator Bank'!W329)","v":""},{"$f":"IF(ISBLANK('TA Indicator Bank'!X329),\"\",'TA Indicator Bank'!X329)","v":""},{"$f":"IF(ISBLANK('TA Indicator Bank'!Y329),\"\",'TA Indicator Bank'!Y329)","v":""},{"$f":"IF(ISBLANK('TA Indicator Bank'!Z329),\"\",'TA Indicator Bank'!Z329)","v":""},{"$f":"IF(ISBLANK('TA Indicator Bank'!AA329),\"\",'TA Indicator Bank'!AA329)","v":""},{"$f":"IF(ISBLANK('TA Indicator Bank'!AB329),\"\",'TA Indicator Bank'!AB329)","v":""},{"$f":"IF(ISBLANK('TA Indicator Bank'!AC329),\"\",'TA Indicator Bank'!AC329)","v":""},{"$f":"IF(ISBLANK('TA Indicator Bank'!AD329),\"\",'TA Indicator Bank'!AD329)","v":""},{"$f":"IF(ISBLANK('TA Indicator Bank'!AE329),\"\",'TA Indicator Bank'!AE329)","v":""},{"$f":"IF(ISBLANK('TA Indicator Bank'!AF329),\"\",'TA Indicator Bank'!AF329)","v":""},{"$f":"IF(ISBLANK('TA Indicator Bank'!AG329),\"\",'TA Indicator Bank'!AG329)","v":""},{"$f":"IF(ISBLANK('TA Indicator Bank'!AH329),\"\",'TA Indicator Bank'!AH329)","v":""},{"$f":"IF(ISBLANK('TA Indicator Bank'!AI329),\"\",'TA Indicator Bank'!AI329)","v":""},{"$f":"IF(ISBLANK('TA Indicator Bank'!AJ329),\"\",'TA Indicator Bank'!AJ329)","v":""},{"$f":"IF(ISBLANK('TA Indicator Bank'!AK329),\"\",'TA Indicator Bank'!AK329)","v":""},{"$f":"IF(ISBLANK('TA Indicator Bank'!AL329),\"\",'TA Indicator Bank'!AL329)","v":""},{"$f":"IF(ISBLANK('TA Indicator Bank'!AM329),\"\",'TA Indicator Bank'!AM329)","v":""},{"$f":"IF(ISBLANK('TA Indicator Bank'!AN329),\"\",'TA Indicator Bank'!AN329)","v":""},{"$f":"IF(ISBLANK('TA Indicator Bank'!AO329),\"\",'TA Indicator Bank'!AO329)","v":""},{"$f":"IF(ISBLANK('TA Indicator Bank'!AP329),\"\",'TA Indicator Bank'!AP329)","v":""},{"$f":"IF(ISBLANK('TA Indicator Bank'!AQ329),\"\",'TA Indicator Bank'!AQ329)","v":""},{"$f":"IF(ISBLANK('TA Indicator Bank'!AR329),\"\",'TA Indicator Bank'!AR329)","v":""},{"$f":"IF(ISBLANK('TA Indicator Bank'!AS329),\"\",'TA Indicator Bank'!AS329)","v":""},{"$f":"IF(ISBLANK('TA Indicator Bank'!AT329),\"\",'TA Indicator Bank'!AT329)","v":""},0,0,0,0,0,0,0,0,0,0,0,0,0,0,1,0,0,0,0,0,0,0,0,0,1,0,0,0,0,0,0,0,0,0,1,0,0,0,0,0,1,1,325,325,"",{"$f":"IFERROR(INDEX($B$9:$I$408,$CM476,COLUMNS($CN$9:CN476)),\"\")","v":""},{"$f":"IFERROR(INDEX($B$9:$I$408,$CM476,COLUMNS($CN$9:CO476)),\"\")","v":""},{"$f":"IFERROR(INDEX($B$9:$I$408,$CM476,COLUMNS($CN$9:CP476)),\"\")","v":""},{"$f":"IFERROR(INDEX($B$9:$I$408,$CM476,COLUMNS($CN$9:CQ476)),\"\")","v":""},{"$f":"IFERROR(INDEX($B$9:$I$408,$CM476,COLUMNS($CN$9:CR476)),\"\")","v":""},{"$f":"IFERROR(INDEX($B$9:$I$408,$CM476,COLUMNS($CN$9:CS476)),\"\")","v":""},{"$f":"IFERROR(INDEX($B$9:$I$408,$CM476,COLUMNS($CN$9:CT476)),\"\")","v":""},{"$f":"IFERROR(INDEX($B$9:$I$408,$CM476,COLUMNS($CN$9:CU476)),\"\")","v":""}]
[null,{"$f":"IF(ISBLANK('TA Indicator Bank'!B330),\"\",'TA Indicator Bank'!B330)","v":""},{"$f":"IF(ISBLANK('TA Indicator Bank'!C330),\"\",'TA Indicator Bank'!C330)","v":""},{"$f":"IF(ISBLANK('TA Indicator Bank'!D330),\"\",'TA Indicator Bank'!D330)","v":""},{"$f":"IF(ISBLANK('TA Indicator Bank'!E330),\"\",'TA Indicator Bank'!E330)","v":""},{"$f":"IF(ISBLANK('TA Indicator Bank'!F330),\"\",'TA Indicator Bank'!F330)","v":""},{"$f":"IF(ISBLANK('TA Indicator Bank'!G330),\"\",'TA Indicator Bank'!G330)","v":""},{"$f":"IF(ISBLANK('TA Indicator Bank'!H330),\"\",'TA Indicator Bank'!H330)","v":""},{"$f":"IF(ISBLANK('TA Indicator Bank'!I330),\"\",'TA Indicator Bank'!I330)","v":""},{"$f":"IF(ISBLANK('TA Indicator Bank'!J330),\"\",'TA Indicator Bank'!J330)","v":""},{"$f":"IF(ISBLANK('TA Indicator Bank'!K330),\"\",'TA Indicator Bank'!K330)","v":""},{"$f":"IF(ISBLANK('TA Indicator Bank'!L330),\"\",'TA Indicator Bank'!L330)","v":""},{"$f":"IF(ISBLANK('TA Indicator Bank'!M330),\"\",'TA Indicator Bank'!M330)","v":""},{"$f":"IF(ISBLANK('TA Indicator Bank'!N330),\"\",'TA Indicator Bank'!N330)","v":""},{"$f":"IF(ISBLANK('TA Indicator Bank'!O330),\"\",'TA Indicator Bank'!O330)","v":""},{"$f":"IF(ISBLANK('TA Indicator Bank'!P330),\"\",'TA Indicator Bank'!P330)","v":""},{"$f":"IF(ISBLANK('TA Indicator Bank'!Q330),\"\",'TA Indicator Bank'!Q330)","v":""},{"$f":"IF(ISBLANK('TA Indicator Bank'!R330),\"\",'TA Indicator Bank'!R330)","v":""},{"$f":"IF(ISBLANK('TA Indicator Bank'!S330),\"\",'TA Indicator Bank'!S330)","v":""},{"$f":"IF(ISBLANK('TA Indicator Bank'!T330),\"\",'TA Indicator Bank'!T330)","v":""},{"$f":"IF(ISBLANK('TA Indicator Bank'!U330),\"\",'TA Indicator Bank'!U330)","v":""},{"$f":"IF(ISBLANK('TA Indicator Bank'!V330),\"\",'TA Indicator Bank'!V330)","v":""},{"$f":"IF(ISBLANK('TA Indicator Bank'!W330),\"\",'TA Indicator Bank'!W330)","v":""},{"$f":"IF(ISBLANK('TA Indicator Bank'!X330),\"\",'TA Indicator Bank'!X330)","v":""},{"$f":"IF(ISBLANK('TA Indicator Bank'!Y330),\"\",'TA Indicator Bank'!Y330)","v":""},{"$f":"IF(ISBLANK('TA Indicator Bank'!Z330),\"\",'TA Indicator Bank'!Z330)","v":""},{"$f":"IF(ISBLANK('TA Indicator Bank'!AA330),\"\",'TA Indicator Bank'!AA330)","v":""},{"$f":"IF(ISBLANK('TA Indicator Bank'!AB330),\"\",'TA Indicator Bank'!AB330)","v":""},{"$f":"IF(ISBLANK('TA Indicator Bank'!AC330),\"\",'TA Indicator Bank'!AC330)","v":""},{"$f":"IF(ISBLANK('TA Indicator Bank'!AD330),\"\",'TA Indicator Bank'!AD330)","v":""},{"$f":"IF(ISBLANK('TA Indicator Bank'!AE330),\"\",'TA Indicator Bank'!AE330)","v":""},{"$f":"IF(ISBLANK('TA Indicator Bank'!AF330),\"\",'TA Indicator Bank'!AF330)","v":""},{"$f":"IF(ISBLANK('TA Indicator Bank'!AG330),\"\",'TA Indicator Bank'!AG330)","v":""},{"$f":"IF(ISBLANK('TA Indicator Bank'!AH330),\"\",'TA Indicator Bank'!AH330)","v":""},{"$f":"IF(ISBLANK('TA Indicator Bank'!AI330),\"\",'TA Indicator Bank'!AI330)","v":""},{"$f":"IF(ISBLANK('TA Indicator Bank'!AJ330),\"\",'TA Indicator Bank'!AJ330)","v":""},{"$f":"IF(ISBLANK('TA Indicator Bank'!AK330),\"\",'TA Indicator Bank'!AK330)","v":""},{"$f":"IF(ISBLANK('TA Indicator Bank'!AL330),\"\",'TA Indicator Bank'!AL330)","v":""},{"$f":"IF(ISBLANK('TA Indicator Bank'!AM330),\"\",'TA Indicator Bank'!AM330)","v":""},{"$f":"IF(ISBLANK('TA Indicator Bank'!AN330),\"\",'TA Indicator Bank'!AN330)","v":""},{"$f":"IF(ISBLANK('TA Indicator Bank'!AO330),\"\",'TA Indicator Bank'!AO330)","v":""},{"$f":"IF(ISBLANK('TA Indicator Bank'!AP330),\"\",'TA Indicator Bank'!AP330)","v":""},{"$f":"IF(ISBLANK('TA Indicator Bank'!AQ330),\"\",'TA Indicator Bank'!AQ330)","v":""},{"$f":"IF(ISBLANK('TA Indicator Bank'!AR330),\"\",'TA Indicator Bank'!AR330)","v":""},{"$f":"IF(ISBLANK('TA Indicator Bank'!AS330),\"\",'TA Indicator Bank'!AS330)","v":""},{"$f":"IF(ISBLANK('TA Indicator Bank'!AT330),\"\",'TA Indicator Bank'!AT330)","v":""},0,0,0,0,0,0,0,0,0,0,0,0,0,0,1,0,0,0,0,0,0,0,0,0,1,0,0,0,0,0,0,0,0,0,1,0,0,0,0,0,1,1,326,326,"",{"$f":"IFERROR(INDEX($B$9:$I$408,$CM477,COLUMNS($CN$9:CN477)),\"\")","v":""},{"$f":"IFERROR(INDEX($B$9:$I$408,$CM477,COLUMNS($CN$9:CO477)),\"\")","v":""},{"$f":"IFERROR(INDEX($B$9:$I$408,$CM477,COLUMNS($CN$9:CP477)),\"\")","v":""},{"$f":"IFERROR(INDEX($B$9:$I$408,$CM477,COLUMNS($CN$9:CQ477)),\"\")","v":""},{"$f":"IFERROR(INDEX($B$9:$I$408,$CM477,COLUMNS($CN$9:CR477)),\"\")","v":""},{"$f":"IFERROR(INDEX($B$9:$I$408,$CM477,COLUMNS($CN$9:CS477)),\"\")","v":""},{"$f":"IFERROR(INDEX($B$9:$I$408,$CM477,COLUMNS($CN$9:CT477)),\"\")","v":""},{"$f":"IFERROR(INDEX($B$9:$I$408,$CM477,COLUMNS($CN$9:CU477)),\"\")","v":""}]
[null,{"$f":"IF(ISBLANK('TA Indicator Bank'!B331),\"\",'TA Indicator Bank'!B331)","v":""},{"$f":"IF(ISBLANK('TA Indicator Bank'!C331),\"\",'TA Indicator Bank'!C331)","v":""},{"$f":"IF(ISBLANK('TA Indicator Bank'!D331),\"\",'TA Indicator Bank'!D331)","v":""},{"$f":"IF(ISBLANK('TA Indicator Bank'!E331),\"\",'TA Indicator Bank'!E331)","v":""},{"$f":"IF(ISBLANK('TA Indicator Bank'!F331),\"\",'TA Indicator Bank'!F331)","v":""},{"$f":"IF(ISBLANK('TA Indicator Bank'!G331),\"\",'TA Indicator Bank'!G331)","v":""},{"$f":"IF(ISBLANK('TA Indicator Bank'!H331),\"\",'TA Indicator Bank'!H331)","v":""},{"$f":"IF(ISBLANK('TA Indicator Bank'!I331),\"\",'TA Indicator Bank'!I331)","v":""},{"$f":"IF(ISBLANK('TA Indicator Bank'!J331),\"\",'TA Indicator Bank'!J331)","v":""},{"$f":"IF(ISBLANK('TA Indicator Bank'!K331),\"\",'TA Indicator Bank'!K331)","v":""},{"$f":"IF(ISBLANK('TA Indicator Bank'!L331),\"\",'TA Indicator Bank'!L331)","v":""},{"$f":"IF(ISBLANK('TA Indicator Bank'!M331),\"\",'TA Indicator Bank'!M331)","v":""},{"$f":"IF(ISBLANK('TA Indicator Bank'!N331),\"\",'TA Indicator Bank'!N331)","v":""},{"$f":"IF(ISBLANK('TA Indicator Bank'!O331),\"\",'TA Indicator Bank'!O331)","v":""},{"$f":"IF(ISBLANK('TA Indicator Bank'!P331),\"\",'TA Indicator Bank'!P331)","v":""},{"$f":"IF(ISBLANK('TA Indicator Bank'!Q331),\"\",'TA Indicator Bank'!Q331)","v":""},{"$f":"IF(ISBLANK('TA Indicator Bank'!R331),\"\",'TA Indicator Bank'!R331)","v":""},{"$f":"IF(ISBLANK('TA Indicator Bank'!S331),\"\",'TA Indicator Bank'!S331)","v":""},{"$f":"IF(ISBLANK('TA Indicator Bank'!T331),\"\",'TA Indicator Bank'!T331)","v":""},{"$f":"IF(ISBLANK('TA Indicator Bank'!U331),\"\",'TA Indicator Bank'!U331)","v":""},{"$f":"IF(ISBLANK('TA Indicator Bank'!V331),\"\",'TA Indicator Bank'!V331)","v":""},{"$f":"IF(ISBLANK('TA Indicator Bank'!W331),\"\",'TA Indicator Bank'!W331)","v":""},{"$f":"IF(ISBLANK('TA Indicator Bank'!X331),\"\",'TA Indicator Bank'!X331)","v":""},{"$f":"IF(ISBLANK('TA Indicator Bank'!Y331),\"\",'TA Indicator Bank'!Y331)","v":""},{"$f":"IF(ISBLANK('TA Indicator Bank'!Z331),\"\",'TA Indicator Bank'!Z331)","v":""},{"$f":"IF(ISBLANK('TA Indicator Bank'!AA331),\"\",'TA Indicator Bank'!AA331)","v":""},{"$f":"IF(ISBLANK('TA Indicator Bank'!AB331),\"\",'TA Indicator Bank'!AB331)","v":""},{"$f":"IF(ISBLANK('TA Indicator Bank'!AC331),\"\",'TA Indicator Bank'!AC331)","v":""},{"$f":"IF(ISBLANK('TA Indicator Bank'!AD331),\"\",'TA Indicator Bank'!AD331)","v":""},{"$f":"IF(ISBLANK('TA Indicator Bank'!AE331),\"\",'TA Indicator Bank'!AE331)","v":""},{"$f":"IF(ISBLANK('TA Indicator Bank'!AF331),\"\",'TA Indicator Bank'!AF331)","v":""},{"$f":"IF(ISBLANK('TA Indicator Bank'!AG331),\"\",'TA Indicator Bank'!AG331)","v":""},{"$f":"IF(ISBLANK('TA Indicator Bank'!AH331),\"\",'TA Indicator Bank'!AH331)","v":""},{"$f":"IF(ISBLANK('TA Indicator Bank'!AI331),\"\",'TA Indicator Bank'!AI331)","v":""},{"$f":"IF(ISBLANK('TA Indicator Bank'!AJ331),\"\",'TA Indicator Bank'!AJ331)","v":""},{"$f":"IF(ISBLANK('TA Indicator Bank'!AK331),\"\",'TA Indicator Bank'!AK331)","v":""},{"$f":"IF(ISBLANK('TA Indicator Bank'!AL331),\"\",'TA Indicator Bank'!AL331)","v":""},{"$f":"IF(ISBLANK('TA Indicator Bank'!AM331),\"\",'TA Indicator Bank'!AM331)","v":""},{"$f":"IF(ISBLANK('TA Indicator Bank'!AN331),\"\",'TA Indicator Bank'!AN331)","v":""},{"$f":"IF(ISBLANK('TA Indicator Bank'!AO331),\"\",'TA Indicator Bank'!AO331)","v":""},{"$f":"IF(ISBLANK('TA Indicator Bank'!AP331),\"\",'TA Indicator Bank'!AP331)","v":""},{"$f":"IF(ISBLANK('TA Indicator Bank'!AQ331),\"\",'TA Indicator Bank'!AQ331)","v":""},{"$f":"IF(ISBLANK('TA Indicator Bank'!AR331),\"\",'TA Indicator Bank'!AR331)","v":""},{"$f":"IF(ISBLANK('TA Indicator Bank'!AS331),\"\",'TA Indicator Bank'!AS331)","v":""},{"$f":"IF(ISBLANK('TA Indicator Bank'!AT331),\"\",'TA Indicator Bank'!AT331)","v":""},0,0,0,0,0,0,0,0,0,0,0,0,0,0,1,0,0,0,0,0,0,0,0,0,1,0,0,0,0,0,0,0,0,0,1,0,0,0,0,0,1,1,327,327,"",{"$f":"IFERROR(INDEX($B$9:$I$408,$CM478,COLUMNS($CN$9:CN478)),\"\")","v":""},{"$f":"IFERROR(INDEX($B$9:$I$408,$CM478,COLUMNS($CN$9:CO478)),\"\")","v":""},{"$f":"IFERROR(INDEX($B$9:$I$408,$CM478,COLUMNS($CN$9:CP478)),\"\")","v":""},{"$f":"IFERROR(INDEX($B$9:$I$408,$CM478,COLUMNS($CN$9:CQ478)),\"\")","v":""},{"$f":"IFERROR(INDEX($B$9:$I$408,$CM478,COLUMNS($CN$9:CR478)),\"\")","v":""},{"$f":"IFERROR(INDEX($B$9:$I$408,$CM478,COLUMNS($CN$9:CS478)),\"\")","v":""},{"$f":"IFERROR(INDEX($B$9:$I$408,$CM478,COLUMNS($CN$9:CT478)),\"\")","v":""},{"$f":"IFERROR(INDEX($B$9:$I$408,$CM478,COLUMNS($CN$9:CU478)),\"\")","v":""}]
[null,{"$f":"IF(ISBLANK('TA Indicator Bank'!B332),\"\",'TA Indicator Bank'!B332)","v":""},{"$f":"IF(ISBLANK('TA Indicator Bank'!C332),\"\",'TA Indicator Bank'!C332)","v":""},{"$f":"IF(ISBLANK('TA Indicator Bank'!D332),\"\",'TA Indicator Bank'!D332)","v":""},{"$f":"IF(ISBLANK('TA Indicator Bank'!E332),\"\",'TA Indicator Bank'!E332)","v":""},{"$f":"IF(ISBLANK('TA Indicator Bank'!F332),\"\",'TA Indicator Bank'!F332)","v":""},{"$f":"IF(ISBLANK('TA Indicator Bank'!G332),\"\",'TA Indicator Bank'!G332)","v":""},{"$f":"IF(ISBLANK('TA Indicator Bank'!H332),\"\",'TA Indicator Bank'!H332)","v":""},{"$f":"IF(ISBLANK('TA Indicator Bank'!I332),\"\",'TA Indicator Bank'!I332)","v":""},{"$f":"IF(ISBLANK('TA Indicator Bank'!J332),\"\",'TA Indicator Bank'!J332)","v":""},{"$f":"IF(ISBLANK('TA Indicator Bank'!K332),\"\",'TA Indicator Bank'!K332)","v":""},{"$f":"IF(ISBLANK('TA Indicator Bank'!L332),\"\",'TA Indicator Bank'!L332)","v":""},{"$f":"IF(ISBLANK('TA Indicator Bank'!M332),\"\",'TA Indicator Bank'!M332)","v":""},{"$f":"IF(ISBLANK('TA Indicator Bank'!N332),\"\",'TA Indicator Bank'!N332)","v":""},{"$f":"IF(ISBLANK('TA Indicator Bank'!O332),\"\",'TA Indicator Bank'!O332)","v":""},{"$f":"IF(ISBLANK('TA Indicator Bank'!P332),\"\",'TA Indicator Bank'!P332)","v":""},{"$f":"IF(ISBLANK('TA Indicator Bank'!Q332),\"\",'TA Indicator Bank'!Q332)","v":""},{"$f":"IF(ISBLANK('TA Indicator Bank'!R332),\"\",'TA Indicator Bank'!R332)","v":""},{"$f":"IF(ISBLANK('TA Indicator Bank'!S332),\"\",'TA Indicator Bank'!S332)","v":""},{"$f":"IF(ISBLANK('TA Indicator Bank'!T332),\"\",'TA Indicator Bank'!T332)","v":""},{"$f":"IF(ISBLANK('TA Indicator Bank'!U332),\"\",'TA Indicator Bank'!U332)","v":""},{"$f":"IF(ISBLANK('TA Indicator Bank'!V332),\"\",'TA Indicator Bank'!V332)","v":""},{"$f":"IF(ISBLANK('TA Indicator Bank'!W332),\"\",'TA Indicator Bank'!W332)","v":""},{"$f":"IF(ISBLANK('TA Indicator Bank'!X332),\"\",'TA Indicator Bank'!X332)","v":""},{"$f":"IF(ISBLANK('TA Indicator Bank'!Y332),\"\",'TA Indicator Bank'!Y332)","v":""},{"$f":"IF(ISBLANK('TA Indicator Bank'!Z332),\"\",'TA Indicator Bank'!Z332)","v":""},{"$f":"IF(ISBLANK('TA Indicator Bank'!AA332),\"\",'TA Indicator Bank'!AA332)","v":""},{"$f":"IF(ISBLANK('TA Indicator Bank'!AB332),\"\",'TA Indicator Bank'!AB332)","v":""},{"$f":"IF(ISBLANK('TA Indicator Bank'!AC332),\"\",'TA Indicator Bank'!AC332)","v":""},{"$f":"IF(ISBLANK('TA Indicator Bank'!AD332),\"\",'TA Indicator Bank'!AD332)","v":""},{"$f":"IF(ISBLANK('TA Indicator Bank'!AE332),\"\",'TA Indicator Bank'!AE332)","v":""},{"$f":"IF(ISBLANK('TA Indicator Bank'!AF332),\"\",'TA Indicator Bank'!AF332)","v":""},{"$f":"IF(ISBLANK('TA Indicator Bank'!AG332),\"\",'TA Indicator Bank'!AG332)","v":""},{"$f":"IF(ISBLANK('TA Indicator Bank'!AH332),\"\",'TA Indicator Bank'!AH332)","v":""},{"$f":"IF(ISBLANK('TA Indicator Bank'!AI332),\"\",'TA Indicator Bank'!AI332)","v":""},{"$f":"IF(ISBLANK('TA Indicator Bank'!AJ332),\"\",'TA Indicator Bank'!AJ332)","v":""},{"$f":"IF(ISBLANK('TA Indicator Bank'!AK332),\"\",'TA Indicator Bank'!AK332)","v":""},{"$f":"IF(ISBLANK('TA Indicator Bank'!AL332),\"\",'TA Indicator Bank'!AL332)","v":""},{"$f":"IF(ISBLANK('TA Indicator Bank'!AM332),\"\",'TA Indicator Bank'!AM332)","v":""},{"$f":"IF(ISBLANK('TA Indicator Bank'!AN332),\"\",'TA Indicator Bank'!AN332)","v":""},{"$f":"IF(ISBLANK('TA Indicator Bank'!AO332),\"\",'TA Indicator Bank'!AO332)","v":""},{"$f":"IF(ISBLANK('TA Indicator Bank'!AP332),\"\",'TA Indicator Bank'!AP332)","v":""},{"$f":"IF(ISBLANK('TA Indicator Bank'!AQ332),\"\",'TA Indicator Bank'!AQ332)","v":""},{"$f":"IF(ISBLANK('TA Indicator Bank'!AR332),\"\",'TA Indicator Bank'!AR332)","v":""},{"$f":"IF(ISBLANK('TA Indicator Bank'!AS332),\"\",'TA Indicator Bank'!AS332)","v":""},{"$f":"IF(ISBLANK('TA Indicator Bank'!AT332),\"\",'TA Indicator Bank'!AT332)","v":""},0,0,0,0,0,0,0,0,0,0,0,0,0,0,1,0,0,0,0,0,0,0,0,0,1,0,0,0,0,0,0,0,0,0,1,0,0,0,0,0,1,1,328,328,"",{"$f":"IFERROR(INDEX($B$9:$I$408,$CM479,COLUMNS($CN$9:CN479)),\"\")","v":""},{"$f":"IFERROR(INDEX($B$9:$I$408,$CM479,COLUMNS($CN$9:CO479)),\"\")","v":""},{"$f":"IFERROR(INDEX($B$9:$I$408,$CM479,COLUMNS($CN$9:CP479)),\"\")","v":""},{"$f":"IFERROR(INDEX($B$9:$I$408,$CM479,COLUMNS($CN$9:CQ479)),\"\")","v":""},{"$f":"IFERROR(INDEX($B$9:$I$408,$CM479,COLUMNS($CN$9:CR479)),\"\")","v":""},{"$f":"IFERROR(INDEX($B$9:$I$408,$CM479,COLUMNS($CN$9:CS479)),\"\")","v":""},{"$f":"IFERROR(INDEX($B$9:$I$408,$CM479,COLUMNS($CN$9:CT479)),\"\")","v":""},{"$f":"IFERROR(INDEX($B$9:$I$408,$CM479,COLUMNS($CN$9:CU479)),\"\")","v":""}]
[null,{"$f":"IF(ISBLANK('TA Indicator Bank'!B333),\"\",'TA Indicator Bank'!B333)","v":""},{"$f":"IF(ISBLANK('TA Indicator Bank'!C333),\"\",'TA Indicator Bank'!C333)","v":""},{"$f":"IF(ISBLANK('TA Indicator Bank'!D333),\"\",'TA Indicator Bank'!D333)","v":""},{"$f":"IF(ISBLANK('TA Indicator Bank'!E333),\"\",'TA Indicator Bank'!E333)","v":""},{"$f":"IF(ISBLANK('TA Indicator Bank'!F333),\"\",'TA Indicator Bank'!F333)","v":""},{"$f":"IF(ISBLANK('TA Indicator Bank'!G333),\"\",'TA Indicator Bank'!G333)","v":""},{"$f":"IF(ISBLANK('TA Indicator Bank'!H333),\"\",'TA Indicator Bank'!H333)","v":""},{"$f":"IF(ISBLANK('TA Indicator Bank'!I333),\"\",'TA Indicator Bank'!I333)","v":""},{"$f":"IF(ISBLANK('TA Indicator Bank'!J333),\"\",'TA Indicator Bank'!J333)","v":""},{"$f":"IF(ISBLANK('TA Indicator Bank'!K333),\"\",'TA Indicator Bank'!K333)","v":""},{"$f":"IF(ISBLANK('TA Indicator Bank'!L333),\"\",'TA Indicator Bank'!L333)","v":""},{"$f":"IF(ISBLANK('TA Indicator Bank'!M333),\"\",'TA Indicator Bank'!M333)","v":""},{"$f":"IF(ISBLANK('TA Indicator Bank'!N333),\"\",'TA Indicator Bank'!N333)","v":""},{"$f":"IF(ISBLANK('TA Indicator Bank'!O333),\"\",'TA Indicator Bank'!O333)","v":""},{"$f":"IF(ISBLANK('TA Indicator Bank'!P333),\"\",'TA Indicator Bank'!P333)","v":""},{"$f":"IF(ISBLANK('TA Indicator Bank'!Q333),\"\",'TA Indicator Bank'!Q333)","v":""},{"$f":"IF(ISBLANK('TA Indicator Bank'!R333),\"\",'TA Indicator Bank'!R333)","v":""},{"$f":"IF(ISBLANK('TA Indicator Bank'!S333),\"\",'TA Indicator Bank'!S333)","v":""},{"$f":"IF(ISBLANK('TA Indicator Bank'!T333),\"\",'TA Indicator Bank'!T333)","v":""},{"$f":"IF(ISBLANK('TA Indicator Bank'!U333),\"\",'TA Indicator Bank'!U333)","v":""},{"$f":"IF(ISBLANK('TA Indicator Bank'!V333),\"\",'TA Indicator Bank'!V333)","v":""},{"$f":"IF(ISBLANK('TA Indicator Bank'!W333),\"\",'TA Indicator Bank'!W333)","v":""},{"$f":"IF(ISBLANK('TA Indicator Bank'!X333),\"\",'TA Indicator Bank'!X333)","v":""},{"$f":"IF(ISBLANK('TA Indicator Bank'!Y333),\"\",'TA Indicator Bank'!Y333)","v":""},{"$f":"IF(ISBLANK('TA Indicator Bank'!Z333),\"\",'TA Indicator Bank'!Z333)","v":""},{"$f":"IF(ISBLANK('TA Indicator Bank'!AA333),\"\",'TA Indicator Bank'!AA333)","v":""},{"$f":"IF(ISBLANK('TA Indicator Bank'!AB333),\"\",'TA Indicator Bank'!AB333)","v":""},{"$f":"IF(ISBLANK('TA Indicator Bank'!AC333),\"\",'TA Indicator Bank'!AC333)","v":""},{"$f":"IF(ISBLANK('TA Indicator Bank'!AD333),\"\",'TA Indicator Bank'!AD333)","v":""},{"$f":"IF(ISBLANK('TA Indicator Bank'!AE333),\"\",'TA Indicator Bank'!AE333)","v":""},{"$f":"IF(ISBLANK('TA Indicator Bank'!AF333),\"\",'TA Indicator Bank'!AF333)","v":""},{"$f":"IF(ISBLANK('TA Indicator Bank'!AG333),\"\",'TA Indicator Bank'!AG333)","v":""},{"$f":"IF(ISBLANK('TA Indicator Bank'!AH333),\"\",'TA Indicator Bank'!AH333)","v":""},{"$f":"IF(ISBLANK('TA Indicator Bank'!AI333),\"\",'TA Indicator Bank'!AI333)","v":""},{"$f":"IF(ISBLANK('TA Indicator Bank'!AJ333),\"\",'TA Indicator Bank'!AJ333)","v":""},{"$f":"IF(ISBLANK('TA Indicator Bank'!AK333),\"\",'TA Indicator Bank'!AK333)","v":""},{"$f":"IF(ISBLANK('TA Indicator Bank'!AL333),\"\",'TA Indicator Bank'!AL333)","v":""},{"$f":"IF(ISBLANK('TA Indicator Bank'!AM333),\"\",'TA Indicator Bank'!AM333)","v":""},{"$f":"IF(ISBLANK('TA Indicator Bank'!AN333),\"\",'TA Indicator Bank'!AN333)","v":""},{"$f":"IF(ISBLANK('TA Indicator Bank'!AO333),\"\",'TA Indicator Bank'!AO333)","v":""},{"$f":"IF(ISBLANK('TA Indicator Bank'!AP333),\"\",'TA Indicator Bank'!AP333)","v":""},{"$f":"IF(ISBLANK('TA Indicator Bank'!AQ333),\"\",'TA Indicator Bank'!AQ333)","v":""},{"$f":"IF(ISBLANK('TA Indicator Bank'!AR333),\"\",'TA Indicator Bank'!AR333)","v":""},{"$f":"IF(ISBLANK('TA Indicator Bank'!AS333),\"\",'TA Indicator Bank'!AS333)","v":""},{"$f":"IF(ISBLANK('TA Indicator Bank'!AT333),\"\",'TA Indicator Bank'!AT333)","v":""},0,0,0,0,0,0,0,0,0,0,0,0,0,0,1,0,0,0,0,0,0,0,0,0,1,0,0,0,0,0,0,0,0,0,1,0,0,0,0,0,1,1,329,329,"",{"$f":"IFERROR(INDEX($B$9:$I$408,$CM480,COLUMNS($CN$9:CN480)),\"\")","v":""},{"$f":"IFERROR(INDEX($B$9:$I$408,$CM480,COLUMNS($CN$9:CO480)),\"\")","v":""},{"$f":"IFERROR(INDEX($B$9:$I$408,$CM480,COLUMNS($CN$9:CP480)),\"\")","v":""},{"$f":"IFERROR(INDEX($B$9:$I$408,$CM480,COLUMNS($CN$9:CQ480)),\"\")","v":""},{"$f":"IFERROR(INDEX($B$9:$I$408,$CM480,COLUMNS($CN$9:CR480)),\"\")","v":""},{"$f":"IFERROR(INDEX($B$9:$I$408,$CM480,COLUMNS($CN$9:CS480)),\"\")","v":""},{"$f":"IFERROR(INDEX($B$9:$I$408,$CM480,COLUMNS($CN$9:CT480)),\"\")","v":""},{"$f":"IFERROR(INDEX($B$9:$I$408,$CM480,COLUMNS($CN$9:CU480)),\"\")","v":""}]
[null,{"$f":"IF(ISBLANK('TA Indicator Bank'!B334),\"\",'TA Indicator Bank'!B334)","v":""},{"$f":"IF(ISBLANK('TA Indicator Bank'!C334),\"\",'TA Indicator Bank'!C334)","v":""},{"$f":"IF(ISBLANK('TA Indicator Bank'!D334),\"\",'TA Indicator Bank'!D334)","v":""},{"$f":"IF(ISBLANK('TA Indicator Bank'!E334),\"\",'TA Indicator Bank'!E334)","v":""},{"$f":"IF(ISBLANK('TA Indicator Bank'!F334),\"\",'TA Indicator Bank'!F334)","v":""},{"$f":"IF(ISBLANK('TA Indicator Bank'!G334),\"\",'TA Indicator Bank'!G334)","v":""},{"$f":"IF(ISBLANK('TA Indicator Bank'!H334),\"\",'TA Indicator Bank'!H334)","v":""},{"$f":"IF(ISBLANK('TA Indicator Bank'!I334),\"\",'TA Indicator Bank'!I334)","v":""},{"$f":"IF(ISBLANK('TA Indicator Bank'!J334),\"\",'TA Indicator Bank'!J334)","v":""},{"$f":"IF(ISBLANK('TA Indicator Bank'!K334),\"\",'TA Indicator Bank'!K334)","v":""},{"$f":"IF(ISBLANK('TA Indicator Bank'!L334),\"\",'TA Indicator Bank'!L334)","v":""},{"$f":"IF(ISBLANK('TA Indicator Bank'!M334),\"\",'TA Indicator Bank'!M334)","v":""},{"$f":"IF(ISBLANK('TA Indicator Bank'!N334),\"\",'TA Indicator Bank'!N334)","v":""},{"$f":"IF(ISBLANK('TA Indicator Bank'!O334),\"\",'TA Indicator Bank'!O334)","v":""},{"$f":"IF(ISBLANK('TA Indicator Bank'!P334),\"\",'TA Indicator Bank'!P334)","v":""},{"$f":"IF(ISBLANK('TA Indicator Bank'!Q334),\"\",'TA Indicator Bank'!Q334)","v":""},{"$f":"IF(ISBLANK('TA Indicator Bank'!R334),\"\",'TA Indicator Bank'!R334)","v":""},{"$f":"IF(ISBLANK('TA Indicator Bank'!S334),\"\",'TA Indicator Bank'!S334)","v":""},{"$f":"IF(ISBLANK('TA Indicator Bank'!T334),\"\",'TA Indicator Bank'!T334)","v":""},{"$f":"IF(ISBLANK('TA Indicator Bank'!U334),\"\",'TA Indicator Bank'!U334)","v":""},{"$f":"IF(ISBLANK('TA Indicator Bank'!V334),\"\",'TA Indicator Bank'!V334)","v":""},{"$f":"IF(ISBLANK('TA Indicator Bank'!W334),\"\",'TA Indicator Bank'!W334)","v":""},{"$f":"IF(ISBLANK('TA Indicator Bank'!X334),\"\",'TA Indicator Bank'!X334)","v":""},{"$f":"IF(ISBLANK('TA Indicator Bank'!Y334),\"\",'TA Indicator Bank'!Y334)","v":""},{"$f":"IF(ISBLANK('TA Indicator Bank'!Z334),\"\",'TA Indicator Bank'!Z334)","v":""},{"$f":"IF(ISBLANK('TA Indicator Bank'!AA334),\"\",'TA Indicator Bank'!AA334)","v":""},{"$f":"IF(ISBLANK('TA Indicator Bank'!AB334),\"\",'TA Indicator Bank'!AB334)","v":""},{"$f":"IF(ISBLANK('TA Indicator Bank'!AC334),\"\",'TA Indicator Bank'!AC334)","v":""},{"$f":"IF(ISBLANK('TA Indicator Bank'!AD334),\"\",'TA Indicator Bank'!AD334)","v":""},{"$f":"IF(ISBLANK('TA Indicator Bank'!AE334),\"\",'TA Indicator Bank'!AE334)","v":""},{"$f":"IF(ISBLANK('TA Indicator Bank'!AF334),\"\",'TA Indicator Bank'!AF334)","v":""},{"$f":"IF(ISBLANK('TA Indicator Bank'!AG334),\"\",'TA Indicator Bank'!AG334)","v":""},{"$f":"IF(ISBLANK('TA Indicator Bank'!AH334),\"\",'TA Indicator Bank'!AH334)","v":""},{"$f":"IF(ISBLANK('TA Indicator Bank'!AI334),\"\",'TA Indicator Bank'!AI334)","v":""},{"$f":"IF(ISBLANK('TA Indicator Bank'!AJ334),\"\",'TA Indicator Bank'!AJ334)","v":""},{"$f":"IF(ISBLANK('TA Indicator Bank'!AK334),\"\",'TA Indicator Bank'!AK334)","v":""},{"$f":"IF(ISBLANK('TA Indicator Bank'!AL334),\"\",'TA Indicator Bank'!AL334)","v":""},{"$f":"IF(ISBLANK('TA Indicator Bank'!AM334),\"\",'TA Indicator Bank'!AM334)","v":""},{"$f":"IF(ISBLANK('TA Indicator Bank'!AN334),\"\",'TA Indicator Bank'!AN334)","v":""},{"$f":"IF(ISBLANK('TA Indicator Bank'!AO334),\"\",'TA Indicator Bank'!AO334)","v":""},{"$f":"IF(ISBLANK('TA Indicator Bank'!AP334),\"\",'TA Indicator Bank'!AP334)","v":""},{"$f":"IF(ISBLANK('TA Indicator Bank'!AQ334),\"\",'TA Indicator Bank'!AQ334)","v":""},{"$f":"IF(ISBLANK('TA Indicator Bank'!AR334),\"\",'TA Indicator Bank'!AR334)","v":""},{"$f":"IF(ISBLANK('TA Indicator Bank'!AS334),\"\",'TA Indicator Bank'!AS334)","v":""},{"$f":"IF(ISBLANK('TA Indicator Bank'!AT334),\"\",'TA Indicator Bank'!AT334)","v":""},0,0,0,0,0,0,0,0,0,0,0,0,0,0,1,0,0,0,0,0,0,0,0,0,1,0,0,0,0,0,0,0,0,0,1,0,0,0,0,0,1,1,330,330,"",{"$f":"IFERROR(INDEX($B$9:$I$408,$CM481,COLUMNS($CN$9:CN481)),\"\")","v":""},{"$f":"IFERROR(INDEX($B$9:$I$408,$CM481,COLUMNS($CN$9:CO481)),\"\")","v":""},{"$f":"IFERROR(INDEX($B$9:$I$408,$CM481,COLUMNS($CN$9:CP481)),\"\")","v":""},{"$f":"IFERROR(INDEX($B$9:$I$408,$CM481,COLUMNS($CN$9:CQ481)),\"\")","v":""},{"$f":"IFERROR(INDEX($B$9:$I$408,$CM481,COLUMNS($CN$9:CR481)),\"\")","v":""},{"$f":"IFERROR(INDEX($B$9:$I$408,$CM481,COLUMNS($CN$9:CS481)),\"\")","v":""},{"$f":"IFERROR(INDEX($B$9:$I$408,$CM481,COLUMNS($CN$9:CT481)),\"\")","v":""},{"$f":"IFERROR(INDEX($B$9:$I$408,$CM481,COLUMNS($CN$9:CU481)),\"\")","v":""}]
[null,{"$f":"IF(ISBLANK('TA Indicator Bank'!B335),\"\",'TA Indicator Bank'!B335)","v":""},{"$f":"IF(ISBLANK('TA Indicator Bank'!C335),\"\",'TA Indicator Bank'!C335)","v":""},{"$f":"IF(ISBLANK('TA Indicator Bank'!D335),\"\",'TA Indicator Bank'!D335)","v":""},{"$f":"IF(ISBLANK('TA Indicator Bank'!E335),\"\",'TA Indicator Bank'!E335)","v":""},{"$f":"IF(ISBLANK('TA Indicator Bank'!F335),\"\",'TA Indicator Bank'!F335)","v":""},{"$f":"IF(ISBLANK('TA Indicator Bank'!G335),\"\",'TA Indicator Bank'!G335)","v":""},{"$f":"IF(ISBLANK('TA Indicator Bank'!H335),\"\",'TA Indicator Bank'!H335)","v":""},{"$f":"IF(ISBLANK('TA Indicator Bank'!I335),\"\",'TA Indicator Bank'!I335)","v":""},{"$f":"IF(ISBLANK('TA Indicator Bank'!J335),\"\",'TA Indicator Bank'!J335)","v":""},{"$f":"IF(ISBLANK('TA Indicator Bank'!K335),\"\",'TA Indicator Bank'!K335)","v":""},{"$f":"IF(ISBLANK('TA Indicator Bank'!L335),\"\",'TA Indicator Bank'!L335)","v":""},{"$f":"IF(ISBLANK('TA Indicator Bank'!M335),\"\",'TA Indicator Bank'!M335)","v":""},{"$f":"IF(ISBLANK('TA Indicator Bank'!N335),\"\",'TA Indicator Bank'!N335)","v":""},{"$f":"IF(ISBLANK('TA Indicator Bank'!O335),\"\",'TA Indicator Bank'!O335)","v":""},{"$f":"IF(ISBLANK('TA Indicator Bank'!P335),\"\",'TA Indicator Bank'!P335)","v":""},{"$f":"IF(ISBLANK('TA Indicator Bank'!Q335),\"\",'TA Indicator Bank'!Q335)","v":""},{"$f":"IF(ISBLANK('TA Indicator Bank'!R335),\"\",'TA Indicator Bank'!R335)","v":""},{"$f":"IF(ISBLANK('TA Indicator Bank'!S335),\"\",'TA Indicator Bank'!S335)","v":""},{"$f":"IF(ISBLANK('TA Indicator Bank'!T335),\"\",'TA Indicator Bank'!T335)","v":""},{"$f":"IF(ISBLANK('TA Indicator Bank'!U335),\"\",'TA Indicator Bank'!U335)","v":""},{"$f":"IF(ISBLANK('TA Indicator Bank'!V335),\"\",'TA Indicator Bank'!V335)","v":""},{"$f":"IF(ISBLANK('TA Indicator Bank'!W335),\"\",'TA Indicator Bank'!W335)","v":""},{"$f":"IF(ISBLANK('TA Indicator Bank'!X335),\"\",'TA Indicator Bank'!X335)","v":""},{"$f":"IF(ISBLANK('TA Indicator Bank'!Y335),\"\",'TA Indicator Bank'!Y335)","v":""},{"$f":"IF(ISBLANK('TA Indicator Bank'!Z335),\"\",'TA Indicator Bank'!Z335)","v":""},{"$f":"IF(ISBLANK('TA Indicator Bank'!AA335),\"\",'TA Indicator Bank'!AA335)","v":""},{"$f":"IF(ISBLANK('TA Indicator Bank'!AB335),\"\",'TA Indicator Bank'!AB335)","v":""},{"$f":"IF(ISBLANK('TA Indicator Bank'!AC335),\"\",'TA Indicator Bank'!AC335)","v":""},{"$f":"IF(ISBLANK('TA Indicator Bank'!AD335),\"\",'TA Indicator Bank'!AD335)","v":""},{"$f":"IF(ISBLANK('TA Indicator Bank'!AE335),\"\",'TA Indicator Bank'!AE335)","v":""},{"$f":"IF(ISBLANK('TA Indicator Bank'!AF335),\"\",'TA Indicator Bank'!AF335)","v":""},{"$f":"IF(ISBLANK('TA Indicator Bank'!AG335),\"\",'TA Indicator Bank'!AG335)","v":""},{"$f":"IF(ISBLANK('TA Indicator Bank'!AH335),\"\",'TA Indicator Bank'!AH335)","v":""},{"$f":"IF(ISBLANK('TA Indicator Bank'!AI335),\"\",'TA Indicator Bank'!AI335)","v":""},{"$f":"IF(ISBLANK('TA Indicator Bank'!AJ335),\"\",'TA Indicator Bank'!AJ335)","v":""},{"$f":"IF(ISBLANK('TA Indicator Bank'!AK335),\"\",'TA Indicator Bank'!AK335)","v":""},{"$f":"IF(ISBLANK('TA Indicator Bank'!AL335),\"\",'TA Indicator Bank'!AL335)","v":""},{"$f":"IF(ISBLANK('TA Indicator Bank'!AM335),\"\",'TA Indicator Bank'!AM335)","v":""},{"$f":"IF(ISBLANK('TA Indicator Bank'!AN335),\"\",'TA Indicator Bank'!AN335)","v":""},{"$f":"IF(ISBLANK('TA Indicator Bank'!AO335),\"\",'TA Indicator Bank'!AO335)","v":""},{"$f":"IF(ISBLANK('TA Indicator Bank'!AP335),\"\",'TA Indicator Bank'!AP335)","v":""},{"$f":"IF(ISBLANK('TA Indicator Bank'!AQ335),\"\",'TA Indicator Bank'!AQ335)","v":""},{"$f":"IF(ISBLANK('TA Indicator Bank'!AR335),\"\",'TA Indicator Bank'!AR335)","v":""},{"$f":"IF(ISBLANK('TA Indicator Bank'!AS335),\"\",'TA Indicator Bank'!AS335)","v":""},{"$f":"IF(ISBLANK('TA Indicator Bank'!AT335),\"\",'TA Indicator Bank'!AT335)","v":""},0,0,0,0,0,0,0,0,0,0,0,0,0,0,1,0,0,0,0,0,0,0,0,0,1,0,0,0,0,0,0,0,0,0,1,0,0,0,0,0,1,1,331,331,"",{"$f":"IFERROR(INDEX($B$9:$I$408,$CM482,COLUMNS($CN$9:CN482)),\"\")","v":""},{"$f":"IFERROR(INDEX($B$9:$I$408,$CM482,COLUMNS($CN$9:CO482)),\"\")","v":""},{"$f":"IFERROR(INDEX($B$9:$I$408,$CM482,COLUMNS($CN$9:CP482)),\"\")","v":""},{"$f":"IFERROR(INDEX($B$9:$I$408,$CM482,COLUMNS($CN$9:CQ482)),\"\")","v":""},{"$f":"IFERROR(INDEX($B$9:$I$408,$CM482,COLUMNS($CN$9:CR482)),\"\")","v":""},{"$f":"IFERROR(INDEX($B$9:$I$408,$CM482,COLUMNS($CN$9:CS482)),\"\")","v":""},{"$f":"IFERROR(INDEX($B$9:$I$408,$CM482,COLUMNS($CN$9:CT482)),\"\")","v":""},{"$f":"IFERROR(INDEX($B$9:$I$408,$CM482,COLUMNS($CN$9:CU482)),\"\")","v":""}]
[null,{"$f":"IF(ISBLANK('TA Indicator Bank'!B336),\"\",'TA Indicator Bank'!B336)","v":""},{"$f":"IF(ISBLANK('TA Indicator Bank'!C336),\"\",'TA Indicator Bank'!C336)","v":""},{"$f":"IF(ISBLANK('TA Indicator Bank'!D336),\"\",'TA Indicator Bank'!D336)","v":""},{"$f":"IF(ISBLANK('TA Indicator Bank'!E336),\"\",'TA Indicator Bank'!E336)","v":""},{"$f":"IF(ISBLANK('TA Indicator Bank'!F336),\"\",'TA Indicator Bank'!F336)","v":""},{"$f":"IF(ISBLANK('TA Indicator Bank'!G336),\"\",'TA Indicator Bank'!G336)","v":""},{"$f":"IF(ISBLANK('TA Indicator Bank'!H336),\"\",'TA Indicator Bank'!H336)","v":""},{"$f":"IF(ISBLANK('TA Indicator Bank'!I336),\"\",'TA Indicator Bank'!I336)","v":""},{"$f":"IF(ISBLANK('TA Indicator Bank'!J336),\"\",'TA Indicator Bank'!J336)","v":""},{"$f":"IF(ISBLANK('TA Indicator Bank'!K336),\"\",'TA Indicator Bank'!K336)","v":""},{"$f":"IF(ISBLANK('TA Indicator Bank'!L336),\"\",'TA Indicator Bank'!L336)","v":""},{"$f":"IF(ISBLANK('TA Indicator Bank'!M336),\"\",'TA Indicator Bank'!M336)","v":""},{"$f":"IF(ISBLANK('TA Indicator Bank'!N336),\"\",'TA Indicator Bank'!N336)","v":""},{"$f":"IF(ISBLANK('TA Indicator Bank'!O336),\"\",'TA Indicator Bank'!O336)","v":""},{"$f":"IF(ISBLANK('TA Indicator Bank'!P336),\"\",'TA Indicator Bank'!P336)","v":""},{"$f":"IF(ISBLANK('TA Indicator Bank'!Q336),\"\",'TA Indicator Bank'!Q336)","v":""},{"$f":"IF(ISBLANK('TA Indicator Bank'!R336),\"\",'TA Indicator Bank'!R336)","v":""},{"$f":"IF(ISBLANK('TA Indicator Bank'!S336),\"\",'TA Indicator Bank'!S336)","v":""},{"$f":"IF(ISBLANK('TA Indicator Bank'!T336),\"\",'TA Indicator Bank'!T336)","v":""},{"$f":"IF(ISBLANK('TA Indicator Bank'!U336),\"\",'TA Indicator Bank'!U336)","v":""},{"$f":"IF(ISBLANK('TA Indicator Bank'!V336),\"\",'TA Indicator Bank'!V336)","v":""},{"$f":"IF(ISBLANK('TA Indicator Bank'!W336),\"\",'TA Indicator Bank'!W336)","v":""},{"$f":"IF(ISBLANK('TA Indicator Bank'!X336),\"\",'TA Indicator Bank'!X336)","v":""},{"$f":"IF(ISBLANK('TA Indicator Bank'!Y336),\"\",'TA Indicator Bank'!Y336)","v":""},{"$f":"IF(ISBLANK('TA Indicator Bank'!Z336),\"\",'TA Indicator Bank'!Z336)","v":""},{"$f":"IF(ISBLANK('TA Indicator Bank'!AA336),\"\",'TA Indicator Bank'!AA336)","v":""},{"$f":"IF(ISBLANK('TA Indicator Bank'!AB336),\"\",'TA Indicator Bank'!AB336)","v":""},{"$f":"IF(ISBLANK('TA Indicator Bank'!AC336),\"\",'TA Indicator Bank'!AC336)","v":""},{"$f":"IF(ISBLANK('TA Indicator Bank'!AD336),\"\",'TA Indicator Bank'!AD336)","v":""},{"$f":"IF(ISBLANK('TA Indicator Bank'!AE336),\"\",'TA Indicator Bank'!AE336)","v":""},{"$f":"IF(ISBLANK('TA Indicator Bank'!AF336),\"\",'TA Indicator Bank'!AF336)","v":""},{"$f":"IF(ISBLANK('TA Indicator Bank'!AG336),\"\",'TA Indicator Bank'!AG336)","v":""},{"$f":"IF(ISBLANK('TA Indicator Bank'!AH336),\"\",'TA Indicator Bank'!AH336)","v":""},{"$f":"IF(ISBLANK('TA Indicator Bank'!AI336),\"\",'TA Indicator Bank'!AI336)","v":""},{"$f":"IF(ISBLANK('TA Indicator Bank'!AJ336),\"\",'TA Indicator Bank'!AJ336)","v":""},{"$f":"IF(ISBLANK('TA Indicator Bank'!AK336),\"\",'TA Indicator Bank'!AK336)","v":""},{"$f":"IF(ISBLANK('TA Indicator Bank'!AL336),\"\",'TA Indicator Bank'!AL336)","v":""},{"$f":"IF(ISBLANK('TA Indicator Bank'!AM336),\"\",'TA Indicator Bank'!AM336)","v":""},{"$f":"IF(ISBLANK('TA Indicator Bank'!AN336),\"\",'TA Indicator Bank'!AN336)","v":""},{"$f":"IF(ISBLANK('TA Indicator Bank'!AO336),\"\",'TA Indicator Bank'!AO336)","v":""},{"$f":"IF(ISBLANK('TA Indicator Bank'!AP336),\"\",'TA Indicator Bank'!AP336)","v":""},{"$f":"IF(ISBLANK('TA Indicator Bank'!AQ336),\"\",'TA Indicator Bank'!AQ336)","v":""},{"$f":"IF(ISBLANK('TA Indicator Bank'!AR336),\"\",'TA Indicator Bank'!AR336)","v":""},{"$f":"IF(ISBLANK('TA Indicator Bank'!AS336),\"\",'TA Indicator Bank'!AS336)","v":""},{"$f":"IF(ISBLANK('TA Indicator Bank'!AT336),\"\",'TA Indicator Bank'!AT336)","v":""},0,0,0,0,0,0,0,0,0,0,0,0,0,0,1,0,0,0,0,0,0,0,0,0,1,0,0,0,0,0,0,0,0,0,1,0,0,0,0,0,1,1,332,332,"",{"$f":"IFERROR(INDEX($B$9:$I$408,$CM483,COLUMNS($CN$9:CN483)),\"\")","v":""},{"$f":"IFERROR(INDEX($B$9:$I$408,$CM483,COLUMNS($CN$9:CO483)),\"\")","v":""},{"$f":"IFERROR(INDEX($B$9:$I$408,$CM483,COLUMNS($CN$9:CP483)),\"\")","v":""},{"$f":"IFERROR(INDEX($B$9:$I$408,$CM483,COLUMNS($CN$9:CQ483)),\"\")","v":""},{"$f":"IFERROR(INDEX($B$9:$I$408,$CM483,COLUMNS($CN$9:CR483)),\"\")","v":""},{"$f":"IFERROR(INDEX($B$9:$I$408,$CM483,COLUMNS($CN$9:CS483)),\"\")","v":""},{"$f":"IFERROR(INDEX($B$9:$I$408,$CM483,COLUMNS($CN$9:CT483)),\"\")","v":""},{"$f":"IFERROR(INDEX($B$9:$I$408,$CM483,COLUMNS($CN$9:CU483)),\"\")","v":""}]
[null,{"$f":"IF(ISBLANK('TA Indicator Bank'!B337),\"\",'TA Indicator Bank'!B337)","v":""},{"$f":"IF(ISBLANK('TA Indicator Bank'!C337),\"\",'TA Indicator Bank'!C337)","v":""},{"$f":"IF(ISBLANK('TA Indicator Bank'!D337),\"\",'TA Indicator Bank'!D337)","v":""},{"$f":"IF(ISBLANK('TA Indicator Bank'!E337),\"\",'TA Indicator Bank'!E337)","v":""},{"$f":"IF(ISBLANK('TA Indicator Bank'!F337),\"\",'TA Indicator Bank'!F337)","v":""},{"$f":"IF(ISBLANK('TA Indicator Bank'!G337),\"\",'TA Indicator Bank'!G337)","v":""},{"$f":"IF(ISBLANK('TA Indicator Bank'!H337),\"\",'TA Indicator Bank'!H337)","v":""},{"$f":"IF(ISBLANK('TA Indicator Bank'!I337),\"\",'TA Indicator Bank'!I337)","v":""},{"$f":"IF(ISBLANK('TA Indicator Bank'!J337),\"\",'TA Indicator Bank'!J337)","v":""},{"$f":"IF(ISBLANK('TA Indicator Bank'!K337),\"\",'TA Indicator Bank'!K337)","v":""},{"$f":"IF(ISBLANK('TA Indicator Bank'!L337),\"\",'TA Indicator Bank'!L337)","v":""},{"$f":"IF(ISBLANK('TA Indicator Bank'!M337),\"\",'TA Indicator Bank'!M337)","v":""},{"$f":"IF(ISBLANK('TA Indicator Bank'!N337),\"\",'TA Indicator Bank'!N337)","v":""},{"$f":"IF(ISBLANK('TA Indicator Bank'!O337),\"\",'TA Indicator Bank'!O337)","v":""},{"$f":"IF(ISBLANK('TA Indicator Bank'!P337),\"\",'TA Indicator Bank'!P337)","v":""},{"$f":"IF(ISBLANK('TA Indicator Bank'!Q337),\"\",'TA Indicator Bank'!Q337)","v":""},{"$f":"IF(ISBLANK('TA Indicator Bank'!R337),\"\",'TA Indicator Bank'!R337)","v":""},{"$f":"IF(ISBLANK('TA Indicator Bank'!S337),\"\",'TA Indicator Bank'!S337)","v":""},{"$f":"IF(ISBLANK('TA Indicator Bank'!T337),\"\",'TA Indicator Bank'!T337)","v":""},{"$f":"IF(ISBLANK('TA Indicator Bank'!U337),\"\",'TA Indicator Bank'!U337)","v":""},{"$f":"IF(ISBLANK('TA Indicator Bank'!V337),\"\",'TA Indicator Bank'!V337)","v":""},{"$f":"IF(ISBLANK('TA Indicator Bank'!W337),\"\",'TA Indicator Bank'!W337)","v":""},{"$f":"IF(ISBLANK('TA Indicator Bank'!X337),\"\",'TA Indicator Bank'!X337)","v":""},{"$f":"IF(ISBLANK('TA Indicator Bank'!Y337),\"\",'TA Indicator Bank'!Y337)","v":""},{"$f":"IF(ISBLANK('TA Indicator Bank'!Z337),\"\",'TA Indicator Bank'!Z337)","v":""},{"$f":"IF(ISBLANK('TA Indicator Bank'!AA337),\"\",'TA Indicator Bank'!AA337)","v":""},{"$f":"IF(ISBLANK('TA Indicator Bank'!AB337),\"\",'TA Indicator Bank'!AB337)","v":""},{"$f":"IF(ISBLANK('TA Indicator Bank'!AC337),\"\",'TA Indicator Bank'!AC337)","v":""},{"$f":"IF(ISBLANK('TA Indicator Bank'!AD337),\"\",'TA Indicator Bank'!AD337)","v":""},{"$f":"IF(ISBLANK('TA Indicator Bank'!AE337),\"\",'TA Indicator Bank'!AE337)","v":""},{"$f":"IF(ISBLANK('TA Indicator Bank'!AF337),\"\",'TA Indicator Bank'!AF337)","v":""},{"$f":"IF(ISBLANK('TA Indicator Bank'!AG337),\"\",'TA Indicator Bank'!AG337)","v":""},{"$f":"IF(ISBLANK('TA Indicator Bank'!AH337),\"\",'TA Indicator Bank'!AH337)","v":""},{"$f":"IF(ISBLANK('TA Indicator Bank'!AI337),\"\",'TA Indicator Bank'!AI337)","v":""},{"$f":"IF(ISBLANK('TA Indicator Bank'!AJ337),\"\",'TA Indicator Bank'!AJ337)","v":""},{"$f":"IF(ISBLANK('TA Indicator Bank'!AK337),\"\",'TA Indicator Bank'!AK337)","v":""},{"$f":"IF(ISBLANK('TA Indicator Bank'!AL337),\"\",'TA Indicator Bank'!AL337)","v":""},{"$f":"IF(ISBLANK('TA Indicator Bank'!AM337),\"\",'TA Indicator Bank'!AM337)","v":""},{"$f":"IF(ISBLANK('TA Indicator Bank'!AN337),\"\",'TA Indicator Bank'!AN337)","v":""},{"$f":"IF(ISBLANK('TA Indicator Bank'!AO337),\"\",'TA Indicator Bank'!AO337)","v":""},{"$f":"IF(ISBLANK('TA Indicator Bank'!AP337),\"\",'TA Indicator Bank'!AP337)","v":""},{"$f":"IF(ISBLANK('TA Indicator Bank'!AQ337),\"\",'TA Indicator Bank'!AQ337)","v":""},{"$f":"IF(ISBLANK('TA Indicator Bank'!AR337),\"\",'TA Indicator Bank'!AR337)","v":""},{"$f":"IF(ISBLANK('TA Indicator Bank'!AS337),\"\",'TA Indicator Bank'!AS337)","v":""},{"$f":"IF(ISBLANK('TA Indicator Bank'!AT337),\"\",'TA Indicator Bank'!AT337)","v":""},0,0,0,0,0,0,0,0,0,0,0,0,0,0,1,0,0,0,0,0,0,0,0,0,1,0,0,0,0,0,0,0,0,0,1,0,0,0,0,0,1,1,333,333,"",{"$f":"IFERROR(INDEX($B$9:$I$408,$CM484,COLUMNS($CN$9:CN484)),\"\")","v":""},{"$f":"IFERROR(INDEX($B$9:$I$408,$CM484,COLUMNS($CN$9:CO484)),\"\")","v":""},{"$f":"IFERROR(INDEX($B$9:$I$408,$CM484,COLUMNS($CN$9:CP484)),\"\")","v":""},{"$f":"IFERROR(INDEX($B$9:$I$408,$CM484,COLUMNS($CN$9:CQ484)),\"\")","v":""},{"$f":"IFERROR(INDEX($B$9:$I$408,$CM484,COLUMNS($CN$9:CR484)),\"\")","v":""},{"$f":"IFERROR(INDEX($B$9:$I$408,$CM484,COLUMNS($CN$9:CS484)),\"\")","v":""},{"$f":"IFERROR(INDEX($B$9:$I$408,$CM484,COLUMNS($CN$9:CT484)),\"\")","v":""},{"$f":"IFERROR(INDEX($B$9:$I$408,$CM484,COLUMNS($CN$9:CU484)),\"\")","v":""}]
[null,{"$f":"IF(ISBLANK('TA Indicator Bank'!B338),\"\",'TA Indicator Bank'!B338)","v":""},{"$f":"IF(ISBLANK('TA Indicator Bank'!C338),\"\",'TA Indicator Bank'!C338)","v":""},{"$f":"IF(ISBLANK('TA Indicator Bank'!D338),\"\",'TA Indicator Bank'!D338)","v":""},{"$f":"IF(ISBLANK('TA Indicator Bank'!E338),\"\",'TA Indicator Bank'!E338)","v":""},{"$f":"IF(ISBLANK('TA Indicator Bank'!F338),\"\",'TA Indicator Bank'!F338)","v":""},{"$f":"IF(ISBLANK('TA Indicator Bank'!G338),\"\",'TA Indicator Bank'!G338)","v":""},{"$f":"IF(ISBLANK('TA Indicator Bank'!H338),\"\",'TA Indicator Bank'!H338)","v":""},{"$f":"IF(ISBLANK('TA Indicator Bank'!I338),\"\",'TA Indicator Bank'!I338)","v":""},{"$f":"IF(ISBLANK('TA Indicator Bank'!J338),\"\",'TA Indicator Bank'!J338)","v":""},{"$f":"IF(ISBLANK('TA Indicator Bank'!K338),\"\",'TA Indicator Bank'!K338)","v":""},{"$f":"IF(ISBLANK('TA Indicator Bank'!L338),\"\",'TA Indicator Bank'!L338)","v":""},{"$f":"IF(ISBLANK('TA Indicator Bank'!M338),\"\",'TA Indicator Bank'!M338)","v":""},{"$f":"IF(ISBLANK('TA Indicator Bank'!N338),\"\",'TA Indicator Bank'!N338)","v":""},{"$f":"IF(ISBLANK('TA Indicator Bank'!O338),\"\",'TA Indicator Bank'!O338)","v":""},{"$f":"IF(ISBLANK('TA Indicator Bank'!P338),\"\",'TA Indicator Bank'!P338)","v":""},{"$f":"IF(ISBLANK('TA Indicator Bank'!Q338),\"\",'TA Indicator Bank'!Q338)","v":""},{"$f":"IF(ISBLANK('TA Indicator Bank'!R338),\"\",'TA Indicator Bank'!R338)","v":""},{"$f":"IF(ISBLANK('TA Indicator Bank'!S338),\"\",'TA Indicator Bank'!S338)","v":""},{"$f":"IF(ISBLANK('TA Indicator Bank'!T338),\"\",'TA Indicator Bank'!T338)","v":""},{"$f":"IF(ISBLANK('TA Indicator Bank'!U338),\"\",'TA Indicator Bank'!U338)","v":""},{"$f":"IF(ISBLANK('TA Indicator Bank'!V338),\"\",'TA Indicator Bank'!V338)","v":""},{"$f":"IF(ISBLANK('TA Indicator Bank'!W338),\"\",'TA Indicator Bank'!W338)","v":""},{"$f":"IF(ISBLANK('TA Indicator Bank'!X338),\"\",'TA Indicator Bank'!X338)","v":""},{"$f":"IF(ISBLANK('TA Indicator Bank'!Y338),\"\",'TA Indicator Bank'!Y338)","v":""},{"$f":"IF(ISBLANK('TA Indicator Bank'!Z338),\"\",'TA Indicator Bank'!Z338)","v":""},{"$f":"IF(ISBLANK('TA Indicator Bank'!AA338),\"\",'TA Indicator Bank'!AA338)","v":""},{"$f":"IF(ISBLANK('TA Indicator Bank'!AB338),\"\",'TA Indicator Bank'!AB338)","v":""},{"$f":"IF(ISBLANK('TA Indicator Bank'!AC338),\"\",'TA Indicator Bank'!AC338)","v":""},{"$f":"IF(ISBLANK('TA Indicator Bank'!AD338),\"\",'TA Indicator Bank'!AD338)","v":""},{"$f":"IF(ISBLANK('TA Indicator Bank'!AE338),\"\",'TA Indicator Bank'!AE338)","v":""},{"$f":"IF(ISBLANK('TA Indicator Bank'!AF338),\"\",'TA Indicator Bank'!AF338)","v":""},{"$f":"IF(ISBLANK('TA Indicator Bank'!AG338),\"\",'TA Indicator Bank'!AG338)","v":""},{"$f":"IF(ISBLANK('TA Indicator Bank'!AH338),\"\",'TA Indicator Bank'!AH338)","v":""},{"$f":"IF(ISBLANK('TA Indicator Bank'!AI338),\"\",'TA Indicator Bank'!AI338)","v":""},{"$f":"IF(ISBLANK('TA Indicator Bank'!AJ338),\"\",'TA Indicator Bank'!AJ338)","v":""},{"$f":"IF(ISBLANK('TA Indicator Bank'!AK338),\"\",'TA Indicator Bank'!AK338)","v":""},{"$f":"IF(ISBLANK('TA Indicator Bank'!AL338),\"\",'TA Indicator Bank'!AL338)","v":""},{"$f":"IF(ISBLANK('TA Indicator Bank'!AM338),\"\",'TA Indicator Bank'!AM338)","v":""},{"$f":"IF(ISBLANK('TA Indicator Bank'!AN338),\"\",'TA Indicator Bank'!AN338)","v":""},{"$f":"IF(ISBLANK('TA Indicator Bank'!AO338),\"\",'TA Indicator Bank'!AO338)","v":""},{"$f":"IF(ISBLANK('TA Indicator Bank'!AP338),\"\",'TA Indicator Bank'!AP338)","v":""},{"$f":"IF(ISBLANK('TA Indicator Bank'!AQ338),\"\",'TA Indicator Bank'!AQ338)","v":""},{"$f":"IF(ISBLANK('TA Indicator Bank'!AR338),\"\",'TA Indicator Bank'!AR338)","v":""},{"$f":"IF(ISBLANK('TA Indicator Bank'!AS338),\"\",'TA Indicator Bank'!AS338)","v":""},{"$f":"IF(ISBLANK('TA Indicator Bank'!AT338),\"\",'TA Indicator Bank'!AT338)","v":""},0,0,0,0,0,0,0,0,0,0,0,0,0,0,1,0,0,0,0,0,0,0,0,0,1,0,0,0,0,0,0,0,0,0,1,0,0,0,0,0,1,1,334,334,"",{"$f":"IFERROR(INDEX($B$9:$I$408,$CM485,COLUMNS($CN$9:CN485)),\"\")","v":""},{"$f":"IFERROR(INDEX($B$9:$I$408,$CM485,COLUMNS($CN$9:CO485)),\"\")","v":""},{"$f":"IFERROR(INDEX($B$9:$I$408,$CM485,COLUMNS($CN$9:CP485)),\"\")","v":""},{"$f":"IFERROR(INDEX($B$9:$I$408,$CM485,COLUMNS($CN$9:CQ485)),\"\")","v":""},{"$f":"IFERROR(INDEX($B$9:$I$408,$CM485,COLUMNS($CN$9:CR485)),\"\")","v":""},{"$f":"IFERROR(INDEX($B$9:$I$408,$CM485,COLUMNS($CN$9:CS485)),\"\")","v":""},{"$f":"IFERROR(INDEX($B$9:$I$408,$CM485,COLUMNS($CN$9:CT485)),\"\")","v":""},{"$f":"IFERROR(INDEX($B$9:$I$408,$CM485,COLUMNS($CN$9:CU485)),\"\")","v":""}]
[null,{"$f":"IF(ISBLANK('TA Indicator Bank'!B339),\"\",'TA Indicator Bank'!B339)","v":""},{"$f":"IF(ISBLANK('TA Indicator Bank'!C339),\"\",'TA Indicator Bank'!C339)","v":""},{"$f":"IF(ISBLANK('TA Indicator Bank'!D339),\"\",'TA Indicator Bank'!D339)","v":""},{"$f":"IF(ISBLANK('TA Indicator Bank'!E339),\"\",'TA Indicator Bank'!E339)","v":""},{"$f":"IF(ISBLANK('TA Indicator Bank'!F339),\"\",'TA Indicator Bank'!F339)","v":""},{"$f":"IF(ISBLANK('TA Indicator Bank'!G339),\"\",'TA Indicator Bank'!G339)","v":""},{"$f":"IF(ISBLANK('TA Indicator Bank'!H339),\"\",'TA Indicator Bank'!H339)","v":""},{"$f":"IF(ISBLANK('TA Indicator Bank'!I339),\"\",'TA Indicator Bank'!I339)","v":""},{"$f":"IF(ISBLANK('TA Indicator Bank'!J339),\"\",'TA Indicator Bank'!J339)","v":""},{"$f":"IF(ISBLANK('TA Indicator Bank'!K339),\"\",'TA Indicator Bank'!K339)","v":""},{"$f":"IF(ISBLANK('TA Indicator Bank'!L339),\"\",'TA Indicator Bank'!L339)","v":""},{"$f":"IF(ISBLANK('TA Indicator Bank'!M339),\"\",'TA Indicator Bank'!M339)","v":""},{"$f":"IF(ISBLANK('TA Indicator Bank'!N339),\"\",'TA Indicator Bank'!N339)","v":""},{"$f":"IF(ISBLANK('TA Indicator Bank'!O339),\"\",'TA Indicator Bank'!O339)","v":""},{"$f":"IF(ISBLANK('TA Indicator Bank'!P339),\"\",'TA Indicator Bank'!P339)","v":""},{"$f":"IF(ISBLANK('TA Indicator Bank'!Q339),\"\",'TA Indicator Bank'!Q339)","v":""},{"$f":"IF(ISBLANK('TA Indicator Bank'!R339),\"\",'TA Indicator Bank'!R339)","v":""},{"$f":"IF(ISBLANK('TA Indicator Bank'!S339),\"\",'TA Indicator Bank'!S339)","v":""},{"$f":"IF(ISBLANK('TA Indicator Bank'!T339),\"\",'TA Indicator Bank'!T339)","v":""},{"$f":"IF(ISBLANK('TA Indicator Bank'!U339),\"\",'TA Indicator Bank'!U339)","v":""},{"$f":"IF(ISBLANK('TA Indicator Bank'!V339),\"\",'TA Indicator Bank'!V339)","v":""},{"$f":"IF(ISBLANK('TA Indicator Bank'!W339),\"\",'TA Indicator Bank'!W339)","v":""},{"$f":"IF(ISBLANK('TA Indicator Bank'!X339),\"\",'TA Indicator Bank'!X339)","v":""},{"$f":"IF(ISBLANK('TA Indicator Bank'!Y339),\"\",'TA Indicator Bank'!Y339)","v":""},{"$f":"IF(ISBLANK('TA Indicator Bank'!Z339),\"\",'TA Indicator Bank'!Z339)","v":""},{"$f":"IF(ISBLANK('TA Indicator Bank'!AA339),\"\",'TA Indicator Bank'!AA339)","v":""},{"$f":"IF(ISBLANK('TA Indicator Bank'!AB339),\"\",'TA Indicator Bank'!AB339)","v":""},{"$f":"IF(ISBLANK('TA Indicator Bank'!AC339),\"\",'TA Indicator Bank'!AC339)","v":""},{"$f":"IF(ISBLANK('TA Indicator Bank'!AD339),\"\",'TA Indicator Bank'!AD339)","v":""},{"$f":"IF(ISBLANK('TA Indicator Bank'!AE339),\"\",'TA Indicator Bank'!AE339)","v":""},{"$f":"IF(ISBLANK('TA Indicator Bank'!AF339),\"\",'TA Indicator Bank'!AF339)","v":""},{"$f":"IF(ISBLANK('TA Indicator Bank'!AG339),\"\",'TA Indicator Bank'!AG339)","v":""},{"$f":"IF(ISBLANK('TA Indicator Bank'!AH339),\"\",'TA Indicator Bank'!AH339)","v":""},{"$f":"IF(ISBLANK('TA Indicator Bank'!AI339),\"\",'TA Indicator Bank'!AI339)","v":""},{"$f":"IF(ISBLANK('TA Indicator Bank'!AJ339),\"\",'TA Indicator Bank'!AJ339)","v":""},{"$f":"IF(ISBLANK('TA Indicator Bank'!AK339),\"\",'TA Indicator Bank'!AK339)","v":""},{"$f":"IF(ISBLANK('TA Indicator Bank'!AL339),\"\",'TA Indicator Bank'!AL339)","v":""},{"$f":"IF(ISBLANK('TA Indicator Bank'!AM339),\"\",'TA Indicator Bank'!AM339)","v":""},{"$f":"IF(ISBLANK('TA Indicator Bank'!AN339),\"\",'TA Indicator Bank'!AN339)","v":""},{"$f":"IF(ISBLANK('TA Indicator Bank'!AO339),\"\",'TA Indicator Bank'!AO339)","v":""},{"$f":"IF(ISBLANK('TA Indicator Bank'!AP339),\"\",'TA Indicator Bank'!AP339)","v":""},{"$f":"IF(ISBLANK('TA Indicator Bank'!AQ339),\"\",'TA Indicator Bank'!AQ339)","v":""},{"$f":"IF(ISBLANK('TA Indicator Bank'!AR339),\"\",'TA Indicator Bank'!AR339)","v":""},{"$f":"IF(ISBLANK('TA Indicator Bank'!AS339),\"\",'TA Indicator Bank'!AS339)","v":""},{"$f":"IF(ISBLANK('TA Indicator Bank'!AT339),\"\",'TA Indicator Bank'!AT339)","v":""},0,0,0,0,0,0,0,0,0,0,0,0,0,0,1,0,0,0,0,0,0,0,0,0,1,0,0,0,0,0,0,0,0,0,1,0,0,0,0,0,1,1,335,335,"",{"$f":"IFERROR(INDEX($B$9:$I$408,$CM486,COLUMNS($CN$9:CN486)),\"\")","v":""},{"$f":"IFERROR(INDEX($B$9:$I$408,$CM486,COLUMNS($CN$9:CO486)),\"\")","v":""},{"$f":"IFERROR(INDEX($B$9:$I$408,$CM486,COLUMNS($CN$9:CP486)),\"\")","v":""},{"$f":"IFERROR(INDEX($B$9:$I$408,$CM486,COLUMNS($CN$9:CQ486)),\"\")","v":""},{"$f":"IFERROR(INDEX($B$9:$I$408,$CM486,COLUMNS($CN$9:CR486)),\"\")","v":""},{"$f":"IFERROR(INDEX($B$9:$I$408,$CM486,COLUMNS($CN$9:CS486)),\"\")","v":""},{"$f":"IFERROR(INDEX($B$9:$I$408,$CM486,COLUMNS($CN$9:CT486)),\"\")","v":""},{"$f":"IFERROR(INDEX($B$9:$I$408,$CM486,COLUMNS($CN$9:CU486)),\"\")","v":""}]
[null,{"$f":"IF(ISBLANK('TA Indicator Bank'!B340),\"\",'TA Indicator Bank'!B340)","v":""},{"$f":"IF(ISBLANK('TA Indicator Bank'!C340),\"\",'TA Indicator Bank'!C340)","v":""},{"$f":"IF(ISBLANK('TA Indicator Bank'!D340),\"\",'TA Indicator Bank'!D340)","v":""},{"$f":"IF(ISBLANK('TA Indicator Bank'!E340),\"\",'TA Indicator Bank'!E340)","v":""},{"$f":"IF(ISBLANK('TA Indicator Bank'!F340),\"\",'TA Indicator Bank'!F340)","v":""},{"$f":"IF(ISBLANK('TA Indicator Bank'!G340),\"\",'TA Indicator Bank'!G340)","v":""},{"$f":"IF(ISBLANK('TA Indicator Bank'!H340),\"\",'TA Indicator Bank'!H340)","v":""},{"$f":"IF(ISBLANK('TA Indicator Bank'!I340),\"\",'TA Indicator Bank'!I340)","v":""},{"$f":"IF(ISBLANK('TA Indicator Bank'!J340),\"\",'TA Indicator Bank'!J340)","v":""},{"$f":"IF(ISBLANK('TA Indicator Bank'!K340),\"\",'TA Indicator Bank'!K340)","v":""},{"$f":"IF(ISBLANK('TA Indicator Bank'!L340),\"\",'TA Indicator Bank'!L340)","v":""},{"$f":"IF(ISBLANK('TA Indicator Bank'!M340),\"\",'TA Indicator Bank'!M340)","v":""},{"$f":"IF(ISBLANK('TA Indicator Bank'!N340),\"\",'TA Indicator Bank'!N340)","v":""},{"$f":"IF(ISBLANK('TA Indicator Bank'!O340),\"\",'TA Indicator Bank'!O340)","v":""},{"$f":"IF(ISBLANK('TA Indicator Bank'!P340),\"\",'TA Indicator Bank'!P340)","v":""},{"$f":"IF(ISBLANK('TA Indicator Bank'!Q340),\"\",'TA Indicator Bank'!Q340)","v":""},{"$f":"IF(ISBLANK('TA Indicator Bank'!R340),\"\",'TA Indicator Bank'!R340)","v":""},{"$f":"IF(ISBLANK('TA Indicator Bank'!S340),\"\",'TA Indicator Bank'!S340)","v":""},{"$f":"IF(ISBLANK('TA Indicator Bank'!T340),\"\",'TA Indicator Bank'!T340)","v":""},{"$f":"IF(ISBLANK('TA Indicator Bank'!U340),\"\",'TA Indicator Bank'!U340)","v":""},{"$f":"IF(ISBLANK('TA Indicator Bank'!V340),\"\",'TA Indicator Bank'!V340)","v":""},{"$f":"IF(ISBLANK('TA Indicator Bank'!W340),\"\",'TA Indicator Bank'!W340)","v":""},{"$f":"IF(ISBLANK('TA Indicator Bank'!X340),\"\",'TA Indicator Bank'!X340)","v":""},{"$f":"IF(ISBLANK('TA Indicator Bank'!Y340),\"\",'TA Indicator Bank'!Y340)","v":""},{"$f":"IF(ISBLANK('TA Indicator Bank'!Z340),\"\",'TA Indicator Bank'!Z340)","v":""},{"$f":"IF(ISBLANK('TA Indicator Bank'!AA340),\"\",'TA Indicator Bank'!AA340)","v":""},{"$f":"IF(ISBLANK('TA Indicator Bank'!AB340),\"\",'TA Indicator Bank'!AB340)","v":""},{"$f":"IF(ISBLANK('TA Indicator Bank'!AC340),\"\",'TA Indicator Bank'!AC340)","v":""},{"$f":"IF(ISBLANK('TA Indicator Bank'!AD340),\"\",'TA Indicator Bank'!AD340)","v":""},{"$f":"IF(ISBLANK('TA Indicator Bank'!AE340),\"\",'TA Indicator Bank'!AE340)","v":""},{"$f":"IF(ISBLANK('TA Indicator Bank'!AF340),\"\",'TA Indicator Bank'!AF340)","v":""},{"$f":"IF(ISBLANK('TA Indicator Bank'!AG340),\"\",'TA Indicator Bank'!AG340)","v":""},{"$f":"IF(ISBLANK('TA Indicator Bank'!AH340),\"\",'TA Indicator Bank'!AH340)","v":""},{"$f":"IF(ISBLANK('TA Indicator Bank'!AI340),\"\",'TA Indicator Bank'!AI340)","v":""},{"$f":"IF(ISBLANK('TA Indicator Bank'!AJ340),\"\",'TA Indicator Bank'!AJ340)","v":""},{"$f":"IF(ISBLANK('TA Indicator Bank'!AK340),\"\",'TA Indicator Bank'!AK340)","v":""},{"$f":"IF(ISBLANK('TA Indicator Bank'!AL340),\"\",'TA Indicator Bank'!AL340)","v":""},{"$f":"IF(ISBLANK('TA Indicator Bank'!AM340),\"\",'TA Indicator Bank'!AM340)","v":""},{"$f":"IF(ISBLANK('TA Indicator Bank'!AN340),\"\",'TA Indicator Bank'!AN340)","v":""},{"$f":"IF(ISBLANK('TA Indicator Bank'!AO340),\"\",'TA Indicator Bank'!AO340)","v":""},{"$f":"IF(ISBLANK('TA Indicator Bank'!AP340),\"\",'TA Indicator Bank'!AP340)","v":""},{"$f":"IF(ISBLANK('TA Indicator Bank'!AQ340),\"\",'TA Indicator Bank'!AQ340)","v":""},{"$f":"IF(ISBLANK('TA Indicator Bank'!AR340),\"\",'TA Indicator Bank'!AR340)","v":""},{"$f":"IF(ISBLANK('TA Indicator Bank'!AS340),\"\",'TA Indicator Bank'!AS340)","v":""},{"$f":"IF(ISBLANK('TA Indicator Bank'!AT340),\"\",'TA Indicator Bank'!AT340)","v":""},0,0,0,0,0,0,0,0,0,0,0,0,0,0,1,0,0,0,0,0,0,0,0,0,1,0,0,0,0,0,0,0,0,0,1,0,0,0,0,0,1,1,336,336,"",{"$f":"IFERROR(INDEX($B$9:$I$408,$CM487,COLUMNS($CN$9:CN487)),\"\")","v":""},{"$f":"IFERROR(INDEX($B$9:$I$408,$CM487,COLUMNS($CN$9:CO487)),\"\")","v":""},{"$f":"IFERROR(INDEX($B$9:$I$408,$CM487,COLUMNS($CN$9:CP487)),\"\")","v":""},{"$f":"IFERROR(INDEX($B$9:$I$408,$CM487,COLUMNS($CN$9:CQ487)),\"\")","v":""},{"$f":"IFERROR(INDEX($B$9:$I$408,$CM487,COLUMNS($CN$9:CR487)),\"\")","v":""},{"$f":"IFERROR(INDEX($B$9:$I$408,$CM487,COLUMNS($CN$9:CS487)),\"\")","v":""},{"$f":"IFERROR(INDEX($B$9:$I$408,$CM487,COLUMNS($CN$9:CT487)),\"\")","v":""},{"$f":"IFERROR(INDEX($B$9:$I$408,$CM487,COLUMNS($CN$9:CU487)),\"\")","v":""}]
[null,{"$f":"IF(ISBLANK('TA Indicator Bank'!B341),\"\",'TA Indicator Bank'!B341)","v":""},{"$f":"IF(ISBLANK('TA Indicator Bank'!C341),\"\",'TA Indicator Bank'!C341)","v":""},{"$f":"IF(ISBLANK('TA Indicator Bank'!D341),\"\",'TA Indicator Bank'!D341)","v":""},{"$f":"IF(ISBLANK('TA Indicator Bank'!E341),\"\",'TA Indicator Bank'!E341)","v":""},{"$f":"IF(ISBLANK('TA Indicator Bank'!F341),\"\",'TA Indicator Bank'!F341)","v":""},{"$f":"IF(ISBLANK('TA Indicator Bank'!G341),\"\",'TA Indicator Bank'!G341)","v":""},{"$f":"IF(ISBLANK('TA Indicator Bank'!H341),\"\",'TA Indicator Bank'!H341)","v":""},{"$f":"IF(ISBLANK('TA Indicator Bank'!I341),\"\",'TA Indicator Bank'!I341)","v":""},{"$f":"IF(ISBLANK('TA Indicator Bank'!J341),\"\",'TA Indicator Bank'!J341)","v":""},{"$f":"IF(ISBLANK('TA Indicator Bank'!K341),\"\",'TA Indicator Bank'!K341)","v":""},{"$f":"IF(ISBLANK('TA Indicator Bank'!L341),\"\",'TA Indicator Bank'!L341)","v":""},{"$f":"IF(ISBLANK('TA Indicator Bank'!M341),\"\",'TA Indicator Bank'!M341)","v":""},{"$f":"IF(ISBLANK('TA Indicator Bank'!N341),\"\",'TA Indicator Bank'!N341)","v":""},{"$f":"IF(ISBLANK('TA Indicator Bank'!O341),\"\",'TA Indicator Bank'!O341)","v":""},{"$f":"IF(ISBLANK('TA Indicator Bank'!P341),\"\",'TA Indicator Bank'!P341)","v":""},{"$f":"IF(ISBLANK('TA Indicator Bank'!Q341),\"\",'TA Indicator Bank'!Q341)","v":""},{"$f":"IF(ISBLANK('TA Indicator Bank'!R341),\"\",'TA Indicator Bank'!R341)","v":""},{"$f":"IF(ISBLANK('TA Indicator Bank'!S341),\"\",'TA Indicator Bank'!S341)","v":""},{"$f":"IF(ISBLANK('TA Indicator Bank'!T341),\"\",'TA Indicator Bank'!T341)","v":""},{"$f":"IF(ISBLANK('TA Indicator Bank'!U341),\"\",'TA Indicator Bank'!U341)","v":""},{"$f":"IF(ISBLANK('TA Indicator Bank'!V341),\"\",'TA Indicator Bank'!V341)","v":""},{"$f":"IF(ISBLANK('TA Indicator Bank'!W341),\"\",'TA Indicator Bank'!W341)","v":""},{"$f":"IF(ISBLANK('TA Indicator Bank'!X341),\"\",'TA Indicator Bank'!X341)","v":""},{"$f":"IF(ISBLANK('TA Indicator Bank'!Y341),\"\",'TA Indicator Bank'!Y341)","v":""},{"$f":"IF(ISBLANK('TA Indicator Bank'!Z341),\"\",'TA Indicator Bank'!Z341)","v":""},{"$f":"IF(ISBLANK('TA Indicator Bank'!AA341),\"\",'TA Indicator Bank'!AA341)","v":""},{"$f":"IF(ISBLANK('TA Indicator Bank'!AB341),\"\",'TA Indicator Bank'!AB341)","v":""},{"$f":"IF(ISBLANK('TA Indicator Bank'!AC341),\"\",'TA Indicator Bank'!AC341)","v":""},{"$f":"IF(ISBLANK('TA Indicator Bank'!AD341),\"\",'TA Indicator Bank'!AD341)","v":""},{"$f":"IF(ISBLANK('TA Indicator Bank'!AE341),\"\",'TA Indicator Bank'!AE341)","v":""},{"$f":"IF(ISBLANK('TA Indicator Bank'!AF341),\"\",'TA Indicator Bank'!AF341)","v":""},{"$f":"IF(ISBLANK('TA Indicator Bank'!AG341),\"\",'TA Indicator Bank'!AG341)","v":""},{"$f":"IF(ISBLANK('TA Indicator Bank'!AH341),\"\",'TA Indicator Bank'!AH341)","v":""},{"$f":"IF(ISBLANK('TA Indicator Bank'!AI341),\"\",'TA Indicator Bank'!AI341)","v":""},{"$f":"IF(ISBLANK('TA Indicator Bank'!AJ341),\"\",'TA Indicator Bank'!AJ341)","v":""},{"$f":"IF(ISBLANK('TA Indicator Bank'!AK341),\"\",'TA Indicator Bank'!AK341)","v":""},{"$f":"IF(ISBLANK('TA Indicator Bank'!AL341),\"\",'TA Indicator Bank'!AL341)","v":""},{"$f":"IF(ISBLANK('TA Indicator Bank'!AM341),\"\",'TA Indicator Bank'!AM341)","v":""},{"$f":"IF(ISBLANK('TA Indicator Bank'!AN341),\"\",'TA Indicator Bank'!AN341)","v":""},{"$f":"IF(ISBLANK('TA Indicator Bank'!AO341),\"\",'TA Indicator Bank'!AO341)","v":""},{"$f":"IF(ISBLANK('TA Indicator Bank'!AP341),\"\",'TA Indicator Bank'!AP341)","v":""},{"$f":"IF(ISBLANK('TA Indicator Bank'!AQ341),\"\",'TA Indicator Bank'!AQ341)","v":""},{"$f":"IF(ISBLANK('TA Indicator Bank'!AR341),\"\",'TA Indicator Bank'!AR341)","v":""},{"$f":"IF(ISBLANK('TA Indicator Bank'!AS341),\"\",'TA Indicator Bank'!AS341)","v":""},{"$f":"IF(ISBLANK('TA Indicator Bank'!AT341),\"\",'TA Indicator Bank'!AT341)","v":""},0,0,0,0,0,0,0,0,0,0,0,0,0,0,1,0,0,0,0,0,0,0,0,0,1,0,0,0,0,0,0,0,0,0,1,0,0,0,0,0,1,1,337,337,"",{"$f":"IFERROR(INDEX($B$9:$I$408,$CM488,COLUMNS($CN$9:CN488)),\"\")","v":""},{"$f":"IFERROR(INDEX($B$9:$I$408,$CM488,COLUMNS($CN$9:CO488)),\"\")","v":""},{"$f":"IFERROR(INDEX($B$9:$I$408,$CM488,COLUMNS($CN$9:CP488)),\"\")","v":""},{"$f":"IFERROR(INDEX($B$9:$I$408,$CM488,COLUMNS($CN$9:CQ488)),\"\")","v":""},{"$f":"IFERROR(INDEX($B$9:$I$408,$CM488,COLUMNS($CN$9:CR488)),\"\")","v":""},{"$f":"IFERROR(INDEX($B$9:$I$408,$CM488,COLUMNS($CN$9:CS488)),\"\")","v":""},{"$f":"IFERROR(INDEX($B$9:$I$408,$CM488,COLUMNS($CN$9:CT488)),\"\")","v":""},{"$f":"IFERROR(INDEX($B$9:$I$408,$CM488,COLUMNS($CN$9:CU488)),\"\")","v":""}]
[null,{"$f":"IF(ISBLANK('TA Indicator Bank'!B342),\"\",'TA Indicator Bank'!B342)","v":""},{"$f":"IF(ISBLANK('TA Indicator Bank'!C342),\"\",'TA Indicator Bank'!C342)","v":""},{"$f":"IF(ISBLANK('TA Indicator Bank'!D342),\"\",'TA Indicator Bank'!D342)","v":""},{"$f":"IF(ISBLANK('TA Indicator Bank'!E342),\"\",'TA Indicator Bank'!E342)","v":""},{"$f":"IF(ISBLANK('TA Indicator Bank'!F342),\"\",'TA Indicator Bank'!F342)","v":""},{"$f":"IF(ISBLANK('TA Indicator Bank'!G342),\"\",'TA Indicator Bank'!G342)","v":""},{"$f":"IF(ISBLANK('TA Indicator Bank'!H342),\"\",'TA Indicator Bank'!H342)","v":""},{"$f":"IF(ISBLANK('TA Indicator Bank'!I342),\"\",'TA Indicator Bank'!I342)","v":""},{"$f":"IF(ISBLANK('TA Indicator Bank'!J342),\"\",'TA Indicator Bank'!J342)","v":""},{"$f":"IF(ISBLANK('TA Indicator Bank'!K342),\"\",'TA Indicator Bank'!K342)","v":""},{"$f":"IF(ISBLANK('TA Indicator Bank'!L342),\"\",'TA Indicator Bank'!L342)","v":""},{"$f":"IF(ISBLANK('TA Indicator Bank'!M342),\"\",'TA Indicator Bank'!M342)","v":""},{"$f":"IF(ISBLANK('TA Indicator Bank'!N342),\"\",'TA Indicator Bank'!N342)","v":""},{"$f":"IF(ISBLANK('TA Indicator Bank'!O342),\"\",'TA Indicator Bank'!O342)","v":""},{"$f":"IF(ISBLANK('TA Indicator Bank'!P342),\"\",'TA Indicator Bank'!P342)","v":""},{"$f":"IF(ISBLANK('TA Indicator Bank'!Q342),\"\",'TA Indicator Bank'!Q342)","v":""},{"$f":"IF(ISBLANK('TA Indicator Bank'!R342),\"\",'TA Indicator Bank'!R342)","v":""},{"$f":"IF(ISBLANK('TA Indicator Bank'!S342),\"\",'TA Indicator Bank'!S342)","v":""},{"$f":"IF(ISBLANK('TA Indicator Bank'!T342),\"\",'TA Indicator Bank'!T342)","v":""},{"$f":"IF(ISBLANK('TA Indicator Bank'!U342),\"\",'TA Indicator Bank'!U342)","v":""},{"$f":"IF(ISBLANK('TA Indicator Bank'!V342),\"\",'TA Indicator Bank'!V342)","v":""},{"$f":"IF(ISBLANK('TA Indicator Bank'!W342),\"\",'TA Indicator Bank'!W342)","v":""},{"$f":"IF(ISBLANK('TA Indicator Bank'!X342),\"\",'TA Indicator Bank'!X342)","v":""},{"$f":"IF(ISBLANK('TA Indicator Bank'!Y342),\"\",'TA Indicator Bank'!Y342)","v":""},{"$f":"IF(ISBLANK('TA Indicator Bank'!Z342),\"\",'TA Indicator Bank'!Z342)","v":""},{"$f":"IF(ISBLANK('TA Indicator Bank'!AA342),\"\",'TA Indicator Bank'!AA342)","v":""},{"$f":"IF(ISBLANK('TA Indicator Bank'!AB342),\"\",'TA Indicator Bank'!AB342)","v":""},{"$f":"IF(ISBLANK('TA Indicator Bank'!AC342),\"\",'TA Indicator Bank'!AC342)","v":""},{"$f":"IF(ISBLANK('TA Indicator Bank'!AD342),\"\",'TA Indicator Bank'!AD342)","v":""},{"$f":"IF(ISBLANK('TA Indicator Bank'!AE342),\"\",'TA Indicator Bank'!AE342)","v":""},{"$f":"IF(ISBLANK('TA Indicator Bank'!AF342),\"\",'TA Indicator Bank'!AF342)","v":""},{"$f":"IF(ISBLANK('TA Indicator Bank'!AG342),\"\",'TA Indicator Bank'!AG342)","v":""},{"$f":"IF(ISBLANK('TA Indicator Bank'!AH342),\"\",'TA Indicator Bank'!AH342)","v":""},{"$f":"IF(ISBLANK('TA Indicator Bank'!AI342),\"\",'TA Indicator Bank'!AI342)","v":""},{"$f":"IF(ISBLANK('TA Indicator Bank'!AJ342),\"\",'TA Indicator Bank'!AJ342)","v":""},{"$f":"IF(ISBLANK('TA Indicator Bank'!AK342),\"\",'TA Indicator Bank'!AK342)","v":""},{"$f":"IF(ISBLANK('TA Indicator Bank'!AL342),\"\",'TA Indicator Bank'!AL342)","v":""},{"$f":"IF(ISBLANK('TA Indicator Bank'!AM342),\"\",'TA Indicator Bank'!AM342)","v":""},{"$f":"IF(ISBLANK('TA Indicator Bank'!AN342),\"\",'TA Indicator Bank'!AN342)","v":""},{"$f":"IF(ISBLANK('TA Indicator Bank'!AO342),\"\",'TA Indicator Bank'!AO342)","v":""},{"$f":"IF(ISBLANK('TA Indicator Bank'!AP342),\"\",'TA Indicator Bank'!AP342)","v":""},{"$f":"IF(ISBLANK('TA Indicator Bank'!AQ342),\"\",'TA Indicator Bank'!AQ342)","v":""},{"$f":"IF(ISBLANK('TA Indicator Bank'!AR342),\"\",'TA Indicator Bank'!AR342)","v":""},{"$f":"IF(ISBLANK('TA Indicator Bank'!AS342),\"\",'TA Indicator Bank'!AS342)","v":""},{"$f":"IF(ISBLANK('TA Indicator Bank'!AT342),\"\",'TA Indicator Bank'!AT342)","v":""},0,0,0,0,0,0,0,0,0,0,0,0,0,0,1,0,0,0,0,0,0,0,0,0,1,0,0,0,0,0,0,0,0,0,1,0,0,0,0,0,1,1,338,338,"",{"$f":"IFERROR(INDEX($B$9:$I$408,$CM489,COLUMNS($CN$9:CN489)),\"\")","v":""},{"$f":"IFERROR(INDEX($B$9:$I$408,$CM489,COLUMNS($CN$9:CO489)),\"\")","v":""},{"$f":"IFERROR(INDEX($B$9:$I$408,$CM489,COLUMNS($CN$9:CP489)),\"\")","v":""},{"$f":"IFERROR(INDEX($B$9:$I$408,$CM489,COLUMNS($CN$9:CQ489)),\"\")","v":""},{"$f":"IFERROR(INDEX($B$9:$I$408,$CM489,COLUMNS($CN$9:CR489)),\"\")","v":""},{"$f":"IFERROR(INDEX($B$9:$I$408,$CM489,COLUMNS($CN$9:CS489)),\"\")","v":""},{"$f":"IFERROR(INDEX($B$9:$I$408,$CM489,COLUMNS($CN$9:CT489)),\"\")","v":""},{"$f":"IFERROR(INDEX($B$9:$I$408,$CM489,COLUMNS($CN$9:CU489)),\"\")","v":""}]
[null,{"$f":"IF(ISBLANK('TA Indicator Bank'!B343),\"\",'TA Indicator Bank'!B343)","v":""},{"$f":"IF(ISBLANK('TA Indicator Bank'!C343),\"\",'TA Indicator Bank'!C343)","v":""},{"$f":"IF(ISBLANK('TA Indicator Bank'!D343),\"\",'TA Indicator Bank'!D343)","v":""},{"$f":"IF(ISBLANK('TA Indicator Bank'!E343),\"\",'TA Indicator Bank'!E343)","v":""},{"$f":"IF(ISBLANK('TA Indicator Bank'!F343),\"\",'TA Indicator Bank'!F343)","v":""},{"$f":"IF(ISBLANK('TA Indicator Bank'!G343),\"\",'TA Indicator Bank'!G343)","v":""},{"$f":"IF(ISBLANK('TA Indicator Bank'!H343),\"\",'TA Indicator Bank'!H343)","v":""},{"$f":"IF(ISBLANK('TA Indicator Bank'!I343),\"\",'TA Indicator Bank'!I343)","v":""},{"$f":"IF(ISBLANK('TA Indicator Bank'!J343),\"\",'TA Indicator Bank'!J343)","v":""},{"$f":"IF(ISBLANK('TA Indicator Bank'!K343),\"\",'TA Indicator Bank'!K343)","v":""},{"$f":"IF(ISBLANK('TA Indicator Bank'!L343),\"\",'TA Indicator Bank'!L343)","v":""},{"$f":"IF(ISBLANK('TA Indicator Bank'!M343),\"\",'TA Indicator Bank'!M343)","v":""},{"$f":"IF(ISBLANK('TA Indicator Bank'!N343),\"\",'TA Indicator Bank'!N343)","v":""},{"$f":"IF(ISBLANK('TA Indicator Bank'!O343),\"\",'TA Indicator Bank'!O343)","v":""},{"$f":"IF(ISBLANK('TA Indicator Bank'!P343),\"\",'TA Indicator Bank'!P343)","v":""},{"$f":"IF(ISBLANK('TA Indicator Bank'!Q343),\"\",'TA Indicator Bank'!Q343)","v":""},{"$f":"IF(ISBLANK('TA Indicator Bank'!R343),\"\",'TA Indicator Bank'!R343)","v":""},{"$f":"IF(ISBLANK('TA Indicator Bank'!S343),\"\",'TA Indicator Bank'!S343)","v":""},{"$f":"IF(ISBLANK('TA Indicator Bank'!T343),\"\",'TA Indicator Bank'!T343)","v":""},{"$f":"IF(ISBLANK('TA Indicator Bank'!U343),\"\",'TA Indicator Bank'!U343)","v":""},{"$f":"IF(ISBLANK('TA Indicator Bank'!V343),\"\",'TA Indicator Bank'!V343)","v":""},{"$f":"IF(ISBLANK('TA Indicator Bank'!W343),\"\",'TA Indicator Bank'!W343)","v":""},{"$f":"IF(ISBLANK('TA Indicator Bank'!X343),\"\",'TA Indicator Bank'!X343)","v":""},{"$f":"IF(ISBLANK('TA Indicator Bank'!Y343),\"\",'TA Indicator Bank'!Y343)","v":""},{"$f":"IF(ISBLANK('TA Indicator Bank'!Z343),\"\",'TA Indicator Bank'!Z343)","v":""},{"$f":"IF(ISBLANK('TA Indicator Bank'!AA343),\"\",'TA Indicator Bank'!AA343)","v":""},{"$f":"IF(ISBLANK('TA Indicator Bank'!AB343),\"\",'TA Indicator Bank'!AB343)","v":""},{"$f":"IF(ISBLANK('TA Indicator Bank'!AC343),\"\",'TA Indicator Bank'!AC343)","v":""},{"$f":"IF(ISBLANK('TA Indicator Bank'!AD343),\"\",'TA Indicator Bank'!AD343)","v":""},{"$f":"IF(ISBLANK('TA Indicator Bank'!AE343),\"\",'TA Indicator Bank'!AE343)","v":""},{"$f":"IF(ISBLANK('TA Indicator Bank'!AF343),\"\",'TA Indicator Bank'!AF343)","v":""},{"$f":"IF(ISBLANK('TA Indicator Bank'!AG343),\"\",'TA Indicator Bank'!AG343)","v":""},{"$f":"IF(ISBLANK('TA Indicator Bank'!AH343),\"\",'TA Indicator Bank'!AH343)","v":""},{"$f":"IF(ISBLANK('TA Indicator Bank'!AI343),\"\",'TA Indicator Bank'!AI343)","v":""},{"$f":"IF(ISBLANK('TA Indicator Bank'!AJ343),\"\",'TA Indicator Bank'!AJ343)","v":""},{"$f":"IF(ISBLANK('TA Indicator Bank'!AK343),\"\",'TA Indicator Bank'!AK343)","v":""},{"$f":"IF(ISBLANK('TA Indicator Bank'!AL343),\"\",'TA Indicator Bank'!AL343)","v":""},{"$f":"IF(ISBLANK('TA Indicator Bank'!AM343),\"\",'TA Indicator Bank'!AM343)","v":""},{"$f":"IF(ISBLANK('TA Indicator Bank'!AN343),\"\",'TA Indicator Bank'!AN343)","v":""},{"$f":"IF(ISBLANK('TA Indicator Bank'!AO343),\"\",'TA Indicator Bank'!AO343)","v":""},{"$f":"IF(ISBLANK('TA Indicator Bank'!AP343),\"\",'TA Indicator Bank'!AP343)","v":""},{"$f":"IF(ISBLANK('TA Indicator Bank'!AQ343),\"\",'TA Indicator Bank'!AQ343)","v":""},{"$f":"IF(ISBLANK('TA Indicator Bank'!AR343),\"\",'TA Indicator Bank'!AR343)","v":""},{"$f":"IF(ISBLANK('TA Indicator Bank'!AS343),\"\",'TA Indicator Bank'!AS343)","v":""},{"$f":"IF(ISBLANK('TA Indicator Bank'!AT343),\"\",'TA Indicator Bank'!AT343)","v":""},0,0,0,0,0,0,0,0,0,0,0,0,0,0,1,0,0,0,0,0,0,0,0,0,1,0,0,0,0,0,0,0,0,0,1,0,0,0,0,0,1,1,339,339,"",{"$f":"IFERROR(INDEX($B$9:$I$408,$CM490,COLUMNS($CN$9:CN490)),\"\")","v":""},{"$f":"IFERROR(INDEX($B$9:$I$408,$CM490,COLUMNS($CN$9:CO490)),\"\")","v":""},{"$f":"IFERROR(INDEX($B$9:$I$408,$CM490,COLUMNS($CN$9:CP490)),\"\")","v":""},{"$f":"IFERROR(INDEX($B$9:$I$408,$CM490,COLUMNS($CN$9:CQ490)),\"\")","v":""},{"$f":"IFERROR(INDEX($B$9:$I$408,$CM490,COLUMNS($CN$9:CR490)),\"\")","v":""},{"$f":"IFERROR(INDEX($B$9:$I$408,$CM490,COLUMNS($CN$9:CS490)),\"\")","v":""},{"$f":"IFERROR(INDEX($B$9:$I$408,$CM490,COLUMNS($CN$9:CT490)),\"\")","v":""},{"$f":"IFERROR(INDEX($B$9:$I$408,$CM490,COLUMNS($CN$9:CU490)),\"\")","v":""}]
[null,{"$f":"IF(ISBLANK('TA Indicator Bank'!B344),\"\",'TA Indicator Bank'!B344)","v":""},{"$f":"IF(ISBLANK('TA Indicator Bank'!C344),\"\",'TA Indicator Bank'!C344)","v":""},{"$f":"IF(ISBLANK('TA Indicator Bank'!D344),\"\",'TA Indicator Bank'!D344)","v":""},{"$f":"IF(ISBLANK('TA Indicator Bank'!E344),\"\",'TA Indicator Bank'!E344)","v":""},{"$f":"IF(ISBLANK('TA Indicator Bank'!F344),\"\",'TA Indicator Bank'!F344)","v":""},{"$f":"IF(ISBLANK('TA Indicator Bank'!G344),\"\",'TA Indicator Bank'!G344)","v":""},{"$f":"IF(ISBLANK('TA Indicator Bank'!H344),\"\",'TA Indicator Bank'!H344)","v":""},{"$f":"IF(ISBLANK('TA Indicator Bank'!I344),\"\",'TA Indicator Bank'!I344)","v":""},{"$f":"IF(ISBLANK('TA Indicator Bank'!J344),\"\",'TA Indicator Bank'!J344)","v":""},{"$f":"IF(ISBLANK('TA Indicator Bank'!K344),\"\",'TA Indicator Bank'!K344)","v":""},{"$f":"IF(ISBLANK('TA Indicator Bank'!L344),\"\",'TA Indicator Bank'!L344)","v":""},{"$f":"IF(ISBLANK('TA Indicator Bank'!M344),\"\",'TA Indicator Bank'!M344)","v":""},{"$f":"IF(ISBLANK('TA Indicator Bank'!N344),\"\",'TA Indicator Bank'!N344)","v":""},{"$f":"IF(ISBLANK('TA Indicator Bank'!O344),\"\",'TA Indicator Bank'!O344)","v":""},{"$f":"IF(ISBLANK('TA Indicator Bank'!P344),\"\",'TA Indicator Bank'!P344)","v":""},{"$f":"IF(ISBLANK('TA Indicator Bank'!Q344),\"\",'TA Indicator Bank'!Q344)","v":""},{"$f":"IF(ISBLANK('TA Indicator Bank'!R344),\"\",'TA Indicator Bank'!R344)","v":""},{"$f":"IF(ISBLANK('TA Indicator Bank'!S344),\"\",'TA Indicator Bank'!S344)","v":""},{"$f":"IF(ISBLANK('TA Indicator Bank'!T344),\"\",'TA Indicator Bank'!T344)","v":""},{"$f":"IF(ISBLANK('TA Indicator Bank'!U344),\"\",'TA Indicator Bank'!U344)","v":""},{"$f":"IF(ISBLANK('TA Indicator Bank'!V344),\"\",'TA Indicator Bank'!V344)","v":""},{"$f":"IF(ISBLANK('TA Indicator Bank'!W344),\"\",'TA Indicator Bank'!W344)","v":""},{"$f":"IF(ISBLANK('TA Indicator Bank'!X344),\"\",'TA Indicator Bank'!X344)","v":""},{"$f":"IF(ISBLANK('TA Indicator Bank'!Y344),\"\",'TA Indicator Bank'!Y344)","v":""},{"$f":"IF(ISBLANK('TA Indicator Bank'!Z344),\"\",'TA Indicator Bank'!Z344)","v":""},{"$f":"IF(ISBLANK('TA Indicator Bank'!AA344),\"\",'TA Indicator Bank'!AA344)","v":""},{"$f":"IF(ISBLANK('TA Indicator Bank'!AB344),\"\",'TA Indicator Bank'!AB344)","v":""},{"$f":"IF(ISBLANK('TA Indicator Bank'!AC344),\"\",'TA Indicator Bank'!AC344)","v":""},{"$f":"IF(ISBLANK('TA Indicator Bank'!AD344),\"\",'TA Indicator Bank'!AD344)","v":""},{"$f":"IF(ISBLANK('TA Indicator Bank'!AE344),\"\",'TA Indicator Bank'!AE344)","v":""},{"$f":"IF(ISBLANK('TA Indicator Bank'!AF344),\"\",'TA Indicator Bank'!AF344)","v":""},{"$f":"IF(ISBLANK('TA Indicator Bank'!AG344),\"\",'TA Indicator Bank'!AG344)","v":""},{"$f":"IF(ISBLANK('TA Indicator Bank'!AH344),\"\",'TA Indicator Bank'!AH344)","v":""},{"$f":"IF(ISBLANK('TA Indicator Bank'!AI344),\"\",'TA Indicator Bank'!AI344)","v":""},{"$f":"IF(ISBLANK('TA Indicator Bank'!AJ344),\"\",'TA Indicator Bank'!AJ344)","v":""},{"$f":"IF(ISBLANK('TA Indicator Bank'!AK344),\"\",'TA Indicator Bank'!AK344)","v":""},{"$f":"IF(ISBLANK('TA Indicator Bank'!AL344),\"\",'TA Indicator Bank'!AL344)","v":""},{"$f":"IF(ISBLANK('TA Indicator Bank'!AM344),\"\",'TA Indicator Bank'!AM344)","v":""},{"$f":"IF(ISBLANK('TA Indicator Bank'!AN344),\"\",'TA Indicator Bank'!AN344)","v":""},{"$f":"IF(ISBLANK('TA Indicator Bank'!AO344),\"\",'TA Indicator Bank'!AO344)","v":""},{"$f":"IF(ISBLANK('TA Indicator Bank'!AP344),\"\",'TA Indicator Bank'!AP344)","v":""},{"$f":"IF(ISBLANK('TA Indicator Bank'!AQ344),\"\",'TA Indicator Bank'!AQ344)","v":""},{"$f":"IF(ISBLANK('TA Indicator Bank'!AR344),\"\",'TA Indicator Bank'!AR344)","v":""},{"$f":"IF(ISBLANK('TA Indicator Bank'!AS344),\"\",'TA Indicator Bank'!AS344)","v":""},{"$f":"IF(ISBLANK('TA Indicator Bank'!AT344),\"\",'TA Indicator Bank'!AT344)","v":""},0,0,0,0,0,0,0,0,0,0,0,0,0,0,1,0,0,0,0,0,0,0,0,0,1,0,0,0,0,0,0,0,0,0,1,0,0,0,0,0,1,1,340,340,"",{"$f":"IFERROR(INDEX($B$9:$I$408,$CM491,COLUMNS($CN$9:CN491)),\"\")","v":""},{"$f":"IFERROR(INDEX($B$9:$I$408,$CM491,COLUMNS($CN$9:CO491)),\"\")","v":""},{"$f":"IFERROR(INDEX($B$9:$I$408,$CM491,COLUMNS($CN$9:CP491)),\"\")","v":""},{"$f":"IFERROR(INDEX($B$9:$I$408,$CM491,COLUMNS($CN$9:CQ491)),\"\")","v":""},{"$f":"IFERROR(INDEX($B$9:$I$408,$CM491,COLUMNS($CN$9:CR491)),\"\")","v":""},{"$f":"IFERROR(INDEX($B$9:$I$408,$CM491,COLUMNS($CN$9:CS491)),\"\")","v":""},{"$f":"IFERROR(INDEX($B$9:$I$408,$CM491,COLUMNS($CN$9:CT491)),\"\")","v":""},{"$f":"IFERROR(INDEX($B$9:$I$408,$CM491,COLUMNS($CN$9:CU491)),\"\")","v":""}]
[null,{"$f":"IF(ISBLANK('TA Indicator Bank'!B345),\"\",'TA Indicator Bank'!B345)","v":""},{"$f":"IF(ISBLANK('TA Indicator Bank'!C345),\"\",'TA Indicator Bank'!C345)","v":""},{"$f":"IF(ISBLANK('TA Indicator Bank'!D345),\"\",'TA Indicator Bank'!D345)","v":""},{"$f":"IF(ISBLANK('TA Indicator Bank'!E345),\"\",'TA Indicator Bank'!E345)","v":""},{"$f":"IF(ISBLANK('TA Indicator Bank'!F345),\"\",'TA Indicator Bank'!F345)","v":""},{"$f":"IF(ISBLANK('TA Indicator Bank'!G345),\"\",'TA Indicator Bank'!G345)","v":""},{"$f":"IF(ISBLANK('TA Indicator Bank'!H345),\"\",'TA Indicator Bank'!H345)","v":""},{"$f":"IF(ISBLANK('TA Indicator Bank'!I345),\"\",'TA Indicator Bank'!I345)","v":""},{"$f":"IF(ISBLANK('TA Indicator Bank'!J345),\"\",'TA Indicator Bank'!J345)","v":""},{"$f":"IF(ISBLANK('TA Indicator Bank'!K345),\"\",'TA Indicator Bank'!K345)","v":""},{"$f":"IF(ISBLANK('TA Indicator Bank'!L345),\"\",'TA Indicator Bank'!L345)","v":""},{"$f":"IF(ISBLANK('TA Indicator Bank'!M345),\"\",'TA Indicator Bank'!M345)","v":""},{"$f":"IF(ISBLANK('TA Indicator Bank'!N345),\"\",'TA Indicator Bank'!N345)","v":""},{"$f":"IF(ISBLANK('TA Indicator Bank'!O345),\"\",'TA Indicator Bank'!O345)","v":""},{"$f":"IF(ISBLANK('TA Indicator Bank'!P345),\"\",'TA Indicator Bank'!P345)","v":""},{"$f":"IF(ISBLANK('TA Indicator Bank'!Q345),\"\",'TA Indicator Bank'!Q345)","v":""},{"$f":"IF(ISBLANK('TA Indicator Bank'!R345),\"\",'TA Indicator Bank'!R345)","v":""},{"$f":"IF(ISBLANK('TA Indicator Bank'!S345),\"\",'TA Indicator Bank'!S345)","v":""},{"$f":"IF(ISBLANK('TA Indicator Bank'!T345),\"\",'TA Indicator Bank'!T345)","v":""},{"$f":"IF(ISBLANK('TA Indicator Bank'!U345),\"\",'TA Indicator Bank'!U345)","v":""},{"$f":"IF(ISBLANK('TA Indicator Bank'!V345),\"\",'TA Indicator Bank'!V345)","v":""},{"$f":"IF(ISBLANK('TA Indicator Bank'!W345),\"\",'TA Indicator Bank'!W345)","v":""},{"$f":"IF(ISBLANK('TA Indicator Bank'!X345),\"\",'TA Indicator Bank'!X345)","v":""},{"$f":"IF(ISBLANK('TA Indicator Bank'!Y345),\"\",'TA Indicator Bank'!Y345)","v":""},{"$f":"IF(ISBLANK('TA Indicator Bank'!Z345),\"\",'TA Indicator Bank'!Z345)","v":""},{"$f":"IF(ISBLANK('TA Indicator Bank'!AA345),\"\",'TA Indicator Bank'!AA345)","v":""},{"$f":"IF(ISBLANK('TA Indicator Bank'!AB345),\"\",'TA Indicator Bank'!AB345)","v":""},{"$f":"IF(ISBLANK('TA Indicator Bank'!AC345),\"\",'TA Indicator Bank'!AC345)","v":""},{"$f":"IF(ISBLANK('TA Indicator Bank'!AD345),\"\",'TA Indicator Bank'!AD345)","v":""},{"$f":"IF(ISBLANK('TA Indicator Bank'!AE345),\"\",'TA Indicator Bank'!AE345)","v":""},{"$f":"IF(ISBLANK('TA Indicator Bank'!AF345),\"\",'TA Indicator Bank'!AF345)","v":""},{"$f":"IF(ISBLANK('TA Indicator Bank'!AG345),\"\",'TA Indicator Bank'!AG345)","v":""},{"$f":"IF(ISBLANK('TA Indicator Bank'!AH345),\"\",'TA Indicator Bank'!AH345)","v":""},{"$f":"IF(ISBLANK('TA Indicator Bank'!AI345),\"\",'TA Indicator Bank'!AI345)","v":""},{"$f":"IF(ISBLANK('TA Indicator Bank'!AJ345),\"\",'TA Indicator Bank'!AJ345)","v":""},{"$f":"IF(ISBLANK('TA Indicator Bank'!AK345),\"\",'TA Indicator Bank'!AK345)","v":""},{"$f":"IF(ISBLANK('TA Indicator Bank'!AL345),\"\",'TA Indicator Bank'!AL345)","v":""},{"$f":"IF(ISBLANK('TA Indicator Bank'!AM345),\"\",'TA Indicator Bank'!AM345)","v":""},{"$f":"IF(ISBLANK('TA Indicator Bank'!AN345),\"\",'TA Indicator Bank'!AN345)","v":""},{"$f":"IF(ISBLANK('TA Indicator Bank'!AO345),\"\",'TA Indicator Bank'!AO345)","v":""},{"$f":"IF(ISBLANK('TA Indicator Bank'!AP345),\"\",'TA Indicator Bank'!AP345)","v":""},{"$f":"IF(ISBLANK('TA Indicator Bank'!AQ345),\"\",'TA Indicator Bank'!AQ345)","v":""},{"$f":"IF(ISBLANK('TA Indicator Bank'!AR345),\"\",'TA Indicator Bank'!AR345)","v":""},{"$f":"IF(ISBLANK('TA Indicator Bank'!AS345),\"\",'TA Indicator Bank'!AS345)","v":""},{"$f":"IF(ISBLANK('TA Indicator Bank'!AT345),\"\",'TA Indicator Bank'!AT345)","v":""},0,0,0,0,0,0,0,0,0,0,0,0,0,0,1,0,0,0,0,0,0,0,0,0,1,0,0,0,0,0,0,0,0,0,1,0,0,0,0,0,1,1,341,341,"",{"$f":"IFERROR(INDEX($B$9:$I$408,$CM492,COLUMNS($CN$9:CN492)),\"\")","v":""},{"$f":"IFERROR(INDEX($B$9:$I$408,$CM492,COLUMNS($CN$9:CO492)),\"\")","v":""},{"$f":"IFERROR(INDEX($B$9:$I$408,$CM492,COLUMNS($CN$9:CP492)),\"\")","v":""},{"$f":"IFERROR(INDEX($B$9:$I$408,$CM492,COLUMNS($CN$9:CQ492)),\"\")","v":""},{"$f":"IFERROR(INDEX($B$9:$I$408,$CM492,COLUMNS($CN$9:CR492)),\"\")","v":""},{"$f":"IFERROR(INDEX($B$9:$I$408,$CM492,COLUMNS($CN$9:CS492)),\"\")","v":""},{"$f":"IFERROR(INDEX($B$9:$I$408,$CM492,COLUMNS($CN$9:CT492)),\"\")","v":""},{"$f":"IFERROR(INDEX($B$9:$I$408,$CM492,COLUMNS($CN$9:CU492)),\"\")","v":""}]
[null,{"$f":"IF(ISBLANK('TA Indicator Bank'!B346),\"\",'TA Indicator Bank'!B346)","v":""},{"$f":"IF(ISBLANK('TA Indicator Bank'!C346),\"\",'TA Indicator Bank'!C346)","v":""},{"$f":"IF(ISBLANK('TA Indicator Bank'!D346),\"\",'TA Indicator Bank'!D346)","v":""},{"$f":"IF(ISBLANK('TA Indicator Bank'!E346),\"\",'TA Indicator Bank'!E346)","v":""},{"$f":"IF(ISBLANK('TA Indicator Bank'!F346),\"\",'TA Indicator Bank'!F346)","v":""},{"$f":"IF(ISBLANK('TA Indicator Bank'!G346),\"\",'TA Indicator Bank'!G346)","v":""},{"$f":"IF(ISBLANK('TA Indicator Bank'!H346),\"\",'TA Indicator Bank'!H346)","v":""},{"$f":"IF(ISBLANK('TA Indicator Bank'!I346),\"\",'TA Indicator Bank'!I346)","v":""},{"$f":"IF(ISBLANK('TA Indicator Bank'!J346),\"\",'TA Indicator Bank'!J346)","v":""},{"$f":"IF(ISBLANK('TA Indicator Bank'!K346),\"\",'TA Indicator Bank'!K346)","v":""},{"$f":"IF(ISBLANK('TA Indicator Bank'!L346),\"\",'TA Indicator Bank'!L346)","v":""},{"$f":"IF(ISBLANK('TA Indicator Bank'!M346),\"\",'TA Indicator Bank'!M346)","v":""},{"$f":"IF(ISBLANK('TA Indicator Bank'!N346),\"\",'TA Indicator Bank'!N346)","v":""},{"$f":"IF(ISBLANK('TA Indicator Bank'!O346),\"\",'TA Indicator Bank'!O346)","v":""},{"$f":"IF(ISBLANK('TA Indicator Bank'!P346),\"\",'TA Indicator Bank'!P346)","v":""},{"$f":"IF(ISBLANK('TA Indicator Bank'!Q346),\"\",'TA Indicator Bank'!Q346)","v":""},{"$f":"IF(ISBLANK('TA Indicator Bank'!R346),\"\",'TA Indicator Bank'!R346)","v":""},{"$f":"IF(ISBLANK('TA Indicator Bank'!S346),\"\",'TA Indicator Bank'!S346)","v":""},{"$f":"IF(ISBLANK('TA Indicator Bank'!T346),\"\",'TA Indicator Bank'!T346)","v":""},{"$f":"IF(ISBLANK('TA Indicator Bank'!U346),\"\",'TA Indicator Bank'!U346)","v":""},{"$f":"IF(ISBLANK('TA Indicator Bank'!V346),\"\",'TA Indicator Bank'!V346)","v":""},{"$f":"IF(ISBLANK('TA Indicator Bank'!W346),\"\",'TA Indicator Bank'!W346)","v":""},{"$f":"IF(ISBLANK('TA Indicator Bank'!X346),\"\",'TA Indicator Bank'!X346)","v":""},{"$f":"IF(ISBLANK('TA Indicator Bank'!Y346),\"\",'TA Indicator Bank'!Y346)","v":""},{"$f":"IF(ISBLANK('TA Indicator Bank'!Z346),\"\",'TA Indicator Bank'!Z346)","v":""},{"$f":"IF(ISBLANK('TA Indicator Bank'!AA346),\"\",'TA Indicator Bank'!AA346)","v":""},{"$f":"IF(ISBLANK('TA Indicator Bank'!AB346),\"\",'TA Indicator Bank'!AB346)","v":""},{"$f":"IF(ISBLANK('TA Indicator Bank'!AC346),\"\",'TA Indicator Bank'!AC346)","v":""},{"$f":"IF(ISBLANK('TA Indicator Bank'!AD346),\"\",'TA Indicator Bank'!AD346)","v":""},{"$f":"IF(ISBLANK('TA Indicator Bank'!AE346),\"\",'TA Indicator Bank'!AE346)","v":""},{"$f":"IF(ISBLANK('TA Indicator Bank'!AF346),\"\",'TA Indicator Bank'!AF346)","v":""},{"$f":"IF(ISBLANK('TA Indicator Bank'!AG346),\"\",'TA Indicator Bank'!AG346)","v":""},{"$f":"IF(ISBLANK('TA Indicator Bank'!AH346),\"\",'TA Indicator Bank'!AH346)","v":""},{"$f":"IF(ISBLANK('TA Indicator Bank'!AI346),\"\",'TA Indicator Bank'!AI346)","v":""},{"$f":"IF(ISBLANK('TA Indicator Bank'!AJ346),\"\",'TA Indicator Bank'!AJ346)","v":""},{"$f":"IF(ISBLANK('TA Indicator Bank'!AK346),\"\",'TA Indicator Bank'!AK346)","v":""},{"$f":"IF(ISBLANK('TA Indicator Bank'!AL346),\"\",'TA Indicator Bank'!AL346)","v":""},{"$f":"IF(ISBLANK('TA Indicator Bank'!AM346),\"\",'TA Indicator Bank'!AM346)","v":""},{"$f":"IF(ISBLANK('TA Indicator Bank'!AN346),\"\",'TA Indicator Bank'!AN346)","v":""},{"$f":"IF(ISBLANK('TA Indicator Bank'!AO346),\"\",'TA Indicator Bank'!AO346)","v":""},{"$f":"IF(ISBLANK('TA Indicator Bank'!AP346),\"\",'TA Indicator Bank'!AP346)","v":""},{"$f":"IF(ISBLANK('TA Indicator Bank'!AQ346),\"\",'TA Indicator Bank'!AQ346)","v":""},{"$f":"IF(ISBLANK('TA Indicator Bank'!AR346),\"\",'TA Indicator Bank'!AR346)","v":""},{"$f":"IF(ISBLANK('TA Indicator Bank'!AS346),\"\",'TA Indicator Bank'!AS346)","v":""},{"$f":"IF(ISBLANK('TA Indicator Bank'!AT346),\"\",'TA Indicator Bank'!AT346)","v":""},0,0,0,0,0,0,0,0,0,0,0,0,0,0,1,0,0,0,0,0,0,0,0,0,1,0,0,0,0,0,0,0,0,0,1,0,0,0,0,0,1,1,342,342,"",{"$f":"IFERROR(INDEX($B$9:$I$408,$CM493,COLUMNS($CN$9:CN493)),\"\")","v":""},{"$f":"IFERROR(INDEX($B$9:$I$408,$CM493,COLUMNS($CN$9:CO493)),\"\")","v":""},{"$f":"IFERROR(INDEX($B$9:$I$408,$CM493,COLUMNS($CN$9:CP493)),\"\")","v":""},{"$f":"IFERROR(INDEX($B$9:$I$408,$CM493,COLUMNS($CN$9:CQ493)),\"\")","v":""},{"$f":"IFERROR(INDEX($B$9:$I$408,$CM493,COLUMNS($CN$9:CR493)),\"\")","v":""},{"$f":"IFERROR(INDEX($B$9:$I$408,$CM493,COLUMNS($CN$9:CS493)),\"\")","v":""},{"$f":"IFERROR(INDEX($B$9:$I$408,$CM493,COLUMNS($CN$9:CT493)),\"\")","v":""},{"$f":"IFERROR(INDEX($B$9:$I$408,$CM493,COLUMNS($CN$9:CU493)),\"\")","v":""}]
[null,{"$f":"IF(ISBLANK('TA Indicator Bank'!B347),\"\",'TA Indicator Bank'!B347)","v":""},{"$f":"IF(ISBLANK('TA Indicator Bank'!C347),\"\",'TA Indicator Bank'!C347)","v":""},{"$f":"IF(ISBLANK('TA Indicator Bank'!D347),\"\",'TA Indicator Bank'!D347)","v":""},{"$f":"IF(ISBLANK('TA Indicator Bank'!E347),\"\",'TA Indicator Bank'!E347)","v":""},{"$f":"IF(ISBLANK('TA Indicator Bank'!F347),\"\",'TA Indicator Bank'!F347)","v":""},{"$f":"IF(ISBLANK('TA Indicator Bank'!G347),\"\",'TA Indicator Bank'!G347)","v":""},{"$f":"IF(ISBLANK('TA Indicator Bank'!H347),\"\",'TA Indicator Bank'!H347)","v":""},{"$f":"IF(ISBLANK('TA Indicator Bank'!I347),\"\",'TA Indicator Bank'!I347)","v":""},{"$f":"IF(ISBLANK('TA Indicator Bank'!J347),\"\",'TA Indicator Bank'!J347)","v":""},{"$f":"IF(ISBLANK('TA Indicator Bank'!K347),\"\",'TA Indicator Bank'!K347)","v":""},{"$f":"IF(ISBLANK('TA Indicator Bank'!L347),\"\",'TA Indicator Bank'!L347)","v":""},{"$f":"IF(ISBLANK('TA Indicator Bank'!M347),\"\",'TA Indicator Bank'!M347)","v":""},{"$f":"IF(ISBLANK('TA Indicator Bank'!N347),\"\",'TA Indicator Bank'!N347)","v":""},{"$f":"IF(ISBLANK('TA Indicator Bank'!O347),\"\",'TA Indicator Bank'!O347)","v":""},{"$f":"IF(ISBLANK('TA Indicator Bank'!P347),\"\",'TA Indicator Bank'!P347)","v":""},{"$f":"IF(ISBLANK('TA Indicator Bank'!Q347),\"\",'TA Indicator Bank'!Q347)","v":""},{"$f":"IF(ISBLANK('TA Indicator Bank'!R347),\"\",'TA Indicator Bank'!R347)","v":""},{"$f":"IF(ISBLANK('TA Indicator Bank'!S347),\"\",'TA Indicator Bank'!S347)","v":""},{"$f":"IF(ISBLANK('TA Indicator Bank'!T347),\"\",'TA Indicator Bank'!T347)","v":""},{"$f":"IF(ISBLANK('TA Indicator Bank'!U347),\"\",'TA Indicator Bank'!U347)","v":""},{"$f":"IF(ISBLANK('TA Indicator Bank'!V347),\"\",'TA Indicator Bank'!V347)","v":""},{"$f":"IF(ISBLANK('TA Indicator Bank'!W347),\"\",'TA Indicator Bank'!W347)","v":""},{"$f":"IF(ISBLANK('TA Indicator Bank'!X347),\"\",'TA Indicator Bank'!X347)","v":""},{"$f":"IF(ISBLANK('TA Indicator Bank'!Y347),\"\",'TA Indicator Bank'!Y347)","v":""},{"$f":"IF(ISBLANK('TA Indicator Bank'!Z347),\"\",'TA Indicator Bank'!Z347)","v":""},{"$f":"IF(ISBLANK('TA Indicator Bank'!AA347),\"\",'TA Indicator Bank'!AA347)","v":""},{"$f":"IF(ISBLANK('TA Indicator Bank'!AB347),\"\",'TA Indicator Bank'!AB347)","v":""},{"$f":"IF(ISBLANK('TA Indicator Bank'!AC347),\"\",'TA Indicator Bank'!AC347)","v":""},{"$f":"IF(ISBLANK('TA Indicator Bank'!AD347),\"\",'TA Indicator Bank'!AD347)","v":""},{"$f":"IF(ISBLANK('TA Indicator Bank'!AE347),\"\",'TA Indicator Bank'!AE347)","v":""},{"$f":"IF(ISBLANK('TA Indicator Bank'!AF347),\"\",'TA Indicator Bank'!AF347)","v":""},{"$f":"IF(ISBLANK('TA Indicator Bank'!AG347),\"\",'TA Indicator Bank'!AG347)","v":""},{"$f":"IF(ISBLANK('TA Indicator Bank'!AH347),\"\",'TA Indicator Bank'!AH347)","v":""},{"$f":"IF(ISBLANK('TA Indicator Bank'!AI347),\"\",'TA Indicator Bank'!AI347)","v":""},{"$f":"IF(ISBLANK('TA Indicator Bank'!AJ347),\"\",'TA Indicator Bank'!AJ347)","v":""},{"$f":"IF(ISBLANK('TA Indicator Bank'!AK347),\"\",'TA Indicator Bank'!AK347)","v":""},{"$f":"IF(ISBLANK('TA Indicator Bank'!AL347),\"\",'TA Indicator Bank'!AL347)","v":""},{"$f":"IF(ISBLANK('TA Indicator Bank'!AM347),\"\",'TA Indicator Bank'!AM347)","v":""},{"$f":"IF(ISBLANK('TA Indicator Bank'!AN347),\"\",'TA Indicator Bank'!AN347)","v":""},{"$f":"IF(ISBLANK('TA Indicator Bank'!AO347),\"\",'TA Indicator Bank'!AO347)","v":""},{"$f":"IF(ISBLANK('TA Indicator Bank'!AP347),\"\",'TA Indicator Bank'!AP347)","v":""},{"$f":"IF(ISBLANK('TA Indicator Bank'!AQ347),\"\",'TA Indicator Bank'!AQ347)","v":""},{"$f":"IF(ISBLANK('TA Indicator Bank'!AR347),\"\",'TA Indicator Bank'!AR347)","v":""},{"$f":"IF(ISBLANK('TA Indicator Bank'!AS347),\"\",'TA Indicator Bank'!AS347)","v":""},{"$f":"IF(ISBLANK('TA Indicator Bank'!AT347),\"\",'TA Indicator Bank'!AT347)","v":""},0,0,0,0,0,0,0,0,0,0,0,0,0,0,1,0,0,0,0,0,0,0,0,0,1,0,0,0,0,0,0,0,0,0,1,0,0,0,0,0,1,1,343,343,"",{"$f":"IFERROR(INDEX($B$9:$I$408,$CM494,COLUMNS($CN$9:CN494)),\"\")","v":""},{"$f":"IFERROR(INDEX($B$9:$I$408,$CM494,COLUMNS($CN$9:CO494)),\"\")","v":""},{"$f":"IFERROR(INDEX($B$9:$I$408,$CM494,COLUMNS($CN$9:CP494)),\"\")","v":""},{"$f":"IFERROR(INDEX($B$9:$I$408,$CM494,COLUMNS($CN$9:CQ494)),\"\")","v":""},{"$f":"IFERROR(INDEX($B$9:$I$408,$CM494,COLUMNS($CN$9:CR494)),\"\")","v":""},{"$f":"IFERROR(INDEX($B$9:$I$408,$CM494,COLUMNS($CN$9:CS494)),\"\")","v":""},{"$f":"IFERROR(INDEX($B$9:$I$408,$CM494,COLUMNS($CN$9:CT494)),\"\")","v":""},{"$f":"IFERROR(INDEX($B$9:$I$408,$CM494,COLUMNS($CN$9:CU494)),\"\")","v":""}]
[null,{"$f":"IF(ISBLANK('TA Indicator Bank'!B348),\"\",'TA Indicator Bank'!B348)","v":""},{"$f":"IF(ISBLANK('TA Indicator Bank'!C348),\"\",'TA Indicator Bank'!C348)","v":""},{"$f":"IF(ISBLANK('TA Indicator Bank'!D348),\"\",'TA Indicator Bank'!D348)","v":""},{"$f":"IF(ISBLANK('TA Indicator Bank'!E348),\"\",'TA Indicator Bank'!E348)","v":""},{"$f":"IF(ISBLANK('TA Indicator Bank'!F348),\"\",'TA Indicator Bank'!F348)","v":""},{"$f":"IF(ISBLANK('TA Indicator Bank'!G348),\"\",'TA Indicator Bank'!G348)","v":""},{"$f":"IF(ISBLANK('TA Indicator Bank'!H348),\"\",'TA Indicator Bank'!H348)","v":""},{"$f":"IF(ISBLANK('TA Indicator Bank'!I348),\"\",'TA Indicator Bank'!I348)","v":""},{"$f":"IF(ISBLANK('TA Indicator Bank'!J348),\"\",'TA Indicator Bank'!J348)","v":""},{"$f":"IF(ISBLANK('TA Indicator Bank'!K348),\"\",'TA Indicator Bank'!K348)","v":""},{"$f":"IF(ISBLANK('TA Indicator Bank'!L348),\"\",'TA Indicator Bank'!L348)","v":""},{"$f":"IF(ISBLANK('TA Indicator Bank'!M348),\"\",'TA Indicator Bank'!M348)","v":""},{"$f":"IF(ISBLANK('TA Indicator Bank'!N348),\"\",'TA Indicator Bank'!N348)","v":""},{"$f":"IF(ISBLANK('TA Indicator Bank'!O348),\"\",'TA Indicator Bank'!O348)","v":""},{"$f":"IF(ISBLANK('TA Indicator Bank'!P348),\"\",'TA Indicator Bank'!P348)","v":""},{"$f":"IF(ISBLANK('TA Indicator Bank'!Q348),\"\",'TA Indicator Bank'!Q348)","v":""},{"$f":"IF(ISBLANK('TA Indicator Bank'!R348),\"\",'TA Indicator Bank'!R348)","v":""},{"$f":"IF(ISBLANK('TA Indicator Bank'!S348),\"\",'TA Indicator Bank'!S348)","v":""},{"$f":"IF(ISBLANK('TA Indicator Bank'!T348),\"\",'TA Indicator Bank'!T348)","v":""},{"$f":"IF(ISBLANK('TA Indicator Bank'!U348),\"\",'TA Indicator Bank'!U348)","v":""},{"$f":"IF(ISBLANK('TA Indicator Bank'!V348),\"\",'TA Indicator Bank'!V348)","v":""},{"$f":"IF(ISBLANK('TA Indicator Bank'!W348),\"\",'TA Indicator Bank'!W348)","v":""},{"$f":"IF(ISBLANK('TA Indicator Bank'!X348),\"\",'TA Indicator Bank'!X348)","v":""},{"$f":"IF(ISBLANK('TA Indicator Bank'!Y348),\"\",'TA Indicator Bank'!Y348)","v":""},{"$f":"IF(ISBLANK('TA Indicator Bank'!Z348),\"\",'TA Indicator Bank'!Z348)","v":""},{"$f":"IF(ISBLANK('TA Indicator Bank'!AA348),\"\",'TA Indicator Bank'!AA348)","v":""},{"$f":"IF(ISBLANK('TA Indicator Bank'!AB348),\"\",'TA Indicator Bank'!AB348)","v":""},{"$f":"IF(ISBLANK('TA Indicator Bank'!AC348),\"\",'TA Indicator Bank'!AC348)","v":""},{"$f":"IF(ISBLANK('TA Indicator Bank'!AD348),\"\",'TA Indicator Bank'!AD348)","v":""},{"$f":"IF(ISBLANK('TA Indicator Bank'!AE348),\"\",'TA Indicator Bank'!AE348)","v":""},{"$f":"IF(ISBLANK('TA Indicator Bank'!AF348),\"\",'TA Indicator Bank'!AF348)","v":""},{"$f":"IF(ISBLANK('TA Indicator Bank'!AG348),\"\",'TA Indicator Bank'!AG348)","v":""},{"$f":"IF(ISBLANK('TA Indicator Bank'!AH348),\"\",'TA Indicator Bank'!AH348)","v":""},{"$f":"IF(ISBLANK('TA Indicator Bank'!AI348),\"\",'TA Indicator Bank'!AI348)","v":""},{"$f":"IF(ISBLANK('TA Indicator Bank'!AJ348),\"\",'TA Indicator Bank'!AJ348)","v":""},{"$f":"IF(ISBLANK('TA Indicator Bank'!AK348),\"\",'TA Indicator Bank'!AK348)","v":""},{"$f":"IF(ISBLANK('TA Indicator Bank'!AL348),\"\",'TA Indicator Bank'!AL348)","v":""},{"$f":"IF(ISBLANK('TA Indicator Bank'!AM348),\"\",'TA Indicator Bank'!AM348)","v":""},{"$f":"IF(ISBLANK('TA Indicator Bank'!AN348),\"\",'TA Indicator Bank'!AN348)","v":""},{"$f":"IF(ISBLANK('TA Indicator Bank'!AO348),\"\",'TA Indicator Bank'!AO348)","v":""},{"$f":"IF(ISBLANK('TA Indicator Bank'!AP348),\"\",'TA Indicator Bank'!AP348)","v":""},{"$f":"IF(ISBLANK('TA Indicator Bank'!AQ348),\"\",'TA Indicator Bank'!AQ348)","v":""},{"$f":"IF(ISBLANK('TA Indicator Bank'!AR348),\"\",'TA Indicator Bank'!AR348)","v":""},{"$f":"IF(ISBLANK('TA Indicator Bank'!AS348),\"\",'TA Indicator Bank'!AS348)","v":""},{"$f":"IF(ISBLANK('TA Indicator Bank'!AT348),\"\",'TA Indicator Bank'!AT348)","v":""},0,0,0,0,0,0,0,0,0,0,0,0,0,0,1,0,0,0,0,0,0,0,0,0,1,0,0,0,0,0,0,0,0,0,1,0,0,0,0,0,1,1,344,344,"",{"$f":"IFERROR(INDEX($B$9:$I$408,$CM495,COLUMNS($CN$9:CN495)),\"\")","v":""},{"$f":"IFERROR(INDEX($B$9:$I$408,$CM495,COLUMNS($CN$9:CO495)),\"\")","v":""},{"$f":"IFERROR(INDEX($B$9:$I$408,$CM495,COLUMNS($CN$9:CP495)),\"\")","v":""},{"$f":"IFERROR(INDEX($B$9:$I$408,$CM495,COLUMNS($CN$9:CQ495)),\"\")","v":""},{"$f":"IFERROR(INDEX($B$9:$I$408,$CM495,COLUMNS($CN$9:CR495)),\"\")","v":""},{"$f":"IFERROR(INDEX($B$9:$I$408,$CM495,COLUMNS($CN$9:CS495)),\"\")","v":""},{"$f":"IFERROR(INDEX($B$9:$I$408,$CM495,COLUMNS($CN$9:CT495)),\"\")","v":""},{"$f":"IFERROR(INDEX($B$9:$I$408,$CM495,COLUMNS($CN$9:CU495)),\"\")","v":""}]
[null,{"$f":"IF(ISBLANK('TA Indicator Bank'!B349),\"\",'TA Indicator Bank'!B349)","v":""},{"$f":"IF(ISBLANK('TA Indicator Bank'!C349),\"\",'TA Indicator Bank'!C349)","v":""},{"$f":"IF(ISBLANK('TA Indicator Bank'!D349),\"\",'TA Indicator Bank'!D349)","v":""},{"$f":"IF(ISBLANK('TA Indicator Bank'!E349),\"\",'TA Indicator Bank'!E349)","v":""},{"$f":"IF(ISBLANK('TA Indicator Bank'!F349),\"\",'TA Indicator Bank'!F349)","v":""},{"$f":"IF(ISBLANK('TA Indicator Bank'!G349),\"\",'TA Indicator Bank'!G349)","v":""},{"$f":"IF(ISBLANK('TA Indicator Bank'!H349),\"\",'TA Indicator Bank'!H349)","v":""},{"$f":"IF(ISBLANK('TA Indicator Bank'!I349),\"\",'TA Indicator Bank'!I349)","v":""},{"$f":"IF(ISBLANK('TA Indicator Bank'!J349),\"\",'TA Indicator Bank'!J349)","v":""},{"$f":"IF(ISBLANK('TA Indicator Bank'!K349),\"\",'TA Indicator Bank'!K349)","v":""},{"$f":"IF(ISBLANK('TA Indicator Bank'!L349),\"\",'TA Indicator Bank'!L349)","v":""},{"$f":"IF(ISBLANK('TA Indicator Bank'!M349),\"\",'TA Indicator Bank'!M349)","v":""},{"$f":"IF(ISBLANK('TA Indicator Bank'!N349),\"\",'TA Indicator Bank'!N349)","v":""},{"$f":"IF(ISBLANK('TA Indicator Bank'!O349),\"\",'TA Indicator Bank'!O349)","v":""},{"$f":"IF(ISBLANK('TA Indicator Bank'!P349),\"\",'TA Indicator Bank'!P349)","v":""},{"$f":"IF(ISBLANK('TA Indicator Bank'!Q349),\"\",'TA Indicator Bank'!Q349)","v":""},{"$f":"IF(ISBLANK('TA Indicator Bank'!R349),\"\",'TA Indicator Bank'!R349)","v":""},{"$f":"IF(ISBLANK('TA Indicator Bank'!S349),\"\",'TA Indicator Bank'!S349)","v":""},{"$f":"IF(ISBLANK('TA Indicator Bank'!T349),\"\",'TA Indicator Bank'!T349)","v":""},{"$f":"IF(ISBLANK('TA Indicator Bank'!U349),\"\",'TA Indicator Bank'!U349)","v":""},{"$f":"IF(ISBLANK('TA Indicator Bank'!V349),\"\",'TA Indicator Bank'!V349)","v":""},{"$f":"IF(ISBLANK('TA Indicator Bank'!W349),\"\",'TA Indicator Bank'!W349)","v":""},{"$f":"IF(ISBLANK('TA Indicator Bank'!X349),\"\",'TA Indicator Bank'!X349)","v":""},{"$f":"IF(ISBLANK('TA Indicator Bank'!Y349),\"\",'TA Indicator Bank'!Y349)","v":""},{"$f":"IF(ISBLANK('TA Indicator Bank'!Z349),\"\",'TA Indicator Bank'!Z349)","v":""},{"$f":"IF(ISBLANK('TA Indicator Bank'!AA349),\"\",'TA Indicator Bank'!AA349)","v":""},{"$f":"IF(ISBLANK('TA Indicator Bank'!AB349),\"\",'TA Indicator Bank'!AB349)","v":""},{"$f":"IF(ISBLANK('TA Indicator Bank'!AC349),\"\",'TA Indicator Bank'!AC349)","v":""},{"$f":"IF(ISBLANK('TA Indicator Bank'!AD349),\"\",'TA Indicator Bank'!AD349)","v":""},{"$f":"IF(ISBLANK('TA Indicator Bank'!AE349),\"\",'TA Indicator Bank'!AE349)","v":""},{"$f":"IF(ISBLANK('TA Indicator Bank'!AF349),\"\",'TA Indicator Bank'!AF349)","v":""},{"$f":"IF(ISBLANK('TA Indicator Bank'!AG349),\"\",'TA Indicator Bank'!AG349)","v":""},{"$f":"IF(ISBLANK('TA Indicator Bank'!AH349),\"\",'TA Indicator Bank'!AH349)","v":""},{"$f":"IF(ISBLANK('TA Indicator Bank'!AI349),\"\",'TA Indicator Bank'!AI349)","v":""},{"$f":"IF(ISBLANK('TA Indicator Bank'!AJ349),\"\",'TA Indicator Bank'!AJ349)","v":""},{"$f":"IF(ISBLANK('TA Indicator Bank'!AK349),\"\",'TA Indicator Bank'!AK349)","v":""},{"$f":"IF(ISBLANK('TA Indicator Bank'!AL349),\"\",'TA Indicator Bank'!AL349)","v":""},{"$f":"IF(ISBLANK('TA Indicator Bank'!AM349),\"\",'TA Indicator Bank'!AM349)","v":""},{"$f":"IF(ISBLANK('TA Indicator Bank'!AN349),\"\",'TA Indicator Bank'!AN349)","v":""},{"$f":"IF(ISBLANK('TA Indicator Bank'!AO349),\"\",'TA Indicator Bank'!AO349)","v":""},{"$f":"IF(ISBLANK('TA Indicator Bank'!AP349),\"\",'TA Indicator Bank'!AP349)","v":""},{"$f":"IF(ISBLANK('TA Indicator Bank'!AQ349),\"\",'TA Indicator Bank'!AQ349)","v":""},{"$f":"IF(ISBLANK('TA Indicator Bank'!AR349),\"\",'TA Indicator Bank'!AR349)","v":""},{"$f":"IF(ISBLANK('TA Indicator Bank'!AS349),\"\",'TA Indicator Bank'!AS349)","v":""},{"$f":"IF(ISBLANK('TA Indicator Bank'!AT349),\"\",'TA Indicator Bank'!AT349)","v":""},0,0,0,0,0,0,0,0,0,0,0,0,0,0,1,0,0,0,0,0,0,0,0,0,1,0,0,0,0,0,0,0,0,0,1,0,0,0,0,0,1,1,345,345,"",{"$f":"IFERROR(INDEX($B$9:$I$408,$CM496,COLUMNS($CN$9:CN496)),\"\")","v":""},{"$f":"IFERROR(INDEX($B$9:$I$408,$CM496,COLUMNS($CN$9:CO496)),\"\")","v":""},{"$f":"IFERROR(INDEX($B$9:$I$408,$CM496,COLUMNS($CN$9:CP496)),\"\")","v":""},{"$f":"IFERROR(INDEX($B$9:$I$408,$CM496,COLUMNS($CN$9:CQ496)),\"\")","v":""},{"$f":"IFERROR(INDEX($B$9:$I$408,$CM496,COLUMNS($CN$9:CR496)),\"\")","v":""},{"$f":"IFERROR(INDEX($B$9:$I$408,$CM496,COLUMNS($CN$9:CS496)),\"\")","v":""},{"$f":"IFERROR(INDEX($B$9:$I$408,$CM496,COLUMNS($CN$9:CT496)),\"\")","v":""},{"$f":"IFERROR(INDEX($B$9:$I$408,$CM496,COLUMNS($CN$9:CU496)),\"\")","v":""}]
[null,{"$f":"IF(ISBLANK('TA Indicator Bank'!B350),\"\",'TA Indicator Bank'!B350)","v":""},{"$f":"IF(ISBLANK('TA Indicator Bank'!C350),\"\",'TA Indicator Bank'!C350)","v":""},{"$f":"IF(ISBLANK('TA Indicator Bank'!D350),\"\",'TA Indicator Bank'!D350)","v":""},{"$f":"IF(ISBLANK('TA Indicator Bank'!E350),\"\",'TA Indicator Bank'!E350)","v":""},{"$f":"IF(ISBLANK('TA Indicator Bank'!F350),\"\",'TA Indicator Bank'!F350)","v":""},{"$f":"IF(ISBLANK('TA Indicator Bank'!G350),\"\",'TA Indicator Bank'!G350)","v":""},{"$f":"IF(ISBLANK('TA Indicator Bank'!H350),\"\",'TA Indicator Bank'!H350)","v":""},{"$f":"IF(ISBLANK('TA Indicator Bank'!I350),\"\",'TA Indicator Bank'!I350)","v":""},{"$f":"IF(ISBLANK('TA Indicator Bank'!J350),\"\",'TA Indicator Bank'!J350)","v":""},{"$f":"IF(ISBLANK('TA Indicator Bank'!K350),\"\",'TA Indicator Bank'!K350)","v":""},{"$f":"IF(ISBLANK('TA Indicator Bank'!L350),\"\",'TA Indicator Bank'!L350)","v":""},{"$f":"IF(ISBLANK('TA Indicator Bank'!M350),\"\",'TA Indicator Bank'!M350)","v":""},{"$f":"IF(ISBLANK('TA Indicator Bank'!N350),\"\",'TA Indicator Bank'!N350)","v":""},{"$f":"IF(ISBLANK('TA Indicator Bank'!O350),\"\",'TA Indicator Bank'!O350)","v":""},{"$f":"IF(ISBLANK('TA Indicator Bank'!P350),\"\",'TA Indicator Bank'!P350)","v":""},{"$f":"IF(ISBLANK('TA Indicator Bank'!Q350),\"\",'TA Indicator Bank'!Q350)","v":""},{"$f":"IF(ISBLANK('TA Indicator Bank'!R350),\"\",'TA Indicator Bank'!R350)","v":""},{"$f":"IF(ISBLANK('TA Indicator Bank'!S350),\"\",'TA Indicator Bank'!S350)","v":""},{"$f":"IF(ISBLANK('TA Indicator Bank'!T350),\"\",'TA Indicator Bank'!T350)","v":""},{"$f":"IF(ISBLANK('TA Indicator Bank'!U350),\"\",'TA Indicator Bank'!U350)","v":""},{"$f":"IF(ISBLANK('TA Indicator Bank'!V350),\"\",'TA Indicator Bank'!V350)","v":""},{"$f":"IF(ISBLANK('TA Indicator Bank'!W350),\"\",'TA Indicator Bank'!W350)","v":""},{"$f":"IF(ISBLANK('TA Indicator Bank'!X350),\"\",'TA Indicator Bank'!X350)","v":""},{"$f":"IF(ISBLANK('TA Indicator Bank'!Y350),\"\",'TA Indicator Bank'!Y350)","v":""},{"$f":"IF(ISBLANK('TA Indicator Bank'!Z350),\"\",'TA Indicator Bank'!Z350)","v":""},{"$f":"IF(ISBLANK('TA Indicator Bank'!AA350),\"\",'TA Indicator Bank'!AA350)","v":""},{"$f":"IF(ISBLANK('TA Indicator Bank'!AB350),\"\",'TA Indicator Bank'!AB350)","v":""},{"$f":"IF(ISBLANK('TA Indicator Bank'!AC350),\"\",'TA Indicator Bank'!AC350)","v":""},{"$f":"IF(ISBLANK('TA Indicator Bank'!AD350),\"\",'TA Indicator Bank'!AD350)","v":""},{"$f":"IF(ISBLANK('TA Indicator Bank'!AE350),\"\",'TA Indicator Bank'!AE350)","v":""},{"$f":"IF(ISBLANK('TA Indicator Bank'!AF350),\"\",'TA Indicator Bank'!AF350)","v":""},{"$f":"IF(ISBLANK('TA Indicator Bank'!AG350),\"\",'TA Indicator Bank'!AG350)","v":""},{"$f":"IF(ISBLANK('TA Indicator Bank'!AH350),\"\",'TA Indicator Bank'!AH350)","v":""},{"$f":"IF(ISBLANK('TA Indicator Bank'!AI350),\"\",'TA Indicator Bank'!AI350)","v":""},{"$f":"IF(ISBLANK('TA Indicator Bank'!AJ350),\"\",'TA Indicator Bank'!AJ350)","v":""},{"$f":"IF(ISBLANK('TA Indicator Bank'!AK350),\"\",'TA Indicator Bank'!AK350)","v":""},{"$f":"IF(ISBLANK('TA Indicator Bank'!AL350),\"\",'TA Indicator Bank'!AL350)","v":""},{"$f":"IF(ISBLANK('TA Indicator Bank'!AM350),\"\",'TA Indicator Bank'!AM350)","v":""},{"$f":"IF(ISBLANK('TA Indicator Bank'!AN350),\"\",'TA Indicator Bank'!AN350)","v":""},{"$f":"IF(ISBLANK('TA Indicator Bank'!AO350),\"\",'TA Indicator Bank'!AO350)","v":""},{"$f":"IF(ISBLANK('TA Indicator Bank'!AP350),\"\",'TA Indicator Bank'!AP350)","v":""},{"$f":"IF(ISBLANK('TA Indicator Bank'!AQ350),\"\",'TA Indicator Bank'!AQ350)","v":""},{"$f":"IF(ISBLANK('TA Indicator Bank'!AR350),\"\",'TA Indicator Bank'!AR350)","v":""},{"$f":"IF(ISBLANK('TA Indicator Bank'!AS350),\"\",'TA Indicator Bank'!AS350)","v":""},{"$f":"IF(ISBLANK('TA Indicator Bank'!AT350),\"\",'TA Indicator Bank'!AT350)","v":""},0,0,0,0,0,0,0,0,0,0,0,0,0,0,1,0,0,0,0,0,0,0,0,0,1,0,0,0,0,0,0,0,0,0,1,0,0,0,0,0,1,1,346,346,"",{"$f":"IFERROR(INDEX($B$9:$I$408,$CM497,COLUMNS($CN$9:CN497)),\"\")","v":""},{"$f":"IFERROR(INDEX($B$9:$I$408,$CM497,COLUMNS($CN$9:CO497)),\"\")","v":""},{"$f":"IFERROR(INDEX($B$9:$I$408,$CM497,COLUMNS($CN$9:CP497)),\"\")","v":""},{"$f":"IFERROR(INDEX($B$9:$I$408,$CM497,COLUMNS($CN$9:CQ497)),\"\")","v":""},{"$f":"IFERROR(INDEX($B$9:$I$408,$CM497,COLUMNS($CN$9:CR497)),\"\")","v":""},{"$f":"IFERROR(INDEX($B$9:$I$408,$CM497,COLUMNS($CN$9:CS497)),\"\")","v":""},{"$f":"IFERROR(INDEX($B$9:$I$408,$CM497,COLUMNS($CN$9:CT497)),\"\")","v":""},{"$f":"IFERROR(INDEX($B$9:$I$408,$CM497,COLUMNS($CN$9:CU497)),\"\")","v":""}]
[null,{"$f":"IF(ISBLANK('TA Indicator Bank'!B351),\"\",'TA Indicator Bank'!B351)","v":""},{"$f":"IF(ISBLANK('TA Indicator Bank'!C351),\"\",'TA Indicator Bank'!C351)","v":""},{"$f":"IF(ISBLANK('TA Indicator Bank'!D351),\"\",'TA Indicator Bank'!D351)","v":""},{"$f":"IF(ISBLANK('TA Indicator Bank'!E351),\"\",'TA Indicator Bank'!E351)","v":""},{"$f":"IF(ISBLANK('TA Indicator Bank'!F351),\"\",'TA Indicator Bank'!F351)","v":""},{"$f":"IF(ISBLANK('TA Indicator Bank'!G351),\"\",'TA Indicator Bank'!G351)","v":""},{"$f":"IF(ISBLANK('TA Indicator Bank'!H351),\"\",'TA Indicator Bank'!H351)","v":""},{"$f":"IF(ISBLANK('TA Indicator Bank'!I351),\"\",'TA Indicator Bank'!I351)","v":""},{"$f":"IF(ISBLANK('TA Indicator Bank'!J351),\"\",'TA Indicator Bank'!J351)","v":""},{"$f":"IF(ISBLANK('TA Indicator Bank'!K351),\"\",'TA Indicator Bank'!K351)","v":""},{"$f":"IF(ISBLANK('TA Indicator Bank'!L351),\"\",'TA Indicator Bank'!L351)","v":""},{"$f":"IF(ISBLANK('TA Indicator Bank'!M351),\"\",'TA Indicator Bank'!M351)","v":""},{"$f":"IF(ISBLANK('TA Indicator Bank'!N351),\"\",'TA Indicator Bank'!N351)","v":""},{"$f":"IF(ISBLANK('TA Indicator Bank'!O351),\"\",'TA Indicator Bank'!O351)","v":""},{"$f":"IF(ISBLANK('TA Indicator Bank'!P351),\"\",'TA Indicator Bank'!P351)","v":""},{"$f":"IF(ISBLANK('TA Indicator Bank'!Q351),\"\",'TA Indicator Bank'!Q351)","v":""},{"$f":"IF(ISBLANK('TA Indicator Bank'!R351),\"\",'TA Indicator Bank'!R351)","v":""},{"$f":"IF(ISBLANK('TA Indicator Bank'!S351),\"\",'TA Indicator Bank'!S351)","v":""},{"$f":"IF(ISBLANK('TA Indicator Bank'!T351),\"\",'TA Indicator Bank'!T351)","v":""},{"$f":"IF(ISBLANK('TA Indicator Bank'!U351),\"\",'TA Indicator Bank'!U351)","v":""},{"$f":"IF(ISBLANK('TA Indicator Bank'!V351),\"\",'TA Indicator Bank'!V351)","v":""},{"$f":"IF(ISBLANK('TA Indicator Bank'!W351),\"\",'TA Indicator Bank'!W351)","v":""},{"$f":"IF(ISBLANK('TA Indicator Bank'!X351),\"\",'TA Indicator Bank'!X351)","v":""},{"$f":"IF(ISBLANK('TA Indicator Bank'!Y351),\"\",'TA Indicator Bank'!Y351)","v":""},{"$f":"IF(ISBLANK('TA Indicator Bank'!Z351),\"\",'TA Indicator Bank'!Z351)","v":""},{"$f":"IF(ISBLANK('TA Indicator Bank'!AA351),\"\",'TA Indicator Bank'!AA351)","v":""},{"$f":"IF(ISBLANK('TA Indicator Bank'!AB351),\"\",'TA Indicator Bank'!AB351)","v":""},{"$f":"IF(ISBLANK('TA Indicator Bank'!AC351),\"\",'TA Indicator Bank'!AC351)","v":""},{"$f":"IF(ISBLANK('TA Indicator Bank'!AD351),\"\",'TA Indicator Bank'!AD351)","v":""},{"$f":"IF(ISBLANK('TA Indicator Bank'!AE351),\"\",'TA Indicator Bank'!AE351)","v":""},{"$f":"IF(ISBLANK('TA Indicator Bank'!AF351),\"\",'TA Indicator Bank'!AF351)","v":""},{"$f":"IF(ISBLANK('TA Indicator Bank'!AG351),\"\",'TA Indicator Bank'!AG351)","v":""},{"$f":"IF(ISBLANK('TA Indicator Bank'!AH351),\"\",'TA Indicator Bank'!AH351)","v":""},{"$f":"IF(ISBLANK('TA Indicator Bank'!AI351),\"\",'TA Indicator Bank'!AI351)","v":""},{"$f":"IF(ISBLANK('TA Indicator Bank'!AJ351),\"\",'TA Indicator Bank'!AJ351)","v":""},{"$f":"IF(ISBLANK('TA Indicator Bank'!AK351),\"\",'TA Indicator Bank'!AK351)","v":""},{"$f":"IF(ISBLANK('TA Indicator Bank'!AL351),\"\",'TA Indicator Bank'!AL351)","v":""},{"$f":"IF(ISBLANK('TA Indicator Bank'!AM351),\"\",'TA Indicator Bank'!AM351)","v":""},{"$f":"IF(ISBLANK('TA Indicator Bank'!AN351),\"\",'TA Indicator Bank'!AN351)","v":""},{"$f":"IF(ISBLANK('TA Indicator Bank'!AO351),\"\",'TA Indicator Bank'!AO351)","v":""},{"$f":"IF(ISBLANK('TA Indicator Bank'!AP351),\"\",'TA Indicator Bank'!AP351)","v":""},{"$f":"IF(ISBLANK('TA Indicator Bank'!AQ351),\"\",'TA Indicator Bank'!AQ351)","v":""},{"$f":"IF(ISBLANK('TA Indicator Bank'!AR351),\"\",'TA Indicator Bank'!AR351)","v":""},{"$f":"IF(ISBLANK('TA Indicator Bank'!AS351),\"\",'TA Indicator Bank'!AS351)","v":""},{"$f":"IF(ISBLANK('TA Indicator Bank'!AT351),\"\",'TA Indicator Bank'!AT351)","v":""},0,0,0,0,0,0,0,0,0,0,0,0,0,0,1,0,0,0,0,0,0,0,0,0,1,0,0,0,0,0,0,0,0,0,1,0,0,0,0,0,1,1,347,347,"",{"$f":"IFERROR(INDEX($B$9:$I$408,$CM498,COLUMNS($CN$9:CN498)),\"\")","v":""},{"$f":"IFERROR(INDEX($B$9:$I$408,$CM498,COLUMNS($CN$9:CO498)),\"\")","v":""},{"$f":"IFERROR(INDEX($B$9:$I$408,$CM498,COLUMNS($CN$9:CP498)),\"\")","v":""},{"$f":"IFERROR(INDEX($B$9:$I$408,$CM498,COLUMNS($CN$9:CQ498)),\"\")","v":""},{"$f":"IFERROR(INDEX($B$9:$I$408,$CM498,COLUMNS($CN$9:CR498)),\"\")","v":""},{"$f":"IFERROR(INDEX($B$9:$I$408,$CM498,COLUMNS($CN$9:CS498)),\"\")","v":""},{"$f":"IFERROR(INDEX($B$9:$I$408,$CM498,COLUMNS($CN$9:CT498)),\"\")","v":""},{"$f":"IFERROR(INDEX($B$9:$I$408,$CM498,COLUMNS($CN$9:CU498)),\"\")","v":""}]
[null,{"$f":"IF(ISBLANK('TA Indicator Bank'!B352),\"\",'TA Indicator Bank'!B352)","v":""},{"$f":"IF(ISBLANK('TA Indicator Bank'!C352),\"\",'TA Indicator Bank'!C352)","v":""},{"$f":"IF(ISBLANK('TA Indicator Bank'!D352),\"\",'TA Indicator Bank'!D352)","v":""},{"$f":"IF(ISBLANK('TA Indicator Bank'!E352),\"\",'TA Indicator Bank'!E352)","v":""},{"$f":"IF(ISBLANK('TA Indicator Bank'!F352),\"\",'TA Indicator Bank'!F352)","v":""},{"$f":"IF(ISBLANK('TA Indicator Bank'!G352),\"\",'TA Indicator Bank'!G352)","v":""},{"$f":"IF(ISBLANK('TA Indicator Bank'!H352),\"\",'TA Indicator Bank'!H352)","v":""},{"$f":"IF(ISBLANK('TA Indicator Bank'!I352),\"\",'TA Indicator Bank'!I352)","v":""},{"$f":"IF(ISBLANK('TA Indicator Bank'!J352),\"\",'TA Indicator Bank'!J352)","v":""},{"$f":"IF(ISBLANK('TA Indicator Bank'!K352),\"\",'TA Indicator Bank'!K352)","v":""},{"$f":"IF(ISBLANK('TA Indicator Bank'!L352),\"\",'TA Indicator Bank'!L352)","v":""},{"$f":"IF(ISBLANK('TA Indicator Bank'!M352),\"\",'TA Indicator Bank'!M352)","v":""},{"$f":"IF(ISBLANK('TA Indicator Bank'!N352),\"\",'TA Indicator Bank'!N352)","v":""},{"$f":"IF(ISBLANK('TA Indicator Bank'!O352),\"\",'TA Indicator Bank'!O352)","v":""},{"$f":"IF(ISBLANK('TA Indicator Bank'!P352),\"\",'TA Indicator Bank'!P352)","v":""},{"$f":"IF(ISBLANK('TA Indicator Bank'!Q352),\"\",'TA Indicator Bank'!Q352)","v":""},{"$f":"IF(ISBLANK('TA Indicator Bank'!R352),\"\",'TA Indicator Bank'!R352)","v":""},{"$f":"IF(ISBLANK('TA Indicator Bank'!S352),\"\",'TA Indicator Bank'!S352)","v":""},{"$f":"IF(ISBLANK('TA Indicator Bank'!T352),\"\",'TA Indicator Bank'!T352)","v":""},{"$f":"IF(ISBLANK('TA Indicator Bank'!U352),\"\",'TA Indicator Bank'!U352)","v":""},{"$f":"IF(ISBLANK('TA Indicator Bank'!V352),\"\",'TA Indicator Bank'!V352)","v":""},{"$f":"IF(ISBLANK('TA Indicator Bank'!W352),\"\",'TA Indicator Bank'!W352)","v":""},{"$f":"IF(ISBLANK('TA Indicator Bank'!X352),\"\",'TA Indicator Bank'!X352)","v":""},{"$f":"IF(ISBLANK('TA Indicator Bank'!Y352),\"\",'TA Indicator Bank'!Y352)","v":""},{"$f":"IF(ISBLANK('TA Indicator Bank'!Z352),\"\",'TA Indicator Bank'!Z352)","v":""},{"$f":"IF(ISBLANK('TA Indicator Bank'!AA352),\"\",'TA Indicator Bank'!AA352)","v":""},{"$f":"IF(ISBLANK('TA Indicator Bank'!AB352),\"\",'TA Indicator Bank'!AB352)","v":""},{"$f":"IF(ISBLANK('TA Indicator Bank'!AC352),\"\",'TA Indicator Bank'!AC352)","v":""},{"$f":"IF(ISBLANK('TA Indicator Bank'!AD352),\"\",'TA Indicator Bank'!AD352)","v":""},{"$f":"IF(ISBLANK('TA Indicator Bank'!AE352),\"\",'TA Indicator Bank'!AE352)","v":""},{"$f":"IF(ISBLANK('TA Indicator Bank'!AF352),\"\",'TA Indicator Bank'!AF352)","v":""},{"$f":"IF(ISBLANK('TA Indicator Bank'!AG352),\"\",'TA Indicator Bank'!AG352)","v":""},{"$f":"IF(ISBLANK('TA Indicator Bank'!AH352),\"\",'TA Indicator Bank'!AH352)","v":""},{"$f":"IF(ISBLANK('TA Indicator Bank'!AI352),\"\",'TA Indicator Bank'!AI352)","v":""},{"$f":"IF(ISBLANK('TA Indicator Bank'!AJ352),\"\",'TA Indicator Bank'!AJ352)","v":""},{"$f":"IF(ISBLANK('TA Indicator Bank'!AK352),\"\",'TA Indicator Bank'!AK352)","v":""},{"$f":"IF(ISBLANK('TA Indicator Bank'!AL352),\"\",'TA Indicator Bank'!AL352)","v":""},{"$f":"IF(ISBLANK('TA Indicator Bank'!AM352),\"\",'TA Indicator Bank'!AM352)","v":""},{"$f":"IF(ISBLANK('TA Indicator Bank'!AN352),\"\",'TA Indicator Bank'!AN352)","v":""},{"$f":"IF(ISBLANK('TA Indicator Bank'!AO352),\"\",'TA Indicator Bank'!AO352)","v":""},{"$f":"IF(ISBLANK('TA Indicator Bank'!AP352),\"\",'TA Indicator Bank'!AP352)","v":""},{"$f":"IF(ISBLANK('TA Indicator Bank'!AQ352),\"\",'TA Indicator Bank'!AQ352)","v":""},{"$f":"IF(ISBLANK('TA Indicator Bank'!AR352),\"\",'TA Indicator Bank'!AR352)","v":""},{"$f":"IF(ISBLANK('TA Indicator Bank'!AS352),\"\",'TA Indicator Bank'!AS352)","v":""},{"$f":"IF(ISBLANK('TA Indicator Bank'!AT352),\"\",'TA Indicator Bank'!AT352)","v":""},0,0,0,0,0,0,0,0,0,0,0,0,0,0,1,0,0,0,0,0,0,0,0,0,1,0,0,0,0,0,0,0,0,0,1,0,0,0,0,0,1,1,348,348,"",{"$f":"IFERROR(INDEX($B$9:$I$408,$CM499,COLUMNS($CN$9:CN499)),\"\")","v":""},{"$f":"IFERROR(INDEX($B$9:$I$408,$CM499,COLUMNS($CN$9:CO499)),\"\")","v":""},{"$f":"IFERROR(INDEX($B$9:$I$408,$CM499,COLUMNS($CN$9:CP499)),\"\")","v":""},{"$f":"IFERROR(INDEX($B$9:$I$408,$CM499,COLUMNS($CN$9:CQ499)),\"\")","v":""},{"$f":"IFERROR(INDEX($B$9:$I$408,$CM499,COLUMNS($CN$9:CR499)),\"\")","v":""},{"$f":"IFERROR(INDEX($B$9:$I$408,$CM499,COLUMNS($CN$9:CS499)),\"\")","v":""},{"$f":"IFERROR(INDEX($B$9:$I$408,$CM499,COLUMNS($CN$9:CT499)),\"\")","v":""},{"$f":"IFERROR(INDEX($B$9:$I$408,$CM499,COLUMNS($CN$9:CU499)),\"\")","v":""}]
[null,{"$f":"IF(ISBLANK('TA Indicator Bank'!B353),\"\",'TA Indicator Bank'!B353)","v":""},{"$f":"IF(ISBLANK('TA Indicator Bank'!C353),\"\",'TA Indicator Bank'!C353)","v":""},{"$f":"IF(ISBLANK('TA Indicator Bank'!D353),\"\",'TA Indicator Bank'!D353)","v":""},{"$f":"IF(ISBLANK('TA Indicator Bank'!E353),\"\",'TA Indicator Bank'!E353)","v":""},{"$f":"IF(ISBLANK('TA Indicator Bank'!F353),\"\",'TA Indicator Bank'!F353)","v":""},{"$f":"IF(ISBLANK('TA Indicator Bank'!G353),\"\",'TA Indicator Bank'!G353)","v":""},{"$f":"IF(ISBLANK('TA Indicator Bank'!H353),\"\",'TA Indicator Bank'!H353)","v":""},{"$f":"IF(ISBLANK('TA Indicator Bank'!I353),\"\",'TA Indicator Bank'!I353)","v":""},{"$f":"IF(ISBLANK('TA Indicator Bank'!J353),\"\",'TA Indicator Bank'!J353)","v":""},{"$f":"IF(ISBLANK('TA Indicator Bank'!K353),\"\",'TA Indicator Bank'!K353)","v":""},{"$f":"IF(ISBLANK('TA Indicator Bank'!L353),\"\",'TA Indicator Bank'!L353)","v":""},{"$f":"IF(ISBLANK('TA Indicator Bank'!M353),\"\",'TA Indicator Bank'!M353)","v":""},{"$f":"IF(ISBLANK('TA Indicator Bank'!N353),\"\",'TA Indicator Bank'!N353)","v":""},{"$f":"IF(ISBLANK('TA Indicator Bank'!O353),\"\",'TA Indicator Bank'!O353)","v":""},{"$f":"IF(ISBLANK('TA Indicator Bank'!P353),\"\",'TA Indicator Bank'!P353)","v":""},{"$f":"IF(ISBLANK('TA Indicator Bank'!Q353),\"\",'TA Indicator Bank'!Q353)","v":""},{"$f":"IF(ISBLANK('TA Indicator Bank'!R353),\"\",'TA Indicator Bank'!R353)","v":""},{"$f":"IF(ISBLANK('TA Indicator Bank'!S353),\"\",'TA Indicator Bank'!S353)","v":""},{"$f":"IF(ISBLANK('TA Indicator Bank'!T353),\"\",'TA Indicator Bank'!T353)","v":""},{"$f":"IF(ISBLANK('TA Indicator Bank'!U353),\"\",'TA Indicator Bank'!U353)","v":""},{"$f":"IF(ISBLANK('TA Indicator Bank'!V353),\"\",'TA Indicator Bank'!V353)","v":""},{"$f":"IF(ISBLANK('TA Indicator Bank'!W353),\"\",'TA Indicator Bank'!W353)","v":""},{"$f":"IF(ISBLANK('TA Indicator Bank'!X353),\"\",'TA Indicator Bank'!X353)","v":""},{"$f":"IF(ISBLANK('TA Indicator Bank'!Y353),\"\",'TA Indicator Bank'!Y353)","v":""},{"$f":"IF(ISBLANK('TA Indicator Bank'!Z353),\"\",'TA Indicator Bank'!Z353)","v":""},{"$f":"IF(ISBLANK('TA Indicator Bank'!AA353),\"\",'TA Indicator Bank'!AA353)","v":""},{"$f":"IF(ISBLANK('TA Indicator Bank'!AB353),\"\",'TA Indicator Bank'!AB353)","v":""},{"$f":"IF(ISBLANK('TA Indicator Bank'!AC353),\"\",'TA Indicator Bank'!AC353)","v":""},{"$f":"IF(ISBLANK('TA Indicator Bank'!AD353),\"\",'TA Indicator Bank'!AD353)","v":""},{"$f":"IF(ISBLANK('TA Indicator Bank'!AE353),\"\",'TA Indicator Bank'!AE353)","v":""},{"$f":"IF(ISBLANK('TA Indicator Bank'!AF353),\"\",'TA Indicator Bank'!AF353)","v":""},{"$f":"IF(ISBLANK('TA Indicator Bank'!AG353),\"\",'TA Indicator Bank'!AG353)","v":""},{"$f":"IF(ISBLANK('TA Indicator Bank'!AH353),\"\",'TA Indicator Bank'!AH353)","v":""},{"$f":"IF(ISBLANK('TA Indicator Bank'!AI353),\"\",'TA Indicator Bank'!AI353)","v":""},{"$f":"IF(ISBLANK('TA Indicator Bank'!AJ353),\"\",'TA Indicator Bank'!AJ353)","v":""},{"$f":"IF(ISBLANK('TA Indicator Bank'!AK353),\"\",'TA Indicator Bank'!AK353)","v":""},{"$f":"IF(ISBLANK('TA Indicator Bank'!AL353),\"\",'TA Indicator Bank'!AL353)","v":""},{"$f":"IF(ISBLANK('TA Indicator Bank'!AM353),\"\",'TA Indicator Bank'!AM353)","v":""},{"$f":"IF(ISBLANK('TA Indicator Bank'!AN353),\"\",'TA Indicator Bank'!AN353)","v":""},{"$f":"IF(ISBLANK('TA Indicator Bank'!AO353),\"\",'TA Indicator Bank'!AO353)","v":""},{"$f":"IF(ISBLANK('TA Indicator Bank'!AP353),\"\",'TA Indicator Bank'!AP353)","v":""},{"$f":"IF(ISBLANK('TA Indicator Bank'!AQ353),\"\",'TA Indicator Bank'!AQ353)","v":""},{"$f":"IF(ISBLANK('TA Indicator Bank'!AR353),\"\",'TA Indicator Bank'!AR353)","v":""},{"$f":"IF(ISBLANK('TA Indicator Bank'!AS353),\"\",'TA Indicator Bank'!AS353)","v":""},{"$f":"IF(ISBLANK('TA Indicator Bank'!AT353),\"\",'TA Indicator Bank'!AT353)","v":""},0,0,0,0,0,0,0,0,0,0,0,0,0,0,1,0,0,0,0,0,0,0,0,0,1,0,0,0,0,0,0,0,0,0,1,0,0,0,0,0,1,1,349,349,"",{"$f":"IFERROR(INDEX($B$9:$I$408,$CM500,COLUMNS($CN$9:CN500)),\"\")","v":""},{"$f":"IFERROR(INDEX($B$9:$I$408,$CM500,COLUMNS($CN$9:CO500)),\"\")","v":""},{"$f":"IFERROR(INDEX($B$9:$I$408,$CM500,COLUMNS($CN$9:CP500)),\"\")","v":""},{"$f":"IFERROR(INDEX($B$9:$I$408,$CM500,COLUMNS($CN$9:CQ500)),\"\")","v":""},{"$f":"IFERROR(INDEX($B$9:$I$408,$CM500,COLUMNS($CN$9:CR500)),\"\")","v":""},{"$f":"IFERROR(INDEX($B$9:$I$408,$CM500,COLUMNS($CN$9:CS500)),\"\")","v":""},{"$f":"IFERROR(INDEX($B$9:$I$408,$CM500,COLUMNS($CN$9:CT500)),\"\")","v":""},{"$f":"IFERROR(INDEX($B$9:$I$408,$CM500,COLUMNS($CN$9:CU500)),\"\")","v":""}]
[null,{"$f":"IF(ISBLANK('TA Indicator Bank'!B354),\"\",'TA Indicator Bank'!B354)","v":""},{"$f":"IF(ISBLANK('TA Indicator Bank'!C354),\"\",'TA Indicator Bank'!C354)","v":""},{"$f":"IF(ISBLANK('TA Indicator Bank'!D354),\"\",'TA Indicator Bank'!D354)","v":""},{"$f":"IF(ISBLANK('TA Indicator Bank'!E354),\"\",'TA Indicator Bank'!E354)","v":""},{"$f":"IF(ISBLANK('TA Indicator Bank'!F354),\"\",'TA Indicator Bank'!F354)","v":""},{"$f":"IF(ISBLANK('TA Indicator Bank'!G354),\"\",'TA Indicator Bank'!G354)","v":""},{"$f":"IF(ISBLANK('TA Indicator Bank'!H354),\"\",'TA Indicator Bank'!H354)","v":""},{"$f":"IF(ISBLANK('TA Indicator Bank'!I354),\"\",'TA Indicator Bank'!I354)","v":""},{"$f":"IF(ISBLANK('TA Indicator Bank'!J354),\"\",'TA Indicator Bank'!J354)","v":""},{"$f":"IF(ISBLANK('TA Indicator Bank'!K354),\"\",'TA Indicator Bank'!K354)","v":""},{"$f":"IF(ISBLANK('TA Indicator Bank'!L354),\"\",'TA Indicator Bank'!L354)","v":""},{"$f":"IF(ISBLANK('TA Indicator Bank'!M354),\"\",'TA Indicator Bank'!M354)","v":""},{"$f":"IF(ISBLANK('TA Indicator Bank'!N354),\"\",'TA Indicator Bank'!N354)","v":""},{"$f":"IF(ISBLANK('TA Indicator Bank'!O354),\"\",'TA Indicator Bank'!O354)","v":""},{"$f":"IF(ISBLANK('TA Indicator Bank'!P354),\"\",'TA Indicator Bank'!P354)","v":""},{"$f":"IF(ISBLANK('TA Indicator Bank'!Q354),\"\",'TA Indicator Bank'!Q354)","v":""},{"$f":"IF(ISBLANK('TA Indicator Bank'!R354),\"\",'TA Indicator Bank'!R354)","v":""},{"$f":"IF(ISBLANK('TA Indicator Bank'!S354),\"\",'TA Indicator Bank'!S354)","v":""},{"$f":"IF(ISBLANK('TA Indicator Bank'!T354),\"\",'TA Indicator Bank'!T354)","v":""},{"$f":"IF(ISBLANK('TA Indicator Bank'!U354),\"\",'TA Indicator Bank'!U354)","v":""},{"$f":"IF(ISBLANK('TA Indicator Bank'!V354),\"\",'TA Indicator Bank'!V354)","v":""},{"$f":"IF(ISBLANK('TA Indicator Bank'!W354),\"\",'TA Indicator Bank'!W354)","v":""},{"$f":"IF(ISBLANK('TA Indicator Bank'!X354),\"\",'TA Indicator Bank'!X354)","v":""},{"$f":"IF(ISBLANK('TA Indicator Bank'!Y354),\"\",'TA Indicator Bank'!Y354)","v":""},{"$f":"IF(ISBLANK('TA Indicator Bank'!Z354),\"\",'TA Indicator Bank'!Z354)","v":""},{"$f":"IF(ISBLANK('TA Indicator Bank'!AA354),\"\",'TA Indicator Bank'!AA354)","v":""},{"$f":"IF(ISBLANK('TA Indicator Bank'!AB354),\"\",'TA Indicator Bank'!AB354)","v":""},{"$f":"IF(ISBLANK('TA Indicator Bank'!AC354),\"\",'TA Indicator Bank'!AC354)","v":""},{"$f":"IF(ISBLANK('TA Indicator Bank'!AD354),\"\",'TA Indicator Bank'!AD354)","v":""},{"$f":"IF(ISBLANK('TA Indicator Bank'!AE354),\"\",'TA Indicator Bank'!AE354)","v":""},{"$f":"IF(ISBLANK('TA Indicator Bank'!AF354),\"\",'TA Indicator Bank'!AF354)","v":""},{"$f":"IF(ISBLANK('TA Indicator Bank'!AG354),\"\",'TA Indicator Bank'!AG354)","v":""},{"$f":"IF(ISBLANK('TA Indicator Bank'!AH354),\"\",'TA Indicator Bank'!AH354)","v":""},{"$f":"IF(ISBLANK('TA Indicator Bank'!AI354),\"\",'TA Indicator Bank'!AI354)","v":""},{"$f":"IF(ISBLANK('TA Indicator Bank'!AJ354),\"\",'TA Indicator Bank'!AJ354)","v":""},{"$f":"IF(ISBLANK('TA Indicator Bank'!AK354),\"\",'TA Indicator Bank'!AK354)","v":""},{"$f":"IF(ISBLANK('TA Indicator Bank'!AL354),\"\",'TA Indicator Bank'!AL354)","v":""},{"$f":"IF(ISBLANK('TA Indicator Bank'!AM354),\"\",'TA Indicator Bank'!AM354)","v":""},{"$f":"IF(ISBLANK('TA Indicator Bank'!AN354),\"\",'TA Indicator Bank'!AN354)","v":""},{"$f":"IF(ISBLANK('TA Indicator Bank'!AO354),\"\",'TA Indicator Bank'!AO354)","v":""},{"$f":"IF(ISBLANK('TA Indicator Bank'!AP354),\"\",'TA Indicator Bank'!AP354)","v":""},{"$f":"IF(ISBLANK('TA Indicator Bank'!AQ354),\"\",'TA Indicator Bank'!AQ354)","v":""},{"$f":"IF(ISBLANK('TA Indicator Bank'!AR354),\"\",'TA Indicator Bank'!AR354)","v":""},{"$f":"IF(ISBLANK('TA Indicator Bank'!AS354),\"\",'TA Indicator Bank'!AS354)","v":""},{"$f":"IF(ISBLANK('TA Indicator Bank'!AT354),\"\",'TA Indicator Bank'!AT354)","v":""},0,0,0,0,0,0,0,0,0,0,0,0,0,0,1,0,0,0,0,0,0,0,0,0,1,0,0,0,0,0,0,0,0,0,1,0,0,0,0,0,1,1,350,350,"",{"$f":"IFERROR(INDEX($B$9:$I$408,$CM501,COLUMNS($CN$9:CN501)),\"\")","v":""},{"$f":"IFERROR(INDEX($B$9:$I$408,$CM501,COLUMNS($CN$9:CO501)),\"\")","v":""},{"$f":"IFERROR(INDEX($B$9:$I$408,$CM501,COLUMNS($CN$9:CP501)),\"\")","v":""},{"$f":"IFERROR(INDEX($B$9:$I$408,$CM501,COLUMNS($CN$9:CQ501)),\"\")","v":""},{"$f":"IFERROR(INDEX($B$9:$I$408,$CM501,COLUMNS($CN$9:CR501)),\"\")","v":""},{"$f":"IFERROR(INDEX($B$9:$I$408,$CM501,COLUMNS($CN$9:CS501)),\"\")","v":""},{"$f":"IFERROR(INDEX($B$9:$I$408,$CM501,COLUMNS($CN$9:CT501)),\"\")","v":""},{"$f":"IFERROR(INDEX($B$9:$I$408,$CM501,COLUMNS($CN$9:CU501)),\"\")","v":""}]
[null,{"$f":"IF(ISBLANK('TA Indicator Bank'!B355),\"\",'TA Indicator Bank'!B355)","v":""},{"$f":"IF(ISBLANK('TA Indicator Bank'!C355),\"\",'TA Indicator Bank'!C355)","v":""},{"$f":"IF(ISBLANK('TA Indicator Bank'!D355),\"\",'TA Indicator Bank'!D355)","v":""},{"$f":"IF(ISBLANK('TA Indicator Bank'!E355),\"\",'TA Indicator Bank'!E355)","v":""},{"$f":"IF(ISBLANK('TA Indicator Bank'!F355),\"\",'TA Indicator Bank'!F355)","v":""},{"$f":"IF(ISBLANK('TA Indicator Bank'!G355),\"\",'TA Indicator Bank'!G355)","v":""},{"$f":"IF(ISBLANK('TA Indicator Bank'!H355),\"\",'TA Indicator Bank'!H355)","v":""},{"$f":"IF(ISBLANK('TA Indicator Bank'!I355),\"\",'TA Indicator Bank'!I355)","v":""},{"$f":"IF(ISBLANK('TA Indicator Bank'!J355),\"\",'TA Indicator Bank'!J355)","v":""},{"$f":"IF(ISBLANK('TA Indicator Bank'!K355),\"\",'TA Indicator Bank'!K355)","v":""},{"$f":"IF(ISBLANK('TA Indicator Bank'!L355),\"\",'TA Indicator Bank'!L355)","v":""},{"$f":"IF(ISBLANK('TA Indicator Bank'!M355),\"\",'TA Indicator Bank'!M355)","v":""},{"$f":"IF(ISBLANK('TA Indicator Bank'!N355),\"\",'TA Indicator Bank'!N355)","v":""},{"$f":"IF(ISBLANK('TA Indicator Bank'!O355),\"\",'TA Indicator Bank'!O355)","v":""},{"$f":"IF(ISBLANK('TA Indicator Bank'!P355),\"\",'TA Indicator Bank'!P355)","v":""},{"$f":"IF(ISBLANK('TA Indicator Bank'!Q355),\"\",'TA Indicator Bank'!Q355)","v":""},{"$f":"IF(ISBLANK('TA Indicator Bank'!R355),\"\",'TA Indicator Bank'!R355)","v":""},{"$f":"IF(ISBLANK('TA Indicator Bank'!S355),\"\",'TA Indicator Bank'!S355)","v":""},{"$f":"IF(ISBLANK('TA Indicator Bank'!T355),\"\",'TA Indicator Bank'!T355)","v":""},{"$f":"IF(ISBLANK('TA Indicator Bank'!U355),\"\",'TA Indicator Bank'!U355)","v":""},{"$f":"IF(ISBLANK('TA Indicator Bank'!V355),\"\",'TA Indicator Bank'!V355)","v":""},{"$f":"IF(ISBLANK('TA Indicator Bank'!W355),\"\",'TA Indicator Bank'!W355)","v":""},{"$f":"IF(ISBLANK('TA Indicator Bank'!X355),\"\",'TA Indicator Bank'!X355)","v":""},{"$f":"IF(ISBLANK('TA Indicator Bank'!Y355),\"\",'TA Indicator Bank'!Y355)","v":""},{"$f":"IF(ISBLANK('TA Indicator Bank'!Z355),\"\",'TA Indicator Bank'!Z355)","v":""},{"$f":"IF(ISBLANK('TA Indicator Bank'!AA355),\"\",'TA Indicator Bank'!AA355)","v":""},{"$f":"IF(ISBLANK('TA Indicator Bank'!AB355),\"\",'TA Indicator Bank'!AB355)","v":""},{"$f":"IF(ISBLANK('TA Indicator Bank'!AC355),\"\",'TA Indicator Bank'!AC355)","v":""},{"$f":"IF(ISBLANK('TA Indicator Bank'!AD355),\"\",'TA Indicator Bank'!AD355)","v":""},{"$f":"IF(ISBLANK('TA Indicator Bank'!AE355),\"\",'TA Indicator Bank'!AE355)","v":""},{"$f":"IF(ISBLANK('TA Indicator Bank'!AF355),\"\",'TA Indicator Bank'!AF355)","v":""},{"$f":"IF(ISBLANK('TA Indicator Bank'!AG355),\"\",'TA Indicator Bank'!AG355)","v":""},{"$f":"IF(ISBLANK('TA Indicator Bank'!AH355),\"\",'TA Indicator Bank'!AH355)","v":""},{"$f":"IF(ISBLANK('TA Indicator Bank'!AI355),\"\",'TA Indicator Bank'!AI355)","v":""},{"$f":"IF(ISBLANK('TA Indicator Bank'!AJ355),\"\",'TA Indicator Bank'!AJ355)","v":""},{"$f":"IF(ISBLANK('TA Indicator Bank'!AK355),\"\",'TA Indicator Bank'!AK355)","v":""},{"$f":"IF(ISBLANK('TA Indicator Bank'!AL355),\"\",'TA Indicator Bank'!AL355)","v":""},{"$f":"IF(ISBLANK('TA Indicator Bank'!AM355),\"\",'TA Indicator Bank'!AM355)","v":""},{"$f":"IF(ISBLANK('TA Indicator Bank'!AN355),\"\",'TA Indicator Bank'!AN355)","v":""},{"$f":"IF(ISBLANK('TA Indicator Bank'!AO355),\"\",'TA Indicator Bank'!AO355)","v":""},{"$f":"IF(ISBLANK('TA Indicator Bank'!AP355),\"\",'TA Indicator Bank'!AP355)","v":""},{"$f":"IF(ISBLANK('TA Indicator Bank'!AQ355),\"\",'TA Indicator Bank'!AQ355)","v":""},{"$f":"IF(ISBLANK('TA Indicator Bank'!AR355),\"\",'TA Indicator Bank'!AR355)","v":""},{"$f":"IF(ISBLANK('TA Indicator Bank'!AS355),\"\",'TA Indicator Bank'!AS355)","v":""},{"$f":"IF(ISBLANK('TA Indicator Bank'!AT355),\"\",'TA Indicator Bank'!AT355)","v":""},0,0,0,0,0,0,0,0,0,0,0,0,0,0,1,0,0,0,0,0,0,0,0,0,1,0,0,0,0,0,0,0,0,0,1,0,0,0,0,0,1,1,351,351,"",{"$f":"IFERROR(INDEX($B$9:$I$408,$CM502,COLUMNS($CN$9:CN502)),\"\")","v":""},{"$f":"IFERROR(INDEX($B$9:$I$408,$CM502,COLUMNS($CN$9:CO502)),\"\")","v":""},{"$f":"IFERROR(INDEX($B$9:$I$408,$CM502,COLUMNS($CN$9:CP502)),\"\")","v":""},{"$f":"IFERROR(INDEX($B$9:$I$408,$CM502,COLUMNS($CN$9:CQ502)),\"\")","v":""},{"$f":"IFERROR(INDEX($B$9:$I$408,$CM502,COLUMNS($CN$9:CR502)),\"\")","v":""},{"$f":"IFERROR(INDEX($B$9:$I$408,$CM502,COLUMNS($CN$9:CS502)),\"\")","v":""},{"$f":"IFERROR(INDEX($B$9:$I$408,$CM502,COLUMNS($CN$9:CT502)),\"\")","v":""},{"$f":"IFERROR(INDEX($B$9:$I$408,$CM502,COLUMNS($CN$9:CU502)),\"\")","v":""}]
[null,{"$f":"IF(ISBLANK('TA Indicator Bank'!B356),\"\",'TA Indicator Bank'!B356)","v":""},{"$f":"IF(ISBLANK('TA Indicator Bank'!C356),\"\",'TA Indicator Bank'!C356)","v":""},{"$f":"IF(ISBLANK('TA Indicator Bank'!D356),\"\",'TA Indicator Bank'!D356)","v":""},{"$f":"IF(ISBLANK('TA Indicator Bank'!E356),\"\",'TA Indicator Bank'!E356)","v":""},{"$f":"IF(ISBLANK('TA Indicator Bank'!F356),\"\",'TA Indicator Bank'!F356)","v":""},{"$f":"IF(ISBLANK('TA Indicator Bank'!G356),\"\",'TA Indicator Bank'!G356)","v":""},{"$f":"IF(ISBLANK('TA Indicator Bank'!H356),\"\",'TA Indicator Bank'!H356)","v":""},{"$f":"IF(ISBLANK('TA Indicator Bank'!I356),\"\",'TA Indicator Bank'!I356)","v":""},{"$f":"IF(ISBLANK('TA Indicator Bank'!J356),\"\",'TA Indicator Bank'!J356)","v":""},{"$f":"IF(ISBLANK('TA Indicator Bank'!K356),\"\",'TA Indicator Bank'!K356)","v":""},{"$f":"IF(ISBLANK('TA Indicator Bank'!L356),\"\",'TA Indicator Bank'!L356)","v":""},{"$f":"IF(ISBLANK('TA Indicator Bank'!M356),\"\",'TA Indicator Bank'!M356)","v":""},{"$f":"IF(ISBLANK('TA Indicator Bank'!N356),\"\",'TA Indicator Bank'!N356)","v":""},{"$f":"IF(ISBLANK('TA Indicator Bank'!O356),\"\",'TA Indicator Bank'!O356)","v":""},{"$f":"IF(ISBLANK('TA Indicator Bank'!P356),\"\",'TA Indicator Bank'!P356)","v":""},{"$f":"IF(ISBLANK('TA Indicator Bank'!Q356),\"\",'TA Indicator Bank'!Q356)","v":""},{"$f":"IF(ISBLANK('TA Indicator Bank'!R356),\"\",'TA Indicator Bank'!R356)","v":""},{"$f":"IF(ISBLANK('TA Indicator Bank'!S356),\"\",'TA Indicator Bank'!S356)","v":""},{"$f":"IF(ISBLANK('TA Indicator Bank'!T356),\"\",'TA Indicator Bank'!T356)","v":""},{"$f":"IF(ISBLANK('TA Indicator Bank'!U356),\"\",'TA Indicator Bank'!U356)","v":""},{"$f":"IF(ISBLANK('TA Indicator Bank'!V356),\"\",'TA Indicator Bank'!V356)","v":""},{"$f":"IF(ISBLANK('TA Indicator Bank'!W356),\"\",'TA Indicator Bank'!W356)","v":""},{"$f":"IF(ISBLANK('TA Indicator Bank'!X356),\"\",'TA Indicator Bank'!X356)","v":""},{"$f":"IF(ISBLANK('TA Indicator Bank'!Y356),\"\",'TA Indicator Bank'!Y356)","v":""},{"$f":"IF(ISBLANK('TA Indicator Bank'!Z356),\"\",'TA Indicator Bank'!Z356)","v":""},{"$f":"IF(ISBLANK('TA Indicator Bank'!AA356),\"\",'TA Indicator Bank'!AA356)","v":""},{"$f":"IF(ISBLANK('TA Indicator Bank'!AB356),\"\",'TA Indicator Bank'!AB356)","v":""},{"$f":"IF(ISBLANK('TA Indicator Bank'!AC356),\"\",'TA Indicator Bank'!AC356)","v":""},{"$f":"IF(ISBLANK('TA Indicator Bank'!AD356),\"\",'TA Indicator Bank'!AD356)","v":""},{"$f":"IF(ISBLANK('TA Indicator Bank'!AE356),\"\",'TA Indicator Bank'!AE356)","v":""},{"$f":"IF(ISBLANK('TA Indicator Bank'!AF356),\"\",'TA Indicator Bank'!AF356)","v":""},{"$f":"IF(ISBLANK('TA Indicator Bank'!AG356),\"\",'TA Indicator Bank'!AG356)","v":""},{"$f":"IF(ISBLANK('TA Indicator Bank'!AH356),\"\",'TA Indicator Bank'!AH356)","v":""},{"$f":"IF(ISBLANK('TA Indicator Bank'!AI356),\"\",'TA Indicator Bank'!AI356)","v":""},{"$f":"IF(ISBLANK('TA Indicator Bank'!AJ356),\"\",'TA Indicator Bank'!AJ356)","v":""},{"$f":"IF(ISBLANK('TA Indicator Bank'!AK356),\"\",'TA Indicator Bank'!AK356)","v":""},{"$f":"IF(ISBLANK('TA Indicator Bank'!AL356),\"\",'TA Indicator Bank'!AL356)","v":""},{"$f":"IF(ISBLANK('TA Indicator Bank'!AM356),\"\",'TA Indicator Bank'!AM356)","v":""},{"$f":"IF(ISBLANK('TA Indicator Bank'!AN356),\"\",'TA Indicator Bank'!AN356)","v":""},{"$f":"IF(ISBLANK('TA Indicator Bank'!AO356),\"\",'TA Indicator Bank'!AO356)","v":""},{"$f":"IF(ISBLANK('TA Indicator Bank'!AP356),\"\",'TA Indicator Bank'!AP356)","v":""},{"$f":"IF(ISBLANK('TA Indicator Bank'!AQ356),\"\",'TA Indicator Bank'!AQ356)","v":""},{"$f":"IF(ISBLANK('TA Indicator Bank'!AR356),\"\",'TA Indicator Bank'!AR356)","v":""},{"$f":"IF(ISBLANK('TA Indicator Bank'!AS356),\"\",'TA Indicator Bank'!AS356)","v":""},{"$f":"IF(ISBLANK('TA Indicator Bank'!AT356),\"\",'TA Indicator Bank'!AT356)","v":""},0,0,0,0,0,0,0,0,0,0,0,0,0,0,1,0,0,0,0,0,0,0,0,0,1,0,0,0,0,0,0,0,0,0,1,0,0,0,0,0,1,1,352,352,"",{"$f":"IFERROR(INDEX($B$9:$I$408,$CM503,COLUMNS($CN$9:CN503)),\"\")","v":""},{"$f":"IFERROR(INDEX($B$9:$I$408,$CM503,COLUMNS($CN$9:CO503)),\"\")","v":""},{"$f":"IFERROR(INDEX($B$9:$I$408,$CM503,COLUMNS($CN$9:CP503)),\"\")","v":""},{"$f":"IFERROR(INDEX($B$9:$I$408,$CM503,COLUMNS($CN$9:CQ503)),\"\")","v":""},{"$f":"IFERROR(INDEX($B$9:$I$408,$CM503,COLUMNS($CN$9:CR503)),\"\")","v":""},{"$f":"IFERROR(INDEX($B$9:$I$408,$CM503,COLUMNS($CN$9:CS503)),\"\")","v":""},{"$f":"IFERROR(INDEX($B$9:$I$408,$CM503,COLUMNS($CN$9:CT503)),\"\")","v":""},{"$f":"IFERROR(INDEX($B$9:$I$408,$CM503,COLUMNS($CN$9:CU503)),\"\")","v":""}]
[null,{"$f":"IF(ISBLANK('TA Indicator Bank'!B357),\"\",'TA Indicator Bank'!B357)","v":""},{"$f":"IF(ISBLANK('TA Indicator Bank'!C357),\"\",'TA Indicator Bank'!C357)","v":""},{"$f":"IF(ISBLANK('TA Indicator Bank'!D357),\"\",'TA Indicator Bank'!D357)","v":""},{"$f":"IF(ISBLANK('TA Indicator Bank'!E357),\"\",'TA Indicator Bank'!E357)","v":""},{"$f":"IF(ISBLANK('TA Indicator Bank'!F357),\"\",'TA Indicator Bank'!F357)","v":""},{"$f":"IF(ISBLANK('TA Indicator Bank'!G357),\"\",'TA Indicator Bank'!G357)","v":""},{"$f":"IF(ISBLANK('TA Indicator Bank'!H357),\"\",'TA Indicator Bank'!H357)","v":""},{"$f":"IF(ISBLANK('TA Indicator Bank'!I357),\"\",'TA Indicator Bank'!I357)","v":""},{"$f":"IF(ISBLANK('TA Indicator Bank'!J357),\"\",'TA Indicator Bank'!J357)","v":""},{"$f":"IF(ISBLANK('TA Indicator Bank'!K357),\"\",'TA Indicator Bank'!K357)","v":""},{"$f":"IF(ISBLANK('TA Indicator Bank'!L357),\"\",'TA Indicator Bank'!L357)","v":""},{"$f":"IF(ISBLANK('TA Indicator Bank'!M357),\"\",'TA Indicator Bank'!M357)","v":""},{"$f":"IF(ISBLANK('TA Indicator Bank'!N357),\"\",'TA Indicator Bank'!N357)","v":""},{"$f":"IF(ISBLANK('TA Indicator Bank'!O357),\"\",'TA Indicator Bank'!O357)","v":""},{"$f":"IF(ISBLANK('TA Indicator Bank'!P357),\"\",'TA Indicator Bank'!P357)","v":""},{"$f":"IF(ISBLANK('TA Indicator Bank'!Q357),\"\",'TA Indicator Bank'!Q357)","v":""},{"$f":"IF(ISBLANK('TA Indicator Bank'!R357),\"\",'TA Indicator Bank'!R357)","v":""},{"$f":"IF(ISBLANK('TA Indicator Bank'!S357),\"\",'TA Indicator Bank'!S357)","v":""},{"$f":"IF(ISBLANK('TA Indicator Bank'!T357),\"\",'TA Indicator Bank'!T357)","v":""},{"$f":"IF(ISBLANK('TA Indicator Bank'!U357),\"\",'TA Indicator Bank'!U357)","v":""},{"$f":"IF(ISBLANK('TA Indicator Bank'!V357),\"\",'TA Indicator Bank'!V357)","v":""},{"$f":"IF(ISBLANK('TA Indicator Bank'!W357),\"\",'TA Indicator Bank'!W357)","v":""},{"$f":"IF(ISBLANK('TA Indicator Bank'!X357),\"\",'TA Indicator Bank'!X357)","v":""},{"$f":"IF(ISBLANK('TA Indicator Bank'!Y357),\"\",'TA Indicator Bank'!Y357)","v":""},{"$f":"IF(ISBLANK('TA Indicator Bank'!Z357),\"\",'TA Indicator Bank'!Z357)","v":""},{"$f":"IF(ISBLANK('TA Indicator Bank'!AA357),\"\",'TA Indicator Bank'!AA357)","v":""},{"$f":"IF(ISBLANK('TA Indicator Bank'!AB357),\"\",'TA Indicator Bank'!AB357)","v":""},{"$f":"IF(ISBLANK('TA Indicator Bank'!AC357),\"\",'TA Indicator Bank'!AC357)","v":""},{"$f":"IF(ISBLANK('TA Indicator Bank'!AD357),\"\",'TA Indicator Bank'!AD357)","v":""},{"$f":"IF(ISBLANK('TA Indicator Bank'!AE357),\"\",'TA Indicator Bank'!AE357)","v":""},{"$f":"IF(ISBLANK('TA Indicator Bank'!AF357),\"\",'TA Indicator Bank'!AF357)","v":""},{"$f":"IF(ISBLANK('TA Indicator Bank'!AG357),\"\",'TA Indicator Bank'!AG357)","v":""},{"$f":"IF(ISBLANK('TA Indicator Bank'!AH357),\"\",'TA Indicator Bank'!AH357)","v":""},{"$f":"IF(ISBLANK('TA Indicator Bank'!AI357),\"\",'TA Indicator Bank'!AI357)","v":""},{"$f":"IF(ISBLANK('TA Indicator Bank'!AJ357),\"\",'TA Indicator Bank'!AJ357)","v":""},{"$f":"IF(ISBLANK('TA Indicator Bank'!AK357),\"\",'TA Indicator Bank'!AK357)","v":""},{"$f":"IF(ISBLANK('TA Indicator Bank'!AL357),\"\",'TA Indicator Bank'!AL357)","v":""},{"$f":"IF(ISBLANK('TA Indicator Bank'!AM357),\"\",'TA Indicator Bank'!AM357)","v":""},{"$f":"IF(ISBLANK('TA Indicator Bank'!AN357),\"\",'TA Indicator Bank'!AN357)","v":""},{"$f":"IF(ISBLANK('TA Indicator Bank'!AO357),\"\",'TA Indicator Bank'!AO357)","v":""},{"$f":"IF(ISBLANK('TA Indicator Bank'!AP357),\"\",'TA Indicator Bank'!AP357)","v":""},{"$f":"IF(ISBLANK('TA Indicator Bank'!AQ357),\"\",'TA Indicator Bank'!AQ357)","v":""},{"$f":"IF(ISBLANK('TA Indicator Bank'!AR357),\"\",'TA Indicator Bank'!AR357)","v":""},{"$f":"IF(ISBLANK('TA Indicator Bank'!AS357),\"\",'TA Indicator Bank'!AS357)","v":""},{"$f":"IF(ISBLANK('TA Indicator Bank'!AT357),\"\",'TA Indicator Bank'!AT357)","v":""},0,0,0,0,0,0,0,0,0,0,0,0,0,0,1,0,0,0,0,0,0,0,0,0,1,0,0,0,0,0,0,0,0,0,1,0,0,0,0,0,1,1,353,353,"",{"$f":"IFERROR(INDEX($B$9:$I$408,$CM504,COLUMNS($CN$9:CN504)),\"\")","v":""},{"$f":"IFERROR(INDEX($B$9:$I$408,$CM504,COLUMNS($CN$9:CO504)),\"\")","v":""},{"$f":"IFERROR(INDEX($B$9:$I$408,$CM504,COLUMNS($CN$9:CP504)),\"\")","v":""},{"$f":"IFERROR(INDEX($B$9:$I$408,$CM504,COLUMNS($CN$9:CQ504)),\"\")","v":""},{"$f":"IFERROR(INDEX($B$9:$I$408,$CM504,COLUMNS($CN$9:CR504)),\"\")","v":""},{"$f":"IFERROR(INDEX($B$9:$I$408,$CM504,COLUMNS($CN$9:CS504)),\"\")","v":""},{"$f":"IFERROR(INDEX($B$9:$I$408,$CM504,COLUMNS($CN$9:CT504)),\"\")","v":""},{"$f":"IFERROR(INDEX($B$9:$I$408,$CM504,COLUMNS($CN$9:CU504)),\"\")","v":""}]
[null,{"$f":"IF(ISBLANK('TA Indicator Bank'!B358),\"\",'TA Indicator Bank'!B358)","v":""},{"$f":"IF(ISBLANK('TA Indicator Bank'!C358),\"\",'TA Indicator Bank'!C358)","v":""},{"$f":"IF(ISBLANK('TA Indicator Bank'!D358),\"\",'TA Indicator Bank'!D358)","v":""},{"$f":"IF(ISBLANK('TA Indicator Bank'!E358),\"\",'TA Indicator Bank'!E358)","v":""},{"$f":"IF(ISBLANK('TA Indicator Bank'!F358),\"\",'TA Indicator Bank'!F358)","v":""},{"$f":"IF(ISBLANK('TA Indicator Bank'!G358),\"\",'TA Indicator Bank'!G358)","v":""},{"$f":"IF(ISBLANK('TA Indicator Bank'!H358),\"\",'TA Indicator Bank'!H358)","v":""},{"$f":"IF(ISBLANK('TA Indicator Bank'!I358),\"\",'TA Indicator Bank'!I358)","v":""},{"$f":"IF(ISBLANK('TA Indicator Bank'!J358),\"\",'TA Indicator Bank'!J358)","v":""},{"$f":"IF(ISBLANK('TA Indicator Bank'!K358),\"\",'TA Indicator Bank'!K358)","v":""},{"$f":"IF(ISBLANK('TA Indicator Bank'!L358),\"\",'TA Indicator Bank'!L358)","v":""},{"$f":"IF(ISBLANK('TA Indicator Bank'!M358),\"\",'TA Indicator Bank'!M358)","v":""},{"$f":"IF(ISBLANK('TA Indicator Bank'!N358),\"\",'TA Indicator Bank'!N358)","v":""},{"$f":"IF(ISBLANK('TA Indicator Bank'!O358),\"\",'TA Indicator Bank'!O358)","v":""},{"$f":"IF(ISBLANK('TA Indicator Bank'!P358),\"\",'TA Indicator Bank'!P358)","v":""},{"$f":"IF(ISBLANK('TA Indicator Bank'!Q358),\"\",'TA Indicator Bank'!Q358)","v":""},{"$f":"IF(ISBLANK('TA Indicator Bank'!R358),\"\",'TA Indicator Bank'!R358)","v":""},{"$f":"IF(ISBLANK('TA Indicator Bank'!S358),\"\",'TA Indicator Bank'!S358)","v":""},{"$f":"IF(ISBLANK('TA Indicator Bank'!T358),\"\",'TA Indicator Bank'!T358)","v":""},{"$f":"IF(ISBLANK('TA Indicator Bank'!U358),\"\",'TA Indicator Bank'!U358)","v":""},{"$f":"IF(ISBLANK('TA Indicator Bank'!V358),\"\",'TA Indicator Bank'!V358)","v":""},{"$f":"IF(ISBLANK('TA Indicator Bank'!W358),\"\",'TA Indicator Bank'!W358)","v":""},{"$f":"IF(ISBLANK('TA Indicator Bank'!X358),\"\",'TA Indicator Bank'!X358)","v":""},{"$f":"IF(ISBLANK('TA Indicator Bank'!Y358),\"\",'TA Indicator Bank'!Y358)","v":""},{"$f":"IF(ISBLANK('TA Indicator Bank'!Z358),\"\",'TA Indicator Bank'!Z358)","v":""},{"$f":"IF(ISBLANK('TA Indicator Bank'!AA358),\"\",'TA Indicator Bank'!AA358)","v":""},{"$f":"IF(ISBLANK('TA Indicator Bank'!AB358),\"\",'TA Indicator Bank'!AB358)","v":""},{"$f":"IF(ISBLANK('TA Indicator Bank'!AC358),\"\",'TA Indicator Bank'!AC358)","v":""},{"$f":"IF(ISBLANK('TA Indicator Bank'!AD358),\"\",'TA Indicator Bank'!AD358)","v":""},{"$f":"IF(ISBLANK('TA Indicator Bank'!AE358),\"\",'TA Indicator Bank'!AE358)","v":""},{"$f":"IF(ISBLANK('TA Indicator Bank'!AF358),\"\",'TA Indicator Bank'!AF358)","v":""},{"$f":"IF(ISBLANK('TA Indicator Bank'!AG358),\"\",'TA Indicator Bank'!AG358)","v":""},{"$f":"IF(ISBLANK('TA Indicator Bank'!AH358),\"\",'TA Indicator Bank'!AH358)","v":""},{"$f":"IF(ISBLANK('TA Indicator Bank'!AI358),\"\",'TA Indicator Bank'!AI358)","v":""},{"$f":"IF(ISBLANK('TA Indicator Bank'!AJ358),\"\",'TA Indicator Bank'!AJ358)","v":""},{"$f":"IF(ISBLANK('TA Indicator Bank'!AK358),\"\",'TA Indicator Bank'!AK358)","v":""},{"$f":"IF(ISBLANK('TA Indicator Bank'!AL358),\"\",'TA Indicator Bank'!AL358)","v":""},{"$f":"IF(ISBLANK('TA Indicator Bank'!AM358),\"\",'TA Indicator Bank'!AM358)","v":""},{"$f":"IF(ISBLANK('TA Indicator Bank'!AN358),\"\",'TA Indicator Bank'!AN358)","v":""},{"$f":"IF(ISBLANK('TA Indicator Bank'!AO358),\"\",'TA Indicator Bank'!AO358)","v":""},{"$f":"IF(ISBLANK('TA Indicator Bank'!AP358),\"\",'TA Indicator Bank'!AP358)","v":""},{"$f":"IF(ISBLANK('TA Indicator Bank'!AQ358),\"\",'TA Indicator Bank'!AQ358)","v":""},{"$f":"IF(ISBLANK('TA Indicator Bank'!AR358),\"\",'TA Indicator Bank'!AR358)","v":""},{"$f":"IF(ISBLANK('TA Indicator Bank'!AS358),\"\",'TA Indicator Bank'!AS358)","v":""},{"$f":"IF(ISBLANK('TA Indicator Bank'!AT358),\"\",'TA Indicator Bank'!AT358)","v":""},0,0,0,0,0,0,0,0,0,0,0,0,0,0,1,0,0,0,0,0,0,0,0,0,1,0,0,0,0,0,0,0,0,0,1,0,0,0,0,0,1,1,354,354,"",{"$f":"IFERROR(INDEX($B$9:$I$408,$CM505,COLUMNS($CN$9:CN505)),\"\")","v":""},{"$f":"IFERROR(INDEX($B$9:$I$408,$CM505,COLUMNS($CN$9:CO505)),\"\")","v":""},{"$f":"IFERROR(INDEX($B$9:$I$408,$CM505,COLUMNS($CN$9:CP505)),\"\")","v":""},{"$f":"IFERROR(INDEX($B$9:$I$408,$CM505,COLUMNS($CN$9:CQ505)),\"\")","v":""},{"$f":"IFERROR(INDEX($B$9:$I$408,$CM505,COLUMNS($CN$9:CR505)),\"\")","v":""},{"$f":"IFERROR(INDEX($B$9:$I$408,$CM505,COLUMNS($CN$9:CS505)),\"\")","v":""},{"$f":"IFERROR(INDEX($B$9:$I$408,$CM505,COLUMNS($CN$9:CT505)),\"\")","v":""},{"$f":"IFERROR(INDEX($B$9:$I$408,$CM505,COLUMNS($CN$9:CU505)),\"\")","v":""}]
[null,{"$f":"IF(ISBLANK('TA Indicator Bank'!B359),\"\",'TA Indicator Bank'!B359)","v":""},{"$f":"IF(ISBLANK('TA Indicator Bank'!C359),\"\",'TA Indicator Bank'!C359)","v":""},{"$f":"IF(ISBLANK('TA Indicator Bank'!D359),\"\",'TA Indicator Bank'!D359)","v":""},{"$f":"IF(ISBLANK('TA Indicator Bank'!E359),\"\",'TA Indicator Bank'!E359)","v":""},{"$f":"IF(ISBLANK('TA Indicator Bank'!F359),\"\",'TA Indicator Bank'!F359)","v":""},{"$f":"IF(ISBLANK('TA Indicator Bank'!G359),\"\",'TA Indicator Bank'!G359)","v":""},{"$f":"IF(ISBLANK('TA Indicator Bank'!H359),\"\",'TA Indicator Bank'!H359)","v":""},{"$f":"IF(ISBLANK('TA Indicator Bank'!I359),\"\",'TA Indicator Bank'!I359)","v":""},{"$f":"IF(ISBLANK('TA Indicator Bank'!J359),\"\",'TA Indicator Bank'!J359)","v":""},{"$f":"IF(ISBLANK('TA Indicator Bank'!K359),\"\",'TA Indicator Bank'!K359)","v":""},{"$f":"IF(ISBLANK('TA Indicator Bank'!L359),\"\",'TA Indicator Bank'!L359)","v":""},{"$f":"IF(ISBLANK('TA Indicator Bank'!M359),\"\",'TA Indicator Bank'!M359)","v":""},{"$f":"IF(ISBLANK('TA Indicator Bank'!N359),\"\",'TA Indicator Bank'!N359)","v":""},{"$f":"IF(ISBLANK('TA Indicator Bank'!O359),\"\",'TA Indicator Bank'!O359)","v":""},{"$f":"IF(ISBLANK('TA Indicator Bank'!P359),\"\",'TA Indicator Bank'!P359)","v":""},{"$f":"IF(ISBLANK('TA Indicator Bank'!Q359),\"\",'TA Indicator Bank'!Q359)","v":""},{"$f":"IF(ISBLANK('TA Indicator Bank'!R359),\"\",'TA Indicator Bank'!R359)","v":""},{"$f":"IF(ISBLANK('TA Indicator Bank'!S359),\"\",'TA Indicator Bank'!S359)","v":""},{"$f":"IF(ISBLANK('TA Indicator Bank'!T359),\"\",'TA Indicator Bank'!T359)","v":""},{"$f":"IF(ISBLANK('TA Indicator Bank'!U359),\"\",'TA Indicator Bank'!U359)","v":""},{"$f":"IF(ISBLANK('TA Indicator Bank'!V359),\"\",'TA Indicator Bank'!V359)","v":""},{"$f":"IF(ISBLANK('TA Indicator Bank'!W359),\"\",'TA Indicator Bank'!W359)","v":""},{"$f":"IF(ISBLANK('TA Indicator Bank'!X359),\"\",'TA Indicator Bank'!X359)","v":""},{"$f":"IF(ISBLANK('TA Indicator Bank'!Y359),\"\",'TA Indicator Bank'!Y359)","v":""},{"$f":"IF(ISBLANK('TA Indicator Bank'!Z359),\"\",'TA Indicator Bank'!Z359)","v":""},{"$f":"IF(ISBLANK('TA Indicator Bank'!AA359),\"\",'TA Indicator Bank'!AA359)","v":""},{"$f":"IF(ISBLANK('TA Indicator Bank'!AB359),\"\",'TA Indicator Bank'!AB359)","v":""},{"$f":"IF(ISBLANK('TA Indicator Bank'!AC359),\"\",'TA Indicator Bank'!AC359)","v":""},{"$f":"IF(ISBLANK('TA Indicator Bank'!AD359),\"\",'TA Indicator Bank'!AD359)","v":""},{"$f":"IF(ISBLANK('TA Indicator Bank'!AE359),\"\",'TA Indicator Bank'!AE359)","v":""},{"$f":"IF(ISBLANK('TA Indicator Bank'!AF359),\"\",'TA Indicator Bank'!AF359)","v":""},{"$f":"IF(ISBLANK('TA Indicator Bank'!AG359),\"\",'TA Indicator Bank'!AG359)","v":""},{"$f":"IF(ISBLANK('TA Indicator Bank'!AH359),\"\",'TA Indicator Bank'!AH359)","v":""},{"$f":"IF(ISBLANK('TA Indicator Bank'!AI359),\"\",'TA Indicator Bank'!AI359)","v":""},{"$f":"IF(ISBLANK('TA Indicator Bank'!AJ359),\"\",'TA Indicator Bank'!AJ359)","v":""},{"$f":"IF(ISBLANK('TA Indicator Bank'!AK359),\"\",'TA Indicator Bank'!AK359)","v":""},{"$f":"IF(ISBLANK('TA Indicator Bank'!AL359),\"\",'TA Indicator Bank'!AL359)","v":""},{"$f":"IF(ISBLANK('TA Indicator Bank'!AM359),\"\",'TA Indicator Bank'!AM359)","v":""},{"$f":"IF(ISBLANK('TA Indicator Bank'!AN359),\"\",'TA Indicator Bank'!AN359)","v":""},{"$f":"IF(ISBLANK('TA Indicator Bank'!AO359),\"\",'TA Indicator Bank'!AO359)","v":""},{"$f":"IF(ISBLANK('TA Indicator Bank'!AP359),\"\",'TA Indicator Bank'!AP359)","v":""},{"$f":"IF(ISBLANK('TA Indicator Bank'!AQ359),\"\",'TA Indicator Bank'!AQ359)","v":""},{"$f":"IF(ISBLANK('TA Indicator Bank'!AR359),\"\",'TA Indicator Bank'!AR359)","v":""},{"$f":"IF(ISBLANK('TA Indicator Bank'!AS359),\"\",'TA Indicator Bank'!AS359)","v":""},{"$f":"IF(ISBLANK('TA Indicator Bank'!AT359),\"\",'TA Indicator Bank'!AT359)","v":""},0,0,0,0,0,0,0,0,0,0,0,0,0,0,1,0,0,0,0,0,0,0,0,0,1,0,0,0,0,0,0,0,0,0,1,0,0,0,0,0,1,1,355,355,"",{"$f":"IFERROR(INDEX($B$9:$I$408,$CM506,COLUMNS($CN$9:CN506)),\"\")","v":""},{"$f":"IFERROR(INDEX($B$9:$I$408,$CM506,COLUMNS($CN$9:CO506)),\"\")","v":""},{"$f":"IFERROR(INDEX($B$9:$I$408,$CM506,COLUMNS($CN$9:CP506)),\"\")","v":""},{"$f":"IFERROR(INDEX($B$9:$I$408,$CM506,COLUMNS($CN$9:CQ506)),\"\")","v":""},{"$f":"IFERROR(INDEX($B$9:$I$408,$CM506,COLUMNS($CN$9:CR506)),\"\")","v":""},{"$f":"IFERROR(INDEX($B$9:$I$408,$CM506,COLUMNS($CN$9:CS506)),\"\")","v":""},{"$f":"IFERROR(INDEX($B$9:$I$408,$CM506,COLUMNS($CN$9:CT506)),\"\")","v":""},{"$f":"IFERROR(INDEX($B$9:$I$408,$CM506,COLUMNS($CN$9:CU506)),\"\")","v":""}]
[null,{"$f":"IF(ISBLANK('TA Indicator Bank'!B360),\"\",'TA Indicator Bank'!B360)","v":""},{"$f":"IF(ISBLANK('TA Indicator Bank'!C360),\"\",'TA Indicator Bank'!C360)","v":""},{"$f":"IF(ISBLANK('TA Indicator Bank'!D360),\"\",'TA Indicator Bank'!D360)","v":""},{"$f":"IF(ISBLANK('TA Indicator Bank'!E360),\"\",'TA Indicator Bank'!E360)","v":""},{"$f":"IF(ISBLANK('TA Indicator Bank'!F360),\"\",'TA Indicator Bank'!F360)","v":""},{"$f":"IF(ISBLANK('TA Indicator Bank'!G360),\"\",'TA Indicator Bank'!G360)","v":""},{"$f":"IF(ISBLANK('TA Indicator Bank'!H360),\"\",'TA Indicator Bank'!H360)","v":""},{"$f":"IF(ISBLANK('TA Indicator Bank'!I360),\"\",'TA Indicator Bank'!I360)","v":""},{"$f":"IF(ISBLANK('TA Indicator Bank'!J360),\"\",'TA Indicator Bank'!J360)","v":""},{"$f":"IF(ISBLANK('TA Indicator Bank'!K360),\"\",'TA Indicator Bank'!K360)","v":""},{"$f":"IF(ISBLANK('TA Indicator Bank'!L360),\"\",'TA Indicator Bank'!L360)","v":""},{"$f":"IF(ISBLANK('TA Indicator Bank'!M360),\"\",'TA Indicator Bank'!M360)","v":""},{"$f":"IF(ISBLANK('TA Indicator Bank'!N360),\"\",'TA Indicator Bank'!N360)","v":""},{"$f":"IF(ISBLANK('TA Indicator Bank'!O360),\"\",'TA Indicator Bank'!O360)","v":""},{"$f":"IF(ISBLANK('TA Indicator Bank'!P360),\"\",'TA Indicator Bank'!P360)","v":""},{"$f":"IF(ISBLANK('TA Indicator Bank'!Q360),\"\",'TA Indicator Bank'!Q360)","v":""},{"$f":"IF(ISBLANK('TA Indicator Bank'!R360),\"\",'TA Indicator Bank'!R360)","v":""},{"$f":"IF(ISBLANK('TA Indicator Bank'!S360),\"\",'TA Indicator Bank'!S360)","v":""},{"$f":"IF(ISBLANK('TA Indicator Bank'!T360),\"\",'TA Indicator Bank'!T360)","v":""},{"$f":"IF(ISBLANK('TA Indicator Bank'!U360),\"\",'TA Indicator Bank'!U360)","v":""},{"$f":"IF(ISBLANK('TA Indicator Bank'!V360),\"\",'TA Indicator Bank'!V360)","v":""},{"$f":"IF(ISBLANK('TA Indicator Bank'!W360),\"\",'TA Indicator Bank'!W360)","v":""},{"$f":"IF(ISBLANK('TA Indicator Bank'!X360),\"\",'TA Indicator Bank'!X360)","v":""},{"$f":"IF(ISBLANK('TA Indicator Bank'!Y360),\"\",'TA Indicator Bank'!Y360)","v":""},{"$f":"IF(ISBLANK('TA Indicator Bank'!Z360),\"\",'TA Indicator Bank'!Z360)","v":""},{"$f":"IF(ISBLANK('TA Indicator Bank'!AA360),\"\",'TA Indicator Bank'!AA360)","v":""},{"$f":"IF(ISBLANK('TA Indicator Bank'!AB360),\"\",'TA Indicator Bank'!AB360)","v":""},{"$f":"IF(ISBLANK('TA Indicator Bank'!AC360),\"\",'TA Indicator Bank'!AC360)","v":""},{"$f":"IF(ISBLANK('TA Indicator Bank'!AD360),\"\",'TA Indicator Bank'!AD360)","v":""},{"$f":"IF(ISBLANK('TA Indicator Bank'!AE360),\"\",'TA Indicator Bank'!AE360)","v":""},{"$f":"IF(ISBLANK('TA Indicator Bank'!AF360),\"\",'TA Indicator Bank'!AF360)","v":""},{"$f":"IF(ISBLANK('TA Indicator Bank'!AG360),\"\",'TA Indicator Bank'!AG360)","v":""},{"$f":"IF(ISBLANK('TA Indicator Bank'!AH360),\"\",'TA Indicator Bank'!AH360)","v":""},{"$f":"IF(ISBLANK('TA Indicator Bank'!AI360),\"\",'TA Indicator Bank'!AI360)","v":""},{"$f":"IF(ISBLANK('TA Indicator Bank'!AJ360),\"\",'TA Indicator Bank'!AJ360)","v":""},{"$f":"IF(ISBLANK('TA Indicator Bank'!AK360),\"\",'TA Indicator Bank'!AK360)","v":""},{"$f":"IF(ISBLANK('TA Indicator Bank'!AL360),\"\",'TA Indicator Bank'!AL360)","v":""},{"$f":"IF(ISBLANK('TA Indicator Bank'!AM360),\"\",'TA Indicator Bank'!AM360)","v":""},{"$f":"IF(ISBLANK('TA Indicator Bank'!AN360),\"\",'TA Indicator Bank'!AN360)","v":""},{"$f":"IF(ISBLANK('TA Indicator Bank'!AO360),\"\",'TA Indicator Bank'!AO360)","v":""},{"$f":"IF(ISBLANK('TA Indicator Bank'!AP360),\"\",'TA Indicator Bank'!AP360)","v":""},{"$f":"IF(ISBLANK('TA Indicator Bank'!AQ360),\"\",'TA Indicator Bank'!AQ360)","v":""},{"$f":"IF(ISBLANK('TA Indicator Bank'!AR360),\"\",'TA Indicator Bank'!AR360)","v":""},{"$f":"IF(ISBLANK('TA Indicator Bank'!AS360),\"\",'TA Indicator Bank'!AS360)","v":""},{"$f":"IF(ISBLANK('TA Indicator Bank'!AT360),\"\",'TA Indicator Bank'!AT360)","v":""},0,0,0,0,0,0,0,0,0,0,0,0,0,0,1,0,0,0,0,0,0,0,0,0,1,0,0,0,0,0,0,0,0,0,1,0,0,0,0,0,1,1,356,356,"",{"$f":"IFERROR(INDEX($B$9:$I$408,$CM507,COLUMNS($CN$9:CN507)),\"\")","v":""},{"$f":"IFERROR(INDEX($B$9:$I$408,$CM507,COLUMNS($CN$9:CO507)),\"\")","v":""},{"$f":"IFERROR(INDEX($B$9:$I$408,$CM507,COLUMNS($CN$9:CP507)),\"\")","v":""},{"$f":"IFERROR(INDEX($B$9:$I$408,$CM507,COLUMNS($CN$9:CQ507)),\"\")","v":""},{"$f":"IFERROR(INDEX($B$9:$I$408,$CM507,COLUMNS($CN$9:CR507)),\"\")","v":""},{"$f":"IFERROR(INDEX($B$9:$I$408,$CM507,COLUMNS($CN$9:CS507)),\"\")","v":""},{"$f":"IFERROR(INDEX($B$9:$I$408,$CM507,COLUMNS($CN$9:CT507)),\"\")","v":""},{"$f":"IFERROR(INDEX($B$9:$I$408,$CM507,COLUMNS($CN$9:CU507)),\"\")","v":""}]
[null,{"$f":"IF(ISBLANK('TA Indicator Bank'!B361),\"\",'TA Indicator Bank'!B361)","v":""},{"$f":"IF(ISBLANK('TA Indicator Bank'!C361),\"\",'TA Indicator Bank'!C361)","v":""},{"$f":"IF(ISBLANK('TA Indicator Bank'!D361),\"\",'TA Indicator Bank'!D361)","v":""},{"$f":"IF(ISBLANK('TA Indicator Bank'!E361),\"\",'TA Indicator Bank'!E361)","v":""},{"$f":"IF(ISBLANK('TA Indicator Bank'!F361),\"\",'TA Indicator Bank'!F361)","v":""},{"$f":"IF(ISBLANK('TA Indicator Bank'!G361),\"\",'TA Indicator Bank'!G361)","v":""},{"$f":"IF(ISBLANK('TA Indicator Bank'!H361),\"\",'TA Indicator Bank'!H361)","v":""},{"$f":"IF(ISBLANK('TA Indicator Bank'!I361),\"\",'TA Indicator Bank'!I361)","v":""},{"$f":"IF(ISBLANK('TA Indicator Bank'!J361),\"\",'TA Indicator Bank'!J361)","v":""},{"$f":"IF(ISBLANK('TA Indicator Bank'!K361),\"\",'TA Indicator Bank'!K361)","v":""},{"$f":"IF(ISBLANK('TA Indicator Bank'!L361),\"\",'TA Indicator Bank'!L361)","v":""},{"$f":"IF(ISBLANK('TA Indicator Bank'!M361),\"\",'TA Indicator Bank'!M361)","v":""},{"$f":"IF(ISBLANK('TA Indicator Bank'!N361),\"\",'TA Indicator Bank'!N361)","v":""},{"$f":"IF(ISBLANK('TA Indicator Bank'!O361),\"\",'TA Indicator Bank'!O361)","v":""},{"$f":"IF(ISBLANK('TA Indicator Bank'!P361),\"\",'TA Indicator Bank'!P361)","v":""},{"$f":"IF(ISBLANK('TA Indicator Bank'!Q361),\"\",'TA Indicator Bank'!Q361)","v":""},{"$f":"IF(ISBLANK('TA Indicator Bank'!R361),\"\",'TA Indicator Bank'!R361)","v":""},{"$f":"IF(ISBLANK('TA Indicator Bank'!S361),\"\",'TA Indicator Bank'!S361)","v":""},{"$f":"IF(ISBLANK('TA Indicator Bank'!T361),\"\",'TA Indicator Bank'!T361)","v":""},{"$f":"IF(ISBLANK('TA Indicator Bank'!U361),\"\",'TA Indicator Bank'!U361)","v":""},{"$f":"IF(ISBLANK('TA Indicator Bank'!V361),\"\",'TA Indicator Bank'!V361)","v":""},{"$f":"IF(ISBLANK('TA Indicator Bank'!W361),\"\",'TA Indicator Bank'!W361)","v":""},{"$f":"IF(ISBLANK('TA Indicator Bank'!X361),\"\",'TA Indicator Bank'!X361)","v":""},{"$f":"IF(ISBLANK('TA Indicator Bank'!Y361),\"\",'TA Indicator Bank'!Y361)","v":""},{"$f":"IF(ISBLANK('TA Indicator Bank'!Z361),\"\",'TA Indicator Bank'!Z361)","v":""},{"$f":"IF(ISBLANK('TA Indicator Bank'!AA361),\"\",'TA Indicator Bank'!AA361)","v":""},{"$f":"IF(ISBLANK('TA Indicator Bank'!AB361),\"\",'TA Indicator Bank'!AB361)","v":""},{"$f":"IF(ISBLANK('TA Indicator Bank'!AC361),\"\",'TA Indicator Bank'!AC361)","v":""},{"$f":"IF(ISBLANK('TA Indicator Bank'!AD361),\"\",'TA Indicator Bank'!AD361)","v":""},{"$f":"IF(ISBLANK('TA Indicator Bank'!AE361),\"\",'TA Indicator Bank'!AE361)","v":""},{"$f":"IF(ISBLANK('TA Indicator Bank'!AF361),\"\",'TA Indicator Bank'!AF361)","v":""},{"$f":"IF(ISBLANK('TA Indicator Bank'!AG361),\"\",'TA Indicator Bank'!AG361)","v":""},{"$f":"IF(ISBLANK('TA Indicator Bank'!AH361),\"\",'TA Indicator Bank'!AH361)","v":""},{"$f":"IF(ISBLANK('TA Indicator Bank'!AI361),\"\",'TA Indicator Bank'!AI361)","v":""},{"$f":"IF(ISBLANK('TA Indicator Bank'!AJ361),\"\",'TA Indicator Bank'!AJ361)","v":""},{"$f":"IF(ISBLANK('TA Indicator Bank'!AK361),\"\",'TA Indicator Bank'!AK361)","v":""},{"$f":"IF(ISBLANK('TA Indicator Bank'!AL361),\"\",'TA Indicator Bank'!AL361)","v":""},{"$f":"IF(ISBLANK('TA Indicator Bank'!AM361),\"\",'TA Indicator Bank'!AM361)","v":""},{"$f":"IF(ISBLANK('TA Indicator Bank'!AN361),\"\",'TA Indicator Bank'!AN361)","v":""},{"$f":"IF(ISBLANK('TA Indicator Bank'!AO361),\"\",'TA Indicator Bank'!AO361)","v":""},{"$f":"IF(ISBLANK('TA Indicator Bank'!AP361),\"\",'TA Indicator Bank'!AP361)","v":""},{"$f":"IF(ISBLANK('TA Indicator Bank'!AQ361),\"\",'TA Indicator Bank'!AQ361)","v":""},{"$f":"IF(ISBLANK('TA Indicator Bank'!AR361),\"\",'TA Indicator Bank'!AR361)","v":""},{"$f":"IF(ISBLANK('TA Indicator Bank'!AS361),\"\",'TA Indicator Bank'!AS361)","v":""},{"$f":"IF(ISBLANK('TA Indicator Bank'!AT361),\"\",'TA Indicator Bank'!AT361)","v":""},0,0,0,0,0,0,0,0,0,0,0,0,0,0,1,0,0,0,0,0,0,0,0,0,1,0,0,0,0,0,0,0,0,0,1,0,0,0,0,0,1,1,357,357,"",{"$f":"IFERROR(INDEX($B$9:$I$408,$CM508,COLUMNS($CN$9:CN508)),\"\")","v":""},{"$f":"IFERROR(INDEX($B$9:$I$408,$CM508,COLUMNS($CN$9:CO508)),\"\")","v":""},{"$f":"IFERROR(INDEX($B$9:$I$408,$CM508,COLUMNS($CN$9:CP508)),\"\")","v":""},{"$f":"IFERROR(INDEX($B$9:$I$408,$CM508,COLUMNS($CN$9:CQ508)),\"\")","v":""},{"$f":"IFERROR(INDEX($B$9:$I$408,$CM508,COLUMNS($CN$9:CR508)),\"\")","v":""},{"$f":"IFERROR(INDEX($B$9:$I$408,$CM508,COLUMNS($CN$9:CS508)),\"\")","v":""},{"$f":"IFERROR(INDEX($B$9:$I$408,$CM508,COLUMNS($CN$9:CT508)),\"\")","v":""},{"$f":"IFERROR(INDEX($B$9:$I$408,$CM508,COLUMNS($CN$9:CU508)),\"\")","v":""}]
[null,{"$f":"IF(ISBLANK('TA Indicator Bank'!B362),\"\",'TA Indicator Bank'!B362)","v":""},{"$f":"IF(ISBLANK('TA Indicator Bank'!C362),\"\",'TA Indicator Bank'!C362)","v":""},{"$f":"IF(ISBLANK('TA Indicator Bank'!D362),\"\",'TA Indicator Bank'!D362)","v":""},{"$f":"IF(ISBLANK('TA Indicator Bank'!E362),\"\",'TA Indicator Bank'!E362)","v":""},{"$f":"IF(ISBLANK('TA Indicator Bank'!F362),\"\",'TA Indicator Bank'!F362)","v":""},{"$f":"IF(ISBLANK('TA Indicator Bank'!G362),\"\",'TA Indicator Bank'!G362)","v":""},{"$f":"IF(ISBLANK('TA Indicator Bank'!H362),\"\",'TA Indicator Bank'!H362)","v":""},{"$f":"IF(ISBLANK('TA Indicator Bank'!I362),\"\",'TA Indicator Bank'!I362)","v":""},{"$f":"IF(ISBLANK('TA Indicator Bank'!J362),\"\",'TA Indicator Bank'!J362)","v":""},{"$f":"IF(ISBLANK('TA Indicator Bank'!K362),\"\",'TA Indicator Bank'!K362)","v":""},{"$f":"IF(ISBLANK('TA Indicator Bank'!L362),\"\",'TA Indicator Bank'!L362)","v":""},{"$f":"IF(ISBLANK('TA Indicator Bank'!M362),\"\",'TA Indicator Bank'!M362)","v":""},{"$f":"IF(ISBLANK('TA Indicator Bank'!N362),\"\",'TA Indicator Bank'!N362)","v":""},{"$f":"IF(ISBLANK('TA Indicator Bank'!O362),\"\",'TA Indicator Bank'!O362)","v":""},{"$f":"IF(ISBLANK('TA Indicator Bank'!P362),\"\",'TA Indicator Bank'!P362)","v":""},{"$f":"IF(ISBLANK('TA Indicator Bank'!Q362),\"\",'TA Indicator Bank'!Q362)","v":""},{"$f":"IF(ISBLANK('TA Indicator Bank'!R362),\"\",'TA Indicator Bank'!R362)","v":""},{"$f":"IF(ISBLANK('TA Indicator Bank'!S362),\"\",'TA Indicator Bank'!S362)","v":""},{"$f":"IF(ISBLANK('TA Indicator Bank'!T362),\"\",'TA Indicator Bank'!T362)","v":""},{"$f":"IF(ISBLANK('TA Indicator Bank'!U362),\"\",'TA Indicator Bank'!U362)","v":""},{"$f":"IF(ISBLANK('TA Indicator Bank'!V362),\"\",'TA Indicator Bank'!V362)","v":""},{"$f":"IF(ISBLANK('TA Indicator Bank'!W362),\"\",'TA Indicator Bank'!W362)","v":""},{"$f":"IF(ISBLANK('TA Indicator Bank'!X362),\"\",'TA Indicator Bank'!X362)","v":""},{"$f":"IF(ISBLANK('TA Indicator Bank'!Y362),\"\",'TA Indicator Bank'!Y362)","v":""},{"$f":"IF(ISBLANK('TA Indicator Bank'!Z362),\"\",'TA Indicator Bank'!Z362)","v":""},{"$f":"IF(ISBLANK('TA Indicator Bank'!AA362),\"\",'TA Indicator Bank'!AA362)","v":""},{"$f":"IF(ISBLANK('TA Indicator Bank'!AB362),\"\",'TA Indicator Bank'!AB362)","v":""},{"$f":"IF(ISBLANK('TA Indicator Bank'!AC362),\"\",'TA Indicator Bank'!AC362)","v":""},{"$f":"IF(ISBLANK('TA Indicator Bank'!AD362),\"\",'TA Indicator Bank'!AD362)","v":""},{"$f":"IF(ISBLANK('TA Indicator Bank'!AE362),\"\",'TA Indicator Bank'!AE362)","v":""},{"$f":"IF(ISBLANK('TA Indicator Bank'!AF362),\"\",'TA Indicator Bank'!AF362)","v":""},{"$f":"IF(ISBLANK('TA Indicator Bank'!AG362),\"\",'TA Indicator Bank'!AG362)","v":""},{"$f":"IF(ISBLANK('TA Indicator Bank'!AH362),\"\",'TA Indicator Bank'!AH362)","v":""},{"$f":"IF(ISBLANK('TA Indicator Bank'!AI362),\"\",'TA Indicator Bank'!AI362)","v":""},{"$f":"IF(ISBLANK('TA Indicator Bank'!AJ362),\"\",'TA Indicator Bank'!AJ362)","v":""},{"$f":"IF(ISBLANK('TA Indicator Bank'!AK362),\"\",'TA Indicator Bank'!AK362)","v":""},{"$f":"IF(ISBLANK('TA Indicator Bank'!AL362),\"\",'TA Indicator Bank'!AL362)","v":""},{"$f":"IF(ISBLANK('TA Indicator Bank'!AM362),\"\",'TA Indicator Bank'!AM362)","v":""},{"$f":"IF(ISBLANK('TA Indicator Bank'!AN362),\"\",'TA Indicator Bank'!AN362)","v":""},{"$f":"IF(ISBLANK('TA Indicator Bank'!AO362),\"\",'TA Indicator Bank'!AO362)","v":""},{"$f":"IF(ISBLANK('TA Indicator Bank'!AP362),\"\",'TA Indicator Bank'!AP362)","v":""},{"$f":"IF(ISBLANK('TA Indicator Bank'!AQ362),\"\",'TA Indicator Bank'!AQ362)","v":""},{"$f":"IF(ISBLANK('TA Indicator Bank'!AR362),\"\",'TA Indicator Bank'!AR362)","v":""},{"$f":"IF(ISBLANK('TA Indicator Bank'!AS362),\"\",'TA Indicator Bank'!AS362)","v":""},{"$f":"IF(ISBLANK('TA Indicator Bank'!AT362),\"\",'TA Indicator Bank'!AT362)","v":""},0,0,0,0,0,0,0,0,0,0,0,0,0,0,1,0,0,0,0,0,0,0,0,0,1,0,0,0,0,0,0,0,0,0,1,0,0,0,0,0,1,1,358,358,"",{"$f":"IFERROR(INDEX($B$9:$I$408,$CM509,COLUMNS($CN$9:CN509)),\"\")","v":""},{"$f":"IFERROR(INDEX($B$9:$I$408,$CM509,COLUMNS($CN$9:CO509)),\"\")","v":""},{"$f":"IFERROR(INDEX($B$9:$I$408,$CM509,COLUMNS($CN$9:CP509)),\"\")","v":""},{"$f":"IFERROR(INDEX($B$9:$I$408,$CM509,COLUMNS($CN$9:CQ509)),\"\")","v":""},{"$f":"IFERROR(INDEX($B$9:$I$408,$CM509,COLUMNS($CN$9:CR509)),\"\")","v":""},{"$f":"IFERROR(INDEX($B$9:$I$408,$CM509,COLUMNS($CN$9:CS509)),\"\")","v":""},{"$f":"IFERROR(INDEX($B$9:$I$408,$CM509,COLUMNS($CN$9:CT509)),\"\")","v":""},{"$f":"IFERROR(INDEX($B$9:$I$408,$CM509,COLUMNS($CN$9:CU509)),\"\")","v":""}]
[null,{"$f":"IF(ISBLANK('TA Indicator Bank'!B363),\"\",'TA Indicator Bank'!B363)","v":""},{"$f":"IF(ISBLANK('TA Indicator Bank'!C363),\"\",'TA Indicator Bank'!C363)","v":""},{"$f":"IF(ISBLANK('TA Indicator Bank'!D363),\"\",'TA Indicator Bank'!D363)","v":""},{"$f":"IF(ISBLANK('TA Indicator Bank'!E363),\"\",'TA Indicator Bank'!E363)","v":""},{"$f":"IF(ISBLANK('TA Indicator Bank'!F363),\"\",'TA Indicator Bank'!F363)","v":""},{"$f":"IF(ISBLANK('TA Indicator Bank'!G363),\"\",'TA Indicator Bank'!G363)","v":""},{"$f":"IF(ISBLANK('TA Indicator Bank'!H363),\"\",'TA Indicator Bank'!H363)","v":""},{"$f":"IF(ISBLANK('TA Indicator Bank'!I363),\"\",'TA Indicator Bank'!I363)","v":""},{"$f":"IF(ISBLANK('TA Indicator Bank'!J363),\"\",'TA Indicator Bank'!J363)","v":""},{"$f":"IF(ISBLANK('TA Indicator Bank'!K363),\"\",'TA Indicator Bank'!K363)","v":""},{"$f":"IF(ISBLANK('TA Indicator Bank'!L363),\"\",'TA Indicator Bank'!L363)","v":""},{"$f":"IF(ISBLANK('TA Indicator Bank'!M363),\"\",'TA Indicator Bank'!M363)","v":""},{"$f":"IF(ISBLANK('TA Indicator Bank'!N363),\"\",'TA Indicator Bank'!N363)","v":""},{"$f":"IF(ISBLANK('TA Indicator Bank'!O363),\"\",'TA Indicator Bank'!O363)","v":""},{"$f":"IF(ISBLANK('TA Indicator Bank'!P363),\"\",'TA Indicator Bank'!P363)","v":""},{"$f":"IF(ISBLANK('TA Indicator Bank'!Q363),\"\",'TA Indicator Bank'!Q363)","v":""},{"$f":"IF(ISBLANK('TA Indicator Bank'!R363),\"\",'TA Indicator Bank'!R363)","v":""},{"$f":"IF(ISBLANK('TA Indicator Bank'!S363),\"\",'TA Indicator Bank'!S363)","v":""},{"$f":"IF(ISBLANK('TA Indicator Bank'!T363),\"\",'TA Indicator Bank'!T363)","v":""},{"$f":"IF(ISBLANK('TA Indicator Bank'!U363),\"\",'TA Indicator Bank'!U363)","v":""},{"$f":"IF(ISBLANK('TA Indicator Bank'!V363),\"\",'TA Indicator Bank'!V363)","v":""},{"$f":"IF(ISBLANK('TA Indicator Bank'!W363),\"\",'TA Indicator Bank'!W363)","v":""},{"$f":"IF(ISBLANK('TA Indicator Bank'!X363),\"\",'TA Indicator Bank'!X363)","v":""},{"$f":"IF(ISBLANK('TA Indicator Bank'!Y363),\"\",'TA Indicator Bank'!Y363)","v":""},{"$f":"IF(ISBLANK('TA Indicator Bank'!Z363),\"\",'TA Indicator Bank'!Z363)","v":""},{"$f":"IF(ISBLANK('TA Indicator Bank'!AA363),\"\",'TA Indicator Bank'!AA363)","v":""},{"$f":"IF(ISBLANK('TA Indicator Bank'!AB363),\"\",'TA Indicator Bank'!AB363)","v":""},{"$f":"IF(ISBLANK('TA Indicator Bank'!AC363),\"\",'TA Indicator Bank'!AC363)","v":""},{"$f":"IF(ISBLANK('TA Indicator Bank'!AD363),\"\",'TA Indicator Bank'!AD363)","v":""},{"$f":"IF(ISBLANK('TA Indicator Bank'!AE363),\"\",'TA Indicator Bank'!AE363)","v":""},{"$f":"IF(ISBLANK('TA Indicator Bank'!AF363),\"\",'TA Indicator Bank'!AF363)","v":""},{"$f":"IF(ISBLANK('TA Indicator Bank'!AG363),\"\",'TA Indicator Bank'!AG363)","v":""},{"$f":"IF(ISBLANK('TA Indicator Bank'!AH363),\"\",'TA Indicator Bank'!AH363)","v":""},{"$f":"IF(ISBLANK('TA Indicator Bank'!AI363),\"\",'TA Indicator Bank'!AI363)","v":""},{"$f":"IF(ISBLANK('TA Indicator Bank'!AJ363),\"\",'TA Indicator Bank'!AJ363)","v":""},{"$f":"IF(ISBLANK('TA Indicator Bank'!AK363),\"\",'TA Indicator Bank'!AK363)","v":""},{"$f":"IF(ISBLANK('TA Indicator Bank'!AL363),\"\",'TA Indicator Bank'!AL363)","v":""},{"$f":"IF(ISBLANK('TA Indicator Bank'!AM363),\"\",'TA Indicator Bank'!AM363)","v":""},{"$f":"IF(ISBLANK('TA Indicator Bank'!AN363),\"\",'TA Indicator Bank'!AN363)","v":""},{"$f":"IF(ISBLANK('TA Indicator Bank'!AO363),\"\",'TA Indicator Bank'!AO363)","v":""},{"$f":"IF(ISBLANK('TA Indicator Bank'!AP363),\"\",'TA Indicator Bank'!AP363)","v":""},{"$f":"IF(ISBLANK('TA Indicator Bank'!AQ363),\"\",'TA Indicator Bank'!AQ363)","v":""},{"$f":"IF(ISBLANK('TA Indicator Bank'!AR363),\"\",'TA Indicator Bank'!AR363)","v":""},{"$f":"IF(ISBLANK('TA Indicator Bank'!AS363),\"\",'TA Indicator Bank'!AS363)","v":""},{"$f":"IF(ISBLANK('TA Indicator Bank'!AT363),\"\",'TA Indicator Bank'!AT363)","v":""},0,0,0,0,0,0,0,0,0,0,0,0,0,0,1,0,0,0,0,0,0,0,0,0,1,0,0,0,0,0,0,0,0,0,1,0,0,0,0,0,1,1,359,359,"",{"$f":"IFERROR(INDEX($B$9:$I$408,$CM510,COLUMNS($CN$9:CN510)),\"\")","v":""},{"$f":"IFERROR(INDEX($B$9:$I$408,$CM510,COLUMNS($CN$9:CO510)),\"\")","v":""},{"$f":"IFERROR(INDEX($B$9:$I$408,$CM510,COLUMNS($CN$9:CP510)),\"\")","v":""},{"$f":"IFERROR(INDEX($B$9:$I$408,$CM510,COLUMNS($CN$9:CQ510)),\"\")","v":""},{"$f":"IFERROR(INDEX($B$9:$I$408,$CM510,COLUMNS($CN$9:CR510)),\"\")","v":""},{"$f":"IFERROR(INDEX($B$9:$I$408,$CM510,COLUMNS($CN$9:CS510)),\"\")","v":""},{"$f":"IFERROR(INDEX($B$9:$I$408,$CM510,COLUMNS($CN$9:CT510)),\"\")","v":""},{"$f":"IFERROR(INDEX($B$9:$I$408,$CM510,COLUMNS($CN$9:CU510)),\"\")","v":""}]
[null,{"$f":"IF(ISBLANK('TA Indicator Bank'!B364),\"\",'TA Indicator Bank'!B364)","v":""},{"$f":"IF(ISBLANK('TA Indicator Bank'!C364),\"\",'TA Indicator Bank'!C364)","v":""},{"$f":"IF(ISBLANK('TA Indicator Bank'!D364),\"\",'TA Indicator Bank'!D364)","v":""},{"$f":"IF(ISBLANK('TA Indicator Bank'!E364),\"\",'TA Indicator Bank'!E364)","v":""},{"$f":"IF(ISBLANK('TA Indicator Bank'!F364),\"\",'TA Indicator Bank'!F364)","v":""},{"$f":"IF(ISBLANK('TA Indicator Bank'!G364),\"\",'TA Indicator Bank'!G364)","v":""},{"$f":"IF(ISBLANK('TA Indicator Bank'!H364),\"\",'TA Indicator Bank'!H364)","v":""},{"$f":"IF(ISBLANK('TA Indicator Bank'!I364),\"\",'TA Indicator Bank'!I364)","v":""},{"$f":"IF(ISBLANK('TA Indicator Bank'!J364),\"\",'TA Indicator Bank'!J364)","v":""},{"$f":"IF(ISBLANK('TA Indicator Bank'!K364),\"\",'TA Indicator Bank'!K364)","v":""},{"$f":"IF(ISBLANK('TA Indicator Bank'!L364),\"\",'TA Indicator Bank'!L364)","v":""},{"$f":"IF(ISBLANK('TA Indicator Bank'!M364),\"\",'TA Indicator Bank'!M364)","v":""},{"$f":"IF(ISBLANK('TA Indicator Bank'!N364),\"\",'TA Indicator Bank'!N364)","v":""},{"$f":"IF(ISBLANK('TA Indicator Bank'!O364),\"\",'TA Indicator Bank'!O364)","v":""},{"$f":"IF(ISBLANK('TA Indicator Bank'!P364),\"\",'TA Indicator Bank'!P364)","v":""},{"$f":"IF(ISBLANK('TA Indicator Bank'!Q364),\"\",'TA Indicator Bank'!Q364)","v":""},{"$f":"IF(ISBLANK('TA Indicator Bank'!R364),\"\",'TA Indicator Bank'!R364)","v":""},{"$f":"IF(ISBLANK('TA Indicator Bank'!S364),\"\",'TA Indicator Bank'!S364)","v":""},{"$f":"IF(ISBLANK('TA Indicator Bank'!T364),\"\",'TA Indicator Bank'!T364)","v":""},{"$f":"IF(ISBLANK('TA Indicator Bank'!U364),\"\",'TA Indicator Bank'!U364)","v":""},{"$f":"IF(ISBLANK('TA Indicator Bank'!V364),\"\",'TA Indicator Bank'!V364)","v":""},{"$f":"IF(ISBLANK('TA Indicator Bank'!W364),\"\",'TA Indicator Bank'!W364)","v":""},{"$f":"IF(ISBLANK('TA Indicator Bank'!X364),\"\",'TA Indicator Bank'!X364)","v":""},{"$f":"IF(ISBLANK('TA Indicator Bank'!Y364),\"\",'TA Indicator Bank'!Y364)","v":""},{"$f":"IF(ISBLANK('TA Indicator Bank'!Z364),\"\",'TA Indicator Bank'!Z364)","v":""},{"$f":"IF(ISBLANK('TA Indicator Bank'!AA364),\"\",'TA Indicator Bank'!AA364)","v":""},{"$f":"IF(ISBLANK('TA Indicator Bank'!AB364),\"\",'TA Indicator Bank'!AB364)","v":""},{"$f":"IF(ISBLANK('TA Indicator Bank'!AC364),\"\",'TA Indicator Bank'!AC364)","v":""},{"$f":"IF(ISBLANK('TA Indicator Bank'!AD364),\"\",'TA Indicator Bank'!AD364)","v":""},{"$f":"IF(ISBLANK('TA Indicator Bank'!AE364),\"\",'TA Indicator Bank'!AE364)","v":""},{"$f":"IF(ISBLANK('TA Indicator Bank'!AF364),\"\",'TA Indicator Bank'!AF364)","v":""},{"$f":"IF(ISBLANK('TA Indicator Bank'!AG364),\"\",'TA Indicator Bank'!AG364)","v":""},{"$f":"IF(ISBLANK('TA Indicator Bank'!AH364),\"\",'TA Indicator Bank'!AH364)","v":""},{"$f":"IF(ISBLANK('TA Indicator Bank'!AI364),\"\",'TA Indicator Bank'!AI364)","v":""},{"$f":"IF(ISBLANK('TA Indicator Bank'!AJ364),\"\",'TA Indicator Bank'!AJ364)","v":""},{"$f":"IF(ISBLANK('TA Indicator Bank'!AK364),\"\",'TA Indicator Bank'!AK364)","v":""},{"$f":"IF(ISBLANK('TA Indicator Bank'!AL364),\"\",'TA Indicator Bank'!AL364)","v":""},{"$f":"IF(ISBLANK('TA Indicator Bank'!AM364),\"\",'TA Indicator Bank'!AM364)","v":""},{"$f":"IF(ISBLANK('TA Indicator Bank'!AN364),\"\",'TA Indicator Bank'!AN364)","v":""},{"$f":"IF(ISBLANK('TA Indicator Bank'!AO364),\"\",'TA Indicator Bank'!AO364)","v":""},{"$f":"IF(ISBLANK('TA Indicator Bank'!AP364),\"\",'TA Indicator Bank'!AP364)","v":""},{"$f":"IF(ISBLANK('TA Indicator Bank'!AQ364),\"\",'TA Indicator Bank'!AQ364)","v":""},{"$f":"IF(ISBLANK('TA Indicator Bank'!AR364),\"\",'TA Indicator Bank'!AR364)","v":""},{"$f":"IF(ISBLANK('TA Indicator Bank'!AS364),\"\",'TA Indicator Bank'!AS364)","v":""},{"$f":"IF(ISBLANK('TA Indicator Bank'!AT364),\"\",'TA Indicator Bank'!AT364)","v":""},0,0,0,0,0,0,0,0,0,0,0,0,0,0,1,0,0,0,0,0,0,0,0,0,1,0,0,0,0,0,0,0,0,0,1,0,0,0,0,0,1,1,360,360,"",{"$f":"IFERROR(INDEX($B$9:$I$408,$CM511,COLUMNS($CN$9:CN511)),\"\")","v":""},{"$f":"IFERROR(INDEX($B$9:$I$408,$CM511,COLUMNS($CN$9:CO511)),\"\")","v":""},{"$f":"IFERROR(INDEX($B$9:$I$408,$CM511,COLUMNS($CN$9:CP511)),\"\")","v":""},{"$f":"IFERROR(INDEX($B$9:$I$408,$CM511,COLUMNS($CN$9:CQ511)),\"\")","v":""},{"$f":"IFERROR(INDEX($B$9:$I$408,$CM511,COLUMNS($CN$9:CR511)),\"\")","v":""},{"$f":"IFERROR(INDEX($B$9:$I$408,$CM511,COLUMNS($CN$9:CS511)),\"\")","v":""},{"$f":"IFERROR(INDEX($B$9:$I$408,$CM511,COLUMNS($CN$9:CT511)),\"\")","v":""},{"$f":"IFERROR(INDEX($B$9:$I$408,$CM511,COLUMNS($CN$9:CU511)),\"\")","v":""}]
[null,{"$f":"IF(ISBLANK('TA Indicator Bank'!B365),\"\",'TA Indicator Bank'!B365)","v":""},{"$f":"IF(ISBLANK('TA Indicator Bank'!C365),\"\",'TA Indicator Bank'!C365)","v":""},{"$f":"IF(ISBLANK('TA Indicator Bank'!D365),\"\",'TA Indicator Bank'!D365)","v":""},{"$f":"IF(ISBLANK('TA Indicator Bank'!E365),\"\",'TA Indicator Bank'!E365)","v":""},{"$f":"IF(ISBLANK('TA Indicator Bank'!F365),\"\",'TA Indicator Bank'!F365)","v":""},{"$f":"IF(ISBLANK('TA Indicator Bank'!G365),\"\",'TA Indicator Bank'!G365)","v":""},{"$f":"IF(ISBLANK('TA Indicator Bank'!H365),\"\",'TA Indicator Bank'!H365)","v":""},{"$f":"IF(ISBLANK('TA Indicator Bank'!I365),\"\",'TA Indicator Bank'!I365)","v":""},{"$f":"IF(ISBLANK('TA Indicator Bank'!J365),\"\",'TA Indicator Bank'!J365)","v":""},{"$f":"IF(ISBLANK('TA Indicator Bank'!K365),\"\",'TA Indicator Bank'!K365)","v":""},{"$f":"IF(ISBLANK('TA Indicator Bank'!L365),\"\",'TA Indicator Bank'!L365)","v":""},{"$f":"IF(ISBLANK('TA Indicator Bank'!M365),\"\",'TA Indicator Bank'!M365)","v":""},{"$f":"IF(ISBLANK('TA Indicator Bank'!N365),\"\",'TA Indicator Bank'!N365)","v":""},{"$f":"IF(ISBLANK('TA Indicator Bank'!O365),\"\",'TA Indicator Bank'!O365)","v":""},{"$f":"IF(ISBLANK('TA Indicator Bank'!P365),\"\",'TA Indicator Bank'!P365)","v":""},{"$f":"IF(ISBLANK('TA Indicator Bank'!Q365),\"\",'TA Indicator Bank'!Q365)","v":""},{"$f":"IF(ISBLANK('TA Indicator Bank'!R365),\"\",'TA Indicator Bank'!R365)","v":""},{"$f":"IF(ISBLANK('TA Indicator Bank'!S365),\"\",'TA Indicator Bank'!S365)","v":""},{"$f":"IF(ISBLANK('TA Indicator Bank'!T365),\"\",'TA Indicator Bank'!T365)","v":""},{"$f":"IF(ISBLANK('TA Indicator Bank'!U365),\"\",'TA Indicator Bank'!U365)","v":""},{"$f":"IF(ISBLANK('TA Indicator Bank'!V365),\"\",'TA Indicator Bank'!V365)","v":""},{"$f":"IF(ISBLANK('TA Indicator Bank'!W365),\"\",'TA Indicator Bank'!W365)","v":""},{"$f":"IF(ISBLANK('TA Indicator Bank'!X365),\"\",'TA Indicator Bank'!X365)","v":""},{"$f":"IF(ISBLANK('TA Indicator Bank'!Y365),\"\",'TA Indicator Bank'!Y365)","v":""},{"$f":"IF(ISBLANK('TA Indicator Bank'!Z365),\"\",'TA Indicator Bank'!Z365)","v":""},{"$f":"IF(ISBLANK('TA Indicator Bank'!AA365),\"\",'TA Indicator Bank'!AA365)","v":""},{"$f":"IF(ISBLANK('TA Indicator Bank'!AB365),\"\",'TA Indicator Bank'!AB365)","v":""},{"$f":"IF(ISBLANK('TA Indicator Bank'!AC365),\"\",'TA Indicator Bank'!AC365)","v":""},{"$f":"IF(ISBLANK('TA Indicator Bank'!AD365),\"\",'TA Indicator Bank'!AD365)","v":""},{"$f":"IF(ISBLANK('TA Indicator Bank'!AE365),\"\",'TA Indicator Bank'!AE365)","v":""},{"$f":"IF(ISBLANK('TA Indicator Bank'!AF365),\"\",'TA Indicator Bank'!AF365)","v":""},{"$f":"IF(ISBLANK('TA Indicator Bank'!AG365),\"\",'TA Indicator Bank'!AG365)","v":""},{"$f":"IF(ISBLANK('TA Indicator Bank'!AH365),\"\",'TA Indicator Bank'!AH365)","v":""},{"$f":"IF(ISBLANK('TA Indicator Bank'!AI365),\"\",'TA Indicator Bank'!AI365)","v":""},{"$f":"IF(ISBLANK('TA Indicator Bank'!AJ365),\"\",'TA Indicator Bank'!AJ365)","v":""},{"$f":"IF(ISBLANK('TA Indicator Bank'!AK365),\"\",'TA Indicator Bank'!AK365)","v":""},{"$f":"IF(ISBLANK('TA Indicator Bank'!AL365),\"\",'TA Indicator Bank'!AL365)","v":""},{"$f":"IF(ISBLANK('TA Indicator Bank'!AM365),\"\",'TA Indicator Bank'!AM365)","v":""},{"$f":"IF(ISBLANK('TA Indicator Bank'!AN365),\"\",'TA Indicator Bank'!AN365)","v":""},{"$f":"IF(ISBLANK('TA Indicator Bank'!AO365),\"\",'TA Indicator Bank'!AO365)","v":""},{"$f":"IF(ISBLANK('TA Indicator Bank'!AP365),\"\",'TA Indicator Bank'!AP365)","v":""},{"$f":"IF(ISBLANK('TA Indicator Bank'!AQ365),\"\",'TA Indicator Bank'!AQ365)","v":""},{"$f":"IF(ISBLANK('TA Indicator Bank'!AR365),\"\",'TA Indicator Bank'!AR365)","v":""},{"$f":"IF(ISBLANK('TA Indicator Bank'!AS365),\"\",'TA Indicator Bank'!AS365)","v":""},{"$f":"IF(ISBLANK('TA Indicator Bank'!AT365),\"\",'TA Indicator Bank'!AT365)","v":""},0,0,0,0,0,0,0,0,0,0,0,0,0,0,1,0,0,0,0,0,0,0,0,0,1,0,0,0,0,0,0,0,0,0,1,0,0,0,0,0,1,1,361,361,"",{"$f":"IFERROR(INDEX($B$9:$I$408,$CM512,COLUMNS($CN$9:CN512)),\"\")","v":""},{"$f":"IFERROR(INDEX($B$9:$I$408,$CM512,COLUMNS($CN$9:CO512)),\"\")","v":""},{"$f":"IFERROR(INDEX($B$9:$I$408,$CM512,COLUMNS($CN$9:CP512)),\"\")","v":""},{"$f":"IFERROR(INDEX($B$9:$I$408,$CM512,COLUMNS($CN$9:CQ512)),\"\")","v":""},{"$f":"IFERROR(INDEX($B$9:$I$408,$CM512,COLUMNS($CN$9:CR512)),\"\")","v":""},{"$f":"IFERROR(INDEX($B$9:$I$408,$CM512,COLUMNS($CN$9:CS512)),\"\")","v":""},{"$f":"IFERROR(INDEX($B$9:$I$408,$CM512,COLUMNS($CN$9:CT512)),\"\")","v":""},{"$f":"IFERROR(INDEX($B$9:$I$408,$CM512,COLUMNS($CN$9:CU512)),\"\")","v":""}]
[null,{"$f":"IF(ISBLANK('TA Indicator Bank'!B366),\"\",'TA Indicator Bank'!B366)","v":""},{"$f":"IF(ISBLANK('TA Indicator Bank'!C366),\"\",'TA Indicator Bank'!C366)","v":""},{"$f":"IF(ISBLANK('TA Indicator Bank'!D366),\"\",'TA Indicator Bank'!D366)","v":""},{"$f":"IF(ISBLANK('TA Indicator Bank'!E366),\"\",'TA Indicator Bank'!E366)","v":""},{"$f":"IF(ISBLANK('TA Indicator Bank'!F366),\"\",'TA Indicator Bank'!F366)","v":""},{"$f":"IF(ISBLANK('TA Indicator Bank'!G366),\"\",'TA Indicator Bank'!G366)","v":""},{"$f":"IF(ISBLANK('TA Indicator Bank'!H366),\"\",'TA Indicator Bank'!H366)","v":""},{"$f":"IF(ISBLANK('TA Indicator Bank'!I366),\"\",'TA Indicator Bank'!I366)","v":""},{"$f":"IF(ISBLANK('TA Indicator Bank'!J366),\"\",'TA Indicator Bank'!J366)","v":""},{"$f":"IF(ISBLANK('TA Indicator Bank'!K366),\"\",'TA Indicator Bank'!K366)","v":""},{"$f":"IF(ISBLANK('TA Indicator Bank'!L366),\"\",'TA Indicator Bank'!L366)","v":""},{"$f":"IF(ISBLANK('TA Indicator Bank'!M366),\"\",'TA Indicator Bank'!M366)","v":""},{"$f":"IF(ISBLANK('TA Indicator Bank'!N366),\"\",'TA Indicator Bank'!N366)","v":""},{"$f":"IF(ISBLANK('TA Indicator Bank'!O366),\"\",'TA Indicator Bank'!O366)","v":""},{"$f":"IF(ISBLANK('TA Indicator Bank'!P366),\"\",'TA Indicator Bank'!P366)","v":""},{"$f":"IF(ISBLANK('TA Indicator Bank'!Q366),\"\",'TA Indicator Bank'!Q366)","v":""},{"$f":"IF(ISBLANK('TA Indicator Bank'!R366),\"\",'TA Indicator Bank'!R366)","v":""},{"$f":"IF(ISBLANK('TA Indicator Bank'!S366),\"\",'TA Indicator Bank'!S366)","v":""},{"$f":"IF(ISBLANK('TA Indicator Bank'!T366),\"\",'TA Indicator Bank'!T366)","v":""},{"$f":"IF(ISBLANK('TA Indicator Bank'!U366),\"\",'TA Indicator Bank'!U366)","v":""},{"$f":"IF(ISBLANK('TA Indicator Bank'!V366),\"\",'TA Indicator Bank'!V366)","v":""},{"$f":"IF(ISBLANK('TA Indicator Bank'!W366),\"\",'TA Indicator Bank'!W366)","v":""},{"$f":"IF(ISBLANK('TA Indicator Bank'!X366),\"\",'TA Indicator Bank'!X366)","v":""},{"$f":"IF(ISBLANK('TA Indicator Bank'!Y366),\"\",'TA Indicator Bank'!Y366)","v":""},{"$f":"IF(ISBLANK('TA Indicator Bank'!Z366),\"\",'TA Indicator Bank'!Z366)","v":""},{"$f":"IF(ISBLANK('TA Indicator Bank'!AA366),\"\",'TA Indicator Bank'!AA366)","v":""},{"$f":"IF(ISBLANK('TA Indicator Bank'!AB366),\"\",'TA Indicator Bank'!AB366)","v":""},{"$f":"IF(ISBLANK('TA Indicator Bank'!AC366),\"\",'TA Indicator Bank'!AC366)","v":""},{"$f":"IF(ISBLANK('TA Indicator Bank'!AD366),\"\",'TA Indicator Bank'!AD366)","v":""},{"$f":"IF(ISBLANK('TA Indicator Bank'!AE366),\"\",'TA Indicator Bank'!AE366)","v":""},{"$f":"IF(ISBLANK('TA Indicator Bank'!AF366),\"\",'TA Indicator Bank'!AF366)","v":""},{"$f":"IF(ISBLANK('TA Indicator Bank'!AG366),\"\",'TA Indicator Bank'!AG366)","v":""},{"$f":"IF(ISBLANK('TA Indicator Bank'!AH366),\"\",'TA Indicator Bank'!AH366)","v":""},{"$f":"IF(ISBLANK('TA Indicator Bank'!AI366),\"\",'TA Indicator Bank'!AI366)","v":""},{"$f":"IF(ISBLANK('TA Indicator Bank'!AJ366),\"\",'TA Indicator Bank'!AJ366)","v":""},{"$f":"IF(ISBLANK('TA Indicator Bank'!AK366),\"\",'TA Indicator Bank'!AK366)","v":""},{"$f":"IF(ISBLANK('TA Indicator Bank'!AL366),\"\",'TA Indicator Bank'!AL366)","v":""},{"$f":"IF(ISBLANK('TA Indicator Bank'!AM366),\"\",'TA Indicator Bank'!AM366)","v":""},{"$f":"IF(ISBLANK('TA Indicator Bank'!AN366),\"\",'TA Indicator Bank'!AN366)","v":""},{"$f":"IF(ISBLANK('TA Indicator Bank'!AO366),\"\",'TA Indicator Bank'!AO366)","v":""},{"$f":"IF(ISBLANK('TA Indicator Bank'!AP366),\"\",'TA Indicator Bank'!AP366)","v":""},{"$f":"IF(ISBLANK('TA Indicator Bank'!AQ366),\"\",'TA Indicator Bank'!AQ366)","v":""},{"$f":"IF(ISBLANK('TA Indicator Bank'!AR366),\"\",'TA Indicator Bank'!AR366)","v":""},{"$f":"IF(ISBLANK('TA Indicator Bank'!AS366),\"\",'TA Indicator Bank'!AS366)","v":""},{"$f":"IF(ISBLANK('TA Indicator Bank'!AT366),\"\",'TA Indicator Bank'!AT366)","v":""},0,0,0,0,0,0,0,0,0,0,0,0,0,0,1,0,0,0,0,0,0,0,0,0,1,0,0,0,0,0,0,0,0,0,1,0,0,0,0,0,1,1,362,362,"",{"$f":"IFERROR(INDEX($B$9:$I$408,$CM513,COLUMNS($CN$9:CN513)),\"\")","v":""},{"$f":"IFERROR(INDEX($B$9:$I$408,$CM513,COLUMNS($CN$9:CO513)),\"\")","v":""},{"$f":"IFERROR(INDEX($B$9:$I$408,$CM513,COLUMNS($CN$9:CP513)),\"\")","v":""},{"$f":"IFERROR(INDEX($B$9:$I$408,$CM513,COLUMNS($CN$9:CQ513)),\"\")","v":""},{"$f":"IFERROR(INDEX($B$9:$I$408,$CM513,COLUMNS($CN$9:CR513)),\"\")","v":""},{"$f":"IFERROR(INDEX($B$9:$I$408,$CM513,COLUMNS($CN$9:CS513)),\"\")","v":""},{"$f":"IFERROR(INDEX($B$9:$I$408,$CM513,COLUMNS($CN$9:CT513)),\"\")","v":""},{"$f":"IFERROR(INDEX($B$9:$I$408,$CM513,COLUMNS($CN$9:CU513)),\"\")","v":""}]
[null,{"$f":"IF(ISBLANK('TA Indicator Bank'!B367),\"\",'TA Indicator Bank'!B367)","v":""},{"$f":"IF(ISBLANK('TA Indicator Bank'!C367),\"\",'TA Indicator Bank'!C367)","v":""},{"$f":"IF(ISBLANK('TA Indicator Bank'!D367),\"\",'TA Indicator Bank'!D367)","v":""},{"$f":"IF(ISBLANK('TA Indicator Bank'!E367),\"\",'TA Indicator Bank'!E367)","v":""},{"$f":"IF(ISBLANK('TA Indicator Bank'!F367),\"\",'TA Indicator Bank'!F367)","v":""},{"$f":"IF(ISBLANK('TA Indicator Bank'!G367),\"\",'TA Indicator Bank'!G367)","v":""},{"$f":"IF(ISBLANK('TA Indicator Bank'!H367),\"\",'TA Indicator Bank'!H367)","v":""},{"$f":"IF(ISBLANK('TA Indicator Bank'!I367),\"\",'TA Indicator Bank'!I367)","v":""},{"$f":"IF(ISBLANK('TA Indicator Bank'!J367),\"\",'TA Indicator Bank'!J367)","v":""},{"$f":"IF(ISBLANK('TA Indicator Bank'!K367),\"\",'TA Indicator Bank'!K367)","v":""},{"$f":"IF(ISBLANK('TA Indicator Bank'!L367),\"\",'TA Indicator Bank'!L367)","v":""},{"$f":"IF(ISBLANK('TA Indicator Bank'!M367),\"\",'TA Indicator Bank'!M367)","v":""},{"$f":"IF(ISBLANK('TA Indicator Bank'!N367),\"\",'TA Indicator Bank'!N367)","v":""},{"$f":"IF(ISBLANK('TA Indicator Bank'!O367),\"\",'TA Indicator Bank'!O367)","v":""},{"$f":"IF(ISBLANK('TA Indicator Bank'!P367),\"\",'TA Indicator Bank'!P367)","v":""},{"$f":"IF(ISBLANK('TA Indicator Bank'!Q367),\"\",'TA Indicator Bank'!Q367)","v":""},{"$f":"IF(ISBLANK('TA Indicator Bank'!R367),\"\",'TA Indicator Bank'!R367)","v":""},{"$f":"IF(ISBLANK('TA Indicator Bank'!S367),\"\",'TA Indicator Bank'!S367)","v":""},{"$f":"IF(ISBLANK('TA Indicator Bank'!T367),\"\",'TA Indicator Bank'!T367)","v":""},{"$f":"IF(ISBLANK('TA Indicator Bank'!U367),\"\",'TA Indicator Bank'!U367)","v":""},{"$f":"IF(ISBLANK('TA Indicator Bank'!V367),\"\",'TA Indicator Bank'!V367)","v":""},{"$f":"IF(ISBLANK('TA Indicator Bank'!W367),\"\",'TA Indicator Bank'!W367)","v":""},{"$f":"IF(ISBLANK('TA Indicator Bank'!X367),\"\",'TA Indicator Bank'!X367)","v":""},{"$f":"IF(ISBLANK('TA Indicator Bank'!Y367),\"\",'TA Indicator Bank'!Y367)","v":""},{"$f":"IF(ISBLANK('TA Indicator Bank'!Z367),\"\",'TA Indicator Bank'!Z367)","v":""},{"$f":"IF(ISBLANK('TA Indicator Bank'!AA367),\"\",'TA Indicator Bank'!AA367)","v":""},{"$f":"IF(ISBLANK('TA Indicator Bank'!AB367),\"\",'TA Indicator Bank'!AB367)","v":""},{"$f":"IF(ISBLANK('TA Indicator Bank'!AC367),\"\",'TA Indicator Bank'!AC367)","v":""},{"$f":"IF(ISBLANK('TA Indicator Bank'!AD367),\"\",'TA Indicator Bank'!AD367)","v":""},{"$f":"IF(ISBLANK('TA Indicator Bank'!AE367),\"\",'TA Indicator Bank'!AE367)","v":""},{"$f":"IF(ISBLANK('TA Indicator Bank'!AF367),\"\",'TA Indicator Bank'!AF367)","v":""},{"$f":"IF(ISBLANK('TA Indicator Bank'!AG367),\"\",'TA Indicator Bank'!AG367)","v":""},{"$f":"IF(ISBLANK('TA Indicator Bank'!AH367),\"\",'TA Indicator Bank'!AH367)","v":""},{"$f":"IF(ISBLANK('TA Indicator Bank'!AI367),\"\",'TA Indicator Bank'!AI367)","v":""},{"$f":"IF(ISBLANK('TA Indicator Bank'!AJ367),\"\",'TA Indicator Bank'!AJ367)","v":""},{"$f":"IF(ISBLANK('TA Indicator Bank'!AK367),\"\",'TA Indicator Bank'!AK367)","v":""},{"$f":"IF(ISBLANK('TA Indicator Bank'!AL367),\"\",'TA Indicator Bank'!AL367)","v":""},{"$f":"IF(ISBLANK('TA Indicator Bank'!AM367),\"\",'TA Indicator Bank'!AM367)","v":""},{"$f":"IF(ISBLANK('TA Indicator Bank'!AN367),\"\",'TA Indicator Bank'!AN367)","v":""},{"$f":"IF(ISBLANK('TA Indicator Bank'!AO367),\"\",'TA Indicator Bank'!AO367)","v":""},{"$f":"IF(ISBLANK('TA Indicator Bank'!AP367),\"\",'TA Indicator Bank'!AP367)","v":""},{"$f":"IF(ISBLANK('TA Indicator Bank'!AQ367),\"\",'TA Indicator Bank'!AQ367)","v":""},{"$f":"IF(ISBLANK('TA Indicator Bank'!AR367),\"\",'TA Indicator Bank'!AR367)","v":""},{"$f":"IF(ISBLANK('TA Indicator Bank'!AS367),\"\",'TA Indicator Bank'!AS367)","v":""},{"$f":"IF(ISBLANK('TA Indicator Bank'!AT367),\"\",'TA Indicator Bank'!AT367)","v":""},0,0,0,0,0,0,0,0,0,0,0,0,0,0,1,0,0,0,0,0,0,0,0,0,1,0,0,0,0,0,0,0,0,0,1,0,0,0,0,0,1,1,363,363,"",{"$f":"IFERROR(INDEX($B$9:$I$408,$CM514,COLUMNS($CN$9:CN514)),\"\")","v":""},{"$f":"IFERROR(INDEX($B$9:$I$408,$CM514,COLUMNS($CN$9:CO514)),\"\")","v":""},{"$f":"IFERROR(INDEX($B$9:$I$408,$CM514,COLUMNS($CN$9:CP514)),\"\")","v":""},{"$f":"IFERROR(INDEX($B$9:$I$408,$CM514,COLUMNS($CN$9:CQ514)),\"\")","v":""},{"$f":"IFERROR(INDEX($B$9:$I$408,$CM514,COLUMNS($CN$9:CR514)),\"\")","v":""},{"$f":"IFERROR(INDEX($B$9:$I$408,$CM514,COLUMNS($CN$9:CS514)),\"\")","v":""},{"$f":"IFERROR(INDEX($B$9:$I$408,$CM514,COLUMNS($CN$9:CT514)),\"\")","v":""},{"$f":"IFERROR(INDEX($B$9:$I$408,$CM514,COLUMNS($CN$9:CU514)),\"\")","v":""}]
[null,{"$f":"IF(ISBLANK('TA Indicator Bank'!B368),\"\",'TA Indicator Bank'!B368)","v":""},{"$f":"IF(ISBLANK('TA Indicator Bank'!C368),\"\",'TA Indicator Bank'!C368)","v":""},{"$f":"IF(ISBLANK('TA Indicator Bank'!D368),\"\",'TA Indicator Bank'!D368)","v":""},{"$f":"IF(ISBLANK('TA Indicator Bank'!E368),\"\",'TA Indicator Bank'!E368)","v":""},{"$f":"IF(ISBLANK('TA Indicator Bank'!F368),\"\",'TA Indicator Bank'!F368)","v":""},{"$f":"IF(ISBLANK('TA Indicator Bank'!G368),\"\",'TA Indicator Bank'!G368)","v":""},{"$f":"IF(ISBLANK('TA Indicator Bank'!H368),\"\",'TA Indicator Bank'!H368)","v":""},{"$f":"IF(ISBLANK('TA Indicator Bank'!I368),\"\",'TA Indicator Bank'!I368)","v":""},{"$f":"IF(ISBLANK('TA Indicator Bank'!J368),\"\",'TA Indicator Bank'!J368)","v":""},{"$f":"IF(ISBLANK('TA Indicator Bank'!K368),\"\",'TA Indicator Bank'!K368)","v":""},{"$f":"IF(ISBLANK('TA Indicator Bank'!L368),\"\",'TA Indicator Bank'!L368)","v":""},{"$f":"IF(ISBLANK('TA Indicator Bank'!M368),\"\",'TA Indicator Bank'!M368)","v":""},{"$f":"IF(ISBLANK('TA Indicator Bank'!N368),\"\",'TA Indicator Bank'!N368)","v":""},{"$f":"IF(ISBLANK('TA Indicator Bank'!O368),\"\",'TA Indicator Bank'!O368)","v":""},{"$f":"IF(ISBLANK('TA Indicator Bank'!P368),\"\",'TA Indicator Bank'!P368)","v":""},{"$f":"IF(ISBLANK('TA Indicator Bank'!Q368),\"\",'TA Indicator Bank'!Q368)","v":""},{"$f":"IF(ISBLANK('TA Indicator Bank'!R368),\"\",'TA Indicator Bank'!R368)","v":""},{"$f":"IF(ISBLANK('TA Indicator Bank'!S368),\"\",'TA Indicator Bank'!S368)","v":""},{"$f":"IF(ISBLANK('TA Indicator Bank'!T368),\"\",'TA Indicator Bank'!T368)","v":""},{"$f":"IF(ISBLANK('TA Indicator Bank'!U368),\"\",'TA Indicator Bank'!U368)","v":""},{"$f":"IF(ISBLANK('TA Indicator Bank'!V368),\"\",'TA Indicator Bank'!V368)","v":""},{"$f":"IF(ISBLANK('TA Indicator Bank'!W368),\"\",'TA Indicator Bank'!W368)","v":""},{"$f":"IF(ISBLANK('TA Indicator Bank'!X368),\"\",'TA Indicator Bank'!X368)","v":""},{"$f":"IF(ISBLANK('TA Indicator Bank'!Y368),\"\",'TA Indicator Bank'!Y368)","v":""},{"$f":"IF(ISBLANK('TA Indicator Bank'!Z368),\"\",'TA Indicator Bank'!Z368)","v":""},{"$f":"IF(ISBLANK('TA Indicator Bank'!AA368),\"\",'TA Indicator Bank'!AA368)","v":""},{"$f":"IF(ISBLANK('TA Indicator Bank'!AB368),\"\",'TA Indicator Bank'!AB368)","v":""},{"$f":"IF(ISBLANK('TA Indicator Bank'!AC368),\"\",'TA Indicator Bank'!AC368)","v":""},{"$f":"IF(ISBLANK('TA Indicator Bank'!AD368),\"\",'TA Indicator Bank'!AD368)","v":""},{"$f":"IF(ISBLANK('TA Indicator Bank'!AE368),\"\",'TA Indicator Bank'!AE368)","v":""},{"$f":"IF(ISBLANK('TA Indicator Bank'!AF368),\"\",'TA Indicator Bank'!AF368)","v":""},{"$f":"IF(ISBLANK('TA Indicator Bank'!AG368),\"\",'TA Indicator Bank'!AG368)","v":""},{"$f":"IF(ISBLANK('TA Indicator Bank'!AH368),\"\",'TA Indicator Bank'!AH368)","v":""},{"$f":"IF(ISBLANK('TA Indicator Bank'!AI368),\"\",'TA Indicator Bank'!AI368)","v":""},{"$f":"IF(ISBLANK('TA Indicator Bank'!AJ368),\"\",'TA Indicator Bank'!AJ368)","v":""},{"$f":"IF(ISBLANK('TA Indicator Bank'!AK368),\"\",'TA Indicator Bank'!AK368)","v":""},{"$f":"IF(ISBLANK('TA Indicator Bank'!AL368),\"\",'TA Indicator Bank'!AL368)","v":""},{"$f":"IF(ISBLANK('TA Indicator Bank'!AM368),\"\",'TA Indicator Bank'!AM368)","v":""},{"$f":"IF(ISBLANK('TA Indicator Bank'!AN368),\"\",'TA Indicator Bank'!AN368)","v":""},{"$f":"IF(ISBLANK('TA Indicator Bank'!AO368),\"\",'TA Indicator Bank'!AO368)","v":""},{"$f":"IF(ISBLANK('TA Indicator Bank'!AP368),\"\",'TA Indicator Bank'!AP368)","v":""},{"$f":"IF(ISBLANK('TA Indicator Bank'!AQ368),\"\",'TA Indicator Bank'!AQ368)","v":""},{"$f":"IF(ISBLANK('TA Indicator Bank'!AR368),\"\",'TA Indicator Bank'!AR368)","v":""},{"$f":"IF(ISBLANK('TA Indicator Bank'!AS368),\"\",'TA Indicator Bank'!AS368)","v":""},{"$f":"IF(ISBLANK('TA Indicator Bank'!AT368),\"\",'TA Indicator Bank'!AT368)","v":""},0,0,0,0,0,0,0,0,0,0,0,0,0,0,1,0,0,0,0,0,0,0,0,0,1,0,0,0,0,0,0,0,0,0,1,0,0,0,0,0,1,1,364,364,"",{"$f":"IFERROR(INDEX($B$9:$I$408,$CM515,COLUMNS($CN$9:CN515)),\"\")","v":""},{"$f":"IFERROR(INDEX($B$9:$I$408,$CM515,COLUMNS($CN$9:CO515)),\"\")","v":""},{"$f":"IFERROR(INDEX($B$9:$I$408,$CM515,COLUMNS($CN$9:CP515)),\"\")","v":""},{"$f":"IFERROR(INDEX($B$9:$I$408,$CM515,COLUMNS($CN$9:CQ515)),\"\")","v":""},{"$f":"IFERROR(INDEX($B$9:$I$408,$CM515,COLUMNS($CN$9:CR515)),\"\")","v":""},{"$f":"IFERROR(INDEX($B$9:$I$408,$CM515,COLUMNS($CN$9:CS515)),\"\")","v":""},{"$f":"IFERROR(INDEX($B$9:$I$408,$CM515,COLUMNS($CN$9:CT515)),\"\")","v":""},{"$f":"IFERROR(INDEX($B$9:$I$408,$CM515,COLUMNS($CN$9:CU515)),\"\")","v":""}]
[null,{"$f":"IF(ISBLANK('TA Indicator Bank'!B369),\"\",'TA Indicator Bank'!B369)","v":""},{"$f":"IF(ISBLANK('TA Indicator Bank'!C369),\"\",'TA Indicator Bank'!C369)","v":""},{"$f":"IF(ISBLANK('TA Indicator Bank'!D369),\"\",'TA Indicator Bank'!D369)","v":""},{"$f":"IF(ISBLANK('TA Indicator Bank'!E369),\"\",'TA Indicator Bank'!E369)","v":""},{"$f":"IF(ISBLANK('TA Indicator Bank'!F369),\"\",'TA Indicator Bank'!F369)","v":""},{"$f":"IF(ISBLANK('TA Indicator Bank'!G369),\"\",'TA Indicator Bank'!G369)","v":""},{"$f":"IF(ISBLANK('TA Indicator Bank'!H369),\"\",'TA Indicator Bank'!H369)","v":""},{"$f":"IF(ISBLANK('TA Indicator Bank'!I369),\"\",'TA Indicator Bank'!I369)","v":""},{"$f":"IF(ISBLANK('TA Indicator Bank'!J369),\"\",'TA Indicator Bank'!J369)","v":""},{"$f":"IF(ISBLANK('TA Indicator Bank'!K369),\"\",'TA Indicator Bank'!K369)","v":""},{"$f":"IF(ISBLANK('TA Indicator Bank'!L369),\"\",'TA Indicator Bank'!L369)","v":""},{"$f":"IF(ISBLANK('TA Indicator Bank'!M369),\"\",'TA Indicator Bank'!M369)","v":""},{"$f":"IF(ISBLANK('TA Indicator Bank'!N369),\"\",'TA Indicator Bank'!N369)","v":""},{"$f":"IF(ISBLANK('TA Indicator Bank'!O369),\"\",'TA Indicator Bank'!O369)","v":""},{"$f":"IF(ISBLANK('TA Indicator Bank'!P369),\"\",'TA Indicator Bank'!P369)","v":""},{"$f":"IF(ISBLANK('TA Indicator Bank'!Q369),\"\",'TA Indicator Bank'!Q369)","v":""},{"$f":"IF(ISBLANK('TA Indicator Bank'!R369),\"\",'TA Indicator Bank'!R369)","v":""},{"$f":"IF(ISBLANK('TA Indicator Bank'!S369),\"\",'TA Indicator Bank'!S369)","v":""},{"$f":"IF(ISBLANK('TA Indicator Bank'!T369),\"\",'TA Indicator Bank'!T369)","v":""},{"$f":"IF(ISBLANK('TA Indicator Bank'!U369),\"\",'TA Indicator Bank'!U369)","v":""},{"$f":"IF(ISBLANK('TA Indicator Bank'!V369),\"\",'TA Indicator Bank'!V369)","v":""},{"$f":"IF(ISBLANK('TA Indicator Bank'!W369),\"\",'TA Indicator Bank'!W369)","v":""},{"$f":"IF(ISBLANK('TA Indicator Bank'!X369),\"\",'TA Indicator Bank'!X369)","v":""},{"$f":"IF(ISBLANK('TA Indicator Bank'!Y369),\"\",'TA Indicator Bank'!Y369)","v":""},{"$f":"IF(ISBLANK('TA Indicator Bank'!Z369),\"\",'TA Indicator Bank'!Z369)","v":""},{"$f":"IF(ISBLANK('TA Indicator Bank'!AA369),\"\",'TA Indicator Bank'!AA369)","v":""},{"$f":"IF(ISBLANK('TA Indicator Bank'!AB369),\"\",'TA Indicator Bank'!AB369)","v":""},{"$f":"IF(ISBLANK('TA Indicator Bank'!AC369),\"\",'TA Indicator Bank'!AC369)","v":""},{"$f":"IF(ISBLANK('TA Indicator Bank'!AD369),\"\",'TA Indicator Bank'!AD369)","v":""},{"$f":"IF(ISBLANK('TA Indicator Bank'!AE369),\"\",'TA Indicator Bank'!AE369)","v":""},{"$f":"IF(ISBLANK('TA Indicator Bank'!AF369),\"\",'TA Indicator Bank'!AF369)","v":""},{"$f":"IF(ISBLANK('TA Indicator Bank'!AG369),\"\",'TA Indicator Bank'!AG369)","v":""},{"$f":"IF(ISBLANK('TA Indicator Bank'!AH369),\"\",'TA Indicator Bank'!AH369)","v":""},{"$f":"IF(ISBLANK('TA Indicator Bank'!AI369),\"\",'TA Indicator Bank'!AI369)","v":""},{"$f":"IF(ISBLANK('TA Indicator Bank'!AJ369),\"\",'TA Indicator Bank'!AJ369)","v":""},{"$f":"IF(ISBLANK('TA Indicator Bank'!AK369),\"\",'TA Indicator Bank'!AK369)","v":""},{"$f":"IF(ISBLANK('TA Indicator Bank'!AL369),\"\",'TA Indicator Bank'!AL369)","v":""},{"$f":"IF(ISBLANK('TA Indicator Bank'!AM369),\"\",'TA Indicator Bank'!AM369)","v":""},{"$f":"IF(ISBLANK('TA Indicator Bank'!AN369),\"\",'TA Indicator Bank'!AN369)","v":""},{"$f":"IF(ISBLANK('TA Indicator Bank'!AO369),\"\",'TA Indicator Bank'!AO369)","v":""},{"$f":"IF(ISBLANK('TA Indicator Bank'!AP369),\"\",'TA Indicator Bank'!AP369)","v":""},{"$f":"IF(ISBLANK('TA Indicator Bank'!AQ369),\"\",'TA Indicator Bank'!AQ369)","v":""},{"$f":"IF(ISBLANK('TA Indicator Bank'!AR369),\"\",'TA Indicator Bank'!AR369)","v":""},{"$f":"IF(ISBLANK('TA Indicator Bank'!AS369),\"\",'TA Indicator Bank'!AS369)","v":""},{"$f":"IF(ISBLANK('TA Indicator Bank'!AT369),\"\",'TA Indicator Bank'!AT369)","v":""},0,0,0,0,0,0,0,0,0,0,0,0,0,0,1,0,0,0,0,0,0,0,0,0,1,0,0,0,0,0,0,0,0,0,1,0,0,0,0,0,1,1,365,365,"",{"$f":"IFERROR(INDEX($B$9:$I$408,$CM516,COLUMNS($CN$9:CN516)),\"\")","v":""},{"$f":"IFERROR(INDEX($B$9:$I$408,$CM516,COLUMNS($CN$9:CO516)),\"\")","v":""},{"$f":"IFERROR(INDEX($B$9:$I$408,$CM516,COLUMNS($CN$9:CP516)),\"\")","v":""},{"$f":"IFERROR(INDEX($B$9:$I$408,$CM516,COLUMNS($CN$9:CQ516)),\"\")","v":""},{"$f":"IFERROR(INDEX($B$9:$I$408,$CM516,COLUMNS($CN$9:CR516)),\"\")","v":""},{"$f":"IFERROR(INDEX($B$9:$I$408,$CM516,COLUMNS($CN$9:CS516)),\"\")","v":""},{"$f":"IFERROR(INDEX($B$9:$I$408,$CM516,COLUMNS($CN$9:CT516)),\"\")","v":""},{"$f":"IFERROR(INDEX($B$9:$I$408,$CM516,COLUMNS($CN$9:CU516)),\"\")","v":""}]
[null,{"$f":"IF(ISBLANK('TA Indicator Bank'!B370),\"\",'TA Indicator Bank'!B370)","v":""},{"$f":"IF(ISBLANK('TA Indicator Bank'!C370),\"\",'TA Indicator Bank'!C370)","v":""},{"$f":"IF(ISBLANK('TA Indicator Bank'!D370),\"\",'TA Indicator Bank'!D370)","v":""},{"$f":"IF(ISBLANK('TA Indicator Bank'!E370),\"\",'TA Indicator Bank'!E370)","v":""},{"$f":"IF(ISBLANK('TA Indicator Bank'!F370),\"\",'TA Indicator Bank'!F370)","v":""},{"$f":"IF(ISBLANK('TA Indicator Bank'!G370),\"\",'TA Indicator Bank'!G370)","v":""},{"$f":"IF(ISBLANK('TA Indicator Bank'!H370),\"\",'TA Indicator Bank'!H370)","v":""},{"$f":"IF(ISBLANK('TA Indicator Bank'!I370),\"\",'TA Indicator Bank'!I370)","v":""},{"$f":"IF(ISBLANK('TA Indicator Bank'!J370),\"\",'TA Indicator Bank'!J370)","v":""},{"$f":"IF(ISBLANK('TA Indicator Bank'!K370),\"\",'TA Indicator Bank'!K370)","v":""},{"$f":"IF(ISBLANK('TA Indicator Bank'!L370),\"\",'TA Indicator Bank'!L370)","v":""},{"$f":"IF(ISBLANK('TA Indicator Bank'!M370),\"\",'TA Indicator Bank'!M370)","v":""},{"$f":"IF(ISBLANK('TA Indicator Bank'!N370),\"\",'TA Indicator Bank'!N370)","v":""},{"$f":"IF(ISBLANK('TA Indicator Bank'!O370),\"\",'TA Indicator Bank'!O370)","v":""},{"$f":"IF(ISBLANK('TA Indicator Bank'!P370),\"\",'TA Indicator Bank'!P370)","v":""},{"$f":"IF(ISBLANK('TA Indicator Bank'!Q370),\"\",'TA Indicator Bank'!Q370)","v":""},{"$f":"IF(ISBLANK('TA Indicator Bank'!R370),\"\",'TA Indicator Bank'!R370)","v":""},{"$f":"IF(ISBLANK('TA Indicator Bank'!S370),\"\",'TA Indicator Bank'!S370)","v":""},{"$f":"IF(ISBLANK('TA Indicator Bank'!T370),\"\",'TA Indicator Bank'!T370)","v":""},{"$f":"IF(ISBLANK('TA Indicator Bank'!U370),\"\",'TA Indicator Bank'!U370)","v":""},{"$f":"IF(ISBLANK('TA Indicator Bank'!V370),\"\",'TA Indicator Bank'!V370)","v":""},{"$f":"IF(ISBLANK('TA Indicator Bank'!W370),\"\",'TA Indicator Bank'!W370)","v":""},{"$f":"IF(ISBLANK('TA Indicator Bank'!X370),\"\",'TA Indicator Bank'!X370)","v":""},{"$f":"IF(ISBLANK('TA Indicator Bank'!Y370),\"\",'TA Indicator Bank'!Y370)","v":""},{"$f":"IF(ISBLANK('TA Indicator Bank'!Z370),\"\",'TA Indicator Bank'!Z370)","v":""},{"$f":"IF(ISBLANK('TA Indicator Bank'!AA370),\"\",'TA Indicator Bank'!AA370)","v":""},{"$f":"IF(ISBLANK('TA Indicator Bank'!AB370),\"\",'TA Indicator Bank'!AB370)","v":""},{"$f":"IF(ISBLANK('TA Indicator Bank'!AC370),\"\",'TA Indicator Bank'!AC370)","v":""},{"$f":"IF(ISBLANK('TA Indicator Bank'!AD370),\"\",'TA Indicator Bank'!AD370)","v":""},{"$f":"IF(ISBLANK('TA Indicator Bank'!AE370),\"\",'TA Indicator Bank'!AE370)","v":""},{"$f":"IF(ISBLANK('TA Indicator Bank'!AF370),\"\",'TA Indicator Bank'!AF370)","v":""},{"$f":"IF(ISBLANK('TA Indicator Bank'!AG370),\"\",'TA Indicator Bank'!AG370)","v":""},{"$f":"IF(ISBLANK('TA Indicator Bank'!AH370),\"\",'TA Indicator Bank'!AH370)","v":""},{"$f":"IF(ISBLANK('TA Indicator Bank'!AI370),\"\",'TA Indicator Bank'!AI370)","v":""},{"$f":"IF(ISBLANK('TA Indicator Bank'!AJ370),\"\",'TA Indicator Bank'!AJ370)","v":""},{"$f":"IF(ISBLANK('TA Indicator Bank'!AK370),\"\",'TA Indicator Bank'!AK370)","v":""},{"$f":"IF(ISBLANK('TA Indicator Bank'!AL370),\"\",'TA Indicator Bank'!AL370)","v":""},{"$f":"IF(ISBLANK('TA Indicator Bank'!AM370),\"\",'TA Indicator Bank'!AM370)","v":""},{"$f":"IF(ISBLANK('TA Indicator Bank'!AN370),\"\",'TA Indicator Bank'!AN370)","v":""},{"$f":"IF(ISBLANK('TA Indicator Bank'!AO370),\"\",'TA Indicator Bank'!AO370)","v":""},{"$f":"IF(ISBLANK('TA Indicator Bank'!AP370),\"\",'TA Indicator Bank'!AP370)","v":""},{"$f":"IF(ISBLANK('TA Indicator Bank'!AQ370),\"\",'TA Indicator Bank'!AQ370)","v":""},{"$f":"IF(ISBLANK('TA Indicator Bank'!AR370),\"\",'TA Indicator Bank'!AR370)","v":""},{"$f":"IF(ISBLANK('TA Indicator Bank'!AS370),\"\",'TA Indicator Bank'!AS370)","v":""},{"$f":"IF(ISBLANK('TA Indicator Bank'!AT370),\"\",'TA Indicator Bank'!AT370)","v":""},0,0,0,0,0,0,0,0,0,0,0,0,0,0,1,0,0,0,0,0,0,0,0,0,1,0,0,0,0,0,0,0,0,0,1,0,0,0,0,0,1,1,366,366,"",{"$f":"IFERROR(INDEX($B$9:$I$408,$CM517,COLUMNS($CN$9:CN517)),\"\")","v":""},{"$f":"IFERROR(INDEX($B$9:$I$408,$CM517,COLUMNS($CN$9:CO517)),\"\")","v":""},{"$f":"IFERROR(INDEX($B$9:$I$408,$CM517,COLUMNS($CN$9:CP517)),\"\")","v":""},{"$f":"IFERROR(INDEX($B$9:$I$408,$CM517,COLUMNS($CN$9:CQ517)),\"\")","v":""},{"$f":"IFERROR(INDEX($B$9:$I$408,$CM517,COLUMNS($CN$9:CR517)),\"\")","v":""},{"$f":"IFERROR(INDEX($B$9:$I$408,$CM517,COLUMNS($CN$9:CS517)),\"\")","v":""},{"$f":"IFERROR(INDEX($B$9:$I$408,$CM517,COLUMNS($CN$9:CT517)),\"\")","v":""},{"$f":"IFERROR(INDEX($B$9:$I$408,$CM517,COLUMNS($CN$9:CU517)),\"\")","v":""}]
[null,{"$f":"IF(ISBLANK('TA Indicator Bank'!B371),\"\",'TA Indicator Bank'!B371)","v":""},{"$f":"IF(ISBLANK('TA Indicator Bank'!C371),\"\",'TA Indicator Bank'!C371)","v":""},{"$f":"IF(ISBLANK('TA Indicator Bank'!D371),\"\",'TA Indicator Bank'!D371)","v":""},{"$f":"IF(ISBLANK('TA Indicator Bank'!E371),\"\",'TA Indicator Bank'!E371)","v":""},{"$f":"IF(ISBLANK('TA Indicator Bank'!F371),\"\",'TA Indicator Bank'!F371)","v":""},{"$f":"IF(ISBLANK('TA Indicator Bank'!G371),\"\",'TA Indicator Bank'!G371)","v":""},{"$f":"IF(ISBLANK('TA Indicator Bank'!H371),\"\",'TA Indicator Bank'!H371)","v":""},{"$f":"IF(ISBLANK('TA Indicator Bank'!I371),\"\",'TA Indicator Bank'!I371)","v":""},{"$f":"IF(ISBLANK('TA Indicator Bank'!J371),\"\",'TA Indicator Bank'!J371)","v":""},{"$f":"IF(ISBLANK('TA Indicator Bank'!K371),\"\",'TA Indicator Bank'!K371)","v":""},{"$f":"IF(ISBLANK('TA Indicator Bank'!L371),\"\",'TA Indicator Bank'!L371)","v":""},{"$f":"IF(ISBLANK('TA Indicator Bank'!M371),\"\",'TA Indicator Bank'!M371)","v":""},{"$f":"IF(ISBLANK('TA Indicator Bank'!N371),\"\",'TA Indicator Bank'!N371)","v":""},{"$f":"IF(ISBLANK('TA Indicator Bank'!O371),\"\",'TA Indicator Bank'!O371)","v":""},{"$f":"IF(ISBLANK('TA Indicator Bank'!P371),\"\",'TA Indicator Bank'!P371)","v":""},{"$f":"IF(ISBLANK('TA Indicator Bank'!Q371),\"\",'TA Indicator Bank'!Q371)","v":""},{"$f":"IF(ISBLANK('TA Indicator Bank'!R371),\"\",'TA Indicator Bank'!R371)","v":""},{"$f":"IF(ISBLANK('TA Indicator Bank'!S371),\"\",'TA Indicator Bank'!S371)","v":""},{"$f":"IF(ISBLANK('TA Indicator Bank'!T371),\"\",'TA Indicator Bank'!T371)","v":""},{"$f":"IF(ISBLANK('TA Indicator Bank'!U371),\"\",'TA Indicator Bank'!U371)","v":""},{"$f":"IF(ISBLANK('TA Indicator Bank'!V371),\"\",'TA Indicator Bank'!V371)","v":""},{"$f":"IF(ISBLANK('TA Indicator Bank'!W371),\"\",'TA Indicator Bank'!W371)","v":""},{"$f":"IF(ISBLANK('TA Indicator Bank'!X371),\"\",'TA Indicator Bank'!X371)","v":""},{"$f":"IF(ISBLANK('TA Indicator Bank'!Y371),\"\",'TA Indicator Bank'!Y371)","v":""},{"$f":"IF(ISBLANK('TA Indicator Bank'!Z371),\"\",'TA Indicator Bank'!Z371)","v":""},{"$f":"IF(ISBLANK('TA Indicator Bank'!AA371),\"\",'TA Indicator Bank'!AA371)","v":""},{"$f":"IF(ISBLANK('TA Indicator Bank'!AB371),\"\",'TA Indicator Bank'!AB371)","v":""},{"$f":"IF(ISBLANK('TA Indicator Bank'!AC371),\"\",'TA Indicator Bank'!AC371)","v":""},{"$f":"IF(ISBLANK('TA Indicator Bank'!AD371),\"\",'TA Indicator Bank'!AD371)","v":""},{"$f":"IF(ISBLANK('TA Indicator Bank'!AE371),\"\",'TA Indicator Bank'!AE371)","v":""},{"$f":"IF(ISBLANK('TA Indicator Bank'!AF371),\"\",'TA Indicator Bank'!AF371)","v":""},{"$f":"IF(ISBLANK('TA Indicator Bank'!AG371),\"\",'TA Indicator Bank'!AG371)","v":""},{"$f":"IF(ISBLANK('TA Indicator Bank'!AH371),\"\",'TA Indicator Bank'!AH371)","v":""},{"$f":"IF(ISBLANK('TA Indicator Bank'!AI371),\"\",'TA Indicator Bank'!AI371)","v":""},{"$f":"IF(ISBLANK('TA Indicator Bank'!AJ371),\"\",'TA Indicator Bank'!AJ371)","v":""},{"$f":"IF(ISBLANK('TA Indicator Bank'!AK371),\"\",'TA Indicator Bank'!AK371)","v":""},{"$f":"IF(ISBLANK('TA Indicator Bank'!AL371),\"\",'TA Indicator Bank'!AL371)","v":""},{"$f":"IF(ISBLANK('TA Indicator Bank'!AM371),\"\",'TA Indicator Bank'!AM371)","v":""},{"$f":"IF(ISBLANK('TA Indicator Bank'!AN371),\"\",'TA Indicator Bank'!AN371)","v":""},{"$f":"IF(ISBLANK('TA Indicator Bank'!AO371),\"\",'TA Indicator Bank'!AO371)","v":""},{"$f":"IF(ISBLANK('TA Indicator Bank'!AP371),\"\",'TA Indicator Bank'!AP371)","v":""},{"$f":"IF(ISBLANK('TA Indicator Bank'!AQ371),\"\",'TA Indicator Bank'!AQ371)","v":""},{"$f":"IF(ISBLANK('TA Indicator Bank'!AR371),\"\",'TA Indicator Bank'!AR371)","v":""},{"$f":"IF(ISBLANK('TA Indicator Bank'!AS371),\"\",'TA Indicator Bank'!AS371)","v":""},{"$f":"IF(ISBLANK('TA Indicator Bank'!AT371),\"\",'TA Indicator Bank'!AT371)","v":""},0,0,0,0,0,0,0,0,0,0,0,0,0,0,1,0,0,0,0,0,0,0,0,0,1,0,0,0,0,0,0,0,0,0,1,0,0,0,0,0,1,1,367,367,"",{"$f":"IFERROR(INDEX($B$9:$I$408,$CM518,COLUMNS($CN$9:CN518)),\"\")","v":""},{"$f":"IFERROR(INDEX($B$9:$I$408,$CM518,COLUMNS($CN$9:CO518)),\"\")","v":""},{"$f":"IFERROR(INDEX($B$9:$I$408,$CM518,COLUMNS($CN$9:CP518)),\"\")","v":""},{"$f":"IFERROR(INDEX($B$9:$I$408,$CM518,COLUMNS($CN$9:CQ518)),\"\")","v":""},{"$f":"IFERROR(INDEX($B$9:$I$408,$CM518,COLUMNS($CN$9:CR518)),\"\")","v":""},{"$f":"IFERROR(INDEX($B$9:$I$408,$CM518,COLUMNS($CN$9:CS518)),\"\")","v":""},{"$f":"IFERROR(INDEX($B$9:$I$408,$CM518,COLUMNS($CN$9:CT518)),\"\")","v":""},{"$f":"IFERROR(INDEX($B$9:$I$408,$CM518,COLUMNS($CN$9:CU518)),\"\")","v":""}]
[null,{"$f":"IF(ISBLANK('TA Indicator Bank'!B372),\"\",'TA Indicator Bank'!B372)","v":""},{"$f":"IF(ISBLANK('TA Indicator Bank'!C372),\"\",'TA Indicator Bank'!C372)","v":""},{"$f":"IF(ISBLANK('TA Indicator Bank'!D372),\"\",'TA Indicator Bank'!D372)","v":""},{"$f":"IF(ISBLANK('TA Indicator Bank'!E372),\"\",'TA Indicator Bank'!E372)","v":""},{"$f":"IF(ISBLANK('TA Indicator Bank'!F372),\"\",'TA Indicator Bank'!F372)","v":""},{"$f":"IF(ISBLANK('TA Indicator Bank'!G372),\"\",'TA Indicator Bank'!G372)","v":""},{"$f":"IF(ISBLANK('TA Indicator Bank'!H372),\"\",'TA Indicator Bank'!H372)","v":""},{"$f":"IF(ISBLANK('TA Indicator Bank'!I372),\"\",'TA Indicator Bank'!I372)","v":""},{"$f":"IF(ISBLANK('TA Indicator Bank'!J372),\"\",'TA Indicator Bank'!J372)","v":""},{"$f":"IF(ISBLANK('TA Indicator Bank'!K372),\"\",'TA Indicator Bank'!K372)","v":""},{"$f":"IF(ISBLANK('TA Indicator Bank'!L372),\"\",'TA Indicator Bank'!L372)","v":""},{"$f":"IF(ISBLANK('TA Indicator Bank'!M372),\"\",'TA Indicator Bank'!M372)","v":""},{"$f":"IF(ISBLANK('TA Indicator Bank'!N372),\"\",'TA Indicator Bank'!N372)","v":""},{"$f":"IF(ISBLANK('TA Indicator Bank'!O372),\"\",'TA Indicator Bank'!O372)","v":""},{"$f":"IF(ISBLANK('TA Indicator Bank'!P372),\"\",'TA Indicator Bank'!P372)","v":""},{"$f":"IF(ISBLANK('TA Indicator Bank'!Q372),\"\",'TA Indicator Bank'!Q372)","v":""},{"$f":"IF(ISBLANK('TA Indicator Bank'!R372),\"\",'TA Indicator Bank'!R372)","v":""},{"$f":"IF(ISBLANK('TA Indicator Bank'!S372),\"\",'TA Indicator Bank'!S372)","v":""},{"$f":"IF(ISBLANK('TA Indicator Bank'!T372),\"\",'TA Indicator Bank'!T372)","v":""},{"$f":"IF(ISBLANK('TA Indicator Bank'!U372),\"\",'TA Indicator Bank'!U372)","v":""},{"$f":"IF(ISBLANK('TA Indicator Bank'!V372),\"\",'TA Indicator Bank'!V372)","v":""},{"$f":"IF(ISBLANK('TA Indicator Bank'!W372),\"\",'TA Indicator Bank'!W372)","v":""},{"$f":"IF(ISBLANK('TA Indicator Bank'!X372),\"\",'TA Indicator Bank'!X372)","v":""},{"$f":"IF(ISBLANK('TA Indicator Bank'!Y372),\"\",'TA Indicator Bank'!Y372)","v":""},{"$f":"IF(ISBLANK('TA Indicator Bank'!Z372),\"\",'TA Indicator Bank'!Z372)","v":""},{"$f":"IF(ISBLANK('TA Indicator Bank'!AA372),\"\",'TA Indicator Bank'!AA372)","v":""},{"$f":"IF(ISBLANK('TA Indicator Bank'!AB372),\"\",'TA Indicator Bank'!AB372)","v":""},{"$f":"IF(ISBLANK('TA Indicator Bank'!AC372),\"\",'TA Indicator Bank'!AC372)","v":""},{"$f":"IF(ISBLANK('TA Indicator Bank'!AD372),\"\",'TA Indicator Bank'!AD372)","v":""},{"$f":"IF(ISBLANK('TA Indicator Bank'!AE372),\"\",'TA Indicator Bank'!AE372)","v":""},{"$f":"IF(ISBLANK('TA Indicator Bank'!AF372),\"\",'TA Indicator Bank'!AF372)","v":""},{"$f":"IF(ISBLANK('TA Indicator Bank'!AG372),\"\",'TA Indicator Bank'!AG372)","v":""},{"$f":"IF(ISBLANK('TA Indicator Bank'!AH372),\"\",'TA Indicator Bank'!AH372)","v":""},{"$f":"IF(ISBLANK('TA Indicator Bank'!AI372),\"\",'TA Indicator Bank'!AI372)","v":""},{"$f":"IF(ISBLANK('TA Indicator Bank'!AJ372),\"\",'TA Indicator Bank'!AJ372)","v":""},{"$f":"IF(ISBLANK('TA Indicator Bank'!AK372),\"\",'TA Indicator Bank'!AK372)","v":""},{"$f":"IF(ISBLANK('TA Indicator Bank'!AL372),\"\",'TA Indicator Bank'!AL372)","v":""},{"$f":"IF(ISBLANK('TA Indicator Bank'!AM372),\"\",'TA Indicator Bank'!AM372)","v":""},{"$f":"IF(ISBLANK('TA Indicator Bank'!AN372),\"\",'TA Indicator Bank'!AN372)","v":""},{"$f":"IF(ISBLANK('TA Indicator Bank'!AO372),\"\",'TA Indicator Bank'!AO372)","v":""},{"$f":"IF(ISBLANK('TA Indicator Bank'!AP372),\"\",'TA Indicator Bank'!AP372)","v":""},{"$f":"IF(ISBLANK('TA Indicator Bank'!AQ372),\"\",'TA Indicator Bank'!AQ372)","v":""},{"$f":"IF(ISBLANK('TA Indicator Bank'!AR372),\"\",'TA Indicator Bank'!AR372)","v":""},{"$f":"IF(ISBLANK('TA Indicator Bank'!AS372),\"\",'TA Indicator Bank'!AS372)","v":""},{"$f":"IF(ISBLANK('TA Indicator Bank'!AT372),\"\",'TA Indicator Bank'!AT372)","v":""},0,0,0,0,0,0,0,0,0,0,0,0,0,0,1,0,0,0,0,0,0,0,0,0,1,0,0,0,0,0,0,0,0,0,1,0,0,0,0,0,1,1,368,368,"",{"$f":"IFERROR(INDEX($B$9:$I$408,$CM519,COLUMNS($CN$9:CN519)),\"\")","v":""},{"$f":"IFERROR(INDEX($B$9:$I$408,$CM519,COLUMNS($CN$9:CO519)),\"\")","v":""},{"$f":"IFERROR(INDEX($B$9:$I$408,$CM519,COLUMNS($CN$9:CP519)),\"\")","v":""},{"$f":"IFERROR(INDEX($B$9:$I$408,$CM519,COLUMNS($CN$9:CQ519)),\"\")","v":""},{"$f":"IFERROR(INDEX($B$9:$I$408,$CM519,COLUMNS($CN$9:CR519)),\"\")","v":""},{"$f":"IFERROR(INDEX($B$9:$I$408,$CM519,COLUMNS($CN$9:CS519)),\"\")","v":""},{"$f":"IFERROR(INDEX($B$9:$I$408,$CM519,COLUMNS($CN$9:CT519)),\"\")","v":""},{"$f":"IFERROR(INDEX($B$9:$I$408,$CM519,COLUMNS($CN$9:CU519)),\"\")","v":""}]
[null,{"$f":"IF(ISBLANK('TA Indicator Bank'!B373),\"\",'TA Indicator Bank'!B373)","v":""},{"$f":"IF(ISBLANK('TA Indicator Bank'!C373),\"\",'TA Indicator Bank'!C373)","v":""},{"$f":"IF(ISBLANK('TA Indicator Bank'!D373),\"\",'TA Indicator Bank'!D373)","v":""},{"$f":"IF(ISBLANK('TA Indicator Bank'!E373),\"\",'TA Indicator Bank'!E373)","v":""},{"$f":"IF(ISBLANK('TA Indicator Bank'!F373),\"\",'TA Indicator Bank'!F373)","v":""},{"$f":"IF(ISBLANK('TA Indicator Bank'!G373),\"\",'TA Indicator Bank'!G373)","v":""},{"$f":"IF(ISBLANK('TA Indicator Bank'!H373),\"\",'TA Indicator Bank'!H373)","v":""},{"$f":"IF(ISBLANK('TA Indicator Bank'!I373),\"\",'TA Indicator Bank'!I373)","v":""},{"$f":"IF(ISBLANK('TA Indicator Bank'!J373),\"\",'TA Indicator Bank'!J373)","v":""},{"$f":"IF(ISBLANK('TA Indicator Bank'!K373),\"\",'TA Indicator Bank'!K373)","v":""},{"$f":"IF(ISBLANK('TA Indicator Bank'!L373),\"\",'TA Indicator Bank'!L373)","v":""},{"$f":"IF(ISBLANK('TA Indicator Bank'!M373),\"\",'TA Indicator Bank'!M373)","v":""},{"$f":"IF(ISBLANK('TA Indicator Bank'!N373),\"\",'TA Indicator Bank'!N373)","v":""},{"$f":"IF(ISBLANK('TA Indicator Bank'!O373),\"\",'TA Indicator Bank'!O373)","v":""},{"$f":"IF(ISBLANK('TA Indicator Bank'!P373),\"\",'TA Indicator Bank'!P373)","v":""},{"$f":"IF(ISBLANK('TA Indicator Bank'!Q373),\"\",'TA Indicator Bank'!Q373)","v":""},{"$f":"IF(ISBLANK('TA Indicator Bank'!R373),\"\",'TA Indicator Bank'!R373)","v":""},{"$f":"IF(ISBLANK('TA Indicator Bank'!S373),\"\",'TA Indicator Bank'!S373)","v":""},{"$f":"IF(ISBLANK('TA Indicator Bank'!T373),\"\",'TA Indicator Bank'!T373)","v":""},{"$f":"IF(ISBLANK('TA Indicator Bank'!U373),\"\",'TA Indicator Bank'!U373)","v":""},{"$f":"IF(ISBLANK('TA Indicator Bank'!V373),\"\",'TA Indicator Bank'!V373)","v":""},{"$f":"IF(ISBLANK('TA Indicator Bank'!W373),\"\",'TA Indicator Bank'!W373)","v":""},{"$f":"IF(ISBLANK('TA Indicator Bank'!X373),\"\",'TA Indicator Bank'!X373)","v":""},{"$f":"IF(ISBLANK('TA Indicator Bank'!Y373),\"\",'TA Indicator Bank'!Y373)","v":""},{"$f":"IF(ISBLANK('TA Indicator Bank'!Z373),\"\",'TA Indicator Bank'!Z373)","v":""},{"$f":"IF(ISBLANK('TA Indicator Bank'!AA373),\"\",'TA Indicator Bank'!AA373)","v":""},{"$f":"IF(ISBLANK('TA Indicator Bank'!AB373),\"\",'TA Indicator Bank'!AB373)","v":""},{"$f":"IF(ISBLANK('TA Indicator Bank'!AC373),\"\",'TA Indicator Bank'!AC373)","v":""},{"$f":"IF(ISBLANK('TA Indicator Bank'!AD373),\"\",'TA Indicator Bank'!AD373)","v":""},{"$f":"IF(ISBLANK('TA Indicator Bank'!AE373),\"\",'TA Indicator Bank'!AE373)","v":""},{"$f":"IF(ISBLANK('TA Indicator Bank'!AF373),\"\",'TA Indicator Bank'!AF373)","v":""},{"$f":"IF(ISBLANK('TA Indicator Bank'!AG373),\"\",'TA Indicator Bank'!AG373)","v":""},{"$f":"IF(ISBLANK('TA Indicator Bank'!AH373),\"\",'TA Indicator Bank'!AH373)","v":""},{"$f":"IF(ISBLANK('TA Indicator Bank'!AI373),\"\",'TA Indicator Bank'!AI373)","v":""},{"$f":"IF(ISBLANK('TA Indicator Bank'!AJ373),\"\",'TA Indicator Bank'!AJ373)","v":""},{"$f":"IF(ISBLANK('TA Indicator Bank'!AK373),\"\",'TA Indicator Bank'!AK373)","v":""},{"$f":"IF(ISBLANK('TA Indicator Bank'!AL373),\"\",'TA Indicator Bank'!AL373)","v":""},{"$f":"IF(ISBLANK('TA Indicator Bank'!AM373),\"\",'TA Indicator Bank'!AM373)","v":""},{"$f":"IF(ISBLANK('TA Indicator Bank'!AN373),\"\",'TA Indicator Bank'!AN373)","v":""},{"$f":"IF(ISBLANK('TA Indicator Bank'!AO373),\"\",'TA Indicator Bank'!AO373)","v":""},{"$f":"IF(ISBLANK('TA Indicator Bank'!AP373),\"\",'TA Indicator Bank'!AP373)","v":""},{"$f":"IF(ISBLANK('TA Indicator Bank'!AQ373),\"\",'TA Indicator Bank'!AQ373)","v":""},{"$f":"IF(ISBLANK('TA Indicator Bank'!AR373),\"\",'TA Indicator Bank'!AR373)","v":""},{"$f":"IF(ISBLANK('TA Indicator Bank'!AS373),\"\",'TA Indicator Bank'!AS373)","v":""},{"$f":"IF(ISBLANK('TA Indicator Bank'!AT373),\"\",'TA Indicator Bank'!AT373)","v":""},0,0,0,0,0,0,0,0,0,0,0,0,0,0,1,0,0,0,0,0,0,0,0,0,1,0,0,0,0,0,0,0,0,0,1,0,0,0,0,0,1,1,369,369,"",{"$f":"IFERROR(INDEX($B$9:$I$408,$CM520,COLUMNS($CN$9:CN520)),\"\")","v":""},{"$f":"IFERROR(INDEX($B$9:$I$408,$CM520,COLUMNS($CN$9:CO520)),\"\")","v":""},{"$f":"IFERROR(INDEX($B$9:$I$408,$CM520,COLUMNS($CN$9:CP520)),\"\")","v":""},{"$f":"IFERROR(INDEX($B$9:$I$408,$CM520,COLUMNS($CN$9:CQ520)),\"\")","v":""},{"$f":"IFERROR(INDEX($B$9:$I$408,$CM520,COLUMNS($CN$9:CR520)),\"\")","v":""},{"$f":"IFERROR(INDEX($B$9:$I$408,$CM520,COLUMNS($CN$9:CS520)),\"\")","v":""},{"$f":"IFERROR(INDEX($B$9:$I$408,$CM520,COLUMNS($CN$9:CT520)),\"\")","v":""},{"$f":"IFERROR(INDEX($B$9:$I$408,$CM520,COLUMNS($CN$9:CU520)),\"\")","v":""}]
[null,{"$f":"IF(ISBLANK('TA Indicator Bank'!B374),\"\",'TA Indicator Bank'!B374)","v":""},{"$f":"IF(ISBLANK('TA Indicator Bank'!C374),\"\",'TA Indicator Bank'!C374)","v":""},{"$f":"IF(ISBLANK('TA Indicator Bank'!D374),\"\",'TA Indicator Bank'!D374)","v":""},{"$f":"IF(ISBLANK('TA Indicator Bank'!E374),\"\",'TA Indicator Bank'!E374)","v":""},{"$f":"IF(ISBLANK('TA Indicator Bank'!F374),\"\",'TA Indicator Bank'!F374)","v":""},{"$f":"IF(ISBLANK('TA Indicator Bank'!G374),\"\",'TA Indicator Bank'!G374)","v":""},{"$f":"IF(ISBLANK('TA Indicator Bank'!H374),\"\",'TA Indicator Bank'!H374)","v":""},{"$f":"IF(ISBLANK('TA Indicator Bank'!I374),\"\",'TA Indicator Bank'!I374)","v":""},{"$f":"IF(ISBLANK('TA Indicator Bank'!J374),\"\",'TA Indicator Bank'!J374)","v":""},{"$f":"IF(ISBLANK('TA Indicator Bank'!K374),\"\",'TA Indicator Bank'!K374)","v":""},{"$f":"IF(ISBLANK('TA Indicator Bank'!L374),\"\",'TA Indicator Bank'!L374)","v":""},{"$f":"IF(ISBLANK('TA Indicator Bank'!M374),\"\",'TA Indicator Bank'!M374)","v":""},{"$f":"IF(ISBLANK('TA Indicator Bank'!N374),\"\",'TA Indicator Bank'!N374)","v":""},{"$f":"IF(ISBLANK('TA Indicator Bank'!O374),\"\",'TA Indicator Bank'!O374)","v":""},{"$f":"IF(ISBLANK('TA Indicator Bank'!P374),\"\",'TA Indicator Bank'!P374)","v":""},{"$f":"IF(ISBLANK('TA Indicator Bank'!Q374),\"\",'TA Indicator Bank'!Q374)","v":""},{"$f":"IF(ISBLANK('TA Indicator Bank'!R374),\"\",'TA Indicator Bank'!R374)","v":""},{"$f":"IF(ISBLANK('TA Indicator Bank'!S374),\"\",'TA Indicator Bank'!S374)","v":""},{"$f":"IF(ISBLANK('TA Indicator Bank'!T374),\"\",'TA Indicator Bank'!T374)","v":""},{"$f":"IF(ISBLANK('TA Indicator Bank'!U374),\"\",'TA Indicator Bank'!U374)","v":""},{"$f":"IF(ISBLANK('TA Indicator Bank'!V374),\"\",'TA Indicator Bank'!V374)","v":""},{"$f":"IF(ISBLANK('TA Indicator Bank'!W374),\"\",'TA Indicator Bank'!W374)","v":""},{"$f":"IF(ISBLANK('TA Indicator Bank'!X374),\"\",'TA Indicator Bank'!X374)","v":""},{"$f":"IF(ISBLANK('TA Indicator Bank'!Y374),\"\",'TA Indicator Bank'!Y374)","v":""},{"$f":"IF(ISBLANK('TA Indicator Bank'!Z374),\"\",'TA Indicator Bank'!Z374)","v":""},{"$f":"IF(ISBLANK('TA Indicator Bank'!AA374),\"\",'TA Indicator Bank'!AA374)","v":""},{"$f":"IF(ISBLANK('TA Indicator Bank'!AB374),\"\",'TA Indicator Bank'!AB374)","v":""},{"$f":"IF(ISBLANK('TA Indicator Bank'!AC374),\"\",'TA Indicator Bank'!AC374)","v":""},{"$f":"IF(ISBLANK('TA Indicator Bank'!AD374),\"\",'TA Indicator Bank'!AD374)","v":""},{"$f":"IF(ISBLANK('TA Indicator Bank'!AE374),\"\",'TA Indicator Bank'!AE374)","v":""},{"$f":"IF(ISBLANK('TA Indicator Bank'!AF374),\"\",'TA Indicator Bank'!AF374)","v":""},{"$f":"IF(ISBLANK('TA Indicator Bank'!AG374),\"\",'TA Indicator Bank'!AG374)","v":""},{"$f":"IF(ISBLANK('TA Indicator Bank'!AH374),\"\",'TA Indicator Bank'!AH374)","v":""},{"$f":"IF(ISBLANK('TA Indicator Bank'!AI374),\"\",'TA Indicator Bank'!AI374)","v":""},{"$f":"IF(ISBLANK('TA Indicator Bank'!AJ374),\"\",'TA Indicator Bank'!AJ374)","v":""},{"$f":"IF(ISBLANK('TA Indicator Bank'!AK374),\"\",'TA Indicator Bank'!AK374)","v":""},{"$f":"IF(ISBLANK('TA Indicator Bank'!AL374),\"\",'TA Indicator Bank'!AL374)","v":""},{"$f":"IF(ISBLANK('TA Indicator Bank'!AM374),\"\",'TA Indicator Bank'!AM374)","v":""},{"$f":"IF(ISBLANK('TA Indicator Bank'!AN374),\"\",'TA Indicator Bank'!AN374)","v":""},{"$f":"IF(ISBLANK('TA Indicator Bank'!AO374),\"\",'TA Indicator Bank'!AO374)","v":""},{"$f":"IF(ISBLANK('TA Indicator Bank'!AP374),\"\",'TA Indicator Bank'!AP374)","v":""},{"$f":"IF(ISBLANK('TA Indicator Bank'!AQ374),\"\",'TA Indicator Bank'!AQ374)","v":""},{"$f":"IF(ISBLANK('TA Indicator Bank'!AR374),\"\",'TA Indicator Bank'!AR374)","v":""},{"$f":"IF(ISBLANK('TA Indicator Bank'!AS374),\"\",'TA Indicator Bank'!AS374)","v":""},{"$f":"IF(ISBLANK('TA Indicator Bank'!AT374),\"\",'TA Indicator Bank'!AT374)","v":""},0,0,0,0,0,0,0,0,0,0,0,0,0,0,1,0,0,0,0,0,0,0,0,0,1,0,0,0,0,0,0,0,0,0,1,0,0,0,0,0,1,1,370,370,"",{"$f":"IFERROR(INDEX($B$9:$I$408,$CM521,COLUMNS($CN$9:CN521)),\"\")","v":""},{"$f":"IFERROR(INDEX($B$9:$I$408,$CM521,COLUMNS($CN$9:CO521)),\"\")","v":""},{"$f":"IFERROR(INDEX($B$9:$I$408,$CM521,COLUMNS($CN$9:CP521)),\"\")","v":""},{"$f":"IFERROR(INDEX($B$9:$I$408,$CM521,COLUMNS($CN$9:CQ521)),\"\")","v":""},{"$f":"IFERROR(INDEX($B$9:$I$408,$CM521,COLUMNS($CN$9:CR521)),\"\")","v":""},{"$f":"IFERROR(INDEX($B$9:$I$408,$CM521,COLUMNS($CN$9:CS521)),\"\")","v":""},{"$f":"IFERROR(INDEX($B$9:$I$408,$CM521,COLUMNS($CN$9:CT521)),\"\")","v":""},{"$f":"IFERROR(INDEX($B$9:$I$408,$CM521,COLUMNS($CN$9:CU521)),\"\")","v":""}]
[null,{"$f":"IF(ISBLANK('TA Indicator Bank'!B375),\"\",'TA Indicator Bank'!B375)","v":""},{"$f":"IF(ISBLANK('TA Indicator Bank'!C375),\"\",'TA Indicator Bank'!C375)","v":""},{"$f":"IF(ISBLANK('TA Indicator Bank'!D375),\"\",'TA Indicator Bank'!D375)","v":""},{"$f":"IF(ISBLANK('TA Indicator Bank'!E375),\"\",'TA Indicator Bank'!E375)","v":""},{"$f":"IF(ISBLANK('TA Indicator Bank'!F375),\"\",'TA Indicator Bank'!F375)","v":""},{"$f":"IF(ISBLANK('TA Indicator Bank'!G375),\"\",'TA Indicator Bank'!G375)","v":""},{"$f":"IF(ISBLANK('TA Indicator Bank'!H375),\"\",'TA Indicator Bank'!H375)","v":""},{"$f":"IF(ISBLANK('TA Indicator Bank'!I375),\"\",'TA Indicator Bank'!I375)","v":""},{"$f":"IF(ISBLANK('TA Indicator Bank'!J375),\"\",'TA Indicator Bank'!J375)","v":""},{"$f":"IF(ISBLANK('TA Indicator Bank'!K375),\"\",'TA Indicator Bank'!K375)","v":""},{"$f":"IF(ISBLANK('TA Indicator Bank'!L375),\"\",'TA Indicator Bank'!L375)","v":""},{"$f":"IF(ISBLANK('TA Indicator Bank'!M375),\"\",'TA Indicator Bank'!M375)","v":""},{"$f":"IF(ISBLANK('TA Indicator Bank'!N375),\"\",'TA Indicator Bank'!N375)","v":""},{"$f":"IF(ISBLANK('TA Indicator Bank'!O375),\"\",'TA Indicator Bank'!O375)","v":""},{"$f":"IF(ISBLANK('TA Indicator Bank'!P375),\"\",'TA Indicator Bank'!P375)","v":""},{"$f":"IF(ISBLANK('TA Indicator Bank'!Q375),\"\",'TA Indicator Bank'!Q375)","v":""},{"$f":"IF(ISBLANK('TA Indicator Bank'!R375),\"\",'TA Indicator Bank'!R375)","v":""},{"$f":"IF(ISBLANK('TA Indicator Bank'!S375),\"\",'TA Indicator Bank'!S375)","v":""},{"$f":"IF(ISBLANK('TA Indicator Bank'!T375),\"\",'TA Indicator Bank'!T375)","v":""},{"$f":"IF(ISBLANK('TA Indicator Bank'!U375),\"\",'TA Indicator Bank'!U375)","v":""},{"$f":"IF(ISBLANK('TA Indicator Bank'!V375),\"\",'TA Indicator Bank'!V375)","v":""},{"$f":"IF(ISBLANK('TA Indicator Bank'!W375),\"\",'TA Indicator Bank'!W375)","v":""},{"$f":"IF(ISBLANK('TA Indicator Bank'!X375),\"\",'TA Indicator Bank'!X375)","v":""},{"$f":"IF(ISBLANK('TA Indicator Bank'!Y375),\"\",'TA Indicator Bank'!Y375)","v":""},{"$f":"IF(ISBLANK('TA Indicator Bank'!Z375),\"\",'TA Indicator Bank'!Z375)","v":""},{"$f":"IF(ISBLANK('TA Indicator Bank'!AA375),\"\",'TA Indicator Bank'!AA375)","v":""},{"$f":"IF(ISBLANK('TA Indicator Bank'!AB375),\"\",'TA Indicator Bank'!AB375)","v":""},{"$f":"IF(ISBLANK('TA Indicator Bank'!AC375),\"\",'TA Indicator Bank'!AC375)","v":""},{"$f":"IF(ISBLANK('TA Indicator Bank'!AD375),\"\",'TA Indicator Bank'!AD375)","v":""},{"$f":"IF(ISBLANK('TA Indicator Bank'!AE375),\"\",'TA Indicator Bank'!AE375)","v":""},{"$f":"IF(ISBLANK('TA Indicator Bank'!AF375),\"\",'TA Indicator Bank'!AF375)","v":""},{"$f":"IF(ISBLANK('TA Indicator Bank'!AG375),\"\",'TA Indicator Bank'!AG375)","v":""},{"$f":"IF(ISBLANK('TA Indicator Bank'!AH375),\"\",'TA Indicator Bank'!AH375)","v":""},{"$f":"IF(ISBLANK('TA Indicator Bank'!AI375),\"\",'TA Indicator Bank'!AI375)","v":""},{"$f":"IF(ISBLANK('TA Indicator Bank'!AJ375),\"\",'TA Indicator Bank'!AJ375)","v":""},{"$f":"IF(ISBLANK('TA Indicator Bank'!AK375),\"\",'TA Indicator Bank'!AK375)","v":""},{"$f":"IF(ISBLANK('TA Indicator Bank'!AL375),\"\",'TA Indicator Bank'!AL375)","v":""},{"$f":"IF(ISBLANK('TA Indicator Bank'!AM375),\"\",'TA Indicator Bank'!AM375)","v":""},{"$f":"IF(ISBLANK('TA Indicator Bank'!AN375),\"\",'TA Indicator Bank'!AN375)","v":""},{"$f":"IF(ISBLANK('TA Indicator Bank'!AO375),\"\",'TA Indicator Bank'!AO375)","v":""},{"$f":"IF(ISBLANK('TA Indicator Bank'!AP375),\"\",'TA Indicator Bank'!AP375)","v":""},{"$f":"IF(ISBLANK('TA Indicator Bank'!AQ375),\"\",'TA Indicator Bank'!AQ375)","v":""},{"$f":"IF(ISBLANK('TA Indicator Bank'!AR375),\"\",'TA Indicator Bank'!AR375)","v":""},{"$f":"IF(ISBLANK('TA Indicator Bank'!AS375),\"\",'TA Indicator Bank'!AS375)","v":""},{"$f":"IF(ISBLANK('TA Indicator Bank'!AT375),\"\",'TA Indicator Bank'!AT375)","v":""},0,0,0,0,0,0,0,0,0,0,0,0,0,0,1,0,0,0,0,0,0,0,0,0,1,0,0,0,0,0,0,0,0,0,1,0,0,0,0,0,1,1,371,371,"",{"$f":"IFERROR(INDEX($B$9:$I$408,$CM522,COLUMNS($CN$9:CN522)),\"\")","v":""},{"$f":"IFERROR(INDEX($B$9:$I$408,$CM522,COLUMNS($CN$9:CO522)),\"\")","v":""},{"$f":"IFERROR(INDEX($B$9:$I$408,$CM522,COLUMNS($CN$9:CP522)),\"\")","v":""},{"$f":"IFERROR(INDEX($B$9:$I$408,$CM522,COLUMNS($CN$9:CQ522)),\"\")","v":""},{"$f":"IFERROR(INDEX($B$9:$I$408,$CM522,COLUMNS($CN$9:CR522)),\"\")","v":""},{"$f":"IFERROR(INDEX($B$9:$I$408,$CM522,COLUMNS($CN$9:CS522)),\"\")","v":""},{"$f":"IFERROR(INDEX($B$9:$I$408,$CM522,COLUMNS($CN$9:CT522)),\"\")","v":""},{"$f":"IFERROR(INDEX($B$9:$I$408,$CM522,COLUMNS($CN$9:CU522)),\"\")","v":""}]
[null,{"$f":"IF(ISBLANK('TA Indicator Bank'!B376),\"\",'TA Indicator Bank'!B376)","v":""},{"$f":"IF(ISBLANK('TA Indicator Bank'!C376),\"\",'TA Indicator Bank'!C376)","v":""},{"$f":"IF(ISBLANK('TA Indicator Bank'!D376),\"\",'TA Indicator Bank'!D376)","v":""},{"$f":"IF(ISBLANK('TA Indicator Bank'!E376),\"\",'TA Indicator Bank'!E376)","v":""},{"$f":"IF(ISBLANK('TA Indicator Bank'!F376),\"\",'TA Indicator Bank'!F376)","v":""},{"$f":"IF(ISBLANK('TA Indicator Bank'!G376),\"\",'TA Indicator Bank'!G376)","v":""},{"$f":"IF(ISBLANK('TA Indicator Bank'!H376),\"\",'TA Indicator Bank'!H376)","v":""},{"$f":"IF(ISBLANK('TA Indicator Bank'!I376),\"\",'TA Indicator Bank'!I376)","v":""},{"$f":"IF(ISBLANK('TA Indicator Bank'!J376),\"\",'TA Indicator Bank'!J376)","v":""},{"$f":"IF(ISBLANK('TA Indicator Bank'!K376),\"\",'TA Indicator Bank'!K376)","v":""},{"$f":"IF(ISBLANK('TA Indicator Bank'!L376),\"\",'TA Indicator Bank'!L376)","v":""},{"$f":"IF(ISBLANK('TA Indicator Bank'!M376),\"\",'TA Indicator Bank'!M376)","v":""},{"$f":"IF(ISBLANK('TA Indicator Bank'!N376),\"\",'TA Indicator Bank'!N376)","v":""},{"$f":"IF(ISBLANK('TA Indicator Bank'!O376),\"\",'TA Indicator Bank'!O376)","v":""},{"$f":"IF(ISBLANK('TA Indicator Bank'!P376),\"\",'TA Indicator Bank'!P376)","v":""},{"$f":"IF(ISBLANK('TA Indicator Bank'!Q376),\"\",'TA Indicator Bank'!Q376)","v":""},{"$f":"IF(ISBLANK('TA Indicator Bank'!R376),\"\",'TA Indicator Bank'!R376)","v":""},{"$f":"IF(ISBLANK('TA Indicator Bank'!S376),\"\",'TA Indicator Bank'!S376)","v":""},{"$f":"IF(ISBLANK('TA Indicator Bank'!T376),\"\",'TA Indicator Bank'!T376)","v":""},{"$f":"IF(ISBLANK('TA Indicator Bank'!U376),\"\",'TA Indicator Bank'!U376)","v":""},{"$f":"IF(ISBLANK('TA Indicator Bank'!V376),\"\",'TA Indicator Bank'!V376)","v":""},{"$f":"IF(ISBLANK('TA Indicator Bank'!W376),\"\",'TA Indicator Bank'!W376)","v":""},{"$f":"IF(ISBLANK('TA Indicator Bank'!X376),\"\",'TA Indicator Bank'!X376)","v":""},{"$f":"IF(ISBLANK('TA Indicator Bank'!Y376),\"\",'TA Indicator Bank'!Y376)","v":""},{"$f":"IF(ISBLANK('TA Indicator Bank'!Z376),\"\",'TA Indicator Bank'!Z376)","v":""},{"$f":"IF(ISBLANK('TA Indicator Bank'!AA376),\"\",'TA Indicator Bank'!AA376)","v":""},{"$f":"IF(ISBLANK('TA Indicator Bank'!AB376),\"\",'TA Indicator Bank'!AB376)","v":""},{"$f":"IF(ISBLANK('TA Indicator Bank'!AC376),\"\",'TA Indicator Bank'!AC376)","v":""},{"$f":"IF(ISBLANK('TA Indicator Bank'!AD376),\"\",'TA Indicator Bank'!AD376)","v":""},{"$f":"IF(ISBLANK('TA Indicator Bank'!AE376),\"\",'TA Indicator Bank'!AE376)","v":""},{"$f":"IF(ISBLANK('TA Indicator Bank'!AF376),\"\",'TA Indicator Bank'!AF376)","v":""},{"$f":"IF(ISBLANK('TA Indicator Bank'!AG376),\"\",'TA Indicator Bank'!AG376)","v":""},{"$f":"IF(ISBLANK('TA Indicator Bank'!AH376),\"\",'TA Indicator Bank'!AH376)","v":""},{"$f":"IF(ISBLANK('TA Indicator Bank'!AI376),\"\",'TA Indicator Bank'!AI376)","v":""},{"$f":"IF(ISBLANK('TA Indicator Bank'!AJ376),\"\",'TA Indicator Bank'!AJ376)","v":""},{"$f":"IF(ISBLANK('TA Indicator Bank'!AK376),\"\",'TA Indicator Bank'!AK376)","v":""},{"$f":"IF(ISBLANK('TA Indicator Bank'!AL376),\"\",'TA Indicator Bank'!AL376)","v":""},{"$f":"IF(ISBLANK('TA Indicator Bank'!AM376),\"\",'TA Indicator Bank'!AM376)","v":""},{"$f":"IF(ISBLANK('TA Indicator Bank'!AN376),\"\",'TA Indicator Bank'!AN376)","v":""},{"$f":"IF(ISBLANK('TA Indicator Bank'!AO376),\"\",'TA Indicator Bank'!AO376)","v":""},{"$f":"IF(ISBLANK('TA Indicator Bank'!AP376),\"\",'TA Indicator Bank'!AP376)","v":""},{"$f":"IF(ISBLANK('TA Indicator Bank'!AQ376),\"\",'TA Indicator Bank'!AQ376)","v":""},{"$f":"IF(ISBLANK('TA Indicator Bank'!AR376),\"\",'TA Indicator Bank'!AR376)","v":""},{"$f":"IF(ISBLANK('TA Indicator Bank'!AS376),\"\",'TA Indicator Bank'!AS376)","v":""},{"$f":"IF(ISBLANK('TA Indicator Bank'!AT376),\"\",'TA Indicator Bank'!AT376)","v":""},0,0,0,0,0,0,0,0,0,0,0,0,0,0,1,0,0,0,0,0,0,0,0,0,1,0,0,0,0,0,0,0,0,0,1,0,0,0,0,0,1,1,372,372,"",{"$f":"IFERROR(INDEX($B$9:$I$408,$CM523,COLUMNS($CN$9:CN523)),\"\")","v":""},{"$f":"IFERROR(INDEX($B$9:$I$408,$CM523,COLUMNS($CN$9:CO523)),\"\")","v":""},{"$f":"IFERROR(INDEX($B$9:$I$408,$CM523,COLUMNS($CN$9:CP523)),\"\")","v":""},{"$f":"IFERROR(INDEX($B$9:$I$408,$CM523,COLUMNS($CN$9:CQ523)),\"\")","v":""},{"$f":"IFERROR(INDEX($B$9:$I$408,$CM523,COLUMNS($CN$9:CR523)),\"\")","v":""},{"$f":"IFERROR(INDEX($B$9:$I$408,$CM523,COLUMNS($CN$9:CS523)),\"\")","v":""},{"$f":"IFERROR(INDEX($B$9:$I$408,$CM523,COLUMNS($CN$9:CT523)),\"\")","v":""},{"$f":"IFERROR(INDEX($B$9:$I$408,$CM523,COLUMNS($CN$9:CU523)),\"\")","v":""}]
[null,{"$f":"IF(ISBLANK('TA Indicator Bank'!B377),\"\",'TA Indicator Bank'!B377)","v":""},{"$f":"IF(ISBLANK('TA Indicator Bank'!C377),\"\",'TA Indicator Bank'!C377)","v":""},{"$f":"IF(ISBLANK('TA Indicator Bank'!D377),\"\",'TA Indicator Bank'!D377)","v":""},{"$f":"IF(ISBLANK('TA Indicator Bank'!E377),\"\",'TA Indicator Bank'!E377)","v":""},{"$f":"IF(ISBLANK('TA Indicator Bank'!F377),\"\",'TA Indicator Bank'!F377)","v":""},{"$f":"IF(ISBLANK('TA Indicator Bank'!G377),\"\",'TA Indicator Bank'!G377)","v":""},{"$f":"IF(ISBLANK('TA Indicator Bank'!H377),\"\",'TA Indicator Bank'!H377)","v":""},{"$f":"IF(ISBLANK('TA Indicator Bank'!I377),\"\",'TA Indicator Bank'!I377)","v":""},{"$f":"IF(ISBLANK('TA Indicator Bank'!J377),\"\",'TA Indicator Bank'!J377)","v":""},{"$f":"IF(ISBLANK('TA Indicator Bank'!K377),\"\",'TA Indicator Bank'!K377)","v":""},{"$f":"IF(ISBLANK('TA Indicator Bank'!L377),\"\",'TA Indicator Bank'!L377)","v":""},{"$f":"IF(ISBLANK('TA Indicator Bank'!M377),\"\",'TA Indicator Bank'!M377)","v":""},{"$f":"IF(ISBLANK('TA Indicator Bank'!N377),\"\",'TA Indicator Bank'!N377)","v":""},{"$f":"IF(ISBLANK('TA Indicator Bank'!O377),\"\",'TA Indicator Bank'!O377)","v":""},{"$f":"IF(ISBLANK('TA Indicator Bank'!P377),\"\",'TA Indicator Bank'!P377)","v":""},{"$f":"IF(ISBLANK('TA Indicator Bank'!Q377),\"\",'TA Indicator Bank'!Q377)","v":""},{"$f":"IF(ISBLANK('TA Indicator Bank'!R377),\"\",'TA Indicator Bank'!R377)","v":""},{"$f":"IF(ISBLANK('TA Indicator Bank'!S377),\"\",'TA Indicator Bank'!S377)","v":""},{"$f":"IF(ISBLANK('TA Indicator Bank'!T377),\"\",'TA Indicator Bank'!T377)","v":""},{"$f":"IF(ISBLANK('TA Indicator Bank'!U377),\"\",'TA Indicator Bank'!U377)","v":""},{"$f":"IF(ISBLANK('TA Indicator Bank'!V377),\"\",'TA Indicator Bank'!V377)","v":""},{"$f":"IF(ISBLANK('TA Indicator Bank'!W377),\"\",'TA Indicator Bank'!W377)","v":""},{"$f":"IF(ISBLANK('TA Indicator Bank'!X377),\"\",'TA Indicator Bank'!X377)","v":""},{"$f":"IF(ISBLANK('TA Indicator Bank'!Y377),\"\",'TA Indicator Bank'!Y377)","v":""},{"$f":"IF(ISBLANK('TA Indicator Bank'!Z377),\"\",'TA Indicator Bank'!Z377)","v":""},{"$f":"IF(ISBLANK('TA Indicator Bank'!AA377),\"\",'TA Indicator Bank'!AA377)","v":""},{"$f":"IF(ISBLANK('TA Indicator Bank'!AB377),\"\",'TA Indicator Bank'!AB377)","v":""},{"$f":"IF(ISBLANK('TA Indicator Bank'!AC377),\"\",'TA Indicator Bank'!AC377)","v":""},{"$f":"IF(ISBLANK('TA Indicator Bank'!AD377),\"\",'TA Indicator Bank'!AD377)","v":""},{"$f":"IF(ISBLANK('TA Indicator Bank'!AE377),\"\",'TA Indicator Bank'!AE377)","v":""},{"$f":"IF(ISBLANK('TA Indicator Bank'!AF377),\"\",'TA Indicator Bank'!AF377)","v":""},{"$f":"IF(ISBLANK('TA Indicator Bank'!AG377),\"\",'TA Indicator Bank'!AG377)","v":""},{"$f":"IF(ISBLANK('TA Indicator Bank'!AH377),\"\",'TA Indicator Bank'!AH377)","v":""},{"$f":"IF(ISBLANK('TA Indicator Bank'!AI377),\"\",'TA Indicator Bank'!AI377)","v":""},{"$f":"IF(ISBLANK('TA Indicator Bank'!AJ377),\"\",'TA Indicator Bank'!AJ377)","v":""},{"$f":"IF(ISBLANK('TA Indicator Bank'!AK377),\"\",'TA Indicator Bank'!AK377)","v":""},{"$f":"IF(ISBLANK('TA Indicator Bank'!AL377),\"\",'TA Indicator Bank'!AL377)","v":""},{"$f":"IF(ISBLANK('TA Indicator Bank'!AM377),\"\",'TA Indicator Bank'!AM377)","v":""},{"$f":"IF(ISBLANK('TA Indicator Bank'!AN377),\"\",'TA Indicator Bank'!AN377)","v":""},{"$f":"IF(ISBLANK('TA Indicator Bank'!AO377),\"\",'TA Indicator Bank'!AO377)","v":""},{"$f":"IF(ISBLANK('TA Indicator Bank'!AP377),\"\",'TA Indicator Bank'!AP377)","v":""},{"$f":"IF(ISBLANK('TA Indicator Bank'!AQ377),\"\",'TA Indicator Bank'!AQ377)","v":""},{"$f":"IF(ISBLANK('TA Indicator Bank'!AR377),\"\",'TA Indicator Bank'!AR377)","v":""},{"$f":"IF(ISBLANK('TA Indicator Bank'!AS377),\"\",'TA Indicator Bank'!AS377)","v":""},{"$f":"IF(ISBLANK('TA Indicator Bank'!AT377),\"\",'TA Indicator Bank'!AT377)","v":""},0,0,0,0,0,0,0,0,0,0,0,0,0,0,1,0,0,0,0,0,0,0,0,0,1,0,0,0,0,0,0,0,0,0,1,0,0,0,0,0,1,1,373,373,"",{"$f":"IFERROR(INDEX($B$9:$I$408,$CM524,COLUMNS($CN$9:CN524)),\"\")","v":""},{"$f":"IFERROR(INDEX($B$9:$I$408,$CM524,COLUMNS($CN$9:CO524)),\"\")","v":""},{"$f":"IFERROR(INDEX($B$9:$I$408,$CM524,COLUMNS($CN$9:CP524)),\"\")","v":""},{"$f":"IFERROR(INDEX($B$9:$I$408,$CM524,COLUMNS($CN$9:CQ524)),\"\")","v":""},{"$f":"IFERROR(INDEX($B$9:$I$408,$CM524,COLUMNS($CN$9:CR524)),\"\")","v":""},{"$f":"IFERROR(INDEX($B$9:$I$408,$CM524,COLUMNS($CN$9:CS524)),\"\")","v":""},{"$f":"IFERROR(INDEX($B$9:$I$408,$CM524,COLUMNS($CN$9:CT524)),\"\")","v":""},{"$f":"IFERROR(INDEX($B$9:$I$408,$CM524,COLUMNS($CN$9:CU524)),\"\")","v":""}]
[null,{"$f":"IF(ISBLANK('TA Indicator Bank'!B378),\"\",'TA Indicator Bank'!B378)","v":""},{"$f":"IF(ISBLANK('TA Indicator Bank'!C378),\"\",'TA Indicator Bank'!C378)","v":""},{"$f":"IF(ISBLANK('TA Indicator Bank'!D378),\"\",'TA Indicator Bank'!D378)","v":""},{"$f":"IF(ISBLANK('TA Indicator Bank'!E378),\"\",'TA Indicator Bank'!E378)","v":""},{"$f":"IF(ISBLANK('TA Indicator Bank'!F378),\"\",'TA Indicator Bank'!F378)","v":""},{"$f":"IF(ISBLANK('TA Indicator Bank'!G378),\"\",'TA Indicator Bank'!G378)","v":""},{"$f":"IF(ISBLANK('TA Indicator Bank'!H378),\"\",'TA Indicator Bank'!H378)","v":""},{"$f":"IF(ISBLANK('TA Indicator Bank'!I378),\"\",'TA Indicator Bank'!I378)","v":""},{"$f":"IF(ISBLANK('TA Indicator Bank'!J378),\"\",'TA Indicator Bank'!J378)","v":""},{"$f":"IF(ISBLANK('TA Indicator Bank'!K378),\"\",'TA Indicator Bank'!K378)","v":""},{"$f":"IF(ISBLANK('TA Indicator Bank'!L378),\"\",'TA Indicator Bank'!L378)","v":""},{"$f":"IF(ISBLANK('TA Indicator Bank'!M378),\"\",'TA Indicator Bank'!M378)","v":""},{"$f":"IF(ISBLANK('TA Indicator Bank'!N378),\"\",'TA Indicator Bank'!N378)","v":""},{"$f":"IF(ISBLANK('TA Indicator Bank'!O378),\"\",'TA Indicator Bank'!O378)","v":""},{"$f":"IF(ISBLANK('TA Indicator Bank'!P378),\"\",'TA Indicator Bank'!P378)","v":""},{"$f":"IF(ISBLANK('TA Indicator Bank'!Q378),\"\",'TA Indicator Bank'!Q378)","v":""},{"$f":"IF(ISBLANK('TA Indicator Bank'!R378),\"\",'TA Indicator Bank'!R378)","v":""},{"$f":"IF(ISBLANK('TA Indicator Bank'!S378),\"\",'TA Indicator Bank'!S378)","v":""},{"$f":"IF(ISBLANK('TA Indicator Bank'!T378),\"\",'TA Indicator Bank'!T378)","v":""},{"$f":"IF(ISBLANK('TA Indicator Bank'!U378),\"\",'TA Indicator Bank'!U378)","v":""},{"$f":"IF(ISBLANK('TA Indicator Bank'!V378),\"\",'TA Indicator Bank'!V378)","v":""},{"$f":"IF(ISBLANK('TA Indicator Bank'!W378),\"\",'TA Indicator Bank'!W378)","v":""},{"$f":"IF(ISBLANK('TA Indicator Bank'!X378),\"\",'TA Indicator Bank'!X378)","v":""},{"$f":"IF(ISBLANK('TA Indicator Bank'!Y378),\"\",'TA Indicator Bank'!Y378)","v":""},{"$f":"IF(ISBLANK('TA Indicator Bank'!Z378),\"\",'TA Indicator Bank'!Z378)","v":""},{"$f":"IF(ISBLANK('TA Indicator Bank'!AA378),\"\",'TA Indicator Bank'!AA378)","v":""},{"$f":"IF(ISBLANK('TA Indicator Bank'!AB378),\"\",'TA Indicator Bank'!AB378)","v":""},{"$f":"IF(ISBLANK('TA Indicator Bank'!AC378),\"\",'TA Indicator Bank'!AC378)","v":""},{"$f":"IF(ISBLANK('TA Indicator Bank'!AD378),\"\",'TA Indicator Bank'!AD378)","v":""},{"$f":"IF(ISBLANK('TA Indicator Bank'!AE378),\"\",'TA Indicator Bank'!AE378)","v":""},{"$f":"IF(ISBLANK('TA Indicator Bank'!AF378),\"\",'TA Indicator Bank'!AF378)","v":""},{"$f":"IF(ISBLANK('TA Indicator Bank'!AG378),\"\",'TA Indicator Bank'!AG378)","v":""},{"$f":"IF(ISBLANK('TA Indicator Bank'!AH378),\"\",'TA Indicator Bank'!AH378)","v":""},{"$f":"IF(ISBLANK('TA Indicator Bank'!AI378),\"\",'TA Indicator Bank'!AI378)","v":""},{"$f":"IF(ISBLANK('TA Indicator Bank'!AJ378),\"\",'TA Indicator Bank'!AJ378)","v":""},{"$f":"IF(ISBLANK('TA Indicator Bank'!AK378),\"\",'TA Indicator Bank'!AK378)","v":""},{"$f":"IF(ISBLANK('TA Indicator Bank'!AL378),\"\",'TA Indicator Bank'!AL378)","v":""},{"$f":"IF(ISBLANK('TA Indicator Bank'!AM378),\"\",'TA Indicator Bank'!AM378)","v":""},{"$f":"IF(ISBLANK('TA Indicator Bank'!AN378),\"\",'TA Indicator Bank'!AN378)","v":""},{"$f":"IF(ISBLANK('TA Indicator Bank'!AO378),\"\",'TA Indicator Bank'!AO378)","v":""},{"$f":"IF(ISBLANK('TA Indicator Bank'!AP378),\"\",'TA Indicator Bank'!AP378)","v":""},{"$f":"IF(ISBLANK('TA Indicator Bank'!AQ378),\"\",'TA Indicator Bank'!AQ378)","v":""},{"$f":"IF(ISBLANK('TA Indicator Bank'!AR378),\"\",'TA Indicator Bank'!AR378)","v":""},{"$f":"IF(ISBLANK('TA Indicator Bank'!AS378),\"\",'TA Indicator Bank'!AS378)","v":""},{"$f":"IF(ISBLANK('TA Indicator Bank'!AT378),\"\",'TA Indicator Bank'!AT378)","v":""},0,0,0,0,0,0,0,0,0,0,0,0,0,0,1,0,0,0,0,0,0,0,0,0,1,0,0,0,0,0,0,0,0,0,1,0,0,0,0,0,1,1,374,374,"",{"$f":"IFERROR(INDEX($B$9:$I$408,$CM525,COLUMNS($CN$9:CN525)),\"\")","v":""},{"$f":"IFERROR(INDEX($B$9:$I$408,$CM525,COLUMNS($CN$9:CO525)),\"\")","v":""},{"$f":"IFERROR(INDEX($B$9:$I$408,$CM525,COLUMNS($CN$9:CP525)),\"\")","v":""},{"$f":"IFERROR(INDEX($B$9:$I$408,$CM525,COLUMNS($CN$9:CQ525)),\"\")","v":""},{"$f":"IFERROR(INDEX($B$9:$I$408,$CM525,COLUMNS($CN$9:CR525)),\"\")","v":""},{"$f":"IFERROR(INDEX($B$9:$I$408,$CM525,COLUMNS($CN$9:CS525)),\"\")","v":""},{"$f":"IFERROR(INDEX($B$9:$I$408,$CM525,COLUMNS($CN$9:CT525)),\"\")","v":""},{"$f":"IFERROR(INDEX($B$9:$I$408,$CM525,COLUMNS($CN$9:CU525)),\"\")","v":""}]
[null,{"$f":"IF(ISBLANK('TA Indicator Bank'!B379),\"\",'TA Indicator Bank'!B379)","v":""},{"$f":"IF(ISBLANK('TA Indicator Bank'!C379),\"\",'TA Indicator Bank'!C379)","v":""},{"$f":"IF(ISBLANK('TA Indicator Bank'!D379),\"\",'TA Indicator Bank'!D379)","v":""},{"$f":"IF(ISBLANK('TA Indicator Bank'!E379),\"\",'TA Indicator Bank'!E379)","v":""},{"$f":"IF(ISBLANK('TA Indicator Bank'!F379),\"\",'TA Indicator Bank'!F379)","v":""},{"$f":"IF(ISBLANK('TA Indicator Bank'!G379),\"\",'TA Indicator Bank'!G379)","v":""},{"$f":"IF(ISBLANK('TA Indicator Bank'!H379),\"\",'TA Indicator Bank'!H379)","v":""},{"$f":"IF(ISBLANK('TA Indicator Bank'!I379),\"\",'TA Indicator Bank'!I379)","v":""},{"$f":"IF(ISBLANK('TA Indicator Bank'!J379),\"\",'TA Indicator Bank'!J379)","v":""},{"$f":"IF(ISBLANK('TA Indicator Bank'!K379),\"\",'TA Indicator Bank'!K379)","v":""},{"$f":"IF(ISBLANK('TA Indicator Bank'!L379),\"\",'TA Indicator Bank'!L379)","v":""},{"$f":"IF(ISBLANK('TA Indicator Bank'!M379),\"\",'TA Indicator Bank'!M379)","v":""},{"$f":"IF(ISBLANK('TA Indicator Bank'!N379),\"\",'TA Indicator Bank'!N379)","v":""},{"$f":"IF(ISBLANK('TA Indicator Bank'!O379),\"\",'TA Indicator Bank'!O379)","v":""},{"$f":"IF(ISBLANK('TA Indicator Bank'!P379),\"\",'TA Indicator Bank'!P379)","v":""},{"$f":"IF(ISBLANK('TA Indicator Bank'!Q379),\"\",'TA Indicator Bank'!Q379)","v":""},{"$f":"IF(ISBLANK('TA Indicator Bank'!R379),\"\",'TA Indicator Bank'!R379)","v":""},{"$f":"IF(ISBLANK('TA Indicator Bank'!S379),\"\",'TA Indicator Bank'!S379)","v":""},{"$f":"IF(ISBLANK('TA Indicator Bank'!T379),\"\",'TA Indicator Bank'!T379)","v":""},{"$f":"IF(ISBLANK('TA Indicator Bank'!U379),\"\",'TA Indicator Bank'!U379)","v":""},{"$f":"IF(ISBLANK('TA Indicator Bank'!V379),\"\",'TA Indicator Bank'!V379)","v":""},{"$f":"IF(ISBLANK('TA Indicator Bank'!W379),\"\",'TA Indicator Bank'!W379)","v":""},{"$f":"IF(ISBLANK('TA Indicator Bank'!X379),\"\",'TA Indicator Bank'!X379)","v":""},{"$f":"IF(ISBLANK('TA Indicator Bank'!Y379),\"\",'TA Indicator Bank'!Y379)","v":""},{"$f":"IF(ISBLANK('TA Indicator Bank'!Z379),\"\",'TA Indicator Bank'!Z379)","v":""},{"$f":"IF(ISBLANK('TA Indicator Bank'!AA379),\"\",'TA Indicator Bank'!AA379)","v":""},{"$f":"IF(ISBLANK('TA Indicator Bank'!AB379),\"\",'TA Indicator Bank'!AB379)","v":""},{"$f":"IF(ISBLANK('TA Indicator Bank'!AC379),\"\",'TA Indicator Bank'!AC379)","v":""},{"$f":"IF(ISBLANK('TA Indicator Bank'!AD379),\"\",'TA Indicator Bank'!AD379)","v":""},{"$f":"IF(ISBLANK('TA Indicator Bank'!AE379),\"\",'TA Indicator Bank'!AE379)","v":""},{"$f":"IF(ISBLANK('TA Indicator Bank'!AF379),\"\",'TA Indicator Bank'!AF379)","v":""},{"$f":"IF(ISBLANK('TA Indicator Bank'!AG379),\"\",'TA Indicator Bank'!AG379)","v":""},{"$f":"IF(ISBLANK('TA Indicator Bank'!AH379),\"\",'TA Indicator Bank'!AH379)","v":""},{"$f":"IF(ISBLANK('TA Indicator Bank'!AI379),\"\",'TA Indicator Bank'!AI379)","v":""},{"$f":"IF(ISBLANK('TA Indicator Bank'!AJ379),\"\",'TA Indicator Bank'!AJ379)","v":""},{"$f":"IF(ISBLANK('TA Indicator Bank'!AK379),\"\",'TA Indicator Bank'!AK379)","v":""},{"$f":"IF(ISBLANK('TA Indicator Bank'!AL379),\"\",'TA Indicator Bank'!AL379)","v":""},{"$f":"IF(ISBLANK('TA Indicator Bank'!AM379),\"\",'TA Indicator Bank'!AM379)","v":""},{"$f":"IF(ISBLANK('TA Indicator Bank'!AN379),\"\",'TA Indicator Bank'!AN379)","v":""},{"$f":"IF(ISBLANK('TA Indicator Bank'!AO379),\"\",'TA Indicator Bank'!AO379)","v":""},{"$f":"IF(ISBLANK('TA Indicator Bank'!AP379),\"\",'TA Indicator Bank'!AP379)","v":""},{"$f":"IF(ISBLANK('TA Indicator Bank'!AQ379),\"\",'TA Indicator Bank'!AQ379)","v":""},{"$f":"IF(ISBLANK('TA Indicator Bank'!AR379),\"\",'TA Indicator Bank'!AR379)","v":""},{"$f":"IF(ISBLANK('TA Indicator Bank'!AS379),\"\",'TA Indicator Bank'!AS379)","v":""},{"$f":"IF(ISBLANK('TA Indicator Bank'!AT379),\"\",'TA Indicator Bank'!AT379)","v":""},0,0,0,0,0,0,0,0,0,0,0,0,0,0,1,0,0,0,0,0,0,0,0,0,1,0,0,0,0,0,0,0,0,0,1,0,0,0,0,0,1,1,375,375,"",{"$f":"IFERROR(INDEX($B$9:$I$408,$CM526,COLUMNS($CN$9:CN526)),\"\")","v":""},{"$f":"IFERROR(INDEX($B$9:$I$408,$CM526,COLUMNS($CN$9:CO526)),\"\")","v":""},{"$f":"IFERROR(INDEX($B$9:$I$408,$CM526,COLUMNS($CN$9:CP526)),\"\")","v":""},{"$f":"IFERROR(INDEX($B$9:$I$408,$CM526,COLUMNS($CN$9:CQ526)),\"\")","v":""},{"$f":"IFERROR(INDEX($B$9:$I$408,$CM526,COLUMNS($CN$9:CR526)),\"\")","v":""},{"$f":"IFERROR(INDEX($B$9:$I$408,$CM526,COLUMNS($CN$9:CS526)),\"\")","v":""},{"$f":"IFERROR(INDEX($B$9:$I$408,$CM526,COLUMNS($CN$9:CT526)),\"\")","v":""},{"$f":"IFERROR(INDEX($B$9:$I$408,$CM526,COLUMNS($CN$9:CU526)),\"\")","v":""}]
[null,{"$f":"IF(ISBLANK('TA Indicator Bank'!B380),\"\",'TA Indicator Bank'!B380)","v":""},{"$f":"IF(ISBLANK('TA Indicator Bank'!C380),\"\",'TA Indicator Bank'!C380)","v":""},{"$f":"IF(ISBLANK('TA Indicator Bank'!D380),\"\",'TA Indicator Bank'!D380)","v":""},{"$f":"IF(ISBLANK('TA Indicator Bank'!E380),\"\",'TA Indicator Bank'!E380)","v":""},{"$f":"IF(ISBLANK('TA Indicator Bank'!F380),\"\",'TA Indicator Bank'!F380)","v":""},{"$f":"IF(ISBLANK('TA Indicator Bank'!G380),\"\",'TA Indicator Bank'!G380)","v":""},{"$f":"IF(ISBLANK('TA Indicator Bank'!H380),\"\",'TA Indicator Bank'!H380)","v":""},{"$f":"IF(ISBLANK('TA Indicator Bank'!I380),\"\",'TA Indicator Bank'!I380)","v":""},{"$f":"IF(ISBLANK('TA Indicator Bank'!J380),\"\",'TA Indicator Bank'!J380)","v":""},{"$f":"IF(ISBLANK('TA Indicator Bank'!K380),\"\",'TA Indicator Bank'!K380)","v":""},{"$f":"IF(ISBLANK('TA Indicator Bank'!L380),\"\",'TA Indicator Bank'!L380)","v":""},{"$f":"IF(ISBLANK('TA Indicator Bank'!M380),\"\",'TA Indicator Bank'!M380)","v":""},{"$f":"IF(ISBLANK('TA Indicator Bank'!N380),\"\",'TA Indicator Bank'!N380)","v":""},{"$f":"IF(ISBLANK('TA Indicator Bank'!O380),\"\",'TA Indicator Bank'!O380)","v":""},{"$f":"IF(ISBLANK('TA Indicator Bank'!P380),\"\",'TA Indicator Bank'!P380)","v":""},{"$f":"IF(ISBLANK('TA Indicator Bank'!Q380),\"\",'TA Indicator Bank'!Q380)","v":""},{"$f":"IF(ISBLANK('TA Indicator Bank'!R380),\"\",'TA Indicator Bank'!R380)","v":""},{"$f":"IF(ISBLANK('TA Indicator Bank'!S380),\"\",'TA Indicator Bank'!S380)","v":""},{"$f":"IF(ISBLANK('TA Indicator Bank'!T380),\"\",'TA Indicator Bank'!T380)","v":""},{"$f":"IF(ISBLANK('TA Indicator Bank'!U380),\"\",'TA Indicator Bank'!U380)","v":""},{"$f":"IF(ISBLANK('TA Indicator Bank'!V380),\"\",'TA Indicator Bank'!V380)","v":""},{"$f":"IF(ISBLANK('TA Indicator Bank'!W380),\"\",'TA Indicator Bank'!W380)","v":""},{"$f":"IF(ISBLANK('TA Indicator Bank'!X380),\"\",'TA Indicator Bank'!X380)","v":""},{"$f":"IF(ISBLANK('TA Indicator Bank'!Y380),\"\",'TA Indicator Bank'!Y380)","v":""},{"$f":"IF(ISBLANK('TA Indicator Bank'!Z380),\"\",'TA Indicator Bank'!Z380)","v":""},{"$f":"IF(ISBLANK('TA Indicator Bank'!AA380),\"\",'TA Indicator Bank'!AA380)","v":""},{"$f":"IF(ISBLANK('TA Indicator Bank'!AB380),\"\",'TA Indicator Bank'!AB380)","v":""},{"$f":"IF(ISBLANK('TA Indicator Bank'!AC380),\"\",'TA Indicator Bank'!AC380)","v":""},{"$f":"IF(ISBLANK('TA Indicator Bank'!AD380),\"\",'TA Indicator Bank'!AD380)","v":""},{"$f":"IF(ISBLANK('TA Indicator Bank'!AE380),\"\",'TA Indicator Bank'!AE380)","v":""},{"$f":"IF(ISBLANK('TA Indicator Bank'!AF380),\"\",'TA Indicator Bank'!AF380)","v":""},{"$f":"IF(ISBLANK('TA Indicator Bank'!AG380),\"\",'TA Indicator Bank'!AG380)","v":""},{"$f":"IF(ISBLANK('TA Indicator Bank'!AH380),\"\",'TA Indicator Bank'!AH380)","v":""},{"$f":"IF(ISBLANK('TA Indicator Bank'!AI380),\"\",'TA Indicator Bank'!AI380)","v":""},{"$f":"IF(ISBLANK('TA Indicator Bank'!AJ380),\"\",'TA Indicator Bank'!AJ380)","v":""},{"$f":"IF(ISBLANK('TA Indicator Bank'!AK380),\"\",'TA Indicator Bank'!AK380)","v":""},{"$f":"IF(ISBLANK('TA Indicator Bank'!AL380),\"\",'TA Indicator Bank'!AL380)","v":""},{"$f":"IF(ISBLANK('TA Indicator Bank'!AM380),\"\",'TA Indicator Bank'!AM380)","v":""},{"$f":"IF(ISBLANK('TA Indicator Bank'!AN380),\"\",'TA Indicator Bank'!AN380)","v":""},{"$f":"IF(ISBLANK('TA Indicator Bank'!AO380),\"\",'TA Indicator Bank'!AO380)","v":""},{"$f":"IF(ISBLANK('TA Indicator Bank'!AP380),\"\",'TA Indicator Bank'!AP380)","v":""},{"$f":"IF(ISBLANK('TA Indicator Bank'!AQ380),\"\",'TA Indicator Bank'!AQ380)","v":""},{"$f":"IF(ISBLANK('TA Indicator Bank'!AR380),\"\",'TA Indicator Bank'!AR380)","v":""},{"$f":"IF(ISBLANK('TA Indicator Bank'!AS380),\"\",'TA Indicator Bank'!AS380)","v":""},{"$f":"IF(ISBLANK('TA Indicator Bank'!AT380),\"\",'TA Indicator Bank'!AT380)","v":""},0,0,0,0,0,0,0,0,0,0,0,0,0,0,1,0,0,0,0,0,0,0,0,0,1,0,0,0,0,0,0,0,0,0,1,0,0,0,0,0,1,1,376,376,"",{"$f":"IFERROR(INDEX($B$9:$I$408,$CM527,COLUMNS($CN$9:CN527)),\"\")","v":""},{"$f":"IFERROR(INDEX($B$9:$I$408,$CM527,COLUMNS($CN$9:CO527)),\"\")","v":""},{"$f":"IFERROR(INDEX($B$9:$I$408,$CM527,COLUMNS($CN$9:CP527)),\"\")","v":""},{"$f":"IFERROR(INDEX($B$9:$I$408,$CM527,COLUMNS($CN$9:CQ527)),\"\")","v":""},{"$f":"IFERROR(INDEX($B$9:$I$408,$CM527,COLUMNS($CN$9:CR527)),\"\")","v":""},{"$f":"IFERROR(INDEX($B$9:$I$408,$CM527,COLUMNS($CN$9:CS527)),\"\")","v":""},{"$f":"IFERROR(INDEX($B$9:$I$408,$CM527,COLUMNS($CN$9:CT527)),\"\")","v":""},{"$f":"IFERROR(INDEX($B$9:$I$408,$CM527,COLUMNS($CN$9:CU527)),\"\")","v":""}]
[null,{"$f":"IF(ISBLANK('TA Indicator Bank'!B381),\"\",'TA Indicator Bank'!B381)","v":""},{"$f":"IF(ISBLANK('TA Indicator Bank'!C381),\"\",'TA Indicator Bank'!C381)","v":""},{"$f":"IF(ISBLANK('TA Indicator Bank'!D381),\"\",'TA Indicator Bank'!D381)","v":""},{"$f":"IF(ISBLANK('TA Indicator Bank'!E381),\"\",'TA Indicator Bank'!E381)","v":""},{"$f":"IF(ISBLANK('TA Indicator Bank'!F381),\"\",'TA Indicator Bank'!F381)","v":""},{"$f":"IF(ISBLANK('TA Indicator Bank'!G381),\"\",'TA Indicator Bank'!G381)","v":""},{"$f":"IF(ISBLANK('TA Indicator Bank'!H381),\"\",'TA Indicator Bank'!H381)","v":""},{"$f":"IF(ISBLANK('TA Indicator Bank'!I381),\"\",'TA Indicator Bank'!I381)","v":""},{"$f":"IF(ISBLANK('TA Indicator Bank'!J381),\"\",'TA Indicator Bank'!J381)","v":""},{"$f":"IF(ISBLANK('TA Indicator Bank'!K381),\"\",'TA Indicator Bank'!K381)","v":""},{"$f":"IF(ISBLANK('TA Indicator Bank'!L381),\"\",'TA Indicator Bank'!L381)","v":""},{"$f":"IF(ISBLANK('TA Indicator Bank'!M381),\"\",'TA Indicator Bank'!M381)","v":""},{"$f":"IF(ISBLANK('TA Indicator Bank'!N381),\"\",'TA Indicator Bank'!N381)","v":""},{"$f":"IF(ISBLANK('TA Indicator Bank'!O381),\"\",'TA Indicator Bank'!O381)","v":""},{"$f":"IF(ISBLANK('TA Indicator Bank'!P381),\"\",'TA Indicator Bank'!P381)","v":""},{"$f":"IF(ISBLANK('TA Indicator Bank'!Q381),\"\",'TA Indicator Bank'!Q381)","v":""},{"$f":"IF(ISBLANK('TA Indicator Bank'!R381),\"\",'TA Indicator Bank'!R381)","v":""},{"$f":"IF(ISBLANK('TA Indicator Bank'!S381),\"\",'TA Indicator Bank'!S381)","v":""},{"$f":"IF(ISBLANK('TA Indicator Bank'!T381),\"\",'TA Indicator Bank'!T381)","v":""},{"$f":"IF(ISBLANK('TA Indicator Bank'!U381),\"\",'TA Indicator Bank'!U381)","v":""},{"$f":"IF(ISBLANK('TA Indicator Bank'!V381),\"\",'TA Indicator Bank'!V381)","v":""},{"$f":"IF(ISBLANK('TA Indicator Bank'!W381),\"\",'TA Indicator Bank'!W381)","v":""},{"$f":"IF(ISBLANK('TA Indicator Bank'!X381),\"\",'TA Indicator Bank'!X381)","v":""},{"$f":"IF(ISBLANK('TA Indicator Bank'!Y381),\"\",'TA Indicator Bank'!Y381)","v":""},{"$f":"IF(ISBLANK('TA Indicator Bank'!Z381),\"\",'TA Indicator Bank'!Z381)","v":""},{"$f":"IF(ISBLANK('TA Indicator Bank'!AA381),\"\",'TA Indicator Bank'!AA381)","v":""},{"$f":"IF(ISBLANK('TA Indicator Bank'!AB381),\"\",'TA Indicator Bank'!AB381)","v":""},{"$f":"IF(ISBLANK('TA Indicator Bank'!AC381),\"\",'TA Indicator Bank'!AC381)","v":""},{"$f":"IF(ISBLANK('TA Indicator Bank'!AD381),\"\",'TA Indicator Bank'!AD381)","v":""},{"$f":"IF(ISBLANK('TA Indicator Bank'!AE381),\"\",'TA Indicator Bank'!AE381)","v":""},{"$f":"IF(ISBLANK('TA Indicator Bank'!AF381),\"\",'TA Indicator Bank'!AF381)","v":""},{"$f":"IF(ISBLANK('TA Indicator Bank'!AG381),\"\",'TA Indicator Bank'!AG381)","v":""},{"$f":"IF(ISBLANK('TA Indicator Bank'!AH381),\"\",'TA Indicator Bank'!AH381)","v":""},{"$f":"IF(ISBLANK('TA Indicator Bank'!AI381),\"\",'TA Indicator Bank'!AI381)","v":""},{"$f":"IF(ISBLANK('TA Indicator Bank'!AJ381),\"\",'TA Indicator Bank'!AJ381)","v":""},{"$f":"IF(ISBLANK('TA Indicator Bank'!AK381),\"\",'TA Indicator Bank'!AK381)","v":""},{"$f":"IF(ISBLANK('TA Indicator Bank'!AL381),\"\",'TA Indicator Bank'!AL381)","v":""},{"$f":"IF(ISBLANK('TA Indicator Bank'!AM381),\"\",'TA Indicator Bank'!AM381)","v":""},{"$f":"IF(ISBLANK('TA Indicator Bank'!AN381),\"\",'TA Indicator Bank'!AN381)","v":""},{"$f":"IF(ISBLANK('TA Indicator Bank'!AO381),\"\",'TA Indicator Bank'!AO381)","v":""},{"$f":"IF(ISBLANK('TA Indicator Bank'!AP381),\"\",'TA Indicator Bank'!AP381)","v":""},{"$f":"IF(ISBLANK('TA Indicator Bank'!AQ381),\"\",'TA Indicator Bank'!AQ381)","v":""},{"$f":"IF(ISBLANK('TA Indicator Bank'!AR381),\"\",'TA Indicator Bank'!AR381)","v":""},{"$f":"IF(ISBLANK('TA Indicator Bank'!AS381),\"\",'TA Indicator Bank'!AS381)","v":""},{"$f":"IF(ISBLANK('TA Indicator Bank'!AT381),\"\",'TA Indicator Bank'!AT381)","v":""},0,0,0,0,0,0,0,0,0,0,0,0,0,0,1,0,0,0,0,0,0,0,0,0,1,0,0,0,0,0,0,0,0,0,1,0,0,0,0,0,1,1,377,377,"",{"$f":"IFERROR(INDEX($B$9:$I$408,$CM528,COLUMNS($CN$9:CN528)),\"\")","v":""},{"$f":"IFERROR(INDEX($B$9:$I$408,$CM528,COLUMNS($CN$9:CO528)),\"\")","v":""},{"$f":"IFERROR(INDEX($B$9:$I$408,$CM528,COLUMNS($CN$9:CP528)),\"\")","v":""},{"$f":"IFERROR(INDEX($B$9:$I$408,$CM528,COLUMNS($CN$9:CQ528)),\"\")","v":""},{"$f":"IFERROR(INDEX($B$9:$I$408,$CM528,COLUMNS($CN$9:CR528)),\"\")","v":""},{"$f":"IFERROR(INDEX($B$9:$I$408,$CM528,COLUMNS($CN$9:CS528)),\"\")","v":""},{"$f":"IFERROR(INDEX($B$9:$I$408,$CM528,COLUMNS($CN$9:CT528)),\"\")","v":""},{"$f":"IFERROR(INDEX($B$9:$I$408,$CM528,COLUMNS($CN$9:CU528)),\"\")","v":""}]
[null,{"$f":"IF(ISBLANK('TA Indicator Bank'!B382),\"\",'TA Indicator Bank'!B382)","v":""},{"$f":"IF(ISBLANK('TA Indicator Bank'!C382),\"\",'TA Indicator Bank'!C382)","v":""},{"$f":"IF(ISBLANK('TA Indicator Bank'!D382),\"\",'TA Indicator Bank'!D382)","v":""},{"$f":"IF(ISBLANK('TA Indicator Bank'!E382),\"\",'TA Indicator Bank'!E382)","v":""},{"$f":"IF(ISBLANK('TA Indicator Bank'!F382),\"\",'TA Indicator Bank'!F382)","v":""},{"$f":"IF(ISBLANK('TA Indicator Bank'!G382),\"\",'TA Indicator Bank'!G382)","v":""},{"$f":"IF(ISBLANK('TA Indicator Bank'!H382),\"\",'TA Indicator Bank'!H382)","v":""},{"$f":"IF(ISBLANK('TA Indicator Bank'!I382),\"\",'TA Indicator Bank'!I382)","v":""},{"$f":"IF(ISBLANK('TA Indicator Bank'!J382),\"\",'TA Indicator Bank'!J382)","v":""},{"$f":"IF(ISBLANK('TA Indicator Bank'!K382),\"\",'TA Indicator Bank'!K382)","v":""},{"$f":"IF(ISBLANK('TA Indicator Bank'!L382),\"\",'TA Indicator Bank'!L382)","v":""},{"$f":"IF(ISBLANK('TA Indicator Bank'!M382),\"\",'TA Indicator Bank'!M382)","v":""},{"$f":"IF(ISBLANK('TA Indicator Bank'!N382),\"\",'TA Indicator Bank'!N382)","v":""},{"$f":"IF(ISBLANK('TA Indicator Bank'!O382),\"\",'TA Indicator Bank'!O382)","v":""},{"$f":"IF(ISBLANK('TA Indicator Bank'!P382),\"\",'TA Indicator Bank'!P382)","v":""},{"$f":"IF(ISBLANK('TA Indicator Bank'!Q382),\"\",'TA Indicator Bank'!Q382)","v":""},{"$f":"IF(ISBLANK('TA Indicator Bank'!R382),\"\",'TA Indicator Bank'!R382)","v":""},{"$f":"IF(ISBLANK('TA Indicator Bank'!S382),\"\",'TA Indicator Bank'!S382)","v":""},{"$f":"IF(ISBLANK('TA Indicator Bank'!T382),\"\",'TA Indicator Bank'!T382)","v":""},{"$f":"IF(ISBLANK('TA Indicator Bank'!U382),\"\",'TA Indicator Bank'!U382)","v":""},{"$f":"IF(ISBLANK('TA Indicator Bank'!V382),\"\",'TA Indicator Bank'!V382)","v":""},{"$f":"IF(ISBLANK('TA Indicator Bank'!W382),\"\",'TA Indicator Bank'!W382)","v":""},{"$f":"IF(ISBLANK('TA Indicator Bank'!X382),\"\",'TA Indicator Bank'!X382)","v":""},{"$f":"IF(ISBLANK('TA Indicator Bank'!Y382),\"\",'TA Indicator Bank'!Y382)","v":""},{"$f":"IF(ISBLANK('TA Indicator Bank'!Z382),\"\",'TA Indicator Bank'!Z382)","v":""},{"$f":"IF(ISBLANK('TA Indicator Bank'!AA382),\"\",'TA Indicator Bank'!AA382)","v":""},{"$f":"IF(ISBLANK('TA Indicator Bank'!AB382),\"\",'TA Indicator Bank'!AB382)","v":""},{"$f":"IF(ISBLANK('TA Indicator Bank'!AC382),\"\",'TA Indicator Bank'!AC382)","v":""},{"$f":"IF(ISBLANK('TA Indicator Bank'!AD382),\"\",'TA Indicator Bank'!AD382)","v":""},{"$f":"IF(ISBLANK('TA Indicator Bank'!AE382),\"\",'TA Indicator Bank'!AE382)","v":""},{"$f":"IF(ISBLANK('TA Indicator Bank'!AF382),\"\",'TA Indicator Bank'!AF382)","v":""},{"$f":"IF(ISBLANK('TA Indicator Bank'!AG382),\"\",'TA Indicator Bank'!AG382)","v":""},{"$f":"IF(ISBLANK('TA Indicator Bank'!AH382),\"\",'TA Indicator Bank'!AH382)","v":""},{"$f":"IF(ISBLANK('TA Indicator Bank'!AI382),\"\",'TA Indicator Bank'!AI382)","v":""},{"$f":"IF(ISBLANK('TA Indicator Bank'!AJ382),\"\",'TA Indicator Bank'!AJ382)","v":""},{"$f":"IF(ISBLANK('TA Indicator Bank'!AK382),\"\",'TA Indicator Bank'!AK382)","v":""},{"$f":"IF(ISBLANK('TA Indicator Bank'!AL382),\"\",'TA Indicator Bank'!AL382)","v":""},{"$f":"IF(ISBLANK('TA Indicator Bank'!AM382),\"\",'TA Indicator Bank'!AM382)","v":""},{"$f":"IF(ISBLANK('TA Indicator Bank'!AN382),\"\",'TA Indicator Bank'!AN382)","v":""},{"$f":"IF(ISBLANK('TA Indicator Bank'!AO382),\"\",'TA Indicator Bank'!AO382)","v":""},{"$f":"IF(ISBLANK('TA Indicator Bank'!AP382),\"\",'TA Indicator Bank'!AP382)","v":""},{"$f":"IF(ISBLANK('TA Indicator Bank'!AQ382),\"\",'TA Indicator Bank'!AQ382)","v":""},{"$f":"IF(ISBLANK('TA Indicator Bank'!AR382),\"\",'TA Indicator Bank'!AR382)","v":""},{"$f":"IF(ISBLANK('TA Indicator Bank'!AS382),\"\",'TA Indicator Bank'!AS382)","v":""},{"$f":"IF(ISBLANK('TA Indicator Bank'!AT382),\"\",'TA Indicator Bank'!AT382)","v":""},0,0,0,0,0,0,0,0,0,0,0,0,0,0,1,0,0,0,0,0,0,0,0,0,1,0,0,0,0,0,0,0,0,0,1,0,0,0,0,0,1,1,378,378,"",{"$f":"IFERROR(INDEX($B$9:$I$408,$CM529,COLUMNS($CN$9:CN529)),\"\")","v":""},{"$f":"IFERROR(INDEX($B$9:$I$408,$CM529,COLUMNS($CN$9:CO529)),\"\")","v":""},{"$f":"IFERROR(INDEX($B$9:$I$408,$CM529,COLUMNS($CN$9:CP529)),\"\")","v":""},{"$f":"IFERROR(INDEX($B$9:$I$408,$CM529,COLUMNS($CN$9:CQ529)),\"\")","v":""},{"$f":"IFERROR(INDEX($B$9:$I$408,$CM529,COLUMNS($CN$9:CR529)),\"\")","v":""},{"$f":"IFERROR(INDEX($B$9:$I$408,$CM529,COLUMNS($CN$9:CS529)),\"\")","v":""},{"$f":"IFERROR(INDEX($B$9:$I$408,$CM529,COLUMNS($CN$9:CT529)),\"\")","v":""},{"$f":"IFERROR(INDEX($B$9:$I$408,$CM529,COLUMNS($CN$9:CU529)),\"\")","v":""}]
[null,{"$f":"IF(ISBLANK('TA Indicator Bank'!B383),\"\",'TA Indicator Bank'!B383)","v":""},{"$f":"IF(ISBLANK('TA Indicator Bank'!C383),\"\",'TA Indicator Bank'!C383)","v":""},{"$f":"IF(ISBLANK('TA Indicator Bank'!D383),\"\",'TA Indicator Bank'!D383)","v":""},{"$f":"IF(ISBLANK('TA Indicator Bank'!E383),\"\",'TA Indicator Bank'!E383)","v":""},{"$f":"IF(ISBLANK('TA Indicator Bank'!F383),\"\",'TA Indicator Bank'!F383)","v":""},{"$f":"IF(ISBLANK('TA Indicator Bank'!G383),\"\",'TA Indicator Bank'!G383)","v":""},{"$f":"IF(ISBLANK('TA Indicator Bank'!H383),\"\",'TA Indicator Bank'!H383)","v":""},{"$f":"IF(ISBLANK('TA Indicator Bank'!I383),\"\",'TA Indicator Bank'!I383)","v":""},{"$f":"IF(ISBLANK('TA Indicator Bank'!J383),\"\",'TA Indicator Bank'!J383)","v":""},{"$f":"IF(ISBLANK('TA Indicator Bank'!K383),\"\",'TA Indicator Bank'!K383)","v":""},{"$f":"IF(ISBLANK('TA Indicator Bank'!L383),\"\",'TA Indicator Bank'!L383)","v":""},{"$f":"IF(ISBLANK('TA Indicator Bank'!M383),\"\",'TA Indicator Bank'!M383)","v":""},{"$f":"IF(ISBLANK('TA Indicator Bank'!N383),\"\",'TA Indicator Bank'!N383)","v":""},{"$f":"IF(ISBLANK('TA Indicator Bank'!O383),\"\",'TA Indicator Bank'!O383)","v":""},{"$f":"IF(ISBLANK('TA Indicator Bank'!P383),\"\",'TA Indicator Bank'!P383)","v":""},{"$f":"IF(ISBLANK('TA Indicator Bank'!Q383),\"\",'TA Indicator Bank'!Q383)","v":""},{"$f":"IF(ISBLANK('TA Indicator Bank'!R383),\"\",'TA Indicator Bank'!R383)","v":""},{"$f":"IF(ISBLANK('TA Indicator Bank'!S383),\"\",'TA Indicator Bank'!S383)","v":""},{"$f":"IF(ISBLANK('TA Indicator Bank'!T383),\"\",'TA Indicator Bank'!T383)","v":""},{"$f":"IF(ISBLANK('TA Indicator Bank'!U383),\"\",'TA Indicator Bank'!U383)","v":""},{"$f":"IF(ISBLANK('TA Indicator Bank'!V383),\"\",'TA Indicator Bank'!V383)","v":""},{"$f":"IF(ISBLANK('TA Indicator Bank'!W383),\"\",'TA Indicator Bank'!W383)","v":""},{"$f":"IF(ISBLANK('TA Indicator Bank'!X383),\"\",'TA Indicator Bank'!X383)","v":""},{"$f":"IF(ISBLANK('TA Indicator Bank'!Y383),\"\",'TA Indicator Bank'!Y383)","v":""},{"$f":"IF(ISBLANK('TA Indicator Bank'!Z383),\"\",'TA Indicator Bank'!Z383)","v":""},{"$f":"IF(ISBLANK('TA Indicator Bank'!AA383),\"\",'TA Indicator Bank'!AA383)","v":""},{"$f":"IF(ISBLANK('TA Indicator Bank'!AB383),\"\",'TA Indicator Bank'!AB383)","v":""},{"$f":"IF(ISBLANK('TA Indicator Bank'!AC383),\"\",'TA Indicator Bank'!AC383)","v":""},{"$f":"IF(ISBLANK('TA Indicator Bank'!AD383),\"\",'TA Indicator Bank'!AD383)","v":""},{"$f":"IF(ISBLANK('TA Indicator Bank'!AE383),\"\",'TA Indicator Bank'!AE383)","v":""},{"$f":"IF(ISBLANK('TA Indicator Bank'!AF383),\"\",'TA Indicator Bank'!AF383)","v":""},{"$f":"IF(ISBLANK('TA Indicator Bank'!AG383),\"\",'TA Indicator Bank'!AG383)","v":""},{"$f":"IF(ISBLANK('TA Indicator Bank'!AH383),\"\",'TA Indicator Bank'!AH383)","v":""},{"$f":"IF(ISBLANK('TA Indicator Bank'!AI383),\"\",'TA Indicator Bank'!AI383)","v":""},{"$f":"IF(ISBLANK('TA Indicator Bank'!AJ383),\"\",'TA Indicator Bank'!AJ383)","v":""},{"$f":"IF(ISBLANK('TA Indicator Bank'!AK383),\"\",'TA Indicator Bank'!AK383)","v":""},{"$f":"IF(ISBLANK('TA Indicator Bank'!AL383),\"\",'TA Indicator Bank'!AL383)","v":""},{"$f":"IF(ISBLANK('TA Indicator Bank'!AM383),\"\",'TA Indicator Bank'!AM383)","v":""},{"$f":"IF(ISBLANK('TA Indicator Bank'!AN383),\"\",'TA Indicator Bank'!AN383)","v":""},{"$f":"IF(ISBLANK('TA Indicator Bank'!AO383),\"\",'TA Indicator Bank'!AO383)","v":""},{"$f":"IF(ISBLANK('TA Indicator Bank'!AP383),\"\",'TA Indicator Bank'!AP383)","v":""},{"$f":"IF(ISBLANK('TA Indicator Bank'!AQ383),\"\",'TA Indicator Bank'!AQ383)","v":""},{"$f":"IF(ISBLANK('TA Indicator Bank'!AR383),\"\",'TA Indicator Bank'!AR383)","v":""},{"$f":"IF(ISBLANK('TA Indicator Bank'!AS383),\"\",'TA Indicator Bank'!AS383)","v":""},{"$f":"IF(ISBLANK('TA Indicator Bank'!AT383),\"\",'TA Indicator Bank'!AT383)","v":""},0,0,0,0,0,0,0,0,0,0,0,0,0,0,1,0,0,0,0,0,0,0,0,0,1,0,0,0,0,0,0,0,0,0,1,0,0,0,0,0,1,1,379,379,"",{"$f":"IFERROR(INDEX($B$9:$I$408,$CM530,COLUMNS($CN$9:CN530)),\"\")","v":""},{"$f":"IFERROR(INDEX($B$9:$I$408,$CM530,COLUMNS($CN$9:CO530)),\"\")","v":""},{"$f":"IFERROR(INDEX($B$9:$I$408,$CM530,COLUMNS($CN$9:CP530)),\"\")","v":""},{"$f":"IFERROR(INDEX($B$9:$I$408,$CM530,COLUMNS($CN$9:CQ530)),\"\")","v":""},{"$f":"IFERROR(INDEX($B$9:$I$408,$CM530,COLUMNS($CN$9:CR530)),\"\")","v":""},{"$f":"IFERROR(INDEX($B$9:$I$408,$CM530,COLUMNS($CN$9:CS530)),\"\")","v":""},{"$f":"IFERROR(INDEX($B$9:$I$408,$CM530,COLUMNS($CN$9:CT530)),\"\")","v":""},{"$f":"IFERROR(INDEX($B$9:$I$408,$CM530,COLUMNS($CN$9:CU530)),\"\")","v":""}]
[null,{"$f":"IF(ISBLANK('TA Indicator Bank'!B384),\"\",'TA Indicator Bank'!B384)","v":""},{"$f":"IF(ISBLANK('TA Indicator Bank'!C384),\"\",'TA Indicator Bank'!C384)","v":""},{"$f":"IF(ISBLANK('TA Indicator Bank'!D384),\"\",'TA Indicator Bank'!D384)","v":""},{"$f":"IF(ISBLANK('TA Indicator Bank'!E384),\"\",'TA Indicator Bank'!E384)","v":""},{"$f":"IF(ISBLANK('TA Indicator Bank'!F384),\"\",'TA Indicator Bank'!F384)","v":""},{"$f":"IF(ISBLANK('TA Indicator Bank'!G384),\"\",'TA Indicator Bank'!G384)","v":""},{"$f":"IF(ISBLANK('TA Indicator Bank'!H384),\"\",'TA Indicator Bank'!H384)","v":""},{"$f":"IF(ISBLANK('TA Indicator Bank'!I384),\"\",'TA Indicator Bank'!I384)","v":""},{"$f":"IF(ISBLANK('TA Indicator Bank'!J384),\"\",'TA Indicator Bank'!J384)","v":""},{"$f":"IF(ISBLANK('TA Indicator Bank'!K384),\"\",'TA Indicator Bank'!K384)","v":""},{"$f":"IF(ISBLANK('TA Indicator Bank'!L384),\"\",'TA Indicator Bank'!L384)","v":""},{"$f":"IF(ISBLANK('TA Indicator Bank'!M384),\"\",'TA Indicator Bank'!M384)","v":""},{"$f":"IF(ISBLANK('TA Indicator Bank'!N384),\"\",'TA Indicator Bank'!N384)","v":""},{"$f":"IF(ISBLANK('TA Indicator Bank'!O384),\"\",'TA Indicator Bank'!O384)","v":""},{"$f":"IF(ISBLANK('TA Indicator Bank'!P384),\"\",'TA Indicator Bank'!P384)","v":""},{"$f":"IF(ISBLANK('TA Indicator Bank'!Q384),\"\",'TA Indicator Bank'!Q384)","v":""},{"$f":"IF(ISBLANK('TA Indicator Bank'!R384),\"\",'TA Indicator Bank'!R384)","v":""},{"$f":"IF(ISBLANK('TA Indicator Bank'!S384),\"\",'TA Indicator Bank'!S384)","v":""},{"$f":"IF(ISBLANK('TA Indicator Bank'!T384),\"\",'TA Indicator Bank'!T384)","v":""},{"$f":"IF(ISBLANK('TA Indicator Bank'!U384),\"\",'TA Indicator Bank'!U384)","v":""},{"$f":"IF(ISBLANK('TA Indicator Bank'!V384),\"\",'TA Indicator Bank'!V384)","v":""},{"$f":"IF(ISBLANK('TA Indicator Bank'!W384),\"\",'TA Indicator Bank'!W384)","v":""},{"$f":"IF(ISBLANK('TA Indicator Bank'!X384),\"\",'TA Indicator Bank'!X384)","v":""},{"$f":"IF(ISBLANK('TA Indicator Bank'!Y384),\"\",'TA Indicator Bank'!Y384)","v":""},{"$f":"IF(ISBLANK('TA Indicator Bank'!Z384),\"\",'TA Indicator Bank'!Z384)","v":""},{"$f":"IF(ISBLANK('TA Indicator Bank'!AA384),\"\",'TA Indicator Bank'!AA384)","v":""},{"$f":"IF(ISBLANK('TA Indicator Bank'!AB384),\"\",'TA Indicator Bank'!AB384)","v":""},{"$f":"IF(ISBLANK('TA Indicator Bank'!AC384),\"\",'TA Indicator Bank'!AC384)","v":""},{"$f":"IF(ISBLANK('TA Indicator Bank'!AD384),\"\",'TA Indicator Bank'!AD384)","v":""},{"$f":"IF(ISBLANK('TA Indicator Bank'!AE384),\"\",'TA Indicator Bank'!AE384)","v":""},{"$f":"IF(ISBLANK('TA Indicator Bank'!AF384),\"\",'TA Indicator Bank'!AF384)","v":""},{"$f":"IF(ISBLANK('TA Indicator Bank'!AG384),\"\",'TA Indicator Bank'!AG384)","v":""},{"$f":"IF(ISBLANK('TA Indicator Bank'!AH384),\"\",'TA Indicator Bank'!AH384)","v":""},{"$f":"IF(ISBLANK('TA Indicator Bank'!AI384),\"\",'TA Indicator Bank'!AI384)","v":""},{"$f":"IF(ISBLANK('TA Indicator Bank'!AJ384),\"\",'TA Indicator Bank'!AJ384)","v":""},{"$f":"IF(ISBLANK('TA Indicator Bank'!AK384),\"\",'TA Indicator Bank'!AK384)","v":""},{"$f":"IF(ISBLANK('TA Indicator Bank'!AL384),\"\",'TA Indicator Bank'!AL384)","v":""},{"$f":"IF(ISBLANK('TA Indicator Bank'!AM384),\"\",'TA Indicator Bank'!AM384)","v":""},{"$f":"IF(ISBLANK('TA Indicator Bank'!AN384),\"\",'TA Indicator Bank'!AN384)","v":""},{"$f":"IF(ISBLANK('TA Indicator Bank'!AO384),\"\",'TA Indicator Bank'!AO384)","v":""},{"$f":"IF(ISBLANK('TA Indicator Bank'!AP384),\"\",'TA Indicator Bank'!AP384)","v":""},{"$f":"IF(ISBLANK('TA Indicator Bank'!AQ384),\"\",'TA Indicator Bank'!AQ384)","v":""},{"$f":"IF(ISBLANK('TA Indicator Bank'!AR384),\"\",'TA Indicator Bank'!AR384)","v":""},{"$f":"IF(ISBLANK('TA Indicator Bank'!AS384),\"\",'TA Indicator Bank'!AS384)","v":""},{"$f":"IF(ISBLANK('TA Indicator Bank'!AT384),\"\",'TA Indicator Bank'!AT384)","v":""},0,0,0,0,0,0,0,0,0,0,0,0,0,0,1,0,0,0,0,0,0,0,0,0,1,0,0,0,0,0,0,0,0,0,1,0,0,0,0,0,1,1,380,380,"",{"$f":"IFERROR(INDEX($B$9:$I$408,$CM531,COLUMNS($CN$9:CN531)),\"\")","v":""},{"$f":"IFERROR(INDEX($B$9:$I$408,$CM531,COLUMNS($CN$9:CO531)),\"\")","v":""},{"$f":"IFERROR(INDEX($B$9:$I$408,$CM531,COLUMNS($CN$9:CP531)),\"\")","v":""},{"$f":"IFERROR(INDEX($B$9:$I$408,$CM531,COLUMNS($CN$9:CQ531)),\"\")","v":""},{"$f":"IFERROR(INDEX($B$9:$I$408,$CM531,COLUMNS($CN$9:CR531)),\"\")","v":""},{"$f":"IFERROR(INDEX($B$9:$I$408,$CM531,COLUMNS($CN$9:CS531)),\"\")","v":""},{"$f":"IFERROR(INDEX($B$9:$I$408,$CM531,COLUMNS($CN$9:CT531)),\"\")","v":""},{"$f":"IFERROR(INDEX($B$9:$I$408,$CM531,COLUMNS($CN$9:CU531)),\"\")","v":""}]
[null,{"$f":"IF(ISBLANK('TA Indicator Bank'!B385),\"\",'TA Indicator Bank'!B385)","v":""},{"$f":"IF(ISBLANK('TA Indicator Bank'!C385),\"\",'TA Indicator Bank'!C385)","v":""},{"$f":"IF(ISBLANK('TA Indicator Bank'!D385),\"\",'TA Indicator Bank'!D385)","v":""},{"$f":"IF(ISBLANK('TA Indicator Bank'!E385),\"\",'TA Indicator Bank'!E385)","v":""},{"$f":"IF(ISBLANK('TA Indicator Bank'!F385),\"\",'TA Indicator Bank'!F385)","v":""},{"$f":"IF(ISBLANK('TA Indicator Bank'!G385),\"\",'TA Indicator Bank'!G385)","v":""},{"$f":"IF(ISBLANK('TA Indicator Bank'!H385),\"\",'TA Indicator Bank'!H385)","v":""},{"$f":"IF(ISBLANK('TA Indicator Bank'!I385),\"\",'TA Indicator Bank'!I385)","v":""},{"$f":"IF(ISBLANK('TA Indicator Bank'!J385),\"\",'TA Indicator Bank'!J385)","v":""},{"$f":"IF(ISBLANK('TA Indicator Bank'!K385),\"\",'TA Indicator Bank'!K385)","v":""},{"$f":"IF(ISBLANK('TA Indicator Bank'!L385),\"\",'TA Indicator Bank'!L385)","v":""},{"$f":"IF(ISBLANK('TA Indicator Bank'!M385),\"\",'TA Indicator Bank'!M385)","v":""},{"$f":"IF(ISBLANK('TA Indicator Bank'!N385),\"\",'TA Indicator Bank'!N385)","v":""},{"$f":"IF(ISBLANK('TA Indicator Bank'!O385),\"\",'TA Indicator Bank'!O385)","v":""},{"$f":"IF(ISBLANK('TA Indicator Bank'!P385),\"\",'TA Indicator Bank'!P385)","v":""},{"$f":"IF(ISBLANK('TA Indicator Bank'!Q385),\"\",'TA Indicator Bank'!Q385)","v":""},{"$f":"IF(ISBLANK('TA Indicator Bank'!R385),\"\",'TA Indicator Bank'!R385)","v":""},{"$f":"IF(ISBLANK('TA Indicator Bank'!S385),\"\",'TA Indicator Bank'!S385)","v":""},{"$f":"IF(ISBLANK('TA Indicator Bank'!T385),\"\",'TA Indicator Bank'!T385)","v":""},{"$f":"IF(ISBLANK('TA Indicator Bank'!U385),\"\",'TA Indicator Bank'!U385)","v":""},{"$f":"IF(ISBLANK('TA Indicator Bank'!V385),\"\",'TA Indicator Bank'!V385)","v":""},{"$f":"IF(ISBLANK('TA Indicator Bank'!W385),\"\",'TA Indicator Bank'!W385)","v":""},{"$f":"IF(ISBLANK('TA Indicator Bank'!X385),\"\",'TA Indicator Bank'!X385)","v":""},{"$f":"IF(ISBLANK('TA Indicator Bank'!Y385),\"\",'TA Indicator Bank'!Y385)","v":""},{"$f":"IF(ISBLANK('TA Indicator Bank'!Z385),\"\",'TA Indicator Bank'!Z385)","v":""},{"$f":"IF(ISBLANK('TA Indicator Bank'!AA385),\"\",'TA Indicator Bank'!AA385)","v":""},{"$f":"IF(ISBLANK('TA Indicator Bank'!AB385),\"\",'TA Indicator Bank'!AB385)","v":""},{"$f":"IF(ISBLANK('TA Indicator Bank'!AC385),\"\",'TA Indicator Bank'!AC385)","v":""},{"$f":"IF(ISBLANK('TA Indicator Bank'!AD385),\"\",'TA Indicator Bank'!AD385)","v":""},{"$f":"IF(ISBLANK('TA Indicator Bank'!AE385),\"\",'TA Indicator Bank'!AE385)","v":""},{"$f":"IF(ISBLANK('TA Indicator Bank'!AF385),\"\",'TA Indicator Bank'!AF385)","v":""},{"$f":"IF(ISBLANK('TA Indicator Bank'!AG385),\"\",'TA Indicator Bank'!AG385)","v":""},{"$f":"IF(ISBLANK('TA Indicator Bank'!AH385),\"\",'TA Indicator Bank'!AH385)","v":""},{"$f":"IF(ISBLANK('TA Indicator Bank'!AI385),\"\",'TA Indicator Bank'!AI385)","v":""},{"$f":"IF(ISBLANK('TA Indicator Bank'!AJ385),\"\",'TA Indicator Bank'!AJ385)","v":""},{"$f":"IF(ISBLANK('TA Indicator Bank'!AK385),\"\",'TA Indicator Bank'!AK385)","v":""},{"$f":"IF(ISBLANK('TA Indicator Bank'!AL385),\"\",'TA Indicator Bank'!AL385)","v":""},{"$f":"IF(ISBLANK('TA Indicator Bank'!AM385),\"\",'TA Indicator Bank'!AM385)","v":""},{"$f":"IF(ISBLANK('TA Indicator Bank'!AN385),\"\",'TA Indicator Bank'!AN385)","v":""},{"$f":"IF(ISBLANK('TA Indicator Bank'!AO385),\"\",'TA Indicator Bank'!AO385)","v":""},{"$f":"IF(ISBLANK('TA Indicator Bank'!AP385),\"\",'TA Indicator Bank'!AP385)","v":""},{"$f":"IF(ISBLANK('TA Indicator Bank'!AQ385),\"\",'TA Indicator Bank'!AQ385)","v":""},{"$f":"IF(ISBLANK('TA Indicator Bank'!AR385),\"\",'TA Indicator Bank'!AR385)","v":""},{"$f":"IF(ISBLANK('TA Indicator Bank'!AS385),\"\",'TA Indicator Bank'!AS385)","v":""},{"$f":"IF(ISBLANK('TA Indicator Bank'!AT385),\"\",'TA Indicator Bank'!AT385)","v":""},0,0,0,0,0,0,0,0,0,0,0,0,0,0,1,0,0,0,0,0,0,0,0,0,1,0,0,0,0,0,0,0,0,0,1,0,0,0,0,0,1,1,381,381,"",{"$f":"IFERROR(INDEX($B$9:$I$408,$CM532,COLUMNS($CN$9:CN532)),\"\")","v":""},{"$f":"IFERROR(INDEX($B$9:$I$408,$CM532,COLUMNS($CN$9:CO532)),\"\")","v":""},{"$f":"IFERROR(INDEX($B$9:$I$408,$CM532,COLUMNS($CN$9:CP532)),\"\")","v":""},{"$f":"IFERROR(INDEX($B$9:$I$408,$CM532,COLUMNS($CN$9:CQ532)),\"\")","v":""},{"$f":"IFERROR(INDEX($B$9:$I$408,$CM532,COLUMNS($CN$9:CR532)),\"\")","v":""},{"$f":"IFERROR(INDEX($B$9:$I$408,$CM532,COLUMNS($CN$9:CS532)),\"\")","v":""},{"$f":"IFERROR(INDEX($B$9:$I$408,$CM532,COLUMNS($CN$9:CT532)),\"\")","v":""},{"$f":"IFERROR(INDEX($B$9:$I$408,$CM532,COLUMNS($CN$9:CU532)),\"\")","v":""}]
[null,{"$f":"IF(ISBLANK('TA Indicator Bank'!B386),\"\",'TA Indicator Bank'!B386)","v":""},{"$f":"IF(ISBLANK('TA Indicator Bank'!C386),\"\",'TA Indicator Bank'!C386)","v":""},{"$f":"IF(ISBLANK('TA Indicator Bank'!D386),\"\",'TA Indicator Bank'!D386)","v":""},{"$f":"IF(ISBLANK('TA Indicator Bank'!E386),\"\",'TA Indicator Bank'!E386)","v":""},{"$f":"IF(ISBLANK('TA Indicator Bank'!F386),\"\",'TA Indicator Bank'!F386)","v":""},{"$f":"IF(ISBLANK('TA Indicator Bank'!G386),\"\",'TA Indicator Bank'!G386)","v":""},{"$f":"IF(ISBLANK('TA Indicator Bank'!H386),\"\",'TA Indicator Bank'!H386)","v":""},{"$f":"IF(ISBLANK('TA Indicator Bank'!I386),\"\",'TA Indicator Bank'!I386)","v":""},{"$f":"IF(ISBLANK('TA Indicator Bank'!J386),\"\",'TA Indicator Bank'!J386)","v":""},{"$f":"IF(ISBLANK('TA Indicator Bank'!K386),\"\",'TA Indicator Bank'!K386)","v":""},{"$f":"IF(ISBLANK('TA Indicator Bank'!L386),\"\",'TA Indicator Bank'!L386)","v":""},{"$f":"IF(ISBLANK('TA Indicator Bank'!M386),\"\",'TA Indicator Bank'!M386)","v":""},{"$f":"IF(ISBLANK('TA Indicator Bank'!N386),\"\",'TA Indicator Bank'!N386)","v":""},{"$f":"IF(ISBLANK('TA Indicator Bank'!O386),\"\",'TA Indicator Bank'!O386)","v":""},{"$f":"IF(ISBLANK('TA Indicator Bank'!P386),\"\",'TA Indicator Bank'!P386)","v":""},{"$f":"IF(ISBLANK('TA Indicator Bank'!Q386),\"\",'TA Indicator Bank'!Q386)","v":""},{"$f":"IF(ISBLANK('TA Indicator Bank'!R386),\"\",'TA Indicator Bank'!R386)","v":""},{"$f":"IF(ISBLANK('TA Indicator Bank'!S386),\"\",'TA Indicator Bank'!S386)","v":""},{"$f":"IF(ISBLANK('TA Indicator Bank'!T386),\"\",'TA Indicator Bank'!T386)","v":""},{"$f":"IF(ISBLANK('TA Indicator Bank'!U386),\"\",'TA Indicator Bank'!U386)","v":""},{"$f":"IF(ISBLANK('TA Indicator Bank'!V386),\"\",'TA Indicator Bank'!V386)","v":""},{"$f":"IF(ISBLANK('TA Indicator Bank'!W386),\"\",'TA Indicator Bank'!W386)","v":""},{"$f":"IF(ISBLANK('TA Indicator Bank'!X386),\"\",'TA Indicator Bank'!X386)","v":""},{"$f":"IF(ISBLANK('TA Indicator Bank'!Y386),\"\",'TA Indicator Bank'!Y386)","v":""},{"$f":"IF(ISBLANK('TA Indicator Bank'!Z386),\"\",'TA Indicator Bank'!Z386)","v":""},{"$f":"IF(ISBLANK('TA Indicator Bank'!AA386),\"\",'TA Indicator Bank'!AA386)","v":""},{"$f":"IF(ISBLANK('TA Indicator Bank'!AB386),\"\",'TA Indicator Bank'!AB386)","v":""},{"$f":"IF(ISBLANK('TA Indicator Bank'!AC386),\"\",'TA Indicator Bank'!AC386)","v":""},{"$f":"IF(ISBLANK('TA Indicator Bank'!AD386),\"\",'TA Indicator Bank'!AD386)","v":""},{"$f":"IF(ISBLANK('TA Indicator Bank'!AE386),\"\",'TA Indicator Bank'!AE386)","v":""},{"$f":"IF(ISBLANK('TA Indicator Bank'!AF386),\"\",'TA Indicator Bank'!AF386)","v":""},{"$f":"IF(ISBLANK('TA Indicator Bank'!AG386),\"\",'TA Indicator Bank'!AG386)","v":""},{"$f":"IF(ISBLANK('TA Indicator Bank'!AH386),\"\",'TA Indicator Bank'!AH386)","v":""},{"$f":"IF(ISBLANK('TA Indicator Bank'!AI386),\"\",'TA Indicator Bank'!AI386)","v":""},{"$f":"IF(ISBLANK('TA Indicator Bank'!AJ386),\"\",'TA Indicator Bank'!AJ386)","v":""},{"$f":"IF(ISBLANK('TA Indicator Bank'!AK386),\"\",'TA Indicator Bank'!AK386)","v":""},{"$f":"IF(ISBLANK('TA Indicator Bank'!AL386),\"\",'TA Indicator Bank'!AL386)","v":""},{"$f":"IF(ISBLANK('TA Indicator Bank'!AM386),\"\",'TA Indicator Bank'!AM386)","v":""},{"$f":"IF(ISBLANK('TA Indicator Bank'!AN386),\"\",'TA Indicator Bank'!AN386)","v":""},{"$f":"IF(ISBLANK('TA Indicator Bank'!AO386),\"\",'TA Indicator Bank'!AO386)","v":""},{"$f":"IF(ISBLANK('TA Indicator Bank'!AP386),\"\",'TA Indicator Bank'!AP386)","v":""},{"$f":"IF(ISBLANK('TA Indicator Bank'!AQ386),\"\",'TA Indicator Bank'!AQ386)","v":""},{"$f":"IF(ISBLANK('TA Indicator Bank'!AR386),\"\",'TA Indicator Bank'!AR386)","v":""},{"$f":"IF(ISBLANK('TA Indicator Bank'!AS386),\"\",'TA Indicator Bank'!AS386)","v":""},{"$f":"IF(ISBLANK('TA Indicator Bank'!AT386),\"\",'TA Indicator Bank'!AT386)","v":""},0,0,0,0,0,0,0,0,0,0,0,0,0,0,1,0,0,0,0,0,0,0,0,0,1,0,0,0,0,0,0,0,0,0,1,0,0,0,0,0,1,1,382,382,"",{"$f":"IFERROR(INDEX($B$9:$I$408,$CM533,COLUMNS($CN$9:CN533)),\"\")","v":""},{"$f":"IFERROR(INDEX($B$9:$I$408,$CM533,COLUMNS($CN$9:CO533)),\"\")","v":""},{"$f":"IFERROR(INDEX($B$9:$I$408,$CM533,COLUMNS($CN$9:CP533)),\"\")","v":""},{"$f":"IFERROR(INDEX($B$9:$I$408,$CM533,COLUMNS($CN$9:CQ533)),\"\")","v":""},{"$f":"IFERROR(INDEX($B$9:$I$408,$CM533,COLUMNS($CN$9:CR533)),\"\")","v":""},{"$f":"IFERROR(INDEX($B$9:$I$408,$CM533,COLUMNS($CN$9:CS533)),\"\")","v":""},{"$f":"IFERROR(INDEX($B$9:$I$408,$CM533,COLUMNS($CN$9:CT533)),\"\")","v":""},{"$f":"IFERROR(INDEX($B$9:$I$408,$CM533,COLUMNS($CN$9:CU533)),\"\")","v":""}]
[null,{"$f":"IF(ISBLANK('TA Indicator Bank'!B387),\"\",'TA Indicator Bank'!B387)","v":""},{"$f":"IF(ISBLANK('TA Indicator Bank'!C387),\"\",'TA Indicator Bank'!C387)","v":""},{"$f":"IF(ISBLANK('TA Indicator Bank'!D387),\"\",'TA Indicator Bank'!D387)","v":""},{"$f":"IF(ISBLANK('TA Indicator Bank'!E387),\"\",'TA Indicator Bank'!E387)","v":""},{"$f":"IF(ISBLANK('TA Indicator Bank'!F387),\"\",'TA Indicator Bank'!F387)","v":""},{"$f":"IF(ISBLANK('TA Indicator Bank'!G387),\"\",'TA Indicator Bank'!G387)","v":""},{"$f":"IF(ISBLANK('TA Indicator Bank'!H387),\"\",'TA Indicator Bank'!H387)","v":""},{"$f":"IF(ISBLANK('TA Indicator Bank'!I387),\"\",'TA Indicator Bank'!I387)","v":""},{"$f":"IF(ISBLANK('TA Indicator Bank'!J387),\"\",'TA Indicator Bank'!J387)","v":""},{"$f":"IF(ISBLANK('TA Indicator Bank'!K387),\"\",'TA Indicator Bank'!K387)","v":""},{"$f":"IF(ISBLANK('TA Indicator Bank'!L387),\"\",'TA Indicator Bank'!L387)","v":""},{"$f":"IF(ISBLANK('TA Indicator Bank'!M387),\"\",'TA Indicator Bank'!M387)","v":""},{"$f":"IF(ISBLANK('TA Indicator Bank'!N387),\"\",'TA Indicator Bank'!N387)","v":""},{"$f":"IF(ISBLANK('TA Indicator Bank'!O387),\"\",'TA Indicator Bank'!O387)","v":""},{"$f":"IF(ISBLANK('TA Indicator Bank'!P387),\"\",'TA Indicator Bank'!P387)","v":""},{"$f":"IF(ISBLANK('TA Indicator Bank'!Q387),\"\",'TA Indicator Bank'!Q387)","v":""},{"$f":"IF(ISBLANK('TA Indicator Bank'!R387),\"\",'TA Indicator Bank'!R387)","v":""},{"$f":"IF(ISBLANK('TA Indicator Bank'!S387),\"\",'TA Indicator Bank'!S387)","v":""},{"$f":"IF(ISBLANK('TA Indicator Bank'!T387),\"\",'TA Indicator Bank'!T387)","v":""},{"$f":"IF(ISBLANK('TA Indicator Bank'!U387),\"\",'TA Indicator Bank'!U387)","v":""},{"$f":"IF(ISBLANK('TA Indicator Bank'!V387),\"\",'TA Indicator Bank'!V387)","v":""},{"$f":"IF(ISBLANK('TA Indicator Bank'!W387),\"\",'TA Indicator Bank'!W387)","v":""},{"$f":"IF(ISBLANK('TA Indicator Bank'!X387),\"\",'TA Indicator Bank'!X387)","v":""},{"$f":"IF(ISBLANK('TA Indicator Bank'!Y387),\"\",'TA Indicator Bank'!Y387)","v":""},{"$f":"IF(ISBLANK('TA Indicator Bank'!Z387),\"\",'TA Indicator Bank'!Z387)","v":""},{"$f":"IF(ISBLANK('TA Indicator Bank'!AA387),\"\",'TA Indicator Bank'!AA387)","v":""},{"$f":"IF(ISBLANK('TA Indicator Bank'!AB387),\"\",'TA Indicator Bank'!AB387)","v":""},{"$f":"IF(ISBLANK('TA Indicator Bank'!AC387),\"\",'TA Indicator Bank'!AC387)","v":""},{"$f":"IF(ISBLANK('TA Indicator Bank'!AD387),\"\",'TA Indicator Bank'!AD387)","v":""},{"$f":"IF(ISBLANK('TA Indicator Bank'!AE387),\"\",'TA Indicator Bank'!AE387)","v":""},{"$f":"IF(ISBLANK('TA Indicator Bank'!AF387),\"\",'TA Indicator Bank'!AF387)","v":""},{"$f":"IF(ISBLANK('TA Indicator Bank'!AG387),\"\",'TA Indicator Bank'!AG387)","v":""},{"$f":"IF(ISBLANK('TA Indicator Bank'!AH387),\"\",'TA Indicator Bank'!AH387)","v":""},{"$f":"IF(ISBLANK('TA Indicator Bank'!AI387),\"\",'TA Indicator Bank'!AI387)","v":""},{"$f":"IF(ISBLANK('TA Indicator Bank'!AJ387),\"\",'TA Indicator Bank'!AJ387)","v":""},{"$f":"IF(ISBLANK('TA Indicator Bank'!AK387),\"\",'TA Indicator Bank'!AK387)","v":""},{"$f":"IF(ISBLANK('TA Indicator Bank'!AL387),\"\",'TA Indicator Bank'!AL387)","v":""},{"$f":"IF(ISBLANK('TA Indicator Bank'!AM387),\"\",'TA Indicator Bank'!AM387)","v":""},{"$f":"IF(ISBLANK('TA Indicator Bank'!AN387),\"\",'TA Indicator Bank'!AN387)","v":""},{"$f":"IF(ISBLANK('TA Indicator Bank'!AO387),\"\",'TA Indicator Bank'!AO387)","v":""},{"$f":"IF(ISBLANK('TA Indicator Bank'!AP387),\"\",'TA Indicator Bank'!AP387)","v":""},{"$f":"IF(ISBLANK('TA Indicator Bank'!AQ387),\"\",'TA Indicator Bank'!AQ387)","v":""},{"$f":"IF(ISBLANK('TA Indicator Bank'!AR387),\"\",'TA Indicator Bank'!AR387)","v":""},{"$f":"IF(ISBLANK('TA Indicator Bank'!AS387),\"\",'TA Indicator Bank'!AS387)","v":""},{"$f":"IF(ISBLANK('TA Indicator Bank'!AT387),\"\",'TA Indicator Bank'!AT387)","v":""},0,0,0,0,0,0,0,0,0,0,0,0,0,0,1,0,0,0,0,0,0,0,0,0,1,0,0,0,0,0,0,0,0,0,1,0,0,0,0,0,1,1,383,383,"",{"$f":"IFERROR(INDEX($B$9:$I$408,$CM534,COLUMNS($CN$9:CN534)),\"\")","v":""},{"$f":"IFERROR(INDEX($B$9:$I$408,$CM534,COLUMNS($CN$9:CO534)),\"\")","v":""},{"$f":"IFERROR(INDEX($B$9:$I$408,$CM534,COLUMNS($CN$9:CP534)),\"\")","v":""},{"$f":"IFERROR(INDEX($B$9:$I$408,$CM534,COLUMNS($CN$9:CQ534)),\"\")","v":""},{"$f":"IFERROR(INDEX($B$9:$I$408,$CM534,COLUMNS($CN$9:CR534)),\"\")","v":""},{"$f":"IFERROR(INDEX($B$9:$I$408,$CM534,COLUMNS($CN$9:CS534)),\"\")","v":""},{"$f":"IFERROR(INDEX($B$9:$I$408,$CM534,COLUMNS($CN$9:CT534)),\"\")","v":""},{"$f":"IFERROR(INDEX($B$9:$I$408,$CM534,COLUMNS($CN$9:CU534)),\"\")","v":""}]
[null,{"$f":"IF(ISBLANK('TA Indicator Bank'!B388),\"\",'TA Indicator Bank'!B388)","v":""},{"$f":"IF(ISBLANK('TA Indicator Bank'!C388),\"\",'TA Indicator Bank'!C388)","v":""},{"$f":"IF(ISBLANK('TA Indicator Bank'!D388),\"\",'TA Indicator Bank'!D388)","v":""},{"$f":"IF(ISBLANK('TA Indicator Bank'!E388),\"\",'TA Indicator Bank'!E388)","v":""},{"$f":"IF(ISBLANK('TA Indicator Bank'!F388),\"\",'TA Indicator Bank'!F388)","v":""},{"$f":"IF(ISBLANK('TA Indicator Bank'!G388),\"\",'TA Indicator Bank'!G388)","v":""},{"$f":"IF(ISBLANK('TA Indicator Bank'!H388),\"\",'TA Indicator Bank'!H388)","v":""},{"$f":"IF(ISBLANK('TA Indicator Bank'!I388),\"\",'TA Indicator Bank'!I388)","v":""},{"$f":"IF(ISBLANK('TA Indicator Bank'!J388),\"\",'TA Indicator Bank'!J388)","v":""},{"$f":"IF(ISBLANK('TA Indicator Bank'!K388),\"\",'TA Indicator Bank'!K388)","v":""},{"$f":"IF(ISBLANK('TA Indicator Bank'!L388),\"\",'TA Indicator Bank'!L388)","v":""},{"$f":"IF(ISBLANK('TA Indicator Bank'!M388),\"\",'TA Indicator Bank'!M388)","v":""},{"$f":"IF(ISBLANK('TA Indicator Bank'!N388),\"\",'TA Indicator Bank'!N388)","v":""},{"$f":"IF(ISBLANK('TA Indicator Bank'!O388),\"\",'TA Indicator Bank'!O388)","v":""},{"$f":"IF(ISBLANK('TA Indicator Bank'!P388),\"\",'TA Indicator Bank'!P388)","v":""},{"$f":"IF(ISBLANK('TA Indicator Bank'!Q388),\"\",'TA Indicator Bank'!Q388)","v":""},{"$f":"IF(ISBLANK('TA Indicator Bank'!R388),\"\",'TA Indicator Bank'!R388)","v":""},{"$f":"IF(ISBLANK('TA Indicator Bank'!S388),\"\",'TA Indicator Bank'!S388)","v":""},{"$f":"IF(ISBLANK('TA Indicator Bank'!T388),\"\",'TA Indicator Bank'!T388)","v":""},{"$f":"IF(ISBLANK('TA Indicator Bank'!U388),\"\",'TA Indicator Bank'!U388)","v":""},{"$f":"IF(ISBLANK('TA Indicator Bank'!V388),\"\",'TA Indicator Bank'!V388)","v":""},{"$f":"IF(ISBLANK('TA Indicator Bank'!W388),\"\",'TA Indicator Bank'!W388)","v":""},{"$f":"IF(ISBLANK('TA Indicator Bank'!X388),\"\",'TA Indicator Bank'!X388)","v":""},{"$f":"IF(ISBLANK('TA Indicator Bank'!Y388),\"\",'TA Indicator Bank'!Y388)","v":""},{"$f":"IF(ISBLANK('TA Indicator Bank'!Z388),\"\",'TA Indicator Bank'!Z388)","v":""},{"$f":"IF(ISBLANK('TA Indicator Bank'!AA388),\"\",'TA Indicator Bank'!AA388)","v":""},{"$f":"IF(ISBLANK('TA Indicator Bank'!AB388),\"\",'TA Indicator Bank'!AB388)","v":""},{"$f":"IF(ISBLANK('TA Indicator Bank'!AC388),\"\",'TA Indicator Bank'!AC388)","v":""},{"$f":"IF(ISBLANK('TA Indicator Bank'!AD388),\"\",'TA Indicator Bank'!AD388)","v":""},{"$f":"IF(ISBLANK('TA Indicator Bank'!AE388),\"\",'TA Indicator Bank'!AE388)","v":""},{"$f":"IF(ISBLANK('TA Indicator Bank'!AF388),\"\",'TA Indicator Bank'!AF388)","v":""},{"$f":"IF(ISBLANK('TA Indicator Bank'!AG388),\"\",'TA Indicator Bank'!AG388)","v":""},{"$f":"IF(ISBLANK('TA Indicator Bank'!AH388),\"\",'TA Indicator Bank'!AH388)","v":""},{"$f":"IF(ISBLANK('TA Indicator Bank'!AI388),\"\",'TA Indicator Bank'!AI388)","v":""},{"$f":"IF(ISBLANK('TA Indicator Bank'!AJ388),\"\",'TA Indicator Bank'!AJ388)","v":""},{"$f":"IF(ISBLANK('TA Indicator Bank'!AK388),\"\",'TA Indicator Bank'!AK388)","v":""},{"$f":"IF(ISBLANK('TA Indicator Bank'!AL388),\"\",'TA Indicator Bank'!AL388)","v":""},{"$f":"IF(ISBLANK('TA Indicator Bank'!AM388),\"\",'TA Indicator Bank'!AM388)","v":""},{"$f":"IF(ISBLANK('TA Indicator Bank'!AN388),\"\",'TA Indicator Bank'!AN388)","v":""},{"$f":"IF(ISBLANK('TA Indicator Bank'!AO388),\"\",'TA Indicator Bank'!AO388)","v":""},{"$f":"IF(ISBLANK('TA Indicator Bank'!AP388),\"\",'TA Indicator Bank'!AP388)","v":""},{"$f":"IF(ISBLANK('TA Indicator Bank'!AQ388),\"\",'TA Indicator Bank'!AQ388)","v":""},{"$f":"IF(ISBLANK('TA Indicator Bank'!AR388),\"\",'TA Indicator Bank'!AR388)","v":""},{"$f":"IF(ISBLANK('TA Indicator Bank'!AS388),\"\",'TA Indicator Bank'!AS388)","v":""},{"$f":"IF(ISBLANK('TA Indicator Bank'!AT388),\"\",'TA Indicator Bank'!AT388)","v":""},0,0,0,0,0,0,0,0,0,0,0,0,0,0,1,0,0,0,0,0,0,0,0,0,1,0,0,0,0,0,0,0,0,0,1,0,0,0,0,0,1,1,384,384,"",{"$f":"IFERROR(INDEX($B$9:$I$408,$CM535,COLUMNS($CN$9:CN535)),\"\")","v":""},{"$f":"IFERROR(INDEX($B$9:$I$408,$CM535,COLUMNS($CN$9:CO535)),\"\")","v":""},{"$f":"IFERROR(INDEX($B$9:$I$408,$CM535,COLUMNS($CN$9:CP535)),\"\")","v":""},{"$f":"IFERROR(INDEX($B$9:$I$408,$CM535,COLUMNS($CN$9:CQ535)),\"\")","v":""},{"$f":"IFERROR(INDEX($B$9:$I$408,$CM535,COLUMNS($CN$9:CR535)),\"\")","v":""},{"$f":"IFERROR(INDEX($B$9:$I$408,$CM535,COLUMNS($CN$9:CS535)),\"\")","v":""},{"$f":"IFERROR(INDEX($B$9:$I$408,$CM535,COLUMNS($CN$9:CT535)),\"\")","v":""},{"$f":"IFERROR(INDEX($B$9:$I$408,$CM535,COLUMNS($CN$9:CU535)),\"\")","v":""}]
[null,{"$f":"IF(ISBLANK('TA Indicator Bank'!B389),\"\",'TA Indicator Bank'!B389)","v":""},{"$f":"IF(ISBLANK('TA Indicator Bank'!C389),\"\",'TA Indicator Bank'!C389)","v":""},{"$f":"IF(ISBLANK('TA Indicator Bank'!D389),\"\",'TA Indicator Bank'!D389)","v":""},{"$f":"IF(ISBLANK('TA Indicator Bank'!E389),\"\",'TA Indicator Bank'!E389)","v":""},{"$f":"IF(ISBLANK('TA Indicator Bank'!F389),\"\",'TA Indicator Bank'!F389)","v":""},{"$f":"IF(ISBLANK('TA Indicator Bank'!G389),\"\",'TA Indicator Bank'!G389)","v":""},{"$f":"IF(ISBLANK('TA Indicator Bank'!H389),\"\",'TA Indicator Bank'!H389)","v":""},{"$f":"IF(ISBLANK('TA Indicator Bank'!I389),\"\",'TA Indicator Bank'!I389)","v":""},{"$f":"IF(ISBLANK('TA Indicator Bank'!J389),\"\",'TA Indicator Bank'!J389)","v":""},{"$f":"IF(ISBLANK('TA Indicator Bank'!K389),\"\",'TA Indicator Bank'!K389)","v":""},{"$f":"IF(ISBLANK('TA Indicator Bank'!L389),\"\",'TA Indicator Bank'!L389)","v":""},{"$f":"IF(ISBLANK('TA Indicator Bank'!M389),\"\",'TA Indicator Bank'!M389)","v":""},{"$f":"IF(ISBLANK('TA Indicator Bank'!N389),\"\",'TA Indicator Bank'!N389)","v":""},{"$f":"IF(ISBLANK('TA Indicator Bank'!O389),\"\",'TA Indicator Bank'!O389)","v":""},{"$f":"IF(ISBLANK('TA Indicator Bank'!P389),\"\",'TA Indicator Bank'!P389)","v":""},{"$f":"IF(ISBLANK('TA Indicator Bank'!Q389),\"\",'TA Indicator Bank'!Q389)","v":""},{"$f":"IF(ISBLANK('TA Indicator Bank'!R389),\"\",'TA Indicator Bank'!R389)","v":""},{"$f":"IF(ISBLANK('TA Indicator Bank'!S389),\"\",'TA Indicator Bank'!S389)","v":""},{"$f":"IF(ISBLANK('TA Indicator Bank'!T389),\"\",'TA Indicator Bank'!T389)","v":""},{"$f":"IF(ISBLANK('TA Indicator Bank'!U389),\"\",'TA Indicator Bank'!U389)","v":""},{"$f":"IF(ISBLANK('TA Indicator Bank'!V389),\"\",'TA Indicator Bank'!V389)","v":""},{"$f":"IF(ISBLANK('TA Indicator Bank'!W389),\"\",'TA Indicator Bank'!W389)","v":""},{"$f":"IF(ISBLANK('TA Indicator Bank'!X389),\"\",'TA Indicator Bank'!X389)","v":""},{"$f":"IF(ISBLANK('TA Indicator Bank'!Y389),\"\",'TA Indicator Bank'!Y389)","v":""},{"$f":"IF(ISBLANK('TA Indicator Bank'!Z389),\"\",'TA Indicator Bank'!Z389)","v":""},{"$f":"IF(ISBLANK('TA Indicator Bank'!AA389),\"\",'TA Indicator Bank'!AA389)","v":""},{"$f":"IF(ISBLANK('TA Indicator Bank'!AB389),\"\",'TA Indicator Bank'!AB389)","v":""},{"$f":"IF(ISBLANK('TA Indicator Bank'!AC389),\"\",'TA Indicator Bank'!AC389)","v":""},{"$f":"IF(ISBLANK('TA Indicator Bank'!AD389),\"\",'TA Indicator Bank'!AD389)","v":""},{"$f":"IF(ISBLANK('TA Indicator Bank'!AE389),\"\",'TA Indicator Bank'!AE389)","v":""},{"$f":"IF(ISBLANK('TA Indicator Bank'!AF389),\"\",'TA Indicator Bank'!AF389)","v":""},{"$f":"IF(ISBLANK('TA Indicator Bank'!AG389),\"\",'TA Indicator Bank'!AG389)","v":""},{"$f":"IF(ISBLANK('TA Indicator Bank'!AH389),\"\",'TA Indicator Bank'!AH389)","v":""},{"$f":"IF(ISBLANK('TA Indicator Bank'!AI389),\"\",'TA Indicator Bank'!AI389)","v":""},{"$f":"IF(ISBLANK('TA Indicator Bank'!AJ389),\"\",'TA Indicator Bank'!AJ389)","v":""},{"$f":"IF(ISBLANK('TA Indicator Bank'!AK389),\"\",'TA Indicator Bank'!AK389)","v":""},{"$f":"IF(ISBLANK('TA Indicator Bank'!AL389),\"\",'TA Indicator Bank'!AL389)","v":""},{"$f":"IF(ISBLANK('TA Indicator Bank'!AM389),\"\",'TA Indicator Bank'!AM389)","v":""},{"$f":"IF(ISBLANK('TA Indicator Bank'!AN389),\"\",'TA Indicator Bank'!AN389)","v":""},{"$f":"IF(ISBLANK('TA Indicator Bank'!AO389),\"\",'TA Indicator Bank'!AO389)","v":""},{"$f":"IF(ISBLANK('TA Indicator Bank'!AP389),\"\",'TA Indicator Bank'!AP389)","v":""},{"$f":"IF(ISBLANK('TA Indicator Bank'!AQ389),\"\",'TA Indicator Bank'!AQ389)","v":""},{"$f":"IF(ISBLANK('TA Indicator Bank'!AR389),\"\",'TA Indicator Bank'!AR389)","v":""},{"$f":"IF(ISBLANK('TA Indicator Bank'!AS389),\"\",'TA Indicator Bank'!AS389)","v":""},{"$f":"IF(ISBLANK('TA Indicator Bank'!AT389),\"\",'TA Indicator Bank'!AT389)","v":""},0,0,0,0,0,0,0,0,0,0,0,0,0,0,1,0,0,0,0,0,0,0,0,0,1,0,0,0,0,0,0,0,0,0,1,0,0,0,0,0,1,1,385,385,"",{"$f":"IFERROR(INDEX($B$9:$I$408,$CM536,COLUMNS($CN$9:CN536)),\"\")","v":""},{"$f":"IFERROR(INDEX($B$9:$I$408,$CM536,COLUMNS($CN$9:CO536)),\"\")","v":""},{"$f":"IFERROR(INDEX($B$9:$I$408,$CM536,COLUMNS($CN$9:CP536)),\"\")","v":""},{"$f":"IFERROR(INDEX($B$9:$I$408,$CM536,COLUMNS($CN$9:CQ536)),\"\")","v":""},{"$f":"IFERROR(INDEX($B$9:$I$408,$CM536,COLUMNS($CN$9:CR536)),\"\")","v":""},{"$f":"IFERROR(INDEX($B$9:$I$408,$CM536,COLUMNS($CN$9:CS536)),\"\")","v":""},{"$f":"IFERROR(INDEX($B$9:$I$408,$CM536,COLUMNS($CN$9:CT536)),\"\")","v":""},{"$f":"IFERROR(INDEX($B$9:$I$408,$CM536,COLUMNS($CN$9:CU536)),\"\")","v":""}]
[null,{"$f":"IF(ISBLANK('TA Indicator Bank'!B390),\"\",'TA Indicator Bank'!B390)","v":""},{"$f":"IF(ISBLANK('TA Indicator Bank'!C390),\"\",'TA Indicator Bank'!C390)","v":""},{"$f":"IF(ISBLANK('TA Indicator Bank'!D390),\"\",'TA Indicator Bank'!D390)","v":""},{"$f":"IF(ISBLANK('TA Indicator Bank'!E390),\"\",'TA Indicator Bank'!E390)","v":""},{"$f":"IF(ISBLANK('TA Indicator Bank'!F390),\"\",'TA Indicator Bank'!F390)","v":""},{"$f":"IF(ISBLANK('TA Indicator Bank'!G390),\"\",'TA Indicator Bank'!G390)","v":""},{"$f":"IF(ISBLANK('TA Indicator Bank'!H390),\"\",'TA Indicator Bank'!H390)","v":""},{"$f":"IF(ISBLANK('TA Indicator Bank'!I390),\"\",'TA Indicator Bank'!I390)","v":""},{"$f":"IF(ISBLANK('TA Indicator Bank'!J390),\"\",'TA Indicator Bank'!J390)","v":""},{"$f":"IF(ISBLANK('TA Indicator Bank'!K390),\"\",'TA Indicator Bank'!K390)","v":""},{"$f":"IF(ISBLANK('TA Indicator Bank'!L390),\"\",'TA Indicator Bank'!L390)","v":""},{"$f":"IF(ISBLANK('TA Indicator Bank'!M390),\"\",'TA Indicator Bank'!M390)","v":""},{"$f":"IF(ISBLANK('TA Indicator Bank'!N390),\"\",'TA Indicator Bank'!N390)","v":""},{"$f":"IF(ISBLANK('TA Indicator Bank'!O390),\"\",'TA Indicator Bank'!O390)","v":""},{"$f":"IF(ISBLANK('TA Indicator Bank'!P390),\"\",'TA Indicator Bank'!P390)","v":""},{"$f":"IF(ISBLANK('TA Indicator Bank'!Q390),\"\",'TA Indicator Bank'!Q390)","v":""},{"$f":"IF(ISBLANK('TA Indicator Bank'!R390),\"\",'TA Indicator Bank'!R390)","v":""},{"$f":"IF(ISBLANK('TA Indicator Bank'!S390),\"\",'TA Indicator Bank'!S390)","v":""},{"$f":"IF(ISBLANK('TA Indicator Bank'!T390),\"\",'TA Indicator Bank'!T390)","v":""},{"$f":"IF(ISBLANK('TA Indicator Bank'!U390),\"\",'TA Indicator Bank'!U390)","v":""},{"$f":"IF(ISBLANK('TA Indicator Bank'!V390),\"\",'TA Indicator Bank'!V390)","v":""},{"$f":"IF(ISBLANK('TA Indicator Bank'!W390),\"\",'TA Indicator Bank'!W390)","v":""},{"$f":"IF(ISBLANK('TA Indicator Bank'!X390),\"\",'TA Indicator Bank'!X390)","v":""},{"$f":"IF(ISBLANK('TA Indicator Bank'!Y390),\"\",'TA Indicator Bank'!Y390)","v":""},{"$f":"IF(ISBLANK('TA Indicator Bank'!Z390),\"\",'TA Indicator Bank'!Z390)","v":""},{"$f":"IF(ISBLANK('TA Indicator Bank'!AA390),\"\",'TA Indicator Bank'!AA390)","v":""},{"$f":"IF(ISBLANK('TA Indicator Bank'!AB390),\"\",'TA Indicator Bank'!AB390)","v":""},{"$f":"IF(ISBLANK('TA Indicator Bank'!AC390),\"\",'TA Indicator Bank'!AC390)","v":""},{"$f":"IF(ISBLANK('TA Indicator Bank'!AD390),\"\",'TA Indicator Bank'!AD390)","v":""},{"$f":"IF(ISBLANK('TA Indicator Bank'!AE390),\"\",'TA Indicator Bank'!AE390)","v":""},{"$f":"IF(ISBLANK('TA Indicator Bank'!AF390),\"\",'TA Indicator Bank'!AF390)","v":""},{"$f":"IF(ISBLANK('TA Indicator Bank'!AG390),\"\",'TA Indicator Bank'!AG390)","v":""},{"$f":"IF(ISBLANK('TA Indicator Bank'!AH390),\"\",'TA Indicator Bank'!AH390)","v":""},{"$f":"IF(ISBLANK('TA Indicator Bank'!AI390),\"\",'TA Indicator Bank'!AI390)","v":""},{"$f":"IF(ISBLANK('TA Indicator Bank'!AJ390),\"\",'TA Indicator Bank'!AJ390)","v":""},{"$f":"IF(ISBLANK('TA Indicator Bank'!AK390),\"\",'TA Indicator Bank'!AK390)","v":""},{"$f":"IF(ISBLANK('TA Indicator Bank'!AL390),\"\",'TA Indicator Bank'!AL390)","v":""},{"$f":"IF(ISBLANK('TA Indicator Bank'!AM390),\"\",'TA Indicator Bank'!AM390)","v":""},{"$f":"IF(ISBLANK('TA Indicator Bank'!AN390),\"\",'TA Indicator Bank'!AN390)","v":""},{"$f":"IF(ISBLANK('TA Indicator Bank'!AO390),\"\",'TA Indicator Bank'!AO390)","v":""},{"$f":"IF(ISBLANK('TA Indicator Bank'!AP390),\"\",'TA Indicator Bank'!AP390)","v":""},{"$f":"IF(ISBLANK('TA Indicator Bank'!AQ390),\"\",'TA Indicator Bank'!AQ390)","v":""},{"$f":"IF(ISBLANK('TA Indicator Bank'!AR390),\"\",'TA Indicator Bank'!AR390)","v":""},{"$f":"IF(ISBLANK('TA Indicator Bank'!AS390),\"\",'TA Indicator Bank'!AS390)","v":""},{"$f":"IF(ISBLANK('TA Indicator Bank'!AT390),\"\",'TA Indicator Bank'!AT390)","v":""},{"$f":"IF(AND(J394=1,J$410=1),1,0)","v":0},{"$f":"IF(AND(K394=1,K$410=1),1,0)","v":0},{"$f":"IF(AND(L394=1,L$410=1),1,0)","v":0},{"$f":"IF(AND(M394=1,M$410=1),1,0)","v":0},{"$f":"IF(AND(N394=1,N$410=1),1,0)","v":0},{"$f":"IF(AND(O394=1,O$410=1),1,0)","v":0},{"$f":"IF(AND(P394=1,P$410=1),1,0)","v":0},{"$f":"IF(AND(Q394=1,Q$410=1),1,0)","v":0},{"$f":"IF(AND(R394=1,R$410=1),1,0)","v":0},{"$f":"IF(AND(S394=1,S$410=1),1,0)","v":0},{"$f":"IF(AND(T394=1,T$410=1),1,0)","v":0},{"$f":"IF(AND(U394=1,U$410=1),1,0)","v":0},{"$f":"IF(AND(V394=1,V$410=1),1,0)","v":0},{"$f":"IF(AND(W394=1,W$410=1),1,0)","v":0},{"$f":"IF($C$4=\"All\",1,IF(SUM(AU394:BH394)>0,1,0))","v":1},{"$f":"IF(AND(X394=1,X$410=1),1,0)","v":0},{"$f":"IF(AND(Y394=1,Y$410=1),1,0)","v":0},{"$f":"IF(AND(Z394=1,Z$410=1),1,0)","v":0},{"$f":"IF(AND(AA394=1,AA$410=1),1,0)","v":0},{"$f":"IF(AND(AB394=1,AB$410=1),1,0)","v":0},{"$f":"IF(AND(AC394=1,AC$410=1),1,0)","v":0},{"$f":"IF(AND(AD394=1,AD$410=1),1,0)","v":0},{"$f":"IF(AND(AE394=1,AE$410=1),1,0)","v":0},{"$f":"IF(AND(AF394=1,AF$410=1),1,0)","v":0},{"$f":"IF($C$5=\"All\",1,IF(SUM(BJ394:BR394)>0,1,0))","v":1},{"$f":"IF(AND(AG394=1,AG$410=1),1,0)","v":0},{"$f":"IF(AND(AH394=1,AH$410=1),1,0)","v":0},{"$f":"IF(AND(AI394=1,AI$410=1),1,0)","v":0},{"$f":"IF(AND(AJ394=1,AJ$410=1),1,0)","v":0},{"$f":"IF(AND(AK394=1,AK$410=1),1,0)","v":0},{"$f":"IF(AND(AL394=1,AL$410=1),1,0)","v":0},{"$f":"IF(AND(AM394=1,AM$410=1),1,0)","v":0},{"$f":"IF(AND(AN394=1,AN$410=1),1,0)","v":0},{"$f":"IF(AND(AO394=1,AO$410=1),1,0)","v":0},{"$f":"IF($C$6=\"All\",1,IF(SUM(BT394:CB394)>0,1,0))","v":1},{"$f":"IF(AND(AP394=1,AP$410=1),1,0)","v":0},{"$f":"IF(AND(AQ394=1,AQ$410=1),1,0)","v":0},{"$f":"IF(AND(AR394=1,AR$410=1),1,0)","v":0},{"$f":"IF(AND(AS394=1,AS$410=1),1,0)","v":0},{"$f":"IF(AND(AT394=1,AT$410=1),1,0)","v":0},{"$f":"IF($C$3=\"All\",1,IF(SUM(CD394:CH394)>0,1,0))","v":1},{"$f":"IF(AND(BI394=1,BS394=1,CC394=1,CI394=1),1,0)","v":1},386,{"$f":"IF(CJ394=1,CK394,\"\")","v":386},{"$f":"IFERROR(SMALL($CL$9:$CL$408,CK537),\"\")","v":""},{"$f":"IFERROR(INDEX($B$9:$I$408,$CM537,COLUMNS($CN$9:CN537)),\"\")","v":""},{"$f":"IFERROR(INDEX($B$9:$I$408,$CM537,COLUMNS($CN$9:CO537)),\"\")","v":""},{"$f":"IFERROR(INDEX($B$9:$I$408,$CM537,COLUMNS($CN$9:CP537)),\"\")","v":""},{"$f":"IFERROR(INDEX($B$9:$I$408,$CM537,COLUMNS($CN$9:CQ537)),\"\")","v":""},{"$f":"IFERROR(INDEX($B$9:$I$408,$CM537,COLUMNS($CN$9:CR537)),\"\")","v":""},{"$f":"IFERROR(INDEX($B$9:$I$408,$CM537,COLUMNS($CN$9:CS537)),\"\")","v":""},{"$f":"IFERROR(INDEX($B$9:$I$408,$CM537,COLUMNS($CN$9:CT537)),\"\")","v":""},{"$f":"IFERROR(INDEX($B$9:$I$408,$CM537,COLUMNS($CN$9:CU537)),\"\")","v":""}]
[null,{"$f":"IF(ISBLANK('TA Indicator Bank'!B391),\"\",'TA Indicator Bank'!B391)","v":""},{"$f":"IF(ISBLANK('TA Indicator Bank'!C391),\"\",'TA Indicator Bank'!C391)","v":""},{"$f":"IF(ISBLANK('TA Indicator Bank'!D391),\"\",'TA Indicator Bank'!D391)","v":""},{"$f":"IF(ISBLANK('TA Indicator Bank'!E391),\"\",'TA Indicator Bank'!E391)","v":""},{"$f":"IF(ISBLANK('TA Indicator Bank'!F391),\"\",'TA Indicator Bank'!F391)","v":""},{"$f":"IF(ISBLANK('TA Indicator Bank'!G391),\"\",'TA Indicator Bank'!G391)","v":""},{"$f":"IF(ISBLANK('TA Indicator Bank'!H391),\"\",'TA Indicator Bank'!H391)","v":""},{"$f":"IF(ISBLANK('TA Indicator Bank'!I391),\"\",'TA Indicator Bank'!I391)","v":""},{"$f":"IF(ISBLANK('TA Indicator Bank'!J391),\"\",'TA Indicator Bank'!J391)","v":""},{"$f":"IF(ISBLANK('TA Indicator Bank'!K391),\"\",'TA Indicator Bank'!K391)","v":""},{"$f":"IF(ISBLANK('TA Indicator Bank'!L391),\"\",'TA Indicator Bank'!L391)","v":""},{"$f":"IF(ISBLANK('TA Indicator Bank'!M391),\"\",'TA Indicator Bank'!M391)","v":""},{"$f":"IF(ISBLANK('TA Indicator Bank'!N391),\"\",'TA Indicator Bank'!N391)","v":""},{"$f":"IF(ISBLANK('TA Indicator Bank'!O391),\"\",'TA Indicator Bank'!O391)","v":""},{"$f":"IF(ISBLANK('TA Indicator Bank'!P391),\"\",'TA Indicator Bank'!P391)","v":""},{"$f":"IF(ISBLANK('TA Indicator Bank'!Q391),\"\",'TA Indicator Bank'!Q391)","v":""},{"$f":"IF(ISBLANK('TA Indicator Bank'!R391),\"\",'TA Indicator Bank'!R391)","v":""},{"$f":"IF(ISBLANK('TA Indicator Bank'!S391),\"\",'TA Indicator Bank'!S391)","v":""},{"$f":"IF(ISBLANK('TA Indicator Bank'!T391),\"\",'TA Indicator Bank'!T391)","v":""},{"$f":"IF(ISBLANK('TA Indicator Bank'!U391),\"\",'TA Indicator Bank'!U391)","v":""},{"$f":"IF(ISBLANK('TA Indicator Bank'!V391),\"\",'TA Indicator Bank'!V391)","v":""},{"$f":"IF(ISBLANK('TA Indicator Bank'!W391),\"\",'TA Indicator Bank'!W391)","v":""},{"$f":"IF(ISBLANK('TA Indicator Bank'!X391),\"\",'TA Indicator Bank'!X391)","v":""},{"$f":"IF(ISBLANK('TA Indicator Bank'!Y391),\"\",'TA Indicator Bank'!Y391)","v":""},{"$f":"IF(ISBLANK('TA Indicator Bank'!Z391),\"\",'TA Indicator Bank'!Z391)","v":""},{"$f":"IF(ISBLANK('TA Indicator Bank'!AA391),\"\",'TA Indicator Bank'!AA391)","v":""},{"$f":"IF(ISBLANK('TA Indicator Bank'!AB391),\"\",'TA Indicator Bank'!AB391)","v":""},{"$f":"IF(ISBLANK('TA Indicator Bank'!AC391),\"\",'TA Indicator Bank'!AC391)","v":""},{"$f":"IF(ISBLANK('TA Indicator Bank'!AD391),\"\",'TA Indicator Bank'!AD391)","v":""},{"$f":"IF(ISBLANK('TA Indicator Bank'!AE391),\"\",'TA Indicator Bank'!AE391)","v":""},{"$f":"IF(ISBLANK('TA Indicator Bank'!AF391),\"\",'TA Indicator Bank'!AF391)","v":""},{"$f":"IF(ISBLANK('TA Indicator Bank'!AG391),\"\",'TA Indicator Bank'!AG391)","v":""},{"$f":"IF(ISBLANK('TA Indicator Bank'!AH391),\"\",'TA Indicator Bank'!AH391)","v":""},{"$f":"IF(ISBLANK('TA Indicator Bank'!AI391),\"\",'TA Indicator Bank'!AI391)","v":""},{"$f":"IF(ISBLANK('TA Indicator Bank'!AJ391),\"\",'TA Indicator Bank'!AJ391)","v":""},{"$f":"IF(ISBLANK('TA Indicator Bank'!AK391),\"\",'TA Indicator Bank'!AK391)","v":""},{"$f":"IF(ISBLANK('TA Indicator Bank'!AL391),\"\",'TA Indicator Bank'!AL391)","v":""},{"$f":"IF(ISBLANK('TA Indicator Bank'!AM391),\"\",'TA Indicator Bank'!AM391)","v":""},{"$f":"IF(ISBLANK('TA Indicator Bank'!AN391),\"\",'TA Indicator Bank'!AN391)","v":""},{"$f":"IF(ISBLANK('TA Indicator Bank'!AO391),\"\",'TA Indicator Bank'!AO391)","v":""},{"$f":"IF(ISBLANK('TA Indicator Bank'!AP391),\"\",'TA Indicator Bank'!AP391)","v":""},{"$f":"IF(ISBLANK('TA Indicator Bank'!AQ391),\"\",'TA Indicator Bank'!AQ391)","v":""},{"$f":"IF(ISBLANK('TA Indicator Bank'!AR391),\"\",'TA Indicator Bank'!AR391)","v":""},{"$f":"IF(ISBLANK('TA Indicator Bank'!AS391),\"\",'TA Indicator Bank'!AS391)","v":""},{"$f":"IF(ISBLANK('TA Indicator Bank'!AT391),\"\",'TA Indicator Bank'!AT391)","v":""},0,0,0,0,0,0,0,0,0,0,0,0,0,0,1,0,0,0,0,0,0,0,0,0,1,0,0,0,0,0,0,0,0,0,1,0,0,0,0,0,1,1,387,387,"",{"$f":"IFERROR(INDEX($B$9:$I$408,$CM538,COLUMNS($CN$9:CN538)),\"\")","v":""},{"$f":"IFERROR(INDEX($B$9:$I$408,$CM538,COLUMNS($CN$9:CO538)),\"\")","v":""},{"$f":"IFERROR(INDEX($B$9:$I$408,$CM538,COLUMNS($CN$9:CP538)),\"\")","v":""},{"$f":"IFERROR(INDEX($B$9:$I$408,$CM538,COLUMNS($CN$9:CQ538)),\"\")","v":""},{"$f":"IFERROR(INDEX($B$9:$I$408,$CM538,COLUMNS($CN$9:CR538)),\"\")","v":""},{"$f":"IFERROR(INDEX($B$9:$I$408,$CM538,COLUMNS($CN$9:CS538)),\"\")","v":""},{"$f":"IFERROR(INDEX($B$9:$I$408,$CM538,COLUMNS($CN$9:CT538)),\"\")","v":""},{"$f":"IFERROR(INDEX($B$9:$I$408,$CM538,COLUMNS($CN$9:CU538)),\"\")","v":""}]
[null,{"$f":"IF(ISBLANK('TA Indicator Bank'!B392),\"\",'TA Indicator Bank'!B392)","v":""},{"$f":"IF(ISBLANK('TA Indicator Bank'!C392),\"\",'TA Indicator Bank'!C392)","v":""},{"$f":"IF(ISBLANK('TA Indicator Bank'!D392),\"\",'TA Indicator Bank'!D392)","v":""},{"$f":"IF(ISBLANK('TA Indicator Bank'!E392),\"\",'TA Indicator Bank'!E392)","v":""},{"$f":"IF(ISBLANK('TA Indicator Bank'!F392),\"\",'TA Indicator Bank'!F392)","v":""},{"$f":"IF(ISBLANK('TA Indicator Bank'!G392),\"\",'TA Indicator Bank'!G392)","v":""},{"$f":"IF(ISBLANK('TA Indicator Bank'!H392),\"\",'TA Indicator Bank'!H392)","v":""},{"$f":"IF(ISBLANK('TA Indicator Bank'!I392),\"\",'TA Indicator Bank'!I392)","v":""},{"$f":"IF(ISBLANK('TA Indicator Bank'!J392),\"\",'TA Indicator Bank'!J392)","v":""},{"$f":"IF(ISBLANK('TA Indicator Bank'!K392),\"\",'TA Indicator Bank'!K392)","v":""},{"$f":"IF(ISBLANK('TA Indicator Bank'!L392),\"\",'TA Indicator Bank'!L392)","v":""},{"$f":"IF(ISBLANK('TA Indicator Bank'!M392),\"\",'TA Indicator Bank'!M392)","v":""},{"$f":"IF(ISBLANK('TA Indicator Bank'!N392),\"\",'TA Indicator Bank'!N392)","v":""},{"$f":"IF(ISBLANK('TA Indicator Bank'!O392),\"\",'TA Indicator Bank'!O392)","v":""},{"$f":"IF(ISBLANK('TA Indicator Bank'!P392),\"\",'TA Indicator Bank'!P392)","v":""},{"$f":"IF(ISBLANK('TA Indicator Bank'!Q392),\"\",'TA Indicator Bank'!Q392)","v":""},{"$f":"IF(ISBLANK('TA Indicator Bank'!R392),\"\",'TA Indicator Bank'!R392)","v":""},{"$f":"IF(ISBLANK('TA Indicator Bank'!S392),\"\",'TA Indicator Bank'!S392)","v":""},{"$f":"IF(ISBLANK('TA Indicator Bank'!T392),\"\",'TA Indicator Bank'!T392)","v":""},{"$f":"IF(ISBLANK('TA Indicator Bank'!U392),\"\",'TA Indicator Bank'!U392)","v":""},{"$f":"IF(ISBLANK('TA Indicator Bank'!V392),\"\",'TA Indicator Bank'!V392)","v":""},{"$f":"IF(ISBLANK('TA Indicator Bank'!W392),\"\",'TA Indicator Bank'!W392)","v":""},{"$f":"IF(ISBLANK('TA Indicator Bank'!X392),\"\",'TA Indicator Bank'!X392)","v":""},{"$f":"IF(ISBLANK('TA Indicator Bank'!Y392),\"\",'TA Indicator Bank'!Y392)","v":""},{"$f":"IF(ISBLANK('TA Indicator Bank'!Z392),\"\",'TA Indicator Bank'!Z392)","v":""},{"$f":"IF(ISBLANK('TA Indicator Bank'!AA392),\"\",'TA Indicator Bank'!AA392)","v":""},{"$f":"IF(ISBLANK('TA Indicator Bank'!AB392),\"\",'TA Indicator Bank'!AB392)","v":""},{"$f":"IF(ISBLANK('TA Indicator Bank'!AC392),\"\",'TA Indicator Bank'!AC392)","v":""},{"$f":"IF(ISBLANK('TA Indicator Bank'!AD392),\"\",'TA Indicator Bank'!AD392)","v":""},{"$f":"IF(ISBLANK('TA Indicator Bank'!AE392),\"\",'TA Indicator Bank'!AE392)","v":""},{"$f":"IF(ISBLANK('TA Indicator Bank'!AF392),\"\",'TA Indicator Bank'!AF392)","v":""},{"$f":"IF(ISBLANK('TA Indicator Bank'!AG392),\"\",'TA Indicator Bank'!AG392)","v":""},{"$f":"IF(ISBLANK('TA Indicator Bank'!AH392),\"\",'TA Indicator Bank'!AH392)","v":""},{"$f":"IF(ISBLANK('TA Indicator Bank'!AI392),\"\",'TA Indicator Bank'!AI392)","v":""},{"$f":"IF(ISBLANK('TA Indicator Bank'!AJ392),\"\",'TA Indicator Bank'!AJ392)","v":""},{"$f":"IF(ISBLANK('TA Indicator Bank'!AK392),\"\",'TA Indicator Bank'!AK392)","v":""},{"$f":"IF(ISBLANK('TA Indicator Bank'!AL392),\"\",'TA Indicator Bank'!AL392)","v":""},{"$f":"IF(ISBLANK('TA Indicator Bank'!AM392),\"\",'TA Indicator Bank'!AM392)","v":""},{"$f":"IF(ISBLANK('TA Indicator Bank'!AN392),\"\",'TA Indicator Bank'!AN392)","v":""},{"$f":"IF(ISBLANK('TA Indicator Bank'!AO392),\"\",'TA Indicator Bank'!AO392)","v":""},{"$f":"IF(ISBLANK('TA Indicator Bank'!AP392),\"\",'TA Indicator Bank'!AP392)","v":""},{"$f":"IF(ISBLANK('TA Indicator Bank'!AQ392),\"\",'TA Indicator Bank'!AQ392)","v":""},{"$f":"IF(ISBLANK('TA Indicator Bank'!AR392),\"\",'TA Indicator Bank'!AR392)","v":""},{"$f":"IF(ISBLANK('TA Indicator Bank'!AS392),\"\",'TA Indicator Bank'!AS392)","v":""},{"$f":"IF(ISBLANK('TA Indicator Bank'!AT392),\"\",'TA Indicator Bank'!AT392)","v":""},0,0,0,0,0,0,0,0,0,0,0,0,0,0,1,0,0,0,0,0,0,0,0,0,1,0,0,0,0,0,0,0,0,0,1,0,0,0,0,0,1,1,388,388,"",{"$f":"IFERROR(INDEX($B$9:$I$408,$CM539,COLUMNS($CN$9:CN539)),\"\")","v":""},{"$f":"IFERROR(INDEX($B$9:$I$408,$CM539,COLUMNS($CN$9:CO539)),\"\")","v":""},{"$f":"IFERROR(INDEX($B$9:$I$408,$CM539,COLUMNS($CN$9:CP539)),\"\")","v":""},{"$f":"IFERROR(INDEX($B$9:$I$408,$CM539,COLUMNS($CN$9:CQ539)),\"\")","v":""},{"$f":"IFERROR(INDEX($B$9:$I$408,$CM539,COLUMNS($CN$9:CR539)),\"\")","v":""},{"$f":"IFERROR(INDEX($B$9:$I$408,$CM539,COLUMNS($CN$9:CS539)),\"\")","v":""},{"$f":"IFERROR(INDEX($B$9:$I$408,$CM539,COLUMNS($CN$9:CT539)),\"\")","v":""},{"$f":"IFERROR(INDEX($B$9:$I$408,$CM539,COLUMNS($CN$9:CU539)),\"\")","v":""}]
[null,{"$f":"IF(ISBLANK('TA Indicator Bank'!B393),\"\",'TA Indicator Bank'!B393)","v":""},{"$f":"IF(ISBLANK('TA Indicator Bank'!C393),\"\",'TA Indicator Bank'!C393)","v":""},{"$f":"IF(ISBLANK('TA Indicator Bank'!D393),\"\",'TA Indicator Bank'!D393)","v":""},{"$f":"IF(ISBLANK('TA Indicator Bank'!E393),\"\",'TA Indicator Bank'!E393)","v":""},{"$f":"IF(ISBLANK('TA Indicator Bank'!F393),\"\",'TA Indicator Bank'!F393)","v":""},{"$f":"IF(ISBLANK('TA Indicator Bank'!G393),\"\",'TA Indicator Bank'!G393)","v":""},{"$f":"IF(ISBLANK('TA Indicator Bank'!H393),\"\",'TA Indicator Bank'!H393)","v":""},{"$f":"IF(ISBLANK('TA Indicator Bank'!I393),\"\",'TA Indicator Bank'!I393)","v":""},{"$f":"IF(ISBLANK('TA Indicator Bank'!J393),\"\",'TA Indicator Bank'!J393)","v":""},{"$f":"IF(ISBLANK('TA Indicator Bank'!K393),\"\",'TA Indicator Bank'!K393)","v":""},{"$f":"IF(ISBLANK('TA Indicator Bank'!L393),\"\",'TA Indicator Bank'!L393)","v":""},{"$f":"IF(ISBLANK('TA Indicator Bank'!M393),\"\",'TA Indicator Bank'!M393)","v":""},{"$f":"IF(ISBLANK('TA Indicator Bank'!N393),\"\",'TA Indicator Bank'!N393)","v":""},{"$f":"IF(ISBLANK('TA Indicator Bank'!O393),\"\",'TA Indicator Bank'!O393)","v":""},{"$f":"IF(ISBLANK('TA Indicator Bank'!P393),\"\",'TA Indicator Bank'!P393)","v":""},{"$f":"IF(ISBLANK('TA Indicator Bank'!Q393),\"\",'TA Indicator Bank'!Q393)","v":""},{"$f":"IF(ISBLANK('TA Indicator Bank'!R393),\"\",'TA Indicator Bank'!R393)","v":""},{"$f":"IF(ISBLANK('TA Indicator Bank'!S393),\"\",'TA Indicator Bank'!S393)","v":""},{"$f":"IF(ISBLANK('TA Indicator Bank'!T393),\"\",'TA Indicator Bank'!T393)","v":""},{"$f":"IF(ISBLANK('TA Indicator Bank'!U393),\"\",'TA Indicator Bank'!U393)","v":""},{"$f":"IF(ISBLANK('TA Indicator Bank'!V393),\"\",'TA Indicator Bank'!V393)","v":""},{"$f":"IF(ISBLANK('TA Indicator Bank'!W393),\"\",'TA Indicator Bank'!W393)","v":""},{"$f":"IF(ISBLANK('TA Indicator Bank'!X393),\"\",'TA Indicator Bank'!X393)","v":""},{"$f":"IF(ISBLANK('TA Indicator Bank'!Y393),\"\",'TA Indicator Bank'!Y393)","v":""},{"$f":"IF(ISBLANK('TA Indicator Bank'!Z393),\"\",'TA Indicator Bank'!Z393)","v":""},{"$f":"IF(ISBLANK('TA Indicator Bank'!AA393),\"\",'TA Indicator Bank'!AA393)","v":""},{"$f":"IF(ISBLANK('TA Indicator Bank'!AB393),\"\",'TA Indicator Bank'!AB393)","v":""},{"$f":"IF(ISBLANK('TA Indicator Bank'!AC393),\"\",'TA Indicator Bank'!AC393)","v":""},{"$f":"IF(ISBLANK('TA Indicator Bank'!AD393),\"\",'TA Indicator Bank'!AD393)","v":""},{"$f":"IF(ISBLANK('TA Indicator Bank'!AE393),\"\",'TA Indicator Bank'!AE393)","v":""},{"$f":"IF(ISBLANK('TA Indicator Bank'!AF393),\"\",'TA Indicator Bank'!AF393)","v":""},{"$f":"IF(ISBLANK('TA Indicator Bank'!AG393),\"\",'TA Indicator Bank'!AG393)","v":""},{"$f":"IF(ISBLANK('TA Indicator Bank'!AH393),\"\",'TA Indicator Bank'!AH393)","v":""},{"$f":"IF(ISBLANK('TA Indicator Bank'!AI393),\"\",'TA Indicator Bank'!AI393)","v":""},{"$f":"IF(ISBLANK('TA Indicator Bank'!AJ393),\"\",'TA Indicator Bank'!AJ393)","v":""},{"$f":"IF(ISBLANK('TA Indicator Bank'!AK393),\"\",'TA Indicator Bank'!AK393)","v":""},{"$f":"IF(ISBLANK('TA Indicator Bank'!AL393),\"\",'TA Indicator Bank'!AL393)","v":""},{"$f":"IF(ISBLANK('TA Indicator Bank'!AM393),\"\",'TA Indicator Bank'!AM393)","v":""},{"$f":"IF(ISBLANK('TA Indicator Bank'!AN393),\"\",'TA Indicator Bank'!AN393)","v":""},{"$f":"IF(ISBLANK('TA Indicator Bank'!AO393),\"\",'TA Indicator Bank'!AO393)","v":""},{"$f":"IF(ISBLANK('TA Indicator Bank'!AP393),\"\",'TA Indicator Bank'!AP393)","v":""},{"$f":"IF(ISBLANK('TA Indicator Bank'!AQ393),\"\",'TA Indicator Bank'!AQ393)","v":""},{"$f":"IF(ISBLANK('TA Indicator Bank'!AR393),\"\",'TA Indicator Bank'!AR393)","v":""},{"$f":"IF(ISBLANK('TA Indicator Bank'!AS393),\"\",'TA Indicator Bank'!AS393)","v":""},{"$f":"IF(ISBLANK('TA Indicator Bank'!AT393),\"\",'TA Indicator Bank'!AT393)","v":""},0,0,0,0,0,0,0,0,0,0,0,0,0,0,1,0,0,0,0,0,0,0,0,0,1,0,0,0,0,0,0,0,0,0,1,0,0,0,0,0,1,1,389,389,"",{"$f":"IFERROR(INDEX($B$9:$I$408,$CM540,COLUMNS($CN$9:CN540)),\"\")","v":""},{"$f":"IFERROR(INDEX($B$9:$I$408,$CM540,COLUMNS($CN$9:CO540)),\"\")","v":""},{"$f":"IFERROR(INDEX($B$9:$I$408,$CM540,COLUMNS($CN$9:CP540)),\"\")","v":""},{"$f":"IFERROR(INDEX($B$9:$I$408,$CM540,COLUMNS($CN$9:CQ540)),\"\")","v":""},{"$f":"IFERROR(INDEX($B$9:$I$408,$CM540,COLUMNS($CN$9:CR540)),\"\")","v":""},{"$f":"IFERROR(INDEX($B$9:$I$408,$CM540,COLUMNS($CN$9:CS540)),\"\")","v":""},{"$f":"IFERROR(INDEX($B$9:$I$408,$CM540,COLUMNS($CN$9:CT540)),\"\")","v":""},{"$f":"IFERROR(INDEX($B$9:$I$408,$CM540,COLUMNS($CN$9:CU540)),\"\")","v":""}]
[null,{"$f":"IF(ISBLANK('TA Indicator Bank'!B394),\"\",'TA Indicator Bank'!B394)","v":""},{"$f":"IF(ISBLANK('TA Indicator Bank'!C394),\"\",'TA Indicator Bank'!C394)","v":""},{"$f":"IF(ISBLANK('TA Indicator Bank'!D394),\"\",'TA Indicator Bank'!D394)","v":""},{"$f":"IF(ISBLANK('TA Indicator Bank'!E394),\"\",'TA Indicator Bank'!E394)","v":""},{"$f":"IF(ISBLANK('TA Indicator Bank'!F394),\"\",'TA Indicator Bank'!F394)","v":""},{"$f":"IF(ISBLANK('TA Indicator Bank'!G394),\"\",'TA Indicator Bank'!G394)","v":""},{"$f":"IF(ISBLANK('TA Indicator Bank'!H394),\"\",'TA Indicator Bank'!H394)","v":""},{"$f":"IF(ISBLANK('TA Indicator Bank'!I394),\"\",'TA Indicator Bank'!I394)","v":""},{"$f":"IF(ISBLANK('TA Indicator Bank'!J394),\"\",'TA Indicator Bank'!J394)","v":""},{"$f":"IF(ISBLANK('TA Indicator Bank'!K394),\"\",'TA Indicator Bank'!K394)","v":""},{"$f":"IF(ISBLANK('TA Indicator Bank'!L394),\"\",'TA Indicator Bank'!L394)","v":""},{"$f":"IF(ISBLANK('TA Indicator Bank'!M394),\"\",'TA Indicator Bank'!M394)","v":""},{"$f":"IF(ISBLANK('TA Indicator Bank'!N394),\"\",'TA Indicator Bank'!N394)","v":""},{"$f":"IF(ISBLANK('TA Indicator Bank'!O394),\"\",'TA Indicator Bank'!O394)","v":""},{"$f":"IF(ISBLANK('TA Indicator Bank'!P394),\"\",'TA Indicator Bank'!P394)","v":""},{"$f":"IF(ISBLANK('TA Indicator Bank'!Q394),\"\",'TA Indicator Bank'!Q394)","v":""},{"$f":"IF(ISBLANK('TA Indicator Bank'!R394),\"\",'TA Indicator Bank'!R394)","v":""},{"$f":"IF(ISBLANK('TA Indicator Bank'!S394),\"\",'TA Indicator Bank'!S394)","v":""},{"$f":"IF(ISBLANK('TA Indicator Bank'!T394),\"\",'TA Indicator Bank'!T394)","v":""},{"$f":"IF(ISBLANK('TA Indicator Bank'!U394),\"\",'TA Indicator Bank'!U394)","v":""},{"$f":"IF(ISBLANK('TA Indicator Bank'!V394),\"\",'TA Indicator Bank'!V394)","v":""},{"$f":"IF(ISBLANK('TA Indicator Bank'!W394),\"\",'TA Indicator Bank'!W394)","v":""},{"$f":"IF(ISBLANK('TA Indicator Bank'!X394),\"\",'TA Indicator Bank'!X394)","v":""},{"$f":"IF(ISBLANK('TA Indicator Bank'!Y394),\"\",'TA Indicator Bank'!Y394)","v":""},{"$f":"IF(ISBLANK('TA Indicator Bank'!Z394),\"\",'TA Indicator Bank'!Z394)","v":""},{"$f":"IF(ISBLANK('TA Indicator Bank'!AA394),\"\",'TA Indicator Bank'!AA394)","v":""},{"$f":"IF(ISBLANK('TA Indicator Bank'!AB394),\"\",'TA Indicator Bank'!AB394)","v":""},{"$f":"IF(ISBLANK('TA Indicator Bank'!AC394),\"\",'TA Indicator Bank'!AC394)","v":""},{"$f":"IF(ISBLANK('TA Indicator Bank'!AD394),\"\",'TA Indicator Bank'!AD394)","v":""},{"$f":"IF(ISBLANK('TA Indicator Bank'!AE394),\"\",'TA Indicator Bank'!AE394)","v":""},{"$f":"IF(ISBLANK('TA Indicator Bank'!AF394),\"\",'TA Indicator Bank'!AF394)","v":""},{"$f":"IF(ISBLANK('TA Indicator Bank'!AG394),\"\",'TA Indicator Bank'!AG394)","v":""},{"$f":"IF(ISBLANK('TA Indicator Bank'!AH394),\"\",'TA Indicator Bank'!AH394)","v":""},{"$f":"IF(ISBLANK('TA Indicator Bank'!AI394),\"\",'TA Indicator Bank'!AI394)","v":""},{"$f":"IF(ISBLANK('TA Indicator Bank'!AJ394),\"\",'TA Indicator Bank'!AJ394)","v":""},{"$f":"IF(ISBLANK('TA Indicator Bank'!AK394),\"\",'TA Indicator Bank'!AK394)","v":""},{"$f":"IF(ISBLANK('TA Indicator Bank'!AL394),\"\",'TA Indicator Bank'!AL394)","v":""},{"$f":"IF(ISBLANK('TA Indicator Bank'!AM394),\"\",'TA Indicator Bank'!AM394)","v":""},{"$f":"IF(ISBLANK('TA Indicator Bank'!AN394),\"\",'TA Indicator Bank'!AN394)","v":""},{"$f":"IF(ISBLANK('TA Indicator Bank'!AO394),\"\",'TA Indicator Bank'!AO394)","v":""},{"$f":"IF(ISBLANK('TA Indicator Bank'!AP394),\"\",'TA Indicator Bank'!AP394)","v":""},{"$f":"IF(ISBLANK('TA Indicator Bank'!AQ394),\"\",'TA Indicator Bank'!AQ394)","v":""},{"$f":"IF(ISBLANK('TA Indicator Bank'!AR394),\"\",'TA Indicator Bank'!AR394)","v":""},{"$f":"IF(ISBLANK('TA Indicator Bank'!AS394),\"\",'TA Indicator Bank'!AS394)","v":""},{"$f":"IF(ISBLANK('TA Indicator Bank'!AT394),\"\",'TA Indicator Bank'!AT394)","v":""},0,0,0,0,0,0,0,0,0,0,0,0,0,0,1,0,0,0,0,0,0,0,0,0,1,0,0,0,0,0,0,0,0,0,1,0,0,0,0,0,1,1,390,390,"",{"$f":"IFERROR(INDEX($B$9:$I$408,$CM541,COLUMNS($CN$9:CN541)),\"\")","v":""},{"$f":"IFERROR(INDEX($B$9:$I$408,$CM541,COLUMNS($CN$9:CO541)),\"\")","v":""},{"$f":"IFERROR(INDEX($B$9:$I$408,$CM541,COLUMNS($CN$9:CP541)),\"\")","v":""},{"$f":"IFERROR(INDEX($B$9:$I$408,$CM541,COLUMNS($CN$9:CQ541)),\"\")","v":""},{"$f":"IFERROR(INDEX($B$9:$I$408,$CM541,COLUMNS($CN$9:CR541)),\"\")","v":""},{"$f":"IFERROR(INDEX($B$9:$I$408,$CM541,COLUMNS($CN$9:CS541)),\"\")","v":""},{"$f":"IFERROR(INDEX($B$9:$I$408,$CM541,COLUMNS($CN$9:CT541)),\"\")","v":""},{"$f":"IFERROR(INDEX($B$9:$I$408,$CM541,COLUMNS($CN$9:CU541)),\"\")","v":""}]
[null,{"$f":"IF(ISBLANK('TA Indicator Bank'!B395),\"\",'TA Indicator Bank'!B395)","v":""},{"$f":"IF(ISBLANK('TA Indicator Bank'!C395),\"\",'TA Indicator Bank'!C395)","v":""},{"$f":"IF(ISBLANK('TA Indicator Bank'!D395),\"\",'TA Indicator Bank'!D395)","v":""},{"$f":"IF(ISBLANK('TA Indicator Bank'!E395),\"\",'TA Indicator Bank'!E395)","v":""},{"$f":"IF(ISBLANK('TA Indicator Bank'!F395),\"\",'TA Indicator Bank'!F395)","v":""},{"$f":"IF(ISBLANK('TA Indicator Bank'!G395),\"\",'TA Indicator Bank'!G395)","v":""},{"$f":"IF(ISBLANK('TA Indicator Bank'!H395),\"\",'TA Indicator Bank'!H395)","v":""},{"$f":"IF(ISBLANK('TA Indicator Bank'!I395),\"\",'TA Indicator Bank'!I395)","v":""},{"$f":"IF(ISBLANK('TA Indicator Bank'!J395),\"\",'TA Indicator Bank'!J395)","v":""},{"$f":"IF(ISBLANK('TA Indicator Bank'!K395),\"\",'TA Indicator Bank'!K395)","v":""},{"$f":"IF(ISBLANK('TA Indicator Bank'!L395),\"\",'TA Indicator Bank'!L395)","v":""},{"$f":"IF(ISBLANK('TA Indicator Bank'!M395),\"\",'TA Indicator Bank'!M395)","v":""},{"$f":"IF(ISBLANK('TA Indicator Bank'!N395),\"\",'TA Indicator Bank'!N395)","v":""},{"$f":"IF(ISBLANK('TA Indicator Bank'!O395),\"\",'TA Indicator Bank'!O395)","v":""},{"$f":"IF(ISBLANK('TA Indicator Bank'!P395),\"\",'TA Indicator Bank'!P395)","v":""},{"$f":"IF(ISBLANK('TA Indicator Bank'!Q395),\"\",'TA Indicator Bank'!Q395)","v":""},{"$f":"IF(ISBLANK('TA Indicator Bank'!R395),\"\",'TA Indicator Bank'!R395)","v":""},{"$f":"IF(ISBLANK('TA Indicator Bank'!S395),\"\",'TA Indicator Bank'!S395)","v":""},{"$f":"IF(ISBLANK('TA Indicator Bank'!T395),\"\",'TA Indicator Bank'!T395)","v":""},{"$f":"IF(ISBLANK('TA Indicator Bank'!U395),\"\",'TA Indicator Bank'!U395)","v":""},{"$f":"IF(ISBLANK('TA Indicator Bank'!V395),\"\",'TA Indicator Bank'!V395)","v":""},{"$f":"IF(ISBLANK('TA Indicator Bank'!W395),\"\",'TA Indicator Bank'!W395)","v":""},{"$f":"IF(ISBLANK('TA Indicator Bank'!X395),\"\",'TA Indicator Bank'!X395)","v":""},{"$f":"IF(ISBLANK('TA Indicator Bank'!Y395),\"\",'TA Indicator Bank'!Y395)","v":""},{"$f":"IF(ISBLANK('TA Indicator Bank'!Z395),\"\",'TA Indicator Bank'!Z395)","v":""},{"$f":"IF(ISBLANK('TA Indicator Bank'!AA395),\"\",'TA Indicator Bank'!AA395)","v":""},{"$f":"IF(ISBLANK('TA Indicator Bank'!AB395),\"\",'TA Indicator Bank'!AB395)","v":""},{"$f":"IF(ISBLANK('TA Indicator Bank'!AC395),\"\",'TA Indicator Bank'!AC395)","v":""},{"$f":"IF(ISBLANK('TA Indicator Bank'!AD395),\"\",'TA Indicator Bank'!AD395)","v":""},{"$f":"IF(ISBLANK('TA Indicator Bank'!AE395),\"\",'TA Indicator Bank'!AE395)","v":""},{"$f":"IF(ISBLANK('TA Indicator Bank'!AF395),\"\",'TA Indicator Bank'!AF395)","v":""},{"$f":"IF(ISBLANK('TA Indicator Bank'!AG395),\"\",'TA Indicator Bank'!AG395)","v":""},{"$f":"IF(ISBLANK('TA Indicator Bank'!AH395),\"\",'TA Indicator Bank'!AH395)","v":""},{"$f":"IF(ISBLANK('TA Indicator Bank'!AI395),\"\",'TA Indicator Bank'!AI395)","v":""},{"$f":"IF(ISBLANK('TA Indicator Bank'!AJ395),\"\",'TA Indicator Bank'!AJ395)","v":""},{"$f":"IF(ISBLANK('TA Indicator Bank'!AK395),\"\",'TA Indicator Bank'!AK395)","v":""},{"$f":"IF(ISBLANK('TA Indicator Bank'!AL395),\"\",'TA Indicator Bank'!AL395)","v":""},{"$f":"IF(ISBLANK('TA Indicator Bank'!AM395),\"\",'TA Indicator Bank'!AM395)","v":""},{"$f":"IF(ISBLANK('TA Indicator Bank'!AN395),\"\",'TA Indicator Bank'!AN395)","v":""},{"$f":"IF(ISBLANK('TA Indicator Bank'!AO395),\"\",'TA Indicator Bank'!AO395)","v":""},{"$f":"IF(ISBLANK('TA Indicator Bank'!AP395),\"\",'TA Indicator Bank'!AP395)","v":""},{"$f":"IF(ISBLANK('TA Indicator Bank'!AQ395),\"\",'TA Indicator Bank'!AQ395)","v":""},{"$f":"IF(ISBLANK('TA Indicator Bank'!AR395),\"\",'TA Indicator Bank'!AR395)","v":""},{"$f":"IF(ISBLANK('TA Indicator Bank'!AS395),\"\",'TA Indicator Bank'!AS395)","v":""},{"$f":"IF(ISBLANK('TA Indicator Bank'!AT395),\"\",'TA Indicator Bank'!AT395)","v":""},0,0,0,0,0,0,0,0,0,0,0,0,0,0,1,0,0,0,0,0,0,0,0,0,1,0,0,0,0,0,0,0,0,0,1,0,0,0,0,0,1,1,391,391,"",{"$f":"IFERROR(INDEX($B$9:$I$408,$CM542,COLUMNS($CN$9:CN542)),\"\")","v":""},{"$f":"IFERROR(INDEX($B$9:$I$408,$CM542,COLUMNS($CN$9:CO542)),\"\")","v":""},{"$f":"IFERROR(INDEX($B$9:$I$408,$CM542,COLUMNS($CN$9:CP542)),\"\")","v":""},{"$f":"IFERROR(INDEX($B$9:$I$408,$CM542,COLUMNS($CN$9:CQ542)),\"\")","v":""},{"$f":"IFERROR(INDEX($B$9:$I$408,$CM542,COLUMNS($CN$9:CR542)),\"\")","v":""},{"$f":"IFERROR(INDEX($B$9:$I$408,$CM542,COLUMNS($CN$9:CS542)),\"\")","v":""},{"$f":"IFERROR(INDEX($B$9:$I$408,$CM542,COLUMNS($CN$9:CT542)),\"\")","v":""},{"$f":"IFERROR(INDEX($B$9:$I$408,$CM542,COLUMNS($CN$9:CU542)),\"\")","v":""}]
[null,{"$f":"IF(ISBLANK('TA Indicator Bank'!B396),\"\",'TA Indicator Bank'!B396)","v":""},{"$f":"IF(ISBLANK('TA Indicator Bank'!C396),\"\",'TA Indicator Bank'!C396)","v":""},{"$f":"IF(ISBLANK('TA Indicator Bank'!D396),\"\",'TA Indicator Bank'!D396)","v":""},{"$f":"IF(ISBLANK('TA Indicator Bank'!E396),\"\",'TA Indicator Bank'!E396)","v":""},{"$f":"IF(ISBLANK('TA Indicator Bank'!F396),\"\",'TA Indicator Bank'!F396)","v":""},{"$f":"IF(ISBLANK('TA Indicator Bank'!G396),\"\",'TA Indicator Bank'!G396)","v":""},{"$f":"IF(ISBLANK('TA Indicator Bank'!H396),\"\",'TA Indicator Bank'!H396)","v":""},{"$f":"IF(ISBLANK('TA Indicator Bank'!I396),\"\",'TA Indicator Bank'!I396)","v":""},{"$f":"IF(ISBLANK('TA Indicator Bank'!J396),\"\",'TA Indicator Bank'!J396)","v":""},{"$f":"IF(ISBLANK('TA Indicator Bank'!K396),\"\",'TA Indicator Bank'!K396)","v":""},{"$f":"IF(ISBLANK('TA Indicator Bank'!L396),\"\",'TA Indicator Bank'!L396)","v":""},{"$f":"IF(ISBLANK('TA Indicator Bank'!M396),\"\",'TA Indicator Bank'!M396)","v":""},{"$f":"IF(ISBLANK('TA Indicator Bank'!N396),\"\",'TA Indicator Bank'!N396)","v":""},{"$f":"IF(ISBLANK('TA Indicator Bank'!O396),\"\",'TA Indicator Bank'!O396)","v":""},{"$f":"IF(ISBLANK('TA Indicator Bank'!P396),\"\",'TA Indicator Bank'!P396)","v":""},{"$f":"IF(ISBLANK('TA Indicator Bank'!Q396),\"\",'TA Indicator Bank'!Q396)","v":""},{"$f":"IF(ISBLANK('TA Indicator Bank'!R396),\"\",'TA Indicator Bank'!R396)","v":""},{"$f":"IF(ISBLANK('TA Indicator Bank'!S396),\"\",'TA Indicator Bank'!S396)","v":""},{"$f":"IF(ISBLANK('TA Indicator Bank'!T396),\"\",'TA Indicator Bank'!T396)","v":""},{"$f":"IF(ISBLANK('TA Indicator Bank'!U396),\"\",'TA Indicator Bank'!U396)","v":""},{"$f":"IF(ISBLANK('TA Indicator Bank'!V396),\"\",'TA Indicator Bank'!V396)","v":""},{"$f":"IF(ISBLANK('TA Indicator Bank'!W396),\"\",'TA Indicator Bank'!W396)","v":""},{"$f":"IF(ISBLANK('TA Indicator Bank'!X396),\"\",'TA Indicator Bank'!X396)","v":""},{"$f":"IF(ISBLANK('TA Indicator Bank'!Y396),\"\",'TA Indicator Bank'!Y396)","v":""},{"$f":"IF(ISBLANK('TA Indicator Bank'!Z396),\"\",'TA Indicator Bank'!Z396)","v":""},{"$f":"IF(ISBLANK('TA Indicator Bank'!AA396),\"\",'TA Indicator Bank'!AA396)","v":""},{"$f":"IF(ISBLANK('TA Indicator Bank'!AB396),\"\",'TA Indicator Bank'!AB396)","v":""},{"$f":"IF(ISBLANK('TA Indicator Bank'!AC396),\"\",'TA Indicator Bank'!AC396)","v":""},{"$f":"IF(ISBLANK('TA Indicator Bank'!AD396),\"\",'TA Indicator Bank'!AD396)","v":""},{"$f":"IF(ISBLANK('TA Indicator Bank'!AE396),\"\",'TA Indicator Bank'!AE396)","v":""},{"$f":"IF(ISBLANK('TA Indicator Bank'!AF396),\"\",'TA Indicator Bank'!AF396)","v":""},{"$f":"IF(ISBLANK('TA Indicator Bank'!AG396),\"\",'TA Indicator Bank'!AG396)","v":""},{"$f":"IF(ISBLANK('TA Indicator Bank'!AH396),\"\",'TA Indicator Bank'!AH396)","v":""},{"$f":"IF(ISBLANK('TA Indicator Bank'!AI396),\"\",'TA Indicator Bank'!AI396)","v":""},{"$f":"IF(ISBLANK('TA Indicator Bank'!AJ396),\"\",'TA Indicator Bank'!AJ396)","v":""},{"$f":"IF(ISBLANK('TA Indicator Bank'!AK396),\"\",'TA Indicator Bank'!AK396)","v":""},{"$f":"IF(ISBLANK('TA Indicator Bank'!AL396),\"\",'TA Indicator Bank'!AL396)","v":""},{"$f":"IF(ISBLANK('TA Indicator Bank'!AM396),\"\",'TA Indicator Bank'!AM396)","v":""},{"$f":"IF(ISBLANK('TA Indicator Bank'!AN396),\"\",'TA Indicator Bank'!AN396)","v":""},{"$f":"IF(ISBLANK('TA Indicator Bank'!AO396),\"\",'TA Indicator Bank'!AO396)","v":""},{"$f":"IF(ISBLANK('TA Indicator Bank'!AP396),\"\",'TA Indicator Bank'!AP396)","v":""},{"$f":"IF(ISBLANK('TA Indicator Bank'!AQ396),\"\",'TA Indicator Bank'!AQ396)","v":""},{"$f":"IF(ISBLANK('TA Indicator Bank'!AR396),\"\",'TA Indicator Bank'!AR396)","v":""},{"$f":"IF(ISBLANK('TA Indicator Bank'!AS396),\"\",'TA Indicator Bank'!AS396)","v":""},{"$f":"IF(ISBLANK('TA Indicator Bank'!AT396),\"\",'TA Indicator Bank'!AT396)","v":""},0,0,0,0,0,0,0,0,0,0,0,0,0,0,1,0,0,0,0,0,0,0,0,0,1,0,0,0,0,0,0,0,0,0,1,0,0,0,0,0,1,1,392,392,"",{"$f":"IFERROR(INDEX($B$9:$I$408,$CM543,COLUMNS($CN$9:CN543)),\"\")","v":""},{"$f":"IFERROR(INDEX($B$9:$I$408,$CM543,COLUMNS($CN$9:CO543)),\"\")","v":""},{"$f":"IFERROR(INDEX($B$9:$I$408,$CM543,COLUMNS($CN$9:CP543)),\"\")","v":""},{"$f":"IFERROR(INDEX($B$9:$I$408,$CM543,COLUMNS($CN$9:CQ543)),\"\")","v":""},{"$f":"IFERROR(INDEX($B$9:$I$408,$CM543,COLUMNS($CN$9:CR543)),\"\")","v":""},{"$f":"IFERROR(INDEX($B$9:$I$408,$CM543,COLUMNS($CN$9:CS543)),\"\")","v":""},{"$f":"IFERROR(INDEX($B$9:$I$408,$CM543,COLUMNS($CN$9:CT543)),\"\")","v":""},{"$f":"IFERROR(INDEX($B$9:$I$408,$CM543,COLUMNS($CN$9:CU543)),\"\")","v":""}]
[null,{"$f":"IF(ISBLANK('TA Indicator Bank'!B397),\"\",'TA Indicator Bank'!B397)","v":""},{"$f":"IF(ISBLANK('TA Indicator Bank'!C397),\"\",'TA Indicator Bank'!C397)","v":""},{"$f":"IF(ISBLANK('TA Indicator Bank'!D397),\"\",'TA Indicator Bank'!D397)","v":""},{"$f":"IF(ISBLANK('TA Indicator Bank'!E397),\"\",'TA Indicator Bank'!E397)","v":""},{"$f":"IF(ISBLANK('TA Indicator Bank'!F397),\"\",'TA Indicator Bank'!F397)","v":""},{"$f":"IF(ISBLANK('TA Indicator Bank'!G397),\"\",'TA Indicator Bank'!G397)","v":""},{"$f":"IF(ISBLANK('TA Indicator Bank'!H397),\"\",'TA Indicator Bank'!H397)","v":""},{"$f":"IF(ISBLANK('TA Indicator Bank'!I397),\"\",'TA Indicator Bank'!I397)","v":""},{"$f":"IF(ISBLANK('TA Indicator Bank'!J397),\"\",'TA Indicator Bank'!J397)","v":""},{"$f":"IF(ISBLANK('TA Indicator Bank'!K397),\"\",'TA Indicator Bank'!K397)","v":""},{"$f":"IF(ISBLANK('TA Indicator Bank'!L397),\"\",'TA Indicator Bank'!L397)","v":""},{"$f":"IF(ISBLANK('TA Indicator Bank'!M397),\"\",'TA Indicator Bank'!M397)","v":""},{"$f":"IF(ISBLANK('TA Indicator Bank'!N397),\"\",'TA Indicator Bank'!N397)","v":""},{"$f":"IF(ISBLANK('TA Indicator Bank'!O397),\"\",'TA Indicator Bank'!O397)","v":""},{"$f":"IF(ISBLANK('TA Indicator Bank'!P397),\"\",'TA Indicator Bank'!P397)","v":""},{"$f":"IF(ISBLANK('TA Indicator Bank'!Q397),\"\",'TA Indicator Bank'!Q397)","v":""},{"$f":"IF(ISBLANK('TA Indicator Bank'!R397),\"\",'TA Indicator Bank'!R397)","v":""},{"$f":"IF(ISBLANK('TA Indicator Bank'!S397),\"\",'TA Indicator Bank'!S397)","v":""},{"$f":"IF(ISBLANK('TA Indicator Bank'!T397),\"\",'TA Indicator Bank'!T397)","v":""},{"$f":"IF(ISBLANK('TA Indicator Bank'!U397),\"\",'TA Indicator Bank'!U397)","v":""},{"$f":"IF(ISBLANK('TA Indicator Bank'!V397),\"\",'TA Indicator Bank'!V397)","v":""},{"$f":"IF(ISBLANK('TA Indicator Bank'!W397),\"\",'TA Indicator Bank'!W397)","v":""},{"$f":"IF(ISBLANK('TA Indicator Bank'!X397),\"\",'TA Indicator Bank'!X397)","v":""},{"$f":"IF(ISBLANK('TA Indicator Bank'!Y397),\"\",'TA Indicator Bank'!Y397)","v":""},{"$f":"IF(ISBLANK('TA Indicator Bank'!Z397),\"\",'TA Indicator Bank'!Z397)","v":""},{"$f":"IF(ISBLANK('TA Indicator Bank'!AA397),\"\",'TA Indicator Bank'!AA397)","v":""},{"$f":"IF(ISBLANK('TA Indicator Bank'!AB397),\"\",'TA Indicator Bank'!AB397)","v":""},{"$f":"IF(ISBLANK('TA Indicator Bank'!AC397),\"\",'TA Indicator Bank'!AC397)","v":""},{"$f":"IF(ISBLANK('TA Indicator Bank'!AD397),\"\",'TA Indicator Bank'!AD397)","v":""},{"$f":"IF(ISBLANK('TA Indicator Bank'!AE397),\"\",'TA Indicator Bank'!AE397)","v":""},{"$f":"IF(ISBLANK('TA Indicator Bank'!AF397),\"\",'TA Indicator Bank'!AF397)","v":""},{"$f":"IF(ISBLANK('TA Indicator Bank'!AG397),\"\",'TA Indicator Bank'!AG397)","v":""},{"$f":"IF(ISBLANK('TA Indicator Bank'!AH397),\"\",'TA Indicator Bank'!AH397)","v":""},{"$f":"IF(ISBLANK('TA Indicator Bank'!AI397),\"\",'TA Indicator Bank'!AI397)","v":""},{"$f":"IF(ISBLANK('TA Indicator Bank'!AJ397),\"\",'TA Indicator Bank'!AJ397)","v":""},{"$f":"IF(ISBLANK('TA Indicator Bank'!AK397),\"\",'TA Indicator Bank'!AK397)","v":""},{"$f":"IF(ISBLANK('TA Indicator Bank'!AL397),\"\",'TA Indicator Bank'!AL397)","v":""},{"$f":"IF(ISBLANK('TA Indicator Bank'!AM397),\"\",'TA Indicator Bank'!AM397)","v":""},{"$f":"IF(ISBLANK('TA Indicator Bank'!AN397),\"\",'TA Indicator Bank'!AN397)","v":""},{"$f":"IF(ISBLANK('TA Indicator Bank'!AO397),\"\",'TA Indicator Bank'!AO397)","v":""},{"$f":"IF(ISBLANK('TA Indicator Bank'!AP397),\"\",'TA Indicator Bank'!AP397)","v":""},{"$f":"IF(ISBLANK('TA Indicator Bank'!AQ397),\"\",'TA Indicator Bank'!AQ397)","v":""},{"$f":"IF(ISBLANK('TA Indicator Bank'!AR397),\"\",'TA Indicator Bank'!AR397)","v":""},{"$f":"IF(ISBLANK('TA Indicator Bank'!AS397),\"\",'TA Indicator Bank'!AS397)","v":""},{"$f":"IF(ISBLANK('TA Indicator Bank'!AT397),\"\",'TA Indicator Bank'!AT397)","v":""},0,0,0,0,0,0,0,0,0,0,0,0,0,0,1,0,0,0,0,0,0,0,0,0,1,0,0,0,0,0,0,0,0,0,1,0,0,0,0,0,1,1,393,393,"",{"$f":"IFERROR(INDEX($B$9:$I$408,$CM544,COLUMNS($CN$9:CN544)),\"\")","v":""},{"$f":"IFERROR(INDEX($B$9:$I$408,$CM544,COLUMNS($CN$9:CO544)),\"\")","v":""},{"$f":"IFERROR(INDEX($B$9:$I$408,$CM544,COLUMNS($CN$9:CP544)),\"\")","v":""},{"$f":"IFERROR(INDEX($B$9:$I$408,$CM544,COLUMNS($CN$9:CQ544)),\"\")","v":""},{"$f":"IFERROR(INDEX($B$9:$I$408,$CM544,COLUMNS($CN$9:CR544)),\"\")","v":""},{"$f":"IFERROR(INDEX($B$9:$I$408,$CM544,COLUMNS($CN$9:CS544)),\"\")","v":""},{"$f":"IFERROR(INDEX($B$9:$I$408,$CM544,COLUMNS($CN$9:CT544)),\"\")","v":""},{"$f":"IFERROR(INDEX($B$9:$I$408,$CM544,COLUMNS($CN$9:CU544)),\"\")","v":""}]
[null,{"$f":"IF(ISBLANK('TA Indicator Bank'!B398),\"\",'TA Indicator Bank'!B398)","v":""},{"$f":"IF(ISBLANK('TA Indicator Bank'!C398),\"\",'TA Indicator Bank'!C398)","v":""},{"$f":"IF(ISBLANK('TA Indicator Bank'!D398),\"\",'TA Indicator Bank'!D398)","v":""},{"$f":"IF(ISBLANK('TA Indicator Bank'!E398),\"\",'TA Indicator Bank'!E398)","v":""},{"$f":"IF(ISBLANK('TA Indicator Bank'!F398),\"\",'TA Indicator Bank'!F398)","v":""},{"$f":"IF(ISBLANK('TA Indicator Bank'!G398),\"\",'TA Indicator Bank'!G398)","v":""},{"$f":"IF(ISBLANK('TA Indicator Bank'!H398),\"\",'TA Indicator Bank'!H398)","v":""},{"$f":"IF(ISBLANK('TA Indicator Bank'!I398),\"\",'TA Indicator Bank'!I398)","v":""},{"$f":"IF(ISBLANK('TA Indicator Bank'!J398),\"\",'TA Indicator Bank'!J398)","v":""},{"$f":"IF(ISBLANK('TA Indicator Bank'!K398),\"\",'TA Indicator Bank'!K398)","v":""},{"$f":"IF(ISBLANK('TA Indicator Bank'!L398),\"\",'TA Indicator Bank'!L398)","v":""},{"$f":"IF(ISBLANK('TA Indicator Bank'!M398),\"\",'TA Indicator Bank'!M398)","v":""},{"$f":"IF(ISBLANK('TA Indicator Bank'!N398),\"\",'TA Indicator Bank'!N398)","v":""},{"$f":"IF(ISBLANK('TA Indicator Bank'!O398),\"\",'TA Indicator Bank'!O398)","v":""},{"$f":"IF(ISBLANK('TA Indicator Bank'!P398),\"\",'TA Indicator Bank'!P398)","v":""},{"$f":"IF(ISBLANK('TA Indicator Bank'!Q398),\"\",'TA Indicator Bank'!Q398)","v":""},{"$f":"IF(ISBLANK('TA Indicator Bank'!R398),\"\",'TA Indicator Bank'!R398)","v":""},{"$f":"IF(ISBLANK('TA Indicator Bank'!S398),\"\",'TA Indicator Bank'!S398)","v":""},{"$f":"IF(ISBLANK('TA Indicator Bank'!T398),\"\",'TA Indicator Bank'!T398)","v":""},{"$f":"IF(ISBLANK('TA Indicator Bank'!U398),\"\",'TA Indicator Bank'!U398)","v":""},{"$f":"IF(ISBLANK('TA Indicator Bank'!V398),\"\",'TA Indicator Bank'!V398)","v":""},{"$f":"IF(ISBLANK('TA Indicator Bank'!W398),\"\",'TA Indicator Bank'!W398)","v":""},{"$f":"IF(ISBLANK('TA Indicator Bank'!X398),\"\",'TA Indicator Bank'!X398)","v":""},{"$f":"IF(ISBLANK('TA Indicator Bank'!Y398),\"\",'TA Indicator Bank'!Y398)","v":""},{"$f":"IF(ISBLANK('TA Indicator Bank'!Z398),\"\",'TA Indicator Bank'!Z398)","v":""},{"$f":"IF(ISBLANK('TA Indicator Bank'!AA398),\"\",'TA Indicator Bank'!AA398)","v":""},{"$f":"IF(ISBLANK('TA Indicator Bank'!AB398),\"\",'TA Indicator Bank'!AB398)","v":""},{"$f":"IF(ISBLANK('TA Indicator Bank'!AC398),\"\",'TA Indicator Bank'!AC398)","v":""},{"$f":"IF(ISBLANK('TA Indicator Bank'!AD398),\"\",'TA Indicator Bank'!AD398)","v":""},{"$f":"IF(ISBLANK('TA Indicator Bank'!AE398),\"\",'TA Indicator Bank'!AE398)","v":""},{"$f":"IF(ISBLANK('TA Indicator Bank'!AF398),\"\",'TA Indicator Bank'!AF398)","v":""},{"$f":"IF(ISBLANK('TA Indicator Bank'!AG398),\"\",'TA Indicator Bank'!AG398)","v":""},{"$f":"IF(ISBLANK('TA Indicator Bank'!AH398),\"\",'TA Indicator Bank'!AH398)","v":""},{"$f":"IF(ISBLANK('TA Indicator Bank'!AI398),\"\",'TA Indicator Bank'!AI398)","v":""},{"$f":"IF(ISBLANK('TA Indicator Bank'!AJ398),\"\",'TA Indicator Bank'!AJ398)","v":""},{"$f":"IF(ISBLANK('TA Indicator Bank'!AK398),\"\",'TA Indicator Bank'!AK398)","v":""},{"$f":"IF(ISBLANK('TA Indicator Bank'!AL398),\"\",'TA Indicator Bank'!AL398)","v":""},{"$f":"IF(ISBLANK('TA Indicator Bank'!AM398),\"\",'TA Indicator Bank'!AM398)","v":""},{"$f":"IF(ISBLANK('TA Indicator Bank'!AN398),\"\",'TA Indicator Bank'!AN398)","v":""},{"$f":"IF(ISBLANK('TA Indicator Bank'!AO398),\"\",'TA Indicator Bank'!AO398)","v":""},{"$f":"IF(ISBLANK('TA Indicator Bank'!AP398),\"\",'TA Indicator Bank'!AP398)","v":""},{"$f":"IF(ISBLANK('TA Indicator Bank'!AQ398),\"\",'TA Indicator Bank'!AQ398)","v":""},{"$f":"IF(ISBLANK('TA Indicator Bank'!AR398),\"\",'TA Indicator Bank'!AR398)","v":""},{"$f":"IF(ISBLANK('TA Indicator Bank'!AS398),\"\",'TA Indicator Bank'!AS398)","v":""},{"$f":"IF(ISBLANK('TA Indicator Bank'!AT398),\"\",'TA Indicator Bank'!AT398)","v":""},0,0,0,0,0,0,0,0,0,0,0,0,0,0,1,0,0,0,0,0,0,0,0,0,1,0,0,0,0,0,0,0,0,0,1,0,0,0,0,0,1,1,394,394,"",{"$f":"IFERROR(INDEX($B$9:$I$408,$CM545,COLUMNS($CN$9:CN545)),\"\")","v":""},{"$f":"IFERROR(INDEX($B$9:$I$408,$CM545,COLUMNS($CN$9:CO545)),\"\")","v":""},{"$f":"IFERROR(INDEX($B$9:$I$408,$CM545,COLUMNS($CN$9:CP545)),\"\")","v":""},{"$f":"IFERROR(INDEX($B$9:$I$408,$CM545,COLUMNS($CN$9:CQ545)),\"\")","v":""},{"$f":"IFERROR(INDEX($B$9:$I$408,$CM545,COLUMNS($CN$9:CR545)),\"\")","v":""},{"$f":"IFERROR(INDEX($B$9:$I$408,$CM545,COLUMNS($CN$9:CS545)),\"\")","v":""},{"$f":"IFERROR(INDEX($B$9:$I$408,$CM545,COLUMNS($CN$9:CT545)),\"\")","v":""},{"$f":"IFERROR(INDEX($B$9:$I$408,$CM545,COLUMNS($CN$9:CU545)),\"\")","v":""}]
[null,{"$f":"IF(ISBLANK('TA Indicator Bank'!B399),\"\",'TA Indicator Bank'!B399)","v":""},{"$f":"IF(ISBLANK('TA Indicator Bank'!C399),\"\",'TA Indicator Bank'!C399)","v":""},{"$f":"IF(ISBLANK('TA Indicator Bank'!D399),\"\",'TA Indicator Bank'!D399)","v":""},{"$f":"IF(ISBLANK('TA Indicator Bank'!E399),\"\",'TA Indicator Bank'!E399)","v":""},{"$f":"IF(ISBLANK('TA Indicator Bank'!F399),\"\",'TA Indicator Bank'!F399)","v":""},{"$f":"IF(ISBLANK('TA Indicator Bank'!G399),\"\",'TA Indicator Bank'!G399)","v":""},{"$f":"IF(ISBLANK('TA Indicator Bank'!H399),\"\",'TA Indicator Bank'!H399)","v":""},{"$f":"IF(ISBLANK('TA Indicator Bank'!I399),\"\",'TA Indicator Bank'!I399)","v":""},{"$f":"IF(ISBLANK('TA Indicator Bank'!J399),\"\",'TA Indicator Bank'!J399)","v":""},{"$f":"IF(ISBLANK('TA Indicator Bank'!K399),\"\",'TA Indicator Bank'!K399)","v":""},{"$f":"IF(ISBLANK('TA Indicator Bank'!L399),\"\",'TA Indicator Bank'!L399)","v":""},{"$f":"IF(ISBLANK('TA Indicator Bank'!M399),\"\",'TA Indicator Bank'!M399)","v":""},{"$f":"IF(ISBLANK('TA Indicator Bank'!N399),\"\",'TA Indicator Bank'!N399)","v":""},{"$f":"IF(ISBLANK('TA Indicator Bank'!O399),\"\",'TA Indicator Bank'!O399)","v":""},{"$f":"IF(ISBLANK('TA Indicator Bank'!P399),\"\",'TA Indicator Bank'!P399)","v":""},{"$f":"IF(ISBLANK('TA Indicator Bank'!Q399),\"\",'TA Indicator Bank'!Q399)","v":""},{"$f":"IF(ISBLANK('TA Indicator Bank'!R399),\"\",'TA Indicator Bank'!R399)","v":""},{"$f":"IF(ISBLANK('TA Indicator Bank'!S399),\"\",'TA Indicator Bank'!S399)","v":""},{"$f":"IF(ISBLANK('TA Indicator Bank'!T399),\"\",'TA Indicator Bank'!T399)","v":""},{"$f":"IF(ISBLANK('TA Indicator Bank'!U399),\"\",'TA Indicator Bank'!U399)","v":""},{"$f":"IF(ISBLANK('TA Indicator Bank'!V399),\"\",'TA Indicator Bank'!V399)","v":""},{"$f":"IF(ISBLANK('TA Indicator Bank'!W399),\"\",'TA Indicator Bank'!W399)","v":""},{"$f":"IF(ISBLANK('TA Indicator Bank'!X399),\"\",'TA Indicator Bank'!X399)","v":""},{"$f":"IF(ISBLANK('TA Indicator Bank'!Y399),\"\",'TA Indicator Bank'!Y399)","v":""},{"$f":"IF(ISBLANK('TA Indicator Bank'!Z399),\"\",'TA Indicator Bank'!Z399)","v":""},{"$f":"IF(ISBLANK('TA Indicator Bank'!AA399),\"\",'TA Indicator Bank'!AA399)","v":""},{"$f":"IF(ISBLANK('TA Indicator Bank'!AB399),\"\",'TA Indicator Bank'!AB399)","v":""},{"$f":"IF(ISBLANK('TA Indicator Bank'!AC399),\"\",'TA Indicator Bank'!AC399)","v":""},{"$f":"IF(ISBLANK('TA Indicator Bank'!AD399),\"\",'TA Indicator Bank'!AD399)","v":""},{"$f":"IF(ISBLANK('TA Indicator Bank'!AE399),\"\",'TA Indicator Bank'!AE399)","v":""},{"$f":"IF(ISBLANK('TA Indicator Bank'!AF399),\"\",'TA Indicator Bank'!AF399)","v":""},{"$f":"IF(ISBLANK('TA Indicator Bank'!AG399),\"\",'TA Indicator Bank'!AG399)","v":""},{"$f":"IF(ISBLANK('TA Indicator Bank'!AH399),\"\",'TA Indicator Bank'!AH399)","v":""},{"$f":"IF(ISBLANK('TA Indicator Bank'!AI399),\"\",'TA Indicator Bank'!AI399)","v":""},{"$f":"IF(ISBLANK('TA Indicator Bank'!AJ399),\"\",'TA Indicator Bank'!AJ399)","v":""},{"$f":"IF(ISBLANK('TA Indicator Bank'!AK399),\"\",'TA Indicator Bank'!AK399)","v":""},{"$f":"IF(ISBLANK('TA Indicator Bank'!AL399),\"\",'TA Indicator Bank'!AL399)","v":""},{"$f":"IF(ISBLANK('TA Indicator Bank'!AM399),\"\",'TA Indicator Bank'!AM399)","v":""},{"$f":"IF(ISBLANK('TA Indicator Bank'!AN399),\"\",'TA Indicator Bank'!AN399)","v":""},{"$f":"IF(ISBLANK('TA Indicator Bank'!AO399),\"\",'TA Indicator Bank'!AO399)","v":""},{"$f":"IF(ISBLANK('TA Indicator Bank'!AP399),\"\",'TA Indicator Bank'!AP399)","v":""},{"$f":"IF(ISBLANK('TA Indicator Bank'!AQ399),\"\",'TA Indicator Bank'!AQ399)","v":""},{"$f":"IF(ISBLANK('TA Indicator Bank'!AR399),\"\",'TA Indicator Bank'!AR399)","v":""},{"$f":"IF(ISBLANK('TA Indicator Bank'!AS399),\"\",'TA Indicator Bank'!AS399)","v":""},{"$f":"IF(ISBLANK('TA Indicator Bank'!AT399),\"\",'TA Indicator Bank'!AT399)","v":""},0,0,0,0,0,0,0,0,0,0,0,0,0,0,1,0,0,0,0,0,0,0,0,0,1,0,0,0,0,0,0,0,0,0,1,0,0,0,0,0,1,1,395,395,"",{"$f":"IFERROR(INDEX($B$9:$I$408,$CM546,COLUMNS($CN$9:CN546)),\"\")","v":""},{"$f":"IFERROR(INDEX($B$9:$I$408,$CM546,COLUMNS($CN$9:CO546)),\"\")","v":""},{"$f":"IFERROR(INDEX($B$9:$I$408,$CM546,COLUMNS($CN$9:CP546)),\"\")","v":""},{"$f":"IFERROR(INDEX($B$9:$I$408,$CM546,COLUMNS($CN$9:CQ546)),\"\")","v":""},{"$f":"IFERROR(INDEX($B$9:$I$408,$CM546,COLUMNS($CN$9:CR546)),\"\")","v":""},{"$f":"IFERROR(INDEX($B$9:$I$408,$CM546,COLUMNS($CN$9:CS546)),\"\")","v":""},{"$f":"IFERROR(INDEX($B$9:$I$408,$CM546,COLUMNS($CN$9:CT546)),\"\")","v":""},{"$f":"IFERROR(INDEX($B$9:$I$408,$CM546,COLUMNS($CN$9:CU546)),\"\")","v":""}]
[null,{"$f":"IF(ISBLANK('TA Indicator Bank'!B400),\"\",'TA Indicator Bank'!B400)","v":""},{"$f":"IF(ISBLANK('TA Indicator Bank'!C400),\"\",'TA Indicator Bank'!C400)","v":""},{"$f":"IF(ISBLANK('TA Indicator Bank'!D400),\"\",'TA Indicator Bank'!D400)","v":""},{"$f":"IF(ISBLANK('TA Indicator Bank'!E400),\"\",'TA Indicator Bank'!E400)","v":""},{"$f":"IF(ISBLANK('TA Indicator Bank'!F400),\"\",'TA Indicator Bank'!F400)","v":""},{"$f":"IF(ISBLANK('TA Indicator Bank'!G400),\"\",'TA Indicator Bank'!G400)","v":""},{"$f":"IF(ISBLANK('TA Indicator Bank'!H400),\"\",'TA Indicator Bank'!H400)","v":""},{"$f":"IF(ISBLANK('TA Indicator Bank'!I400),\"\",'TA Indicator Bank'!I400)","v":""},{"$f":"IF(ISBLANK('TA Indicator Bank'!J400),\"\",'TA Indicator Bank'!J400)","v":""},{"$f":"IF(ISBLANK('TA Indicator Bank'!K400),\"\",'TA Indicator Bank'!K400)","v":""},{"$f":"IF(ISBLANK('TA Indicator Bank'!L400),\"\",'TA Indicator Bank'!L400)","v":""},{"$f":"IF(ISBLANK('TA Indicator Bank'!M400),\"\",'TA Indicator Bank'!M400)","v":""},{"$f":"IF(ISBLANK('TA Indicator Bank'!N400),\"\",'TA Indicator Bank'!N400)","v":""},{"$f":"IF(ISBLANK('TA Indicator Bank'!O400),\"\",'TA Indicator Bank'!O400)","v":""},{"$f":"IF(ISBLANK('TA Indicator Bank'!P400),\"\",'TA Indicator Bank'!P400)","v":""},{"$f":"IF(ISBLANK('TA Indicator Bank'!Q400),\"\",'TA Indicator Bank'!Q400)","v":""},{"$f":"IF(ISBLANK('TA Indicator Bank'!R400),\"\",'TA Indicator Bank'!R400)","v":""},{"$f":"IF(ISBLANK('TA Indicator Bank'!S400),\"\",'TA Indicator Bank'!S400)","v":""},{"$f":"IF(ISBLANK('TA Indicator Bank'!T400),\"\",'TA Indicator Bank'!T400)","v":""},{"$f":"IF(ISBLANK('TA Indicator Bank'!U400),\"\",'TA Indicator Bank'!U400)","v":""},{"$f":"IF(ISBLANK('TA Indicator Bank'!V400),\"\",'TA Indicator Bank'!V400)","v":""},{"$f":"IF(ISBLANK('TA Indicator Bank'!W400),\"\",'TA Indicator Bank'!W400)","v":""},{"$f":"IF(ISBLANK('TA Indicator Bank'!X400),\"\",'TA Indicator Bank'!X400)","v":""},{"$f":"IF(ISBLANK('TA Indicator Bank'!Y400),\"\",'TA Indicator Bank'!Y400)","v":""},{"$f":"IF(ISBLANK('TA Indicator Bank'!Z400),\"\",'TA Indicator Bank'!Z400)","v":""},{"$f":"IF(ISBLANK('TA Indicator Bank'!AA400),\"\",'TA Indicator Bank'!AA400)","v":""},{"$f":"IF(ISBLANK('TA Indicator Bank'!AB400),\"\",'TA Indicator Bank'!AB400)","v":""},{"$f":"IF(ISBLANK('TA Indicator Bank'!AC400),\"\",'TA Indicator Bank'!AC400)","v":""},{"$f":"IF(ISBLANK('TA Indicator Bank'!AD400),\"\",'TA Indicator Bank'!AD400)","v":""},{"$f":"IF(ISBLANK('TA Indicator Bank'!AE400),\"\",'TA Indicator Bank'!AE400)","v":""},{"$f":"IF(ISBLANK('TA Indicator Bank'!AF400),\"\",'TA Indicator Bank'!AF400)","v":""},{"$f":"IF(ISBLANK('TA Indicator Bank'!AG400),\"\",'TA Indicator Bank'!AG400)","v":""},{"$f":"IF(ISBLANK('TA Indicator Bank'!AH400),\"\",'TA Indicator Bank'!AH400)","v":""},{"$f":"IF(ISBLANK('TA Indicator Bank'!AI400),\"\",'TA Indicator Bank'!AI400)","v":""},{"$f":"IF(ISBLANK('TA Indicator Bank'!AJ400),\"\",'TA Indicator Bank'!AJ400)","v":""},{"$f":"IF(ISBLANK('TA Indicator Bank'!AK400),\"\",'TA Indicator Bank'!AK400)","v":""},{"$f":"IF(ISBLANK('TA Indicator Bank'!AL400),\"\",'TA Indicator Bank'!AL400)","v":""},{"$f":"IF(ISBLANK('TA Indicator Bank'!AM400),\"\",'TA Indicator Bank'!AM400)","v":""},{"$f":"IF(ISBLANK('TA Indicator Bank'!AN400),\"\",'TA Indicator Bank'!AN400)","v":""},{"$f":"IF(ISBLANK('TA Indicator Bank'!AO400),\"\",'TA Indicator Bank'!AO400)","v":""},{"$f":"IF(ISBLANK('TA Indicator Bank'!AP400),\"\",'TA Indicator Bank'!AP400)","v":""},{"$f":"IF(ISBLANK('TA Indicator Bank'!AQ400),\"\",'TA Indicator Bank'!AQ400)","v":""},{"$f":"IF(ISBLANK('TA Indicator Bank'!AR400),\"\",'TA Indicator Bank'!AR400)","v":""},{"$f":"IF(ISBLANK('TA Indicator Bank'!AS400),\"\",'TA Indicator Bank'!AS400)","v":""},{"$f":"IF(ISBLANK('TA Indicator Bank'!AT400),\"\",'TA Indicator Bank'!AT400)","v":""},0,0,0,0,0,0,0,0,0,0,0,0,0,0,1,0,0,0,0,0,0,0,0,0,1,0,0,0,0,0,0,0,0,0,1,0,0,0,0,0,1,1,396,396,"",{"$f":"IFERROR(INDEX($B$9:$I$408,$CM547,COLUMNS($CN$9:CN547)),\"\")","v":""},{"$f":"IFERROR(INDEX($B$9:$I$408,$CM547,COLUMNS($CN$9:CO547)),\"\")","v":""},{"$f":"IFERROR(INDEX($B$9:$I$408,$CM547,COLUMNS($CN$9:CP547)),\"\")","v":""},{"$f":"IFERROR(INDEX($B$9:$I$408,$CM547,COLUMNS($CN$9:CQ547)),\"\")","v":""},{"$f":"IFERROR(INDEX($B$9:$I$408,$CM547,COLUMNS($CN$9:CR547)),\"\")","v":""},{"$f":"IFERROR(INDEX($B$9:$I$408,$CM547,COLUMNS($CN$9:CS547)),\"\")","v":""},{"$f":"IFERROR(INDEX($B$9:$I$408,$CM547,COLUMNS($CN$9:CT547)),\"\")","v":""},{"$f":"IFERROR(INDEX($B$9:$I$408,$CM547,COLUMNS($CN$9:CU547)),\"\")","v":""}]
[null,{"$f":"IF(ISBLANK('TA Indicator Bank'!B401),\"\",'TA Indicator Bank'!B401)","v":""},{"$f":"IF(ISBLANK('TA Indicator Bank'!C401),\"\",'TA Indicator Bank'!C401)","v":""},{"$f":"IF(ISBLANK('TA Indicator Bank'!D401),\"\",'TA Indicator Bank'!D401)","v":""},{"$f":"IF(ISBLANK('TA Indicator Bank'!E401),\"\",'TA Indicator Bank'!E401)","v":""},{"$f":"IF(ISBLANK('TA Indicator Bank'!F401),\"\",'TA Indicator Bank'!F401)","v":""},{"$f":"IF(ISBLANK('TA Indicator Bank'!G401),\"\",'TA Indicator Bank'!G401)","v":""},{"$f":"IF(ISBLANK('TA Indicator Bank'!H401),\"\",'TA Indicator Bank'!H401)","v":""},{"$f":"IF(ISBLANK('TA Indicator Bank'!I401),\"\",'TA Indicator Bank'!I401)","v":""},{"$f":"IF(ISBLANK('TA Indicator Bank'!J401),\"\",'TA Indicator Bank'!J401)","v":""},{"$f":"IF(ISBLANK('TA Indicator Bank'!K401),\"\",'TA Indicator Bank'!K401)","v":""},{"$f":"IF(ISBLANK('TA Indicator Bank'!L401),\"\",'TA Indicator Bank'!L401)","v":""},{"$f":"IF(ISBLANK('TA Indicator Bank'!M401),\"\",'TA Indicator Bank'!M401)","v":""},{"$f":"IF(ISBLANK('TA Indicator Bank'!N401),\"\",'TA Indicator Bank'!N401)","v":""},{"$f":"IF(ISBLANK('TA Indicator Bank'!O401),\"\",'TA Indicator Bank'!O401)","v":""},{"$f":"IF(ISBLANK('TA Indicator Bank'!P401),\"\",'TA Indicator Bank'!P401)","v":""},{"$f":"IF(ISBLANK('TA Indicator Bank'!Q401),\"\",'TA Indicator Bank'!Q401)","v":""},{"$f":"IF(ISBLANK('TA Indicator Bank'!R401),\"\",'TA Indicator Bank'!R401)","v":""},{"$f":"IF(ISBLANK('TA Indicator Bank'!S401),\"\",'TA Indicator Bank'!S401)","v":""},{"$f":"IF(ISBLANK('TA Indicator Bank'!T401),\"\",'TA Indicator Bank'!T401)","v":""},{"$f":"IF(ISBLANK('TA Indicator Bank'!U401),\"\",'TA Indicator Bank'!U401)","v":""},{"$f":"IF(ISBLANK('TA Indicator Bank'!V401),\"\",'TA Indicator Bank'!V401)","v":""},{"$f":"IF(ISBLANK('TA Indicator Bank'!W401),\"\",'TA Indicator Bank'!W401)","v":""},{"$f":"IF(ISBLANK('TA Indicator Bank'!X401),\"\",'TA Indicator Bank'!X401)","v":""},{"$f":"IF(ISBLANK('TA Indicator Bank'!Y401),\"\",'TA Indicator Bank'!Y401)","v":""},{"$f":"IF(ISBLANK('TA Indicator Bank'!Z401),\"\",'TA Indicator Bank'!Z401)","v":""},{"$f":"IF(ISBLANK('TA Indicator Bank'!AA401),\"\",'TA Indicator Bank'!AA401)","v":""},{"$f":"IF(ISBLANK('TA Indicator Bank'!AB401),\"\",'TA Indicator Bank'!AB401)","v":""},{"$f":"IF(ISBLANK('TA Indicator Bank'!AC401),\"\",'TA Indicator Bank'!AC401)","v":""},{"$f":"IF(ISBLANK('TA Indicator Bank'!AD401),\"\",'TA Indicator Bank'!AD401)","v":""},{"$f":"IF(ISBLANK('TA Indicator Bank'!AE401),\"\",'TA Indicator Bank'!AE401)","v":""},{"$f":"IF(ISBLANK('TA Indicator Bank'!AF401),\"\",'TA Indicator Bank'!AF401)","v":""},{"$f":"IF(ISBLANK('TA Indicator Bank'!AG401),\"\",'TA Indicator Bank'!AG401)","v":""},{"$f":"IF(ISBLANK('TA Indicator Bank'!AH401),\"\",'TA Indicator Bank'!AH401)","v":""},{"$f":"IF(ISBLANK('TA Indicator Bank'!AI401),\"\",'TA Indicator Bank'!AI401)","v":""},{"$f":"IF(ISBLANK('TA Indicator Bank'!AJ401),\"\",'TA Indicator Bank'!AJ401)","v":""},{"$f":"IF(ISBLANK('TA Indicator Bank'!AK401),\"\",'TA Indicator Bank'!AK401)","v":""},{"$f":"IF(ISBLANK('TA Indicator Bank'!AL401),\"\",'TA Indicator Bank'!AL401)","v":""},{"$f":"IF(ISBLANK('TA Indicator Bank'!AM401),\"\",'TA Indicator Bank'!AM401)","v":""},{"$f":"IF(ISBLANK('TA Indicator Bank'!AN401),\"\",'TA Indicator Bank'!AN401)","v":""},{"$f":"IF(ISBLANK('TA Indicator Bank'!AO401),\"\",'TA Indicator Bank'!AO401)","v":""},{"$f":"IF(ISBLANK('TA Indicator Bank'!AP401),\"\",'TA Indicator Bank'!AP401)","v":""},{"$f":"IF(ISBLANK('TA Indicator Bank'!AQ401),\"\",'TA Indicator Bank'!AQ401)","v":""},{"$f":"IF(ISBLANK('TA Indicator Bank'!AR401),\"\",'TA Indicator Bank'!AR401)","v":""},{"$f":"IF(ISBLANK('TA Indicator Bank'!AS401),\"\",'TA Indicator Bank'!AS401)","v":""},{"$f":"IF(ISBLANK('TA Indicator Bank'!AT401),\"\",'TA Indicator Bank'!AT401)","v":""},0,0,0,0,0,0,0,0,0,0,0,0,0,0,1,0,0,0,0,0,0,0,0,0,1,0,0,0,0,0,0,0,0,0,1,0,0,0,0,0,1,1,397,397,"",{"$f":"IFERROR(INDEX($B$9:$I$408,$CM548,COLUMNS($CN$9:CN548)),\"\")","v":""},{"$f":"IFERROR(INDEX($B$9:$I$408,$CM548,COLUMNS($CN$9:CO548)),\"\")","v":""},{"$f":"IFERROR(INDEX($B$9:$I$408,$CM548,COLUMNS($CN$9:CP548)),\"\")","v":""},{"$f":"IFERROR(INDEX($B$9:$I$408,$CM548,COLUMNS($CN$9:CQ548)),\"\")","v":""},{"$f":"IFERROR(INDEX($B$9:$I$408,$CM548,COLUMNS($CN$9:CR548)),\"\")","v":""},{"$f":"IFERROR(INDEX($B$9:$I$408,$CM548,COLUMNS($CN$9:CS548)),\"\")","v":""},{"$f":"IFERROR(INDEX($B$9:$I$408,$CM548,COLUMNS($CN$9:CT548)),\"\")","v":""},{"$f":"IFERROR(INDEX($B$9:$I$408,$CM548,COLUMNS($CN$9:CU548)),\"\")","v":""}]
[null,{"$f":"IF(ISBLANK('TA Indicator Bank'!B402),\"\",'TA Indicator Bank'!B402)","v":""},{"$f":"IF(ISBLANK('TA Indicator Bank'!C402),\"\",'TA Indicator Bank'!C402)","v":""},{"$f":"IF(ISBLANK('TA Indicator Bank'!D402),\"\",'TA Indicator Bank'!D402)","v":""},{"$f":"IF(ISBLANK('TA Indicator Bank'!E402),\"\",'TA Indicator Bank'!E402)","v":""},{"$f":"IF(ISBLANK('TA Indicator Bank'!F402),\"\",'TA Indicator Bank'!F402)","v":""},{"$f":"IF(ISBLANK('TA Indicator Bank'!G402),\"\",'TA Indicator Bank'!G402)","v":""},{"$f":"IF(ISBLANK('TA Indicator Bank'!H402),\"\",'TA Indicator Bank'!H402)","v":""},{"$f":"IF(ISBLANK('TA Indicator Bank'!I402),\"\",'TA Indicator Bank'!I402)","v":""},{"$f":"IF(ISBLANK('TA Indicator Bank'!J402),\"\",'TA Indicator Bank'!J402)","v":""},{"$f":"IF(ISBLANK('TA Indicator Bank'!K402),\"\",'TA Indicator Bank'!K402)","v":""},{"$f":"IF(ISBLANK('TA Indicator Bank'!L402),\"\",'TA Indicator Bank'!L402)","v":""},{"$f":"IF(ISBLANK('TA Indicator Bank'!M402),\"\",'TA Indicator Bank'!M402)","v":""},{"$f":"IF(ISBLANK('TA Indicator Bank'!N402),\"\",'TA Indicator Bank'!N402)","v":""},{"$f":"IF(ISBLANK('TA Indicator Bank'!O402),\"\",'TA Indicator Bank'!O402)","v":""},{"$f":"IF(ISBLANK('TA Indicator Bank'!P402),\"\",'TA Indicator Bank'!P402)","v":""},{"$f":"IF(ISBLANK('TA Indicator Bank'!Q402),\"\",'TA Indicator Bank'!Q402)","v":""},{"$f":"IF(ISBLANK('TA Indicator Bank'!R402),\"\",'TA Indicator Bank'!R402)","v":""},{"$f":"IF(ISBLANK('TA Indicator Bank'!S402),\"\",'TA Indicator Bank'!S402)","v":""},{"$f":"IF(ISBLANK('TA Indicator Bank'!T402),\"\",'TA Indicator Bank'!T402)","v":""},{"$f":"IF(ISBLANK('TA Indicator Bank'!U402),\"\",'TA Indicator Bank'!U402)","v":""},{"$f":"IF(ISBLANK('TA Indicator Bank'!V402),\"\",'TA Indicator Bank'!V402)","v":""},{"$f":"IF(ISBLANK('TA Indicator Bank'!W402),\"\",'TA Indicator Bank'!W402)","v":""},{"$f":"IF(ISBLANK('TA Indicator Bank'!X402),\"\",'TA Indicator Bank'!X402)","v":""},{"$f":"IF(ISBLANK('TA Indicator Bank'!Y402),\"\",'TA Indicator Bank'!Y402)","v":""},{"$f":"IF(ISBLANK('TA Indicator Bank'!Z402),\"\",'TA Indicator Bank'!Z402)","v":""},{"$f":"IF(ISBLANK('TA Indicator Bank'!AA402),\"\",'TA Indicator Bank'!AA402)","v":""},{"$f":"IF(ISBLANK('TA Indicator Bank'!AB402),\"\",'TA Indicator Bank'!AB402)","v":""},{"$f":"IF(ISBLANK('TA Indicator Bank'!AC402),\"\",'TA Indicator Bank'!AC402)","v":""},{"$f":"IF(ISBLANK('TA Indicator Bank'!AD402),\"\",'TA Indicator Bank'!AD402)","v":""},{"$f":"IF(ISBLANK('TA Indicator Bank'!AE402),\"\",'TA Indicator Bank'!AE402)","v":""},{"$f":"IF(ISBLANK('TA Indicator Bank'!AF402),\"\",'TA Indicator Bank'!AF402)","v":""},{"$f":"IF(ISBLANK('TA Indicator Bank'!AG402),\"\",'TA Indicator Bank'!AG402)","v":""},{"$f":"IF(ISBLANK('TA Indicator Bank'!AH402),\"\",'TA Indicator Bank'!AH402)","v":""},{"$f":"IF(ISBLANK('TA Indicator Bank'!AI402),\"\",'TA Indicator Bank'!AI402)","v":""},{"$f":"IF(ISBLANK('TA Indicator Bank'!AJ402),\"\",'TA Indicator Bank'!AJ402)","v":""},{"$f":"IF(ISBLANK('TA Indicator Bank'!AK402),\"\",'TA Indicator Bank'!AK402)","v":""},{"$f":"IF(ISBLANK('TA Indicator Bank'!AL402),\"\",'TA Indicator Bank'!AL402)","v":""},{"$f":"IF(ISBLANK('TA Indicator Bank'!AM402),\"\",'TA Indicator Bank'!AM402)","v":""},{"$f":"IF(ISBLANK('TA Indicator Bank'!AN402),\"\",'TA Indicator Bank'!AN402)","v":""},{"$f":"IF(ISBLANK('TA Indicator Bank'!AO402),\"\",'TA Indicator Bank'!AO402)","v":""},{"$f":"IF(ISBLANK('TA Indicator Bank'!AP402),\"\",'TA Indicator Bank'!AP402)","v":""},{"$f":"IF(ISBLANK('TA Indicator Bank'!AQ402),\"\",'TA Indicator Bank'!AQ402)","v":""},{"$f":"IF(ISBLANK('TA Indicator Bank'!AR402),\"\",'TA Indicator Bank'!AR402)","v":""},{"$f":"IF(ISBLANK('TA Indicator Bank'!AS402),\"\",'TA Indicator Bank'!AS402)","v":""},{"$f":"IF(ISBLANK('TA Indicator Bank'!AT402),\"\",'TA Indicator Bank'!AT402)","v":""},0,0,0,0,0,0,0,0,0,0,0,0,0,0,1,0,0,0,0,0,0,0,0,0,1,0,0,0,0,0,0,0,0,0,1,0,0,0,0,0,1,1,398,398,"",{"$f":"IFERROR(INDEX($B$9:$I$408,$CM549,COLUMNS($CN$9:CN549)),\"\")","v":""},{"$f":"IFERROR(INDEX($B$9:$I$408,$CM549,COLUMNS($CN$9:CO549)),\"\")","v":""},{"$f":"IFERROR(INDEX($B$9:$I$408,$CM549,COLUMNS($CN$9:CP549)),\"\")","v":""},{"$f":"IFERROR(INDEX($B$9:$I$408,$CM549,COLUMNS($CN$9:CQ549)),\"\")","v":""},{"$f":"IFERROR(INDEX($B$9:$I$408,$CM549,COLUMNS($CN$9:CR549)),\"\")","v":""},{"$f":"IFERROR(INDEX($B$9:$I$408,$CM549,COLUMNS($CN$9:CS549)),\"\")","v":""},{"$f":"IFERROR(INDEX($B$9:$I$408,$CM549,COLUMNS($CN$9:CT549)),\"\")","v":""},{"$f":"IFERROR(INDEX($B$9:$I$408,$CM549,COLUMNS($CN$9:CU549)),\"\")","v":""}]
[null,{"$f":"IF(ISBLANK('TA Indicator Bank'!B403),\"\",'TA Indicator Bank'!B403)","v":""},{"$f":"IF(ISBLANK('TA Indicator Bank'!C403),\"\",'TA Indicator Bank'!C403)","v":""},{"$f":"IF(ISBLANK('TA Indicator Bank'!D403),\"\",'TA Indicator Bank'!D403)","v":""},{"$f":"IF(ISBLANK('TA Indicator Bank'!E403),\"\",'TA Indicator Bank'!E403)","v":""},{"$f":"IF(ISBLANK('TA Indicator Bank'!F403),\"\",'TA Indicator Bank'!F403)","v":""},{"$f":"IF(ISBLANK('TA Indicator Bank'!G403),\"\",'TA Indicator Bank'!G403)","v":""},{"$f":"IF(ISBLANK('TA Indicator Bank'!H403),\"\",'TA Indicator Bank'!H403)","v":""},{"$f":"IF(ISBLANK('TA Indicator Bank'!I403),\"\",'TA Indicator Bank'!I403)","v":""},{"$f":"IF(ISBLANK('TA Indicator Bank'!J403),\"\",'TA Indicator Bank'!J403)","v":""},{"$f":"IF(ISBLANK('TA Indicator Bank'!K403),\"\",'TA Indicator Bank'!K403)","v":""},{"$f":"IF(ISBLANK('TA Indicator Bank'!L403),\"\",'TA Indicator Bank'!L403)","v":""},{"$f":"IF(ISBLANK('TA Indicator Bank'!M403),\"\",'TA Indicator Bank'!M403)","v":""},{"$f":"IF(ISBLANK('TA Indicator Bank'!N403),\"\",'TA Indicator Bank'!N403)","v":""},{"$f":"IF(ISBLANK('TA Indicator Bank'!O403),\"\",'TA Indicator Bank'!O403)","v":""},{"$f":"IF(ISBLANK('TA Indicator Bank'!P403),\"\",'TA Indicator Bank'!P403)","v":""},{"$f":"IF(ISBLANK('TA Indicator Bank'!Q403),\"\",'TA Indicator Bank'!Q403)","v":""},{"$f":"IF(ISBLANK('TA Indicator Bank'!R403),\"\",'TA Indicator Bank'!R403)","v":""},{"$f":"IF(ISBLANK('TA Indicator Bank'!S403),\"\",'TA Indicator Bank'!S403)","v":""},{"$f":"IF(ISBLANK('TA Indicator Bank'!T403),\"\",'TA Indicator Bank'!T403)","v":""},{"$f":"IF(ISBLANK('TA Indicator Bank'!U403),\"\",'TA Indicator Bank'!U403)","v":""},{"$f":"IF(ISBLANK('TA Indicator Bank'!V403),\"\",'TA Indicator Bank'!V403)","v":""},{"$f":"IF(ISBLANK('TA Indicator Bank'!W403),\"\",'TA Indicator Bank'!W403)","v":""},{"$f":"IF(ISBLANK('TA Indicator Bank'!X403),\"\",'TA Indicator Bank'!X403)","v":""},{"$f":"IF(ISBLANK('TA Indicator Bank'!Y403),\"\",'TA Indicator Bank'!Y403)","v":""},{"$f":"IF(ISBLANK('TA Indicator Bank'!Z403),\"\",'TA Indicator Bank'!Z403)","v":""},{"$f":"IF(ISBLANK('TA Indicator Bank'!AA403),\"\",'TA Indicator Bank'!AA403)","v":""},{"$f":"IF(ISBLANK('TA Indicator Bank'!AB403),\"\",'TA Indicator Bank'!AB403)","v":""},{"$f":"IF(ISBLANK('TA Indicator Bank'!AC403),\"\",'TA Indicator Bank'!AC403)","v":""},{"$f":"IF(ISBLANK('TA Indicator Bank'!AD403),\"\",'TA Indicator Bank'!AD403)","v":""},{"$f":"IF(ISBLANK('TA Indicator Bank'!AE403),\"\",'TA Indicator Bank'!AE403)","v":""},{"$f":"IF(ISBLANK('TA Indicator Bank'!AF403),\"\",'TA Indicator Bank'!AF403)","v":""},{"$f":"IF(ISBLANK('TA Indicator Bank'!AG403),\"\",'TA Indicator Bank'!AG403)","v":""},{"$f":"IF(ISBLANK('TA Indicator Bank'!AH403),\"\",'TA Indicator Bank'!AH403)","v":""},{"$f":"IF(ISBLANK('TA Indicator Bank'!AI403),\"\",'TA Indicator Bank'!AI403)","v":""},{"$f":"IF(ISBLANK('TA Indicator Bank'!AJ403),\"\",'TA Indicator Bank'!AJ403)","v":""},{"$f":"IF(ISBLANK('TA Indicator Bank'!AK403),\"\",'TA Indicator Bank'!AK403)","v":""},{"$f":"IF(ISBLANK('TA Indicator Bank'!AL403),\"\",'TA Indicator Bank'!AL403)","v":""},{"$f":"IF(ISBLANK('TA Indicator Bank'!AM403),\"\",'TA Indicator Bank'!AM403)","v":""},{"$f":"IF(ISBLANK('TA Indicator Bank'!AN403),\"\",'TA Indicator Bank'!AN403)","v":""},{"$f":"IF(ISBLANK('TA Indicator Bank'!AO403),\"\",'TA Indicator Bank'!AO403)","v":""},{"$f":"IF(ISBLANK('TA Indicator Bank'!AP403),\"\",'TA Indicator Bank'!AP403)","v":""},{"$f":"IF(ISBLANK('TA Indicator Bank'!AQ403),\"\",'TA Indicator Bank'!AQ403)","v":""},{"$f":"IF(ISBLANK('TA Indicator Bank'!AR403),\"\",'TA Indicator Bank'!AR403)","v":""},{"$f":"IF(ISBLANK('TA Indicator Bank'!AS403),\"\",'TA Indicator Bank'!AS403)","v":""},{"$f":"IF(ISBLANK('TA Indicator Bank'!AT403),\"\",'TA Indicator Bank'!AT403)","v":""},0,0,0,0,0,0,0,0,0,0,0,0,0,0,1,0,0,0,0,0,0,0,0,0,1,0,0,0,0,0,0,0,0,0,1,0,0,0,0,0,1,1,399,399,"",{"$f":"IFERROR(INDEX($B$9:$I$408,$CM550,COLUMNS($CN$9:CN550)),\"\")","v":""},{"$f":"IFERROR(INDEX($B$9:$I$408,$CM550,COLUMNS($CN$9:CO550)),\"\")","v":""},{"$f":"IFERROR(INDEX($B$9:$I$408,$CM550,COLUMNS($CN$9:CP550)),\"\")","v":""},{"$f":"IFERROR(INDEX($B$9:$I$408,$CM550,COLUMNS($CN$9:CQ550)),\"\")","v":""},{"$f":"IFERROR(INDEX($B$9:$I$408,$CM550,COLUMNS($CN$9:CR550)),\"\")","v":""},{"$f":"IFERROR(INDEX($B$9:$I$408,$CM550,COLUMNS($CN$9:CS550)),\"\")","v":""},{"$f":"IFERROR(INDEX($B$9:$I$408,$CM550,COLUMNS($CN$9:CT550)),\"\")","v":""},{"$f":"IFERROR(INDEX($B$9:$I$408,$CM550,COLUMNS($CN$9:CU550)),\"\")","v":""}]
[null,{"$f":"IF(ISBLANK('TA Indicator Bank'!B404),\"\",'TA Indicator Bank'!B404)","v":""},{"$f":"IF(ISBLANK('TA Indicator Bank'!C404),\"\",'TA Indicator Bank'!C404)","v":""},{"$f":"IF(ISBLANK('TA Indicator Bank'!D404),\"\",'TA Indicator Bank'!D404)","v":""},{"$f":"IF(ISBLANK('TA Indicator Bank'!E404),\"\",'TA Indicator Bank'!E404)","v":""},{"$f":"IF(ISBLANK('TA Indicator Bank'!F404),\"\",'TA Indicator Bank'!F404)","v":""},{"$f":"IF(ISBLANK('TA Indicator Bank'!G404),\"\",'TA Indicator Bank'!G404)","v":""},{"$f":"IF(ISBLANK('TA Indicator Bank'!H404),\"\",'TA Indicator Bank'!H404)","v":""},{"$f":"IF(ISBLANK('TA Indicator Bank'!I404),\"\",'TA Indicator Bank'!I404)","v":""},{"$f":"IF(ISBLANK('TA Indicator Bank'!J404),\"\",'TA Indicator Bank'!J404)","v":""},{"$f":"IF(ISBLANK('TA Indicator Bank'!K404),\"\",'TA Indicator Bank'!K404)","v":""},{"$f":"IF(ISBLANK('TA Indicator Bank'!L404),\"\",'TA Indicator Bank'!L404)","v":""},{"$f":"IF(ISBLANK('TA Indicator Bank'!M404),\"\",'TA Indicator Bank'!M404)","v":""},{"$f":"IF(ISBLANK('TA Indicator Bank'!N404),\"\",'TA Indicator Bank'!N404)","v":""},{"$f":"IF(ISBLANK('TA Indicator Bank'!O404),\"\",'TA Indicator Bank'!O404)","v":""},{"$f":"IF(ISBLANK('TA Indicator Bank'!P404),\"\",'TA Indicator Bank'!P404)","v":""},{"$f":"IF(ISBLANK('TA Indicator Bank'!Q404),\"\",'TA Indicator Bank'!Q404)","v":""},{"$f":"IF(ISBLANK('TA Indicator Bank'!R404),\"\",'TA Indicator Bank'!R404)","v":""},{"$f":"IF(ISBLANK('TA Indicator Bank'!S404),\"\",'TA Indicator Bank'!S404)","v":""},{"$f":"IF(ISBLANK('TA Indicator Bank'!T404),\"\",'TA Indicator Bank'!T404)","v":""},{"$f":"IF(ISBLANK('TA Indicator Bank'!U404),\"\",'TA Indicator Bank'!U404)","v":""},{"$f":"IF(ISBLANK('TA Indicator Bank'!V404),\"\",'TA Indicator Bank'!V404)","v":""},{"$f":"IF(ISBLANK('TA Indicator Bank'!W404),\"\",'TA Indicator Bank'!W404)","v":""},{"$f":"IF(ISBLANK('TA Indicator Bank'!X404),\"\",'TA Indicator Bank'!X404)","v":""},{"$f":"IF(ISBLANK('TA Indicator Bank'!Y404),\"\",'TA Indicator Bank'!Y404)","v":""},{"$f":"IF(ISBLANK('TA Indicator Bank'!Z404),\"\",'TA Indicator Bank'!Z404)","v":""},{"$f":"IF(ISBLANK('TA Indicator Bank'!AA404),\"\",'TA Indicator Bank'!AA404)","v":""},{"$f":"IF(ISBLANK('TA Indicator Bank'!AB404),\"\",'TA Indicator Bank'!AB404)","v":""},{"$f":"IF(ISBLANK('TA Indicator Bank'!AC404),\"\",'TA Indicator Bank'!AC404)","v":""},{"$f":"IF(ISBLANK('TA Indicator Bank'!AD404),\"\",'TA Indicator Bank'!AD404)","v":""},{"$f":"IF(ISBLANK('TA Indicator Bank'!AE404),\"\",'TA Indicator Bank'!AE404)","v":""},{"$f":"IF(ISBLANK('TA Indicator Bank'!AF404),\"\",'TA Indicator Bank'!AF404)","v":""},{"$f":"IF(ISBLANK('TA Indicator Bank'!AG404),\"\",'TA Indicator Bank'!AG404)","v":""},{"$f":"IF(ISBLANK('TA Indicator Bank'!AH404),\"\",'TA Indicator Bank'!AH404)","v":""},{"$f":"IF(ISBLANK('TA Indicator Bank'!AI404),\"\",'TA Indicator Bank'!AI404)","v":""},{"$f":"IF(ISBLANK('TA Indicator Bank'!AJ404),\"\",'TA Indicator Bank'!AJ404)","v":""},{"$f":"IF(ISBLANK('TA Indicator Bank'!AK404),\"\",'TA Indicator Bank'!AK404)","v":""},{"$f":"IF(ISBLANK('TA Indicator Bank'!AL404),\"\",'TA Indicator Bank'!AL404)","v":""},{"$f":"IF(ISBLANK('TA Indicator Bank'!AM404),\"\",'TA Indicator Bank'!AM404)","v":""},{"$f":"IF(ISBLANK('TA Indicator Bank'!AN404),\"\",'TA Indicator Bank'!AN404)","v":""},{"$f":"IF(ISBLANK('TA Indicator Bank'!AO404),\"\",'TA Indicator Bank'!AO404)","v":""},{"$f":"IF(ISBLANK('TA Indicator Bank'!AP404),\"\",'TA Indicator Bank'!AP404)","v":""},{"$f":"IF(ISBLANK('TA Indicator Bank'!AQ404),\"\",'TA Indicator Bank'!AQ404)","v":""},{"$f":"IF(ISBLANK('TA Indicator Bank'!AR404),\"\",'TA Indicator Bank'!AR404)","v":""},{"$f":"IF(ISBLANK('TA Indicator Bank'!AS404),\"\",'TA Indicator Bank'!AS404)","v":""},{"$f":"IF(ISBLANK('TA Indicator Bank'!AT404),\"\",'TA Indicator Bank'!AT404)","v":""},0,0,0,0,0,0,0,0,0,0,0,0,0,0,1,0,0,0,0,0,0,0,0,0,1,0,0,0,0,0,0,0,0,0,1,0,0,0,0,0,1,1,400,400,"",{"$f":"IFERROR(INDEX($B$9:$I$408,$CM551,COLUMNS($CN$9:CN551)),\"\")","v":""},{"$f":"IFERROR(INDEX($B$9:$I$408,$CM551,COLUMNS($CN$9:CO551)),\"\")","v":""},{"$f":"IFERROR(INDEX($B$9:$I$408,$CM551,COLUMNS($CN$9:CP551)),\"\")","v":""},{"$f":"IFERROR(INDEX($B$9:$I$408,$CM551,COLUMNS($CN$9:CQ551)),\"\")","v":""},{"$f":"IFERROR(INDEX($B$9:$I$408,$CM551,COLUMNS($CN$9:CR551)),\"\")","v":""},{"$f":"IFERROR(INDEX($B$9:$I$408,$CM551,COLUMNS($CN$9:CS551)),\"\")","v":""},{"$f":"IFERROR(INDEX($B$9:$I$408,$CM551,COLUMNS($CN$9:CT551)),\"\")","v":""},{"$f":"IFERROR(INDEX($B$9:$I$408,$CM551,COLUMNS($CN$9:CU551)),\"\")","v":""}]
[]
[null,null,null,null,null,null,null,null,null,{"$f":"D414","v":1},{"$f":"D415","v":1},{"$f":"D416","v":1},{"$f":"D417","v":1},{"$f":"D418","v":1},{"$f":"D419","v":1},{"$f":"D420","v":1},{"$f":"D421","v":1},{"$f":"D422","v":1},{"$f":"D423","v":1},{"$f":"D424","v":1},{"$f":"D425","v":1},{"$f":"D426","v":1},{"$f":"D427","v":1},{"$f":"D430","v":1},{"$f":"D431","v":1},{"$f":"D432","v":1},{"$f":"D433","v":1},{"$f":"D434","v":1},{"$f":"D435","v":1},{"$f":"D436","v":1},{"$f":"D437","v":1},{"$f":"D438","v":1},{"$f":"D441","v":1},{"$f":"D442","v":1},{"$f":"D443","v":1},{"$f":"D444","v":1},{"$f":"D445","v":1},{"$f":"D446","v":1},{"$f":"D447","v":1},{"$f":"D448","v":1},{"$f":"D449","v":1},{"$f":"D452","v":1},{"$f":"D453","v":1},{"$f":"D454","v":1},{"$f":"D455","v":1},{"$f":"D456","v":1}]
[]
[]
[null,"Activity/uptake(s)","All"]
[null,null,"Workshops",{"$f":"IF($C$4=$C$413,1,IF($C$4=C414,1,\"\"))","v":1}]
[null,null,"Training events / courses",1]
[null,null,"Conferences, seminars or networking events",1]
[null,null,"Secondments",1]
[null,null,"Specialist research, inc. market / policy / legal / regulatory / technology research briefs",1]
[null,null,"Strategic organisational guidance",1]
[null,null,"Expert guidance and review",1]
[null,null,"Product / technology demonstration",1]
[null,null,"Study tours / roadshows",1]
[null,null,"Public awareness campaigns",1]
[null,null,"High level delegations",1]
[null,null,"Project studies and plans",1]
[null,null,"Data, software, tools and models",1]
[null,null,"Research & development",1]
[]
[null,"Output(s)","All"]
[null,null,"Capacity building: Institutional capacity",{"$f":"IF($C$5=$C$429,1,IF($C$5=C430,1,\"\"))","v":1}]
[null,null,"Capacity building: Technical capacity",1]
[null,null,"Awareness raising",1]
[null,null,"Domestic policy support",1]
[null,null,"International policy support",1]
[null,null,"Project development support",1]
[null,null,"Process/asset operation support",1]
[null,null,"Financing support",1]
[null,null,"Public-private co-ordination support",1]
[]
[null,"Outcome(s)","All"]
[null,null,"Increased or improved policy development or execution",{"$f":"IF($C$6=$C$440,1,IF($C$6=C441,1,\"\"))","v":1}]
[null,null,"Increased access to information/knowledge",1]
[null,null,"Improved domestic co-ordination",1]
[null,null,"Improved international co-ordination",1]
[null,null,"Increased or improved investment in climate-related projects/assets",1]
[null,null,"Improved operation of processes or assets (inc. e.g. electricity grid stability, agricultural livelihoods, forest management)",1]
[null,null,"Increased access to climate goods and services",1]
[null,null,"Increased or improved allocation of domestic climate finance",1]
[null,null,"Increased or improved access to international climate finance",1]
[]
[null,"Results Chain Level(s)","All"]
[null,null,"Activity",{"$f":"IF($C$3=$C$451,1,IF($C$3=C452,1,\"\"))","v":1}]
[null,null,"Uptake",{"$f":"IF($C$3=$C$451,1,IF($C$3=C453,1,\"\"))","v":1}]
[null,null,"Output",{"$f":"IF($C$3=$C$451,1,IF($C$3=C454,1,\"\"))","v":1}]
[null,null,"Outcome",{"$f":"IF($C$3=$C$451,1,IF($C$3=C455,1,\"\"))","v":1}]
[null,null,"Impact",{"$f":"IF($C$3=$C$451,1,IF($C$3=C456,1,\"\"))","v":1}]